{"text_format":"1","workbook":"xlsx","n_sheets":36,"sheets":["Cover","UserInterface","Change Control","TaxTrigger","MOD","Input","Totex","TIM","DARTs","Depn","Return&RAV","TaxPools","Finance&Tax","Revenue","Revenue Profiling","LiveResults","SavedResults","FinancialStatements","FinancialRatios","Incentives","Incentive impact","Chart1","ENWL","NPgN","NPgY","WMID","EMID","SWALES","SWEST","LPN","SPN","EPN","SPD","SPMW","SSEH","SSES"],"not_rendered":{"charts":2,"images":0,"macros":1,"external_links":16,"defined_names":172,"comments":1,"pivot_tables":0},"unopened":[{"sheet":"Chart1","index":21,"reason":"not_a_worksheet"}],"bounds":{"document_bytes":16777216,"sheet_cells":100000,"rows_first":2000,"rows_last":500,"rows_between":2000,"halvings":0,"cell_chars":16384,"cell_head_chars":4096},"cells_cut":0,"cells_raw":0,"read":"whole","date_system":"1900"}

{"sheet":"Cover","index":0,"n_rows":59,"n_cols":7,"rows_kept":59,"cut":false,"hidden":false,"merged":[[3,2,3,10],[5,2,5,10],[7,2,7,10]]}
["RIIO Price Control Financial Model (PCFM)"]
[null,"Electricity Distribution"]
[null,null,{"$f":"MID(CELL(\"filename\"),SEARCH(\"[\",CELL(\"filename\"))+1,SEARCH(\"]\",CELL(\"filename\"))-SEARCH(\"[\",CELL(\"filename\"))-1)","v":"LiMo ED C1.93b_WPD_DNO East Mids.xlsm"}]
[null,null,"RIIO ED1 Price Control Financial Model for the Annual Iteration Process that will take place by 30 November 2015-16"]
[]
[null,null,"DISCLAIMER: The purpose of this model is used to calculate Base Revenue (PU) at Final Proposals and MOD terms in subsequent years for Licensees on the basis of Financial Handbook and Licence conditions of the relevant Network Operator"]
[]
[null,null,"Note: Calculations of the regulatory financial position in financial statements are done on a notional basis, in line with the assumptions in this model and in Final Proposals. These may be different from the financial position stated in operator's accounts."]
[]
[null,"Model key"]
[]
[null,null,null,null,"Sample",null,"Information and interface"]
[null,null,null,null,"Sample",null,"Fixed input value"]
[null,null,null,null,"Sample",null,"Annual update input"]
[null,null,null,null,"Sample",null,"Input linked from annual update"]
[null,null,null,null,"Sample",null,"Notes and instructions"]
[null,null,null,null,"Sample",null,"Sheet or calculation included in FP Model"]
[]
[null,"Contents"]
[]
[null,null,null,null,"INTERFACE >"]
[null,null,null,null,"Cover",null,"Model key and content directory"]
[null,null,null,null,"UserInterface",null,"Model operation"]
[null,null,null,null,"TaxTrigger",null,"Tax trigger calculations"]
[null,null,null,null,"MOD",null,"MOD Summary"]
[null,null,null,null,"INPUT SELECTION >"]
[null,null,null,null,"Input",null,"Inputs for selected licensee"]
[null,null,null,null,"CALCULATION >"]
[null,null,null,null,"Totex",null,"Totex allowance and actuals"]
[null,null,null,null,"TIM",null,"Totex Incentive Mechanism and capitalisation"]
[null,null,null,null,"DARTs",null,"Direct Allowance Revenue Terms"]
[null,null,null,null,"Depn",null,"Gas distribution regulatory depreciation"]
[null,null,null,null,"Return&RAV",null,"RAV and return calculations"]
[null,null,null,null,"TaxPools",null,"Tax pools and capital allowances"]
[null,null,null,null,"Finance&Tax",null,"Net debt, equity issuance, financing costs and tax"]
[null,null,null,null,"Revenue",null,"Revenue and MOD"]
[null,null,null,null,"Revenue Profiling",null,"Revenue Profiling tool"]
[null,null,null,null,"OUTPUT >"]
[null,null,null,null,"LiveResults",null,"Results for selected company"]
[null,null,null,null,"SavedResults",null,"Saved results for all companies"]
[null,null,null,null,"FinancialStatements",null,"Financial statements for selected company"]
[null,null,null,null,"FinancialRatios",null,"Financial ratios for selected company"]
[null,null,null,null,"Bill impact",null,"Bill impact for all companies"]
[null,null,null,null,"RoRE",null,"Return on Regulatory Equity calculations for selected company"]
[null,null,null,null,"COMPANY SPECIFIC INPUT SHEETS >"]
[null,null,null,null,"ENWL"]
[null,null,null,null,"NPgN"]
[null,null,null,null,"NPgY"]
[null,null,null,null,"WMID"]
[null,null,null,null,"EMID"]
[null,null,null,null,"SWALES"]
[null,null,null,null,"SWEST"]
[null,null,null,null,"LPN"]
[null,null,null,null,"SPN"]
[null,null,null,null,"EPN"]
[null,null,null,null,"SPD"]
[null,null,null,null,"SPMW"]
[null,null,null,null,"SSEH"]
[null,null,null,null,"SSES"]

{"sheet":"UserInterface","index":1,"n_rows":91,"n_cols":7,"rows_kept":91,"cut":false,"hidden":false,"merged":[]}
["User Interface"]
[]
[null,"Model operation"]
[]
[null,null,"Scenario"]
[]
[null,null,null,null,"Scenario selection"]
[]
[null,null,null,null,"Selected Scenario:",null,{"$f":"INDEX(E79:E90,E91)","v":"OWN_Best (M1a)"}]
[]
[]
[null,null,"PCFM year t"]
[null,null,"Instruction: Use the following drop-down list to identify year t in the model. Year t is identified here by its end date."]
[]
[null,null,null,null,"Year t selection:"]
[]
[null,null,null,null,"Year t selected:",null,{"$f":"EOMONTH(42094,E75*12)","v":"2016-03-31"}]
[]
[null,null,"Active company"]
[null,null,"Instruction: Use the following drop-down list to select the active company in the model."]
[]
[null,null,null,null,"Company selection:"]
[]
[null,null,null,null,"Selected company:",null,{"$f":"INDEX(E49:E62, E63)","v":"WMID"}]
[]
[null,null,"Model state"]
[null,null,"Below shows the state of the model selected in the Tax Trigger sheet"]
[]
[null,null,null,null,"Selected model status:",null,{"$f":"INDEX(TaxTrigger!E30:E31,m_tax_trigger_state,1)","v":"Licence Model"}]
[]
[null,null,"Run model for all licensees"]
[null,null,"Instruction: Click on the left button to save results for the selected company only. Click the right button to save results for all."]
[null,null,"Note: Annual iterations must have been completed for all prior years before running the model to generate MOD."]
[null,null,"The macros save results and values required for future years which cannot be recreated once inputs are revised."]
[null,null,"Running the macro saves the output from year t's iteration for use in future iterations."]
[null,null,"Results for the selected company can be found on the \"LiveResults\" sheet and also on the \"SavedResults\" sheet once saved by a macro."]
[]
[]
[]
[]
[]
[null,"User selection lists"]
[null,"Note: The lists below drive the drop-down lists above."]
[null,"Using the drop-down lists above returns an integer in the \"cell link\" positioned below their \"source list.\""]
[null,"The number returned in the cell link corresponds to the position of the selected item in the source list."]
[null,"The company selection output is set as a \"named range.\" This gives a stable anchor point for the \"RunForAll\" macro to change the company."]
[]
[null,null,null,null,{"$f":"\"Source for ''\"&C19&\"'' drop-down list\"","v":"Source for ''Active company'' drop-down list"}]
[null,null,null,null,"ENWL"]
[null,null,null,null,"NPgN"]
[null,null,null,null,"NPgY"]
[null,null,null,null,"WMID"]
[null,null,null,null,"EMID"]
[null,null,null,null,"SWALES"]
[null,null,null,null,"SWEST"]
[null,null,null,null,"LPN"]
[null,null,null,null,"SPN"]
[null,null,null,null,"EPN"]
[null,null,null,null,"SPD"]
[null,null,null,null,"SPMW"]
[null,null,null,null,"SSEH"]
[null,null,null,null,"SSES"]
[null,null,null,null,4]
[null,null,null,null,"Adjacent named range: m_identity"]
[]
[null,null,null,null,{"$f":"\"Source for ''\"&C12&\"'' drop-down list\"","v":"Source for ''PCFM year t'' drop-down list"}]
[null,null,null,null,"2016-03-31"]
[null,null,null,null,"2017-03-31"]
[null,null,null,null,"2018-03-31"]
[null,null,null,null,"2019-03-31"]
[null,null,null,null,"2020-03-31"]
[null,null,null,null,"2021-03-31"]
[null,null,null,null,"2022-03-31"]
[null,null,null,null,"2023-03-31"]
[null,null,null,null,1]
[null,null,null,null,"Adjacent named range: m_PCFM_year_t"]
[]
[null,null,null,null,{"$f":"\"Source for ''\"&C5&\"'' drop-down list\"","v":"Source for ''Scenario'' drop-down list"}]
[null,null,null,null,"OWN_Best (M1a)"]
[null,null,null,null,"OWN_Base (M1b)"]
[null,null,null,null,"OWN_SM1 - DECC Scenario 3 equiv"]
[null,null,null,null,"OWN_SM2 - DECC Scenario 1 equiv"]
[null,null,null,null,"OWN_SM3 - DECC Scenario 2 equiv"]
[null,null,null,null,"OWN_SM4 - DNO Scenario 4 equiv"]
[null,null,null,null,"REFERENCE_Best (M1a)"]
[null,null,null,null,"REFERENCE_Base (M1b)"]
[null,null,null,null,"REFERENCE_SM1 - DECC Scenario 3 equiv"]
[null,null,null,null,"REFERENCE_SM2 - DECC Scenario 1 equiv"]
[null,null,null,null,"REFERENCE_SM3 - DECC Scenario 2 equiv"]
[null,null,null,null,"REFERENCE_SM4 - DNO Scenario 4 equiv"]
[null,null,null,null,1]

{"sheet":"Change Control","index":2,"n_rows":239,"n_cols":21,"rows_kept":239,"cut":false,"hidden":false,"merged":[[0,6,0,19]]}
[null,"Details of change",null,"Links to changes in model"]
[]
[]
[]
[]
[]
[]
[]
[]
[]
[]
[]
[]
[]
[]
[]
[]
[]
[]
[]
[]
[]
[]
[]
[]
[]
[]
[]
[]
[]
[]
[]
[]
[]
[]
[]
[]
[]
[]
[]
[]
[]
[]
[]
[]
[]
[]
[]
[]
[]
[]
[]
[]
[]
[]
[]
[]
[]
[]
[]
[]
[]
[]
[]
[]
[]
[]
[]
[]
[]
[]
[]
[]
[]
[]
[]
[]
[]
[]
[]
[]
[]
[]
[]
[]
[]
[]
[]
[]
[]
[]
[]
[]
[]
[]
[]
[]
[]
[]
[]
[]
[]
[]
[]
[]
[]
[]
[]
[]
[]
[]
[]
[]
[]
[]
[]
[]
[]
[]
[]
[]
[]
[]
[]
[]
[]
[]
[]
[]
[]
[]
[]
[]
[]
[]
[]
[]
[]
[]
[]
[]
[]
[]
[]
[]
[]
[]
[]
[]
[]
[]
[]
[]
[]
[]
[]
[]
[]
[]
[]
[]
[]
[]
[]
[]
[]
[]
[]
[]
[]
[]
[]
[]
[]
[]
[]
[]
[]
[]
[]
[]
[]
[]
[]
[]
[]
[]
[]
[]
[]
[]
[]
[]
[]
[]
[]
[]
[]
[]
[]
[]
[]
[]
[]
[]
[]
[]
[null,"Changes since previous model isssue"]
[null,"Update of 12/13 RPI"]
[]
[]
[]
[]
[]
[]
[]
[]
[]
[]
[]
[]
[null,null,null,null,null,null,null,null,null,null,null,null,null,null,null,null,null,null,null,null,{"$f":"U203-U4","v":0}]
[]
[null,"Removal of superfluous 'GD group ratio'"]
[]
[]
[null,"Increase of scenarios to pick up the Base/Best as well as OWN and REFERENCE"]
[]
[]
[null,"With all the scenarios in the model, the model will have only one set of tax pool allocations rather than one for each scenario"]
[]
[]
[null,"Inclusion of load related re-opener as a new blue box entry"]
[]
[]
[null,"Removal of two of the directly remenerated services. For the two replacements (Element of connection that is Sole Use funded and Connection projects UMC) the income has been set to equal the costs"]
[]
[]
[null,"Update of licencee view of totex figure for the purposes of additional income"]

{"sheet":"TaxTrigger","index":3,"n_rows":138,"n_cols":43,"rows_kept":138,"cut":false,"hidden":false,"merged":[]}
["Tax Trigger"]
[null,{"$f":"UserInterface!G24","v":"WMID"},null,null,null,null,null,null,null,null,null,null,null,null,null,null,null,null,null,null,null,null,null,null,null,null,null,null,null,null,null,null,null,null,null,"Done"]
[]
[]
[]
[]
[null,null,null,null,"Parameter",null,"Units",null,"Constant",null,null,null,null,null,null,null,null,null,null,null,null,null,null,null,null,null,null,null,null,null,null,null,null,null,null,"Annual values"]
[null,null,null,null,"PCFM year ending",null,null,null,{"$f":"UserInterface!$G$17","v":"2016-03-31"},null,"1991-03-31","1992-03-31","1993-03-31","1994-03-31","1995-03-31","1996-03-31","1997-03-31","1998-03-31","1999-03-31","2000-03-31","2001-03-31","2002-03-31","2003-03-31","2004-03-31","2005-03-31","2006-03-31","2007-03-31","2008-03-31","2009-03-31","2010-03-31","2011-03-31","2012-03-31","2013-03-31","2014-03-31","2015-03-31","2016-03-31","2017-03-31","2018-03-31","2019-03-31","2020-03-31","2021-03-31","2022-03-31","2023-03-31"]
[]
[null,"Tax trigger calculation"]
[]
[null,null,"Test operation"]
[null,null,"Instruction: To run the model as the Tax Trigger Tool, The model state selected below should be Tax Trigger Calculation"]
[null,null,"Clicking the macro button below runs the \"TaxTrigger\" macro, performing the Tax Trigger adjustment calculation for the selected licensee for year t."]
[null,null,"The output generated by the macro can be replicated manually using the following steps:"]
[null,null,"1. Clear any values from previous tests in the \"Test state output\" section below (named range \"m_saved_original_results\")"]
[null,null,"2. Set testing state to \"Licence Model\""]
[null,null,"3. Copy the cells marked as the \"m_calculated_tax\" named range and paste them at the named range \"m_saved_original_test.\""]
[null,null,"4. Set testing state to \"Tax Trigger Calculation\""]
[null,null,"Note: The Tax Trigger Tool is disabled if the \"Model state\" below reads \"Licence Model.\""]
[]
[]
[]
[]
[]
[null,null,null,null,"State selection"]
[]
[]
[null,null,null,null,"State options"]
[null,null,null,null,"Licence Model"]
[null,null,null,null,"Tax Trigger Calculation"]
[null,null,null,null,1]
[null,null,null,null,"Adjacent named range: m_tax_trigger_state"]
[]
[]
[]
[]
[null,null,null,null,"Run macro"]
[]
[]
[]
[]
[]
[null,null,"Tax calculation"]
[]
[null,null,null,null,"Tax Allowance when tax losses are not taken into account"]
[]
[null,null,null,null,"Profits attributable to corporation tax",null,"£m 12/13 prices",null,null,null,null,null,null,null,null,null,null,null,null,null,null,null,null,null,null,null,null,null,null,null,null,null,null,null,null,{"$f":"'Finance&Tax'!AJ169 * Input!$AG$54 / Input!AJ$54","v":72.164091220675388},{"$f":"'Finance&Tax'!AK169 * Input!$AG$54 / Input!AK$54","v":73.164666160316841},{"$f":"'Finance&Tax'!AL169 * Input!$AG$54 / Input!AL$54","v":72.258929288852727},{"$f":"'Finance&Tax'!AM169 * Input!$AG$54 / Input!AM$54","v":73.323498537280543},{"$f":"'Finance&Tax'!AN169 * Input!$AG$54 / Input!AN$54","v":73.207955003478347},{"$f":"'Finance&Tax'!AO169 * Input!$AG$54 / Input!AO$54","v":73.30348729879357},{"$f":"'Finance&Tax'!AP169 * Input!$AG$54 / Input!AP$54","v":56.844617164168376},{"$f":"'Finance&Tax'!AQ169 * Input!$AG$54 / Input!AQ$54","v":54.851814904736671}]
[null,null,null,null,"Corporation tax rate",null,null,null,null,null,null,null,null,null,null,null,null,null,null,null,null,null,null,null,null,null,null,null,null,null,null,null,null,null,null,{"$f":"'Finance&Tax'!AJ186","v":0.2},{"$f":"'Finance&Tax'!AK186","v":0.2},{"$f":"'Finance&Tax'!AL186","v":0.2},{"$f":"'Finance&Tax'!AM186","v":0.2},{"$f":"'Finance&Tax'!AN186","v":0.2},{"$f":"'Finance&Tax'!AO186","v":0.2},{"$f":"'Finance&Tax'!AP186","v":0.2},{"$f":"'Finance&Tax'!AQ186","v":0.2}]
[null,null,null,null,"Corporation tax charge beforre losses",null,null,null,null,null,null,null,null,null,null,null,null,null,null,null,null,null,null,null,null,null,null,null,null,null,null,null,null,null,null,{"$f":"AJ49*AJ48","v":14.432818244135078},{"$f":"AK49*AK48","v":14.632933232063369},14.451785857770545,14.664699707456109,14.641591000695669,14.660697459758715,11.368923432833675,10.970362980947336]
[]
[]
[]
[null,null,null,null,"Tax allowance without taking into account losses",null,null,null,null,null,null,null,null,null,null,null,null,null,null,null,null,null,null,null,null,null,null,null,null,null,null,null,null,null,null,{"$f":"AJ50","v":14.432818244135078},{"$f":"AK50","v":14.632933232063369},14.451785857770545,14.664699707456109,14.641591000695669,14.660697459758715,11.368923432833675,10.970362980947336]
[]
[null,null,null,null,null,null,null,null,"Instruction"]
[null,null,null,null,"Tax allowance before tax trigger",null,"£m 12/13 prices",null,null,null,null,null,null,null,null,null,null,null,null,null,null,null,null,null,null,null,null,null,null,null,null,null,null,null,null,{"$f":"AJ54","v":14.432818244135078},{"$f":"AK54","v":14.632933232063369},14.451785857770545,14.664699707456109,14.641591000695669,14.660697459758715,11.368923432833675,10.970362980947336]
[null,null,null,null,"B event value",null,"£m 12/13 prices",null,null,null,null,null,null,null,null,null,null,null,null,null,null,null,null,null,null,null,null,null,null,null,null,null,null,null,null,{"$f":"AJ136","v":0},{"$f":"AK136","v":0},0,0,0,0,0,0]
[null,null,null,null,"Threshold value adjustment",null,"£m 12/13 prices",null,null,null,null,null,null,null,null,null,null,null,null,null,null,null,null,null,null,null,null,null,null,null,null,null,null,null,null,{"$f":"AJ87","v":0},{"$f":"AK87","v":0},0,0,0,0,0,0]
[null,null,null,null,"Tax allowance",null,"£m 12/13 prices",null,{"$f":"IF(m_tax_trigger_state = 1, \"Copy cells -->\", \"-\")","v":"Copy cells -->"},null,null,null,null,null,null,null,null,null,null,null,null,null,null,null,null,null,null,null,null,null,null,null,null,null,null,{"$f":"SUM(AJ57:AJ59)","v":14.432818244135078},14.632933232063369,14.451785857770545,14.664699707456109,14.641591000695669,14.660697459758715,11.368923432833675,10.970362980947336]
[null,null,null,null,null,null,null,null,null,null,null,null,null,null,null,null,null,null,null,null,null,null,null,null,null,null,null,null,null,null,null,null,null,null,null,"Adjacent named range: m_calculated_tax"]
[null,null,"Test state output"]
[null,null,"Note: The formula determines whether the recalculated tax is above or below the threshold and sets the adjustment accordingly"]
[]
[null,null,null,null,null,null,null,null,"Instruction"]
[null,null,null,null,"Value with original settings",null,"£m 12/13 prices",null,{"$f":"IF( m_tax_trigger_state = 1, \"Paste cells -->\",\"-\")","v":"Paste cells -->"},null,null,null,null,null,null,null,null,null,null,null,null,null,null,null,null,null,null,null,null,null,null,null,null,null,"m_tax_trigger_results"]
[null,null,null,null,null,null,null,null,null,null,null,null,null,null,null,null,null,null,null,null,null,null,null,null,null,null,null,null,null,null,null,null,null,null,null,"Named ranges above: m_saved_original_test"]
[null,null,null,null,"Value with new settings and threshold adjustment",null,"£m 12/13 prices",null,null,null,null,null,null,null,null,null,null,null,null,null,null,null,null,null,null,null,null,null,null,null,null,null,null,null,null,{"$f":"AJ60","v":14.432818244135078},{"$f":"AK60","v":14.632933232063369},14.451785857770545,14.664699707456109,14.641591000695669,14.660697459758715,11.368923432833675,10.970362980947336]
[]
[null,null,"Result and output"]
[null,null,"Note: Once the test is complete, the \"Tax Trigger adjustment\" below can be taken from below and inputted to the PCFM set to run as the Licence Model, rather than the Tax Trigger Tool."]
[]
[null,null,null,null,"Tax trigger adjustment",null,"£m 12/13 prices",null,null,null,null,null,null,null,null,null,null,null,null,null,null,null,null,null,null,null,null,null,null,null,null,null,null,null,null,{"$f":"IF(m_tax_trigger_state=2,IF(ABS(AJ68-AJ66)> ABS(AJ87), AJ68 - AJ66, 0),0)","v":0},0,0,0,0,0,0,0]
[]
[null,"Tax trigger parameters"]
[null,"Instruction: Enter values in the yellow cells below for use in the Tax Trigger test."]
[null,"Note: Flags are used throughout to indicate whether the original or Tax Trigger value is being used. The live values below are exported for use throughout the model."]
[]
[null,null,"Active policy"]
[]
[null,null,null,null,"Tax trigger tax settings are used",null,"flag",null,null,null,null,null,null,null,null,null,null,null,null,null,null,null,null,null,null,null,null,null,null,null,null,null,null,null,null,{"$f":"IF(AND(AJ$8 <= $I8, m_tax_trigger_state = 2), TRUE, FALSE)","v":false},false,false,false,false,false,false,false]
[]
[null,null,"Threshold"]
[]
[null,null,null,null,"Threshold value",null,"£m 12/13 prices"]
[]
[null,null,null,null,"Threshold value applied",null,"£m 12/13 prices",null,null,null,null,null,null,null,null,null,null,null,null,null,null,null,null,null,null,null,null,null,null,null,null,null,null,null,null,{"$f":"IF(OR(AJ57 = AJ66, AJ66 = \"\"), 0, IF(AJ66 < AJ57, -AJ85, +AJ85))","v":0},{"$f":"IF(OR(AK57 = AK66, AK66 = \"\"), 0, IF(AK66 < AK57, -AK85, +AK85))","v":0},0,0,0,0,0,0]
[]
[null,null,"Corporation tax rate"]
[]
[null,null,null,null,"Active",null,"text",null,null,null,null,null,null,null,null,null,null,null,null,null,null,null,null,null,null,null,null,null,null,null,null,null,null,null,null,{"$f":"AJ$81 = FALSE()","v":true},true,true,true,true,true,true,true]
[null,null,null,null,"RIIO",null,"%",null,null,">",null,null,null,null,null,null,null,null,null,null,null,null,null,null,null,null,null,null,null,null,null,null,null,null,null,{"$f":"Input!AJ312","v":0.2},{"$f":"Input!AK312","v":0.2},{"$f":"Input!AL312","v":0.2},{"$f":"Input!AM312","v":0.2},{"$f":"Input!AN312","v":0.2},{"$f":"Input!AO312","v":0.2},{"$f":"Input!AP312","v":0.2},{"$f":"Input!AQ312","v":0.2}]
[]
[null,null,null,null,"Active",null,"text",null,null,null,null,null,null,null,null,null,null,null,null,null,null,null,null,null,null,null,null,null,null,null,null,null,null,null,null,{"$f":"AJ$81","v":false},false,false,false,false,false,false,false]
[null,null,null,null,"Tax trigger",null,"%",null,null,null,null,null,null,null,null,null,null,null,null,null,null,null,null,null,null,null,null,null,null,null,null,null,null,null,null,{"$f":"AJ92","v":0.2},0.2,0.2,0.2,0.2,0.2,0.2,0.2]
[]
[null,null,null,null,"Applied",null,"%",null,null,">",null,null,null,null,null,null,null,null,null,null,null,null,null,null,null,null,null,null,null,null,null,null,null,null,null,{"$f":"(AJ91 * AJ92) + (AJ94 * AJ95)","v":0.2},{"$f":"(AK91 * AK92) + (AK94 * AK95)","v":0.2},0.2,0.2,0.2,0.2,0.2,0.2]
[]
[null,null,"Capital allowance rate"]
[]
[null,null,null,"General pool"]
[]
[null,null,null,null,"Active",null,"text",null,null,null,null,null,null,null,null,null,null,null,null,null,null,null,null,null,null,null,null,null,null,null,null,null,null,null,null,{"$f":"AJ$81 = FALSE()","v":true},true,true,true,true,true,true,true]
[null,null,null,null,"RIIO",null,"%",null,null,null,null,null,null,null,null,null,null,null,null,null,null,null,null,null,null,null,null,null,null,null,null,null,null,null,null,{"$f":"Input!AJ314","v":0.18000000000000002},{"$f":"Input!AK314","v":0.18000000000000002},{"$f":"Input!AL314","v":0.18000000000000002},{"$f":"Input!AM314","v":0.18000000000000002},{"$f":"Input!AN314","v":0.18000000000000002},{"$f":"Input!AO314","v":0.18000000000000002},{"$f":"Input!AP314","v":0.18000000000000002},{"$f":"Input!AQ314","v":0.18000000000000002}]
[]
[null,null,null,null,"Active",null,"text",null,null,null,null,null,null,null,null,null,null,null,null,null,null,null,null,null,null,null,null,null,null,null,null,null,null,null,null,{"$f":"AJ$81","v":false},false,false,false,false,false,false,false]
[null,null,null,null,"Tax trigger",null,"%",null,null,null,null,null,null,null,null,null,null,null,null,null,null,null,null,null,null,null,null,null,null,null,null,null,null,null,null,{"$f":"AJ104","v":0.18000000000000002},{"$f":"AK104","v":0.18000000000000002},0.18000000000000002,0.18000000000000002,0.18000000000000002,0.18000000000000002,0.18000000000000002,0.18000000000000002]
[]
[null,null,null,null,"Applied",null,"%",null,null,null,null,null,null,null,null,null,null,null,null,null,null,null,null,null,null,null,null,null,null,null,null,null,null,null,null,{"$f":"(AJ103 * AJ104) + (AJ106 * AJ107)","v":0.18000000000000002},0.18000000000000002,0.18000000000000002,0.18000000000000002,0.18000000000000002,0.18000000000000002,0.18000000000000002,0.18000000000000002]
[]
[null,null,null,"Special Rate pool"]
[]
[null,null,null,null,"Active",null,"text",null,null,null,null,null,null,null,null,null,null,null,null,null,null,null,null,null,null,null,null,null,null,null,null,null,null,null,null,{"$f":"AJ$81 = FALSE()","v":true},true,true,true,true,true,true,true]
[null,null,null,null,"RIIO",null,"%",null,null,">",null,null,null,null,null,null,null,null,null,null,null,null,null,null,null,null,null,null,null,null,null,null,null,null,null,{"$f":"Input!AJ315","v":0.08},{"$f":"Input!AK315","v":0.08},{"$f":"Input!AL315","v":0.08},{"$f":"Input!AM315","v":0.08},{"$f":"Input!AN315","v":0.08},{"$f":"Input!AO315","v":0.08},{"$f":"Input!AP315","v":0.08},{"$f":"Input!AQ315","v":0.08}]
[]
[null,null,null,null,"Active",null,"text",null,null,null,null,null,null,null,null,null,null,null,null,null,null,null,null,null,null,null,null,null,null,null,null,null,null,null,null,{"$f":"AJ$81","v":false},false,false,false,false,false,false,false]
[null,null,null,null,"Tax trigger",null,"%",null,null,null,null,null,null,null,null,null,null,null,null,null,null,null,null,null,null,null,null,null,null,null,null,null,null,null,null,{"$f":"AJ114","v":0.08},{"$f":"AK114","v":0.08},0.08,0.08,0.08,0.08,0.08,0.08]
[]
[null,null,null,null,"Applied",null,"%",null,null,">",null,null,null,null,null,null,null,null,null,null,null,null,null,null,null,null,null,null,null,null,null,null,null,null,null,{"$f":"(AJ113 * AJ114) + (AJ116 * AJ117)","v":0.08},0.08,0.08,0.08,0.08,0.08,0.08,0.08]
[]
[null,null,null,"Deferred revenue writing down allowance rate"]
[]
[null,null,null,null,"Active",null,"text",null,null,null,null,null,null,null,null,null,null,null,null,null,null,null,null,null,null,null,null,null,null,null,null,null,null,null,null,{"$f":"AJ$81 = FALSE()","v":true},true,true,true,true,true,true,true]
[null,null,null,null,"RIIO",null,"%",null,null,">",null,null,null,null,null,null,null,null,null,null,null,null,null,null,null,null,null,null,null,null,null,null,null,null,null,{"$f":"Input!AJ316","v":2.2200000000000001E-2},{"$f":"Input!AK316","v":2.2200000000000001E-2},{"$f":"Input!AL316","v":2.2200000000000001E-2},{"$f":"Input!AM316","v":2.2200000000000001E-2},{"$f":"Input!AN316","v":2.2200000000000001E-2},{"$f":"Input!AO316","v":2.2200000000000001E-2},{"$f":"Input!AP316","v":2.2200000000000001E-2},{"$f":"Input!AQ316","v":2.2200000000000001E-2}]
[]
[null,null,null,null,"Active",null,"text",null,null,null,null,null,null,null,null,null,null,null,null,null,null,null,null,null,null,null,null,null,null,null,null,null,null,null,null,{"$f":"AJ$81","v":false},false,false,false,false,false,false,false]
[null,null,null,null,"Tax trigger",null,"%",null,null,null,null,null,null,null,null,null,null,null,null,null,null,null,null,null,null,null,null,null,null,null,null,null,null,null,null,{"$f":"AJ124","v":2.2200000000000001E-2},{"$f":"AK124","v":2.2200000000000001E-2},2.2200000000000001E-2,2.2200000000000001E-2,2.2200000000000001E-2,2.2200000000000001E-2,2.2200000000000001E-2,2.2200000000000001E-2]
[]
[null,null,null,null,"Applied",null,"%",null,null,">",null,null,null,null,null,null,null,null,null,null,null,null,null,null,null,null,null,null,null,null,null,null,null,null,null,{"$f":"(AJ123 * AJ124) + (AJ126 * AJ127)","v":2.2200000000000001E-2},2.2200000000000001E-2,2.2200000000000001E-2,2.2200000000000001E-2,2.2200000000000001E-2,2.2200000000000001E-2,2.2200000000000001E-2,2.2200000000000001E-2]
[]
[null,null,"B event value"]
[]
[null,null,null,null,"Active",null,"text",null,null,null,null,null,null,null,null,null,null,null,null,null,null,null,null,null,null,null,null,null,null,null,null,null,null,null,null,{"$f":"AJ$81","v":false},false,false,false,false,false,false,false]
[null,null,null,null,"Tax trigger",null,"£m 12/13 prices",null,null,null,null,null,null,null,null,null,null,null,null,null,null,null,null,null,null,null,null,null,null,null,null,null,null,null,null,0,0,0,0,0,0,0,0]
[]
[null,null,null,null,"Applied",null,"£m 12/13 prices",null,null,null,null,null,null,null,null,null,null,null,null,null,null,null,null,null,null,null,null,null,null,null,null,null,null,null,null,{"$f":"AJ133 * AJ134","v":0},{"$f":"AK133 * AK134","v":0},0,0,0,0,0,0]
[]
[null,"End of sheet"]

{"sheet":"MOD","index":4,"n_rows":13,"n_cols":43,"rows_kept":13,"cut":false,"hidden":false,"merged":[]}
["MOD"]
[null,{"$f":"UserInterface!G24","v":"WMID"},null,null,null,null,null,null,null,null,null,null,null,null,null,null,null,null,null,null,null,null,null,null,null,null,null,null,null,null,null,null,null,null,null,"Done"]
[]
[]
[]
[null,null,null,null,"Parameter",null,"Units",null,"Constant",null,null,null,null,null,null,null,null,null,null,null,null,null,null,null,null,null,null,null,null,null,null,null,null,null,null,"Annual values"]
[null,null,null,null,"PCFM year ending",null,null,null,{"$f":"UserInterface!$G$17","v":"2016-03-31"},null,"1991-03-31","1992-03-31","1993-03-31","1994-03-31","1995-03-31","1996-03-31","1997-03-31","1998-03-31","1999-03-31","2000-03-31","2001-03-31","2002-03-31","2003-03-31","2004-03-31","2005-03-31","2006-03-31","2007-03-31","2008-03-31","2009-03-31","2010-03-31","2011-03-31","2012-03-31","2013-03-31","2014-03-31","2015-03-31","2016-03-31","2017-03-31","2018-03-31","2019-03-31","2020-03-31","2021-03-31","2022-03-31","2023-03-31"]
[]
[null,null,null,null,{"$f":"UserInterface!E17","v":"Year t selected:"},null,{"$f":"UserInterface!G17","v":"2016-03-31"}]
[]
[null,null,null,null,{"$f":"Revenue!E67","v":"Final Proposals base revenue"},null,null,null,null,null,null,null,null,null,null,null,null,null,null,null,null,null,null,null,null,null,null,null,null,null,null,null,null,null,null,{"$f":"Revenue!AJ67","v":392.96017976540372},{"$f":"Revenue!AK67","v":398.95588996468462},{"$f":"Revenue!AL67","v":403.28151776590926},{"$f":"Revenue!AM67","v":412.62414983154997},{"$f":"Revenue!AN67","v":423.0888053087358},{"$f":"Revenue!AO67","v":427.98457595876357},{"$f":"Revenue!AP67","v":409.10795307184497},{"$f":"Revenue!AQ67","v":411.11517675259324}]
[null,null,null,null,{"$f":"Revenue!E68","v":"MOD"},null,null,null,null,null,null,null,null,null,null,null,null,null,null,null,null,null,null,null,null,null,null,null,null,null,null,null,null,null,null,null,{"$f":"Revenue!AK68","v":0},{"$f":"Revenue!AL68","v":0},{"$f":"Revenue!AM68","v":0},{"$f":"Revenue!AN68","v":0},{"$f":"Revenue!AO68","v":0},{"$f":"Revenue!AP68","v":0},{"$f":"Revenue!AQ68","v":0}]
[null,null,null,null,{"$f":"Revenue!E69","v":"Base revenue"},null,null,null,null,null,null,null,null,null,null,null,null,null,null,null,null,null,null,null,null,null,null,null,null,null,null,null,null,null,null,{"$f":"Revenue!AJ69","v":392.96017976540372},{"$f":"Revenue!AK69","v":398.95588996468462},{"$f":"Revenue!AL69","v":403.28151776590926},{"$f":"Revenue!AM69","v":412.62414983154997},{"$f":"Revenue!AN69","v":423.0888053087358},{"$f":"Revenue!AO69","v":427.98457595876357},{"$f":"Revenue!AP69","v":409.10795307184497},{"$f":"Revenue!AQ69","v":411.11517675259324}]

{"sheet":"Input","index":5,"n_rows":423,"n_cols":43,"rows_kept":423,"cut":false,"hidden":false,"merged":[]}
["Input"]
[null,{"$f":"UserInterface!G24","v":"WMID"},null,null,null,null,null,null,null,null,null,null,null,null,null,null,null,null,null,null,null,null,null,null,null,null,null,null,null,null,null,null,null,null,null,"Done"]
[]
[]
[]
[null,null,null,null,"Parameter","Licence condition","Units","Term","Constant",null,null,null,null,null,null,null,null,null,null,null,null,null,null,null,null,null,null,null,null,null,null,null,null,null,null,"Annual values"]
[null,null,null,null,"PCFM year ending",{"$f":"Cover!C3","v":"LiMo ED C1.93b_WPD_DNO East Mids.xlsm"},null,null,{"$f":"UserInterface!$G$17","v":"2016-03-31"},null,"1991-03-31","1992-03-31","1993-03-31","1994-03-31","1995-03-31","1996-03-31","1997-03-31","1998-03-31","1999-03-31","2000-03-31","2001-03-31","2002-03-31","2003-03-31","2004-03-31","2005-03-31","2006-03-31","2007-03-31","2008-03-31","2009-03-31","2010-03-31","2011-03-31","2012-03-31","2013-03-31","2014-03-31","2015-03-31","2016-03-31","2017-03-31","2018-03-31","2019-03-31","2020-03-31","2021-03-31","2022-03-31","2023-03-31"]
[]
[null,"PCFM Variable Values Table"]
[]
[null,null,null,null,"Allowed percentage cost of debt","XX","annual real %","YY",null,null,null,null,null,null,null,null,null,null,null,null,null,null,null,null,null,null,null,null,null,null,null,null,null,null,null,{"$f":"CHOOSE(m_identity,ENWL!AJ11, NPgN!AJ11, NPgY!AJ11, WMID!AJ11, EMID!AJ11, SWALES!AJ11, SWEST!AJ11, LPN!AJ11,SPN!AJ11,EPN!AJ11,SPD!AJ11,SPMW!AJ11,SSEH!AJ11,SSES!AJ11)","v":2.92E-2},{"$f":"CHOOSE(m_identity,ENWL!AK11, NPgN!AK11, NPgY!AK11, WMID!AK11, EMID!AK11, SWALES!AK11, SWEST!AK11, LPN!AK11,SPN!AK11,EPN!AK11,SPD!AK11,SPMW!AK11,SSEH!AK11,SSES!AK11)","v":2.92E-2},{"$f":"CHOOSE(m_identity,ENWL!AL11, NPgN!AL11, NPgY!AL11, WMID!AL11, EMID!AL11, SWALES!AL11, SWEST!AL11, LPN!AL11,SPN!AL11,EPN!AL11,SPD!AL11,SPMW!AL11,SSEH!AL11,SSES!AL11)","v":2.92E-2},{"$f":"CHOOSE(m_identity,ENWL!AM11, NPgN!AM11, NPgY!AM11, WMID!AM11, EMID!AM11, SWALES!AM11, SWEST!AM11, LPN!AM11,SPN!AM11,EPN!AM11,SPD!AM11,SPMW!AM11,SSEH!AM11,SSES!AM11)","v":2.92E-2},{"$f":"CHOOSE(m_identity,ENWL!AN11, NPgN!AN11, NPgY!AN11, WMID!AN11, EMID!AN11, SWALES!AN11, SWEST!AN11, LPN!AN11,SPN!AN11,EPN!AN11,SPD!AN11,SPMW!AN11,SSEH!AN11,SSES!AN11)","v":2.92E-2},{"$f":"CHOOSE(m_identity,ENWL!AO11, NPgN!AO11, NPgY!AO11, WMID!AO11, EMID!AO11, SWALES!AO11, SWEST!AO11, LPN!AO11,SPN!AO11,EPN!AO11,SPD!AO11,SPMW!AO11,SSEH!AO11,SSES!AO11)","v":2.92E-2},{"$f":"CHOOSE(m_identity,ENWL!AP11, NPgN!AP11, NPgY!AP11, WMID!AP11, EMID!AP11, SWALES!AP11, SWEST!AP11, LPN!AP11,SPN!AP11,EPN!AP11,SPD!AP11,SPMW!AP11,SSEH!AP11,SSES!AP11)","v":2.92E-2},{"$f":"CHOOSE(m_identity,ENWL!AQ11, NPgN!AQ11, NPgY!AQ11, WMID!AQ11, EMID!AQ11, SWALES!AQ11, SWEST!AQ11, LPN!AQ11,SPN!AQ11,EPN!AQ11,SPD!AQ11,SPMW!AQ11,SSEH!AQ11,SSES!AQ11)","v":2.92E-2}]
[null,null,null,null,"Actual load related capex","XX","£m 12/13 prices","YY",null,null,null,null,null,null,null,null,null,null,null,null,null,null,null,null,null,null,null,null,null,null,null,null,null,null,null,{"$f":"CHOOSE(m_identity,ENWL!AJ12, NPgN!AJ12, NPgY!AJ12, WMID!AJ12, EMID!AJ12, SWALES!AJ12, SWEST!AJ12, LPN!AJ12,SPN!AJ12,EPN!AJ12,SPD!AJ12,SPMW!AJ12,SSEH!AJ12,SSES!AJ12)","v":0},{"$f":"CHOOSE(m_identity,ENWL!AK12, NPgN!AK12, NPgY!AK12, WMID!AK12, EMID!AK12, SWALES!AK12, SWEST!AK12, LPN!AK12,SPN!AK12,EPN!AK12,SPD!AK12,SPMW!AK12,SSEH!AK12,SSES!AK12)","v":0},{"$f":"CHOOSE(m_identity,ENWL!AL12, NPgN!AL12, NPgY!AL12, WMID!AL12, EMID!AL12, SWALES!AL12, SWEST!AL12, LPN!AL12,SPN!AL12,EPN!AL12,SPD!AL12,SPMW!AL12,SSEH!AL12,SSES!AL12)","v":0},{"$f":"CHOOSE(m_identity,ENWL!AM12, NPgN!AM12, NPgY!AM12, WMID!AM12, EMID!AM12, SWALES!AM12, SWEST!AM12, LPN!AM12,SPN!AM12,EPN!AM12,SPD!AM12,SPMW!AM12,SSEH!AM12,SSES!AM12)","v":0},{"$f":"CHOOSE(m_identity,ENWL!AN12, NPgN!AN12, NPgY!AN12, WMID!AN12, EMID!AN12, SWALES!AN12, SWEST!AN12, LPN!AN12,SPN!AN12,EPN!AN12,SPD!AN12,SPMW!AN12,SSEH!AN12,SSES!AN12)","v":0},{"$f":"CHOOSE(m_identity,ENWL!AO12, NPgN!AO12, NPgY!AO12, WMID!AO12, EMID!AO12, SWALES!AO12, SWEST!AO12, LPN!AO12,SPN!AO12,EPN!AO12,SPD!AO12,SPMW!AO12,SSEH!AO12,SSES!AO12)","v":0},{"$f":"CHOOSE(m_identity,ENWL!AP12, NPgN!AP12, NPgY!AP12, WMID!AP12, EMID!AP12, SWALES!AP12, SWEST!AP12, LPN!AP12,SPN!AP12,EPN!AP12,SPD!AP12,SPMW!AP12,SSEH!AP12,SSES!AP12)","v":0},{"$f":"CHOOSE(m_identity,ENWL!AQ12, NPgN!AQ12, NPgY!AQ12, WMID!AQ12, EMID!AQ12, SWALES!AQ12, SWEST!AQ12, LPN!AQ12,SPN!AQ12,EPN!AQ12,SPD!AQ12,SPMW!AQ12,SSEH!AQ12,SSES!AQ12)","v":0}]
[null,null,null,null,"Actual non-load related capex - asset replacement","XX","£m 12/13 prices","YY",null,null,null,null,null,null,null,null,null,null,null,null,null,null,null,null,null,null,null,null,null,null,null,null,null,null,null,{"$f":"CHOOSE(m_identity,ENWL!AJ13, NPgN!AJ13, NPgY!AJ13, WMID!AJ13, EMID!AJ13, SWALES!AJ13, SWEST!AJ13, LPN!AJ13,SPN!AJ13,EPN!AJ13,SPD!AJ13,SPMW!AJ13,SSEH!AJ13,SSES!AJ13)","v":0},{"$f":"CHOOSE(m_identity,ENWL!AK13, NPgN!AK13, NPgY!AK13, WMID!AK13, EMID!AK13, SWALES!AK13, SWEST!AK13, LPN!AK13,SPN!AK13,EPN!AK13,SPD!AK13,SPMW!AK13,SSEH!AK13,SSES!AK13)","v":0},{"$f":"CHOOSE(m_identity,ENWL!AL13, NPgN!AL13, NPgY!AL13, WMID!AL13, EMID!AL13, SWALES!AL13, SWEST!AL13, LPN!AL13,SPN!AL13,EPN!AL13,SPD!AL13,SPMW!AL13,SSEH!AL13,SSES!AL13)","v":0},{"$f":"CHOOSE(m_identity,ENWL!AM13, NPgN!AM13, NPgY!AM13, WMID!AM13, EMID!AM13, SWALES!AM13, SWEST!AM13, LPN!AM13,SPN!AM13,EPN!AM13,SPD!AM13,SPMW!AM13,SSEH!AM13,SSES!AM13)","v":0},{"$f":"CHOOSE(m_identity,ENWL!AN13, NPgN!AN13, NPgY!AN13, WMID!AN13, EMID!AN13, SWALES!AN13, SWEST!AN13, LPN!AN13,SPN!AN13,EPN!AN13,SPD!AN13,SPMW!AN13,SSEH!AN13,SSES!AN13)","v":0},{"$f":"CHOOSE(m_identity,ENWL!AO13, NPgN!AO13, NPgY!AO13, WMID!AO13, EMID!AO13, SWALES!AO13, SWEST!AO13, LPN!AO13,SPN!AO13,EPN!AO13,SPD!AO13,SPMW!AO13,SSEH!AO13,SSES!AO13)","v":0},{"$f":"CHOOSE(m_identity,ENWL!AP13, NPgN!AP13, NPgY!AP13, WMID!AP13, EMID!AP13, SWALES!AP13, SWEST!AP13, LPN!AP13,SPN!AP13,EPN!AP13,SPD!AP13,SPMW!AP13,SSEH!AP13,SSES!AP13)","v":0},{"$f":"CHOOSE(m_identity,ENWL!AQ13, NPgN!AQ13, NPgY!AQ13, WMID!AQ13, EMID!AQ13, SWALES!AQ13, SWEST!AQ13, LPN!AQ13,SPN!AQ13,EPN!AQ13,SPD!AQ13,SPMW!AQ13,SSEH!AQ13,SSES!AQ13)","v":0}]
[null,null,null,null,"Actual non-load related capex - other","XX","£m 12/13 prices","YY",null,null,null,null,null,null,null,null,null,null,null,null,null,null,null,null,null,null,null,null,null,null,null,null,null,null,null,{"$f":"CHOOSE(m_identity,ENWL!AJ14, NPgN!AJ14, NPgY!AJ14, WMID!AJ14, EMID!AJ14, SWALES!AJ14, SWEST!AJ14, LPN!AJ14,SPN!AJ14,EPN!AJ14,SPD!AJ14,SPMW!AJ14,SSEH!AJ14,SSES!AJ14)","v":0},{"$f":"CHOOSE(m_identity,ENWL!AK14, NPgN!AK14, NPgY!AK14, WMID!AK14, EMID!AK14, SWALES!AK14, SWEST!AK14, LPN!AK14,SPN!AK14,EPN!AK14,SPD!AK14,SPMW!AK14,SSEH!AK14,SSES!AK14)","v":0},{"$f":"CHOOSE(m_identity,ENWL!AL14, NPgN!AL14, NPgY!AL14, WMID!AL14, EMID!AL14, SWALES!AL14, SWEST!AL14, LPN!AL14,SPN!AL14,EPN!AL14,SPD!AL14,SPMW!AL14,SSEH!AL14,SSES!AL14)","v":0},{"$f":"CHOOSE(m_identity,ENWL!AM14, NPgN!AM14, NPgY!AM14, WMID!AM14, EMID!AM14, SWALES!AM14, SWEST!AM14, LPN!AM14,SPN!AM14,EPN!AM14,SPD!AM14,SPMW!AM14,SSEH!AM14,SSES!AM14)","v":0},{"$f":"CHOOSE(m_identity,ENWL!AN14, NPgN!AN14, NPgY!AN14, WMID!AN14, EMID!AN14, SWALES!AN14, SWEST!AN14, LPN!AN14,SPN!AN14,EPN!AN14,SPD!AN14,SPMW!AN14,SSEH!AN14,SSES!AN14)","v":0},{"$f":"CHOOSE(m_identity,ENWL!AO14, NPgN!AO14, NPgY!AO14, WMID!AO14, EMID!AO14, SWALES!AO14, SWEST!AO14, LPN!AO14,SPN!AO14,EPN!AO14,SPD!AO14,SPMW!AO14,SSEH!AO14,SSES!AO14)","v":0},{"$f":"CHOOSE(m_identity,ENWL!AP14, NPgN!AP14, NPgY!AP14, WMID!AP14, EMID!AP14, SWALES!AP14, SWEST!AP14, LPN!AP14,SPN!AP14,EPN!AP14,SPD!AP14,SPMW!AP14,SSEH!AP14,SSES!AP14)","v":0},{"$f":"CHOOSE(m_identity,ENWL!AQ14, NPgN!AQ14, NPgY!AQ14, WMID!AQ14, EMID!AQ14, SWALES!AQ14, SWEST!AQ14, LPN!AQ14,SPN!AQ14,EPN!AQ14,SPD!AQ14,SPMW!AQ14,SSEH!AQ14,SSES!AQ14)","v":0}]
[null,null,null,null,"Actual faults","XX","£m 12/13 prices","YY",null,null,null,null,null,null,null,null,null,null,null,null,null,null,null,null,null,null,null,null,null,null,null,null,null,null,null,{"$f":"CHOOSE(m_identity,ENWL!AJ15, NPgN!AJ15, NPgY!AJ15, WMID!AJ15, EMID!AJ15, SWALES!AJ15, SWEST!AJ15, LPN!AJ15,SPN!AJ15,EPN!AJ15,SPD!AJ15,SPMW!AJ15,SSEH!AJ15,SSES!AJ15)","v":0},{"$f":"CHOOSE(m_identity,ENWL!AK15, NPgN!AK15, NPgY!AK15, WMID!AK15, EMID!AK15, SWALES!AK15, SWEST!AK15, LPN!AK15,SPN!AK15,EPN!AK15,SPD!AK15,SPMW!AK15,SSEH!AK15,SSES!AK15)","v":0},{"$f":"CHOOSE(m_identity,ENWL!AL15, NPgN!AL15, NPgY!AL15, WMID!AL15, EMID!AL15, SWALES!AL15, SWEST!AL15, LPN!AL15,SPN!AL15,EPN!AL15,SPD!AL15,SPMW!AL15,SSEH!AL15,SSES!AL15)","v":0},{"$f":"CHOOSE(m_identity,ENWL!AM15, NPgN!AM15, NPgY!AM15, WMID!AM15, EMID!AM15, SWALES!AM15, SWEST!AM15, LPN!AM15,SPN!AM15,EPN!AM15,SPD!AM15,SPMW!AM15,SSEH!AM15,SSES!AM15)","v":0},{"$f":"CHOOSE(m_identity,ENWL!AN15, NPgN!AN15, NPgY!AN15, WMID!AN15, EMID!AN15, SWALES!AN15, SWEST!AN15, LPN!AN15,SPN!AN15,EPN!AN15,SPD!AN15,SPMW!AN15,SSEH!AN15,SSES!AN15)","v":0},{"$f":"CHOOSE(m_identity,ENWL!AO15, NPgN!AO15, NPgY!AO15, WMID!AO15, EMID!AO15, SWALES!AO15, SWEST!AO15, LPN!AO15,SPN!AO15,EPN!AO15,SPD!AO15,SPMW!AO15,SSEH!AO15,SSES!AO15)","v":0},{"$f":"CHOOSE(m_identity,ENWL!AP15, NPgN!AP15, NPgY!AP15, WMID!AP15, EMID!AP15, SWALES!AP15, SWEST!AP15, LPN!AP15,SPN!AP15,EPN!AP15,SPD!AP15,SPMW!AP15,SSEH!AP15,SSES!AP15)","v":0},{"$f":"CHOOSE(m_identity,ENWL!AQ15, NPgN!AQ15, NPgY!AQ15, WMID!AQ15, EMID!AQ15, SWALES!AQ15, SWEST!AQ15, LPN!AQ15,SPN!AQ15,EPN!AQ15,SPD!AQ15,SPMW!AQ15,SSEH!AQ15,SSES!AQ15)","v":0}]
[null,null,null,null,"Actual tree cutting","XX","£m 12/13 prices","YY",null,null,null,null,null,null,null,null,null,null,null,null,null,null,null,null,null,null,null,null,null,null,null,null,null,null,null,{"$f":"CHOOSE(m_identity,ENWL!AJ16, NPgN!AJ16, NPgY!AJ16, WMID!AJ16, EMID!AJ16, SWALES!AJ16, SWEST!AJ16, LPN!AJ16,SPN!AJ16,EPN!AJ16,SPD!AJ16,SPMW!AJ16,SSEH!AJ16,SSES!AJ16)","v":0},{"$f":"CHOOSE(m_identity,ENWL!AK16, NPgN!AK16, NPgY!AK16, WMID!AK16, EMID!AK16, SWALES!AK16, SWEST!AK16, LPN!AK16,SPN!AK16,EPN!AK16,SPD!AK16,SPMW!AK16,SSEH!AK16,SSES!AK16)","v":0},{"$f":"CHOOSE(m_identity,ENWL!AL16, NPgN!AL16, NPgY!AL16, WMID!AL16, EMID!AL16, SWALES!AL16, SWEST!AL16, LPN!AL16,SPN!AL16,EPN!AL16,SPD!AL16,SPMW!AL16,SSEH!AL16,SSES!AL16)","v":0},{"$f":"CHOOSE(m_identity,ENWL!AM16, NPgN!AM16, NPgY!AM16, WMID!AM16, EMID!AM16, SWALES!AM16, SWEST!AM16, LPN!AM16,SPN!AM16,EPN!AM16,SPD!AM16,SPMW!AM16,SSEH!AM16,SSES!AM16)","v":0},{"$f":"CHOOSE(m_identity,ENWL!AN16, NPgN!AN16, NPgY!AN16, WMID!AN16, EMID!AN16, SWALES!AN16, SWEST!AN16, LPN!AN16,SPN!AN16,EPN!AN16,SPD!AN16,SPMW!AN16,SSEH!AN16,SSES!AN16)","v":0},{"$f":"CHOOSE(m_identity,ENWL!AO16, NPgN!AO16, NPgY!AO16, WMID!AO16, EMID!AO16, SWALES!AO16, SWEST!AO16, LPN!AO16,SPN!AO16,EPN!AO16,SPD!AO16,SPMW!AO16,SSEH!AO16,SSES!AO16)","v":0},{"$f":"CHOOSE(m_identity,ENWL!AP16, NPgN!AP16, NPgY!AP16, WMID!AP16, EMID!AP16, SWALES!AP16, SWEST!AP16, LPN!AP16,SPN!AP16,EPN!AP16,SPD!AP16,SPMW!AP16,SSEH!AP16,SSES!AP16)","v":0},{"$f":"CHOOSE(m_identity,ENWL!AQ16, NPgN!AQ16, NPgY!AQ16, WMID!AQ16, EMID!AQ16, SWALES!AQ16, SWEST!AQ16, LPN!AQ16,SPN!AQ16,EPN!AQ16,SPD!AQ16,SPMW!AQ16,SSEH!AQ16,SSES!AQ16)","v":0}]
[null,null,null,null,"Actual controllable opex","XX","£m 12/13 prices","YY",null,null,null,null,null,null,null,null,null,null,null,null,null,null,null,null,null,null,null,null,null,null,null,null,null,null,null,{"$f":"CHOOSE(m_identity,ENWL!AJ17, NPgN!AJ17, NPgY!AJ17, WMID!AJ17, EMID!AJ17, SWALES!AJ17, SWEST!AJ17, LPN!AJ17,SPN!AJ17,EPN!AJ17,SPD!AJ17,SPMW!AJ17,SSEH!AJ17,SSES!AJ17)","v":0},{"$f":"CHOOSE(m_identity,ENWL!AK17, NPgN!AK17, NPgY!AK17, WMID!AK17, EMID!AK17, SWALES!AK17, SWEST!AK17, LPN!AK17,SPN!AK17,EPN!AK17,SPD!AK17,SPMW!AK17,SSEH!AK17,SSES!AK17)","v":0},{"$f":"CHOOSE(m_identity,ENWL!AL17, NPgN!AL17, NPgY!AL17, WMID!AL17, EMID!AL17, SWALES!AL17, SWEST!AL17, LPN!AL17,SPN!AL17,EPN!AL17,SPD!AL17,SPMW!AL17,SSEH!AL17,SSES!AL17)","v":0},{"$f":"CHOOSE(m_identity,ENWL!AM17, NPgN!AM17, NPgY!AM17, WMID!AM17, EMID!AM17, SWALES!AM17, SWEST!AM17, LPN!AM17,SPN!AM17,EPN!AM17,SPD!AM17,SPMW!AM17,SSEH!AM17,SSES!AM17)","v":0},{"$f":"CHOOSE(m_identity,ENWL!AN17, NPgN!AN17, NPgY!AN17, WMID!AN17, EMID!AN17, SWALES!AN17, SWEST!AN17, LPN!AN17,SPN!AN17,EPN!AN17,SPD!AN17,SPMW!AN17,SSEH!AN17,SSES!AN17)","v":0},{"$f":"CHOOSE(m_identity,ENWL!AO17, NPgN!AO17, NPgY!AO17, WMID!AO17, EMID!AO17, SWALES!AO17, SWEST!AO17, LPN!AO17,SPN!AO17,EPN!AO17,SPD!AO17,SPMW!AO17,SSEH!AO17,SSES!AO17)","v":0},{"$f":"CHOOSE(m_identity,ENWL!AP17, NPgN!AP17, NPgY!AP17, WMID!AP17, EMID!AP17, SWALES!AP17, SWEST!AP17, LPN!AP17,SPN!AP17,EPN!AP17,SPD!AP17,SPMW!AP17,SSEH!AP17,SSES!AP17)","v":0},{"$f":"CHOOSE(m_identity,ENWL!AQ17, NPgN!AQ17, NPgY!AQ17, WMID!AQ17, EMID!AQ17, SWALES!AQ17, SWEST!AQ17, LPN!AQ17,SPN!AQ17,EPN!AQ17,SPD!AQ17,SPMW!AQ17,SSEH!AQ17,SSES!AQ17)","v":0}]
[null,null,null,null,"Allowed uncertain costs (CNI)","XX","£m 12/13 prices","YY",null,null,null,null,null,null,null,null,null,null,null,null,null,null,null,null,null,null,null,null,null,null,null,null,null,null,null,{"$f":"CHOOSE(m_identity,ENWL!AJ18, NPgN!AJ18, NPgY!AJ18, WMID!AJ18, EMID!AJ18, SWALES!AJ18, SWEST!AJ18, LPN!AJ18,SPN!AJ18,EPN!AJ18,SPD!AJ18,SPMW!AJ18,SSEH!AJ18,SSES!AJ18)","v":0},{"$f":"CHOOSE(m_identity,ENWL!AK18, NPgN!AK18, NPgY!AK18, WMID!AK18, EMID!AK18, SWALES!AK18, SWEST!AK18, LPN!AK18,SPN!AK18,EPN!AK18,SPD!AK18,SPMW!AK18,SSEH!AK18,SSES!AK18)","v":0},{"$f":"CHOOSE(m_identity,ENWL!AL18, NPgN!AL18, NPgY!AL18, WMID!AL18, EMID!AL18, SWALES!AL18, SWEST!AL18, LPN!AL18,SPN!AL18,EPN!AL18,SPD!AL18,SPMW!AL18,SSEH!AL18,SSES!AL18)","v":0},{"$f":"CHOOSE(m_identity,ENWL!AM18, NPgN!AM18, NPgY!AM18, WMID!AM18, EMID!AM18, SWALES!AM18, SWEST!AM18, LPN!AM18,SPN!AM18,EPN!AM18,SPD!AM18,SPMW!AM18,SSEH!AM18,SSES!AM18)","v":0},{"$f":"CHOOSE(m_identity,ENWL!AN18, NPgN!AN18, NPgY!AN18, WMID!AN18, EMID!AN18, SWALES!AN18, SWEST!AN18, LPN!AN18,SPN!AN18,EPN!AN18,SPD!AN18,SPMW!AN18,SSEH!AN18,SSES!AN18)","v":0},{"$f":"CHOOSE(m_identity,ENWL!AO18, NPgN!AO18, NPgY!AO18, WMID!AO18, EMID!AO18, SWALES!AO18, SWEST!AO18, LPN!AO18,SPN!AO18,EPN!AO18,SPD!AO18,SPMW!AO18,SSEH!AO18,SSES!AO18)","v":0},{"$f":"CHOOSE(m_identity,ENWL!AP18, NPgN!AP18, NPgY!AP18, WMID!AP18, EMID!AP18, SWALES!AP18, SWEST!AP18, LPN!AP18,SPN!AP18,EPN!AP18,SPD!AP18,SPMW!AP18,SSEH!AP18,SSES!AP18)","v":0},{"$f":"CHOOSE(m_identity,ENWL!AQ18, NPgN!AQ18, NPgY!AQ18, WMID!AQ18, EMID!AQ18, SWALES!AQ18, SWEST!AQ18, LPN!AQ18,SPN!AQ18,EPN!AQ18,SPD!AQ18,SPMW!AQ18,SSEH!AQ18,SSES!AQ18)","v":0}]
[null,null,null,null,"Allowed uncertain costs (High Value Projects)","XX","£m 12/13 prices","YY",null,null,null,null,null,null,null,null,null,null,null,null,null,null,null,null,null,null,null,null,null,null,null,null,null,null,null,{"$f":"CHOOSE(m_identity,ENWL!AJ19, NPgN!AJ19, NPgY!AJ19, WMID!AJ19, EMID!AJ19, SWALES!AJ19, SWEST!AJ19, LPN!AJ19,SPN!AJ19,EPN!AJ19,SPD!AJ19,SPMW!AJ19,SSEH!AJ19,SSES!AJ19)","v":0},{"$f":"CHOOSE(m_identity,ENWL!AK19, NPgN!AK19, NPgY!AK19, WMID!AK19, EMID!AK19, SWALES!AK19, SWEST!AK19, LPN!AK19,SPN!AK19,EPN!AK19,SPD!AK19,SPMW!AK19,SSEH!AK19,SSES!AK19)","v":0},{"$f":"CHOOSE(m_identity,ENWL!AL19, NPgN!AL19, NPgY!AL19, WMID!AL19, EMID!AL19, SWALES!AL19, SWEST!AL19, LPN!AL19,SPN!AL19,EPN!AL19,SPD!AL19,SPMW!AL19,SSEH!AL19,SSES!AL19)","v":0},{"$f":"CHOOSE(m_identity,ENWL!AM19, NPgN!AM19, NPgY!AM19, WMID!AM19, EMID!AM19, SWALES!AM19, SWEST!AM19, LPN!AM19,SPN!AM19,EPN!AM19,SPD!AM19,SPMW!AM19,SSEH!AM19,SSES!AM19)","v":0},{"$f":"CHOOSE(m_identity,ENWL!AN19, NPgN!AN19, NPgY!AN19, WMID!AN19, EMID!AN19, SWALES!AN19, SWEST!AN19, LPN!AN19,SPN!AN19,EPN!AN19,SPD!AN19,SPMW!AN19,SSEH!AN19,SSES!AN19)","v":0},{"$f":"CHOOSE(m_identity,ENWL!AO19, NPgN!AO19, NPgY!AO19, WMID!AO19, EMID!AO19, SWALES!AO19, SWEST!AO19, LPN!AO19,SPN!AO19,EPN!AO19,SPD!AO19,SPMW!AO19,SSEH!AO19,SSES!AO19)","v":0},{"$f":"CHOOSE(m_identity,ENWL!AP19, NPgN!AP19, NPgY!AP19, WMID!AP19, EMID!AP19, SWALES!AP19, SWEST!AP19, LPN!AP19,SPN!AP19,EPN!AP19,SPD!AP19,SPMW!AP19,SSEH!AP19,SSES!AP19)","v":0},{"$f":"CHOOSE(m_identity,ENWL!AQ19, NPgN!AQ19, NPgY!AQ19, WMID!AQ19, EMID!AQ19, SWALES!AQ19, SWEST!AQ19, LPN!AQ19,SPN!AQ19,EPN!AQ19,SPD!AQ19,SPMW!AQ19,SSEH!AQ19,SSES!AQ19)","v":0}]
[null,null,null,null,"Allowed uncertain costs (Undergrounding)","XX","£m 12/13 prices","YY",null,null,null,null,null,null,null,null,null,null,null,null,null,null,null,null,null,null,null,null,null,null,null,null,null,null,null,{"$f":"CHOOSE(m_identity,ENWL!AJ20, NPgN!AJ20, NPgY!AJ20, WMID!AJ20, EMID!AJ20, SWALES!AJ20, SWEST!AJ20, LPN!AJ20,SPN!AJ20,EPN!AJ20,SPD!AJ20,SPMW!AJ20,SSEH!AJ20,SSES!AJ20)","v":0.32086328195134051},{"$f":"CHOOSE(m_identity,ENWL!AK20, NPgN!AK20, NPgY!AK20, WMID!AK20, EMID!AK20, SWALES!AK20, SWEST!AK20, LPN!AK20,SPN!AK20,EPN!AK20,SPD!AK20,SPMW!AK20,SSEH!AK20,SSES!AK20)","v":0.32012347815469605},{"$f":"CHOOSE(m_identity,ENWL!AL20, NPgN!AL20, NPgY!AL20, WMID!AL20, EMID!AL20, SWALES!AL20, SWEST!AL20, LPN!AL20,SPN!AL20,EPN!AL20,SPD!AL20,SPMW!AL20,SSEH!AL20,SSES!AL20)","v":0.32075061980619068},{"$f":"CHOOSE(m_identity,ENWL!AM20, NPgN!AM20, NPgY!AM20, WMID!AM20, EMID!AM20, SWALES!AM20, SWEST!AM20, LPN!AM20,SPN!AM20,EPN!AM20,SPD!AM20,SPMW!AM20,SSEH!AM20,SSES!AM20)","v":0.3200639505270263},{"$f":"CHOOSE(m_identity,ENWL!AN20, NPgN!AN20, NPgY!AN20, WMID!AN20, EMID!AN20, SWALES!AN20, SWEST!AN20, LPN!AN20,SPN!AN20,EPN!AN20,SPD!AN20,SPMW!AN20,SSEH!AN20,SSES!AN20)","v":0.32054124459468625},{"$f":"CHOOSE(m_identity,ENWL!AO20, NPgN!AO20, NPgY!AO20, WMID!AO20, EMID!AO20, SWALES!AO20, SWEST!AO20, LPN!AO20,SPN!AO20,EPN!AO20,SPD!AO20,SPMW!AO20,SSEH!AO20,SSES!AO20)","v":0.32108466564649085},{"$f":"CHOOSE(m_identity,ENWL!AP20, NPgN!AP20, NPgY!AP20, WMID!AP20, EMID!AP20, SWALES!AP20, SWEST!AP20, LPN!AP20,SPN!AP20,EPN!AP20,SPD!AP20,SPMW!AP20,SSEH!AP20,SSES!AP20)","v":0.32034348109040567},{"$f":"CHOOSE(m_identity,ENWL!AQ20, NPgN!AQ20, NPgY!AQ20, WMID!AQ20, EMID!AQ20, SWALES!AQ20, SWEST!AQ20, LPN!AQ20,SPN!AQ20,EPN!AQ20,SPD!AQ20,SPMW!AQ20,SSEH!AQ20,SSES!AQ20)","v":0.32108561571780592}]
[null,null,null,null,"Allowed uncertain costs (Worst served customers)","XX","£m 12/13 prices","YY",null,null,null,null,null,null,null,null,null,null,null,null,null,null,null,null,null,null,null,null,null,null,null,null,null,null,null,{"$f":"CHOOSE(m_identity,ENWL!AJ21, NPgN!AJ21, NPgY!AJ21, WMID!AJ21, EMID!AJ21, SWALES!AJ21, SWEST!AJ21, LPN!AJ21,SPN!AJ21,EPN!AJ21,SPD!AJ21,SPMW!AJ21,SSEH!AJ21,SSES!AJ21)","v":0},{"$f":"CHOOSE(m_identity,ENWL!AK21, NPgN!AK21, NPgY!AK21, WMID!AK21, EMID!AK21, SWALES!AK21, SWEST!AK21, LPN!AK21,SPN!AK21,EPN!AK21,SPD!AK21,SPMW!AK21,SSEH!AK21,SSES!AK21)","v":0.51094172215044242},{"$f":"CHOOSE(m_identity,ENWL!AL21, NPgN!AL21, NPgY!AL21, WMID!AL21, EMID!AL21, SWALES!AL21, SWEST!AL21, LPN!AL21,SPN!AL21,EPN!AL21,SPD!AL21,SPMW!AL21,SSEH!AL21,SSES!AL21)","v":0.51021335062644302},{"$f":"CHOOSE(m_identity,ENWL!AM21, NPgN!AM21, NPgY!AM21, WMID!AM21, EMID!AM21, SWALES!AM21, SWEST!AM21, LPN!AM21,SPN!AM21,EPN!AM21,SPD!AM21,SPMW!AM21,SSEH!AM21,SSES!AM21)","v":0},{"$f":"CHOOSE(m_identity,ENWL!AN21, NPgN!AN21, NPgY!AN21, WMID!AN21, EMID!AN21, SWALES!AN21, SWEST!AN21, LPN!AN21,SPN!AN21,EPN!AN21,SPD!AN21,SPMW!AN21,SSEH!AN21,SSES!AN21)","v":0},{"$f":"CHOOSE(m_identity,ENWL!AO21, NPgN!AO21, NPgY!AO21, WMID!AO21, EMID!AO21, SWALES!AO21, SWEST!AO21, LPN!AO21,SPN!AO21,EPN!AO21,SPD!AO21,SPMW!AO21,SSEH!AO21,SSES!AO21)","v":0},{"$f":"CHOOSE(m_identity,ENWL!AP21, NPgN!AP21, NPgY!AP21, WMID!AP21, EMID!AP21, SWALES!AP21, SWEST!AP21, LPN!AP21,SPN!AP21,EPN!AP21,SPD!AP21,SPMW!AP21,SSEH!AP21,SSES!AP21)","v":0},{"$f":"CHOOSE(m_identity,ENWL!AQ21, NPgN!AQ21, NPgY!AQ21, WMID!AQ21, EMID!AQ21, SWALES!AQ21, SWEST!AQ21, LPN!AQ21,SPN!AQ21,EPN!AQ21,SPD!AQ21,SPMW!AQ21,SSEH!AQ21,SSES!AQ21)","v":0}]
[null,null,null,null,"Allowed uncertain costs (Smart metering roll out costs)","XX","£m 12/13 prices","YY",null,null,null,null,null,null,null,null,null,null,null,null,null,null,null,null,null,null,null,null,null,null,null,null,null,null,null,{"$f":"CHOOSE(m_identity,ENWL!AJ22, NPgN!AJ22, NPgY!AJ22, WMID!AJ22, EMID!AJ22, SWALES!AJ22, SWEST!AJ22, LPN!AJ22,SPN!AJ22,EPN!AJ22,SPD!AJ22,SPMW!AJ22,SSEH!AJ22,SSES!AJ22)","v":5.2486320406245866E-2},{"$f":"CHOOSE(m_identity,ENWL!AK22, NPgN!AK22, NPgY!AK22, WMID!AK22, EMID!AK22, SWALES!AK22, SWEST!AK22, LPN!AK22,SPN!AK22,EPN!AK22,SPD!AK22,SPMW!AK22,SSEH!AK22,SSES!AK22)","v":5.1858360656762227E-2},{"$f":"CHOOSE(m_identity,ENWL!AL22, NPgN!AL22, NPgY!AL22, WMID!AL22, EMID!AL22, SWALES!AL22, SWEST!AL22, LPN!AL22,SPN!AL22,EPN!AL22,SPD!AL22,SPMW!AL22,SSEH!AL22,SSES!AL22)","v":5.0565223182818066E-2},{"$f":"CHOOSE(m_identity,ENWL!AM22, NPgN!AM22, NPgY!AM22, WMID!AM22, EMID!AM22, SWALES!AM22, SWEST!AM22, LPN!AM22,SPN!AM22,EPN!AM22,SPD!AM22,SPMW!AM22,SSEH!AM22,SSES!AM22)","v":4.5902567234348074E-2},{"$f":"CHOOSE(m_identity,ENWL!AN22, NPgN!AN22, NPgY!AN22, WMID!AN22, EMID!AN22, SWALES!AN22, SWEST!AN22, LPN!AN22,SPN!AN22,EPN!AN22,SPD!AN22,SPMW!AN22,SSEH!AN22,SSES!AN22)","v":4.2000926042862867E-2},{"$f":"CHOOSE(m_identity,ENWL!AO22, NPgN!AO22, NPgY!AO22, WMID!AO22, EMID!AO22, SWALES!AO22, SWEST!AO22, LPN!AO22,SPN!AO22,EPN!AO22,SPD!AO22,SPMW!AO22,SSEH!AO22,SSES!AO22)","v":4.3730330780959767E-2},{"$f":"CHOOSE(m_identity,ENWL!AP22, NPgN!AP22, NPgY!AP22, WMID!AP22, EMID!AP22, SWALES!AP22, SWEST!AP22, LPN!AP22,SPN!AP22,EPN!AP22,SPD!AP22,SPMW!AP22,SSEH!AP22,SSES!AP22)","v":0},{"$f":"CHOOSE(m_identity,ENWL!AQ22, NPgN!AQ22, NPgY!AQ22, WMID!AQ22, EMID!AQ22, SWALES!AQ22, SWEST!AQ22, LPN!AQ22,SPN!AQ22,EPN!AQ22,SPD!AQ22,SPMW!AQ22,SSEH!AQ22,SSES!AQ22)","v":0}]
[null,null,null,null,"Allowed uncertain costs (Specified street work costs)","XX","£m 12/13 prices","YY",null,null,null,null,null,null,null,null,null,null,null,null,null,null,null,null,null,null,null,null,null,null,null,null,null,null,null,{"$f":"CHOOSE(m_identity,ENWL!AJ23, NPgN!AJ23, NPgY!AJ23, WMID!AJ23, EMID!AJ23, SWALES!AJ23, SWEST!AJ23, LPN!AJ23,SPN!AJ23,EPN!AJ23,SPD!AJ23,SPMW!AJ23,SSEH!AJ23,SSES!AJ23)","v":0.16188256847902729},{"$f":"CHOOSE(m_identity,ENWL!AK23, NPgN!AK23, NPgY!AK23, WMID!AK23, EMID!AK23, SWALES!AK23, SWEST!AK23, LPN!AK23,SPN!AK23,EPN!AK23,SPD!AK23,SPMW!AK23,SSEH!AK23,SSES!AK23)","v":0.16839443827180209},{"$f":"CHOOSE(m_identity,ENWL!AL23, NPgN!AL23, NPgY!AL23, WMID!AL23, EMID!AL23, SWALES!AL23, SWEST!AL23, LPN!AL23,SPN!AL23,EPN!AL23,SPD!AL23,SPMW!AL23,SSEH!AL23,SSES!AL23)","v":0.16997288984617537},{"$f":"CHOOSE(m_identity,ENWL!AM23, NPgN!AM23, NPgY!AM23, WMID!AM23, EMID!AM23, SWALES!AM23, SWEST!AM23, LPN!AM23,SPN!AM23,EPN!AM23,SPD!AM23,SPMW!AM23,SSEH!AM23,SSES!AM23)","v":0.17244918155738986},{"$f":"CHOOSE(m_identity,ENWL!AN23, NPgN!AN23, NPgY!AN23, WMID!AN23, EMID!AN23, SWALES!AN23, SWEST!AN23, LPN!AN23,SPN!AN23,EPN!AN23,SPD!AN23,SPMW!AN23,SSEH!AN23,SSES!AN23)","v":0.1749503651981113},{"$f":"CHOOSE(m_identity,ENWL!AO23, NPgN!AO23, NPgY!AO23, WMID!AO23, EMID!AO23, SWALES!AO23, SWEST!AO23, LPN!AO23,SPN!AO23,EPN!AO23,SPD!AO23,SPMW!AO23,SSEH!AO23,SSES!AO23)","v":0.17753968760049155},{"$f":"CHOOSE(m_identity,ENWL!AP23, NPgN!AP23, NPgY!AP23, WMID!AP23, EMID!AP23, SWALES!AP23, SWEST!AP23, LPN!AP23,SPN!AP23,EPN!AP23,SPD!AP23,SPMW!AP23,SSEH!AP23,SSES!AP23)","v":0.18012768564886114},{"$f":"CHOOSE(m_identity,ENWL!AQ23, NPgN!AQ23, NPgY!AQ23, WMID!AQ23, EMID!AQ23, SWALES!AQ23, SWEST!AQ23, LPN!AQ23,SPN!AQ23,EPN!AQ23,SPD!AQ23,SPMW!AQ23,SSEH!AQ23,SSES!AQ23)","v":0.18278347898396746}]
[null,null,null,null,"Allowed uncertain costs (Load related re-operner)","XX","£m 12/13 prices","YY",null,null,null,null,null,null,null,null,null,null,null,null,null,null,null,null,null,null,null,null,null,null,null,null,null,null,null,{"$f":"CHOOSE(m_identity,ENWL!AJ24, NPgN!AJ24, NPgY!AJ24, WMID!AJ24, EMID!AJ24, SWALES!AJ24, SWEST!AJ24, LPN!AJ24,SPN!AJ24,EPN!AJ24,SPD!AJ24,SPMW!AJ24,SSEH!AJ24,SSES!AJ24)","v":0},{"$f":"CHOOSE(m_identity,ENWL!AK24, NPgN!AK24, NPgY!AK24, WMID!AK24, EMID!AK24, SWALES!AK24, SWEST!AK24, LPN!AK24,SPN!AK24,EPN!AK24,SPD!AK24,SPMW!AK24,SSEH!AK24,SSES!AK24)","v":0},{"$f":"CHOOSE(m_identity,ENWL!AL24, NPgN!AL24, NPgY!AL24, WMID!AL24, EMID!AL24, SWALES!AL24, SWEST!AL24, LPN!AL24,SPN!AL24,EPN!AL24,SPD!AL24,SPMW!AL24,SSEH!AL24,SSES!AL24)","v":0},{"$f":"CHOOSE(m_identity,ENWL!AM24, NPgN!AM24, NPgY!AM24, WMID!AM24, EMID!AM24, SWALES!AM24, SWEST!AM24, LPN!AM24,SPN!AM24,EPN!AM24,SPD!AM24,SPMW!AM24,SSEH!AM24,SSES!AM24)","v":0},{"$f":"CHOOSE(m_identity,ENWL!AN24, NPgN!AN24, NPgY!AN24, WMID!AN24, EMID!AN24, SWALES!AN24, SWEST!AN24, LPN!AN24,SPN!AN24,EPN!AN24,SPD!AN24,SPMW!AN24,SSEH!AN24,SSES!AN24)","v":0},{"$f":"CHOOSE(m_identity,ENWL!AO24, NPgN!AO24, NPgY!AO24, WMID!AO24, EMID!AO24, SWALES!AO24, SWEST!AO24, LPN!AO24,SPN!AO24,EPN!AO24,SPD!AO24,SPMW!AO24,SSEH!AO24,SSES!AO24)","v":0},{"$f":"CHOOSE(m_identity,ENWL!AP24, NPgN!AP24, NPgY!AP24, WMID!AP24, EMID!AP24, SWALES!AP24, SWEST!AP24, LPN!AP24,SPN!AP24,EPN!AP24,SPD!AP24,SPMW!AP24,SSEH!AP24,SSES!AP24)","v":0},{"$f":"CHOOSE(m_identity,ENWL!AQ24, NPgN!AQ24, NPgY!AQ24, WMID!AQ24, EMID!AQ24, SWALES!AQ24, SWEST!AQ24, LPN!AQ24,SPN!AQ24,EPN!AQ24,SPD!AQ24,SPMW!AQ24,SSEH!AQ24,SSES!AQ24)","v":0}]
[null,null,null,null,"Spare 1","XX","£m 12/13 prices","YY",null,null,null,null,null,null,null,null,null,null,null,null,null,null,null,null,null,null,null,null,null,null,null,null,null,null,null,{"$f":"CHOOSE(m_identity,ENWL!AJ25, NPgN!AJ25, NPgY!AJ25, WMID!AJ25, EMID!AJ25, SWALES!AJ25, SWEST!AJ25, LPN!AJ25,SPN!AJ25,EPN!AJ25,SPD!AJ25,SPMW!AJ25,SSEH!AJ25,SSES!AJ25)","v":0},{"$f":"CHOOSE(m_identity,ENWL!AK25, NPgN!AK25, NPgY!AK25, WMID!AK25, EMID!AK25, SWALES!AK25, SWEST!AK25, LPN!AK25,SPN!AK25,EPN!AK25,SPD!AK25,SPMW!AK25,SSEH!AK25,SSES!AK25)","v":0},{"$f":"CHOOSE(m_identity,ENWL!AL25, NPgN!AL25, NPgY!AL25, WMID!AL25, EMID!AL25, SWALES!AL25, SWEST!AL25, LPN!AL25,SPN!AL25,EPN!AL25,SPD!AL25,SPMW!AL25,SSEH!AL25,SSES!AL25)","v":0},{"$f":"CHOOSE(m_identity,ENWL!AM25, NPgN!AM25, NPgY!AM25, WMID!AM25, EMID!AM25, SWALES!AM25, SWEST!AM25, LPN!AM25,SPN!AM25,EPN!AM25,SPD!AM25,SPMW!AM25,SSEH!AM25,SSES!AM25)","v":0},{"$f":"CHOOSE(m_identity,ENWL!AN25, NPgN!AN25, NPgY!AN25, WMID!AN25, EMID!AN25, SWALES!AN25, SWEST!AN25, LPN!AN25,SPN!AN25,EPN!AN25,SPD!AN25,SPMW!AN25,SSEH!AN25,SSES!AN25)","v":0},{"$f":"CHOOSE(m_identity,ENWL!AO25, NPgN!AO25, NPgY!AO25, WMID!AO25, EMID!AO25, SWALES!AO25, SWEST!AO25, LPN!AO25,SPN!AO25,EPN!AO25,SPD!AO25,SPMW!AO25,SSEH!AO25,SSES!AO25)","v":0},{"$f":"CHOOSE(m_identity,ENWL!AP25, NPgN!AP25, NPgY!AP25, WMID!AP25, EMID!AP25, SWALES!AP25, SWEST!AP25, LPN!AP25,SPN!AP25,EPN!AP25,SPD!AP25,SPMW!AP25,SSEH!AP25,SSES!AP25)","v":0},{"$f":"CHOOSE(m_identity,ENWL!AQ25, NPgN!AQ25, NPgY!AQ25, WMID!AQ25, EMID!AQ25, SWALES!AQ25, SWEST!AQ25, LPN!AQ25,SPN!AQ25,EPN!AQ25,SPD!AQ25,SPMW!AQ25,SSEH!AQ25,SSES!AQ25)","v":0}]
[null,null,null,null,"Spare 2","XX","£m 12/13 prices","YY",null,null,null,null,null,null,null,null,null,null,null,null,null,null,null,null,null,null,null,null,null,null,null,null,null,null,null,{"$f":"CHOOSE(m_identity,ENWL!AJ26, NPgN!AJ26, NPgY!AJ26, WMID!AJ26, EMID!AJ26, SWALES!AJ26, SWEST!AJ26, LPN!AJ26,SPN!AJ26,EPN!AJ26,SPD!AJ26,SPMW!AJ26,SSEH!AJ26,SSES!AJ26)","v":0},{"$f":"CHOOSE(m_identity,ENWL!AK26, NPgN!AK26, NPgY!AK26, WMID!AK26, EMID!AK26, SWALES!AK26, SWEST!AK26, LPN!AK26,SPN!AK26,EPN!AK26,SPD!AK26,SPMW!AK26,SSEH!AK26,SSES!AK26)","v":0},{"$f":"CHOOSE(m_identity,ENWL!AL26, NPgN!AL26, NPgY!AL26, WMID!AL26, EMID!AL26, SWALES!AL26, SWEST!AL26, LPN!AL26,SPN!AL26,EPN!AL26,SPD!AL26,SPMW!AL26,SSEH!AL26,SSES!AL26)","v":0},{"$f":"CHOOSE(m_identity,ENWL!AM26, NPgN!AM26, NPgY!AM26, WMID!AM26, EMID!AM26, SWALES!AM26, SWEST!AM26, LPN!AM26,SPN!AM26,EPN!AM26,SPD!AM26,SPMW!AM26,SSEH!AM26,SSES!AM26)","v":0},{"$f":"CHOOSE(m_identity,ENWL!AN26, NPgN!AN26, NPgY!AN26, WMID!AN26, EMID!AN26, SWALES!AN26, SWEST!AN26, LPN!AN26,SPN!AN26,EPN!AN26,SPD!AN26,SPMW!AN26,SSEH!AN26,SSES!AN26)","v":0},{"$f":"CHOOSE(m_identity,ENWL!AO26, NPgN!AO26, NPgY!AO26, WMID!AO26, EMID!AO26, SWALES!AO26, SWEST!AO26, LPN!AO26,SPN!AO26,EPN!AO26,SPD!AO26,SPMW!AO26,SSEH!AO26,SSES!AO26)","v":0},{"$f":"CHOOSE(m_identity,ENWL!AP26, NPgN!AP26, NPgY!AP26, WMID!AP26, EMID!AP26, SWALES!AP26, SWEST!AP26, LPN!AP26,SPN!AP26,EPN!AP26,SPD!AP26,SPMW!AP26,SSEH!AP26,SSES!AP26)","v":0},{"$f":"CHOOSE(m_identity,ENWL!AQ26, NPgN!AQ26, NPgY!AQ26, WMID!AQ26, EMID!AQ26, SWALES!AQ26, SWEST!AQ26, LPN!AQ26,SPN!AQ26,EPN!AQ26,SPD!AQ26,SPMW!AQ26,SSEH!AQ26,SSES!AQ26)","v":0}]
[null,null,null,null,"Spare 3","XX","£m 12/13 prices","YY",null,null,null,null,null,null,null,null,null,null,null,null,null,null,null,null,null,null,null,null,null,null,null,null,null,null,null,{"$f":"CHOOSE(m_identity,ENWL!AJ27, NPgN!AJ27, NPgY!AJ27, WMID!AJ27, EMID!AJ27, SWALES!AJ27, SWEST!AJ27, LPN!AJ27,SPN!AJ27,EPN!AJ27,SPD!AJ27,SPMW!AJ27,SSEH!AJ27,SSES!AJ27)","v":0},{"$f":"CHOOSE(m_identity,ENWL!AK27, NPgN!AK27, NPgY!AK27, WMID!AK27, EMID!AK27, SWALES!AK27, SWEST!AK27, LPN!AK27,SPN!AK27,EPN!AK27,SPD!AK27,SPMW!AK27,SSEH!AK27,SSES!AK27)","v":0},{"$f":"CHOOSE(m_identity,ENWL!AL27, NPgN!AL27, NPgY!AL27, WMID!AL27, EMID!AL27, SWALES!AL27, SWEST!AL27, LPN!AL27,SPN!AL27,EPN!AL27,SPD!AL27,SPMW!AL27,SSEH!AL27,SSES!AL27)","v":0},{"$f":"CHOOSE(m_identity,ENWL!AM27, NPgN!AM27, NPgY!AM27, WMID!AM27, EMID!AM27, SWALES!AM27, SWEST!AM27, LPN!AM27,SPN!AM27,EPN!AM27,SPD!AM27,SPMW!AM27,SSEH!AM27,SSES!AM27)","v":0},{"$f":"CHOOSE(m_identity,ENWL!AN27, NPgN!AN27, NPgY!AN27, WMID!AN27, EMID!AN27, SWALES!AN27, SWEST!AN27, LPN!AN27,SPN!AN27,EPN!AN27,SPD!AN27,SPMW!AN27,SSEH!AN27,SSES!AN27)","v":0},{"$f":"CHOOSE(m_identity,ENWL!AO27, NPgN!AO27, NPgY!AO27, WMID!AO27, EMID!AO27, SWALES!AO27, SWEST!AO27, LPN!AO27,SPN!AO27,EPN!AO27,SPD!AO27,SPMW!AO27,SSEH!AO27,SSES!AO27)","v":0},{"$f":"CHOOSE(m_identity,ENWL!AP27, NPgN!AP27, NPgY!AP27, WMID!AP27, EMID!AP27, SWALES!AP27, SWEST!AP27, LPN!AP27,SPN!AP27,EPN!AP27,SPD!AP27,SPMW!AP27,SSEH!AP27,SSES!AP27)","v":0},{"$f":"CHOOSE(m_identity,ENWL!AQ27, NPgN!AQ27, NPgY!AQ27, WMID!AQ27, EMID!AQ27, SWALES!AQ27, SWEST!AQ27, LPN!AQ27,SPN!AQ27,EPN!AQ27,SPD!AQ27,SPMW!AQ27,SSEH!AQ27,SSES!AQ27)","v":0}]
[null,null,null,null,"Allowed innovation roll-out mechanism","XX","£m 12/13 prices","YY",null,null,null,null,null,null,null,null,null,null,null,null,null,null,null,null,null,null,null,null,null,null,null,null,null,null,null,{"$f":"CHOOSE(m_identity,ENWL!AJ28, NPgN!AJ28, NPgY!AJ28, WMID!AJ28, EMID!AJ28, SWALES!AJ28, SWEST!AJ28, LPN!AJ28,SPN!AJ28,EPN!AJ28,SPD!AJ28,SPMW!AJ28,SSEH!AJ28,SSES!AJ28)","v":0},{"$f":"CHOOSE(m_identity,ENWL!AK28, NPgN!AK28, NPgY!AK28, WMID!AK28, EMID!AK28, SWALES!AK28, SWEST!AK28, LPN!AK28,SPN!AK28,EPN!AK28,SPD!AK28,SPMW!AK28,SSEH!AK28,SSES!AK28)","v":0},{"$f":"CHOOSE(m_identity,ENWL!AL28, NPgN!AL28, NPgY!AL28, WMID!AL28, EMID!AL28, SWALES!AL28, SWEST!AL28, LPN!AL28,SPN!AL28,EPN!AL28,SPD!AL28,SPMW!AL28,SSEH!AL28,SSES!AL28)","v":0},{"$f":"CHOOSE(m_identity,ENWL!AM28, NPgN!AM28, NPgY!AM28, WMID!AM28, EMID!AM28, SWALES!AM28, SWEST!AM28, LPN!AM28,SPN!AM28,EPN!AM28,SPD!AM28,SPMW!AM28,SSEH!AM28,SSES!AM28)","v":0},{"$f":"CHOOSE(m_identity,ENWL!AN28, NPgN!AN28, NPgY!AN28, WMID!AN28, EMID!AN28, SWALES!AN28, SWEST!AN28, LPN!AN28,SPN!AN28,EPN!AN28,SPD!AN28,SPMW!AN28,SSEH!AN28,SSES!AN28)","v":0},{"$f":"CHOOSE(m_identity,ENWL!AO28, NPgN!AO28, NPgY!AO28, WMID!AO28, EMID!AO28, SWALES!AO28, SWEST!AO28, LPN!AO28,SPN!AO28,EPN!AO28,SPD!AO28,SPMW!AO28,SSEH!AO28,SSES!AO28)","v":0},{"$f":"CHOOSE(m_identity,ENWL!AP28, NPgN!AP28, NPgY!AP28, WMID!AP28, EMID!AP28, SWALES!AP28, SWEST!AP28, LPN!AP28,SPN!AP28,EPN!AP28,SPD!AP28,SPMW!AP28,SSEH!AP28,SSES!AP28)","v":0},{"$f":"CHOOSE(m_identity,ENWL!AQ28, NPgN!AQ28, NPgY!AQ28, WMID!AQ28, EMID!AQ28, SWALES!AQ28, SWEST!AQ28, LPN!AQ28,SPN!AQ28,EPN!AQ28,SPD!AQ28,SPMW!AQ28,SSEH!AQ28,SSES!AQ28)","v":0}]
[null,null,null,null,"Exit Charges","XX","£m 12/13 prices","YY",null,null,null,null,null,null,null,null,null,null,null,null,null,null,null,null,null,null,null,null,null,null,null,null,null,null,null,{"$f":"CHOOSE(m_identity,ENWL!AJ29, NPgN!AJ29, NPgY!AJ29, WMID!AJ29, EMID!AJ29, SWALES!AJ29, SWEST!AJ29, LPN!AJ29,SPN!AJ29,EPN!AJ29,SPD!AJ29,SPMW!AJ29,SSEH!AJ29,SSES!AJ29)","v":12.740947203483326},{"$f":"CHOOSE(m_identity,ENWL!AK29, NPgN!AK29, NPgY!AK29, WMID!AK29, EMID!AK29, SWALES!AK29, SWEST!AK29, LPN!AK29,SPN!AK29,EPN!AK29,SPD!AK29,SPMW!AK29,SSEH!AK29,SSES!AK29)","v":13.013503978483328},{"$f":"CHOOSE(m_identity,ENWL!AL29, NPgN!AL29, NPgY!AL29, WMID!AL29, EMID!AL29, SWALES!AL29, SWEST!AL29, LPN!AL29,SPN!AL29,EPN!AL29,SPD!AL29,SPMW!AL29,SSEH!AL29,SSES!AL29)","v":13.154379203483327},{"$f":"CHOOSE(m_identity,ENWL!AM29, NPgN!AM29, NPgY!AM29, WMID!AM29, EMID!AM29, SWALES!AM29, SWEST!AM29, LPN!AM29,SPN!AM29,EPN!AM29,SPD!AM29,SPMW!AM29,SSEH!AM29,SSES!AM29)","v":13.174095203483327},{"$f":"CHOOSE(m_identity,ENWL!AN29, NPgN!AN29, NPgY!AN29, WMID!AN29, EMID!AN29, SWALES!AN29, SWEST!AN29, LPN!AN29,SPN!AN29,EPN!AN29,SPD!AN29,SPMW!AN29,SSEH!AN29,SSES!AN29)","v":13.548095203483326},{"$f":"CHOOSE(m_identity,ENWL!AO29, NPgN!AO29, NPgY!AO29, WMID!AO29, EMID!AO29, SWALES!AO29, SWEST!AO29, LPN!AO29,SPN!AO29,EPN!AO29,SPD!AO29,SPMW!AO29,SSEH!AO29,SSES!AO29)","v":14.122295203483327},{"$f":"CHOOSE(m_identity,ENWL!AP29, NPgN!AP29, NPgY!AP29, WMID!AP29, EMID!AP29, SWALES!AP29, SWEST!AP29, LPN!AP29,SPN!AP29,EPN!AP29,SPD!AP29,SPMW!AP29,SSEH!AP29,SSES!AP29)","v":14.122295203483327},{"$f":"CHOOSE(m_identity,ENWL!AQ29, NPgN!AQ29, NPgY!AQ29, WMID!AQ29, EMID!AQ29, SWALES!AQ29, SWEST!AQ29, LPN!AQ29,SPN!AQ29,EPN!AQ29,SPD!AQ29,SPMW!AQ29,SSEH!AQ29,SSES!AQ29)","v":14.122295203483327}]
[null,null,null,null,"Pension scheme established deficit revenue allowances","XX","£m 12/13 prices","YY",null,null,null,null,null,null,null,null,null,null,null,null,null,null,null,null,null,null,null,null,null,null,null,null,null,null,null,{"$f":"CHOOSE(m_identity,ENWL!AJ30, NPgN!AJ30, NPgY!AJ30, WMID!AJ30, EMID!AJ30, SWALES!AJ30, SWEST!AJ30, LPN!AJ30,SPN!AJ30,EPN!AJ30,SPD!AJ30,SPMW!AJ30,SSEH!AJ30,SSES!AJ30)","v":23.680990303886606},{"$f":"CHOOSE(m_identity,ENWL!AK30, NPgN!AK30, NPgY!AK30, WMID!AK30, EMID!AK30, SWALES!AK30, SWEST!AK30, LPN!AK30,SPN!AK30,EPN!AK30,SPD!AK30,SPMW!AK30,SSEH!AK30,SSES!AK30)","v":23.680990303886606},{"$f":"CHOOSE(m_identity,ENWL!AL30, NPgN!AL30, NPgY!AL30, WMID!AL30, EMID!AL30, SWALES!AL30, SWEST!AL30, LPN!AL30,SPN!AL30,EPN!AL30,SPD!AL30,SPMW!AL30,SSEH!AL30,SSES!AL30)","v":23.680990303886606},{"$f":"CHOOSE(m_identity,ENWL!AM30, NPgN!AM30, NPgY!AM30, WMID!AM30, EMID!AM30, SWALES!AM30, SWEST!AM30, LPN!AM30,SPN!AM30,EPN!AM30,SPD!AM30,SPMW!AM30,SSEH!AM30,SSES!AM30)","v":23.680990303886606},{"$f":"CHOOSE(m_identity,ENWL!AN30, NPgN!AN30, NPgY!AN30, WMID!AN30, EMID!AN30, SWALES!AN30, SWEST!AN30, LPN!AN30,SPN!AN30,EPN!AN30,SPD!AN30,SPMW!AN30,SSEH!AN30,SSES!AN30)","v":23.680990303886606},{"$f":"CHOOSE(m_identity,ENWL!AO30, NPgN!AO30, NPgY!AO30, WMID!AO30, EMID!AO30, SWALES!AO30, SWEST!AO30, LPN!AO30,SPN!AO30,EPN!AO30,SPD!AO30,SPMW!AO30,SSEH!AO30,SSES!AO30)","v":23.680990303886606},{"$f":"CHOOSE(m_identity,ENWL!AP30, NPgN!AP30, NPgY!AP30, WMID!AP30, EMID!AP30, SWALES!AP30, SWEST!AP30, LPN!AP30,SPN!AP30,EPN!AP30,SPD!AP30,SPMW!AP30,SSEH!AP30,SSES!AP30)","v":23.680990303886606},{"$f":"CHOOSE(m_identity,ENWL!AQ30, NPgN!AQ30, NPgY!AQ30, WMID!AQ30, EMID!AQ30, SWALES!AQ30, SWEST!AQ30, LPN!AQ30,SPN!AQ30,EPN!AQ30,SPD!AQ30,SPMW!AQ30,SSEH!AQ30,SSES!AQ30)","v":23.680990303886606}]
[null,null,null,null,"Legacy price control allowed revenue adjustment","XX","£m 12/13 prices","YY",null,null,null,null,null,null,null,null,null,null,null,null,null,null,null,null,null,null,null,null,null,null,null,null,null,null,null,{"$f":"CHOOSE(m_identity,ENWL!AJ31, NPgN!AJ31, NPgY!AJ31, WMID!AJ31, EMID!AJ31, SWALES!AJ31, SWEST!AJ31, LPN!AJ31,SPN!AJ31,EPN!AJ31,SPD!AJ31,SPMW!AJ31,SSEH!AJ31,SSES!AJ31)","v":0}]
[null,null,null,null,"Legacy price control RAV additions adjustment","XX","£m 12/13 prices","YY",null,null,null,null,null,null,null,null,null,null,null,null,null,null,null,null,null,null,null,null,null,null,null,null,null,{"$f":"CHOOSE(m_identity,ENWL!AH32, NPgN!AH32, NPgY!AH32, WMID!AH32, EMID!AH32, SWALES!AH32, SWEST!AH32, LPN!AH32,SPN!AH32,EPN!AH32,SPD!AH32,SPMW!AH32,SSEH!AH32,SSES!AH32)","v":8.528433735559986},{"$f":"CHOOSE(m_identity,ENWL!AI32, NPgN!AI32, NPgY!AI32, WMID!AI32, EMID!AI32, SWALES!AI32, SWEST!AI32, LPN!AI32,SPN!AI32,EPN!AI32,SPD!AI32,SPMW!AI32,SSEH!AI32,SSES!AI32)","v":-6.7337782745080546}]
[null,null,null,null,"Tax liability allowance adjustments - gearing/interest costs","XX","£m nominal","YY",null,null,null,null,null,null,null,null,null,null,null,null,null,null,null,null,null,null,null,null,null,null,null,null,null,null,null,{"$f":"CHOOSE(m_identity,ENWL!AJ33, NPgN!AJ33, NPgY!AJ33, WMID!AJ33, EMID!AJ33, SWALES!AJ33, SWEST!AJ33, LPN!AJ33,SPN!AJ33,EPN!AJ33,SPD!AJ33,SPMW!AJ33,SSEH!AJ33,SSES!AJ33)","v":0},{"$f":"CHOOSE(m_identity,ENWL!AK33, NPgN!AK33, NPgY!AK33, WMID!AK33, EMID!AK33, SWALES!AK33, SWEST!AK33, LPN!AK33,SPN!AK33,EPN!AK33,SPD!AK33,SPMW!AK33,SSEH!AK33,SSES!AK33)","v":0},{"$f":"CHOOSE(m_identity,ENWL!AL33, NPgN!AL33, NPgY!AL33, WMID!AL33, EMID!AL33, SWALES!AL33, SWEST!AL33, LPN!AL33,SPN!AL33,EPN!AL33,SPD!AL33,SPMW!AL33,SSEH!AL33,SSES!AL33)","v":0},{"$f":"CHOOSE(m_identity,ENWL!AM33, NPgN!AM33, NPgY!AM33, WMID!AM33, EMID!AM33, SWALES!AM33, SWEST!AM33, LPN!AM33,SPN!AM33,EPN!AM33,SPD!AM33,SPMW!AM33,SSEH!AM33,SSES!AM33)","v":0},{"$f":"CHOOSE(m_identity,ENWL!AN33, NPgN!AN33, NPgY!AN33, WMID!AN33, EMID!AN33, SWALES!AN33, SWEST!AN33, LPN!AN33,SPN!AN33,EPN!AN33,SPD!AN33,SPMW!AN33,SSEH!AN33,SSES!AN33)","v":0},{"$f":"CHOOSE(m_identity,ENWL!AO33, NPgN!AO33, NPgY!AO33, WMID!AO33, EMID!AO33, SWALES!AO33, SWEST!AO33, LPN!AO33,SPN!AO33,EPN!AO33,SPD!AO33,SPMW!AO33,SSEH!AO33,SSES!AO33)","v":0},{"$f":"CHOOSE(m_identity,ENWL!AP33, NPgN!AP33, NPgY!AP33, WMID!AP33, EMID!AP33, SWALES!AP33, SWEST!AP33, LPN!AP33,SPN!AP33,EPN!AP33,SPD!AP33,SPMW!AP33,SSEH!AP33,SSES!AP33)","v":0},{"$f":"CHOOSE(m_identity,ENWL!AQ33, NPgN!AQ33, NPgY!AQ33, WMID!AQ33, EMID!AQ33, SWALES!AQ33, SWEST!AQ33, LPN!AQ33,SPN!AQ33,EPN!AQ33,SPD!AQ33,SPMW!AQ33,SSEH!AQ33,SSES!AQ33)","v":0}]
[null,null,null,null,"Tax liability allowance adjustments - driven by tax trigger events","XX","£m 12/13 prices","YY",null,null,null,null,null,null,null,null,null,null,null,null,null,null,null,null,null,null,null,null,null,null,null,null,null,null,null,{"$f":"CHOOSE(m_identity,ENWL!AJ34, NPgN!AJ34, NPgY!AJ34, WMID!AJ34, EMID!AJ34, SWALES!AJ34, SWEST!AJ34, LPN!AJ34,SPN!AJ34,EPN!AJ34,SPD!AJ34,SPMW!AJ34,SSEH!AJ34,SSES!AJ34)","v":0},{"$f":"CHOOSE(m_identity,ENWL!AK34, NPgN!AK34, NPgY!AK34, WMID!AK34, EMID!AK34, SWALES!AK34, SWEST!AK34, LPN!AK34,SPN!AK34,EPN!AK34,SPD!AK34,SPMW!AK34,SSEH!AK34,SSES!AK34)","v":0},{"$f":"CHOOSE(m_identity,ENWL!AL34, NPgN!AL34, NPgY!AL34, WMID!AL34, EMID!AL34, SWALES!AL34, SWEST!AL34, LPN!AL34,SPN!AL34,EPN!AL34,SPD!AL34,SPMW!AL34,SSEH!AL34,SSES!AL34)","v":0},{"$f":"CHOOSE(m_identity,ENWL!AM34, NPgN!AM34, NPgY!AM34, WMID!AM34, EMID!AM34, SWALES!AM34, SWEST!AM34, LPN!AM34,SPN!AM34,EPN!AM34,SPD!AM34,SPMW!AM34,SSEH!AM34,SSES!AM34)","v":0},{"$f":"CHOOSE(m_identity,ENWL!AN34, NPgN!AN34, NPgY!AN34, WMID!AN34, EMID!AN34, SWALES!AN34, SWEST!AN34, LPN!AN34,SPN!AN34,EPN!AN34,SPD!AN34,SPMW!AN34,SSEH!AN34,SSES!AN34)","v":0},{"$f":"CHOOSE(m_identity,ENWL!AO34, NPgN!AO34, NPgY!AO34, WMID!AO34, EMID!AO34, SWALES!AO34, SWEST!AO34, LPN!AO34,SPN!AO34,EPN!AO34,SPD!AO34,SPMW!AO34,SSEH!AO34,SSES!AO34)","v":0},{"$f":"CHOOSE(m_identity,ENWL!AP34, NPgN!AP34, NPgY!AP34, WMID!AP34, EMID!AP34, SWALES!AP34, SWEST!AP34, LPN!AP34,SPN!AP34,EPN!AP34,SPD!AP34,SPMW!AP34,SSEH!AP34,SSES!AP34)","v":0},{"$f":"CHOOSE(m_identity,ENWL!AQ34, NPgN!AQ34, NPgY!AQ34, WMID!AQ34, EMID!AQ34, SWALES!AQ34, SWEST!AQ34, LPN!AQ34,SPN!AQ34,EPN!AQ34,SPD!AQ34,SPMW!AQ34,SSEH!AQ34,SSES!AQ34)","v":0}]
[null,null,null,null,"General pool capital allowance pre-RIIO movement adjustment","XX","Nominal","YY",null,null,null,null,null,null,null,null,null,null,null,null,null,null,null,null,null,null,null,null,null,null,null,null,null,{"$f":"CHOOSE(m_identity,ENWL!AH35, NPgN!AH35, NPgY!AH35, WMID!AH35, EMID!AH35, SWALES!AH35, SWEST!AH35, LPN!AH35,SPN!AH35,EPN!AH35,SPD!AH35,SPMW!AH35,SSEH!AH35,SSES!AH35)","v":0},{"$f":"CHOOSE(m_identity,ENWL!AI35, NPgN!AI35, NPgY!AI35, WMID!AI35, EMID!AI35, SWALES!AI35, SWEST!AI35, LPN!AI35,SPN!AI35,EPN!AI35,SPD!AI35,SPMW!AI35,SSEH!AI35,SSES!AI35)","v":0}]
[null,null,null,null,"Special pool capital allowance pre-RIIO movement adjustment","XX","Nominal","YY",null,null,null,null,null,null,null,null,null,null,null,null,null,null,null,null,null,null,null,null,null,null,null,null,null,{"$f":"CHOOSE(m_identity,ENWL!AH36, NPgN!AH36, NPgY!AH36, WMID!AH36, EMID!AH36, SWALES!AH36, SWEST!AH36, LPN!AH36,SPN!AH36,EPN!AH36,SPD!AH36,SPMW!AH36,SSEH!AH36,SSES!AH36)","v":0},{"$f":"CHOOSE(m_identity,ENWL!AI36, NPgN!AI36, NPgY!AI36, WMID!AI36, EMID!AI36, SWALES!AI36, SWEST!AI36, LPN!AI36,SPN!AI36,EPN!AI36,SPD!AI36,SPMW!AI36,SSEH!AI36,SSES!AI36)","v":0}]
[null,null,null,null,"Deferred Revenue Expenditure pre-RIIO movement adjustment","XX","Nominal","YY",null,null,null,null,null,null,null,null,null,null,null,null,null,null,null,null,null,null,null,null,null,null,null,null,null,{"$f":"CHOOSE(m_identity,ENWL!AH37, NPgN!AH37, NPgY!AH37, WMID!AH37, EMID!AH37, SWALES!AH37, SWEST!AH37, LPN!AH37,SPN!AH37,EPN!AH37,SPD!AH37,SPMW!AH37,SSEH!AH37,SSES!AH37)","v":0},{"$f":"CHOOSE(m_identity,ENWL!AI37, NPgN!AI37, NPgY!AI37, WMID!AI37, EMID!AI37, SWALES!AI37, SWEST!AI37, LPN!AI37,SPN!AI37,EPN!AI37,SPD!AI37,SPMW!AI37,SSEH!AI37,SSES!AI37)","v":0}]
[null,null,null,null,"DRE: Gross capex adjustment","XX","Nominal","YY",null,null,null,null,null,null,null,null,null,null,null,null,null,null,null,null,null,null,null,null,null,null,null,null,null,{"$f":"CHOOSE(m_identity,ENWL!AH38, NPgN!AH38, NPgY!AH38, WMID!AH38, EMID!AH38, SWALES!AH38, SWEST!AH38, LPN!AH38,SPN!AH38,EPN!AH38,SPD!AH38,SPMW!AH38,SSEH!AH38,SSES!AH38)","v":0},{"$f":"CHOOSE(m_identity,ENWL!AI38, NPgN!AI38, NPgY!AI38, WMID!AI38, EMID!AI38, SWALES!AI38, SWEST!AI38, LPN!AI38,SPN!AI38,EPN!AI38,SPD!AI38,SPMW!AI38,SSEH!AI38,SSES!AI38)","v":0}]
[]
[null,"Policy"]
[]
[null,null,"Cost of capital"]
[]
[null,null,null,null,"Cost of debt",null,"annual real %",null,null,null,null,null,null,null,null,null,null,null,null,null,null,null,null,null,null,null,null,null,null,null,null,null,null,null,null,{"$f":"AJ11","v":2.92E-2},2.92E-2,2.92E-2,2.92E-2,2.92E-2,2.92E-2,2.92E-2,2.92E-2]
[null,null,null,null,"Cost of equity",null,"annual real %",null,null,null,null,null,null,null,null,null,null,null,null,null,null,null,null,null,null,null,null,null,null,null,null,null,null,null,null,{"$f":"CHOOSE(m_identity,ENWL!AJ45, NPgN!AJ45, NPgY!AJ45, WMID!AJ45, EMID!AJ45, SWALES!AJ45, SWEST!AJ45, LPN!AJ45,SPN!AJ45,EPN!AJ45,SPD!AJ45,SPMW!AJ45,SSEH!AJ45,SSES!AJ45)","v":6.7000000000000004E-2},{"$f":"CHOOSE(m_identity,ENWL!AK45, NPgN!AK45, NPgY!AK45, WMID!AK45, EMID!AK45, SWALES!AK45, SWEST!AK45, LPN!AK45,SPN!AK45,EPN!AK45,SPD!AK45,SPMW!AK45,SSEH!AK45,SSES!AK45)","v":6.7000000000000004E-2},{"$f":"CHOOSE(m_identity,ENWL!AL45, NPgN!AL45, NPgY!AL45, WMID!AL45, EMID!AL45, SWALES!AL45, SWEST!AL45, LPN!AL45,SPN!AL45,EPN!AL45,SPD!AL45,SPMW!AL45,SSEH!AL45,SSES!AL45)","v":6.7000000000000004E-2},{"$f":"CHOOSE(m_identity,ENWL!AM45, NPgN!AM45, NPgY!AM45, WMID!AM45, EMID!AM45, SWALES!AM45, SWEST!AM45, LPN!AM45,SPN!AM45,EPN!AM45,SPD!AM45,SPMW!AM45,SSEH!AM45,SSES!AM45)","v":6.7000000000000004E-2},{"$f":"CHOOSE(m_identity,ENWL!AN45, NPgN!AN45, NPgY!AN45, WMID!AN45, EMID!AN45, SWALES!AN45, SWEST!AN45, LPN!AN45,SPN!AN45,EPN!AN45,SPD!AN45,SPMW!AN45,SSEH!AN45,SSES!AN45)","v":6.7000000000000004E-2},{"$f":"CHOOSE(m_identity,ENWL!AO45, NPgN!AO45, NPgY!AO45, WMID!AO45, EMID!AO45, SWALES!AO45, SWEST!AO45, LPN!AO45,SPN!AO45,EPN!AO45,SPD!AO45,SPMW!AO45,SSEH!AO45,SSES!AO45)","v":6.7000000000000004E-2},{"$f":"CHOOSE(m_identity,ENWL!AP45, NPgN!AP45, NPgY!AP45, WMID!AP45, EMID!AP45, SWALES!AP45, SWEST!AP45, LPN!AP45,SPN!AP45,EPN!AP45,SPD!AP45,SPMW!AP45,SSEH!AP45,SSES!AP45)","v":6.7000000000000004E-2},{"$f":"CHOOSE(m_identity,ENWL!AQ45, NPgN!AQ45, NPgY!AQ45, WMID!AQ45, EMID!AQ45, SWALES!AQ45, SWEST!AQ45, LPN!AQ45,SPN!AQ45,EPN!AQ45,SPD!AQ45,SPMW!AQ45,SSEH!AQ45,SSES!AQ45)","v":6.7000000000000004E-2}]
[null,null,null,null,"Notional gearing",null,"%",null,null,">",null,null,null,null,null,null,null,null,null,null,null,null,null,null,null,null,null,null,null,null,null,null,null,null,{"$f":"CHOOSE(m_identity,ENWL!AI46, NPgN!AI46, NPgY!AI46, WMID!AI46, EMID!AI46, SWALES!AI46, SWEST!AI46, LPN!AI46,SPN!AI46,EPN!AI46,SPD!AI46,SPMW!AI46,SSEH!AI46,SSES!AI46)","v":0.65},{"$f":"CHOOSE(m_identity,ENWL!AJ46, NPgN!AJ46, NPgY!AJ46, WMID!AJ46, EMID!AJ46, SWALES!AJ46, SWEST!AJ46, LPN!AJ46,SPN!AJ46,EPN!AJ46,SPD!AJ46,SPMW!AJ46,SSEH!AJ46,SSES!AJ46)","v":0.65},{"$f":"CHOOSE(m_identity,ENWL!AK46, NPgN!AK46, NPgY!AK46, WMID!AK46, EMID!AK46, SWALES!AK46, SWEST!AK46, LPN!AK46,SPN!AK46,EPN!AK46,SPD!AK46,SPMW!AK46,SSEH!AK46,SSES!AK46)","v":0.65},{"$f":"CHOOSE(m_identity,ENWL!AL46, NPgN!AL46, NPgY!AL46, WMID!AL46, EMID!AL46, SWALES!AL46, SWEST!AL46, LPN!AL46,SPN!AL46,EPN!AL46,SPD!AL46,SPMW!AL46,SSEH!AL46,SSES!AL46)","v":0.65},{"$f":"CHOOSE(m_identity,ENWL!AM46, NPgN!AM46, NPgY!AM46, WMID!AM46, EMID!AM46, SWALES!AM46, SWEST!AM46, LPN!AM46,SPN!AM46,EPN!AM46,SPD!AM46,SPMW!AM46,SSEH!AM46,SSES!AM46)","v":0.65},{"$f":"CHOOSE(m_identity,ENWL!AN46, NPgN!AN46, NPgY!AN46, WMID!AN46, EMID!AN46, SWALES!AN46, SWEST!AN46, LPN!AN46,SPN!AN46,EPN!AN46,SPD!AN46,SPMW!AN46,SSEH!AN46,SSES!AN46)","v":0.65},{"$f":"CHOOSE(m_identity,ENWL!AO46, NPgN!AO46, NPgY!AO46, WMID!AO46, EMID!AO46, SWALES!AO46, SWEST!AO46, LPN!AO46,SPN!AO46,EPN!AO46,SPD!AO46,SPMW!AO46,SSEH!AO46,SSES!AO46)","v":0.65},{"$f":"CHOOSE(m_identity,ENWL!AP46, NPgN!AP46, NPgY!AP46, WMID!AP46, EMID!AP46, SWALES!AP46, SWEST!AP46, LPN!AP46,SPN!AP46,EPN!AP46,SPD!AP46,SPMW!AP46,SSEH!AP46,SSES!AP46)","v":0.65},{"$f":"CHOOSE(m_identity,ENWL!AQ46, NPgN!AQ46, NPgY!AQ46, WMID!AQ46, EMID!AQ46, SWALES!AQ46, SWEST!AQ46, LPN!AQ46,SPN!AQ46,EPN!AQ46,SPD!AQ46,SPMW!AQ46,SSEH!AQ46,SSES!AQ46)","v":0.65}]
[]
[null,null,null,null,"Vanilla WACC",null,"annual real %",null,null,null,null,null,null,null,null,null,null,null,null,null,null,null,null,null,null,null,null,null,null,null,null,null,null,null,null,{"$f":"(AJ44 * AJ46) + (AJ45 * (1 - AJ46))","v":4.2429999999999995E-2},4.2429999999999995E-2,4.2429999999999995E-2,4.2429999999999995E-2,4.2429999999999995E-2,4.2429999999999995E-2,4.2429999999999995E-2,4.2429999999999995E-2]
[]
[]
[]
[null,null,"Indexation"]
[]
[null,null,null,null,"Forecast RPI (simple average year to March)",null,"index value",null,null,">",null,null,null,null,null,null,null,null,null,null,null,null,null,null,null,null,null,null,null,null,null,null,{"$f":"CHOOSE(m_identity,ENWL!AG54, NPgN!AG54, NPgY!AG54, WMID!AG54, EMID!AG54, SWALES!AG54, SWEST!AG54, LPN!AG54,SPN!AG54,EPN!AG54,SPD!AG54,SPMW!AG54,SSEH!AG54,SSES!AG54)","v":244.67500000000001},{"$f":"CHOOSE(m_identity,ENWL!AH54, NPgN!AH54, NPgY!AH54, WMID!AH54, EMID!AH54, SWALES!AH54, SWEST!AH54, LPN!AH54,SPN!AH54,EPN!AH54,SPD!AH54,SPMW!AH54,SSEH!AH54,SSES!AH54)","v":251.52600000000001},{"$f":"CHOOSE(m_identity,ENWL!AI54, NPgN!AI54, NPgY!AI54, WMID!AI54, EMID!AI54, SWALES!AI54, SWEST!AI54, LPN!AI54,SPN!AI54,EPN!AI54,SPD!AI54,SPMW!AI54,SSEH!AI54,SSES!AI54)","v":258.56900000000002},{"$f":"CHOOSE(m_identity,ENWL!AJ54, NPgN!AJ54, NPgY!AJ54, WMID!AJ54, EMID!AJ54, SWALES!AJ54, SWEST!AJ54, LPN!AJ54,SPN!AJ54,EPN!AJ54,SPD!AJ54,SPMW!AJ54,SSEH!AJ54,SSES!AJ54)","v":265.80900000000003},{"$f":"CHOOSE(m_identity,ENWL!AK54, NPgN!AK54, NPgY!AK54, WMID!AK54, EMID!AK54, SWALES!AK54, SWEST!AK54, LPN!AK54,SPN!AK54,EPN!AK54,SPD!AK54,SPMW!AK54,SSEH!AK54,SSES!AK54)","v":273.25200000000001},{"$f":"CHOOSE(m_identity,ENWL!AL54, NPgN!AL54, NPgY!AL54, WMID!AL54, EMID!AL54, SWALES!AL54, SWEST!AL54, LPN!AL54,SPN!AL54,EPN!AL54,SPD!AL54,SPMW!AL54,SSEH!AL54,SSES!AL54)","v":280.90300000000002},{"$f":"CHOOSE(m_identity,ENWL!AM54, NPgN!AM54, NPgY!AM54, WMID!AM54, EMID!AM54, SWALES!AM54, SWEST!AM54, LPN!AM54,SPN!AM54,EPN!AM54,SPD!AM54,SPMW!AM54,SSEH!AM54,SSES!AM54)","v":288.76799999999997},{"$f":"CHOOSE(m_identity,ENWL!AN54, NPgN!AN54, NPgY!AN54, WMID!AN54, EMID!AN54, SWALES!AN54, SWEST!AN54, LPN!AN54,SPN!AN54,EPN!AN54,SPD!AN54,SPMW!AN54,SSEH!AN54,SSES!AN54)","v":296.85399999999998},{"$f":"CHOOSE(m_identity,ENWL!AO54, NPgN!AO54, NPgY!AO54, WMID!AO54, EMID!AO54, SWALES!AO54, SWEST!AO54, LPN!AO54,SPN!AO54,EPN!AO54,SPD!AO54,SPMW!AO54,SSEH!AO54,SSES!AO54)","v":305.166},{"$f":"CHOOSE(m_identity,ENWL!AP54, NPgN!AP54, NPgY!AP54, WMID!AP54, EMID!AP54, SWALES!AP54, SWEST!AP54, LPN!AP54,SPN!AP54,EPN!AP54,SPD!AP54,SPMW!AP54,SSEH!AP54,SSES!AP54)","v":313.71100000000001},{"$f":"CHOOSE(m_identity,ENWL!AQ54, NPgN!AQ54, NPgY!AQ54, WMID!AQ54, EMID!AQ54, SWALES!AQ54, SWEST!AQ54, LPN!AQ54,SPN!AQ54,EPN!AQ54,SPD!AQ54,SPMW!AQ54,SSEH!AQ54,SSES!AQ54)","v":322.495}]
[null,null,null,null,"RPI assumption for interest costs",null,"index value",null,null,">",null,null,null,null,null,null,null,null,null,null,null,null,null,null,null,null,null,null,null,null,null,null,{"$f":"CHOOSE(m_identity,ENWL!AG55, NPgN!AG55, NPgY!AG55, WMID!AG55, EMID!AG55, SWALES!AG55, SWEST!AG55, LPN!AG55,SPN!AG55,EPN!AG55,SPD!AG55,SPMW!AG55,SSEH!AG55,SSES!AG55)","v":244.67500000000001},{"$f":"CHOOSE(m_identity,ENWL!AH55, NPgN!AH55, NPgY!AH55, WMID!AH55, EMID!AH55, SWALES!AH55, SWEST!AH55, LPN!AH55,SPN!AH55,EPN!AH55,SPD!AH55,SPMW!AH55,SSEH!AH55,SSES!AH55)","v":251.52600000000001},{"$f":"CHOOSE(m_identity,ENWL!AI55, NPgN!AI55, NPgY!AI55, WMID!AI55, EMID!AI55, SWALES!AI55, SWEST!AI55, LPN!AI55,SPN!AI55,EPN!AI55,SPD!AI55,SPMW!AI55,SSEH!AI55,SSES!AI55)","v":258.56900000000002},{"$f":"CHOOSE(m_identity,ENWL!AJ55, NPgN!AJ55, NPgY!AJ55, WMID!AJ55, EMID!AJ55, SWALES!AJ55, SWEST!AJ55, LPN!AJ55,SPN!AJ55,EPN!AJ55,SPD!AJ55,SPMW!AJ55,SSEH!AJ55,SSES!AJ55)","v":265.80900000000003},{"$f":"CHOOSE(m_identity,ENWL!AK55, NPgN!AK55, NPgY!AK55, WMID!AK55, EMID!AK55, SWALES!AK55, SWEST!AK55, LPN!AK55,SPN!AK55,EPN!AK55,SPD!AK55,SPMW!AK55,SSEH!AK55,SSES!AK55)","v":273.25200000000001},{"$f":"CHOOSE(m_identity,ENWL!AL55, NPgN!AL55, NPgY!AL55, WMID!AL55, EMID!AL55, SWALES!AL55, SWEST!AL55, LPN!AL55,SPN!AL55,EPN!AL55,SPD!AL55,SPMW!AL55,SSEH!AL55,SSES!AL55)","v":280.90300000000002},{"$f":"CHOOSE(m_identity,ENWL!AM55, NPgN!AM55, NPgY!AM55, WMID!AM55, EMID!AM55, SWALES!AM55, SWEST!AM55, LPN!AM55,SPN!AM55,EPN!AM55,SPD!AM55,SPMW!AM55,SSEH!AM55,SSES!AM55)","v":288.76799999999997},{"$f":"CHOOSE(m_identity,ENWL!AN55, NPgN!AN55, NPgY!AN55, WMID!AN55, EMID!AN55, SWALES!AN55, SWEST!AN55, LPN!AN55,SPN!AN55,EPN!AN55,SPD!AN55,SPMW!AN55,SSEH!AN55,SSES!AN55)","v":296.85399999999998},{"$f":"CHOOSE(m_identity,ENWL!AO55, NPgN!AO55, NPgY!AO55, WMID!AO55, EMID!AO55, SWALES!AO55, SWEST!AO55, LPN!AO55,SPN!AO55,EPN!AO55,SPD!AO55,SPMW!AO55,SSEH!AO55,SSES!AO55)","v":305.166},{"$f":"CHOOSE(m_identity,ENWL!AP55, NPgN!AP55, NPgY!AP55, WMID!AP55, EMID!AP55, SWALES!AP55, SWEST!AP55, LPN!AP55,SPN!AP55,EPN!AP55,SPD!AP55,SPMW!AP55,SSEH!AP55,SSES!AP55)","v":313.71100000000001},{"$f":"CHOOSE(m_identity,ENWL!AQ55, NPgN!AQ55, NPgY!AQ55, WMID!AQ55, EMID!AQ55, SWALES!AQ55, SWEST!AQ55, LPN!AQ55,SPN!AQ55,EPN!AQ55,SPD!AQ55,SPMW!AQ55,SSEH!AQ55,SSES!AQ55)","v":322.495}]
[]
[null,null,"TIM and capitalisation"]
[]
[null,null,null,null,"Years from t until normal reporting of actual costs",null,"years",null,{"$f":"CHOOSE(m_identity,ENWL!I59, NPgN!I59, NPgY!I59, WMID!I59, EMID!I59, SWALES!I59, SWEST!I59, LPN!I59,SPN!I59,EPN!I59,SPD!I59,SPMW!I59,SSEH!I59,SSES!I59)","v":2}]
[]
[null,null,null,null,"Capitalised share of totex",null,"%",null,null,null,null,null,null,null,null,null,null,null,null,null,null,null,null,null,null,null,null,null,null,null,null,null,null,null,null,{"$f":"CHOOSE(m_identity,ENWL!AJ61, NPgN!AJ61, NPgY!AJ61, WMID!AJ61, EMID!AJ61, SWALES!AJ61, SWEST!AJ61, LPN!AJ61,SPN!AJ61,EPN!AJ61,SPD!AJ61,SPMW!AJ61,SSEH!AJ61,SSES!AJ61)","v":0.8},{"$f":"CHOOSE(m_identity,ENWL!AK61, NPgN!AK61, NPgY!AK61, WMID!AK61, EMID!AK61, SWALES!AK61, SWEST!AK61, LPN!AK61,SPN!AK61,EPN!AK61,SPD!AK61,SPMW!AK61,SSEH!AK61,SSES!AK61)","v":0.8},{"$f":"CHOOSE(m_identity,ENWL!AL61, NPgN!AL61, NPgY!AL61, WMID!AL61, EMID!AL61, SWALES!AL61, SWEST!AL61, LPN!AL61,SPN!AL61,EPN!AL61,SPD!AL61,SPMW!AL61,SSEH!AL61,SSES!AL61)","v":0.8},{"$f":"CHOOSE(m_identity,ENWL!AM61, NPgN!AM61, NPgY!AM61, WMID!AM61, EMID!AM61, SWALES!AM61, SWEST!AM61, LPN!AM61,SPN!AM61,EPN!AM61,SPD!AM61,SPMW!AM61,SSEH!AM61,SSES!AM61)","v":0.8},{"$f":"CHOOSE(m_identity,ENWL!AN61, NPgN!AN61, NPgY!AN61, WMID!AN61, EMID!AN61, SWALES!AN61, SWEST!AN61, LPN!AN61,SPN!AN61,EPN!AN61,SPD!AN61,SPMW!AN61,SSEH!AN61,SSES!AN61)","v":0.8},{"$f":"CHOOSE(m_identity,ENWL!AO61, NPgN!AO61, NPgY!AO61, WMID!AO61, EMID!AO61, SWALES!AO61, SWEST!AO61, LPN!AO61,SPN!AO61,EPN!AO61,SPD!AO61,SPMW!AO61,SSEH!AO61,SSES!AO61)","v":0.8},{"$f":"CHOOSE(m_identity,ENWL!AP61, NPgN!AP61, NPgY!AP61, WMID!AP61, EMID!AP61, SWALES!AP61, SWEST!AP61, LPN!AP61,SPN!AP61,EPN!AP61,SPD!AP61,SPMW!AP61,SSEH!AP61,SSES!AP61)","v":0.8},{"$f":"CHOOSE(m_identity,ENWL!AQ61, NPgN!AQ61, NPgY!AQ61, WMID!AQ61, EMID!AQ61, SWALES!AQ61, SWEST!AQ61, LPN!AQ61,SPN!AQ61,EPN!AQ61,SPD!AQ61,SPMW!AQ61,SSEH!AQ61,SSES!AQ61)","v":0.8}]
[]
[null,null,null,null,"Additional income %",null,"%",null,{"$f":"CHOOSE(m_identity,ENWL!I63, NPgN!I63, NPgY!I63, WMID!I63, EMID!I63, SWALES!I63, SWEST!I63, LPN!I63,SPN!I63,EPN!I63,SPD!I63,SPMW!I63,SSEH!I63,SSES!I63)","v":2.5000000000000001E-2}]
[]
[null,null,null,null,"Incentive Strength",null,"%",null,{"$f":"CHOOSE(m_identity,ENWL!I65, NPgN!I65, NPgY!I65, WMID!I65, EMID!I65, SWALES!I65, SWEST!I65, LPN!I65,SPN!I65,EPN!I65,SPD!I65,SPMW!I65,SSEH!I65,SSES!I65)","v":0.7}]
[]
[null,null,null,null,"Weight of Ofgem's view on price control totex",null,"%",null,{"$f":"CHOOSE(m_identity,ENWL!I67, NPgN!I67, NPgY!I67, WMID!I67, EMID!I67, SWALES!I67, SWEST!I67, LPN!I67,SPN!I67,EPN!I67,SPD!I67,SPMW!I67,SSEH!I67,SSES!I67)","v":0.75}]
[null,null,null,null,"Weight of operator's view on price control totex",null,"%",null,{"$f":"CHOOSE(m_identity,ENWL!I68, NPgN!I68, NPgY!I68, WMID!I68, EMID!I68, SWALES!I68, SWEST!I68, LPN!I68,SPN!I68,EPN!I68,SPD!I68,SPMW!I68,SSEH!I68,SSES!I68)","v":0.25}]
[]
[null,null,null,null,"Ofgem's view of  licensee totex",null,"£m 12/13 prices",null,{"$f":"CHOOSE(m_identity,ENWL!I70, NPgN!I70, NPgY!I70, WMID!I70, EMID!I70, SWALES!I70, SWEST!I70, LPN!I70,SPN!I70,EPN!I70,SPD!I70,SPMW!I70,SSEH!I70,SSES!I70)","v":2109.2260156085922}]
[null,null,null,null,"Operator's view of licensee totex",null,"£m 12/13 prices",null,{"$f":"CHOOSE(m_identity,ENWL!I71, NPgN!I71, NPgY!I71, WMID!I71, EMID!I71, SWALES!I71, SWEST!I71, LPN!I71,SPN!I71,EPN!I71,SPD!I71,SPMW!I71,SSEH!I71,SSES!I71)","v":2109.2260156085922}]
[]
[null,null,null,null,"Ofgem's view of group price control totex",null,"£m 12/13 prices",null,{"$f":"CHOOSE(m_identity,ENWL!I73, NPgN!I73, NPgY!I73, WMID!I73, EMID!I73, SWALES!I73, SWEST!I73, LPN!I73,SPN!I73,EPN!I73,SPD!I73,SPMW!I73,SSEH!I73,SSES!I73)","v":7063.2910311137712}]
[null,null,null,null,"Operator's view of group price control totex ",null,"£m 12/13 prices",null,{"$f":"CHOOSE(m_identity,ENWL!I74, NPgN!I74, NPgY!I74, WMID!I74, EMID!I74, SWALES!I74, SWEST!I74, LPN!I74,SPN!I74,EPN!I74,SPD!I74,SPMW!I74,SSEH!I74,SSES!I74)","v":7063.2910311137712}]
[]
[null,null,"Finance"]
[]
[null,null,null,null,"Minimum equity issuance threshold",null,"%",null,{"$f":"CHOOSE(m_identity,ENWL!I78, NPgN!I78, NPgY!I78, WMID!I78, EMID!I78, SWALES!I78, SWEST!I78, LPN!I78,SPN!I78,EPN!I78,SPD!I78,SPMW!I78,SSEH!I78,SSES!I78)","v":0}]
[null,null,null,null,"Equity issuance costs",null,"%",null,{"$f":"CHOOSE(m_identity,ENWL!I79, NPgN!I79, NPgY!I79, WMID!I79, EMID!I79, SWALES!I79, SWEST!I79, LPN!I79,SPN!I79,EPN!I79,SPD!I79,SPMW!I79,SSEH!I79,SSES!I79)","v":0}]
[null,null,null,null,"Assumed dividends as % of notional equity portion of RAV",null,"%",null,{"$f":"CHOOSE(m_identity,ENWL!I80, NPgN!I80, NPgY!I80, WMID!I80, EMID!I80, SWALES!I80, SWEST!I80, LPN!I80,SPN!I80,EPN!I80,SPD!I80,SPMW!I80,SSEH!I80,SSES!I80)","v":6.7000000000000004E-2}]
[]
[null,null,null,null,"Equity issuance gearing target",null,"%",null,null,null,null,null,null,null,null,null,null,null,null,null,null,null,null,null,null,null,null,null,null,null,null,null,null,null,null,{"$f":"CHOOSE(m_identity,ENWL!AJ82, NPgN!AJ82, NPgY!AJ82, WMID!AJ82, EMID!AJ82, SWALES!AJ82, SWEST!AJ82, LPN!AJ82,SPN!AJ82,EPN!AJ82,SPD!AJ82,SPMW!AJ82,SSEH!AJ82,SSES!AJ82)","v":0.65},{"$f":"CHOOSE(m_identity,ENWL!AK82, NPgN!AK82, NPgY!AK82, WMID!AK82, EMID!AK82, SWALES!AK82, SWEST!AK82, LPN!AK82,SPN!AK82,EPN!AK82,SPD!AK82,SPMW!AK82,SSEH!AK82,SSES!AK82)","v":0.65},{"$f":"CHOOSE(m_identity,ENWL!AL82, NPgN!AL82, NPgY!AL82, WMID!AL82, EMID!AL82, SWALES!AL82, SWEST!AL82, LPN!AL82,SPN!AL82,EPN!AL82,SPD!AL82,SPMW!AL82,SSEH!AL82,SSES!AL82)","v":0.65},{"$f":"CHOOSE(m_identity,ENWL!AM82, NPgN!AM82, NPgY!AM82, WMID!AM82, EMID!AM82, SWALES!AM82, SWEST!AM82, LPN!AM82,SPN!AM82,EPN!AM82,SPD!AM82,SPMW!AM82,SSEH!AM82,SSES!AM82)","v":0.65},{"$f":"CHOOSE(m_identity,ENWL!AN82, NPgN!AN82, NPgY!AN82, WMID!AN82, EMID!AN82, SWALES!AN82, SWEST!AN82, LPN!AN82,SPN!AN82,EPN!AN82,SPD!AN82,SPMW!AN82,SSEH!AN82,SSES!AN82)","v":0.65},{"$f":"CHOOSE(m_identity,ENWL!AO82, NPgN!AO82, NPgY!AO82, WMID!AO82, EMID!AO82, SWALES!AO82, SWEST!AO82, LPN!AO82,SPN!AO82,EPN!AO82,SPD!AO82,SPMW!AO82,SSEH!AO82,SSES!AO82)","v":0.65},{"$f":"CHOOSE(m_identity,ENWL!AP82, NPgN!AP82, NPgY!AP82, WMID!AP82, EMID!AP82, SWALES!AP82, SWEST!AP82, LPN!AP82,SPN!AP82,EPN!AP82,SPD!AP82,SPMW!AP82,SSEH!AP82,SSES!AP82)","v":0.65},{"$f":"CHOOSE(m_identity,ENWL!AQ82, NPgN!AQ82, NPgY!AQ82, WMID!AQ82, EMID!AQ82, SWALES!AQ82, SWEST!AQ82, LPN!AQ82,SPN!AQ82,EPN!AQ82,SPD!AQ82,SPMW!AQ82,SSEH!AQ82,SSES!AQ82)","v":0.65}]
[]
[null,null,null,null,"Index-linked debt as a percentage of net debt",null,"%",null,null,null,null,null,null,null,null,null,null,null,null,null,null,null,null,null,null,null,null,null,null,null,null,null,null,null,null,{"$f":"CHOOSE(m_identity,ENWL!AJ84, NPgN!AJ84, NPgY!AJ84, WMID!AJ84, EMID!AJ84, SWALES!AJ84, SWEST!AJ84, LPN!AJ84,SPN!AJ84,EPN!AJ84,SPD!AJ84,SPMW!AJ84,SSEH!AJ84,SSES!AJ84)","v":0.25},{"$f":"CHOOSE(m_identity,ENWL!AK84, NPgN!AK84, NPgY!AK84, WMID!AK84, EMID!AK84, SWALES!AK84, SWEST!AK84, LPN!AK84,SPN!AK84,EPN!AK84,SPD!AK84,SPMW!AK84,SSEH!AK84,SSES!AK84)","v":0.25},{"$f":"CHOOSE(m_identity,ENWL!AL84, NPgN!AL84, NPgY!AL84, WMID!AL84, EMID!AL84, SWALES!AL84, SWEST!AL84, LPN!AL84,SPN!AL84,EPN!AL84,SPD!AL84,SPMW!AL84,SSEH!AL84,SSES!AL84)","v":0.25},{"$f":"CHOOSE(m_identity,ENWL!AM84, NPgN!AM84, NPgY!AM84, WMID!AM84, EMID!AM84, SWALES!AM84, SWEST!AM84, LPN!AM84,SPN!AM84,EPN!AM84,SPD!AM84,SPMW!AM84,SSEH!AM84,SSES!AM84)","v":0.25},{"$f":"CHOOSE(m_identity,ENWL!AN84, NPgN!AN84, NPgY!AN84, WMID!AN84, EMID!AN84, SWALES!AN84, SWEST!AN84, LPN!AN84,SPN!AN84,EPN!AN84,SPD!AN84,SPMW!AN84,SSEH!AN84,SSES!AN84)","v":0.25},{"$f":"CHOOSE(m_identity,ENWL!AO84, NPgN!AO84, NPgY!AO84, WMID!AO84, EMID!AO84, SWALES!AO84, SWEST!AO84, LPN!AO84,SPN!AO84,EPN!AO84,SPD!AO84,SPMW!AO84,SSEH!AO84,SSES!AO84)","v":0.25},{"$f":"CHOOSE(m_identity,ENWL!AP84, NPgN!AP84, NPgY!AP84, WMID!AP84, EMID!AP84, SWALES!AP84, SWEST!AP84, LPN!AP84,SPN!AP84,EPN!AP84,SPD!AP84,SPMW!AP84,SSEH!AP84,SSES!AP84)","v":0.25},{"$f":"CHOOSE(m_identity,ENWL!AQ84, NPgN!AQ84, NPgY!AQ84, WMID!AQ84, EMID!AQ84, SWALES!AQ84, SWEST!AQ84, LPN!AQ84,SPN!AQ84,EPN!AQ84,SPD!AQ84,SPMW!AQ84,SSEH!AQ84,SSES!AQ84)","v":0.25}]
[]
[null,"Expenditure"]
[]
[null,null,"Totex"]
[]
[null,null,null,"Non-variant allowances"]
[]
[null,null,null,null,"Non-variant allowed load related capex",null,"£m 12/13 prices",null,null,null,null,null,null,null,null,null,null,null,null,null,null,null,null,null,null,null,null,null,null,null,null,null,null,null,null,{"$f":"CHOOSE(m_identity,ENWL!AJ92, NPgN!AJ92, NPgY!AJ92, WMID!AJ92, EMID!AJ92, SWALES!AJ92, SWEST!AJ92, LPN!AJ92,SPN!AJ92,EPN!AJ92,SPD!AJ92,SPMW!AJ92,SSEH!AJ92,SSES!AJ92)","v":23.712681112648937},{"$f":"CHOOSE(m_identity,ENWL!AK92, NPgN!AK92, NPgY!AK92, WMID!AK92, EMID!AK92, SWALES!AK92, SWEST!AK92, LPN!AK92,SPN!AK92,EPN!AK92,SPD!AK92,SPMW!AK92,SSEH!AK92,SSES!AK92)","v":24.593474157092636},{"$f":"CHOOSE(m_identity,ENWL!AL92, NPgN!AL92, NPgY!AL92, WMID!AL92, EMID!AL92, SWALES!AL92, SWEST!AL92, LPN!AL92,SPN!AL92,EPN!AL92,SPD!AL92,SPMW!AL92,SSEH!AL92,SSES!AL92)","v":23.421714123686112},{"$f":"CHOOSE(m_identity,ENWL!AM92, NPgN!AM92, NPgY!AM92, WMID!AM92, EMID!AM92, SWALES!AM92, SWEST!AM92, LPN!AM92,SPN!AM92,EPN!AM92,SPD!AM92,SPMW!AM92,SSEH!AM92,SSES!AM92)","v":27.807007913635879},{"$f":"CHOOSE(m_identity,ENWL!AN92, NPgN!AN92, NPgY!AN92, WMID!AN92, EMID!AN92, SWALES!AN92, SWEST!AN92, LPN!AN92,SPN!AN92,EPN!AN92,SPD!AN92,SPMW!AN92,SSEH!AN92,SSES!AN92)","v":30.133106520414039},{"$f":"CHOOSE(m_identity,ENWL!AO92, NPgN!AO92, NPgY!AO92, WMID!AO92, EMID!AO92, SWALES!AO92, SWEST!AO92, LPN!AO92,SPN!AO92,EPN!AO92,SPD!AO92,SPMW!AO92,SSEH!AO92,SSES!AO92)","v":27.215907151322639},{"$f":"CHOOSE(m_identity,ENWL!AP92, NPgN!AP92, NPgY!AP92, WMID!AP92, EMID!AP92, SWALES!AP92, SWEST!AP92, LPN!AP92,SPN!AP92,EPN!AP92,SPD!AP92,SPMW!AP92,SSEH!AP92,SSES!AP92)","v":31.094740057889194},{"$f":"CHOOSE(m_identity,ENWL!AQ92, NPgN!AQ92, NPgY!AQ92, WMID!AQ92, EMID!AQ92, SWALES!AQ92, SWEST!AQ92, LPN!AQ92,SPN!AQ92,EPN!AQ92,SPD!AQ92,SPMW!AQ92,SSEH!AQ92,SSES!AQ92)","v":35.256453582127911}]
[null,null,null,null,"Non-variant allowed non-load related capex - asset replacement",null,"£m 12/13 prices",null,null,null,null,null,null,null,null,null,null,null,null,null,null,null,null,null,null,null,null,null,null,null,null,null,null,null,null,{"$f":"CHOOSE(m_identity,ENWL!AJ93, NPgN!AJ93, NPgY!AJ93, WMID!AJ93, EMID!AJ93, SWALES!AJ93, SWEST!AJ93, LPN!AJ93,SPN!AJ93,EPN!AJ93,SPD!AJ93,SPMW!AJ93,SSEH!AJ93,SSES!AJ93)","v":83.539292937835157},{"$f":"CHOOSE(m_identity,ENWL!AK93, NPgN!AK93, NPgY!AK93, WMID!AK93, EMID!AK93, SWALES!AK93, SWEST!AK93, LPN!AK93,SPN!AK93,EPN!AK93,SPD!AK93,SPMW!AK93,SSEH!AK93,SSES!AK93)","v":84.462413912991479},{"$f":"CHOOSE(m_identity,ENWL!AL93, NPgN!AL93, NPgY!AL93, WMID!AL93, EMID!AL93, SWALES!AL93, SWEST!AL93, LPN!AL93,SPN!AL93,EPN!AL93,SPD!AL93,SPMW!AL93,SSEH!AL93,SSES!AL93)","v":83.940473575451648},{"$f":"CHOOSE(m_identity,ENWL!AM93, NPgN!AM93, NPgY!AM93, WMID!AM93, EMID!AM93, SWALES!AM93, SWEST!AM93, LPN!AM93,SPN!AM93,EPN!AM93,SPD!AM93,SPMW!AM93,SSEH!AM93,SSES!AM93)","v":85.914531508346371},{"$f":"CHOOSE(m_identity,ENWL!AN93, NPgN!AN93, NPgY!AN93, WMID!AN93, EMID!AN93, SWALES!AN93, SWEST!AN93, LPN!AN93,SPN!AN93,EPN!AN93,SPD!AN93,SPMW!AN93,SSEH!AN93,SSES!AN93)","v":86.543054610358652},{"$f":"CHOOSE(m_identity,ENWL!AO93, NPgN!AO93, NPgY!AO93, WMID!AO93, EMID!AO93, SWALES!AO93, SWEST!AO93, LPN!AO93,SPN!AO93,EPN!AO93,SPD!AO93,SPMW!AO93,SSEH!AO93,SSES!AO93)","v":92.151771756131083},{"$f":"CHOOSE(m_identity,ENWL!AP93, NPgN!AP93, NPgY!AP93, WMID!AP93, EMID!AP93, SWALES!AP93, SWEST!AP93, LPN!AP93,SPN!AP93,EPN!AP93,SPD!AP93,SPMW!AP93,SSEH!AP93,SSES!AP93)","v":89.147234457493383},{"$f":"CHOOSE(m_identity,ENWL!AQ93, NPgN!AQ93, NPgY!AQ93, WMID!AQ93, EMID!AQ93, SWALES!AQ93, SWEST!AQ93, LPN!AQ93,SPN!AQ93,EPN!AQ93,SPD!AQ93,SPMW!AQ93,SSEH!AQ93,SSES!AQ93)","v":89.232184326821397}]
[null,null,null,null,"Non-variant allowed non-load related capex - other",null,"£m 12/13 prices",null,null,null,null,null,null,null,null,null,null,null,null,null,null,null,null,null,null,null,null,null,null,null,null,null,null,null,null,{"$f":"CHOOSE(m_identity,ENWL!AJ94, NPgN!AJ94, NPgY!AJ94, WMID!AJ94, EMID!AJ94, SWALES!AJ94, SWEST!AJ94, LPN!AJ94,SPN!AJ94,EPN!AJ94,SPD!AJ94,SPMW!AJ94,SSEH!AJ94,SSES!AJ94)","v":21.681489823659941},{"$f":"CHOOSE(m_identity,ENWL!AK94, NPgN!AK94, NPgY!AK94, WMID!AK94, EMID!AK94, SWALES!AK94, SWEST!AK94, LPN!AK94,SPN!AK94,EPN!AK94,SPD!AK94,SPMW!AK94,SSEH!AK94,SSES!AK94)","v":20.080610881577943},{"$f":"CHOOSE(m_identity,ENWL!AL94, NPgN!AL94, NPgY!AL94, WMID!AL94, EMID!AL94, SWALES!AL94, SWEST!AL94, LPN!AL94,SPN!AL94,EPN!AL94,SPD!AL94,SPMW!AL94,SSEH!AL94,SSES!AL94)","v":14.227605114554947},{"$f":"CHOOSE(m_identity,ENWL!AM94, NPgN!AM94, NPgY!AM94, WMID!AM94, EMID!AM94, SWALES!AM94, SWEST!AM94, LPN!AM94,SPN!AM94,EPN!AM94,SPD!AM94,SPMW!AM94,SSEH!AM94,SSES!AM94)","v":11.691849278081481},{"$f":"CHOOSE(m_identity,ENWL!AN94, NPgN!AN94, NPgY!AN94, WMID!AN94, EMID!AN94, SWALES!AN94, SWEST!AN94, LPN!AN94,SPN!AN94,EPN!AN94,SPD!AN94,SPMW!AN94,SSEH!AN94,SSES!AN94)","v":15.637769585408991},{"$f":"CHOOSE(m_identity,ENWL!AO94, NPgN!AO94, NPgY!AO94, WMID!AO94, EMID!AO94, SWALES!AO94, SWEST!AO94, LPN!AO94,SPN!AO94,EPN!AO94,SPD!AO94,SPMW!AO94,SSEH!AO94,SSES!AO94)","v":17.624468229121806},{"$f":"CHOOSE(m_identity,ENWL!AP94, NPgN!AP94, NPgY!AP94, WMID!AP94, EMID!AP94, SWALES!AP94, SWEST!AP94, LPN!AP94,SPN!AP94,EPN!AP94,SPD!AP94,SPMW!AP94,SSEH!AP94,SSES!AP94)","v":15.201799738944159},{"$f":"CHOOSE(m_identity,ENWL!AQ94, NPgN!AQ94, NPgY!AQ94, WMID!AQ94, EMID!AQ94, SWALES!AQ94, SWEST!AQ94, LPN!AQ94,SPN!AQ94,EPN!AQ94,SPD!AQ94,SPMW!AQ94,SSEH!AQ94,SSES!AQ94)","v":13.057595166409236}]
[null,null,null,null,"Non-variant allowed faults",null,"£m 12/13 prices",null,null,null,null,null,null,null,null,null,null,null,null,null,null,null,null,null,null,null,null,null,null,null,null,null,null,null,null,{"$f":"CHOOSE(m_identity,ENWL!AJ95, NPgN!AJ95, NPgY!AJ95, WMID!AJ95, EMID!AJ95, SWALES!AJ95, SWEST!AJ95, LPN!AJ95,SPN!AJ95,EPN!AJ95,SPD!AJ95,SPMW!AJ95,SSEH!AJ95,SSES!AJ95)","v":29.713184651258917},{"$f":"CHOOSE(m_identity,ENWL!AK95, NPgN!AK95, NPgY!AK95, WMID!AK95, EMID!AK95, SWALES!AK95, SWEST!AK95, LPN!AK95,SPN!AK95,EPN!AK95,SPD!AK95,SPMW!AK95,SSEH!AK95,SSES!AK95)","v":29.630682848331062},{"$f":"CHOOSE(m_identity,ENWL!AL95, NPgN!AL95, NPgY!AL95, WMID!AL95, EMID!AL95, SWALES!AL95, SWEST!AL95, LPN!AL95,SPN!AL95,EPN!AL95,SPD!AL95,SPMW!AL95,SSEH!AL95,SSES!AL95)","v":29.43749657570455},{"$f":"CHOOSE(m_identity,ENWL!AM95, NPgN!AM95, NPgY!AM95, WMID!AM95, EMID!AM95, SWALES!AM95, SWEST!AM95, LPN!AM95,SPN!AM95,EPN!AM95,SPD!AM95,SPMW!AM95,SSEH!AM95,SSES!AM95)","v":29.37244065285628},{"$f":"CHOOSE(m_identity,ENWL!AN95, NPgN!AN95, NPgY!AN95, WMID!AN95, EMID!AN95, SWALES!AN95, SWEST!AN95, LPN!AN95,SPN!AN95,EPN!AN95,SPD!AN95,SPMW!AN95,SSEH!AN95,SSES!AN95)","v":29.305382056594691},{"$f":"CHOOSE(m_identity,ENWL!AO95, NPgN!AO95, NPgY!AO95, WMID!AO95, EMID!AO95, SWALES!AO95, SWEST!AO95, LPN!AO95,SPN!AO95,EPN!AO95,SPD!AO95,SPMW!AO95,SSEH!AO95,SSES!AO95)","v":29.356379835683697},{"$f":"CHOOSE(m_identity,ENWL!AP95, NPgN!AP95, NPgY!AP95, WMID!AP95, EMID!AP95, SWALES!AP95, SWEST!AP95, LPN!AP95,SPN!AP95,EPN!AP95,SPD!AP95,SPMW!AP95,SSEH!AP95,SSES!AP95)","v":29.457984386319566},{"$f":"CHOOSE(m_identity,ENWL!AQ95, NPgN!AQ95, NPgY!AQ95, WMID!AQ95, EMID!AQ95, SWALES!AQ95, SWEST!AQ95, LPN!AQ95,SPN!AQ95,EPN!AQ95,SPD!AQ95,SPMW!AQ95,SSEH!AQ95,SSES!AQ95)","v":29.549209053400737}]
[null,null,null,null,"Non-variant allowed tree cutting",null,"£m 12/13 prices",null,null,null,null,null,null,null,null,null,null,null,null,null,null,null,null,null,null,null,null,null,null,null,null,null,null,null,null,{"$f":"CHOOSE(m_identity,ENWL!AJ96, NPgN!AJ96, NPgY!AJ96, WMID!AJ96, EMID!AJ96, SWALES!AJ96, SWEST!AJ96, LPN!AJ96,SPN!AJ96,EPN!AJ96,SPD!AJ96,SPMW!AJ96,SSEH!AJ96,SSES!AJ96)","v":8.1828742030734372},{"$f":"CHOOSE(m_identity,ENWL!AK96, NPgN!AK96, NPgY!AK96, WMID!AK96, EMID!AK96, SWALES!AK96, SWEST!AK96, LPN!AK96,SPN!AK96,EPN!AK96,SPD!AK96,SPMW!AK96,SSEH!AK96,SSES!AK96)","v":8.208633246856742},{"$f":"CHOOSE(m_identity,ENWL!AL96, NPgN!AL96, NPgY!AL96, WMID!AL96, EMID!AL96, SWALES!AL96, SWEST!AL96, LPN!AL96,SPN!AL96,EPN!AL96,SPD!AL96,SPMW!AL96,SSEH!AL96,SSES!AL96)","v":8.2147790048471165},{"$f":"CHOOSE(m_identity,ENWL!AM96, NPgN!AM96, NPgY!AM96, WMID!AM96, EMID!AM96, SWALES!AM96, SWEST!AM96, LPN!AM96,SPN!AM96,EPN!AM96,SPD!AM96,SPMW!AM96,SSEH!AM96,SSES!AM96)","v":8.2711943632667904},{"$f":"CHOOSE(m_identity,ENWL!AN96, NPgN!AN96, NPgY!AN96, WMID!AN96, EMID!AN96, SWALES!AN96, SWEST!AN96, LPN!AN96,SPN!AN96,EPN!AN96,SPD!AN96,SPMW!AN96,SSEH!AN96,SSES!AN96)","v":8.3281763807515148},{"$f":"CHOOSE(m_identity,ENWL!AO96, NPgN!AO96, NPgY!AO96, WMID!AO96, EMID!AO96, SWALES!AO96, SWEST!AO96, LPN!AO96,SPN!AO96,EPN!AO96,SPD!AO96,SPMW!AO96,SSEH!AO96,SSES!AO96)","v":8.3861343080579367},{"$f":"CHOOSE(m_identity,ENWL!AP96, NPgN!AP96, NPgY!AP96, WMID!AP96, EMID!AP96, SWALES!AP96, SWEST!AP96, LPN!AP96,SPN!AP96,EPN!AP96,SPD!AP96,SPMW!AP96,SSEH!AP96,SSES!AP96)","v":8.4421151511576138},{"$f":"CHOOSE(m_identity,ENWL!AQ96, NPgN!AQ96, NPgY!AQ96, WMID!AQ96, EMID!AQ96, SWALES!AQ96, SWEST!AQ96, LPN!AQ96,SPN!AQ96,EPN!AQ96,SPD!AQ96,SPMW!AQ96,SSEH!AQ96,SSES!AQ96)","v":8.5020101597223565}]
[null,null,null,null,"Non-variant allowed controllable opex",null,"£m 12/13 prices",null,null,null,null,null,null,null,null,null,null,null,null,null,null,null,null,null,null,null,null,null,null,null,null,null,null,null,null,{"$f":"CHOOSE(m_identity,ENWL!AJ97, NPgN!AJ97, NPgY!AJ97, WMID!AJ97, EMID!AJ97, SWALES!AJ97, SWEST!AJ97, LPN!AJ97,SPN!AJ97,EPN!AJ97,SPD!AJ97,SPMW!AJ97,SSEH!AJ97,SSES!AJ97)","v":93.435268005339822},{"$f":"CHOOSE(m_identity,ENWL!AK97, NPgN!AK97, NPgY!AK97, WMID!AK97, EMID!AK97, SWALES!AK97, SWEST!AK97, LPN!AK97,SPN!AK97,EPN!AK97,SPD!AK97,SPMW!AK97,SSEH!AK97,SSES!AK97)","v":93.637008663314887},{"$f":"CHOOSE(m_identity,ENWL!AL97, NPgN!AL97, NPgY!AL97, WMID!AL97, EMID!AL97, SWALES!AL97, SWEST!AL97, LPN!AL97,SPN!AL97,EPN!AL97,SPD!AL97,SPMW!AL97,SSEH!AL97,SSES!AL97)","v":93.87545379110108},{"$f":"CHOOSE(m_identity,ENWL!AM97, NPgN!AM97, NPgY!AM97, WMID!AM97, EMID!AM97, SWALES!AM97, SWEST!AM97, LPN!AM97,SPN!AM97,EPN!AM97,SPD!AM97,SPMW!AM97,SSEH!AM97,SSES!AM97)","v":94.519528796948862},{"$f":"CHOOSE(m_identity,ENWL!AN97, NPgN!AN97, NPgY!AN97, WMID!AN97, EMID!AN97, SWALES!AN97, SWEST!AN97, LPN!AN97,SPN!AN97,EPN!AN97,SPD!AN97,SPMW!AN97,SSEH!AN97,SSES!AN97)","v":95.468057637810546},{"$f":"CHOOSE(m_identity,ENWL!AO97, NPgN!AO97, NPgY!AO97, WMID!AO97, EMID!AO97, SWALES!AO97, SWEST!AO97, LPN!AO97,SPN!AO97,EPN!AO97,SPD!AO97,SPMW!AO97,SSEH!AO97,SSES!AO97)","v":95.483459008462304},{"$f":"CHOOSE(m_identity,ENWL!AP97, NPgN!AP97, NPgY!AP97, WMID!AP97, EMID!AP97, SWALES!AP97, SWEST!AP97, LPN!AP97,SPN!AP97,EPN!AP97,SPD!AP97,SPMW!AP97,SSEH!AP97,SSES!AP97)","v":94.501063988771946},{"$f":"CHOOSE(m_identity,ENWL!AQ97, NPgN!AQ97, NPgY!AQ97, WMID!AQ97, EMID!AQ97, SWALES!AQ97, SWEST!AQ97, LPN!AQ97,SPN!AQ97,EPN!AQ97,SPD!AQ97,SPMW!AQ97,SSEH!AQ97,SSES!AQ97)","v":94.992257906688664}]
[]
[null,null,null,"Variant allowances"]
[]
[null,null,null,null,{"$f":"E18","v":"Allowed uncertain costs (CNI)"},null,"£m 12/13 prices",null,null,null,null,null,null,null,null,null,null,null,null,null,null,null,null,null,null,null,null,null,null,null,null,null,null,null,null,{"$f":"AJ18","v":0},{"$f":"AK18","v":0},0,0,0,0,0,0]
[null,null,null,null,"Allocation to load related capex",null,"%",null,null,null,null,null,null,null,null,null,null,null,null,null,null,null,null,null,null,null,null,null,null,null,null,null,null,null,null,{"$f":"CHOOSE(m_identity,ENWL!AJ102, NPgN!AJ102, NPgY!AJ102, WMID!AJ102, EMID!AJ102, SWALES!AJ102, SWEST!AJ102, LPN!AJ102,SPN!AJ102,EPN!AJ102,SPD!AJ102,SPMW!AJ102,SSEH!AJ102,SSES!AJ102)","v":0},{"$f":"CHOOSE(m_identity,ENWL!AK102, NPgN!AK102, NPgY!AK102, WMID!AK102, EMID!AK102, SWALES!AK102, SWEST!AK102, LPN!AK102,SPN!AK102,EPN!AK102,SPD!AK102,SPMW!AK102,SSEH!AK102,SSES!AK102)","v":0},{"$f":"CHOOSE(m_identity,ENWL!AL102, NPgN!AL102, NPgY!AL102, WMID!AL102, EMID!AL102, SWALES!AL102, SWEST!AL102, LPN!AL102,SPN!AL102,EPN!AL102,SPD!AL102,SPMW!AL102,SSEH!AL102,SSES!AL102)","v":0},{"$f":"CHOOSE(m_identity,ENWL!AM102, NPgN!AM102, NPgY!AM102, WMID!AM102, EMID!AM102, SWALES!AM102, SWEST!AM102, LPN!AM102,SPN!AM102,EPN!AM102,SPD!AM102,SPMW!AM102,SSEH!AM102,SSES!AM102)","v":0},{"$f":"CHOOSE(m_identity,ENWL!AN102, NPgN!AN102, NPgY!AN102, WMID!AN102, EMID!AN102, SWALES!AN102, SWEST!AN102, LPN!AN102,SPN!AN102,EPN!AN102,SPD!AN102,SPMW!AN102,SSEH!AN102,SSES!AN102)","v":0},{"$f":"CHOOSE(m_identity,ENWL!AO102, NPgN!AO102, NPgY!AO102, WMID!AO102, EMID!AO102, SWALES!AO102, SWEST!AO102, LPN!AO102,SPN!AO102,EPN!AO102,SPD!AO102,SPMW!AO102,SSEH!AO102,SSES!AO102)","v":0},{"$f":"CHOOSE(m_identity,ENWL!AP102, NPgN!AP102, NPgY!AP102, WMID!AP102, EMID!AP102, SWALES!AP102, SWEST!AP102, LPN!AP102,SPN!AP102,EPN!AP102,SPD!AP102,SPMW!AP102,SSEH!AP102,SSES!AP102)","v":0},{"$f":"CHOOSE(m_identity,ENWL!AQ102, NPgN!AQ102, NPgY!AQ102, WMID!AQ102, EMID!AQ102, SWALES!AQ102, SWEST!AQ102, LPN!AQ102,SPN!AQ102,EPN!AQ102,SPD!AQ102,SPMW!AQ102,SSEH!AQ102,SSES!AQ102)","v":0}]
[null,null,null,null,"Allocation to non-load related capex - asset replacement",null,"%",null,null,null,null,null,null,null,null,null,null,null,null,null,null,null,null,null,null,null,null,null,null,null,null,null,null,null,null,{"$f":"CHOOSE(m_identity,ENWL!AJ103, NPgN!AJ103, NPgY!AJ103, WMID!AJ103, EMID!AJ103, SWALES!AJ103, SWEST!AJ103, LPN!AJ103,SPN!AJ103,EPN!AJ103,SPD!AJ103,SPMW!AJ103,SSEH!AJ103,SSES!AJ103)","v":0},{"$f":"CHOOSE(m_identity,ENWL!AK103, NPgN!AK103, NPgY!AK103, WMID!AK103, EMID!AK103, SWALES!AK103, SWEST!AK103, LPN!AK103,SPN!AK103,EPN!AK103,SPD!AK103,SPMW!AK103,SSEH!AK103,SSES!AK103)","v":0},{"$f":"CHOOSE(m_identity,ENWL!AL103, NPgN!AL103, NPgY!AL103, WMID!AL103, EMID!AL103, SWALES!AL103, SWEST!AL103, LPN!AL103,SPN!AL103,EPN!AL103,SPD!AL103,SPMW!AL103,SSEH!AL103,SSES!AL103)","v":0},{"$f":"CHOOSE(m_identity,ENWL!AM103, NPgN!AM103, NPgY!AM103, WMID!AM103, EMID!AM103, SWALES!AM103, SWEST!AM103, LPN!AM103,SPN!AM103,EPN!AM103,SPD!AM103,SPMW!AM103,SSEH!AM103,SSES!AM103)","v":0},{"$f":"CHOOSE(m_identity,ENWL!AN103, NPgN!AN103, NPgY!AN103, WMID!AN103, EMID!AN103, SWALES!AN103, SWEST!AN103, LPN!AN103,SPN!AN103,EPN!AN103,SPD!AN103,SPMW!AN103,SSEH!AN103,SSES!AN103)","v":0},{"$f":"CHOOSE(m_identity,ENWL!AO103, NPgN!AO103, NPgY!AO103, WMID!AO103, EMID!AO103, SWALES!AO103, SWEST!AO103, LPN!AO103,SPN!AO103,EPN!AO103,SPD!AO103,SPMW!AO103,SSEH!AO103,SSES!AO103)","v":0},{"$f":"CHOOSE(m_identity,ENWL!AP103, NPgN!AP103, NPgY!AP103, WMID!AP103, EMID!AP103, SWALES!AP103, SWEST!AP103, LPN!AP103,SPN!AP103,EPN!AP103,SPD!AP103,SPMW!AP103,SSEH!AP103,SSES!AP103)","v":0},{"$f":"CHOOSE(m_identity,ENWL!AQ103, NPgN!AQ103, NPgY!AQ103, WMID!AQ103, EMID!AQ103, SWALES!AQ103, SWEST!AQ103, LPN!AQ103,SPN!AQ103,EPN!AQ103,SPD!AQ103,SPMW!AQ103,SSEH!AQ103,SSES!AQ103)","v":0}]
[null,null,null,null,"Allocation to non-load related capex - other",null,"%",null,null,null,null,null,null,null,null,null,null,null,null,null,null,null,null,null,null,null,null,null,null,null,null,null,null,null,null,{"$f":"CHOOSE(m_identity,ENWL!AJ104, NPgN!AJ104, NPgY!AJ104, WMID!AJ104, EMID!AJ104, SWALES!AJ104, SWEST!AJ104, LPN!AJ104,SPN!AJ104,EPN!AJ104,SPD!AJ104,SPMW!AJ104,SSEH!AJ104,SSES!AJ104)","v":1},{"$f":"CHOOSE(m_identity,ENWL!AK104, NPgN!AK104, NPgY!AK104, WMID!AK104, EMID!AK104, SWALES!AK104, SWEST!AK104, LPN!AK104,SPN!AK104,EPN!AK104,SPD!AK104,SPMW!AK104,SSEH!AK104,SSES!AK104)","v":1},{"$f":"CHOOSE(m_identity,ENWL!AL104, NPgN!AL104, NPgY!AL104, WMID!AL104, EMID!AL104, SWALES!AL104, SWEST!AL104, LPN!AL104,SPN!AL104,EPN!AL104,SPD!AL104,SPMW!AL104,SSEH!AL104,SSES!AL104)","v":1},{"$f":"CHOOSE(m_identity,ENWL!AM104, NPgN!AM104, NPgY!AM104, WMID!AM104, EMID!AM104, SWALES!AM104, SWEST!AM104, LPN!AM104,SPN!AM104,EPN!AM104,SPD!AM104,SPMW!AM104,SSEH!AM104,SSES!AM104)","v":1},{"$f":"CHOOSE(m_identity,ENWL!AN104, NPgN!AN104, NPgY!AN104, WMID!AN104, EMID!AN104, SWALES!AN104, SWEST!AN104, LPN!AN104,SPN!AN104,EPN!AN104,SPD!AN104,SPMW!AN104,SSEH!AN104,SSES!AN104)","v":1},{"$f":"CHOOSE(m_identity,ENWL!AO104, NPgN!AO104, NPgY!AO104, WMID!AO104, EMID!AO104, SWALES!AO104, SWEST!AO104, LPN!AO104,SPN!AO104,EPN!AO104,SPD!AO104,SPMW!AO104,SSEH!AO104,SSES!AO104)","v":1},{"$f":"CHOOSE(m_identity,ENWL!AP104, NPgN!AP104, NPgY!AP104, WMID!AP104, EMID!AP104, SWALES!AP104, SWEST!AP104, LPN!AP104,SPN!AP104,EPN!AP104,SPD!AP104,SPMW!AP104,SSEH!AP104,SSES!AP104)","v":1},{"$f":"CHOOSE(m_identity,ENWL!AQ104, NPgN!AQ104, NPgY!AQ104, WMID!AQ104, EMID!AQ104, SWALES!AQ104, SWEST!AQ104, LPN!AQ104,SPN!AQ104,EPN!AQ104,SPD!AQ104,SPMW!AQ104,SSEH!AQ104,SSES!AQ104)","v":1}]
[null,null,null,null,"Allocation to faults",null,"%",null,null,null,null,null,null,null,null,null,null,null,null,null,null,null,null,null,null,null,null,null,null,null,null,null,null,null,null,{"$f":"CHOOSE(m_identity,ENWL!AJ105, NPgN!AJ105, NPgY!AJ105, WMID!AJ105, EMID!AJ105, SWALES!AJ105, SWEST!AJ105, LPN!AJ105,SPN!AJ105,EPN!AJ105,SPD!AJ105,SPMW!AJ105,SSEH!AJ105,SSES!AJ105)","v":0},{"$f":"CHOOSE(m_identity,ENWL!AK105, NPgN!AK105, NPgY!AK105, WMID!AK105, EMID!AK105, SWALES!AK105, SWEST!AK105, LPN!AK105,SPN!AK105,EPN!AK105,SPD!AK105,SPMW!AK105,SSEH!AK105,SSES!AK105)","v":0},{"$f":"CHOOSE(m_identity,ENWL!AL105, NPgN!AL105, NPgY!AL105, WMID!AL105, EMID!AL105, SWALES!AL105, SWEST!AL105, LPN!AL105,SPN!AL105,EPN!AL105,SPD!AL105,SPMW!AL105,SSEH!AL105,SSES!AL105)","v":0},{"$f":"CHOOSE(m_identity,ENWL!AM105, NPgN!AM105, NPgY!AM105, WMID!AM105, EMID!AM105, SWALES!AM105, SWEST!AM105, LPN!AM105,SPN!AM105,EPN!AM105,SPD!AM105,SPMW!AM105,SSEH!AM105,SSES!AM105)","v":0},{"$f":"CHOOSE(m_identity,ENWL!AN105, NPgN!AN105, NPgY!AN105, WMID!AN105, EMID!AN105, SWALES!AN105, SWEST!AN105, LPN!AN105,SPN!AN105,EPN!AN105,SPD!AN105,SPMW!AN105,SSEH!AN105,SSES!AN105)","v":0},{"$f":"CHOOSE(m_identity,ENWL!AO105, NPgN!AO105, NPgY!AO105, WMID!AO105, EMID!AO105, SWALES!AO105, SWEST!AO105, LPN!AO105,SPN!AO105,EPN!AO105,SPD!AO105,SPMW!AO105,SSEH!AO105,SSES!AO105)","v":0},{"$f":"CHOOSE(m_identity,ENWL!AP105, NPgN!AP105, NPgY!AP105, WMID!AP105, EMID!AP105, SWALES!AP105, SWEST!AP105, LPN!AP105,SPN!AP105,EPN!AP105,SPD!AP105,SPMW!AP105,SSEH!AP105,SSES!AP105)","v":0},{"$f":"CHOOSE(m_identity,ENWL!AQ105, NPgN!AQ105, NPgY!AQ105, WMID!AQ105, EMID!AQ105, SWALES!AQ105, SWEST!AQ105, LPN!AQ105,SPN!AQ105,EPN!AQ105,SPD!AQ105,SPMW!AQ105,SSEH!AQ105,SSES!AQ105)","v":0}]
[null,null,null,null,"Allocation to tree cutting",null,"%",null,null,null,null,null,null,null,null,null,null,null,null,null,null,null,null,null,null,null,null,null,null,null,null,null,null,null,null,{"$f":"CHOOSE(m_identity,ENWL!AJ106, NPgN!AJ106, NPgY!AJ106, WMID!AJ106, EMID!AJ106, SWALES!AJ106, SWEST!AJ106, LPN!AJ106,SPN!AJ106,EPN!AJ106,SPD!AJ106,SPMW!AJ106,SSEH!AJ106,SSES!AJ106)","v":0},{"$f":"CHOOSE(m_identity,ENWL!AK106, NPgN!AK106, NPgY!AK106, WMID!AK106, EMID!AK106, SWALES!AK106, SWEST!AK106, LPN!AK106,SPN!AK106,EPN!AK106,SPD!AK106,SPMW!AK106,SSEH!AK106,SSES!AK106)","v":0},{"$f":"CHOOSE(m_identity,ENWL!AL106, NPgN!AL106, NPgY!AL106, WMID!AL106, EMID!AL106, SWALES!AL106, SWEST!AL106, LPN!AL106,SPN!AL106,EPN!AL106,SPD!AL106,SPMW!AL106,SSEH!AL106,SSES!AL106)","v":0},{"$f":"CHOOSE(m_identity,ENWL!AM106, NPgN!AM106, NPgY!AM106, WMID!AM106, EMID!AM106, SWALES!AM106, SWEST!AM106, LPN!AM106,SPN!AM106,EPN!AM106,SPD!AM106,SPMW!AM106,SSEH!AM106,SSES!AM106)","v":0},{"$f":"CHOOSE(m_identity,ENWL!AN106, NPgN!AN106, NPgY!AN106, WMID!AN106, EMID!AN106, SWALES!AN106, SWEST!AN106, LPN!AN106,SPN!AN106,EPN!AN106,SPD!AN106,SPMW!AN106,SSEH!AN106,SSES!AN106)","v":0},{"$f":"CHOOSE(m_identity,ENWL!AO106, NPgN!AO106, NPgY!AO106, WMID!AO106, EMID!AO106, SWALES!AO106, SWEST!AO106, LPN!AO106,SPN!AO106,EPN!AO106,SPD!AO106,SPMW!AO106,SSEH!AO106,SSES!AO106)","v":0},{"$f":"CHOOSE(m_identity,ENWL!AP106, NPgN!AP106, NPgY!AP106, WMID!AP106, EMID!AP106, SWALES!AP106, SWEST!AP106, LPN!AP106,SPN!AP106,EPN!AP106,SPD!AP106,SPMW!AP106,SSEH!AP106,SSES!AP106)","v":0},{"$f":"CHOOSE(m_identity,ENWL!AQ106, NPgN!AQ106, NPgY!AQ106, WMID!AQ106, EMID!AQ106, SWALES!AQ106, SWEST!AQ106, LPN!AQ106,SPN!AQ106,EPN!AQ106,SPD!AQ106,SPMW!AQ106,SSEH!AQ106,SSES!AQ106)","v":0}]
[null,null,null,null,"Allocation to controllable opex",null,"%",null,null,null,null,null,null,null,null,null,null,null,null,null,null,null,null,null,null,null,null,null,null,null,null,null,null,null,null,{"$f":"CHOOSE(m_identity,ENWL!AJ107, NPgN!AJ107, NPgY!AJ107, WMID!AJ107, EMID!AJ107, SWALES!AJ107, SWEST!AJ107, LPN!AJ107,SPN!AJ107,EPN!AJ107,SPD!AJ107,SPMW!AJ107,SSEH!AJ107,SSES!AJ107)","v":0},{"$f":"CHOOSE(m_identity,ENWL!AK107, NPgN!AK107, NPgY!AK107, WMID!AK107, EMID!AK107, SWALES!AK107, SWEST!AK107, LPN!AK107,SPN!AK107,EPN!AK107,SPD!AK107,SPMW!AK107,SSEH!AK107,SSES!AK107)","v":0},{"$f":"CHOOSE(m_identity,ENWL!AL107, NPgN!AL107, NPgY!AL107, WMID!AL107, EMID!AL107, SWALES!AL107, SWEST!AL107, LPN!AL107,SPN!AL107,EPN!AL107,SPD!AL107,SPMW!AL107,SSEH!AL107,SSES!AL107)","v":0},{"$f":"CHOOSE(m_identity,ENWL!AM107, NPgN!AM107, NPgY!AM107, WMID!AM107, EMID!AM107, SWALES!AM107, SWEST!AM107, LPN!AM107,SPN!AM107,EPN!AM107,SPD!AM107,SPMW!AM107,SSEH!AM107,SSES!AM107)","v":0},{"$f":"CHOOSE(m_identity,ENWL!AN107, NPgN!AN107, NPgY!AN107, WMID!AN107, EMID!AN107, SWALES!AN107, SWEST!AN107, LPN!AN107,SPN!AN107,EPN!AN107,SPD!AN107,SPMW!AN107,SSEH!AN107,SSES!AN107)","v":0},{"$f":"CHOOSE(m_identity,ENWL!AO107, NPgN!AO107, NPgY!AO107, WMID!AO107, EMID!AO107, SWALES!AO107, SWEST!AO107, LPN!AO107,SPN!AO107,EPN!AO107,SPD!AO107,SPMW!AO107,SSEH!AO107,SSES!AO107)","v":0},{"$f":"CHOOSE(m_identity,ENWL!AP107, NPgN!AP107, NPgY!AP107, WMID!AP107, EMID!AP107, SWALES!AP107, SWEST!AP107, LPN!AP107,SPN!AP107,EPN!AP107,SPD!AP107,SPMW!AP107,SSEH!AP107,SSES!AP107)","v":0},{"$f":"CHOOSE(m_identity,ENWL!AQ107, NPgN!AQ107, NPgY!AQ107, WMID!AQ107, EMID!AQ107, SWALES!AQ107, SWEST!AQ107, LPN!AQ107,SPN!AQ107,EPN!AQ107,SPD!AQ107,SPMW!AQ107,SSEH!AQ107,SSES!AQ107)","v":0}]
[]
[null,null,null,null,{"$f":"E19","v":"Allowed uncertain costs (High Value Projects)"},null,"£m 12/13 prices",null,null,null,null,null,null,null,null,null,null,null,null,null,null,null,null,null,null,null,null,null,null,null,null,null,null,null,null,{"$f":"AJ19","v":0},0,0,0,0,0,0,0]
[null,null,null,null,"Allocation to load related capex",null,"%",null,null,null,null,null,null,null,null,null,null,null,null,null,null,null,null,null,null,null,null,null,null,null,null,null,null,null,null,{"$f":"CHOOSE(m_identity,ENWL!AJ110, NPgN!AJ110, NPgY!AJ110, WMID!AJ110, EMID!AJ110, SWALES!AJ110, SWEST!AJ110, LPN!AJ110,SPN!AJ110,EPN!AJ110,SPD!AJ110,SPMW!AJ110,SSEH!AJ110,SSES!AJ110)","v":0},{"$f":"CHOOSE(m_identity,ENWL!AK110, NPgN!AK110, NPgY!AK110, WMID!AK110, EMID!AK110, SWALES!AK110, SWEST!AK110, LPN!AK110,SPN!AK110,EPN!AK110,SPD!AK110,SPMW!AK110,SSEH!AK110,SSES!AK110)","v":0},{"$f":"CHOOSE(m_identity,ENWL!AL110, NPgN!AL110, NPgY!AL110, WMID!AL110, EMID!AL110, SWALES!AL110, SWEST!AL110, LPN!AL110,SPN!AL110,EPN!AL110,SPD!AL110,SPMW!AL110,SSEH!AL110,SSES!AL110)","v":0},{"$f":"CHOOSE(m_identity,ENWL!AM110, NPgN!AM110, NPgY!AM110, WMID!AM110, EMID!AM110, SWALES!AM110, SWEST!AM110, LPN!AM110,SPN!AM110,EPN!AM110,SPD!AM110,SPMW!AM110,SSEH!AM110,SSES!AM110)","v":0},{"$f":"CHOOSE(m_identity,ENWL!AN110, NPgN!AN110, NPgY!AN110, WMID!AN110, EMID!AN110, SWALES!AN110, SWEST!AN110, LPN!AN110,SPN!AN110,EPN!AN110,SPD!AN110,SPMW!AN110,SSEH!AN110,SSES!AN110)","v":0},{"$f":"CHOOSE(m_identity,ENWL!AO110, NPgN!AO110, NPgY!AO110, WMID!AO110, EMID!AO110, SWALES!AO110, SWEST!AO110, LPN!AO110,SPN!AO110,EPN!AO110,SPD!AO110,SPMW!AO110,SSEH!AO110,SSES!AO110)","v":0},{"$f":"CHOOSE(m_identity,ENWL!AP110, NPgN!AP110, NPgY!AP110, WMID!AP110, EMID!AP110, SWALES!AP110, SWEST!AP110, LPN!AP110,SPN!AP110,EPN!AP110,SPD!AP110,SPMW!AP110,SSEH!AP110,SSES!AP110)","v":0},{"$f":"CHOOSE(m_identity,ENWL!AQ110, NPgN!AQ110, NPgY!AQ110, WMID!AQ110, EMID!AQ110, SWALES!AQ110, SWEST!AQ110, LPN!AQ110,SPN!AQ110,EPN!AQ110,SPD!AQ110,SPMW!AQ110,SSEH!AQ110,SSES!AQ110)","v":0}]
[null,null,null,null,"Allocation to non-load related capex - asset replacement",null,"%",null,null,null,null,null,null,null,null,null,null,null,null,null,null,null,null,null,null,null,null,null,null,null,null,null,null,null,null,{"$f":"CHOOSE(m_identity,ENWL!AJ111, NPgN!AJ111, NPgY!AJ111, WMID!AJ111, EMID!AJ111, SWALES!AJ111, SWEST!AJ111, LPN!AJ111,SPN!AJ111,EPN!AJ111,SPD!AJ111,SPMW!AJ111,SSEH!AJ111,SSES!AJ111)","v":0},{"$f":"CHOOSE(m_identity,ENWL!AK111, NPgN!AK111, NPgY!AK111, WMID!AK111, EMID!AK111, SWALES!AK111, SWEST!AK111, LPN!AK111,SPN!AK111,EPN!AK111,SPD!AK111,SPMW!AK111,SSEH!AK111,SSES!AK111)","v":0},{"$f":"CHOOSE(m_identity,ENWL!AL111, NPgN!AL111, NPgY!AL111, WMID!AL111, EMID!AL111, SWALES!AL111, SWEST!AL111, LPN!AL111,SPN!AL111,EPN!AL111,SPD!AL111,SPMW!AL111,SSEH!AL111,SSES!AL111)","v":0},{"$f":"CHOOSE(m_identity,ENWL!AM111, NPgN!AM111, NPgY!AM111, WMID!AM111, EMID!AM111, SWALES!AM111, SWEST!AM111, LPN!AM111,SPN!AM111,EPN!AM111,SPD!AM111,SPMW!AM111,SSEH!AM111,SSES!AM111)","v":0},{"$f":"CHOOSE(m_identity,ENWL!AN111, NPgN!AN111, NPgY!AN111, WMID!AN111, EMID!AN111, SWALES!AN111, SWEST!AN111, LPN!AN111,SPN!AN111,EPN!AN111,SPD!AN111,SPMW!AN111,SSEH!AN111,SSES!AN111)","v":0},{"$f":"CHOOSE(m_identity,ENWL!AO111, NPgN!AO111, NPgY!AO111, WMID!AO111, EMID!AO111, SWALES!AO111, SWEST!AO111, LPN!AO111,SPN!AO111,EPN!AO111,SPD!AO111,SPMW!AO111,SSEH!AO111,SSES!AO111)","v":0},{"$f":"CHOOSE(m_identity,ENWL!AP111, NPgN!AP111, NPgY!AP111, WMID!AP111, EMID!AP111, SWALES!AP111, SWEST!AP111, LPN!AP111,SPN!AP111,EPN!AP111,SPD!AP111,SPMW!AP111,SSEH!AP111,SSES!AP111)","v":0},{"$f":"CHOOSE(m_identity,ENWL!AQ111, NPgN!AQ111, NPgY!AQ111, WMID!AQ111, EMID!AQ111, SWALES!AQ111, SWEST!AQ111, LPN!AQ111,SPN!AQ111,EPN!AQ111,SPD!AQ111,SPMW!AQ111,SSEH!AQ111,SSES!AQ111)","v":0}]
[null,null,null,null,"Allocation to non-load related capex - other",null,"%",null,null,null,null,null,null,null,null,null,null,null,null,null,null,null,null,null,null,null,null,null,null,null,null,null,null,null,null,{"$f":"CHOOSE(m_identity,ENWL!AJ112, NPgN!AJ112, NPgY!AJ112, WMID!AJ112, EMID!AJ112, SWALES!AJ112, SWEST!AJ112, LPN!AJ112,SPN!AJ112,EPN!AJ112,SPD!AJ112,SPMW!AJ112,SSEH!AJ112,SSES!AJ112)","v":0},{"$f":"CHOOSE(m_identity,ENWL!AK112, NPgN!AK112, NPgY!AK112, WMID!AK112, EMID!AK112, SWALES!AK112, SWEST!AK112, LPN!AK112,SPN!AK112,EPN!AK112,SPD!AK112,SPMW!AK112,SSEH!AK112,SSES!AK112)","v":0},{"$f":"CHOOSE(m_identity,ENWL!AL112, NPgN!AL112, NPgY!AL112, WMID!AL112, EMID!AL112, SWALES!AL112, SWEST!AL112, LPN!AL112,SPN!AL112,EPN!AL112,SPD!AL112,SPMW!AL112,SSEH!AL112,SSES!AL112)","v":0},{"$f":"CHOOSE(m_identity,ENWL!AM112, NPgN!AM112, NPgY!AM112, WMID!AM112, EMID!AM112, SWALES!AM112, SWEST!AM112, LPN!AM112,SPN!AM112,EPN!AM112,SPD!AM112,SPMW!AM112,SSEH!AM112,SSES!AM112)","v":0},{"$f":"CHOOSE(m_identity,ENWL!AN112, NPgN!AN112, NPgY!AN112, WMID!AN112, EMID!AN112, SWALES!AN112, SWEST!AN112, LPN!AN112,SPN!AN112,EPN!AN112,SPD!AN112,SPMW!AN112,SSEH!AN112,SSES!AN112)","v":0},{"$f":"CHOOSE(m_identity,ENWL!AO112, NPgN!AO112, NPgY!AO112, WMID!AO112, EMID!AO112, SWALES!AO112, SWEST!AO112, LPN!AO112,SPN!AO112,EPN!AO112,SPD!AO112,SPMW!AO112,SSEH!AO112,SSES!AO112)","v":0},{"$f":"CHOOSE(m_identity,ENWL!AP112, NPgN!AP112, NPgY!AP112, WMID!AP112, EMID!AP112, SWALES!AP112, SWEST!AP112, LPN!AP112,SPN!AP112,EPN!AP112,SPD!AP112,SPMW!AP112,SSEH!AP112,SSES!AP112)","v":0},{"$f":"CHOOSE(m_identity,ENWL!AQ112, NPgN!AQ112, NPgY!AQ112, WMID!AQ112, EMID!AQ112, SWALES!AQ112, SWEST!AQ112, LPN!AQ112,SPN!AQ112,EPN!AQ112,SPD!AQ112,SPMW!AQ112,SSEH!AQ112,SSES!AQ112)","v":0}]
[null,null,null,null,"Allocation to faults",null,"%",null,null,null,null,null,null,null,null,null,null,null,null,null,null,null,null,null,null,null,null,null,null,null,null,null,null,null,null,{"$f":"CHOOSE(m_identity,ENWL!AJ113, NPgN!AJ113, NPgY!AJ113, WMID!AJ113, EMID!AJ113, SWALES!AJ113, SWEST!AJ113, LPN!AJ113,SPN!AJ113,EPN!AJ113,SPD!AJ113,SPMW!AJ113,SSEH!AJ113,SSES!AJ113)","v":0},{"$f":"CHOOSE(m_identity,ENWL!AK113, NPgN!AK113, NPgY!AK113, WMID!AK113, EMID!AK113, SWALES!AK113, SWEST!AK113, LPN!AK113,SPN!AK113,EPN!AK113,SPD!AK113,SPMW!AK113,SSEH!AK113,SSES!AK113)","v":0},{"$f":"CHOOSE(m_identity,ENWL!AL113, NPgN!AL113, NPgY!AL113, WMID!AL113, EMID!AL113, SWALES!AL113, SWEST!AL113, LPN!AL113,SPN!AL113,EPN!AL113,SPD!AL113,SPMW!AL113,SSEH!AL113,SSES!AL113)","v":0},{"$f":"CHOOSE(m_identity,ENWL!AM113, NPgN!AM113, NPgY!AM113, WMID!AM113, EMID!AM113, SWALES!AM113, SWEST!AM113, LPN!AM113,SPN!AM113,EPN!AM113,SPD!AM113,SPMW!AM113,SSEH!AM113,SSES!AM113)","v":0},{"$f":"CHOOSE(m_identity,ENWL!AN113, NPgN!AN113, NPgY!AN113, WMID!AN113, EMID!AN113, SWALES!AN113, SWEST!AN113, LPN!AN113,SPN!AN113,EPN!AN113,SPD!AN113,SPMW!AN113,SSEH!AN113,SSES!AN113)","v":0},{"$f":"CHOOSE(m_identity,ENWL!AO113, NPgN!AO113, NPgY!AO113, WMID!AO113, EMID!AO113, SWALES!AO113, SWEST!AO113, LPN!AO113,SPN!AO113,EPN!AO113,SPD!AO113,SPMW!AO113,SSEH!AO113,SSES!AO113)","v":0},{"$f":"CHOOSE(m_identity,ENWL!AP113, NPgN!AP113, NPgY!AP113, WMID!AP113, EMID!AP113, SWALES!AP113, SWEST!AP113, LPN!AP113,SPN!AP113,EPN!AP113,SPD!AP113,SPMW!AP113,SSEH!AP113,SSES!AP113)","v":0},{"$f":"CHOOSE(m_identity,ENWL!AQ113, NPgN!AQ113, NPgY!AQ113, WMID!AQ113, EMID!AQ113, SWALES!AQ113, SWEST!AQ113, LPN!AQ113,SPN!AQ113,EPN!AQ113,SPD!AQ113,SPMW!AQ113,SSEH!AQ113,SSES!AQ113)","v":0}]
[null,null,null,null,"Allocation to tree cutting",null,"%",null,null,null,null,null,null,null,null,null,null,null,null,null,null,null,null,null,null,null,null,null,null,null,null,null,null,null,null,{"$f":"CHOOSE(m_identity,ENWL!AJ114, NPgN!AJ114, NPgY!AJ114, WMID!AJ114, EMID!AJ114, SWALES!AJ114, SWEST!AJ114, LPN!AJ114,SPN!AJ114,EPN!AJ114,SPD!AJ114,SPMW!AJ114,SSEH!AJ114,SSES!AJ114)","v":0},{"$f":"CHOOSE(m_identity,ENWL!AK114, NPgN!AK114, NPgY!AK114, WMID!AK114, EMID!AK114, SWALES!AK114, SWEST!AK114, LPN!AK114,SPN!AK114,EPN!AK114,SPD!AK114,SPMW!AK114,SSEH!AK114,SSES!AK114)","v":0},{"$f":"CHOOSE(m_identity,ENWL!AL114, NPgN!AL114, NPgY!AL114, WMID!AL114, EMID!AL114, SWALES!AL114, SWEST!AL114, LPN!AL114,SPN!AL114,EPN!AL114,SPD!AL114,SPMW!AL114,SSEH!AL114,SSES!AL114)","v":0},{"$f":"CHOOSE(m_identity,ENWL!AM114, NPgN!AM114, NPgY!AM114, WMID!AM114, EMID!AM114, SWALES!AM114, SWEST!AM114, LPN!AM114,SPN!AM114,EPN!AM114,SPD!AM114,SPMW!AM114,SSEH!AM114,SSES!AM114)","v":0},{"$f":"CHOOSE(m_identity,ENWL!AN114, NPgN!AN114, NPgY!AN114, WMID!AN114, EMID!AN114, SWALES!AN114, SWEST!AN114, LPN!AN114,SPN!AN114,EPN!AN114,SPD!AN114,SPMW!AN114,SSEH!AN114,SSES!AN114)","v":0},{"$f":"CHOOSE(m_identity,ENWL!AO114, NPgN!AO114, NPgY!AO114, WMID!AO114, EMID!AO114, SWALES!AO114, SWEST!AO114, LPN!AO114,SPN!AO114,EPN!AO114,SPD!AO114,SPMW!AO114,SSEH!AO114,SSES!AO114)","v":0},{"$f":"CHOOSE(m_identity,ENWL!AP114, NPgN!AP114, NPgY!AP114, WMID!AP114, EMID!AP114, SWALES!AP114, SWEST!AP114, LPN!AP114,SPN!AP114,EPN!AP114,SPD!AP114,SPMW!AP114,SSEH!AP114,SSES!AP114)","v":0},{"$f":"CHOOSE(m_identity,ENWL!AQ114, NPgN!AQ114, NPgY!AQ114, WMID!AQ114, EMID!AQ114, SWALES!AQ114, SWEST!AQ114, LPN!AQ114,SPN!AQ114,EPN!AQ114,SPD!AQ114,SPMW!AQ114,SSEH!AQ114,SSES!AQ114)","v":0}]
[null,null,null,null,"Allocation to controllable opex",null,"%",null,null,null,null,null,null,null,null,null,null,null,null,null,null,null,null,null,null,null,null,null,null,null,null,null,null,null,null,{"$f":"CHOOSE(m_identity,ENWL!AJ115, NPgN!AJ115, NPgY!AJ115, WMID!AJ115, EMID!AJ115, SWALES!AJ115, SWEST!AJ115, LPN!AJ115,SPN!AJ115,EPN!AJ115,SPD!AJ115,SPMW!AJ115,SSEH!AJ115,SSES!AJ115)","v":0},{"$f":"CHOOSE(m_identity,ENWL!AK115, NPgN!AK115, NPgY!AK115, WMID!AK115, EMID!AK115, SWALES!AK115, SWEST!AK115, LPN!AK115,SPN!AK115,EPN!AK115,SPD!AK115,SPMW!AK115,SSEH!AK115,SSES!AK115)","v":0},{"$f":"CHOOSE(m_identity,ENWL!AL115, NPgN!AL115, NPgY!AL115, WMID!AL115, EMID!AL115, SWALES!AL115, SWEST!AL115, LPN!AL115,SPN!AL115,EPN!AL115,SPD!AL115,SPMW!AL115,SSEH!AL115,SSES!AL115)","v":0},{"$f":"CHOOSE(m_identity,ENWL!AM115, NPgN!AM115, NPgY!AM115, WMID!AM115, EMID!AM115, SWALES!AM115, SWEST!AM115, LPN!AM115,SPN!AM115,EPN!AM115,SPD!AM115,SPMW!AM115,SSEH!AM115,SSES!AM115)","v":0},{"$f":"CHOOSE(m_identity,ENWL!AN115, NPgN!AN115, NPgY!AN115, WMID!AN115, EMID!AN115, SWALES!AN115, SWEST!AN115, LPN!AN115,SPN!AN115,EPN!AN115,SPD!AN115,SPMW!AN115,SSEH!AN115,SSES!AN115)","v":0},{"$f":"CHOOSE(m_identity,ENWL!AO115, NPgN!AO115, NPgY!AO115, WMID!AO115, EMID!AO115, SWALES!AO115, SWEST!AO115, LPN!AO115,SPN!AO115,EPN!AO115,SPD!AO115,SPMW!AO115,SSEH!AO115,SSES!AO115)","v":0},{"$f":"CHOOSE(m_identity,ENWL!AP115, NPgN!AP115, NPgY!AP115, WMID!AP115, EMID!AP115, SWALES!AP115, SWEST!AP115, LPN!AP115,SPN!AP115,EPN!AP115,SPD!AP115,SPMW!AP115,SSEH!AP115,SSES!AP115)","v":0},{"$f":"CHOOSE(m_identity,ENWL!AQ115, NPgN!AQ115, NPgY!AQ115, WMID!AQ115, EMID!AQ115, SWALES!AQ115, SWEST!AQ115, LPN!AQ115,SPN!AQ115,EPN!AQ115,SPD!AQ115,SPMW!AQ115,SSEH!AQ115,SSES!AQ115)","v":0}]
[]
[null,null,null,null,{"$f":"E20","v":"Allowed uncertain costs (Undergrounding)"},null,"£m 12/13 prices",null,null,null,null,null,null,null,null,null,null,null,null,null,null,null,null,null,null,null,null,null,null,null,null,null,null,null,null,{"$f":"AJ20","v":0.32086328195134051},{"$f":"AK20","v":0.32012347815469605},0.32075061980619068,0.3200639505270263,0.32054124459468625,0.32108466564649085,0.32034348109040567,0.32108561571780592]
[null,null,null,null,"Allocation to load related capex",null,"%",null,null,null,null,null,null,null,null,null,null,null,null,null,null,null,null,null,null,null,null,null,null,null,null,null,null,null,null,{"$f":"CHOOSE(m_identity,ENWL!AJ118, NPgN!AJ118, NPgY!AJ118, WMID!AJ118, EMID!AJ118, SWALES!AJ118, SWEST!AJ118, LPN!AJ118,SPN!AJ118,EPN!AJ118,SPD!AJ118,SPMW!AJ118,SSEH!AJ118,SSES!AJ118)","v":0},{"$f":"CHOOSE(m_identity,ENWL!AK118, NPgN!AK118, NPgY!AK118, WMID!AK118, EMID!AK118, SWALES!AK118, SWEST!AK118, LPN!AK118,SPN!AK118,EPN!AK118,SPD!AK118,SPMW!AK118,SSEH!AK118,SSES!AK118)","v":0},{"$f":"CHOOSE(m_identity,ENWL!AL118, NPgN!AL118, NPgY!AL118, WMID!AL118, EMID!AL118, SWALES!AL118, SWEST!AL118, LPN!AL118,SPN!AL118,EPN!AL118,SPD!AL118,SPMW!AL118,SSEH!AL118,SSES!AL118)","v":0},{"$f":"CHOOSE(m_identity,ENWL!AM118, NPgN!AM118, NPgY!AM118, WMID!AM118, EMID!AM118, SWALES!AM118, SWEST!AM118, LPN!AM118,SPN!AM118,EPN!AM118,SPD!AM118,SPMW!AM118,SSEH!AM118,SSES!AM118)","v":0},{"$f":"CHOOSE(m_identity,ENWL!AN118, NPgN!AN118, NPgY!AN118, WMID!AN118, EMID!AN118, SWALES!AN118, SWEST!AN118, LPN!AN118,SPN!AN118,EPN!AN118,SPD!AN118,SPMW!AN118,SSEH!AN118,SSES!AN118)","v":0},{"$f":"CHOOSE(m_identity,ENWL!AO118, NPgN!AO118, NPgY!AO118, WMID!AO118, EMID!AO118, SWALES!AO118, SWEST!AO118, LPN!AO118,SPN!AO118,EPN!AO118,SPD!AO118,SPMW!AO118,SSEH!AO118,SSES!AO118)","v":0},{"$f":"CHOOSE(m_identity,ENWL!AP118, NPgN!AP118, NPgY!AP118, WMID!AP118, EMID!AP118, SWALES!AP118, SWEST!AP118, LPN!AP118,SPN!AP118,EPN!AP118,SPD!AP118,SPMW!AP118,SSEH!AP118,SSES!AP118)","v":0},{"$f":"CHOOSE(m_identity,ENWL!AQ118, NPgN!AQ118, NPgY!AQ118, WMID!AQ118, EMID!AQ118, SWALES!AQ118, SWEST!AQ118, LPN!AQ118,SPN!AQ118,EPN!AQ118,SPD!AQ118,SPMW!AQ118,SSEH!AQ118,SSES!AQ118)","v":0}]
[null,null,null,null,"Allocation to non-load related capex - asset replacement",null,"%",null,null,null,null,null,null,null,null,null,null,null,null,null,null,null,null,null,null,null,null,null,null,null,null,null,null,null,null,{"$f":"CHOOSE(m_identity,ENWL!AJ119, NPgN!AJ119, NPgY!AJ119, WMID!AJ119, EMID!AJ119, SWALES!AJ119, SWEST!AJ119, LPN!AJ119,SPN!AJ119,EPN!AJ119,SPD!AJ119,SPMW!AJ119,SSEH!AJ119,SSES!AJ119)","v":0},{"$f":"CHOOSE(m_identity,ENWL!AK119, NPgN!AK119, NPgY!AK119, WMID!AK119, EMID!AK119, SWALES!AK119, SWEST!AK119, LPN!AK119,SPN!AK119,EPN!AK119,SPD!AK119,SPMW!AK119,SSEH!AK119,SSES!AK119)","v":0},{"$f":"CHOOSE(m_identity,ENWL!AL119, NPgN!AL119, NPgY!AL119, WMID!AL119, EMID!AL119, SWALES!AL119, SWEST!AL119, LPN!AL119,SPN!AL119,EPN!AL119,SPD!AL119,SPMW!AL119,SSEH!AL119,SSES!AL119)","v":0},{"$f":"CHOOSE(m_identity,ENWL!AM119, NPgN!AM119, NPgY!AM119, WMID!AM119, EMID!AM119, SWALES!AM119, SWEST!AM119, LPN!AM119,SPN!AM119,EPN!AM119,SPD!AM119,SPMW!AM119,SSEH!AM119,SSES!AM119)","v":0},{"$f":"CHOOSE(m_identity,ENWL!AN119, NPgN!AN119, NPgY!AN119, WMID!AN119, EMID!AN119, SWALES!AN119, SWEST!AN119, LPN!AN119,SPN!AN119,EPN!AN119,SPD!AN119,SPMW!AN119,SSEH!AN119,SSES!AN119)","v":0},{"$f":"CHOOSE(m_identity,ENWL!AO119, NPgN!AO119, NPgY!AO119, WMID!AO119, EMID!AO119, SWALES!AO119, SWEST!AO119, LPN!AO119,SPN!AO119,EPN!AO119,SPD!AO119,SPMW!AO119,SSEH!AO119,SSES!AO119)","v":0},{"$f":"CHOOSE(m_identity,ENWL!AP119, NPgN!AP119, NPgY!AP119, WMID!AP119, EMID!AP119, SWALES!AP119, SWEST!AP119, LPN!AP119,SPN!AP119,EPN!AP119,SPD!AP119,SPMW!AP119,SSEH!AP119,SSES!AP119)","v":0},{"$f":"CHOOSE(m_identity,ENWL!AQ119, NPgN!AQ119, NPgY!AQ119, WMID!AQ119, EMID!AQ119, SWALES!AQ119, SWEST!AQ119, LPN!AQ119,SPN!AQ119,EPN!AQ119,SPD!AQ119,SPMW!AQ119,SSEH!AQ119,SSES!AQ119)","v":0}]
[null,null,null,null,"Allocation to non-load related capex - other",null,"%",null,null,null,null,null,null,null,null,null,null,null,null,null,null,null,null,null,null,null,null,null,null,null,null,null,null,null,null,{"$f":"CHOOSE(m_identity,ENWL!AJ120, NPgN!AJ120, NPgY!AJ120, WMID!AJ120, EMID!AJ120, SWALES!AJ120, SWEST!AJ120, LPN!AJ120,SPN!AJ120,EPN!AJ120,SPD!AJ120,SPMW!AJ120,SSEH!AJ120,SSES!AJ120)","v":1},{"$f":"CHOOSE(m_identity,ENWL!AK120, NPgN!AK120, NPgY!AK120, WMID!AK120, EMID!AK120, SWALES!AK120, SWEST!AK120, LPN!AK120,SPN!AK120,EPN!AK120,SPD!AK120,SPMW!AK120,SSEH!AK120,SSES!AK120)","v":1},{"$f":"CHOOSE(m_identity,ENWL!AL120, NPgN!AL120, NPgY!AL120, WMID!AL120, EMID!AL120, SWALES!AL120, SWEST!AL120, LPN!AL120,SPN!AL120,EPN!AL120,SPD!AL120,SPMW!AL120,SSEH!AL120,SSES!AL120)","v":1},{"$f":"CHOOSE(m_identity,ENWL!AM120, NPgN!AM120, NPgY!AM120, WMID!AM120, EMID!AM120, SWALES!AM120, SWEST!AM120, LPN!AM120,SPN!AM120,EPN!AM120,SPD!AM120,SPMW!AM120,SSEH!AM120,SSES!AM120)","v":1},{"$f":"CHOOSE(m_identity,ENWL!AN120, NPgN!AN120, NPgY!AN120, WMID!AN120, EMID!AN120, SWALES!AN120, SWEST!AN120, LPN!AN120,SPN!AN120,EPN!AN120,SPD!AN120,SPMW!AN120,SSEH!AN120,SSES!AN120)","v":1},{"$f":"CHOOSE(m_identity,ENWL!AO120, NPgN!AO120, NPgY!AO120, WMID!AO120, EMID!AO120, SWALES!AO120, SWEST!AO120, LPN!AO120,SPN!AO120,EPN!AO120,SPD!AO120,SPMW!AO120,SSEH!AO120,SSES!AO120)","v":1},{"$f":"CHOOSE(m_identity,ENWL!AP120, NPgN!AP120, NPgY!AP120, WMID!AP120, EMID!AP120, SWALES!AP120, SWEST!AP120, LPN!AP120,SPN!AP120,EPN!AP120,SPD!AP120,SPMW!AP120,SSEH!AP120,SSES!AP120)","v":1},{"$f":"CHOOSE(m_identity,ENWL!AQ120, NPgN!AQ120, NPgY!AQ120, WMID!AQ120, EMID!AQ120, SWALES!AQ120, SWEST!AQ120, LPN!AQ120,SPN!AQ120,EPN!AQ120,SPD!AQ120,SPMW!AQ120,SSEH!AQ120,SSES!AQ120)","v":1}]
[null,null,null,null,"Allocation to faults",null,"%",null,null,null,null,null,null,null,null,null,null,null,null,null,null,null,null,null,null,null,null,null,null,null,null,null,null,null,null,{"$f":"CHOOSE(m_identity,ENWL!AJ121, NPgN!AJ121, NPgY!AJ121, WMID!AJ121, EMID!AJ121, SWALES!AJ121, SWEST!AJ121, LPN!AJ121,SPN!AJ121,EPN!AJ121,SPD!AJ121,SPMW!AJ121,SSEH!AJ121,SSES!AJ121)","v":0},{"$f":"CHOOSE(m_identity,ENWL!AK121, NPgN!AK121, NPgY!AK121, WMID!AK121, EMID!AK121, SWALES!AK121, SWEST!AK121, LPN!AK121,SPN!AK121,EPN!AK121,SPD!AK121,SPMW!AK121,SSEH!AK121,SSES!AK121)","v":0},{"$f":"CHOOSE(m_identity,ENWL!AL121, NPgN!AL121, NPgY!AL121, WMID!AL121, EMID!AL121, SWALES!AL121, SWEST!AL121, LPN!AL121,SPN!AL121,EPN!AL121,SPD!AL121,SPMW!AL121,SSEH!AL121,SSES!AL121)","v":0},{"$f":"CHOOSE(m_identity,ENWL!AM121, NPgN!AM121, NPgY!AM121, WMID!AM121, EMID!AM121, SWALES!AM121, SWEST!AM121, LPN!AM121,SPN!AM121,EPN!AM121,SPD!AM121,SPMW!AM121,SSEH!AM121,SSES!AM121)","v":0},{"$f":"CHOOSE(m_identity,ENWL!AN121, NPgN!AN121, NPgY!AN121, WMID!AN121, EMID!AN121, SWALES!AN121, SWEST!AN121, LPN!AN121,SPN!AN121,EPN!AN121,SPD!AN121,SPMW!AN121,SSEH!AN121,SSES!AN121)","v":0},{"$f":"CHOOSE(m_identity,ENWL!AO121, NPgN!AO121, NPgY!AO121, WMID!AO121, EMID!AO121, SWALES!AO121, SWEST!AO121, LPN!AO121,SPN!AO121,EPN!AO121,SPD!AO121,SPMW!AO121,SSEH!AO121,SSES!AO121)","v":0},{"$f":"CHOOSE(m_identity,ENWL!AP121, NPgN!AP121, NPgY!AP121, WMID!AP121, EMID!AP121, SWALES!AP121, SWEST!AP121, LPN!AP121,SPN!AP121,EPN!AP121,SPD!AP121,SPMW!AP121,SSEH!AP121,SSES!AP121)","v":0},{"$f":"CHOOSE(m_identity,ENWL!AQ121, NPgN!AQ121, NPgY!AQ121, WMID!AQ121, EMID!AQ121, SWALES!AQ121, SWEST!AQ121, LPN!AQ121,SPN!AQ121,EPN!AQ121,SPD!AQ121,SPMW!AQ121,SSEH!AQ121,SSES!AQ121)","v":0}]
[null,null,null,null,"Allocation to tree cutting",null,"%",null,null,null,null,null,null,null,null,null,null,null,null,null,null,null,null,null,null,null,null,null,null,null,null,null,null,null,null,{"$f":"CHOOSE(m_identity,ENWL!AJ122, NPgN!AJ122, NPgY!AJ122, WMID!AJ122, EMID!AJ122, SWALES!AJ122, SWEST!AJ122, LPN!AJ122,SPN!AJ122,EPN!AJ122,SPD!AJ122,SPMW!AJ122,SSEH!AJ122,SSES!AJ122)","v":0},{"$f":"CHOOSE(m_identity,ENWL!AK122, NPgN!AK122, NPgY!AK122, WMID!AK122, EMID!AK122, SWALES!AK122, SWEST!AK122, LPN!AK122,SPN!AK122,EPN!AK122,SPD!AK122,SPMW!AK122,SSEH!AK122,SSES!AK122)","v":0},{"$f":"CHOOSE(m_identity,ENWL!AL122, NPgN!AL122, NPgY!AL122, WMID!AL122, EMID!AL122, SWALES!AL122, SWEST!AL122, LPN!AL122,SPN!AL122,EPN!AL122,SPD!AL122,SPMW!AL122,SSEH!AL122,SSES!AL122)","v":0},{"$f":"CHOOSE(m_identity,ENWL!AM122, NPgN!AM122, NPgY!AM122, WMID!AM122, EMID!AM122, SWALES!AM122, SWEST!AM122, LPN!AM122,SPN!AM122,EPN!AM122,SPD!AM122,SPMW!AM122,SSEH!AM122,SSES!AM122)","v":0},{"$f":"CHOOSE(m_identity,ENWL!AN122, NPgN!AN122, NPgY!AN122, WMID!AN122, EMID!AN122, SWALES!AN122, SWEST!AN122, LPN!AN122,SPN!AN122,EPN!AN122,SPD!AN122,SPMW!AN122,SSEH!AN122,SSES!AN122)","v":0},{"$f":"CHOOSE(m_identity,ENWL!AO122, NPgN!AO122, NPgY!AO122, WMID!AO122, EMID!AO122, SWALES!AO122, SWEST!AO122, LPN!AO122,SPN!AO122,EPN!AO122,SPD!AO122,SPMW!AO122,SSEH!AO122,SSES!AO122)","v":0},{"$f":"CHOOSE(m_identity,ENWL!AP122, NPgN!AP122, NPgY!AP122, WMID!AP122, EMID!AP122, SWALES!AP122, SWEST!AP122, LPN!AP122,SPN!AP122,EPN!AP122,SPD!AP122,SPMW!AP122,SSEH!AP122,SSES!AP122)","v":0},{"$f":"CHOOSE(m_identity,ENWL!AQ122, NPgN!AQ122, NPgY!AQ122, WMID!AQ122, EMID!AQ122, SWALES!AQ122, SWEST!AQ122, LPN!AQ122,SPN!AQ122,EPN!AQ122,SPD!AQ122,SPMW!AQ122,SSEH!AQ122,SSES!AQ122)","v":0}]
[null,null,null,null,"Allocation to controllable opex",null,"%",null,null,null,null,null,null,null,null,null,null,null,null,null,null,null,null,null,null,null,null,null,null,null,null,null,null,null,null,{"$f":"CHOOSE(m_identity,ENWL!AJ123, NPgN!AJ123, NPgY!AJ123, WMID!AJ123, EMID!AJ123, SWALES!AJ123, SWEST!AJ123, LPN!AJ123,SPN!AJ123,EPN!AJ123,SPD!AJ123,SPMW!AJ123,SSEH!AJ123,SSES!AJ123)","v":0},{"$f":"CHOOSE(m_identity,ENWL!AK123, NPgN!AK123, NPgY!AK123, WMID!AK123, EMID!AK123, SWALES!AK123, SWEST!AK123, LPN!AK123,SPN!AK123,EPN!AK123,SPD!AK123,SPMW!AK123,SSEH!AK123,SSES!AK123)","v":0},{"$f":"CHOOSE(m_identity,ENWL!AL123, NPgN!AL123, NPgY!AL123, WMID!AL123, EMID!AL123, SWALES!AL123, SWEST!AL123, LPN!AL123,SPN!AL123,EPN!AL123,SPD!AL123,SPMW!AL123,SSEH!AL123,SSES!AL123)","v":0},{"$f":"CHOOSE(m_identity,ENWL!AM123, NPgN!AM123, NPgY!AM123, WMID!AM123, EMID!AM123, SWALES!AM123, SWEST!AM123, LPN!AM123,SPN!AM123,EPN!AM123,SPD!AM123,SPMW!AM123,SSEH!AM123,SSES!AM123)","v":0},{"$f":"CHOOSE(m_identity,ENWL!AN123, NPgN!AN123, NPgY!AN123, WMID!AN123, EMID!AN123, SWALES!AN123, SWEST!AN123, LPN!AN123,SPN!AN123,EPN!AN123,SPD!AN123,SPMW!AN123,SSEH!AN123,SSES!AN123)","v":0},{"$f":"CHOOSE(m_identity,ENWL!AO123, NPgN!AO123, NPgY!AO123, WMID!AO123, EMID!AO123, SWALES!AO123, SWEST!AO123, LPN!AO123,SPN!AO123,EPN!AO123,SPD!AO123,SPMW!AO123,SSEH!AO123,SSES!AO123)","v":0},{"$f":"CHOOSE(m_identity,ENWL!AP123, NPgN!AP123, NPgY!AP123, WMID!AP123, EMID!AP123, SWALES!AP123, SWEST!AP123, LPN!AP123,SPN!AP123,EPN!AP123,SPD!AP123,SPMW!AP123,SSEH!AP123,SSES!AP123)","v":0},{"$f":"CHOOSE(m_identity,ENWL!AQ123, NPgN!AQ123, NPgY!AQ123, WMID!AQ123, EMID!AQ123, SWALES!AQ123, SWEST!AQ123, LPN!AQ123,SPN!AQ123,EPN!AQ123,SPD!AQ123,SPMW!AQ123,SSEH!AQ123,SSES!AQ123)","v":0}]
[]
[null,null,null,null,{"$f":"E21","v":"Allowed uncertain costs (Worst served customers)"},null,"£m 12/13 prices",null,null,null,null,null,null,null,null,null,null,null,null,null,null,null,null,null,null,null,null,null,null,null,null,null,null,null,null,{"$f":"AJ21","v":0},{"$f":"AK21","v":0.51094172215044242},0.51021335062644302,0,0,0,0,0]
[null,null,null,null,"Allocation to load related capex",null,"%",null,null,null,null,null,null,null,null,null,null,null,null,null,null,null,null,null,null,null,null,null,null,null,null,null,null,null,null,{"$f":"CHOOSE(m_identity,ENWL!AJ126, NPgN!AJ126, NPgY!AJ126, WMID!AJ126, EMID!AJ126, SWALES!AJ126, SWEST!AJ126, LPN!AJ126,SPN!AJ126,EPN!AJ126,SPD!AJ126,SPMW!AJ126,SSEH!AJ126,SSES!AJ126)","v":0},{"$f":"CHOOSE(m_identity,ENWL!AK126, NPgN!AK126, NPgY!AK126, WMID!AK126, EMID!AK126, SWALES!AK126, SWEST!AK126, LPN!AK126,SPN!AK126,EPN!AK126,SPD!AK126,SPMW!AK126,SSEH!AK126,SSES!AK126)","v":0},{"$f":"CHOOSE(m_identity,ENWL!AL126, NPgN!AL126, NPgY!AL126, WMID!AL126, EMID!AL126, SWALES!AL126, SWEST!AL126, LPN!AL126,SPN!AL126,EPN!AL126,SPD!AL126,SPMW!AL126,SSEH!AL126,SSES!AL126)","v":0},{"$f":"CHOOSE(m_identity,ENWL!AM126, NPgN!AM126, NPgY!AM126, WMID!AM126, EMID!AM126, SWALES!AM126, SWEST!AM126, LPN!AM126,SPN!AM126,EPN!AM126,SPD!AM126,SPMW!AM126,SSEH!AM126,SSES!AM126)","v":0},{"$f":"CHOOSE(m_identity,ENWL!AN126, NPgN!AN126, NPgY!AN126, WMID!AN126, EMID!AN126, SWALES!AN126, SWEST!AN126, LPN!AN126,SPN!AN126,EPN!AN126,SPD!AN126,SPMW!AN126,SSEH!AN126,SSES!AN126)","v":0},{"$f":"CHOOSE(m_identity,ENWL!AO126, NPgN!AO126, NPgY!AO126, WMID!AO126, EMID!AO126, SWALES!AO126, SWEST!AO126, LPN!AO126,SPN!AO126,EPN!AO126,SPD!AO126,SPMW!AO126,SSEH!AO126,SSES!AO126)","v":0},{"$f":"CHOOSE(m_identity,ENWL!AP126, NPgN!AP126, NPgY!AP126, WMID!AP126, EMID!AP126, SWALES!AP126, SWEST!AP126, LPN!AP126,SPN!AP126,EPN!AP126,SPD!AP126,SPMW!AP126,SSEH!AP126,SSES!AP126)","v":0},{"$f":"CHOOSE(m_identity,ENWL!AQ126, NPgN!AQ126, NPgY!AQ126, WMID!AQ126, EMID!AQ126, SWALES!AQ126, SWEST!AQ126, LPN!AQ126,SPN!AQ126,EPN!AQ126,SPD!AQ126,SPMW!AQ126,SSEH!AQ126,SSES!AQ126)","v":0}]
[null,null,null,null,"Allocation to non-load related capex - asset replacement",null,"%",null,null,null,null,null,null,null,null,null,null,null,null,null,null,null,null,null,null,null,null,null,null,null,null,null,null,null,null,{"$f":"CHOOSE(m_identity,ENWL!AJ127, NPgN!AJ127, NPgY!AJ127, WMID!AJ127, EMID!AJ127, SWALES!AJ127, SWEST!AJ127, LPN!AJ127,SPN!AJ127,EPN!AJ127,SPD!AJ127,SPMW!AJ127,SSEH!AJ127,SSES!AJ127)","v":1},{"$f":"CHOOSE(m_identity,ENWL!AK127, NPgN!AK127, NPgY!AK127, WMID!AK127, EMID!AK127, SWALES!AK127, SWEST!AK127, LPN!AK127,SPN!AK127,EPN!AK127,SPD!AK127,SPMW!AK127,SSEH!AK127,SSES!AK127)","v":1},{"$f":"CHOOSE(m_identity,ENWL!AL127, NPgN!AL127, NPgY!AL127, WMID!AL127, EMID!AL127, SWALES!AL127, SWEST!AL127, LPN!AL127,SPN!AL127,EPN!AL127,SPD!AL127,SPMW!AL127,SSEH!AL127,SSES!AL127)","v":1},{"$f":"CHOOSE(m_identity,ENWL!AM127, NPgN!AM127, NPgY!AM127, WMID!AM127, EMID!AM127, SWALES!AM127, SWEST!AM127, LPN!AM127,SPN!AM127,EPN!AM127,SPD!AM127,SPMW!AM127,SSEH!AM127,SSES!AM127)","v":1},{"$f":"CHOOSE(m_identity,ENWL!AN127, NPgN!AN127, NPgY!AN127, WMID!AN127, EMID!AN127, SWALES!AN127, SWEST!AN127, LPN!AN127,SPN!AN127,EPN!AN127,SPD!AN127,SPMW!AN127,SSEH!AN127,SSES!AN127)","v":1},{"$f":"CHOOSE(m_identity,ENWL!AO127, NPgN!AO127, NPgY!AO127, WMID!AO127, EMID!AO127, SWALES!AO127, SWEST!AO127, LPN!AO127,SPN!AO127,EPN!AO127,SPD!AO127,SPMW!AO127,SSEH!AO127,SSES!AO127)","v":1},{"$f":"CHOOSE(m_identity,ENWL!AP127, NPgN!AP127, NPgY!AP127, WMID!AP127, EMID!AP127, SWALES!AP127, SWEST!AP127, LPN!AP127,SPN!AP127,EPN!AP127,SPD!AP127,SPMW!AP127,SSEH!AP127,SSES!AP127)","v":1},{"$f":"CHOOSE(m_identity,ENWL!AQ127, NPgN!AQ127, NPgY!AQ127, WMID!AQ127, EMID!AQ127, SWALES!AQ127, SWEST!AQ127, LPN!AQ127,SPN!AQ127,EPN!AQ127,SPD!AQ127,SPMW!AQ127,SSEH!AQ127,SSES!AQ127)","v":1}]
[null,null,null,null,"Allocation to non-load related capex - other",null,"%",null,null,null,null,null,null,null,null,null,null,null,null,null,null,null,null,null,null,null,null,null,null,null,null,null,null,null,null,{"$f":"CHOOSE(m_identity,ENWL!AJ128, NPgN!AJ128, NPgY!AJ128, WMID!AJ128, EMID!AJ128, SWALES!AJ128, SWEST!AJ128, LPN!AJ128,SPN!AJ128,EPN!AJ128,SPD!AJ128,SPMW!AJ128,SSEH!AJ128,SSES!AJ128)","v":0},{"$f":"CHOOSE(m_identity,ENWL!AK128, NPgN!AK128, NPgY!AK128, WMID!AK128, EMID!AK128, SWALES!AK128, SWEST!AK128, LPN!AK128,SPN!AK128,EPN!AK128,SPD!AK128,SPMW!AK128,SSEH!AK128,SSES!AK128)","v":0},{"$f":"CHOOSE(m_identity,ENWL!AL128, NPgN!AL128, NPgY!AL128, WMID!AL128, EMID!AL128, SWALES!AL128, SWEST!AL128, LPN!AL128,SPN!AL128,EPN!AL128,SPD!AL128,SPMW!AL128,SSEH!AL128,SSES!AL128)","v":0},{"$f":"CHOOSE(m_identity,ENWL!AM128, NPgN!AM128, NPgY!AM128, WMID!AM128, EMID!AM128, SWALES!AM128, SWEST!AM128, LPN!AM128,SPN!AM128,EPN!AM128,SPD!AM128,SPMW!AM128,SSEH!AM128,SSES!AM128)","v":0},{"$f":"CHOOSE(m_identity,ENWL!AN128, NPgN!AN128, NPgY!AN128, WMID!AN128, EMID!AN128, SWALES!AN128, SWEST!AN128, LPN!AN128,SPN!AN128,EPN!AN128,SPD!AN128,SPMW!AN128,SSEH!AN128,SSES!AN128)","v":0},{"$f":"CHOOSE(m_identity,ENWL!AO128, NPgN!AO128, NPgY!AO128, WMID!AO128, EMID!AO128, SWALES!AO128, SWEST!AO128, LPN!AO128,SPN!AO128,EPN!AO128,SPD!AO128,SPMW!AO128,SSEH!AO128,SSES!AO128)","v":0},{"$f":"CHOOSE(m_identity,ENWL!AP128, NPgN!AP128, NPgY!AP128, WMID!AP128, EMID!AP128, SWALES!AP128, SWEST!AP128, LPN!AP128,SPN!AP128,EPN!AP128,SPD!AP128,SPMW!AP128,SSEH!AP128,SSES!AP128)","v":0},{"$f":"CHOOSE(m_identity,ENWL!AQ128, NPgN!AQ128, NPgY!AQ128, WMID!AQ128, EMID!AQ128, SWALES!AQ128, SWEST!AQ128, LPN!AQ128,SPN!AQ128,EPN!AQ128,SPD!AQ128,SPMW!AQ128,SSEH!AQ128,SSES!AQ128)","v":0}]
[null,null,null,null,"Allocation to faults",null,"%",null,null,null,null,null,null,null,null,null,null,null,null,null,null,null,null,null,null,null,null,null,null,null,null,null,null,null,null,{"$f":"CHOOSE(m_identity,ENWL!AJ129, NPgN!AJ129, NPgY!AJ129, WMID!AJ129, EMID!AJ129, SWALES!AJ129, SWEST!AJ129, LPN!AJ129,SPN!AJ129,EPN!AJ129,SPD!AJ129,SPMW!AJ129,SSEH!AJ129,SSES!AJ129)","v":0},{"$f":"CHOOSE(m_identity,ENWL!AK129, NPgN!AK129, NPgY!AK129, WMID!AK129, EMID!AK129, SWALES!AK129, SWEST!AK129, LPN!AK129,SPN!AK129,EPN!AK129,SPD!AK129,SPMW!AK129,SSEH!AK129,SSES!AK129)","v":0},{"$f":"CHOOSE(m_identity,ENWL!AL129, NPgN!AL129, NPgY!AL129, WMID!AL129, EMID!AL129, SWALES!AL129, SWEST!AL129, LPN!AL129,SPN!AL129,EPN!AL129,SPD!AL129,SPMW!AL129,SSEH!AL129,SSES!AL129)","v":0},{"$f":"CHOOSE(m_identity,ENWL!AM129, NPgN!AM129, NPgY!AM129, WMID!AM129, EMID!AM129, SWALES!AM129, SWEST!AM129, LPN!AM129,SPN!AM129,EPN!AM129,SPD!AM129,SPMW!AM129,SSEH!AM129,SSES!AM129)","v":0},{"$f":"CHOOSE(m_identity,ENWL!AN129, NPgN!AN129, NPgY!AN129, WMID!AN129, EMID!AN129, SWALES!AN129, SWEST!AN129, LPN!AN129,SPN!AN129,EPN!AN129,SPD!AN129,SPMW!AN129,SSEH!AN129,SSES!AN129)","v":0},{"$f":"CHOOSE(m_identity,ENWL!AO129, NPgN!AO129, NPgY!AO129, WMID!AO129, EMID!AO129, SWALES!AO129, SWEST!AO129, LPN!AO129,SPN!AO129,EPN!AO129,SPD!AO129,SPMW!AO129,SSEH!AO129,SSES!AO129)","v":0},{"$f":"CHOOSE(m_identity,ENWL!AP129, NPgN!AP129, NPgY!AP129, WMID!AP129, EMID!AP129, SWALES!AP129, SWEST!AP129, LPN!AP129,SPN!AP129,EPN!AP129,SPD!AP129,SPMW!AP129,SSEH!AP129,SSES!AP129)","v":0},{"$f":"CHOOSE(m_identity,ENWL!AQ129, NPgN!AQ129, NPgY!AQ129, WMID!AQ129, EMID!AQ129, SWALES!AQ129, SWEST!AQ129, LPN!AQ129,SPN!AQ129,EPN!AQ129,SPD!AQ129,SPMW!AQ129,SSEH!AQ129,SSES!AQ129)","v":0}]
[null,null,null,null,"Allocation to tree cutting",null,"%",null,null,null,null,null,null,null,null,null,null,null,null,null,null,null,null,null,null,null,null,null,null,null,null,null,null,null,null,{"$f":"CHOOSE(m_identity,ENWL!AJ130, NPgN!AJ130, NPgY!AJ130, WMID!AJ130, EMID!AJ130, SWALES!AJ130, SWEST!AJ130, LPN!AJ130,SPN!AJ130,EPN!AJ130,SPD!AJ130,SPMW!AJ130,SSEH!AJ130,SSES!AJ130)","v":0},{"$f":"CHOOSE(m_identity,ENWL!AK130, NPgN!AK130, NPgY!AK130, WMID!AK130, EMID!AK130, SWALES!AK130, SWEST!AK130, LPN!AK130,SPN!AK130,EPN!AK130,SPD!AK130,SPMW!AK130,SSEH!AK130,SSES!AK130)","v":0},{"$f":"CHOOSE(m_identity,ENWL!AL130, NPgN!AL130, NPgY!AL130, WMID!AL130, EMID!AL130, SWALES!AL130, SWEST!AL130, LPN!AL130,SPN!AL130,EPN!AL130,SPD!AL130,SPMW!AL130,SSEH!AL130,SSES!AL130)","v":0},{"$f":"CHOOSE(m_identity,ENWL!AM130, NPgN!AM130, NPgY!AM130, WMID!AM130, EMID!AM130, SWALES!AM130, SWEST!AM130, LPN!AM130,SPN!AM130,EPN!AM130,SPD!AM130,SPMW!AM130,SSEH!AM130,SSES!AM130)","v":0},{"$f":"CHOOSE(m_identity,ENWL!AN130, NPgN!AN130, NPgY!AN130, WMID!AN130, EMID!AN130, SWALES!AN130, SWEST!AN130, LPN!AN130,SPN!AN130,EPN!AN130,SPD!AN130,SPMW!AN130,SSEH!AN130,SSES!AN130)","v":0},{"$f":"CHOOSE(m_identity,ENWL!AO130, NPgN!AO130, NPgY!AO130, WMID!AO130, EMID!AO130, SWALES!AO130, SWEST!AO130, LPN!AO130,SPN!AO130,EPN!AO130,SPD!AO130,SPMW!AO130,SSEH!AO130,SSES!AO130)","v":0},{"$f":"CHOOSE(m_identity,ENWL!AP130, NPgN!AP130, NPgY!AP130, WMID!AP130, EMID!AP130, SWALES!AP130, SWEST!AP130, LPN!AP130,SPN!AP130,EPN!AP130,SPD!AP130,SPMW!AP130,SSEH!AP130,SSES!AP130)","v":0},{"$f":"CHOOSE(m_identity,ENWL!AQ130, NPgN!AQ130, NPgY!AQ130, WMID!AQ130, EMID!AQ130, SWALES!AQ130, SWEST!AQ130, LPN!AQ130,SPN!AQ130,EPN!AQ130,SPD!AQ130,SPMW!AQ130,SSEH!AQ130,SSES!AQ130)","v":0}]
[null,null,null,null,"Allocation to controllable opex",null,"%",null,null,null,null,null,null,null,null,null,null,null,null,null,null,null,null,null,null,null,null,null,null,null,null,null,null,null,null,{"$f":"CHOOSE(m_identity,ENWL!AJ131, NPgN!AJ131, NPgY!AJ131, WMID!AJ131, EMID!AJ131, SWALES!AJ131, SWEST!AJ131, LPN!AJ131,SPN!AJ131,EPN!AJ131,SPD!AJ131,SPMW!AJ131,SSEH!AJ131,SSES!AJ131)","v":0},{"$f":"CHOOSE(m_identity,ENWL!AK131, NPgN!AK131, NPgY!AK131, WMID!AK131, EMID!AK131, SWALES!AK131, SWEST!AK131, LPN!AK131,SPN!AK131,EPN!AK131,SPD!AK131,SPMW!AK131,SSEH!AK131,SSES!AK131)","v":0},{"$f":"CHOOSE(m_identity,ENWL!AL131, NPgN!AL131, NPgY!AL131, WMID!AL131, EMID!AL131, SWALES!AL131, SWEST!AL131, LPN!AL131,SPN!AL131,EPN!AL131,SPD!AL131,SPMW!AL131,SSEH!AL131,SSES!AL131)","v":0},{"$f":"CHOOSE(m_identity,ENWL!AM131, NPgN!AM131, NPgY!AM131, WMID!AM131, EMID!AM131, SWALES!AM131, SWEST!AM131, LPN!AM131,SPN!AM131,EPN!AM131,SPD!AM131,SPMW!AM131,SSEH!AM131,SSES!AM131)","v":0},{"$f":"CHOOSE(m_identity,ENWL!AN131, NPgN!AN131, NPgY!AN131, WMID!AN131, EMID!AN131, SWALES!AN131, SWEST!AN131, LPN!AN131,SPN!AN131,EPN!AN131,SPD!AN131,SPMW!AN131,SSEH!AN131,SSES!AN131)","v":0},{"$f":"CHOOSE(m_identity,ENWL!AO131, NPgN!AO131, NPgY!AO131, WMID!AO131, EMID!AO131, SWALES!AO131, SWEST!AO131, LPN!AO131,SPN!AO131,EPN!AO131,SPD!AO131,SPMW!AO131,SSEH!AO131,SSES!AO131)","v":0},{"$f":"CHOOSE(m_identity,ENWL!AP131, NPgN!AP131, NPgY!AP131, WMID!AP131, EMID!AP131, SWALES!AP131, SWEST!AP131, LPN!AP131,SPN!AP131,EPN!AP131,SPD!AP131,SPMW!AP131,SSEH!AP131,SSES!AP131)","v":0},{"$f":"CHOOSE(m_identity,ENWL!AQ131, NPgN!AQ131, NPgY!AQ131, WMID!AQ131, EMID!AQ131, SWALES!AQ131, SWEST!AQ131, LPN!AQ131,SPN!AQ131,EPN!AQ131,SPD!AQ131,SPMW!AQ131,SSEH!AQ131,SSES!AQ131)","v":0}]
[]
[null,null,null,null,{"$f":"E22","v":"Allowed uncertain costs (Smart metering roll out costs)"},null,"£m 12/13 prices",null,null,null,null,null,null,null,null,null,null,null,null,null,null,null,null,null,null,null,null,null,null,null,null,null,null,null,null,{"$f":"AJ22","v":5.2486320406245866E-2},5.1858360656762227E-2,5.0565223182818066E-2,4.5902567234348074E-2,4.2000926042862867E-2,4.3730330780959767E-2,0,0]
[null,null,null,null,"Allocation to load related capex",null,"%",null,null,null,null,null,null,null,null,null,null,null,null,null,null,null,null,null,null,null,null,null,null,null,null,null,null,null,null,{"$f":"CHOOSE(m_identity,ENWL!AJ134, NPgN!AJ134, NPgY!AJ134, WMID!AJ134, EMID!AJ134, SWALES!AJ134, SWEST!AJ134, LPN!AJ134,SPN!AJ134,EPN!AJ134,SPD!AJ134,SPMW!AJ134,SSEH!AJ134,SSES!AJ134)","v":0},{"$f":"CHOOSE(m_identity,ENWL!AK134, NPgN!AK134, NPgY!AK134, WMID!AK134, EMID!AK134, SWALES!AK134, SWEST!AK134, LPN!AK134,SPN!AK134,EPN!AK134,SPD!AK134,SPMW!AK134,SSEH!AK134,SSES!AK134)","v":0},{"$f":"CHOOSE(m_identity,ENWL!AL134, NPgN!AL134, NPgY!AL134, WMID!AL134, EMID!AL134, SWALES!AL134, SWEST!AL134, LPN!AL134,SPN!AL134,EPN!AL134,SPD!AL134,SPMW!AL134,SSEH!AL134,SSES!AL134)","v":0},{"$f":"CHOOSE(m_identity,ENWL!AM134, NPgN!AM134, NPgY!AM134, WMID!AM134, EMID!AM134, SWALES!AM134, SWEST!AM134, LPN!AM134,SPN!AM134,EPN!AM134,SPD!AM134,SPMW!AM134,SSEH!AM134,SSES!AM134)","v":0},{"$f":"CHOOSE(m_identity,ENWL!AN134, NPgN!AN134, NPgY!AN134, WMID!AN134, EMID!AN134, SWALES!AN134, SWEST!AN134, LPN!AN134,SPN!AN134,EPN!AN134,SPD!AN134,SPMW!AN134,SSEH!AN134,SSES!AN134)","v":0},{"$f":"CHOOSE(m_identity,ENWL!AO134, NPgN!AO134, NPgY!AO134, WMID!AO134, EMID!AO134, SWALES!AO134, SWEST!AO134, LPN!AO134,SPN!AO134,EPN!AO134,SPD!AO134,SPMW!AO134,SSEH!AO134,SSES!AO134)","v":0},{"$f":"CHOOSE(m_identity,ENWL!AP134, NPgN!AP134, NPgY!AP134, WMID!AP134, EMID!AP134, SWALES!AP134, SWEST!AP134, LPN!AP134,SPN!AP134,EPN!AP134,SPD!AP134,SPMW!AP134,SSEH!AP134,SSES!AP134)","v":0},{"$f":"CHOOSE(m_identity,ENWL!AQ134, NPgN!AQ134, NPgY!AQ134, WMID!AQ134, EMID!AQ134, SWALES!AQ134, SWEST!AQ134, LPN!AQ134,SPN!AQ134,EPN!AQ134,SPD!AQ134,SPMW!AQ134,SSEH!AQ134,SSES!AQ134)","v":0}]
[null,null,null,null,"Allocation to non-load related capex - asset replacement",null,"%",null,null,null,null,null,null,null,null,null,null,null,null,null,null,null,null,null,null,null,null,null,null,null,null,null,null,null,null,{"$f":"CHOOSE(m_identity,ENWL!AJ135, NPgN!AJ135, NPgY!AJ135, WMID!AJ135, EMID!AJ135, SWALES!AJ135, SWEST!AJ135, LPN!AJ135,SPN!AJ135,EPN!AJ135,SPD!AJ135,SPMW!AJ135,SSEH!AJ135,SSES!AJ135)","v":0},{"$f":"CHOOSE(m_identity,ENWL!AK135, NPgN!AK135, NPgY!AK135, WMID!AK135, EMID!AK135, SWALES!AK135, SWEST!AK135, LPN!AK135,SPN!AK135,EPN!AK135,SPD!AK135,SPMW!AK135,SSEH!AK135,SSES!AK135)","v":0},{"$f":"CHOOSE(m_identity,ENWL!AL135, NPgN!AL135, NPgY!AL135, WMID!AL135, EMID!AL135, SWALES!AL135, SWEST!AL135, LPN!AL135,SPN!AL135,EPN!AL135,SPD!AL135,SPMW!AL135,SSEH!AL135,SSES!AL135)","v":0},{"$f":"CHOOSE(m_identity,ENWL!AM135, NPgN!AM135, NPgY!AM135, WMID!AM135, EMID!AM135, SWALES!AM135, SWEST!AM135, LPN!AM135,SPN!AM135,EPN!AM135,SPD!AM135,SPMW!AM135,SSEH!AM135,SSES!AM135)","v":0},{"$f":"CHOOSE(m_identity,ENWL!AN135, NPgN!AN135, NPgY!AN135, WMID!AN135, EMID!AN135, SWALES!AN135, SWEST!AN135, LPN!AN135,SPN!AN135,EPN!AN135,SPD!AN135,SPMW!AN135,SSEH!AN135,SSES!AN135)","v":0},{"$f":"CHOOSE(m_identity,ENWL!AO135, NPgN!AO135, NPgY!AO135, WMID!AO135, EMID!AO135, SWALES!AO135, SWEST!AO135, LPN!AO135,SPN!AO135,EPN!AO135,SPD!AO135,SPMW!AO135,SSEH!AO135,SSES!AO135)","v":0},{"$f":"CHOOSE(m_identity,ENWL!AP135, NPgN!AP135, NPgY!AP135, WMID!AP135, EMID!AP135, SWALES!AP135, SWEST!AP135, LPN!AP135,SPN!AP135,EPN!AP135,SPD!AP135,SPMW!AP135,SSEH!AP135,SSES!AP135)","v":0},{"$f":"CHOOSE(m_identity,ENWL!AQ135, NPgN!AQ135, NPgY!AQ135, WMID!AQ135, EMID!AQ135, SWALES!AQ135, SWEST!AQ135, LPN!AQ135,SPN!AQ135,EPN!AQ135,SPD!AQ135,SPMW!AQ135,SSEH!AQ135,SSES!AQ135)","v":0}]
[null,null,null,null,"Allocation to non-load related capex - other",null,"%",null,null,null,null,null,null,null,null,null,null,null,null,null,null,null,null,null,null,null,null,null,null,null,null,null,null,null,null,{"$f":"CHOOSE(m_identity,ENWL!AJ136, NPgN!AJ136, NPgY!AJ136, WMID!AJ136, EMID!AJ136, SWALES!AJ136, SWEST!AJ136, LPN!AJ136,SPN!AJ136,EPN!AJ136,SPD!AJ136,SPMW!AJ136,SSEH!AJ136,SSES!AJ136)","v":0},{"$f":"CHOOSE(m_identity,ENWL!AK136, NPgN!AK136, NPgY!AK136, WMID!AK136, EMID!AK136, SWALES!AK136, SWEST!AK136, LPN!AK136,SPN!AK136,EPN!AK136,SPD!AK136,SPMW!AK136,SSEH!AK136,SSES!AK136)","v":0},{"$f":"CHOOSE(m_identity,ENWL!AL136, NPgN!AL136, NPgY!AL136, WMID!AL136, EMID!AL136, SWALES!AL136, SWEST!AL136, LPN!AL136,SPN!AL136,EPN!AL136,SPD!AL136,SPMW!AL136,SSEH!AL136,SSES!AL136)","v":0},{"$f":"CHOOSE(m_identity,ENWL!AM136, NPgN!AM136, NPgY!AM136, WMID!AM136, EMID!AM136, SWALES!AM136, SWEST!AM136, LPN!AM136,SPN!AM136,EPN!AM136,SPD!AM136,SPMW!AM136,SSEH!AM136,SSES!AM136)","v":0},{"$f":"CHOOSE(m_identity,ENWL!AN136, NPgN!AN136, NPgY!AN136, WMID!AN136, EMID!AN136, SWALES!AN136, SWEST!AN136, LPN!AN136,SPN!AN136,EPN!AN136,SPD!AN136,SPMW!AN136,SSEH!AN136,SSES!AN136)","v":0},{"$f":"CHOOSE(m_identity,ENWL!AO136, NPgN!AO136, NPgY!AO136, WMID!AO136, EMID!AO136, SWALES!AO136, SWEST!AO136, LPN!AO136,SPN!AO136,EPN!AO136,SPD!AO136,SPMW!AO136,SSEH!AO136,SSES!AO136)","v":0},{"$f":"CHOOSE(m_identity,ENWL!AP136, NPgN!AP136, NPgY!AP136, WMID!AP136, EMID!AP136, SWALES!AP136, SWEST!AP136, LPN!AP136,SPN!AP136,EPN!AP136,SPD!AP136,SPMW!AP136,SSEH!AP136,SSES!AP136)","v":0},{"$f":"CHOOSE(m_identity,ENWL!AQ136, NPgN!AQ136, NPgY!AQ136, WMID!AQ136, EMID!AQ136, SWALES!AQ136, SWEST!AQ136, LPN!AQ136,SPN!AQ136,EPN!AQ136,SPD!AQ136,SPMW!AQ136,SSEH!AQ136,SSES!AQ136)","v":0}]
[null,null,null,null,"Allocation to faults",null,"%",null,null,null,null,null,null,null,null,null,null,null,null,null,null,null,null,null,null,null,null,null,null,null,null,null,null,null,null,{"$f":"CHOOSE(m_identity,ENWL!AJ137, NPgN!AJ137, NPgY!AJ137, WMID!AJ137, EMID!AJ137, SWALES!AJ137, SWEST!AJ137, LPN!AJ137,SPN!AJ137,EPN!AJ137,SPD!AJ137,SPMW!AJ137,SSEH!AJ137,SSES!AJ137)","v":0},{"$f":"CHOOSE(m_identity,ENWL!AK137, NPgN!AK137, NPgY!AK137, WMID!AK137, EMID!AK137, SWALES!AK137, SWEST!AK137, LPN!AK137,SPN!AK137,EPN!AK137,SPD!AK137,SPMW!AK137,SSEH!AK137,SSES!AK137)","v":0},{"$f":"CHOOSE(m_identity,ENWL!AL137, NPgN!AL137, NPgY!AL137, WMID!AL137, EMID!AL137, SWALES!AL137, SWEST!AL137, LPN!AL137,SPN!AL137,EPN!AL137,SPD!AL137,SPMW!AL137,SSEH!AL137,SSES!AL137)","v":0},{"$f":"CHOOSE(m_identity,ENWL!AM137, NPgN!AM137, NPgY!AM137, WMID!AM137, EMID!AM137, SWALES!AM137, SWEST!AM137, LPN!AM137,SPN!AM137,EPN!AM137,SPD!AM137,SPMW!AM137,SSEH!AM137,SSES!AM137)","v":0},{"$f":"CHOOSE(m_identity,ENWL!AN137, NPgN!AN137, NPgY!AN137, WMID!AN137, EMID!AN137, SWALES!AN137, SWEST!AN137, LPN!AN137,SPN!AN137,EPN!AN137,SPD!AN137,SPMW!AN137,SSEH!AN137,SSES!AN137)","v":0},{"$f":"CHOOSE(m_identity,ENWL!AO137, NPgN!AO137, NPgY!AO137, WMID!AO137, EMID!AO137, SWALES!AO137, SWEST!AO137, LPN!AO137,SPN!AO137,EPN!AO137,SPD!AO137,SPMW!AO137,SSEH!AO137,SSES!AO137)","v":0},{"$f":"CHOOSE(m_identity,ENWL!AP137, NPgN!AP137, NPgY!AP137, WMID!AP137, EMID!AP137, SWALES!AP137, SWEST!AP137, LPN!AP137,SPN!AP137,EPN!AP137,SPD!AP137,SPMW!AP137,SSEH!AP137,SSES!AP137)","v":0},{"$f":"CHOOSE(m_identity,ENWL!AQ137, NPgN!AQ137, NPgY!AQ137, WMID!AQ137, EMID!AQ137, SWALES!AQ137, SWEST!AQ137, LPN!AQ137,SPN!AQ137,EPN!AQ137,SPD!AQ137,SPMW!AQ137,SSEH!AQ137,SSES!AQ137)","v":0}]
[null,null,null,null,"Allocation to tree cutting",null,"%",null,null,null,null,null,null,null,null,null,null,null,null,null,null,null,null,null,null,null,null,null,null,null,null,null,null,null,null,{"$f":"CHOOSE(m_identity,ENWL!AJ138, NPgN!AJ138, NPgY!AJ138, WMID!AJ138, EMID!AJ138, SWALES!AJ138, SWEST!AJ138, LPN!AJ138,SPN!AJ138,EPN!AJ138,SPD!AJ138,SPMW!AJ138,SSEH!AJ138,SSES!AJ138)","v":0},{"$f":"CHOOSE(m_identity,ENWL!AK138, NPgN!AK138, NPgY!AK138, WMID!AK138, EMID!AK138, SWALES!AK138, SWEST!AK138, LPN!AK138,SPN!AK138,EPN!AK138,SPD!AK138,SPMW!AK138,SSEH!AK138,SSES!AK138)","v":0},{"$f":"CHOOSE(m_identity,ENWL!AL138, NPgN!AL138, NPgY!AL138, WMID!AL138, EMID!AL138, SWALES!AL138, SWEST!AL138, LPN!AL138,SPN!AL138,EPN!AL138,SPD!AL138,SPMW!AL138,SSEH!AL138,SSES!AL138)","v":0},{"$f":"CHOOSE(m_identity,ENWL!AM138, NPgN!AM138, NPgY!AM138, WMID!AM138, EMID!AM138, SWALES!AM138, SWEST!AM138, LPN!AM138,SPN!AM138,EPN!AM138,SPD!AM138,SPMW!AM138,SSEH!AM138,SSES!AM138)","v":0},{"$f":"CHOOSE(m_identity,ENWL!AN138, NPgN!AN138, NPgY!AN138, WMID!AN138, EMID!AN138, SWALES!AN138, SWEST!AN138, LPN!AN138,SPN!AN138,EPN!AN138,SPD!AN138,SPMW!AN138,SSEH!AN138,SSES!AN138)","v":0},{"$f":"CHOOSE(m_identity,ENWL!AO138, NPgN!AO138, NPgY!AO138, WMID!AO138, EMID!AO138, SWALES!AO138, SWEST!AO138, LPN!AO138,SPN!AO138,EPN!AO138,SPD!AO138,SPMW!AO138,SSEH!AO138,SSES!AO138)","v":0},{"$f":"CHOOSE(m_identity,ENWL!AP138, NPgN!AP138, NPgY!AP138, WMID!AP138, EMID!AP138, SWALES!AP138, SWEST!AP138, LPN!AP138,SPN!AP138,EPN!AP138,SPD!AP138,SPMW!AP138,SSEH!AP138,SSES!AP138)","v":0},{"$f":"CHOOSE(m_identity,ENWL!AQ138, NPgN!AQ138, NPgY!AQ138, WMID!AQ138, EMID!AQ138, SWALES!AQ138, SWEST!AQ138, LPN!AQ138,SPN!AQ138,EPN!AQ138,SPD!AQ138,SPMW!AQ138,SSEH!AQ138,SSES!AQ138)","v":0}]
[null,null,null,null,"Allocation to controllable opex",null,"%",null,null,null,null,null,null,null,null,null,null,null,null,null,null,null,null,null,null,null,null,null,null,null,null,null,null,null,null,{"$f":"CHOOSE(m_identity,ENWL!AJ139, NPgN!AJ139, NPgY!AJ139, WMID!AJ139, EMID!AJ139, SWALES!AJ139, SWEST!AJ139, LPN!AJ139,SPN!AJ139,EPN!AJ139,SPD!AJ139,SPMW!AJ139,SSEH!AJ139,SSES!AJ139)","v":1},{"$f":"CHOOSE(m_identity,ENWL!AK139, NPgN!AK139, NPgY!AK139, WMID!AK139, EMID!AK139, SWALES!AK139, SWEST!AK139, LPN!AK139,SPN!AK139,EPN!AK139,SPD!AK139,SPMW!AK139,SSEH!AK139,SSES!AK139)","v":1},{"$f":"CHOOSE(m_identity,ENWL!AL139, NPgN!AL139, NPgY!AL139, WMID!AL139, EMID!AL139, SWALES!AL139, SWEST!AL139, LPN!AL139,SPN!AL139,EPN!AL139,SPD!AL139,SPMW!AL139,SSEH!AL139,SSES!AL139)","v":1},{"$f":"CHOOSE(m_identity,ENWL!AM139, NPgN!AM139, NPgY!AM139, WMID!AM139, EMID!AM139, SWALES!AM139, SWEST!AM139, LPN!AM139,SPN!AM139,EPN!AM139,SPD!AM139,SPMW!AM139,SSEH!AM139,SSES!AM139)","v":1},{"$f":"CHOOSE(m_identity,ENWL!AN139, NPgN!AN139, NPgY!AN139, WMID!AN139, EMID!AN139, SWALES!AN139, SWEST!AN139, LPN!AN139,SPN!AN139,EPN!AN139,SPD!AN139,SPMW!AN139,SSEH!AN139,SSES!AN139)","v":1},{"$f":"CHOOSE(m_identity,ENWL!AO139, NPgN!AO139, NPgY!AO139, WMID!AO139, EMID!AO139, SWALES!AO139, SWEST!AO139, LPN!AO139,SPN!AO139,EPN!AO139,SPD!AO139,SPMW!AO139,SSEH!AO139,SSES!AO139)","v":1},{"$f":"CHOOSE(m_identity,ENWL!AP139, NPgN!AP139, NPgY!AP139, WMID!AP139, EMID!AP139, SWALES!AP139, SWEST!AP139, LPN!AP139,SPN!AP139,EPN!AP139,SPD!AP139,SPMW!AP139,SSEH!AP139,SSES!AP139)","v":1},{"$f":"CHOOSE(m_identity,ENWL!AQ139, NPgN!AQ139, NPgY!AQ139, WMID!AQ139, EMID!AQ139, SWALES!AQ139, SWEST!AQ139, LPN!AQ139,SPN!AQ139,EPN!AQ139,SPD!AQ139,SPMW!AQ139,SSEH!AQ139,SSES!AQ139)","v":1}]
[]
[null,null,null,null,{"$f":"E23","v":"Allowed uncertain costs (Specified street work costs)"},null,"£m 12/13 prices",null,null,null,null,null,null,null,null,null,null,null,null,null,null,null,null,null,null,null,null,null,null,null,null,null,null,null,null,{"$f":"AJ23","v":0.16188256847902729},0.16839443827180209,0.16997288984617537,0.17244918155738986,0.1749503651981113,0.17753968760049155,0.18012768564886114,0.18278347898396746]
[null,null,null,null,"Allocation to load related capex",null,"%",null,null,null,null,null,null,null,null,null,null,null,null,null,null,null,null,null,null,null,null,null,null,null,null,null,null,null,null,{"$f":"CHOOSE(m_identity,ENWL!AJ142, NPgN!AJ142, NPgY!AJ142, WMID!AJ142, EMID!AJ142, SWALES!AJ142, SWEST!AJ142, LPN!AJ142,SPN!AJ142,EPN!AJ142,SPD!AJ142,SPMW!AJ142,SSEH!AJ142,SSES!AJ142)","v":0},{"$f":"CHOOSE(m_identity,ENWL!AK142, NPgN!AK142, NPgY!AK142, WMID!AK142, EMID!AK142, SWALES!AK142, SWEST!AK142, LPN!AK142,SPN!AK142,EPN!AK142,SPD!AK142,SPMW!AK142,SSEH!AK142,SSES!AK142)","v":0},{"$f":"CHOOSE(m_identity,ENWL!AL142, NPgN!AL142, NPgY!AL142, WMID!AL142, EMID!AL142, SWALES!AL142, SWEST!AL142, LPN!AL142,SPN!AL142,EPN!AL142,SPD!AL142,SPMW!AL142,SSEH!AL142,SSES!AL142)","v":0},{"$f":"CHOOSE(m_identity,ENWL!AM142, NPgN!AM142, NPgY!AM142, WMID!AM142, EMID!AM142, SWALES!AM142, SWEST!AM142, LPN!AM142,SPN!AM142,EPN!AM142,SPD!AM142,SPMW!AM142,SSEH!AM142,SSES!AM142)","v":0},{"$f":"CHOOSE(m_identity,ENWL!AN142, NPgN!AN142, NPgY!AN142, WMID!AN142, EMID!AN142, SWALES!AN142, SWEST!AN142, LPN!AN142,SPN!AN142,EPN!AN142,SPD!AN142,SPMW!AN142,SSEH!AN142,SSES!AN142)","v":0},{"$f":"CHOOSE(m_identity,ENWL!AO142, NPgN!AO142, NPgY!AO142, WMID!AO142, EMID!AO142, SWALES!AO142, SWEST!AO142, LPN!AO142,SPN!AO142,EPN!AO142,SPD!AO142,SPMW!AO142,SSEH!AO142,SSES!AO142)","v":0},{"$f":"CHOOSE(m_identity,ENWL!AP142, NPgN!AP142, NPgY!AP142, WMID!AP142, EMID!AP142, SWALES!AP142, SWEST!AP142, LPN!AP142,SPN!AP142,EPN!AP142,SPD!AP142,SPMW!AP142,SSEH!AP142,SSES!AP142)","v":0},{"$f":"CHOOSE(m_identity,ENWL!AQ142, NPgN!AQ142, NPgY!AQ142, WMID!AQ142, EMID!AQ142, SWALES!AQ142, SWEST!AQ142, LPN!AQ142,SPN!AQ142,EPN!AQ142,SPD!AQ142,SPMW!AQ142,SSEH!AQ142,SSES!AQ142)","v":0}]
[null,null,null,null,"Allocation to non-load related capex - asset replacement",null,"%",null,null,null,null,null,null,null,null,null,null,null,null,null,null,null,null,null,null,null,null,null,null,null,null,null,null,null,null,{"$f":"CHOOSE(m_identity,ENWL!AJ143, NPgN!AJ143, NPgY!AJ143, WMID!AJ143, EMID!AJ143, SWALES!AJ143, SWEST!AJ143, LPN!AJ143,SPN!AJ143,EPN!AJ143,SPD!AJ143,SPMW!AJ143,SSEH!AJ143,SSES!AJ143)","v":0.41295587765905079},{"$f":"CHOOSE(m_identity,ENWL!AK143, NPgN!AK143, NPgY!AK143, WMID!AK143, EMID!AK143, SWALES!AK143, SWEST!AK143, LPN!AK143,SPN!AK143,EPN!AK143,SPD!AK143,SPMW!AK143,SSEH!AK143,SSES!AK143)","v":0.41253060566568206},{"$f":"CHOOSE(m_identity,ENWL!AL143, NPgN!AL143, NPgY!AL143, WMID!AL143, EMID!AL143, SWALES!AL143, SWEST!AL143, LPN!AL143,SPN!AL143,EPN!AL143,SPD!AL143,SPMW!AL143,SSEH!AL143,SSES!AL143)","v":0.4122837968587999},{"$f":"CHOOSE(m_identity,ENWL!AM143, NPgN!AM143, NPgY!AM143, WMID!AM143, EMID!AM143, SWALES!AM143, SWEST!AM143, LPN!AM143,SPN!AM143,EPN!AM143,SPD!AM143,SPMW!AM143,SSEH!AM143,SSES!AM143)","v":0.41175758794606204},{"$f":"CHOOSE(m_identity,ENWL!AN143, NPgN!AN143, NPgY!AN143, WMID!AN143, EMID!AN143, SWALES!AN143, SWEST!AN143, LPN!AN143,SPN!AN143,EPN!AN143,SPD!AN143,SPMW!AN143,SSEH!AN143,SSES!AN143)","v":0.4111777275471537},{"$f":"CHOOSE(m_identity,ENWL!AO143, NPgN!AO143, NPgY!AO143, WMID!AO143, EMID!AO143, SWALES!AO143, SWEST!AO143, LPN!AO143,SPN!AO143,EPN!AO143,SPD!AO143,SPMW!AO143,SSEH!AO143,SSES!AO143)","v":0.41074937284914037},{"$f":"CHOOSE(m_identity,ENWL!AP143, NPgN!AP143, NPgY!AP143, WMID!AP143, EMID!AP143, SWALES!AP143, SWEST!AP143, LPN!AP143,SPN!AP143,EPN!AP143,SPD!AP143,SPMW!AP143,SSEH!AP143,SSES!AP143)","v":0.41014921629506185},{"$f":"CHOOSE(m_identity,ENWL!AQ143, NPgN!AQ143, NPgY!AQ143, WMID!AQ143, EMID!AQ143, SWALES!AQ143, SWEST!AQ143, LPN!AQ143,SPN!AQ143,EPN!AQ143,SPD!AQ143,SPMW!AQ143,SSEH!AQ143,SSES!AQ143)","v":0.40958732711693496}]
[null,null,null,null,"Allocation to non-load related capex - other",null,"%",null,null,null,null,null,null,null,null,null,null,null,null,null,null,null,null,null,null,null,null,null,null,null,null,null,null,null,null,{"$f":"CHOOSE(m_identity,ENWL!AJ144, NPgN!AJ144, NPgY!AJ144, WMID!AJ144, EMID!AJ144, SWALES!AJ144, SWEST!AJ144, LPN!AJ144,SPN!AJ144,EPN!AJ144,SPD!AJ144,SPMW!AJ144,SSEH!AJ144,SSES!AJ144)","v":0},{"$f":"CHOOSE(m_identity,ENWL!AK144, NPgN!AK144, NPgY!AK144, WMID!AK144, EMID!AK144, SWALES!AK144, SWEST!AK144, LPN!AK144,SPN!AK144,EPN!AK144,SPD!AK144,SPMW!AK144,SSEH!AK144,SSES!AK144)","v":0},{"$f":"CHOOSE(m_identity,ENWL!AL144, NPgN!AL144, NPgY!AL144, WMID!AL144, EMID!AL144, SWALES!AL144, SWEST!AL144, LPN!AL144,SPN!AL144,EPN!AL144,SPD!AL144,SPMW!AL144,SSEH!AL144,SSES!AL144)","v":0},{"$f":"CHOOSE(m_identity,ENWL!AM144, NPgN!AM144, NPgY!AM144, WMID!AM144, EMID!AM144, SWALES!AM144, SWEST!AM144, LPN!AM144,SPN!AM144,EPN!AM144,SPD!AM144,SPMW!AM144,SSEH!AM144,SSES!AM144)","v":0},{"$f":"CHOOSE(m_identity,ENWL!AN144, NPgN!AN144, NPgY!AN144, WMID!AN144, EMID!AN144, SWALES!AN144, SWEST!AN144, LPN!AN144,SPN!AN144,EPN!AN144,SPD!AN144,SPMW!AN144,SSEH!AN144,SSES!AN144)","v":0},{"$f":"CHOOSE(m_identity,ENWL!AO144, NPgN!AO144, NPgY!AO144, WMID!AO144, EMID!AO144, SWALES!AO144, SWEST!AO144, LPN!AO144,SPN!AO144,EPN!AO144,SPD!AO144,SPMW!AO144,SSEH!AO144,SSES!AO144)","v":0},{"$f":"CHOOSE(m_identity,ENWL!AP144, NPgN!AP144, NPgY!AP144, WMID!AP144, EMID!AP144, SWALES!AP144, SWEST!AP144, LPN!AP144,SPN!AP144,EPN!AP144,SPD!AP144,SPMW!AP144,SSEH!AP144,SSES!AP144)","v":0},{"$f":"CHOOSE(m_identity,ENWL!AQ144, NPgN!AQ144, NPgY!AQ144, WMID!AQ144, EMID!AQ144, SWALES!AQ144, SWEST!AQ144, LPN!AQ144,SPN!AQ144,EPN!AQ144,SPD!AQ144,SPMW!AQ144,SSEH!AQ144,SSES!AQ144)","v":0}]
[null,null,null,null,"Allocation to faults",null,"%",null,null,null,null,null,null,null,null,null,null,null,null,null,null,null,null,null,null,null,null,null,null,null,null,null,null,null,null,{"$f":"CHOOSE(m_identity,ENWL!AJ145, NPgN!AJ145, NPgY!AJ145, WMID!AJ145, EMID!AJ145, SWALES!AJ145, SWEST!AJ145, LPN!AJ145,SPN!AJ145,EPN!AJ145,SPD!AJ145,SPMW!AJ145,SSEH!AJ145,SSES!AJ145)","v":0.58704412234094927},{"$f":"CHOOSE(m_identity,ENWL!AK145, NPgN!AK145, NPgY!AK145, WMID!AK145, EMID!AK145, SWALES!AK145, SWEST!AK145, LPN!AK145,SPN!AK145,EPN!AK145,SPD!AK145,SPMW!AK145,SSEH!AK145,SSES!AK145)","v":0.58746939433431788},{"$f":"CHOOSE(m_identity,ENWL!AL145, NPgN!AL145, NPgY!AL145, WMID!AL145, EMID!AL145, SWALES!AL145, SWEST!AL145, LPN!AL145,SPN!AL145,EPN!AL145,SPD!AL145,SPMW!AL145,SSEH!AL145,SSES!AL145)","v":0.5877162031412001},{"$f":"CHOOSE(m_identity,ENWL!AM145, NPgN!AM145, NPgY!AM145, WMID!AM145, EMID!AM145, SWALES!AM145, SWEST!AM145, LPN!AM145,SPN!AM145,EPN!AM145,SPD!AM145,SPMW!AM145,SSEH!AM145,SSES!AM145)","v":0.5882424120539379},{"$f":"CHOOSE(m_identity,ENWL!AN145, NPgN!AN145, NPgY!AN145, WMID!AN145, EMID!AN145, SWALES!AN145, SWEST!AN145, LPN!AN145,SPN!AN145,EPN!AN145,SPD!AN145,SPMW!AN145,SSEH!AN145,SSES!AN145)","v":0.58882227245284624},{"$f":"CHOOSE(m_identity,ENWL!AO145, NPgN!AO145, NPgY!AO145, WMID!AO145, EMID!AO145, SWALES!AO145, SWEST!AO145, LPN!AO145,SPN!AO145,EPN!AO145,SPD!AO145,SPMW!AO145,SSEH!AO145,SSES!AO145)","v":0.58925062715085974},{"$f":"CHOOSE(m_identity,ENWL!AP145, NPgN!AP145, NPgY!AP145, WMID!AP145, EMID!AP145, SWALES!AP145, SWEST!AP145, LPN!AP145,SPN!AP145,EPN!AP145,SPD!AP145,SPMW!AP145,SSEH!AP145,SSES!AP145)","v":0.58985078370493815},{"$f":"CHOOSE(m_identity,ENWL!AQ145, NPgN!AQ145, NPgY!AQ145, WMID!AQ145, EMID!AQ145, SWALES!AQ145, SWEST!AQ145, LPN!AQ145,SPN!AQ145,EPN!AQ145,SPD!AQ145,SPMW!AQ145,SSEH!AQ145,SSES!AQ145)","v":0.5904126728830652}]
[null,null,null,null,"Allocation to tree cutting",null,"%",null,null,null,null,null,null,null,null,null,null,null,null,null,null,null,null,null,null,null,null,null,null,null,null,null,null,null,null,{"$f":"CHOOSE(m_identity,ENWL!AJ146, NPgN!AJ146, NPgY!AJ146, WMID!AJ146, EMID!AJ146, SWALES!AJ146, SWEST!AJ146, LPN!AJ146,SPN!AJ146,EPN!AJ146,SPD!AJ146,SPMW!AJ146,SSEH!AJ146,SSES!AJ146)","v":0},{"$f":"CHOOSE(m_identity,ENWL!AK146, NPgN!AK146, NPgY!AK146, WMID!AK146, EMID!AK146, SWALES!AK146, SWEST!AK146, LPN!AK146,SPN!AK146,EPN!AK146,SPD!AK146,SPMW!AK146,SSEH!AK146,SSES!AK146)","v":0},{"$f":"CHOOSE(m_identity,ENWL!AL146, NPgN!AL146, NPgY!AL146, WMID!AL146, EMID!AL146, SWALES!AL146, SWEST!AL146, LPN!AL146,SPN!AL146,EPN!AL146,SPD!AL146,SPMW!AL146,SSEH!AL146,SSES!AL146)","v":0},{"$f":"CHOOSE(m_identity,ENWL!AM146, NPgN!AM146, NPgY!AM146, WMID!AM146, EMID!AM146, SWALES!AM146, SWEST!AM146, LPN!AM146,SPN!AM146,EPN!AM146,SPD!AM146,SPMW!AM146,SSEH!AM146,SSES!AM146)","v":0},{"$f":"CHOOSE(m_identity,ENWL!AN146, NPgN!AN146, NPgY!AN146, WMID!AN146, EMID!AN146, SWALES!AN146, SWEST!AN146, LPN!AN146,SPN!AN146,EPN!AN146,SPD!AN146,SPMW!AN146,SSEH!AN146,SSES!AN146)","v":0},{"$f":"CHOOSE(m_identity,ENWL!AO146, NPgN!AO146, NPgY!AO146, WMID!AO146, EMID!AO146, SWALES!AO146, SWEST!AO146, LPN!AO146,SPN!AO146,EPN!AO146,SPD!AO146,SPMW!AO146,SSEH!AO146,SSES!AO146)","v":0},{"$f":"CHOOSE(m_identity,ENWL!AP146, NPgN!AP146, NPgY!AP146, WMID!AP146, EMID!AP146, SWALES!AP146, SWEST!AP146, LPN!AP146,SPN!AP146,EPN!AP146,SPD!AP146,SPMW!AP146,SSEH!AP146,SSES!AP146)","v":0},{"$f":"CHOOSE(m_identity,ENWL!AQ146, NPgN!AQ146, NPgY!AQ146, WMID!AQ146, EMID!AQ146, SWALES!AQ146, SWEST!AQ146, LPN!AQ146,SPN!AQ146,EPN!AQ146,SPD!AQ146,SPMW!AQ146,SSEH!AQ146,SSES!AQ146)","v":0}]
[null,null,null,null,"Allocation to controllable opex",null,"%",null,null,null,null,null,null,null,null,null,null,null,null,null,null,null,null,null,null,null,null,null,null,null,null,null,null,null,null,{"$f":"CHOOSE(m_identity,ENWL!AJ147, NPgN!AJ147, NPgY!AJ147, WMID!AJ147, EMID!AJ147, SWALES!AJ147, SWEST!AJ147, LPN!AJ147,SPN!AJ147,EPN!AJ147,SPD!AJ147,SPMW!AJ147,SSEH!AJ147,SSES!AJ147)","v":0},{"$f":"CHOOSE(m_identity,ENWL!AK147, NPgN!AK147, NPgY!AK147, WMID!AK147, EMID!AK147, SWALES!AK147, SWEST!AK147, LPN!AK147,SPN!AK147,EPN!AK147,SPD!AK147,SPMW!AK147,SSEH!AK147,SSES!AK147)","v":0},{"$f":"CHOOSE(m_identity,ENWL!AL147, NPgN!AL147, NPgY!AL147, WMID!AL147, EMID!AL147, SWALES!AL147, SWEST!AL147, LPN!AL147,SPN!AL147,EPN!AL147,SPD!AL147,SPMW!AL147,SSEH!AL147,SSES!AL147)","v":0},{"$f":"CHOOSE(m_identity,ENWL!AM147, NPgN!AM147, NPgY!AM147, WMID!AM147, EMID!AM147, SWALES!AM147, SWEST!AM147, LPN!AM147,SPN!AM147,EPN!AM147,SPD!AM147,SPMW!AM147,SSEH!AM147,SSES!AM147)","v":0},{"$f":"CHOOSE(m_identity,ENWL!AN147, NPgN!AN147, NPgY!AN147, WMID!AN147, EMID!AN147, SWALES!AN147, SWEST!AN147, LPN!AN147,SPN!AN147,EPN!AN147,SPD!AN147,SPMW!AN147,SSEH!AN147,SSES!AN147)","v":0},{"$f":"CHOOSE(m_identity,ENWL!AO147, NPgN!AO147, NPgY!AO147, WMID!AO147, EMID!AO147, SWALES!AO147, SWEST!AO147, LPN!AO147,SPN!AO147,EPN!AO147,SPD!AO147,SPMW!AO147,SSEH!AO147,SSES!AO147)","v":0},{"$f":"CHOOSE(m_identity,ENWL!AP147, NPgN!AP147, NPgY!AP147, WMID!AP147, EMID!AP147, SWALES!AP147, SWEST!AP147, LPN!AP147,SPN!AP147,EPN!AP147,SPD!AP147,SPMW!AP147,SSEH!AP147,SSES!AP147)","v":0},{"$f":"CHOOSE(m_identity,ENWL!AQ147, NPgN!AQ147, NPgY!AQ147, WMID!AQ147, EMID!AQ147, SWALES!AQ147, SWEST!AQ147, LPN!AQ147,SPN!AQ147,EPN!AQ147,SPD!AQ147,SPMW!AQ147,SSEH!AQ147,SSES!AQ147)","v":0}]
[]
[null,null,null,null,{"$f":"E24","v":"Allowed uncertain costs (Load related re-operner)"},null,"£m 12/13 prices",null,null,null,null,null,null,null,null,null,null,null,null,null,null,null,null,null,null,null,null,null,null,null,null,null,null,null,null,{"$f":"AJ24","v":0},{"$f":"AK24","v":0},0,0,0,0,0,0]
[null,null,null,null,"Allocation to load related capex",null,"%",null,null,null,null,null,null,null,null,null,null,null,null,null,null,null,null,null,null,null,null,null,null,null,null,null,null,null,null,{"$f":"CHOOSE(m_identity,ENWL!AJ150, NPgN!AJ150, NPgY!AJ150, WMID!AJ150, EMID!AJ150, SWALES!AJ150, SWEST!AJ150, LPN!AJ150,SPN!AJ150,EPN!AJ150,SPD!AJ150,SPMW!AJ150,SSEH!AJ150,SSES!AJ150)","v":1},{"$f":"CHOOSE(m_identity,ENWL!AK150, NPgN!AK150, NPgY!AK150, WMID!AK150, EMID!AK150, SWALES!AK150, SWEST!AK150, LPN!AK150,SPN!AK150,EPN!AK150,SPD!AK150,SPMW!AK150,SSEH!AK150,SSES!AK150)","v":1},{"$f":"CHOOSE(m_identity,ENWL!AL150, NPgN!AL150, NPgY!AL150, WMID!AL150, EMID!AL150, SWALES!AL150, SWEST!AL150, LPN!AL150,SPN!AL150,EPN!AL150,SPD!AL150,SPMW!AL150,SSEH!AL150,SSES!AL150)","v":1},{"$f":"CHOOSE(m_identity,ENWL!AM150, NPgN!AM150, NPgY!AM150, WMID!AM150, EMID!AM150, SWALES!AM150, SWEST!AM150, LPN!AM150,SPN!AM150,EPN!AM150,SPD!AM150,SPMW!AM150,SSEH!AM150,SSES!AM150)","v":1},{"$f":"CHOOSE(m_identity,ENWL!AN150, NPgN!AN150, NPgY!AN150, WMID!AN150, EMID!AN150, SWALES!AN150, SWEST!AN150, LPN!AN150,SPN!AN150,EPN!AN150,SPD!AN150,SPMW!AN150,SSEH!AN150,SSES!AN150)","v":1},{"$f":"CHOOSE(m_identity,ENWL!AO150, NPgN!AO150, NPgY!AO150, WMID!AO150, EMID!AO150, SWALES!AO150, SWEST!AO150, LPN!AO150,SPN!AO150,EPN!AO150,SPD!AO150,SPMW!AO150,SSEH!AO150,SSES!AO150)","v":1},{"$f":"CHOOSE(m_identity,ENWL!AP150, NPgN!AP150, NPgY!AP150, WMID!AP150, EMID!AP150, SWALES!AP150, SWEST!AP150, LPN!AP150,SPN!AP150,EPN!AP150,SPD!AP150,SPMW!AP150,SSEH!AP150,SSES!AP150)","v":1},{"$f":"CHOOSE(m_identity,ENWL!AQ150, NPgN!AQ150, NPgY!AQ150, WMID!AQ150, EMID!AQ150, SWALES!AQ150, SWEST!AQ150, LPN!AQ150,SPN!AQ150,EPN!AQ150,SPD!AQ150,SPMW!AQ150,SSEH!AQ150,SSES!AQ150)","v":1}]
[null,null,null,null,"Allocation to non-load related capex - asset replacement",null,"%",null,null,null,null,null,null,null,null,null,null,null,null,null,null,null,null,null,null,null,null,null,null,null,null,null,null,null,null,{"$f":"CHOOSE(m_identity,ENWL!AJ151, NPgN!AJ151, NPgY!AJ151, WMID!AJ151, EMID!AJ151, SWALES!AJ151, SWEST!AJ151, LPN!AJ151,SPN!AJ151,EPN!AJ151,SPD!AJ151,SPMW!AJ151,SSEH!AJ151,SSES!AJ151)","v":0},{"$f":"CHOOSE(m_identity,ENWL!AK151, NPgN!AK151, NPgY!AK151, WMID!AK151, EMID!AK151, SWALES!AK151, SWEST!AK151, LPN!AK151,SPN!AK151,EPN!AK151,SPD!AK151,SPMW!AK151,SSEH!AK151,SSES!AK151)","v":0},{"$f":"CHOOSE(m_identity,ENWL!AL151, NPgN!AL151, NPgY!AL151, WMID!AL151, EMID!AL151, SWALES!AL151, SWEST!AL151, LPN!AL151,SPN!AL151,EPN!AL151,SPD!AL151,SPMW!AL151,SSEH!AL151,SSES!AL151)","v":0},{"$f":"CHOOSE(m_identity,ENWL!AM151, NPgN!AM151, NPgY!AM151, WMID!AM151, EMID!AM151, SWALES!AM151, SWEST!AM151, LPN!AM151,SPN!AM151,EPN!AM151,SPD!AM151,SPMW!AM151,SSEH!AM151,SSES!AM151)","v":0},{"$f":"CHOOSE(m_identity,ENWL!AN151, NPgN!AN151, NPgY!AN151, WMID!AN151, EMID!AN151, SWALES!AN151, SWEST!AN151, LPN!AN151,SPN!AN151,EPN!AN151,SPD!AN151,SPMW!AN151,SSEH!AN151,SSES!AN151)","v":0},{"$f":"CHOOSE(m_identity,ENWL!AO151, NPgN!AO151, NPgY!AO151, WMID!AO151, EMID!AO151, SWALES!AO151, SWEST!AO151, LPN!AO151,SPN!AO151,EPN!AO151,SPD!AO151,SPMW!AO151,SSEH!AO151,SSES!AO151)","v":0},{"$f":"CHOOSE(m_identity,ENWL!AP151, NPgN!AP151, NPgY!AP151, WMID!AP151, EMID!AP151, SWALES!AP151, SWEST!AP151, LPN!AP151,SPN!AP151,EPN!AP151,SPD!AP151,SPMW!AP151,SSEH!AP151,SSES!AP151)","v":0},{"$f":"CHOOSE(m_identity,ENWL!AQ151, NPgN!AQ151, NPgY!AQ151, WMID!AQ151, EMID!AQ151, SWALES!AQ151, SWEST!AQ151, LPN!AQ151,SPN!AQ151,EPN!AQ151,SPD!AQ151,SPMW!AQ151,SSEH!AQ151,SSES!AQ151)","v":0}]
[null,null,null,null,"Allocation to non-load related capex - other",null,"%",null,null,null,null,null,null,null,null,null,null,null,null,null,null,null,null,null,null,null,null,null,null,null,null,null,null,null,null,{"$f":"CHOOSE(m_identity,ENWL!AJ152, NPgN!AJ152, NPgY!AJ152, WMID!AJ152, EMID!AJ152, SWALES!AJ152, SWEST!AJ152, LPN!AJ152,SPN!AJ152,EPN!AJ152,SPD!AJ152,SPMW!AJ152,SSEH!AJ152,SSES!AJ152)","v":0},{"$f":"CHOOSE(m_identity,ENWL!AK152, NPgN!AK152, NPgY!AK152, WMID!AK152, EMID!AK152, SWALES!AK152, SWEST!AK152, LPN!AK152,SPN!AK152,EPN!AK152,SPD!AK152,SPMW!AK152,SSEH!AK152,SSES!AK152)","v":0},{"$f":"CHOOSE(m_identity,ENWL!AL152, NPgN!AL152, NPgY!AL152, WMID!AL152, EMID!AL152, SWALES!AL152, SWEST!AL152, LPN!AL152,SPN!AL152,EPN!AL152,SPD!AL152,SPMW!AL152,SSEH!AL152,SSES!AL152)","v":0},{"$f":"CHOOSE(m_identity,ENWL!AM152, NPgN!AM152, NPgY!AM152, WMID!AM152, EMID!AM152, SWALES!AM152, SWEST!AM152, LPN!AM152,SPN!AM152,EPN!AM152,SPD!AM152,SPMW!AM152,SSEH!AM152,SSES!AM152)","v":0},{"$f":"CHOOSE(m_identity,ENWL!AN152, NPgN!AN152, NPgY!AN152, WMID!AN152, EMID!AN152, SWALES!AN152, SWEST!AN152, LPN!AN152,SPN!AN152,EPN!AN152,SPD!AN152,SPMW!AN152,SSEH!AN152,SSES!AN152)","v":0},{"$f":"CHOOSE(m_identity,ENWL!AO152, NPgN!AO152, NPgY!AO152, WMID!AO152, EMID!AO152, SWALES!AO152, SWEST!AO152, LPN!AO152,SPN!AO152,EPN!AO152,SPD!AO152,SPMW!AO152,SSEH!AO152,SSES!AO152)","v":0},{"$f":"CHOOSE(m_identity,ENWL!AP152, NPgN!AP152, NPgY!AP152, WMID!AP152, EMID!AP152, SWALES!AP152, SWEST!AP152, LPN!AP152,SPN!AP152,EPN!AP152,SPD!AP152,SPMW!AP152,SSEH!AP152,SSES!AP152)","v":0},{"$f":"CHOOSE(m_identity,ENWL!AQ152, NPgN!AQ152, NPgY!AQ152, WMID!AQ152, EMID!AQ152, SWALES!AQ152, SWEST!AQ152, LPN!AQ152,SPN!AQ152,EPN!AQ152,SPD!AQ152,SPMW!AQ152,SSEH!AQ152,SSES!AQ152)","v":0}]
[null,null,null,null,"Allocation to faults",null,"%",null,null,null,null,null,null,null,null,null,null,null,null,null,null,null,null,null,null,null,null,null,null,null,null,null,null,null,null,{"$f":"CHOOSE(m_identity,ENWL!AJ153, NPgN!AJ153, NPgY!AJ153, WMID!AJ153, EMID!AJ153, SWALES!AJ153, SWEST!AJ153, LPN!AJ153,SPN!AJ153,EPN!AJ153,SPD!AJ153,SPMW!AJ153,SSEH!AJ153,SSES!AJ153)","v":0},{"$f":"CHOOSE(m_identity,ENWL!AK153, NPgN!AK153, NPgY!AK153, WMID!AK153, EMID!AK153, SWALES!AK153, SWEST!AK153, LPN!AK153,SPN!AK153,EPN!AK153,SPD!AK153,SPMW!AK153,SSEH!AK153,SSES!AK153)","v":0},{"$f":"CHOOSE(m_identity,ENWL!AL153, NPgN!AL153, NPgY!AL153, WMID!AL153, EMID!AL153, SWALES!AL153, SWEST!AL153, LPN!AL153,SPN!AL153,EPN!AL153,SPD!AL153,SPMW!AL153,SSEH!AL153,SSES!AL153)","v":0},{"$f":"CHOOSE(m_identity,ENWL!AM153, NPgN!AM153, NPgY!AM153, WMID!AM153, EMID!AM153, SWALES!AM153, SWEST!AM153, LPN!AM153,SPN!AM153,EPN!AM153,SPD!AM153,SPMW!AM153,SSEH!AM153,SSES!AM153)","v":0},{"$f":"CHOOSE(m_identity,ENWL!AN153, NPgN!AN153, NPgY!AN153, WMID!AN153, EMID!AN153, SWALES!AN153, SWEST!AN153, LPN!AN153,SPN!AN153,EPN!AN153,SPD!AN153,SPMW!AN153,SSEH!AN153,SSES!AN153)","v":0},{"$f":"CHOOSE(m_identity,ENWL!AO153, NPgN!AO153, NPgY!AO153, WMID!AO153, EMID!AO153, SWALES!AO153, SWEST!AO153, LPN!AO153,SPN!AO153,EPN!AO153,SPD!AO153,SPMW!AO153,SSEH!AO153,SSES!AO153)","v":0},{"$f":"CHOOSE(m_identity,ENWL!AP153, NPgN!AP153, NPgY!AP153, WMID!AP153, EMID!AP153, SWALES!AP153, SWEST!AP153, LPN!AP153,SPN!AP153,EPN!AP153,SPD!AP153,SPMW!AP153,SSEH!AP153,SSES!AP153)","v":0},{"$f":"CHOOSE(m_identity,ENWL!AQ153, NPgN!AQ153, NPgY!AQ153, WMID!AQ153, EMID!AQ153, SWALES!AQ153, SWEST!AQ153, LPN!AQ153,SPN!AQ153,EPN!AQ153,SPD!AQ153,SPMW!AQ153,SSEH!AQ153,SSES!AQ153)","v":0}]
[null,null,null,null,"Allocation to tree cutting",null,"%",null,null,null,null,null,null,null,null,null,null,null,null,null,null,null,null,null,null,null,null,null,null,null,null,null,null,null,null,{"$f":"CHOOSE(m_identity,ENWL!AJ154, NPgN!AJ154, NPgY!AJ154, WMID!AJ154, EMID!AJ154, SWALES!AJ154, SWEST!AJ154, LPN!AJ154,SPN!AJ154,EPN!AJ154,SPD!AJ154,SPMW!AJ154,SSEH!AJ154,SSES!AJ154)","v":0},{"$f":"CHOOSE(m_identity,ENWL!AK154, NPgN!AK154, NPgY!AK154, WMID!AK154, EMID!AK154, SWALES!AK154, SWEST!AK154, LPN!AK154,SPN!AK154,EPN!AK154,SPD!AK154,SPMW!AK154,SSEH!AK154,SSES!AK154)","v":0},{"$f":"CHOOSE(m_identity,ENWL!AL154, NPgN!AL154, NPgY!AL154, WMID!AL154, EMID!AL154, SWALES!AL154, SWEST!AL154, LPN!AL154,SPN!AL154,EPN!AL154,SPD!AL154,SPMW!AL154,SSEH!AL154,SSES!AL154)","v":0},{"$f":"CHOOSE(m_identity,ENWL!AM154, NPgN!AM154, NPgY!AM154, WMID!AM154, EMID!AM154, SWALES!AM154, SWEST!AM154, LPN!AM154,SPN!AM154,EPN!AM154,SPD!AM154,SPMW!AM154,SSEH!AM154,SSES!AM154)","v":0},{"$f":"CHOOSE(m_identity,ENWL!AN154, NPgN!AN154, NPgY!AN154, WMID!AN154, EMID!AN154, SWALES!AN154, SWEST!AN154, LPN!AN154,SPN!AN154,EPN!AN154,SPD!AN154,SPMW!AN154,SSEH!AN154,SSES!AN154)","v":0},{"$f":"CHOOSE(m_identity,ENWL!AO154, NPgN!AO154, NPgY!AO154, WMID!AO154, EMID!AO154, SWALES!AO154, SWEST!AO154, LPN!AO154,SPN!AO154,EPN!AO154,SPD!AO154,SPMW!AO154,SSEH!AO154,SSES!AO154)","v":0},{"$f":"CHOOSE(m_identity,ENWL!AP154, NPgN!AP154, NPgY!AP154, WMID!AP154, EMID!AP154, SWALES!AP154, SWEST!AP154, LPN!AP154,SPN!AP154,EPN!AP154,SPD!AP154,SPMW!AP154,SSEH!AP154,SSES!AP154)","v":0},{"$f":"CHOOSE(m_identity,ENWL!AQ154, NPgN!AQ154, NPgY!AQ154, WMID!AQ154, EMID!AQ154, SWALES!AQ154, SWEST!AQ154, LPN!AQ154,SPN!AQ154,EPN!AQ154,SPD!AQ154,SPMW!AQ154,SSEH!AQ154,SSES!AQ154)","v":0}]
[null,null,null,null,"Allocation to controllable opex",null,"%",null,null,null,null,null,null,null,null,null,null,null,null,null,null,null,null,null,null,null,null,null,null,null,null,null,null,null,null,{"$f":"CHOOSE(m_identity,ENWL!AJ155, NPgN!AJ155, NPgY!AJ155, WMID!AJ155, EMID!AJ155, SWALES!AJ155, SWEST!AJ155, LPN!AJ155,SPN!AJ155,EPN!AJ155,SPD!AJ155,SPMW!AJ155,SSEH!AJ155,SSES!AJ155)","v":0},{"$f":"CHOOSE(m_identity,ENWL!AK155, NPgN!AK155, NPgY!AK155, WMID!AK155, EMID!AK155, SWALES!AK155, SWEST!AK155, LPN!AK155,SPN!AK155,EPN!AK155,SPD!AK155,SPMW!AK155,SSEH!AK155,SSES!AK155)","v":0},{"$f":"CHOOSE(m_identity,ENWL!AL155, NPgN!AL155, NPgY!AL155, WMID!AL155, EMID!AL155, SWALES!AL155, SWEST!AL155, LPN!AL155,SPN!AL155,EPN!AL155,SPD!AL155,SPMW!AL155,SSEH!AL155,SSES!AL155)","v":0},{"$f":"CHOOSE(m_identity,ENWL!AM155, NPgN!AM155, NPgY!AM155, WMID!AM155, EMID!AM155, SWALES!AM155, SWEST!AM155, LPN!AM155,SPN!AM155,EPN!AM155,SPD!AM155,SPMW!AM155,SSEH!AM155,SSES!AM155)","v":0},{"$f":"CHOOSE(m_identity,ENWL!AN155, NPgN!AN155, NPgY!AN155, WMID!AN155, EMID!AN155, SWALES!AN155, SWEST!AN155, LPN!AN155,SPN!AN155,EPN!AN155,SPD!AN155,SPMW!AN155,SSEH!AN155,SSES!AN155)","v":0},{"$f":"CHOOSE(m_identity,ENWL!AO155, NPgN!AO155, NPgY!AO155, WMID!AO155, EMID!AO155, SWALES!AO155, SWEST!AO155, LPN!AO155,SPN!AO155,EPN!AO155,SPD!AO155,SPMW!AO155,SSEH!AO155,SSES!AO155)","v":0},{"$f":"CHOOSE(m_identity,ENWL!AP155, NPgN!AP155, NPgY!AP155, WMID!AP155, EMID!AP155, SWALES!AP155, SWEST!AP155, LPN!AP155,SPN!AP155,EPN!AP155,SPD!AP155,SPMW!AP155,SSEH!AP155,SSES!AP155)","v":0},{"$f":"CHOOSE(m_identity,ENWL!AQ155, NPgN!AQ155, NPgY!AQ155, WMID!AQ155, EMID!AQ155, SWALES!AQ155, SWEST!AQ155, LPN!AQ155,SPN!AQ155,EPN!AQ155,SPD!AQ155,SPMW!AQ155,SSEH!AQ155,SSES!AQ155)","v":0}]
[]
[null,null,null,null,{"$f":"E25","v":"Spare 1"},null,"£m 12/13 prices",null,null,null,null,null,null,null,null,null,null,null,null,null,null,null,null,null,null,null,null,null,null,null,null,null,null,null,null,{"$f":"AJ25","v":0},{"$f":"AK25","v":0},{"$f":"AL25","v":0},0,{"$f":"AN25","v":0},0,0,0]
[null,null,null,null,"Allocation to load related capex",null,"%",null,null,null,null,null,null,null,null,null,null,null,null,null,null,null,null,null,null,null,null,null,null,null,null,null,null,null,null,{"$f":"CHOOSE(m_identity,ENWL!AJ158, NPgN!AJ158, NPgY!AJ158, WMID!AJ158, EMID!AJ158, SWALES!AJ158, SWEST!AJ158, LPN!AJ158,SPN!AJ158,EPN!AJ158,SPD!AJ158,SPMW!AJ158,SSEH!AJ158,SSES!AJ158)","v":0},{"$f":"CHOOSE(m_identity,ENWL!AK158, NPgN!AK158, NPgY!AK158, WMID!AK158, EMID!AK158, SWALES!AK158, SWEST!AK158, LPN!AK158,SPN!AK158,EPN!AK158,SPD!AK158,SPMW!AK158,SSEH!AK158,SSES!AK158)","v":0},{"$f":"CHOOSE(m_identity,ENWL!AL158, NPgN!AL158, NPgY!AL158, WMID!AL158, EMID!AL158, SWALES!AL158, SWEST!AL158, LPN!AL158,SPN!AL158,EPN!AL158,SPD!AL158,SPMW!AL158,SSEH!AL158,SSES!AL158)","v":0},{"$f":"CHOOSE(m_identity,ENWL!AM158, NPgN!AM158, NPgY!AM158, WMID!AM158, EMID!AM158, SWALES!AM158, SWEST!AM158, LPN!AM158,SPN!AM158,EPN!AM158,SPD!AM158,SPMW!AM158,SSEH!AM158,SSES!AM158)","v":0},{"$f":"CHOOSE(m_identity,ENWL!AN158, NPgN!AN158, NPgY!AN158, WMID!AN158, EMID!AN158, SWALES!AN158, SWEST!AN158, LPN!AN158,SPN!AN158,EPN!AN158,SPD!AN158,SPMW!AN158,SSEH!AN158,SSES!AN158)","v":0},{"$f":"CHOOSE(m_identity,ENWL!AO158, NPgN!AO158, NPgY!AO158, WMID!AO158, EMID!AO158, SWALES!AO158, SWEST!AO158, LPN!AO158,SPN!AO158,EPN!AO158,SPD!AO158,SPMW!AO158,SSEH!AO158,SSES!AO158)","v":0},{"$f":"CHOOSE(m_identity,ENWL!AP158, NPgN!AP158, NPgY!AP158, WMID!AP158, EMID!AP158, SWALES!AP158, SWEST!AP158, LPN!AP158,SPN!AP158,EPN!AP158,SPD!AP158,SPMW!AP158,SSEH!AP158,SSES!AP158)","v":0},{"$f":"CHOOSE(m_identity,ENWL!AQ158, NPgN!AQ158, NPgY!AQ158, WMID!AQ158, EMID!AQ158, SWALES!AQ158, SWEST!AQ158, LPN!AQ158,SPN!AQ158,EPN!AQ158,SPD!AQ158,SPMW!AQ158,SSEH!AQ158,SSES!AQ158)","v":0}]
[null,null,null,null,"Allocation to non-load related capex - asset replacement",null,"%",null,null,null,null,null,null,null,null,null,null,null,null,null,null,null,null,null,null,null,null,null,null,null,null,null,null,null,null,{"$f":"CHOOSE(m_identity,ENWL!AJ159, NPgN!AJ159, NPgY!AJ159, WMID!AJ159, EMID!AJ159, SWALES!AJ159, SWEST!AJ159, LPN!AJ159,SPN!AJ159,EPN!AJ159,SPD!AJ159,SPMW!AJ159,SSEH!AJ159,SSES!AJ159)","v":0},{"$f":"CHOOSE(m_identity,ENWL!AK159, NPgN!AK159, NPgY!AK159, WMID!AK159, EMID!AK159, SWALES!AK159, SWEST!AK159, LPN!AK159,SPN!AK159,EPN!AK159,SPD!AK159,SPMW!AK159,SSEH!AK159,SSES!AK159)","v":0},{"$f":"CHOOSE(m_identity,ENWL!AL159, NPgN!AL159, NPgY!AL159, WMID!AL159, EMID!AL159, SWALES!AL159, SWEST!AL159, LPN!AL159,SPN!AL159,EPN!AL159,SPD!AL159,SPMW!AL159,SSEH!AL159,SSES!AL159)","v":0},{"$f":"CHOOSE(m_identity,ENWL!AM159, NPgN!AM159, NPgY!AM159, WMID!AM159, EMID!AM159, SWALES!AM159, SWEST!AM159, LPN!AM159,SPN!AM159,EPN!AM159,SPD!AM159,SPMW!AM159,SSEH!AM159,SSES!AM159)","v":0},{"$f":"CHOOSE(m_identity,ENWL!AN159, NPgN!AN159, NPgY!AN159, WMID!AN159, EMID!AN159, SWALES!AN159, SWEST!AN159, LPN!AN159,SPN!AN159,EPN!AN159,SPD!AN159,SPMW!AN159,SSEH!AN159,SSES!AN159)","v":0},{"$f":"CHOOSE(m_identity,ENWL!AO159, NPgN!AO159, NPgY!AO159, WMID!AO159, EMID!AO159, SWALES!AO159, SWEST!AO159, LPN!AO159,SPN!AO159,EPN!AO159,SPD!AO159,SPMW!AO159,SSEH!AO159,SSES!AO159)","v":0},{"$f":"CHOOSE(m_identity,ENWL!AP159, NPgN!AP159, NPgY!AP159, WMID!AP159, EMID!AP159, SWALES!AP159, SWEST!AP159, LPN!AP159,SPN!AP159,EPN!AP159,SPD!AP159,SPMW!AP159,SSEH!AP159,SSES!AP159)","v":0},{"$f":"CHOOSE(m_identity,ENWL!AQ159, NPgN!AQ159, NPgY!AQ159, WMID!AQ159, EMID!AQ159, SWALES!AQ159, SWEST!AQ159, LPN!AQ159,SPN!AQ159,EPN!AQ159,SPD!AQ159,SPMW!AQ159,SSEH!AQ159,SSES!AQ159)","v":0}]
[null,null,null,null,"Allocation to non-load related capex - other",null,"%",null,null,null,null,null,null,null,null,null,null,null,null,null,null,null,null,null,null,null,null,null,null,null,null,null,null,null,null,{"$f":"CHOOSE(m_identity,ENWL!AJ160, NPgN!AJ160, NPgY!AJ160, WMID!AJ160, EMID!AJ160, SWALES!AJ160, SWEST!AJ160, LPN!AJ160,SPN!AJ160,EPN!AJ160,SPD!AJ160,SPMW!AJ160,SSEH!AJ160,SSES!AJ160)","v":0},{"$f":"CHOOSE(m_identity,ENWL!AK160, NPgN!AK160, NPgY!AK160, WMID!AK160, EMID!AK160, SWALES!AK160, SWEST!AK160, LPN!AK160,SPN!AK160,EPN!AK160,SPD!AK160,SPMW!AK160,SSEH!AK160,SSES!AK160)","v":0},{"$f":"CHOOSE(m_identity,ENWL!AL160, NPgN!AL160, NPgY!AL160, WMID!AL160, EMID!AL160, SWALES!AL160, SWEST!AL160, LPN!AL160,SPN!AL160,EPN!AL160,SPD!AL160,SPMW!AL160,SSEH!AL160,SSES!AL160)","v":0},{"$f":"CHOOSE(m_identity,ENWL!AM160, NPgN!AM160, NPgY!AM160, WMID!AM160, EMID!AM160, SWALES!AM160, SWEST!AM160, LPN!AM160,SPN!AM160,EPN!AM160,SPD!AM160,SPMW!AM160,SSEH!AM160,SSES!AM160)","v":0},{"$f":"CHOOSE(m_identity,ENWL!AN160, NPgN!AN160, NPgY!AN160, WMID!AN160, EMID!AN160, SWALES!AN160, SWEST!AN160, LPN!AN160,SPN!AN160,EPN!AN160,SPD!AN160,SPMW!AN160,SSEH!AN160,SSES!AN160)","v":0},{"$f":"CHOOSE(m_identity,ENWL!AO160, NPgN!AO160, NPgY!AO160, WMID!AO160, EMID!AO160, SWALES!AO160, SWEST!AO160, LPN!AO160,SPN!AO160,EPN!AO160,SPD!AO160,SPMW!AO160,SSEH!AO160,SSES!AO160)","v":0},{"$f":"CHOOSE(m_identity,ENWL!AP160, NPgN!AP160, NPgY!AP160, WMID!AP160, EMID!AP160, SWALES!AP160, SWEST!AP160, LPN!AP160,SPN!AP160,EPN!AP160,SPD!AP160,SPMW!AP160,SSEH!AP160,SSES!AP160)","v":0},{"$f":"CHOOSE(m_identity,ENWL!AQ160, NPgN!AQ160, NPgY!AQ160, WMID!AQ160, EMID!AQ160, SWALES!AQ160, SWEST!AQ160, LPN!AQ160,SPN!AQ160,EPN!AQ160,SPD!AQ160,SPMW!AQ160,SSEH!AQ160,SSES!AQ160)","v":0}]
[null,null,null,null,"Allocation to faults",null,"%",null,null,null,null,null,null,null,null,null,null,null,null,null,null,null,null,null,null,null,null,null,null,null,null,null,null,null,null,{"$f":"CHOOSE(m_identity,ENWL!AJ161, NPgN!AJ161, NPgY!AJ161, WMID!AJ161, EMID!AJ161, SWALES!AJ161, SWEST!AJ161, LPN!AJ161,SPN!AJ161,EPN!AJ161,SPD!AJ161,SPMW!AJ161,SSEH!AJ161,SSES!AJ161)","v":0},{"$f":"CHOOSE(m_identity,ENWL!AK161, NPgN!AK161, NPgY!AK161, WMID!AK161, EMID!AK161, SWALES!AK161, SWEST!AK161, LPN!AK161,SPN!AK161,EPN!AK161,SPD!AK161,SPMW!AK161,SSEH!AK161,SSES!AK161)","v":0},{"$f":"CHOOSE(m_identity,ENWL!AL161, NPgN!AL161, NPgY!AL161, WMID!AL161, EMID!AL161, SWALES!AL161, SWEST!AL161, LPN!AL161,SPN!AL161,EPN!AL161,SPD!AL161,SPMW!AL161,SSEH!AL161,SSES!AL161)","v":0},{"$f":"CHOOSE(m_identity,ENWL!AM161, NPgN!AM161, NPgY!AM161, WMID!AM161, EMID!AM161, SWALES!AM161, SWEST!AM161, LPN!AM161,SPN!AM161,EPN!AM161,SPD!AM161,SPMW!AM161,SSEH!AM161,SSES!AM161)","v":0},{"$f":"CHOOSE(m_identity,ENWL!AN161, NPgN!AN161, NPgY!AN161, WMID!AN161, EMID!AN161, SWALES!AN161, SWEST!AN161, LPN!AN161,SPN!AN161,EPN!AN161,SPD!AN161,SPMW!AN161,SSEH!AN161,SSES!AN161)","v":0},{"$f":"CHOOSE(m_identity,ENWL!AO161, NPgN!AO161, NPgY!AO161, WMID!AO161, EMID!AO161, SWALES!AO161, SWEST!AO161, LPN!AO161,SPN!AO161,EPN!AO161,SPD!AO161,SPMW!AO161,SSEH!AO161,SSES!AO161)","v":0},{"$f":"CHOOSE(m_identity,ENWL!AP161, NPgN!AP161, NPgY!AP161, WMID!AP161, EMID!AP161, SWALES!AP161, SWEST!AP161, LPN!AP161,SPN!AP161,EPN!AP161,SPD!AP161,SPMW!AP161,SSEH!AP161,SSES!AP161)","v":0},{"$f":"CHOOSE(m_identity,ENWL!AQ161, NPgN!AQ161, NPgY!AQ161, WMID!AQ161, EMID!AQ161, SWALES!AQ161, SWEST!AQ161, LPN!AQ161,SPN!AQ161,EPN!AQ161,SPD!AQ161,SPMW!AQ161,SSEH!AQ161,SSES!AQ161)","v":0}]
[null,null,null,null,"Allocation to tree cutting",null,"%",null,null,null,null,null,null,null,null,null,null,null,null,null,null,null,null,null,null,null,null,null,null,null,null,null,null,null,null,{"$f":"CHOOSE(m_identity,ENWL!AJ162, NPgN!AJ162, NPgY!AJ162, WMID!AJ162, EMID!AJ162, SWALES!AJ162, SWEST!AJ162, LPN!AJ162,SPN!AJ162,EPN!AJ162,SPD!AJ162,SPMW!AJ162,SSEH!AJ162,SSES!AJ162)","v":0},{"$f":"CHOOSE(m_identity,ENWL!AK162, NPgN!AK162, NPgY!AK162, WMID!AK162, EMID!AK162, SWALES!AK162, SWEST!AK162, LPN!AK162,SPN!AK162,EPN!AK162,SPD!AK162,SPMW!AK162,SSEH!AK162,SSES!AK162)","v":0},{"$f":"CHOOSE(m_identity,ENWL!AL162, NPgN!AL162, NPgY!AL162, WMID!AL162, EMID!AL162, SWALES!AL162, SWEST!AL162, LPN!AL162,SPN!AL162,EPN!AL162,SPD!AL162,SPMW!AL162,SSEH!AL162,SSES!AL162)","v":0},{"$f":"CHOOSE(m_identity,ENWL!AM162, NPgN!AM162, NPgY!AM162, WMID!AM162, EMID!AM162, SWALES!AM162, SWEST!AM162, LPN!AM162,SPN!AM162,EPN!AM162,SPD!AM162,SPMW!AM162,SSEH!AM162,SSES!AM162)","v":0},{"$f":"CHOOSE(m_identity,ENWL!AN162, NPgN!AN162, NPgY!AN162, WMID!AN162, EMID!AN162, SWALES!AN162, SWEST!AN162, LPN!AN162,SPN!AN162,EPN!AN162,SPD!AN162,SPMW!AN162,SSEH!AN162,SSES!AN162)","v":0},{"$f":"CHOOSE(m_identity,ENWL!AO162, NPgN!AO162, NPgY!AO162, WMID!AO162, EMID!AO162, SWALES!AO162, SWEST!AO162, LPN!AO162,SPN!AO162,EPN!AO162,SPD!AO162,SPMW!AO162,SSEH!AO162,SSES!AO162)","v":0},{"$f":"CHOOSE(m_identity,ENWL!AP162, NPgN!AP162, NPgY!AP162, WMID!AP162, EMID!AP162, SWALES!AP162, SWEST!AP162, LPN!AP162,SPN!AP162,EPN!AP162,SPD!AP162,SPMW!AP162,SSEH!AP162,SSES!AP162)","v":0},{"$f":"CHOOSE(m_identity,ENWL!AQ162, NPgN!AQ162, NPgY!AQ162, WMID!AQ162, EMID!AQ162, SWALES!AQ162, SWEST!AQ162, LPN!AQ162,SPN!AQ162,EPN!AQ162,SPD!AQ162,SPMW!AQ162,SSEH!AQ162,SSES!AQ162)","v":0}]
[null,null,null,null,"Allocation to controllable opex",null,"%",null,null,null,null,null,null,null,null,null,null,null,null,null,null,null,null,null,null,null,null,null,null,null,null,null,null,null,null,{"$f":"CHOOSE(m_identity,ENWL!AJ163, NPgN!AJ163, NPgY!AJ163, WMID!AJ163, EMID!AJ163, SWALES!AJ163, SWEST!AJ163, LPN!AJ163,SPN!AJ163,EPN!AJ163,SPD!AJ163,SPMW!AJ163,SSEH!AJ163,SSES!AJ163)","v":0},{"$f":"CHOOSE(m_identity,ENWL!AK163, NPgN!AK163, NPgY!AK163, WMID!AK163, EMID!AK163, SWALES!AK163, SWEST!AK163, LPN!AK163,SPN!AK163,EPN!AK163,SPD!AK163,SPMW!AK163,SSEH!AK163,SSES!AK163)","v":0},{"$f":"CHOOSE(m_identity,ENWL!AL163, NPgN!AL163, NPgY!AL163, WMID!AL163, EMID!AL163, SWALES!AL163, SWEST!AL163, LPN!AL163,SPN!AL163,EPN!AL163,SPD!AL163,SPMW!AL163,SSEH!AL163,SSES!AL163)","v":0},{"$f":"CHOOSE(m_identity,ENWL!AM163, NPgN!AM163, NPgY!AM163, WMID!AM163, EMID!AM163, SWALES!AM163, SWEST!AM163, LPN!AM163,SPN!AM163,EPN!AM163,SPD!AM163,SPMW!AM163,SSEH!AM163,SSES!AM163)","v":0},{"$f":"CHOOSE(m_identity,ENWL!AN163, NPgN!AN163, NPgY!AN163, WMID!AN163, EMID!AN163, SWALES!AN163, SWEST!AN163, LPN!AN163,SPN!AN163,EPN!AN163,SPD!AN163,SPMW!AN163,SSEH!AN163,SSES!AN163)","v":0},{"$f":"CHOOSE(m_identity,ENWL!AO163, NPgN!AO163, NPgY!AO163, WMID!AO163, EMID!AO163, SWALES!AO163, SWEST!AO163, LPN!AO163,SPN!AO163,EPN!AO163,SPD!AO163,SPMW!AO163,SSEH!AO163,SSES!AO163)","v":0},{"$f":"CHOOSE(m_identity,ENWL!AP163, NPgN!AP163, NPgY!AP163, WMID!AP163, EMID!AP163, SWALES!AP163, SWEST!AP163, LPN!AP163,SPN!AP163,EPN!AP163,SPD!AP163,SPMW!AP163,SSEH!AP163,SSES!AP163)","v":0},{"$f":"CHOOSE(m_identity,ENWL!AQ163, NPgN!AQ163, NPgY!AQ163, WMID!AQ163, EMID!AQ163, SWALES!AQ163, SWEST!AQ163, LPN!AQ163,SPN!AQ163,EPN!AQ163,SPD!AQ163,SPMW!AQ163,SSEH!AQ163,SSES!AQ163)","v":0}]
[]
[null,null,null,null,{"$f":"E26","v":"Spare 2"},null,"£m 12/13 prices",null,null,null,null,null,null,null,null,null,null,null,null,null,null,null,null,null,null,null,null,null,null,null,null,null,null,null,null,{"$f":"AJ26","v":0},0,0,0,0,0,0,0]
[null,null,null,null,"Allocation to load related capex",null,"%",null,null,null,null,null,null,null,null,null,null,null,null,null,null,null,null,null,null,null,null,null,null,null,null,null,null,null,null,{"$f":"CHOOSE(m_identity,ENWL!AJ166, NPgN!AJ166, NPgY!AJ166, WMID!AJ166, EMID!AJ166, SWALES!AJ166, SWEST!AJ166, LPN!AJ166,SPN!AJ166,EPN!AJ166,SPD!AJ166,SPMW!AJ166,SSEH!AJ166,SSES!AJ166)","v":0},{"$f":"CHOOSE(m_identity,ENWL!AK166, NPgN!AK166, NPgY!AK166, WMID!AK166, EMID!AK166, SWALES!AK166, SWEST!AK166, LPN!AK166,SPN!AK166,EPN!AK166,SPD!AK166,SPMW!AK166,SSEH!AK166,SSES!AK166)","v":0},{"$f":"CHOOSE(m_identity,ENWL!AL166, NPgN!AL166, NPgY!AL166, WMID!AL166, EMID!AL166, SWALES!AL166, SWEST!AL166, LPN!AL166,SPN!AL166,EPN!AL166,SPD!AL166,SPMW!AL166,SSEH!AL166,SSES!AL166)","v":0},{"$f":"CHOOSE(m_identity,ENWL!AM166, NPgN!AM166, NPgY!AM166, WMID!AM166, EMID!AM166, SWALES!AM166, SWEST!AM166, LPN!AM166,SPN!AM166,EPN!AM166,SPD!AM166,SPMW!AM166,SSEH!AM166,SSES!AM166)","v":0},{"$f":"CHOOSE(m_identity,ENWL!AN166, NPgN!AN166, NPgY!AN166, WMID!AN166, EMID!AN166, SWALES!AN166, SWEST!AN166, LPN!AN166,SPN!AN166,EPN!AN166,SPD!AN166,SPMW!AN166,SSEH!AN166,SSES!AN166)","v":0},{"$f":"CHOOSE(m_identity,ENWL!AO166, NPgN!AO166, NPgY!AO166, WMID!AO166, EMID!AO166, SWALES!AO166, SWEST!AO166, LPN!AO166,SPN!AO166,EPN!AO166,SPD!AO166,SPMW!AO166,SSEH!AO166,SSES!AO166)","v":0},{"$f":"CHOOSE(m_identity,ENWL!AP166, NPgN!AP166, NPgY!AP166, WMID!AP166, EMID!AP166, SWALES!AP166, SWEST!AP166, LPN!AP166,SPN!AP166,EPN!AP166,SPD!AP166,SPMW!AP166,SSEH!AP166,SSES!AP166)","v":0},{"$f":"CHOOSE(m_identity,ENWL!AQ166, NPgN!AQ166, NPgY!AQ166, WMID!AQ166, EMID!AQ166, SWALES!AQ166, SWEST!AQ166, LPN!AQ166,SPN!AQ166,EPN!AQ166,SPD!AQ166,SPMW!AQ166,SSEH!AQ166,SSES!AQ166)","v":0}]
[null,null,null,null,"Allocation to non-load related capex - asset replacement",null,"%",null,null,null,null,null,null,null,null,null,null,null,null,null,null,null,null,null,null,null,null,null,null,null,null,null,null,null,null,{"$f":"CHOOSE(m_identity,ENWL!AJ167, NPgN!AJ167, NPgY!AJ167, WMID!AJ167, EMID!AJ167, SWALES!AJ167, SWEST!AJ167, LPN!AJ167,SPN!AJ167,EPN!AJ167,SPD!AJ167,SPMW!AJ167,SSEH!AJ167,SSES!AJ167)","v":0},{"$f":"CHOOSE(m_identity,ENWL!AK167, NPgN!AK167, NPgY!AK167, WMID!AK167, EMID!AK167, SWALES!AK167, SWEST!AK167, LPN!AK167,SPN!AK167,EPN!AK167,SPD!AK167,SPMW!AK167,SSEH!AK167,SSES!AK167)","v":0},{"$f":"CHOOSE(m_identity,ENWL!AL167, NPgN!AL167, NPgY!AL167, WMID!AL167, EMID!AL167, SWALES!AL167, SWEST!AL167, LPN!AL167,SPN!AL167,EPN!AL167,SPD!AL167,SPMW!AL167,SSEH!AL167,SSES!AL167)","v":0},{"$f":"CHOOSE(m_identity,ENWL!AM167, NPgN!AM167, NPgY!AM167, WMID!AM167, EMID!AM167, SWALES!AM167, SWEST!AM167, LPN!AM167,SPN!AM167,EPN!AM167,SPD!AM167,SPMW!AM167,SSEH!AM167,SSES!AM167)","v":0},{"$f":"CHOOSE(m_identity,ENWL!AN167, NPgN!AN167, NPgY!AN167, WMID!AN167, EMID!AN167, SWALES!AN167, SWEST!AN167, LPN!AN167,SPN!AN167,EPN!AN167,SPD!AN167,SPMW!AN167,SSEH!AN167,SSES!AN167)","v":0},{"$f":"CHOOSE(m_identity,ENWL!AO167, NPgN!AO167, NPgY!AO167, WMID!AO167, EMID!AO167, SWALES!AO167, SWEST!AO167, LPN!AO167,SPN!AO167,EPN!AO167,SPD!AO167,SPMW!AO167,SSEH!AO167,SSES!AO167)","v":0},{"$f":"CHOOSE(m_identity,ENWL!AP167, NPgN!AP167, NPgY!AP167, WMID!AP167, EMID!AP167, SWALES!AP167, SWEST!AP167, LPN!AP167,SPN!AP167,EPN!AP167,SPD!AP167,SPMW!AP167,SSEH!AP167,SSES!AP167)","v":0},{"$f":"CHOOSE(m_identity,ENWL!AQ167, NPgN!AQ167, NPgY!AQ167, WMID!AQ167, EMID!AQ167, SWALES!AQ167, SWEST!AQ167, LPN!AQ167,SPN!AQ167,EPN!AQ167,SPD!AQ167,SPMW!AQ167,SSEH!AQ167,SSES!AQ167)","v":0}]
[null,null,null,null,"Allocation to non-load related capex - other",null,"%",null,null,null,null,null,null,null,null,null,null,null,null,null,null,null,null,null,null,null,null,null,null,null,null,null,null,null,null,{"$f":"CHOOSE(m_identity,ENWL!AJ168, NPgN!AJ168, NPgY!AJ168, WMID!AJ168, EMID!AJ168, SWALES!AJ168, SWEST!AJ168, LPN!AJ168,SPN!AJ168,EPN!AJ168,SPD!AJ168,SPMW!AJ168,SSEH!AJ168,SSES!AJ168)","v":0},{"$f":"CHOOSE(m_identity,ENWL!AK168, NPgN!AK168, NPgY!AK168, WMID!AK168, EMID!AK168, SWALES!AK168, SWEST!AK168, LPN!AK168,SPN!AK168,EPN!AK168,SPD!AK168,SPMW!AK168,SSEH!AK168,SSES!AK168)","v":0},{"$f":"CHOOSE(m_identity,ENWL!AL168, NPgN!AL168, NPgY!AL168, WMID!AL168, EMID!AL168, SWALES!AL168, SWEST!AL168, LPN!AL168,SPN!AL168,EPN!AL168,SPD!AL168,SPMW!AL168,SSEH!AL168,SSES!AL168)","v":0},{"$f":"CHOOSE(m_identity,ENWL!AM168, NPgN!AM168, NPgY!AM168, WMID!AM168, EMID!AM168, SWALES!AM168, SWEST!AM168, LPN!AM168,SPN!AM168,EPN!AM168,SPD!AM168,SPMW!AM168,SSEH!AM168,SSES!AM168)","v":0},{"$f":"CHOOSE(m_identity,ENWL!AN168, NPgN!AN168, NPgY!AN168, WMID!AN168, EMID!AN168, SWALES!AN168, SWEST!AN168, LPN!AN168,SPN!AN168,EPN!AN168,SPD!AN168,SPMW!AN168,SSEH!AN168,SSES!AN168)","v":0},{"$f":"CHOOSE(m_identity,ENWL!AO168, NPgN!AO168, NPgY!AO168, WMID!AO168, EMID!AO168, SWALES!AO168, SWEST!AO168, LPN!AO168,SPN!AO168,EPN!AO168,SPD!AO168,SPMW!AO168,SSEH!AO168,SSES!AO168)","v":0},{"$f":"CHOOSE(m_identity,ENWL!AP168, NPgN!AP168, NPgY!AP168, WMID!AP168, EMID!AP168, SWALES!AP168, SWEST!AP168, LPN!AP168,SPN!AP168,EPN!AP168,SPD!AP168,SPMW!AP168,SSEH!AP168,SSES!AP168)","v":0},{"$f":"CHOOSE(m_identity,ENWL!AQ168, NPgN!AQ168, NPgY!AQ168, WMID!AQ168, EMID!AQ168, SWALES!AQ168, SWEST!AQ168, LPN!AQ168,SPN!AQ168,EPN!AQ168,SPD!AQ168,SPMW!AQ168,SSEH!AQ168,SSES!AQ168)","v":0}]
[null,null,null,null,"Allocation to faults",null,"%",null,null,null,null,null,null,null,null,null,null,null,null,null,null,null,null,null,null,null,null,null,null,null,null,null,null,null,null,{"$f":"CHOOSE(m_identity,ENWL!AJ169, NPgN!AJ169, NPgY!AJ169, WMID!AJ169, EMID!AJ169, SWALES!AJ169, SWEST!AJ169, LPN!AJ169,SPN!AJ169,EPN!AJ169,SPD!AJ169,SPMW!AJ169,SSEH!AJ169,SSES!AJ169)","v":0},{"$f":"CHOOSE(m_identity,ENWL!AK169, NPgN!AK169, NPgY!AK169, WMID!AK169, EMID!AK169, SWALES!AK169, SWEST!AK169, LPN!AK169,SPN!AK169,EPN!AK169,SPD!AK169,SPMW!AK169,SSEH!AK169,SSES!AK169)","v":0},{"$f":"CHOOSE(m_identity,ENWL!AL169, NPgN!AL169, NPgY!AL169, WMID!AL169, EMID!AL169, SWALES!AL169, SWEST!AL169, LPN!AL169,SPN!AL169,EPN!AL169,SPD!AL169,SPMW!AL169,SSEH!AL169,SSES!AL169)","v":0},{"$f":"CHOOSE(m_identity,ENWL!AM169, NPgN!AM169, NPgY!AM169, WMID!AM169, EMID!AM169, SWALES!AM169, SWEST!AM169, LPN!AM169,SPN!AM169,EPN!AM169,SPD!AM169,SPMW!AM169,SSEH!AM169,SSES!AM169)","v":0},{"$f":"CHOOSE(m_identity,ENWL!AN169, NPgN!AN169, NPgY!AN169, WMID!AN169, EMID!AN169, SWALES!AN169, SWEST!AN169, LPN!AN169,SPN!AN169,EPN!AN169,SPD!AN169,SPMW!AN169,SSEH!AN169,SSES!AN169)","v":0},{"$f":"CHOOSE(m_identity,ENWL!AO169, NPgN!AO169, NPgY!AO169, WMID!AO169, EMID!AO169, SWALES!AO169, SWEST!AO169, LPN!AO169,SPN!AO169,EPN!AO169,SPD!AO169,SPMW!AO169,SSEH!AO169,SSES!AO169)","v":0},{"$f":"CHOOSE(m_identity,ENWL!AP169, NPgN!AP169, NPgY!AP169, WMID!AP169, EMID!AP169, SWALES!AP169, SWEST!AP169, LPN!AP169,SPN!AP169,EPN!AP169,SPD!AP169,SPMW!AP169,SSEH!AP169,SSES!AP169)","v":0},{"$f":"CHOOSE(m_identity,ENWL!AQ169, NPgN!AQ169, NPgY!AQ169, WMID!AQ169, EMID!AQ169, SWALES!AQ169, SWEST!AQ169, LPN!AQ169,SPN!AQ169,EPN!AQ169,SPD!AQ169,SPMW!AQ169,SSEH!AQ169,SSES!AQ169)","v":0}]
[null,null,null,null,"Allocation to tree cutting",null,"%",null,null,null,null,null,null,null,null,null,null,null,null,null,null,null,null,null,null,null,null,null,null,null,null,null,null,null,null,{"$f":"CHOOSE(m_identity,ENWL!AJ170, NPgN!AJ170, NPgY!AJ170, WMID!AJ170, EMID!AJ170, SWALES!AJ170, SWEST!AJ170, LPN!AJ170,SPN!AJ170,EPN!AJ170,SPD!AJ170,SPMW!AJ170,SSEH!AJ170,SSES!AJ170)","v":0},{"$f":"CHOOSE(m_identity,ENWL!AK170, NPgN!AK170, NPgY!AK170, WMID!AK170, EMID!AK170, SWALES!AK170, SWEST!AK170, LPN!AK170,SPN!AK170,EPN!AK170,SPD!AK170,SPMW!AK170,SSEH!AK170,SSES!AK170)","v":0},{"$f":"CHOOSE(m_identity,ENWL!AL170, NPgN!AL170, NPgY!AL170, WMID!AL170, EMID!AL170, SWALES!AL170, SWEST!AL170, LPN!AL170,SPN!AL170,EPN!AL170,SPD!AL170,SPMW!AL170,SSEH!AL170,SSES!AL170)","v":0},{"$f":"CHOOSE(m_identity,ENWL!AM170, NPgN!AM170, NPgY!AM170, WMID!AM170, EMID!AM170, SWALES!AM170, SWEST!AM170, LPN!AM170,SPN!AM170,EPN!AM170,SPD!AM170,SPMW!AM170,SSEH!AM170,SSES!AM170)","v":0},{"$f":"CHOOSE(m_identity,ENWL!AN170, NPgN!AN170, NPgY!AN170, WMID!AN170, EMID!AN170, SWALES!AN170, SWEST!AN170, LPN!AN170,SPN!AN170,EPN!AN170,SPD!AN170,SPMW!AN170,SSEH!AN170,SSES!AN170)","v":0},{"$f":"CHOOSE(m_identity,ENWL!AO170, NPgN!AO170, NPgY!AO170, WMID!AO170, EMID!AO170, SWALES!AO170, SWEST!AO170, LPN!AO170,SPN!AO170,EPN!AO170,SPD!AO170,SPMW!AO170,SSEH!AO170,SSES!AO170)","v":0},{"$f":"CHOOSE(m_identity,ENWL!AP170, NPgN!AP170, NPgY!AP170, WMID!AP170, EMID!AP170, SWALES!AP170, SWEST!AP170, LPN!AP170,SPN!AP170,EPN!AP170,SPD!AP170,SPMW!AP170,SSEH!AP170,SSES!AP170)","v":0},{"$f":"CHOOSE(m_identity,ENWL!AQ170, NPgN!AQ170, NPgY!AQ170, WMID!AQ170, EMID!AQ170, SWALES!AQ170, SWEST!AQ170, LPN!AQ170,SPN!AQ170,EPN!AQ170,SPD!AQ170,SPMW!AQ170,SSEH!AQ170,SSES!AQ170)","v":0}]
[null,null,null,null,"Allocation to controllable opex",null,"%",null,null,null,null,null,null,null,null,null,null,null,null,null,null,null,null,null,null,null,null,null,null,null,null,null,null,null,null,{"$f":"CHOOSE(m_identity,ENWL!AJ171, NPgN!AJ171, NPgY!AJ171, WMID!AJ171, EMID!AJ171, SWALES!AJ171, SWEST!AJ171, LPN!AJ171,SPN!AJ171,EPN!AJ171,SPD!AJ171,SPMW!AJ171,SSEH!AJ171,SSES!AJ171)","v":0},{"$f":"CHOOSE(m_identity,ENWL!AK171, NPgN!AK171, NPgY!AK171, WMID!AK171, EMID!AK171, SWALES!AK171, SWEST!AK171, LPN!AK171,SPN!AK171,EPN!AK171,SPD!AK171,SPMW!AK171,SSEH!AK171,SSES!AK171)","v":0},{"$f":"CHOOSE(m_identity,ENWL!AL171, NPgN!AL171, NPgY!AL171, WMID!AL171, EMID!AL171, SWALES!AL171, SWEST!AL171, LPN!AL171,SPN!AL171,EPN!AL171,SPD!AL171,SPMW!AL171,SSEH!AL171,SSES!AL171)","v":0},{"$f":"CHOOSE(m_identity,ENWL!AM171, NPgN!AM171, NPgY!AM171, WMID!AM171, EMID!AM171, SWALES!AM171, SWEST!AM171, LPN!AM171,SPN!AM171,EPN!AM171,SPD!AM171,SPMW!AM171,SSEH!AM171,SSES!AM171)","v":0},{"$f":"CHOOSE(m_identity,ENWL!AN171, NPgN!AN171, NPgY!AN171, WMID!AN171, EMID!AN171, SWALES!AN171, SWEST!AN171, LPN!AN171,SPN!AN171,EPN!AN171,SPD!AN171,SPMW!AN171,SSEH!AN171,SSES!AN171)","v":0},{"$f":"CHOOSE(m_identity,ENWL!AO171, NPgN!AO171, NPgY!AO171, WMID!AO171, EMID!AO171, SWALES!AO171, SWEST!AO171, LPN!AO171,SPN!AO171,EPN!AO171,SPD!AO171,SPMW!AO171,SSEH!AO171,SSES!AO171)","v":0},{"$f":"CHOOSE(m_identity,ENWL!AP171, NPgN!AP171, NPgY!AP171, WMID!AP171, EMID!AP171, SWALES!AP171, SWEST!AP171, LPN!AP171,SPN!AP171,EPN!AP171,SPD!AP171,SPMW!AP171,SSEH!AP171,SSES!AP171)","v":0},{"$f":"CHOOSE(m_identity,ENWL!AQ171, NPgN!AQ171, NPgY!AQ171, WMID!AQ171, EMID!AQ171, SWALES!AQ171, SWEST!AQ171, LPN!AQ171,SPN!AQ171,EPN!AQ171,SPD!AQ171,SPMW!AQ171,SSEH!AQ171,SSES!AQ171)","v":0}]
[]
[null,null,null,null,{"$f":"E27","v":"Spare 3"},null,"£m 12/13 prices",null,null,null,null,null,null,null,null,null,null,null,null,null,null,null,null,null,null,null,null,null,null,null,null,null,null,null,null,{"$f":"AJ27","v":0},0,0,0,0,0,0,0]
[null,null,null,null,"Allocation to load related capex",null,"%",null,null,null,null,null,null,null,null,null,null,null,null,null,null,null,null,null,null,null,null,null,null,null,null,null,null,null,null,{"$f":"CHOOSE(m_identity,ENWL!AJ174, NPgN!AJ174, NPgY!AJ174, WMID!AJ174, EMID!AJ174, SWALES!AJ174, SWEST!AJ174, LPN!AJ174,SPN!AJ174,EPN!AJ174,SPD!AJ174,SPMW!AJ174,SSEH!AJ174,SSES!AJ174)","v":0},{"$f":"CHOOSE(m_identity,ENWL!AK174, NPgN!AK174, NPgY!AK174, WMID!AK174, EMID!AK174, SWALES!AK174, SWEST!AK174, LPN!AK174,SPN!AK174,EPN!AK174,SPD!AK174,SPMW!AK174,SSEH!AK174,SSES!AK174)","v":0},{"$f":"CHOOSE(m_identity,ENWL!AL174, NPgN!AL174, NPgY!AL174, WMID!AL174, EMID!AL174, SWALES!AL174, SWEST!AL174, LPN!AL174,SPN!AL174,EPN!AL174,SPD!AL174,SPMW!AL174,SSEH!AL174,SSES!AL174)","v":0},{"$f":"CHOOSE(m_identity,ENWL!AM174, NPgN!AM174, NPgY!AM174, WMID!AM174, EMID!AM174, SWALES!AM174, SWEST!AM174, LPN!AM174,SPN!AM174,EPN!AM174,SPD!AM174,SPMW!AM174,SSEH!AM174,SSES!AM174)","v":0},{"$f":"CHOOSE(m_identity,ENWL!AN174, NPgN!AN174, NPgY!AN174, WMID!AN174, EMID!AN174, SWALES!AN174, SWEST!AN174, LPN!AN174,SPN!AN174,EPN!AN174,SPD!AN174,SPMW!AN174,SSEH!AN174,SSES!AN174)","v":0},{"$f":"CHOOSE(m_identity,ENWL!AO174, NPgN!AO174, NPgY!AO174, WMID!AO174, EMID!AO174, SWALES!AO174, SWEST!AO174, LPN!AO174,SPN!AO174,EPN!AO174,SPD!AO174,SPMW!AO174,SSEH!AO174,SSES!AO174)","v":0},{"$f":"CHOOSE(m_identity,ENWL!AP174, NPgN!AP174, NPgY!AP174, WMID!AP174, EMID!AP174, SWALES!AP174, SWEST!AP174, LPN!AP174,SPN!AP174,EPN!AP174,SPD!AP174,SPMW!AP174,SSEH!AP174,SSES!AP174)","v":0},{"$f":"CHOOSE(m_identity,ENWL!AQ174, NPgN!AQ174, NPgY!AQ174, WMID!AQ174, EMID!AQ174, SWALES!AQ174, SWEST!AQ174, LPN!AQ174,SPN!AQ174,EPN!AQ174,SPD!AQ174,SPMW!AQ174,SSEH!AQ174,SSES!AQ174)","v":0}]
[null,null,null,null,"Allocation to non-load related capex - asset replacement",null,"%",null,null,null,null,null,null,null,null,null,null,null,null,null,null,null,null,null,null,null,null,null,null,null,null,null,null,null,null,{"$f":"CHOOSE(m_identity,ENWL!AJ175, NPgN!AJ175, NPgY!AJ175, WMID!AJ175, EMID!AJ175, SWALES!AJ175, SWEST!AJ175, LPN!AJ175,SPN!AJ175,EPN!AJ175,SPD!AJ175,SPMW!AJ175,SSEH!AJ175,SSES!AJ175)","v":0},{"$f":"CHOOSE(m_identity,ENWL!AK175, NPgN!AK175, NPgY!AK175, WMID!AK175, EMID!AK175, SWALES!AK175, SWEST!AK175, LPN!AK175,SPN!AK175,EPN!AK175,SPD!AK175,SPMW!AK175,SSEH!AK175,SSES!AK175)","v":0},{"$f":"CHOOSE(m_identity,ENWL!AL175, NPgN!AL175, NPgY!AL175, WMID!AL175, EMID!AL175, SWALES!AL175, SWEST!AL175, LPN!AL175,SPN!AL175,EPN!AL175,SPD!AL175,SPMW!AL175,SSEH!AL175,SSES!AL175)","v":0},{"$f":"CHOOSE(m_identity,ENWL!AM175, NPgN!AM175, NPgY!AM175, WMID!AM175, EMID!AM175, SWALES!AM175, SWEST!AM175, LPN!AM175,SPN!AM175,EPN!AM175,SPD!AM175,SPMW!AM175,SSEH!AM175,SSES!AM175)","v":0},{"$f":"CHOOSE(m_identity,ENWL!AN175, NPgN!AN175, NPgY!AN175, WMID!AN175, EMID!AN175, SWALES!AN175, SWEST!AN175, LPN!AN175,SPN!AN175,EPN!AN175,SPD!AN175,SPMW!AN175,SSEH!AN175,SSES!AN175)","v":0},{"$f":"CHOOSE(m_identity,ENWL!AO175, NPgN!AO175, NPgY!AO175, WMID!AO175, EMID!AO175, SWALES!AO175, SWEST!AO175, LPN!AO175,SPN!AO175,EPN!AO175,SPD!AO175,SPMW!AO175,SSEH!AO175,SSES!AO175)","v":0},{"$f":"CHOOSE(m_identity,ENWL!AP175, NPgN!AP175, NPgY!AP175, WMID!AP175, EMID!AP175, SWALES!AP175, SWEST!AP175, LPN!AP175,SPN!AP175,EPN!AP175,SPD!AP175,SPMW!AP175,SSEH!AP175,SSES!AP175)","v":0},{"$f":"CHOOSE(m_identity,ENWL!AQ175, NPgN!AQ175, NPgY!AQ175, WMID!AQ175, EMID!AQ175, SWALES!AQ175, SWEST!AQ175, LPN!AQ175,SPN!AQ175,EPN!AQ175,SPD!AQ175,SPMW!AQ175,SSEH!AQ175,SSES!AQ175)","v":0}]
[null,null,null,null,"Allocation to non-load related capex - other",null,"%",null,null,null,null,null,null,null,null,null,null,null,null,null,null,null,null,null,null,null,null,null,null,null,null,null,null,null,null,{"$f":"CHOOSE(m_identity,ENWL!AJ176, NPgN!AJ176, NPgY!AJ176, WMID!AJ176, EMID!AJ176, SWALES!AJ176, SWEST!AJ176, LPN!AJ176,SPN!AJ176,EPN!AJ176,SPD!AJ176,SPMW!AJ176,SSEH!AJ176,SSES!AJ176)","v":0},{"$f":"CHOOSE(m_identity,ENWL!AK176, NPgN!AK176, NPgY!AK176, WMID!AK176, EMID!AK176, SWALES!AK176, SWEST!AK176, LPN!AK176,SPN!AK176,EPN!AK176,SPD!AK176,SPMW!AK176,SSEH!AK176,SSES!AK176)","v":0},{"$f":"CHOOSE(m_identity,ENWL!AL176, NPgN!AL176, NPgY!AL176, WMID!AL176, EMID!AL176, SWALES!AL176, SWEST!AL176, LPN!AL176,SPN!AL176,EPN!AL176,SPD!AL176,SPMW!AL176,SSEH!AL176,SSES!AL176)","v":0},{"$f":"CHOOSE(m_identity,ENWL!AM176, NPgN!AM176, NPgY!AM176, WMID!AM176, EMID!AM176, SWALES!AM176, SWEST!AM176, LPN!AM176,SPN!AM176,EPN!AM176,SPD!AM176,SPMW!AM176,SSEH!AM176,SSES!AM176)","v":0},{"$f":"CHOOSE(m_identity,ENWL!AN176, NPgN!AN176, NPgY!AN176, WMID!AN176, EMID!AN176, SWALES!AN176, SWEST!AN176, LPN!AN176,SPN!AN176,EPN!AN176,SPD!AN176,SPMW!AN176,SSEH!AN176,SSES!AN176)","v":0},{"$f":"CHOOSE(m_identity,ENWL!AO176, NPgN!AO176, NPgY!AO176, WMID!AO176, EMID!AO176, SWALES!AO176, SWEST!AO176, LPN!AO176,SPN!AO176,EPN!AO176,SPD!AO176,SPMW!AO176,SSEH!AO176,SSES!AO176)","v":0},{"$f":"CHOOSE(m_identity,ENWL!AP176, NPgN!AP176, NPgY!AP176, WMID!AP176, EMID!AP176, SWALES!AP176, SWEST!AP176, LPN!AP176,SPN!AP176,EPN!AP176,SPD!AP176,SPMW!AP176,SSEH!AP176,SSES!AP176)","v":0},{"$f":"CHOOSE(m_identity,ENWL!AQ176, NPgN!AQ176, NPgY!AQ176, WMID!AQ176, EMID!AQ176, SWALES!AQ176, SWEST!AQ176, LPN!AQ176,SPN!AQ176,EPN!AQ176,SPD!AQ176,SPMW!AQ176,SSEH!AQ176,SSES!AQ176)","v":0}]
[null,null,null,null,"Allocation to faults",null,"%",null,null,null,null,null,null,null,null,null,null,null,null,null,null,null,null,null,null,null,null,null,null,null,null,null,null,null,null,{"$f":"CHOOSE(m_identity,ENWL!AJ177, NPgN!AJ177, NPgY!AJ177, WMID!AJ177, EMID!AJ177, SWALES!AJ177, SWEST!AJ177, LPN!AJ177,SPN!AJ177,EPN!AJ177,SPD!AJ177,SPMW!AJ177,SSEH!AJ177,SSES!AJ177)","v":0},{"$f":"CHOOSE(m_identity,ENWL!AK177, NPgN!AK177, NPgY!AK177, WMID!AK177, EMID!AK177, SWALES!AK177, SWEST!AK177, LPN!AK177,SPN!AK177,EPN!AK177,SPD!AK177,SPMW!AK177,SSEH!AK177,SSES!AK177)","v":0},{"$f":"CHOOSE(m_identity,ENWL!AL177, NPgN!AL177, NPgY!AL177, WMID!AL177, EMID!AL177, SWALES!AL177, SWEST!AL177, LPN!AL177,SPN!AL177,EPN!AL177,SPD!AL177,SPMW!AL177,SSEH!AL177,SSES!AL177)","v":0},{"$f":"CHOOSE(m_identity,ENWL!AM177, NPgN!AM177, NPgY!AM177, WMID!AM177, EMID!AM177, SWALES!AM177, SWEST!AM177, LPN!AM177,SPN!AM177,EPN!AM177,SPD!AM177,SPMW!AM177,SSEH!AM177,SSES!AM177)","v":0},{"$f":"CHOOSE(m_identity,ENWL!AN177, NPgN!AN177, NPgY!AN177, WMID!AN177, EMID!AN177, SWALES!AN177, SWEST!AN177, LPN!AN177,SPN!AN177,EPN!AN177,SPD!AN177,SPMW!AN177,SSEH!AN177,SSES!AN177)","v":0},{"$f":"CHOOSE(m_identity,ENWL!AO177, NPgN!AO177, NPgY!AO177, WMID!AO177, EMID!AO177, SWALES!AO177, SWEST!AO177, LPN!AO177,SPN!AO177,EPN!AO177,SPD!AO177,SPMW!AO177,SSEH!AO177,SSES!AO177)","v":0},{"$f":"CHOOSE(m_identity,ENWL!AP177, NPgN!AP177, NPgY!AP177, WMID!AP177, EMID!AP177, SWALES!AP177, SWEST!AP177, LPN!AP177,SPN!AP177,EPN!AP177,SPD!AP177,SPMW!AP177,SSEH!AP177,SSES!AP177)","v":0},{"$f":"CHOOSE(m_identity,ENWL!AQ177, NPgN!AQ177, NPgY!AQ177, WMID!AQ177, EMID!AQ177, SWALES!AQ177, SWEST!AQ177, LPN!AQ177,SPN!AQ177,EPN!AQ177,SPD!AQ177,SPMW!AQ177,SSEH!AQ177,SSES!AQ177)","v":0}]
[null,null,null,null,"Allocation to tree cutting",null,"%",null,null,null,null,null,null,null,null,null,null,null,null,null,null,null,null,null,null,null,null,null,null,null,null,null,null,null,null,{"$f":"CHOOSE(m_identity,ENWL!AJ178, NPgN!AJ178, NPgY!AJ178, WMID!AJ178, EMID!AJ178, SWALES!AJ178, SWEST!AJ178, LPN!AJ178,SPN!AJ178,EPN!AJ178,SPD!AJ178,SPMW!AJ178,SSEH!AJ178,SSES!AJ178)","v":0},{"$f":"CHOOSE(m_identity,ENWL!AK178, NPgN!AK178, NPgY!AK178, WMID!AK178, EMID!AK178, SWALES!AK178, SWEST!AK178, LPN!AK178,SPN!AK178,EPN!AK178,SPD!AK178,SPMW!AK178,SSEH!AK178,SSES!AK178)","v":0},{"$f":"CHOOSE(m_identity,ENWL!AL178, NPgN!AL178, NPgY!AL178, WMID!AL178, EMID!AL178, SWALES!AL178, SWEST!AL178, LPN!AL178,SPN!AL178,EPN!AL178,SPD!AL178,SPMW!AL178,SSEH!AL178,SSES!AL178)","v":0},{"$f":"CHOOSE(m_identity,ENWL!AM178, NPgN!AM178, NPgY!AM178, WMID!AM178, EMID!AM178, SWALES!AM178, SWEST!AM178, LPN!AM178,SPN!AM178,EPN!AM178,SPD!AM178,SPMW!AM178,SSEH!AM178,SSES!AM178)","v":0},{"$f":"CHOOSE(m_identity,ENWL!AN178, NPgN!AN178, NPgY!AN178, WMID!AN178, EMID!AN178, SWALES!AN178, SWEST!AN178, LPN!AN178,SPN!AN178,EPN!AN178,SPD!AN178,SPMW!AN178,SSEH!AN178,SSES!AN178)","v":0},{"$f":"CHOOSE(m_identity,ENWL!AO178, NPgN!AO178, NPgY!AO178, WMID!AO178, EMID!AO178, SWALES!AO178, SWEST!AO178, LPN!AO178,SPN!AO178,EPN!AO178,SPD!AO178,SPMW!AO178,SSEH!AO178,SSES!AO178)","v":0},{"$f":"CHOOSE(m_identity,ENWL!AP178, NPgN!AP178, NPgY!AP178, WMID!AP178, EMID!AP178, SWALES!AP178, SWEST!AP178, LPN!AP178,SPN!AP178,EPN!AP178,SPD!AP178,SPMW!AP178,SSEH!AP178,SSES!AP178)","v":0},{"$f":"CHOOSE(m_identity,ENWL!AQ178, NPgN!AQ178, NPgY!AQ178, WMID!AQ178, EMID!AQ178, SWALES!AQ178, SWEST!AQ178, LPN!AQ178,SPN!AQ178,EPN!AQ178,SPD!AQ178,SPMW!AQ178,SSEH!AQ178,SSES!AQ178)","v":0}]
[null,null,null,null,"Allocation to controllable opex",null,"%",null,null,null,null,null,null,null,null,null,null,null,null,null,null,null,null,null,null,null,null,null,null,null,null,null,null,null,null,{"$f":"CHOOSE(m_identity,ENWL!AJ179, NPgN!AJ179, NPgY!AJ179, WMID!AJ179, EMID!AJ179, SWALES!AJ179, SWEST!AJ179, LPN!AJ179,SPN!AJ179,EPN!AJ179,SPD!AJ179,SPMW!AJ179,SSEH!AJ179,SSES!AJ179)","v":0},{"$f":"CHOOSE(m_identity,ENWL!AK179, NPgN!AK179, NPgY!AK179, WMID!AK179, EMID!AK179, SWALES!AK179, SWEST!AK179, LPN!AK179,SPN!AK179,EPN!AK179,SPD!AK179,SPMW!AK179,SSEH!AK179,SSES!AK179)","v":0},{"$f":"CHOOSE(m_identity,ENWL!AL179, NPgN!AL179, NPgY!AL179, WMID!AL179, EMID!AL179, SWALES!AL179, SWEST!AL179, LPN!AL179,SPN!AL179,EPN!AL179,SPD!AL179,SPMW!AL179,SSEH!AL179,SSES!AL179)","v":0},{"$f":"CHOOSE(m_identity,ENWL!AM179, NPgN!AM179, NPgY!AM179, WMID!AM179, EMID!AM179, SWALES!AM179, SWEST!AM179, LPN!AM179,SPN!AM179,EPN!AM179,SPD!AM179,SPMW!AM179,SSEH!AM179,SSES!AM179)","v":0},{"$f":"CHOOSE(m_identity,ENWL!AN179, NPgN!AN179, NPgY!AN179, WMID!AN179, EMID!AN179, SWALES!AN179, SWEST!AN179, LPN!AN179,SPN!AN179,EPN!AN179,SPD!AN179,SPMW!AN179,SSEH!AN179,SSES!AN179)","v":0},{"$f":"CHOOSE(m_identity,ENWL!AO179, NPgN!AO179, NPgY!AO179, WMID!AO179, EMID!AO179, SWALES!AO179, SWEST!AO179, LPN!AO179,SPN!AO179,EPN!AO179,SPD!AO179,SPMW!AO179,SSEH!AO179,SSES!AO179)","v":0},{"$f":"CHOOSE(m_identity,ENWL!AP179, NPgN!AP179, NPgY!AP179, WMID!AP179, EMID!AP179, SWALES!AP179, SWEST!AP179, LPN!AP179,SPN!AP179,EPN!AP179,SPD!AP179,SPMW!AP179,SSEH!AP179,SSES!AP179)","v":0},{"$f":"CHOOSE(m_identity,ENWL!AQ179, NPgN!AQ179, NPgY!AQ179, WMID!AQ179, EMID!AQ179, SWALES!AQ179, SWEST!AQ179, LPN!AQ179,SPN!AQ179,EPN!AQ179,SPD!AQ179,SPMW!AQ179,SSEH!AQ179,SSES!AQ179)","v":0}]
[]
[null,null,null,null,{"$f":"E28","v":"Allowed innovation roll-out mechanism"},null,"£m 12/13 prices",null,null,null,null,null,null,null,null,null,null,null,null,null,null,null,null,null,null,null,null,null,null,null,null,null,null,null,null,{"$f":"AJ28","v":0},{"$f":"AK28","v":0},0,0,0,0,0,0]
[null,null,null,null,"Allocation to load related capex",null,"%",null,null,null,null,null,null,null,null,null,null,null,null,null,null,null,null,null,null,null,null,null,null,null,null,null,null,null,null,{"$f":"CHOOSE(m_identity,ENWL!AJ182, NPgN!AJ182, NPgY!AJ182, WMID!AJ182, EMID!AJ182, SWALES!AJ182, SWEST!AJ182, LPN!AJ182,SPN!AJ182,EPN!AJ182,SPD!AJ182,SPMW!AJ182,SSEH!AJ182,SSES!AJ182)","v":0.25},{"$f":"CHOOSE(m_identity,ENWL!AK182, NPgN!AK182, NPgY!AK182, WMID!AK182, EMID!AK182, SWALES!AK182, SWEST!AK182, LPN!AK182,SPN!AK182,EPN!AK182,SPD!AK182,SPMW!AK182,SSEH!AK182,SSES!AK182)","v":0.25},{"$f":"CHOOSE(m_identity,ENWL!AL182, NPgN!AL182, NPgY!AL182, WMID!AL182, EMID!AL182, SWALES!AL182, SWEST!AL182, LPN!AL182,SPN!AL182,EPN!AL182,SPD!AL182,SPMW!AL182,SSEH!AL182,SSES!AL182)","v":0.25},{"$f":"CHOOSE(m_identity,ENWL!AM182, NPgN!AM182, NPgY!AM182, WMID!AM182, EMID!AM182, SWALES!AM182, SWEST!AM182, LPN!AM182,SPN!AM182,EPN!AM182,SPD!AM182,SPMW!AM182,SSEH!AM182,SSES!AM182)","v":0.25},{"$f":"CHOOSE(m_identity,ENWL!AN182, NPgN!AN182, NPgY!AN182, WMID!AN182, EMID!AN182, SWALES!AN182, SWEST!AN182, LPN!AN182,SPN!AN182,EPN!AN182,SPD!AN182,SPMW!AN182,SSEH!AN182,SSES!AN182)","v":0.25},{"$f":"CHOOSE(m_identity,ENWL!AO182, NPgN!AO182, NPgY!AO182, WMID!AO182, EMID!AO182, SWALES!AO182, SWEST!AO182, LPN!AO182,SPN!AO182,EPN!AO182,SPD!AO182,SPMW!AO182,SSEH!AO182,SSES!AO182)","v":0.25},{"$f":"CHOOSE(m_identity,ENWL!AP182, NPgN!AP182, NPgY!AP182, WMID!AP182, EMID!AP182, SWALES!AP182, SWEST!AP182, LPN!AP182,SPN!AP182,EPN!AP182,SPD!AP182,SPMW!AP182,SSEH!AP182,SSES!AP182)","v":0.25},{"$f":"CHOOSE(m_identity,ENWL!AQ182, NPgN!AQ182, NPgY!AQ182, WMID!AQ182, EMID!AQ182, SWALES!AQ182, SWEST!AQ182, LPN!AQ182,SPN!AQ182,EPN!AQ182,SPD!AQ182,SPMW!AQ182,SSEH!AQ182,SSES!AQ182)","v":0.25}]
[null,null,null,null,"Allocation to non-load related capex - asset replacement",null,"%",null,null,null,null,null,null,null,null,null,null,null,null,null,null,null,null,null,null,null,null,null,null,null,null,null,null,null,null,{"$f":"CHOOSE(m_identity,ENWL!AJ183, NPgN!AJ183, NPgY!AJ183, WMID!AJ183, EMID!AJ183, SWALES!AJ183, SWEST!AJ183, LPN!AJ183,SPN!AJ183,EPN!AJ183,SPD!AJ183,SPMW!AJ183,SSEH!AJ183,SSES!AJ183)","v":0},{"$f":"CHOOSE(m_identity,ENWL!AK183, NPgN!AK183, NPgY!AK183, WMID!AK183, EMID!AK183, SWALES!AK183, SWEST!AK183, LPN!AK183,SPN!AK183,EPN!AK183,SPD!AK183,SPMW!AK183,SSEH!AK183,SSES!AK183)","v":0},{"$f":"CHOOSE(m_identity,ENWL!AL183, NPgN!AL183, NPgY!AL183, WMID!AL183, EMID!AL183, SWALES!AL183, SWEST!AL183, LPN!AL183,SPN!AL183,EPN!AL183,SPD!AL183,SPMW!AL183,SSEH!AL183,SSES!AL183)","v":0},{"$f":"CHOOSE(m_identity,ENWL!AM183, NPgN!AM183, NPgY!AM183, WMID!AM183, EMID!AM183, SWALES!AM183, SWEST!AM183, LPN!AM183,SPN!AM183,EPN!AM183,SPD!AM183,SPMW!AM183,SSEH!AM183,SSES!AM183)","v":0},{"$f":"CHOOSE(m_identity,ENWL!AN183, NPgN!AN183, NPgY!AN183, WMID!AN183, EMID!AN183, SWALES!AN183, SWEST!AN183, LPN!AN183,SPN!AN183,EPN!AN183,SPD!AN183,SPMW!AN183,SSEH!AN183,SSES!AN183)","v":0},{"$f":"CHOOSE(m_identity,ENWL!AO183, NPgN!AO183, NPgY!AO183, WMID!AO183, EMID!AO183, SWALES!AO183, SWEST!AO183, LPN!AO183,SPN!AO183,EPN!AO183,SPD!AO183,SPMW!AO183,SSEH!AO183,SSES!AO183)","v":0},{"$f":"CHOOSE(m_identity,ENWL!AP183, NPgN!AP183, NPgY!AP183, WMID!AP183, EMID!AP183, SWALES!AP183, SWEST!AP183, LPN!AP183,SPN!AP183,EPN!AP183,SPD!AP183,SPMW!AP183,SSEH!AP183,SSES!AP183)","v":0},{"$f":"CHOOSE(m_identity,ENWL!AQ183, NPgN!AQ183, NPgY!AQ183, WMID!AQ183, EMID!AQ183, SWALES!AQ183, SWEST!AQ183, LPN!AQ183,SPN!AQ183,EPN!AQ183,SPD!AQ183,SPMW!AQ183,SSEH!AQ183,SSES!AQ183)","v":0}]
[null,null,null,null,"Allocation to non-load related capex - other",null,"%",null,null,null,null,null,null,null,null,null,null,null,null,null,null,null,null,null,null,null,null,null,null,null,null,null,null,null,null,{"$f":"CHOOSE(m_identity,ENWL!AJ184, NPgN!AJ184, NPgY!AJ184, WMID!AJ184, EMID!AJ184, SWALES!AJ184, SWEST!AJ184, LPN!AJ184,SPN!AJ184,EPN!AJ184,SPD!AJ184,SPMW!AJ184,SSEH!AJ184,SSES!AJ184)","v":0.75},{"$f":"CHOOSE(m_identity,ENWL!AK184, NPgN!AK184, NPgY!AK184, WMID!AK184, EMID!AK184, SWALES!AK184, SWEST!AK184, LPN!AK184,SPN!AK184,EPN!AK184,SPD!AK184,SPMW!AK184,SSEH!AK184,SSES!AK184)","v":0.75},{"$f":"CHOOSE(m_identity,ENWL!AL184, NPgN!AL184, NPgY!AL184, WMID!AL184, EMID!AL184, SWALES!AL184, SWEST!AL184, LPN!AL184,SPN!AL184,EPN!AL184,SPD!AL184,SPMW!AL184,SSEH!AL184,SSES!AL184)","v":0.75},{"$f":"CHOOSE(m_identity,ENWL!AM184, NPgN!AM184, NPgY!AM184, WMID!AM184, EMID!AM184, SWALES!AM184, SWEST!AM184, LPN!AM184,SPN!AM184,EPN!AM184,SPD!AM184,SPMW!AM184,SSEH!AM184,SSES!AM184)","v":0.75},{"$f":"CHOOSE(m_identity,ENWL!AN184, NPgN!AN184, NPgY!AN184, WMID!AN184, EMID!AN184, SWALES!AN184, SWEST!AN184, LPN!AN184,SPN!AN184,EPN!AN184,SPD!AN184,SPMW!AN184,SSEH!AN184,SSES!AN184)","v":0.75},{"$f":"CHOOSE(m_identity,ENWL!AO184, NPgN!AO184, NPgY!AO184, WMID!AO184, EMID!AO184, SWALES!AO184, SWEST!AO184, LPN!AO184,SPN!AO184,EPN!AO184,SPD!AO184,SPMW!AO184,SSEH!AO184,SSES!AO184)","v":0.75},{"$f":"CHOOSE(m_identity,ENWL!AP184, NPgN!AP184, NPgY!AP184, WMID!AP184, EMID!AP184, SWALES!AP184, SWEST!AP184, LPN!AP184,SPN!AP184,EPN!AP184,SPD!AP184,SPMW!AP184,SSEH!AP184,SSES!AP184)","v":0.75},{"$f":"CHOOSE(m_identity,ENWL!AQ184, NPgN!AQ184, NPgY!AQ184, WMID!AQ184, EMID!AQ184, SWALES!AQ184, SWEST!AQ184, LPN!AQ184,SPN!AQ184,EPN!AQ184,SPD!AQ184,SPMW!AQ184,SSEH!AQ184,SSES!AQ184)","v":0.75}]
[null,null,null,null,"Allocation to faults",null,"%",null,null,null,null,null,null,null,null,null,null,null,null,null,null,null,null,null,null,null,null,null,null,null,null,null,null,null,null,{"$f":"CHOOSE(m_identity,ENWL!AJ185, NPgN!AJ185, NPgY!AJ185, WMID!AJ185, EMID!AJ185, SWALES!AJ185, SWEST!AJ185, LPN!AJ185,SPN!AJ185,EPN!AJ185,SPD!AJ185,SPMW!AJ185,SSEH!AJ185,SSES!AJ185)","v":0},{"$f":"CHOOSE(m_identity,ENWL!AK185, NPgN!AK185, NPgY!AK185, WMID!AK185, EMID!AK185, SWALES!AK185, SWEST!AK185, LPN!AK185,SPN!AK185,EPN!AK185,SPD!AK185,SPMW!AK185,SSEH!AK185,SSES!AK185)","v":0},{"$f":"CHOOSE(m_identity,ENWL!AL185, NPgN!AL185, NPgY!AL185, WMID!AL185, EMID!AL185, SWALES!AL185, SWEST!AL185, LPN!AL185,SPN!AL185,EPN!AL185,SPD!AL185,SPMW!AL185,SSEH!AL185,SSES!AL185)","v":0},{"$f":"CHOOSE(m_identity,ENWL!AM185, NPgN!AM185, NPgY!AM185, WMID!AM185, EMID!AM185, SWALES!AM185, SWEST!AM185, LPN!AM185,SPN!AM185,EPN!AM185,SPD!AM185,SPMW!AM185,SSEH!AM185,SSES!AM185)","v":0},{"$f":"CHOOSE(m_identity,ENWL!AN185, NPgN!AN185, NPgY!AN185, WMID!AN185, EMID!AN185, SWALES!AN185, SWEST!AN185, LPN!AN185,SPN!AN185,EPN!AN185,SPD!AN185,SPMW!AN185,SSEH!AN185,SSES!AN185)","v":0},{"$f":"CHOOSE(m_identity,ENWL!AO185, NPgN!AO185, NPgY!AO185, WMID!AO185, EMID!AO185, SWALES!AO185, SWEST!AO185, LPN!AO185,SPN!AO185,EPN!AO185,SPD!AO185,SPMW!AO185,SSEH!AO185,SSES!AO185)","v":0},{"$f":"CHOOSE(m_identity,ENWL!AP185, NPgN!AP185, NPgY!AP185, WMID!AP185, EMID!AP185, SWALES!AP185, SWEST!AP185, LPN!AP185,SPN!AP185,EPN!AP185,SPD!AP185,SPMW!AP185,SSEH!AP185,SSES!AP185)","v":0},{"$f":"CHOOSE(m_identity,ENWL!AQ185, NPgN!AQ185, NPgY!AQ185, WMID!AQ185, EMID!AQ185, SWALES!AQ185, SWEST!AQ185, LPN!AQ185,SPN!AQ185,EPN!AQ185,SPD!AQ185,SPMW!AQ185,SSEH!AQ185,SSES!AQ185)","v":0}]
[null,null,null,null,"Allocation to tree cutting",null,"%",null,null,null,null,null,null,null,null,null,null,null,null,null,null,null,null,null,null,null,null,null,null,null,null,null,null,null,null,{"$f":"CHOOSE(m_identity,ENWL!AJ186, NPgN!AJ186, NPgY!AJ186, WMID!AJ186, EMID!AJ186, SWALES!AJ186, SWEST!AJ186, LPN!AJ186,SPN!AJ186,EPN!AJ186,SPD!AJ186,SPMW!AJ186,SSEH!AJ186,SSES!AJ186)","v":0},{"$f":"CHOOSE(m_identity,ENWL!AK186, NPgN!AK186, NPgY!AK186, WMID!AK186, EMID!AK186, SWALES!AK186, SWEST!AK186, LPN!AK186,SPN!AK186,EPN!AK186,SPD!AK186,SPMW!AK186,SSEH!AK186,SSES!AK186)","v":0},{"$f":"CHOOSE(m_identity,ENWL!AL186, NPgN!AL186, NPgY!AL186, WMID!AL186, EMID!AL186, SWALES!AL186, SWEST!AL186, LPN!AL186,SPN!AL186,EPN!AL186,SPD!AL186,SPMW!AL186,SSEH!AL186,SSES!AL186)","v":0},{"$f":"CHOOSE(m_identity,ENWL!AM186, NPgN!AM186, NPgY!AM186, WMID!AM186, EMID!AM186, SWALES!AM186, SWEST!AM186, LPN!AM186,SPN!AM186,EPN!AM186,SPD!AM186,SPMW!AM186,SSEH!AM186,SSES!AM186)","v":0},{"$f":"CHOOSE(m_identity,ENWL!AN186, NPgN!AN186, NPgY!AN186, WMID!AN186, EMID!AN186, SWALES!AN186, SWEST!AN186, LPN!AN186,SPN!AN186,EPN!AN186,SPD!AN186,SPMW!AN186,SSEH!AN186,SSES!AN186)","v":0},{"$f":"CHOOSE(m_identity,ENWL!AO186, NPgN!AO186, NPgY!AO186, WMID!AO186, EMID!AO186, SWALES!AO186, SWEST!AO186, LPN!AO186,SPN!AO186,EPN!AO186,SPD!AO186,SPMW!AO186,SSEH!AO186,SSES!AO186)","v":0},{"$f":"CHOOSE(m_identity,ENWL!AP186, NPgN!AP186, NPgY!AP186, WMID!AP186, EMID!AP186, SWALES!AP186, SWEST!AP186, LPN!AP186,SPN!AP186,EPN!AP186,SPD!AP186,SPMW!AP186,SSEH!AP186,SSES!AP186)","v":0},{"$f":"CHOOSE(m_identity,ENWL!AQ186, NPgN!AQ186, NPgY!AQ186, WMID!AQ186, EMID!AQ186, SWALES!AQ186, SWEST!AQ186, LPN!AQ186,SPN!AQ186,EPN!AQ186,SPD!AQ186,SPMW!AQ186,SSEH!AQ186,SSES!AQ186)","v":0}]
[null,null,null,null,"Allocation to controllable opex",null,"%",null,null,null,null,null,null,null,null,null,null,null,null,null,null,null,null,null,null,null,null,null,null,null,null,null,null,null,null,{"$f":"CHOOSE(m_identity,ENWL!AJ187, NPgN!AJ187, NPgY!AJ187, WMID!AJ187, EMID!AJ187, SWALES!AJ187, SWEST!AJ187, LPN!AJ187,SPN!AJ187,EPN!AJ187,SPD!AJ187,SPMW!AJ187,SSEH!AJ187,SSES!AJ187)","v":0},{"$f":"CHOOSE(m_identity,ENWL!AK187, NPgN!AK187, NPgY!AK187, WMID!AK187, EMID!AK187, SWALES!AK187, SWEST!AK187, LPN!AK187,SPN!AK187,EPN!AK187,SPD!AK187,SPMW!AK187,SSEH!AK187,SSES!AK187)","v":0},{"$f":"CHOOSE(m_identity,ENWL!AL187, NPgN!AL187, NPgY!AL187, WMID!AL187, EMID!AL187, SWALES!AL187, SWEST!AL187, LPN!AL187,SPN!AL187,EPN!AL187,SPD!AL187,SPMW!AL187,SSEH!AL187,SSES!AL187)","v":0},{"$f":"CHOOSE(m_identity,ENWL!AM187, NPgN!AM187, NPgY!AM187, WMID!AM187, EMID!AM187, SWALES!AM187, SWEST!AM187, LPN!AM187,SPN!AM187,EPN!AM187,SPD!AM187,SPMW!AM187,SSEH!AM187,SSES!AM187)","v":0},{"$f":"CHOOSE(m_identity,ENWL!AN187, NPgN!AN187, NPgY!AN187, WMID!AN187, EMID!AN187, SWALES!AN187, SWEST!AN187, LPN!AN187,SPN!AN187,EPN!AN187,SPD!AN187,SPMW!AN187,SSEH!AN187,SSES!AN187)","v":0},{"$f":"CHOOSE(m_identity,ENWL!AO187, NPgN!AO187, NPgY!AO187, WMID!AO187, EMID!AO187, SWALES!AO187, SWEST!AO187, LPN!AO187,SPN!AO187,EPN!AO187,SPD!AO187,SPMW!AO187,SSEH!AO187,SSES!AO187)","v":0},{"$f":"CHOOSE(m_identity,ENWL!AP187, NPgN!AP187, NPgY!AP187, WMID!AP187, EMID!AP187, SWALES!AP187, SWEST!AP187, LPN!AP187,SPN!AP187,EPN!AP187,SPD!AP187,SPMW!AP187,SSEH!AP187,SSES!AP187)","v":0},{"$f":"CHOOSE(m_identity,ENWL!AQ187, NPgN!AQ187, NPgY!AQ187, WMID!AQ187, EMID!AQ187, SWALES!AQ187, SWEST!AQ187, LPN!AQ187,SPN!AQ187,EPN!AQ187,SPD!AQ187,SPMW!AQ187,SSEH!AQ187,SSES!AQ187)","v":0}]
[]
[null,null,null,null,"Variant allowed load related capex",null,"£m 12/13 prices",null,null,null,null,null,null,null,null,null,null,null,null,null,null,null,null,null,null,null,null,null,null,null,null,null,null,null,null,{"$f":"(AJ$101*AJ102)+(AJ$109*AJ110)+(AJ$117*AJ118)+(AJ$125*AJ126)+(AJ$133*AJ134)+(AJ$141*AJ142)+(AJ$149*AJ150)+(AJ$157*AJ158)+(AJ$165*AJ166)+(AJ$173*AJ174)+(AJ$181*AJ182)","v":0},0,0,0,0,0,0,0]
[null,null,null,null,"Variant allowed non-load related capex - asset replacement",null,"£m 12/13 prices",null,null,null,null,null,null,null,null,null,null,null,null,null,null,null,null,null,null,null,null,null,null,null,null,null,null,null,null,6.6850358143958108E-2,0.5804095817614412,0.58029041901528677,7.1007259041343376E-2,7.1935693595704051E-2,7.2924315337734205E-2,7.3879229101923655E-2,7.4865796598177686E-2]
[null,null,null,null,"Variant allowed non-load related capex - other",null,"£m 12/13 prices",null,null,null,null,null,null,null,null,null,null,null,null,null,null,null,null,null,null,null,null,null,null,null,null,null,null,null,null,{"$f":"(AJ$101*AJ104)+(AJ$109*AJ112)+(AJ$117*AJ120)+(AJ$125*AJ128)+(AJ$133*AJ136)+(AJ$141*AJ144)+(AJ$149*AJ152)+(AJ$157*AJ160)+(AJ$165*AJ168)+(AJ$173*AJ176)+(AJ$181*AJ184)","v":0.32086328195134051},0.32012347815469605,0.32075061980619068,0.3200639505270263,0.32054124459468625,0.32108466564649085,0.32034348109040567,0.32108561571780592]
[null,null,null,null,"Variant allowed faults",null,"£m 12/13 prices",null,null,null,null,null,null,null,null,null,null,null,null,null,null,null,null,null,null,null,null,null,null,null,null,null,null,null,null,9.50322103350692E-2,9.8926578660803247E-2,9.9895821457331627E-2,0.10144192251604647,0.10301467160240724,0.10461537226275736,0.10624845654693749,0.1079176823857898]
[null,null,null,null,"Variant allowed tree cutting",null,"£m 12/13 prices",null,null,null,null,null,null,null,null,null,null,null,null,null,null,null,null,null,null,null,null,null,null,null,null,null,null,null,null,0,0,0,0,0,0,0,0]
[null,null,null,null,"Variant allowed controllable opex",null,"£m 12/13 prices",null,null,null,null,null,null,null,null,null,null,null,null,null,null,null,null,null,null,null,null,null,null,null,null,null,null,null,null,{"$f":"(AJ$101*AJ107)+(AJ$109*AJ115)+(AJ$117*AJ123)+(AJ$125*AJ131)+(AJ$133*AJ139)+(AJ$141*AJ147)+(AJ$149*AJ155)+(AJ$157*AJ163)+(AJ$165*AJ171)+(AJ$173*AJ179)+(AJ$181*AJ187)","v":5.2486320406245866E-2},5.1858360656762227E-2,5.0565223182818066E-2,4.5902567234348074E-2,4.2000926042862867E-2,4.3730330780959767E-2,0,0]
[]
[null,null,null,"Actual"]
[]
[null,null,null,null,"Actual load related capex",null,"£m 12/13 prices",null,null,null,null,null,null,null,null,null,null,null,null,null,null,null,null,null,null,null,null,null,null,null,null,null,null,null,null,{"$f":"AJ12","v":0},0,0,0,0,0,0,0]
[null,null,null,null,"Actual non-load related capex - asset replacement",null,"£m 12/13 prices",null,null,null,null,null,null,null,null,null,null,null,null,null,null,null,null,null,null,null,null,null,null,null,null,null,null,null,null,0,0,0,0,0,0,0,0]
[null,null,null,null,"Actual non-load related capex - other",null,"£m 12/13 prices",null,null,null,null,null,null,null,null,null,null,null,null,null,null,null,null,null,null,null,null,null,null,null,null,null,null,null,null,{"$f":"AJ14","v":0},0,0,0,0,0,0,0]
[null,null,null,null,"Actual faults",null,"£m 12/13 prices",null,null,null,null,null,null,null,null,null,null,null,null,null,null,null,null,null,null,null,null,null,null,null,null,null,null,null,null,{"$f":"AJ15","v":0},0,0,0,0,0,0,0]
[null,null,null,null,"Actual tree cutting",null,"£m 12/13 prices",null,null,null,null,null,null,null,null,null,null,null,null,null,null,null,null,null,null,null,null,null,null,null,null,null,null,null,null,0,0,0,0,0,0,0,0]
[null,null,null,null,"Actual controllable opex",null,"£m 12/13 prices",null,null,null,null,null,null,null,null,null,null,null,null,null,null,null,null,null,null,null,null,null,null,null,null,null,null,null,null,{"$f":"AJ17","v":0},0,0,0,0,0,0,0]
[]
[null,null,"Non-totex (all catergorised as 'opex' for tax purposes)"]
[]
[null,null,null,null,"Non-controllable opex (excluding Exit Charges)",null,"£m 12/13 prices",null,null,null,null,null,null,null,null,null,null,null,null,null,null,null,null,null,null,null,null,null,null,null,null,null,null,null,null,{"$f":"CHOOSE(m_identity,ENWL!AJ207, NPgN!AJ207, NPgY!AJ207, WMID!AJ207, EMID!AJ207, SWALES!AJ207, SWEST!AJ207, LPN!AJ207,SPN!AJ207,EPN!AJ207,SPD!AJ207,SPMW!AJ207,SSEH!AJ207,SSES!AJ207)","v":28.28686247997846},{"$f":"CHOOSE(m_identity,ENWL!AK207, NPgN!AK207, NPgY!AK207, WMID!AK207, EMID!AK207, SWALES!AK207, SWEST!AK207, LPN!AK207,SPN!AK207,EPN!AK207,SPD!AK207,SPMW!AK207,SSEH!AK207,SSES!AK207)","v":28.359229810674883},{"$f":"CHOOSE(m_identity,ENWL!AL207, NPgN!AL207, NPgY!AL207, WMID!AL207, EMID!AL207, SWALES!AL207, SWEST!AL207, LPN!AL207,SPN!AL207,EPN!AL207,SPD!AL207,SPMW!AL207,SSEH!AL207,SSES!AL207)","v":31.337180643263437},{"$f":"CHOOSE(m_identity,ENWL!AM207, NPgN!AM207, NPgY!AM207, WMID!AM207, EMID!AM207, SWALES!AM207, SWEST!AM207, LPN!AM207,SPN!AM207,EPN!AM207,SPD!AM207,SPMW!AM207,SSEH!AM207,SSES!AM207)","v":36.641231191804714},{"$f":"CHOOSE(m_identity,ENWL!AN207, NPgN!AN207, NPgY!AN207, WMID!AN207, EMID!AN207, SWALES!AN207, SWEST!AN207, LPN!AN207,SPN!AN207,EPN!AN207,SPD!AN207,SPMW!AN207,SSEH!AN207,SSES!AN207)","v":42.878065544805963},{"$f":"CHOOSE(m_identity,ENWL!AO207, NPgN!AO207, NPgY!AO207, WMID!AO207, EMID!AO207, SWALES!AO207, SWEST!AO207, LPN!AO207,SPN!AO207,EPN!AO207,SPD!AO207,SPMW!AO207,SSEH!AO207,SSES!AO207)","v":43.593353883805172},{"$f":"CHOOSE(m_identity,ENWL!AP207, NPgN!AP207, NPgY!AP207, WMID!AP207, EMID!AP207, SWALES!AP207, SWEST!AP207, LPN!AP207,SPN!AP207,EPN!AP207,SPD!AP207,SPMW!AP207,SSEH!AP207,SSES!AP207)","v":42.980108510325216},{"$f":"CHOOSE(m_identity,ENWL!AQ207, NPgN!AQ207, NPgY!AQ207, WMID!AQ207, EMID!AQ207, SWALES!AQ207, SWEST!AQ207, LPN!AQ207,SPN!AQ207,EPN!AQ207,SPD!AQ207,SPMW!AQ207,SSEH!AQ207,SSES!AQ207)","v":43.64909697437092}]
[null,null,null,null,"Non-controllable opex (Exit Charges)",null,"£m 12/13 prices",null,null,null,null,null,null,null,null,null,null,null,null,null,null,null,null,null,null,null,null,null,null,null,null,null,null,null,null,{"$f":"AJ29","v":12.740947203483326},{"$f":"AK29","v":13.013503978483328},13.154379203483327,13.174095203483327,13.548095203483326,14.122295203483327,14.122295203483327,14.122295203483327]
[null,null,null,null,"Non-controllable opex",null,"£m 12/13 prices",null,null,null,null,null,null,null,null,null,null,null,null,null,null,null,null,null,null,null,null,null,null,null,null,null,null,null,null,{"$f":"SUM(AJ207:AJ208)","v":41.027809683461783},{"$f":"SUM(AK207:AK208)","v":41.372733789158211},44.491559846746767,49.815326395288039,56.426160748289291,57.715649087288497,57.102403713808542,57.771392177854246]
[]
[null,"Direct allowed revenue terms (DARTs)"]
[]
[null,null,null,null,{"$f":"E30","v":"Pension scheme established deficit revenue allowances"},null,"£m 12/13 prices",null,null,null,null,null,null,null,null,null,null,null,null,null,null,null,null,null,null,null,null,null,null,null,null,null,null,null,null,{"$f":"AJ30","v":23.680990303886606},23.680990303886606,23.680990303886606,23.680990303886606,23.680990303886606,23.680990303886606,23.680990303886606,23.680990303886606]
[]
[null,null,null,null,"Pension true-up from previous price controls",null,"£m 12/13 prices",null,null,null,null,null,null,null,null,null,null,null,null,null,null,null,null,null,null,null,null,null,null,null,null,null,null,null,null,{"$f":"CHOOSE(m_identity,ENWL!AJ215, NPgN!AJ215, NPgY!AJ215, WMID!AJ215, EMID!AJ215, SWALES!AJ215, SWEST!AJ215, LPN!AJ215,SPN!AJ215,EPN!AJ215,SPD!AJ215,SPMW!AJ215,SSEH!AJ215,SSES!AJ215)","v":0},{"$f":"CHOOSE(m_identity,ENWL!AK215, NPgN!AK215, NPgY!AK215, WMID!AK215, EMID!AK215, SWALES!AK215, SWEST!AK215, LPN!AK215,SPN!AK215,EPN!AK215,SPD!AK215,SPMW!AK215,SSEH!AK215,SSES!AK215)","v":0},{"$f":"CHOOSE(m_identity,ENWL!AL215, NPgN!AL215, NPgY!AL215, WMID!AL215, EMID!AL215, SWALES!AL215, SWEST!AL215, LPN!AL215,SPN!AL215,EPN!AL215,SPD!AL215,SPMW!AL215,SSEH!AL215,SSES!AL215)","v":0},{"$f":"CHOOSE(m_identity,ENWL!AM215, NPgN!AM215, NPgY!AM215, WMID!AM215, EMID!AM215, SWALES!AM215, SWEST!AM215, LPN!AM215,SPN!AM215,EPN!AM215,SPD!AM215,SPMW!AM215,SSEH!AM215,SSES!AM215)","v":0},{"$f":"CHOOSE(m_identity,ENWL!AN215, NPgN!AN215, NPgY!AN215, WMID!AN215, EMID!AN215, SWALES!AN215, SWEST!AN215, LPN!AN215,SPN!AN215,EPN!AN215,SPD!AN215,SPMW!AN215,SSEH!AN215,SSES!AN215)","v":0},{"$f":"CHOOSE(m_identity,ENWL!AO215, NPgN!AO215, NPgY!AO215, WMID!AO215, EMID!AO215, SWALES!AO215, SWEST!AO215, LPN!AO215,SPN!AO215,EPN!AO215,SPD!AO215,SPMW!AO215,SSEH!AO215,SSES!AO215)","v":0},{"$f":"CHOOSE(m_identity,ENWL!AP215, NPgN!AP215, NPgY!AP215, WMID!AP215, EMID!AP215, SWALES!AP215, SWEST!AP215, LPN!AP215,SPN!AP215,EPN!AP215,SPD!AP215,SPMW!AP215,SSEH!AP215,SSES!AP215)","v":0},{"$f":"CHOOSE(m_identity,ENWL!AQ215, NPgN!AQ215, NPgY!AQ215, WMID!AQ215, EMID!AQ215, SWALES!AQ215, SWEST!AQ215, LPN!AQ215,SPN!AQ215,EPN!AQ215,SPD!AQ215,SPMW!AQ215,SSEH!AQ215,SSES!AQ215)","v":0}]
[]
[null,null,null,null,"Revenue adjustment from previous controls (Base)",null,"£m 12/13 prices",null,null,null,null,null,null,null,null,null,null,null,null,null,null,null,null,null,null,null,null,null,null,null,null,null,null,null,null,{"$f":"CHOOSE(m_identity,ENWL!AJ217, NPgN!AJ217, NPgY!AJ217, WMID!AJ217, EMID!AJ217, SWALES!AJ217, SWEST!AJ217, LPN!AJ217,SPN!AJ217,EPN!AJ217,SPD!AJ217,SPMW!AJ217,SSEH!AJ217,SSES!AJ217)","v":0.67007932912061052},{"$f":"CHOOSE(m_identity,ENWL!AK217, NPgN!AK217, NPgY!AK217, WMID!AK217, EMID!AK217, SWALES!AK217, SWEST!AK217, LPN!AK217,SPN!AK217,EPN!AK217,SPD!AK217,SPMW!AK217,SSEH!AK217,SSES!AK217)","v":0.69851079505519797},{"$f":"CHOOSE(m_identity,ENWL!AL217, NPgN!AL217, NPgY!AL217, WMID!AL217, EMID!AL217, SWALES!AL217, SWEST!AL217, LPN!AL217,SPN!AL217,EPN!AL217,SPD!AL217,SPMW!AL217,SSEH!AL217,SSES!AL217)","v":0.72814860808938997},{"$f":"CHOOSE(m_identity,ENWL!AM217, NPgN!AM217, NPgY!AM217, WMID!AM217, EMID!AM217, SWALES!AM217, SWEST!AM217, LPN!AM217,SPN!AM217,EPN!AM217,SPD!AM217,SPMW!AM217,SSEH!AM217,SSES!AM217)","v":0.75904395353062282},{"$f":"CHOOSE(m_identity,ENWL!AN217, NPgN!AN217, NPgY!AN217, WMID!AN217, EMID!AN217, SWALES!AN217, SWEST!AN217, LPN!AN217,SPN!AN217,EPN!AN217,SPD!AN217,SPMW!AN217,SSEH!AN217,SSES!AN217)","v":0.79125018847892703},{"$f":"CHOOSE(m_identity,ENWL!AO217, NPgN!AO217, NPgY!AO217, WMID!AO217, EMID!AO217, SWALES!AO217, SWEST!AO217, LPN!AO217,SPN!AO217,EPN!AO217,SPD!AO217,SPMW!AO217,SSEH!AO217,SSES!AO217)","v":0.82482293397608775},{"$f":"CHOOSE(m_identity,ENWL!AP217, NPgN!AP217, NPgY!AP217, WMID!AP217, EMID!AP217, SWALES!AP217, SWEST!AP217, LPN!AP217,SPN!AP217,EPN!AP217,SPD!AP217,SPMW!AP217,SSEH!AP217,SSES!AP217)","v":0.85982017106469333},{"$f":"CHOOSE(m_identity,ENWL!AQ217, NPgN!AQ217, NPgY!AQ217, WMID!AQ217, EMID!AQ217, SWALES!AQ217, SWEST!AQ217, LPN!AQ217,SPN!AQ217,EPN!AQ217,SPD!AQ217,SPMW!AQ217,SSEH!AQ217,SSES!AQ217)","v":0.89630234092296812}]
[null,null,null,null,{"$f":"E31","v":"Legacy price control allowed revenue adjustment"},null,"£m 12/13 prices",null,null,null,null,null,null,null,null,null,null,null,null,null,null,null,null,null,null,null,null,null,null,null,null,null,null,null,null,{"$f":"$AJ$31/8*(1+AJ48)^ROUND((AJ7-$AJ7)/365,1)","v":0},0,0,0,0,0,0,0]
[null,null,null,null,"Revenue from previous controls",null,"£m 12/13 prices",null,null,null,null,null,null,null,null,null,null,null,null,null,null,null,null,null,null,null,null,null,null,null,null,null,null,null,null,{"$f":"AJ217+AJ218","v":0.67007932912061052},{"$f":"AK217+AK218","v":0.69851079505519797},0.72814860808938997,0.75904395353062282,0.79125018847892703,0.82482293397608775,0.85982017106469333,0.89630234092296812]
[]
[null,null,null,null,"Legacy Losses Incentive",null,"£m 12/13 prices","CODING HAS BEEN REMOVED SO INPUTS DO NOT FEED INTO THIS ROW"]
[]
[null,null,null,null,"ES7 (Miscellaneous) revenue",null,"£m 12/13 prices",null,null,null,null,null,null,null,null,null,null,null,null,null,null,null,null,null,null,null,null,null,null,null,null,null,null,null,null,{"$f":"CHOOSE(m_identity,ENWL!AJ223, NPgN!AJ223, NPgY!AJ223, WMID!AJ223, EMID!AJ223, SWALES!AJ223, SWEST!AJ223, LPN!AJ223,SPN!AJ223,EPN!AJ223,SPD!AJ223,SPMW!AJ223,SSEH!AJ223,SSES!AJ223)","v":0},{"$f":"CHOOSE(m_identity,ENWL!AK223, NPgN!AK223, NPgY!AK223, WMID!AK223, EMID!AK223, SWALES!AK223, SWEST!AK223, LPN!AK223,SPN!AK223,EPN!AK223,SPD!AK223,SPMW!AK223,SSEH!AK223,SSES!AK223)","v":0},{"$f":"CHOOSE(m_identity,ENWL!AL223, NPgN!AL223, NPgY!AL223, WMID!AL223, EMID!AL223, SWALES!AL223, SWEST!AL223, LPN!AL223,SPN!AL223,EPN!AL223,SPD!AL223,SPMW!AL223,SSEH!AL223,SSES!AL223)","v":0},{"$f":"CHOOSE(m_identity,ENWL!AM223, NPgN!AM223, NPgY!AM223, WMID!AM223, EMID!AM223, SWALES!AM223, SWEST!AM223, LPN!AM223,SPN!AM223,EPN!AM223,SPD!AM223,SPMW!AM223,SSEH!AM223,SSES!AM223)","v":0},{"$f":"CHOOSE(m_identity,ENWL!AN223, NPgN!AN223, NPgY!AN223, WMID!AN223, EMID!AN223, SWALES!AN223, SWEST!AN223, LPN!AN223,SPN!AN223,EPN!AN223,SPD!AN223,SPMW!AN223,SSEH!AN223,SSES!AN223)","v":0},{"$f":"CHOOSE(m_identity,ENWL!AO223, NPgN!AO223, NPgY!AO223, WMID!AO223, EMID!AO223, SWALES!AO223, SWEST!AO223, LPN!AO223,SPN!AO223,EPN!AO223,SPD!AO223,SPMW!AO223,SSEH!AO223,SSES!AO223)","v":0},{"$f":"CHOOSE(m_identity,ENWL!AP223, NPgN!AP223, NPgY!AP223, WMID!AP223, EMID!AP223, SWALES!AP223, SWEST!AP223, LPN!AP223,SPN!AP223,EPN!AP223,SPD!AP223,SPMW!AP223,SSEH!AP223,SSES!AP223)","v":0},{"$f":"CHOOSE(m_identity,ENWL!AQ223, NPgN!AQ223, NPgY!AQ223, WMID!AQ223, EMID!AQ223, SWALES!AQ223, SWEST!AQ223, LPN!AQ223,SPN!AQ223,EPN!AQ223,SPD!AQ223,SPMW!AQ223,SSEH!AQ223,SSES!AQ223)","v":0}]
[null,null,null,null,"ES7 (Miscellaneous) assumed costs",null,"£m 12/13 prices",null,null,null,null,null,null,null,null,null,null,null,null,null,null,null,null,null,null,null,null,null,null,null,null,null,null,null,null,{"$f":"CHOOSE(m_identity,ENWL!AJ224, NPgN!AJ224, NPgY!AJ224, WMID!AJ224, EMID!AJ224, SWALES!AJ224, SWEST!AJ224, LPN!AJ224,SPN!AJ224,EPN!AJ224,SPD!AJ224,SPMW!AJ224,SSEH!AJ224,SSES!AJ224)","v":0},{"$f":"CHOOSE(m_identity,ENWL!AK224, NPgN!AK224, NPgY!AK224, WMID!AK224, EMID!AK224, SWALES!AK224, SWEST!AK224, LPN!AK224,SPN!AK224,EPN!AK224,SPD!AK224,SPMW!AK224,SSEH!AK224,SSES!AK224)","v":0},{"$f":"CHOOSE(m_identity,ENWL!AL224, NPgN!AL224, NPgY!AL224, WMID!AL224, EMID!AL224, SWALES!AL224, SWEST!AL224, LPN!AL224,SPN!AL224,EPN!AL224,SPD!AL224,SPMW!AL224,SSEH!AL224,SSES!AL224)","v":0},{"$f":"CHOOSE(m_identity,ENWL!AM224, NPgN!AM224, NPgY!AM224, WMID!AM224, EMID!AM224, SWALES!AM224, SWEST!AM224, LPN!AM224,SPN!AM224,EPN!AM224,SPD!AM224,SPMW!AM224,SSEH!AM224,SSES!AM224)","v":0},{"$f":"CHOOSE(m_identity,ENWL!AN224, NPgN!AN224, NPgY!AN224, WMID!AN224, EMID!AN224, SWALES!AN224, SWEST!AN224, LPN!AN224,SPN!AN224,EPN!AN224,SPD!AN224,SPMW!AN224,SSEH!AN224,SSES!AN224)","v":0},{"$f":"CHOOSE(m_identity,ENWL!AO224, NPgN!AO224, NPgY!AO224, WMID!AO224, EMID!AO224, SWALES!AO224, SWEST!AO224, LPN!AO224,SPN!AO224,EPN!AO224,SPD!AO224,SPMW!AO224,SSEH!AO224,SSES!AO224)","v":0},{"$f":"CHOOSE(m_identity,ENWL!AP224, NPgN!AP224, NPgY!AP224, WMID!AP224, EMID!AP224, SWALES!AP224, SWEST!AP224, LPN!AP224,SPN!AP224,EPN!AP224,SPD!AP224,SPMW!AP224,SSEH!AP224,SSES!AP224)","v":0},{"$f":"CHOOSE(m_identity,ENWL!AQ224, NPgN!AQ224, NPgY!AQ224, WMID!AQ224, EMID!AQ224, SWALES!AQ224, SWEST!AQ224, LPN!AQ224,SPN!AQ224,EPN!AQ224,SPD!AQ224,SPMW!AQ224,SSEH!AQ224,SSES!AQ224)","v":0}]
[null,null,null,null,"ES7 (Miscellaneous) net position",null,"£m 12/13 prices",null,null,null,null,null,null,null,null,null,null,null,null,null,null,null,null,null,null,null,null,null,null,null,null,null,null,null,null,{"$f":"SUM(AJ223, -AJ224)","v":0},{"$f":"SUM(AK223, -AK224)","v":0},0,0,0,0,0,0]
[]
[null,null,null,null,"Directly Remunerated Services"]
[]
[null,null,null,null,"Element of connection that is Sole Use funded revenue",null,"£m 12/13 prices",null,null,null,null,null,null,null,null,null,null,null,null,null,null,null,null,null,null,null,null,null,null,null,null,null,null,null,null,{"$f":"CHOOSE(m_identity,ENWL!AJ229, NPgN!AJ229, NPgY!AJ229, WMID!AJ229, EMID!AJ229, SWALES!AJ229, SWEST!AJ229, LPN!AJ229,SPN!AJ229,EPN!AJ229,SPD!AJ229,SPMW!AJ229,SSEH!AJ229,SSES!AJ229)","v":0.13128239250027463},{"$f":"CHOOSE(m_identity,ENWL!AK229, NPgN!AK229, NPgY!AK229, WMID!AK229, EMID!AK229, SWALES!AK229, SWEST!AK229, LPN!AK229,SPN!AK229,EPN!AK229,SPD!AK229,SPMW!AK229,SSEH!AK229,SSES!AK229)","v":0.1131834737252122},{"$f":"CHOOSE(m_identity,ENWL!AL229, NPgN!AL229, NPgY!AL229, WMID!AL229, EMID!AL229, SWALES!AL229, SWEST!AL229, LPN!AL229,SPN!AL229,EPN!AL229,SPD!AL229,SPMW!AL229,SSEH!AL229,SSES!AL229)","v":0.10841322702582801},{"$f":"CHOOSE(m_identity,ENWL!AM229, NPgN!AM229, NPgY!AM229, WMID!AM229, EMID!AM229, SWALES!AM229, SWEST!AM229, LPN!AM229,SPN!AM229,EPN!AM229,SPD!AM229,SPMW!AM229,SSEH!AM229,SSES!AM229)","v":8.1465323642587961E-2},{"$f":"CHOOSE(m_identity,ENWL!AN229, NPgN!AN229, NPgY!AN229, WMID!AN229, EMID!AN229, SWALES!AN229, SWEST!AN229, LPN!AN229,SPN!AN229,EPN!AN229,SPD!AN229,SPMW!AN229,SSEH!AN229,SSES!AN229)","v":4.7295246634403654E-2},{"$f":"CHOOSE(m_identity,ENWL!AO229, NPgN!AO229, NPgY!AO229, WMID!AO229, EMID!AO229, SWALES!AO229, SWEST!AO229, LPN!AO229,SPN!AO229,EPN!AO229,SPD!AO229,SPMW!AO229,SSEH!AO229,SSES!AO229)","v":2.7680756072324009E-2},{"$f":"CHOOSE(m_identity,ENWL!AP229, NPgN!AP229, NPgY!AP229, WMID!AP229, EMID!AP229, SWALES!AP229, SWEST!AP229, LPN!AP229,SPN!AP229,EPN!AP229,SPD!AP229,SPMW!AP229,SSEH!AP229,SSES!AP229)","v":-4.7070192078892958E-3},{"$f":"CHOOSE(m_identity,ENWL!AQ229, NPgN!AQ229, NPgY!AQ229, WMID!AQ229, EMID!AQ229, SWALES!AQ229, SWEST!AQ229, LPN!AQ229,SPN!AQ229,EPN!AQ229,SPD!AQ229,SPMW!AQ229,SSEH!AQ229,SSES!AQ229)","v":-4.247732229471346E-2}]
[null,null,null,null,"Element of connection that is Sole Use funded costs",null,"£m 12/13 prices",null,null,null,null,null,null,null,null,null,null,null,null,null,null,null,null,null,null,null,null,null,null,null,null,null,null,null,null,{"$f":"CHOOSE(m_identity,ENWL!AJ230, NPgN!AJ230, NPgY!AJ230, WMID!AJ230, EMID!AJ230, SWALES!AJ230, SWEST!AJ230, LPN!AJ230,SPN!AJ230,EPN!AJ230,SPD!AJ230,SPMW!AJ230,SSEH!AJ230,SSES!AJ230)","v":0.13128239250027463},{"$f":"CHOOSE(m_identity,ENWL!AK230, NPgN!AK230, NPgY!AK230, WMID!AK230, EMID!AK230, SWALES!AK230, SWEST!AK230, LPN!AK230,SPN!AK230,EPN!AK230,SPD!AK230,SPMW!AK230,SSEH!AK230,SSES!AK230)","v":0.1131834737252122},{"$f":"CHOOSE(m_identity,ENWL!AL230, NPgN!AL230, NPgY!AL230, WMID!AL230, EMID!AL230, SWALES!AL230, SWEST!AL230, LPN!AL230,SPN!AL230,EPN!AL230,SPD!AL230,SPMW!AL230,SSEH!AL230,SSES!AL230)","v":0.10841322702582801},{"$f":"CHOOSE(m_identity,ENWL!AM230, NPgN!AM230, NPgY!AM230, WMID!AM230, EMID!AM230, SWALES!AM230, SWEST!AM230, LPN!AM230,SPN!AM230,EPN!AM230,SPD!AM230,SPMW!AM230,SSEH!AM230,SSES!AM230)","v":8.1465323642587961E-2},{"$f":"CHOOSE(m_identity,ENWL!AN230, NPgN!AN230, NPgY!AN230, WMID!AN230, EMID!AN230, SWALES!AN230, SWEST!AN230, LPN!AN230,SPN!AN230,EPN!AN230,SPD!AN230,SPMW!AN230,SSEH!AN230,SSES!AN230)","v":4.7295246634403654E-2},{"$f":"CHOOSE(m_identity,ENWL!AO230, NPgN!AO230, NPgY!AO230, WMID!AO230, EMID!AO230, SWALES!AO230, SWEST!AO230, LPN!AO230,SPN!AO230,EPN!AO230,SPD!AO230,SPMW!AO230,SSEH!AO230,SSES!AO230)","v":2.7680756072324009E-2},{"$f":"CHOOSE(m_identity,ENWL!AP230, NPgN!AP230, NPgY!AP230, WMID!AP230, EMID!AP230, SWALES!AP230, SWEST!AP230, LPN!AP230,SPN!AP230,EPN!AP230,SPD!AP230,SPMW!AP230,SSEH!AP230,SSES!AP230)","v":-4.7070192078892958E-3},{"$f":"CHOOSE(m_identity,ENWL!AQ230, NPgN!AQ230, NPgY!AQ230, WMID!AQ230, EMID!AQ230, SWALES!AQ230, SWEST!AQ230, LPN!AQ230,SPN!AQ230,EPN!AQ230,SPD!AQ230,SPMW!AQ230,SSEH!AQ230,SSES!AQ230)","v":-4.247732229471346E-2}]
[null,null,null,null,"Element of connection that is Sole Use funded net position",null,"£m 12/13 prices",null,null,null,null,null,null,null,null,null,null,null,null,null,null,null,null,null,null,null,null,null,null,null,null,null,null,null,null,{"$f":"SUM(AJ229, -AJ230)","v":0},{"$f":"SUM(AK229, -AK230)","v":0},0,0,0,0,0,0]
[]
[null,null,null,null,"Connection projects UMC revenue",null,"£m 12/13 prices",null,null,null,null,null,null,null,null,null,null,null,null,null,null,null,null,null,null,null,null,null,null,null,null,null,null,null,null,{"$f":"CHOOSE(m_identity,ENWL!AJ233, NPgN!AJ233, NPgY!AJ233, WMID!AJ233, EMID!AJ233, SWALES!AJ233, SWEST!AJ233, LPN!AJ233,SPN!AJ233,EPN!AJ233,SPD!AJ233,SPMW!AJ233,SSEH!AJ233,SSES!AJ233)","v":1.3482063926114285E-2},{"$f":"CHOOSE(m_identity,ENWL!AK233, NPgN!AK233, NPgY!AK233, WMID!AK233, EMID!AK233, SWALES!AK233, SWEST!AK233, LPN!AK233,SPN!AK233,EPN!AK233,SPD!AK233,SPMW!AK233,SSEH!AK233,SSES!AK233)","v":1.0979053142279649E-2},{"$f":"CHOOSE(m_identity,ENWL!AL233, NPgN!AL233, NPgY!AL233, WMID!AL233, EMID!AL233, SWALES!AL233, SWEST!AL233, LPN!AL233,SPN!AL233,EPN!AL233,SPD!AL233,SPMW!AL233,SSEH!AL233,SSES!AL233)","v":9.3829729375008997E-3},{"$f":"CHOOSE(m_identity,ENWL!AM233, NPgN!AM233, NPgY!AM233, WMID!AM233, EMID!AM233, SWALES!AM233, SWEST!AM233, LPN!AM233,SPN!AM233,EPN!AM233,SPD!AM233,SPMW!AM233,SSEH!AM233,SSES!AM233)","v":5.7173405938688582E-3},{"$f":"CHOOSE(m_identity,ENWL!AN233, NPgN!AN233, NPgY!AN233, WMID!AN233, EMID!AN233, SWALES!AN233, SWEST!AN233, LPN!AN233,SPN!AN233,EPN!AN233,SPD!AN233,SPMW!AN233,SSEH!AN233,SSES!AN233)","v":2.170606297263622E-3},{"$f":"CHOOSE(m_identity,ENWL!AO233, NPgN!AO233, NPgY!AO233, WMID!AO233, EMID!AO233, SWALES!AO233, SWEST!AO233, LPN!AO233,SPN!AO233,EPN!AO233,SPD!AO233,SPMW!AO233,SSEH!AO233,SSES!AO233)","v":-2.6798187968690712E-5},{"$f":"CHOOSE(m_identity,ENWL!AP233, NPgN!AP233, NPgY!AP233, WMID!AP233, EMID!AP233, SWALES!AP233, SWEST!AP233, LPN!AP233,SPN!AP233,EPN!AP233,SPD!AP233,SPMW!AP233,SSEH!AP233,SSES!AP233)","v":-4.026488645773596E-3},{"$f":"CHOOSE(m_identity,ENWL!AQ233, NPgN!AQ233, NPgY!AQ233, WMID!AQ233, EMID!AQ233, SWALES!AQ233, SWEST!AQ233, LPN!AQ233,SPN!AQ233,EPN!AQ233,SPD!AQ233,SPMW!AQ233,SSEH!AQ233,SSES!AQ233)","v":-8.3812195665171618E-3}]
[null,null,null,null,"Connection projects UMC costs",null,"£m 12/13 prices",null,null,null,null,null,null,null,null,null,null,null,null,null,null,null,null,null,null,null,null,null,null,null,null,null,null,null,null,{"$f":"CHOOSE(m_identity,ENWL!AJ234, NPgN!AJ234, NPgY!AJ234, WMID!AJ234, EMID!AJ234, SWALES!AJ234, SWEST!AJ234, LPN!AJ234,SPN!AJ234,EPN!AJ234,SPD!AJ234,SPMW!AJ234,SSEH!AJ234,SSES!AJ234)","v":1.3482063926114285E-2},{"$f":"CHOOSE(m_identity,ENWL!AK234, NPgN!AK234, NPgY!AK234, WMID!AK234, EMID!AK234, SWALES!AK234, SWEST!AK234, LPN!AK234,SPN!AK234,EPN!AK234,SPD!AK234,SPMW!AK234,SSEH!AK234,SSES!AK234)","v":1.0979053142279649E-2},{"$f":"CHOOSE(m_identity,ENWL!AL234, NPgN!AL234, NPgY!AL234, WMID!AL234, EMID!AL234, SWALES!AL234, SWEST!AL234, LPN!AL234,SPN!AL234,EPN!AL234,SPD!AL234,SPMW!AL234,SSEH!AL234,SSES!AL234)","v":9.3829729375008997E-3},{"$f":"CHOOSE(m_identity,ENWL!AM234, NPgN!AM234, NPgY!AM234, WMID!AM234, EMID!AM234, SWALES!AM234, SWEST!AM234, LPN!AM234,SPN!AM234,EPN!AM234,SPD!AM234,SPMW!AM234,SSEH!AM234,SSES!AM234)","v":5.7173405938688582E-3},{"$f":"CHOOSE(m_identity,ENWL!AN234, NPgN!AN234, NPgY!AN234, WMID!AN234, EMID!AN234, SWALES!AN234, SWEST!AN234, LPN!AN234,SPN!AN234,EPN!AN234,SPD!AN234,SPMW!AN234,SSEH!AN234,SSES!AN234)","v":2.170606297263622E-3},{"$f":"CHOOSE(m_identity,ENWL!AO234, NPgN!AO234, NPgY!AO234, WMID!AO234, EMID!AO234, SWALES!AO234, SWEST!AO234, LPN!AO234,SPN!AO234,EPN!AO234,SPD!AO234,SPMW!AO234,SSEH!AO234,SSES!AO234)","v":-2.6798187968690712E-5},{"$f":"CHOOSE(m_identity,ENWL!AP234, NPgN!AP234, NPgY!AP234, WMID!AP234, EMID!AP234, SWALES!AP234, SWEST!AP234, LPN!AP234,SPN!AP234,EPN!AP234,SPD!AP234,SPMW!AP234,SSEH!AP234,SSES!AP234)","v":-4.026488645773596E-3},{"$f":"CHOOSE(m_identity,ENWL!AQ234, NPgN!AQ234, NPgY!AQ234, WMID!AQ234, EMID!AQ234, SWALES!AQ234, SWEST!AQ234, LPN!AQ234,SPN!AQ234,EPN!AQ234,SPD!AQ234,SPMW!AQ234,SSEH!AQ234,SSES!AQ234)","v":-8.3812195665171618E-3}]
[null,null,null,null,"Connection projects UMC net position",null,"£m 12/13 prices",null,null,null,null,null,null,null,null,null,null,null,null,null,null,null,null,null,null,null,null,null,null,null,null,null,null,null,null,{"$f":"SUM(AJ233, -AJ234)","v":0},{"$f":"SUM(AK233, -AK234)","v":0},0,0,0,0,0,0]
[]
[null,null,null,null,"Diversionary works under obligation (ES2) revenue",null,"£m 12/13 prices",null,null,null,null,null,null,null,null,null,null,null,null,null,null,null,null,null,null,null,null,null,null,null,null,null,null,null,null,{"$f":"CHOOSE(m_identity,ENWL!AJ237, NPgN!AJ237, NPgY!AJ237, WMID!AJ237, EMID!AJ237, SWALES!AJ237, SWEST!AJ237, LPN!AJ237,SPN!AJ237,EPN!AJ237,SPD!AJ237,SPMW!AJ237,SSEH!AJ237,SSES!AJ237)","v":-3.9544211743714315},{"$f":"CHOOSE(m_identity,ENWL!AK237, NPgN!AK237, NPgY!AK237, WMID!AK237, EMID!AK237, SWALES!AK237, SWEST!AK237, LPN!AK237,SPN!AK237,EPN!AK237,SPD!AK237,SPMW!AK237,SSEH!AK237,SSES!AK237)","v":-12.194421174371431},{"$f":"CHOOSE(m_identity,ENWL!AL237, NPgN!AL237, NPgY!AL237, WMID!AL237, EMID!AL237, SWALES!AL237, SWEST!AL237, LPN!AL237,SPN!AL237,EPN!AL237,SPD!AL237,SPMW!AL237,SSEH!AL237,SSES!AL237)","v":-12.194421174371431},{"$f":"CHOOSE(m_identity,ENWL!AM237, NPgN!AM237, NPgY!AM237, WMID!AM237, EMID!AM237, SWALES!AM237, SWEST!AM237, LPN!AM237,SPN!AM237,EPN!AM237,SPD!AM237,SPMW!AM237,SSEH!AM237,SSES!AM237)","v":-12.194421174371431},{"$f":"CHOOSE(m_identity,ENWL!AN237, NPgN!AN237, NPgY!AN237, WMID!AN237, EMID!AN237, SWALES!AN237, SWEST!AN237, LPN!AN237,SPN!AN237,EPN!AN237,SPD!AN237,SPMW!AN237,SSEH!AN237,SSES!AN237)","v":-12.194421174371431},{"$f":"CHOOSE(m_identity,ENWL!AO237, NPgN!AO237, NPgY!AO237, WMID!AO237, EMID!AO237, SWALES!AO237, SWEST!AO237, LPN!AO237,SPN!AO237,EPN!AO237,SPD!AO237,SPMW!AO237,SSEH!AO237,SSES!AO237)","v":-12.194421174371431},{"$f":"CHOOSE(m_identity,ENWL!AP237, NPgN!AP237, NPgY!AP237, WMID!AP237, EMID!AP237, SWALES!AP237, SWEST!AP237, LPN!AP237,SPN!AP237,EPN!AP237,SPD!AP237,SPMW!AP237,SSEH!AP237,SSES!AP237)","v":-12.194421174371431},{"$f":"CHOOSE(m_identity,ENWL!AQ237, NPgN!AQ237, NPgY!AQ237, WMID!AQ237, EMID!AQ237, SWALES!AQ237, SWEST!AQ237, LPN!AQ237,SPN!AQ237,EPN!AQ237,SPD!AQ237,SPMW!AQ237,SSEH!AQ237,SSES!AQ237)","v":-12.194421174371431}]
[null,null,null,null,"Diversionary works under obligation (ES2) costs",null,"£m 12/13 prices",null,null,null,null,null,null,null,null,null,null,null,null,null,null,null,null,null,null,null,null,null,null,null,null,null,null,null,null,{"$f":"CHOOSE(m_identity,ENWL!AJ238, NPgN!AJ238, NPgY!AJ238, WMID!AJ238, EMID!AJ238, SWALES!AJ238, SWEST!AJ238, LPN!AJ238,SPN!AJ238,EPN!AJ238,SPD!AJ238,SPMW!AJ238,SSEH!AJ238,SSES!AJ238)","v":0},{"$f":"CHOOSE(m_identity,ENWL!AK238, NPgN!AK238, NPgY!AK238, WMID!AK238, EMID!AK238, SWALES!AK238, SWEST!AK238, LPN!AK238,SPN!AK238,EPN!AK238,SPD!AK238,SPMW!AK238,SSEH!AK238,SSES!AK238)","v":0},{"$f":"CHOOSE(m_identity,ENWL!AL238, NPgN!AL238, NPgY!AL238, WMID!AL238, EMID!AL238, SWALES!AL238, SWEST!AL238, LPN!AL238,SPN!AL238,EPN!AL238,SPD!AL238,SPMW!AL238,SSEH!AL238,SSES!AL238)","v":0},{"$f":"CHOOSE(m_identity,ENWL!AM238, NPgN!AM238, NPgY!AM238, WMID!AM238, EMID!AM238, SWALES!AM238, SWEST!AM238, LPN!AM238,SPN!AM238,EPN!AM238,SPD!AM238,SPMW!AM238,SSEH!AM238,SSES!AM238)","v":0},{"$f":"CHOOSE(m_identity,ENWL!AN238, NPgN!AN238, NPgY!AN238, WMID!AN238, EMID!AN238, SWALES!AN238, SWEST!AN238, LPN!AN238,SPN!AN238,EPN!AN238,SPD!AN238,SPMW!AN238,SSEH!AN238,SSES!AN238)","v":0},{"$f":"CHOOSE(m_identity,ENWL!AO238, NPgN!AO238, NPgY!AO238, WMID!AO238, EMID!AO238, SWALES!AO238, SWEST!AO238, LPN!AO238,SPN!AO238,EPN!AO238,SPD!AO238,SPMW!AO238,SSEH!AO238,SSES!AO238)","v":0},{"$f":"CHOOSE(m_identity,ENWL!AP238, NPgN!AP238, NPgY!AP238, WMID!AP238, EMID!AP238, SWALES!AP238, SWEST!AP238, LPN!AP238,SPN!AP238,EPN!AP238,SPD!AP238,SPMW!AP238,SSEH!AP238,SSES!AP238)","v":0},{"$f":"CHOOSE(m_identity,ENWL!AQ238, NPgN!AQ238, NPgY!AQ238, WMID!AQ238, EMID!AQ238, SWALES!AQ238, SWEST!AQ238, LPN!AQ238,SPN!AQ238,EPN!AQ238,SPD!AQ238,SPMW!AQ238,SSEH!AQ238,SSES!AQ238)","v":0}]
[null,null,null,null,"Diversionary works under obligation (ES2) net position",null,"£m 12/13 prices",null,null,null,null,null,null,null,null,null,null,null,null,null,null,null,null,null,null,null,null,null,null,null,null,null,null,null,null,{"$f":"SUM(AJ237, -AJ238)","v":-3.9544211743714315},{"$f":"SUM(AK237, -AK238)","v":-12.194421174371431},-12.194421174371431,-12.194421174371431,-12.194421174371431,-12.194421174371431,-12.194421174371431,-12.194421174371431]
[]
[null,null,null,null,"Work required by any alteration premises (ES3) revenue",null,"£m 12/13 prices",null,null,null,null,null,null,null,null,null,null,null,null,null,null,null,null,null,null,null,null,null,null,null,null,null,null,null,null,{"$f":"CHOOSE(m_identity,ENWL!AJ241, NPgN!AJ241, NPgY!AJ241, WMID!AJ241, EMID!AJ241, SWALES!AJ241, SWEST!AJ241, LPN!AJ241,SPN!AJ241,EPN!AJ241,SPD!AJ241,SPMW!AJ241,SSEH!AJ241,SSES!AJ241)","v":-2.5333972276936798},{"$f":"CHOOSE(m_identity,ENWL!AK241, NPgN!AK241, NPgY!AK241, WMID!AK241, EMID!AK241, SWALES!AK241, SWEST!AK241, LPN!AK241,SPN!AK241,EPN!AK241,SPD!AK241,SPMW!AK241,SSEH!AK241,SSES!AK241)","v":-2.5333972276936798},{"$f":"CHOOSE(m_identity,ENWL!AL241, NPgN!AL241, NPgY!AL241, WMID!AL241, EMID!AL241, SWALES!AL241, SWEST!AL241, LPN!AL241,SPN!AL241,EPN!AL241,SPD!AL241,SPMW!AL241,SSEH!AL241,SSES!AL241)","v":-2.5333972276936798},{"$f":"CHOOSE(m_identity,ENWL!AM241, NPgN!AM241, NPgY!AM241, WMID!AM241, EMID!AM241, SWALES!AM241, SWEST!AM241, LPN!AM241,SPN!AM241,EPN!AM241,SPD!AM241,SPMW!AM241,SSEH!AM241,SSES!AM241)","v":-2.5333972276936798},{"$f":"CHOOSE(m_identity,ENWL!AN241, NPgN!AN241, NPgY!AN241, WMID!AN241, EMID!AN241, SWALES!AN241, SWEST!AN241, LPN!AN241,SPN!AN241,EPN!AN241,SPD!AN241,SPMW!AN241,SSEH!AN241,SSES!AN241)","v":-2.5333972276936798},{"$f":"CHOOSE(m_identity,ENWL!AO241, NPgN!AO241, NPgY!AO241, WMID!AO241, EMID!AO241, SWALES!AO241, SWEST!AO241, LPN!AO241,SPN!AO241,EPN!AO241,SPD!AO241,SPMW!AO241,SSEH!AO241,SSES!AO241)","v":-2.5333972276936798},{"$f":"CHOOSE(m_identity,ENWL!AP241, NPgN!AP241, NPgY!AP241, WMID!AP241, EMID!AP241, SWALES!AP241, SWEST!AP241, LPN!AP241,SPN!AP241,EPN!AP241,SPD!AP241,SPMW!AP241,SSEH!AP241,SSES!AP241)","v":-2.5333972276936798},{"$f":"CHOOSE(m_identity,ENWL!AQ241, NPgN!AQ241, NPgY!AQ241, WMID!AQ241, EMID!AQ241, SWALES!AQ241, SWEST!AQ241, LPN!AQ241,SPN!AQ241,EPN!AQ241,SPD!AQ241,SPMW!AQ241,SSEH!AQ241,SSES!AQ241)","v":-2.5333972276936798}]
[null,null,null,null,"Work required by any alteration premises (ES3) costs",null,"£m 12/13 prices",null,null,null,null,null,null,null,null,null,null,null,null,null,null,null,null,null,null,null,null,null,null,null,null,null,null,null,null,{"$f":"CHOOSE(m_identity,ENWL!AJ242, NPgN!AJ242, NPgY!AJ242, WMID!AJ242, EMID!AJ242, SWALES!AJ242, SWEST!AJ242, LPN!AJ242,SPN!AJ242,EPN!AJ242,SPD!AJ242,SPMW!AJ242,SSEH!AJ242,SSES!AJ242)","v":0},{"$f":"CHOOSE(m_identity,ENWL!AK242, NPgN!AK242, NPgY!AK242, WMID!AK242, EMID!AK242, SWALES!AK242, SWEST!AK242, LPN!AK242,SPN!AK242,EPN!AK242,SPD!AK242,SPMW!AK242,SSEH!AK242,SSES!AK242)","v":0},{"$f":"CHOOSE(m_identity,ENWL!AL242, NPgN!AL242, NPgY!AL242, WMID!AL242, EMID!AL242, SWALES!AL242, SWEST!AL242, LPN!AL242,SPN!AL242,EPN!AL242,SPD!AL242,SPMW!AL242,SSEH!AL242,SSES!AL242)","v":0},{"$f":"CHOOSE(m_identity,ENWL!AM242, NPgN!AM242, NPgY!AM242, WMID!AM242, EMID!AM242, SWALES!AM242, SWEST!AM242, LPN!AM242,SPN!AM242,EPN!AM242,SPD!AM242,SPMW!AM242,SSEH!AM242,SSES!AM242)","v":0},{"$f":"CHOOSE(m_identity,ENWL!AN242, NPgN!AN242, NPgY!AN242, WMID!AN242, EMID!AN242, SWALES!AN242, SWEST!AN242, LPN!AN242,SPN!AN242,EPN!AN242,SPD!AN242,SPMW!AN242,SSEH!AN242,SSES!AN242)","v":0},{"$f":"CHOOSE(m_identity,ENWL!AO242, NPgN!AO242, NPgY!AO242, WMID!AO242, EMID!AO242, SWALES!AO242, SWEST!AO242, LPN!AO242,SPN!AO242,EPN!AO242,SPD!AO242,SPMW!AO242,SSEH!AO242,SSES!AO242)","v":0},{"$f":"CHOOSE(m_identity,ENWL!AP242, NPgN!AP242, NPgY!AP242, WMID!AP242, EMID!AP242, SWALES!AP242, SWEST!AP242, LPN!AP242,SPN!AP242,EPN!AP242,SPD!AP242,SPMW!AP242,SSEH!AP242,SSES!AP242)","v":0},{"$f":"CHOOSE(m_identity,ENWL!AQ242, NPgN!AQ242, NPgY!AQ242, WMID!AQ242, EMID!AQ242, SWALES!AQ242, SWEST!AQ242, LPN!AQ242,SPN!AQ242,EPN!AQ242,SPD!AQ242,SPMW!AQ242,SSEH!AQ242,SSES!AQ242)","v":0}]
[null,null,null,null,"Work required by any alteration premises (ES3) net position",null,"£m 12/13 prices",null,null,null,null,null,null,null,null,null,null,null,null,null,null,null,null,null,null,null,null,null,null,null,null,null,null,null,null,{"$f":"SUM(AJ241, -AJ242)","v":-2.5333972276936798},{"$f":"SUM(AK241, -AK242)","v":-2.5333972276936798},-2.5333972276936798,-2.5333972276936798,-2.5333972276936798,-2.5333972276936798,-2.5333972276936798,-2.5333972276936798]
[]
[null,null,null,null,"Top up standby and enhanced system security (ES4) revenue",null,"£m 12/13 prices",null,null,null,null,null,null,null,null,null,null,null,null,null,null,null,null,null,null,null,null,null,null,null,null,null,null,null,null,{"$f":"CHOOSE(m_identity,ENWL!AJ245, NPgN!AJ245, NPgY!AJ245, WMID!AJ245, EMID!AJ245, SWALES!AJ245, SWEST!AJ245, LPN!AJ245,SPN!AJ245,EPN!AJ245,SPD!AJ245,SPMW!AJ245,SSEH!AJ245,SSES!AJ245)","v":0},{"$f":"CHOOSE(m_identity,ENWL!AK245, NPgN!AK245, NPgY!AK245, WMID!AK245, EMID!AK245, SWALES!AK245, SWEST!AK245, LPN!AK245,SPN!AK245,EPN!AK245,SPD!AK245,SPMW!AK245,SSEH!AK245,SSES!AK245)","v":0},{"$f":"CHOOSE(m_identity,ENWL!AL245, NPgN!AL245, NPgY!AL245, WMID!AL245, EMID!AL245, SWALES!AL245, SWEST!AL245, LPN!AL245,SPN!AL245,EPN!AL245,SPD!AL245,SPMW!AL245,SSEH!AL245,SSES!AL245)","v":0},{"$f":"CHOOSE(m_identity,ENWL!AM245, NPgN!AM245, NPgY!AM245, WMID!AM245, EMID!AM245, SWALES!AM245, SWEST!AM245, LPN!AM245,SPN!AM245,EPN!AM245,SPD!AM245,SPMW!AM245,SSEH!AM245,SSES!AM245)","v":0},{"$f":"CHOOSE(m_identity,ENWL!AN245, NPgN!AN245, NPgY!AN245, WMID!AN245, EMID!AN245, SWALES!AN245, SWEST!AN245, LPN!AN245,SPN!AN245,EPN!AN245,SPD!AN245,SPMW!AN245,SSEH!AN245,SSES!AN245)","v":0},{"$f":"CHOOSE(m_identity,ENWL!AO245, NPgN!AO245, NPgY!AO245, WMID!AO245, EMID!AO245, SWALES!AO245, SWEST!AO245, LPN!AO245,SPN!AO245,EPN!AO245,SPD!AO245,SPMW!AO245,SSEH!AO245,SSES!AO245)","v":0},{"$f":"CHOOSE(m_identity,ENWL!AP245, NPgN!AP245, NPgY!AP245, WMID!AP245, EMID!AP245, SWALES!AP245, SWEST!AP245, LPN!AP245,SPN!AP245,EPN!AP245,SPD!AP245,SPMW!AP245,SSEH!AP245,SSES!AP245)","v":0},{"$f":"CHOOSE(m_identity,ENWL!AQ245, NPgN!AQ245, NPgY!AQ245, WMID!AQ245, EMID!AQ245, SWALES!AQ245, SWEST!AQ245, LPN!AQ245,SPN!AQ245,EPN!AQ245,SPD!AQ245,SPMW!AQ245,SSEH!AQ245,SSES!AQ245)","v":0}]
[null,null,null,null,"Top up standby and enhanced system security (ES4) costs",null,"£m 12/13 prices",null,null,null,null,null,null,null,null,null,null,null,null,null,null,null,null,null,null,null,null,null,null,null,null,null,null,null,null,{"$f":"CHOOSE(m_identity,ENWL!AJ246, NPgN!AJ246, NPgY!AJ246, WMID!AJ246, EMID!AJ246, SWALES!AJ246, SWEST!AJ246, LPN!AJ246,SPN!AJ246,EPN!AJ246,SPD!AJ246,SPMW!AJ246,SSEH!AJ246,SSES!AJ246)","v":2.2590428952986685},{"$f":"CHOOSE(m_identity,ENWL!AK246, NPgN!AK246, NPgY!AK246, WMID!AK246, EMID!AK246, SWALES!AK246, SWEST!AK246, LPN!AK246,SPN!AK246,EPN!AK246,SPD!AK246,SPMW!AK246,SSEH!AK246,SSES!AK246)","v":2.233271364694505},{"$f":"CHOOSE(m_identity,ENWL!AL246, NPgN!AL246, NPgY!AL246, WMID!AL246, EMID!AL246, SWALES!AL246, SWEST!AL246, LPN!AL246,SPN!AL246,EPN!AL246,SPD!AL246,SPMW!AL246,SSEH!AL246,SSES!AL246)","v":2.0704596394020993},{"$f":"CHOOSE(m_identity,ENWL!AM246, NPgN!AM246, NPgY!AM246, WMID!AM246, EMID!AM246, SWALES!AM246, SWEST!AM246, LPN!AM246,SPN!AM246,EPN!AM246,SPD!AM246,SPMW!AM246,SSEH!AM246,SSES!AM246)","v":2.1086199270752104},{"$f":"CHOOSE(m_identity,ENWL!AN246, NPgN!AN246, NPgY!AN246, WMID!AN246, EMID!AN246, SWALES!AN246, SWEST!AN246, LPN!AN246,SPN!AN246,EPN!AN246,SPD!AN246,SPMW!AN246,SSEH!AN246,SSES!AN246)","v":2.1267759599182634},{"$f":"CHOOSE(m_identity,ENWL!AO246, NPgN!AO246, NPgY!AO246, WMID!AO246, EMID!AO246, SWALES!AO246, SWEST!AO246, LPN!AO246,SPN!AO246,EPN!AO246,SPD!AO246,SPMW!AO246,SSEH!AO246,SSES!AO246)","v":2.1383292654381063},{"$f":"CHOOSE(m_identity,ENWL!AP246, NPgN!AP246, NPgY!AP246, WMID!AP246, EMID!AP246, SWALES!AP246, SWEST!AP246, LPN!AP246,SPN!AP246,EPN!AP246,SPD!AP246,SPMW!AP246,SSEH!AP246,SSES!AP246)","v":2.1045900852287023},{"$f":"CHOOSE(m_identity,ENWL!AQ246, NPgN!AQ246, NPgY!AQ246, WMID!AQ246, EMID!AQ246, SWALES!AQ246, SWEST!AQ246, LPN!AQ246,SPN!AQ246,EPN!AQ246,SPD!AQ246,SPMW!AQ246,SSEH!AQ246,SSES!AQ246)","v":1.9787685756996933}]
[null,null,null,null,"Top up standby and enhanced system security (ES4) net position",null,"£m 12/13 prices",null,null,null,null,null,null,null,null,null,null,null,null,null,null,null,null,null,null,null,null,null,null,null,null,null,null,null,null,{"$f":"SUM(AJ245, -AJ246)","v":-2.2590428952986685},{"$f":"SUM(AK245, -AK246)","v":-2.233271364694505},-2.0704596394020993,-2.1086199270752104,-2.1267759599182634,-2.1383292654381063,-2.1045900852287023,-1.9787685756996933]
[]
[null,null,null,null,"Revenue protection services (ES5) revenue",null,"£m 12/13 prices",null,null,null,null,null,null,null,null,null,null,null,null,null,null,null,null,null,null,null,null,null,null,null,null,null,null,null,null,{"$f":"CHOOSE(m_identity,ENWL!AJ249, NPgN!AJ249, NPgY!AJ249, WMID!AJ249, EMID!AJ249, SWALES!AJ249, SWEST!AJ249, LPN!AJ249,SPN!AJ249,EPN!AJ249,SPD!AJ249,SPMW!AJ249,SSEH!AJ249,SSES!AJ249)","v":-0.86560592999999997},{"$f":"CHOOSE(m_identity,ENWL!AK249, NPgN!AK249, NPgY!AK249, WMID!AK249, EMID!AK249, SWALES!AK249, SWEST!AK249, LPN!AK249,SPN!AK249,EPN!AK249,SPD!AK249,SPMW!AK249,SSEH!AK249,SSES!AK249)","v":-0.86560592999999997},{"$f":"CHOOSE(m_identity,ENWL!AL249, NPgN!AL249, NPgY!AL249, WMID!AL249, EMID!AL249, SWALES!AL249, SWEST!AL249, LPN!AL249,SPN!AL249,EPN!AL249,SPD!AL249,SPMW!AL249,SSEH!AL249,SSES!AL249)","v":-0.86560592999999997},{"$f":"CHOOSE(m_identity,ENWL!AM249, NPgN!AM249, NPgY!AM249, WMID!AM249, EMID!AM249, SWALES!AM249, SWEST!AM249, LPN!AM249,SPN!AM249,EPN!AM249,SPD!AM249,SPMW!AM249,SSEH!AM249,SSES!AM249)","v":-0.86560592999999997},{"$f":"CHOOSE(m_identity,ENWL!AN249, NPgN!AN249, NPgY!AN249, WMID!AN249, EMID!AN249, SWALES!AN249, SWEST!AN249, LPN!AN249,SPN!AN249,EPN!AN249,SPD!AN249,SPMW!AN249,SSEH!AN249,SSES!AN249)","v":-0.86560592999999997},{"$f":"CHOOSE(m_identity,ENWL!AO249, NPgN!AO249, NPgY!AO249, WMID!AO249, EMID!AO249, SWALES!AO249, SWEST!AO249, LPN!AO249,SPN!AO249,EPN!AO249,SPD!AO249,SPMW!AO249,SSEH!AO249,SSES!AO249)","v":-0.86560592999999997},{"$f":"CHOOSE(m_identity,ENWL!AP249, NPgN!AP249, NPgY!AP249, WMID!AP249, EMID!AP249, SWALES!AP249, SWEST!AP249, LPN!AP249,SPN!AP249,EPN!AP249,SPD!AP249,SPMW!AP249,SSEH!AP249,SSES!AP249)","v":-0.86560592999999997},{"$f":"CHOOSE(m_identity,ENWL!AQ249, NPgN!AQ249, NPgY!AQ249, WMID!AQ249, EMID!AQ249, SWALES!AQ249, SWEST!AQ249, LPN!AQ249,SPN!AQ249,EPN!AQ249,SPD!AQ249,SPMW!AQ249,SSEH!AQ249,SSES!AQ249)","v":-0.86560592999999997}]
[null,null,null,null,"Revenue protection services (ES5) costs",null,"£m 12/13 prices",null,null,null,null,null,null,null,null,null,null,null,null,null,null,null,null,null,null,null,null,null,null,null,null,null,null,null,null,{"$f":"CHOOSE(m_identity,ENWL!AJ250, NPgN!AJ250, NPgY!AJ250, WMID!AJ250, EMID!AJ250, SWALES!AJ250, SWEST!AJ250, LPN!AJ250,SPN!AJ250,EPN!AJ250,SPD!AJ250,SPMW!AJ250,SSEH!AJ250,SSES!AJ250)","v":0},{"$f":"CHOOSE(m_identity,ENWL!AK250, NPgN!AK250, NPgY!AK250, WMID!AK250, EMID!AK250, SWALES!AK250, SWEST!AK250, LPN!AK250,SPN!AK250,EPN!AK250,SPD!AK250,SPMW!AK250,SSEH!AK250,SSES!AK250)","v":0},{"$f":"CHOOSE(m_identity,ENWL!AL250, NPgN!AL250, NPgY!AL250, WMID!AL250, EMID!AL250, SWALES!AL250, SWEST!AL250, LPN!AL250,SPN!AL250,EPN!AL250,SPD!AL250,SPMW!AL250,SSEH!AL250,SSES!AL250)","v":0},{"$f":"CHOOSE(m_identity,ENWL!AM250, NPgN!AM250, NPgY!AM250, WMID!AM250, EMID!AM250, SWALES!AM250, SWEST!AM250, LPN!AM250,SPN!AM250,EPN!AM250,SPD!AM250,SPMW!AM250,SSEH!AM250,SSES!AM250)","v":0},{"$f":"CHOOSE(m_identity,ENWL!AN250, NPgN!AN250, NPgY!AN250, WMID!AN250, EMID!AN250, SWALES!AN250, SWEST!AN250, LPN!AN250,SPN!AN250,EPN!AN250,SPD!AN250,SPMW!AN250,SSEH!AN250,SSES!AN250)","v":0},{"$f":"CHOOSE(m_identity,ENWL!AO250, NPgN!AO250, NPgY!AO250, WMID!AO250, EMID!AO250, SWALES!AO250, SWEST!AO250, LPN!AO250,SPN!AO250,EPN!AO250,SPD!AO250,SPMW!AO250,SSEH!AO250,SSES!AO250)","v":0},{"$f":"CHOOSE(m_identity,ENWL!AP250, NPgN!AP250, NPgY!AP250, WMID!AP250, EMID!AP250, SWALES!AP250, SWEST!AP250, LPN!AP250,SPN!AP250,EPN!AP250,SPD!AP250,SPMW!AP250,SSEH!AP250,SSES!AP250)","v":0},{"$f":"CHOOSE(m_identity,ENWL!AQ250, NPgN!AQ250, NPgY!AQ250, WMID!AQ250, EMID!AQ250, SWALES!AQ250, SWEST!AQ250, LPN!AQ250,SPN!AQ250,EPN!AQ250,SPD!AQ250,SPMW!AQ250,SSEH!AQ250,SSES!AQ250)","v":0}]
[null,null,null,null,"Revenue protection services (ES5) net position",null,"£m 12/13 prices",null,null,null,null,null,null,null,null,null,null,null,null,null,null,null,null,null,null,null,null,null,null,null,null,null,null,null,null,{"$f":"SUM(AJ249, -AJ250)","v":-0.86560592999999997},{"$f":"SUM(AK249, -AK250)","v":-0.86560592999999997},-0.86560592999999997,-0.86560592999999997,-0.86560592999999997,-0.86560592999999997,-0.86560592999999997,-0.86560592999999997]
[]
[null,null,null,null,"Metering services (non legacy) (ES6) revenue",null,"£m 12/13 prices",null,null,null,null,null,null,null,null,null,null,null,null,null,null,null,null,null,null,null,null,null,null,null,null,null,null,null,null,{"$f":"CHOOSE(m_identity,ENWL!AJ253, NPgN!AJ253, NPgY!AJ253, WMID!AJ253, EMID!AJ253, SWALES!AJ253, SWEST!AJ253, LPN!AJ253,SPN!AJ253,EPN!AJ253,SPD!AJ253,SPMW!AJ253,SSEH!AJ253,SSES!AJ253)","v":0},{"$f":"CHOOSE(m_identity,ENWL!AK253, NPgN!AK253, NPgY!AK253, WMID!AK253, EMID!AK253, SWALES!AK253, SWEST!AK253, LPN!AK253,SPN!AK253,EPN!AK253,SPD!AK253,SPMW!AK253,SSEH!AK253,SSES!AK253)","v":0},{"$f":"CHOOSE(m_identity,ENWL!AL253, NPgN!AL253, NPgY!AL253, WMID!AL253, EMID!AL253, SWALES!AL253, SWEST!AL253, LPN!AL253,SPN!AL253,EPN!AL253,SPD!AL253,SPMW!AL253,SSEH!AL253,SSES!AL253)","v":0},{"$f":"CHOOSE(m_identity,ENWL!AM253, NPgN!AM253, NPgY!AM253, WMID!AM253, EMID!AM253, SWALES!AM253, SWEST!AM253, LPN!AM253,SPN!AM253,EPN!AM253,SPD!AM253,SPMW!AM253,SSEH!AM253,SSES!AM253)","v":0},{"$f":"CHOOSE(m_identity,ENWL!AN253, NPgN!AN253, NPgY!AN253, WMID!AN253, EMID!AN253, SWALES!AN253, SWEST!AN253, LPN!AN253,SPN!AN253,EPN!AN253,SPD!AN253,SPMW!AN253,SSEH!AN253,SSES!AN253)","v":0},{"$f":"CHOOSE(m_identity,ENWL!AO253, NPgN!AO253, NPgY!AO253, WMID!AO253, EMID!AO253, SWALES!AO253, SWEST!AO253, LPN!AO253,SPN!AO253,EPN!AO253,SPD!AO253,SPMW!AO253,SSEH!AO253,SSES!AO253)","v":0},{"$f":"CHOOSE(m_identity,ENWL!AP253, NPgN!AP253, NPgY!AP253, WMID!AP253, EMID!AP253, SWALES!AP253, SWEST!AP253, LPN!AP253,SPN!AP253,EPN!AP253,SPD!AP253,SPMW!AP253,SSEH!AP253,SSES!AP253)","v":0},{"$f":"CHOOSE(m_identity,ENWL!AQ253, NPgN!AQ253, NPgY!AQ253, WMID!AQ253, EMID!AQ253, SWALES!AQ253, SWEST!AQ253, LPN!AQ253,SPN!AQ253,EPN!AQ253,SPD!AQ253,SPMW!AQ253,SSEH!AQ253,SSES!AQ253)","v":0}]
[null,null,null,null,"Metering services (non legacy) (ES6) costs",null,"£m 12/13 prices",null,null,null,null,null,null,null,null,null,null,null,null,null,null,null,null,null,null,null,null,null,null,null,null,null,null,null,null,{"$f":"CHOOSE(m_identity,ENWL!AJ254, NPgN!AJ254, NPgY!AJ254, WMID!AJ254, EMID!AJ254, SWALES!AJ254, SWEST!AJ254, LPN!AJ254,SPN!AJ254,EPN!AJ254,SPD!AJ254,SPMW!AJ254,SSEH!AJ254,SSES!AJ254)","v":0},{"$f":"CHOOSE(m_identity,ENWL!AK254, NPgN!AK254, NPgY!AK254, WMID!AK254, EMID!AK254, SWALES!AK254, SWEST!AK254, LPN!AK254,SPN!AK254,EPN!AK254,SPD!AK254,SPMW!AK254,SSEH!AK254,SSES!AK254)","v":0},{"$f":"CHOOSE(m_identity,ENWL!AL254, NPgN!AL254, NPgY!AL254, WMID!AL254, EMID!AL254, SWALES!AL254, SWEST!AL254, LPN!AL254,SPN!AL254,EPN!AL254,SPD!AL254,SPMW!AL254,SSEH!AL254,SSES!AL254)","v":0},{"$f":"CHOOSE(m_identity,ENWL!AM254, NPgN!AM254, NPgY!AM254, WMID!AM254, EMID!AM254, SWALES!AM254, SWEST!AM254, LPN!AM254,SPN!AM254,EPN!AM254,SPD!AM254,SPMW!AM254,SSEH!AM254,SSES!AM254)","v":0},{"$f":"CHOOSE(m_identity,ENWL!AN254, NPgN!AN254, NPgY!AN254, WMID!AN254, EMID!AN254, SWALES!AN254, SWEST!AN254, LPN!AN254,SPN!AN254,EPN!AN254,SPD!AN254,SPMW!AN254,SSEH!AN254,SSES!AN254)","v":0},{"$f":"CHOOSE(m_identity,ENWL!AO254, NPgN!AO254, NPgY!AO254, WMID!AO254, EMID!AO254, SWALES!AO254, SWEST!AO254, LPN!AO254,SPN!AO254,EPN!AO254,SPD!AO254,SPMW!AO254,SSEH!AO254,SSES!AO254)","v":0},{"$f":"CHOOSE(m_identity,ENWL!AP254, NPgN!AP254, NPgY!AP254, WMID!AP254, EMID!AP254, SWALES!AP254, SWEST!AP254, LPN!AP254,SPN!AP254,EPN!AP254,SPD!AP254,SPMW!AP254,SSEH!AP254,SSES!AP254)","v":0},{"$f":"CHOOSE(m_identity,ENWL!AQ254, NPgN!AQ254, NPgY!AQ254, WMID!AQ254, EMID!AQ254, SWALES!AQ254, SWEST!AQ254, LPN!AQ254,SPN!AQ254,EPN!AQ254,SPD!AQ254,SPMW!AQ254,SSEH!AQ254,SSES!AQ254)","v":0}]
[null,null,null,null,"Metering services (non legacy) (ES6) net position",null,"£m 12/13 prices",null,null,null,null,null,null,null,null,null,null,null,null,null,null,null,null,null,null,null,null,null,null,null,null,null,null,null,null,{"$f":"SUM(AJ253, -AJ254)","v":0},{"$f":"SUM(AK253, -AK254)","v":0},0,0,0,0,0,0]
[]
[null,null,null,null,"Metering services (legacy)  revenue",null,"£m 12/13 prices",null,null,null,null,null,null,null,null,null,null,null,null,null,null,null,null,null,null,null,null,null,null,null,null,null,null,null,null,{"$f":"CHOOSE(m_identity,ENWL!AJ257, NPgN!AJ257, NPgY!AJ257, WMID!AJ257, EMID!AJ257, SWALES!AJ257, SWEST!AJ257, LPN!AJ257,SPN!AJ257,EPN!AJ257,SPD!AJ257,SPMW!AJ257,SSEH!AJ257,SSES!AJ257)","v":-2.1},{"$f":"CHOOSE(m_identity,ENWL!AK257, NPgN!AK257, NPgY!AK257, WMID!AK257, EMID!AK257, SWALES!AK257, SWEST!AK257, LPN!AK257,SPN!AK257,EPN!AK257,SPD!AK257,SPMW!AK257,SSEH!AK257,SSES!AK257)","v":-1.9},{"$f":"CHOOSE(m_identity,ENWL!AL257, NPgN!AL257, NPgY!AL257, WMID!AL257, EMID!AL257, SWALES!AL257, SWEST!AL257, LPN!AL257,SPN!AL257,EPN!AL257,SPD!AL257,SPMW!AL257,SSEH!AL257,SSES!AL257)","v":-1.4},{"$f":"CHOOSE(m_identity,ENWL!AM257, NPgN!AM257, NPgY!AM257, WMID!AM257, EMID!AM257, SWALES!AM257, SWEST!AM257, LPN!AM257,SPN!AM257,EPN!AM257,SPD!AM257,SPMW!AM257,SSEH!AM257,SSES!AM257)","v":-0.8},{"$f":"CHOOSE(m_identity,ENWL!AN257, NPgN!AN257, NPgY!AN257, WMID!AN257, EMID!AN257, SWALES!AN257, SWEST!AN257, LPN!AN257,SPN!AN257,EPN!AN257,SPD!AN257,SPMW!AN257,SSEH!AN257,SSES!AN257)","v":-0.3},{"$f":"CHOOSE(m_identity,ENWL!AO257, NPgN!AO257, NPgY!AO257, WMID!AO257, EMID!AO257, SWALES!AO257, SWEST!AO257, LPN!AO257,SPN!AO257,EPN!AO257,SPD!AO257,SPMW!AO257,SSEH!AO257,SSES!AO257)","v":0},{"$f":"CHOOSE(m_identity,ENWL!AP257, NPgN!AP257, NPgY!AP257, WMID!AP257, EMID!AP257, SWALES!AP257, SWEST!AP257, LPN!AP257,SPN!AP257,EPN!AP257,SPD!AP257,SPMW!AP257,SSEH!AP257,SSES!AP257)","v":0},{"$f":"CHOOSE(m_identity,ENWL!AQ257, NPgN!AQ257, NPgY!AQ257, WMID!AQ257, EMID!AQ257, SWALES!AQ257, SWEST!AQ257, LPN!AQ257,SPN!AQ257,EPN!AQ257,SPD!AQ257,SPMW!AQ257,SSEH!AQ257,SSES!AQ257)","v":0}]
[null,null,null,null,"Metering services (legacy)  costs",null,"£m 12/13 prices",null,null,null,null,null,null,null,null,null,null,null,null,null,null,null,null,null,null,null,null,null,null,null,null,null,null,null,null,{"$f":"CHOOSE(m_identity,ENWL!AJ258, NPgN!AJ258, NPgY!AJ258, WMID!AJ258, EMID!AJ258, SWALES!AJ258, SWEST!AJ258, LPN!AJ258,SPN!AJ258,EPN!AJ258,SPD!AJ258,SPMW!AJ258,SSEH!AJ258,SSES!AJ258)","v":1.4770756321544573E-3},{"$f":"CHOOSE(m_identity,ENWL!AK258, NPgN!AK258, NPgY!AK258, WMID!AK258, EMID!AK258, SWALES!AK258, SWEST!AK258, LPN!AK258,SPN!AK258,EPN!AK258,SPD!AK258,SPMW!AK258,SSEH!AK258,SSES!AK258)","v":1.4579539501531963E-3},{"$f":"CHOOSE(m_identity,ENWL!AL258, NPgN!AL258, NPgY!AL258, WMID!AL258, EMID!AL258, SWALES!AL258, SWEST!AL258, LPN!AL258,SPN!AL258,EPN!AL258,SPD!AL258,SPMW!AL258,SSEH!AL258,SSES!AL258)","v":1.4374011134613116E-3},{"$f":"CHOOSE(m_identity,ENWL!AM258, NPgN!AM258, NPgY!AM258, WMID!AM258, EMID!AM258, SWALES!AM258, SWEST!AM258, LPN!AM258,SPN!AM258,EPN!AM258,SPD!AM258,SPMW!AM258,SSEH!AM258,SSES!AM258)","v":1.3980562869495062E-3},{"$f":"CHOOSE(m_identity,ENWL!AN258, NPgN!AN258, NPgY!AN258, WMID!AN258, EMID!AN258, SWALES!AN258, SWEST!AN258, LPN!AN258,SPN!AN258,EPN!AN258,SPD!AN258,SPMW!AN258,SSEH!AN258,SSES!AN258)","v":1.3715848466729346E-3},{"$f":"CHOOSE(m_identity,ENWL!AO258, NPgN!AO258, NPgY!AO258, WMID!AO258, EMID!AO258, SWALES!AO258, SWEST!AO258, LPN!AO258,SPN!AO258,EPN!AO258,SPD!AO258,SPMW!AO258,SSEH!AO258,SSES!AO258)","v":1.3650381959125801E-3},{"$f":"CHOOSE(m_identity,ENWL!AP258, NPgN!AP258, NPgY!AP258, WMID!AP258, EMID!AP258, SWALES!AP258, SWEST!AP258, LPN!AP258,SPN!AP258,EPN!AP258,SPD!AP258,SPMW!AP258,SSEH!AP258,SSES!AP258)","v":1.3385917202397195E-3},{"$f":"CHOOSE(m_identity,ENWL!AQ258, NPgN!AQ258, NPgY!AQ258, WMID!AQ258, EMID!AQ258, SWALES!AQ258, SWEST!AQ258, LPN!AQ258,SPN!AQ258,EPN!AQ258,SPD!AQ258,SPMW!AQ258,SSEH!AQ258,SSES!AQ258)","v":1.3056736680795743E-3}]
[null,null,null,null,"Metering services (legacy)  net position",null,"£m 12/13 prices",null,null,null,null,null,null,null,null,null,null,null,null,null,null,null,null,null,null,null,null,null,null,null,null,null,null,null,null,{"$f":"SUM(AJ257, -AJ258)","v":-2.1014770756321544},{"$f":"SUM(AK257, -AK258)","v":-1.901457953950153},-1.4014374011134612,-0.8013980562869496,-0.30137158484667292,-1.3650381959125801E-3,-1.3385917202397195E-3,-1.3056736680795743E-3]
[]
[null,null,null,null,"Metering services associated with the SM roll out revenue",null,"£m 12/13 prices",null,null,null,null,null,null,null,null,null,null,null,null,null,null,null,null,null,null,null,null,null,null,null,null,null,null,null,null,{"$f":"CHOOSE(m_identity,ENWL!AJ261, NPgN!AJ261, NPgY!AJ261, WMID!AJ261, EMID!AJ261, SWALES!AJ261, SWEST!AJ261, LPN!AJ261,SPN!AJ261,EPN!AJ261,SPD!AJ261,SPMW!AJ261,SSEH!AJ261,SSES!AJ261)","v":-0.1},{"$f":"CHOOSE(m_identity,ENWL!AK261, NPgN!AK261, NPgY!AK261, WMID!AK261, EMID!AK261, SWALES!AK261, SWEST!AK261, LPN!AK261,SPN!AK261,EPN!AK261,SPD!AK261,SPMW!AK261,SSEH!AK261,SSES!AK261)","v":-0.16},{"$f":"CHOOSE(m_identity,ENWL!AL261, NPgN!AL261, NPgY!AL261, WMID!AL261, EMID!AL261, SWALES!AL261, SWEST!AL261, LPN!AL261,SPN!AL261,EPN!AL261,SPD!AL261,SPMW!AL261,SSEH!AL261,SSES!AL261)","v":-0.24},{"$f":"CHOOSE(m_identity,ENWL!AM261, NPgN!AM261, NPgY!AM261, WMID!AM261, EMID!AM261, SWALES!AM261, SWEST!AM261, LPN!AM261,SPN!AM261,EPN!AM261,SPD!AM261,SPMW!AM261,SSEH!AM261,SSES!AM261)","v":-0.28000000000000003},{"$f":"CHOOSE(m_identity,ENWL!AN261, NPgN!AN261, NPgY!AN261, WMID!AN261, EMID!AN261, SWALES!AN261, SWEST!AN261, LPN!AN261,SPN!AN261,EPN!AN261,SPD!AN261,SPMW!AN261,SSEH!AN261,SSES!AN261)","v":-0.26},{"$f":"CHOOSE(m_identity,ENWL!AO261, NPgN!AO261, NPgY!AO261, WMID!AO261, EMID!AO261, SWALES!AO261, SWEST!AO261, LPN!AO261,SPN!AO261,EPN!AO261,SPD!AO261,SPMW!AO261,SSEH!AO261,SSES!AO261)","v":-0.18},{"$f":"CHOOSE(m_identity,ENWL!AP261, NPgN!AP261, NPgY!AP261, WMID!AP261, EMID!AP261, SWALES!AP261, SWEST!AP261, LPN!AP261,SPN!AP261,EPN!AP261,SPD!AP261,SPMW!AP261,SSEH!AP261,SSES!AP261)","v":0},{"$f":"CHOOSE(m_identity,ENWL!AQ261, NPgN!AQ261, NPgY!AQ261, WMID!AQ261, EMID!AQ261, SWALES!AQ261, SWEST!AQ261, LPN!AQ261,SPN!AQ261,EPN!AQ261,SPD!AQ261,SPMW!AQ261,SSEH!AQ261,SSES!AQ261)","v":0}]
[null,null,null,null,"Metering services associated with the SM roll out costs",null,"£m 12/13 prices",null,null,null,null,null,null,null,null,null,null,null,null,null,null,null,null,null,null,null,null,null,null,null,null,null,null,null,null,{"$f":"CHOOSE(m_identity,ENWL!AJ262, NPgN!AJ262, NPgY!AJ262, WMID!AJ262, EMID!AJ262, SWALES!AJ262, SWEST!AJ262, LPN!AJ262,SPN!AJ262,EPN!AJ262,SPD!AJ262,SPMW!AJ262,SSEH!AJ262,SSES!AJ262)","v":0},{"$f":"CHOOSE(m_identity,ENWL!AK262, NPgN!AK262, NPgY!AK262, WMID!AK262, EMID!AK262, SWALES!AK262, SWEST!AK262, LPN!AK262,SPN!AK262,EPN!AK262,SPD!AK262,SPMW!AK262,SSEH!AK262,SSES!AK262)","v":0},{"$f":"CHOOSE(m_identity,ENWL!AL262, NPgN!AL262, NPgY!AL262, WMID!AL262, EMID!AL262, SWALES!AL262, SWEST!AL262, LPN!AL262,SPN!AL262,EPN!AL262,SPD!AL262,SPMW!AL262,SSEH!AL262,SSES!AL262)","v":0},{"$f":"CHOOSE(m_identity,ENWL!AM262, NPgN!AM262, NPgY!AM262, WMID!AM262, EMID!AM262, SWALES!AM262, SWEST!AM262, LPN!AM262,SPN!AM262,EPN!AM262,SPD!AM262,SPMW!AM262,SSEH!AM262,SSES!AM262)","v":0},{"$f":"CHOOSE(m_identity,ENWL!AN262, NPgN!AN262, NPgY!AN262, WMID!AN262, EMID!AN262, SWALES!AN262, SWEST!AN262, LPN!AN262,SPN!AN262,EPN!AN262,SPD!AN262,SPMW!AN262,SSEH!AN262,SSES!AN262)","v":0},{"$f":"CHOOSE(m_identity,ENWL!AO262, NPgN!AO262, NPgY!AO262, WMID!AO262, EMID!AO262, SWALES!AO262, SWEST!AO262, LPN!AO262,SPN!AO262,EPN!AO262,SPD!AO262,SPMW!AO262,SSEH!AO262,SSES!AO262)","v":0},{"$f":"CHOOSE(m_identity,ENWL!AP262, NPgN!AP262, NPgY!AP262, WMID!AP262, EMID!AP262, SWALES!AP262, SWEST!AP262, LPN!AP262,SPN!AP262,EPN!AP262,SPD!AP262,SPMW!AP262,SSEH!AP262,SSES!AP262)","v":0},{"$f":"CHOOSE(m_identity,ENWL!AQ262, NPgN!AQ262, NPgY!AQ262, WMID!AQ262, EMID!AQ262, SWALES!AQ262, SWEST!AQ262, LPN!AQ262,SPN!AQ262,EPN!AQ262,SPD!AQ262,SPMW!AQ262,SSEH!AQ262,SSES!AQ262)","v":0}]
[null,null,null,null,"Metering services associated with the SM roll out net position",null,"£m 12/13 prices",null,null,null,null,null,null,null,null,null,null,null,null,null,null,null,null,null,null,null,null,null,null,null,null,null,null,null,null,{"$f":"SUM(AJ261, -AJ262)","v":-0.1},{"$f":"SUM(AK261, -AK262)","v":-0.16},-0.24,-0.28000000000000003,-0.26,-0.18,0,0]
[]
[null,null,null,null,"De Minimis Activities revenue",null,"£m 12/13 prices",null,null,null,null,null,null,null,null,null,null,null,null,null,null,null,null,null,null,null,null,null,null,null,null,null,null,null,null,{"$f":"CHOOSE(m_identity,ENWL!AJ265, NPgN!AJ265, NPgY!AJ265, WMID!AJ265, EMID!AJ265, SWALES!AJ265, SWEST!AJ265, LPN!AJ265,SPN!AJ265,EPN!AJ265,SPD!AJ265,SPMW!AJ265,SSEH!AJ265,SSES!AJ265)","v":-1.3101099879348881},{"$f":"CHOOSE(m_identity,ENWL!AK265, NPgN!AK265, NPgY!AK265, WMID!AK265, EMID!AK265, SWALES!AK265, SWEST!AK265, LPN!AK265,SPN!AK265,EPN!AK265,SPD!AK265,SPMW!AK265,SSEH!AK265,SSES!AK265)","v":-1.3101099879348881},{"$f":"CHOOSE(m_identity,ENWL!AL265, NPgN!AL265, NPgY!AL265, WMID!AL265, EMID!AL265, SWALES!AL265, SWEST!AL265, LPN!AL265,SPN!AL265,EPN!AL265,SPD!AL265,SPMW!AL265,SSEH!AL265,SSES!AL265)","v":-1.3101099879348881},{"$f":"CHOOSE(m_identity,ENWL!AM265, NPgN!AM265, NPgY!AM265, WMID!AM265, EMID!AM265, SWALES!AM265, SWEST!AM265, LPN!AM265,SPN!AM265,EPN!AM265,SPD!AM265,SPMW!AM265,SSEH!AM265,SSES!AM265)","v":-1.3101099879348881},{"$f":"CHOOSE(m_identity,ENWL!AN265, NPgN!AN265, NPgY!AN265, WMID!AN265, EMID!AN265, SWALES!AN265, SWEST!AN265, LPN!AN265,SPN!AN265,EPN!AN265,SPD!AN265,SPMW!AN265,SSEH!AN265,SSES!AN265)","v":-1.3101099879348881},{"$f":"CHOOSE(m_identity,ENWL!AO265, NPgN!AO265, NPgY!AO265, WMID!AO265, EMID!AO265, SWALES!AO265, SWEST!AO265, LPN!AO265,SPN!AO265,EPN!AO265,SPD!AO265,SPMW!AO265,SSEH!AO265,SSES!AO265)","v":-1.3101099879348881},{"$f":"CHOOSE(m_identity,ENWL!AP265, NPgN!AP265, NPgY!AP265, WMID!AP265, EMID!AP265, SWALES!AP265, SWEST!AP265, LPN!AP265,SPN!AP265,EPN!AP265,SPD!AP265,SPMW!AP265,SSEH!AP265,SSES!AP265)","v":-1.3101099879348881},{"$f":"CHOOSE(m_identity,ENWL!AQ265, NPgN!AQ265, NPgY!AQ265, WMID!AQ265, EMID!AQ265, SWALES!AQ265, SWEST!AQ265, LPN!AQ265,SPN!AQ265,EPN!AQ265,SPD!AQ265,SPMW!AQ265,SSEH!AQ265,SSES!AQ265)","v":-1.3101099879348881}]
[null,null,null,null,"De Minimis Activities costs",null,"£m 12/13 prices",null,null,null,null,null,null,null,null,null,null,null,null,null,null,null,null,null,null,null,null,null,null,null,null,null,null,null,null,{"$f":"CHOOSE(m_identity,ENWL!AJ266, NPgN!AJ266, NPgY!AJ266, WMID!AJ266, EMID!AJ266, SWALES!AJ266, SWEST!AJ266, LPN!AJ266,SPN!AJ266,EPN!AJ266,SPD!AJ266,SPMW!AJ266,SSEH!AJ266,SSES!AJ266)","v":1.3844566857391443},{"$f":"CHOOSE(m_identity,ENWL!AK266, NPgN!AK266, NPgY!AK266, WMID!AK266, EMID!AK266, SWALES!AK266, SWEST!AK266, LPN!AK266,SPN!AK266,EPN!AK266,SPD!AK266,SPMW!AK266,SSEH!AK266,SSES!AK266)","v":1.3484138054720134},{"$f":"CHOOSE(m_identity,ENWL!AL266, NPgN!AL266, NPgY!AL266, WMID!AL266, EMID!AL266, SWALES!AL266, SWEST!AL266, LPN!AL266,SPN!AL266,EPN!AL266,SPD!AL266,SPMW!AL266,SSEH!AL266,SSES!AL266)","v":1.2930939616489372},{"$f":"CHOOSE(m_identity,ENWL!AM266, NPgN!AM266, NPgY!AM266, WMID!AM266, EMID!AM266, SWALES!AM266, SWEST!AM266, LPN!AM266,SPN!AM266,EPN!AM266,SPD!AM266,SPMW!AM266,SSEH!AM266,SSES!AM266)","v":1.2941515649783371},{"$f":"CHOOSE(m_identity,ENWL!AN266, NPgN!AN266, NPgY!AN266, WMID!AN266, EMID!AN266, SWALES!AN266, SWEST!AN266, LPN!AN266,SPN!AN266,EPN!AN266,SPD!AN266,SPMW!AN266,SSEH!AN266,SSES!AN266)","v":1.2889361825868968},{"$f":"CHOOSE(m_identity,ENWL!AO266, NPgN!AO266, NPgY!AO266, WMID!AO266, EMID!AO266, SWALES!AO266, SWEST!AO266, LPN!AO266,SPN!AO266,EPN!AO266,SPD!AO266,SPMW!AO266,SSEH!AO266,SSES!AO266)","v":1.27961226358696},{"$f":"CHOOSE(m_identity,ENWL!AP266, NPgN!AP266, NPgY!AP266, WMID!AP266, EMID!AP266, SWALES!AP266, SWEST!AP266, LPN!AP266,SPN!AP266,EPN!AP266,SPD!AP266,SPMW!AP266,SSEH!AP266,SSES!AP266)","v":1.2567489059801986},{"$f":"CHOOSE(m_identity,ENWL!AQ266, NPgN!AQ266, NPgY!AQ266, WMID!AQ266, EMID!AQ266, SWALES!AQ266, SWEST!AQ266, LPN!AQ266,SPN!AQ266,EPN!AQ266,SPD!AQ266,SPMW!AQ266,SSEH!AQ266,SSES!AQ266)","v":1.2148414515339254}]
[null,null,null,null,"De Minimis Activities net position",null,"£m 12/13 prices",null,null,null,null,null,null,null,null,null,null,null,null,null,null,null,null,null,null,null,null,null,null,null,null,null,null,null,null,{"$f":"SUM(AJ265, -AJ266)","v":-2.6945666736740321},{"$f":"SUM(AK265, -AK266)","v":-2.6585237934069017},-2.6032039495838255,-2.6042615529132251,-2.5990461705217847,-2.5897222515218479,-2.5668588939150867,-2.5249514394688135]
[]
[null,null,null,null,"Out of Area Networks revenue",null,"£m 12/13 prices",null,null,null,null,null,null,null,null,null,null,null,null,null,null,null,null,null,null,null,null,null,null,null,null,null,null,null,null,{"$f":"CHOOSE(m_identity,ENWL!AJ269, NPgN!AJ269, NPgY!AJ269, WMID!AJ269, EMID!AJ269, SWALES!AJ269, SWEST!AJ269, LPN!AJ269,SPN!AJ269,EPN!AJ269,SPD!AJ269,SPMW!AJ269,SSEH!AJ269,SSES!AJ269)","v":0},{"$f":"CHOOSE(m_identity,ENWL!AK269, NPgN!AK269, NPgY!AK269, WMID!AK269, EMID!AK269, SWALES!AK269, SWEST!AK269, LPN!AK269,SPN!AK269,EPN!AK269,SPD!AK269,SPMW!AK269,SSEH!AK269,SSES!AK269)","v":0},{"$f":"CHOOSE(m_identity,ENWL!AL269, NPgN!AL269, NPgY!AL269, WMID!AL269, EMID!AL269, SWALES!AL269, SWEST!AL269, LPN!AL269,SPN!AL269,EPN!AL269,SPD!AL269,SPMW!AL269,SSEH!AL269,SSES!AL269)","v":0},{"$f":"CHOOSE(m_identity,ENWL!AM269, NPgN!AM269, NPgY!AM269, WMID!AM269, EMID!AM269, SWALES!AM269, SWEST!AM269, LPN!AM269,SPN!AM269,EPN!AM269,SPD!AM269,SPMW!AM269,SSEH!AM269,SSES!AM269)","v":0},{"$f":"CHOOSE(m_identity,ENWL!AN269, NPgN!AN269, NPgY!AN269, WMID!AN269, EMID!AN269, SWALES!AN269, SWEST!AN269, LPN!AN269,SPN!AN269,EPN!AN269,SPD!AN269,SPMW!AN269,SSEH!AN269,SSES!AN269)","v":0},{"$f":"CHOOSE(m_identity,ENWL!AO269, NPgN!AO269, NPgY!AO269, WMID!AO269, EMID!AO269, SWALES!AO269, SWEST!AO269, LPN!AO269,SPN!AO269,EPN!AO269,SPD!AO269,SPMW!AO269,SSEH!AO269,SSES!AO269)","v":0},{"$f":"CHOOSE(m_identity,ENWL!AP269, NPgN!AP269, NPgY!AP269, WMID!AP269, EMID!AP269, SWALES!AP269, SWEST!AP269, LPN!AP269,SPN!AP269,EPN!AP269,SPD!AP269,SPMW!AP269,SSEH!AP269,SSES!AP269)","v":0},{"$f":"CHOOSE(m_identity,ENWL!AQ269, NPgN!AQ269, NPgY!AQ269, WMID!AQ269, EMID!AQ269, SWALES!AQ269, SWEST!AQ269, LPN!AQ269,SPN!AQ269,EPN!AQ269,SPD!AQ269,SPMW!AQ269,SSEH!AQ269,SSES!AQ269)","v":0}]
[null,null,null,null,"Out of Area Networks costs",null,"£m 12/13 prices",null,null,null,null,null,null,null,null,null,null,null,null,null,null,null,null,null,null,null,null,null,null,null,null,null,null,null,null,{"$f":"CHOOSE(m_identity,ENWL!AJ270, NPgN!AJ270, NPgY!AJ270, WMID!AJ270, EMID!AJ270, SWALES!AJ270, SWEST!AJ270, LPN!AJ270,SPN!AJ270,EPN!AJ270,SPD!AJ270,SPMW!AJ270,SSEH!AJ270,SSES!AJ270)","v":0},{"$f":"CHOOSE(m_identity,ENWL!AK270, NPgN!AK270, NPgY!AK270, WMID!AK270, EMID!AK270, SWALES!AK270, SWEST!AK270, LPN!AK270,SPN!AK270,EPN!AK270,SPD!AK270,SPMW!AK270,SSEH!AK270,SSES!AK270)","v":0},{"$f":"CHOOSE(m_identity,ENWL!AL270, NPgN!AL270, NPgY!AL270, WMID!AL270, EMID!AL270, SWALES!AL270, SWEST!AL270, LPN!AL270,SPN!AL270,EPN!AL270,SPD!AL270,SPMW!AL270,SSEH!AL270,SSES!AL270)","v":0},{"$f":"CHOOSE(m_identity,ENWL!AM270, NPgN!AM270, NPgY!AM270, WMID!AM270, EMID!AM270, SWALES!AM270, SWEST!AM270, LPN!AM270,SPN!AM270,EPN!AM270,SPD!AM270,SPMW!AM270,SSEH!AM270,SSES!AM270)","v":0},{"$f":"CHOOSE(m_identity,ENWL!AN270, NPgN!AN270, NPgY!AN270, WMID!AN270, EMID!AN270, SWALES!AN270, SWEST!AN270, LPN!AN270,SPN!AN270,EPN!AN270,SPD!AN270,SPMW!AN270,SSEH!AN270,SSES!AN270)","v":0},{"$f":"CHOOSE(m_identity,ENWL!AO270, NPgN!AO270, NPgY!AO270, WMID!AO270, EMID!AO270, SWALES!AO270, SWEST!AO270, LPN!AO270,SPN!AO270,EPN!AO270,SPD!AO270,SPMW!AO270,SSEH!AO270,SSES!AO270)","v":0},{"$f":"CHOOSE(m_identity,ENWL!AP270, NPgN!AP270, NPgY!AP270, WMID!AP270, EMID!AP270, SWALES!AP270, SWEST!AP270, LPN!AP270,SPN!AP270,EPN!AP270,SPD!AP270,SPMW!AP270,SSEH!AP270,SSES!AP270)","v":0},{"$f":"CHOOSE(m_identity,ENWL!AQ270, NPgN!AQ270, NPgY!AQ270, WMID!AQ270, EMID!AQ270, SWALES!AQ270, SWEST!AQ270, LPN!AQ270,SPN!AQ270,EPN!AQ270,SPD!AQ270,SPMW!AQ270,SSEH!AQ270,SSES!AQ270)","v":0}]
[null,null,null,null,"Out of Area Networks net position",null,"£m 12/13 prices",null,null,null,null,null,null,null,null,null,null,null,null,null,null,null,null,null,null,null,null,null,null,null,null,null,null,null,null,{"$f":"SUM(AJ269, -AJ270)","v":0},{"$f":"SUM(AK269, -AK270)","v":0},0,0,0,0,0,0]
[]
[null,null,null,null,"Other consented activities revenue",null,"£m 12/13 prices",null,null,null,null,null,null,null,null,null,null,null,null,null,null,null,null,null,null,null,null,null,null,null,null,null,null,null,null,{"$f":"CHOOSE(m_identity,ENWL!AJ273, NPgN!AJ273, NPgY!AJ273, WMID!AJ273, EMID!AJ273, SWALES!AJ273, SWEST!AJ273, LPN!AJ273,SPN!AJ273,EPN!AJ273,SPD!AJ273,SPMW!AJ273,SSEH!AJ273,SSES!AJ273)","v":0},{"$f":"CHOOSE(m_identity,ENWL!AK273, NPgN!AK273, NPgY!AK273, WMID!AK273, EMID!AK273, SWALES!AK273, SWEST!AK273, LPN!AK273,SPN!AK273,EPN!AK273,SPD!AK273,SPMW!AK273,SSEH!AK273,SSES!AK273)","v":0},{"$f":"CHOOSE(m_identity,ENWL!AL273, NPgN!AL273, NPgY!AL273, WMID!AL273, EMID!AL273, SWALES!AL273, SWEST!AL273, LPN!AL273,SPN!AL273,EPN!AL273,SPD!AL273,SPMW!AL273,SSEH!AL273,SSES!AL273)","v":0},{"$f":"CHOOSE(m_identity,ENWL!AM273, NPgN!AM273, NPgY!AM273, WMID!AM273, EMID!AM273, SWALES!AM273, SWEST!AM273, LPN!AM273,SPN!AM273,EPN!AM273,SPD!AM273,SPMW!AM273,SSEH!AM273,SSES!AM273)","v":0},{"$f":"CHOOSE(m_identity,ENWL!AN273, NPgN!AN273, NPgY!AN273, WMID!AN273, EMID!AN273, SWALES!AN273, SWEST!AN273, LPN!AN273,SPN!AN273,EPN!AN273,SPD!AN273,SPMW!AN273,SSEH!AN273,SSES!AN273)","v":0},{"$f":"CHOOSE(m_identity,ENWL!AO273, NPgN!AO273, NPgY!AO273, WMID!AO273, EMID!AO273, SWALES!AO273, SWEST!AO273, LPN!AO273,SPN!AO273,EPN!AO273,SPD!AO273,SPMW!AO273,SSEH!AO273,SSES!AO273)","v":0},{"$f":"CHOOSE(m_identity,ENWL!AP273, NPgN!AP273, NPgY!AP273, WMID!AP273, EMID!AP273, SWALES!AP273, SWEST!AP273, LPN!AP273,SPN!AP273,EPN!AP273,SPD!AP273,SPMW!AP273,SSEH!AP273,SSES!AP273)","v":0},{"$f":"CHOOSE(m_identity,ENWL!AQ273, NPgN!AQ273, NPgY!AQ273, WMID!AQ273, EMID!AQ273, SWALES!AQ273, SWEST!AQ273, LPN!AQ273,SPN!AQ273,EPN!AQ273,SPD!AQ273,SPMW!AQ273,SSEH!AQ273,SSES!AQ273)","v":0}]
[null,null,null,null,"Other consented activities costs",null,"£m 12/13 prices",null,null,null,null,null,null,null,null,null,null,null,null,null,null,null,null,null,null,null,null,null,null,null,null,null,null,null,null,{"$f":"CHOOSE(m_identity,ENWL!AJ274, NPgN!AJ274, NPgY!AJ274, WMID!AJ274, EMID!AJ274, SWALES!AJ274, SWEST!AJ274, LPN!AJ274,SPN!AJ274,EPN!AJ274,SPD!AJ274,SPMW!AJ274,SSEH!AJ274,SSES!AJ274)","v":0},{"$f":"CHOOSE(m_identity,ENWL!AK274, NPgN!AK274, NPgY!AK274, WMID!AK274, EMID!AK274, SWALES!AK274, SWEST!AK274, LPN!AK274,SPN!AK274,EPN!AK274,SPD!AK274,SPMW!AK274,SSEH!AK274,SSES!AK274)","v":0},{"$f":"CHOOSE(m_identity,ENWL!AL274, NPgN!AL274, NPgY!AL274, WMID!AL274, EMID!AL274, SWALES!AL274, SWEST!AL274, LPN!AL274,SPN!AL274,EPN!AL274,SPD!AL274,SPMW!AL274,SSEH!AL274,SSES!AL274)","v":0},{"$f":"CHOOSE(m_identity,ENWL!AM274, NPgN!AM274, NPgY!AM274, WMID!AM274, EMID!AM274, SWALES!AM274, SWEST!AM274, LPN!AM274,SPN!AM274,EPN!AM274,SPD!AM274,SPMW!AM274,SSEH!AM274,SSES!AM274)","v":0},{"$f":"CHOOSE(m_identity,ENWL!AN274, NPgN!AN274, NPgY!AN274, WMID!AN274, EMID!AN274, SWALES!AN274, SWEST!AN274, LPN!AN274,SPN!AN274,EPN!AN274,SPD!AN274,SPMW!AN274,SSEH!AN274,SSES!AN274)","v":0},{"$f":"CHOOSE(m_identity,ENWL!AO274, NPgN!AO274, NPgY!AO274, WMID!AO274, EMID!AO274, SWALES!AO274, SWEST!AO274, LPN!AO274,SPN!AO274,EPN!AO274,SPD!AO274,SPMW!AO274,SSEH!AO274,SSES!AO274)","v":0},{"$f":"CHOOSE(m_identity,ENWL!AP274, NPgN!AP274, NPgY!AP274, WMID!AP274, EMID!AP274, SWALES!AP274, SWEST!AP274, LPN!AP274,SPN!AP274,EPN!AP274,SPD!AP274,SPMW!AP274,SSEH!AP274,SSES!AP274)","v":0},{"$f":"CHOOSE(m_identity,ENWL!AQ274, NPgN!AQ274, NPgY!AQ274, WMID!AQ274, EMID!AQ274, SWALES!AQ274, SWEST!AQ274, LPN!AQ274,SPN!AQ274,EPN!AQ274,SPD!AQ274,SPMW!AQ274,SSEH!AQ274,SSES!AQ274)","v":0}]
[null,null,null,null,"Other consented activities net position",null,"£m 12/13 prices",null,null,null,null,null,null,null,null,null,null,null,null,null,null,null,null,null,null,null,null,null,null,null,null,null,null,null,null,{"$f":"SUM(AJ273, -AJ274)","v":0},{"$f":"SUM(AK273, -AK274)","v":0},0,0,0,0,0,0]
[]
[null,null,null,null,"Spare revenue",null,"£m 12/13 prices",null,null,null,null,null,null,null,null,null,null,null,null,null,null,null,null,null,null,null,null,null,null,null,null,null,null,null,null,{"$f":"CHOOSE(m_identity,ENWL!AJ277, NPgN!AJ277, NPgY!AJ277, WMID!AJ277, EMID!AJ277, SWALES!AJ277, SWEST!AJ277, LPN!AJ277,SPN!AJ277,EPN!AJ277,SPD!AJ277,SPMW!AJ277,SSEH!AJ277,SSES!AJ277)","v":0},{"$f":"CHOOSE(m_identity,ENWL!AK277, NPgN!AK277, NPgY!AK277, WMID!AK277, EMID!AK277, SWALES!AK277, SWEST!AK277, LPN!AK277,SPN!AK277,EPN!AK277,SPD!AK277,SPMW!AK277,SSEH!AK277,SSES!AK277)","v":0},{"$f":"CHOOSE(m_identity,ENWL!AL277, NPgN!AL277, NPgY!AL277, WMID!AL277, EMID!AL277, SWALES!AL277, SWEST!AL277, LPN!AL277,SPN!AL277,EPN!AL277,SPD!AL277,SPMW!AL277,SSEH!AL277,SSES!AL277)","v":0},{"$f":"CHOOSE(m_identity,ENWL!AM277, NPgN!AM277, NPgY!AM277, WMID!AM277, EMID!AM277, SWALES!AM277, SWEST!AM277, LPN!AM277,SPN!AM277,EPN!AM277,SPD!AM277,SPMW!AM277,SSEH!AM277,SSES!AM277)","v":0},{"$f":"CHOOSE(m_identity,ENWL!AN277, NPgN!AN277, NPgY!AN277, WMID!AN277, EMID!AN277, SWALES!AN277, SWEST!AN277, LPN!AN277,SPN!AN277,EPN!AN277,SPD!AN277,SPMW!AN277,SSEH!AN277,SSES!AN277)","v":0},{"$f":"CHOOSE(m_identity,ENWL!AO277, NPgN!AO277, NPgY!AO277, WMID!AO277, EMID!AO277, SWALES!AO277, SWEST!AO277, LPN!AO277,SPN!AO277,EPN!AO277,SPD!AO277,SPMW!AO277,SSEH!AO277,SSES!AO277)","v":0},{"$f":"CHOOSE(m_identity,ENWL!AP277, NPgN!AP277, NPgY!AP277, WMID!AP277, EMID!AP277, SWALES!AP277, SWEST!AP277, LPN!AP277,SPN!AP277,EPN!AP277,SPD!AP277,SPMW!AP277,SSEH!AP277,SSES!AP277)","v":0},{"$f":"CHOOSE(m_identity,ENWL!AQ277, NPgN!AQ277, NPgY!AQ277, WMID!AQ277, EMID!AQ277, SWALES!AQ277, SWEST!AQ277, LPN!AQ277,SPN!AQ277,EPN!AQ277,SPD!AQ277,SPMW!AQ277,SSEH!AQ277,SSES!AQ277)","v":0}]
[null,null,null,null,"Spare costs",null,"£m 12/13 prices",null,null,null,null,null,null,null,null,null,null,null,null,null,null,null,null,null,null,null,null,null,null,null,null,null,null,null,null,{"$f":"CHOOSE(m_identity,ENWL!AJ278, NPgN!AJ278, NPgY!AJ278, WMID!AJ278, EMID!AJ278, SWALES!AJ278, SWEST!AJ278, LPN!AJ278,SPN!AJ278,EPN!AJ278,SPD!AJ278,SPMW!AJ278,SSEH!AJ278,SSES!AJ278)","v":0},{"$f":"CHOOSE(m_identity,ENWL!AK278, NPgN!AK278, NPgY!AK278, WMID!AK278, EMID!AK278, SWALES!AK278, SWEST!AK278, LPN!AK278,SPN!AK278,EPN!AK278,SPD!AK278,SPMW!AK278,SSEH!AK278,SSES!AK278)","v":0},{"$f":"CHOOSE(m_identity,ENWL!AL278, NPgN!AL278, NPgY!AL278, WMID!AL278, EMID!AL278, SWALES!AL278, SWEST!AL278, LPN!AL278,SPN!AL278,EPN!AL278,SPD!AL278,SPMW!AL278,SSEH!AL278,SSES!AL278)","v":0},{"$f":"CHOOSE(m_identity,ENWL!AM278, NPgN!AM278, NPgY!AM278, WMID!AM278, EMID!AM278, SWALES!AM278, SWEST!AM278, LPN!AM278,SPN!AM278,EPN!AM278,SPD!AM278,SPMW!AM278,SSEH!AM278,SSES!AM278)","v":0},{"$f":"CHOOSE(m_identity,ENWL!AN278, NPgN!AN278, NPgY!AN278, WMID!AN278, EMID!AN278, SWALES!AN278, SWEST!AN278, LPN!AN278,SPN!AN278,EPN!AN278,SPD!AN278,SPMW!AN278,SSEH!AN278,SSES!AN278)","v":0},{"$f":"CHOOSE(m_identity,ENWL!AO278, NPgN!AO278, NPgY!AO278, WMID!AO278, EMID!AO278, SWALES!AO278, SWEST!AO278, LPN!AO278,SPN!AO278,EPN!AO278,SPD!AO278,SPMW!AO278,SSEH!AO278,SSES!AO278)","v":0},{"$f":"CHOOSE(m_identity,ENWL!AP278, NPgN!AP278, NPgY!AP278, WMID!AP278, EMID!AP278, SWALES!AP278, SWEST!AP278, LPN!AP278,SPN!AP278,EPN!AP278,SPD!AP278,SPMW!AP278,SSEH!AP278,SSES!AP278)","v":0},{"$f":"CHOOSE(m_identity,ENWL!AQ278, NPgN!AQ278, NPgY!AQ278, WMID!AQ278, EMID!AQ278, SWALES!AQ278, SWEST!AQ278, LPN!AQ278,SPN!AQ278,EPN!AQ278,SPD!AQ278,SPMW!AQ278,SSEH!AQ278,SSES!AQ278)","v":0}]
[null,null,null,null,"Spare net position",null,"£m 12/13 prices",null,null,null,null,null,null,null,null,null,null,null,null,null,null,null,null,null,null,null,null,null,null,null,null,null,null,null,null,{"$f":"SUM(AJ277, -AJ278)","v":0},{"$f":"SUM(AK277, -AK278)","v":0},0,0,0,0,0,0]
[]
[null,null,null,null,{"$f":"\"Overall net income of \"&E227","v":"Overall net income of Directly Remunerated Services"},null,"£m 12/13 prices",null,null,null,null,null,null,null,null,null,null,null,null,null,null,null,null,null,null,null,null,null,null,null,null,null,null,null,null,{"$f":"AJ231+AJ235+AJ239+AJ243+AJ247+AJ251+AJ255+AJ259+AJ263+AJ267+AJ271+AJ275+AJ279","v":-14.508510976669964},{"$f":"AK231+AK235+AK239+AK243+AK247+AK251+AK255+AK259+AK263+AK267+AK271+AK275+AK279","v":-22.546677444116675},-21.908525322164497,-21.387703868340498,-20.880618047351835,-20.50284088722098,-20.26621190292914,-20.098450020901698]
[]
[null,"RAV and assets"]
[]
[null,null,"Pre-vesting assets"]
[]
[null,null,null,null,"Pre-vesting asset life",null,"years",null,{"$f":"CHOOSE(m_identity,ENWL!I287, NPgN!I287, NPgY!I287, WMID!I287, EMID!I287, SWALES!I287, SWEST!I287, LPN!I287,SPN!I287,EPN!I287,SPD!I287,SPMW!I287,SSEH!I287,SSES!I287)","v":15}]
[null,null,null,null,"Pre vesting asset depn in first year (mths)",null,"months",null,{"$f":"CHOOSE(m_identity,ENWL!I288, NPgN!I288, NPgY!I288, WMID!I288, EMID!I288, SWALES!I288, SWEST!I288, LPN!I288,SPN!I288,EPN!I288,SPD!I288,SPMW!I288,SSEH!I288,SSES!I288)","v":3.5}]
[]
[null,null,null,null,"Metering Write off",null,"£m 12/13 prices",null,{"$f":"CHOOSE(m_identity,ENWL!I290, NPgN!I290, NPgY!I290, WMID!I290, EMID!I290, SWALES!I290, SWEST!I290, LPN!I290,SPN!I290,EPN!I290,SPD!I290,SPMW!I290,SSEH!I290,SSES!I290)","v":22.328762879048202}]
[]
[null,null,"Post-vesting assets"]
[]
[null,null,null,null,"ED"]
[null,null,null,null,"Post-vesting asset life",null,"years",null,null,">",{"$f":"CHOOSE(m_identity,ENWL!K295, NPgN!K295, NPgY!K295, WMID!K295, EMID!K295, SWALES!K295, SWEST!K295, LPN!K295,SPN!K295,EPN!K295,SPD!K295,SPMW!K295,SSEH!K295,SSES!K295)","v":33.299999999999997},{"$f":"CHOOSE(m_identity,ENWL!L295, NPgN!L295, NPgY!L295, WMID!L295, EMID!L295, SWALES!L295, SWEST!L295, LPN!L295,SPN!L295,EPN!L295,SPD!L295,SPMW!L295,SSEH!L295,SSES!L295)","v":33.299999999999997},{"$f":"CHOOSE(m_identity,ENWL!M295, NPgN!M295, NPgY!M295, WMID!M295, EMID!M295, SWALES!M295, SWEST!M295, LPN!M295,SPN!M295,EPN!M295,SPD!M295,SPMW!M295,SSEH!M295,SSES!M295)","v":33.299999999999997},{"$f":"CHOOSE(m_identity,ENWL!N295, NPgN!N295, NPgY!N295, WMID!N295, EMID!N295, SWALES!N295, SWEST!N295, LPN!N295,SPN!N295,EPN!N295,SPD!N295,SPMW!N295,SSEH!N295,SSES!N295)","v":33.299999999999997},{"$f":"CHOOSE(m_identity,ENWL!O295, NPgN!O295, NPgY!O295, WMID!O295, EMID!O295, SWALES!O295, SWEST!O295, LPN!O295,SPN!O295,EPN!O295,SPD!O295,SPMW!O295,SSEH!O295,SSES!O295)","v":33.299999999999997},{"$f":"CHOOSE(m_identity,ENWL!P295, NPgN!P295, NPgY!P295, WMID!P295, EMID!P295, SWALES!P295, SWEST!P295, LPN!P295,SPN!P295,EPN!P295,SPD!P295,SPMW!P295,SSEH!P295,SSES!P295)","v":33.299999999999997},{"$f":"CHOOSE(m_identity,ENWL!Q295, NPgN!Q295, NPgY!Q295, WMID!Q295, EMID!Q295, SWALES!Q295, SWEST!Q295, LPN!Q295,SPN!Q295,EPN!Q295,SPD!Q295,SPMW!Q295,SSEH!Q295,SSES!Q295)","v":33.299999999999997},{"$f":"CHOOSE(m_identity,ENWL!R295, NPgN!R295, NPgY!R295, WMID!R295, EMID!R295, SWALES!R295, SWEST!R295, LPN!R295,SPN!R295,EPN!R295,SPD!R295,SPMW!R295,SSEH!R295,SSES!R295)","v":33.299999999999997},{"$f":"CHOOSE(m_identity,ENWL!S295, NPgN!S295, NPgY!S295, WMID!S295, EMID!S295, SWALES!S295, SWEST!S295, LPN!S295,SPN!S295,EPN!S295,SPD!S295,SPMW!S295,SSEH!S295,SSES!S295)","v":33.299999999999997},{"$f":"CHOOSE(m_identity,ENWL!T295, NPgN!T295, NPgY!T295, WMID!T295, EMID!T295, SWALES!T295, SWEST!T295, LPN!T295,SPN!T295,EPN!T295,SPD!T295,SPMW!T295,SSEH!T295,SSES!T295)","v":33.299999999999997},{"$f":"CHOOSE(m_identity,ENWL!U295, NPgN!U295, NPgY!U295, WMID!U295, EMID!U295, SWALES!U295, SWEST!U295, LPN!U295,SPN!U295,EPN!U295,SPD!U295,SPMW!U295,SSEH!U295,SSES!U295)","v":33.299999999999997},{"$f":"CHOOSE(m_identity,ENWL!V295, NPgN!V295, NPgY!V295, WMID!V295, EMID!V295, SWALES!V295, SWEST!V295, LPN!V295,SPN!V295,EPN!V295,SPD!V295,SPMW!V295,SSEH!V295,SSES!V295)","v":33.299999999999997},{"$f":"CHOOSE(m_identity,ENWL!W295, NPgN!W295, NPgY!W295, WMID!W295, EMID!W295, SWALES!W295, SWEST!W295, LPN!W295,SPN!W295,EPN!W295,SPD!W295,SPMW!W295,SSEH!W295,SSES!W295)","v":33.299999999999997},{"$f":"CHOOSE(m_identity,ENWL!X295, NPgN!X295, NPgY!X295, WMID!X295, EMID!X295, SWALES!X295, SWEST!X295, LPN!X295,SPN!X295,EPN!X295,SPD!X295,SPMW!X295,SSEH!X295,SSES!X295)","v":33.299999999999997},{"$f":"CHOOSE(m_identity,ENWL!Y295, NPgN!Y295, NPgY!Y295, WMID!Y295, EMID!Y295, SWALES!Y295, SWEST!Y295, LPN!Y295,SPN!Y295,EPN!Y295,SPD!Y295,SPMW!Y295,SSEH!Y295,SSES!Y295)","v":33.299999999999997},{"$f":"CHOOSE(m_identity,ENWL!Z295, NPgN!Z295, NPgY!Z295, WMID!Z295, EMID!Z295, SWALES!Z295, SWEST!Z295, LPN!Z295,SPN!Z295,EPN!Z295,SPD!Z295,SPMW!Z295,SSEH!Z295,SSES!Z295)","v":33.299999999999997},{"$f":"CHOOSE(m_identity,ENWL!AA295, NPgN!AA295, NPgY!AA295, WMID!AA295, EMID!AA295, SWALES!AA295, SWEST!AA295, LPN!AA295,SPN!AA295,EPN!AA295,SPD!AA295,SPMW!AA295,SSEH!AA295,SSES!AA295)","v":33.299999999999997},{"$f":"CHOOSE(m_identity,ENWL!AB295, NPgN!AB295, NPgY!AB295, WMID!AB295, EMID!AB295, SWALES!AB295, SWEST!AB295, LPN!AB295,SPN!AB295,EPN!AB295,SPD!AB295,SPMW!AB295,SSEH!AB295,SSES!AB295)","v":33.299999999999997},{"$f":"CHOOSE(m_identity,ENWL!AC295, NPgN!AC295, NPgY!AC295, WMID!AC295, EMID!AC295, SWALES!AC295, SWEST!AC295, LPN!AC295,SPN!AC295,EPN!AC295,SPD!AC295,SPMW!AC295,SSEH!AC295,SSES!AC295)","v":33.299999999999997},{"$f":"CHOOSE(m_identity,ENWL!AD295, NPgN!AD295, NPgY!AD295, WMID!AD295, EMID!AD295, SWALES!AD295, SWEST!AD295, LPN!AD295,SPN!AD295,EPN!AD295,SPD!AD295,SPMW!AD295,SSEH!AD295,SSES!AD295)","v":33.299999999999997},{"$f":"CHOOSE(m_identity,ENWL!AE295, NPgN!AE295, NPgY!AE295, WMID!AE295, EMID!AE295, SWALES!AE295, SWEST!AE295, LPN!AE295,SPN!AE295,EPN!AE295,SPD!AE295,SPMW!AE295,SSEH!AE295,SSES!AE295)","v":33.299999999999997},{"$f":"CHOOSE(m_identity,ENWL!AF295, NPgN!AF295, NPgY!AF295, WMID!AF295, EMID!AF295, SWALES!AF295, SWEST!AF295, LPN!AF295,SPN!AF295,EPN!AF295,SPD!AF295,SPMW!AF295,SSEH!AF295,SSES!AF295)","v":33.299999999999997},{"$f":"CHOOSE(m_identity,ENWL!AG295, NPgN!AG295, NPgY!AG295, WMID!AG295, EMID!AG295, SWALES!AG295, SWEST!AG295, LPN!AG295,SPN!AG295,EPN!AG295,SPD!AG295,SPMW!AG295,SSEH!AG295,SSES!AG295)","v":33.299999999999997},{"$f":"CHOOSE(m_identity,ENWL!AH295, NPgN!AH295, NPgY!AH295, WMID!AH295, EMID!AH295, SWALES!AH295, SWEST!AH295, LPN!AH295,SPN!AH295,EPN!AH295,SPD!AH295,SPMW!AH295,SSEH!AH295,SSES!AH295)","v":33.299999999999997},{"$f":"CHOOSE(m_identity,ENWL!AI295, NPgN!AI295, NPgY!AI295, WMID!AI295, EMID!AI295, SWALES!AI295, SWEST!AI295, LPN!AI295,SPN!AI295,EPN!AI295,SPD!AI295,SPMW!AI295,SSEH!AI295,SSES!AI295)","v":33.299999999999997},{"$f":"CHOOSE(m_identity,ENWL!AJ295, NPgN!AJ295, NPgY!AJ295, WMID!AJ295, EMID!AJ295, SWALES!AJ295, SWEST!AJ295, LPN!AJ295,SPN!AJ295,EPN!AJ295,SPD!AJ295,SPMW!AJ295,SSEH!AJ295,SSES!AJ295)","v":23.125},{"$f":"CHOOSE(m_identity,ENWL!AK295, NPgN!AK295, NPgY!AK295, WMID!AK295, EMID!AK295, SWALES!AK295, SWEST!AK295, LPN!AK295,SPN!AK295,EPN!AK295,SPD!AK295,SPMW!AK295,SSEH!AK295,SSES!AK295)","v":26.25},{"$f":"CHOOSE(m_identity,ENWL!AL295, NPgN!AL295, NPgY!AL295, WMID!AL295, EMID!AL295, SWALES!AL295, SWEST!AL295, LPN!AL295,SPN!AL295,EPN!AL295,SPD!AL295,SPMW!AL295,SSEH!AL295,SSES!AL295)","v":29.375},{"$f":"CHOOSE(m_identity,ENWL!AM295, NPgN!AM295, NPgY!AM295, WMID!AM295, EMID!AM295, SWALES!AM295, SWEST!AM295, LPN!AM295,SPN!AM295,EPN!AM295,SPD!AM295,SPMW!AM295,SSEH!AM295,SSES!AM295)","v":32.5},{"$f":"CHOOSE(m_identity,ENWL!AN295, NPgN!AN295, NPgY!AN295, WMID!AN295, EMID!AN295, SWALES!AN295, SWEST!AN295, LPN!AN295,SPN!AN295,EPN!AN295,SPD!AN295,SPMW!AN295,SSEH!AN295,SSES!AN295)","v":35.625},{"$f":"CHOOSE(m_identity,ENWL!AO295, NPgN!AO295, NPgY!AO295, WMID!AO295, EMID!AO295, SWALES!AO295, SWEST!AO295, LPN!AO295,SPN!AO295,EPN!AO295,SPD!AO295,SPMW!AO295,SSEH!AO295,SSES!AO295)","v":38.75},{"$f":"CHOOSE(m_identity,ENWL!AP295, NPgN!AP295, NPgY!AP295, WMID!AP295, EMID!AP295, SWALES!AP295, SWEST!AP295, LPN!AP295,SPN!AP295,EPN!AP295,SPD!AP295,SPMW!AP295,SSEH!AP295,SSES!AP295)","v":41.875},{"$f":"CHOOSE(m_identity,ENWL!AQ295, NPgN!AQ295, NPgY!AQ295, WMID!AQ295, EMID!AQ295, SWALES!AQ295, SWEST!AQ295, LPN!AQ295,SPN!AQ295,EPN!AQ295,SPD!AQ295,SPMW!AQ295,SSEH!AQ295,SSES!AQ295)","v":45}]
[null,null,null,null,"Accelerated post-vesting asset life",null,"years",null,null,">",{"$f":"CHOOSE(m_identity,ENWL!K296, NPgN!K296, NPgY!K296, WMID!K296, EMID!K296, SWALES!K296, SWEST!K296, LPN!K296,SPN!K296,EPN!K296,SPD!K296,SPMW!K296,SSEH!K296,SSES!K296)","v":20},{"$f":"CHOOSE(m_identity,ENWL!L296, NPgN!L296, NPgY!L296, WMID!L296, EMID!L296, SWALES!L296, SWEST!L296, LPN!L296,SPN!L296,EPN!L296,SPD!L296,SPMW!L296,SSEH!L296,SSES!L296)","v":20},{"$f":"CHOOSE(m_identity,ENWL!M296, NPgN!M296, NPgY!M296, WMID!M296, EMID!M296, SWALES!M296, SWEST!M296, LPN!M296,SPN!M296,EPN!M296,SPD!M296,SPMW!M296,SSEH!M296,SSES!M296)","v":20},{"$f":"CHOOSE(m_identity,ENWL!N296, NPgN!N296, NPgY!N296, WMID!N296, EMID!N296, SWALES!N296, SWEST!N296, LPN!N296,SPN!N296,EPN!N296,SPD!N296,SPMW!N296,SSEH!N296,SSES!N296)","v":20},{"$f":"CHOOSE(m_identity,ENWL!O296, NPgN!O296, NPgY!O296, WMID!O296, EMID!O296, SWALES!O296, SWEST!O296, LPN!O296,SPN!O296,EPN!O296,SPD!O296,SPMW!O296,SSEH!O296,SSES!O296)","v":20},{"$f":"CHOOSE(m_identity,ENWL!P296, NPgN!P296, NPgY!P296, WMID!P296, EMID!P296, SWALES!P296, SWEST!P296, LPN!P296,SPN!P296,EPN!P296,SPD!P296,SPMW!P296,SSEH!P296,SSES!P296)","v":20},{"$f":"CHOOSE(m_identity,ENWL!Q296, NPgN!Q296, NPgY!Q296, WMID!Q296, EMID!Q296, SWALES!Q296, SWEST!Q296, LPN!Q296,SPN!Q296,EPN!Q296,SPD!Q296,SPMW!Q296,SSEH!Q296,SSES!Q296)","v":20},{"$f":"CHOOSE(m_identity,ENWL!R296, NPgN!R296, NPgY!R296, WMID!R296, EMID!R296, SWALES!R296, SWEST!R296, LPN!R296,SPN!R296,EPN!R296,SPD!R296,SPMW!R296,SSEH!R296,SSES!R296)","v":20},{"$f":"CHOOSE(m_identity,ENWL!S296, NPgN!S296, NPgY!S296, WMID!S296, EMID!S296, SWALES!S296, SWEST!S296, LPN!S296,SPN!S296,EPN!S296,SPD!S296,SPMW!S296,SSEH!S296,SSES!S296)","v":20},{"$f":"CHOOSE(m_identity,ENWL!T296, NPgN!T296, NPgY!T296, WMID!T296, EMID!T296, SWALES!T296, SWEST!T296, LPN!T296,SPN!T296,EPN!T296,SPD!T296,SPMW!T296,SSEH!T296,SSES!T296)","v":20},{"$f":"CHOOSE(m_identity,ENWL!U296, NPgN!U296, NPgY!U296, WMID!U296, EMID!U296, SWALES!U296, SWEST!U296, LPN!U296,SPN!U296,EPN!U296,SPD!U296,SPMW!U296,SSEH!U296,SSES!U296)","v":20},{"$f":"CHOOSE(m_identity,ENWL!V296, NPgN!V296, NPgY!V296, WMID!V296, EMID!V296, SWALES!V296, SWEST!V296, LPN!V296,SPN!V296,EPN!V296,SPD!V296,SPMW!V296,SSEH!V296,SSES!V296)","v":20},{"$f":"CHOOSE(m_identity,ENWL!W296, NPgN!W296, NPgY!W296, WMID!W296, EMID!W296, SWALES!W296, SWEST!W296, LPN!W296,SPN!W296,EPN!W296,SPD!W296,SPMW!W296,SSEH!W296,SSES!W296)","v":20},{"$f":"CHOOSE(m_identity,ENWL!X296, NPgN!X296, NPgY!X296, WMID!X296, EMID!X296, SWALES!X296, SWEST!X296, LPN!X296,SPN!X296,EPN!X296,SPD!X296,SPMW!X296,SSEH!X296,SSES!X296)","v":20},{"$f":"CHOOSE(m_identity,ENWL!Y296, NPgN!Y296, NPgY!Y296, WMID!Y296, EMID!Y296, SWALES!Y296, SWEST!Y296, LPN!Y296,SPN!Y296,EPN!Y296,SPD!Y296,SPMW!Y296,SSEH!Y296,SSES!Y296)","v":20},{"$f":"CHOOSE(m_identity,ENWL!Z296, NPgN!Z296, NPgY!Z296, WMID!Z296, EMID!Z296, SWALES!Z296, SWEST!Z296, LPN!Z296,SPN!Z296,EPN!Z296,SPD!Z296,SPMW!Z296,SSEH!Z296,SSES!Z296)","v":20},{"$f":"CHOOSE(m_identity,ENWL!AA296, NPgN!AA296, NPgY!AA296, WMID!AA296, EMID!AA296, SWALES!AA296, SWEST!AA296, LPN!AA296,SPN!AA296,EPN!AA296,SPD!AA296,SPMW!AA296,SSEH!AA296,SSES!AA296)","v":20},{"$f":"CHOOSE(m_identity,ENWL!AB296, NPgN!AB296, NPgY!AB296, WMID!AB296, EMID!AB296, SWALES!AB296, SWEST!AB296, LPN!AB296,SPN!AB296,EPN!AB296,SPD!AB296,SPMW!AB296,SSEH!AB296,SSES!AB296)","v":20},{"$f":"CHOOSE(m_identity,ENWL!AC296, NPgN!AC296, NPgY!AC296, WMID!AC296, EMID!AC296, SWALES!AC296, SWEST!AC296, LPN!AC296,SPN!AC296,EPN!AC296,SPD!AC296,SPMW!AC296,SSEH!AC296,SSES!AC296)","v":20},{"$f":"CHOOSE(m_identity,ENWL!AD296, NPgN!AD296, NPgY!AD296, WMID!AD296, EMID!AD296, SWALES!AD296, SWEST!AD296, LPN!AD296,SPN!AD296,EPN!AD296,SPD!AD296,SPMW!AD296,SSEH!AD296,SSES!AD296)","v":20},{"$f":"CHOOSE(m_identity,ENWL!AE296, NPgN!AE296, NPgY!AE296, WMID!AE296, EMID!AE296, SWALES!AE296, SWEST!AE296, LPN!AE296,SPN!AE296,EPN!AE296,SPD!AE296,SPMW!AE296,SSEH!AE296,SSES!AE296)","v":20},{"$f":"CHOOSE(m_identity,ENWL!AF296, NPgN!AF296, NPgY!AF296, WMID!AF296, EMID!AF296, SWALES!AF296, SWEST!AF296, LPN!AF296,SPN!AF296,EPN!AF296,SPD!AF296,SPMW!AF296,SSEH!AF296,SSES!AF296)","v":20},{"$f":"CHOOSE(m_identity,ENWL!AG296, NPgN!AG296, NPgY!AG296, WMID!AG296, EMID!AG296, SWALES!AG296, SWEST!AG296, LPN!AG296,SPN!AG296,EPN!AG296,SPD!AG296,SPMW!AG296,SSEH!AG296,SSES!AG296)","v":20},{"$f":"CHOOSE(m_identity,ENWL!AH296, NPgN!AH296, NPgY!AH296, WMID!AH296, EMID!AH296, SWALES!AH296, SWEST!AH296, LPN!AH296,SPN!AH296,EPN!AH296,SPD!AH296,SPMW!AH296,SSEH!AH296,SSES!AH296)","v":20},{"$f":"CHOOSE(m_identity,ENWL!AI296, NPgN!AI296, NPgY!AI296, WMID!AI296, EMID!AI296, SWALES!AI296, SWEST!AI296, LPN!AI296,SPN!AI296,EPN!AI296,SPD!AI296,SPMW!AI296,SSEH!AI296,SSES!AI296)","v":20},{"$f":"CHOOSE(m_identity,ENWL!AJ296, NPgN!AJ296, NPgY!AJ296, WMID!AJ296, EMID!AJ296, SWALES!AJ296, SWEST!AJ296, LPN!AJ296,SPN!AJ296,EPN!AJ296,SPD!AJ296,SPMW!AJ296,SSEH!AJ296,SSES!AJ296)","v":23.125},{"$f":"CHOOSE(m_identity,ENWL!AK296, NPgN!AK296, NPgY!AK296, WMID!AK296, EMID!AK296, SWALES!AK296, SWEST!AK296, LPN!AK296,SPN!AK296,EPN!AK296,SPD!AK296,SPMW!AK296,SSEH!AK296,SSES!AK296)","v":26.25},{"$f":"CHOOSE(m_identity,ENWL!AL296, NPgN!AL296, NPgY!AL296, WMID!AL296, EMID!AL296, SWALES!AL296, SWEST!AL296, LPN!AL296,SPN!AL296,EPN!AL296,SPD!AL296,SPMW!AL296,SSEH!AL296,SSES!AL296)","v":29.375},{"$f":"CHOOSE(m_identity,ENWL!AM296, NPgN!AM296, NPgY!AM296, WMID!AM296, EMID!AM296, SWALES!AM296, SWEST!AM296, LPN!AM296,SPN!AM296,EPN!AM296,SPD!AM296,SPMW!AM296,SSEH!AM296,SSES!AM296)","v":32.5},{"$f":"CHOOSE(m_identity,ENWL!AN296, NPgN!AN296, NPgY!AN296, WMID!AN296, EMID!AN296, SWALES!AN296, SWEST!AN296, LPN!AN296,SPN!AN296,EPN!AN296,SPD!AN296,SPMW!AN296,SSEH!AN296,SSES!AN296)","v":35.625},{"$f":"CHOOSE(m_identity,ENWL!AO296, NPgN!AO296, NPgY!AO296, WMID!AO296, EMID!AO296, SWALES!AO296, SWEST!AO296, LPN!AO296,SPN!AO296,EPN!AO296,SPD!AO296,SPMW!AO296,SSEH!AO296,SSES!AO296)","v":38.75},{"$f":"CHOOSE(m_identity,ENWL!AP296, NPgN!AP296, NPgY!AP296, WMID!AP296, EMID!AP296, SWALES!AP296, SWEST!AP296, LPN!AP296,SPN!AP296,EPN!AP296,SPD!AP296,SPMW!AP296,SSEH!AP296,SSES!AP296)","v":41.875},{"$f":"CHOOSE(m_identity,ENWL!AQ296, NPgN!AQ296, NPgY!AQ296, WMID!AQ296, EMID!AQ296, SWALES!AQ296, SWEST!AQ296, LPN!AQ296,SPN!AQ296,EPN!AQ296,SPD!AQ296,SPMW!AQ296,SSEH!AQ296,SSES!AQ296)","v":45}]
[null,null,null,null,"Smoothing period following full depreciation of pre-vesting assets",null,"years",null,{"$f":"CHOOSE(m_identity,ENWL!I297, NPgN!I297, NPgY!I297, WMID!I297, EMID!I297, SWALES!I297, SWEST!I297, LPN!I297,SPN!I297,EPN!I297,SPD!I297,SPMW!I297,SSEH!I297,SSES!I297)","v":15}]
[null,null,null,null,"Vesting Period",null,"year ending",null,{"$f":"CHOOSE(m_identity,ENWL!I298, NPgN!I298, NPgY!I298, WMID!I298, EMID!I298, SWALES!I298, SWEST!I298, LPN!I298,SPN!I298,EPN!I298,SPD!I298,SPMW!I298,SSEH!I298,SSES!I298)","v":"1991-03-31"}]
[null,null,null,null,"Pre-RIIO net additions to RAV",null,"£m 12/13 prices",null,null,">",{"$f":"CHOOSE(m_identity,ENWL!K299, NPgN!K299, NPgY!K299, WMID!K299, EMID!K299, SWALES!K299, SWEST!K299, LPN!K299,SPN!K299,EPN!K299,SPD!K299,SPMW!K299,SSEH!K299,SSES!K299)","v":29.427249829458987},{"$f":"CHOOSE(m_identity,ENWL!L299, NPgN!L299, NPgY!L299, WMID!L299, EMID!L299, SWALES!L299, SWEST!L299, LPN!L299,SPN!L299,EPN!L299,SPD!L299,SPMW!L299,SSEH!L299,SSES!L299)","v":103.53461720102848},{"$f":"CHOOSE(m_identity,ENWL!M299, NPgN!M299, NPgY!M299, WMID!M299, EMID!M299, SWALES!M299, SWEST!M299, LPN!M299,SPN!M299,EPN!M299,SPD!M299,SPMW!M299,SSEH!M299,SSES!M299)","v":104.15089468436794},{"$f":"CHOOSE(m_identity,ENWL!N299, NPgN!N299, NPgY!N299, WMID!N299, EMID!N299, SWALES!N299, SWEST!N299, LPN!N299,SPN!N299,EPN!N299,SPD!N299,SPMW!N299,SSEH!N299,SSES!N299)","v":106.92414335939549},{"$f":"CHOOSE(m_identity,ENWL!O299, NPgN!O299, NPgY!O299, WMID!O299, EMID!O299, SWALES!O299, SWEST!O299, LPN!O299,SPN!O299,EPN!O299,SPD!O299,SPMW!O299,SSEH!O299,SSES!O299)","v":121.09852547620295},{"$f":"CHOOSE(m_identity,ENWL!P299, NPgN!P299, NPgY!P299, WMID!P299, EMID!P299, SWALES!P299, SWEST!P299, LPN!P299,SPN!P299,EPN!P299,SPD!P299,SPMW!P299,SSEH!P299,SSES!P299)","v":107.54042084273492},{"$f":"CHOOSE(m_identity,ENWL!Q299, NPgN!Q299, NPgY!Q299, WMID!Q299, EMID!Q299, SWALES!Q299, SWEST!Q299, LPN!Q299,SPN!Q299,EPN!Q299,SPD!Q299,SPMW!Q299,SSEH!Q299,SSES!Q299)","v":124.17991289290022},{"$f":"CHOOSE(m_identity,ENWL!R299, NPgN!R299, NPgY!R299, WMID!R299, EMID!R299, SWALES!R299, SWEST!R299, LPN!R299,SPN!R299,EPN!R299,SPD!R299,SPMW!R299,SSEH!R299,SSES!R299)","v":105.84565776355142},{"$f":"CHOOSE(m_identity,ENWL!S299, NPgN!S299, NPgY!S299, WMID!S299, EMID!S299, SWALES!S299, SWEST!S299, LPN!S299,SPN!S299,EPN!S299,SPD!S299,SPMW!S299,SSEH!S299,SSES!S299)","v":112.05918273879193},{"$f":"CHOOSE(m_identity,ENWL!T299, NPgN!T299, NPgY!T299, WMID!T299, EMID!T299, SWALES!T299, SWEST!T299, LPN!T299,SPN!T299,EPN!T299,SPD!T299,SPMW!T299,SSEH!T299,SSES!T299)","v":100.34160108609318},{"$f":"CHOOSE(m_identity,ENWL!U299, NPgN!U299, NPgY!U299, WMID!U299, EMID!U299, SWALES!U299, SWEST!U299, LPN!U299,SPN!U299,EPN!U299,SPD!U299,SPMW!U299,SSEH!U299,SSES!U299)","v":101.71991978233071},{"$f":"CHOOSE(m_identity,ENWL!V299, NPgN!V299, NPgY!V299, WMID!V299, EMID!V299, SWALES!V299, SWEST!V299, LPN!V299,SPN!V299,EPN!V299,SPD!V299,SPMW!V299,SSEH!V299,SSES!V299)","v":122.94602770438888},{"$f":"CHOOSE(m_identity,ENWL!W299, NPgN!W299, NPgY!W299, WMID!W299, EMID!W299, SWALES!W299, SWEST!W299, LPN!W299,SPN!W299,EPN!W299,SPD!W299,SPMW!W299,SSEH!W299,SSES!W299)","v":114.81394739658739},{"$f":"CHOOSE(m_identity,ENWL!X299, NPgN!X299, NPgY!X299, WMID!X299, EMID!X299, SWALES!X299, SWEST!X299, LPN!X299,SPN!X299,EPN!X299,SPD!X299,SPMW!X299,SSEH!X299,SSES!X299)","v":134.62320865872039},{"$f":"CHOOSE(m_identity,ENWL!Y299, NPgN!Y299, NPgY!Y299, WMID!Y299, EMID!Y299, SWALES!Y299, SWEST!Y299, LPN!Y299,SPN!Y299,EPN!Y299,SPD!Y299,SPMW!Y299,SSEH!Y299,SSES!Y299)","v":113.36672305139849},{"$f":"CHOOSE(m_identity,ENWL!Z299, NPgN!Z299, NPgY!Z299, WMID!Z299, EMID!Z299, SWALES!Z299, SWEST!Z299, LPN!Z299,SPN!Z299,EPN!Z299,SPD!Z299,SPMW!Z299,SSEH!Z299,SSES!Z299)","v":174.21733037885991},{"$f":"CHOOSE(m_identity,ENWL!AA299, NPgN!AA299, NPgY!AA299, WMID!AA299, EMID!AA299, SWALES!AA299, SWEST!AA299, LPN!AA299,SPN!AA299,EPN!AA299,SPD!AA299,SPMW!AA299,SSEH!AA299,SSES!AA299)","v":165.13880270591514},{"$f":"CHOOSE(m_identity,ENWL!AB299, NPgN!AB299, NPgY!AB299, WMID!AB299, EMID!AB299, SWALES!AB299, SWEST!AB299, LPN!AB299,SPN!AB299,EPN!AB299,SPD!AB299,SPMW!AB299,SSEH!AB299,SSES!AB299)","v":172.19424358687331},{"$f":"CHOOSE(m_identity,ENWL!AC299, NPgN!AC299, NPgY!AC299, WMID!AC299, EMID!AC299, SWALES!AC299, SWEST!AC299, LPN!AC299,SPN!AC299,EPN!AC299,SPD!AC299,SPMW!AC299,SSEH!AC299,SSES!AC299)","v":188.87459455264997},{"$f":"CHOOSE(m_identity,ENWL!AD299, NPgN!AD299, NPgY!AD299, WMID!AD299, EMID!AD299, SWALES!AD299, SWEST!AD299, LPN!AD299,SPN!AD299,EPN!AD299,SPD!AD299,SPMW!AD299,SSEH!AD299,SSES!AD299)","v":179.75309706460266},{"$f":"CHOOSE(m_identity,ENWL!AE299, NPgN!AE299, NPgY!AE299, WMID!AE299, EMID!AE299, SWALES!AE299, SWEST!AE299, LPN!AE299,SPN!AE299,EPN!AE299,SPD!AE299,SPMW!AE299,SSEH!AE299,SSES!AE299)","v":185.11275789301999},{"$f":"CHOOSE(m_identity,ENWL!AF299, NPgN!AF299, NPgY!AF299, WMID!AF299, EMID!AF299, SWALES!AF299, SWEST!AF299, LPN!AF299,SPN!AF299,EPN!AF299,SPD!AF299,SPMW!AF299,SSEH!AF299,SSES!AF299)","v":221.25861177530032},{"$f":"CHOOSE(m_identity,ENWL!AG299, NPgN!AG299, NPgY!AG299, WMID!AG299, EMID!AG299, SWALES!AG299, SWEST!AG299, LPN!AG299,SPN!AG299,EPN!AG299,SPD!AG299,SPMW!AG299,SSEH!AG299,SSES!AG299)","v":201.9095218516949},{"$f":"CHOOSE(m_identity,ENWL!AH299, NPgN!AH299, NPgY!AH299, WMID!AH299, EMID!AH299, SWALES!AH299, SWEST!AH299, LPN!AH299,SPN!AH299,EPN!AH299,SPD!AH299,SPMW!AH299,SSEH!AH299,SSES!AH299)","v":224.58303465550131},{"$f":"CHOOSE(m_identity,ENWL!AI299, NPgN!AI299, NPgY!AI299, WMID!AI299, EMID!AI299, SWALES!AI299, SWEST!AI299, LPN!AI299,SPN!AI299,EPN!AI299,SPD!AI299,SPMW!AI299,SSEH!AI299,SSES!AI299)","v":228.12625853068582}]
[null,null,null,null,"LRAV",null,"£m 12/13 prices",null,null,null,{"$f":"CHOOSE(m_identity,ENWL!K300, NPgN!K300, NPgY!K300, WMID!K300, EMID!K300, SWALES!K300, SWEST!K300, LPN!K300,SPN!K300,EPN!K300,SPD!K300,SPMW!K300,SSEH!K300,SSES!K300)","v":0},{"$f":"CHOOSE(m_identity,ENWL!L300, NPgN!L300, NPgY!L300, WMID!L300, EMID!L300, SWALES!L300, SWEST!L300, LPN!L300,SPN!L300,EPN!L300,SPD!L300,SPMW!L300,SSEH!L300,SSES!L300)","v":0},{"$f":"CHOOSE(m_identity,ENWL!M300, NPgN!M300, NPgY!M300, WMID!M300, EMID!M300, SWALES!M300, SWEST!M300, LPN!M300,SPN!M300,EPN!M300,SPD!M300,SPMW!M300,SSEH!M300,SSES!M300)","v":0},{"$f":"CHOOSE(m_identity,ENWL!N300, NPgN!N300, NPgY!N300, WMID!N300, EMID!N300, SWALES!N300, SWEST!N300, LPN!N300,SPN!N300,EPN!N300,SPD!N300,SPMW!N300,SSEH!N300,SSES!N300)","v":0},{"$f":"CHOOSE(m_identity,ENWL!O300, NPgN!O300, NPgY!O300, WMID!O300, EMID!O300, SWALES!O300, SWEST!O300, LPN!O300,SPN!O300,EPN!O300,SPD!O300,SPMW!O300,SSEH!O300,SSES!O300)","v":0},{"$f":"CHOOSE(m_identity,ENWL!P300, NPgN!P300, NPgY!P300, WMID!P300, EMID!P300, SWALES!P300, SWEST!P300, LPN!P300,SPN!P300,EPN!P300,SPD!P300,SPMW!P300,SSEH!P300,SSES!P300)","v":0},{"$f":"CHOOSE(m_identity,ENWL!Q300, NPgN!Q300, NPgY!Q300, WMID!Q300, EMID!Q300, SWALES!Q300, SWEST!Q300, LPN!Q300,SPN!Q300,EPN!Q300,SPD!Q300,SPMW!Q300,SSEH!Q300,SSES!Q300)","v":0},{"$f":"CHOOSE(m_identity,ENWL!R300, NPgN!R300, NPgY!R300, WMID!R300, EMID!R300, SWALES!R300, SWEST!R300, LPN!R300,SPN!R300,EPN!R300,SPD!R300,SPMW!R300,SSEH!R300,SSES!R300)","v":0},{"$f":"CHOOSE(m_identity,ENWL!S300, NPgN!S300, NPgY!S300, WMID!S300, EMID!S300, SWALES!S300, SWEST!S300, LPN!S300,SPN!S300,EPN!S300,SPD!S300,SPMW!S300,SSEH!S300,SSES!S300)","v":0},{"$f":"CHOOSE(m_identity,ENWL!T300, NPgN!T300, NPgY!T300, WMID!T300, EMID!T300, SWALES!T300, SWEST!T300, LPN!T300,SPN!T300,EPN!T300,SPD!T300,SPMW!T300,SSEH!T300,SSES!T300)","v":0},{"$f":"CHOOSE(m_identity,ENWL!U300, NPgN!U300, NPgY!U300, WMID!U300, EMID!U300, SWALES!U300, SWEST!U300, LPN!U300,SPN!U300,EPN!U300,SPD!U300,SPMW!U300,SSEH!U300,SSES!U300)","v":0},{"$f":"CHOOSE(m_identity,ENWL!V300, NPgN!V300, NPgY!V300, WMID!V300, EMID!V300, SWALES!V300, SWEST!V300, LPN!V300,SPN!V300,EPN!V300,SPD!V300,SPMW!V300,SSEH!V300,SSES!V300)","v":0},{"$f":"CHOOSE(m_identity,ENWL!W300, NPgN!W300, NPgY!W300, WMID!W300, EMID!W300, SWALES!W300, SWEST!W300, LPN!W300,SPN!W300,EPN!W300,SPD!W300,SPMW!W300,SSEH!W300,SSES!W300)","v":0},{"$f":"CHOOSE(m_identity,ENWL!X300, NPgN!X300, NPgY!X300, WMID!X300, EMID!X300, SWALES!X300, SWEST!X300, LPN!X300,SPN!X300,EPN!X300,SPD!X300,SPMW!X300,SSEH!X300,SSES!X300)","v":0},{"$f":"CHOOSE(m_identity,ENWL!Y300, NPgN!Y300, NPgY!Y300, WMID!Y300, EMID!Y300, SWALES!Y300, SWEST!Y300, LPN!Y300,SPN!Y300,EPN!Y300,SPD!Y300,SPMW!Y300,SSEH!Y300,SSES!Y300)","v":0},{"$f":"CHOOSE(m_identity,ENWL!Z300, NPgN!Z300, NPgY!Z300, WMID!Z300, EMID!Z300, SWALES!Z300, SWEST!Z300, LPN!Z300,SPN!Z300,EPN!Z300,SPD!Z300,SPMW!Z300,SSEH!Z300,SSES!Z300)","v":0},{"$f":"CHOOSE(m_identity,ENWL!AA300, NPgN!AA300, NPgY!AA300, WMID!AA300, EMID!AA300, SWALES!AA300, SWEST!AA300, LPN!AA300,SPN!AA300,EPN!AA300,SPD!AA300,SPMW!AA300,SSEH!AA300,SSES!AA300)","v":0},{"$f":"CHOOSE(m_identity,ENWL!AB300, NPgN!AB300, NPgY!AB300, WMID!AB300, EMID!AB300, SWALES!AB300, SWEST!AB300, LPN!AB300,SPN!AB300,EPN!AB300,SPD!AB300,SPMW!AB300,SSEH!AB300,SSES!AB300)","v":0},{"$f":"CHOOSE(m_identity,ENWL!AC300, NPgN!AC300, NPgY!AC300, WMID!AC300, EMID!AC300, SWALES!AC300, SWEST!AC300, LPN!AC300,SPN!AC300,EPN!AC300,SPD!AC300,SPMW!AC300,SSEH!AC300,SSES!AC300)","v":0},{"$f":"CHOOSE(m_identity,ENWL!AD300, NPgN!AD300, NPgY!AD300, WMID!AD300, EMID!AD300, SWALES!AD300, SWEST!AD300, LPN!AD300,SPN!AD300,EPN!AD300,SPD!AD300,SPMW!AD300,SSEH!AD300,SSES!AD300)","v":0},{"$f":"CHOOSE(m_identity,ENWL!AE300, NPgN!AE300, NPgY!AE300, WMID!AE300, EMID!AE300, SWALES!AE300, SWEST!AE300, LPN!AE300,SPN!AE300,EPN!AE300,SPD!AE300,SPMW!AE300,SSEH!AE300,SSES!AE300)","v":0},{"$f":"CHOOSE(m_identity,ENWL!AF300, NPgN!AF300, NPgY!AF300, WMID!AF300, EMID!AF300, SWALES!AF300, SWEST!AF300, LPN!AF300,SPN!AF300,EPN!AF300,SPD!AF300,SPMW!AF300,SSEH!AF300,SSES!AF300)","v":0},{"$f":"CHOOSE(m_identity,ENWL!AG300, NPgN!AG300, NPgY!AG300, WMID!AG300, EMID!AG300, SWALES!AG300, SWEST!AG300, LPN!AG300,SPN!AG300,EPN!AG300,SPD!AG300,SPMW!AG300,SSEH!AG300,SSES!AG300)","v":0},{"$f":"AH32","v":8.528433735559986},-6.7337782745080546]
[null,null,null,null,"RIIO post-vesting RAV additions",null,"£m 12/13 prices",null,null,null,null,null,null,null,null,null,null,null,null,null,null,null,null,null,null,null,null,null,null,null,null,null,null,null,null,{"$f":"CHOOSE(m_identity,ENWL!AJ301, NPgN!AJ301, NPgY!AJ301, WMID!AJ301, EMID!AJ301, SWALES!AJ301, SWEST!AJ301, LPN!AJ301,SPN!AJ301,EPN!AJ301,SPD!AJ301,SPMW!AJ301,SSEH!AJ301,SSES!AJ301)","v":0},{"$f":"CHOOSE(m_identity,ENWL!AK301, NPgN!AK301, NPgY!AK301, WMID!AK301, EMID!AK301, SWALES!AK301, SWEST!AK301, LPN!AK301,SPN!AK301,EPN!AK301,SPD!AK301,SPMW!AK301,SSEH!AK301,SSES!AK301)","v":0},{"$f":"CHOOSE(m_identity,ENWL!AL301, NPgN!AL301, NPgY!AL301, WMID!AL301, EMID!AL301, SWALES!AL301, SWEST!AL301, LPN!AL301,SPN!AL301,EPN!AL301,SPD!AL301,SPMW!AL301,SSEH!AL301,SSES!AL301)","v":0},{"$f":"CHOOSE(m_identity,ENWL!AM301, NPgN!AM301, NPgY!AM301, WMID!AM301, EMID!AM301, SWALES!AM301, SWEST!AM301, LPN!AM301,SPN!AM301,EPN!AM301,SPD!AM301,SPMW!AM301,SSEH!AM301,SSES!AM301)","v":0},{"$f":"CHOOSE(m_identity,ENWL!AN301, NPgN!AN301, NPgY!AN301, WMID!AN301, EMID!AN301, SWALES!AN301, SWEST!AN301, LPN!AN301,SPN!AN301,EPN!AN301,SPD!AN301,SPMW!AN301,SSEH!AN301,SSES!AN301)","v":0},{"$f":"CHOOSE(m_identity,ENWL!AO301, NPgN!AO301, NPgY!AO301, WMID!AO301, EMID!AO301, SWALES!AO301, SWEST!AO301, LPN!AO301,SPN!AO301,EPN!AO301,SPD!AO301,SPMW!AO301,SSEH!AO301,SSES!AO301)","v":0},{"$f":"CHOOSE(m_identity,ENWL!AP301, NPgN!AP301, NPgY!AP301, WMID!AP301, EMID!AP301, SWALES!AP301, SWEST!AP301, LPN!AP301,SPN!AP301,EPN!AP301,SPD!AP301,SPMW!AP301,SSEH!AP301,SSES!AP301)","v":0},{"$f":"CHOOSE(m_identity,ENWL!AQ301, NPgN!AQ301, NPgY!AQ301, WMID!AQ301, EMID!AQ301, SWALES!AQ301, SWEST!AQ301, LPN!AQ301,SPN!AQ301,EPN!AQ301,SPD!AQ301,SPMW!AQ301,SSEH!AQ301,SSES!AQ301)","v":0}]
[null,null,null,null,"RIIO post-vesting RAV disposals",null,"£m 12/13 prices",null,null,null,null,null,null,null,null,null,null,null,null,null,null,null,null,null,null,null,null,null,null,null,null,null,null,null,null,{"$f":"CHOOSE(m_identity,ENWL!AJ302, NPgN!AJ302, NPgY!AJ302, WMID!AJ302, EMID!AJ302, SWALES!AJ302, SWEST!AJ302, LPN!AJ302,SPN!AJ302,EPN!AJ302,SPD!AJ302,SPMW!AJ302,SSEH!AJ302,SSES!AJ302)","v":0},{"$f":"CHOOSE(m_identity,ENWL!AK302, NPgN!AK302, NPgY!AK302, WMID!AK302, EMID!AK302, SWALES!AK302, SWEST!AK302, LPN!AK302,SPN!AK302,EPN!AK302,SPD!AK302,SPMW!AK302,SSEH!AK302,SSES!AK302)","v":0},{"$f":"CHOOSE(m_identity,ENWL!AL302, NPgN!AL302, NPgY!AL302, WMID!AL302, EMID!AL302, SWALES!AL302, SWEST!AL302, LPN!AL302,SPN!AL302,EPN!AL302,SPD!AL302,SPMW!AL302,SSEH!AL302,SSES!AL302)","v":0},{"$f":"CHOOSE(m_identity,ENWL!AM302, NPgN!AM302, NPgY!AM302, WMID!AM302, EMID!AM302, SWALES!AM302, SWEST!AM302, LPN!AM302,SPN!AM302,EPN!AM302,SPD!AM302,SPMW!AM302,SSEH!AM302,SSES!AM302)","v":0},{"$f":"CHOOSE(m_identity,ENWL!AN302, NPgN!AN302, NPgY!AN302, WMID!AN302, EMID!AN302, SWALES!AN302, SWEST!AN302, LPN!AN302,SPN!AN302,EPN!AN302,SPD!AN302,SPMW!AN302,SSEH!AN302,SSES!AN302)","v":0},{"$f":"CHOOSE(m_identity,ENWL!AO302, NPgN!AO302, NPgY!AO302, WMID!AO302, EMID!AO302, SWALES!AO302, SWEST!AO302, LPN!AO302,SPN!AO302,EPN!AO302,SPD!AO302,SPMW!AO302,SSEH!AO302,SSES!AO302)","v":0},{"$f":"CHOOSE(m_identity,ENWL!AP302, NPgN!AP302, NPgY!AP302, WMID!AP302, EMID!AP302, SWALES!AP302, SWEST!AP302, LPN!AP302,SPN!AP302,EPN!AP302,SPD!AP302,SPMW!AP302,SSEH!AP302,SSES!AP302)","v":0},{"$f":"CHOOSE(m_identity,ENWL!AQ302, NPgN!AQ302, NPgY!AQ302, WMID!AQ302, EMID!AQ302, SWALES!AQ302, SWEST!AQ302, LPN!AQ302,SPN!AQ302,EPN!AQ302,SPD!AQ302,SPMW!AQ302,SSEH!AQ302,SSES!AQ302)","v":0}]
[null,null,null,null,"Pre-RIIO transfers to depreciation",null,"£m 12/13 prices",null,null,">",{"$f":"CHOOSE(m_identity,ENWL!K303, NPgN!K303, NPgY!K303, WMID!K303, EMID!K303, SWALES!K303, SWEST!K303, LPN!K303,SPN!K303,EPN!K303,SPD!K303,SPMW!K303,SSEH!K303,SSES!K303)","v":0},{"$f":"CHOOSE(m_identity,ENWL!L303, NPgN!L303, NPgY!L303, WMID!L303, EMID!L303, SWALES!L303, SWEST!L303, LPN!L303,SPN!L303,EPN!L303,SPD!L303,SPMW!L303,SSEH!L303,SSES!L303)","v":0},{"$f":"CHOOSE(m_identity,ENWL!M303, NPgN!M303, NPgY!M303, WMID!M303, EMID!M303, SWALES!M303, SWEST!M303, LPN!M303,SPN!M303,EPN!M303,SPD!M303,SPMW!M303,SSEH!M303,SSES!M303)","v":0},{"$f":"CHOOSE(m_identity,ENWL!N303, NPgN!N303, NPgY!N303, WMID!N303, EMID!N303, SWALES!N303, SWEST!N303, LPN!N303,SPN!N303,EPN!N303,SPD!N303,SPMW!N303,SSEH!N303,SSES!N303)","v":0},{"$f":"CHOOSE(m_identity,ENWL!O303, NPgN!O303, NPgY!O303, WMID!O303, EMID!O303, SWALES!O303, SWEST!O303, LPN!O303,SPN!O303,EPN!O303,SPD!O303,SPMW!O303,SSEH!O303,SSES!O303)","v":0},{"$f":"CHOOSE(m_identity,ENWL!P303, NPgN!P303, NPgY!P303, WMID!P303, EMID!P303, SWALES!P303, SWEST!P303, LPN!P303,SPN!P303,EPN!P303,SPD!P303,SPMW!P303,SSEH!P303,SSES!P303)","v":0},{"$f":"CHOOSE(m_identity,ENWL!Q303, NPgN!Q303, NPgY!Q303, WMID!Q303, EMID!Q303, SWALES!Q303, SWEST!Q303, LPN!Q303,SPN!Q303,EPN!Q303,SPD!Q303,SPMW!Q303,SSEH!Q303,SSES!Q303)","v":0},{"$f":"CHOOSE(m_identity,ENWL!R303, NPgN!R303, NPgY!R303, WMID!R303, EMID!R303, SWALES!R303, SWEST!R303, LPN!R303,SPN!R303,EPN!R303,SPD!R303,SPMW!R303,SSEH!R303,SSES!R303)","v":0},{"$f":"CHOOSE(m_identity,ENWL!S303, NPgN!S303, NPgY!S303, WMID!S303, EMID!S303, SWALES!S303, SWEST!S303, LPN!S303,SPN!S303,EPN!S303,SPD!S303,SPMW!S303,SSEH!S303,SSES!S303)","v":0},{"$f":"CHOOSE(m_identity,ENWL!T303, NPgN!T303, NPgY!T303, WMID!T303, EMID!T303, SWALES!T303, SWEST!T303, LPN!T303,SPN!T303,EPN!T303,SPD!T303,SPMW!T303,SSEH!T303,SSES!T303)","v":0},{"$f":"CHOOSE(m_identity,ENWL!U303, NPgN!U303, NPgY!U303, WMID!U303, EMID!U303, SWALES!U303, SWEST!U303, LPN!U303,SPN!U303,EPN!U303,SPD!U303,SPMW!U303,SSEH!U303,SSES!U303)","v":0},{"$f":"CHOOSE(m_identity,ENWL!V303, NPgN!V303, NPgY!V303, WMID!V303, EMID!V303, SWALES!V303, SWEST!V303, LPN!V303,SPN!V303,EPN!V303,SPD!V303,SPMW!V303,SSEH!V303,SSES!V303)","v":0},{"$f":"CHOOSE(m_identity,ENWL!W303, NPgN!W303, NPgY!W303, WMID!W303, EMID!W303, SWALES!W303, SWEST!W303, LPN!W303,SPN!W303,EPN!W303,SPD!W303,SPMW!W303,SSEH!W303,SSES!W303)","v":0},{"$f":"CHOOSE(m_identity,ENWL!X303, NPgN!X303, NPgY!X303, WMID!X303, EMID!X303, SWALES!X303, SWEST!X303, LPN!X303,SPN!X303,EPN!X303,SPD!X303,SPMW!X303,SSEH!X303,SSES!X303)","v":0},{"$f":"CHOOSE(m_identity,ENWL!Y303, NPgN!Y303, NPgY!Y303, WMID!Y303, EMID!Y303, SWALES!Y303, SWEST!Y303, LPN!Y303,SPN!Y303,EPN!Y303,SPD!Y303,SPMW!Y303,SSEH!Y303,SSES!Y303)","v":0},{"$f":"CHOOSE(m_identity,ENWL!Z303, NPgN!Z303, NPgY!Z303, WMID!Z303, EMID!Z303, SWALES!Z303, SWEST!Z303, LPN!Z303,SPN!Z303,EPN!Z303,SPD!Z303,SPMW!Z303,SSEH!Z303,SSES!Z303)","v":0},{"$f":"CHOOSE(m_identity,ENWL!AA303, NPgN!AA303, NPgY!AA303, WMID!AA303, EMID!AA303, SWALES!AA303, SWEST!AA303, LPN!AA303,SPN!AA303,EPN!AA303,SPD!AA303,SPMW!AA303,SSEH!AA303,SSES!AA303)","v":0},{"$f":"CHOOSE(m_identity,ENWL!AB303, NPgN!AB303, NPgY!AB303, WMID!AB303, EMID!AB303, SWALES!AB303, SWEST!AB303, LPN!AB303,SPN!AB303,EPN!AB303,SPD!AB303,SPMW!AB303,SSEH!AB303,SSES!AB303)","v":0},{"$f":"CHOOSE(m_identity,ENWL!AC303, NPgN!AC303, NPgY!AC303, WMID!AC303, EMID!AC303, SWALES!AC303, SWEST!AC303, LPN!AC303,SPN!AC303,EPN!AC303,SPD!AC303,SPMW!AC303,SSEH!AC303,SSES!AC303)","v":0},{"$f":"CHOOSE(m_identity,ENWL!AD303, NPgN!AD303, NPgY!AD303, WMID!AD303, EMID!AD303, SWALES!AD303, SWEST!AD303, LPN!AD303,SPN!AD303,EPN!AD303,SPD!AD303,SPMW!AD303,SSEH!AD303,SSES!AD303)","v":0},{"$f":"CHOOSE(m_identity,ENWL!AE303, NPgN!AE303, NPgY!AE303, WMID!AE303, EMID!AE303, SWALES!AE303, SWEST!AE303, LPN!AE303,SPN!AE303,EPN!AE303,SPD!AE303,SPMW!AE303,SSEH!AE303,SSES!AE303)","v":0},{"$f":"CHOOSE(m_identity,ENWL!AF303, NPgN!AF303, NPgY!AF303, WMID!AF303, EMID!AF303, SWALES!AF303, SWEST!AF303, LPN!AF303,SPN!AF303,EPN!AF303,SPD!AF303,SPMW!AF303,SSEH!AF303,SSES!AF303)","v":0},{"$f":"CHOOSE(m_identity,ENWL!AG303, NPgN!AG303, NPgY!AG303, WMID!AG303, EMID!AG303, SWALES!AG303, SWEST!AG303, LPN!AG303,SPN!AG303,EPN!AG303,SPD!AG303,SPMW!AG303,SSEH!AG303,SSES!AG303)","v":0},{"$f":"CHOOSE(m_identity,ENWL!AH303, NPgN!AH303, NPgY!AH303, WMID!AH303, EMID!AH303, SWALES!AH303, SWEST!AH303, LPN!AH303,SPN!AH303,EPN!AH303,SPD!AH303,SPMW!AH303,SSEH!AH303,SSES!AH303)","v":0},{"$f":"CHOOSE(m_identity,ENWL!AI303, NPgN!AI303, NPgY!AI303, WMID!AI303, EMID!AI303, SWALES!AI303, SWEST!AI303, LPN!AI303,SPN!AI303,EPN!AI303,SPD!AI303,SPMW!AI303,SSEH!AI303,SSES!AI303)","v":0}]
[]
[null,"Tax"]
[]
[null,null,"Tax policy"]
[]
[null,null,null,null,{"$f":"E33","v":"Tax liability allowance adjustments - gearing/interest costs"},null,"£m nominal",null,null,null,null,null,null,null,null,null,null,null,null,null,null,null,null,null,null,null,null,null,null,null,null,null,null,null,null,{"$f":"AJ33","v":0},0,0,0,0,0,0,0]
[null,null,null,null,{"$f":"E34","v":"Tax liability allowance adjustments - driven by tax trigger events"},null,"£m 12/13 prices",null,null,null,null,null,null,null,null,null,null,null,null,null,null,null,null,null,null,null,null,null,null,null,null,null,null,null,null,0,0,0,0,0,0,0,0]
[]
[null,null,null,null,"Corporation tax rate",null,"%",null,null,">",null,null,null,null,null,null,null,null,null,null,null,null,null,null,null,null,null,null,null,null,null,null,null,null,null,{"$f":"CHOOSE(m_identity,ENWL!AJ312, NPgN!AJ312, NPgY!AJ312, WMID!AJ312, EMID!AJ312, SWALES!AJ312, SWEST!AJ312, LPN!AJ312,SPN!AJ312,EPN!AJ312,SPD!AJ312,SPMW!AJ312,SSEH!AJ312,SSES!AJ312)","v":0.2},{"$f":"CHOOSE(m_identity,ENWL!AK312, NPgN!AK312, NPgY!AK312, WMID!AK312, EMID!AK312, SWALES!AK312, SWEST!AK312, LPN!AK312,SPN!AK312,EPN!AK312,SPD!AK312,SPMW!AK312,SSEH!AK312,SSES!AK312)","v":0.2},{"$f":"CHOOSE(m_identity,ENWL!AL312, NPgN!AL312, NPgY!AL312, WMID!AL312, EMID!AL312, SWALES!AL312, SWEST!AL312, LPN!AL312,SPN!AL312,EPN!AL312,SPD!AL312,SPMW!AL312,SSEH!AL312,SSES!AL312)","v":0.2},{"$f":"CHOOSE(m_identity,ENWL!AM312, NPgN!AM312, NPgY!AM312, WMID!AM312, EMID!AM312, SWALES!AM312, SWEST!AM312, LPN!AM312,SPN!AM312,EPN!AM312,SPD!AM312,SPMW!AM312,SSEH!AM312,SSES!AM312)","v":0.2},{"$f":"CHOOSE(m_identity,ENWL!AN312, NPgN!AN312, NPgY!AN312, WMID!AN312, EMID!AN312, SWALES!AN312, SWEST!AN312, LPN!AN312,SPN!AN312,EPN!AN312,SPD!AN312,SPMW!AN312,SSEH!AN312,SSES!AN312)","v":0.2},{"$f":"CHOOSE(m_identity,ENWL!AO312, NPgN!AO312, NPgY!AO312, WMID!AO312, EMID!AO312, SWALES!AO312, SWEST!AO312, LPN!AO312,SPN!AO312,EPN!AO312,SPD!AO312,SPMW!AO312,SSEH!AO312,SSES!AO312)","v":0.2},{"$f":"CHOOSE(m_identity,ENWL!AP312, NPgN!AP312, NPgY!AP312, WMID!AP312, EMID!AP312, SWALES!AP312, SWEST!AP312, LPN!AP312,SPN!AP312,EPN!AP312,SPD!AP312,SPMW!AP312,SSEH!AP312,SSES!AP312)","v":0.2},{"$f":"CHOOSE(m_identity,ENWL!AQ312, NPgN!AQ312, NPgY!AQ312, WMID!AQ312, EMID!AQ312, SWALES!AQ312, SWEST!AQ312, LPN!AQ312,SPN!AQ312,EPN!AQ312,SPD!AQ312,SPMW!AQ312,SSEH!AQ312,SSES!AQ312)","v":0.2}]
[]
[null,null,null,null,"General pool capital allowance rate",null,"%",null,null,">",null,null,null,null,null,null,null,null,null,null,null,null,null,null,null,null,null,null,null,null,null,null,null,null,null,{"$f":"CHOOSE(m_identity,ENWL!AJ314, NPgN!AJ314, NPgY!AJ314, WMID!AJ314, EMID!AJ314, SWALES!AJ314, SWEST!AJ314, LPN!AJ314,SPN!AJ314,EPN!AJ314,SPD!AJ314,SPMW!AJ314,SSEH!AJ314,SSES!AJ314)","v":0.18000000000000002},{"$f":"CHOOSE(m_identity,ENWL!AK314, NPgN!AK314, NPgY!AK314, WMID!AK314, EMID!AK314, SWALES!AK314, SWEST!AK314, LPN!AK314,SPN!AK314,EPN!AK314,SPD!AK314,SPMW!AK314,SSEH!AK314,SSES!AK314)","v":0.18000000000000002},{"$f":"CHOOSE(m_identity,ENWL!AL314, NPgN!AL314, NPgY!AL314, WMID!AL314, EMID!AL314, SWALES!AL314, SWEST!AL314, LPN!AL314,SPN!AL314,EPN!AL314,SPD!AL314,SPMW!AL314,SSEH!AL314,SSES!AL314)","v":0.18000000000000002},{"$f":"CHOOSE(m_identity,ENWL!AM314, NPgN!AM314, NPgY!AM314, WMID!AM314, EMID!AM314, SWALES!AM314, SWEST!AM314, LPN!AM314,SPN!AM314,EPN!AM314,SPD!AM314,SPMW!AM314,SSEH!AM314,SSES!AM314)","v":0.18000000000000002},{"$f":"CHOOSE(m_identity,ENWL!AN314, NPgN!AN314, NPgY!AN314, WMID!AN314, EMID!AN314, SWALES!AN314, SWEST!AN314, LPN!AN314,SPN!AN314,EPN!AN314,SPD!AN314,SPMW!AN314,SSEH!AN314,SSES!AN314)","v":0.18000000000000002},{"$f":"CHOOSE(m_identity,ENWL!AO314, NPgN!AO314, NPgY!AO314, WMID!AO314, EMID!AO314, SWALES!AO314, SWEST!AO314, LPN!AO314,SPN!AO314,EPN!AO314,SPD!AO314,SPMW!AO314,SSEH!AO314,SSES!AO314)","v":0.18000000000000002},{"$f":"CHOOSE(m_identity,ENWL!AP314, NPgN!AP314, NPgY!AP314, WMID!AP314, EMID!AP314, SWALES!AP314, SWEST!AP314, LPN!AP314,SPN!AP314,EPN!AP314,SPD!AP314,SPMW!AP314,SSEH!AP314,SSES!AP314)","v":0.18000000000000002},{"$f":"CHOOSE(m_identity,ENWL!AQ314, NPgN!AQ314, NPgY!AQ314, WMID!AQ314, EMID!AQ314, SWALES!AQ314, SWEST!AQ314, LPN!AQ314,SPN!AQ314,EPN!AQ314,SPD!AQ314,SPMW!AQ314,SSEH!AQ314,SSES!AQ314)","v":0.18000000000000002}]
[null,null,null,null,"Special Rates capital allowance rate",null,"%",null,null,">",null,null,null,null,null,null,null,null,null,null,null,null,null,null,null,null,null,null,null,null,null,null,null,null,null,{"$f":"CHOOSE(m_identity,ENWL!AJ315, NPgN!AJ315, NPgY!AJ315, WMID!AJ315, EMID!AJ315, SWALES!AJ315, SWEST!AJ315, LPN!AJ315,SPN!AJ315,EPN!AJ315,SPD!AJ315,SPMW!AJ315,SSEH!AJ315,SSES!AJ315)","v":0.08},{"$f":"CHOOSE(m_identity,ENWL!AK315, NPgN!AK315, NPgY!AK315, WMID!AK315, EMID!AK315, SWALES!AK315, SWEST!AK315, LPN!AK315,SPN!AK315,EPN!AK315,SPD!AK315,SPMW!AK315,SSEH!AK315,SSES!AK315)","v":0.08},{"$f":"CHOOSE(m_identity,ENWL!AL315, NPgN!AL315, NPgY!AL315, WMID!AL315, EMID!AL315, SWALES!AL315, SWEST!AL315, LPN!AL315,SPN!AL315,EPN!AL315,SPD!AL315,SPMW!AL315,SSEH!AL315,SSES!AL315)","v":0.08},{"$f":"CHOOSE(m_identity,ENWL!AM315, NPgN!AM315, NPgY!AM315, WMID!AM315, EMID!AM315, SWALES!AM315, SWEST!AM315, LPN!AM315,SPN!AM315,EPN!AM315,SPD!AM315,SPMW!AM315,SSEH!AM315,SSES!AM315)","v":0.08},{"$f":"CHOOSE(m_identity,ENWL!AN315, NPgN!AN315, NPgY!AN315, WMID!AN315, EMID!AN315, SWALES!AN315, SWEST!AN315, LPN!AN315,SPN!AN315,EPN!AN315,SPD!AN315,SPMW!AN315,SSEH!AN315,SSES!AN315)","v":0.08},{"$f":"CHOOSE(m_identity,ENWL!AO315, NPgN!AO315, NPgY!AO315, WMID!AO315, EMID!AO315, SWALES!AO315, SWEST!AO315, LPN!AO315,SPN!AO315,EPN!AO315,SPD!AO315,SPMW!AO315,SSEH!AO315,SSES!AO315)","v":0.08},{"$f":"CHOOSE(m_identity,ENWL!AP315, NPgN!AP315, NPgY!AP315, WMID!AP315, EMID!AP315, SWALES!AP315, SWEST!AP315, LPN!AP315,SPN!AP315,EPN!AP315,SPD!AP315,SPMW!AP315,SSEH!AP315,SSES!AP315)","v":0.08},{"$f":"CHOOSE(m_identity,ENWL!AQ315, NPgN!AQ315, NPgY!AQ315, WMID!AQ315, EMID!AQ315, SWALES!AQ315, SWEST!AQ315, LPN!AQ315,SPN!AQ315,EPN!AQ315,SPD!AQ315,SPMW!AQ315,SSEH!AQ315,SSES!AQ315)","v":0.08}]
[null,null,null,null,"Deferred Revenue Expenditure capital allowance rate",null,"%",null,null,null,null,null,null,null,null,null,null,null,null,null,null,null,null,null,null,null,null,null,null,null,null,null,null,null,null,{"$f":"CHOOSE(m_identity,ENWL!AJ316, NPgN!AJ316, NPgY!AJ316, WMID!AJ316, EMID!AJ316, SWALES!AJ316, SWEST!AJ316, LPN!AJ316,SPN!AJ316,EPN!AJ316,SPD!AJ316,SPMW!AJ316,SSEH!AJ316,SSES!AJ316)","v":2.2200000000000001E-2},{"$f":"CHOOSE(m_identity,ENWL!AK316, NPgN!AK316, NPgY!AK316, WMID!AK316, EMID!AK316, SWALES!AK316, SWEST!AK316, LPN!AK316,SPN!AK316,EPN!AK316,SPD!AK316,SPMW!AK316,SSEH!AK316,SSES!AK316)","v":2.2200000000000001E-2},{"$f":"CHOOSE(m_identity,ENWL!AL316, NPgN!AL316, NPgY!AL316, WMID!AL316, EMID!AL316, SWALES!AL316, SWEST!AL316, LPN!AL316,SPN!AL316,EPN!AL316,SPD!AL316,SPMW!AL316,SSEH!AL316,SSES!AL316)","v":2.2200000000000001E-2},{"$f":"CHOOSE(m_identity,ENWL!AM316, NPgN!AM316, NPgY!AM316, WMID!AM316, EMID!AM316, SWALES!AM316, SWEST!AM316, LPN!AM316,SPN!AM316,EPN!AM316,SPD!AM316,SPMW!AM316,SSEH!AM316,SSES!AM316)","v":2.2200000000000001E-2},{"$f":"CHOOSE(m_identity,ENWL!AN316, NPgN!AN316, NPgY!AN316, WMID!AN316, EMID!AN316, SWALES!AN316, SWEST!AN316, LPN!AN316,SPN!AN316,EPN!AN316,SPD!AN316,SPMW!AN316,SSEH!AN316,SSES!AN316)","v":2.2200000000000001E-2},{"$f":"CHOOSE(m_identity,ENWL!AO316, NPgN!AO316, NPgY!AO316, WMID!AO316, EMID!AO316, SWALES!AO316, SWEST!AO316, LPN!AO316,SPN!AO316,EPN!AO316,SPD!AO316,SPMW!AO316,SSEH!AO316,SSES!AO316)","v":2.2200000000000001E-2},{"$f":"CHOOSE(m_identity,ENWL!AP316, NPgN!AP316, NPgY!AP316, WMID!AP316, EMID!AP316, SWALES!AP316, SWEST!AP316, LPN!AP316,SPN!AP316,EPN!AP316,SPD!AP316,SPMW!AP316,SSEH!AP316,SSES!AP316)","v":2.2200000000000001E-2},{"$f":"CHOOSE(m_identity,ENWL!AQ316, NPgN!AQ316, NPgY!AQ316, WMID!AQ316, EMID!AQ316, SWALES!AQ316, SWEST!AQ316, LPN!AQ316,SPN!AQ316,EPN!AQ316,SPD!AQ316,SPMW!AQ316,SSEH!AQ316,SSES!AQ316)","v":2.2200000000000001E-2}]
[]
[null,null,"Capital allowances and tax losses"]
[]
[null,null,null,null,"General pool capital allowance opening balance brought forward",null,"£m nominal",null,null,null,null,null,null,null,null,null,null,null,null,null,null,null,null,null,null,null,null,null,null,null,null,null,null,{"$f":"CHOOSE(m_identity,ENWL!AH320, NPgN!AH320, NPgY!AH320, WMID!AH320, EMID!AH320, SWALES!AH320, SWEST!AH320, LPN!AH320,SPN!AH320,EPN!AH320,SPD!AH320,SPMW!AH320,SSEH!AH320,SSES!AH320)","v":61.617339399999999}]
[null,null,null,null,"General pool capital allowance pre-RIIO movement forecast",null,"£m nominal",null,null,null,null,null,null,null,null,null,null,null,null,null,null,null,null,null,null,null,null,null,null,null,null,null,null,{"$f":"CHOOSE(m_identity,ENWL!AH321, NPgN!AH321, NPgY!AH321, WMID!AH321, EMID!AH321, SWALES!AH321, SWEST!AH321, LPN!AH321,SPN!AH321,EPN!AH321,SPD!AH321,SPMW!AH321,SSEH!AH321,SSES!AH321)","v":18.741685458583472},{"$f":"CHOOSE(m_identity,ENWL!AI321, NPgN!AI321, NPgY!AI321, WMID!AI321, EMID!AI321, SWALES!AI321, SWEST!AI321, LPN!AI321,SPN!AI321,EPN!AI321,SPD!AI321,SPMW!AI321,SSEH!AI321,SSES!AI321)","v":9.6324630599037526}]
[null,null,null,null,"General pool capital allowance pre-RIIO movement adjustment",null,"£m nominal",null,null,null,null,null,null,null,null,null,null,null,null,null,null,null,null,null,null,null,null,null,null,null,null,null,null,{"$f":"AH35","v":0},{"$f":"AI35","v":0}]
[]
[null,null,null,null,"Special Rate capital allowance opening balance brought forward",null,"£m nominal",null,null,null,null,null,null,null,null,null,null,null,null,null,null,null,null,null,null,null,null,null,null,null,null,null,null,{"$f":"CHOOSE(m_identity,ENWL!AH324, NPgN!AH324, NPgY!AH324, WMID!AH324, EMID!AH324, SWALES!AH324, SWEST!AH324, LPN!AH324,SPN!AH324,EPN!AH324,SPD!AH324,SPMW!AH324,SSEH!AH324,SSES!AH324)","v":485.39487789737848}]
[null,null,null,null,"Special Rate  capital allowance pre-RIIO movement forecast",null,"£m nominal",null,null,null,null,null,null,null,null,null,null,null,null,null,null,null,null,null,null,null,null,null,null,null,null,null,null,{"$f":"CHOOSE(m_identity,ENWL!AH325, NPgN!AH325, NPgY!AH325, WMID!AH325, EMID!AH325, SWALES!AH325, SWEST!AH325, LPN!AH325,SPN!AH325,EPN!AH325,SPD!AH325,SPMW!AH325,SSEH!AH325,SSES!AH325)","v":50.733628561685826},{"$f":"CHOOSE(m_identity,ENWL!AI325, NPgN!AI325, NPgY!AI325, WMID!AI325, EMID!AI325, SWALES!AI325, SWEST!AI325, LPN!AI325,SPN!AI325,EPN!AI325,SPD!AI325,SPMW!AI325,SSEH!AI325,SSES!AI325)","v":41.340921190379355}]
[null,null,null,null,"Special Rate  capital allowance pre-RIIO movement adjustment",null,"£m nominal",null,null,null,null,null,null,null,null,null,null,null,null,null,null,null,null,null,null,null,null,null,null,null,null,null,null,{"$f":"AH36","v":0},{"$f":"AI36","v":0}]
[]
[null,null,null,null,"Deferred revenue expenditure opening balance brought forward",null,"£m nominal",null,null,null,null,null,null,null,null,null,null,null,null,null,null,null,null,null,null,null,null,null,null,null,null,null,null,{"$f":"CHOOSE(m_identity,ENWL!AH328, NPgN!AH328, NPgY!AH328, WMID!AH328, EMID!AH328, SWALES!AH328, SWEST!AH328, LPN!AH328,SPN!AH328,EPN!AH328,SPD!AH328,SPMW!AH328,SSEH!AH328,SSES!AH328)","v":660.70752098862249}]
[null,null,null,null,"Deferred revenue expenditure pre-RIIO movement forecast",null,"£m nominal",null,null,null,null,null,null,null,null,null,null,null,null,null,null,null,null,null,null,null,null,null,null,null,null,null,null,{"$f":"CHOOSE(m_identity,ENWL!AH329, NPgN!AH329, NPgY!AH329, WMID!AH329, EMID!AH329, SWALES!AH329, SWEST!AH329, LPN!AH329,SPN!AH329,EPN!AH329,SPD!AH329,SPMW!AH329,SSEH!AH329,SSES!AH329)","v":82.01743287140377},{"$f":"CHOOSE(m_identity,ENWL!AI329, NPgN!AI329, NPgY!AI329, WMID!AI329, EMID!AI329, SWALES!AI329, SWEST!AI329, LPN!AI329,SPN!AI329,EPN!AI329,SPD!AI329,SPMW!AI329,SSEH!AI329,SSES!AI329)","v":84.02040996118356}]
[null,null,null,null,"Deferred revenue expenditure  pre-RIIO movement adjustment",null,"£m nominal",null,null,null,null,null,null,null,null,null,null,null,null,null,null,null,null,null,null,null,null,null,null,null,null,null,null,{"$f":"AH37","v":0},{"$f":"AI37","v":0}]
[]
[null,null,null,null,"DRE: Gross capex up to and including 31 March 2013",null,"£m nominal",null,null,null,null,null,null,null,null,null,null,null,null,null,null,null,null,null,null,null,null,null,null,null,null,null,null,{"$f":"CHOOSE(m_identity,ENWL!AH332, NPgN!AH332, NPgY!AH332, WMID!AH332, EMID!AH332, SWALES!AH332, SWEST!AH332, LPN!AH332,SPN!AH332,EPN!AH332,SPD!AH332,SPMW!AH332,SSEH!AH332,SSES!AH332)","v":714.14505299999996}]
[null,null,null,null,"DRE: Gross capex forecast",null,"£m nominal",null,null,null,null,null,null,null,null,null,null,null,null,null,null,null,null,null,null,null,null,null,null,null,null,null,null,{"$f":"CHOOSE(m_identity,ENWL!AH333, NPgN!AH333, NPgY!AH333, WMID!AH333, EMID!AH333, SWALES!AH333, SWEST!AH333, LPN!AH333,SPN!AH333,EPN!AH333,SPD!AH333,SPMW!AH333,SSEH!AH333,SSES!AH333)","v":98.265646868779356},{"$f":"CHOOSE(m_identity,ENWL!AI333, NPgN!AI333, NPgY!AI333, WMID!AI333, EMID!AI333, SWALES!AI333, SWEST!AI333, LPN!AI333,SPN!AI333,EPN!AI333,SPD!AI333,SPMW!AI333,SSEH!AI333,SSES!AI333)","v":102.31492240669301}]
[null,null,null,null,"DRE: Gross capex adjustment",null,"£m nominal",null,null,null,null,null,null,null,null,null,null,null,null,null,null,null,null,null,null,null,null,null,null,null,null,null,null,{"$f":"AH38","v":0},{"$f":"AI38","v":0}]
[]
[null,null,null,null,"Tax loss brought forward",null,"£m nominal",null,null,null,null,null,null,null,null,null,null,null,null,null,null,null,null,null,null,null,null,null,null,null,null,null,null,{"$f":"CHOOSE(m_identity,ENWL!AH336, NPgN!AH336, NPgY!AH336, WMID!AH336, EMID!AH336, SWALES!AH336, SWEST!AH336, LPN!AH336,SPN!AH336,EPN!AH336,SPD!AH336,SPMW!AH336,SSEH!AH336,SSES!AH336)","v":0}]
[]
[null,null,"Tax pool allocation"]
[]
[null,null,null,"Tax Pool Allocation "]
[]
[null,null,null,"Allocation to 'General' pool"]
[]
[null,null,null,null,"Load Related",null,"%",null,null,null,null,null,null,null,null,null,null,null,null,null,null,null,null,null,null,null,null,null,null,null,null,null,null,null,null,{"$f":"CHOOSE(m_identity,ENWL!AJ344, NPgN!AJ344, NPgY!AJ344, WMID!AJ344, EMID!AJ344, SWALES!AJ344, SWEST!AJ344, LPN!AJ344,SPN!AJ344,EPN!AJ344,SPD!AJ344,SPMW!AJ344,SSEH!AJ344,SSES!AJ344)","v":0},{"$f":"CHOOSE(m_identity,ENWL!AK344, NPgN!AK344, NPgY!AK344, WMID!AK344, EMID!AK344, SWALES!AK344, SWEST!AK344, LPN!AK344,SPN!AK344,EPN!AK344,SPD!AK344,SPMW!AK344,SSEH!AK344,SSES!AK344)","v":0},{"$f":"CHOOSE(m_identity,ENWL!AL344, NPgN!AL344, NPgY!AL344, WMID!AL344, EMID!AL344, SWALES!AL344, SWEST!AL344, LPN!AL344,SPN!AL344,EPN!AL344,SPD!AL344,SPMW!AL344,SSEH!AL344,SSES!AL344)","v":0},{"$f":"CHOOSE(m_identity,ENWL!AM344, NPgN!AM344, NPgY!AM344, WMID!AM344, EMID!AM344, SWALES!AM344, SWEST!AM344, LPN!AM344,SPN!AM344,EPN!AM344,SPD!AM344,SPMW!AM344,SSEH!AM344,SSES!AM344)","v":0},{"$f":"CHOOSE(m_identity,ENWL!AN344, NPgN!AN344, NPgY!AN344, WMID!AN344, EMID!AN344, SWALES!AN344, SWEST!AN344, LPN!AN344,SPN!AN344,EPN!AN344,SPD!AN344,SPMW!AN344,SSEH!AN344,SSES!AN344)","v":0},{"$f":"CHOOSE(m_identity,ENWL!AO344, NPgN!AO344, NPgY!AO344, WMID!AO344, EMID!AO344, SWALES!AO344, SWEST!AO344, LPN!AO344,SPN!AO344,EPN!AO344,SPD!AO344,SPMW!AO344,SSEH!AO344,SSES!AO344)","v":0},{"$f":"CHOOSE(m_identity,ENWL!AP344, NPgN!AP344, NPgY!AP344, WMID!AP344, EMID!AP344, SWALES!AP344, SWEST!AP344, LPN!AP344,SPN!AP344,EPN!AP344,SPD!AP344,SPMW!AP344,SSEH!AP344,SSES!AP344)","v":0},{"$f":"CHOOSE(m_identity,ENWL!AQ344, NPgN!AQ344, NPgY!AQ344, WMID!AQ344, EMID!AQ344, SWALES!AQ344, SWEST!AQ344, LPN!AQ344,SPN!AQ344,EPN!AQ344,SPD!AQ344,SPMW!AQ344,SSEH!AQ344,SSES!AQ344)","v":0}]
[null,null,null,null,"Non-load related capex - asset replacement",null,"%",null,null,null,null,null,null,null,null,null,null,null,null,null,null,null,null,null,null,null,null,null,null,null,null,null,null,null,null,{"$f":"CHOOSE(m_identity,ENWL!AJ345, NPgN!AJ345, NPgY!AJ345, WMID!AJ345, EMID!AJ345, SWALES!AJ345, SWEST!AJ345, LPN!AJ345,SPN!AJ345,EPN!AJ345,SPD!AJ345,SPMW!AJ345,SSEH!AJ345,SSES!AJ345)","v":3.4058844306266857E-2},{"$f":"CHOOSE(m_identity,ENWL!AK345, NPgN!AK345, NPgY!AK345, WMID!AK345, EMID!AK345, SWALES!AK345, SWEST!AK345, LPN!AK345,SPN!AK345,EPN!AK345,SPD!AK345,SPMW!AK345,SSEH!AK345,SSES!AK345)","v":3.6292893053561252E-2},{"$f":"CHOOSE(m_identity,ENWL!AL345, NPgN!AL345, NPgY!AL345, WMID!AL345, EMID!AL345, SWALES!AL345, SWEST!AL345, LPN!AL345,SPN!AL345,EPN!AL345,SPD!AL345,SPMW!AL345,SSEH!AL345,SSES!AL345)","v":3.9481923871532841E-2},{"$f":"CHOOSE(m_identity,ENWL!AM345, NPgN!AM345, NPgY!AM345, WMID!AM345, EMID!AM345, SWALES!AM345, SWEST!AM345, LPN!AM345,SPN!AM345,EPN!AM345,SPD!AM345,SPMW!AM345,SSEH!AM345,SSES!AM345)","v":3.9547951375669944E-2},{"$f":"CHOOSE(m_identity,ENWL!AN345, NPgN!AN345, NPgY!AN345, WMID!AN345, EMID!AN345, SWALES!AN345, SWEST!AN345, LPN!AN345,SPN!AN345,EPN!AN345,SPD!AN345,SPMW!AN345,SSEH!AN345,SSES!AN345)","v":3.6514773921621176E-2},{"$f":"CHOOSE(m_identity,ENWL!AO345, NPgN!AO345, NPgY!AO345, WMID!AO345, EMID!AO345, SWALES!AO345, SWEST!AO345, LPN!AO345,SPN!AO345,EPN!AO345,SPD!AO345,SPMW!AO345,SSEH!AO345,SSES!AO345)","v":3.1716152952275867E-2},{"$f":"CHOOSE(m_identity,ENWL!AP345, NPgN!AP345, NPgY!AP345, WMID!AP345, EMID!AP345, SWALES!AP345, SWEST!AP345, LPN!AP345,SPN!AP345,EPN!AP345,SPD!AP345,SPMW!AP345,SSEH!AP345,SSES!AP345)","v":3.2952948598146299E-2},{"$f":"CHOOSE(m_identity,ENWL!AQ345, NPgN!AQ345, NPgY!AQ345, WMID!AQ345, EMID!AQ345, SWALES!AQ345, SWEST!AQ345, LPN!AQ345,SPN!AQ345,EPN!AQ345,SPD!AQ345,SPMW!AQ345,SSEH!AQ345,SSES!AQ345)","v":3.1079535836379263E-2}]
[null,null,null,null,"Non-Load Related - other",null,"%",null,null,null,null,null,null,null,null,null,null,null,null,null,null,null,null,null,null,null,null,null,null,null,null,null,null,null,null,{"$f":"CHOOSE(m_identity,ENWL!AJ346, NPgN!AJ346, NPgY!AJ346, WMID!AJ346, EMID!AJ346, SWALES!AJ346, SWEST!AJ346, LPN!AJ346,SPN!AJ346,EPN!AJ346,SPD!AJ346,SPMW!AJ346,SSEH!AJ346,SSES!AJ346)","v":0.93135190303990512},{"$f":"CHOOSE(m_identity,ENWL!AK346, NPgN!AK346, NPgY!AK346, WMID!AK346, EMID!AK346, SWALES!AK346, SWEST!AK346, LPN!AK346,SPN!AK346,EPN!AK346,SPD!AK346,SPMW!AK346,SSEH!AK346,SSES!AK346)","v":0.93902891443419256},{"$f":"CHOOSE(m_identity,ENWL!AL346, NPgN!AL346, NPgY!AL346, WMID!AL346, EMID!AL346, SWALES!AL346, SWEST!AL346, LPN!AL346,SPN!AL346,EPN!AL346,SPD!AL346,SPMW!AL346,SSEH!AL346,SSES!AL346)","v":0.93479847764792601},{"$f":"CHOOSE(m_identity,ENWL!AM346, NPgN!AM346, NPgY!AM346, WMID!AM346, EMID!AM346, SWALES!AM346, SWEST!AM346, LPN!AM346,SPN!AM346,EPN!AM346,SPD!AM346,SPMW!AM346,SSEH!AM346,SSES!AM346)","v":0.92226671923794123},{"$f":"CHOOSE(m_identity,ENWL!AN346, NPgN!AN346, NPgY!AN346, WMID!AN346, EMID!AN346, SWALES!AN346, SWEST!AN346, LPN!AN346,SPN!AN346,EPN!AN346,SPD!AN346,SPMW!AN346,SSEH!AN346,SSES!AN346)","v":0.96905889299347614},{"$f":"CHOOSE(m_identity,ENWL!AO346, NPgN!AO346, NPgY!AO346, WMID!AO346, EMID!AO346, SWALES!AO346, SWEST!AO346, LPN!AO346,SPN!AO346,EPN!AO346,SPD!AO346,SPMW!AO346,SSEH!AO346,SSES!AO346)","v":0.96474533949287322},{"$f":"CHOOSE(m_identity,ENWL!AP346, NPgN!AP346, NPgY!AP346, WMID!AP346, EMID!AP346, SWALES!AP346, SWEST!AP346, LPN!AP346,SPN!AP346,EPN!AP346,SPD!AP346,SPMW!AP346,SSEH!AP346,SSES!AP346)","v":0.97282849544829697},{"$f":"CHOOSE(m_identity,ENWL!AQ346, NPgN!AQ346, NPgY!AQ346, WMID!AQ346, EMID!AQ346, SWALES!AQ346, SWEST!AQ346, LPN!AQ346,SPN!AQ346,EPN!AQ346,SPD!AQ346,SPMW!AQ346,SSEH!AQ346,SSES!AQ346)","v":0.96363491219482766}]
[null,null,null,null,"Faults",null,"%",null,null,null,null,null,null,null,null,null,null,null,null,null,null,null,null,null,null,null,null,null,null,null,null,null,null,null,null,{"$f":"CHOOSE(m_identity,ENWL!AJ347, NPgN!AJ347, NPgY!AJ347, WMID!AJ347, EMID!AJ347, SWALES!AJ347, SWEST!AJ347, LPN!AJ347,SPN!AJ347,EPN!AJ347,SPD!AJ347,SPMW!AJ347,SSEH!AJ347,SSES!AJ347)","v":0},{"$f":"CHOOSE(m_identity,ENWL!AK347, NPgN!AK347, NPgY!AK347, WMID!AK347, EMID!AK347, SWALES!AK347, SWEST!AK347, LPN!AK347,SPN!AK347,EPN!AK347,SPD!AK347,SPMW!AK347,SSEH!AK347,SSES!AK347)","v":0},{"$f":"CHOOSE(m_identity,ENWL!AL347, NPgN!AL347, NPgY!AL347, WMID!AL347, EMID!AL347, SWALES!AL347, SWEST!AL347, LPN!AL347,SPN!AL347,EPN!AL347,SPD!AL347,SPMW!AL347,SSEH!AL347,SSES!AL347)","v":0},{"$f":"CHOOSE(m_identity,ENWL!AM347, NPgN!AM347, NPgY!AM347, WMID!AM347, EMID!AM347, SWALES!AM347, SWEST!AM347, LPN!AM347,SPN!AM347,EPN!AM347,SPD!AM347,SPMW!AM347,SSEH!AM347,SSES!AM347)","v":0},{"$f":"CHOOSE(m_identity,ENWL!AN347, NPgN!AN347, NPgY!AN347, WMID!AN347, EMID!AN347, SWALES!AN347, SWEST!AN347, LPN!AN347,SPN!AN347,EPN!AN347,SPD!AN347,SPMW!AN347,SSEH!AN347,SSES!AN347)","v":0},{"$f":"CHOOSE(m_identity,ENWL!AO347, NPgN!AO347, NPgY!AO347, WMID!AO347, EMID!AO347, SWALES!AO347, SWEST!AO347, LPN!AO347,SPN!AO347,EPN!AO347,SPD!AO347,SPMW!AO347,SSEH!AO347,SSES!AO347)","v":0},{"$f":"CHOOSE(m_identity,ENWL!AP347, NPgN!AP347, NPgY!AP347, WMID!AP347, EMID!AP347, SWALES!AP347, SWEST!AP347, LPN!AP347,SPN!AP347,EPN!AP347,SPD!AP347,SPMW!AP347,SSEH!AP347,SSES!AP347)","v":0},{"$f":"CHOOSE(m_identity,ENWL!AQ347, NPgN!AQ347, NPgY!AQ347, WMID!AQ347, EMID!AQ347, SWALES!AQ347, SWEST!AQ347, LPN!AQ347,SPN!AQ347,EPN!AQ347,SPD!AQ347,SPMW!AQ347,SSEH!AQ347,SSES!AQ347)","v":0}]
[null,null,null,null,"Tree cutting",null,"%",null,null,null,null,null,null,null,null,null,null,null,null,null,null,null,null,null,null,null,null,null,null,null,null,null,null,null,null,{"$f":"CHOOSE(m_identity,ENWL!AJ348, NPgN!AJ348, NPgY!AJ348, WMID!AJ348, EMID!AJ348, SWALES!AJ348, SWEST!AJ348, LPN!AJ348,SPN!AJ348,EPN!AJ348,SPD!AJ348,SPMW!AJ348,SSEH!AJ348,SSES!AJ348)","v":0},{"$f":"CHOOSE(m_identity,ENWL!AK348, NPgN!AK348, NPgY!AK348, WMID!AK348, EMID!AK348, SWALES!AK348, SWEST!AK348, LPN!AK348,SPN!AK348,EPN!AK348,SPD!AK348,SPMW!AK348,SSEH!AK348,SSES!AK348)","v":0},{"$f":"CHOOSE(m_identity,ENWL!AL348, NPgN!AL348, NPgY!AL348, WMID!AL348, EMID!AL348, SWALES!AL348, SWEST!AL348, LPN!AL348,SPN!AL348,EPN!AL348,SPD!AL348,SPMW!AL348,SSEH!AL348,SSES!AL348)","v":0},{"$f":"CHOOSE(m_identity,ENWL!AM348, NPgN!AM348, NPgY!AM348, WMID!AM348, EMID!AM348, SWALES!AM348, SWEST!AM348, LPN!AM348,SPN!AM348,EPN!AM348,SPD!AM348,SPMW!AM348,SSEH!AM348,SSES!AM348)","v":0},{"$f":"CHOOSE(m_identity,ENWL!AN348, NPgN!AN348, NPgY!AN348, WMID!AN348, EMID!AN348, SWALES!AN348, SWEST!AN348, LPN!AN348,SPN!AN348,EPN!AN348,SPD!AN348,SPMW!AN348,SSEH!AN348,SSES!AN348)","v":0},{"$f":"CHOOSE(m_identity,ENWL!AO348, NPgN!AO348, NPgY!AO348, WMID!AO348, EMID!AO348, SWALES!AO348, SWEST!AO348, LPN!AO348,SPN!AO348,EPN!AO348,SPD!AO348,SPMW!AO348,SSEH!AO348,SSES!AO348)","v":0},{"$f":"CHOOSE(m_identity,ENWL!AP348, NPgN!AP348, NPgY!AP348, WMID!AP348, EMID!AP348, SWALES!AP348, SWEST!AP348, LPN!AP348,SPN!AP348,EPN!AP348,SPD!AP348,SPMW!AP348,SSEH!AP348,SSES!AP348)","v":0},{"$f":"CHOOSE(m_identity,ENWL!AQ348, NPgN!AQ348, NPgY!AQ348, WMID!AQ348, EMID!AQ348, SWALES!AQ348, SWEST!AQ348, LPN!AQ348,SPN!AQ348,EPN!AQ348,SPD!AQ348,SPMW!AQ348,SSEH!AQ348,SSES!AQ348)","v":0}]
[null,null,null,null,"Controllable Opex",null,"%",null,null,null,null,null,null,null,null,null,null,null,null,null,null,null,null,null,null,null,null,null,null,null,null,null,null,null,null,{"$f":"CHOOSE(m_identity,ENWL!AJ349, NPgN!AJ349, NPgY!AJ349, WMID!AJ349, EMID!AJ349, SWALES!AJ349, SWEST!AJ349, LPN!AJ349,SPN!AJ349,EPN!AJ349,SPD!AJ349,SPMW!AJ349,SSEH!AJ349,SSES!AJ349)","v":6.3695218807986745E-2},{"$f":"CHOOSE(m_identity,ENWL!AK349, NPgN!AK349, NPgY!AK349, WMID!AK349, EMID!AK349, SWALES!AK349, SWEST!AK349, LPN!AK349,SPN!AK349,EPN!AK349,SPD!AK349,SPMW!AK349,SSEH!AK349,SSES!AK349)","v":6.3382110248750553E-2},{"$f":"CHOOSE(m_identity,ENWL!AL349, NPgN!AL349, NPgY!AL349, WMID!AL349, EMID!AL349, SWALES!AL349, SWEST!AL349, LPN!AL349,SPN!AL349,EPN!AL349,SPD!AL349,SPMW!AL349,SSEH!AL349,SSES!AL349)","v":6.300093170035842E-2},{"$f":"CHOOSE(m_identity,ENWL!AM349, NPgN!AM349, NPgY!AM349, WMID!AM349, EMID!AM349, SWALES!AM349, SWEST!AM349, LPN!AM349,SPN!AM349,EPN!AM349,SPD!AM349,SPMW!AM349,SSEH!AM349,SSES!AM349)","v":6.2988127253664414E-2},{"$f":"CHOOSE(m_identity,ENWL!AN349, NPgN!AN349, NPgY!AN349, WMID!AN349, EMID!AN349, SWALES!AN349, SWEST!AN349, LPN!AN349,SPN!AN349,EPN!AN349,SPD!AN349,SPMW!AN349,SSEH!AN349,SSES!AN349)","v":6.3236791356880498E-2},{"$f":"CHOOSE(m_identity,ENWL!AO349, NPgN!AO349, NPgY!AO349, WMID!AO349, EMID!AO349, SWALES!AO349, SWEST!AO349, LPN!AO349,SPN!AO349,EPN!AO349,SPD!AO349,SPMW!AO349,SSEH!AO349,SSES!AO349)","v":6.3879708717616349E-2},{"$f":"CHOOSE(m_identity,ENWL!AP349, NPgN!AP349, NPgY!AP349, WMID!AP349, EMID!AP349, SWALES!AP349, SWEST!AP349, LPN!AP349,SPN!AP349,EPN!AP349,SPD!AP349,SPMW!AP349,SSEH!AP349,SSES!AP349)","v":6.5175841361677658E-2},{"$f":"CHOOSE(m_identity,ENWL!AQ349, NPgN!AQ349, NPgY!AQ349, WMID!AQ349, EMID!AQ349, SWALES!AQ349, SWEST!AQ349, LPN!AQ349,SPN!AQ349,EPN!AQ349,SPD!AQ349,SPMW!AQ349,SSEH!AQ349,SSES!AQ349)","v":6.5434074042936566E-2}]
[]
[null,null,null,"Allocation to 'Special Rate' pool"]
[]
[null,null,null,null,"Load Related",null,"%",null,null,null,null,null,null,null,null,null,null,null,null,null,null,null,null,null,null,null,null,null,null,null,null,null,null,null,null,{"$f":"CHOOSE(m_identity,ENWL!AJ353, NPgN!AJ353, NPgY!AJ353, WMID!AJ353, EMID!AJ353, SWALES!AJ353, SWEST!AJ353, LPN!AJ353,SPN!AJ353,EPN!AJ353,SPD!AJ353,SPMW!AJ353,SSEH!AJ353,SSES!AJ353)","v":0.93858780710420942},{"$f":"CHOOSE(m_identity,ENWL!AK353, NPgN!AK353, NPgY!AK353, WMID!AK353, EMID!AK353, SWALES!AK353, SWEST!AK353, LPN!AK353,SPN!AK353,EPN!AK353,SPD!AK353,SPMW!AK353,SSEH!AK353,SSES!AK353)","v":0.94229582746831353},{"$f":"CHOOSE(m_identity,ENWL!AL353, NPgN!AL353, NPgY!AL353, WMID!AL353, EMID!AL353, SWALES!AL353, SWEST!AL353, LPN!AL353,SPN!AL353,EPN!AL353,SPD!AL353,SPMW!AL353,SSEH!AL353,SSES!AL353)","v":0.94492750962562133},{"$f":"CHOOSE(m_identity,ENWL!AM353, NPgN!AM353, NPgY!AM353, WMID!AM353, EMID!AM353, SWALES!AM353, SWEST!AM353, LPN!AM353,SPN!AM353,EPN!AM353,SPD!AM353,SPMW!AM353,SSEH!AM353,SSES!AM353)","v":0.95330311927319034},{"$f":"CHOOSE(m_identity,ENWL!AN353, NPgN!AN353, NPgY!AN353, WMID!AN353, EMID!AN353, SWALES!AN353, SWEST!AN353, LPN!AN353,SPN!AN353,EPN!AN353,SPD!AN353,SPMW!AN353,SSEH!AN353,SSES!AN353)","v":0.95712396717811676},{"$f":"CHOOSE(m_identity,ENWL!AO353, NPgN!AO353, NPgY!AO353, WMID!AO353, EMID!AO353, SWALES!AO353, SWEST!AO353, LPN!AO353,SPN!AO353,EPN!AO353,SPD!AO353,SPMW!AO353,SSEH!AO353,SSES!AO353)","v":0.95864979176449161},{"$f":"CHOOSE(m_identity,ENWL!AP353, NPgN!AP353, NPgY!AP353, WMID!AP353, EMID!AP353, SWALES!AP353, SWEST!AP353, LPN!AP353,SPN!AP353,EPN!AP353,SPD!AP353,SPMW!AP353,SSEH!AP353,SSES!AP353)","v":0.95946403394372803},{"$f":"CHOOSE(m_identity,ENWL!AQ353, NPgN!AQ353, NPgY!AQ353, WMID!AQ353, EMID!AQ353, SWALES!AQ353, SWEST!AQ353, LPN!AQ353,SPN!AQ353,EPN!AQ353,SPD!AQ353,SPMW!AQ353,SSEH!AQ353,SSES!AQ353)","v":0.96677711631808083}]
[null,null,null,null,"Non-load related capex - asset replacement",null,"%",null,null,null,null,null,null,null,null,null,null,null,null,null,null,null,null,null,null,null,null,null,null,null,null,null,null,null,null,{"$f":"CHOOSE(m_identity,ENWL!AJ354, NPgN!AJ354, NPgY!AJ354, WMID!AJ354, EMID!AJ354, SWALES!AJ354, SWEST!AJ354, LPN!AJ354,SPN!AJ354,EPN!AJ354,SPD!AJ354,SPMW!AJ354,SSEH!AJ354,SSES!AJ354)","v":0.32425693325634614},{"$f":"CHOOSE(m_identity,ENWL!AK354, NPgN!AK354, NPgY!AK354, WMID!AK354, EMID!AK354, SWALES!AK354, SWEST!AK354, LPN!AK354,SPN!AK354,EPN!AK354,SPD!AK354,SPMW!AK354,SSEH!AK354,SSES!AK354)","v":0.32095965593867115},{"$f":"CHOOSE(m_identity,ENWL!AL354, NPgN!AL354, NPgY!AL354, WMID!AL354, EMID!AL354, SWALES!AL354, SWEST!AL354, LPN!AL354,SPN!AL354,EPN!AL354,SPD!AL354,SPMW!AL354,SSEH!AL354,SSES!AL354)","v":0.31967893640607475},{"$f":"CHOOSE(m_identity,ENWL!AM354, NPgN!AM354, NPgY!AM354, WMID!AM354, EMID!AM354, SWALES!AM354, SWEST!AM354, LPN!AM354,SPN!AM354,EPN!AM354,SPD!AM354,SPMW!AM354,SSEH!AM354,SSES!AM354)","v":0.32112088043817472},{"$f":"CHOOSE(m_identity,ENWL!AN354, NPgN!AN354, NPgY!AN354, WMID!AN354, EMID!AN354, SWALES!AN354, SWEST!AN354, LPN!AN354,SPN!AN354,EPN!AN354,SPD!AN354,SPMW!AN354,SSEH!AN354,SSES!AN354)","v":0.32284783839956233},{"$f":"CHOOSE(m_identity,ENWL!AO354, NPgN!AO354, NPgY!AO354, WMID!AO354, EMID!AO354, SWALES!AO354, SWEST!AO354, LPN!AO354,SPN!AO354,EPN!AO354,SPD!AO354,SPMW!AO354,SSEH!AO354,SSES!AO354)","v":0.33432680192077413},{"$f":"CHOOSE(m_identity,ENWL!AP354, NPgN!AP354, NPgY!AP354, WMID!AP354, EMID!AP354, SWALES!AP354, SWEST!AP354, LPN!AP354,SPN!AP354,EPN!AP354,SPD!AP354,SPMW!AP354,SSEH!AP354,SSES!AP354)","v":0.31356133576916556},{"$f":"CHOOSE(m_identity,ENWL!AQ354, NPgN!AQ354, NPgY!AQ354, WMID!AQ354, EMID!AQ354, SWALES!AQ354, SWEST!AQ354, LPN!AQ354,SPN!AQ354,EPN!AQ354,SPD!AQ354,SPMW!AQ354,SSEH!AQ354,SSES!AQ354)","v":0.31504966531714124}]
[null,null,null,null,"Non-Load Related - other",null,"%",null,null,null,null,null,null,null,null,null,null,null,null,null,null,null,null,null,null,null,null,null,null,null,null,null,null,null,null,{"$f":"CHOOSE(m_identity,ENWL!AJ355, NPgN!AJ355, NPgY!AJ355, WMID!AJ355, EMID!AJ355, SWALES!AJ355, SWEST!AJ355, LPN!AJ355,SPN!AJ355,EPN!AJ355,SPD!AJ355,SPMW!AJ355,SSEH!AJ355,SSES!AJ355)","v":2.0574675203960443E-2},{"$f":"CHOOSE(m_identity,ENWL!AK355, NPgN!AK355, NPgY!AK355, WMID!AK355, EMID!AK355, SWALES!AK355, SWEST!AK355, LPN!AK355,SPN!AK355,EPN!AK355,SPD!AK355,SPMW!AK355,SSEH!AK355,SSES!AK355)","v":4.1681847745024293E-2},{"$f":"CHOOSE(m_identity,ENWL!AL355, NPgN!AL355, NPgY!AL355, WMID!AL355, EMID!AL355, SWALES!AL355, SWEST!AL355, LPN!AL355,SPN!AL355,EPN!AL355,SPD!AL355,SPMW!AL355,SSEH!AL355,SSES!AL355)","v":5.5425636595346037E-2},{"$f":"CHOOSE(m_identity,ENWL!AM355, NPgN!AM355, NPgY!AM355, WMID!AM355, EMID!AM355, SWALES!AM355, SWEST!AM355, LPN!AM355,SPN!AM355,EPN!AM355,SPD!AM355,SPMW!AM355,SSEH!AM355,SSES!AM355)","v":3.2174199308531701E-2},{"$f":"CHOOSE(m_identity,ENWL!AN355, NPgN!AN355, NPgY!AN355, WMID!AN355, EMID!AN355, SWALES!AN355, SWEST!AN355, LPN!AN355,SPN!AN355,EPN!AN355,SPD!AN355,SPMW!AN355,SSEH!AN355,SSES!AN355)","v":2.0845281223804562E-2},{"$f":"CHOOSE(m_identity,ENWL!AO355, NPgN!AO355, NPgY!AO355, WMID!AO355, EMID!AO355, SWALES!AO355, SWEST!AO355, LPN!AO355,SPN!AO355,EPN!AO355,SPD!AO355,SPMW!AO355,SSEH!AO355,SSES!AO355)","v":1.95455707383351E-2},{"$f":"CHOOSE(m_identity,ENWL!AP355, NPgN!AP355, NPgY!AP355, WMID!AP355, EMID!AP355, SWALES!AP355, SWEST!AP355, LPN!AP355,SPN!AP355,EPN!AP355,SPD!AP355,SPMW!AP355,SSEH!AP355,SSES!AP355)","v":2.1040817553311539E-2},{"$f":"CHOOSE(m_identity,ENWL!AQ355, NPgN!AQ355, NPgY!AQ355, WMID!AQ355, EMID!AQ355, SWALES!AQ355, SWEST!AQ355, LPN!AQ355,SPN!AQ355,EPN!AQ355,SPD!AQ355,SPMW!AQ355,SSEH!AQ355,SSES!AQ355)","v":2.5049835481373704E-2}]
[null,null,null,null,"Faults",null,"%",null,null,null,null,null,null,null,null,null,null,null,null,null,null,null,null,null,null,null,null,null,null,null,null,null,null,null,null,{"$f":"CHOOSE(m_identity,ENWL!AJ356, NPgN!AJ356, NPgY!AJ356, WMID!AJ356, EMID!AJ356, SWALES!AJ356, SWEST!AJ356, LPN!AJ356,SPN!AJ356,EPN!AJ356,SPD!AJ356,SPMW!AJ356,SSEH!AJ356,SSES!AJ356)","v":0},{"$f":"CHOOSE(m_identity,ENWL!AK356, NPgN!AK356, NPgY!AK356, WMID!AK356, EMID!AK356, SWALES!AK356, SWEST!AK356, LPN!AK356,SPN!AK356,EPN!AK356,SPD!AK356,SPMW!AK356,SSEH!AK356,SSES!AK356)","v":0},{"$f":"CHOOSE(m_identity,ENWL!AL356, NPgN!AL356, NPgY!AL356, WMID!AL356, EMID!AL356, SWALES!AL356, SWEST!AL356, LPN!AL356,SPN!AL356,EPN!AL356,SPD!AL356,SPMW!AL356,SSEH!AL356,SSES!AL356)","v":0},{"$f":"CHOOSE(m_identity,ENWL!AM356, NPgN!AM356, NPgY!AM356, WMID!AM356, EMID!AM356, SWALES!AM356, SWEST!AM356, LPN!AM356,SPN!AM356,EPN!AM356,SPD!AM356,SPMW!AM356,SSEH!AM356,SSES!AM356)","v":0},{"$f":"CHOOSE(m_identity,ENWL!AN356, NPgN!AN356, NPgY!AN356, WMID!AN356, EMID!AN356, SWALES!AN356, SWEST!AN356, LPN!AN356,SPN!AN356,EPN!AN356,SPD!AN356,SPMW!AN356,SSEH!AN356,SSES!AN356)","v":0},{"$f":"CHOOSE(m_identity,ENWL!AO356, NPgN!AO356, NPgY!AO356, WMID!AO356, EMID!AO356, SWALES!AO356, SWEST!AO356, LPN!AO356,SPN!AO356,EPN!AO356,SPD!AO356,SPMW!AO356,SSEH!AO356,SSES!AO356)","v":0},{"$f":"CHOOSE(m_identity,ENWL!AP356, NPgN!AP356, NPgY!AP356, WMID!AP356, EMID!AP356, SWALES!AP356, SWEST!AP356, LPN!AP356,SPN!AP356,EPN!AP356,SPD!AP356,SPMW!AP356,SSEH!AP356,SSES!AP356)","v":0},{"$f":"CHOOSE(m_identity,ENWL!AQ356, NPgN!AQ356, NPgY!AQ356, WMID!AQ356, EMID!AQ356, SWALES!AQ356, SWEST!AQ356, LPN!AQ356,SPN!AQ356,EPN!AQ356,SPD!AQ356,SPMW!AQ356,SSEH!AQ356,SSES!AQ356)","v":0}]
[null,null,null,null,"Tree cutting",null,"%",null,null,null,null,null,null,null,null,null,null,null,null,null,null,null,null,null,null,null,null,null,null,null,null,null,null,null,null,{"$f":"CHOOSE(m_identity,ENWL!AJ357, NPgN!AJ357, NPgY!AJ357, WMID!AJ357, EMID!AJ357, SWALES!AJ357, SWEST!AJ357, LPN!AJ357,SPN!AJ357,EPN!AJ357,SPD!AJ357,SPMW!AJ357,SSEH!AJ357,SSES!AJ357)","v":0},{"$f":"CHOOSE(m_identity,ENWL!AK357, NPgN!AK357, NPgY!AK357, WMID!AK357, EMID!AK357, SWALES!AK357, SWEST!AK357, LPN!AK357,SPN!AK357,EPN!AK357,SPD!AK357,SPMW!AK357,SSEH!AK357,SSES!AK357)","v":0},{"$f":"CHOOSE(m_identity,ENWL!AL357, NPgN!AL357, NPgY!AL357, WMID!AL357, EMID!AL357, SWALES!AL357, SWEST!AL357, LPN!AL357,SPN!AL357,EPN!AL357,SPD!AL357,SPMW!AL357,SSEH!AL357,SSES!AL357)","v":0},{"$f":"CHOOSE(m_identity,ENWL!AM357, NPgN!AM357, NPgY!AM357, WMID!AM357, EMID!AM357, SWALES!AM357, SWEST!AM357, LPN!AM357,SPN!AM357,EPN!AM357,SPD!AM357,SPMW!AM357,SSEH!AM357,SSES!AM357)","v":0},{"$f":"CHOOSE(m_identity,ENWL!AN357, NPgN!AN357, NPgY!AN357, WMID!AN357, EMID!AN357, SWALES!AN357, SWEST!AN357, LPN!AN357,SPN!AN357,EPN!AN357,SPD!AN357,SPMW!AN357,SSEH!AN357,SSES!AN357)","v":0},{"$f":"CHOOSE(m_identity,ENWL!AO357, NPgN!AO357, NPgY!AO357, WMID!AO357, EMID!AO357, SWALES!AO357, SWEST!AO357, LPN!AO357,SPN!AO357,EPN!AO357,SPD!AO357,SPMW!AO357,SSEH!AO357,SSES!AO357)","v":0},{"$f":"CHOOSE(m_identity,ENWL!AP357, NPgN!AP357, NPgY!AP357, WMID!AP357, EMID!AP357, SWALES!AP357, SWEST!AP357, LPN!AP357,SPN!AP357,EPN!AP357,SPD!AP357,SPMW!AP357,SSEH!AP357,SSES!AP357)","v":0},{"$f":"CHOOSE(m_identity,ENWL!AQ357, NPgN!AQ357, NPgY!AQ357, WMID!AQ357, EMID!AQ357, SWALES!AQ357, SWEST!AQ357, LPN!AQ357,SPN!AQ357,EPN!AQ357,SPD!AQ357,SPMW!AQ357,SSEH!AQ357,SSES!AQ357)","v":0}]
[null,null,null,null,"Controllable Opex",null,"%",null,null,null,null,null,null,null,null,null,null,null,null,null,null,null,null,null,null,null,null,null,null,null,null,null,null,null,null,{"$f":"CHOOSE(m_identity,ENWL!AJ358, NPgN!AJ358, NPgY!AJ358, WMID!AJ358, EMID!AJ358, SWALES!AJ358, SWEST!AJ358, LPN!AJ358,SPN!AJ358,EPN!AJ358,SPD!AJ358,SPMW!AJ358,SSEH!AJ358,SSES!AJ358)","v":0.14351037923152751},{"$f":"CHOOSE(m_identity,ENWL!AK358, NPgN!AK358, NPgY!AK358, WMID!AK358, EMID!AK358, SWALES!AK358, SWEST!AK358, LPN!AK358,SPN!AK358,EPN!AK358,SPD!AK358,SPMW!AK358,SSEH!AK358,SSES!AK358)","v":0.14282655714975923},{"$f":"CHOOSE(m_identity,ENWL!AL358, NPgN!AL358, NPgY!AL358, WMID!AL358, EMID!AL358, SWALES!AL358, SWEST!AL358, LPN!AL358,SPN!AL358,EPN!AL358,SPD!AL358,SPMW!AL358,SSEH!AL358,SSES!AL358)","v":0.14197257356755966},{"$f":"CHOOSE(m_identity,ENWL!AM358, NPgN!AM358, NPgY!AM358, WMID!AM358, EMID!AM358, SWALES!AM358, SWEST!AM358, LPN!AM358,SPN!AM358,EPN!AM358,SPD!AM358,SPMW!AM358,SSEH!AM358,SSES!AM358)","v":0.14193964905690498},{"$f":"CHOOSE(m_identity,ENWL!AN358, NPgN!AN358, NPgY!AN358, WMID!AN358, EMID!AN358, SWALES!AN358, SWEST!AN358, LPN!AN358,SPN!AN358,EPN!AN358,SPD!AN358,SPMW!AN358,SSEH!AN358,SSES!AN358)","v":0.14248870787907975},{"$f":"CHOOSE(m_identity,ENWL!AO358, NPgN!AO358, NPgY!AO358, WMID!AO358, EMID!AO358, SWALES!AO358, SWEST!AO358, LPN!AO358,SPN!AO358,EPN!AO358,SPD!AO358,SPMW!AO358,SSEH!AO358,SSES!AO358)","v":0.14392982911500699},{"$f":"CHOOSE(m_identity,ENWL!AP358, NPgN!AP358, NPgY!AP358, WMID!AP358, EMID!AP358, SWALES!AP358, SWEST!AP358, LPN!AP358,SPN!AP358,EPN!AP358,SPD!AP358,SPMW!AP358,SSEH!AP358,SSES!AP358)","v":0.14685043996730032},{"$f":"CHOOSE(m_identity,ENWL!AQ358, NPgN!AQ358, NPgY!AQ358, WMID!AQ358, EMID!AQ358, SWALES!AQ358, SWEST!AQ358, LPN!AQ358,SPN!AQ358,EPN!AQ358,SPD!AQ358,SPMW!AQ358,SSEH!AQ358,SSES!AQ358)","v":0.1474170558787492}]
[]
[null,null,null,"Allocation to 'Deferred Revenue' pool"]
[]
[null,null,null,null,"Load Related",null,"%",null,null,null,null,null,null,null,null,null,null,null,null,null,null,null,null,null,null,null,null,null,null,null,null,null,null,null,null,{"$f":"CHOOSE(m_identity,ENWL!AJ362, NPgN!AJ362, NPgY!AJ362, WMID!AJ362, EMID!AJ362, SWALES!AJ362, SWEST!AJ362, LPN!AJ362,SPN!AJ362,EPN!AJ362,SPD!AJ362,SPMW!AJ362,SSEH!AJ362,SSES!AJ362)","v":0},{"$f":"CHOOSE(m_identity,ENWL!AK362, NPgN!AK362, NPgY!AK362, WMID!AK362, EMID!AK362, SWALES!AK362, SWEST!AK362, LPN!AK362,SPN!AK362,EPN!AK362,SPD!AK362,SPMW!AK362,SSEH!AK362,SSES!AK362)","v":0},{"$f":"CHOOSE(m_identity,ENWL!AL362, NPgN!AL362, NPgY!AL362, WMID!AL362, EMID!AL362, SWALES!AL362, SWEST!AL362, LPN!AL362,SPN!AL362,EPN!AL362,SPD!AL362,SPMW!AL362,SSEH!AL362,SSES!AL362)","v":0},{"$f":"CHOOSE(m_identity,ENWL!AM362, NPgN!AM362, NPgY!AM362, WMID!AM362, EMID!AM362, SWALES!AM362, SWEST!AM362, LPN!AM362,SPN!AM362,EPN!AM362,SPD!AM362,SPMW!AM362,SSEH!AM362,SSES!AM362)","v":0},{"$f":"CHOOSE(m_identity,ENWL!AN362, NPgN!AN362, NPgY!AN362, WMID!AN362, EMID!AN362, SWALES!AN362, SWEST!AN362, LPN!AN362,SPN!AN362,EPN!AN362,SPD!AN362,SPMW!AN362,SSEH!AN362,SSES!AN362)","v":0},{"$f":"CHOOSE(m_identity,ENWL!AO362, NPgN!AO362, NPgY!AO362, WMID!AO362, EMID!AO362, SWALES!AO362, SWEST!AO362, LPN!AO362,SPN!AO362,EPN!AO362,SPD!AO362,SPMW!AO362,SSEH!AO362,SSES!AO362)","v":0},{"$f":"CHOOSE(m_identity,ENWL!AP362, NPgN!AP362, NPgY!AP362, WMID!AP362, EMID!AP362, SWALES!AP362, SWEST!AP362, LPN!AP362,SPN!AP362,EPN!AP362,SPD!AP362,SPMW!AP362,SSEH!AP362,SSES!AP362)","v":0},{"$f":"CHOOSE(m_identity,ENWL!AQ362, NPgN!AQ362, NPgY!AQ362, WMID!AQ362, EMID!AQ362, SWALES!AQ362, SWEST!AQ362, LPN!AQ362,SPN!AQ362,EPN!AQ362,SPD!AQ362,SPMW!AQ362,SSEH!AQ362,SSES!AQ362)","v":0}]
[null,null,null,null,"Non-load related capex - asset replacement",null,"%",null,null,null,null,null,null,null,null,null,null,null,null,null,null,null,null,null,null,null,null,null,null,null,null,null,null,null,null,{"$f":"CHOOSE(m_identity,ENWL!AJ363, NPgN!AJ363, NPgY!AJ363, WMID!AJ363, EMID!AJ363, SWALES!AJ363, SWEST!AJ363, LPN!AJ363,SPN!AJ363,EPN!AJ363,SPD!AJ363,SPMW!AJ363,SSEH!AJ363,SSES!AJ363)","v":0.55943144560603641},{"$f":"CHOOSE(m_identity,ENWL!AK363, NPgN!AK363, NPgY!AK363, WMID!AK363, EMID!AK363, SWALES!AK363, SWEST!AK363, LPN!AK363,SPN!AK363,EPN!AK363,SPD!AK363,SPMW!AK363,SSEH!AK363,SSES!AK363)","v":0.56252686863717449},{"$f":"CHOOSE(m_identity,ENWL!AL363, NPgN!AL363, NPgY!AL363, WMID!AL363, EMID!AL363, SWALES!AL363, SWEST!AL363, LPN!AL363,SPN!AL363,EPN!AL363,SPD!AL363,SPMW!AL363,SSEH!AL363,SSES!AL363)","v":0.5597989190109236},{"$f":"CHOOSE(m_identity,ENWL!AM363, NPgN!AM363, NPgY!AM363, WMID!AM363, EMID!AM363, SWALES!AM363, SWEST!AM363, LPN!AM363,SPN!AM363,EPN!AM363,SPD!AM363,SPMW!AM363,SSEH!AM363,SSES!AM363)","v":0.56049684550599777},{"$f":"CHOOSE(m_identity,ENWL!AN363, NPgN!AN363, NPgY!AN363, WMID!AN363, EMID!AN363, SWALES!AN363, SWEST!AN363, LPN!AN363,SPN!AN363,EPN!AN363,SPD!AN363,SPMW!AN363,SSEH!AN363,SSES!AN363)","v":0.56168358698383114},{"$f":"CHOOSE(m_identity,ENWL!AO363, NPgN!AO363, NPgY!AO363, WMID!AO363, EMID!AO363, SWALES!AO363, SWEST!AO363, LPN!AO363,SPN!AO363,EPN!AO363,SPD!AO363,SPMW!AO363,SSEH!AO363,SSES!AO363)","v":0.55117283356618862},{"$f":"CHOOSE(m_identity,ENWL!AP363, NPgN!AP363, NPgY!AP363, WMID!AP363, EMID!AP363, SWALES!AP363, SWEST!AP363, LPN!AP363,SPN!AP363,EPN!AP363,SPD!AP363,SPMW!AP363,SSEH!AP363,SSES!AP363)","v":0.57282980422734342},{"$f":"CHOOSE(m_identity,ENWL!AQ363, NPgN!AQ363, NPgY!AQ363, WMID!AQ363, EMID!AQ363, SWALES!AQ363, SWEST!AQ363, LPN!AQ363,SPN!AQ363,EPN!AQ363,SPD!AQ363,SPMW!AQ363,SSEH!AQ363,SSES!AQ363)","v":0.57489716247429135}]
[null,null,null,null,"Non-Load Related - other",null,"%",null,null,null,null,null,null,null,null,null,null,null,null,null,null,null,null,null,null,null,null,null,null,null,null,null,null,null,null,{"$f":"CHOOSE(m_identity,ENWL!AJ364, NPgN!AJ364, NPgY!AJ364, WMID!AJ364, EMID!AJ364, SWALES!AJ364, SWEST!AJ364, LPN!AJ364,SPN!AJ364,EPN!AJ364,SPD!AJ364,SPMW!AJ364,SSEH!AJ364,SSES!AJ364)","v":6.3894286820074409E-3},{"$f":"CHOOSE(m_identity,ENWL!AK364, NPgN!AK364, NPgY!AK364, WMID!AK364, EMID!AK364, SWALES!AK364, SWEST!AK364, LPN!AK364,SPN!AK364,EPN!AK364,SPD!AK364,SPMW!AK364,SSEH!AK364,SSES!AK364)","v":2.338446891098397E-3},{"$f":"CHOOSE(m_identity,ENWL!AL364, NPgN!AL364, NPgY!AL364, WMID!AL364, EMID!AL364, SWALES!AL364, SWEST!AL364, LPN!AL364,SPN!AL364,EPN!AL364,SPD!AL364,SPMW!AL364,SSEH!AL364,SSES!AL364)","v":7.5067402838111116E-4},{"$f":"CHOOSE(m_identity,ENWL!AM364, NPgN!AM364, NPgY!AM364, WMID!AM364, EMID!AM364, SWALES!AM364, SWEST!AM364, LPN!AM364,SPN!AM364,EPN!AM364,SPD!AM364,SPMW!AM364,SSEH!AM364,SSES!AM364)","v":6.1071917181307256E-3},{"$f":"CHOOSE(m_identity,ENWL!AN364, NPgN!AN364, NPgY!AN364, WMID!AN364, EMID!AN364, SWALES!AN364, SWEST!AN364, LPN!AN364,SPN!AN364,EPN!AN364,SPD!AN364,SPMW!AN364,SSEH!AN364,SSES!AN364)","v":1.134086812046019E-3},{"$f":"CHOOSE(m_identity,ENWL!AO364, NPgN!AO364, NPgY!AO364, WMID!AO364, EMID!AO364, SWALES!AO364, SWEST!AO364, LPN!AO364,SPN!AO364,EPN!AO364,SPD!AO364,SPMW!AO364,SSEH!AO364,SSES!AO364)","v":1.9438226930175162E-3},{"$f":"CHOOSE(m_identity,ENWL!AP364, NPgN!AP364, NPgY!AP364, WMID!AP364, EMID!AP364, SWALES!AP364, SWEST!AP364, LPN!AP364,SPN!AP364,EPN!AP364,SPD!AP364,SPMW!AP364,SSEH!AP364,SSES!AP364)","v":6.0461485407456439E-4},{"$f":"CHOOSE(m_identity,ENWL!AQ364, NPgN!AQ364, NPgY!AQ364, WMID!AQ364, EMID!AQ364, SWALES!AQ364, SWEST!AQ364, LPN!AQ364,SPN!AQ364,EPN!AQ364,SPD!AQ364,SPMW!AQ364,SSEH!AQ364,SSES!AQ364)","v":1.2348497672742249E-3}]
[null,null,null,null,"Faults",null,"%",null,null,null,null,null,null,null,null,null,null,null,null,null,null,null,null,null,null,null,null,null,null,null,null,null,null,null,null,{"$f":"CHOOSE(m_identity,ENWL!AJ365, NPgN!AJ365, NPgY!AJ365, WMID!AJ365, EMID!AJ365, SWALES!AJ365, SWEST!AJ365, LPN!AJ365,SPN!AJ365,EPN!AJ365,SPD!AJ365,SPMW!AJ365,SSEH!AJ365,SSES!AJ365)","v":0.72030067719989288},{"$f":"CHOOSE(m_identity,ENWL!AK365, NPgN!AK365, NPgY!AK365, WMID!AK365, EMID!AK365, SWALES!AK365, SWEST!AK365, LPN!AK365,SPN!AK365,EPN!AK365,SPD!AK365,SPMW!AK365,SSEH!AK365,SSES!AK365)","v":0.72101336927186155},{"$f":"CHOOSE(m_identity,ENWL!AL365, NPgN!AL365, NPgY!AL365, WMID!AL365, EMID!AL365, SWALES!AL365, SWEST!AL365, LPN!AL365,SPN!AL365,EPN!AL365,SPD!AL365,SPMW!AL365,SSEH!AL365,SSES!AL365)","v":0.7212202076751334},{"$f":"CHOOSE(m_identity,ENWL!AM365, NPgN!AM365, NPgY!AM365, WMID!AM365, EMID!AM365, SWALES!AM365, SWEST!AM365, LPN!AM365,SPN!AM365,EPN!AM365,SPD!AM365,SPMW!AM365,SSEH!AM365,SSES!AM365)","v":0.72213369635139035},{"$f":"CHOOSE(m_identity,ENWL!AN365, NPgN!AN365, NPgY!AN365, WMID!AN365, EMID!AN365, SWALES!AN365, SWEST!AN365, LPN!AN365,SPN!AN365,EPN!AN365,SPD!AN365,SPMW!AN365,SSEH!AN365,SSES!AN365)","v":0.72285585519712758},{"$f":"CHOOSE(m_identity,ENWL!AO365, NPgN!AO365, NPgY!AO365, WMID!AO365, EMID!AO365, SWALES!AO365, SWEST!AO365, LPN!AO365,SPN!AO365,EPN!AO365,SPD!AO365,SPMW!AO365,SSEH!AO365,SSES!AO365)","v":0.72365550028571157},{"$f":"CHOOSE(m_identity,ENWL!AP365, NPgN!AP365, NPgY!AP365, WMID!AP365, EMID!AP365, SWALES!AP365, SWEST!AP365, LPN!AP365,SPN!AP365,EPN!AP365,SPD!AP365,SPMW!AP365,SSEH!AP365,SSES!AP365)","v":0.72475508797315136},{"$f":"CHOOSE(m_identity,ENWL!AQ365, NPgN!AQ365, NPgY!AQ365, WMID!AQ365, EMID!AQ365, SWALES!AQ365, SWEST!AQ365, LPN!AQ365,SPN!AQ365,EPN!AQ365,SPD!AQ365,SPMW!AQ365,SSEH!AQ365,SSES!AQ365)","v":0.72611523503291497}]
[null,null,null,null,"Tree cutting",null,"%",null,null,null,null,null,null,null,null,null,null,null,null,null,null,null,null,null,null,null,null,null,null,null,null,null,null,null,null,{"$f":"CHOOSE(m_identity,ENWL!AJ366, NPgN!AJ366, NPgY!AJ366, WMID!AJ366, EMID!AJ366, SWALES!AJ366, SWEST!AJ366, LPN!AJ366,SPN!AJ366,EPN!AJ366,SPD!AJ366,SPMW!AJ366,SSEH!AJ366,SSES!AJ366)","v":0},{"$f":"CHOOSE(m_identity,ENWL!AK366, NPgN!AK366, NPgY!AK366, WMID!AK366, EMID!AK366, SWALES!AK366, SWEST!AK366, LPN!AK366,SPN!AK366,EPN!AK366,SPD!AK366,SPMW!AK366,SSEH!AK366,SSES!AK366)","v":0},{"$f":"CHOOSE(m_identity,ENWL!AL366, NPgN!AL366, NPgY!AL366, WMID!AL366, EMID!AL366, SWALES!AL366, SWEST!AL366, LPN!AL366,SPN!AL366,EPN!AL366,SPD!AL366,SPMW!AL366,SSEH!AL366,SSES!AL366)","v":0},{"$f":"CHOOSE(m_identity,ENWL!AM366, NPgN!AM366, NPgY!AM366, WMID!AM366, EMID!AM366, SWALES!AM366, SWEST!AM366, LPN!AM366,SPN!AM366,EPN!AM366,SPD!AM366,SPMW!AM366,SSEH!AM366,SSES!AM366)","v":0},{"$f":"CHOOSE(m_identity,ENWL!AN366, NPgN!AN366, NPgY!AN366, WMID!AN366, EMID!AN366, SWALES!AN366, SWEST!AN366, LPN!AN366,SPN!AN366,EPN!AN366,SPD!AN366,SPMW!AN366,SSEH!AN366,SSES!AN366)","v":0},{"$f":"CHOOSE(m_identity,ENWL!AO366, NPgN!AO366, NPgY!AO366, WMID!AO366, EMID!AO366, SWALES!AO366, SWEST!AO366, LPN!AO366,SPN!AO366,EPN!AO366,SPD!AO366,SPMW!AO366,SSEH!AO366,SSES!AO366)","v":0},{"$f":"CHOOSE(m_identity,ENWL!AP366, NPgN!AP366, NPgY!AP366, WMID!AP366, EMID!AP366, SWALES!AP366, SWEST!AP366, LPN!AP366,SPN!AP366,EPN!AP366,SPD!AP366,SPMW!AP366,SSEH!AP366,SSES!AP366)","v":0},{"$f":"CHOOSE(m_identity,ENWL!AQ366, NPgN!AQ366, NPgY!AQ366, WMID!AQ366, EMID!AQ366, SWALES!AQ366, SWEST!AQ366, LPN!AQ366,SPN!AQ366,EPN!AQ366,SPD!AQ366,SPMW!AQ366,SSEH!AQ366,SSES!AQ366)","v":0}]
[null,null,null,null,"Controllable Opex",null,"%",null,null,null,null,null,null,null,null,null,null,null,null,null,null,null,null,null,null,null,null,null,null,null,null,null,null,null,null,{"$f":"CHOOSE(m_identity,ENWL!AJ367, NPgN!AJ367, NPgY!AJ367, WMID!AJ367, EMID!AJ367, SWALES!AJ367, SWEST!AJ367, LPN!AJ367,SPN!AJ367,EPN!AJ367,SPD!AJ367,SPMW!AJ367,SSEH!AJ367,SSES!AJ367)","v":0.23461562719354137},{"$f":"CHOOSE(m_identity,ENWL!AK367, NPgN!AK367, NPgY!AK367, WMID!AK367, EMID!AK367, SWALES!AK367, SWEST!AK367, LPN!AK367,SPN!AK367,EPN!AK367,SPD!AK367,SPMW!AK367,SSEH!AK367,SSES!AK367)","v":0.23349631984230027},{"$f":"CHOOSE(m_identity,ENWL!AL367, NPgN!AL367, NPgY!AL367, WMID!AL367, EMID!AL367, SWALES!AL367, SWEST!AL367, LPN!AL367,SPN!AL367,EPN!AL367,SPD!AL367,SPMW!AL367,SSEH!AL367,SSES!AL367)","v":0.23209989156335928},{"$f":"CHOOSE(m_identity,ENWL!AM367, NPgN!AM367, NPgY!AM367, WMID!AM367, EMID!AM367, SWALES!AM367, SWEST!AM367, LPN!AM367,SPN!AM367,EPN!AM367,SPD!AM367,SPMW!AM367,SSEH!AM367,SSES!AM367)","v":0.23204632383994561},{"$f":"CHOOSE(m_identity,ENWL!AN367, NPgN!AN367, NPgY!AN367, WMID!AN367, EMID!AN367, SWALES!AN367, SWEST!AN367, LPN!AN367,SPN!AN367,EPN!AN367,SPD!AN367,SPMW!AN367,SSEH!AN367,SSES!AN367)","v":0.23294465400382255},{"$f":"CHOOSE(m_identity,ENWL!AO367, NPgN!AO367, NPgY!AO367, WMID!AO367, EMID!AO367, SWALES!AO367, SWEST!AO367, LPN!AO367,SPN!AO367,EPN!AO367,SPD!AO367,SPMW!AO367,SSEH!AO367,SSES!AO367)","v":0.23530111842609902},{"$f":"CHOOSE(m_identity,ENWL!AP367, NPgN!AP367, NPgY!AP367, WMID!AP367, EMID!AP367, SWALES!AP367, SWEST!AP367, LPN!AP367,SPN!AP367,EPN!AP367,SPD!AP367,SPMW!AP367,SSEH!AP367,SSES!AP367)","v":0.24007581157171162},{"$f":"CHOOSE(m_identity,ENWL!AQ367, NPgN!AQ367, NPgY!AQ367, WMID!AQ367, EMID!AQ367, SWALES!AQ367, SWEST!AQ367, LPN!AQ367,SPN!AQ367,EPN!AQ367,SPD!AQ367,SPMW!AQ367,SSEH!AQ367,SSES!AQ367)","v":0.24100309838702541}]
[]
[null,null,null,"Allocation to 'Revenue' "]
[]
[null,null,null,null,"Load Related",null,"%",null,null,null,null,null,null,null,null,null,null,null,null,null,null,null,null,null,null,null,null,null,null,null,null,null,null,null,null,{"$f":"CHOOSE(m_identity,ENWL!AJ371, NPgN!AJ371, NPgY!AJ371, WMID!AJ371, EMID!AJ371, SWALES!AJ371, SWEST!AJ371, LPN!AJ371,SPN!AJ371,EPN!AJ371,SPD!AJ371,SPMW!AJ371,SSEH!AJ371,SSES!AJ371)","v":6.1412192895790578E-2},{"$f":"CHOOSE(m_identity,ENWL!AK371, NPgN!AK371, NPgY!AK371, WMID!AK371, EMID!AK371, SWALES!AK371, SWEST!AK371, LPN!AK371,SPN!AK371,EPN!AK371,SPD!AK371,SPMW!AK371,SSEH!AK371,SSES!AK371)","v":5.7704172531686415E-2},{"$f":"CHOOSE(m_identity,ENWL!AL371, NPgN!AL371, NPgY!AL371, WMID!AL371, EMID!AL371, SWALES!AL371, SWEST!AL371, LPN!AL371,SPN!AL371,EPN!AL371,SPD!AL371,SPMW!AL371,SSEH!AL371,SSES!AL371)","v":5.5072490374378752E-2},{"$f":"CHOOSE(m_identity,ENWL!AM371, NPgN!AM371, NPgY!AM371, WMID!AM371, EMID!AM371, SWALES!AM371, SWEST!AM371, LPN!AM371,SPN!AM371,EPN!AM371,SPD!AM371,SPMW!AM371,SSEH!AM371,SSES!AM371)","v":4.6696880726809588E-2},{"$f":"CHOOSE(m_identity,ENWL!AN371, NPgN!AN371, NPgY!AN371, WMID!AN371, EMID!AN371, SWALES!AN371, SWEST!AN371, LPN!AN371,SPN!AN371,EPN!AN371,SPD!AN371,SPMW!AN371,SSEH!AN371,SSES!AN371)","v":4.2876032821883202E-2},{"$f":"CHOOSE(m_identity,ENWL!AO371, NPgN!AO371, NPgY!AO371, WMID!AO371, EMID!AO371, SWALES!AO371, SWEST!AO371, LPN!AO371,SPN!AO371,EPN!AO371,SPD!AO371,SPMW!AO371,SSEH!AO371,SSES!AO371)","v":4.1350208235508411E-2},{"$f":"CHOOSE(m_identity,ENWL!AP371, NPgN!AP371, NPgY!AP371, WMID!AP371, EMID!AP371, SWALES!AP371, SWEST!AP371, LPN!AP371,SPN!AP371,EPN!AP371,SPD!AP371,SPMW!AP371,SSEH!AP371,SSES!AP371)","v":4.0535966056272021E-2},{"$f":"CHOOSE(m_identity,ENWL!AQ371, NPgN!AQ371, NPgY!AQ371, WMID!AQ371, EMID!AQ371, SWALES!AQ371, SWEST!AQ371, LPN!AQ371,SPN!AQ371,EPN!AQ371,SPD!AQ371,SPMW!AQ371,SSEH!AQ371,SSES!AQ371)","v":3.3222883681919203E-2}]
[null,null,null,null,"Non-load related capex - asset replacement",null,"%",null,null,null,null,null,null,null,null,null,null,null,null,null,null,null,null,null,null,null,null,null,null,null,null,null,null,null,null,{"$f":"CHOOSE(m_identity,ENWL!AJ372, NPgN!AJ372, NPgY!AJ372, WMID!AJ372, EMID!AJ372, SWALES!AJ372, SWEST!AJ372, LPN!AJ372,SPN!AJ372,EPN!AJ372,SPD!AJ372,SPMW!AJ372,SSEH!AJ372,SSES!AJ372)","v":2.9419362673791159E-2},{"$f":"CHOOSE(m_identity,ENWL!AK372, NPgN!AK372, NPgY!AK372, WMID!AK372, EMID!AK372, SWALES!AK372, SWEST!AK372, LPN!AK372,SPN!AK372,EPN!AK372,SPD!AK372,SPMW!AK372,SSEH!AK372,SSES!AK372)","v":2.830209140968272E-2},{"$f":"CHOOSE(m_identity,ENWL!AL372, NPgN!AL372, NPgY!AL372, WMID!AL372, EMID!AL372, SWALES!AL372, SWEST!AL372, LPN!AL372,SPN!AL372,EPN!AL372,SPD!AL372,SPMW!AL372,SSEH!AL372,SSES!AL372)","v":2.8020320322674062E-2},{"$f":"CHOOSE(m_identity,ENWL!AM372, NPgN!AM372, NPgY!AM372, WMID!AM372, EMID!AM372, SWALES!AM372, SWEST!AM372, LPN!AM372,SPN!AM372,EPN!AM372,SPD!AM372,SPMW!AM372,SSEH!AM372,SSES!AM372)","v":2.6758403165232345E-2},{"$f":"CHOOSE(m_identity,ENWL!AN372, NPgN!AN372, NPgY!AN372, WMID!AN372, EMID!AN372, SWALES!AN372, SWEST!AN372, LPN!AN372,SPN!AN372,EPN!AN372,SPD!AN372,SPMW!AN372,SSEH!AN372,SSES!AN372)","v":2.5778378029164269E-2},{"$f":"CHOOSE(m_identity,ENWL!AO372, NPgN!AO372, NPgY!AO372, WMID!AO372, EMID!AO372, SWALES!AO372, SWEST!AO372, LPN!AO372,SPN!AO372,EPN!AO372,SPD!AO372,SPMW!AO372,SSEH!AO372,SSES!AO372)","v":2.486575278550229E-2},{"$f":"CHOOSE(m_identity,ENWL!AP372, NPgN!AP372, NPgY!AP372, WMID!AP372, EMID!AP372, SWALES!AP372, SWEST!AP372, LPN!AP372,SPN!AP372,EPN!AP372,SPD!AP372,SPMW!AP372,SSEH!AP372,SSES!AP372)","v":2.3988661056929154E-2},{"$f":"CHOOSE(m_identity,ENWL!AQ372, NPgN!AQ372, NPgY!AQ372, WMID!AQ372, EMID!AQ372, SWALES!AQ372, SWEST!AQ372, LPN!AQ372,SPN!AQ372,EPN!AQ372,SPD!AQ372,SPMW!AQ372,SSEH!AQ372,SSES!AQ372)","v":2.275270202735425E-2}]
[null,null,null,null,"Non-Load Related - other",null,"%",null,null,null,null,null,null,null,null,null,null,null,null,null,null,null,null,null,null,null,null,null,null,null,null,null,null,null,null,{"$f":"CHOOSE(m_identity,ENWL!AJ373, NPgN!AJ373, NPgY!AJ373, WMID!AJ373, EMID!AJ373, SWALES!AJ373, SWEST!AJ373, LPN!AJ373,SPN!AJ373,EPN!AJ373,SPD!AJ373,SPMW!AJ373,SSEH!AJ373,SSES!AJ373)","v":3.3474209820823302E-3},{"$f":"CHOOSE(m_identity,ENWL!AK373, NPgN!AK373, NPgY!AK373, WMID!AK373, EMID!AK373, SWALES!AK373, SWEST!AK373, LPN!AK373,SPN!AK373,EPN!AK373,SPD!AK373,SPMW!AK373,SSEH!AK373,SSES!AK373)","v":2.9201095830942623E-3},{"$f":"CHOOSE(m_identity,ENWL!AL373, NPgN!AL373, NPgY!AL373, WMID!AL373, EMID!AL373, SWALES!AL373, SWEST!AL373, LPN!AL373,SPN!AL373,EPN!AL373,SPD!AL373,SPMW!AL373,SSEH!AL373,SSES!AL373)","v":4.5211675580601176E-3},{"$f":"CHOOSE(m_identity,ENWL!AM373, NPgN!AM373, NPgY!AM373, WMID!AM373, EMID!AM373, SWALES!AM373, SWEST!AM373, LPN!AM373,SPN!AM373,EPN!AM373,SPD!AM373,SPMW!AM373,SSEH!AM373,SSES!AM373)","v":2.8087394266120441E-3},{"$f":"CHOOSE(m_identity,ENWL!AN373, NPgN!AN373, NPgY!AN373, WMID!AN373, EMID!AN373, SWALES!AN373, SWEST!AN373, LPN!AN373,SPN!AN373,EPN!AN373,SPD!AN373,SPMW!AN373,SSEH!AN373,SSES!AN373)","v":2.1572180983972238E-3},{"$f":"CHOOSE(m_identity,ENWL!AO373, NPgN!AO373, NPgY!AO373, WMID!AO373, EMID!AO373, SWALES!AO373, SWEST!AO373, LPN!AO373,SPN!AO373,EPN!AO373,SPD!AO373,SPMW!AO373,SSEH!AO373,SSES!AO373)","v":2.102330917669008E-3},{"$f":"CHOOSE(m_identity,ENWL!AP373, NPgN!AP373, NPgY!AP373, WMID!AP373, EMID!AP373, SWALES!AP373, SWEST!AP373, LPN!AP373,SPN!AP373,EPN!AP373,SPD!AP373,SPMW!AP373,SSEH!AP373,SSES!AP373)","v":1.8983830198694401E-3},{"$f":"CHOOSE(m_identity,ENWL!AQ373, NPgN!AQ373, NPgY!AQ373, WMID!AQ373, EMID!AQ373, SWALES!AQ373, SWEST!AQ373, LPN!AQ373,SPN!AQ373,EPN!AQ373,SPD!AQ373,SPMW!AQ373,SSEH!AQ373,SSES!AQ373)","v":2.6713039528789848E-3}]
[null,null,null,null,"Faults",null,"%",null,null,null,null,null,null,null,null,null,null,null,null,null,null,null,null,null,null,null,null,null,null,null,null,null,null,null,null,{"$f":"CHOOSE(m_identity,ENWL!AJ374, NPgN!AJ374, NPgY!AJ374, WMID!AJ374, EMID!AJ374, SWALES!AJ374, SWEST!AJ374, LPN!AJ374,SPN!AJ374,EPN!AJ374,SPD!AJ374,SPMW!AJ374,SSEH!AJ374,SSES!AJ374)","v":0.27969932280010712},{"$f":"CHOOSE(m_identity,ENWL!AK374, NPgN!AK374, NPgY!AK374, WMID!AK374, EMID!AK374, SWALES!AK374, SWEST!AK374, LPN!AK374,SPN!AK374,EPN!AK374,SPD!AK374,SPMW!AK374,SSEH!AK374,SSES!AK374)","v":0.27898663072813851},{"$f":"CHOOSE(m_identity,ENWL!AL374, NPgN!AL374, NPgY!AL374, WMID!AL374, EMID!AL374, SWALES!AL374, SWEST!AL374, LPN!AL374,SPN!AL374,EPN!AL374,SPD!AL374,SPMW!AL374,SSEH!AL374,SSES!AL374)","v":0.27877979232486649},{"$f":"CHOOSE(m_identity,ENWL!AM374, NPgN!AM374, NPgY!AM374, WMID!AM374, EMID!AM374, SWALES!AM374, SWEST!AM374, LPN!AM374,SPN!AM374,EPN!AM374,SPD!AM374,SPMW!AM374,SSEH!AM374,SSES!AM374)","v":0.27786630364860965},{"$f":"CHOOSE(m_identity,ENWL!AN374, NPgN!AN374, NPgY!AN374, WMID!AN374, EMID!AN374, SWALES!AN374, SWEST!AN374, LPN!AN374,SPN!AN374,EPN!AN374,SPD!AN374,SPMW!AN374,SSEH!AN374,SSES!AN374)","v":0.27714414480287242},{"$f":"CHOOSE(m_identity,ENWL!AO374, NPgN!AO374, NPgY!AO374, WMID!AO374, EMID!AO374, SWALES!AO374, SWEST!AO374, LPN!AO374,SPN!AO374,EPN!AO374,SPD!AO374,SPMW!AO374,SSEH!AO374,SSES!AO374)","v":0.27634449971428843},{"$f":"CHOOSE(m_identity,ENWL!AP374, NPgN!AP374, NPgY!AP374, WMID!AP374, EMID!AP374, SWALES!AP374, SWEST!AP374, LPN!AP374,SPN!AP374,EPN!AP374,SPD!AP374,SPMW!AP374,SSEH!AP374,SSES!AP374)","v":0.27524491202684864},{"$f":"CHOOSE(m_identity,ENWL!AQ374, NPgN!AQ374, NPgY!AQ374, WMID!AQ374, EMID!AQ374, SWALES!AQ374, SWEST!AQ374, LPN!AQ374,SPN!AQ374,EPN!AQ374,SPD!AQ374,SPMW!AQ374,SSEH!AQ374,SSES!AQ374)","v":0.27388476496708497}]
[null,null,null,null,"Tree cutting",null,"%",null,null,null,null,null,null,null,null,null,null,null,null,null,null,null,null,null,null,null,null,null,null,null,null,null,null,null,null,{"$f":"CHOOSE(m_identity,ENWL!AJ375, NPgN!AJ375, NPgY!AJ375, WMID!AJ375, EMID!AJ375, SWALES!AJ375, SWEST!AJ375, LPN!AJ375,SPN!AJ375,EPN!AJ375,SPD!AJ375,SPMW!AJ375,SSEH!AJ375,SSES!AJ375)","v":1},{"$f":"CHOOSE(m_identity,ENWL!AK375, NPgN!AK375, NPgY!AK375, WMID!AK375, EMID!AK375, SWALES!AK375, SWEST!AK375, LPN!AK375,SPN!AK375,EPN!AK375,SPD!AK375,SPMW!AK375,SSEH!AK375,SSES!AK375)","v":1},{"$f":"CHOOSE(m_identity,ENWL!AL375, NPgN!AL375, NPgY!AL375, WMID!AL375, EMID!AL375, SWALES!AL375, SWEST!AL375, LPN!AL375,SPN!AL375,EPN!AL375,SPD!AL375,SPMW!AL375,SSEH!AL375,SSES!AL375)","v":1},{"$f":"CHOOSE(m_identity,ENWL!AM375, NPgN!AM375, NPgY!AM375, WMID!AM375, EMID!AM375, SWALES!AM375, SWEST!AM375, LPN!AM375,SPN!AM375,EPN!AM375,SPD!AM375,SPMW!AM375,SSEH!AM375,SSES!AM375)","v":1},{"$f":"CHOOSE(m_identity,ENWL!AN375, NPgN!AN375, NPgY!AN375, WMID!AN375, EMID!AN375, SWALES!AN375, SWEST!AN375, LPN!AN375,SPN!AN375,EPN!AN375,SPD!AN375,SPMW!AN375,SSEH!AN375,SSES!AN375)","v":1},{"$f":"CHOOSE(m_identity,ENWL!AO375, NPgN!AO375, NPgY!AO375, WMID!AO375, EMID!AO375, SWALES!AO375, SWEST!AO375, LPN!AO375,SPN!AO375,EPN!AO375,SPD!AO375,SPMW!AO375,SSEH!AO375,SSES!AO375)","v":1},{"$f":"CHOOSE(m_identity,ENWL!AP375, NPgN!AP375, NPgY!AP375, WMID!AP375, EMID!AP375, SWALES!AP375, SWEST!AP375, LPN!AP375,SPN!AP375,EPN!AP375,SPD!AP375,SPMW!AP375,SSEH!AP375,SSES!AP375)","v":1},{"$f":"CHOOSE(m_identity,ENWL!AQ375, NPgN!AQ375, NPgY!AQ375, WMID!AQ375, EMID!AQ375, SWALES!AQ375, SWEST!AQ375, LPN!AQ375,SPN!AQ375,EPN!AQ375,SPD!AQ375,SPMW!AQ375,SSEH!AQ375,SSES!AQ375)","v":1}]
[null,null,null,null,"Controllable Opex",null,"%",null,null,null,null,null,null,null,null,null,null,null,null,null,null,null,null,null,null,null,null,null,null,null,null,null,null,null,null,{"$f":"CHOOSE(m_identity,ENWL!AJ376, NPgN!AJ376, NPgY!AJ376, WMID!AJ376, EMID!AJ376, SWALES!AJ376, SWEST!AJ376, LPN!AJ376,SPN!AJ376,EPN!AJ376,SPD!AJ376,SPMW!AJ376,SSEH!AJ376,SSES!AJ376)","v":0.54447376018993077},{"$f":"CHOOSE(m_identity,ENWL!AK376, NPgN!AK376, NPgY!AK376, WMID!AK376, EMID!AK376, SWALES!AK376, SWEST!AK376, LPN!AK376,SPN!AK376,EPN!AK376,SPD!AK376,SPMW!AK376,SSEH!AK376,SSES!AK376)","v":0.54665118653729472},{"$f":"CHOOSE(m_identity,ENWL!AL376, NPgN!AL376, NPgY!AL376, WMID!AL376, EMID!AL376, SWALES!AL376, SWEST!AL376, LPN!AL376,SPN!AL376,EPN!AL376,SPD!AL376,SPMW!AL376,SSEH!AL376,SSES!AL376)","v":0.54936341002100209},{"$f":"CHOOSE(m_identity,ENWL!AM376, NPgN!AM376, NPgY!AM376, WMID!AM376, EMID!AM376, SWALES!AM376, SWEST!AM376, LPN!AM376,SPN!AM376,EPN!AM376,SPD!AM376,SPMW!AM376,SSEH!AM376,SSES!AM376)","v":0.54946662608479679},{"$f":"CHOOSE(m_identity,ENWL!AN376, NPgN!AN376, NPgY!AN376, WMID!AN376, EMID!AN376, SWALES!AN376, SWEST!AN376, LPN!AN376,SPN!AN376,EPN!AN376,SPD!AN376,SPMW!AN376,SSEH!AN376,SSES!AN376)","v":0.54772026937628604},{"$f":"CHOOSE(m_identity,ENWL!AO376, NPgN!AO376, NPgY!AO376, WMID!AO376, EMID!AO376, SWALES!AO376, SWEST!AO376, LPN!AO376,SPN!AO376,EPN!AO376,SPD!AO376,SPMW!AO376,SSEH!AO376,SSES!AO376)","v":0.5431435534445398},{"$f":"CHOOSE(m_identity,ENWL!AP376, NPgN!AP376, NPgY!AP376, WMID!AP376, EMID!AP376, SWALES!AP376, SWEST!AP376, LPN!AP376,SPN!AP376,EPN!AP376,SPD!AP376,SPMW!AP376,SSEH!AP376,SSES!AP376)","v":0.53387314197794344},{"$f":"CHOOSE(m_identity,ENWL!AQ376, NPgN!AQ376, NPgY!AQ376, WMID!AQ376, EMID!AQ376, SWALES!AQ376, SWEST!AQ376, LPN!AQ376,SPN!AQ376,EPN!AQ376,SPD!AQ376,SPMW!AQ376,SSEH!AQ376,SSES!AQ376)","v":0.53206978745861888}]
[]
[null,null,null,"Allocation to 'Non-qualifying'"]
[]
[null,null,null,null,"Load Related",null,"%",null,null,null,null,null,null,null,null,null,null,null,null,null,null,null,null,null,null,null,null,null,null,null,null,null,null,null,null,{"$f":"CHOOSE(m_identity,ENWL!AJ380, NPgN!AJ380, NPgY!AJ380, WMID!AJ380, EMID!AJ380, SWALES!AJ380, SWEST!AJ380, LPN!AJ380,SPN!AJ380,EPN!AJ380,SPD!AJ380,SPMW!AJ380,SSEH!AJ380,SSES!AJ380)","v":0},{"$f":"CHOOSE(m_identity,ENWL!AK380, NPgN!AK380, NPgY!AK380, WMID!AK380, EMID!AK380, SWALES!AK380, SWEST!AK380, LPN!AK380,SPN!AK380,EPN!AK380,SPD!AK380,SPMW!AK380,SSEH!AK380,SSES!AK380)","v":0},{"$f":"CHOOSE(m_identity,ENWL!AL380, NPgN!AL380, NPgY!AL380, WMID!AL380, EMID!AL380, SWALES!AL380, SWEST!AL380, LPN!AL380,SPN!AL380,EPN!AL380,SPD!AL380,SPMW!AL380,SSEH!AL380,SSES!AL380)","v":0},{"$f":"CHOOSE(m_identity,ENWL!AM380, NPgN!AM380, NPgY!AM380, WMID!AM380, EMID!AM380, SWALES!AM380, SWEST!AM380, LPN!AM380,SPN!AM380,EPN!AM380,SPD!AM380,SPMW!AM380,SSEH!AM380,SSES!AM380)","v":0},{"$f":"CHOOSE(m_identity,ENWL!AN380, NPgN!AN380, NPgY!AN380, WMID!AN380, EMID!AN380, SWALES!AN380, SWEST!AN380, LPN!AN380,SPN!AN380,EPN!AN380,SPD!AN380,SPMW!AN380,SSEH!AN380,SSES!AN380)","v":0},{"$f":"CHOOSE(m_identity,ENWL!AO380, NPgN!AO380, NPgY!AO380, WMID!AO380, EMID!AO380, SWALES!AO380, SWEST!AO380, LPN!AO380,SPN!AO380,EPN!AO380,SPD!AO380,SPMW!AO380,SSEH!AO380,SSES!AO380)","v":0},{"$f":"CHOOSE(m_identity,ENWL!AP380, NPgN!AP380, NPgY!AP380, WMID!AP380, EMID!AP380, SWALES!AP380, SWEST!AP380, LPN!AP380,SPN!AP380,EPN!AP380,SPD!AP380,SPMW!AP380,SSEH!AP380,SSES!AP380)","v":0},{"$f":"CHOOSE(m_identity,ENWL!AQ380, NPgN!AQ380, NPgY!AQ380, WMID!AQ380, EMID!AQ380, SWALES!AQ380, SWEST!AQ380, LPN!AQ380,SPN!AQ380,EPN!AQ380,SPD!AQ380,SPMW!AQ380,SSEH!AQ380,SSES!AQ380)","v":0}]
[null,null,null,null,"Non-load related capex - asset replacement",null,"%",null,null,null,null,null,null,null,null,null,null,null,null,null,null,null,null,null,null,null,null,null,null,null,null,null,null,null,null,{"$f":"CHOOSE(m_identity,ENWL!AJ381, NPgN!AJ381, NPgY!AJ381, WMID!AJ381, EMID!AJ381, SWALES!AJ381, SWEST!AJ381, LPN!AJ381,SPN!AJ381,EPN!AJ381,SPD!AJ381,SPMW!AJ381,SSEH!AJ381,SSES!AJ381)","v":5.2833414157559551E-2},{"$f":"CHOOSE(m_identity,ENWL!AK381, NPgN!AK381, NPgY!AK381, WMID!AK381, EMID!AK381, SWALES!AK381, SWEST!AK381, LPN!AK381,SPN!AK381,EPN!AK381,SPD!AK381,SPMW!AK381,SSEH!AK381,SSES!AK381)","v":5.1918490960910217E-2},{"$f":"CHOOSE(m_identity,ENWL!AL381, NPgN!AL381, NPgY!AL381, WMID!AL381, EMID!AL381, SWALES!AL381, SWEST!AL381, LPN!AL381,SPN!AL381,EPN!AL381,SPD!AL381,SPMW!AL381,SSEH!AL381,SSES!AL381)","v":5.3019900388794561E-2},{"$f":"CHOOSE(m_identity,ENWL!AM381, NPgN!AM381, NPgY!AM381, WMID!AM381, EMID!AM381, SWALES!AM381, SWEST!AM381, LPN!AM381,SPN!AM381,EPN!AM381,SPD!AM381,SPMW!AM381,SSEH!AM381,SSES!AM381)","v":5.2075919514925191E-2},{"$f":"CHOOSE(m_identity,ENWL!AN381, NPgN!AN381, NPgY!AN381, WMID!AN381, EMID!AN381, SWALES!AN381, SWEST!AN381, LPN!AN381,SPN!AN381,EPN!AN381,SPD!AN381,SPMW!AN381,SSEH!AN381,SSES!AN381)","v":5.3175422665820954E-2},{"$f":"CHOOSE(m_identity,ENWL!AO381, NPgN!AO381, NPgY!AO381, WMID!AO381, EMID!AO381, SWALES!AO381, SWEST!AO381, LPN!AO381,SPN!AO381,EPN!AO381,SPD!AO381,SPMW!AO381,SSEH!AO381,SSES!AO381)","v":5.7918458775259127E-2},{"$f":"CHOOSE(m_identity,ENWL!AP381, NPgN!AP381, NPgY!AP381, WMID!AP381, EMID!AP381, SWALES!AP381, SWEST!AP381, LPN!AP381,SPN!AP381,EPN!AP381,SPD!AP381,SPMW!AP381,SSEH!AP381,SSES!AP381)","v":5.6667250348415431E-2},{"$f":"CHOOSE(m_identity,ENWL!AQ381, NPgN!AQ381, NPgY!AQ381, WMID!AQ381, EMID!AQ381, SWALES!AQ381, SWEST!AQ381, LPN!AQ381,SPN!AQ381,EPN!AQ381,SPD!AQ381,SPMW!AQ381,SSEH!AQ381,SSES!AQ381)","v":5.6220934344833884E-2}]
[null,null,null,null,"Non-Load Related - other",null,"%",null,null,null,null,null,null,null,null,null,null,null,null,null,null,null,null,null,null,null,null,null,null,null,null,null,null,null,null,{"$f":"CHOOSE(m_identity,ENWL!AJ382, NPgN!AJ382, NPgY!AJ382, WMID!AJ382, EMID!AJ382, SWALES!AJ382, SWEST!AJ382, LPN!AJ382,SPN!AJ382,EPN!AJ382,SPD!AJ382,SPMW!AJ382,SSEH!AJ382,SSES!AJ382)","v":3.8336572092044642E-2},{"$f":"CHOOSE(m_identity,ENWL!AK382, NPgN!AK382, NPgY!AK382, WMID!AK382, EMID!AK382, SWALES!AK382, SWEST!AK382, LPN!AK382,SPN!AK382,EPN!AK382,SPD!AK382,SPMW!AK382,SSEH!AK382,SSES!AK382)","v":1.4030681346590379E-2},{"$f":"CHOOSE(m_identity,ENWL!AL382, NPgN!AL382, NPgY!AL382, WMID!AL382, EMID!AL382, SWALES!AL382, SWEST!AL382, LPN!AL382,SPN!AL382,EPN!AL382,SPD!AL382,SPMW!AL382,SSEH!AL382,SSES!AL382)","v":4.5040441702866672E-3},{"$f":"CHOOSE(m_identity,ENWL!AM382, NPgN!AM382, NPgY!AM382, WMID!AM382, EMID!AM382, SWALES!AM382, SWEST!AM382, LPN!AM382,SPN!AM382,EPN!AM382,SPD!AM382,SPMW!AM382,SSEH!AM382,SSES!AM382)","v":3.6643150308784352E-2},{"$f":"CHOOSE(m_identity,ENWL!AN382, NPgN!AN382, NPgY!AN382, WMID!AN382, EMID!AN382, SWALES!AN382, SWEST!AN382, LPN!AN382,SPN!AN382,EPN!AN382,SPD!AN382,SPMW!AN382,SSEH!AN382,SSES!AN382)","v":6.8045208722761147E-3},{"$f":"CHOOSE(m_identity,ENWL!AO382, NPgN!AO382, NPgY!AO382, WMID!AO382, EMID!AO382, SWALES!AO382, SWEST!AO382, LPN!AO382,SPN!AO382,EPN!AO382,SPD!AO382,SPMW!AO382,SSEH!AO382,SSES!AO382)","v":1.1662936158105099E-2},{"$f":"CHOOSE(m_identity,ENWL!AP382, NPgN!AP382, NPgY!AP382, WMID!AP382, EMID!AP382, SWALES!AP382, SWEST!AP382, LPN!AP382,SPN!AP382,EPN!AP382,SPD!AP382,SPMW!AP382,SSEH!AP382,SSES!AP382)","v":3.6276891244473859E-3},{"$f":"CHOOSE(m_identity,ENWL!AQ382, NPgN!AQ382, NPgY!AQ382, WMID!AQ382, EMID!AQ382, SWALES!AQ382, SWEST!AQ382, LPN!AQ382,SPN!AQ382,EPN!AQ382,SPD!AQ382,SPMW!AQ382,SSEH!AQ382,SSES!AQ382)","v":7.4090986036453475E-3}]
[null,null,null,null,"Faults",null,"%",null,null,null,null,null,null,null,null,null,null,null,null,null,null,null,null,null,null,null,null,null,null,null,null,null,null,null,null,{"$f":"CHOOSE(m_identity,ENWL!AJ383, NPgN!AJ383, NPgY!AJ383, WMID!AJ383, EMID!AJ383, SWALES!AJ383, SWEST!AJ383, LPN!AJ383,SPN!AJ383,EPN!AJ383,SPD!AJ383,SPMW!AJ383,SSEH!AJ383,SSES!AJ383)","v":0},{"$f":"CHOOSE(m_identity,ENWL!AK383, NPgN!AK383, NPgY!AK383, WMID!AK383, EMID!AK383, SWALES!AK383, SWEST!AK383, LPN!AK383,SPN!AK383,EPN!AK383,SPD!AK383,SPMW!AK383,SSEH!AK383,SSES!AK383)","v":0},{"$f":"CHOOSE(m_identity,ENWL!AL383, NPgN!AL383, NPgY!AL383, WMID!AL383, EMID!AL383, SWALES!AL383, SWEST!AL383, LPN!AL383,SPN!AL383,EPN!AL383,SPD!AL383,SPMW!AL383,SSEH!AL383,SSES!AL383)","v":0},{"$f":"CHOOSE(m_identity,ENWL!AM383, NPgN!AM383, NPgY!AM383, WMID!AM383, EMID!AM383, SWALES!AM383, SWEST!AM383, LPN!AM383,SPN!AM383,EPN!AM383,SPD!AM383,SPMW!AM383,SSEH!AM383,SSES!AM383)","v":0},{"$f":"CHOOSE(m_identity,ENWL!AN383, NPgN!AN383, NPgY!AN383, WMID!AN383, EMID!AN383, SWALES!AN383, SWEST!AN383, LPN!AN383,SPN!AN383,EPN!AN383,SPD!AN383,SPMW!AN383,SSEH!AN383,SSES!AN383)","v":0},{"$f":"CHOOSE(m_identity,ENWL!AO383, NPgN!AO383, NPgY!AO383, WMID!AO383, EMID!AO383, SWALES!AO383, SWEST!AO383, LPN!AO383,SPN!AO383,EPN!AO383,SPD!AO383,SPMW!AO383,SSEH!AO383,SSES!AO383)","v":0},{"$f":"CHOOSE(m_identity,ENWL!AP383, NPgN!AP383, NPgY!AP383, WMID!AP383, EMID!AP383, SWALES!AP383, SWEST!AP383, LPN!AP383,SPN!AP383,EPN!AP383,SPD!AP383,SPMW!AP383,SSEH!AP383,SSES!AP383)","v":0},{"$f":"CHOOSE(m_identity,ENWL!AQ383, NPgN!AQ383, NPgY!AQ383, WMID!AQ383, EMID!AQ383, SWALES!AQ383, SWEST!AQ383, LPN!AQ383,SPN!AQ383,EPN!AQ383,SPD!AQ383,SPMW!AQ383,SSEH!AQ383,SSES!AQ383)","v":0}]
[null,null,null,null,"Tree cutting",null,"%",null,null,null,null,null,null,null,null,null,null,null,null,null,null,null,null,null,null,null,null,null,null,null,null,null,null,null,null,{"$f":"CHOOSE(m_identity,ENWL!AJ384, NPgN!AJ384, NPgY!AJ384, WMID!AJ384, EMID!AJ384, SWALES!AJ384, SWEST!AJ384, LPN!AJ384,SPN!AJ384,EPN!AJ384,SPD!AJ384,SPMW!AJ384,SSEH!AJ384,SSES!AJ384)","v":0},{"$f":"CHOOSE(m_identity,ENWL!AK384, NPgN!AK384, NPgY!AK384, WMID!AK384, EMID!AK384, SWALES!AK384, SWEST!AK384, LPN!AK384,SPN!AK384,EPN!AK384,SPD!AK384,SPMW!AK384,SSEH!AK384,SSES!AK384)","v":0},{"$f":"CHOOSE(m_identity,ENWL!AL384, NPgN!AL384, NPgY!AL384, WMID!AL384, EMID!AL384, SWALES!AL384, SWEST!AL384, LPN!AL384,SPN!AL384,EPN!AL384,SPD!AL384,SPMW!AL384,SSEH!AL384,SSES!AL384)","v":0},{"$f":"CHOOSE(m_identity,ENWL!AM384, NPgN!AM384, NPgY!AM384, WMID!AM384, EMID!AM384, SWALES!AM384, SWEST!AM384, LPN!AM384,SPN!AM384,EPN!AM384,SPD!AM384,SPMW!AM384,SSEH!AM384,SSES!AM384)","v":0},{"$f":"CHOOSE(m_identity,ENWL!AN384, NPgN!AN384, NPgY!AN384, WMID!AN384, EMID!AN384, SWALES!AN384, SWEST!AN384, LPN!AN384,SPN!AN384,EPN!AN384,SPD!AN384,SPMW!AN384,SSEH!AN384,SSES!AN384)","v":0},{"$f":"CHOOSE(m_identity,ENWL!AO384, NPgN!AO384, NPgY!AO384, WMID!AO384, EMID!AO384, SWALES!AO384, SWEST!AO384, LPN!AO384,SPN!AO384,EPN!AO384,SPD!AO384,SPMW!AO384,SSEH!AO384,SSES!AO384)","v":0},{"$f":"CHOOSE(m_identity,ENWL!AP384, NPgN!AP384, NPgY!AP384, WMID!AP384, EMID!AP384, SWALES!AP384, SWEST!AP384, LPN!AP384,SPN!AP384,EPN!AP384,SPD!AP384,SPMW!AP384,SSEH!AP384,SSES!AP384)","v":0},{"$f":"CHOOSE(m_identity,ENWL!AQ384, NPgN!AQ384, NPgY!AQ384, WMID!AQ384, EMID!AQ384, SWALES!AQ384, SWEST!AQ384, LPN!AQ384,SPN!AQ384,EPN!AQ384,SPD!AQ384,SPMW!AQ384,SSEH!AQ384,SSES!AQ384)","v":0}]
[null,null,null,null,"Controllable Opex",null,"%",null,null,null,null,null,null,null,null,null,null,null,null,null,null,null,null,null,null,null,null,null,null,null,null,null,null,null,null,{"$f":"CHOOSE(m_identity,ENWL!AJ385, NPgN!AJ385, NPgY!AJ385, WMID!AJ385, EMID!AJ385, SWALES!AJ385, SWEST!AJ385, LPN!AJ385,SPN!AJ385,EPN!AJ385,SPD!AJ385,SPMW!AJ385,SSEH!AJ385,SSES!AJ385)","v":1.3705014577013556E-2},{"$f":"CHOOSE(m_identity,ENWL!AK385, NPgN!AK385, NPgY!AK385, WMID!AK385, EMID!AK385, SWALES!AK385, SWEST!AK385, LPN!AK385,SPN!AK385,EPN!AK385,SPD!AK385,SPMW!AK385,SSEH!AK385,SSES!AK385)","v":1.3643826221895246E-2},{"$f":"CHOOSE(m_identity,ENWL!AL385, NPgN!AL385, NPgY!AL385, WMID!AL385, EMID!AL385, SWALES!AL385, SWEST!AL385, LPN!AL385,SPN!AL385,EPN!AL385,SPD!AL385,SPMW!AL385,SSEH!AL385,SSES!AL385)","v":1.356319314772058E-2},{"$f":"CHOOSE(m_identity,ENWL!AM385, NPgN!AM385, NPgY!AM385, WMID!AM385, EMID!AM385, SWALES!AM385, SWEST!AM385, LPN!AM385,SPN!AM385,EPN!AM385,SPD!AM385,SPMW!AM385,SSEH!AM385,SSES!AM385)","v":1.3559273764688103E-2},{"$f":"CHOOSE(m_identity,ENWL!AN385, NPgN!AN385, NPgY!AN385, WMID!AN385, EMID!AN385, SWALES!AN385, SWEST!AN385, LPN!AN385,SPN!AN385,EPN!AN385,SPD!AN385,SPMW!AN385,SSEH!AN385,SSES!AN385)","v":1.3609577383931142E-2},{"$f":"CHOOSE(m_identity,ENWL!AO385, NPgN!AO385, NPgY!AO385, WMID!AO385, EMID!AO385, SWALES!AO385, SWEST!AO385, LPN!AO385,SPN!AO385,EPN!AO385,SPD!AO385,SPMW!AO385,SSEH!AO385,SSES!AO385)","v":1.3745790296737843E-2},{"$f":"CHOOSE(m_identity,ENWL!AP385, NPgN!AP385, NPgY!AP385, WMID!AP385, EMID!AP385, SWALES!AP385, SWEST!AP385, LPN!AP385,SPN!AP385,EPN!AP385,SPD!AP385,SPMW!AP385,SSEH!AP385,SSES!AP385)","v":1.402476512136681E-2},{"$f":"CHOOSE(m_identity,ENWL!AQ385, NPgN!AQ385, NPgY!AQ385, WMID!AQ385, EMID!AQ385, SWALES!AQ385, SWEST!AQ385, LPN!AQ385,SPN!AQ385,EPN!AQ385,SPD!AQ385,SPMW!AQ385,SSEH!AQ385,SSES!AQ385)","v":1.4075984232669822E-2}]
[]
[null,null,null,"Allocation check"]
[null,null,null,"Note: All categories should equal 100%"]
[]
[null,null,null,null,"Load Related",null,"%",null,null,null,null,null,null,null,null,null,null,null,null,null,null,null,null,null,null,null,null,null,null,null,null,null,null,null,null,{"$f":"AJ344+AJ353+AJ362+AJ371+AJ380","v":1},1,1,0.99999999999999989,1,1,1,1]
[null,null,null,null,"Non-load related capex - asset replacement",null,"%",null,null,null,null,null,null,null,null,null,null,null,null,null,null,null,null,null,null,null,null,null,null,null,null,null,null,null,null,1.0000000000000002,0.99999999999999989,0.99999999999999978,1,0.99999999999999989,1,1,1]
[null,null,null,null,"Non-Load Related - other",null,"%",null,null,null,null,null,null,null,null,null,null,null,null,null,null,null,null,null,null,null,null,null,null,null,null,null,null,null,null,0.99999999999999989,0.99999999999999989,1,1,1,0.99999999999999989,0.99999999999999989,0.99999999999999989]
[null,null,null,null,"Faults",null,null,null,null,null,null,null,null,null,null,null,null,null,null,null,null,null,null,null,null,null,null,null,null,null,null,null,null,null,null,1,1,0.99999999999999989,1,1,1,1,1]
[null,null,null,null,"Tree cutting",null,null,null,null,null,null,null,null,null,null,null,null,null,null,null,null,null,null,null,null,null,null,null,null,null,null,null,null,null,null,1,1,1,1,1,1,1,1]
[null,null,null,null,"Controllable Opex",null,"%",null,null,null,null,null,null,null,null,null,null,null,null,null,null,null,null,null,null,null,null,null,null,null,null,null,null,null,null,1,1,1,1,0.99999999999999989,1,0.99999999999999989,0.99999999999999989]
[]
[null,null,null,"Inputs for statutory depreciation"]
[]
[null,null,null,null,"Statutory depreciation as per BPDT",null,"£m 12/13 prices",null,null,null,null,null,null,null,null,null,null,null,null,null,null,null,null,null,null,null,null,null,null,null,null,null,null,null,null,{"$f":"CHOOSE(m_identity,ENWL!AJ399, NPgN!AJ399, NPgY!AJ399, WMID!AJ399, EMID!AJ399, SWALES!AJ399, SWEST!AJ399, LPN!AJ399,SPN!AJ399,EPN!AJ399,SPD!AJ399,SPMW!AJ399,SSEH!AJ399,SSES!AJ399)","v":72.461280142913978},{"$f":"CHOOSE(m_identity,ENWL!AK399, NPgN!AK399, NPgY!AK399, WMID!AK399, EMID!AK399, SWALES!AK399, SWEST!AK399, LPN!AK399,SPN!AK399,EPN!AK399,SPD!AK399,SPMW!AK399,SSEH!AK399,SSES!AK399)","v":77.383991092453357},{"$f":"CHOOSE(m_identity,ENWL!AL399, NPgN!AL399, NPgY!AL399, WMID!AL399, EMID!AL399, SWALES!AL399, SWEST!AL399, LPN!AL399,SPN!AL399,EPN!AL399,SPD!AL399,SPMW!AL399,SSEH!AL399,SSES!AL399)","v":81.759225735806041},{"$f":"CHOOSE(m_identity,ENWL!AM399, NPgN!AM399, NPgY!AM399, WMID!AM399, EMID!AM399, SWALES!AM399, SWEST!AM399, LPN!AM399,SPN!AM399,EPN!AM399,SPD!AM399,SPMW!AM399,SSEH!AM399,SSES!AM399)","v":84.34251725890968},{"$f":"CHOOSE(m_identity,ENWL!AN399, NPgN!AN399, NPgY!AN399, WMID!AN399, EMID!AN399, SWALES!AN399, SWEST!AN399, LPN!AN399,SPN!AN399,EPN!AN399,SPD!AN399,SPMW!AN399,SSEH!AN399,SSES!AN399)","v":86.838463434426018},{"$f":"CHOOSE(m_identity,ENWL!AO399, NPgN!AO399, NPgY!AO399, WMID!AO399, EMID!AO399, SWALES!AO399, SWEST!AO399, LPN!AO399,SPN!AO399,EPN!AO399,SPD!AO399,SPMW!AO399,SSEH!AO399,SSES!AO399)","v":90.574142236094175},{"$f":"CHOOSE(m_identity,ENWL!AP399, NPgN!AP399, NPgY!AP399, WMID!AP399, EMID!AP399, SWALES!AP399, SWEST!AP399, LPN!AP399,SPN!AP399,EPN!AP399,SPD!AP399,SPMW!AP399,SSEH!AP399,SSES!AP399)","v":94.392349821290708},{"$f":"CHOOSE(m_identity,ENWL!AQ399, NPgN!AQ399, NPgY!AQ399, WMID!AQ399, EMID!AQ399, SWALES!AQ399, SWEST!AQ399, LPN!AQ399,SPN!AQ399,EPN!AQ399,SPD!AQ399,SPMW!AQ399,SSEH!AQ399,SSES!AQ399)","v":99.766705825895002}]
[null,null,null,null,"Capex as per BPDT",null,"£m 12/13 prices",null,null,null,null,null,null,null,null,null,null,null,null,null,null,null,null,null,null,null,null,null,null,null,null,null,null,null,null,{"$f":"CHOOSE(m_identity,ENWL!AJ400, NPgN!AJ400, NPgY!AJ400, WMID!AJ400, EMID!AJ400, SWALES!AJ400, SWEST!AJ400, LPN!AJ400,SPN!AJ400,EPN!AJ400,SPD!AJ400,SPMW!AJ400,SSEH!AJ400,SSES!AJ400)","v":214.698866489306},{"$f":"CHOOSE(m_identity,ENWL!AK400, NPgN!AK400, NPgY!AK400, WMID!AK400, EMID!AK400, SWALES!AK400, SWEST!AK400, LPN!AK400,SPN!AK400,EPN!AK400,SPD!AK400,SPMW!AK400,SSEH!AK400,SSES!AK400)","v":221.17746090221945},{"$f":"CHOOSE(m_identity,ENWL!AL400, NPgN!AL400, NPgY!AL400, WMID!AL400, EMID!AL400, SWALES!AL400, SWEST!AL400, LPN!AL400,SPN!AL400,EPN!AL400,SPD!AL400,SPMW!AL400,SSEH!AL400,SSES!AL400)","v":218.28094487883089},{"$f":"CHOOSE(m_identity,ENWL!AM400, NPgN!AM400, NPgY!AM400, WMID!AM400, EMID!AM400, SWALES!AM400, SWEST!AM400, LPN!AM400,SPN!AM400,EPN!AM400,SPD!AM400,SPMW!AM400,SSEH!AM400,SSES!AM400)","v":228.40279604004752},{"$f":"CHOOSE(m_identity,ENWL!AN400, NPgN!AN400, NPgY!AN400, WMID!AN400, EMID!AN400, SWALES!AN400, SWEST!AN400, LPN!AN400,SPN!AN400,EPN!AN400,SPD!AN400,SPMW!AN400,SSEH!AN400,SSES!AN400)","v":243.73617140340809},{"$f":"CHOOSE(m_identity,ENWL!AO400, NPgN!AO400, NPgY!AO400, WMID!AO400, EMID!AO400, SWALES!AO400, SWEST!AO400, LPN!AO400,SPN!AO400,EPN!AO400,SPD!AO400,SPMW!AO400,SSEH!AO400,SSES!AO400)","v":256.8661991789499},{"$f":"CHOOSE(m_identity,ENWL!AP400, NPgN!AP400, NPgY!AP400, WMID!AP400, EMID!AP400, SWALES!AP400, SWEST!AP400, LPN!AP400,SPN!AP400,EPN!AP400,SPD!AP400,SPMW!AP400,SSEH!AP400,SSES!AP400)","v":262.581435558463},{"$f":"CHOOSE(m_identity,ENWL!AQ400, NPgN!AQ400, NPgY!AQ400, WMID!AQ400, EMID!AQ400, SWALES!AQ400, SWEST!AQ400, LPN!AQ400,SPN!AQ400,EPN!AQ400,SPD!AQ400,SPMW!AQ400,SSEH!AQ400,SSES!AQ400)","v":273.09729982142346}]
[]
[]
[null,null,null,"Tax Trigger Deadbands"]
[]
[null,null,null,null,"Tax Trigger Deadband",null,"£m 12/13 prices",null,null,null,null,null,null,null,null,null,null,null,null,null,null,null,null,null,null,null,null,null,null,null,null,null,null,null,null,{"$f":"CHOOSE(m_identity,ENWL!AJ405, NPgN!AJ405, NPgY!AJ405, WMID!AJ405, EMID!AJ405, SWALES!AJ405, SWEST!AJ405, LPN!AJ405,SPN!AJ405,EPN!AJ405,SPD!AJ405,SPMW!AJ405,SSEH!AJ405,SSES!AJ405)","v":0},{"$f":"CHOOSE(m_identity,ENWL!AK405, NPgN!AK405, NPgY!AK405, WMID!AK405, EMID!AK405, SWALES!AK405, SWEST!AK405, LPN!AK405,SPN!AK405,EPN!AK405,SPD!AK405,SPMW!AK405,SSEH!AK405,SSES!AK405)","v":0},{"$f":"CHOOSE(m_identity,ENWL!AL405, NPgN!AL405, NPgY!AL405, WMID!AL405, EMID!AL405, SWALES!AL405, SWEST!AL405, LPN!AL405,SPN!AL405,EPN!AL405,SPD!AL405,SPMW!AL405,SSEH!AL405,SSES!AL405)","v":0},{"$f":"CHOOSE(m_identity,ENWL!AM405, NPgN!AM405, NPgY!AM405, WMID!AM405, EMID!AM405, SWALES!AM405, SWEST!AM405, LPN!AM405,SPN!AM405,EPN!AM405,SPD!AM405,SPMW!AM405,SSEH!AM405,SSES!AM405)","v":0},{"$f":"CHOOSE(m_identity,ENWL!AN405, NPgN!AN405, NPgY!AN405, WMID!AN405, EMID!AN405, SWALES!AN405, SWEST!AN405, LPN!AN405,SPN!AN405,EPN!AN405,SPD!AN405,SPMW!AN405,SSEH!AN405,SSES!AN405)","v":0},{"$f":"CHOOSE(m_identity,ENWL!AO405, NPgN!AO405, NPgY!AO405, WMID!AO405, EMID!AO405, SWALES!AO405, SWEST!AO405, LPN!AO405,SPN!AO405,EPN!AO405,SPD!AO405,SPMW!AO405,SSEH!AO405,SSES!AO405)","v":0},{"$f":"CHOOSE(m_identity,ENWL!AP405, NPgN!AP405, NPgY!AP405, WMID!AP405, EMID!AP405, SWALES!AP405, SWEST!AP405, LPN!AP405,SPN!AP405,EPN!AP405,SPD!AP405,SPMW!AP405,SSEH!AP405,SSES!AP405)","v":0},{"$f":"CHOOSE(m_identity,ENWL!AQ405, NPgN!AQ405, NPgY!AQ405, WMID!AQ405, EMID!AQ405, SWALES!AQ405, SWEST!AQ405, LPN!AQ405,SPN!AQ405,EPN!AQ405,SPD!AQ405,SPMW!AQ405,SSEH!AQ405,SSES!AQ405)","v":0}]
[]
[null,null,null,"Profiling Values"]
[]
[null,null,null,null,"Initial Profile Adjustment",null,"£m 12/13 prices",null,null,null,null,null,null,null,null,null,null,null,null,null,null,null,null,null,null,null,null,null,null,null,null,null,null,null,null,{"$f":"CHOOSE(m_identity,ENWL!AJ409, NPgN!AJ409, NPgY!AJ409, WMID!AJ409, EMID!AJ409, SWALES!AJ409, SWEST!AJ409, LPN!AJ409,SPN!AJ409,EPN!AJ409,SPD!AJ409,SPMW!AJ409,SSEH!AJ409,SSES!AJ409)","v":0},{"$f":"CHOOSE(m_identity,ENWL!AK409, NPgN!AK409, NPgY!AK409, WMID!AK409, EMID!AK409, SWALES!AK409, SWEST!AK409, LPN!AK409,SPN!AK409,EPN!AK409,SPD!AK409,SPMW!AK409,SSEH!AK409,SSES!AK409)","v":0},{"$f":"CHOOSE(m_identity,ENWL!AL409, NPgN!AL409, NPgY!AL409, WMID!AL409, EMID!AL409, SWALES!AL409, SWEST!AL409, LPN!AL409,SPN!AL409,EPN!AL409,SPD!AL409,SPMW!AL409,SSEH!AL409,SSES!AL409)","v":0},{"$f":"CHOOSE(m_identity,ENWL!AM409, NPgN!AM409, NPgY!AM409, WMID!AM409, EMID!AM409, SWALES!AM409, SWEST!AM409, LPN!AM409,SPN!AM409,EPN!AM409,SPD!AM409,SPMW!AM409,SSEH!AM409,SSES!AM409)","v":0},{"$f":"CHOOSE(m_identity,ENWL!AN409, NPgN!AN409, NPgY!AN409, WMID!AN409, EMID!AN409, SWALES!AN409, SWEST!AN409, LPN!AN409,SPN!AN409,EPN!AN409,SPD!AN409,SPMW!AN409,SSEH!AN409,SSES!AN409)","v":0},{"$f":"CHOOSE(m_identity,ENWL!AO409, NPgN!AO409, NPgY!AO409, WMID!AO409, EMID!AO409, SWALES!AO409, SWEST!AO409, LPN!AO409,SPN!AO409,EPN!AO409,SPD!AO409,SPMW!AO409,SSEH!AO409,SSES!AO409)","v":0},{"$f":"CHOOSE(m_identity,ENWL!AP409, NPgN!AP409, NPgY!AP409, WMID!AP409, EMID!AP409, SWALES!AP409, SWEST!AP409, LPN!AP409,SPN!AP409,EPN!AP409,SPD!AP409,SPMW!AP409,SSEH!AP409,SSES!AP409)","v":0},{"$f":"CHOOSE(m_identity,ENWL!AQ409, NPgN!AQ409, NPgY!AQ409, WMID!AQ409, EMID!AQ409, SWALES!AQ409, SWEST!AQ409, LPN!AQ409,SPN!AQ409,EPN!AQ409,SPD!AQ409,SPMW!AQ409,SSEH!AQ409,SSES!AQ409)","v":0}]
[null,null,null,null,"Time Value of Money Profile Adjustment",null,"£m 12/13 prices",null,null,null,null,null,null,null,null,null,null,null,null,null,null,null,null,null,null,null,null,null,null,null,null,null,null,null,null,{"$f":"CHOOSE(m_identity,ENWL!AJ410, NPgN!AJ410, NPgY!AJ410, WMID!AJ410, EMID!AJ410, SWALES!AJ410, SWEST!AJ410, LPN!AJ410,SPN!AJ410,EPN!AJ410,SPD!AJ410,SPMW!AJ410,SSEH!AJ410,SSES!AJ410)","v":0},{"$f":"CHOOSE(m_identity,ENWL!AK410, NPgN!AK410, NPgY!AK410, WMID!AK410, EMID!AK410, SWALES!AK410, SWEST!AK410, LPN!AK410,SPN!AK410,EPN!AK410,SPD!AK410,SPMW!AK410,SSEH!AK410,SSES!AK410)","v":0},{"$f":"CHOOSE(m_identity,ENWL!AL410, NPgN!AL410, NPgY!AL410, WMID!AL410, EMID!AL410, SWALES!AL410, SWEST!AL410, LPN!AL410,SPN!AL410,EPN!AL410,SPD!AL410,SPMW!AL410,SSEH!AL410,SSES!AL410)","v":0},{"$f":"CHOOSE(m_identity,ENWL!AM410, NPgN!AM410, NPgY!AM410, WMID!AM410, EMID!AM410, SWALES!AM410, SWEST!AM410, LPN!AM410,SPN!AM410,EPN!AM410,SPD!AM410,SPMW!AM410,SSEH!AM410,SSES!AM410)","v":0},{"$f":"CHOOSE(m_identity,ENWL!AN410, NPgN!AN410, NPgY!AN410, WMID!AN410, EMID!AN410, SWALES!AN410, SWEST!AN410, LPN!AN410,SPN!AN410,EPN!AN410,SPD!AN410,SPMW!AN410,SSEH!AN410,SSES!AN410)","v":0},{"$f":"CHOOSE(m_identity,ENWL!AO410, NPgN!AO410, NPgY!AO410, WMID!AO410, EMID!AO410, SWALES!AO410, SWEST!AO410, LPN!AO410,SPN!AO410,EPN!AO410,SPD!AO410,SPMW!AO410,SSEH!AO410,SSES!AO410)","v":0},{"$f":"CHOOSE(m_identity,ENWL!AP410, NPgN!AP410, NPgY!AP410, WMID!AP410, EMID!AP410, SWALES!AP410, SWEST!AP410, LPN!AP410,SPN!AP410,EPN!AP410,SPD!AP410,SPMW!AP410,SSEH!AP410,SSES!AP410)","v":0},{"$f":"CHOOSE(m_identity,ENWL!AQ410, NPgN!AQ410, NPgY!AQ410, WMID!AQ410, EMID!AQ410, SWALES!AQ410, SWEST!AQ410, LPN!AQ410,SPN!AQ410,EPN!AQ410,SPD!AQ410,SPMW!AQ410,SSEH!AQ410,SSES!AQ410)","v":0}]
[null,null,null,null,"Time Value of Money Profile Increment",null,"£m 12/13 prices",null,null,null,null,null,null,null,null,null,null,null,null,null,null,null,null,null,null,null,null,null,null,null,null,null,null,null,null,{"$f":"AJ423","v":0},{"$f":"AK423","v":0},0,0,0,0,0,0]
[]
[null,null,null,null,"Time Value of Money Increment Calculations:"]
[]
[null,null,null,null,"WACC at FP (to be hard pasted at FP)",null,null,null,null,null,null,null,null,null,null,null,null,null,null,null,null,null,null,null,null,null,null,null,null,null,null,null,null,null,null,{"$f":"AJ416","v":4.2429999999999995E-2},{"$f":"AK416","v":4.2429999999999995E-2},4.2429999999999995E-2,4.2429999999999995E-2,4.2429999999999995E-2,4.2429999999999995E-2,4.2429999999999995E-2,4.2429999999999995E-2]
[null,null,null,null,"Current WACC",null,null,null,null,null,null,null,null,null,null,null,null,null,null,null,null,null,null,null,null,null,null,null,null,null,null,null,null,null,null,{"$f":"AJ48","v":4.2429999999999995E-2},{"$f":"AK48","v":4.2429999999999995E-2},4.2429999999999995E-2,4.2429999999999995E-2,4.2429999999999995E-2,4.2429999999999995E-2,4.2429999999999995E-2,4.2429999999999995E-2]
[]
[null,null,null,null,"IOU Account"]
[null,null,null,null,"Opening",null,null,null,null,null,null,null,null,null,null,null,null,null,null,null,null,null,null,null,null,null,null,null,null,null,null,null,null,null,null,{"$f":"CHOOSE(m_identity,ENWL!AJ419, NPgN!AJ419, NPgY!AJ419, WMID!AJ419, EMID!AJ419, SWALES!AJ419, SWEST!AJ419, LPN!AJ419,SPN!AJ419,EPN!AJ419,SPD!AJ419,SPMW!AJ419,SSEH!AJ419,SSES!AJ419)","v":1.0000000000000001E-9},{"$f":"CHOOSE(m_identity,ENWL!AK419, NPgN!AK419, NPgY!AK419, WMID!AK419, EMID!AK419, SWALES!AK419, SWEST!AK419, LPN!AK419,SPN!AK419,EPN!AK419,SPD!AK419,SPMW!AK419,SSEH!AK419,SSES!AK419)","v":1.0000000000000001E-9},{"$f":"CHOOSE(m_identity,ENWL!AL419, NPgN!AL419, NPgY!AL419, WMID!AL419, EMID!AL419, SWALES!AL419, SWEST!AL419, LPN!AL419,SPN!AL419,EPN!AL419,SPD!AL419,SPMW!AL419,SSEH!AL419,SSES!AL419)","v":1.0000000000000001E-9},{"$f":"CHOOSE(m_identity,ENWL!AM419, NPgN!AM419, NPgY!AM419, WMID!AM419, EMID!AM419, SWALES!AM419, SWEST!AM419, LPN!AM419,SPN!AM419,EPN!AM419,SPD!AM419,SPMW!AM419,SSEH!AM419,SSES!AM419)","v":1.0000000000000001E-9},{"$f":"CHOOSE(m_identity,ENWL!AN419, NPgN!AN419, NPgY!AN419, WMID!AN419, EMID!AN419, SWALES!AN419, SWEST!AN419, LPN!AN419,SPN!AN419,EPN!AN419,SPD!AN419,SPMW!AN419,SSEH!AN419,SSES!AN419)","v":1.0000000000000001E-9},{"$f":"CHOOSE(m_identity,ENWL!AO419, NPgN!AO419, NPgY!AO419, WMID!AO419, EMID!AO419, SWALES!AO419, SWEST!AO419, LPN!AO419,SPN!AO419,EPN!AO419,SPD!AO419,SPMW!AO419,SSEH!AO419,SSES!AO419)","v":1.0000000000000001E-9},{"$f":"CHOOSE(m_identity,ENWL!AP419, NPgN!AP419, NPgY!AP419, WMID!AP419, EMID!AP419, SWALES!AP419, SWEST!AP419, LPN!AP419,SPN!AP419,EPN!AP419,SPD!AP419,SPMW!AP419,SSEH!AP419,SSES!AP419)","v":1.0000000000000001E-9},{"$f":"CHOOSE(m_identity,ENWL!AQ419, NPgN!AQ419, NPgY!AQ419, WMID!AQ419, EMID!AQ419, SWALES!AQ419, SWEST!AQ419, LPN!AQ419,SPN!AQ419,EPN!AQ419,SPD!AQ419,SPMW!AQ419,SSEH!AQ419,SSES!AQ419)","v":1.0000000000000001E-9}]
[null,null,null,null,"Profiling Impact on Actual Revenues",null,null,null,null,null,null,null,null,null,null,null,null,null,null,null,null,null,null,null,null,null,null,null,null,null,null,null,null,null,null,{"$f":"CHOOSE(m_identity,ENWL!AJ420, NPgN!AJ420, NPgY!AJ420, WMID!AJ420, EMID!AJ420, SWALES!AJ420, SWEST!AJ420, LPN!AJ420,SPN!AJ420,EPN!AJ420,SPD!AJ420,SPMW!AJ420,SSEH!AJ420,SSES!AJ420)","v":0},{"$f":"CHOOSE(m_identity,ENWL!AK420, NPgN!AK420, NPgY!AK420, WMID!AK420, EMID!AK420, SWALES!AK420, SWEST!AK420, LPN!AK420,SPN!AK420,EPN!AK420,SPD!AK420,SPMW!AK420,SSEH!AK420,SSES!AK420)","v":0},{"$f":"CHOOSE(m_identity,ENWL!AL420, NPgN!AL420, NPgY!AL420, WMID!AL420, EMID!AL420, SWALES!AL420, SWEST!AL420, LPN!AL420,SPN!AL420,EPN!AL420,SPD!AL420,SPMW!AL420,SSEH!AL420,SSES!AL420)","v":0},{"$f":"CHOOSE(m_identity,ENWL!AM420, NPgN!AM420, NPgY!AM420, WMID!AM420, EMID!AM420, SWALES!AM420, SWEST!AM420, LPN!AM420,SPN!AM420,EPN!AM420,SPD!AM420,SPMW!AM420,SSEH!AM420,SSES!AM420)","v":0},{"$f":"CHOOSE(m_identity,ENWL!AN420, NPgN!AN420, NPgY!AN420, WMID!AN420, EMID!AN420, SWALES!AN420, SWEST!AN420, LPN!AN420,SPN!AN420,EPN!AN420,SPD!AN420,SPMW!AN420,SSEH!AN420,SSES!AN420)","v":0},{"$f":"CHOOSE(m_identity,ENWL!AO420, NPgN!AO420, NPgY!AO420, WMID!AO420, EMID!AO420, SWALES!AO420, SWEST!AO420, LPN!AO420,SPN!AO420,EPN!AO420,SPD!AO420,SPMW!AO420,SSEH!AO420,SSES!AO420)","v":0},{"$f":"CHOOSE(m_identity,ENWL!AP420, NPgN!AP420, NPgY!AP420, WMID!AP420, EMID!AP420, SWALES!AP420, SWEST!AP420, LPN!AP420,SPN!AP420,EPN!AP420,SPD!AP420,SPMW!AP420,SSEH!AP420,SSES!AP420)","v":0},{"$f":"CHOOSE(m_identity,ENWL!AQ420, NPgN!AQ420, NPgY!AQ420, WMID!AQ420, EMID!AQ420, SWALES!AQ420, SWEST!AQ420, LPN!AQ420,SPN!AQ420,EPN!AQ420,SPD!AQ420,SPMW!AQ420,SSEH!AQ420,SSES!AQ420)","v":0}]
[null,null,null,null,"Closing balance",null,null,null,null,null,null,null,null,null,null,null,null,null,null,null,null,null,null,null,null,null,null,null,null,null,null,null,null,null,null,{"$f":"CHOOSE(m_identity,ENWL!AJ421, NPgN!AJ421, NPgY!AJ421, WMID!AJ421, EMID!AJ421, SWALES!AJ421, SWEST!AJ421, LPN!AJ421,SPN!AJ421,EPN!AJ421,SPD!AJ421,SPMW!AJ421,SSEH!AJ421,SSES!AJ421)","v":0},{"$f":"CHOOSE(m_identity,ENWL!AK421, NPgN!AK421, NPgY!AK421, WMID!AK421, EMID!AK421, SWALES!AK421, SWEST!AK421, LPN!AK421,SPN!AK421,EPN!AK421,SPD!AK421,SPMW!AK421,SSEH!AK421,SSES!AK421)","v":0},{"$f":"CHOOSE(m_identity,ENWL!AL421, NPgN!AL421, NPgY!AL421, WMID!AL421, EMID!AL421, SWALES!AL421, SWEST!AL421, LPN!AL421,SPN!AL421,EPN!AL421,SPD!AL421,SPMW!AL421,SSEH!AL421,SSES!AL421)","v":0},{"$f":"CHOOSE(m_identity,ENWL!AM421, NPgN!AM421, NPgY!AM421, WMID!AM421, EMID!AM421, SWALES!AM421, SWEST!AM421, LPN!AM421,SPN!AM421,EPN!AM421,SPD!AM421,SPMW!AM421,SSEH!AM421,SSES!AM421)","v":0},{"$f":"CHOOSE(m_identity,ENWL!AN421, NPgN!AN421, NPgY!AN421, WMID!AN421, EMID!AN421, SWALES!AN421, SWEST!AN421, LPN!AN421,SPN!AN421,EPN!AN421,SPD!AN421,SPMW!AN421,SSEH!AN421,SSES!AN421)","v":0},{"$f":"CHOOSE(m_identity,ENWL!AO421, NPgN!AO421, NPgY!AO421, WMID!AO421, EMID!AO421, SWALES!AO421, SWEST!AO421, LPN!AO421,SPN!AO421,EPN!AO421,SPD!AO421,SPMW!AO421,SSEH!AO421,SSES!AO421)","v":0},{"$f":"CHOOSE(m_identity,ENWL!AP421, NPgN!AP421, NPgY!AP421, WMID!AP421, EMID!AP421, SWALES!AP421, SWEST!AP421, LPN!AP421,SPN!AP421,EPN!AP421,SPD!AP421,SPMW!AP421,SSEH!AP421,SSES!AP421)","v":0},{"$f":"CHOOSE(m_identity,ENWL!AQ421, NPgN!AQ421, NPgY!AQ421, WMID!AQ421, EMID!AQ421, SWALES!AQ421, SWEST!AQ421, LPN!AQ421,SPN!AQ421,EPN!AQ421,SPD!AQ421,SPMW!AQ421,SSEH!AQ421,SSES!AQ421)","v":0}]
[]
[null,null,null,null,"Time Value of Money Increment",null,null,null,null,null,null,null,null,null,null,null,null,null,null,null,null,null,null,null,null,null,null,null,null,null,null,null,null,null,null,{"$f":"AVERAGE(AJ419,AJ421)*(AJ416-AJ415)","v":0},{"$f":"AVERAGE(AK419,AK421)*(AK416-AK415)","v":0},0,0,0,0,0,0]

{"sheet":"Totex","index":6,"n_rows":88,"n_cols":43,"rows_kept":88,"cut":false,"hidden":false,"merged":[]}
["Totex"]
[null,{"$f":"UserInterface!G24","v":"WMID"},null,null,null,null,null,null,null,null,null,null,null,null,null,null,null,null,null,null,null,null,null,null,null,null,null,null,null,null,null,null,null,null,null,"Done"]
[]
[]
[]
[null,null,null,null,"Parameter",null,"Units",null,"Constant",null,null,null,null,null,null,null,null,null,null,null,null,null,null,null,null,null,null,null,null,null,null,null,null,null,null,"Annual values"]
[null,null,null,null,"PCFM year ending",null,null,null,{"$f":"UserInterface!$G$17","v":"2016-03-31"},null,"1991-03-31","1992-03-31","1993-03-31","1994-03-31","1995-03-31","1996-03-31","1997-03-31","1998-03-31","1999-03-31","2000-03-31","2001-03-31","2002-03-31","2003-03-31","2004-03-31","2005-03-31","2006-03-31","2007-03-31","2008-03-31","2009-03-31","2010-03-31","2011-03-31","2012-03-31","2013-03-31","2014-03-31","2015-03-31","2016-03-31","2017-03-31","2018-03-31","2019-03-31","2020-03-31","2021-03-31","2022-03-31","2023-03-31"]
[]
[null,"Totex"]
[]
[null,null,"Allowed totex aggregated by sub-category"]
[null,null,"Note: Totex is the sum of a number of cost categories, with all totex allowances falling under one (or more) of them. They have significance in the model as each sub-category can have its own set of tax pool allocation rules."]
[]
[null,null,null,"Non-variant allowances"]
[null,null,null,"Note: These values are set at final proposals and are not updated during the price control"]
[]
[null,null,null,null,"Non-variant allowed load related capex",null,"£m 12/13 prices",null,null,null,null,null,null,null,null,null,null,null,null,null,null,null,null,null,null,null,null,null,null,null,null,null,null,null,null,{"$f":"Input!AJ92","v":23.712681112648937},{"$f":"Input!AK92","v":24.593474157092636},{"$f":"Input!AL92","v":23.421714123686112},{"$f":"Input!AM92","v":27.807007913635879},{"$f":"Input!AN92","v":30.133106520414039},{"$f":"Input!AO92","v":27.215907151322639},{"$f":"Input!AP92","v":31.094740057889194},{"$f":"Input!AQ92","v":35.256453582127911}]
[null,null,null,null,"Non-variant allowed non-load related capex - asset replacement",null,"£m 12/13 prices",null,null,null,null,null,null,null,null,null,null,null,null,null,null,null,null,null,null,null,null,null,null,null,null,null,null,null,null,{"$f":"Input!AJ93","v":83.539292937835157},{"$f":"Input!AK93","v":84.462413912991479},{"$f":"Input!AL93","v":83.940473575451648},{"$f":"Input!AM93","v":85.914531508346371},{"$f":"Input!AN93","v":86.543054610358652},{"$f":"Input!AO93","v":92.151771756131083},{"$f":"Input!AP93","v":89.147234457493383},{"$f":"Input!AQ93","v":89.232184326821397}]
[null,null,null,null,"Non-variant allowed non-load related capex - other",null,"£m 12/13 prices",null,null,null,null,null,null,null,null,null,null,null,null,null,null,null,null,null,null,null,null,null,null,null,null,null,null,null,null,{"$f":"Input!AJ94","v":21.681489823659941},{"$f":"Input!AK94","v":20.080610881577943},{"$f":"Input!AL94","v":14.227605114554947},{"$f":"Input!AM94","v":11.691849278081481},{"$f":"Input!AN94","v":15.637769585408991},{"$f":"Input!AO94","v":17.624468229121806},{"$f":"Input!AP94","v":15.201799738944159},{"$f":"Input!AQ94","v":13.057595166409236}]
[null,null,null,null,"Non-variant allowed faults",null,"£m 12/13 prices",null,null,null,null,null,null,null,null,null,null,null,null,null,null,null,null,null,null,null,null,null,null,null,null,null,null,null,null,{"$f":"Input!AJ95","v":29.713184651258917},{"$f":"Input!AK95","v":29.630682848331062},{"$f":"Input!AL95","v":29.43749657570455},{"$f":"Input!AM95","v":29.37244065285628},{"$f":"Input!AN95","v":29.305382056594691},{"$f":"Input!AO95","v":29.356379835683697},{"$f":"Input!AP95","v":29.457984386319566},{"$f":"Input!AQ95","v":29.549209053400737}]
[null,null,null,null,"Non-variant allowed tree cutting",null,"£m 12/13 prices",null,null,null,null,null,null,null,null,null,null,null,null,null,null,null,null,null,null,null,null,null,null,null,null,null,null,null,null,{"$f":"Input!AJ96","v":8.1828742030734372},{"$f":"Input!AK96","v":8.208633246856742},{"$f":"Input!AL96","v":8.2147790048471165},{"$f":"Input!AM96","v":8.2711943632667904},{"$f":"Input!AN96","v":8.3281763807515148},{"$f":"Input!AO96","v":8.3861343080579367},{"$f":"Input!AP96","v":8.4421151511576138},{"$f":"Input!AQ96","v":8.5020101597223565}]
[null,null,null,null,"Non-variant allowed controllable opex",null,"£m 12/13 prices",null,null,null,null,null,null,null,null,null,null,null,null,null,null,null,null,null,null,null,null,null,null,null,null,null,null,null,null,{"$f":"Input!AJ97","v":93.435268005339822},{"$f":"Input!AK97","v":93.637008663314887},{"$f":"Input!AL97","v":93.87545379110108},{"$f":"Input!AM97","v":94.519528796948862},{"$f":"Input!AN97","v":95.468057637810546},{"$f":"Input!AO97","v":95.483459008462304},{"$f":"Input!AP97","v":94.501063988771946},{"$f":"Input!AQ97","v":94.992257906688664}]
[]
[null,null,null,"Variant"]
[null,null,null,"Note: Licence conditions may allow for non-baseline allowances to be granted. These are added to the baseline to generate the allowed sub-categories and thereby the overall allowed totex."]
[]
[null,null,null,null,"Variant allowed load related capex",null,{"$f":"Input!G189","v":"£m 12/13 prices"},null,null,null,null,null,null,null,null,null,null,null,null,null,null,null,null,null,null,null,null,null,null,null,null,null,null,null,null,{"$f":"Input!AJ189","v":0},{"$f":"Input!AK189","v":0},{"$f":"Input!AL189","v":0},{"$f":"Input!AM189","v":0},{"$f":"Input!AN189","v":0},{"$f":"Input!AO189","v":0},{"$f":"Input!AP189","v":0},{"$f":"Input!AQ189","v":0}]
[null,null,null,null,"Variant allowed non-load related capex - asset replacement",null,{"$f":"Input!G190","v":"£m 12/13 prices"},null,null,null,null,null,null,null,null,null,null,null,null,null,null,null,null,null,null,null,null,null,null,null,null,null,null,null,null,{"$f":"Input!AJ190","v":6.6850358143958108E-2},{"$f":"Input!AK190","v":0.5804095817614412},{"$f":"Input!AL190","v":0.58029041901528677},{"$f":"Input!AM190","v":7.1007259041343376E-2},{"$f":"Input!AN190","v":7.1935693595704051E-2},{"$f":"Input!AO190","v":7.2924315337734205E-2},{"$f":"Input!AP190","v":7.3879229101923655E-2},{"$f":"Input!AQ190","v":7.4865796598177686E-2}]
[null,null,null,null,"Variant allowed non-load related capex - other",null,{"$f":"Input!G191","v":"£m 12/13 prices"},null,null,null,null,null,null,null,null,null,null,null,null,null,null,null,null,null,null,null,null,null,null,null,null,null,null,null,null,{"$f":"Input!AJ191","v":0.32086328195134051},{"$f":"Input!AK191","v":0.32012347815469605},{"$f":"Input!AL191","v":0.32075061980619068},{"$f":"Input!AM191","v":0.3200639505270263},{"$f":"Input!AN191","v":0.32054124459468625},{"$f":"Input!AO191","v":0.32108466564649085},{"$f":"Input!AP191","v":0.32034348109040567},{"$f":"Input!AQ191","v":0.32108561571780592}]
[null,null,null,null,"Variant allowed faults",null,{"$f":"Input!G192","v":"£m 12/13 prices"},null,null,null,null,null,null,null,null,null,null,null,null,null,null,null,null,null,null,null,null,null,null,null,null,null,null,null,null,{"$f":"Input!AJ192","v":9.50322103350692E-2},{"$f":"Input!AK192","v":9.8926578660803247E-2},{"$f":"Input!AL192","v":9.9895821457331627E-2},{"$f":"Input!AM192","v":0.10144192251604647},{"$f":"Input!AN192","v":0.10301467160240724},{"$f":"Input!AO192","v":0.10461537226275736},{"$f":"Input!AP192","v":0.10624845654693749},{"$f":"Input!AQ192","v":0.1079176823857898}]
[null,null,null,null,"Variant allowed tree cutting",null,{"$f":"Input!G193","v":"£m 12/13 prices"},null,null,null,null,null,null,null,null,null,null,null,null,null,null,null,null,null,null,null,null,null,null,null,null,null,null,null,null,{"$f":"Input!AJ193","v":0},{"$f":"Input!AK193","v":0},{"$f":"Input!AL193","v":0},{"$f":"Input!AM193","v":0},{"$f":"Input!AN193","v":0},{"$f":"Input!AO193","v":0},{"$f":"Input!AP193","v":0},{"$f":"Input!AQ193","v":0}]
[null,null,null,null,"Variant allowed controllable opex",null,{"$f":"Input!G194","v":"£m 12/13 prices"},null,null,null,null,null,null,null,null,null,null,null,null,null,null,null,null,null,null,null,null,null,null,null,null,null,null,null,null,{"$f":"Input!AJ194","v":5.2486320406245866E-2},{"$f":"Input!AK194","v":5.1858360656762227E-2},{"$f":"Input!AL194","v":5.0565223182818066E-2},{"$f":"Input!AM194","v":4.5902567234348074E-2},{"$f":"Input!AN194","v":4.2000926042862867E-2},{"$f":"Input!AO194","v":4.3730330780959767E-2},{"$f":"Input!AP194","v":0},{"$f":"Input!AQ194","v":0}]
[]
[null,null,null,"Allowance"]
[null,null,null,"Note: \"Allowed totex\" is exported to be used in the TIM calculation. The allowed totex sub-categories are used below to create forecast actuals for the tax calculation and the TIM calculation when actuals are not yet available."]
[]
[null,null,null,null,"Allowed load related capex",null,"£m 12/13 prices",null,null,null,null,null,null,null,null,null,null,null,null,null,null,null,null,null,null,null,null,null,null,null,null,null,null,null,null,{"$f":"AJ17 + AJ27","v":23.712681112648937},24.593474157092636,23.421714123686112,27.807007913635879,30.133106520414039,27.215907151322639,31.094740057889194,35.256453582127911]
[null,null,null,null,"Allowed non-load related capex - asset replacement",null,"£m 12/13 prices",null,null,null,null,null,null,null,null,null,null,null,null,null,null,null,null,null,null,null,null,null,null,null,null,null,null,null,null,83.606143295979109,85.042823494752923,84.520763994466932,85.985538767387709,86.614990303954357,92.224696071468813,89.221113686595302,89.307050123419572]
[null,null,null,null,"Allowed non-load related capex - other",null,"£m 12/13 prices",null,null,null,null,null,null,null,null,null,null,null,null,null,null,null,null,null,null,null,null,null,null,null,null,null,null,null,null,22.002353105611281,20.400734359732638,14.548355734361138,12.011913228608508,15.958310830003677,17.945552894768298,15.522143220034565,13.378680782127041]
[null,null,null,null,"Allowed faults",null,"£m 12/13 prices",null,null,null,null,null,null,null,null,null,null,null,null,null,null,null,null,null,null,null,null,null,null,null,null,null,null,null,null,29.808216861593987,29.729609426991864,29.537392397161881,29.473882575372325,29.408396728197097,29.460995207946453,29.564232842866502,29.657126735786527]
[null,null,null,null,"Allowed tree cutting",null,"£m 12/13 prices",null,null,null,null,null,null,null,null,null,null,null,null,null,null,null,null,null,null,null,null,null,null,null,null,null,null,null,null,8.1828742030734372,8.208633246856742,8.2147790048471165,8.2711943632667904,8.3281763807515148,8.3861343080579367,8.4421151511576138,8.5020101597223565]
[null,null,null,null,"Allowed controllable opex",null,"£m 12/13 prices",null,null,null,null,null,null,null,null,null,null,null,null,null,null,null,null,null,null,null,null,null,null,null,null,null,null,null,null,93.487754325746067,93.688867023971653,93.926019014283895,94.565431364183212,95.510058563853406,95.527189339243264,94.501063988771946,94.992257906688664]
[null,null,null,null,"Allowed totex",null,"£m 12/13 prices",null,null,null,null,null,null,null,null,null,null,null,null,null,null,null,null,null,null,null,null,null,null,null,null,null,null,null,null,{"$f":"SUM(AJ37:AJ42)","v":260.80002290465279},261.66414170939845,254.16902426880708,258.11496821245441,265.95303932717411,270.7604749728074,268.34540894731509,271.09357928987208]
[]
[null,null,"Actual totex"]
[]
[null,null,null,"Source of actuals"]
[null,null,null,"Note: The model assumes that there is a time lag from year t until actual expenditure data becomes available for the model. After the lag, actual expenditure inputs are used. Up to that point the model generates a forecast actual expenditure."]
[null,null,null,"When required in the model, forecasts assume that actuals are equal to their corresponding allowance."]
[null,null,null,"In a year where actual totex is assumed to be available, values must be inputted to the model as it will not generate a forecast and the empty input cell will be read as an actual spend of zero."]
[]
[null,null,null,null,"Years from t until normal reporting of actual costs",null,"years",null,{"$f":"Input!I59","v":2}]
[null,null,null,null,"Input actuals used",null,"text",null,null,null,null,null,null,null,null,null,null,null,null,null,null,null,null,null,null,null,null,null,null,null,null,null,null,null,null,{"$f":"YEAR($I$7) >= YEAR(AJ$7) + $I52","v":false},false,false,false,false,false,false,false]
[null,null,null,null,"Forecast actuals generated from allowances",null,"text",null,null,null,null,null,null,null,null,null,null,null,null,null,null,null,null,null,null,null,null,null,null,null,null,null,null,null,null,{"$f":"YEAR($I$7) < YEAR(AJ$7) + $I52","v":true},true,true,true,true,true,true,true]
[]
[null,null,null,"Actual totex from cost reporting processes and final proposals"]
[]
[null,null,null,null,"Actual load related capex",null,"£m 12/13 prices",null,null,null,null,null,null,null,null,null,null,null,null,null,null,null,null,null,null,null,null,null,null,null,null,null,null,null,null,{"$f":"IF(AJ$53, Input!AJ198, 0)","v":0},{"$f":"IF(AK$53, Input!AK198, 0)","v":0},{"$f":"IF(AL$53, Input!AL198, 0)","v":0},{"$f":"IF(AM$53, Input!AM198, 0)","v":0},{"$f":"IF(AN$53, Input!AN198, 0)","v":0},{"$f":"IF(AO$53, Input!AO198, 0)","v":0},{"$f":"IF(AP$53, Input!AP198, 0)","v":0},{"$f":"IF(AQ$53, Input!AQ198, 0)","v":0}]
[null,null,null,null,"Actual non-load related capex - asset replacement",null,"£m 12/13 prices",null,null,null,null,null,null,null,null,null,null,null,null,null,null,null,null,null,null,null,null,null,null,null,null,null,null,null,null,{"$f":"IF(AJ$53, Input!AJ199, 0)","v":0},{"$f":"IF(AK$53, Input!AK199, 0)","v":0},{"$f":"IF(AL$53, Input!AL199, 0)","v":0},{"$f":"IF(AM$53, Input!AM199, 0)","v":0},{"$f":"IF(AN$53, Input!AN199, 0)","v":0},{"$f":"IF(AO$53, Input!AO199, 0)","v":0},{"$f":"IF(AP$53, Input!AP199, 0)","v":0},{"$f":"IF(AQ$53, Input!AQ199, 0)","v":0}]
[null,null,null,null,"Actual non-load related capex - other",null,"£m 12/13 prices",null,null,null,null,null,null,null,null,null,null,null,null,null,null,null,null,null,null,null,null,null,null,null,null,null,null,null,null,{"$f":"IF(AJ$53, Input!AJ200, 0)","v":0},{"$f":"IF(AK$53, Input!AK200, 0)","v":0},{"$f":"IF(AL$53, Input!AL200, 0)","v":0},{"$f":"IF(AM$53, Input!AM200, 0)","v":0},{"$f":"IF(AN$53, Input!AN200, 0)","v":0},{"$f":"IF(AO$53, Input!AO200, 0)","v":0},{"$f":"IF(AP$53, Input!AP200, 0)","v":0},{"$f":"IF(AQ$53, Input!AQ200, 0)","v":0}]
[null,null,null,null,"Actual faults",null,"£m 12/13 prices",null,null,null,null,null,null,null,null,null,null,null,null,null,null,null,null,null,null,null,null,null,null,null,null,null,null,null,null,{"$f":"IF(AJ$53, Input!AJ201, 0)","v":0},{"$f":"IF(AK$53, Input!AK201, 0)","v":0},{"$f":"IF(AL$53, Input!AL201, 0)","v":0},{"$f":"IF(AM$53, Input!AM201, 0)","v":0},{"$f":"IF(AN$53, Input!AN201, 0)","v":0},{"$f":"IF(AO$53, Input!AO201, 0)","v":0},{"$f":"IF(AP$53, Input!AP201, 0)","v":0},{"$f":"IF(AQ$53, Input!AQ201, 0)","v":0}]
[null,null,null,null,"Actual tree cutting",null,"£m 12/13 prices",null,null,null,null,null,null,null,null,null,null,null,null,null,null,null,null,null,null,null,null,null,null,null,null,null,null,null,null,{"$f":"IF(AJ$53, Input!AJ202, 0)","v":0},{"$f":"IF(AK$53, Input!AK202, 0)","v":0},{"$f":"IF(AL$53, Input!AL202, 0)","v":0},{"$f":"IF(AM$53, Input!AM202, 0)","v":0},{"$f":"IF(AN$53, Input!AN202, 0)","v":0},{"$f":"IF(AO$53, Input!AO202, 0)","v":0},{"$f":"IF(AP$53, Input!AP202, 0)","v":0},{"$f":"IF(AQ$53, Input!AQ202, 0)","v":0}]
[null,null,null,null,"Actual controllable opex",null,"£m 12/13 prices",null,null,null,null,null,null,null,null,null,null,null,null,null,null,null,null,null,null,null,null,null,null,null,null,null,null,null,null,{"$f":"IF(AJ$53, Input!AJ203, 0)","v":0},{"$f":"IF(AK$53, Input!AK203, 0)","v":0},{"$f":"IF(AL$53, Input!AL203, 0)","v":0},{"$f":"IF(AM$53, Input!AM203, 0)","v":0},{"$f":"IF(AN$53, Input!AN203, 0)","v":0},{"$f":"IF(AO$53, Input!AO203, 0)","v":0},{"$f":"IF(AP$53, Input!AP203, 0)","v":0},{"$f":"IF(AQ$53, Input!AQ203, 0)","v":0}]
[]
[]
[null,null,null,"Forecast totex from new allowances"]
[]
[null,null,null,null,"Forecast actual load related capex",null,"£m 12/13 prices",null,null,null,null,null,null,null,null,null,null,null,null,null,null,null,null,null,null,null,null,null,null,null,null,null,null,null,null,{"$f":"IF(AJ$54, AJ37, 0)","v":23.712681112648937},24.593474157092636,23.421714123686112,27.807007913635879,30.133106520414039,27.215907151322639,31.094740057889194,35.256453582127911]
[null,null,null,null,"Forecast actual non-load related capex - asset replacement",null,"£m 12/13 prices",null,null,null,null,null,null,null,null,null,null,null,null,null,null,null,null,null,null,null,null,null,null,null,null,null,null,null,null,83.606143295979109,85.042823494752923,84.520763994466932,85.985538767387709,86.614990303954357,92.224696071468813,89.221113686595302,89.307050123419572]
[null,null,null,null,"Forecast actual non-load related capex - other",null,"£m 12/13 prices",null,null,null,null,null,null,null,null,null,null,null,null,null,null,null,null,null,null,null,null,null,null,null,null,null,null,null,null,22.002353105611281,20.400734359732638,14.548355734361138,12.011913228608508,15.958310830003677,17.945552894768298,15.522143220034565,13.378680782127041]
[null,null,null,null,"Forecast actual faults",null,"£m 12/13 prices",null,null,null,null,null,null,null,null,null,null,null,null,null,null,null,null,null,null,null,null,null,null,null,null,null,null,null,null,29.808216861593987,29.729609426991864,29.537392397161881,29.473882575372325,29.408396728197097,29.460995207946453,29.564232842866502,29.657126735786527]
[null,null,null,null,"Forecast actual tree cutting",null,"£m 12/13 prices",null,null,null,null,null,null,null,null,null,null,null,null,null,null,null,null,null,null,null,null,null,null,null,null,null,null,null,null,8.1828742030734372,8.208633246856742,8.2147790048471165,8.2711943632667904,8.3281763807515148,8.3861343080579367,8.4421151511576138,8.5020101597223565]
[null,null,null,null,"Forecast actual controllable opex",null,"£m 12/13 prices",null,null,null,null,null,null,null,null,null,null,null,null,null,null,null,null,null,null,null,null,null,null,null,null,null,null,null,null,{"$f":"IF(AJ$54, AJ42, 0)","v":93.487754325746067},93.688867023971653,93.926019014283895,94.565431364183212,95.510058563853406,95.527189339243264,94.501063988771946,94.992257906688664]
[]
[null,null,null,"Totex applied"]
[null,null,null,"Note: Actuals are exported both to identify performance against the allowance and to generate writing down allowances used in the tax calculation."]
[]
[null,null,null,null,"Actual load related capex",null,"£m 12/13 prices",null,null,null,null,null,null,null,null,null,null,null,null,null,null,null,null,null,null,null,null,null,null,null,null,null,null,null,null,{"$f":"AJ58 + AJ68","v":23.712681112648937},24.593474157092636,23.421714123686112,27.807007913635879,30.133106520414039,27.215907151322639,31.094740057889194,35.256453582127911]
[null,null,null,null,"Actual non-load related capex - asset replacement",null,"£m 12/13 prices",null,null,null,null,null,null,null,null,null,null,null,null,null,null,null,null,null,null,null,null,null,null,null,null,null,null,null,null,83.606143295979109,85.042823494752923,84.520763994466932,85.985538767387709,86.614990303954357,92.224696071468813,89.221113686595302,89.307050123419572]
[null,null,null,null,"Actual non-load related capex - other",null,"£m 12/13 prices",null,null,null,null,null,null,null,null,null,null,null,null,null,null,null,null,null,null,null,null,null,null,null,null,null,null,null,null,22.002353105611281,20.400734359732638,14.548355734361138,12.011913228608508,15.958310830003677,17.945552894768298,15.522143220034565,13.378680782127041]
[null,null,null,null,"Actual faults",null,"£m 12/13 prices",null,null,null,null,null,null,null,null,null,null,null,null,null,null,null,null,null,null,null,null,null,null,null,null,null,null,null,null,{"$f":"AJ61 + AJ71","v":29.808216861593987},29.729609426991864,29.537392397161881,29.473882575372325,29.408396728197097,29.460995207946453,29.564232842866502,29.657126735786527]
[null,null,null,null,"Actual tree cutting",null,"£m 12/13 prices",null,null,null,null,null,null,null,null,null,null,null,null,null,null,null,null,null,null,null,null,null,null,null,null,null,null,null,null,8.1828742030734372,8.208633246856742,8.2147790048471165,8.2711943632667904,8.3281763807515148,8.3861343080579367,8.4421151511576138,8.5020101597223565]
[null,null,null,null,"Actual controllable opex",null,"£m 12/13 prices",null,null,null,null,null,null,null,null,null,null,null,null,null,null,null,null,null,null,null,null,null,null,null,null,null,null,null,null,93.487754325746067,93.688867023971653,93.926019014283895,94.565431364183212,95.510058563853406,95.527189339243264,94.501063988771946,94.992257906688664]
[null,null,null,null,"Actual totex",null,"£m 12/13 prices",null,null,null,null,null,null,null,null,null,null,null,null,null,null,null,null,null,null,null,null,null,null,null,null,null,null,null,null,{"$f":"SUM(AJ78:AJ83)","v":260.80002290465279},261.66414170939845,254.16902426880708,258.11496821245441,265.95303932717411,270.7604749728074,268.34540894731509,271.09357928987208]
[]
[null,"End of sheet"]
[]
[null,null,null,null,null,null,null,null,null,null,null,null,null,null,null,null,null,null,null,null,null,null,null,null,null,null,null,null,null,null,null,null,null,null,null,{"$f":"(Totex!AJ84 - Totex!AJ83 - Totex!AJ80)","v":145.30991547329543}]

{"sheet":"TIM","index":7,"n_rows":86,"n_cols":43,"rows_kept":86,"cut":false,"hidden":false,"merged":[]}
["Totex Incentive Mechanism (TIM)"]
[null,{"$f":"UserInterface!G24","v":"WMID"},null,null,null,null,null,null,null,null,null,null,null,null,null,null,null,null,null,null,null,null,null,null,null,null,null,null,null,null,null,null,null,null,null,"Done"]
[]
[]
[]
[null,null,null,null,"Parameter",null,"Units",null,"Constant",null,null,null,null,null,null,null,null,null,null,null,null,null,null,null,null,null,null,null,null,null,null,null,null,null,null,"Annual values"]
[null,null,null,null,"PCFM year ending",null,null,null,{"$f":"UserInterface!$G$17","v":"2016-03-31"},null,"1991-03-31","1992-03-31","1993-03-31","1994-03-31","1995-03-31","1996-03-31","1997-03-31","1998-03-31","1999-03-31","2000-03-31","2001-03-31","2002-03-31","2003-03-31","2004-03-31","2005-03-31","2006-03-31","2007-03-31","2008-03-31","2009-03-31","2010-03-31","2011-03-31","2012-03-31","2013-03-31","2014-03-31","2015-03-31","2016-03-31","2017-03-31","2018-03-31","2019-03-31","2020-03-31","2021-03-31","2022-03-31","2023-03-31"]
[]
[null,"Efficiency incentive"]
[]
[null,null,"Incentive strength"]
[]
[null,null,null,null,"Incentive strength",null,"%",null,{"$f":"Input!I65","v":0.7}]
[]
[null,null,"Additional income"]
[]
[null,null,null,null,"Ofgem view",null,"%",null,{"$f":"Input!I67","v":0.75}]
[null,null,null,null,"Operator view",null,"%",null,{"$f":"Input!I68","v":0.25}]
[]
[null,null,null,null,"Ofgem view of group price control totex",null,"£m 12/13 prices",null,{"$f":"Input!I73","v":7063.2910311137712}]
[]
[null,null,null,null,"Additional income % ",null,"%",null,{"$f":"Input!I63","v":2.5000000000000001E-2}]
[]
[null,null,null,null,"Additional income at group level",null,"£m 12/13 prices",null,{"$f":"I20*I22","v":176.5822757778443}]
[]
[null,null,null,null,"Forecast licensee totex",null,"£m 12/13 prices",null,{"$f":"Input!I70*Input!$I$67+Input!I71*Input!$I$68","v":2109.2260156085922}]
[null,null,null,null,"Forecast group totex",null,"£m 12/13 prices",null,{"$f":"Input!I73*I17 + Input!I74*I18","v":7063.2910311137712}]
[null,null,null,null,"Percentage of group totex at licensee level",null,"%",null,{"$f":"I26 / I27","v":0.29861802470228954}]
[]
[null,"Efficiency incentive"]
[]
[null,null,"Post-TIM overspend (underspend)"]
[null,null,"Note: Totex overspend (underspend) is identified and subject to the \"efficiency incentive rate.\" "]
[]
[null,null,null,"Totex "]
[]
[null,null,null,null,"Actual totex ",null,"£m 12/13 prices",null,null,null,null,null,null,null,null,null,null,null,null,null,null,null,null,null,null,null,null,null,null,null,null,null,null,null,null,{"$f":"Totex!AJ84","v":260.80002290465279},{"$f":"Totex!AK84","v":261.66414170939845},{"$f":"Totex!AL84","v":254.16902426880708},{"$f":"Totex!AM84","v":258.11496821245441},{"$f":"Totex!AN84","v":265.95303932717411},{"$f":"Totex!AO84","v":270.7604749728074},{"$f":"Totex!AP84","v":268.34540894731509},{"$f":"Totex!AQ84","v":271.09357928987208}]
[null,null,null,null,"Less allowed totex",null,"£m 12/13 prices",null,null,null,null,null,null,null,null,null,null,null,null,null,null,null,null,null,null,null,null,null,null,null,null,null,null,null,null,{"$f":"-Totex!AJ43","v":-260.80002290465279},{"$f":"-Totex!AK43","v":-261.66414170939845},{"$f":"-Totex!AL43","v":-254.16902426880708},{"$f":"-Totex!AM43","v":-258.11496821245441},{"$f":"-Totex!AN43","v":-265.95303932717411},{"$f":"-Totex!AO43","v":-270.7604749728074},{"$f":"-Totex!AP43","v":-268.34540894731509},{"$f":"-Totex!AQ43","v":-271.09357928987208}]
[null,null,null,null,"Pre-TIM totex overspend (underspend)",null,"£m 12/13 prices",null,null,null,null,null,null,null,null,null,null,null,null,null,null,null,null,null,null,null,null,null,null,null,null,null,null,null,null,{"$f":"SUM(AJ37:AJ38)","v":0},0,0,0,0,0,0,0]
[]
[null,null,null,null,"Funding Adjustment Rate (often referred to as 'sharing factor')",null,"%",null,null,null,null,null,null,null,null,null,null,null,null,null,null,null,null,null,null,null,null,null,null,null,null,null,null,null,null,{"$f":"(1 - $I$13)","v":0.30000000000000004},{"$f":"(1 - $I$13)","v":0.30000000000000004},0.30000000000000004,0.30000000000000004,0.30000000000000004,0.30000000000000004,0.30000000000000004,0.30000000000000004]
[]
[null,null,null,null,"Post-TIM totex overspend (underspend)",null,"£m 12/13 prices",null,null,null,null,null,null,null,null,null,null,null,null,null,null,null,null,null,null,null,null,null,null,null,null,null,null,null,null,{"$f":"AJ$41 * AJ39","v":0},{"$f":"AK$41 * AK39","v":0},{"$f":"AL$41 * AL39","v":0},0,0,0,0,0]
[]
[null,null,"Post-TIM totex"]
[null,null,"Note: \"Post-TIM overspend (underspend)\" is added to the allowed totex value to give the Post-TIM totex allowance to be split into fast and slow money."]
[]
[null,null,null,"Totex excluding 'non-load related capex - other'"]
[]
[null,null,null,null,"Allowed totex",null,"£m 12/13 prices",null,null,null,null,null,null,null,null,null,null,null,null,null,null,null,null,null,null,null,null,null,null,null,null,null,null,null,null,{"$f":"-AJ38","v":260.80002290465279},{"$f":"-AK38","v":261.66414170939845},254.16902426880708,258.11496821245441,265.95303932717411,270.7604749728074,268.34540894731509,271.09357928987208]
[null,null,null,null,"Post-TIM totex overspend (underspend)",null,"£m 12/13 prices",null,null,null,null,null,null,null,null,null,null,null,null,null,null,null,null,null,null,null,null,null,null,null,null,null,null,null,null,{"$f":"AJ43","v":0},0,0,0,0,0,0,0]
[null,null,null,null,"Post-TIM totex",null,"£m 12/13 prices",null,null,null,null,null,null,null,null,null,null,null,null,null,null,null,null,null,null,null,null,null,null,null,null,null,null,null,null,{"$f":"SUM(AJ50:AJ51)","v":260.80002290465279},261.66414170939845,254.16902426880708,258.11496821245441,265.95303932717411,270.7604749728074,268.34540894731509,271.09357928987208]
[]
[null,"Capitalisation"]
[null,"Note: Post-TIM totex are allocated into \"fast\" and \"slow\" elements based on a pre-set percentage split:"]
[null,"- \"fast money \" is exported to the \"Revenue\" sheet where it is included as an element of \"recalculated base revenue;\" and"]
[null,"- \"slow money \" is exported to the \"Depn\" sheet where it is added to RAV. Slow money is recovered over the life of the RAV through regulatory depreciation and return allowances."]
[]
[null,null,"Separate capitalisation"]
[]
[null,null,null,"Totex excluding 'non-load related capex - other'"]
[]
[null,null,null,null,"Post-TIM totex",null,"£m 12/13 prices",null,null,null,null,null,null,null,null,null,null,null,null,null,null,null,null,null,null,null,null,null,null,null,null,null,null,null,null,{"$f":"AJ52","v":260.80002290465279},261.66414170939845,254.16902426880708,258.11496821245441,265.95303932717411,270.7604749728074,268.34540894731509,271.09357928987208]
[null,null,null,null,"Capitalised share of totex",null,"%",null,null,null,null,null,null,null,null,null,null,null,null,null,null,null,null,null,null,null,null,null,null,null,null,null,null,null,null,{"$f":"Input!AJ61","v":0.8},{"$f":"Input!AK61","v":0.8},{"$f":"Input!AL61","v":0.8},{"$f":"Input!AM61","v":0.8},{"$f":"Input!AN61","v":0.8},{"$f":"Input!AO61","v":0.8},{"$f":"Input!AP61","v":0.8},{"$f":"Input!AQ61","v":0.8}]
[null,null,null,null,"Totex fast pot expenditure",null,"£m 12/13 prices",null,null,null,null,null,null,null,null,null,null,null,null,null,null,null,null,null,null,null,null,null,null,null,null,null,null,null,null,{"$f":"AJ63-AJ66","v":52.160004580930547},52.33282834187969,50.833804853761393,51.622993642490883,53.190607865434799,54.15209499456148,53.669081789463007,54.218715857974416]
[null,null,null,null,"Totex slow pot expenditure",null,"£m 12/13 prices",null,null,null,null,null,null,null,null,null,null,null,null,null,null,null,null,null,null,null,null,null,null,null,null,null,null,null,null,{"$f":"AJ63 * AJ64","v":208.64001832372224},{"$f":"AK63 * AK64","v":209.33131336751876},203.33521941504569,206.49197456996353,212.76243146173931,216.60837997824592,214.67632715785209,216.87486343189767]
[]
[null,null,"Totex"]
[]
[null,null,null,null,"Fast pot expenditure",null,"£m 12/13 prices",null,null,null,null,null,null,null,null,null,null,null,null,null,null,null,null,null,null,null,null,null,null,null,null,null,null,null,null,{"$f":"AJ65","v":52.160004580930547},{"$f":"AK65","v":52.33282834187969},50.833804853761393,51.622993642490883,53.190607865434799,54.15209499456148,53.669081789463007,54.218715857974416]
[]
[null,null,null,null,"Slow pot expenditure",null,"£m 12/13 prices",null,null,null,null,null,null,null,null,null,null,null,null,null,null,null,null,null,null,null,null,null,null,null,null,null,null,null,null,{"$f":"AJ66","v":208.64001832372224},{"$f":"AK66","v":209.33131336751876},203.33521941504569,206.49197456996353,212.76243146173931,216.60837997824592,214.67632715785209,216.87486343189767]
[]
[null,"Additional income"]
[null,"Note: The additional income lump sum is recovered across the price control and is matched to the profile of allowed totex set at final proposals."]
[]
[null,null,null,null,"Additional income",null,"£m 12/13 prices",null,{"$f":"I24*I28","v":52.730650390214812}]
[]
[null,null,null,null,"Original allowed totex (set at final proposals)",null,"£m 12/13 prices",null,null,null,null,null,null,null,null,null,null,null,null,null,null,null,null,null,null,null,null,null,null,null,null,null,null,null,null,{"$f":"SUM(Input!AJ92:AJ97)","v":260.2647907338162},{"$f":"SUM(Input!AK92:AK97)","v":260.61282371016478},{"$f":"SUM(Input!AL92:AL97)","v":253.11752218534545},{"$f":"SUM(Input!AM92:AM97)","v":257.57655251313565},{"$f":"SUM(Input!AN92:AN97)","v":265.41554679133844},{"$f":"SUM(Input!AO92:AO97)","v":270.21812028877946},{"$f":"SUM(Input!AP92:AP97)","v":267.84493778057589},{"$f":"SUM(Input!AQ92:AQ97)","v":270.58971019517031}]
[null,null,null,null,"Total allowed totex in price control (set at final proposals)",null,"£m 12/13 prices",null,{"$f":"SUM($AJ79:$AQ79)","v":2105.6400041983266}]
[]
[null,null,null,null,"Share of additional income allowed in year",null,"%",null,null,null,null,null,null,null,null,null,null,null,null,null,null,null,null,null,null,null,null,null,null,null,null,null,null,null,null,{"$f":"AJ79 / $I80","v":0.1236036502986682},0.12376893637589634,0.12020930533266252,0.12232696567293892,0.12604982155645797,0.12833063569746278,0.12720357575204391,0.12850710931386919]
[]
[null,null,null,null,"Additional income",null,"£m 12/13 prices",null,null,null,null,null,null,null,null,null,null,null,null,null,null,null,null,null,null,null,null,null,null,null,null,null,null,null,null,{"$f":"$I77 * AJ82","v":6.5177008708534432},{"$f":"$I77 * AK82","v":6.5264165132061303},6.3387148531472128,6.450380460195551,6.6466890722425482,6.7669578853169305,6.7075272813662341,6.7762634538867541]
[]
[null,"End of sheet"]

{"sheet":"DARTs","index":8,"n_rows":77,"n_cols":43,"rows_kept":77,"cut":false,"hidden":false,"merged":[]}
["Direct Allowed Revenue Terms (DARTs)"]
[null,{"$f":"UserInterface!G24","v":"WMID"},null,null,null,null,null,null,null,null,null,null,null,null,null,null,null,null,null,null,null,null,null,null,null,null,null,null,null,null,null,null,null,null,null,"Done"]
[]
[]
[]
[null,null,null,null,"Parameter",null,"Units",null,"Constant",null,null,null,null,null,null,null,null,null,null,null,null,null,null,null,null,null,null,null,null,null,null,null,null,null,null,"Annual values"]
[null,null,null,null,"PCFM year ending",null,null,null,{"$f":"UserInterface!$G$17","v":"2016-03-31"},null,"1991-03-31","1992-03-31","1993-03-31","1994-03-31","1995-03-31","1996-03-31","1997-03-31","1998-03-31","1999-03-31","2000-03-31","2001-03-31","2002-03-31","2003-03-31","2004-03-31","2005-03-31","2006-03-31","2007-03-31","2008-03-31","2009-03-31","2010-03-31","2011-03-31","2012-03-31","2013-03-31","2014-03-31","2015-03-31","2016-03-31","2017-03-31","2018-03-31","2019-03-31","2020-03-31","2021-03-31","2022-03-31","2023-03-31"]
[]
[null,"Direct Allowed Revenue Terms (DARTs) "]
[null,"Note: DARTs are allowances with minimal processing required in the model as they flow directly from input to revenue. "]
[null,"They do however have different indirect impacts on equity issuance and tax. They are grouped here by their treatment type to aid common treatment of DARTs through the rest of the model."]
[null,"\"Post-tax\" allowances can be included in the tax calculation but \"Pre-tax\" allowances cannot. "]
[null,"\"Passthrough-style\" allowances are treated as an equal revenue and cost. Therefore they have no net cash flow impact. \"Revenue\" allowances are just set as a revenue amount with any costs relating to them are dealt with elsewhere."]
[]
[null,null,"Base Revenue"]
[]
[null,null,null,"No impact on net debt, No Tax Allowance given, no tax paid (as underlying assumption is costs equal income)"]
[]
[null,null,null,null,"Established pension deficit repair",null,"£m 12/13 prices",null,null,null,null,null,null,null,null,null,null,null,null,null,null,null,null,null,null,null,null,null,null,null,null,null,null,null,null,{"$f":"Input!AJ213","v":23.680990303886606},{"$f":"Input!AK213","v":23.680990303886606},{"$f":"Input!AL213","v":23.680990303886606},{"$f":"Input!AM213","v":23.680990303886606},{"$f":"Input!AN213","v":23.680990303886606},{"$f":"Input!AO213","v":23.680990303886606},{"$f":"Input!AP213","v":23.680990303886606},{"$f":"Input!AQ213","v":23.680990303886606}]
[null,null,null,null,"Base Revenue DARTs with no impact on net debt or tax",null,"£m 12/13 prices",null,null,null,null,null,null,null,null,null,null,null,null,null,null,null,null,null,null,null,null,null,null,null,null,null,null,null,null,{"$f":"SUM(AJ19:AJ19)","v":23.680990303886606},23.680990303886606,23.680990303886606,23.680990303886606,23.680990303886606,23.680990303886606,23.680990303886606,23.680990303886606]
[]
[null,null,null,"Impact net debt, Tax Allowance given (and so tax paid on income)"]
[]
[null,null,null,null,"Pension true-up from previous price controls",null,"£m 12/13 prices",null,null,null,null,null,null,null,null,null,null,null,null,null,null,null,null,null,null,null,null,null,null,null,null,null,null,null,null,{"$f":"Input!AJ215","v":0},{"$f":"Input!AK215","v":0},{"$f":"Input!AL215","v":0},{"$f":"Input!AM215","v":0},{"$f":"Input!AN215","v":0},{"$f":"Input!AO215","v":0},{"$f":"Input!AP215","v":0},{"$f":"Input!AQ215","v":0}]
[null,null,null,null,"Base Revenue DARTs impacting both net debt and tax",null,"£m 12/13 prices",null,null,null,null,null,null,null,null,null,null,null,null,null,null,null,null,null,null,null,null,null,null,null,null,null,null,null,null,{"$f":"SUM(AJ24:AJ24)","v":0},0,0,0,0,0,0,0]
[]
[null,null,null,"Impact net debt, No Tax Allowance given, Tax Paid on net income"]
[]
[null,null,null,null,"Revenue from previous controls",null,"£m 12/13 prices",null,null,null,null,null,null,null,null,null,null,null,null,null,null,null,null,null,null,null,null,null,null,null,null,null,null,null,null,{"$f":"Input!AJ219","v":0.67007932912061052},{"$f":"Input!AK219","v":0.69851079505519797},{"$f":"Input!AL219","v":0.72814860808938997},{"$f":"Input!AM219","v":0.75904395353062282},{"$f":"Input!AN219","v":0.79125018847892703},{"$f":"Input!AO219","v":0.82482293397608775},{"$f":"Input!AP219","v":0.85982017106469333},{"$f":"Input!AQ219","v":0.89630234092296812}]
[null,null,null,null,"Base Revenue DARTs impacting net debt but not tax",null,"£m 12/13 prices",null,null,null,null,null,null,null,null,null,null,null,null,null,null,null,null,null,null,null,null,null,null,null,null,null,null,null,null,{"$f":"SUM(AJ29:AJ29)","v":0.67007932912061052},0.69851079505519797,0.72814860808938997,0.75904395353062282,0.79125018847892703,0.82482293397608775,0.85982017106469333,0.89630234092296812]
[]
[null,null,null,"Impact net debt, Tax Allowance given (and so tax paid on income)"]
[]
[null,null,null,null,"Initial Profile Adjustment",null,"£m 12/13 prices",null,null,null,null,null,null,null,null,null,null,null,null,null,null,null,null,null,null,null,null,null,null,null,null,null,null,null,null,{"$f":"Input!AJ409","v":0},{"$f":"Input!AK409","v":0},{"$f":"Input!AL409","v":0},{"$f":"Input!AM409","v":0},{"$f":"Input!AN409","v":0},{"$f":"Input!AO409","v":0},{"$f":"Input!AP409","v":0},{"$f":"Input!AQ409","v":0}]
[null,null,null,null,"Base Revenue DARTs impacting both net debt and tax",null,"£m 12/13 prices",null,null,null,null,null,null,null,null,null,null,null,null,null,null,null,null,null,null,null,null,null,null,null,null,null,null,null,null,{"$f":"SUM(AJ34:AJ34)","v":0},0,0,0,0,0,0,0]
[]
[null,null,null,"No impact on net debt, No Tax Allowance given, no tax paid"]
[]
[null,null,null,null,"Time Value of Money Profile Adjustment",null,"£m 12/13 prices",null,null,null,null,null,null,null,null,null,null,null,null,null,null,null,null,null,null,null,null,null,null,null,null,null,null,null,null,{"$f":"Input!AJ410","v":0},{"$f":"Input!AK410","v":0},{"$f":"Input!AL410","v":0},{"$f":"Input!AM410","v":0},{"$f":"Input!AN410","v":0},{"$f":"Input!AO410","v":0},{"$f":"Input!AP410","v":0},{"$f":"Input!AQ410","v":0}]
[null,null,null,null,"Time Value of Money Profile Increment",null,"£m 12/13 prices",null,null,null,null,null,null,null,null,null,null,null,null,null,null,null,null,null,null,null,null,null,null,null,null,null,null,null,null,{"$f":"Input!AJ411","v":0},{"$f":"Input!AK411","v":0},{"$f":"Input!AL411","v":0},{"$f":"Input!AM411","v":0},{"$f":"Input!AN411","v":0},{"$f":"Input!AO411","v":0},{"$f":"Input!AP411","v":0},{"$f":"Input!AQ411","v":0}]
[null,null,null,null,"Base Revenue DARTs with no impact on net debt or tax",null,"£m 12/13 prices",null,null,null,null,null,null,null,null,null,null,null,null,null,null,null,null,null,null,null,null,null,null,null,null,null,null,null,null,{"$f":"SUM(AJ39:AJ40)","v":0},{"$f":"SUM(AK39:AK40)","v":0},0,0,0,0,0,0]
[]
[null,null,"ES7 (Miscellaneous) "]
[]
[null,null,null,"No impact on debt, No Tax Allowance given, Tax Paid on net income"]
[]
[null,null,null,null,{"$f":"Input!E223","v":"ES7 (Miscellaneous) revenue"},null,"£m 12/13 prices",null,null,null,null,null,null,null,null,null,null,null,null,null,null,null,null,null,null,null,null,null,null,null,null,null,null,null,null,{"$f":"Input!AJ223","v":0},{"$f":"Input!AK223","v":0},{"$f":"Input!AL223","v":0},{"$f":"Input!AM223","v":0},{"$f":"Input!AN223","v":0},{"$f":"Input!AO223","v":0},{"$f":"Input!AP223","v":0},{"$f":"Input!AQ223","v":0}]
[null,null,null,null,{"$f":"Input!E224","v":"ES7 (Miscellaneous) assumed costs"},null,"£m 12/13 prices",null,null,null,null,null,null,null,null,null,null,null,null,null,null,null,null,null,null,null,null,null,null,null,null,null,null,null,null,{"$f":"Input!AJ224","v":0},{"$f":"Input!AK224","v":0},{"$f":"Input!AL224","v":0},{"$f":"Input!AM224","v":0},{"$f":"Input!AN224","v":0},{"$f":"Input!AO224","v":0},{"$f":"Input!AP224","v":0},{"$f":"Input!AQ224","v":0}]
[null,null,null,null,{"$f":"Input!E225","v":"ES7 (Miscellaneous) net position"},null,"£m 12/13 prices",null,null,null,null,null,null,null,null,null,null,null,null,null,null,null,null,null,null,null,null,null,null,null,null,null,null,null,null,{"$f":"Input!AJ225","v":0},{"$f":"Input!AK225","v":0},{"$f":"Input!AL225","v":0},{"$f":"Input!AM225","v":0},{"$f":"Input!AN225","v":0},{"$f":"Input!AO225","v":0},{"$f":"Input!AP225","v":0},{"$f":"Input!AQ225","v":0}]
[]
[null,null,{"$f":"Input!E227","v":"Directly Remunerated Services"}]
[]
[null,null,null,"Impact net debt, No Tax Allowance given, Tax Paid on net income"]
[]
[null,null,null,null,{"$f":"Input!E281","v":"Overall net income of Directly Remunerated Services"},null,"£m 12/13 prices",null,null,null,null,null,null,null,null,null,null,null,null,null,null,null,null,null,null,null,null,null,null,null,null,null,null,null,null,{"$f":"Input!AJ281","v":-14.508510976669964},{"$f":"Input!AK281","v":-22.546677444116675},{"$f":"Input!AL281","v":-21.908525322164497},{"$f":"Input!AM281","v":-21.387703868340498},{"$f":"Input!AN281","v":-20.880618047351835},{"$f":"Input!AO281","v":-20.50284088722098},{"$f":"Input!AP281","v":-20.26621190292914},{"$f":"Input!AQ281","v":-20.098450020901698}]
[]
[null,null,"Legacy losses incentive"]
[]
[null,null,null,"Impact net debt, No Tax Allowance given, Tax Paid on net income"]
[]
[null,null,null,null,"Legacy losses incentive",null,"£m 12/13 prices",null,null,null,null,null,null,null,null,null,null,null,null,null,null,null,null,null,null,null,null,null,null,null,null,null,null,null,null,{"$f":"Input!AJ221","v":0},{"$f":"Input!AK221","v":0},{"$f":"Input!AL221","v":0},{"$f":"Input!AM221","v":0},{"$f":"Input!AN221","v":0},{"$f":"Input!AO221","v":0},{"$f":"Input!AP221","v":0},{"$f":"Input!AQ221","v":0}]
[]
[null,null,"DART groups"]
[null,null,"MG TO UPDATE NOTES for this section"]
[]
[]
[]
[]
[null,null,null,null,"Base revenue DARTs",null,"£m 12/13 prices",null,null,null,null,null,null,null,null,null,null,null,null,null,null,null,null,null,null,null,null,null,null,null,null,null,null,null,null,{"$f":" AJ20 + AJ25 + AJ30 +AJ35 + AJ41 - AJ48","v":24.351069633007217},{"$f":" AK20 + AK25 + AK30 +AK35 + AK41 - AK48","v":24.379501098941805},24.409138911975997,24.440034257417228,24.472240492365533,24.505813237862693,24.5408104749513,24.577292644809575]
[]
[null,null,null,null,"Non Base Revenue DARTs",null,"£m 12/13 prices",null,null,null,null,null,null,null,null,null,null,null,null,null,null,null,null,null,null,null,null,null,null,null,null,null,null,null,null,{"$f":"  AJ47+AJ55+AJ61","v":-14.508510976669964},{"$f":"  AK47+AK55+AK61","v":-22.546677444116675},-21.908525322164497,-21.387703868340498,-20.880618047351835,-20.50284088722098,-20.26621190292914,-20.098450020901698]
[]
[null,null,null,null,"Net impact of DARTs on core net debt",null,"£m 12/13 prices",null,null,null,null,null,null,null,null,null,null,null,null,null,null,null,null,null,null,null,null,null,null,null,null,null,null,null,null,{"$f":"-AJ20-AJ41+AJ48+AJ49+AJ55+AJ61","v":-38.18950128055657},{"$f":"-AK20-AK41+AK48+AK49+AK55+AK61","v":-46.227667748003284},-45.589515626051103,-45.068694172227104,-44.561608351238441,-44.183831191107586,-43.947202206815746,-43.779440324788304]
[]
[null,null,null,null,"Net DART impact on core tax calculation",null,"£m 12/13 prices",null,null,null,null,null,null,null,null,null,null,null,null,null,null,null,null,null,null,null,null,null,null,null,null,null,null,null,null,{"$f":" - AJ20 - AJ41 - AJ30 + AJ48","v":-24.351069633007217},{"$f":" - AK20 - AK41 - AK30 + AK48","v":-24.379501098941805},-24.409138911975997,-24.440034257417228,-24.472240492365533,-24.505813237862693,-24.5408104749513,-24.577292644809575]
[]
[null,"End of sheet"]

{"sheet":"Depn","index":9,"n_rows":257,"n_cols":44,"rows_kept":257,"cut":false,"hidden":false,"merged":[]}
["Regulatory Depreciation"]
[null,{"$f":"UserInterface!G24","v":"WMID"},null,null,null,null,null,null,null,null,null,null,null,null,null,null,null,null,null,null,null,null,null,null,null,null,null,null,null,null,null,null,null,null,null,"Done"]
[]
[]
[]
[null,null,null,null,"Parameter",null,"Units",null,"Constant",null,null,null,null,null,null,null,null,null,null,null,null,null,null,null,null,null,null,null,null,null,null,null,null,null,null,"Annual values"]
[null,null,null,null,"PCFM year ending",null,null,null,{"$f":"UserInterface!$G$17","v":"2016-03-31"},null,"1991-03-31","1992-03-31","1993-03-31","1994-03-31","1995-03-31","1996-03-31","1997-03-31","1998-03-31","1999-03-31","2000-03-31","2001-03-31","2002-03-31","2003-03-31","2004-03-31","2005-03-31","2006-03-31","2007-03-31","2008-03-31","2009-03-31","2010-03-31","2011-03-31","2012-03-31","2013-03-31","2014-03-31","2015-03-31","2016-03-31","2017-03-31","2018-03-31","2019-03-31","2020-03-31","2021-03-31","2022-03-31","2023-03-31"]
[]
[null,"Regulatory depreciation"]
[]
[null,null,"Net RAV additions (after disposals)"]
[null,null,"Note: Additions to RAV are combined before feeding into the depreciation calculations. Disposals are treated as negative additions. Pre-RIIO values are used to build up the post-vesting RAV from vesting."]
[null,null,"Logged-up and security costs are retrospectively added to RAV to provide the updated opening RAV and align depreciation with expenditure."]
[]
[null,null,null,null,"Slow money",null,"£m 12/13 prices",null,null,null,null,null,null,null,null,null,null,null,null,null,null,null,null,null,null,null,null,null,null,null,null,null,null,null,null,{"$f":"TIM!AJ72","v":208.64001832372224},{"$f":"TIM!AK72","v":209.33131336751876},{"$f":"TIM!AL72","v":203.33521941504569},{"$f":"TIM!AM72","v":206.49197456996353},{"$f":"TIM!AN72","v":212.76243146173931},{"$f":"TIM!AO72","v":216.60837997824592},{"$f":"TIM!AP72","v":214.67632715785209},{"$f":"TIM!AQ72","v":216.87486343189767}]
[null,null,null,null,"Net adjustments",null,"£m 12/13 prices",null,null,null,null,null,null,null,null,null,null,null,null,null,null,null,null,null,null,null,null,null,null,null,null,null,null,null,null,{"$f":"SUM(Input!AJ301:AJ302)","v":0},{"$f":"SUM(Input!AK301:AK302)","v":0},{"$f":"SUM(Input!AL301:AL302)","v":0},{"$f":"SUM(Input!AM301:AM302)","v":0},{"$f":"SUM(Input!AN301:AN302)","v":0},{"$f":"SUM(Input!AO301:AO302)","v":0},{"$f":"SUM(Input!AP301:AP302)","v":0},{"$f":"SUM(Input!AQ301:AQ302)","v":0}]
[null,null,null,null,"Pre-RIIO net RAV additions (after disposals)",null,"£m 12/13 prices",null,null,">",{"$f":"Input!K299+Input!K300","v":29.427249829458987},{"$f":"Input!L299+Input!L300","v":103.53461720102848},{"$f":"Input!M299+Input!M300","v":104.15089468436794},{"$f":"Input!N299+Input!N300","v":106.92414335939549},{"$f":"Input!O299+Input!O300","v":121.09852547620295},{"$f":"Input!P299+Input!P300","v":107.54042084273492},{"$f":"Input!Q299+Input!Q300","v":124.17991289290022},{"$f":"Input!R299+Input!R300","v":105.84565776355142},{"$f":"Input!S299+Input!S300","v":112.05918273879193},{"$f":"Input!T299+Input!T300","v":100.34160108609318},{"$f":"Input!U299+Input!U300","v":101.71991978233071},{"$f":"Input!V299+Input!V300","v":122.94602770438888},{"$f":"Input!W299+Input!W300","v":114.81394739658739},{"$f":"Input!X299+Input!X300","v":134.62320865872039},{"$f":"Input!Y299+Input!Y300","v":113.36672305139849},{"$f":"Input!Z299+Input!Z300","v":174.21733037885991},{"$f":"Input!AA299+Input!AA300","v":165.13880270591514},{"$f":"Input!AB299+Input!AB300","v":172.19424358687331},{"$f":"Input!AC299+Input!AC300","v":188.87459455264997},{"$f":"Input!AD299+Input!AD300","v":179.75309706460266},{"$f":"Input!AE299+Input!AE300","v":185.11275789301999},{"$f":"Input!AF299+Input!AF300","v":221.25861177530032},{"$f":"Input!AG299+Input!AG300","v":201.9095218516949},{"$f":"Input!AH299+Input!AH300","v":233.11146839106129},{"$f":"Input!AI299+Input!AI300","v":221.39248025617775}]
[null,null,null,null,"Net RAV additions (after disposals)",null,"£m 12/13 prices",null,null,">",{"$f":"SUM(K15:K17)","v":29.427249829458987},{"$f":"SUM(L15:L17)","v":103.53461720102848},104.15089468436794,106.92414335939549,121.09852547620295,107.54042084273492,124.17991289290022,105.84565776355142,112.05918273879193,100.34160108609318,101.71991978233071,122.94602770438888,114.81394739658739,134.62320865872039,113.36672305139849,174.21733037885991,165.13880270591514,172.19424358687331,188.87459455264997,179.75309706460266,185.11275789301999,221.25861177530032,201.9095218516949,233.11146839106129,221.39248025617775,208.64001832372224,209.33131336751876,203.33521941504569,206.49197456996353,212.76243146173931,216.60837997824592,214.67632715785209,216.87486343189767]
[]
[null,null,"Net depreciation additions (after disposals)"]
[null,null,"Note:"]
[]
[null,null,null,null,"Pre-RIIO transfers to depreciation",null,"£m 12/13 prices",null,null,">",{"$f":"Input!K303","v":0},{"$f":"Input!L303","v":0},{"$f":"Input!M303","v":0},{"$f":"Input!N303","v":0},{"$f":"Input!O303","v":0},{"$f":"Input!P303","v":0},{"$f":"Input!Q303","v":0},{"$f":"Input!R303","v":0},{"$f":"Input!S303","v":0},{"$f":"Input!T303","v":0},{"$f":"Input!U303","v":0},{"$f":"Input!V303","v":0},{"$f":"Input!W303","v":0},{"$f":"Input!X303","v":0},{"$f":"Input!Y303","v":0},{"$f":"Input!Z303","v":0},{"$f":"Input!AA303","v":0},{"$f":"Input!AB303","v":0},{"$f":"Input!AC303","v":0},{"$f":"Input!AD303","v":0},{"$f":"Input!AE303","v":0},{"$f":"Input!AF303","v":0},{"$f":"Input!AG303","v":0},{"$f":"Input!AH303","v":0},{"$f":"Input!AI303","v":0}]
[]
[null,null,"Pre-vesting depreciation"]
[null,null,"Note: The following depreciation factor is used to depreciate the pre-vesting balance on the \"Return&RAV\" sheet."]
[]
[null,null,null,null,"Vesting year",null,"year ending",null,{"$f":"Input!I298","v":"1991-03-31"}]
[null,null,null,null,"Pre-vesting asset life",null,"years",null,{"$f":"Input!I287","v":15}]
[null,null,null,null,"Pre vesting asset depn in first year (mths)",null,"months",null,{"$f":"Input!I288","v":3.5}]
[]
[null,null,"Accelerated post-vesting depreciation"]
[null,null,"Note: Accelerated depreciation calculations provide the allowed depreciation after full depreciation of pre-vesting assets, but are also used to establish the \"RAV differential\" generated before that point."]
[]
[null,null,null,"Depreciation parameters"]
[]
[null,null,null,null,"Post-vesting asset life",null,"years",null,null,">",{"$f":"Input!K296","v":20},{"$f":"Input!L296","v":20},{"$f":"Input!M296","v":20},{"$f":"Input!N296","v":20},{"$f":"Input!O296","v":20},{"$f":"Input!P296","v":20},{"$f":"Input!Q296","v":20},{"$f":"Input!R296","v":20},{"$f":"Input!S296","v":20},{"$f":"Input!T296","v":20},{"$f":"Input!U296","v":20},{"$f":"Input!V296","v":20},{"$f":"Input!W296","v":20},{"$f":"Input!X296","v":20},{"$f":"Input!Y296","v":20},{"$f":"Input!Z296","v":20},{"$f":"Input!AA296","v":20},{"$f":"Input!AB296","v":20},{"$f":"Input!AC296","v":20},{"$f":"Input!AD296","v":20},{"$f":"Input!AE296","v":20},{"$f":"Input!AF296","v":20},{"$f":"Input!AG296","v":20},{"$f":"Input!AH296","v":20},{"$f":"Input!AI296","v":20},{"$f":"Input!AJ296","v":23.125},{"$f":"Input!AK296","v":26.25},{"$f":"Input!AL296","v":29.375},{"$f":"Input!AM296","v":32.5},{"$f":"Input!AN296","v":35.625},{"$f":"Input!AO296","v":38.75},{"$f":"Input!AP296","v":41.875},{"$f":"Input!AQ296","v":45}]
[null,null,null,null,"Accelerated post-vesting depreciation applied",null,"text",null,null,">",null,{"$f":"YEAR(L$7) >= YEAR($I$28) + IF($I$30=12,$I$29,$I$29+1)","v":false},false,false,false,false,false,false,false,false,false,false,false,false,{"$f":"YEAR(Y$7) >= YEAR($I$28) + IF($I$30=12,$I$29,$I$29+1)","v":false},{"$f":"YEAR(Z$7) >= YEAR($I$28) + IF($I$30=12,$I$29,$I$29+1)","v":false},{"$f":"YEAR(AA$7) >= YEAR($I$28) + IF($I$30=12,$I$29,$I$29+1)","v":true},{"$f":"YEAR(AB$7) >= YEAR($I$28) + IF($I$30=12,$I$29,$I$29+1)","v":true},true,true,true,true,true,true,true,true,true,true,true,true,true,true,true]
[]
[null,null,null,"Depreciation schedule"]
[]
[null,null,null,null,"Accelerated depreciation of additions from year ending",null,null,null,"Net additions"]
[null,null,null,null,"1991-03-31",null,"£m 12/13 prices",null,{"$f":"I88","v":29.427249829458987},">",null,{"$f":"$I43/$K$37","v":1.4713624914729493},{"$f":"IF($I43 >0, MIN(L43,$I43-SUM($L43:L43)), MAX(L43,$I43-SUM($L43:L43)))","v":1.4713624914729493},{"$f":"IF($I43 >0, MIN(M43,$I43-SUM($L43:M43)), MAX(M43,$I43-SUM($L43:M43)))","v":1.4713624914729493},{"$f":"IF($I43 >0, MIN(N43,$I43-SUM($L43:N43)), MAX(N43,$I43-SUM($L43:N43)))","v":1.4713624914729493},{"$f":"IF($I43 >0, MIN(O43,$I43-SUM($L43:O43)), MAX(O43,$I43-SUM($L43:O43)))","v":1.4713624914729493},{"$f":"IF($I43 >0, MIN(P43,$I43-SUM($L43:P43)), MAX(P43,$I43-SUM($L43:P43)))","v":1.4713624914729493},{"$f":"IF($I43 >0, MIN(Q43,$I43-SUM($L43:Q43)), MAX(Q43,$I43-SUM($L43:Q43)))","v":1.4713624914729493},{"$f":"IF($I43 >0, MIN(R43,$I43-SUM($L43:R43)), MAX(R43,$I43-SUM($L43:R43)))","v":1.4713624914729493},{"$f":"IF($I43 >0, MIN(S43,$I43-SUM($L43:S43)), MAX(S43,$I43-SUM($L43:S43)))","v":1.4713624914729493},{"$f":"IF($I43 >0, MIN(T43,$I43-SUM($L43:T43)), MAX(T43,$I43-SUM($L43:T43)))","v":1.4713624914729493},{"$f":"IF($I43 >0, MIN(U43,$I43-SUM($L43:U43)), MAX(U43,$I43-SUM($L43:U43)))","v":1.4713624914729493},{"$f":"IF($I43 >0, MIN(V43,$I43-SUM($L43:V43)), MAX(V43,$I43-SUM($L43:V43)))","v":1.4713624914729493},{"$f":"IF($I43 >0, MIN(W43,$I43-SUM($L43:W43)), MAX(W43,$I43-SUM($L43:W43)))","v":1.4713624914729493},{"$f":"IF($I43 >0, MIN(X43,$I43-SUM($L43:X43)), MAX(X43,$I43-SUM($L43:X43)))","v":1.4713624914729493},{"$f":"IF($I43 >0, MIN(Y43,$I43-SUM($L43:Y43)), MAX(Y43,$I43-SUM($L43:Y43)))","v":1.4713624914729493},{"$f":"IF($I43 >0, MIN(Z43,$I43-SUM($L43:Z43)), MAX(Z43,$I43-SUM($L43:Z43)))","v":1.4713624914729493},{"$f":"IF($I43 >0, MIN(AA43,$I43-SUM($L43:AA43)), MAX(AA43,$I43-SUM($L43:AA43)))","v":1.4713624914729493},{"$f":"IF($I43 >0, MIN(AB43,$I43-SUM($L43:AB43)), MAX(AB43,$I43-SUM($L43:AB43)))","v":1.4713624914729493},{"$f":"IF($I43 >0, MIN(AC43,$I43-SUM($L43:AC43)), MAX(AC43,$I43-SUM($L43:AC43)))","v":1.4713624914729493},{"$f":"IF($I43 >0, MIN(AD43,$I43-SUM($L43:AD43)), MAX(AD43,$I43-SUM($L43:AD43)))","v":1.4713624914729493},{"$f":"IF($I43 >0, MIN(AE43,$I43-SUM($L43:AE43)), MAX(AE43,$I43-SUM($L43:AE43)))","v":1.0658141036401503E-14},{"$f":"IF($I43 >0, MIN(AF43,$I43-SUM($L43:AF43)), MAX(AF43,$I43-SUM($L43:AF43)))","v":0},{"$f":"IF($I43 >0, MIN(AG43,$I43-SUM($L43:AG43)), MAX(AG43,$I43-SUM($L43:AG43)))","v":0},{"$f":"IF($I43 >0, MIN(AH43,$I43-SUM($L43:AH43)), MAX(AH43,$I43-SUM($L43:AH43)))","v":0},{"$f":"IF($I43 >0, MIN(AI43,$I43-SUM($L43:AI43)), MAX(AI43,$I43-SUM($L43:AI43)))","v":0},{"$f":"IF($I43 >0, MIN(AJ43,$I43-SUM($L43:AJ43)), MAX(AJ43,$I43-SUM($L43:AJ43)))","v":0},{"$f":"IF($I43 >0, MIN(AK43,$I43-SUM($L43:AK43)), MAX(AK43,$I43-SUM($L43:AK43)))","v":0},{"$f":"IF($I43 >0, MIN(AL43,$I43-SUM($L43:AL43)), MAX(AL43,$I43-SUM($L43:AL43)))","v":0},{"$f":"IF($I43 >0, MIN(AM43,$I43-SUM($L43:AM43)), MAX(AM43,$I43-SUM($L43:AM43)))","v":0},{"$f":"IF($I43 >0, MIN(AN43,$I43-SUM($L43:AN43)), MAX(AN43,$I43-SUM($L43:AN43)))","v":0},{"$f":"IF($I43 >0, MIN(AO43,$I43-SUM($L43:AO43)), MAX(AO43,$I43-SUM($L43:AO43)))","v":0},{"$f":"IF($I43 >0, MIN(AP43,$I43-SUM($L43:AP43)), MAX(AP43,$I43-SUM($L43:AP43)))","v":0}]
[null,null,null,null,"1992-03-31",null,"£m 12/13 prices",null,{"$f":"I89","v":103.53461720102848},">",null,null,{"$f":"$I44/L$37","v":5.1767308600514239},{"$f":"IF($I44 >0, MIN(M44,$I44-SUM($L44:M44)), MAX(M44,$I44-SUM($L44:M44)))","v":5.1767308600514239},{"$f":"IF($I44 >0, MIN(N44,$I44-SUM($L44:N44)), MAX(N44,$I44-SUM($L44:N44)))","v":5.1767308600514239},{"$f":"IF($I44 >0, MIN(O44,$I44-SUM($L44:O44)), MAX(O44,$I44-SUM($L44:O44)))","v":5.1767308600514239},{"$f":"IF($I44 >0, MIN(P44,$I44-SUM($L44:P44)), MAX(P44,$I44-SUM($L44:P44)))","v":5.1767308600514239},{"$f":"IF($I44 >0, MIN(Q44,$I44-SUM($L44:Q44)), MAX(Q44,$I44-SUM($L44:Q44)))","v":5.1767308600514239},{"$f":"IF($I44 >0, MIN(R44,$I44-SUM($L44:R44)), MAX(R44,$I44-SUM($L44:R44)))","v":5.1767308600514239},{"$f":"IF($I44 >0, MIN(S44,$I44-SUM($L44:S44)), MAX(S44,$I44-SUM($L44:S44)))","v":5.1767308600514239},{"$f":"IF($I44 >0, MIN(T44,$I44-SUM($L44:T44)), MAX(T44,$I44-SUM($L44:T44)))","v":5.1767308600514239},{"$f":"IF($I44 >0, MIN(U44,$I44-SUM($L44:U44)), MAX(U44,$I44-SUM($L44:U44)))","v":5.1767308600514239},{"$f":"IF($I44 >0, MIN(V44,$I44-SUM($L44:V44)), MAX(V44,$I44-SUM($L44:V44)))","v":5.1767308600514239},{"$f":"IF($I44 >0, MIN(W44,$I44-SUM($L44:W44)), MAX(W44,$I44-SUM($L44:W44)))","v":5.1767308600514239},{"$f":"IF($I44 >0, MIN(X44,$I44-SUM($L44:X44)), MAX(X44,$I44-SUM($L44:X44)))","v":5.1767308600514239},{"$f":"IF($I44 >0, MIN(Y44,$I44-SUM($L44:Y44)), MAX(Y44,$I44-SUM($L44:Y44)))","v":5.1767308600514239},{"$f":"IF($I44 >0, MIN(Z44,$I44-SUM($L44:Z44)), MAX(Z44,$I44-SUM($L44:Z44)))","v":5.1767308600514239},{"$f":"IF($I44 >0, MIN(AA44,$I44-SUM($L44:AA44)), MAX(AA44,$I44-SUM($L44:AA44)))","v":5.1767308600514239},{"$f":"IF($I44 >0, MIN(AB44,$I44-SUM($L44:AB44)), MAX(AB44,$I44-SUM($L44:AB44)))","v":5.1767308600514239},{"$f":"IF($I44 >0, MIN(AC44,$I44-SUM($L44:AC44)), MAX(AC44,$I44-SUM($L44:AC44)))","v":5.1767308600514239},{"$f":"IF($I44 >0, MIN(AD44,$I44-SUM($L44:AD44)), MAX(AD44,$I44-SUM($L44:AD44)))","v":5.1767308600514239},{"$f":"IF($I44 >0, MIN(AE44,$I44-SUM($L44:AE44)), MAX(AE44,$I44-SUM($L44:AE44)))","v":5.1767308600514239},{"$f":"IF($I44 >0, MIN(AF44,$I44-SUM($L44:AF44)), MAX(AF44,$I44-SUM($L44:AF44)))","v":2.8421709430404007E-14},{"$f":"IF($I44 >0, MIN(AG44,$I44-SUM($L44:AG44)), MAX(AG44,$I44-SUM($L44:AG44)))","v":0},{"$f":"IF($I44 >0, MIN(AH44,$I44-SUM($L44:AH44)), MAX(AH44,$I44-SUM($L44:AH44)))","v":0},{"$f":"IF($I44 >0, MIN(AI44,$I44-SUM($L44:AI44)), MAX(AI44,$I44-SUM($L44:AI44)))","v":0},{"$f":"IF($I44 >0, MIN(AJ44,$I44-SUM($L44:AJ44)), MAX(AJ44,$I44-SUM($L44:AJ44)))","v":0},{"$f":"IF($I44 >0, MIN(AK44,$I44-SUM($L44:AK44)), MAX(AK44,$I44-SUM($L44:AK44)))","v":0},{"$f":"IF($I44 >0, MIN(AL44,$I44-SUM($L44:AL44)), MAX(AL44,$I44-SUM($L44:AL44)))","v":0},{"$f":"IF($I44 >0, MIN(AM44,$I44-SUM($L44:AM44)), MAX(AM44,$I44-SUM($L44:AM44)))","v":0},{"$f":"IF($I44 >0, MIN(AN44,$I44-SUM($L44:AN44)), MAX(AN44,$I44-SUM($L44:AN44)))","v":0},{"$f":"IF($I44 >0, MIN(AO44,$I44-SUM($L44:AO44)), MAX(AO44,$I44-SUM($L44:AO44)))","v":0},{"$f":"IF($I44 >0, MIN(AP44,$I44-SUM($L44:AP44)), MAX(AP44,$I44-SUM($L44:AP44)))","v":0}]
[null,null,null,null,"1993-03-31",null,"£m 12/13 prices",null,104.15089468436794,">",null,null,null,{"$f":"$I45/M$37","v":5.2075447342183967},{"$f":"IF($I45 >0, MIN(N45,$I45-SUM($L45:N45)), MAX(N45,$I45-SUM($L45:N45)))","v":5.2075447342183967},{"$f":"IF($I45 >0, MIN(O45,$I45-SUM($L45:O45)), MAX(O45,$I45-SUM($L45:O45)))","v":5.2075447342183967},{"$f":"IF($I45 >0, MIN(P45,$I45-SUM($L45:P45)), MAX(P45,$I45-SUM($L45:P45)))","v":5.2075447342183967},{"$f":"IF($I45 >0, MIN(Q45,$I45-SUM($L45:Q45)), MAX(Q45,$I45-SUM($L45:Q45)))","v":5.2075447342183967},{"$f":"IF($I45 >0, MIN(R45,$I45-SUM($L45:R45)), MAX(R45,$I45-SUM($L45:R45)))","v":5.2075447342183967},{"$f":"IF($I45 >0, MIN(S45,$I45-SUM($L45:S45)), MAX(S45,$I45-SUM($L45:S45)))","v":5.2075447342183967},{"$f":"IF($I45 >0, MIN(T45,$I45-SUM($L45:T45)), MAX(T45,$I45-SUM($L45:T45)))","v":5.2075447342183967},{"$f":"IF($I45 >0, MIN(U45,$I45-SUM($L45:U45)), MAX(U45,$I45-SUM($L45:U45)))","v":5.2075447342183967},{"$f":"IF($I45 >0, MIN(V45,$I45-SUM($L45:V45)), MAX(V45,$I45-SUM($L45:V45)))","v":5.2075447342183967},{"$f":"IF($I45 >0, MIN(W45,$I45-SUM($L45:W45)), MAX(W45,$I45-SUM($L45:W45)))","v":5.2075447342183967},{"$f":"IF($I45 >0, MIN(X45,$I45-SUM($L45:X45)), MAX(X45,$I45-SUM($L45:X45)))","v":5.2075447342183967},{"$f":"IF($I45 >0, MIN(Y45,$I45-SUM($L45:Y45)), MAX(Y45,$I45-SUM($L45:Y45)))","v":5.2075447342183967},{"$f":"IF($I45 >0, MIN(Z45,$I45-SUM($L45:Z45)), MAX(Z45,$I45-SUM($L45:Z45)))","v":5.2075447342183967},{"$f":"IF($I45 >0, MIN(AA45,$I45-SUM($L45:AA45)), MAX(AA45,$I45-SUM($L45:AA45)))","v":5.2075447342183967},{"$f":"IF($I45 >0, MIN(AB45,$I45-SUM($L45:AB45)), MAX(AB45,$I45-SUM($L45:AB45)))","v":5.2075447342183967},{"$f":"IF($I45 >0, MIN(AC45,$I45-SUM($L45:AC45)), MAX(AC45,$I45-SUM($L45:AC45)))","v":5.2075447342183967},{"$f":"IF($I45 >0, MIN(AD45,$I45-SUM($L45:AD45)), MAX(AD45,$I45-SUM($L45:AD45)))","v":5.2075447342183967},{"$f":"IF($I45 >0, MIN(AE45,$I45-SUM($L45:AE45)), MAX(AE45,$I45-SUM($L45:AE45)))","v":5.2075447342183967},{"$f":"IF($I45 >0, MIN(AF45,$I45-SUM($L45:AF45)), MAX(AF45,$I45-SUM($L45:AF45)))","v":5.2075447342183878},{"$f":"IF($I45 >0, MIN(AG45,$I45-SUM($L45:AG45)), MAX(AG45,$I45-SUM($L45:AG45)))","v":0},{"$f":"IF($I45 >0, MIN(AH45,$I45-SUM($L45:AH45)), MAX(AH45,$I45-SUM($L45:AH45)))","v":0},{"$f":"IF($I45 >0, MIN(AI45,$I45-SUM($L45:AI45)), MAX(AI45,$I45-SUM($L45:AI45)))","v":0},{"$f":"IF($I45 >0, MIN(AJ45,$I45-SUM($L45:AJ45)), MAX(AJ45,$I45-SUM($L45:AJ45)))","v":0},{"$f":"IF($I45 >0, MIN(AK45,$I45-SUM($L45:AK45)), MAX(AK45,$I45-SUM($L45:AK45)))","v":0},{"$f":"IF($I45 >0, MIN(AL45,$I45-SUM($L45:AL45)), MAX(AL45,$I45-SUM($L45:AL45)))","v":0},{"$f":"IF($I45 >0, MIN(AM45,$I45-SUM($L45:AM45)), MAX(AM45,$I45-SUM($L45:AM45)))","v":0},{"$f":"IF($I45 >0, MIN(AN45,$I45-SUM($L45:AN45)), MAX(AN45,$I45-SUM($L45:AN45)))","v":0},{"$f":"IF($I45 >0, MIN(AO45,$I45-SUM($L45:AO45)), MAX(AO45,$I45-SUM($L45:AO45)))","v":0},{"$f":"IF($I45 >0, MIN(AP45,$I45-SUM($L45:AP45)), MAX(AP45,$I45-SUM($L45:AP45)))","v":0},{"$f":"IF($I45 >0, MIN(AQ45,$I45-SUM($L45:AQ45)), MAX(AQ45,$I45-SUM($L45:AQ45)))","v":0}]
[null,null,null,null,"1994-03-31",null,"£m 12/13 prices",null,106.92414335939549,">",null,null,null,null,{"$f":"$I46/N$37","v":5.3462071679697747},{"$f":"IF($I46 >0, MIN(O46,$I46-SUM($L46:O46)), MAX(O46,$I46-SUM($L46:O46)))","v":5.3462071679697747},{"$f":"IF($I46 >0, MIN(P46,$I46-SUM($L46:P46)), MAX(P46,$I46-SUM($L46:P46)))","v":5.3462071679697747},{"$f":"IF($I46 >0, MIN(Q46,$I46-SUM($L46:Q46)), MAX(Q46,$I46-SUM($L46:Q46)))","v":5.3462071679697747},{"$f":"IF($I46 >0, MIN(R46,$I46-SUM($L46:R46)), MAX(R46,$I46-SUM($L46:R46)))","v":5.3462071679697747},{"$f":"IF($I46 >0, MIN(S46,$I46-SUM($L46:S46)), MAX(S46,$I46-SUM($L46:S46)))","v":5.3462071679697747},{"$f":"IF($I46 >0, MIN(T46,$I46-SUM($L46:T46)), MAX(T46,$I46-SUM($L46:T46)))","v":5.3462071679697747},{"$f":"IF($I46 >0, MIN(U46,$I46-SUM($L46:U46)), MAX(U46,$I46-SUM($L46:U46)))","v":5.3462071679697747},{"$f":"IF($I46 >0, MIN(V46,$I46-SUM($L46:V46)), MAX(V46,$I46-SUM($L46:V46)))","v":5.3462071679697747},{"$f":"IF($I46 >0, MIN(W46,$I46-SUM($L46:W46)), MAX(W46,$I46-SUM($L46:W46)))","v":5.3462071679697747},{"$f":"IF($I46 >0, MIN(X46,$I46-SUM($L46:X46)), MAX(X46,$I46-SUM($L46:X46)))","v":5.3462071679697747},{"$f":"IF($I46 >0, MIN(Y46,$I46-SUM($L46:Y46)), MAX(Y46,$I46-SUM($L46:Y46)))","v":5.3462071679697747},{"$f":"IF($I46 >0, MIN(Z46,$I46-SUM($L46:Z46)), MAX(Z46,$I46-SUM($L46:Z46)))","v":5.3462071679697747},{"$f":"IF($I46 >0, MIN(AA46,$I46-SUM($L46:AA46)), MAX(AA46,$I46-SUM($L46:AA46)))","v":5.3462071679697747},{"$f":"IF($I46 >0, MIN(AB46,$I46-SUM($L46:AB46)), MAX(AB46,$I46-SUM($L46:AB46)))","v":5.3462071679697747},{"$f":"IF($I46 >0, MIN(AC46,$I46-SUM($L46:AC46)), MAX(AC46,$I46-SUM($L46:AC46)))","v":5.3462071679697747},{"$f":"IF($I46 >0, MIN(AD46,$I46-SUM($L46:AD46)), MAX(AD46,$I46-SUM($L46:AD46)))","v":5.3462071679697747},{"$f":"IF($I46 >0, MIN(AE46,$I46-SUM($L46:AE46)), MAX(AE46,$I46-SUM($L46:AE46)))","v":5.3462071679697747},{"$f":"IF($I46 >0, MIN(AF46,$I46-SUM($L46:AF46)), MAX(AF46,$I46-SUM($L46:AF46)))","v":5.3462071679697747},{"$f":"IF($I46 >0, MIN(AG46,$I46-SUM($L46:AG46)), MAX(AG46,$I46-SUM($L46:AG46)))","v":5.3462071679697374},{"$f":"IF($I46 >0, MIN(AH46,$I46-SUM($L46:AH46)), MAX(AH46,$I46-SUM($L46:AH46)))","v":0},{"$f":"IF($I46 >0, MIN(AI46,$I46-SUM($L46:AI46)), MAX(AI46,$I46-SUM($L46:AI46)))","v":0},{"$f":"IF($I46 >0, MIN(AJ46,$I46-SUM($L46:AJ46)), MAX(AJ46,$I46-SUM($L46:AJ46)))","v":0},{"$f":"IF($I46 >0, MIN(AK46,$I46-SUM($L46:AK46)), MAX(AK46,$I46-SUM($L46:AK46)))","v":0},{"$f":"IF($I46 >0, MIN(AL46,$I46-SUM($L46:AL46)), MAX(AL46,$I46-SUM($L46:AL46)))","v":0},{"$f":"IF($I46 >0, MIN(AM46,$I46-SUM($L46:AM46)), MAX(AM46,$I46-SUM($L46:AM46)))","v":0},{"$f":"IF($I46 >0, MIN(AN46,$I46-SUM($L46:AN46)), MAX(AN46,$I46-SUM($L46:AN46)))","v":0},{"$f":"IF($I46 >0, MIN(AO46,$I46-SUM($L46:AO46)), MAX(AO46,$I46-SUM($L46:AO46)))","v":0},{"$f":"IF($I46 >0, MIN(AP46,$I46-SUM($L46:AP46)), MAX(AP46,$I46-SUM($L46:AP46)))","v":0},{"$f":"IF($I46 >0, MIN(AQ46,$I46-SUM($L46:AQ46)), MAX(AQ46,$I46-SUM($L46:AQ46)))","v":0}]
[null,null,null,null,"1995-03-31",null,"£m 12/13 prices",null,121.09852547620295,">",null,null,null,null,null,{"$f":"$I47/O$37","v":6.0549262738101479},{"$f":"IF($I47 >0, MIN(P47,$I47-SUM($L47:P47)), MAX(P47,$I47-SUM($L47:P47)))","v":6.0549262738101479},{"$f":"IF($I47 >0, MIN(Q47,$I47-SUM($L47:Q47)), MAX(Q47,$I47-SUM($L47:Q47)))","v":6.0549262738101479},{"$f":"IF($I47 >0, MIN(R47,$I47-SUM($L47:R47)), MAX(R47,$I47-SUM($L47:R47)))","v":6.0549262738101479},{"$f":"IF($I47 >0, MIN(S47,$I47-SUM($L47:S47)), MAX(S47,$I47-SUM($L47:S47)))","v":6.0549262738101479},{"$f":"IF($I47 >0, MIN(T47,$I47-SUM($L47:T47)), MAX(T47,$I47-SUM($L47:T47)))","v":6.0549262738101479},{"$f":"IF($I47 >0, MIN(U47,$I47-SUM($L47:U47)), MAX(U47,$I47-SUM($L47:U47)))","v":6.0549262738101479},{"$f":"IF($I47 >0, MIN(V47,$I47-SUM($L47:V47)), MAX(V47,$I47-SUM($L47:V47)))","v":6.0549262738101479},{"$f":"IF($I47 >0, MIN(W47,$I47-SUM($L47:W47)), MAX(W47,$I47-SUM($L47:W47)))","v":6.0549262738101479},{"$f":"IF($I47 >0, MIN(X47,$I47-SUM($L47:X47)), MAX(X47,$I47-SUM($L47:X47)))","v":6.0549262738101479},{"$f":"IF($I47 >0, MIN(Y47,$I47-SUM($L47:Y47)), MAX(Y47,$I47-SUM($L47:Y47)))","v":6.0549262738101479},{"$f":"IF($I47 >0, MIN(Z47,$I47-SUM($L47:Z47)), MAX(Z47,$I47-SUM($L47:Z47)))","v":6.0549262738101479},{"$f":"IF($I47 >0, MIN(AA47,$I47-SUM($L47:AA47)), MAX(AA47,$I47-SUM($L47:AA47)))","v":6.0549262738101479},{"$f":"IF($I47 >0, MIN(AB47,$I47-SUM($L47:AB47)), MAX(AB47,$I47-SUM($L47:AB47)))","v":6.0549262738101479},{"$f":"IF($I47 >0, MIN(AC47,$I47-SUM($L47:AC47)), MAX(AC47,$I47-SUM($L47:AC47)))","v":6.0549262738101479},{"$f":"IF($I47 >0, MIN(AD47,$I47-SUM($L47:AD47)), MAX(AD47,$I47-SUM($L47:AD47)))","v":6.0549262738101479},{"$f":"IF($I47 >0, MIN(AE47,$I47-SUM($L47:AE47)), MAX(AE47,$I47-SUM($L47:AE47)))","v":6.0549262738101479},{"$f":"IF($I47 >0, MIN(AF47,$I47-SUM($L47:AF47)), MAX(AF47,$I47-SUM($L47:AF47)))","v":6.0549262738101479},{"$f":"IF($I47 >0, MIN(AG47,$I47-SUM($L47:AG47)), MAX(AG47,$I47-SUM($L47:AG47)))","v":6.0549262738101479},{"$f":"IF($I47 >0, MIN(AH47,$I47-SUM($L47:AH47)), MAX(AH47,$I47-SUM($L47:AH47)))","v":6.0549262738101106},{"$f":"IF($I47 >0, MIN(AI47,$I47-SUM($L47:AI47)), MAX(AI47,$I47-SUM($L47:AI47)))","v":0},{"$f":"IF($I47 >0, MIN(AJ47,$I47-SUM($L47:AJ47)), MAX(AJ47,$I47-SUM($L47:AJ47)))","v":0},{"$f":"IF($I47 >0, MIN(AK47,$I47-SUM($L47:AK47)), MAX(AK47,$I47-SUM($L47:AK47)))","v":0},{"$f":"IF($I47 >0, MIN(AL47,$I47-SUM($L47:AL47)), MAX(AL47,$I47-SUM($L47:AL47)))","v":0},{"$f":"IF($I47 >0, MIN(AM47,$I47-SUM($L47:AM47)), MAX(AM47,$I47-SUM($L47:AM47)))","v":0},{"$f":"IF($I47 >0, MIN(AN47,$I47-SUM($L47:AN47)), MAX(AN47,$I47-SUM($L47:AN47)))","v":0},{"$f":"IF($I47 >0, MIN(AO47,$I47-SUM($L47:AO47)), MAX(AO47,$I47-SUM($L47:AO47)))","v":0},{"$f":"IF($I47 >0, MIN(AP47,$I47-SUM($L47:AP47)), MAX(AP47,$I47-SUM($L47:AP47)))","v":0},{"$f":"IF($I47 >0, MIN(AQ47,$I47-SUM($L47:AQ47)), MAX(AQ47,$I47-SUM($L47:AQ47)))","v":0}]
[null,null,null,null,"1996-03-31",null,"£m 12/13 prices",null,107.54042084273492,">",null,null,null,null,null,null,{"$f":"$I48/P$37","v":5.3770210421367457},{"$f":"IF($I48 >0, MIN(Q48,$I48-SUM($L48:Q48)), MAX(Q48,$I48-SUM($L48:Q48)))","v":5.3770210421367457},{"$f":"IF($I48 >0, MIN(R48,$I48-SUM($L48:R48)), MAX(R48,$I48-SUM($L48:R48)))","v":5.3770210421367457},{"$f":"IF($I48 >0, MIN(S48,$I48-SUM($L48:S48)), MAX(S48,$I48-SUM($L48:S48)))","v":5.3770210421367457},{"$f":"IF($I48 >0, MIN(T48,$I48-SUM($L48:T48)), MAX(T48,$I48-SUM($L48:T48)))","v":5.3770210421367457},{"$f":"IF($I48 >0, MIN(U48,$I48-SUM($L48:U48)), MAX(U48,$I48-SUM($L48:U48)))","v":5.3770210421367457},{"$f":"IF($I48 >0, MIN(V48,$I48-SUM($L48:V48)), MAX(V48,$I48-SUM($L48:V48)))","v":5.3770210421367457},{"$f":"IF($I48 >0, MIN(W48,$I48-SUM($L48:W48)), MAX(W48,$I48-SUM($L48:W48)))","v":5.3770210421367457},{"$f":"IF($I48 >0, MIN(X48,$I48-SUM($L48:X48)), MAX(X48,$I48-SUM($L48:X48)))","v":5.3770210421367457},{"$f":"IF($I48 >0, MIN(Y48,$I48-SUM($L48:Y48)), MAX(Y48,$I48-SUM($L48:Y48)))","v":5.3770210421367457},{"$f":"IF($I48 >0, MIN(Z48,$I48-SUM($L48:Z48)), MAX(Z48,$I48-SUM($L48:Z48)))","v":5.3770210421367457},{"$f":"IF($I48 >0, MIN(AA48,$I48-SUM($L48:AA48)), MAX(AA48,$I48-SUM($L48:AA48)))","v":5.3770210421367457},{"$f":"IF($I48 >0, MIN(AB48,$I48-SUM($L48:AB48)), MAX(AB48,$I48-SUM($L48:AB48)))","v":5.3770210421367457},{"$f":"IF($I48 >0, MIN(AC48,$I48-SUM($L48:AC48)), MAX(AC48,$I48-SUM($L48:AC48)))","v":5.3770210421367457},{"$f":"IF($I48 >0, MIN(AD48,$I48-SUM($L48:AD48)), MAX(AD48,$I48-SUM($L48:AD48)))","v":5.3770210421367457},{"$f":"IF($I48 >0, MIN(AE48,$I48-SUM($L48:AE48)), MAX(AE48,$I48-SUM($L48:AE48)))","v":5.3770210421367457},{"$f":"IF($I48 >0, MIN(AF48,$I48-SUM($L48:AF48)), MAX(AF48,$I48-SUM($L48:AF48)))","v":5.3770210421367457},{"$f":"IF($I48 >0, MIN(AG48,$I48-SUM($L48:AG48)), MAX(AG48,$I48-SUM($L48:AG48)))","v":5.3770210421367457},{"$f":"IF($I48 >0, MIN(AH48,$I48-SUM($L48:AH48)), MAX(AH48,$I48-SUM($L48:AH48)))","v":5.3770210421367457},{"$f":"IF($I48 >0, MIN(AI48,$I48-SUM($L48:AI48)), MAX(AI48,$I48-SUM($L48:AI48)))","v":5.3770210421367457},{"$f":"IF($I48 >0, MIN(AJ48,$I48-SUM($L48:AJ48)), MAX(AJ48,$I48-SUM($L48:AJ48)))","v":0},{"$f":"IF($I48 >0, MIN(AK48,$I48-SUM($L48:AK48)), MAX(AK48,$I48-SUM($L48:AK48)))","v":0},{"$f":"IF($I48 >0, MIN(AL48,$I48-SUM($L48:AL48)), MAX(AL48,$I48-SUM($L48:AL48)))","v":0},{"$f":"IF($I48 >0, MIN(AM48,$I48-SUM($L48:AM48)), MAX(AM48,$I48-SUM($L48:AM48)))","v":0},{"$f":"IF($I48 >0, MIN(AN48,$I48-SUM($L48:AN48)), MAX(AN48,$I48-SUM($L48:AN48)))","v":0},{"$f":"IF($I48 >0, MIN(AO48,$I48-SUM($L48:AO48)), MAX(AO48,$I48-SUM($L48:AO48)))","v":0},{"$f":"IF($I48 >0, MIN(AP48,$I48-SUM($L48:AP48)), MAX(AP48,$I48-SUM($L48:AP48)))","v":0},{"$f":"IF($I48 >0, MIN(AQ48,$I48-SUM($L48:AQ48)), MAX(AQ48,$I48-SUM($L48:AQ48)))","v":0}]
[null,null,null,null,"1997-03-31",null,"£m 12/13 prices",null,124.17991289290022,">",null,null,null,null,null,null,null,{"$f":"$I49/Q$37","v":6.208995644645011},{"$f":"IF($I49 >0, MIN(R49,$I49-SUM($L49:R49)), MAX(R49,$I49-SUM($L49:R49)))","v":6.208995644645011},{"$f":"IF($I49 >0, MIN(S49,$I49-SUM($L49:S49)), MAX(S49,$I49-SUM($L49:S49)))","v":6.208995644645011},{"$f":"IF($I49 >0, MIN(T49,$I49-SUM($L49:T49)), MAX(T49,$I49-SUM($L49:T49)))","v":6.208995644645011},{"$f":"IF($I49 >0, MIN(U49,$I49-SUM($L49:U49)), MAX(U49,$I49-SUM($L49:U49)))","v":6.208995644645011},{"$f":"IF($I49 >0, MIN(V49,$I49-SUM($L49:V49)), MAX(V49,$I49-SUM($L49:V49)))","v":6.208995644645011},{"$f":"IF($I49 >0, MIN(W49,$I49-SUM($L49:W49)), MAX(W49,$I49-SUM($L49:W49)))","v":6.208995644645011},{"$f":"IF($I49 >0, MIN(X49,$I49-SUM($L49:X49)), MAX(X49,$I49-SUM($L49:X49)))","v":6.208995644645011},{"$f":"IF($I49 >0, MIN(Y49,$I49-SUM($L49:Y49)), MAX(Y49,$I49-SUM($L49:Y49)))","v":6.208995644645011},{"$f":"IF($I49 >0, MIN(Z49,$I49-SUM($L49:Z49)), MAX(Z49,$I49-SUM($L49:Z49)))","v":6.208995644645011},{"$f":"IF($I49 >0, MIN(AA49,$I49-SUM($L49:AA49)), MAX(AA49,$I49-SUM($L49:AA49)))","v":6.208995644645011},{"$f":"IF($I49 >0, MIN(AB49,$I49-SUM($L49:AB49)), MAX(AB49,$I49-SUM($L49:AB49)))","v":6.208995644645011},{"$f":"IF($I49 >0, MIN(AC49,$I49-SUM($L49:AC49)), MAX(AC49,$I49-SUM($L49:AC49)))","v":6.208995644645011},{"$f":"IF($I49 >0, MIN(AD49,$I49-SUM($L49:AD49)), MAX(AD49,$I49-SUM($L49:AD49)))","v":6.208995644645011},{"$f":"IF($I49 >0, MIN(AE49,$I49-SUM($L49:AE49)), MAX(AE49,$I49-SUM($L49:AE49)))","v":6.208995644645011},{"$f":"IF($I49 >0, MIN(AF49,$I49-SUM($L49:AF49)), MAX(AF49,$I49-SUM($L49:AF49)))","v":6.208995644645011},{"$f":"IF($I49 >0, MIN(AG49,$I49-SUM($L49:AG49)), MAX(AG49,$I49-SUM($L49:AG49)))","v":6.208995644645011},{"$f":"IF($I49 >0, MIN(AH49,$I49-SUM($L49:AH49)), MAX(AH49,$I49-SUM($L49:AH49)))","v":6.208995644645011},{"$f":"IF($I49 >0, MIN(AI49,$I49-SUM($L49:AI49)), MAX(AI49,$I49-SUM($L49:AI49)))","v":6.208995644645011},{"$f":"IF($I49 >0, MIN(AJ49,$I49-SUM($L49:AJ49)), MAX(AJ49,$I49-SUM($L49:AJ49)))","v":6.2089956446449719},{"$f":"IF($I49 >0, MIN(AK49,$I49-SUM($L49:AK49)), MAX(AK49,$I49-SUM($L49:AK49)))","v":0},{"$f":"IF($I49 >0, MIN(AL49,$I49-SUM($L49:AL49)), MAX(AL49,$I49-SUM($L49:AL49)))","v":0},{"$f":"IF($I49 >0, MIN(AM49,$I49-SUM($L49:AM49)), MAX(AM49,$I49-SUM($L49:AM49)))","v":0},{"$f":"IF($I49 >0, MIN(AN49,$I49-SUM($L49:AN49)), MAX(AN49,$I49-SUM($L49:AN49)))","v":0},{"$f":"IF($I49 >0, MIN(AO49,$I49-SUM($L49:AO49)), MAX(AO49,$I49-SUM($L49:AO49)))","v":0},{"$f":"IF($I49 >0, MIN(AP49,$I49-SUM($L49:AP49)), MAX(AP49,$I49-SUM($L49:AP49)))","v":0},{"$f":"IF($I49 >0, MIN(AQ49,$I49-SUM($L49:AQ49)), MAX(AQ49,$I49-SUM($L49:AQ49)))","v":0}]
[null,null,null,null,"1998-03-31",null,"£m 12/13 prices",null,105.84565776355142,">",null,null,null,null,null,null,null,null,{"$f":"$I50/R$37","v":5.2922828881775708},{"$f":"IF($I50 >0, MIN(S50,$I50-SUM($L50:S50)), MAX(S50,$I50-SUM($L50:S50)))","v":5.2922828881775708},{"$f":"IF($I50 >0, MIN(T50,$I50-SUM($L50:T50)), MAX(T50,$I50-SUM($L50:T50)))","v":5.2922828881775708},{"$f":"IF($I50 >0, MIN(U50,$I50-SUM($L50:U50)), MAX(U50,$I50-SUM($L50:U50)))","v":5.2922828881775708},{"$f":"IF($I50 >0, MIN(V50,$I50-SUM($L50:V50)), MAX(V50,$I50-SUM($L50:V50)))","v":5.2922828881775708},{"$f":"IF($I50 >0, MIN(W50,$I50-SUM($L50:W50)), MAX(W50,$I50-SUM($L50:W50)))","v":5.2922828881775708},{"$f":"IF($I50 >0, MIN(X50,$I50-SUM($L50:X50)), MAX(X50,$I50-SUM($L50:X50)))","v":5.2922828881775708},{"$f":"IF($I50 >0, MIN(Y50,$I50-SUM($L50:Y50)), MAX(Y50,$I50-SUM($L50:Y50)))","v":5.2922828881775708},{"$f":"IF($I50 >0, MIN(Z50,$I50-SUM($L50:Z50)), MAX(Z50,$I50-SUM($L50:Z50)))","v":5.2922828881775708},{"$f":"IF($I50 >0, MIN(AA50,$I50-SUM($L50:AA50)), MAX(AA50,$I50-SUM($L50:AA50)))","v":5.2922828881775708},{"$f":"IF($I50 >0, MIN(AB50,$I50-SUM($L50:AB50)), MAX(AB50,$I50-SUM($L50:AB50)))","v":5.2922828881775708},{"$f":"IF($I50 >0, MIN(AC50,$I50-SUM($L50:AC50)), MAX(AC50,$I50-SUM($L50:AC50)))","v":5.2922828881775708},{"$f":"IF($I50 >0, MIN(AD50,$I50-SUM($L50:AD50)), MAX(AD50,$I50-SUM($L50:AD50)))","v":5.2922828881775708},{"$f":"IF($I50 >0, MIN(AE50,$I50-SUM($L50:AE50)), MAX(AE50,$I50-SUM($L50:AE50)))","v":5.2922828881775708},{"$f":"IF($I50 >0, MIN(AF50,$I50-SUM($L50:AF50)), MAX(AF50,$I50-SUM($L50:AF50)))","v":5.2922828881775708},{"$f":"IF($I50 >0, MIN(AG50,$I50-SUM($L50:AG50)), MAX(AG50,$I50-SUM($L50:AG50)))","v":5.2922828881775708},{"$f":"IF($I50 >0, MIN(AH50,$I50-SUM($L50:AH50)), MAX(AH50,$I50-SUM($L50:AH50)))","v":5.2922828881775708},{"$f":"IF($I50 >0, MIN(AI50,$I50-SUM($L50:AI50)), MAX(AI50,$I50-SUM($L50:AI50)))","v":5.2922828881775708},{"$f":"IF($I50 >0, MIN(AJ50,$I50-SUM($L50:AJ50)), MAX(AJ50,$I50-SUM($L50:AJ50)))","v":5.2922828881775708},{"$f":"IF($I50 >0, MIN(AK50,$I50-SUM($L50:AK50)), MAX(AK50,$I50-SUM($L50:AK50)))","v":5.2922828881775708},{"$f":"IF($I50 >0, MIN(AL50,$I50-SUM($L50:AL50)), MAX(AL50,$I50-SUM($L50:AL50)))","v":4.2632564145606011E-14},{"$f":"IF($I50 >0, MIN(AM50,$I50-SUM($L50:AM50)), MAX(AM50,$I50-SUM($L50:AM50)))","v":0},{"$f":"IF($I50 >0, MIN(AN50,$I50-SUM($L50:AN50)), MAX(AN50,$I50-SUM($L50:AN50)))","v":0},{"$f":"IF($I50 >0, MIN(AO50,$I50-SUM($L50:AO50)), MAX(AO50,$I50-SUM($L50:AO50)))","v":0},{"$f":"IF($I50 >0, MIN(AP50,$I50-SUM($L50:AP50)), MAX(AP50,$I50-SUM($L50:AP50)))","v":0},{"$f":"IF($I50 >0, MIN(AQ50,$I50-SUM($L50:AQ50)), MAX(AQ50,$I50-SUM($L50:AQ50)))","v":0}]
[null,null,null,null,"1999-03-31",null,"£m 12/13 prices",null,112.05918273879193,">",null,null,null,null,null,null,null,null,null,{"$f":"$I51/S$37","v":5.6029591369395968},{"$f":"IF($I51 >0, MIN(T51,$I51-SUM($L51:T51)), MAX(T51,$I51-SUM($L51:T51)))","v":5.6029591369395968},{"$f":"IF($I51 >0, MIN(U51,$I51-SUM($L51:U51)), MAX(U51,$I51-SUM($L51:U51)))","v":5.6029591369395968},{"$f":"IF($I51 >0, MIN(V51,$I51-SUM($L51:V51)), MAX(V51,$I51-SUM($L51:V51)))","v":5.6029591369395968},{"$f":"IF($I51 >0, MIN(W51,$I51-SUM($L51:W51)), MAX(W51,$I51-SUM($L51:W51)))","v":5.6029591369395968},{"$f":"IF($I51 >0, MIN(X51,$I51-SUM($L51:X51)), MAX(X51,$I51-SUM($L51:X51)))","v":5.6029591369395968},{"$f":"IF($I51 >0, MIN(Y51,$I51-SUM($L51:Y51)), MAX(Y51,$I51-SUM($L51:Y51)))","v":5.6029591369395968},{"$f":"IF($I51 >0, MIN(Z51,$I51-SUM($L51:Z51)), MAX(Z51,$I51-SUM($L51:Z51)))","v":5.6029591369395968},{"$f":"IF($I51 >0, MIN(AA51,$I51-SUM($L51:AA51)), MAX(AA51,$I51-SUM($L51:AA51)))","v":5.6029591369395968},{"$f":"IF($I51 >0, MIN(AB51,$I51-SUM($L51:AB51)), MAX(AB51,$I51-SUM($L51:AB51)))","v":5.6029591369395968},{"$f":"IF($I51 >0, MIN(AC51,$I51-SUM($L51:AC51)), MAX(AC51,$I51-SUM($L51:AC51)))","v":5.6029591369395968},{"$f":"IF($I51 >0, MIN(AD51,$I51-SUM($L51:AD51)), MAX(AD51,$I51-SUM($L51:AD51)))","v":5.6029591369395968},{"$f":"IF($I51 >0, MIN(AE51,$I51-SUM($L51:AE51)), MAX(AE51,$I51-SUM($L51:AE51)))","v":5.6029591369395968},{"$f":"IF($I51 >0, MIN(AF51,$I51-SUM($L51:AF51)), MAX(AF51,$I51-SUM($L51:AF51)))","v":5.6029591369395968},{"$f":"IF($I51 >0, MIN(AG51,$I51-SUM($L51:AG51)), MAX(AG51,$I51-SUM($L51:AG51)))","v":5.6029591369395968},{"$f":"IF($I51 >0, MIN(AH51,$I51-SUM($L51:AH51)), MAX(AH51,$I51-SUM($L51:AH51)))","v":5.6029591369395968},{"$f":"IF($I51 >0, MIN(AI51,$I51-SUM($L51:AI51)), MAX(AI51,$I51-SUM($L51:AI51)))","v":5.6029591369395968},{"$f":"IF($I51 >0, MIN(AJ51,$I51-SUM($L51:AJ51)), MAX(AJ51,$I51-SUM($L51:AJ51)))","v":5.6029591369395968},{"$f":"IF($I51 >0, MIN(AK51,$I51-SUM($L51:AK51)), MAX(AK51,$I51-SUM($L51:AK51)))","v":5.6029591369395968},{"$f":"IF($I51 >0, MIN(AL51,$I51-SUM($L51:AL51)), MAX(AL51,$I51-SUM($L51:AL51)))","v":5.6029591369395462},{"$f":"IF($I51 >0, MIN(AM51,$I51-SUM($L51:AM51)), MAX(AM51,$I51-SUM($L51:AM51)))","v":0},{"$f":"IF($I51 >0, MIN(AN51,$I51-SUM($L51:AN51)), MAX(AN51,$I51-SUM($L51:AN51)))","v":0},{"$f":"IF($I51 >0, MIN(AO51,$I51-SUM($L51:AO51)), MAX(AO51,$I51-SUM($L51:AO51)))","v":0},{"$f":"IF($I51 >0, MIN(AP51,$I51-SUM($L51:AP51)), MAX(AP51,$I51-SUM($L51:AP51)))","v":0},{"$f":"IF($I51 >0, MIN(AQ51,$I51-SUM($L51:AQ51)), MAX(AQ51,$I51-SUM($L51:AQ51)))","v":0}]
[null,null,null,null,"2000-03-31",null,"£m 12/13 prices",null,100.34160108609318,">",null,null,null,null,null,null,null,null,null,null,{"$f":"$I52/T$37","v":5.0170800543046585},{"$f":"IF($I52 >0, MIN(U52,$I52-SUM($L52:U52)), MAX(U52,$I52-SUM($L52:U52)))","v":5.0170800543046585},{"$f":"IF($I52 >0, MIN(V52,$I52-SUM($L52:V52)), MAX(V52,$I52-SUM($L52:V52)))","v":5.0170800543046585},{"$f":"IF($I52 >0, MIN(W52,$I52-SUM($L52:W52)), MAX(W52,$I52-SUM($L52:W52)))","v":5.0170800543046585},{"$f":"IF($I52 >0, MIN(X52,$I52-SUM($L52:X52)), MAX(X52,$I52-SUM($L52:X52)))","v":5.0170800543046585},{"$f":"IF($I52 >0, MIN(Y52,$I52-SUM($L52:Y52)), MAX(Y52,$I52-SUM($L52:Y52)))","v":5.0170800543046585},{"$f":"IF($I52 >0, MIN(Z52,$I52-SUM($L52:Z52)), MAX(Z52,$I52-SUM($L52:Z52)))","v":5.0170800543046585},{"$f":"IF($I52 >0, MIN(AA52,$I52-SUM($L52:AA52)), MAX(AA52,$I52-SUM($L52:AA52)))","v":5.0170800543046585},{"$f":"IF($I52 >0, MIN(AB52,$I52-SUM($L52:AB52)), MAX(AB52,$I52-SUM($L52:AB52)))","v":5.0170800543046585},{"$f":"IF($I52 >0, MIN(AC52,$I52-SUM($L52:AC52)), MAX(AC52,$I52-SUM($L52:AC52)))","v":5.0170800543046585},{"$f":"IF($I52 >0, MIN(AD52,$I52-SUM($L52:AD52)), MAX(AD52,$I52-SUM($L52:AD52)))","v":5.0170800543046585},{"$f":"IF($I52 >0, MIN(AE52,$I52-SUM($L52:AE52)), MAX(AE52,$I52-SUM($L52:AE52)))","v":5.0170800543046585},{"$f":"IF($I52 >0, MIN(AF52,$I52-SUM($L52:AF52)), MAX(AF52,$I52-SUM($L52:AF52)))","v":5.0170800543046585},{"$f":"IF($I52 >0, MIN(AG52,$I52-SUM($L52:AG52)), MAX(AG52,$I52-SUM($L52:AG52)))","v":5.0170800543046585},{"$f":"IF($I52 >0, MIN(AH52,$I52-SUM($L52:AH52)), MAX(AH52,$I52-SUM($L52:AH52)))","v":5.0170800543046585},{"$f":"IF($I52 >0, MIN(AI52,$I52-SUM($L52:AI52)), MAX(AI52,$I52-SUM($L52:AI52)))","v":5.0170800543046585},{"$f":"IF($I52 >0, MIN(AJ52,$I52-SUM($L52:AJ52)), MAX(AJ52,$I52-SUM($L52:AJ52)))","v":5.0170800543046585},{"$f":"IF($I52 >0, MIN(AK52,$I52-SUM($L52:AK52)), MAX(AK52,$I52-SUM($L52:AK52)))","v":5.0170800543046585},{"$f":"IF($I52 >0, MIN(AL52,$I52-SUM($L52:AL52)), MAX(AL52,$I52-SUM($L52:AL52)))","v":5.0170800543046585},{"$f":"IF($I52 >0, MIN(AM52,$I52-SUM($L52:AM52)), MAX(AM52,$I52-SUM($L52:AM52)))","v":5.0170800543046585},{"$f":"IF($I52 >0, MIN(AN52,$I52-SUM($L52:AN52)), MAX(AN52,$I52-SUM($L52:AN52)))","v":2.8421709430404007E-14},{"$f":"IF($I52 >0, MIN(AO52,$I52-SUM($L52:AO52)), MAX(AO52,$I52-SUM($L52:AO52)))","v":0},{"$f":"IF($I52 >0, MIN(AP52,$I52-SUM($L52:AP52)), MAX(AP52,$I52-SUM($L52:AP52)))","v":0},{"$f":"IF($I52 >0, MIN(AQ52,$I52-SUM($L52:AQ52)), MAX(AQ52,$I52-SUM($L52:AQ52)))","v":0}]
[null,null,null,null,"2001-03-31",null,"£m 12/13 prices",null,101.71991978233071,">",null,null,null,null,null,null,null,null,null,null,null,{"$f":"$I53/U$37","v":5.0859959891165349},{"$f":"IF($I53 >0, MIN(V53,$I53-SUM($L53:V53)), MAX(V53,$I53-SUM($L53:V53)))","v":5.0859959891165349},{"$f":"IF($I53 >0, MIN(W53,$I53-SUM($L53:W53)), MAX(W53,$I53-SUM($L53:W53)))","v":5.0859959891165349},{"$f":"IF($I53 >0, MIN(X53,$I53-SUM($L53:X53)), MAX(X53,$I53-SUM($L53:X53)))","v":5.0859959891165349},{"$f":"IF($I53 >0, MIN(Y53,$I53-SUM($L53:Y53)), MAX(Y53,$I53-SUM($L53:Y53)))","v":5.0859959891165349},{"$f":"IF($I53 >0, MIN(Z53,$I53-SUM($L53:Z53)), MAX(Z53,$I53-SUM($L53:Z53)))","v":5.0859959891165349},{"$f":"IF($I53 >0, MIN(AA53,$I53-SUM($L53:AA53)), MAX(AA53,$I53-SUM($L53:AA53)))","v":5.0859959891165349},{"$f":"IF($I53 >0, MIN(AB53,$I53-SUM($L53:AB53)), MAX(AB53,$I53-SUM($L53:AB53)))","v":5.0859959891165349},{"$f":"IF($I53 >0, MIN(AC53,$I53-SUM($L53:AC53)), MAX(AC53,$I53-SUM($L53:AC53)))","v":5.0859959891165349},{"$f":"IF($I53 >0, MIN(AD53,$I53-SUM($L53:AD53)), MAX(AD53,$I53-SUM($L53:AD53)))","v":5.0859959891165349},{"$f":"IF($I53 >0, MIN(AE53,$I53-SUM($L53:AE53)), MAX(AE53,$I53-SUM($L53:AE53)))","v":5.0859959891165349},{"$f":"IF($I53 >0, MIN(AF53,$I53-SUM($L53:AF53)), MAX(AF53,$I53-SUM($L53:AF53)))","v":5.0859959891165349},{"$f":"IF($I53 >0, MIN(AG53,$I53-SUM($L53:AG53)), MAX(AG53,$I53-SUM($L53:AG53)))","v":5.0859959891165349},{"$f":"IF($I53 >0, MIN(AH53,$I53-SUM($L53:AH53)), MAX(AH53,$I53-SUM($L53:AH53)))","v":5.0859959891165349},{"$f":"IF($I53 >0, MIN(AI53,$I53-SUM($L53:AI53)), MAX(AI53,$I53-SUM($L53:AI53)))","v":5.0859959891165349},{"$f":"IF($I53 >0, MIN(AJ53,$I53-SUM($L53:AJ53)), MAX(AJ53,$I53-SUM($L53:AJ53)))","v":5.0859959891165349},{"$f":"IF($I53 >0, MIN(AK53,$I53-SUM($L53:AK53)), MAX(AK53,$I53-SUM($L53:AK53)))","v":5.0859959891165349},{"$f":"IF($I53 >0, MIN(AL53,$I53-SUM($L53:AL53)), MAX(AL53,$I53-SUM($L53:AL53)))","v":5.0859959891165349},{"$f":"IF($I53 >0, MIN(AM53,$I53-SUM($L53:AM53)), MAX(AM53,$I53-SUM($L53:AM53)))","v":5.0859959891165349},{"$f":"IF($I53 >0, MIN(AN53,$I53-SUM($L53:AN53)), MAX(AN53,$I53-SUM($L53:AN53)))","v":5.0859959891165261},{"$f":"IF($I53 >0, MIN(AO53,$I53-SUM($L53:AO53)), MAX(AO53,$I53-SUM($L53:AO53)))","v":0},{"$f":"IF($I53 >0, MIN(AP53,$I53-SUM($L53:AP53)), MAX(AP53,$I53-SUM($L53:AP53)))","v":0},{"$f":"IF($I53 >0, MIN(AQ53,$I53-SUM($L53:AQ53)), MAX(AQ53,$I53-SUM($L53:AQ53)))","v":0}]
[null,null,null,null,"2002-03-31",null,"£m 12/13 prices",null,122.94602770438888,">",null,null,null,null,null,null,null,null,null,null,null,null,{"$f":"$I54/V$37","v":6.1473013852194445},{"$f":"IF($I54 >0, MIN(W54,$I54-SUM($L54:W54)), MAX(W54,$I54-SUM($L54:W54)))","v":6.1473013852194445},{"$f":"IF($I54 >0, MIN(X54,$I54-SUM($L54:X54)), MAX(X54,$I54-SUM($L54:X54)))","v":6.1473013852194445},{"$f":"IF($I54 >0, MIN(Y54,$I54-SUM($L54:Y54)), MAX(Y54,$I54-SUM($L54:Y54)))","v":6.1473013852194445},{"$f":"IF($I54 >0, MIN(Z54,$I54-SUM($L54:Z54)), MAX(Z54,$I54-SUM($L54:Z54)))","v":6.1473013852194445},{"$f":"IF($I54 >0, MIN(AA54,$I54-SUM($L54:AA54)), MAX(AA54,$I54-SUM($L54:AA54)))","v":6.1473013852194445},{"$f":"IF($I54 >0, MIN(AB54,$I54-SUM($L54:AB54)), MAX(AB54,$I54-SUM($L54:AB54)))","v":6.1473013852194445},{"$f":"IF($I54 >0, MIN(AC54,$I54-SUM($L54:AC54)), MAX(AC54,$I54-SUM($L54:AC54)))","v":6.1473013852194445},{"$f":"IF($I54 >0, MIN(AD54,$I54-SUM($L54:AD54)), MAX(AD54,$I54-SUM($L54:AD54)))","v":6.1473013852194445},{"$f":"IF($I54 >0, MIN(AE54,$I54-SUM($L54:AE54)), MAX(AE54,$I54-SUM($L54:AE54)))","v":6.1473013852194445},{"$f":"IF($I54 >0, MIN(AF54,$I54-SUM($L54:AF54)), MAX(AF54,$I54-SUM($L54:AF54)))","v":6.1473013852194445},{"$f":"IF($I54 >0, MIN(AG54,$I54-SUM($L54:AG54)), MAX(AG54,$I54-SUM($L54:AG54)))","v":6.1473013852194445},{"$f":"IF($I54 >0, MIN(AH54,$I54-SUM($L54:AH54)), MAX(AH54,$I54-SUM($L54:AH54)))","v":6.1473013852194445},{"$f":"IF($I54 >0, MIN(AI54,$I54-SUM($L54:AI54)), MAX(AI54,$I54-SUM($L54:AI54)))","v":6.1473013852194445},{"$f":"IF($I54 >0, MIN(AJ54,$I54-SUM($L54:AJ54)), MAX(AJ54,$I54-SUM($L54:AJ54)))","v":6.1473013852194445},{"$f":"IF($I54 >0, MIN(AK54,$I54-SUM($L54:AK54)), MAX(AK54,$I54-SUM($L54:AK54)))","v":6.1473013852194445},{"$f":"IF($I54 >0, MIN(AL54,$I54-SUM($L54:AL54)), MAX(AL54,$I54-SUM($L54:AL54)))","v":6.1473013852194445},{"$f":"IF($I54 >0, MIN(AM54,$I54-SUM($L54:AM54)), MAX(AM54,$I54-SUM($L54:AM54)))","v":6.1473013852194445},{"$f":"IF($I54 >0, MIN(AN54,$I54-SUM($L54:AN54)), MAX(AN54,$I54-SUM($L54:AN54)))","v":6.1473013852194445},{"$f":"IF($I54 >0, MIN(AO54,$I54-SUM($L54:AO54)), MAX(AO54,$I54-SUM($L54:AO54)))","v":6.1473013852194072},{"$f":"IF($I54 >0, MIN(AP54,$I54-SUM($L54:AP54)), MAX(AP54,$I54-SUM($L54:AP54)))","v":0},{"$f":"IF($I54 >0, MIN(AQ54,$I54-SUM($L54:AQ54)), MAX(AQ54,$I54-SUM($L54:AQ54)))","v":0}]
[null,null,null,null,"2003-03-31",null,"£m 12/13 prices",null,114.81394739658739,">",null,null,null,null,null,null,null,null,null,null,null,null,null,{"$f":"$I55/W$37","v":5.7406973698293697},{"$f":"IF($I55 >0, MIN(X55,$I55-SUM($L55:X55)), MAX(X55,$I55-SUM($L55:X55)))","v":5.7406973698293697},{"$f":"IF($I55 >0, MIN(Y55,$I55-SUM($L55:Y55)), MAX(Y55,$I55-SUM($L55:Y55)))","v":5.7406973698293697},{"$f":"IF($I55 >0, MIN(Z55,$I55-SUM($L55:Z55)), MAX(Z55,$I55-SUM($L55:Z55)))","v":5.7406973698293697},{"$f":"IF($I55 >0, MIN(AA55,$I55-SUM($L55:AA55)), MAX(AA55,$I55-SUM($L55:AA55)))","v":5.7406973698293697},{"$f":"IF($I55 >0, MIN(AB55,$I55-SUM($L55:AB55)), MAX(AB55,$I55-SUM($L55:AB55)))","v":5.7406973698293697},{"$f":"IF($I55 >0, MIN(AC55,$I55-SUM($L55:AC55)), MAX(AC55,$I55-SUM($L55:AC55)))","v":5.7406973698293697},{"$f":"IF($I55 >0, MIN(AD55,$I55-SUM($L55:AD55)), MAX(AD55,$I55-SUM($L55:AD55)))","v":5.7406973698293697},{"$f":"IF($I55 >0, MIN(AE55,$I55-SUM($L55:AE55)), MAX(AE55,$I55-SUM($L55:AE55)))","v":5.7406973698293697},{"$f":"IF($I55 >0, MIN(AF55,$I55-SUM($L55:AF55)), MAX(AF55,$I55-SUM($L55:AF55)))","v":5.7406973698293697},{"$f":"IF($I55 >0, MIN(AG55,$I55-SUM($L55:AG55)), MAX(AG55,$I55-SUM($L55:AG55)))","v":5.7406973698293697},{"$f":"IF($I55 >0, MIN(AH55,$I55-SUM($L55:AH55)), MAX(AH55,$I55-SUM($L55:AH55)))","v":5.7406973698293697},{"$f":"IF($I55 >0, MIN(AI55,$I55-SUM($L55:AI55)), MAX(AI55,$I55-SUM($L55:AI55)))","v":5.7406973698293697},{"$f":"IF($I55 >0, MIN(AJ55,$I55-SUM($L55:AJ55)), MAX(AJ55,$I55-SUM($L55:AJ55)))","v":5.7406973698293697},{"$f":"IF($I55 >0, MIN(AK55,$I55-SUM($L55:AK55)), MAX(AK55,$I55-SUM($L55:AK55)))","v":5.7406973698293697},{"$f":"IF($I55 >0, MIN(AL55,$I55-SUM($L55:AL55)), MAX(AL55,$I55-SUM($L55:AL55)))","v":5.7406973698293697},{"$f":"IF($I55 >0, MIN(AM55,$I55-SUM($L55:AM55)), MAX(AM55,$I55-SUM($L55:AM55)))","v":5.7406973698293697},{"$f":"IF($I55 >0, MIN(AN55,$I55-SUM($L55:AN55)), MAX(AN55,$I55-SUM($L55:AN55)))","v":5.7406973698293697},{"$f":"IF($I55 >0, MIN(AO55,$I55-SUM($L55:AO55)), MAX(AO55,$I55-SUM($L55:AO55)))","v":5.7406973698293697},{"$f":"IF($I55 >0, MIN(AP55,$I55-SUM($L55:AP55)), MAX(AP55,$I55-SUM($L55:AP55)))","v":5.74069736982932},{"$f":"IF($I55 >0, MIN(AQ55,$I55-SUM($L55:AQ55)), MAX(AQ55,$I55-SUM($L55:AQ55)))","v":0}]
[null,null,null,null,"2004-03-31",null,"£m 12/13 prices",null,134.62320865872039,">",null,null,null,null,null,null,null,null,null,null,null,null,null,null,{"$f":"$I56/X$37","v":6.7311604329360195},{"$f":"IF($I56 >0, MIN(Y56,$I56-SUM($L56:Y56)), MAX(Y56,$I56-SUM($L56:Y56)))","v":6.7311604329360195},{"$f":"IF($I56 >0, MIN(Z56,$I56-SUM($L56:Z56)), MAX(Z56,$I56-SUM($L56:Z56)))","v":6.7311604329360195},{"$f":"IF($I56 >0, MIN(AA56,$I56-SUM($L56:AA56)), MAX(AA56,$I56-SUM($L56:AA56)))","v":6.7311604329360195},{"$f":"IF($I56 >0, MIN(AB56,$I56-SUM($L56:AB56)), MAX(AB56,$I56-SUM($L56:AB56)))","v":6.7311604329360195},{"$f":"IF($I56 >0, MIN(AC56,$I56-SUM($L56:AC56)), MAX(AC56,$I56-SUM($L56:AC56)))","v":6.7311604329360195},{"$f":"IF($I56 >0, MIN(AD56,$I56-SUM($L56:AD56)), MAX(AD56,$I56-SUM($L56:AD56)))","v":6.7311604329360195},{"$f":"IF($I56 >0, MIN(AE56,$I56-SUM($L56:AE56)), MAX(AE56,$I56-SUM($L56:AE56)))","v":6.7311604329360195},{"$f":"IF($I56 >0, MIN(AF56,$I56-SUM($L56:AF56)), MAX(AF56,$I56-SUM($L56:AF56)))","v":6.7311604329360195},{"$f":"IF($I56 >0, MIN(AG56,$I56-SUM($L56:AG56)), MAX(AG56,$I56-SUM($L56:AG56)))","v":6.7311604329360195},{"$f":"IF($I56 >0, MIN(AH56,$I56-SUM($L56:AH56)), MAX(AH56,$I56-SUM($L56:AH56)))","v":6.7311604329360195},{"$f":"IF($I56 >0, MIN(AI56,$I56-SUM($L56:AI56)), MAX(AI56,$I56-SUM($L56:AI56)))","v":6.7311604329360195},{"$f":"IF($I56 >0, MIN(AJ56,$I56-SUM($L56:AJ56)), MAX(AJ56,$I56-SUM($L56:AJ56)))","v":6.7311604329360195},{"$f":"IF($I56 >0, MIN(AK56,$I56-SUM($L56:AK56)), MAX(AK56,$I56-SUM($L56:AK56)))","v":6.7311604329360195},{"$f":"IF($I56 >0, MIN(AL56,$I56-SUM($L56:AL56)), MAX(AL56,$I56-SUM($L56:AL56)))","v":6.7311604329360195},{"$f":"IF($I56 >0, MIN(AM56,$I56-SUM($L56:AM56)), MAX(AM56,$I56-SUM($L56:AM56)))","v":6.7311604329360195},{"$f":"IF($I56 >0, MIN(AN56,$I56-SUM($L56:AN56)), MAX(AN56,$I56-SUM($L56:AN56)))","v":6.7311604329360195},{"$f":"IF($I56 >0, MIN(AO56,$I56-SUM($L56:AO56)), MAX(AO56,$I56-SUM($L56:AO56)))","v":6.7311604329360195},{"$f":"IF($I56 >0, MIN(AP56,$I56-SUM($L56:AP56)), MAX(AP56,$I56-SUM($L56:AP56)))","v":6.7311604329360195},{"$f":"IF($I56 >0, MIN(AQ56,$I56-SUM($L56:AQ56)), MAX(AQ56,$I56-SUM($L56:AQ56)))","v":6.7311604329359795}]
[null,null,null,null,"2005-03-31",null,"£m 12/13 prices",null,113.36672305139849,">",null,null,null,null,null,null,null,null,null,null,null,null,null,null,null,{"$f":"$I57/Y$37","v":5.6683361525699247},{"$f":"IF($I57 >0, MIN(Z57,$I57-SUM($L57:Z57)), MAX(Z57,$I57-SUM($L57:Z57)))","v":5.6683361525699247},{"$f":"IF($I57 >0, MIN(AA57,$I57-SUM($L57:AA57)), MAX(AA57,$I57-SUM($L57:AA57)))","v":5.6683361525699247},{"$f":"IF($I57 >0, MIN(AB57,$I57-SUM($L57:AB57)), MAX(AB57,$I57-SUM($L57:AB57)))","v":5.6683361525699247},{"$f":"IF($I57 >0, MIN(AC57,$I57-SUM($L57:AC57)), MAX(AC57,$I57-SUM($L57:AC57)))","v":5.6683361525699247},{"$f":"IF($I57 >0, MIN(AD57,$I57-SUM($L57:AD57)), MAX(AD57,$I57-SUM($L57:AD57)))","v":5.6683361525699247},{"$f":"IF($I57 >0, MIN(AE57,$I57-SUM($L57:AE57)), MAX(AE57,$I57-SUM($L57:AE57)))","v":5.6683361525699247},{"$f":"IF($I57 >0, MIN(AF57,$I57-SUM($L57:AF57)), MAX(AF57,$I57-SUM($L57:AF57)))","v":5.6683361525699247},{"$f":"IF($I57 >0, MIN(AG57,$I57-SUM($L57:AG57)), MAX(AG57,$I57-SUM($L57:AG57)))","v":5.6683361525699247},{"$f":"IF($I57 >0, MIN(AH57,$I57-SUM($L57:AH57)), MAX(AH57,$I57-SUM($L57:AH57)))","v":5.6683361525699247},{"$f":"IF($I57 >0, MIN(AI57,$I57-SUM($L57:AI57)), MAX(AI57,$I57-SUM($L57:AI57)))","v":5.6683361525699247},{"$f":"IF($I57 >0, MIN(AJ57,$I57-SUM($L57:AJ57)), MAX(AJ57,$I57-SUM($L57:AJ57)))","v":5.6683361525699247},{"$f":"IF($I57 >0, MIN(AK57,$I57-SUM($L57:AK57)), MAX(AK57,$I57-SUM($L57:AK57)))","v":5.6683361525699247},{"$f":"IF($I57 >0, MIN(AL57,$I57-SUM($L57:AL57)), MAX(AL57,$I57-SUM($L57:AL57)))","v":5.6683361525699247},{"$f":"IF($I57 >0, MIN(AM57,$I57-SUM($L57:AM57)), MAX(AM57,$I57-SUM($L57:AM57)))","v":5.6683361525699247},{"$f":"IF($I57 >0, MIN(AN57,$I57-SUM($L57:AN57)), MAX(AN57,$I57-SUM($L57:AN57)))","v":5.6683361525699247},{"$f":"IF($I57 >0, MIN(AO57,$I57-SUM($L57:AO57)), MAX(AO57,$I57-SUM($L57:AO57)))","v":5.6683361525699247},{"$f":"IF($I57 >0, MIN(AP57,$I57-SUM($L57:AP57)), MAX(AP57,$I57-SUM($L57:AP57)))","v":5.6683361525699247},{"$f":"IF($I57 >0, MIN(AQ57,$I57-SUM($L57:AQ57)), MAX(AQ57,$I57-SUM($L57:AQ57)))","v":5.6683361525699247}]
[null,null,null,null,"2006-03-31",null,"£m 12/13 prices",null,174.21733037885991,">",null,null,null,null,null,null,null,null,null,null,null,null,null,null,null,null,{"$f":"$I58/Z$37","v":8.7108665189429964},{"$f":"IF($I58 >0, MIN(AA58,$I58-SUM($L58:AA58)), MAX(AA58,$I58-SUM($L58:AA58)))","v":8.7108665189429964},{"$f":"IF($I58 >0, MIN(AB58,$I58-SUM($L58:AB58)), MAX(AB58,$I58-SUM($L58:AB58)))","v":8.7108665189429964},{"$f":"IF($I58 >0, MIN(AC58,$I58-SUM($L58:AC58)), MAX(AC58,$I58-SUM($L58:AC58)))","v":8.7108665189429964},{"$f":"IF($I58 >0, MIN(AD58,$I58-SUM($L58:AD58)), MAX(AD58,$I58-SUM($L58:AD58)))","v":8.7108665189429964},{"$f":"IF($I58 >0, MIN(AE58,$I58-SUM($L58:AE58)), MAX(AE58,$I58-SUM($L58:AE58)))","v":8.7108665189429964},{"$f":"IF($I58 >0, MIN(AF58,$I58-SUM($L58:AF58)), MAX(AF58,$I58-SUM($L58:AF58)))","v":8.7108665189429964},{"$f":"IF($I58 >0, MIN(AG58,$I58-SUM($L58:AG58)), MAX(AG58,$I58-SUM($L58:AG58)))","v":8.7108665189429964},{"$f":"IF($I58 >0, MIN(AH58,$I58-SUM($L58:AH58)), MAX(AH58,$I58-SUM($L58:AH58)))","v":8.7108665189429964},{"$f":"IF($I58 >0, MIN(AI58,$I58-SUM($L58:AI58)), MAX(AI58,$I58-SUM($L58:AI58)))","v":8.7108665189429964},{"$f":"IF($I58 >0, MIN(AJ58,$I58-SUM($L58:AJ58)), MAX(AJ58,$I58-SUM($L58:AJ58)))","v":8.7108665189429964},{"$f":"IF($I58 >0, MIN(AK58,$I58-SUM($L58:AK58)), MAX(AK58,$I58-SUM($L58:AK58)))","v":8.7108665189429964},{"$f":"IF($I58 >0, MIN(AL58,$I58-SUM($L58:AL58)), MAX(AL58,$I58-SUM($L58:AL58)))","v":8.7108665189429964},{"$f":"IF($I58 >0, MIN(AM58,$I58-SUM($L58:AM58)), MAX(AM58,$I58-SUM($L58:AM58)))","v":8.7108665189429964},{"$f":"IF($I58 >0, MIN(AN58,$I58-SUM($L58:AN58)), MAX(AN58,$I58-SUM($L58:AN58)))","v":8.7108665189429964},{"$f":"IF($I58 >0, MIN(AO58,$I58-SUM($L58:AO58)), MAX(AO58,$I58-SUM($L58:AO58)))","v":8.7108665189429964},{"$f":"IF($I58 >0, MIN(AP58,$I58-SUM($L58:AP58)), MAX(AP58,$I58-SUM($L58:AP58)))","v":8.7108665189429964},{"$f":"IF($I58 >0, MIN(AQ58,$I58-SUM($L58:AQ58)), MAX(AQ58,$I58-SUM($L58:AQ58)))","v":8.7108665189429964}]
[null,null,null,null,"2007-03-31",null,"£m 12/13 prices",null,165.13880270591514,">",null,null,null,null,null,null,null,null,null,null,null,null,null,null,null,null,null,{"$f":"$I59/AA$37","v":8.256940135295757},{"$f":"IF($I59 >0, MIN(AB59,$I59-SUM($L59:AB59)), MAX(AB59,$I59-SUM($L59:AB59)))","v":8.256940135295757},{"$f":"IF($I59 >0, MIN(AC59,$I59-SUM($L59:AC59)), MAX(AC59,$I59-SUM($L59:AC59)))","v":8.256940135295757},{"$f":"IF($I59 >0, MIN(AD59,$I59-SUM($L59:AD59)), MAX(AD59,$I59-SUM($L59:AD59)))","v":8.256940135295757},{"$f":"IF($I59 >0, MIN(AE59,$I59-SUM($L59:AE59)), MAX(AE59,$I59-SUM($L59:AE59)))","v":8.256940135295757},{"$f":"IF($I59 >0, MIN(AF59,$I59-SUM($L59:AF59)), MAX(AF59,$I59-SUM($L59:AF59)))","v":8.256940135295757},{"$f":"IF($I59 >0, MIN(AG59,$I59-SUM($L59:AG59)), MAX(AG59,$I59-SUM($L59:AG59)))","v":8.256940135295757},{"$f":"IF($I59 >0, MIN(AH59,$I59-SUM($L59:AH59)), MAX(AH59,$I59-SUM($L59:AH59)))","v":8.256940135295757},{"$f":"IF($I59 >0, MIN(AI59,$I59-SUM($L59:AI59)), MAX(AI59,$I59-SUM($L59:AI59)))","v":8.256940135295757},{"$f":"IF($I59 >0, MIN(AJ59,$I59-SUM($L59:AJ59)), MAX(AJ59,$I59-SUM($L59:AJ59)))","v":8.256940135295757},{"$f":"IF($I59 >0, MIN(AK59,$I59-SUM($L59:AK59)), MAX(AK59,$I59-SUM($L59:AK59)))","v":8.256940135295757},{"$f":"IF($I59 >0, MIN(AL59,$I59-SUM($L59:AL59)), MAX(AL59,$I59-SUM($L59:AL59)))","v":8.256940135295757},{"$f":"IF($I59 >0, MIN(AM59,$I59-SUM($L59:AM59)), MAX(AM59,$I59-SUM($L59:AM59)))","v":8.256940135295757},{"$f":"IF($I59 >0, MIN(AN59,$I59-SUM($L59:AN59)), MAX(AN59,$I59-SUM($L59:AN59)))","v":8.256940135295757},{"$f":"IF($I59 >0, MIN(AO59,$I59-SUM($L59:AO59)), MAX(AO59,$I59-SUM($L59:AO59)))","v":8.256940135295757},{"$f":"IF($I59 >0, MIN(AP59,$I59-SUM($L59:AP59)), MAX(AP59,$I59-SUM($L59:AP59)))","v":8.256940135295757},{"$f":"IF($I59 >0, MIN(AQ59,$I59-SUM($L59:AQ59)), MAX(AQ59,$I59-SUM($L59:AQ59)))","v":8.256940135295757}]
[null,null,null,null,"2008-03-31",null,"£m 12/13 prices",null,172.19424358687331,">",null,null,null,null,null,null,null,null,null,null,null,null,null,null,null,null,null,null,{"$f":"$I60/AB$37","v":8.6097121793436653},{"$f":"IF($I60 >0, MIN(AC60,$I60-SUM($L60:AC60)), MAX(AC60,$I60-SUM($L60:AC60)))","v":8.6097121793436653},{"$f":"IF($I60 >0, MIN(AD60,$I60-SUM($L60:AD60)), MAX(AD60,$I60-SUM($L60:AD60)))","v":8.6097121793436653},{"$f":"IF($I60 >0, MIN(AE60,$I60-SUM($L60:AE60)), MAX(AE60,$I60-SUM($L60:AE60)))","v":8.6097121793436653},{"$f":"IF($I60 >0, MIN(AF60,$I60-SUM($L60:AF60)), MAX(AF60,$I60-SUM($L60:AF60)))","v":8.6097121793436653},{"$f":"IF($I60 >0, MIN(AG60,$I60-SUM($L60:AG60)), MAX(AG60,$I60-SUM($L60:AG60)))","v":8.6097121793436653},{"$f":"IF($I60 >0, MIN(AH60,$I60-SUM($L60:AH60)), MAX(AH60,$I60-SUM($L60:AH60)))","v":8.6097121793436653},{"$f":"IF($I60 >0, MIN(AI60,$I60-SUM($L60:AI60)), MAX(AI60,$I60-SUM($L60:AI60)))","v":8.6097121793436653},{"$f":"IF($I60 >0, MIN(AJ60,$I60-SUM($L60:AJ60)), MAX(AJ60,$I60-SUM($L60:AJ60)))","v":8.6097121793436653},{"$f":"IF($I60 >0, MIN(AK60,$I60-SUM($L60:AK60)), MAX(AK60,$I60-SUM($L60:AK60)))","v":8.6097121793436653},{"$f":"IF($I60 >0, MIN(AL60,$I60-SUM($L60:AL60)), MAX(AL60,$I60-SUM($L60:AL60)))","v":8.6097121793436653},{"$f":"IF($I60 >0, MIN(AM60,$I60-SUM($L60:AM60)), MAX(AM60,$I60-SUM($L60:AM60)))","v":8.6097121793436653},{"$f":"IF($I60 >0, MIN(AN60,$I60-SUM($L60:AN60)), MAX(AN60,$I60-SUM($L60:AN60)))","v":8.6097121793436653},{"$f":"IF($I60 >0, MIN(AO60,$I60-SUM($L60:AO60)), MAX(AO60,$I60-SUM($L60:AO60)))","v":8.6097121793436653},{"$f":"IF($I60 >0, MIN(AP60,$I60-SUM($L60:AP60)), MAX(AP60,$I60-SUM($L60:AP60)))","v":8.6097121793436653},{"$f":"IF($I60 >0, MIN(AQ60,$I60-SUM($L60:AQ60)), MAX(AQ60,$I60-SUM($L60:AQ60)))","v":8.6097121793436653}]
[null,null,null,null,"2009-03-31",null,"£m 12/13 prices",null,188.87459455264997,">",null,null,null,null,null,null,null,null,null,null,null,null,null,null,null,null,null,null,null,{"$f":"$I61/AC$37","v":9.4437297276324976},{"$f":"IF($I61 >0, MIN(AD61,$I61-SUM($L61:AD61)), MAX(AD61,$I61-SUM($L61:AD61)))","v":9.4437297276324976},{"$f":"IF($I61 >0, MIN(AE61,$I61-SUM($L61:AE61)), MAX(AE61,$I61-SUM($L61:AE61)))","v":9.4437297276324976},{"$f":"IF($I61 >0, MIN(AF61,$I61-SUM($L61:AF61)), MAX(AF61,$I61-SUM($L61:AF61)))","v":9.4437297276324976},{"$f":"IF($I61 >0, MIN(AG61,$I61-SUM($L61:AG61)), MAX(AG61,$I61-SUM($L61:AG61)))","v":9.4437297276324976},{"$f":"IF($I61 >0, MIN(AH61,$I61-SUM($L61:AH61)), MAX(AH61,$I61-SUM($L61:AH61)))","v":9.4437297276324976},{"$f":"IF($I61 >0, MIN(AI61,$I61-SUM($L61:AI61)), MAX(AI61,$I61-SUM($L61:AI61)))","v":9.4437297276324976},{"$f":"IF($I61 >0, MIN(AJ61,$I61-SUM($L61:AJ61)), MAX(AJ61,$I61-SUM($L61:AJ61)))","v":9.4437297276324976},{"$f":"IF($I61 >0, MIN(AK61,$I61-SUM($L61:AK61)), MAX(AK61,$I61-SUM($L61:AK61)))","v":9.4437297276324976},{"$f":"IF($I61 >0, MIN(AL61,$I61-SUM($L61:AL61)), MAX(AL61,$I61-SUM($L61:AL61)))","v":9.4437297276324976},{"$f":"IF($I61 >0, MIN(AM61,$I61-SUM($L61:AM61)), MAX(AM61,$I61-SUM($L61:AM61)))","v":9.4437297276324976},{"$f":"IF($I61 >0, MIN(AN61,$I61-SUM($L61:AN61)), MAX(AN61,$I61-SUM($L61:AN61)))","v":9.4437297276324976},{"$f":"IF($I61 >0, MIN(AO61,$I61-SUM($L61:AO61)), MAX(AO61,$I61-SUM($L61:AO61)))","v":9.4437297276324976},{"$f":"IF($I61 >0, MIN(AP61,$I61-SUM($L61:AP61)), MAX(AP61,$I61-SUM($L61:AP61)))","v":9.4437297276324976},{"$f":"IF($I61 >0, MIN(AQ61,$I61-SUM($L61:AQ61)), MAX(AQ61,$I61-SUM($L61:AQ61)))","v":9.4437297276324976}]
[null,null,null,null,"2010-03-31",null,"£m 12/13 prices",null,179.75309706460266,">",null,null,null,null,null,null,null,null,null,null,null,null,null,null,null,null,null,null,null,null,{"$f":"$I62/AD$37","v":8.9876548532301328},{"$f":"IF($I62 >0, MIN(AE62,$I62-SUM($L62:AE62)), MAX(AE62,$I62-SUM($L62:AE62)))","v":8.9876548532301328},{"$f":"IF($I62 >0, MIN(AF62,$I62-SUM($L62:AF62)), MAX(AF62,$I62-SUM($L62:AF62)))","v":8.9876548532301328},{"$f":"IF($I62 >0, MIN(AG62,$I62-SUM($L62:AG62)), MAX(AG62,$I62-SUM($L62:AG62)))","v":8.9876548532301328},{"$f":"IF($I62 >0, MIN(AH62,$I62-SUM($L62:AH62)), MAX(AH62,$I62-SUM($L62:AH62)))","v":8.9876548532301328},{"$f":"IF($I62 >0, MIN(AI62,$I62-SUM($L62:AI62)), MAX(AI62,$I62-SUM($L62:AI62)))","v":8.9876548532301328},{"$f":"IF($I62 >0, MIN(AJ62,$I62-SUM($L62:AJ62)), MAX(AJ62,$I62-SUM($L62:AJ62)))","v":8.9876548532301328},{"$f":"IF($I62 >0, MIN(AK62,$I62-SUM($L62:AK62)), MAX(AK62,$I62-SUM($L62:AK62)))","v":8.9876548532301328},{"$f":"IF($I62 >0, MIN(AL62,$I62-SUM($L62:AL62)), MAX(AL62,$I62-SUM($L62:AL62)))","v":8.9876548532301328},{"$f":"IF($I62 >0, MIN(AM62,$I62-SUM($L62:AM62)), MAX(AM62,$I62-SUM($L62:AM62)))","v":8.9876548532301328},{"$f":"IF($I62 >0, MIN(AN62,$I62-SUM($L62:AN62)), MAX(AN62,$I62-SUM($L62:AN62)))","v":8.9876548532301328},{"$f":"IF($I62 >0, MIN(AO62,$I62-SUM($L62:AO62)), MAX(AO62,$I62-SUM($L62:AO62)))","v":8.9876548532301328},{"$f":"IF($I62 >0, MIN(AP62,$I62-SUM($L62:AP62)), MAX(AP62,$I62-SUM($L62:AP62)))","v":8.9876548532301328},{"$f":"IF($I62 >0, MIN(AQ62,$I62-SUM($L62:AQ62)), MAX(AQ62,$I62-SUM($L62:AQ62)))","v":8.9876548532301328}]
[null,null,null,null,"2011-03-31",null,"£m 12/13 prices",null,185.11275789301999,">",null,null,null,null,null,null,null,null,null,null,null,null,null,null,null,null,null,null,null,null,null,{"$f":"$I63/AE$37","v":9.2556378946509987},{"$f":"IF($I63 >0, MIN(AF63,$I63-SUM($L63:AF63)), MAX(AF63,$I63-SUM($L63:AF63)))","v":9.2556378946509987},{"$f":"IF($I63 >0, MIN(AG63,$I63-SUM($L63:AG63)), MAX(AG63,$I63-SUM($L63:AG63)))","v":9.2556378946509987},{"$f":"IF($I63 >0, MIN(AH63,$I63-SUM($L63:AH63)), MAX(AH63,$I63-SUM($L63:AH63)))","v":9.2556378946509987},{"$f":"IF($I63 >0, MIN(AI63,$I63-SUM($L63:AI63)), MAX(AI63,$I63-SUM($L63:AI63)))","v":9.2556378946509987},{"$f":"IF($I63 >0, MIN(AJ63,$I63-SUM($L63:AJ63)), MAX(AJ63,$I63-SUM($L63:AJ63)))","v":9.2556378946509987},{"$f":"IF($I63 >0, MIN(AK63,$I63-SUM($L63:AK63)), MAX(AK63,$I63-SUM($L63:AK63)))","v":9.2556378946509987},{"$f":"IF($I63 >0, MIN(AL63,$I63-SUM($L63:AL63)), MAX(AL63,$I63-SUM($L63:AL63)))","v":9.2556378946509987},{"$f":"IF($I63 >0, MIN(AM63,$I63-SUM($L63:AM63)), MAX(AM63,$I63-SUM($L63:AM63)))","v":9.2556378946509987},{"$f":"IF($I63 >0, MIN(AN63,$I63-SUM($L63:AN63)), MAX(AN63,$I63-SUM($L63:AN63)))","v":9.2556378946509987},{"$f":"IF($I63 >0, MIN(AO63,$I63-SUM($L63:AO63)), MAX(AO63,$I63-SUM($L63:AO63)))","v":9.2556378946509987},{"$f":"IF($I63 >0, MIN(AP63,$I63-SUM($L63:AP63)), MAX(AP63,$I63-SUM($L63:AP63)))","v":9.2556378946509987},{"$f":"IF($I63 >0, MIN(AQ63,$I63-SUM($L63:AQ63)), MAX(AQ63,$I63-SUM($L63:AQ63)))","v":9.2556378946509987}]
[null,null,null,null,"2012-03-31",null,"£m 12/13 prices",null,221.25861177530032,">",null,null,null,null,null,null,null,null,null,null,null,null,null,null,null,null,null,null,null,null,null,null,{"$f":"$I64/AF$37","v":11.062930588765017},{"$f":"IF($I64 >0, MIN(AG64,$I64-SUM($L64:AG64)), MAX(AG64,$I64-SUM($L64:AG64)))","v":11.062930588765017},{"$f":"IF($I64 >0, MIN(AH64,$I64-SUM($L64:AH64)), MAX(AH64,$I64-SUM($L64:AH64)))","v":11.062930588765017},{"$f":"IF($I64 >0, MIN(AI64,$I64-SUM($L64:AI64)), MAX(AI64,$I64-SUM($L64:AI64)))","v":11.062930588765017},{"$f":"IF($I64 >0, MIN(AJ64,$I64-SUM($L64:AJ64)), MAX(AJ64,$I64-SUM($L64:AJ64)))","v":11.062930588765017},{"$f":"IF($I64 >0, MIN(AK64,$I64-SUM($L64:AK64)), MAX(AK64,$I64-SUM($L64:AK64)))","v":11.062930588765017},{"$f":"IF($I64 >0, MIN(AL64,$I64-SUM($L64:AL64)), MAX(AL64,$I64-SUM($L64:AL64)))","v":11.062930588765017},{"$f":"IF($I64 >0, MIN(AM64,$I64-SUM($L64:AM64)), MAX(AM64,$I64-SUM($L64:AM64)))","v":11.062930588765017},{"$f":"IF($I64 >0, MIN(AN64,$I64-SUM($L64:AN64)), MAX(AN64,$I64-SUM($L64:AN64)))","v":11.062930588765017},{"$f":"IF($I64 >0, MIN(AO64,$I64-SUM($L64:AO64)), MAX(AO64,$I64-SUM($L64:AO64)))","v":11.062930588765017},{"$f":"IF($I64 >0, MIN(AP64,$I64-SUM($L64:AP64)), MAX(AP64,$I64-SUM($L64:AP64)))","v":11.062930588765017},{"$f":"IF($I64 >0, MIN(AQ64,$I64-SUM($L64:AQ64)), MAX(AQ64,$I64-SUM($L64:AQ64)))","v":11.062930588765017}]
[null,null,null,null,"2013-03-31",null,"£m 12/13 prices",null,201.9095218516949,null,null,null,null,null,null,null,null,null,null,null,null,null,null,null,null,null,null,null,null,null,null,null,null,{"$f":"$I65/AG$37","v":10.095476092584745},{"$f":"IF($I65 >0, MIN(AH65,$I65-SUM($L65:AH65)), MAX(AH65,$I65-SUM($L65:AH65)))","v":10.095476092584745},{"$f":"IF($I65 >0, MIN(AI65,$I65-SUM($L65:AI65)), MAX(AI65,$I65-SUM($L65:AI65)))","v":10.095476092584745},{"$f":"IF($I65 >0, MIN(AJ65,$I65-SUM($L65:AJ65)), MAX(AJ65,$I65-SUM($L65:AJ65)))","v":10.095476092584745},{"$f":"IF($I65 >0, MIN(AK65,$I65-SUM($L65:AK65)), MAX(AK65,$I65-SUM($L65:AK65)))","v":10.095476092584745},{"$f":"IF($I65 >0, MIN(AL65,$I65-SUM($L65:AL65)), MAX(AL65,$I65-SUM($L65:AL65)))","v":10.095476092584745},{"$f":"IF($I65 >0, MIN(AM65,$I65-SUM($L65:AM65)), MAX(AM65,$I65-SUM($L65:AM65)))","v":10.095476092584745},{"$f":"IF($I65 >0, MIN(AN65,$I65-SUM($L65:AN65)), MAX(AN65,$I65-SUM($L65:AN65)))","v":10.095476092584745},{"$f":"IF($I65 >0, MIN(AO65,$I65-SUM($L65:AO65)), MAX(AO65,$I65-SUM($L65:AO65)))","v":10.095476092584745},{"$f":"IF($I65 >0, MIN(AP65,$I65-SUM($L65:AP65)), MAX(AP65,$I65-SUM($L65:AP65)))","v":10.095476092584745},{"$f":"IF($I65 >0, MIN(AQ65,$I65-SUM($L65:AQ65)), MAX(AQ65,$I65-SUM($L65:AQ65)))","v":10.095476092584745}]
[null,null,null,null,"2014-03-31",null,"£m 12/13 prices",null,233.11146839106129,null,null,null,null,null,null,null,null,null,null,null,null,null,null,null,null,null,null,null,null,null,null,null,null,null,{"$f":"$I66/AH$37","v":11.655573419553065},{"$f":"IF($I66 >0, MIN(AI66,$I66-SUM($L66:AI66)), MAX(AI66,$I66-SUM($L66:AI66)))","v":11.655573419553065},{"$f":"IF($I66 >0, MIN(AJ66,$I66-SUM($L66:AJ66)), MAX(AJ66,$I66-SUM($L66:AJ66)))","v":11.655573419553065},{"$f":"IF($I66 >0, MIN(AK66,$I66-SUM($L66:AK66)), MAX(AK66,$I66-SUM($L66:AK66)))","v":11.655573419553065},{"$f":"IF($I66 >0, MIN(AL66,$I66-SUM($L66:AL66)), MAX(AL66,$I66-SUM($L66:AL66)))","v":11.655573419553065},{"$f":"IF($I66 >0, MIN(AM66,$I66-SUM($L66:AM66)), MAX(AM66,$I66-SUM($L66:AM66)))","v":11.655573419553065},{"$f":"IF($I66 >0, MIN(AN66,$I66-SUM($L66:AN66)), MAX(AN66,$I66-SUM($L66:AN66)))","v":11.655573419553065},{"$f":"IF($I66 >0, MIN(AO66,$I66-SUM($L66:AO66)), MAX(AO66,$I66-SUM($L66:AO66)))","v":11.655573419553065},{"$f":"IF($I66 >0, MIN(AP66,$I66-SUM($L66:AP66)), MAX(AP66,$I66-SUM($L66:AP66)))","v":11.655573419553065},{"$f":"IF($I66 >0, MIN(AQ66,$I66-SUM($L66:AQ66)), MAX(AQ66,$I66-SUM($L66:AQ66)))","v":11.655573419553065}]
[null,null,null,null,"2015-03-31",null,"£m 12/13 prices",null,221.39248025617775,null,null,null,null,null,null,null,null,null,null,null,null,null,null,null,null,null,null,null,null,null,null,null,null,null,null,{"$f":"$I67/AI$37","v":11.069624012808887},{"$f":"IF($I67 >0, MIN(AJ67,$I67-SUM($L67:AJ67)), MAX(AJ67,$I67-SUM($L67:AJ67)))","v":11.069624012808887},{"$f":"IF($I67 >0, MIN(AK67,$I67-SUM($L67:AK67)), MAX(AK67,$I67-SUM($L67:AK67)))","v":11.069624012808887},{"$f":"IF($I67 >0, MIN(AL67,$I67-SUM($L67:AL67)), MAX(AL67,$I67-SUM($L67:AL67)))","v":11.069624012808887},{"$f":"IF($I67 >0, MIN(AM67,$I67-SUM($L67:AM67)), MAX(AM67,$I67-SUM($L67:AM67)))","v":11.069624012808887},{"$f":"IF($I67 >0, MIN(AN67,$I67-SUM($L67:AN67)), MAX(AN67,$I67-SUM($L67:AN67)))","v":11.069624012808887},{"$f":"IF($I67 >0, MIN(AO67,$I67-SUM($L67:AO67)), MAX(AO67,$I67-SUM($L67:AO67)))","v":11.069624012808887},{"$f":"IF($I67 >0, MIN(AP67,$I67-SUM($L67:AP67)), MAX(AP67,$I67-SUM($L67:AP67)))","v":11.069624012808887},{"$f":"IF($I67 >0, MIN(AQ67,$I67-SUM($L67:AQ67)), MAX(AQ67,$I67-SUM($L67:AQ67)))","v":11.069624012808887}]
[null,null,null,null,"2016-03-31",null,"£m 12/13 prices",null,208.64001832372224,null,null,null,null,null,null,null,null,null,null,null,null,null,null,null,null,null,null,null,null,null,null,null,null,null,null,null,{"$f":"$I68/AJ$37","v":9.022271062647448},{"$f":"IF($I68 >0, MIN(AK68,$I68-SUM($L68:AK68)), MAX(AK68,$I68-SUM($L68:AK68)))","v":9.022271062647448},{"$f":"IF($I68 >0, MIN(AL68,$I68-SUM($L68:AL68)), MAX(AL68,$I68-SUM($L68:AL68)))","v":9.022271062647448},{"$f":"IF($I68 >0, MIN(AM68,$I68-SUM($L68:AM68)), MAX(AM68,$I68-SUM($L68:AM68)))","v":9.022271062647448},{"$f":"IF($I68 >0, MIN(AN68,$I68-SUM($L68:AN68)), MAX(AN68,$I68-SUM($L68:AN68)))","v":9.022271062647448},{"$f":"IF($I68 >0, MIN(AO68,$I68-SUM($L68:AO68)), MAX(AO68,$I68-SUM($L68:AO68)))","v":9.022271062647448},{"$f":"IF($I68 >0, MIN(AP68,$I68-SUM($L68:AP68)), MAX(AP68,$I68-SUM($L68:AP68)))","v":9.022271062647448},{"$f":"IF($I68 >0, MIN(AQ68,$I68-SUM($L68:AQ68)), MAX(AQ68,$I68-SUM($L68:AQ68)))","v":9.022271062647448}]
[null,null,null,null,"2017-03-31",null,"£m 12/13 prices",null,209.33131336751876,null,null,null,null,null,null,null,null,null,null,null,null,null,null,null,null,null,null,null,null,null,null,null,null,null,null,null,null,{"$f":"$I69/AK$37","v":7.9745262235245242},{"$f":"IF($I69 >0, MIN(AL69,$I69-SUM($L69:AL69)), MAX(AL69,$I69-SUM($L69:AL69)))","v":7.9745262235245242},{"$f":"IF($I69 >0, MIN(AM69,$I69-SUM($L69:AM69)), MAX(AM69,$I69-SUM($L69:AM69)))","v":7.9745262235245242},{"$f":"IF($I69 >0, MIN(AN69,$I69-SUM($L69:AN69)), MAX(AN69,$I69-SUM($L69:AN69)))","v":7.9745262235245242},{"$f":"IF($I69 >0, MIN(AO69,$I69-SUM($L69:AO69)), MAX(AO69,$I69-SUM($L69:AO69)))","v":7.9745262235245242},{"$f":"IF($I69 >0, MIN(AP69,$I69-SUM($L69:AP69)), MAX(AP69,$I69-SUM($L69:AP69)))","v":7.9745262235245242},{"$f":"IF($I69 >0, MIN(AQ69,$I69-SUM($L69:AQ69)), MAX(AQ69,$I69-SUM($L69:AQ69)))","v":7.9745262235245242}]
[null,null,null,null,"2018-03-31",null,"£m 12/13 prices",null,203.33521941504569,null,null,null,null,null,null,null,null,null,null,null,null,null,null,null,null,null,null,null,null,null,null,null,null,null,null,null,null,null,{"$f":"$I70/AL$37","v":6.9220500226398531},{"$f":"IF($I70 >0, MIN(AM70,$I70-SUM($L70:AM70)), MAX(AM70,$I70-SUM($L70:AM70)))","v":6.9220500226398531},{"$f":"IF($I70 >0, MIN(AN70,$I70-SUM($L70:AN70)), MAX(AN70,$I70-SUM($L70:AN70)))","v":6.9220500226398531},{"$f":"IF($I70 >0, MIN(AO70,$I70-SUM($L70:AO70)), MAX(AO70,$I70-SUM($L70:AO70)))","v":6.9220500226398531},{"$f":"IF($I70 >0, MIN(AP70,$I70-SUM($L70:AP70)), MAX(AP70,$I70-SUM($L70:AP70)))","v":6.9220500226398531},{"$f":"IF($I70 >0, MIN(AQ70,$I70-SUM($L70:AQ70)), MAX(AQ70,$I70-SUM($L70:AQ70)))","v":6.9220500226398531}]
[null,null,null,null,"2019-03-31",null,"£m 12/13 prices",null,206.49197456996353,null,null,null,null,null,null,null,null,null,null,null,null,null,null,null,null,null,null,null,null,null,null,null,null,null,null,null,null,null,null,{"$f":"$I71/AM$37","v":6.3535992175373392},{"$f":"IF($I71 >0, MIN(AN71,$I71-SUM($L71:AN71)), MAX(AN71,$I71-SUM($L71:AN71)))","v":6.3535992175373392},{"$f":"IF($I71 >0, MIN(AO71,$I71-SUM($L71:AO71)), MAX(AO71,$I71-SUM($L71:AO71)))","v":6.3535992175373392},{"$f":"IF($I71 >0, MIN(AP71,$I71-SUM($L71:AP71)), MAX(AP71,$I71-SUM($L71:AP71)))","v":6.3535992175373392},{"$f":"IF($I71 >0, MIN(AQ71,$I71-SUM($L71:AQ71)), MAX(AQ71,$I71-SUM($L71:AQ71)))","v":6.3535992175373392}]
[null,null,null,null,"2020-03-31",null,"£m 12/13 prices",null,212.76243146173931,null,null,null,null,null,null,null,null,null,null,null,null,null,null,null,null,null,null,null,null,null,null,null,null,null,null,null,null,null,null,null,{"$f":"$I72/AN$37","v":5.9722787778733846},{"$f":"IF($I72 >0, MIN(AO72,$I72-SUM($L72:AO72)), MAX(AO72,$I72-SUM($L72:AO72)))","v":5.9722787778733846},{"$f":"IF($I72 >0, MIN(AP72,$I72-SUM($L72:AP72)), MAX(AP72,$I72-SUM($L72:AP72)))","v":5.9722787778733846},{"$f":"IF($I72 >0, MIN(AQ72,$I72-SUM($L72:AQ72)), MAX(AQ72,$I72-SUM($L72:AQ72)))","v":5.9722787778733846}]
[null,null,null,null,"2021-03-31",null,"£m 12/13 prices",null,216.60837997824592,null,null,null,null,null,null,null,null,null,null,null,null,null,null,null,null,null,null,null,null,null,null,null,null,null,null,null,null,null,null,null,null,{"$f":"$I73/AO$37","v":5.589893676857959},{"$f":"IF($I73 >0, MIN(AP73,$I73-SUM($L73:AP73)), MAX(AP73,$I73-SUM($L73:AP73)))","v":5.589893676857959},{"$f":"IF($I73 >0, MIN(AQ73,$I73-SUM($L73:AQ73)), MAX(AQ73,$I73-SUM($L73:AQ73)))","v":5.589893676857959}]
[null,null,null,null,"2022-03-31",null,"£m 12/13 prices",null,214.67632715785209,null,null,null,null,null,null,null,null,null,null,null,null,null,null,null,null,null,null,null,null,null,null,null,null,null,null,null,null,null,null,null,null,null,{"$f":"$I74/AP$37","v":5.1265988575009453},{"$f":"IF($I74 >0, MIN(AQ74,$I74-SUM($L74:AQ74)), MAX(AQ74,$I74-SUM($L74:AQ74)))","v":5.1265988575009453}]
[null,null,null,null,"2023-03-31",null,"£m 12/13 prices",null,216.87486343189767]
[]
[null,null,"Non-accelerated post-vesting depreciation"]
[null,null,"Note: Non-accelerated depreciation calculations are used to establish the \"RAV differential\" accumulated as the difference between non-accelerated and accelerated depreciation before full depreciation of vesting assets."]
[]
[null,null,null,"Depreciation parameters"]
[]
[null,null,null,null,"Non-accelerated post-vesting asset life",null,"years",null,null,">",{"$f":"Input!K295","v":33.299999999999997},{"$f":"Input!L295","v":33.299999999999997},{"$f":"Input!M295","v":33.299999999999997},{"$f":"Input!N295","v":33.299999999999997},{"$f":"Input!O295","v":33.299999999999997},{"$f":"Input!P295","v":33.299999999999997},{"$f":"Input!Q295","v":33.299999999999997},{"$f":"Input!R295","v":33.299999999999997},{"$f":"Input!S295","v":33.299999999999997},{"$f":"Input!T295","v":33.299999999999997},{"$f":"Input!U295","v":33.299999999999997},{"$f":"Input!V295","v":33.299999999999997},{"$f":"Input!W295","v":33.299999999999997},{"$f":"Input!X295","v":33.299999999999997},{"$f":"Input!Y295","v":33.299999999999997},{"$f":"Input!Z295","v":33.299999999999997},{"$f":"Input!AA295","v":33.299999999999997},{"$f":"Input!AB295","v":33.299999999999997},{"$f":"Input!AC295","v":33.299999999999997},{"$f":"Input!AD295","v":33.299999999999997},{"$f":"Input!AE295","v":33.299999999999997},{"$f":"Input!AF295","v":33.299999999999997},{"$f":"Input!AG295","v":33.299999999999997},{"$f":"Input!AH295","v":33.299999999999997},{"$f":"Input!AI295","v":33.299999999999997},{"$f":"Input!AJ295","v":23.125},{"$f":"Input!AK295","v":26.25},{"$f":"Input!AL295","v":29.375},{"$f":"Input!AM295","v":32.5},{"$f":"Input!AN295","v":35.625},{"$f":"Input!AO295","v":38.75},{"$f":"Input!AP295","v":41.875},{"$f":"Input!AQ295","v":45}]
[null,null,null,null,"Non-accelerated post-vesting depreciation applied",null,"text",null,null,">",null,{"$f":"YEAR(L$7) < YEAR($I$28) +  IF($I$30=12,$I$29,$I$29+1)","v":true},true,true,true,true,true,true,true,true,true,true,true,true,true,{"$f":"YEAR(Z$7) < YEAR($I$28) +  IF($I$30=12,$I$29,$I$29+1)","v":true},{"$f":"YEAR(AA$7) < YEAR($I$28) +  IF($I$30=12,$I$29,$I$29+1)","v":false},false,false,false,false,false,false,false,false,false,false,false,false,false,false,false,false]
[]
[null,null,null,"Depreciation schedule"]
[]
[null,null,null,null,"Non-accelerated depreciation of additions from year ending",null,null,null,"Net additions"]
[null,null,null,null,"1991-03-31",null,"£m 12/13 prices",null,{"$f":"INDEX($K$18:$AQ$18,1,MATCH(E88,$K$7:$AQ$7,0))","v":29.427249829458987},">",null,{"$f":"$I88/K$82","v":0.88370119607984954},{"$f":"IF($I88 >0, MIN(L88,$I88-SUM($L88:L88)), MAX(L88,$I88-SUM($L88:L88)))","v":0.88370119607984954},{"$f":"IF($I88 >0, MIN(M88,$I88-SUM($L88:M88)), MAX(M88,$I88-SUM($L88:M88)))","v":0.88370119607984954},{"$f":"IF($I88 >0, MIN(N88,$I88-SUM($L88:N88)), MAX(N88,$I88-SUM($L88:N88)))","v":0.88370119607984954},{"$f":"IF($I88 >0, MIN(O88,$I88-SUM($L88:O88)), MAX(O88,$I88-SUM($L88:O88)))","v":0.88370119607984954},{"$f":"IF($I88 >0, MIN(P88,$I88-SUM($L88:P88)), MAX(P88,$I88-SUM($L88:P88)))","v":0.88370119607984954},{"$f":"IF($I88 >0, MIN(Q88,$I88-SUM($L88:Q88)), MAX(Q88,$I88-SUM($L88:Q88)))","v":0.88370119607984954},{"$f":"IF($I88 >0, MIN(R88,$I88-SUM($L88:R88)), MAX(R88,$I88-SUM($L88:R88)))","v":0.88370119607984954},{"$f":"IF($I88 >0, MIN(S88,$I88-SUM($L88:S88)), MAX(S88,$I88-SUM($L88:S88)))","v":0.88370119607984954},{"$f":"IF($I88 >0, MIN(T88,$I88-SUM($L88:T88)), MAX(T88,$I88-SUM($L88:T88)))","v":0.88370119607984954},{"$f":"IF($I88 >0, MIN(U88,$I88-SUM($L88:U88)), MAX(U88,$I88-SUM($L88:U88)))","v":0.88370119607984954},{"$f":"IF($I88 >0, MIN(V88,$I88-SUM($L88:V88)), MAX(V88,$I88-SUM($L88:V88)))","v":0.88370119607984954},{"$f":"IF($I88 >0, MIN(W88,$I88-SUM($L88:W88)), MAX(W88,$I88-SUM($L88:W88)))","v":0.88370119607984954},{"$f":"IF($I88 >0, MIN(X88,$I88-SUM($L88:X88)), MAX(X88,$I88-SUM($L88:X88)))","v":0.88370119607984954},{"$f":"IF($I88 >0, MIN(Y88,$I88-SUM($L88:Y88)), MAX(Y88,$I88-SUM($L88:Y88)))","v":0.88370119607984954},{"$f":"IF($I88 >0, MIN(Z88,$I88-SUM($L88:Z88)), MAX(Z88,$I88-SUM($L88:Z88)))","v":0.88370119607984954},{"$f":"IF($I88 >0, MIN(AA88,$I88-SUM($L88:AA88)), MAX(AA88,$I88-SUM($L88:AA88)))","v":0.88370119607984954},{"$f":"IF($I88 >0, MIN(AB88,$I88-SUM($L88:AB88)), MAX(AB88,$I88-SUM($L88:AB88)))","v":0.88370119607984954},{"$f":"IF($I88 >0, MIN(AC88,$I88-SUM($L88:AC88)), MAX(AC88,$I88-SUM($L88:AC88)))","v":0.88370119607984954},{"$f":"IF($I88 >0, MIN(AD88,$I88-SUM($L88:AD88)), MAX(AD88,$I88-SUM($L88:AD88)))","v":0.88370119607984954},{"$f":"IF($I88 >0, MIN(AE88,$I88-SUM($L88:AE88)), MAX(AE88,$I88-SUM($L88:AE88)))","v":0.88370119607984954},{"$f":"IF($I88 >0, MIN(AF88,$I88-SUM($L88:AF88)), MAX(AF88,$I88-SUM($L88:AF88)))","v":0.88370119607984954},{"$f":"IF($I88 >0, MIN(AG88,$I88-SUM($L88:AG88)), MAX(AG88,$I88-SUM($L88:AG88)))","v":0.88370119607984954},{"$f":"IF($I88 >0, MIN(AH88,$I88-SUM($L88:AH88)), MAX(AH88,$I88-SUM($L88:AH88)))","v":0.88370119607984954},{"$f":"IF($I88 >0, MIN(AI88,$I88-SUM($L88:AI88)), MAX(AI88,$I88-SUM($L88:AI88)))","v":0.88370119607984954},{"$f":"IF($I88 >0, MIN(AJ88,$I88-SUM($L88:AJ88)), MAX(AJ88,$I88-SUM($L88:AJ88)))","v":0.88370119607984954},{"$f":"IF($I88 >0, MIN(AK88,$I88-SUM($L88:AK88)), MAX(AK88,$I88-SUM($L88:AK88)))","v":0.88370119607984954},{"$f":"IF($I88 >0, MIN(AL88,$I88-SUM($L88:AL88)), MAX(AL88,$I88-SUM($L88:AL88)))","v":0.88370119607984954},{"$f":"IF($I88 >0, MIN(AM88,$I88-SUM($L88:AM88)), MAX(AM88,$I88-SUM($L88:AM88)))","v":0.88370119607984954},{"$f":"IF($I88 >0, MIN(AN88,$I88-SUM($L88:AN88)), MAX(AN88,$I88-SUM($L88:AN88)))","v":0.88370119607984954},{"$f":"IF($I88 >0, MIN(AO88,$I88-SUM($L88:AO88)), MAX(AO88,$I88-SUM($L88:AO88)))","v":0.88370119607984954},{"$f":"IF($I88 >0, MIN(AP88,$I88-SUM($L88:AP88)), MAX(AP88,$I88-SUM($L88:AP88)))","v":0.88370119607984954}]
[null,null,null,null,"1992-03-31",null,"£m 12/13 prices",null,{"$f":"INDEX($K$18:$AQ$18,1,MATCH(E89,$K$7:$AQ$7,0))","v":103.53461720102848},">",null,null,{"$f":"$I89/L$82","v":3.1091476636945492},{"$f":"IF($I89 >0, MIN(M89,$I89-SUM($L89:M89)), MAX(M89,$I89-SUM($L89:M89)))","v":3.1091476636945492},{"$f":"IF($I89 >0, MIN(N89,$I89-SUM($L89:N89)), MAX(N89,$I89-SUM($L89:N89)))","v":3.1091476636945492},{"$f":"IF($I89 >0, MIN(O89,$I89-SUM($L89:O89)), MAX(O89,$I89-SUM($L89:O89)))","v":3.1091476636945492},{"$f":"IF($I89 >0, MIN(P89,$I89-SUM($L89:P89)), MAX(P89,$I89-SUM($L89:P89)))","v":3.1091476636945492},{"$f":"IF($I89 >0, MIN(Q89,$I89-SUM($L89:Q89)), MAX(Q89,$I89-SUM($L89:Q89)))","v":3.1091476636945492},{"$f":"IF($I89 >0, MIN(R89,$I89-SUM($L89:R89)), MAX(R89,$I89-SUM($L89:R89)))","v":3.1091476636945492},{"$f":"IF($I89 >0, MIN(S89,$I89-SUM($L89:S89)), MAX(S89,$I89-SUM($L89:S89)))","v":3.1091476636945492},{"$f":"IF($I89 >0, MIN(T89,$I89-SUM($L89:T89)), MAX(T89,$I89-SUM($L89:T89)))","v":3.1091476636945492},{"$f":"IF($I89 >0, MIN(U89,$I89-SUM($L89:U89)), MAX(U89,$I89-SUM($L89:U89)))","v":3.1091476636945492},{"$f":"IF($I89 >0, MIN(V89,$I89-SUM($L89:V89)), MAX(V89,$I89-SUM($L89:V89)))","v":3.1091476636945492},{"$f":"IF($I89 >0, MIN(W89,$I89-SUM($L89:W89)), MAX(W89,$I89-SUM($L89:W89)))","v":3.1091476636945492},{"$f":"IF($I89 >0, MIN(X89,$I89-SUM($L89:X89)), MAX(X89,$I89-SUM($L89:X89)))","v":3.1091476636945492},{"$f":"IF($I89 >0, MIN(Y89,$I89-SUM($L89:Y89)), MAX(Y89,$I89-SUM($L89:Y89)))","v":3.1091476636945492},{"$f":"IF($I89 >0, MIN(Z89,$I89-SUM($L89:Z89)), MAX(Z89,$I89-SUM($L89:Z89)))","v":3.1091476636945492},{"$f":"IF($I89 >0, MIN(AA89,$I89-SUM($L89:AA89)), MAX(AA89,$I89-SUM($L89:AA89)))","v":3.1091476636945492},{"$f":"IF($I89 >0, MIN(AB89,$I89-SUM($L89:AB89)), MAX(AB89,$I89-SUM($L89:AB89)))","v":3.1091476636945492},{"$f":"IF($I89 >0, MIN(AC89,$I89-SUM($L89:AC89)), MAX(AC89,$I89-SUM($L89:AC89)))","v":3.1091476636945492},{"$f":"IF($I89 >0, MIN(AD89,$I89-SUM($L89:AD89)), MAX(AD89,$I89-SUM($L89:AD89)))","v":3.1091476636945492},{"$f":"IF($I89 >0, MIN(AE89,$I89-SUM($L89:AE89)), MAX(AE89,$I89-SUM($L89:AE89)))","v":3.1091476636945492},{"$f":"IF($I89 >0, MIN(AF89,$I89-SUM($L89:AF89)), MAX(AF89,$I89-SUM($L89:AF89)))","v":3.1091476636945492},{"$f":"IF($I89 >0, MIN(AG89,$I89-SUM($L89:AG89)), MAX(AG89,$I89-SUM($L89:AG89)))","v":3.1091476636945492},{"$f":"IF($I89 >0, MIN(AH89,$I89-SUM($L89:AH89)), MAX(AH89,$I89-SUM($L89:AH89)))","v":3.1091476636945492},{"$f":"IF($I89 >0, MIN(AI89,$I89-SUM($L89:AI89)), MAX(AI89,$I89-SUM($L89:AI89)))","v":3.1091476636945492},{"$f":"IF($I89 >0, MIN(AJ89,$I89-SUM($L89:AJ89)), MAX(AJ89,$I89-SUM($L89:AJ89)))","v":3.1091476636945492},{"$f":"IF($I89 >0, MIN(AK89,$I89-SUM($L89:AK89)), MAX(AK89,$I89-SUM($L89:AK89)))","v":3.1091476636945492},{"$f":"IF($I89 >0, MIN(AL89,$I89-SUM($L89:AL89)), MAX(AL89,$I89-SUM($L89:AL89)))","v":3.1091476636945492},{"$f":"IF($I89 >0, MIN(AM89,$I89-SUM($L89:AM89)), MAX(AM89,$I89-SUM($L89:AM89)))","v":3.1091476636945492},{"$f":"IF($I89 >0, MIN(AN89,$I89-SUM($L89:AN89)), MAX(AN89,$I89-SUM($L89:AN89)))","v":3.1091476636945492},{"$f":"IF($I89 >0, MIN(AO89,$I89-SUM($L89:AO89)), MAX(AO89,$I89-SUM($L89:AO89)))","v":3.1091476636945492},{"$f":"IF($I89 >0, MIN(AP89,$I89-SUM($L89:AP89)), MAX(AP89,$I89-SUM($L89:AP89)))","v":3.1091476636945492},{"$f":"IF($I89 >0, MIN(AQ89,$I89-SUM($L89:AQ89)), MAX(AQ89,$I89-SUM($L89:AQ89)))","v":3.1091476636945492}]
[null,null,null,null,"1993-03-31",null,"£m 12/13 prices",null,104.15089468436794,">",null,null,null,{"$f":"$I90/M$82","v":3.1276544950260647},{"$f":"IF($I90 >0, MIN(N90,$I90-SUM($L90:N90)), MAX(N90,$I90-SUM($L90:N90)))","v":3.1276544950260647},{"$f":"IF($I90 >0, MIN(O90,$I90-SUM($L90:O90)), MAX(O90,$I90-SUM($L90:O90)))","v":3.1276544950260647},{"$f":"IF($I90 >0, MIN(P90,$I90-SUM($L90:P90)), MAX(P90,$I90-SUM($L90:P90)))","v":3.1276544950260647},{"$f":"IF($I90 >0, MIN(Q90,$I90-SUM($L90:Q90)), MAX(Q90,$I90-SUM($L90:Q90)))","v":3.1276544950260647},{"$f":"IF($I90 >0, MIN(R90,$I90-SUM($L90:R90)), MAX(R90,$I90-SUM($L90:R90)))","v":3.1276544950260647},{"$f":"IF($I90 >0, MIN(S90,$I90-SUM($L90:S90)), MAX(S90,$I90-SUM($L90:S90)))","v":3.1276544950260647},{"$f":"IF($I90 >0, MIN(T90,$I90-SUM($L90:T90)), MAX(T90,$I90-SUM($L90:T90)))","v":3.1276544950260647},{"$f":"IF($I90 >0, MIN(U90,$I90-SUM($L90:U90)), MAX(U90,$I90-SUM($L90:U90)))","v":3.1276544950260647},{"$f":"IF($I90 >0, MIN(V90,$I90-SUM($L90:V90)), MAX(V90,$I90-SUM($L90:V90)))","v":3.1276544950260647},{"$f":"IF($I90 >0, MIN(W90,$I90-SUM($L90:W90)), MAX(W90,$I90-SUM($L90:W90)))","v":3.1276544950260647},{"$f":"IF($I90 >0, MIN(X90,$I90-SUM($L90:X90)), MAX(X90,$I90-SUM($L90:X90)))","v":3.1276544950260647},{"$f":"IF($I90 >0, MIN(Y90,$I90-SUM($L90:Y90)), MAX(Y90,$I90-SUM($L90:Y90)))","v":3.1276544950260647},{"$f":"IF($I90 >0, MIN(Z90,$I90-SUM($L90:Z90)), MAX(Z90,$I90-SUM($L90:Z90)))","v":3.1276544950260647},{"$f":"IF($I90 >0, MIN(AA90,$I90-SUM($L90:AA90)), MAX(AA90,$I90-SUM($L90:AA90)))","v":3.1276544950260647},{"$f":"IF($I90 >0, MIN(AB90,$I90-SUM($L90:AB90)), MAX(AB90,$I90-SUM($L90:AB90)))","v":3.1276544950260647},{"$f":"IF($I90 >0, MIN(AC90,$I90-SUM($L90:AC90)), MAX(AC90,$I90-SUM($L90:AC90)))","v":3.1276544950260647},{"$f":"IF($I90 >0, MIN(AD90,$I90-SUM($L90:AD90)), MAX(AD90,$I90-SUM($L90:AD90)))","v":3.1276544950260647},{"$f":"IF($I90 >0, MIN(AE90,$I90-SUM($L90:AE90)), MAX(AE90,$I90-SUM($L90:AE90)))","v":3.1276544950260647},{"$f":"IF($I90 >0, MIN(AF90,$I90-SUM($L90:AF90)), MAX(AF90,$I90-SUM($L90:AF90)))","v":3.1276544950260647},{"$f":"IF($I90 >0, MIN(AG90,$I90-SUM($L90:AG90)), MAX(AG90,$I90-SUM($L90:AG90)))","v":3.1276544950260647},{"$f":"IF($I90 >0, MIN(AH90,$I90-SUM($L90:AH90)), MAX(AH90,$I90-SUM($L90:AH90)))","v":3.1276544950260647},{"$f":"IF($I90 >0, MIN(AI90,$I90-SUM($L90:AI90)), MAX(AI90,$I90-SUM($L90:AI90)))","v":3.1276544950260647},{"$f":"IF($I90 >0, MIN(AJ90,$I90-SUM($L90:AJ90)), MAX(AJ90,$I90-SUM($L90:AJ90)))","v":3.1276544950260647},{"$f":"IF($I90 >0, MIN(AK90,$I90-SUM($L90:AK90)), MAX(AK90,$I90-SUM($L90:AK90)))","v":3.1276544950260647},{"$f":"IF($I90 >0, MIN(AL90,$I90-SUM($L90:AL90)), MAX(AL90,$I90-SUM($L90:AL90)))","v":3.1276544950260647},{"$f":"IF($I90 >0, MIN(AM90,$I90-SUM($L90:AM90)), MAX(AM90,$I90-SUM($L90:AM90)))","v":3.1276544950260647},{"$f":"IF($I90 >0, MIN(AN90,$I90-SUM($L90:AN90)), MAX(AN90,$I90-SUM($L90:AN90)))","v":3.1276544950260647},{"$f":"IF($I90 >0, MIN(AO90,$I90-SUM($L90:AO90)), MAX(AO90,$I90-SUM($L90:AO90)))","v":3.1276544950260647},{"$f":"IF($I90 >0, MIN(AP90,$I90-SUM($L90:AP90)), MAX(AP90,$I90-SUM($L90:AP90)))","v":3.1276544950260647},{"$f":"IF($I90 >0, MIN(AQ90,$I90-SUM($L90:AQ90)), MAX(AQ90,$I90-SUM($L90:AQ90)))","v":3.1276544950260647}]
[null,null,null,null,"1994-03-31",null,"£m 12/13 prices",null,106.92414335939549,">",null,null,null,null,{"$f":"$I91/N$82","v":3.2109352360178827},{"$f":"IF($I91 >0, MIN(O91,$I91-SUM($L91:O91)), MAX(O91,$I91-SUM($L91:O91)))","v":3.2109352360178827},{"$f":"IF($I91 >0, MIN(P91,$I91-SUM($L91:P91)), MAX(P91,$I91-SUM($L91:P91)))","v":3.2109352360178827},{"$f":"IF($I91 >0, MIN(Q91,$I91-SUM($L91:Q91)), MAX(Q91,$I91-SUM($L91:Q91)))","v":3.2109352360178827},{"$f":"IF($I91 >0, MIN(R91,$I91-SUM($L91:R91)), MAX(R91,$I91-SUM($L91:R91)))","v":3.2109352360178827},{"$f":"IF($I91 >0, MIN(S91,$I91-SUM($L91:S91)), MAX(S91,$I91-SUM($L91:S91)))","v":3.2109352360178827},{"$f":"IF($I91 >0, MIN(T91,$I91-SUM($L91:T91)), MAX(T91,$I91-SUM($L91:T91)))","v":3.2109352360178827},{"$f":"IF($I91 >0, MIN(U91,$I91-SUM($L91:U91)), MAX(U91,$I91-SUM($L91:U91)))","v":3.2109352360178827},{"$f":"IF($I91 >0, MIN(V91,$I91-SUM($L91:V91)), MAX(V91,$I91-SUM($L91:V91)))","v":3.2109352360178827},{"$f":"IF($I91 >0, MIN(W91,$I91-SUM($L91:W91)), MAX(W91,$I91-SUM($L91:W91)))","v":3.2109352360178827},{"$f":"IF($I91 >0, MIN(X91,$I91-SUM($L91:X91)), MAX(X91,$I91-SUM($L91:X91)))","v":3.2109352360178827},{"$f":"IF($I91 >0, MIN(Y91,$I91-SUM($L91:Y91)), MAX(Y91,$I91-SUM($L91:Y91)))","v":3.2109352360178827},{"$f":"IF($I91 >0, MIN(Z91,$I91-SUM($L91:Z91)), MAX(Z91,$I91-SUM($L91:Z91)))","v":3.2109352360178827},{"$f":"IF($I91 >0, MIN(AA91,$I91-SUM($L91:AA91)), MAX(AA91,$I91-SUM($L91:AA91)))","v":3.2109352360178827},{"$f":"IF($I91 >0, MIN(AB91,$I91-SUM($L91:AB91)), MAX(AB91,$I91-SUM($L91:AB91)))","v":3.2109352360178827},{"$f":"IF($I91 >0, MIN(AC91,$I91-SUM($L91:AC91)), MAX(AC91,$I91-SUM($L91:AC91)))","v":3.2109352360178827},{"$f":"IF($I91 >0, MIN(AD91,$I91-SUM($L91:AD91)), MAX(AD91,$I91-SUM($L91:AD91)))","v":3.2109352360178827},{"$f":"IF($I91 >0, MIN(AE91,$I91-SUM($L91:AE91)), MAX(AE91,$I91-SUM($L91:AE91)))","v":3.2109352360178827},{"$f":"IF($I91 >0, MIN(AF91,$I91-SUM($L91:AF91)), MAX(AF91,$I91-SUM($L91:AF91)))","v":3.2109352360178827},{"$f":"IF($I91 >0, MIN(AG91,$I91-SUM($L91:AG91)), MAX(AG91,$I91-SUM($L91:AG91)))","v":3.2109352360178827},{"$f":"IF($I91 >0, MIN(AH91,$I91-SUM($L91:AH91)), MAX(AH91,$I91-SUM($L91:AH91)))","v":3.2109352360178827},{"$f":"IF($I91 >0, MIN(AI91,$I91-SUM($L91:AI91)), MAX(AI91,$I91-SUM($L91:AI91)))","v":3.2109352360178827},{"$f":"IF($I91 >0, MIN(AJ91,$I91-SUM($L91:AJ91)), MAX(AJ91,$I91-SUM($L91:AJ91)))","v":3.2109352360178827},{"$f":"IF($I91 >0, MIN(AK91,$I91-SUM($L91:AK91)), MAX(AK91,$I91-SUM($L91:AK91)))","v":3.2109352360178827},{"$f":"IF($I91 >0, MIN(AL91,$I91-SUM($L91:AL91)), MAX(AL91,$I91-SUM($L91:AL91)))","v":3.2109352360178827},{"$f":"IF($I91 >0, MIN(AM91,$I91-SUM($L91:AM91)), MAX(AM91,$I91-SUM($L91:AM91)))","v":3.2109352360178827},{"$f":"IF($I91 >0, MIN(AN91,$I91-SUM($L91:AN91)), MAX(AN91,$I91-SUM($L91:AN91)))","v":3.2109352360178827},{"$f":"IF($I91 >0, MIN(AO91,$I91-SUM($L91:AO91)), MAX(AO91,$I91-SUM($L91:AO91)))","v":3.2109352360178827},{"$f":"IF($I91 >0, MIN(AP91,$I91-SUM($L91:AP91)), MAX(AP91,$I91-SUM($L91:AP91)))","v":3.2109352360178827},{"$f":"IF($I91 >0, MIN(AQ91,$I91-SUM($L91:AQ91)), MAX(AQ91,$I91-SUM($L91:AQ91)))","v":3.2109352360178827}]
[null,null,null,null,"1995-03-31",null,"£m 12/13 prices",null,121.09852547620295,">",null,null,null,null,null,{"$f":"$I92/O$82","v":3.6365923566427316},{"$f":"IF($I92 >0, MIN(P92,$I92-SUM($L92:P92)), MAX(P92,$I92-SUM($L92:P92)))","v":3.6365923566427316},{"$f":"IF($I92 >0, MIN(Q92,$I92-SUM($L92:Q92)), MAX(Q92,$I92-SUM($L92:Q92)))","v":3.6365923566427316},{"$f":"IF($I92 >0, MIN(R92,$I92-SUM($L92:R92)), MAX(R92,$I92-SUM($L92:R92)))","v":3.6365923566427316},{"$f":"IF($I92 >0, MIN(S92,$I92-SUM($L92:S92)), MAX(S92,$I92-SUM($L92:S92)))","v":3.6365923566427316},{"$f":"IF($I92 >0, MIN(T92,$I92-SUM($L92:T92)), MAX(T92,$I92-SUM($L92:T92)))","v":3.6365923566427316},{"$f":"IF($I92 >0, MIN(U92,$I92-SUM($L92:U92)), MAX(U92,$I92-SUM($L92:U92)))","v":3.6365923566427316},{"$f":"IF($I92 >0, MIN(V92,$I92-SUM($L92:V92)), MAX(V92,$I92-SUM($L92:V92)))","v":3.6365923566427316},{"$f":"IF($I92 >0, MIN(W92,$I92-SUM($L92:W92)), MAX(W92,$I92-SUM($L92:W92)))","v":3.6365923566427316},{"$f":"IF($I92 >0, MIN(X92,$I92-SUM($L92:X92)), MAX(X92,$I92-SUM($L92:X92)))","v":3.6365923566427316},{"$f":"IF($I92 >0, MIN(Y92,$I92-SUM($L92:Y92)), MAX(Y92,$I92-SUM($L92:Y92)))","v":3.6365923566427316},{"$f":"IF($I92 >0, MIN(Z92,$I92-SUM($L92:Z92)), MAX(Z92,$I92-SUM($L92:Z92)))","v":3.6365923566427316},{"$f":"IF($I92 >0, MIN(AA92,$I92-SUM($L92:AA92)), MAX(AA92,$I92-SUM($L92:AA92)))","v":3.6365923566427316},{"$f":"IF($I92 >0, MIN(AB92,$I92-SUM($L92:AB92)), MAX(AB92,$I92-SUM($L92:AB92)))","v":3.6365923566427316},{"$f":"IF($I92 >0, MIN(AC92,$I92-SUM($L92:AC92)), MAX(AC92,$I92-SUM($L92:AC92)))","v":3.6365923566427316},{"$f":"IF($I92 >0, MIN(AD92,$I92-SUM($L92:AD92)), MAX(AD92,$I92-SUM($L92:AD92)))","v":3.6365923566427316},{"$f":"IF($I92 >0, MIN(AE92,$I92-SUM($L92:AE92)), MAX(AE92,$I92-SUM($L92:AE92)))","v":3.6365923566427316},{"$f":"IF($I92 >0, MIN(AF92,$I92-SUM($L92:AF92)), MAX(AF92,$I92-SUM($L92:AF92)))","v":3.6365923566427316},{"$f":"IF($I92 >0, MIN(AG92,$I92-SUM($L92:AG92)), MAX(AG92,$I92-SUM($L92:AG92)))","v":3.6365923566427316},{"$f":"IF($I92 >0, MIN(AH92,$I92-SUM($L92:AH92)), MAX(AH92,$I92-SUM($L92:AH92)))","v":3.6365923566427316},{"$f":"IF($I92 >0, MIN(AI92,$I92-SUM($L92:AI92)), MAX(AI92,$I92-SUM($L92:AI92)))","v":3.6365923566427316},{"$f":"IF($I92 >0, MIN(AJ92,$I92-SUM($L92:AJ92)), MAX(AJ92,$I92-SUM($L92:AJ92)))","v":3.6365923566427316},{"$f":"IF($I92 >0, MIN(AK92,$I92-SUM($L92:AK92)), MAX(AK92,$I92-SUM($L92:AK92)))","v":3.6365923566427316},{"$f":"IF($I92 >0, MIN(AL92,$I92-SUM($L92:AL92)), MAX(AL92,$I92-SUM($L92:AL92)))","v":3.6365923566427316},{"$f":"IF($I92 >0, MIN(AM92,$I92-SUM($L92:AM92)), MAX(AM92,$I92-SUM($L92:AM92)))","v":3.6365923566427316},{"$f":"IF($I92 >0, MIN(AN92,$I92-SUM($L92:AN92)), MAX(AN92,$I92-SUM($L92:AN92)))","v":3.6365923566427316},{"$f":"IF($I92 >0, MIN(AO92,$I92-SUM($L92:AO92)), MAX(AO92,$I92-SUM($L92:AO92)))","v":3.6365923566427316},{"$f":"IF($I92 >0, MIN(AP92,$I92-SUM($L92:AP92)), MAX(AP92,$I92-SUM($L92:AP92)))","v":3.6365923566427316},{"$f":"IF($I92 >0, MIN(AQ92,$I92-SUM($L92:AQ92)), MAX(AQ92,$I92-SUM($L92:AQ92)))","v":3.6365923566427316}]
[null,null,null,null,"1996-03-31",null,"£m 12/13 prices",null,107.54042084273492,">",null,null,null,null,null,null,{"$f":"$I93/P$82","v":3.2294420673493973},{"$f":"IF($I93 >0, MIN(Q93,$I93-SUM($L93:Q93)), MAX(Q93,$I93-SUM($L93:Q93)))","v":3.2294420673493973},{"$f":"IF($I93 >0, MIN(R93,$I93-SUM($L93:R93)), MAX(R93,$I93-SUM($L93:R93)))","v":3.2294420673493973},{"$f":"IF($I93 >0, MIN(S93,$I93-SUM($L93:S93)), MAX(S93,$I93-SUM($L93:S93)))","v":3.2294420673493973},{"$f":"IF($I93 >0, MIN(T93,$I93-SUM($L93:T93)), MAX(T93,$I93-SUM($L93:T93)))","v":3.2294420673493973},{"$f":"IF($I93 >0, MIN(U93,$I93-SUM($L93:U93)), MAX(U93,$I93-SUM($L93:U93)))","v":3.2294420673493973},{"$f":"IF($I93 >0, MIN(V93,$I93-SUM($L93:V93)), MAX(V93,$I93-SUM($L93:V93)))","v":3.2294420673493973},{"$f":"IF($I93 >0, MIN(W93,$I93-SUM($L93:W93)), MAX(W93,$I93-SUM($L93:W93)))","v":3.2294420673493973},{"$f":"IF($I93 >0, MIN(X93,$I93-SUM($L93:X93)), MAX(X93,$I93-SUM($L93:X93)))","v":3.2294420673493973},{"$f":"IF($I93 >0, MIN(Y93,$I93-SUM($L93:Y93)), MAX(Y93,$I93-SUM($L93:Y93)))","v":3.2294420673493973},{"$f":"IF($I93 >0, MIN(Z93,$I93-SUM($L93:Z93)), MAX(Z93,$I93-SUM($L93:Z93)))","v":3.2294420673493973},{"$f":"IF($I93 >0, MIN(AA93,$I93-SUM($L93:AA93)), MAX(AA93,$I93-SUM($L93:AA93)))","v":3.2294420673493973},{"$f":"IF($I93 >0, MIN(AB93,$I93-SUM($L93:AB93)), MAX(AB93,$I93-SUM($L93:AB93)))","v":3.2294420673493973},{"$f":"IF($I93 >0, MIN(AC93,$I93-SUM($L93:AC93)), MAX(AC93,$I93-SUM($L93:AC93)))","v":3.2294420673493973},{"$f":"IF($I93 >0, MIN(AD93,$I93-SUM($L93:AD93)), MAX(AD93,$I93-SUM($L93:AD93)))","v":3.2294420673493973},{"$f":"IF($I93 >0, MIN(AE93,$I93-SUM($L93:AE93)), MAX(AE93,$I93-SUM($L93:AE93)))","v":3.2294420673493973},{"$f":"IF($I93 >0, MIN(AF93,$I93-SUM($L93:AF93)), MAX(AF93,$I93-SUM($L93:AF93)))","v":3.2294420673493973},{"$f":"IF($I93 >0, MIN(AG93,$I93-SUM($L93:AG93)), MAX(AG93,$I93-SUM($L93:AG93)))","v":3.2294420673493973},{"$f":"IF($I93 >0, MIN(AH93,$I93-SUM($L93:AH93)), MAX(AH93,$I93-SUM($L93:AH93)))","v":3.2294420673493973},{"$f":"IF($I93 >0, MIN(AI93,$I93-SUM($L93:AI93)), MAX(AI93,$I93-SUM($L93:AI93)))","v":3.2294420673493973},{"$f":"IF($I93 >0, MIN(AJ93,$I93-SUM($L93:AJ93)), MAX(AJ93,$I93-SUM($L93:AJ93)))","v":3.2294420673493973},{"$f":"IF($I93 >0, MIN(AK93,$I93-SUM($L93:AK93)), MAX(AK93,$I93-SUM($L93:AK93)))","v":3.2294420673493973},{"$f":"IF($I93 >0, MIN(AL93,$I93-SUM($L93:AL93)), MAX(AL93,$I93-SUM($L93:AL93)))","v":3.2294420673493973},{"$f":"IF($I93 >0, MIN(AM93,$I93-SUM($L93:AM93)), MAX(AM93,$I93-SUM($L93:AM93)))","v":3.2294420673493973},{"$f":"IF($I93 >0, MIN(AN93,$I93-SUM($L93:AN93)), MAX(AN93,$I93-SUM($L93:AN93)))","v":3.2294420673493973},{"$f":"IF($I93 >0, MIN(AO93,$I93-SUM($L93:AO93)), MAX(AO93,$I93-SUM($L93:AO93)))","v":3.2294420673493973},{"$f":"IF($I93 >0, MIN(AP93,$I93-SUM($L93:AP93)), MAX(AP93,$I93-SUM($L93:AP93)))","v":3.2294420673493973},{"$f":"IF($I93 >0, MIN(AQ93,$I93-SUM($L93:AQ93)), MAX(AQ93,$I93-SUM($L93:AQ93)))","v":3.2294420673493973}]
[null,null,null,null,"1997-03-31",null,"£m 12/13 prices",null,124.17991289290022,">",null,null,null,null,null,null,null,{"$f":"$I94/Q$82","v":3.7291265133003071},{"$f":"IF($I94 >0, MIN(R94,$I94-SUM($L94:R94)), MAX(R94,$I94-SUM($L94:R94)))","v":3.7291265133003071},{"$f":"IF($I94 >0, MIN(S94,$I94-SUM($L94:S94)), MAX(S94,$I94-SUM($L94:S94)))","v":3.7291265133003071},{"$f":"IF($I94 >0, MIN(T94,$I94-SUM($L94:T94)), MAX(T94,$I94-SUM($L94:T94)))","v":3.7291265133003071},{"$f":"IF($I94 >0, MIN(U94,$I94-SUM($L94:U94)), MAX(U94,$I94-SUM($L94:U94)))","v":3.7291265133003071},{"$f":"IF($I94 >0, MIN(V94,$I94-SUM($L94:V94)), MAX(V94,$I94-SUM($L94:V94)))","v":3.7291265133003071},{"$f":"IF($I94 >0, MIN(W94,$I94-SUM($L94:W94)), MAX(W94,$I94-SUM($L94:W94)))","v":3.7291265133003071},{"$f":"IF($I94 >0, MIN(X94,$I94-SUM($L94:X94)), MAX(X94,$I94-SUM($L94:X94)))","v":3.7291265133003071},{"$f":"IF($I94 >0, MIN(Y94,$I94-SUM($L94:Y94)), MAX(Y94,$I94-SUM($L94:Y94)))","v":3.7291265133003071},{"$f":"IF($I94 >0, MIN(Z94,$I94-SUM($L94:Z94)), MAX(Z94,$I94-SUM($L94:Z94)))","v":3.7291265133003071},{"$f":"IF($I94 >0, MIN(AA94,$I94-SUM($L94:AA94)), MAX(AA94,$I94-SUM($L94:AA94)))","v":3.7291265133003071},{"$f":"IF($I94 >0, MIN(AB94,$I94-SUM($L94:AB94)), MAX(AB94,$I94-SUM($L94:AB94)))","v":3.7291265133003071},{"$f":"IF($I94 >0, MIN(AC94,$I94-SUM($L94:AC94)), MAX(AC94,$I94-SUM($L94:AC94)))","v":3.7291265133003071},{"$f":"IF($I94 >0, MIN(AD94,$I94-SUM($L94:AD94)), MAX(AD94,$I94-SUM($L94:AD94)))","v":3.7291265133003071},{"$f":"IF($I94 >0, MIN(AE94,$I94-SUM($L94:AE94)), MAX(AE94,$I94-SUM($L94:AE94)))","v":3.7291265133003071},{"$f":"IF($I94 >0, MIN(AF94,$I94-SUM($L94:AF94)), MAX(AF94,$I94-SUM($L94:AF94)))","v":3.7291265133003071},{"$f":"IF($I94 >0, MIN(AG94,$I94-SUM($L94:AG94)), MAX(AG94,$I94-SUM($L94:AG94)))","v":3.7291265133003071},{"$f":"IF($I94 >0, MIN(AH94,$I94-SUM($L94:AH94)), MAX(AH94,$I94-SUM($L94:AH94)))","v":3.7291265133003071},{"$f":"IF($I94 >0, MIN(AI94,$I94-SUM($L94:AI94)), MAX(AI94,$I94-SUM($L94:AI94)))","v":3.7291265133003071},{"$f":"IF($I94 >0, MIN(AJ94,$I94-SUM($L94:AJ94)), MAX(AJ94,$I94-SUM($L94:AJ94)))","v":3.7291265133003071},{"$f":"IF($I94 >0, MIN(AK94,$I94-SUM($L94:AK94)), MAX(AK94,$I94-SUM($L94:AK94)))","v":3.7291265133003071},{"$f":"IF($I94 >0, MIN(AL94,$I94-SUM($L94:AL94)), MAX(AL94,$I94-SUM($L94:AL94)))","v":3.7291265133003071},{"$f":"IF($I94 >0, MIN(AM94,$I94-SUM($L94:AM94)), MAX(AM94,$I94-SUM($L94:AM94)))","v":3.7291265133003071},{"$f":"IF($I94 >0, MIN(AN94,$I94-SUM($L94:AN94)), MAX(AN94,$I94-SUM($L94:AN94)))","v":3.7291265133003071},{"$f":"IF($I94 >0, MIN(AO94,$I94-SUM($L94:AO94)), MAX(AO94,$I94-SUM($L94:AO94)))","v":3.7291265133003071},{"$f":"IF($I94 >0, MIN(AP94,$I94-SUM($L94:AP94)), MAX(AP94,$I94-SUM($L94:AP94)))","v":3.7291265133003071},{"$f":"IF($I94 >0, MIN(AQ94,$I94-SUM($L94:AQ94)), MAX(AQ94,$I94-SUM($L94:AQ94)))","v":3.7291265133003071}]
[null,null,null,null,"1998-03-31",null,"£m 12/13 prices",null,105.84565776355142,">",null,null,null,null,null,null,null,null,{"$f":"$I95/R$82","v":3.1785482811877306},{"$f":"IF($I95 >0, MIN(S95,$I95-SUM($L95:S95)), MAX(S95,$I95-SUM($L95:S95)))","v":3.1785482811877306},{"$f":"IF($I95 >0, MIN(T95,$I95-SUM($L95:T95)), MAX(T95,$I95-SUM($L95:T95)))","v":3.1785482811877306},{"$f":"IF($I95 >0, MIN(U95,$I95-SUM($L95:U95)), MAX(U95,$I95-SUM($L95:U95)))","v":3.1785482811877306},{"$f":"IF($I95 >0, MIN(V95,$I95-SUM($L95:V95)), MAX(V95,$I95-SUM($L95:V95)))","v":3.1785482811877306},{"$f":"IF($I95 >0, MIN(W95,$I95-SUM($L95:W95)), MAX(W95,$I95-SUM($L95:W95)))","v":3.1785482811877306},{"$f":"IF($I95 >0, MIN(X95,$I95-SUM($L95:X95)), MAX(X95,$I95-SUM($L95:X95)))","v":3.1785482811877306},{"$f":"IF($I95 >0, MIN(Y95,$I95-SUM($L95:Y95)), MAX(Y95,$I95-SUM($L95:Y95)))","v":3.1785482811877306},{"$f":"IF($I95 >0, MIN(Z95,$I95-SUM($L95:Z95)), MAX(Z95,$I95-SUM($L95:Z95)))","v":3.1785482811877306},{"$f":"IF($I95 >0, MIN(AA95,$I95-SUM($L95:AA95)), MAX(AA95,$I95-SUM($L95:AA95)))","v":3.1785482811877306},{"$f":"IF($I95 >0, MIN(AB95,$I95-SUM($L95:AB95)), MAX(AB95,$I95-SUM($L95:AB95)))","v":3.1785482811877306},{"$f":"IF($I95 >0, MIN(AC95,$I95-SUM($L95:AC95)), MAX(AC95,$I95-SUM($L95:AC95)))","v":3.1785482811877306},{"$f":"IF($I95 >0, MIN(AD95,$I95-SUM($L95:AD95)), MAX(AD95,$I95-SUM($L95:AD95)))","v":3.1785482811877306},{"$f":"IF($I95 >0, MIN(AE95,$I95-SUM($L95:AE95)), MAX(AE95,$I95-SUM($L95:AE95)))","v":3.1785482811877306},{"$f":"IF($I95 >0, MIN(AF95,$I95-SUM($L95:AF95)), MAX(AF95,$I95-SUM($L95:AF95)))","v":3.1785482811877306},{"$f":"IF($I95 >0, MIN(AG95,$I95-SUM($L95:AG95)), MAX(AG95,$I95-SUM($L95:AG95)))","v":3.1785482811877306},{"$f":"IF($I95 >0, MIN(AH95,$I95-SUM($L95:AH95)), MAX(AH95,$I95-SUM($L95:AH95)))","v":3.1785482811877306},{"$f":"IF($I95 >0, MIN(AI95,$I95-SUM($L95:AI95)), MAX(AI95,$I95-SUM($L95:AI95)))","v":3.1785482811877306},{"$f":"IF($I95 >0, MIN(AJ95,$I95-SUM($L95:AJ95)), MAX(AJ95,$I95-SUM($L95:AJ95)))","v":3.1785482811877306},{"$f":"IF($I95 >0, MIN(AK95,$I95-SUM($L95:AK95)), MAX(AK95,$I95-SUM($L95:AK95)))","v":3.1785482811877306},{"$f":"IF($I95 >0, MIN(AL95,$I95-SUM($L95:AL95)), MAX(AL95,$I95-SUM($L95:AL95)))","v":3.1785482811877306},{"$f":"IF($I95 >0, MIN(AM95,$I95-SUM($L95:AM95)), MAX(AM95,$I95-SUM($L95:AM95)))","v":3.1785482811877306},{"$f":"IF($I95 >0, MIN(AN95,$I95-SUM($L95:AN95)), MAX(AN95,$I95-SUM($L95:AN95)))","v":3.1785482811877306},{"$f":"IF($I95 >0, MIN(AO95,$I95-SUM($L95:AO95)), MAX(AO95,$I95-SUM($L95:AO95)))","v":3.1785482811877306},{"$f":"IF($I95 >0, MIN(AP95,$I95-SUM($L95:AP95)), MAX(AP95,$I95-SUM($L95:AP95)))","v":3.1785482811877306},{"$f":"IF($I95 >0, MIN(AQ95,$I95-SUM($L95:AQ95)), MAX(AQ95,$I95-SUM($L95:AQ95)))","v":3.1785482811877306}]
[null,null,null,null,"1999-03-31",null,"£m 12/13 prices",null,112.05918273879193,">",null,null,null,null,null,null,null,null,null,{"$f":"$I96/S$82","v":3.3651406227865448},{"$f":"IF($I96 >0, MIN(T96,$I96-SUM($L96:T96)), MAX(T96,$I96-SUM($L96:T96)))","v":3.3651406227865448},{"$f":"IF($I96 >0, MIN(U96,$I96-SUM($L96:U96)), MAX(U96,$I96-SUM($L96:U96)))","v":3.3651406227865448},{"$f":"IF($I96 >0, MIN(V96,$I96-SUM($L96:V96)), MAX(V96,$I96-SUM($L96:V96)))","v":3.3651406227865448},{"$f":"IF($I96 >0, MIN(W96,$I96-SUM($L96:W96)), MAX(W96,$I96-SUM($L96:W96)))","v":3.3651406227865448},{"$f":"IF($I96 >0, MIN(X96,$I96-SUM($L96:X96)), MAX(X96,$I96-SUM($L96:X96)))","v":3.3651406227865448},{"$f":"IF($I96 >0, MIN(Y96,$I96-SUM($L96:Y96)), MAX(Y96,$I96-SUM($L96:Y96)))","v":3.3651406227865448},{"$f":"IF($I96 >0, MIN(Z96,$I96-SUM($L96:Z96)), MAX(Z96,$I96-SUM($L96:Z96)))","v":3.3651406227865448},{"$f":"IF($I96 >0, MIN(AA96,$I96-SUM($L96:AA96)), MAX(AA96,$I96-SUM($L96:AA96)))","v":3.3651406227865448},{"$f":"IF($I96 >0, MIN(AB96,$I96-SUM($L96:AB96)), MAX(AB96,$I96-SUM($L96:AB96)))","v":3.3651406227865448},{"$f":"IF($I96 >0, MIN(AC96,$I96-SUM($L96:AC96)), MAX(AC96,$I96-SUM($L96:AC96)))","v":3.3651406227865448},{"$f":"IF($I96 >0, MIN(AD96,$I96-SUM($L96:AD96)), MAX(AD96,$I96-SUM($L96:AD96)))","v":3.3651406227865448},{"$f":"IF($I96 >0, MIN(AE96,$I96-SUM($L96:AE96)), MAX(AE96,$I96-SUM($L96:AE96)))","v":3.3651406227865448},{"$f":"IF($I96 >0, MIN(AF96,$I96-SUM($L96:AF96)), MAX(AF96,$I96-SUM($L96:AF96)))","v":3.3651406227865448},{"$f":"IF($I96 >0, MIN(AG96,$I96-SUM($L96:AG96)), MAX(AG96,$I96-SUM($L96:AG96)))","v":3.3651406227865448},{"$f":"IF($I96 >0, MIN(AH96,$I96-SUM($L96:AH96)), MAX(AH96,$I96-SUM($L96:AH96)))","v":3.3651406227865448},{"$f":"IF($I96 >0, MIN(AI96,$I96-SUM($L96:AI96)), MAX(AI96,$I96-SUM($L96:AI96)))","v":3.3651406227865448},{"$f":"IF($I96 >0, MIN(AJ96,$I96-SUM($L96:AJ96)), MAX(AJ96,$I96-SUM($L96:AJ96)))","v":3.3651406227865448},{"$f":"IF($I96 >0, MIN(AK96,$I96-SUM($L96:AK96)), MAX(AK96,$I96-SUM($L96:AK96)))","v":3.3651406227865448},{"$f":"IF($I96 >0, MIN(AL96,$I96-SUM($L96:AL96)), MAX(AL96,$I96-SUM($L96:AL96)))","v":3.3651406227865448},{"$f":"IF($I96 >0, MIN(AM96,$I96-SUM($L96:AM96)), MAX(AM96,$I96-SUM($L96:AM96)))","v":3.3651406227865448},{"$f":"IF($I96 >0, MIN(AN96,$I96-SUM($L96:AN96)), MAX(AN96,$I96-SUM($L96:AN96)))","v":3.3651406227865448},{"$f":"IF($I96 >0, MIN(AO96,$I96-SUM($L96:AO96)), MAX(AO96,$I96-SUM($L96:AO96)))","v":3.3651406227865448},{"$f":"IF($I96 >0, MIN(AP96,$I96-SUM($L96:AP96)), MAX(AP96,$I96-SUM($L96:AP96)))","v":3.3651406227865448},{"$f":"IF($I96 >0, MIN(AQ96,$I96-SUM($L96:AQ96)), MAX(AQ96,$I96-SUM($L96:AQ96)))","v":3.3651406227865448}]
[null,null,null,null,"2000-03-31",null,"£m 12/13 prices",null,100.34160108609318,">",null,null,null,null,null,null,null,null,null,null,{"$f":"$I97/T$82","v":3.0132612938766723},{"$f":"IF($I97 >0, MIN(U97,$I97-SUM($L97:U97)), MAX(U97,$I97-SUM($L97:U97)))","v":3.0132612938766723},{"$f":"IF($I97 >0, MIN(V97,$I97-SUM($L97:V97)), MAX(V97,$I97-SUM($L97:V97)))","v":3.0132612938766723},{"$f":"IF($I97 >0, MIN(W97,$I97-SUM($L97:W97)), MAX(W97,$I97-SUM($L97:W97)))","v":3.0132612938766723},{"$f":"IF($I97 >0, MIN(X97,$I97-SUM($L97:X97)), MAX(X97,$I97-SUM($L97:X97)))","v":3.0132612938766723},{"$f":"IF($I97 >0, MIN(Y97,$I97-SUM($L97:Y97)), MAX(Y97,$I97-SUM($L97:Y97)))","v":3.0132612938766723},{"$f":"IF($I97 >0, MIN(Z97,$I97-SUM($L97:Z97)), MAX(Z97,$I97-SUM($L97:Z97)))","v":3.0132612938766723},{"$f":"IF($I97 >0, MIN(AA97,$I97-SUM($L97:AA97)), MAX(AA97,$I97-SUM($L97:AA97)))","v":3.0132612938766723},{"$f":"IF($I97 >0, MIN(AB97,$I97-SUM($L97:AB97)), MAX(AB97,$I97-SUM($L97:AB97)))","v":3.0132612938766723},{"$f":"IF($I97 >0, MIN(AC97,$I97-SUM($L97:AC97)), MAX(AC97,$I97-SUM($L97:AC97)))","v":3.0132612938766723},{"$f":"IF($I97 >0, MIN(AD97,$I97-SUM($L97:AD97)), MAX(AD97,$I97-SUM($L97:AD97)))","v":3.0132612938766723},{"$f":"IF($I97 >0, MIN(AE97,$I97-SUM($L97:AE97)), MAX(AE97,$I97-SUM($L97:AE97)))","v":3.0132612938766723},{"$f":"IF($I97 >0, MIN(AF97,$I97-SUM($L97:AF97)), MAX(AF97,$I97-SUM($L97:AF97)))","v":3.0132612938766723},{"$f":"IF($I97 >0, MIN(AG97,$I97-SUM($L97:AG97)), MAX(AG97,$I97-SUM($L97:AG97)))","v":3.0132612938766723},{"$f":"IF($I97 >0, MIN(AH97,$I97-SUM($L97:AH97)), MAX(AH97,$I97-SUM($L97:AH97)))","v":3.0132612938766723},{"$f":"IF($I97 >0, MIN(AI97,$I97-SUM($L97:AI97)), MAX(AI97,$I97-SUM($L97:AI97)))","v":3.0132612938766723},{"$f":"IF($I97 >0, MIN(AJ97,$I97-SUM($L97:AJ97)), MAX(AJ97,$I97-SUM($L97:AJ97)))","v":3.0132612938766723},{"$f":"IF($I97 >0, MIN(AK97,$I97-SUM($L97:AK97)), MAX(AK97,$I97-SUM($L97:AK97)))","v":3.0132612938766723},{"$f":"IF($I97 >0, MIN(AL97,$I97-SUM($L97:AL97)), MAX(AL97,$I97-SUM($L97:AL97)))","v":3.0132612938766723},{"$f":"IF($I97 >0, MIN(AM97,$I97-SUM($L97:AM97)), MAX(AM97,$I97-SUM($L97:AM97)))","v":3.0132612938766723},{"$f":"IF($I97 >0, MIN(AN97,$I97-SUM($L97:AN97)), MAX(AN97,$I97-SUM($L97:AN97)))","v":3.0132612938766723},{"$f":"IF($I97 >0, MIN(AO97,$I97-SUM($L97:AO97)), MAX(AO97,$I97-SUM($L97:AO97)))","v":3.0132612938766723},{"$f":"IF($I97 >0, MIN(AP97,$I97-SUM($L97:AP97)), MAX(AP97,$I97-SUM($L97:AP97)))","v":3.0132612938766723},{"$f":"IF($I97 >0, MIN(AQ97,$I97-SUM($L97:AQ97)), MAX(AQ97,$I97-SUM($L97:AQ97)))","v":3.0132612938766723}]
[null,null,null,null,"2001-03-31",null,"£m 12/13 prices",null,101.71991978233071,">",null,null,null,null,null,null,null,null,null,null,null,{"$f":"$I98/U$82","v":3.0546522457156371},{"$f":"IF($I98 >0, MIN(V98,$I98-SUM($L98:V98)), MAX(V98,$I98-SUM($L98:V98)))","v":3.0546522457156371},{"$f":"IF($I98 >0, MIN(W98,$I98-SUM($L98:W98)), MAX(W98,$I98-SUM($L98:W98)))","v":3.0546522457156371},{"$f":"IF($I98 >0, MIN(X98,$I98-SUM($L98:X98)), MAX(X98,$I98-SUM($L98:X98)))","v":3.0546522457156371},{"$f":"IF($I98 >0, MIN(Y98,$I98-SUM($L98:Y98)), MAX(Y98,$I98-SUM($L98:Y98)))","v":3.0546522457156371},{"$f":"IF($I98 >0, MIN(Z98,$I98-SUM($L98:Z98)), MAX(Z98,$I98-SUM($L98:Z98)))","v":3.0546522457156371},{"$f":"IF($I98 >0, MIN(AA98,$I98-SUM($L98:AA98)), MAX(AA98,$I98-SUM($L98:AA98)))","v":3.0546522457156371},{"$f":"IF($I98 >0, MIN(AB98,$I98-SUM($L98:AB98)), MAX(AB98,$I98-SUM($L98:AB98)))","v":3.0546522457156371},{"$f":"IF($I98 >0, MIN(AC98,$I98-SUM($L98:AC98)), MAX(AC98,$I98-SUM($L98:AC98)))","v":3.0546522457156371},{"$f":"IF($I98 >0, MIN(AD98,$I98-SUM($L98:AD98)), MAX(AD98,$I98-SUM($L98:AD98)))","v":3.0546522457156371},{"$f":"IF($I98 >0, MIN(AE98,$I98-SUM($L98:AE98)), MAX(AE98,$I98-SUM($L98:AE98)))","v":3.0546522457156371},{"$f":"IF($I98 >0, MIN(AF98,$I98-SUM($L98:AF98)), MAX(AF98,$I98-SUM($L98:AF98)))","v":3.0546522457156371},{"$f":"IF($I98 >0, MIN(AG98,$I98-SUM($L98:AG98)), MAX(AG98,$I98-SUM($L98:AG98)))","v":3.0546522457156371},{"$f":"IF($I98 >0, MIN(AH98,$I98-SUM($L98:AH98)), MAX(AH98,$I98-SUM($L98:AH98)))","v":3.0546522457156371},{"$f":"IF($I98 >0, MIN(AI98,$I98-SUM($L98:AI98)), MAX(AI98,$I98-SUM($L98:AI98)))","v":3.0546522457156371},{"$f":"IF($I98 >0, MIN(AJ98,$I98-SUM($L98:AJ98)), MAX(AJ98,$I98-SUM($L98:AJ98)))","v":3.0546522457156371},{"$f":"IF($I98 >0, MIN(AK98,$I98-SUM($L98:AK98)), MAX(AK98,$I98-SUM($L98:AK98)))","v":3.0546522457156371},{"$f":"IF($I98 >0, MIN(AL98,$I98-SUM($L98:AL98)), MAX(AL98,$I98-SUM($L98:AL98)))","v":3.0546522457156371},{"$f":"IF($I98 >0, MIN(AM98,$I98-SUM($L98:AM98)), MAX(AM98,$I98-SUM($L98:AM98)))","v":3.0546522457156371},{"$f":"IF($I98 >0, MIN(AN98,$I98-SUM($L98:AN98)), MAX(AN98,$I98-SUM($L98:AN98)))","v":3.0546522457156371},{"$f":"IF($I98 >0, MIN(AO98,$I98-SUM($L98:AO98)), MAX(AO98,$I98-SUM($L98:AO98)))","v":3.0546522457156371},{"$f":"IF($I98 >0, MIN(AP98,$I98-SUM($L98:AP98)), MAX(AP98,$I98-SUM($L98:AP98)))","v":3.0546522457156371},{"$f":"IF($I98 >0, MIN(AQ98,$I98-SUM($L98:AQ98)), MAX(AQ98,$I98-SUM($L98:AQ98)))","v":3.0546522457156371}]
[null,null,null,null,"2002-03-31",null,"£m 12/13 prices",null,122.94602770438888,">",null,null,null,null,null,null,null,null,null,null,null,null,{"$f":"$I99/V$82","v":3.6920729040357023},{"$f":"IF($I99 >0, MIN(W99,$I99-SUM($L99:W99)), MAX(W99,$I99-SUM($L99:W99)))","v":3.6920729040357023},{"$f":"IF($I99 >0, MIN(X99,$I99-SUM($L99:X99)), MAX(X99,$I99-SUM($L99:X99)))","v":3.6920729040357023},{"$f":"IF($I99 >0, MIN(Y99,$I99-SUM($L99:Y99)), MAX(Y99,$I99-SUM($L99:Y99)))","v":3.6920729040357023},{"$f":"IF($I99 >0, MIN(Z99,$I99-SUM($L99:Z99)), MAX(Z99,$I99-SUM($L99:Z99)))","v":3.6920729040357023},{"$f":"IF($I99 >0, MIN(AA99,$I99-SUM($L99:AA99)), MAX(AA99,$I99-SUM($L99:AA99)))","v":3.6920729040357023},{"$f":"IF($I99 >0, MIN(AB99,$I99-SUM($L99:AB99)), MAX(AB99,$I99-SUM($L99:AB99)))","v":3.6920729040357023},{"$f":"IF($I99 >0, MIN(AC99,$I99-SUM($L99:AC99)), MAX(AC99,$I99-SUM($L99:AC99)))","v":3.6920729040357023},{"$f":"IF($I99 >0, MIN(AD99,$I99-SUM($L99:AD99)), MAX(AD99,$I99-SUM($L99:AD99)))","v":3.6920729040357023},{"$f":"IF($I99 >0, MIN(AE99,$I99-SUM($L99:AE99)), MAX(AE99,$I99-SUM($L99:AE99)))","v":3.6920729040357023},{"$f":"IF($I99 >0, MIN(AF99,$I99-SUM($L99:AF99)), MAX(AF99,$I99-SUM($L99:AF99)))","v":3.6920729040357023},{"$f":"IF($I99 >0, MIN(AG99,$I99-SUM($L99:AG99)), MAX(AG99,$I99-SUM($L99:AG99)))","v":3.6920729040357023},{"$f":"IF($I99 >0, MIN(AH99,$I99-SUM($L99:AH99)), MAX(AH99,$I99-SUM($L99:AH99)))","v":3.6920729040357023},{"$f":"IF($I99 >0, MIN(AI99,$I99-SUM($L99:AI99)), MAX(AI99,$I99-SUM($L99:AI99)))","v":3.6920729040357023},{"$f":"IF($I99 >0, MIN(AJ99,$I99-SUM($L99:AJ99)), MAX(AJ99,$I99-SUM($L99:AJ99)))","v":3.6920729040357023},{"$f":"IF($I99 >0, MIN(AK99,$I99-SUM($L99:AK99)), MAX(AK99,$I99-SUM($L99:AK99)))","v":3.6920729040357023},{"$f":"IF($I99 >0, MIN(AL99,$I99-SUM($L99:AL99)), MAX(AL99,$I99-SUM($L99:AL99)))","v":3.6920729040357023},{"$f":"IF($I99 >0, MIN(AM99,$I99-SUM($L99:AM99)), MAX(AM99,$I99-SUM($L99:AM99)))","v":3.6920729040357023},{"$f":"IF($I99 >0, MIN(AN99,$I99-SUM($L99:AN99)), MAX(AN99,$I99-SUM($L99:AN99)))","v":3.6920729040357023},{"$f":"IF($I99 >0, MIN(AO99,$I99-SUM($L99:AO99)), MAX(AO99,$I99-SUM($L99:AO99)))","v":3.6920729040357023},{"$f":"IF($I99 >0, MIN(AP99,$I99-SUM($L99:AP99)), MAX(AP99,$I99-SUM($L99:AP99)))","v":3.6920729040357023},{"$f":"IF($I99 >0, MIN(AQ99,$I99-SUM($L99:AQ99)), MAX(AQ99,$I99-SUM($L99:AQ99)))","v":3.6920729040357023}]
[null,null,null,null,"2003-03-31",null,"£m 12/13 prices",null,114.81394739658739,">",null,null,null,null,null,null,null,null,null,null,null,null,null,{"$f":"$I100/W$82","v":3.447866288185808},{"$f":"IF($I100 >0, MIN(X100,$I100-SUM($L100:X100)), MAX(X100,$I100-SUM($L100:X100)))","v":3.447866288185808},{"$f":"IF($I100 >0, MIN(Y100,$I100-SUM($L100:Y100)), MAX(Y100,$I100-SUM($L100:Y100)))","v":3.447866288185808},{"$f":"IF($I100 >0, MIN(Z100,$I100-SUM($L100:Z100)), MAX(Z100,$I100-SUM($L100:Z100)))","v":3.447866288185808},{"$f":"IF($I100 >0, MIN(AA100,$I100-SUM($L100:AA100)), MAX(AA100,$I100-SUM($L100:AA100)))","v":3.447866288185808},{"$f":"IF($I100 >0, MIN(AB100,$I100-SUM($L100:AB100)), MAX(AB100,$I100-SUM($L100:AB100)))","v":3.447866288185808},{"$f":"IF($I100 >0, MIN(AC100,$I100-SUM($L100:AC100)), MAX(AC100,$I100-SUM($L100:AC100)))","v":3.447866288185808},{"$f":"IF($I100 >0, MIN(AD100,$I100-SUM($L100:AD100)), MAX(AD100,$I100-SUM($L100:AD100)))","v":3.447866288185808},{"$f":"IF($I100 >0, MIN(AE100,$I100-SUM($L100:AE100)), MAX(AE100,$I100-SUM($L100:AE100)))","v":3.447866288185808},{"$f":"IF($I100 >0, MIN(AF100,$I100-SUM($L100:AF100)), MAX(AF100,$I100-SUM($L100:AF100)))","v":3.447866288185808},{"$f":"IF($I100 >0, MIN(AG100,$I100-SUM($L100:AG100)), MAX(AG100,$I100-SUM($L100:AG100)))","v":3.447866288185808},{"$f":"IF($I100 >0, MIN(AH100,$I100-SUM($L100:AH100)), MAX(AH100,$I100-SUM($L100:AH100)))","v":3.447866288185808},{"$f":"IF($I100 >0, MIN(AI100,$I100-SUM($L100:AI100)), MAX(AI100,$I100-SUM($L100:AI100)))","v":3.447866288185808},{"$f":"IF($I100 >0, MIN(AJ100,$I100-SUM($L100:AJ100)), MAX(AJ100,$I100-SUM($L100:AJ100)))","v":3.447866288185808},{"$f":"IF($I100 >0, MIN(AK100,$I100-SUM($L100:AK100)), MAX(AK100,$I100-SUM($L100:AK100)))","v":3.447866288185808},{"$f":"IF($I100 >0, MIN(AL100,$I100-SUM($L100:AL100)), MAX(AL100,$I100-SUM($L100:AL100)))","v":3.447866288185808},{"$f":"IF($I100 >0, MIN(AM100,$I100-SUM($L100:AM100)), MAX(AM100,$I100-SUM($L100:AM100)))","v":3.447866288185808},{"$f":"IF($I100 >0, MIN(AN100,$I100-SUM($L100:AN100)), MAX(AN100,$I100-SUM($L100:AN100)))","v":3.447866288185808},{"$f":"IF($I100 >0, MIN(AO100,$I100-SUM($L100:AO100)), MAX(AO100,$I100-SUM($L100:AO100)))","v":3.447866288185808},{"$f":"IF($I100 >0, MIN(AP100,$I100-SUM($L100:AP100)), MAX(AP100,$I100-SUM($L100:AP100)))","v":3.447866288185808},{"$f":"IF($I100 >0, MIN(AQ100,$I100-SUM($L100:AQ100)), MAX(AQ100,$I100-SUM($L100:AQ100)))","v":3.447866288185808}]
[null,null,null,null,"2004-03-31",null,"£m 12/13 prices",null,134.62320865872039,">",null,null,null,null,null,null,null,null,null,null,null,null,null,null,{"$f":"$I101/X$82","v":4.0427389987603721},{"$f":"IF($I101 >0, MIN(Y101,$I101-SUM($L101:Y101)), MAX(Y101,$I101-SUM($L101:Y101)))","v":4.0427389987603721},{"$f":"IF($I101 >0, MIN(Z101,$I101-SUM($L101:Z101)), MAX(Z101,$I101-SUM($L101:Z101)))","v":4.0427389987603721},{"$f":"IF($I101 >0, MIN(AA101,$I101-SUM($L101:AA101)), MAX(AA101,$I101-SUM($L101:AA101)))","v":4.0427389987603721},{"$f":"IF($I101 >0, MIN(AB101,$I101-SUM($L101:AB101)), MAX(AB101,$I101-SUM($L101:AB101)))","v":4.0427389987603721},{"$f":"IF($I101 >0, MIN(AC101,$I101-SUM($L101:AC101)), MAX(AC101,$I101-SUM($L101:AC101)))","v":4.0427389987603721},{"$f":"IF($I101 >0, MIN(AD101,$I101-SUM($L101:AD101)), MAX(AD101,$I101-SUM($L101:AD101)))","v":4.0427389987603721},{"$f":"IF($I101 >0, MIN(AE101,$I101-SUM($L101:AE101)), MAX(AE101,$I101-SUM($L101:AE101)))","v":4.0427389987603721},{"$f":"IF($I101 >0, MIN(AF101,$I101-SUM($L101:AF101)), MAX(AF101,$I101-SUM($L101:AF101)))","v":4.0427389987603721},{"$f":"IF($I101 >0, MIN(AG101,$I101-SUM($L101:AG101)), MAX(AG101,$I101-SUM($L101:AG101)))","v":4.0427389987603721},{"$f":"IF($I101 >0, MIN(AH101,$I101-SUM($L101:AH101)), MAX(AH101,$I101-SUM($L101:AH101)))","v":4.0427389987603721},{"$f":"IF($I101 >0, MIN(AI101,$I101-SUM($L101:AI101)), MAX(AI101,$I101-SUM($L101:AI101)))","v":4.0427389987603721},{"$f":"IF($I101 >0, MIN(AJ101,$I101-SUM($L101:AJ101)), MAX(AJ101,$I101-SUM($L101:AJ101)))","v":4.0427389987603721},{"$f":"IF($I101 >0, MIN(AK101,$I101-SUM($L101:AK101)), MAX(AK101,$I101-SUM($L101:AK101)))","v":4.0427389987603721},{"$f":"IF($I101 >0, MIN(AL101,$I101-SUM($L101:AL101)), MAX(AL101,$I101-SUM($L101:AL101)))","v":4.0427389987603721},{"$f":"IF($I101 >0, MIN(AM101,$I101-SUM($L101:AM101)), MAX(AM101,$I101-SUM($L101:AM101)))","v":4.0427389987603721},{"$f":"IF($I101 >0, MIN(AN101,$I101-SUM($L101:AN101)), MAX(AN101,$I101-SUM($L101:AN101)))","v":4.0427389987603721},{"$f":"IF($I101 >0, MIN(AO101,$I101-SUM($L101:AO101)), MAX(AO101,$I101-SUM($L101:AO101)))","v":4.0427389987603721},{"$f":"IF($I101 >0, MIN(AP101,$I101-SUM($L101:AP101)), MAX(AP101,$I101-SUM($L101:AP101)))","v":4.0427389987603721},{"$f":"IF($I101 >0, MIN(AQ101,$I101-SUM($L101:AQ101)), MAX(AQ101,$I101-SUM($L101:AQ101)))","v":4.0427389987603721}]
[null,null,null,null,"2005-03-31",null,"£m 12/13 prices",null,113.36672305139849,">",null,null,null,null,null,null,null,null,null,null,null,null,null,null,null,{"$f":"$I102/Y$82","v":3.4044060976395949},{"$f":"IF($I102 >0, MIN(Z102,$I102-SUM($L102:Z102)), MAX(Z102,$I102-SUM($L102:Z102)))","v":3.4044060976395949},{"$f":"IF($I102 >0, MIN(AA102,$I102-SUM($L102:AA102)), MAX(AA102,$I102-SUM($L102:AA102)))","v":3.4044060976395949},{"$f":"IF($I102 >0, MIN(AB102,$I102-SUM($L102:AB102)), MAX(AB102,$I102-SUM($L102:AB102)))","v":3.4044060976395949},{"$f":"IF($I102 >0, MIN(AC102,$I102-SUM($L102:AC102)), MAX(AC102,$I102-SUM($L102:AC102)))","v":3.4044060976395949},{"$f":"IF($I102 >0, MIN(AD102,$I102-SUM($L102:AD102)), MAX(AD102,$I102-SUM($L102:AD102)))","v":3.4044060976395949},{"$f":"IF($I102 >0, MIN(AE102,$I102-SUM($L102:AE102)), MAX(AE102,$I102-SUM($L102:AE102)))","v":3.4044060976395949},{"$f":"IF($I102 >0, MIN(AF102,$I102-SUM($L102:AF102)), MAX(AF102,$I102-SUM($L102:AF102)))","v":3.4044060976395949},{"$f":"IF($I102 >0, MIN(AG102,$I102-SUM($L102:AG102)), MAX(AG102,$I102-SUM($L102:AG102)))","v":3.4044060976395949},{"$f":"IF($I102 >0, MIN(AH102,$I102-SUM($L102:AH102)), MAX(AH102,$I102-SUM($L102:AH102)))","v":3.4044060976395949},{"$f":"IF($I102 >0, MIN(AI102,$I102-SUM($L102:AI102)), MAX(AI102,$I102-SUM($L102:AI102)))","v":3.4044060976395949},{"$f":"IF($I102 >0, MIN(AJ102,$I102-SUM($L102:AJ102)), MAX(AJ102,$I102-SUM($L102:AJ102)))","v":3.4044060976395949},{"$f":"IF($I102 >0, MIN(AK102,$I102-SUM($L102:AK102)), MAX(AK102,$I102-SUM($L102:AK102)))","v":3.4044060976395949},{"$f":"IF($I102 >0, MIN(AL102,$I102-SUM($L102:AL102)), MAX(AL102,$I102-SUM($L102:AL102)))","v":3.4044060976395949},{"$f":"IF($I102 >0, MIN(AM102,$I102-SUM($L102:AM102)), MAX(AM102,$I102-SUM($L102:AM102)))","v":3.4044060976395949},{"$f":"IF($I102 >0, MIN(AN102,$I102-SUM($L102:AN102)), MAX(AN102,$I102-SUM($L102:AN102)))","v":3.4044060976395949},{"$f":"IF($I102 >0, MIN(AO102,$I102-SUM($L102:AO102)), MAX(AO102,$I102-SUM($L102:AO102)))","v":3.4044060976395949},{"$f":"IF($I102 >0, MIN(AP102,$I102-SUM($L102:AP102)), MAX(AP102,$I102-SUM($L102:AP102)))","v":3.4044060976395949},{"$f":"IF($I102 >0, MIN(AQ102,$I102-SUM($L102:AQ102)), MAX(AQ102,$I102-SUM($L102:AQ102)))","v":3.4044060976395949}]
[null,null,null,null,"2006-03-31",null,"£m 12/13 prices",null,174.21733037885991,">",null,null,null,null,null,null,null,null,null,null,null,null,null,null,null,null,{"$f":"$I103/Z$82","v":5.2317516630288265},{"$f":"IF($I103 >0, MIN(AA103,$I103-SUM($L103:AA103)), MAX(AA103,$I103-SUM($L103:AA103)))","v":5.2317516630288265},{"$f":"IF($I103 >0, MIN(AB103,$I103-SUM($L103:AB103)), MAX(AB103,$I103-SUM($L103:AB103)))","v":5.2317516630288265},{"$f":"IF($I103 >0, MIN(AC103,$I103-SUM($L103:AC103)), MAX(AC103,$I103-SUM($L103:AC103)))","v":5.2317516630288265},{"$f":"IF($I103 >0, MIN(AD103,$I103-SUM($L103:AD103)), MAX(AD103,$I103-SUM($L103:AD103)))","v":5.2317516630288265},{"$f":"IF($I103 >0, MIN(AE103,$I103-SUM($L103:AE103)), MAX(AE103,$I103-SUM($L103:AE103)))","v":5.2317516630288265},{"$f":"IF($I103 >0, MIN(AF103,$I103-SUM($L103:AF103)), MAX(AF103,$I103-SUM($L103:AF103)))","v":5.2317516630288265},{"$f":"IF($I103 >0, MIN(AG103,$I103-SUM($L103:AG103)), MAX(AG103,$I103-SUM($L103:AG103)))","v":5.2317516630288265},{"$f":"IF($I103 >0, MIN(AH103,$I103-SUM($L103:AH103)), MAX(AH103,$I103-SUM($L103:AH103)))","v":5.2317516630288265},{"$f":"IF($I103 >0, MIN(AI103,$I103-SUM($L103:AI103)), MAX(AI103,$I103-SUM($L103:AI103)))","v":5.2317516630288265},{"$f":"IF($I103 >0, MIN(AJ103,$I103-SUM($L103:AJ103)), MAX(AJ103,$I103-SUM($L103:AJ103)))","v":5.2317516630288265},{"$f":"IF($I103 >0, MIN(AK103,$I103-SUM($L103:AK103)), MAX(AK103,$I103-SUM($L103:AK103)))","v":5.2317516630288265},{"$f":"IF($I103 >0, MIN(AL103,$I103-SUM($L103:AL103)), MAX(AL103,$I103-SUM($L103:AL103)))","v":5.2317516630288265},{"$f":"IF($I103 >0, MIN(AM103,$I103-SUM($L103:AM103)), MAX(AM103,$I103-SUM($L103:AM103)))","v":5.2317516630288265},{"$f":"IF($I103 >0, MIN(AN103,$I103-SUM($L103:AN103)), MAX(AN103,$I103-SUM($L103:AN103)))","v":5.2317516630288265},{"$f":"IF($I103 >0, MIN(AO103,$I103-SUM($L103:AO103)), MAX(AO103,$I103-SUM($L103:AO103)))","v":5.2317516630288265},{"$f":"IF($I103 >0, MIN(AP103,$I103-SUM($L103:AP103)), MAX(AP103,$I103-SUM($L103:AP103)))","v":5.2317516630288265},{"$f":"IF($I103 >0, MIN(AQ103,$I103-SUM($L103:AQ103)), MAX(AQ103,$I103-SUM($L103:AQ103)))","v":5.2317516630288265}]
[null,null,null,null,"2007-03-31",null,"£m 12/13 prices",null,165.13880270591514,">",null,null,null,null,null,null,null,null,null,null,null,null,null,null,null,null,null,{"$f":"$I104/AA$82","v":4.9591232043818367},{"$f":"IF($I104 >0, MIN(AB104,$I104-SUM($L104:AB104)), MAX(AB104,$I104-SUM($L104:AB104)))","v":4.9591232043818367},{"$f":"IF($I104 >0, MIN(AC104,$I104-SUM($L104:AC104)), MAX(AC104,$I104-SUM($L104:AC104)))","v":4.9591232043818367},{"$f":"IF($I104 >0, MIN(AD104,$I104-SUM($L104:AD104)), MAX(AD104,$I104-SUM($L104:AD104)))","v":4.9591232043818367},{"$f":"IF($I104 >0, MIN(AE104,$I104-SUM($L104:AE104)), MAX(AE104,$I104-SUM($L104:AE104)))","v":4.9591232043818367},{"$f":"IF($I104 >0, MIN(AF104,$I104-SUM($L104:AF104)), MAX(AF104,$I104-SUM($L104:AF104)))","v":4.9591232043818367},{"$f":"IF($I104 >0, MIN(AG104,$I104-SUM($L104:AG104)), MAX(AG104,$I104-SUM($L104:AG104)))","v":4.9591232043818367},{"$f":"IF($I104 >0, MIN(AH104,$I104-SUM($L104:AH104)), MAX(AH104,$I104-SUM($L104:AH104)))","v":4.9591232043818367},{"$f":"IF($I104 >0, MIN(AI104,$I104-SUM($L104:AI104)), MAX(AI104,$I104-SUM($L104:AI104)))","v":4.9591232043818367},{"$f":"IF($I104 >0, MIN(AJ104,$I104-SUM($L104:AJ104)), MAX(AJ104,$I104-SUM($L104:AJ104)))","v":4.9591232043818367},{"$f":"IF($I104 >0, MIN(AK104,$I104-SUM($L104:AK104)), MAX(AK104,$I104-SUM($L104:AK104)))","v":4.9591232043818367},{"$f":"IF($I104 >0, MIN(AL104,$I104-SUM($L104:AL104)), MAX(AL104,$I104-SUM($L104:AL104)))","v":4.9591232043818367},{"$f":"IF($I104 >0, MIN(AM104,$I104-SUM($L104:AM104)), MAX(AM104,$I104-SUM($L104:AM104)))","v":4.9591232043818367},{"$f":"IF($I104 >0, MIN(AN104,$I104-SUM($L104:AN104)), MAX(AN104,$I104-SUM($L104:AN104)))","v":4.9591232043818367},{"$f":"IF($I104 >0, MIN(AO104,$I104-SUM($L104:AO104)), MAX(AO104,$I104-SUM($L104:AO104)))","v":4.9591232043818367},{"$f":"IF($I104 >0, MIN(AP104,$I104-SUM($L104:AP104)), MAX(AP104,$I104-SUM($L104:AP104)))","v":4.9591232043818367},{"$f":"IF($I104 >0, MIN(AQ104,$I104-SUM($L104:AQ104)), MAX(AQ104,$I104-SUM($L104:AQ104)))","v":4.9591232043818367}]
[null,null,null,null,"2008-03-31",null,"£m 12/13 prices",null,172.19424358687331,">",null,null,null,null,null,null,null,null,null,null,null,null,null,null,null,null,null,null,{"$f":"$I105/AB$82","v":5.1709983059121116},{"$f":"IF($I105 >0, MIN(AC105,$I105-SUM($L105:AC105)), MAX(AC105,$I105-SUM($L105:AC105)))","v":5.1709983059121116},{"$f":"IF($I105 >0, MIN(AD105,$I105-SUM($L105:AD105)), MAX(AD105,$I105-SUM($L105:AD105)))","v":5.1709983059121116},{"$f":"IF($I105 >0, MIN(AE105,$I105-SUM($L105:AE105)), MAX(AE105,$I105-SUM($L105:AE105)))","v":5.1709983059121116},{"$f":"IF($I105 >0, MIN(AF105,$I105-SUM($L105:AF105)), MAX(AF105,$I105-SUM($L105:AF105)))","v":5.1709983059121116},{"$f":"IF($I105 >0, MIN(AG105,$I105-SUM($L105:AG105)), MAX(AG105,$I105-SUM($L105:AG105)))","v":5.1709983059121116},{"$f":"IF($I105 >0, MIN(AH105,$I105-SUM($L105:AH105)), MAX(AH105,$I105-SUM($L105:AH105)))","v":5.1709983059121116},{"$f":"IF($I105 >0, MIN(AI105,$I105-SUM($L105:AI105)), MAX(AI105,$I105-SUM($L105:AI105)))","v":5.1709983059121116},{"$f":"IF($I105 >0, MIN(AJ105,$I105-SUM($L105:AJ105)), MAX(AJ105,$I105-SUM($L105:AJ105)))","v":5.1709983059121116},{"$f":"IF($I105 >0, MIN(AK105,$I105-SUM($L105:AK105)), MAX(AK105,$I105-SUM($L105:AK105)))","v":5.1709983059121116},{"$f":"IF($I105 >0, MIN(AL105,$I105-SUM($L105:AL105)), MAX(AL105,$I105-SUM($L105:AL105)))","v":5.1709983059121116},{"$f":"IF($I105 >0, MIN(AM105,$I105-SUM($L105:AM105)), MAX(AM105,$I105-SUM($L105:AM105)))","v":5.1709983059121116},{"$f":"IF($I105 >0, MIN(AN105,$I105-SUM($L105:AN105)), MAX(AN105,$I105-SUM($L105:AN105)))","v":5.1709983059121116},{"$f":"IF($I105 >0, MIN(AO105,$I105-SUM($L105:AO105)), MAX(AO105,$I105-SUM($L105:AO105)))","v":5.1709983059121116},{"$f":"IF($I105 >0, MIN(AP105,$I105-SUM($L105:AP105)), MAX(AP105,$I105-SUM($L105:AP105)))","v":5.1709983059121116},{"$f":"IF($I105 >0, MIN(AQ105,$I105-SUM($L105:AQ105)), MAX(AQ105,$I105-SUM($L105:AQ105)))","v":5.1709983059121116}]
[null,null,null,null,"2009-03-31",null,"£m 12/13 prices",null,188.87459455264997,">",null,null,null,null,null,null,null,null,null,null,null,null,null,null,null,null,null,null,null,{"$f":"$I106/AC$82","v":5.6719097463258255},{"$f":"IF($I106 >0, MIN(AD106,$I106-SUM($L106:AD106)), MAX(AD106,$I106-SUM($L106:AD106)))","v":5.6719097463258255},{"$f":"IF($I106 >0, MIN(AE106,$I106-SUM($L106:AE106)), MAX(AE106,$I106-SUM($L106:AE106)))","v":5.6719097463258255},{"$f":"IF($I106 >0, MIN(AF106,$I106-SUM($L106:AF106)), MAX(AF106,$I106-SUM($L106:AF106)))","v":5.6719097463258255},{"$f":"IF($I106 >0, MIN(AG106,$I106-SUM($L106:AG106)), MAX(AG106,$I106-SUM($L106:AG106)))","v":5.6719097463258255},{"$f":"IF($I106 >0, MIN(AH106,$I106-SUM($L106:AH106)), MAX(AH106,$I106-SUM($L106:AH106)))","v":5.6719097463258255},{"$f":"IF($I106 >0, MIN(AI106,$I106-SUM($L106:AI106)), MAX(AI106,$I106-SUM($L106:AI106)))","v":5.6719097463258255},{"$f":"IF($I106 >0, MIN(AJ106,$I106-SUM($L106:AJ106)), MAX(AJ106,$I106-SUM($L106:AJ106)))","v":5.6719097463258255},{"$f":"IF($I106 >0, MIN(AK106,$I106-SUM($L106:AK106)), MAX(AK106,$I106-SUM($L106:AK106)))","v":5.6719097463258255},{"$f":"IF($I106 >0, MIN(AL106,$I106-SUM($L106:AL106)), MAX(AL106,$I106-SUM($L106:AL106)))","v":5.6719097463258255},{"$f":"IF($I106 >0, MIN(AM106,$I106-SUM($L106:AM106)), MAX(AM106,$I106-SUM($L106:AM106)))","v":5.6719097463258255},{"$f":"IF($I106 >0, MIN(AN106,$I106-SUM($L106:AN106)), MAX(AN106,$I106-SUM($L106:AN106)))","v":5.6719097463258255},{"$f":"IF($I106 >0, MIN(AO106,$I106-SUM($L106:AO106)), MAX(AO106,$I106-SUM($L106:AO106)))","v":5.6719097463258255},{"$f":"IF($I106 >0, MIN(AP106,$I106-SUM($L106:AP106)), MAX(AP106,$I106-SUM($L106:AP106)))","v":5.6719097463258255},{"$f":"IF($I106 >0, MIN(AQ106,$I106-SUM($L106:AQ106)), MAX(AQ106,$I106-SUM($L106:AQ106)))","v":5.6719097463258255}]
[null,null,null,null,"2010-03-31",null,"£m 12/13 prices",null,179.75309706460266,">",null,null,null,null,null,null,null,null,null,null,null,null,null,null,null,null,null,null,null,null,{"$f":"$I107/AD$82","v":5.3979909028409212},{"$f":"IF($I107 >0, MIN(AE107,$I107-SUM($L107:AE107)), MAX(AE107,$I107-SUM($L107:AE107)))","v":5.3979909028409212},{"$f":"IF($I107 >0, MIN(AF107,$I107-SUM($L107:AF107)), MAX(AF107,$I107-SUM($L107:AF107)))","v":5.3979909028409212},{"$f":"IF($I107 >0, MIN(AG107,$I107-SUM($L107:AG107)), MAX(AG107,$I107-SUM($L107:AG107)))","v":5.3979909028409212},{"$f":"IF($I107 >0, MIN(AH107,$I107-SUM($L107:AH107)), MAX(AH107,$I107-SUM($L107:AH107)))","v":5.3979909028409212},{"$f":"IF($I107 >0, MIN(AI107,$I107-SUM($L107:AI107)), MAX(AI107,$I107-SUM($L107:AI107)))","v":5.3979909028409212},{"$f":"IF($I107 >0, MIN(AJ107,$I107-SUM($L107:AJ107)), MAX(AJ107,$I107-SUM($L107:AJ107)))","v":5.3979909028409212},{"$f":"IF($I107 >0, MIN(AK107,$I107-SUM($L107:AK107)), MAX(AK107,$I107-SUM($L107:AK107)))","v":5.3979909028409212},{"$f":"IF($I107 >0, MIN(AL107,$I107-SUM($L107:AL107)), MAX(AL107,$I107-SUM($L107:AL107)))","v":5.3979909028409212},{"$f":"IF($I107 >0, MIN(AM107,$I107-SUM($L107:AM107)), MAX(AM107,$I107-SUM($L107:AM107)))","v":5.3979909028409212},{"$f":"IF($I107 >0, MIN(AN107,$I107-SUM($L107:AN107)), MAX(AN107,$I107-SUM($L107:AN107)))","v":5.3979909028409212},{"$f":"IF($I107 >0, MIN(AO107,$I107-SUM($L107:AO107)), MAX(AO107,$I107-SUM($L107:AO107)))","v":5.3979909028409212},{"$f":"IF($I107 >0, MIN(AP107,$I107-SUM($L107:AP107)), MAX(AP107,$I107-SUM($L107:AP107)))","v":5.3979909028409212},{"$f":"IF($I107 >0, MIN(AQ107,$I107-SUM($L107:AQ107)), MAX(AQ107,$I107-SUM($L107:AQ107)))","v":5.3979909028409212}]
[null,null,null,null,"2011-03-31",null,"£m 12/13 prices",null,185.11275789301999,">",null,null,null,null,null,null,null,null,null,null,null,null,null,null,null,null,null,null,null,null,null,{"$f":"$I108/AE$82","v":5.5589416784690693},{"$f":"IF($I108 >0, MIN(AF108,$I108-SUM($L108:AF108)), MAX(AF108,$I108-SUM($L108:AF108)))","v":5.5589416784690693},{"$f":"IF($I108 >0, MIN(AG108,$I108-SUM($L108:AG108)), MAX(AG108,$I108-SUM($L108:AG108)))","v":5.5589416784690693},{"$f":"IF($I108 >0, MIN(AH108,$I108-SUM($L108:AH108)), MAX(AH108,$I108-SUM($L108:AH108)))","v":5.5589416784690693},{"$f":"IF($I108 >0, MIN(AI108,$I108-SUM($L108:AI108)), MAX(AI108,$I108-SUM($L108:AI108)))","v":5.5589416784690693},{"$f":"IF($I108 >0, MIN(AJ108,$I108-SUM($L108:AJ108)), MAX(AJ108,$I108-SUM($L108:AJ108)))","v":5.5589416784690693},{"$f":"IF($I108 >0, MIN(AK108,$I108-SUM($L108:AK108)), MAX(AK108,$I108-SUM($L108:AK108)))","v":5.5589416784690693},{"$f":"IF($I108 >0, MIN(AL108,$I108-SUM($L108:AL108)), MAX(AL108,$I108-SUM($L108:AL108)))","v":5.5589416784690693},{"$f":"IF($I108 >0, MIN(AM108,$I108-SUM($L108:AM108)), MAX(AM108,$I108-SUM($L108:AM108)))","v":5.5589416784690693},{"$f":"IF($I108 >0, MIN(AN108,$I108-SUM($L108:AN108)), MAX(AN108,$I108-SUM($L108:AN108)))","v":5.5589416784690693},{"$f":"IF($I108 >0, MIN(AO108,$I108-SUM($L108:AO108)), MAX(AO108,$I108-SUM($L108:AO108)))","v":5.5589416784690693},{"$f":"IF($I108 >0, MIN(AP108,$I108-SUM($L108:AP108)), MAX(AP108,$I108-SUM($L108:AP108)))","v":5.5589416784690693},{"$f":"IF($I108 >0, MIN(AQ108,$I108-SUM($L108:AQ108)), MAX(AQ108,$I108-SUM($L108:AQ108)))","v":5.5589416784690693}]
[null,null,null,null,"2012-03-31",null,"£m 12/13 prices",null,221.25861177530032,">",null,null,null,null,null,null,null,null,null,null,null,null,null,null,null,null,null,null,null,null,null,null,{"$f":"$I109/AF$82","v":6.6444027560150252},{"$f":"IF($I109 >0, MIN(AG109,$I109-SUM($L109:AG109)), MAX(AG109,$I109-SUM($L109:AG109)))","v":6.6444027560150252},{"$f":"IF($I109 >0, MIN(AH109,$I109-SUM($L109:AH109)), MAX(AH109,$I109-SUM($L109:AH109)))","v":6.6444027560150252},{"$f":"IF($I109 >0, MIN(AI109,$I109-SUM($L109:AI109)), MAX(AI109,$I109-SUM($L109:AI109)))","v":6.6444027560150252},{"$f":"IF($I109 >0, MIN(AJ109,$I109-SUM($L109:AJ109)), MAX(AJ109,$I109-SUM($L109:AJ109)))","v":6.6444027560150252},{"$f":"IF($I109 >0, MIN(AK109,$I109-SUM($L109:AK109)), MAX(AK109,$I109-SUM($L109:AK109)))","v":6.6444027560150252},{"$f":"IF($I109 >0, MIN(AL109,$I109-SUM($L109:AL109)), MAX(AL109,$I109-SUM($L109:AL109)))","v":6.6444027560150252},{"$f":"IF($I109 >0, MIN(AM109,$I109-SUM($L109:AM109)), MAX(AM109,$I109-SUM($L109:AM109)))","v":6.6444027560150252},{"$f":"IF($I109 >0, MIN(AN109,$I109-SUM($L109:AN109)), MAX(AN109,$I109-SUM($L109:AN109)))","v":6.6444027560150252},{"$f":"IF($I109 >0, MIN(AO109,$I109-SUM($L109:AO109)), MAX(AO109,$I109-SUM($L109:AO109)))","v":6.6444027560150252},{"$f":"IF($I109 >0, MIN(AP109,$I109-SUM($L109:AP109)), MAX(AP109,$I109-SUM($L109:AP109)))","v":6.6444027560150252},{"$f":"IF($I109 >0, MIN(AQ109,$I109-SUM($L109:AQ109)), MAX(AQ109,$I109-SUM($L109:AQ109)))","v":6.6444027560150252}]
[null,null,null,null,"2013-03-31",null,"£m 12/13 prices",null,201.9095218516949,null,null,null,null,null,null,null,null,null,null,null,null,null,null,null,null,null,null,null,null,null,null,null,null,{"$f":"$I110/AG$82","v":6.0633490045554028},{"$f":"IF($I110 >0, MIN(AH110,$I110-SUM($L110:AH110)), MAX(AH110,$I110-SUM($L110:AH110)))","v":6.0633490045554028},{"$f":"IF($I110 >0, MIN(AI110,$I110-SUM($L110:AI110)), MAX(AI110,$I110-SUM($L110:AI110)))","v":6.0633490045554028},{"$f":"IF($I110 >0, MIN(AJ110,$I110-SUM($L110:AJ110)), MAX(AJ110,$I110-SUM($L110:AJ110)))","v":6.0633490045554028},{"$f":"IF($I110 >0, MIN(AK110,$I110-SUM($L110:AK110)), MAX(AK110,$I110-SUM($L110:AK110)))","v":6.0633490045554028},{"$f":"IF($I110 >0, MIN(AL110,$I110-SUM($L110:AL110)), MAX(AL110,$I110-SUM($L110:AL110)))","v":6.0633490045554028},{"$f":"IF($I110 >0, MIN(AM110,$I110-SUM($L110:AM110)), MAX(AM110,$I110-SUM($L110:AM110)))","v":6.0633490045554028},{"$f":"IF($I110 >0, MIN(AN110,$I110-SUM($L110:AN110)), MAX(AN110,$I110-SUM($L110:AN110)))","v":6.0633490045554028},{"$f":"IF($I110 >0, MIN(AO110,$I110-SUM($L110:AO110)), MAX(AO110,$I110-SUM($L110:AO110)))","v":6.0633490045554028},{"$f":"IF($I110 >0, MIN(AP110,$I110-SUM($L110:AP110)), MAX(AP110,$I110-SUM($L110:AP110)))","v":6.0633490045554028},{"$f":"IF($I110 >0, MIN(AQ110,$I110-SUM($L110:AQ110)), MAX(AQ110,$I110-SUM($L110:AQ110)))","v":6.0633490045554028}]
[null,null,null,null,"2014-03-31",null,"£m 12/13 prices",null,233.11146839106129,null,null,null,null,null,null,null,null,null,null,null,null,null,null,null,null,null,null,null,null,null,null,null,null,null,{"$f":"$I111/AH$82","v":7.000344396127967},{"$f":"IF($I111 >0, MIN(AI111,$I111-SUM($L111:AI111)), MAX(AI111,$I111-SUM($L111:AI111)))","v":7.000344396127967},{"$f":"IF($I111 >0, MIN(AJ111,$I111-SUM($L111:AJ111)), MAX(AJ111,$I111-SUM($L111:AJ111)))","v":7.000344396127967},{"$f":"IF($I111 >0, MIN(AK111,$I111-SUM($L111:AK111)), MAX(AK111,$I111-SUM($L111:AK111)))","v":7.000344396127967},{"$f":"IF($I111 >0, MIN(AL111,$I111-SUM($L111:AL111)), MAX(AL111,$I111-SUM($L111:AL111)))","v":7.000344396127967},{"$f":"IF($I111 >0, MIN(AM111,$I111-SUM($L111:AM111)), MAX(AM111,$I111-SUM($L111:AM111)))","v":7.000344396127967},{"$f":"IF($I111 >0, MIN(AN111,$I111-SUM($L111:AN111)), MAX(AN111,$I111-SUM($L111:AN111)))","v":7.000344396127967},{"$f":"IF($I111 >0, MIN(AO111,$I111-SUM($L111:AO111)), MAX(AO111,$I111-SUM($L111:AO111)))","v":7.000344396127967},{"$f":"IF($I111 >0, MIN(AP111,$I111-SUM($L111:AP111)), MAX(AP111,$I111-SUM($L111:AP111)))","v":7.000344396127967},{"$f":"IF($I111 >0, MIN(AQ111,$I111-SUM($L111:AQ111)), MAX(AQ111,$I111-SUM($L111:AQ111)))","v":7.000344396127967}]
[null,null,null,null,"2015-03-31",null,"£m 12/13 prices",null,221.39248025617775,null,null,null,null,null,null,null,null,null,null,null,null,null,null,null,null,null,null,null,null,null,null,null,null,null,null,{"$f":"$I112/AI$82","v":6.648422830515849},{"$f":"IF($I112 >0, MIN(AJ112,$I112-SUM($L112:AJ112)), MAX(AJ112,$I112-SUM($L112:AJ112)))","v":6.648422830515849},{"$f":"IF($I112 >0, MIN(AK112,$I112-SUM($L112:AK112)), MAX(AK112,$I112-SUM($L112:AK112)))","v":6.648422830515849},{"$f":"IF($I112 >0, MIN(AL112,$I112-SUM($L112:AL112)), MAX(AL112,$I112-SUM($L112:AL112)))","v":6.648422830515849},{"$f":"IF($I112 >0, MIN(AM112,$I112-SUM($L112:AM112)), MAX(AM112,$I112-SUM($L112:AM112)))","v":6.648422830515849},{"$f":"IF($I112 >0, MIN(AN112,$I112-SUM($L112:AN112)), MAX(AN112,$I112-SUM($L112:AN112)))","v":6.648422830515849},{"$f":"IF($I112 >0, MIN(AO112,$I112-SUM($L112:AO112)), MAX(AO112,$I112-SUM($L112:AO112)))","v":6.648422830515849},{"$f":"IF($I112 >0, MIN(AP112,$I112-SUM($L112:AP112)), MAX(AP112,$I112-SUM($L112:AP112)))","v":6.648422830515849},{"$f":"IF($I112 >0, MIN(AQ112,$I112-SUM($L112:AQ112)), MAX(AQ112,$I112-SUM($L112:AQ112)))","v":6.648422830515849}]
[null,null,null,null,"2016-03-31",null,"£m 12/13 prices",null,208.64001832372224,null,null,null,null,null,null,null,null,null,null,null,null,null,null,null,null,null,null,null,null,null,null,null,null,null,null,null,{"$f":"$I113/AJ$82","v":9.022271062647448},{"$f":"IF($I113 >0, MIN(AK113,$I113-SUM($L113:AK113)), MAX(AK113,$I113-SUM($L113:AK113)))","v":9.022271062647448},{"$f":"IF($I113 >0, MIN(AL113,$I113-SUM($L113:AL113)), MAX(AL113,$I113-SUM($L113:AL113)))","v":9.022271062647448},{"$f":"IF($I113 >0, MIN(AM113,$I113-SUM($L113:AM113)), MAX(AM113,$I113-SUM($L113:AM113)))","v":9.022271062647448},{"$f":"IF($I113 >0, MIN(AN113,$I113-SUM($L113:AN113)), MAX(AN113,$I113-SUM($L113:AN113)))","v":9.022271062647448},{"$f":"IF($I113 >0, MIN(AO113,$I113-SUM($L113:AO113)), MAX(AO113,$I113-SUM($L113:AO113)))","v":9.022271062647448},{"$f":"IF($I113 >0, MIN(AP113,$I113-SUM($L113:AP113)), MAX(AP113,$I113-SUM($L113:AP113)))","v":9.022271062647448},{"$f":"IF($I113 >0, MIN(AQ113,$I113-SUM($L113:AQ113)), MAX(AQ113,$I113-SUM($L113:AQ113)))","v":9.022271062647448}]
[null,null,null,null,"2017-03-31",null,"£m 12/13 prices",null,209.33131336751876,null,null,null,null,null,null,null,null,null,null,null,null,null,null,null,null,null,null,null,null,null,null,null,null,null,null,null,null,{"$f":"$I114/AK$82","v":7.9745262235245242},{"$f":"IF($I114 >0, MIN(AL114,$I114-SUM($L114:AL114)), MAX(AL114,$I114-SUM($L114:AL114)))","v":7.9745262235245242},{"$f":"IF($I114 >0, MIN(AM114,$I114-SUM($L114:AM114)), MAX(AM114,$I114-SUM($L114:AM114)))","v":7.9745262235245242},{"$f":"IF($I114 >0, MIN(AN114,$I114-SUM($L114:AN114)), MAX(AN114,$I114-SUM($L114:AN114)))","v":7.9745262235245242},{"$f":"IF($I114 >0, MIN(AO114,$I114-SUM($L114:AO114)), MAX(AO114,$I114-SUM($L114:AO114)))","v":7.9745262235245242},{"$f":"IF($I114 >0, MIN(AP114,$I114-SUM($L114:AP114)), MAX(AP114,$I114-SUM($L114:AP114)))","v":7.9745262235245242},{"$f":"IF($I114 >0, MIN(AQ114,$I114-SUM($L114:AQ114)), MAX(AQ114,$I114-SUM($L114:AQ114)))","v":7.9745262235245242}]
[null,null,null,null,"2018-03-31",null,"£m 12/13 prices",null,203.33521941504569,null,null,null,null,null,null,null,null,null,null,null,null,null,null,null,null,null,null,null,null,null,null,null,null,null,null,null,null,null,{"$f":"$I115/AL$82","v":6.9220500226398531},{"$f":"IF($I115 >0, MIN(AM115,$I115-SUM($L115:AM115)), MAX(AM115,$I115-SUM($L115:AM115)))","v":6.9220500226398531},{"$f":"IF($I115 >0, MIN(AN115,$I115-SUM($L115:AN115)), MAX(AN115,$I115-SUM($L115:AN115)))","v":6.9220500226398531},{"$f":"IF($I115 >0, MIN(AO115,$I115-SUM($L115:AO115)), MAX(AO115,$I115-SUM($L115:AO115)))","v":6.9220500226398531},{"$f":"IF($I115 >0, MIN(AP115,$I115-SUM($L115:AP115)), MAX(AP115,$I115-SUM($L115:AP115)))","v":6.9220500226398531},{"$f":"IF($I115 >0, MIN(AQ115,$I115-SUM($L115:AQ115)), MAX(AQ115,$I115-SUM($L115:AQ115)))","v":6.9220500226398531}]
[null,null,null,null,"2019-03-31",null,"£m 12/13 prices",null,206.49197456996353,null,null,null,null,null,null,null,null,null,null,null,null,null,null,null,null,null,null,null,null,null,null,null,null,null,null,null,null,null,null,{"$f":"$I116/AM$82","v":6.3535992175373392},{"$f":"IF($I116 >0, MIN(AN116,$I116-SUM($L116:AN116)), MAX(AN116,$I116-SUM($L116:AN116)))","v":6.3535992175373392},{"$f":"IF($I116 >0, MIN(AO116,$I116-SUM($L116:AO116)), MAX(AO116,$I116-SUM($L116:AO116)))","v":6.3535992175373392},{"$f":"IF($I116 >0, MIN(AP116,$I116-SUM($L116:AP116)), MAX(AP116,$I116-SUM($L116:AP116)))","v":6.3535992175373392},{"$f":"IF($I116 >0, MIN(AQ116,$I116-SUM($L116:AQ116)), MAX(AQ116,$I116-SUM($L116:AQ116)))","v":6.3535992175373392}]
[null,null,null,null,"2020-03-31",null,"£m 12/13 prices",null,212.76243146173931,null,null,null,null,null,null,null,null,null,null,null,null,null,null,null,null,null,null,null,null,null,null,null,null,null,null,null,null,null,null,null,{"$f":"$I117/AN$82","v":5.9722787778733846},{"$f":"IF($I117 >0, MIN(AO117,$I117-SUM($L117:AO117)), MAX(AO117,$I117-SUM($L117:AO117)))","v":5.9722787778733846},{"$f":"IF($I117 >0, MIN(AP117,$I117-SUM($L117:AP117)), MAX(AP117,$I117-SUM($L117:AP117)))","v":5.9722787778733846},{"$f":"IF($I117 >0, MIN(AQ117,$I117-SUM($L117:AQ117)), MAX(AQ117,$I117-SUM($L117:AQ117)))","v":5.9722787778733846}]
[null,null,null,null,"2021-03-31",null,"£m 12/13 prices",null,216.60837997824592,null,null,null,null,null,null,null,null,null,null,null,null,null,null,null,null,null,null,null,null,null,null,null,null,null,null,null,null,null,null,null,null,{"$f":"$I118/AO$82","v":5.589893676857959},{"$f":"IF($I118 >0, MIN(AP118,$I118-SUM($L118:AP118)), MAX(AP118,$I118-SUM($L118:AP118)))","v":5.589893676857959},{"$f":"IF($I118 >0, MIN(AQ118,$I118-SUM($L118:AQ118)), MAX(AQ118,$I118-SUM($L118:AQ118)))","v":5.589893676857959}]
[null,null,null,null,"2022-03-31",null,"£m 12/13 prices",null,{"$f":"INDEX($K$18:$AQ$18,1,MATCH(E119,$K$7:$AQ$7,0))","v":214.67632715785209},null,null,null,null,null,null,null,null,null,null,null,null,null,null,null,null,null,null,null,null,null,null,null,null,null,null,null,null,null,null,null,null,null,{"$f":"$I119/AP$82","v":5.1265988575009453},{"$f":"IF($I119 >0, MIN(AQ119,$I119-SUM($L119:AQ119)), MAX(AQ119,$I119-SUM($L119:AQ119)))","v":5.1265988575009453}]
[null,null,null,null,"2023-03-31",null,"£m 12/13 prices",null,216.87486343189767]
[]
[null,null,"Accelerated RAV differential post-vesting depreciation"]
[null,null,"Note: The RAV differential accumulated from the accelerated and non-accelerated schedules above is released once pre-vesting assets are fully depreciated over an input smoothing profile."]
[]
[null,null,null,"Depreciation parameters"]
[]
[null,null,null,null,"RAV differential is accruing differences",null,"flag",null,null,">",null,{"$f":"IF(L83, 1, 0)","v":1},1,1,1,1,1,1,1,1,1,1,1,1,1,{"$f":"IF(Z83, 1, 0)","v":1},0,0,0,0,0,0,0,0,0,0,0,0,0,0,0,0,0]
[null,null,null,null,"Smoothing period",null,"years",null,{"$f":"Input!I297","v":15}]
[null,null,null,null,"Smoothing profile for recovery of RAV differential",null,"%",null,null,null,null,{"$f":"IF($I128 = 0, 0, IF(AND(YEAR(L$7) >= YEAR($I$28) + IF($I$30=12,$I$29,$I$29+1), YEAR(L$7) < YEAR($I$28) + IF($I$30=12,$I$29,$I$29+1) + $I128), 1, 0) / $I128)","v":0},0,0,0,0,0,0,0,0,0,0,0,0,0,0,6.6666666666666666E-2,6.6666666666666666E-2,6.6666666666666666E-2,6.6666666666666666E-2,6.6666666666666666E-2,6.6666666666666666E-2,6.6666666666666666E-2,6.6666666666666666E-2,6.6666666666666666E-2,6.6666666666666666E-2,6.6666666666666666E-2,6.6666666666666666E-2,6.6666666666666666E-2,6.6666666666666666E-2,{"$f":"IF($I128 = 0, 0, IF(AND(YEAR(AO$7) >= YEAR($I$28) + IF($I$30=12,$I$29,$I$29+1), YEAR(AO$7) < YEAR($I$28) + IF($I$30=12,$I$29,$I$29+1) + $I128), 1, 0) / $I128)","v":6.6666666666666666E-2},{"$f":"IF($I128 = 0, 0, IF(AND(YEAR(AP$7) >= YEAR($I$28) + IF($I$30=12,$I$29,$I$29+1), YEAR(AP$7) < YEAR($I$28) + IF($I$30=12,$I$29,$I$29+1) + $I128), 1, 0) / $I128)","v":0},0]
[]
[null,null,null,"Pre-RIIO transfer to depreciation"]
[]
[null,null,null,null,"Year ending",null,null,null,null,null,{"$f":"K7","v":"1991-03-31"},"1992-03-31",{"$f":"M7","v":"1993-03-31"},"1994-03-31","1995-03-31","1996-03-31","1997-03-31","1998-03-31","1999-03-31","2000-03-31","2001-03-31","2002-03-31","2003-03-31","2004-03-31","2005-03-31","2006-03-31","2007-03-31","2008-03-31","2009-03-31","2010-03-31","2011-03-31","2012-03-31","2013-03-31","2014-03-31","2015-03-31","2016-03-31","2017-03-31","2018-03-31","2019-03-31","2020-03-31","2021-03-31","2022-03-31","2023-03-31"]
[null,null,null,null,"Pre-RIIO transfers to depreciation",null,null,null,null,null,{"$f":"K127 * K23","v":0},0,{"$f":"M127 * M23","v":0},0,0,0,0,0,0,0,0,0,0,0,0,0,0,0,0,0,0,0,0,0,0,0,0,0,0,0,0,0,0]
[]
[null,null,null,"Depreciation schedule"]
[]
[null,null,null,null,"RAV differential depreciation of additions from year ending",null,null,null,"RAV differential"]
[null,null,null,null,"1991-03-31",null,"£m 12/13 prices",null,{"$f":"SUMPRODUCT(L43:AQ43, L$127:AQ$127) - SUMPRODUCT(L88:AQ88, L$127:AQ$127) + HLOOKUP(E139,  $K$133:$AQ$134,2, FALSE)","v":8.8149194308964898},">",null,{"$f":"$I139 * L$129","v":0},0,0,0,0,0,0,0,0,0,0,0,0,0,0,0.5876612953930993,0.5876612953930993,0.5876612953930993,0.5876612953930993,0.5876612953930993,0.5876612953930993,0.5876612953930993,0.5876612953930993,0.5876612953930993,0.5876612953930993,0.5876612953930993,0.5876612953930993,0.5876612953930993,0.5876612953930993,0.5876612953930993,0,0]
[null,null,null,null,"1992-03-31",null,"£m 12/13 prices",null,{"$f":"SUMPRODUCT(L44:AQ44, L$127:AQ$127) - SUMPRODUCT(L89:AQ89, L$127:AQ$127) + HLOOKUP(E140,  $K$133:$AQ$134,2, FALSE)","v":28.946164748996232},">",null,null,0,0,0,0,0,0,0,0,0,0,0,0,0,0,1.9297443165997488,1.9297443165997488,1.9297443165997488,1.9297443165997488,1.9297443165997488,1.9297443165997488,1.9297443165997488,1.9297443165997488,1.9297443165997488,1.9297443165997488,1.9297443165997488,1.9297443165997488,1.9297443165997488,1.9297443165997488,1.9297443165997488,0,0,{"$f":"$I140 * AR$129","v":0}]
[null,null,null,null,"1993-03-31",null,"£m 12/13 prices",null,27.038573109500298,">",null,null,null,0,0,0,0,0,0,0,0,0,0,0,0,0,1.8025715406333531,1.8025715406333531,1.8025715406333531,1.8025715406333531,1.8025715406333531,1.8025715406333531,1.8025715406333531,1.8025715406333531,1.8025715406333531,1.8025715406333531,1.8025715406333531,1.8025715406333531,1.8025715406333531,1.8025715406333531,1.8025715406333531,0,0,0]
[null,null,null,null,"1994-03-31",null,"£m 12/13 prices",null,25.623263183422701,">",null,null,null,null,0,0,0,0,0,0,0,0,0,0,0,0,1.7082175455615134,1.7082175455615134,1.7082175455615134,1.7082175455615134,1.7082175455615134,1.7082175455615134,1.7082175455615134,1.7082175455615134,1.7082175455615134,1.7082175455615134,1.7082175455615134,1.7082175455615134,1.7082175455615134,1.7082175455615134,1.7082175455615134,0,0,0]
[null,null,null,null,"1995-03-31",null,"£m 12/13 prices",null,26.601673088841579,">",null,null,null,null,null,0,0,0,0,0,0,0,0,0,0,0,1.7734448725894385,1.7734448725894385,1.7734448725894385,1.7734448725894385,1.7734448725894385,1.7734448725894385,1.7734448725894385,1.7734448725894385,1.7734448725894385,1.7734448725894385,1.7734448725894385,1.7734448725894385,1.7734448725894385,1.7734448725894385,1.7734448725894385,0,0,0]
[null,null,null,null,"1996-03-31",null,"£m 12/13 prices",null,21.475789747873492,">",null,null,null,null,null,null,0,0,0,0,0,0,0,0,0,0,1.4317193165248994,1.4317193165248994,1.4317193165248994,1.4317193165248994,1.4317193165248994,1.4317193165248994,1.4317193165248994,1.4317193165248994,1.4317193165248994,1.4317193165248994,1.4317193165248994,1.4317193165248994,1.4317193165248994,1.4317193165248994,1.4317193165248994,0,0,0]
[null,null,null,null,"1997-03-31",null,"£m 12/13 prices",null,22.318822182102338,">",null,null,null,null,null,null,null,0,0,0,0,0,0,0,0,0,1.4879214788068225,1.4879214788068225,1.4879214788068225,1.4879214788068225,1.4879214788068225,1.4879214788068225,1.4879214788068225,1.4879214788068225,1.4879214788068225,1.4879214788068225,1.4879214788068225,1.4879214788068225,1.4879214788068225,1.4879214788068225,1.4879214788068225,0,0,0]
[null,null,null,null,"1998-03-31",null,"£m 12/13 prices",null,16.909876855918721,">",null,null,null,null,null,null,null,null,0,0,0,0,0,0,0,0,1.1273251237279147,1.1273251237279147,1.1273251237279147,1.1273251237279147,1.1273251237279147,1.1273251237279147,1.1273251237279147,1.1273251237279147,1.1273251237279147,1.1273251237279147,1.1273251237279147,1.1273251237279147,1.1273251237279147,1.1273251237279147,1.1273251237279147,0,0,0]
[null,null,null,null,"1999-03-31",null,"£m 12/13 prices",null,15.664729599071364,">",null,null,null,null,null,null,null,null,null,0,0,0,0,0,0,0,1.0443153066047577,1.0443153066047577,1.0443153066047577,1.0443153066047577,1.0443153066047577,1.0443153066047577,1.0443153066047577,1.0443153066047577,1.0443153066047577,1.0443153066047577,1.0443153066047577,1.0443153066047577,1.0443153066047577,1.0443153066047577,1.0443153066047577,0,0,0]
[null,null,null,null,"2000-03-31",null,"£m 12/13 prices",null,12.022912562567914,">",null,null,null,null,null,null,null,null,null,null,0,0,0,{"$f":"$I148 * X$129","v":0},0,0,0.80152750417119423,0.80152750417119423,0.80152750417119423,0.80152750417119423,0.80152750417119423,0.80152750417119423,0.80152750417119423,0.80152750417119423,0.80152750417119423,0.80152750417119423,0.80152750417119423,0.80152750417119423,0.80152750417119423,0.80152750417119423,0.80152750417119423,0,0,0]
[null,null,null,null,"2001-03-31",null,"£m 12/13 prices",null,10.156718717004487,">",null,null,null,null,null,null,null,null,null,null,null,{"$f":"$I149 * V$129","v":0},0,0,0,0,0.67711458113363254,0.67711458113363254,0.67711458113363254,0.67711458113363254,0.67711458113363254,0.67711458113363254,0.67711458113363254,0.67711458113363254,0.67711458113363254,0.67711458113363254,0.67711458113363254,0.67711458113363254,0.67711458113363254,0.67711458113363254,0.67711458113363254,0,0,0]
[null,null,null,null,"2002-03-31",null,"£m 12/13 prices",null,9.8209139247349686,">",null,null,null,null,null,null,null,null,null,null,null,null,0,0,0,0,0.65472759498233124,0.65472759498233124,0.65472759498233124,0.65472759498233124,0.65472759498233124,0.65472759498233124,0.65472759498233124,0.65472759498233124,0.65472759498233124,0.65472759498233124,0.65472759498233124,0.65472759498233124,0.65472759498233124,0.65472759498233124,0.65472759498233124,0,0,0]
[null,null,null,null,"2003-03-31",null,"£m 12/13 prices",null,{"$f":"SUMPRODUCT(L55:AQ55, L$127:AQ$127) - SUMPRODUCT(L100:AQ100, L$127:AQ$127) + HLOOKUP(E151,  $K$133:$AQ$134,2, FALSE)","v":6.8784932449306844},">",null,null,null,null,null,null,null,null,null,null,null,null,null,0,0,0,0.45856621632871231,0.45856621632871231,0.45856621632871231,0.45856621632871231,0.45856621632871231,0.45856621632871231,0.45856621632871231,0.45856621632871231,0.45856621632871231,0.45856621632871231,0.45856621632871231,0.45856621632871231,0.45856621632871231,0.45856621632871231,0.45856621632871231,0,0,0]
[null,null,null,null,"2004-03-31",null,"£m 12/13 prices",null,5.3768428683512948,">",null,null,null,null,null,null,null,null,null,null,null,null,null,null,0,0,0.35845619122341965,0.35845619122341965,0.35845619122341965,0.35845619122341965,0.35845619122341965,0.35845619122341965,0.35845619122341965,0.35845619122341965,0.35845619122341965,0.35845619122341965,0.35845619122341965,0.35845619122341965,0.35845619122341965,0.35845619122341965,0.35845619122341965,0,0,0]
[null,null,null,null,"2005-03-31",null,"£m 12/13 prices",null,2.2639300549303298,">",null,null,null,null,null,null,null,null,null,null,null,null,null,null,null,0,0.15092867032868865,0.15092867032868865,0.15092867032868865,0.15092867032868865,0.15092867032868865,0.15092867032868865,0.15092867032868865,0.15092867032868865,0.15092867032868865,0.15092867032868865,0.15092867032868865,0.15092867032868865,0.15092867032868865,0.15092867032868865,0.15092867032868865,0,0,0]
[null,null,null,null,"2006-03-31",null,"£m 12/13 prices",null,0,">",null,null,null,null,null,null,null,null,null,null,null,null,null,null,null,null,0,0,0,0,0,0,0,0,0,0,0,0,0,0,0,0,0,0]
[null,null,null,null,"2007-03-31",null,"£m 12/13 prices",null,0,">",null,null,null,null,null,null,null,null,null,null,null,null,null,null,null,null,null,0,0,0,0,0,0,0,0,0,0,0,0,0,0,0,0,0]
[null,null,null,null,"2008-03-31",null,"£m 12/13 prices",null,0,">",null,null,null,null,null,null,null,null,null,null,null,null,null,null,null,null,null,null,0,0,0,0,0,0,0,0,0,0,0,0,0,0,0,0]
[null,null,null,null,"2009-03-31",null,"£m 12/13 prices",null,0,">",null,null,null,null,null,null,null,null,null,null,null,null,null,null,null,null,null,null,null,0,0,0,0,0,0,0,0,0,0,0,0,0,0,0]
[null,null,null,null,"2010-03-31",null,"£m 12/13 prices",null,0,">",null,null,null,null,null,null,null,null,null,null,null,null,null,null,null,null,null,null,null,null,0,0,0,{"$f":"$I158 * AH$129","v":0},0,0,0,0,0,0,0,0,0,0]
[null,null,null,null,"2011-03-31",null,"£m 12/13 prices",null,0,">",null,null,null,null,null,null,null,null,null,null,null,null,null,null,null,null,null,null,null,null,null,{"$f":"$I159 * AF$129","v":0},0,0,0,0,0,0,0,0,0,0,0,0]
[null,null,null,null,"2012-03-31",null,"£m 12/13 prices",null,0,">",null,null,null,null,null,null,null,null,null,null,null,null,null,null,null,null,null,null,null,null,null,null,0,0,0,0,0,0,0,0,0,0,0,0]
[null,null,null,null,"2013-03-31",null,"£m 12/13 prices",null,0,null,null,null,null,null,null,null,null,null,null,null,null,null,null,null,null,null,null,null,null,null,null,null,null,0,0,0,0,0,0,0,0,0,0,0]
[null,null,null,null,"2014-03-31",null,"£m 12/13 prices",null,0,null,null,null,null,null,null,null,null,null,null,null,null,null,null,null,null,null,null,null,null,null,null,null,null,null,0,0,0,0,0,0,0,0,0,0]
[null,null,null,null,"2015-03-31",null,"£m 12/13 prices",null,0,null,null,null,null,null,null,null,null,null,null,null,null,null,null,null,null,null,null,null,null,null,null,null,null,null,null,0,0,0,0,0,0,0,0,0]
[null,null,null,null,"2016-03-31",null,"£m 12/13 prices",null,0,null,null,null,null,null,null,null,null,null,null,null,null,null,null,null,null,null,null,null,null,null,null,null,null,null,null,null,0,0,0,0,0,0,0,0]
[null,null,null,null,"2017-03-31",null,"£m 12/13 prices",null,0,null,null,null,null,null,null,null,null,null,null,null,null,null,null,null,null,null,null,null,null,null,null,null,null,null,null,null,null,0,0,0,0,0,0,0]
[null,null,null,null,"2018-03-31",null,"£m 12/13 prices",null,0,null,null,null,null,null,null,null,null,null,null,null,null,null,null,null,null,null,null,null,null,null,null,null,null,null,null,null,null,null,0,0,0,0,0,0]
[null,null,null,null,"2019-03-31",null,"£m 12/13 prices",null,0,null,null,null,null,null,null,null,null,null,null,null,null,null,null,null,null,null,null,null,null,null,null,null,null,null,null,null,null,null,null,0,0,0,0,0]
[null,null,null,null,"2020-03-31",null,"£m 12/13 prices",null,0,null,null,null,null,null,null,null,null,null,null,null,null,null,null,null,null,null,null,null,null,null,null,null,null,null,null,null,null,null,null,null,0,0,0,{"$f":"$I168 * AR$129","v":0}]
[null,null,null,null,"2021-03-31",null,"£m 12/13 prices",null,0,null,null,null,null,null,null,null,null,null,null,null,null,null,null,null,null,null,null,null,null,null,null,null,null,null,null,null,null,null,null,null,null,{"$f":"$I169 * AP$129","v":0},0,0]
[null,null,null,null,"2022-03-31",null,"£m 12/13 prices",null,0,null,null,null,null,null,null,null,null,null,null,null,null,null,null,null,null,null,null,null,null,null,null,null,null,null,null,null,null,null,null,null,null,null,0,0]
[null,null,null,null,"2023-03-31",null,"£m 12/13 prices",null,0]
[]
[null,null,"Depreciation values applied"]
[null,null,"Note: Before vesting assets are fully depreciated, regulatory depreciation is just non-accelerated depreciation. Afterwards it is accelerated depreciation plus any smoothed RAV differential value available."]
[]
[null,null,null,null,"Depreciation allowed on additions from year ending",null,null,null,"Net additions"]
[null,null,null,null,"1991-03-31",null,"£m 12/13 prices",null,{"$f":"I88","v":29.427249829458987},">",null,{"$f":"(L$83 * L88) + (L$38 * L43) + L139","v":0.88370119607984954},{"$f":"(M$83 * M88) + (M$38 * M43) + M139","v":0.88370119607984954},0.88370119607984954,0.88370119607984954,0.88370119607984954,0.88370119607984954,0.88370119607984954,0.88370119607984954,0.88370119607984954,0.88370119607984954,0.88370119607984954,0.88370119607984954,0.88370119607984954,0.88370119607984954,{"$f":"(Z$83 * Z88) + (Z$38 * Z43) + Z139","v":0.88370119607984954},2.0590237868660486,2.0590237868660486,2.0590237868660486,2.0590237868660486,{"$f":"(AE$83 * AE88) + (AE$38 * AE43) + AE139","v":2.0590237868660486},{"$f":"(AF$83 * AF88) + (AF$38 * AF43) + AF139","v":0.58766129539310996},0.5876612953930993,0.5876612953930993,0.5876612953930993,0.5876612953930993,0.5876612953930993,0.5876612953930993,0.5876612953930993,0.5876612953930993,0.5876612953930993,0,0]
[null,null,null,null,"1992-03-31",null,"£m 12/13 prices",null,103.53461720102848,">",null,null,3.1091476636945492,3.1091476636945492,3.1091476636945492,3.1091476636945492,3.1091476636945492,3.1091476636945492,3.1091476636945492,3.1091476636945492,3.1091476636945492,3.1091476636945492,3.1091476636945492,3.1091476636945492,3.1091476636945492,3.1091476636945492,7.1064751766511725,7.1064751766511725,7.1064751766511725,7.1064751766511725,7.1064751766511725,7.1064751766511725,1.9297443165997772,1.9297443165997488,1.9297443165997488,1.9297443165997488,1.9297443165997488,1.9297443165997488,1.9297443165997488,1.9297443165997488,1.9297443165997488,0,0,{"$f":"(AR$83 * AR89) + (AR$38 * AR44) + AR140","v":0}]
[null,null,null,null,"1993-03-31",null,"£m 12/13 prices",null,104.15089468436794,">",null,null,null,3.1276544950260647,3.1276544950260647,3.1276544950260647,3.1276544950260647,3.1276544950260647,3.1276544950260647,3.1276544950260647,3.1276544950260647,3.1276544950260647,3.1276544950260647,3.1276544950260647,3.1276544950260647,3.1276544950260647,7.0101162748517503,7.0101162748517503,7.0101162748517503,7.0101162748517503,7.0101162748517503,7.0101162748517503,7.0101162748517414,1.8025715406333531,1.8025715406333531,1.8025715406333531,1.8025715406333531,1.8025715406333531,1.8025715406333531,1.8025715406333531,1.8025715406333531,0,0,0]
[null,null,null,null,"1994-03-31",null,"£m 12/13 prices",null,106.92414335939549,">",null,null,null,null,3.2109352360178827,3.2109352360178827,3.2109352360178827,3.2109352360178827,3.2109352360178827,3.2109352360178827,3.2109352360178827,3.2109352360178827,3.2109352360178827,3.2109352360178827,3.2109352360178827,3.2109352360178827,7.0544247135312883,7.0544247135312883,7.0544247135312883,7.0544247135312883,7.0544247135312883,7.0544247135312883,7.0544247135312883,7.054424713531251,1.7082175455615134,1.7082175455615134,1.7082175455615134,1.7082175455615134,1.7082175455615134,1.7082175455615134,1.7082175455615134,0,0,0]
[null,null,null,null,"1995-03-31",null,"£m 12/13 prices",null,121.09852547620295,">",null,null,null,null,null,3.6365923566427316,3.6365923566427316,3.6365923566427316,3.6365923566427316,3.6365923566427316,3.6365923566427316,3.6365923566427316,3.6365923566427316,3.6365923566427316,3.6365923566427316,3.6365923566427316,7.8283711463995864,7.8283711463995864,7.8283711463995864,7.8283711463995864,7.8283711463995864,7.8283711463995864,7.8283711463995864,7.8283711463995864,7.8283711463995491,1.7734448725894385,1.7734448725894385,1.7734448725894385,1.7734448725894385,1.7734448725894385,1.7734448725894385,0,0,0]
[null,null,null,null,"1996-03-31",null,"£m 12/13 prices",null,107.54042084273492,">",null,null,null,null,null,null,3.2294420673493973,3.2294420673493973,3.2294420673493973,3.2294420673493973,3.2294420673493973,3.2294420673493973,3.2294420673493973,3.2294420673493973,3.2294420673493973,3.2294420673493973,6.8087403586616446,6.8087403586616446,6.8087403586616446,6.8087403586616446,6.8087403586616446,6.8087403586616446,6.8087403586616446,6.8087403586616446,6.8087403586616446,6.8087403586616446,1.4317193165248994,1.4317193165248994,1.4317193165248994,1.4317193165248994,1.4317193165248994,0,0,0]
[null,null,null,null,"1997-03-31",null,"£m 12/13 prices",null,124.17991289290022,">",null,null,null,null,null,null,null,3.7291265133003071,3.7291265133003071,3.7291265133003071,3.7291265133003071,3.7291265133003071,3.7291265133003071,3.7291265133003071,3.7291265133003071,3.7291265133003071,7.6969171234518337,7.6969171234518337,7.6969171234518337,7.6969171234518337,7.6969171234518337,7.6969171234518337,7.6969171234518337,7.6969171234518337,7.6969171234518337,7.6969171234518337,7.6969171234517946,1.4879214788068225,1.4879214788068225,1.4879214788068225,1.4879214788068225,0,0,0]
[null,null,null,null,"1998-03-31",null,"£m 12/13 prices",null,105.84565776355142,">",null,null,null,null,null,null,null,null,3.1785482811877306,3.1785482811877306,3.1785482811877306,3.1785482811877306,3.1785482811877306,3.1785482811877306,3.1785482811877306,3.1785482811877306,6.4196080119054857,6.4196080119054857,6.4196080119054857,6.4196080119054857,6.4196080119054857,6.4196080119054857,6.4196080119054857,6.4196080119054857,6.4196080119054857,6.4196080119054857,6.4196080119054857,6.4196080119054857,1.1273251237279573,1.1273251237279147,1.1273251237279147,0,0,0]
[null,null,null,null,"1999-03-31",null,"£m 12/13 prices",null,112.05918273879193,">",null,null,null,null,null,null,null,null,null,3.3651406227865448,3.3651406227865448,3.3651406227865448,3.3651406227865448,3.3651406227865448,3.3651406227865448,3.3651406227865448,6.6472744435443545,6.6472744435443545,6.6472744435443545,6.6472744435443545,6.6472744435443545,6.6472744435443545,6.6472744435443545,6.6472744435443545,6.6472744435443545,6.6472744435443545,6.6472744435443545,6.6472744435443545,6.6472744435443039,1.0443153066047577,1.0443153066047577,0,0,0]
[null,null,null,null,"2000-03-31",null,"£m 12/13 prices",null,100.34160108609318,">",null,null,null,null,null,null,null,null,null,null,3.0132612938766723,3.0132612938766723,3.0132612938766723,{"$f":"(X$83 * X97) + (X$38 * X52) + X148","v":3.0132612938766723},3.0132612938766723,3.0132612938766723,5.8186075584758523,5.8186075584758523,5.8186075584758523,5.8186075584758523,5.8186075584758523,5.8186075584758523,5.8186075584758523,5.8186075584758523,5.8186075584758523,5.8186075584758523,5.8186075584758523,5.8186075584758523,5.8186075584758523,5.8186075584758523,0.80152750417122265,0,0,0]
[null,null,null,null,"2001-03-31",null,"£m 12/13 prices",null,101.71991978233071,">",null,null,null,null,null,null,null,null,null,null,null,{"$f":"(V$83 * V98) + (V$38 * V53) + V149","v":3.0546522457156371},3.0546522457156371,3.0546522457156371,3.0546522457156371,3.0546522457156371,5.7631105702501673,5.7631105702501673,5.7631105702501673,5.7631105702501673,5.7631105702501673,5.7631105702501673,5.7631105702501673,5.7631105702501673,5.7631105702501673,5.7631105702501673,5.7631105702501673,5.7631105702501673,5.7631105702501673,5.7631105702501673,{"$f":"(AO$83 * AO98) + (AO$38 * AO53) + AO149","v":5.7631105702501584},{"$f":"(AP$83 * AP98) + (AP$38 * AP53) + AP149","v":0},0,0]
[null,null,null,null,"2002-03-31",null,"£m 12/13 prices",null,122.94602770438888,">",null,null,null,null,null,null,null,null,null,null,null,null,3.6920729040357023,3.6920729040357023,3.6920729040357023,3.6920729040357023,6.8020289802017757,6.8020289802017757,6.8020289802017757,6.8020289802017757,6.8020289802017757,6.8020289802017757,6.8020289802017757,6.8020289802017757,6.8020289802017757,6.8020289802017757,6.8020289802017757,6.8020289802017757,6.8020289802017757,6.8020289802017757,6.8020289802017757,6.1473013852194072,0,0]
[null,null,null,null,"2003-03-31",null,"£m 12/13 prices",null,114.81394739658739,">",null,null,null,null,null,null,null,null,null,null,null,null,null,3.447866288185808,3.447866288185808,3.447866288185808,6.1992635861580823,6.1992635861580823,6.1992635861580823,6.1992635861580823,6.1992635861580823,6.1992635861580823,6.1992635861580823,6.1992635861580823,6.1992635861580823,6.1992635861580823,6.1992635861580823,6.1992635861580823,6.1992635861580823,6.1992635861580823,6.1992635861580823,5.7406973698293697,5.74069736982932,0]
[null,null,null,null,"2004-03-31",null,"£m 12/13 prices",null,134.62320865872039,">",null,null,null,null,null,null,null,null,null,null,null,null,null,null,4.0427389987603721,4.0427389987603721,7.0896166241594392,7.0896166241594392,7.0896166241594392,7.0896166241594392,7.0896166241594392,7.0896166241594392,7.0896166241594392,7.0896166241594392,7.0896166241594392,7.0896166241594392,7.0896166241594392,7.0896166241594392,7.0896166241594392,7.0896166241594392,7.0896166241594392,6.7311604329360195,6.7311604329360195,0]
[null,null,null,null,"2005-03-31",null,"£m 12/13 prices",null,113.36672305139849,">",null,null,null,null,null,null,null,null,null,null,null,null,null,null,null,3.4044060976395949,5.8192648228986137,5.8192648228986137,5.8192648228986137,5.8192648228986137,5.8192648228986137,5.8192648228986137,5.8192648228986137,5.8192648228986137,5.8192648228986137,5.8192648228986137,5.8192648228986137,5.8192648228986137,5.8192648228986137,5.8192648228986137,5.8192648228986137,5.6683361525699247,5.6683361525699247,0]
[null,null,null,null,"2006-03-31",null,"£m 12/13 prices",null,174.21733037885991,">",null,null,null,null,null,null,null,null,null,null,null,null,null,null,null,null,8.7108665189429964,8.7108665189429964,8.7108665189429964,8.7108665189429964,8.7108665189429964,8.7108665189429964,8.7108665189429964,8.7108665189429964,8.7108665189429964,8.7108665189429964,8.7108665189429964,8.7108665189429964,8.7108665189429964,8.7108665189429964,8.7108665189429964,8.7108665189429964,8.7108665189429964,0]
[null,null,null,null,"2007-03-31",null,"£m 12/13 prices",null,165.13880270591514,">",null,null,null,null,null,null,null,null,null,null,null,null,null,null,null,null,null,8.256940135295757,8.256940135295757,8.256940135295757,8.256940135295757,8.256940135295757,8.256940135295757,8.256940135295757,8.256940135295757,8.256940135295757,8.256940135295757,8.256940135295757,8.256940135295757,8.256940135295757,8.256940135295757,8.256940135295757,8.256940135295757,0]
[null,null,null,null,"2008-03-31",null,"£m 12/13 prices",null,172.19424358687331,">",null,null,null,null,null,null,null,null,null,null,null,null,null,null,null,null,null,null,8.6097121793436653,8.6097121793436653,8.6097121793436653,8.6097121793436653,8.6097121793436653,8.6097121793436653,8.6097121793436653,8.6097121793436653,8.6097121793436653,8.6097121793436653,8.6097121793436653,8.6097121793436653,8.6097121793436653,8.6097121793436653,8.6097121793436653,0]
[null,null,null,null,"2009-03-31",null,"£m 12/13 prices",null,188.87459455264997,">",null,null,null,null,null,null,null,null,null,null,null,null,null,null,null,null,null,null,null,9.4437297276324976,9.4437297276324976,9.4437297276324976,9.4437297276324976,9.4437297276324976,9.4437297276324976,9.4437297276324976,9.4437297276324976,9.4437297276324976,9.4437297276324976,9.4437297276324976,9.4437297276324976,9.4437297276324976,9.4437297276324976,0]
[null,null,null,null,"2010-03-31",null,"£m 12/13 prices",null,179.75309706460266,">",null,null,null,null,null,null,null,null,null,null,null,null,null,null,null,null,null,null,null,null,8.9876548532301328,8.9876548532301328,8.9876548532301328,{"$f":"(AH$83 * AH107) + (AH$38 * AH62) + AH158","v":8.9876548532301328},8.9876548532301328,8.9876548532301328,8.9876548532301328,8.9876548532301328,8.9876548532301328,8.9876548532301328,8.9876548532301328,8.9876548532301328,8.9876548532301328,0]
[null,null,null,null,"2011-03-31",null,"£m 12/13 prices",null,185.11275789301999,">",null,null,null,null,null,null,null,null,null,null,null,null,null,null,null,null,null,null,null,null,null,{"$f":"(AF$83 * AF108) + (AF$38 * AF63) + AF159","v":9.2556378946509987},9.2556378946509987,9.2556378946509987,9.2556378946509987,9.2556378946509987,9.2556378946509987,9.2556378946509987,9.2556378946509987,9.2556378946509987,9.2556378946509987,9.2556378946509987,9.2556378946509987,0]
[null,null,null,null,"2012-03-31",null,"£m 12/13 prices",null,221.25861177530032,">",null,null,null,null,null,null,null,null,null,null,null,null,null,null,null,null,null,null,null,null,null,null,11.062930588765017,11.062930588765017,11.062930588765017,11.062930588765017,11.062930588765017,11.062930588765017,11.062930588765017,11.062930588765017,11.062930588765017,11.062930588765017,11.062930588765017,0]
[null,null,null,null,"2013-03-31",null,"£m 12/13 prices",null,201.9095218516949,null,null,null,null,null,null,null,null,null,null,null,null,null,null,null,null,null,null,null,null,null,null,null,null,10.095476092584745,10.095476092584745,10.095476092584745,10.095476092584745,10.095476092584745,10.095476092584745,10.095476092584745,10.095476092584745,10.095476092584745,10.095476092584745,0]
[null,null,null,null,"2014-03-31",null,"£m 12/13 prices",null,233.11146839106129,null,null,null,null,null,null,null,null,null,null,null,null,null,null,null,null,null,null,null,null,null,null,null,null,null,11.655573419553065,11.655573419553065,11.655573419553065,11.655573419553065,11.655573419553065,11.655573419553065,11.655573419553065,11.655573419553065,11.655573419553065,0]
[null,null,null,null,"2015-03-31",null,"£m 12/13 prices",null,221.39248025617775,null,null,null,null,null,null,null,null,null,null,null,null,null,null,null,null,null,null,null,null,null,null,null,null,null,null,11.069624012808887,11.069624012808887,11.069624012808887,11.069624012808887,11.069624012808887,11.069624012808887,11.069624012808887,11.069624012808887,0]
[null,null,null,null,"2016-03-31",null,"£m 12/13 prices",null,208.64001832372224,null,null,null,null,null,null,null,null,null,null,null,null,null,null,null,null,null,null,null,null,null,null,null,null,null,null,null,{"$f":"(AK$83 * AK113) + (AK$38 * AK68) + AK164","v":9.022271062647448},9.022271062647448,9.022271062647448,9.022271062647448,9.022271062647448,9.022271062647448,9.022271062647448,0]
[null,null,null,null,"2017-03-31",null,"£m 12/13 prices",null,209.33131336751876,null,null,null,null,null,null,null,null,null,null,null,null,null,null,null,null,null,null,null,null,null,null,null,null,null,null,null,null,7.9745262235245242,7.9745262235245242,7.9745262235245242,7.9745262235245242,7.9745262235245242,7.9745262235245242,0]
[null,null,null,null,"2018-03-31",null,"£m 12/13 prices",null,203.33521941504569,null,null,null,null,null,null,null,null,null,null,null,null,null,null,null,null,null,null,null,null,null,null,null,null,null,null,null,null,null,{"$f":"(AM$83 * AM115) + (AM$38 * AM70) + AM166","v":6.9220500226398531},6.9220500226398531,6.9220500226398531,6.9220500226398531,6.9220500226398531,0]
[null,null,null,null,"2019-03-31",null,"£m 12/13 prices",null,206.49197456996353,null,null,null,null,null,null,null,null,null,null,null,null,null,null,null,null,null,null,null,null,null,null,null,null,null,null,null,null,null,null,6.3535992175373392,6.3535992175373392,6.3535992175373392,6.3535992175373392,0]
[null,null,null,null,"2020-03-31",null,"£m 12/13 prices",null,212.76243146173931,null,null,null,null,null,null,null,null,null,null,null,null,null,null,null,null,null,null,null,null,null,null,null,null,null,null,null,null,null,null,null,5.9722787778733846,5.9722787778733846,5.9722787778733846,0]
[null,null,null,null,"2021-03-31",null,"£m 12/13 prices",null,216.60837997824592,null,null,null,null,null,null,null,null,null,null,null,null,null,null,null,null,null,null,null,null,null,null,null,null,null,null,null,null,null,null,null,null,{"$f":"(AP$83 * AP118) + (AP$38 * AP73) + AP169","v":5.589893676857959},5.589893676857959,0]
[null,null,null,null,"2022-03-31",null,"£m 12/13 prices",null,214.67632715785209,null,null,null,null,null,null,null,null,null,null,null,null,null,null,null,null,null,null,null,null,null,null,null,null,null,null,null,null,null,null,null,null,null,5.1265988575009453,0]
[null,null,null,null,"2023-03-31",null,"£m 12/13 prices",null,216.87486343189767]
[null,{"$f":"SUM(B177:B209)","v":0},{"$f":"SUM(C177:C209)","v":0},null,"Total",null,null,null,null,null,null,{"$f":"SUM(L177:L209)","v":0.88370119607984954},3.9928488597743987,7.1205033548004639,10.331438590818347,13.968030947461079,17.197473014810477,20.926599528110785,24.105147809298515,27.470288432085059,30.48354972596173,33.538201971677367,37.230274875713071,40.678141163898879,44.720880162659249,48.125286260298843,104.83370969695009,113.09064983224584,121.7003620115895,131.14409173922201,140.13174659245215,147.91602199563019,153.80222172434381,158.69015308271008,164.99951933429338,{"$f":"SUM(AJ177:AJ209)","v":170.01421707329217},{"$f":"SUM(AK177:AK209)","v":173.65946709380285},175.42499767268239,177.05476480714464,177.80540488774244,178.76060361131118,163.27025974444302,162.2495572167245]
[]
[]
[null,null,"RIIO opening value"]
[null,null,"Note: Cumulative values provide the opening values for the following year."]
[]
[null,null,null,null,"Cumulative net additions",null,"£m 12/13 prices",null,null,">",null,null,null,null,null,null,null,null,null,null,null,null,null,null,null,null,null,null,null,null,null,null,null,null,{"$f":"SUM($K18:AI18)","v":3545.5349409241066}]
[null,null,null,null,"Cumulative depreciation",null,"£m 12/13 prices",null,null,">",null,null,null,null,null,null,null,null,null,null,null,null,null,null,null,null,null,null,null,null,null,null,null,null,{"$f":"SUM($K$23:$AI$23) + SUM($K210:AI210)","v":1597.0808419028851}]
[]
[null,null,null,null,"Opening post-vesting RAV cost contribution",null,"£m 12/13 prices",null,null,null,null,null,null,null,null,null,null,null,null,null,null,null,null,null,null,null,null,null,null,null,null,null,null,null,null,{"$f":"AI216","v":3545.5349409241066}]
[null,null,null,null,"Opening post-vesting RAV accumulated depreciation contribution",null,"£m 12/13 prices",null,null,null,null,null,null,null,null,null,null,null,null,null,null,null,null,null,null,null,null,null,null,null,null,null,null,null,null,{"$f":"AI217","v":1597.0808419028851}]
[]
[null,null,null,null,"Checks to make sure depreciation does not exceed limit",null,{"$f":"IF(SUM(K225:K257)=0,\"OK\",\"Error\")","v":"OK"}]
[]
[null,null,null,null,"Date",null,"Depn",null,"Addition",null,"Exceeds? (1-yes, no-0)"]
[null,null,null,null,{"$f":"E177","v":"1991-03-31"},null,{"$f":"SUM(K177:AQ177)","v":29.427249829459008},null,{"$f":"I177","v":29.427249829458987},null,{"$f":"IF(ROUND(G225,6)>ROUND(I225,6),1,0)","v":0}]
[null,null,null,null,{"$f":"E178","v":"1992-03-31"},null,{"$f":"SUM(K178:AQ178)","v":103.53461720102852},null,{"$f":"I178","v":103.53461720102848},null,{"$f":"IF(ROUND(G226,6)>ROUND(I226,6),1,0)","v":0}]
[null,null,null,null,"1993-03-31",null,104.15089468436791,null,104.15089468436794,null,0]
[null,null,null,null,"1994-03-31",null,106.92414335939543,null,106.92414335939549,null,0]
[null,null,null,null,"1995-03-31",null,121.09852547620292,null,121.09852547620295,null,0]
[null,null,null,null,"1996-03-31",null,107.54042084273497,null,107.54042084273492,null,0]
[null,null,null,null,"1997-03-31",null,124.17991289290023,null,124.17991289290022,null,0]
[null,null,null,null,"1998-03-31",null,105.84565776355144,null,105.84565776355142,null,0]
[null,null,null,null,"1999-03-31",null,112.05918273879185,null,112.05918273879193,null,0]
[null,null,null,null,"2000-03-31",null,100.34160108609316,null,100.34160108609318,null,0]
[null,null,null,null,"2001-03-31",null,101.71991978233068,null,101.71991978233071,null,0]
[null,null,null,null,"2002-03-31",null,122.94602770438891,null,122.94602770438888,null,0]
[null,null,null,null,"2003-03-31",null,114.81394739658734,null,114.81394739658739,null,0]
[null,null,null,null,"2004-03-31",null,127.89204822578434,null,134.62320865872039,null,0]
[null,null,null,null,"2005-03-31",null,102.03005074625868,null,113.36672305139849,null,0]
[null,null,null,null,"2006-03-31",null,148.08473082203091,null,174.21733037885991,null,0]
[null,null,null,null,"2007-03-31",null,132.11104216473217,null,165.13880270591514,null,0]
[null,null,null,null,"2008-03-31",null,129.14568269015496,null,172.19424358687331,null,0]
[null,null,null,null,"2009-03-31",null,132.21221618685499,null,188.87459455264997,null,0]
[null,null,null,null,"2010-03-31",null,116.83951309199176,null,179.75309706460266,null,0]
[null,null,null,null,"2011-03-31",null,111.06765473581201,null,185.11275789301999,null,0]
[null,null,null,null,"2012-03-31",null,121.69223647641516,null,221.25861177530032,null,0]
[null,null,null,null,"2013-03-31",null,100.95476092584745,null,201.9095218516949,null,0]
[null,null,null,null,"2014-03-31",null,104.90016077597758,null,233.11146839106129,null,0]
[null,null,null,null,"2015-03-31",null,88.556992102471099,null,221.39248025617775,null,0]
[null,null,null,null,"2016-03-31",null,63.155897438532136,null,208.64001832372224,null,0]
[null,null,null,null,"2017-03-31",null,47.847157341147138,null,209.33131336751876,null,0]
[null,null,null,null,"2018-03-31",null,34.610250113199264,null,203.33521941504569,null,0]
[null,null,null,null,"2019-03-31",null,25.414396870149357,null,206.49197456996353,null,0]
[null,null,null,null,"2020-03-31",null,17.916836333620154,null,212.76243146173931,null,0]
[null,null,null,null,"2021-03-31",null,11.179787353715918,null,216.60837997824592,null,0]
[null,null,null,null,"2022-03-31",null,5.1265988575009453,null,214.67632715785209,null,0]
[null,null,null,null,"2023-03-31",null,0,null,216.87486343189767,null,0]

{"sheet":"Return&RAV","index":10,"n_rows":79,"n_cols":43,"rows_kept":79,"cut":false,"hidden":false,"merged":[]}
["Return & RAV"]
[null,{"$f":"UserInterface!G24","v":"WMID"},null,null,null,null,null,null,null,null,null,null,null,null,null,null,null,null,null,null,null,null,null,null,null,null,null,null,null,null,null,null,null,null,null,"Done"]
[]
[]
[]
[null,null,null,null,"Parameter",null,"Units",null,"Constant",null,null,null,null,null,null,null,null,null,null,null,null,null,null,null,null,null,null,null,null,null,null,null,null,null,null,"Annual values"]
[null,null,null,null,"PCFM year ending",null,null,null,{"$f":"UserInterface!$G$17","v":"2016-03-31"},null,"1991-03-31","1992-03-31","1993-03-31","1994-03-31","1995-03-31","1996-03-31","1997-03-31","1998-03-31","1999-03-31","2000-03-31","2001-03-31","2002-03-31","2003-03-31","2004-03-31","2005-03-31","2006-03-31","2007-03-31","2008-03-31","2009-03-31","2010-03-31","2011-03-31","2012-03-31","2013-03-31","2014-03-31","2015-03-31","2016-03-31","2017-03-31","2018-03-31","2019-03-31","2020-03-31","2021-03-31","2022-03-31","2023-03-31"]
[]
[null,"Return"]
[]
[null,null,"Return base"]
[null,null,"Note: The \"Return base\" is calculated such that the net present value of the stream of depreciation and return flowing from a RAV addition is equal to the present value of the addition itself."]
[]
[null,null,null,"Present value of closing RAV"]
[]
[null,null,null,null,"Vanilla WACC",null,"annual real %",null,null,null,null,null,null,null,null,null,null,null,null,null,null,null,null,null,null,null,null,null,null,null,null,null,null,null,null,{"$f":"Input!AJ48","v":4.2429999999999995E-2},{"$f":"Input!AK48","v":4.2429999999999995E-2},{"$f":"Input!AL48","v":4.2429999999999995E-2},{"$f":"Input!AM48","v":4.2429999999999995E-2},{"$f":"Input!AN48","v":4.2429999999999995E-2},{"$f":"Input!AO48","v":4.2429999999999995E-2},{"$f":"Input!AP48","v":4.2429999999999995E-2},{"$f":"Input!AQ48","v":4.2429999999999995E-2}]
[null,null,null,null,"Single year discount factor",null,"scalar",null,null,null,null,null,null,null,null,null,null,null,null,null,null,null,null,null,null,null,null,null,null,null,null,null,null,null,null,{"$f":"1 / (1 + AJ16)","v":0.95929702713851295},{"$f":"1 / (1 + AK16)","v":0.95929702713851295},0.95929702713851295,0.95929702713851295,0.95929702713851295,0.95929702713851295,0.95929702713851295,0.95929702713851295]
[]
[null,null,null,null,"Closing RAV",null,"£m 12/13 prices",null,null,null,null,null,null,null,null,null,null,null,null,null,null,null,null,null,null,null,null,null,null,null,null,null,null,null,null,{"$f":"AJ47","v":1964.7511373926034},2000.4229836663189,2028.3332054086823,2057.7704151715011,2092.7274417454978,2130.5752181124326,2181.9812855258415,2236.6065917410147]
[]
[null,null,null,null,"Discounted closing RAV",null,"£m 12/13 prices",null,null,null,null,null,null,null,null,null,null,null,null,null,null,null,null,null,null,null,null,null,null,null,null,null,null,null,null,{"$f":"AJ19 * AJ17","v":1884.7799251677363},1918.9998212506539,1945.7740139948796,1974.0130418076046,2007.5472134776417,2043.8544728302454,2093.1681604768105,2145.570054335557]
[]
[null,null,null,"NPV-neutral RAV return base"]
[]
[null,null,null,null,"Opening RAV (after transfers)",null,"£m 12/13 prices",null,null,null,null,null,null,null,null,null,null,null,null,null,null,null,null,null,null,null,null,null,null,null,null,null,null,null,null,{"$f":"AJ44","v":1926.1253361421734},1964.7511373926034,2000.4229836663189,2028.3332054086823,2057.7704151715011,2092.7274417454978,2130.5752181124326,2181.9812855258415]
[null,null,null,null,"Discounted closing RAV",null,"£m 12/13 prices",null,null,null,null,null,null,null,null,null,null,null,null,null,null,null,null,null,null,null,null,null,null,null,null,null,null,null,null,{"$f":"AJ21","v":1884.7799251677363},{"$f":"AK21","v":1918.9998212506539},1945.7740139948796,1974.0130418076046,2007.5472134776417,2043.8544728302454,2093.1681604768105,2145.570054335557]
[]
[null,null,null,null,"NPV-neutral RAV return base",null,"£m 12/13 prices",null,null,null,null,null,null,null,null,null,null,null,null,null,null,null,null,null,null,null,null,null,null,null,null,null,null,null,null,{"$f":"AVERAGE(AJ25:AJ26)","v":1905.4526306549549},{"$f":"AVERAGE(AK25:AK26)","v":1941.8754793216285},1973.0984988305993,2001.1731236081434,2032.6588143245713,2068.2909572878716,2111.8716892946213,2163.7756699306992]
[]
[null,null,"Return on RAV"]
[]
[null,null,null,null,"NPV-neutral RAV return base",null,"£m 12/13 prices",null,null,null,null,null,null,null,null,null,null,null,null,null,null,null,null,null,null,null,null,null,null,null,null,null,null,null,null,{"$f":"AJ28","v":1905.4526306549549},{"$f":"AK28","v":1941.8754793216285},1973.0984988305993,2001.1731236081434,2032.6588143245713,2068.2909572878716,2111.8716892946213,2163.7756699306992]
[null,null,null,null,"Vanilla WACC",null,"annual real %",null,null,null,null,null,null,null,null,null,null,null,null,null,null,null,null,null,null,null,null,null,null,null,null,null,null,null,null,{"$f":"AJ16","v":4.2429999999999995E-2},{"$f":"AK16","v":4.2429999999999995E-2},4.2429999999999995E-2,4.2429999999999995E-2,4.2429999999999995E-2,4.2429999999999995E-2,4.2429999999999995E-2,4.2429999999999995E-2]
[]
[null,null,null,null,"Return",null,"£m 12/13 prices",null,null,null,null,null,null,null,null,null,null,null,null,null,null,null,null,null,null,null,null,null,null,null,null,null,null,null,null,{"$f":"AJ32 * AJ33","v":80.848355118689724},{"$f":"AK32 * AK33","v":82.393776587616685},83.718569305382317,84.909775634693517,86.245713491791548,87.757585317724377,89.60671577677077,91.809001675159564]
[]
[null,"RAV"]
[null,"Note: The RAV is presented separate pre-vesting and post-vesting balances brought together to form a combined \"Running total.\""]
[]
[null,null,"Running total"]
[]
[null,null,null,null,"Opening RAV (before transfers)",null,"£m 12/13 prices",null,null,null,null,null,null,null,null,null,null,null,null,null,null,null,null,null,null,null,null,null,null,null,null,null,null,null,null,{"$f":"(AJ56 - AJ64)-AJ76","v":1926.1253361421734},{"$f":"AJ47","v":1964.7511373926034},2000.4229836663189,2028.3332054086823,2057.7704151715011,2092.7274417454978,2130.5752181124326,2181.9812855258415]
[null,null,null,null,"Transfers",null,"£m 12/13 prices",null,null,null,null,null,null,null,null,null,null,null,null,null,null,null,null,null,null,null,null,null,null,null,null,null,null,null,null,{"$f":"(AJ57 - AJ65)","v":0},0,0,0,0,0,0,0]
[null,null,null,null,"Opening RAV (after transfers)",null,"£m 12/13 prices",null,null,null,null,null,null,null,null,null,null,null,null,null,null,null,null,null,null,null,null,null,null,null,null,null,null,null,null,{"$f":"SUM(AJ42:AJ43)","v":1926.1253361421734},1964.7511373926034,2000.4229836663189,2028.3332054086823,2057.7704151715011,2092.7274417454978,2130.5752181124326,2181.9812855258415]
[null,null,null,null,"Net additions (after disposals)",null,"£m 12/13 prices",null,null,null,null,null,null,null,null,null,null,null,null,null,null,null,null,null,null,null,null,null,null,null,null,null,null,null,null,{"$f":"AJ59","v":208.64001832372224},{"$f":"AK59","v":209.33131336751876},203.33521941504569,206.49197456996353,212.76243146173931,216.60837997824592,214.67632715785209,216.87486343189767]
[null,null,null,null,"Depreciation",null,"£m 12/13 prices",null,null,null,null,null,null,null,null,null,null,null,null,null,null,null,null,null,null,null,null,null,null,null,null,null,null,null,null,{"$f":"-( AJ67)","v":-170.01421707329217},{"$f":"-( AK67)","v":-173.65946709380285},-175.42499767268239,-177.05476480714464,-177.80540488774244,-178.76060361131118,-163.27025974444302,-162.2495572167245]
[null,null,null,null,"Closing RAV",null,"£m 12/13 prices",null,null,null,null,null,null,null,null,null,null,null,null,null,null,null,null,null,null,null,null,null,null,null,null,null,null,null,null,{"$f":"SUM(AJ44:AJ46)","v":1964.7511373926034},{"$f":"SUM(AK44:AK46)","v":2000.4229836663189},2028.3332054086823,2057.7704151715011,2092.7274417454978,2130.5752181124326,2181.9812855258415,2236.6065917410147]
[]
[]
[null,null,"Post-vesting balance"]
[null,null,"Note: Post-vesting RAV opening balances are generated from calculations built up since vesting. Net additions (after disposals), depreciation and removals are calculated principally on the \"Depn\" sheet."]
[null,null,"Assets with non-standard depreciation policies applied or that are transferred to the RAV during the price control are also brought into the RAV here."]
[]
[null,null,null,"Cost"]
[]
[null,null,null,null,"Opening balance brought forward (before transfers)",null,"£m 12/13 prices",null,null,null,null,null,null,null,null,null,null,null,null,null,null,null,null,null,null,null,null,null,null,null,null,null,null,null,null,{"$f":"Depn!AJ219","v":3545.5349409241066},{"$f":"AJ60","v":3754.1749592478291},3963.5062726153478,4166.8414920303931,4373.3334666003566,4586.0958980620962,4802.7042780403426,5017.3806051981946]
[null,null,null,null,"Transfers",null,"£m 12/13 prices"]
[null,null,null,null,"Opening balance brought forward (after transfers)",null,"£m 12/13 prices",null,null,null,null,null,null,null,null,null,null,null,null,null,null,null,null,null,null,null,null,null,null,null,null,null,null,null,null,{"$f":"SUM(AJ56:AJ57)","v":3545.5349409241066},3754.1749592478291,3963.5062726153478,4166.8414920303931,4373.3334666003566,4586.0958980620962,4802.7042780403426,5017.3806051981946]
[null,null,null,null,"Net additions (after disposals)",null,"£m 12/13 prices",null,null,null,null,null,null,null,null,null,null,null,null,null,null,null,null,null,null,null,null,null,null,null,null,null,null,null,null,{"$f":"Depn!AJ18","v":208.64001832372224},{"$f":"Depn!AK18","v":209.33131336751876},{"$f":"Depn!AL18","v":203.33521941504569},{"$f":"Depn!AM18","v":206.49197456996353},{"$f":"Depn!AN18","v":212.76243146173931},{"$f":"Depn!AO18","v":216.60837997824592},{"$f":"Depn!AP18","v":214.67632715785209},{"$f":"Depn!AQ18","v":216.87486343189767}]
[null,null,null,null,"Closing value carried forward",null,"£m 12/13 prices",null,null,null,null,null,null,null,null,null,null,null,null,null,null,null,null,null,null,null,null,null,null,null,null,null,null,null,null,{"$f":"AJ58 + AJ59","v":3754.1749592478291},3963.5062726153478,{"$f":"AL58 + AL59","v":4166.8414920303931},{"$f":"AM58 + AM59","v":4373.3334666003566},4586.0958980620962,4802.7042780403426,5017.3806051981946,5234.2554686300919]
[]
[null,null,null,"Cumulative depreciation"]
[]
[null,null,null,null,"Opening balance brought forward (before transfers)",null,"£m 12/13 prices",null,null,null,null,null,null,null,null,null,null,null,null,null,null,null,null,null,null,null,null,null,null,null,null,null,null,null,null,{"$f":"Depn!AJ220","v":1597.0808419028851},{"$f":"AJ68","v":1767.0950589761774},1940.7545260699803,2116.1795237426627,2293.2342885498074,2471.0396934375499,2649.800297048861,2813.0705567933041]
[null,null,null,null,null,null,"£m 12/13 prices"]
[null,null,null,null,"Opening balance brought forward (after transfers)",null,"£m 12/13 prices",null,null,null,null,null,null,null,null,null,null,null,null,null,null,null,null,null,null,null,null,null,null,null,null,null,null,null,null,{"$f":"SUM(AJ64:AJ65)","v":1597.0808419028851},1767.0950589761774,1940.7545260699803,2116.1795237426627,2293.2342885498074,2471.0396934375499,2649.800297048861,2813.0705567933041]
[null,null,null,null,"Depreciation",null,"£m 12/13 prices",null,null,null,null,null,null,null,null,null,null,null,null,null,null,null,null,null,null,null,null,null,null,null,null,null,null,null,null,{"$f":"Depn!AJ210","v":170.01421707329217},{"$f":"Depn!AK210","v":173.65946709380285},{"$f":"Depn!AL210","v":175.42499767268239},{"$f":"Depn!AM210","v":177.05476480714464},{"$f":"Depn!AN210","v":177.80540488774244},{"$f":"Depn!AO210","v":178.76060361131118},{"$f":"Depn!AP210","v":163.27025974444302},{"$f":"Depn!AQ210","v":162.2495572167245}]
[null,null,null,null,"Closing value carried forward",null,"£m 12/13 prices",null,null,null,null,null,null,null,null,null,null,null,null,null,null,null,null,null,null,null,null,null,null,null,null,null,null,null,null,{"$f":"AJ66 + AJ67","v":1767.0950589761774},{"$f":"AK66 + AK67","v":1940.7545260699803},2116.1795237426627,2293.2342885498074,2471.0396934375499,2649.800297048861,2813.0705567933041,2975.3201140100286]
[]
[null,null,null,"Asset balance"]
[]
[null,null,null,null,"Net value after regulatory depreciation",null,"£m 12/13 prices",null,null,null,null,null,null,null,null,null,null,null,null,null,null,null,null,null,null,null,null,null,null,null,null,null,null,null,null,{"$f":"AJ60 - AJ68","v":1987.0799002716517},2022.7517465453675,2050.6619682877304,2080.0991780505492,2115.0562046245464,2152.9039809914816,2204.3100484048905,2258.9353546200632]
[]
[null,null,"Metering Write Off"]
[]
[null,null,null,null,"Amount",null,"£m 12/13 prices",null,null,null,null,null,null,null,null,null,null,null,null,null,null,null,null,null,null,null,null,null,null,null,null,null,null,null,null,{"$f":"Input!I290","v":22.328762879048202}]
[]
[]
[null,"End of sheet"]

{"sheet":"TaxPools","index":11,"n_rows":123,"n_cols":43,"rows_kept":123,"cut":false,"hidden":false,"merged":[]}
["Tax Pools"]
[null,{"$f":"UserInterface!G24","v":"WMID"},null,null,null,null,null,null,null,null,null,null,null,null,null,null,null,null,null,null,null,null,null,null,null,null,null,null,null,null,null,null,null,null,null,"Done"]
[]
[]
[]
[null,null,null,null,"Parameter",null,"Units",null,"Constant",null,null,null,null,null,null,null,null,null,null,null,null,null,null,null,null,null,null,null,null,null,null,null,null,null,null,"Annual values"]
[null,null,null,null,"PCFM year ending",null,null,null,{"$f":"UserInterface!$G$17","v":"2016-03-31"},null,"1991-03-31","1992-03-31","1993-03-31","1994-03-31","1995-03-31","1996-03-31","1997-03-31","1998-03-31","1999-03-31","2000-03-31","2001-03-31","2002-03-31","2003-03-31","2004-03-31","2005-03-31","2006-03-31","2007-03-31","2008-03-31","2009-03-31","2010-03-31","2011-03-31","2012-03-31","2013-03-31","2014-03-31","2015-03-31","2016-03-31","2017-03-31","2018-03-31","2019-03-31","2020-03-31","2021-03-31","2022-03-31","2023-03-31"]
[]
[null,"Tax pool additions"]
[null,"Note: Actual totex is combined with other expenditure and allocated to tax pools. Each cost sub-category can have its own percentage split between each pool."]
[]
[null,null,"Expenditure categories allocated to tax pools"]
[]
[null,null,null,"Actual totex"]
[]
[null,null,null,null,"Load related capex",null,"£m 12/13 prices",null,null,null,null,null,null,null,null,null,null,null,null,null,null,null,null,null,null,null,null,null,null,null,null,null,null,null,null,{"$f":"Totex!AJ78","v":23.712681112648937},{"$f":"Totex!AK78","v":24.593474157092636},{"$f":"Totex!AL78","v":23.421714123686112},{"$f":"Totex!AM78","v":27.807007913635879},{"$f":"Totex!AN78","v":30.133106520414039},{"$f":"Totex!AO78","v":27.215907151322639},{"$f":"Totex!AP78","v":31.094740057889194},{"$f":"Totex!AQ78","v":35.256453582127911}]
[null,null,null,null,"Non-load related capex - asset replacement",null,"£m 12/13 prices",null,null,null,null,null,null,null,null,null,null,null,null,null,null,null,null,null,null,null,null,null,null,null,null,null,null,null,null,{"$f":"Totex!AJ79","v":83.606143295979109},{"$f":"Totex!AK79","v":85.042823494752923},{"$f":"Totex!AL79","v":84.520763994466932},{"$f":"Totex!AM79","v":85.985538767387709},{"$f":"Totex!AN79","v":86.614990303954357},{"$f":"Totex!AO79","v":92.224696071468813},{"$f":"Totex!AP79","v":89.221113686595302},{"$f":"Totex!AQ79","v":89.307050123419572}]
[null,null,null,null,"Non-load related capex - other",null,"£m 12/13 prices",null,null,null,null,null,null,null,null,null,null,null,null,null,null,null,null,null,null,null,null,null,null,null,null,null,null,null,null,{"$f":"Totex!AJ80","v":22.002353105611281},{"$f":"Totex!AK80","v":20.400734359732638},{"$f":"Totex!AL80","v":14.548355734361138},{"$f":"Totex!AM80","v":12.011913228608508},{"$f":"Totex!AN80","v":15.958310830003677},{"$f":"Totex!AO80","v":17.945552894768298},{"$f":"Totex!AP80","v":15.522143220034565},{"$f":"Totex!AQ80","v":13.378680782127041}]
[null,null,null,null,"Faults",null,"£m 12/13 prices",null,null,null,null,null,null,null,null,null,null,null,null,null,null,null,null,null,null,null,null,null,null,null,null,null,null,null,null,{"$f":"Totex!AJ81","v":29.808216861593987},{"$f":"Totex!AK81","v":29.729609426991864},{"$f":"Totex!AL81","v":29.537392397161881},{"$f":"Totex!AM81","v":29.473882575372325},{"$f":"Totex!AN81","v":29.408396728197097},{"$f":"Totex!AO81","v":29.460995207946453},{"$f":"Totex!AP81","v":29.564232842866502},{"$f":"Totex!AQ81","v":29.657126735786527}]
[null,null,null,null,"Tree cutting",null,"£m 12/13 prices",null,null,null,null,null,null,null,null,null,null,null,null,null,null,null,null,null,null,null,null,null,null,null,null,null,null,null,null,{"$f":"Totex!AJ82","v":8.1828742030734372},{"$f":"Totex!AK82","v":8.208633246856742},{"$f":"Totex!AL82","v":8.2147790048471165},{"$f":"Totex!AM82","v":8.2711943632667904},{"$f":"Totex!AN82","v":8.3281763807515148},{"$f":"Totex!AO82","v":8.3861343080579367},{"$f":"Totex!AP82","v":8.4421151511576138},{"$f":"Totex!AQ82","v":8.5020101597223565}]
[null,null,null,null,"Controllable opex",null,"£m 12/13 prices",null,null,null,null,null,null,null,null,null,null,null,null,null,null,null,null,null,null,null,null,null,null,null,null,null,null,null,null,{"$f":"Totex!AJ83","v":93.487754325746067},{"$f":"Totex!AK83","v":93.688867023971653},{"$f":"Totex!AL83","v":93.926019014283895},{"$f":"Totex!AM83","v":94.565431364183212},{"$f":"Totex!AN83","v":95.510058563853406},{"$f":"Totex!AO83","v":95.527189339243264},{"$f":"Totex!AP83","v":94.501063988771946},{"$f":"Totex!AQ83","v":94.992257906688664}]
[null,null,null,null,"Actual totex",null,"£m 12/13 prices",null,null,null,null,null,null,null,null,null,null,null,null,null,null,null,null,null,null,null,null,null,null,null,null,null,null,null,null,{"$f":"SUM(AJ16:AJ21)","v":260.80002290465279},261.66414170939845,254.16902426880708,258.11496821245441,265.95303932717411,270.7604749728074,268.34540894731509,271.09357928987208]
[]
[null,null,"Tax pool allocation"]
[]
[null,null,null,"General pool"]
[]
[null,null,null,null,"Load related capex allocation",null,"%",null,null,null,null,null,null,null,null,null,null,null,null,null,null,null,null,null,null,null,null,null,null,null,null,null,null,null,null,{"$f":"Input!AJ344","v":0},{"$f":"Input!AK344","v":0},{"$f":"Input!AL344","v":0},{"$f":"Input!AM344","v":0},{"$f":"Input!AN344","v":0},{"$f":"Input!AO344","v":0},{"$f":"Input!AP344","v":0},{"$f":"Input!AQ344","v":0}]
[null,null,null,null,"Non-load related capex - asset replacement",null,"%",null,null,null,null,null,null,null,null,null,null,null,null,null,null,null,null,null,null,null,null,null,null,null,null,null,null,null,null,{"$f":"Input!AJ345","v":3.4058844306266857E-2},{"$f":"Input!AK345","v":3.6292893053561252E-2},{"$f":"Input!AL345","v":3.9481923871532841E-2},{"$f":"Input!AM345","v":3.9547951375669944E-2},{"$f":"Input!AN345","v":3.6514773921621176E-2},{"$f":"Input!AO345","v":3.1716152952275867E-2},{"$f":"Input!AP345","v":3.2952948598146299E-2},{"$f":"Input!AQ345","v":3.1079535836379263E-2}]
[null,null,null,null,"Non-load related capex - other allocation",null,"%",null,null,null,null,null,null,null,null,null,null,null,null,null,null,null,null,null,null,null,null,null,null,null,null,null,null,null,null,{"$f":"Input!AJ346","v":0.93135190303990512},{"$f":"Input!AK346","v":0.93902891443419256},{"$f":"Input!AL346","v":0.93479847764792601},{"$f":"Input!AM346","v":0.92226671923794123},{"$f":"Input!AN346","v":0.96905889299347614},{"$f":"Input!AO346","v":0.96474533949287322},{"$f":"Input!AP346","v":0.97282849544829697},{"$f":"Input!AQ346","v":0.96363491219482766}]
[null,null,null,null,"Faults",null,"%",null,null,null,null,null,null,null,null,null,null,null,null,null,null,null,null,null,null,null,null,null,null,null,null,null,null,null,null,{"$f":"Input!AJ347","v":0},{"$f":"Input!AK347","v":0},{"$f":"Input!AL347","v":0},{"$f":"Input!AM347","v":0},{"$f":"Input!AN347","v":0},{"$f":"Input!AO347","v":0},{"$f":"Input!AP347","v":0},{"$f":"Input!AQ347","v":0}]
[null,null,null,null,"Tree cutting",null,"%",null,null,null,null,null,null,null,null,null,null,null,null,null,null,null,null,null,null,null,null,null,null,null,null,null,null,null,null,{"$f":"Input!AJ348","v":0},{"$f":"Input!AK348","v":0},{"$f":"Input!AL348","v":0},{"$f":"Input!AM348","v":0},{"$f":"Input!AN348","v":0},{"$f":"Input!AO348","v":0},{"$f":"Input!AP348","v":0},{"$f":"Input!AQ348","v":0}]
[null,null,null,null,"Controllable Opex",null,"%",null,null,null,null,null,null,null,null,null,null,null,null,null,null,null,null,null,null,null,null,null,null,null,null,null,null,null,null,{"$f":"Input!AJ349","v":6.3695218807986745E-2},{"$f":"Input!AK349","v":6.3382110248750553E-2},{"$f":"Input!AL349","v":6.300093170035842E-2},{"$f":"Input!AM349","v":6.2988127253664414E-2},{"$f":"Input!AN349","v":6.3236791356880498E-2},{"$f":"Input!AO349","v":6.3879708717616349E-2},{"$f":"Input!AP349","v":6.5175841361677658E-2},{"$f":"Input!AQ349","v":6.5434074042936566E-2}]
[]
[null,null,null,null,"General pool additions",null,"£m 12/13 prices",null,null,null,null,null,null,null,null,null,null,null,null,null,null,null,null,null,null,null,null,null,null,null,null,null,null,null,null,{"$f":"SUMPRODUCT(AJ$16:AJ$21,AJ28:AJ33)","v":29.294185021477926},{"$f":"SUMPRODUCT(AK$16:AK$21,AK28:AK33)","v":28.181527636341926},22.854249871160071,20.435239135867867,24.667019462027305,26.340150116033861,24.199668363104902,21.883515982891751]
[]
[null,null,null,"Special Rate pool"]
[]
[null,null,null,null,"Load related capex allocation",null,"%",null,null,null,null,null,null,null,null,null,null,null,null,null,null,null,null,null,null,null,null,null,null,null,null,null,null,null,null,{"$f":"Input!AJ353","v":0.93858780710420942},{"$f":"Input!AK353","v":0.94229582746831353},{"$f":"Input!AL353","v":0.94492750962562133},{"$f":"Input!AM353","v":0.95330311927319034},{"$f":"Input!AN353","v":0.95712396717811676},{"$f":"Input!AO353","v":0.95864979176449161},{"$f":"Input!AP353","v":0.95946403394372803},{"$f":"Input!AQ353","v":0.96677711631808083}]
[null,null,null,null,"Non-load related capex - asset replacement",null,"%",null,null,null,null,null,null,null,null,null,null,null,null,null,null,null,null,null,null,null,null,null,null,null,null,null,null,null,null,{"$f":"Input!AJ354","v":0.32425693325634614},{"$f":"Input!AK354","v":0.32095965593867115},{"$f":"Input!AL354","v":0.31967893640607475},{"$f":"Input!AM354","v":0.32112088043817472},{"$f":"Input!AN354","v":0.32284783839956233},{"$f":"Input!AO354","v":0.33432680192077413},{"$f":"Input!AP354","v":0.31356133576916556},{"$f":"Input!AQ354","v":0.31504966531714124}]
[null,null,null,null,"Non-load related capex - other allocation",null,"%",null,null,null,null,null,null,null,null,null,null,null,null,null,null,null,null,null,null,null,null,null,null,null,null,null,null,null,null,{"$f":"Input!AJ355","v":2.0574675203960443E-2},{"$f":"Input!AK355","v":4.1681847745024293E-2},{"$f":"Input!AL355","v":5.5425636595346037E-2},{"$f":"Input!AM355","v":3.2174199308531701E-2},{"$f":"Input!AN355","v":2.0845281223804562E-2},{"$f":"Input!AO355","v":1.95455707383351E-2},{"$f":"Input!AP355","v":2.1040817553311539E-2},{"$f":"Input!AQ355","v":2.5049835481373704E-2}]
[null,null,null,null,"Faults",null,"%",null,null,null,null,null,null,null,null,null,null,null,null,null,null,null,null,null,null,null,null,null,null,null,null,null,null,null,null,{"$f":"Input!AJ356","v":0},{"$f":"Input!AK356","v":0},{"$f":"Input!AL356","v":0},{"$f":"Input!AM356","v":0},{"$f":"Input!AN356","v":0},{"$f":"Input!AO356","v":0},{"$f":"Input!AP356","v":0},{"$f":"Input!AQ356","v":0}]
[null,null,null,null,"Tree cutting",null,"%",null,null,null,null,null,null,null,null,null,null,null,null,null,null,null,null,null,null,null,null,null,null,null,null,null,null,null,null,{"$f":"Input!AJ357","v":0},{"$f":"Input!AK357","v":0},{"$f":"Input!AL357","v":0},{"$f":"Input!AM357","v":0},{"$f":"Input!AN357","v":0},{"$f":"Input!AO357","v":0},{"$f":"Input!AP357","v":0},{"$f":"Input!AQ357","v":0}]
[null,null,null,null,"Controllable Opex",null,"%",null,null,null,null,null,null,null,null,null,null,null,null,null,null,null,null,null,null,null,null,null,null,null,null,null,null,null,null,{"$f":"Input!AJ358","v":0.14351037923152751},{"$f":"Input!AK358","v":0.14282655714975923},{"$f":"Input!AL358","v":0.14197257356755966},{"$f":"Input!AM358","v":0.14193964905690498},{"$f":"Input!AN358","v":0.14248870787907975},{"$f":"Input!AO358","v":0.14392982911500699},{"$f":"Input!AP358","v":0.14685043996730032},{"$f":"Input!AQ358","v":0.1474170558787492}]
[]
[null,null,null,null,"Special Rate pool additions",null,"£m 12/13 prices",null,null,null,null,null,null,null,null,null,null,null,null,null,null,null,null,null,null,null,null,null,null,null,null,null,null,null,null,{"$f":"SUMPRODUCT(AJ$16:AJ$21,AJ39:AJ44)","v":63.235459338289871},{"$f":"SUMPRODUCT(AK$16:AK$21,AK39:AK44)","v":64.701242073871768},63.292600458443957,67.929317126698763,70.746341160177195,71.02367952996417,72.014697724413679,76.559901522005362]
[]
[null,null,null,"Deferred revenue pool"]
[]
[null,null,null,null,"Load related capex allocation",null,"%",null,null,null,null,null,null,null,null,null,null,null,null,null,null,null,null,null,null,null,null,null,null,null,null,null,null,null,null,{"$f":"Input!AJ362","v":0},{"$f":"Input!AK362","v":0},{"$f":"Input!AL362","v":0},{"$f":"Input!AM362","v":0},{"$f":"Input!AN362","v":0},{"$f":"Input!AO362","v":0},{"$f":"Input!AP362","v":0},{"$f":"Input!AQ362","v":0}]
[null,null,null,null,"Non-load related capex - asset replacement",null,"%",null,null,null,null,null,null,null,null,null,null,null,null,null,null,null,null,null,null,null,null,null,null,null,null,null,null,null,null,{"$f":"Input!AJ363","v":0.55943144560603641},{"$f":"Input!AK363","v":0.56252686863717449},{"$f":"Input!AL363","v":0.5597989190109236},{"$f":"Input!AM363","v":0.56049684550599777},{"$f":"Input!AN363","v":0.56168358698383114},{"$f":"Input!AO363","v":0.55117283356618862},{"$f":"Input!AP363","v":0.57282980422734342},{"$f":"Input!AQ363","v":0.57489716247429135}]
[null,null,null,null,"Non-load related capex - other allocation",null,"%",null,null,null,null,null,null,null,null,null,null,null,null,null,null,null,null,null,null,null,null,null,null,null,null,null,null,null,null,{"$f":"Input!AJ364","v":6.3894286820074409E-3},{"$f":"Input!AK364","v":2.338446891098397E-3},{"$f":"Input!AL364","v":7.5067402838111116E-4},{"$f":"Input!AM364","v":6.1071917181307256E-3},{"$f":"Input!AN364","v":1.134086812046019E-3},{"$f":"Input!AO364","v":1.9438226930175162E-3},{"$f":"Input!AP364","v":6.0461485407456439E-4},{"$f":"Input!AQ364","v":1.2348497672742249E-3}]
[null,null,null,null,"Faults",null,"%",null,null,null,null,null,null,null,null,null,null,null,null,null,null,null,null,null,null,null,null,null,null,null,null,null,null,null,null,{"$f":"Input!AJ365","v":0.72030067719989288},{"$f":"Input!AK365","v":0.72101336927186155},{"$f":"Input!AL365","v":0.7212202076751334},{"$f":"Input!AM365","v":0.72213369635139035},{"$f":"Input!AN365","v":0.72285585519712758},{"$f":"Input!AO365","v":0.72365550028571157},{"$f":"Input!AP365","v":0.72475508797315136},{"$f":"Input!AQ365","v":0.72611523503291497}]
[null,null,null,null,"Tree cutting",null,"%",null,null,null,null,null,null,null,null,null,null,null,null,null,null,null,null,null,null,null,null,null,null,null,null,null,null,null,null,{"$f":"Input!AJ366","v":0},{"$f":"Input!AK366","v":0},{"$f":"Input!AL366","v":0},{"$f":"Input!AM366","v":0},{"$f":"Input!AN366","v":0},{"$f":"Input!AO366","v":0},{"$f":"Input!AP366","v":0},{"$f":"Input!AQ366","v":0}]
[null,null,null,null,"Controllable Opex",null,"%",null,null,null,null,null,null,null,null,null,null,null,null,null,null,null,null,null,null,null,null,null,null,null,null,null,null,null,null,{"$f":"Input!AJ367","v":0.23461562719354137},{"$f":"Input!AK367","v":0.23349631984230027},{"$f":"Input!AL367","v":0.23209989156335928},{"$f":"Input!AM367","v":0.23204632383994561},{"$f":"Input!AN367","v":0.23294465400382255},{"$f":"Input!AO367","v":0.23530111842609902},{"$f":"Input!AP367","v":0.24007581157171162},{"$f":"Input!AQ367","v":0.24100309838702541}]
[]
[null,null,null,null,"Deferred revenue pool additions",null,"£m 12/13 prices",null,null,null,null,null,null,null,null,null,null,null,null,null,null,null,null,null,null,null,null,null,null,null,null,null,null,null,null,{"$f":"SUMPRODUCT(AJ$16:AJ$21,AJ50:AJ55)","v":90.317054979197707},{"$f":"SUMPRODUCT(AK$16:AK$21,AK50:AK55)","v":91.19803075479085},90.428736497941728,91.49562677562102,92.174905863328661,94.663895749194722,95.232145810780963,95.786810394201439]
[]
[null,null,null,"Revenue pool"]
[]
[null,null,null,null,"Non-controllable opex",null,"£m 12/13 prices",null,null,null,null,null,null,null,null,null,null,null,null,null,null,null,null,null,null,null,null,null,null,null,null,null,null,null,null,{"$f":"Input!AJ209","v":41.027809683461783},{"$f":"Input!AK209","v":41.372733789158211},{"$f":"Input!AL209","v":44.491559846746767},{"$f":"Input!AM209","v":49.815326395288039},{"$f":"Input!AN209","v":56.426160748289291},{"$f":"Input!AO209","v":57.715649087288497},{"$f":"Input!AP209","v":57.102403713808542},{"$f":"Input!AQ209","v":57.771392177854246}]
[]
[null,null,null,null,"Load related capex allocation",null,"%",null,null,null,null,null,null,null,null,null,null,null,null,null,null,null,null,null,null,null,null,null,null,null,null,null,null,null,null,{"$f":"Input!AJ371","v":6.1412192895790578E-2},{"$f":"Input!AK371","v":5.7704172531686415E-2},{"$f":"Input!AL371","v":5.5072490374378752E-2},{"$f":"Input!AM371","v":4.6696880726809588E-2},{"$f":"Input!AN371","v":4.2876032821883202E-2},{"$f":"Input!AO371","v":4.1350208235508411E-2},{"$f":"Input!AP371","v":4.0535966056272021E-2},{"$f":"Input!AQ371","v":3.3222883681919203E-2}]
[null,null,null,null,"Non-load related capex - asset replacement",null,"%",null,null,null,null,null,null,null,null,null,null,null,null,null,null,null,null,null,null,null,null,null,null,null,null,null,null,null,null,{"$f":"Input!AJ372","v":2.9419362673791159E-2},{"$f":"Input!AK372","v":2.830209140968272E-2},{"$f":"Input!AL372","v":2.8020320322674062E-2},{"$f":"Input!AM372","v":2.6758403165232345E-2},{"$f":"Input!AN372","v":2.5778378029164269E-2},{"$f":"Input!AO372","v":2.486575278550229E-2},{"$f":"Input!AP372","v":2.3988661056929154E-2},{"$f":"Input!AQ372","v":2.275270202735425E-2}]
[null,null,null,null,"Non-load related capex - other allocation",null,"%",null,null,null,null,null,null,null,null,null,null,null,null,null,null,null,null,null,null,null,null,null,null,null,null,null,null,null,null,{"$f":"Input!AJ373","v":3.3474209820823302E-3},{"$f":"Input!AK373","v":2.9201095830942623E-3},{"$f":"Input!AL373","v":4.5211675580601176E-3},{"$f":"Input!AM373","v":2.8087394266120441E-3},{"$f":"Input!AN373","v":2.1572180983972238E-3},{"$f":"Input!AO373","v":2.102330917669008E-3},{"$f":"Input!AP373","v":1.8983830198694401E-3},{"$f":"Input!AQ373","v":2.6713039528789848E-3}]
[null,null,null,null,"Faults",null,"%",null,null,null,null,null,null,null,null,null,null,null,null,null,null,null,null,null,null,null,null,null,null,null,null,null,null,null,null,{"$f":"Input!AJ374","v":0.27969932280010712},{"$f":"Input!AK374","v":0.27898663072813851},{"$f":"Input!AL374","v":0.27877979232486649},{"$f":"Input!AM374","v":0.27786630364860965},{"$f":"Input!AN374","v":0.27714414480287242},{"$f":"Input!AO374","v":0.27634449971428843},{"$f":"Input!AP374","v":0.27524491202684864},{"$f":"Input!AQ374","v":0.27388476496708497}]
[null,null,null,null,"Tree cutting",null,"%",null,null,null,null,null,null,null,null,null,null,null,null,null,null,null,null,null,null,null,null,null,null,null,null,null,null,null,null,{"$f":"Input!AJ375","v":1},{"$f":"Input!AK375","v":1},{"$f":"Input!AL375","v":1},{"$f":"Input!AM375","v":1},{"$f":"Input!AN375","v":1},{"$f":"Input!AO375","v":1},{"$f":"Input!AP375","v":1},{"$f":"Input!AQ375","v":1}]
[null,null,null,null,"Controllable Opex",null,"%",null,null,null,null,null,null,null,null,null,null,null,null,null,null,null,null,null,null,null,null,null,null,null,null,null,null,null,null,{"$f":"Input!AJ376","v":0.54447376018993077},{"$f":"Input!AK376","v":0.54665118653729472},{"$f":"Input!AL376","v":0.54936341002100209},{"$f":"Input!AM376","v":0.54946662608479679},{"$f":"Input!AN376","v":0.54772026937628604},{"$f":"Input!AO376","v":0.5431435534445398},{"$f":"Input!AP376","v":0.53387314197794344},{"$f":"Input!AQ376","v":0.53206978745861888}]
[]
[null,null,null,null,"Revenue pool additions",null,"£m 12/13 prices",null,null,null,null,null,null,null,null,null,null,null,null,null,null,null,null,null,null,null,null,null,null,null,null,null,null,null,null,{"$f":"SUMPRODUCT(AJ$16:AJ$21,AJ63:AJ68)+AJ61","v":112.43918942244186},{"$f":"SUMPRODUCT(AK$16:AK$21,AK63:AK68)+AK61","v":112.97626914701033},116.26425162591681,121.86994265878209,128.77670467922388,129.58449185739943,127.56372084087215,128.17758427748646]
[]
[null,null,null,"Non-qualifying expenditure"]
[]
[null,null,null,null,"Load related capex allocation",null,"%",null,null,null,null,null,null,null,null,null,null,null,null,null,null,null,null,null,null,null,null,null,null,null,null,null,null,null,null,{"$f":"Input!AJ380","v":0},{"$f":"Input!AK380","v":0},{"$f":"Input!AL380","v":0},{"$f":"Input!AM380","v":0},{"$f":"Input!AN380","v":0},{"$f":"Input!AO380","v":0},{"$f":"Input!AP380","v":0},{"$f":"Input!AQ380","v":0}]
[null,null,null,null,"Non-load related capex - asset replacement",null,"%",null,null,null,null,null,null,null,null,null,null,null,null,null,null,null,null,null,null,null,null,null,null,null,null,null,null,null,null,{"$f":"Input!AJ381","v":5.2833414157559551E-2},{"$f":"Input!AK381","v":5.1918490960910217E-2},{"$f":"Input!AL381","v":5.3019900388794561E-2},{"$f":"Input!AM381","v":5.2075919514925191E-2},{"$f":"Input!AN381","v":5.3175422665820954E-2},{"$f":"Input!AO381","v":5.7918458775259127E-2},{"$f":"Input!AP381","v":5.6667250348415431E-2},{"$f":"Input!AQ381","v":5.6220934344833884E-2}]
[null,null,null,null,"Non-load related capex - other allocation",null,"%",null,null,null,null,null,null,null,null,null,null,null,null,null,null,null,null,null,null,null,null,null,null,null,null,null,null,null,null,{"$f":"Input!AJ382","v":3.8336572092044642E-2},{"$f":"Input!AK382","v":1.4030681346590379E-2},{"$f":"Input!AL382","v":4.5040441702866672E-3},{"$f":"Input!AM382","v":3.6643150308784352E-2},{"$f":"Input!AN382","v":6.8045208722761147E-3},{"$f":"Input!AO382","v":1.1662936158105099E-2},{"$f":"Input!AP382","v":3.6276891244473859E-3},{"$f":"Input!AQ382","v":7.4090986036453475E-3}]
[null,null,null,null,"Faults",null,"%",null,null,null,null,null,null,null,null,null,null,null,null,null,null,null,null,null,null,null,null,null,null,null,null,null,null,null,null,{"$f":"Input!AJ383","v":0},{"$f":"Input!AK383","v":0},{"$f":"Input!AL383","v":0},{"$f":"Input!AM383","v":0},{"$f":"Input!AN383","v":0},{"$f":"Input!AO383","v":0},{"$f":"Input!AP383","v":0},{"$f":"Input!AQ383","v":0}]
[null,null,null,null,"Tree cutting",null,"%",null,null,null,null,null,null,null,null,null,null,null,null,null,null,null,null,null,null,null,null,null,null,null,null,null,null,null,null,{"$f":"Input!AJ384","v":0},{"$f":"Input!AK384","v":0},{"$f":"Input!AL384","v":0},{"$f":"Input!AM384","v":0},{"$f":"Input!AN384","v":0},{"$f":"Input!AO384","v":0},{"$f":"Input!AP384","v":0},{"$f":"Input!AQ384","v":0}]
[null,null,null,null,"Controllable Opex",null,"%",null,null,null,null,null,null,null,null,null,null,null,null,null,null,null,null,null,null,null,null,null,null,null,null,null,null,null,null,{"$f":"Input!AJ385","v":1.3705014577013556E-2},{"$f":"Input!AK385","v":1.3643826221895246E-2},{"$f":"Input!AL385","v":1.356319314772058E-2},{"$f":"Input!AM385","v":1.3559273764688103E-2},{"$f":"Input!AN385","v":1.3609577383931142E-2},{"$f":"Input!AO385","v":1.3745790296737843E-2},{"$f":"Input!AP385","v":1.402476512136681E-2},{"$f":"Input!AQ385","v":1.4075984232669822E-2}]
[]
[null,null,null,null,"Non-qualifying expenditure",null,"£m 12/13 prices",null,null,null,null,null,null,null,null,null,null,null,null,null,null,null,null,null,null,null,null,null,null,null,null,null,null,null,null,{"$f":"SUMPRODUCT(AJ$16:AJ$21,AJ74:AJ79)","v":6.5419438267072367},{"$f":"SUMPRODUCT(AK$16:AK$21,AK74:AK79)","v":5.9798058865417794},5.820745662091265,6.2001689107727209,6.0142289107063451,6.8639068075037581,6.4375799219519463,6.4571592911412887]
[]
[null,"Capital allowances"]
[null,"Note: Special, General and deferred revenue capital allowances are calculated for the tax allowance calculation."]
[]
[null,null,"General pool"]
[]
[null,null,null,null,"Capital allowance rate",null,"%",null,null,null,null,null,null,null,null,null,null,null,null,null,null,null,null,null,null,null,null,null,null,null,null,null,null,null,null,{"$f":"TaxTrigger!AJ109","v":0.18000000000000002},{"$f":"TaxTrigger!AK109","v":0.18000000000000002},{"$f":"TaxTrigger!AL109","v":0.18000000000000002},{"$f":"TaxTrigger!AM109","v":0.18000000000000002},{"$f":"TaxTrigger!AN109","v":0.18000000000000002},{"$f":"TaxTrigger!AO109","v":0.18000000000000002},{"$f":"TaxTrigger!AP109","v":0.18000000000000002},{"$f":"TaxTrigger!AQ109","v":0.18000000000000002}]
[]
[null,null,null,null,"Opening balance brought forward",null,"£m nominal",null,null,null,null,null,null,null,null,null,null,null,null,null,null,null,null,null,null,null,null,null,null,null,null,null,null,null,null,{"$f":"SUM(Input!AH320:AH322,Input!AI321:AI322)","v":89.991487918487223},{"$f":"AJ94","v":99.88910502879537},107.71693455129085,109.84319614416823,109.84808527277301,114.61595422820901,120.92390729702353,124.6003168586939]
[null,null,null,null,"Capex additions",null,"£m nominal",null,null,null,null,null,null,null,null,null,null,null,null,null,null,null,null,null,null,null,null,null,null,null,null,null,null,null,null,{"$f":"AJ35*Input!AJ$54/Input!$AG$54","v":31.82449382394616},{"$f":"AK35*Input!AK$54/Input!$AG$54","v":31.473010277656908},{"$f":"AL35*Input!AL$54/Input!$AG$54","v":26.23818269769481},{"$f":"AM35*Input!AM$54/Input!$AG$54","v":24.117883456774461},{"$f":"AN35*Input!AN$54/Input!$AG$54","v":29.927468664067245},{"$f":"AO35*Input!AO$54/Input!$AG$54","v":32.852225402307504},{"$f":"AP35*Input!AP$54/Input!$AG$54","v":31.027698628212942},{"$f":"AQ35*Input!AQ$54/Input!$AG$54","v":28.843668077664965}]
[null,null,null,null,"Tax book value pre-depreciation",null,"£m nominal",null,null,null,null,null,null,null,null,null,null,null,null,null,null,null,null,null,null,null,null,null,null,null,null,null,null,null,null,{"$f":"SUM(AJ90:AJ91)","v":121.81598174243338},131.36211530645227,133.95511724898566,133.9610796009427,139.77555393684025,147.46817963051652,151.95160592523646,153.44398493635887]
[null,null,null,null,"General pool capital allowance (reducing balance)",null,"£m nominal",null,null,null,null,null,null,null,null,null,null,null,null,null,null,null,null,null,null,null,null,null,null,null,null,null,null,null,null,{"$f":"-AJ92*AJ88","v":-21.926876713638009},-23.645180755161412,-24.111921104817423,-24.112994328169687,-25.159599708631248,-26.544272333492977,-27.351289066542567,-27.619917288544599]
[null,null,null,null,"Closing balance carried forward",null,"£m nominal",null,null,null,null,null,null,null,null,null,null,null,null,null,null,null,null,null,null,null,null,null,null,null,null,null,null,null,null,{"$f":"AJ92+AJ93","v":99.88910502879537},107.71693455129085,109.84319614416823,109.84808527277301,114.61595422820901,120.92390729702353,124.6003168586939,125.82406764781427]
[]
[null,null,"Special Rates pool"]
[]
[null,null,null,null,"Capital allowance rate",null,"%",null,null,null,null,null,null,null,null,null,null,null,null,null,null,null,null,null,null,null,null,null,null,null,null,null,null,null,null,{"$f":"TaxTrigger!AJ119","v":0.08},{"$f":"TaxTrigger!AK119","v":0.08},{"$f":"TaxTrigger!AL119","v":0.08},{"$f":"TaxTrigger!AM119","v":0.08},{"$f":"TaxTrigger!AN119","v":0.08},{"$f":"TaxTrigger!AO119","v":0.08},{"$f":"TaxTrigger!AP119","v":0.08},{"$f":"TaxTrigger!AQ119","v":0.08}]
[]
[null,null,null,null,"Opening balance brought forward",null,"£m nominal",null,null,null,null,null,null,null,null,null,null,null,null,null,null,null,null,null,null,null,null,null,null,null,null,null,null,null,null,{"$f":"SUM(Input!AH324:AH326,Input!AI325:AI326)","v":577.46942764944367},{"$f":"AJ104","v":594.47354861620022},613.3930910893688,631.17258827489536,654.43600203317203,681.04802739851334,708.060419854413,736.36279628260297]
[null,null,null,null,"Capex additions",null,"£m nominal",null,null,null,null,null,null,null,null,null,null,null,null,null,null,null,null,null,null,null,null,null,null,null,null,null,null,null,null,{"$f":"AJ46 * Input!AJ$54 / Input!$AG$54","v":68.697473020339189},{"$f":"AK46 * Input!AK$54 / Input!$AG$54","v":72.258072133113757},{"$f":"AL46 * Input!AL$54 / Input!$AG$54","v":72.664070078995749},{"$f":"AM46 * Input!AM$54 / Input!$AG$54","v":80.170892195943779},{"$f":"AN46 * Input!AN$54 / Input!$AG$54","v":85.833592965211977},{"$f":"AO46 * Input!AO$54 / Input!$AG$54","v":88.582863747587808},{"$f":"AP46 * Input!AP$54 / Input!$AG$54","v":92.333923931024984},{"$f":"AQ46 * Input!AQ$54 / Input!$AG$54","v":100.91012748069528}]
[null,null,null,null,"Tax book value pre-depreciation",null,"£m nominal",null,null,null,null,null,null,null,null,null,null,null,null,null,null,null,null,null,null,null,null,null,null,null,null,null,null,null,null,{"$f":"SUM(AJ100:AJ101)","v":646.16690066978288},666.73162074931395,686.05716116836459,711.34348047083915,740.26959499838404,769.63089114610113,800.39434378543797,837.27292376329819]
[null,null,null,null,"Special Rates capital allowance (reducing balance)",null,"£m nominal",null,null,null,null,null,null,null,null,null,null,null,null,null,null,null,null,null,null,null,null,null,null,null,null,null,null,null,null,{"$f":"-AJ102*AJ98","v":-51.693352053582629},-53.338529659945117,-54.884572893469169,-56.90747843766713,-59.221567599870724,-61.570471291688094,-64.031547502835039,-66.981833901063851]
[null,null,null,null,"Closing balance carried forward",null,"£m nominal",null,null,null,null,null,null,null,null,null,null,null,null,null,null,null,null,null,null,null,null,null,null,null,null,null,null,null,null,{"$f":"AJ102 + AJ103","v":594.47354861620022},613.3930910893688,631.17258827489536,654.43600203317203,681.04802739851334,708.060419854413,736.36279628260297,770.29108986223434]
[]
[null,null,"Deferred revenue expenditure"]
[]
[null,null,null,null,"Capital allowance rate",null,"%",null,null,null,null,null,null,null,null,null,null,null,null,null,null,null,null,null,null,null,null,null,null,null,null,null,null,null,null,{"$f":"TaxTrigger!AJ129","v":2.2200000000000001E-2},{"$f":"TaxTrigger!AK129","v":2.2200000000000001E-2},{"$f":"TaxTrigger!AL129","v":2.2200000000000001E-2},{"$f":"TaxTrigger!AM129","v":2.2200000000000001E-2},{"$f":"TaxTrigger!AN129","v":2.2200000000000001E-2},{"$f":"TaxTrigger!AO129","v":2.2200000000000001E-2},{"$f":"TaxTrigger!AP129","v":2.2200000000000001E-2},{"$f":"TaxTrigger!AQ129","v":2.2200000000000001E-2}]
[]
[null,null,null,null,"Opening balance brought forward",null,"£m nominal",null,null,null,null,null,null,null,null,null,null,null,null,null,null,null,null,null,null,null,null,null,null,null,null,null,null,null,null,{"$f":"SUM(Input!AH328:AH330,Input!AI329:AI330)","v":826.74536382120982},{"$f":"AJ114","v":902.37849283760852},{"$f":"AK114","v":979.48187116181055},1056.2490535276718,1134.7849469636069,1214.6860517427344,1298.2017261000365,1383.0413445980573]
[null,null,null,null,"Capex additions",null,"£m nominal",null,null,null,null,null,null,null,null,null,null,null,null,null,null,null,null,null,null,null,null,null,null,null,null,null,null,null,null,{"$f":"AJ57*Input!AJ$54/Input!$AG$54","v":98.118263275633254},{"$f":"AK57*Input!AK$54/Input!$AG$54","v":101.84957310639872},{"$f":"AL57*Input!AL$54/Input!$AG$54","v":103.81813985278973},{"$f":"AM57*Input!AM$54/Input!$AG$54","v":107.98409789615827},{"$f":"AN57*Input!AN$54/Input!$AG$54","v":111.8319791770821},{"$f":"AO57*Input!AO$54/Input!$AG$54","v":118.06765059854401},{"$f":"AP57*Input!AP$54/Input!$AG$54","v":122.10226502276861},{"$f":"AQ57*Input!AQ$54/Input!$AG$54","v":126.25224243620309}]
[null,null,null,null,"Tax book value pre-depreciation",null,"£m nominal",null,null,null,null,null,null,null,null,null,null,null,null,null,null,null,null,null,null,null,null,null,null,null,null,null,null,null,null,{"$f":"SUM(AJ110:AJ111)","v":924.86362709684306},1004.2280659440072,1083.3000110146004,1164.2331514238301,1246.616926140689,1332.7537023412785,1420.303991122805,1509.2935870342603]
[null,null,null,null,"Deferred revenue expenditure capital allowance (straight line)",null,"£m nominal",null,null,null,null,null,null,null,null,null,null,null,null,null,null,null,null,null,null,null,null,null,null,null,null,null,null,null,null,{"$f":"-(SUM(Input!$AH$332,Input!$AH$333:$AI$334)+SUM($AI111:AJ111))*AJ108","v":-22.485134259234545},{"$f":"-(SUM(Input!$AH$332,Input!$AH$333:$AI$334)+SUM($AI111:AK111))*AK108","v":-24.7461947821966},{"$f":"-(SUM(Input!$AH$332,Input!$AH$333:$AI$334)+SUM($AI111:AL111))*AL108","v":-27.050957486928532},{"$f":"-(SUM(Input!$AH$332,Input!$AH$333:$AI$334)+SUM($AI111:AM111))*AM108","v":-29.448204460223241},{"$f":"-(SUM(Input!$AH$332,Input!$AH$333:$AI$334)+SUM($AI111:AN111))*AN108","v":-31.930874397954469},{"$f":"-(SUM(Input!$AH$332,Input!$AH$333:$AI$334)+SUM($AI111:AO111))*AO108","v":-34.551976241242144},{"$f":"-(SUM(Input!$AH$332,Input!$AH$333:$AI$334)+SUM($AI111:AP111))*AP108","v":-37.262646524747609},{"$f":"-(SUM(Input!$AH$332,Input!$AH$333:$AI$334)+SUM($AI111:AQ111))*AQ108","v":-40.065446306831312}]
[null,null,null,null,"Closing balance carried forward",null,"£m nominal",null,null,null,null,null,null,null,null,null,null,null,null,null,null,null,null,null,null,null,null,null,null,null,null,null,null,null,null,{"$f":"AJ112+AJ113","v":902.37849283760852},979.48187116181055,1056.2490535276718,1134.7849469636069,1214.6860517427344,1298.2017261000365,1383.0413445980573,1469.228140727429]
[]
[null,null,"Total capital allowances"]
[]
[null,null,null,null,"Special Rates pool",null,"£m nominal",null,null,null,null,null,null,null,null,null,null,null,null,null,null,null,null,null,null,null,null,null,null,null,null,null,null,null,null,{"$f":"-AJ103","v":51.693352053582629},53.338529659945117,54.884572893469169,56.90747843766713,59.221567599870724,61.570471291688094,64.031547502835039,66.981833901063851]
[null,null,null,null,"General pool",null,"£m nominal",null,null,null,null,null,null,null,null,null,null,null,null,null,null,null,null,null,null,null,null,null,null,null,null,null,null,null,null,{"$f":"-AJ93","v":21.926876713638009},23.645180755161412,24.111921104817423,24.112994328169687,25.159599708631248,26.544272333492977,27.351289066542567,27.619917288544599]
[null,null,null,null,"Deferred revenue expenditure",null,"£m nominal",null,null,null,null,null,null,null,null,null,null,null,null,null,null,null,null,null,null,null,null,null,null,null,null,null,null,null,null,{"$f":"-AJ113","v":22.485134259234545},24.7461947821966,27.050957486928532,29.448204460223241,31.930874397954469,34.551976241242144,37.262646524747609,40.065446306831312]
[null,null,null,null,"Capital allowances",null,"£m nominal",null,null,null,null,null,null,null,null,null,null,null,null,null,null,null,null,null,null,null,null,null,null,null,null,null,null,null,null,{"$f":"SUM(AJ118:AJ120)","v":96.10536302645518},101.72990519730313,106.04745148521513,110.46867722606005,116.31204170645644,122.66671986642321,128.64548309412521,134.66719749643977]
[]
[null,"End of sheet"]

{"sheet":"Finance&Tax","index":12,"n_rows":234,"n_cols":43,"rows_kept":234,"cut":false,"hidden":false,"merged":[]}
["Finance & Tax",null,null,null,null,null,null,null,null,null,null,null,null,null,null,null,null,null,null,null,null,null,null,null,null,null,null,null,null,null,null,null,null,null,null,"Done"]
[null,{"$f":"UserInterface!G24","v":"WMID"}]
[]
[]
[]
[null,null,null,null,"Parameter",null,"Units",null,"Constant",null,null,null,null,null,null,null,null,null,null,null,null,null,null,null,null,null,null,null,null,null,null,null,null,null,null,"Annual values"]
[null,null,null,null,"PCFM year ending",null,null,null,{"$f":"UserInterface!$G$17","v":"2016-03-31"},null,"1991-03-31","1992-03-31","1993-03-31","1994-03-31","1995-03-31","1996-03-31","1997-03-31","1998-03-31","1999-03-31","2000-03-31","2001-03-31","2002-03-31","2003-03-31","2004-03-31","2005-03-31","2006-03-31","2007-03-31","2008-03-31","2009-03-31","2010-03-31","2011-03-31","2012-03-31","2013-03-31","2014-03-31","2015-03-31","2016-03-31","2017-03-31","2018-03-31","2019-03-31","2020-03-31","2021-03-31","2022-03-31","2023-03-31"]
[]
[null,"Net debt"]
[null,"Note: Net debt is calculated to generate interest paid (for the tax calculation) and gearing levels (for equity issuance calculations)."]
[]
[]
[null,null,"Net debt"]
[null,null,"Note: The company opens the price control at its notionally geared level. Any equity issuance required to reach this level is not shown."]
[null,null,"Equity issuance (if any) occurs at the start of the year and may be followed by transfers (to equalise opening gearing levels across the company)."]
[null,null,"Start of year transfers may also include net debt transferred to RAV."]
[null,null,"A sub-total is taken before tax and interest on in-year cash flow. This allows the calculation of interest on in-year cash flow to be solved analytically."]
[]
[null,null,null,null,"Opening balance brought forward (before equity issuance and transfers)",null,"£m nominal",null,null,null,null,null,null,null,null,null,null,null,null,null,null,null,null,null,null,null,null,null,null,null,null,null,null,null,null,null,{"$f":"AJ36","v":-1410.7359501595577},{"$f":"AK36","v":-1482.2945579585967},-1540.7775002804067,-1606.5509359934767,-1680.9366403662643,-1759.5295738364018,-1858.0751662023056]
[null,null,null,null,"Equity issuance",null,"£m nominal",null,null,null,null,null,null,null,null,null,null,null,null,null,null,null,null,null,null,null,null,null,null,null,null,null,null,null,null,null,{"$f":"AK80","v":23.338186589622691},{"$f":"AL80","v":30.153032521535795},27.148508518703139,27.959495464781199,30.574188972592207,32.273311215275342,39.611918255689574]
[null,null,null,null,"Opening balance brought forward (after equity issuance, before transfers)",null,"£m nominal",null,null,null,null,null,null,null,null,null,null,null,null,null,null,null,null,null,null,null,null,null,null,null,null,null,null,null,null,null,{"$f":"SUM(AK19:AK20)","v":-1387.397763569935},{"$f":"SUM(AL19:AL20)","v":-1452.1415254370609},-1513.6289917617034,-1578.5914405286956,-1650.362451393672,-1727.2562626211266,-1818.4632479466161]
[null,null,null,null,"Opening balance brought forward (after equity issuance and transfers)",null,"£m nominal",null,null,null,null,null,null,null,null,null,null,null,null,null,null,null,null,null,null,null,null,null,null,null,null,null,null,null,null,{"$f":"-AJ61 * (AJ50)","v":-1323.0759020194735},{"$f":"SUM(AK21:AK21)","v":-1387.397763569935},-1452.1415254370609,-1513.6289917617034,-1578.5914405286956,-1650.362451393672,-1727.2562626211266,-1818.4632479466161]
[null,null,null,null,"Add Recalculated base revenue (except tax allowance)",null,"£m nominal",null,null,null,null,null,null,null,null,null,null,null,null,null,null,null,null,null,null,null,null,null,null,null,null,null,null,null,null,{"$f":"Revenue!AJ20*Input!AJ$54/Input!$AG$54","v":407.30310081717823},{"$f":"Revenue!AK20*Input!AK$54/Input!$AG$54","v":425.12474509132636},{"$f":"Revenue!AL20*Input!AL$54/Input!$AG$54","v":442.25421755999002},{"$f":"Revenue!AM20*Input!AM$54/Input!$AG$54","v":465.3490568801621},{"$f":"Revenue!AN20*Input!AN$54/Input!$AG$54","v":491.11100701938818},{"$f":"Revenue!AO20*Input!AO$54/Input!$AG$54","v":510.93862513855572},{"$f":"Revenue!AP20*Input!AP$54/Input!$AG$54","v":506.31846180576053},{"$f":"Revenue!AQ20*Input!AQ$54/Input!$AG$54","v":523.79781307817223}]
[null,null,null,null,"Add net impact of DARTs on net debt",null,"£m nominal",null,null,null,null,null,null,null,null,null,null,null,null,null,null,null,null,null,null,null,null,null,null,null,null,null,null,null,null,{"$f":"DARTs!AJ73 * Input!AJ$54 / Input!$AG$54","v":-41.488150182419382},{"$f":"DARTs!AK73 * Input!AK$54 / Input!$AG$54","v":-51.626862848584423},{"$f":"DARTs!AL73 * Input!AL$54 / Input!$AG$54","v":-52.339763800570687},{"$f":"DARTs!AM73 * Input!AM$54 / Input!$AG$54","v":-53.190545330441097},{"$f":"DARTs!AN73 * Input!AN$54 / Input!$AG$54","v":-54.064745828133383},{"$f":"DARTs!AO73 * Input!AO$54 / Input!$AG$54","v":-55.107399731339683},{"$f":"DARTs!AP73 * Input!AP$54 / Input!$AG$54","v":-56.347075718820371},{"$f":"DARTs!AQ73 * Input!AQ$54 / Input!$AG$54","v":-57.703691049525304}]
[null,null,null,null,"Less actual totex",null,"£m nominal",null,null,null,null,null,null,null,null,null,null,null,null,null,null,null,null,null,null,null,null,null,null,null,null,null,null,null,null,{"$f":"-Totex!AJ84 * Input!AJ54 / Input!$AG54","v":-283.32683473286141},{"$f":"-Totex!AK84 * Input!AK54 / Input!$AG54","v":-292.22540124809052},{"$f":"-Totex!AL84 * Input!AL54 / Input!$AG54","v":-291.8027645823264},{"$f":"-Totex!AM84 * Input!AM54 / Input!$AG54","v":-304.62999137947901},{"$f":"-Totex!AN84 * Input!AN54 / Input!$AG54","v":-322.6697600344495},{"$f":"-Totex!AO84 * Input!AO54 / Input!$AG54","v":-337.70058692368133},{"$f":"-Totex!AP84 * Input!AP54 / Input!$AG54","v":-344.06010661600561},{"$f":"-Totex!AQ84 * Input!AQ54 / Input!$AG54","v":-357.31612895917965}]
[null,null,null,null,"Less actual non-totex",null,"£m nominal",null,null,null,null,null,null,null,null,null,null,null,null,null,null,null,null,null,null,null,null,null,null,null,null,null,null,null,null,{"$f":"-(Input!AJ209) * Input!AJ54 / Input!$AG54","v":-44.571619757438619},{"$f":"-(Input!AK209) * Input!AK54 / Input!$AG54","v":-46.204893239419881},{"$f":"-(Input!AL209) * Input!AL54 / Input!$AG54","v":-51.079238318711383},{"$f":"-(Input!AM209) * Input!AM54 / Input!$AG54","v":-58.792570440439505},{"$f":"-(Input!AN209) * Input!AN54 / Input!$AG54","v":-68.459513733616703},{"$f":"-(Input!AO209) * Input!AO54 / Input!$AG54","v":-71.98468895216709},{"$f":"-(Input!AP209) * Input!AP54 / Input!$AG54","v":-73.21406834152485},{"$f":"-(Input!AQ209) * Input!AQ54 / Input!$AG54","v":-76.145847023182199}]
[null,null,null,null,"Less dividends",null,"£m nominal",null,null,null,null,null,null,null,null,null,null,null,null,null,null,null,null,null,null,null,null,null,null,null,null,null,null,null,null,{"$f":"-AJ155","v":-50.053042393407658},-52.388798109998575,-54.607076702787616,-56.950721969842938,-59.539999207971704,-62.314091320716017,-65.604558714381753,-69.129885291682882]
[null,null,null,null,"Less post-vesting RAV adjustment (share to net debt)",null,"£m nominal",null,null,null,null,null,null,null,null,null,null,null,null,null,null,null,null,null,null,null,null,null,null,null,null,null,null,null,null,{"$f":" - ((Input!AJ301) * $AJ$61) * Input!AJ54 / Input!$AG54","v":0},{"$f":" - ((Input!AK301) * $AJ$61) * Input!AK54 / Input!$AG54","v":0},{"$f":" - ((Input!AL301) * $AJ$61) * Input!AL54 / Input!$AG54","v":0},{"$f":" - ((Input!AM301) * $AJ$61) * Input!AM54 / Input!$AG54","v":0},{"$f":" - ((Input!AN301) * $AJ$61) * Input!AN54 / Input!$AG54","v":0},{"$f":" - ((Input!AO301) * $AJ$61) * Input!AO54 / Input!$AG54","v":0},{"$f":" - ((Input!AP301) * $AJ$61) * Input!AP54 / Input!$AG54","v":0},{"$f":" - ((Input!AQ301) * $AJ$61) * Input!AQ54 / Input!$AG54","v":0}]
[null,null,null,null,"Less post-vesting disposal proceeds",null,"£m nominal",null,null,null,null,null,null,null,null,null,null,null,null,null,null,null,null,null,null,null,null,null,null,null,null,null,null,null,null,{"$f":"-(Input!AJ302) * Input!AJ54 / Input!$AG54","v":0},{"$f":"-(Input!AK302) * Input!AK54 / Input!$AG54","v":0},{"$f":"-(Input!AL302) * Input!AL54 / Input!$AG54","v":0},{"$f":"-(Input!AM302) * Input!AM54 / Input!$AG54","v":0},{"$f":"-(Input!AN302) * Input!AN54 / Input!$AG54","v":0},{"$f":"-(Input!AO302) * Input!AO54 / Input!$AG54","v":0},{"$f":"-(Input!AP302) * Input!AP54 / Input!$AG54","v":0},{"$f":"-(Input!AQ302) * Input!AQ54 / Input!$AG54","v":0}]
[null,null,null,null,"Less equity issuance costs",null,"£m nominal",null,null,null,null,null,null,null,null,null,null,null,null,null,null,null,null,null,null,null,null,null,null,null,null,null,null,null,null,{"$f":"-AJ145","v":0},{"$f":"-AK145","v":0},0,0,0,0,0,0]
[null,null,null,null,"Closing net debt (before tax and debt costs)",null,"£m nominal",null,null,null,null,null,null,null,null,null,null,null,null,null,null,null,null,null,null,null,null,null,null,null,null,null,null,null,null,{"$f":"SUM(AJ22:AJ30)","v":-1335.2124482684223},{"$f":"SUM(AK22:AK30)","v":-1404.7189739247019},-1459.7161512814669,-1521.8437640017439,-1592.2144523134789,-1666.5305931830203,-1760.1636102060986,-1854.9609871920138]
[null,null,null,null,"Less net interest paid (interest coupon)",null,"£m nominal",null,null,null,null,null,null,null,null,null,null,null,null,null,null,null,null,null,null,null,null,null,null,null,null,null,null,null,null,{"$f":"AJ131","v":-67.538338615113901},{"$f":"AK131","v":-70.939603931186369},-73.980172932384846,-77.119857659447604,-80.561498999996459,-84.271354318040565,-88.605034277409175,-93.329635949234657]
[null,null,null,null,"Less net interest paid (inflation coupon)",null,"£m nominal",null,null,null,null,null,null,null,null,null,null,null,null,null,null,null,null,null,null,null,null,null,null,null,null,null,null,null,null,{"$f":"AJ133","v":-9.5757762336368639},{"$f":"AK133","v":-10.058233187921553},-10.489016950764777,-10.933985141767085,-11.422577654833566,-11.948238622406953,-12.562901378043891,-13.232547372070226]
[null,null,null,null,"Add tax allowance",null,"£m nominal",null,null,null,null,null,null,null,null,null,null,null,null,null,null,null,null,null,null,null,null,null,null,null,null,null,null,null,null,{"$f":"AJ197","v":19.599330666472365},{"$f":"AK197","v":20.427497044690814},{"$f":"AL197","v":20.739501393712679},21.634290411375726,22.205041662003229,22.85657709719387,18.220886579328116,18.074421219682286]
[null,null,null,null,"Less tax paid",null,"£m nominal",null,null,null,null,null,null,null,null,null,null,null,null,null,null,null,null,null,null,null,null,null,null,null,null,null,null,null,null,{"$f":"-AJ229","v":-18.008717708856953},{"$f":"-AK229","v":-17.005243959477575},-17.331660509502825,-18.28761960189372,-18.943153059958586,-19.63596481012792,-14.964506920081982,-14.798822541032207]
[null,null,null,null,"Closing value",null,"£m nominal",null,null,null,null,null,null,null,null,null,null,null,null,null,null,null,null,null,null,null,null,null,null,null,null,null,null,{"$f":"SUM(AH31:AH35)","v":0},0,-1410.7359501595577,-1482.2945579585967,-1540.7775002804067,-1606.5509359934767,-1680.9366403662643,-1759.5295738364018,-1858.0751662023056,-1958.2475718346686]
[]
[null,null,"Total net debt"]
[]
[null,null,null,null,"Opening total net debt (before equity issuance)",null,"£m nominal",null,null,null,null,null,null,null,null,null,null,null,null,null,null,null,null,null,null,null,null,null,null,null,null,null,null,null,null,null,{"$f":"AK19","v":-1410.7359501595577},{"$f":"AL19","v":-1482.2945579585967},-1540.7775002804067,-1606.5509359934767,-1680.9366403662643,-1759.5295738364018,-1858.0751662023056]
[null,null,null,null,"Opening total net debt (after equity issuance)",null,"£m nominal",null,null,null,null,null,null,null,null,null,null,null,null,null,null,null,null,null,null,null,null,null,null,null,null,null,null,null,null,{"$f":"AJ22","v":-1323.0759020194735},{"$f":"AK21","v":-1387.397763569935},{"$f":"AL21","v":-1452.1415254370609},-1513.6289917617034,-1578.5914405286956,-1650.362451393672,-1727.2562626211266,-1818.4632479466161]
[]
[null,"Regearing"]
[]
[null,null,"Overall opening gearing"]
[null,null,"Note: Opening values are based on real opening RAV inflated by the previous years prices."]
[]
[null,null,null,null,"Opening total net debt (before equity issuance)",null,"£m nominal",null,null,null,null,null,null,null,null,null,null,null,null,null,null,null,null,null,null,null,null,null,null,null,null,null,null,null,null,null,{"$f":"AK40","v":-1410.7359501595577},-1482.2945579585967,-1540.7775002804067,-1606.5509359934767,-1680.9366403662643,-1759.5295738364018,-1858.0751662023056]
[]
[null,null,null,null,"Opening RAV (after transfers)",null,"£m nominal",null,null,null,null,null,null,null,null,null,null,null,null,null,null,null,null,null,null,null,null,null,null,null,null,null,null,null,null,{"$f":"('Return&RAV'!AJ44)* Input!AI$54 / Input!$AG$54","v":2035.5013877222668},{"$f":"('Return&RAV'!AK44)* Input!AJ$54 / Input!$AG$54","v":2134.4580977998999},{"$f":"('Return&RAV'!AL44)* Input!AK$54 / Input!$AG$54","v":2234.063885287786},{"$f":"('Return&RAV'!AM44)* Input!AL$54 / Input!$AG$54","v":2328.6599873256978},{"$f":"('Return&RAV'!AN44)* Input!AM$54 / Input!$AG$54","v":2428.6022161979931},{"$f":"('Return&RAV'!AO44)* Input!AN$54 / Input!$AG$54","v":2539.0191559902646},{"$f":"('Return&RAV'!AP44)* Input!AO$54 / Input!$AG$54","v":2657.3173271094252},{"$f":"('Return&RAV'!AQ44)* Input!AP$54 / Input!$AG$54","v":2797.6357660717167}]
[null,null,null,null,"Total opening regulatory assets (after transfers)",null,"£m nominal",null,null,null,null,null,null,null,null,null,null,null,null,null,null,null,null,null,null,null,null,null,null,null,null,null,null,null,null,{"$f":"SUM(AJ50:AJ50)","v":2035.5013877222668},2134.4580977998999,2234.063885287786,2328.6599873256978,2428.6022161979931,2539.0191559902646,2657.3173271094252,2797.6357660717167]
[]
[null,null,null,null,"Overall gearing at start of year (before equity issuance)",null,"%",null,null,null,null,null,null,null,null,null,null,null,null,null,null,null,null,null,null,null,null,null,null,null,null,null,null,null,null,null,{"$f":" - AK48 / AK$51","v":0.66093401018913356},0.66349694282249749,0.66165842530316388,0.66151258747863295,0.66204173229668595,0.66214507235776077,0.66415906914548439]
[]
[null,null,"Start of price control notional regearing"]
[null,null,"Note: An allowance is given to cover the change in notional gearing from its level in the previous price control. "]
[null,null,"For transmission only, where the Pre-RIIO closing gearing is higher than the notional opening gear the notional gearing at the start of RIIO will be uplifted to reflect this difference."]
[]
[]
[null,null,null,null,{"$f":"\"Notional Gearing in \"&TEXT($AI$7,\"dd-mm-yyyy\")","v":"Notional Gearing in 31-03-2015"},null,"%",null,null,">",null,null,null,null,null,null,null,null,null,null,null,null,null,null,null,null,null,null,null,null,null,null,null,null,null,{"$f":"Input!AI46","v":0.65},{"$f":"E60","v":"Notional Gearing in 31-03-2015"}]
[null,null,null,null,{"$f":"\"Notional Gearing in \"&TEXT($AJ$7,\"dd-mm-yyyy\")","v":"Notional Gearing in 31-03-2016"},null,"%",null,null,">",null,null,null,null,null,null,null,null,null,null,null,null,null,null,null,null,null,null,null,null,null,null,null,null,null,{"$f":"Input!AJ46","v":0.65},{"$f":"E61","v":"Notional Gearing in 31-03-2016"}]
[]
[null,null,null,null,"Start of price control change in notional gearing",null,"%",null,null,null,null,null,null,null,null,null,null,null,null,null,null,null,null,null,null,null,null,null,null,null,null,null,null,null,null,{"$f":"IF(AJ60 >= AJ61+ Input!$I$78, AJ60 - AJ61, 0)","v":0}]
[null,null,null,null,"Total opening regulatory assets (after transfers)",null,"£m nominal",null,null,null,null,null,null,null,null,null,null,null,null,null,null,null,null,null,null,null,null,null,null,null,null,null,null,null,null,{"$f":"AJ51","v":2035.5013877222668}]
[]
[null,null,null,null,"Movement in net debt for notional regearing change",null,"£m nominal",null,null,null,null,null,null,null,null,null,null,null,null,null,null,null,null,null,null,null,null,null,null,null,null,null,null,null,null,{"$f":" AJ63 * AJ$64","v":0}]
[]
[null,null,"Equity issuance"]
[null,null,"Note: If opening overall gearing exceeds its target level beyond a given threshold, an equity issuance is triggered, bringing opening gearing back to its target level. An allowance is calculated for the cost of raising this equity."]
[]
[null,null,null,null,"Total opening regulatory assets (after transfers)",null,"£m nominal",null,null,null,null,null,null,null,null,null,null,null,null,null,null,null,null,null,null,null,null,null,null,null,null,null,null,null,null,null,{"$f":"AK51","v":2134.4580977998999},{"$f":"AL51","v":2234.063885287786},2328.6599873256978,2428.6022161979931,2539.0191559902646,2657.3173271094252,2797.6357660717167]
[]
[null,null,null,null,"Overall gearing at start of year (before equity issuance)",null,"%",null,null,null,null,null,null,null,null,null,null,null,null,null,null,null,null,null,null,null,null,null,null,null,null,null,null,null,null,null,{"$f":"AK53","v":0.66093401018913356},{"$f":"AL53","v":0.66349694282249749},0.66165842530316388,0.66151258747863295,0.66204173229668595,0.66214507235776077,0.66415906914548439]
[null,null,null,null,"Less target gearing for equity issuance",null,"%",null,null,null,null,null,null,null,null,null,null,null,null,null,null,null,null,null,null,null,null,null,null,null,null,null,null,null,null,null,{"$f":"-Input!AK82","v":-0.65},{"$f":"-Input!AL82","v":-0.65},{"$f":"-Input!AM82","v":-0.65},{"$f":"-Input!AN82","v":-0.65},{"$f":"-Input!AO82","v":-0.65},{"$f":"-Input!AP82","v":-0.65},{"$f":"-Input!AQ82","v":-0.65}]
[null,null,null,null,"Deviation from equity issuance target gearing",null,"%",null,null,null,null,null,null,null,null,null,null,null,null,null,null,null,null,null,null,null,null,null,null,null,null,null,null,null,null,null,{"$f":"SUM(AK73:AK74)","v":1.0934010189133536E-2},{"$f":"SUM(AL73:AL74)","v":1.3496942822497471E-2},1.1658425303163855E-2,1.151258747863293E-2,1.2041732296685925E-2,1.2145072357760744E-2,1.4159069145484371E-2]
[]
[null,null,null,null,"Threshold deviation above target level",null,"%",null,{"$f":"Input!I78","v":0}]
[null,null,null,null,"Equity issuance threshold met",null,"text",null,null,null,null,null,null,null,null,null,null,null,null,null,null,null,null,null,null,null,null,null,null,null,null,null,null,null,null,null,{"$f":"AK75 >= $I77","v":true},{"$f":"AL75 >= $I77","v":true},true,true,true,true,true]
[]
[null,null,null,null,"Equity issuance",null,"£m nominal",null,null,null,null,null,null,null,null,null,null,null,null,null,null,null,null,null,null,null,null,null,null,null,null,null,null,null,null,null,{"$f":"AK71 * AK75 * AK78","v":23.338186589622691},{"$f":"AL71 * AL75 * AL78","v":30.153032521535795},27.148508518703139,27.959495464781199,{"$f":"AO71 * AO75 * AO78","v":30.574188972592207},32.273311215275342,39.611918255689574]
[]
[null,null,"Start of year gearing equalisation "]
[null,null,"Note: Movements in cash flow allow gearing levels to diverge within the year. Net debt transfers at the start of the year equalise levels of gearing across the company."]
[]
[]
[null,null,null,null,"Opening total net debt (after equity issuance)",null,"£m nominal",null,null,null,null,null,null,null,null,null,null,null,null,null,null,null,null,null,null,null,null,null,null,null,null,null,null,null,null,{"$f":"AJ41","v":-1323.0759020194735},{"$f":"AK41","v":-1387.397763569935},{"$f":"AL41","v":-1452.1415254370609},-1513.6289917617034,-1578.5914405286956,-1650.362451393672,-1727.2562626211266,-1818.4632479466161]
[null,null,null,null,"Total opening regulatory assets (after transfers)",null,"£m nominal",null,null,null,null,null,null,null,null,null,null,null,null,null,null,null,null,null,null,null,null,null,null,null,null,null,null,null,null,{"$f":"AJ51","v":2035.5013877222668},{"$f":"AK51","v":2134.4580977998999},2234.063885287786,2328.6599873256978,2428.6022161979931,2539.0191559902646,2657.3173271094252,2797.6357660717167]
[]
[null,null,null,null,"Overall gearing at start of year (after equity issuance)",null,"%",null,null,null,null,null,null,null,null,null,null,null,null,null,null,null,null,null,null,null,null,null,null,null,null,null,null,null,null,{"$f":"-AJ86/AJ87","v":0.65},0.65,0.65,0.64999999999999991,0.65,0.65,0.65,0.65000000000000013]
[]
[null,"Financing costs"]
[]
[null,null,"Interest"]
[]
[null,null,null,"Forecast cost of debt"]
[null,null,null,"Note: The nominal cost of debt is calculated and adjusted for any portion indexed for inflation."]
[]
[null,null,null,null,"Cost of debt",null,"annual real %",null,null,null,null,null,null,null,null,null,null,null,null,null,null,null,null,null,null,null,null,null,null,null,null,null,null,null,null,{"$f":"Input!AJ44","v":2.92E-2},{"$f":"Input!AK44","v":2.92E-2},{"$f":"Input!AL44","v":2.92E-2},{"$f":"Input!AM44","v":2.92E-2},{"$f":"Input!AN44","v":2.92E-2},{"$f":"Input!AO44","v":2.92E-2},{"$f":"Input!AP44","v":2.92E-2},{"$f":"Input!AQ44","v":2.92E-2}]
[null,null,null,null,"Forecast Debt inflation",null,"annual %",null,null,null,null,null,null,null,null,null,null,null,null,null,null,null,null,null,null,null,null,null,null,null,null,null,null,null,null,{"$f":"Input!AJ55/Input!AI55-1","v":2.800026298589553E-2},{"$f":"Input!AK55/Input!AJ55-1","v":2.8001309210748948E-2},{"$f":"Input!AL55/Input!AK55-1","v":2.799979506096939E-2},{"$f":"Input!AM55/Input!AL55-1","v":2.7998988974841765E-2},{"$f":"Input!AN55/Input!AM55-1","v":2.8001717641844115E-2},{"$f":"Input!AO55/Input!AN55-1","v":2.8000296442022066E-2},{"$f":"Input!AP55/Input!AO55-1","v":2.8001153470570195E-2},{"$f":"Input!AQ55/Input!AP55-1","v":2.8000293263545029E-2}]
[]
[null,null,null,null,"Forecast cost of debt",null,"nominal annual %",null,null,null,null,null,null,null,null,null,null,null,null,null,null,null,null,null,null,null,null,null,null,null,null,null,null,null,null,{"$f":"(((1 + AJ98) * (1 + AJ99)) - 1)","v":5.8017870665083571E-2},{"$f":"((1 + AK98) * (1 + AK99)) - 1","v":5.8018947439702817E-2},5.8017389076749692E-2,5.8016559452906957E-2,5.8019367796985799E-2,5.8017905098129097E-2,5.8018787151910667E-2,5.8017901826840523E-2]
[]
[null,null,null,"Average net debt (except for interest and tax)"]
[]
[null,null,null,null,"Opening net debt",null,"£m nominal",null,null,null,null,null,null,null,null,null,null,null,null,null,null,null,null,null,null,null,null,null,null,null,null,null,null,null,null,{"$f":"AJ22","v":-1323.0759020194735},{"$f":"AK22","v":-1387.397763569935},{"$f":"AL22","v":-1452.1415254370609},-1513.6289917617034,-1578.5914405286956,-1650.362451393672,-1727.2562626211266,-1818.4632479466161]
[null,null,null,null,"Closing net debt (except for interest and tax)",null,"£m nominal",null,null,null,null,null,null,null,null,null,null,null,null,null,null,null,null,null,null,null,null,null,null,null,null,null,null,null,null,{"$f":"AJ31","v":-1335.2124482684223},{"$f":"AK31","v":-1404.7189739247019},-1459.7161512814669,-1521.8437640017439,-1592.2144523134789,-1666.5305931830203,-1760.1636102060986,-1854.9609871920138]
[]
[null,null,null,null,"Average net debt (except for interest and tax)",null,"£m nominal",null,null,null,null,null,null,null,null,null,null,null,null,null,null,null,null,null,null,null,null,null,null,null,null,null,null,null,null,{"$f":"AVERAGE(AJ105:AJ106)","v":-1329.1441751439479},-1396.0583687473186,-1455.9288383592639,-1517.7363778817237,-1585.4029464210871,-1658.4465222883462,-1743.7099364136125,-1836.7121175693151]
[]
[null,null,null,"Net interest received"]
[]
[null,null,null,null,"Average net debt (except for interest and tax)",null,"£m nominal",null,null,null,null,null,null,null,null,null,null,null,null,null,null,null,null,null,null,null,null,null,null,null,null,null,null,null,null,{"$f":"AJ108","v":-1329.1441751439479},{"$f":"AK108","v":-1396.0583687473186},-1455.9288383592639,-1517.7363778817237,-1585.4029464210871,-1658.4465222883462,-1743.7099364136125,-1836.7121175693151]
[null,null,null,null,"Forecast cost of debt",null,"%",null,null,null,null,null,null,null,null,null,null,null,null,null,null,null,null,null,null,null,null,null,null,null,null,null,null,null,null,{"$f":"AJ101","v":5.8017870665083571E-2},{"$f":"AK101","v":5.8018947439702817E-2},5.8017389076749692E-2,5.8016559452906957E-2,5.8019367796985799E-2,5.8017905098129097E-2,5.8018787151910667E-2,5.8017901826840523E-2]
[]
[null,null,null,null,"Net interest received",null,"£m nominal",null,null,null,null,null,null,null,null,null,null,null,null,null,null,null,null,null,null,null,null,null,null,null,null,null,null,null,null,{"$f":"AJ112 * AJ113","v":-77.114114848750759},{"$f":"AK112 * AK113","v":-80.997837119107928},-84.469189883149625,-88.053842801214685,-91.984076654830019,-96.219592940447512,-101.16793565545306,-106.56218332130489]
[]
[null,null,null,"Inflation coupon on index linked debt"]
[null,null,null,"Note: The inflation coupon from index linked debt is identified separately from other interest costs."]
[]
[null,null,null,null,"Index-linked debt as a percentage of net debt",null,"%",null,null,null,null,null,null,null,null,null,null,null,null,null,null,null,null,null,null,null,null,null,null,null,null,null,null,null,null,{"$f":"Input!AJ84","v":0.25},{"$f":"Input!AK84","v":0.25},{"$f":"Input!AL84","v":0.25},{"$f":"Input!AM84","v":0.25},{"$f":"Input!AN84","v":0.25},{"$f":"Input!AO84","v":0.25},{"$f":"Input!AP84","v":0.25},{"$f":"Input!AQ84","v":0.25}]
[null,null,null,null,"Cost of debt",null,"annual real %",null,null,null,null,null,null,null,null,null,null,null,null,null,null,null,null,null,null,null,null,null,null,null,null,null,null,null,null,{"$f":"AJ98","v":2.92E-2},{"$f":"AK98","v":2.92E-2},2.92E-2,2.92E-2,2.92E-2,2.92E-2,2.92E-2,2.92E-2]
[null,null,null,null,"Forecast cost of debt",null,"nominal annual %",null,null,null,null,null,null,null,null,null,null,null,null,null,null,null,null,null,null,null,null,null,null,null,null,null,null,null,null,{"$f":"AJ101","v":5.8017870665083571E-2},{"$f":"AK101","v":5.8018947439702817E-2},5.8017389076749692E-2,5.8016559452906957E-2,5.8019367796985799E-2,5.8017905098129097E-2,5.8018787151910667E-2,5.8017901826840523E-2]
[]
[null,null,null,null,"Share of interest as inflation coupon",null,"%",null,null,null,null,null,null,null,null,null,null,null,null,null,null,null,null,null,null,null,null,null,null,null,null,null,null,null,null,{"$f":"1 - ((AJ120 * AJ121) + ((1 - AJ120) * AJ122)) / AJ122","v":0.12417669907018314},{"$f":"1 - ((AK120 * AK121) + ((1 - AK120) * AK122)) / AK122","v":0.12417903422693677},0.12417565464135205,0.12417385538131509,0.12417994581493441,0.12417677374505198,0.12417868662289677,0.12417676665061961]
[]
[null,null,null,"Allocation to interest or inflation coupon"]
[]
[null,null,null,null,"Net interest received",null,"£m nominal",null,null,null,null,null,null,null,null,null,null,null,null,null,null,null,null,null,null,null,null,null,null,null,null,null,null,null,null,{"$f":"AJ115","v":-77.114114848750759},{"$f":"AK115","v":-80.997837119107928},-84.469189883149625,-88.053842801214685,-91.984076654830019,-96.219592940447512,-101.16793565545306,-106.56218332130489]
[null,null,null,null,"Share of interest as inflation coupon",null,"%",null,null,null,null,null,null,null,null,null,null,null,null,null,null,null,null,null,null,null,null,null,null,null,null,null,null,null,null,{"$f":"AJ124","v":0.12417669907018314},0.12417903422693677,0.12417565464135205,0.12417385538131509,0.12417994581493441,0.12417677374505198,0.12417868662289677,0.12417676665061961]
[]
[null,null,null,null,"Net interest received (interest coupon)",null,"£m nominal",null,null,null,null,null,null,null,null,null,null,null,null,null,null,null,null,null,null,null,null,null,null,null,null,null,null,null,null,{"$f":"AJ$128 * (1 - AJ$129)","v":-67.538338615113901},{"$f":"AK$128 * (1 - AK$129)","v":-70.939603931186369},-73.980172932384846,-77.119857659447604,-80.561498999996459,-84.271354318040565,-88.605034277409175,-93.329635949234657]
[]
[null,null,null,null,"Net interest received (inflation coupon)",null,"£m nominal",null,null,null,null,null,null,null,null,null,null,null,null,null,null,null,null,null,null,null,null,null,null,null,null,null,null,null,null,{"$f":"AJ$128 * AJ$129","v":-9.5757762336368639},{"$f":"AK$128 * AK$129","v":-10.058233187921553},-10.489016950764777,-10.933985141767085,-11.422577654833566,-11.948238622406953,-12.562901378043891,-13.232547372070226]
[]
[]
[null,null,"Cost of raising equity"]
[null,null,"Note: If equity issuance is negative, then equity issuance costs are set to zero"]
[]
[null,null,null,null,"Start of price control change in notional gearing",null,"£m nominal",null,null,null,null,null,null,null,null,null,null,null,null,null,null,null,null,null,null,null,null,null,null,null,null,null,null,null,null,{"$f":"AJ66","v":0}]
[null,null,null,null,"Issue or redeem equity",null,"£m nominal",null,null,null,null,null,null,null,null,null,null,null,null,null,null,null,null,null,null,null,null,null,null,null,null,null,null,null,null,null,{"$f":"AK80","v":23.338186589622691},30.153032521535795,27.148508518703139,27.959495464781199,30.574188972592207,32.273311215275342,39.611918255689574]
[null,null,null,null,"Equity issuance with issuance costs allowed",null,"£m nominal",null,null,null,null,null,null,null,null,null,null,null,null,null,null,null,null,null,null,null,null,null,null,null,null,null,null,null,null,{"$f":"IF(SUM(AJ139:AJ140) > 0,SUM(AJ139:AJ140),0)","v":0},{"$f":"IF(SUM(AK139:AK140) > 0,SUM(AK139:AK140),0)","v":23.338186589622691},30.153032521535795,27.148508518703139,27.959495464781199,30.574188972592207,32.273311215275342,39.611918255689574]
[]
[null,null,null,null,"Equity issuance cost as percentage of new equity",null,"%",null,{"$f":"Input!I79","v":0}]
[]
[null,null,null,null,"Equity issuance cost",null,"£m nominal",null,null,null,null,null,null,null,null,null,null,null,null,null,null,null,null,null,null,null,null,null,null,null,null,null,null,null,null,{"$f":"AJ141 * $I143","v":0},{"$f":"AK141 * $I143","v":0},0,0,0,0,0,0]
[]
[null,null,"Dividends"]
[null,null,"Note: Unlike interest, dividends are based on notional rather than modelled gearing levels."]
[]
[]
[null,null,null,null,"Closing RAV",null,"£m nominal",null,null,">",null,null,null,null,null,null,null,null,null,null,null,null,null,null,null,null,null,null,null,null,null,null,null,null,null,{"$f":"'Return&RAV'!AJ47 * Input!AJ54 / Input!$AG$54","v":2134.4580977998999},{"$f":"'Return&RAV'!AK47 * Input!AK54 / Input!$AG$54","v":2234.063885287786},{"$f":"'Return&RAV'!AL47 * Input!AL54 / Input!$AG$54","v":2328.6599873256978},{"$f":"'Return&RAV'!AM47 * Input!AM54 / Input!$AG$54","v":2428.6022161979931},{"$f":"'Return&RAV'!AN47 * Input!AN54 / Input!$AG$54","v":2539.0191559902646},{"$f":"'Return&RAV'!AO47 * Input!AO54 / Input!$AG$54","v":2657.3173271094252},{"$f":"'Return&RAV'!AP47 * Input!AP54 / Input!$AG$54","v":2797.6357660717167},{"$f":"'Return&RAV'!AQ47 * Input!AQ54 / Input!$AG$54","v":2947.9695220333851}]
[null,null,null,null,"Assumed equity portion of RAV",null,"%",null,null,null,null,null,null,null,null,null,null,null,null,null,null,null,null,null,null,null,null,null,null,null,null,null,null,null,null,{"$f":"(1-Input!AJ46)","v":0.35},{"$f":"(1-Input!AK46)","v":0.35},{"$f":"(1-Input!AL46)","v":0.35},{"$f":"(1-Input!AM46)","v":0.35},{"$f":"(1-Input!AN46)","v":0.35},{"$f":"(1-Input!AO46)","v":0.35},{"$f":"(1-Input!AP46)","v":0.35},{"$f":"(1-Input!AQ46)","v":0.35}]
[null,null,null,null,"Assumed dividends as percentage of notional equity portion of RAV",null,"%",null,null,null,null,null,null,null,null,null,null,null,null,null,null,null,null,null,null,null,null,null,null,null,null,null,null,null,null,{"$f":"Input!$I$80","v":6.7000000000000004E-2},{"$f":"AJ153","v":6.7000000000000004E-2},6.7000000000000004E-2,6.7000000000000004E-2,6.7000000000000004E-2,6.7000000000000004E-2,6.7000000000000004E-2,6.7000000000000004E-2]
[]
[null,null,null,null,"Notional dividends",null,"£m nominal",null,null,null,null,null,null,null,null,null,null,null,null,null,null,null,null,null,null,null,null,null,null,null,null,null,null,null,null,{"$f":"AJ151 * AJ152 * AJ153","v":50.053042393407658},{"$f":"AK151 * AK152 * AK153","v":52.388798109998575},54.607076702787616,56.950721969842938,59.539999207971704,62.314091320716017,65.604558714381753,69.129885291682882]
[]
[null,"Tax allowance"]
[]
[null,null,"Tax base"]
[null,null,"Note: The tax charge is calculated before tax on tax. Tax on tax is added after losses are taken into account."]
[]
[null,null,null,null,"Add recalculated base revenue (except tax allowance), incl add. Income",null,"£m nominal",null,null,null,null,null,null,null,null,null,null,null,null,null,null,null,null,null,null,null,null,null,null,null,null,null,null,null,null,{"$f":"Revenue!AJ20 * Input!AJ$54 / Input!$AG$54","v":407.30310081717823},{"$f":"Revenue!AK20 * Input!AK$54 / Input!$AG$54","v":425.12474509132636},{"$f":"Revenue!AL20 * Input!AL$54 / Input!$AG$54","v":442.25421755999002},{"$f":"Revenue!AM20 * Input!AM$54 / Input!$AG$54","v":465.3490568801621},{"$f":"Revenue!AN20 * Input!AN$54 / Input!$AG$54","v":491.11100701938818},{"$f":"Revenue!AO20 * Input!AO$54 / Input!$AG$54","v":510.93862513855572},{"$f":"Revenue!AP20 * Input!AP$54 / Input!$AG$54","v":506.31846180576053},{"$f":"Revenue!AQ20 * Input!AQ$54 / Input!$AG$54","v":523.79781307817223}]
[null,null,null,null,"Add net DART impact on tax calculation",null,"£m nominal",null,null,null,null,null,null,null,null,null,null,null,null,null,null,null,null,null,null,null,null,null,null,null,null,null,null,null,null,{"$f":"DARTs!AJ75 * Input!AJ54/Input!$AG54","v":-26.454412866373826},{"$f":"DARTs!AK75 * Input!AK54/Input!$AG54","v":-27.226923201340743},{"$f":"DARTs!AL75 * Input!AL54/Input!$AG54","v":-28.023297630697023},{"$f":"DARTs!AM75 * Input!AM54/Input!$AG54","v":-28.844384642672349},{"$f":"DARTs!AN75 * Input!AN54/Input!$AG54","v":-29.691151442201601},{"$f":"DARTs!AO75 * Input!AO54/Input!$AG54","v":-30.56438541962034},{"$f":"DARTs!AP75 * Input!AP54/Input!$AG54","v":-31.465095309726973},{"$f":"DARTs!AQ75 * Input!AQ54/Input!$AG54","v":-32.394212696384443}]
[null,null,null,null,"Less additional income",null,"£m nominal",null,null,null,null,null,null,null,null,null,null,null,null,null,null,null,null,null,null,null,null,null,null,null,null,null,null,null,null,{"$f":"-TIM!AJ84 * Input!AJ54/Input!$AG54","v":-7.0806725279684608},{"$f":"-TIM!AK84 * Input!AK54/Input!$AG54","v":-7.2886742211774864},{"$f":"-TIM!AL84 * Input!AL54/Input!$AG54","v":-7.2772617488244062},{"$f":"-TIM!AM84 * Input!AM54/Input!$AG54","v":-7.6128066403586336},{"$f":"-TIM!AN84 * Input!AN54/Input!$AG54","v":-8.0641513757085495},{"$f":"-TIM!AO84 * Input!AO54/Input!$AG54","v":-8.4399528763896043},{"$f":"-TIM!AP84 * Input!AP54/Input!$AG54","v":-8.6000821128627063},{"$f":"-TIM!AQ84 * Input!AQ54/Input!$AG54","v":-8.9314849598905024}]
[null,null,null,null,"Less net interest paid (interest coupon)",null,"£m nominal",null,null,null,null,null,null,null,null,null,null,null,null,null,null,null,null,null,null,null,null,null,null,null,null,null,null,null,null,{"$f":"AJ131","v":-67.538338615113901},{"$f":"AK131","v":-70.939603931186369},-73.980172932384846,-77.119857659447604,-80.561498999996459,-84.271354318040565,-88.605034277409175,-93.329635949234657]
[null,null,null,null,"Less net interest paid (inflation coupon)",null,"£m nominal",null,null,null,null,null,null,null,null,null,null,null,null,null,null,null,null,null,null,null,null,null,null,null,null,null,null,null,null,{"$f":"AJ133","v":-9.5757762336368639},{"$f":"AK133","v":-10.058233187921553},-10.489016950764777,-10.933985141767085,-11.422577654833566,-11.948238622406953,-12.562901378043891,-13.232547372070226]
[null,null,null,null,"Less revenue tax pool additions",null,"£m nominal",null,null,null,null,null,null,null,null,null,null,null,null,null,null,null,null,null,null,null,null,null,null,null,null,null,null,null,null,{"$f":"-TaxPools!AJ70*Input!AJ54/Input!$AG54","v":-122.15121488174047},{"$f":"-TaxPools!AK70*Input!AK54/Input!$AG54","v":-126.17141717363387},{"$f":"-TaxPools!AL70*Input!AL54/Input!$AG54","v":-133.47901123725313},{"$f":"-TaxPools!AM70*Input!AM54/Input!$AG54","v":-143.83218392435344},{"$f":"-TaxPools!AN70*Input!AN54/Input!$AG54","v":-156.23941919217867},{"$f":"-TaxPools!AO70*Input!AO54/Input!$AG54","v":-161.62166564689957},{"$f":"-TaxPools!AP70*Input!AP54/Input!$AG54","v":-163.55631931628014},{"$f":"-TaxPools!AQ70*Input!AQ54/Input!$AG54","v":-168.9450497254235}]
[null,null,null,null,"Less capital allowances",null,"£m nominal",null,null,null,null,null,null,null,null,null,null,null,null,null,null,null,null,null,null,null,null,null,null,null,null,null,null,null,null,{"$f":"-TaxPools!AJ121","v":-96.10536302645518},{"$f":"-TaxPools!AK121","v":-101.72990519730313},{"$f":"-TaxPools!AL121","v":-106.04745148521513},{"$f":"-TaxPools!AM121","v":-110.46867722606005},{"$f":"-TaxPools!AN121","v":-116.31204170645644},{"$f":"-TaxPools!AO121","v":-122.66671986642321},{"$f":"-TaxPools!AP121","v":-128.64548309412521},{"$f":"-TaxPools!AQ121","v":-134.66719749643977}]
[null,null,null,null,"Profits attributable to corporation tax (before Tax Clawback)",null,"£m nominal",null,null,null,null,null,null,null,null,null,null,null,null,null,null,null,null,null,null,null,null,null,null,null,null,null,null,null,null,{"$f":"SUM(AJ162:AJ168)","v":78.397322665889462},81.709988178763254,82.958005574850716,86.537161645502906,88.820166648012915,91.426308388775468,72.883546317312465,72.297684878729143]
[]
[null,null,"Tax allowance"]
[]
[null,null,null,"Regulatory Tax losses"]
[]
[null,null,null,null,"Taxable losses brought forward",null,"£m nominal",null,null,null,null,null,null,null,null,null,null,null,null,null,null,null,null,null,null,null,null,null,null,null,null,null,null,null,null,{"$f":"-ABS(Input!AH336)","v":0},{"$f":"SUM(AJ180)","v":0},{"$f":"SUM(AK180)","v":0},0,0,0,0,0]
[null,null,null,null,"In-year taxable loss",null,"£m nominal",null,null,null,null,null,null,null,null,null,null,null,null,null,null,null,null,null,null,null,null,null,null,null,null,null,null,null,null,{"$f":"MIN(AJ169, 0)","v":0},{"$f":"MIN(AK169, 0)","v":0},{"$f":"MIN(AL169, 0)","v":0},0,0,0,0,0]
[null,null,null,null,"Contributions to losses from clawback",null,"£m nominal",null,null,null,null,null,null,null,null,null,null,null,null,null,null,null,null,null,null,null,null,null,null,null,null,null,null,null,null,{"$f":"-Input!AJ33*(1/AJ186)","v":0},{"$f":"-Input!AK33*(1/AK186)","v":0},{"$f":"-Input!AL33*(1/AL186)","v":0},{"$f":"-Input!AM33*(1/AM186)","v":0},{"$f":"-Input!AN33*(1/AN186)","v":0},{"$f":"-Input!AO33*(1/AO186)","v":0},{"$f":"-Input!AP33*(1/AP186)","v":0},{"$f":"-Input!AQ33*(1/AQ186)","v":0}]
[null,null,null,null,"Adjustment to losses from tax trigger",null,"£m nominal",null,null,null,null,null,null,null,null,null,null,null,null,null,null,null,null,null,null,null,null,null,null,null,null,null,null,null,null,{"$f":"-IF(Input!AJ34>0,-MIN(Input!AJ34*(Input!AJ$54/Input!$AG54)*(1/AJ186),MAX(-(AJ169+SUM(AJ175:AJ177)),0)),-MIN(Input!AJ34*(Input!AJ$54/Input!$AG54)*(1/AJ186),MAX(AJ169+SUM(AJ175:AJ177),0)))","v":0},{"$f":"-IF(Input!AK34>0,-MIN(Input!AK34*(Input!AK$54/Input!$AG54)*(1/AK186),MAX(-(AK169+SUM(AK175:AK177)),0)),-MIN(Input!AK34*(Input!AK$54/Input!$AG54)*(1/AK186),MAX(AK169+SUM(AK175:AK177),0)))","v":0},{"$f":"-IF(Input!AL34>0,-MIN(Input!AL34*(Input!AL$54/Input!$AG54)*(1/AL186),MAX(-(AL169+SUM(AL175:AL177)),0)),-MIN(Input!AL34*(Input!AL$54/Input!$AG54)*(1/AL186),MAX(AL169+SUM(AL175:AL177),0)))","v":0},{"$f":"-IF(Input!AM34>0,-MIN(Input!AM34*(Input!AM$54/Input!$AG54)*(1/AM186),MAX(-(AM169+SUM(AM175:AM177)),0)),-MIN(Input!AM34*(Input!AM$54/Input!$AG54)*(1/AM186),MAX(AM169+SUM(AM175:AM177),0)))","v":0},{"$f":"-IF(Input!AN34>0,-MIN(Input!AN34*(Input!AN$54/Input!$AG54)*(1/AN186),MAX(-(AN169+SUM(AN175:AN177)),0)),-MIN(Input!AN34*(Input!AN$54/Input!$AG54)*(1/AN186),MAX(AN169+SUM(AN175:AN177),0)))","v":0},{"$f":"-IF(Input!AO34>0,-MIN(Input!AO34*(Input!AO$54/Input!$AG54)*(1/AO186),MAX(-(AO169+SUM(AO175:AO177)),0)),-MIN(Input!AO34*(Input!AO$54/Input!$AG54)*(1/AO186),MAX(AO169+SUM(AO175:AO177),0)))","v":0},{"$f":"-IF(Input!AP34>0,-MIN(Input!AP34*(Input!AP$54/Input!$AG54)*(1/AP186),MAX(-(AP169+SUM(AP175:AP177)),0)),-MIN(Input!AP34*(Input!AP$54/Input!$AG54)*(1/AP186),MAX(AP169+SUM(AP175:AP177),0)))","v":0},{"$f":"-IF(Input!AQ34>0,-MIN(Input!AQ34*(Input!AQ$54/Input!$AG54)*(1/AQ186),MAX(-(AQ169+SUM(AQ175:AQ177)),0)),-MIN(Input!AQ34*(Input!AQ$54/Input!$AG54)*(1/AQ186),MAX(AQ169+SUM(AQ175:AQ177),0)))","v":0}]
[null,null,null,null,"Profits reduced by tax losses ",null,"£m nominal",null,null,null,null,null,null,null,null,null,null,null,null,null,null,null,null,null,null,null,null,null,null,null,null,null,null,null,null,{"$f":"IF(AJ169 >= 0, MIN(AJ169, -AJ175-AJ177-AJ178), 0)","v":0},0,0,0,0,0,0,0]
[null,null,null,null,"Balance carried forward",null,"£m nominal",null,null,null,null,null,null,null,null,null,null,null,null,null,null,null,null,null,null,null,null,null,null,null,null,null,null,null,null,{"$f":"SUM(AJ175:AJ179)","v":0},0,0,0,0,0,0,0]
[]
[null,null,null,"Tax allowance (before Tax Trigger adjustment)"]
[null,null,null,"Note: A \"grossing-up factor\" based on the infinite geometric progression of being taxed on tax is used to move the tax allowance from a post-tax to a pre-tax basis. This can only be applied once tax losses have been taken into account."]
[]
[null,null,null,null,"Profits attributable to corporation tax (after taxable losses)",null,"£m nominal",null,null,null,null,null,null,null,null,null,null,null,null,null,null,null,null,null,null,null,null,null,null,null,null,null,null,null,null,{"$f":"MAX(AJ169-AJ179,0)","v":78.397322665889462},81.709988178763254,82.958005574850716,86.537161645502906,88.820166648012915,91.426308388775468,72.883546317312465,72.297684878729143]
[null,null,null,null,"Corporation tax rate",null,"%",null,null,null,null,null,null,null,null,null,null,null,null,null,null,null,null,null,null,null,null,null,null,null,null,null,null,null,null,{"$f":"TaxTrigger!AJ$97","v":0.2},{"$f":"TaxTrigger!AK$97","v":0.2},{"$f":"TaxTrigger!AL$97","v":0.2},{"$f":"TaxTrigger!AM$97","v":0.2},{"$f":"TaxTrigger!AN$97","v":0.2},{"$f":"TaxTrigger!AO$97","v":0.2},{"$f":"TaxTrigger!AP$97","v":0.2},{"$f":"TaxTrigger!AQ$97","v":0.2}]
[null,null,null,null,"Corporation tax charge after losses",null,"£m nominal",null,null,null,null,null,null,null,null,null,null,null,null,null,null,null,null,null,null,null,null,null,null,null,null,null,null,null,null,{"$f":"AJ186*AJ185","v":15.679464533177892},16.341997635752652,16.591601114970143,17.307432329100582,17.764033329602583,18.285261677755095,14.576709263462494,14.459536975745829]
[]
[null,null,null,null,"\"Grossing-up\" factor for tax on tax charge after losses",null,"scalar",null,null,null,null,null,null,null,null,null,null,null,null,null,null,null,null,null,null,null,null,null,null,null,null,null,null,null,null,{"$f":"1 / (1 - AJ186)","v":1.25},1.25,1.25,1.25,1.25,1.25,1.25,1.25]
[]
[null,null,null,null,"Tax allowance (net adjustment for Tax Trigger/clawback)",null,"£m nominal",null,null,null,null,null,null,null,null,null,null,null,null,null,null,null,null,null,null,null,null,null,null,null,null,null,null,null,null,{"$f":"AJ187 * AJ189","v":19.599330666472365},20.427497044690814,20.739501393712679,21.634290411375726,22.205041662003229,22.85657709719387,18.220886579328116,18.074421219682286]
[]
[null,null,null,"Tax allowance"]
[]
[null,null,null,null,"Tax allowance",null,"£m nominal",null,null,null,null,null,null,null,null,null,null,null,null,null,null,null,null,null,null,null,null,null,null,null,null,null,null,null,null,{"$f":"AJ191","v":19.599330666472365},{"$f":"AK191","v":20.427497044690814},20.739501393712679,21.634290411375726,22.205041662003229,22.85657709719387,18.220886579328116,18.074421219682286]
[null,null,null,null,"Additional allowance where tax trigger positive (over and above that used to offset clawback)",null,"£m nominal",null,null,null,null,null,null,null,null,null,null,null,null,null,null,null,null,null,null,null,null,null,null,null,null,null,null,null,null,{"$f":"((Input!AJ34*(Input!AJ$54/Input!$AG54))-AJ178/(1/AJ186))*AJ189","v":0},{"$f":"((Input!AK34*(Input!AK$54/Input!$AG54))-AK178/(1/AK186))*AK189","v":0},{"$f":"((Input!AL34*(Input!AL$54/Input!$AG54))-AL178/(1/AL186))*AL189","v":0},{"$f":"((Input!AM34*(Input!AM$54/Input!$AG54))-AM178/(1/AM186))*AM189","v":0},{"$f":"((Input!AN34*(Input!AN$54/Input!$AG54))-AN178/(1/AN186))*AN189","v":0},{"$f":"((Input!AO34*(Input!AO$54/Input!$AG54))-AO178/(1/AO186))*AO189","v":0},{"$f":"((Input!AP34*(Input!AP$54/Input!$AG54))-AP178/(1/AP186))*AP189","v":0},{"$f":"((Input!AQ34*(Input!AQ$54/Input!$AG54))-AQ178/(1/AQ186))*AQ189","v":0}]
[null,null,null,null,"Tax allowance",null,"£m nominal",null,null,null,null,null,null,null,null,null,null,null,null,null,null,null,null,null,null,null,null,null,null,null,null,null,null,null,null,{"$f":"SUM(AJ195:AJ196)","v":19.599330666472365},20.427497044690814,20.739501393712679,21.634290411375726,22.205041662003229,22.85657709719387,18.220886579328116,18.074421219682286]
[]
[null,"Tax paid"]
[]
[null,null,"Tax base"]
[]
[]
[null,null,null,null,"Add recalculated base revenue (except tax allowance), incl add. income",null,"£m nominal",null,null,null,null,null,null,null,null,null,null,null,null,null,null,null,null,null,null,null,null,null,null,null,null,null,null,null,null,{"$f":"AJ162","v":407.30310081717823},{"$f":"AK162","v":425.12474509132636},442.25421755999002,465.3490568801621,491.11100701938818,510.93862513855572,506.31846180576053,523.79781307817223]
[null,null,null,null,"Add net DART impact on tax calculation",null,"£m nominal",null,null,null,null,null,null,null,null,null,null,null,null,null,null,null,null,null,null,null,null,null,null,null,null,null,null,null,null,{"$f":"AJ163","v":-26.454412866373826},-27.226923201340743,-28.023297630697023,-28.844384642672349,-29.691151442201601,-30.56438541962034,-31.465095309726973,-32.394212696384443]
[null,null,null,null,"Add tax allowance",null,"£m nominal",null,null,null,null,null,null,null,null,null,null,null,null,null,null,null,null,null,null,null,null,null,null,null,null,null,null,null,null,{"$f":"AJ197","v":19.599330666472365},{"$f":"AK197","v":20.427497044690814},20.739501393712679,21.634290411375726,22.205041662003229,22.85657709719387,18.220886579328116,18.074421219682286]
[null,null,null,null,"Revenue adjustment from previous price controls",null,"£m nominal",null,null,null,null,null,null,null,null,null,null,null,null,null,null,null,null,null,null,null,null,null,null,null,null,null,null,null,null,{"$f":"DARTs!AJ29*Input!AJ54/Input!$AG54","v":0.72795797034523502},{"$f":"DARTs!AK29*Input!AK54/Input!$AG54","v":0.78009388687206682},{"$f":"DARTs!AL29*Input!AL54/Input!$AG54","v":0.83596251541078537},{"$f":"DARTs!AM29*Input!AM54/Input!$AG54","v":0.89583163123789056},{"$f":"DARTs!AN29*Input!AN54/Input!$AG54","v":0.95999094084284609},{"$f":"DARTs!AO29*Input!AO54/Input!$AG54","v":1.0287439071002218},{"$f":"DARTs!AP29*Input!AP54/Input!$AG54","v":1.1024217663630367},{"$f":"DARTs!AQ29*Input!AQ54/Input!$AG54","v":1.1813753895410344}]
[null,null,null,null,"Legacy losses incentive",null,"£m nominal",null,null,null,null,null,null,null,null,null,null,null,null,null,null,null,null,null,null,null,null,null,null,null,null,null,null,null,null,{"$f":"DARTs!AJ61*Input!AJ54/Input!$AG54","v":0},{"$f":"DARTs!AK61*Input!AK54/Input!$AG54","v":0},{"$f":"DARTs!AL61*Input!AL54/Input!$AG54","v":0},{"$f":"DARTs!AM61*Input!AM54/Input!$AG54","v":0},{"$f":"DARTs!AN61*Input!AN54/Input!$AG54","v":0},{"$f":"DARTs!AO61*Input!AO54/Input!$AG54","v":0},{"$f":"DARTs!AP61*Input!AP54/Input!$AG54","v":0},{"$f":"DARTs!AQ61*Input!AQ54/Input!$AG54","v":0}]
[null,null,null,null,{"$f":"Input!E225","v":"ES7 (Miscellaneous) net position"},null,"£m nominal",null,null,null,null,null,null,null,null,null,null,null,null,null,null,null,null,null,null,null,null,null,null,null,null,null,null,null,null,{"$f":"DARTs!AJ49*Input!AJ54/Input!$AG54","v":0},{"$f":"DARTs!AK49*Input!AK54/Input!$AG54","v":0},{"$f":"DARTs!AL49*Input!AL54/Input!$AG54","v":0},{"$f":"DARTs!AM49*Input!AM54/Input!$AG54","v":0},{"$f":"DARTs!AN49*Input!AN54/Input!$AG54","v":0},{"$f":"DARTs!AO49*Input!AO54/Input!$AG54","v":0},{"$f":"DARTs!AP49*Input!AP54/Input!$AG54","v":0},{"$f":"DARTs!AQ49*Input!AQ54/Input!$AG54","v":0}]
[null,null,null,null,{"$f":"Input!E281","v":"Overall net income of Directly Remunerated Services"},null,"£m nominal",null,null,null,null,null,null,null,null,null,null,null,null,null,null,null,null,null,null,null,null,null,null,null,null,null,null,null,null,{"$f":"DARTs!AJ55*Input!AJ54/Input!$AG54","v":-15.76169528639079},{"$f":"DARTs!AK55*Input!AK54/Input!$AG54","v":-25.180033534115744},{"$f":"DARTs!AL55*Input!AL54/Input!$AG54","v":-25.152428685284452},{"$f":"DARTs!AM55*Input!AM54/Input!$AG54","v":-25.241992319006634},{"$f":"DARTs!AN55*Input!AN54/Input!$AG54","v":-25.333585326774624},{"$f":"DARTs!AO55*Input!AO54/Input!$AG54","v":-25.571758218819568},{"$f":"DARTs!AP55*Input!AP54/Input!$AG54","v":-25.984402175456434},{"$f":"DARTs!AQ55*Input!AQ54/Input!$AG54","v":-26.490853742681896}]
[null,null,null,null,"Less net interest paid (interest coupon)",null,"£m nominal",null,null,null,null,null,null,null,null,null,null,null,null,null,null,null,null,null,null,null,null,null,null,null,null,null,null,null,null,{"$f":"AJ165","v":-67.538338615113901},-70.939603931186369,-73.980172932384846,-77.119857659447604,-80.561498999996459,-84.271354318040565,-88.605034277409175,-93.329635949234657]
[null,null,null,null,"Less net interest paid (inflation coupon)",null,"£m nominal",null,null,null,null,null,null,null,null,null,null,null,null,null,null,null,null,null,null,null,null,null,null,null,null,null,null,null,null,{"$f":"AJ166","v":-9.5757762336368639},-10.058233187921553,-10.489016950764777,-10.933985141767085,-11.422577654833566,-11.948238622406953,-12.562901378043891,-13.232547372070226]
[null,null,null,null,"Less revenue tax pool additions",null,"£m nominal",null,null,null,null,null,null,null,null,null,null,null,null,null,null,null,null,null,null,null,null,null,null,null,null,null,null,null,null,{"$f":"AJ167","v":-122.15121488174047},-126.17141717363387,-133.47901123725313,-143.83218392435344,-156.23941919217867,-161.62166564689957,-163.55631931628014,-168.9450497254235]
[null,null,null,null,"Less capital allowances",null,"£m nominal",null,null,null,null,null,null,null,null,null,null,null,null,null,null,null,null,null,null,null,null,null,null,null,null,null,null,null,null,{"$f":"AJ168","v":-96.10536302645518},-101.72990519730313,-106.04745148521513,-110.46867722606005,-116.31204170645644,-122.66671986642321,-128.64548309412521,-134.66719749643977]
[null,null,null,null,"Profits attributable to corporation tax",null,"£m nominal",null,null,null,null,null,null,null,null,null,null,null,null,null,null,null,null,null,null,null,null,null,null,null,null,null,null,null,null,{"$f":"SUM(AJ204:AJ214)","v":90.043588544284759},85.026219797387867,86.658302547514126,91.43809800946859,94.71576529979292,98.179824050639596,74.822534600409909,73.994112705161029]
[]
[null,null,"Tax losses"]
[]
[null,null,null,null,"Taxable losses brought forward",null,"£m nominal",null,null,null,null,null,null,null,null,null,null,null,null,null,null,null,null,null,null,null,null,null,null,null,null,null,null,null,null,{"$f":"AJ175","v":0},{"$f":"SUM(AJ222)","v":0},{"$f":"SUM(AK222)","v":0},{"$f":"SUM(AL222)","v":0},{"$f":"SUM(AM222)","v":0},{"$f":"SUM(AN222)","v":0},{"$f":"SUM(AO222)","v":0},{"$f":"SUM(AP222)","v":0}]
[null,null,null,null,"In-year taxable loss",null,"£m nominal",null,null,null,null,null,null,null,null,null,null,null,null,null,null,null,null,null,null,null,null,null,null,null,null,null,null,null,null,{"$f":"MIN(AJ215, 0)","v":0},{"$f":"MIN(AK215, 0)","v":0},{"$f":"MIN(AL215, 0)","v":0},0,0,0,0,0]
[null,null,null,null,"Profits reduced by tax losses ",null,"£m nominal",null,null,null,null,null,null,null,null,null,null,null,null,null,null,null,null,null,null,null,null,null,null,null,null,null,null,null,null,{"$f":"IF(AJ215 >= 0, MIN(AJ215, -AJ219), 0)","v":0},0,0,0,0,0,0,0]
[null,null,null,null,"Balance carried forward",null,"£m nominal",null,null,null,null,null,null,null,null,null,null,null,null,null,null,null,null,null,null,null,null,null,null,null,null,null,null,null,null,{"$f":"SUM(AJ219:AJ221)","v":0},0,0,0,0,0,0,0]
[]
[null,null,null,"Tax paid"]
[]
[]
[null,null,null,null,"Profits attributable to corporation tax (after taxable losses)",null,"£m nominal",null,null,null,null,null,null,null,null,null,null,null,null,null,null,null,null,null,null,null,null,null,null,null,null,null,null,null,null,{"$f":"MAX(AJ215 - AJ221,0)","v":90.043588544284759},85.026219797387867,86.658302547514126,91.43809800946859,94.71576529979292,98.179824050639596,74.822534600409909,73.994112705161029]
[null,null,null,null,"Corporation tax rate",null,"%",null,null,null,null,null,null,null,null,null,null,null,null,null,null,null,null,null,null,null,null,null,null,null,null,null,null,null,null,{"$f":"TaxTrigger!AJ$97","v":0.2},{"$f":"TaxTrigger!AK$97","v":0.2},{"$f":"TaxTrigger!AL$97","v":0.2},{"$f":"TaxTrigger!AM$97","v":0.2},{"$f":"TaxTrigger!AN$97","v":0.2},{"$f":"TaxTrigger!AO$97","v":0.2},{"$f":"TaxTrigger!AP$97","v":0.2},{"$f":"TaxTrigger!AQ$97","v":0.2}]
[null,null,null,null,"Corporation tax charge after losses",null,"£m nominal",null,null,null,null,null,null,null,null,null,null,null,null,null,null,null,null,null,null,null,null,null,null,null,null,null,null,null,null,{"$f":"AJ228*AJ227","v":18.008717708856953},17.005243959477575,17.331660509502825,18.28761960189372,18.943153059958586,19.63596481012792,14.964506920081982,14.798822541032207]
[]
[null,{"$f":"\"Additional Information for purposes of \"&Input!E33","v":"Additional Information for purposes of Tax liability allowance adjustments - gearing/interest costs"}]
[]
[null,null,null,null,"Interest",null,"£m nominal",null,null,null,null,null,null,null,null,null,null,null,null,null,null,null,null,null,null,null,null,null,null,null,null,null,null,null,null,{"$f":"-AJ165-AJ166","v":77.114114848750759},{"$f":"-AK165-AK166","v":80.997837119107928},84.469189883149625,88.053842801214685,91.984076654830019,96.219592940447512,101.16793565545306,106.56218332130489]
[null,null,null,null,"RAV",null,"£m 12/13 prices",null,null,null,null,null,null,null,null,null,null,null,null,null,null,null,null,null,null,null,null,null,null,null,null,null,null,null,null,{"$f":"'Return&RAV'!AJ47","v":1964.7511373926034},{"$f":"'Return&RAV'!AK47","v":2000.4229836663189},{"$f":"'Return&RAV'!AL47","v":2028.3332054086823},{"$f":"'Return&RAV'!AM47","v":2057.7704151715011},{"$f":"'Return&RAV'!AN47","v":2092.7274417454978},{"$f":"'Return&RAV'!AO47","v":2130.5752181124326},{"$f":"'Return&RAV'!AP47","v":2181.9812855258415},{"$f":"'Return&RAV'!AQ47","v":2236.6065917410147}]

{"sheet":"Revenue","index":13,"n_rows":76,"n_cols":43,"rows_kept":76,"cut":false,"hidden":false,"merged":[]}
["Revenue",null,null,null,null,null,null,null,null,null,null,null,null,null,null,null,null,null,null,null,null,null,null,null,null,null,null,null,null,null,null,null,null,null,null,"Done"]
[null,{"$f":"UserInterface!G24","v":"WMID"}]
[]
[]
[]
[null,null,null,null,"Parameter",null,"Units",null,"Constant",null,null,null,null,null,null,null,null,null,null,null,null,null,null,null,null,null,null,null,null,null,null,null,null,null,null,"Annual values"]
[null,null,null,null,"PCFM year ending",null,null,null,{"$f":"UserInterface!$G$17","v":"2016-03-31"},null,"1991-03-31","1992-03-31","1993-03-31","1994-03-31","1995-03-31","1996-03-31","1997-03-31","1998-03-31","1999-03-31","2000-03-31","2001-03-31","2002-03-31","2003-03-31","2004-03-31","2005-03-31","2006-03-31","2007-03-31","2008-03-31","2009-03-31","2010-03-31","2011-03-31","2012-03-31","2013-03-31","2014-03-31","2015-03-31","2016-03-31","2017-03-31","2018-03-31","2019-03-31","2020-03-31","2021-03-31","2022-03-31","2023-03-31"]
[]
[null,"Recalculated base revenue"]
[null,"Note: \"Recalculated base revenue\" calculates the Base Revenue that would have been allowed if the current inputs were known at Final Proposals."]
[null,"Its values feed into the MOD calculation below and are saved via functionality on the \"LiveResults\" sheet so it can be recalled in the MOD calculation in the following year."]
[]
[null,null,null,null,"Fast pot expenditure",null,"£m 12/13 prices",null,null,null,null,null,null,null,null,null,null,null,null,null,null,null,null,null,null,null,null,null,null,null,null,null,null,null,null,{"$f":"TIM!AJ70","v":52.160004580930547},{"$f":"TIM!AK70","v":52.33282834187969},{"$f":"TIM!AL70","v":50.833804853761393},{"$f":"TIM!AM70","v":51.622993642490883},{"$f":"TIM!AN70","v":53.190607865434799},{"$f":"TIM!AO70","v":54.15209499456148},{"$f":"TIM!AP70","v":53.669081789463007},{"$f":"TIM!AQ70","v":54.218715857974416}]
[null,null,null,null,"Non-controllable opex ",null,"£m 12/13 prices",null,null,null,null,null,null,null,null,null,null,null,null,null,null,null,null,null,null,null,null,null,null,null,null,null,null,null,null,{"$f":"Input!AJ209","v":41.027809683461783},{"$f":"Input!AK209","v":41.372733789158211},{"$f":"Input!AL209","v":44.491559846746767},{"$f":"Input!AM209","v":49.815326395288039},{"$f":"Input!AN209","v":56.426160748289291},{"$f":"Input!AO209","v":57.715649087288497},{"$f":"Input!AP209","v":57.102403713808542},{"$f":"Input!AQ209","v":57.771392177854246}]
[null,null,null,null,"RAV depreciation",null,"£m 12/13 prices",null,null,null,null,null,null,null,null,null,null,null,null,null,null,null,null,null,null,null,null,null,null,null,null,null,null,null,null,{"$f":"-'Return&RAV'!AJ46","v":170.01421707329217},{"$f":"-'Return&RAV'!AK46","v":173.65946709380285},{"$f":"-'Return&RAV'!AL46","v":175.42499767268239},{"$f":"-'Return&RAV'!AM46","v":177.05476480714464},{"$f":"-'Return&RAV'!AN46","v":177.80540488774244},{"$f":"-'Return&RAV'!AO46","v":178.76060361131118},{"$f":"-'Return&RAV'!AP46","v":163.27025974444302},{"$f":"-'Return&RAV'!AQ46","v":162.2495572167245}]
[null,null,null,null,"Return",null,"£m 12/13 prices",null,null,null,null,null,null,null,null,null,null,null,null,null,null,null,null,null,null,null,null,null,null,null,null,null,null,null,null,{"$f":"'Return&RAV'!AJ35","v":80.848355118689724},{"$f":"'Return&RAV'!AK35","v":82.393776587616685},{"$f":"'Return&RAV'!AL35","v":83.718569305382317},{"$f":"'Return&RAV'!AM35","v":84.909775634693517},{"$f":"'Return&RAV'!AN35","v":86.245713491791548},{"$f":"'Return&RAV'!AO35","v":87.757585317724377},{"$f":"'Return&RAV'!AP35","v":89.60671577677077},{"$f":"'Return&RAV'!AQ35","v":91.809001675159564}]
[null,null,null,null,"Equity issuance cost",null,"£m 12/13 prices",null,null,null,null,null,null,null,null,null,null,null,null,null,null,null,null,null,null,null,null,null,null,null,null,null,null,null,null,{"$f":"'Finance&Tax'!AJ145*Input!$AG$54/Input!AJ$54","v":0},{"$f":"'Finance&Tax'!AK145*Input!$AG$54/Input!AK$54","v":0},{"$f":"'Finance&Tax'!AL145*Input!$AG$54/Input!AL$54","v":0},{"$f":"'Finance&Tax'!AM145*Input!$AG$54/Input!AM$54","v":0},{"$f":"'Finance&Tax'!AN145*Input!$AG$54/Input!AN$54","v":0},{"$f":"'Finance&Tax'!AO145*Input!$AG$54/Input!AO$54","v":0},{"$f":"'Finance&Tax'!AP145*Input!$AG$54/Input!AP$54","v":0},{"$f":"'Finance&Tax'!AQ145*Input!$AG$54/Input!AQ$54","v":0}]
[null,null,null,null,"Additional income",null,"£m 12/13 prices",null,null,null,null,null,null,null,null,null,null,null,null,null,null,null,null,null,null,null,null,null,null,null,null,null,null,null,null,{"$f":"TIM!AJ84","v":6.5177008708534432},{"$f":"TIM!AK84","v":6.5264165132061303},{"$f":"TIM!AL84","v":6.3387148531472128},{"$f":"TIM!AM84","v":6.450380460195551},{"$f":"TIM!AN84","v":6.6466890722425482},{"$f":"TIM!AO84","v":6.7669578853169305},{"$f":"TIM!AP84","v":6.7075272813662341},{"$f":"TIM!AQ84","v":6.7762634538867541}]
[null,null,null,null,"Core DARTs",null,"£m 12/13 prices",null,null,null,null,null,null,null,null,null,null,null,null,null,null,null,null,null,null,null,null,null,null,null,null,null,null,null,null,{"$f":"DARTs!AJ69","v":24.351069633007217},{"$f":"DARTs!AK69","v":24.379501098941805},{"$f":"DARTs!AL69","v":24.409138911975997},{"$f":"DARTs!AM69","v":24.440034257417228},{"$f":"DARTs!AN69","v":24.472240492365533},{"$f":"DARTs!AO69","v":24.505813237862693},{"$f":"DARTs!AP69","v":24.5408104749513},{"$f":"DARTs!AQ69","v":24.577292644809575}]
[null,null,null,null,"Recalculated base revenue (except tax allowance)",null,"£m 12/13 prices",null,null,null,null,null,null,null,null,null,null,null,null,null,null,null,null,null,null,null,null,null,null,null,null,null,null,null,null,{"$f":"SUM(AJ13:AJ19)","v":374.91915696023489},380.66472342460543,385.2167854436961,394.29327519722983,404.78681655786619,409.65870413406515,394.8967987808029,397.40222302640905]
[null,null,null,null,"Tax allowance",null,"£m 12/13 prices",null,null,null,null,null,null,null,null,null,null,null,null,null,null,null,null,null,null,null,null,null,null,null,null,null,null,null,null,{"$f":"'Finance&Tax'!AJ197*Input!$AG$54/Input!AJ$54","v":18.041022805168847},{"$f":"'Finance&Tax'!AK197*Input!$AG$54/Input!AK$54","v":18.29116654007921},{"$f":"'Finance&Tax'!AL197*Input!$AG$54/Input!AL$54","v":18.064732322213182},{"$f":"'Finance&Tax'!AM197*Input!$AG$54/Input!AM$54","v":18.330874634320136},{"$f":"'Finance&Tax'!AN197*Input!$AG$54/Input!AN$54","v":18.301988750869587},{"$f":"'Finance&Tax'!AO197*Input!$AG$54/Input!AO$54","v":18.325871824698396},{"$f":"'Finance&Tax'!AP197*Input!$AG$54/Input!AP$54","v":14.211154291042094},{"$f":"'Finance&Tax'!AQ197*Input!$AG$54/Input!AQ$54","v":13.712953726184168}]
[null,null,null,null,"Recalculated base revenue",null,"£m 12/13 prices",null,null,null,null,null,null,null,null,null,null,null,null,null,null,null,null,null,null,null,null,null,null,null,null,null,null,null,null,{"$f":"SUM(AJ20:AJ21)","v":392.96017976540372},398.95588996468462,403.28151776590926,412.62414983154997,423.0888053087358,427.98457595876357,409.10795307184497,411.11517675259324]
[]
[null,"MOD"]
[]
[null,null,"Catch-up"]
[null,null,"Note: \"Catch-up\" calculates the revenue adjustment required to compensate for the impact of new information on previous year allowances."]
[]
[null,null,null,"Recalculated base revenue delta"]
[null,null,null,"Note: New changes to recalculated base revenue in earlier years are identified as \"recalculated base revenue deltas\" to be brought forward."]
[null,null,null,"The previous recalculated base revenue value is recalled via functionality on the \"LiveResults\" sheet saving information to and recalling it from the \"SavedResults\" sheet."]
[]
[null,null,null,null,"Current recalculated base revenue for years < t",null,"£m 12/13 prices",null,null,null,null,null,null,null,null,null,null,null,null,null,null,null,null,null,null,null,null,null,null,null,null,null,null,null,null,{"$f":"IF(AJ$7 < $I$7, AJ22, 0 )","v":0},{"$f":"IF(AK$7 < $I$7, AK22, 0 )","v":0},0,0,0,0,0]
[null,null,null,null,"Less previous recalculated base revenue for years < t",null,"£m 12/13 prices",null,null,null,null,null,null,null,null,null,null,null,null,null,null,null,null,null,null,null,null,null,null,null,null,null,null,null,null,{"$f":"IF(AJ$7 < $I$7, -LiveResults!F62, 0 )","v":0},{"$f":"IF(AK$7 < $I$7, -LiveResults!G62, 0 )","v":0},{"$f":"IF(AL$7 < $I$7, -LiveResults!H62, 0 )","v":0},{"$f":"IF(AM$7 < $I$7, -LiveResults!I62, 0 )","v":0},{"$f":"IF(AN$7 < $I$7, -LiveResults!J62, 0 )","v":0},{"$f":"IF(AO$7 < $I$7, -LiveResults!K62, 0 )","v":0},{"$f":"IF(AP$7 < $I$7, -LiveResults!L62, 0 )","v":0}]
[null,null,null,null,"Recalculated base revenue delta",null,"£m 12/13 prices",null,null,null,null,null,null,null,null,null,null,null,null,null,null,null,null,null,null,null,null,null,null,null,null,null,null,null,null,{"$f":"SUM(AJ33:AJ34)","v":0},0,0,0,0,0,0]
[]
[null,null,null,"Catch-up for year t"]
[null,null,null,"Note: Recalculated base revenue deltas are brought forward using the WACC-based carrying factor to provide \"catch-up\" for year t."]
[null,null,null,"The WACC-based time value of money factor applies the WACC for the appropriate number of years delay between the new delta and recovery in year t MOD. Be aware that the calculation of this value uses an offset function."]
[]
[null,null,null,null,"WACC",null,"real annual %",null,null,null,null,null,null,null,null,null,null,null,null,null,null,null,null,null,null,null,null,null,null,null,null,null,null,null,null,{"$f":"Input!AJ$48","v":4.2429999999999995E-2},{"$f":"Input!AK$48","v":4.2429999999999995E-2},{"$f":"Input!AL$48","v":4.2429999999999995E-2},{"$f":"Input!AM$48","v":4.2429999999999995E-2},{"$f":"Input!AN$48","v":4.2429999999999995E-2},{"$f":"Input!AO$48","v":4.2429999999999995E-2},{"$f":"Input!AP$48","v":4.2429999999999995E-2}]
[null,null,null,null,"1 + WACC",null,"scalar",null,null,null,null,null,null,null,null,null,null,null,null,null,null,null,null,null,null,null,null,null,null,null,null,null,null,null,null,{"$f":"1 + AJ41","v":1.04243},1.04243,1.04243,1.04243,1.04243,1.04243,1.04243]
[null,null,null,null,"WACC-based time value of money factor",null,"scalar",null,null,null,null,null,null,null,null,null,null,null,null,null,null,null,null,null,null,null,null,null,null,null,null,null,null,null,null,{"$f":"IF(AJ$7 < $I$7, PRODUCT(OFFSET(AJ42, 0, 0, 1, YEAR($I$7) - YEAR(AJ$7))), 0)","v":0},{"$f":"IF(AK$7 < $I$7, PRODUCT(OFFSET(AK42, 0, 0, 1, YEAR($I$7) - YEAR(AK$7))), 0)","v":0},0,0,0,0,0]
[]
[null,null,null,null,"Recalculated base revenue delta",null,"£m 12/13 prices",null,null,null,null,null,null,null,null,null,null,null,null,null,null,null,null,null,null,null,null,null,null,null,null,null,null,null,null,{"$f":"AJ35","v":0},0,0,0,0,0,0]
[]
[null,null,null,null,"Catch-up for year t",null,"£m 12/13 prices",null,null,null,null,null,null,null,null,null,null,null,null,null,null,null,null,null,null,null,null,null,null,null,null,null,null,null,null,null,{"$f":"IF(AK$7 = $I$7, SUMPRODUCT($AJ45:AJ45, $AJ43:AJ43), 0)","v":0},{"$f":"IF(AL$7 = $I$7, SUMPRODUCT($AJ45:AK45, $AJ43:AK43), 0)","v":0},{"$f":"IF(AM$7 = $I$7, SUMPRODUCT($AJ45:AL45, $AJ43:AL43), 0)","v":0},{"$f":"IF(AN$7 = $I$7, SUMPRODUCT($AJ45:AM45, $AJ43:AM43), 0)","v":0},{"$f":"IF(AO$7 = $I$7, SUMPRODUCT($AJ45:AN45, $AJ43:AN43), 0)","v":0},{"$f":"IF(AP$7 = $I$7, SUMPRODUCT($AJ45:AO45, $AJ43:AO43), 0)","v":0},{"$f":"IF(AQ$7 = $I$7, SUMPRODUCT($AJ45:AP45, $AJ43:AP43), 0)","v":0}]
[]
[null,null,"Base Revenue"]
[null,null,"Note: Base Revenue is only calculated for one year t at a time in the model."]
[]
[null,null,null,null,"Recalculated base revenue for year t",null,"£m 12/13 prices",null,null,null,null,null,null,null,null,null,null,null,null,null,null,null,null,null,null,null,null,null,null,null,null,null,null,null,null,{"$f":"IF(AJ$7 = $I7, AJ22, 0 )","v":392.96017976540372},0,{"$f":"IF(AL$7 = $I7, AL22, 0 )","v":0},{"$f":"IF(AM$7 = $I7, AM22, 0 )","v":0},0,0,0,0]
[null,null,null,null,"Catch-up for year t",null,"£m 12/13 prices",null,null,null,null,null,null,null,null,null,null,null,null,null,null,null,null,null,null,null,null,null,null,null,null,null,null,null,null,null,{"$f":"AK47","v":0},0,0,0,0,0,0]
[null,null,null,null,"Base Revenue for year t",null,"£m 12/13 prices",null,null,null,null,null,null,null,null,null,null,null,null,null,null,null,null,null,null,null,null,null,null,null,null,null,null,null,null,{"$f":"SUM(AJ52:AJ53)","v":392.96017976540372},0,0,0,0,0,0,0]
[]
[null,null,"MOD"]
[null,null,"Note: MOD is identified as the difference between Base Revenue and its opening value calculated at Final Proposals."]
[]
[null,null,null,null,"Base revenue for year t",null,"£m 12/13 prices",null,null,null,null,null,null,null,null,null,null,null,null,null,null,null,null,null,null,null,null,null,null,null,null,null,null,null,null,null,{"$f":"AK54","v":0},{"$f":"AL54","v":0},0,0,0,0,0]
[null,null,null,null,"Less Final Proposals base revenue for year t",null,"£m 12/13 prices",null,null,null,null,null,null,null,null,null,null,null,null,null,null,null,null,null,null,null,null,null,null,null,null,null,null,null,null,null,{"$f":"IF(AK$7 = $I$7, -AK67, 0 )","v":0},{"$f":"IF(AL$7 = $I$7, -AL67, 0 )","v":0},0,0,0,0,0]
[null,null,null,null,"MOD",null,"£m 12/13 prices",null,null,null,null,null,null,null,null,null,null,null,null,null,null,null,null,null,null,null,null,null,null,null,null,null,null,null,null,null,{"$f":"SUM(AK59:AK60)","v":0},0,0,0,0,0,0]
[]
[null,"Total revenue"]
[null,"Note: Non-Core DARTs are added to Base Revenue to give Total Revenue. Non-Core DARTs are not included in the MOD calculation and therefore revisions to their values in earlier years must be processed as true-ups to year t."]
[null,"MOD from previous years is recalled via functionality on the \"LiveResults\" sheet saving information to and recalling it from the \"SavedResults\" sheet."]
[]
[null,null,null,null,"Final Proposals base revenue",null,"£m 12/13 prices",null,null,null,null,null,null,null,null,null,null,null,null,null,null,null,null,null,null,null,null,null,null,null,null,null,null,null,null,{"$f":"LiveResults!F53","v":392.96017976540372},{"$f":"LiveResults!G53","v":398.95588996468462},{"$f":"LiveResults!H53","v":403.28151776590926},{"$f":"LiveResults!I53","v":412.62414983154997},{"$f":"LiveResults!J53","v":423.0888053087358},{"$f":"LiveResults!K53","v":427.98457595876357},{"$f":"LiveResults!L53","v":409.10795307184497},{"$f":"LiveResults!M53","v":411.11517675259324}]
[null,null,null,null,"MOD",null,"£m 12/13 prices",null,null,null,null,null,null,null,null,null,null,null,null,null,null,null,null,null,null,null,null,null,null,null,null,null,null,null,null,null,{"$f":"IF(AK$7 = $I$7, AK61, LiveResults!G54)","v":0},{"$f":"IF(AL$7 = $I$7, AL61, LiveResults!H54)","v":0},{"$f":"IF(AM$7 = $I$7, AM61, LiveResults!I54)","v":0},{"$f":"IF(AN$7 = $I$7, AN61, LiveResults!J54)","v":0},{"$f":"IF(AO$7 = $I$7, AO61, LiveResults!K54)","v":0},{"$f":"IF(AP$7 = $I$7, AP61, LiveResults!L54)","v":0},{"$f":"IF(AQ$7 = $I$7, AQ61, LiveResults!M54)","v":0}]
[null,null,null,null,"Base revenue",null,"£m 12/13 prices",null,null,null,null,null,null,null,null,null,null,null,null,null,null,null,null,null,null,null,null,null,null,null,null,null,null,null,null,{"$f":"SUM(AJ67:AJ68)","v":392.96017976540372},398.95588996468462,403.28151776590926,412.62414983154997,423.0888053087358,427.98457595876357,409.10795307184497,411.11517675259324]
[null,null,null,null,"Non-core DARTs",null,"£m 12/13 prices",null,null,null,null,null,null,null,null,null,null,null,null,null,null,null,null,null,null,null,null,null,null,null,null,null,null,null,null,{"$f":"DARTs!AJ71","v":-14.508510976669964},{"$f":"DARTs!AK71","v":-22.546677444116675},{"$f":"DARTs!AL71","v":-21.908525322164497},{"$f":"DARTs!AM71","v":-21.387703868340498},{"$f":"DARTs!AN71","v":-20.880618047351835},{"$f":"DARTs!AO71","v":-20.50284088722098},{"$f":"DARTs!AP71","v":-20.26621190292914},{"$f":"DARTs!AQ71","v":-20.098450020901698}]
[null,null,null,null,"Total revenue (Base Revenue Plus net Darts)",null,"£m 12/13 prices",null,null,null,null,null,null,null,null,null,null,null,null,null,null,null,null,null,null,null,null,null,null,null,null,null,null,null,null,{"$f":"SUM(AJ69:AJ70)","v":378.45166878873374},{"$f":"SUM(AK69:AK70)","v":376.40921252056796},381.37299244374475,391.23644596320946,402.20818726138396,407.48173507154257,388.84174116891586,391.01672673169156]
[]
[null,"End of sheet"]
[]
[null,"Checks"]
[null,null,null,null,"Fast pot + Slow Pot",null,null,null,null,null,null,null,null,null,null,null,null,null,null,null,null,null,null,null,null,null,null,null,null,null,null,null,null,null,null,{"$f":"AJ13+Depn!AJ15=SUM(TIM!AJ70:AJ72)","v":true},{"$f":"AK13+Depn!AK15=SUM(TIM!AK70:AK72)","v":true},{"$f":"AL13+Depn!AL15=SUM(TIM!AL70:AL72)","v":true},{"$f":"AM13+Depn!AM15=SUM(TIM!AM70:AM72)","v":true},{"$f":"AN13+Depn!AN15=SUM(TIM!AN70:AN72)","v":true},{"$f":"AO13+Depn!AO15=SUM(TIM!AO70:AO72)","v":true},{"$f":"AP13+Depn!AP15=SUM(TIM!AP70:AP72)","v":true},{"$f":"AQ13+Depn!AQ15=SUM(TIM!AQ70:AQ72)","v":true}]

{"sheet":"Revenue Profiling","index":14,"n_rows":295,"n_cols":45,"rows_kept":295,"cut":false,"hidden":false,"merged":[[8,1,9,42]]}
["Finance & Tax",null,null,null,null,null,null,null,null,null,null,null,null,null,null,null,null,null,null,null,null,null,null,null,null,null,null,null,null,null,null,null,null,null,null,"Done"]
[null,{"$f":"UserInterface!G24","v":"WMID"}]
[]
[]
[]
[null,null,null,null,"Parameter",null,"Units",null,"Constant",null,null,null,null,null,null,null,null,null,null,null,null,null,null,null,null,null,null,null,null,null,null,null,null,null,null,"Annual values"]
[null,null,null,null,"PCFM year ending",null,null,null,{"$f":"UserInterface!$G$17","v":"2016-03-31"},null,"1991-03-31","1992-03-31","1993-03-31","1994-03-31","1995-03-31","1996-03-31","1997-03-31","1998-03-31","1999-03-31","2000-03-31","2001-03-31","2002-03-31","2003-03-31","2004-03-31","2005-03-31","2006-03-31","2007-03-31","2008-03-31","2009-03-31","2010-03-31","2011-03-31","2012-03-31","2013-03-31","2014-03-31","2015-03-31","2016-03-31","2017-03-31","2018-03-31","2019-03-31","2020-03-31","2021-03-31","2022-03-31","2023-03-31"]
[]
[null,"The hidden figures below re-perform the finance calculations to determine what the revised revenues allowances would be if the Initial Profile Adjustment is put through the model as DARTS"]
[]
[]
[]
[]
[]
[]
[]
[]
[]
[null,null,null,null,"Opening balance brought forward (before equity issuance and transfers)",null,"£m nominal",null,null,null,null,null,null,null,null,null,null,null,null,null,null,null,null,null,null,null,null,null,null,null,null,null,null,null,null,null,{"$f":"AJ36","v":-1410.7359501595577},{"$f":"AK36","v":-1482.2945579585967},-1540.7775002804067,-1606.5509359934767,-1680.9366403662643,-1759.5295738364018,-1858.0751662023056]
[null,null,null,null,"Equity issuance",null,"£m nominal",null,null,null,null,null,null,null,null,null,null,null,null,null,null,null,null,null,null,null,null,null,null,null,null,null,null,null,null,null,{"$f":"AK80","v":23.338186589622691},{"$f":"AL80","v":30.153032521535795},27.148508518703139,27.959495464781199,30.574188972592207,32.273311215275342,39.611918255689574]
[null,null,null,null,"Opening balance brought forward (after equity issuance, before transfers)",null,"£m nominal",null,null,null,null,null,null,null,null,null,null,null,null,null,null,null,null,null,null,null,null,null,null,null,null,null,null,null,null,null,{"$f":"SUM(AK19:AK20)","v":-1387.397763569935},{"$f":"SUM(AL19:AL20)","v":-1452.1415254370609},-1513.6289917617034,-1578.5914405286956,-1650.362451393672,-1727.2562626211266,-1818.4632479466161]
[null,null,null,null,"Opening balance brought forward (after equity issuance and transfers)",null,"£m nominal",null,null,null,null,null,null,null,null,null,null,null,null,null,null,null,null,null,null,null,null,null,null,null,null,null,null,null,null,{"$f":"-AJ61 * (AJ50)","v":-1323.0759020194735},{"$f":"SUM(AK21:AK21)","v":-1387.397763569935},-1452.1415254370609,-1513.6289917617034,-1578.5914405286956,-1650.362451393672,-1727.2562626211266,-1818.4632479466161]
[null,null,null,null,"Add Recalculated base revenue (except tax allowance)",null,"£m nominal",null,null,null,null,null,null,null,null,null,null,null,null,null,null,null,null,null,null,null,null,null,null,null,null,null,null,null,null,{"$f":"(Revenue!AJ20+AJ254)*Input!AJ$54/Input!$AG$54+(-AJ30+'Finance&Tax'!AJ30)","v":407.30310081717823},{"$f":"(Revenue!AK20+AK254)*Input!AK$54/Input!$AG$54+(-AK30+'Finance&Tax'!AK30)","v":425.12474509132636},{"$f":"(Revenue!AL20+AL254)*Input!AL$54/Input!$AG$54+(-AL30+'Finance&Tax'!AL30)","v":442.25421755999002},{"$f":"(Revenue!AM20+AM254)*Input!AM$54/Input!$AG$54+(-AM30+'Finance&Tax'!AM30)","v":465.3490568801621},{"$f":"(Revenue!AN20+AN254)*Input!AN$54/Input!$AG$54+(-AN30+'Finance&Tax'!AN30)","v":491.11100701938818},{"$f":"(Revenue!AO20+AO254)*Input!AO$54/Input!$AG$54+(-AO30+'Finance&Tax'!AO30)","v":510.93862513855572},{"$f":"(Revenue!AP20+AP254)*Input!AP$54/Input!$AG$54+(-AP30+'Finance&Tax'!AP30)","v":506.31846180576053},{"$f":"(Revenue!AQ20+AQ254)*Input!AQ$54/Input!$AG$54+(-AQ30+'Finance&Tax'!AQ30)","v":523.79781307817223}]
[null,null,null,null,"Add net impact of DARTs on net debt",null,"£m nominal",null,null,null,null,null,null,null,null,null,null,null,null,null,null,null,null,null,null,null,null,null,null,null,null,null,null,null,null,{"$f":"DARTs!AJ73 * Input!AJ$54 / Input!$AG$54","v":-41.488150182419382},{"$f":"DARTs!AK73 * Input!AK$54 / Input!$AG$54","v":-51.626862848584423},{"$f":"DARTs!AL73 * Input!AL$54 / Input!$AG$54","v":-52.339763800570687},{"$f":"DARTs!AM73 * Input!AM$54 / Input!$AG$54","v":-53.190545330441097},{"$f":"DARTs!AN73 * Input!AN$54 / Input!$AG$54","v":-54.064745828133383},{"$f":"DARTs!AO73 * Input!AO$54 / Input!$AG$54","v":-55.107399731339683},{"$f":"DARTs!AP73 * Input!AP$54 / Input!$AG$54","v":-56.347075718820371},{"$f":"DARTs!AQ73 * Input!AQ$54 / Input!$AG$54","v":-57.703691049525304}]
[null,null,null,null,"Less actual totex",null,"£m nominal",null,null,null,null,null,null,null,null,null,null,null,null,null,null,null,null,null,null,null,null,null,null,null,null,null,null,null,null,{"$f":"-Totex!AJ84 * Input!AJ54 / Input!$AG54","v":-283.32683473286141},{"$f":"-Totex!AK84 * Input!AK54 / Input!$AG54","v":-292.22540124809052},{"$f":"-Totex!AL84 * Input!AL54 / Input!$AG54","v":-291.8027645823264},{"$f":"-Totex!AM84 * Input!AM54 / Input!$AG54","v":-304.62999137947901},{"$f":"-Totex!AN84 * Input!AN54 / Input!$AG54","v":-322.6697600344495},{"$f":"-Totex!AO84 * Input!AO54 / Input!$AG54","v":-337.70058692368133},{"$f":"-Totex!AP84 * Input!AP54 / Input!$AG54","v":-344.06010661600561},{"$f":"-Totex!AQ84 * Input!AQ54 / Input!$AG54","v":-357.31612895917965}]
[null,null,null,null,"Less actual non-totex",null,"£m nominal",null,null,null,null,null,null,null,null,null,null,null,null,null,null,null,null,null,null,null,null,null,null,null,null,null,null,null,null,{"$f":"-(Input!AJ209) * Input!AJ54 / Input!$AG54","v":-44.571619757438619},{"$f":"-(Input!AK209) * Input!AK54 / Input!$AG54","v":-46.204893239419881},{"$f":"-(Input!AL209) * Input!AL54 / Input!$AG54","v":-51.079238318711383},{"$f":"-(Input!AM209) * Input!AM54 / Input!$AG54","v":-58.792570440439505},{"$f":"-(Input!AN209) * Input!AN54 / Input!$AG54","v":-68.459513733616703},{"$f":"-(Input!AO209) * Input!AO54 / Input!$AG54","v":-71.98468895216709},{"$f":"-(Input!AP209) * Input!AP54 / Input!$AG54","v":-73.21406834152485},{"$f":"-(Input!AQ209) * Input!AQ54 / Input!$AG54","v":-76.145847023182199}]
[null,null,null,null,"Less dividends",null,"£m nominal",null,null,null,null,null,null,null,null,null,null,null,null,null,null,null,null,null,null,null,null,null,null,null,null,null,null,null,null,{"$f":"-AJ155","v":-50.053042393407658},-52.388798109998575,-54.607076702787616,-56.950721969842938,-59.539999207971704,-62.314091320716017,-65.604558714381753,-69.129885291682882]
[null,null,null,null,"Less post-vesting RAV adjustment (share to net debt)",null,"£m nominal",null,null,null,null,null,null,null,null,null,null,null,null,null,null,null,null,null,null,null,null,null,null,null,null,null,null,null,null,{"$f":" - ((Input!AJ301) * $AJ$61) * Input!AJ54 / Input!$AG54","v":0},{"$f":" - ((Input!AK301) * $AJ$61) * Input!AK54 / Input!$AG54","v":0},{"$f":" - ((Input!AL301) * $AJ$61) * Input!AL54 / Input!$AG54","v":0},{"$f":" - ((Input!AM301) * $AJ$61) * Input!AM54 / Input!$AG54","v":0},{"$f":" - ((Input!AN301) * $AJ$61) * Input!AN54 / Input!$AG54","v":0},{"$f":" - ((Input!AO301) * $AJ$61) * Input!AO54 / Input!$AG54","v":0},{"$f":" - ((Input!AP301) * $AJ$61) * Input!AP54 / Input!$AG54","v":0},{"$f":" - ((Input!AQ301) * $AJ$61) * Input!AQ54 / Input!$AG54","v":0}]
[null,null,null,null,"Less post-vesting disposal proceeds",null,"£m nominal",null,null,null,null,null,null,null,null,null,null,null,null,null,null,null,null,null,null,null,null,null,null,null,null,null,null,null,null,{"$f":"-(Input!AJ302) * Input!AJ54 / Input!$AG54","v":0},{"$f":"-(Input!AK302) * Input!AK54 / Input!$AG54","v":0},{"$f":"-(Input!AL302) * Input!AL54 / Input!$AG54","v":0},{"$f":"-(Input!AM302) * Input!AM54 / Input!$AG54","v":0},{"$f":"-(Input!AN302) * Input!AN54 / Input!$AG54","v":0},{"$f":"-(Input!AO302) * Input!AO54 / Input!$AG54","v":0},{"$f":"-(Input!AP302) * Input!AP54 / Input!$AG54","v":0},{"$f":"-(Input!AQ302) * Input!AQ54 / Input!$AG54","v":0}]
[null,null,null,null,"Less equity issuance costs",null,"£m nominal",null,null,null,null,null,null,null,null,null,null,null,null,null,null,null,null,null,null,null,null,null,null,null,null,null,null,null,null,{"$f":"-AJ145","v":0},{"$f":"-AK145","v":0},0,0,0,0,0,0]
[null,null,null,null,"Closing net debt (before tax and debt costs)",null,"£m nominal",null,null,null,null,null,null,null,null,null,null,null,null,null,null,null,null,null,null,null,null,null,null,null,null,null,null,null,null,{"$f":"SUM(AJ22:AJ30)","v":-1335.2124482684223},{"$f":"SUM(AK22:AK30)","v":-1404.7189739247019},-1459.7161512814669,-1521.8437640017439,-1592.2144523134789,-1666.5305931830203,-1760.1636102060986,-1854.9609871920138]
[null,null,null,null,"Less net interest paid (interest coupon)",null,"£m nominal",null,null,null,null,null,null,null,null,null,null,null,null,null,null,null,null,null,null,null,null,null,null,null,null,null,null,null,null,{"$f":"AJ131","v":-67.538338615113901},{"$f":"AK131","v":-70.939603931186369},-73.980172932384846,-77.119857659447604,-80.561498999996459,-84.271354318040565,-88.605034277409175,-93.329635949234657]
[null,null,null,null,"Less net interest paid (inflation coupon)",null,"£m nominal",null,null,null,null,null,null,null,null,null,null,null,null,null,null,null,null,null,null,null,null,null,null,null,null,null,null,null,null,{"$f":"AJ133","v":-9.5757762336368639},{"$f":"AK133","v":-10.058233187921553},-10.489016950764777,-10.933985141767085,-11.422577654833566,-11.948238622406953,-12.562901378043891,-13.232547372070226]
[null,null,null,null,"Add tax allowance",null,"£m nominal",null,null,null,null,null,null,null,null,null,null,null,null,null,null,null,null,null,null,null,null,null,null,null,null,null,null,null,null,{"$f":"AJ197","v":19.599330666472365},{"$f":"AK197","v":20.427497044690814},{"$f":"AL197","v":20.739501393712679},21.634290411375726,22.205041662003229,22.85657709719387,18.220886579328116,18.074421219682286]
[null,null,null,null,"Less tax paid",null,"£m nominal",null,null,null,null,null,null,null,null,null,null,null,null,null,null,null,null,null,null,null,null,null,null,null,null,null,null,null,null,{"$f":"-AJ229","v":-18.008717708856953},{"$f":"-AK229","v":-17.005243959477575},-17.331660509502825,-18.28761960189372,-18.943153059958586,-19.63596481012792,-14.964506920081982,-14.798822541032207]
[null,null,null,null,"Closing value",null,"£m nominal",null,null,null,null,null,null,null,null,null,null,null,null,null,null,null,null,null,null,null,null,null,null,null,null,null,null,{"$f":"SUM(AH31:AH35)","v":0},0,-1410.7359501595577,-1482.2945579585967,-1540.7775002804067,-1606.5509359934767,-1680.9366403662643,-1759.5295738364018,-1858.0751662023056,-1958.2475718346686]
[]
[null,null,"Total net debt"]
[]
[null,null,null,null,"Opening total net debt (before equity issuance)",null,"£m nominal",null,null,null,null,null,null,null,null,null,null,null,null,null,null,null,null,null,null,null,null,null,null,null,null,null,null,null,null,null,{"$f":"AK19","v":-1410.7359501595577},{"$f":"AL19","v":-1482.2945579585967},-1540.7775002804067,-1606.5509359934767,-1680.9366403662643,-1759.5295738364018,-1858.0751662023056]
[null,null,null,null,"Opening total net debt (after equity issuance)",null,"£m nominal",null,null,null,null,null,null,null,null,null,null,null,null,null,null,null,null,null,null,null,null,null,null,null,null,null,null,null,null,{"$f":"AJ22","v":-1323.0759020194735},{"$f":"AK21","v":-1387.397763569935},{"$f":"AL21","v":-1452.1415254370609},-1513.6289917617034,-1578.5914405286956,-1650.362451393672,-1727.2562626211266,-1818.4632479466161]
[]
[null,"Regearing"]
[]
[]
[]
[]
[null,null,null,null,"Opening total net debt (before equity issuance)",null,"£m nominal",null,null,null,null,null,null,null,null,null,null,null,null,null,null,null,null,null,null,null,null,null,null,null,null,null,null,null,null,null,{"$f":"AK40","v":-1410.7359501595577},-1482.2945579585967,-1540.7775002804067,-1606.5509359934767,-1680.9366403662643,-1759.5295738364018,-1858.0751662023056]
[]
[null,null,null,null,"Opening RAV (after transfers)",null,"£m nominal",null,null,null,null,null,null,null,null,null,null,null,null,null,null,null,null,null,null,null,null,null,null,null,null,null,null,null,null,{"$f":"('Return&RAV'!AJ44)* Input!AI$54 / Input!$AG$54","v":2035.5013877222668},{"$f":"('Return&RAV'!AK44)* Input!AJ$54 / Input!$AG$54","v":2134.4580977998999},{"$f":"('Return&RAV'!AL44)* Input!AK$54 / Input!$AG$54","v":2234.063885287786},{"$f":"('Return&RAV'!AM44)* Input!AL$54 / Input!$AG$54","v":2328.6599873256978},{"$f":"('Return&RAV'!AN44)* Input!AM$54 / Input!$AG$54","v":2428.6022161979931},{"$f":"('Return&RAV'!AO44)* Input!AN$54 / Input!$AG$54","v":2539.0191559902646},{"$f":"('Return&RAV'!AP44)* Input!AO$54 / Input!$AG$54","v":2657.3173271094252},{"$f":"('Return&RAV'!AQ44)* Input!AP$54 / Input!$AG$54","v":2797.6357660717167}]
[null,null,null,null,"Total opening regulatory assets (after transfers)",null,"£m nominal",null,null,null,null,null,null,null,null,null,null,null,null,null,null,null,null,null,null,null,null,null,null,null,null,null,null,null,null,{"$f":"SUM(AJ50:AJ50)","v":2035.5013877222668},2134.4580977998999,2234.063885287786,2328.6599873256978,2428.6022161979931,2539.0191559902646,2657.3173271094252,2797.6357660717167]
[]
[null,null,null,null,"Overall gearing at start of year (before equity issuance)",null,"%",null,null,null,null,null,null,null,null,null,null,null,null,null,null,null,null,null,null,null,null,null,null,null,null,null,null,null,null,null,{"$f":" - AK48 / AK$51","v":0.66093401018913356},0.66349694282249749,0.66165842530316388,0.66151258747863295,0.66204173229668595,0.66214507235776077,0.66415906914548439]
[]
[]
[]
[]
[]
[]
[]
[null,null,null,null,"Notional gearing",null,"%",null,null,">",null,null,null,null,null,null,null,null,null,null,null,null,null,null,null,null,null,null,null,null,null,null,null,null,{"$f":"Input!AI46","v":0.65},{"$f":"Input!AJ46","v":0.65}]
[]
[null,null,null,null,"Start of price control change in notional gearing",null,"%",null,null,null,null,null,null,null,null,null,null,null,null,null,null,null,null,null,null,null,null,null,null,null,null,null,null,null,null,{"$f":"IF(AI61 >= AJ61+ Input!$I$78, AI61 - AJ61, 0)","v":0}]
[null,null,null,null,"Total opening regulatory assets (after transfers)",null,"£m nominal",null,null,null,null,null,null,null,null,null,null,null,null,null,null,null,null,null,null,null,null,null,null,null,null,null,null,null,null,{"$f":"AJ51","v":2035.5013877222668}]
[]
[null,null,null,null,"Movement in net debt for notional regearing change",null,"£m nominal",null,null,null,null,null,null,null,null,null,null,null,null,null,null,null,null,null,null,null,null,null,null,null,null,null,null,null,null,{"$f":" AJ63 * AJ$64","v":0}]
[]
[null,null,"Equity issuance"]
[]
[]
[null,null,null,null,"Total opening regulatory assets (after transfers)",null,"£m nominal",null,null,null,null,null,null,null,null,null,null,null,null,null,null,null,null,null,null,null,null,null,null,null,null,null,null,null,null,null,{"$f":"AK51","v":2134.4580977998999},{"$f":"AL51","v":2234.063885287786},2328.6599873256978,2428.6022161979931,2539.0191559902646,2657.3173271094252,2797.6357660717167]
[]
[null,null,null,null,"Overall gearing at start of year (before equity issuance)",null,"%",null,null,null,null,null,null,null,null,null,null,null,null,null,null,null,null,null,null,null,null,null,null,null,null,null,null,null,null,null,{"$f":"AK53","v":0.66093401018913356},{"$f":"AL53","v":0.66349694282249749},0.66165842530316388,0.66151258747863295,0.66204173229668595,0.66214507235776077,0.66415906914548439]
[null,null,null,null,"Less target gearing for equity issuance",null,"%",null,null,null,null,null,null,null,null,null,null,null,null,null,null,null,null,null,null,null,null,null,null,null,null,null,null,null,null,null,{"$f":"-Input!AK82","v":-0.65},{"$f":"-Input!AL82","v":-0.65},{"$f":"-Input!AM82","v":-0.65},{"$f":"-Input!AN82","v":-0.65},{"$f":"-Input!AO82","v":-0.65},{"$f":"-Input!AP82","v":-0.65},{"$f":"-Input!AQ82","v":-0.65}]
[null,null,null,null,"Deviation from equity issuance target gearing",null,"%",null,null,null,null,null,null,null,null,null,null,null,null,null,null,null,null,null,null,null,null,null,null,null,null,null,null,null,null,null,{"$f":"SUM(AK73:AK74)","v":1.0934010189133536E-2},{"$f":"SUM(AL73:AL74)","v":1.3496942822497471E-2},1.1658425303163855E-2,1.151258747863293E-2,1.2041732296685925E-2,1.2145072357760744E-2,1.4159069145484371E-2]
[]
[null,null,null,null,"Threshold deviation above target level",null,"%",null,{"$f":"Input!I78","v":0}]
[null,null,null,null,"Equity issuance threshold met",null,"text",null,null,null,null,null,null,null,null,null,null,null,null,null,null,null,null,null,null,null,null,null,null,null,null,null,null,null,null,null,{"$f":"AK75 >= $I77","v":true},{"$f":"AL75 >= $I77","v":true},true,true,true,true,true]
[]
[null,null,null,null,"Equity issuance",null,"£m nominal",null,null,null,null,null,null,null,null,null,null,null,null,null,null,null,null,null,null,null,null,null,null,null,null,null,null,null,null,null,{"$f":"AK71 * AK75 * AK78","v":23.338186589622691},{"$f":"AL71 * AL75 * AL78","v":30.153032521535795},27.148508518703139,27.959495464781199,{"$f":"AO71 * AO75 * AO78","v":30.574188972592207},32.273311215275342,39.611918255689574]
[]
[null,null,"Start of year gearing equalisation "]
[]
[]
[]
[null,null,null,null,"Opening total net debt (after equity issuance)",null,"£m nominal",null,null,null,null,null,null,null,null,null,null,null,null,null,null,null,null,null,null,null,null,null,null,null,null,null,null,null,null,{"$f":"AJ41","v":-1323.0759020194735},{"$f":"AK41","v":-1387.397763569935},{"$f":"AL41","v":-1452.1415254370609},-1513.6289917617034,-1578.5914405286956,-1650.362451393672,-1727.2562626211266,-1818.4632479466161]
[null,null,null,null,"Total opening regulatory assets (after transfers)",null,"£m nominal",null,null,null,null,null,null,null,null,null,null,null,null,null,null,null,null,null,null,null,null,null,null,null,null,null,null,null,null,{"$f":"AJ51","v":2035.5013877222668},{"$f":"AK51","v":2134.4580977998999},2234.063885287786,2328.6599873256978,2428.6022161979931,2539.0191559902646,2657.3173271094252,2797.6357660717167]
[]
[null,null,null,null,"Overall gearing at start of year (after equity issuance)",null,"%",null,null,null,null,null,null,null,null,null,null,null,null,null,null,null,null,null,null,null,null,null,null,null,null,null,null,null,null,{"$f":"-AJ86/AJ87","v":0.65},0.65,0.65,0.64999999999999991,0.65,0.65,0.65,0.65000000000000013]
[]
[null,"Financing costs"]
[]
[null,null,"Interest"]
[]
[null,null,null,"Forecast cost of debt"]
[]
[]
[null,null,null,null,"Cost of debt",null,"annual real %",null,null,null,null,null,null,null,null,null,null,null,null,null,null,null,null,null,null,null,null,null,null,null,null,null,null,null,null,{"$f":"Input!AJ44","v":2.92E-2},{"$f":"Input!AK44","v":2.92E-2},{"$f":"Input!AL44","v":2.92E-2},{"$f":"Input!AM44","v":2.92E-2},{"$f":"Input!AN44","v":2.92E-2},{"$f":"Input!AO44","v":2.92E-2},{"$f":"Input!AP44","v":2.92E-2},{"$f":"Input!AQ44","v":2.92E-2}]
[null,null,null,null,"Forecast Debt inflation",null,"annual %",null,null,null,null,null,null,null,null,null,null,null,null,null,null,null,null,null,null,null,null,null,null,null,null,null,null,null,null,{"$f":"Input!AJ55/Input!AI55-1","v":2.800026298589553E-2},{"$f":"Input!AK55/Input!AJ55-1","v":2.8001309210748948E-2},{"$f":"Input!AL55/Input!AK55-1","v":2.799979506096939E-2},{"$f":"Input!AM55/Input!AL55-1","v":2.7998988974841765E-2},{"$f":"Input!AN55/Input!AM55-1","v":2.8001717641844115E-2},{"$f":"Input!AO55/Input!AN55-1","v":2.8000296442022066E-2},{"$f":"Input!AP55/Input!AO55-1","v":2.8001153470570195E-2},{"$f":"Input!AQ55/Input!AP55-1","v":2.8000293263545029E-2}]
[]
[null,null,null,null,"Forecast cost of debt",null,"nominal annual %",null,null,null,null,null,null,null,null,null,null,null,null,null,null,null,null,null,null,null,null,null,null,null,null,null,null,null,null,{"$f":"(((1 + AJ98) * (1 + AJ99)) - 1)","v":5.8017870665083571E-2},{"$f":"((1 + AK98) * (1 + AK99)) - 1","v":5.8018947439702817E-2},5.8017389076749692E-2,5.8016559452906957E-2,5.8019367796985799E-2,5.8017905098129097E-2,5.8018787151910667E-2,5.8017901826840523E-2]
[]
[null,null,null,"Average net debt (except for interest and tax)"]
[]
[null,null,null,null,"Opening net debt",null,"£m nominal",null,null,null,null,null,null,null,null,null,null,null,null,null,null,null,null,null,null,null,null,null,null,null,null,null,null,null,null,{"$f":"AJ22","v":-1323.0759020194735},{"$f":"AK22","v":-1387.397763569935},{"$f":"AL22","v":-1452.1415254370609},-1513.6289917617034,-1578.5914405286956,-1650.362451393672,-1727.2562626211266,-1818.4632479466161]
[null,null,null,null,"Closing net debt (except for interest and tax)",null,"£m nominal",null,null,null,null,null,null,null,null,null,null,null,null,null,null,null,null,null,null,null,null,null,null,null,null,null,null,null,null,{"$f":"AJ31","v":-1335.2124482684223},{"$f":"AK31","v":-1404.7189739247019},-1459.7161512814669,-1521.8437640017439,-1592.2144523134789,-1666.5305931830203,-1760.1636102060986,-1854.9609871920138]
[]
[null,null,null,null,"Average net debt (except for interest and tax)",null,"£m nominal",null,null,null,null,null,null,null,null,null,null,null,null,null,null,null,null,null,null,null,null,null,null,null,null,null,null,null,null,{"$f":"AVERAGE(AJ105:AJ106)","v":-1329.1441751439479},-1396.0583687473186,-1455.9288383592639,-1517.7363778817237,-1585.4029464210871,-1658.4465222883462,-1743.7099364136125,-1836.7121175693151]
[]
[null,null,null,"Net interest received"]
[]
[null,null,null,null,"Average net debt (except for interest and tax)",null,"£m nominal",null,null,null,null,null,null,null,null,null,null,null,null,null,null,null,null,null,null,null,null,null,null,null,null,null,null,null,null,{"$f":"AJ108","v":-1329.1441751439479},{"$f":"AK108","v":-1396.0583687473186},-1455.9288383592639,-1517.7363778817237,-1585.4029464210871,-1658.4465222883462,-1743.7099364136125,-1836.7121175693151]
[null,null,null,null,"Forecast cost of debt",null,"%",null,null,null,null,null,null,null,null,null,null,null,null,null,null,null,null,null,null,null,null,null,null,null,null,null,null,null,null,{"$f":"AJ101","v":5.8017870665083571E-2},{"$f":"AK101","v":5.8018947439702817E-2},5.8017389076749692E-2,5.8016559452906957E-2,5.8019367796985799E-2,5.8017905098129097E-2,5.8018787151910667E-2,5.8017901826840523E-2]
[]
[null,null,null,null,"Net interest received",null,"£m nominal",null,null,null,null,null,null,null,null,null,null,null,null,null,null,null,null,null,null,null,null,null,null,null,null,null,null,null,null,{"$f":"AJ112 * AJ113","v":-77.114114848750759},{"$f":"AK112 * AK113","v":-80.997837119107928},-84.469189883149625,-88.053842801214685,-91.984076654830019,-96.219592940447512,-101.16793565545306,-106.56218332130489]
[]
[null,null,null,"Inflation coupon on index linked debt"]
[]
[]
[null,null,null,null,"Index-linked debt as a percentage of net debt",null,"%",null,null,null,null,null,null,null,null,null,null,null,null,null,null,null,null,null,null,null,null,null,null,null,null,null,null,null,null,{"$f":"Input!AJ84","v":0.25},{"$f":"Input!AK84","v":0.25},{"$f":"Input!AL84","v":0.25},{"$f":"Input!AM84","v":0.25},{"$f":"Input!AN84","v":0.25},{"$f":"Input!AO84","v":0.25},{"$f":"Input!AP84","v":0.25},{"$f":"Input!AQ84","v":0.25}]
[null,null,null,null,"Cost of debt",null,"annual real %",null,null,null,null,null,null,null,null,null,null,null,null,null,null,null,null,null,null,null,null,null,null,null,null,null,null,null,null,{"$f":"AJ98","v":2.92E-2},{"$f":"AK98","v":2.92E-2},2.92E-2,2.92E-2,2.92E-2,2.92E-2,2.92E-2,2.92E-2]
[null,null,null,null,"Forecast cost of debt",null,"nominal annual %",null,null,null,null,null,null,null,null,null,null,null,null,null,null,null,null,null,null,null,null,null,null,null,null,null,null,null,null,{"$f":"AJ101","v":5.8017870665083571E-2},{"$f":"AK101","v":5.8018947439702817E-2},5.8017389076749692E-2,5.8016559452906957E-2,5.8019367796985799E-2,5.8017905098129097E-2,5.8018787151910667E-2,5.8017901826840523E-2]
[]
[null,null,null,null,"Share of interest as inflation coupon",null,"%",null,null,null,null,null,null,null,null,null,null,null,null,null,null,null,null,null,null,null,null,null,null,null,null,null,null,null,null,{"$f":"1 - ((AJ120 * AJ121) + ((1 - AJ120) * AJ122)) / AJ122","v":0.12417669907018314},{"$f":"1 - ((AK120 * AK121) + ((1 - AK120) * AK122)) / AK122","v":0.12417903422693677},0.12417565464135205,0.12417385538131509,0.12417994581493441,0.12417677374505198,0.12417868662289677,0.12417676665061961]
[]
[null,null,null,"Allocation to interest or inflation coupon"]
[]
[null,null,null,null,"Net interest received",null,"£m nominal",null,null,null,null,null,null,null,null,null,null,null,null,null,null,null,null,null,null,null,null,null,null,null,null,null,null,null,null,{"$f":"AJ115","v":-77.114114848750759},{"$f":"AK115","v":-80.997837119107928},-84.469189883149625,-88.053842801214685,-91.984076654830019,-96.219592940447512,-101.16793565545306,-106.56218332130489]
[null,null,null,null,"Share of interest as inflation coupon",null,"%",null,null,null,null,null,null,null,null,null,null,null,null,null,null,null,null,null,null,null,null,null,null,null,null,null,null,null,null,{"$f":"AJ124","v":0.12417669907018314},0.12417903422693677,0.12417565464135205,0.12417385538131509,0.12417994581493441,0.12417677374505198,0.12417868662289677,0.12417676665061961]
[]
[null,null,null,null,"Net interest received (interest coupon)",null,"£m nominal",null,null,null,null,null,null,null,null,null,null,null,null,null,null,null,null,null,null,null,null,null,null,null,null,null,null,null,null,{"$f":"AJ$128 * (1 - AJ$129)","v":-67.538338615113901},{"$f":"AK$128 * (1 - AK$129)","v":-70.939603931186369},-73.980172932384846,-77.119857659447604,-80.561498999996459,-84.271354318040565,-88.605034277409175,-93.329635949234657]
[]
[null,null,null,null,"Net interest received (inflation coupon)",null,"£m nominal",null,null,null,null,null,null,null,null,null,null,null,null,null,null,null,null,null,null,null,null,null,null,null,null,null,null,null,null,{"$f":"AJ$128 * AJ$129","v":-9.5757762336368639},{"$f":"AK$128 * AK$129","v":-10.058233187921553},-10.489016950764777,-10.933985141767085,-11.422577654833566,-11.948238622406953,-12.562901378043891,-13.232547372070226]
[]
[]
[null,null,"Cost of raising equity"]
[]
[]
[null,null,null,null,"Start of price control change in notional gearing",null,"£m nominal",null,null,null,null,null,null,null,null,null,null,null,null,null,null,null,null,null,null,null,null,null,null,null,null,null,null,null,null,{"$f":"AJ66","v":0}]
[null,null,null,null,"Issue or redeem equity",null,"£m nominal",null,null,null,null,null,null,null,null,null,null,null,null,null,null,null,null,null,null,null,null,null,null,null,null,null,null,null,null,null,{"$f":"AK80","v":23.338186589622691},30.153032521535795,27.148508518703139,27.959495464781199,30.574188972592207,32.273311215275342,39.611918255689574]
[null,null,null,null,"Equity issuance with issuance costs allowed",null,"£m nominal",null,null,null,null,null,null,null,null,null,null,null,null,null,null,null,null,null,null,null,null,null,null,null,null,null,null,null,null,{"$f":"IF(SUM(AJ139:AJ140) > 0,SUM(AJ139:AJ140),0)","v":0},{"$f":"IF(SUM(AK139:AK140) > 0,SUM(AK139:AK140),0)","v":23.338186589622691},30.153032521535795,27.148508518703139,27.959495464781199,30.574188972592207,32.273311215275342,39.611918255689574]
[]
[null,null,null,null,"Equity issuance cost as percentage of new equity",null,"%",null,{"$f":"Input!I79","v":0}]
[]
[null,null,null,null,"Equity issuance cost",null,"£m nominal",null,null,null,null,null,null,null,null,null,null,null,null,null,null,null,null,null,null,null,null,null,null,null,null,null,null,null,null,{"$f":"AJ141 * $I143","v":0},{"$f":"AK141 * $I143","v":0},0,0,0,0,0,0]
[]
[null,null,"Dividends"]
[]
[]
[]
[null,null,null,null,"Closing RAV",null,"£m nominal",null,null,">",null,null,null,null,null,null,null,null,null,null,null,null,null,null,null,null,null,null,null,null,null,null,null,null,null,{"$f":"'Return&RAV'!AJ47 * Input!AJ54 / Input!$AG$54","v":2134.4580977998999},{"$f":"'Return&RAV'!AK47 * Input!AK54 / Input!$AG$54","v":2234.063885287786},{"$f":"'Return&RAV'!AL47 * Input!AL54 / Input!$AG$54","v":2328.6599873256978},{"$f":"'Return&RAV'!AM47 * Input!AM54 / Input!$AG$54","v":2428.6022161979931},{"$f":"'Return&RAV'!AN47 * Input!AN54 / Input!$AG$54","v":2539.0191559902646},{"$f":"'Return&RAV'!AO47 * Input!AO54 / Input!$AG$54","v":2657.3173271094252},{"$f":"'Return&RAV'!AP47 * Input!AP54 / Input!$AG$54","v":2797.6357660717167},{"$f":"'Return&RAV'!AQ47 * Input!AQ54 / Input!$AG$54","v":2947.9695220333851}]
[null,null,null,null,"Assumed equity portion of RAV",null,"%",null,null,null,null,null,null,null,null,null,null,null,null,null,null,null,null,null,null,null,null,null,null,null,null,null,null,null,null,{"$f":"(1-Input!AJ46)","v":0.35},{"$f":"(1-Input!AK46)","v":0.35},{"$f":"(1-Input!AL46)","v":0.35},{"$f":"(1-Input!AM46)","v":0.35},{"$f":"(1-Input!AN46)","v":0.35},{"$f":"(1-Input!AO46)","v":0.35},{"$f":"(1-Input!AP46)","v":0.35},{"$f":"(1-Input!AQ46)","v":0.35}]
[null,null,null,null,"Assumed dividends as percentage of notional equity portion of RAV",null,"%",null,null,null,null,null,null,null,null,null,null,null,null,null,null,null,null,null,null,null,null,null,null,null,null,null,null,null,null,{"$f":"Input!$I$80","v":6.7000000000000004E-2},{"$f":"AJ153","v":6.7000000000000004E-2},6.7000000000000004E-2,6.7000000000000004E-2,6.7000000000000004E-2,6.7000000000000004E-2,6.7000000000000004E-2,6.7000000000000004E-2]
[]
[null,null,null,null,"Notional dividends",null,"£m nominal",null,null,null,null,null,null,null,null,null,null,null,null,null,null,null,null,null,null,null,null,null,null,null,null,null,null,null,null,{"$f":"AJ151 * AJ152 * AJ153","v":50.053042393407658},{"$f":"AK151 * AK152 * AK153","v":52.388798109998575},54.607076702787616,56.950721969842938,59.539999207971704,62.314091320716017,65.604558714381753,69.129885291682882]
[]
[null,"Tax allowance"]
[]
[null,null,"Tax base"]
[]
[]
[null,null,null,null,"Add recalculated base revenue (except tax allowance), incl add. Income",null,"£m nominal",null,null,null,null,null,null,null,null,null,null,null,null,null,null,null,null,null,null,null,null,null,null,null,null,null,null,null,null,{"$f":"SUM(Revenue!AJ13:AJ19,AJ254)*Input!AJ$54 / Input!$AG$54+(-AJ30+'Finance&Tax'!AJ30)","v":407.30310081717823},{"$f":"SUM(Revenue!AK13:AK19,AK254)*Input!AK$54 / Input!$AG$54+(-AK30+'Finance&Tax'!AK30)","v":425.12474509132636},{"$f":"SUM(Revenue!AL13:AL19,AL254)*Input!AL$54 / Input!$AG$54+(-AL30+'Finance&Tax'!AL30)","v":442.25421755999002},{"$f":"SUM(Revenue!AM13:AM19,AM254)*Input!AM$54 / Input!$AG$54+(-AM30+'Finance&Tax'!AM30)","v":465.3490568801621},{"$f":"SUM(Revenue!AN13:AN19,AN254)*Input!AN$54 / Input!$AG$54+(-AN30+'Finance&Tax'!AN30)","v":491.11100701938818},{"$f":"SUM(Revenue!AO13:AO19,AO254)*Input!AO$54 / Input!$AG$54+(-AO30+'Finance&Tax'!AO30)","v":510.93862513855572},{"$f":"SUM(Revenue!AP13:AP19,AP254)*Input!AP$54 / Input!$AG$54+(-AP30+'Finance&Tax'!AP30)","v":506.31846180576053},{"$f":"SUM(Revenue!AQ13:AQ19,AQ254)*Input!AQ$54 / Input!$AG$54+(-AQ30+'Finance&Tax'!AQ30)","v":523.79781307817223}]
[null,null,null,null,"Add net DART impact on tax calculation",null,"£m nominal",null,null,null,null,null,null,null,null,null,null,null,null,null,null,null,null,null,null,null,null,null,null,null,null,null,null,null,null,{"$f":"DARTs!AJ75 * Input!AJ54/Input!$AG54","v":-26.454412866373826},{"$f":"DARTs!AK75 * Input!AK54/Input!$AG54","v":-27.226923201340743},{"$f":"DARTs!AL75 * Input!AL54/Input!$AG54","v":-28.023297630697023},{"$f":"DARTs!AM75 * Input!AM54/Input!$AG54","v":-28.844384642672349},{"$f":"DARTs!AN75 * Input!AN54/Input!$AG54","v":-29.691151442201601},{"$f":"DARTs!AO75 * Input!AO54/Input!$AG54","v":-30.56438541962034},{"$f":"DARTs!AP75 * Input!AP54/Input!$AG54","v":-31.465095309726973},{"$f":"DARTs!AQ75 * Input!AQ54/Input!$AG54","v":-32.394212696384443}]
[null,null,null,null,"Less additional income",null,"£m nominal",null,null,null,null,null,null,null,null,null,null,null,null,null,null,null,null,null,null,null,null,null,null,null,null,null,null,null,null,{"$f":"-TIM!AJ84 * Input!AJ54/Input!$AG54","v":-7.0806725279684608},{"$f":"-TIM!AK84 * Input!AK54/Input!$AG54","v":-7.2886742211774864},{"$f":"-TIM!AL84 * Input!AL54/Input!$AG54","v":-7.2772617488244062},{"$f":"-TIM!AM84 * Input!AM54/Input!$AG54","v":-7.6128066403586336},{"$f":"-TIM!AN84 * Input!AN54/Input!$AG54","v":-8.0641513757085495},{"$f":"-TIM!AO84 * Input!AO54/Input!$AG54","v":-8.4399528763896043},{"$f":"-TIM!AP84 * Input!AP54/Input!$AG54","v":-8.6000821128627063},{"$f":"-TIM!AQ84 * Input!AQ54/Input!$AG54","v":-8.9314849598905024}]
[null,null,null,null,"Less net interest paid (interest coupon)",null,"£m nominal",null,null,null,null,null,null,null,null,null,null,null,null,null,null,null,null,null,null,null,null,null,null,null,null,null,null,null,null,{"$f":"AJ131","v":-67.538338615113901},{"$f":"AK131","v":-70.939603931186369},-73.980172932384846,-77.119857659447604,-80.561498999996459,-84.271354318040565,-88.605034277409175,-93.329635949234657]
[null,null,null,null,"Less net interest paid (inflation coupon)",null,"£m nominal",null,null,null,null,null,null,null,null,null,null,null,null,null,null,null,null,null,null,null,null,null,null,null,null,null,null,null,null,{"$f":"AJ133","v":-9.5757762336368639},{"$f":"AK133","v":-10.058233187921553},-10.489016950764777,-10.933985141767085,-11.422577654833566,-11.948238622406953,-12.562901378043891,-13.232547372070226]
[null,null,null,null,"Less revenue tax pool additions",null,"£m nominal",null,null,null,null,null,null,null,null,null,null,null,null,null,null,null,null,null,null,null,null,null,null,null,null,null,null,null,null,{"$f":"-TaxPools!AJ70*Input!AJ54/Input!$AG54","v":-122.15121488174047},{"$f":"-TaxPools!AK70*Input!AK54/Input!$AG54","v":-126.17141717363387},{"$f":"-TaxPools!AL70*Input!AL54/Input!$AG54","v":-133.47901123725313},{"$f":"-TaxPools!AM70*Input!AM54/Input!$AG54","v":-143.83218392435344},{"$f":"-TaxPools!AN70*Input!AN54/Input!$AG54","v":-156.23941919217867},{"$f":"-TaxPools!AO70*Input!AO54/Input!$AG54","v":-161.62166564689957},{"$f":"-TaxPools!AP70*Input!AP54/Input!$AG54","v":-163.55631931628014},{"$f":"-TaxPools!AQ70*Input!AQ54/Input!$AG54","v":-168.9450497254235}]
[null,null,null,null,"Less capital allowances",null,"£m nominal",null,null,null,null,null,null,null,null,null,null,null,null,null,null,null,null,null,null,null,null,null,null,null,null,null,null,null,null,{"$f":"-TaxPools!AJ121","v":-96.10536302645518},{"$f":"-TaxPools!AK121","v":-101.72990519730313},{"$f":"-TaxPools!AL121","v":-106.04745148521513},{"$f":"-TaxPools!AM121","v":-110.46867722606005},{"$f":"-TaxPools!AN121","v":-116.31204170645644},{"$f":"-TaxPools!AO121","v":-122.66671986642321},{"$f":"-TaxPools!AP121","v":-128.64548309412521},{"$f":"-TaxPools!AQ121","v":-134.66719749643977}]
[null,null,null,null,"Profits attributable to corporation tax (before Tax Clawback)",null,"£m nominal",null,null,null,null,null,null,null,null,null,null,null,null,null,null,null,null,null,null,null,null,null,null,null,null,null,null,null,null,{"$f":"SUM(AJ162:AJ168)","v":78.397322665889462},81.709988178763254,82.958005574850716,86.537161645502906,88.820166648012915,91.426308388775468,72.883546317312465,72.297684878729143]
[]
[null,null,"Tax allowance"]
[]
[null,null,null,"Regulatory Tax losses"]
[]
[null,null,null,null,"Taxable losses brought forward",null,"£m nominal",null,null,null,null,null,null,null,null,null,null,null,null,null,null,null,null,null,null,null,null,null,null,null,null,null,null,null,null,{"$f":"-ABS(Input!AH336)","v":0},{"$f":"SUM(AJ180)","v":0},{"$f":"SUM(AK180)","v":0},0,0,0,0,0]
[null,null,null,null,"In-year taxable loss",null,"£m nominal",null,null,null,null,null,null,null,null,null,null,null,null,null,null,null,null,null,null,null,null,null,null,null,null,null,null,null,null,{"$f":"MIN(AJ169, 0)","v":0},{"$f":"MIN(AK169, 0)","v":0},{"$f":"MIN(AL169, 0)","v":0},0,0,0,0,0]
[null,null,null,null,"Contributions to losses from clawback",null,"£m nominal",null,null,null,null,null,null,null,null,null,null,null,null,null,null,null,null,null,null,null,null,null,null,null,null,null,null,null,null,{"$f":"-Input!AJ33*(1/AJ186)","v":0},{"$f":"-Input!AK33*(1/AK186)","v":0},{"$f":"-Input!AL33*(1/AL186)","v":0},{"$f":"-Input!AM33*(1/AM186)","v":0},{"$f":"-Input!AN33*(1/AN186)","v":0},{"$f":"-Input!AO33*(1/AO186)","v":0},{"$f":"-Input!AP33*(1/AP186)","v":0},{"$f":"-Input!AQ33*(1/AQ186)","v":0}]
[null,null,null,null,"Adjustment to losses from tax trigger",null,"£m nominal",null,null,null,null,null,null,null,null,null,null,null,null,null,null,null,null,null,null,null,null,null,null,null,null,null,null,null,null,{"$f":"-IF(Input!AJ34>0,-MIN(Input!AJ34*(Input!AJ$54/Input!$AG54)*(1/AJ186),MAX(-(AJ169+SUM(AJ175:AJ177)),0)),-MIN(Input!AJ34*(Input!AJ$54/Input!$AG54)*(1/AJ186),MAX(AJ169+SUM(AJ175:AJ177),0)))","v":0},{"$f":"-IF(Input!AK34>0,-MIN(Input!AK34*(Input!AK$54/Input!$AG54)*(1/AK186),MAX(-(AK169+SUM(AK175:AK177)),0)),-MIN(Input!AK34*(Input!AK$54/Input!$AG54)*(1/AK186),MAX(AK169+SUM(AK175:AK177),0)))","v":0},{"$f":"-IF(Input!AL34>0,-MIN(Input!AL34*(Input!AL$54/Input!$AG54)*(1/AL186),MAX(-(AL169+SUM(AL175:AL177)),0)),-MIN(Input!AL34*(Input!AL$54/Input!$AG54)*(1/AL186),MAX(AL169+SUM(AL175:AL177),0)))","v":0},{"$f":"-IF(Input!AM34>0,-MIN(Input!AM34*(Input!AM$54/Input!$AG54)*(1/AM186),MAX(-(AM169+SUM(AM175:AM177)),0)),-MIN(Input!AM34*(Input!AM$54/Input!$AG54)*(1/AM186),MAX(AM169+SUM(AM175:AM177),0)))","v":0},{"$f":"-IF(Input!AN34>0,-MIN(Input!AN34*(Input!AN$54/Input!$AG54)*(1/AN186),MAX(-(AN169+SUM(AN175:AN177)),0)),-MIN(Input!AN34*(Input!AN$54/Input!$AG54)*(1/AN186),MAX(AN169+SUM(AN175:AN177),0)))","v":0},{"$f":"-IF(Input!AO34>0,-MIN(Input!AO34*(Input!AO$54/Input!$AG54)*(1/AO186),MAX(-(AO169+SUM(AO175:AO177)),0)),-MIN(Input!AO34*(Input!AO$54/Input!$AG54)*(1/AO186),MAX(AO169+SUM(AO175:AO177),0)))","v":0},{"$f":"-IF(Input!AP34>0,-MIN(Input!AP34*(Input!AP$54/Input!$AG54)*(1/AP186),MAX(-(AP169+SUM(AP175:AP177)),0)),-MIN(Input!AP34*(Input!AP$54/Input!$AG54)*(1/AP186),MAX(AP169+SUM(AP175:AP177),0)))","v":0},{"$f":"-IF(Input!AQ34>0,-MIN(Input!AQ34*(Input!AQ$54/Input!$AG54)*(1/AQ186),MAX(-(AQ169+SUM(AQ175:AQ177)),0)),-MIN(Input!AQ34*(Input!AQ$54/Input!$AG54)*(1/AQ186),MAX(AQ169+SUM(AQ175:AQ177),0)))","v":0}]
[null,null,null,null,"Profits reduced by tax losses ",null,"£m nominal",null,null,null,null,null,null,null,null,null,null,null,null,null,null,null,null,null,null,null,null,null,null,null,null,null,null,null,null,{"$f":"IF(AJ169 >= 0, MIN(AJ169, -AJ175-AJ177-AJ178), 0)","v":0},0,0,0,0,0,0,0]
[null,null,null,null,"Balance carried forward",null,"£m nominal",null,null,null,null,null,null,null,null,null,null,null,null,null,null,null,null,null,null,null,null,null,null,null,null,null,null,null,null,{"$f":"SUM(AJ175:AJ179)","v":0},0,0,0,0,0,0,0]
[]
[null,null,null,"Tax allowance (before Tax Trigger adjustment)"]
[]
[]
[null,null,null,null,"Profits attributable to corporation tax (after taxable losses)",null,"£m nominal",null,null,null,null,null,null,null,null,null,null,null,null,null,null,null,null,null,null,null,null,null,null,null,null,null,null,null,null,{"$f":"MAX(AJ169-AJ179,0)","v":78.397322665889462},81.709988178763254,82.958005574850716,86.537161645502906,88.820166648012915,91.426308388775468,72.883546317312465,72.297684878729143]
[null,null,null,null,"Corporation tax rate",null,"%",null,null,null,null,null,null,null,null,null,null,null,null,null,null,null,null,null,null,null,null,null,null,null,null,null,null,null,null,{"$f":"TaxTrigger!AJ$97","v":0.2},{"$f":"TaxTrigger!AK$97","v":0.2},{"$f":"TaxTrigger!AL$97","v":0.2},{"$f":"TaxTrigger!AM$97","v":0.2},{"$f":"TaxTrigger!AN$97","v":0.2},{"$f":"TaxTrigger!AO$97","v":0.2},{"$f":"TaxTrigger!AP$97","v":0.2},{"$f":"TaxTrigger!AQ$97","v":0.2}]
[null,null,null,null,"Corporation tax charge after losses",null,"£m nominal",null,null,null,null,null,null,null,null,null,null,null,null,null,null,null,null,null,null,null,null,null,null,null,null,null,null,null,null,{"$f":"AJ186*AJ185","v":15.679464533177892},16.341997635752652,16.591601114970143,17.307432329100582,17.764033329602583,18.285261677755095,14.576709263462494,14.459536975745829]
[]
[null,null,null,null,"\"Grossing-up\" factor for tax on tax charge after losses",null,"scalar",null,null,null,null,null,null,null,null,null,null,null,null,null,null,null,null,null,null,null,null,null,null,null,null,null,null,null,null,{"$f":"1 / (1 - AJ186)","v":1.25},1.25,1.25,1.25,1.25,1.25,1.25,1.25]
[]
[null,null,null,null,"Tax allowance (net adjustment for Tax Trigger/clawback)",null,"£m nominal",null,null,null,null,null,null,null,null,null,null,null,null,null,null,null,null,null,null,null,null,null,null,null,null,null,null,null,null,{"$f":"AJ187 * AJ189","v":19.599330666472365},20.427497044690814,20.739501393712679,21.634290411375726,22.205041662003229,22.85657709719387,18.220886579328116,18.074421219682286]
[]
[null,null,null,"Tax allowance"]
[]
[null,null,null,null,"Tax allowance",null,"£m nominal",null,null,null,null,null,null,null,null,null,null,null,null,null,null,null,null,null,null,null,null,null,null,null,null,null,null,null,null,{"$f":"AJ191","v":19.599330666472365},{"$f":"AK191","v":20.427497044690814},20.739501393712679,21.634290411375726,22.205041662003229,22.85657709719387,18.220886579328116,18.074421219682286]
[null,null,null,null,"Additional allowance where tax trigger positive (over and above that used to offset clawback)",null,"£m nominal",null,null,null,null,null,null,null,null,null,null,null,null,null,null,null,null,null,null,null,null,null,null,null,null,null,null,null,null,{"$f":"((Input!AJ34*(Input!AJ$54/Input!$AG54))-AJ178/(1/AJ186))*AJ189","v":0},{"$f":"((Input!AK34*(Input!AK$54/Input!$AG54))-AK178/(1/AK186))*AK189","v":0},{"$f":"((Input!AL34*(Input!AL$54/Input!$AG54))-AL178/(1/AL186))*AL189","v":0},{"$f":"((Input!AM34*(Input!AM$54/Input!$AG54))-AM178/(1/AM186))*AM189","v":0},{"$f":"((Input!AN34*(Input!AN$54/Input!$AG54))-AN178/(1/AN186))*AN189","v":0},{"$f":"((Input!AO34*(Input!AO$54/Input!$AG54))-AO178/(1/AO186))*AO189","v":0},{"$f":"((Input!AP34*(Input!AP$54/Input!$AG54))-AP178/(1/AP186))*AP189","v":0},{"$f":"((Input!AQ34*(Input!AQ$54/Input!$AG54))-AQ178/(1/AQ186))*AQ189","v":0}]
[null,null,null,null,"Tax allowance",null,"£m nominal",null,null,null,null,null,null,null,null,null,null,null,null,null,null,null,null,null,null,null,null,null,null,null,null,null,null,null,null,{"$f":"SUM(AJ195:AJ196)","v":19.599330666472365},20.427497044690814,20.739501393712679,21.634290411375726,22.205041662003229,22.85657709719387,18.220886579328116,18.074421219682286]
[]
[null,"Tax paid"]
[]
[null,null,"Tax base"]
[]
[]
[null,null,null,null,"Add recalculated base revenue (except tax allowance), incl add. income",null,"£m nominal",null,null,null,null,null,null,null,null,null,null,null,null,null,null,null,null,null,null,null,null,null,null,null,null,null,null,null,null,{"$f":"AJ162","v":407.30310081717823},{"$f":"AK162","v":425.12474509132636},442.25421755999002,465.3490568801621,491.11100701938818,510.93862513855572,506.31846180576053,523.79781307817223]
[null,null,null,null,"Add net DART impact on tax calculation",null,"£m nominal",null,null,null,null,null,null,null,null,null,null,null,null,null,null,null,null,null,null,null,null,null,null,null,null,null,null,null,null,{"$f":"AJ163","v":-26.454412866373826},-27.226923201340743,-28.023297630697023,-28.844384642672349,-29.691151442201601,-30.56438541962034,-31.465095309726973,-32.394212696384443]
[null,null,null,null,"Add tax allowance",null,"£m nominal",null,null,null,null,null,null,null,null,null,null,null,null,null,null,null,null,null,null,null,null,null,null,null,null,null,null,null,null,{"$f":"AJ197","v":19.599330666472365},{"$f":"AK197","v":20.427497044690814},20.739501393712679,21.634290411375726,22.205041662003229,22.85657709719387,18.220886579328116,18.074421219682286]
[null,null,null,null,"Revenue adjustment from previous price controls",null,"£m nominal",null,null,null,null,null,null,null,null,null,null,null,null,null,null,null,null,null,null,null,null,null,null,null,null,null,null,null,null,{"$f":"DARTs!AJ29*Input!AJ54/Input!$AG54","v":0.72795797034523502},{"$f":"DARTs!AK29*Input!AK54/Input!$AG54","v":0.78009388687206682},{"$f":"DARTs!AL29*Input!AL54/Input!$AG54","v":0.83596251541078537},{"$f":"DARTs!AM29*Input!AM54/Input!$AG54","v":0.89583163123789056},{"$f":"DARTs!AN29*Input!AN54/Input!$AG54","v":0.95999094084284609},{"$f":"DARTs!AO29*Input!AO54/Input!$AG54","v":1.0287439071002218},{"$f":"DARTs!AP29*Input!AP54/Input!$AG54","v":1.1024217663630367},{"$f":"DARTs!AQ29*Input!AQ54/Input!$AG54","v":1.1813753895410344}]
[null,null,null,null,"Legacy losses incentive",null,"£m nominal",null,null,null,null,null,null,null,null,null,null,null,null,null,null,null,null,null,null,null,null,null,null,null,null,null,null,null,null,{"$f":"DARTs!AJ61*Input!AJ54/Input!$AG54","v":0},{"$f":"DARTs!AK61*Input!AK54/Input!$AG54","v":0},{"$f":"DARTs!AL61*Input!AL54/Input!$AG54","v":0},{"$f":"DARTs!AM61*Input!AM54/Input!$AG54","v":0},{"$f":"DARTs!AN61*Input!AN54/Input!$AG54","v":0},{"$f":"DARTs!AO61*Input!AO54/Input!$AG54","v":0},{"$f":"DARTs!AP61*Input!AP54/Input!$AG54","v":0},{"$f":"DARTs!AQ61*Input!AQ54/Input!$AG54","v":0}]
[null,null,null,null,{"$f":"Input!E225","v":"ES7 (Miscellaneous) net position"},null,"£m nominal",null,null,null,null,null,null,null,null,null,null,null,null,null,null,null,null,null,null,null,null,null,null,null,null,null,null,null,null,{"$f":"DARTs!AJ49*Input!AJ54/Input!$AG54","v":0},{"$f":"DARTs!AK49*Input!AK54/Input!$AG54","v":0},{"$f":"DARTs!AL49*Input!AL54/Input!$AG54","v":0},{"$f":"DARTs!AM49*Input!AM54/Input!$AG54","v":0},{"$f":"DARTs!AN49*Input!AN54/Input!$AG54","v":0},{"$f":"DARTs!AO49*Input!AO54/Input!$AG54","v":0},{"$f":"DARTs!AP49*Input!AP54/Input!$AG54","v":0},{"$f":"DARTs!AQ49*Input!AQ54/Input!$AG54","v":0}]
[null,null,null,null,{"$f":"Input!E281","v":"Overall net income of Directly Remunerated Services"},null,"£m nominal",null,null,null,null,null,null,null,null,null,null,null,null,null,null,null,null,null,null,null,null,null,null,null,null,null,null,null,null,{"$f":"DARTs!AJ55*Input!AJ54/Input!$AG54","v":-15.76169528639079},{"$f":"DARTs!AK55*Input!AK54/Input!$AG54","v":-25.180033534115744},{"$f":"DARTs!AL55*Input!AL54/Input!$AG54","v":-25.152428685284452},{"$f":"DARTs!AM55*Input!AM54/Input!$AG54","v":-25.241992319006634},{"$f":"DARTs!AN55*Input!AN54/Input!$AG54","v":-25.333585326774624},{"$f":"DARTs!AO55*Input!AO54/Input!$AG54","v":-25.571758218819568},{"$f":"DARTs!AP55*Input!AP54/Input!$AG54","v":-25.984402175456434},{"$f":"DARTs!AQ55*Input!AQ54/Input!$AG54","v":-26.490853742681896}]
[null,null,null,null,"Less net interest paid (interest coupon)",null,"£m nominal",null,null,null,null,null,null,null,null,null,null,null,null,null,null,null,null,null,null,null,null,null,null,null,null,null,null,null,null,{"$f":"AJ165","v":-67.538338615113901},-70.939603931186369,-73.980172932384846,-77.119857659447604,-80.561498999996459,-84.271354318040565,-88.605034277409175,-93.329635949234657]
[null,null,null,null,"Less net interest paid (inflation coupon)",null,"£m nominal",null,null,null,null,null,null,null,null,null,null,null,null,null,null,null,null,null,null,null,null,null,null,null,null,null,null,null,null,-9.5757762336368639,-10.058233187921553,-10.489016950764777,-10.933985141767085,-11.422577654833566,-11.948238622406953,-12.562901378043891,-13.232547372070226]
[null,null,null,null,"Less revenue tax pool additions",null,"£m nominal",null,null,null,null,null,null,null,null,null,null,null,null,null,null,null,null,null,null,null,null,null,null,null,null,null,null,null,null,-122.15121488174047,-126.17141717363387,-133.47901123725313,-143.83218392435344,-156.23941919217867,-161.62166564689957,-163.55631931628014,-168.9450497254235]
[null,null,null,null,"Less capital allowances",null,"£m nominal",null,null,null,null,null,null,null,null,null,null,null,null,null,null,null,null,null,null,null,null,null,null,null,null,null,null,null,null,-96.10536302645518,-101.72990519730313,-106.04745148521513,-110.46867722606005,-116.31204170645644,-122.66671986642321,-128.64548309412521,-134.66719749643977]
[null,null,null,null,"Profits attributable to corporation tax",null,"£m nominal",null,null,null,null,null,null,null,null,null,null,null,null,null,null,null,null,null,null,null,null,null,null,null,null,null,null,null,null,{"$f":"SUM(AJ204:AJ214)","v":90.043588544284759},85.026219797387867,86.658302547514126,91.43809800946859,94.71576529979292,98.179824050639596,74.822534600409909,73.994112705161029]
[]
[null,null,"Tax losses"]
[]
[null,null,null,null,"Taxable losses brought forward",null,"£m nominal",null,null,null,null,null,null,null,null,null,null,null,null,null,null,null,null,null,null,null,null,null,null,null,null,null,null,null,null,{"$f":"AJ175","v":0},{"$f":"SUM(AJ222)","v":0},{"$f":"SUM(AK222)","v":0},0,0,0,0,0]
[null,null,null,null,"In-year taxable loss",null,"£m nominal",null,null,null,null,null,null,null,null,null,null,null,null,null,null,null,null,null,null,null,null,null,null,null,null,null,null,null,null,{"$f":"MIN(AJ215, 0)","v":0},{"$f":"MIN(AK215, 0)","v":0},{"$f":"MIN(AL215, 0)","v":0},0,0,0,0,0]
[null,null,null,null,"Profits reduced by tax losses ",null,"£m nominal",null,null,null,null,null,null,null,null,null,null,null,null,null,null,null,null,null,null,null,null,null,null,null,null,null,null,null,null,{"$f":"IF(AJ215 >= 0, MIN(AJ215, -AJ219), 0)","v":0},0,0,0,0,0,0,0]
[null,null,null,null,"Balance carried forward",null,"£m nominal",null,null,null,null,null,null,null,null,null,null,null,null,null,null,null,null,null,null,null,null,null,null,null,null,null,null,null,null,{"$f":"SUM(AJ219:AJ221)","v":0},0,0,0,0,0,0,0]
[]
[null,null,null,"Tax paid"]
[]
[]
[null,null,null,null,"Profits attributable to corporation tax (after taxable losses)",null,"£m nominal",null,null,null,null,null,null,null,null,null,null,null,null,null,null,null,null,null,null,null,null,null,null,null,null,null,null,null,null,{"$f":"MAX(AJ215 - AJ221,0)","v":90.043588544284759},85.026219797387867,86.658302547514126,91.43809800946859,94.71576529979292,98.179824050639596,74.822534600409909,73.994112705161029]
[null,null,null,null,"Corporation tax rate",null,"%",null,null,null,null,null,null,null,null,null,null,null,null,null,null,null,null,null,null,null,null,null,null,null,null,null,null,null,null,{"$f":"TaxTrigger!AJ$97","v":0.2},{"$f":"TaxTrigger!AK$97","v":0.2},{"$f":"TaxTrigger!AL$97","v":0.2},{"$f":"TaxTrigger!AM$97","v":0.2},{"$f":"TaxTrigger!AN$97","v":0.2},{"$f":"TaxTrigger!AO$97","v":0.2},{"$f":"TaxTrigger!AP$97","v":0.2},{"$f":"TaxTrigger!AQ$97","v":0.2}]
[null,null,null,null,"Corporation tax charge after losses",null,"£m nominal",null,null,null,null,null,null,null,null,null,null,null,null,null,null,null,null,null,null,null,null,null,null,null,null,null,null,null,null,{"$f":"AJ228*AJ227","v":18.008717708856953},17.005243959477575,17.331660509502825,18.28761960189372,18.943153059958586,19.63596481012792,14.964506920081982,14.798822541032207]
[]
[]
[]
[null,null,null,null,"Revenue adjustments going through model? 1-yes 0-no",null,0]
[]
[null,null,null,null,"IOU Balance nil?",null,{"$f":"IF(ROUND(AQ293,1)=0,\"OK\",\"Reset Initial Adjustment\")","v":"OK"}]
[null,null,null,null,"Initial Revenue before profiling and Revenue after profiling NPV neutral?",null,{"$f":"IF(ROUND(I288-I281,0)<=1,\"OK\",\"Reset Initial Adjustment\")","v":"OK"}]
[null,null,null,null,"Time Value of Money Profile Adjustment pasted properly?",null,{"$f":"F274","v":"OK"}]
[]
[null,null,null,null,"Initial Profile Adjustment:"]
[null,null,null,null,"ENWL"]
[null,null,null,null,"NPgN"]
[null,null,null,null,"NPgY"]
[null,null,null,null,"WMID"]
[null,null,null,null,"EMID"]
[null,null,null,null,"SWALES"]
[null,null,null,null,"SWEST"]
[null,null,null,null,"LPN"]
[null,null,null,null,"SPN"]
[null,null,null,null,"EPN"]
[null,null,null,null,"SPD"]
[null,null,null,null,"SPMW"]
[null,null,null,null,"SSEH"]
[null,null,null,null,"SSES"]
[null,null,null,null,{"$f":"\"Initial Profile Adjustment in Use: \"&UserInterface!G24","v":"Initial Profile Adjustment in Use: WMID"},null,null,null,null,null,null,null,null,null,null,null,null,null,null,null,null,null,null,null,null,null,null,null,null,null,null,null,null,null,null,{"$f":"INDEX(AJ240:AJ253,m_identity,1)","v":0},0,0,0,0,0,0,0]
[]
[null,null,null,null,"Time Value of Money Profile Adjustment:"]
[null,null,null,null,"ENWL"]
[null,null,null,null,"NPgN"]
[null,null,null,null,"NPgY"]
[null,null,null,null,"WMID"]
[null,null,null,null,"EMID"]
[null,null,null,null,"SWALES"]
[null,null,null,null,"SWEST"]
[null,null,null,null,"LPN"]
[null,null,null,null,"SPN"]
[null,null,null,null,"EPN"]
[null,null,null,null,"SPD"]
[null,null,null,null,"SPMW"]
[null,null,null,null,"SSEH"]
[null,null,null,null,"SSES"]
[null,null,null,null,{"$f":"\"Time Value of Money Profile Adjustment in Use: \"&UserInterface!G24","v":"Time Value of Money Profile Adjustment in Use: WMID"},null,null,null,null,null,null,null,null,null,null,null,null,null,null,null,null,null,null,null,null,null,null,null,null,null,null,null,null,null,null,{"$f":"INDEX(AJ257:AJ270,m_identity,1)","v":0},0,0,0,0,0,0,0]
[]
[null,null,null,null,"Time Value of Money Profile Adjustment","COPY and Paste in rows 31:44",null,null,null,null,null,null,null,null,null,null,null,null,null,null,null,null,null,null,null,null,null,null,null,null,null,null,null,null,null,{"$f":"AJ287","v":0},0,0,0,0,0,0,0]
[null,null,null,null,"Time Value of Money Profile Adjustment pasted properly?",{"$f":"IF(SUMPRODUCT((AJ274:AQ274=\"Yes\")*(1))=8,\"OK\",\"Action: Paste correct time value money adjustment\")","v":"OK"},null,null,null,null,null,null,null,null,null,null,null,null,null,null,null,null,null,null,null,null,null,null,null,null,null,null,null,null,null,{"$f":"IF(ROUND(AJ271,5)-ROUND(AJ273,5)=0,\"Yes\",\"No\")","v":"Yes"},{"$f":"IF(ROUND(AK271,5)-ROUND(AK273,5)=0,\"Yes\",\"No\")","v":"Yes"},"Yes","Yes","Yes","Yes","Yes","Yes"]
[]
[null,null,null,null,"WACC",null,null,null,null,null,null,null,null,null,null,null,null,null,null,null,null,null,null,null,null,null,null,null,null,null,null,null,null,null,null,{"$f":"Input!AJ$48","v":4.2429999999999995E-2},{"$f":"Input!AK$48","v":4.2429999999999995E-2},{"$f":"Input!AL$48","v":4.2429999999999995E-2},{"$f":"Input!AM$48","v":4.2429999999999995E-2},{"$f":"Input!AN$48","v":4.2429999999999995E-2},{"$f":"Input!AO$48","v":4.2429999999999995E-2},{"$f":"Input!AP$48","v":4.2429999999999995E-2},{"$f":"Input!AQ$48","v":4.2429999999999995E-2}]
[]
[]
[]
[]
[null,null,null,null,"Revenue Before Profiling",null,null,null,{"$f":"NPV(Input!$AJ$48,AJ281:AQ281)*(1+Input!$AJ$48)^0.5","v":2784.7627552536646},null,null,null,null,null,null,null,null,null,null,null,null,null,null,null,null,null,null,null,null,null,null,null,null,null,null,{"$f":"Revenue!AJ$22","v":392.96017976540372},{"$f":"Revenue!AK$22","v":398.95588996468462},{"$f":"Revenue!AL$22","v":403.28151776590926},{"$f":"Revenue!AM$22","v":412.62414983154997},{"$f":"Revenue!AN$22","v":423.0888053087358},{"$f":"Revenue!AO$22","v":427.98457595876357},{"$f":"Revenue!AP$22","v":409.10795307184497},{"$f":"Revenue!AQ$22","v":411.11517675259324}]
[null,null,null,null,"Initial Profile Adjustment",null,null,null,null,null,null,null,null,null,null,null,null,null,null,null,null,null,null,null,null,null,null,null,null,null,null,null,null,null,null,{"$f":"AJ254","v":0},{"$f":"AK254","v":0},0,0,0,0,0,0]
[null,null,null,null,"Tax Allowance impact due to change in revenue",null,null,null,null,null,null,null,null,null,null,null,null,null,null,null,null,null,null,null,null,null,null,null,null,null,null,null,null,null,null,{"$f":"(AJ197*Input!$AG$54/Input!AJ$54)-Revenue!AJ$21","v":0},{"$f":"(AK197*Input!$AG$54/Input!AK$54)-Revenue!AK$21","v":0},{"$f":"(AL197*Input!$AG$54/Input!AL$54)-Revenue!AL$21","v":0},{"$f":"(AM197*Input!$AG$54/Input!AM$54)-Revenue!AM$21","v":0},{"$f":"(AN197*Input!$AG$54/Input!AN$54)-Revenue!AN$21","v":0},{"$f":"(AO197*Input!$AG$54/Input!AO$54)-Revenue!AO$21","v":0},{"$f":"(AP197*Input!$AG$54/Input!AP$54)-Revenue!AP$21","v":0},{"$f":"(AQ197*Input!$AG$54/Input!AQ$54)-Revenue!AQ$21","v":0}]
[null,null,null,null,"Equity Issuance Allowance impact due to change in revenue",null,null,null,null,null,null,null,null,null,null,null,null,null,null,null,null,null,null,null,null,null,null,null,null,null,null,null,null,null,null,{"$f":"(-AJ30*Input!$AG$54/Input!AJ$54)-Revenue!AJ17","v":0},{"$f":"(-AK30*Input!$AG$54/Input!AK$54)-Revenue!AK17","v":0},{"$f":"(-AL30*Input!$AG$54/Input!AL$54)-Revenue!AL17","v":0},{"$f":"(-AM30*Input!$AG$54/Input!AM$54)-Revenue!AM17","v":0},{"$f":"(-AN30*Input!$AG$54/Input!AN$54)-Revenue!AN17","v":0},{"$f":"(-AO30*Input!$AG$54/Input!AO$54)-Revenue!AO17","v":0},{"$f":"(-AP30*Input!$AG$54/Input!AP$54)-Revenue!AP17","v":0},{"$f":"(-AQ30*Input!$AG$54/Input!AQ$54)-Revenue!AQ17","v":0}]
[null,null,null,null,"Recalculated Revenue After Profiling but before time value adjustment",null,null,null,null,null,null,null,null,null,null,null,null,null,null,null,null,null,null,null,null,null,null,null,null,null,null,null,null,null,null,{"$f":"SUM(AJ281:AJ284)","v":392.96017976540372},{"$f":"SUM(AK281:AK284)","v":398.95588996468462},403.28151776590926,412.62414983154997,423.0888053087358,427.98457595876357,409.10795307184497,411.11517675259324]
[]
[null,null,null,null,"Time Value of Money Profile Adjustment",null,null,null,null,null,null,null,null,null,null,null,null,null,null,null,null,null,null,null,null,null,null,null,null,null,null,null,null,null,null,{"$f":"AJ295","v":0},0,0,0,0,0,0,0]
[null,null,null,null,"Recalculated Revenue After Profiling",null,null,null,{"$f":"NPV(Input!$AJ$48,AJ288:AQ288)*(1+Input!$AJ$48)^0.5","v":2784.7627552536646},null,null,null,null,null,null,null,null,null,null,null,null,null,null,null,null,null,null,null,null,null,null,null,null,null,null,{"$f":"AJ285+AJ287","v":392.96017976540372},398.95588996468462,403.28151776590926,412.62414983154997,423.0888053087358,427.98457595876357,409.10795307184497,411.11517675259324]
[]
[null,null,null,null,"IOU Account: Difference between Base Rev before profiling and Revenue after profiling"]
[null,null,null,null,"Opening",null,null,null,null,null,null,null,null,null,null,null,null,null,null,null,null,null,null,null,null,null,null,null,null,null,null,null,null,null,null,{"$f":"AI293","v":0},0,0,0,0,0,0,0]
[null,null,null,null,"Profiling Impact on Actual Revenues",null,null,null,null,null,null,null,null,null,null,null,null,null,null,null,null,null,null,null,null,null,null,null,null,null,null,null,null,null,null,{"$f":"AJ285-AJ281","v":0},{"$f":"AK285-AK281","v":0},0,0,0,0,0,0]
[null,null,null,null,"Closing balance",null,null,null,null,null,null,null,null,null,null,null,null,null,null,null,null,null,null,null,null,null,null,null,null,null,null,null,null,null,null,{"$f":"SUM(AJ291:AJ292)","v":0},0,0,0,0,0,0,0,null,"Grey shaded figure should be nil"]
[]
[null,null,null,null,"Time value of money ",null,null,null,null,null,null,null,null,null,null,null,null,null,null,null,null,null,null,null,null,null,null,null,null,null,null,null,null,null,null,{"$f":"-AVERAGE(AJ291,AJ293)*AJ276","v":0},{"$f":"-AVERAGE(AK291,AK293)*AK276","v":0},0,0,0,0,0,0]

{"sheet":"LiveResults","index":15,"n_rows":92,"n_cols":15,"rows_kept":92,"cut":false,"hidden":false,"merged":[]}
["Live Results"]
[]
[null,"Live results"]
[null,"Note: This sheet displays the output of the PCFM for the live company in the selected year."]
[null,"As well as displaying output it performs the role of recalling results generated with data at earlier stages from the \"SavedResults\" sheet required for the MOD calculation."]
[]
[null,null,"Offset settings"]
[null,null,"Note: This sheet uses Offset functions to recall saved data for the live company on the \"SavedResults\" sheet, and to place recalculated base revenue values into a row where the year of calculation can be identified."]
[]
[null,null,null,null,"Company number",{"$f":"m_identity","v":4}]
[null,null,null,null,"Number of rows per company on \"SavedResults\"",{"$f":"ROW(m_live_results_end) - ROW(m_live_results)","v":77}]
[null,null,null,null,"Year number",{"$f":"UserInterface!E75","v":1}]
[]
[null,null,"Adjacent named range: m_live_results"]
[null,null,{"$f":"\"Values for \"&E19","v":"Values for WMID: OWN_Best (M1a)"}]
[]
[]
[null,null,null,null,"Company","Calculated for MOD year ending",null,"File"]
[null,null,null,null,{"$f":"UserInterface!G24&\": \"&UserInterface!G9","v":"WMID: OWN_Best (M1a)"},{"$f":"UserInterface!G17","v":"2016-03-31"},null,{"$f":"MID(CELL(\"filename\"),SEARCH(\"[\",CELL(\"filename\"))+1,SEARCH(\"]\",CELL(\"filename\"))-SEARCH(\"[\",CELL(\"filename\"))-1)","v":"LiMo ED C1.93b_WPD_DNO East Mids.xlsm"}]
[]
[null,null,null,null,"PCFM year ending","2016-03-31","2017-03-31","2018-03-31","2019-03-31","2020-03-31","2021-03-31","2022-03-31","2023-03-31","RIIO Total","RIIO average"]
[null,null,null,null,"Price base","£m 12/13 prices","£m 12/13 prices","£m 12/13 prices","£m 12/13 prices","£m 12/13 prices","£m 12/13 prices","£m 12/13 prices","£m 12/13 prices","£m 12/13 prices","£m 12/13 prices"]
[null,null,null,null,"Totex"]
[null,null,null,1,"Slow pot",{"$f":"TIM!AJ72","v":208.64001832372224},{"$f":"TIM!AK72","v":209.33131336751876},{"$f":"TIM!AL72","v":203.33521941504569},{"$f":"TIM!AM72","v":206.49197456996353},{"$f":"TIM!AN72","v":212.76243146173931},{"$f":"TIM!AO72","v":216.60837997824592},{"$f":"TIM!AP72","v":214.67632715785209},{"$f":"TIM!AQ72","v":216.87486343189767},{"$f":"SUM(F24:M24)","v":1688.7205277059852},{"$f":"IFERROR(AVERAGE(F24:M24), 0 )","v":211.09006596324815}]
[null,null,null,{"$f":"+D24+1","v":2},"Fast pot",{"$f":"TIM!AJ70","v":52.160004580930547},{"$f":"TIM!AK70","v":52.33282834187969},{"$f":"TIM!AL70","v":50.833804853761393},{"$f":"TIM!AM70","v":51.622993642490883},{"$f":"TIM!AN70","v":53.190607865434799},{"$f":"TIM!AO70","v":54.15209499456148},{"$f":"TIM!AP70","v":53.669081789463007},{"$f":"TIM!AQ70","v":54.218715857974416},{"$f":"SUM(F25:M25)","v":422.18013192649619},{"$f":"IFERROR(AVERAGE(F25:M25), 0 )","v":52.772516490812023}]
[null,null,null,{"$f":"+D25+1","v":3},"Post-TIM totex allowance",{"$f":"TIM!AJ52","v":260.80002290465279},{"$f":"TIM!AK52","v":261.66414170939845},{"$f":"TIM!AL52","v":254.16902426880708},{"$f":"TIM!AM52","v":258.11496821245441},{"$f":"TIM!AN52","v":265.95303932717411},{"$f":"TIM!AO52","v":270.7604749728074},{"$f":"TIM!AP52","v":268.34540894731509},{"$f":"TIM!AQ52","v":271.09357928987208},{"$f":"SUM(F26:M26)","v":2110.9006596324812},{"$f":"IFERROR(AVERAGE(F26:M26), 0 )","v":263.86258245406015}]
[null,null,null,null,"Regulatory Asset Value (RAV)"]
[null,null,null,{"$f":"D26+1","v":4},"Opening asset value (before transfers)",{"$f":"'Return&RAV'!AJ42","v":1926.1253361421734},{"$f":"'Return&RAV'!AK42","v":1964.7511373926034},{"$f":"'Return&RAV'!AL42","v":2000.4229836663189},{"$f":"'Return&RAV'!AM42","v":2028.3332054086823},{"$f":"'Return&RAV'!AN42","v":2057.7704151715011},{"$f":"'Return&RAV'!AO42","v":2092.7274417454978},{"$f":"'Return&RAV'!AP42","v":2130.5752181124326},{"$f":"'Return&RAV'!AQ42","v":2181.9812855258415},null,{"$f":"IFERROR(AVERAGE(F28:M28), 0 )","v":2047.8358778956313}]
[null,null,null,{"$f":"+D28+1","v":5},"Transfers",{"$f":"'Return&RAV'!AJ43","v":0},{"$f":"'Return&RAV'!AK43","v":0},{"$f":"'Return&RAV'!AL43","v":0},{"$f":"'Return&RAV'!AM43","v":0},{"$f":"'Return&RAV'!AN43","v":0},{"$f":"'Return&RAV'!AO43","v":0},{"$f":"'Return&RAV'!AP43","v":0},{"$f":"'Return&RAV'!AQ43","v":0},{"$f":"SUM(F29:M29)","v":0},0]
[null,null,null,{"$f":"+D29+1","v":6},"Opening asset value (after transfers)",{"$f":"'Return&RAV'!AJ44","v":1926.1253361421734},{"$f":"'Return&RAV'!AK44","v":1964.7511373926034},{"$f":"'Return&RAV'!AL44","v":2000.4229836663189},{"$f":"'Return&RAV'!AM44","v":2028.3332054086823},{"$f":"'Return&RAV'!AN44","v":2057.7704151715011},{"$f":"'Return&RAV'!AO44","v":2092.7274417454978},{"$f":"'Return&RAV'!AP44","v":2130.5752181124326},{"$f":"'Return&RAV'!AQ44","v":2181.9812855258415},null,2047.8358778956313]
[null,null,null,{"$f":"+D30+1","v":7},"RAV additions (after disposals)",{"$f":"'Return&RAV'!AJ45","v":208.64001832372224},{"$f":"'Return&RAV'!AK45","v":209.33131336751876},{"$f":"'Return&RAV'!AL45","v":203.33521941504569},{"$f":"'Return&RAV'!AM45","v":206.49197456996353},{"$f":"'Return&RAV'!AN45","v":212.76243146173931},{"$f":"'Return&RAV'!AO45","v":216.60837997824592},{"$f":"'Return&RAV'!AP45","v":214.67632715785209},{"$f":"'Return&RAV'!AQ45","v":216.87486343189767},{"$f":"SUM(F31:M31)","v":1688.7205277059852},211.09006596324815]
[null,null,null,{"$f":"+D31+1","v":8},"Depreciation",{"$f":"'Return&RAV'!AJ46","v":-170.01421707329217},{"$f":"'Return&RAV'!AK46","v":-173.65946709380285},{"$f":"'Return&RAV'!AL46","v":-175.42499767268239},{"$f":"'Return&RAV'!AM46","v":-177.05476480714464},{"$f":"'Return&RAV'!AN46","v":-177.80540488774244},{"$f":"'Return&RAV'!AO46","v":-178.76060361131118},{"$f":"'Return&RAV'!AP46","v":-163.27025974444302},{"$f":"'Return&RAV'!AQ46","v":-162.2495572167245},{"$f":"SUM(F32:M32)","v":-1378.2392721071433},-172.27990901339291]
[null,null,null,{"$f":"+D32+1","v":9},"Closing asset value",{"$f":"+F30+F31+F32","v":1964.7511373926034},{"$f":"+G30+G31+G32","v":2000.4229836663189},2028.3332054086823,2057.7704151715011,2092.7274417454978,2130.5752181124326,2181.9812855258415,2236.6065917410147,null,2086.6460348454866]
[null,null,null,null,"Final Proposals allowances"]
[null,null,null,{"$f":"D33+1","v":10},{"$f":"E44","v":"Fast pot expenditure"},{"$f":"IF($F$19 = $F$21, F44, OFFSET(m_results_01, ($F$11 * ($F$10 - 1)) + ROW($D35) - ROW(m_live_results), COLUMN(F$21) - COLUMN(m_live_results)))","v":52.160004580930547},52.33282834187969,50.833804853761393,51.622993642490883,53.190607865434799,54.15209499456148,53.669081789463007,54.218715857974416,{"$f":"SUM(F35:M35)","v":422.18013192649619},{"$f":"IFERROR(AVERAGE(F35:M35), 0 )","v":52.772516490812023}]
[null,null,null,{"$f":"+D35+1","v":11},{"$f":"E45","v":"Non-controllable opex "},41.027809683461783,41.372733789158211,44.491559846746767,49.815326395288039,56.426160748289291,57.715649087288497,57.102403713808542,57.771392177854246,405.72303544189538,50.715379430236922]
[null,null,null,12,"RAV depreciation",170.01421707329217,173.65946709380285,175.42499767268239,177.05476480714464,177.80540488774244,178.76060361131118,163.27025974444302,162.2495572167245,1378.2392721071433,172.27990901339291]
[null,null,null,13,"Return",80.848355118689724,82.393776587616685,83.718569305382317,84.909775634693517,86.245713491791548,87.757585317724377,89.60671577677077,91.809001675159564,687.2894929078285,85.911186613478563]
[null,null,null,14,"Equity issuance cost",0,0,0,0,0,0,0,0,0,0]
[null,null,null,15,"Additional income",6.5177008708534432,6.5264165132061303,6.3387148531472128,6.450380460195551,6.6466890722425482,6.7669578853169305,6.7075272813662341,6.7762634538867541,52.730650390214798,6.5913312987768498]
[null,null,null,16,"Core DARTs",24.351069633007217,24.379501098941805,24.409138911975997,24.440034257417228,24.472240492365533,24.505813237862693,24.5408104749513,24.577292644809575,195.67590075133131,24.459487593916414]
[null,null,null,17,"Tax allowance",18.041022805168847,18.29116654007921,18.064732322213182,18.330874634320136,18.301988750869587,18.325871824698396,14.211154291042094,13.712953726184168,137.27976489457561,17.159970611821951]
[null,null,null,null,"Recalculated allowances"]
[null,null,null,{"$f":"D42+1","v":18},{"$f":"Revenue!E13","v":"Fast pot expenditure"},{"$f":"Revenue!AJ13","v":52.160004580930547},{"$f":"Revenue!AK13","v":52.33282834187969},{"$f":"Revenue!AL13","v":50.833804853761393},{"$f":"Revenue!AM13","v":51.622993642490883},{"$f":"Revenue!AN13","v":53.190607865434799},{"$f":"Revenue!AO13","v":54.15209499456148},{"$f":"Revenue!AP13","v":53.669081789463007},{"$f":"Revenue!AQ13","v":54.218715857974416},{"$f":"SUM(F44:M44)","v":422.18013192649619},{"$f":"IFERROR(AVERAGE(F44:M44), 0 )","v":52.772516490812023}]
[null,null,null,{"$f":"+D44+1","v":19},{"$f":"Revenue!E14","v":"Non-controllable opex "},{"$f":"Revenue!AJ14","v":41.027809683461783},{"$f":"Revenue!AK14","v":41.372733789158211},{"$f":"Revenue!AL14","v":44.491559846746767},{"$f":"Revenue!AM14","v":49.815326395288039},{"$f":"Revenue!AN14","v":56.426160748289291},{"$f":"Revenue!AO14","v":57.715649087288497},{"$f":"Revenue!AP14","v":57.102403713808542},{"$f":"Revenue!AQ14","v":57.771392177854246},405.72303544189538,50.715379430236922]
[null,null,null,20,{"$f":"Revenue!E15","v":"RAV depreciation"},{"$f":"Revenue!AJ15","v":170.01421707329217},{"$f":"Revenue!AK15","v":173.65946709380285},{"$f":"Revenue!AL15","v":175.42499767268239},{"$f":"Revenue!AM15","v":177.05476480714464},{"$f":"Revenue!AN15","v":177.80540488774244},{"$f":"Revenue!AO15","v":178.76060361131118},{"$f":"Revenue!AP15","v":163.27025974444302},{"$f":"Revenue!AQ15","v":162.2495572167245},1378.2392721071433,172.27990901339291]
[null,null,null,21,{"$f":"Revenue!E16","v":"Return"},{"$f":"Revenue!AJ16","v":80.848355118689724},{"$f":"Revenue!AK16","v":82.393776587616685},{"$f":"Revenue!AL16","v":83.718569305382317},{"$f":"Revenue!AM16","v":84.909775634693517},{"$f":"Revenue!AN16","v":86.245713491791548},{"$f":"Revenue!AO16","v":87.757585317724377},{"$f":"Revenue!AP16","v":89.60671577677077},{"$f":"Revenue!AQ16","v":91.809001675159564},687.2894929078285,85.911186613478563]
[null,null,null,22,{"$f":"Revenue!E17","v":"Equity issuance cost"},{"$f":"Revenue!AJ17","v":0},{"$f":"Revenue!AK17","v":0},{"$f":"Revenue!AL17","v":0},{"$f":"Revenue!AM17","v":0},{"$f":"Revenue!AN17","v":0},{"$f":"Revenue!AO17","v":0},{"$f":"Revenue!AP17","v":0},{"$f":"Revenue!AQ17","v":0},0,0]
[null,null,null,23,{"$f":"Revenue!E18","v":"Additional income"},{"$f":"Revenue!AJ18","v":6.5177008708534432},{"$f":"Revenue!AK18","v":6.5264165132061303},{"$f":"Revenue!AL18","v":6.3387148531472128},{"$f":"Revenue!AM18","v":6.450380460195551},{"$f":"Revenue!AN18","v":6.6466890722425482},{"$f":"Revenue!AO18","v":6.7669578853169305},{"$f":"Revenue!AP18","v":6.7075272813662341},{"$f":"Revenue!AQ18","v":6.7762634538867541},52.730650390214798,6.5913312987768498]
[null,null,null,24,{"$f":"Revenue!E19","v":"Core DARTs"},{"$f":"Revenue!AJ19","v":24.351069633007217},{"$f":"Revenue!AK19","v":24.379501098941805},{"$f":"Revenue!AL19","v":24.409138911975997},{"$f":"Revenue!AM19","v":24.440034257417228},{"$f":"Revenue!AN19","v":24.472240492365533},{"$f":"Revenue!AO19","v":24.505813237862693},{"$f":"Revenue!AP19","v":24.5408104749513},{"$f":"Revenue!AQ19","v":24.577292644809575},195.67590075133131,24.459487593916414]
[null,null,null,25,{"$f":"Revenue!E21","v":"Tax allowance"},{"$f":"Revenue!AJ21","v":18.041022805168847},{"$f":"Revenue!AK21","v":18.29116654007921},{"$f":"Revenue!AL21","v":18.064732322213182},{"$f":"Revenue!AM21","v":18.330874634320136},{"$f":"Revenue!AN21","v":18.301988750869587},{"$f":"Revenue!AO21","v":18.325871824698396},{"$f":"Revenue!AP21","v":14.211154291042094},{"$f":"Revenue!AQ21","v":13.712953726184168},137.27976489457561,17.159970611821951]
[null,null,null,null,"Price Control Revenue"]
[null,null,null,{"$f":"D51+1","v":26},"Final proposals base revenue",{"$f":"F64","v":392.96017976540372},{"$f":"G64","v":398.95588996468462},403.28151776590926,412.62414983154997,423.0888053087358,427.98457595876357,409.10795307184497,411.11517675259324,{"$f":"SUM(F53:M53)","v":3279.1182484194851},{"$f":"IFERROR(AVERAGE(F53:M53), 0 )","v":409.88978105243564}]
[null,null,null,{"$f":"+D53+1","v":27},"MOD",{"$f":"IF(F$21=$F$19,Revenue!AJ61,IF(F$21 < $F$19,OFFSET(m_results_01, ($F$11 * ($F$10 - 1)) + ROW($D73) + ((F$21 - $F$21)/365) - ROW(m_live_results), COLUMN(F$21) - COLUMN(m_live_results)), 0))","v":0},{"$f":"IF(G$21=$F$19,Revenue!AK61,IF(G$21 < $F$19,OFFSET(m_results_01, ($F$11 * ($F$10 - 1)) + ROW($D73) + ((G$21 - $F$21)/365) - ROW(m_live_results), COLUMN(G$21) - COLUMN(m_live_results)), 0))","v":0},{"$f":"IF(H$21=$F$19,Revenue!AL61,IF(H$21 < $F$19,OFFSET(m_results_01, ($F$11 * ($F$10 - 1)) + ROW($D73) + ((H$21 - $F$21)/365) - ROW(m_live_results), COLUMN(H$21) - COLUMN(m_live_results)), 0))","v":0},{"$f":"IF(I$21=$F$19,Revenue!AM61,IF(I$21 < $F$19,OFFSET(m_results_01, ($F$11 * ($F$10 - 1)) + ROW($D73) + ((I$21 - $F$21)/365) - ROW(m_live_results), COLUMN(I$21) - COLUMN(m_live_results)), 0))","v":0},{"$f":"IF(J$21=$F$19,Revenue!AN61,IF(J$21 < $F$19,OFFSET(m_results_01, ($F$11 * ($F$10 - 1)) + ROW($D73) + ((J$21 - $F$21)/365) - ROW(m_live_results), COLUMN(J$21) - COLUMN(m_live_results)), 0))","v":0},{"$f":"IF(K$21=$F$19,Revenue!AO61,IF(K$21 < $F$19,OFFSET(m_results_01, ($F$11 * ($F$10 - 1)) + ROW($D73) + ((K$21 - $F$21)/365) - ROW(m_live_results), COLUMN(K$21) - COLUMN(m_live_results)), 0))","v":0},{"$f":"IF(L$21=$F$19,Revenue!AP61,IF(L$21 < $F$19,OFFSET(m_results_01, ($F$11 * ($F$10 - 1)) + ROW($D73) + ((L$21 - $F$21)/365) - ROW(m_live_results), COLUMN(L$21) - COLUMN(m_live_results)), 0))","v":0},{"$f":"IF(M$21=$F$19,Revenue!AQ61,IF(M$21 < $F$19,OFFSET(m_results_01, ($F$11 * ($F$10 - 1)) + ROW($D73) + ((M$21 - $F$21)/365) - ROW(m_live_results), COLUMN(M$21) - COLUMN(m_live_results)), 0))","v":0},0,0]
[null,null,null,28,"Base revenue",{"$f":"IF(F$21 = $F$19, Revenue!AJ54, IF(F$21 < $F$19, OFFSET(m_results_01, ($F$11 * ($F$10 - 1)) + ROW($D55) - ROW(m_live_results), COLUMN(F$21) - COLUMN(m_live_results)), F53))","v":392.96017976540372},{"$f":"IF(G$21 = $F$19, Revenue!AK54, IF(G$21 < $F$19, OFFSET(m_results_01, ($F$11 * ($F$10 - 1)) + ROW($D55) - ROW(m_live_results), COLUMN(G$21) - COLUMN(m_live_results)), G53))","v":398.95588996468462},{"$f":"IF(H$21 = $F$19, Revenue!AL54, IF(H$21 < $F$19, OFFSET(m_results_01, ($F$11 * ($F$10 - 1)) + ROW($D55) - ROW(m_live_results), COLUMN(H$21) - COLUMN(m_live_results)), H53))","v":403.28151776590926},{"$f":"IF(I$21 = $F$19, Revenue!AM54, IF(I$21 < $F$19, OFFSET(m_results_01, ($F$11 * ($F$10 - 1)) + ROW($D55) - ROW(m_live_results), COLUMN(I$21) - COLUMN(m_live_results)), I53))","v":412.62414983154997},{"$f":"IF(J$21 = $F$19, Revenue!AN54, IF(J$21 < $F$19, OFFSET(m_results_01, ($F$11 * ($F$10 - 1)) + ROW($D55) - ROW(m_live_results), COLUMN(J$21) - COLUMN(m_live_results)), J53))","v":423.0888053087358},{"$f":"IF(K$21 = $F$19, Revenue!AO54, IF(K$21 < $F$19, OFFSET(m_results_01, ($F$11 * ($F$10 - 1)) + ROW($D55) - ROW(m_live_results), COLUMN(K$21) - COLUMN(m_live_results)), K53))","v":427.98457595876357},{"$f":"IF(L$21 = $F$19, Revenue!AP54, IF(L$21 < $F$19, OFFSET(m_results_01, ($F$11 * ($F$10 - 1)) + ROW($D55) - ROW(m_live_results), COLUMN(L$21) - COLUMN(m_live_results)), L53))","v":409.10795307184497},{"$f":"IF(M$21 = $F$19, Revenue!AQ54, IF(M$21 < $F$19, OFFSET(m_results_01, ($F$11 * ($F$10 - 1)) + ROW($D55) - ROW(m_live_results), COLUMN(M$21) - COLUMN(m_live_results)), M53))","v":411.11517675259324},3279.1182484194851,409.88978105243564]
[null,null,null,29,"Not Used"]
[null,null,null,{"$f":"+D56+1","v":30},"Not Used"]
[null,null,null,{"$f":"+D57+1","v":31},"ES7 (Miscellaneous) revenue",{"$f":"Input!AJ223","v":0},{"$f":"Input!AK223","v":0},{"$f":"Input!AL223","v":0},{"$f":"Input!AM223","v":0},{"$f":"Input!AN223","v":0},{"$f":"Input!AO223","v":0},{"$f":"Input!AP223","v":0},{"$f":"Input!AQ223","v":0},0,0]
[null,null,null,32,"Total revenue",{"$f":"SUM(F55:F58)","v":392.96017976540372},{"$f":"SUM(G55:G58)","v":398.95588996468462},403.28151776590926,412.62414983154997,423.0888053087358,427.98457595876357,409.10795307184497,411.11517675259324,3279.1182484194851,409.88978105243564]
[null,null,null,null,"Recalculated base revenue"]
[null,null,null,{"$f":"D59+1","v":33},"Recalculated base revenue",{"$f":"Revenue!AJ22","v":392.96017976540372},{"$f":"Revenue!AK22","v":398.95588996468462},{"$f":"Revenue!AL22","v":403.28151776590926},{"$f":"Revenue!AM22","v":412.62414983154997},{"$f":"Revenue!AN22","v":423.0888053087358},{"$f":"Revenue!AO22","v":427.98457595876357},{"$f":"Revenue!AP22","v":409.10795307184497},{"$f":"Revenue!AQ22","v":411.11517675259324},{"$f":"SUM(F61:M61)","v":3279.1182484194851},{"$f":"IFERROR(AVERAGE(F61:M61), 0 )","v":409.88978105243564}]
[null,null,null,{"$f":"+D61+1","v":34},"Previous year recalculated base revenue",{"$f":"IF($F$12=1, 0,  OFFSET(F64, $F$12 - 2, 0))","v":0},{"$f":"IF($F$12=1, 0,  OFFSET(G64, $F$12 - 2, 0))","v":0},0,0,0,0,0,0,{"$f":"SUM(F62:M62)","v":0},{"$f":"IFERROR(AVERAGE(F62:M62), 0 )","v":0}]
[null,null,null,null,"Recorded recalculated base revenue"]
[null,null,null,{"$f":"D62+1","v":35},"2016-03-31",{"$f":"IF($E64 = $F$19, F$61, IF($E64 < $F$19,OFFSET(m_results_01, ($F$11 * ($F$10 - 1)) + ROW($D64) - ROW(m_live_results), COLUMN(F$21) - COLUMN(m_live_results)), \"\"))","v":392.96017976540372},398.95588996468462,403.28151776590926,412.62414983154997,423.0888053087358,427.98457595876357,409.10795307184497,411.11517675259324,{"$f":"SUM(F64:M64)","v":3279.1182484194851},{"$f":"IFERROR(AVERAGE(F64:M64), 0 )","v":409.88978105243564}]
[null,null,null,{"$f":"+D64+1","v":36},"2017-03-31","","","","","","","","",0,0]
[null,null,null,{"$f":"+D65+1","v":37},"2018-03-31","","","","","","","","",0,0]
[null,null,null,{"$f":"D66+1","v":38},"2019-03-31","","","","","","","","",0,0]
[null,null,null,{"$f":"D67+1","v":39},"2020-03-31","","","","","","","","",0,0]
[null,null,null,{"$f":"D68+1","v":40},"2021-03-31","","","","","","","","",0,0]
[null,null,null,{"$f":"D69+1","v":41},"2022-03-31","","","","","","","","",0,0]
[null,null,null,{"$f":"D70+1","v":42},"2023-03-31","","","","","","","","",0,0]
[null,null,null,null,"Recorded MOD"]
[null,null,null,{"$f":"D71+1","v":43},"2016-03-31",{"$f":"IF($E73 = $F$19, F$54, IF($E73 < $F$19,OFFSET(m_results_01, ($F$11 * ($F$10 - 1)) + ROW($D73) - ROW(m_live_results), COLUMN(F$21) - COLUMN(m_live_results)), \"\"))","v":0},0,0,0,0,0,0,0,0]
[null,null,null,{"$f":"+D73+1","v":44},"2017-03-31","","","","","","","","",0]
[null,null,null,{"$f":"+D74+1","v":45},"2018-03-31","","","","","","","","",0]
[null,null,null,{"$f":"D75+1","v":46},"2019-03-31","","","","","","","","",0]
[null,null,null,{"$f":"D76+1","v":47},"2020-03-31","","","","","","","","",0]
[null,null,null,{"$f":"D77+1","v":48},"2021-03-31","","","","","","","","",0]
[null,null,null,{"$f":"D78+1","v":49},"2022-03-31","","","","","","","","",0]
[null,null,null,{"$f":"D79+1","v":50},"2023-03-31","","","","","","","","",{"$f":"SUM(F80:M80)","v":0}]
[null,null,null,null,"Inputs to RoRE"]
[null,null,null,{"$f":"D80+1","v":51},"Average RAV",{"$f":"AVERAGE(F28 +F29, (F33*'Return&RAV'!AJ17))","v":1905.4526306549549},{"$f":"AVERAGE(G28 +G29, (G33*'Return&RAV'!AK17))","v":1941.8754793216285},{"$f":"AVERAGE(H28 +H29, (H33*'Return&RAV'!AL17))","v":1973.0984988305993},{"$f":"AVERAGE(I28 +I29, (I33*'Return&RAV'!AM17))","v":2001.1731236081434},{"$f":"AVERAGE(J28 +J29, (J33*'Return&RAV'!AN17))","v":2032.6588143245713},{"$f":"AVERAGE(K28 +K29, (K33*'Return&RAV'!AO17))","v":2068.2909572878716},{"$f":"AVERAGE(L28 +L29, (L33*'Return&RAV'!AP17))","v":2111.8716892946213},{"$f":"AVERAGE(M28 +M29, (M33*'Return&RAV'!AQ17))","v":2163.7756699306992},{"$f":"SUM(F82:M82)","v":16198.196863253088},{"$f":"IFERROR(AVERAGE(F82:M82), 0 )","v":2024.774607906636}]
[null,null,null,{"$f":"D82+1","v":52},"Gearing",{"$f":"Input!AJ46","v":0.65},{"$f":"Input!AK46","v":0.65},{"$f":"Input!AL46","v":0.65},{"$f":"Input!AM46","v":0.65},{"$f":"Input!AN46","v":0.65},{"$f":"Input!AO46","v":0.65},{"$f":"Input!AP46","v":0.65},{"$f":"Input!AQ46","v":0.65},{"$f":"1- (N84 /N82)","v":0.65},{"$f":"IFERROR(AVERAGE(F83:M83), 0 )","v":0.65}]
[null,null,null,{"$f":"D83+1","v":53},"Regulated equity",{"$f":"F82 * (1 - F83)","v":666.90842072923419},{"$f":"G82 * (1 - G83)","v":679.65641776256996},690.58447459070976,700.41059326285017,711.43058501359985,723.90183505075504,739.15509125311746,757.32148447574468,{"$f":"SUM(F84:M84)","v":5669.3689021385808},{"$f":"IFERROR(AVERAGE(F84:M84), 0 )","v":708.6711127673226}]
[null,null,null,{"$f":"D84+1","v":54},"Regulated debt return",{"$f":"(F82 * F83) * Input!AJ11","v":36.165490929831044},{"$f":"(G82 * G83) * Input!AK11","v":36.856796597524514},{"$f":"(H82 * H83) * Input!AL11","v":37.449409507804774},{"$f":"(I82 * I83) * Input!AM11","v":37.982265886082565},{"$f":"(J82 * J83) * Input!AN11","v":38.579864295880363},{"$f":"(K82 * K83) * Input!AO11","v":39.25616236932381},{"$f":"(L82 * L83) * Input!AP11","v":40.083324662811911},{"$f":"(M82 * M83) * Input!AQ11","v":41.068462215284676},{"$f":"SUM(F85:M85)","v":307.44177646454364},{"$f":"IFERROR(AVERAGE(F85:M85), 0 )","v":38.430222058067955}]
[null,null,null,{"$f":"D85+1","v":55},"Allowed repex",{"$f":"Totex!AJ39","v":22.002353105611281},{"$f":"Totex!AK39","v":20.400734359732638},{"$f":"Totex!AL39","v":14.548355734361138},{"$f":"Totex!AM39","v":12.011913228608508},{"$f":"Totex!AN39","v":15.958310830003677},{"$f":"Totex!AO39","v":17.945552894768298},{"$f":"Totex!AP39","v":15.522143220034565},{"$f":"Totex!AQ39","v":13.378680782127041},{"$f":"SUM(F86:M86)","v":131.76804415524714},{"$f":"IFERROR(AVERAGE(F86:M86), 0 )","v":16.471005519405892}]
[]
[]
[]
[]
[]
[null,null,"End of sheet"]

{"sheet":"SavedResults","index":16,"n_rows":1097,"n_cols":15,"rows_kept":1097,"cut":false,"hidden":false,"merged":[]}
["Saved Results"]
[]
[null,"Links to saved results"]
[null,"Note: The \"Run_for_one\" and \"RunForAll\" macros save output on the \"LiveResults\" sheet to points on this sheet designated by named ranges. The hyperlinks below lead to the saved output for each company."]
[null,"The \"LiveResults\" sheet recalls values generated in earlier iterations (Final Proposals allowances and recalculated base revenue) from this sheet."]
[null,"For \"LiveResults\" to recall data correctly, there must be an equal number of rows between each named ranges marking the start of each company's section. There must also be sufficient rows to hold the output generated on the \"LiveResults\" sheet."]
[]
[null,null,null,null,{"$f":"UserInterface!E49","v":"ENWL"},{"$f":"UserInterface!E56","v":"LPN"}]
[null,null,null,null,{"$f":"UserInterface!E50","v":"NPgN"},{"$f":"UserInterface!E57","v":"SPN"}]
[null,null,null,null,{"$f":"UserInterface!E51","v":"NPgY"},{"$f":"UserInterface!E58","v":"EPN"}]
[null,null,null,null,{"$f":"UserInterface!E52","v":"WMID"},{"$f":"UserInterface!E59","v":"SPD"}]
[null,null,null,null,{"$f":"UserInterface!E53","v":"EMID"},{"$f":"UserInterface!E60","v":"SPMW"}]
[null,null,null,null,{"$f":"UserInterface!E54","v":"SWALES"},{"$f":"UserInterface!E61","v":"SSEH"}]
[null,null,null,null,{"$f":"UserInterface!E55","v":"SWEST"},{"$f":"UserInterface!E62","v":"SSES"}]
[]
[]
[null,"Saved results"]
[]
[null,null,"Values for ENWL: OWN_Best (M1a)"]
[]
[]
[null,null,null,null,"Company","Calculated for MOD year ending",null,"File"]
[null,null,null,null,"ENWL: OWN_Best (M1a)","2016-03-31",null,"LiMo ED C1.93b_WPD_DNO.xlsm"]
[]
[null,null,null,null,"PCFM year ending","2016-03-31","2017-03-31","2018-03-31","2019-03-31","2020-03-31","2021-03-31","2022-03-31","2023-03-31","RIIO Total","RIIO average"]
[null,null,null,null,"Price base","£m 12/13 prices","£m 12/13 prices","£m 12/13 prices","£m 12/13 prices","£m 12/13 prices","£m 12/13 prices","£m 12/13 prices","£m 12/13 prices","£m 12/13 prices","£m 12/13 prices"]
[null,null,null,null,"Totex"]
[null,null,null,1,"Slow pot",0,0,0,0,0,0,0,0,0,0]
[null,null,null,2,"Fast pot",0,0,0,0,0,0,0,0,0,0]
[null,null,null,3,"Post-TIM totex allowance",0,0,0,0,0,0,0,0,0,0]
[null,null,null,null,"Regulatory Asset Value (RAV)"]
[null,null,null,4,"Opening asset value (before transfers)",{"$error":"#DIV/0!"},{"$error":"#DIV/0!"},{"$error":"#DIV/0!"},{"$error":"#DIV/0!"},{"$error":"#DIV/0!"},{"$error":"#DIV/0!"},{"$error":"#DIV/0!"},{"$error":"#DIV/0!"},null,0]
[null,null,null,5,"Transfers",0,0,0,0,0,0,0,0,0,0]
[null,null,null,6,"Opening asset value (after transfers)",{"$error":"#DIV/0!"},{"$error":"#DIV/0!"},{"$error":"#DIV/0!"},{"$error":"#DIV/0!"},{"$error":"#DIV/0!"},{"$error":"#DIV/0!"},{"$error":"#DIV/0!"},{"$error":"#DIV/0!"},null,0]
[null,null,null,7,"RAV additions (after disposals)",0,0,0,0,0,0,0,0,0,0]
[null,null,null,8,"Depreciation",{"$error":"#DIV/0!"},{"$error":"#DIV/0!"},{"$error":"#DIV/0!"},{"$error":"#DIV/0!"},{"$error":"#DIV/0!"},{"$error":"#DIV/0!"},{"$error":"#DIV/0!"},{"$error":"#DIV/0!"},{"$error":"#DIV/0!"},0]
[null,null,null,9,"Closing asset value",{"$error":"#DIV/0!"},{"$error":"#DIV/0!"},{"$error":"#DIV/0!"},{"$error":"#DIV/0!"},{"$error":"#DIV/0!"},{"$error":"#DIV/0!"},{"$error":"#DIV/0!"},{"$error":"#DIV/0!"},null,0]
[null,null,null,null,"Final Proposals allowances"]
[null,null,null,10,"Fast pot expenditure",0,0,0,0,0,0,0,0,0,0]
[null,null,null,11,"Non-controllable opex ",0,0,0,0,0,0,0,0,0,0]
[null,null,null,12,"RAV depreciation",{"$error":"#DIV/0!"},{"$error":"#DIV/0!"},{"$error":"#DIV/0!"},{"$error":"#DIV/0!"},{"$error":"#DIV/0!"},{"$error":"#DIV/0!"},{"$error":"#DIV/0!"},{"$error":"#DIV/0!"},{"$error":"#DIV/0!"},0]
[null,null,null,13,"Return",{"$error":"#DIV/0!"},{"$error":"#DIV/0!"},{"$error":"#DIV/0!"},{"$error":"#DIV/0!"},{"$error":"#DIV/0!"},{"$error":"#DIV/0!"},{"$error":"#DIV/0!"},{"$error":"#DIV/0!"},{"$error":"#DIV/0!"},0]
[null,null,null,14,"Equity issuance cost",{"$error":"#DIV/0!"},{"$error":"#DIV/0!"},{"$error":"#DIV/0!"},{"$error":"#DIV/0!"},{"$error":"#DIV/0!"},{"$error":"#DIV/0!"},{"$error":"#DIV/0!"},{"$error":"#DIV/0!"},{"$error":"#DIV/0!"},0]
[null,null,null,15,"Additional income",{"$error":"#DIV/0!"},{"$error":"#DIV/0!"},{"$error":"#DIV/0!"},{"$error":"#DIV/0!"},{"$error":"#DIV/0!"},{"$error":"#DIV/0!"},{"$error":"#DIV/0!"},{"$error":"#DIV/0!"},{"$error":"#DIV/0!"},0]
[null,null,null,16,"Core DARTs",0,0,0,0,0,0,0,0,0,0]
[null,null,null,17,"Tax allowance",{"$error":"#DIV/0!"},{"$error":"#DIV/0!"},{"$error":"#DIV/0!"},{"$error":"#DIV/0!"},{"$error":"#DIV/0!"},{"$error":"#DIV/0!"},{"$error":"#DIV/0!"},{"$error":"#DIV/0!"},{"$error":"#DIV/0!"},0]
[null,null,null,null,"Recalculated allowances"]
[null,null,null,18,"Fast pot expenditure",0,0,0,0,0,0,0,0,0,0]
[null,null,null,19,"Non-controllable opex ",0,0,0,0,0,0,0,0,0,0]
[null,null,null,20,"RAV depreciation",{"$error":"#DIV/0!"},{"$error":"#DIV/0!"},{"$error":"#DIV/0!"},{"$error":"#DIV/0!"},{"$error":"#DIV/0!"},{"$error":"#DIV/0!"},{"$error":"#DIV/0!"},{"$error":"#DIV/0!"},{"$error":"#DIV/0!"},0]
[null,null,null,21,"Return",{"$error":"#DIV/0!"},{"$error":"#DIV/0!"},{"$error":"#DIV/0!"},{"$error":"#DIV/0!"},{"$error":"#DIV/0!"},{"$error":"#DIV/0!"},{"$error":"#DIV/0!"},{"$error":"#DIV/0!"},{"$error":"#DIV/0!"},0]
[null,null,null,22,"Equity issuance cost",{"$error":"#DIV/0!"},{"$error":"#DIV/0!"},{"$error":"#DIV/0!"},{"$error":"#DIV/0!"},{"$error":"#DIV/0!"},{"$error":"#DIV/0!"},{"$error":"#DIV/0!"},{"$error":"#DIV/0!"},{"$error":"#DIV/0!"},0]
[null,null,null,23,"Additional income",{"$error":"#DIV/0!"},{"$error":"#DIV/0!"},{"$error":"#DIV/0!"},{"$error":"#DIV/0!"},{"$error":"#DIV/0!"},{"$error":"#DIV/0!"},{"$error":"#DIV/0!"},{"$error":"#DIV/0!"},{"$error":"#DIV/0!"},0]
[null,null,null,24,"Core DARTs",0,0,0,0,0,0,0,0,0,0]
[null,null,null,25,"Tax allowance",{"$error":"#DIV/0!"},{"$error":"#DIV/0!"},{"$error":"#DIV/0!"},{"$error":"#DIV/0!"},{"$error":"#DIV/0!"},{"$error":"#DIV/0!"},{"$error":"#DIV/0!"},{"$error":"#DIV/0!"},{"$error":"#DIV/0!"},0]
[null,null,null,null,"Price Control Revenue"]
[null,null,null,26,"Final proposals base revenue",{"$error":"#DIV/0!"},{"$error":"#DIV/0!"},{"$error":"#DIV/0!"},{"$error":"#DIV/0!"},{"$error":"#DIV/0!"},{"$error":"#DIV/0!"},{"$error":"#DIV/0!"},{"$error":"#DIV/0!"},{"$error":"#DIV/0!"},0]
[null,null,null,27,"MOD",0,0,0,0,0,0,0,0,0,0]
[null,null,null,28,"Base revenue",{"$error":"#DIV/0!"},{"$error":"#DIV/0!"},{"$error":"#DIV/0!"},{"$error":"#DIV/0!"},{"$error":"#DIV/0!"},{"$error":"#DIV/0!"},{"$error":"#DIV/0!"},{"$error":"#DIV/0!"},{"$error":"#DIV/0!"},0]
[null,null,null,29,"Not Used"]
[null,null,null,30,"Not Used"]
[null,null,null,31,"ES7 (Miscellaneous) revenue",0,0,0,0,0,0,0,0,0,0]
[null,null,null,32,"Total revenue",{"$error":"#DIV/0!"},{"$error":"#DIV/0!"},{"$error":"#DIV/0!"},{"$error":"#DIV/0!"},{"$error":"#DIV/0!"},{"$error":"#DIV/0!"},{"$error":"#DIV/0!"},{"$error":"#DIV/0!"},{"$error":"#DIV/0!"},0]
[null,null,null,null,"Recalculated base revenue"]
[null,null,null,33,"Recalculated base revenue",{"$error":"#DIV/0!"},{"$error":"#DIV/0!"},{"$error":"#DIV/0!"},{"$error":"#DIV/0!"},{"$error":"#DIV/0!"},{"$error":"#DIV/0!"},{"$error":"#DIV/0!"},{"$error":"#DIV/0!"},{"$error":"#DIV/0!"},0]
[null,null,null,34,"Previous year recalculated base revenue",0,0,0,0,0,0,0,0,0,0]
[null,null,null,null,"Recorded recalculated base revenue"]
[null,null,null,35,"2016-03-31",{"$error":"#DIV/0!"},{"$error":"#DIV/0!"},{"$error":"#DIV/0!"},{"$error":"#DIV/0!"},{"$error":"#DIV/0!"},{"$error":"#DIV/0!"},{"$error":"#DIV/0!"},{"$error":"#DIV/0!"},{"$error":"#DIV/0!"},0]
[null,null,null,36,"2017-03-31","","","","","","","","",0,0]
[null,null,null,37,"2018-03-31","","","","","","","","",0,0]
[null,null,null,38,"2019-03-31","","","","","","","","",0,0]
[null,null,null,39,"2020-03-31","","","","","","","","",0,0]
[null,null,null,40,"2021-03-31","","","","","","","","",0,0]
[null,null,null,41,"2022-03-31","","","","","","","","",0,0]
[null,null,null,42,"2023-03-31","","","","","","","","",0,0]
[null,null,null,null,"Recorded MOD"]
[null,null,null,43,"2016-03-31",0,0,0,0,0,0,0,0,0]
[null,null,null,44,"2017-03-31","","","","","","","","",0]
[null,null,null,45,"2018-03-31","","","","","","","","",0]
[null,null,null,46,"2019-03-31","","","","","","","","",0]
[null,null,null,47,"2020-03-31","","","","","","","","",0]
[null,null,null,48,"2021-03-31","","","","","","","","",0]
[null,null,null,49,"2022-03-31","","","","","","","","",0]
[null,null,null,50,"2023-03-31","","","","","","","","",0]
[null,null,null,null,"Inputs to RoRE"]
[null,null,null,51,"Average RAV",{"$error":"#DIV/0!"},{"$error":"#DIV/0!"},{"$error":"#DIV/0!"},{"$error":"#DIV/0!"},{"$error":"#DIV/0!"},{"$error":"#DIV/0!"},{"$error":"#DIV/0!"},{"$error":"#DIV/0!"},{"$error":"#DIV/0!"},0]
[null,null,null,52,"Gearing",0,0,0,0,0,0,0,0,{"$error":"#DIV/0!"},0]
[null,null,null,53,"Regulated equity",{"$error":"#DIV/0!"},{"$error":"#DIV/0!"},{"$error":"#DIV/0!"},{"$error":"#DIV/0!"},{"$error":"#DIV/0!"},{"$error":"#DIV/0!"},{"$error":"#DIV/0!"},{"$error":"#DIV/0!"},{"$error":"#DIV/0!"},0]
[null,null,null,54,"Regulated debt return",{"$error":"#DIV/0!"},{"$error":"#DIV/0!"},{"$error":"#DIV/0!"},{"$error":"#DIV/0!"},{"$error":"#DIV/0!"},{"$error":"#DIV/0!"},{"$error":"#DIV/0!"},{"$error":"#DIV/0!"},{"$error":"#DIV/0!"},0]
[null,null,null,55,"Allowed repex",0,0,0,0,0,0,0,0,0,0]
[]
[]
[]
[]
[]
[null,null,"Values for NPgN: OWN_Best (M1a)"]
[]
[]
[null,null,null,null,"Company","Calculated for MOD year ending",null,"File"]
[null,null,null,null,"NPgN: OWN_Best (M1a)","2016-03-31",null,"LiMo ED C1.93b_WPD_DNO.xlsm"]
[]
[null,null,null,null,"PCFM year ending","2016-03-31","2017-03-31","2018-03-31","2019-03-31","2020-03-31","2021-03-31","2022-03-31","2023-03-31","RIIO Total","RIIO average"]
[null,null,null,null,"Price base","£m 12/13 prices","£m 12/13 prices","£m 12/13 prices","£m 12/13 prices","£m 12/13 prices","£m 12/13 prices","£m 12/13 prices","£m 12/13 prices","£m 12/13 prices","£m 12/13 prices"]
[null,null,null,null,"Totex"]
[null,null,null,1,"Slow pot",0,0,0,0,0,0,0,0,0,0]
[null,null,null,2,"Fast pot",0,0,0,0,0,0,0,0,0,0]
[null,null,null,3,"Post-TIM totex allowance",0,0,0,0,0,0,0,0,0,0]
[null,null,null,null,"Regulatory Asset Value (RAV)"]
[null,null,null,4,"Opening asset value (before transfers)",{"$error":"#DIV/0!"},{"$error":"#DIV/0!"},{"$error":"#DIV/0!"},{"$error":"#DIV/0!"},{"$error":"#DIV/0!"},{"$error":"#DIV/0!"},{"$error":"#DIV/0!"},{"$error":"#DIV/0!"},null,0]
[null,null,null,5,"Transfers",0,0,0,0,0,0,0,0,0,0]
[null,null,null,6,"Opening asset value (after transfers)",{"$error":"#DIV/0!"},{"$error":"#DIV/0!"},{"$error":"#DIV/0!"},{"$error":"#DIV/0!"},{"$error":"#DIV/0!"},{"$error":"#DIV/0!"},{"$error":"#DIV/0!"},{"$error":"#DIV/0!"},null,0]
[null,null,null,7,"RAV additions (after disposals)",0,0,0,0,0,0,0,0,0,0]
[null,null,null,8,"Depreciation",{"$error":"#DIV/0!"},{"$error":"#DIV/0!"},{"$error":"#DIV/0!"},{"$error":"#DIV/0!"},{"$error":"#DIV/0!"},{"$error":"#DIV/0!"},{"$error":"#DIV/0!"},{"$error":"#DIV/0!"},{"$error":"#DIV/0!"},0]
[null,null,null,9,"Closing asset value",{"$error":"#DIV/0!"},{"$error":"#DIV/0!"},{"$error":"#DIV/0!"},{"$error":"#DIV/0!"},{"$error":"#DIV/0!"},{"$error":"#DIV/0!"},{"$error":"#DIV/0!"},{"$error":"#DIV/0!"},null,0]
[null,null,null,null,"Final Proposals allowances"]
[null,null,null,10,"Fast pot expenditure",0,0,0,0,0,0,0,0,0,0]
[null,null,null,11,"Non-controllable opex ",0,0,0,0,0,0,0,0,0,0]
[null,null,null,12,"RAV depreciation",{"$error":"#DIV/0!"},{"$error":"#DIV/0!"},{"$error":"#DIV/0!"},{"$error":"#DIV/0!"},{"$error":"#DIV/0!"},{"$error":"#DIV/0!"},{"$error":"#DIV/0!"},{"$error":"#DIV/0!"},{"$error":"#DIV/0!"},0]
[null,null,null,13,"Return",{"$error":"#DIV/0!"},{"$error":"#DIV/0!"},{"$error":"#DIV/0!"},{"$error":"#DIV/0!"},{"$error":"#DIV/0!"},{"$error":"#DIV/0!"},{"$error":"#DIV/0!"},{"$error":"#DIV/0!"},{"$error":"#DIV/0!"},0]
[null,null,null,14,"Equity issuance cost",{"$error":"#DIV/0!"},{"$error":"#DIV/0!"},{"$error":"#DIV/0!"},{"$error":"#DIV/0!"},{"$error":"#DIV/0!"},{"$error":"#DIV/0!"},{"$error":"#DIV/0!"},{"$error":"#DIV/0!"},{"$error":"#DIV/0!"},0]
[null,null,null,15,"Additional income",{"$error":"#DIV/0!"},{"$error":"#DIV/0!"},{"$error":"#DIV/0!"},{"$error":"#DIV/0!"},{"$error":"#DIV/0!"},{"$error":"#DIV/0!"},{"$error":"#DIV/0!"},{"$error":"#DIV/0!"},{"$error":"#DIV/0!"},0]
[null,null,null,16,"Core DARTs",0,0,0,0,0,0,0,0,0,0]
[null,null,null,17,"Tax allowance",{"$error":"#DIV/0!"},{"$error":"#DIV/0!"},{"$error":"#DIV/0!"},{"$error":"#DIV/0!"},{"$error":"#DIV/0!"},{"$error":"#DIV/0!"},{"$error":"#DIV/0!"},{"$error":"#DIV/0!"},{"$error":"#DIV/0!"},0]
[null,null,null,null,"Recalculated allowances"]
[null,null,null,18,"Fast pot expenditure",0,0,0,0,0,0,0,0,0,0]
[null,null,null,19,"Non-controllable opex ",0,0,0,0,0,0,0,0,0,0]
[null,null,null,20,"RAV depreciation",{"$error":"#DIV/0!"},{"$error":"#DIV/0!"},{"$error":"#DIV/0!"},{"$error":"#DIV/0!"},{"$error":"#DIV/0!"},{"$error":"#DIV/0!"},{"$error":"#DIV/0!"},{"$error":"#DIV/0!"},{"$error":"#DIV/0!"},0]
[null,null,null,21,"Return",{"$error":"#DIV/0!"},{"$error":"#DIV/0!"},{"$error":"#DIV/0!"},{"$error":"#DIV/0!"},{"$error":"#DIV/0!"},{"$error":"#DIV/0!"},{"$error":"#DIV/0!"},{"$error":"#DIV/0!"},{"$error":"#DIV/0!"},0]
[null,null,null,22,"Equity issuance cost",{"$error":"#DIV/0!"},{"$error":"#DIV/0!"},{"$error":"#DIV/0!"},{"$error":"#DIV/0!"},{"$error":"#DIV/0!"},{"$error":"#DIV/0!"},{"$error":"#DIV/0!"},{"$error":"#DIV/0!"},{"$error":"#DIV/0!"},0]
[null,null,null,23,"Additional income",{"$error":"#DIV/0!"},{"$error":"#DIV/0!"},{"$error":"#DIV/0!"},{"$error":"#DIV/0!"},{"$error":"#DIV/0!"},{"$error":"#DIV/0!"},{"$error":"#DIV/0!"},{"$error":"#DIV/0!"},{"$error":"#DIV/0!"},0]
[null,null,null,24,"Core DARTs",0,0,0,0,0,0,0,0,0,0]
[null,null,null,25,"Tax allowance",{"$error":"#DIV/0!"},{"$error":"#DIV/0!"},{"$error":"#DIV/0!"},{"$error":"#DIV/0!"},{"$error":"#DIV/0!"},{"$error":"#DIV/0!"},{"$error":"#DIV/0!"},{"$error":"#DIV/0!"},{"$error":"#DIV/0!"},0]
[null,null,null,null,"Price Control Revenue"]
[null,null,null,26,"Final proposals base revenue",{"$error":"#DIV/0!"},{"$error":"#DIV/0!"},{"$error":"#DIV/0!"},{"$error":"#DIV/0!"},{"$error":"#DIV/0!"},{"$error":"#DIV/0!"},{"$error":"#DIV/0!"},{"$error":"#DIV/0!"},{"$error":"#DIV/0!"},0]
[null,null,null,27,"MOD",0,0,0,0,0,0,0,0,0,0]
[null,null,null,28,"Base revenue",{"$error":"#DIV/0!"},{"$error":"#DIV/0!"},{"$error":"#DIV/0!"},{"$error":"#DIV/0!"},{"$error":"#DIV/0!"},{"$error":"#DIV/0!"},{"$error":"#DIV/0!"},{"$error":"#DIV/0!"},{"$error":"#DIV/0!"},0]
[null,null,null,29,"Not Used"]
[null,null,null,30,"Not Used"]
[null,null,null,31,"ES7 (Miscellaneous) revenue",0,0,0,0,0,0,0,0,0,0]
[null,null,null,32,"Total revenue",{"$error":"#DIV/0!"},{"$error":"#DIV/0!"},{"$error":"#DIV/0!"},{"$error":"#DIV/0!"},{"$error":"#DIV/0!"},{"$error":"#DIV/0!"},{"$error":"#DIV/0!"},{"$error":"#DIV/0!"},{"$error":"#DIV/0!"},0]
[null,null,null,null,"Recalculated base revenue"]
[null,null,null,33,"Recalculated base revenue",{"$error":"#DIV/0!"},{"$error":"#DIV/0!"},{"$error":"#DIV/0!"},{"$error":"#DIV/0!"},{"$error":"#DIV/0!"},{"$error":"#DIV/0!"},{"$error":"#DIV/0!"},{"$error":"#DIV/0!"},{"$error":"#DIV/0!"},0]
[null,null,null,34,"Previous year recalculated base revenue",0,0,0,0,0,0,0,0,0,0]
[null,null,null,null,"Recorded recalculated base revenue"]
[null,null,null,35,"2016-03-31",{"$error":"#DIV/0!"},{"$error":"#DIV/0!"},{"$error":"#DIV/0!"},{"$error":"#DIV/0!"},{"$error":"#DIV/0!"},{"$error":"#DIV/0!"},{"$error":"#DIV/0!"},{"$error":"#DIV/0!"},{"$error":"#DIV/0!"},0]
[null,null,null,36,"2017-03-31","","","","","","","","",0,0]
[null,null,null,37,"2018-03-31","","","","","","","","",0,0]
[null,null,null,38,"2019-03-31","","","","","","","","",0,0]
[null,null,null,39,"2020-03-31","","","","","","","","",0,0]
[null,null,null,40,"2021-03-31","","","","","","","","",0,0]
[null,null,null,41,"2022-03-31","","","","","","","","",0,0]
[null,null,null,42,"2023-03-31","","","","","","","","",0,0]
[null,null,null,null,"Recorded MOD"]
[null,null,null,43,"2016-03-31",0,0,0,0,0,0,0,0,0]
[null,null,null,44,"2017-03-31","","","","","","","","",0]
[null,null,null,45,"2018-03-31","","","","","","","","",0]
[null,null,null,46,"2019-03-31","","","","","","","","",0]
[null,null,null,47,"2020-03-31","","","","","","","","",0]
[null,null,null,48,"2021-03-31","","","","","","","","",0]
[null,null,null,49,"2022-03-31","","","","","","","","",0]
[null,null,null,50,"2023-03-31","","","","","","","","",0]
[null,null,null,null,"Inputs to RoRE"]
[null,null,null,51,"Average RAV",{"$error":"#DIV/0!"},{"$error":"#DIV/0!"},{"$error":"#DIV/0!"},{"$error":"#DIV/0!"},{"$error":"#DIV/0!"},{"$error":"#DIV/0!"},{"$error":"#DIV/0!"},{"$error":"#DIV/0!"},{"$error":"#DIV/0!"},0]
[null,null,null,52,"Gearing",0,0,0,0,0,0,0,0,{"$error":"#DIV/0!"},0]
[null,null,null,53,"Regulated equity",{"$error":"#DIV/0!"},{"$error":"#DIV/0!"},{"$error":"#DIV/0!"},{"$error":"#DIV/0!"},{"$error":"#DIV/0!"},{"$error":"#DIV/0!"},{"$error":"#DIV/0!"},{"$error":"#DIV/0!"},{"$error":"#DIV/0!"},0]
[null,null,null,54,"Regulated debt return",{"$error":"#DIV/0!"},{"$error":"#DIV/0!"},{"$error":"#DIV/0!"},{"$error":"#DIV/0!"},{"$error":"#DIV/0!"},{"$error":"#DIV/0!"},{"$error":"#DIV/0!"},{"$error":"#DIV/0!"},{"$error":"#DIV/0!"},0]
[null,null,null,55,"Allowed repex",0,0,0,0,0,0,0,0,0,0]
[]
[]
[]
[]
[]
[null,null,"Values for NPgY: OWN_Best (M1a)"]
[]
[]
[null,null,null,null,"Company","Calculated for MOD year ending",null,"File"]
[null,null,null,null,"NPgY: OWN_Best (M1a)","2016-03-31",null,"LiMo ED C1.93b_WPD_DNO.xlsm"]
[]
[null,null,null,null,"PCFM year ending","2016-03-31","2017-03-31","2018-03-31","2019-03-31","2020-03-31","2021-03-31","2022-03-31","2023-03-31","RIIO Total","RIIO average"]
[null,null,null,null,"Price base","£m 12/13 prices","£m 12/13 prices","£m 12/13 prices","£m 12/13 prices","£m 12/13 prices","£m 12/13 prices","£m 12/13 prices","£m 12/13 prices","£m 12/13 prices","£m 12/13 prices"]
[null,null,null,null,"Totex"]
[null,null,null,1,"Slow pot",0,0,0,0,0,0,0,0,0,0]
[null,null,null,2,"Fast pot",0,0,0,0,0,0,0,0,0,0]
[null,null,null,3,"Post-TIM totex allowance",0,0,0,0,0,0,0,0,0,0]
[null,null,null,null,"Regulatory Asset Value (RAV)"]
[null,null,null,4,"Opening asset value (before transfers)",{"$error":"#DIV/0!"},{"$error":"#DIV/0!"},{"$error":"#DIV/0!"},{"$error":"#DIV/0!"},{"$error":"#DIV/0!"},{"$error":"#DIV/0!"},{"$error":"#DIV/0!"},{"$error":"#DIV/0!"},null,0]
[null,null,null,5,"Transfers",0,0,0,0,0,0,0,0,0,0]
[null,null,null,6,"Opening asset value (after transfers)",{"$error":"#DIV/0!"},{"$error":"#DIV/0!"},{"$error":"#DIV/0!"},{"$error":"#DIV/0!"},{"$error":"#DIV/0!"},{"$error":"#DIV/0!"},{"$error":"#DIV/0!"},{"$error":"#DIV/0!"},null,0]
[null,null,null,7,"RAV additions (after disposals)",0,0,0,0,0,0,0,0,0,0]
[null,null,null,8,"Depreciation",{"$error":"#DIV/0!"},{"$error":"#DIV/0!"},{"$error":"#DIV/0!"},{"$error":"#DIV/0!"},{"$error":"#DIV/0!"},{"$error":"#DIV/0!"},{"$error":"#DIV/0!"},{"$error":"#DIV/0!"},{"$error":"#DIV/0!"},0]
[null,null,null,9,"Closing asset value",{"$error":"#DIV/0!"},{"$error":"#DIV/0!"},{"$error":"#DIV/0!"},{"$error":"#DIV/0!"},{"$error":"#DIV/0!"},{"$error":"#DIV/0!"},{"$error":"#DIV/0!"},{"$error":"#DIV/0!"},null,0]
[null,null,null,null,"Final Proposals allowances"]
[null,null,null,10,"Fast pot expenditure",0,0,0,0,0,0,0,0,0,0]
[null,null,null,11,"Non-controllable opex ",0,0,0,0,0,0,0,0,0,0]
[null,null,null,12,"RAV depreciation",{"$error":"#DIV/0!"},{"$error":"#DIV/0!"},{"$error":"#DIV/0!"},{"$error":"#DIV/0!"},{"$error":"#DIV/0!"},{"$error":"#DIV/0!"},{"$error":"#DIV/0!"},{"$error":"#DIV/0!"},{"$error":"#DIV/0!"},0]
[null,null,null,13,"Return",{"$error":"#DIV/0!"},{"$error":"#DIV/0!"},{"$error":"#DIV/0!"},{"$error":"#DIV/0!"},{"$error":"#DIV/0!"},{"$error":"#DIV/0!"},{"$error":"#DIV/0!"},{"$error":"#DIV/0!"},{"$error":"#DIV/0!"},0]
[null,null,null,14,"Equity issuance cost",{"$error":"#DIV/0!"},{"$error":"#DIV/0!"},{"$error":"#DIV/0!"},{"$error":"#DIV/0!"},{"$error":"#DIV/0!"},{"$error":"#DIV/0!"},{"$error":"#DIV/0!"},{"$error":"#DIV/0!"},{"$error":"#DIV/0!"},0]
[null,null,null,15,"Additional income",{"$error":"#DIV/0!"},{"$error":"#DIV/0!"},{"$error":"#DIV/0!"},{"$error":"#DIV/0!"},{"$error":"#DIV/0!"},{"$error":"#DIV/0!"},{"$error":"#DIV/0!"},{"$error":"#DIV/0!"},{"$error":"#DIV/0!"},0]
[null,null,null,16,"Core DARTs",0,0,0,0,0,0,0,0,0,0]
[null,null,null,17,"Tax allowance",{"$error":"#DIV/0!"},{"$error":"#DIV/0!"},{"$error":"#DIV/0!"},{"$error":"#DIV/0!"},{"$error":"#DIV/0!"},{"$error":"#DIV/0!"},{"$error":"#DIV/0!"},{"$error":"#DIV/0!"},{"$error":"#DIV/0!"},0]
[null,null,null,null,"Recalculated allowances"]
[null,null,null,18,"Fast pot expenditure",0,0,0,0,0,0,0,0,0,0]
[null,null,null,19,"Non-controllable opex ",0,0,0,0,0,0,0,0,0,0]
[null,null,null,20,"RAV depreciation",{"$error":"#DIV/0!"},{"$error":"#DIV/0!"},{"$error":"#DIV/0!"},{"$error":"#DIV/0!"},{"$error":"#DIV/0!"},{"$error":"#DIV/0!"},{"$error":"#DIV/0!"},{"$error":"#DIV/0!"},{"$error":"#DIV/0!"},0]
[null,null,null,21,"Return",{"$error":"#DIV/0!"},{"$error":"#DIV/0!"},{"$error":"#DIV/0!"},{"$error":"#DIV/0!"},{"$error":"#DIV/0!"},{"$error":"#DIV/0!"},{"$error":"#DIV/0!"},{"$error":"#DIV/0!"},{"$error":"#DIV/0!"},0]
[null,null,null,22,"Equity issuance cost",{"$error":"#DIV/0!"},{"$error":"#DIV/0!"},{"$error":"#DIV/0!"},{"$error":"#DIV/0!"},{"$error":"#DIV/0!"},{"$error":"#DIV/0!"},{"$error":"#DIV/0!"},{"$error":"#DIV/0!"},{"$error":"#DIV/0!"},0]
[null,null,null,23,"Additional income",{"$error":"#DIV/0!"},{"$error":"#DIV/0!"},{"$error":"#DIV/0!"},{"$error":"#DIV/0!"},{"$error":"#DIV/0!"},{"$error":"#DIV/0!"},{"$error":"#DIV/0!"},{"$error":"#DIV/0!"},{"$error":"#DIV/0!"},0]
[null,null,null,24,"Core DARTs",0,0,0,0,0,0,0,0,0,0]
[null,null,null,25,"Tax allowance",{"$error":"#DIV/0!"},{"$error":"#DIV/0!"},{"$error":"#DIV/0!"},{"$error":"#DIV/0!"},{"$error":"#DIV/0!"},{"$error":"#DIV/0!"},{"$error":"#DIV/0!"},{"$error":"#DIV/0!"},{"$error":"#DIV/0!"},0]
[null,null,null,null,"Price Control Revenue"]
[null,null,null,26,"Final proposals base revenue",{"$error":"#DIV/0!"},{"$error":"#DIV/0!"},{"$error":"#DIV/0!"},{"$error":"#DIV/0!"},{"$error":"#DIV/0!"},{"$error":"#DIV/0!"},{"$error":"#DIV/0!"},{"$error":"#DIV/0!"},{"$error":"#DIV/0!"},0]
[null,null,null,27,"MOD",0,0,0,0,0,0,0,0,0,0]
[null,null,null,28,"Base revenue",{"$error":"#DIV/0!"},{"$error":"#DIV/0!"},{"$error":"#DIV/0!"},{"$error":"#DIV/0!"},{"$error":"#DIV/0!"},{"$error":"#DIV/0!"},{"$error":"#DIV/0!"},{"$error":"#DIV/0!"},{"$error":"#DIV/0!"},0]
[null,null,null,29,"Not Used"]
[null,null,null,30,"Not Used"]
[null,null,null,31,"ES7 (Miscellaneous) revenue",0,0,0,0,0,0,0,0,0,0]
[null,null,null,32,"Total revenue",{"$error":"#DIV/0!"},{"$error":"#DIV/0!"},{"$error":"#DIV/0!"},{"$error":"#DIV/0!"},{"$error":"#DIV/0!"},{"$error":"#DIV/0!"},{"$error":"#DIV/0!"},{"$error":"#DIV/0!"},{"$error":"#DIV/0!"},0]
[null,null,null,null,"Recalculated base revenue"]
[null,null,null,33,"Recalculated base revenue",{"$error":"#DIV/0!"},{"$error":"#DIV/0!"},{"$error":"#DIV/0!"},{"$error":"#DIV/0!"},{"$error":"#DIV/0!"},{"$error":"#DIV/0!"},{"$error":"#DIV/0!"},{"$error":"#DIV/0!"},{"$error":"#DIV/0!"},0]
[null,null,null,34,"Previous year recalculated base revenue",0,0,0,0,0,0,0,0,0,0]
[null,null,null,null,"Recorded recalculated base revenue"]
[null,null,null,35,"2016-03-31",{"$error":"#DIV/0!"},{"$error":"#DIV/0!"},{"$error":"#DIV/0!"},{"$error":"#DIV/0!"},{"$error":"#DIV/0!"},{"$error":"#DIV/0!"},{"$error":"#DIV/0!"},{"$error":"#DIV/0!"},{"$error":"#DIV/0!"},0]
[null,null,null,36,"2017-03-31","","","","","","","","",0,0]
[null,null,null,37,"2018-03-31","","","","","","","","",0,0]
[null,null,null,38,"2019-03-31","","","","","","","","",0,0]
[null,null,null,39,"2020-03-31","","","","","","","","",0,0]
[null,null,null,40,"2021-03-31","","","","","","","","",0,0]
[null,null,null,41,"2022-03-31","","","","","","","","",0,0]
[null,null,null,42,"2023-03-31","","","","","","","","",0,0]
[null,null,null,null,"Recorded MOD"]
[null,null,null,43,"2016-03-31",0,0,0,0,0,0,0,0,0]
[null,null,null,44,"2017-03-31","","","","","","","","",0]
[null,null,null,45,"2018-03-31","","","","","","","","",0]
[null,null,null,46,"2019-03-31","","","","","","","","",0]
[null,null,null,47,"2020-03-31","","","","","","","","",0]
[null,null,null,48,"2021-03-31","","","","","","","","",0]
[null,null,null,49,"2022-03-31","","","","","","","","",0]
[null,null,null,50,"2023-03-31","","","","","","","","",0]
[null,null,null,null,"Inputs to RoRE"]
[null,null,null,51,"Average RAV",{"$error":"#DIV/0!"},{"$error":"#DIV/0!"},{"$error":"#DIV/0!"},{"$error":"#DIV/0!"},{"$error":"#DIV/0!"},{"$error":"#DIV/0!"},{"$error":"#DIV/0!"},{"$error":"#DIV/0!"},{"$error":"#DIV/0!"},0]
[null,null,null,52,"Gearing",0,0,0,0,0,0,0,0,{"$error":"#DIV/0!"},0]
[null,null,null,53,"Regulated equity",{"$error":"#DIV/0!"},{"$error":"#DIV/0!"},{"$error":"#DIV/0!"},{"$error":"#DIV/0!"},{"$error":"#DIV/0!"},{"$error":"#DIV/0!"},{"$error":"#DIV/0!"},{"$error":"#DIV/0!"},{"$error":"#DIV/0!"},0]
[null,null,null,54,"Regulated debt return",{"$error":"#DIV/0!"},{"$error":"#DIV/0!"},{"$error":"#DIV/0!"},{"$error":"#DIV/0!"},{"$error":"#DIV/0!"},{"$error":"#DIV/0!"},{"$error":"#DIV/0!"},{"$error":"#DIV/0!"},{"$error":"#DIV/0!"},0]
[null,null,null,55,"Allowed repex",0,0,0,0,0,0,0,0,0,0]
[]
[]
[]
[]
[]
[null,null,"Values for WMID: OWN_Best (M1a)"]
[]
[]
[null,null,null,null,"Company","Calculated for MOD year ending",null,"File"]
[null,null,null,null,"WMID: OWN_Best (M1a)","2016-03-31",null,"LiMo ED C1.93b_WPD_DNO.xlsm"]
[]
[null,null,null,null,"PCFM year ending","2016-03-31","2017-03-31","2018-03-31","2019-03-31","2020-03-31","2021-03-31","2022-03-31","2023-03-31","RIIO Total","RIIO average"]
[null,null,null,null,"Price base","£m 12/13 prices","£m 12/13 prices","£m 12/13 prices","£m 12/13 prices","£m 12/13 prices","£m 12/13 prices","£m 12/13 prices","£m 12/13 prices","£m 12/13 prices","£m 12/13 prices"]
[null,null,null,null,"Totex"]
[null,null,null,1,"Slow pot",232.73265670972799,232.73265670972799,232.73265670972799,232.73265670972799,232.73265670972799,232.73265670972799,232.73265670972799,232.73265670972799,1861.8612536778239,232.73265670972799]
[null,null,null,2,"Fast pot",77.577552236575997,77.577552236575997,77.577552236575997,77.577552236575997,77.577552236575997,77.577552236575997,77.577552236575997,77.577552236575997,620.62041789260809,77.577552236576011]
[null,null,null,3,"Post-TIM totex allowance",310.31020894630399,310.31020894630399,310.31020894630399,310.31020894630399,310.31020894630399,310.31020894630399,310.31020894630399,310.31020894630399,2482.4816715704324,310.31020894630404]
[null,null,null,null,"Regulatory Asset Value (RAV)"]
[null,null,null,4,"Opening asset value (before transfers)",1942.6883012071894,2004.4852171687201,2061.5963139058931,2116.051872154937,2167.8781539778643,2218.1477182925764,2266.902705452007,2330.7369231633661,null,2138.560900665319]
[null,null,null,5,"Transfers",0,0,0,0,0,0,0,0,0,0]
[null,null,null,6,"Opening asset value (after transfers)",1942.6883012071894,2004.4852171687201,2061.5963139058931,2116.051872154937,2167.8781539778643,2218.1477182925764,2266.902705452007,2330.7369231633661,null,2138.560900665319]
[null,null,null,7,"RAV additions (after disposals)",232.73265670972799,232.73265670972799,232.73265670972799,232.73265670972799,232.73265670972799,232.73265670972799,232.73265670972799,232.73265670972799,1861.8612536778239,232.73265670972799]
[null,null,null,8,"Depreciation",-170.93574074819733,-175.62155997255499,-178.27709846068416,-180.90637488680071,-182.46309239501582,-183.97766955029746,-168.89843899836873,-168.30747518769863,-1409.3874501996177,-176.17343127495221]
[null,null,null,9,"Closing asset value",2004.4852171687201,2061.5963139058931,2116.051872154937,2167.8781539778643,2218.1477182925764,2266.902705452007,2330.7369231633661,2395.1621046853952,null,2195.1201261000947]
[null,null,null,null,"Final Proposals allowances"]
[null,null,null,10,"Fast pot expenditure",77.577552236575997,77.577552236575997,77.577552236575997,77.577552236575997,77.577552236575997,77.577552236575997,77.577552236575997,77.577552236575997,620.62041789260809,77.577552236576011]
[null,null,null,11,"Non-controllable opex ",145.16849536175619,145.16849536175619,145.16849536175619,145.16849536175619,145.16849536175619,145.16849536175619,145.16849536175619,145.16849536175619,1161.3479628940495,145.16849536175619]
[null,null,null,12,"RAV depreciation",170.93574074819733,175.62155997255499,178.27709846068416,180.90637488680071,182.46309239501582,183.97766955029746,168.89843899836873,168.30747518769863,1409.3874501996177,176.17343127495221]
[null,null,null,13,"Return",82.008386007945759,84.481703290361096,86.801566762424201,89.011583301952882,91.134138226856535,93.192843493399366,95.526301761556539,98.191692897846778,720.34821574234309,90.043526967792886]
[null,null,null,14,"Equity issuance cost",0,0,0,0,0,0,0,0,0,0]
[null,null,null,15,"Additional income",7.7399947866465402,7.7399947866465402,7.7399947866465402,7.7399947866465402,7.7399947866465402,7.7399947866465402,7.7399947866465402,7.7399947866465402,61.919958293172321,7.7399947866465402]
[null,null,null,16,"Core DARTs",19.290807991992409,19.290807991992409,19.290807991992409,19.290807991992409,19.290807991992409,19.290807991992409,19.290807991992409,19.290807991992409,154.32646393593927,19.290807991992409]
[null,null,null,17,"Tax allowance",31.771592451716849,31.588557247710057,31.070092589045643,30.690561876963773,30.168188656691623,29.747625286300419,25.242551342320144,24.417574879999396,234.69674433074789,29.337093041343486]
[null,null,null,null,"Recalculated allowances"]
[null,null,null,18,"Fast pot expenditure",77.577552236575997,77.577552236575997,77.577552236575997,77.577552236575997,77.577552236575997,77.577552236575997,77.577552236575997,77.577552236575997,620.62041789260809,77.577552236576011]
[null,null,null,19,"Non-controllable opex ",145.16849536175619,145.16849536175619,145.16849536175619,145.16849536175619,145.16849536175619,145.16849536175619,145.16849536175619,145.16849536175619,1161.3479628940495,145.16849536175619]
[null,null,null,20,"RAV depreciation",170.93574074819733,175.62155997255499,178.27709846068416,180.90637488680071,182.46309239501582,183.97766955029746,168.89843899836873,168.30747518769863,1409.3874501996177,176.17343127495221]
[null,null,null,21,"Return",82.008386007945759,84.481703290361096,86.801566762424201,89.011583301952882,91.134138226856535,93.192843493399366,95.526301761556539,98.191692897846778,720.34821574234309,90.043526967792886]
[null,null,null,22,"Equity issuance cost",0,0,0,0,0,0,0,0,0,0]
[null,null,null,23,"Additional income",7.7399947866465402,7.7399947866465402,7.7399947866465402,7.7399947866465402,7.7399947866465402,7.7399947866465402,7.7399947866465402,7.7399947866465402,61.919958293172321,7.7399947866465402]
[null,null,null,24,"Core DARTs",19.290807991992409,19.290807991992409,19.290807991992409,19.290807991992409,19.290807991992409,19.290807991992409,19.290807991992409,19.290807991992409,154.32646393593927,19.290807991992409]
[null,null,null,25,"Tax allowance",31.771592451716849,31.588557247710057,31.070092589045643,30.690561876963773,30.168188656691623,29.747625286300419,25.242551342320144,24.417574879999396,234.69674433074789,29.337093041343486]
[null,null,null,null,"Price Control Revenue"]
[null,null,null,26,"Final proposals base revenue",534.49256958483113,541.46867088759723,545.92560818912511,550.38537044268855,553.54226965553516,556.69498870696839,539.44414247921657,540.69359334251601,4362.6472132884783,545.33090166105978]
[null,null,null,27,"MOD",0,0,0,0,0,0,0,0,0,0]
[null,null,null,28,"Base revenue",534.49256958483113,541.46867088759723,545.92560818912511,550.38537044268855,553.54226965553516,556.69498870696839,539.44414247921657,540.69359334251601,4362.6472132884783,545.33090166105978]
[null,null,null,29,"Not Used"]
[null,null,null,30,"Not Used"]
[null,null,null,31,"ES7 (Miscellaneous) revenue",7.0500143067934173E-2,7.0500143067934173E-2,7.0500143067934173E-2,7.0500143067934173E-2,7.0500143067934173E-2,7.0500143067934173E-2,7.0500143067934173E-2,7.0500143067934173E-2,0.56400114454347339,7.0500143067934173E-2]
[null,null,null,32,"Total revenue",534.56306972789912,541.53917103066522,545.9961083321931,550.45587058575654,553.61276979860315,556.76548885003638,539.51464262228455,540.764093485584,4363.2112144330222,545.40140180412777]
[null,null,null,null,"Recalculated base revenue"]
[null,null,null,33,"Recalculated base revenue",534.49256958483113,541.46867088759723,545.92560818912511,550.38537044268855,553.54226965553516,556.69498870696839,539.44414247921657,540.69359334251601,4362.6472132884783,545.33090166105978]
[null,null,null,34,"Previous year recalculated base revenue",0,0,0,0,0,0,0,0,0,0]
[null,null,null,null,"Recorded recalculated base revenue"]
[null,null,null,35,"2016-03-31",534.49256958483113,541.46867088759723,545.92560818912511,550.38537044268855,553.54226965553516,556.69498870696839,539.44414247921657,540.69359334251601,4362.6472132884783,545.33090166105978]
[null,null,null,36,"2017-03-31","","","","","","","","",0,0]
[null,null,null,37,"2018-03-31","","","","","","","","",0,0]
[null,null,null,38,"2019-03-31","","","","","","","","",0,0]
[null,null,null,39,"2020-03-31","","","","","","","","",0,0]
[null,null,null,40,"2021-03-31","","","","","","","","",0,0]
[null,null,null,41,"2022-03-31","","","","","","","","",0,0]
[null,null,null,42,"2023-03-31","","","","","","","","",0,0]
[null,null,null,null,"Recorded MOD"]
[null,null,null,43,"2016-03-31",0,0,0,0,0,0,0,0,0]
[null,null,null,44,"2017-03-31","","","","","","","","",0]
[null,null,null,45,"2018-03-31","","","","","","","","",0]
[null,null,null,46,"2019-03-31","","","","","","","","",0]
[null,null,null,47,"2020-03-31","","","","","","","","",0]
[null,null,null,48,"2021-03-31","","","","","","","","",0]
[null,null,null,49,"2022-03-31","","","","","","","","",0]
[null,null,null,50,"2023-03-31","","","","","","","","",0]
[null,null,null,null,"Inputs to RoRE"]
[null,null,null,51,"Average RAV",1932.7925054901195,1991.0842161291798,2045.7592920675042,2097.8454702322151,2147.8703329450045,2196.3903722224695,2251.3858534422943,2314.2044048514445,16977.332447380231,2122.1665559225289]
[null,null,null,52,"Gearing",0.65,0.65,0.65,0.65,0.65,0.65,0.65,0.65,0.65000000000000013,0.65]
[null,null,null,53,"Regulated equity",676.4773769215418,696.87947564521289,716.01575222362646,734.2459145812752,751.75461653075149,768.73663027786426,787.98504870480292,809.97154169800547,5942.0663565830801,742.75829457288501]
[null,null,null,54,"Regulated debt return",36.684401754202476,37.790778422131829,38.828511363441237,39.817107025007445,40.766578919296187,41.687489264782471,42.731303498334746,43.923599604080415,322.22976985127684,40.278721231409605]
[null,null,null,55,"Allowed repex",32.248426275379757,32.248426275379757,32.248426275379757,32.248426275379757,32.248426275379757,32.248426275379757,32.248426275379757,32.248426275379757,257.98741020303805,32.248426275379757]
[]
[]
[]
[]
[]
[null,null,"Values for EMID: OWN_Best (M1a)"]
[]
[]
[null,null,null,null,"Company","Calculated for MOD year ending",null,"File"]
[null,null,null,null,"EMID: OWN_Best (M1a)","2016-03-31",null,"LiMo ED C1.93b_WPD_DNO.xlsm"]
[]
[null,null,null,null,"PCFM year ending","2016-03-31","2017-03-31","2018-03-31","2019-03-31","2020-03-31","2021-03-31","2022-03-31","2023-03-31","RIIO Total","RIIO average"]
[null,null,null,null,"Price base","£m 12/13 prices","£m 12/13 prices","£m 12/13 prices","£m 12/13 prices","£m 12/13 prices","£m 12/13 prices","£m 12/13 prices","£m 12/13 prices","£m 12/13 prices","£m 12/13 prices"]
[null,null,null,null,"Totex"]
[null,null,null,1,"Slow pot",224.20767258736453,224.20767258736453,224.20767258736453,224.20767258736453,224.20767258736453,224.20767258736453,224.20767258736453,224.20767258736453,1793.6613806989158,224.20767258736447]
[null,null,null,2,"Fast pot",74.735890862454823,74.735890862454823,74.735890862454823,74.735890862454823,74.735890862454823,74.735890862454823,74.735890862454823,74.735890862454823,597.88712689963859,74.735890862454823]
[null,null,null,3,"Post-TIM totex allowance",298.94356344981935,298.94356344981935,298.94356344981935,298.94356344981935,298.94356344981935,298.94356344981935,298.94356344981935,298.94356344981935,2391.5485075985548,298.94356344981935]
[null,null,null,null,"Regulatory Asset Value (RAV)"]
[null,null,null,4,"Opening asset value (before transfers)",1880.1649639296925,1939.681298866112,1993.9789430670628,2044.5742676334387,2093.3236668562531,2140.7923485699416,2187.5580159948126,2252.313398133535,null,2066.5483628813558]
[null,null,null,5,"Transfers",0,0,0,0,0,0,0,0,0,0]
[null,null,null,6,"Opening asset value (after transfers)",1880.1649639296925,1939.681298866112,1993.9789430670628,2044.5742676334387,2093.3236668562531,2140.7923485699416,2187.5580159948126,2252.313398133535,null,2066.5483628813558]
[null,null,null,7,"RAV additions (after disposals)",224.20767258736453,224.20767258736453,224.20767258736453,224.20767258736453,224.20767258736453,224.20767258736453,224.20767258736453,224.20767258736453,1793.6613806989158,224.20767258736447]
[null,null,null,8,"Depreciation",-164.69133765094489,-169.91002838641393,-173.61234802098875,-175.45827336455034,-176.7389908736757,-177.44200516249319,-159.45229044864217,-160.59801081507499,-1357.9032847227838,-169.73791059034798]
[null,null,null,9,"Closing asset value",1939.681298866112,1993.9789430670628,2044.5742676334387,2093.3236668562531,2140.7923485699416,2187.5580159948126,2252.313398133535,2315.9230599058246,null,2121.0181248783724]
[null,null,null,null,"Final Proposals allowances"]
[null,null,null,10,"Fast pot expenditure",74.735890862454823,74.735890862454823,74.735890862454823,74.735890862454823,74.735890862454823,74.735890862454823,74.735890862454823,74.735890862454823,597.88712689963859,74.735890862454823]
[null,null,null,11,"Non-controllable opex ",163.49016958323276,163.49016958323276,163.49016958323276,163.49016958323276,163.49016958323276,163.49016958323276,163.49016958323276,163.49016958323276,1307.921356665862,163.49016958323276]
[null,null,null,12,"RAV depreciation",164.69133765094489,169.91002838641393,173.61234802098875,175.45827336455034,176.7389908736757,177.44200516249319,159.45229044864217,160.59801081507499,1357.9032847227838,169.73791059034798]
[null,null,null,13,"Return",79.363097343609127,81.730774158462253,83.912388741557095,85.977891289022764,87.978168025316194,89.936966953894014,92.246968869226464,94.915305469722412,696.06156085081034,87.007695106351292]
[null,null,null,14,"Equity issuance cost",0,0,0,0,0,0,0,0,0,0]
[null,null,null,15,"Additional income",7.4558280932100329,7.4558280932100329,7.4558280932100329,7.4558280932100329,7.4558280932100329,7.4558280932100329,7.4558280932100329,7.4558280932100329,59.646624745680256,7.455828093210032]
[null,null,null,16,"Core DARTs",17.944854404560214,17.944854404560214,17.944854404560214,17.944854404560214,17.944854404560214,17.944854404560214,17.944854404560214,17.944854404560214,143.55883523648171,17.944854404560214]
[null,null,null,17,"Tax allowance",28.926378158714755,29.235292059172657,29.325983486986846,29.082981069972512,28.8075379351808,28.484604029238039,23.533522494156383,23.413362222960298,220.80966145638229,27.601207682047786]
[null,null,null,null,"Recalculated allowances"]
[null,null,null,18,"Fast pot expenditure",74.735890862454823,74.735890862454823,74.735890862454823,74.735890862454823,74.735890862454823,74.735890862454823,74.735890862454823,74.735890862454823,597.88712689963859,74.735890862454823]
[null,null,null,19,"Non-controllable opex ",163.49016958323276,163.49016958323276,163.49016958323276,163.49016958323276,163.49016958323276,163.49016958323276,163.49016958323276,163.49016958323276,1307.921356665862,163.49016958323276]
[null,null,null,20,"RAV depreciation",164.69133765094489,169.91002838641393,173.61234802098875,175.45827336455034,176.7389908736757,177.44200516249319,159.45229044864217,160.59801081507499,1357.9032847227838,169.73791059034798]
[null,null,null,21,"Return",79.363097343609127,81.730774158462253,83.912388741557095,85.977891289022764,87.978168025316194,89.936966953894014,92.246968869226464,94.915305469722412,696.06156085081034,87.007695106351292]
[null,null,null,22,"Equity issuance cost",0,0,0,0,0,0,0,0,0,0]
[null,null,null,23,"Additional income",7.4558280932100329,7.4558280932100329,7.4558280932100329,7.4558280932100329,7.4558280932100329,7.4558280932100329,7.4558280932100329,7.4558280932100329,59.646624745680256,7.455828093210032]
[null,null,null,24,"Core DARTs",17.944854404560214,17.944854404560214,17.944854404560214,17.944854404560214,17.944854404560214,17.944854404560214,17.944854404560214,17.944854404560214,143.55883523648171,17.944854404560214]
[null,null,null,25,"Tax allowance",28.926378158714755,29.235292059172657,29.325983486986846,29.082981069972512,28.8075379351808,28.484604029238039,23.533522494156383,23.413362222960298,220.80966145638229,27.601207682047786]
[null,null,null,null,"Price Control Revenue"]
[null,null,null,26,"Final proposals base revenue",536.60755609672663,544.50283754750672,550.47746319299051,554.14588866700353,557.15143977763057,559.49031908908319,538.85952475548288,542.55342145121551,4383.7884505776392,547.9735563222049]
[null,null,null,27,"MOD",0,0,0,0,0,0,0,0,0,0]
[null,null,null,28,"Base revenue",536.60755609672663,544.50283754750672,550.47746319299051,554.14588866700353,557.15143977763057,559.49031908908319,538.85952475548288,542.55342145121551,4383.7884505776392,547.9735563222049]
[null,null,null,29,"Not Used"]
[null,null,null,30,"Not Used"]
[null,null,null,31,"ES7 (Miscellaneous) revenue",-3.1402113306509801E-3,-3.1402113306509801E-3,-3.1402113306509801E-3,-3.1402113306509801E-3,-3.1402113306509801E-3,-3.1402113306509801E-3,-3.1402113306509801E-3,-3.1402113306509801E-3,-2.5121690645207837E-2,-3.1402113306509796E-3]
[null,null,null,32,"Total revenue",536.60441588539595,544.49969733617604,550.47432298165984,554.14274845567286,557.1482995662999,559.48717887775251,538.85638454415221,542.55028123988484,4383.7633288869938,547.97041611087423]
[null,null,null,null,"Recalculated base revenue"]
[null,null,null,33,"Recalculated base revenue",536.60755609672663,544.50283754750672,550.47746319299051,554.14588866700353,557.15143977763057,559.49031908908319,538.85952475548288,542.55342145121551,4383.7884505776392,547.9735563222049]
[null,null,null,34,"Previous year recalculated base revenue",0,0,0,0,0,0,0,0,0,0]
[null,null,null,null,"Recorded recalculated base revenue"]
[null,null,null,35,"2016-03-31",536.60755609672663,544.50283754750672,550.47746319299051,554.14588866700353,557.15143977763057,559.49031908908319,538.85952475548288,542.55342145121551,4383.7884505776392,547.9735563222049]
[null,null,null,36,"2017-03-31","","","","","","","","",0,0]
[null,null,null,37,"2018-03-31","","","","","","","","",0,0]
[null,null,null,38,"2019-03-31","","","","","","","","",0,0]
[null,null,null,39,"2020-03-31","","","","","","","","",0,0]
[null,null,null,40,"2021-03-31","","","","","","","","",0,0]
[null,null,null,41,"2022-03-31","","","","","","","","",0,0]
[null,null,null,42,"2023-03-31","","","","","","","","",0,0]
[null,null,null,null,"Recorded MOD"]
[null,null,null,43,"2016-03-31",0,0,0,0,0,0,0,0,0]
[null,null,null,44,"2017-03-31","","","","","","","","",0]
[null,null,null,45,"2018-03-31","","","","","","","","",0]
[null,null,null,46,"2019-03-31","","","","","","","","",0]
[null,null,null,47,"2020-03-31","","","","","","","","",0]
[null,null,null,48,"2021-03-31","","","","","","","","",0]
[null,null,null,49,"2022-03-31","","","","","","","","",0]
[null,null,null,50,"2023-03-31","","","","","","","","",0]
[null,null,null,null,"Inputs to RoRE"]
[null,null,null,51,"Average RAV",1870.4477337640615,1926.2496855635698,1977.6664798858615,2026.3467190436666,2073.4897012801366,2119.6551250033945,2174.097781504277,2236.9857522913603,16404.938978336329,2050.6173722920412]
[null,null,null,52,"Gearing",0.65,0.65,0.65,0.65,0.65,0.65,0.65,0.65,0.65,0.65]
[null,null,null,53,"Regulated equity",654.65670681742142,674.18738994724936,692.18326796005147,709.22135166528324,725.72139544804782,741.87929375118802,760.93422352649691,782.94501330197602,5741.7286424177146,717.71608030221432]
[null,null,null,54,"Regulated debt return",35.501097986841884,36.560219031996553,37.536109788233652,38.460060727448791,39.354834530296991,40.231054272564428,41.264375892951179,42.457989578490022,311.36574180882349,38.920717726102936]
[null,null,null,55,"Allowed repex",37.147004723311582,37.147004723311582,37.147004723311582,37.147004723311582,37.147004723311582,37.147004723311582,37.147004723311582,37.147004723311582,297.1760377864926,37.147004723311575]
[]
[]
[]
[]
[]
[null,null,"Values for SWALES: OWN_Best (M1a)"]
[]
[]
[null,null,null,null,"Company","Calculated for MOD year ending",null,"File"]
[null,null,null,null,"SWALES: OWN_Best (M1a)","2016-03-31",null,"LiMo ED C1.93b_WPD_DNO.xlsm"]
[]
[null,null,null,null,"PCFM year ending","2016-03-31","2017-03-31","2018-03-31","2019-03-31","2020-03-31","2021-03-31","2022-03-31","2023-03-31","RIIO Total","RIIO average"]
[null,null,null,null,"Price base","£m 12/13 prices","£m 12/13 prices","£m 12/13 prices","£m 12/13 prices","£m 12/13 prices","£m 12/13 prices","£m 12/13 prices","£m 12/13 prices","£m 12/13 prices","£m 12/13 prices"]
[null,null,null,null,"Totex"]
[null,null,null,1,"Slow pot",116.61378530016519,116.61378530016519,116.61378530016519,116.61378530016519,116.61378530016519,116.61378530016519,116.61378530016519,116.61378530016519,932.91028240132152,116.61378530016519]
[null,null,null,2,"Fast pot",38.87126176672173,38.87126176672173,38.87126176672173,38.87126176672173,38.87126176672173,38.87126176672173,38.87126176672173,38.87126176672173,310.97009413377378,38.871261766721723]
[null,null,null,3,"Post-TIM totex allowance",155.48504706688692,155.48504706688692,155.48504706688692,155.48504706688692,155.48504706688692,155.48504706688692,155.48504706688692,155.48504706688692,1243.8803765350951,155.48504706688689]
[null,null,null,null,"Regulatory Asset Value (RAV)"]
[null,null,null,4,"Opening asset value (before transfers)",833.54328075436308,865.37864127544299,896.13176495946027,933.22723349065461,970.91440546120134,1010.0274300108947,1049.8789433368834,1090.126322856132,null,956.15350276812899]
[null,null,null,5,"Transfers",0,0,0,0,0,0,0,0,0,0]
[null,null,null,6,"Opening asset value (after transfers)",833.54328075436308,865.37864127544299,896.13176495946027,933.22723349065461,970.91440546120134,1010.0274300108947,1049.8789433368834,1090.126322856132,null,956.15350276812899]
[null,null,null,7,"RAV additions (after disposals)",116.61378530016519,116.61378530016519,116.61378530016519,116.61378530016519,116.61378530016519,116.61378530016519,116.61378530016519,116.61378530016519,932.91028240132152,116.61378530016519]
[null,null,null,8,"Depreciation",-84.778424779085327,-85.860661616147965,-79.518316768970834,-78.926613329618533,-77.500760750471727,-76.762271974176329,-76.366405780916438,-75.991324254730515,-635.70477925411774,-79.463097406764717]
[null,null,null,9,"Closing asset value",865.37864127544299,896.13176495946027,933.22723349065461,970.91440546120134,1010.0274300108947,1049.8789433368834,1090.126322856132,1130.7487839015666,null,993.30419066152956]
[null,null,null,null,"Final Proposals allowances"]
[null,null,null,10,"Fast pot expenditure",38.87126176672173,38.87126176672173,38.87126176672173,38.87126176672173,38.87126176672173,38.87126176672173,38.87126176672173,38.87126176672173,310.97009413377378,38.871261766721723]
[null,null,null,11,"Non-controllable opex ",79.168209562844226,79.168209562844226,79.168209562844226,79.168209562844226,79.168209562844226,79.168209562844226,79.168209562844226,79.168209562844226,633.34567650275392,79.16820956284424]
[null,null,null,12,"RAV depreciation",84.778424779085327,85.860661616147965,79.518316768970834,78.926613329618533,77.500760750471727,76.762271974176329,76.366405780916438,75.991324254730515,635.70477925411774,79.463097406764717]
[null,null,null,13,"Return",35.295362376576279,36.596621329389244,38.003996772800349,39.557967106661316,41.153508648404888,42.794328996925081,44.45887285029491,46.139448471545343,324.0001065525974,40.500013319074675]
[null,null,null,14,"Equity issuance cost",0,0,0,0,0,0,0,0,0,0]
[null,null,null,15,"Additional income",3.8748392603577986,3.8748392603577986,3.8748392603577986,3.8748392603577986,3.8748392603577986,3.8748392603577986,3.8748392603577986,3.8748392603577986,30.998714082862389,3.8748392603577986]
[null,null,null,16,"Core DARTs",13.208622652240528,13.208622652240528,13.208622652240528,13.208622652240528,13.208622652240528,13.208622652240528,13.208622652240528,13.208622652240528,105.66898121792426,13.208622652240532]
[null,null,null,17,"Tax allowance",14.936752849800685,14.686950188334579,12.626171494231567,12.041155920265377,11.28887566658822,10.747330024626589,10.32855983374083,9.9508990797512418,96.606695057339081,12.075836882167385]
[null,null,null,null,"Recalculated allowances"]
[null,null,null,18,"Fast pot expenditure",38.87126176672173,38.87126176672173,38.87126176672173,38.87126176672173,38.87126176672173,38.87126176672173,38.87126176672173,38.87126176672173,310.97009413377378,38.871261766721723]
[null,null,null,19,"Non-controllable opex ",79.168209562844226,79.168209562844226,79.168209562844226,79.168209562844226,79.168209562844226,79.168209562844226,79.168209562844226,79.168209562844226,633.34567650275392,79.16820956284424]
[null,null,null,20,"RAV depreciation",84.778424779085327,85.860661616147965,79.518316768970834,78.926613329618533,77.500760750471727,76.762271974176329,76.366405780916438,75.991324254730515,635.70477925411774,79.463097406764717]
[null,null,null,21,"Return",35.295362376576279,36.596621329389244,38.003996772800349,39.557967106661316,41.153508648404888,42.794328996925081,44.45887285029491,46.139448471545343,324.0001065525974,40.500013319074675]
[null,null,null,22,"Equity issuance cost",0,0,0,0,0,0,0,0,0,0]
[null,null,null,23,"Additional income",3.8748392603577986,3.8748392603577986,3.8748392603577986,3.8748392603577986,3.8748392603577986,3.8748392603577986,3.8748392603577986,3.8748392603577986,30.998714082862389,3.8748392603577986]
[null,null,null,24,"Core DARTs",13.208622652240528,13.208622652240528,13.208622652240528,13.208622652240528,13.208622652240528,13.208622652240528,13.208622652240528,13.208622652240528,105.66898121792426,13.208622652240532]
[null,null,null,25,"Tax allowance",14.936752849800685,14.686950188334579,12.626171494231567,12.041155920265377,11.28887566658822,10.747330024626589,10.32855983374083,9.9508990797512418,96.606695057339081,12.075836882167385]
[null,null,null,null,"Price Control Revenue"]
[null,null,null,26,"Final proposals base revenue",270.13347324762657,272.26716637603607,265.271418278167,265.64866959870955,265.06607830762914,265.42686423789229,266.27677170711644,267.20460504819135,2137.2950468013687,267.16188085017109]
[null,null,null,27,"MOD",0,0,0,0,0,0,0,0,0,0]
[null,null,null,28,"Base revenue",270.13347324762657,272.26716637603607,265.271418278167,265.64866959870955,265.06607830762914,265.42686423789229,266.27677170711644,267.20460504819135,2137.2950468013687,267.16188085017109]
[null,null,null,29,"Not Used"]
[null,null,null,30,"Not Used"]
[null,null,null,31,"ES7 (Miscellaneous) revenue",0,0,0,0,0,0,0,0,0,0]
[null,null,null,32,"Total revenue",270.13347324762657,272.26716637603607,265.271418278167,265.64866959870955,265.06607830762914,265.42686423789229,266.27677170711644,267.20460504819135,2137.2950468013687,267.16188085017109]
[null,null,null,null,"Recalculated base revenue"]
[null,null,null,33,"Recalculated base revenue",270.13347324762657,272.26716637603607,265.271418278167,265.64866959870955,265.06607830762914,265.42686423789229,266.27677170711644,267.20460504819135,2137.2950468013687,267.16188085017109]
[null,null,null,34,"Previous year recalculated base revenue",0,0,0,0,0,0,0,0,0,0]
[null,null,null,null,"Recorded recalculated base revenue"]
[null,null,null,35,"2016-03-31",270.13347324762657,272.26716637603607,265.271418278167,265.64866959870955,265.06607830762914,265.42686423789229,266.27677170711644,267.20460504819135,2137.2950468013687,267.16188085017109]
[null,null,null,36,"2017-03-31","","","","","","","","",0,0]
[null,null,null,37,"2018-03-31","","","","","","","","",0,0]
[null,null,null,38,"2019-03-31","","","","","","","","",0,0]
[null,null,null,39,"2020-03-31","","","","","","","","",0,0]
[null,null,null,40,"2021-03-31","","","","","","","","",0,0]
[null,null,null,41,"2022-03-31","","","","","","","","",0,0]
[null,null,null,42,"2023-03-31","","","","","","","","",0,0]
[null,null,null,null,"Recorded MOD"]
[null,null,null,43,"2016-03-31",0,0,0,0,0,0,0,0,0]
[null,null,null,44,"2017-03-31","","","","","","","","",0]
[null,null,null,45,"2018-03-31","","","","","","","","",0]
[null,null,null,46,"2019-03-31","","","","","","","","",0]
[null,null,null,47,"2020-03-31","","","","","","","","",0]
[null,null,null,48,"2021-03-31","","","","","","","","",0]
[null,null,null,49,"2022-03-31","","","","","","","","",0]
[null,null,null,50,"2023-03-31","","","","","","","","",0]
[null,null,null,null,"Inputs to RoRE"]
[null,null,null,51,"Average RAV",831.84921933953058,862.51758966272087,895.68693784587208,932.31126812777097,969.91535819950252,1008.586589604645,1047.8169420291047,1087.4251348466969,7636.1090396558429,954.51362995698037]
[null,null,null,52,"Gearing",0.65,0.65,0.65,0.65,0.65,0.65,0.65,0.65,0.64999999999999991,0.65]
[null,null,null,53,"Regulated equity",291.14722676883571,301.88115638195228,313.49042824605522,326.30894384471981,339.47037536982589,353.00530636162574,366.73592971018661,380.59879719634387,2672.6381638795456,334.0797704849432]
[null,null,null,54,"Regulated debt return",15.78849818306429,16.37058385179844,17.000138080314652,17.695267869065095,18.408993498626558,19.142973470696163,19.887565559712407,20.63932905939031,144.93334957266791,18.116668696583488]
[null,null,null,55,"Allowed repex",20.977305870369428,20.977305870369428,20.977305870369428,20.977305870369428,20.977305870369428,20.977305870369428,20.977305870369428,20.977305870369428,167.81844696295545,20.977305870369431]
[]
[]
[]
[]
[]
[null,null,"Values for SWEST: OWN_Best (M1a)"]
[]
[]
[null,null,null,null,"Company","Calculated for MOD year ending",null,"File"]
[null,null,null,null,"SWEST: OWN_Best (M1a)","2016-03-31",null,"LiMo ED C1.93b_WPD_DNO.xlsm"]
[]
[null,null,null,null,"PCFM year ending","2016-03-31","2017-03-31","2018-03-31","2019-03-31","2020-03-31","2021-03-31","2022-03-31","2023-03-31","RIIO Total","RIIO average"]
[null,null,null,null,"Price base","£m 12/13 prices","£m 12/13 prices","£m 12/13 prices","£m 12/13 prices","£m 12/13 prices","£m 12/13 prices","£m 12/13 prices","£m 12/13 prices","£m 12/13 prices","£m 12/13 prices"]
[null,null,null,null,"Totex"]
[null,null,null,1,"Slow pot",175.6630088168435,175.6630088168435,175.6630088168435,175.6630088168435,175.6630088168435,175.6630088168435,175.6630088168435,175.6630088168435,1405.3040705347482,175.66300881684353]
[null,null,null,2,"Fast pot",58.554336272281148,58.554336272281148,58.554336272281148,58.554336272281148,58.554336272281148,58.554336272281148,58.554336272281148,58.554336272281148,468.43469017824918,58.554336272281148]
[null,null,null,3,"Post-TIM totex allowance",234.21734508912465,234.21734508912465,234.21734508912465,234.21734508912465,234.21734508912465,234.21734508912465,234.21734508912465,234.21734508912465,1873.738760712997,234.21734508912462]
[null,null,null,null,"Regulatory Asset Value (RAV)"]
[null,null,null,4,"Opening asset value (before transfers)",1236.8831514632866,1298.9793791431405,1357.2010259161614,1412.9686605970924,1467.1560011974029,1520.1018353268464,1572.1424226232143,1635.7702039618002,null,1437.650335028618]
[null,null,null,5,"Transfers",0,0,0,0,0,0,0,0,0,0]
[null,null,null,6,"Opening asset value (after transfers)",1236.8831514632866,1298.9793791431405,1357.2010259161614,1412.9686605970924,1467.1560011974029,1520.1018353268464,1572.1424226232143,1635.7702039618002,null,1437.650335028618]
[null,null,null,7,"RAV additions (after disposals)",175.6630088168435,175.6630088168435,175.6630088168435,175.6630088168435,175.6630088168435,175.6630088168435,175.6630088168435,175.6630088168435,1405.3040705347482,175.66300881684353]
[null,null,null,8,"Depreciation",-113.5667811369896,-117.44136204382266,-119.8953741359125,-121.47566821653304,-122.71717468740009,-123.62242152047567,-112.03522747825764,-112.14937454273665,-942.90338376212787,-117.86292297026598]
[null,null,null,9,"Closing asset value",1298.9793791431405,1357.2010259161614,1412.9686605970924,1467.1560011974029,1520.1018353268464,1572.1424226232143,1635.7702039618002,1699.2838382359071,null,1495.4504208751957]
[null,null,null,null,"Final Proposals allowances"]
[null,null,null,10,"Fast pot expenditure",58.554336272281148,58.554336272281148,58.554336272281148,58.554336272281148,58.554336272281148,58.554336272281148,58.554336272281148,58.554336272281148,468.43469017824918,58.554336272281148]
[null,null,null,11,"Non-controllable opex ",100.78774166064287,100.78774166064287,100.78774166064287,100.78774166064287,100.78774166064287,100.78774166064287,100.78774166064287,100.78774166064287,806.30193328514281,100.78774166064285]
[null,null,null,12,"RAV depreciation",113.5667811369896,117.44136204382266,119.8953741359125,121.47566821653304,122.71717468740009,123.62242152047567,112.03522747825764,112.14937454273665,942.90338376212787,117.86292297026598]
[null,null,null,13,"Return",52.676637266740926,55.178905791245697,57.549032288018971,59.834935584720228,62.062046440405581,64.244395617671671,66.643356605694677,69.285816852889468,487.47512644738725,60.934390805923407]
[null,null,null,14,"Equity issuance cost",0,0,0,0,0,0,0,0,0,0]
[null,null,null,15,"Additional income",5.8404034342511739,5.8404034342511739,5.8404034342511739,5.8404034342511739,5.8404034342511739,5.8404034342511739,5.8404034342511739,5.8404034342511739,46.723227474009384,5.840403434251173]
[null,null,null,16,"Core DARTs",23.41365681815337,23.41365681815337,23.41365681815337,23.41365681815337,23.41365681815337,23.41365681815337,23.41365681815337,23.41365681815337,187.30925454522696,23.41365681815337]
[null,null,null,17,"Tax allowance",20.188653831292616,20.352025403074176,20.28162345765373,20.095150872329565,19.913518746000747,19.730171251848333,16.471721855189795,16.185748053358548,153.2186134707475,19.152326683843437]
[null,null,null,null,"Recalculated allowances"]
[null,null,null,18,"Fast pot expenditure",58.554336272281148,58.554336272281148,58.554336272281148,58.554336272281148,58.554336272281148,58.554336272281148,58.554336272281148,58.554336272281148,468.43469017824918,58.554336272281148]
[null,null,null,19,"Non-controllable opex ",100.78774166064287,100.78774166064287,100.78774166064287,100.78774166064287,100.78774166064287,100.78774166064287,100.78774166064287,100.78774166064287,806.30193328514281,100.78774166064285]
[null,null,null,20,"RAV depreciation",113.5667811369896,117.44136204382266,119.8953741359125,121.47566821653304,122.71717468740009,123.62242152047567,112.03522747825764,112.14937454273665,942.90338376212787,117.86292297026598]
[null,null,null,21,"Return",52.676637266740926,55.178905791245697,57.549032288018971,59.834935584720228,62.062046440405581,64.244395617671671,66.643356605694677,69.285816852889468,487.47512644738725,60.934390805923407]
[null,null,null,22,"Equity issuance cost",0,0,0,0,0,0,0,0,0,0]
[null,null,null,23,"Additional income",5.8404034342511739,5.8404034342511739,5.8404034342511739,5.8404034342511739,5.8404034342511739,5.8404034342511739,5.8404034342511739,5.8404034342511739,46.723227474009384,5.840403434251173]
[null,null,null,24,"Core DARTs",23.41365681815337,23.41365681815337,23.41365681815337,23.41365681815337,23.41365681815337,23.41365681815337,23.41365681815337,23.41365681815337,187.30925454522696,23.41365681815337]
[null,null,null,25,"Tax allowance",20.188653831292616,20.352025403074176,20.28162345765373,20.095150872329565,19.913518746000747,19.730171251848333,16.471721855189795,16.185748053358548,153.2186134707475,19.152326683843437]
[null,null,null,null,"Price Control Revenue"]
[null,null,null,26,"Final proposals base revenue",375.02821042035168,381.56843142347105,386.32216806691378,390.00189285891133,393.28887805913502,396.19312657532424,383.74644412447066,386.21707763431323,3092.3662291628907,386.54577864536134]
[null,null,null,27,"MOD",0,0,0,0,0,0,0,0,0,0]
[null,null,null,28,"Base revenue",375.02821042035168,381.56843142347105,386.32216806691378,390.00189285891133,393.28887805913502,396.19312657532424,383.74644412447066,386.21707763431323,3092.3662291628907,386.54577864536134]
[null,null,null,29,"Not Used"]
[null,null,null,30,"Not Used"]
[null,null,null,31,"ES7 (Miscellaneous) revenue",0,0,0,0,0,0,0,0,0,0]
[null,null,null,32,"Total revenue",375.02821042035168,381.56843142347105,386.32216806691378,390.00189285891133,393.28887805913502,396.19312657532424,383.74644412447066,386.21707763431323,3092.3662291628907,386.54577864536134]
[null,null,null,null,"Recalculated base revenue"]
[null,null,null,33,"Recalculated base revenue",375.02821042035168,381.56843142347105,386.32216806691378,390.00189285891133,393.28887805913502,396.19312657532424,383.74644412447066,386.21707763431323,3092.3662291628907,386.54577864536134]
[null,null,null,34,"Previous year recalculated base revenue",0,0,0,0,0,0,0,0,0,0]
[null,null,null,null,"Recorded recalculated base revenue"]
[null,null,null,35,"2016-03-31",375.02821042035168,381.56843142347105,386.32216806691378,390.00189285891133,393.28887805913502,396.19312657532424,383.74644412447066,386.21707763431323,3092.3662291628907,386.54577864536134]
[null,null,null,36,"2017-03-31","","","","","","","","",0,0]
[null,null,null,37,"2018-03-31","","","","","","","","",0,0]
[null,null,null,38,"2019-03-31","","","","","","","","",0,0]
[null,null,null,39,"2020-03-31","","","","","","","","",0,0]
[null,null,null,40,"2021-03-31","","","","","","","","",0,0]
[null,null,null,41,"2022-03-31","","","","","","","","",0,0]
[null,null,null,42,"2023-03-31","","","","","","","","",0,0]
[null,null,null,null,"Recorded MOD"]
[null,null,null,43,"2016-03-31",0,0,0,0,0,0,0,0,0]
[null,null,null,44,"2017-03-31","","","","","","","","",0]
[null,null,null,45,"2018-03-31","","","","","","","","",0]
[null,null,null,46,"2019-03-31","","","","","","","","",0]
[null,null,null,47,"2020-03-31","","","","","","","","",0]
[null,null,null,48,"2021-03-31","","","","","","","","",0]
[null,null,null,49,"2022-03-31","","","","","","","","",0]
[null,null,null,50,"2023-03-31","","","","","","","","",0]
[null,null,null,null,"Inputs to RoRE"]
[null,null,null,51,"Average RAV",1241.4951040947662,1300.4691442669268,1356.3288307334192,1410.2035254470948,1462.692586387122,1514.1266937938176,1570.6659581827641,1632.9440691230138,11488.925912028924,1436.1157390036155]
[null,null,null,52,"Gearing",0.65,0.65,0.65,0.65,0.65,0.65,0.65,0.65,0.65000000000000013,0.65]
[null,null,null,53,"Regulated equity",434.52328643316815,455.16420049342435,474.71509075669667,493.57123390648314,511.94240523549269,529.94434282783618,549.73308536396746,571.53042419305484,4021.1240692101228,502.64050865126535]
[null,null,null,54,"Regulated debt return",23.563577075718662,24.682904358186274,25.743121207320296,26.76566291298586,27.761905289627578,28.738124648206657,29.811239886308865,30.993278431954803,218.05981381030898,27.257476726288623]
[null,null,null,55,"Allowed repex",29.089310797076578,29.089310797076578,29.089310797076578,29.089310797076578,29.089310797076578,29.089310797076578,29.089310797076578,29.089310797076578,232.71448637661257,29.089310797076571]
[]
[]
[]
[]
[]
[null,null,"Values for LPN: OWN_Best (M1a)"]
[]
[]
[null,null,null,null,"Company","Calculated for MOD year ending",null,"File"]
[null,null,null,null,"LPN: OWN_Best (M1a)","2016-03-31",null,"LiMo ED C1.93b_WPD_DNO.xlsm"]
[]
[null,null,null,null,"PCFM year ending","2016-03-31","2017-03-31","2018-03-31","2019-03-31","2020-03-31","2021-03-31","2022-03-31","2023-03-31","RIIO Total","RIIO average"]
[null,null,null,null,"Price base","£m 12/13 prices","£m 12/13 prices","£m 12/13 prices","£m 12/13 prices","£m 12/13 prices","£m 12/13 prices","£m 12/13 prices","£m 12/13 prices","£m 12/13 prices","£m 12/13 prices"]
[null,null,null,null,"Totex"]
[null,null,null,1,"Slow pot",0,0,0,0,0,0,0,0,0,0]
[null,null,null,2,"Fast pot",0,0,0,0,0,0,0,0,0,0]
[null,null,null,3,"Post-TIM totex allowance",0,0,0,0,0,0,0,0,0,0]
[null,null,null,null,"Regulatory Asset Value (RAV)"]
[null,null,null,4,"Opening asset value (before transfers)",{"$error":"#DIV/0!"},{"$error":"#DIV/0!"},{"$error":"#DIV/0!"},{"$error":"#DIV/0!"},{"$error":"#DIV/0!"},{"$error":"#DIV/0!"},{"$error":"#DIV/0!"},{"$error":"#DIV/0!"},null,0]
[null,null,null,5,"Transfers",0,0,0,0,0,0,0,0,0,0]
[null,null,null,6,"Opening asset value (after transfers)",{"$error":"#DIV/0!"},{"$error":"#DIV/0!"},{"$error":"#DIV/0!"},{"$error":"#DIV/0!"},{"$error":"#DIV/0!"},{"$error":"#DIV/0!"},{"$error":"#DIV/0!"},{"$error":"#DIV/0!"},null,0]
[null,null,null,7,"RAV additions (after disposals)",0,0,0,0,0,0,0,0,0,0]
[null,null,null,8,"Depreciation",{"$error":"#DIV/0!"},{"$error":"#DIV/0!"},{"$error":"#DIV/0!"},{"$error":"#DIV/0!"},{"$error":"#DIV/0!"},{"$error":"#DIV/0!"},{"$error":"#DIV/0!"},{"$error":"#DIV/0!"},{"$error":"#DIV/0!"},0]
[null,null,null,9,"Closing asset value",{"$error":"#DIV/0!"},{"$error":"#DIV/0!"},{"$error":"#DIV/0!"},{"$error":"#DIV/0!"},{"$error":"#DIV/0!"},{"$error":"#DIV/0!"},{"$error":"#DIV/0!"},{"$error":"#DIV/0!"},null,0]
[null,null,null,null,"Final Proposals allowances"]
[null,null,null,10,"Fast pot expenditure",0,0,0,0,0,0,0,0,0,0]
[null,null,null,11,"Non-controllable opex ",0,0,0,0,0,0,0,0,0,0]
[null,null,null,12,"RAV depreciation",{"$error":"#DIV/0!"},{"$error":"#DIV/0!"},{"$error":"#DIV/0!"},{"$error":"#DIV/0!"},{"$error":"#DIV/0!"},{"$error":"#DIV/0!"},{"$error":"#DIV/0!"},{"$error":"#DIV/0!"},{"$error":"#DIV/0!"},0]
[null,null,null,13,"Return",{"$error":"#DIV/0!"},{"$error":"#DIV/0!"},{"$error":"#DIV/0!"},{"$error":"#DIV/0!"},{"$error":"#DIV/0!"},{"$error":"#DIV/0!"},{"$error":"#DIV/0!"},{"$error":"#DIV/0!"},{"$error":"#DIV/0!"},0]
[null,null,null,14,"Equity issuance cost",{"$error":"#DIV/0!"},{"$error":"#DIV/0!"},{"$error":"#DIV/0!"},{"$error":"#DIV/0!"},{"$error":"#DIV/0!"},{"$error":"#DIV/0!"},{"$error":"#DIV/0!"},{"$error":"#DIV/0!"},{"$error":"#DIV/0!"},0]
[null,null,null,15,"Additional income",{"$error":"#DIV/0!"},{"$error":"#DIV/0!"},{"$error":"#DIV/0!"},{"$error":"#DIV/0!"},{"$error":"#DIV/0!"},{"$error":"#DIV/0!"},{"$error":"#DIV/0!"},{"$error":"#DIV/0!"},{"$error":"#DIV/0!"},0]
[null,null,null,16,"Core DARTs",0,0,0,0,0,0,0,0,0,0]
[null,null,null,17,"Tax allowance",{"$error":"#DIV/0!"},{"$error":"#DIV/0!"},{"$error":"#DIV/0!"},{"$error":"#DIV/0!"},{"$error":"#DIV/0!"},{"$error":"#DIV/0!"},{"$error":"#DIV/0!"},{"$error":"#DIV/0!"},{"$error":"#DIV/0!"},0]
[null,null,null,null,"Recalculated allowances"]
[null,null,null,18,"Fast pot expenditure",0,0,0,0,0,0,0,0,0,0]
[null,null,null,19,"Non-controllable opex ",0,0,0,0,0,0,0,0,0,0]
[null,null,null,20,"RAV depreciation",{"$error":"#DIV/0!"},{"$error":"#DIV/0!"},{"$error":"#DIV/0!"},{"$error":"#DIV/0!"},{"$error":"#DIV/0!"},{"$error":"#DIV/0!"},{"$error":"#DIV/0!"},{"$error":"#DIV/0!"},{"$error":"#DIV/0!"},0]
[null,null,null,21,"Return",{"$error":"#DIV/0!"},{"$error":"#DIV/0!"},{"$error":"#DIV/0!"},{"$error":"#DIV/0!"},{"$error":"#DIV/0!"},{"$error":"#DIV/0!"},{"$error":"#DIV/0!"},{"$error":"#DIV/0!"},{"$error":"#DIV/0!"},0]
[null,null,null,22,"Equity issuance cost",{"$error":"#DIV/0!"},{"$error":"#DIV/0!"},{"$error":"#DIV/0!"},{"$error":"#DIV/0!"},{"$error":"#DIV/0!"},{"$error":"#DIV/0!"},{"$error":"#DIV/0!"},{"$error":"#DIV/0!"},{"$error":"#DIV/0!"},0]
[null,null,null,23,"Additional income",{"$error":"#DIV/0!"},{"$error":"#DIV/0!"},{"$error":"#DIV/0!"},{"$error":"#DIV/0!"},{"$error":"#DIV/0!"},{"$error":"#DIV/0!"},{"$error":"#DIV/0!"},{"$error":"#DIV/0!"},{"$error":"#DIV/0!"},0]
[null,null,null,24,"Core DARTs",0,0,0,0,0,0,0,0,0,0]
[null,null,null,25,"Tax allowance",{"$error":"#DIV/0!"},{"$error":"#DIV/0!"},{"$error":"#DIV/0!"},{"$error":"#DIV/0!"},{"$error":"#DIV/0!"},{"$error":"#DIV/0!"},{"$error":"#DIV/0!"},{"$error":"#DIV/0!"},{"$error":"#DIV/0!"},0]
[null,null,null,null,"Price Control Revenue"]
[null,null,null,26,"Final proposals base revenue",{"$error":"#DIV/0!"},{"$error":"#DIV/0!"},{"$error":"#DIV/0!"},{"$error":"#DIV/0!"},{"$error":"#DIV/0!"},{"$error":"#DIV/0!"},{"$error":"#DIV/0!"},{"$error":"#DIV/0!"},{"$error":"#DIV/0!"},0]
[null,null,null,27,"MOD",0,0,0,0,0,0,0,0,0,0]
[null,null,null,28,"Base revenue",{"$error":"#DIV/0!"},{"$error":"#DIV/0!"},{"$error":"#DIV/0!"},{"$error":"#DIV/0!"},{"$error":"#DIV/0!"},{"$error":"#DIV/0!"},{"$error":"#DIV/0!"},{"$error":"#DIV/0!"},{"$error":"#DIV/0!"},0]
[null,null,null,29,"Not Used"]
[null,null,null,30,"Not Used"]
[null,null,null,31,"ES7 (Miscellaneous) revenue",0,0,0,0,0,0,0,0,0,0]
[null,null,null,32,"Total revenue",{"$error":"#DIV/0!"},{"$error":"#DIV/0!"},{"$error":"#DIV/0!"},{"$error":"#DIV/0!"},{"$error":"#DIV/0!"},{"$error":"#DIV/0!"},{"$error":"#DIV/0!"},{"$error":"#DIV/0!"},{"$error":"#DIV/0!"},0]
[null,null,null,null,"Recalculated base revenue"]
[null,null,null,33,"Recalculated base revenue",{"$error":"#DIV/0!"},{"$error":"#DIV/0!"},{"$error":"#DIV/0!"},{"$error":"#DIV/0!"},{"$error":"#DIV/0!"},{"$error":"#DIV/0!"},{"$error":"#DIV/0!"},{"$error":"#DIV/0!"},{"$error":"#DIV/0!"},0]
[null,null,null,34,"Previous year recalculated base revenue",0,0,0,0,0,0,0,0,0,0]
[null,null,null,null,"Recorded recalculated base revenue"]
[null,null,null,35,"2016-03-31",{"$error":"#DIV/0!"},{"$error":"#DIV/0!"},{"$error":"#DIV/0!"},{"$error":"#DIV/0!"},{"$error":"#DIV/0!"},{"$error":"#DIV/0!"},{"$error":"#DIV/0!"},{"$error":"#DIV/0!"},{"$error":"#DIV/0!"},0]
[null,null,null,36,"2017-03-31","","","","","","","","",0,0]
[null,null,null,37,"2018-03-31","","","","","","","","",0,0]
[null,null,null,38,"2019-03-31","","","","","","","","",0,0]
[null,null,null,39,"2020-03-31","","","","","","","","",0,0]
[null,null,null,40,"2021-03-31","","","","","","","","",0,0]
[null,null,null,41,"2022-03-31","","","","","","","","",0,0]
[null,null,null,42,"2023-03-31","","","","","","","","",0,0]
[null,null,null,null,"Recorded MOD"]
[null,null,null,43,"2016-03-31",0,0,0,0,0,0,0,0,0]
[null,null,null,44,"2017-03-31","","","","","","","","",0]
[null,null,null,45,"2018-03-31","","","","","","","","",0]
[null,null,null,46,"2019-03-31","","","","","","","","",0]
[null,null,null,47,"2020-03-31","","","","","","","","",0]
[null,null,null,48,"2021-03-31","","","","","","","","",0]
[null,null,null,49,"2022-03-31","","","","","","","","",0]
[null,null,null,50,"2023-03-31","","","","","","","","",0]
[null,null,null,null,"Inputs to RoRE"]
[null,null,null,51,"Average RAV",{"$error":"#DIV/0!"},{"$error":"#DIV/0!"},{"$error":"#DIV/0!"},{"$error":"#DIV/0!"},{"$error":"#DIV/0!"},{"$error":"#DIV/0!"},{"$error":"#DIV/0!"},{"$error":"#DIV/0!"},{"$error":"#DIV/0!"},0]
[null,null,null,52,"Gearing",0,0,0,0,0,0,0,0,{"$error":"#DIV/0!"},0]
[null,null,null,53,"Regulated equity",{"$error":"#DIV/0!"},{"$error":"#DIV/0!"},{"$error":"#DIV/0!"},{"$error":"#DIV/0!"},{"$error":"#DIV/0!"},{"$error":"#DIV/0!"},{"$error":"#DIV/0!"},{"$error":"#DIV/0!"},{"$error":"#DIV/0!"},0]
[null,null,null,54,"Regulated debt return",{"$error":"#DIV/0!"},{"$error":"#DIV/0!"},{"$error":"#DIV/0!"},{"$error":"#DIV/0!"},{"$error":"#DIV/0!"},{"$error":"#DIV/0!"},{"$error":"#DIV/0!"},{"$error":"#DIV/0!"},{"$error":"#DIV/0!"},0]
[null,null,null,55,"Allowed repex",0,0,0,0,0,0,0,0,0,0]
[]
[]
[]
[]
[]
[null,null,"Values for SPN: OWN_Best (M1a)"]
[]
[]
[null,null,null,null,"Company","Calculated for MOD year ending",null,"File"]
[null,null,null,null,"SPN: OWN_Best (M1a)","2016-03-31",null,"LiMo ED C1.93b_WPD_DNO.xlsm"]
[]
[null,null,null,null,"PCFM year ending","2016-03-31","2017-03-31","2018-03-31","2019-03-31","2020-03-31","2021-03-31","2022-03-31","2023-03-31","RIIO Total","RIIO average"]
[null,null,null,null,"Price base","£m 12/13 prices","£m 12/13 prices","£m 12/13 prices","£m 12/13 prices","£m 12/13 prices","£m 12/13 prices","£m 12/13 prices","£m 12/13 prices","£m 12/13 prices","£m 12/13 prices"]
[null,null,null,null,"Totex"]
[null,null,null,1,"Slow pot",0,0,0,0,0,0,0,0,0,0]
[null,null,null,2,"Fast pot",0,0,0,0,0,0,0,0,0,0]
[null,null,null,3,"Post-TIM totex allowance",0,0,0,0,0,0,0,0,0,0]
[null,null,null,null,"Regulatory Asset Value (RAV)"]
[null,null,null,4,"Opening asset value (before transfers)",{"$error":"#DIV/0!"},{"$error":"#DIV/0!"},{"$error":"#DIV/0!"},{"$error":"#DIV/0!"},{"$error":"#DIV/0!"},{"$error":"#DIV/0!"},{"$error":"#DIV/0!"},{"$error":"#DIV/0!"},null,0]
[null,null,null,5,"Transfers",0,0,0,0,0,0,0,0,0,0]
[null,null,null,6,"Opening asset value (after transfers)",{"$error":"#DIV/0!"},{"$error":"#DIV/0!"},{"$error":"#DIV/0!"},{"$error":"#DIV/0!"},{"$error":"#DIV/0!"},{"$error":"#DIV/0!"},{"$error":"#DIV/0!"},{"$error":"#DIV/0!"},null,0]
[null,null,null,7,"RAV additions (after disposals)",0,0,0,0,0,0,0,0,0,0]
[null,null,null,8,"Depreciation",{"$error":"#DIV/0!"},{"$error":"#DIV/0!"},{"$error":"#DIV/0!"},{"$error":"#DIV/0!"},{"$error":"#DIV/0!"},{"$error":"#DIV/0!"},{"$error":"#DIV/0!"},{"$error":"#DIV/0!"},{"$error":"#DIV/0!"},0]
[null,null,null,9,"Closing asset value",{"$error":"#DIV/0!"},{"$error":"#DIV/0!"},{"$error":"#DIV/0!"},{"$error":"#DIV/0!"},{"$error":"#DIV/0!"},{"$error":"#DIV/0!"},{"$error":"#DIV/0!"},{"$error":"#DIV/0!"},null,0]
[null,null,null,null,"Final Proposals allowances"]
[null,null,null,10,"Fast pot expenditure",0,0,0,0,0,0,0,0,0,0]
[null,null,null,11,"Non-controllable opex ",0,0,0,0,0,0,0,0,0,0]
[null,null,null,12,"RAV depreciation",{"$error":"#DIV/0!"},{"$error":"#DIV/0!"},{"$error":"#DIV/0!"},{"$error":"#DIV/0!"},{"$error":"#DIV/0!"},{"$error":"#DIV/0!"},{"$error":"#DIV/0!"},{"$error":"#DIV/0!"},{"$error":"#DIV/0!"},0]
[null,null,null,13,"Return",{"$error":"#DIV/0!"},{"$error":"#DIV/0!"},{"$error":"#DIV/0!"},{"$error":"#DIV/0!"},{"$error":"#DIV/0!"},{"$error":"#DIV/0!"},{"$error":"#DIV/0!"},{"$error":"#DIV/0!"},{"$error":"#DIV/0!"},0]
[null,null,null,14,"Equity issuance cost",{"$error":"#DIV/0!"},{"$error":"#DIV/0!"},{"$error":"#DIV/0!"},{"$error":"#DIV/0!"},{"$error":"#DIV/0!"},{"$error":"#DIV/0!"},{"$error":"#DIV/0!"},{"$error":"#DIV/0!"},{"$error":"#DIV/0!"},0]
[null,null,null,15,"Additional income",{"$error":"#DIV/0!"},{"$error":"#DIV/0!"},{"$error":"#DIV/0!"},{"$error":"#DIV/0!"},{"$error":"#DIV/0!"},{"$error":"#DIV/0!"},{"$error":"#DIV/0!"},{"$error":"#DIV/0!"},{"$error":"#DIV/0!"},0]
[null,null,null,16,"Core DARTs",0,0,0,0,0,0,0,0,0,0]
[null,null,null,17,"Tax allowance",{"$error":"#DIV/0!"},{"$error":"#DIV/0!"},{"$error":"#DIV/0!"},{"$error":"#DIV/0!"},{"$error":"#DIV/0!"},{"$error":"#DIV/0!"},{"$error":"#DIV/0!"},{"$error":"#DIV/0!"},{"$error":"#DIV/0!"},0]
[null,null,null,null,"Recalculated allowances"]
[null,null,null,18,"Fast pot expenditure",0,0,0,0,0,0,0,0,0,0]
[null,null,null,19,"Non-controllable opex ",0,0,0,0,0,0,0,0,0,0]
[null,null,null,20,"RAV depreciation",{"$error":"#DIV/0!"},{"$error":"#DIV/0!"},{"$error":"#DIV/0!"},{"$error":"#DIV/0!"},{"$error":"#DIV/0!"},{"$error":"#DIV/0!"},{"$error":"#DIV/0!"},{"$error":"#DIV/0!"},{"$error":"#DIV/0!"},0]
[null,null,null,21,"Return",{"$error":"#DIV/0!"},{"$error":"#DIV/0!"},{"$error":"#DIV/0!"},{"$error":"#DIV/0!"},{"$error":"#DIV/0!"},{"$error":"#DIV/0!"},{"$error":"#DIV/0!"},{"$error":"#DIV/0!"},{"$error":"#DIV/0!"},0]
[null,null,null,22,"Equity issuance cost",{"$error":"#DIV/0!"},{"$error":"#DIV/0!"},{"$error":"#DIV/0!"},{"$error":"#DIV/0!"},{"$error":"#DIV/0!"},{"$error":"#DIV/0!"},{"$error":"#DIV/0!"},{"$error":"#DIV/0!"},{"$error":"#DIV/0!"},0]
[null,null,null,23,"Additional income",{"$error":"#DIV/0!"},{"$error":"#DIV/0!"},{"$error":"#DIV/0!"},{"$error":"#DIV/0!"},{"$error":"#DIV/0!"},{"$error":"#DIV/0!"},{"$error":"#DIV/0!"},{"$error":"#DIV/0!"},{"$error":"#DIV/0!"},0]
[null,null,null,24,"Core DARTs",0,0,0,0,0,0,0,0,0,0]
[null,null,null,25,"Tax allowance",{"$error":"#DIV/0!"},{"$error":"#DIV/0!"},{"$error":"#DIV/0!"},{"$error":"#DIV/0!"},{"$error":"#DIV/0!"},{"$error":"#DIV/0!"},{"$error":"#DIV/0!"},{"$error":"#DIV/0!"},{"$error":"#DIV/0!"},0]
[null,null,null,null,"Price Control Revenue"]
[null,null,null,26,"Final proposals base revenue",{"$error":"#DIV/0!"},{"$error":"#DIV/0!"},{"$error":"#DIV/0!"},{"$error":"#DIV/0!"},{"$error":"#DIV/0!"},{"$error":"#DIV/0!"},{"$error":"#DIV/0!"},{"$error":"#DIV/0!"},{"$error":"#DIV/0!"},0]
[null,null,null,27,"MOD",0,0,0,0,0,0,0,0,0,0]
[null,null,null,28,"Base revenue",{"$error":"#DIV/0!"},{"$error":"#DIV/0!"},{"$error":"#DIV/0!"},{"$error":"#DIV/0!"},{"$error":"#DIV/0!"},{"$error":"#DIV/0!"},{"$error":"#DIV/0!"},{"$error":"#DIV/0!"},{"$error":"#DIV/0!"},0]
[null,null,null,29,"Not Used"]
[null,null,null,30,"Not Used"]
[null,null,null,31,"ES7 (Miscellaneous) revenue",0,0,0,0,0,0,0,0,0,0]
[null,null,null,32,"Total revenue",{"$error":"#DIV/0!"},{"$error":"#DIV/0!"},{"$error":"#DIV/0!"},{"$error":"#DIV/0!"},{"$error":"#DIV/0!"},{"$error":"#DIV/0!"},{"$error":"#DIV/0!"},{"$error":"#DIV/0!"},{"$error":"#DIV/0!"},0]
[null,null,null,null,"Recalculated base revenue"]
[null,null,null,33,"Recalculated base revenue",{"$error":"#DIV/0!"},{"$error":"#DIV/0!"},{"$error":"#DIV/0!"},{"$error":"#DIV/0!"},{"$error":"#DIV/0!"},{"$error":"#DIV/0!"},{"$error":"#DIV/0!"},{"$error":"#DIV/0!"},{"$error":"#DIV/0!"},0]
[null,null,null,34,"Previous year recalculated base revenue",0,0,0,0,0,0,0,0,0,0]
[null,null,null,null,"Recorded recalculated base revenue"]
[null,null,null,35,"2016-03-31",{"$error":"#DIV/0!"},{"$error":"#DIV/0!"},{"$error":"#DIV/0!"},{"$error":"#DIV/0!"},{"$error":"#DIV/0!"},{"$error":"#DIV/0!"},{"$error":"#DIV/0!"},{"$error":"#DIV/0!"},{"$error":"#DIV/0!"},0]
[null,null,null,36,"2017-03-31","","","","","","","","",0,0]
[null,null,null,37,"2018-03-31","","","","","","","","",0,0]
[null,null,null,38,"2019-03-31","","","","","","","","",0,0]
[null,null,null,39,"2020-03-31","","","","","","","","",0,0]
[null,null,null,40,"2021-03-31","","","","","","","","",0,0]
[null,null,null,41,"2022-03-31","","","","","","","","",0,0]
[null,null,null,42,"2023-03-31","","","","","","","","",0,0]
[null,null,null,null,"Recorded MOD"]
[null,null,null,43,"2016-03-31",0,0,0,0,0,0,0,0,0]
[null,null,null,44,"2017-03-31","","","","","","","","",0]
[null,null,null,45,"2018-03-31","","","","","","","","",0]
[null,null,null,46,"2019-03-31","","","","","","","","",0]
[null,null,null,47,"2020-03-31","","","","","","","","",0]
[null,null,null,48,"2021-03-31","","","","","","","","",0]
[null,null,null,49,"2022-03-31","","","","","","","","",0]
[null,null,null,50,"2023-03-31","","","","","","","","",0]
[null,null,null,null,"Inputs to RoRE"]
[null,null,null,51,"Average RAV",{"$error":"#DIV/0!"},{"$error":"#DIV/0!"},{"$error":"#DIV/0!"},{"$error":"#DIV/0!"},{"$error":"#DIV/0!"},{"$error":"#DIV/0!"},{"$error":"#DIV/0!"},{"$error":"#DIV/0!"},{"$error":"#DIV/0!"},0]
[null,null,null,52,"Gearing",0,0,0,0,0,0,0,0,{"$error":"#DIV/0!"},0]
[null,null,null,53,"Regulated equity",{"$error":"#DIV/0!"},{"$error":"#DIV/0!"},{"$error":"#DIV/0!"},{"$error":"#DIV/0!"},{"$error":"#DIV/0!"},{"$error":"#DIV/0!"},{"$error":"#DIV/0!"},{"$error":"#DIV/0!"},{"$error":"#DIV/0!"},0]
[null,null,null,54,"Regulated debt return",{"$error":"#DIV/0!"},{"$error":"#DIV/0!"},{"$error":"#DIV/0!"},{"$error":"#DIV/0!"},{"$error":"#DIV/0!"},{"$error":"#DIV/0!"},{"$error":"#DIV/0!"},{"$error":"#DIV/0!"},{"$error":"#DIV/0!"},0]
[null,null,null,55,"Allowed repex",0,0,0,0,0,0,0,0,0,0]
[]
[]
[]
[]
[]
[null,null,"Values for EPN: OWN_Best (M1a)"]
[]
[]
[null,null,null,null,"Company","Calculated for MOD year ending",null,"File"]
[null,null,null,null,"EPN: OWN_Best (M1a)","2016-03-31",null,"LiMo ED C1.93b_WPD_DNO.xlsm"]
[]
[null,null,null,null,"PCFM year ending","2016-03-31","2017-03-31","2018-03-31","2019-03-31","2020-03-31","2021-03-31","2022-03-31","2023-03-31","RIIO Total","RIIO average"]
[null,null,null,null,"Price base","£m 12/13 prices","£m 12/13 prices","£m 12/13 prices","£m 12/13 prices","£m 12/13 prices","£m 12/13 prices","£m 12/13 prices","£m 12/13 prices","£m 12/13 prices","£m 12/13 prices"]
[null,null,null,null,"Totex"]
[null,null,null,1,"Slow pot",0,0,0,0,0,0,0,0,0,0]
[null,null,null,2,"Fast pot",0,0,0,0,0,0,0,0,0,0]
[null,null,null,3,"Post-TIM totex allowance",0,0,0,0,0,0,0,0,0,0]
[null,null,null,null,"Regulatory Asset Value (RAV)"]
[null,null,null,4,"Opening asset value (before transfers)",{"$error":"#DIV/0!"},{"$error":"#DIV/0!"},{"$error":"#DIV/0!"},{"$error":"#DIV/0!"},{"$error":"#DIV/0!"},{"$error":"#DIV/0!"},{"$error":"#DIV/0!"},{"$error":"#DIV/0!"},null,0]
[null,null,null,5,"Transfers",0,0,0,0,0,0,0,0,0,0]
[null,null,null,6,"Opening asset value (after transfers)",{"$error":"#DIV/0!"},{"$error":"#DIV/0!"},{"$error":"#DIV/0!"},{"$error":"#DIV/0!"},{"$error":"#DIV/0!"},{"$error":"#DIV/0!"},{"$error":"#DIV/0!"},{"$error":"#DIV/0!"},null,0]
[null,null,null,7,"RAV additions (after disposals)",0,0,0,0,0,0,0,0,0,0]
[null,null,null,8,"Depreciation",{"$error":"#DIV/0!"},{"$error":"#DIV/0!"},{"$error":"#DIV/0!"},{"$error":"#DIV/0!"},{"$error":"#DIV/0!"},{"$error":"#DIV/0!"},{"$error":"#DIV/0!"},{"$error":"#DIV/0!"},{"$error":"#DIV/0!"},0]
[null,null,null,9,"Closing asset value",{"$error":"#DIV/0!"},{"$error":"#DIV/0!"},{"$error":"#DIV/0!"},{"$error":"#DIV/0!"},{"$error":"#DIV/0!"},{"$error":"#DIV/0!"},{"$error":"#DIV/0!"},{"$error":"#DIV/0!"},null,0]
[null,null,null,null,"Final Proposals allowances"]
[null,null,null,10,"Fast pot expenditure",0,0,0,0,0,0,0,0,0,0]
[null,null,null,11,"Non-controllable opex ",0,0,0,0,0,0,0,0,0,0]
[null,null,null,12,"RAV depreciation",{"$error":"#DIV/0!"},{"$error":"#DIV/0!"},{"$error":"#DIV/0!"},{"$error":"#DIV/0!"},{"$error":"#DIV/0!"},{"$error":"#DIV/0!"},{"$error":"#DIV/0!"},{"$error":"#DIV/0!"},{"$error":"#DIV/0!"},0]
[null,null,null,13,"Return",{"$error":"#DIV/0!"},{"$error":"#DIV/0!"},{"$error":"#DIV/0!"},{"$error":"#DIV/0!"},{"$error":"#DIV/0!"},{"$error":"#DIV/0!"},{"$error":"#DIV/0!"},{"$error":"#DIV/0!"},{"$error":"#DIV/0!"},0]
[null,null,null,14,"Equity issuance cost",{"$error":"#DIV/0!"},{"$error":"#DIV/0!"},{"$error":"#DIV/0!"},{"$error":"#DIV/0!"},{"$error":"#DIV/0!"},{"$error":"#DIV/0!"},{"$error":"#DIV/0!"},{"$error":"#DIV/0!"},{"$error":"#DIV/0!"},0]
[null,null,null,15,"Additional income",{"$error":"#DIV/0!"},{"$error":"#DIV/0!"},{"$error":"#DIV/0!"},{"$error":"#DIV/0!"},{"$error":"#DIV/0!"},{"$error":"#DIV/0!"},{"$error":"#DIV/0!"},{"$error":"#DIV/0!"},{"$error":"#DIV/0!"},0]
[null,null,null,16,"Core DARTs",0,0,0,0,0,0,0,0,0,0]
[null,null,null,17,"Tax allowance",{"$error":"#DIV/0!"},{"$error":"#DIV/0!"},{"$error":"#DIV/0!"},{"$error":"#DIV/0!"},{"$error":"#DIV/0!"},{"$error":"#DIV/0!"},{"$error":"#DIV/0!"},{"$error":"#DIV/0!"},{"$error":"#DIV/0!"},0]
[null,null,null,null,"Recalculated allowances"]
[null,null,null,18,"Fast pot expenditure",0,0,0,0,0,0,0,0,0,0]
[null,null,null,19,"Non-controllable opex ",0,0,0,0,0,0,0,0,0,0]
[null,null,null,20,"RAV depreciation",{"$error":"#DIV/0!"},{"$error":"#DIV/0!"},{"$error":"#DIV/0!"},{"$error":"#DIV/0!"},{"$error":"#DIV/0!"},{"$error":"#DIV/0!"},{"$error":"#DIV/0!"},{"$error":"#DIV/0!"},{"$error":"#DIV/0!"},0]
[null,null,null,21,"Return",{"$error":"#DIV/0!"},{"$error":"#DIV/0!"},{"$error":"#DIV/0!"},{"$error":"#DIV/0!"},{"$error":"#DIV/0!"},{"$error":"#DIV/0!"},{"$error":"#DIV/0!"},{"$error":"#DIV/0!"},{"$error":"#DIV/0!"},0]
[null,null,null,22,"Equity issuance cost",{"$error":"#DIV/0!"},{"$error":"#DIV/0!"},{"$error":"#DIV/0!"},{"$error":"#DIV/0!"},{"$error":"#DIV/0!"},{"$error":"#DIV/0!"},{"$error":"#DIV/0!"},{"$error":"#DIV/0!"},{"$error":"#DIV/0!"},0]
[null,null,null,23,"Additional income",{"$error":"#DIV/0!"},{"$error":"#DIV/0!"},{"$error":"#DIV/0!"},{"$error":"#DIV/0!"},{"$error":"#DIV/0!"},{"$error":"#DIV/0!"},{"$error":"#DIV/0!"},{"$error":"#DIV/0!"},{"$error":"#DIV/0!"},0]
[null,null,null,24,"Core DARTs",0,0,0,0,0,0,0,0,0,0]
[null,null,null,25,"Tax allowance",{"$error":"#DIV/0!"},{"$error":"#DIV/0!"},{"$error":"#DIV/0!"},{"$error":"#DIV/0!"},{"$error":"#DIV/0!"},{"$error":"#DIV/0!"},{"$error":"#DIV/0!"},{"$error":"#DIV/0!"},{"$error":"#DIV/0!"},0]
[null,null,null,null,"Price Control Revenue"]
[null,null,null,26,"Final proposals base revenue",{"$error":"#DIV/0!"},{"$error":"#DIV/0!"},{"$error":"#DIV/0!"},{"$error":"#DIV/0!"},{"$error":"#DIV/0!"},{"$error":"#DIV/0!"},{"$error":"#DIV/0!"},{"$error":"#DIV/0!"},{"$error":"#DIV/0!"},0]
[null,null,null,27,"MOD",0,0,0,0,0,0,0,0,0,0]
[null,null,null,28,"Base revenue",{"$error":"#DIV/0!"},{"$error":"#DIV/0!"},{"$error":"#DIV/0!"},{"$error":"#DIV/0!"},{"$error":"#DIV/0!"},{"$error":"#DIV/0!"},{"$error":"#DIV/0!"},{"$error":"#DIV/0!"},{"$error":"#DIV/0!"},0]
[null,null,null,29,"Not Used"]
[null,null,null,30,"Not Used"]
[null,null,null,31,"ES7 (Miscellaneous) revenue",0,0,0,0,0,0,0,0,0,0]
[null,null,null,32,"Total revenue",{"$error":"#DIV/0!"},{"$error":"#DIV/0!"},{"$error":"#DIV/0!"},{"$error":"#DIV/0!"},{"$error":"#DIV/0!"},{"$error":"#DIV/0!"},{"$error":"#DIV/0!"},{"$error":"#DIV/0!"},{"$error":"#DIV/0!"},0]
[null,null,null,null,"Recalculated base revenue"]
[null,null,null,33,"Recalculated base revenue",{"$error":"#DIV/0!"},{"$error":"#DIV/0!"},{"$error":"#DIV/0!"},{"$error":"#DIV/0!"},{"$error":"#DIV/0!"},{"$error":"#DIV/0!"},{"$error":"#DIV/0!"},{"$error":"#DIV/0!"},{"$error":"#DIV/0!"},0]
[null,null,null,34,"Previous year recalculated base revenue",0,0,0,0,0,0,0,0,0,0]
[null,null,null,null,"Recorded recalculated base revenue"]
[null,null,null,35,"2016-03-31",{"$error":"#DIV/0!"},{"$error":"#DIV/0!"},{"$error":"#DIV/0!"},{"$error":"#DIV/0!"},{"$error":"#DIV/0!"},{"$error":"#DIV/0!"},{"$error":"#DIV/0!"},{"$error":"#DIV/0!"},{"$error":"#DIV/0!"},0]
[null,null,null,36,"2017-03-31","","","","","","","","",0,0]
[null,null,null,37,"2018-03-31","","","","","","","","",0,0]
[null,null,null,38,"2019-03-31","","","","","","","","",0,0]
[null,null,null,39,"2020-03-31","","","","","","","","",0,0]
[null,null,null,40,"2021-03-31","","","","","","","","",0,0]
[null,null,null,41,"2022-03-31","","","","","","","","",0,0]
[null,null,null,42,"2023-03-31","","","","","","","","",0,0]
[null,null,null,null,"Recorded MOD"]
[null,null,null,43,"2016-03-31",0,0,0,0,0,0,0,0,0]
[null,null,null,44,"2017-03-31","","","","","","","","",0]
[null,null,null,45,"2018-03-31","","","","","","","","",0]
[null,null,null,46,"2019-03-31","","","","","","","","",0]
[null,null,null,47,"2020-03-31","","","","","","","","",0]
[null,null,null,48,"2021-03-31","","","","","","","","",0]
[null,null,null,49,"2022-03-31","","","","","","","","",0]
[null,null,null,50,"2023-03-31","","","","","","","","",0]
[null,null,null,null,"Inputs to RoRE"]
[null,null,null,51,"Average RAV",{"$error":"#DIV/0!"},{"$error":"#DIV/0!"},{"$error":"#DIV/0!"},{"$error":"#DIV/0!"},{"$error":"#DIV/0!"},{"$error":"#DIV/0!"},{"$error":"#DIV/0!"},{"$error":"#DIV/0!"},{"$error":"#DIV/0!"},0]
[null,null,null,52,"Gearing",0,0,0,0,0,0,0,0,{"$error":"#DIV/0!"},0]
[null,null,null,53,"Regulated equity",{"$error":"#DIV/0!"},{"$error":"#DIV/0!"},{"$error":"#DIV/0!"},{"$error":"#DIV/0!"},{"$error":"#DIV/0!"},{"$error":"#DIV/0!"},{"$error":"#DIV/0!"},{"$error":"#DIV/0!"},{"$error":"#DIV/0!"},0]
[null,null,null,54,"Regulated debt return",{"$error":"#DIV/0!"},{"$error":"#DIV/0!"},{"$error":"#DIV/0!"},{"$error":"#DIV/0!"},{"$error":"#DIV/0!"},{"$error":"#DIV/0!"},{"$error":"#DIV/0!"},{"$error":"#DIV/0!"},{"$error":"#DIV/0!"},0]
[null,null,null,55,"Allowed repex",0,0,0,0,0,0,0,0,0,0]
[]
[]
[]
[]
[]
[null,null,"Values for SPD: OWN_Best (M1a)"]
[]
[]
[null,null,null,null,"Company","Calculated for MOD year ending",null,"File"]
[null,null,null,null,"SPD: OWN_Best (M1a)","2016-03-31",null,"LiMo ED C1.93b_WPD_DNO.xlsm"]
[]
[null,null,null,null,"PCFM year ending","2016-03-31","2017-03-31","2018-03-31","2019-03-31","2020-03-31","2021-03-31","2022-03-31","2023-03-31","RIIO Total","RIIO average"]
[null,null,null,null,"Price base","£m 12/13 prices","£m 12/13 prices","£m 12/13 prices","£m 12/13 prices","£m 12/13 prices","£m 12/13 prices","£m 12/13 prices","£m 12/13 prices","£m 12/13 prices","£m 12/13 prices"]
[null,null,null,null,"Totex"]
[null,null,null,1,"Slow pot",0,0,0,0,0,0,0,0,0,0]
[null,null,null,2,"Fast pot",0,0,0,0,0,0,0,0,0,0]
[null,null,null,3,"Post-TIM totex allowance",0,0,0,0,0,0,0,0,0,0]
[null,null,null,null,"Regulatory Asset Value (RAV)"]
[null,null,null,4,"Opening asset value (before transfers)",{"$error":"#DIV/0!"},{"$error":"#DIV/0!"},{"$error":"#DIV/0!"},{"$error":"#DIV/0!"},{"$error":"#DIV/0!"},{"$error":"#DIV/0!"},{"$error":"#DIV/0!"},{"$error":"#DIV/0!"},null,0]
[null,null,null,5,"Transfers",0,0,0,0,0,0,0,0,0,0]
[null,null,null,6,"Opening asset value (after transfers)",{"$error":"#DIV/0!"},{"$error":"#DIV/0!"},{"$error":"#DIV/0!"},{"$error":"#DIV/0!"},{"$error":"#DIV/0!"},{"$error":"#DIV/0!"},{"$error":"#DIV/0!"},{"$error":"#DIV/0!"},null,0]
[null,null,null,7,"RAV additions (after disposals)",0,0,0,0,0,0,0,0,0,0]
[null,null,null,8,"Depreciation",{"$error":"#DIV/0!"},{"$error":"#DIV/0!"},{"$error":"#DIV/0!"},{"$error":"#DIV/0!"},{"$error":"#DIV/0!"},{"$error":"#DIV/0!"},{"$error":"#DIV/0!"},{"$error":"#DIV/0!"},{"$error":"#DIV/0!"},0]
[null,null,null,9,"Closing asset value",{"$error":"#DIV/0!"},{"$error":"#DIV/0!"},{"$error":"#DIV/0!"},{"$error":"#DIV/0!"},{"$error":"#DIV/0!"},{"$error":"#DIV/0!"},{"$error":"#DIV/0!"},{"$error":"#DIV/0!"},null,0]
[null,null,null,null,"Final Proposals allowances"]
[null,null,null,10,"Fast pot expenditure",0,0,0,0,0,0,0,0,0,0]
[null,null,null,11,"Non-controllable opex ",0,0,0,0,0,0,0,0,0,0]
[null,null,null,12,"RAV depreciation",{"$error":"#DIV/0!"},{"$error":"#DIV/0!"},{"$error":"#DIV/0!"},{"$error":"#DIV/0!"},{"$error":"#DIV/0!"},{"$error":"#DIV/0!"},{"$error":"#DIV/0!"},{"$error":"#DIV/0!"},{"$error":"#DIV/0!"},0]
[null,null,null,13,"Return",{"$error":"#DIV/0!"},{"$error":"#DIV/0!"},{"$error":"#DIV/0!"},{"$error":"#DIV/0!"},{"$error":"#DIV/0!"},{"$error":"#DIV/0!"},{"$error":"#DIV/0!"},{"$error":"#DIV/0!"},{"$error":"#DIV/0!"},0]
[null,null,null,14,"Equity issuance cost",{"$error":"#DIV/0!"},{"$error":"#DIV/0!"},{"$error":"#DIV/0!"},{"$error":"#DIV/0!"},{"$error":"#DIV/0!"},{"$error":"#DIV/0!"},{"$error":"#DIV/0!"},{"$error":"#DIV/0!"},{"$error":"#DIV/0!"},0]
[null,null,null,15,"Additional income",{"$error":"#DIV/0!"},{"$error":"#DIV/0!"},{"$error":"#DIV/0!"},{"$error":"#DIV/0!"},{"$error":"#DIV/0!"},{"$error":"#DIV/0!"},{"$error":"#DIV/0!"},{"$error":"#DIV/0!"},{"$error":"#DIV/0!"},0]
[null,null,null,16,"Core DARTs",0,0,0,0,0,0,0,0,0,0]
[null,null,null,17,"Tax allowance",{"$error":"#DIV/0!"},{"$error":"#DIV/0!"},{"$error":"#DIV/0!"},{"$error":"#DIV/0!"},{"$error":"#DIV/0!"},{"$error":"#DIV/0!"},{"$error":"#DIV/0!"},{"$error":"#DIV/0!"},{"$error":"#DIV/0!"},0]
[null,null,null,null,"Recalculated allowances"]
[null,null,null,18,"Fast pot expenditure",0,0,0,0,0,0,0,0,0,0]
[null,null,null,19,"Non-controllable opex ",0,0,0,0,0,0,0,0,0,0]
[null,null,null,20,"RAV depreciation",{"$error":"#DIV/0!"},{"$error":"#DIV/0!"},{"$error":"#DIV/0!"},{"$error":"#DIV/0!"},{"$error":"#DIV/0!"},{"$error":"#DIV/0!"},{"$error":"#DIV/0!"},{"$error":"#DIV/0!"},{"$error":"#DIV/0!"},0]
[null,null,null,21,"Return",{"$error":"#DIV/0!"},{"$error":"#DIV/0!"},{"$error":"#DIV/0!"},{"$error":"#DIV/0!"},{"$error":"#DIV/0!"},{"$error":"#DIV/0!"},{"$error":"#DIV/0!"},{"$error":"#DIV/0!"},{"$error":"#DIV/0!"},0]
[null,null,null,22,"Equity issuance cost",{"$error":"#DIV/0!"},{"$error":"#DIV/0!"},{"$error":"#DIV/0!"},{"$error":"#DIV/0!"},{"$error":"#DIV/0!"},{"$error":"#DIV/0!"},{"$error":"#DIV/0!"},{"$error":"#DIV/0!"},{"$error":"#DIV/0!"},0]
[null,null,null,23,"Additional income",{"$error":"#DIV/0!"},{"$error":"#DIV/0!"},{"$error":"#DIV/0!"},{"$error":"#DIV/0!"},{"$error":"#DIV/0!"},{"$error":"#DIV/0!"},{"$error":"#DIV/0!"},{"$error":"#DIV/0!"},{"$error":"#DIV/0!"},0]
[null,null,null,24,"Core DARTs",0,0,0,0,0,0,0,0,0,0]
[null,null,null,25,"Tax allowance",{"$error":"#DIV/0!"},{"$error":"#DIV/0!"},{"$error":"#DIV/0!"},{"$error":"#DIV/0!"},{"$error":"#DIV/0!"},{"$error":"#DIV/0!"},{"$error":"#DIV/0!"},{"$error":"#DIV/0!"},{"$error":"#DIV/0!"},0]
[null,null,null,null,"Price Control Revenue"]
[null,null,null,26,"Final proposals base revenue",{"$error":"#DIV/0!"},{"$error":"#DIV/0!"},{"$error":"#DIV/0!"},{"$error":"#DIV/0!"},{"$error":"#DIV/0!"},{"$error":"#DIV/0!"},{"$error":"#DIV/0!"},{"$error":"#DIV/0!"},{"$error":"#DIV/0!"},0]
[null,null,null,27,"MOD",0,0,0,0,0,0,0,0,0,0]
[null,null,null,28,"Base revenue",{"$error":"#DIV/0!"},{"$error":"#DIV/0!"},{"$error":"#DIV/0!"},{"$error":"#DIV/0!"},{"$error":"#DIV/0!"},{"$error":"#DIV/0!"},{"$error":"#DIV/0!"},{"$error":"#DIV/0!"},{"$error":"#DIV/0!"},0]
[null,null,null,29,"Not Used"]
[null,null,null,30,"Not Used"]
[null,null,null,31,"ES7 (Miscellaneous) revenue",0,0,0,0,0,0,0,0,0,0]
[null,null,null,32,"Total revenue",{"$error":"#DIV/0!"},{"$error":"#DIV/0!"},{"$error":"#DIV/0!"},{"$error":"#DIV/0!"},{"$error":"#DIV/0!"},{"$error":"#DIV/0!"},{"$error":"#DIV/0!"},{"$error":"#DIV/0!"},{"$error":"#DIV/0!"},0]
[null,null,null,null,"Recalculated base revenue"]
[null,null,null,33,"Recalculated base revenue",{"$error":"#DIV/0!"},{"$error":"#DIV/0!"},{"$error":"#DIV/0!"},{"$error":"#DIV/0!"},{"$error":"#DIV/0!"},{"$error":"#DIV/0!"},{"$error":"#DIV/0!"},{"$error":"#DIV/0!"},{"$error":"#DIV/0!"},0]
[null,null,null,34,"Previous year recalculated base revenue",0,0,0,0,0,0,0,0,0,0]
[null,null,null,null,"Recorded recalculated base revenue"]
[null,null,null,35,"2016-03-31",{"$error":"#DIV/0!"},{"$error":"#DIV/0!"},{"$error":"#DIV/0!"},{"$error":"#DIV/0!"},{"$error":"#DIV/0!"},{"$error":"#DIV/0!"},{"$error":"#DIV/0!"},{"$error":"#DIV/0!"},{"$error":"#DIV/0!"},0]
[null,null,null,36,"2017-03-31","","","","","","","","",0,0]
[null,null,null,37,"2018-03-31","","","","","","","","",0,0]
[null,null,null,38,"2019-03-31","","","","","","","","",0,0]
[null,null,null,39,"2020-03-31","","","","","","","","",0,0]
[null,null,null,40,"2021-03-31","","","","","","","","",0,0]
[null,null,null,41,"2022-03-31","","","","","","","","",0,0]
[null,null,null,42,"2023-03-31","","","","","","","","",0,0]
[null,null,null,null,"Recorded MOD"]
[null,null,null,43,"2016-03-31",0,0,0,0,0,0,0,0,0]
[null,null,null,44,"2017-03-31","","","","","","","","",0]
[null,null,null,45,"2018-03-31","","","","","","","","",0]
[null,null,null,46,"2019-03-31","","","","","","","","",0]
[null,null,null,47,"2020-03-31","","","","","","","","",0]
[null,null,null,48,"2021-03-31","","","","","","","","",0]
[null,null,null,49,"2022-03-31","","","","","","","","",0]
[null,null,null,50,"2023-03-31","","","","","","","","",0]
[null,null,null,null,"Inputs to RoRE"]
[null,null,null,51,"Average RAV",{"$error":"#DIV/0!"},{"$error":"#DIV/0!"},{"$error":"#DIV/0!"},{"$error":"#DIV/0!"},{"$error":"#DIV/0!"},{"$error":"#DIV/0!"},{"$error":"#DIV/0!"},{"$error":"#DIV/0!"},{"$error":"#DIV/0!"},0]
[null,null,null,52,"Gearing",0,0,0,0,0,0,0,0,{"$error":"#DIV/0!"},0]
[null,null,null,53,"Regulated equity",{"$error":"#DIV/0!"},{"$error":"#DIV/0!"},{"$error":"#DIV/0!"},{"$error":"#DIV/0!"},{"$error":"#DIV/0!"},{"$error":"#DIV/0!"},{"$error":"#DIV/0!"},{"$error":"#DIV/0!"},{"$error":"#DIV/0!"},0]
[null,null,null,54,"Regulated debt return",{"$error":"#DIV/0!"},{"$error":"#DIV/0!"},{"$error":"#DIV/0!"},{"$error":"#DIV/0!"},{"$error":"#DIV/0!"},{"$error":"#DIV/0!"},{"$error":"#DIV/0!"},{"$error":"#DIV/0!"},{"$error":"#DIV/0!"},0]
[null,null,null,55,"Allowed repex",0,0,0,0,0,0,0,0,0,0]
[]
[]
[]
[]
[]
[null,null,"Values for SPMW: OWN_Best (M1a)"]
[]
[]
[null,null,null,null,"Company","Calculated for MOD year ending",null,"File"]
[null,null,null,null,"SPMW: OWN_Best (M1a)","2016-03-31",null,"LiMo ED C1.93b_WPD_DNO.xlsm"]
[]
[null,null,null,null,"PCFM year ending","2016-03-31","2017-03-31","2018-03-31","2019-03-31","2020-03-31","2021-03-31","2022-03-31","2023-03-31","RIIO Total","RIIO average"]
[null,null,null,null,"Price base","£m 12/13 prices","£m 12/13 prices","£m 12/13 prices","£m 12/13 prices","£m 12/13 prices","£m 12/13 prices","£m 12/13 prices","£m 12/13 prices","£m 12/13 prices","£m 12/13 prices"]
[null,null,null,null,"Totex"]
[null,null,null,1,"Slow pot",0,0,0,0,0,0,0,0,0,0]
[null,null,null,2,"Fast pot",0,0,0,0,0,0,0,0,0,0]
[null,null,null,3,"Post-TIM totex allowance",0,0,0,0,0,0,0,0,0,0]
[null,null,null,null,"Regulatory Asset Value (RAV)"]
[null,null,null,4,"Opening asset value (before transfers)",{"$error":"#DIV/0!"},{"$error":"#DIV/0!"},{"$error":"#DIV/0!"},{"$error":"#DIV/0!"},{"$error":"#DIV/0!"},{"$error":"#DIV/0!"},{"$error":"#DIV/0!"},{"$error":"#DIV/0!"},null,0]
[null,null,null,5,"Transfers",0,0,0,0,0,0,0,0,0,0]
[null,null,null,6,"Opening asset value (after transfers)",{"$error":"#DIV/0!"},{"$error":"#DIV/0!"},{"$error":"#DIV/0!"},{"$error":"#DIV/0!"},{"$error":"#DIV/0!"},{"$error":"#DIV/0!"},{"$error":"#DIV/0!"},{"$error":"#DIV/0!"},null,0]
[null,null,null,7,"RAV additions (after disposals)",0,0,0,0,0,0,0,0,0,0]
[null,null,null,8,"Depreciation",{"$error":"#DIV/0!"},{"$error":"#DIV/0!"},{"$error":"#DIV/0!"},{"$error":"#DIV/0!"},{"$error":"#DIV/0!"},{"$error":"#DIV/0!"},{"$error":"#DIV/0!"},{"$error":"#DIV/0!"},{"$error":"#DIV/0!"},0]
[null,null,null,9,"Closing asset value",{"$error":"#DIV/0!"},{"$error":"#DIV/0!"},{"$error":"#DIV/0!"},{"$error":"#DIV/0!"},{"$error":"#DIV/0!"},{"$error":"#DIV/0!"},{"$error":"#DIV/0!"},{"$error":"#DIV/0!"},null,0]
[null,null,null,null,"Final Proposals allowances"]
[null,null,null,10,"Fast pot expenditure",0,0,0,0,0,0,0,0,0,0]
[null,null,null,11,"Non-controllable opex ",0,0,0,0,0,0,0,0,0,0]
[null,null,null,12,"RAV depreciation",{"$error":"#DIV/0!"},{"$error":"#DIV/0!"},{"$error":"#DIV/0!"},{"$error":"#DIV/0!"},{"$error":"#DIV/0!"},{"$error":"#DIV/0!"},{"$error":"#DIV/0!"},{"$error":"#DIV/0!"},{"$error":"#DIV/0!"},0]
[null,null,null,13,"Return",{"$error":"#DIV/0!"},{"$error":"#DIV/0!"},{"$error":"#DIV/0!"},{"$error":"#DIV/0!"},{"$error":"#DIV/0!"},{"$error":"#DIV/0!"},{"$error":"#DIV/0!"},{"$error":"#DIV/0!"},{"$error":"#DIV/0!"},0]
[null,null,null,14,"Equity issuance cost",{"$error":"#DIV/0!"},{"$error":"#DIV/0!"},{"$error":"#DIV/0!"},{"$error":"#DIV/0!"},{"$error":"#DIV/0!"},{"$error":"#DIV/0!"},{"$error":"#DIV/0!"},{"$error":"#DIV/0!"},{"$error":"#DIV/0!"},0]
[null,null,null,15,"Additional income",{"$error":"#DIV/0!"},{"$error":"#DIV/0!"},{"$error":"#DIV/0!"},{"$error":"#DIV/0!"},{"$error":"#DIV/0!"},{"$error":"#DIV/0!"},{"$error":"#DIV/0!"},{"$error":"#DIV/0!"},{"$error":"#DIV/0!"},0]
[null,null,null,16,"Core DARTs",0,0,0,0,0,0,0,0,0,0]
[null,null,null,17,"Tax allowance",{"$error":"#DIV/0!"},{"$error":"#DIV/0!"},{"$error":"#DIV/0!"},{"$error":"#DIV/0!"},{"$error":"#DIV/0!"},{"$error":"#DIV/0!"},{"$error":"#DIV/0!"},{"$error":"#DIV/0!"},{"$error":"#DIV/0!"},0]
[null,null,null,null,"Recalculated allowances"]
[null,null,null,18,"Fast pot expenditure",0,0,0,0,0,0,0,0,0,0]
[null,null,null,19,"Non-controllable opex ",0,0,0,0,0,0,0,0,0,0]
[null,null,null,20,"RAV depreciation",{"$error":"#DIV/0!"},{"$error":"#DIV/0!"},{"$error":"#DIV/0!"},{"$error":"#DIV/0!"},{"$error":"#DIV/0!"},{"$error":"#DIV/0!"},{"$error":"#DIV/0!"},{"$error":"#DIV/0!"},{"$error":"#DIV/0!"},0]
[null,null,null,21,"Return",{"$error":"#DIV/0!"},{"$error":"#DIV/0!"},{"$error":"#DIV/0!"},{"$error":"#DIV/0!"},{"$error":"#DIV/0!"},{"$error":"#DIV/0!"},{"$error":"#DIV/0!"},{"$error":"#DIV/0!"},{"$error":"#DIV/0!"},0]
[null,null,null,22,"Equity issuance cost",{"$error":"#DIV/0!"},{"$error":"#DIV/0!"},{"$error":"#DIV/0!"},{"$error":"#DIV/0!"},{"$error":"#DIV/0!"},{"$error":"#DIV/0!"},{"$error":"#DIV/0!"},{"$error":"#DIV/0!"},{"$error":"#DIV/0!"},0]
[null,null,null,23,"Additional income",{"$error":"#DIV/0!"},{"$error":"#DIV/0!"},{"$error":"#DIV/0!"},{"$error":"#DIV/0!"},{"$error":"#DIV/0!"},{"$error":"#DIV/0!"},{"$error":"#DIV/0!"},{"$error":"#DIV/0!"},{"$error":"#DIV/0!"},0]
[null,null,null,24,"Core DARTs",0,0,0,0,0,0,0,0,0,0]
[null,null,null,25,"Tax allowance",{"$error":"#DIV/0!"},{"$error":"#DIV/0!"},{"$error":"#DIV/0!"},{"$error":"#DIV/0!"},{"$error":"#DIV/0!"},{"$error":"#DIV/0!"},{"$error":"#DIV/0!"},{"$error":"#DIV/0!"},{"$error":"#DIV/0!"},0]
[null,null,null,null,"Price Control Revenue"]
[null,null,null,26,"Final proposals base revenue",{"$error":"#DIV/0!"},{"$error":"#DIV/0!"},{"$error":"#DIV/0!"},{"$error":"#DIV/0!"},{"$error":"#DIV/0!"},{"$error":"#DIV/0!"},{"$error":"#DIV/0!"},{"$error":"#DIV/0!"},{"$error":"#DIV/0!"},0]
[null,null,null,27,"MOD",0,0,0,0,0,0,0,0,0,0]
[null,null,null,28,"Base revenue",{"$error":"#DIV/0!"},{"$error":"#DIV/0!"},{"$error":"#DIV/0!"},{"$error":"#DIV/0!"},{"$error":"#DIV/0!"},{"$error":"#DIV/0!"},{"$error":"#DIV/0!"},{"$error":"#DIV/0!"},{"$error":"#DIV/0!"},0]
[null,null,null,29,"Not Used"]
[null,null,null,30,"Not Used"]
[null,null,null,31,"ES7 (Miscellaneous) revenue",0,0,0,0,0,0,0,0,0,0]
[null,null,null,32,"Total revenue",{"$error":"#DIV/0!"},{"$error":"#DIV/0!"},{"$error":"#DIV/0!"},{"$error":"#DIV/0!"},{"$error":"#DIV/0!"},{"$error":"#DIV/0!"},{"$error":"#DIV/0!"},{"$error":"#DIV/0!"},{"$error":"#DIV/0!"},0]
[null,null,null,null,"Recalculated base revenue"]
[null,null,null,33,"Recalculated base revenue",{"$error":"#DIV/0!"},{"$error":"#DIV/0!"},{"$error":"#DIV/0!"},{"$error":"#DIV/0!"},{"$error":"#DIV/0!"},{"$error":"#DIV/0!"},{"$error":"#DIV/0!"},{"$error":"#DIV/0!"},{"$error":"#DIV/0!"},0]
[null,null,null,34,"Previous year recalculated base revenue",0,0,0,0,0,0,0,0,0,0]
[null,null,null,null,"Recorded recalculated base revenue"]
[null,null,null,35,"2016-03-31",{"$error":"#DIV/0!"},{"$error":"#DIV/0!"},{"$error":"#DIV/0!"},{"$error":"#DIV/0!"},{"$error":"#DIV/0!"},{"$error":"#DIV/0!"},{"$error":"#DIV/0!"},{"$error":"#DIV/0!"},{"$error":"#DIV/0!"},0]
[null,null,null,36,"2017-03-31","","","","","","","","",0,0]
[null,null,null,37,"2018-03-31","","","","","","","","",0,0]
[null,null,null,38,"2019-03-31","","","","","","","","",0,0]
[null,null,null,39,"2020-03-31","","","","","","","","",0,0]
[null,null,null,40,"2021-03-31","","","","","","","","",0,0]
[null,null,null,41,"2022-03-31","","","","","","","","",0,0]
[null,null,null,42,"2023-03-31","","","","","","","","",0,0]
[null,null,null,null,"Recorded MOD"]
[null,null,null,43,"2016-03-31",0,0,0,0,0,0,0,0,0]
[null,null,null,44,"2017-03-31","","","","","","","","",0]
[null,null,null,45,"2018-03-31","","","","","","","","",0]
[null,null,null,46,"2019-03-31","","","","","","","","",0]
[null,null,null,47,"2020-03-31","","","","","","","","",0]
[null,null,null,48,"2021-03-31","","","","","","","","",0]
[null,null,null,49,"2022-03-31","","","","","","","","",0]
[null,null,null,50,"2023-03-31","","","","","","","","",0]
[null,null,null,null,"Inputs to RoRE"]
[null,null,null,51,"Average RAV",{"$error":"#DIV/0!"},{"$error":"#DIV/0!"},{"$error":"#DIV/0!"},{"$error":"#DIV/0!"},{"$error":"#DIV/0!"},{"$error":"#DIV/0!"},{"$error":"#DIV/0!"},{"$error":"#DIV/0!"},{"$error":"#DIV/0!"},0]
[null,null,null,52,"Gearing",0,0,0,0,0,0,0,0,{"$error":"#DIV/0!"},0]
[null,null,null,53,"Regulated equity",{"$error":"#DIV/0!"},{"$error":"#DIV/0!"},{"$error":"#DIV/0!"},{"$error":"#DIV/0!"},{"$error":"#DIV/0!"},{"$error":"#DIV/0!"},{"$error":"#DIV/0!"},{"$error":"#DIV/0!"},{"$error":"#DIV/0!"},0]
[null,null,null,54,"Regulated debt return",{"$error":"#DIV/0!"},{"$error":"#DIV/0!"},{"$error":"#DIV/0!"},{"$error":"#DIV/0!"},{"$error":"#DIV/0!"},{"$error":"#DIV/0!"},{"$error":"#DIV/0!"},{"$error":"#DIV/0!"},{"$error":"#DIV/0!"},0]
[null,null,null,55,"Allowed repex",0,0,0,0,0,0,0,0,0,0]
[]
[]
[]
[]
[]
[null,null,"Values for SSEH: OWN_Best (M1a)"]
[]
[]
[null,null,null,null,"Company","Calculated for MOD year ending",null,"File"]
[null,null,null,null,"SSEH: OWN_Best (M1a)","2016-03-31",null,"LiMo ED C1.93b_WPD_DNO.xlsm"]
[]
[null,null,null,null,"PCFM year ending","2016-03-31","2017-03-31","2018-03-31","2019-03-31","2020-03-31","2021-03-31","2022-03-31","2023-03-31","RIIO Total","RIIO average"]
[null,null,null,null,"Price base","£m 12/13 prices","£m 12/13 prices","£m 12/13 prices","£m 12/13 prices","£m 12/13 prices","£m 12/13 prices","£m 12/13 prices","£m 12/13 prices","£m 12/13 prices","£m 12/13 prices"]
[null,null,null,null,"Totex"]
[null,null,null,1,"Slow pot",0,0,0,0,0,0,0,0,0,0]
[null,null,null,2,"Fast pot",0,0,0,0,0,0,0,0,0,0]
[null,null,null,3,"Post-TIM totex allowance",0,0,0,0,0,0,0,0,0,0]
[null,null,null,null,"Regulatory Asset Value (RAV)"]
[null,null,null,4,"Opening asset value (before transfers)",{"$error":"#DIV/0!"},{"$error":"#DIV/0!"},{"$error":"#DIV/0!"},{"$error":"#DIV/0!"},{"$error":"#DIV/0!"},{"$error":"#DIV/0!"},{"$error":"#DIV/0!"},{"$error":"#DIV/0!"},null,0]
[null,null,null,5,"Transfers",0,0,0,0,0,0,0,0,0,0]
[null,null,null,6,"Opening asset value (after transfers)",{"$error":"#DIV/0!"},{"$error":"#DIV/0!"},{"$error":"#DIV/0!"},{"$error":"#DIV/0!"},{"$error":"#DIV/0!"},{"$error":"#DIV/0!"},{"$error":"#DIV/0!"},{"$error":"#DIV/0!"},null,0]
[null,null,null,7,"RAV additions (after disposals)",0,0,0,0,0,0,0,0,0,0]
[null,null,null,8,"Depreciation",{"$error":"#DIV/0!"},{"$error":"#DIV/0!"},{"$error":"#DIV/0!"},{"$error":"#DIV/0!"},{"$error":"#DIV/0!"},{"$error":"#DIV/0!"},{"$error":"#DIV/0!"},{"$error":"#DIV/0!"},{"$error":"#DIV/0!"},0]
[null,null,null,9,"Closing asset value",{"$error":"#DIV/0!"},{"$error":"#DIV/0!"},{"$error":"#DIV/0!"},{"$error":"#DIV/0!"},{"$error":"#DIV/0!"},{"$error":"#DIV/0!"},{"$error":"#DIV/0!"},{"$error":"#DIV/0!"},null,0]
[null,null,null,null,"Final Proposals allowances"]
[null,null,null,10,"Fast pot expenditure",0,0,0,0,0,0,0,0,0,0]
[null,null,null,11,"Non-controllable opex ",0,0,0,0,0,0,0,0,0,0]
[null,null,null,12,"RAV depreciation",{"$error":"#DIV/0!"},{"$error":"#DIV/0!"},{"$error":"#DIV/0!"},{"$error":"#DIV/0!"},{"$error":"#DIV/0!"},{"$error":"#DIV/0!"},{"$error":"#DIV/0!"},{"$error":"#DIV/0!"},{"$error":"#DIV/0!"},0]
[null,null,null,13,"Return",{"$error":"#DIV/0!"},{"$error":"#DIV/0!"},{"$error":"#DIV/0!"},{"$error":"#DIV/0!"},{"$error":"#DIV/0!"},{"$error":"#DIV/0!"},{"$error":"#DIV/0!"},{"$error":"#DIV/0!"},{"$error":"#DIV/0!"},0]
[null,null,null,14,"Equity issuance cost",{"$error":"#DIV/0!"},{"$error":"#DIV/0!"},{"$error":"#DIV/0!"},{"$error":"#DIV/0!"},{"$error":"#DIV/0!"},{"$error":"#DIV/0!"},{"$error":"#DIV/0!"},{"$error":"#DIV/0!"},{"$error":"#DIV/0!"},0]
[null,null,null,15,"Additional income",{"$error":"#DIV/0!"},{"$error":"#DIV/0!"},{"$error":"#DIV/0!"},{"$error":"#DIV/0!"},{"$error":"#DIV/0!"},{"$error":"#DIV/0!"},{"$error":"#DIV/0!"},{"$error":"#DIV/0!"},{"$error":"#DIV/0!"},0]
[null,null,null,16,"Core DARTs",0,0,0,0,0,0,0,0,0,0]
[null,null,null,17,"Tax allowance",{"$error":"#DIV/0!"},{"$error":"#DIV/0!"},{"$error":"#DIV/0!"},{"$error":"#DIV/0!"},{"$error":"#DIV/0!"},{"$error":"#DIV/0!"},{"$error":"#DIV/0!"},{"$error":"#DIV/0!"},{"$error":"#DIV/0!"},0]
[null,null,null,null,"Recalculated allowances"]
[null,null,null,18,"Fast pot expenditure",0,0,0,0,0,0,0,0,0,0]
[null,null,null,19,"Non-controllable opex ",0,0,0,0,0,0,0,0,0,0]
[null,null,null,20,"RAV depreciation",{"$error":"#DIV/0!"},{"$error":"#DIV/0!"},{"$error":"#DIV/0!"},{"$error":"#DIV/0!"},{"$error":"#DIV/0!"},{"$error":"#DIV/0!"},{"$error":"#DIV/0!"},{"$error":"#DIV/0!"},{"$error":"#DIV/0!"},0]
[null,null,null,21,"Return",{"$error":"#DIV/0!"},{"$error":"#DIV/0!"},{"$error":"#DIV/0!"},{"$error":"#DIV/0!"},{"$error":"#DIV/0!"},{"$error":"#DIV/0!"},{"$error":"#DIV/0!"},{"$error":"#DIV/0!"},{"$error":"#DIV/0!"},0]
[null,null,null,22,"Equity issuance cost",{"$error":"#DIV/0!"},{"$error":"#DIV/0!"},{"$error":"#DIV/0!"},{"$error":"#DIV/0!"},{"$error":"#DIV/0!"},{"$error":"#DIV/0!"},{"$error":"#DIV/0!"},{"$error":"#DIV/0!"},{"$error":"#DIV/0!"},0]
[null,null,null,23,"Additional income",{"$error":"#DIV/0!"},{"$error":"#DIV/0!"},{"$error":"#DIV/0!"},{"$error":"#DIV/0!"},{"$error":"#DIV/0!"},{"$error":"#DIV/0!"},{"$error":"#DIV/0!"},{"$error":"#DIV/0!"},{"$error":"#DIV/0!"},0]
[null,null,null,24,"Core DARTs",0,0,0,0,0,0,0,0,0,0]
[null,null,null,25,"Tax allowance",{"$error":"#DIV/0!"},{"$error":"#DIV/0!"},{"$error":"#DIV/0!"},{"$error":"#DIV/0!"},{"$error":"#DIV/0!"},{"$error":"#DIV/0!"},{"$error":"#DIV/0!"},{"$error":"#DIV/0!"},{"$error":"#DIV/0!"},0]
[null,null,null,null,"Price Control Revenue"]
[null,null,null,26,"Final proposals base revenue",{"$error":"#DIV/0!"},{"$error":"#DIV/0!"},{"$error":"#DIV/0!"},{"$error":"#DIV/0!"},{"$error":"#DIV/0!"},{"$error":"#DIV/0!"},{"$error":"#DIV/0!"},{"$error":"#DIV/0!"},{"$error":"#DIV/0!"},0]
[null,null,null,27,"MOD",0,0,0,0,0,0,0,0,0,0]
[null,null,null,28,"Base revenue",{"$error":"#DIV/0!"},{"$error":"#DIV/0!"},{"$error":"#DIV/0!"},{"$error":"#DIV/0!"},{"$error":"#DIV/0!"},{"$error":"#DIV/0!"},{"$error":"#DIV/0!"},{"$error":"#DIV/0!"},{"$error":"#DIV/0!"},0]
[null,null,null,29,"Not Used"]
[null,null,null,30,"Not Used"]
[null,null,null,31,"ES7 (Miscellaneous) revenue",0,0,0,0,0,0,0,0,0,0]
[null,null,null,32,"Total revenue",{"$error":"#DIV/0!"},{"$error":"#DIV/0!"},{"$error":"#DIV/0!"},{"$error":"#DIV/0!"},{"$error":"#DIV/0!"},{"$error":"#DIV/0!"},{"$error":"#DIV/0!"},{"$error":"#DIV/0!"},{"$error":"#DIV/0!"},0]
[null,null,null,null,"Recalculated base revenue"]
[null,null,null,33,"Recalculated base revenue",{"$error":"#DIV/0!"},{"$error":"#DIV/0!"},{"$error":"#DIV/0!"},{"$error":"#DIV/0!"},{"$error":"#DIV/0!"},{"$error":"#DIV/0!"},{"$error":"#DIV/0!"},{"$error":"#DIV/0!"},{"$error":"#DIV/0!"},0]
[null,null,null,34,"Previous year recalculated base revenue",0,0,0,0,0,0,0,0,0,0]
[null,null,null,null,"Recorded recalculated base revenue"]
[null,null,null,35,"2016-03-31",{"$error":"#DIV/0!"},{"$error":"#DIV/0!"},{"$error":"#DIV/0!"},{"$error":"#DIV/0!"},{"$error":"#DIV/0!"},{"$error":"#DIV/0!"},{"$error":"#DIV/0!"},{"$error":"#DIV/0!"},{"$error":"#DIV/0!"},0]
[null,null,null,36,"2017-03-31","","","","","","","","",0,0]
[null,null,null,37,"2018-03-31","","","","","","","","",0,0]
[null,null,null,38,"2019-03-31","","","","","","","","",0,0]
[null,null,null,39,"2020-03-31","","","","","","","","",0,0]
[null,null,null,40,"2021-03-31","","","","","","","","",0,0]
[null,null,null,41,"2022-03-31","","","","","","","","",0,0]
[null,null,null,42,"2023-03-31","","","","","","","","",0,0]
[null,null,null,null,"Recorded MOD"]
[null,null,null,43,"2016-03-31",0,0,0,0,0,0,0,0,0]
[null,null,null,44,"2017-03-31","","","","","","","","",0]
[null,null,null,45,"2018-03-31","","","","","","","","",0]
[null,null,null,46,"2019-03-31","","","","","","","","",0]
[null,null,null,47,"2020-03-31","","","","","","","","",0]
[null,null,null,48,"2021-03-31","","","","","","","","",0]
[null,null,null,49,"2022-03-31","","","","","","","","",0]
[null,null,null,50,"2023-03-31","","","","","","","","",0]
[null,null,null,null,"Inputs to RoRE"]
[null,null,null,51,"Average RAV",{"$error":"#DIV/0!"},{"$error":"#DIV/0!"},{"$error":"#DIV/0!"},{"$error":"#DIV/0!"},{"$error":"#DIV/0!"},{"$error":"#DIV/0!"},{"$error":"#DIV/0!"},{"$error":"#DIV/0!"},{"$error":"#DIV/0!"},0]
[null,null,null,52,"Gearing",0,0,0,0,0,0,0,0,{"$error":"#DIV/0!"},0]
[null,null,null,53,"Regulated equity",{"$error":"#DIV/0!"},{"$error":"#DIV/0!"},{"$error":"#DIV/0!"},{"$error":"#DIV/0!"},{"$error":"#DIV/0!"},{"$error":"#DIV/0!"},{"$error":"#DIV/0!"},{"$error":"#DIV/0!"},{"$error":"#DIV/0!"},0]
[null,null,null,54,"Regulated debt return",{"$error":"#DIV/0!"},{"$error":"#DIV/0!"},{"$error":"#DIV/0!"},{"$error":"#DIV/0!"},{"$error":"#DIV/0!"},{"$error":"#DIV/0!"},{"$error":"#DIV/0!"},{"$error":"#DIV/0!"},{"$error":"#DIV/0!"},0]
[null,null,null,55,"Allowed repex",0,0,0,0,0,0,0,0,0,0]
[]
[]
[]
[]
[]
[null,null,"Values for SSES: OWN_Best (M1a)"]
[]
[]
[null,null,null,null,"Company","Calculated for MOD year ending",null,"File"]
[null,null,null,null,"SSES: OWN_Best (M1a)","2016-03-31",null,"LiMo ED C1.93b_WPD_DNO.xlsm"]
[]
[null,null,null,null,"PCFM year ending","2016-03-31","2017-03-31","2018-03-31","2019-03-31","2020-03-31","2021-03-31","2022-03-31","2023-03-31","RIIO Total","RIIO average"]
[null,null,null,null,"Price base","£m 12/13 prices","£m 12/13 prices","£m 12/13 prices","£m 12/13 prices","£m 12/13 prices","£m 12/13 prices","£m 12/13 prices","£m 12/13 prices","£m 12/13 prices","£m 12/13 prices"]
[null,null,null,null,"Totex"]
[null,null,null,1,"Slow pot",0,0,0,0,0,0,0,0,0,0]
[null,null,null,2,"Fast pot",0,0,0,0,0,0,0,0,0,0]
[null,null,null,3,"Post-TIM totex allowance",0,0,0,0,0,0,0,0,0,0]
[null,null,null,null,"Regulatory Asset Value (RAV)"]
[null,null,null,4,"Opening asset value (before transfers)",{"$error":"#DIV/0!"},{"$error":"#DIV/0!"},{"$error":"#DIV/0!"},{"$error":"#DIV/0!"},{"$error":"#DIV/0!"},{"$error":"#DIV/0!"},{"$error":"#DIV/0!"},{"$error":"#DIV/0!"},null,0]
[null,null,null,5,"Transfers",0,0,0,0,0,0,0,0,0,0]
[null,null,null,6,"Opening asset value (after transfers)",{"$error":"#DIV/0!"},{"$error":"#DIV/0!"},{"$error":"#DIV/0!"},{"$error":"#DIV/0!"},{"$error":"#DIV/0!"},{"$error":"#DIV/0!"},{"$error":"#DIV/0!"},{"$error":"#DIV/0!"},null,0]
[null,null,null,7,"RAV additions (after disposals)",0,0,0,0,0,0,0,0,0,0]
[null,null,null,8,"Depreciation",{"$error":"#DIV/0!"},{"$error":"#DIV/0!"},{"$error":"#DIV/0!"},{"$error":"#DIV/0!"},{"$error":"#DIV/0!"},{"$error":"#DIV/0!"},{"$error":"#DIV/0!"},{"$error":"#DIV/0!"},{"$error":"#DIV/0!"},0]
[null,null,null,9,"Closing asset value",{"$error":"#DIV/0!"},{"$error":"#DIV/0!"},{"$error":"#DIV/0!"},{"$error":"#DIV/0!"},{"$error":"#DIV/0!"},{"$error":"#DIV/0!"},{"$error":"#DIV/0!"},{"$error":"#DIV/0!"},null,0]
[null,null,null,null,"Final Proposals allowances"]
[null,null,null,10,"Fast pot expenditure",0,0,0,0,0,0,0,0,0,0]
[null,null,null,11,"Non-controllable opex ",0,0,0,0,0,0,0,0,0,0]
[null,null,null,12,"RAV depreciation",{"$error":"#DIV/0!"},{"$error":"#DIV/0!"},{"$error":"#DIV/0!"},{"$error":"#DIV/0!"},{"$error":"#DIV/0!"},{"$error":"#DIV/0!"},{"$error":"#DIV/0!"},{"$error":"#DIV/0!"},{"$error":"#DIV/0!"},0]
[null,null,null,13,"Return",{"$error":"#DIV/0!"},{"$error":"#DIV/0!"},{"$error":"#DIV/0!"},{"$error":"#DIV/0!"},{"$error":"#DIV/0!"},{"$error":"#DIV/0!"},{"$error":"#DIV/0!"},{"$error":"#DIV/0!"},{"$error":"#DIV/0!"},0]
[null,null,null,14,"Equity issuance cost",{"$error":"#DIV/0!"},{"$error":"#DIV/0!"},{"$error":"#DIV/0!"},{"$error":"#DIV/0!"},{"$error":"#DIV/0!"},{"$error":"#DIV/0!"},{"$error":"#DIV/0!"},{"$error":"#DIV/0!"},{"$error":"#DIV/0!"},0]
[null,null,null,15,"Additional income",{"$error":"#DIV/0!"},{"$error":"#DIV/0!"},{"$error":"#DIV/0!"},{"$error":"#DIV/0!"},{"$error":"#DIV/0!"},{"$error":"#DIV/0!"},{"$error":"#DIV/0!"},{"$error":"#DIV/0!"},{"$error":"#DIV/0!"},0]
[null,null,null,16,"Core DARTs",0,0,0,0,0,0,0,0,0,0]
[null,null,null,17,"Tax allowance",{"$error":"#DIV/0!"},{"$error":"#DIV/0!"},{"$error":"#DIV/0!"},{"$error":"#DIV/0!"},{"$error":"#DIV/0!"},{"$error":"#DIV/0!"},{"$error":"#DIV/0!"},{"$error":"#DIV/0!"},{"$error":"#DIV/0!"},0]
[null,null,null,null,"Recalculated allowances"]
[null,null,null,18,"Fast pot expenditure",0,0,0,0,0,0,0,0,0,0]
[null,null,null,19,"Non-controllable opex ",0,0,0,0,0,0,0,0,0,0]
[null,null,null,20,"RAV depreciation",{"$error":"#DIV/0!"},{"$error":"#DIV/0!"},{"$error":"#DIV/0!"},{"$error":"#DIV/0!"},{"$error":"#DIV/0!"},{"$error":"#DIV/0!"},{"$error":"#DIV/0!"},{"$error":"#DIV/0!"},{"$error":"#DIV/0!"},0]
[null,null,null,21,"Return",{"$error":"#DIV/0!"},{"$error":"#DIV/0!"},{"$error":"#DIV/0!"},{"$error":"#DIV/0!"},{"$error":"#DIV/0!"},{"$error":"#DIV/0!"},{"$error":"#DIV/0!"},{"$error":"#DIV/0!"},{"$error":"#DIV/0!"},0]
[null,null,null,22,"Equity issuance cost",{"$error":"#DIV/0!"},{"$error":"#DIV/0!"},{"$error":"#DIV/0!"},{"$error":"#DIV/0!"},{"$error":"#DIV/0!"},{"$error":"#DIV/0!"},{"$error":"#DIV/0!"},{"$error":"#DIV/0!"},{"$error":"#DIV/0!"},0]
[null,null,null,23,"Additional income",{"$error":"#DIV/0!"},{"$error":"#DIV/0!"},{"$error":"#DIV/0!"},{"$error":"#DIV/0!"},{"$error":"#DIV/0!"},{"$error":"#DIV/0!"},{"$error":"#DIV/0!"},{"$error":"#DIV/0!"},{"$error":"#DIV/0!"},0]
[null,null,null,24,"Core DARTs",0,0,0,0,0,0,0,0,0,0]
[null,null,null,25,"Tax allowance",{"$error":"#DIV/0!"},{"$error":"#DIV/0!"},{"$error":"#DIV/0!"},{"$error":"#DIV/0!"},{"$error":"#DIV/0!"},{"$error":"#DIV/0!"},{"$error":"#DIV/0!"},{"$error":"#DIV/0!"},{"$error":"#DIV/0!"},0]
[null,null,null,null,"Price Control Revenue"]
[null,null,null,26,"Final proposals base revenue",{"$error":"#DIV/0!"},{"$error":"#DIV/0!"},{"$error":"#DIV/0!"},{"$error":"#DIV/0!"},{"$error":"#DIV/0!"},{"$error":"#DIV/0!"},{"$error":"#DIV/0!"},{"$error":"#DIV/0!"},{"$error":"#DIV/0!"},0]
[null,null,null,27,"MOD",0,0,0,0,0,0,0,0,0,0]
[null,null,null,28,"Base revenue",{"$error":"#DIV/0!"},{"$error":"#DIV/0!"},{"$error":"#DIV/0!"},{"$error":"#DIV/0!"},{"$error":"#DIV/0!"},{"$error":"#DIV/0!"},{"$error":"#DIV/0!"},{"$error":"#DIV/0!"},{"$error":"#DIV/0!"},0]
[null,null,null,29,"Not Used"]
[null,null,null,30,"Not Used"]
[null,null,null,31,"ES7 (Miscellaneous) revenue",0,0,0,0,0,0,0,0,0,0]
[null,null,null,32,"Total revenue",{"$error":"#DIV/0!"},{"$error":"#DIV/0!"},{"$error":"#DIV/0!"},{"$error":"#DIV/0!"},{"$error":"#DIV/0!"},{"$error":"#DIV/0!"},{"$error":"#DIV/0!"},{"$error":"#DIV/0!"},{"$error":"#DIV/0!"},0]
[null,null,null,null,"Recalculated base revenue"]
[null,null,null,33,"Recalculated base revenue",{"$error":"#DIV/0!"},{"$error":"#DIV/0!"},{"$error":"#DIV/0!"},{"$error":"#DIV/0!"},{"$error":"#DIV/0!"},{"$error":"#DIV/0!"},{"$error":"#DIV/0!"},{"$error":"#DIV/0!"},{"$error":"#DIV/0!"},0]
[null,null,null,34,"Previous year recalculated base revenue",0,0,0,0,0,0,0,0,0,0]
[null,null,null,null,"Recorded recalculated base revenue"]
[null,null,null,35,"2016-03-31",{"$error":"#DIV/0!"},{"$error":"#DIV/0!"},{"$error":"#DIV/0!"},{"$error":"#DIV/0!"},{"$error":"#DIV/0!"},{"$error":"#DIV/0!"},{"$error":"#DIV/0!"},{"$error":"#DIV/0!"},{"$error":"#DIV/0!"},0]
[null,null,null,36,"2017-03-31","","","","","","","","",0,0]
[null,null,null,37,"2018-03-31","","","","","","","","",0,0]
[null,null,null,38,"2019-03-31","","","","","","","","",0,0]
[null,null,null,39,"2020-03-31","","","","","","","","",0,0]
[null,null,null,40,"2021-03-31","","","","","","","","",0,0]
[null,null,null,41,"2022-03-31","","","","","","","","",0,0]
[null,null,null,42,"2023-03-31","","","","","","","","",0,0]
[null,null,null,null,"Recorded MOD"]
[null,null,null,43,"2016-03-31",0,0,0,0,0,0,0,0,0]
[null,null,null,44,"2017-03-31","","","","","","","","",0]
[null,null,null,45,"2018-03-31","","","","","","","","",0]
[null,null,null,46,"2019-03-31","","","","","","","","",0]
[null,null,null,47,"2020-03-31","","","","","","","","",0]
[null,null,null,48,"2021-03-31","","","","","","","","",0]
[null,null,null,49,"2022-03-31","","","","","","","","",0]
[null,null,null,50,"2023-03-31","","","","","","","","",0]
[null,null,null,null,"Inputs to RoRE"]
[null,null,null,51,"Average RAV",{"$error":"#DIV/0!"},{"$error":"#DIV/0!"},{"$error":"#DIV/0!"},{"$error":"#DIV/0!"},{"$error":"#DIV/0!"},{"$error":"#DIV/0!"},{"$error":"#DIV/0!"},{"$error":"#DIV/0!"},{"$error":"#DIV/0!"},0]
[null,null,null,52,"Gearing",0,0,0,0,0,0,0,0,{"$error":"#DIV/0!"},0]
[null,null,null,53,"Regulated equity",{"$error":"#DIV/0!"},{"$error":"#DIV/0!"},{"$error":"#DIV/0!"},{"$error":"#DIV/0!"},{"$error":"#DIV/0!"},{"$error":"#DIV/0!"},{"$error":"#DIV/0!"},{"$error":"#DIV/0!"},{"$error":"#DIV/0!"},0]
[null,null,null,54,"Regulated debt return",{"$error":"#DIV/0!"},{"$error":"#DIV/0!"},{"$error":"#DIV/0!"},{"$error":"#DIV/0!"},{"$error":"#DIV/0!"},{"$error":"#DIV/0!"},{"$error":"#DIV/0!"},{"$error":"#DIV/0!"},{"$error":"#DIV/0!"},0]
[null,null,null,55,"Allowed repex",0,0,0,0,0,0,0,0,0,0]
[]
[]
[]
[]
[]
[null,null,"End of sheet"]

{"sheet":"FinancialStatements","index":17,"n_rows":149,"n_cols":43,"rows_kept":149,"cut":false,"hidden":false,"merged":[[126,1,126,42],[95,1,95,42],[63,1,63,42]]}
["Financial statements",null,null,null,null,null,null,null,null,null,null,null,null,null,null,null,null,null,null,null,null,null,null,null,null,null,null,null,null,null,null,null,null,null,null,"Done"]
[null,{"$f":"UserInterface!G24","v":"WMID"}]
[]
[]
[]
[null,null,null,null,"Parameter",null,"Units",null,"Constant",null,null,null,null,null,null,null,null,null,null,null,null,null,null,null,null,null,null,null,null,null,null,null,null,null,null,"Annual values"]
[null,null,null,null,"PCFM year ending",null,null,null,{"$f":"UserInterface!$G$17","v":"2016-03-31"},null,"1991-03-31","1992-03-31","1993-03-31","1994-03-31","1995-03-31","1996-03-31","1997-03-31","1998-03-31","1999-03-31","2000-03-31","2001-03-31","2002-03-31","2003-03-31","2004-03-31","2005-03-31","2006-03-31","2007-03-31","2008-03-31","2009-03-31","2010-03-31","2011-03-31","2012-03-31","2013-03-31","2014-03-31","2015-03-31","2016-03-31","2017-03-31","2018-03-31","2019-03-31","2020-03-31","2021-03-31","2022-03-31","2023-03-31"]
[]
[null,"Regulatory Financial Position"]
[null,null,"Note:  This includes RAV and earning on a regulatory basis using regulatory depreciation"]
[null,null,"Note: Calculations of the regulatory financial position below are done on a notional basis, in line with the assumptions in this model and in Final Proposals. These may be different from the financial position of companies in their accounts."]
[null,null,"Regulatory financial position"]
[null,null,"Note:  Calculations of the regulatory financial position reconcile modelled movements in RAV with modelled movements in net debt, to arrive at a movement in equity."]
[null,null,null,null,"RAV",null,"£m nominal",null,null,null,null,null,null,null,null,null,null,null,null,null,null,null,null,null,null,null,null,null,null,null,null,null,null,null,null,{"$f":"'Return&RAV'!AJ47 * Input!AJ$54 / Input!$AG$54","v":2134.4580977998999},{"$f":"'Return&RAV'!AK47 * Input!AK$54 / Input!$AG$54","v":2234.063885287786},{"$f":"'Return&RAV'!AL47 * Input!AL$54 / Input!$AG$54","v":2328.6599873256978},{"$f":"'Return&RAV'!AM47 * Input!AM$54 / Input!$AG$54","v":2428.6022161979931},{"$f":"'Return&RAV'!AN47 * Input!AN$54 / Input!$AG$54","v":2539.0191559902646},{"$f":"'Return&RAV'!AO47 * Input!AO$54 / Input!$AG$54","v":2657.3173271094252},{"$f":"'Return&RAV'!AP47 * Input!AP$54 / Input!$AG$54","v":2797.6357660717167},{"$f":"'Return&RAV'!AQ47 * Input!AQ$54 / Input!$AG$54","v":2947.9695220333851}]
[null,null,null,null,"Net debt",null,"£m nominal",null,null,null,null,null,null,null,null,null,null,null,null,null,null,null,null,null,null,null,null,null,null,null,null,null,null,null,null,{"$f":"'Finance&Tax'!AJ36","v":-1410.7359501595577},{"$f":"'Finance&Tax'!AK36","v":-1482.2945579585967},{"$f":"'Finance&Tax'!AL36","v":-1540.7775002804067},{"$f":"'Finance&Tax'!AM36","v":-1606.5509359934767},{"$f":"'Finance&Tax'!AN36","v":-1680.9366403662643},{"$f":"'Finance&Tax'!AO36","v":-1759.5295738364018},{"$f":"'Finance&Tax'!AP36","v":-1858.0751662023056},{"$f":"'Finance&Tax'!AQ36","v":-1958.2475718346686}]
[null,null,null,null,null,null,"£m nominal",null,null,null,null,null,null,null,null,null,null,null,null,null,null,null,null,null,null,null,null,null,null,null,null,null,null,null,null,{"$f":"SUM(AJ14:AJ15)","v":723.7221476403422},751.76932732918931,787.8824870452911,822.05128020451639,858.08251562400028,897.78775327302333,939.56059986941113,989.72195019871651]
[]
[null,null,null,null,"Equity",null,"£m nominal",null,null,null,null,null,null,null,null,null,null,null,null,null,null,null,null,null,null,null,null,null,null,null,null,null,null,null,null,{"$f":"AJ44","v":723.72214764034243},{"$f":"AK44","v":751.7693273291892},787.88248704529121,822.05128020451662,858.08251562400073,897.78775327302333,939.5605998694117,989.72195019871685]
[null,null,null,null,"Check",null,null,null,null,null,null,null,null,null,null,null,null,null,null,null,null,null,null,null,null,null,null,null,null,null,null,null,null,null,null,{"$f":"AJ16-AJ18","v":0},{"$f":"AK16-AK18","v":0},0,0,0,0,0,0]
[null,null,"Supporting analysis for Financial position"]
[]
[null,null,"Nominal RAV"]
[]
[null,null,null,null,"Opening RAV (at prior year nominal)",null,"£PY nominal",null,null,null,null,null,null,null,null,null,null,null,null,null,null,null,null,null,null,null,null,null,null,null,null,null,null,null,null,null,{"$f":"AJ31","v":2134.4580977998999},{"$f":"AK31","v":2234.0638852877855},2328.6599873256978,2428.6022161979931,2539.0191559902646,2657.3173271094252,2797.6357660717167]
[null,null,null,null,"RPI (uplift from previous year to current nominal)",null,null,null,null,null,null,null,null,null,null,null,null,null,null,null,null,null,null,null,null,null,null,null,null,null,null,null,null,null,null,null,{"$f":"AK26-AK24","v":59.767621193881951},{"$f":"AL26-AL24","v":62.553330941171225},65.200125311287138,68.005033522332724,71.093289039699812,74.407950296396393,78.334621894590327]
[null,null,null,null,"Opening RAV (before transfers)",null,"£m nominal",null,null,null,null,null,null,null,null,null,null,null,null,null,null,null,null,null,null,null,null,null,null,null,null,null,null,null,null,{"$f":"'Return&RAV'!AJ42*Input!AJ$54/Input!$AG$54","v":2092.4959618866455},{"$f":"'Return&RAV'!AK42*Input!AK$54/Input!$AG$54","v":2194.2257189937818},{"$f":"'Return&RAV'!AL42*Input!AL$54/Input!$AG$54","v":2296.6172162289567},{"$f":"'Return&RAV'!AM42*Input!AM$54/Input!$AG$54","v":2393.8601126369849},{"$f":"'Return&RAV'!AN42*Input!AN$54/Input!$AG$54","v":2496.6072497203259},{"$f":"'Return&RAV'!AO42*Input!AO$54/Input!$AG$54","v":2610.1124450299644},{"$f":"'Return&RAV'!AP42*Input!AP$54/Input!$AG$54","v":2731.7252774058215},{"$f":"'Return&RAV'!AQ42*Input!AQ$54/Input!$AG$54","v":2875.970387966307}]
[null,null,null,null,"Transfers",null,"£m nominal",null,null,null,null,null,null,null,null,null,null,null,null,null,null,null,null,null,null,null,null,null,null,null,null,null,null,null,null,{"$f":"'Return&RAV'!AJ43*Input!AJ$54/Input!$AG$54","v":0},{"$f":"'Return&RAV'!AK43*Input!AK$54/Input!$AG$54","v":0},{"$f":"'Return&RAV'!AL43*Input!AL$54/Input!$AG$54","v":0},{"$f":"'Return&RAV'!AM43*Input!AM$54/Input!$AG$54","v":0},{"$f":"'Return&RAV'!AN43*Input!AN$54/Input!$AG$54","v":0},{"$f":"'Return&RAV'!AO43*Input!AO$54/Input!$AG$54","v":0},{"$f":"'Return&RAV'!AP43*Input!AP$54/Input!$AG$54","v":0},{"$f":"'Return&RAV'!AQ43*Input!AQ$54/Input!$AG$54","v":0}]
[null,null,null,null,"Opening RAV (after transfers)",null,"£m nominal",null,null,null,null,null,null,null,null,null,null,null,null,null,null,null,null,null,null,null,null,null,null,null,null,null,null,null,null,{"$f":"AJ27+AJ26","v":2092.4959618866455},{"$f":"AK27+AK26","v":2194.2257189937818},2296.6172162289567,2393.8601126369849,2496.6072497203259,2610.1124450299644,2731.7252774058215,2875.970387966307]
[null,null,null,null,"Net additions (after disposals)",null,"£m nominal",null,null,null,null,null,null,null,null,null,null,null,null,null,null,null,null,null,null,null,null,null,null,null,null,null,null,null,null,{"$f":"'Return&RAV'!AJ45*Input!AJ$54/Input!$AG$54","v":226.66146778628911},{"$f":"'Return&RAV'!AK45*Input!AK$54/Input!$AG$54","v":233.7803209984724},{"$f":"'Return&RAV'!AL45*Input!AL$54/Input!$AG$54","v":233.44221166586118},{"$f":"'Return&RAV'!AM45*Input!AM$54/Input!$AG$54","v":243.7039931035832},{"$f":"'Return&RAV'!AN45*Input!AN$54/Input!$AG$54","v":258.13580802755962},{"$f":"'Return&RAV'!AO45*Input!AO$54/Input!$AG$54","v":270.16046953894511},{"$f":"'Return&RAV'!AP45*Input!AP$54/Input!$AG$54","v":275.24808529280443},{"$f":"'Return&RAV'!AQ45*Input!AQ$54/Input!$AG$54","v":285.85290316734381}]
[null,null,null,null,"Depreciation",null,"£m nominal",null,null,null,null,null,null,null,null,null,null,null,null,null,null,null,null,null,null,null,null,null,null,null,null,null,null,null,null,{"$f":"'Return&RAV'!AJ46*Input!AJ$54/Input!$AG$54","v":-184.69933187303451},{"$f":"'Return&RAV'!AK46*Input!AK$54/Input!$AG$54","v":-193.94215470446844},{"$f":"'Return&RAV'!AL46*Input!AL$54/Input!$AG$54","v":-201.39944056912029},{"$f":"'Return&RAV'!AM46*Input!AM$54/Input!$AG$54","v":-208.96188954257499},{"$f":"'Return&RAV'!AN46*Input!AN$54/Input!$AG$54","v":-215.72390175762089},{"$f":"'Return&RAV'!AO46*Input!AO$54/Input!$AG$54","v":-222.95558745948458},{"$f":"'Return&RAV'!AP46*Input!AP$54/Input!$AG$54","v":-209.33759662690903},{"$f":"'Return&RAV'!AQ46*Input!AQ$54/Input!$AG$54","v":-213.85376910026591}]
[null,null,null,null,"Closing RAV",null,"£m nominal",null,null,null,null,null,null,null,null,null,null,null,null,null,null,null,null,null,null,null,null,null,null,null,null,null,null,null,null,{"$f":"SUM(AJ28:AJ30)","v":2134.4580977998999},{"$f":"SUM(AK28:AK30)","v":2234.0638852877855},2328.6599873256978,2428.6022161979931,2539.0191559902646,2657.3173271094252,2797.6357660717167,2947.9695220333851]
[null,null,null,null,"check",null,null,null,null,null,null,null,null,null,null,null,null,null,null,null,null,null,null,null,null,null,null,null,null,null,null,null,null,null,null,{"$f":"AJ31-AJ14","v":0},0,0,0,0,0,0,0]
[]
[null,null,"Equity"]
[]
[null,null,null,null,"Opening equity (before RPI uplift on opening RAV)",null,"£m nominal",null,null,null,null,null,null,null,null,null,null,null,null,null,null,null,null,null,null,null,null,null,null,null,null,null,null,null,null,null,{"$f":"AJ44","v":723.72214764034243},{"$f":"AK44","v":751.7693273291892},787.88248704529121,822.05128020451662,858.08251562400073,897.78775327302333,939.5605998694117]
[null,null,null,null,"RPI uplift on opening RAV",null,"£m nominal",null,null,null,null,null,null,null,null,null,null,null,null,null,null,null,null,null,null,null,null,null,null,null,null,null,null,null,null,null,{"$f":"AK25","v":59.767621193881951},{"$f":"AL25","v":62.553330941171225},65.200125311287138,68.005033522332724,71.093289039699812,74.407950296396393,78.334621894590327]
[null,null,null,null,"Opening equity (after RPI uplift on opening RAV)",null,null,null,null,null,null,null,null,null,null,null,null,null,null,null,null,null,null,null,null,null,null,null,null,null,null,null,null,null,null,{"$f":"AJ26+AJ55","v":769.42005986717209},{"$f":"SUM(AK36:AK37)","v":783.48976883422438},{"$f":"SUM(AL36:AL37)","v":814.32265827036042},853.08261235657835,890.05631372684934,929.17580466370055,972.19570356941972,1017.895221764002]
[null,null,null,null,"RAV adjustment from previous price controls (share to equity)",null,null,null,null,null,null,null,null,null,null,null,null,null,null,null,null,null,null,null,null,null,null,null,null,null,null,null,null,null,null,{"$f":"(Input!AJ301+Input!AJ302)*Input!AJ54/Input!$AG$54+'Finance&Tax'!AJ28","v":0},{"$f":"(Input!AK301+Input!AK302)*Input!AK54/Input!$AG$54+'Finance&Tax'!AK28","v":0},{"$f":"(Input!AL301+Input!AL302)*Input!AL54/Input!$AG$54+'Finance&Tax'!AL28","v":0},{"$f":"(Input!AM301+Input!AM302)*Input!AM54/Input!$AG$54+'Finance&Tax'!AM28","v":0},{"$f":"(Input!AN301+Input!AN302)*Input!AN54/Input!$AG$54+'Finance&Tax'!AN28","v":0},{"$f":"(Input!AO301+Input!AO302)*Input!AO54/Input!$AG$54+'Finance&Tax'!AO28","v":0},{"$f":"(Input!AP301+Input!AP302)*Input!AP54/Input!$AG$54+'Finance&Tax'!AP28","v":0},{"$f":"(Input!AQ301+Input!AQ302)*Input!AQ54/Input!$AG$54+'Finance&Tax'!AQ28","v":0}]
[null,null,null,null,"Earnings after tax (after regulatory depreciation)",null,"£m nominal",null,null,null,null,null,null,null,null,null,null,null,null,null,null,null,null,null,null,null,null,null,null,null,null,null,null,null,null,{"$f":"AJ51","v":4.3551301665780215},{"$f":"AK51","v":-2.6698299846592306},-1.9861270438174188,-1.22911870092193,-0.39329435965802872,0.35185095744654404,0.69614379909830859,1.3446954707080465]
[null,null,null,null,"Regulatory dividend",null,"£m nominal",null,null,null,null,null,null,null,null,null,null,null,null,null,null,null,null,null,null,null,null,null,null,null,null,null,null,null,null,{"$f":"AJ92","v":-50.053042393407658},{"$f":"AK92","v":-52.388798109998575},-54.607076702787616,-56.950721969842938,-59.539999207971704,-62.314091320716017,-65.604558714381753,{"$f":"AQ92","v":-69.129885291682882}]
[null,null,null,null,"Movement in equity (before issuance)",null,"£m nominal",null,null,null,null,null,null,null,null,null,null,null,null,null,null,null,null,null,null,null,null,null,null,null,null,null,null,null,null,{"$f":"SUM(AJ38:AJ41)","v":723.72214764034243},{"$f":"SUM(AK38:AK41)","v":728.43114073956656},757.72945452375541,794.90277168581349,830.12302015921955,867.21356430043113,907.28728865413632,950.11003194302725]
[null,null,null,null,"Equity issued (net of issuance costs)",null,"£m nominal",null,null,null,null,null,null,null,null,null,null,null,null,null,null,null,null,null,null,null,null,null,null,null,null,null,null,null,null,{"$f":"'Finance&Tax'!AJ20+'Finance&Tax'!AJ30","v":0},{"$f":"'Finance&Tax'!AK20+'Finance&Tax'!AK30","v":23.338186589622691},{"$f":"'Finance&Tax'!AL20+'Finance&Tax'!AL30","v":30.153032521535795},{"$f":"'Finance&Tax'!AM20+'Finance&Tax'!AM30","v":27.148508518703139},{"$f":"'Finance&Tax'!AN20+'Finance&Tax'!AN30","v":27.959495464781199},{"$f":"'Finance&Tax'!AO20+'Finance&Tax'!AO30","v":30.574188972592207},{"$f":"'Finance&Tax'!AP20+'Finance&Tax'!AP30","v":32.273311215275342},{"$f":"'Finance&Tax'!AQ20+'Finance&Tax'!AQ30","v":39.611918255689574}]
[null,null,null,null,"Equity",null,"£m nominal",null,null,null,null,null,null,null,null,null,null,null,null,null,null,null,null,null,null,null,null,null,null,null,null,null,null,null,null,{"$f":"SUM(AJ42:AJ43)","v":723.72214764034243},{"$f":"SUM(AK42:AK43)","v":751.7693273291892},787.88248704529121,822.05128020451662,858.08251562400073,897.78775327302333,939.5605998694117,989.72195019871685]
[]
[null,null,"PAT (using regulatory depreciation)"]
[]
[null,null,null,null,"PAT (per regulatory earnings statement below)",null,"£m nominal",null,null,null,null,null,null,null,null,null,null,null,null,null,null,null,null,null,null,null,null,null,null,null,null,null,null,null,null,{"$f":"AJ88","v":111.47827281772985},{"$f":"AK88","v":107.31455969929888},109.49338699577345,113.83679220556819,117.59513580999125,120.2252310237244,101.4211275740107,98.954429332579195]
[null,null,null,null,"add back: statutory depreciation",null,"£m nominal",null,null,null,null,null,null,null,null,null,null,null,null,null,null,null,null,null,null,null,null,null,null,null,null,null,null,null,null,{"$f":"-AJ76","v":77.5761892218827},{"$f":"-AK76","v":83.957765020510337},89.91992652952942,93.895978636084877,97.735471587971603,103.0822073932067,108.61261285199664,116.24403523839476]
[null,null,null,null,"less: regulatory depreciation",null,"£m nominal",null,null,null,null,null,null,null,null,null,null,null,null,null,null,null,null,null,null,null,null,null,null,null,null,null,null,null,null,{"$f":"'Return&RAV'!AJ46*Input!AJ54/Input!$AG$54","v":-184.69933187303451},{"$f":"'Return&RAV'!AK46*Input!AK54/Input!$AG$54","v":-193.94215470446844},{"$f":"'Return&RAV'!AL46*Input!AL54/Input!$AG$54","v":-201.39944056912029},{"$f":"'Return&RAV'!AM46*Input!AM54/Input!$AG$54","v":-208.96188954257499},{"$f":"'Return&RAV'!AN46*Input!AN54/Input!$AG$54","v":-215.72390175762089},{"$f":"'Return&RAV'!AO46*Input!AO54/Input!$AG$54","v":-222.95558745948458},{"$f":"'Return&RAV'!AP46*Input!AP54/Input!$AG$54","v":-209.33759662690903},{"$f":"'Return&RAV'!AQ46*Input!AQ54/Input!$AG$54","v":-213.85376910026591}]
[null,null,null,null,"PAT (after regulatory depreciation)",null,"£m nominal",null,null,null,null,null,null,null,null,null,null,null,null,null,null,null,null,null,null,null,null,null,null,null,null,null,null,null,null,{"$f":"SUM(AJ48:AJ50)","v":4.3551301665780215},{"$f":"SUM(AK48:AK50)","v":-2.6698299846592306},-1.9861270438174188,-1.22911870092193,-0.39329435965802872,0.35185095744654404,0.69614379909830859,1.3446954707080465]
[]
[null,null,"Reconciliation of cash flows to movement in net debt"]
[]
[null,null,null,null,"Opening net debt",null,null,null,null,null,null,null,null,null,null,null,null,null,null,null,null,null,null,null,null,null,null,null,null,null,null,null,null,null,null,{"$f":"'Finance&Tax'!AJ22","v":-1323.0759020194735},{"$f":"'Finance&Tax'!AK22","v":-1387.397763569935},{"$f":"'Finance&Tax'!AL22","v":-1452.1415254370609},{"$f":"'Finance&Tax'!AM22","v":-1513.6289917617034},{"$f":"'Finance&Tax'!AN22","v":-1578.5914405286956},{"$f":"'Finance&Tax'!AO22","v":-1650.362451393672},{"$f":"'Finance&Tax'!AP22","v":-1727.2562626211266},{"$f":"'Finance&Tax'!AQ22","v":-1818.4632479466161}]
[null,null,null,null,"Closing net debt",null,null,null,null,null,null,null,null,null,null,null,null,null,null,null,null,null,null,null,null,null,null,null,null,null,null,null,null,null,null,{"$f":"'Finance&Tax'!AJ36","v":-1410.7359501595577},{"$f":"'Finance&Tax'!AK36","v":-1482.2945579585967},{"$f":"'Finance&Tax'!AL36","v":-1540.7775002804067},{"$f":"'Finance&Tax'!AM36","v":-1606.5509359934767},{"$f":"'Finance&Tax'!AN36","v":-1680.9366403662643},{"$f":"'Finance&Tax'!AO36","v":-1759.5295738364018},{"$f":"'Finance&Tax'!AP36","v":-1858.0751662023056},{"$f":"'Finance&Tax'!AQ36","v":-1958.2475718346686}]
[null,null,null,null,"Movement in net debt",null,"£m nominal",null,null,null,null,null,null,null,null,null,null,null,null,null,null,null,null,null,null,null,null,null,null,null,null,null,null,null,null,{"$f":"AJ56-AJ55","v":-87.6600481400842},{"$f":"AK56-AK55","v":-94.896794388661647},-88.635974843345821,-92.921944231773296,-102.34519983756877,-109.16712244272981,-130.81890358117903,-139.78432388805254]
[null,null,null,null,"Equity issuance costs (netted against equity not cashflow)",null,null,null,null,null,null,null,null,null,null,null,null,null,null,null,null,null,null,null,null,null,null,null,null,null,null,null,null,null,null,{"$f":"-'Finance&Tax'!AJ30","v":0},{"$f":"-'Finance&Tax'!AK30","v":0},{"$f":"-'Finance&Tax'!AL30","v":0},{"$f":"-'Finance&Tax'!AM30","v":0},{"$f":"-'Finance&Tax'!AN30","v":0},{"$f":"-'Finance&Tax'!AO30","v":0},{"$f":"-'Finance&Tax'!AP30","v":0},{"$f":"-'Finance&Tax'!AQ30","v":0}]
[null,null,null,null,"Add back: inflation coupon (capital accretion)",null,"£m nominal",null,null,null,null,null,null,null,null,null,null,null,null,null,null,null,null,null,null,null,null,null,null,null,null,null,null,null,null,{"$f":"-'Finance&Tax'!AJ33","v":9.5757762336368639},{"$f":"-'Finance&Tax'!AK33","v":10.058233187921553},{"$f":"-'Finance&Tax'!AL33","v":10.489016950764777},{"$f":"-'Finance&Tax'!AM33","v":10.933985141767085},{"$f":"-'Finance&Tax'!AN33","v":11.422577654833566},{"$f":"-'Finance&Tax'!AO33","v":11.948238622406953},{"$f":"-'Finance&Tax'!AP33","v":12.562901378043891},{"$f":"-'Finance&Tax'!AQ33","v":13.232547372070226}]
[null,null,null,null,"Net cash flow",null,"£m nominal",null,null,null,null,null,null,null,null,null,null,null,null,null,null,null,null,null,null,null,null,null,null,null,null,null,null,null,null,{"$f":"SUM(AJ57:AJ59)","v":-78.084271906447341},{"$f":"SUM(AK57:AK59)","v":-84.838561200740088},{"$f":"SUM(AL57:AL59)","v":-78.146957892581042},-81.987959090006214,-90.922622182735211,-97.218883820322858,-118.25600220313514,-126.55177651598231]
[null,null,null,null,"Check",null,null,null,null,null,null,null,null,null,null,null,null,null,null,null,null,null,null,null,null,null,null,null,null,null,null,null,null,null,null,{"$f":"AJ60-AJ116","v":0},0,0,-1.5631940186722204E-13,-3.979039320256561E-13,1.8474111129762605E-13,-1.5631940186722204E-13,1.4210854715202004E-13]
[]
[null,"Regulatory earning statement"]
[null,"Note: Calculations of the regulatory income statement below are done on a notional basis, in line with the assumptions in this model and in Final Proposals. These may be different from the income statement shown in the companies’ accounts."]
[null,null,"Earnings before interest, taxes, depreciation and amortisation (EBITDA)"]
[]
[null,null,null,null,"Operating revenue",null,"£m nominal",null,null,null,null,null,null,null,null,null,null,null,null,null,null,null,null,null,null,null,null,null,null,null,null,null,null,null,null,{"$f":"(Revenue!AJ71) * Input!AJ$54 / Input!$AG$54","v":411.14073619725974},{"$f":"(Revenue!AK71) * Input!AK$54 / Input!$AG$54","v":420.37220860190143},{"$f":"(Revenue!AL71) * Input!AL$54 / Input!$AG$54","v":437.84129026841822},{"$f":"(Revenue!AM71) * Input!AM$54 / Input!$AG$54","v":461.74135497253116},{"$f":"(Revenue!AN71) * Input!AN$54 / Input!$AG$54","v":487.98246335461681},{"$f":"(Revenue!AO71) * Input!AO$54 / Input!$AG$54","v":508.22344401693005},{"$f":"(Revenue!AP71) * Input!AP$54 / Input!$AG$54","v":498.55494620963225},{"$f":"(Revenue!AQ71) * Input!AQ$54 / Input!$AG$54","v":515.38138055517265}]
[null,null,null,null,"Less fast pot expenditure",null,"£m nominal",null,null,null,null,null,null,null,null,null,null,null,null,null,null,null,null,null,null,null,null,null,null,null,null,null,null,null,null,{"$f":"-TIM!AJ70* Input!AJ$54 / Input!$AG$54","v":-56.665366946572263},{"$f":"-TIM!AK70* Input!AK$54 / Input!$AG$54","v":-58.445080249618101},{"$f":"-TIM!AL70* Input!AL$54 / Input!$AG$54","v":-58.360552916465252},{"$f":"-TIM!AM70* Input!AM$54 / Input!$AG$54","v":-60.9259982758958},{"$f":"-TIM!AN70* Input!AN$54 / Input!$AG$54","v":-64.533952006889876},{"$f":"-TIM!AO70* Input!AO$54 / Input!$AG$54","v":-67.540117384736277},{"$f":"-TIM!AP70* Input!AP$54 / Input!$AG$54","v":-68.812021323201094},{"$f":"-TIM!AQ70* Input!AQ$54 / Input!$AG$54","v":-71.463225791835953}]
[null,null,null,null,"Less difference in fast pot expenditure pre-TIM and post-TIM",null,"£m nominal",null,null,null,null,null,null,null,null,null,null,null,null,null,null,null,null,null,null,null,null,null,null,null,null,null,null,null,null,{"$f":"0","v":0},{"$f":"0","v":0},{"$f":"0","v":0},{"$f":"0","v":0},{"$f":"0","v":0},{"$f":"0","v":0},{"$f":"0","v":0},{"$f":"0","v":0}]
[null,null,null,null,"Less non-controllable opex",null,"£m nominal",null,null,null,null,null,null,null,null,null,null,null,null,null,null,null,null,null,null,null,null,null,null,null,null,null,null,null,null,{"$f":" -(Input!AJ209) * Input!AJ$54 / Input!$AG$54","v":-44.571619757438619},{"$f":" -(Input!AK209) * Input!AK$54 / Input!$AG$54","v":-46.204893239419881},{"$f":" -(Input!AL209) * Input!AL$54 / Input!$AG$54","v":-51.079238318711383},{"$f":" -(Input!AM209) * Input!AM$54 / Input!$AG$54","v":-58.792570440439505},{"$f":" -(Input!AN209) * Input!AN$54 / Input!$AG$54","v":-68.459513733616703},{"$f":" -(Input!AO209) * Input!AO$54 / Input!$AG$54","v":-71.98468895216709},{"$f":" -(Input!AP209) * Input!AP$54 / Input!$AG$54","v":-73.21406834152485},{"$f":" -(Input!AQ209) * Input!AQ$54 / Input!$AG$54","v":-76.145847023182199}]
[null,null,null,null,"Less established pension deficit repair",null,"£m nominal",null,null,null,null,null,null,null,null,null,null,null,null,null,null,null,null,null,null,null,null,null,null,null,null,null,null,null,null,{"$f":"-DARTs!AJ19 * Input!AJ$54 / Input!$AG$54","v":-25.726454896028592},{"$f":"-DARTs!AK19 * Input!AK$54 / Input!$AG$54","v":-26.446829314468673},{"$f":"-DARTs!AL19 * Input!AL$54 / Input!$AG$54","v":-27.187335115286235},{"$f":"-DARTs!AM19 * Input!AM$54 / Input!$AG$54","v":-27.948553011434463},{"$f":"-DARTs!AN19 * Input!AN$54 / Input!$AG$54","v":-28.731160501358755},{"$f":"-DARTs!AO19 * Input!AO$54 / Input!$AG$54","v":-29.535641512520119},{"$f":"-DARTs!AP19 * Input!AP$54 / Input!$AG$54","v":-30.362673543363936},{"$f":"-DARTs!AQ19 * Input!AQ$54 / Input!$AG$54","v":-31.212837306843408}]
[null,null,null,null,"EBITDA",null,"£m nominal",null,null,null,null,null,null,null,null,null,null,null,null,null,null,null,null,null,null,null,null,null,null,null,null,null,null,null,null,{"$f":"SUM(AJ67:AJ71)","v":284.17729459722028},289.27540579839473,301.21416391795532,314.07423324476144,326.25783711275147,339.16299616750655,326.16618300154238,336.55947043331105]
[]
[null,null,"Earnings before interest and taxes (EBIT)"]
[]
[null,null,null,null,"Less statutory depreciation as per PCFM",null,"£m nominal",null,null,null,null,null,null,null,null,null,null,null,null,null,null,null,null,null,null,null,null,null,null,null,null,null,null,null,null,{"$f":"-AJ147","v":-77.5761892218827},{"$f":"-AK147","v":-83.957765020510337},-89.91992652952942,-93.895978636084877,-97.735471587971603,-103.0822073932067,-108.61261285199664,-116.24403523839476]
[null,null,null,null,"EBIT",null,"£m nominal",null,null,null,null,null,null,null,null,null,null,null,null,null,null,null,null,null,null,null,null,null,null,null,null,null,null,null,null,{"$f":"AJ72 + AJ76","v":206.60110537533757},205.31764077788438,211.2942373884259,220.17825460867658,228.52236552477987,236.08078877429983,217.55357014954575,220.31543519491629]
[]
[null,null,"Profit before tax (PBT)"]
[]
[null,null,null,null,"Less net interest paid (interest coupon)",null,"£m nominal",null,null,null,null,null,null,null,null,null,null,null,null,null,null,null,null,null,null,null,null,null,null,null,null,null,null,null,null,{"$f":"'Finance&Tax'!AJ165","v":-67.538338615113901},{"$f":"'Finance&Tax'!AK165","v":-70.939603931186369},{"$f":"'Finance&Tax'!AL165","v":-73.980172932384846},{"$f":"'Finance&Tax'!AM165","v":-77.119857659447604},{"$f":"'Finance&Tax'!AN165","v":-80.561498999996459},{"$f":"'Finance&Tax'!AO165","v":-84.271354318040565},{"$f":"'Finance&Tax'!AP165","v":-88.605034277409175},{"$f":"'Finance&Tax'!AQ165","v":-93.329635949234657}]
[null,null,null,null,"Less net interest paid (inflation coupon)",null,"£m nominal",null,null,null,null,null,null,null,null,null,null,null,null,null,null,null,null,null,null,null,null,null,null,null,null,null,null,null,null,{"$f":"'Finance&Tax'!AJ166","v":-9.5757762336368639},{"$f":"'Finance&Tax'!AK166","v":-10.058233187921553},{"$f":"'Finance&Tax'!AL166","v":-10.489016950764777},{"$f":"'Finance&Tax'!AM166","v":-10.933985141767085},{"$f":"'Finance&Tax'!AN166","v":-11.422577654833566},{"$f":"'Finance&Tax'!AO166","v":-11.948238622406953},{"$f":"'Finance&Tax'!AP166","v":-12.562901378043891},{"$f":"'Finance&Tax'!AQ166","v":-13.232547372070226}]
[null,null,null,null,"PBT",null,"£m nominal",null,null,null,null,null,null,null,null,null,null,null,null,null,null,null,null,null,null,null,null,null,null,null,null,null,null,null,null,{"$f":"AJ77 + SUM(AJ81:AJ82)","v":129.48699052658679},{"$f":"AK77 + SUM(AK81:AK82)","v":124.31980365877645},126.82504750527627,132.12441180746191,136.53828886994984,139.86119583385232,116.38563449409268,113.7532518736114]
[]
[null,null,"Profit after tax (PAT)"]
[]
[null,null,null,null,"Less tax paid",null,"£m nominal",null,null,null,null,null,null,null,null,null,null,null,null,null,null,null,null,null,null,null,null,null,null,null,null,null,null,null,null,{"$f":"'Finance&Tax'!AJ35","v":-18.008717708856953},{"$f":"'Finance&Tax'!AK35","v":-17.005243959477575},{"$f":"'Finance&Tax'!AL35","v":-17.331660509502825},{"$f":"'Finance&Tax'!AM35","v":-18.28761960189372},{"$f":"'Finance&Tax'!AN35","v":-18.943153059958586},{"$f":"'Finance&Tax'!AO35","v":-19.63596481012792},{"$f":"'Finance&Tax'!AP35","v":-14.964506920081982},{"$f":"'Finance&Tax'!AQ35","v":-14.798822541032207}]
[null,null,null,null,"PAT",null,"£m nominal",null,null,null,null,null,null,null,null,null,null,null,null,null,null,null,null,null,null,null,null,null,null,null,null,null,null,null,null,{"$f":"AJ83 + AJ87","v":111.47827281772985},107.31455969929888,109.49338699577345,113.83679220556819,117.59513580999125,120.2252310237244,101.4211275740107,98.954429332579195]
[]
[null,null,"Retained earnings"]
[]
[null,null,null,null,"Less dividends paid",null,"£m nominal",null,null,null,null,null,null,null,null,null,null,null,null,null,null,null,null,null,null,null,null,null,null,null,null,null,null,null,null,{"$f":" -'Finance&Tax'!AJ155","v":-50.053042393407658},{"$f":" -'Finance&Tax'!AK155","v":-52.388798109998575},{"$f":" -'Finance&Tax'!AL155","v":-54.607076702787616},{"$f":" -'Finance&Tax'!AM155","v":-56.950721969842938},{"$f":" -'Finance&Tax'!AN155","v":-59.539999207971704},{"$f":" -'Finance&Tax'!AO155","v":-62.314091320716017},{"$f":" -'Finance&Tax'!AP155","v":-65.604558714381753},{"$f":" -'Finance&Tax'!AQ155","v":-69.129885291682882}]
[null,null,null,null,"Retained earnings for the year",null,"£m nominal",null,null,null,null,null,null,null,null,null,null,null,null,null,null,null,null,null,null,null,null,null,null,null,null,null,null,null,null,{"$f":"AJ88 + AJ92","v":61.425230424322187},54.925761589300308,54.886310292985833,56.886070235725249,58.055136602019545,57.911139703008388,35.816568859628944,29.824544040896313]
[]
[null,"Regulatory cash flow statement"]
[null,"Note: Calculations of the regulatory cash flow statement below are done on a notional basis, in line with the assumptions in this model and in Final Proposals. These may be different from the cash flow statement shown in the companies’ accounts."]
[null,null,"Funds from operations (FFO)"]
[]
[null,null,null,null,"Operating revenue",null,"£m nominal",null,null,null,null,null,null,null,null,null,null,null,null,null,null,null,null,null,null,null,null,null,null,null,null,null,null,null,null,{"$f":"AJ67","v":411.14073619725974},{"$f":"AK67","v":420.37220860190143},437.84129026841822,461.74135497253116,487.98246335461681,508.22344401693005,498.55494620963225,515.38138055517265]
[null,null,null,null,"Less total operating costs",null,"£m nominal",null,null,null,null,null,null,null,null,null,null,null,null,null,null,null,null,null,null,null,null,null,null,null,null,null,null,null,null,{"$f":"SUM(AJ68:AJ71)","v":-126.96344160003949},-131.09680280350665,{"$f":"SUM(AL68:AL71)","v":-136.62712635046287},-147.66712172776977,-161.72462624186531,-169.0604478494235,-172.38876320808987,-178.82191012186155]
[null,null,null,null,"Net cash flow from operations",null,"£m nominal",null,null,null,null,null,null,null,null,null,null,null,null,null,null,null,null,null,null,null,null,null,null,null,null,null,null,null,null,{"$f":"SUM(AJ99:AJ100)","v":284.17729459722023},{"$f":"SUM(AK99:AK100)","v":289.27540579839479},301.21416391795537,314.07423324476139,326.25783711275153,339.16299616750655,326.16618300154238,336.55947043331111]
[null,null,null,null,"Less net interest paid (interest coupon)",null,"£m nominal",null,null,null,null,null,null,null,null,null,null,null,null,null,null,null,null,null,null,null,null,null,null,null,null,null,null,null,null,{"$f":"AJ81","v":-67.538338615113901},{"$f":"AK81","v":-70.939603931186369},-73.980172932384846,-77.119857659447604,-80.561498999996459,-84.271354318040565,-88.605034277409175,-93.329635949234657]
[null,null,null,null,"Less tax paid",null,"£m nominal",null,null,null,null,null,null,null,null,null,null,null,null,null,null,null,null,null,null,null,null,null,null,null,null,null,null,null,null,{"$f":"AJ87","v":-18.008717708856953},{"$f":"AK87","v":-17.005243959477575},-17.331660509502825,-18.28761960189372,-18.943153059958586,-19.63596481012792,-14.964506920081982,-14.798822541032207]
[null,null,null,null,"FFO",null,"£m nominal",null,null,null,null,null,null,null,null,null,null,null,null,null,null,null,null,null,null,null,null,null,null,null,null,null,null,null,null,{"$f":"SUM(AJ101:AJ103)","v":198.63023827324938},201.33055790773085,209.9023304760677,218.66675598342007,226.75318505279651,235.25567703933808,222.59664180405122,228.43101194304424]
[]
[null,null,"Retained cash flow (RCF)"]
[]
[null,null,null,null,"Less dividends paid",null,"£m nominal",null,null,null,null,null,null,null,null,null,null,null,null,null,null,null,null,null,null,null,null,null,null,null,null,null,null,null,null,{"$f":"AJ92","v":-50.053042393407658},{"$f":"AK92","v":-52.388798109998575},-54.607076702787616,-56.950721969842938,-59.539999207971704,-62.314091320716017,-65.604558714381753,-69.129885291682882]
[null,null,null,null,"RCF",null,"£m nominal",null,null,null,null,null,null,null,null,null,null,null,null,null,null,null,null,null,null,null,null,null,null,null,null,null,null,null,null,{"$f":"AJ104 + AJ108","v":148.57719587984172},148.94175979773229,155.29525377328008,161.71603401357714,167.21318584482481,172.94158571862206,156.99208308966945,159.30112665136136]
[]
[null,null,"Net cash flow before financing"]
[]
[null,null,null,null,"Net slow pot expenditure",null,"£m nominal",null,null,null,null,null,null,null,null,null,null,null,null,null,null,null,null,null,null,null,null,null,null,null,null,null,null,null,null,{"$f":"-TIM!AJ72* Input!AJ$54 / Input!$AG$54","v":-226.66146778628911},{"$f":"-TIM!AK72* Input!AK$54 / Input!$AG$54","v":-233.7803209984724},{"$f":"-TIM!AL72* Input!AL$54 / Input!$AG$54","v":-233.44221166586118},{"$f":"-TIM!AM72* Input!AM$54 / Input!$AG$54","v":-243.7039931035832},{"$f":"-TIM!AN72* Input!AN$54 / Input!$AG$54","v":-258.13580802755962},{"$f":"-TIM!AO72* Input!AO$54 / Input!$AG$54","v":-270.16046953894511},{"$f":"-TIM!AP72* Input!AP$54 / Input!$AG$54","v":-275.24808529280443},{"$f":"-TIM!AQ72* Input!AQ$54 / Input!$AG$54","v":-285.85290316734381}]
[null,null,null,null,"Less RAV adjustment from previous price controls",null,"£m nominal",null,null,null,null,null,null,null,null,null,null,null,null,null,null,null,null,null,null,null,null,null,null,null,null,null,null,null,null,{"$f":"'Finance&Tax'!AJ28","v":0},{"$f":"'Finance&Tax'!AK28","v":0},{"$f":"'Finance&Tax'!AL28","v":0},{"$f":"'Finance&Tax'!AM28","v":0},{"$f":"'Finance&Tax'!AN28","v":0},{"$f":"'Finance&Tax'!AO28","v":0},{"$f":"'Finance&Tax'!AP28","v":0},{"$f":"'Finance&Tax'!AQ28","v":0}]
[null,null,null,null,"Less post-vesting disposal proceeds",null,"£m nominal",null,null,null,null,null,null,null,null,null,null,null,null,null,null,null,null,null,null,null,null,null,null,null,null,null,null,null,null,{"$f":"'Finance&Tax'!AJ29","v":0},{"$f":"'Finance&Tax'!AK29","v":0},{"$f":"'Finance&Tax'!AL29","v":0},{"$f":"'Finance&Tax'!AM29","v":0},{"$f":"'Finance&Tax'!AN29","v":0},{"$f":"'Finance&Tax'!AO29","v":0},{"$f":"'Finance&Tax'!AP29","v":0},{"$f":"'Finance&Tax'!AQ29","v":0}]
[null,null,null,null,"Net cash flow before financing",null,"£m nominal",null,null,null,null,null,null,null,null,null,null,null,null,null,null,null,null,null,null,null,null,null,null,null,null,null,null,null,null,{"$f":"AJ109 + SUM(AJ113:AJ115)","v":-78.084271906447384},-84.838561200740116,-78.146957892581099,-81.987959090006058,-90.922622182734813,-97.218883820323043,-118.25600220313498,-126.55177651598245]
[]
[null,null,"Change in net debt"]
[]
[null,null,null,null,"Equity issuance",null,"£m nominal",null,null,null,null,null,null,null,null,null,null,null,null,null,null,null,null,null,null,null,null,null,null,null,null,null,null,null,null,{"$f":"'Finance&Tax'!AJ141","v":0},{"$f":"'Finance&Tax'!AK141","v":23.338186589622691},{"$f":"'Finance&Tax'!AL141","v":30.153032521535795},{"$f":"'Finance&Tax'!AM141","v":27.148508518703139},{"$f":"'Finance&Tax'!AN141","v":27.959495464781199},{"$f":"'Finance&Tax'!AO141","v":30.574188972592207},{"$f":"'Finance&Tax'!AP141","v":32.273311215275342},{"$f":"'Finance&Tax'!AQ141","v":39.611918255689574}]
[null,null,null,null,"Net cash flow from financing",null,"£m nominal",null,null,null,null,null,null,null,null,null,null,null,null,null,null,null,null,null,null,null,null,null,null,null,null,null,null,null,null,{"$f":"AJ120","v":0},{"$f":"AK120","v":23.338186589622691},30.153032521535795,27.148508518703139,27.959495464781199,30.574188972592207,32.273311215275342,39.611918255689574]
[null,null,null,null,"Change in net debt",null,"£m nominal",null,null,null,null,null,null,null,null,null,null,null,null,null,null,null,null,null,null,null,null,null,null,null,null,null,null,null,null,{"$f":"AJ116 + AJ121","v":-78.084271906447384},{"$f":"AK116 + AK121","v":-61.500374611117422},-47.993925371045307,-54.839450571302919,-62.963126717953614,-66.644694847730833,-85.982690987859641,-86.93985826029288]
[]
[null,null,null,null,"Check",null,"£m nominal",null,null,null,null,null,null,null,null,null,null,null,null,null,null,null,null,null,null,null,null,null,null,null,null,null,null,null,null,{"$f":"ROUND(AJ122,4) - ROUND('Finance&Tax'!AJ36 - 'Finance&Tax'!AJ22 + 'Finance&Tax'!AJ141 + 'Finance&Tax'!AJ145 - AJ82,4)","v":0},{"$f":"ROUND(AK122,4) - ROUND('Finance&Tax'!AK36 - 'Finance&Tax'!AK22 + 'Finance&Tax'!AK141 + 'Finance&Tax'!AK145 - AK82,4)","v":0},{"$f":"ROUND(AL122,4) - ROUND('Finance&Tax'!AL36 - 'Finance&Tax'!AL22 + 'Finance&Tax'!AL141 + 'Finance&Tax'!AL145 - AL82,4)","v":0},{"$f":"ROUND(AM122,4) - ROUND('Finance&Tax'!AM36 - 'Finance&Tax'!AM22 + 'Finance&Tax'!AM141 + 'Finance&Tax'!AM145 - AM82,4)","v":0},{"$f":"ROUND(AN122,4) - ROUND('Finance&Tax'!AN36 - 'Finance&Tax'!AN22 + 'Finance&Tax'!AN141 + 'Finance&Tax'!AN145 - AN82,4)","v":0},{"$f":"ROUND(AO122,4) - ROUND('Finance&Tax'!AO36 - 'Finance&Tax'!AO22 + 'Finance&Tax'!AO141 + 'Finance&Tax'!AO145 - AO82,4)","v":0},{"$f":"ROUND(AP122,4) - ROUND('Finance&Tax'!AP36 - 'Finance&Tax'!AP22 + 'Finance&Tax'!AP141 + 'Finance&Tax'!AP145 - AP82,4)","v":0},{"$f":"ROUND(AQ122,4) - ROUND('Finance&Tax'!AQ36 - 'Finance&Tax'!AQ22 + 'Finance&Tax'!AQ141 + 'Finance&Tax'!AQ145 - AQ82,4)","v":0}]
[]
[null,"Statutory depreciation calculations"]
[null,"Note:Statutory depreciation is estimated below by adjusting the statutory depreciation figures from the companies’ business plans for differences in capex. Statutory depreciation is used in the regulatory income statement. The values of statutory depreciation may be different from the values shown in companies’ accounts."]
[]
[null,null,null,null,"Statutory depreciation as per BPDT",null,"£m nominal",null,null,null,null,null,null,null,null,null,null,null,null,null,null,null,null,null,null,null,null,null,null,null,null,null,null,null,null,{"$f":"Input!AJ399 * Input!AJ$54 / Input!$AG$54","v":78.720181520416162},{"$f":"Input!AK399 * Input!AK$54 / Input!$AG$54","v":86.42211232857899},{"$f":"Input!AL399 * Input!AL$54 / Input!$AG$54","v":93.864971030408199},{"$f":"Input!AM399 * Input!AM$54 / Input!$AG$54","v":99.541923056384292},{"$f":"Input!AN399 * Input!AN$54 / Input!$AG$54","v":105.35749555272545},{"$f":"Input!AO399 * Input!AO$54 / Input!$AG$54","v":112.96678732857836},{"$f":"Input!AP399 * Input!AP$54 / Input!$AG$54","v":121.02551733845685},{"$f":"Input!AQ399 * Input!AQ$54 / Input!$AG$54","v":131.49796176692348}]
[]
[null,null,null,null,"Capex as per BPDT",null,"£m nominal",null,null,null,null,null,null,null,null,null,null,null,null,null,null,null,null,null,null,null,null,null,null,null,null,null,null,null,null,{"$f":"Input!AJ400 * Input!AJ$54 / Input!$AG$54","v":233.24365383735955},{"$f":"Input!AK400 * Input!AK$54 / Input!$AG$54","v":247.01004821274452},{"$f":"Input!AL400 * Input!AL$54 / Input!$AG$54","v":250.60088795053943},{"$f":"Input!AM400 * Input!AM$54 / Input!$AG$54","v":269.56337430016322},{"$f":"Input!AN400 * Input!AN$54 / Input!$AG$54","v":295.71495831526437},{"$f":"Input!AO400 * Input!AO$54 / Input!$AG$54","v":320.37122933950513},{"$f":"Input!AP400 * Input!AP$54 / Input!$AG$54","v":336.66980578514762},{"$f":"Input!AQ400 * Input!AQ$54 / Input!$AG$54","v":359.95714194711337}]
[null,null,null,null,"Capex as per PCFM",null,"£m nominal",null,null,null,null,null,null,null,null,null,null,null,null,null,null,null,null,null,null,null,null,null,null,null,null,null,null,null,null,{"$f":"(Totex!AJ84-Totex!AJ83) * Input!AJ$54 / Input!$AG$54","v":181.76400040335392},{"$f":"(Totex!AK84-Totex!AK83) * Input!AK$54 / Input!$AG$54","v":187.59407278366095},{"$f":"(Totex!AL84-Totex!AL83) * Input!AL$54 / Input!$AG$54","v":183.96951427408328},{"$f":"(Totex!AM84-Totex!AM83) * Input!AM$54 / Input!$AG$54","v":193.02287792623511},{"$f":"(Totex!AN84-Totex!AN83) * Input!AN$54 / Input!$AG$54","v":206.79137881481475},{"$f":"(Totex!AO84-Totex!AO83) * Input!AO$54 / Input!$AG$54","v":218.55621066170323},{"$f":"(Totex!AP84-Totex!AP83) * Input!AP$54 / Input!$AG$54","v":222.89520098616342},{"$f":"(Totex!AQ84-Totex!AQ83) * Input!AQ$54 / Input!$AG$54","v":232.11115005402976}]
[null,null,null,null,"Capex difference",null,"£m nominal",null,null,null,null,null,null,null,null,null,null,null,null,null,null,null,null,null,null,null,null,null,null,null,null,null,null,null,null,{"$f":"AJ132-AJ131","v":-51.479653434005627},{"$f":"AK132-AK131","v":-59.415975429083574},{"$f":"AL132-AL131","v":-66.63137367645615},-76.540496373928107,-88.92357950044962,-101.8150186778019,-113.7746047989842,-127.84599189308361]
[]
[null,null,null,null,"Asset life for statutory depreciation calculations",null,"scalar",null,45]
[]
[null,null,null,null,"2016-03-31",null,"£m nominal",null,null,null,null,null,null,null,null,null,null,null,null,null,null,null,null,null,null,null,null,null,null,null,null,null,null,null,null,{"$f":"IF($E137 <= AJ$7, INDEX($AJ$133:$AQ$133,MATCH($E137,$AJ$7:$AQ$7,0)) / $I$135, 0)","v":-1.1439922985334583},-1.1439922985334583,-1.1439922985334583,-1.1439922985334583,-1.1439922985334583,-1.1439922985334583,-1.1439922985334583,-1.1439922985334583]
[null,null,null,null,"2017-03-31",null,"£m nominal",null,null,null,null,null,null,null,null,null,null,null,null,null,null,null,null,null,null,null,null,null,null,null,null,null,null,null,null,0,-1.3203550095351906,-1.3203550095351906,-1.3203550095351906,-1.3203550095351906,-1.3203550095351906,-1.3203550095351906,-1.3203550095351906]
[null,null,null,null,"2018-03-31",null,"£m nominal",null,null,null,null,null,null,null,null,null,null,null,null,null,null,null,null,null,null,null,null,null,null,null,null,null,null,null,null,0,0,-1.4806971928101367,-1.4806971928101367,-1.4806971928101367,-1.4806971928101367,-1.4806971928101367,-1.4806971928101367]
[null,null,null,null,"2019-03-31",null,"£m nominal",null,null,null,null,null,null,null,null,null,null,null,null,null,null,null,null,null,null,null,null,null,null,null,null,null,null,null,null,0,0,0,-1.7008999194206247,-1.7008999194206247,-1.7008999194206247,-1.7008999194206247,-1.7008999194206247]
[null,null,null,null,"2020-03-31",null,"£m nominal",null,null,null,null,null,null,null,null,null,null,null,null,null,null,null,null,null,null,null,null,null,null,null,null,null,null,null,null,0,0,0,0,-1.9760795444544359,-1.9760795444544359,-1.9760795444544359,-1.9760795444544359]
[null,null,null,null,"2021-03-31",null,"£m nominal",null,null,null,null,null,null,null,null,null,null,null,null,null,null,null,null,null,null,null,null,null,null,null,null,null,null,null,null,0,0,0,0,0,-2.2625559706178202,-2.2625559706178202,-2.2625559706178202]
[null,null,null,null,"2022-03-31",null,"£m nominal",null,null,null,null,null,null,null,null,null,null,null,null,null,null,null,null,null,null,null,null,null,null,null,null,null,null,null,null,0,0,0,0,0,0,-2.5283245510885379,-2.5283245510885379]
[null,null,null,null,"2023-03-31",null,"£m nominal",null,null,null,null,null,null,null,null,null,null,null,null,null,null,null,null,null,null,null,null,null,null,null,null,null,null,null,null,0,0,0,0,0,0,0,-2.8410220420685244]
[null,null,null,null,"Total",null,"£m nominal",null,null,null,null,null,null,null,null,null,null,null,null,null,null,null,null,null,null,null,null,null,null,null,null,null,null,null,null,{"$f":"SUM(AJ137:AJ144)","v":-1.1439922985334583},{"$f":"SUM(AK137:AK144)","v":-2.4643473080686489},-3.9450445008787858,-5.6459444202994105,-7.6220239647538461,-9.8845799353716668,-12.412904486460205,-15.25392652852873]
[]
[null,null,null,null,"Statutory depreciation as per PCFM",null,null,null,null,null,null,null,null,null,null,null,null,null,null,null,null,null,null,null,null,null,null,null,null,null,null,null,null,null,null,{"$f":"IF(AJ129=0,Revenue!AJ15*(Input!AJ$54 / Input!$AG$54),AJ129 + AJ145)","v":77.5761892218827},{"$f":"IF(AK129=0,Revenue!AK15*(Input!AK$54 / Input!$AG$54),AK129 + AK145)","v":83.957765020510337},{"$f":"IF(AL129=0,Revenue!AL15*(Input!AL$54 / Input!$AG$54),AL129 + AL145)","v":89.91992652952942},{"$f":"IF(AM129=0,Revenue!AM15*(Input!AM$54 / Input!$AG$54),AM129 + AM145)","v":93.895978636084877},{"$f":"IF(AN129=0,Revenue!AN15*(Input!AN$54 / Input!$AG$54),AN129 + AN145)","v":97.735471587971603},{"$f":"IF(AO129=0,Revenue!AO15*(Input!AO$54 / Input!$AG$54),AO129 + AO145)","v":103.0822073932067},{"$f":"IF(AP129=0,Revenue!AP15*(Input!AP$54 / Input!$AG$54),AP129 + AP145)","v":108.61261285199664},{"$f":"IF(AQ129=0,Revenue!AQ15*(Input!AQ$54 / Input!$AG$54),AQ129 + AQ145)","v":116.24403523839476}]
[]
[null,"End of sheet"]

{"sheet":"FinancialRatios","index":18,"n_rows":70,"n_cols":43,"rows_kept":70,"cut":false,"hidden":false,"merged":[[9,1,9,42],[52,1,52,42]]}
["Financial ratios",null,null,null,null,null,null,null,null,null,null,null,null,null,null,null,null,null,null,null,null,null,null,null,null,null,null,null,null,null,null,null,null,null,null,"Done"]
[null,{"$f":"UserInterface!G24","v":"WMID"}]
[]
[]
[]
[null,null,null,null,"Parameter",null,"Units",null,"Constant",null,null,null,null,null,null,null,null,null,null,null,null,null,null,null,null,null,null,null,null,null,null,null,null,null,null,"Annual values"]
[null,null,null,null,"PCFM year ending",null,null,null,{"$f":"UserInterface!$G$17","v":"2016-03-31"},null,"1991-03-31","1992-03-31","1993-03-31","1994-03-31","1995-03-31","1996-03-31","1997-03-31","1998-03-31","1999-03-31","2000-03-31","2001-03-31","2002-03-31","2003-03-31","2004-03-31","2005-03-31","2006-03-31","2007-03-31","2008-03-31","2009-03-31","2010-03-31","2011-03-31","2012-03-31","2013-03-31","2014-03-31","2015-03-31","2016-03-31","2017-03-31","2018-03-31","2019-03-31","2020-03-31","2021-03-31","2022-03-31","2023-03-31"]
[]
[null,"Credit ratios"]
[null,"Note: Credit ratios are calculated on a notional basis, in line with the assumptions in this model and in Final Proposals. These may be different from the ratios that the companies or credit rating agencies calculate for the actual company."]
[null,null,"Interest cover ratios"]
[]
[null,null,null,null,"Funds from operations (FFO)",null,"£m nominal",null,null,null,null,null,null,null,null,null,null,null,null,null,null,null,null,null,null,null,null,null,null,null,null,null,null,null,null,{"$f":"FinancialStatements!AJ104","v":198.63023827324938},{"$f":"FinancialStatements!AK104","v":201.33055790773085},{"$f":"FinancialStatements!AL104","v":209.9023304760677},{"$f":"FinancialStatements!AM104","v":218.66675598342007},{"$f":"FinancialStatements!AN104","v":226.75318505279651},{"$f":"FinancialStatements!AO104","v":235.25567703933808},{"$f":"FinancialStatements!AP104","v":222.59664180405122},{"$f":"FinancialStatements!AQ104","v":228.43101194304424}]
[null,null,null,null,"RAV depreciation",null,"£m nominal",null,null,null,null,null,null,null,null,null,null,null,null,null,null,null,null,null,null,null,null,null,null,null,null,null,null,null,null,{"$f":"'Return&RAV'!AJ46  * Input!AJ$54 / Input!$AG$54","v":-184.69933187303451},{"$f":"'Return&RAV'!AK46  * Input!AK$54 / Input!$AG$54","v":-193.94215470446844},{"$f":"'Return&RAV'!AL46  * Input!AL$54 / Input!$AG$54","v":-201.39944056912029},{"$f":"'Return&RAV'!AM46  * Input!AM$54 / Input!$AG$54","v":-208.96188954257499},{"$f":"'Return&RAV'!AN46  * Input!AN$54 / Input!$AG$54","v":-215.72390175762089},{"$f":"'Return&RAV'!AO46  * Input!AO$54 / Input!$AG$54","v":-222.95558745948458},{"$f":"'Return&RAV'!AP46  * Input!AP$54 / Input!$AG$54","v":-209.33759662690903},{"$f":"'Return&RAV'!AQ46  * Input!AQ$54 / Input!$AG$54","v":-213.85376910026591}]
[null,null,null,null,"Net interest paid (interest coupon)",null,"£m nominal",null,null,null,null,null,null,null,null,null,null,null,null,null,null,null,null,null,null,null,null,null,null,null,null,null,null,null,null,{"$f":"FinancialStatements!AJ81","v":-67.538338615113901},{"$f":"FinancialStatements!AK81","v":-70.939603931186369},{"$f":"FinancialStatements!AL81","v":-73.980172932384846},{"$f":"FinancialStatements!AM81","v":-77.119857659447604},{"$f":"FinancialStatements!AN81","v":-80.561498999996459},{"$f":"FinancialStatements!AO81","v":-84.271354318040565},{"$f":"FinancialStatements!AP81","v":-88.605034277409175},{"$f":"FinancialStatements!AQ81","v":-93.329635949234657}]
[null,null,null,null,"Net interest paid (inflation coupon)",null,"£m nominal",null,null,null,null,null,null,null,null,null,null,null,null,null,null,null,null,null,null,null,null,null,null,null,null,null,null,null,null,{"$f":"FinancialStatements!AJ82","v":-9.5757762336368639},{"$f":"FinancialStatements!AK82","v":-10.058233187921553},{"$f":"FinancialStatements!AL82","v":-10.489016950764777},{"$f":"FinancialStatements!AM82","v":-10.933985141767085},{"$f":"FinancialStatements!AN82","v":-11.422577654833566},{"$f":"FinancialStatements!AO82","v":-11.948238622406953},{"$f":"FinancialStatements!AP82","v":-12.562901378043891},{"$f":"FinancialStatements!AQ82","v":-13.232547372070226}]
[]
[null,null,null,null,"FFO interest cover ratio (including accretions)"," ","scalar",null,null,null,null,null,null,null,null,null,null,null,null,null,null,null,null,null,null,null,null,null,null,null,null,null,null,null,null,{"$f":"(AJ13 - AJ15) / -(AJ15 + AJ16)","v":3.451619426747206},{"$f":"(AK13 - AK15) / -(AK15 + AK16)","v":3.3614497809187407},3.3607816506960835,3.3591562188900559,3.3409552525704034,3.3208104668987861,3.0760900088079071,3.0194637334157317]
[null,null,null,null,"FFO interest cover ratio (cash interest only)",null,"scalar",null,null,null,null,null,null,null,null,null,null,null,null,null,null,null,null,null,null,null,null,null,null,null,null,null,null,null,null,{"$f":"(AJ13 - AJ15) / -AJ15","v":3.9409997691118721},{"$f":"(AK13 - AK15) / -AK15","v":3.8380558496355262},3.8372781808432737,3.8354144136135111,3.8146594572775574,3.7916446690945755,3.5122347011021322,3.4475720881124627]
[null,null,null,null,"Adjusted interest cover ratio (post-maintenance interest cover ratio)",null,"scalar",null,null,null,null,null,null,null,null,null,null,null,null,null,null,null,null,null,null,null,null,null,null,null,null,null,null,null,null,{"$f":"(AJ13 + AJ14 - AJ15) / -AJ15","v":1.2062666433002451},{"$f":"(AK13 + AK14 - AK15) / -AK15","v":1.1041506125468279},1.1149347125035616,1.1258413427537775,1.1369051399499914,1.1459581334534259,1.1496421200586648,1.1561909322212232]
[]
[null,null,null,null,"Funds from operations (FFO) , reduced by pension deficit allowance revenue",null,"£m nominal",null,null,null,null,null,null,null,null,null,null,null,null,null,null,null,null,null,null,null,null,null,null,null,null,null,null,null,null,{"$f":"AJ13-DARTs!AJ19*(Input!AJ$54/Input!$AG$54)","v":172.90378337722078},{"$f":"AK13-DARTs!AK19*(Input!AK$54/Input!$AG$54)","v":174.88372859326216},{"$f":"AL13-DARTs!AL19*(Input!AL$54/Input!$AG$54)","v":182.71499536078147},{"$f":"AM13-DARTs!AM19*(Input!AM$54/Input!$AG$54)","v":190.71820297198562},{"$f":"AN13-DARTs!AN19*(Input!AN$54/Input!$AG$54)","v":198.02202455143777},{"$f":"AO13-DARTs!AO19*(Input!AO$54/Input!$AG$54)","v":205.72003552681798},{"$f":"AP13-DARTs!AP19*(Input!AP$54/Input!$AG$54)","v":192.23396826068728},{"$f":"AQ13-DARTs!AQ19*(Input!AQ$54/Input!$AG$54)","v":197.21817463620084}]
[]
[]
[]
[]
[]
[null,null,"Net debt cover ratios"]
[]
[null,null,null,null,"FFO",null,"£m nominal",null,null,null,null,null,null,null,null,null,null,null,null,null,null,null,null,null,null,null,null,null,null,null,null,null,null,null,null,{"$f":"AJ13","v":198.63023827324938},{"$f":"AK13","v":201.33055790773085},209.9023304760677,218.66675598342007,226.75318505279651,235.25567703933808,222.59664180405122,228.43101194304424]
[null,null,null,null,"Retained cash flow (RCF)",null,"£m nominal",null,null,null,null,null,null,null,null,null,null,null,null,null,null,null,null,null,null,null,null,null,null,null,null,null,null,null,null,{"$f":"FinancialStatements!AJ109","v":148.57719587984172},{"$f":"FinancialStatements!AK109","v":148.94175979773229},{"$f":"FinancialStatements!AL109","v":155.29525377328008},{"$f":"FinancialStatements!AM109","v":161.71603401357714},{"$f":"FinancialStatements!AN109","v":167.21318584482481},{"$f":"FinancialStatements!AO109","v":172.94158571862206},{"$f":"FinancialStatements!AP109","v":156.99208308966945},{"$f":"FinancialStatements!AQ109","v":159.30112665136136}]
[null,null,null,null,"Net interest paid (inflation coupon)",null,"£m nominal",null,null,null,null,null,null,null,null,null,null,null,null,null,null,null,null,null,null,null,null,null,null,null,null,null,null,null,null,{"$f":"AJ16","v":-9.5757762336368639},{"$f":"AK16","v":-10.058233187921553},-10.489016950764777,-10.933985141767085,-11.422577654833566,-11.948238622406953,-12.562901378043891,-13.232547372070226]
[null,null,null,null,"Closing net debt",null,"£m nominal",null,null,null,null,null,null,null,null,null,null,null,null,null,null,null,null,null,null,null,null,null,null,null,null,null,null,null,null,{"$f":"'Finance&Tax'!AJ36","v":-1410.7359501595577},{"$f":"'Finance&Tax'!AK36","v":-1482.2945579585967},{"$f":"'Finance&Tax'!AL36","v":-1540.7775002804067},{"$f":"'Finance&Tax'!AM36","v":-1606.5509359934767},{"$f":"'Finance&Tax'!AN36","v":-1680.9366403662643},{"$f":"'Finance&Tax'!AO36","v":-1759.5295738364018},{"$f":"'Finance&Tax'!AP36","v":-1858.0751662023056},{"$f":"'Finance&Tax'!AQ36","v":-1958.2475718346686}]
[]
[null,null,null,null,"FFO / Net Debt",null,"%",null,null,null,null,null,null,null,null,null,null,null,null,null,null,null,null,null,null,null,null,null,null,null,null,null,null,null,null,{"$f":"(AJ30 + AJ32) / -AJ33","v":0.13401123152651634},{"$f":"(AK30 + AK32) / -AK33","v":0.12903799969638147},0.12942382238124039,0.12930356964573481,0.12810156089586097,0.12691314868328202,0.11303834432882089,0.10989339022611735]
[null,null,null,null,"RCF / Net Debt",null,"%",null,null,null,null,null,null,null,null,null,null,null,null,null,null,null,null,null,null,null,null,null,null,null,null,null,null,null,null,{"$f":"(AJ31 + AJ32) / -AJ33","v":9.8531138751006844E-2},{"$f":"(AK31 + AK32) / -AK33","v":9.3694958174224116E-2},9.3982574898816965E-2,9.385450874520064E-2,9.268083308365839E-2,9.1497948934835011E-2,7.7730537676159991E-2,7.4591477288257518E-2]
[]
[null,null,"Calculated gearing"]
[]
[null,null,null,null,"Closing net debt",null,"£m nominal",null,null,null,null,null,null,null,null,null,null,null,null,null,null,null,null,null,null,null,null,null,null,null,null,null,null,null,null,{"$f":"AJ33","v":-1410.7359501595577},{"$f":"AK33","v":-1482.2945579585967},-1540.7775002804067,-1606.5509359934767,-1680.9366403662643,-1759.5295738364018,-1858.0751662023056,-1958.2475718346686]
[null,null,null,null,"Closing RAV",null,"£m nominal",null,null,null,null,null,null,null,null,null,null,null,null,null,null,null,null,null,null,null,null,null,null,null,null,null,null,null,null,{"$f":"'Return&RAV'!AJ47 * Input!AJ$54 / Input!$AG$54","v":2134.4580977998999},{"$f":"'Return&RAV'!AK47 * Input!AK$54 / Input!$AG$54","v":2234.063885287786},{"$f":"'Return&RAV'!AL47 * Input!AL$54 / Input!$AG$54","v":2328.6599873256978},{"$f":"'Return&RAV'!AM47 * Input!AM$54 / Input!$AG$54","v":2428.6022161979931},{"$f":"'Return&RAV'!AN47 * Input!AN$54 / Input!$AG$54","v":2539.0191559902646},{"$f":"'Return&RAV'!AO47 * Input!AO$54 / Input!$AG$54","v":2657.3173271094252},{"$f":"'Return&RAV'!AP47 * Input!AP$54 / Input!$AG$54","v":2797.6357660717167},{"$f":"'Return&RAV'!AQ47 * Input!AQ$54 / Input!$AG$54","v":2947.9695220333851}]
[]
[null,null,null,null,"Net Debt / Closing RAV",null,"%",null,null,null,null,null,null,null,null,null,null,null,null,null,null,null,null,null,null,null,null,null,null,null,null,null,null,null,null,{"$f":"-AJ40 / AJ41","v":0.66093401018913356},{"$f":"-AK40 / AK41","v":0.66349694282249749},0.66165842530316388,0.66151258747863295,0.66204173229668595,0.66214507235776077,0.66415906914548439,0.66426995163910374]
[]
[null,null,"RCF / Capex"]
[]
[null,null,null,null,"RCF",null,"£m nominal",null,null,null,null,null,null,null,null,null,null,null,null,null,null,null,null,null,null,null,null,null,null,null,null,null,null,null,null,{"$f":"AJ31","v":148.57719587984172},{"$f":"AK31","v":148.94175979773229},155.29525377328008,161.71603401357714,167.21318584482481,172.94158571862206,156.99208308966945,159.30112665136136]
[null,null,null,null,"Capex (slow pot expenditure)",null,"£m nominal",null,null,null,null,null,null,null,null,null,null,null,null,null,null,null,null,null,null,null,null,null,null,null,null,null,null,null,null,{"$f":"FinancialStatements!AJ113","v":-226.66146778628911},{"$f":"FinancialStatements!AK113","v":-233.7803209984724},{"$f":"FinancialStatements!AL113","v":-233.44221166586118},{"$f":"FinancialStatements!AM113","v":-243.7039931035832},{"$f":"FinancialStatements!AN113","v":-258.13580802755962},{"$f":"FinancialStatements!AO113","v":-270.16046953894511},{"$f":"FinancialStatements!AP113","v":-275.24808529280443},{"$f":"FinancialStatements!AQ113","v":-285.85290316734381}]
[]
[null,null,null,null,"RCF / Capex",null,"scalar",null,null,null,null,null,null,null,null,null,null,null,null,null,null,null,null,null,null,null,null,null,null,null,null,null,null,null,null,{"$f":"AJ47 / -AJ48","v":0.65550266364607579},{"$f":"AK47 / -AK48","v":0.63710135721263517},0.66524067204933279,0.66357564336191177,0.64777214413806727,0.64014393376560075,0.57036575903030828,0.55728357097742476]
[]
[null,"Equity ratios"]
[null,"Note: Equity ratios are calculated on a notional basis, in line with the assumptions in this model and in Final Proposals. These may be different from the ratios that the companies or analysts calculate for the actual company."]
[null,null,"Regulated equity to earnings ratios"]
[]
[null,null,null,null,"Regulated equity",null,"£m nominal",null,null,null,null,null,null,null,null,null,null,null,null,null,null,null,null,null,null,null,null,null,null,null,null,null,null,null,null,{"$f":"AJ41 + AJ40","v":723.7221476403422},{"$f":"AK41 + AK40","v":751.76932732918931},787.8824870452911,822.05128020451639,858.08251562400028,897.78775327302333,939.56059986941113,989.72195019871651]
[null,null,null,null,"EBITDA",null,"£m nominal",null,null,null,null,null,null,null,null,null,null,null,null,null,null,null,null,null,null,null,null,null,null,null,null,null,null,null,null,{"$f":"FinancialStatements!AJ72","v":284.17729459722028},{"$f":"FinancialStatements!AK72","v":289.27540579839473},{"$f":"FinancialStatements!AL72","v":301.21416391795532},{"$f":"FinancialStatements!AM72","v":314.07423324476144},{"$f":"FinancialStatements!AN72","v":326.25783711275147},{"$f":"FinancialStatements!AO72","v":339.16299616750655},{"$f":"FinancialStatements!AP72","v":326.16618300154238},{"$f":"FinancialStatements!AQ72","v":336.55947043331105}]
[null,null,null,null,"PAT",null,"£m nominal",null,null,null,null,null,null,null,null,null,null,null,null,null,null,null,null,null,null,null,null,null,null,null,null,null,null,null,null,{"$f":"FinancialStatements!AJ88","v":111.47827281772985},{"$f":"FinancialStatements!AK88","v":107.31455969929888},{"$f":"FinancialStatements!AL88","v":109.49338699577345},{"$f":"FinancialStatements!AM88","v":113.83679220556819},{"$f":"FinancialStatements!AN88","v":117.59513580999125},{"$f":"FinancialStatements!AO88","v":120.2252310237244},{"$f":"FinancialStatements!AP88","v":101.4211275740107},{"$f":"FinancialStatements!AQ88","v":98.954429332579195}]
[]
[null,null,null,null,"Regulated equity / EBITDA",null,"scalar",null,null,null,null,null,null,null,null,null,null,null,null,null,null,null,null,null,null,null,null,null,null,null,null,null,null,null,null,{"$f":"AJ56 / AJ57","v":2.5467275584635023},{"$f":"AK56 / AK57","v":2.5988013922383755},2.6156887073208632,2.6173789288976246,2.6300747997892704,2.6470687056603959,2.880619294198774,2.940704502905465]
[null,null,null,null,"Regulated equity / PAT",null,"scalar",null,null,null,null,null,null,null,null,null,null,null,null,null,null,null,null,null,null,null,null,null,null,null,null,null,null,null,null,{"$f":"AJ56 / AJ58","v":6.4920466504145482},{"$f":"AK56 / AK58","v":7.0052873481071627},7.1957084227899912,7.221314517717996,7.2969218472648336,7.4675485805126893,9.2639534024484149,10.0017953402806]
[]
[null,null,"Dividend cover ratio"]
[]
[null,null,null,null,"PAT",null,"£m nominal",null,null,null,null,null,null,null,null,null,null,null,null,null,null,null,null,null,null,null,null,null,null,null,null,null,null,null,null,{"$f":"AJ58","v":111.47827281772985},{"$f":"AK58","v":107.31455969929888},109.49338699577345,113.83679220556819,117.59513580999125,120.2252310237244,101.4211275740107,98.954429332579195]
[null,null,null,null,"Dividends paid",null,"£m nominal",null,null,null,null,null,null,null,null,null,null,null,null,null,null,null,null,null,null,null,null,null,null,null,null,null,null,null,null,{"$f":"FinancialStatements!AJ108","v":-50.053042393407658},{"$f":"FinancialStatements!AK108","v":-52.388798109998575},{"$f":"FinancialStatements!AL108","v":-54.607076702787616},{"$f":"FinancialStatements!AM108","v":-56.950721969842938},{"$f":"FinancialStatements!AN108","v":-59.539999207971704},{"$f":"FinancialStatements!AO108","v":-62.314091320716017},{"$f":"FinancialStatements!AP108","v":-65.604558714381753},{"$f":"FinancialStatements!AQ108","v":-69.129885291682882}]
[]
[null,null,null,null,"Dividend cover ratio",null,"scalar",null,null,null,null,null,null,null,null,null,null,null,null,null,null,null,null,null,null,null,null,null,null,null,null,null,null,null,null,{"$f":"AJ65 / -AJ66","v":2.2272027330832604},{"$f":"AK65 / -AK66","v":2.0484256858493866},2.0051135055574942,1.9988647776203448,1.9750610912713389,1.9293426009368142,1.5459463421674884,1.4314276512257507]
[]
[null,"End of sheet"]

{"sheet":"Incentives","index":19,"n_rows":39,"n_cols":29,"rows_kept":39,"cut":false,"hidden":false,"merged":[[9,5,9,16],[11,1,14,1],[3,18,3,22],[4,5,5,6],[4,7,5,8],[4,9,5,10],[4,11,4,16],[4,18,5,19],[4,20,5,21],[4,22,5,22],[2,7,2,8],[2,9,2,10],[3,5,3,16],[27,18,27,22],[18,1,20,1],[18,5,18,16],[22,1,28,1],[22,11,23,16],[24,7,24,8],[24,9,24,10],[26,5,26,16],[27,5,27,16],[28,5,28,16],[7,1,9,1],[7,2,8,2],[7,11,8,16],[11,26,13,26],[11,27,12,27],[11,28,12,28],[18,28,19,28],[30,5,30,16],[30,18,30,22],[16,5,16,16],[16,18,16,22],[24,18,24,22],[25,18,25,22]]}
[null,"RIIO-ED1 Outputs & Incentives",null,null,null,null,"average figures per DNO"]
[null,"(all 2008/9 figures)"]
["Reg Finance Model Ref","Output category","Incentive name","Primary output","Secondary output","Incentive mechanism","Expected Value (£m or % of Revenue) of incentive","Likely High (£m or % of Revenue) of incentive",null,"Likely Low (£m or % of Revenue) of incentive",null,null,null,null,null,null,null,null,null,null,null,null,null,"Likely High (£m or % of Revenue) of incentive","Mid point (£m or % of Revenue) of incentive","Likely Low (£m or % of Revenue) of incentive","Incentive Policy Manager"]
[null,null,null,null,null,"DPCR5",null,null,null,null,null,null,null,null,null,null,null,null,"RIIO-ED1 proposals"]
[null,null,null,null,null,"value",null,"cap",null,"collar",null,"DP5 actuals to date",null,null,null,null,null,null,"value",null,"cap",null,"collar"]
[null,null,null,null,null,null,null,null,null,null,null,"average",null,"max",null,"min"]
[null,null,null,null,null,null,null,null,null,null,null,null,null,null,null,null,null,null,null,null,null,null,null,"revenue","revenue","revenue"]
[4.0999999999999996,"customer satisfaction","Broad measure of customer satisfaction (BMCS)",null,null,"+/- 1%","allowed rev","+ 1%","allowed rev","- 1%","allowed rev","only started 1/4/12 so no performance data",null,null,null,null,null,null,"+/- 1.5","base rev",1.4999999999999999E-2,null,-1.4999999999999999E-2,1.4999999999999999E-2,-1E-3,-1.4999999999999999E-2,"JV","annual"]
[null,null,null,null,null,2.0016761335135236,"£m (avg)",null,null,null,null,null,null,null,null,null,null,null,2.5020951668919045,"£m (avg)"]
[4.2,null,"BMCS - DG?"]
[null,null,null,null,null,null,null,null,null,null,null,null,null,null,null,null,null,null,null,null,null,null,null,"bps","bps","bps"]
[4.3,"reliability & availability","interruptions incentive scheme (IIS)",null,null,null,null,"-",null,-139,"bps",null,null,null,null,null,null,null,"+/- 250-300 bps","Incentive strength applied",110,"bps",-110,{"$f":"U12","v":110},{"$f":"(X12+Z12)/2","v":0},{"$f":"W12","v":-110},"JH/KH",null,"Haven't decided value yet. "]
[null,null,null,null,null,null,null,null,null,{"$f":"-(13.7+13.4+12+8.2+10.7+6.2+8.9+11.7+10.5+16.7+11.8+11.1+7.7+15.9)/14","v":-11.321428571428571},"£m (avg)",3.21,"£m",7.57,"£m",-2.3254872824395791,"£m",null,null,null,null,null,null,"revenue","revenue","revenue"]
[4.4000000000000004,null,"GSOP",null,null,null,null,null,null,null,null,0.13,"£m",0.3,"£m",0,"£m"]
[4.5,null,"HIs and LIs ",null,null,null,null,null,null,null,null,null,null,null,null,null,null,null,null,null,2.5000000000000001E-2,null,-2.5000000000000001E-2,{"$f":"U15/8","v":3.1250000000000002E-3},0,{"$f":"W15/8","v":-3.1250000000000002E-3},"JH","end of 8 years","This is for HI - is there anything for LI? "]
[]
[4.5999999999999996,"safety"]
[null,null,null,null,null,null,null,null,null,null,null,null,null,null,null,null,null,null,null,null,null,null,null,"revenue","revenue","revenue"]
[4.7,"connections","time to connect",null,null,null,null,null,null,null,null,null,null,null,null,null,null,null,null,"base rev","+ 0.9%",null,"- 1.4%",4.0000000000000001E-3,-1E-3,-8.9999999999999993E-3,"JV","annual /","ICE will be calc'd biennially but limits are annual"]
[null,null,null,null,null,null,null,null,null,null,null,null,null,null,null,null,null,null,null,null,null,null,null,"revenue","revenue","revenue",null,"biennial"]
[4.8,null,"GSOP"]
[]
[4.9000000000000004,"environmental impact","losses",null,null,"£60/MWh",null,70,"bps",-70,"bps","not yet implemented",null,null,null,null,null,null,"£32m","disc reward over 8 years",null,null,null,null,null,null,"LF",null,"£m"]
[null,null,null,null,null,null,null,{"$f":"(5.2+5.1+4.5+3.1+4+2.3+3.4+4.4+4+6.3+4.5+4.2+2.9+6)/14","v":4.2785714285714285},"£m (avg)",{"$f":"-H24","v":-4.2785714285714285},"£m (avg)"]
[4.0999999999999996,null,"DG Incentive",null,null,"£1/kW p.a.",null,"2xWACC - return on UoS capex",null,"CoD -return on UoS capex",null,{"$f":"0.06*15","v":0.89999999999999991},"£m","exposed",null,null,null,null,null,null,null,null,null,null,null,null,null,"Value of \"incentive\" to cover 20% of connection DUoS capex. But capped and collared over 5 years against actual DUoS capex"]
[4.1100000000000003,null,"Transmission Pt Charges",null,null,null,null,null,null,null,null,{"$f":"(0+0+0+0+0+0+0+2.8+0.1+2.5+0+0+0.6+0+0+0+1+0+0+0+0+4.3+0+4+0.2+0+1.3+0+0+0+0.7+0+0+0.6+0.5+5.2+2+4+0.2+0+2.7+0+1+8.8+0.7+4.7+0+0.6+0.5+5.5+6.9+2.1+0.5+0.2+3.1+0+7.5+13.3+0.7+4.7+0+0.6+0.5+8.3+7.1+3.9+0.5+0.2+4.1+0)/(14*5)","v":1.6957142857142855},"£m","exposed",null,null,null,null,null,null,null,null,null,null,null,null,null,"very average - alot of companies have £0; up to a max of £13.3m"]
[4.12,null,"SF6?"]
[4.13,null,"BCF",null,null,"Reputational",null,null,null,null,null,null,null,null,null,null,null,null,"Reputational",null,null,null,null,null,null,null,"SF"]
[4.1399999999999997,null,"Broad environmental measure?",null,null,null,null,null,null,null,null,null,null,null,null,null,null,null,null,null,null,null,null,null,null,null,"LF"]
[]
[4.1500000000000004,"social obligations"]
[]
[null,"PLUS allowances for:"]
[4.16,null,"visual amenity"]
[4.17,null,"worst served customers"]
[4.18,null,"innovation (NIC & NIA)",null,null,500,"£m"]
[null,null,null,null,null,null,null,null,null,null,null,null,null,null,null,null,null,null,null,null,null,null,null,"revenue","revenue","revenue"]
[4.1900000000000004,"Low Carbon Technology",null,null,null,null,null,null,null,null,null,null,null,null,null,null,null,null,null,"base rev"]
[null,null,null,null,null,null,null,null,null,null,null,null,null,null,null,null,null,null,null,null,null,null,null,"revenue","revenue","revenue"]

{"sheet":"Incentive impact","index":20,"n_rows":173,"n_cols":34,"rows_kept":173,"cut":false,"hidden":false,"merged":[]}
[null,"RIIO average",null,null,null,null,null,null,null,null,null,null,null,null,null,null,null,"ENWL","NPgN","NPgY","WMID","EMID","SWALES","SWEST","LPN","SPN","EPN","SPD","SPMW","SSEH","SSES",null,null,"DPCR5 Average DNO"]
["Post-TIM totex allowance",null,"£m 12/13 prices",null,null,null,null,null,null,null,null,null,null,null,null,null,null,{"$f":"SavedResults!$O$30","v":0},{"$f":"SavedResults!$O$107","v":0},{"$f":"SavedResults!$O$184","v":0},{"$f":"SavedResults!$O$261","v":310.31020894630404},{"$f":"SavedResults!$O$338","v":298.94356344981935},{"$f":"SavedResults!$O$415","v":155.48504706688689},{"$f":"SavedResults!$O$492","v":234.21734508912462},{"$f":"SavedResults!$O$569","v":0},{"$f":"SavedResults!$O$646","v":0},{"$f":"SavedResults!$O$723","v":0},{"$f":"SavedResults!$O$800","v":0},{"$f":"SavedResults!$O$877","v":0},{"$f":"SavedResults!$O$954","v":0},{"$f":"SavedResults!$O$1031","v":0},null,"Debt (+/- 0.5%)",8.1866206943004421E-3]
["Final proposals base revenue",null,"£m 12/13 prices",null,null,null,null,null,null,null,null,null,null,null,null,null,null,{"$f":"SavedResults!$O$59","v":0},{"$f":"SavedResults!$O$136","v":0},{"$f":"SavedResults!$O$213","v":0},{"$f":"SavedResults!$O$290","v":545.33090166105978},{"$f":"SavedResults!$O$367","v":547.9735563222049},{"$f":"SavedResults!$O$444","v":267.16188085017109},{"$f":"SavedResults!$O$521","v":386.54577864536134},{"$f":"SavedResults!$O$598","v":0},{"$f":"SavedResults!$O$675","v":0},{"$f":"SavedResults!$O$752","v":0},{"$f":"SavedResults!$O$829","v":0},{"$f":"SavedResults!$O$906","v":0},{"$f":"SavedResults!$O$983","v":0},{"$f":"SavedResults!$O$1060","v":0},null,"Taxation trigger",2.9224580113888796E-3]
["Regulated equity",null,"£m 12/13 prices",null,null,null,null,null,null,null,null,null,null,null,null,null,null,{"$f":"SavedResults!$O$88","v":0},{"$f":"SavedResults!$O$165","v":0},{"$f":"SavedResults!$O$242","v":0},{"$f":"SavedResults!$O$319","v":742.75829457288501},{"$f":"SavedResults!$O$396","v":717.71608030221432},{"$f":"SavedResults!$O$473","v":334.0797704849432},{"$f":"SavedResults!$O$550","v":502.64050865126535},{"$f":"SavedResults!$O$627","v":0},{"$f":"SavedResults!$O$704","v":0},{"$f":"SavedResults!$O$781","v":0},{"$f":"SavedResults!$O$858","v":0},{"$f":"SavedResults!$O$935","v":0},{"$f":"SavedResults!$O$1012","v":0},{"$f":"SavedResults!$O$1089","v":0},null,"Incentives - Customer satisfaction",3.0000000000000001E-3]
[null,null,null,null,null,null,null,null,null,null,null,null,null,null,null,null,null,null,null,null,null,null,null,null,null,null,null,null,null,null,null,null,"Incentives - Interruptions",6.4014103764264982E-3]
["Broad Measure of Customer Satisfaction (BMCS)","Likely High","bps",null,null,null,null,null,null,null,null,null,null,null,null,null,null,{"$f":"Incentives!$X$8*R$3/R$4*100*100*(1-ENWL!$AM$312)","v":{"$error":"#DIV/0!"}},{"$f":"Incentives!$X$8*S$3/S$4*100*100*(1-NPgN!$AM$312)","v":{"$error":"#DIV/0!"}},{"$f":"Incentives!$X$8*T$3/T$4*100*100*(1-NPgY!$AM$312)","v":{"$error":"#DIV/0!"}},{"$f":"Incentives!$X$8*U$3/U$4*100*100*(1-WMID!$AM$312)","v":88.103638394179853},{"$f":"Incentives!$X$8*V$3/V$4*100*100*(1-EMID!$AM$312)","v":91.619553418638532},{"$f":"Incentives!$X$8*W$3/W$4*100*100*(1-SWALES!$AM$312)","v":95.963385198342721},{"$f":"Incentives!$X$8*X$3/X$4*100*100*(1-SWEST!$AM$312)","v":92.283635399600996},{"$f":"Incentives!$X$8*Y$3/Y$4*100*100*(1-LPN!$AM$312)","v":{"$error":"#DIV/0!"}},{"$f":"Incentives!$X$8*Z$3/Z$4*100*100*(1-SPN!$AM$312)","v":{"$error":"#DIV/0!"}},{"$f":"Incentives!$X$8*AA$3/AA$4*100*100*(1-EPN!$AM$312)","v":{"$error":"#DIV/0!"}},{"$f":"Incentives!$X$8*AB$3/AB$4*100*100*(1-SPD!$AM$312)","v":{"$error":"#DIV/0!"}},{"$f":"Incentives!$X$8*AC$3/AC$4*100*100*(1-SPMW!$AM$312)","v":{"$error":"#DIV/0!"}},{"$f":"Incentives!$X$8*AD$3/AD$4*100*100*(1-SSEH!$AM$312)","v":{"$error":"#DIV/0!"}},{"$f":"Incentives!$X$8*AE$3/AE$4*100*100*(1-SSES!$AM$312)","v":{"$error":"#DIV/0!"}},null,"Incentives - Losses",7.0000000000000019E-3]
[null,"Mid point","bps",null,null,null,null,null,null,null,null,null,null,null,null,null,null,{"$f":"Incentives!$Y$8*R$3/R$4*100*100*(1-ENWL!$AM$312)","v":{"$error":"#DIV/0!"}},{"$f":"Incentives!$Y$8*S$3/S$4*100*100*(1-NPgN!$AM$312)","v":{"$error":"#DIV/0!"}},{"$f":"Incentives!$Y$8*T$3/T$4*100*100*(1-NPgY!$AM$312)","v":{"$error":"#DIV/0!"}},{"$f":"Incentives!$Y$8*U$3/U$4*100*100*(1-WMID!$AM$312)","v":-5.8735758929453237},{"$f":"Incentives!$Y$8*V$3/V$4*100*100*(1-EMID!$AM$312)","v":-6.1079702279092354},{"$f":"Incentives!$Y$8*W$3/W$4*100*100*(1-SWALES!$AM$312)","v":-6.3975590132228497},{"$f":"Incentives!$Y$8*X$3/X$4*100*100*(1-SWEST!$AM$312)","v":-6.1522423599733997},{"$f":"Incentives!$Y$8*Y$3/Y$4*100*100*(1-LPN!$AM$312)","v":{"$error":"#DIV/0!"}},{"$f":"Incentives!$Y$8*Z$3/Z$4*100*100*(1-SPN!$AM$312)","v":{"$error":"#DIV/0!"}},{"$f":"Incentives!$Y$8*AA$3/AA$4*100*100*(1-EPN!$AM$312)","v":{"$error":"#DIV/0!"}},{"$f":"Incentives!$Y$8*AB$3/AB$4*100*100*(1-SPD!$AM$312)","v":{"$error":"#DIV/0!"}},{"$f":"Incentives!$Y$8*AC$3/AC$4*100*100*(1-SPMW!$AM$312)","v":{"$error":"#DIV/0!"}},{"$f":"Incentives!$Y$8*AD$3/AD$4*100*100*(1-SSEH!$AM$312)","v":{"$error":"#DIV/0!"}},{"$f":"Incentives!$Y$8*AE$3/AE$4*100*100*(1-SSES!$AM$312)","v":{"$error":"#DIV/0!"}},null,"Costs",2.6631856020100653E-2]
[null,"Likely Low","bps",null,null,null,null,null,null,null,null,null,null,null,null,null,null,{"$f":"Incentives!$Z$8*R$3/R$4*100*100*(1-ENWL!$AM$312)","v":{"$error":"#DIV/0!"}},{"$f":"Incentives!$Z$8*S$3/S$4*100*100*(1-NPgN!$AM$312)","v":{"$error":"#DIV/0!"}},{"$f":"Incentives!$Z$8*T$3/T$4*100*100*(1-NPgY!$AM$312)","v":{"$error":"#DIV/0!"}},{"$f":"Incentives!$Z$8*U$3/U$4*100*100*(1-WMID!$AM$312)","v":-88.103638394179853},{"$f":"Incentives!$Z$8*V$3/V$4*100*100*(1-EMID!$AM$312)","v":-91.619553418638532},{"$f":"Incentives!$Z$8*W$3/W$4*100*100*(1-SWALES!$AM$312)","v":-95.963385198342721},{"$f":"Incentives!$Z$8*X$3/X$4*100*100*(1-SWEST!$AM$312)","v":-92.283635399600996},{"$f":"Incentives!$Z$8*Y$3/Y$4*100*100*(1-LPN!$AM$312)","v":{"$error":"#DIV/0!"}},{"$f":"Incentives!$Z$8*Z$3/Z$4*100*100*(1-SPN!$AM$312)","v":{"$error":"#DIV/0!"}},{"$f":"Incentives!$Z$8*AA$3/AA$4*100*100*(1-EPN!$AM$312)","v":{"$error":"#DIV/0!"}},{"$f":"Incentives!$Z$8*AB$3/AB$4*100*100*(1-SPD!$AM$312)","v":{"$error":"#DIV/0!"}},{"$f":"Incentives!$Z$8*AC$3/AC$4*100*100*(1-SPMW!$AM$312)","v":{"$error":"#DIV/0!"}},{"$f":"Incentives!$Z$8*AD$3/AD$4*100*100*(1-SSEH!$AM$312)","v":{"$error":"#DIV/0!"}},{"$f":"Incentives!$Z$8*AE$3/AE$4*100*100*(1-SSES!$AM$312)","v":{"$error":"#DIV/0!"}},null,"Returns @ OFGEM allowances"]
[null,null,null,null,null,null,null,null,null,null,null,null,null,null,null,null,null,null,null,null,null,null,null,null,null,null,null,null,null,null,null,null,"Costs",2.3708213272562621E-2]
["Interruptions Incentive Scheme (IIS)","Likely High","bps",null,null,null,null,null,null,null,null,null,null,null,null,null,null,{"$f":"Incentives!$X$12*(1-ENWL!$AM$312)*$A$35","v":77},{"$f":"Incentives!$X$12*(1-NPgN!$AM$312)*$A$35","v":77},{"$f":"Incentives!$X$12*(1-NPgY!$AM$312)*$A$35","v":77},{"$f":"Incentives!$X$12*(1-WMID!$AM$312)*$A$35","v":61.599999999999994},{"$f":"Incentives!$X$12*(1-EMID!$AM$312)*$A$35","v":61.599999999999994},{"$f":"Incentives!$X$12*(1-SWALES!$AM$312)*$A$35","v":61.599999999999994},{"$f":"Incentives!$X$12*(1-SWEST!$AM$312)*$A$35","v":61.599999999999994},{"$f":"Incentives!$X$12*(1-LPN!$AM$312)*$A$35","v":77},{"$f":"Incentives!$X$12*(1-SPN!$AM$312)*$A$35","v":77},{"$f":"Incentives!$X$12*(1-EPN!$AM$312)*$A$35","v":77},{"$f":"Incentives!$X$12*(1-SPD!$AM$312)*$A$35","v":77},{"$f":"Incentives!$X$12*(1-SPMW!$AM$312)*$A$35","v":77},{"$f":"Incentives!$X$12*(1-SSEH!$AM$312)*$A$35","v":77},{"$f":"Incentives!$X$12*(1-SSES!$AM$312)*$A$35","v":77},null,"Incentives - Losses",7.0000000000000019E-3]
[null,"Mid point","bps",null,null,null,null,null,null,null,null,null,null,null,null,null,null,{"$f":"Incentives!$Y$12*(1-ENWL!$AM$312)*$A$36","v":0},{"$f":"Incentives!$Y$12*(1-NPgN!$AM$312)*$A$36","v":0},{"$f":"Incentives!$Y$12*(1-NPgY!$AM$312)*$A$36","v":0},{"$f":"Incentives!$Y$12*(1-WMID!$AM$312)*$A$36","v":0},{"$f":"Incentives!$Y$12*(1-EMID!$AM$312)*$A$36","v":0},{"$f":"Incentives!$Y$12*(1-SWALES!$AM$312)*$A$36","v":0},{"$f":"Incentives!$Y$12*(1-SWEST!$AM$312)*$A$36","v":0},{"$f":"Incentives!$Y$12*(1-LPN!$AM$312)*$A$36","v":0},{"$f":"Incentives!$Y$12*(1-SPN!$AM$312)*$A$36","v":0},{"$f":"Incentives!$Y$12*(1-EPN!$AM$312)*$A$36","v":0},{"$f":"Incentives!$Y$12*(1-SPD!$AM$312)*$A$36","v":0},{"$f":"Incentives!$Y$12*(1-SPMW!$AM$312)*$A$36","v":0},{"$f":"Incentives!$Y$12*(1-SSEH!$AM$312)*$A$36","v":0},{"$f":"Incentives!$Y$12*(1-SSES!$AM$312)*$A$36","v":0},null,"Incentives - Interruptions",6.4016578161135134E-3]
[null,"Likely Low","bps",null,null,null,null,null,null,null,null,null,null,null,null,null,null,{"$f":"Incentives!$Z$12*(1-ENWL!$AM$312)*$A$37","v":-77},{"$f":"Incentives!$Z$12*(1-NPgN!$AM$312)*$A$37","v":-77},{"$f":"Incentives!$Z$12*(1-NPgY!$AM$312)*$A$37","v":-77},{"$f":"Incentives!$Z$12*(1-WMID!$AM$312)*$A$37","v":-61.599999999999994},{"$f":"Incentives!$Z$12*(1-EMID!$AM$312)*$A$37","v":-61.599999999999994},{"$f":"Incentives!$Z$12*(1-SWALES!$AM$312)*$A$37","v":-61.599999999999994},{"$f":"Incentives!$Z$12*(1-SWEST!$AM$312)*$A$37","v":-61.599999999999994},{"$f":"Incentives!$Z$12*(1-LPN!$AM$312)*$A$37","v":-77},{"$f":"Incentives!$Z$12*(1-SPN!$AM$312)*$A$37","v":-77},{"$f":"Incentives!$Z$12*(1-EPN!$AM$312)*$A$37","v":-77},{"$f":"Incentives!$Z$12*(1-SPD!$AM$312)*$A$37","v":-77},{"$f":"Incentives!$Z$12*(1-SPMW!$AM$312)*$A$37","v":-77},{"$f":"Incentives!$Z$12*(1-SSEH!$AM$312)*$A$37","v":-77},{"$f":"Incentives!$Z$12*(1-SSES!$AM$312)*$A$37","v":-77},null,"Incentives - Customer satisfaction",3.0000000000000001E-3]
[null,null,null,null,null,null,null,null,null,null,null,null,null,null,null,null,null,null,null,null,null,null,null,null,null,null,null,null,null,null,null,null,"Guaranteed standards ",2.4999999999999996E-3]
["Time to Connect","Likely High","bps",null,null,null,null,null,null,null,null,null,null,null,null,null,null,{"$f":"Incentives!$X$19*R$3/R$4*100*100*(1-ENWL!$AM$312)","v":{"$error":"#DIV/0!"}},{"$f":"Incentives!$X$19*S$3/S$4*100*100*(1-NPgN!$AM$312)","v":{"$error":"#DIV/0!"}},{"$f":"Incentives!$X$19*T$3/T$4*100*100*(1-NPgY!$AM$312)","v":{"$error":"#DIV/0!"}},{"$f":"Incentives!$X$19*U$3/U$4*100*100*(1-WMID!$AM$312)","v":23.494303571781295},{"$f":"Incentives!$X$19*V$3/V$4*100*100*(1-EMID!$AM$312)","v":24.431880911636942},{"$f":"Incentives!$X$19*W$3/W$4*100*100*(1-SWALES!$AM$312)","v":25.590236052891399},{"$f":"Incentives!$X$19*X$3/X$4*100*100*(1-SWEST!$AM$312)","v":24.608969439893599},{"$f":"Incentives!$X$19*Y$3/Y$4*100*100*(1-LPN!$AM$312)","v":{"$error":"#DIV/0!"}},{"$f":"Incentives!$X$19*Z$3/Z$4*100*100*(1-SPN!$AM$312)","v":{"$error":"#DIV/0!"}},{"$f":"Incentives!$X$19*AA$3/AA$4*100*100*(1-EPN!$AM$312)","v":{"$error":"#DIV/0!"}},{"$f":"Incentives!$X$19*AB$3/AB$4*100*100*(1-SPD!$AM$312)","v":{"$error":"#DIV/0!"}},{"$f":"Incentives!$X$19*AC$3/AC$4*100*100*(1-SPMW!$AM$312)","v":{"$error":"#DIV/0!"}},{"$f":"Incentives!$X$19*AD$3/AD$4*100*100*(1-SSEH!$AM$312)","v":{"$error":"#DIV/0!"}},{"$f":"Incentives!$X$19*AE$3/AE$4*100*100*(1-SSES!$AM$312)","v":{"$error":"#DIV/0!"}},null,"Taxation ",2.9224580113888796E-3]
[null,"Mid point","bps",null,null,null,null,null,null,null,null,null,null,null,null,null,null,{"$f":"Incentives!$Y$19*R$3/R$4*100*100*(1-ENWL!$AM$312)","v":{"$error":"#DIV/0!"}},{"$f":"Incentives!$Y$19*S$3/S$4*100*100*(1-NPgN!$AM$312)","v":{"$error":"#DIV/0!"}},{"$f":"Incentives!$Y$19*T$3/T$4*100*100*(1-NPgY!$AM$312)","v":{"$error":"#DIV/0!"}},{"$f":"Incentives!$Y$19*U$3/U$4*100*100*(1-WMID!$AM$312)","v":-5.8735758929453237},{"$f":"Incentives!$Y$19*V$3/V$4*100*100*(1-EMID!$AM$312)","v":-6.1079702279092354},{"$f":"Incentives!$Y$19*W$3/W$4*100*100*(1-SWALES!$AM$312)","v":-6.3975590132228497},{"$f":"Incentives!$Y$19*X$3/X$4*100*100*(1-SWEST!$AM$312)","v":-6.1522423599733997},{"$f":"Incentives!$Y$19*Y$3/Y$4*100*100*(1-LPN!$AM$312)","v":{"$error":"#DIV/0!"}},{"$f":"Incentives!$Y$19*Z$3/Z$4*100*100*(1-SPN!$AM$312)","v":{"$error":"#DIV/0!"}},{"$f":"Incentives!$Y$19*AA$3/AA$4*100*100*(1-EPN!$AM$312)","v":{"$error":"#DIV/0!"}},{"$f":"Incentives!$Y$19*AB$3/AB$4*100*100*(1-SPD!$AM$312)","v":{"$error":"#DIV/0!"}},{"$f":"Incentives!$Y$19*AC$3/AC$4*100*100*(1-SPMW!$AM$312)","v":{"$error":"#DIV/0!"}},{"$f":"Incentives!$Y$19*AD$3/AD$4*100*100*(1-SSEH!$AM$312)","v":{"$error":"#DIV/0!"}},{"$f":"Incentives!$Y$19*AE$3/AE$4*100*100*(1-SSES!$AM$312)","v":{"$error":"#DIV/0!"}},null,"Debt (+/- 0.5%)",8.1866206943004421E-3]
[null,"Likely Low","bps",null,null,null,null,null,null,null,null,null,null,null,null,null,null,{"$f":"Incentives!$Z$19*R$3/R$4*100*100*(1-ENWL!$AM$312)","v":{"$error":"#DIV/0!"}},{"$f":"Incentives!$Z$19*S$3/S$4*100*100*(1-NPgN!$AM$312)","v":{"$error":"#DIV/0!"}},{"$f":"Incentives!$Z$19*T$3/T$4*100*100*(1-NPgY!$AM$312)","v":{"$error":"#DIV/0!"}},{"$f":"Incentives!$Z$19*U$3/U$4*100*100*(1-WMID!$AM$312)","v":-52.862183036507901},{"$f":"Incentives!$Z$19*V$3/V$4*100*100*(1-EMID!$AM$312)","v":-54.97173205118311},{"$f":"Incentives!$Z$19*W$3/W$4*100*100*(1-SWALES!$AM$312)","v":-57.57803111900563},{"$f":"Incentives!$Z$19*X$3/X$4*100*100*(1-SWEST!$AM$312)","v":-55.370181239760598},{"$f":"Incentives!$Z$19*Y$3/Y$4*100*100*(1-LPN!$AM$312)","v":{"$error":"#DIV/0!"}},{"$f":"Incentives!$Z$19*Z$3/Z$4*100*100*(1-SPN!$AM$312)","v":{"$error":"#DIV/0!"}},{"$f":"Incentives!$Z$19*AA$3/AA$4*100*100*(1-EPN!$AM$312)","v":{"$error":"#DIV/0!"}},{"$f":"Incentives!$Z$19*AB$3/AB$4*100*100*(1-SPD!$AM$312)","v":{"$error":"#DIV/0!"}},{"$f":"Incentives!$Z$19*AC$3/AC$4*100*100*(1-SPMW!$AM$312)","v":{"$error":"#DIV/0!"}},{"$f":"Incentives!$Z$19*AD$3/AD$4*100*100*(1-SSEH!$AM$312)","v":{"$error":"#DIV/0!"}},{"$f":"Incentives!$Z$19*AE$3/AE$4*100*100*(1-SSES!$AM$312)","v":{"$error":"#DIV/0!"}},null,"Blank",2.4565030927889777E-2]
[]
["Guaranteed standards ","Likely High","bps",null,null,null,null,null,null,null,null,null,null,null,null,null,null,{"$f":"('Incentive impact'!R123+'Incentive impact'!R134)*R$3/R$4*100*100*(1-ENWL!$AM$312)","v":{"$error":"#DIV/0!"}},{"$f":"('Incentive impact'!S123+'Incentive impact'!S134)*S$3/S$4*100*100*(1-NPgN!$AM$312)","v":{"$error":"#DIV/0!"}},{"$f":"('Incentive impact'!T123+'Incentive impact'!T134)*T$3/T$4*100*100*(1-NPgY!$AM$312)","v":{"$error":"#DIV/0!"}},{"$f":"('Incentive impact'!U123+'Incentive impact'!U134)*U$3/U$4*100*100*(1-WMID!$AM$312)","v":0},{"$f":"('Incentive impact'!V123+'Incentive impact'!V134)*V$3/V$4*100*100*(1-EMID!$AM$312)","v":0},{"$f":"('Incentive impact'!W123+'Incentive impact'!W134)*W$3/W$4*100*100*(1-SWALES!$AM$312)","v":0},{"$f":"('Incentive impact'!X123+'Incentive impact'!X134)*X$3/X$4*100*100*(1-SWEST!$AM$312)","v":0},{"$f":"('Incentive impact'!Y123+'Incentive impact'!Y134)*Y$3/Y$4*100*100*(1-LPN!$AM$312)","v":{"$error":"#DIV/0!"}},{"$f":"('Incentive impact'!Z123+'Incentive impact'!Z134)*Z$3/Z$4*100*100*(1-SPN!$AM$312)","v":{"$error":"#DIV/0!"}},{"$f":"('Incentive impact'!AA123+'Incentive impact'!AA134)*AA$3/AA$4*100*100*(1-EPN!$AM$312)","v":{"$error":"#DIV/0!"}},{"$f":"('Incentive impact'!AB123+'Incentive impact'!AB134)*AB$3/AB$4*100*100*(1-SPD!$AM$312)","v":{"$error":"#DIV/0!"}},{"$f":"('Incentive impact'!AC123+'Incentive impact'!AC134)*AC$3/AC$4*100*100*(1-SPMW!$AM$312)","v":{"$error":"#DIV/0!"}},{"$f":"('Incentive impact'!AD123+'Incentive impact'!AD134)*AD$3/AD$4*100*100*(1-SSEH!$AM$312)","v":{"$error":"#DIV/0!"}},{"$f":"('Incentive impact'!AE123+'Incentive impact'!AE134)*AE$3/AE$4*100*100*(1-SSES!$AM$312)","v":{"$error":"#DIV/0!"}}]
[null,"Mid point","bps",null,null,null,null,null,null,null,null,null,null,null,null,null,null,{"$f":"('Incentive impact'!R124+'Incentive impact'!R135)*R$3/R$4*100*100*(1-ENWL!$AM$312)","v":{"$error":"#DIV/0!"}},{"$f":"('Incentive impact'!S124+'Incentive impact'!S135)*S$3/S$4*100*100*(1-NPgN!$AM$312)","v":{"$error":"#DIV/0!"}},{"$f":"('Incentive impact'!T124+'Incentive impact'!T135)*T$3/T$4*100*100*(1-NPgY!$AM$312)","v":{"$error":"#DIV/0!"}},{"$f":"('Incentive impact'!U124+'Incentive impact'!U135)*U$3/U$4*100*100*(1-WMID!$AM$312)","v":-3.2985158400807166},{"$f":"('Incentive impact'!V124+'Incentive impact'!V135)*V$3/V$4*100*100*(1-EMID!$AM$312)","v":-3.4136061142288456},{"$f":"('Incentive impact'!W124+'Incentive impact'!W135)*W$3/W$4*100*100*(1-SWALES!$AM$312)","v":-7.3335778351488692},{"$f":"('Incentive impact'!X124+'Incentive impact'!X135)*X$3/X$4*100*100*(1-SWEST!$AM$312)","v":-4.874258954126244},{"$f":"('Incentive impact'!Y124+'Incentive impact'!Y135)*Y$3/Y$4*100*100*(1-LPN!$AM$312)","v":{"$error":"#DIV/0!"}},{"$f":"('Incentive impact'!Z124+'Incentive impact'!Z135)*Z$3/Z$4*100*100*(1-SPN!$AM$312)","v":{"$error":"#DIV/0!"}},{"$f":"('Incentive impact'!AA124+'Incentive impact'!AA135)*AA$3/AA$4*100*100*(1-EPN!$AM$312)","v":{"$error":"#DIV/0!"}},{"$f":"('Incentive impact'!AB124+'Incentive impact'!AB135)*AB$3/AB$4*100*100*(1-SPD!$AM$312)","v":{"$error":"#DIV/0!"}},{"$f":"('Incentive impact'!AC124+'Incentive impact'!AC135)*AC$3/AC$4*100*100*(1-SPMW!$AM$312)","v":{"$error":"#DIV/0!"}},{"$f":"('Incentive impact'!AD124+'Incentive impact'!AD135)*AD$3/AD$4*100*100*(1-SSEH!$AM$312)","v":{"$error":"#DIV/0!"}},{"$f":"('Incentive impact'!AE124+'Incentive impact'!AE135)*AE$3/AE$4*100*100*(1-SSES!$AM$312)","v":{"$error":"#DIV/0!"}}]
[null,"Likely Low","bps",null,null,null,null,null,null,null,null,null,null,null,null,null,null,{"$f":"('Incentive impact'!R125+'Incentive impact'!R136)*R$3/R$4*100*100*(1-ENWL!$AM$312)","v":{"$error":"#DIV/0!"}},{"$f":"('Incentive impact'!S125+'Incentive impact'!S136)*S$3/S$4*100*100*(1-NPgN!$AM$312)","v":{"$error":"#DIV/0!"}},{"$f":"('Incentive impact'!T125+'Incentive impact'!T136)*T$3/T$4*100*100*(1-NPgY!$AM$312)","v":{"$error":"#DIV/0!"}},{"$f":"('Incentive impact'!U125+'Incentive impact'!U136)*U$3/U$4*100*100*(1-WMID!$AM$312)","v":-6.5970316801614333},{"$f":"('Incentive impact'!V125+'Incentive impact'!V136)*V$3/V$4*100*100*(1-EMID!$AM$312)","v":-6.8272122284576913},{"$f":"('Incentive impact'!W125+'Incentive impact'!W136)*W$3/W$4*100*100*(1-SWALES!$AM$312)","v":-14.667155670297738},{"$f":"('Incentive impact'!X125+'Incentive impact'!X136)*X$3/X$4*100*100*(1-SWEST!$AM$312)","v":-9.748517908252488},{"$f":"('Incentive impact'!Y125+'Incentive impact'!Y136)*Y$3/Y$4*100*100*(1-LPN!$AM$312)","v":{"$error":"#DIV/0!"}},{"$f":"('Incentive impact'!Z125+'Incentive impact'!Z136)*Z$3/Z$4*100*100*(1-SPN!$AM$312)","v":{"$error":"#DIV/0!"}},{"$f":"('Incentive impact'!AA125+'Incentive impact'!AA136)*AA$3/AA$4*100*100*(1-EPN!$AM$312)","v":{"$error":"#DIV/0!"}},{"$f":"('Incentive impact'!AB125+'Incentive impact'!AB136)*AB$3/AB$4*100*100*(1-SPD!$AM$312)","v":{"$error":"#DIV/0!"}},{"$f":"('Incentive impact'!AC125+'Incentive impact'!AC136)*AC$3/AC$4*100*100*(1-SPMW!$AM$312)","v":{"$error":"#DIV/0!"}},{"$f":"('Incentive impact'!AD125+'Incentive impact'!AD136)*AD$3/AD$4*100*100*(1-SSEH!$AM$312)","v":{"$error":"#DIV/0!"}},{"$f":"('Incentive impact'!AE125+'Incentive impact'!AE136)*AE$3/AE$4*100*100*(1-SSES!$AM$312)","v":{"$error":"#DIV/0!"}}]
[]
["Incentives - Losses","Likely High","bps",null,null,null,null,null,null,null,null,null,null,null,null,null,null,{"$f":"'Incentive impact'!R112*R$3/R$4*100*100*(1-ENWL!$AM$312)","v":{"$error":"#DIV/0!"}},{"$f":"'Incentive impact'!S112*S$3/S$4*100*100*(1-NPgN!$AM$312)","v":{"$error":"#DIV/0!"}},{"$f":"'Incentive impact'!T112*T$3/T$4*100*100*(1-NPgY!$AM$312)","v":{"$error":"#DIV/0!"}},{"$f":"'Incentive impact'!U112*U$3/U$4*100*100*(1-WMID!$AM$312)","v":43.082655870442011},{"$f":"'Incentive impact'!V112*V$3/V$4*100*100*(1-EMID!$AM$312)","v":44.58587577768288},{"$f":"'Incentive impact'!W112*W$3/W$4*100*100*(1-SWALES!$AM$312)","v":95.785506418270913},{"$f":"'Incentive impact'!X112*X$3/X$4*100*100*(1-SWEST!$AM$312)","v":63.663790421240734},{"$f":"'Incentive impact'!Y112*Y$3/Y$4*100*100*(1-LPN!$AM$312)","v":{"$error":"#DIV/0!"}},{"$f":"'Incentive impact'!Z112*Z$3/Z$4*100*100*(1-SPN!$AM$312)","v":{"$error":"#DIV/0!"}},{"$f":"'Incentive impact'!AA112*AA$3/AA$4*100*100*(1-EPN!$AM$312)","v":{"$error":"#DIV/0!"}},{"$f":"'Incentive impact'!AB112*AB$3/AB$4*100*100*(1-SPD!$AM$312)","v":{"$error":"#DIV/0!"}},{"$f":"'Incentive impact'!AC112*AC$3/AC$4*100*100*(1-SPMW!$AM$312)","v":{"$error":"#DIV/0!"}},{"$f":"'Incentive impact'!AD112*AD$3/AD$4*100*100*(1-SSEH!$AM$312)","v":{"$error":"#DIV/0!"}},{"$f":"'Incentive impact'!AE112*AE$3/AE$4*100*100*(1-SSES!$AM$312)","v":{"$error":"#DIV/0!"}}]
[null,"Mid point","bps",null,null,null,null,null,null,null,null,null,null,null,null,null,null,{"$f":"'Incentive impact'!R113*R$3/R$4*100*100*(1-ENWL!$AM$312)","v":{"$error":"#DIV/0!"}},{"$f":"'Incentive impact'!S113*S$3/S$4*100*100*(1-NPgN!$AM$312)","v":{"$error":"#DIV/0!"}},{"$f":"'Incentive impact'!T113*T$3/T$4*100*100*(1-NPgY!$AM$312)","v":{"$error":"#DIV/0!"}},{"$f":"'Incentive impact'!U113*U$3/U$4*100*100*(1-WMID!$AM$312)","v":21.541327935221005},{"$f":"'Incentive impact'!V113*V$3/V$4*100*100*(1-EMID!$AM$312)","v":22.29293788884144},{"$f":"'Incentive impact'!W113*W$3/W$4*100*100*(1-SWALES!$AM$312)","v":47.892753209135456},{"$f":"'Incentive impact'!X113*X$3/X$4*100*100*(1-SWEST!$AM$312)","v":31.831895210620367},{"$f":"'Incentive impact'!Y113*Y$3/Y$4*100*100*(1-LPN!$AM$312)","v":{"$error":"#DIV/0!"}},{"$f":"'Incentive impact'!Z113*Z$3/Z$4*100*100*(1-SPN!$AM$312)","v":{"$error":"#DIV/0!"}},{"$f":"'Incentive impact'!AA113*AA$3/AA$4*100*100*(1-EPN!$AM$312)","v":{"$error":"#DIV/0!"}},{"$f":"'Incentive impact'!AB113*AB$3/AB$4*100*100*(1-SPD!$AM$312)","v":{"$error":"#DIV/0!"}},{"$f":"'Incentive impact'!AC113*AC$3/AC$4*100*100*(1-SPMW!$AM$312)","v":{"$error":"#DIV/0!"}},{"$f":"'Incentive impact'!AD113*AD$3/AD$4*100*100*(1-SSEH!$AM$312)","v":{"$error":"#DIV/0!"}},{"$f":"'Incentive impact'!AE113*AE$3/AE$4*100*100*(1-SSES!$AM$312)","v":{"$error":"#DIV/0!"}}]
[null,"Likely Low","bps",null,null,null,null,null,null,null,null,null,null,null,null,null,null,{"$f":"'Incentive impact'!R114*R$3/R$4*100*100*(1-ENWL!$AM$312)","v":{"$error":"#DIV/0!"}},{"$f":"'Incentive impact'!S114*S$3/S$4*100*100*(1-NPgN!$AM$312)","v":{"$error":"#DIV/0!"}},{"$f":"'Incentive impact'!T114*T$3/T$4*100*100*(1-NPgY!$AM$312)","v":{"$error":"#DIV/0!"}},{"$f":"'Incentive impact'!U114*U$3/U$4*100*100*(1-WMID!$AM$312)","v":0},{"$f":"'Incentive impact'!V114*V$3/V$4*100*100*(1-EMID!$AM$312)","v":0},{"$f":"'Incentive impact'!W114*W$3/W$4*100*100*(1-SWALES!$AM$312)","v":0},{"$f":"'Incentive impact'!X114*X$3/X$4*100*100*(1-SWEST!$AM$312)","v":0},{"$f":"'Incentive impact'!Y114*Y$3/Y$4*100*100*(1-LPN!$AM$312)","v":{"$error":"#DIV/0!"}},{"$f":"'Incentive impact'!Z114*Z$3/Z$4*100*100*(1-SPN!$AM$312)","v":{"$error":"#DIV/0!"}},{"$f":"'Incentive impact'!AA114*AA$3/AA$4*100*100*(1-EPN!$AM$312)","v":{"$error":"#DIV/0!"}},{"$f":"'Incentive impact'!AB114*AB$3/AB$4*100*100*(1-SPD!$AM$312)","v":{"$error":"#DIV/0!"}},{"$f":"'Incentive impact'!AC114*AC$3/AC$4*100*100*(1-SPMW!$AM$312)","v":{"$error":"#DIV/0!"}},{"$f":"'Incentive impact'!AD114*AD$3/AD$4*100*100*(1-SSEH!$AM$312)","v":{"$error":"#DIV/0!"}},{"$f":"'Incentive impact'!AE114*AE$3/AE$4*100*100*(1-SSES!$AM$312)","v":{"$error":"#DIV/0!"}}]
[]
[null,"Likely High","bps",null,null,null,null,null,null,null,null,null,null,null,null,null,null,{"$f":"'Incentive impact'!R145*R$3/R$4*100*100*$A$35","v":{"$error":"#DIV/0!"}},{"$f":"'Incentive impact'!S145*S$3/S$4*100*100*$A$35","v":{"$error":"#DIV/0!"}},{"$f":"'Incentive impact'!T145*T$3/T$4*100*100*$A$35","v":{"$error":"#DIV/0!"}},{"$f":"'Incentive impact'!U145*U$3/U$4*100*100*$A$35","v":37.697323886636752},{"$f":"'Incentive impact'!V145*V$3/V$4*100*100*$A$35","v":39.012641305472513},{"$f":"'Incentive impact'!W145*W$3/W$4*100*100*$A$35","v":83.81231811598704},{"$f":"'Incentive impact'!X145*X$3/X$4*100*100*$A$35","v":55.705816618585636},{"$f":"'Incentive impact'!Y145*Y$3/Y$4*100*100*$A$35","v":{"$error":"#DIV/0!"}},{"$f":"'Incentive impact'!Z145*Z$3/Z$4*100*100*$A$35","v":{"$error":"#DIV/0!"}},{"$f":"'Incentive impact'!AA145*AA$3/AA$4*100*100*$A$35","v":{"$error":"#DIV/0!"}},{"$f":"'Incentive impact'!AB145*AB$3/AB$4*100*100*$A$35","v":{"$error":"#DIV/0!"}},{"$f":"'Incentive impact'!AC145*AC$3/AC$4*100*100*$A$35","v":{"$error":"#DIV/0!"}},{"$f":"'Incentive impact'!AD145*AD$3/AD$4*100*100*$A$35","v":{"$error":"#DIV/0!"}},{"$f":"'Incentive impact'!AE145*AE$3/AE$4*100*100*$A$35","v":{"$error":"#DIV/0!"}}]
["Low Carbon Technology","Mid point","bps",null,null,null,null,null,null,null,null,null,null,null,null,null,null,{"$f":"'Incentive impact'!R146*R$3/R$4*100*100*$A$36","v":{"$error":"#DIV/0!"}},{"$f":"'Incentive impact'!S146*S$3/S$4*100*100*$A$36","v":{"$error":"#DIV/0!"}},{"$f":"'Incentive impact'!T146*T$3/T$4*100*100*$A$36","v":{"$error":"#DIV/0!"}},{"$f":"'Incentive impact'!U146*U$3/U$4*100*100*$A$36","v":0},{"$f":"'Incentive impact'!V146*V$3/V$4*100*100*$A$36","v":0},{"$f":"'Incentive impact'!W146*W$3/W$4*100*100*$A$36","v":0},{"$f":"'Incentive impact'!X146*X$3/X$4*100*100*$A$36","v":0},{"$f":"'Incentive impact'!Y146*Y$3/Y$4*100*100*$A$36","v":{"$error":"#DIV/0!"}},{"$f":"'Incentive impact'!Z146*Z$3/Z$4*100*100*$A$36","v":{"$error":"#DIV/0!"}},{"$f":"'Incentive impact'!AA146*AA$3/AA$4*100*100*$A$36","v":{"$error":"#DIV/0!"}},{"$f":"'Incentive impact'!AB146*AB$3/AB$4*100*100*$A$36","v":{"$error":"#DIV/0!"}},{"$f":"'Incentive impact'!AC146*AC$3/AC$4*100*100*$A$36","v":{"$error":"#DIV/0!"}},{"$f":"'Incentive impact'!AD146*AD$3/AD$4*100*100*$A$36","v":{"$error":"#DIV/0!"}},{"$f":"'Incentive impact'!AE146*AE$3/AE$4*100*100*$A$36","v":{"$error":"#DIV/0!"}}]
[null,"Likely Low","bps",null,null,null,null,null,null,null,null,null,null,null,null,null,null,{"$f":"'Incentive impact'!R147*R$3/R$4*100*100*$A$37","v":{"$error":"#DIV/0!"}},{"$f":"'Incentive impact'!S147*S$3/S$4*100*100*$A$37","v":{"$error":"#DIV/0!"}},{"$f":"'Incentive impact'!T147*T$3/T$4*100*100*$A$37","v":{"$error":"#DIV/0!"}},{"$f":"'Incentive impact'!U147*U$3/U$4*100*100*$A$37","v":-37.697323886636752},{"$f":"'Incentive impact'!V147*V$3/V$4*100*100*$A$37","v":-39.012641305472513},{"$f":"'Incentive impact'!W147*W$3/W$4*100*100*$A$37","v":-83.81231811598704},{"$f":"'Incentive impact'!X147*X$3/X$4*100*100*$A$37","v":-55.705816618585636},{"$f":"'Incentive impact'!Y147*Y$3/Y$4*100*100*$A$37","v":{"$error":"#DIV/0!"}},{"$f":"'Incentive impact'!Z147*Z$3/Z$4*100*100*$A$37","v":{"$error":"#DIV/0!"}},{"$f":"'Incentive impact'!AA147*AA$3/AA$4*100*100*$A$37","v":{"$error":"#DIV/0!"}},{"$f":"'Incentive impact'!AB147*AB$3/AB$4*100*100*$A$37","v":{"$error":"#DIV/0!"}},{"$f":"'Incentive impact'!AC147*AC$3/AC$4*100*100*$A$37","v":{"$error":"#DIV/0!"}},{"$f":"'Incentive impact'!AD147*AD$3/AD$4*100*100*$A$37","v":{"$error":"#DIV/0!"}},{"$f":"'Incentive impact'!AE147*AE$3/AE$4*100*100*$A$37","v":{"$error":"#DIV/0!"}}]
[]
[null,"Likely High","bps",null,null,null,null,null,null,null,null,null,null,null,null,null,null,{"$f":"Incentives!$X$15*R$3/R$4*100*100*(1-ENWL!$AM$312)","v":{"$error":"#DIV/0!"}},{"$f":"Incentives!$X$15*S$3/S$4*100*100*(1-NPgN!$AM$312)","v":{"$error":"#DIV/0!"}},{"$f":"Incentives!$X$15*T$3/T$4*100*100*(1-NPgY!$AM$312)","v":{"$error":"#DIV/0!"}},{"$f":"Incentives!$X$15*U$3/U$4*100*100*(1-WMID!$AM$312)","v":18.354924665454135},{"$f":"Incentives!$X$15*V$3/V$4*100*100*(1-EMID!$AM$312)","v":19.087406962216363},{"$f":"Incentives!$X$15*W$3/W$4*100*100*(1-SWALES!$AM$312)","v":19.9923719163214},{"$f":"Incentives!$X$15*X$3/X$4*100*100*(1-SWEST!$AM$312)","v":19.225757374916874},{"$f":"Incentives!$X$15*Y$3/Y$4*100*100*(1-LPN!$AM$312)","v":{"$error":"#DIV/0!"}},{"$f":"Incentives!$X$15*Z$3/Z$4*100*100*(1-SPN!$AM$312)","v":{"$error":"#DIV/0!"}},{"$f":"Incentives!$X$15*AA$3/AA$4*100*100*(1-EPN!$AM$312)","v":{"$error":"#DIV/0!"}},{"$f":"Incentives!$X$15*AB$3/AB$4*100*100*(1-SPD!$AM$312)","v":{"$error":"#DIV/0!"}},{"$f":"Incentives!$X$15*AC$3/AC$4*100*100*(1-SPMW!$AM$312)","v":{"$error":"#DIV/0!"}},{"$f":"Incentives!$X$15*AD$3/AD$4*100*100*(1-SSEH!$AM$312)","v":{"$error":"#DIV/0!"}},{"$f":"Incentives!$X$15*AE$3/AE$4*100*100*(1-SSES!$AM$312)","v":{"$error":"#DIV/0!"}}]
["Health Index (HI)","Mid point","bps",null,null,null,null,null,null,null,null,null,null,null,null,null,null,{"$f":"Incentives!$Y$15*R$3/R$4*100*100*(1-ENWL!$AM$312)","v":{"$error":"#DIV/0!"}},{"$f":"Incentives!$Y$15*S$3/S$4*100*100*(1-NPgN!$AM$312)","v":{"$error":"#DIV/0!"}},{"$f":"Incentives!$Y$15*T$3/T$4*100*100*(1-NPgY!$AM$312)","v":{"$error":"#DIV/0!"}},{"$f":"Incentives!$Y$15*U$3/U$4*100*100*(1-WMID!$AM$312)","v":0},{"$f":"Incentives!$Y$15*V$3/V$4*100*100*(1-EMID!$AM$312)","v":0},{"$f":"Incentives!$Y$15*W$3/W$4*100*100*(1-SWALES!$AM$312)","v":0},{"$f":"Incentives!$Y$15*X$3/X$4*100*100*(1-SWEST!$AM$312)","v":0},{"$f":"Incentives!$Y$15*Y$3/Y$4*100*100*(1-LPN!$AM$312)","v":{"$error":"#DIV/0!"}},{"$f":"Incentives!$Y$15*Z$3/Z$4*100*100*(1-SPN!$AM$312)","v":{"$error":"#DIV/0!"}},{"$f":"Incentives!$Y$15*AA$3/AA$4*100*100*(1-EPN!$AM$312)","v":{"$error":"#DIV/0!"}},{"$f":"Incentives!$Y$15*AB$3/AB$4*100*100*(1-SPD!$AM$312)","v":{"$error":"#DIV/0!"}},{"$f":"Incentives!$Y$15*AC$3/AC$4*100*100*(1-SPMW!$AM$312)","v":{"$error":"#DIV/0!"}},{"$f":"Incentives!$Y$15*AD$3/AD$4*100*100*(1-SSEH!$AM$312)","v":{"$error":"#DIV/0!"}},{"$f":"Incentives!$Y$15*AE$3/AE$4*100*100*(1-SSES!$AM$312)","v":{"$error":"#DIV/0!"}}]
[null,"Likely Low","bps",null,null,null,null,null,null,null,null,null,null,null,null,null,null,{"$f":"Incentives!$Z$15*R$3/R$4*100*100*(1-ENWL!$AM$312)","v":{"$error":"#DIV/0!"}},{"$f":"Incentives!$Z$15*S$3/S$4*100*100*(1-NPgN!$AM$312)","v":{"$error":"#DIV/0!"}},{"$f":"Incentives!$Z$15*T$3/T$4*100*100*(1-NPgY!$AM$312)","v":{"$error":"#DIV/0!"}},{"$f":"Incentives!$Z$15*U$3/U$4*100*100*(1-WMID!$AM$312)","v":-18.354924665454135},{"$f":"Incentives!$Z$15*V$3/V$4*100*100*(1-EMID!$AM$312)","v":-19.087406962216363},{"$f":"Incentives!$Z$15*W$3/W$4*100*100*(1-SWALES!$AM$312)","v":-19.9923719163214},{"$f":"Incentives!$Z$15*X$3/X$4*100*100*(1-SWEST!$AM$312)","v":-19.225757374916874},{"$f":"Incentives!$Z$15*Y$3/Y$4*100*100*(1-LPN!$AM$312)","v":{"$error":"#DIV/0!"}},{"$f":"Incentives!$Z$15*Z$3/Z$4*100*100*(1-SPN!$AM$312)","v":{"$error":"#DIV/0!"}},{"$f":"Incentives!$Z$15*AA$3/AA$4*100*100*(1-EPN!$AM$312)","v":{"$error":"#DIV/0!"}},{"$f":"Incentives!$Z$15*AB$3/AB$4*100*100*(1-SPD!$AM$312)","v":{"$error":"#DIV/0!"}},{"$f":"Incentives!$Z$15*AC$3/AC$4*100*100*(1-SPMW!$AM$312)","v":{"$error":"#DIV/0!"}},{"$f":"Incentives!$Z$15*AD$3/AD$4*100*100*(1-SSEH!$AM$312)","v":{"$error":"#DIV/0!"}},{"$f":"Incentives!$Z$15*AE$3/AE$4*100*100*(1-SSES!$AM$312)","v":{"$error":"#DIV/0!"}}]
[]
["Incentive strength","Over / under spend",null,null,null,null,null,null,null,null,null,null,null,null,null,null,null,null,null,null,null,null,null,null,null,null,null,null,null,null,null,null,"Returns @ OFGEM allowances",7.7500232487465043E-2]
[0.7,"Likely High","bps",null,null,null,null,null,null,null,null,null,null,null,null,null,null,{"$f":"0.1*R$2/R$4*100*100*$A$35","v":{"$error":"#DIV/0!"}},{"$error":"#DIV/0!"},{"$error":"#DIV/0!"},292.44661129946877,291.56445028618924,325.78905567622854,326.18171186066922,{"$error":"#DIV/0!"},{"$error":"#DIV/0!"},{"$error":"#DIV/0!"},{"$error":"#DIV/0!"},{"$error":"#DIV/0!"},{"$error":"#DIV/0!"},{"$error":"#DIV/0!"}]
[0.7,"Mid point","bps",null,null,null,null,null,null,null,null,null,null,null,null,null,null,0,0,0,0,0,0,0,0,0,0,0,0,0,0]
[0.7,"Likely Low","bps",null,null,null,null,null,null,null,null,null,null,null,null,null,null,{"$f":"-0.1*R$2/R$4*100*100*$A$37","v":{"$error":"#DIV/0!"}},{"$error":"#DIV/0!"},{"$error":"#DIV/0!"},-292.44661129946877,-291.56445028618924,-325.78905567622854,-326.18171186066922,{"$error":"#DIV/0!"},{"$error":"#DIV/0!"},{"$error":"#DIV/0!"},{"$error":"#DIV/0!"},{"$error":"#DIV/0!"},{"$error":"#DIV/0!"},{"$error":"#DIV/0!"}]
[]
["IQI additional income for fast tracked company"]
[2.5000000000000001E-2,1,"RORE%",null,null,null,null,null,null,null,null,null,null,null,null,null,null,{"$f":"$A$40*R2/R4*100*100","v":{"$error":"#DIV/0!"}},{"$error":"#DIV/0!"},{"$error":"#DIV/0!"},104.44521832123885,104.13016081649616,116.35323417008163,116.49346852166759,{"$error":"#DIV/0!"},{"$error":"#DIV/0!"},{"$error":"#DIV/0!"},{"$error":"#DIV/0!"},{"$error":"#DIV/0!"},{"$error":"#DIV/0!"},{"$error":"#DIV/0!"}]
[]
[]
[]
[]
["RoRE as per allowed return",null,null,null,null,null,null,null,null,null,null,null,null,null,null,null,null,6.7000000000000004E-2,6.7000000000000004E-2,6.7000000000000004E-2,6.7000000000000004E-2,6.7000000000000004E-2,6.7000000000000004E-2,6.7000000000000004E-2,6.7000000000000004E-2,6.7000000000000004E-2,6.7000000000000004E-2,6.7000000000000004E-2,6.7000000000000004E-2,6.7000000000000004E-2,6.7000000000000004E-2,null,null,6.7000000000000004E-2]
[]
[null,"Max","RORE%",null,null,null,null,null,null,null,null,null,null,null,null,null,null,{"$f":"R$45+(R6+R10+R14+R18+R22+R26+R35+R30+R40)/100/100","v":{"$error":"#DIV/0!"}},{"$error":"#DIV/0!"},{"$error":"#DIV/0!"},0.13392246760092019,0.13460319694783326,0.14948861075481237,0.14297631496365748,{"$error":"#DIV/0!"},{"$error":"#DIV/0!"},{"$error":"#DIV/0!"},{"$error":"#DIV/0!"},{"$error":"#DIV/0!"},{"$error":"#DIV/0!"},{"$error":"#DIV/0!"}]
[null,"Mid point + additional income","RORE%",null,null,null,null,null,null,null,null,null,null,null,null,null,null,{"$f":"R$45+R40/100/100","v":{"$error":"#DIV/0!"}},{"$error":"#DIV/0!"},{"$error":"#DIV/0!"},7.7444521832123886E-2,7.7413016081649619E-2,7.8635323417008171E-2,7.8649346852166763E-2,{"$error":"#DIV/0!"},{"$error":"#DIV/0!"},{"$error":"#DIV/0!"},{"$error":"#DIV/0!"},{"$error":"#DIV/0!"},{"$error":"#DIV/0!"},{"$error":"#DIV/0!"},{"$f":"(R7+R11+R15+R19+R23+R27+R36+R31+R41)/100/100","v":{"$error":"#DIV/0!"}}]
[null,"Min + additional income","RORE%",null,null,null,null,null,null,null,null,null,null,null,null,null,null,{"$f":"R$45+(R8+R12+R16+R20+R24+R28+R37+R32)/100/100+R40/100/100","v":{"$error":"#DIV/0!"}},{"$error":"#DIV/0!"},{"$error":"#DIV/0!"},2.1678350535883007E-2,2.0944716456433879E-2,1.2695091647389866E-2,1.6637784811988188E-2,{"$error":"#DIV/0!"},{"$error":"#DIV/0!"},{"$error":"#DIV/0!"},{"$error":"#DIV/0!"},{"$error":"#DIV/0!"},{"$error":"#DIV/0!"},{"$error":"#DIV/0!"}]
[]
[]
["Sorting"]
[null,null,null,null,null,null,null,null,null,null,null,null,null,null,null,null,null,{"$f":"R47","v":{"$error":"#DIV/0!"}},{"$error":"#DIV/0!"},{"$error":"#DIV/0!"},0.13392246760092019,0.13460319694783326,0.14948861075481237,0.14297631496365748,{"$error":"#DIV/0!"},{"$error":"#DIV/0!"},{"$error":"#DIV/0!"},{"$error":"#DIV/0!"},{"$error":"#DIV/0!"},{"$error":"#DIV/0!"},{"$error":"#DIV/0!"}]
[null,null,null,null,null,null,null,null,null,null,null,null,null,null,null,null,null,{"$f":"R1","v":"ENWL"},"NPgN","NPgY","WMID","EMID","SWALES","SWEST","LPN","SPN","EPN","SPD","SPMW","SSEH","SSES","DPCR5 Final Proposals Average of DNOs"]
["Max",null,null,null,null,null,null,null,null,null,null,null,null,null,null,null,null,{"$f":"R53","v":{"$error":"#DIV/0!"}},{"$error":"#DIV/0!"},{"$error":"#DIV/0!"},0.13392246760092019,0.13460319694783326,0.14948861075481237,0.14297631496365748,{"$error":"#DIV/0!"},{"$error":"#DIV/0!"},{"$error":"#DIV/0!"},{"$error":"#DIV/0!"},{"$error":"#DIV/0!"},{"$error":"#DIV/0!"},{"$error":"#DIV/0!"}]
[{"$f":"$A$6","v":"Broad Measure of Customer Satisfaction (BMCS)"},null,null,null,null,null,null,null,null,null,null,null,null,null,null,null,null,{"$f":"R6/100/100","v":{"$error":"#DIV/0!"}},{"$error":"#DIV/0!"},{"$error":"#DIV/0!"},8.8103638394179846E-3,9.1619553418638526E-3,9.5963385198342722E-3,9.228363539960099E-3,{"$error":"#DIV/0!"},{"$error":"#DIV/0!"},{"$error":"#DIV/0!"},{"$error":"#DIV/0!"},{"$error":"#DIV/0!"},{"$error":"#DIV/0!"},{"$error":"#DIV/0!"}]
[{"$f":"$A$10","v":"Interruptions Incentive Scheme (IIS)"},null,null,null,null,null,null,null,null,null,null,null,null,null,null,null,null,{"$f":"R10/100/100","v":7.7000000000000002E-3},7.7000000000000002E-3,7.7000000000000002E-3,6.1599999999999997E-3,6.1599999999999997E-3,6.1599999999999997E-3,6.1599999999999997E-3,7.7000000000000002E-3,7.7000000000000002E-3,7.7000000000000002E-3,7.7000000000000002E-3,7.7000000000000002E-3,7.7000000000000002E-3,7.7000000000000002E-3]
[{"$f":"$A$14","v":"Time to Connect"},null,null,null,null,null,null,null,null,null,null,null,null,null,null,null,null,{"$f":"R14/100/100","v":{"$error":"#DIV/0!"}},{"$error":"#DIV/0!"},{"$error":"#DIV/0!"},2.3494303571781295E-3,2.443188091163694E-3,2.5590236052891397E-3,2.4608969439893599E-3,{"$error":"#DIV/0!"},{"$error":"#DIV/0!"},{"$error":"#DIV/0!"},{"$error":"#DIV/0!"},{"$error":"#DIV/0!"},{"$error":"#DIV/0!"},{"$error":"#DIV/0!"}]
[{"$f":"$A$18","v":"Guaranteed standards "},null,null,null,null,null,null,null,null,null,null,null,null,null,null,null,null,{"$f":"R18/100/100","v":{"$error":"#DIV/0!"}},{"$error":"#DIV/0!"},{"$error":"#DIV/0!"},0,0,0,0,{"$error":"#DIV/0!"},{"$error":"#DIV/0!"},{"$error":"#DIV/0!"},{"$error":"#DIV/0!"},{"$error":"#DIV/0!"},{"$error":"#DIV/0!"},{"$error":"#DIV/0!"}]
[{"$f":"$A$22","v":"Incentives - Losses"},null,null,null,null,null,null,null,null,null,null,null,null,null,null,null,null,{"$f":"R22/100/100","v":{"$error":"#DIV/0!"}},{"$error":"#DIV/0!"},{"$error":"#DIV/0!"},4.3082655870442009E-3,4.458587577768288E-3,9.5785506418270914E-3,6.3663790421240726E-3,{"$error":"#DIV/0!"},{"$error":"#DIV/0!"},{"$error":"#DIV/0!"},{"$error":"#DIV/0!"},{"$error":"#DIV/0!"},{"$error":"#DIV/0!"},{"$error":"#DIV/0!"}]
[{"$f":"$A$27","v":"Low Carbon Technology"},null,null,null,null,null,null,null,null,null,null,null,null,null,null,null,null,{"$f":"R26/100/100","v":{"$error":"#DIV/0!"}},{"$error":"#DIV/0!"},{"$error":"#DIV/0!"},3.7697323886636751E-3,3.9012641305472512E-3,8.3812318115987043E-3,5.5705816618585634E-3,{"$error":"#DIV/0!"},{"$error":"#DIV/0!"},{"$error":"#DIV/0!"},{"$error":"#DIV/0!"},{"$error":"#DIV/0!"},{"$error":"#DIV/0!"},{"$error":"#DIV/0!"}]
[{"$f":"$A$31","v":"Health Index (HI)"},null,null,null,null,null,null,null,null,null,null,null,null,null,null,null,null,{"$f":"R30/100/100","v":{"$error":"#DIV/0!"}},{"$error":"#DIV/0!"},{"$error":"#DIV/0!"},1.8354924665454134E-3,1.9087406962216362E-3,1.9992371916321399E-3,1.9225757374916874E-3,{"$error":"#DIV/0!"},{"$error":"#DIV/0!"},{"$error":"#DIV/0!"},{"$error":"#DIV/0!"},{"$error":"#DIV/0!"},{"$error":"#DIV/0!"},{"$error":"#DIV/0!"}]
[{"$f":"$A$34","v":"Incentive strength"},null,null,null,null,null,null,null,null,null,null,null,null,null,null,null,null,{"$f":"R35/100/100-R65/2","v":{"$error":"#DIV/0!"}},{"$error":"#DIV/0!"},{"$error":"#DIV/0!"},2.8919878114484397E-2,2.882327546267922E-2,3.1190702700245813E-2,3.1885513609239552E-2,{"$error":"#DIV/0!"},{"$error":"#DIV/0!"},{"$error":"#DIV/0!"},{"$error":"#DIV/0!"},{"$error":"#DIV/0!"},{"$error":"#DIV/0!"},{"$error":"#DIV/0!"}]
["IQI additional income for fast tracked company",null,null,null,null,null,null,null,null,null,null,null,null,null,null,null,null,{"$f":"R40/100/100","v":{"$error":"#DIV/0!"}},{"$error":"#DIV/0!"},{"$error":"#DIV/0!"},1.0444521832123885E-2,1.0413016081649615E-2,1.1635323417008164E-2,1.164934685216676E-2,{"$error":"#DIV/0!"},{"$error":"#DIV/0!"},{"$error":"#DIV/0!"},{"$error":"#DIV/0!"},{"$error":"#DIV/0!"},{"$error":"#DIV/0!"},{"$error":"#DIV/0!"}]
["RoRE as per allowed return allowing for incentives with non-zero means",null,null,null,null,null,null,null,null,null,null,null,null,null,null,null,null,{"$f":"ABS((R7+R11+R15+R19+R23+R27+R36+R31+R41)/100/100)","v":{"$error":"#DIV/0!"}},{"$error":"#DIV/0!"},{"$error":"#DIV/0!"},6.4956603092496416E-4,6.6633913187941218E-4,2.7764057347540888E-3,1.4653151536547324E-3,{"$error":"#DIV/0!"},{"$error":"#DIV/0!"},{"$error":"#DIV/0!"},{"$error":"#DIV/0!"},{"$error":"#DIV/0!"},{"$error":"#DIV/0!"},{"$error":"#DIV/0!"}]
["Incentive strength allowing for additional income",null,null,null,null,null,null,null,null,null,null,null,null,null,null,null,null,{"$f":"-R37/100/100-R64-R65/2","v":{"$error":"#DIV/0!"}},{"$error":"#DIV/0!"},{"$error":"#DIV/0!"},1.8475356282360512E-2,1.8410259381029605E-2,1.955537928323765E-2,2.0236166757072797E-2,{"$error":"#DIV/0!"},{"$error":"#DIV/0!"},{"$error":"#DIV/0!"},{"$error":"#DIV/0!"},{"$error":"#DIV/0!"},{"$error":"#DIV/0!"},{"$error":"#DIV/0!"}]
[{"$f":"$A$31","v":"Health Index (HI)"},null,null,null,null,null,null,null,null,null,null,null,null,null,null,null,null,{"$f":"-R32/100/100","v":{"$error":"#DIV/0!"}},{"$error":"#DIV/0!"},{"$error":"#DIV/0!"},1.8354924665454134E-3,1.9087406962216362E-3,1.9992371916321399E-3,1.9225757374916874E-3,{"$error":"#DIV/0!"},{"$error":"#DIV/0!"},{"$error":"#DIV/0!"},{"$error":"#DIV/0!"},{"$error":"#DIV/0!"},{"$error":"#DIV/0!"},{"$error":"#DIV/0!"}]
[{"$f":"$A$27","v":"Low Carbon Technology"},null,null,null,null,null,null,null,null,null,null,null,null,null,null,null,null,{"$f":"-R28/100/100","v":{"$error":"#DIV/0!"}},{"$error":"#DIV/0!"},{"$error":"#DIV/0!"},3.7697323886636751E-3,3.9012641305472512E-3,8.3812318115987043E-3,5.5705816618585634E-3,{"$error":"#DIV/0!"},{"$error":"#DIV/0!"},{"$error":"#DIV/0!"},{"$error":"#DIV/0!"},{"$error":"#DIV/0!"},{"$error":"#DIV/0!"},{"$error":"#DIV/0!"}]
[{"$f":"$A$22","v":"Incentives - Losses"},null,null,null,null,null,null,null,null,null,null,null,null,null,null,null,null,{"$f":"-R24/100/100","v":{"$error":"#DIV/0!"}},{"$error":"#DIV/0!"},{"$error":"#DIV/0!"},0,0,0,0,{"$error":"#DIV/0!"},{"$error":"#DIV/0!"},{"$error":"#DIV/0!"},{"$error":"#DIV/0!"},{"$error":"#DIV/0!"},{"$error":"#DIV/0!"},{"$error":"#DIV/0!"}]
[{"$f":"$A$18","v":"Guaranteed standards "},null,null,null,null,null,null,null,null,null,null,null,null,null,null,null,null,{"$f":"-R20/100/100","v":{"$error":"#DIV/0!"}},{"$error":"#DIV/0!"},{"$error":"#DIV/0!"},6.597031680161433E-4,6.8272122284576903E-4,1.4667155670297738E-3,9.7485179082524881E-4,{"$error":"#DIV/0!"},{"$error":"#DIV/0!"},{"$error":"#DIV/0!"},{"$error":"#DIV/0!"},{"$error":"#DIV/0!"},{"$error":"#DIV/0!"},{"$error":"#DIV/0!"}]
[{"$f":"$A$14","v":"Time to Connect"},null,null,null,null,null,null,null,null,null,null,null,null,null,null,null,null,{"$f":"-R16/100/100","v":{"$error":"#DIV/0!"}},{"$error":"#DIV/0!"},{"$error":"#DIV/0!"},5.2862183036507908E-3,5.4971732051183105E-3,5.7578031119005632E-3,5.5370181239760598E-3,{"$error":"#DIV/0!"},{"$error":"#DIV/0!"},{"$error":"#DIV/0!"},{"$error":"#DIV/0!"},{"$error":"#DIV/0!"},{"$error":"#DIV/0!"},{"$error":"#DIV/0!"}]
[{"$f":"$A$10","v":"Interruptions Incentive Scheme (IIS)"},null,null,null,null,null,null,null,null,null,null,null,null,null,null,null,null,{"$f":"-R12/100/100","v":7.7000000000000002E-3},7.7000000000000002E-3,7.7000000000000002E-3,6.1599999999999997E-3,6.1599999999999997E-3,6.1599999999999997E-3,6.1599999999999997E-3,7.7000000000000002E-3,7.7000000000000002E-3,7.7000000000000002E-3,7.7000000000000002E-3,7.7000000000000002E-3,7.7000000000000002E-3,7.7000000000000002E-3]
[{"$f":"$A$6","v":"Broad Measure of Customer Satisfaction (BMCS)"},null,null,null,null,null,null,null,null,null,null,null,null,null,null,null,null,{"$f":"-R8/100/100","v":{"$error":"#DIV/0!"}},{"$error":"#DIV/0!"},{"$error":"#DIV/0!"},8.8103638394179846E-3,9.1619553418638526E-3,9.5963385198342722E-3,9.228363539960099E-3,{"$error":"#DIV/0!"},{"$error":"#DIV/0!"},{"$error":"#DIV/0!"},{"$error":"#DIV/0!"},{"$error":"#DIV/0!"},{"$error":"#DIV/0!"},{"$error":"#DIV/0!"}]
["Min + additional income",null,null,null,null,null,null,null,null,null,null,null,null,null,null,null,null,{"$f":"R49","v":{"$error":"#DIV/0!"}},{"$error":"#DIV/0!"},{"$error":"#DIV/0!"},2.1678350535883007E-2,2.0944716456433879E-2,1.2695091647389866E-2,1.6637784811988188E-2,{"$error":"#DIV/0!"},{"$error":"#DIV/0!"},{"$error":"#DIV/0!"},{"$error":"#DIV/0!"},{"$error":"#DIV/0!"},{"$error":"#DIV/0!"},{"$error":"#DIV/0!"}]
[]
["Cumulative"]
[null,null,null,null,null,null,null,null,null,null,null,null,null,null,null,null,null,"ENWL","NPgN","NPgY","WMID","EMID","SWALES","SWEST","LPN","SPN","EPN","SPD","SPMW","SSEH","SSES","DPCR5 Final Proposals Average of DNOs"]
["Max"]
["Debt",null,null,null,null,null,null,null,null,null,null,null,null,null,null,null,null,null,null,null,null,null,null,null,null,null,null,null,null,null,null,{"$f":"AH79","v":8.1866206943004421E-3},"Debt",{"$f":"AH2","v":8.1866206943004421E-3}]
["Taxation Trigger",null,null,null,null,null,null,null,null,null,null,null,null,null,null,null,null,{"$f":"IF(R$2>1,$AF$80,0)","v":0},0,0,2.9224580113888796E-3,2.9224580113888796E-3,2.9224580113888796E-3,2.9224580113888796E-3,0,0,0,0,0,0,0,{"$f":"AH80","v":2.9224580113888796E-3},{"$f":"AG3","v":"Taxation trigger"},{"$f":"AH3","v":2.9224580113888796E-3}]
[{"$f":"A56","v":"Broad Measure of Customer Satisfaction (BMCS)"},null,null,null,null,null,null,null,null,null,null,null,null,null,null,null,null,{"$f":"IF(R$2>1,R56,0)","v":0},0,0,8.8103638394179846E-3,9.1619553418638526E-3,9.5963385198342722E-3,9.228363539960099E-3,0,0,0,0,0,0,0,{"$f":"AH81","v":3.0000000000000001E-3},{"$f":"AG4","v":"Incentives - Customer satisfaction"},{"$f":"AH4","v":3.0000000000000001E-3}]
[{"$f":"A57","v":"Interruptions Incentive Scheme (IIS)"},null,null,null,null,null,null,null,null,null,null,null,null,null,null,null,null,{"$f":"IF(R$2>1,R57,0)","v":0},0,0,6.1599999999999997E-3,6.1599999999999997E-3,6.1599999999999997E-3,6.1599999999999997E-3,0,0,0,0,0,0,0,{"$f":"AH82","v":6.4014103764264982E-3},{"$f":"AG5","v":"Incentives - Interruptions"},{"$f":"AH5","v":6.4014103764264982E-3}]
["Connections Incentives",null,null,null,null,null,null,null,null,null,null,null,null,null,null,null,null,{"$f":"IF(R$2>1,R58,0)","v":0},0,0,2.3494303571781295E-3,2.443188091163694E-3,2.5590236052891397E-3,2.4608969439893599E-3,0,0,0,0,0,0,0,{"$f":"AH83","v":0}]
[{"$f":"A59","v":"Guaranteed standards "},null,null,null,null,null,null,null,null,null,null,null,null,null,null,null,null,{"$f":"IF(R$2>1,R59,0)","v":0},0,0,0,0,0,0,0,0,0,0,0,0,0]
["Losses Incentive ",null,null,null,null,null,null,null,null,null,null,null,null,null,null,null,null,{"$f":"IF(R$2>1,R60,0)","v":0},0,0,4.3082655870442009E-3,4.458587577768288E-3,9.5785506418270914E-3,6.3663790421240726E-3,0,0,0,0,0,0,0,{"$f":"AH85","v":7.0000000000000019E-3},{"$f":"AG6","v":"Incentives - Losses"},{"$f":"AH6","v":7.0000000000000019E-3}]
[]
[{"$f":"A62","v":"Health Index (HI)"},null,null,null,null,null,null,null,null,null,null,null,null,null,null,null,null,{"$f":"IF(R$2>1,R62,0)","v":0},0,0,1.8354924665454134E-3,1.9087406962216362E-3,1.9992371916321399E-3,1.9225757374916874E-3,0,0,0,0,0,0,0]
[{"$f":"A64","v":"IQI additional income for fast tracked company"},null,null,null,null,null,null,null,null,null,null,null,null,null,null,null,null,{"$f":"IF(R$2>1,R64,0)","v":0},0,0,1.0444521832123885E-2,1.0413016081649615E-2,1.1635323417008164E-2,1.164934685216676E-2,0,0,0,0,0,0,0,{"$f":"AH88","v":1.0500232487465039E-2},null,{"$f":"AH34-AH45","v":1.0500232487465039E-2}]
["Underspend",null,null,null,null,null,null,null,null,null,null,null,null,null,null,null,null,{"$f":"IF(R$2>1,R63+R61,0)","v":0},0,0,3.2689610503148073E-2,3.2724539593226472E-2,3.9571934511844514E-2,3.7456095271098118E-2,0,0,0,0,0,0,0,{"$f":"AH89","v":2.6131856020100652E-2},{"$f":"AG7","v":"Costs"},{"$f":"AH7-0.0005","v":2.6131856020100652E-2}]
[{"$f":"A65","v":"RoRE as per allowed return allowing for incentives with non-zero means"},null,null,null,null,null,null,null,null,null,null,null,null,null,null,null,null,{"$f":"IF(R$2>1,R65,0)","v":0},0,0,6.4956603092496416E-4,6.6633913187941218E-4,2.7764057347540888E-3,1.4653151536547324E-3,0,0,0,0,0,0,0,{"$f":"AH90","v":1E-3},null,{"$f":"0.0005*2","v":1E-3}]
["Over spend",null,null,null,null,null,null,null,null,null,null,null,null,null,null,null,null,{"$f":"IF(R$2>1,R66+R68,0)","v":0},0,0,2.2245088671024187E-2,2.2311523511576857E-2,2.7936611094836354E-2,2.5806748418931359E-2,0,0,0,0,0,0,0,{"$f":"AH91","v":1.2707980785097581E-2},{"$f":"AG9","v":"Costs"},{"$f":"AH9-0.0005-AH88","v":1.2707980785097581E-2}]
[{"$f":"A67","v":"Health Index (HI)"},null,null,null,null,null,null,null,null,null,null,null,null,null,null,null,null,{"$f":"IF(R$2>1,R67,0)","v":0},0,0,1.8354924665454134E-3,1.9087406962216362E-3,1.9992371916321399E-3,1.9225757374916874E-3,0,0,0,0,0,0,0]
[]
["Losses Incentive ",null,null,null,null,null,null,null,null,null,null,null,null,null,null,null,null,{"$f":"IF(R$2>1,R69,0)","v":0},0,0,0,0,0,0,0,0,0,0,0,0,0,{"$f":"AH94","v":7.0000000000000019E-3},{"$f":"AG10","v":"Incentives - Losses"},{"$f":"AH10","v":7.0000000000000019E-3}]
[{"$f":"A70","v":"Guaranteed standards "},null,null,null,null,null,null,null,null,null,null,null,null,null,null,null,null,{"$f":"IF(R$2>1,R70,0)","v":0},0,0,6.597031680161433E-4,6.8272122284576903E-4,1.4667155670297738E-3,9.7485179082524881E-4,0,0,0,0,0,0,0,{"$f":"R95","v":0},{"$f":"AG13","v":"Guaranteed standards "},{"$f":"AH13","v":2.4999999999999996E-3}]
["Connections Incentives",null,null,null,null,null,null,null,null,null,null,null,null,null,null,null,null,{"$f":"IF(R$2>1,R71,0)","v":0},0,0,5.2862183036507908E-3,5.4971732051183105E-3,5.7578031119005632E-3,5.5370181239760598E-3,0,0,0,0,0,0,0,{"$f":"AH96","v":0}]
[{"$f":"A72","v":"Interruptions Incentive Scheme (IIS)"},null,null,null,null,null,null,null,null,null,null,null,null,null,null,null,null,{"$f":"IF(R$2>1,R72,0)","v":0},0,0,6.1599999999999997E-3,6.1599999999999997E-3,6.1599999999999997E-3,6.1599999999999997E-3,0,0,0,0,0,0,0,6.4016578161135134E-3,{"$f":"AG11","v":"Incentives - Interruptions"},{"$f":"AH11","v":6.4016578161135134E-3}]
[{"$f":"A73","v":"Broad Measure of Customer Satisfaction (BMCS)"},null,null,null,null,null,null,null,null,null,null,null,null,null,null,null,null,{"$f":"IF(R$2>1,R73,0)","v":0},0,0,8.8103638394179846E-3,9.1619553418638526E-3,9.5963385198342722E-3,9.228363539960099E-3,0,0,0,0,0,0,0,3.0000000000000001E-3,{"$f":"AG12","v":"Incentives - Customer satisfaction"},{"$f":"AH12","v":3.0000000000000001E-3}]
["Taxation Trigger",null,null,null,null,null,null,null,null,null,null,null,null,null,null,null,null,{"$f":"IF(R$2>1,$AF$99,0)","v":0},0,0,2.9224580113888796E-3,2.9224580113888796E-3,2.9224580113888796E-3,2.9224580113888796E-3,0,0,0,0,0,0,0,2.9224580113888796E-3,"Taxation trigger",{"$f":"AH14","v":2.9224580113888796E-3}]
["Debt",null,null,null,null,null,null,null,null,null,null,null,null,null,null,null,null,null,null,null,null,null,null,null,null,null,null,null,null,null,null,8.1866206943004421E-3,"Debt",{"$f":"AH15","v":8.1866206943004421E-3}]
["Min + additional income",null,null,null,null,null,null,null,null,null,null,null,null,null,null,null,null,{"$f":"IF(R$2>1,R74-R99,0)","v":0},0,0,1.8755892524494128E-2,1.8022258445045E-2,9.7726336360009873E-3,1.3715326800599309E-2,0,0,0,0,0,0,0,2.3781282693099585E-2,{"$f":"AG16","v":"Blank"},{"$f":"AH45-SUM(AH91:AH100)-0.0005","v":2.3781282693099585E-2}]
[]
[null,null,null,null,null,null,null,null,null,null,null,null,null,null,"Expansion of certain elements contained in Incentives sheet which need to be seperated out for each DNO "]
[]
[]
[null,null,null,null,null,null,null,null,null,null,null,null,null,null,"Row","Column"]
[null,null,null,null,null,null,null,null,null,null,null,null,null,null,23,"s"]
[null,null,null,null,null,null,null,null,null,null,null,null,null,null,23,"t"]
[null,null,null,null,null,null,null,null,null,null,null,null,null,null,23,"u"]
[null,null,null,null,null,null,null,null,null,null,null,null,null,null,23,"v",null,{"$f":"32/'Incentive impact'!R3","v":{"$error":"#DIV/0!"}},{"$f":"32/'Incentive impact'!S3","v":{"$error":"#DIV/0!"}},{"$f":"32/'Incentive impact'!T3","v":{"$error":"#DIV/0!"}},{"$f":"32/'Incentive impact'!U3","v":5.8679968258774744E-2},{"$f":"32/'Incentive impact'!V3","v":5.8396978523511466E-2},{"$f":"32/'Incentive impact'!W3","v":0.11977756668791437},{"$f":"32/'Incentive impact'!X3","v":8.2784502555280998E-2},{"$f":"32/'Incentive impact'!Y3","v":{"$error":"#DIV/0!"}},{"$f":"32/'Incentive impact'!Z3","v":{"$error":"#DIV/0!"}},{"$f":"32/'Incentive impact'!AA3","v":{"$error":"#DIV/0!"}},{"$f":"32/'Incentive impact'!AB3","v":{"$error":"#DIV/0!"}},{"$f":"32/'Incentive impact'!AC3","v":{"$error":"#DIV/0!"}},{"$f":"32/'Incentive impact'!AD3","v":{"$error":"#DIV/0!"}},{"$f":"32/'Incentive impact'!AE3","v":{"$error":"#DIV/0!"}}]
[null,null,null,null,null,null,null,null,null,null,null,null,null,null,23,"w"]
[null,null,null,null,null,null,null,null,null,null,null,null,null,null,23,"x","Likely High (£m or % of Revenue) of incentive",{"$f":"'Incentive impact'!R110/8","v":{"$error":"#DIV/0!"}},{"$f":"'Incentive impact'!S110/8","v":{"$error":"#DIV/0!"}},{"$f":"'Incentive impact'!T110/8","v":{"$error":"#DIV/0!"}},{"$f":"'Incentive impact'!U110/8","v":7.334996032346843E-3},{"$f":"'Incentive impact'!V110/8","v":7.2996223154389332E-3},{"$f":"'Incentive impact'!W110/8","v":1.4972195835989296E-2},{"$f":"'Incentive impact'!X110/8","v":1.0348062819410125E-2},{"$f":"'Incentive impact'!Y110/8","v":{"$error":"#DIV/0!"}},{"$f":"'Incentive impact'!Z110/8","v":{"$error":"#DIV/0!"}},{"$f":"'Incentive impact'!AA110/8","v":{"$error":"#DIV/0!"}},{"$f":"'Incentive impact'!AB110/8","v":{"$error":"#DIV/0!"}},{"$f":"'Incentive impact'!AC110/8","v":{"$error":"#DIV/0!"}},{"$f":"'Incentive impact'!AD110/8","v":{"$error":"#DIV/0!"}},{"$f":"'Incentive impact'!AE110/8","v":{"$error":"#DIV/0!"}}]
[null,null,null,null,null,null,null,null,null,null,null,null,null,null,23,"y","Mid point (£m or % of Revenue) of incentive",{"$f":"('Incentive impact'!R112+'Incentive impact'!R114)/2","v":{"$error":"#DIV/0!"}},{"$f":"('Incentive impact'!S112+'Incentive impact'!S114)/2","v":{"$error":"#DIV/0!"}},{"$f":"('Incentive impact'!T112+'Incentive impact'!T114)/2","v":{"$error":"#DIV/0!"}},{"$f":"('Incentive impact'!U112+'Incentive impact'!U114)/2","v":3.6674980161734215E-3},{"$f":"('Incentive impact'!V112+'Incentive impact'!V114)/2","v":3.6498111577194666E-3},{"$f":"('Incentive impact'!W112+'Incentive impact'!W114)/2","v":7.4860979179946479E-3},{"$f":"('Incentive impact'!X112+'Incentive impact'!X114)/2","v":5.1740314097050624E-3},{"$f":"('Incentive impact'!Y112+'Incentive impact'!Y114)/2","v":{"$error":"#DIV/0!"}},{"$f":"('Incentive impact'!Z112+'Incentive impact'!Z114)/2","v":{"$error":"#DIV/0!"}},{"$f":"('Incentive impact'!AA112+'Incentive impact'!AA114)/2","v":{"$error":"#DIV/0!"}},{"$f":"('Incentive impact'!AB112+'Incentive impact'!AB114)/2","v":{"$error":"#DIV/0!"}},{"$f":"('Incentive impact'!AC112+'Incentive impact'!AC114)/2","v":{"$error":"#DIV/0!"}},{"$f":"('Incentive impact'!AD112+'Incentive impact'!AD114)/2","v":{"$error":"#DIV/0!"}},{"$f":"('Incentive impact'!AE112+'Incentive impact'!AE114)/2","v":{"$error":"#DIV/0!"}}]
[null,null,null,null,null,null,null,null,null,null,null,null,null,null,23,"z","Likely Low (£m or % of Revenue) of incentive"]
[null,null,null,null,null,null,null,null,null,null,null,null,null,null,23,"AA","Incentive Policy Manager"]
[]
[null,null,null,null,null,null,null,null,null,null,null,null,null,null,"Row","Column"]
[null,null,null,null,null,null,null,null,null,null,null,null,null,null,14,"s"]
[null,null,null,null,null,null,null,null,null,null,null,null,null,null,14,"t"]
[null,null,null,null,null,null,null,null,null,null,null,null,null,null,14,"u"]
[null,null,null,null,null,null,null,null,null,null,null,null,null,null,14,"v"]
[null,null,null,null,null,null,null,null,null,null,null,null,null,null,14,"w",null,{"$f":"-4.6/'Incentive impact'!R3","v":{"$error":"#DIV/0!"}},{"$f":"-4.6/'Incentive impact'!S3","v":{"$error":"#DIV/0!"}},{"$f":"-4.6/'Incentive impact'!T3","v":{"$error":"#DIV/0!"}},{"$f":"-4.6/'Incentive impact'!U3","v":-8.4352454371988683E-3},{"$f":"-4.6/'Incentive impact'!V3","v":-8.3945656627547726E-3},{"$f":"-4.6/'Incentive impact'!W3","v":-1.721802521138769E-2},{"$f":"-4.6/'Incentive impact'!X3","v":-1.1900272242321644E-2},{"$f":"-4.6/'Incentive impact'!Y3","v":{"$error":"#DIV/0!"}},{"$f":"-4.6/'Incentive impact'!Z3","v":{"$error":"#DIV/0!"}},{"$f":"-4.6/'Incentive impact'!AA3","v":{"$error":"#DIV/0!"}},{"$f":"-4.6/'Incentive impact'!AB3","v":{"$error":"#DIV/0!"}},{"$f":"-4.6/'Incentive impact'!AC3","v":{"$error":"#DIV/0!"}},{"$f":"-4.6/'Incentive impact'!AD3","v":{"$error":"#DIV/0!"}},{"$f":"-4.6/'Incentive impact'!AE3","v":{"$error":"#DIV/0!"}}]
[null,null,null,null,null,null,null,null,null,null,null,null,null,null,14,"x","Likely High (£m or % of Revenue) of incentive"]
[null,null,null,null,null,null,null,null,null,null,null,null,null,null,14,"y","Mid point (£m or % of Revenue) of incentive",{"$f":"('Incentive impact'!R123+'Incentive impact'!R125)/2","v":{"$error":"#DIV/0!"}},{"$f":"('Incentive impact'!S123+'Incentive impact'!S125)/2","v":{"$error":"#DIV/0!"}},{"$f":"('Incentive impact'!T123+'Incentive impact'!T125)/2","v":{"$error":"#DIV/0!"}},{"$f":"('Incentive impact'!U123+'Incentive impact'!U125)/2","v":-5.2720283982492927E-4},{"$f":"('Incentive impact'!V123+'Incentive impact'!V125)/2","v":-5.2466035392217329E-4},{"$f":"('Incentive impact'!W123+'Incentive impact'!W125)/2","v":-1.0761265757117306E-3},{"$f":"('Incentive impact'!X123+'Incentive impact'!X125)/2","v":-7.4376701514510272E-4},{"$f":"('Incentive impact'!Y123+'Incentive impact'!Y125)/2","v":{"$error":"#DIV/0!"}},{"$f":"('Incentive impact'!Z123+'Incentive impact'!Z125)/2","v":{"$error":"#DIV/0!"}},{"$f":"('Incentive impact'!AA123+'Incentive impact'!AA125)/2","v":{"$error":"#DIV/0!"}},{"$f":"('Incentive impact'!AB123+'Incentive impact'!AB125)/2","v":{"$error":"#DIV/0!"}},{"$f":"('Incentive impact'!AC123+'Incentive impact'!AC125)/2","v":{"$error":"#DIV/0!"}},{"$f":"('Incentive impact'!AD123+'Incentive impact'!AD125)/2","v":{"$error":"#DIV/0!"}},{"$f":"('Incentive impact'!AE123+'Incentive impact'!AE125)/2","v":{"$error":"#DIV/0!"}}]
[null,null,null,null,null,null,null,null,null,null,null,null,null,null,14,"z","Likely Low (£m or % of Revenue) of incentive",{"$f":"'Incentive impact'!R122/8","v":{"$error":"#DIV/0!"}},{"$f":"'Incentive impact'!S122/8","v":{"$error":"#DIV/0!"}},{"$f":"'Incentive impact'!T122/8","v":{"$error":"#DIV/0!"}},{"$f":"'Incentive impact'!U122/8","v":-1.0544056796498585E-3},{"$f":"'Incentive impact'!V122/8","v":-1.0493207078443466E-3},{"$f":"'Incentive impact'!W122/8","v":-2.1522531514234612E-3},{"$f":"'Incentive impact'!X122/8","v":-1.4875340302902054E-3},{"$f":"'Incentive impact'!Y122/8","v":{"$error":"#DIV/0!"}},{"$f":"'Incentive impact'!Z122/8","v":{"$error":"#DIV/0!"}},{"$f":"'Incentive impact'!AA122/8","v":{"$error":"#DIV/0!"}},{"$f":"'Incentive impact'!AB122/8","v":{"$error":"#DIV/0!"}},{"$f":"'Incentive impact'!AC122/8","v":{"$error":"#DIV/0!"}},{"$f":"'Incentive impact'!AD122/8","v":{"$error":"#DIV/0!"}},{"$f":"'Incentive impact'!AE122/8","v":{"$error":"#DIV/0!"}}]
[null,null,null,null,null,null,null,null,null,null,null,null,null,null,14,"AA","Incentive Policy Manager"]
[]
[null,null,null,null,null,null,null,null,null,null,null,null,null,null,"Row","Column"]
[null,null,null,null,null,null,null,null,null,null,null,null,null,null,21,"s"]
[null,null,null,null,null,null,null,null,null,null,null,null,null,null,21,"t"]
[null,null,null,null,null,null,null,null,null,null,null,null,null,null,21,"u"]
[null,null,null,null,null,null,null,null,null,null,null,null,null,null,21,"v"]
[null,null,null,null,null,null,null,null,null,null,null,null,null,null,21,"w",null,{"$f":"-0.3/'Incentive impact'!R3","v":{"$error":"#DIV/0!"}},{"$f":"-0.3/'Incentive impact'!S3","v":{"$error":"#DIV/0!"}},{"$f":"-0.3/'Incentive impact'!T3","v":{"$error":"#DIV/0!"}},{"$f":"-0.3/'Incentive impact'!U3","v":-5.5012470242601322E-4},{"$f":"-0.3/'Incentive impact'!V3","v":-5.4747167365791992E-4},{"$f":"-0.3/'Incentive impact'!W3","v":-1.1229146876991971E-3},{"$f":"-0.3/'Incentive impact'!X3","v":-7.7610471145575933E-4},{"$f":"-0.3/'Incentive impact'!Y3","v":{"$error":"#DIV/0!"}},{"$f":"-0.3/'Incentive impact'!Z3","v":{"$error":"#DIV/0!"}},{"$f":"-0.3/'Incentive impact'!AA3","v":{"$error":"#DIV/0!"}},{"$f":"-0.3/'Incentive impact'!AB3","v":{"$error":"#DIV/0!"}},{"$f":"-0.3/'Incentive impact'!AC3","v":{"$error":"#DIV/0!"}},{"$f":"-0.3/'Incentive impact'!AD3","v":{"$error":"#DIV/0!"}},{"$f":"-0.3/'Incentive impact'!AE3","v":{"$error":"#DIV/0!"}}]
[null,null,null,null,null,null,null,null,null,null,null,null,null,null,21,"x","Likely High (£m or % of Revenue) of incentive"]
[null,null,null,null,null,null,null,null,null,null,null,null,null,null,21,"y","Mid point (£m or % of Revenue) of incentive",{"$f":"('Incentive impact'!R134+'Incentive impact'!R136)/2","v":{"$error":"#DIV/0!"}},{"$f":"('Incentive impact'!S134+'Incentive impact'!S136)/2","v":{"$error":"#DIV/0!"}},{"$f":"('Incentive impact'!T134+'Incentive impact'!T136)/2","v":{"$error":"#DIV/0!"}},{"$f":"('Incentive impact'!U134+'Incentive impact'!U136)/2","v":-3.4382793901625826E-5},{"$f":"('Incentive impact'!V134+'Incentive impact'!V136)/2","v":-3.4216979603619995E-5},{"$f":"('Incentive impact'!W134+'Incentive impact'!W136)/2","v":-7.0182167981199819E-5},{"$f":"('Incentive impact'!X134+'Incentive impact'!X136)/2","v":-4.8506544465984958E-5},{"$f":"('Incentive impact'!Y134+'Incentive impact'!Y136)/2","v":{"$error":"#DIV/0!"}},{"$f":"('Incentive impact'!Z134+'Incentive impact'!Z136)/2","v":{"$error":"#DIV/0!"}},{"$f":"('Incentive impact'!AA134+'Incentive impact'!AA136)/2","v":{"$error":"#DIV/0!"}},{"$f":"('Incentive impact'!AB134+'Incentive impact'!AB136)/2","v":{"$error":"#DIV/0!"}},{"$f":"('Incentive impact'!AC134+'Incentive impact'!AC136)/2","v":{"$error":"#DIV/0!"}},{"$f":"('Incentive impact'!AD134+'Incentive impact'!AD136)/2","v":{"$error":"#DIV/0!"}},{"$f":"('Incentive impact'!AE134+'Incentive impact'!AE136)/2","v":{"$error":"#DIV/0!"}}]
[null,null,null,null,null,null,null,null,null,null,null,null,null,null,21,"z","Likely Low (£m or % of Revenue) of incentive",{"$f":"'Incentive impact'!R133/8","v":{"$error":"#DIV/0!"}},{"$f":"'Incentive impact'!S133/8","v":{"$error":"#DIV/0!"}},{"$f":"'Incentive impact'!T133/8","v":{"$error":"#DIV/0!"}},{"$f":"'Incentive impact'!U133/8","v":-6.8765587803251653E-5},{"$f":"'Incentive impact'!V133/8","v":-6.8433959207239991E-5},{"$f":"'Incentive impact'!W133/8","v":-1.4036433596239964E-4},{"$f":"'Incentive impact'!X133/8","v":-9.7013088931969916E-5},{"$f":"'Incentive impact'!Y133/8","v":{"$error":"#DIV/0!"}},{"$f":"'Incentive impact'!Z133/8","v":{"$error":"#DIV/0!"}},{"$f":"'Incentive impact'!AA133/8","v":{"$error":"#DIV/0!"}},{"$f":"'Incentive impact'!AB133/8","v":{"$error":"#DIV/0!"}},{"$f":"'Incentive impact'!AC133/8","v":{"$error":"#DIV/0!"}},{"$f":"'Incentive impact'!AD133/8","v":{"$error":"#DIV/0!"}},{"$f":"'Incentive impact'!AE133/8","v":{"$error":"#DIV/0!"}}]
[null,null,null,null,null,null,null,null,null,null,null,null,null,null,21,"AA","Incentive Policy Manager"]
[]
[null,null,null,null,null,null,null,null,null,null,null,null,null,null,"Row","Column"]
[null,null,null,null,null,null,null,null,null,null,null,null,null,null,38,"s",null,4,4,4,4,4,4,4,4,4,4,4,4,4,4]
[null,null,null,null,null,null,null,null,null,null,null,null,null,null,38,"t"]
[null,null,null,null,null,null,null,null,null,null,null,null,null,null,38,"u"]
[null,null,null,null,null,null,null,null,null,null,null,null,null,null,38,"v"]
[null,null,null,null,null,null,null,null,null,null,null,null,null,null,38,"w"]
[null,null,null,null,null,null,null,null,null,null,null,null,null,null,38,"x","Likely High (£m or % of Revenue) of incentive",{"$f":"'Incentive impact'!R140/'Incentive impact'!R3","v":{"$error":"#DIV/0!"}},{"$f":"'Incentive impact'!S140/'Incentive impact'!S3","v":{"$error":"#DIV/0!"}},{"$f":"'Incentive impact'!T140/'Incentive impact'!T3","v":{"$error":"#DIV/0!"}},{"$f":"'Incentive impact'!U140/'Incentive impact'!U3","v":7.334996032346843E-3},{"$f":"'Incentive impact'!V140/'Incentive impact'!V3","v":7.2996223154389332E-3},{"$f":"'Incentive impact'!W140/'Incentive impact'!W3","v":1.4972195835989296E-2},{"$f":"'Incentive impact'!X140/'Incentive impact'!X3","v":1.0348062819410125E-2},{"$f":"'Incentive impact'!Y140/'Incentive impact'!Y3","v":{"$error":"#DIV/0!"}},{"$f":"'Incentive impact'!Z140/'Incentive impact'!Z3","v":{"$error":"#DIV/0!"}},{"$f":"'Incentive impact'!AA140/'Incentive impact'!AA3","v":{"$error":"#DIV/0!"}},{"$f":"'Incentive impact'!AB140/'Incentive impact'!AB3","v":{"$error":"#DIV/0!"}},{"$f":"'Incentive impact'!AC140/'Incentive impact'!AC3","v":{"$error":"#DIV/0!"}},{"$f":"'Incentive impact'!AD140/'Incentive impact'!AD3","v":{"$error":"#DIV/0!"}},{"$f":"'Incentive impact'!AE140/'Incentive impact'!AE3","v":{"$error":"#DIV/0!"}}]
[null,null,null,null,null,null,null,null,null,null,null,null,null,null,38,"y","Mid point (£m or % of Revenue) of incentive",{"$f":"('Incentive impact'!R145+'Incentive impact'!R147)/2","v":{"$error":"#DIV/0!"}},{"$f":"('Incentive impact'!S145+'Incentive impact'!S147)/2","v":{"$error":"#DIV/0!"}},{"$f":"('Incentive impact'!T145+'Incentive impact'!T147)/2","v":{"$error":"#DIV/0!"}},{"$f":"('Incentive impact'!U145+'Incentive impact'!U147)/2","v":0},{"$f":"('Incentive impact'!V145+'Incentive impact'!V147)/2","v":0},{"$f":"('Incentive impact'!W145+'Incentive impact'!W147)/2","v":0},{"$f":"('Incentive impact'!X145+'Incentive impact'!X147)/2","v":0},{"$f":"('Incentive impact'!Y145+'Incentive impact'!Y147)/2","v":{"$error":"#DIV/0!"}},{"$f":"('Incentive impact'!Z145+'Incentive impact'!Z147)/2","v":{"$error":"#DIV/0!"}},{"$f":"('Incentive impact'!AA145+'Incentive impact'!AA147)/2","v":{"$error":"#DIV/0!"}},{"$f":"('Incentive impact'!AB145+'Incentive impact'!AB147)/2","v":{"$error":"#DIV/0!"}},{"$f":"('Incentive impact'!AC145+'Incentive impact'!AC147)/2","v":{"$error":"#DIV/0!"}},{"$f":"('Incentive impact'!AD145+'Incentive impact'!AD147)/2","v":{"$error":"#DIV/0!"}},{"$f":"('Incentive impact'!AE145+'Incentive impact'!AE147)/2","v":{"$error":"#DIV/0!"}}]
[null,null,null,null,null,null,null,null,null,null,null,null,null,null,38,"z","Likely Low (£m or % of Revenue) of incentive",{"$f":"-'Incentive impact'!R140/'Incentive impact'!R3","v":{"$error":"#DIV/0!"}},{"$f":"-'Incentive impact'!S140/'Incentive impact'!S3","v":{"$error":"#DIV/0!"}},{"$f":"-'Incentive impact'!T140/'Incentive impact'!T3","v":{"$error":"#DIV/0!"}},{"$f":"-'Incentive impact'!U140/'Incentive impact'!U3","v":-7.334996032346843E-3},{"$f":"-'Incentive impact'!V140/'Incentive impact'!V3","v":-7.2996223154389332E-3},{"$f":"-'Incentive impact'!W140/'Incentive impact'!W3","v":-1.4972195835989296E-2},{"$f":"-'Incentive impact'!X140/'Incentive impact'!X3","v":-1.0348062819410125E-2},{"$f":"-'Incentive impact'!Y140/'Incentive impact'!Y3","v":{"$error":"#DIV/0!"}},{"$f":"-'Incentive impact'!Z140/'Incentive impact'!Z3","v":{"$error":"#DIV/0!"}},{"$f":"-'Incentive impact'!AA140/'Incentive impact'!AA3","v":{"$error":"#DIV/0!"}},{"$f":"-'Incentive impact'!AB140/'Incentive impact'!AB3","v":{"$error":"#DIV/0!"}},{"$f":"-'Incentive impact'!AC140/'Incentive impact'!AC3","v":{"$error":"#DIV/0!"}},{"$f":"-'Incentive impact'!AD140/'Incentive impact'!AD3","v":{"$error":"#DIV/0!"}},{"$f":"-'Incentive impact'!AE140/'Incentive impact'!AE3","v":{"$error":"#DIV/0!"}}]
[null,null,null,null,null,null,null,null,null,null,null,null,null,null,38,"AA","Incentive Policy Manager"]
[]
[]
[]
[]
[]
[]
[]
[]
[]
[]
[]
[]
[]
[]
[]
[]
[]
[]
[]
[]
[]
[]
[]
[]
[null,null,null,null,null,null,null,null,null,null,null,null,null,null,null,null,null,{"$f":"AVERAGE(SavedResults!O57,SavedResults!O134,SavedResults!O217,SavedResults!O288,SavedResults!O365,SavedResults!O442,SavedResults!O519,SavedResults!O596,SavedResults!O673,SavedResults!O750,SavedResults!O827,SavedResults!O904,SavedResults!O981,SavedResults!O1064)","v":124.78657981991407}]

{"sheet":"ENWL","index":22,"n_rows":0,"n_cols":0,"rows_kept":0,"cut":false,"hidden":false,"merged":[]}

{"sheet":"NPgN","index":23,"n_rows":0,"n_cols":0,"rows_kept":0,"cut":false,"hidden":false,"merged":[]}

{"sheet":"NPgY","index":24,"n_rows":0,"n_cols":0,"rows_kept":0,"cut":false,"hidden":false,"merged":[]}

{"sheet":"WMID","index":25,"n_rows":423,"n_cols":43,"rows_kept":423,"cut":false,"hidden":false,"merged":[]}
["Input"]
[null,"WMID"]
[null,"CN West"]
[null,"CN West"]
[null,"CN West"]
[null,null,null,null,"Parameter","Licence condition","Units","Term","Constant",null,null,null,null,null,null,null,null,null,null,null,null,null,null,null,null,null,null,null,null,null,null,null,null,null,null,"Annual values"]
[null,null,null,null,"PCFM year ending",{"$f":"Cover!C3","v":"LiMo ED C1.93b_WPD_DNO East Mids.xlsm"},null,null,{"$f":"UserInterface!$G$17","v":"2016-03-31"},null,"1991-03-31","1992-03-31","1993-03-31","1994-03-31","1995-03-31","1996-03-31","1997-03-31","1998-03-31","1999-03-31","2000-03-31","2001-03-31","2002-03-31","2003-03-31","2004-03-31","2005-03-31","2006-03-31","2007-03-31","2008-03-31","2009-03-31","2010-03-31","2011-03-31","2012-03-31","2013-03-31","2014-03-31","2015-03-31","2016-03-31","2017-03-31","2018-03-31","2019-03-31","2020-03-31","2021-03-31","2022-03-31","2023-03-31"]
[]
[null,"PCFM Variable Values Table"]
[]
[null,null,null,null,{"$f":"Input!E11","v":"Allowed percentage cost of debt"},{"$f":"Input!F11","v":"XX"},{"$f":"Input!G11","v":"annual real %"},{"$f":"Input!H11","v":"YY"},null,null,null,null,null,null,null,null,null,null,null,null,null,null,null,null,null,null,null,null,null,null,null,null,null,null,null,2.92E-2,2.92E-2,2.92E-2,2.92E-2,2.92E-2,2.92E-2,2.92E-2,2.92E-2]
[null,null,null,null,{"$f":"Input!E12","v":"Actual load related capex"},{"$f":"Input!F12","v":"XX"},{"$f":"Input!G12","v":"£m 12/13 prices"},{"$f":"Input!H12","v":"YY"}]
[null,null,null,null,{"$f":"Input!E13","v":"Actual non-load related capex - asset replacement"},{"$f":"Input!F13","v":"XX"},{"$f":"Input!G13","v":"£m 12/13 prices"},{"$f":"Input!H13","v":"YY"}]
[null,null,null,null,{"$f":"Input!E14","v":"Actual non-load related capex - other"},{"$f":"Input!F14","v":"XX"},{"$f":"Input!G14","v":"£m 12/13 prices"},{"$f":"Input!H14","v":"YY"}]
[null,null,null,null,{"$f":"Input!E15","v":"Actual faults"},{"$f":"Input!F15","v":"XX"},{"$f":"Input!G15","v":"£m 12/13 prices"},{"$f":"Input!H15","v":"YY"}]
[null,null,null,null,{"$f":"Input!E16","v":"Actual tree cutting"},{"$f":"Input!F16","v":"XX"},{"$f":"Input!G16","v":"£m 12/13 prices"},{"$f":"Input!H16","v":"YY"}]
[null,null,null,null,{"$f":"Input!E17","v":"Actual controllable opex"},{"$f":"Input!F17","v":"XX"},{"$f":"Input!G17","v":"£m 12/13 prices"},{"$f":"Input!H17","v":"YY"}]
[null,null,null,null,{"$f":"Input!E18","v":"Allowed uncertain costs (CNI)"},{"$f":"Input!F18","v":"XX"},{"$f":"Input!G18","v":"£m 12/13 prices"},{"$f":"Input!H18","v":"YY"},null,null,null,null,null,null,null,null,null,null,null,null,null,null,null,null,null,null,null,null,null,null,null,null,null,null,null,{"$f":"CHOOSE(view,\n'[1]M1a - Model inputs'!L34+'[1]M1a - Model inputs'!L71,\n'[1]M1b - Model inputs'!L34+'[1]M1b - Model inputs'!L71,\n'[1]SM1 - DECC Scenario 3 equiv'!L34+'[1]SM1 - DECC Scenario 3 equiv'!L71,\n'[1]SM2 - DECC Scenario 1 equiv'!L34+'[1]SM2 - DECC Scenario 1 equiv'!L71,\n'[1]SM3 - DECC Scenario 2 equiv'!L34+'[1]SM3 - DECC Scenario 2 equiv'!L71,\n'[1]SM4 - DNO Scenario 4 equiv'!L34+'[1]SM4 - DNO Scenario 4 equiv'!L71,\n'[2]M1a - Model inputs'!L34+'[1]M1a - Model inputs'!L71,\n'[2]M1b - Model inputs'!L34+'[1]M1b - Model inputs'!L71,\n'[2]SM1 - DECC Scenario 3 equiv'!L34+'[1]SM1 - DECC Scenario 3 equiv'!L71,\n'[2]SM2 - DECC Scenario 1 equiv'!L34+'[1]SM2 - DECC Scenario 1 equiv'!L71,\n'[2]SM3 - DECC Scenario 2 equiv'!L34+'[1]SM3 - DECC Scenario 2 equiv'!L71,\n'[2]SM4 - DNO Scenario 4 equiv'!L34+'[1]SM4 - DNO Scenario 4 equiv'!L71)","v":0},{"$f":"CHOOSE(view,\n'[1]M1a - Model inputs'!M34+'[1]M1a - Model inputs'!M71,\n'[1]M1b - Model inputs'!M34+'[1]M1b - Model inputs'!M71,\n'[1]SM1 - DECC Scenario 3 equiv'!M34+'[1]SM1 - DECC Scenario 3 equiv'!M71,\n'[1]SM2 - DECC Scenario 1 equiv'!M34+'[1]SM2 - DECC Scenario 1 equiv'!M71,\n'[1]SM3 - DECC Scenario 2 equiv'!M34+'[1]SM3 - DECC Scenario 2 equiv'!M71,\n'[1]SM4 - DNO Scenario 4 equiv'!M34+'[1]SM4 - DNO Scenario 4 equiv'!M71,\n'[2]M1a - Model inputs'!M34+'[1]M1a - Model inputs'!M71,\n'[2]M1b - Model inputs'!M34+'[1]M1b - Model inputs'!M71,\n'[2]SM1 - DECC Scenario 3 equiv'!M34+'[1]SM1 - DECC Scenario 3 equiv'!M71,\n'[2]SM2 - DECC Scenario 1 equiv'!M34+'[1]SM2 - DECC Scenario 1 equiv'!M71,\n'[2]SM3 - DECC Scenario 2 equiv'!M34+'[1]SM3 - DECC Scenario 2 equiv'!M71,\n'[2]SM4 - DNO Scenario 4 equiv'!M34+'[1]SM4 - DNO Scenario 4 equiv'!M71)","v":0},{"$f":"CHOOSE(view,\n'[1]M1a - Model inputs'!N34+'[1]M1a - Model inputs'!N71,\n'[1]M1b - Model inputs'!N34+'[1]M1b - Model inputs'!N71,\n'[1]SM1 - DECC Scenario 3 equiv'!N34+'[1]SM1 - DECC Scenario 3 equiv'!N71,\n'[1]SM2 - DECC Scenario 1 equiv'!N34+'[1]SM2 - DECC Scenario 1 equiv'!N71,\n'[1]SM3 - DECC Scenario 2 equiv'!N34+'[1]SM3 - DECC Scenario 2 equiv'!N71,\n'[1]SM4 - DNO Scenario 4 equiv'!N34+'[1]SM4 - DNO Scenario 4 equiv'!N71,\n'[2]M1a - Model inputs'!N34+'[1]M1a - Model inputs'!N71,\n'[2]M1b - Model inputs'!N34+'[1]M1b - Model inputs'!N71,\n'[2]SM1 - DECC Scenario 3 equiv'!N34+'[1]SM1 - DECC Scenario 3 equiv'!N71,\n'[2]SM2 - DECC Scenario 1 equiv'!N34+'[1]SM2 - DECC Scenario 1 equiv'!N71,\n'[2]SM3 - DECC Scenario 2 equiv'!N34+'[1]SM3 - DECC Scenario 2 equiv'!N71,\n'[2]SM4 - DNO Scenario 4 equiv'!N34+'[1]SM4 - DNO Scenario 4 equiv'!N71)","v":0},{"$f":"CHOOSE(view,\n'[1]M1a - Model inputs'!O34+'[1]M1a - Model inputs'!O71,\n'[1]M1b - Model inputs'!O34+'[1]M1b - Model inputs'!O71,\n'[1]SM1 - DECC Scenario 3 equiv'!O34+'[1]SM1 - DECC Scenario 3 equiv'!O71,\n'[1]SM2 - DECC Scenario 1 equiv'!O34+'[1]SM2 - DECC Scenario 1 equiv'!O71,\n'[1]SM3 - DECC Scenario 2 equiv'!O34+'[1]SM3 - DECC Scenario 2 equiv'!O71,\n'[1]SM4 - DNO Scenario 4 equiv'!O34+'[1]SM4 - DNO Scenario 4 equiv'!O71,\n'[2]M1a - Model inputs'!O34+'[1]M1a - Model inputs'!O71,\n'[2]M1b - Model inputs'!O34+'[1]M1b - Model inputs'!O71,\n'[2]SM1 - DECC Scenario 3 equiv'!O34+'[1]SM1 - DECC Scenario 3 equiv'!O71,\n'[2]SM2 - DECC Scenario 1 equiv'!O34+'[1]SM2 - DECC Scenario 1 equiv'!O71,\n'[2]SM3 - DECC Scenario 2 equiv'!O34+'[1]SM3 - DECC Scenario 2 equiv'!O71,\n'[2]SM4 - DNO Scenario 4 equiv'!O34+'[1]SM4 - DNO Scenario 4 equiv'!O71)","v":0},{"$f":"CHOOSE(view,\n'[1]M1a - Model inputs'!P34+'[1]M1a - Model inputs'!P71,\n'[1]M1b - Model inputs'!P34+'[1]M1b - Model inputs'!P71,\n'[1]SM1 - DECC Scenario 3 equiv'!P34+'[1]SM1 - DECC Scenario 3 equiv'!P71,\n'[1]SM2 - DECC Scenario 1 equiv'!P34+'[1]SM2 - DECC Scenario 1 equiv'!P71,\n'[1]SM3 - DECC Scenario 2 equiv'!P34+'[1]SM3 - DECC Scenario 2 equiv'!P71,\n'[1]SM4 - DNO Scenario 4 equiv'!P34+'[1]SM4 - DNO Scenario 4 equiv'!P71,\n'[2]M1a - Model inputs'!P34+'[1]M1a - Model inputs'!P71,\n'[2]M1b - Model inputs'!P34+'[1]M1b - Model inputs'!P71,\n'[2]SM1 - DECC Scenario 3 equiv'!P34+'[1]SM1 - DECC Scenario 3 equiv'!P71,\n'[2]SM2 - DECC Scenario 1 equiv'!P34+'[1]SM2 - DECC Scenario 1 equiv'!P71,\n'[2]SM3 - DECC Scenario 2 equiv'!P34+'[1]SM3 - DECC Scenario 2 equiv'!P71,\n'[2]SM4 - DNO Scenario 4 equiv'!P34+'[1]SM4 - DNO Scenario 4 equiv'!P71)","v":0},{"$f":"CHOOSE(view,\n'[1]M1a - Model inputs'!Q34+'[1]M1a - Model inputs'!Q71,\n'[1]M1b - Model inputs'!Q34+'[1]M1b - Model inputs'!Q71,\n'[1]SM1 - DECC Scenario 3 equiv'!Q34+'[1]SM1 - DECC Scenario 3 equiv'!Q71,\n'[1]SM2 - DECC Scenario 1 equiv'!Q34+'[1]SM2 - DECC Scenario 1 equiv'!Q71,\n'[1]SM3 - DECC Scenario 2 equiv'!Q34+'[1]SM3 - DECC Scenario 2 equiv'!Q71,\n'[1]SM4 - DNO Scenario 4 equiv'!Q34+'[1]SM4 - DNO Scenario 4 equiv'!Q71,\n'[2]M1a - Model inputs'!Q34+'[1]M1a - Model inputs'!Q71,\n'[2]M1b - Model inputs'!Q34+'[1]M1b - Model inputs'!Q71,\n'[2]SM1 - DECC Scenario 3 equiv'!Q34+'[1]SM1 - DECC Scenario 3 equiv'!Q71,\n'[2]SM2 - DECC Scenario 1 equiv'!Q34+'[1]SM2 - DECC Scenario 1 equiv'!Q71,\n'[2]SM3 - DECC Scenario 2 equiv'!Q34+'[1]SM3 - DECC Scenario 2 equiv'!Q71,\n'[2]SM4 - DNO Scenario 4 equiv'!Q34+'[1]SM4 - DNO Scenario 4 equiv'!Q71)","v":0},{"$f":"CHOOSE(view,\n'[1]M1a - Model inputs'!R34+'[1]M1a - Model inputs'!R71,\n'[1]M1b - Model inputs'!R34+'[1]M1b - Model inputs'!R71,\n'[1]SM1 - DECC Scenario 3 equiv'!R34+'[1]SM1 - DECC Scenario 3 equiv'!R71,\n'[1]SM2 - DECC Scenario 1 equiv'!R34+'[1]SM2 - DECC Scenario 1 equiv'!R71,\n'[1]SM3 - DECC Scenario 2 equiv'!R34+'[1]SM3 - DECC Scenario 2 equiv'!R71,\n'[1]SM4 - DNO Scenario 4 equiv'!R34+'[1]SM4 - DNO Scenario 4 equiv'!R71,\n'[2]M1a - Model inputs'!R34+'[1]M1a - Model inputs'!R71,\n'[2]M1b - Model inputs'!R34+'[1]M1b - Model inputs'!R71,\n'[2]SM1 - DECC Scenario 3 equiv'!R34+'[1]SM1 - DECC Scenario 3 equiv'!R71,\n'[2]SM2 - DECC Scenario 1 equiv'!R34+'[1]SM2 - DECC Scenario 1 equiv'!R71,\n'[2]SM3 - DECC Scenario 2 equiv'!R34+'[1]SM3 - DECC Scenario 2 equiv'!R71,\n'[2]SM4 - DNO Scenario 4 equiv'!R34+'[1]SM4 - DNO Scenario 4 equiv'!R71)","v":0},{"$f":"CHOOSE(view,\n'[1]M1a - Model inputs'!S34+'[1]M1a - Model inputs'!S71,\n'[1]M1b - Model inputs'!S34+'[1]M1b - Model inputs'!S71,\n'[1]SM1 - DECC Scenario 3 equiv'!S34+'[1]SM1 - DECC Scenario 3 equiv'!S71,\n'[1]SM2 - DECC Scenario 1 equiv'!S34+'[1]SM2 - DECC Scenario 1 equiv'!S71,\n'[1]SM3 - DECC Scenario 2 equiv'!S34+'[1]SM3 - DECC Scenario 2 equiv'!S71,\n'[1]SM4 - DNO Scenario 4 equiv'!S34+'[1]SM4 - DNO Scenario 4 equiv'!S71,\n'[2]M1a - Model inputs'!S34+'[1]M1a - Model inputs'!S71,\n'[2]M1b - Model inputs'!S34+'[1]M1b - Model inputs'!S71,\n'[2]SM1 - DECC Scenario 3 equiv'!S34+'[1]SM1 - DECC Scenario 3 equiv'!S71,\n'[2]SM2 - DECC Scenario 1 equiv'!S34+'[1]SM2 - DECC Scenario 1 equiv'!S71,\n'[2]SM3 - DECC Scenario 2 equiv'!S34+'[1]SM3 - DECC Scenario 2 equiv'!S71,\n'[2]SM4 - DNO Scenario 4 equiv'!S34+'[1]SM4 - DNO Scenario 4 equiv'!S71)","v":0}]
[null,null,null,null,{"$f":"Input!E19","v":"Allowed uncertain costs (High Value Projects)"},{"$f":"Input!F19","v":"XX"},{"$f":"Input!G19","v":"£m 12/13 prices"},{"$f":"Input!H19","v":"YY"},null,null,null,null,null,null,null,null,null,null,null,null,null,null,null,null,null,null,null,null,null,null,null,null,null,null,null,{"$f":"CHOOSE(view,\nSUM('[1]M1a - Model inputs'!L37:L40)+SUM('[1]M1a - Model inputs'!L74:L77),\nSUM('[1]M1b - Model inputs'!L37:L40)+SUM('[1]M1b - Model inputs'!L74:L77),\nSUM('[1]SM1 - DECC Scenario 3 equiv'!L37:L40)+SUM('[1]SM1 - DECC Scenario 3 equiv'!L74:L77),\nSUM('[1]SM2 - DECC Scenario 1 equiv'!L37:L40)+SUM('[1]SM2 - DECC Scenario 1 equiv'!L74:L77),\nSUM('[1]SM3 - DECC Scenario 2 equiv'!L37:L40)+SUM('[1]SM3 - DECC Scenario 2 equiv'!L74:L77),\nSUM('[1]SM4 - DNO Scenario 4 equiv'!L37:L40)+SUM('[1]SM4 - DNO Scenario 4 equiv'!L74:L77),\nSUM('[2]M1a - Model inputs'!L37:L40)+SUM('[2]M1a - Model inputs'!L74:L77),\nSUM('[2]M1b - Model inputs'!L37:L40)+SUM('[2]M1b - Model inputs'!L74:L77),\nSUM('[2]SM1 - DECC Scenario 3 equiv'!L37:L40)+SUM('[2]SM1 - DECC Scenario 3 equiv'!L74:L77),\nSUM('[2]SM2 - DECC Scenario 1 equiv'!L37:L40)+SUM('[2]SM2 - DECC Scenario 1 equiv'!L74:L77),\nSUM('[2]SM3 - DECC Scenario 2 equiv'!L37:L40)+SUM('[2]SM3 - DECC Scenario 2 equiv'!L74:L77),\nSUM('[2]SM4 - DNO Scenario 4 equiv'!L37:L40)+SUM('[2]SM4 - DNO Scenario 4 equiv'!L74:L77))","v":0},{"$f":"CHOOSE(view,\nSUM('[1]M1a - Model inputs'!M37:M40)+SUM('[1]M1a - Model inputs'!M74:M77),\nSUM('[1]M1b - Model inputs'!M37:M40)+SUM('[1]M1b - Model inputs'!M74:M77),\nSUM('[1]SM1 - DECC Scenario 3 equiv'!M37:M40)+SUM('[1]SM1 - DECC Scenario 3 equiv'!M74:M77),\nSUM('[1]SM2 - DECC Scenario 1 equiv'!M37:M40)+SUM('[1]SM2 - DECC Scenario 1 equiv'!M74:M77),\nSUM('[1]SM3 - DECC Scenario 2 equiv'!M37:M40)+SUM('[1]SM3 - DECC Scenario 2 equiv'!M74:M77),\nSUM('[1]SM4 - DNO Scenario 4 equiv'!M37:M40)+SUM('[1]SM4 - DNO Scenario 4 equiv'!M74:M77),\nSUM('[2]M1a - Model inputs'!M37:M40)+SUM('[2]M1a - Model inputs'!M74:M77),\nSUM('[2]M1b - Model inputs'!M37:M40)+SUM('[2]M1b - Model inputs'!M74:M77),\nSUM('[2]SM1 - DECC Scenario 3 equiv'!M37:M40)+SUM('[2]SM1 - DECC Scenario 3 equiv'!M74:M77),\nSUM('[2]SM2 - DECC Scenario 1 equiv'!M37:M40)+SUM('[2]SM2 - DECC Scenario 1 equiv'!M74:M77),\nSUM('[2]SM3 - DECC Scenario 2 equiv'!M37:M40)+SUM('[2]SM3 - DECC Scenario 2 equiv'!M74:M77),\nSUM('[2]SM4 - DNO Scenario 4 equiv'!M37:M40)+SUM('[2]SM4 - DNO Scenario 4 equiv'!M74:M77))","v":0},{"$f":"CHOOSE(view,\nSUM('[1]M1a - Model inputs'!N37:N40)+SUM('[1]M1a - Model inputs'!N74:N77),\nSUM('[1]M1b - Model inputs'!N37:N40)+SUM('[1]M1b - Model inputs'!N74:N77),\nSUM('[1]SM1 - DECC Scenario 3 equiv'!N37:N40)+SUM('[1]SM1 - DECC Scenario 3 equiv'!N74:N77),\nSUM('[1]SM2 - DECC Scenario 1 equiv'!N37:N40)+SUM('[1]SM2 - DECC Scenario 1 equiv'!N74:N77),\nSUM('[1]SM3 - DECC Scenario 2 equiv'!N37:N40)+SUM('[1]SM3 - DECC Scenario 2 equiv'!N74:N77),\nSUM('[1]SM4 - DNO Scenario 4 equiv'!N37:N40)+SUM('[1]SM4 - DNO Scenario 4 equiv'!N74:N77),\nSUM('[2]M1a - Model inputs'!N37:N40)+SUM('[2]M1a - Model inputs'!N74:N77),\nSUM('[2]M1b - Model inputs'!N37:N40)+SUM('[2]M1b - Model inputs'!N74:N77),\nSUM('[2]SM1 - DECC Scenario 3 equiv'!N37:N40)+SUM('[2]SM1 - DECC Scenario 3 equiv'!N74:N77),\nSUM('[2]SM2 - DECC Scenario 1 equiv'!N37:N40)+SUM('[2]SM2 - DECC Scenario 1 equiv'!N74:N77),\nSUM('[2]SM3 - DECC Scenario 2 equiv'!N37:N40)+SUM('[2]SM3 - DECC Scenario 2 equiv'!N74:N77),\nSUM('[2]SM4 - DNO Scenario 4 equiv'!N37:N40)+SUM('[2]SM4 - DNO Scenario 4 equiv'!N74:N77))","v":0},{"$f":"CHOOSE(view,\nSUM('[1]M1a - Model inputs'!O37:O40)+SUM('[1]M1a - Model inputs'!O74:O77),\nSUM('[1]M1b - Model inputs'!O37:O40)+SUM('[1]M1b - Model inputs'!O74:O77),\nSUM('[1]SM1 - DECC Scenario 3 equiv'!O37:O40)+SUM('[1]SM1 - DECC Scenario 3 equiv'!O74:O77),\nSUM('[1]SM2 - DECC Scenario 1 equiv'!O37:O40)+SUM('[1]SM2 - DECC Scenario 1 equiv'!O74:O77),\nSUM('[1]SM3 - DECC Scenario 2 equiv'!O37:O40)+SUM('[1]SM3 - DECC Scenario 2 equiv'!O74:O77),\nSUM('[1]SM4 - DNO Scenario 4 equiv'!O37:O40)+SUM('[1]SM4 - DNO Scenario 4 equiv'!O74:O77),\nSUM('[2]M1a - Model inputs'!O37:O40)+SUM('[2]M1a - Model inputs'!O74:O77),\nSUM('[2]M1b - Model inputs'!O37:O40)+SUM('[2]M1b - Model inputs'!O74:O77),\nSUM('[2]SM1 - DECC Scenario 3 equiv'!O37:O40)+SUM('[2]SM1 - DECC Scenario 3 equiv'!O74:O77),\nSUM('[2]SM2 - DECC Scenario 1 equiv'!O37:O40)+SUM('[2]SM2 - DECC Scenario 1 equiv'!O74:O77),\nSUM('[2]SM3 - DECC Scenario 2 equiv'!O37:O40)+SUM('[2]SM3 - DECC Scenario 2 equiv'!O74:O77),\nSUM('[2]SM4 - DNO Scenario 4 equiv'!O37:O40)+SUM('[2]SM4 - DNO Scenario 4 equiv'!O74:O77))","v":0},{"$f":"CHOOSE(view,\nSUM('[1]M1a - Model inputs'!P37:P40)+SUM('[1]M1a - Model inputs'!P74:P77),\nSUM('[1]M1b - Model inputs'!P37:P40)+SUM('[1]M1b - Model inputs'!P74:P77),\nSUM('[1]SM1 - DECC Scenario 3 equiv'!P37:P40)+SUM('[1]SM1 - DECC Scenario 3 equiv'!P74:P77),\nSUM('[1]SM2 - DECC Scenario 1 equiv'!P37:P40)+SUM('[1]SM2 - DECC Scenario 1 equiv'!P74:P77),\nSUM('[1]SM3 - DECC Scenario 2 equiv'!P37:P40)+SUM('[1]SM3 - DECC Scenario 2 equiv'!P74:P77),\nSUM('[1]SM4 - DNO Scenario 4 equiv'!P37:P40)+SUM('[1]SM4 - DNO Scenario 4 equiv'!P74:P77),\nSUM('[2]M1a - Model inputs'!P37:P40)+SUM('[2]M1a - Model inputs'!P74:P77),\nSUM('[2]M1b - Model inputs'!P37:P40)+SUM('[2]M1b - Model inputs'!P74:P77),\nSUM('[2]SM1 - DECC Scenario 3 equiv'!P37:P40)+SUM('[2]SM1 - DECC Scenario 3 equiv'!P74:P77),\nSUM('[2]SM2 - DECC Scenario 1 equiv'!P37:P40)+SUM('[2]SM2 - DECC Scenario 1 equiv'!P74:P77),\nSUM('[2]SM3 - DECC Scenario 2 equiv'!P37:P40)+SUM('[2]SM3 - DECC Scenario 2 equiv'!P74:P77),\nSUM('[2]SM4 - DNO Scenario 4 equiv'!P37:P40)+SUM('[2]SM4 - DNO Scenario 4 equiv'!P74:P77))","v":0},{"$f":"CHOOSE(view,\nSUM('[1]M1a - Model inputs'!Q37:Q40)+SUM('[1]M1a - Model inputs'!Q74:Q77),\nSUM('[1]M1b - Model inputs'!Q37:Q40)+SUM('[1]M1b - Model inputs'!Q74:Q77),\nSUM('[1]SM1 - DECC Scenario 3 equiv'!Q37:Q40)+SUM('[1]SM1 - DECC Scenario 3 equiv'!Q74:Q77),\nSUM('[1]SM2 - DECC Scenario 1 equiv'!Q37:Q40)+SUM('[1]SM2 - DECC Scenario 1 equiv'!Q74:Q77),\nSUM('[1]SM3 - DECC Scenario 2 equiv'!Q37:Q40)+SUM('[1]SM3 - DECC Scenario 2 equiv'!Q74:Q77),\nSUM('[1]SM4 - DNO Scenario 4 equiv'!Q37:Q40)+SUM('[1]SM4 - DNO Scenario 4 equiv'!Q74:Q77),\nSUM('[2]M1a - Model inputs'!Q37:Q40)+SUM('[2]M1a - Model inputs'!Q74:Q77),\nSUM('[2]M1b - Model inputs'!Q37:Q40)+SUM('[2]M1b - Model inputs'!Q74:Q77),\nSUM('[2]SM1 - DECC Scenario 3 equiv'!Q37:Q40)+SUM('[2]SM1 - DECC Scenario 3 equiv'!Q74:Q77),\nSUM('[2]SM2 - DECC Scenario 1 equiv'!Q37:Q40)+SUM('[2]SM2 - DECC Scenario 1 equiv'!Q74:Q77),\nSUM('[2]SM3 - DECC Scenario 2 equiv'!Q37:Q40)+SUM('[2]SM3 - DECC Scenario 2 equiv'!Q74:Q77),\nSUM('[2]SM4 - DNO Scenario 4 equiv'!Q37:Q40)+SUM('[2]SM4 - DNO Scenario 4 equiv'!Q74:Q77))","v":0},{"$f":"CHOOSE(view,\nSUM('[1]M1a - Model inputs'!R37:R40)+SUM('[1]M1a - Model inputs'!R74:R77),\nSUM('[1]M1b - Model inputs'!R37:R40)+SUM('[1]M1b - Model inputs'!R74:R77),\nSUM('[1]SM1 - DECC Scenario 3 equiv'!R37:R40)+SUM('[1]SM1 - DECC Scenario 3 equiv'!R74:R77),\nSUM('[1]SM2 - DECC Scenario 1 equiv'!R37:R40)+SUM('[1]SM2 - DECC Scenario 1 equiv'!R74:R77),\nSUM('[1]SM3 - DECC Scenario 2 equiv'!R37:R40)+SUM('[1]SM3 - DECC Scenario 2 equiv'!R74:R77),\nSUM('[1]SM4 - DNO Scenario 4 equiv'!R37:R40)+SUM('[1]SM4 - DNO Scenario 4 equiv'!R74:R77),\nSUM('[2]M1a - Model inputs'!R37:R40)+SUM('[2]M1a - Model inputs'!R74:R77),\nSUM('[2]M1b - Model inputs'!R37:R40)+SUM('[2]M1b - Model inputs'!R74:R77),\nSUM('[2]SM1 - DECC Scenario 3 equiv'!R37:R40)+SUM('[2]SM1 - DECC Scenario 3 equiv'!R74:R77),\nSUM('[2]SM2 - DECC Scenario 1 equiv'!R37:R40)+SUM('[2]SM2 - DECC Scenario 1 equiv'!R74:R77),\nSUM('[2]SM3 - DECC Scenario 2 equiv'!R37:R40)+SUM('[2]SM3 - DECC Scenario 2 equiv'!R74:R77),\nSUM('[2]SM4 - DNO Scenario 4 equiv'!R37:R40)+SUM('[2]SM4 - DNO Scenario 4 equiv'!R74:R77))","v":0},{"$f":"CHOOSE(view,\nSUM('[1]M1a - Model inputs'!S37:S40)+SUM('[1]M1a - Model inputs'!S74:S77),\nSUM('[1]M1b - Model inputs'!S37:S40)+SUM('[1]M1b - Model inputs'!S74:S77),\nSUM('[1]SM1 - DECC Scenario 3 equiv'!S37:S40)+SUM('[1]SM1 - DECC Scenario 3 equiv'!S74:S77),\nSUM('[1]SM2 - DECC Scenario 1 equiv'!S37:S40)+SUM('[1]SM2 - DECC Scenario 1 equiv'!S74:S77),\nSUM('[1]SM3 - DECC Scenario 2 equiv'!S37:S40)+SUM('[1]SM3 - DECC Scenario 2 equiv'!S74:S77),\nSUM('[1]SM4 - DNO Scenario 4 equiv'!S37:S40)+SUM('[1]SM4 - DNO Scenario 4 equiv'!S74:S77),\nSUM('[2]M1a - Model inputs'!S37:S40)+SUM('[2]M1a - Model inputs'!S74:S77),\nSUM('[2]M1b - Model inputs'!S37:S40)+SUM('[2]M1b - Model inputs'!S74:S77),\nSUM('[2]SM1 - DECC Scenario 3 equiv'!S37:S40)+SUM('[2]SM1 - DECC Scenario 3 equiv'!S74:S77),\nSUM('[2]SM2 - DECC Scenario 1 equiv'!S37:S40)+SUM('[2]SM2 - DECC Scenario 1 equiv'!S74:S77),\nSUM('[2]SM3 - DECC Scenario 2 equiv'!S37:S40)+SUM('[2]SM3 - DECC Scenario 2 equiv'!S74:S77),\nSUM('[2]SM4 - DNO Scenario 4 equiv'!S37:S40)+SUM('[2]SM4 - DNO Scenario 4 equiv'!S74:S77))","v":0}]
[null,null,null,null,{"$f":"Input!E20","v":"Allowed uncertain costs (Undergrounding)"},{"$f":"Input!F20","v":"XX"},{"$f":"Input!G20","v":"£m 12/13 prices"},{"$f":"Input!H20","v":"YY"},null,null,null,null,null,null,null,null,null,null,null,null,null,null,null,null,null,null,null,null,null,null,null,null,null,null,null,{"$f":"CHOOSE(view,\n'[1]M1a - Model inputs'!L43+'[1]M1a - Model inputs'!L80,\n'[1]M1b - Model inputs'!L43+'[1]M1b - Model inputs'!L80,\n'[1]SM1 - DECC Scenario 3 equiv'!L43+'[1]SM1 - DECC Scenario 3 equiv'!L80,\n'[1]SM2 - DECC Scenario 1 equiv'!L43+'[1]SM2 - DECC Scenario 1 equiv'!L80,\n'[1]SM3 - DECC Scenario 2 equiv'!L43+'[1]SM3 - DECC Scenario 2 equiv'!L80,\n'[1]SM4 - DNO Scenario 4 equiv'!L43+'[1]SM4 - DNO Scenario 4 equiv'!L80,\n'[2]M1a - Model inputs'!L43+'[2]M1a - Model inputs'!L80,\n'[2]M1b - Model inputs'!L43+'[2]M1b - Model inputs'!L80,\n'[2]SM1 - DECC Scenario 3 equiv'!L43+'[2]SM1 - DECC Scenario 3 equiv'!L80,\n'[2]SM2 - DECC Scenario 1 equiv'!L43+'[2]SM2 - DECC Scenario 1 equiv'!L80,\n'[2]SM3 - DECC Scenario 2 equiv'!L43+'[2]SM3 - DECC Scenario 2 equiv'!L80,\n'[2]SM4 - DNO Scenario 4 equiv'!L43+'[2]SM4 - DNO Scenario 4 equiv'!L80)","v":0.32086328195134051},{"$f":"CHOOSE(view,\n'[1]M1a - Model inputs'!M43+'[1]M1a - Model inputs'!M80,\n'[1]M1b - Model inputs'!M43+'[1]M1b - Model inputs'!M80,\n'[1]SM1 - DECC Scenario 3 equiv'!M43+'[1]SM1 - DECC Scenario 3 equiv'!M80,\n'[1]SM2 - DECC Scenario 1 equiv'!M43+'[1]SM2 - DECC Scenario 1 equiv'!M80,\n'[1]SM3 - DECC Scenario 2 equiv'!M43+'[1]SM3 - DECC Scenario 2 equiv'!M80,\n'[1]SM4 - DNO Scenario 4 equiv'!M43+'[1]SM4 - DNO Scenario 4 equiv'!M80,\n'[2]M1a - Model inputs'!M43+'[2]M1a - Model inputs'!M80,\n'[2]M1b - Model inputs'!M43+'[2]M1b - Model inputs'!M80,\n'[2]SM1 - DECC Scenario 3 equiv'!M43+'[2]SM1 - DECC Scenario 3 equiv'!M80,\n'[2]SM2 - DECC Scenario 1 equiv'!M43+'[2]SM2 - DECC Scenario 1 equiv'!M80,\n'[2]SM3 - DECC Scenario 2 equiv'!M43+'[2]SM3 - DECC Scenario 2 equiv'!M80,\n'[2]SM4 - DNO Scenario 4 equiv'!M43+'[2]SM4 - DNO Scenario 4 equiv'!M80)","v":0.32012347815469605},{"$f":"CHOOSE(view,\n'[1]M1a - Model inputs'!N43+'[1]M1a - Model inputs'!N80,\n'[1]M1b - Model inputs'!N43+'[1]M1b - Model inputs'!N80,\n'[1]SM1 - DECC Scenario 3 equiv'!N43+'[1]SM1 - DECC Scenario 3 equiv'!N80,\n'[1]SM2 - DECC Scenario 1 equiv'!N43+'[1]SM2 - DECC Scenario 1 equiv'!N80,\n'[1]SM3 - DECC Scenario 2 equiv'!N43+'[1]SM3 - DECC Scenario 2 equiv'!N80,\n'[1]SM4 - DNO Scenario 4 equiv'!N43+'[1]SM4 - DNO Scenario 4 equiv'!N80,\n'[2]M1a - Model inputs'!N43+'[2]M1a - Model inputs'!N80,\n'[2]M1b - Model inputs'!N43+'[2]M1b - Model inputs'!N80,\n'[2]SM1 - DECC Scenario 3 equiv'!N43+'[2]SM1 - DECC Scenario 3 equiv'!N80,\n'[2]SM2 - DECC Scenario 1 equiv'!N43+'[2]SM2 - DECC Scenario 1 equiv'!N80,\n'[2]SM3 - DECC Scenario 2 equiv'!N43+'[2]SM3 - DECC Scenario 2 equiv'!N80,\n'[2]SM4 - DNO Scenario 4 equiv'!N43+'[2]SM4 - DNO Scenario 4 equiv'!N80)","v":0.32075061980619068},{"$f":"CHOOSE(view,\n'[1]M1a - Model inputs'!O43+'[1]M1a - Model inputs'!O80,\n'[1]M1b - Model inputs'!O43+'[1]M1b - Model inputs'!O80,\n'[1]SM1 - DECC Scenario 3 equiv'!O43+'[1]SM1 - DECC Scenario 3 equiv'!O80,\n'[1]SM2 - DECC Scenario 1 equiv'!O43+'[1]SM2 - DECC Scenario 1 equiv'!O80,\n'[1]SM3 - DECC Scenario 2 equiv'!O43+'[1]SM3 - DECC Scenario 2 equiv'!O80,\n'[1]SM4 - DNO Scenario 4 equiv'!O43+'[1]SM4 - DNO Scenario 4 equiv'!O80,\n'[2]M1a - Model inputs'!O43+'[2]M1a - Model inputs'!O80,\n'[2]M1b - Model inputs'!O43+'[2]M1b - Model inputs'!O80,\n'[2]SM1 - DECC Scenario 3 equiv'!O43+'[2]SM1 - DECC Scenario 3 equiv'!O80,\n'[2]SM2 - DECC Scenario 1 equiv'!O43+'[2]SM2 - DECC Scenario 1 equiv'!O80,\n'[2]SM3 - DECC Scenario 2 equiv'!O43+'[2]SM3 - DECC Scenario 2 equiv'!O80,\n'[2]SM4 - DNO Scenario 4 equiv'!O43+'[2]SM4 - DNO Scenario 4 equiv'!O80)","v":0.3200639505270263},{"$f":"CHOOSE(view,\n'[1]M1a - Model inputs'!P43+'[1]M1a - Model inputs'!P80,\n'[1]M1b - Model inputs'!P43+'[1]M1b - Model inputs'!P80,\n'[1]SM1 - DECC Scenario 3 equiv'!P43+'[1]SM1 - DECC Scenario 3 equiv'!P80,\n'[1]SM2 - DECC Scenario 1 equiv'!P43+'[1]SM2 - DECC Scenario 1 equiv'!P80,\n'[1]SM3 - DECC Scenario 2 equiv'!P43+'[1]SM3 - DECC Scenario 2 equiv'!P80,\n'[1]SM4 - DNO Scenario 4 equiv'!P43+'[1]SM4 - DNO Scenario 4 equiv'!P80,\n'[2]M1a - Model inputs'!P43+'[2]M1a - Model inputs'!P80,\n'[2]M1b - Model inputs'!P43+'[2]M1b - Model inputs'!P80,\n'[2]SM1 - DECC Scenario 3 equiv'!P43+'[2]SM1 - DECC Scenario 3 equiv'!P80,\n'[2]SM2 - DECC Scenario 1 equiv'!P43+'[2]SM2 - DECC Scenario 1 equiv'!P80,\n'[2]SM3 - DECC Scenario 2 equiv'!P43+'[2]SM3 - DECC Scenario 2 equiv'!P80,\n'[2]SM4 - DNO Scenario 4 equiv'!P43+'[2]SM4 - DNO Scenario 4 equiv'!P80)","v":0.32054124459468625},{"$f":"CHOOSE(view,\n'[1]M1a - Model inputs'!Q43+'[1]M1a - Model inputs'!Q80,\n'[1]M1b - Model inputs'!Q43+'[1]M1b - Model inputs'!Q80,\n'[1]SM1 - DECC Scenario 3 equiv'!Q43+'[1]SM1 - DECC Scenario 3 equiv'!Q80,\n'[1]SM2 - DECC Scenario 1 equiv'!Q43+'[1]SM2 - DECC Scenario 1 equiv'!Q80,\n'[1]SM3 - DECC Scenario 2 equiv'!Q43+'[1]SM3 - DECC Scenario 2 equiv'!Q80,\n'[1]SM4 - DNO Scenario 4 equiv'!Q43+'[1]SM4 - DNO Scenario 4 equiv'!Q80,\n'[2]M1a - Model inputs'!Q43+'[2]M1a - Model inputs'!Q80,\n'[2]M1b - Model inputs'!Q43+'[2]M1b - Model inputs'!Q80,\n'[2]SM1 - DECC Scenario 3 equiv'!Q43+'[2]SM1 - DECC Scenario 3 equiv'!Q80,\n'[2]SM2 - DECC Scenario 1 equiv'!Q43+'[2]SM2 - DECC Scenario 1 equiv'!Q80,\n'[2]SM3 - DECC Scenario 2 equiv'!Q43+'[2]SM3 - DECC Scenario 2 equiv'!Q80,\n'[2]SM4 - DNO Scenario 4 equiv'!Q43+'[2]SM4 - DNO Scenario 4 equiv'!Q80)","v":0.32108466564649085},{"$f":"CHOOSE(view,\n'[1]M1a - Model inputs'!R43+'[1]M1a - Model inputs'!R80,\n'[1]M1b - Model inputs'!R43+'[1]M1b - Model inputs'!R80,\n'[1]SM1 - DECC Scenario 3 equiv'!R43+'[1]SM1 - DECC Scenario 3 equiv'!R80,\n'[1]SM2 - DECC Scenario 1 equiv'!R43+'[1]SM2 - DECC Scenario 1 equiv'!R80,\n'[1]SM3 - DECC Scenario 2 equiv'!R43+'[1]SM3 - DECC Scenario 2 equiv'!R80,\n'[1]SM4 - DNO Scenario 4 equiv'!R43+'[1]SM4 - DNO Scenario 4 equiv'!R80,\n'[2]M1a - Model inputs'!R43+'[2]M1a - Model inputs'!R80,\n'[2]M1b - Model inputs'!R43+'[2]M1b - Model inputs'!R80,\n'[2]SM1 - DECC Scenario 3 equiv'!R43+'[2]SM1 - DECC Scenario 3 equiv'!R80,\n'[2]SM2 - DECC Scenario 1 equiv'!R43+'[2]SM2 - DECC Scenario 1 equiv'!R80,\n'[2]SM3 - DECC Scenario 2 equiv'!R43+'[2]SM3 - DECC Scenario 2 equiv'!R80,\n'[2]SM4 - DNO Scenario 4 equiv'!R43+'[2]SM4 - DNO Scenario 4 equiv'!R80)","v":0.32034348109040567},{"$f":"CHOOSE(view,\n'[1]M1a - Model inputs'!S43+'[1]M1a - Model inputs'!S80,\n'[1]M1b - Model inputs'!S43+'[1]M1b - Model inputs'!S80,\n'[1]SM1 - DECC Scenario 3 equiv'!S43+'[1]SM1 - DECC Scenario 3 equiv'!S80,\n'[1]SM2 - DECC Scenario 1 equiv'!S43+'[1]SM2 - DECC Scenario 1 equiv'!S80,\n'[1]SM3 - DECC Scenario 2 equiv'!S43+'[1]SM3 - DECC Scenario 2 equiv'!S80,\n'[1]SM4 - DNO Scenario 4 equiv'!S43+'[1]SM4 - DNO Scenario 4 equiv'!S80,\n'[2]M1a - Model inputs'!S43+'[2]M1a - Model inputs'!S80,\n'[2]M1b - Model inputs'!S43+'[2]M1b - Model inputs'!S80,\n'[2]SM1 - DECC Scenario 3 equiv'!S43+'[2]SM1 - DECC Scenario 3 equiv'!S80,\n'[2]SM2 - DECC Scenario 1 equiv'!S43+'[2]SM2 - DECC Scenario 1 equiv'!S80,\n'[2]SM3 - DECC Scenario 2 equiv'!S43+'[2]SM3 - DECC Scenario 2 equiv'!S80,\n'[2]SM4 - DNO Scenario 4 equiv'!S43+'[2]SM4 - DNO Scenario 4 equiv'!S80)","v":0.32108561571780592}]
[null,null,null,null,{"$f":"Input!E21","v":"Allowed uncertain costs (Worst served customers)"},{"$f":"Input!F21","v":"XX"},{"$f":"Input!G21","v":"£m 12/13 prices"},{"$f":"Input!H21","v":"YY"},null,null,null,null,null,null,null,null,null,null,null,null,null,null,null,null,null,null,null,null,null,null,null,null,null,null,null,{"$f":"CHOOSE(view,\n'[1]M1a - Model inputs'!L46+'[1]M1a - Model inputs'!L83,\n'[1]M1b - Model inputs'!L46+'[1]M1b - Model inputs'!L83,\n'[1]SM1 - DECC Scenario 3 equiv'!L46+'[1]SM1 - DECC Scenario 3 equiv'!L83,\n'[1]SM2 - DECC Scenario 1 equiv'!L46+'[1]SM2 - DECC Scenario 1 equiv'!L83,\n'[1]SM3 - DECC Scenario 2 equiv'!L46+'[1]SM3 - DECC Scenario 2 equiv'!L83,\n'[1]SM4 - DNO Scenario 4 equiv'!L46+'[1]SM4 - DNO Scenario 4 equiv'!L83,\n'[2]M1a - Model inputs'!L46+'[2]M1a - Model inputs'!L83,\n'[2]M1b - Model inputs'!L46+'[2]M1b - Model inputs'!L83,\n'[2]SM1 - DECC Scenario 3 equiv'!L46+'[2]SM1 - DECC Scenario 3 equiv'!L83,\n'[2]SM2 - DECC Scenario 1 equiv'!L46+'[2]SM2 - DECC Scenario 1 equiv'!L83,\n'[2]SM3 - DECC Scenario 2 equiv'!L46+'[2]SM3 - DECC Scenario 2 equiv'!L83,\n'[2]SM4 - DNO Scenario 4 equiv'!L46+'[2]SM4 - DNO Scenario 4 equiv'!L83)","v":0},{"$f":"CHOOSE(view,\n'[1]M1a - Model inputs'!M46+'[1]M1a - Model inputs'!M83,\n'[1]M1b - Model inputs'!M46+'[1]M1b - Model inputs'!M83,\n'[1]SM1 - DECC Scenario 3 equiv'!M46+'[1]SM1 - DECC Scenario 3 equiv'!M83,\n'[1]SM2 - DECC Scenario 1 equiv'!M46+'[1]SM2 - DECC Scenario 1 equiv'!M83,\n'[1]SM3 - DECC Scenario 2 equiv'!M46+'[1]SM3 - DECC Scenario 2 equiv'!M83,\n'[1]SM4 - DNO Scenario 4 equiv'!M46+'[1]SM4 - DNO Scenario 4 equiv'!M83,\n'[2]M1a - Model inputs'!M46+'[2]M1a - Model inputs'!M83,\n'[2]M1b - Model inputs'!M46+'[2]M1b - Model inputs'!M83,\n'[2]SM1 - DECC Scenario 3 equiv'!M46+'[2]SM1 - DECC Scenario 3 equiv'!M83,\n'[2]SM2 - DECC Scenario 1 equiv'!M46+'[2]SM2 - DECC Scenario 1 equiv'!M83,\n'[2]SM3 - DECC Scenario 2 equiv'!M46+'[2]SM3 - DECC Scenario 2 equiv'!M83,\n'[2]SM4 - DNO Scenario 4 equiv'!M46+'[2]SM4 - DNO Scenario 4 equiv'!M83)","v":0.51094172215044242},{"$f":"CHOOSE(view,\n'[1]M1a - Model inputs'!N46+'[1]M1a - Model inputs'!N83,\n'[1]M1b - Model inputs'!N46+'[1]M1b - Model inputs'!N83,\n'[1]SM1 - DECC Scenario 3 equiv'!N46+'[1]SM1 - DECC Scenario 3 equiv'!N83,\n'[1]SM2 - DECC Scenario 1 equiv'!N46+'[1]SM2 - DECC Scenario 1 equiv'!N83,\n'[1]SM3 - DECC Scenario 2 equiv'!N46+'[1]SM3 - DECC Scenario 2 equiv'!N83,\n'[1]SM4 - DNO Scenario 4 equiv'!N46+'[1]SM4 - DNO Scenario 4 equiv'!N83,\n'[2]M1a - Model inputs'!N46+'[2]M1a - Model inputs'!N83,\n'[2]M1b - Model inputs'!N46+'[2]M1b - Model inputs'!N83,\n'[2]SM1 - DECC Scenario 3 equiv'!N46+'[2]SM1 - DECC Scenario 3 equiv'!N83,\n'[2]SM2 - DECC Scenario 1 equiv'!N46+'[2]SM2 - DECC Scenario 1 equiv'!N83,\n'[2]SM3 - DECC Scenario 2 equiv'!N46+'[2]SM3 - DECC Scenario 2 equiv'!N83,\n'[2]SM4 - DNO Scenario 4 equiv'!N46+'[2]SM4 - DNO Scenario 4 equiv'!N83)","v":0.51021335062644302},{"$f":"CHOOSE(view,\n'[1]M1a - Model inputs'!O46+'[1]M1a - Model inputs'!O83,\n'[1]M1b - Model inputs'!O46+'[1]M1b - Model inputs'!O83,\n'[1]SM1 - DECC Scenario 3 equiv'!O46+'[1]SM1 - DECC Scenario 3 equiv'!O83,\n'[1]SM2 - DECC Scenario 1 equiv'!O46+'[1]SM2 - DECC Scenario 1 equiv'!O83,\n'[1]SM3 - DECC Scenario 2 equiv'!O46+'[1]SM3 - DECC Scenario 2 equiv'!O83,\n'[1]SM4 - DNO Scenario 4 equiv'!O46+'[1]SM4 - DNO Scenario 4 equiv'!O83,\n'[2]M1a - Model inputs'!O46+'[2]M1a - Model inputs'!O83,\n'[2]M1b - Model inputs'!O46+'[2]M1b - Model inputs'!O83,\n'[2]SM1 - DECC Scenario 3 equiv'!O46+'[2]SM1 - DECC Scenario 3 equiv'!O83,\n'[2]SM2 - DECC Scenario 1 equiv'!O46+'[2]SM2 - DECC Scenario 1 equiv'!O83,\n'[2]SM3 - DECC Scenario 2 equiv'!O46+'[2]SM3 - DECC Scenario 2 equiv'!O83,\n'[2]SM4 - DNO Scenario 4 equiv'!O46+'[2]SM4 - DNO Scenario 4 equiv'!O83)","v":0},{"$f":"CHOOSE(view,\n'[1]M1a - Model inputs'!P46+'[1]M1a - Model inputs'!P83,\n'[1]M1b - Model inputs'!P46+'[1]M1b - Model inputs'!P83,\n'[1]SM1 - DECC Scenario 3 equiv'!P46+'[1]SM1 - DECC Scenario 3 equiv'!P83,\n'[1]SM2 - DECC Scenario 1 equiv'!P46+'[1]SM2 - DECC Scenario 1 equiv'!P83,\n'[1]SM3 - DECC Scenario 2 equiv'!P46+'[1]SM3 - DECC Scenario 2 equiv'!P83,\n'[1]SM4 - DNO Scenario 4 equiv'!P46+'[1]SM4 - DNO Scenario 4 equiv'!P83,\n'[2]M1a - Model inputs'!P46+'[2]M1a - Model inputs'!P83,\n'[2]M1b - Model inputs'!P46+'[2]M1b - Model inputs'!P83,\n'[2]SM1 - DECC Scenario 3 equiv'!P46+'[2]SM1 - DECC Scenario 3 equiv'!P83,\n'[2]SM2 - DECC Scenario 1 equiv'!P46+'[2]SM2 - DECC Scenario 1 equiv'!P83,\n'[2]SM3 - DECC Scenario 2 equiv'!P46+'[2]SM3 - DECC Scenario 2 equiv'!P83,\n'[2]SM4 - DNO Scenario 4 equiv'!P46+'[2]SM4 - DNO Scenario 4 equiv'!P83)","v":0},{"$f":"CHOOSE(view,\n'[1]M1a - Model inputs'!Q46+'[1]M1a - Model inputs'!Q83,\n'[1]M1b - Model inputs'!Q46+'[1]M1b - Model inputs'!Q83,\n'[1]SM1 - DECC Scenario 3 equiv'!Q46+'[1]SM1 - DECC Scenario 3 equiv'!Q83,\n'[1]SM2 - DECC Scenario 1 equiv'!Q46+'[1]SM2 - DECC Scenario 1 equiv'!Q83,\n'[1]SM3 - DECC Scenario 2 equiv'!Q46+'[1]SM3 - DECC Scenario 2 equiv'!Q83,\n'[1]SM4 - DNO Scenario 4 equiv'!Q46+'[1]SM4 - DNO Scenario 4 equiv'!Q83,\n'[2]M1a - Model inputs'!Q46+'[2]M1a - Model inputs'!Q83,\n'[2]M1b - Model inputs'!Q46+'[2]M1b - Model inputs'!Q83,\n'[2]SM1 - DECC Scenario 3 equiv'!Q46+'[2]SM1 - DECC Scenario 3 equiv'!Q83,\n'[2]SM2 - DECC Scenario 1 equiv'!Q46+'[2]SM2 - DECC Scenario 1 equiv'!Q83,\n'[2]SM3 - DECC Scenario 2 equiv'!Q46+'[2]SM3 - DECC Scenario 2 equiv'!Q83,\n'[2]SM4 - DNO Scenario 4 equiv'!Q46+'[2]SM4 - DNO Scenario 4 equiv'!Q83)","v":0},{"$f":"CHOOSE(view,\n'[1]M1a - Model inputs'!R46+'[1]M1a - Model inputs'!R83,\n'[1]M1b - Model inputs'!R46+'[1]M1b - Model inputs'!R83,\n'[1]SM1 - DECC Scenario 3 equiv'!R46+'[1]SM1 - DECC Scenario 3 equiv'!R83,\n'[1]SM2 - DECC Scenario 1 equiv'!R46+'[1]SM2 - DECC Scenario 1 equiv'!R83,\n'[1]SM3 - DECC Scenario 2 equiv'!R46+'[1]SM3 - DECC Scenario 2 equiv'!R83,\n'[1]SM4 - DNO Scenario 4 equiv'!R46+'[1]SM4 - DNO Scenario 4 equiv'!R83,\n'[2]M1a - Model inputs'!R46+'[2]M1a - Model inputs'!R83,\n'[2]M1b - Model inputs'!R46+'[2]M1b - Model inputs'!R83,\n'[2]SM1 - DECC Scenario 3 equiv'!R46+'[2]SM1 - DECC Scenario 3 equiv'!R83,\n'[2]SM2 - DECC Scenario 1 equiv'!R46+'[2]SM2 - DECC Scenario 1 equiv'!R83,\n'[2]SM3 - DECC Scenario 2 equiv'!R46+'[2]SM3 - DECC Scenario 2 equiv'!R83,\n'[2]SM4 - DNO Scenario 4 equiv'!R46+'[2]SM4 - DNO Scenario 4 equiv'!R83)","v":0},{"$f":"CHOOSE(view,\n'[1]M1a - Model inputs'!S46+'[1]M1a - Model inputs'!S83,\n'[1]M1b - Model inputs'!S46+'[1]M1b - Model inputs'!S83,\n'[1]SM1 - DECC Scenario 3 equiv'!S46+'[1]SM1 - DECC Scenario 3 equiv'!S83,\n'[1]SM2 - DECC Scenario 1 equiv'!S46+'[1]SM2 - DECC Scenario 1 equiv'!S83,\n'[1]SM3 - DECC Scenario 2 equiv'!S46+'[1]SM3 - DECC Scenario 2 equiv'!S83,\n'[1]SM4 - DNO Scenario 4 equiv'!S46+'[1]SM4 - DNO Scenario 4 equiv'!S83,\n'[2]M1a - Model inputs'!S46+'[2]M1a - Model inputs'!S83,\n'[2]M1b - Model inputs'!S46+'[2]M1b - Model inputs'!S83,\n'[2]SM1 - DECC Scenario 3 equiv'!S46+'[2]SM1 - DECC Scenario 3 equiv'!S83,\n'[2]SM2 - DECC Scenario 1 equiv'!S46+'[2]SM2 - DECC Scenario 1 equiv'!S83,\n'[2]SM3 - DECC Scenario 2 equiv'!S46+'[2]SM3 - DECC Scenario 2 equiv'!S83,\n'[2]SM4 - DNO Scenario 4 equiv'!S46+'[2]SM4 - DNO Scenario 4 equiv'!S83)","v":0}]
[null,null,null,null,{"$f":"Input!E22","v":"Allowed uncertain costs (Smart metering roll out costs)"},{"$f":"Input!F22","v":"XX"},{"$f":"Input!G22","v":"£m 12/13 prices"},{"$f":"Input!H22","v":"YY"},null,null,null,null,null,null,null,null,null,null,null,null,null,null,null,null,null,null,null,null,null,null,null,null,null,null,null,{"$f":"CHOOSE(view,\nSUM('[1]M1a - Model inputs'!L49:L49)+SUM('[1]M1a - Model inputs'!L86:L86),\nSUM('[1]M1b - Model inputs'!L49:L49)+SUM('[1]M1b - Model inputs'!L86:L86),\nSUM('[1]SM1 - DECC Scenario 3 equiv'!L49:L49)+SUM('[1]SM1 - DECC Scenario 3 equiv'!L86:L86),\nSUM('[1]SM2 - DECC Scenario 1 equiv'!L49:L49)+SUM('[1]SM2 - DECC Scenario 1 equiv'!L86:L86),\nSUM('[1]SM3 - DECC Scenario 2 equiv'!L49:L49)+SUM('[1]SM3 - DECC Scenario 2 equiv'!L86:L86),\nSUM('[1]SM4 - DNO Scenario 4 equiv'!L49:L49)+SUM('[1]SM4 - DNO Scenario 4 equiv'!L86:L86),\nSUM('[2]M1a - Model inputs'!L49:L49)+SUM('[2]M1a - Model inputs'!L86:L86),\nSUM('[2]M1b - Model inputs'!L49:L49)+SUM('[2]M1b - Model inputs'!L86:L86),\nSUM('[2]SM1 - DECC Scenario 3 equiv'!L49:L49)+SUM('[2]SM1 - DECC Scenario 3 equiv'!L86:L86),\nSUM('[2]SM2 - DECC Scenario 1 equiv'!L49:L49)+SUM('[2]SM2 - DECC Scenario 1 equiv'!L86:L86),\nSUM('[2]SM3 - DECC Scenario 2 equiv'!L49:L49)+SUM('[2]SM3 - DECC Scenario 2 equiv'!L86:L86),\nSUM('[2]SM4 - DNO Scenario 4 equiv'!L49:L49)+SUM('[2]SM4 - DNO Scenario 4 equiv'!L86:L86))","v":5.2486320406245866E-2},{"$f":"CHOOSE(view,\nSUM('[1]M1a - Model inputs'!M49:M49)+SUM('[1]M1a - Model inputs'!M86:M86),\nSUM('[1]M1b - Model inputs'!M49:M49)+SUM('[1]M1b - Model inputs'!M86:M86),\nSUM('[1]SM1 - DECC Scenario 3 equiv'!M49:M49)+SUM('[1]SM1 - DECC Scenario 3 equiv'!M86:M86),\nSUM('[1]SM2 - DECC Scenario 1 equiv'!M49:M49)+SUM('[1]SM2 - DECC Scenario 1 equiv'!M86:M86),\nSUM('[1]SM3 - DECC Scenario 2 equiv'!M49:M49)+SUM('[1]SM3 - DECC Scenario 2 equiv'!M86:M86),\nSUM('[1]SM4 - DNO Scenario 4 equiv'!M49:M49)+SUM('[1]SM4 - DNO Scenario 4 equiv'!M86:M86),\nSUM('[2]M1a - Model inputs'!M49:M49)+SUM('[2]M1a - Model inputs'!M86:M86),\nSUM('[2]M1b - Model inputs'!M49:M49)+SUM('[2]M1b - Model inputs'!M86:M86),\nSUM('[2]SM1 - DECC Scenario 3 equiv'!M49:M49)+SUM('[2]SM1 - DECC Scenario 3 equiv'!M86:M86),\nSUM('[2]SM2 - DECC Scenario 1 equiv'!M49:M49)+SUM('[2]SM2 - DECC Scenario 1 equiv'!M86:M86),\nSUM('[2]SM3 - DECC Scenario 2 equiv'!M49:M49)+SUM('[2]SM3 - DECC Scenario 2 equiv'!M86:M86),\nSUM('[2]SM4 - DNO Scenario 4 equiv'!M49:M49)+SUM('[2]SM4 - DNO Scenario 4 equiv'!M86:M86))","v":5.1858360656762227E-2},{"$f":"CHOOSE(view,\nSUM('[1]M1a - Model inputs'!N49:N49)+SUM('[1]M1a - Model inputs'!N86:N86),\nSUM('[1]M1b - Model inputs'!N49:N49)+SUM('[1]M1b - Model inputs'!N86:N86),\nSUM('[1]SM1 - DECC Scenario 3 equiv'!N49:N49)+SUM('[1]SM1 - DECC Scenario 3 equiv'!N86:N86),\nSUM('[1]SM2 - DECC Scenario 1 equiv'!N49:N49)+SUM('[1]SM2 - DECC Scenario 1 equiv'!N86:N86),\nSUM('[1]SM3 - DECC Scenario 2 equiv'!N49:N49)+SUM('[1]SM3 - DECC Scenario 2 equiv'!N86:N86),\nSUM('[1]SM4 - DNO Scenario 4 equiv'!N49:N49)+SUM('[1]SM4 - DNO Scenario 4 equiv'!N86:N86),\nSUM('[2]M1a - Model inputs'!N49:N49)+SUM('[2]M1a - Model inputs'!N86:N86),\nSUM('[2]M1b - Model inputs'!N49:N49)+SUM('[2]M1b - Model inputs'!N86:N86),\nSUM('[2]SM1 - DECC Scenario 3 equiv'!N49:N49)+SUM('[2]SM1 - DECC Scenario 3 equiv'!N86:N86),\nSUM('[2]SM2 - DECC Scenario 1 equiv'!N49:N49)+SUM('[2]SM2 - DECC Scenario 1 equiv'!N86:N86),\nSUM('[2]SM3 - DECC Scenario 2 equiv'!N49:N49)+SUM('[2]SM3 - DECC Scenario 2 equiv'!N86:N86),\nSUM('[2]SM4 - DNO Scenario 4 equiv'!N49:N49)+SUM('[2]SM4 - DNO Scenario 4 equiv'!N86:N86))","v":5.0565223182818066E-2},{"$f":"CHOOSE(view,\nSUM('[1]M1a - Model inputs'!O49:O49)+SUM('[1]M1a - Model inputs'!O86:O86),\nSUM('[1]M1b - Model inputs'!O49:O49)+SUM('[1]M1b - Model inputs'!O86:O86),\nSUM('[1]SM1 - DECC Scenario 3 equiv'!O49:O49)+SUM('[1]SM1 - DECC Scenario 3 equiv'!O86:O86),\nSUM('[1]SM2 - DECC Scenario 1 equiv'!O49:O49)+SUM('[1]SM2 - DECC Scenario 1 equiv'!O86:O86),\nSUM('[1]SM3 - DECC Scenario 2 equiv'!O49:O49)+SUM('[1]SM3 - DECC Scenario 2 equiv'!O86:O86),\nSUM('[1]SM4 - DNO Scenario 4 equiv'!O49:O49)+SUM('[1]SM4 - DNO Scenario 4 equiv'!O86:O86),\nSUM('[2]M1a - Model inputs'!O49:O49)+SUM('[2]M1a - Model inputs'!O86:O86),\nSUM('[2]M1b - Model inputs'!O49:O49)+SUM('[2]M1b - Model inputs'!O86:O86),\nSUM('[2]SM1 - DECC Scenario 3 equiv'!O49:O49)+SUM('[2]SM1 - DECC Scenario 3 equiv'!O86:O86),\nSUM('[2]SM2 - DECC Scenario 1 equiv'!O49:O49)+SUM('[2]SM2 - DECC Scenario 1 equiv'!O86:O86),\nSUM('[2]SM3 - DECC Scenario 2 equiv'!O49:O49)+SUM('[2]SM3 - DECC Scenario 2 equiv'!O86:O86),\nSUM('[2]SM4 - DNO Scenario 4 equiv'!O49:O49)+SUM('[2]SM4 - DNO Scenario 4 equiv'!O86:O86))","v":4.5902567234348074E-2},{"$f":"CHOOSE(view,\nSUM('[1]M1a - Model inputs'!P49:P49)+SUM('[1]M1a - Model inputs'!P86:P86),\nSUM('[1]M1b - Model inputs'!P49:P49)+SUM('[1]M1b - Model inputs'!P86:P86),\nSUM('[1]SM1 - DECC Scenario 3 equiv'!P49:P49)+SUM('[1]SM1 - DECC Scenario 3 equiv'!P86:P86),\nSUM('[1]SM2 - DECC Scenario 1 equiv'!P49:P49)+SUM('[1]SM2 - DECC Scenario 1 equiv'!P86:P86),\nSUM('[1]SM3 - DECC Scenario 2 equiv'!P49:P49)+SUM('[1]SM3 - DECC Scenario 2 equiv'!P86:P86),\nSUM('[1]SM4 - DNO Scenario 4 equiv'!P49:P49)+SUM('[1]SM4 - DNO Scenario 4 equiv'!P86:P86),\nSUM('[2]M1a - Model inputs'!P49:P49)+SUM('[2]M1a - Model inputs'!P86:P86),\nSUM('[2]M1b - Model inputs'!P49:P49)+SUM('[2]M1b - Model inputs'!P86:P86),\nSUM('[2]SM1 - DECC Scenario 3 equiv'!P49:P49)+SUM('[2]SM1 - DECC Scenario 3 equiv'!P86:P86),\nSUM('[2]SM2 - DECC Scenario 1 equiv'!P49:P49)+SUM('[2]SM2 - DECC Scenario 1 equiv'!P86:P86),\nSUM('[2]SM3 - DECC Scenario 2 equiv'!P49:P49)+SUM('[2]SM3 - DECC Scenario 2 equiv'!P86:P86),\nSUM('[2]SM4 - DNO Scenario 4 equiv'!P49:P49)+SUM('[2]SM4 - DNO Scenario 4 equiv'!P86:P86))","v":4.2000926042862867E-2},{"$f":"CHOOSE(view,\nSUM('[1]M1a - Model inputs'!Q49:Q49)+SUM('[1]M1a - Model inputs'!Q86:Q86),\nSUM('[1]M1b - Model inputs'!Q49:Q49)+SUM('[1]M1b - Model inputs'!Q86:Q86),\nSUM('[1]SM1 - DECC Scenario 3 equiv'!Q49:Q49)+SUM('[1]SM1 - DECC Scenario 3 equiv'!Q86:Q86),\nSUM('[1]SM2 - DECC Scenario 1 equiv'!Q49:Q49)+SUM('[1]SM2 - DECC Scenario 1 equiv'!Q86:Q86),\nSUM('[1]SM3 - DECC Scenario 2 equiv'!Q49:Q49)+SUM('[1]SM3 - DECC Scenario 2 equiv'!Q86:Q86),\nSUM('[1]SM4 - DNO Scenario 4 equiv'!Q49:Q49)+SUM('[1]SM4 - DNO Scenario 4 equiv'!Q86:Q86),\nSUM('[2]M1a - Model inputs'!Q49:Q49)+SUM('[2]M1a - Model inputs'!Q86:Q86),\nSUM('[2]M1b - Model inputs'!Q49:Q49)+SUM('[2]M1b - Model inputs'!Q86:Q86),\nSUM('[2]SM1 - DECC Scenario 3 equiv'!Q49:Q49)+SUM('[2]SM1 - DECC Scenario 3 equiv'!Q86:Q86),\nSUM('[2]SM2 - DECC Scenario 1 equiv'!Q49:Q49)+SUM('[2]SM2 - DECC Scenario 1 equiv'!Q86:Q86),\nSUM('[2]SM3 - DECC Scenario 2 equiv'!Q49:Q49)+SUM('[2]SM3 - DECC Scenario 2 equiv'!Q86:Q86),\nSUM('[2]SM4 - DNO Scenario 4 equiv'!Q49:Q49)+SUM('[2]SM4 - DNO Scenario 4 equiv'!Q86:Q86))","v":4.3730330780959767E-2},{"$f":"CHOOSE(view,\nSUM('[1]M1a - Model inputs'!R49:R49)+SUM('[1]M1a - Model inputs'!R86:R86),\nSUM('[1]M1b - Model inputs'!R49:R49)+SUM('[1]M1b - Model inputs'!R86:R86),\nSUM('[1]SM1 - DECC Scenario 3 equiv'!R49:R49)+SUM('[1]SM1 - DECC Scenario 3 equiv'!R86:R86),\nSUM('[1]SM2 - DECC Scenario 1 equiv'!R49:R49)+SUM('[1]SM2 - DECC Scenario 1 equiv'!R86:R86),\nSUM('[1]SM3 - DECC Scenario 2 equiv'!R49:R49)+SUM('[1]SM3 - DECC Scenario 2 equiv'!R86:R86),\nSUM('[1]SM4 - DNO Scenario 4 equiv'!R49:R49)+SUM('[1]SM4 - DNO Scenario 4 equiv'!R86:R86),\nSUM('[2]M1a - Model inputs'!R49:R49)+SUM('[2]M1a - Model inputs'!R86:R86),\nSUM('[2]M1b - Model inputs'!R49:R49)+SUM('[2]M1b - Model inputs'!R86:R86),\nSUM('[2]SM1 - DECC Scenario 3 equiv'!R49:R49)+SUM('[2]SM1 - DECC Scenario 3 equiv'!R86:R86),\nSUM('[2]SM2 - DECC Scenario 1 equiv'!R49:R49)+SUM('[2]SM2 - DECC Scenario 1 equiv'!R86:R86),\nSUM('[2]SM3 - DECC Scenario 2 equiv'!R49:R49)+SUM('[2]SM3 - DECC Scenario 2 equiv'!R86:R86),\nSUM('[2]SM4 - DNO Scenario 4 equiv'!R49:R49)+SUM('[2]SM4 - DNO Scenario 4 equiv'!R86:R86))","v":0},{"$f":"CHOOSE(view,\nSUM('[1]M1a - Model inputs'!S49:S49)+SUM('[1]M1a - Model inputs'!S86:S86),\nSUM('[1]M1b - Model inputs'!S49:S49)+SUM('[1]M1b - Model inputs'!S86:S86),\nSUM('[1]SM1 - DECC Scenario 3 equiv'!S49:S49)+SUM('[1]SM1 - DECC Scenario 3 equiv'!S86:S86),\nSUM('[1]SM2 - DECC Scenario 1 equiv'!S49:S49)+SUM('[1]SM2 - DECC Scenario 1 equiv'!S86:S86),\nSUM('[1]SM3 - DECC Scenario 2 equiv'!S49:S49)+SUM('[1]SM3 - DECC Scenario 2 equiv'!S86:S86),\nSUM('[1]SM4 - DNO Scenario 4 equiv'!S49:S49)+SUM('[1]SM4 - DNO Scenario 4 equiv'!S86:S86),\nSUM('[2]M1a - Model inputs'!S49:S49)+SUM('[2]M1a - Model inputs'!S86:S86),\nSUM('[2]M1b - Model inputs'!S49:S49)+SUM('[2]M1b - Model inputs'!S86:S86),\nSUM('[2]SM1 - DECC Scenario 3 equiv'!S49:S49)+SUM('[2]SM1 - DECC Scenario 3 equiv'!S86:S86),\nSUM('[2]SM2 - DECC Scenario 1 equiv'!S49:S49)+SUM('[2]SM2 - DECC Scenario 1 equiv'!S86:S86),\nSUM('[2]SM3 - DECC Scenario 2 equiv'!S49:S49)+SUM('[2]SM3 - DECC Scenario 2 equiv'!S86:S86),\nSUM('[2]SM4 - DNO Scenario 4 equiv'!S49:S49)+SUM('[2]SM4 - DNO Scenario 4 equiv'!S86:S86))","v":0}]
[null,null,null,null,{"$f":"Input!E23","v":"Allowed uncertain costs (Specified street work costs)"},{"$f":"Input!F23","v":"XX"},{"$f":"Input!G23","v":"£m 12/13 prices"},{"$f":"Input!H23","v":"YY"},null,null,null,null,null,null,null,null,null,null,null,null,null,null,null,null,null,null,null,null,null,null,null,null,null,null,null,{"$f":"CHOOSE(view,\nSUM('[1]M1a - Model inputs'!L52:L55)+SUM('[1]M1a - Model inputs'!L89:L92),\nSUM('[1]M1b - Model inputs'!L52:L55)+SUM('[1]M1b - Model inputs'!L89:L92),\nSUM('[1]SM1 - DECC Scenario 3 equiv'!L52:L55)+SUM('[1]SM1 - DECC Scenario 3 equiv'!L89:L92),\nSUM('[1]SM2 - DECC Scenario 1 equiv'!L52:L55)+SUM('[1]SM2 - DECC Scenario 1 equiv'!L89:L92),\nSUM('[1]SM3 - DECC Scenario 2 equiv'!L52:L55)+SUM('[1]SM3 - DECC Scenario 2 equiv'!L89:L92),\nSUM('[1]SM4 - DNO Scenario 4 equiv'!L52:L55)+SUM('[1]SM4 - DNO Scenario 4 equiv'!L89:L92),\nSUM('[2]M1a - Model inputs'!L52:L55)+SUM('[2]M1a - Model inputs'!L89:L92),\nSUM('[2]M1b - Model inputs'!L52:L55)+SUM('[2]M1b - Model inputs'!L89:L92),\nSUM('[2]SM1 - DECC Scenario 3 equiv'!L52:L55)+SUM('[2]SM1 - DECC Scenario 3 equiv'!L89:L92),\nSUM('[2]SM2 - DECC Scenario 1 equiv'!L52:L55)+SUM('[2]SM2 - DECC Scenario 1 equiv'!L89:L92),\nSUM('[2]SM3 - DECC Scenario 2 equiv'!L52:L55)+SUM('[2]SM3 - DECC Scenario 2 equiv'!L89:L92),\nSUM('[2]SM4 - DNO Scenario 4 equiv'!L52:L55)+SUM('[2]SM4 - DNO Scenario 4 equiv'!L89:L92))","v":0.16188256847902729},{"$f":"CHOOSE(view,\nSUM('[1]M1a - Model inputs'!M52:M55)+SUM('[1]M1a - Model inputs'!M89:M92),\nSUM('[1]M1b - Model inputs'!M52:M55)+SUM('[1]M1b - Model inputs'!M89:M92),\nSUM('[1]SM1 - DECC Scenario 3 equiv'!M52:M55)+SUM('[1]SM1 - DECC Scenario 3 equiv'!M89:M92),\nSUM('[1]SM2 - DECC Scenario 1 equiv'!M52:M55)+SUM('[1]SM2 - DECC Scenario 1 equiv'!M89:M92),\nSUM('[1]SM3 - DECC Scenario 2 equiv'!M52:M55)+SUM('[1]SM3 - DECC Scenario 2 equiv'!M89:M92),\nSUM('[1]SM4 - DNO Scenario 4 equiv'!M52:M55)+SUM('[1]SM4 - DNO Scenario 4 equiv'!M89:M92),\nSUM('[2]M1a - Model inputs'!M52:M55)+SUM('[2]M1a - Model inputs'!M89:M92),\nSUM('[2]M1b - Model inputs'!M52:M55)+SUM('[2]M1b - Model inputs'!M89:M92),\nSUM('[2]SM1 - DECC Scenario 3 equiv'!M52:M55)+SUM('[2]SM1 - DECC Scenario 3 equiv'!M89:M92),\nSUM('[2]SM2 - DECC Scenario 1 equiv'!M52:M55)+SUM('[2]SM2 - DECC Scenario 1 equiv'!M89:M92),\nSUM('[2]SM3 - DECC Scenario 2 equiv'!M52:M55)+SUM('[2]SM3 - DECC Scenario 2 equiv'!M89:M92),\nSUM('[2]SM4 - DNO Scenario 4 equiv'!M52:M55)+SUM('[2]SM4 - DNO Scenario 4 equiv'!M89:M92))","v":0.16839443827180209},{"$f":"CHOOSE(view,\nSUM('[1]M1a - Model inputs'!N52:N55)+SUM('[1]M1a - Model inputs'!N89:N92),\nSUM('[1]M1b - Model inputs'!N52:N55)+SUM('[1]M1b - Model inputs'!N89:N92),\nSUM('[1]SM1 - DECC Scenario 3 equiv'!N52:N55)+SUM('[1]SM1 - DECC Scenario 3 equiv'!N89:N92),\nSUM('[1]SM2 - DECC Scenario 1 equiv'!N52:N55)+SUM('[1]SM2 - DECC Scenario 1 equiv'!N89:N92),\nSUM('[1]SM3 - DECC Scenario 2 equiv'!N52:N55)+SUM('[1]SM3 - DECC Scenario 2 equiv'!N89:N92),\nSUM('[1]SM4 - DNO Scenario 4 equiv'!N52:N55)+SUM('[1]SM4 - DNO Scenario 4 equiv'!N89:N92),\nSUM('[2]M1a - Model inputs'!N52:N55)+SUM('[2]M1a - Model inputs'!N89:N92),\nSUM('[2]M1b - Model inputs'!N52:N55)+SUM('[2]M1b - Model inputs'!N89:N92),\nSUM('[2]SM1 - DECC Scenario 3 equiv'!N52:N55)+SUM('[2]SM1 - DECC Scenario 3 equiv'!N89:N92),\nSUM('[2]SM2 - DECC Scenario 1 equiv'!N52:N55)+SUM('[2]SM2 - DECC Scenario 1 equiv'!N89:N92),\nSUM('[2]SM3 - DECC Scenario 2 equiv'!N52:N55)+SUM('[2]SM3 - DECC Scenario 2 equiv'!N89:N92),\nSUM('[2]SM4 - DNO Scenario 4 equiv'!N52:N55)+SUM('[2]SM4 - DNO Scenario 4 equiv'!N89:N92))","v":0.16997288984617537},{"$f":"CHOOSE(view,\nSUM('[1]M1a - Model inputs'!O52:O55)+SUM('[1]M1a - Model inputs'!O89:O92),\nSUM('[1]M1b - Model inputs'!O52:O55)+SUM('[1]M1b - Model inputs'!O89:O92),\nSUM('[1]SM1 - DECC Scenario 3 equiv'!O52:O55)+SUM('[1]SM1 - DECC Scenario 3 equiv'!O89:O92),\nSUM('[1]SM2 - DECC Scenario 1 equiv'!O52:O55)+SUM('[1]SM2 - DECC Scenario 1 equiv'!O89:O92),\nSUM('[1]SM3 - DECC Scenario 2 equiv'!O52:O55)+SUM('[1]SM3 - DECC Scenario 2 equiv'!O89:O92),\nSUM('[1]SM4 - DNO Scenario 4 equiv'!O52:O55)+SUM('[1]SM4 - DNO Scenario 4 equiv'!O89:O92),\nSUM('[2]M1a - Model inputs'!O52:O55)+SUM('[2]M1a - Model inputs'!O89:O92),\nSUM('[2]M1b - Model inputs'!O52:O55)+SUM('[2]M1b - Model inputs'!O89:O92),\nSUM('[2]SM1 - DECC Scenario 3 equiv'!O52:O55)+SUM('[2]SM1 - DECC Scenario 3 equiv'!O89:O92),\nSUM('[2]SM2 - DECC Scenario 1 equiv'!O52:O55)+SUM('[2]SM2 - DECC Scenario 1 equiv'!O89:O92),\nSUM('[2]SM3 - DECC Scenario 2 equiv'!O52:O55)+SUM('[2]SM3 - DECC Scenario 2 equiv'!O89:O92),\nSUM('[2]SM4 - DNO Scenario 4 equiv'!O52:O55)+SUM('[2]SM4 - DNO Scenario 4 equiv'!O89:O92))","v":0.17244918155738986},{"$f":"CHOOSE(view,\nSUM('[1]M1a - Model inputs'!P52:P55)+SUM('[1]M1a - Model inputs'!P89:P92),\nSUM('[1]M1b - Model inputs'!P52:P55)+SUM('[1]M1b - Model inputs'!P89:P92),\nSUM('[1]SM1 - DECC Scenario 3 equiv'!P52:P55)+SUM('[1]SM1 - DECC Scenario 3 equiv'!P89:P92),\nSUM('[1]SM2 - DECC Scenario 1 equiv'!P52:P55)+SUM('[1]SM2 - DECC Scenario 1 equiv'!P89:P92),\nSUM('[1]SM3 - DECC Scenario 2 equiv'!P52:P55)+SUM('[1]SM3 - DECC Scenario 2 equiv'!P89:P92),\nSUM('[1]SM4 - DNO Scenario 4 equiv'!P52:P55)+SUM('[1]SM4 - DNO Scenario 4 equiv'!P89:P92),\nSUM('[2]M1a - Model inputs'!P52:P55)+SUM('[2]M1a - Model inputs'!P89:P92),\nSUM('[2]M1b - Model inputs'!P52:P55)+SUM('[2]M1b - Model inputs'!P89:P92),\nSUM('[2]SM1 - DECC Scenario 3 equiv'!P52:P55)+SUM('[2]SM1 - DECC Scenario 3 equiv'!P89:P92),\nSUM('[2]SM2 - DECC Scenario 1 equiv'!P52:P55)+SUM('[2]SM2 - DECC Scenario 1 equiv'!P89:P92),\nSUM('[2]SM3 - DECC Scenario 2 equiv'!P52:P55)+SUM('[2]SM3 - DECC Scenario 2 equiv'!P89:P92),\nSUM('[2]SM4 - DNO Scenario 4 equiv'!P52:P55)+SUM('[2]SM4 - DNO Scenario 4 equiv'!P89:P92))","v":0.1749503651981113},{"$f":"CHOOSE(view,\nSUM('[1]M1a - Model inputs'!Q52:Q55)+SUM('[1]M1a - Model inputs'!Q89:Q92),\nSUM('[1]M1b - Model inputs'!Q52:Q55)+SUM('[1]M1b - Model inputs'!Q89:Q92),\nSUM('[1]SM1 - DECC Scenario 3 equiv'!Q52:Q55)+SUM('[1]SM1 - DECC Scenario 3 equiv'!Q89:Q92),\nSUM('[1]SM2 - DECC Scenario 1 equiv'!Q52:Q55)+SUM('[1]SM2 - DECC Scenario 1 equiv'!Q89:Q92),\nSUM('[1]SM3 - DECC Scenario 2 equiv'!Q52:Q55)+SUM('[1]SM3 - DECC Scenario 2 equiv'!Q89:Q92),\nSUM('[1]SM4 - DNO Scenario 4 equiv'!Q52:Q55)+SUM('[1]SM4 - DNO Scenario 4 equiv'!Q89:Q92),\nSUM('[2]M1a - Model inputs'!Q52:Q55)+SUM('[2]M1a - Model inputs'!Q89:Q92),\nSUM('[2]M1b - Model inputs'!Q52:Q55)+SUM('[2]M1b - Model inputs'!Q89:Q92),\nSUM('[2]SM1 - DECC Scenario 3 equiv'!Q52:Q55)+SUM('[2]SM1 - DECC Scenario 3 equiv'!Q89:Q92),\nSUM('[2]SM2 - DECC Scenario 1 equiv'!Q52:Q55)+SUM('[2]SM2 - DECC Scenario 1 equiv'!Q89:Q92),\nSUM('[2]SM3 - DECC Scenario 2 equiv'!Q52:Q55)+SUM('[2]SM3 - DECC Scenario 2 equiv'!Q89:Q92),\nSUM('[2]SM4 - DNO Scenario 4 equiv'!Q52:Q55)+SUM('[2]SM4 - DNO Scenario 4 equiv'!Q89:Q92))","v":0.17753968760049155},{"$f":"CHOOSE(view,\nSUM('[1]M1a - Model inputs'!R52:R55)+SUM('[1]M1a - Model inputs'!R89:R92),\nSUM('[1]M1b - Model inputs'!R52:R55)+SUM('[1]M1b - Model inputs'!R89:R92),\nSUM('[1]SM1 - DECC Scenario 3 equiv'!R52:R55)+SUM('[1]SM1 - DECC Scenario 3 equiv'!R89:R92),\nSUM('[1]SM2 - DECC Scenario 1 equiv'!R52:R55)+SUM('[1]SM2 - DECC Scenario 1 equiv'!R89:R92),\nSUM('[1]SM3 - DECC Scenario 2 equiv'!R52:R55)+SUM('[1]SM3 - DECC Scenario 2 equiv'!R89:R92),\nSUM('[1]SM4 - DNO Scenario 4 equiv'!R52:R55)+SUM('[1]SM4 - DNO Scenario 4 equiv'!R89:R92),\nSUM('[2]M1a - Model inputs'!R52:R55)+SUM('[2]M1a - Model inputs'!R89:R92),\nSUM('[2]M1b - Model inputs'!R52:R55)+SUM('[2]M1b - Model inputs'!R89:R92),\nSUM('[2]SM1 - DECC Scenario 3 equiv'!R52:R55)+SUM('[2]SM1 - DECC Scenario 3 equiv'!R89:R92),\nSUM('[2]SM2 - DECC Scenario 1 equiv'!R52:R55)+SUM('[2]SM2 - DECC Scenario 1 equiv'!R89:R92),\nSUM('[2]SM3 - DECC Scenario 2 equiv'!R52:R55)+SUM('[2]SM3 - DECC Scenario 2 equiv'!R89:R92),\nSUM('[2]SM4 - DNO Scenario 4 equiv'!R52:R55)+SUM('[2]SM4 - DNO Scenario 4 equiv'!R89:R92))","v":0.18012768564886114},{"$f":"CHOOSE(view,\nSUM('[1]M1a - Model inputs'!S52:S55)+SUM('[1]M1a - Model inputs'!S89:S92),\nSUM('[1]M1b - Model inputs'!S52:S55)+SUM('[1]M1b - Model inputs'!S89:S92),\nSUM('[1]SM1 - DECC Scenario 3 equiv'!S52:S55)+SUM('[1]SM1 - DECC Scenario 3 equiv'!S89:S92),\nSUM('[1]SM2 - DECC Scenario 1 equiv'!S52:S55)+SUM('[1]SM2 - DECC Scenario 1 equiv'!S89:S92),\nSUM('[1]SM3 - DECC Scenario 2 equiv'!S52:S55)+SUM('[1]SM3 - DECC Scenario 2 equiv'!S89:S92),\nSUM('[1]SM4 - DNO Scenario 4 equiv'!S52:S55)+SUM('[1]SM4 - DNO Scenario 4 equiv'!S89:S92),\nSUM('[2]M1a - Model inputs'!S52:S55)+SUM('[2]M1a - Model inputs'!S89:S92),\nSUM('[2]M1b - Model inputs'!S52:S55)+SUM('[2]M1b - Model inputs'!S89:S92),\nSUM('[2]SM1 - DECC Scenario 3 equiv'!S52:S55)+SUM('[2]SM1 - DECC Scenario 3 equiv'!S89:S92),\nSUM('[2]SM2 - DECC Scenario 1 equiv'!S52:S55)+SUM('[2]SM2 - DECC Scenario 1 equiv'!S89:S92),\nSUM('[2]SM3 - DECC Scenario 2 equiv'!S52:S55)+SUM('[2]SM3 - DECC Scenario 2 equiv'!S89:S92),\nSUM('[2]SM4 - DNO Scenario 4 equiv'!S52:S55)+SUM('[2]SM4 - DNO Scenario 4 equiv'!S89:S92))","v":0.18278347898396746}]
[null,null,null,null,{"$f":"Input!E24","v":"Allowed uncertain costs (Load related re-operner)"},{"$f":"Input!F24","v":"XX"},{"$f":"Input!G24","v":"£m 12/13 prices"},{"$f":"Input!H24","v":"YY"},null,null,null,null,null,null,null,null,null,null,null,null,null,null,null,null,null,null,null,null,null,null,null,null,null,null,null,{"$f":"CHOOSE(view,\n'[1]M1a - Model inputs'!L31+'[1]M1a - Model inputs'!L68,\n'[1]M1b - Model inputs'!L31+'[1]M1b - Model inputs'!L68,\n'[1]SM1 - DECC Scenario 3 equiv'!L31+'[1]SM1 - DECC Scenario 3 equiv'!L68,\n'[1]SM2 - DECC Scenario 1 equiv'!L31+'[1]SM2 - DECC Scenario 1 equiv'!L68,\n'[1]SM3 - DECC Scenario 2 equiv'!L31+'[1]SM3 - DECC Scenario 2 equiv'!L68,\n'[1]SM4 - DNO Scenario 4 equiv'!L31+'[1]SM4 - DNO Scenario 4 equiv'!L68,\n'[2]M1a - Model inputs'!L31+'[1]M1a - Model inputs'!L68,\n'[2]M1b - Model inputs'!L31+'[1]M1b - Model inputs'!L68,\n'[2]SM1 - DECC Scenario 3 equiv'!L31+'[1]SM1 - DECC Scenario 3 equiv'!L68,\n'[2]SM2 - DECC Scenario 1 equiv'!L31+'[1]SM2 - DECC Scenario 1 equiv'!L68,\n'[2]SM3 - DECC Scenario 2 equiv'!L31+'[1]SM3 - DECC Scenario 2 equiv'!L68,\n'[2]SM4 - DNO Scenario 4 equiv'!L31+'[1]SM4 - DNO Scenario 4 equiv'!L68)","v":0},{"$f":"CHOOSE(view,\n'[1]M1a - Model inputs'!M31+'[1]M1a - Model inputs'!M68,\n'[1]M1b - Model inputs'!M31+'[1]M1b - Model inputs'!M68,\n'[1]SM1 - DECC Scenario 3 equiv'!M31+'[1]SM1 - DECC Scenario 3 equiv'!M68,\n'[1]SM2 - DECC Scenario 1 equiv'!M31+'[1]SM2 - DECC Scenario 1 equiv'!M68,\n'[1]SM3 - DECC Scenario 2 equiv'!M31+'[1]SM3 - DECC Scenario 2 equiv'!M68,\n'[1]SM4 - DNO Scenario 4 equiv'!M31+'[1]SM4 - DNO Scenario 4 equiv'!M68,\n'[2]M1a - Model inputs'!M31+'[1]M1a - Model inputs'!M68,\n'[2]M1b - Model inputs'!M31+'[1]M1b - Model inputs'!M68,\n'[2]SM1 - DECC Scenario 3 equiv'!M31+'[1]SM1 - DECC Scenario 3 equiv'!M68,\n'[2]SM2 - DECC Scenario 1 equiv'!M31+'[1]SM2 - DECC Scenario 1 equiv'!M68,\n'[2]SM3 - DECC Scenario 2 equiv'!M31+'[1]SM3 - DECC Scenario 2 equiv'!M68,\n'[2]SM4 - DNO Scenario 4 equiv'!M31+'[1]SM4 - DNO Scenario 4 equiv'!M68)","v":0},{"$f":"CHOOSE(view,\n'[1]M1a - Model inputs'!N31+'[1]M1a - Model inputs'!N68,\n'[1]M1b - Model inputs'!N31+'[1]M1b - Model inputs'!N68,\n'[1]SM1 - DECC Scenario 3 equiv'!N31+'[1]SM1 - DECC Scenario 3 equiv'!N68,\n'[1]SM2 - DECC Scenario 1 equiv'!N31+'[1]SM2 - DECC Scenario 1 equiv'!N68,\n'[1]SM3 - DECC Scenario 2 equiv'!N31+'[1]SM3 - DECC Scenario 2 equiv'!N68,\n'[1]SM4 - DNO Scenario 4 equiv'!N31+'[1]SM4 - DNO Scenario 4 equiv'!N68,\n'[2]M1a - Model inputs'!N31+'[1]M1a - Model inputs'!N68,\n'[2]M1b - Model inputs'!N31+'[1]M1b - Model inputs'!N68,\n'[2]SM1 - DECC Scenario 3 equiv'!N31+'[1]SM1 - DECC Scenario 3 equiv'!N68,\n'[2]SM2 - DECC Scenario 1 equiv'!N31+'[1]SM2 - DECC Scenario 1 equiv'!N68,\n'[2]SM3 - DECC Scenario 2 equiv'!N31+'[1]SM3 - DECC Scenario 2 equiv'!N68,\n'[2]SM4 - DNO Scenario 4 equiv'!N31+'[1]SM4 - DNO Scenario 4 equiv'!N68)","v":0},{"$f":"CHOOSE(view,\n'[1]M1a - Model inputs'!O31+'[1]M1a - Model inputs'!O68,\n'[1]M1b - Model inputs'!O31+'[1]M1b - Model inputs'!O68,\n'[1]SM1 - DECC Scenario 3 equiv'!O31+'[1]SM1 - DECC Scenario 3 equiv'!O68,\n'[1]SM2 - DECC Scenario 1 equiv'!O31+'[1]SM2 - DECC Scenario 1 equiv'!O68,\n'[1]SM3 - DECC Scenario 2 equiv'!O31+'[1]SM3 - DECC Scenario 2 equiv'!O68,\n'[1]SM4 - DNO Scenario 4 equiv'!O31+'[1]SM4 - DNO Scenario 4 equiv'!O68,\n'[2]M1a - Model inputs'!O31+'[1]M1a - Model inputs'!O68,\n'[2]M1b - Model inputs'!O31+'[1]M1b - Model inputs'!O68,\n'[2]SM1 - DECC Scenario 3 equiv'!O31+'[1]SM1 - DECC Scenario 3 equiv'!O68,\n'[2]SM2 - DECC Scenario 1 equiv'!O31+'[1]SM2 - DECC Scenario 1 equiv'!O68,\n'[2]SM3 - DECC Scenario 2 equiv'!O31+'[1]SM3 - DECC Scenario 2 equiv'!O68,\n'[2]SM4 - DNO Scenario 4 equiv'!O31+'[1]SM4 - DNO Scenario 4 equiv'!O68)","v":0},{"$f":"CHOOSE(view,\n'[1]M1a - Model inputs'!P31+'[1]M1a - Model inputs'!P68,\n'[1]M1b - Model inputs'!P31+'[1]M1b - Model inputs'!P68,\n'[1]SM1 - DECC Scenario 3 equiv'!P31+'[1]SM1 - DECC Scenario 3 equiv'!P68,\n'[1]SM2 - DECC Scenario 1 equiv'!P31+'[1]SM2 - DECC Scenario 1 equiv'!P68,\n'[1]SM3 - DECC Scenario 2 equiv'!P31+'[1]SM3 - DECC Scenario 2 equiv'!P68,\n'[1]SM4 - DNO Scenario 4 equiv'!P31+'[1]SM4 - DNO Scenario 4 equiv'!P68,\n'[2]M1a - Model inputs'!P31+'[1]M1a - Model inputs'!P68,\n'[2]M1b - Model inputs'!P31+'[1]M1b - Model inputs'!P68,\n'[2]SM1 - DECC Scenario 3 equiv'!P31+'[1]SM1 - DECC Scenario 3 equiv'!P68,\n'[2]SM2 - DECC Scenario 1 equiv'!P31+'[1]SM2 - DECC Scenario 1 equiv'!P68,\n'[2]SM3 - DECC Scenario 2 equiv'!P31+'[1]SM3 - DECC Scenario 2 equiv'!P68,\n'[2]SM4 - DNO Scenario 4 equiv'!P31+'[1]SM4 - DNO Scenario 4 equiv'!P68)","v":0},{"$f":"CHOOSE(view,\n'[1]M1a - Model inputs'!Q31+'[1]M1a - Model inputs'!Q68,\n'[1]M1b - Model inputs'!Q31+'[1]M1b - Model inputs'!Q68,\n'[1]SM1 - DECC Scenario 3 equiv'!Q31+'[1]SM1 - DECC Scenario 3 equiv'!Q68,\n'[1]SM2 - DECC Scenario 1 equiv'!Q31+'[1]SM2 - DECC Scenario 1 equiv'!Q68,\n'[1]SM3 - DECC Scenario 2 equiv'!Q31+'[1]SM3 - DECC Scenario 2 equiv'!Q68,\n'[1]SM4 - DNO Scenario 4 equiv'!Q31+'[1]SM4 - DNO Scenario 4 equiv'!Q68,\n'[2]M1a - Model inputs'!Q31+'[1]M1a - Model inputs'!Q68,\n'[2]M1b - Model inputs'!Q31+'[1]M1b - Model inputs'!Q68,\n'[2]SM1 - DECC Scenario 3 equiv'!Q31+'[1]SM1 - DECC Scenario 3 equiv'!Q68,\n'[2]SM2 - DECC Scenario 1 equiv'!Q31+'[1]SM2 - DECC Scenario 1 equiv'!Q68,\n'[2]SM3 - DECC Scenario 2 equiv'!Q31+'[1]SM3 - DECC Scenario 2 equiv'!Q68,\n'[2]SM4 - DNO Scenario 4 equiv'!Q31+'[1]SM4 - DNO Scenario 4 equiv'!Q68)","v":0},{"$f":"CHOOSE(view,\n'[1]M1a - Model inputs'!R31+'[1]M1a - Model inputs'!R68,\n'[1]M1b - Model inputs'!R31+'[1]M1b - Model inputs'!R68,\n'[1]SM1 - DECC Scenario 3 equiv'!R31+'[1]SM1 - DECC Scenario 3 equiv'!R68,\n'[1]SM2 - DECC Scenario 1 equiv'!R31+'[1]SM2 - DECC Scenario 1 equiv'!R68,\n'[1]SM3 - DECC Scenario 2 equiv'!R31+'[1]SM3 - DECC Scenario 2 equiv'!R68,\n'[1]SM4 - DNO Scenario 4 equiv'!R31+'[1]SM4 - DNO Scenario 4 equiv'!R68,\n'[2]M1a - Model inputs'!R31+'[1]M1a - Model inputs'!R68,\n'[2]M1b - Model inputs'!R31+'[1]M1b - Model inputs'!R68,\n'[2]SM1 - DECC Scenario 3 equiv'!R31+'[1]SM1 - DECC Scenario 3 equiv'!R68,\n'[2]SM2 - DECC Scenario 1 equiv'!R31+'[1]SM2 - DECC Scenario 1 equiv'!R68,\n'[2]SM3 - DECC Scenario 2 equiv'!R31+'[1]SM3 - DECC Scenario 2 equiv'!R68,\n'[2]SM4 - DNO Scenario 4 equiv'!R31+'[1]SM4 - DNO Scenario 4 equiv'!R68)","v":0},{"$f":"CHOOSE(view,\n'[1]M1a - Model inputs'!S31+'[1]M1a - Model inputs'!S68,\n'[1]M1b - Model inputs'!S31+'[1]M1b - Model inputs'!S68,\n'[1]SM1 - DECC Scenario 3 equiv'!S31+'[1]SM1 - DECC Scenario 3 equiv'!S68,\n'[1]SM2 - DECC Scenario 1 equiv'!S31+'[1]SM2 - DECC Scenario 1 equiv'!S68,\n'[1]SM3 - DECC Scenario 2 equiv'!S31+'[1]SM3 - DECC Scenario 2 equiv'!S68,\n'[1]SM4 - DNO Scenario 4 equiv'!S31+'[1]SM4 - DNO Scenario 4 equiv'!S68,\n'[2]M1a - Model inputs'!S31+'[1]M1a - Model inputs'!S68,\n'[2]M1b - Model inputs'!S31+'[1]M1b - Model inputs'!S68,\n'[2]SM1 - DECC Scenario 3 equiv'!S31+'[1]SM1 - DECC Scenario 3 equiv'!S68,\n'[2]SM2 - DECC Scenario 1 equiv'!S31+'[1]SM2 - DECC Scenario 1 equiv'!S68,\n'[2]SM3 - DECC Scenario 2 equiv'!S31+'[1]SM3 - DECC Scenario 2 equiv'!S68,\n'[2]SM4 - DNO Scenario 4 equiv'!S31+'[1]SM4 - DNO Scenario 4 equiv'!S68)","v":0}]
[null,null,null,null,{"$f":"Input!E25","v":"Spare 1"},{"$f":"Input!F25","v":"XX"},{"$f":"Input!G25","v":"£m 12/13 prices"},{"$f":"Input!H25","v":"YY"}]
[null,null,null,null,{"$f":"Input!E26","v":"Spare 2"},{"$f":"Input!F26","v":"XX"},{"$f":"Input!G26","v":"£m 12/13 prices"},{"$f":"Input!H26","v":"YY"}]
[null,null,null,null,{"$f":"Input!E27","v":"Spare 3"},{"$f":"Input!F27","v":"XX"},{"$f":"Input!G27","v":"£m 12/13 prices"},{"$f":"Input!H27","v":"YY"}]
[null,null,null,null,{"$f":"Input!E28","v":"Allowed innovation roll-out mechanism"},{"$f":"Input!F28","v":"XX"},{"$f":"Input!G28","v":"£m 12/13 prices"},{"$f":"Input!H28","v":"YY"}]
[null,null,null,null,{"$f":"Input!E29","v":"Exit Charges"},{"$f":"Input!F29","v":"XX"},{"$f":"Input!G29","v":"£m 12/13 prices"},{"$f":"Input!H29","v":"YY"},null,null,null,null,null,null,null,null,null,null,null,null,null,null,null,null,null,null,null,null,null,null,null,null,null,null,null,{"$f":"CHOOSE(view,\n'[1]M1a - Model inputs'!L122,\n'[1]M1b - Model inputs'!L122,\n'[1]SM1 - DECC Scenario 3 equiv'!L122,\n'[1]SM2 - DECC Scenario 1 equiv'!L122,\n'[1]SM3 - DECC Scenario 2 equiv'!L122,\n'[1]SM4 - DNO Scenario 4 equiv'!L122,\n'[2]M1a - Model inputs'!L122,\n'[2]M1b - Model inputs'!L122,\n'[2]SM1 - DECC Scenario 3 equiv'!L122,\n'[2]SM2 - DECC Scenario 1 equiv'!L122,\n'[2]SM3 - DECC Scenario 2 equiv'!L122,\n'[2]SM4 - DNO Scenario 4 equiv'!L122)","v":12.740947203483326},{"$f":"CHOOSE(view,\n'[1]M1a - Model inputs'!M122,\n'[1]M1b - Model inputs'!M122,\n'[1]SM1 - DECC Scenario 3 equiv'!M122,\n'[1]SM2 - DECC Scenario 1 equiv'!M122,\n'[1]SM3 - DECC Scenario 2 equiv'!M122,\n'[1]SM4 - DNO Scenario 4 equiv'!M122,\n'[2]M1a - Model inputs'!M122,\n'[2]M1b - Model inputs'!M122,\n'[2]SM1 - DECC Scenario 3 equiv'!M122,\n'[2]SM2 - DECC Scenario 1 equiv'!M122,\n'[2]SM3 - DECC Scenario 2 equiv'!M122,\n'[2]SM4 - DNO Scenario 4 equiv'!M122)","v":13.013503978483328},{"$f":"CHOOSE(view,\n'[1]M1a - Model inputs'!N122,\n'[1]M1b - Model inputs'!N122,\n'[1]SM1 - DECC Scenario 3 equiv'!N122,\n'[1]SM2 - DECC Scenario 1 equiv'!N122,\n'[1]SM3 - DECC Scenario 2 equiv'!N122,\n'[1]SM4 - DNO Scenario 4 equiv'!N122,\n'[2]M1a - Model inputs'!N122,\n'[2]M1b - Model inputs'!N122,\n'[2]SM1 - DECC Scenario 3 equiv'!N122,\n'[2]SM2 - DECC Scenario 1 equiv'!N122,\n'[2]SM3 - DECC Scenario 2 equiv'!N122,\n'[2]SM4 - DNO Scenario 4 equiv'!N122)","v":13.154379203483327},{"$f":"CHOOSE(view,\n'[1]M1a - Model inputs'!O122,\n'[1]M1b - Model inputs'!O122,\n'[1]SM1 - DECC Scenario 3 equiv'!O122,\n'[1]SM2 - DECC Scenario 1 equiv'!O122,\n'[1]SM3 - DECC Scenario 2 equiv'!O122,\n'[1]SM4 - DNO Scenario 4 equiv'!O122,\n'[2]M1a - Model inputs'!O122,\n'[2]M1b - Model inputs'!O122,\n'[2]SM1 - DECC Scenario 3 equiv'!O122,\n'[2]SM2 - DECC Scenario 1 equiv'!O122,\n'[2]SM3 - DECC Scenario 2 equiv'!O122,\n'[2]SM4 - DNO Scenario 4 equiv'!O122)","v":13.174095203483327},{"$f":"CHOOSE(view,\n'[1]M1a - Model inputs'!P122,\n'[1]M1b - Model inputs'!P122,\n'[1]SM1 - DECC Scenario 3 equiv'!P122,\n'[1]SM2 - DECC Scenario 1 equiv'!P122,\n'[1]SM3 - DECC Scenario 2 equiv'!P122,\n'[1]SM4 - DNO Scenario 4 equiv'!P122,\n'[2]M1a - Model inputs'!P122,\n'[2]M1b - Model inputs'!P122,\n'[2]SM1 - DECC Scenario 3 equiv'!P122,\n'[2]SM2 - DECC Scenario 1 equiv'!P122,\n'[2]SM3 - DECC Scenario 2 equiv'!P122,\n'[2]SM4 - DNO Scenario 4 equiv'!P122)","v":13.548095203483326},{"$f":"CHOOSE(view,\n'[1]M1a - Model inputs'!Q122,\n'[1]M1b - Model inputs'!Q122,\n'[1]SM1 - DECC Scenario 3 equiv'!Q122,\n'[1]SM2 - DECC Scenario 1 equiv'!Q122,\n'[1]SM3 - DECC Scenario 2 equiv'!Q122,\n'[1]SM4 - DNO Scenario 4 equiv'!Q122,\n'[2]M1a - Model inputs'!Q122,\n'[2]M1b - Model inputs'!Q122,\n'[2]SM1 - DECC Scenario 3 equiv'!Q122,\n'[2]SM2 - DECC Scenario 1 equiv'!Q122,\n'[2]SM3 - DECC Scenario 2 equiv'!Q122,\n'[2]SM4 - DNO Scenario 4 equiv'!Q122)","v":14.122295203483327},{"$f":"CHOOSE(view,\n'[1]M1a - Model inputs'!R122,\n'[1]M1b - Model inputs'!R122,\n'[1]SM1 - DECC Scenario 3 equiv'!R122,\n'[1]SM2 - DECC Scenario 1 equiv'!R122,\n'[1]SM3 - DECC Scenario 2 equiv'!R122,\n'[1]SM4 - DNO Scenario 4 equiv'!R122,\n'[2]M1a - Model inputs'!R122,\n'[2]M1b - Model inputs'!R122,\n'[2]SM1 - DECC Scenario 3 equiv'!R122,\n'[2]SM2 - DECC Scenario 1 equiv'!R122,\n'[2]SM3 - DECC Scenario 2 equiv'!R122,\n'[2]SM4 - DNO Scenario 4 equiv'!R122)","v":14.122295203483327},{"$f":"CHOOSE(view,\n'[1]M1a - Model inputs'!S122,\n'[1]M1b - Model inputs'!S122,\n'[1]SM1 - DECC Scenario 3 equiv'!S122,\n'[1]SM2 - DECC Scenario 1 equiv'!S122,\n'[1]SM3 - DECC Scenario 2 equiv'!S122,\n'[1]SM4 - DNO Scenario 4 equiv'!S122,\n'[2]M1a - Model inputs'!S122,\n'[2]M1b - Model inputs'!S122,\n'[2]SM1 - DECC Scenario 3 equiv'!S122,\n'[2]SM2 - DECC Scenario 1 equiv'!S122,\n'[2]SM3 - DECC Scenario 2 equiv'!S122,\n'[2]SM4 - DNO Scenario 4 equiv'!S122)","v":14.122295203483327}]
[null,null,null,null,{"$f":"Input!E30","v":"Pension scheme established deficit revenue allowances"},{"$f":"Input!F30","v":"XX"},{"$f":"Input!G30","v":"£m 12/13 prices"},{"$f":"Input!H30","v":"YY"},null,null,null,null,null,null,null,null,null,null,null,null,null,null,null,null,null,null,null,null,null,null,null,null,null,null,null,{"$f":"'[3]F7 Pensions DB scheme costs'!K263","v":23.680990303886606},{"$f":"'[3]F7 Pensions DB scheme costs'!L263","v":23.680990303886606},{"$f":"'[3]F7 Pensions DB scheme costs'!M263","v":23.680990303886606},{"$f":"'[3]F7 Pensions DB scheme costs'!N263","v":23.680990303886606},{"$f":"'[3]F7 Pensions DB scheme costs'!O263","v":23.680990303886606},{"$f":"'[3]F7 Pensions DB scheme costs'!P263","v":23.680990303886606},{"$f":"'[3]F7 Pensions DB scheme costs'!Q263","v":23.680990303886606},{"$f":"'[3]F7 Pensions DB scheme costs'!R263","v":23.680990303886606}]
[null,null,null,null,{"$f":"Input!E31","v":"Legacy price control allowed revenue adjustment"},{"$f":"Input!F31","v":"XX"},{"$f":"Input!G31","v":"£m 12/13 prices"},{"$f":"Input!H31","v":"YY"}]
[null,null,null,null,{"$f":"Input!E32","v":"Legacy price control RAV additions adjustment"},{"$f":"Input!F32","v":"XX"},{"$f":"Input!G32","v":"£m 12/13 prices"},{"$f":"Input!H32","v":"YY"},null,null,null,null,null,null,null,null,null,null,null,null,null,null,null,null,null,null,null,null,null,null,null,null,null,{"$f":"[4]DirectedValues!I79","v":8.528433735559986},{"$f":"[4]DirectedValues!J79","v":-6.7337782745080546}]
[null,null,null,null,{"$f":"Input!E33","v":"Tax liability allowance adjustments - gearing/interest costs"},{"$f":"Input!F33","v":"XX"},{"$f":"Input!G33","v":"£m nominal"},{"$f":"Input!H33","v":"YY"}]
[null,null,null,null,{"$f":"Input!E34","v":"Tax liability allowance adjustments - driven by tax trigger events"},{"$f":"Input!F34","v":"XX"},{"$f":"Input!G34","v":"£m 12/13 prices"},{"$f":"Input!H34","v":"YY"}]
[null,null,null,null,{"$f":"Input!E35","v":"General pool capital allowance pre-RIIO movement adjustment"},{"$f":"Input!F35","v":"XX"},{"$f":"Input!G35","v":"Nominal"},{"$f":"Input!H35","v":"YY"}]
[null,null,null,null,{"$f":"Input!E36","v":"Special pool capital allowance pre-RIIO movement adjustment"},{"$f":"Input!F36","v":"XX"},{"$f":"Input!G36","v":"Nominal"},{"$f":"Input!H36","v":"YY"}]
[null,null,null,null,{"$f":"Input!E37","v":"Deferred Revenue Expenditure pre-RIIO movement adjustment"},{"$f":"Input!F37","v":"XX"},{"$f":"Input!G37","v":"Nominal"},{"$f":"Input!H37","v":"YY"}]
[null,null,null,null,{"$f":"Input!E38","v":"DRE: Gross capex adjustment"},{"$f":"Input!F38","v":"XX"},{"$f":"Input!G38","v":"Nominal"},{"$f":"Input!H38","v":"YY"}]
[]
[null,"Policy"]
[]
[null,null,"Cost of capital"]
[]
[null,null,null,null,"Cost of debt",null,"annual real %",null,null,null,null,null,null,null,null,null,null,null,null,null,null,null,null,null,null,null,null,null,null,null,null,null,null,null,null,{"$f":"AJ11","v":2.92E-2},{"$f":"AK11","v":2.92E-2},2.92E-2,2.92E-2,2.92E-2,2.92E-2,2.92E-2,2.92E-2]
[null,null,null,null,"Cost of equity",null,"annual real %",null,null,null,null,null,null,null,null,null,null,null,null,null,null,null,null,null,null,null,null,null,null,null,null,null,null,null,null,6.7000000000000004E-2,6.7000000000000004E-2,6.7000000000000004E-2,6.7000000000000004E-2,6.7000000000000004E-2,6.7000000000000004E-2,6.7000000000000004E-2,6.7000000000000004E-2]
[null,null,null,null,"Notional gearing",null,"%",null,null,">",null,null,null,null,null,null,null,null,null,null,null,null,null,null,null,null,null,null,null,null,null,null,null,null,0.65,0.65,0.65,0.65,0.65,0.65,0.65,0.65,0.65]
[]
[null,null,null,null,"Vanilla WACC",null,"annual real %",null,null,null,null,null,null,null,null,null,null,null,null,null,null,null,null,null,null,null,null,null,null,null,null,null,null,null,null,{"$f":"(AJ44 * AJ46) + (AJ45 * (1 - AJ46))","v":4.2429999999999995E-2},4.2429999999999995E-2,4.2429999999999995E-2,4.2429999999999995E-2,4.2429999999999995E-2,4.2429999999999995E-2,4.2429999999999995E-2,4.2429999999999995E-2]
[]
[]
[]
[null,null,"Indexation"]
[]
[null,null,null,null,"Forecast RPI (simple average year to March)",null,"index value",null,null,">",null,null,null,null,null,null,null,null,null,null,null,null,null,null,null,null,null,null,null,null,null,null,{"$f":"ROUND(AVERAGE(242.5,242.4,241.8,242.1,243,244.2,245.6,245.6,246.8,245.8,247.6,248.7),3)","v":244.67500000000001},{"$f":"ROUND(AG54*(1+2.8%),3)","v":251.52600000000001},258.56900000000002,265.80900000000003,273.25200000000001,280.90300000000002,288.76799999999997,296.85399999999998,305.166,313.71100000000001,322.495]
[null,null,null,null,"Cost of Debt Inflation",null,"index value",null,null,">",null,null,null,null,null,null,null,null,null,null,null,null,null,null,null,null,null,null,null,null,null,null,{"$f":"ROUND(AVERAGE(242.5,242.4,241.8,242.1,243,244.2,245.6,245.6,246.8,245.8,247.6,248.7),3)","v":244.67500000000001},{"$f":"ROUND(AG55*(1+2.8%),3)","v":251.52600000000001},258.56900000000002,265.80900000000003,273.25200000000001,280.90300000000002,288.76799999999997,296.85399999999998,305.166,313.71100000000001,322.495]
[]
[null,null,"TIM and capitalisation"]
[]
[null,null,null,null,"Years from t until normal reporting of actual costs",null,"years",null,2]
[]
[null,null,null,null,{"$f":"Input!E61","v":"Capitalised share of totex"},null,"%",null,null,null,null,null,null,null,null,null,null,null,null,null,null,null,null,null,null,null,null,null,null,null,null,null,null,null,null,0.8,0.8,0.8,0.8,0.8,0.8,0.8,0.8]
[]
[null,null,null,null,"Additional income %",null,"%",null,2.5000000000000001E-2]
[]
[null,null,null,null,"Incentive Strength",null,"%",null,0.7]
[]
[null,null,null,null,"Weight of Ofgem's view on price control totex",null,"%",null,0.75]
[null,null,null,null,"Weight of operator's view on price control totex",null,"%",null,0.25]
[]
[null,null,null,null,"Ofgem's view of  licensee totex",null,"£m 12/13 prices",null,{"$f":"I71","v":2109.2260156085922}]
[null,null,null,null,"Operator's view of licensee totex",null,"£m 12/13 prices",null,{"$f":"CHOOSE(view,\nSUM('[1]M1b - Model inputs'!$L$26:$S$26,'[1]M1b - Model inputs'!$L$103:$S$108),\nSUM('[1]M1b - Model inputs'!$L$26:$S$26,'[1]M1b - Model inputs'!$L$103:$S$108),\nSUM('[1]M1b - Model inputs'!$L$26:$S$26,'[1]M1b - Model inputs'!$L$103:$S$108),\nSUM('[1]M1b - Model inputs'!$L$26:$S$26,'[1]M1b - Model inputs'!$L$103:$S$108),\nSUM('[1]M1b - Model inputs'!$L$26:$S$26,'[1]M1b - Model inputs'!$L$103:$S$108),\nSUM('[1]M1b - Model inputs'!$L$26:$S$26,'[1]M1b - Model inputs'!$L$103:$S$108),\nSUM('[2]M1b - Model inputs'!$L$26:$S$26,'[2]M1b - Model inputs'!$L$103:$S$108),\nSUM('[2]M1b - Model inputs'!$L$26:$S$26,'[2]M1b - Model inputs'!$L$103:$S$108),\nSUM('[2]M1b - Model inputs'!$L$26:$S$26,'[2]M1b - Model inputs'!$L$103:$S$108),\nSUM('[2]M1b - Model inputs'!$L$26:$S$26,'[2]M1b - Model inputs'!$L$103:$S$108),\nSUM('[2]M1b - Model inputs'!$L$26:$S$26,'[2]M1b - Model inputs'!$L$103:$S$108),\nSUM('[2]M1b - Model inputs'!$L$26:$S$26,'[2]M1b - Model inputs'!$L$103:$S$108))","v":2109.2260156085922}]
[]
[null,null,null,null,"Ofgem's view of group price control totex",null,"£m 12/13 prices",null,{"$f":"I70 + EMID!I70 + SWALES!I70 + SWEST!I70","v":7063.2910311137712}]
[null,null,null,null,"Operator's view of group price control totex ",null,"£m 12/13 prices",null,{"$f":"I71 + EMID!I71 + SWALES!I71 + SWEST!I71","v":7063.2910311137712}]
[]
[null,null,"Finance"]
[]
[null,null,null,null,"Minimum equity issuance threshold",null,"%",null,0]
[null,null,null,null,"Equity issuance costs",null,"%",null,0]
[null,null,null,null,"Assumed dividends as % of notional equity portion of RAV",null,"%",null,6.7000000000000004E-2]
[]
[null,null,null,null,"Equity issuance gearing target",null,"%",null,null,null,null,null,null,null,null,null,null,null,null,null,null,null,null,null,null,null,null,null,null,null,null,null,null,null,null,{"$f":"AJ46","v":0.65},{"$f":"AK46","v":0.65},0.65,0.65,0.65,0.65,0.65,0.65]
[]
[null,null,null,null,"Index-linked debt as a percentage of net debt",null,"%",null,null,null,null,null,null,null,null,null,null,null,null,null,null,null,null,null,null,null,null,null,null,null,null,null,null,null,null,0.25,0.25,0.25,0.25,0.25,0.25,0.25,0.25]
[]
[null,"Expenditure"]
[]
[null,null,"Totex"]
[]
[null,null,null,"Non-variant allowances"]
[]
[null,null,null,null,{"$f":"Input!E92","v":"Non-variant allowed load related capex"},null,"£m 12/13 prices",null,null,null,null,null,null,null,null,null,null,null,null,null,null,null,null,null,null,null,null,null,null,null,null,null,null,null,null,{"$f":"CHOOSE(view,\n'[1]M1a - Model inputs'!L8+'[1]M1a - Model inputs'!L18,\n'[1]M1b - Model inputs'!L8+'[1]M1b - Model inputs'!L18,\n'[1]SM1 - DECC Scenario 3 equiv'!L8+'[1]SM1 - DECC Scenario 3 equiv'!L18,\n'[1]SM2 - DECC Scenario 1 equiv'!L8+'[1]SM2 - DECC Scenario 1 equiv'!L18,\n'[1]SM3 - DECC Scenario 2 equiv'!L8+'[1]SM3 - DECC Scenario 2 equiv'!L18,\n'[1]SM4 - DNO Scenario 4 equiv'!L8+'[1]SM4 - DNO Scenario 4 equiv'!L18,\n'[2]M1a - Model inputs'!L8+'[2]M1a - Model inputs'!L18,\n'[2]M1b - Model inputs'!L8+'[2]M1b - Model inputs'!L18,\n'[2]SM1 - DECC Scenario 3 equiv'!L8+'[2]SM1 - DECC Scenario 3 equiv'!L18,\n'[2]SM2 - DECC Scenario 1 equiv'!L8+'[2]SM2 - DECC Scenario 1 equiv'!L18,\n'[2]SM3 - DECC Scenario 2 equiv'!L8+'[2]SM3 - DECC Scenario 2 equiv'!L18,\n'[2]SM4 - DNO Scenario 4 equiv'!L8+'[2]SM4 - DNO Scenario 4 equiv'!L18)","v":23.712681112648937},{"$f":"CHOOSE(view,\n'[1]M1a - Model inputs'!M8+'[1]M1a - Model inputs'!M18,\n'[1]M1b - Model inputs'!M8+'[1]M1b - Model inputs'!M18,\n'[1]SM1 - DECC Scenario 3 equiv'!M8+'[1]SM1 - DECC Scenario 3 equiv'!M18,\n'[1]SM2 - DECC Scenario 1 equiv'!M8+'[1]SM2 - DECC Scenario 1 equiv'!M18,\n'[1]SM3 - DECC Scenario 2 equiv'!M8+'[1]SM3 - DECC Scenario 2 equiv'!M18,\n'[1]SM4 - DNO Scenario 4 equiv'!M8+'[1]SM4 - DNO Scenario 4 equiv'!M18,\n'[2]M1a - Model inputs'!M8+'[2]M1a - Model inputs'!M18,\n'[2]M1b - Model inputs'!M8+'[2]M1b - Model inputs'!M18,\n'[2]SM1 - DECC Scenario 3 equiv'!M8+'[2]SM1 - DECC Scenario 3 equiv'!M18,\n'[2]SM2 - DECC Scenario 1 equiv'!M8+'[2]SM2 - DECC Scenario 1 equiv'!M18,\n'[2]SM3 - DECC Scenario 2 equiv'!M8+'[2]SM3 - DECC Scenario 2 equiv'!M18,\n'[2]SM4 - DNO Scenario 4 equiv'!M8+'[2]SM4 - DNO Scenario 4 equiv'!M18)","v":24.593474157092636},{"$f":"CHOOSE(view,\n'[1]M1a - Model inputs'!N8+'[1]M1a - Model inputs'!N18,\n'[1]M1b - Model inputs'!N8+'[1]M1b - Model inputs'!N18,\n'[1]SM1 - DECC Scenario 3 equiv'!N8+'[1]SM1 - DECC Scenario 3 equiv'!N18,\n'[1]SM2 - DECC Scenario 1 equiv'!N8+'[1]SM2 - DECC Scenario 1 equiv'!N18,\n'[1]SM3 - DECC Scenario 2 equiv'!N8+'[1]SM3 - DECC Scenario 2 equiv'!N18,\n'[1]SM4 - DNO Scenario 4 equiv'!N8+'[1]SM4 - DNO Scenario 4 equiv'!N18,\n'[2]M1a - Model inputs'!N8+'[2]M1a - Model inputs'!N18,\n'[2]M1b - Model inputs'!N8+'[2]M1b - Model inputs'!N18,\n'[2]SM1 - DECC Scenario 3 equiv'!N8+'[2]SM1 - DECC Scenario 3 equiv'!N18,\n'[2]SM2 - DECC Scenario 1 equiv'!N8+'[2]SM2 - DECC Scenario 1 equiv'!N18,\n'[2]SM3 - DECC Scenario 2 equiv'!N8+'[2]SM3 - DECC Scenario 2 equiv'!N18,\n'[2]SM4 - DNO Scenario 4 equiv'!N8+'[2]SM4 - DNO Scenario 4 equiv'!N18)","v":23.421714123686112},{"$f":"CHOOSE(view,\n'[1]M1a - Model inputs'!O8+'[1]M1a - Model inputs'!O18,\n'[1]M1b - Model inputs'!O8+'[1]M1b - Model inputs'!O18,\n'[1]SM1 - DECC Scenario 3 equiv'!O8+'[1]SM1 - DECC Scenario 3 equiv'!O18,\n'[1]SM2 - DECC Scenario 1 equiv'!O8+'[1]SM2 - DECC Scenario 1 equiv'!O18,\n'[1]SM3 - DECC Scenario 2 equiv'!O8+'[1]SM3 - DECC Scenario 2 equiv'!O18,\n'[1]SM4 - DNO Scenario 4 equiv'!O8+'[1]SM4 - DNO Scenario 4 equiv'!O18,\n'[2]M1a - Model inputs'!O8+'[2]M1a - Model inputs'!O18,\n'[2]M1b - Model inputs'!O8+'[2]M1b - Model inputs'!O18,\n'[2]SM1 - DECC Scenario 3 equiv'!O8+'[2]SM1 - DECC Scenario 3 equiv'!O18,\n'[2]SM2 - DECC Scenario 1 equiv'!O8+'[2]SM2 - DECC Scenario 1 equiv'!O18,\n'[2]SM3 - DECC Scenario 2 equiv'!O8+'[2]SM3 - DECC Scenario 2 equiv'!O18,\n'[2]SM4 - DNO Scenario 4 equiv'!O8+'[2]SM4 - DNO Scenario 4 equiv'!O18)","v":27.807007913635879},{"$f":"CHOOSE(view,\n'[1]M1a - Model inputs'!P8+'[1]M1a - Model inputs'!P18,\n'[1]M1b - Model inputs'!P8+'[1]M1b - Model inputs'!P18,\n'[1]SM1 - DECC Scenario 3 equiv'!P8+'[1]SM1 - DECC Scenario 3 equiv'!P18,\n'[1]SM2 - DECC Scenario 1 equiv'!P8+'[1]SM2 - DECC Scenario 1 equiv'!P18,\n'[1]SM3 - DECC Scenario 2 equiv'!P8+'[1]SM3 - DECC Scenario 2 equiv'!P18,\n'[1]SM4 - DNO Scenario 4 equiv'!P8+'[1]SM4 - DNO Scenario 4 equiv'!P18,\n'[2]M1a - Model inputs'!P8+'[2]M1a - Model inputs'!P18,\n'[2]M1b - Model inputs'!P8+'[2]M1b - Model inputs'!P18,\n'[2]SM1 - DECC Scenario 3 equiv'!P8+'[2]SM1 - DECC Scenario 3 equiv'!P18,\n'[2]SM2 - DECC Scenario 1 equiv'!P8+'[2]SM2 - DECC Scenario 1 equiv'!P18,\n'[2]SM3 - DECC Scenario 2 equiv'!P8+'[2]SM3 - DECC Scenario 2 equiv'!P18,\n'[2]SM4 - DNO Scenario 4 equiv'!P8+'[2]SM4 - DNO Scenario 4 equiv'!P18)","v":30.133106520414039},{"$f":"CHOOSE(view,\n'[1]M1a - Model inputs'!Q8+'[1]M1a - Model inputs'!Q18,\n'[1]M1b - Model inputs'!Q8+'[1]M1b - Model inputs'!Q18,\n'[1]SM1 - DECC Scenario 3 equiv'!Q8+'[1]SM1 - DECC Scenario 3 equiv'!Q18,\n'[1]SM2 - DECC Scenario 1 equiv'!Q8+'[1]SM2 - DECC Scenario 1 equiv'!Q18,\n'[1]SM3 - DECC Scenario 2 equiv'!Q8+'[1]SM3 - DECC Scenario 2 equiv'!Q18,\n'[1]SM4 - DNO Scenario 4 equiv'!Q8+'[1]SM4 - DNO Scenario 4 equiv'!Q18,\n'[2]M1a - Model inputs'!Q8+'[2]M1a - Model inputs'!Q18,\n'[2]M1b - Model inputs'!Q8+'[2]M1b - Model inputs'!Q18,\n'[2]SM1 - DECC Scenario 3 equiv'!Q8+'[2]SM1 - DECC Scenario 3 equiv'!Q18,\n'[2]SM2 - DECC Scenario 1 equiv'!Q8+'[2]SM2 - DECC Scenario 1 equiv'!Q18,\n'[2]SM3 - DECC Scenario 2 equiv'!Q8+'[2]SM3 - DECC Scenario 2 equiv'!Q18,\n'[2]SM4 - DNO Scenario 4 equiv'!Q8+'[2]SM4 - DNO Scenario 4 equiv'!Q18)","v":27.215907151322639},{"$f":"CHOOSE(view,\n'[1]M1a - Model inputs'!R8+'[1]M1a - Model inputs'!R18,\n'[1]M1b - Model inputs'!R8+'[1]M1b - Model inputs'!R18,\n'[1]SM1 - DECC Scenario 3 equiv'!R8+'[1]SM1 - DECC Scenario 3 equiv'!R18,\n'[1]SM2 - DECC Scenario 1 equiv'!R8+'[1]SM2 - DECC Scenario 1 equiv'!R18,\n'[1]SM3 - DECC Scenario 2 equiv'!R8+'[1]SM3 - DECC Scenario 2 equiv'!R18,\n'[1]SM4 - DNO Scenario 4 equiv'!R8+'[1]SM4 - DNO Scenario 4 equiv'!R18,\n'[2]M1a - Model inputs'!R8+'[2]M1a - Model inputs'!R18,\n'[2]M1b - Model inputs'!R8+'[2]M1b - Model inputs'!R18,\n'[2]SM1 - DECC Scenario 3 equiv'!R8+'[2]SM1 - DECC Scenario 3 equiv'!R18,\n'[2]SM2 - DECC Scenario 1 equiv'!R8+'[2]SM2 - DECC Scenario 1 equiv'!R18,\n'[2]SM3 - DECC Scenario 2 equiv'!R8+'[2]SM3 - DECC Scenario 2 equiv'!R18,\n'[2]SM4 - DNO Scenario 4 equiv'!R8+'[2]SM4 - DNO Scenario 4 equiv'!R18)","v":31.094740057889194},{"$f":"CHOOSE(view,\n'[1]M1a - Model inputs'!S8+'[1]M1a - Model inputs'!S18,\n'[1]M1b - Model inputs'!S8+'[1]M1b - Model inputs'!S18,\n'[1]SM1 - DECC Scenario 3 equiv'!S8+'[1]SM1 - DECC Scenario 3 equiv'!S18,\n'[1]SM2 - DECC Scenario 1 equiv'!S8+'[1]SM2 - DECC Scenario 1 equiv'!S18,\n'[1]SM3 - DECC Scenario 2 equiv'!S8+'[1]SM3 - DECC Scenario 2 equiv'!S18,\n'[1]SM4 - DNO Scenario 4 equiv'!S8+'[1]SM4 - DNO Scenario 4 equiv'!S18,\n'[2]M1a - Model inputs'!S8+'[2]M1a - Model inputs'!S18,\n'[2]M1b - Model inputs'!S8+'[2]M1b - Model inputs'!S18,\n'[2]SM1 - DECC Scenario 3 equiv'!S8+'[2]SM1 - DECC Scenario 3 equiv'!S18,\n'[2]SM2 - DECC Scenario 1 equiv'!S8+'[2]SM2 - DECC Scenario 1 equiv'!S18,\n'[2]SM3 - DECC Scenario 2 equiv'!S8+'[2]SM3 - DECC Scenario 2 equiv'!S18,\n'[2]SM4 - DNO Scenario 4 equiv'!S8+'[2]SM4 - DNO Scenario 4 equiv'!S18)","v":35.256453582127911}]
[null,null,null,null,{"$f":"Input!E93","v":"Non-variant allowed non-load related capex - asset replacement"},null,"£m 12/13 prices",null,null,null,null,null,null,null,null,null,null,null,null,null,null,null,null,null,null,null,null,null,null,null,null,null,null,null,null,{"$f":"CHOOSE(view,\n'[1]M1a - Model inputs'!L9+'[1]M1a - Model inputs'!L19,\n'[1]M1b - Model inputs'!L9+'[1]M1b - Model inputs'!L19,\n'[1]SM1 - DECC Scenario 3 equiv'!L9+'[1]SM1 - DECC Scenario 3 equiv'!L19,\n'[1]SM2 - DECC Scenario 1 equiv'!L9+'[1]SM2 - DECC Scenario 1 equiv'!L19,\n'[1]SM3 - DECC Scenario 2 equiv'!L9+'[1]SM3 - DECC Scenario 2 equiv'!L19,\n'[1]SM4 - DNO Scenario 4 equiv'!L9+'[1]SM4 - DNO Scenario 4 equiv'!L19,\n'[2]M1a - Model inputs'!L9+'[2]M1a - Model inputs'!L19,\n'[2]M1b - Model inputs'!L9+'[2]M1b - Model inputs'!L19,\n'[2]SM1 - DECC Scenario 3 equiv'!L9+'[2]SM1 - DECC Scenario 3 equiv'!L19,\n'[2]SM2 - DECC Scenario 1 equiv'!L9+'[2]SM2 - DECC Scenario 1 equiv'!L19,\n'[2]SM3 - DECC Scenario 2 equiv'!L9+'[2]SM3 - DECC Scenario 2 equiv'!L19,\n'[2]SM4 - DNO Scenario 4 equiv'!L9+'[2]SM4 - DNO Scenario 4 equiv'!L19)","v":83.539292937835157},{"$f":"CHOOSE(view,\n'[1]M1a - Model inputs'!M9+'[1]M1a - Model inputs'!M19,\n'[1]M1b - Model inputs'!M9+'[1]M1b - Model inputs'!M19,\n'[1]SM1 - DECC Scenario 3 equiv'!M9+'[1]SM1 - DECC Scenario 3 equiv'!M19,\n'[1]SM2 - DECC Scenario 1 equiv'!M9+'[1]SM2 - DECC Scenario 1 equiv'!M19,\n'[1]SM3 - DECC Scenario 2 equiv'!M9+'[1]SM3 - DECC Scenario 2 equiv'!M19,\n'[1]SM4 - DNO Scenario 4 equiv'!M9+'[1]SM4 - DNO Scenario 4 equiv'!M19,\n'[2]M1a - Model inputs'!M9+'[2]M1a - Model inputs'!M19,\n'[2]M1b - Model inputs'!M9+'[2]M1b - Model inputs'!M19,\n'[2]SM1 - DECC Scenario 3 equiv'!M9+'[2]SM1 - DECC Scenario 3 equiv'!M19,\n'[2]SM2 - DECC Scenario 1 equiv'!M9+'[2]SM2 - DECC Scenario 1 equiv'!M19,\n'[2]SM3 - DECC Scenario 2 equiv'!M9+'[2]SM3 - DECC Scenario 2 equiv'!M19,\n'[2]SM4 - DNO Scenario 4 equiv'!M9+'[2]SM4 - DNO Scenario 4 equiv'!M19)","v":84.462413912991479},{"$f":"CHOOSE(view,\n'[1]M1a - Model inputs'!N9+'[1]M1a - Model inputs'!N19,\n'[1]M1b - Model inputs'!N9+'[1]M1b - Model inputs'!N19,\n'[1]SM1 - DECC Scenario 3 equiv'!N9+'[1]SM1 - DECC Scenario 3 equiv'!N19,\n'[1]SM2 - DECC Scenario 1 equiv'!N9+'[1]SM2 - DECC Scenario 1 equiv'!N19,\n'[1]SM3 - DECC Scenario 2 equiv'!N9+'[1]SM3 - DECC Scenario 2 equiv'!N19,\n'[1]SM4 - DNO Scenario 4 equiv'!N9+'[1]SM4 - DNO Scenario 4 equiv'!N19,\n'[2]M1a - Model inputs'!N9+'[2]M1a - Model inputs'!N19,\n'[2]M1b - Model inputs'!N9+'[2]M1b - Model inputs'!N19,\n'[2]SM1 - DECC Scenario 3 equiv'!N9+'[2]SM1 - DECC Scenario 3 equiv'!N19,\n'[2]SM2 - DECC Scenario 1 equiv'!N9+'[2]SM2 - DECC Scenario 1 equiv'!N19,\n'[2]SM3 - DECC Scenario 2 equiv'!N9+'[2]SM3 - DECC Scenario 2 equiv'!N19,\n'[2]SM4 - DNO Scenario 4 equiv'!N9+'[2]SM4 - DNO Scenario 4 equiv'!N19)","v":83.940473575451648},{"$f":"CHOOSE(view,\n'[1]M1a - Model inputs'!O9+'[1]M1a - Model inputs'!O19,\n'[1]M1b - Model inputs'!O9+'[1]M1b - Model inputs'!O19,\n'[1]SM1 - DECC Scenario 3 equiv'!O9+'[1]SM1 - DECC Scenario 3 equiv'!O19,\n'[1]SM2 - DECC Scenario 1 equiv'!O9+'[1]SM2 - DECC Scenario 1 equiv'!O19,\n'[1]SM3 - DECC Scenario 2 equiv'!O9+'[1]SM3 - DECC Scenario 2 equiv'!O19,\n'[1]SM4 - DNO Scenario 4 equiv'!O9+'[1]SM4 - DNO Scenario 4 equiv'!O19,\n'[2]M1a - Model inputs'!O9+'[2]M1a - Model inputs'!O19,\n'[2]M1b - Model inputs'!O9+'[2]M1b - Model inputs'!O19,\n'[2]SM1 - DECC Scenario 3 equiv'!O9+'[2]SM1 - DECC Scenario 3 equiv'!O19,\n'[2]SM2 - DECC Scenario 1 equiv'!O9+'[2]SM2 - DECC Scenario 1 equiv'!O19,\n'[2]SM3 - DECC Scenario 2 equiv'!O9+'[2]SM3 - DECC Scenario 2 equiv'!O19,\n'[2]SM4 - DNO Scenario 4 equiv'!O9+'[2]SM4 - DNO Scenario 4 equiv'!O19)","v":85.914531508346371},{"$f":"CHOOSE(view,\n'[1]M1a - Model inputs'!P9+'[1]M1a - Model inputs'!P19,\n'[1]M1b - Model inputs'!P9+'[1]M1b - Model inputs'!P19,\n'[1]SM1 - DECC Scenario 3 equiv'!P9+'[1]SM1 - DECC Scenario 3 equiv'!P19,\n'[1]SM2 - DECC Scenario 1 equiv'!P9+'[1]SM2 - DECC Scenario 1 equiv'!P19,\n'[1]SM3 - DECC Scenario 2 equiv'!P9+'[1]SM3 - DECC Scenario 2 equiv'!P19,\n'[1]SM4 - DNO Scenario 4 equiv'!P9+'[1]SM4 - DNO Scenario 4 equiv'!P19,\n'[2]M1a - Model inputs'!P9+'[2]M1a - Model inputs'!P19,\n'[2]M1b - Model inputs'!P9+'[2]M1b - Model inputs'!P19,\n'[2]SM1 - DECC Scenario 3 equiv'!P9+'[2]SM1 - DECC Scenario 3 equiv'!P19,\n'[2]SM2 - DECC Scenario 1 equiv'!P9+'[2]SM2 - DECC Scenario 1 equiv'!P19,\n'[2]SM3 - DECC Scenario 2 equiv'!P9+'[2]SM3 - DECC Scenario 2 equiv'!P19,\n'[2]SM4 - DNO Scenario 4 equiv'!P9+'[2]SM4 - DNO Scenario 4 equiv'!P19)","v":86.543054610358652},{"$f":"CHOOSE(view,\n'[1]M1a - Model inputs'!Q9+'[1]M1a - Model inputs'!Q19,\n'[1]M1b - Model inputs'!Q9+'[1]M1b - Model inputs'!Q19,\n'[1]SM1 - DECC Scenario 3 equiv'!Q9+'[1]SM1 - DECC Scenario 3 equiv'!Q19,\n'[1]SM2 - DECC Scenario 1 equiv'!Q9+'[1]SM2 - DECC Scenario 1 equiv'!Q19,\n'[1]SM3 - DECC Scenario 2 equiv'!Q9+'[1]SM3 - DECC Scenario 2 equiv'!Q19,\n'[1]SM4 - DNO Scenario 4 equiv'!Q9+'[1]SM4 - DNO Scenario 4 equiv'!Q19,\n'[2]M1a - Model inputs'!Q9+'[2]M1a - Model inputs'!Q19,\n'[2]M1b - Model inputs'!Q9+'[2]M1b - Model inputs'!Q19,\n'[2]SM1 - DECC Scenario 3 equiv'!Q9+'[2]SM1 - DECC Scenario 3 equiv'!Q19,\n'[2]SM2 - DECC Scenario 1 equiv'!Q9+'[2]SM2 - DECC Scenario 1 equiv'!Q19,\n'[2]SM3 - DECC Scenario 2 equiv'!Q9+'[2]SM3 - DECC Scenario 2 equiv'!Q19,\n'[2]SM4 - DNO Scenario 4 equiv'!Q9+'[2]SM4 - DNO Scenario 4 equiv'!Q19)","v":92.151771756131083},{"$f":"CHOOSE(view,\n'[1]M1a - Model inputs'!R9+'[1]M1a - Model inputs'!R19,\n'[1]M1b - Model inputs'!R9+'[1]M1b - Model inputs'!R19,\n'[1]SM1 - DECC Scenario 3 equiv'!R9+'[1]SM1 - DECC Scenario 3 equiv'!R19,\n'[1]SM2 - DECC Scenario 1 equiv'!R9+'[1]SM2 - DECC Scenario 1 equiv'!R19,\n'[1]SM3 - DECC Scenario 2 equiv'!R9+'[1]SM3 - DECC Scenario 2 equiv'!R19,\n'[1]SM4 - DNO Scenario 4 equiv'!R9+'[1]SM4 - DNO Scenario 4 equiv'!R19,\n'[2]M1a - Model inputs'!R9+'[2]M1a - Model inputs'!R19,\n'[2]M1b - Model inputs'!R9+'[2]M1b - Model inputs'!R19,\n'[2]SM1 - DECC Scenario 3 equiv'!R9+'[2]SM1 - DECC Scenario 3 equiv'!R19,\n'[2]SM2 - DECC Scenario 1 equiv'!R9+'[2]SM2 - DECC Scenario 1 equiv'!R19,\n'[2]SM3 - DECC Scenario 2 equiv'!R9+'[2]SM3 - DECC Scenario 2 equiv'!R19,\n'[2]SM4 - DNO Scenario 4 equiv'!R9+'[2]SM4 - DNO Scenario 4 equiv'!R19)","v":89.147234457493383},{"$f":"CHOOSE(view,\n'[1]M1a - Model inputs'!S9+'[1]M1a - Model inputs'!S19,\n'[1]M1b - Model inputs'!S9+'[1]M1b - Model inputs'!S19,\n'[1]SM1 - DECC Scenario 3 equiv'!S9+'[1]SM1 - DECC Scenario 3 equiv'!S19,\n'[1]SM2 - DECC Scenario 1 equiv'!S9+'[1]SM2 - DECC Scenario 1 equiv'!S19,\n'[1]SM3 - DECC Scenario 2 equiv'!S9+'[1]SM3 - DECC Scenario 2 equiv'!S19,\n'[1]SM4 - DNO Scenario 4 equiv'!S9+'[1]SM4 - DNO Scenario 4 equiv'!S19,\n'[2]M1a - Model inputs'!S9+'[2]M1a - Model inputs'!S19,\n'[2]M1b - Model inputs'!S9+'[2]M1b - Model inputs'!S19,\n'[2]SM1 - DECC Scenario 3 equiv'!S9+'[2]SM1 - DECC Scenario 3 equiv'!S19,\n'[2]SM2 - DECC Scenario 1 equiv'!S9+'[2]SM2 - DECC Scenario 1 equiv'!S19,\n'[2]SM3 - DECC Scenario 2 equiv'!S9+'[2]SM3 - DECC Scenario 2 equiv'!S19,\n'[2]SM4 - DNO Scenario 4 equiv'!S9+'[2]SM4 - DNO Scenario 4 equiv'!S19)","v":89.232184326821397}]
[null,null,null,null,{"$f":"Input!E94","v":"Non-variant allowed non-load related capex - other"},null,"£m 12/13 prices",null,null,null,null,null,null,null,null,null,null,null,null,null,null,null,null,null,null,null,null,null,null,null,null,null,null,null,null,{"$f":"CHOOSE(view,\n'[1]M1a - Model inputs'!L10+'[1]M1a - Model inputs'!L20,\n'[1]M1b - Model inputs'!L10+'[1]M1b - Model inputs'!L20,\n'[1]SM1 - DECC Scenario 3 equiv'!L10+'[1]SM1 - DECC Scenario 3 equiv'!L20,\n'[1]SM2 - DECC Scenario 1 equiv'!L10+'[1]SM2 - DECC Scenario 1 equiv'!L20,\n'[1]SM3 - DECC Scenario 2 equiv'!L10+'[1]SM3 - DECC Scenario 2 equiv'!L20,\n'[1]SM4 - DNO Scenario 4 equiv'!L10+'[1]SM4 - DNO Scenario 4 equiv'!L20,\n'[2]M1a - Model inputs'!L10+'[2]M1a - Model inputs'!L20,\n'[2]M1b - Model inputs'!L10+'[2]M1b - Model inputs'!L20,\n'[2]SM1 - DECC Scenario 3 equiv'!L10+'[2]SM1 - DECC Scenario 3 equiv'!L20,\n'[2]SM2 - DECC Scenario 1 equiv'!L10+'[2]SM2 - DECC Scenario 1 equiv'!L20,\n'[2]SM3 - DECC Scenario 2 equiv'!L10+'[2]SM3 - DECC Scenario 2 equiv'!L20,\n'[2]SM4 - DNO Scenario 4 equiv'!L10+'[2]SM4 - DNO Scenario 4 equiv'!L20)","v":21.681489823659941},{"$f":"CHOOSE(view,\n'[1]M1a - Model inputs'!M10+'[1]M1a - Model inputs'!M20,\n'[1]M1b - Model inputs'!M10+'[1]M1b - Model inputs'!M20,\n'[1]SM1 - DECC Scenario 3 equiv'!M10+'[1]SM1 - DECC Scenario 3 equiv'!M20,\n'[1]SM2 - DECC Scenario 1 equiv'!M10+'[1]SM2 - DECC Scenario 1 equiv'!M20,\n'[1]SM3 - DECC Scenario 2 equiv'!M10+'[1]SM3 - DECC Scenario 2 equiv'!M20,\n'[1]SM4 - DNO Scenario 4 equiv'!M10+'[1]SM4 - DNO Scenario 4 equiv'!M20,\n'[2]M1a - Model inputs'!M10+'[2]M1a - Model inputs'!M20,\n'[2]M1b - Model inputs'!M10+'[2]M1b - Model inputs'!M20,\n'[2]SM1 - DECC Scenario 3 equiv'!M10+'[2]SM1 - DECC Scenario 3 equiv'!M20,\n'[2]SM2 - DECC Scenario 1 equiv'!M10+'[2]SM2 - DECC Scenario 1 equiv'!M20,\n'[2]SM3 - DECC Scenario 2 equiv'!M10+'[2]SM3 - DECC Scenario 2 equiv'!M20,\n'[2]SM4 - DNO Scenario 4 equiv'!M10+'[2]SM4 - DNO Scenario 4 equiv'!M20)","v":20.080610881577943},{"$f":"CHOOSE(view,\n'[1]M1a - Model inputs'!N10+'[1]M1a - Model inputs'!N20,\n'[1]M1b - Model inputs'!N10+'[1]M1b - Model inputs'!N20,\n'[1]SM1 - DECC Scenario 3 equiv'!N10+'[1]SM1 - DECC Scenario 3 equiv'!N20,\n'[1]SM2 - DECC Scenario 1 equiv'!N10+'[1]SM2 - DECC Scenario 1 equiv'!N20,\n'[1]SM3 - DECC Scenario 2 equiv'!N10+'[1]SM3 - DECC Scenario 2 equiv'!N20,\n'[1]SM4 - DNO Scenario 4 equiv'!N10+'[1]SM4 - DNO Scenario 4 equiv'!N20,\n'[2]M1a - Model inputs'!N10+'[2]M1a - Model inputs'!N20,\n'[2]M1b - Model inputs'!N10+'[2]M1b - Model inputs'!N20,\n'[2]SM1 - DECC Scenario 3 equiv'!N10+'[2]SM1 - DECC Scenario 3 equiv'!N20,\n'[2]SM2 - DECC Scenario 1 equiv'!N10+'[2]SM2 - DECC Scenario 1 equiv'!N20,\n'[2]SM3 - DECC Scenario 2 equiv'!N10+'[2]SM3 - DECC Scenario 2 equiv'!N20,\n'[2]SM4 - DNO Scenario 4 equiv'!N10+'[2]SM4 - DNO Scenario 4 equiv'!N20)","v":14.227605114554947},{"$f":"CHOOSE(view,\n'[1]M1a - Model inputs'!O10+'[1]M1a - Model inputs'!O20,\n'[1]M1b - Model inputs'!O10+'[1]M1b - Model inputs'!O20,\n'[1]SM1 - DECC Scenario 3 equiv'!O10+'[1]SM1 - DECC Scenario 3 equiv'!O20,\n'[1]SM2 - DECC Scenario 1 equiv'!O10+'[1]SM2 - DECC Scenario 1 equiv'!O20,\n'[1]SM3 - DECC Scenario 2 equiv'!O10+'[1]SM3 - DECC Scenario 2 equiv'!O20,\n'[1]SM4 - DNO Scenario 4 equiv'!O10+'[1]SM4 - DNO Scenario 4 equiv'!O20,\n'[2]M1a - Model inputs'!O10+'[2]M1a - Model inputs'!O20,\n'[2]M1b - Model inputs'!O10+'[2]M1b - Model inputs'!O20,\n'[2]SM1 - DECC Scenario 3 equiv'!O10+'[2]SM1 - DECC Scenario 3 equiv'!O20,\n'[2]SM2 - DECC Scenario 1 equiv'!O10+'[2]SM2 - DECC Scenario 1 equiv'!O20,\n'[2]SM3 - DECC Scenario 2 equiv'!O10+'[2]SM3 - DECC Scenario 2 equiv'!O20,\n'[2]SM4 - DNO Scenario 4 equiv'!O10+'[2]SM4 - DNO Scenario 4 equiv'!O20)","v":11.691849278081481},{"$f":"CHOOSE(view,\n'[1]M1a - Model inputs'!P10+'[1]M1a - Model inputs'!P20,\n'[1]M1b - Model inputs'!P10+'[1]M1b - Model inputs'!P20,\n'[1]SM1 - DECC Scenario 3 equiv'!P10+'[1]SM1 - DECC Scenario 3 equiv'!P20,\n'[1]SM2 - DECC Scenario 1 equiv'!P10+'[1]SM2 - DECC Scenario 1 equiv'!P20,\n'[1]SM3 - DECC Scenario 2 equiv'!P10+'[1]SM3 - DECC Scenario 2 equiv'!P20,\n'[1]SM4 - DNO Scenario 4 equiv'!P10+'[1]SM4 - DNO Scenario 4 equiv'!P20,\n'[2]M1a - Model inputs'!P10+'[2]M1a - Model inputs'!P20,\n'[2]M1b - Model inputs'!P10+'[2]M1b - Model inputs'!P20,\n'[2]SM1 - DECC Scenario 3 equiv'!P10+'[2]SM1 - DECC Scenario 3 equiv'!P20,\n'[2]SM2 - DECC Scenario 1 equiv'!P10+'[2]SM2 - DECC Scenario 1 equiv'!P20,\n'[2]SM3 - DECC Scenario 2 equiv'!P10+'[2]SM3 - DECC Scenario 2 equiv'!P20,\n'[2]SM4 - DNO Scenario 4 equiv'!P10+'[2]SM4 - DNO Scenario 4 equiv'!P20)","v":15.637769585408991},{"$f":"CHOOSE(view,\n'[1]M1a - Model inputs'!Q10+'[1]M1a - Model inputs'!Q20,\n'[1]M1b - Model inputs'!Q10+'[1]M1b - Model inputs'!Q20,\n'[1]SM1 - DECC Scenario 3 equiv'!Q10+'[1]SM1 - DECC Scenario 3 equiv'!Q20,\n'[1]SM2 - DECC Scenario 1 equiv'!Q10+'[1]SM2 - DECC Scenario 1 equiv'!Q20,\n'[1]SM3 - DECC Scenario 2 equiv'!Q10+'[1]SM3 - DECC Scenario 2 equiv'!Q20,\n'[1]SM4 - DNO Scenario 4 equiv'!Q10+'[1]SM4 - DNO Scenario 4 equiv'!Q20,\n'[2]M1a - Model inputs'!Q10+'[2]M1a - Model inputs'!Q20,\n'[2]M1b - Model inputs'!Q10+'[2]M1b - Model inputs'!Q20,\n'[2]SM1 - DECC Scenario 3 equiv'!Q10+'[2]SM1 - DECC Scenario 3 equiv'!Q20,\n'[2]SM2 - DECC Scenario 1 equiv'!Q10+'[2]SM2 - DECC Scenario 1 equiv'!Q20,\n'[2]SM3 - DECC Scenario 2 equiv'!Q10+'[2]SM3 - DECC Scenario 2 equiv'!Q20,\n'[2]SM4 - DNO Scenario 4 equiv'!Q10+'[2]SM4 - DNO Scenario 4 equiv'!Q20)","v":17.624468229121806},{"$f":"CHOOSE(view,\n'[1]M1a - Model inputs'!R10+'[1]M1a - Model inputs'!R20,\n'[1]M1b - Model inputs'!R10+'[1]M1b - Model inputs'!R20,\n'[1]SM1 - DECC Scenario 3 equiv'!R10+'[1]SM1 - DECC Scenario 3 equiv'!R20,\n'[1]SM2 - DECC Scenario 1 equiv'!R10+'[1]SM2 - DECC Scenario 1 equiv'!R20,\n'[1]SM3 - DECC Scenario 2 equiv'!R10+'[1]SM3 - DECC Scenario 2 equiv'!R20,\n'[1]SM4 - DNO Scenario 4 equiv'!R10+'[1]SM4 - DNO Scenario 4 equiv'!R20,\n'[2]M1a - Model inputs'!R10+'[2]M1a - Model inputs'!R20,\n'[2]M1b - Model inputs'!R10+'[2]M1b - Model inputs'!R20,\n'[2]SM1 - DECC Scenario 3 equiv'!R10+'[2]SM1 - DECC Scenario 3 equiv'!R20,\n'[2]SM2 - DECC Scenario 1 equiv'!R10+'[2]SM2 - DECC Scenario 1 equiv'!R20,\n'[2]SM3 - DECC Scenario 2 equiv'!R10+'[2]SM3 - DECC Scenario 2 equiv'!R20,\n'[2]SM4 - DNO Scenario 4 equiv'!R10+'[2]SM4 - DNO Scenario 4 equiv'!R20)","v":15.201799738944159},{"$f":"CHOOSE(view,\n'[1]M1a - Model inputs'!S10+'[1]M1a - Model inputs'!S20,\n'[1]M1b - Model inputs'!S10+'[1]M1b - Model inputs'!S20,\n'[1]SM1 - DECC Scenario 3 equiv'!S10+'[1]SM1 - DECC Scenario 3 equiv'!S20,\n'[1]SM2 - DECC Scenario 1 equiv'!S10+'[1]SM2 - DECC Scenario 1 equiv'!S20,\n'[1]SM3 - DECC Scenario 2 equiv'!S10+'[1]SM3 - DECC Scenario 2 equiv'!S20,\n'[1]SM4 - DNO Scenario 4 equiv'!S10+'[1]SM4 - DNO Scenario 4 equiv'!S20,\n'[2]M1a - Model inputs'!S10+'[2]M1a - Model inputs'!S20,\n'[2]M1b - Model inputs'!S10+'[2]M1b - Model inputs'!S20,\n'[2]SM1 - DECC Scenario 3 equiv'!S10+'[2]SM1 - DECC Scenario 3 equiv'!S20,\n'[2]SM2 - DECC Scenario 1 equiv'!S10+'[2]SM2 - DECC Scenario 1 equiv'!S20,\n'[2]SM3 - DECC Scenario 2 equiv'!S10+'[2]SM3 - DECC Scenario 2 equiv'!S20,\n'[2]SM4 - DNO Scenario 4 equiv'!S10+'[2]SM4 - DNO Scenario 4 equiv'!S20)","v":13.057595166409236}]
[null,null,null,null,{"$f":"Input!E95","v":"Non-variant allowed faults"},null,"£m 12/13 prices",null,null,null,null,null,null,null,null,null,null,null,null,null,null,null,null,null,null,null,null,null,null,null,null,null,null,null,null,{"$f":"CHOOSE(view,\n'[1]M1a - Model inputs'!L11+'[1]M1a - Model inputs'!L21,\n'[1]M1b - Model inputs'!L11+'[1]M1b - Model inputs'!L21,\n'[1]SM1 - DECC Scenario 3 equiv'!L11+'[1]SM1 - DECC Scenario 3 equiv'!L21,\n'[1]SM2 - DECC Scenario 1 equiv'!L11+'[1]SM2 - DECC Scenario 1 equiv'!L21,\n'[1]SM3 - DECC Scenario 2 equiv'!L11+'[1]SM3 - DECC Scenario 2 equiv'!L21,\n'[1]SM4 - DNO Scenario 4 equiv'!L11+'[1]SM4 - DNO Scenario 4 equiv'!L21,\n'[2]M1a - Model inputs'!L11+'[2]M1a - Model inputs'!L21,\n'[2]M1b - Model inputs'!L11+'[2]M1b - Model inputs'!L21,\n'[2]SM1 - DECC Scenario 3 equiv'!L11+'[2]SM1 - DECC Scenario 3 equiv'!L21,\n'[2]SM2 - DECC Scenario 1 equiv'!L11+'[2]SM2 - DECC Scenario 1 equiv'!L21,\n'[2]SM3 - DECC Scenario 2 equiv'!L11+'[2]SM3 - DECC Scenario 2 equiv'!L21,\n'[2]SM4 - DNO Scenario 4 equiv'!L11+'[2]SM4 - DNO Scenario 4 equiv'!L21)","v":29.713184651258917},{"$f":"CHOOSE(view,\n'[1]M1a - Model inputs'!M11+'[1]M1a - Model inputs'!M21,\n'[1]M1b - Model inputs'!M11+'[1]M1b - Model inputs'!M21,\n'[1]SM1 - DECC Scenario 3 equiv'!M11+'[1]SM1 - DECC Scenario 3 equiv'!M21,\n'[1]SM2 - DECC Scenario 1 equiv'!M11+'[1]SM2 - DECC Scenario 1 equiv'!M21,\n'[1]SM3 - DECC Scenario 2 equiv'!M11+'[1]SM3 - DECC Scenario 2 equiv'!M21,\n'[1]SM4 - DNO Scenario 4 equiv'!M11+'[1]SM4 - DNO Scenario 4 equiv'!M21,\n'[2]M1a - Model inputs'!M11+'[2]M1a - Model inputs'!M21,\n'[2]M1b - Model inputs'!M11+'[2]M1b - Model inputs'!M21,\n'[2]SM1 - DECC Scenario 3 equiv'!M11+'[2]SM1 - DECC Scenario 3 equiv'!M21,\n'[2]SM2 - DECC Scenario 1 equiv'!M11+'[2]SM2 - DECC Scenario 1 equiv'!M21,\n'[2]SM3 - DECC Scenario 2 equiv'!M11+'[2]SM3 - DECC Scenario 2 equiv'!M21,\n'[2]SM4 - DNO Scenario 4 equiv'!M11+'[2]SM4 - DNO Scenario 4 equiv'!M21)","v":29.630682848331062},{"$f":"CHOOSE(view,\n'[1]M1a - Model inputs'!N11+'[1]M1a - Model inputs'!N21,\n'[1]M1b - Model inputs'!N11+'[1]M1b - Model inputs'!N21,\n'[1]SM1 - DECC Scenario 3 equiv'!N11+'[1]SM1 - DECC Scenario 3 equiv'!N21,\n'[1]SM2 - DECC Scenario 1 equiv'!N11+'[1]SM2 - DECC Scenario 1 equiv'!N21,\n'[1]SM3 - DECC Scenario 2 equiv'!N11+'[1]SM3 - DECC Scenario 2 equiv'!N21,\n'[1]SM4 - DNO Scenario 4 equiv'!N11+'[1]SM4 - DNO Scenario 4 equiv'!N21,\n'[2]M1a - Model inputs'!N11+'[2]M1a - Model inputs'!N21,\n'[2]M1b - Model inputs'!N11+'[2]M1b - Model inputs'!N21,\n'[2]SM1 - DECC Scenario 3 equiv'!N11+'[2]SM1 - DECC Scenario 3 equiv'!N21,\n'[2]SM2 - DECC Scenario 1 equiv'!N11+'[2]SM2 - DECC Scenario 1 equiv'!N21,\n'[2]SM3 - DECC Scenario 2 equiv'!N11+'[2]SM3 - DECC Scenario 2 equiv'!N21,\n'[2]SM4 - DNO Scenario 4 equiv'!N11+'[2]SM4 - DNO Scenario 4 equiv'!N21)","v":29.43749657570455},{"$f":"CHOOSE(view,\n'[1]M1a - Model inputs'!O11+'[1]M1a - Model inputs'!O21,\n'[1]M1b - Model inputs'!O11+'[1]M1b - Model inputs'!O21,\n'[1]SM1 - DECC Scenario 3 equiv'!O11+'[1]SM1 - DECC Scenario 3 equiv'!O21,\n'[1]SM2 - DECC Scenario 1 equiv'!O11+'[1]SM2 - DECC Scenario 1 equiv'!O21,\n'[1]SM3 - DECC Scenario 2 equiv'!O11+'[1]SM3 - DECC Scenario 2 equiv'!O21,\n'[1]SM4 - DNO Scenario 4 equiv'!O11+'[1]SM4 - DNO Scenario 4 equiv'!O21,\n'[2]M1a - Model inputs'!O11+'[2]M1a - Model inputs'!O21,\n'[2]M1b - Model inputs'!O11+'[2]M1b - Model inputs'!O21,\n'[2]SM1 - DECC Scenario 3 equiv'!O11+'[2]SM1 - DECC Scenario 3 equiv'!O21,\n'[2]SM2 - DECC Scenario 1 equiv'!O11+'[2]SM2 - DECC Scenario 1 equiv'!O21,\n'[2]SM3 - DECC Scenario 2 equiv'!O11+'[2]SM3 - DECC Scenario 2 equiv'!O21,\n'[2]SM4 - DNO Scenario 4 equiv'!O11+'[2]SM4 - DNO Scenario 4 equiv'!O21)","v":29.37244065285628},{"$f":"CHOOSE(view,\n'[1]M1a - Model inputs'!P11+'[1]M1a - Model inputs'!P21,\n'[1]M1b - Model inputs'!P11+'[1]M1b - Model inputs'!P21,\n'[1]SM1 - DECC Scenario 3 equiv'!P11+'[1]SM1 - DECC Scenario 3 equiv'!P21,\n'[1]SM2 - DECC Scenario 1 equiv'!P11+'[1]SM2 - DECC Scenario 1 equiv'!P21,\n'[1]SM3 - DECC Scenario 2 equiv'!P11+'[1]SM3 - DECC Scenario 2 equiv'!P21,\n'[1]SM4 - DNO Scenario 4 equiv'!P11+'[1]SM4 - DNO Scenario 4 equiv'!P21,\n'[2]M1a - Model inputs'!P11+'[2]M1a - Model inputs'!P21,\n'[2]M1b - Model inputs'!P11+'[2]M1b - Model inputs'!P21,\n'[2]SM1 - DECC Scenario 3 equiv'!P11+'[2]SM1 - DECC Scenario 3 equiv'!P21,\n'[2]SM2 - DECC Scenario 1 equiv'!P11+'[2]SM2 - DECC Scenario 1 equiv'!P21,\n'[2]SM3 - DECC Scenario 2 equiv'!P11+'[2]SM3 - DECC Scenario 2 equiv'!P21,\n'[2]SM4 - DNO Scenario 4 equiv'!P11+'[2]SM4 - DNO Scenario 4 equiv'!P21)","v":29.305382056594691},{"$f":"CHOOSE(view,\n'[1]M1a - Model inputs'!Q11+'[1]M1a - Model inputs'!Q21,\n'[1]M1b - Model inputs'!Q11+'[1]M1b - Model inputs'!Q21,\n'[1]SM1 - DECC Scenario 3 equiv'!Q11+'[1]SM1 - DECC Scenario 3 equiv'!Q21,\n'[1]SM2 - DECC Scenario 1 equiv'!Q11+'[1]SM2 - DECC Scenario 1 equiv'!Q21,\n'[1]SM3 - DECC Scenario 2 equiv'!Q11+'[1]SM3 - DECC Scenario 2 equiv'!Q21,\n'[1]SM4 - DNO Scenario 4 equiv'!Q11+'[1]SM4 - DNO Scenario 4 equiv'!Q21,\n'[2]M1a - Model inputs'!Q11+'[2]M1a - Model inputs'!Q21,\n'[2]M1b - Model inputs'!Q11+'[2]M1b - Model inputs'!Q21,\n'[2]SM1 - DECC Scenario 3 equiv'!Q11+'[2]SM1 - DECC Scenario 3 equiv'!Q21,\n'[2]SM2 - DECC Scenario 1 equiv'!Q11+'[2]SM2 - DECC Scenario 1 equiv'!Q21,\n'[2]SM3 - DECC Scenario 2 equiv'!Q11+'[2]SM3 - DECC Scenario 2 equiv'!Q21,\n'[2]SM4 - DNO Scenario 4 equiv'!Q11+'[2]SM4 - DNO Scenario 4 equiv'!Q21)","v":29.356379835683697},{"$f":"CHOOSE(view,\n'[1]M1a - Model inputs'!R11+'[1]M1a - Model inputs'!R21,\n'[1]M1b - Model inputs'!R11+'[1]M1b - Model inputs'!R21,\n'[1]SM1 - DECC Scenario 3 equiv'!R11+'[1]SM1 - DECC Scenario 3 equiv'!R21,\n'[1]SM2 - DECC Scenario 1 equiv'!R11+'[1]SM2 - DECC Scenario 1 equiv'!R21,\n'[1]SM3 - DECC Scenario 2 equiv'!R11+'[1]SM3 - DECC Scenario 2 equiv'!R21,\n'[1]SM4 - DNO Scenario 4 equiv'!R11+'[1]SM4 - DNO Scenario 4 equiv'!R21,\n'[2]M1a - Model inputs'!R11+'[2]M1a - Model inputs'!R21,\n'[2]M1b - Model inputs'!R11+'[2]M1b - Model inputs'!R21,\n'[2]SM1 - DECC Scenario 3 equiv'!R11+'[2]SM1 - DECC Scenario 3 equiv'!R21,\n'[2]SM2 - DECC Scenario 1 equiv'!R11+'[2]SM2 - DECC Scenario 1 equiv'!R21,\n'[2]SM3 - DECC Scenario 2 equiv'!R11+'[2]SM3 - DECC Scenario 2 equiv'!R21,\n'[2]SM4 - DNO Scenario 4 equiv'!R11+'[2]SM4 - DNO Scenario 4 equiv'!R21)","v":29.457984386319566},{"$f":"CHOOSE(view,\n'[1]M1a - Model inputs'!S11+'[1]M1a - Model inputs'!S21,\n'[1]M1b - Model inputs'!S11+'[1]M1b - Model inputs'!S21,\n'[1]SM1 - DECC Scenario 3 equiv'!S11+'[1]SM1 - DECC Scenario 3 equiv'!S21,\n'[1]SM2 - DECC Scenario 1 equiv'!S11+'[1]SM2 - DECC Scenario 1 equiv'!S21,\n'[1]SM3 - DECC Scenario 2 equiv'!S11+'[1]SM3 - DECC Scenario 2 equiv'!S21,\n'[1]SM4 - DNO Scenario 4 equiv'!S11+'[1]SM4 - DNO Scenario 4 equiv'!S21,\n'[2]M1a - Model inputs'!S11+'[2]M1a - Model inputs'!S21,\n'[2]M1b - Model inputs'!S11+'[2]M1b - Model inputs'!S21,\n'[2]SM1 - DECC Scenario 3 equiv'!S11+'[2]SM1 - DECC Scenario 3 equiv'!S21,\n'[2]SM2 - DECC Scenario 1 equiv'!S11+'[2]SM2 - DECC Scenario 1 equiv'!S21,\n'[2]SM3 - DECC Scenario 2 equiv'!S11+'[2]SM3 - DECC Scenario 2 equiv'!S21,\n'[2]SM4 - DNO Scenario 4 equiv'!S11+'[2]SM4 - DNO Scenario 4 equiv'!S21)","v":29.549209053400737}]
[null,null,null,null,{"$f":"Input!E96","v":"Non-variant allowed tree cutting"},null,"£m 12/13 prices",null,null,null,null,null,null,null,null,null,null,null,null,null,null,null,null,null,null,null,null,null,null,null,null,null,null,null,null,{"$f":"CHOOSE(view,\n'[1]M1a - Model inputs'!L12+'[1]M1a - Model inputs'!L22,\n'[1]M1b - Model inputs'!L12+'[1]M1b - Model inputs'!L22,\n'[1]SM1 - DECC Scenario 3 equiv'!L12+'[1]SM1 - DECC Scenario 3 equiv'!L22,\n'[1]SM2 - DECC Scenario 1 equiv'!L12+'[1]SM2 - DECC Scenario 1 equiv'!L22,\n'[1]SM3 - DECC Scenario 2 equiv'!L12+'[1]SM3 - DECC Scenario 2 equiv'!L22,\n'[1]SM4 - DNO Scenario 4 equiv'!L12+'[1]SM4 - DNO Scenario 4 equiv'!L22,\n'[2]M1a - Model inputs'!L12+'[2]M1a - Model inputs'!L22,\n'[2]M1b - Model inputs'!L12+'[2]M1b - Model inputs'!L22,\n'[2]SM1 - DECC Scenario 3 equiv'!L12+'[2]SM1 - DECC Scenario 3 equiv'!L22,\n'[2]SM2 - DECC Scenario 1 equiv'!L12+'[2]SM2 - DECC Scenario 1 equiv'!L22,\n'[2]SM3 - DECC Scenario 2 equiv'!L12+'[2]SM3 - DECC Scenario 2 equiv'!L22,\n'[2]SM4 - DNO Scenario 4 equiv'!L12+'[2]SM4 - DNO Scenario 4 equiv'!L22)","v":8.1828742030734372},{"$f":"CHOOSE(view,\n'[1]M1a - Model inputs'!M12+'[1]M1a - Model inputs'!M22,\n'[1]M1b - Model inputs'!M12+'[1]M1b - Model inputs'!M22,\n'[1]SM1 - DECC Scenario 3 equiv'!M12+'[1]SM1 - DECC Scenario 3 equiv'!M22,\n'[1]SM2 - DECC Scenario 1 equiv'!M12+'[1]SM2 - DECC Scenario 1 equiv'!M22,\n'[1]SM3 - DECC Scenario 2 equiv'!M12+'[1]SM3 - DECC Scenario 2 equiv'!M22,\n'[1]SM4 - DNO Scenario 4 equiv'!M12+'[1]SM4 - DNO Scenario 4 equiv'!M22,\n'[2]M1a - Model inputs'!M12+'[2]M1a - Model inputs'!M22,\n'[2]M1b - Model inputs'!M12+'[2]M1b - Model inputs'!M22,\n'[2]SM1 - DECC Scenario 3 equiv'!M12+'[2]SM1 - DECC Scenario 3 equiv'!M22,\n'[2]SM2 - DECC Scenario 1 equiv'!M12+'[2]SM2 - DECC Scenario 1 equiv'!M22,\n'[2]SM3 - DECC Scenario 2 equiv'!M12+'[2]SM3 - DECC Scenario 2 equiv'!M22,\n'[2]SM4 - DNO Scenario 4 equiv'!M12+'[2]SM4 - DNO Scenario 4 equiv'!M22)","v":8.208633246856742},{"$f":"CHOOSE(view,\n'[1]M1a - Model inputs'!N12+'[1]M1a - Model inputs'!N22,\n'[1]M1b - Model inputs'!N12+'[1]M1b - Model inputs'!N22,\n'[1]SM1 - DECC Scenario 3 equiv'!N12+'[1]SM1 - DECC Scenario 3 equiv'!N22,\n'[1]SM2 - DECC Scenario 1 equiv'!N12+'[1]SM2 - DECC Scenario 1 equiv'!N22,\n'[1]SM3 - DECC Scenario 2 equiv'!N12+'[1]SM3 - DECC Scenario 2 equiv'!N22,\n'[1]SM4 - DNO Scenario 4 equiv'!N12+'[1]SM4 - DNO Scenario 4 equiv'!N22,\n'[2]M1a - Model inputs'!N12+'[2]M1a - Model inputs'!N22,\n'[2]M1b - Model inputs'!N12+'[2]M1b - Model inputs'!N22,\n'[2]SM1 - DECC Scenario 3 equiv'!N12+'[2]SM1 - DECC Scenario 3 equiv'!N22,\n'[2]SM2 - DECC Scenario 1 equiv'!N12+'[2]SM2 - DECC Scenario 1 equiv'!N22,\n'[2]SM3 - DECC Scenario 2 equiv'!N12+'[2]SM3 - DECC Scenario 2 equiv'!N22,\n'[2]SM4 - DNO Scenario 4 equiv'!N12+'[2]SM4 - DNO Scenario 4 equiv'!N22)","v":8.2147790048471165},{"$f":"CHOOSE(view,\n'[1]M1a - Model inputs'!O12+'[1]M1a - Model inputs'!O22,\n'[1]M1b - Model inputs'!O12+'[1]M1b - Model inputs'!O22,\n'[1]SM1 - DECC Scenario 3 equiv'!O12+'[1]SM1 - DECC Scenario 3 equiv'!O22,\n'[1]SM2 - DECC Scenario 1 equiv'!O12+'[1]SM2 - DECC Scenario 1 equiv'!O22,\n'[1]SM3 - DECC Scenario 2 equiv'!O12+'[1]SM3 - DECC Scenario 2 equiv'!O22,\n'[1]SM4 - DNO Scenario 4 equiv'!O12+'[1]SM4 - DNO Scenario 4 equiv'!O22,\n'[2]M1a - Model inputs'!O12+'[2]M1a - Model inputs'!O22,\n'[2]M1b - Model inputs'!O12+'[2]M1b - Model inputs'!O22,\n'[2]SM1 - DECC Scenario 3 equiv'!O12+'[2]SM1 - DECC Scenario 3 equiv'!O22,\n'[2]SM2 - DECC Scenario 1 equiv'!O12+'[2]SM2 - DECC Scenario 1 equiv'!O22,\n'[2]SM3 - DECC Scenario 2 equiv'!O12+'[2]SM3 - DECC Scenario 2 equiv'!O22,\n'[2]SM4 - DNO Scenario 4 equiv'!O12+'[2]SM4 - DNO Scenario 4 equiv'!O22)","v":8.2711943632667904},{"$f":"CHOOSE(view,\n'[1]M1a - Model inputs'!P12+'[1]M1a - Model inputs'!P22,\n'[1]M1b - Model inputs'!P12+'[1]M1b - Model inputs'!P22,\n'[1]SM1 - DECC Scenario 3 equiv'!P12+'[1]SM1 - DECC Scenario 3 equiv'!P22,\n'[1]SM2 - DECC Scenario 1 equiv'!P12+'[1]SM2 - DECC Scenario 1 equiv'!P22,\n'[1]SM3 - DECC Scenario 2 equiv'!P12+'[1]SM3 - DECC Scenario 2 equiv'!P22,\n'[1]SM4 - DNO Scenario 4 equiv'!P12+'[1]SM4 - DNO Scenario 4 equiv'!P22,\n'[2]M1a - Model inputs'!P12+'[2]M1a - Model inputs'!P22,\n'[2]M1b - Model inputs'!P12+'[2]M1b - Model inputs'!P22,\n'[2]SM1 - DECC Scenario 3 equiv'!P12+'[2]SM1 - DECC Scenario 3 equiv'!P22,\n'[2]SM2 - DECC Scenario 1 equiv'!P12+'[2]SM2 - DECC Scenario 1 equiv'!P22,\n'[2]SM3 - DECC Scenario 2 equiv'!P12+'[2]SM3 - DECC Scenario 2 equiv'!P22,\n'[2]SM4 - DNO Scenario 4 equiv'!P12+'[2]SM4 - DNO Scenario 4 equiv'!P22)","v":8.3281763807515148},{"$f":"CHOOSE(view,\n'[1]M1a - Model inputs'!Q12+'[1]M1a - Model inputs'!Q22,\n'[1]M1b - Model inputs'!Q12+'[1]M1b - Model inputs'!Q22,\n'[1]SM1 - DECC Scenario 3 equiv'!Q12+'[1]SM1 - DECC Scenario 3 equiv'!Q22,\n'[1]SM2 - DECC Scenario 1 equiv'!Q12+'[1]SM2 - DECC Scenario 1 equiv'!Q22,\n'[1]SM3 - DECC Scenario 2 equiv'!Q12+'[1]SM3 - DECC Scenario 2 equiv'!Q22,\n'[1]SM4 - DNO Scenario 4 equiv'!Q12+'[1]SM4 - DNO Scenario 4 equiv'!Q22,\n'[2]M1a - Model inputs'!Q12+'[2]M1a - Model inputs'!Q22,\n'[2]M1b - Model inputs'!Q12+'[2]M1b - Model inputs'!Q22,\n'[2]SM1 - DECC Scenario 3 equiv'!Q12+'[2]SM1 - DECC Scenario 3 equiv'!Q22,\n'[2]SM2 - DECC Scenario 1 equiv'!Q12+'[2]SM2 - DECC Scenario 1 equiv'!Q22,\n'[2]SM3 - DECC Scenario 2 equiv'!Q12+'[2]SM3 - DECC Scenario 2 equiv'!Q22,\n'[2]SM4 - DNO Scenario 4 equiv'!Q12+'[2]SM4 - DNO Scenario 4 equiv'!Q22)","v":8.3861343080579367},{"$f":"CHOOSE(view,\n'[1]M1a - Model inputs'!R12+'[1]M1a - Model inputs'!R22,\n'[1]M1b - Model inputs'!R12+'[1]M1b - Model inputs'!R22,\n'[1]SM1 - DECC Scenario 3 equiv'!R12+'[1]SM1 - DECC Scenario 3 equiv'!R22,\n'[1]SM2 - DECC Scenario 1 equiv'!R12+'[1]SM2 - DECC Scenario 1 equiv'!R22,\n'[1]SM3 - DECC Scenario 2 equiv'!R12+'[1]SM3 - DECC Scenario 2 equiv'!R22,\n'[1]SM4 - DNO Scenario 4 equiv'!R12+'[1]SM4 - DNO Scenario 4 equiv'!R22,\n'[2]M1a - Model inputs'!R12+'[2]M1a - Model inputs'!R22,\n'[2]M1b - Model inputs'!R12+'[2]M1b - Model inputs'!R22,\n'[2]SM1 - DECC Scenario 3 equiv'!R12+'[2]SM1 - DECC Scenario 3 equiv'!R22,\n'[2]SM2 - DECC Scenario 1 equiv'!R12+'[2]SM2 - DECC Scenario 1 equiv'!R22,\n'[2]SM3 - DECC Scenario 2 equiv'!R12+'[2]SM3 - DECC Scenario 2 equiv'!R22,\n'[2]SM4 - DNO Scenario 4 equiv'!R12+'[2]SM4 - DNO Scenario 4 equiv'!R22)","v":8.4421151511576138},{"$f":"CHOOSE(view,\n'[1]M1a - Model inputs'!S12+'[1]M1a - Model inputs'!S22,\n'[1]M1b - Model inputs'!S12+'[1]M1b - Model inputs'!S22,\n'[1]SM1 - DECC Scenario 3 equiv'!S12+'[1]SM1 - DECC Scenario 3 equiv'!S22,\n'[1]SM2 - DECC Scenario 1 equiv'!S12+'[1]SM2 - DECC Scenario 1 equiv'!S22,\n'[1]SM3 - DECC Scenario 2 equiv'!S12+'[1]SM3 - DECC Scenario 2 equiv'!S22,\n'[1]SM4 - DNO Scenario 4 equiv'!S12+'[1]SM4 - DNO Scenario 4 equiv'!S22,\n'[2]M1a - Model inputs'!S12+'[2]M1a - Model inputs'!S22,\n'[2]M1b - Model inputs'!S12+'[2]M1b - Model inputs'!S22,\n'[2]SM1 - DECC Scenario 3 equiv'!S12+'[2]SM1 - DECC Scenario 3 equiv'!S22,\n'[2]SM2 - DECC Scenario 1 equiv'!S12+'[2]SM2 - DECC Scenario 1 equiv'!S22,\n'[2]SM3 - DECC Scenario 2 equiv'!S12+'[2]SM3 - DECC Scenario 2 equiv'!S22,\n'[2]SM4 - DNO Scenario 4 equiv'!S12+'[2]SM4 - DNO Scenario 4 equiv'!S22)","v":8.5020101597223565}]
[null,null,null,null,{"$f":"Input!E97","v":"Non-variant allowed controllable opex"},null,"£m 12/13 prices",null,null,null,null,null,null,null,null,null,null,null,null,null,null,null,null,null,null,null,null,null,null,null,null,null,null,null,null,{"$f":"CHOOSE(view,\n'[1]M1a - Model inputs'!L13+'[1]M1a - Model inputs'!L23,\n'[1]M1b - Model inputs'!L13+'[1]M1b - Model inputs'!L23,\n'[1]SM1 - DECC Scenario 3 equiv'!L13+'[1]SM1 - DECC Scenario 3 equiv'!L23,\n'[1]SM2 - DECC Scenario 1 equiv'!L13+'[1]SM2 - DECC Scenario 1 equiv'!L23,\n'[1]SM3 - DECC Scenario 2 equiv'!L13+'[1]SM3 - DECC Scenario 2 equiv'!L23,\n'[1]SM4 - DNO Scenario 4 equiv'!L13+'[1]SM4 - DNO Scenario 4 equiv'!L23,\n'[2]M1a - Model inputs'!L13+'[2]M1a - Model inputs'!L23,\n'[2]M1b - Model inputs'!L13+'[2]M1b - Model inputs'!L23,\n'[2]SM1 - DECC Scenario 3 equiv'!L13+'[2]SM1 - DECC Scenario 3 equiv'!L23,\n'[2]SM2 - DECC Scenario 1 equiv'!L13+'[2]SM2 - DECC Scenario 1 equiv'!L23,\n'[2]SM3 - DECC Scenario 2 equiv'!L13+'[2]SM3 - DECC Scenario 2 equiv'!L23,\n'[2]SM4 - DNO Scenario 4 equiv'!L13+'[2]SM4 - DNO Scenario 4 equiv'!L23)","v":93.435268005339822},{"$f":"CHOOSE(view,\n'[1]M1a - Model inputs'!M13+'[1]M1a - Model inputs'!M23,\n'[1]M1b - Model inputs'!M13+'[1]M1b - Model inputs'!M23,\n'[1]SM1 - DECC Scenario 3 equiv'!M13+'[1]SM1 - DECC Scenario 3 equiv'!M23,\n'[1]SM2 - DECC Scenario 1 equiv'!M13+'[1]SM2 - DECC Scenario 1 equiv'!M23,\n'[1]SM3 - DECC Scenario 2 equiv'!M13+'[1]SM3 - DECC Scenario 2 equiv'!M23,\n'[1]SM4 - DNO Scenario 4 equiv'!M13+'[1]SM4 - DNO Scenario 4 equiv'!M23,\n'[2]M1a - Model inputs'!M13+'[2]M1a - Model inputs'!M23,\n'[2]M1b - Model inputs'!M13+'[2]M1b - Model inputs'!M23,\n'[2]SM1 - DECC Scenario 3 equiv'!M13+'[2]SM1 - DECC Scenario 3 equiv'!M23,\n'[2]SM2 - DECC Scenario 1 equiv'!M13+'[2]SM2 - DECC Scenario 1 equiv'!M23,\n'[2]SM3 - DECC Scenario 2 equiv'!M13+'[2]SM3 - DECC Scenario 2 equiv'!M23,\n'[2]SM4 - DNO Scenario 4 equiv'!M13+'[2]SM4 - DNO Scenario 4 equiv'!M23)","v":93.637008663314887},{"$f":"CHOOSE(view,\n'[1]M1a - Model inputs'!N13+'[1]M1a - Model inputs'!N23,\n'[1]M1b - Model inputs'!N13+'[1]M1b - Model inputs'!N23,\n'[1]SM1 - DECC Scenario 3 equiv'!N13+'[1]SM1 - DECC Scenario 3 equiv'!N23,\n'[1]SM2 - DECC Scenario 1 equiv'!N13+'[1]SM2 - DECC Scenario 1 equiv'!N23,\n'[1]SM3 - DECC Scenario 2 equiv'!N13+'[1]SM3 - DECC Scenario 2 equiv'!N23,\n'[1]SM4 - DNO Scenario 4 equiv'!N13+'[1]SM4 - DNO Scenario 4 equiv'!N23,\n'[2]M1a - Model inputs'!N13+'[2]M1a - Model inputs'!N23,\n'[2]M1b - Model inputs'!N13+'[2]M1b - Model inputs'!N23,\n'[2]SM1 - DECC Scenario 3 equiv'!N13+'[2]SM1 - DECC Scenario 3 equiv'!N23,\n'[2]SM2 - DECC Scenario 1 equiv'!N13+'[2]SM2 - DECC Scenario 1 equiv'!N23,\n'[2]SM3 - DECC Scenario 2 equiv'!N13+'[2]SM3 - DECC Scenario 2 equiv'!N23,\n'[2]SM4 - DNO Scenario 4 equiv'!N13+'[2]SM4 - DNO Scenario 4 equiv'!N23)","v":93.87545379110108},{"$f":"CHOOSE(view,\n'[1]M1a - Model inputs'!O13+'[1]M1a - Model inputs'!O23,\n'[1]M1b - Model inputs'!O13+'[1]M1b - Model inputs'!O23,\n'[1]SM1 - DECC Scenario 3 equiv'!O13+'[1]SM1 - DECC Scenario 3 equiv'!O23,\n'[1]SM2 - DECC Scenario 1 equiv'!O13+'[1]SM2 - DECC Scenario 1 equiv'!O23,\n'[1]SM3 - DECC Scenario 2 equiv'!O13+'[1]SM3 - DECC Scenario 2 equiv'!O23,\n'[1]SM4 - DNO Scenario 4 equiv'!O13+'[1]SM4 - DNO Scenario 4 equiv'!O23,\n'[2]M1a - Model inputs'!O13+'[2]M1a - Model inputs'!O23,\n'[2]M1b - Model inputs'!O13+'[2]M1b - Model inputs'!O23,\n'[2]SM1 - DECC Scenario 3 equiv'!O13+'[2]SM1 - DECC Scenario 3 equiv'!O23,\n'[2]SM2 - DECC Scenario 1 equiv'!O13+'[2]SM2 - DECC Scenario 1 equiv'!O23,\n'[2]SM3 - DECC Scenario 2 equiv'!O13+'[2]SM3 - DECC Scenario 2 equiv'!O23,\n'[2]SM4 - DNO Scenario 4 equiv'!O13+'[2]SM4 - DNO Scenario 4 equiv'!O23)","v":94.519528796948862},{"$f":"CHOOSE(view,\n'[1]M1a - Model inputs'!P13+'[1]M1a - Model inputs'!P23,\n'[1]M1b - Model inputs'!P13+'[1]M1b - Model inputs'!P23,\n'[1]SM1 - DECC Scenario 3 equiv'!P13+'[1]SM1 - DECC Scenario 3 equiv'!P23,\n'[1]SM2 - DECC Scenario 1 equiv'!P13+'[1]SM2 - DECC Scenario 1 equiv'!P23,\n'[1]SM3 - DECC Scenario 2 equiv'!P13+'[1]SM3 - DECC Scenario 2 equiv'!P23,\n'[1]SM4 - DNO Scenario 4 equiv'!P13+'[1]SM4 - DNO Scenario 4 equiv'!P23,\n'[2]M1a - Model inputs'!P13+'[2]M1a - Model inputs'!P23,\n'[2]M1b - Model inputs'!P13+'[2]M1b - Model inputs'!P23,\n'[2]SM1 - DECC Scenario 3 equiv'!P13+'[2]SM1 - DECC Scenario 3 equiv'!P23,\n'[2]SM2 - DECC Scenario 1 equiv'!P13+'[2]SM2 - DECC Scenario 1 equiv'!P23,\n'[2]SM3 - DECC Scenario 2 equiv'!P13+'[2]SM3 - DECC Scenario 2 equiv'!P23,\n'[2]SM4 - DNO Scenario 4 equiv'!P13+'[2]SM4 - DNO Scenario 4 equiv'!P23)","v":95.468057637810546},{"$f":"CHOOSE(view,\n'[1]M1a - Model inputs'!Q13+'[1]M1a - Model inputs'!Q23,\n'[1]M1b - Model inputs'!Q13+'[1]M1b - Model inputs'!Q23,\n'[1]SM1 - DECC Scenario 3 equiv'!Q13+'[1]SM1 - DECC Scenario 3 equiv'!Q23,\n'[1]SM2 - DECC Scenario 1 equiv'!Q13+'[1]SM2 - DECC Scenario 1 equiv'!Q23,\n'[1]SM3 - DECC Scenario 2 equiv'!Q13+'[1]SM3 - DECC Scenario 2 equiv'!Q23,\n'[1]SM4 - DNO Scenario 4 equiv'!Q13+'[1]SM4 - DNO Scenario 4 equiv'!Q23,\n'[2]M1a - Model inputs'!Q13+'[2]M1a - Model inputs'!Q23,\n'[2]M1b - Model inputs'!Q13+'[2]M1b - Model inputs'!Q23,\n'[2]SM1 - DECC Scenario 3 equiv'!Q13+'[2]SM1 - DECC Scenario 3 equiv'!Q23,\n'[2]SM2 - DECC Scenario 1 equiv'!Q13+'[2]SM2 - DECC Scenario 1 equiv'!Q23,\n'[2]SM3 - DECC Scenario 2 equiv'!Q13+'[2]SM3 - DECC Scenario 2 equiv'!Q23,\n'[2]SM4 - DNO Scenario 4 equiv'!Q13+'[2]SM4 - DNO Scenario 4 equiv'!Q23)","v":95.483459008462304},{"$f":"CHOOSE(view,\n'[1]M1a - Model inputs'!R13+'[1]M1a - Model inputs'!R23,\n'[1]M1b - Model inputs'!R13+'[1]M1b - Model inputs'!R23,\n'[1]SM1 - DECC Scenario 3 equiv'!R13+'[1]SM1 - DECC Scenario 3 equiv'!R23,\n'[1]SM2 - DECC Scenario 1 equiv'!R13+'[1]SM2 - DECC Scenario 1 equiv'!R23,\n'[1]SM3 - DECC Scenario 2 equiv'!R13+'[1]SM3 - DECC Scenario 2 equiv'!R23,\n'[1]SM4 - DNO Scenario 4 equiv'!R13+'[1]SM4 - DNO Scenario 4 equiv'!R23,\n'[2]M1a - Model inputs'!R13+'[2]M1a - Model inputs'!R23,\n'[2]M1b - Model inputs'!R13+'[2]M1b - Model inputs'!R23,\n'[2]SM1 - DECC Scenario 3 equiv'!R13+'[2]SM1 - DECC Scenario 3 equiv'!R23,\n'[2]SM2 - DECC Scenario 1 equiv'!R13+'[2]SM2 - DECC Scenario 1 equiv'!R23,\n'[2]SM3 - DECC Scenario 2 equiv'!R13+'[2]SM3 - DECC Scenario 2 equiv'!R23,\n'[2]SM4 - DNO Scenario 4 equiv'!R13+'[2]SM4 - DNO Scenario 4 equiv'!R23)","v":94.501063988771946},{"$f":"CHOOSE(view,\n'[1]M1a - Model inputs'!S13+'[1]M1a - Model inputs'!S23,\n'[1]M1b - Model inputs'!S13+'[1]M1b - Model inputs'!S23,\n'[1]SM1 - DECC Scenario 3 equiv'!S13+'[1]SM1 - DECC Scenario 3 equiv'!S23,\n'[1]SM2 - DECC Scenario 1 equiv'!S13+'[1]SM2 - DECC Scenario 1 equiv'!S23,\n'[1]SM3 - DECC Scenario 2 equiv'!S13+'[1]SM3 - DECC Scenario 2 equiv'!S23,\n'[1]SM4 - DNO Scenario 4 equiv'!S13+'[1]SM4 - DNO Scenario 4 equiv'!S23,\n'[2]M1a - Model inputs'!S13+'[2]M1a - Model inputs'!S23,\n'[2]M1b - Model inputs'!S13+'[2]M1b - Model inputs'!S23,\n'[2]SM1 - DECC Scenario 3 equiv'!S13+'[2]SM1 - DECC Scenario 3 equiv'!S23,\n'[2]SM2 - DECC Scenario 1 equiv'!S13+'[2]SM2 - DECC Scenario 1 equiv'!S23,\n'[2]SM3 - DECC Scenario 2 equiv'!S13+'[2]SM3 - DECC Scenario 2 equiv'!S23,\n'[2]SM4 - DNO Scenario 4 equiv'!S13+'[2]SM4 - DNO Scenario 4 equiv'!S23)","v":94.992257906688664}]
[]
[null,null,null,"Variant allowances"]
[]
[null,null,null,null,{"$f":"Input!E101","v":"Allowed uncertain costs (CNI)"},null,"£m 12/13 prices",null,null,null,null,null,null,null,null,null,null,null,null,null,null,null,null,null,null,null,null,null,null,null,null,null,null,null,null,{"$f":"AJ18","v":0},{"$f":"AK18","v":0},0,0,0,0,0,0]
[null,null,null,null,{"$f":"Input!E102","v":"Allocation to load related capex"},null,"%",null,null,null,null,null,null,null,null,null,null,null,null,null,null,null,null,null,null,null,null,null,null,null,null,null,null,null,null,{"$f":"CHOOSE(view,\n'[1]M1a - Model inputs'!L171,\n'[1]M1b - Model inputs'!L171,\n'[1]SM1 - DECC Scenario 3 equiv'!L171,\n'[1]SM2 - DECC Scenario 1 equiv'!L171,\n'[1]SM3 - DECC Scenario 2 equiv'!L171,\n'[1]SM4 - DNO Scenario 4 equiv'!L171,\n'[2]M1a - Model inputs'!L171,\n'[2]M1b - Model inputs'!L171,\n'[2]SM1 - DECC Scenario 3 equiv'!L171,\n'[2]SM2 - DECC Scenario 1 equiv'!L171,\n'[2]SM3 - DECC Scenario 2 equiv'!L171,\n'[2]SM4 - DNO Scenario 4 equiv'!L171)","v":0},{"$f":"CHOOSE(view,\n'[1]M1a - Model inputs'!M171,\n'[1]M1b - Model inputs'!M171,\n'[1]SM1 - DECC Scenario 3 equiv'!M171,\n'[1]SM2 - DECC Scenario 1 equiv'!M171,\n'[1]SM3 - DECC Scenario 2 equiv'!M171,\n'[1]SM4 - DNO Scenario 4 equiv'!M171,\n'[2]M1a - Model inputs'!M171,\n'[2]M1b - Model inputs'!M171,\n'[2]SM1 - DECC Scenario 3 equiv'!M171,\n'[2]SM2 - DECC Scenario 1 equiv'!M171,\n'[2]SM3 - DECC Scenario 2 equiv'!M171,\n'[2]SM4 - DNO Scenario 4 equiv'!M171)","v":0},{"$f":"CHOOSE(view,\n'[1]M1a - Model inputs'!N171,\n'[1]M1b - Model inputs'!N171,\n'[1]SM1 - DECC Scenario 3 equiv'!N171,\n'[1]SM2 - DECC Scenario 1 equiv'!N171,\n'[1]SM3 - DECC Scenario 2 equiv'!N171,\n'[1]SM4 - DNO Scenario 4 equiv'!N171,\n'[2]M1a - Model inputs'!N171,\n'[2]M1b - Model inputs'!N171,\n'[2]SM1 - DECC Scenario 3 equiv'!N171,\n'[2]SM2 - DECC Scenario 1 equiv'!N171,\n'[2]SM3 - DECC Scenario 2 equiv'!N171,\n'[2]SM4 - DNO Scenario 4 equiv'!N171)","v":0},{"$f":"CHOOSE(view,\n'[1]M1a - Model inputs'!O171,\n'[1]M1b - Model inputs'!O171,\n'[1]SM1 - DECC Scenario 3 equiv'!O171,\n'[1]SM2 - DECC Scenario 1 equiv'!O171,\n'[1]SM3 - DECC Scenario 2 equiv'!O171,\n'[1]SM4 - DNO Scenario 4 equiv'!O171,\n'[2]M1a - Model inputs'!O171,\n'[2]M1b - Model inputs'!O171,\n'[2]SM1 - DECC Scenario 3 equiv'!O171,\n'[2]SM2 - DECC Scenario 1 equiv'!O171,\n'[2]SM3 - DECC Scenario 2 equiv'!O171,\n'[2]SM4 - DNO Scenario 4 equiv'!O171)","v":0},{"$f":"CHOOSE(view,\n'[1]M1a - Model inputs'!P171,\n'[1]M1b - Model inputs'!P171,\n'[1]SM1 - DECC Scenario 3 equiv'!P171,\n'[1]SM2 - DECC Scenario 1 equiv'!P171,\n'[1]SM3 - DECC Scenario 2 equiv'!P171,\n'[1]SM4 - DNO Scenario 4 equiv'!P171,\n'[2]M1a - Model inputs'!P171,\n'[2]M1b - Model inputs'!P171,\n'[2]SM1 - DECC Scenario 3 equiv'!P171,\n'[2]SM2 - DECC Scenario 1 equiv'!P171,\n'[2]SM3 - DECC Scenario 2 equiv'!P171,\n'[2]SM4 - DNO Scenario 4 equiv'!P171)","v":0},{"$f":"CHOOSE(view,\n'[1]M1a - Model inputs'!Q171,\n'[1]M1b - Model inputs'!Q171,\n'[1]SM1 - DECC Scenario 3 equiv'!Q171,\n'[1]SM2 - DECC Scenario 1 equiv'!Q171,\n'[1]SM3 - DECC Scenario 2 equiv'!Q171,\n'[1]SM4 - DNO Scenario 4 equiv'!Q171,\n'[2]M1a - Model inputs'!Q171,\n'[2]M1b - Model inputs'!Q171,\n'[2]SM1 - DECC Scenario 3 equiv'!Q171,\n'[2]SM2 - DECC Scenario 1 equiv'!Q171,\n'[2]SM3 - DECC Scenario 2 equiv'!Q171,\n'[2]SM4 - DNO Scenario 4 equiv'!Q171)","v":0},{"$f":"CHOOSE(view,\n'[1]M1a - Model inputs'!R171,\n'[1]M1b - Model inputs'!R171,\n'[1]SM1 - DECC Scenario 3 equiv'!R171,\n'[1]SM2 - DECC Scenario 1 equiv'!R171,\n'[1]SM3 - DECC Scenario 2 equiv'!R171,\n'[1]SM4 - DNO Scenario 4 equiv'!R171,\n'[2]M1a - Model inputs'!R171,\n'[2]M1b - Model inputs'!R171,\n'[2]SM1 - DECC Scenario 3 equiv'!R171,\n'[2]SM2 - DECC Scenario 1 equiv'!R171,\n'[2]SM3 - DECC Scenario 2 equiv'!R171,\n'[2]SM4 - DNO Scenario 4 equiv'!R171)","v":0},{"$f":"CHOOSE(view,\n'[1]M1a - Model inputs'!S171,\n'[1]M1b - Model inputs'!S171,\n'[1]SM1 - DECC Scenario 3 equiv'!S171,\n'[1]SM2 - DECC Scenario 1 equiv'!S171,\n'[1]SM3 - DECC Scenario 2 equiv'!S171,\n'[1]SM4 - DNO Scenario 4 equiv'!S171,\n'[2]M1a - Model inputs'!S171,\n'[2]M1b - Model inputs'!S171,\n'[2]SM1 - DECC Scenario 3 equiv'!S171,\n'[2]SM2 - DECC Scenario 1 equiv'!S171,\n'[2]SM3 - DECC Scenario 2 equiv'!S171,\n'[2]SM4 - DNO Scenario 4 equiv'!S171)","v":0}]
[null,null,null,null,{"$f":"Input!E103","v":"Allocation to non-load related capex - asset replacement"},null,"%",null,null,null,null,null,null,null,null,null,null,null,null,null,null,null,null,null,null,null,null,null,null,null,null,null,null,null,null,{"$f":"CHOOSE(view,\n'[1]M1a - Model inputs'!L172,\n'[1]M1b - Model inputs'!L172,\n'[1]SM1 - DECC Scenario 3 equiv'!L172,\n'[1]SM2 - DECC Scenario 1 equiv'!L172,\n'[1]SM3 - DECC Scenario 2 equiv'!L172,\n'[1]SM4 - DNO Scenario 4 equiv'!L172,\n'[2]M1a - Model inputs'!L172,\n'[2]M1b - Model inputs'!L172,\n'[2]SM1 - DECC Scenario 3 equiv'!L172,\n'[2]SM2 - DECC Scenario 1 equiv'!L172,\n'[2]SM3 - DECC Scenario 2 equiv'!L172,\n'[2]SM4 - DNO Scenario 4 equiv'!L172)","v":0},{"$f":"CHOOSE(view,\n'[1]M1a - Model inputs'!M172,\n'[1]M1b - Model inputs'!M172,\n'[1]SM1 - DECC Scenario 3 equiv'!M172,\n'[1]SM2 - DECC Scenario 1 equiv'!M172,\n'[1]SM3 - DECC Scenario 2 equiv'!M172,\n'[1]SM4 - DNO Scenario 4 equiv'!M172,\n'[2]M1a - Model inputs'!M172,\n'[2]M1b - Model inputs'!M172,\n'[2]SM1 - DECC Scenario 3 equiv'!M172,\n'[2]SM2 - DECC Scenario 1 equiv'!M172,\n'[2]SM3 - DECC Scenario 2 equiv'!M172,\n'[2]SM4 - DNO Scenario 4 equiv'!M172)","v":0},{"$f":"CHOOSE(view,\n'[1]M1a - Model inputs'!N172,\n'[1]M1b - Model inputs'!N172,\n'[1]SM1 - DECC Scenario 3 equiv'!N172,\n'[1]SM2 - DECC Scenario 1 equiv'!N172,\n'[1]SM3 - DECC Scenario 2 equiv'!N172,\n'[1]SM4 - DNO Scenario 4 equiv'!N172,\n'[2]M1a - Model inputs'!N172,\n'[2]M1b - Model inputs'!N172,\n'[2]SM1 - DECC Scenario 3 equiv'!N172,\n'[2]SM2 - DECC Scenario 1 equiv'!N172,\n'[2]SM3 - DECC Scenario 2 equiv'!N172,\n'[2]SM4 - DNO Scenario 4 equiv'!N172)","v":0},{"$f":"CHOOSE(view,\n'[1]M1a - Model inputs'!O172,\n'[1]M1b - Model inputs'!O172,\n'[1]SM1 - DECC Scenario 3 equiv'!O172,\n'[1]SM2 - DECC Scenario 1 equiv'!O172,\n'[1]SM3 - DECC Scenario 2 equiv'!O172,\n'[1]SM4 - DNO Scenario 4 equiv'!O172,\n'[2]M1a - Model inputs'!O172,\n'[2]M1b - Model inputs'!O172,\n'[2]SM1 - DECC Scenario 3 equiv'!O172,\n'[2]SM2 - DECC Scenario 1 equiv'!O172,\n'[2]SM3 - DECC Scenario 2 equiv'!O172,\n'[2]SM4 - DNO Scenario 4 equiv'!O172)","v":0},{"$f":"CHOOSE(view,\n'[1]M1a - Model inputs'!P172,\n'[1]M1b - Model inputs'!P172,\n'[1]SM1 - DECC Scenario 3 equiv'!P172,\n'[1]SM2 - DECC Scenario 1 equiv'!P172,\n'[1]SM3 - DECC Scenario 2 equiv'!P172,\n'[1]SM4 - DNO Scenario 4 equiv'!P172,\n'[2]M1a - Model inputs'!P172,\n'[2]M1b - Model inputs'!P172,\n'[2]SM1 - DECC Scenario 3 equiv'!P172,\n'[2]SM2 - DECC Scenario 1 equiv'!P172,\n'[2]SM3 - DECC Scenario 2 equiv'!P172,\n'[2]SM4 - DNO Scenario 4 equiv'!P172)","v":0},{"$f":"CHOOSE(view,\n'[1]M1a - Model inputs'!Q172,\n'[1]M1b - Model inputs'!Q172,\n'[1]SM1 - DECC Scenario 3 equiv'!Q172,\n'[1]SM2 - DECC Scenario 1 equiv'!Q172,\n'[1]SM3 - DECC Scenario 2 equiv'!Q172,\n'[1]SM4 - DNO Scenario 4 equiv'!Q172,\n'[2]M1a - Model inputs'!Q172,\n'[2]M1b - Model inputs'!Q172,\n'[2]SM1 - DECC Scenario 3 equiv'!Q172,\n'[2]SM2 - DECC Scenario 1 equiv'!Q172,\n'[2]SM3 - DECC Scenario 2 equiv'!Q172,\n'[2]SM4 - DNO Scenario 4 equiv'!Q172)","v":0},{"$f":"CHOOSE(view,\n'[1]M1a - Model inputs'!R172,\n'[1]M1b - Model inputs'!R172,\n'[1]SM1 - DECC Scenario 3 equiv'!R172,\n'[1]SM2 - DECC Scenario 1 equiv'!R172,\n'[1]SM3 - DECC Scenario 2 equiv'!R172,\n'[1]SM4 - DNO Scenario 4 equiv'!R172,\n'[2]M1a - Model inputs'!R172,\n'[2]M1b - Model inputs'!R172,\n'[2]SM1 - DECC Scenario 3 equiv'!R172,\n'[2]SM2 - DECC Scenario 1 equiv'!R172,\n'[2]SM3 - DECC Scenario 2 equiv'!R172,\n'[2]SM4 - DNO Scenario 4 equiv'!R172)","v":0},{"$f":"CHOOSE(view,\n'[1]M1a - Model inputs'!S172,\n'[1]M1b - Model inputs'!S172,\n'[1]SM1 - DECC Scenario 3 equiv'!S172,\n'[1]SM2 - DECC Scenario 1 equiv'!S172,\n'[1]SM3 - DECC Scenario 2 equiv'!S172,\n'[1]SM4 - DNO Scenario 4 equiv'!S172,\n'[2]M1a - Model inputs'!S172,\n'[2]M1b - Model inputs'!S172,\n'[2]SM1 - DECC Scenario 3 equiv'!S172,\n'[2]SM2 - DECC Scenario 1 equiv'!S172,\n'[2]SM3 - DECC Scenario 2 equiv'!S172,\n'[2]SM4 - DNO Scenario 4 equiv'!S172)","v":0}]
[null,null,null,null,{"$f":"Input!E104","v":"Allocation to non-load related capex - other"},null,"%",null,null,null,null,null,null,null,null,null,null,null,null,null,null,null,null,null,null,null,null,null,null,null,null,null,null,null,null,{"$f":"CHOOSE(view,\n'[1]M1a - Model inputs'!L173,\n'[1]M1b - Model inputs'!L173,\n'[1]SM1 - DECC Scenario 3 equiv'!L173,\n'[1]SM2 - DECC Scenario 1 equiv'!L173,\n'[1]SM3 - DECC Scenario 2 equiv'!L173,\n'[1]SM4 - DNO Scenario 4 equiv'!L173,\n'[2]M1a - Model inputs'!L173,\n'[2]M1b - Model inputs'!L173,\n'[2]SM1 - DECC Scenario 3 equiv'!L173,\n'[2]SM2 - DECC Scenario 1 equiv'!L173,\n'[2]SM3 - DECC Scenario 2 equiv'!L173,\n'[2]SM4 - DNO Scenario 4 equiv'!L173)","v":1},{"$f":"CHOOSE(view,\n'[1]M1a - Model inputs'!M173,\n'[1]M1b - Model inputs'!M173,\n'[1]SM1 - DECC Scenario 3 equiv'!M173,\n'[1]SM2 - DECC Scenario 1 equiv'!M173,\n'[1]SM3 - DECC Scenario 2 equiv'!M173,\n'[1]SM4 - DNO Scenario 4 equiv'!M173,\n'[2]M1a - Model inputs'!M173,\n'[2]M1b - Model inputs'!M173,\n'[2]SM1 - DECC Scenario 3 equiv'!M173,\n'[2]SM2 - DECC Scenario 1 equiv'!M173,\n'[2]SM3 - DECC Scenario 2 equiv'!M173,\n'[2]SM4 - DNO Scenario 4 equiv'!M173)","v":1},{"$f":"CHOOSE(view,\n'[1]M1a - Model inputs'!N173,\n'[1]M1b - Model inputs'!N173,\n'[1]SM1 - DECC Scenario 3 equiv'!N173,\n'[1]SM2 - DECC Scenario 1 equiv'!N173,\n'[1]SM3 - DECC Scenario 2 equiv'!N173,\n'[1]SM4 - DNO Scenario 4 equiv'!N173,\n'[2]M1a - Model inputs'!N173,\n'[2]M1b - Model inputs'!N173,\n'[2]SM1 - DECC Scenario 3 equiv'!N173,\n'[2]SM2 - DECC Scenario 1 equiv'!N173,\n'[2]SM3 - DECC Scenario 2 equiv'!N173,\n'[2]SM4 - DNO Scenario 4 equiv'!N173)","v":1},{"$f":"CHOOSE(view,\n'[1]M1a - Model inputs'!O173,\n'[1]M1b - Model inputs'!O173,\n'[1]SM1 - DECC Scenario 3 equiv'!O173,\n'[1]SM2 - DECC Scenario 1 equiv'!O173,\n'[1]SM3 - DECC Scenario 2 equiv'!O173,\n'[1]SM4 - DNO Scenario 4 equiv'!O173,\n'[2]M1a - Model inputs'!O173,\n'[2]M1b - Model inputs'!O173,\n'[2]SM1 - DECC Scenario 3 equiv'!O173,\n'[2]SM2 - DECC Scenario 1 equiv'!O173,\n'[2]SM3 - DECC Scenario 2 equiv'!O173,\n'[2]SM4 - DNO Scenario 4 equiv'!O173)","v":1},{"$f":"CHOOSE(view,\n'[1]M1a - Model inputs'!P173,\n'[1]M1b - Model inputs'!P173,\n'[1]SM1 - DECC Scenario 3 equiv'!P173,\n'[1]SM2 - DECC Scenario 1 equiv'!P173,\n'[1]SM3 - DECC Scenario 2 equiv'!P173,\n'[1]SM4 - DNO Scenario 4 equiv'!P173,\n'[2]M1a - Model inputs'!P173,\n'[2]M1b - Model inputs'!P173,\n'[2]SM1 - DECC Scenario 3 equiv'!P173,\n'[2]SM2 - DECC Scenario 1 equiv'!P173,\n'[2]SM3 - DECC Scenario 2 equiv'!P173,\n'[2]SM4 - DNO Scenario 4 equiv'!P173)","v":1},{"$f":"CHOOSE(view,\n'[1]M1a - Model inputs'!Q173,\n'[1]M1b - Model inputs'!Q173,\n'[1]SM1 - DECC Scenario 3 equiv'!Q173,\n'[1]SM2 - DECC Scenario 1 equiv'!Q173,\n'[1]SM3 - DECC Scenario 2 equiv'!Q173,\n'[1]SM4 - DNO Scenario 4 equiv'!Q173,\n'[2]M1a - Model inputs'!Q173,\n'[2]M1b - Model inputs'!Q173,\n'[2]SM1 - DECC Scenario 3 equiv'!Q173,\n'[2]SM2 - DECC Scenario 1 equiv'!Q173,\n'[2]SM3 - DECC Scenario 2 equiv'!Q173,\n'[2]SM4 - DNO Scenario 4 equiv'!Q173)","v":1},{"$f":"CHOOSE(view,\n'[1]M1a - Model inputs'!R173,\n'[1]M1b - Model inputs'!R173,\n'[1]SM1 - DECC Scenario 3 equiv'!R173,\n'[1]SM2 - DECC Scenario 1 equiv'!R173,\n'[1]SM3 - DECC Scenario 2 equiv'!R173,\n'[1]SM4 - DNO Scenario 4 equiv'!R173,\n'[2]M1a - Model inputs'!R173,\n'[2]M1b - Model inputs'!R173,\n'[2]SM1 - DECC Scenario 3 equiv'!R173,\n'[2]SM2 - DECC Scenario 1 equiv'!R173,\n'[2]SM3 - DECC Scenario 2 equiv'!R173,\n'[2]SM4 - DNO Scenario 4 equiv'!R173)","v":1},{"$f":"CHOOSE(view,\n'[1]M1a - Model inputs'!S173,\n'[1]M1b - Model inputs'!S173,\n'[1]SM1 - DECC Scenario 3 equiv'!S173,\n'[1]SM2 - DECC Scenario 1 equiv'!S173,\n'[1]SM3 - DECC Scenario 2 equiv'!S173,\n'[1]SM4 - DNO Scenario 4 equiv'!S173,\n'[2]M1a - Model inputs'!S173,\n'[2]M1b - Model inputs'!S173,\n'[2]SM1 - DECC Scenario 3 equiv'!S173,\n'[2]SM2 - DECC Scenario 1 equiv'!S173,\n'[2]SM3 - DECC Scenario 2 equiv'!S173,\n'[2]SM4 - DNO Scenario 4 equiv'!S173)","v":1}]
[null,null,null,null,{"$f":"Input!E105","v":"Allocation to faults"},null,"%",null,null,null,null,null,null,null,null,null,null,null,null,null,null,null,null,null,null,null,null,null,null,null,null,null,null,null,null,{"$f":"CHOOSE(view,\n'[1]M1a - Model inputs'!L174,\n'[1]M1b - Model inputs'!L174,\n'[1]SM1 - DECC Scenario 3 equiv'!L174,\n'[1]SM2 - DECC Scenario 1 equiv'!L174,\n'[1]SM3 - DECC Scenario 2 equiv'!L174,\n'[1]SM4 - DNO Scenario 4 equiv'!L174,\n'[2]M1a - Model inputs'!L174,\n'[2]M1b - Model inputs'!L174,\n'[2]SM1 - DECC Scenario 3 equiv'!L174,\n'[2]SM2 - DECC Scenario 1 equiv'!L174,\n'[2]SM3 - DECC Scenario 2 equiv'!L174,\n'[2]SM4 - DNO Scenario 4 equiv'!L174)","v":0},{"$f":"CHOOSE(view,\n'[1]M1a - Model inputs'!M174,\n'[1]M1b - Model inputs'!M174,\n'[1]SM1 - DECC Scenario 3 equiv'!M174,\n'[1]SM2 - DECC Scenario 1 equiv'!M174,\n'[1]SM3 - DECC Scenario 2 equiv'!M174,\n'[1]SM4 - DNO Scenario 4 equiv'!M174,\n'[2]M1a - Model inputs'!M174,\n'[2]M1b - Model inputs'!M174,\n'[2]SM1 - DECC Scenario 3 equiv'!M174,\n'[2]SM2 - DECC Scenario 1 equiv'!M174,\n'[2]SM3 - DECC Scenario 2 equiv'!M174,\n'[2]SM4 - DNO Scenario 4 equiv'!M174)","v":0},{"$f":"CHOOSE(view,\n'[1]M1a - Model inputs'!N174,\n'[1]M1b - Model inputs'!N174,\n'[1]SM1 - DECC Scenario 3 equiv'!N174,\n'[1]SM2 - DECC Scenario 1 equiv'!N174,\n'[1]SM3 - DECC Scenario 2 equiv'!N174,\n'[1]SM4 - DNO Scenario 4 equiv'!N174,\n'[2]M1a - Model inputs'!N174,\n'[2]M1b - Model inputs'!N174,\n'[2]SM1 - DECC Scenario 3 equiv'!N174,\n'[2]SM2 - DECC Scenario 1 equiv'!N174,\n'[2]SM3 - DECC Scenario 2 equiv'!N174,\n'[2]SM4 - DNO Scenario 4 equiv'!N174)","v":0},{"$f":"CHOOSE(view,\n'[1]M1a - Model inputs'!O174,\n'[1]M1b - Model inputs'!O174,\n'[1]SM1 - DECC Scenario 3 equiv'!O174,\n'[1]SM2 - DECC Scenario 1 equiv'!O174,\n'[1]SM3 - DECC Scenario 2 equiv'!O174,\n'[1]SM4 - DNO Scenario 4 equiv'!O174,\n'[2]M1a - Model inputs'!O174,\n'[2]M1b - Model inputs'!O174,\n'[2]SM1 - DECC Scenario 3 equiv'!O174,\n'[2]SM2 - DECC Scenario 1 equiv'!O174,\n'[2]SM3 - DECC Scenario 2 equiv'!O174,\n'[2]SM4 - DNO Scenario 4 equiv'!O174)","v":0},{"$f":"CHOOSE(view,\n'[1]M1a - Model inputs'!P174,\n'[1]M1b - Model inputs'!P174,\n'[1]SM1 - DECC Scenario 3 equiv'!P174,\n'[1]SM2 - DECC Scenario 1 equiv'!P174,\n'[1]SM3 - DECC Scenario 2 equiv'!P174,\n'[1]SM4 - DNO Scenario 4 equiv'!P174,\n'[2]M1a - Model inputs'!P174,\n'[2]M1b - Model inputs'!P174,\n'[2]SM1 - DECC Scenario 3 equiv'!P174,\n'[2]SM2 - DECC Scenario 1 equiv'!P174,\n'[2]SM3 - DECC Scenario 2 equiv'!P174,\n'[2]SM4 - DNO Scenario 4 equiv'!P174)","v":0},{"$f":"CHOOSE(view,\n'[1]M1a - Model inputs'!Q174,\n'[1]M1b - Model inputs'!Q174,\n'[1]SM1 - DECC Scenario 3 equiv'!Q174,\n'[1]SM2 - DECC Scenario 1 equiv'!Q174,\n'[1]SM3 - DECC Scenario 2 equiv'!Q174,\n'[1]SM4 - DNO Scenario 4 equiv'!Q174,\n'[2]M1a - Model inputs'!Q174,\n'[2]M1b - Model inputs'!Q174,\n'[2]SM1 - DECC Scenario 3 equiv'!Q174,\n'[2]SM2 - DECC Scenario 1 equiv'!Q174,\n'[2]SM3 - DECC Scenario 2 equiv'!Q174,\n'[2]SM4 - DNO Scenario 4 equiv'!Q174)","v":0},{"$f":"CHOOSE(view,\n'[1]M1a - Model inputs'!R174,\n'[1]M1b - Model inputs'!R174,\n'[1]SM1 - DECC Scenario 3 equiv'!R174,\n'[1]SM2 - DECC Scenario 1 equiv'!R174,\n'[1]SM3 - DECC Scenario 2 equiv'!R174,\n'[1]SM4 - DNO Scenario 4 equiv'!R174,\n'[2]M1a - Model inputs'!R174,\n'[2]M1b - Model inputs'!R174,\n'[2]SM1 - DECC Scenario 3 equiv'!R174,\n'[2]SM2 - DECC Scenario 1 equiv'!R174,\n'[2]SM3 - DECC Scenario 2 equiv'!R174,\n'[2]SM4 - DNO Scenario 4 equiv'!R174)","v":0},{"$f":"CHOOSE(view,\n'[1]M1a - Model inputs'!S174,\n'[1]M1b - Model inputs'!S174,\n'[1]SM1 - DECC Scenario 3 equiv'!S174,\n'[1]SM2 - DECC Scenario 1 equiv'!S174,\n'[1]SM3 - DECC Scenario 2 equiv'!S174,\n'[1]SM4 - DNO Scenario 4 equiv'!S174,\n'[2]M1a - Model inputs'!S174,\n'[2]M1b - Model inputs'!S174,\n'[2]SM1 - DECC Scenario 3 equiv'!S174,\n'[2]SM2 - DECC Scenario 1 equiv'!S174,\n'[2]SM3 - DECC Scenario 2 equiv'!S174,\n'[2]SM4 - DNO Scenario 4 equiv'!S174)","v":0}]
[null,null,null,null,{"$f":"Input!E106","v":"Allocation to tree cutting"},null,"%",null,null,null,null,null,null,null,null,null,null,null,null,null,null,null,null,null,null,null,null,null,null,null,null,null,null,null,null,{"$f":"CHOOSE(view,\n'[1]M1a - Model inputs'!L175,\n'[1]M1b - Model inputs'!L175,\n'[1]SM1 - DECC Scenario 3 equiv'!L175,\n'[1]SM2 - DECC Scenario 1 equiv'!L175,\n'[1]SM3 - DECC Scenario 2 equiv'!L175,\n'[1]SM4 - DNO Scenario 4 equiv'!L175,\n'[2]M1a - Model inputs'!L175,\n'[2]M1b - Model inputs'!L175,\n'[2]SM1 - DECC Scenario 3 equiv'!L175,\n'[2]SM2 - DECC Scenario 1 equiv'!L175,\n'[2]SM3 - DECC Scenario 2 equiv'!L175,\n'[2]SM4 - DNO Scenario 4 equiv'!L175)","v":0},{"$f":"CHOOSE(view,\n'[1]M1a - Model inputs'!M175,\n'[1]M1b - Model inputs'!M175,\n'[1]SM1 - DECC Scenario 3 equiv'!M175,\n'[1]SM2 - DECC Scenario 1 equiv'!M175,\n'[1]SM3 - DECC Scenario 2 equiv'!M175,\n'[1]SM4 - DNO Scenario 4 equiv'!M175,\n'[2]M1a - Model inputs'!M175,\n'[2]M1b - Model inputs'!M175,\n'[2]SM1 - DECC Scenario 3 equiv'!M175,\n'[2]SM2 - DECC Scenario 1 equiv'!M175,\n'[2]SM3 - DECC Scenario 2 equiv'!M175,\n'[2]SM4 - DNO Scenario 4 equiv'!M175)","v":0},{"$f":"CHOOSE(view,\n'[1]M1a - Model inputs'!N175,\n'[1]M1b - Model inputs'!N175,\n'[1]SM1 - DECC Scenario 3 equiv'!N175,\n'[1]SM2 - DECC Scenario 1 equiv'!N175,\n'[1]SM3 - DECC Scenario 2 equiv'!N175,\n'[1]SM4 - DNO Scenario 4 equiv'!N175,\n'[2]M1a - Model inputs'!N175,\n'[2]M1b - Model inputs'!N175,\n'[2]SM1 - DECC Scenario 3 equiv'!N175,\n'[2]SM2 - DECC Scenario 1 equiv'!N175,\n'[2]SM3 - DECC Scenario 2 equiv'!N175,\n'[2]SM4 - DNO Scenario 4 equiv'!N175)","v":0},{"$f":"CHOOSE(view,\n'[1]M1a - Model inputs'!O175,\n'[1]M1b - Model inputs'!O175,\n'[1]SM1 - DECC Scenario 3 equiv'!O175,\n'[1]SM2 - DECC Scenario 1 equiv'!O175,\n'[1]SM3 - DECC Scenario 2 equiv'!O175,\n'[1]SM4 - DNO Scenario 4 equiv'!O175,\n'[2]M1a - Model inputs'!O175,\n'[2]M1b - Model inputs'!O175,\n'[2]SM1 - DECC Scenario 3 equiv'!O175,\n'[2]SM2 - DECC Scenario 1 equiv'!O175,\n'[2]SM3 - DECC Scenario 2 equiv'!O175,\n'[2]SM4 - DNO Scenario 4 equiv'!O175)","v":0},{"$f":"CHOOSE(view,\n'[1]M1a - Model inputs'!P175,\n'[1]M1b - Model inputs'!P175,\n'[1]SM1 - DECC Scenario 3 equiv'!P175,\n'[1]SM2 - DECC Scenario 1 equiv'!P175,\n'[1]SM3 - DECC Scenario 2 equiv'!P175,\n'[1]SM4 - DNO Scenario 4 equiv'!P175,\n'[2]M1a - Model inputs'!P175,\n'[2]M1b - Model inputs'!P175,\n'[2]SM1 - DECC Scenario 3 equiv'!P175,\n'[2]SM2 - DECC Scenario 1 equiv'!P175,\n'[2]SM3 - DECC Scenario 2 equiv'!P175,\n'[2]SM4 - DNO Scenario 4 equiv'!P175)","v":0},{"$f":"CHOOSE(view,\n'[1]M1a - Model inputs'!Q175,\n'[1]M1b - Model inputs'!Q175,\n'[1]SM1 - DECC Scenario 3 equiv'!Q175,\n'[1]SM2 - DECC Scenario 1 equiv'!Q175,\n'[1]SM3 - DECC Scenario 2 equiv'!Q175,\n'[1]SM4 - DNO Scenario 4 equiv'!Q175,\n'[2]M1a - Model inputs'!Q175,\n'[2]M1b - Model inputs'!Q175,\n'[2]SM1 - DECC Scenario 3 equiv'!Q175,\n'[2]SM2 - DECC Scenario 1 equiv'!Q175,\n'[2]SM3 - DECC Scenario 2 equiv'!Q175,\n'[2]SM4 - DNO Scenario 4 equiv'!Q175)","v":0},{"$f":"CHOOSE(view,\n'[1]M1a - Model inputs'!R175,\n'[1]M1b - Model inputs'!R175,\n'[1]SM1 - DECC Scenario 3 equiv'!R175,\n'[1]SM2 - DECC Scenario 1 equiv'!R175,\n'[1]SM3 - DECC Scenario 2 equiv'!R175,\n'[1]SM4 - DNO Scenario 4 equiv'!R175,\n'[2]M1a - Model inputs'!R175,\n'[2]M1b - Model inputs'!R175,\n'[2]SM1 - DECC Scenario 3 equiv'!R175,\n'[2]SM2 - DECC Scenario 1 equiv'!R175,\n'[2]SM3 - DECC Scenario 2 equiv'!R175,\n'[2]SM4 - DNO Scenario 4 equiv'!R175)","v":0},{"$f":"CHOOSE(view,\n'[1]M1a - Model inputs'!S175,\n'[1]M1b - Model inputs'!S175,\n'[1]SM1 - DECC Scenario 3 equiv'!S175,\n'[1]SM2 - DECC Scenario 1 equiv'!S175,\n'[1]SM3 - DECC Scenario 2 equiv'!S175,\n'[1]SM4 - DNO Scenario 4 equiv'!S175,\n'[2]M1a - Model inputs'!S175,\n'[2]M1b - Model inputs'!S175,\n'[2]SM1 - DECC Scenario 3 equiv'!S175,\n'[2]SM2 - DECC Scenario 1 equiv'!S175,\n'[2]SM3 - DECC Scenario 2 equiv'!S175,\n'[2]SM4 - DNO Scenario 4 equiv'!S175)","v":0}]
[null,null,null,null,{"$f":"Input!E107","v":"Allocation to controllable opex"},null,"%",null,null,null,null,null,null,null,null,null,null,null,null,null,null,null,null,null,null,null,null,null,null,null,null,null,null,null,null,{"$f":"CHOOSE(view,\n'[1]M1a - Model inputs'!L176,\n'[1]M1b - Model inputs'!L176,\n'[1]SM1 - DECC Scenario 3 equiv'!L176,\n'[1]SM2 - DECC Scenario 1 equiv'!L176,\n'[1]SM3 - DECC Scenario 2 equiv'!L176,\n'[1]SM4 - DNO Scenario 4 equiv'!L176,\n'[2]M1a - Model inputs'!L176,\n'[2]M1b - Model inputs'!L176,\n'[2]SM1 - DECC Scenario 3 equiv'!L176,\n'[2]SM2 - DECC Scenario 1 equiv'!L176,\n'[2]SM3 - DECC Scenario 2 equiv'!L176,\n'[2]SM4 - DNO Scenario 4 equiv'!L176)","v":0},{"$f":"CHOOSE(view,\n'[1]M1a - Model inputs'!M176,\n'[1]M1b - Model inputs'!M176,\n'[1]SM1 - DECC Scenario 3 equiv'!M176,\n'[1]SM2 - DECC Scenario 1 equiv'!M176,\n'[1]SM3 - DECC Scenario 2 equiv'!M176,\n'[1]SM4 - DNO Scenario 4 equiv'!M176,\n'[2]M1a - Model inputs'!M176,\n'[2]M1b - Model inputs'!M176,\n'[2]SM1 - DECC Scenario 3 equiv'!M176,\n'[2]SM2 - DECC Scenario 1 equiv'!M176,\n'[2]SM3 - DECC Scenario 2 equiv'!M176,\n'[2]SM4 - DNO Scenario 4 equiv'!M176)","v":0},{"$f":"CHOOSE(view,\n'[1]M1a - Model inputs'!N176,\n'[1]M1b - Model inputs'!N176,\n'[1]SM1 - DECC Scenario 3 equiv'!N176,\n'[1]SM2 - DECC Scenario 1 equiv'!N176,\n'[1]SM3 - DECC Scenario 2 equiv'!N176,\n'[1]SM4 - DNO Scenario 4 equiv'!N176,\n'[2]M1a - Model inputs'!N176,\n'[2]M1b - Model inputs'!N176,\n'[2]SM1 - DECC Scenario 3 equiv'!N176,\n'[2]SM2 - DECC Scenario 1 equiv'!N176,\n'[2]SM3 - DECC Scenario 2 equiv'!N176,\n'[2]SM4 - DNO Scenario 4 equiv'!N176)","v":0},{"$f":"CHOOSE(view,\n'[1]M1a - Model inputs'!O176,\n'[1]M1b - Model inputs'!O176,\n'[1]SM1 - DECC Scenario 3 equiv'!O176,\n'[1]SM2 - DECC Scenario 1 equiv'!O176,\n'[1]SM3 - DECC Scenario 2 equiv'!O176,\n'[1]SM4 - DNO Scenario 4 equiv'!O176,\n'[2]M1a - Model inputs'!O176,\n'[2]M1b - Model inputs'!O176,\n'[2]SM1 - DECC Scenario 3 equiv'!O176,\n'[2]SM2 - DECC Scenario 1 equiv'!O176,\n'[2]SM3 - DECC Scenario 2 equiv'!O176,\n'[2]SM4 - DNO Scenario 4 equiv'!O176)","v":0},{"$f":"CHOOSE(view,\n'[1]M1a - Model inputs'!P176,\n'[1]M1b - Model inputs'!P176,\n'[1]SM1 - DECC Scenario 3 equiv'!P176,\n'[1]SM2 - DECC Scenario 1 equiv'!P176,\n'[1]SM3 - DECC Scenario 2 equiv'!P176,\n'[1]SM4 - DNO Scenario 4 equiv'!P176,\n'[2]M1a - Model inputs'!P176,\n'[2]M1b - Model inputs'!P176,\n'[2]SM1 - DECC Scenario 3 equiv'!P176,\n'[2]SM2 - DECC Scenario 1 equiv'!P176,\n'[2]SM3 - DECC Scenario 2 equiv'!P176,\n'[2]SM4 - DNO Scenario 4 equiv'!P176)","v":0},{"$f":"CHOOSE(view,\n'[1]M1a - Model inputs'!Q176,\n'[1]M1b - Model inputs'!Q176,\n'[1]SM1 - DECC Scenario 3 equiv'!Q176,\n'[1]SM2 - DECC Scenario 1 equiv'!Q176,\n'[1]SM3 - DECC Scenario 2 equiv'!Q176,\n'[1]SM4 - DNO Scenario 4 equiv'!Q176,\n'[2]M1a - Model inputs'!Q176,\n'[2]M1b - Model inputs'!Q176,\n'[2]SM1 - DECC Scenario 3 equiv'!Q176,\n'[2]SM2 - DECC Scenario 1 equiv'!Q176,\n'[2]SM3 - DECC Scenario 2 equiv'!Q176,\n'[2]SM4 - DNO Scenario 4 equiv'!Q176)","v":0},{"$f":"CHOOSE(view,\n'[1]M1a - Model inputs'!R176,\n'[1]M1b - Model inputs'!R176,\n'[1]SM1 - DECC Scenario 3 equiv'!R176,\n'[1]SM2 - DECC Scenario 1 equiv'!R176,\n'[1]SM3 - DECC Scenario 2 equiv'!R176,\n'[1]SM4 - DNO Scenario 4 equiv'!R176,\n'[2]M1a - Model inputs'!R176,\n'[2]M1b - Model inputs'!R176,\n'[2]SM1 - DECC Scenario 3 equiv'!R176,\n'[2]SM2 - DECC Scenario 1 equiv'!R176,\n'[2]SM3 - DECC Scenario 2 equiv'!R176,\n'[2]SM4 - DNO Scenario 4 equiv'!R176)","v":0},{"$f":"CHOOSE(view,\n'[1]M1a - Model inputs'!S176,\n'[1]M1b - Model inputs'!S176,\n'[1]SM1 - DECC Scenario 3 equiv'!S176,\n'[1]SM2 - DECC Scenario 1 equiv'!S176,\n'[1]SM3 - DECC Scenario 2 equiv'!S176,\n'[1]SM4 - DNO Scenario 4 equiv'!S176,\n'[2]M1a - Model inputs'!S176,\n'[2]M1b - Model inputs'!S176,\n'[2]SM1 - DECC Scenario 3 equiv'!S176,\n'[2]SM2 - DECC Scenario 1 equiv'!S176,\n'[2]SM3 - DECC Scenario 2 equiv'!S176,\n'[2]SM4 - DNO Scenario 4 equiv'!S176)","v":0}]
[]
[null,null,null,null,{"$f":"Input!E109","v":"Allowed uncertain costs (High Value Projects)"},null,"£m 12/13 prices",null,null,null,null,null,null,null,null,null,null,null,null,null,null,null,null,null,null,null,null,null,null,null,null,null,null,null,null,{"$f":"AJ19","v":0},0,0,0,0,0,0,0]
[null,null,null,null,{"$f":"Input!E110","v":"Allocation to load related capex"},null,"%",null,null,null,null,null,null,null,null,null,null,null,null,null,null,null,null,null,null,null,null,null,null,null,null,null,null,null,null,{"$f":"CHOOSE(view,\n'[1]M1a - Model inputs'!L179,\n'[1]M1b - Model inputs'!L179,\n'[1]SM1 - DECC Scenario 3 equiv'!L179,\n'[1]SM2 - DECC Scenario 1 equiv'!L179,\n'[1]SM3 - DECC Scenario 2 equiv'!L179,\n'[1]SM4 - DNO Scenario 4 equiv'!L179,\n'[2]M1a - Model inputs'!L179,\n'[2]M1b - Model inputs'!L179,\n'[2]SM1 - DECC Scenario 3 equiv'!L179,\n'[2]SM2 - DECC Scenario 1 equiv'!L179,\n'[2]SM3 - DECC Scenario 2 equiv'!L179,\n'[2]SM4 - DNO Scenario 4 equiv'!L179)","v":0},{"$f":"CHOOSE(view,\n'[1]M1a - Model inputs'!M179,\n'[1]M1b - Model inputs'!M179,\n'[1]SM1 - DECC Scenario 3 equiv'!M179,\n'[1]SM2 - DECC Scenario 1 equiv'!M179,\n'[1]SM3 - DECC Scenario 2 equiv'!M179,\n'[1]SM4 - DNO Scenario 4 equiv'!M179,\n'[2]M1a - Model inputs'!M179,\n'[2]M1b - Model inputs'!M179,\n'[2]SM1 - DECC Scenario 3 equiv'!M179,\n'[2]SM2 - DECC Scenario 1 equiv'!M179,\n'[2]SM3 - DECC Scenario 2 equiv'!M179,\n'[2]SM4 - DNO Scenario 4 equiv'!M179)","v":0},{"$f":"CHOOSE(view,\n'[1]M1a - Model inputs'!N179,\n'[1]M1b - Model inputs'!N179,\n'[1]SM1 - DECC Scenario 3 equiv'!N179,\n'[1]SM2 - DECC Scenario 1 equiv'!N179,\n'[1]SM3 - DECC Scenario 2 equiv'!N179,\n'[1]SM4 - DNO Scenario 4 equiv'!N179,\n'[2]M1a - Model inputs'!N179,\n'[2]M1b - Model inputs'!N179,\n'[2]SM1 - DECC Scenario 3 equiv'!N179,\n'[2]SM2 - DECC Scenario 1 equiv'!N179,\n'[2]SM3 - DECC Scenario 2 equiv'!N179,\n'[2]SM4 - DNO Scenario 4 equiv'!N179)","v":0},{"$f":"CHOOSE(view,\n'[1]M1a - Model inputs'!O179,\n'[1]M1b - Model inputs'!O179,\n'[1]SM1 - DECC Scenario 3 equiv'!O179,\n'[1]SM2 - DECC Scenario 1 equiv'!O179,\n'[1]SM3 - DECC Scenario 2 equiv'!O179,\n'[1]SM4 - DNO Scenario 4 equiv'!O179,\n'[2]M1a - Model inputs'!O179,\n'[2]M1b - Model inputs'!O179,\n'[2]SM1 - DECC Scenario 3 equiv'!O179,\n'[2]SM2 - DECC Scenario 1 equiv'!O179,\n'[2]SM3 - DECC Scenario 2 equiv'!O179,\n'[2]SM4 - DNO Scenario 4 equiv'!O179)","v":0},{"$f":"CHOOSE(view,\n'[1]M1a - Model inputs'!P179,\n'[1]M1b - Model inputs'!P179,\n'[1]SM1 - DECC Scenario 3 equiv'!P179,\n'[1]SM2 - DECC Scenario 1 equiv'!P179,\n'[1]SM3 - DECC Scenario 2 equiv'!P179,\n'[1]SM4 - DNO Scenario 4 equiv'!P179,\n'[2]M1a - Model inputs'!P179,\n'[2]M1b - Model inputs'!P179,\n'[2]SM1 - DECC Scenario 3 equiv'!P179,\n'[2]SM2 - DECC Scenario 1 equiv'!P179,\n'[2]SM3 - DECC Scenario 2 equiv'!P179,\n'[2]SM4 - DNO Scenario 4 equiv'!P179)","v":0},{"$f":"CHOOSE(view,\n'[1]M1a - Model inputs'!Q179,\n'[1]M1b - Model inputs'!Q179,\n'[1]SM1 - DECC Scenario 3 equiv'!Q179,\n'[1]SM2 - DECC Scenario 1 equiv'!Q179,\n'[1]SM3 - DECC Scenario 2 equiv'!Q179,\n'[1]SM4 - DNO Scenario 4 equiv'!Q179,\n'[2]M1a - Model inputs'!Q179,\n'[2]M1b - Model inputs'!Q179,\n'[2]SM1 - DECC Scenario 3 equiv'!Q179,\n'[2]SM2 - DECC Scenario 1 equiv'!Q179,\n'[2]SM3 - DECC Scenario 2 equiv'!Q179,\n'[2]SM4 - DNO Scenario 4 equiv'!Q179)","v":0},{"$f":"CHOOSE(view,\n'[1]M1a - Model inputs'!R179,\n'[1]M1b - Model inputs'!R179,\n'[1]SM1 - DECC Scenario 3 equiv'!R179,\n'[1]SM2 - DECC Scenario 1 equiv'!R179,\n'[1]SM3 - DECC Scenario 2 equiv'!R179,\n'[1]SM4 - DNO Scenario 4 equiv'!R179,\n'[2]M1a - Model inputs'!R179,\n'[2]M1b - Model inputs'!R179,\n'[2]SM1 - DECC Scenario 3 equiv'!R179,\n'[2]SM2 - DECC Scenario 1 equiv'!R179,\n'[2]SM3 - DECC Scenario 2 equiv'!R179,\n'[2]SM4 - DNO Scenario 4 equiv'!R179)","v":0},{"$f":"CHOOSE(view,\n'[1]M1a - Model inputs'!S179,\n'[1]M1b - Model inputs'!S179,\n'[1]SM1 - DECC Scenario 3 equiv'!S179,\n'[1]SM2 - DECC Scenario 1 equiv'!S179,\n'[1]SM3 - DECC Scenario 2 equiv'!S179,\n'[1]SM4 - DNO Scenario 4 equiv'!S179,\n'[2]M1a - Model inputs'!S179,\n'[2]M1b - Model inputs'!S179,\n'[2]SM1 - DECC Scenario 3 equiv'!S179,\n'[2]SM2 - DECC Scenario 1 equiv'!S179,\n'[2]SM3 - DECC Scenario 2 equiv'!S179,\n'[2]SM4 - DNO Scenario 4 equiv'!S179)","v":0}]
[null,null,null,null,{"$f":"Input!E111","v":"Allocation to non-load related capex - asset replacement"},null,"%",null,null,null,null,null,null,null,null,null,null,null,null,null,null,null,null,null,null,null,null,null,null,null,null,null,null,null,null,{"$f":"CHOOSE(view,\n'[1]M1a - Model inputs'!L180,\n'[1]M1b - Model inputs'!L180,\n'[1]SM1 - DECC Scenario 3 equiv'!L180,\n'[1]SM2 - DECC Scenario 1 equiv'!L180,\n'[1]SM3 - DECC Scenario 2 equiv'!L180,\n'[1]SM4 - DNO Scenario 4 equiv'!L180,\n'[2]M1a - Model inputs'!L180,\n'[2]M1b - Model inputs'!L180,\n'[2]SM1 - DECC Scenario 3 equiv'!L180,\n'[2]SM2 - DECC Scenario 1 equiv'!L180,\n'[2]SM3 - DECC Scenario 2 equiv'!L180,\n'[2]SM4 - DNO Scenario 4 equiv'!L180)","v":0},{"$f":"CHOOSE(view,\n'[1]M1a - Model inputs'!M180,\n'[1]M1b - Model inputs'!M180,\n'[1]SM1 - DECC Scenario 3 equiv'!M180,\n'[1]SM2 - DECC Scenario 1 equiv'!M180,\n'[1]SM3 - DECC Scenario 2 equiv'!M180,\n'[1]SM4 - DNO Scenario 4 equiv'!M180,\n'[2]M1a - Model inputs'!M180,\n'[2]M1b - Model inputs'!M180,\n'[2]SM1 - DECC Scenario 3 equiv'!M180,\n'[2]SM2 - DECC Scenario 1 equiv'!M180,\n'[2]SM3 - DECC Scenario 2 equiv'!M180,\n'[2]SM4 - DNO Scenario 4 equiv'!M180)","v":0},{"$f":"CHOOSE(view,\n'[1]M1a - Model inputs'!N180,\n'[1]M1b - Model inputs'!N180,\n'[1]SM1 - DECC Scenario 3 equiv'!N180,\n'[1]SM2 - DECC Scenario 1 equiv'!N180,\n'[1]SM3 - DECC Scenario 2 equiv'!N180,\n'[1]SM4 - DNO Scenario 4 equiv'!N180,\n'[2]M1a - Model inputs'!N180,\n'[2]M1b - Model inputs'!N180,\n'[2]SM1 - DECC Scenario 3 equiv'!N180,\n'[2]SM2 - DECC Scenario 1 equiv'!N180,\n'[2]SM3 - DECC Scenario 2 equiv'!N180,\n'[2]SM4 - DNO Scenario 4 equiv'!N180)","v":0},{"$f":"CHOOSE(view,\n'[1]M1a - Model inputs'!O180,\n'[1]M1b - Model inputs'!O180,\n'[1]SM1 - DECC Scenario 3 equiv'!O180,\n'[1]SM2 - DECC Scenario 1 equiv'!O180,\n'[1]SM3 - DECC Scenario 2 equiv'!O180,\n'[1]SM4 - DNO Scenario 4 equiv'!O180,\n'[2]M1a - Model inputs'!O180,\n'[2]M1b - Model inputs'!O180,\n'[2]SM1 - DECC Scenario 3 equiv'!O180,\n'[2]SM2 - DECC Scenario 1 equiv'!O180,\n'[2]SM3 - DECC Scenario 2 equiv'!O180,\n'[2]SM4 - DNO Scenario 4 equiv'!O180)","v":0},{"$f":"CHOOSE(view,\n'[1]M1a - Model inputs'!P180,\n'[1]M1b - Model inputs'!P180,\n'[1]SM1 - DECC Scenario 3 equiv'!P180,\n'[1]SM2 - DECC Scenario 1 equiv'!P180,\n'[1]SM3 - DECC Scenario 2 equiv'!P180,\n'[1]SM4 - DNO Scenario 4 equiv'!P180,\n'[2]M1a - Model inputs'!P180,\n'[2]M1b - Model inputs'!P180,\n'[2]SM1 - DECC Scenario 3 equiv'!P180,\n'[2]SM2 - DECC Scenario 1 equiv'!P180,\n'[2]SM3 - DECC Scenario 2 equiv'!P180,\n'[2]SM4 - DNO Scenario 4 equiv'!P180)","v":0},{"$f":"CHOOSE(view,\n'[1]M1a - Model inputs'!Q180,\n'[1]M1b - Model inputs'!Q180,\n'[1]SM1 - DECC Scenario 3 equiv'!Q180,\n'[1]SM2 - DECC Scenario 1 equiv'!Q180,\n'[1]SM3 - DECC Scenario 2 equiv'!Q180,\n'[1]SM4 - DNO Scenario 4 equiv'!Q180,\n'[2]M1a - Model inputs'!Q180,\n'[2]M1b - Model inputs'!Q180,\n'[2]SM1 - DECC Scenario 3 equiv'!Q180,\n'[2]SM2 - DECC Scenario 1 equiv'!Q180,\n'[2]SM3 - DECC Scenario 2 equiv'!Q180,\n'[2]SM4 - DNO Scenario 4 equiv'!Q180)","v":0},{"$f":"CHOOSE(view,\n'[1]M1a - Model inputs'!R180,\n'[1]M1b - Model inputs'!R180,\n'[1]SM1 - DECC Scenario 3 equiv'!R180,\n'[1]SM2 - DECC Scenario 1 equiv'!R180,\n'[1]SM3 - DECC Scenario 2 equiv'!R180,\n'[1]SM4 - DNO Scenario 4 equiv'!R180,\n'[2]M1a - Model inputs'!R180,\n'[2]M1b - Model inputs'!R180,\n'[2]SM1 - DECC Scenario 3 equiv'!R180,\n'[2]SM2 - DECC Scenario 1 equiv'!R180,\n'[2]SM3 - DECC Scenario 2 equiv'!R180,\n'[2]SM4 - DNO Scenario 4 equiv'!R180)","v":0},{"$f":"CHOOSE(view,\n'[1]M1a - Model inputs'!S180,\n'[1]M1b - Model inputs'!S180,\n'[1]SM1 - DECC Scenario 3 equiv'!S180,\n'[1]SM2 - DECC Scenario 1 equiv'!S180,\n'[1]SM3 - DECC Scenario 2 equiv'!S180,\n'[1]SM4 - DNO Scenario 4 equiv'!S180,\n'[2]M1a - Model inputs'!S180,\n'[2]M1b - Model inputs'!S180,\n'[2]SM1 - DECC Scenario 3 equiv'!S180,\n'[2]SM2 - DECC Scenario 1 equiv'!S180,\n'[2]SM3 - DECC Scenario 2 equiv'!S180,\n'[2]SM4 - DNO Scenario 4 equiv'!S180)","v":0}]
[null,null,null,null,{"$f":"Input!E112","v":"Allocation to non-load related capex - other"},null,"%",null,null,null,null,null,null,null,null,null,null,null,null,null,null,null,null,null,null,null,null,null,null,null,null,null,null,null,null,{"$f":"CHOOSE(view,\n'[1]M1a - Model inputs'!L181,\n'[1]M1b - Model inputs'!L181,\n'[1]SM1 - DECC Scenario 3 equiv'!L181,\n'[1]SM2 - DECC Scenario 1 equiv'!L181,\n'[1]SM3 - DECC Scenario 2 equiv'!L181,\n'[1]SM4 - DNO Scenario 4 equiv'!L181,\n'[2]M1a - Model inputs'!L181,\n'[2]M1b - Model inputs'!L181,\n'[2]SM1 - DECC Scenario 3 equiv'!L181,\n'[2]SM2 - DECC Scenario 1 equiv'!L181,\n'[2]SM3 - DECC Scenario 2 equiv'!L181,\n'[2]SM4 - DNO Scenario 4 equiv'!L181)","v":0},{"$f":"CHOOSE(view,\n'[1]M1a - Model inputs'!M181,\n'[1]M1b - Model inputs'!M181,\n'[1]SM1 - DECC Scenario 3 equiv'!M181,\n'[1]SM2 - DECC Scenario 1 equiv'!M181,\n'[1]SM3 - DECC Scenario 2 equiv'!M181,\n'[1]SM4 - DNO Scenario 4 equiv'!M181,\n'[2]M1a - Model inputs'!M181,\n'[2]M1b - Model inputs'!M181,\n'[2]SM1 - DECC Scenario 3 equiv'!M181,\n'[2]SM2 - DECC Scenario 1 equiv'!M181,\n'[2]SM3 - DECC Scenario 2 equiv'!M181,\n'[2]SM4 - DNO Scenario 4 equiv'!M181)","v":0},{"$f":"CHOOSE(view,\n'[1]M1a - Model inputs'!N181,\n'[1]M1b - Model inputs'!N181,\n'[1]SM1 - DECC Scenario 3 equiv'!N181,\n'[1]SM2 - DECC Scenario 1 equiv'!N181,\n'[1]SM3 - DECC Scenario 2 equiv'!N181,\n'[1]SM4 - DNO Scenario 4 equiv'!N181,\n'[2]M1a - Model inputs'!N181,\n'[2]M1b - Model inputs'!N181,\n'[2]SM1 - DECC Scenario 3 equiv'!N181,\n'[2]SM2 - DECC Scenario 1 equiv'!N181,\n'[2]SM3 - DECC Scenario 2 equiv'!N181,\n'[2]SM4 - DNO Scenario 4 equiv'!N181)","v":0},{"$f":"CHOOSE(view,\n'[1]M1a - Model inputs'!O181,\n'[1]M1b - Model inputs'!O181,\n'[1]SM1 - DECC Scenario 3 equiv'!O181,\n'[1]SM2 - DECC Scenario 1 equiv'!O181,\n'[1]SM3 - DECC Scenario 2 equiv'!O181,\n'[1]SM4 - DNO Scenario 4 equiv'!O181,\n'[2]M1a - Model inputs'!O181,\n'[2]M1b - Model inputs'!O181,\n'[2]SM1 - DECC Scenario 3 equiv'!O181,\n'[2]SM2 - DECC Scenario 1 equiv'!O181,\n'[2]SM3 - DECC Scenario 2 equiv'!O181,\n'[2]SM4 - DNO Scenario 4 equiv'!O181)","v":0},{"$f":"CHOOSE(view,\n'[1]M1a - Model inputs'!P181,\n'[1]M1b - Model inputs'!P181,\n'[1]SM1 - DECC Scenario 3 equiv'!P181,\n'[1]SM2 - DECC Scenario 1 equiv'!P181,\n'[1]SM3 - DECC Scenario 2 equiv'!P181,\n'[1]SM4 - DNO Scenario 4 equiv'!P181,\n'[2]M1a - Model inputs'!P181,\n'[2]M1b - Model inputs'!P181,\n'[2]SM1 - DECC Scenario 3 equiv'!P181,\n'[2]SM2 - DECC Scenario 1 equiv'!P181,\n'[2]SM3 - DECC Scenario 2 equiv'!P181,\n'[2]SM4 - DNO Scenario 4 equiv'!P181)","v":0},{"$f":"CHOOSE(view,\n'[1]M1a - Model inputs'!Q181,\n'[1]M1b - Model inputs'!Q181,\n'[1]SM1 - DECC Scenario 3 equiv'!Q181,\n'[1]SM2 - DECC Scenario 1 equiv'!Q181,\n'[1]SM3 - DECC Scenario 2 equiv'!Q181,\n'[1]SM4 - DNO Scenario 4 equiv'!Q181,\n'[2]M1a - Model inputs'!Q181,\n'[2]M1b - Model inputs'!Q181,\n'[2]SM1 - DECC Scenario 3 equiv'!Q181,\n'[2]SM2 - DECC Scenario 1 equiv'!Q181,\n'[2]SM3 - DECC Scenario 2 equiv'!Q181,\n'[2]SM4 - DNO Scenario 4 equiv'!Q181)","v":0},{"$f":"CHOOSE(view,\n'[1]M1a - Model inputs'!R181,\n'[1]M1b - Model inputs'!R181,\n'[1]SM1 - DECC Scenario 3 equiv'!R181,\n'[1]SM2 - DECC Scenario 1 equiv'!R181,\n'[1]SM3 - DECC Scenario 2 equiv'!R181,\n'[1]SM4 - DNO Scenario 4 equiv'!R181,\n'[2]M1a - Model inputs'!R181,\n'[2]M1b - Model inputs'!R181,\n'[2]SM1 - DECC Scenario 3 equiv'!R181,\n'[2]SM2 - DECC Scenario 1 equiv'!R181,\n'[2]SM3 - DECC Scenario 2 equiv'!R181,\n'[2]SM4 - DNO Scenario 4 equiv'!R181)","v":0},{"$f":"CHOOSE(view,\n'[1]M1a - Model inputs'!S181,\n'[1]M1b - Model inputs'!S181,\n'[1]SM1 - DECC Scenario 3 equiv'!S181,\n'[1]SM2 - DECC Scenario 1 equiv'!S181,\n'[1]SM3 - DECC Scenario 2 equiv'!S181,\n'[1]SM4 - DNO Scenario 4 equiv'!S181,\n'[2]M1a - Model inputs'!S181,\n'[2]M1b - Model inputs'!S181,\n'[2]SM1 - DECC Scenario 3 equiv'!S181,\n'[2]SM2 - DECC Scenario 1 equiv'!S181,\n'[2]SM3 - DECC Scenario 2 equiv'!S181,\n'[2]SM4 - DNO Scenario 4 equiv'!S181)","v":0}]
[null,null,null,null,{"$f":"Input!E113","v":"Allocation to faults"},null,"%",null,null,null,null,null,null,null,null,null,null,null,null,null,null,null,null,null,null,null,null,null,null,null,null,null,null,null,null,{"$f":"CHOOSE(view,\n'[1]M1a - Model inputs'!L182,\n'[1]M1b - Model inputs'!L182,\n'[1]SM1 - DECC Scenario 3 equiv'!L182,\n'[1]SM2 - DECC Scenario 1 equiv'!L182,\n'[1]SM3 - DECC Scenario 2 equiv'!L182,\n'[1]SM4 - DNO Scenario 4 equiv'!L182,\n'[2]M1a - Model inputs'!L182,\n'[2]M1b - Model inputs'!L182,\n'[2]SM1 - DECC Scenario 3 equiv'!L182,\n'[2]SM2 - DECC Scenario 1 equiv'!L182,\n'[2]SM3 - DECC Scenario 2 equiv'!L182,\n'[2]SM4 - DNO Scenario 4 equiv'!L182)","v":0},{"$f":"CHOOSE(view,\n'[1]M1a - Model inputs'!M182,\n'[1]M1b - Model inputs'!M182,\n'[1]SM1 - DECC Scenario 3 equiv'!M182,\n'[1]SM2 - DECC Scenario 1 equiv'!M182,\n'[1]SM3 - DECC Scenario 2 equiv'!M182,\n'[1]SM4 - DNO Scenario 4 equiv'!M182,\n'[2]M1a - Model inputs'!M182,\n'[2]M1b - Model inputs'!M182,\n'[2]SM1 - DECC Scenario 3 equiv'!M182,\n'[2]SM2 - DECC Scenario 1 equiv'!M182,\n'[2]SM3 - DECC Scenario 2 equiv'!M182,\n'[2]SM4 - DNO Scenario 4 equiv'!M182)","v":0},{"$f":"CHOOSE(view,\n'[1]M1a - Model inputs'!N182,\n'[1]M1b - Model inputs'!N182,\n'[1]SM1 - DECC Scenario 3 equiv'!N182,\n'[1]SM2 - DECC Scenario 1 equiv'!N182,\n'[1]SM3 - DECC Scenario 2 equiv'!N182,\n'[1]SM4 - DNO Scenario 4 equiv'!N182,\n'[2]M1a - Model inputs'!N182,\n'[2]M1b - Model inputs'!N182,\n'[2]SM1 - DECC Scenario 3 equiv'!N182,\n'[2]SM2 - DECC Scenario 1 equiv'!N182,\n'[2]SM3 - DECC Scenario 2 equiv'!N182,\n'[2]SM4 - DNO Scenario 4 equiv'!N182)","v":0},{"$f":"CHOOSE(view,\n'[1]M1a - Model inputs'!O182,\n'[1]M1b - Model inputs'!O182,\n'[1]SM1 - DECC Scenario 3 equiv'!O182,\n'[1]SM2 - DECC Scenario 1 equiv'!O182,\n'[1]SM3 - DECC Scenario 2 equiv'!O182,\n'[1]SM4 - DNO Scenario 4 equiv'!O182,\n'[2]M1a - Model inputs'!O182,\n'[2]M1b - Model inputs'!O182,\n'[2]SM1 - DECC Scenario 3 equiv'!O182,\n'[2]SM2 - DECC Scenario 1 equiv'!O182,\n'[2]SM3 - DECC Scenario 2 equiv'!O182,\n'[2]SM4 - DNO Scenario 4 equiv'!O182)","v":0},{"$f":"CHOOSE(view,\n'[1]M1a - Model inputs'!P182,\n'[1]M1b - Model inputs'!P182,\n'[1]SM1 - DECC Scenario 3 equiv'!P182,\n'[1]SM2 - DECC Scenario 1 equiv'!P182,\n'[1]SM3 - DECC Scenario 2 equiv'!P182,\n'[1]SM4 - DNO Scenario 4 equiv'!P182,\n'[2]M1a - Model inputs'!P182,\n'[2]M1b - Model inputs'!P182,\n'[2]SM1 - DECC Scenario 3 equiv'!P182,\n'[2]SM2 - DECC Scenario 1 equiv'!P182,\n'[2]SM3 - DECC Scenario 2 equiv'!P182,\n'[2]SM4 - DNO Scenario 4 equiv'!P182)","v":0},{"$f":"CHOOSE(view,\n'[1]M1a - Model inputs'!Q182,\n'[1]M1b - Model inputs'!Q182,\n'[1]SM1 - DECC Scenario 3 equiv'!Q182,\n'[1]SM2 - DECC Scenario 1 equiv'!Q182,\n'[1]SM3 - DECC Scenario 2 equiv'!Q182,\n'[1]SM4 - DNO Scenario 4 equiv'!Q182,\n'[2]M1a - Model inputs'!Q182,\n'[2]M1b - Model inputs'!Q182,\n'[2]SM1 - DECC Scenario 3 equiv'!Q182,\n'[2]SM2 - DECC Scenario 1 equiv'!Q182,\n'[2]SM3 - DECC Scenario 2 equiv'!Q182,\n'[2]SM4 - DNO Scenario 4 equiv'!Q182)","v":0},{"$f":"CHOOSE(view,\n'[1]M1a - Model inputs'!R182,\n'[1]M1b - Model inputs'!R182,\n'[1]SM1 - DECC Scenario 3 equiv'!R182,\n'[1]SM2 - DECC Scenario 1 equiv'!R182,\n'[1]SM3 - DECC Scenario 2 equiv'!R182,\n'[1]SM4 - DNO Scenario 4 equiv'!R182,\n'[2]M1a - Model inputs'!R182,\n'[2]M1b - Model inputs'!R182,\n'[2]SM1 - DECC Scenario 3 equiv'!R182,\n'[2]SM2 - DECC Scenario 1 equiv'!R182,\n'[2]SM3 - DECC Scenario 2 equiv'!R182,\n'[2]SM4 - DNO Scenario 4 equiv'!R182)","v":0},{"$f":"CHOOSE(view,\n'[1]M1a - Model inputs'!S182,\n'[1]M1b - Model inputs'!S182,\n'[1]SM1 - DECC Scenario 3 equiv'!S182,\n'[1]SM2 - DECC Scenario 1 equiv'!S182,\n'[1]SM3 - DECC Scenario 2 equiv'!S182,\n'[1]SM4 - DNO Scenario 4 equiv'!S182,\n'[2]M1a - Model inputs'!S182,\n'[2]M1b - Model inputs'!S182,\n'[2]SM1 - DECC Scenario 3 equiv'!S182,\n'[2]SM2 - DECC Scenario 1 equiv'!S182,\n'[2]SM3 - DECC Scenario 2 equiv'!S182,\n'[2]SM4 - DNO Scenario 4 equiv'!S182)","v":0}]
[null,null,null,null,{"$f":"Input!E114","v":"Allocation to tree cutting"},null,"%",null,null,null,null,null,null,null,null,null,null,null,null,null,null,null,null,null,null,null,null,null,null,null,null,null,null,null,null,{"$f":"CHOOSE(view,\n'[1]M1a - Model inputs'!L183,\n'[1]M1b - Model inputs'!L183,\n'[1]SM1 - DECC Scenario 3 equiv'!L183,\n'[1]SM2 - DECC Scenario 1 equiv'!L183,\n'[1]SM3 - DECC Scenario 2 equiv'!L183,\n'[1]SM4 - DNO Scenario 4 equiv'!L183,\n'[2]M1a - Model inputs'!L183,\n'[2]M1b - Model inputs'!L183,\n'[2]SM1 - DECC Scenario 3 equiv'!L183,\n'[2]SM2 - DECC Scenario 1 equiv'!L183,\n'[2]SM3 - DECC Scenario 2 equiv'!L183,\n'[2]SM4 - DNO Scenario 4 equiv'!L183)","v":0},{"$f":"CHOOSE(view,\n'[1]M1a - Model inputs'!M183,\n'[1]M1b - Model inputs'!M183,\n'[1]SM1 - DECC Scenario 3 equiv'!M183,\n'[1]SM2 - DECC Scenario 1 equiv'!M183,\n'[1]SM3 - DECC Scenario 2 equiv'!M183,\n'[1]SM4 - DNO Scenario 4 equiv'!M183,\n'[2]M1a - Model inputs'!M183,\n'[2]M1b - Model inputs'!M183,\n'[2]SM1 - DECC Scenario 3 equiv'!M183,\n'[2]SM2 - DECC Scenario 1 equiv'!M183,\n'[2]SM3 - DECC Scenario 2 equiv'!M183,\n'[2]SM4 - DNO Scenario 4 equiv'!M183)","v":0},{"$f":"CHOOSE(view,\n'[1]M1a - Model inputs'!N183,\n'[1]M1b - Model inputs'!N183,\n'[1]SM1 - DECC Scenario 3 equiv'!N183,\n'[1]SM2 - DECC Scenario 1 equiv'!N183,\n'[1]SM3 - DECC Scenario 2 equiv'!N183,\n'[1]SM4 - DNO Scenario 4 equiv'!N183,\n'[2]M1a - Model inputs'!N183,\n'[2]M1b - Model inputs'!N183,\n'[2]SM1 - DECC Scenario 3 equiv'!N183,\n'[2]SM2 - DECC Scenario 1 equiv'!N183,\n'[2]SM3 - DECC Scenario 2 equiv'!N183,\n'[2]SM4 - DNO Scenario 4 equiv'!N183)","v":0},{"$f":"CHOOSE(view,\n'[1]M1a - Model inputs'!O183,\n'[1]M1b - Model inputs'!O183,\n'[1]SM1 - DECC Scenario 3 equiv'!O183,\n'[1]SM2 - DECC Scenario 1 equiv'!O183,\n'[1]SM3 - DECC Scenario 2 equiv'!O183,\n'[1]SM4 - DNO Scenario 4 equiv'!O183,\n'[2]M1a - Model inputs'!O183,\n'[2]M1b - Model inputs'!O183,\n'[2]SM1 - DECC Scenario 3 equiv'!O183,\n'[2]SM2 - DECC Scenario 1 equiv'!O183,\n'[2]SM3 - DECC Scenario 2 equiv'!O183,\n'[2]SM4 - DNO Scenario 4 equiv'!O183)","v":0},{"$f":"CHOOSE(view,\n'[1]M1a - Model inputs'!P183,\n'[1]M1b - Model inputs'!P183,\n'[1]SM1 - DECC Scenario 3 equiv'!P183,\n'[1]SM2 - DECC Scenario 1 equiv'!P183,\n'[1]SM3 - DECC Scenario 2 equiv'!P183,\n'[1]SM4 - DNO Scenario 4 equiv'!P183,\n'[2]M1a - Model inputs'!P183,\n'[2]M1b - Model inputs'!P183,\n'[2]SM1 - DECC Scenario 3 equiv'!P183,\n'[2]SM2 - DECC Scenario 1 equiv'!P183,\n'[2]SM3 - DECC Scenario 2 equiv'!P183,\n'[2]SM4 - DNO Scenario 4 equiv'!P183)","v":0},{"$f":"CHOOSE(view,\n'[1]M1a - Model inputs'!Q183,\n'[1]M1b - Model inputs'!Q183,\n'[1]SM1 - DECC Scenario 3 equiv'!Q183,\n'[1]SM2 - DECC Scenario 1 equiv'!Q183,\n'[1]SM3 - DECC Scenario 2 equiv'!Q183,\n'[1]SM4 - DNO Scenario 4 equiv'!Q183,\n'[2]M1a - Model inputs'!Q183,\n'[2]M1b - Model inputs'!Q183,\n'[2]SM1 - DECC Scenario 3 equiv'!Q183,\n'[2]SM2 - DECC Scenario 1 equiv'!Q183,\n'[2]SM3 - DECC Scenario 2 equiv'!Q183,\n'[2]SM4 - DNO Scenario 4 equiv'!Q183)","v":0},{"$f":"CHOOSE(view,\n'[1]M1a - Model inputs'!R183,\n'[1]M1b - Model inputs'!R183,\n'[1]SM1 - DECC Scenario 3 equiv'!R183,\n'[1]SM2 - DECC Scenario 1 equiv'!R183,\n'[1]SM3 - DECC Scenario 2 equiv'!R183,\n'[1]SM4 - DNO Scenario 4 equiv'!R183,\n'[2]M1a - Model inputs'!R183,\n'[2]M1b - Model inputs'!R183,\n'[2]SM1 - DECC Scenario 3 equiv'!R183,\n'[2]SM2 - DECC Scenario 1 equiv'!R183,\n'[2]SM3 - DECC Scenario 2 equiv'!R183,\n'[2]SM4 - DNO Scenario 4 equiv'!R183)","v":0},{"$f":"CHOOSE(view,\n'[1]M1a - Model inputs'!S183,\n'[1]M1b - Model inputs'!S183,\n'[1]SM1 - DECC Scenario 3 equiv'!S183,\n'[1]SM2 - DECC Scenario 1 equiv'!S183,\n'[1]SM3 - DECC Scenario 2 equiv'!S183,\n'[1]SM4 - DNO Scenario 4 equiv'!S183,\n'[2]M1a - Model inputs'!S183,\n'[2]M1b - Model inputs'!S183,\n'[2]SM1 - DECC Scenario 3 equiv'!S183,\n'[2]SM2 - DECC Scenario 1 equiv'!S183,\n'[2]SM3 - DECC Scenario 2 equiv'!S183,\n'[2]SM4 - DNO Scenario 4 equiv'!S183)","v":0}]
[null,null,null,null,{"$f":"Input!E115","v":"Allocation to controllable opex"},null,"%",null,null,null,null,null,null,null,null,null,null,null,null,null,null,null,null,null,null,null,null,null,null,null,null,null,null,null,null,{"$f":"CHOOSE(view,\n'[1]M1a - Model inputs'!L184,\n'[1]M1b - Model inputs'!L184,\n'[1]SM1 - DECC Scenario 3 equiv'!L184,\n'[1]SM2 - DECC Scenario 1 equiv'!L184,\n'[1]SM3 - DECC Scenario 2 equiv'!L184,\n'[1]SM4 - DNO Scenario 4 equiv'!L184,\n'[2]M1a - Model inputs'!L184,\n'[2]M1b - Model inputs'!L184,\n'[2]SM1 - DECC Scenario 3 equiv'!L184,\n'[2]SM2 - DECC Scenario 1 equiv'!L184,\n'[2]SM3 - DECC Scenario 2 equiv'!L184,\n'[2]SM4 - DNO Scenario 4 equiv'!L184)","v":0},{"$f":"CHOOSE(view,\n'[1]M1a - Model inputs'!M184,\n'[1]M1b - Model inputs'!M184,\n'[1]SM1 - DECC Scenario 3 equiv'!M184,\n'[1]SM2 - DECC Scenario 1 equiv'!M184,\n'[1]SM3 - DECC Scenario 2 equiv'!M184,\n'[1]SM4 - DNO Scenario 4 equiv'!M184,\n'[2]M1a - Model inputs'!M184,\n'[2]M1b - Model inputs'!M184,\n'[2]SM1 - DECC Scenario 3 equiv'!M184,\n'[2]SM2 - DECC Scenario 1 equiv'!M184,\n'[2]SM3 - DECC Scenario 2 equiv'!M184,\n'[2]SM4 - DNO Scenario 4 equiv'!M184)","v":0},{"$f":"CHOOSE(view,\n'[1]M1a - Model inputs'!N184,\n'[1]M1b - Model inputs'!N184,\n'[1]SM1 - DECC Scenario 3 equiv'!N184,\n'[1]SM2 - DECC Scenario 1 equiv'!N184,\n'[1]SM3 - DECC Scenario 2 equiv'!N184,\n'[1]SM4 - DNO Scenario 4 equiv'!N184,\n'[2]M1a - Model inputs'!N184,\n'[2]M1b - Model inputs'!N184,\n'[2]SM1 - DECC Scenario 3 equiv'!N184,\n'[2]SM2 - DECC Scenario 1 equiv'!N184,\n'[2]SM3 - DECC Scenario 2 equiv'!N184,\n'[2]SM4 - DNO Scenario 4 equiv'!N184)","v":0},{"$f":"CHOOSE(view,\n'[1]M1a - Model inputs'!O184,\n'[1]M1b - Model inputs'!O184,\n'[1]SM1 - DECC Scenario 3 equiv'!O184,\n'[1]SM2 - DECC Scenario 1 equiv'!O184,\n'[1]SM3 - DECC Scenario 2 equiv'!O184,\n'[1]SM4 - DNO Scenario 4 equiv'!O184,\n'[2]M1a - Model inputs'!O184,\n'[2]M1b - Model inputs'!O184,\n'[2]SM1 - DECC Scenario 3 equiv'!O184,\n'[2]SM2 - DECC Scenario 1 equiv'!O184,\n'[2]SM3 - DECC Scenario 2 equiv'!O184,\n'[2]SM4 - DNO Scenario 4 equiv'!O184)","v":0},{"$f":"CHOOSE(view,\n'[1]M1a - Model inputs'!P184,\n'[1]M1b - Model inputs'!P184,\n'[1]SM1 - DECC Scenario 3 equiv'!P184,\n'[1]SM2 - DECC Scenario 1 equiv'!P184,\n'[1]SM3 - DECC Scenario 2 equiv'!P184,\n'[1]SM4 - DNO Scenario 4 equiv'!P184,\n'[2]M1a - Model inputs'!P184,\n'[2]M1b - Model inputs'!P184,\n'[2]SM1 - DECC Scenario 3 equiv'!P184,\n'[2]SM2 - DECC Scenario 1 equiv'!P184,\n'[2]SM3 - DECC Scenario 2 equiv'!P184,\n'[2]SM4 - DNO Scenario 4 equiv'!P184)","v":0},{"$f":"CHOOSE(view,\n'[1]M1a - Model inputs'!Q184,\n'[1]M1b - Model inputs'!Q184,\n'[1]SM1 - DECC Scenario 3 equiv'!Q184,\n'[1]SM2 - DECC Scenario 1 equiv'!Q184,\n'[1]SM3 - DECC Scenario 2 equiv'!Q184,\n'[1]SM4 - DNO Scenario 4 equiv'!Q184,\n'[2]M1a - Model inputs'!Q184,\n'[2]M1b - Model inputs'!Q184,\n'[2]SM1 - DECC Scenario 3 equiv'!Q184,\n'[2]SM2 - DECC Scenario 1 equiv'!Q184,\n'[2]SM3 - DECC Scenario 2 equiv'!Q184,\n'[2]SM4 - DNO Scenario 4 equiv'!Q184)","v":0},{"$f":"CHOOSE(view,\n'[1]M1a - Model inputs'!R184,\n'[1]M1b - Model inputs'!R184,\n'[1]SM1 - DECC Scenario 3 equiv'!R184,\n'[1]SM2 - DECC Scenario 1 equiv'!R184,\n'[1]SM3 - DECC Scenario 2 equiv'!R184,\n'[1]SM4 - DNO Scenario 4 equiv'!R184,\n'[2]M1a - Model inputs'!R184,\n'[2]M1b - Model inputs'!R184,\n'[2]SM1 - DECC Scenario 3 equiv'!R184,\n'[2]SM2 - DECC Scenario 1 equiv'!R184,\n'[2]SM3 - DECC Scenario 2 equiv'!R184,\n'[2]SM4 - DNO Scenario 4 equiv'!R184)","v":0},{"$f":"CHOOSE(view,\n'[1]M1a - Model inputs'!S184,\n'[1]M1b - Model inputs'!S184,\n'[1]SM1 - DECC Scenario 3 equiv'!S184,\n'[1]SM2 - DECC Scenario 1 equiv'!S184,\n'[1]SM3 - DECC Scenario 2 equiv'!S184,\n'[1]SM4 - DNO Scenario 4 equiv'!S184,\n'[2]M1a - Model inputs'!S184,\n'[2]M1b - Model inputs'!S184,\n'[2]SM1 - DECC Scenario 3 equiv'!S184,\n'[2]SM2 - DECC Scenario 1 equiv'!S184,\n'[2]SM3 - DECC Scenario 2 equiv'!S184,\n'[2]SM4 - DNO Scenario 4 equiv'!S184)","v":0}]
[]
[null,null,null,null,{"$f":"Input!E117","v":"Allowed uncertain costs (Undergrounding)"},null,"£m 12/13 prices",null,null,null,null,null,null,null,null,null,null,null,null,null,null,null,null,null,null,null,null,null,null,null,null,null,null,null,null,{"$f":"AJ20","v":0.32086328195134051},{"$f":"AK20","v":0.32012347815469605},0.32075061980619068,0.3200639505270263,0.32054124459468625,0.32108466564649085,0.32034348109040567,0.32108561571780592]
[null,null,null,null,{"$f":"Input!E118","v":"Allocation to load related capex"},null,"%",null,null,null,null,null,null,null,null,null,null,null,null,null,null,null,null,null,null,null,null,null,null,null,null,null,null,null,null,{"$f":"CHOOSE(view,\n'[1]M1a - Model inputs'!L187,\n'[1]M1b - Model inputs'!L187,\n'[1]SM1 - DECC Scenario 3 equiv'!L187,\n'[1]SM2 - DECC Scenario 1 equiv'!L187,\n'[1]SM3 - DECC Scenario 2 equiv'!L187,\n'[1]SM4 - DNO Scenario 4 equiv'!L187,\n'[2]M1a - Model inputs'!L187,\n'[2]M1b - Model inputs'!L187,\n'[2]SM1 - DECC Scenario 3 equiv'!L187,\n'[2]SM2 - DECC Scenario 1 equiv'!L187,\n'[2]SM3 - DECC Scenario 2 equiv'!L187,\n'[2]SM4 - DNO Scenario 4 equiv'!L187)","v":0},{"$f":"CHOOSE(view,\n'[1]M1a - Model inputs'!M187,\n'[1]M1b - Model inputs'!M187,\n'[1]SM1 - DECC Scenario 3 equiv'!M187,\n'[1]SM2 - DECC Scenario 1 equiv'!M187,\n'[1]SM3 - DECC Scenario 2 equiv'!M187,\n'[1]SM4 - DNO Scenario 4 equiv'!M187,\n'[2]M1a - Model inputs'!M187,\n'[2]M1b - Model inputs'!M187,\n'[2]SM1 - DECC Scenario 3 equiv'!M187,\n'[2]SM2 - DECC Scenario 1 equiv'!M187,\n'[2]SM3 - DECC Scenario 2 equiv'!M187,\n'[2]SM4 - DNO Scenario 4 equiv'!M187)","v":0},{"$f":"CHOOSE(view,\n'[1]M1a - Model inputs'!N187,\n'[1]M1b - Model inputs'!N187,\n'[1]SM1 - DECC Scenario 3 equiv'!N187,\n'[1]SM2 - DECC Scenario 1 equiv'!N187,\n'[1]SM3 - DECC Scenario 2 equiv'!N187,\n'[1]SM4 - DNO Scenario 4 equiv'!N187,\n'[2]M1a - Model inputs'!N187,\n'[2]M1b - Model inputs'!N187,\n'[2]SM1 - DECC Scenario 3 equiv'!N187,\n'[2]SM2 - DECC Scenario 1 equiv'!N187,\n'[2]SM3 - DECC Scenario 2 equiv'!N187,\n'[2]SM4 - DNO Scenario 4 equiv'!N187)","v":0},{"$f":"CHOOSE(view,\n'[1]M1a - Model inputs'!O187,\n'[1]M1b - Model inputs'!O187,\n'[1]SM1 - DECC Scenario 3 equiv'!O187,\n'[1]SM2 - DECC Scenario 1 equiv'!O187,\n'[1]SM3 - DECC Scenario 2 equiv'!O187,\n'[1]SM4 - DNO Scenario 4 equiv'!O187,\n'[2]M1a - Model inputs'!O187,\n'[2]M1b - Model inputs'!O187,\n'[2]SM1 - DECC Scenario 3 equiv'!O187,\n'[2]SM2 - DECC Scenario 1 equiv'!O187,\n'[2]SM3 - DECC Scenario 2 equiv'!O187,\n'[2]SM4 - DNO Scenario 4 equiv'!O187)","v":0},{"$f":"CHOOSE(view,\n'[1]M1a - Model inputs'!P187,\n'[1]M1b - Model inputs'!P187,\n'[1]SM1 - DECC Scenario 3 equiv'!P187,\n'[1]SM2 - DECC Scenario 1 equiv'!P187,\n'[1]SM3 - DECC Scenario 2 equiv'!P187,\n'[1]SM4 - DNO Scenario 4 equiv'!P187,\n'[2]M1a - Model inputs'!P187,\n'[2]M1b - Model inputs'!P187,\n'[2]SM1 - DECC Scenario 3 equiv'!P187,\n'[2]SM2 - DECC Scenario 1 equiv'!P187,\n'[2]SM3 - DECC Scenario 2 equiv'!P187,\n'[2]SM4 - DNO Scenario 4 equiv'!P187)","v":0},{"$f":"CHOOSE(view,\n'[1]M1a - Model inputs'!Q187,\n'[1]M1b - Model inputs'!Q187,\n'[1]SM1 - DECC Scenario 3 equiv'!Q187,\n'[1]SM2 - DECC Scenario 1 equiv'!Q187,\n'[1]SM3 - DECC Scenario 2 equiv'!Q187,\n'[1]SM4 - DNO Scenario 4 equiv'!Q187,\n'[2]M1a - Model inputs'!Q187,\n'[2]M1b - Model inputs'!Q187,\n'[2]SM1 - DECC Scenario 3 equiv'!Q187,\n'[2]SM2 - DECC Scenario 1 equiv'!Q187,\n'[2]SM3 - DECC Scenario 2 equiv'!Q187,\n'[2]SM4 - DNO Scenario 4 equiv'!Q187)","v":0},{"$f":"CHOOSE(view,\n'[1]M1a - Model inputs'!R187,\n'[1]M1b - Model inputs'!R187,\n'[1]SM1 - DECC Scenario 3 equiv'!R187,\n'[1]SM2 - DECC Scenario 1 equiv'!R187,\n'[1]SM3 - DECC Scenario 2 equiv'!R187,\n'[1]SM4 - DNO Scenario 4 equiv'!R187,\n'[2]M1a - Model inputs'!R187,\n'[2]M1b - Model inputs'!R187,\n'[2]SM1 - DECC Scenario 3 equiv'!R187,\n'[2]SM2 - DECC Scenario 1 equiv'!R187,\n'[2]SM3 - DECC Scenario 2 equiv'!R187,\n'[2]SM4 - DNO Scenario 4 equiv'!R187)","v":0},{"$f":"CHOOSE(view,\n'[1]M1a - Model inputs'!S187,\n'[1]M1b - Model inputs'!S187,\n'[1]SM1 - DECC Scenario 3 equiv'!S187,\n'[1]SM2 - DECC Scenario 1 equiv'!S187,\n'[1]SM3 - DECC Scenario 2 equiv'!S187,\n'[1]SM4 - DNO Scenario 4 equiv'!S187,\n'[2]M1a - Model inputs'!S187,\n'[2]M1b - Model inputs'!S187,\n'[2]SM1 - DECC Scenario 3 equiv'!S187,\n'[2]SM2 - DECC Scenario 1 equiv'!S187,\n'[2]SM3 - DECC Scenario 2 equiv'!S187,\n'[2]SM4 - DNO Scenario 4 equiv'!S187)","v":0}]
[null,null,null,null,{"$f":"Input!E119","v":"Allocation to non-load related capex - asset replacement"},null,"%",null,null,null,null,null,null,null,null,null,null,null,null,null,null,null,null,null,null,null,null,null,null,null,null,null,null,null,null,{"$f":"CHOOSE(view,\n'[1]M1a - Model inputs'!L188,\n'[1]M1b - Model inputs'!L188,\n'[1]SM1 - DECC Scenario 3 equiv'!L188,\n'[1]SM2 - DECC Scenario 1 equiv'!L188,\n'[1]SM3 - DECC Scenario 2 equiv'!L188,\n'[1]SM4 - DNO Scenario 4 equiv'!L188,\n'[2]M1a - Model inputs'!L188,\n'[2]M1b - Model inputs'!L188,\n'[2]SM1 - DECC Scenario 3 equiv'!L188,\n'[2]SM2 - DECC Scenario 1 equiv'!L188,\n'[2]SM3 - DECC Scenario 2 equiv'!L188,\n'[2]SM4 - DNO Scenario 4 equiv'!L188)","v":0},{"$f":"CHOOSE(view,\n'[1]M1a - Model inputs'!M188,\n'[1]M1b - Model inputs'!M188,\n'[1]SM1 - DECC Scenario 3 equiv'!M188,\n'[1]SM2 - DECC Scenario 1 equiv'!M188,\n'[1]SM3 - DECC Scenario 2 equiv'!M188,\n'[1]SM4 - DNO Scenario 4 equiv'!M188,\n'[2]M1a - Model inputs'!M188,\n'[2]M1b - Model inputs'!M188,\n'[2]SM1 - DECC Scenario 3 equiv'!M188,\n'[2]SM2 - DECC Scenario 1 equiv'!M188,\n'[2]SM3 - DECC Scenario 2 equiv'!M188,\n'[2]SM4 - DNO Scenario 4 equiv'!M188)","v":0},{"$f":"CHOOSE(view,\n'[1]M1a - Model inputs'!N188,\n'[1]M1b - Model inputs'!N188,\n'[1]SM1 - DECC Scenario 3 equiv'!N188,\n'[1]SM2 - DECC Scenario 1 equiv'!N188,\n'[1]SM3 - DECC Scenario 2 equiv'!N188,\n'[1]SM4 - DNO Scenario 4 equiv'!N188,\n'[2]M1a - Model inputs'!N188,\n'[2]M1b - Model inputs'!N188,\n'[2]SM1 - DECC Scenario 3 equiv'!N188,\n'[2]SM2 - DECC Scenario 1 equiv'!N188,\n'[2]SM3 - DECC Scenario 2 equiv'!N188,\n'[2]SM4 - DNO Scenario 4 equiv'!N188)","v":0},{"$f":"CHOOSE(view,\n'[1]M1a - Model inputs'!O188,\n'[1]M1b - Model inputs'!O188,\n'[1]SM1 - DECC Scenario 3 equiv'!O188,\n'[1]SM2 - DECC Scenario 1 equiv'!O188,\n'[1]SM3 - DECC Scenario 2 equiv'!O188,\n'[1]SM4 - DNO Scenario 4 equiv'!O188,\n'[2]M1a - Model inputs'!O188,\n'[2]M1b - Model inputs'!O188,\n'[2]SM1 - DECC Scenario 3 equiv'!O188,\n'[2]SM2 - DECC Scenario 1 equiv'!O188,\n'[2]SM3 - DECC Scenario 2 equiv'!O188,\n'[2]SM4 - DNO Scenario 4 equiv'!O188)","v":0},{"$f":"CHOOSE(view,\n'[1]M1a - Model inputs'!P188,\n'[1]M1b - Model inputs'!P188,\n'[1]SM1 - DECC Scenario 3 equiv'!P188,\n'[1]SM2 - DECC Scenario 1 equiv'!P188,\n'[1]SM3 - DECC Scenario 2 equiv'!P188,\n'[1]SM4 - DNO Scenario 4 equiv'!P188,\n'[2]M1a - Model inputs'!P188,\n'[2]M1b - Model inputs'!P188,\n'[2]SM1 - DECC Scenario 3 equiv'!P188,\n'[2]SM2 - DECC Scenario 1 equiv'!P188,\n'[2]SM3 - DECC Scenario 2 equiv'!P188,\n'[2]SM4 - DNO Scenario 4 equiv'!P188)","v":0},{"$f":"CHOOSE(view,\n'[1]M1a - Model inputs'!Q188,\n'[1]M1b - Model inputs'!Q188,\n'[1]SM1 - DECC Scenario 3 equiv'!Q188,\n'[1]SM2 - DECC Scenario 1 equiv'!Q188,\n'[1]SM3 - DECC Scenario 2 equiv'!Q188,\n'[1]SM4 - DNO Scenario 4 equiv'!Q188,\n'[2]M1a - Model inputs'!Q188,\n'[2]M1b - Model inputs'!Q188,\n'[2]SM1 - DECC Scenario 3 equiv'!Q188,\n'[2]SM2 - DECC Scenario 1 equiv'!Q188,\n'[2]SM3 - DECC Scenario 2 equiv'!Q188,\n'[2]SM4 - DNO Scenario 4 equiv'!Q188)","v":0},{"$f":"CHOOSE(view,\n'[1]M1a - Model inputs'!R188,\n'[1]M1b - Model inputs'!R188,\n'[1]SM1 - DECC Scenario 3 equiv'!R188,\n'[1]SM2 - DECC Scenario 1 equiv'!R188,\n'[1]SM3 - DECC Scenario 2 equiv'!R188,\n'[1]SM4 - DNO Scenario 4 equiv'!R188,\n'[2]M1a - Model inputs'!R188,\n'[2]M1b - Model inputs'!R188,\n'[2]SM1 - DECC Scenario 3 equiv'!R188,\n'[2]SM2 - DECC Scenario 1 equiv'!R188,\n'[2]SM3 - DECC Scenario 2 equiv'!R188,\n'[2]SM4 - DNO Scenario 4 equiv'!R188)","v":0},{"$f":"CHOOSE(view,\n'[1]M1a - Model inputs'!S188,\n'[1]M1b - Model inputs'!S188,\n'[1]SM1 - DECC Scenario 3 equiv'!S188,\n'[1]SM2 - DECC Scenario 1 equiv'!S188,\n'[1]SM3 - DECC Scenario 2 equiv'!S188,\n'[1]SM4 - DNO Scenario 4 equiv'!S188,\n'[2]M1a - Model inputs'!S188,\n'[2]M1b - Model inputs'!S188,\n'[2]SM1 - DECC Scenario 3 equiv'!S188,\n'[2]SM2 - DECC Scenario 1 equiv'!S188,\n'[2]SM3 - DECC Scenario 2 equiv'!S188,\n'[2]SM4 - DNO Scenario 4 equiv'!S188)","v":0}]
[null,null,null,null,{"$f":"Input!E120","v":"Allocation to non-load related capex - other"},null,"%",null,null,null,null,null,null,null,null,null,null,null,null,null,null,null,null,null,null,null,null,null,null,null,null,null,null,null,null,{"$f":"CHOOSE(view,\n'[1]M1a - Model inputs'!L189,\n'[1]M1b - Model inputs'!L189,\n'[1]SM1 - DECC Scenario 3 equiv'!L189,\n'[1]SM2 - DECC Scenario 1 equiv'!L189,\n'[1]SM3 - DECC Scenario 2 equiv'!L189,\n'[1]SM4 - DNO Scenario 4 equiv'!L189,\n'[2]M1a - Model inputs'!L189,\n'[2]M1b - Model inputs'!L189,\n'[2]SM1 - DECC Scenario 3 equiv'!L189,\n'[2]SM2 - DECC Scenario 1 equiv'!L189,\n'[2]SM3 - DECC Scenario 2 equiv'!L189,\n'[2]SM4 - DNO Scenario 4 equiv'!L189)","v":1},{"$f":"CHOOSE(view,\n'[1]M1a - Model inputs'!M189,\n'[1]M1b - Model inputs'!M189,\n'[1]SM1 - DECC Scenario 3 equiv'!M189,\n'[1]SM2 - DECC Scenario 1 equiv'!M189,\n'[1]SM3 - DECC Scenario 2 equiv'!M189,\n'[1]SM4 - DNO Scenario 4 equiv'!M189,\n'[2]M1a - Model inputs'!M189,\n'[2]M1b - Model inputs'!M189,\n'[2]SM1 - DECC Scenario 3 equiv'!M189,\n'[2]SM2 - DECC Scenario 1 equiv'!M189,\n'[2]SM3 - DECC Scenario 2 equiv'!M189,\n'[2]SM4 - DNO Scenario 4 equiv'!M189)","v":1},{"$f":"CHOOSE(view,\n'[1]M1a - Model inputs'!N189,\n'[1]M1b - Model inputs'!N189,\n'[1]SM1 - DECC Scenario 3 equiv'!N189,\n'[1]SM2 - DECC Scenario 1 equiv'!N189,\n'[1]SM3 - DECC Scenario 2 equiv'!N189,\n'[1]SM4 - DNO Scenario 4 equiv'!N189,\n'[2]M1a - Model inputs'!N189,\n'[2]M1b - Model inputs'!N189,\n'[2]SM1 - DECC Scenario 3 equiv'!N189,\n'[2]SM2 - DECC Scenario 1 equiv'!N189,\n'[2]SM3 - DECC Scenario 2 equiv'!N189,\n'[2]SM4 - DNO Scenario 4 equiv'!N189)","v":1},{"$f":"CHOOSE(view,\n'[1]M1a - Model inputs'!O189,\n'[1]M1b - Model inputs'!O189,\n'[1]SM1 - DECC Scenario 3 equiv'!O189,\n'[1]SM2 - DECC Scenario 1 equiv'!O189,\n'[1]SM3 - DECC Scenario 2 equiv'!O189,\n'[1]SM4 - DNO Scenario 4 equiv'!O189,\n'[2]M1a - Model inputs'!O189,\n'[2]M1b - Model inputs'!O189,\n'[2]SM1 - DECC Scenario 3 equiv'!O189,\n'[2]SM2 - DECC Scenario 1 equiv'!O189,\n'[2]SM3 - DECC Scenario 2 equiv'!O189,\n'[2]SM4 - DNO Scenario 4 equiv'!O189)","v":1},{"$f":"CHOOSE(view,\n'[1]M1a - Model inputs'!P189,\n'[1]M1b - Model inputs'!P189,\n'[1]SM1 - DECC Scenario 3 equiv'!P189,\n'[1]SM2 - DECC Scenario 1 equiv'!P189,\n'[1]SM3 - DECC Scenario 2 equiv'!P189,\n'[1]SM4 - DNO Scenario 4 equiv'!P189,\n'[2]M1a - Model inputs'!P189,\n'[2]M1b - Model inputs'!P189,\n'[2]SM1 - DECC Scenario 3 equiv'!P189,\n'[2]SM2 - DECC Scenario 1 equiv'!P189,\n'[2]SM3 - DECC Scenario 2 equiv'!P189,\n'[2]SM4 - DNO Scenario 4 equiv'!P189)","v":1},{"$f":"CHOOSE(view,\n'[1]M1a - Model inputs'!Q189,\n'[1]M1b - Model inputs'!Q189,\n'[1]SM1 - DECC Scenario 3 equiv'!Q189,\n'[1]SM2 - DECC Scenario 1 equiv'!Q189,\n'[1]SM3 - DECC Scenario 2 equiv'!Q189,\n'[1]SM4 - DNO Scenario 4 equiv'!Q189,\n'[2]M1a - Model inputs'!Q189,\n'[2]M1b - Model inputs'!Q189,\n'[2]SM1 - DECC Scenario 3 equiv'!Q189,\n'[2]SM2 - DECC Scenario 1 equiv'!Q189,\n'[2]SM3 - DECC Scenario 2 equiv'!Q189,\n'[2]SM4 - DNO Scenario 4 equiv'!Q189)","v":1},{"$f":"CHOOSE(view,\n'[1]M1a - Model inputs'!R189,\n'[1]M1b - Model inputs'!R189,\n'[1]SM1 - DECC Scenario 3 equiv'!R189,\n'[1]SM2 - DECC Scenario 1 equiv'!R189,\n'[1]SM3 - DECC Scenario 2 equiv'!R189,\n'[1]SM4 - DNO Scenario 4 equiv'!R189,\n'[2]M1a - Model inputs'!R189,\n'[2]M1b - Model inputs'!R189,\n'[2]SM1 - DECC Scenario 3 equiv'!R189,\n'[2]SM2 - DECC Scenario 1 equiv'!R189,\n'[2]SM3 - DECC Scenario 2 equiv'!R189,\n'[2]SM4 - DNO Scenario 4 equiv'!R189)","v":1},{"$f":"CHOOSE(view,\n'[1]M1a - Model inputs'!S189,\n'[1]M1b - Model inputs'!S189,\n'[1]SM1 - DECC Scenario 3 equiv'!S189,\n'[1]SM2 - DECC Scenario 1 equiv'!S189,\n'[1]SM3 - DECC Scenario 2 equiv'!S189,\n'[1]SM4 - DNO Scenario 4 equiv'!S189,\n'[2]M1a - Model inputs'!S189,\n'[2]M1b - Model inputs'!S189,\n'[2]SM1 - DECC Scenario 3 equiv'!S189,\n'[2]SM2 - DECC Scenario 1 equiv'!S189,\n'[2]SM3 - DECC Scenario 2 equiv'!S189,\n'[2]SM4 - DNO Scenario 4 equiv'!S189)","v":1}]
[null,null,null,null,{"$f":"Input!E121","v":"Allocation to faults"},null,"%",null,null,null,null,null,null,null,null,null,null,null,null,null,null,null,null,null,null,null,null,null,null,null,null,null,null,null,null,{"$f":"CHOOSE(view,\n'[1]M1a - Model inputs'!L190,\n'[1]M1b - Model inputs'!L190,\n'[1]SM1 - DECC Scenario 3 equiv'!L190,\n'[1]SM2 - DECC Scenario 1 equiv'!L190,\n'[1]SM3 - DECC Scenario 2 equiv'!L190,\n'[1]SM4 - DNO Scenario 4 equiv'!L190,\n'[2]M1a - Model inputs'!L190,\n'[2]M1b - Model inputs'!L190,\n'[2]SM1 - DECC Scenario 3 equiv'!L190,\n'[2]SM2 - DECC Scenario 1 equiv'!L190,\n'[2]SM3 - DECC Scenario 2 equiv'!L190,\n'[2]SM4 - DNO Scenario 4 equiv'!L190)","v":0},{"$f":"CHOOSE(view,\n'[1]M1a - Model inputs'!M190,\n'[1]M1b - Model inputs'!M190,\n'[1]SM1 - DECC Scenario 3 equiv'!M190,\n'[1]SM2 - DECC Scenario 1 equiv'!M190,\n'[1]SM3 - DECC Scenario 2 equiv'!M190,\n'[1]SM4 - DNO Scenario 4 equiv'!M190,\n'[2]M1a - Model inputs'!M190,\n'[2]M1b - Model inputs'!M190,\n'[2]SM1 - DECC Scenario 3 equiv'!M190,\n'[2]SM2 - DECC Scenario 1 equiv'!M190,\n'[2]SM3 - DECC Scenario 2 equiv'!M190,\n'[2]SM4 - DNO Scenario 4 equiv'!M190)","v":0},{"$f":"CHOOSE(view,\n'[1]M1a - Model inputs'!N190,\n'[1]M1b - Model inputs'!N190,\n'[1]SM1 - DECC Scenario 3 equiv'!N190,\n'[1]SM2 - DECC Scenario 1 equiv'!N190,\n'[1]SM3 - DECC Scenario 2 equiv'!N190,\n'[1]SM4 - DNO Scenario 4 equiv'!N190,\n'[2]M1a - Model inputs'!N190,\n'[2]M1b - Model inputs'!N190,\n'[2]SM1 - DECC Scenario 3 equiv'!N190,\n'[2]SM2 - DECC Scenario 1 equiv'!N190,\n'[2]SM3 - DECC Scenario 2 equiv'!N190,\n'[2]SM4 - DNO Scenario 4 equiv'!N190)","v":0},{"$f":"CHOOSE(view,\n'[1]M1a - Model inputs'!O190,\n'[1]M1b - Model inputs'!O190,\n'[1]SM1 - DECC Scenario 3 equiv'!O190,\n'[1]SM2 - DECC Scenario 1 equiv'!O190,\n'[1]SM3 - DECC Scenario 2 equiv'!O190,\n'[1]SM4 - DNO Scenario 4 equiv'!O190,\n'[2]M1a - Model inputs'!O190,\n'[2]M1b - Model inputs'!O190,\n'[2]SM1 - DECC Scenario 3 equiv'!O190,\n'[2]SM2 - DECC Scenario 1 equiv'!O190,\n'[2]SM3 - DECC Scenario 2 equiv'!O190,\n'[2]SM4 - DNO Scenario 4 equiv'!O190)","v":0},{"$f":"CHOOSE(view,\n'[1]M1a - Model inputs'!P190,\n'[1]M1b - Model inputs'!P190,\n'[1]SM1 - DECC Scenario 3 equiv'!P190,\n'[1]SM2 - DECC Scenario 1 equiv'!P190,\n'[1]SM3 - DECC Scenario 2 equiv'!P190,\n'[1]SM4 - DNO Scenario 4 equiv'!P190,\n'[2]M1a - Model inputs'!P190,\n'[2]M1b - Model inputs'!P190,\n'[2]SM1 - DECC Scenario 3 equiv'!P190,\n'[2]SM2 - DECC Scenario 1 equiv'!P190,\n'[2]SM3 - DECC Scenario 2 equiv'!P190,\n'[2]SM4 - DNO Scenario 4 equiv'!P190)","v":0},{"$f":"CHOOSE(view,\n'[1]M1a - Model inputs'!Q190,\n'[1]M1b - Model inputs'!Q190,\n'[1]SM1 - DECC Scenario 3 equiv'!Q190,\n'[1]SM2 - DECC Scenario 1 equiv'!Q190,\n'[1]SM3 - DECC Scenario 2 equiv'!Q190,\n'[1]SM4 - DNO Scenario 4 equiv'!Q190,\n'[2]M1a - Model inputs'!Q190,\n'[2]M1b - Model inputs'!Q190,\n'[2]SM1 - DECC Scenario 3 equiv'!Q190,\n'[2]SM2 - DECC Scenario 1 equiv'!Q190,\n'[2]SM3 - DECC Scenario 2 equiv'!Q190,\n'[2]SM4 - DNO Scenario 4 equiv'!Q190)","v":0},{"$f":"CHOOSE(view,\n'[1]M1a - Model inputs'!R190,\n'[1]M1b - Model inputs'!R190,\n'[1]SM1 - DECC Scenario 3 equiv'!R190,\n'[1]SM2 - DECC Scenario 1 equiv'!R190,\n'[1]SM3 - DECC Scenario 2 equiv'!R190,\n'[1]SM4 - DNO Scenario 4 equiv'!R190,\n'[2]M1a - Model inputs'!R190,\n'[2]M1b - Model inputs'!R190,\n'[2]SM1 - DECC Scenario 3 equiv'!R190,\n'[2]SM2 - DECC Scenario 1 equiv'!R190,\n'[2]SM3 - DECC Scenario 2 equiv'!R190,\n'[2]SM4 - DNO Scenario 4 equiv'!R190)","v":0},{"$f":"CHOOSE(view,\n'[1]M1a - Model inputs'!S190,\n'[1]M1b - Model inputs'!S190,\n'[1]SM1 - DECC Scenario 3 equiv'!S190,\n'[1]SM2 - DECC Scenario 1 equiv'!S190,\n'[1]SM3 - DECC Scenario 2 equiv'!S190,\n'[1]SM4 - DNO Scenario 4 equiv'!S190,\n'[2]M1a - Model inputs'!S190,\n'[2]M1b - Model inputs'!S190,\n'[2]SM1 - DECC Scenario 3 equiv'!S190,\n'[2]SM2 - DECC Scenario 1 equiv'!S190,\n'[2]SM3 - DECC Scenario 2 equiv'!S190,\n'[2]SM4 - DNO Scenario 4 equiv'!S190)","v":0}]
[null,null,null,null,{"$f":"Input!E122","v":"Allocation to tree cutting"},null,"%",null,null,null,null,null,null,null,null,null,null,null,null,null,null,null,null,null,null,null,null,null,null,null,null,null,null,null,null,{"$f":"CHOOSE(view,\n'[1]M1a - Model inputs'!L191,\n'[1]M1b - Model inputs'!L191,\n'[1]SM1 - DECC Scenario 3 equiv'!L191,\n'[1]SM2 - DECC Scenario 1 equiv'!L191,\n'[1]SM3 - DECC Scenario 2 equiv'!L191,\n'[1]SM4 - DNO Scenario 4 equiv'!L191,\n'[2]M1a - Model inputs'!L191,\n'[2]M1b - Model inputs'!L191,\n'[2]SM1 - DECC Scenario 3 equiv'!L191,\n'[2]SM2 - DECC Scenario 1 equiv'!L191,\n'[2]SM3 - DECC Scenario 2 equiv'!L191,\n'[2]SM4 - DNO Scenario 4 equiv'!L191)","v":0},{"$f":"CHOOSE(view,\n'[1]M1a - Model inputs'!M191,\n'[1]M1b - Model inputs'!M191,\n'[1]SM1 - DECC Scenario 3 equiv'!M191,\n'[1]SM2 - DECC Scenario 1 equiv'!M191,\n'[1]SM3 - DECC Scenario 2 equiv'!M191,\n'[1]SM4 - DNO Scenario 4 equiv'!M191,\n'[2]M1a - Model inputs'!M191,\n'[2]M1b - Model inputs'!M191,\n'[2]SM1 - DECC Scenario 3 equiv'!M191,\n'[2]SM2 - DECC Scenario 1 equiv'!M191,\n'[2]SM3 - DECC Scenario 2 equiv'!M191,\n'[2]SM4 - DNO Scenario 4 equiv'!M191)","v":0},{"$f":"CHOOSE(view,\n'[1]M1a - Model inputs'!N191,\n'[1]M1b - Model inputs'!N191,\n'[1]SM1 - DECC Scenario 3 equiv'!N191,\n'[1]SM2 - DECC Scenario 1 equiv'!N191,\n'[1]SM3 - DECC Scenario 2 equiv'!N191,\n'[1]SM4 - DNO Scenario 4 equiv'!N191,\n'[2]M1a - Model inputs'!N191,\n'[2]M1b - Model inputs'!N191,\n'[2]SM1 - DECC Scenario 3 equiv'!N191,\n'[2]SM2 - DECC Scenario 1 equiv'!N191,\n'[2]SM3 - DECC Scenario 2 equiv'!N191,\n'[2]SM4 - DNO Scenario 4 equiv'!N191)","v":0},{"$f":"CHOOSE(view,\n'[1]M1a - Model inputs'!O191,\n'[1]M1b - Model inputs'!O191,\n'[1]SM1 - DECC Scenario 3 equiv'!O191,\n'[1]SM2 - DECC Scenario 1 equiv'!O191,\n'[1]SM3 - DECC Scenario 2 equiv'!O191,\n'[1]SM4 - DNO Scenario 4 equiv'!O191,\n'[2]M1a - Model inputs'!O191,\n'[2]M1b - Model inputs'!O191,\n'[2]SM1 - DECC Scenario 3 equiv'!O191,\n'[2]SM2 - DECC Scenario 1 equiv'!O191,\n'[2]SM3 - DECC Scenario 2 equiv'!O191,\n'[2]SM4 - DNO Scenario 4 equiv'!O191)","v":0},{"$f":"CHOOSE(view,\n'[1]M1a - Model inputs'!P191,\n'[1]M1b - Model inputs'!P191,\n'[1]SM1 - DECC Scenario 3 equiv'!P191,\n'[1]SM2 - DECC Scenario 1 equiv'!P191,\n'[1]SM3 - DECC Scenario 2 equiv'!P191,\n'[1]SM4 - DNO Scenario 4 equiv'!P191,\n'[2]M1a - Model inputs'!P191,\n'[2]M1b - Model inputs'!P191,\n'[2]SM1 - DECC Scenario 3 equiv'!P191,\n'[2]SM2 - DECC Scenario 1 equiv'!P191,\n'[2]SM3 - DECC Scenario 2 equiv'!P191,\n'[2]SM4 - DNO Scenario 4 equiv'!P191)","v":0},{"$f":"CHOOSE(view,\n'[1]M1a - Model inputs'!Q191,\n'[1]M1b - Model inputs'!Q191,\n'[1]SM1 - DECC Scenario 3 equiv'!Q191,\n'[1]SM2 - DECC Scenario 1 equiv'!Q191,\n'[1]SM3 - DECC Scenario 2 equiv'!Q191,\n'[1]SM4 - DNO Scenario 4 equiv'!Q191,\n'[2]M1a - Model inputs'!Q191,\n'[2]M1b - Model inputs'!Q191,\n'[2]SM1 - DECC Scenario 3 equiv'!Q191,\n'[2]SM2 - DECC Scenario 1 equiv'!Q191,\n'[2]SM3 - DECC Scenario 2 equiv'!Q191,\n'[2]SM4 - DNO Scenario 4 equiv'!Q191)","v":0},{"$f":"CHOOSE(view,\n'[1]M1a - Model inputs'!R191,\n'[1]M1b - Model inputs'!R191,\n'[1]SM1 - DECC Scenario 3 equiv'!R191,\n'[1]SM2 - DECC Scenario 1 equiv'!R191,\n'[1]SM3 - DECC Scenario 2 equiv'!R191,\n'[1]SM4 - DNO Scenario 4 equiv'!R191,\n'[2]M1a - Model inputs'!R191,\n'[2]M1b - Model inputs'!R191,\n'[2]SM1 - DECC Scenario 3 equiv'!R191,\n'[2]SM2 - DECC Scenario 1 equiv'!R191,\n'[2]SM3 - DECC Scenario 2 equiv'!R191,\n'[2]SM4 - DNO Scenario 4 equiv'!R191)","v":0},{"$f":"CHOOSE(view,\n'[1]M1a - Model inputs'!S191,\n'[1]M1b - Model inputs'!S191,\n'[1]SM1 - DECC Scenario 3 equiv'!S191,\n'[1]SM2 - DECC Scenario 1 equiv'!S191,\n'[1]SM3 - DECC Scenario 2 equiv'!S191,\n'[1]SM4 - DNO Scenario 4 equiv'!S191,\n'[2]M1a - Model inputs'!S191,\n'[2]M1b - Model inputs'!S191,\n'[2]SM1 - DECC Scenario 3 equiv'!S191,\n'[2]SM2 - DECC Scenario 1 equiv'!S191,\n'[2]SM3 - DECC Scenario 2 equiv'!S191,\n'[2]SM4 - DNO Scenario 4 equiv'!S191)","v":0}]
[null,null,null,null,{"$f":"Input!E123","v":"Allocation to controllable opex"},null,"%",null,null,null,null,null,null,null,null,null,null,null,null,null,null,null,null,null,null,null,null,null,null,null,null,null,null,null,null,{"$f":"CHOOSE(view,\n'[1]M1a - Model inputs'!L192,\n'[1]M1b - Model inputs'!L192,\n'[1]SM1 - DECC Scenario 3 equiv'!L192,\n'[1]SM2 - DECC Scenario 1 equiv'!L192,\n'[1]SM3 - DECC Scenario 2 equiv'!L192,\n'[1]SM4 - DNO Scenario 4 equiv'!L192,\n'[2]M1a - Model inputs'!L192,\n'[2]M1b - Model inputs'!L192,\n'[2]SM1 - DECC Scenario 3 equiv'!L192,\n'[2]SM2 - DECC Scenario 1 equiv'!L192,\n'[2]SM3 - DECC Scenario 2 equiv'!L192,\n'[2]SM4 - DNO Scenario 4 equiv'!L192)","v":0},{"$f":"CHOOSE(view,\n'[1]M1a - Model inputs'!M192,\n'[1]M1b - Model inputs'!M192,\n'[1]SM1 - DECC Scenario 3 equiv'!M192,\n'[1]SM2 - DECC Scenario 1 equiv'!M192,\n'[1]SM3 - DECC Scenario 2 equiv'!M192,\n'[1]SM4 - DNO Scenario 4 equiv'!M192,\n'[2]M1a - Model inputs'!M192,\n'[2]M1b - Model inputs'!M192,\n'[2]SM1 - DECC Scenario 3 equiv'!M192,\n'[2]SM2 - DECC Scenario 1 equiv'!M192,\n'[2]SM3 - DECC Scenario 2 equiv'!M192,\n'[2]SM4 - DNO Scenario 4 equiv'!M192)","v":0},{"$f":"CHOOSE(view,\n'[1]M1a - Model inputs'!N192,\n'[1]M1b - Model inputs'!N192,\n'[1]SM1 - DECC Scenario 3 equiv'!N192,\n'[1]SM2 - DECC Scenario 1 equiv'!N192,\n'[1]SM3 - DECC Scenario 2 equiv'!N192,\n'[1]SM4 - DNO Scenario 4 equiv'!N192,\n'[2]M1a - Model inputs'!N192,\n'[2]M1b - Model inputs'!N192,\n'[2]SM1 - DECC Scenario 3 equiv'!N192,\n'[2]SM2 - DECC Scenario 1 equiv'!N192,\n'[2]SM3 - DECC Scenario 2 equiv'!N192,\n'[2]SM4 - DNO Scenario 4 equiv'!N192)","v":0},{"$f":"CHOOSE(view,\n'[1]M1a - Model inputs'!O192,\n'[1]M1b - Model inputs'!O192,\n'[1]SM1 - DECC Scenario 3 equiv'!O192,\n'[1]SM2 - DECC Scenario 1 equiv'!O192,\n'[1]SM3 - DECC Scenario 2 equiv'!O192,\n'[1]SM4 - DNO Scenario 4 equiv'!O192,\n'[2]M1a - Model inputs'!O192,\n'[2]M1b - Model inputs'!O192,\n'[2]SM1 - DECC Scenario 3 equiv'!O192,\n'[2]SM2 - DECC Scenario 1 equiv'!O192,\n'[2]SM3 - DECC Scenario 2 equiv'!O192,\n'[2]SM4 - DNO Scenario 4 equiv'!O192)","v":0},{"$f":"CHOOSE(view,\n'[1]M1a - Model inputs'!P192,\n'[1]M1b - Model inputs'!P192,\n'[1]SM1 - DECC Scenario 3 equiv'!P192,\n'[1]SM2 - DECC Scenario 1 equiv'!P192,\n'[1]SM3 - DECC Scenario 2 equiv'!P192,\n'[1]SM4 - DNO Scenario 4 equiv'!P192,\n'[2]M1a - Model inputs'!P192,\n'[2]M1b - Model inputs'!P192,\n'[2]SM1 - DECC Scenario 3 equiv'!P192,\n'[2]SM2 - DECC Scenario 1 equiv'!P192,\n'[2]SM3 - DECC Scenario 2 equiv'!P192,\n'[2]SM4 - DNO Scenario 4 equiv'!P192)","v":0},{"$f":"CHOOSE(view,\n'[1]M1a - Model inputs'!Q192,\n'[1]M1b - Model inputs'!Q192,\n'[1]SM1 - DECC Scenario 3 equiv'!Q192,\n'[1]SM2 - DECC Scenario 1 equiv'!Q192,\n'[1]SM3 - DECC Scenario 2 equiv'!Q192,\n'[1]SM4 - DNO Scenario 4 equiv'!Q192,\n'[2]M1a - Model inputs'!Q192,\n'[2]M1b - Model inputs'!Q192,\n'[2]SM1 - DECC Scenario 3 equiv'!Q192,\n'[2]SM2 - DECC Scenario 1 equiv'!Q192,\n'[2]SM3 - DECC Scenario 2 equiv'!Q192,\n'[2]SM4 - DNO Scenario 4 equiv'!Q192)","v":0},{"$f":"CHOOSE(view,\n'[1]M1a - Model inputs'!R192,\n'[1]M1b - Model inputs'!R192,\n'[1]SM1 - DECC Scenario 3 equiv'!R192,\n'[1]SM2 - DECC Scenario 1 equiv'!R192,\n'[1]SM3 - DECC Scenario 2 equiv'!R192,\n'[1]SM4 - DNO Scenario 4 equiv'!R192,\n'[2]M1a - Model inputs'!R192,\n'[2]M1b - Model inputs'!R192,\n'[2]SM1 - DECC Scenario 3 equiv'!R192,\n'[2]SM2 - DECC Scenario 1 equiv'!R192,\n'[2]SM3 - DECC Scenario 2 equiv'!R192,\n'[2]SM4 - DNO Scenario 4 equiv'!R192)","v":0},{"$f":"CHOOSE(view,\n'[1]M1a - Model inputs'!S192,\n'[1]M1b - Model inputs'!S192,\n'[1]SM1 - DECC Scenario 3 equiv'!S192,\n'[1]SM2 - DECC Scenario 1 equiv'!S192,\n'[1]SM3 - DECC Scenario 2 equiv'!S192,\n'[1]SM4 - DNO Scenario 4 equiv'!S192,\n'[2]M1a - Model inputs'!S192,\n'[2]M1b - Model inputs'!S192,\n'[2]SM1 - DECC Scenario 3 equiv'!S192,\n'[2]SM2 - DECC Scenario 1 equiv'!S192,\n'[2]SM3 - DECC Scenario 2 equiv'!S192,\n'[2]SM4 - DNO Scenario 4 equiv'!S192)","v":0}]
[]
[null,null,null,null,{"$f":"Input!E125","v":"Allowed uncertain costs (Worst served customers)"},null,"£m 12/13 prices",null,null,null,null,null,null,null,null,null,null,null,null,null,null,null,null,null,null,null,null,null,null,null,null,null,null,null,null,{"$f":"AJ21","v":0},{"$f":"AK21","v":0.51094172215044242},0.51021335062644302,0,0,0,0,0]
[null,null,null,null,{"$f":"Input!E126","v":"Allocation to load related capex"},null,"%",null,null,null,null,null,null,null,null,null,null,null,null,null,null,null,null,null,null,null,null,null,null,null,null,null,null,null,null,{"$f":"CHOOSE(view,\n'[1]M1a - Model inputs'!L195,\n'[1]M1b - Model inputs'!L195,\n'[1]SM1 - DECC Scenario 3 equiv'!L195,\n'[1]SM2 - DECC Scenario 1 equiv'!L195,\n'[1]SM3 - DECC Scenario 2 equiv'!L195,\n'[1]SM4 - DNO Scenario 4 equiv'!L195,\n'[2]M1a - Model inputs'!L195,\n'[2]M1b - Model inputs'!L195,\n'[2]SM1 - DECC Scenario 3 equiv'!L195,\n'[2]SM2 - DECC Scenario 1 equiv'!L195,\n'[2]SM3 - DECC Scenario 2 equiv'!L195,\n'[2]SM4 - DNO Scenario 4 equiv'!L195)","v":0},{"$f":"CHOOSE(view,\n'[1]M1a - Model inputs'!M195,\n'[1]M1b - Model inputs'!M195,\n'[1]SM1 - DECC Scenario 3 equiv'!M195,\n'[1]SM2 - DECC Scenario 1 equiv'!M195,\n'[1]SM3 - DECC Scenario 2 equiv'!M195,\n'[1]SM4 - DNO Scenario 4 equiv'!M195,\n'[2]M1a - Model inputs'!M195,\n'[2]M1b - Model inputs'!M195,\n'[2]SM1 - DECC Scenario 3 equiv'!M195,\n'[2]SM2 - DECC Scenario 1 equiv'!M195,\n'[2]SM3 - DECC Scenario 2 equiv'!M195,\n'[2]SM4 - DNO Scenario 4 equiv'!M195)","v":0},{"$f":"CHOOSE(view,\n'[1]M1a - Model inputs'!N195,\n'[1]M1b - Model inputs'!N195,\n'[1]SM1 - DECC Scenario 3 equiv'!N195,\n'[1]SM2 - DECC Scenario 1 equiv'!N195,\n'[1]SM3 - DECC Scenario 2 equiv'!N195,\n'[1]SM4 - DNO Scenario 4 equiv'!N195,\n'[2]M1a - Model inputs'!N195,\n'[2]M1b - Model inputs'!N195,\n'[2]SM1 - DECC Scenario 3 equiv'!N195,\n'[2]SM2 - DECC Scenario 1 equiv'!N195,\n'[2]SM3 - DECC Scenario 2 equiv'!N195,\n'[2]SM4 - DNO Scenario 4 equiv'!N195)","v":0},{"$f":"CHOOSE(view,\n'[1]M1a - Model inputs'!O195,\n'[1]M1b - Model inputs'!O195,\n'[1]SM1 - DECC Scenario 3 equiv'!O195,\n'[1]SM2 - DECC Scenario 1 equiv'!O195,\n'[1]SM3 - DECC Scenario 2 equiv'!O195,\n'[1]SM4 - DNO Scenario 4 equiv'!O195,\n'[2]M1a - Model inputs'!O195,\n'[2]M1b - Model inputs'!O195,\n'[2]SM1 - DECC Scenario 3 equiv'!O195,\n'[2]SM2 - DECC Scenario 1 equiv'!O195,\n'[2]SM3 - DECC Scenario 2 equiv'!O195,\n'[2]SM4 - DNO Scenario 4 equiv'!O195)","v":0},{"$f":"CHOOSE(view,\n'[1]M1a - Model inputs'!P195,\n'[1]M1b - Model inputs'!P195,\n'[1]SM1 - DECC Scenario 3 equiv'!P195,\n'[1]SM2 - DECC Scenario 1 equiv'!P195,\n'[1]SM3 - DECC Scenario 2 equiv'!P195,\n'[1]SM4 - DNO Scenario 4 equiv'!P195,\n'[2]M1a - Model inputs'!P195,\n'[2]M1b - Model inputs'!P195,\n'[2]SM1 - DECC Scenario 3 equiv'!P195,\n'[2]SM2 - DECC Scenario 1 equiv'!P195,\n'[2]SM3 - DECC Scenario 2 equiv'!P195,\n'[2]SM4 - DNO Scenario 4 equiv'!P195)","v":0},{"$f":"CHOOSE(view,\n'[1]M1a - Model inputs'!Q195,\n'[1]M1b - Model inputs'!Q195,\n'[1]SM1 - DECC Scenario 3 equiv'!Q195,\n'[1]SM2 - DECC Scenario 1 equiv'!Q195,\n'[1]SM3 - DECC Scenario 2 equiv'!Q195,\n'[1]SM4 - DNO Scenario 4 equiv'!Q195,\n'[2]M1a - Model inputs'!Q195,\n'[2]M1b - Model inputs'!Q195,\n'[2]SM1 - DECC Scenario 3 equiv'!Q195,\n'[2]SM2 - DECC Scenario 1 equiv'!Q195,\n'[2]SM3 - DECC Scenario 2 equiv'!Q195,\n'[2]SM4 - DNO Scenario 4 equiv'!Q195)","v":0},{"$f":"CHOOSE(view,\n'[1]M1a - Model inputs'!R195,\n'[1]M1b - Model inputs'!R195,\n'[1]SM1 - DECC Scenario 3 equiv'!R195,\n'[1]SM2 - DECC Scenario 1 equiv'!R195,\n'[1]SM3 - DECC Scenario 2 equiv'!R195,\n'[1]SM4 - DNO Scenario 4 equiv'!R195,\n'[2]M1a - Model inputs'!R195,\n'[2]M1b - Model inputs'!R195,\n'[2]SM1 - DECC Scenario 3 equiv'!R195,\n'[2]SM2 - DECC Scenario 1 equiv'!R195,\n'[2]SM3 - DECC Scenario 2 equiv'!R195,\n'[2]SM4 - DNO Scenario 4 equiv'!R195)","v":0},{"$f":"CHOOSE(view,\n'[1]M1a - Model inputs'!S195,\n'[1]M1b - Model inputs'!S195,\n'[1]SM1 - DECC Scenario 3 equiv'!S195,\n'[1]SM2 - DECC Scenario 1 equiv'!S195,\n'[1]SM3 - DECC Scenario 2 equiv'!S195,\n'[1]SM4 - DNO Scenario 4 equiv'!S195,\n'[2]M1a - Model inputs'!S195,\n'[2]M1b - Model inputs'!S195,\n'[2]SM1 - DECC Scenario 3 equiv'!S195,\n'[2]SM2 - DECC Scenario 1 equiv'!S195,\n'[2]SM3 - DECC Scenario 2 equiv'!S195,\n'[2]SM4 - DNO Scenario 4 equiv'!S195)","v":0}]
[null,null,null,null,{"$f":"Input!E127","v":"Allocation to non-load related capex - asset replacement"},null,"%",null,null,null,null,null,null,null,null,null,null,null,null,null,null,null,null,null,null,null,null,null,null,null,null,null,null,null,null,{"$f":"CHOOSE(view,\n'[1]M1a - Model inputs'!L196,\n'[1]M1b - Model inputs'!L196,\n'[1]SM1 - DECC Scenario 3 equiv'!L196,\n'[1]SM2 - DECC Scenario 1 equiv'!L196,\n'[1]SM3 - DECC Scenario 2 equiv'!L196,\n'[1]SM4 - DNO Scenario 4 equiv'!L196,\n'[2]M1a - Model inputs'!L196,\n'[2]M1b - Model inputs'!L196,\n'[2]SM1 - DECC Scenario 3 equiv'!L196,\n'[2]SM2 - DECC Scenario 1 equiv'!L196,\n'[2]SM3 - DECC Scenario 2 equiv'!L196,\n'[2]SM4 - DNO Scenario 4 equiv'!L196)","v":1},{"$f":"CHOOSE(view,\n'[1]M1a - Model inputs'!M196,\n'[1]M1b - Model inputs'!M196,\n'[1]SM1 - DECC Scenario 3 equiv'!M196,\n'[1]SM2 - DECC Scenario 1 equiv'!M196,\n'[1]SM3 - DECC Scenario 2 equiv'!M196,\n'[1]SM4 - DNO Scenario 4 equiv'!M196,\n'[2]M1a - Model inputs'!M196,\n'[2]M1b - Model inputs'!M196,\n'[2]SM1 - DECC Scenario 3 equiv'!M196,\n'[2]SM2 - DECC Scenario 1 equiv'!M196,\n'[2]SM3 - DECC Scenario 2 equiv'!M196,\n'[2]SM4 - DNO Scenario 4 equiv'!M196)","v":1},{"$f":"CHOOSE(view,\n'[1]M1a - Model inputs'!N196,\n'[1]M1b - Model inputs'!N196,\n'[1]SM1 - DECC Scenario 3 equiv'!N196,\n'[1]SM2 - DECC Scenario 1 equiv'!N196,\n'[1]SM3 - DECC Scenario 2 equiv'!N196,\n'[1]SM4 - DNO Scenario 4 equiv'!N196,\n'[2]M1a - Model inputs'!N196,\n'[2]M1b - Model inputs'!N196,\n'[2]SM1 - DECC Scenario 3 equiv'!N196,\n'[2]SM2 - DECC Scenario 1 equiv'!N196,\n'[2]SM3 - DECC Scenario 2 equiv'!N196,\n'[2]SM4 - DNO Scenario 4 equiv'!N196)","v":1},{"$f":"CHOOSE(view,\n'[1]M1a - Model inputs'!O196,\n'[1]M1b - Model inputs'!O196,\n'[1]SM1 - DECC Scenario 3 equiv'!O196,\n'[1]SM2 - DECC Scenario 1 equiv'!O196,\n'[1]SM3 - DECC Scenario 2 equiv'!O196,\n'[1]SM4 - DNO Scenario 4 equiv'!O196,\n'[2]M1a - Model inputs'!O196,\n'[2]M1b - Model inputs'!O196,\n'[2]SM1 - DECC Scenario 3 equiv'!O196,\n'[2]SM2 - DECC Scenario 1 equiv'!O196,\n'[2]SM3 - DECC Scenario 2 equiv'!O196,\n'[2]SM4 - DNO Scenario 4 equiv'!O196)","v":1},{"$f":"CHOOSE(view,\n'[1]M1a - Model inputs'!P196,\n'[1]M1b - Model inputs'!P196,\n'[1]SM1 - DECC Scenario 3 equiv'!P196,\n'[1]SM2 - DECC Scenario 1 equiv'!P196,\n'[1]SM3 - DECC Scenario 2 equiv'!P196,\n'[1]SM4 - DNO Scenario 4 equiv'!P196,\n'[2]M1a - Model inputs'!P196,\n'[2]M1b - Model inputs'!P196,\n'[2]SM1 - DECC Scenario 3 equiv'!P196,\n'[2]SM2 - DECC Scenario 1 equiv'!P196,\n'[2]SM3 - DECC Scenario 2 equiv'!P196,\n'[2]SM4 - DNO Scenario 4 equiv'!P196)","v":1},{"$f":"CHOOSE(view,\n'[1]M1a - Model inputs'!Q196,\n'[1]M1b - Model inputs'!Q196,\n'[1]SM1 - DECC Scenario 3 equiv'!Q196,\n'[1]SM2 - DECC Scenario 1 equiv'!Q196,\n'[1]SM3 - DECC Scenario 2 equiv'!Q196,\n'[1]SM4 - DNO Scenario 4 equiv'!Q196,\n'[2]M1a - Model inputs'!Q196,\n'[2]M1b - Model inputs'!Q196,\n'[2]SM1 - DECC Scenario 3 equiv'!Q196,\n'[2]SM2 - DECC Scenario 1 equiv'!Q196,\n'[2]SM3 - DECC Scenario 2 equiv'!Q196,\n'[2]SM4 - DNO Scenario 4 equiv'!Q196)","v":1},{"$f":"CHOOSE(view,\n'[1]M1a - Model inputs'!R196,\n'[1]M1b - Model inputs'!R196,\n'[1]SM1 - DECC Scenario 3 equiv'!R196,\n'[1]SM2 - DECC Scenario 1 equiv'!R196,\n'[1]SM3 - DECC Scenario 2 equiv'!R196,\n'[1]SM4 - DNO Scenario 4 equiv'!R196,\n'[2]M1a - Model inputs'!R196,\n'[2]M1b - Model inputs'!R196,\n'[2]SM1 - DECC Scenario 3 equiv'!R196,\n'[2]SM2 - DECC Scenario 1 equiv'!R196,\n'[2]SM3 - DECC Scenario 2 equiv'!R196,\n'[2]SM4 - DNO Scenario 4 equiv'!R196)","v":1},{"$f":"CHOOSE(view,\n'[1]M1a - Model inputs'!S196,\n'[1]M1b - Model inputs'!S196,\n'[1]SM1 - DECC Scenario 3 equiv'!S196,\n'[1]SM2 - DECC Scenario 1 equiv'!S196,\n'[1]SM3 - DECC Scenario 2 equiv'!S196,\n'[1]SM4 - DNO Scenario 4 equiv'!S196,\n'[2]M1a - Model inputs'!S196,\n'[2]M1b - Model inputs'!S196,\n'[2]SM1 - DECC Scenario 3 equiv'!S196,\n'[2]SM2 - DECC Scenario 1 equiv'!S196,\n'[2]SM3 - DECC Scenario 2 equiv'!S196,\n'[2]SM4 - DNO Scenario 4 equiv'!S196)","v":1}]
[null,null,null,null,{"$f":"Input!E128","v":"Allocation to non-load related capex - other"},null,"%",null,null,null,null,null,null,null,null,null,null,null,null,null,null,null,null,null,null,null,null,null,null,null,null,null,null,null,null,{"$f":"CHOOSE(view,\n'[1]M1a - Model inputs'!L197,\n'[1]M1b - Model inputs'!L197,\n'[1]SM1 - DECC Scenario 3 equiv'!L197,\n'[1]SM2 - DECC Scenario 1 equiv'!L197,\n'[1]SM3 - DECC Scenario 2 equiv'!L197,\n'[1]SM4 - DNO Scenario 4 equiv'!L197,\n'[2]M1a - Model inputs'!L197,\n'[2]M1b - Model inputs'!L197,\n'[2]SM1 - DECC Scenario 3 equiv'!L197,\n'[2]SM2 - DECC Scenario 1 equiv'!L197,\n'[2]SM3 - DECC Scenario 2 equiv'!L197,\n'[2]SM4 - DNO Scenario 4 equiv'!L197)","v":0},{"$f":"CHOOSE(view,\n'[1]M1a - Model inputs'!M197,\n'[1]M1b - Model inputs'!M197,\n'[1]SM1 - DECC Scenario 3 equiv'!M197,\n'[1]SM2 - DECC Scenario 1 equiv'!M197,\n'[1]SM3 - DECC Scenario 2 equiv'!M197,\n'[1]SM4 - DNO Scenario 4 equiv'!M197,\n'[2]M1a - Model inputs'!M197,\n'[2]M1b - Model inputs'!M197,\n'[2]SM1 - DECC Scenario 3 equiv'!M197,\n'[2]SM2 - DECC Scenario 1 equiv'!M197,\n'[2]SM3 - DECC Scenario 2 equiv'!M197,\n'[2]SM4 - DNO Scenario 4 equiv'!M197)","v":0},{"$f":"CHOOSE(view,\n'[1]M1a - Model inputs'!N197,\n'[1]M1b - Model inputs'!N197,\n'[1]SM1 - DECC Scenario 3 equiv'!N197,\n'[1]SM2 - DECC Scenario 1 equiv'!N197,\n'[1]SM3 - DECC Scenario 2 equiv'!N197,\n'[1]SM4 - DNO Scenario 4 equiv'!N197,\n'[2]M1a - Model inputs'!N197,\n'[2]M1b - Model inputs'!N197,\n'[2]SM1 - DECC Scenario 3 equiv'!N197,\n'[2]SM2 - DECC Scenario 1 equiv'!N197,\n'[2]SM3 - DECC Scenario 2 equiv'!N197,\n'[2]SM4 - DNO Scenario 4 equiv'!N197)","v":0},{"$f":"CHOOSE(view,\n'[1]M1a - Model inputs'!O197,\n'[1]M1b - Model inputs'!O197,\n'[1]SM1 - DECC Scenario 3 equiv'!O197,\n'[1]SM2 - DECC Scenario 1 equiv'!O197,\n'[1]SM3 - DECC Scenario 2 equiv'!O197,\n'[1]SM4 - DNO Scenario 4 equiv'!O197,\n'[2]M1a - Model inputs'!O197,\n'[2]M1b - Model inputs'!O197,\n'[2]SM1 - DECC Scenario 3 equiv'!O197,\n'[2]SM2 - DECC Scenario 1 equiv'!O197,\n'[2]SM3 - DECC Scenario 2 equiv'!O197,\n'[2]SM4 - DNO Scenario 4 equiv'!O197)","v":0},{"$f":"CHOOSE(view,\n'[1]M1a - Model inputs'!P197,\n'[1]M1b - Model inputs'!P197,\n'[1]SM1 - DECC Scenario 3 equiv'!P197,\n'[1]SM2 - DECC Scenario 1 equiv'!P197,\n'[1]SM3 - DECC Scenario 2 equiv'!P197,\n'[1]SM4 - DNO Scenario 4 equiv'!P197,\n'[2]M1a - Model inputs'!P197,\n'[2]M1b - Model inputs'!P197,\n'[2]SM1 - DECC Scenario 3 equiv'!P197,\n'[2]SM2 - DECC Scenario 1 equiv'!P197,\n'[2]SM3 - DECC Scenario 2 equiv'!P197,\n'[2]SM4 - DNO Scenario 4 equiv'!P197)","v":0},{"$f":"CHOOSE(view,\n'[1]M1a - Model inputs'!Q197,\n'[1]M1b - Model inputs'!Q197,\n'[1]SM1 - DECC Scenario 3 equiv'!Q197,\n'[1]SM2 - DECC Scenario 1 equiv'!Q197,\n'[1]SM3 - DECC Scenario 2 equiv'!Q197,\n'[1]SM4 - DNO Scenario 4 equiv'!Q197,\n'[2]M1a - Model inputs'!Q197,\n'[2]M1b - Model inputs'!Q197,\n'[2]SM1 - DECC Scenario 3 equiv'!Q197,\n'[2]SM2 - DECC Scenario 1 equiv'!Q197,\n'[2]SM3 - DECC Scenario 2 equiv'!Q197,\n'[2]SM4 - DNO Scenario 4 equiv'!Q197)","v":0},{"$f":"CHOOSE(view,\n'[1]M1a - Model inputs'!R197,\n'[1]M1b - Model inputs'!R197,\n'[1]SM1 - DECC Scenario 3 equiv'!R197,\n'[1]SM2 - DECC Scenario 1 equiv'!R197,\n'[1]SM3 - DECC Scenario 2 equiv'!R197,\n'[1]SM4 - DNO Scenario 4 equiv'!R197,\n'[2]M1a - Model inputs'!R197,\n'[2]M1b - Model inputs'!R197,\n'[2]SM1 - DECC Scenario 3 equiv'!R197,\n'[2]SM2 - DECC Scenario 1 equiv'!R197,\n'[2]SM3 - DECC Scenario 2 equiv'!R197,\n'[2]SM4 - DNO Scenario 4 equiv'!R197)","v":0},{"$f":"CHOOSE(view,\n'[1]M1a - Model inputs'!S197,\n'[1]M1b - Model inputs'!S197,\n'[1]SM1 - DECC Scenario 3 equiv'!S197,\n'[1]SM2 - DECC Scenario 1 equiv'!S197,\n'[1]SM3 - DECC Scenario 2 equiv'!S197,\n'[1]SM4 - DNO Scenario 4 equiv'!S197,\n'[2]M1a - Model inputs'!S197,\n'[2]M1b - Model inputs'!S197,\n'[2]SM1 - DECC Scenario 3 equiv'!S197,\n'[2]SM2 - DECC Scenario 1 equiv'!S197,\n'[2]SM3 - DECC Scenario 2 equiv'!S197,\n'[2]SM4 - DNO Scenario 4 equiv'!S197)","v":0}]
[null,null,null,null,{"$f":"Input!E129","v":"Allocation to faults"},null,"%",null,null,null,null,null,null,null,null,null,null,null,null,null,null,null,null,null,null,null,null,null,null,null,null,null,null,null,null,{"$f":"CHOOSE(view,\n'[1]M1a - Model inputs'!L198,\n'[1]M1b - Model inputs'!L198,\n'[1]SM1 - DECC Scenario 3 equiv'!L198,\n'[1]SM2 - DECC Scenario 1 equiv'!L198,\n'[1]SM3 - DECC Scenario 2 equiv'!L198,\n'[1]SM4 - DNO Scenario 4 equiv'!L198,\n'[2]M1a - Model inputs'!L198,\n'[2]M1b - Model inputs'!L198,\n'[2]SM1 - DECC Scenario 3 equiv'!L198,\n'[2]SM2 - DECC Scenario 1 equiv'!L198,\n'[2]SM3 - DECC Scenario 2 equiv'!L198,\n'[2]SM4 - DNO Scenario 4 equiv'!L198)","v":0},{"$f":"CHOOSE(view,\n'[1]M1a - Model inputs'!M198,\n'[1]M1b - Model inputs'!M198,\n'[1]SM1 - DECC Scenario 3 equiv'!M198,\n'[1]SM2 - DECC Scenario 1 equiv'!M198,\n'[1]SM3 - DECC Scenario 2 equiv'!M198,\n'[1]SM4 - DNO Scenario 4 equiv'!M198,\n'[2]M1a - Model inputs'!M198,\n'[2]M1b - Model inputs'!M198,\n'[2]SM1 - DECC Scenario 3 equiv'!M198,\n'[2]SM2 - DECC Scenario 1 equiv'!M198,\n'[2]SM3 - DECC Scenario 2 equiv'!M198,\n'[2]SM4 - DNO Scenario 4 equiv'!M198)","v":0},{"$f":"CHOOSE(view,\n'[1]M1a - Model inputs'!N198,\n'[1]M1b - Model inputs'!N198,\n'[1]SM1 - DECC Scenario 3 equiv'!N198,\n'[1]SM2 - DECC Scenario 1 equiv'!N198,\n'[1]SM3 - DECC Scenario 2 equiv'!N198,\n'[1]SM4 - DNO Scenario 4 equiv'!N198,\n'[2]M1a - Model inputs'!N198,\n'[2]M1b - Model inputs'!N198,\n'[2]SM1 - DECC Scenario 3 equiv'!N198,\n'[2]SM2 - DECC Scenario 1 equiv'!N198,\n'[2]SM3 - DECC Scenario 2 equiv'!N198,\n'[2]SM4 - DNO Scenario 4 equiv'!N198)","v":0},{"$f":"CHOOSE(view,\n'[1]M1a - Model inputs'!O198,\n'[1]M1b - Model inputs'!O198,\n'[1]SM1 - DECC Scenario 3 equiv'!O198,\n'[1]SM2 - DECC Scenario 1 equiv'!O198,\n'[1]SM3 - DECC Scenario 2 equiv'!O198,\n'[1]SM4 - DNO Scenario 4 equiv'!O198,\n'[2]M1a - Model inputs'!O198,\n'[2]M1b - Model inputs'!O198,\n'[2]SM1 - DECC Scenario 3 equiv'!O198,\n'[2]SM2 - DECC Scenario 1 equiv'!O198,\n'[2]SM3 - DECC Scenario 2 equiv'!O198,\n'[2]SM4 - DNO Scenario 4 equiv'!O198)","v":0},{"$f":"CHOOSE(view,\n'[1]M1a - Model inputs'!P198,\n'[1]M1b - Model inputs'!P198,\n'[1]SM1 - DECC Scenario 3 equiv'!P198,\n'[1]SM2 - DECC Scenario 1 equiv'!P198,\n'[1]SM3 - DECC Scenario 2 equiv'!P198,\n'[1]SM4 - DNO Scenario 4 equiv'!P198,\n'[2]M1a - Model inputs'!P198,\n'[2]M1b - Model inputs'!P198,\n'[2]SM1 - DECC Scenario 3 equiv'!P198,\n'[2]SM2 - DECC Scenario 1 equiv'!P198,\n'[2]SM3 - DECC Scenario 2 equiv'!P198,\n'[2]SM4 - DNO Scenario 4 equiv'!P198)","v":0},{"$f":"CHOOSE(view,\n'[1]M1a - Model inputs'!Q198,\n'[1]M1b - Model inputs'!Q198,\n'[1]SM1 - DECC Scenario 3 equiv'!Q198,\n'[1]SM2 - DECC Scenario 1 equiv'!Q198,\n'[1]SM3 - DECC Scenario 2 equiv'!Q198,\n'[1]SM4 - DNO Scenario 4 equiv'!Q198,\n'[2]M1a - Model inputs'!Q198,\n'[2]M1b - Model inputs'!Q198,\n'[2]SM1 - DECC Scenario 3 equiv'!Q198,\n'[2]SM2 - DECC Scenario 1 equiv'!Q198,\n'[2]SM3 - DECC Scenario 2 equiv'!Q198,\n'[2]SM4 - DNO Scenario 4 equiv'!Q198)","v":0},{"$f":"CHOOSE(view,\n'[1]M1a - Model inputs'!R198,\n'[1]M1b - Model inputs'!R198,\n'[1]SM1 - DECC Scenario 3 equiv'!R198,\n'[1]SM2 - DECC Scenario 1 equiv'!R198,\n'[1]SM3 - DECC Scenario 2 equiv'!R198,\n'[1]SM4 - DNO Scenario 4 equiv'!R198,\n'[2]M1a - Model inputs'!R198,\n'[2]M1b - Model inputs'!R198,\n'[2]SM1 - DECC Scenario 3 equiv'!R198,\n'[2]SM2 - DECC Scenario 1 equiv'!R198,\n'[2]SM3 - DECC Scenario 2 equiv'!R198,\n'[2]SM4 - DNO Scenario 4 equiv'!R198)","v":0},{"$f":"CHOOSE(view,\n'[1]M1a - Model inputs'!S198,\n'[1]M1b - Model inputs'!S198,\n'[1]SM1 - DECC Scenario 3 equiv'!S198,\n'[1]SM2 - DECC Scenario 1 equiv'!S198,\n'[1]SM3 - DECC Scenario 2 equiv'!S198,\n'[1]SM4 - DNO Scenario 4 equiv'!S198,\n'[2]M1a - Model inputs'!S198,\n'[2]M1b - Model inputs'!S198,\n'[2]SM1 - DECC Scenario 3 equiv'!S198,\n'[2]SM2 - DECC Scenario 1 equiv'!S198,\n'[2]SM3 - DECC Scenario 2 equiv'!S198,\n'[2]SM4 - DNO Scenario 4 equiv'!S198)","v":0}]
[null,null,null,null,{"$f":"Input!E130","v":"Allocation to tree cutting"},null,"%",null,null,null,null,null,null,null,null,null,null,null,null,null,null,null,null,null,null,null,null,null,null,null,null,null,null,null,null,{"$f":"CHOOSE(view,\n'[1]M1a - Model inputs'!L199,\n'[1]M1b - Model inputs'!L199,\n'[1]SM1 - DECC Scenario 3 equiv'!L199,\n'[1]SM2 - DECC Scenario 1 equiv'!L199,\n'[1]SM3 - DECC Scenario 2 equiv'!L199,\n'[1]SM4 - DNO Scenario 4 equiv'!L199,\n'[2]M1a - Model inputs'!L199,\n'[2]M1b - Model inputs'!L199,\n'[2]SM1 - DECC Scenario 3 equiv'!L199,\n'[2]SM2 - DECC Scenario 1 equiv'!L199,\n'[2]SM3 - DECC Scenario 2 equiv'!L199,\n'[2]SM4 - DNO Scenario 4 equiv'!L199)","v":0},{"$f":"CHOOSE(view,\n'[1]M1a - Model inputs'!M199,\n'[1]M1b - Model inputs'!M199,\n'[1]SM1 - DECC Scenario 3 equiv'!M199,\n'[1]SM2 - DECC Scenario 1 equiv'!M199,\n'[1]SM3 - DECC Scenario 2 equiv'!M199,\n'[1]SM4 - DNO Scenario 4 equiv'!M199,\n'[2]M1a - Model inputs'!M199,\n'[2]M1b - Model inputs'!M199,\n'[2]SM1 - DECC Scenario 3 equiv'!M199,\n'[2]SM2 - DECC Scenario 1 equiv'!M199,\n'[2]SM3 - DECC Scenario 2 equiv'!M199,\n'[2]SM4 - DNO Scenario 4 equiv'!M199)","v":0},{"$f":"CHOOSE(view,\n'[1]M1a - Model inputs'!N199,\n'[1]M1b - Model inputs'!N199,\n'[1]SM1 - DECC Scenario 3 equiv'!N199,\n'[1]SM2 - DECC Scenario 1 equiv'!N199,\n'[1]SM3 - DECC Scenario 2 equiv'!N199,\n'[1]SM4 - DNO Scenario 4 equiv'!N199,\n'[2]M1a - Model inputs'!N199,\n'[2]M1b - Model inputs'!N199,\n'[2]SM1 - DECC Scenario 3 equiv'!N199,\n'[2]SM2 - DECC Scenario 1 equiv'!N199,\n'[2]SM3 - DECC Scenario 2 equiv'!N199,\n'[2]SM4 - DNO Scenario 4 equiv'!N199)","v":0},{"$f":"CHOOSE(view,\n'[1]M1a - Model inputs'!O199,\n'[1]M1b - Model inputs'!O199,\n'[1]SM1 - DECC Scenario 3 equiv'!O199,\n'[1]SM2 - DECC Scenario 1 equiv'!O199,\n'[1]SM3 - DECC Scenario 2 equiv'!O199,\n'[1]SM4 - DNO Scenario 4 equiv'!O199,\n'[2]M1a - Model inputs'!O199,\n'[2]M1b - Model inputs'!O199,\n'[2]SM1 - DECC Scenario 3 equiv'!O199,\n'[2]SM2 - DECC Scenario 1 equiv'!O199,\n'[2]SM3 - DECC Scenario 2 equiv'!O199,\n'[2]SM4 - DNO Scenario 4 equiv'!O199)","v":0},{"$f":"CHOOSE(view,\n'[1]M1a - Model inputs'!P199,\n'[1]M1b - Model inputs'!P199,\n'[1]SM1 - DECC Scenario 3 equiv'!P199,\n'[1]SM2 - DECC Scenario 1 equiv'!P199,\n'[1]SM3 - DECC Scenario 2 equiv'!P199,\n'[1]SM4 - DNO Scenario 4 equiv'!P199,\n'[2]M1a - Model inputs'!P199,\n'[2]M1b - Model inputs'!P199,\n'[2]SM1 - DECC Scenario 3 equiv'!P199,\n'[2]SM2 - DECC Scenario 1 equiv'!P199,\n'[2]SM3 - DECC Scenario 2 equiv'!P199,\n'[2]SM4 - DNO Scenario 4 equiv'!P199)","v":0},{"$f":"CHOOSE(view,\n'[1]M1a - Model inputs'!Q199,\n'[1]M1b - Model inputs'!Q199,\n'[1]SM1 - DECC Scenario 3 equiv'!Q199,\n'[1]SM2 - DECC Scenario 1 equiv'!Q199,\n'[1]SM3 - DECC Scenario 2 equiv'!Q199,\n'[1]SM4 - DNO Scenario 4 equiv'!Q199,\n'[2]M1a - Model inputs'!Q199,\n'[2]M1b - Model inputs'!Q199,\n'[2]SM1 - DECC Scenario 3 equiv'!Q199,\n'[2]SM2 - DECC Scenario 1 equiv'!Q199,\n'[2]SM3 - DECC Scenario 2 equiv'!Q199,\n'[2]SM4 - DNO Scenario 4 equiv'!Q199)","v":0},{"$f":"CHOOSE(view,\n'[1]M1a - Model inputs'!R199,\n'[1]M1b - Model inputs'!R199,\n'[1]SM1 - DECC Scenario 3 equiv'!R199,\n'[1]SM2 - DECC Scenario 1 equiv'!R199,\n'[1]SM3 - DECC Scenario 2 equiv'!R199,\n'[1]SM4 - DNO Scenario 4 equiv'!R199,\n'[2]M1a - Model inputs'!R199,\n'[2]M1b - Model inputs'!R199,\n'[2]SM1 - DECC Scenario 3 equiv'!R199,\n'[2]SM2 - DECC Scenario 1 equiv'!R199,\n'[2]SM3 - DECC Scenario 2 equiv'!R199,\n'[2]SM4 - DNO Scenario 4 equiv'!R199)","v":0},{"$f":"CHOOSE(view,\n'[1]M1a - Model inputs'!S199,\n'[1]M1b - Model inputs'!S199,\n'[1]SM1 - DECC Scenario 3 equiv'!S199,\n'[1]SM2 - DECC Scenario 1 equiv'!S199,\n'[1]SM3 - DECC Scenario 2 equiv'!S199,\n'[1]SM4 - DNO Scenario 4 equiv'!S199,\n'[2]M1a - Model inputs'!S199,\n'[2]M1b - Model inputs'!S199,\n'[2]SM1 - DECC Scenario 3 equiv'!S199,\n'[2]SM2 - DECC Scenario 1 equiv'!S199,\n'[2]SM3 - DECC Scenario 2 equiv'!S199,\n'[2]SM4 - DNO Scenario 4 equiv'!S199)","v":0}]
[null,null,null,null,{"$f":"Input!E131","v":"Allocation to controllable opex"},null,"%",null,null,null,null,null,null,null,null,null,null,null,null,null,null,null,null,null,null,null,null,null,null,null,null,null,null,null,null,{"$f":"CHOOSE(view,\n'[1]M1a - Model inputs'!L200,\n'[1]M1b - Model inputs'!L200,\n'[1]SM1 - DECC Scenario 3 equiv'!L200,\n'[1]SM2 - DECC Scenario 1 equiv'!L200,\n'[1]SM3 - DECC Scenario 2 equiv'!L200,\n'[1]SM4 - DNO Scenario 4 equiv'!L200,\n'[2]M1a - Model inputs'!L200,\n'[2]M1b - Model inputs'!L200,\n'[2]SM1 - DECC Scenario 3 equiv'!L200,\n'[2]SM2 - DECC Scenario 1 equiv'!L200,\n'[2]SM3 - DECC Scenario 2 equiv'!L200,\n'[2]SM4 - DNO Scenario 4 equiv'!L200)","v":0},{"$f":"CHOOSE(view,\n'[1]M1a - Model inputs'!M200,\n'[1]M1b - Model inputs'!M200,\n'[1]SM1 - DECC Scenario 3 equiv'!M200,\n'[1]SM2 - DECC Scenario 1 equiv'!M200,\n'[1]SM3 - DECC Scenario 2 equiv'!M200,\n'[1]SM4 - DNO Scenario 4 equiv'!M200,\n'[2]M1a - Model inputs'!M200,\n'[2]M1b - Model inputs'!M200,\n'[2]SM1 - DECC Scenario 3 equiv'!M200,\n'[2]SM2 - DECC Scenario 1 equiv'!M200,\n'[2]SM3 - DECC Scenario 2 equiv'!M200,\n'[2]SM4 - DNO Scenario 4 equiv'!M200)","v":0},{"$f":"CHOOSE(view,\n'[1]M1a - Model inputs'!N200,\n'[1]M1b - Model inputs'!N200,\n'[1]SM1 - DECC Scenario 3 equiv'!N200,\n'[1]SM2 - DECC Scenario 1 equiv'!N200,\n'[1]SM3 - DECC Scenario 2 equiv'!N200,\n'[1]SM4 - DNO Scenario 4 equiv'!N200,\n'[2]M1a - Model inputs'!N200,\n'[2]M1b - Model inputs'!N200,\n'[2]SM1 - DECC Scenario 3 equiv'!N200,\n'[2]SM2 - DECC Scenario 1 equiv'!N200,\n'[2]SM3 - DECC Scenario 2 equiv'!N200,\n'[2]SM4 - DNO Scenario 4 equiv'!N200)","v":0},{"$f":"CHOOSE(view,\n'[1]M1a - Model inputs'!O200,\n'[1]M1b - Model inputs'!O200,\n'[1]SM1 - DECC Scenario 3 equiv'!O200,\n'[1]SM2 - DECC Scenario 1 equiv'!O200,\n'[1]SM3 - DECC Scenario 2 equiv'!O200,\n'[1]SM4 - DNO Scenario 4 equiv'!O200,\n'[2]M1a - Model inputs'!O200,\n'[2]M1b - Model inputs'!O200,\n'[2]SM1 - DECC Scenario 3 equiv'!O200,\n'[2]SM2 - DECC Scenario 1 equiv'!O200,\n'[2]SM3 - DECC Scenario 2 equiv'!O200,\n'[2]SM4 - DNO Scenario 4 equiv'!O200)","v":0},{"$f":"CHOOSE(view,\n'[1]M1a - Model inputs'!P200,\n'[1]M1b - Model inputs'!P200,\n'[1]SM1 - DECC Scenario 3 equiv'!P200,\n'[1]SM2 - DECC Scenario 1 equiv'!P200,\n'[1]SM3 - DECC Scenario 2 equiv'!P200,\n'[1]SM4 - DNO Scenario 4 equiv'!P200,\n'[2]M1a - Model inputs'!P200,\n'[2]M1b - Model inputs'!P200,\n'[2]SM1 - DECC Scenario 3 equiv'!P200,\n'[2]SM2 - DECC Scenario 1 equiv'!P200,\n'[2]SM3 - DECC Scenario 2 equiv'!P200,\n'[2]SM4 - DNO Scenario 4 equiv'!P200)","v":0},{"$f":"CHOOSE(view,\n'[1]M1a - Model inputs'!Q200,\n'[1]M1b - Model inputs'!Q200,\n'[1]SM1 - DECC Scenario 3 equiv'!Q200,\n'[1]SM2 - DECC Scenario 1 equiv'!Q200,\n'[1]SM3 - DECC Scenario 2 equiv'!Q200,\n'[1]SM4 - DNO Scenario 4 equiv'!Q200,\n'[2]M1a - Model inputs'!Q200,\n'[2]M1b - Model inputs'!Q200,\n'[2]SM1 - DECC Scenario 3 equiv'!Q200,\n'[2]SM2 - DECC Scenario 1 equiv'!Q200,\n'[2]SM3 - DECC Scenario 2 equiv'!Q200,\n'[2]SM4 - DNO Scenario 4 equiv'!Q200)","v":0},{"$f":"CHOOSE(view,\n'[1]M1a - Model inputs'!R200,\n'[1]M1b - Model inputs'!R200,\n'[1]SM1 - DECC Scenario 3 equiv'!R200,\n'[1]SM2 - DECC Scenario 1 equiv'!R200,\n'[1]SM3 - DECC Scenario 2 equiv'!R200,\n'[1]SM4 - DNO Scenario 4 equiv'!R200,\n'[2]M1a - Model inputs'!R200,\n'[2]M1b - Model inputs'!R200,\n'[2]SM1 - DECC Scenario 3 equiv'!R200,\n'[2]SM2 - DECC Scenario 1 equiv'!R200,\n'[2]SM3 - DECC Scenario 2 equiv'!R200,\n'[2]SM4 - DNO Scenario 4 equiv'!R200)","v":0},{"$f":"CHOOSE(view,\n'[1]M1a - Model inputs'!S200,\n'[1]M1b - Model inputs'!S200,\n'[1]SM1 - DECC Scenario 3 equiv'!S200,\n'[1]SM2 - DECC Scenario 1 equiv'!S200,\n'[1]SM3 - DECC Scenario 2 equiv'!S200,\n'[1]SM4 - DNO Scenario 4 equiv'!S200,\n'[2]M1a - Model inputs'!S200,\n'[2]M1b - Model inputs'!S200,\n'[2]SM1 - DECC Scenario 3 equiv'!S200,\n'[2]SM2 - DECC Scenario 1 equiv'!S200,\n'[2]SM3 - DECC Scenario 2 equiv'!S200,\n'[2]SM4 - DNO Scenario 4 equiv'!S200)","v":0}]
[]
[null,null,null,null,{"$f":"Input!E133","v":"Allowed uncertain costs (Smart metering roll out costs)"},null,"£m 12/13 prices",null,null,null,null,null,null,null,null,null,null,null,null,null,null,null,null,null,null,null,null,null,null,null,null,null,null,null,null,{"$f":"AJ22","v":5.2486320406245866E-2},5.1858360656762227E-2,5.0565223182818066E-2,4.5902567234348074E-2,4.2000926042862867E-2,4.3730330780959767E-2,0,0]
[null,null,null,null,{"$f":"Input!E134","v":"Allocation to load related capex"},null,"%",null,null,null,null,null,null,null,null,null,null,null,null,null,null,null,null,null,null,null,null,null,null,null,null,null,null,null,null,{"$f":"CHOOSE(view,\n'[1]M1a - Model inputs'!L203,\n'[1]M1b - Model inputs'!L203,\n'[1]SM1 - DECC Scenario 3 equiv'!L203,\n'[1]SM2 - DECC Scenario 1 equiv'!L203,\n'[1]SM3 - DECC Scenario 2 equiv'!L203,\n'[1]SM4 - DNO Scenario 4 equiv'!L203,\n'[2]M1a - Model inputs'!L203,\n'[2]M1b - Model inputs'!L203,\n'[2]SM1 - DECC Scenario 3 equiv'!L203,\n'[2]SM2 - DECC Scenario 1 equiv'!L203,\n'[2]SM3 - DECC Scenario 2 equiv'!L203,\n'[2]SM4 - DNO Scenario 4 equiv'!L203)","v":0},{"$f":"CHOOSE(view,\n'[1]M1a - Model inputs'!M203,\n'[1]M1b - Model inputs'!M203,\n'[1]SM1 - DECC Scenario 3 equiv'!M203,\n'[1]SM2 - DECC Scenario 1 equiv'!M203,\n'[1]SM3 - DECC Scenario 2 equiv'!M203,\n'[1]SM4 - DNO Scenario 4 equiv'!M203,\n'[2]M1a - Model inputs'!M203,\n'[2]M1b - Model inputs'!M203,\n'[2]SM1 - DECC Scenario 3 equiv'!M203,\n'[2]SM2 - DECC Scenario 1 equiv'!M203,\n'[2]SM3 - DECC Scenario 2 equiv'!M203,\n'[2]SM4 - DNO Scenario 4 equiv'!M203)","v":0},{"$f":"CHOOSE(view,\n'[1]M1a - Model inputs'!N203,\n'[1]M1b - Model inputs'!N203,\n'[1]SM1 - DECC Scenario 3 equiv'!N203,\n'[1]SM2 - DECC Scenario 1 equiv'!N203,\n'[1]SM3 - DECC Scenario 2 equiv'!N203,\n'[1]SM4 - DNO Scenario 4 equiv'!N203,\n'[2]M1a - Model inputs'!N203,\n'[2]M1b - Model inputs'!N203,\n'[2]SM1 - DECC Scenario 3 equiv'!N203,\n'[2]SM2 - DECC Scenario 1 equiv'!N203,\n'[2]SM3 - DECC Scenario 2 equiv'!N203,\n'[2]SM4 - DNO Scenario 4 equiv'!N203)","v":0},{"$f":"CHOOSE(view,\n'[1]M1a - Model inputs'!O203,\n'[1]M1b - Model inputs'!O203,\n'[1]SM1 - DECC Scenario 3 equiv'!O203,\n'[1]SM2 - DECC Scenario 1 equiv'!O203,\n'[1]SM3 - DECC Scenario 2 equiv'!O203,\n'[1]SM4 - DNO Scenario 4 equiv'!O203,\n'[2]M1a - Model inputs'!O203,\n'[2]M1b - Model inputs'!O203,\n'[2]SM1 - DECC Scenario 3 equiv'!O203,\n'[2]SM2 - DECC Scenario 1 equiv'!O203,\n'[2]SM3 - DECC Scenario 2 equiv'!O203,\n'[2]SM4 - DNO Scenario 4 equiv'!O203)","v":0},{"$f":"CHOOSE(view,\n'[1]M1a - Model inputs'!P203,\n'[1]M1b - Model inputs'!P203,\n'[1]SM1 - DECC Scenario 3 equiv'!P203,\n'[1]SM2 - DECC Scenario 1 equiv'!P203,\n'[1]SM3 - DECC Scenario 2 equiv'!P203,\n'[1]SM4 - DNO Scenario 4 equiv'!P203,\n'[2]M1a - Model inputs'!P203,\n'[2]M1b - Model inputs'!P203,\n'[2]SM1 - DECC Scenario 3 equiv'!P203,\n'[2]SM2 - DECC Scenario 1 equiv'!P203,\n'[2]SM3 - DECC Scenario 2 equiv'!P203,\n'[2]SM4 - DNO Scenario 4 equiv'!P203)","v":0},{"$f":"CHOOSE(view,\n'[1]M1a - Model inputs'!Q203,\n'[1]M1b - Model inputs'!Q203,\n'[1]SM1 - DECC Scenario 3 equiv'!Q203,\n'[1]SM2 - DECC Scenario 1 equiv'!Q203,\n'[1]SM3 - DECC Scenario 2 equiv'!Q203,\n'[1]SM4 - DNO Scenario 4 equiv'!Q203,\n'[2]M1a - Model inputs'!Q203,\n'[2]M1b - Model inputs'!Q203,\n'[2]SM1 - DECC Scenario 3 equiv'!Q203,\n'[2]SM2 - DECC Scenario 1 equiv'!Q203,\n'[2]SM3 - DECC Scenario 2 equiv'!Q203,\n'[2]SM4 - DNO Scenario 4 equiv'!Q203)","v":0},{"$f":"CHOOSE(view,\n'[1]M1a - Model inputs'!R203,\n'[1]M1b - Model inputs'!R203,\n'[1]SM1 - DECC Scenario 3 equiv'!R203,\n'[1]SM2 - DECC Scenario 1 equiv'!R203,\n'[1]SM3 - DECC Scenario 2 equiv'!R203,\n'[1]SM4 - DNO Scenario 4 equiv'!R203,\n'[2]M1a - Model inputs'!R203,\n'[2]M1b - Model inputs'!R203,\n'[2]SM1 - DECC Scenario 3 equiv'!R203,\n'[2]SM2 - DECC Scenario 1 equiv'!R203,\n'[2]SM3 - DECC Scenario 2 equiv'!R203,\n'[2]SM4 - DNO Scenario 4 equiv'!R203)","v":0},{"$f":"CHOOSE(view,\n'[1]M1a - Model inputs'!S203,\n'[1]M1b - Model inputs'!S203,\n'[1]SM1 - DECC Scenario 3 equiv'!S203,\n'[1]SM2 - DECC Scenario 1 equiv'!S203,\n'[1]SM3 - DECC Scenario 2 equiv'!S203,\n'[1]SM4 - DNO Scenario 4 equiv'!S203,\n'[2]M1a - Model inputs'!S203,\n'[2]M1b - Model inputs'!S203,\n'[2]SM1 - DECC Scenario 3 equiv'!S203,\n'[2]SM2 - DECC Scenario 1 equiv'!S203,\n'[2]SM3 - DECC Scenario 2 equiv'!S203,\n'[2]SM4 - DNO Scenario 4 equiv'!S203)","v":0}]
[null,null,null,null,{"$f":"Input!E135","v":"Allocation to non-load related capex - asset replacement"},null,"%",null,null,null,null,null,null,null,null,null,null,null,null,null,null,null,null,null,null,null,null,null,null,null,null,null,null,null,null,{"$f":"CHOOSE(view,\n'[1]M1a - Model inputs'!L204,\n'[1]M1b - Model inputs'!L204,\n'[1]SM1 - DECC Scenario 3 equiv'!L204,\n'[1]SM2 - DECC Scenario 1 equiv'!L204,\n'[1]SM3 - DECC Scenario 2 equiv'!L204,\n'[1]SM4 - DNO Scenario 4 equiv'!L204,\n'[2]M1a - Model inputs'!L204,\n'[2]M1b - Model inputs'!L204,\n'[2]SM1 - DECC Scenario 3 equiv'!L204,\n'[2]SM2 - DECC Scenario 1 equiv'!L204,\n'[2]SM3 - DECC Scenario 2 equiv'!L204,\n'[2]SM4 - DNO Scenario 4 equiv'!L204)","v":0},{"$f":"CHOOSE(view,\n'[1]M1a - Model inputs'!M204,\n'[1]M1b - Model inputs'!M204,\n'[1]SM1 - DECC Scenario 3 equiv'!M204,\n'[1]SM2 - DECC Scenario 1 equiv'!M204,\n'[1]SM3 - DECC Scenario 2 equiv'!M204,\n'[1]SM4 - DNO Scenario 4 equiv'!M204,\n'[2]M1a - Model inputs'!M204,\n'[2]M1b - Model inputs'!M204,\n'[2]SM1 - DECC Scenario 3 equiv'!M204,\n'[2]SM2 - DECC Scenario 1 equiv'!M204,\n'[2]SM3 - DECC Scenario 2 equiv'!M204,\n'[2]SM4 - DNO Scenario 4 equiv'!M204)","v":0},{"$f":"CHOOSE(view,\n'[1]M1a - Model inputs'!N204,\n'[1]M1b - Model inputs'!N204,\n'[1]SM1 - DECC Scenario 3 equiv'!N204,\n'[1]SM2 - DECC Scenario 1 equiv'!N204,\n'[1]SM3 - DECC Scenario 2 equiv'!N204,\n'[1]SM4 - DNO Scenario 4 equiv'!N204,\n'[2]M1a - Model inputs'!N204,\n'[2]M1b - Model inputs'!N204,\n'[2]SM1 - DECC Scenario 3 equiv'!N204,\n'[2]SM2 - DECC Scenario 1 equiv'!N204,\n'[2]SM3 - DECC Scenario 2 equiv'!N204,\n'[2]SM4 - DNO Scenario 4 equiv'!N204)","v":0},{"$f":"CHOOSE(view,\n'[1]M1a - Model inputs'!O204,\n'[1]M1b - Model inputs'!O204,\n'[1]SM1 - DECC Scenario 3 equiv'!O204,\n'[1]SM2 - DECC Scenario 1 equiv'!O204,\n'[1]SM3 - DECC Scenario 2 equiv'!O204,\n'[1]SM4 - DNO Scenario 4 equiv'!O204,\n'[2]M1a - Model inputs'!O204,\n'[2]M1b - Model inputs'!O204,\n'[2]SM1 - DECC Scenario 3 equiv'!O204,\n'[2]SM2 - DECC Scenario 1 equiv'!O204,\n'[2]SM3 - DECC Scenario 2 equiv'!O204,\n'[2]SM4 - DNO Scenario 4 equiv'!O204)","v":0},{"$f":"CHOOSE(view,\n'[1]M1a - Model inputs'!P204,\n'[1]M1b - Model inputs'!P204,\n'[1]SM1 - DECC Scenario 3 equiv'!P204,\n'[1]SM2 - DECC Scenario 1 equiv'!P204,\n'[1]SM3 - DECC Scenario 2 equiv'!P204,\n'[1]SM4 - DNO Scenario 4 equiv'!P204,\n'[2]M1a - Model inputs'!P204,\n'[2]M1b - Model inputs'!P204,\n'[2]SM1 - DECC Scenario 3 equiv'!P204,\n'[2]SM2 - DECC Scenario 1 equiv'!P204,\n'[2]SM3 - DECC Scenario 2 equiv'!P204,\n'[2]SM4 - DNO Scenario 4 equiv'!P204)","v":0},{"$f":"CHOOSE(view,\n'[1]M1a - Model inputs'!Q204,\n'[1]M1b - Model inputs'!Q204,\n'[1]SM1 - DECC Scenario 3 equiv'!Q204,\n'[1]SM2 - DECC Scenario 1 equiv'!Q204,\n'[1]SM3 - DECC Scenario 2 equiv'!Q204,\n'[1]SM4 - DNO Scenario 4 equiv'!Q204,\n'[2]M1a - Model inputs'!Q204,\n'[2]M1b - Model inputs'!Q204,\n'[2]SM1 - DECC Scenario 3 equiv'!Q204,\n'[2]SM2 - DECC Scenario 1 equiv'!Q204,\n'[2]SM3 - DECC Scenario 2 equiv'!Q204,\n'[2]SM4 - DNO Scenario 4 equiv'!Q204)","v":0},{"$f":"CHOOSE(view,\n'[1]M1a - Model inputs'!R204,\n'[1]M1b - Model inputs'!R204,\n'[1]SM1 - DECC Scenario 3 equiv'!R204,\n'[1]SM2 - DECC Scenario 1 equiv'!R204,\n'[1]SM3 - DECC Scenario 2 equiv'!R204,\n'[1]SM4 - DNO Scenario 4 equiv'!R204,\n'[2]M1a - Model inputs'!R204,\n'[2]M1b - Model inputs'!R204,\n'[2]SM1 - DECC Scenario 3 equiv'!R204,\n'[2]SM2 - DECC Scenario 1 equiv'!R204,\n'[2]SM3 - DECC Scenario 2 equiv'!R204,\n'[2]SM4 - DNO Scenario 4 equiv'!R204)","v":0},{"$f":"CHOOSE(view,\n'[1]M1a - Model inputs'!S204,\n'[1]M1b - Model inputs'!S204,\n'[1]SM1 - DECC Scenario 3 equiv'!S204,\n'[1]SM2 - DECC Scenario 1 equiv'!S204,\n'[1]SM3 - DECC Scenario 2 equiv'!S204,\n'[1]SM4 - DNO Scenario 4 equiv'!S204,\n'[2]M1a - Model inputs'!S204,\n'[2]M1b - Model inputs'!S204,\n'[2]SM1 - DECC Scenario 3 equiv'!S204,\n'[2]SM2 - DECC Scenario 1 equiv'!S204,\n'[2]SM3 - DECC Scenario 2 equiv'!S204,\n'[2]SM4 - DNO Scenario 4 equiv'!S204)","v":0}]
[null,null,null,null,{"$f":"Input!E136","v":"Allocation to non-load related capex - other"},null,"%",null,null,null,null,null,null,null,null,null,null,null,null,null,null,null,null,null,null,null,null,null,null,null,null,null,null,null,null,{"$f":"CHOOSE(view,\n'[1]M1a - Model inputs'!L205,\n'[1]M1b - Model inputs'!L205,\n'[1]SM1 - DECC Scenario 3 equiv'!L205,\n'[1]SM2 - DECC Scenario 1 equiv'!L205,\n'[1]SM3 - DECC Scenario 2 equiv'!L205,\n'[1]SM4 - DNO Scenario 4 equiv'!L205,\n'[2]M1a - Model inputs'!L205,\n'[2]M1b - Model inputs'!L205,\n'[2]SM1 - DECC Scenario 3 equiv'!L205,\n'[2]SM2 - DECC Scenario 1 equiv'!L205,\n'[2]SM3 - DECC Scenario 2 equiv'!L205,\n'[2]SM4 - DNO Scenario 4 equiv'!L205)","v":0},{"$f":"CHOOSE(view,\n'[1]M1a - Model inputs'!M205,\n'[1]M1b - Model inputs'!M205,\n'[1]SM1 - DECC Scenario 3 equiv'!M205,\n'[1]SM2 - DECC Scenario 1 equiv'!M205,\n'[1]SM3 - DECC Scenario 2 equiv'!M205,\n'[1]SM4 - DNO Scenario 4 equiv'!M205,\n'[2]M1a - Model inputs'!M205,\n'[2]M1b - Model inputs'!M205,\n'[2]SM1 - DECC Scenario 3 equiv'!M205,\n'[2]SM2 - DECC Scenario 1 equiv'!M205,\n'[2]SM3 - DECC Scenario 2 equiv'!M205,\n'[2]SM4 - DNO Scenario 4 equiv'!M205)","v":0},{"$f":"CHOOSE(view,\n'[1]M1a - Model inputs'!N205,\n'[1]M1b - Model inputs'!N205,\n'[1]SM1 - DECC Scenario 3 equiv'!N205,\n'[1]SM2 - DECC Scenario 1 equiv'!N205,\n'[1]SM3 - DECC Scenario 2 equiv'!N205,\n'[1]SM4 - DNO Scenario 4 equiv'!N205,\n'[2]M1a - Model inputs'!N205,\n'[2]M1b - Model inputs'!N205,\n'[2]SM1 - DECC Scenario 3 equiv'!N205,\n'[2]SM2 - DECC Scenario 1 equiv'!N205,\n'[2]SM3 - DECC Scenario 2 equiv'!N205,\n'[2]SM4 - DNO Scenario 4 equiv'!N205)","v":0},{"$f":"CHOOSE(view,\n'[1]M1a - Model inputs'!O205,\n'[1]M1b - Model inputs'!O205,\n'[1]SM1 - DECC Scenario 3 equiv'!O205,\n'[1]SM2 - DECC Scenario 1 equiv'!O205,\n'[1]SM3 - DECC Scenario 2 equiv'!O205,\n'[1]SM4 - DNO Scenario 4 equiv'!O205,\n'[2]M1a - Model inputs'!O205,\n'[2]M1b - Model inputs'!O205,\n'[2]SM1 - DECC Scenario 3 equiv'!O205,\n'[2]SM2 - DECC Scenario 1 equiv'!O205,\n'[2]SM3 - DECC Scenario 2 equiv'!O205,\n'[2]SM4 - DNO Scenario 4 equiv'!O205)","v":0},{"$f":"CHOOSE(view,\n'[1]M1a - Model inputs'!P205,\n'[1]M1b - Model inputs'!P205,\n'[1]SM1 - DECC Scenario 3 equiv'!P205,\n'[1]SM2 - DECC Scenario 1 equiv'!P205,\n'[1]SM3 - DECC Scenario 2 equiv'!P205,\n'[1]SM4 - DNO Scenario 4 equiv'!P205,\n'[2]M1a - Model inputs'!P205,\n'[2]M1b - Model inputs'!P205,\n'[2]SM1 - DECC Scenario 3 equiv'!P205,\n'[2]SM2 - DECC Scenario 1 equiv'!P205,\n'[2]SM3 - DECC Scenario 2 equiv'!P205,\n'[2]SM4 - DNO Scenario 4 equiv'!P205)","v":0},{"$f":"CHOOSE(view,\n'[1]M1a - Model inputs'!Q205,\n'[1]M1b - Model inputs'!Q205,\n'[1]SM1 - DECC Scenario 3 equiv'!Q205,\n'[1]SM2 - DECC Scenario 1 equiv'!Q205,\n'[1]SM3 - DECC Scenario 2 equiv'!Q205,\n'[1]SM4 - DNO Scenario 4 equiv'!Q205,\n'[2]M1a - Model inputs'!Q205,\n'[2]M1b - Model inputs'!Q205,\n'[2]SM1 - DECC Scenario 3 equiv'!Q205,\n'[2]SM2 - DECC Scenario 1 equiv'!Q205,\n'[2]SM3 - DECC Scenario 2 equiv'!Q205,\n'[2]SM4 - DNO Scenario 4 equiv'!Q205)","v":0},{"$f":"CHOOSE(view,\n'[1]M1a - Model inputs'!R205,\n'[1]M1b - Model inputs'!R205,\n'[1]SM1 - DECC Scenario 3 equiv'!R205,\n'[1]SM2 - DECC Scenario 1 equiv'!R205,\n'[1]SM3 - DECC Scenario 2 equiv'!R205,\n'[1]SM4 - DNO Scenario 4 equiv'!R205,\n'[2]M1a - Model inputs'!R205,\n'[2]M1b - Model inputs'!R205,\n'[2]SM1 - DECC Scenario 3 equiv'!R205,\n'[2]SM2 - DECC Scenario 1 equiv'!R205,\n'[2]SM3 - DECC Scenario 2 equiv'!R205,\n'[2]SM4 - DNO Scenario 4 equiv'!R205)","v":0},{"$f":"CHOOSE(view,\n'[1]M1a - Model inputs'!S205,\n'[1]M1b - Model inputs'!S205,\n'[1]SM1 - DECC Scenario 3 equiv'!S205,\n'[1]SM2 - DECC Scenario 1 equiv'!S205,\n'[1]SM3 - DECC Scenario 2 equiv'!S205,\n'[1]SM4 - DNO Scenario 4 equiv'!S205,\n'[2]M1a - Model inputs'!S205,\n'[2]M1b - Model inputs'!S205,\n'[2]SM1 - DECC Scenario 3 equiv'!S205,\n'[2]SM2 - DECC Scenario 1 equiv'!S205,\n'[2]SM3 - DECC Scenario 2 equiv'!S205,\n'[2]SM4 - DNO Scenario 4 equiv'!S205)","v":0}]
[null,null,null,null,{"$f":"Input!E137","v":"Allocation to faults"},null,"%",null,null,null,null,null,null,null,null,null,null,null,null,null,null,null,null,null,null,null,null,null,null,null,null,null,null,null,null,{"$f":"CHOOSE(view,\n'[1]M1a - Model inputs'!L206,\n'[1]M1b - Model inputs'!L206,\n'[1]SM1 - DECC Scenario 3 equiv'!L206,\n'[1]SM2 - DECC Scenario 1 equiv'!L206,\n'[1]SM3 - DECC Scenario 2 equiv'!L206,\n'[1]SM4 - DNO Scenario 4 equiv'!L206,\n'[2]M1a - Model inputs'!L206,\n'[2]M1b - Model inputs'!L206,\n'[2]SM1 - DECC Scenario 3 equiv'!L206,\n'[2]SM2 - DECC Scenario 1 equiv'!L206,\n'[2]SM3 - DECC Scenario 2 equiv'!L206,\n'[2]SM4 - DNO Scenario 4 equiv'!L206)","v":0},{"$f":"CHOOSE(view,\n'[1]M1a - Model inputs'!M206,\n'[1]M1b - Model inputs'!M206,\n'[1]SM1 - DECC Scenario 3 equiv'!M206,\n'[1]SM2 - DECC Scenario 1 equiv'!M206,\n'[1]SM3 - DECC Scenario 2 equiv'!M206,\n'[1]SM4 - DNO Scenario 4 equiv'!M206,\n'[2]M1a - Model inputs'!M206,\n'[2]M1b - Model inputs'!M206,\n'[2]SM1 - DECC Scenario 3 equiv'!M206,\n'[2]SM2 - DECC Scenario 1 equiv'!M206,\n'[2]SM3 - DECC Scenario 2 equiv'!M206,\n'[2]SM4 - DNO Scenario 4 equiv'!M206)","v":0},{"$f":"CHOOSE(view,\n'[1]M1a - Model inputs'!N206,\n'[1]M1b - Model inputs'!N206,\n'[1]SM1 - DECC Scenario 3 equiv'!N206,\n'[1]SM2 - DECC Scenario 1 equiv'!N206,\n'[1]SM3 - DECC Scenario 2 equiv'!N206,\n'[1]SM4 - DNO Scenario 4 equiv'!N206,\n'[2]M1a - Model inputs'!N206,\n'[2]M1b - Model inputs'!N206,\n'[2]SM1 - DECC Scenario 3 equiv'!N206,\n'[2]SM2 - DECC Scenario 1 equiv'!N206,\n'[2]SM3 - DECC Scenario 2 equiv'!N206,\n'[2]SM4 - DNO Scenario 4 equiv'!N206)","v":0},{"$f":"CHOOSE(view,\n'[1]M1a - Model inputs'!O206,\n'[1]M1b - Model inputs'!O206,\n'[1]SM1 - DECC Scenario 3 equiv'!O206,\n'[1]SM2 - DECC Scenario 1 equiv'!O206,\n'[1]SM3 - DECC Scenario 2 equiv'!O206,\n'[1]SM4 - DNO Scenario 4 equiv'!O206,\n'[2]M1a - Model inputs'!O206,\n'[2]M1b - Model inputs'!O206,\n'[2]SM1 - DECC Scenario 3 equiv'!O206,\n'[2]SM2 - DECC Scenario 1 equiv'!O206,\n'[2]SM3 - DECC Scenario 2 equiv'!O206,\n'[2]SM4 - DNO Scenario 4 equiv'!O206)","v":0},{"$f":"CHOOSE(view,\n'[1]M1a - Model inputs'!P206,\n'[1]M1b - Model inputs'!P206,\n'[1]SM1 - DECC Scenario 3 equiv'!P206,\n'[1]SM2 - DECC Scenario 1 equiv'!P206,\n'[1]SM3 - DECC Scenario 2 equiv'!P206,\n'[1]SM4 - DNO Scenario 4 equiv'!P206,\n'[2]M1a - Model inputs'!P206,\n'[2]M1b - Model inputs'!P206,\n'[2]SM1 - DECC Scenario 3 equiv'!P206,\n'[2]SM2 - DECC Scenario 1 equiv'!P206,\n'[2]SM3 - DECC Scenario 2 equiv'!P206,\n'[2]SM4 - DNO Scenario 4 equiv'!P206)","v":0},{"$f":"CHOOSE(view,\n'[1]M1a - Model inputs'!Q206,\n'[1]M1b - Model inputs'!Q206,\n'[1]SM1 - DECC Scenario 3 equiv'!Q206,\n'[1]SM2 - DECC Scenario 1 equiv'!Q206,\n'[1]SM3 - DECC Scenario 2 equiv'!Q206,\n'[1]SM4 - DNO Scenario 4 equiv'!Q206,\n'[2]M1a - Model inputs'!Q206,\n'[2]M1b - Model inputs'!Q206,\n'[2]SM1 - DECC Scenario 3 equiv'!Q206,\n'[2]SM2 - DECC Scenario 1 equiv'!Q206,\n'[2]SM3 - DECC Scenario 2 equiv'!Q206,\n'[2]SM4 - DNO Scenario 4 equiv'!Q206)","v":0},{"$f":"CHOOSE(view,\n'[1]M1a - Model inputs'!R206,\n'[1]M1b - Model inputs'!R206,\n'[1]SM1 - DECC Scenario 3 equiv'!R206,\n'[1]SM2 - DECC Scenario 1 equiv'!R206,\n'[1]SM3 - DECC Scenario 2 equiv'!R206,\n'[1]SM4 - DNO Scenario 4 equiv'!R206,\n'[2]M1a - Model inputs'!R206,\n'[2]M1b - Model inputs'!R206,\n'[2]SM1 - DECC Scenario 3 equiv'!R206,\n'[2]SM2 - DECC Scenario 1 equiv'!R206,\n'[2]SM3 - DECC Scenario 2 equiv'!R206,\n'[2]SM4 - DNO Scenario 4 equiv'!R206)","v":0},{"$f":"CHOOSE(view,\n'[1]M1a - Model inputs'!S206,\n'[1]M1b - Model inputs'!S206,\n'[1]SM1 - DECC Scenario 3 equiv'!S206,\n'[1]SM2 - DECC Scenario 1 equiv'!S206,\n'[1]SM3 - DECC Scenario 2 equiv'!S206,\n'[1]SM4 - DNO Scenario 4 equiv'!S206,\n'[2]M1a - Model inputs'!S206,\n'[2]M1b - Model inputs'!S206,\n'[2]SM1 - DECC Scenario 3 equiv'!S206,\n'[2]SM2 - DECC Scenario 1 equiv'!S206,\n'[2]SM3 - DECC Scenario 2 equiv'!S206,\n'[2]SM4 - DNO Scenario 4 equiv'!S206)","v":0}]
[null,null,null,null,{"$f":"Input!E138","v":"Allocation to tree cutting"},null,"%",null,null,null,null,null,null,null,null,null,null,null,null,null,null,null,null,null,null,null,null,null,null,null,null,null,null,null,null,{"$f":"CHOOSE(view,\n'[1]M1a - Model inputs'!L207,\n'[1]M1b - Model inputs'!L207,\n'[1]SM1 - DECC Scenario 3 equiv'!L207,\n'[1]SM2 - DECC Scenario 1 equiv'!L207,\n'[1]SM3 - DECC Scenario 2 equiv'!L207,\n'[1]SM4 - DNO Scenario 4 equiv'!L207,\n'[2]M1a - Model inputs'!L207,\n'[2]M1b - Model inputs'!L207,\n'[2]SM1 - DECC Scenario 3 equiv'!L207,\n'[2]SM2 - DECC Scenario 1 equiv'!L207,\n'[2]SM3 - DECC Scenario 2 equiv'!L207,\n'[2]SM4 - DNO Scenario 4 equiv'!L207)","v":0},{"$f":"CHOOSE(view,\n'[1]M1a - Model inputs'!M207,\n'[1]M1b - Model inputs'!M207,\n'[1]SM1 - DECC Scenario 3 equiv'!M207,\n'[1]SM2 - DECC Scenario 1 equiv'!M207,\n'[1]SM3 - DECC Scenario 2 equiv'!M207,\n'[1]SM4 - DNO Scenario 4 equiv'!M207,\n'[2]M1a - Model inputs'!M207,\n'[2]M1b - Model inputs'!M207,\n'[2]SM1 - DECC Scenario 3 equiv'!M207,\n'[2]SM2 - DECC Scenario 1 equiv'!M207,\n'[2]SM3 - DECC Scenario 2 equiv'!M207,\n'[2]SM4 - DNO Scenario 4 equiv'!M207)","v":0},{"$f":"CHOOSE(view,\n'[1]M1a - Model inputs'!N207,\n'[1]M1b - Model inputs'!N207,\n'[1]SM1 - DECC Scenario 3 equiv'!N207,\n'[1]SM2 - DECC Scenario 1 equiv'!N207,\n'[1]SM3 - DECC Scenario 2 equiv'!N207,\n'[1]SM4 - DNO Scenario 4 equiv'!N207,\n'[2]M1a - Model inputs'!N207,\n'[2]M1b - Model inputs'!N207,\n'[2]SM1 - DECC Scenario 3 equiv'!N207,\n'[2]SM2 - DECC Scenario 1 equiv'!N207,\n'[2]SM3 - DECC Scenario 2 equiv'!N207,\n'[2]SM4 - DNO Scenario 4 equiv'!N207)","v":0},{"$f":"CHOOSE(view,\n'[1]M1a - Model inputs'!O207,\n'[1]M1b - Model inputs'!O207,\n'[1]SM1 - DECC Scenario 3 equiv'!O207,\n'[1]SM2 - DECC Scenario 1 equiv'!O207,\n'[1]SM3 - DECC Scenario 2 equiv'!O207,\n'[1]SM4 - DNO Scenario 4 equiv'!O207,\n'[2]M1a - Model inputs'!O207,\n'[2]M1b - Model inputs'!O207,\n'[2]SM1 - DECC Scenario 3 equiv'!O207,\n'[2]SM2 - DECC Scenario 1 equiv'!O207,\n'[2]SM3 - DECC Scenario 2 equiv'!O207,\n'[2]SM4 - DNO Scenario 4 equiv'!O207)","v":0},{"$f":"CHOOSE(view,\n'[1]M1a - Model inputs'!P207,\n'[1]M1b - Model inputs'!P207,\n'[1]SM1 - DECC Scenario 3 equiv'!P207,\n'[1]SM2 - DECC Scenario 1 equiv'!P207,\n'[1]SM3 - DECC Scenario 2 equiv'!P207,\n'[1]SM4 - DNO Scenario 4 equiv'!P207,\n'[2]M1a - Model inputs'!P207,\n'[2]M1b - Model inputs'!P207,\n'[2]SM1 - DECC Scenario 3 equiv'!P207,\n'[2]SM2 - DECC Scenario 1 equiv'!P207,\n'[2]SM3 - DECC Scenario 2 equiv'!P207,\n'[2]SM4 - DNO Scenario 4 equiv'!P207)","v":0},{"$f":"CHOOSE(view,\n'[1]M1a - Model inputs'!Q207,\n'[1]M1b - Model inputs'!Q207,\n'[1]SM1 - DECC Scenario 3 equiv'!Q207,\n'[1]SM2 - DECC Scenario 1 equiv'!Q207,\n'[1]SM3 - DECC Scenario 2 equiv'!Q207,\n'[1]SM4 - DNO Scenario 4 equiv'!Q207,\n'[2]M1a - Model inputs'!Q207,\n'[2]M1b - Model inputs'!Q207,\n'[2]SM1 - DECC Scenario 3 equiv'!Q207,\n'[2]SM2 - DECC Scenario 1 equiv'!Q207,\n'[2]SM3 - DECC Scenario 2 equiv'!Q207,\n'[2]SM4 - DNO Scenario 4 equiv'!Q207)","v":0},{"$f":"CHOOSE(view,\n'[1]M1a - Model inputs'!R207,\n'[1]M1b - Model inputs'!R207,\n'[1]SM1 - DECC Scenario 3 equiv'!R207,\n'[1]SM2 - DECC Scenario 1 equiv'!R207,\n'[1]SM3 - DECC Scenario 2 equiv'!R207,\n'[1]SM4 - DNO Scenario 4 equiv'!R207,\n'[2]M1a - Model inputs'!R207,\n'[2]M1b - Model inputs'!R207,\n'[2]SM1 - DECC Scenario 3 equiv'!R207,\n'[2]SM2 - DECC Scenario 1 equiv'!R207,\n'[2]SM3 - DECC Scenario 2 equiv'!R207,\n'[2]SM4 - DNO Scenario 4 equiv'!R207)","v":0},{"$f":"CHOOSE(view,\n'[1]M1a - Model inputs'!S207,\n'[1]M1b - Model inputs'!S207,\n'[1]SM1 - DECC Scenario 3 equiv'!S207,\n'[1]SM2 - DECC Scenario 1 equiv'!S207,\n'[1]SM3 - DECC Scenario 2 equiv'!S207,\n'[1]SM4 - DNO Scenario 4 equiv'!S207,\n'[2]M1a - Model inputs'!S207,\n'[2]M1b - Model inputs'!S207,\n'[2]SM1 - DECC Scenario 3 equiv'!S207,\n'[2]SM2 - DECC Scenario 1 equiv'!S207,\n'[2]SM3 - DECC Scenario 2 equiv'!S207,\n'[2]SM4 - DNO Scenario 4 equiv'!S207)","v":0}]
[null,null,null,null,{"$f":"Input!E139","v":"Allocation to controllable opex"},null,"%",null,null,null,null,null,null,null,null,null,null,null,null,null,null,null,null,null,null,null,null,null,null,null,null,null,null,null,null,{"$f":"CHOOSE(view,\n'[1]M1a - Model inputs'!L208,\n'[1]M1b - Model inputs'!L208,\n'[1]SM1 - DECC Scenario 3 equiv'!L208,\n'[1]SM2 - DECC Scenario 1 equiv'!L208,\n'[1]SM3 - DECC Scenario 2 equiv'!L208,\n'[1]SM4 - DNO Scenario 4 equiv'!L208,\n'[2]M1a - Model inputs'!L208,\n'[2]M1b - Model inputs'!L208,\n'[2]SM1 - DECC Scenario 3 equiv'!L208,\n'[2]SM2 - DECC Scenario 1 equiv'!L208,\n'[2]SM3 - DECC Scenario 2 equiv'!L208,\n'[2]SM4 - DNO Scenario 4 equiv'!L208)","v":1},{"$f":"CHOOSE(view,\n'[1]M1a - Model inputs'!M208,\n'[1]M1b - Model inputs'!M208,\n'[1]SM1 - DECC Scenario 3 equiv'!M208,\n'[1]SM2 - DECC Scenario 1 equiv'!M208,\n'[1]SM3 - DECC Scenario 2 equiv'!M208,\n'[1]SM4 - DNO Scenario 4 equiv'!M208,\n'[2]M1a - Model inputs'!M208,\n'[2]M1b - Model inputs'!M208,\n'[2]SM1 - DECC Scenario 3 equiv'!M208,\n'[2]SM2 - DECC Scenario 1 equiv'!M208,\n'[2]SM3 - DECC Scenario 2 equiv'!M208,\n'[2]SM4 - DNO Scenario 4 equiv'!M208)","v":1},{"$f":"CHOOSE(view,\n'[1]M1a - Model inputs'!N208,\n'[1]M1b - Model inputs'!N208,\n'[1]SM1 - DECC Scenario 3 equiv'!N208,\n'[1]SM2 - DECC Scenario 1 equiv'!N208,\n'[1]SM3 - DECC Scenario 2 equiv'!N208,\n'[1]SM4 - DNO Scenario 4 equiv'!N208,\n'[2]M1a - Model inputs'!N208,\n'[2]M1b - Model inputs'!N208,\n'[2]SM1 - DECC Scenario 3 equiv'!N208,\n'[2]SM2 - DECC Scenario 1 equiv'!N208,\n'[2]SM3 - DECC Scenario 2 equiv'!N208,\n'[2]SM4 - DNO Scenario 4 equiv'!N208)","v":1},{"$f":"CHOOSE(view,\n'[1]M1a - Model inputs'!O208,\n'[1]M1b - Model inputs'!O208,\n'[1]SM1 - DECC Scenario 3 equiv'!O208,\n'[1]SM2 - DECC Scenario 1 equiv'!O208,\n'[1]SM3 - DECC Scenario 2 equiv'!O208,\n'[1]SM4 - DNO Scenario 4 equiv'!O208,\n'[2]M1a - Model inputs'!O208,\n'[2]M1b - Model inputs'!O208,\n'[2]SM1 - DECC Scenario 3 equiv'!O208,\n'[2]SM2 - DECC Scenario 1 equiv'!O208,\n'[2]SM3 - DECC Scenario 2 equiv'!O208,\n'[2]SM4 - DNO Scenario 4 equiv'!O208)","v":1},{"$f":"CHOOSE(view,\n'[1]M1a - Model inputs'!P208,\n'[1]M1b - Model inputs'!P208,\n'[1]SM1 - DECC Scenario 3 equiv'!P208,\n'[1]SM2 - DECC Scenario 1 equiv'!P208,\n'[1]SM3 - DECC Scenario 2 equiv'!P208,\n'[1]SM4 - DNO Scenario 4 equiv'!P208,\n'[2]M1a - Model inputs'!P208,\n'[2]M1b - Model inputs'!P208,\n'[2]SM1 - DECC Scenario 3 equiv'!P208,\n'[2]SM2 - DECC Scenario 1 equiv'!P208,\n'[2]SM3 - DECC Scenario 2 equiv'!P208,\n'[2]SM4 - DNO Scenario 4 equiv'!P208)","v":1},{"$f":"CHOOSE(view,\n'[1]M1a - Model inputs'!Q208,\n'[1]M1b - Model inputs'!Q208,\n'[1]SM1 - DECC Scenario 3 equiv'!Q208,\n'[1]SM2 - DECC Scenario 1 equiv'!Q208,\n'[1]SM3 - DECC Scenario 2 equiv'!Q208,\n'[1]SM4 - DNO Scenario 4 equiv'!Q208,\n'[2]M1a - Model inputs'!Q208,\n'[2]M1b - Model inputs'!Q208,\n'[2]SM1 - DECC Scenario 3 equiv'!Q208,\n'[2]SM2 - DECC Scenario 1 equiv'!Q208,\n'[2]SM3 - DECC Scenario 2 equiv'!Q208,\n'[2]SM4 - DNO Scenario 4 equiv'!Q208)","v":1},{"$f":"CHOOSE(view,\n'[1]M1a - Model inputs'!R208,\n'[1]M1b - Model inputs'!R208,\n'[1]SM1 - DECC Scenario 3 equiv'!R208,\n'[1]SM2 - DECC Scenario 1 equiv'!R208,\n'[1]SM3 - DECC Scenario 2 equiv'!R208,\n'[1]SM4 - DNO Scenario 4 equiv'!R208,\n'[2]M1a - Model inputs'!R208,\n'[2]M1b - Model inputs'!R208,\n'[2]SM1 - DECC Scenario 3 equiv'!R208,\n'[2]SM2 - DECC Scenario 1 equiv'!R208,\n'[2]SM3 - DECC Scenario 2 equiv'!R208,\n'[2]SM4 - DNO Scenario 4 equiv'!R208)","v":1},{"$f":"CHOOSE(view,\n'[1]M1a - Model inputs'!S208,\n'[1]M1b - Model inputs'!S208,\n'[1]SM1 - DECC Scenario 3 equiv'!S208,\n'[1]SM2 - DECC Scenario 1 equiv'!S208,\n'[1]SM3 - DECC Scenario 2 equiv'!S208,\n'[1]SM4 - DNO Scenario 4 equiv'!S208,\n'[2]M1a - Model inputs'!S208,\n'[2]M1b - Model inputs'!S208,\n'[2]SM1 - DECC Scenario 3 equiv'!S208,\n'[2]SM2 - DECC Scenario 1 equiv'!S208,\n'[2]SM3 - DECC Scenario 2 equiv'!S208,\n'[2]SM4 - DNO Scenario 4 equiv'!S208)","v":1}]
[]
[null,null,null,null,{"$f":"Input!E141","v":"Allowed uncertain costs (Specified street work costs)"},null,"£m 12/13 prices",null,null,null,null,null,null,null,null,null,null,null,null,null,null,null,null,null,null,null,null,null,null,null,null,null,null,null,null,{"$f":"AJ23","v":0.16188256847902729},0.16839443827180209,0.16997288984617537,0.17244918155738986,0.1749503651981113,0.17753968760049155,0.18012768564886114,0.18278347898396746]
[null,null,null,null,{"$f":"Input!E142","v":"Allocation to load related capex"},null,"%",null,null,null,null,null,null,null,null,null,null,null,null,null,null,null,null,null,null,null,null,null,null,null,null,null,null,null,null,{"$f":"CHOOSE(view,\n'[1]M1a - Model inputs'!L211,\n'[1]M1b - Model inputs'!L211,\n'[1]SM1 - DECC Scenario 3 equiv'!L211,\n'[1]SM2 - DECC Scenario 1 equiv'!L211,\n'[1]SM3 - DECC Scenario 2 equiv'!L211,\n'[1]SM4 - DNO Scenario 4 equiv'!L211,\n'[2]M1a - Model inputs'!L211,\n'[2]M1b - Model inputs'!L211,\n'[2]SM1 - DECC Scenario 3 equiv'!L211,\n'[2]SM2 - DECC Scenario 1 equiv'!L211,\n'[2]SM3 - DECC Scenario 2 equiv'!L211,\n'[2]SM4 - DNO Scenario 4 equiv'!L211)","v":0},{"$f":"CHOOSE(view,\n'[1]M1a - Model inputs'!M211,\n'[1]M1b - Model inputs'!M211,\n'[1]SM1 - DECC Scenario 3 equiv'!M211,\n'[1]SM2 - DECC Scenario 1 equiv'!M211,\n'[1]SM3 - DECC Scenario 2 equiv'!M211,\n'[1]SM4 - DNO Scenario 4 equiv'!M211,\n'[2]M1a - Model inputs'!M211,\n'[2]M1b - Model inputs'!M211,\n'[2]SM1 - DECC Scenario 3 equiv'!M211,\n'[2]SM2 - DECC Scenario 1 equiv'!M211,\n'[2]SM3 - DECC Scenario 2 equiv'!M211,\n'[2]SM4 - DNO Scenario 4 equiv'!M211)","v":0},{"$f":"CHOOSE(view,\n'[1]M1a - Model inputs'!N211,\n'[1]M1b - Model inputs'!N211,\n'[1]SM1 - DECC Scenario 3 equiv'!N211,\n'[1]SM2 - DECC Scenario 1 equiv'!N211,\n'[1]SM3 - DECC Scenario 2 equiv'!N211,\n'[1]SM4 - DNO Scenario 4 equiv'!N211,\n'[2]M1a - Model inputs'!N211,\n'[2]M1b - Model inputs'!N211,\n'[2]SM1 - DECC Scenario 3 equiv'!N211,\n'[2]SM2 - DECC Scenario 1 equiv'!N211,\n'[2]SM3 - DECC Scenario 2 equiv'!N211,\n'[2]SM4 - DNO Scenario 4 equiv'!N211)","v":0},{"$f":"CHOOSE(view,\n'[1]M1a - Model inputs'!O211,\n'[1]M1b - Model inputs'!O211,\n'[1]SM1 - DECC Scenario 3 equiv'!O211,\n'[1]SM2 - DECC Scenario 1 equiv'!O211,\n'[1]SM3 - DECC Scenario 2 equiv'!O211,\n'[1]SM4 - DNO Scenario 4 equiv'!O211,\n'[2]M1a - Model inputs'!O211,\n'[2]M1b - Model inputs'!O211,\n'[2]SM1 - DECC Scenario 3 equiv'!O211,\n'[2]SM2 - DECC Scenario 1 equiv'!O211,\n'[2]SM3 - DECC Scenario 2 equiv'!O211,\n'[2]SM4 - DNO Scenario 4 equiv'!O211)","v":0},{"$f":"CHOOSE(view,\n'[1]M1a - Model inputs'!P211,\n'[1]M1b - Model inputs'!P211,\n'[1]SM1 - DECC Scenario 3 equiv'!P211,\n'[1]SM2 - DECC Scenario 1 equiv'!P211,\n'[1]SM3 - DECC Scenario 2 equiv'!P211,\n'[1]SM4 - DNO Scenario 4 equiv'!P211,\n'[2]M1a - Model inputs'!P211,\n'[2]M1b - Model inputs'!P211,\n'[2]SM1 - DECC Scenario 3 equiv'!P211,\n'[2]SM2 - DECC Scenario 1 equiv'!P211,\n'[2]SM3 - DECC Scenario 2 equiv'!P211,\n'[2]SM4 - DNO Scenario 4 equiv'!P211)","v":0},{"$f":"CHOOSE(view,\n'[1]M1a - Model inputs'!Q211,\n'[1]M1b - Model inputs'!Q211,\n'[1]SM1 - DECC Scenario 3 equiv'!Q211,\n'[1]SM2 - DECC Scenario 1 equiv'!Q211,\n'[1]SM3 - DECC Scenario 2 equiv'!Q211,\n'[1]SM4 - DNO Scenario 4 equiv'!Q211,\n'[2]M1a - Model inputs'!Q211,\n'[2]M1b - Model inputs'!Q211,\n'[2]SM1 - DECC Scenario 3 equiv'!Q211,\n'[2]SM2 - DECC Scenario 1 equiv'!Q211,\n'[2]SM3 - DECC Scenario 2 equiv'!Q211,\n'[2]SM4 - DNO Scenario 4 equiv'!Q211)","v":0},{"$f":"CHOOSE(view,\n'[1]M1a - Model inputs'!R211,\n'[1]M1b - Model inputs'!R211,\n'[1]SM1 - DECC Scenario 3 equiv'!R211,\n'[1]SM2 - DECC Scenario 1 equiv'!R211,\n'[1]SM3 - DECC Scenario 2 equiv'!R211,\n'[1]SM4 - DNO Scenario 4 equiv'!R211,\n'[2]M1a - Model inputs'!R211,\n'[2]M1b - Model inputs'!R211,\n'[2]SM1 - DECC Scenario 3 equiv'!R211,\n'[2]SM2 - DECC Scenario 1 equiv'!R211,\n'[2]SM3 - DECC Scenario 2 equiv'!R211,\n'[2]SM4 - DNO Scenario 4 equiv'!R211)","v":0},{"$f":"CHOOSE(view,\n'[1]M1a - Model inputs'!S211,\n'[1]M1b - Model inputs'!S211,\n'[1]SM1 - DECC Scenario 3 equiv'!S211,\n'[1]SM2 - DECC Scenario 1 equiv'!S211,\n'[1]SM3 - DECC Scenario 2 equiv'!S211,\n'[1]SM4 - DNO Scenario 4 equiv'!S211,\n'[2]M1a - Model inputs'!S211,\n'[2]M1b - Model inputs'!S211,\n'[2]SM1 - DECC Scenario 3 equiv'!S211,\n'[2]SM2 - DECC Scenario 1 equiv'!S211,\n'[2]SM3 - DECC Scenario 2 equiv'!S211,\n'[2]SM4 - DNO Scenario 4 equiv'!S211)","v":0}]
[null,null,null,null,{"$f":"Input!E143","v":"Allocation to non-load related capex - asset replacement"},null,"%",null,null,null,null,null,null,null,null,null,null,null,null,null,null,null,null,null,null,null,null,null,null,null,null,null,null,null,null,{"$f":"CHOOSE(view,\n'[1]M1a - Model inputs'!L212,\n'[1]M1b - Model inputs'!L212,\n'[1]SM1 - DECC Scenario 3 equiv'!L212,\n'[1]SM2 - DECC Scenario 1 equiv'!L212,\n'[1]SM3 - DECC Scenario 2 equiv'!L212,\n'[1]SM4 - DNO Scenario 4 equiv'!L212,\n'[2]M1a - Model inputs'!L212,\n'[2]M1b - Model inputs'!L212,\n'[2]SM1 - DECC Scenario 3 equiv'!L212,\n'[2]SM2 - DECC Scenario 1 equiv'!L212,\n'[2]SM3 - DECC Scenario 2 equiv'!L212,\n'[2]SM4 - DNO Scenario 4 equiv'!L212)","v":0.41295587765905079},{"$f":"CHOOSE(view,\n'[1]M1a - Model inputs'!M212,\n'[1]M1b - Model inputs'!M212,\n'[1]SM1 - DECC Scenario 3 equiv'!M212,\n'[1]SM2 - DECC Scenario 1 equiv'!M212,\n'[1]SM3 - DECC Scenario 2 equiv'!M212,\n'[1]SM4 - DNO Scenario 4 equiv'!M212,\n'[2]M1a - Model inputs'!M212,\n'[2]M1b - Model inputs'!M212,\n'[2]SM1 - DECC Scenario 3 equiv'!M212,\n'[2]SM2 - DECC Scenario 1 equiv'!M212,\n'[2]SM3 - DECC Scenario 2 equiv'!M212,\n'[2]SM4 - DNO Scenario 4 equiv'!M212)","v":0.41253060566568206},{"$f":"CHOOSE(view,\n'[1]M1a - Model inputs'!N212,\n'[1]M1b - Model inputs'!N212,\n'[1]SM1 - DECC Scenario 3 equiv'!N212,\n'[1]SM2 - DECC Scenario 1 equiv'!N212,\n'[1]SM3 - DECC Scenario 2 equiv'!N212,\n'[1]SM4 - DNO Scenario 4 equiv'!N212,\n'[2]M1a - Model inputs'!N212,\n'[2]M1b - Model inputs'!N212,\n'[2]SM1 - DECC Scenario 3 equiv'!N212,\n'[2]SM2 - DECC Scenario 1 equiv'!N212,\n'[2]SM3 - DECC Scenario 2 equiv'!N212,\n'[2]SM4 - DNO Scenario 4 equiv'!N212)","v":0.4122837968587999},{"$f":"CHOOSE(view,\n'[1]M1a - Model inputs'!O212,\n'[1]M1b - Model inputs'!O212,\n'[1]SM1 - DECC Scenario 3 equiv'!O212,\n'[1]SM2 - DECC Scenario 1 equiv'!O212,\n'[1]SM3 - DECC Scenario 2 equiv'!O212,\n'[1]SM4 - DNO Scenario 4 equiv'!O212,\n'[2]M1a - Model inputs'!O212,\n'[2]M1b - Model inputs'!O212,\n'[2]SM1 - DECC Scenario 3 equiv'!O212,\n'[2]SM2 - DECC Scenario 1 equiv'!O212,\n'[2]SM3 - DECC Scenario 2 equiv'!O212,\n'[2]SM4 - DNO Scenario 4 equiv'!O212)","v":0.41175758794606204},{"$f":"CHOOSE(view,\n'[1]M1a - Model inputs'!P212,\n'[1]M1b - Model inputs'!P212,\n'[1]SM1 - DECC Scenario 3 equiv'!P212,\n'[1]SM2 - DECC Scenario 1 equiv'!P212,\n'[1]SM3 - DECC Scenario 2 equiv'!P212,\n'[1]SM4 - DNO Scenario 4 equiv'!P212,\n'[2]M1a - Model inputs'!P212,\n'[2]M1b - Model inputs'!P212,\n'[2]SM1 - DECC Scenario 3 equiv'!P212,\n'[2]SM2 - DECC Scenario 1 equiv'!P212,\n'[2]SM3 - DECC Scenario 2 equiv'!P212,\n'[2]SM4 - DNO Scenario 4 equiv'!P212)","v":0.4111777275471537},{"$f":"CHOOSE(view,\n'[1]M1a - Model inputs'!Q212,\n'[1]M1b - Model inputs'!Q212,\n'[1]SM1 - DECC Scenario 3 equiv'!Q212,\n'[1]SM2 - DECC Scenario 1 equiv'!Q212,\n'[1]SM3 - DECC Scenario 2 equiv'!Q212,\n'[1]SM4 - DNO Scenario 4 equiv'!Q212,\n'[2]M1a - Model inputs'!Q212,\n'[2]M1b - Model inputs'!Q212,\n'[2]SM1 - DECC Scenario 3 equiv'!Q212,\n'[2]SM2 - DECC Scenario 1 equiv'!Q212,\n'[2]SM3 - DECC Scenario 2 equiv'!Q212,\n'[2]SM4 - DNO Scenario 4 equiv'!Q212)","v":0.41074937284914037},{"$f":"CHOOSE(view,\n'[1]M1a - Model inputs'!R212,\n'[1]M1b - Model inputs'!R212,\n'[1]SM1 - DECC Scenario 3 equiv'!R212,\n'[1]SM2 - DECC Scenario 1 equiv'!R212,\n'[1]SM3 - DECC Scenario 2 equiv'!R212,\n'[1]SM4 - DNO Scenario 4 equiv'!R212,\n'[2]M1a - Model inputs'!R212,\n'[2]M1b - Model inputs'!R212,\n'[2]SM1 - DECC Scenario 3 equiv'!R212,\n'[2]SM2 - DECC Scenario 1 equiv'!R212,\n'[2]SM3 - DECC Scenario 2 equiv'!R212,\n'[2]SM4 - DNO Scenario 4 equiv'!R212)","v":0.41014921629506185},{"$f":"CHOOSE(view,\n'[1]M1a - Model inputs'!S212,\n'[1]M1b - Model inputs'!S212,\n'[1]SM1 - DECC Scenario 3 equiv'!S212,\n'[1]SM2 - DECC Scenario 1 equiv'!S212,\n'[1]SM3 - DECC Scenario 2 equiv'!S212,\n'[1]SM4 - DNO Scenario 4 equiv'!S212,\n'[2]M1a - Model inputs'!S212,\n'[2]M1b - Model inputs'!S212,\n'[2]SM1 - DECC Scenario 3 equiv'!S212,\n'[2]SM2 - DECC Scenario 1 equiv'!S212,\n'[2]SM3 - DECC Scenario 2 equiv'!S212,\n'[2]SM4 - DNO Scenario 4 equiv'!S212)","v":0.40958732711693496}]
[null,null,null,null,{"$f":"Input!E144","v":"Allocation to non-load related capex - other"},null,"%",null,null,null,null,null,null,null,null,null,null,null,null,null,null,null,null,null,null,null,null,null,null,null,null,null,null,null,null,{"$f":"CHOOSE(view,\n'[1]M1a - Model inputs'!L213,\n'[1]M1b - Model inputs'!L213,\n'[1]SM1 - DECC Scenario 3 equiv'!L213,\n'[1]SM2 - DECC Scenario 1 equiv'!L213,\n'[1]SM3 - DECC Scenario 2 equiv'!L213,\n'[1]SM4 - DNO Scenario 4 equiv'!L213,\n'[2]M1a - Model inputs'!L213,\n'[2]M1b - Model inputs'!L213,\n'[2]SM1 - DECC Scenario 3 equiv'!L213,\n'[2]SM2 - DECC Scenario 1 equiv'!L213,\n'[2]SM3 - DECC Scenario 2 equiv'!L213,\n'[2]SM4 - DNO Scenario 4 equiv'!L213)","v":0},{"$f":"CHOOSE(view,\n'[1]M1a - Model inputs'!M213,\n'[1]M1b - Model inputs'!M213,\n'[1]SM1 - DECC Scenario 3 equiv'!M213,\n'[1]SM2 - DECC Scenario 1 equiv'!M213,\n'[1]SM3 - DECC Scenario 2 equiv'!M213,\n'[1]SM4 - DNO Scenario 4 equiv'!M213,\n'[2]M1a - Model inputs'!M213,\n'[2]M1b - Model inputs'!M213,\n'[2]SM1 - DECC Scenario 3 equiv'!M213,\n'[2]SM2 - DECC Scenario 1 equiv'!M213,\n'[2]SM3 - DECC Scenario 2 equiv'!M213,\n'[2]SM4 - DNO Scenario 4 equiv'!M213)","v":0},{"$f":"CHOOSE(view,\n'[1]M1a - Model inputs'!N213,\n'[1]M1b - Model inputs'!N213,\n'[1]SM1 - DECC Scenario 3 equiv'!N213,\n'[1]SM2 - DECC Scenario 1 equiv'!N213,\n'[1]SM3 - DECC Scenario 2 equiv'!N213,\n'[1]SM4 - DNO Scenario 4 equiv'!N213,\n'[2]M1a - Model inputs'!N213,\n'[2]M1b - Model inputs'!N213,\n'[2]SM1 - DECC Scenario 3 equiv'!N213,\n'[2]SM2 - DECC Scenario 1 equiv'!N213,\n'[2]SM3 - DECC Scenario 2 equiv'!N213,\n'[2]SM4 - DNO Scenario 4 equiv'!N213)","v":0},{"$f":"CHOOSE(view,\n'[1]M1a - Model inputs'!O213,\n'[1]M1b - Model inputs'!O213,\n'[1]SM1 - DECC Scenario 3 equiv'!O213,\n'[1]SM2 - DECC Scenario 1 equiv'!O213,\n'[1]SM3 - DECC Scenario 2 equiv'!O213,\n'[1]SM4 - DNO Scenario 4 equiv'!O213,\n'[2]M1a - Model inputs'!O213,\n'[2]M1b - Model inputs'!O213,\n'[2]SM1 - DECC Scenario 3 equiv'!O213,\n'[2]SM2 - DECC Scenario 1 equiv'!O213,\n'[2]SM3 - DECC Scenario 2 equiv'!O213,\n'[2]SM4 - DNO Scenario 4 equiv'!O213)","v":0},{"$f":"CHOOSE(view,\n'[1]M1a - Model inputs'!P213,\n'[1]M1b - Model inputs'!P213,\n'[1]SM1 - DECC Scenario 3 equiv'!P213,\n'[1]SM2 - DECC Scenario 1 equiv'!P213,\n'[1]SM3 - DECC Scenario 2 equiv'!P213,\n'[1]SM4 - DNO Scenario 4 equiv'!P213,\n'[2]M1a - Model inputs'!P213,\n'[2]M1b - Model inputs'!P213,\n'[2]SM1 - DECC Scenario 3 equiv'!P213,\n'[2]SM2 - DECC Scenario 1 equiv'!P213,\n'[2]SM3 - DECC Scenario 2 equiv'!P213,\n'[2]SM4 - DNO Scenario 4 equiv'!P213)","v":0},{"$f":"CHOOSE(view,\n'[1]M1a - Model inputs'!Q213,\n'[1]M1b - Model inputs'!Q213,\n'[1]SM1 - DECC Scenario 3 equiv'!Q213,\n'[1]SM2 - DECC Scenario 1 equiv'!Q213,\n'[1]SM3 - DECC Scenario 2 equiv'!Q213,\n'[1]SM4 - DNO Scenario 4 equiv'!Q213,\n'[2]M1a - Model inputs'!Q213,\n'[2]M1b - Model inputs'!Q213,\n'[2]SM1 - DECC Scenario 3 equiv'!Q213,\n'[2]SM2 - DECC Scenario 1 equiv'!Q213,\n'[2]SM3 - DECC Scenario 2 equiv'!Q213,\n'[2]SM4 - DNO Scenario 4 equiv'!Q213)","v":0},{"$f":"CHOOSE(view,\n'[1]M1a - Model inputs'!R213,\n'[1]M1b - Model inputs'!R213,\n'[1]SM1 - DECC Scenario 3 equiv'!R213,\n'[1]SM2 - DECC Scenario 1 equiv'!R213,\n'[1]SM3 - DECC Scenario 2 equiv'!R213,\n'[1]SM4 - DNO Scenario 4 equiv'!R213,\n'[2]M1a - Model inputs'!R213,\n'[2]M1b - Model inputs'!R213,\n'[2]SM1 - DECC Scenario 3 equiv'!R213,\n'[2]SM2 - DECC Scenario 1 equiv'!R213,\n'[2]SM3 - DECC Scenario 2 equiv'!R213,\n'[2]SM4 - DNO Scenario 4 equiv'!R213)","v":0},{"$f":"CHOOSE(view,\n'[1]M1a - Model inputs'!S213,\n'[1]M1b - Model inputs'!S213,\n'[1]SM1 - DECC Scenario 3 equiv'!S213,\n'[1]SM2 - DECC Scenario 1 equiv'!S213,\n'[1]SM3 - DECC Scenario 2 equiv'!S213,\n'[1]SM4 - DNO Scenario 4 equiv'!S213,\n'[2]M1a - Model inputs'!S213,\n'[2]M1b - Model inputs'!S213,\n'[2]SM1 - DECC Scenario 3 equiv'!S213,\n'[2]SM2 - DECC Scenario 1 equiv'!S213,\n'[2]SM3 - DECC Scenario 2 equiv'!S213,\n'[2]SM4 - DNO Scenario 4 equiv'!S213)","v":0}]
[null,null,null,null,{"$f":"Input!E145","v":"Allocation to faults"},null,"%",null,null,null,null,null,null,null,null,null,null,null,null,null,null,null,null,null,null,null,null,null,null,null,null,null,null,null,null,{"$f":"CHOOSE(view,\n'[1]M1a - Model inputs'!L214,\n'[1]M1b - Model inputs'!L214,\n'[1]SM1 - DECC Scenario 3 equiv'!L214,\n'[1]SM2 - DECC Scenario 1 equiv'!L214,\n'[1]SM3 - DECC Scenario 2 equiv'!L214,\n'[1]SM4 - DNO Scenario 4 equiv'!L214,\n'[2]M1a - Model inputs'!L214,\n'[2]M1b - Model inputs'!L214,\n'[2]SM1 - DECC Scenario 3 equiv'!L214,\n'[2]SM2 - DECC Scenario 1 equiv'!L214,\n'[2]SM3 - DECC Scenario 2 equiv'!L214,\n'[2]SM4 - DNO Scenario 4 equiv'!L214)","v":0.58704412234094927},{"$f":"CHOOSE(view,\n'[1]M1a - Model inputs'!M214,\n'[1]M1b - Model inputs'!M214,\n'[1]SM1 - DECC Scenario 3 equiv'!M214,\n'[1]SM2 - DECC Scenario 1 equiv'!M214,\n'[1]SM3 - DECC Scenario 2 equiv'!M214,\n'[1]SM4 - DNO Scenario 4 equiv'!M214,\n'[2]M1a - Model inputs'!M214,\n'[2]M1b - Model inputs'!M214,\n'[2]SM1 - DECC Scenario 3 equiv'!M214,\n'[2]SM2 - DECC Scenario 1 equiv'!M214,\n'[2]SM3 - DECC Scenario 2 equiv'!M214,\n'[2]SM4 - DNO Scenario 4 equiv'!M214)","v":0.58746939433431788},{"$f":"CHOOSE(view,\n'[1]M1a - Model inputs'!N214,\n'[1]M1b - Model inputs'!N214,\n'[1]SM1 - DECC Scenario 3 equiv'!N214,\n'[1]SM2 - DECC Scenario 1 equiv'!N214,\n'[1]SM3 - DECC Scenario 2 equiv'!N214,\n'[1]SM4 - DNO Scenario 4 equiv'!N214,\n'[2]M1a - Model inputs'!N214,\n'[2]M1b - Model inputs'!N214,\n'[2]SM1 - DECC Scenario 3 equiv'!N214,\n'[2]SM2 - DECC Scenario 1 equiv'!N214,\n'[2]SM3 - DECC Scenario 2 equiv'!N214,\n'[2]SM4 - DNO Scenario 4 equiv'!N214)","v":0.5877162031412001},{"$f":"CHOOSE(view,\n'[1]M1a - Model inputs'!O214,\n'[1]M1b - Model inputs'!O214,\n'[1]SM1 - DECC Scenario 3 equiv'!O214,\n'[1]SM2 - DECC Scenario 1 equiv'!O214,\n'[1]SM3 - DECC Scenario 2 equiv'!O214,\n'[1]SM4 - DNO Scenario 4 equiv'!O214,\n'[2]M1a - Model inputs'!O214,\n'[2]M1b - Model inputs'!O214,\n'[2]SM1 - DECC Scenario 3 equiv'!O214,\n'[2]SM2 - DECC Scenario 1 equiv'!O214,\n'[2]SM3 - DECC Scenario 2 equiv'!O214,\n'[2]SM4 - DNO Scenario 4 equiv'!O214)","v":0.5882424120539379},{"$f":"CHOOSE(view,\n'[1]M1a - Model inputs'!P214,\n'[1]M1b - Model inputs'!P214,\n'[1]SM1 - DECC Scenario 3 equiv'!P214,\n'[1]SM2 - DECC Scenario 1 equiv'!P214,\n'[1]SM3 - DECC Scenario 2 equiv'!P214,\n'[1]SM4 - DNO Scenario 4 equiv'!P214,\n'[2]M1a - Model inputs'!P214,\n'[2]M1b - Model inputs'!P214,\n'[2]SM1 - DECC Scenario 3 equiv'!P214,\n'[2]SM2 - DECC Scenario 1 equiv'!P214,\n'[2]SM3 - DECC Scenario 2 equiv'!P214,\n'[2]SM4 - DNO Scenario 4 equiv'!P214)","v":0.58882227245284624},{"$f":"CHOOSE(view,\n'[1]M1a - Model inputs'!Q214,\n'[1]M1b - Model inputs'!Q214,\n'[1]SM1 - DECC Scenario 3 equiv'!Q214,\n'[1]SM2 - DECC Scenario 1 equiv'!Q214,\n'[1]SM3 - DECC Scenario 2 equiv'!Q214,\n'[1]SM4 - DNO Scenario 4 equiv'!Q214,\n'[2]M1a - Model inputs'!Q214,\n'[2]M1b - Model inputs'!Q214,\n'[2]SM1 - DECC Scenario 3 equiv'!Q214,\n'[2]SM2 - DECC Scenario 1 equiv'!Q214,\n'[2]SM3 - DECC Scenario 2 equiv'!Q214,\n'[2]SM4 - DNO Scenario 4 equiv'!Q214)","v":0.58925062715085974},{"$f":"CHOOSE(view,\n'[1]M1a - Model inputs'!R214,\n'[1]M1b - Model inputs'!R214,\n'[1]SM1 - DECC Scenario 3 equiv'!R214,\n'[1]SM2 - DECC Scenario 1 equiv'!R214,\n'[1]SM3 - DECC Scenario 2 equiv'!R214,\n'[1]SM4 - DNO Scenario 4 equiv'!R214,\n'[2]M1a - Model inputs'!R214,\n'[2]M1b - Model inputs'!R214,\n'[2]SM1 - DECC Scenario 3 equiv'!R214,\n'[2]SM2 - DECC Scenario 1 equiv'!R214,\n'[2]SM3 - DECC Scenario 2 equiv'!R214,\n'[2]SM4 - DNO Scenario 4 equiv'!R214)","v":0.58985078370493815},{"$f":"CHOOSE(view,\n'[1]M1a - Model inputs'!S214,\n'[1]M1b - Model inputs'!S214,\n'[1]SM1 - DECC Scenario 3 equiv'!S214,\n'[1]SM2 - DECC Scenario 1 equiv'!S214,\n'[1]SM3 - DECC Scenario 2 equiv'!S214,\n'[1]SM4 - DNO Scenario 4 equiv'!S214,\n'[2]M1a - Model inputs'!S214,\n'[2]M1b - Model inputs'!S214,\n'[2]SM1 - DECC Scenario 3 equiv'!S214,\n'[2]SM2 - DECC Scenario 1 equiv'!S214,\n'[2]SM3 - DECC Scenario 2 equiv'!S214,\n'[2]SM4 - DNO Scenario 4 equiv'!S214)","v":0.5904126728830652}]
[null,null,null,null,{"$f":"Input!E146","v":"Allocation to tree cutting"},null,"%",null,null,null,null,null,null,null,null,null,null,null,null,null,null,null,null,null,null,null,null,null,null,null,null,null,null,null,null,{"$f":"CHOOSE(view,\n'[1]M1a - Model inputs'!L215,\n'[1]M1b - Model inputs'!L215,\n'[1]SM1 - DECC Scenario 3 equiv'!L215,\n'[1]SM2 - DECC Scenario 1 equiv'!L215,\n'[1]SM3 - DECC Scenario 2 equiv'!L215,\n'[1]SM4 - DNO Scenario 4 equiv'!L215,\n'[2]M1a - Model inputs'!L215,\n'[2]M1b - Model inputs'!L215,\n'[2]SM1 - DECC Scenario 3 equiv'!L215,\n'[2]SM2 - DECC Scenario 1 equiv'!L215,\n'[2]SM3 - DECC Scenario 2 equiv'!L215,\n'[2]SM4 - DNO Scenario 4 equiv'!L215)","v":0},{"$f":"CHOOSE(view,\n'[1]M1a - Model inputs'!M215,\n'[1]M1b - Model inputs'!M215,\n'[1]SM1 - DECC Scenario 3 equiv'!M215,\n'[1]SM2 - DECC Scenario 1 equiv'!M215,\n'[1]SM3 - DECC Scenario 2 equiv'!M215,\n'[1]SM4 - DNO Scenario 4 equiv'!M215,\n'[2]M1a - Model inputs'!M215,\n'[2]M1b - Model inputs'!M215,\n'[2]SM1 - DECC Scenario 3 equiv'!M215,\n'[2]SM2 - DECC Scenario 1 equiv'!M215,\n'[2]SM3 - DECC Scenario 2 equiv'!M215,\n'[2]SM4 - DNO Scenario 4 equiv'!M215)","v":0},{"$f":"CHOOSE(view,\n'[1]M1a - Model inputs'!N215,\n'[1]M1b - Model inputs'!N215,\n'[1]SM1 - DECC Scenario 3 equiv'!N215,\n'[1]SM2 - DECC Scenario 1 equiv'!N215,\n'[1]SM3 - DECC Scenario 2 equiv'!N215,\n'[1]SM4 - DNO Scenario 4 equiv'!N215,\n'[2]M1a - Model inputs'!N215,\n'[2]M1b - Model inputs'!N215,\n'[2]SM1 - DECC Scenario 3 equiv'!N215,\n'[2]SM2 - DECC Scenario 1 equiv'!N215,\n'[2]SM3 - DECC Scenario 2 equiv'!N215,\n'[2]SM4 - DNO Scenario 4 equiv'!N215)","v":0},{"$f":"CHOOSE(view,\n'[1]M1a - Model inputs'!O215,\n'[1]M1b - Model inputs'!O215,\n'[1]SM1 - DECC Scenario 3 equiv'!O215,\n'[1]SM2 - DECC Scenario 1 equiv'!O215,\n'[1]SM3 - DECC Scenario 2 equiv'!O215,\n'[1]SM4 - DNO Scenario 4 equiv'!O215,\n'[2]M1a - Model inputs'!O215,\n'[2]M1b - Model inputs'!O215,\n'[2]SM1 - DECC Scenario 3 equiv'!O215,\n'[2]SM2 - DECC Scenario 1 equiv'!O215,\n'[2]SM3 - DECC Scenario 2 equiv'!O215,\n'[2]SM4 - DNO Scenario 4 equiv'!O215)","v":0},{"$f":"CHOOSE(view,\n'[1]M1a - Model inputs'!P215,\n'[1]M1b - Model inputs'!P215,\n'[1]SM1 - DECC Scenario 3 equiv'!P215,\n'[1]SM2 - DECC Scenario 1 equiv'!P215,\n'[1]SM3 - DECC Scenario 2 equiv'!P215,\n'[1]SM4 - DNO Scenario 4 equiv'!P215,\n'[2]M1a - Model inputs'!P215,\n'[2]M1b - Model inputs'!P215,\n'[2]SM1 - DECC Scenario 3 equiv'!P215,\n'[2]SM2 - DECC Scenario 1 equiv'!P215,\n'[2]SM3 - DECC Scenario 2 equiv'!P215,\n'[2]SM4 - DNO Scenario 4 equiv'!P215)","v":0},{"$f":"CHOOSE(view,\n'[1]M1a - Model inputs'!Q215,\n'[1]M1b - Model inputs'!Q215,\n'[1]SM1 - DECC Scenario 3 equiv'!Q215,\n'[1]SM2 - DECC Scenario 1 equiv'!Q215,\n'[1]SM3 - DECC Scenario 2 equiv'!Q215,\n'[1]SM4 - DNO Scenario 4 equiv'!Q215,\n'[2]M1a - Model inputs'!Q215,\n'[2]M1b - Model inputs'!Q215,\n'[2]SM1 - DECC Scenario 3 equiv'!Q215,\n'[2]SM2 - DECC Scenario 1 equiv'!Q215,\n'[2]SM3 - DECC Scenario 2 equiv'!Q215,\n'[2]SM4 - DNO Scenario 4 equiv'!Q215)","v":0},{"$f":"CHOOSE(view,\n'[1]M1a - Model inputs'!R215,\n'[1]M1b - Model inputs'!R215,\n'[1]SM1 - DECC Scenario 3 equiv'!R215,\n'[1]SM2 - DECC Scenario 1 equiv'!R215,\n'[1]SM3 - DECC Scenario 2 equiv'!R215,\n'[1]SM4 - DNO Scenario 4 equiv'!R215,\n'[2]M1a - Model inputs'!R215,\n'[2]M1b - Model inputs'!R215,\n'[2]SM1 - DECC Scenario 3 equiv'!R215,\n'[2]SM2 - DECC Scenario 1 equiv'!R215,\n'[2]SM3 - DECC Scenario 2 equiv'!R215,\n'[2]SM4 - DNO Scenario 4 equiv'!R215)","v":0},{"$f":"CHOOSE(view,\n'[1]M1a - Model inputs'!S215,\n'[1]M1b - Model inputs'!S215,\n'[1]SM1 - DECC Scenario 3 equiv'!S215,\n'[1]SM2 - DECC Scenario 1 equiv'!S215,\n'[1]SM3 - DECC Scenario 2 equiv'!S215,\n'[1]SM4 - DNO Scenario 4 equiv'!S215,\n'[2]M1a - Model inputs'!S215,\n'[2]M1b - Model inputs'!S215,\n'[2]SM1 - DECC Scenario 3 equiv'!S215,\n'[2]SM2 - DECC Scenario 1 equiv'!S215,\n'[2]SM3 - DECC Scenario 2 equiv'!S215,\n'[2]SM4 - DNO Scenario 4 equiv'!S215)","v":0}]
[null,null,null,null,{"$f":"Input!E147","v":"Allocation to controllable opex"},null,"%",null,null,null,null,null,null,null,null,null,null,null,null,null,null,null,null,null,null,null,null,null,null,null,null,null,null,null,null,{"$f":"CHOOSE(view,\n'[1]M1a - Model inputs'!L216,\n'[1]M1b - Model inputs'!L216,\n'[1]SM1 - DECC Scenario 3 equiv'!L216,\n'[1]SM2 - DECC Scenario 1 equiv'!L216,\n'[1]SM3 - DECC Scenario 2 equiv'!L216,\n'[1]SM4 - DNO Scenario 4 equiv'!L216,\n'[2]M1a - Model inputs'!L216,\n'[2]M1b - Model inputs'!L216,\n'[2]SM1 - DECC Scenario 3 equiv'!L216,\n'[2]SM2 - DECC Scenario 1 equiv'!L216,\n'[2]SM3 - DECC Scenario 2 equiv'!L216,\n'[2]SM4 - DNO Scenario 4 equiv'!L216)","v":0},{"$f":"CHOOSE(view,\n'[1]M1a - Model inputs'!M216,\n'[1]M1b - Model inputs'!M216,\n'[1]SM1 - DECC Scenario 3 equiv'!M216,\n'[1]SM2 - DECC Scenario 1 equiv'!M216,\n'[1]SM3 - DECC Scenario 2 equiv'!M216,\n'[1]SM4 - DNO Scenario 4 equiv'!M216,\n'[2]M1a - Model inputs'!M216,\n'[2]M1b - Model inputs'!M216,\n'[2]SM1 - DECC Scenario 3 equiv'!M216,\n'[2]SM2 - DECC Scenario 1 equiv'!M216,\n'[2]SM3 - DECC Scenario 2 equiv'!M216,\n'[2]SM4 - DNO Scenario 4 equiv'!M216)","v":0},{"$f":"CHOOSE(view,\n'[1]M1a - Model inputs'!N216,\n'[1]M1b - Model inputs'!N216,\n'[1]SM1 - DECC Scenario 3 equiv'!N216,\n'[1]SM2 - DECC Scenario 1 equiv'!N216,\n'[1]SM3 - DECC Scenario 2 equiv'!N216,\n'[1]SM4 - DNO Scenario 4 equiv'!N216,\n'[2]M1a - Model inputs'!N216,\n'[2]M1b - Model inputs'!N216,\n'[2]SM1 - DECC Scenario 3 equiv'!N216,\n'[2]SM2 - DECC Scenario 1 equiv'!N216,\n'[2]SM3 - DECC Scenario 2 equiv'!N216,\n'[2]SM4 - DNO Scenario 4 equiv'!N216)","v":0},{"$f":"CHOOSE(view,\n'[1]M1a - Model inputs'!O216,\n'[1]M1b - Model inputs'!O216,\n'[1]SM1 - DECC Scenario 3 equiv'!O216,\n'[1]SM2 - DECC Scenario 1 equiv'!O216,\n'[1]SM3 - DECC Scenario 2 equiv'!O216,\n'[1]SM4 - DNO Scenario 4 equiv'!O216,\n'[2]M1a - Model inputs'!O216,\n'[2]M1b - Model inputs'!O216,\n'[2]SM1 - DECC Scenario 3 equiv'!O216,\n'[2]SM2 - DECC Scenario 1 equiv'!O216,\n'[2]SM3 - DECC Scenario 2 equiv'!O216,\n'[2]SM4 - DNO Scenario 4 equiv'!O216)","v":0},{"$f":"CHOOSE(view,\n'[1]M1a - Model inputs'!P216,\n'[1]M1b - Model inputs'!P216,\n'[1]SM1 - DECC Scenario 3 equiv'!P216,\n'[1]SM2 - DECC Scenario 1 equiv'!P216,\n'[1]SM3 - DECC Scenario 2 equiv'!P216,\n'[1]SM4 - DNO Scenario 4 equiv'!P216,\n'[2]M1a - Model inputs'!P216,\n'[2]M1b - Model inputs'!P216,\n'[2]SM1 - DECC Scenario 3 equiv'!P216,\n'[2]SM2 - DECC Scenario 1 equiv'!P216,\n'[2]SM3 - DECC Scenario 2 equiv'!P216,\n'[2]SM4 - DNO Scenario 4 equiv'!P216)","v":0},{"$f":"CHOOSE(view,\n'[1]M1a - Model inputs'!Q216,\n'[1]M1b - Model inputs'!Q216,\n'[1]SM1 - DECC Scenario 3 equiv'!Q216,\n'[1]SM2 - DECC Scenario 1 equiv'!Q216,\n'[1]SM3 - DECC Scenario 2 equiv'!Q216,\n'[1]SM4 - DNO Scenario 4 equiv'!Q216,\n'[2]M1a - Model inputs'!Q216,\n'[2]M1b - Model inputs'!Q216,\n'[2]SM1 - DECC Scenario 3 equiv'!Q216,\n'[2]SM2 - DECC Scenario 1 equiv'!Q216,\n'[2]SM3 - DECC Scenario 2 equiv'!Q216,\n'[2]SM4 - DNO Scenario 4 equiv'!Q216)","v":0},{"$f":"CHOOSE(view,\n'[1]M1a - Model inputs'!R216,\n'[1]M1b - Model inputs'!R216,\n'[1]SM1 - DECC Scenario 3 equiv'!R216,\n'[1]SM2 - DECC Scenario 1 equiv'!R216,\n'[1]SM3 - DECC Scenario 2 equiv'!R216,\n'[1]SM4 - DNO Scenario 4 equiv'!R216,\n'[2]M1a - Model inputs'!R216,\n'[2]M1b - Model inputs'!R216,\n'[2]SM1 - DECC Scenario 3 equiv'!R216,\n'[2]SM2 - DECC Scenario 1 equiv'!R216,\n'[2]SM3 - DECC Scenario 2 equiv'!R216,\n'[2]SM4 - DNO Scenario 4 equiv'!R216)","v":0},{"$f":"CHOOSE(view,\n'[1]M1a - Model inputs'!S216,\n'[1]M1b - Model inputs'!S216,\n'[1]SM1 - DECC Scenario 3 equiv'!S216,\n'[1]SM2 - DECC Scenario 1 equiv'!S216,\n'[1]SM3 - DECC Scenario 2 equiv'!S216,\n'[1]SM4 - DNO Scenario 4 equiv'!S216,\n'[2]M1a - Model inputs'!S216,\n'[2]M1b - Model inputs'!S216,\n'[2]SM1 - DECC Scenario 3 equiv'!S216,\n'[2]SM2 - DECC Scenario 1 equiv'!S216,\n'[2]SM3 - DECC Scenario 2 equiv'!S216,\n'[2]SM4 - DNO Scenario 4 equiv'!S216)","v":0}]
[]
[null,null,null,null,{"$f":"Input!E149","v":"Allowed uncertain costs (Load related re-operner)"},null,"£m 12/13 prices",null,null,null,null,null,null,null,null,null,null,null,null,null,null,null,null,null,null,null,null,null,null,null,null,null,null,null,null,{"$f":"AJ24","v":0},{"$f":"AK24","v":0},0,0,0,0,0,0]
[null,null,null,null,{"$f":"Input!E150","v":"Allocation to load related capex"},null,"%",null,null,null,null,null,null,null,null,null,null,null,null,null,null,null,null,null,null,null,null,null,null,null,null,null,null,null,null,{"$f":"CHOOSE(view,\n'[1]M1a - Model inputs'!L163,\n'[1]M1b - Model inputs'!L163,\n'[1]SM1 - DECC Scenario 3 equiv'!L163,\n'[1]SM2 - DECC Scenario 1 equiv'!L163,\n'[1]SM3 - DECC Scenario 2 equiv'!L163,\n'[1]SM4 - DNO Scenario 4 equiv'!L163,\n'[2]M1a - Model inputs'!L163,\n'[2]M1b - Model inputs'!L163,\n'[2]SM1 - DECC Scenario 3 equiv'!L163,\n'[2]SM2 - DECC Scenario 1 equiv'!L163,\n'[2]SM3 - DECC Scenario 2 equiv'!L163,\n'[2]SM4 - DNO Scenario 4 equiv'!L163)","v":1},{"$f":"CHOOSE(view,\n'[1]M1a - Model inputs'!M163,\n'[1]M1b - Model inputs'!M163,\n'[1]SM1 - DECC Scenario 3 equiv'!M163,\n'[1]SM2 - DECC Scenario 1 equiv'!M163,\n'[1]SM3 - DECC Scenario 2 equiv'!M163,\n'[1]SM4 - DNO Scenario 4 equiv'!M163,\n'[2]M1a - Model inputs'!M163,\n'[2]M1b - Model inputs'!M163,\n'[2]SM1 - DECC Scenario 3 equiv'!M163,\n'[2]SM2 - DECC Scenario 1 equiv'!M163,\n'[2]SM3 - DECC Scenario 2 equiv'!M163,\n'[2]SM4 - DNO Scenario 4 equiv'!M163)","v":1},{"$f":"CHOOSE(view,\n'[1]M1a - Model inputs'!N163,\n'[1]M1b - Model inputs'!N163,\n'[1]SM1 - DECC Scenario 3 equiv'!N163,\n'[1]SM2 - DECC Scenario 1 equiv'!N163,\n'[1]SM3 - DECC Scenario 2 equiv'!N163,\n'[1]SM4 - DNO Scenario 4 equiv'!N163,\n'[2]M1a - Model inputs'!N163,\n'[2]M1b - Model inputs'!N163,\n'[2]SM1 - DECC Scenario 3 equiv'!N163,\n'[2]SM2 - DECC Scenario 1 equiv'!N163,\n'[2]SM3 - DECC Scenario 2 equiv'!N163,\n'[2]SM4 - DNO Scenario 4 equiv'!N163)","v":1},{"$f":"CHOOSE(view,\n'[1]M1a - Model inputs'!O163,\n'[1]M1b - Model inputs'!O163,\n'[1]SM1 - DECC Scenario 3 equiv'!O163,\n'[1]SM2 - DECC Scenario 1 equiv'!O163,\n'[1]SM3 - DECC Scenario 2 equiv'!O163,\n'[1]SM4 - DNO Scenario 4 equiv'!O163,\n'[2]M1a - Model inputs'!O163,\n'[2]M1b - Model inputs'!O163,\n'[2]SM1 - DECC Scenario 3 equiv'!O163,\n'[2]SM2 - DECC Scenario 1 equiv'!O163,\n'[2]SM3 - DECC Scenario 2 equiv'!O163,\n'[2]SM4 - DNO Scenario 4 equiv'!O163)","v":1},{"$f":"CHOOSE(view,\n'[1]M1a - Model inputs'!P163,\n'[1]M1b - Model inputs'!P163,\n'[1]SM1 - DECC Scenario 3 equiv'!P163,\n'[1]SM2 - DECC Scenario 1 equiv'!P163,\n'[1]SM3 - DECC Scenario 2 equiv'!P163,\n'[1]SM4 - DNO Scenario 4 equiv'!P163,\n'[2]M1a - Model inputs'!P163,\n'[2]M1b - Model inputs'!P163,\n'[2]SM1 - DECC Scenario 3 equiv'!P163,\n'[2]SM2 - DECC Scenario 1 equiv'!P163,\n'[2]SM3 - DECC Scenario 2 equiv'!P163,\n'[2]SM4 - DNO Scenario 4 equiv'!P163)","v":1},{"$f":"CHOOSE(view,\n'[1]M1a - Model inputs'!Q163,\n'[1]M1b - Model inputs'!Q163,\n'[1]SM1 - DECC Scenario 3 equiv'!Q163,\n'[1]SM2 - DECC Scenario 1 equiv'!Q163,\n'[1]SM3 - DECC Scenario 2 equiv'!Q163,\n'[1]SM4 - DNO Scenario 4 equiv'!Q163,\n'[2]M1a - Model inputs'!Q163,\n'[2]M1b - Model inputs'!Q163,\n'[2]SM1 - DECC Scenario 3 equiv'!Q163,\n'[2]SM2 - DECC Scenario 1 equiv'!Q163,\n'[2]SM3 - DECC Scenario 2 equiv'!Q163,\n'[2]SM4 - DNO Scenario 4 equiv'!Q163)","v":1},{"$f":"CHOOSE(view,\n'[1]M1a - Model inputs'!R163,\n'[1]M1b - Model inputs'!R163,\n'[1]SM1 - DECC Scenario 3 equiv'!R163,\n'[1]SM2 - DECC Scenario 1 equiv'!R163,\n'[1]SM3 - DECC Scenario 2 equiv'!R163,\n'[1]SM4 - DNO Scenario 4 equiv'!R163,\n'[2]M1a - Model inputs'!R163,\n'[2]M1b - Model inputs'!R163,\n'[2]SM1 - DECC Scenario 3 equiv'!R163,\n'[2]SM2 - DECC Scenario 1 equiv'!R163,\n'[2]SM3 - DECC Scenario 2 equiv'!R163,\n'[2]SM4 - DNO Scenario 4 equiv'!R163)","v":1},{"$f":"CHOOSE(view,\n'[1]M1a - Model inputs'!S163,\n'[1]M1b - Model inputs'!S163,\n'[1]SM1 - DECC Scenario 3 equiv'!S163,\n'[1]SM2 - DECC Scenario 1 equiv'!S163,\n'[1]SM3 - DECC Scenario 2 equiv'!S163,\n'[1]SM4 - DNO Scenario 4 equiv'!S163,\n'[2]M1a - Model inputs'!S163,\n'[2]M1b - Model inputs'!S163,\n'[2]SM1 - DECC Scenario 3 equiv'!S163,\n'[2]SM2 - DECC Scenario 1 equiv'!S163,\n'[2]SM3 - DECC Scenario 2 equiv'!S163,\n'[2]SM4 - DNO Scenario 4 equiv'!S163)","v":1}]
[null,null,null,null,{"$f":"Input!E151","v":"Allocation to non-load related capex - asset replacement"},null,"%",null,null,null,null,null,null,null,null,null,null,null,null,null,null,null,null,null,null,null,null,null,null,null,null,null,null,null,null,{"$f":"CHOOSE(view,\n'[1]M1a - Model inputs'!L164,\n'[1]M1b - Model inputs'!L164,\n'[1]SM1 - DECC Scenario 3 equiv'!L164,\n'[1]SM2 - DECC Scenario 1 equiv'!L164,\n'[1]SM3 - DECC Scenario 2 equiv'!L164,\n'[1]SM4 - DNO Scenario 4 equiv'!L164,\n'[2]M1a - Model inputs'!L164,\n'[2]M1b - Model inputs'!L164,\n'[2]SM1 - DECC Scenario 3 equiv'!L164,\n'[2]SM2 - DECC Scenario 1 equiv'!L164,\n'[2]SM3 - DECC Scenario 2 equiv'!L164,\n'[2]SM4 - DNO Scenario 4 equiv'!L164)","v":0},{"$f":"CHOOSE(view,\n'[1]M1a - Model inputs'!M164,\n'[1]M1b - Model inputs'!M164,\n'[1]SM1 - DECC Scenario 3 equiv'!M164,\n'[1]SM2 - DECC Scenario 1 equiv'!M164,\n'[1]SM3 - DECC Scenario 2 equiv'!M164,\n'[1]SM4 - DNO Scenario 4 equiv'!M164,\n'[2]M1a - Model inputs'!M164,\n'[2]M1b - Model inputs'!M164,\n'[2]SM1 - DECC Scenario 3 equiv'!M164,\n'[2]SM2 - DECC Scenario 1 equiv'!M164,\n'[2]SM3 - DECC Scenario 2 equiv'!M164,\n'[2]SM4 - DNO Scenario 4 equiv'!M164)","v":0},{"$f":"CHOOSE(view,\n'[1]M1a - Model inputs'!N164,\n'[1]M1b - Model inputs'!N164,\n'[1]SM1 - DECC Scenario 3 equiv'!N164,\n'[1]SM2 - DECC Scenario 1 equiv'!N164,\n'[1]SM3 - DECC Scenario 2 equiv'!N164,\n'[1]SM4 - DNO Scenario 4 equiv'!N164,\n'[2]M1a - Model inputs'!N164,\n'[2]M1b - Model inputs'!N164,\n'[2]SM1 - DECC Scenario 3 equiv'!N164,\n'[2]SM2 - DECC Scenario 1 equiv'!N164,\n'[2]SM3 - DECC Scenario 2 equiv'!N164,\n'[2]SM4 - DNO Scenario 4 equiv'!N164)","v":0},{"$f":"CHOOSE(view,\n'[1]M1a - Model inputs'!O164,\n'[1]M1b - Model inputs'!O164,\n'[1]SM1 - DECC Scenario 3 equiv'!O164,\n'[1]SM2 - DECC Scenario 1 equiv'!O164,\n'[1]SM3 - DECC Scenario 2 equiv'!O164,\n'[1]SM4 - DNO Scenario 4 equiv'!O164,\n'[2]M1a - Model inputs'!O164,\n'[2]M1b - Model inputs'!O164,\n'[2]SM1 - DECC Scenario 3 equiv'!O164,\n'[2]SM2 - DECC Scenario 1 equiv'!O164,\n'[2]SM3 - DECC Scenario 2 equiv'!O164,\n'[2]SM4 - DNO Scenario 4 equiv'!O164)","v":0},{"$f":"CHOOSE(view,\n'[1]M1a - Model inputs'!P164,\n'[1]M1b - Model inputs'!P164,\n'[1]SM1 - DECC Scenario 3 equiv'!P164,\n'[1]SM2 - DECC Scenario 1 equiv'!P164,\n'[1]SM3 - DECC Scenario 2 equiv'!P164,\n'[1]SM4 - DNO Scenario 4 equiv'!P164,\n'[2]M1a - Model inputs'!P164,\n'[2]M1b - Model inputs'!P164,\n'[2]SM1 - DECC Scenario 3 equiv'!P164,\n'[2]SM2 - DECC Scenario 1 equiv'!P164,\n'[2]SM3 - DECC Scenario 2 equiv'!P164,\n'[2]SM4 - DNO Scenario 4 equiv'!P164)","v":0},{"$f":"CHOOSE(view,\n'[1]M1a - Model inputs'!Q164,\n'[1]M1b - Model inputs'!Q164,\n'[1]SM1 - DECC Scenario 3 equiv'!Q164,\n'[1]SM2 - DECC Scenario 1 equiv'!Q164,\n'[1]SM3 - DECC Scenario 2 equiv'!Q164,\n'[1]SM4 - DNO Scenario 4 equiv'!Q164,\n'[2]M1a - Model inputs'!Q164,\n'[2]M1b - Model inputs'!Q164,\n'[2]SM1 - DECC Scenario 3 equiv'!Q164,\n'[2]SM2 - DECC Scenario 1 equiv'!Q164,\n'[2]SM3 - DECC Scenario 2 equiv'!Q164,\n'[2]SM4 - DNO Scenario 4 equiv'!Q164)","v":0},{"$f":"CHOOSE(view,\n'[1]M1a - Model inputs'!R164,\n'[1]M1b - Model inputs'!R164,\n'[1]SM1 - DECC Scenario 3 equiv'!R164,\n'[1]SM2 - DECC Scenario 1 equiv'!R164,\n'[1]SM3 - DECC Scenario 2 equiv'!R164,\n'[1]SM4 - DNO Scenario 4 equiv'!R164,\n'[2]M1a - Model inputs'!R164,\n'[2]M1b - Model inputs'!R164,\n'[2]SM1 - DECC Scenario 3 equiv'!R164,\n'[2]SM2 - DECC Scenario 1 equiv'!R164,\n'[2]SM3 - DECC Scenario 2 equiv'!R164,\n'[2]SM4 - DNO Scenario 4 equiv'!R164)","v":0},{"$f":"CHOOSE(view,\n'[1]M1a - Model inputs'!S164,\n'[1]M1b - Model inputs'!S164,\n'[1]SM1 - DECC Scenario 3 equiv'!S164,\n'[1]SM2 - DECC Scenario 1 equiv'!S164,\n'[1]SM3 - DECC Scenario 2 equiv'!S164,\n'[1]SM4 - DNO Scenario 4 equiv'!S164,\n'[2]M1a - Model inputs'!S164,\n'[2]M1b - Model inputs'!S164,\n'[2]SM1 - DECC Scenario 3 equiv'!S164,\n'[2]SM2 - DECC Scenario 1 equiv'!S164,\n'[2]SM3 - DECC Scenario 2 equiv'!S164,\n'[2]SM4 - DNO Scenario 4 equiv'!S164)","v":0}]
[null,null,null,null,{"$f":"Input!E152","v":"Allocation to non-load related capex - other"},null,"%",null,null,null,null,null,null,null,null,null,null,null,null,null,null,null,null,null,null,null,null,null,null,null,null,null,null,null,null,{"$f":"CHOOSE(view,\n'[1]M1a - Model inputs'!L165,\n'[1]M1b - Model inputs'!L165,\n'[1]SM1 - DECC Scenario 3 equiv'!L165,\n'[1]SM2 - DECC Scenario 1 equiv'!L165,\n'[1]SM3 - DECC Scenario 2 equiv'!L165,\n'[1]SM4 - DNO Scenario 4 equiv'!L165,\n'[2]M1a - Model inputs'!L165,\n'[2]M1b - Model inputs'!L165,\n'[2]SM1 - DECC Scenario 3 equiv'!L165,\n'[2]SM2 - DECC Scenario 1 equiv'!L165,\n'[2]SM3 - DECC Scenario 2 equiv'!L165,\n'[2]SM4 - DNO Scenario 4 equiv'!L165)","v":0},{"$f":"CHOOSE(view,\n'[1]M1a - Model inputs'!M165,\n'[1]M1b - Model inputs'!M165,\n'[1]SM1 - DECC Scenario 3 equiv'!M165,\n'[1]SM2 - DECC Scenario 1 equiv'!M165,\n'[1]SM3 - DECC Scenario 2 equiv'!M165,\n'[1]SM4 - DNO Scenario 4 equiv'!M165,\n'[2]M1a - Model inputs'!M165,\n'[2]M1b - Model inputs'!M165,\n'[2]SM1 - DECC Scenario 3 equiv'!M165,\n'[2]SM2 - DECC Scenario 1 equiv'!M165,\n'[2]SM3 - DECC Scenario 2 equiv'!M165,\n'[2]SM4 - DNO Scenario 4 equiv'!M165)","v":0},{"$f":"CHOOSE(view,\n'[1]M1a - Model inputs'!N165,\n'[1]M1b - Model inputs'!N165,\n'[1]SM1 - DECC Scenario 3 equiv'!N165,\n'[1]SM2 - DECC Scenario 1 equiv'!N165,\n'[1]SM3 - DECC Scenario 2 equiv'!N165,\n'[1]SM4 - DNO Scenario 4 equiv'!N165,\n'[2]M1a - Model inputs'!N165,\n'[2]M1b - Model inputs'!N165,\n'[2]SM1 - DECC Scenario 3 equiv'!N165,\n'[2]SM2 - DECC Scenario 1 equiv'!N165,\n'[2]SM3 - DECC Scenario 2 equiv'!N165,\n'[2]SM4 - DNO Scenario 4 equiv'!N165)","v":0},{"$f":"CHOOSE(view,\n'[1]M1a - Model inputs'!O165,\n'[1]M1b - Model inputs'!O165,\n'[1]SM1 - DECC Scenario 3 equiv'!O165,\n'[1]SM2 - DECC Scenario 1 equiv'!O165,\n'[1]SM3 - DECC Scenario 2 equiv'!O165,\n'[1]SM4 - DNO Scenario 4 equiv'!O165,\n'[2]M1a - Model inputs'!O165,\n'[2]M1b - Model inputs'!O165,\n'[2]SM1 - DECC Scenario 3 equiv'!O165,\n'[2]SM2 - DECC Scenario 1 equiv'!O165,\n'[2]SM3 - DECC Scenario 2 equiv'!O165,\n'[2]SM4 - DNO Scenario 4 equiv'!O165)","v":0},{"$f":"CHOOSE(view,\n'[1]M1a - Model inputs'!P165,\n'[1]M1b - Model inputs'!P165,\n'[1]SM1 - DECC Scenario 3 equiv'!P165,\n'[1]SM2 - DECC Scenario 1 equiv'!P165,\n'[1]SM3 - DECC Scenario 2 equiv'!P165,\n'[1]SM4 - DNO Scenario 4 equiv'!P165,\n'[2]M1a - Model inputs'!P165,\n'[2]M1b - Model inputs'!P165,\n'[2]SM1 - DECC Scenario 3 equiv'!P165,\n'[2]SM2 - DECC Scenario 1 equiv'!P165,\n'[2]SM3 - DECC Scenario 2 equiv'!P165,\n'[2]SM4 - DNO Scenario 4 equiv'!P165)","v":0},{"$f":"CHOOSE(view,\n'[1]M1a - Model inputs'!Q165,\n'[1]M1b - Model inputs'!Q165,\n'[1]SM1 - DECC Scenario 3 equiv'!Q165,\n'[1]SM2 - DECC Scenario 1 equiv'!Q165,\n'[1]SM3 - DECC Scenario 2 equiv'!Q165,\n'[1]SM4 - DNO Scenario 4 equiv'!Q165,\n'[2]M1a - Model inputs'!Q165,\n'[2]M1b - Model inputs'!Q165,\n'[2]SM1 - DECC Scenario 3 equiv'!Q165,\n'[2]SM2 - DECC Scenario 1 equiv'!Q165,\n'[2]SM3 - DECC Scenario 2 equiv'!Q165,\n'[2]SM4 - DNO Scenario 4 equiv'!Q165)","v":0},{"$f":"CHOOSE(view,\n'[1]M1a - Model inputs'!R165,\n'[1]M1b - Model inputs'!R165,\n'[1]SM1 - DECC Scenario 3 equiv'!R165,\n'[1]SM2 - DECC Scenario 1 equiv'!R165,\n'[1]SM3 - DECC Scenario 2 equiv'!R165,\n'[1]SM4 - DNO Scenario 4 equiv'!R165,\n'[2]M1a - Model inputs'!R165,\n'[2]M1b - Model inputs'!R165,\n'[2]SM1 - DECC Scenario 3 equiv'!R165,\n'[2]SM2 - DECC Scenario 1 equiv'!R165,\n'[2]SM3 - DECC Scenario 2 equiv'!R165,\n'[2]SM4 - DNO Scenario 4 equiv'!R165)","v":0},{"$f":"CHOOSE(view,\n'[1]M1a - Model inputs'!S165,\n'[1]M1b - Model inputs'!S165,\n'[1]SM1 - DECC Scenario 3 equiv'!S165,\n'[1]SM2 - DECC Scenario 1 equiv'!S165,\n'[1]SM3 - DECC Scenario 2 equiv'!S165,\n'[1]SM4 - DNO Scenario 4 equiv'!S165,\n'[2]M1a - Model inputs'!S165,\n'[2]M1b - Model inputs'!S165,\n'[2]SM1 - DECC Scenario 3 equiv'!S165,\n'[2]SM2 - DECC Scenario 1 equiv'!S165,\n'[2]SM3 - DECC Scenario 2 equiv'!S165,\n'[2]SM4 - DNO Scenario 4 equiv'!S165)","v":0}]
[null,null,null,null,{"$f":"Input!E153","v":"Allocation to faults"},null,"%",null,null,null,null,null,null,null,null,null,null,null,null,null,null,null,null,null,null,null,null,null,null,null,null,null,null,null,null,{"$f":"CHOOSE(view,\n'[1]M1a - Model inputs'!L166,\n'[1]M1b - Model inputs'!L166,\n'[1]SM1 - DECC Scenario 3 equiv'!L166,\n'[1]SM2 - DECC Scenario 1 equiv'!L166,\n'[1]SM3 - DECC Scenario 2 equiv'!L166,\n'[1]SM4 - DNO Scenario 4 equiv'!L166,\n'[2]M1a - Model inputs'!L166,\n'[2]M1b - Model inputs'!L166,\n'[2]SM1 - DECC Scenario 3 equiv'!L166,\n'[2]SM2 - DECC Scenario 1 equiv'!L166,\n'[2]SM3 - DECC Scenario 2 equiv'!L166,\n'[2]SM4 - DNO Scenario 4 equiv'!L166)","v":0},{"$f":"CHOOSE(view,\n'[1]M1a - Model inputs'!M166,\n'[1]M1b - Model inputs'!M166,\n'[1]SM1 - DECC Scenario 3 equiv'!M166,\n'[1]SM2 - DECC Scenario 1 equiv'!M166,\n'[1]SM3 - DECC Scenario 2 equiv'!M166,\n'[1]SM4 - DNO Scenario 4 equiv'!M166,\n'[2]M1a - Model inputs'!M166,\n'[2]M1b - Model inputs'!M166,\n'[2]SM1 - DECC Scenario 3 equiv'!M166,\n'[2]SM2 - DECC Scenario 1 equiv'!M166,\n'[2]SM3 - DECC Scenario 2 equiv'!M166,\n'[2]SM4 - DNO Scenario 4 equiv'!M166)","v":0},{"$f":"CHOOSE(view,\n'[1]M1a - Model inputs'!N166,\n'[1]M1b - Model inputs'!N166,\n'[1]SM1 - DECC Scenario 3 equiv'!N166,\n'[1]SM2 - DECC Scenario 1 equiv'!N166,\n'[1]SM3 - DECC Scenario 2 equiv'!N166,\n'[1]SM4 - DNO Scenario 4 equiv'!N166,\n'[2]M1a - Model inputs'!N166,\n'[2]M1b - Model inputs'!N166,\n'[2]SM1 - DECC Scenario 3 equiv'!N166,\n'[2]SM2 - DECC Scenario 1 equiv'!N166,\n'[2]SM3 - DECC Scenario 2 equiv'!N166,\n'[2]SM4 - DNO Scenario 4 equiv'!N166)","v":0},{"$f":"CHOOSE(view,\n'[1]M1a - Model inputs'!O166,\n'[1]M1b - Model inputs'!O166,\n'[1]SM1 - DECC Scenario 3 equiv'!O166,\n'[1]SM2 - DECC Scenario 1 equiv'!O166,\n'[1]SM3 - DECC Scenario 2 equiv'!O166,\n'[1]SM4 - DNO Scenario 4 equiv'!O166,\n'[2]M1a - Model inputs'!O166,\n'[2]M1b - Model inputs'!O166,\n'[2]SM1 - DECC Scenario 3 equiv'!O166,\n'[2]SM2 - DECC Scenario 1 equiv'!O166,\n'[2]SM3 - DECC Scenario 2 equiv'!O166,\n'[2]SM4 - DNO Scenario 4 equiv'!O166)","v":0},{"$f":"CHOOSE(view,\n'[1]M1a - Model inputs'!P166,\n'[1]M1b - Model inputs'!P166,\n'[1]SM1 - DECC Scenario 3 equiv'!P166,\n'[1]SM2 - DECC Scenario 1 equiv'!P166,\n'[1]SM3 - DECC Scenario 2 equiv'!P166,\n'[1]SM4 - DNO Scenario 4 equiv'!P166,\n'[2]M1a - Model inputs'!P166,\n'[2]M1b - Model inputs'!P166,\n'[2]SM1 - DECC Scenario 3 equiv'!P166,\n'[2]SM2 - DECC Scenario 1 equiv'!P166,\n'[2]SM3 - DECC Scenario 2 equiv'!P166,\n'[2]SM4 - DNO Scenario 4 equiv'!P166)","v":0},{"$f":"CHOOSE(view,\n'[1]M1a - Model inputs'!Q166,\n'[1]M1b - Model inputs'!Q166,\n'[1]SM1 - DECC Scenario 3 equiv'!Q166,\n'[1]SM2 - DECC Scenario 1 equiv'!Q166,\n'[1]SM3 - DECC Scenario 2 equiv'!Q166,\n'[1]SM4 - DNO Scenario 4 equiv'!Q166,\n'[2]M1a - Model inputs'!Q166,\n'[2]M1b - Model inputs'!Q166,\n'[2]SM1 - DECC Scenario 3 equiv'!Q166,\n'[2]SM2 - DECC Scenario 1 equiv'!Q166,\n'[2]SM3 - DECC Scenario 2 equiv'!Q166,\n'[2]SM4 - DNO Scenario 4 equiv'!Q166)","v":0},{"$f":"CHOOSE(view,\n'[1]M1a - Model inputs'!R166,\n'[1]M1b - Model inputs'!R166,\n'[1]SM1 - DECC Scenario 3 equiv'!R166,\n'[1]SM2 - DECC Scenario 1 equiv'!R166,\n'[1]SM3 - DECC Scenario 2 equiv'!R166,\n'[1]SM4 - DNO Scenario 4 equiv'!R166,\n'[2]M1a - Model inputs'!R166,\n'[2]M1b - Model inputs'!R166,\n'[2]SM1 - DECC Scenario 3 equiv'!R166,\n'[2]SM2 - DECC Scenario 1 equiv'!R166,\n'[2]SM3 - DECC Scenario 2 equiv'!R166,\n'[2]SM4 - DNO Scenario 4 equiv'!R166)","v":0},{"$f":"CHOOSE(view,\n'[1]M1a - Model inputs'!S166,\n'[1]M1b - Model inputs'!S166,\n'[1]SM1 - DECC Scenario 3 equiv'!S166,\n'[1]SM2 - DECC Scenario 1 equiv'!S166,\n'[1]SM3 - DECC Scenario 2 equiv'!S166,\n'[1]SM4 - DNO Scenario 4 equiv'!S166,\n'[2]M1a - Model inputs'!S166,\n'[2]M1b - Model inputs'!S166,\n'[2]SM1 - DECC Scenario 3 equiv'!S166,\n'[2]SM2 - DECC Scenario 1 equiv'!S166,\n'[2]SM3 - DECC Scenario 2 equiv'!S166,\n'[2]SM4 - DNO Scenario 4 equiv'!S166)","v":0}]
[null,null,null,null,{"$f":"Input!E154","v":"Allocation to tree cutting"},null,"%",null,null,null,null,null,null,null,null,null,null,null,null,null,null,null,null,null,null,null,null,null,null,null,null,null,null,null,null,{"$f":"CHOOSE(view,\n'[1]M1a - Model inputs'!L167,\n'[1]M1b - Model inputs'!L167,\n'[1]SM1 - DECC Scenario 3 equiv'!L167,\n'[1]SM2 - DECC Scenario 1 equiv'!L167,\n'[1]SM3 - DECC Scenario 2 equiv'!L167,\n'[1]SM4 - DNO Scenario 4 equiv'!L167,\n'[2]M1a - Model inputs'!L167,\n'[2]M1b - Model inputs'!L167,\n'[2]SM1 - DECC Scenario 3 equiv'!L167,\n'[2]SM2 - DECC Scenario 1 equiv'!L167,\n'[2]SM3 - DECC Scenario 2 equiv'!L167,\n'[2]SM4 - DNO Scenario 4 equiv'!L167)","v":0},{"$f":"CHOOSE(view,\n'[1]M1a - Model inputs'!M167,\n'[1]M1b - Model inputs'!M167,\n'[1]SM1 - DECC Scenario 3 equiv'!M167,\n'[1]SM2 - DECC Scenario 1 equiv'!M167,\n'[1]SM3 - DECC Scenario 2 equiv'!M167,\n'[1]SM4 - DNO Scenario 4 equiv'!M167,\n'[2]M1a - Model inputs'!M167,\n'[2]M1b - Model inputs'!M167,\n'[2]SM1 - DECC Scenario 3 equiv'!M167,\n'[2]SM2 - DECC Scenario 1 equiv'!M167,\n'[2]SM3 - DECC Scenario 2 equiv'!M167,\n'[2]SM4 - DNO Scenario 4 equiv'!M167)","v":0},{"$f":"CHOOSE(view,\n'[1]M1a - Model inputs'!N167,\n'[1]M1b - Model inputs'!N167,\n'[1]SM1 - DECC Scenario 3 equiv'!N167,\n'[1]SM2 - DECC Scenario 1 equiv'!N167,\n'[1]SM3 - DECC Scenario 2 equiv'!N167,\n'[1]SM4 - DNO Scenario 4 equiv'!N167,\n'[2]M1a - Model inputs'!N167,\n'[2]M1b - Model inputs'!N167,\n'[2]SM1 - DECC Scenario 3 equiv'!N167,\n'[2]SM2 - DECC Scenario 1 equiv'!N167,\n'[2]SM3 - DECC Scenario 2 equiv'!N167,\n'[2]SM4 - DNO Scenario 4 equiv'!N167)","v":0},{"$f":"CHOOSE(view,\n'[1]M1a - Model inputs'!O167,\n'[1]M1b - Model inputs'!O167,\n'[1]SM1 - DECC Scenario 3 equiv'!O167,\n'[1]SM2 - DECC Scenario 1 equiv'!O167,\n'[1]SM3 - DECC Scenario 2 equiv'!O167,\n'[1]SM4 - DNO Scenario 4 equiv'!O167,\n'[2]M1a - Model inputs'!O167,\n'[2]M1b - Model inputs'!O167,\n'[2]SM1 - DECC Scenario 3 equiv'!O167,\n'[2]SM2 - DECC Scenario 1 equiv'!O167,\n'[2]SM3 - DECC Scenario 2 equiv'!O167,\n'[2]SM4 - DNO Scenario 4 equiv'!O167)","v":0},{"$f":"CHOOSE(view,\n'[1]M1a - Model inputs'!P167,\n'[1]M1b - Model inputs'!P167,\n'[1]SM1 - DECC Scenario 3 equiv'!P167,\n'[1]SM2 - DECC Scenario 1 equiv'!P167,\n'[1]SM3 - DECC Scenario 2 equiv'!P167,\n'[1]SM4 - DNO Scenario 4 equiv'!P167,\n'[2]M1a - Model inputs'!P167,\n'[2]M1b - Model inputs'!P167,\n'[2]SM1 - DECC Scenario 3 equiv'!P167,\n'[2]SM2 - DECC Scenario 1 equiv'!P167,\n'[2]SM3 - DECC Scenario 2 equiv'!P167,\n'[2]SM4 - DNO Scenario 4 equiv'!P167)","v":0},{"$f":"CHOOSE(view,\n'[1]M1a - Model inputs'!Q167,\n'[1]M1b - Model inputs'!Q167,\n'[1]SM1 - DECC Scenario 3 equiv'!Q167,\n'[1]SM2 - DECC Scenario 1 equiv'!Q167,\n'[1]SM3 - DECC Scenario 2 equiv'!Q167,\n'[1]SM4 - DNO Scenario 4 equiv'!Q167,\n'[2]M1a - Model inputs'!Q167,\n'[2]M1b - Model inputs'!Q167,\n'[2]SM1 - DECC Scenario 3 equiv'!Q167,\n'[2]SM2 - DECC Scenario 1 equiv'!Q167,\n'[2]SM3 - DECC Scenario 2 equiv'!Q167,\n'[2]SM4 - DNO Scenario 4 equiv'!Q167)","v":0},{"$f":"CHOOSE(view,\n'[1]M1a - Model inputs'!R167,\n'[1]M1b - Model inputs'!R167,\n'[1]SM1 - DECC Scenario 3 equiv'!R167,\n'[1]SM2 - DECC Scenario 1 equiv'!R167,\n'[1]SM3 - DECC Scenario 2 equiv'!R167,\n'[1]SM4 - DNO Scenario 4 equiv'!R167,\n'[2]M1a - Model inputs'!R167,\n'[2]M1b - Model inputs'!R167,\n'[2]SM1 - DECC Scenario 3 equiv'!R167,\n'[2]SM2 - DECC Scenario 1 equiv'!R167,\n'[2]SM3 - DECC Scenario 2 equiv'!R167,\n'[2]SM4 - DNO Scenario 4 equiv'!R167)","v":0},{"$f":"CHOOSE(view,\n'[1]M1a - Model inputs'!S167,\n'[1]M1b - Model inputs'!S167,\n'[1]SM1 - DECC Scenario 3 equiv'!S167,\n'[1]SM2 - DECC Scenario 1 equiv'!S167,\n'[1]SM3 - DECC Scenario 2 equiv'!S167,\n'[1]SM4 - DNO Scenario 4 equiv'!S167,\n'[2]M1a - Model inputs'!S167,\n'[2]M1b - Model inputs'!S167,\n'[2]SM1 - DECC Scenario 3 equiv'!S167,\n'[2]SM2 - DECC Scenario 1 equiv'!S167,\n'[2]SM3 - DECC Scenario 2 equiv'!S167,\n'[2]SM4 - DNO Scenario 4 equiv'!S167)","v":0}]
[null,null,null,null,{"$f":"Input!E155","v":"Allocation to controllable opex"},null,"%",null,null,null,null,null,null,null,null,null,null,null,null,null,null,null,null,null,null,null,null,null,null,null,null,null,null,null,null,{"$f":"CHOOSE(view,\n'[1]M1a - Model inputs'!L168,\n'[1]M1b - Model inputs'!L168,\n'[1]SM1 - DECC Scenario 3 equiv'!L168,\n'[1]SM2 - DECC Scenario 1 equiv'!L168,\n'[1]SM3 - DECC Scenario 2 equiv'!L168,\n'[1]SM4 - DNO Scenario 4 equiv'!L168,\n'[2]M1a - Model inputs'!L168,\n'[2]M1b - Model inputs'!L168,\n'[2]SM1 - DECC Scenario 3 equiv'!L168,\n'[2]SM2 - DECC Scenario 1 equiv'!L168,\n'[2]SM3 - DECC Scenario 2 equiv'!L168,\n'[2]SM4 - DNO Scenario 4 equiv'!L168)","v":0},{"$f":"CHOOSE(view,\n'[1]M1a - Model inputs'!M168,\n'[1]M1b - Model inputs'!M168,\n'[1]SM1 - DECC Scenario 3 equiv'!M168,\n'[1]SM2 - DECC Scenario 1 equiv'!M168,\n'[1]SM3 - DECC Scenario 2 equiv'!M168,\n'[1]SM4 - DNO Scenario 4 equiv'!M168,\n'[2]M1a - Model inputs'!M168,\n'[2]M1b - Model inputs'!M168,\n'[2]SM1 - DECC Scenario 3 equiv'!M168,\n'[2]SM2 - DECC Scenario 1 equiv'!M168,\n'[2]SM3 - DECC Scenario 2 equiv'!M168,\n'[2]SM4 - DNO Scenario 4 equiv'!M168)","v":0},{"$f":"CHOOSE(view,\n'[1]M1a - Model inputs'!N168,\n'[1]M1b - Model inputs'!N168,\n'[1]SM1 - DECC Scenario 3 equiv'!N168,\n'[1]SM2 - DECC Scenario 1 equiv'!N168,\n'[1]SM3 - DECC Scenario 2 equiv'!N168,\n'[1]SM4 - DNO Scenario 4 equiv'!N168,\n'[2]M1a - Model inputs'!N168,\n'[2]M1b - Model inputs'!N168,\n'[2]SM1 - DECC Scenario 3 equiv'!N168,\n'[2]SM2 - DECC Scenario 1 equiv'!N168,\n'[2]SM3 - DECC Scenario 2 equiv'!N168,\n'[2]SM4 - DNO Scenario 4 equiv'!N168)","v":0},{"$f":"CHOOSE(view,\n'[1]M1a - Model inputs'!O168,\n'[1]M1b - Model inputs'!O168,\n'[1]SM1 - DECC Scenario 3 equiv'!O168,\n'[1]SM2 - DECC Scenario 1 equiv'!O168,\n'[1]SM3 - DECC Scenario 2 equiv'!O168,\n'[1]SM4 - DNO Scenario 4 equiv'!O168,\n'[2]M1a - Model inputs'!O168,\n'[2]M1b - Model inputs'!O168,\n'[2]SM1 - DECC Scenario 3 equiv'!O168,\n'[2]SM2 - DECC Scenario 1 equiv'!O168,\n'[2]SM3 - DECC Scenario 2 equiv'!O168,\n'[2]SM4 - DNO Scenario 4 equiv'!O168)","v":0},{"$f":"CHOOSE(view,\n'[1]M1a - Model inputs'!P168,\n'[1]M1b - Model inputs'!P168,\n'[1]SM1 - DECC Scenario 3 equiv'!P168,\n'[1]SM2 - DECC Scenario 1 equiv'!P168,\n'[1]SM3 - DECC Scenario 2 equiv'!P168,\n'[1]SM4 - DNO Scenario 4 equiv'!P168,\n'[2]M1a - Model inputs'!P168,\n'[2]M1b - Model inputs'!P168,\n'[2]SM1 - DECC Scenario 3 equiv'!P168,\n'[2]SM2 - DECC Scenario 1 equiv'!P168,\n'[2]SM3 - DECC Scenario 2 equiv'!P168,\n'[2]SM4 - DNO Scenario 4 equiv'!P168)","v":0},{"$f":"CHOOSE(view,\n'[1]M1a - Model inputs'!Q168,\n'[1]M1b - Model inputs'!Q168,\n'[1]SM1 - DECC Scenario 3 equiv'!Q168,\n'[1]SM2 - DECC Scenario 1 equiv'!Q168,\n'[1]SM3 - DECC Scenario 2 equiv'!Q168,\n'[1]SM4 - DNO Scenario 4 equiv'!Q168,\n'[2]M1a - Model inputs'!Q168,\n'[2]M1b - Model inputs'!Q168,\n'[2]SM1 - DECC Scenario 3 equiv'!Q168,\n'[2]SM2 - DECC Scenario 1 equiv'!Q168,\n'[2]SM3 - DECC Scenario 2 equiv'!Q168,\n'[2]SM4 - DNO Scenario 4 equiv'!Q168)","v":0},{"$f":"CHOOSE(view,\n'[1]M1a - Model inputs'!R168,\n'[1]M1b - Model inputs'!R168,\n'[1]SM1 - DECC Scenario 3 equiv'!R168,\n'[1]SM2 - DECC Scenario 1 equiv'!R168,\n'[1]SM3 - DECC Scenario 2 equiv'!R168,\n'[1]SM4 - DNO Scenario 4 equiv'!R168,\n'[2]M1a - Model inputs'!R168,\n'[2]M1b - Model inputs'!R168,\n'[2]SM1 - DECC Scenario 3 equiv'!R168,\n'[2]SM2 - DECC Scenario 1 equiv'!R168,\n'[2]SM3 - DECC Scenario 2 equiv'!R168,\n'[2]SM4 - DNO Scenario 4 equiv'!R168)","v":0},{"$f":"CHOOSE(view,\n'[1]M1a - Model inputs'!S168,\n'[1]M1b - Model inputs'!S168,\n'[1]SM1 - DECC Scenario 3 equiv'!S168,\n'[1]SM2 - DECC Scenario 1 equiv'!S168,\n'[1]SM3 - DECC Scenario 2 equiv'!S168,\n'[1]SM4 - DNO Scenario 4 equiv'!S168,\n'[2]M1a - Model inputs'!S168,\n'[2]M1b - Model inputs'!S168,\n'[2]SM1 - DECC Scenario 3 equiv'!S168,\n'[2]SM2 - DECC Scenario 1 equiv'!S168,\n'[2]SM3 - DECC Scenario 2 equiv'!S168,\n'[2]SM4 - DNO Scenario 4 equiv'!S168)","v":0}]
[]
[null,null,null,null,{"$f":"Input!E157","v":"Spare 1"},null,"£m 12/13 prices",null,null,null,null,null,null,null,null,null,null,null,null,null,null,null,null,null,null,null,null,null,null,null,null,null,null,null,null,{"$f":"AJ25","v":0},{"$f":"AK25","v":0},{"$f":"AL25","v":0},0,{"$f":"AN25","v":0},0,0,0]
[null,null,null,null,{"$f":"Input!E158","v":"Allocation to load related capex"},null,"%"]
[null,null,null,null,{"$f":"Input!E159","v":"Allocation to non-load related capex - asset replacement"},null,"%"]
[null,null,null,null,{"$f":"Input!E160","v":"Allocation to non-load related capex - other"},null,"%"]
[null,null,null,null,{"$f":"Input!E161","v":"Allocation to faults"},null,"%"]
[null,null,null,null,{"$f":"Input!E162","v":"Allocation to tree cutting"},null,"%"]
[null,null,null,null,{"$f":"Input!E163","v":"Allocation to controllable opex"},null,"%"]
[]
[null,null,null,null,{"$f":"E26","v":"Spare 2"},null,"£m 12/13 prices",null,null,null,null,null,null,null,null,null,null,null,null,null,null,null,null,null,null,null,null,null,null,null,null,null,null,null,null,{"$f":"AJ26","v":0},0,0,0,0,0,0,0]
[null,null,null,null,{"$f":"Input!E166","v":"Allocation to load related capex"},null,"%"]
[null,null,null,null,{"$f":"Input!E167","v":"Allocation to non-load related capex - asset replacement"},null,"%"]
[null,null,null,null,{"$f":"Input!E168","v":"Allocation to non-load related capex - other"},null,"%"]
[null,null,null,null,{"$f":"Input!E169","v":"Allocation to faults"},null,"%"]
[null,null,null,null,{"$f":"Input!E170","v":"Allocation to tree cutting"},null,"%"]
[null,null,null,null,{"$f":"Input!E171","v":"Allocation to controllable opex"},null,"%"]
[]
[null,null,null,null,{"$f":"E27","v":"Spare 3"},null,"£m 12/13 prices",null,null,null,null,null,null,null,null,null,null,null,null,null,null,null,null,null,null,null,null,null,null,null,null,null,null,null,null,{"$f":"AJ27","v":0},0,0,0,0,0,0,0]
[null,null,null,null,{"$f":"Input!E174","v":"Allocation to load related capex"},null,"%"]
[null,null,null,null,{"$f":"Input!E175","v":"Allocation to non-load related capex - asset replacement"},null,"%"]
[null,null,null,null,{"$f":"Input!E176","v":"Allocation to non-load related capex - other"},null,"%"]
[null,null,null,null,{"$f":"Input!E177","v":"Allocation to faults"},null,"%"]
[null,null,null,null,{"$f":"Input!E178","v":"Allocation to tree cutting"},null,"%"]
[null,null,null,null,{"$f":"Input!E179","v":"Allocation to controllable opex"},null,"%"]
[]
[null,null,null,null,{"$f":"E28","v":"Allowed innovation roll-out mechanism"},null,"£m 12/13 prices",null,null,null,null,null,null,null,null,null,null,null,null,null,null,null,null,null,null,null,null,null,null,null,null,null,null,null,null,{"$f":"AJ28","v":0},{"$f":"AK28","v":0},0,0,0,0,0,0]
[null,null,null,null,{"$f":"Input!E182","v":"Allocation to load related capex"},null,"%",null,null,null,null,null,null,null,null,null,null,null,null,null,null,null,null,null,null,null,null,null,null,null,null,null,null,null,null,0.25,0.25,0.25,0.25,0.25,0.25,0.25,0.25]
[null,null,null,null,{"$f":"Input!E183","v":"Allocation to non-load related capex - asset replacement"},null,"%"]
[null,null,null,null,{"$f":"Input!E184","v":"Allocation to non-load related capex - other"},null,"%",null,null,null,null,null,null,null,null,null,null,null,null,null,null,null,null,null,null,null,null,null,null,null,null,null,null,null,null,0.75,0.75,0.75,0.75,0.75,0.75,0.75,0.75]
[null,null,null,null,{"$f":"Input!E185","v":"Allocation to faults"},null,"%"]
[null,null,null,null,{"$f":"Input!E186","v":"Allocation to tree cutting"},null,"%"]
[null,null,null,null,{"$f":"Input!E187","v":"Allocation to controllable opex"},null,"%"]
[]
[null,null,null,null,{"$f":"Input!E189","v":"Variant allowed load related capex"},null,"£m 12/13 prices",null,null,null,null,null,null,null,null,null,null,null,null,null,null,null,null,null,null,null,null,null,null,null,null,null,null,null,null,{"$f":"(AJ$101*AJ102)+(AJ$109*AJ110)+(AJ$117*AJ118)+(AJ$125*AJ126)+(AJ$133*AJ134)+(AJ$141*AJ142)+(AJ$149*AJ150)+(AJ$157*AJ158)+(AJ$165*AJ166)+(AJ$173*AJ174)+(AJ$181*AJ182)","v":0},0,0,0,0,0,0,0]
[null,null,null,null,{"$f":"Input!E190","v":"Variant allowed non-load related capex - asset replacement"},null,"£m 12/13 prices",null,null,null,null,null,null,null,null,null,null,null,null,null,null,null,null,null,null,null,null,null,null,null,null,null,null,null,null,6.6850358143958108E-2,0.5804095817614412,0.58029041901528677,7.1007259041343376E-2,7.1935693595704051E-2,7.2924315337734205E-2,7.3879229101923655E-2,7.4865796598177686E-2]
[null,null,null,null,{"$f":"Input!E191","v":"Variant allowed non-load related capex - other"},null,"£m 12/13 prices",null,null,null,null,null,null,null,null,null,null,null,null,null,null,null,null,null,null,null,null,null,null,null,null,null,null,null,null,0.32086328195134051,0.32012347815469605,0.32075061980619068,0.3200639505270263,0.32054124459468625,0.32108466564649085,0.32034348109040567,0.32108561571780592]
[null,null,null,null,{"$f":"Input!E192","v":"Variant allowed faults"},null,"£m 12/13 prices",null,null,null,null,null,null,null,null,null,null,null,null,null,null,null,null,null,null,null,null,null,null,null,null,null,null,null,null,9.50322103350692E-2,9.8926578660803247E-2,9.9895821457331627E-2,0.10144192251604647,0.10301467160240724,0.10461537226275736,0.10624845654693749,0.1079176823857898]
[null,null,null,null,{"$f":"Input!E193","v":"Variant allowed tree cutting"},null,"£m 12/13 prices",null,null,null,null,null,null,null,null,null,null,null,null,null,null,null,null,null,null,null,null,null,null,null,null,null,null,null,null,0,0,0,0,0,0,0,0]
[null,null,null,null,{"$f":"Input!E194","v":"Variant allowed controllable opex"},null,"£m 12/13 prices",null,null,null,null,null,null,null,null,null,null,null,null,null,null,null,null,null,null,null,null,null,null,null,null,null,null,null,null,5.2486320406245866E-2,5.1858360656762227E-2,5.0565223182818066E-2,4.5902567234348074E-2,4.2000926042862867E-2,4.3730330780959767E-2,0,0]
[]
[null,null,null,"Actual"]
[]
[null,null,null,null,{"$f":"Input!E198","v":"Actual load related capex"},null,"£m 12/13 prices",null,null,null,null,null,null,null,null,null,null,null,null,null,null,null,null,null,null,null,null,null,null,null,null,null,null,null,null,{"$f":"AJ12","v":0},0,0,0,0,0,0,0]
[null,null,null,null,{"$f":"Input!E199","v":"Actual non-load related capex - asset replacement"},null,"£m 12/13 prices",null,null,null,null,null,null,null,null,null,null,null,null,null,null,null,null,null,null,null,null,null,null,null,null,null,null,null,null,0,0,0,0,0,0,0,0]
[null,null,null,null,{"$f":"Input!E200","v":"Actual non-load related capex - other"},null,"£m 12/13 prices",null,null,null,null,null,null,null,null,null,null,null,null,null,null,null,null,null,null,null,null,null,null,null,null,null,null,null,null,0,0,0,0,0,0,0,0]
[null,null,null,null,{"$f":"Input!E201","v":"Actual faults"},null,"£m 12/13 prices",null,null,null,null,null,null,null,null,null,null,null,null,null,null,null,null,null,null,null,null,null,null,null,null,null,null,null,null,{"$f":"AJ15","v":0},0,0,0,0,0,0,0]
[null,null,null,null,{"$f":"Input!E202","v":"Actual tree cutting"},null,"£m 12/13 prices",null,null,null,null,null,null,null,null,null,null,null,null,null,null,null,null,null,null,null,null,null,null,null,null,null,null,null,null,0,0,0,0,0,0,0,0]
[null,null,null,null,{"$f":"Input!E203","v":"Actual controllable opex"},null,"£m 12/13 prices",null,null,null,null,null,null,null,null,null,null,null,null,null,null,null,null,null,null,null,null,null,null,null,null,null,null,null,null,{"$f":"AJ17","v":0},0,0,0,0,0,0,0]
[]
[null,null,"Non-totex (all catergorised as 'opex' for tax purposes)"]
[]
[null,null,null,null,"Non-controllable opex (excluding Exit Charges)",null,"£m 12/13 prices",null,null,null,null,null,null,null,null,null,null,null,null,null,null,null,null,null,null,null,null,null,null,null,null,null,null,null,null,{"$f":"CHOOSE(view,\nSUM('[1]M1a - Model inputs'!L115:L121)+SUM('[1]M1a - Model inputs'!L123:L124)+SUM('[1]M1a - Model inputs'!L127:L127),\nSUM('[1]M1b - Model inputs'!L115:L121)+SUM('[1]M1b - Model inputs'!L123:L124)+SUM('[1]M1b - Model inputs'!L127:L127),\nSUM('[1]SM1 - DECC Scenario 3 equiv'!L115:L121)+SUM('[1]SM1 - DECC Scenario 3 equiv'!L123:L124)+SUM('[1]SM1 - DECC Scenario 3 equiv'!L127:L127),\nSUM('[1]SM2 - DECC Scenario 1 equiv'!L115:L121)+SUM('[1]SM2 - DECC Scenario 1 equiv'!L123:L124)+SUM('[1]SM2 - DECC Scenario 1 equiv'!L127:L127),\nSUM('[1]SM3 - DECC Scenario 2 equiv'!L115:L121)+SUM('[1]SM3 - DECC Scenario 2 equiv'!L123:L124)+SUM('[1]SM3 - DECC Scenario 2 equiv'!L127:L127),\nSUM('[1]SM4 - DNO Scenario 4 equiv'!L115:L121)+SUM('[1]SM4 - DNO Scenario 4 equiv'!L123:L124)+SUM('[1]SM4 - DNO Scenario 4 equiv'!L127:L127),\nSUM('[2]M1a - Model inputs'!L115:L121)+SUM('[2]M1a - Model inputs'!L123:L124)+SUM('[2]M1a - Model inputs'!L127:L127),\nSUM('[2]M1b - Model inputs'!L115:L121)+SUM('[2]M1b - Model inputs'!L123:L124)+SUM('[2]M1b - Model inputs'!L127:L127),\nSUM('[2]SM1 - DECC Scenario 3 equiv'!L115:L121)+SUM('[2]SM1 - DECC Scenario 3 equiv'!L123:L124)+SUM('[2]SM1 - DECC Scenario 3 equiv'!L127:L127),\nSUM('[2]SM2 - DECC Scenario 1 equiv'!L115:L121)+SUM('[2]SM2 - DECC Scenario 1 equiv'!L123:L124)+SUM('[2]SM2 - DECC Scenario 1 equiv'!L127:L127),\nSUM('[2]SM3 - DECC Scenario 2 equiv'!L115:L121)+SUM('[2]SM3 - DECC Scenario 2 equiv'!L123:L124)+SUM('[2]SM3 - DECC Scenario 2 equiv'!L127:L127),\nSUM('[2]SM4 - DNO Scenario 4 equiv'!L115:L121)+SUM('[2]SM4 - DNO Scenario 4 equiv'!L123:L124)+SUM('[2]SM4 - DNO Scenario 4 equiv'!L127:L127))","v":28.28686247997846},{"$f":"CHOOSE(view,\nSUM('[1]M1a - Model inputs'!M115:M121)+SUM('[1]M1a - Model inputs'!M123:M124)+SUM('[1]M1a - Model inputs'!M127:M127),\nSUM('[1]M1b - Model inputs'!M115:M121)+SUM('[1]M1b - Model inputs'!M123:M124)+SUM('[1]M1b - Model inputs'!M127:M127),\nSUM('[1]SM1 - DECC Scenario 3 equiv'!M115:M121)+SUM('[1]SM1 - DECC Scenario 3 equiv'!M123:M124)+SUM('[1]SM1 - DECC Scenario 3 equiv'!M127:M127),\nSUM('[1]SM2 - DECC Scenario 1 equiv'!M115:M121)+SUM('[1]SM2 - DECC Scenario 1 equiv'!M123:M124)+SUM('[1]SM2 - DECC Scenario 1 equiv'!M127:M127),\nSUM('[1]SM3 - DECC Scenario 2 equiv'!M115:M121)+SUM('[1]SM3 - DECC Scenario 2 equiv'!M123:M124)+SUM('[1]SM3 - DECC Scenario 2 equiv'!M127:M127),\nSUM('[1]SM4 - DNO Scenario 4 equiv'!M115:M121)+SUM('[1]SM4 - DNO Scenario 4 equiv'!M123:M124)+SUM('[1]SM4 - DNO Scenario 4 equiv'!M127:M127),\nSUM('[2]M1a - Model inputs'!M115:M121)+SUM('[2]M1a - Model inputs'!M123:M124)+SUM('[2]M1a - Model inputs'!M127:M127),\nSUM('[2]M1b - Model inputs'!M115:M121)+SUM('[2]M1b - Model inputs'!M123:M124)+SUM('[2]M1b - Model inputs'!M127:M127),\nSUM('[2]SM1 - DECC Scenario 3 equiv'!M115:M121)+SUM('[2]SM1 - DECC Scenario 3 equiv'!M123:M124)+SUM('[2]SM1 - DECC Scenario 3 equiv'!M127:M127),\nSUM('[2]SM2 - DECC Scenario 1 equiv'!M115:M121)+SUM('[2]SM2 - DECC Scenario 1 equiv'!M123:M124)+SUM('[2]SM2 - DECC Scenario 1 equiv'!M127:M127),\nSUM('[2]SM3 - DECC Scenario 2 equiv'!M115:M121)+SUM('[2]SM3 - DECC Scenario 2 equiv'!M123:M124)+SUM('[2]SM3 - DECC Scenario 2 equiv'!M127:M127),\nSUM('[2]SM4 - DNO Scenario 4 equiv'!M115:M121)+SUM('[2]SM4 - DNO Scenario 4 equiv'!M123:M124)+SUM('[2]SM4 - DNO Scenario 4 equiv'!M127:M127))","v":28.359229810674883},{"$f":"CHOOSE(view,\nSUM('[1]M1a - Model inputs'!N115:N121)+SUM('[1]M1a - Model inputs'!N123:N124)+SUM('[1]M1a - Model inputs'!N127:N127),\nSUM('[1]M1b - Model inputs'!N115:N121)+SUM('[1]M1b - Model inputs'!N123:N124)+SUM('[1]M1b - Model inputs'!N127:N127),\nSUM('[1]SM1 - DECC Scenario 3 equiv'!N115:N121)+SUM('[1]SM1 - DECC Scenario 3 equiv'!N123:N124)+SUM('[1]SM1 - DECC Scenario 3 equiv'!N127:N127),\nSUM('[1]SM2 - DECC Scenario 1 equiv'!N115:N121)+SUM('[1]SM2 - DECC Scenario 1 equiv'!N123:N124)+SUM('[1]SM2 - DECC Scenario 1 equiv'!N127:N127),\nSUM('[1]SM3 - DECC Scenario 2 equiv'!N115:N121)+SUM('[1]SM3 - DECC Scenario 2 equiv'!N123:N124)+SUM('[1]SM3 - DECC Scenario 2 equiv'!N127:N127),\nSUM('[1]SM4 - DNO Scenario 4 equiv'!N115:N121)+SUM('[1]SM4 - DNO Scenario 4 equiv'!N123:N124)+SUM('[1]SM4 - DNO Scenario 4 equiv'!N127:N127),\nSUM('[2]M1a - Model inputs'!N115:N121)+SUM('[2]M1a - Model inputs'!N123:N124)+SUM('[2]M1a - Model inputs'!N127:N127),\nSUM('[2]M1b - Model inputs'!N115:N121)+SUM('[2]M1b - Model inputs'!N123:N124)+SUM('[2]M1b - Model inputs'!N127:N127),\nSUM('[2]SM1 - DECC Scenario 3 equiv'!N115:N121)+SUM('[2]SM1 - DECC Scenario 3 equiv'!N123:N124)+SUM('[2]SM1 - DECC Scenario 3 equiv'!N127:N127),\nSUM('[2]SM2 - DECC Scenario 1 equiv'!N115:N121)+SUM('[2]SM2 - DECC Scenario 1 equiv'!N123:N124)+SUM('[2]SM2 - DECC Scenario 1 equiv'!N127:N127),\nSUM('[2]SM3 - DECC Scenario 2 equiv'!N115:N121)+SUM('[2]SM3 - DECC Scenario 2 equiv'!N123:N124)+SUM('[2]SM3 - DECC Scenario 2 equiv'!N127:N127),\nSUM('[2]SM4 - DNO Scenario 4 equiv'!N115:N121)+SUM('[2]SM4 - DNO Scenario 4 equiv'!N123:N124)+SUM('[2]SM4 - DNO Scenario 4 equiv'!N127:N127))","v":31.337180643263437},{"$f":"CHOOSE(view,\nSUM('[1]M1a - Model inputs'!O115:O121)+SUM('[1]M1a - Model inputs'!O123:O124)+SUM('[1]M1a - Model inputs'!O127:O127),\nSUM('[1]M1b - Model inputs'!O115:O121)+SUM('[1]M1b - Model inputs'!O123:O124)+SUM('[1]M1b - Model inputs'!O127:O127),\nSUM('[1]SM1 - DECC Scenario 3 equiv'!O115:O121)+SUM('[1]SM1 - DECC Scenario 3 equiv'!O123:O124)+SUM('[1]SM1 - DECC Scenario 3 equiv'!O127:O127),\nSUM('[1]SM2 - DECC Scenario 1 equiv'!O115:O121)+SUM('[1]SM2 - DECC Scenario 1 equiv'!O123:O124)+SUM('[1]SM2 - DECC Scenario 1 equiv'!O127:O127),\nSUM('[1]SM3 - DECC Scenario 2 equiv'!O115:O121)+SUM('[1]SM3 - DECC Scenario 2 equiv'!O123:O124)+SUM('[1]SM3 - DECC Scenario 2 equiv'!O127:O127),\nSUM('[1]SM4 - DNO Scenario 4 equiv'!O115:O121)+SUM('[1]SM4 - DNO Scenario 4 equiv'!O123:O124)+SUM('[1]SM4 - DNO Scenario 4 equiv'!O127:O127),\nSUM('[2]M1a - Model inputs'!O115:O121)+SUM('[2]M1a - Model inputs'!O123:O124)+SUM('[2]M1a - Model inputs'!O127:O127),\nSUM('[2]M1b - Model inputs'!O115:O121)+SUM('[2]M1b - Model inputs'!O123:O124)+SUM('[2]M1b - Model inputs'!O127:O127),\nSUM('[2]SM1 - DECC Scenario 3 equiv'!O115:O121)+SUM('[2]SM1 - DECC Scenario 3 equiv'!O123:O124)+SUM('[2]SM1 - DECC Scenario 3 equiv'!O127:O127),\nSUM('[2]SM2 - DECC Scenario 1 equiv'!O115:O121)+SUM('[2]SM2 - DECC Scenario 1 equiv'!O123:O124)+SUM('[2]SM2 - DECC Scenario 1 equiv'!O127:O127),\nSUM('[2]SM3 - DECC Scenario 2 equiv'!O115:O121)+SUM('[2]SM3 - DECC Scenario 2 equiv'!O123:O124)+SUM('[2]SM3 - DECC Scenario 2 equiv'!O127:O127),\nSUM('[2]SM4 - DNO Scenario 4 equiv'!O115:O121)+SUM('[2]SM4 - DNO Scenario 4 equiv'!O123:O124)+SUM('[2]SM4 - DNO Scenario 4 equiv'!O127:O127))","v":36.641231191804714},{"$f":"CHOOSE(view,\nSUM('[1]M1a - Model inputs'!P115:P121)+SUM('[1]M1a - Model inputs'!P123:P124)+SUM('[1]M1a - Model inputs'!P127:P127),\nSUM('[1]M1b - Model inputs'!P115:P121)+SUM('[1]M1b - Model inputs'!P123:P124)+SUM('[1]M1b - Model inputs'!P127:P127),\nSUM('[1]SM1 - DECC Scenario 3 equiv'!P115:P121)+SUM('[1]SM1 - DECC Scenario 3 equiv'!P123:P124)+SUM('[1]SM1 - DECC Scenario 3 equiv'!P127:P127),\nSUM('[1]SM2 - DECC Scenario 1 equiv'!P115:P121)+SUM('[1]SM2 - DECC Scenario 1 equiv'!P123:P124)+SUM('[1]SM2 - DECC Scenario 1 equiv'!P127:P127),\nSUM('[1]SM3 - DECC Scenario 2 equiv'!P115:P121)+SUM('[1]SM3 - DECC Scenario 2 equiv'!P123:P124)+SUM('[1]SM3 - DECC Scenario 2 equiv'!P127:P127),\nSUM('[1]SM4 - DNO Scenario 4 equiv'!P115:P121)+SUM('[1]SM4 - DNO Scenario 4 equiv'!P123:P124)+SUM('[1]SM4 - DNO Scenario 4 equiv'!P127:P127),\nSUM('[2]M1a - Model inputs'!P115:P121)+SUM('[2]M1a - Model inputs'!P123:P124)+SUM('[2]M1a - Model inputs'!P127:P127),\nSUM('[2]M1b - Model inputs'!P115:P121)+SUM('[2]M1b - Model inputs'!P123:P124)+SUM('[2]M1b - Model inputs'!P127:P127),\nSUM('[2]SM1 - DECC Scenario 3 equiv'!P115:P121)+SUM('[2]SM1 - DECC Scenario 3 equiv'!P123:P124)+SUM('[2]SM1 - DECC Scenario 3 equiv'!P127:P127),\nSUM('[2]SM2 - DECC Scenario 1 equiv'!P115:P121)+SUM('[2]SM2 - DECC Scenario 1 equiv'!P123:P124)+SUM('[2]SM2 - DECC Scenario 1 equiv'!P127:P127),\nSUM('[2]SM3 - DECC Scenario 2 equiv'!P115:P121)+SUM('[2]SM3 - DECC Scenario 2 equiv'!P123:P124)+SUM('[2]SM3 - DECC Scenario 2 equiv'!P127:P127),\nSUM('[2]SM4 - DNO Scenario 4 equiv'!P115:P121)+SUM('[2]SM4 - DNO Scenario 4 equiv'!P123:P124)+SUM('[2]SM4 - DNO Scenario 4 equiv'!P127:P127))","v":42.878065544805963},{"$f":"CHOOSE(view,\nSUM('[1]M1a - Model inputs'!Q115:Q121)+SUM('[1]M1a - Model inputs'!Q123:Q124)+SUM('[1]M1a - Model inputs'!Q127:Q127),\nSUM('[1]M1b - Model inputs'!Q115:Q121)+SUM('[1]M1b - Model inputs'!Q123:Q124)+SUM('[1]M1b - Model inputs'!Q127:Q127),\nSUM('[1]SM1 - DECC Scenario 3 equiv'!Q115:Q121)+SUM('[1]SM1 - DECC Scenario 3 equiv'!Q123:Q124)+SUM('[1]SM1 - DECC Scenario 3 equiv'!Q127:Q127),\nSUM('[1]SM2 - DECC Scenario 1 equiv'!Q115:Q121)+SUM('[1]SM2 - DECC Scenario 1 equiv'!Q123:Q124)+SUM('[1]SM2 - DECC Scenario 1 equiv'!Q127:Q127),\nSUM('[1]SM3 - DECC Scenario 2 equiv'!Q115:Q121)+SUM('[1]SM3 - DECC Scenario 2 equiv'!Q123:Q124)+SUM('[1]SM3 - DECC Scenario 2 equiv'!Q127:Q127),\nSUM('[1]SM4 - DNO Scenario 4 equiv'!Q115:Q121)+SUM('[1]SM4 - DNO Scenario 4 equiv'!Q123:Q124)+SUM('[1]SM4 - DNO Scenario 4 equiv'!Q127:Q127),\nSUM('[2]M1a - Model inputs'!Q115:Q121)+SUM('[2]M1a - Model inputs'!Q123:Q124)+SUM('[2]M1a - Model inputs'!Q127:Q127),\nSUM('[2]M1b - Model inputs'!Q115:Q121)+SUM('[2]M1b - Model inputs'!Q123:Q124)+SUM('[2]M1b - Model inputs'!Q127:Q127),\nSUM('[2]SM1 - DECC Scenario 3 equiv'!Q115:Q121)+SUM('[2]SM1 - DECC Scenario 3 equiv'!Q123:Q124)+SUM('[2]SM1 - DECC Scenario 3 equiv'!Q127:Q127),\nSUM('[2]SM2 - DECC Scenario 1 equiv'!Q115:Q121)+SUM('[2]SM2 - DECC Scenario 1 equiv'!Q123:Q124)+SUM('[2]SM2 - DECC Scenario 1 equiv'!Q127:Q127),\nSUM('[2]SM3 - DECC Scenario 2 equiv'!Q115:Q121)+SUM('[2]SM3 - DECC Scenario 2 equiv'!Q123:Q124)+SUM('[2]SM3 - DECC Scenario 2 equiv'!Q127:Q127),\nSUM('[2]SM4 - DNO Scenario 4 equiv'!Q115:Q121)+SUM('[2]SM4 - DNO Scenario 4 equiv'!Q123:Q124)+SUM('[2]SM4 - DNO Scenario 4 equiv'!Q127:Q127))","v":43.593353883805172},{"$f":"CHOOSE(view,\nSUM('[1]M1a - Model inputs'!R115:R121)+SUM('[1]M1a - Model inputs'!R123:R124)+SUM('[1]M1a - Model inputs'!R127:R127),\nSUM('[1]M1b - Model inputs'!R115:R121)+SUM('[1]M1b - Model inputs'!R123:R124)+SUM('[1]M1b - Model inputs'!R127:R127),\nSUM('[1]SM1 - DECC Scenario 3 equiv'!R115:R121)+SUM('[1]SM1 - DECC Scenario 3 equiv'!R123:R124)+SUM('[1]SM1 - DECC Scenario 3 equiv'!R127:R127),\nSUM('[1]SM2 - DECC Scenario 1 equiv'!R115:R121)+SUM('[1]SM2 - DECC Scenario 1 equiv'!R123:R124)+SUM('[1]SM2 - DECC Scenario 1 equiv'!R127:R127),\nSUM('[1]SM3 - DECC Scenario 2 equiv'!R115:R121)+SUM('[1]SM3 - DECC Scenario 2 equiv'!R123:R124)+SUM('[1]SM3 - DECC Scenario 2 equiv'!R127:R127),\nSUM('[1]SM4 - DNO Scenario 4 equiv'!R115:R121)+SUM('[1]SM4 - DNO Scenario 4 equiv'!R123:R124)+SUM('[1]SM4 - DNO Scenario 4 equiv'!R127:R127),\nSUM('[2]M1a - Model inputs'!R115:R121)+SUM('[2]M1a - Model inputs'!R123:R124)+SUM('[2]M1a - Model inputs'!R127:R127),\nSUM('[2]M1b - Model inputs'!R115:R121)+SUM('[2]M1b - Model inputs'!R123:R124)+SUM('[2]M1b - Model inputs'!R127:R127),\nSUM('[2]SM1 - DECC Scenario 3 equiv'!R115:R121)+SUM('[2]SM1 - DECC Scenario 3 equiv'!R123:R124)+SUM('[2]SM1 - DECC Scenario 3 equiv'!R127:R127),\nSUM('[2]SM2 - DECC Scenario 1 equiv'!R115:R121)+SUM('[2]SM2 - DECC Scenario 1 equiv'!R123:R124)+SUM('[2]SM2 - DECC Scenario 1 equiv'!R127:R127),\nSUM('[2]SM3 - DECC Scenario 2 equiv'!R115:R121)+SUM('[2]SM3 - DECC Scenario 2 equiv'!R123:R124)+SUM('[2]SM3 - DECC Scenario 2 equiv'!R127:R127),\nSUM('[2]SM4 - DNO Scenario 4 equiv'!R115:R121)+SUM('[2]SM4 - DNO Scenario 4 equiv'!R123:R124)+SUM('[2]SM4 - DNO Scenario 4 equiv'!R127:R127))","v":42.980108510325216},{"$f":"CHOOSE(view,\nSUM('[1]M1a - Model inputs'!S115:S121)+SUM('[1]M1a - Model inputs'!S123:S124)+SUM('[1]M1a - Model inputs'!S127:S127),\nSUM('[1]M1b - Model inputs'!S115:S121)+SUM('[1]M1b - Model inputs'!S123:S124)+SUM('[1]M1b - Model inputs'!S127:S127),\nSUM('[1]SM1 - DECC Scenario 3 equiv'!S115:S121)+SUM('[1]SM1 - DECC Scenario 3 equiv'!S123:S124)+SUM('[1]SM1 - DECC Scenario 3 equiv'!S127:S127),\nSUM('[1]SM2 - DECC Scenario 1 equiv'!S115:S121)+SUM('[1]SM2 - DECC Scenario 1 equiv'!S123:S124)+SUM('[1]SM2 - DECC Scenario 1 equiv'!S127:S127),\nSUM('[1]SM3 - DECC Scenario 2 equiv'!S115:S121)+SUM('[1]SM3 - DECC Scenario 2 equiv'!S123:S124)+SUM('[1]SM3 - DECC Scenario 2 equiv'!S127:S127),\nSUM('[1]SM4 - DNO Scenario 4 equiv'!S115:S121)+SUM('[1]SM4 - DNO Scenario 4 equiv'!S123:S124)+SUM('[1]SM4 - DNO Scenario 4 equiv'!S127:S127),\nSUM('[2]M1a - Model inputs'!S115:S121)+SUM('[2]M1a - Model inputs'!S123:S124)+SUM('[2]M1a - Model inputs'!S127:S127),\nSUM('[2]M1b - Model inputs'!S115:S121)+SUM('[2]M1b - Model inputs'!S123:S124)+SUM('[2]M1b - Model inputs'!S127:S127),\nSUM('[2]SM1 - DECC Scenario 3 equiv'!S115:S121)+SUM('[2]SM1 - DECC Scenario 3 equiv'!S123:S124)+SUM('[2]SM1 - DECC Scenario 3 equiv'!S127:S127),\nSUM('[2]SM2 - DECC Scenario 1 equiv'!S115:S121)+SUM('[2]SM2 - DECC Scenario 1 equiv'!S123:S124)+SUM('[2]SM2 - DECC Scenario 1 equiv'!S127:S127),\nSUM('[2]SM3 - DECC Scenario 2 equiv'!S115:S121)+SUM('[2]SM3 - DECC Scenario 2 equiv'!S123:S124)+SUM('[2]SM3 - DECC Scenario 2 equiv'!S127:S127),\nSUM('[2]SM4 - DNO Scenario 4 equiv'!S115:S121)+SUM('[2]SM4 - DNO Scenario 4 equiv'!S123:S124)+SUM('[2]SM4 - DNO Scenario 4 equiv'!S127:S127))","v":43.64909697437092}]
[null,null,null,null,"Non-controllable opex (Exit Charges)",null,"£m 12/13 prices",null,null,null,null,null,null,null,null,null,null,null,null,null,null,null,null,null,null,null,null,null,null,null,null,null,null,null,null,{"$f":"AJ29","v":12.740947203483326},{"$f":"AK29","v":13.013503978483328},13.154379203483327,13.174095203483327,13.548095203483326,14.122295203483327,14.122295203483327,14.122295203483327]
[null,null,null,null,"Non-controllable opex",null,"£m 12/13 prices",null,null,null,null,null,null,null,null,null,null,null,null,null,null,null,null,null,null,null,null,null,null,null,null,null,null,null,null,{"$f":"SUM(AJ207:AJ208)","v":41.027809683461783},{"$f":"SUM(AK207:AK208)","v":41.372733789158211},44.491559846746767,49.815326395288039,56.426160748289291,57.715649087288497,57.102403713808542,57.771392177854246]
[]
[null,"Direct allowed revenue terms (DARTs)"]
[]
[null,null,null,null,{"$f":"E30","v":"Pension scheme established deficit revenue allowances"},null,"£m 12/13 prices",null,null,null,null,null,null,null,null,null,null,null,null,null,null,null,null,null,null,null,null,null,null,null,null,null,null,null,null,{"$f":"AJ30","v":23.680990303886606},23.680990303886606,23.680990303886606,23.680990303886606,23.680990303886606,23.680990303886606,23.680990303886606,23.680990303886606]
[]
[null,null,null,null,"Pension true-up from previous price controls",null,"£m 12/13 prices"]
[]
[null,null,null,null,{"$f":"Input!E217","v":"Revenue adjustment from previous controls (Base)"},null,"£m 12/13 prices",null,null,null,null,null,null,null,null,null,null,null,null,null,null,null,null,null,null,null,null,null,null,null,null,null,null,null,null,{"$f":"[4]DirectedValues!K19","v":0.67007932912061052},{"$f":"[4]DirectedValues!L19","v":0.69851079505519797},{"$f":"[4]DirectedValues!M19","v":0.72814860808938997},{"$f":"[4]DirectedValues!N19","v":0.75904395353062282},{"$f":"[4]DirectedValues!O19","v":0.79125018847892703},{"$f":"[4]DirectedValues!P19","v":0.82482293397608775},{"$f":"[4]DirectedValues!Q19","v":0.85982017106469333},{"$f":"[4]DirectedValues!R19","v":0.89630234092296812}]
[null,null,null,null,{"$f":"Input!E218","v":"Legacy price control allowed revenue adjustment"},null,"£m 12/13 prices",null,null,null,null,null,null,null,null,null,null,null,null,null,null,null,null,null,null,null,null,null,null,null,null,null,null,null,null,{"$f":"$AJ$31/8*(1+AJ48)^ROUND((AJ7-$AJ7)/365,1)","v":0},0,0,0,0,0,0,0]
[null,null,null,null,"Revenue adjustment from previous controls",null,"£m 12/13 prices",null,null,null,null,null,null,null,null,null,null,null,null,null,null,null,null,null,null,null,null,null,null,null,null,null,null,null,null,{"$f":"AJ217+AJ218","v":0.67007932912061052},{"$f":"AK217+AK218","v":0.69851079505519797},0.72814860808938997,0.75904395353062282,0.79125018847892703,0.82482293397608775,0.85982017106469333,0.89630234092296812]
[]
[null,null,null,null,{"$f":"Input!E221","v":"Legacy Losses Incentive"},null,"£m 12/13 prices"]
[]
[null,null,null,null,{"$f":"Input!E223","v":"ES7 (Miscellaneous) revenue"},null,"£m 12/13 prices",null,null,null,null,null,null,null,null,null,null,null,null,null,null,null,null,null,null,null,null,null,null,null,null,null,null,null,null,{"$f":"CHOOSE(view,\n'[1]M1a - Model inputs'!L157,\n'[1]M1b - Model inputs'!L157,\n'[1]SM1 - DECC Scenario 3 equiv'!L157,\n'[1]SM2 - DECC Scenario 1 equiv'!L157,\n'[1]SM3 - DECC Scenario 2 equiv'!L157,\n'[1]SM4 - DNO Scenario 4 equiv'!L157,\n'[2]M1a - Model inputs'!L157,\n'[2]M1b - Model inputs'!L157,\n'[2]SM1 - DECC Scenario 3 equiv'!L157,\n'[2]SM2 - DECC Scenario 1 equiv'!L157,\n'[2]SM3 - DECC Scenario 2 equiv'!L157,\n'[2]SM4 - DNO Scenario 4 equiv'!L157)","v":0},{"$f":"CHOOSE(view,\n'[1]M1a - Model inputs'!M157,\n'[1]M1b - Model inputs'!M157,\n'[1]SM1 - DECC Scenario 3 equiv'!M157,\n'[1]SM2 - DECC Scenario 1 equiv'!M157,\n'[1]SM3 - DECC Scenario 2 equiv'!M157,\n'[1]SM4 - DNO Scenario 4 equiv'!M157,\n'[2]M1a - Model inputs'!M157,\n'[2]M1b - Model inputs'!M157,\n'[2]SM1 - DECC Scenario 3 equiv'!M157,\n'[2]SM2 - DECC Scenario 1 equiv'!M157,\n'[2]SM3 - DECC Scenario 2 equiv'!M157,\n'[2]SM4 - DNO Scenario 4 equiv'!M157)","v":0},{"$f":"CHOOSE(view,\n'[1]M1a - Model inputs'!N157,\n'[1]M1b - Model inputs'!N157,\n'[1]SM1 - DECC Scenario 3 equiv'!N157,\n'[1]SM2 - DECC Scenario 1 equiv'!N157,\n'[1]SM3 - DECC Scenario 2 equiv'!N157,\n'[1]SM4 - DNO Scenario 4 equiv'!N157,\n'[2]M1a - Model inputs'!N157,\n'[2]M1b - Model inputs'!N157,\n'[2]SM1 - DECC Scenario 3 equiv'!N157,\n'[2]SM2 - DECC Scenario 1 equiv'!N157,\n'[2]SM3 - DECC Scenario 2 equiv'!N157,\n'[2]SM4 - DNO Scenario 4 equiv'!N157)","v":0},{"$f":"CHOOSE(view,\n'[1]M1a - Model inputs'!O157,\n'[1]M1b - Model inputs'!O157,\n'[1]SM1 - DECC Scenario 3 equiv'!O157,\n'[1]SM2 - DECC Scenario 1 equiv'!O157,\n'[1]SM3 - DECC Scenario 2 equiv'!O157,\n'[1]SM4 - DNO Scenario 4 equiv'!O157,\n'[2]M1a - Model inputs'!O157,\n'[2]M1b - Model inputs'!O157,\n'[2]SM1 - DECC Scenario 3 equiv'!O157,\n'[2]SM2 - DECC Scenario 1 equiv'!O157,\n'[2]SM3 - DECC Scenario 2 equiv'!O157,\n'[2]SM4 - DNO Scenario 4 equiv'!O157)","v":0},{"$f":"CHOOSE(view,\n'[1]M1a - Model inputs'!P157,\n'[1]M1b - Model inputs'!P157,\n'[1]SM1 - DECC Scenario 3 equiv'!P157,\n'[1]SM2 - DECC Scenario 1 equiv'!P157,\n'[1]SM3 - DECC Scenario 2 equiv'!P157,\n'[1]SM4 - DNO Scenario 4 equiv'!P157,\n'[2]M1a - Model inputs'!P157,\n'[2]M1b - Model inputs'!P157,\n'[2]SM1 - DECC Scenario 3 equiv'!P157,\n'[2]SM2 - DECC Scenario 1 equiv'!P157,\n'[2]SM3 - DECC Scenario 2 equiv'!P157,\n'[2]SM4 - DNO Scenario 4 equiv'!P157)","v":0},{"$f":"CHOOSE(view,\n'[1]M1a - Model inputs'!Q157,\n'[1]M1b - Model inputs'!Q157,\n'[1]SM1 - DECC Scenario 3 equiv'!Q157,\n'[1]SM2 - DECC Scenario 1 equiv'!Q157,\n'[1]SM3 - DECC Scenario 2 equiv'!Q157,\n'[1]SM4 - DNO Scenario 4 equiv'!Q157,\n'[2]M1a - Model inputs'!Q157,\n'[2]M1b - Model inputs'!Q157,\n'[2]SM1 - DECC Scenario 3 equiv'!Q157,\n'[2]SM2 - DECC Scenario 1 equiv'!Q157,\n'[2]SM3 - DECC Scenario 2 equiv'!Q157,\n'[2]SM4 - DNO Scenario 4 equiv'!Q157)","v":0},{"$f":"CHOOSE(view,\n'[1]M1a - Model inputs'!R157,\n'[1]M1b - Model inputs'!R157,\n'[1]SM1 - DECC Scenario 3 equiv'!R157,\n'[1]SM2 - DECC Scenario 1 equiv'!R157,\n'[1]SM3 - DECC Scenario 2 equiv'!R157,\n'[1]SM4 - DNO Scenario 4 equiv'!R157,\n'[2]M1a - Model inputs'!R157,\n'[2]M1b - Model inputs'!R157,\n'[2]SM1 - DECC Scenario 3 equiv'!R157,\n'[2]SM2 - DECC Scenario 1 equiv'!R157,\n'[2]SM3 - DECC Scenario 2 equiv'!R157,\n'[2]SM4 - DNO Scenario 4 equiv'!R157)","v":0},{"$f":"CHOOSE(view,\n'[1]M1a - Model inputs'!S157,\n'[1]M1b - Model inputs'!S157,\n'[1]SM1 - DECC Scenario 3 equiv'!S157,\n'[1]SM2 - DECC Scenario 1 equiv'!S157,\n'[1]SM3 - DECC Scenario 2 equiv'!S157,\n'[1]SM4 - DNO Scenario 4 equiv'!S157,\n'[2]M1a - Model inputs'!S157,\n'[2]M1b - Model inputs'!S157,\n'[2]SM1 - DECC Scenario 3 equiv'!S157,\n'[2]SM2 - DECC Scenario 1 equiv'!S157,\n'[2]SM3 - DECC Scenario 2 equiv'!S157,\n'[2]SM4 - DNO Scenario 4 equiv'!S157)","v":0}]
[null,null,null,null,{"$f":"Input!E224","v":"ES7 (Miscellaneous) assumed costs"},null,"£m 12/13 prices",null,null,null,null,null,null,null,null,null,null,null,null,null,null,null,null,null,null,null,null,null,null,null,null,null,null,null,null,{"$f":"AJ223","v":0},{"$f":"AK223","v":0},0,0,0,0,0,0]
[null,null,null,null,{"$f":"Input!E225","v":"ES7 (Miscellaneous) net position"},null,"£m 12/13 prices",null,null,null,null,null,null,null,null,null,null,null,null,null,null,null,null,null,null,null,null,null,null,null,null,null,null,null,null,{"$f":"SUM(AJ223, -AJ224)","v":0},{"$f":"SUM(AK223, -AK224)","v":0},0,0,0,0,0,0]
[]
[null,null,null,null,{"$f":"Input!E227","v":"Directly Remunerated Services"}]
[]
[null,null,null,null,{"$f":"Input!E229","v":"Element of connection that is Sole Use funded revenue"},null,{"$f":"Input!G229","v":"£m 12/13 prices"},null,null,null,null,null,null,null,null,null,null,null,null,null,null,null,null,null,null,null,null,null,null,null,null,null,null,null,null,{"$f":"AJ230","v":0.13128239250027463},{"$f":"AK230","v":0.1131834737252122},0.10841322702582801,8.1465323642587961E-2,4.7295246634403654E-2,2.7680756072324009E-2,-4.7070192078892958E-3,-4.247732229471346E-2]
[null,null,null,null,{"$f":"Input!E230","v":"Element of connection that is Sole Use funded costs"},null,{"$f":"Input!G230","v":"£m 12/13 prices"},null,null,null,null,null,null,null,null,null,null,null,null,null,null,null,null,null,null,null,null,null,null,null,null,null,null,null,null,{"$f":"CHOOSE(view,\n'[1]M1a - Model inputs'!L111,\n'[1]M1b - Model inputs'!L111,\n'[1]SM1 - DECC Scenario 3 equiv'!L111,\n'[1]SM2 - DECC Scenario 1 equiv'!L111,\n'[1]SM3 - DECC Scenario 2 equiv'!L111,\n'[1]SM4 - DNO Scenario 4 equiv'!L111,\n'[2]M1a - Model inputs'!L111,\n'[2]M1b - Model inputs'!L111,\n'[2]SM1 - DECC Scenario 3 equiv'!L111,\n'[2]SM2 - DECC Scenario 1 equiv'!L111,\n'[2]SM3 - DECC Scenario 2 equiv'!L111,\n'[2]SM4 - DNO Scenario 4 equiv'!L111)","v":0.13128239250027463},{"$f":"CHOOSE(view,\n'[1]M1a - Model inputs'!M111,\n'[1]M1b - Model inputs'!M111,\n'[1]SM1 - DECC Scenario 3 equiv'!M111,\n'[1]SM2 - DECC Scenario 1 equiv'!M111,\n'[1]SM3 - DECC Scenario 2 equiv'!M111,\n'[1]SM4 - DNO Scenario 4 equiv'!M111,\n'[2]M1a - Model inputs'!M111,\n'[2]M1b - Model inputs'!M111,\n'[2]SM1 - DECC Scenario 3 equiv'!M111,\n'[2]SM2 - DECC Scenario 1 equiv'!M111,\n'[2]SM3 - DECC Scenario 2 equiv'!M111,\n'[2]SM4 - DNO Scenario 4 equiv'!M111)","v":0.1131834737252122},{"$f":"CHOOSE(view,\n'[1]M1a - Model inputs'!N111,\n'[1]M1b - Model inputs'!N111,\n'[1]SM1 - DECC Scenario 3 equiv'!N111,\n'[1]SM2 - DECC Scenario 1 equiv'!N111,\n'[1]SM3 - DECC Scenario 2 equiv'!N111,\n'[1]SM4 - DNO Scenario 4 equiv'!N111,\n'[2]M1a - Model inputs'!N111,\n'[2]M1b - Model inputs'!N111,\n'[2]SM1 - DECC Scenario 3 equiv'!N111,\n'[2]SM2 - DECC Scenario 1 equiv'!N111,\n'[2]SM3 - DECC Scenario 2 equiv'!N111,\n'[2]SM4 - DNO Scenario 4 equiv'!N111)","v":0.10841322702582801},{"$f":"CHOOSE(view,\n'[1]M1a - Model inputs'!O111,\n'[1]M1b - Model inputs'!O111,\n'[1]SM1 - DECC Scenario 3 equiv'!O111,\n'[1]SM2 - DECC Scenario 1 equiv'!O111,\n'[1]SM3 - DECC Scenario 2 equiv'!O111,\n'[1]SM4 - DNO Scenario 4 equiv'!O111,\n'[2]M1a - Model inputs'!O111,\n'[2]M1b - Model inputs'!O111,\n'[2]SM1 - DECC Scenario 3 equiv'!O111,\n'[2]SM2 - DECC Scenario 1 equiv'!O111,\n'[2]SM3 - DECC Scenario 2 equiv'!O111,\n'[2]SM4 - DNO Scenario 4 equiv'!O111)","v":8.1465323642587961E-2},{"$f":"CHOOSE(view,\n'[1]M1a - Model inputs'!P111,\n'[1]M1b - Model inputs'!P111,\n'[1]SM1 - DECC Scenario 3 equiv'!P111,\n'[1]SM2 - DECC Scenario 1 equiv'!P111,\n'[1]SM3 - DECC Scenario 2 equiv'!P111,\n'[1]SM4 - DNO Scenario 4 equiv'!P111,\n'[2]M1a - Model inputs'!P111,\n'[2]M1b - Model inputs'!P111,\n'[2]SM1 - DECC Scenario 3 equiv'!P111,\n'[2]SM2 - DECC Scenario 1 equiv'!P111,\n'[2]SM3 - DECC Scenario 2 equiv'!P111,\n'[2]SM4 - DNO Scenario 4 equiv'!P111)","v":4.7295246634403654E-2},{"$f":"CHOOSE(view,\n'[1]M1a - Model inputs'!Q111,\n'[1]M1b - Model inputs'!Q111,\n'[1]SM1 - DECC Scenario 3 equiv'!Q111,\n'[1]SM2 - DECC Scenario 1 equiv'!Q111,\n'[1]SM3 - DECC Scenario 2 equiv'!Q111,\n'[1]SM4 - DNO Scenario 4 equiv'!Q111,\n'[2]M1a - Model inputs'!Q111,\n'[2]M1b - Model inputs'!Q111,\n'[2]SM1 - DECC Scenario 3 equiv'!Q111,\n'[2]SM2 - DECC Scenario 1 equiv'!Q111,\n'[2]SM3 - DECC Scenario 2 equiv'!Q111,\n'[2]SM4 - DNO Scenario 4 equiv'!Q111)","v":2.7680756072324009E-2},{"$f":"CHOOSE(view,\n'[1]M1a - Model inputs'!R111,\n'[1]M1b - Model inputs'!R111,\n'[1]SM1 - DECC Scenario 3 equiv'!R111,\n'[1]SM2 - DECC Scenario 1 equiv'!R111,\n'[1]SM3 - DECC Scenario 2 equiv'!R111,\n'[1]SM4 - DNO Scenario 4 equiv'!R111,\n'[2]M1a - Model inputs'!R111,\n'[2]M1b - Model inputs'!R111,\n'[2]SM1 - DECC Scenario 3 equiv'!R111,\n'[2]SM2 - DECC Scenario 1 equiv'!R111,\n'[2]SM3 - DECC Scenario 2 equiv'!R111,\n'[2]SM4 - DNO Scenario 4 equiv'!R111)","v":-4.7070192078892958E-3},{"$f":"CHOOSE(view,\n'[1]M1a - Model inputs'!S111,\n'[1]M1b - Model inputs'!S111,\n'[1]SM1 - DECC Scenario 3 equiv'!S111,\n'[1]SM2 - DECC Scenario 1 equiv'!S111,\n'[1]SM3 - DECC Scenario 2 equiv'!S111,\n'[1]SM4 - DNO Scenario 4 equiv'!S111,\n'[2]M1a - Model inputs'!S111,\n'[2]M1b - Model inputs'!S111,\n'[2]SM1 - DECC Scenario 3 equiv'!S111,\n'[2]SM2 - DECC Scenario 1 equiv'!S111,\n'[2]SM3 - DECC Scenario 2 equiv'!S111,\n'[2]SM4 - DNO Scenario 4 equiv'!S111)","v":-4.247732229471346E-2}]
[null,null,null,null,{"$f":"Input!E231","v":"Element of connection that is Sole Use funded net position"},null,{"$f":"Input!G231","v":"£m 12/13 prices"},null,null,null,null,null,null,null,null,null,null,null,null,null,null,null,null,null,null,null,null,null,null,null,null,null,null,null,null,{"$f":"SUM(AJ229, -AJ230)","v":0},{"$f":"SUM(AK229, -AK230)","v":0},0,0,0,0,0,0]
[]
[null,null,null,null,{"$f":"Input!E233","v":"Connection projects UMC revenue"},null,{"$f":"Input!G233","v":"£m 12/13 prices"},null,null,null,null,null,null,null,null,null,null,null,null,null,null,null,null,null,null,null,null,null,null,null,null,null,null,null,null,{"$f":"AJ234","v":1.3482063926114285E-2},{"$f":"AK234","v":1.0979053142279649E-2},{"$f":"AL234","v":9.3829729375008997E-3},{"$f":"AM234","v":5.7173405938688582E-3},{"$f":"AN234","v":2.170606297263622E-3},{"$f":"AO234","v":-2.6798187968690712E-5},{"$f":"AP234","v":-4.026488645773596E-3},{"$f":"AQ234","v":-8.3812195665171618E-3}]
[null,null,null,null,{"$f":"Input!E234","v":"Connection projects UMC costs"},null,{"$f":"Input!G234","v":"£m 12/13 prices"},null,null,null,null,null,null,null,null,null,null,null,null,null,null,null,null,null,null,null,null,null,null,null,null,null,null,null,null,{"$f":"CHOOSE(view,\n'[1]M1a - Model inputs'!L112,\n'[1]M1b - Model inputs'!L112,\n'[1]SM1 - DECC Scenario 3 equiv'!L112,\n'[1]SM2 - DECC Scenario 1 equiv'!L112,\n'[1]SM3 - DECC Scenario 2 equiv'!L112,\n'[1]SM4 - DNO Scenario 4 equiv'!L112,\n'[2]M1a - Model inputs'!L112,\n'[2]M1b - Model inputs'!L112,\n'[2]SM1 - DECC Scenario 3 equiv'!L112,\n'[2]SM2 - DECC Scenario 1 equiv'!L112,\n'[2]SM3 - DECC Scenario 2 equiv'!L112,\n'[2]SM4 - DNO Scenario 4 equiv'!L112)","v":1.3482063926114285E-2},{"$f":"CHOOSE(view,\n'[1]M1a - Model inputs'!M112,\n'[1]M1b - Model inputs'!M112,\n'[1]SM1 - DECC Scenario 3 equiv'!M112,\n'[1]SM2 - DECC Scenario 1 equiv'!M112,\n'[1]SM3 - DECC Scenario 2 equiv'!M112,\n'[1]SM4 - DNO Scenario 4 equiv'!M112,\n'[2]M1a - Model inputs'!M112,\n'[2]M1b - Model inputs'!M112,\n'[2]SM1 - DECC Scenario 3 equiv'!M112,\n'[2]SM2 - DECC Scenario 1 equiv'!M112,\n'[2]SM3 - DECC Scenario 2 equiv'!M112,\n'[2]SM4 - DNO Scenario 4 equiv'!M112)","v":1.0979053142279649E-2},{"$f":"CHOOSE(view,\n'[1]M1a - Model inputs'!N112,\n'[1]M1b - Model inputs'!N112,\n'[1]SM1 - DECC Scenario 3 equiv'!N112,\n'[1]SM2 - DECC Scenario 1 equiv'!N112,\n'[1]SM3 - DECC Scenario 2 equiv'!N112,\n'[1]SM4 - DNO Scenario 4 equiv'!N112,\n'[2]M1a - Model inputs'!N112,\n'[2]M1b - Model inputs'!N112,\n'[2]SM1 - DECC Scenario 3 equiv'!N112,\n'[2]SM2 - DECC Scenario 1 equiv'!N112,\n'[2]SM3 - DECC Scenario 2 equiv'!N112,\n'[2]SM4 - DNO Scenario 4 equiv'!N112)","v":9.3829729375008997E-3},{"$f":"CHOOSE(view,\n'[1]M1a - Model inputs'!O112,\n'[1]M1b - Model inputs'!O112,\n'[1]SM1 - DECC Scenario 3 equiv'!O112,\n'[1]SM2 - DECC Scenario 1 equiv'!O112,\n'[1]SM3 - DECC Scenario 2 equiv'!O112,\n'[1]SM4 - DNO Scenario 4 equiv'!O112,\n'[2]M1a - Model inputs'!O112,\n'[2]M1b - Model inputs'!O112,\n'[2]SM1 - DECC Scenario 3 equiv'!O112,\n'[2]SM2 - DECC Scenario 1 equiv'!O112,\n'[2]SM3 - DECC Scenario 2 equiv'!O112,\n'[2]SM4 - DNO Scenario 4 equiv'!O112)","v":5.7173405938688582E-3},{"$f":"CHOOSE(view,\n'[1]M1a - Model inputs'!P112,\n'[1]M1b - Model inputs'!P112,\n'[1]SM1 - DECC Scenario 3 equiv'!P112,\n'[1]SM2 - DECC Scenario 1 equiv'!P112,\n'[1]SM3 - DECC Scenario 2 equiv'!P112,\n'[1]SM4 - DNO Scenario 4 equiv'!P112,\n'[2]M1a - Model inputs'!P112,\n'[2]M1b - Model inputs'!P112,\n'[2]SM1 - DECC Scenario 3 equiv'!P112,\n'[2]SM2 - DECC Scenario 1 equiv'!P112,\n'[2]SM3 - DECC Scenario 2 equiv'!P112,\n'[2]SM4 - DNO Scenario 4 equiv'!P112)","v":2.170606297263622E-3},{"$f":"CHOOSE(view,\n'[1]M1a - Model inputs'!Q112,\n'[1]M1b - Model inputs'!Q112,\n'[1]SM1 - DECC Scenario 3 equiv'!Q112,\n'[1]SM2 - DECC Scenario 1 equiv'!Q112,\n'[1]SM3 - DECC Scenario 2 equiv'!Q112,\n'[1]SM4 - DNO Scenario 4 equiv'!Q112,\n'[2]M1a - Model inputs'!Q112,\n'[2]M1b - Model inputs'!Q112,\n'[2]SM1 - DECC Scenario 3 equiv'!Q112,\n'[2]SM2 - DECC Scenario 1 equiv'!Q112,\n'[2]SM3 - DECC Scenario 2 equiv'!Q112,\n'[2]SM4 - DNO Scenario 4 equiv'!Q112)","v":-2.6798187968690712E-5},{"$f":"CHOOSE(view,\n'[1]M1a - Model inputs'!R112,\n'[1]M1b - Model inputs'!R112,\n'[1]SM1 - DECC Scenario 3 equiv'!R112,\n'[1]SM2 - DECC Scenario 1 equiv'!R112,\n'[1]SM3 - DECC Scenario 2 equiv'!R112,\n'[1]SM4 - DNO Scenario 4 equiv'!R112,\n'[2]M1a - Model inputs'!R112,\n'[2]M1b - Model inputs'!R112,\n'[2]SM1 - DECC Scenario 3 equiv'!R112,\n'[2]SM2 - DECC Scenario 1 equiv'!R112,\n'[2]SM3 - DECC Scenario 2 equiv'!R112,\n'[2]SM4 - DNO Scenario 4 equiv'!R112)","v":-4.026488645773596E-3},{"$f":"CHOOSE(view,\n'[1]M1a - Model inputs'!S112,\n'[1]M1b - Model inputs'!S112,\n'[1]SM1 - DECC Scenario 3 equiv'!S112,\n'[1]SM2 - DECC Scenario 1 equiv'!S112,\n'[1]SM3 - DECC Scenario 2 equiv'!S112,\n'[1]SM4 - DNO Scenario 4 equiv'!S112,\n'[2]M1a - Model inputs'!S112,\n'[2]M1b - Model inputs'!S112,\n'[2]SM1 - DECC Scenario 3 equiv'!S112,\n'[2]SM2 - DECC Scenario 1 equiv'!S112,\n'[2]SM3 - DECC Scenario 2 equiv'!S112,\n'[2]SM4 - DNO Scenario 4 equiv'!S112)","v":-8.3812195665171618E-3}]
[null,null,null,null,{"$f":"Input!E235","v":"Connection projects UMC net position"},null,{"$f":"Input!G235","v":"£m 12/13 prices"},null,null,null,null,null,null,null,null,null,null,null,null,null,null,null,null,null,null,null,null,null,null,null,null,null,null,null,null,{"$f":"SUM(AJ233, -AJ234)","v":0},{"$f":"SUM(AK233, -AK234)","v":0},0,0,0,0,0,0]
[]
[null,null,null,null,{"$f":"Input!E237","v":"Diversionary works under obligation (ES2) revenue"},null,{"$f":"Input!G237","v":"£m 12/13 prices"},null,null,null,null,null,null,null,null,null,null,null,null,null,null,null,null,null,null,null,null,null,null,null,null,null,null,null,null,{"$f":"CHOOSE(view,\n'[1]M1a - Model inputs'!L$144,\n'[1]M1b - Model inputs'!L$144,\n'[1]SM1 - DECC Scenario 3 equiv'!L$144,\n'[1]SM2 - DECC Scenario 1 equiv'!L$144,\n'[1]SM3 - DECC Scenario 2 equiv'!L$144,\n'[1]SM4 - DNO Scenario 4 equiv'!L$144,\n'[2]M1a - Model inputs'!L$144,\n'[2]M1b - Model inputs'!L$144,\n'[2]SM1 - DECC Scenario 3 equiv'!L$144,\n'[2]SM2 - DECC Scenario 1 equiv'!L$144,\n'[2]SM3 - DECC Scenario 2 equiv'!L$144,\n'[2]SM4 - DNO Scenario 4 equiv'!L$144)","v":-3.9544211743714315},{"$f":"CHOOSE(view,\n'[1]M1a - Model inputs'!M$144,\n'[1]M1b - Model inputs'!M$144,\n'[1]SM1 - DECC Scenario 3 equiv'!M$144,\n'[1]SM2 - DECC Scenario 1 equiv'!M$144,\n'[1]SM3 - DECC Scenario 2 equiv'!M$144,\n'[1]SM4 - DNO Scenario 4 equiv'!M$144,\n'[2]M1a - Model inputs'!M$144,\n'[2]M1b - Model inputs'!M$144,\n'[2]SM1 - DECC Scenario 3 equiv'!M$144,\n'[2]SM2 - DECC Scenario 1 equiv'!M$144,\n'[2]SM3 - DECC Scenario 2 equiv'!M$144,\n'[2]SM4 - DNO Scenario 4 equiv'!M$144)","v":-12.194421174371431},{"$f":"CHOOSE(view,\n'[1]M1a - Model inputs'!N$144,\n'[1]M1b - Model inputs'!N$144,\n'[1]SM1 - DECC Scenario 3 equiv'!N$144,\n'[1]SM2 - DECC Scenario 1 equiv'!N$144,\n'[1]SM3 - DECC Scenario 2 equiv'!N$144,\n'[1]SM4 - DNO Scenario 4 equiv'!N$144,\n'[2]M1a - Model inputs'!N$144,\n'[2]M1b - Model inputs'!N$144,\n'[2]SM1 - DECC Scenario 3 equiv'!N$144,\n'[2]SM2 - DECC Scenario 1 equiv'!N$144,\n'[2]SM3 - DECC Scenario 2 equiv'!N$144,\n'[2]SM4 - DNO Scenario 4 equiv'!N$144)","v":-12.194421174371431},{"$f":"CHOOSE(view,\n'[1]M1a - Model inputs'!O$144,\n'[1]M1b - Model inputs'!O$144,\n'[1]SM1 - DECC Scenario 3 equiv'!O$144,\n'[1]SM2 - DECC Scenario 1 equiv'!O$144,\n'[1]SM3 - DECC Scenario 2 equiv'!O$144,\n'[1]SM4 - DNO Scenario 4 equiv'!O$144,\n'[2]M1a - Model inputs'!O$144,\n'[2]M1b - Model inputs'!O$144,\n'[2]SM1 - DECC Scenario 3 equiv'!O$144,\n'[2]SM2 - DECC Scenario 1 equiv'!O$144,\n'[2]SM3 - DECC Scenario 2 equiv'!O$144,\n'[2]SM4 - DNO Scenario 4 equiv'!O$144)","v":-12.194421174371431},{"$f":"CHOOSE(view,\n'[1]M1a - Model inputs'!P$144,\n'[1]M1b - Model inputs'!P$144,\n'[1]SM1 - DECC Scenario 3 equiv'!P$144,\n'[1]SM2 - DECC Scenario 1 equiv'!P$144,\n'[1]SM3 - DECC Scenario 2 equiv'!P$144,\n'[1]SM4 - DNO Scenario 4 equiv'!P$144,\n'[2]M1a - Model inputs'!P$144,\n'[2]M1b - Model inputs'!P$144,\n'[2]SM1 - DECC Scenario 3 equiv'!P$144,\n'[2]SM2 - DECC Scenario 1 equiv'!P$144,\n'[2]SM3 - DECC Scenario 2 equiv'!P$144,\n'[2]SM4 - DNO Scenario 4 equiv'!P$144)","v":-12.194421174371431},{"$f":"CHOOSE(view,\n'[1]M1a - Model inputs'!Q$144,\n'[1]M1b - Model inputs'!Q$144,\n'[1]SM1 - DECC Scenario 3 equiv'!Q$144,\n'[1]SM2 - DECC Scenario 1 equiv'!Q$144,\n'[1]SM3 - DECC Scenario 2 equiv'!Q$144,\n'[1]SM4 - DNO Scenario 4 equiv'!Q$144,\n'[2]M1a - Model inputs'!Q$144,\n'[2]M1b - Model inputs'!Q$144,\n'[2]SM1 - DECC Scenario 3 equiv'!Q$144,\n'[2]SM2 - DECC Scenario 1 equiv'!Q$144,\n'[2]SM3 - DECC Scenario 2 equiv'!Q$144,\n'[2]SM4 - DNO Scenario 4 equiv'!Q$144)","v":-12.194421174371431},{"$f":"CHOOSE(view,\n'[1]M1a - Model inputs'!R$144,\n'[1]M1b - Model inputs'!R$144,\n'[1]SM1 - DECC Scenario 3 equiv'!R$144,\n'[1]SM2 - DECC Scenario 1 equiv'!R$144,\n'[1]SM3 - DECC Scenario 2 equiv'!R$144,\n'[1]SM4 - DNO Scenario 4 equiv'!R$144,\n'[2]M1a - Model inputs'!R$144,\n'[2]M1b - Model inputs'!R$144,\n'[2]SM1 - DECC Scenario 3 equiv'!R$144,\n'[2]SM2 - DECC Scenario 1 equiv'!R$144,\n'[2]SM3 - DECC Scenario 2 equiv'!R$144,\n'[2]SM4 - DNO Scenario 4 equiv'!R$144)","v":-12.194421174371431},{"$f":"CHOOSE(view,\n'[1]M1a - Model inputs'!S$144,\n'[1]M1b - Model inputs'!S$144,\n'[1]SM1 - DECC Scenario 3 equiv'!S$144,\n'[1]SM2 - DECC Scenario 1 equiv'!S$144,\n'[1]SM3 - DECC Scenario 2 equiv'!S$144,\n'[1]SM4 - DNO Scenario 4 equiv'!S$144,\n'[2]M1a - Model inputs'!S$144,\n'[2]M1b - Model inputs'!S$144,\n'[2]SM1 - DECC Scenario 3 equiv'!S$144,\n'[2]SM2 - DECC Scenario 1 equiv'!S$144,\n'[2]SM3 - DECC Scenario 2 equiv'!S$144,\n'[2]SM4 - DNO Scenario 4 equiv'!S$144)","v":-12.194421174371431}]
[null,null,null,null,{"$f":"Input!E238","v":"Diversionary works under obligation (ES2) costs"},null,{"$f":"Input!G238","v":"£m 12/13 prices"},null,null,null,null,null,null,null,null,null,null,null,null,null,null,null,null,null,null,null,null,null,null,null,null,null,null,null,null,{"$f":"CHOOSE(view,\n'[1]M1a - Model inputs'!L$131,\n'[1]M1b - Model inputs'!L$131,\n'[1]SM1 - DECC Scenario 3 equiv'!L$131,\n'[1]SM2 - DECC Scenario 1 equiv'!L$131,\n'[1]SM3 - DECC Scenario 2 equiv'!L$131,\n'[1]SM4 - DNO Scenario 4 equiv'!L$131,\n'[2]M1a - Model inputs'!L$131,\n'[2]M1b - Model inputs'!L$131,\n'[2]SM1 - DECC Scenario 3 equiv'!L$131,\n'[2]SM2 - DECC Scenario 1 equiv'!L$131,\n'[2]SM3 - DECC Scenario 2 equiv'!L$131,\n'[2]SM4 - DNO Scenario 4 equiv'!L$131)","v":0},{"$f":"CHOOSE(view,\n'[1]M1a - Model inputs'!M$131,\n'[1]M1b - Model inputs'!M$131,\n'[1]SM1 - DECC Scenario 3 equiv'!M$131,\n'[1]SM2 - DECC Scenario 1 equiv'!M$131,\n'[1]SM3 - DECC Scenario 2 equiv'!M$131,\n'[1]SM4 - DNO Scenario 4 equiv'!M$131,\n'[2]M1a - Model inputs'!M$131,\n'[2]M1b - Model inputs'!M$131,\n'[2]SM1 - DECC Scenario 3 equiv'!M$131,\n'[2]SM2 - DECC Scenario 1 equiv'!M$131,\n'[2]SM3 - DECC Scenario 2 equiv'!M$131,\n'[2]SM4 - DNO Scenario 4 equiv'!M$131)","v":0},{"$f":"CHOOSE(view,\n'[1]M1a - Model inputs'!N$131,\n'[1]M1b - Model inputs'!N$131,\n'[1]SM1 - DECC Scenario 3 equiv'!N$131,\n'[1]SM2 - DECC Scenario 1 equiv'!N$131,\n'[1]SM3 - DECC Scenario 2 equiv'!N$131,\n'[1]SM4 - DNO Scenario 4 equiv'!N$131,\n'[2]M1a - Model inputs'!N$131,\n'[2]M1b - Model inputs'!N$131,\n'[2]SM1 - DECC Scenario 3 equiv'!N$131,\n'[2]SM2 - DECC Scenario 1 equiv'!N$131,\n'[2]SM3 - DECC Scenario 2 equiv'!N$131,\n'[2]SM4 - DNO Scenario 4 equiv'!N$131)","v":0},{"$f":"CHOOSE(view,\n'[1]M1a - Model inputs'!O$131,\n'[1]M1b - Model inputs'!O$131,\n'[1]SM1 - DECC Scenario 3 equiv'!O$131,\n'[1]SM2 - DECC Scenario 1 equiv'!O$131,\n'[1]SM3 - DECC Scenario 2 equiv'!O$131,\n'[1]SM4 - DNO Scenario 4 equiv'!O$131,\n'[2]M1a - Model inputs'!O$131,\n'[2]M1b - Model inputs'!O$131,\n'[2]SM1 - DECC Scenario 3 equiv'!O$131,\n'[2]SM2 - DECC Scenario 1 equiv'!O$131,\n'[2]SM3 - DECC Scenario 2 equiv'!O$131,\n'[2]SM4 - DNO Scenario 4 equiv'!O$131)","v":0},{"$f":"CHOOSE(view,\n'[1]M1a - Model inputs'!P$131,\n'[1]M1b - Model inputs'!P$131,\n'[1]SM1 - DECC Scenario 3 equiv'!P$131,\n'[1]SM2 - DECC Scenario 1 equiv'!P$131,\n'[1]SM3 - DECC Scenario 2 equiv'!P$131,\n'[1]SM4 - DNO Scenario 4 equiv'!P$131,\n'[2]M1a - Model inputs'!P$131,\n'[2]M1b - Model inputs'!P$131,\n'[2]SM1 - DECC Scenario 3 equiv'!P$131,\n'[2]SM2 - DECC Scenario 1 equiv'!P$131,\n'[2]SM3 - DECC Scenario 2 equiv'!P$131,\n'[2]SM4 - DNO Scenario 4 equiv'!P$131)","v":0},{"$f":"CHOOSE(view,\n'[1]M1a - Model inputs'!Q$131,\n'[1]M1b - Model inputs'!Q$131,\n'[1]SM1 - DECC Scenario 3 equiv'!Q$131,\n'[1]SM2 - DECC Scenario 1 equiv'!Q$131,\n'[1]SM3 - DECC Scenario 2 equiv'!Q$131,\n'[1]SM4 - DNO Scenario 4 equiv'!Q$131,\n'[2]M1a - Model inputs'!Q$131,\n'[2]M1b - Model inputs'!Q$131,\n'[2]SM1 - DECC Scenario 3 equiv'!Q$131,\n'[2]SM2 - DECC Scenario 1 equiv'!Q$131,\n'[2]SM3 - DECC Scenario 2 equiv'!Q$131,\n'[2]SM4 - DNO Scenario 4 equiv'!Q$131)","v":0},{"$f":"CHOOSE(view,\n'[1]M1a - Model inputs'!R$131,\n'[1]M1b - Model inputs'!R$131,\n'[1]SM1 - DECC Scenario 3 equiv'!R$131,\n'[1]SM2 - DECC Scenario 1 equiv'!R$131,\n'[1]SM3 - DECC Scenario 2 equiv'!R$131,\n'[1]SM4 - DNO Scenario 4 equiv'!R$131,\n'[2]M1a - Model inputs'!R$131,\n'[2]M1b - Model inputs'!R$131,\n'[2]SM1 - DECC Scenario 3 equiv'!R$131,\n'[2]SM2 - DECC Scenario 1 equiv'!R$131,\n'[2]SM3 - DECC Scenario 2 equiv'!R$131,\n'[2]SM4 - DNO Scenario 4 equiv'!R$131)","v":0},{"$f":"CHOOSE(view,\n'[1]M1a - Model inputs'!S$131,\n'[1]M1b - Model inputs'!S$131,\n'[1]SM1 - DECC Scenario 3 equiv'!S$131,\n'[1]SM2 - DECC Scenario 1 equiv'!S$131,\n'[1]SM3 - DECC Scenario 2 equiv'!S$131,\n'[1]SM4 - DNO Scenario 4 equiv'!S$131,\n'[2]M1a - Model inputs'!S$131,\n'[2]M1b - Model inputs'!S$131,\n'[2]SM1 - DECC Scenario 3 equiv'!S$131,\n'[2]SM2 - DECC Scenario 1 equiv'!S$131,\n'[2]SM3 - DECC Scenario 2 equiv'!S$131,\n'[2]SM4 - DNO Scenario 4 equiv'!S$131)","v":0}]
[null,null,null,null,{"$f":"Input!E239","v":"Diversionary works under obligation (ES2) net position"},null,{"$f":"Input!G239","v":"£m 12/13 prices"},null,null,null,null,null,null,null,null,null,null,null,null,null,null,null,null,null,null,null,null,null,null,null,null,null,null,null,null,{"$f":"SUM(AJ237, -AJ238)","v":-3.9544211743714315},{"$f":"SUM(AK237, -AK238)","v":-12.194421174371431},-12.194421174371431,-12.194421174371431,-12.194421174371431,-12.194421174371431,-12.194421174371431,-12.194421174371431]
[]
[null,null,null,null,{"$f":"Input!E241","v":"Work required by any alteration premises (ES3) revenue"},null,{"$f":"Input!G241","v":"£m 12/13 prices"},null,null,null,null,null,null,null,null,null,null,null,null,null,null,null,null,null,null,null,null,null,null,null,null,null,null,null,null,{"$f":"CHOOSE(view,\n'[1]M1a - Model inputs'!L$145,\n'[1]M1b - Model inputs'!L$145,\n'[1]SM1 - DECC Scenario 3 equiv'!L$145,\n'[1]SM2 - DECC Scenario 1 equiv'!L$145,\n'[1]SM3 - DECC Scenario 2 equiv'!L$145,\n'[1]SM4 - DNO Scenario 4 equiv'!L$145,\n'[2]M1a - Model inputs'!L$145,\n'[2]M1b - Model inputs'!L$145,\n'[2]SM1 - DECC Scenario 3 equiv'!L$145,\n'[2]SM2 - DECC Scenario 1 equiv'!L$145,\n'[2]SM3 - DECC Scenario 2 equiv'!L$145,\n'[2]SM4 - DNO Scenario 4 equiv'!L$145)","v":-2.5333972276936798},{"$f":"CHOOSE(view,\n'[1]M1a - Model inputs'!M$145,\n'[1]M1b - Model inputs'!M$145,\n'[1]SM1 - DECC Scenario 3 equiv'!M$145,\n'[1]SM2 - DECC Scenario 1 equiv'!M$145,\n'[1]SM3 - DECC Scenario 2 equiv'!M$145,\n'[1]SM4 - DNO Scenario 4 equiv'!M$145,\n'[2]M1a - Model inputs'!M$145,\n'[2]M1b - Model inputs'!M$145,\n'[2]SM1 - DECC Scenario 3 equiv'!M$145,\n'[2]SM2 - DECC Scenario 1 equiv'!M$145,\n'[2]SM3 - DECC Scenario 2 equiv'!M$145,\n'[2]SM4 - DNO Scenario 4 equiv'!M$145)","v":-2.5333972276936798},{"$f":"CHOOSE(view,\n'[1]M1a - Model inputs'!N$145,\n'[1]M1b - Model inputs'!N$145,\n'[1]SM1 - DECC Scenario 3 equiv'!N$145,\n'[1]SM2 - DECC Scenario 1 equiv'!N$145,\n'[1]SM3 - DECC Scenario 2 equiv'!N$145,\n'[1]SM4 - DNO Scenario 4 equiv'!N$145,\n'[2]M1a - Model inputs'!N$145,\n'[2]M1b - Model inputs'!N$145,\n'[2]SM1 - DECC Scenario 3 equiv'!N$145,\n'[2]SM2 - DECC Scenario 1 equiv'!N$145,\n'[2]SM3 - DECC Scenario 2 equiv'!N$145,\n'[2]SM4 - DNO Scenario 4 equiv'!N$145)","v":-2.5333972276936798},{"$f":"CHOOSE(view,\n'[1]M1a - Model inputs'!O$145,\n'[1]M1b - Model inputs'!O$145,\n'[1]SM1 - DECC Scenario 3 equiv'!O$145,\n'[1]SM2 - DECC Scenario 1 equiv'!O$145,\n'[1]SM3 - DECC Scenario 2 equiv'!O$145,\n'[1]SM4 - DNO Scenario 4 equiv'!O$145,\n'[2]M1a - Model inputs'!O$145,\n'[2]M1b - Model inputs'!O$145,\n'[2]SM1 - DECC Scenario 3 equiv'!O$145,\n'[2]SM2 - DECC Scenario 1 equiv'!O$145,\n'[2]SM3 - DECC Scenario 2 equiv'!O$145,\n'[2]SM4 - DNO Scenario 4 equiv'!O$145)","v":-2.5333972276936798},{"$f":"CHOOSE(view,\n'[1]M1a - Model inputs'!P$145,\n'[1]M1b - Model inputs'!P$145,\n'[1]SM1 - DECC Scenario 3 equiv'!P$145,\n'[1]SM2 - DECC Scenario 1 equiv'!P$145,\n'[1]SM3 - DECC Scenario 2 equiv'!P$145,\n'[1]SM4 - DNO Scenario 4 equiv'!P$145,\n'[2]M1a - Model inputs'!P$145,\n'[2]M1b - Model inputs'!P$145,\n'[2]SM1 - DECC Scenario 3 equiv'!P$145,\n'[2]SM2 - DECC Scenario 1 equiv'!P$145,\n'[2]SM3 - DECC Scenario 2 equiv'!P$145,\n'[2]SM4 - DNO Scenario 4 equiv'!P$145)","v":-2.5333972276936798},{"$f":"CHOOSE(view,\n'[1]M1a - Model inputs'!Q$145,\n'[1]M1b - Model inputs'!Q$145,\n'[1]SM1 - DECC Scenario 3 equiv'!Q$145,\n'[1]SM2 - DECC Scenario 1 equiv'!Q$145,\n'[1]SM3 - DECC Scenario 2 equiv'!Q$145,\n'[1]SM4 - DNO Scenario 4 equiv'!Q$145,\n'[2]M1a - Model inputs'!Q$145,\n'[2]M1b - Model inputs'!Q$145,\n'[2]SM1 - DECC Scenario 3 equiv'!Q$145,\n'[2]SM2 - DECC Scenario 1 equiv'!Q$145,\n'[2]SM3 - DECC Scenario 2 equiv'!Q$145,\n'[2]SM4 - DNO Scenario 4 equiv'!Q$145)","v":-2.5333972276936798},{"$f":"CHOOSE(view,\n'[1]M1a - Model inputs'!R$145,\n'[1]M1b - Model inputs'!R$145,\n'[1]SM1 - DECC Scenario 3 equiv'!R$145,\n'[1]SM2 - DECC Scenario 1 equiv'!R$145,\n'[1]SM3 - DECC Scenario 2 equiv'!R$145,\n'[1]SM4 - DNO Scenario 4 equiv'!R$145,\n'[2]M1a - Model inputs'!R$145,\n'[2]M1b - Model inputs'!R$145,\n'[2]SM1 - DECC Scenario 3 equiv'!R$145,\n'[2]SM2 - DECC Scenario 1 equiv'!R$145,\n'[2]SM3 - DECC Scenario 2 equiv'!R$145,\n'[2]SM4 - DNO Scenario 4 equiv'!R$145)","v":-2.5333972276936798},{"$f":"CHOOSE(view,\n'[1]M1a - Model inputs'!S$145,\n'[1]M1b - Model inputs'!S$145,\n'[1]SM1 - DECC Scenario 3 equiv'!S$145,\n'[1]SM2 - DECC Scenario 1 equiv'!S$145,\n'[1]SM3 - DECC Scenario 2 equiv'!S$145,\n'[1]SM4 - DNO Scenario 4 equiv'!S$145,\n'[2]M1a - Model inputs'!S$145,\n'[2]M1b - Model inputs'!S$145,\n'[2]SM1 - DECC Scenario 3 equiv'!S$145,\n'[2]SM2 - DECC Scenario 1 equiv'!S$145,\n'[2]SM3 - DECC Scenario 2 equiv'!S$145,\n'[2]SM4 - DNO Scenario 4 equiv'!S$145)","v":-2.5333972276936798}]
[null,null,null,null,{"$f":"Input!E242","v":"Work required by any alteration premises (ES3) costs"},null,{"$f":"Input!G242","v":"£m 12/13 prices"},null,null,null,null,null,null,null,null,null,null,null,null,null,null,null,null,null,null,null,null,null,null,null,null,null,null,null,null,{"$f":"CHOOSE(view,\n'[1]M1a - Model inputs'!L$132,\n'[1]M1b - Model inputs'!L$132,\n'[1]SM1 - DECC Scenario 3 equiv'!L$132,\n'[1]SM2 - DECC Scenario 1 equiv'!L$132,\n'[1]SM3 - DECC Scenario 2 equiv'!L$132,\n'[1]SM4 - DNO Scenario 4 equiv'!L$132,\n'[2]M1a - Model inputs'!L$132,\n'[2]M1b - Model inputs'!L$132,\n'[2]SM1 - DECC Scenario 3 equiv'!L$132,\n'[2]SM2 - DECC Scenario 1 equiv'!L$132,\n'[2]SM3 - DECC Scenario 2 equiv'!L$132,\n'[2]SM4 - DNO Scenario 4 equiv'!L$132)","v":0},{"$f":"CHOOSE(view,\n'[1]M1a - Model inputs'!M$132,\n'[1]M1b - Model inputs'!M$132,\n'[1]SM1 - DECC Scenario 3 equiv'!M$132,\n'[1]SM2 - DECC Scenario 1 equiv'!M$132,\n'[1]SM3 - DECC Scenario 2 equiv'!M$132,\n'[1]SM4 - DNO Scenario 4 equiv'!M$132,\n'[2]M1a - Model inputs'!M$132,\n'[2]M1b - Model inputs'!M$132,\n'[2]SM1 - DECC Scenario 3 equiv'!M$132,\n'[2]SM2 - DECC Scenario 1 equiv'!M$132,\n'[2]SM3 - DECC Scenario 2 equiv'!M$132,\n'[2]SM4 - DNO Scenario 4 equiv'!M$132)","v":0},{"$f":"CHOOSE(view,\n'[1]M1a - Model inputs'!N$132,\n'[1]M1b - Model inputs'!N$132,\n'[1]SM1 - DECC Scenario 3 equiv'!N$132,\n'[1]SM2 - DECC Scenario 1 equiv'!N$132,\n'[1]SM3 - DECC Scenario 2 equiv'!N$132,\n'[1]SM4 - DNO Scenario 4 equiv'!N$132,\n'[2]M1a - Model inputs'!N$132,\n'[2]M1b - Model inputs'!N$132,\n'[2]SM1 - DECC Scenario 3 equiv'!N$132,\n'[2]SM2 - DECC Scenario 1 equiv'!N$132,\n'[2]SM3 - DECC Scenario 2 equiv'!N$132,\n'[2]SM4 - DNO Scenario 4 equiv'!N$132)","v":0},{"$f":"CHOOSE(view,\n'[1]M1a - Model inputs'!O$132,\n'[1]M1b - Model inputs'!O$132,\n'[1]SM1 - DECC Scenario 3 equiv'!O$132,\n'[1]SM2 - DECC Scenario 1 equiv'!O$132,\n'[1]SM3 - DECC Scenario 2 equiv'!O$132,\n'[1]SM4 - DNO Scenario 4 equiv'!O$132,\n'[2]M1a - Model inputs'!O$132,\n'[2]M1b - Model inputs'!O$132,\n'[2]SM1 - DECC Scenario 3 equiv'!O$132,\n'[2]SM2 - DECC Scenario 1 equiv'!O$132,\n'[2]SM3 - DECC Scenario 2 equiv'!O$132,\n'[2]SM4 - DNO Scenario 4 equiv'!O$132)","v":0},{"$f":"CHOOSE(view,\n'[1]M1a - Model inputs'!P$132,\n'[1]M1b - Model inputs'!P$132,\n'[1]SM1 - DECC Scenario 3 equiv'!P$132,\n'[1]SM2 - DECC Scenario 1 equiv'!P$132,\n'[1]SM3 - DECC Scenario 2 equiv'!P$132,\n'[1]SM4 - DNO Scenario 4 equiv'!P$132,\n'[2]M1a - Model inputs'!P$132,\n'[2]M1b - Model inputs'!P$132,\n'[2]SM1 - DECC Scenario 3 equiv'!P$132,\n'[2]SM2 - DECC Scenario 1 equiv'!P$132,\n'[2]SM3 - DECC Scenario 2 equiv'!P$132,\n'[2]SM4 - DNO Scenario 4 equiv'!P$132)","v":0},{"$f":"CHOOSE(view,\n'[1]M1a - Model inputs'!Q$132,\n'[1]M1b - Model inputs'!Q$132,\n'[1]SM1 - DECC Scenario 3 equiv'!Q$132,\n'[1]SM2 - DECC Scenario 1 equiv'!Q$132,\n'[1]SM3 - DECC Scenario 2 equiv'!Q$132,\n'[1]SM4 - DNO Scenario 4 equiv'!Q$132,\n'[2]M1a - Model inputs'!Q$132,\n'[2]M1b - Model inputs'!Q$132,\n'[2]SM1 - DECC Scenario 3 equiv'!Q$132,\n'[2]SM2 - DECC Scenario 1 equiv'!Q$132,\n'[2]SM3 - DECC Scenario 2 equiv'!Q$132,\n'[2]SM4 - DNO Scenario 4 equiv'!Q$132)","v":0},{"$f":"CHOOSE(view,\n'[1]M1a - Model inputs'!R$132,\n'[1]M1b - Model inputs'!R$132,\n'[1]SM1 - DECC Scenario 3 equiv'!R$132,\n'[1]SM2 - DECC Scenario 1 equiv'!R$132,\n'[1]SM3 - DECC Scenario 2 equiv'!R$132,\n'[1]SM4 - DNO Scenario 4 equiv'!R$132,\n'[2]M1a - Model inputs'!R$132,\n'[2]M1b - Model inputs'!R$132,\n'[2]SM1 - DECC Scenario 3 equiv'!R$132,\n'[2]SM2 - DECC Scenario 1 equiv'!R$132,\n'[2]SM3 - DECC Scenario 2 equiv'!R$132,\n'[2]SM4 - DNO Scenario 4 equiv'!R$132)","v":0},{"$f":"CHOOSE(view,\n'[1]M1a - Model inputs'!S$132,\n'[1]M1b - Model inputs'!S$132,\n'[1]SM1 - DECC Scenario 3 equiv'!S$132,\n'[1]SM2 - DECC Scenario 1 equiv'!S$132,\n'[1]SM3 - DECC Scenario 2 equiv'!S$132,\n'[1]SM4 - DNO Scenario 4 equiv'!S$132,\n'[2]M1a - Model inputs'!S$132,\n'[2]M1b - Model inputs'!S$132,\n'[2]SM1 - DECC Scenario 3 equiv'!S$132,\n'[2]SM2 - DECC Scenario 1 equiv'!S$132,\n'[2]SM3 - DECC Scenario 2 equiv'!S$132,\n'[2]SM4 - DNO Scenario 4 equiv'!S$132)","v":0}]
[null,null,null,null,{"$f":"Input!E243","v":"Work required by any alteration premises (ES3) net position"},null,{"$f":"Input!G243","v":"£m 12/13 prices"},null,null,null,null,null,null,null,null,null,null,null,null,null,null,null,null,null,null,null,null,null,null,null,null,null,null,null,null,{"$f":"SUM(AJ241, -AJ242)","v":-2.5333972276936798},{"$f":"SUM(AK241, -AK242)","v":-2.5333972276936798},-2.5333972276936798,-2.5333972276936798,-2.5333972276936798,-2.5333972276936798,-2.5333972276936798,-2.5333972276936798]
[]
[null,null,null,null,{"$f":"Input!E245","v":"Top up standby and enhanced system security (ES4) revenue"},null,{"$f":"Input!G245","v":"£m 12/13 prices"},null,null,null,null,null,null,null,null,null,null,null,null,null,null,null,null,null,null,null,null,null,null,null,null,null,null,null,null,{"$f":"CHOOSE(view,\n'[1]M1a - Model inputs'!L$146,\n'[1]M1b - Model inputs'!L$146,\n'[1]SM1 - DECC Scenario 3 equiv'!L$146,\n'[1]SM2 - DECC Scenario 1 equiv'!L$146,\n'[1]SM3 - DECC Scenario 2 equiv'!L$146,\n'[1]SM4 - DNO Scenario 4 equiv'!L$146,\n'[2]M1a - Model inputs'!L$146,\n'[2]M1b - Model inputs'!L$146,\n'[2]SM1 - DECC Scenario 3 equiv'!L$146,\n'[2]SM2 - DECC Scenario 1 equiv'!L$146,\n'[2]SM3 - DECC Scenario 2 equiv'!L$146,\n'[2]SM4 - DNO Scenario 4 equiv'!L$146)","v":0},{"$f":"CHOOSE(view,\n'[1]M1a - Model inputs'!M$146,\n'[1]M1b - Model inputs'!M$146,\n'[1]SM1 - DECC Scenario 3 equiv'!M$146,\n'[1]SM2 - DECC Scenario 1 equiv'!M$146,\n'[1]SM3 - DECC Scenario 2 equiv'!M$146,\n'[1]SM4 - DNO Scenario 4 equiv'!M$146,\n'[2]M1a - Model inputs'!M$146,\n'[2]M1b - Model inputs'!M$146,\n'[2]SM1 - DECC Scenario 3 equiv'!M$146,\n'[2]SM2 - DECC Scenario 1 equiv'!M$146,\n'[2]SM3 - DECC Scenario 2 equiv'!M$146,\n'[2]SM4 - DNO Scenario 4 equiv'!M$146)","v":0},{"$f":"CHOOSE(view,\n'[1]M1a - Model inputs'!N$146,\n'[1]M1b - Model inputs'!N$146,\n'[1]SM1 - DECC Scenario 3 equiv'!N$146,\n'[1]SM2 - DECC Scenario 1 equiv'!N$146,\n'[1]SM3 - DECC Scenario 2 equiv'!N$146,\n'[1]SM4 - DNO Scenario 4 equiv'!N$146,\n'[2]M1a - Model inputs'!N$146,\n'[2]M1b - Model inputs'!N$146,\n'[2]SM1 - DECC Scenario 3 equiv'!N$146,\n'[2]SM2 - DECC Scenario 1 equiv'!N$146,\n'[2]SM3 - DECC Scenario 2 equiv'!N$146,\n'[2]SM4 - DNO Scenario 4 equiv'!N$146)","v":0},{"$f":"CHOOSE(view,\n'[1]M1a - Model inputs'!O$146,\n'[1]M1b - Model inputs'!O$146,\n'[1]SM1 - DECC Scenario 3 equiv'!O$146,\n'[1]SM2 - DECC Scenario 1 equiv'!O$146,\n'[1]SM3 - DECC Scenario 2 equiv'!O$146,\n'[1]SM4 - DNO Scenario 4 equiv'!O$146,\n'[2]M1a - Model inputs'!O$146,\n'[2]M1b - Model inputs'!O$146,\n'[2]SM1 - DECC Scenario 3 equiv'!O$146,\n'[2]SM2 - DECC Scenario 1 equiv'!O$146,\n'[2]SM3 - DECC Scenario 2 equiv'!O$146,\n'[2]SM4 - DNO Scenario 4 equiv'!O$146)","v":0},{"$f":"CHOOSE(view,\n'[1]M1a - Model inputs'!P$146,\n'[1]M1b - Model inputs'!P$146,\n'[1]SM1 - DECC Scenario 3 equiv'!P$146,\n'[1]SM2 - DECC Scenario 1 equiv'!P$146,\n'[1]SM3 - DECC Scenario 2 equiv'!P$146,\n'[1]SM4 - DNO Scenario 4 equiv'!P$146,\n'[2]M1a - Model inputs'!P$146,\n'[2]M1b - Model inputs'!P$146,\n'[2]SM1 - DECC Scenario 3 equiv'!P$146,\n'[2]SM2 - DECC Scenario 1 equiv'!P$146,\n'[2]SM3 - DECC Scenario 2 equiv'!P$146,\n'[2]SM4 - DNO Scenario 4 equiv'!P$146)","v":0},{"$f":"CHOOSE(view,\n'[1]M1a - Model inputs'!Q$146,\n'[1]M1b - Model inputs'!Q$146,\n'[1]SM1 - DECC Scenario 3 equiv'!Q$146,\n'[1]SM2 - DECC Scenario 1 equiv'!Q$146,\n'[1]SM3 - DECC Scenario 2 equiv'!Q$146,\n'[1]SM4 - DNO Scenario 4 equiv'!Q$146,\n'[2]M1a - Model inputs'!Q$146,\n'[2]M1b - Model inputs'!Q$146,\n'[2]SM1 - DECC Scenario 3 equiv'!Q$146,\n'[2]SM2 - DECC Scenario 1 equiv'!Q$146,\n'[2]SM3 - DECC Scenario 2 equiv'!Q$146,\n'[2]SM4 - DNO Scenario 4 equiv'!Q$146)","v":0},{"$f":"CHOOSE(view,\n'[1]M1a - Model inputs'!R$146,\n'[1]M1b - Model inputs'!R$146,\n'[1]SM1 - DECC Scenario 3 equiv'!R$146,\n'[1]SM2 - DECC Scenario 1 equiv'!R$146,\n'[1]SM3 - DECC Scenario 2 equiv'!R$146,\n'[1]SM4 - DNO Scenario 4 equiv'!R$146,\n'[2]M1a - Model inputs'!R$146,\n'[2]M1b - Model inputs'!R$146,\n'[2]SM1 - DECC Scenario 3 equiv'!R$146,\n'[2]SM2 - DECC Scenario 1 equiv'!R$146,\n'[2]SM3 - DECC Scenario 2 equiv'!R$146,\n'[2]SM4 - DNO Scenario 4 equiv'!R$146)","v":0},{"$f":"CHOOSE(view,\n'[1]M1a - Model inputs'!S$146,\n'[1]M1b - Model inputs'!S$146,\n'[1]SM1 - DECC Scenario 3 equiv'!S$146,\n'[1]SM2 - DECC Scenario 1 equiv'!S$146,\n'[1]SM3 - DECC Scenario 2 equiv'!S$146,\n'[1]SM4 - DNO Scenario 4 equiv'!S$146,\n'[2]M1a - Model inputs'!S$146,\n'[2]M1b - Model inputs'!S$146,\n'[2]SM1 - DECC Scenario 3 equiv'!S$146,\n'[2]SM2 - DECC Scenario 1 equiv'!S$146,\n'[2]SM3 - DECC Scenario 2 equiv'!S$146,\n'[2]SM4 - DNO Scenario 4 equiv'!S$146)","v":0}]
[null,null,null,null,{"$f":"Input!E246","v":"Top up standby and enhanced system security (ES4) costs"},null,{"$f":"Input!G246","v":"£m 12/13 prices"},null,null,null,null,null,null,null,null,null,null,null,null,null,null,null,null,null,null,null,null,null,null,null,null,null,null,null,null,{"$f":"CHOOSE(view,\n'[1]M1a - Model inputs'!L$133,\n'[1]M1b - Model inputs'!L$133,\n'[1]SM1 - DECC Scenario 3 equiv'!L$133,\n'[1]SM2 - DECC Scenario 1 equiv'!L$133,\n'[1]SM3 - DECC Scenario 2 equiv'!L$133,\n'[1]SM4 - DNO Scenario 4 equiv'!L$133,\n'[2]M1a - Model inputs'!L$133,\n'[2]M1b - Model inputs'!L$133,\n'[2]SM1 - DECC Scenario 3 equiv'!L$133,\n'[2]SM2 - DECC Scenario 1 equiv'!L$133,\n'[2]SM3 - DECC Scenario 2 equiv'!L$133,\n'[2]SM4 - DNO Scenario 4 equiv'!L$133)","v":2.2590428952986685},{"$f":"CHOOSE(view,\n'[1]M1a - Model inputs'!M$133,\n'[1]M1b - Model inputs'!M$133,\n'[1]SM1 - DECC Scenario 3 equiv'!M$133,\n'[1]SM2 - DECC Scenario 1 equiv'!M$133,\n'[1]SM3 - DECC Scenario 2 equiv'!M$133,\n'[1]SM4 - DNO Scenario 4 equiv'!M$133,\n'[2]M1a - Model inputs'!M$133,\n'[2]M1b - Model inputs'!M$133,\n'[2]SM1 - DECC Scenario 3 equiv'!M$133,\n'[2]SM2 - DECC Scenario 1 equiv'!M$133,\n'[2]SM3 - DECC Scenario 2 equiv'!M$133,\n'[2]SM4 - DNO Scenario 4 equiv'!M$133)","v":2.233271364694505},{"$f":"CHOOSE(view,\n'[1]M1a - Model inputs'!N$133,\n'[1]M1b - Model inputs'!N$133,\n'[1]SM1 - DECC Scenario 3 equiv'!N$133,\n'[1]SM2 - DECC Scenario 1 equiv'!N$133,\n'[1]SM3 - DECC Scenario 2 equiv'!N$133,\n'[1]SM4 - DNO Scenario 4 equiv'!N$133,\n'[2]M1a - Model inputs'!N$133,\n'[2]M1b - Model inputs'!N$133,\n'[2]SM1 - DECC Scenario 3 equiv'!N$133,\n'[2]SM2 - DECC Scenario 1 equiv'!N$133,\n'[2]SM3 - DECC Scenario 2 equiv'!N$133,\n'[2]SM4 - DNO Scenario 4 equiv'!N$133)","v":2.0704596394020993},{"$f":"CHOOSE(view,\n'[1]M1a - Model inputs'!O$133,\n'[1]M1b - Model inputs'!O$133,\n'[1]SM1 - DECC Scenario 3 equiv'!O$133,\n'[1]SM2 - DECC Scenario 1 equiv'!O$133,\n'[1]SM3 - DECC Scenario 2 equiv'!O$133,\n'[1]SM4 - DNO Scenario 4 equiv'!O$133,\n'[2]M1a - Model inputs'!O$133,\n'[2]M1b - Model inputs'!O$133,\n'[2]SM1 - DECC Scenario 3 equiv'!O$133,\n'[2]SM2 - DECC Scenario 1 equiv'!O$133,\n'[2]SM3 - DECC Scenario 2 equiv'!O$133,\n'[2]SM4 - DNO Scenario 4 equiv'!O$133)","v":2.1086199270752104},{"$f":"CHOOSE(view,\n'[1]M1a - Model inputs'!P$133,\n'[1]M1b - Model inputs'!P$133,\n'[1]SM1 - DECC Scenario 3 equiv'!P$133,\n'[1]SM2 - DECC Scenario 1 equiv'!P$133,\n'[1]SM3 - DECC Scenario 2 equiv'!P$133,\n'[1]SM4 - DNO Scenario 4 equiv'!P$133,\n'[2]M1a - Model inputs'!P$133,\n'[2]M1b - Model inputs'!P$133,\n'[2]SM1 - DECC Scenario 3 equiv'!P$133,\n'[2]SM2 - DECC Scenario 1 equiv'!P$133,\n'[2]SM3 - DECC Scenario 2 equiv'!P$133,\n'[2]SM4 - DNO Scenario 4 equiv'!P$133)","v":2.1267759599182634},{"$f":"CHOOSE(view,\n'[1]M1a - Model inputs'!Q$133,\n'[1]M1b - Model inputs'!Q$133,\n'[1]SM1 - DECC Scenario 3 equiv'!Q$133,\n'[1]SM2 - DECC Scenario 1 equiv'!Q$133,\n'[1]SM3 - DECC Scenario 2 equiv'!Q$133,\n'[1]SM4 - DNO Scenario 4 equiv'!Q$133,\n'[2]M1a - Model inputs'!Q$133,\n'[2]M1b - Model inputs'!Q$133,\n'[2]SM1 - DECC Scenario 3 equiv'!Q$133,\n'[2]SM2 - DECC Scenario 1 equiv'!Q$133,\n'[2]SM3 - DECC Scenario 2 equiv'!Q$133,\n'[2]SM4 - DNO Scenario 4 equiv'!Q$133)","v":2.1383292654381063},{"$f":"CHOOSE(view,\n'[1]M1a - Model inputs'!R$133,\n'[1]M1b - Model inputs'!R$133,\n'[1]SM1 - DECC Scenario 3 equiv'!R$133,\n'[1]SM2 - DECC Scenario 1 equiv'!R$133,\n'[1]SM3 - DECC Scenario 2 equiv'!R$133,\n'[1]SM4 - DNO Scenario 4 equiv'!R$133,\n'[2]M1a - Model inputs'!R$133,\n'[2]M1b - Model inputs'!R$133,\n'[2]SM1 - DECC Scenario 3 equiv'!R$133,\n'[2]SM2 - DECC Scenario 1 equiv'!R$133,\n'[2]SM3 - DECC Scenario 2 equiv'!R$133,\n'[2]SM4 - DNO Scenario 4 equiv'!R$133)","v":2.1045900852287023},{"$f":"CHOOSE(view,\n'[1]M1a - Model inputs'!S$133,\n'[1]M1b - Model inputs'!S$133,\n'[1]SM1 - DECC Scenario 3 equiv'!S$133,\n'[1]SM2 - DECC Scenario 1 equiv'!S$133,\n'[1]SM3 - DECC Scenario 2 equiv'!S$133,\n'[1]SM4 - DNO Scenario 4 equiv'!S$133,\n'[2]M1a - Model inputs'!S$133,\n'[2]M1b - Model inputs'!S$133,\n'[2]SM1 - DECC Scenario 3 equiv'!S$133,\n'[2]SM2 - DECC Scenario 1 equiv'!S$133,\n'[2]SM3 - DECC Scenario 2 equiv'!S$133,\n'[2]SM4 - DNO Scenario 4 equiv'!S$133)","v":1.9787685756996933}]
[null,null,null,null,{"$f":"Input!E247","v":"Top up standby and enhanced system security (ES4) net position"},null,{"$f":"Input!G247","v":"£m 12/13 prices"},null,null,null,null,null,null,null,null,null,null,null,null,null,null,null,null,null,null,null,null,null,null,null,null,null,null,null,null,{"$f":"SUM(AJ245, -AJ246)","v":-2.2590428952986685},{"$f":"SUM(AK245, -AK246)","v":-2.233271364694505},-2.0704596394020993,-2.1086199270752104,-2.1267759599182634,-2.1383292654381063,-2.1045900852287023,-1.9787685756996933]
[]
[null,null,null,null,{"$f":"Input!E249","v":"Revenue protection services (ES5) revenue"},null,{"$f":"Input!G249","v":"£m 12/13 prices"},null,null,null,null,null,null,null,null,null,null,null,null,null,null,null,null,null,null,null,null,null,null,null,null,null,null,null,null,{"$f":"CHOOSE(view,\n'[1]M1a - Model inputs'!L$147,\n'[1]M1b - Model inputs'!L$147,\n'[1]SM1 - DECC Scenario 3 equiv'!L$147,\n'[1]SM2 - DECC Scenario 1 equiv'!L$147,\n'[1]SM3 - DECC Scenario 2 equiv'!L$147,\n'[1]SM4 - DNO Scenario 4 equiv'!L$147,\n'[2]M1a - Model inputs'!L$147,\n'[2]M1b - Model inputs'!L$147,\n'[2]SM1 - DECC Scenario 3 equiv'!L$147,\n'[2]SM2 - DECC Scenario 1 equiv'!L$147,\n'[2]SM3 - DECC Scenario 2 equiv'!L$147,\n'[2]SM4 - DNO Scenario 4 equiv'!L$147)","v":-0.86560592999999997},{"$f":"CHOOSE(view,\n'[1]M1a - Model inputs'!M$147,\n'[1]M1b - Model inputs'!M$147,\n'[1]SM1 - DECC Scenario 3 equiv'!M$147,\n'[1]SM2 - DECC Scenario 1 equiv'!M$147,\n'[1]SM3 - DECC Scenario 2 equiv'!M$147,\n'[1]SM4 - DNO Scenario 4 equiv'!M$147,\n'[2]M1a - Model inputs'!M$147,\n'[2]M1b - Model inputs'!M$147,\n'[2]SM1 - DECC Scenario 3 equiv'!M$147,\n'[2]SM2 - DECC Scenario 1 equiv'!M$147,\n'[2]SM3 - DECC Scenario 2 equiv'!M$147,\n'[2]SM4 - DNO Scenario 4 equiv'!M$147)","v":-0.86560592999999997},{"$f":"CHOOSE(view,\n'[1]M1a - Model inputs'!N$147,\n'[1]M1b - Model inputs'!N$147,\n'[1]SM1 - DECC Scenario 3 equiv'!N$147,\n'[1]SM2 - DECC Scenario 1 equiv'!N$147,\n'[1]SM3 - DECC Scenario 2 equiv'!N$147,\n'[1]SM4 - DNO Scenario 4 equiv'!N$147,\n'[2]M1a - Model inputs'!N$147,\n'[2]M1b - Model inputs'!N$147,\n'[2]SM1 - DECC Scenario 3 equiv'!N$147,\n'[2]SM2 - DECC Scenario 1 equiv'!N$147,\n'[2]SM3 - DECC Scenario 2 equiv'!N$147,\n'[2]SM4 - DNO Scenario 4 equiv'!N$147)","v":-0.86560592999999997},{"$f":"CHOOSE(view,\n'[1]M1a - Model inputs'!O$147,\n'[1]M1b - Model inputs'!O$147,\n'[1]SM1 - DECC Scenario 3 equiv'!O$147,\n'[1]SM2 - DECC Scenario 1 equiv'!O$147,\n'[1]SM3 - DECC Scenario 2 equiv'!O$147,\n'[1]SM4 - DNO Scenario 4 equiv'!O$147,\n'[2]M1a - Model inputs'!O$147,\n'[2]M1b - Model inputs'!O$147,\n'[2]SM1 - DECC Scenario 3 equiv'!O$147,\n'[2]SM2 - DECC Scenario 1 equiv'!O$147,\n'[2]SM3 - DECC Scenario 2 equiv'!O$147,\n'[2]SM4 - DNO Scenario 4 equiv'!O$147)","v":-0.86560592999999997},{"$f":"CHOOSE(view,\n'[1]M1a - Model inputs'!P$147,\n'[1]M1b - Model inputs'!P$147,\n'[1]SM1 - DECC Scenario 3 equiv'!P$147,\n'[1]SM2 - DECC Scenario 1 equiv'!P$147,\n'[1]SM3 - DECC Scenario 2 equiv'!P$147,\n'[1]SM4 - DNO Scenario 4 equiv'!P$147,\n'[2]M1a - Model inputs'!P$147,\n'[2]M1b - Model inputs'!P$147,\n'[2]SM1 - DECC Scenario 3 equiv'!P$147,\n'[2]SM2 - DECC Scenario 1 equiv'!P$147,\n'[2]SM3 - DECC Scenario 2 equiv'!P$147,\n'[2]SM4 - DNO Scenario 4 equiv'!P$147)","v":-0.86560592999999997},{"$f":"CHOOSE(view,\n'[1]M1a - Model inputs'!Q$147,\n'[1]M1b - Model inputs'!Q$147,\n'[1]SM1 - DECC Scenario 3 equiv'!Q$147,\n'[1]SM2 - DECC Scenario 1 equiv'!Q$147,\n'[1]SM3 - DECC Scenario 2 equiv'!Q$147,\n'[1]SM4 - DNO Scenario 4 equiv'!Q$147,\n'[2]M1a - Model inputs'!Q$147,\n'[2]M1b - Model inputs'!Q$147,\n'[2]SM1 - DECC Scenario 3 equiv'!Q$147,\n'[2]SM2 - DECC Scenario 1 equiv'!Q$147,\n'[2]SM3 - DECC Scenario 2 equiv'!Q$147,\n'[2]SM4 - DNO Scenario 4 equiv'!Q$147)","v":-0.86560592999999997},{"$f":"CHOOSE(view,\n'[1]M1a - Model inputs'!R$147,\n'[1]M1b - Model inputs'!R$147,\n'[1]SM1 - DECC Scenario 3 equiv'!R$147,\n'[1]SM2 - DECC Scenario 1 equiv'!R$147,\n'[1]SM3 - DECC Scenario 2 equiv'!R$147,\n'[1]SM4 - DNO Scenario 4 equiv'!R$147,\n'[2]M1a - Model inputs'!R$147,\n'[2]M1b - Model inputs'!R$147,\n'[2]SM1 - DECC Scenario 3 equiv'!R$147,\n'[2]SM2 - DECC Scenario 1 equiv'!R$147,\n'[2]SM3 - DECC Scenario 2 equiv'!R$147,\n'[2]SM4 - DNO Scenario 4 equiv'!R$147)","v":-0.86560592999999997},{"$f":"CHOOSE(view,\n'[1]M1a - Model inputs'!S$147,\n'[1]M1b - Model inputs'!S$147,\n'[1]SM1 - DECC Scenario 3 equiv'!S$147,\n'[1]SM2 - DECC Scenario 1 equiv'!S$147,\n'[1]SM3 - DECC Scenario 2 equiv'!S$147,\n'[1]SM4 - DNO Scenario 4 equiv'!S$147,\n'[2]M1a - Model inputs'!S$147,\n'[2]M1b - Model inputs'!S$147,\n'[2]SM1 - DECC Scenario 3 equiv'!S$147,\n'[2]SM2 - DECC Scenario 1 equiv'!S$147,\n'[2]SM3 - DECC Scenario 2 equiv'!S$147,\n'[2]SM4 - DNO Scenario 4 equiv'!S$147)","v":-0.86560592999999997}]
[null,null,null,null,{"$f":"Input!E250","v":"Revenue protection services (ES5) costs"},null,{"$f":"Input!G250","v":"£m 12/13 prices"},null,null,null,null,null,null,null,null,null,null,null,null,null,null,null,null,null,null,null,null,null,null,null,null,null,null,null,null,{"$f":"CHOOSE(view,\n'[1]M1a - Model inputs'!L$134,\n'[1]M1b - Model inputs'!L$134,\n'[1]SM1 - DECC Scenario 3 equiv'!L$134,\n'[1]SM2 - DECC Scenario 1 equiv'!L$134,\n'[1]SM3 - DECC Scenario 2 equiv'!L$134,\n'[1]SM4 - DNO Scenario 4 equiv'!L$134,\n'[2]M1a - Model inputs'!L$134,\n'[2]M1b - Model inputs'!L$134,\n'[2]SM1 - DECC Scenario 3 equiv'!L$134,\n'[2]SM2 - DECC Scenario 1 equiv'!L$134,\n'[2]SM3 - DECC Scenario 2 equiv'!L$134,\n'[2]SM4 - DNO Scenario 4 equiv'!L$134)","v":0},{"$f":"CHOOSE(view,\n'[1]M1a - Model inputs'!M$134,\n'[1]M1b - Model inputs'!M$134,\n'[1]SM1 - DECC Scenario 3 equiv'!M$134,\n'[1]SM2 - DECC Scenario 1 equiv'!M$134,\n'[1]SM3 - DECC Scenario 2 equiv'!M$134,\n'[1]SM4 - DNO Scenario 4 equiv'!M$134,\n'[2]M1a - Model inputs'!M$134,\n'[2]M1b - Model inputs'!M$134,\n'[2]SM1 - DECC Scenario 3 equiv'!M$134,\n'[2]SM2 - DECC Scenario 1 equiv'!M$134,\n'[2]SM3 - DECC Scenario 2 equiv'!M$134,\n'[2]SM4 - DNO Scenario 4 equiv'!M$134)","v":0},{"$f":"CHOOSE(view,\n'[1]M1a - Model inputs'!N$134,\n'[1]M1b - Model inputs'!N$134,\n'[1]SM1 - DECC Scenario 3 equiv'!N$134,\n'[1]SM2 - DECC Scenario 1 equiv'!N$134,\n'[1]SM3 - DECC Scenario 2 equiv'!N$134,\n'[1]SM4 - DNO Scenario 4 equiv'!N$134,\n'[2]M1a - Model inputs'!N$134,\n'[2]M1b - Model inputs'!N$134,\n'[2]SM1 - DECC Scenario 3 equiv'!N$134,\n'[2]SM2 - DECC Scenario 1 equiv'!N$134,\n'[2]SM3 - DECC Scenario 2 equiv'!N$134,\n'[2]SM4 - DNO Scenario 4 equiv'!N$134)","v":0},{"$f":"CHOOSE(view,\n'[1]M1a - Model inputs'!O$134,\n'[1]M1b - Model inputs'!O$134,\n'[1]SM1 - DECC Scenario 3 equiv'!O$134,\n'[1]SM2 - DECC Scenario 1 equiv'!O$134,\n'[1]SM3 - DECC Scenario 2 equiv'!O$134,\n'[1]SM4 - DNO Scenario 4 equiv'!O$134,\n'[2]M1a - Model inputs'!O$134,\n'[2]M1b - Model inputs'!O$134,\n'[2]SM1 - DECC Scenario 3 equiv'!O$134,\n'[2]SM2 - DECC Scenario 1 equiv'!O$134,\n'[2]SM3 - DECC Scenario 2 equiv'!O$134,\n'[2]SM4 - DNO Scenario 4 equiv'!O$134)","v":0},{"$f":"CHOOSE(view,\n'[1]M1a - Model inputs'!P$134,\n'[1]M1b - Model inputs'!P$134,\n'[1]SM1 - DECC Scenario 3 equiv'!P$134,\n'[1]SM2 - DECC Scenario 1 equiv'!P$134,\n'[1]SM3 - DECC Scenario 2 equiv'!P$134,\n'[1]SM4 - DNO Scenario 4 equiv'!P$134,\n'[2]M1a - Model inputs'!P$134,\n'[2]M1b - Model inputs'!P$134,\n'[2]SM1 - DECC Scenario 3 equiv'!P$134,\n'[2]SM2 - DECC Scenario 1 equiv'!P$134,\n'[2]SM3 - DECC Scenario 2 equiv'!P$134,\n'[2]SM4 - DNO Scenario 4 equiv'!P$134)","v":0},{"$f":"CHOOSE(view,\n'[1]M1a - Model inputs'!Q$134,\n'[1]M1b - Model inputs'!Q$134,\n'[1]SM1 - DECC Scenario 3 equiv'!Q$134,\n'[1]SM2 - DECC Scenario 1 equiv'!Q$134,\n'[1]SM3 - DECC Scenario 2 equiv'!Q$134,\n'[1]SM4 - DNO Scenario 4 equiv'!Q$134,\n'[2]M1a - Model inputs'!Q$134,\n'[2]M1b - Model inputs'!Q$134,\n'[2]SM1 - DECC Scenario 3 equiv'!Q$134,\n'[2]SM2 - DECC Scenario 1 equiv'!Q$134,\n'[2]SM3 - DECC Scenario 2 equiv'!Q$134,\n'[2]SM4 - DNO Scenario 4 equiv'!Q$134)","v":0},{"$f":"CHOOSE(view,\n'[1]M1a - Model inputs'!R$134,\n'[1]M1b - Model inputs'!R$134,\n'[1]SM1 - DECC Scenario 3 equiv'!R$134,\n'[1]SM2 - DECC Scenario 1 equiv'!R$134,\n'[1]SM3 - DECC Scenario 2 equiv'!R$134,\n'[1]SM4 - DNO Scenario 4 equiv'!R$134,\n'[2]M1a - Model inputs'!R$134,\n'[2]M1b - Model inputs'!R$134,\n'[2]SM1 - DECC Scenario 3 equiv'!R$134,\n'[2]SM2 - DECC Scenario 1 equiv'!R$134,\n'[2]SM3 - DECC Scenario 2 equiv'!R$134,\n'[2]SM4 - DNO Scenario 4 equiv'!R$134)","v":0},{"$f":"CHOOSE(view,\n'[1]M1a - Model inputs'!S$134,\n'[1]M1b - Model inputs'!S$134,\n'[1]SM1 - DECC Scenario 3 equiv'!S$134,\n'[1]SM2 - DECC Scenario 1 equiv'!S$134,\n'[1]SM3 - DECC Scenario 2 equiv'!S$134,\n'[1]SM4 - DNO Scenario 4 equiv'!S$134,\n'[2]M1a - Model inputs'!S$134,\n'[2]M1b - Model inputs'!S$134,\n'[2]SM1 - DECC Scenario 3 equiv'!S$134,\n'[2]SM2 - DECC Scenario 1 equiv'!S$134,\n'[2]SM3 - DECC Scenario 2 equiv'!S$134,\n'[2]SM4 - DNO Scenario 4 equiv'!S$134)","v":0}]
[null,null,null,null,{"$f":"Input!E251","v":"Revenue protection services (ES5) net position"},null,{"$f":"Input!G251","v":"£m 12/13 prices"},null,null,null,null,null,null,null,null,null,null,null,null,null,null,null,null,null,null,null,null,null,null,null,null,null,null,null,null,{"$f":"SUM(AJ249, -AJ250)","v":-0.86560592999999997},{"$f":"SUM(AK249, -AK250)","v":-0.86560592999999997},-0.86560592999999997,-0.86560592999999997,-0.86560592999999997,-0.86560592999999997,-0.86560592999999997,-0.86560592999999997]
[]
[null,null,null,null,{"$f":"Input!E253","v":"Metering services (non legacy) (ES6) revenue"},null,{"$f":"Input!G253","v":"£m 12/13 prices"},null,null,null,null,null,null,null,null,null,null,null,null,null,null,null,null,null,null,null,null,null,null,null,null,null,null,null,null,{"$f":"CHOOSE(view,\n'[1]M1a - Model inputs'!L$148,\n'[1]M1b - Model inputs'!L$148,\n'[1]SM1 - DECC Scenario 3 equiv'!L$148,\n'[1]SM2 - DECC Scenario 1 equiv'!L$148,\n'[1]SM3 - DECC Scenario 2 equiv'!L$148,\n'[1]SM4 - DNO Scenario 4 equiv'!L$148,\n'[2]M1a - Model inputs'!L$148,\n'[2]M1b - Model inputs'!L$148,\n'[2]SM1 - DECC Scenario 3 equiv'!L$148,\n'[2]SM2 - DECC Scenario 1 equiv'!L$148,\n'[2]SM3 - DECC Scenario 2 equiv'!L$148,\n'[2]SM4 - DNO Scenario 4 equiv'!L$148)","v":0},{"$f":"CHOOSE(view,\n'[1]M1a - Model inputs'!M$148,\n'[1]M1b - Model inputs'!M$148,\n'[1]SM1 - DECC Scenario 3 equiv'!M$148,\n'[1]SM2 - DECC Scenario 1 equiv'!M$148,\n'[1]SM3 - DECC Scenario 2 equiv'!M$148,\n'[1]SM4 - DNO Scenario 4 equiv'!M$148,\n'[2]M1a - Model inputs'!M$148,\n'[2]M1b - Model inputs'!M$148,\n'[2]SM1 - DECC Scenario 3 equiv'!M$148,\n'[2]SM2 - DECC Scenario 1 equiv'!M$148,\n'[2]SM3 - DECC Scenario 2 equiv'!M$148,\n'[2]SM4 - DNO Scenario 4 equiv'!M$148)","v":0},{"$f":"CHOOSE(view,\n'[1]M1a - Model inputs'!N$148,\n'[1]M1b - Model inputs'!N$148,\n'[1]SM1 - DECC Scenario 3 equiv'!N$148,\n'[1]SM2 - DECC Scenario 1 equiv'!N$148,\n'[1]SM3 - DECC Scenario 2 equiv'!N$148,\n'[1]SM4 - DNO Scenario 4 equiv'!N$148,\n'[2]M1a - Model inputs'!N$148,\n'[2]M1b - Model inputs'!N$148,\n'[2]SM1 - DECC Scenario 3 equiv'!N$148,\n'[2]SM2 - DECC Scenario 1 equiv'!N$148,\n'[2]SM3 - DECC Scenario 2 equiv'!N$148,\n'[2]SM4 - DNO Scenario 4 equiv'!N$148)","v":0},{"$f":"CHOOSE(view,\n'[1]M1a - Model inputs'!O$148,\n'[1]M1b - Model inputs'!O$148,\n'[1]SM1 - DECC Scenario 3 equiv'!O$148,\n'[1]SM2 - DECC Scenario 1 equiv'!O$148,\n'[1]SM3 - DECC Scenario 2 equiv'!O$148,\n'[1]SM4 - DNO Scenario 4 equiv'!O$148,\n'[2]M1a - Model inputs'!O$148,\n'[2]M1b - Model inputs'!O$148,\n'[2]SM1 - DECC Scenario 3 equiv'!O$148,\n'[2]SM2 - DECC Scenario 1 equiv'!O$148,\n'[2]SM3 - DECC Scenario 2 equiv'!O$148,\n'[2]SM4 - DNO Scenario 4 equiv'!O$148)","v":0},{"$f":"CHOOSE(view,\n'[1]M1a - Model inputs'!P$148,\n'[1]M1b - Model inputs'!P$148,\n'[1]SM1 - DECC Scenario 3 equiv'!P$148,\n'[1]SM2 - DECC Scenario 1 equiv'!P$148,\n'[1]SM3 - DECC Scenario 2 equiv'!P$148,\n'[1]SM4 - DNO Scenario 4 equiv'!P$148,\n'[2]M1a - Model inputs'!P$148,\n'[2]M1b - Model inputs'!P$148,\n'[2]SM1 - DECC Scenario 3 equiv'!P$148,\n'[2]SM2 - DECC Scenario 1 equiv'!P$148,\n'[2]SM3 - DECC Scenario 2 equiv'!P$148,\n'[2]SM4 - DNO Scenario 4 equiv'!P$148)","v":0},{"$f":"CHOOSE(view,\n'[1]M1a - Model inputs'!Q$148,\n'[1]M1b - Model inputs'!Q$148,\n'[1]SM1 - DECC Scenario 3 equiv'!Q$148,\n'[1]SM2 - DECC Scenario 1 equiv'!Q$148,\n'[1]SM3 - DECC Scenario 2 equiv'!Q$148,\n'[1]SM4 - DNO Scenario 4 equiv'!Q$148,\n'[2]M1a - Model inputs'!Q$148,\n'[2]M1b - Model inputs'!Q$148,\n'[2]SM1 - DECC Scenario 3 equiv'!Q$148,\n'[2]SM2 - DECC Scenario 1 equiv'!Q$148,\n'[2]SM3 - DECC Scenario 2 equiv'!Q$148,\n'[2]SM4 - DNO Scenario 4 equiv'!Q$148)","v":0},{"$f":"CHOOSE(view,\n'[1]M1a - Model inputs'!R$148,\n'[1]M1b - Model inputs'!R$148,\n'[1]SM1 - DECC Scenario 3 equiv'!R$148,\n'[1]SM2 - DECC Scenario 1 equiv'!R$148,\n'[1]SM3 - DECC Scenario 2 equiv'!R$148,\n'[1]SM4 - DNO Scenario 4 equiv'!R$148,\n'[2]M1a - Model inputs'!R$148,\n'[2]M1b - Model inputs'!R$148,\n'[2]SM1 - DECC Scenario 3 equiv'!R$148,\n'[2]SM2 - DECC Scenario 1 equiv'!R$148,\n'[2]SM3 - DECC Scenario 2 equiv'!R$148,\n'[2]SM4 - DNO Scenario 4 equiv'!R$148)","v":0},{"$f":"CHOOSE(view,\n'[1]M1a - Model inputs'!S$148,\n'[1]M1b - Model inputs'!S$148,\n'[1]SM1 - DECC Scenario 3 equiv'!S$148,\n'[1]SM2 - DECC Scenario 1 equiv'!S$148,\n'[1]SM3 - DECC Scenario 2 equiv'!S$148,\n'[1]SM4 - DNO Scenario 4 equiv'!S$148,\n'[2]M1a - Model inputs'!S$148,\n'[2]M1b - Model inputs'!S$148,\n'[2]SM1 - DECC Scenario 3 equiv'!S$148,\n'[2]SM2 - DECC Scenario 1 equiv'!S$148,\n'[2]SM3 - DECC Scenario 2 equiv'!S$148,\n'[2]SM4 - DNO Scenario 4 equiv'!S$148)","v":0}]
[null,null,null,null,{"$f":"Input!E254","v":"Metering services (non legacy) (ES6) costs"},null,{"$f":"Input!G254","v":"£m 12/13 prices"},null,null,null,null,null,null,null,null,null,null,null,null,null,null,null,null,null,null,null,null,null,null,null,null,null,null,null,null,{"$f":"CHOOSE(view,\n'[1]M1a - Model inputs'!L$135,\n'[1]M1b - Model inputs'!L$135,\n'[1]SM1 - DECC Scenario 3 equiv'!L$135,\n'[1]SM2 - DECC Scenario 1 equiv'!L$135,\n'[1]SM3 - DECC Scenario 2 equiv'!L$135,\n'[1]SM4 - DNO Scenario 4 equiv'!L$135,\n'[2]M1a - Model inputs'!L$135,\n'[2]M1b - Model inputs'!L$135,\n'[2]SM1 - DECC Scenario 3 equiv'!L$135,\n'[2]SM2 - DECC Scenario 1 equiv'!L$135,\n'[2]SM3 - DECC Scenario 2 equiv'!L$135,\n'[2]SM4 - DNO Scenario 4 equiv'!L$135)","v":0},{"$f":"CHOOSE(view,\n'[1]M1a - Model inputs'!M$135,\n'[1]M1b - Model inputs'!M$135,\n'[1]SM1 - DECC Scenario 3 equiv'!M$135,\n'[1]SM2 - DECC Scenario 1 equiv'!M$135,\n'[1]SM3 - DECC Scenario 2 equiv'!M$135,\n'[1]SM4 - DNO Scenario 4 equiv'!M$135,\n'[2]M1a - Model inputs'!M$135,\n'[2]M1b - Model inputs'!M$135,\n'[2]SM1 - DECC Scenario 3 equiv'!M$135,\n'[2]SM2 - DECC Scenario 1 equiv'!M$135,\n'[2]SM3 - DECC Scenario 2 equiv'!M$135,\n'[2]SM4 - DNO Scenario 4 equiv'!M$135)","v":0},{"$f":"CHOOSE(view,\n'[1]M1a - Model inputs'!N$135,\n'[1]M1b - Model inputs'!N$135,\n'[1]SM1 - DECC Scenario 3 equiv'!N$135,\n'[1]SM2 - DECC Scenario 1 equiv'!N$135,\n'[1]SM3 - DECC Scenario 2 equiv'!N$135,\n'[1]SM4 - DNO Scenario 4 equiv'!N$135,\n'[2]M1a - Model inputs'!N$135,\n'[2]M1b - Model inputs'!N$135,\n'[2]SM1 - DECC Scenario 3 equiv'!N$135,\n'[2]SM2 - DECC Scenario 1 equiv'!N$135,\n'[2]SM3 - DECC Scenario 2 equiv'!N$135,\n'[2]SM4 - DNO Scenario 4 equiv'!N$135)","v":0},{"$f":"CHOOSE(view,\n'[1]M1a - Model inputs'!O$135,\n'[1]M1b - Model inputs'!O$135,\n'[1]SM1 - DECC Scenario 3 equiv'!O$135,\n'[1]SM2 - DECC Scenario 1 equiv'!O$135,\n'[1]SM3 - DECC Scenario 2 equiv'!O$135,\n'[1]SM4 - DNO Scenario 4 equiv'!O$135,\n'[2]M1a - Model inputs'!O$135,\n'[2]M1b - Model inputs'!O$135,\n'[2]SM1 - DECC Scenario 3 equiv'!O$135,\n'[2]SM2 - DECC Scenario 1 equiv'!O$135,\n'[2]SM3 - DECC Scenario 2 equiv'!O$135,\n'[2]SM4 - DNO Scenario 4 equiv'!O$135)","v":0},{"$f":"CHOOSE(view,\n'[1]M1a - Model inputs'!P$135,\n'[1]M1b - Model inputs'!P$135,\n'[1]SM1 - DECC Scenario 3 equiv'!P$135,\n'[1]SM2 - DECC Scenario 1 equiv'!P$135,\n'[1]SM3 - DECC Scenario 2 equiv'!P$135,\n'[1]SM4 - DNO Scenario 4 equiv'!P$135,\n'[2]M1a - Model inputs'!P$135,\n'[2]M1b - Model inputs'!P$135,\n'[2]SM1 - DECC Scenario 3 equiv'!P$135,\n'[2]SM2 - DECC Scenario 1 equiv'!P$135,\n'[2]SM3 - DECC Scenario 2 equiv'!P$135,\n'[2]SM4 - DNO Scenario 4 equiv'!P$135)","v":0},{"$f":"CHOOSE(view,\n'[1]M1a - Model inputs'!Q$135,\n'[1]M1b - Model inputs'!Q$135,\n'[1]SM1 - DECC Scenario 3 equiv'!Q$135,\n'[1]SM2 - DECC Scenario 1 equiv'!Q$135,\n'[1]SM3 - DECC Scenario 2 equiv'!Q$135,\n'[1]SM4 - DNO Scenario 4 equiv'!Q$135,\n'[2]M1a - Model inputs'!Q$135,\n'[2]M1b - Model inputs'!Q$135,\n'[2]SM1 - DECC Scenario 3 equiv'!Q$135,\n'[2]SM2 - DECC Scenario 1 equiv'!Q$135,\n'[2]SM3 - DECC Scenario 2 equiv'!Q$135,\n'[2]SM4 - DNO Scenario 4 equiv'!Q$135)","v":0},{"$f":"CHOOSE(view,\n'[1]M1a - Model inputs'!R$135,\n'[1]M1b - Model inputs'!R$135,\n'[1]SM1 - DECC Scenario 3 equiv'!R$135,\n'[1]SM2 - DECC Scenario 1 equiv'!R$135,\n'[1]SM3 - DECC Scenario 2 equiv'!R$135,\n'[1]SM4 - DNO Scenario 4 equiv'!R$135,\n'[2]M1a - Model inputs'!R$135,\n'[2]M1b - Model inputs'!R$135,\n'[2]SM1 - DECC Scenario 3 equiv'!R$135,\n'[2]SM2 - DECC Scenario 1 equiv'!R$135,\n'[2]SM3 - DECC Scenario 2 equiv'!R$135,\n'[2]SM4 - DNO Scenario 4 equiv'!R$135)","v":0},{"$f":"CHOOSE(view,\n'[1]M1a - Model inputs'!S$135,\n'[1]M1b - Model inputs'!S$135,\n'[1]SM1 - DECC Scenario 3 equiv'!S$135,\n'[1]SM2 - DECC Scenario 1 equiv'!S$135,\n'[1]SM3 - DECC Scenario 2 equiv'!S$135,\n'[1]SM4 - DNO Scenario 4 equiv'!S$135,\n'[2]M1a - Model inputs'!S$135,\n'[2]M1b - Model inputs'!S$135,\n'[2]SM1 - DECC Scenario 3 equiv'!S$135,\n'[2]SM2 - DECC Scenario 1 equiv'!S$135,\n'[2]SM3 - DECC Scenario 2 equiv'!S$135,\n'[2]SM4 - DNO Scenario 4 equiv'!S$135)","v":0}]
[null,null,null,null,{"$f":"Input!E255","v":"Metering services (non legacy) (ES6) net position"},null,{"$f":"Input!G255","v":"£m 12/13 prices"},null,null,null,null,null,null,null,null,null,null,null,null,null,null,null,null,null,null,null,null,null,null,null,null,null,null,null,null,{"$f":"SUM(AJ253, -AJ254)","v":0},{"$f":"SUM(AK253, -AK254)","v":0},0,0,0,0,0,0]
[]
[null,null,null,null,{"$f":"Input!E257","v":"Metering services (legacy)  revenue"},null,{"$f":"Input!G257","v":"£m 12/13 prices"},null,null,null,null,null,null,null,null,null,null,null,null,null,null,null,null,null,null,null,null,null,null,null,null,null,null,null,null,{"$f":"CHOOSE(view,\n'[1]M1a - Model inputs'!L$149,\n'[1]M1b - Model inputs'!L$149,\n'[1]SM1 - DECC Scenario 3 equiv'!L$149,\n'[1]SM2 - DECC Scenario 1 equiv'!L$149,\n'[1]SM3 - DECC Scenario 2 equiv'!L$149,\n'[1]SM4 - DNO Scenario 4 equiv'!L$149,\n'[2]M1a - Model inputs'!L$149,\n'[2]M1b - Model inputs'!L$149,\n'[2]SM1 - DECC Scenario 3 equiv'!L$149,\n'[2]SM2 - DECC Scenario 1 equiv'!L$149,\n'[2]SM3 - DECC Scenario 2 equiv'!L$149,\n'[2]SM4 - DNO Scenario 4 equiv'!L$149)","v":-2.1},{"$f":"CHOOSE(view,\n'[1]M1a - Model inputs'!M$149,\n'[1]M1b - Model inputs'!M$149,\n'[1]SM1 - DECC Scenario 3 equiv'!M$149,\n'[1]SM2 - DECC Scenario 1 equiv'!M$149,\n'[1]SM3 - DECC Scenario 2 equiv'!M$149,\n'[1]SM4 - DNO Scenario 4 equiv'!M$149,\n'[2]M1a - Model inputs'!M$149,\n'[2]M1b - Model inputs'!M$149,\n'[2]SM1 - DECC Scenario 3 equiv'!M$149,\n'[2]SM2 - DECC Scenario 1 equiv'!M$149,\n'[2]SM3 - DECC Scenario 2 equiv'!M$149,\n'[2]SM4 - DNO Scenario 4 equiv'!M$149)","v":-1.9},{"$f":"CHOOSE(view,\n'[1]M1a - Model inputs'!N$149,\n'[1]M1b - Model inputs'!N$149,\n'[1]SM1 - DECC Scenario 3 equiv'!N$149,\n'[1]SM2 - DECC Scenario 1 equiv'!N$149,\n'[1]SM3 - DECC Scenario 2 equiv'!N$149,\n'[1]SM4 - DNO Scenario 4 equiv'!N$149,\n'[2]M1a - Model inputs'!N$149,\n'[2]M1b - Model inputs'!N$149,\n'[2]SM1 - DECC Scenario 3 equiv'!N$149,\n'[2]SM2 - DECC Scenario 1 equiv'!N$149,\n'[2]SM3 - DECC Scenario 2 equiv'!N$149,\n'[2]SM4 - DNO Scenario 4 equiv'!N$149)","v":-1.4},{"$f":"CHOOSE(view,\n'[1]M1a - Model inputs'!O$149,\n'[1]M1b - Model inputs'!O$149,\n'[1]SM1 - DECC Scenario 3 equiv'!O$149,\n'[1]SM2 - DECC Scenario 1 equiv'!O$149,\n'[1]SM3 - DECC Scenario 2 equiv'!O$149,\n'[1]SM4 - DNO Scenario 4 equiv'!O$149,\n'[2]M1a - Model inputs'!O$149,\n'[2]M1b - Model inputs'!O$149,\n'[2]SM1 - DECC Scenario 3 equiv'!O$149,\n'[2]SM2 - DECC Scenario 1 equiv'!O$149,\n'[2]SM3 - DECC Scenario 2 equiv'!O$149,\n'[2]SM4 - DNO Scenario 4 equiv'!O$149)","v":-0.8},{"$f":"CHOOSE(view,\n'[1]M1a - Model inputs'!P$149,\n'[1]M1b - Model inputs'!P$149,\n'[1]SM1 - DECC Scenario 3 equiv'!P$149,\n'[1]SM2 - DECC Scenario 1 equiv'!P$149,\n'[1]SM3 - DECC Scenario 2 equiv'!P$149,\n'[1]SM4 - DNO Scenario 4 equiv'!P$149,\n'[2]M1a - Model inputs'!P$149,\n'[2]M1b - Model inputs'!P$149,\n'[2]SM1 - DECC Scenario 3 equiv'!P$149,\n'[2]SM2 - DECC Scenario 1 equiv'!P$149,\n'[2]SM3 - DECC Scenario 2 equiv'!P$149,\n'[2]SM4 - DNO Scenario 4 equiv'!P$149)","v":-0.3},{"$f":"CHOOSE(view,\n'[1]M1a - Model inputs'!Q$149,\n'[1]M1b - Model inputs'!Q$149,\n'[1]SM1 - DECC Scenario 3 equiv'!Q$149,\n'[1]SM2 - DECC Scenario 1 equiv'!Q$149,\n'[1]SM3 - DECC Scenario 2 equiv'!Q$149,\n'[1]SM4 - DNO Scenario 4 equiv'!Q$149,\n'[2]M1a - Model inputs'!Q$149,\n'[2]M1b - Model inputs'!Q$149,\n'[2]SM1 - DECC Scenario 3 equiv'!Q$149,\n'[2]SM2 - DECC Scenario 1 equiv'!Q$149,\n'[2]SM3 - DECC Scenario 2 equiv'!Q$149,\n'[2]SM4 - DNO Scenario 4 equiv'!Q$149)","v":0},{"$f":"CHOOSE(view,\n'[1]M1a - Model inputs'!R$149,\n'[1]M1b - Model inputs'!R$149,\n'[1]SM1 - DECC Scenario 3 equiv'!R$149,\n'[1]SM2 - DECC Scenario 1 equiv'!R$149,\n'[1]SM3 - DECC Scenario 2 equiv'!R$149,\n'[1]SM4 - DNO Scenario 4 equiv'!R$149,\n'[2]M1a - Model inputs'!R$149,\n'[2]M1b - Model inputs'!R$149,\n'[2]SM1 - DECC Scenario 3 equiv'!R$149,\n'[2]SM2 - DECC Scenario 1 equiv'!R$149,\n'[2]SM3 - DECC Scenario 2 equiv'!R$149,\n'[2]SM4 - DNO Scenario 4 equiv'!R$149)","v":0},{"$f":"CHOOSE(view,\n'[1]M1a - Model inputs'!S$149,\n'[1]M1b - Model inputs'!S$149,\n'[1]SM1 - DECC Scenario 3 equiv'!S$149,\n'[1]SM2 - DECC Scenario 1 equiv'!S$149,\n'[1]SM3 - DECC Scenario 2 equiv'!S$149,\n'[1]SM4 - DNO Scenario 4 equiv'!S$149,\n'[2]M1a - Model inputs'!S$149,\n'[2]M1b - Model inputs'!S$149,\n'[2]SM1 - DECC Scenario 3 equiv'!S$149,\n'[2]SM2 - DECC Scenario 1 equiv'!S$149,\n'[2]SM3 - DECC Scenario 2 equiv'!S$149,\n'[2]SM4 - DNO Scenario 4 equiv'!S$149)","v":0}]
[null,null,null,null,{"$f":"Input!E258","v":"Metering services (legacy)  costs"},null,{"$f":"Input!G258","v":"£m 12/13 prices"},null,null,null,null,null,null,null,null,null,null,null,null,null,null,null,null,null,null,null,null,null,null,null,null,null,null,null,null,{"$f":"CHOOSE(view,\n'[1]M1a - Model inputs'!L$136,\n'[1]M1b - Model inputs'!L$136,\n'[1]SM1 - DECC Scenario 3 equiv'!L$136,\n'[1]SM2 - DECC Scenario 1 equiv'!L$136,\n'[1]SM3 - DECC Scenario 2 equiv'!L$136,\n'[1]SM4 - DNO Scenario 4 equiv'!L$136,\n'[2]M1a - Model inputs'!L$136,\n'[2]M1b - Model inputs'!L$136,\n'[2]SM1 - DECC Scenario 3 equiv'!L$136,\n'[2]SM2 - DECC Scenario 1 equiv'!L$136,\n'[2]SM3 - DECC Scenario 2 equiv'!L$136,\n'[2]SM4 - DNO Scenario 4 equiv'!L$136)","v":1.4770756321544573E-3},{"$f":"CHOOSE(view,\n'[1]M1a - Model inputs'!M$136,\n'[1]M1b - Model inputs'!M$136,\n'[1]SM1 - DECC Scenario 3 equiv'!M$136,\n'[1]SM2 - DECC Scenario 1 equiv'!M$136,\n'[1]SM3 - DECC Scenario 2 equiv'!M$136,\n'[1]SM4 - DNO Scenario 4 equiv'!M$136,\n'[2]M1a - Model inputs'!M$136,\n'[2]M1b - Model inputs'!M$136,\n'[2]SM1 - DECC Scenario 3 equiv'!M$136,\n'[2]SM2 - DECC Scenario 1 equiv'!M$136,\n'[2]SM3 - DECC Scenario 2 equiv'!M$136,\n'[2]SM4 - DNO Scenario 4 equiv'!M$136)","v":1.4579539501531963E-3},{"$f":"CHOOSE(view,\n'[1]M1a - Model inputs'!N$136,\n'[1]M1b - Model inputs'!N$136,\n'[1]SM1 - DECC Scenario 3 equiv'!N$136,\n'[1]SM2 - DECC Scenario 1 equiv'!N$136,\n'[1]SM3 - DECC Scenario 2 equiv'!N$136,\n'[1]SM4 - DNO Scenario 4 equiv'!N$136,\n'[2]M1a - Model inputs'!N$136,\n'[2]M1b - Model inputs'!N$136,\n'[2]SM1 - DECC Scenario 3 equiv'!N$136,\n'[2]SM2 - DECC Scenario 1 equiv'!N$136,\n'[2]SM3 - DECC Scenario 2 equiv'!N$136,\n'[2]SM4 - DNO Scenario 4 equiv'!N$136)","v":1.4374011134613116E-3},{"$f":"CHOOSE(view,\n'[1]M1a - Model inputs'!O$136,\n'[1]M1b - Model inputs'!O$136,\n'[1]SM1 - DECC Scenario 3 equiv'!O$136,\n'[1]SM2 - DECC Scenario 1 equiv'!O$136,\n'[1]SM3 - DECC Scenario 2 equiv'!O$136,\n'[1]SM4 - DNO Scenario 4 equiv'!O$136,\n'[2]M1a - Model inputs'!O$136,\n'[2]M1b - Model inputs'!O$136,\n'[2]SM1 - DECC Scenario 3 equiv'!O$136,\n'[2]SM2 - DECC Scenario 1 equiv'!O$136,\n'[2]SM3 - DECC Scenario 2 equiv'!O$136,\n'[2]SM4 - DNO Scenario 4 equiv'!O$136)","v":1.3980562869495062E-3},{"$f":"CHOOSE(view,\n'[1]M1a - Model inputs'!P$136,\n'[1]M1b - Model inputs'!P$136,\n'[1]SM1 - DECC Scenario 3 equiv'!P$136,\n'[1]SM2 - DECC Scenario 1 equiv'!P$136,\n'[1]SM3 - DECC Scenario 2 equiv'!P$136,\n'[1]SM4 - DNO Scenario 4 equiv'!P$136,\n'[2]M1a - Model inputs'!P$136,\n'[2]M1b - Model inputs'!P$136,\n'[2]SM1 - DECC Scenario 3 equiv'!P$136,\n'[2]SM2 - DECC Scenario 1 equiv'!P$136,\n'[2]SM3 - DECC Scenario 2 equiv'!P$136,\n'[2]SM4 - DNO Scenario 4 equiv'!P$136)","v":1.3715848466729346E-3},{"$f":"CHOOSE(view,\n'[1]M1a - Model inputs'!Q$136,\n'[1]M1b - Model inputs'!Q$136,\n'[1]SM1 - DECC Scenario 3 equiv'!Q$136,\n'[1]SM2 - DECC Scenario 1 equiv'!Q$136,\n'[1]SM3 - DECC Scenario 2 equiv'!Q$136,\n'[1]SM4 - DNO Scenario 4 equiv'!Q$136,\n'[2]M1a - Model inputs'!Q$136,\n'[2]M1b - Model inputs'!Q$136,\n'[2]SM1 - DECC Scenario 3 equiv'!Q$136,\n'[2]SM2 - DECC Scenario 1 equiv'!Q$136,\n'[2]SM3 - DECC Scenario 2 equiv'!Q$136,\n'[2]SM4 - DNO Scenario 4 equiv'!Q$136)","v":1.3650381959125801E-3},{"$f":"CHOOSE(view,\n'[1]M1a - Model inputs'!R$136,\n'[1]M1b - Model inputs'!R$136,\n'[1]SM1 - DECC Scenario 3 equiv'!R$136,\n'[1]SM2 - DECC Scenario 1 equiv'!R$136,\n'[1]SM3 - DECC Scenario 2 equiv'!R$136,\n'[1]SM4 - DNO Scenario 4 equiv'!R$136,\n'[2]M1a - Model inputs'!R$136,\n'[2]M1b - Model inputs'!R$136,\n'[2]SM1 - DECC Scenario 3 equiv'!R$136,\n'[2]SM2 - DECC Scenario 1 equiv'!R$136,\n'[2]SM3 - DECC Scenario 2 equiv'!R$136,\n'[2]SM4 - DNO Scenario 4 equiv'!R$136)","v":1.3385917202397195E-3},{"$f":"CHOOSE(view,\n'[1]M1a - Model inputs'!S$136,\n'[1]M1b - Model inputs'!S$136,\n'[1]SM1 - DECC Scenario 3 equiv'!S$136,\n'[1]SM2 - DECC Scenario 1 equiv'!S$136,\n'[1]SM3 - DECC Scenario 2 equiv'!S$136,\n'[1]SM4 - DNO Scenario 4 equiv'!S$136,\n'[2]M1a - Model inputs'!S$136,\n'[2]M1b - Model inputs'!S$136,\n'[2]SM1 - DECC Scenario 3 equiv'!S$136,\n'[2]SM2 - DECC Scenario 1 equiv'!S$136,\n'[2]SM3 - DECC Scenario 2 equiv'!S$136,\n'[2]SM4 - DNO Scenario 4 equiv'!S$136)","v":1.3056736680795743E-3}]
[null,null,null,null,{"$f":"Input!E259","v":"Metering services (legacy)  net position"},null,{"$f":"Input!G259","v":"£m 12/13 prices"},null,null,null,null,null,null,null,null,null,null,null,null,null,null,null,null,null,null,null,null,null,null,null,null,null,null,null,null,{"$f":"SUM(AJ257, -AJ258)","v":-2.1014770756321544},{"$f":"SUM(AK257, -AK258)","v":-1.901457953950153},-1.4014374011134612,-0.8013980562869496,-0.30137158484667292,-1.3650381959125801E-3,-1.3385917202397195E-3,-1.3056736680795743E-3]
[]
[null,null,null,null,{"$f":"Input!E261","v":"Metering services associated with the SM roll out revenue"},null,{"$f":"Input!G261","v":"£m 12/13 prices"},null,null,null,null,null,null,null,null,null,null,null,null,null,null,null,null,null,null,null,null,null,null,null,null,null,null,null,null,{"$f":"CHOOSE(view,\n'[1]M1a - Model inputs'!L$150,\n'[1]M1b - Model inputs'!L$150,\n'[1]SM1 - DECC Scenario 3 equiv'!L$150,\n'[1]SM2 - DECC Scenario 1 equiv'!L$150,\n'[1]SM3 - DECC Scenario 2 equiv'!L$150,\n'[1]SM4 - DNO Scenario 4 equiv'!L$150,\n'[2]M1a - Model inputs'!L$150,\n'[2]M1b - Model inputs'!L$150,\n'[2]SM1 - DECC Scenario 3 equiv'!L$150,\n'[2]SM2 - DECC Scenario 1 equiv'!L$150,\n'[2]SM3 - DECC Scenario 2 equiv'!L$150,\n'[2]SM4 - DNO Scenario 4 equiv'!L$150)","v":-0.1},{"$f":"CHOOSE(view,\n'[1]M1a - Model inputs'!M$150,\n'[1]M1b - Model inputs'!M$150,\n'[1]SM1 - DECC Scenario 3 equiv'!M$150,\n'[1]SM2 - DECC Scenario 1 equiv'!M$150,\n'[1]SM3 - DECC Scenario 2 equiv'!M$150,\n'[1]SM4 - DNO Scenario 4 equiv'!M$150,\n'[2]M1a - Model inputs'!M$150,\n'[2]M1b - Model inputs'!M$150,\n'[2]SM1 - DECC Scenario 3 equiv'!M$150,\n'[2]SM2 - DECC Scenario 1 equiv'!M$150,\n'[2]SM3 - DECC Scenario 2 equiv'!M$150,\n'[2]SM4 - DNO Scenario 4 equiv'!M$150)","v":-0.16},{"$f":"CHOOSE(view,\n'[1]M1a - Model inputs'!N$150,\n'[1]M1b - Model inputs'!N$150,\n'[1]SM1 - DECC Scenario 3 equiv'!N$150,\n'[1]SM2 - DECC Scenario 1 equiv'!N$150,\n'[1]SM3 - DECC Scenario 2 equiv'!N$150,\n'[1]SM4 - DNO Scenario 4 equiv'!N$150,\n'[2]M1a - Model inputs'!N$150,\n'[2]M1b - Model inputs'!N$150,\n'[2]SM1 - DECC Scenario 3 equiv'!N$150,\n'[2]SM2 - DECC Scenario 1 equiv'!N$150,\n'[2]SM3 - DECC Scenario 2 equiv'!N$150,\n'[2]SM4 - DNO Scenario 4 equiv'!N$150)","v":-0.24},{"$f":"CHOOSE(view,\n'[1]M1a - Model inputs'!O$150,\n'[1]M1b - Model inputs'!O$150,\n'[1]SM1 - DECC Scenario 3 equiv'!O$150,\n'[1]SM2 - DECC Scenario 1 equiv'!O$150,\n'[1]SM3 - DECC Scenario 2 equiv'!O$150,\n'[1]SM4 - DNO Scenario 4 equiv'!O$150,\n'[2]M1a - Model inputs'!O$150,\n'[2]M1b - Model inputs'!O$150,\n'[2]SM1 - DECC Scenario 3 equiv'!O$150,\n'[2]SM2 - DECC Scenario 1 equiv'!O$150,\n'[2]SM3 - DECC Scenario 2 equiv'!O$150,\n'[2]SM4 - DNO Scenario 4 equiv'!O$150)","v":-0.28000000000000003},{"$f":"CHOOSE(view,\n'[1]M1a - Model inputs'!P$150,\n'[1]M1b - Model inputs'!P$150,\n'[1]SM1 - DECC Scenario 3 equiv'!P$150,\n'[1]SM2 - DECC Scenario 1 equiv'!P$150,\n'[1]SM3 - DECC Scenario 2 equiv'!P$150,\n'[1]SM4 - DNO Scenario 4 equiv'!P$150,\n'[2]M1a - Model inputs'!P$150,\n'[2]M1b - Model inputs'!P$150,\n'[2]SM1 - DECC Scenario 3 equiv'!P$150,\n'[2]SM2 - DECC Scenario 1 equiv'!P$150,\n'[2]SM3 - DECC Scenario 2 equiv'!P$150,\n'[2]SM4 - DNO Scenario 4 equiv'!P$150)","v":-0.26},{"$f":"CHOOSE(view,\n'[1]M1a - Model inputs'!Q$150,\n'[1]M1b - Model inputs'!Q$150,\n'[1]SM1 - DECC Scenario 3 equiv'!Q$150,\n'[1]SM2 - DECC Scenario 1 equiv'!Q$150,\n'[1]SM3 - DECC Scenario 2 equiv'!Q$150,\n'[1]SM4 - DNO Scenario 4 equiv'!Q$150,\n'[2]M1a - Model inputs'!Q$150,\n'[2]M1b - Model inputs'!Q$150,\n'[2]SM1 - DECC Scenario 3 equiv'!Q$150,\n'[2]SM2 - DECC Scenario 1 equiv'!Q$150,\n'[2]SM3 - DECC Scenario 2 equiv'!Q$150,\n'[2]SM4 - DNO Scenario 4 equiv'!Q$150)","v":-0.18},{"$f":"CHOOSE(view,\n'[1]M1a - Model inputs'!R$150,\n'[1]M1b - Model inputs'!R$150,\n'[1]SM1 - DECC Scenario 3 equiv'!R$150,\n'[1]SM2 - DECC Scenario 1 equiv'!R$150,\n'[1]SM3 - DECC Scenario 2 equiv'!R$150,\n'[1]SM4 - DNO Scenario 4 equiv'!R$150,\n'[2]M1a - Model inputs'!R$150,\n'[2]M1b - Model inputs'!R$150,\n'[2]SM1 - DECC Scenario 3 equiv'!R$150,\n'[2]SM2 - DECC Scenario 1 equiv'!R$150,\n'[2]SM3 - DECC Scenario 2 equiv'!R$150,\n'[2]SM4 - DNO Scenario 4 equiv'!R$150)","v":0},{"$f":"CHOOSE(view,\n'[1]M1a - Model inputs'!S$150,\n'[1]M1b - Model inputs'!S$150,\n'[1]SM1 - DECC Scenario 3 equiv'!S$150,\n'[1]SM2 - DECC Scenario 1 equiv'!S$150,\n'[1]SM3 - DECC Scenario 2 equiv'!S$150,\n'[1]SM4 - DNO Scenario 4 equiv'!S$150,\n'[2]M1a - Model inputs'!S$150,\n'[2]M1b - Model inputs'!S$150,\n'[2]SM1 - DECC Scenario 3 equiv'!S$150,\n'[2]SM2 - DECC Scenario 1 equiv'!S$150,\n'[2]SM3 - DECC Scenario 2 equiv'!S$150,\n'[2]SM4 - DNO Scenario 4 equiv'!S$150)","v":0}]
[null,null,null,null,{"$f":"Input!E262","v":"Metering services associated with the SM roll out costs"},null,{"$f":"Input!G262","v":"£m 12/13 prices"},null,null,null,null,null,null,null,null,null,null,null,null,null,null,null,null,null,null,null,null,null,null,null,null,null,null,null,null,{"$f":"CHOOSE(view,\n'[1]M1a - Model inputs'!L$137,\n'[1]M1b - Model inputs'!L$137,\n'[1]SM1 - DECC Scenario 3 equiv'!L$137,\n'[1]SM2 - DECC Scenario 1 equiv'!L$137,\n'[1]SM3 - DECC Scenario 2 equiv'!L$137,\n'[1]SM4 - DNO Scenario 4 equiv'!L$137,\n'[2]M1a - Model inputs'!L$137,\n'[2]M1b - Model inputs'!L$137,\n'[2]SM1 - DECC Scenario 3 equiv'!L$137,\n'[2]SM2 - DECC Scenario 1 equiv'!L$137,\n'[2]SM3 - DECC Scenario 2 equiv'!L$137,\n'[2]SM4 - DNO Scenario 4 equiv'!L$137)","v":0},{"$f":"CHOOSE(view,\n'[1]M1a - Model inputs'!M$137,\n'[1]M1b - Model inputs'!M$137,\n'[1]SM1 - DECC Scenario 3 equiv'!M$137,\n'[1]SM2 - DECC Scenario 1 equiv'!M$137,\n'[1]SM3 - DECC Scenario 2 equiv'!M$137,\n'[1]SM4 - DNO Scenario 4 equiv'!M$137,\n'[2]M1a - Model inputs'!M$137,\n'[2]M1b - Model inputs'!M$137,\n'[2]SM1 - DECC Scenario 3 equiv'!M$137,\n'[2]SM2 - DECC Scenario 1 equiv'!M$137,\n'[2]SM3 - DECC Scenario 2 equiv'!M$137,\n'[2]SM4 - DNO Scenario 4 equiv'!M$137)","v":0},{"$f":"CHOOSE(view,\n'[1]M1a - Model inputs'!N$137,\n'[1]M1b - Model inputs'!N$137,\n'[1]SM1 - DECC Scenario 3 equiv'!N$137,\n'[1]SM2 - DECC Scenario 1 equiv'!N$137,\n'[1]SM3 - DECC Scenario 2 equiv'!N$137,\n'[1]SM4 - DNO Scenario 4 equiv'!N$137,\n'[2]M1a - Model inputs'!N$137,\n'[2]M1b - Model inputs'!N$137,\n'[2]SM1 - DECC Scenario 3 equiv'!N$137,\n'[2]SM2 - DECC Scenario 1 equiv'!N$137,\n'[2]SM3 - DECC Scenario 2 equiv'!N$137,\n'[2]SM4 - DNO Scenario 4 equiv'!N$137)","v":0},{"$f":"CHOOSE(view,\n'[1]M1a - Model inputs'!O$137,\n'[1]M1b - Model inputs'!O$137,\n'[1]SM1 - DECC Scenario 3 equiv'!O$137,\n'[1]SM2 - DECC Scenario 1 equiv'!O$137,\n'[1]SM3 - DECC Scenario 2 equiv'!O$137,\n'[1]SM4 - DNO Scenario 4 equiv'!O$137,\n'[2]M1a - Model inputs'!O$137,\n'[2]M1b - Model inputs'!O$137,\n'[2]SM1 - DECC Scenario 3 equiv'!O$137,\n'[2]SM2 - DECC Scenario 1 equiv'!O$137,\n'[2]SM3 - DECC Scenario 2 equiv'!O$137,\n'[2]SM4 - DNO Scenario 4 equiv'!O$137)","v":0},{"$f":"CHOOSE(view,\n'[1]M1a - Model inputs'!P$137,\n'[1]M1b - Model inputs'!P$137,\n'[1]SM1 - DECC Scenario 3 equiv'!P$137,\n'[1]SM2 - DECC Scenario 1 equiv'!P$137,\n'[1]SM3 - DECC Scenario 2 equiv'!P$137,\n'[1]SM4 - DNO Scenario 4 equiv'!P$137,\n'[2]M1a - Model inputs'!P$137,\n'[2]M1b - Model inputs'!P$137,\n'[2]SM1 - DECC Scenario 3 equiv'!P$137,\n'[2]SM2 - DECC Scenario 1 equiv'!P$137,\n'[2]SM3 - DECC Scenario 2 equiv'!P$137,\n'[2]SM4 - DNO Scenario 4 equiv'!P$137)","v":0},{"$f":"CHOOSE(view,\n'[1]M1a - Model inputs'!Q$137,\n'[1]M1b - Model inputs'!Q$137,\n'[1]SM1 - DECC Scenario 3 equiv'!Q$137,\n'[1]SM2 - DECC Scenario 1 equiv'!Q$137,\n'[1]SM3 - DECC Scenario 2 equiv'!Q$137,\n'[1]SM4 - DNO Scenario 4 equiv'!Q$137,\n'[2]M1a - Model inputs'!Q$137,\n'[2]M1b - Model inputs'!Q$137,\n'[2]SM1 - DECC Scenario 3 equiv'!Q$137,\n'[2]SM2 - DECC Scenario 1 equiv'!Q$137,\n'[2]SM3 - DECC Scenario 2 equiv'!Q$137,\n'[2]SM4 - DNO Scenario 4 equiv'!Q$137)","v":0},{"$f":"CHOOSE(view,\n'[1]M1a - Model inputs'!R$137,\n'[1]M1b - Model inputs'!R$137,\n'[1]SM1 - DECC Scenario 3 equiv'!R$137,\n'[1]SM2 - DECC Scenario 1 equiv'!R$137,\n'[1]SM3 - DECC Scenario 2 equiv'!R$137,\n'[1]SM4 - DNO Scenario 4 equiv'!R$137,\n'[2]M1a - Model inputs'!R$137,\n'[2]M1b - Model inputs'!R$137,\n'[2]SM1 - DECC Scenario 3 equiv'!R$137,\n'[2]SM2 - DECC Scenario 1 equiv'!R$137,\n'[2]SM3 - DECC Scenario 2 equiv'!R$137,\n'[2]SM4 - DNO Scenario 4 equiv'!R$137)","v":0},{"$f":"CHOOSE(view,\n'[1]M1a - Model inputs'!S$137,\n'[1]M1b - Model inputs'!S$137,\n'[1]SM1 - DECC Scenario 3 equiv'!S$137,\n'[1]SM2 - DECC Scenario 1 equiv'!S$137,\n'[1]SM3 - DECC Scenario 2 equiv'!S$137,\n'[1]SM4 - DNO Scenario 4 equiv'!S$137,\n'[2]M1a - Model inputs'!S$137,\n'[2]M1b - Model inputs'!S$137,\n'[2]SM1 - DECC Scenario 3 equiv'!S$137,\n'[2]SM2 - DECC Scenario 1 equiv'!S$137,\n'[2]SM3 - DECC Scenario 2 equiv'!S$137,\n'[2]SM4 - DNO Scenario 4 equiv'!S$137)","v":0}]
[null,null,null,null,{"$f":"Input!E263","v":"Metering services associated with the SM roll out net position"},null,{"$f":"Input!G263","v":"£m 12/13 prices"},null,null,null,null,null,null,null,null,null,null,null,null,null,null,null,null,null,null,null,null,null,null,null,null,null,null,null,null,{"$f":"SUM(AJ261, -AJ262)","v":-0.1},{"$f":"SUM(AK261, -AK262)","v":-0.16},-0.24,-0.28000000000000003,-0.26,-0.18,0,0]
[]
[null,null,null,null,{"$f":"Input!E265","v":"De Minimis Activities revenue"},null,{"$f":"Input!G265","v":"£m 12/13 prices"},null,null,null,null,null,null,null,null,null,null,null,null,null,null,null,null,null,null,null,null,null,null,null,null,null,null,null,null,{"$f":"CHOOSE(view,\n'[1]M1a - Model inputs'!L$151,\n'[1]M1b - Model inputs'!L$151,\n'[1]SM1 - DECC Scenario 3 equiv'!L$151,\n'[1]SM2 - DECC Scenario 1 equiv'!L$151,\n'[1]SM3 - DECC Scenario 2 equiv'!L$151,\n'[1]SM4 - DNO Scenario 4 equiv'!L$151,\n'[2]M1a - Model inputs'!L$151,\n'[2]M1b - Model inputs'!L$151,\n'[2]SM1 - DECC Scenario 3 equiv'!L$151,\n'[2]SM2 - DECC Scenario 1 equiv'!L$151,\n'[2]SM3 - DECC Scenario 2 equiv'!L$151,\n'[2]SM4 - DNO Scenario 4 equiv'!L$151)","v":-1.3101099879348881},{"$f":"CHOOSE(view,\n'[1]M1a - Model inputs'!M$151,\n'[1]M1b - Model inputs'!M$151,\n'[1]SM1 - DECC Scenario 3 equiv'!M$151,\n'[1]SM2 - DECC Scenario 1 equiv'!M$151,\n'[1]SM3 - DECC Scenario 2 equiv'!M$151,\n'[1]SM4 - DNO Scenario 4 equiv'!M$151,\n'[2]M1a - Model inputs'!M$151,\n'[2]M1b - Model inputs'!M$151,\n'[2]SM1 - DECC Scenario 3 equiv'!M$151,\n'[2]SM2 - DECC Scenario 1 equiv'!M$151,\n'[2]SM3 - DECC Scenario 2 equiv'!M$151,\n'[2]SM4 - DNO Scenario 4 equiv'!M$151)","v":-1.3101099879348881},{"$f":"CHOOSE(view,\n'[1]M1a - Model inputs'!N$151,\n'[1]M1b - Model inputs'!N$151,\n'[1]SM1 - DECC Scenario 3 equiv'!N$151,\n'[1]SM2 - DECC Scenario 1 equiv'!N$151,\n'[1]SM3 - DECC Scenario 2 equiv'!N$151,\n'[1]SM4 - DNO Scenario 4 equiv'!N$151,\n'[2]M1a - Model inputs'!N$151,\n'[2]M1b - Model inputs'!N$151,\n'[2]SM1 - DECC Scenario 3 equiv'!N$151,\n'[2]SM2 - DECC Scenario 1 equiv'!N$151,\n'[2]SM3 - DECC Scenario 2 equiv'!N$151,\n'[2]SM4 - DNO Scenario 4 equiv'!N$151)","v":-1.3101099879348881},{"$f":"CHOOSE(view,\n'[1]M1a - Model inputs'!O$151,\n'[1]M1b - Model inputs'!O$151,\n'[1]SM1 - DECC Scenario 3 equiv'!O$151,\n'[1]SM2 - DECC Scenario 1 equiv'!O$151,\n'[1]SM3 - DECC Scenario 2 equiv'!O$151,\n'[1]SM4 - DNO Scenario 4 equiv'!O$151,\n'[2]M1a - Model inputs'!O$151,\n'[2]M1b - Model inputs'!O$151,\n'[2]SM1 - DECC Scenario 3 equiv'!O$151,\n'[2]SM2 - DECC Scenario 1 equiv'!O$151,\n'[2]SM3 - DECC Scenario 2 equiv'!O$151,\n'[2]SM4 - DNO Scenario 4 equiv'!O$151)","v":-1.3101099879348881},{"$f":"CHOOSE(view,\n'[1]M1a - Model inputs'!P$151,\n'[1]M1b - Model inputs'!P$151,\n'[1]SM1 - DECC Scenario 3 equiv'!P$151,\n'[1]SM2 - DECC Scenario 1 equiv'!P$151,\n'[1]SM3 - DECC Scenario 2 equiv'!P$151,\n'[1]SM4 - DNO Scenario 4 equiv'!P$151,\n'[2]M1a - Model inputs'!P$151,\n'[2]M1b - Model inputs'!P$151,\n'[2]SM1 - DECC Scenario 3 equiv'!P$151,\n'[2]SM2 - DECC Scenario 1 equiv'!P$151,\n'[2]SM3 - DECC Scenario 2 equiv'!P$151,\n'[2]SM4 - DNO Scenario 4 equiv'!P$151)","v":-1.3101099879348881},{"$f":"CHOOSE(view,\n'[1]M1a - Model inputs'!Q$151,\n'[1]M1b - Model inputs'!Q$151,\n'[1]SM1 - DECC Scenario 3 equiv'!Q$151,\n'[1]SM2 - DECC Scenario 1 equiv'!Q$151,\n'[1]SM3 - DECC Scenario 2 equiv'!Q$151,\n'[1]SM4 - DNO Scenario 4 equiv'!Q$151,\n'[2]M1a - Model inputs'!Q$151,\n'[2]M1b - Model inputs'!Q$151,\n'[2]SM1 - DECC Scenario 3 equiv'!Q$151,\n'[2]SM2 - DECC Scenario 1 equiv'!Q$151,\n'[2]SM3 - DECC Scenario 2 equiv'!Q$151,\n'[2]SM4 - DNO Scenario 4 equiv'!Q$151)","v":-1.3101099879348881},{"$f":"CHOOSE(view,\n'[1]M1a - Model inputs'!R$151,\n'[1]M1b - Model inputs'!R$151,\n'[1]SM1 - DECC Scenario 3 equiv'!R$151,\n'[1]SM2 - DECC Scenario 1 equiv'!R$151,\n'[1]SM3 - DECC Scenario 2 equiv'!R$151,\n'[1]SM4 - DNO Scenario 4 equiv'!R$151,\n'[2]M1a - Model inputs'!R$151,\n'[2]M1b - Model inputs'!R$151,\n'[2]SM1 - DECC Scenario 3 equiv'!R$151,\n'[2]SM2 - DECC Scenario 1 equiv'!R$151,\n'[2]SM3 - DECC Scenario 2 equiv'!R$151,\n'[2]SM4 - DNO Scenario 4 equiv'!R$151)","v":-1.3101099879348881},{"$f":"CHOOSE(view,\n'[1]M1a - Model inputs'!S$151,\n'[1]M1b - Model inputs'!S$151,\n'[1]SM1 - DECC Scenario 3 equiv'!S$151,\n'[1]SM2 - DECC Scenario 1 equiv'!S$151,\n'[1]SM3 - DECC Scenario 2 equiv'!S$151,\n'[1]SM4 - DNO Scenario 4 equiv'!S$151,\n'[2]M1a - Model inputs'!S$151,\n'[2]M1b - Model inputs'!S$151,\n'[2]SM1 - DECC Scenario 3 equiv'!S$151,\n'[2]SM2 - DECC Scenario 1 equiv'!S$151,\n'[2]SM3 - DECC Scenario 2 equiv'!S$151,\n'[2]SM4 - DNO Scenario 4 equiv'!S$151)","v":-1.3101099879348881}]
[null,null,null,null,{"$f":"Input!E266","v":"De Minimis Activities costs"},null,{"$f":"Input!G266","v":"£m 12/13 prices"},null,null,null,null,null,null,null,null,null,null,null,null,null,null,null,null,null,null,null,null,null,null,null,null,null,null,null,null,{"$f":"CHOOSE(view,\n'[1]M1a - Model inputs'!L$138,\n'[1]M1b - Model inputs'!L$138,\n'[1]SM1 - DECC Scenario 3 equiv'!L$138,\n'[1]SM2 - DECC Scenario 1 equiv'!L$138,\n'[1]SM3 - DECC Scenario 2 equiv'!L$138,\n'[1]SM4 - DNO Scenario 4 equiv'!L$138,\n'[2]M1a - Model inputs'!L$138,\n'[2]M1b - Model inputs'!L$138,\n'[2]SM1 - DECC Scenario 3 equiv'!L$138,\n'[2]SM2 - DECC Scenario 1 equiv'!L$138,\n'[2]SM3 - DECC Scenario 2 equiv'!L$138,\n'[2]SM4 - DNO Scenario 4 equiv'!L$138)","v":1.3844566857391443},{"$f":"CHOOSE(view,\n'[1]M1a - Model inputs'!M$138,\n'[1]M1b - Model inputs'!M$138,\n'[1]SM1 - DECC Scenario 3 equiv'!M$138,\n'[1]SM2 - DECC Scenario 1 equiv'!M$138,\n'[1]SM3 - DECC Scenario 2 equiv'!M$138,\n'[1]SM4 - DNO Scenario 4 equiv'!M$138,\n'[2]M1a - Model inputs'!M$138,\n'[2]M1b - Model inputs'!M$138,\n'[2]SM1 - DECC Scenario 3 equiv'!M$138,\n'[2]SM2 - DECC Scenario 1 equiv'!M$138,\n'[2]SM3 - DECC Scenario 2 equiv'!M$138,\n'[2]SM4 - DNO Scenario 4 equiv'!M$138)","v":1.3484138054720134},{"$f":"CHOOSE(view,\n'[1]M1a - Model inputs'!N$138,\n'[1]M1b - Model inputs'!N$138,\n'[1]SM1 - DECC Scenario 3 equiv'!N$138,\n'[1]SM2 - DECC Scenario 1 equiv'!N$138,\n'[1]SM3 - DECC Scenario 2 equiv'!N$138,\n'[1]SM4 - DNO Scenario 4 equiv'!N$138,\n'[2]M1a - Model inputs'!N$138,\n'[2]M1b - Model inputs'!N$138,\n'[2]SM1 - DECC Scenario 3 equiv'!N$138,\n'[2]SM2 - DECC Scenario 1 equiv'!N$138,\n'[2]SM3 - DECC Scenario 2 equiv'!N$138,\n'[2]SM4 - DNO Scenario 4 equiv'!N$138)","v":1.2930939616489372},{"$f":"CHOOSE(view,\n'[1]M1a - Model inputs'!O$138,\n'[1]M1b - Model inputs'!O$138,\n'[1]SM1 - DECC Scenario 3 equiv'!O$138,\n'[1]SM2 - DECC Scenario 1 equiv'!O$138,\n'[1]SM3 - DECC Scenario 2 equiv'!O$138,\n'[1]SM4 - DNO Scenario 4 equiv'!O$138,\n'[2]M1a - Model inputs'!O$138,\n'[2]M1b - Model inputs'!O$138,\n'[2]SM1 - DECC Scenario 3 equiv'!O$138,\n'[2]SM2 - DECC Scenario 1 equiv'!O$138,\n'[2]SM3 - DECC Scenario 2 equiv'!O$138,\n'[2]SM4 - DNO Scenario 4 equiv'!O$138)","v":1.2941515649783371},{"$f":"CHOOSE(view,\n'[1]M1a - Model inputs'!P$138,\n'[1]M1b - Model inputs'!P$138,\n'[1]SM1 - DECC Scenario 3 equiv'!P$138,\n'[1]SM2 - DECC Scenario 1 equiv'!P$138,\n'[1]SM3 - DECC Scenario 2 equiv'!P$138,\n'[1]SM4 - DNO Scenario 4 equiv'!P$138,\n'[2]M1a - Model inputs'!P$138,\n'[2]M1b - Model inputs'!P$138,\n'[2]SM1 - DECC Scenario 3 equiv'!P$138,\n'[2]SM2 - DECC Scenario 1 equiv'!P$138,\n'[2]SM3 - DECC Scenario 2 equiv'!P$138,\n'[2]SM4 - DNO Scenario 4 equiv'!P$138)","v":1.2889361825868968},{"$f":"CHOOSE(view,\n'[1]M1a - Model inputs'!Q$138,\n'[1]M1b - Model inputs'!Q$138,\n'[1]SM1 - DECC Scenario 3 equiv'!Q$138,\n'[1]SM2 - DECC Scenario 1 equiv'!Q$138,\n'[1]SM3 - DECC Scenario 2 equiv'!Q$138,\n'[1]SM4 - DNO Scenario 4 equiv'!Q$138,\n'[2]M1a - Model inputs'!Q$138,\n'[2]M1b - Model inputs'!Q$138,\n'[2]SM1 - DECC Scenario 3 equiv'!Q$138,\n'[2]SM2 - DECC Scenario 1 equiv'!Q$138,\n'[2]SM3 - DECC Scenario 2 equiv'!Q$138,\n'[2]SM4 - DNO Scenario 4 equiv'!Q$138)","v":1.27961226358696},{"$f":"CHOOSE(view,\n'[1]M1a - Model inputs'!R$138,\n'[1]M1b - Model inputs'!R$138,\n'[1]SM1 - DECC Scenario 3 equiv'!R$138,\n'[1]SM2 - DECC Scenario 1 equiv'!R$138,\n'[1]SM3 - DECC Scenario 2 equiv'!R$138,\n'[1]SM4 - DNO Scenario 4 equiv'!R$138,\n'[2]M1a - Model inputs'!R$138,\n'[2]M1b - Model inputs'!R$138,\n'[2]SM1 - DECC Scenario 3 equiv'!R$138,\n'[2]SM2 - DECC Scenario 1 equiv'!R$138,\n'[2]SM3 - DECC Scenario 2 equiv'!R$138,\n'[2]SM4 - DNO Scenario 4 equiv'!R$138)","v":1.2567489059801986},{"$f":"CHOOSE(view,\n'[1]M1a - Model inputs'!S$138,\n'[1]M1b - Model inputs'!S$138,\n'[1]SM1 - DECC Scenario 3 equiv'!S$138,\n'[1]SM2 - DECC Scenario 1 equiv'!S$138,\n'[1]SM3 - DECC Scenario 2 equiv'!S$138,\n'[1]SM4 - DNO Scenario 4 equiv'!S$138,\n'[2]M1a - Model inputs'!S$138,\n'[2]M1b - Model inputs'!S$138,\n'[2]SM1 - DECC Scenario 3 equiv'!S$138,\n'[2]SM2 - DECC Scenario 1 equiv'!S$138,\n'[2]SM3 - DECC Scenario 2 equiv'!S$138,\n'[2]SM4 - DNO Scenario 4 equiv'!S$138)","v":1.2148414515339254}]
[null,null,null,null,{"$f":"Input!E267","v":"De Minimis Activities net position"},null,{"$f":"Input!G267","v":"£m 12/13 prices"},null,null,null,null,null,null,null,null,null,null,null,null,null,null,null,null,null,null,null,null,null,null,null,null,null,null,null,null,{"$f":"SUM(AJ265, -AJ266)","v":-2.6945666736740321},{"$f":"SUM(AK265, -AK266)","v":-2.6585237934069017},-2.6032039495838255,-2.6042615529132251,-2.5990461705217847,-2.5897222515218479,-2.5668588939150867,-2.5249514394688135]
[]
[null,null,null,null,{"$f":"Input!E269","v":"Out of Area Networks revenue"},null,{"$f":"Input!G269","v":"£m 12/13 prices"},null,null,null,null,null,null,null,null,null,null,null,null,null,null,null,null,null,null,null,null,null,null,null,null,null,null,null,null,{"$f":"CHOOSE(view,\n'[1]M1a - Model inputs'!L$152,\n'[1]M1b - Model inputs'!L$152,\n'[1]SM1 - DECC Scenario 3 equiv'!L$152,\n'[1]SM2 - DECC Scenario 1 equiv'!L$152,\n'[1]SM3 - DECC Scenario 2 equiv'!L$152,\n'[1]SM4 - DNO Scenario 4 equiv'!L$152,\n'[2]M1a - Model inputs'!L$152,\n'[2]M1b - Model inputs'!L$152,\n'[2]SM1 - DECC Scenario 3 equiv'!L$152,\n'[2]SM2 - DECC Scenario 1 equiv'!L$152,\n'[2]SM3 - DECC Scenario 2 equiv'!L$152,\n'[2]SM4 - DNO Scenario 4 equiv'!L$152)","v":0},{"$f":"CHOOSE(view,\n'[1]M1a - Model inputs'!M$152,\n'[1]M1b - Model inputs'!M$152,\n'[1]SM1 - DECC Scenario 3 equiv'!M$152,\n'[1]SM2 - DECC Scenario 1 equiv'!M$152,\n'[1]SM3 - DECC Scenario 2 equiv'!M$152,\n'[1]SM4 - DNO Scenario 4 equiv'!M$152,\n'[2]M1a - Model inputs'!M$152,\n'[2]M1b - Model inputs'!M$152,\n'[2]SM1 - DECC Scenario 3 equiv'!M$152,\n'[2]SM2 - DECC Scenario 1 equiv'!M$152,\n'[2]SM3 - DECC Scenario 2 equiv'!M$152,\n'[2]SM4 - DNO Scenario 4 equiv'!M$152)","v":0},{"$f":"CHOOSE(view,\n'[1]M1a - Model inputs'!N$152,\n'[1]M1b - Model inputs'!N$152,\n'[1]SM1 - DECC Scenario 3 equiv'!N$152,\n'[1]SM2 - DECC Scenario 1 equiv'!N$152,\n'[1]SM3 - DECC Scenario 2 equiv'!N$152,\n'[1]SM4 - DNO Scenario 4 equiv'!N$152,\n'[2]M1a - Model inputs'!N$152,\n'[2]M1b - Model inputs'!N$152,\n'[2]SM1 - DECC Scenario 3 equiv'!N$152,\n'[2]SM2 - DECC Scenario 1 equiv'!N$152,\n'[2]SM3 - DECC Scenario 2 equiv'!N$152,\n'[2]SM4 - DNO Scenario 4 equiv'!N$152)","v":0},{"$f":"CHOOSE(view,\n'[1]M1a - Model inputs'!O$152,\n'[1]M1b - Model inputs'!O$152,\n'[1]SM1 - DECC Scenario 3 equiv'!O$152,\n'[1]SM2 - DECC Scenario 1 equiv'!O$152,\n'[1]SM3 - DECC Scenario 2 equiv'!O$152,\n'[1]SM4 - DNO Scenario 4 equiv'!O$152,\n'[2]M1a - Model inputs'!O$152,\n'[2]M1b - Model inputs'!O$152,\n'[2]SM1 - DECC Scenario 3 equiv'!O$152,\n'[2]SM2 - DECC Scenario 1 equiv'!O$152,\n'[2]SM3 - DECC Scenario 2 equiv'!O$152,\n'[2]SM4 - DNO Scenario 4 equiv'!O$152)","v":0},{"$f":"CHOOSE(view,\n'[1]M1a - Model inputs'!P$152,\n'[1]M1b - Model inputs'!P$152,\n'[1]SM1 - DECC Scenario 3 equiv'!P$152,\n'[1]SM2 - DECC Scenario 1 equiv'!P$152,\n'[1]SM3 - DECC Scenario 2 equiv'!P$152,\n'[1]SM4 - DNO Scenario 4 equiv'!P$152,\n'[2]M1a - Model inputs'!P$152,\n'[2]M1b - Model inputs'!P$152,\n'[2]SM1 - DECC Scenario 3 equiv'!P$152,\n'[2]SM2 - DECC Scenario 1 equiv'!P$152,\n'[2]SM3 - DECC Scenario 2 equiv'!P$152,\n'[2]SM4 - DNO Scenario 4 equiv'!P$152)","v":0},{"$f":"CHOOSE(view,\n'[1]M1a - Model inputs'!Q$152,\n'[1]M1b - Model inputs'!Q$152,\n'[1]SM1 - DECC Scenario 3 equiv'!Q$152,\n'[1]SM2 - DECC Scenario 1 equiv'!Q$152,\n'[1]SM3 - DECC Scenario 2 equiv'!Q$152,\n'[1]SM4 - DNO Scenario 4 equiv'!Q$152,\n'[2]M1a - Model inputs'!Q$152,\n'[2]M1b - Model inputs'!Q$152,\n'[2]SM1 - DECC Scenario 3 equiv'!Q$152,\n'[2]SM2 - DECC Scenario 1 equiv'!Q$152,\n'[2]SM3 - DECC Scenario 2 equiv'!Q$152,\n'[2]SM4 - DNO Scenario 4 equiv'!Q$152)","v":0},{"$f":"CHOOSE(view,\n'[1]M1a - Model inputs'!R$152,\n'[1]M1b - Model inputs'!R$152,\n'[1]SM1 - DECC Scenario 3 equiv'!R$152,\n'[1]SM2 - DECC Scenario 1 equiv'!R$152,\n'[1]SM3 - DECC Scenario 2 equiv'!R$152,\n'[1]SM4 - DNO Scenario 4 equiv'!R$152,\n'[2]M1a - Model inputs'!R$152,\n'[2]M1b - Model inputs'!R$152,\n'[2]SM1 - DECC Scenario 3 equiv'!R$152,\n'[2]SM2 - DECC Scenario 1 equiv'!R$152,\n'[2]SM3 - DECC Scenario 2 equiv'!R$152,\n'[2]SM4 - DNO Scenario 4 equiv'!R$152)","v":0},{"$f":"CHOOSE(view,\n'[1]M1a - Model inputs'!S$152,\n'[1]M1b - Model inputs'!S$152,\n'[1]SM1 - DECC Scenario 3 equiv'!S$152,\n'[1]SM2 - DECC Scenario 1 equiv'!S$152,\n'[1]SM3 - DECC Scenario 2 equiv'!S$152,\n'[1]SM4 - DNO Scenario 4 equiv'!S$152,\n'[2]M1a - Model inputs'!S$152,\n'[2]M1b - Model inputs'!S$152,\n'[2]SM1 - DECC Scenario 3 equiv'!S$152,\n'[2]SM2 - DECC Scenario 1 equiv'!S$152,\n'[2]SM3 - DECC Scenario 2 equiv'!S$152,\n'[2]SM4 - DNO Scenario 4 equiv'!S$152)","v":0}]
[null,null,null,null,{"$f":"Input!E270","v":"Out of Area Networks costs"},null,{"$f":"Input!G270","v":"£m 12/13 prices"},null,null,null,null,null,null,null,null,null,null,null,null,null,null,null,null,null,null,null,null,null,null,null,null,null,null,null,null,{"$f":"CHOOSE(view,\n'[1]M1a - Model inputs'!L$139,\n'[1]M1b - Model inputs'!L$139,\n'[1]SM1 - DECC Scenario 3 equiv'!L$139,\n'[1]SM2 - DECC Scenario 1 equiv'!L$139,\n'[1]SM3 - DECC Scenario 2 equiv'!L$139,\n'[1]SM4 - DNO Scenario 4 equiv'!L$139,\n'[2]M1a - Model inputs'!L$139,\n'[2]M1b - Model inputs'!L$139,\n'[2]SM1 - DECC Scenario 3 equiv'!L$139,\n'[2]SM2 - DECC Scenario 1 equiv'!L$139,\n'[2]SM3 - DECC Scenario 2 equiv'!L$139,\n'[2]SM4 - DNO Scenario 4 equiv'!L$139)","v":0},{"$f":"CHOOSE(view,\n'[1]M1a - Model inputs'!M$139,\n'[1]M1b - Model inputs'!M$139,\n'[1]SM1 - DECC Scenario 3 equiv'!M$139,\n'[1]SM2 - DECC Scenario 1 equiv'!M$139,\n'[1]SM3 - DECC Scenario 2 equiv'!M$139,\n'[1]SM4 - DNO Scenario 4 equiv'!M$139,\n'[2]M1a - Model inputs'!M$139,\n'[2]M1b - Model inputs'!M$139,\n'[2]SM1 - DECC Scenario 3 equiv'!M$139,\n'[2]SM2 - DECC Scenario 1 equiv'!M$139,\n'[2]SM3 - DECC Scenario 2 equiv'!M$139,\n'[2]SM4 - DNO Scenario 4 equiv'!M$139)","v":0},{"$f":"CHOOSE(view,\n'[1]M1a - Model inputs'!N$139,\n'[1]M1b - Model inputs'!N$139,\n'[1]SM1 - DECC Scenario 3 equiv'!N$139,\n'[1]SM2 - DECC Scenario 1 equiv'!N$139,\n'[1]SM3 - DECC Scenario 2 equiv'!N$139,\n'[1]SM4 - DNO Scenario 4 equiv'!N$139,\n'[2]M1a - Model inputs'!N$139,\n'[2]M1b - Model inputs'!N$139,\n'[2]SM1 - DECC Scenario 3 equiv'!N$139,\n'[2]SM2 - DECC Scenario 1 equiv'!N$139,\n'[2]SM3 - DECC Scenario 2 equiv'!N$139,\n'[2]SM4 - DNO Scenario 4 equiv'!N$139)","v":0},{"$f":"CHOOSE(view,\n'[1]M1a - Model inputs'!O$139,\n'[1]M1b - Model inputs'!O$139,\n'[1]SM1 - DECC Scenario 3 equiv'!O$139,\n'[1]SM2 - DECC Scenario 1 equiv'!O$139,\n'[1]SM3 - DECC Scenario 2 equiv'!O$139,\n'[1]SM4 - DNO Scenario 4 equiv'!O$139,\n'[2]M1a - Model inputs'!O$139,\n'[2]M1b - Model inputs'!O$139,\n'[2]SM1 - DECC Scenario 3 equiv'!O$139,\n'[2]SM2 - DECC Scenario 1 equiv'!O$139,\n'[2]SM3 - DECC Scenario 2 equiv'!O$139,\n'[2]SM4 - DNO Scenario 4 equiv'!O$139)","v":0},{"$f":"CHOOSE(view,\n'[1]M1a - Model inputs'!P$139,\n'[1]M1b - Model inputs'!P$139,\n'[1]SM1 - DECC Scenario 3 equiv'!P$139,\n'[1]SM2 - DECC Scenario 1 equiv'!P$139,\n'[1]SM3 - DECC Scenario 2 equiv'!P$139,\n'[1]SM4 - DNO Scenario 4 equiv'!P$139,\n'[2]M1a - Model inputs'!P$139,\n'[2]M1b - Model inputs'!P$139,\n'[2]SM1 - DECC Scenario 3 equiv'!P$139,\n'[2]SM2 - DECC Scenario 1 equiv'!P$139,\n'[2]SM3 - DECC Scenario 2 equiv'!P$139,\n'[2]SM4 - DNO Scenario 4 equiv'!P$139)","v":0},{"$f":"CHOOSE(view,\n'[1]M1a - Model inputs'!Q$139,\n'[1]M1b - Model inputs'!Q$139,\n'[1]SM1 - DECC Scenario 3 equiv'!Q$139,\n'[1]SM2 - DECC Scenario 1 equiv'!Q$139,\n'[1]SM3 - DECC Scenario 2 equiv'!Q$139,\n'[1]SM4 - DNO Scenario 4 equiv'!Q$139,\n'[2]M1a - Model inputs'!Q$139,\n'[2]M1b - Model inputs'!Q$139,\n'[2]SM1 - DECC Scenario 3 equiv'!Q$139,\n'[2]SM2 - DECC Scenario 1 equiv'!Q$139,\n'[2]SM3 - DECC Scenario 2 equiv'!Q$139,\n'[2]SM4 - DNO Scenario 4 equiv'!Q$139)","v":0},{"$f":"CHOOSE(view,\n'[1]M1a - Model inputs'!R$139,\n'[1]M1b - Model inputs'!R$139,\n'[1]SM1 - DECC Scenario 3 equiv'!R$139,\n'[1]SM2 - DECC Scenario 1 equiv'!R$139,\n'[1]SM3 - DECC Scenario 2 equiv'!R$139,\n'[1]SM4 - DNO Scenario 4 equiv'!R$139,\n'[2]M1a - Model inputs'!R$139,\n'[2]M1b - Model inputs'!R$139,\n'[2]SM1 - DECC Scenario 3 equiv'!R$139,\n'[2]SM2 - DECC Scenario 1 equiv'!R$139,\n'[2]SM3 - DECC Scenario 2 equiv'!R$139,\n'[2]SM4 - DNO Scenario 4 equiv'!R$139)","v":0},{"$f":"CHOOSE(view,\n'[1]M1a - Model inputs'!S$139,\n'[1]M1b - Model inputs'!S$139,\n'[1]SM1 - DECC Scenario 3 equiv'!S$139,\n'[1]SM2 - DECC Scenario 1 equiv'!S$139,\n'[1]SM3 - DECC Scenario 2 equiv'!S$139,\n'[1]SM4 - DNO Scenario 4 equiv'!S$139,\n'[2]M1a - Model inputs'!S$139,\n'[2]M1b - Model inputs'!S$139,\n'[2]SM1 - DECC Scenario 3 equiv'!S$139,\n'[2]SM2 - DECC Scenario 1 equiv'!S$139,\n'[2]SM3 - DECC Scenario 2 equiv'!S$139,\n'[2]SM4 - DNO Scenario 4 equiv'!S$139)","v":0}]
[null,null,null,null,{"$f":"Input!E271","v":"Out of Area Networks net position"},null,{"$f":"Input!G271","v":"£m 12/13 prices"},null,null,null,null,null,null,null,null,null,null,null,null,null,null,null,null,null,null,null,null,null,null,null,null,null,null,null,null,{"$f":"SUM(AJ269, -AJ270)","v":0},{"$f":"SUM(AK269, -AK270)","v":0},0,0,0,0,0,0]
[]
[null,null,null,null,{"$f":"Input!E273","v":"Other consented activities revenue"},null,{"$f":"Input!G273","v":"£m 12/13 prices"},null,null,null,null,null,null,null,null,null,null,null,null,null,null,null,null,null,null,null,null,null,null,null,null,null,null,null,null,{"$f":"CHOOSE(view,\n'[1]M1a - Model inputs'!L$153,\n'[1]M1b - Model inputs'!L$153,\n'[1]SM1 - DECC Scenario 3 equiv'!L$153,\n'[1]SM2 - DECC Scenario 1 equiv'!L$153,\n'[1]SM3 - DECC Scenario 2 equiv'!L$153,\n'[1]SM4 - DNO Scenario 4 equiv'!L$153,\n'[2]M1a - Model inputs'!L$153,\n'[2]M1b - Model inputs'!L$153,\n'[2]SM1 - DECC Scenario 3 equiv'!L$153,\n'[2]SM2 - DECC Scenario 1 equiv'!L$153,\n'[2]SM3 - DECC Scenario 2 equiv'!L$153,\n'[2]SM4 - DNO Scenario 4 equiv'!L$153)","v":0},{"$f":"CHOOSE(view,\n'[1]M1a - Model inputs'!M$153,\n'[1]M1b - Model inputs'!M$153,\n'[1]SM1 - DECC Scenario 3 equiv'!M$153,\n'[1]SM2 - DECC Scenario 1 equiv'!M$153,\n'[1]SM3 - DECC Scenario 2 equiv'!M$153,\n'[1]SM4 - DNO Scenario 4 equiv'!M$153,\n'[2]M1a - Model inputs'!M$153,\n'[2]M1b - Model inputs'!M$153,\n'[2]SM1 - DECC Scenario 3 equiv'!M$153,\n'[2]SM2 - DECC Scenario 1 equiv'!M$153,\n'[2]SM3 - DECC Scenario 2 equiv'!M$153,\n'[2]SM4 - DNO Scenario 4 equiv'!M$153)","v":0},{"$f":"CHOOSE(view,\n'[1]M1a - Model inputs'!N$153,\n'[1]M1b - Model inputs'!N$153,\n'[1]SM1 - DECC Scenario 3 equiv'!N$153,\n'[1]SM2 - DECC Scenario 1 equiv'!N$153,\n'[1]SM3 - DECC Scenario 2 equiv'!N$153,\n'[1]SM4 - DNO Scenario 4 equiv'!N$153,\n'[2]M1a - Model inputs'!N$153,\n'[2]M1b - Model inputs'!N$153,\n'[2]SM1 - DECC Scenario 3 equiv'!N$153,\n'[2]SM2 - DECC Scenario 1 equiv'!N$153,\n'[2]SM3 - DECC Scenario 2 equiv'!N$153,\n'[2]SM4 - DNO Scenario 4 equiv'!N$153)","v":0},{"$f":"CHOOSE(view,\n'[1]M1a - Model inputs'!O$153,\n'[1]M1b - Model inputs'!O$153,\n'[1]SM1 - DECC Scenario 3 equiv'!O$153,\n'[1]SM2 - DECC Scenario 1 equiv'!O$153,\n'[1]SM3 - DECC Scenario 2 equiv'!O$153,\n'[1]SM4 - DNO Scenario 4 equiv'!O$153,\n'[2]M1a - Model inputs'!O$153,\n'[2]M1b - Model inputs'!O$153,\n'[2]SM1 - DECC Scenario 3 equiv'!O$153,\n'[2]SM2 - DECC Scenario 1 equiv'!O$153,\n'[2]SM3 - DECC Scenario 2 equiv'!O$153,\n'[2]SM4 - DNO Scenario 4 equiv'!O$153)","v":0},{"$f":"CHOOSE(view,\n'[1]M1a - Model inputs'!P$153,\n'[1]M1b - Model inputs'!P$153,\n'[1]SM1 - DECC Scenario 3 equiv'!P$153,\n'[1]SM2 - DECC Scenario 1 equiv'!P$153,\n'[1]SM3 - DECC Scenario 2 equiv'!P$153,\n'[1]SM4 - DNO Scenario 4 equiv'!P$153,\n'[2]M1a - Model inputs'!P$153,\n'[2]M1b - Model inputs'!P$153,\n'[2]SM1 - DECC Scenario 3 equiv'!P$153,\n'[2]SM2 - DECC Scenario 1 equiv'!P$153,\n'[2]SM3 - DECC Scenario 2 equiv'!P$153,\n'[2]SM4 - DNO Scenario 4 equiv'!P$153)","v":0},{"$f":"CHOOSE(view,\n'[1]M1a - Model inputs'!Q$153,\n'[1]M1b - Model inputs'!Q$153,\n'[1]SM1 - DECC Scenario 3 equiv'!Q$153,\n'[1]SM2 - DECC Scenario 1 equiv'!Q$153,\n'[1]SM3 - DECC Scenario 2 equiv'!Q$153,\n'[1]SM4 - DNO Scenario 4 equiv'!Q$153,\n'[2]M1a - Model inputs'!Q$153,\n'[2]M1b - Model inputs'!Q$153,\n'[2]SM1 - DECC Scenario 3 equiv'!Q$153,\n'[2]SM2 - DECC Scenario 1 equiv'!Q$153,\n'[2]SM3 - DECC Scenario 2 equiv'!Q$153,\n'[2]SM4 - DNO Scenario 4 equiv'!Q$153)","v":0},{"$f":"CHOOSE(view,\n'[1]M1a - Model inputs'!R$153,\n'[1]M1b - Model inputs'!R$153,\n'[1]SM1 - DECC Scenario 3 equiv'!R$153,\n'[1]SM2 - DECC Scenario 1 equiv'!R$153,\n'[1]SM3 - DECC Scenario 2 equiv'!R$153,\n'[1]SM4 - DNO Scenario 4 equiv'!R$153,\n'[2]M1a - Model inputs'!R$153,\n'[2]M1b - Model inputs'!R$153,\n'[2]SM1 - DECC Scenario 3 equiv'!R$153,\n'[2]SM2 - DECC Scenario 1 equiv'!R$153,\n'[2]SM3 - DECC Scenario 2 equiv'!R$153,\n'[2]SM4 - DNO Scenario 4 equiv'!R$153)","v":0},{"$f":"CHOOSE(view,\n'[1]M1a - Model inputs'!S$153,\n'[1]M1b - Model inputs'!S$153,\n'[1]SM1 - DECC Scenario 3 equiv'!S$153,\n'[1]SM2 - DECC Scenario 1 equiv'!S$153,\n'[1]SM3 - DECC Scenario 2 equiv'!S$153,\n'[1]SM4 - DNO Scenario 4 equiv'!S$153,\n'[2]M1a - Model inputs'!S$153,\n'[2]M1b - Model inputs'!S$153,\n'[2]SM1 - DECC Scenario 3 equiv'!S$153,\n'[2]SM2 - DECC Scenario 1 equiv'!S$153,\n'[2]SM3 - DECC Scenario 2 equiv'!S$153,\n'[2]SM4 - DNO Scenario 4 equiv'!S$153)","v":0}]
[null,null,null,null,{"$f":"Input!E274","v":"Other consented activities costs"},null,{"$f":"Input!G274","v":"£m 12/13 prices"},null,null,null,null,null,null,null,null,null,null,null,null,null,null,null,null,null,null,null,null,null,null,null,null,null,null,null,null,{"$f":"CHOOSE(view,\n'[1]M1a - Model inputs'!L$140,\n'[1]M1b - Model inputs'!L$140,\n'[1]SM1 - DECC Scenario 3 equiv'!L$140,\n'[1]SM2 - DECC Scenario 1 equiv'!L$140,\n'[1]SM3 - DECC Scenario 2 equiv'!L$140,\n'[1]SM4 - DNO Scenario 4 equiv'!L$140,\n'[2]M1a - Model inputs'!L$140,\n'[2]M1b - Model inputs'!L$140,\n'[2]SM1 - DECC Scenario 3 equiv'!L$140,\n'[2]SM2 - DECC Scenario 1 equiv'!L$140,\n'[2]SM3 - DECC Scenario 2 equiv'!L$140,\n'[2]SM4 - DNO Scenario 4 equiv'!L$140)","v":0},{"$f":"CHOOSE(view,\n'[1]M1a - Model inputs'!M$140,\n'[1]M1b - Model inputs'!M$140,\n'[1]SM1 - DECC Scenario 3 equiv'!M$140,\n'[1]SM2 - DECC Scenario 1 equiv'!M$140,\n'[1]SM3 - DECC Scenario 2 equiv'!M$140,\n'[1]SM4 - DNO Scenario 4 equiv'!M$140,\n'[2]M1a - Model inputs'!M$140,\n'[2]M1b - Model inputs'!M$140,\n'[2]SM1 - DECC Scenario 3 equiv'!M$140,\n'[2]SM2 - DECC Scenario 1 equiv'!M$140,\n'[2]SM3 - DECC Scenario 2 equiv'!M$140,\n'[2]SM4 - DNO Scenario 4 equiv'!M$140)","v":0},{"$f":"CHOOSE(view,\n'[1]M1a - Model inputs'!N$140,\n'[1]M1b - Model inputs'!N$140,\n'[1]SM1 - DECC Scenario 3 equiv'!N$140,\n'[1]SM2 - DECC Scenario 1 equiv'!N$140,\n'[1]SM3 - DECC Scenario 2 equiv'!N$140,\n'[1]SM4 - DNO Scenario 4 equiv'!N$140,\n'[2]M1a - Model inputs'!N$140,\n'[2]M1b - Model inputs'!N$140,\n'[2]SM1 - DECC Scenario 3 equiv'!N$140,\n'[2]SM2 - DECC Scenario 1 equiv'!N$140,\n'[2]SM3 - DECC Scenario 2 equiv'!N$140,\n'[2]SM4 - DNO Scenario 4 equiv'!N$140)","v":0},{"$f":"CHOOSE(view,\n'[1]M1a - Model inputs'!O$140,\n'[1]M1b - Model inputs'!O$140,\n'[1]SM1 - DECC Scenario 3 equiv'!O$140,\n'[1]SM2 - DECC Scenario 1 equiv'!O$140,\n'[1]SM3 - DECC Scenario 2 equiv'!O$140,\n'[1]SM4 - DNO Scenario 4 equiv'!O$140,\n'[2]M1a - Model inputs'!O$140,\n'[2]M1b - Model inputs'!O$140,\n'[2]SM1 - DECC Scenario 3 equiv'!O$140,\n'[2]SM2 - DECC Scenario 1 equiv'!O$140,\n'[2]SM3 - DECC Scenario 2 equiv'!O$140,\n'[2]SM4 - DNO Scenario 4 equiv'!O$140)","v":0},{"$f":"CHOOSE(view,\n'[1]M1a - Model inputs'!P$140,\n'[1]M1b - Model inputs'!P$140,\n'[1]SM1 - DECC Scenario 3 equiv'!P$140,\n'[1]SM2 - DECC Scenario 1 equiv'!P$140,\n'[1]SM3 - DECC Scenario 2 equiv'!P$140,\n'[1]SM4 - DNO Scenario 4 equiv'!P$140,\n'[2]M1a - Model inputs'!P$140,\n'[2]M1b - Model inputs'!P$140,\n'[2]SM1 - DECC Scenario 3 equiv'!P$140,\n'[2]SM2 - DECC Scenario 1 equiv'!P$140,\n'[2]SM3 - DECC Scenario 2 equiv'!P$140,\n'[2]SM4 - DNO Scenario 4 equiv'!P$140)","v":0},{"$f":"CHOOSE(view,\n'[1]M1a - Model inputs'!Q$140,\n'[1]M1b - Model inputs'!Q$140,\n'[1]SM1 - DECC Scenario 3 equiv'!Q$140,\n'[1]SM2 - DECC Scenario 1 equiv'!Q$140,\n'[1]SM3 - DECC Scenario 2 equiv'!Q$140,\n'[1]SM4 - DNO Scenario 4 equiv'!Q$140,\n'[2]M1a - Model inputs'!Q$140,\n'[2]M1b - Model inputs'!Q$140,\n'[2]SM1 - DECC Scenario 3 equiv'!Q$140,\n'[2]SM2 - DECC Scenario 1 equiv'!Q$140,\n'[2]SM3 - DECC Scenario 2 equiv'!Q$140,\n'[2]SM4 - DNO Scenario 4 equiv'!Q$140)","v":0},{"$f":"CHOOSE(view,\n'[1]M1a - Model inputs'!R$140,\n'[1]M1b - Model inputs'!R$140,\n'[1]SM1 - DECC Scenario 3 equiv'!R$140,\n'[1]SM2 - DECC Scenario 1 equiv'!R$140,\n'[1]SM3 - DECC Scenario 2 equiv'!R$140,\n'[1]SM4 - DNO Scenario 4 equiv'!R$140,\n'[2]M1a - Model inputs'!R$140,\n'[2]M1b - Model inputs'!R$140,\n'[2]SM1 - DECC Scenario 3 equiv'!R$140,\n'[2]SM2 - DECC Scenario 1 equiv'!R$140,\n'[2]SM3 - DECC Scenario 2 equiv'!R$140,\n'[2]SM4 - DNO Scenario 4 equiv'!R$140)","v":0},{"$f":"CHOOSE(view,\n'[1]M1a - Model inputs'!S$140,\n'[1]M1b - Model inputs'!S$140,\n'[1]SM1 - DECC Scenario 3 equiv'!S$140,\n'[1]SM2 - DECC Scenario 1 equiv'!S$140,\n'[1]SM3 - DECC Scenario 2 equiv'!S$140,\n'[1]SM4 - DNO Scenario 4 equiv'!S$140,\n'[2]M1a - Model inputs'!S$140,\n'[2]M1b - Model inputs'!S$140,\n'[2]SM1 - DECC Scenario 3 equiv'!S$140,\n'[2]SM2 - DECC Scenario 1 equiv'!S$140,\n'[2]SM3 - DECC Scenario 2 equiv'!S$140,\n'[2]SM4 - DNO Scenario 4 equiv'!S$140)","v":0}]
[null,null,null,null,{"$f":"Input!E275","v":"Other consented activities net position"},null,{"$f":"Input!G275","v":"£m 12/13 prices"},null,null,null,null,null,null,null,null,null,null,null,null,null,null,null,null,null,null,null,null,null,null,null,null,null,null,null,null,{"$f":"SUM(AJ273, -AJ274)","v":0},{"$f":"SUM(AK273, -AK274)","v":0},{"$f":"SUM(AL273, -AL274)","v":0},{"$f":"SUM(AM273, -AM274)","v":0},{"$f":"SUM(AN273, -AN274)","v":0},{"$f":"SUM(AO273, -AO274)","v":0},{"$f":"SUM(AP273, -AP274)","v":0},{"$f":"SUM(AQ273, -AQ274)","v":0}]
[]
[null,null,null,null,{"$f":"Input!E277","v":"Spare revenue"},null,{"$f":"Input!G277","v":"£m 12/13 prices"}]
[null,null,null,null,{"$f":"Input!E278","v":"Spare costs"},null,{"$f":"Input!G278","v":"£m 12/13 prices"}]
[null,null,null,null,{"$f":"Input!E279","v":"Spare net position"},null,{"$f":"Input!G279","v":"£m 12/13 prices"},null,null,null,null,null,null,null,null,null,null,null,null,null,null,null,null,null,null,null,null,null,null,null,null,null,null,null,null,{"$f":"SUM(AJ277, -AJ278)","v":0},{"$f":"SUM(AK277, -AK278)","v":0},{"$f":"SUM(AL277, -AL278)","v":0},{"$f":"SUM(AM277, -AM278)","v":0},{"$f":"SUM(AN277, -AN278)","v":0},{"$f":"SUM(AO277, -AO278)","v":0},{"$f":"SUM(AP277, -AP278)","v":0},{"$f":"SUM(AQ277, -AQ278)","v":0}]
[]
[null,null,null,null,{"$f":"Input!E281","v":"Overall net income of Directly Remunerated Services"},null,{"$f":"Input!G281","v":"£m 12/13 prices"},null,null,null,null,null,null,null,null,null,null,null,null,null,null,null,null,null,null,null,null,null,null,null,null,null,null,null,null,{"$f":"AJ231+AJ235+AJ239+AJ243+AJ247+AJ251+AJ255+AJ259+AJ263+AJ267+AJ271+AJ275+AJ279","v":-14.508510976669964},{"$f":"AK231+AK235+AK239+AK243+AK247+AK251+AK255+AK259+AK263+AK267+AK271+AK275+AK279","v":-22.546677444116675},-21.908525322164497,-21.387703868340498,-20.880618047351835,-20.50284088722098,-20.26621190292914,-20.098450020901698]
[]
[null,"RAV and assets"]
[]
[null,null,"Pre-vesting assets"]
[]
[null,null,null,null,{"$f":"Input!E287","v":"Pre-vesting asset life"},null,"years",null,{"$f":"'[3]F22 Historic RAV lookup data'!$F$24","v":15}]
[null,null,null,null,{"$f":"Input!E288","v":"Pre vesting asset depn in first year (mths)"},null,"months",null,{"$f":"'[3]F22 Historic RAV lookup data'!$H$24","v":3.5}]
[]
[null,null,null,null,"Metering Write off",null,"£m 12/13 prices",null,{"$f":"-'[3]F22 Historic RAV lookup data'!$J$24","v":22.328762879048202}]
[]
[null,null,"Post-vesting assets"]
[]
[null,null,null,null,{"$f":"Input!E294","v":"ED"}]
[null,null,null,null,{"$f":"Input!E295","v":"Post-vesting asset life"},null,"years",null,null,">",33.299999999999997,33.299999999999997,33.299999999999997,33.299999999999997,33.299999999999997,33.299999999999997,33.299999999999997,33.299999999999997,33.299999999999997,33.299999999999997,33.299999999999997,33.299999999999997,33.299999999999997,33.299999999999997,33.299999999999997,33.299999999999997,33.299999999999997,33.299999999999997,33.299999999999997,33.299999999999997,33.299999999999997,33.299999999999997,33.299999999999997,33.299999999999997,33.299999999999997,23.125,26.25,29.375,32.5,35.625,38.75,41.875,45]
[null,null,null,null,{"$f":"Input!E296","v":"Accelerated post-vesting asset life"},null,"years",null,null,">",20,20,20,20,20,20,20,20,20,20,20,20,20,20,20,20,20,20,20,20,20,20,20,20,20,23.125,26.25,29.375,32.5,35.625,38.75,41.875,45]
[null,null,null,null,{"$f":"Input!E297","v":"Smoothing period following full depreciation of pre-vesting assets"},null,"years",null,15]
[null,null,null,null,{"$f":"Input!E298","v":"Vesting Period"},null,"year ending",null,"1991-03-31"]
[null,null,null,null,{"$f":"Input!E299","v":"Pre-RIIO net additions to RAV"},null,"£m 12/13 prices",null,null,">",{"$f":"'[3]F21 RAV rollforward & depn'!F$10","v":29.427249829458987},{"$f":"'[3]F21 RAV rollforward & depn'!G$10","v":103.53461720102848},{"$f":"'[3]F21 RAV rollforward & depn'!H$10","v":104.15089468436794},{"$f":"'[3]F21 RAV rollforward & depn'!I$10","v":106.92414335939549},{"$f":"'[3]F21 RAV rollforward & depn'!J$10","v":121.09852547620295},{"$f":"'[3]F21 RAV rollforward & depn'!K$10","v":107.54042084273492},{"$f":"'[3]F21 RAV rollforward & depn'!L$10","v":124.17991289290022},{"$f":"'[3]F21 RAV rollforward & depn'!M$10","v":105.84565776355142},{"$f":"'[3]F21 RAV rollforward & depn'!N$10","v":112.05918273879193},{"$f":"'[3]F21 RAV rollforward & depn'!O$10","v":100.34160108609318},{"$f":"'[3]F21 RAV rollforward & depn'!P$10","v":101.71991978233071},{"$f":"'[3]F21 RAV rollforward & depn'!Q$10","v":122.94602770438888},{"$f":"'[3]F21 RAV rollforward & depn'!R$10","v":114.81394739658739},{"$f":"'[3]F21 RAV rollforward & depn'!S$10","v":134.62320865872039},{"$f":"'[3]F21 RAV rollforward & depn'!T$10","v":113.36672305139849},{"$f":"'[3]F21 RAV rollforward & depn'!U$10","v":174.21733037885991},{"$f":"'[3]F21 RAV rollforward & depn'!V$10","v":165.13880270591514},{"$f":"'[3]F21 RAV rollforward & depn'!W$10","v":172.19424358687331},{"$f":"'[3]F21 RAV rollforward & depn'!X$10","v":188.87459455264997},{"$f":"'[3]F21 RAV rollforward & depn'!Y$10","v":179.75309706460266},{"$f":"'[3]F21 RAV rollforward & depn'!Z$10","v":185.11275789301999},{"$f":"'[3]F21 RAV rollforward & depn'!AA$10","v":221.25861177530032},{"$f":"'[3]F21 RAV rollforward & depn'!AB$10","v":201.9095218516949},{"$f":"[4]CRAV!AH$25","v":224.58303465550131},{"$f":"[4]CRAV!AI$25","v":228.12625853068582}]
[null,null,null,null,"LRAV",null,"£m 12/13 prices",null,null,null,null,null,null,null,null,null,null,null,null,null,null,null,null,null,null,null,null,null,null,null,null,null,null,{"$f":"AH32","v":8.528433735559986},-6.7337782745080546]
[null,null,null,null,"RIIO post-vesting RAV additions",null,"£m 12/13 prices"]
[null,null,null,null,"RIIO post-vesting RAV disposals",null,"£m 12/13 prices"]
[null,null,null,null,{"$f":"Input!E303","v":"Pre-RIIO transfers to depreciation"},null,"£m 12/13 prices",null,null,">"]
[]
[null,"Tax"]
[]
[null,null,"Tax policy"]
[]
[null,null,null,null,{"$f":"E33","v":"Tax liability allowance adjustments - gearing/interest costs"},null,"£m nominal",null,null,null,null,null,null,null,null,null,null,null,null,null,null,null,null,null,null,null,null,null,null,null,null,null,null,null,null,{"$f":"AJ33","v":0},0,0,0,0,0,0,0]
[null,null,null,null,{"$f":"E34","v":"Tax liability allowance adjustments - driven by tax trigger events"},null,"£m 12/13 prices",null,null,null,null,null,null,null,null,null,null,null,null,null,null,null,null,null,null,null,null,null,null,null,null,null,null,null,null,0,0,0,0,0,0,0,0]
[]
[null,null,null,null,"Corporation tax rate",null,"%",null,null,">",null,null,null,null,null,null,null,null,null,null,null,null,null,null,null,null,null,null,null,null,null,null,null,null,null,0.2,0.2,0.2,0.2,0.2,0.2,0.2,0.2]
[]
[null,null,null,null,"General pool capital allowance rate",null,"%",null,null,">",null,null,null,null,null,null,null,null,null,null,null,null,null,null,null,null,null,null,null,null,null,null,null,null,null,0.18000000000000002,0.18000000000000002,0.18000000000000002,0.18000000000000002,0.18000000000000002,0.18000000000000002,0.18000000000000002,0.18000000000000002]
[null,null,null,null,"Special Rates capital allowance rate",null,"%",null,null,">",null,null,null,null,null,null,null,null,null,null,null,null,null,null,null,null,null,null,null,null,null,null,null,null,null,0.08,0.08,0.08,0.08,0.08,0.08,0.08,0.08]
[null,null,null,null,"Deferred Revenue Expenditure capital allowance rate",null,"%",null,null,">",null,null,null,null,null,null,null,null,null,null,null,null,null,null,null,null,null,null,null,null,null,null,null,null,null,2.2200000000000001E-2,2.2200000000000001E-2,2.2200000000000001E-2,2.2200000000000001E-2,2.2200000000000001E-2,2.2200000000000001E-2,2.2200000000000001E-2,2.2200000000000001E-2]
[]
[null,null,"Capital allowances and tax losses"]
[]
[null,null,null,null,"General pool capital allowance opening balance brought forward",null,"£m nominal",null,null,null,null,null,null,null,null,null,null,null,null,null,null,null,null,null,null,null,null,null,null,null,null,null,null,{"$f":"'[3]F13 Tax CA pools'!$I$58","v":61.617339399999999}]
[null,null,null,null,"General pool capital allowance pre-RIIO movement forecast",null,"£m nominal",null,null,null,null,null,null,null,null,null,null,null,null,null,null,null,null,null,null,null,null,null,null,null,null,null,null,18.741685458583472,9.6324630599037526]
[null,null,null,null,"General pool capital allowance pre-RIIO movement adjustment",null,"£m nominal",null,null,null,null,null,null,null,null,null,null,null,null,null,null,null,null,null,null,null,null,null,null,null,null,null,null,{"$f":"AH35","v":0},{"$f":"AI35","v":0}]
[]
[null,null,null,null,"Special Rate capital allowance opening balance brought forward",null,"£m nominal",null,null,null,null,null,null,null,null,null,null,null,null,null,null,null,null,null,null,null,null,null,null,null,null,null,null,{"$f":"'[3]F13 Tax CA pools'!I$68","v":485.39487789737848}]
[null,null,null,null,"Special Rate  capital allowance pre-RIIO movement forecast",null,"£m nominal",null,null,null,null,null,null,null,null,null,null,null,null,null,null,null,null,null,null,null,null,null,null,null,null,null,null,50.733628561685826,41.340921190379355]
[null,null,null,null,"Special Rate  capital allowance pre-RIIO movement adjustment",null,"£m nominal",null,null,null,null,null,null,null,null,null,null,null,null,null,null,null,null,null,null,null,null,null,null,null,null,null,null,{"$f":"AH36","v":0},{"$f":"AI36","v":0}]
[]
[null,null,null,null,"Deferred revenue expenditure opening balance brought forward",null,"£m nominal",null,null,null,null,null,null,null,null,null,null,null,null,null,null,null,null,null,null,null,null,null,null,null,null,null,null,{"$f":"'[3]F13 Tax CA pools'!I$78","v":660.70752098862249}]
[null,null,null,null,"Deferred revenue expenditure pre-RIIO movement forecast",null,"£m nominal",null,null,null,null,null,null,null,null,null,null,null,null,null,null,null,null,null,null,null,null,null,null,null,null,null,null,82.01743287140377,84.02040996118356]
[null,null,null,null,"Deferred revenue expenditure  pre-RIIO movement adjustment",null,"£m nominal",null,null,null,null,null,null,null,null,null,null,null,null,null,null,null,null,null,null,null,null,null,null,null,null,null,null,{"$f":"AH37","v":0},{"$f":"AI37","v":0}]
[]
[null,null,null,null,"DRE: Gross capex up to and including 31 March 2013",null,"£m nominal",null,null,null,null,null,null,null,null,null,null,null,null,null,null,null,null,null,null,null,null,null,null,null,null,null,null,714.14505299999996]
[null,null,null,null,"DRE: Gross capex forecast",null,"£m nominal",null,null,null,null,null,null,null,null,null,null,null,null,null,null,null,null,null,null,null,null,null,null,null,null,null,null,98.265646868779356,102.31492240669301]
[null,null,null,null,"DRE: Gross capex adjustment",null,"£m nominal",null,null,null,null,null,null,null,null,null,null,null,null,null,null,null,null,null,null,null,null,null,null,null,null,null,null,{"$f":"AH38","v":0},{"$f":"AI38","v":0}]
[]
[null,null,null,null,"Tax loss brought forward",null,"£m nominal",null,null,null,null,null,null,null,null,null,null,null,null,null,null,null,null,null,null,null,null,null,null,null,null,null,null,0]
[]
[null,null,"Tax pool allocation"]
[]
[null,null,null,{"$f":"Input!D340","v":"Tax Pool Allocation "}]
[]
[null,null,null,"Allocation to \"General\" pool"]
[]
[null,null,null,null,{"$f":"Input!E344","v":"Load Related"},null,"%",null,null,null,null,null,null,null,null,null,null,null,null,null,null,null,null,null,null,null,null,null,null,null,null,null,null,null,null,0,0,0,0,0,0,0,0]
[null,null,null,null,{"$f":"Input!E345","v":"Non-load related capex - asset replacement"},null,"%",null,null,null,null,null,null,null,null,null,null,null,null,null,null,null,null,null,null,null,null,null,null,null,null,null,null,null,null,3.4058844306266857E-2,3.6292893053561252E-2,3.9481923871532841E-2,3.9547951375669944E-2,3.6514773921621176E-2,3.1716152952275867E-2,3.2952948598146299E-2,3.1079535836379263E-2]
[null,null,null,null,{"$f":"Input!E346","v":"Non-Load Related - other"},null,"%",null,null,null,null,null,null,null,null,null,null,null,null,null,null,null,null,null,null,null,null,null,null,null,null,null,null,null,null,0.93135190303990512,0.93902891443419256,0.93479847764792601,0.92226671923794123,0.96905889299347614,0.96474533949287322,0.97282849544829697,0.96363491219482766]
[null,null,null,null,{"$f":"Input!E347","v":"Faults"},null,"%",null,null,null,null,null,null,null,null,null,null,null,null,null,null,null,null,null,null,null,null,null,null,null,null,null,null,null,null,0,0,0,0,0,0,0,0]
[null,null,null,null,{"$f":"Input!E348","v":"Tree cutting"},null,"%",null,null,null,null,null,null,null,null,null,null,null,null,null,null,null,null,null,null,null,null,null,null,null,null,null,null,null,null,0,0,0,0,0,0,0,0]
[null,null,null,null,{"$f":"Input!E349","v":"Controllable Opex"},null,"%",null,null,null,null,null,null,null,null,null,null,null,null,null,null,null,null,null,null,null,null,null,null,null,null,null,null,null,null,6.3695218807986745E-2,6.3382110248750553E-2,6.300093170035842E-2,6.2988127253664414E-2,6.3236791356880498E-2,6.3879708717616349E-2,6.5175841361677658E-2,6.5434074042936566E-2]
[]
[null,null,null,"Allocation to \"Special Rate\" pool"]
[]
[null,null,null,null,{"$f":"Input!E353","v":"Load Related"},null,"%",null,null,null,null,null,null,null,null,null,null,null,null,null,null,null,null,null,null,null,null,null,null,null,null,null,null,null,null,0.93858780710420942,0.94229582746831353,0.94492750962562133,0.95330311927319034,0.95712396717811676,0.95864979176449161,0.95946403394372803,0.96677711631808083]
[null,null,null,null,{"$f":"Input!E354","v":"Non-load related capex - asset replacement"},null,"%",null,null,null,null,null,null,null,null,null,null,null,null,null,null,null,null,null,null,null,null,null,null,null,null,null,null,null,null,0.32425693325634614,0.32095965593867115,0.31967893640607475,0.32112088043817472,0.32284783839956233,0.33432680192077413,0.31356133576916556,0.31504966531714124]
[null,null,null,null,{"$f":"Input!E355","v":"Non-Load Related - other"},null,"%",null,null,null,null,null,null,null,null,null,null,null,null,null,null,null,null,null,null,null,null,null,null,null,null,null,null,null,null,2.0574675203960443E-2,4.1681847745024293E-2,5.5425636595346037E-2,3.2174199308531701E-2,2.0845281223804562E-2,1.95455707383351E-2,2.1040817553311539E-2,2.5049835481373704E-2]
[null,null,null,null,{"$f":"Input!E356","v":"Faults"},null,"%",null,null,null,null,null,null,null,null,null,null,null,null,null,null,null,null,null,null,null,null,null,null,null,null,null,null,null,null,0,0,0,0,0,0,0,0]
[null,null,null,null,{"$f":"Input!E357","v":"Tree cutting"},null,"%",null,null,null,null,null,null,null,null,null,null,null,null,null,null,null,null,null,null,null,null,null,null,null,null,null,null,null,null,0,0,0,0,0,0,0,0]
[null,null,null,null,{"$f":"Input!E358","v":"Controllable Opex"},null,"%",null,null,null,null,null,null,null,null,null,null,null,null,null,null,null,null,null,null,null,null,null,null,null,null,null,null,null,null,0.14351037923152751,0.14282655714975923,0.14197257356755966,0.14193964905690498,0.14248870787907975,0.14392982911500699,0.14685043996730032,0.1474170558787492]
[]
[null,null,null,"Allocation to \"Deferred Revenue\" pool"]
[]
[null,null,null,null,{"$f":"Input!E362","v":"Load Related"},null,"%",null,null,null,null,null,null,null,null,null,null,null,null,null,null,null,null,null,null,null,null,null,null,null,null,null,null,null,null,0,0,0,0,0,0,0,0]
[null,null,null,null,{"$f":"Input!E363","v":"Non-load related capex - asset replacement"},null,"%",null,null,null,null,null,null,null,null,null,null,null,null,null,null,null,null,null,null,null,null,null,null,null,null,null,null,null,null,0.55943144560603641,0.56252686863717449,0.5597989190109236,0.56049684550599777,0.56168358698383114,0.55117283356618862,0.57282980422734342,0.57489716247429135]
[null,null,null,null,{"$f":"Input!E364","v":"Non-Load Related - other"},null,"%",null,null,null,null,null,null,null,null,null,null,null,null,null,null,null,null,null,null,null,null,null,null,null,null,null,null,null,null,6.3894286820074409E-3,2.338446891098397E-3,7.5067402838111116E-4,6.1071917181307256E-3,1.134086812046019E-3,1.9438226930175162E-3,6.0461485407456439E-4,1.2348497672742249E-3]
[null,null,null,null,{"$f":"Input!E365","v":"Faults"},null,"%",null,null,null,null,null,null,null,null,null,null,null,null,null,null,null,null,null,null,null,null,null,null,null,null,null,null,null,null,0.72030067719989288,0.72101336927186155,0.7212202076751334,0.72213369635139035,0.72285585519712758,0.72365550028571157,0.72475508797315136,0.72611523503291497]
[null,null,null,null,{"$f":"Input!E366","v":"Tree cutting"},null,"%",null,null,null,null,null,null,null,null,null,null,null,null,null,null,null,null,null,null,null,null,null,null,null,null,null,null,null,null,0,0,0,0,0,0,0,0]
[null,null,null,null,{"$f":"Input!E367","v":"Controllable Opex"},null,"%",null,null,null,null,null,null,null,null,null,null,null,null,null,null,null,null,null,null,null,null,null,null,null,null,null,null,null,null,0.23461562719354137,0.23349631984230027,0.23209989156335928,0.23204632383994561,0.23294465400382255,0.23530111842609902,0.24007581157171162,0.24100309838702541]
[]
[null,null,null,"Allocation to \"Revenue\" pool"]
[]
[null,null,null,null,{"$f":"Input!E371","v":"Load Related"},null,"%",null,null,null,null,null,null,null,null,null,null,null,null,null,null,null,null,null,null,null,null,null,null,null,null,null,null,null,null,6.1412192895790578E-2,5.7704172531686415E-2,5.5072490374378752E-2,4.6696880726809588E-2,4.2876032821883202E-2,4.1350208235508411E-2,4.0535966056272021E-2,3.3222883681919203E-2]
[null,null,null,null,{"$f":"Input!E372","v":"Non-load related capex - asset replacement"},null,"%",null,null,null,null,null,null,null,null,null,null,null,null,null,null,null,null,null,null,null,null,null,null,null,null,null,null,null,null,2.9419362673791159E-2,2.830209140968272E-2,2.8020320322674062E-2,2.6758403165232345E-2,2.5778378029164269E-2,2.486575278550229E-2,2.3988661056929154E-2,2.275270202735425E-2]
[null,null,null,null,{"$f":"Input!E373","v":"Non-Load Related - other"},null,"%",null,null,null,null,null,null,null,null,null,null,null,null,null,null,null,null,null,null,null,null,null,null,null,null,null,null,null,null,3.3474209820823302E-3,2.9201095830942623E-3,4.5211675580601176E-3,2.8087394266120441E-3,2.1572180983972238E-3,2.102330917669008E-3,1.8983830198694401E-3,2.6713039528789848E-3]
[null,null,null,null,{"$f":"Input!E374","v":"Faults"},null,"%",null,null,null,null,null,null,null,null,null,null,null,null,null,null,null,null,null,null,null,null,null,null,null,null,null,null,null,null,0.27969932280010712,0.27898663072813851,0.27877979232486649,0.27786630364860965,0.27714414480287242,0.27634449971428843,0.27524491202684864,0.27388476496708497]
[null,null,null,null,{"$f":"Input!E375","v":"Tree cutting"},null,"%",null,null,null,null,null,null,null,null,null,null,null,null,null,null,null,null,null,null,null,null,null,null,null,null,null,null,null,null,1,1,1,1,1,1,1,1]
[null,null,null,null,{"$f":"Input!E376","v":"Controllable Opex"},null,"%",null,null,null,null,null,null,null,null,null,null,null,null,null,null,null,null,null,null,null,null,null,null,null,null,null,null,null,null,0.54447376018993077,0.54665118653729472,0.54936341002100209,0.54946662608479679,0.54772026937628604,0.5431435534445398,0.53387314197794344,0.53206978745861888]
[]
[null,null,null,"Allocation to \"Non Qualifying\" pool"]
[]
[null,null,null,null,{"$f":"Input!E380","v":"Load Related"},null,"%",null,null,null,null,null,null,null,null,null,null,null,null,null,null,null,null,null,null,null,null,null,null,null,null,null,null,null,null,0,0,0,0,0,0,0,0]
[null,null,null,null,{"$f":"Input!E381","v":"Non-load related capex - asset replacement"},null,"%",null,null,null,null,null,null,null,null,null,null,null,null,null,null,null,null,null,null,null,null,null,null,null,null,null,null,null,null,5.2833414157559551E-2,5.1918490960910217E-2,5.3019900388794561E-2,5.2075919514925191E-2,5.3175422665820954E-2,5.7918458775259127E-2,5.6667250348415431E-2,5.6220934344833884E-2]
[null,null,null,null,{"$f":"Input!E382","v":"Non-Load Related - other"},null,"%",null,null,null,null,null,null,null,null,null,null,null,null,null,null,null,null,null,null,null,null,null,null,null,null,null,null,null,null,3.8336572092044642E-2,1.4030681346590379E-2,4.5040441702866672E-3,3.6643150308784352E-2,6.8045208722761147E-3,1.1662936158105099E-2,3.6276891244473859E-3,7.4090986036453475E-3]
[null,null,null,null,{"$f":"Input!E383","v":"Faults"},null,"%",null,null,null,null,null,null,null,null,null,null,null,null,null,null,null,null,null,null,null,null,null,null,null,null,null,null,null,null,0,0,0,0,0,0,0,0]
[null,null,null,null,{"$f":"Input!E384","v":"Tree cutting"},null,"%",null,null,null,null,null,null,null,null,null,null,null,null,null,null,null,null,null,null,null,null,null,null,null,null,null,null,null,null,0,0,0,0,0,0,0,0]
[null,null,null,null,{"$f":"Input!E385","v":"Controllable Opex"},null,"%",null,null,null,null,null,null,null,null,null,null,null,null,null,null,null,null,null,null,null,null,null,null,null,null,null,null,null,null,1.3705014577013556E-2,1.3643826221895246E-2,1.356319314772058E-2,1.3559273764688103E-2,1.3609577383931142E-2,1.3745790296737843E-2,1.402476512136681E-2,1.4075984232669822E-2]
[]
[null,null,null,"Allocation check"]
[null,null,null,"Note: All categories should equal 100%"]
[]
[null,null,null,null,{"$f":"Input!E390","v":"Load Related"},null,"%",null,null,null,null,null,null,null,null,null,null,null,null,null,null,null,null,null,null,null,null,null,null,null,null,null,null,null,null,{"$f":"AJ344+AJ353+AJ362+AJ371+AJ380","v":1},1,1,0.99999999999999989,1,1,1,1]
[null,null,null,null,{"$f":"Input!E391","v":"Non-load related capex - asset replacement"},null,"%",null,null,null,null,null,null,null,null,null,null,null,null,null,null,null,null,null,null,null,null,null,null,null,null,null,null,null,null,1.0000000000000002,0.99999999999999989,0.99999999999999978,1,0.99999999999999989,1,1,1]
[null,null,null,null,{"$f":"Input!E392","v":"Non-Load Related - other"},null,"%",null,null,null,null,null,null,null,null,null,null,null,null,null,null,null,null,null,null,null,null,null,null,null,null,null,null,null,null,0.99999999999999989,0.99999999999999989,1,1,1,0.99999999999999989,0.99999999999999989,0.99999999999999989]
[null,null,null,null,{"$f":"Input!E393","v":"Faults"},null,"%",null,null,null,null,null,null,null,null,null,null,null,null,null,null,null,null,null,null,null,null,null,null,null,null,null,null,null,null,1,1,0.99999999999999989,1,1,1,1,1]
[null,null,null,null,{"$f":"Input!E394","v":"Tree cutting"},null,"%",null,null,null,null,null,null,null,null,null,null,null,null,null,null,null,null,null,null,null,null,null,null,null,null,null,null,null,null,1,1,1,1,1,1,1,1]
[null,null,null,null,{"$f":"Input!E395","v":"Controllable Opex"},null,"%",null,null,null,null,null,null,null,null,null,null,null,null,null,null,null,null,null,null,null,null,null,null,null,null,null,null,null,null,1,1,1,1,0.99999999999999989,1,0.99999999999999989,0.99999999999999989]
[]
[null,null,null,"Inputs for statutory depreciation"]
[]
[null,null,null,null,"Statutory depreciation as per BPDT",null,"£m 12/13 prices",null,null,null,null,null,null,null,null,null,null,null,null,null,null,null,null,null,null,null,null,null,null,null,null,null,null,null,null,72.461280142913978,77.383991092453357,81.759225735806041,84.34251725890968,86.838463434426018,90.574142236094175,94.392349821290708,99.766705825895002]
[null,null,null,null,"Capex as per BPDT",null,"£m 12/13 prices",null,null,null,null,null,null,null,null,null,null,null,null,null,null,null,null,null,null,null,null,null,null,null,null,null,null,null,null,214.698866489306,221.17746090221945,218.28094487883089,228.40279604004752,243.73617140340809,256.8661991789499,262.581435558463,273.09729982142346]
[]
[]
[null,null,null,"Tax Trigger Deadbands"]
[]
[null,null,null,null,"Tax Trigger Deadband",null,"£m 12/13 prices"]
[]
[null,null,null,"Profiling Values"]
[]
[null,null,null,null,"Initial Profile Adjustment",null,"£m 12/13 prices",null,null,null,null,null,null,null,null,null,null,null,null,null,null,null,null,null,null,null,null,null,null,null,null,null,null,null,null,{"$f":"'Revenue Profiling'!AJ243*'Revenue Profiling'!$G$233","v":0},{"$f":"'Revenue Profiling'!AK243*'Revenue Profiling'!$G$233","v":0},{"$f":"'Revenue Profiling'!AL243*'Revenue Profiling'!$G$233","v":0},{"$f":"'Revenue Profiling'!AM243*'Revenue Profiling'!$G$233","v":0},{"$f":"'Revenue Profiling'!AN243*'Revenue Profiling'!$G$233","v":0},{"$f":"'Revenue Profiling'!AO243*'Revenue Profiling'!$G$233","v":0},{"$f":"'Revenue Profiling'!AP243*'Revenue Profiling'!$G$233","v":0},{"$f":"'Revenue Profiling'!AQ243*'Revenue Profiling'!$G$233","v":0}]
[null,null,null,null,"Time Value of Money Profile Adjustment",null,"£m 12/13 prices",null,null,null,null,null,null,null,null,null,null,null,null,null,null,null,null,null,null,null,null,null,null,null,null,null,null,null,null,{"$f":"'Revenue Profiling'!AJ260*'Revenue Profiling'!$G$233","v":0},{"$f":"'Revenue Profiling'!AK260*'Revenue Profiling'!$G$233","v":0},{"$f":"'Revenue Profiling'!AL260*'Revenue Profiling'!$G$233","v":0},{"$f":"'Revenue Profiling'!AM260*'Revenue Profiling'!$G$233","v":0},{"$f":"'Revenue Profiling'!AN260*'Revenue Profiling'!$G$233","v":0},{"$f":"'Revenue Profiling'!AO260*'Revenue Profiling'!$G$233","v":0},{"$f":"'Revenue Profiling'!AP260*'Revenue Profiling'!$G$233","v":0},{"$f":"'Revenue Profiling'!AQ260*'Revenue Profiling'!$G$233","v":0}]
[null,null,null,null,"Time Value of Money Profile Increment",null,"£m 12/13 prices",null,null,null,null,null,null,null,null,null,null,null,null,null,null,null,null,null,null,null,null,null,null,null,null,null,null,null,null,{"$f":"AJ423","v":0},{"$f":"AK423","v":0},0,0,0,0,0,0]
[]
[null,null,null,null,"Time Value of Money Increment Calculations:"]
[]
[null,null,null,null,"WACC at FP (to be hard pasted at FP)",null,null,null,null,null,null,null,null,null,null,null,null,null,null,null,null,null,null,null,null,null,null,null,null,null,null,null,null,null,null,{"$f":"AJ416","v":4.2429999999999995E-2},{"$f":"AK416","v":4.2429999999999995E-2},4.2429999999999995E-2,4.2429999999999995E-2,4.2429999999999995E-2,4.2429999999999995E-2,4.2429999999999995E-2,4.2429999999999995E-2]
[null,null,null,null,"Current WACC",null,null,null,null,null,null,null,null,null,null,null,null,null,null,null,null,null,null,null,null,null,null,null,null,null,null,null,null,null,null,{"$f":"AJ48","v":4.2429999999999995E-2},{"$f":"AK48","v":4.2429999999999995E-2},4.2429999999999995E-2,4.2429999999999995E-2,4.2429999999999995E-2,4.2429999999999995E-2,4.2429999999999995E-2,4.2429999999999995E-2]
[]
[null,null,null,null,"IOU Account"]
[null,null,null,null,"Opening",null,null,null,null,null,null,null,null,null,null,null,null,null,null,null,null,null,null,null,null,null,null,null,null,null,null,null,null,null,null,1.0000000000000001E-9,1.0000000000000001E-9,1.0000000000000001E-9,1.0000000000000001E-9,1.0000000000000001E-9,1.0000000000000001E-9,1.0000000000000001E-9,1.0000000000000001E-9]
[null,null,null,null,"Profiling Impact on Actual Revenues"]
[null,null,null,null,"Closing balance"]
[]
[null,null,null,null,"Time Value of Money Increment",null,null,null,null,null,null,null,null,null,null,null,null,null,null,null,null,null,null,null,null,null,null,null,null,null,null,null,null,null,null,{"$f":"AVERAGE(AJ419,AJ421)*(AJ416-AJ415)","v":0},{"$f":"AVERAGE(AK419,AK421)*(AK416-AK415)","v":0},0,0,0,0,0,0]

{"sheet":"EMID","index":26,"n_rows":423,"n_cols":43,"rows_kept":423,"cut":false,"hidden":false,"merged":[]}
["Input"]
[null,"EMID"]
[null,"CN East"]
[null,"CN East"]
[null,"CN East"]
[null,null,null,null,"Parameter","Licence condition","Units","Term","Constant",null,null,null,null,null,null,null,null,null,null,null,null,null,null,null,null,null,null,null,null,null,null,null,null,null,null,"Annual values"]
[null,null,null,null,"PCFM year ending",{"$f":"Cover!C3","v":"LiMo ED C1.93b_WPD_DNO East Mids.xlsm"},null,null,{"$f":"UserInterface!$G$17","v":"2016-03-31"},null,"1991-03-31","1992-03-31","1993-03-31","1994-03-31","1995-03-31","1996-03-31","1997-03-31","1998-03-31","1999-03-31","2000-03-31","2001-03-31","2002-03-31","2003-03-31","2004-03-31","2005-03-31","2006-03-31","2007-03-31","2008-03-31","2009-03-31","2010-03-31","2011-03-31","2012-03-31","2013-03-31","2014-03-31","2015-03-31","2016-03-31","2017-03-31","2018-03-31","2019-03-31","2020-03-31","2021-03-31","2022-03-31","2023-03-31"]
[]
[null,"PCFM Variable Values Table"]
[]
[null,null,null,null,{"$f":"Input!E11","v":"Allowed percentage cost of debt"},{"$f":"Input!F11","v":"XX"},{"$f":"Input!G11","v":"annual real %"},{"$f":"Input!H11","v":"YY"},null,null,null,null,null,null,null,null,null,null,null,null,null,null,null,null,null,null,null,null,null,null,null,null,null,null,null,2.92E-2,2.92E-2,2.92E-2,2.92E-2,2.92E-2,2.92E-2,2.92E-2,2.92E-2]
[null,null,null,null,{"$f":"Input!E12","v":"Actual load related capex"},{"$f":"Input!F12","v":"XX"},{"$f":"Input!G12","v":"£m 12/13 prices"},{"$f":"Input!H12","v":"YY"}]
[null,null,null,null,{"$f":"Input!E13","v":"Actual non-load related capex - asset replacement"},{"$f":"Input!F13","v":"XX"},{"$f":"Input!G13","v":"£m 12/13 prices"},{"$f":"Input!H13","v":"YY"}]
[null,null,null,null,{"$f":"Input!E14","v":"Actual non-load related capex - other"},{"$f":"Input!F14","v":"XX"},{"$f":"Input!G14","v":"£m 12/13 prices"},{"$f":"Input!H14","v":"YY"}]
[null,null,null,null,{"$f":"Input!E15","v":"Actual faults"},{"$f":"Input!F15","v":"XX"},{"$f":"Input!G15","v":"£m 12/13 prices"},{"$f":"Input!H15","v":"YY"}]
[null,null,null,null,{"$f":"Input!E16","v":"Actual tree cutting"},{"$f":"Input!F16","v":"XX"},{"$f":"Input!G16","v":"£m 12/13 prices"},{"$f":"Input!H16","v":"YY"}]
[null,null,null,null,{"$f":"Input!E17","v":"Actual controllable opex"},{"$f":"Input!F17","v":"XX"},{"$f":"Input!G17","v":"£m 12/13 prices"},{"$f":"Input!H17","v":"YY"}]
[null,null,null,null,{"$f":"Input!E18","v":"Allowed uncertain costs (CNI)"},{"$f":"Input!F18","v":"XX"},{"$f":"Input!G18","v":"£m 12/13 prices"},{"$f":"Input!H18","v":"YY"},null,null,null,null,null,null,null,null,null,null,null,null,null,null,null,null,null,null,null,null,null,null,null,null,null,null,null,{"$f":"CHOOSE(view,\n'[5]M1a - Model inputs'!L34+'[5]M1a - Model inputs'!L71,\n'[5]M1b - Model inputs'!L34+'[5]M1b - Model inputs'!L71,\n'[5]SM1 - DECC Scenario 3 equiv'!L34+'[5]SM1 - DECC Scenario 3 equiv'!L71,\n'[5]SM2 - DECC Scenario 1 equiv'!L34+'[5]SM2 - DECC Scenario 1 equiv'!L71,\n'[5]SM3 - DECC Scenario 2 equiv'!L34+'[5]SM3 - DECC Scenario 2 equiv'!L71,\n'[5]SM4 - DNO Scenario 4 equiv'!L34+'[5]SM4 - DNO Scenario 4 equiv'!L71,\n'[6]M1a - Model inputs'!L34+'[5]M1a - Model inputs'!L71,\n'[6]M1b - Model inputs'!L34+'[5]M1b - Model inputs'!L71,\n'[6]SM1 - DECC Scenario 3 equiv'!L34+'[5]SM1 - DECC Scenario 3 equiv'!L71,\n'[6]SM2 - DECC Scenario 1 equiv'!L34+'[5]SM2 - DECC Scenario 1 equiv'!L71,\n'[6]SM3 - DECC Scenario 2 equiv'!L34+'[5]SM3 - DECC Scenario 2 equiv'!L71,\n'[6]SM4 - DNO Scenario 4 equiv'!L34+'[5]SM4 - DNO Scenario 4 equiv'!L71)","v":0},{"$f":"CHOOSE(view,\n'[5]M1a - Model inputs'!M34+'[5]M1a - Model inputs'!M71,\n'[5]M1b - Model inputs'!M34+'[5]M1b - Model inputs'!M71,\n'[5]SM1 - DECC Scenario 3 equiv'!M34+'[5]SM1 - DECC Scenario 3 equiv'!M71,\n'[5]SM2 - DECC Scenario 1 equiv'!M34+'[5]SM2 - DECC Scenario 1 equiv'!M71,\n'[5]SM3 - DECC Scenario 2 equiv'!M34+'[5]SM3 - DECC Scenario 2 equiv'!M71,\n'[5]SM4 - DNO Scenario 4 equiv'!M34+'[5]SM4 - DNO Scenario 4 equiv'!M71,\n'[6]M1a - Model inputs'!M34+'[5]M1a - Model inputs'!M71,\n'[6]M1b - Model inputs'!M34+'[5]M1b - Model inputs'!M71,\n'[6]SM1 - DECC Scenario 3 equiv'!M34+'[5]SM1 - DECC Scenario 3 equiv'!M71,\n'[6]SM2 - DECC Scenario 1 equiv'!M34+'[5]SM2 - DECC Scenario 1 equiv'!M71,\n'[6]SM3 - DECC Scenario 2 equiv'!M34+'[5]SM3 - DECC Scenario 2 equiv'!M71,\n'[6]SM4 - DNO Scenario 4 equiv'!M34+'[5]SM4 - DNO Scenario 4 equiv'!M71)","v":0},{"$f":"CHOOSE(view,\n'[5]M1a - Model inputs'!N34+'[5]M1a - Model inputs'!N71,\n'[5]M1b - Model inputs'!N34+'[5]M1b - Model inputs'!N71,\n'[5]SM1 - DECC Scenario 3 equiv'!N34+'[5]SM1 - DECC Scenario 3 equiv'!N71,\n'[5]SM2 - DECC Scenario 1 equiv'!N34+'[5]SM2 - DECC Scenario 1 equiv'!N71,\n'[5]SM3 - DECC Scenario 2 equiv'!N34+'[5]SM3 - DECC Scenario 2 equiv'!N71,\n'[5]SM4 - DNO Scenario 4 equiv'!N34+'[5]SM4 - DNO Scenario 4 equiv'!N71,\n'[6]M1a - Model inputs'!N34+'[5]M1a - Model inputs'!N71,\n'[6]M1b - Model inputs'!N34+'[5]M1b - Model inputs'!N71,\n'[6]SM1 - DECC Scenario 3 equiv'!N34+'[5]SM1 - DECC Scenario 3 equiv'!N71,\n'[6]SM2 - DECC Scenario 1 equiv'!N34+'[5]SM2 - DECC Scenario 1 equiv'!N71,\n'[6]SM3 - DECC Scenario 2 equiv'!N34+'[5]SM3 - DECC Scenario 2 equiv'!N71,\n'[6]SM4 - DNO Scenario 4 equiv'!N34+'[5]SM4 - DNO Scenario 4 equiv'!N71)","v":0},{"$f":"CHOOSE(view,\n'[5]M1a - Model inputs'!O34+'[5]M1a - Model inputs'!O71,\n'[5]M1b - Model inputs'!O34+'[5]M1b - Model inputs'!O71,\n'[5]SM1 - DECC Scenario 3 equiv'!O34+'[5]SM1 - DECC Scenario 3 equiv'!O71,\n'[5]SM2 - DECC Scenario 1 equiv'!O34+'[5]SM2 - DECC Scenario 1 equiv'!O71,\n'[5]SM3 - DECC Scenario 2 equiv'!O34+'[5]SM3 - DECC Scenario 2 equiv'!O71,\n'[5]SM4 - DNO Scenario 4 equiv'!O34+'[5]SM4 - DNO Scenario 4 equiv'!O71,\n'[6]M1a - Model inputs'!O34+'[5]M1a - Model inputs'!O71,\n'[6]M1b - Model inputs'!O34+'[5]M1b - Model inputs'!O71,\n'[6]SM1 - DECC Scenario 3 equiv'!O34+'[5]SM1 - DECC Scenario 3 equiv'!O71,\n'[6]SM2 - DECC Scenario 1 equiv'!O34+'[5]SM2 - DECC Scenario 1 equiv'!O71,\n'[6]SM3 - DECC Scenario 2 equiv'!O34+'[5]SM3 - DECC Scenario 2 equiv'!O71,\n'[6]SM4 - DNO Scenario 4 equiv'!O34+'[5]SM4 - DNO Scenario 4 equiv'!O71)","v":0},{"$f":"CHOOSE(view,\n'[5]M1a - Model inputs'!P34+'[5]M1a - Model inputs'!P71,\n'[5]M1b - Model inputs'!P34+'[5]M1b - Model inputs'!P71,\n'[5]SM1 - DECC Scenario 3 equiv'!P34+'[5]SM1 - DECC Scenario 3 equiv'!P71,\n'[5]SM2 - DECC Scenario 1 equiv'!P34+'[5]SM2 - DECC Scenario 1 equiv'!P71,\n'[5]SM3 - DECC Scenario 2 equiv'!P34+'[5]SM3 - DECC Scenario 2 equiv'!P71,\n'[5]SM4 - DNO Scenario 4 equiv'!P34+'[5]SM4 - DNO Scenario 4 equiv'!P71,\n'[6]M1a - Model inputs'!P34+'[5]M1a - Model inputs'!P71,\n'[6]M1b - Model inputs'!P34+'[5]M1b - Model inputs'!P71,\n'[6]SM1 - DECC Scenario 3 equiv'!P34+'[5]SM1 - DECC Scenario 3 equiv'!P71,\n'[6]SM2 - DECC Scenario 1 equiv'!P34+'[5]SM2 - DECC Scenario 1 equiv'!P71,\n'[6]SM3 - DECC Scenario 2 equiv'!P34+'[5]SM3 - DECC Scenario 2 equiv'!P71,\n'[6]SM4 - DNO Scenario 4 equiv'!P34+'[5]SM4 - DNO Scenario 4 equiv'!P71)","v":0},{"$f":"CHOOSE(view,\n'[5]M1a - Model inputs'!Q34+'[5]M1a - Model inputs'!Q71,\n'[5]M1b - Model inputs'!Q34+'[5]M1b - Model inputs'!Q71,\n'[5]SM1 - DECC Scenario 3 equiv'!Q34+'[5]SM1 - DECC Scenario 3 equiv'!Q71,\n'[5]SM2 - DECC Scenario 1 equiv'!Q34+'[5]SM2 - DECC Scenario 1 equiv'!Q71,\n'[5]SM3 - DECC Scenario 2 equiv'!Q34+'[5]SM3 - DECC Scenario 2 equiv'!Q71,\n'[5]SM4 - DNO Scenario 4 equiv'!Q34+'[5]SM4 - DNO Scenario 4 equiv'!Q71,\n'[6]M1a - Model inputs'!Q34+'[5]M1a - Model inputs'!Q71,\n'[6]M1b - Model inputs'!Q34+'[5]M1b - Model inputs'!Q71,\n'[6]SM1 - DECC Scenario 3 equiv'!Q34+'[5]SM1 - DECC Scenario 3 equiv'!Q71,\n'[6]SM2 - DECC Scenario 1 equiv'!Q34+'[5]SM2 - DECC Scenario 1 equiv'!Q71,\n'[6]SM3 - DECC Scenario 2 equiv'!Q34+'[5]SM3 - DECC Scenario 2 equiv'!Q71,\n'[6]SM4 - DNO Scenario 4 equiv'!Q34+'[5]SM4 - DNO Scenario 4 equiv'!Q71)","v":0},{"$f":"CHOOSE(view,\n'[5]M1a - Model inputs'!R34+'[5]M1a - Model inputs'!R71,\n'[5]M1b - Model inputs'!R34+'[5]M1b - Model inputs'!R71,\n'[5]SM1 - DECC Scenario 3 equiv'!R34+'[5]SM1 - DECC Scenario 3 equiv'!R71,\n'[5]SM2 - DECC Scenario 1 equiv'!R34+'[5]SM2 - DECC Scenario 1 equiv'!R71,\n'[5]SM3 - DECC Scenario 2 equiv'!R34+'[5]SM3 - DECC Scenario 2 equiv'!R71,\n'[5]SM4 - DNO Scenario 4 equiv'!R34+'[5]SM4 - DNO Scenario 4 equiv'!R71,\n'[6]M1a - Model inputs'!R34+'[5]M1a - Model inputs'!R71,\n'[6]M1b - Model inputs'!R34+'[5]M1b - Model inputs'!R71,\n'[6]SM1 - DECC Scenario 3 equiv'!R34+'[5]SM1 - DECC Scenario 3 equiv'!R71,\n'[6]SM2 - DECC Scenario 1 equiv'!R34+'[5]SM2 - DECC Scenario 1 equiv'!R71,\n'[6]SM3 - DECC Scenario 2 equiv'!R34+'[5]SM3 - DECC Scenario 2 equiv'!R71,\n'[6]SM4 - DNO Scenario 4 equiv'!R34+'[5]SM4 - DNO Scenario 4 equiv'!R71)","v":0},{"$f":"CHOOSE(view,\n'[5]M1a - Model inputs'!S34+'[5]M1a - Model inputs'!S71,\n'[5]M1b - Model inputs'!S34+'[5]M1b - Model inputs'!S71,\n'[5]SM1 - DECC Scenario 3 equiv'!S34+'[5]SM1 - DECC Scenario 3 equiv'!S71,\n'[5]SM2 - DECC Scenario 1 equiv'!S34+'[5]SM2 - DECC Scenario 1 equiv'!S71,\n'[5]SM3 - DECC Scenario 2 equiv'!S34+'[5]SM3 - DECC Scenario 2 equiv'!S71,\n'[5]SM4 - DNO Scenario 4 equiv'!S34+'[5]SM4 - DNO Scenario 4 equiv'!S71,\n'[6]M1a - Model inputs'!S34+'[5]M1a - Model inputs'!S71,\n'[6]M1b - Model inputs'!S34+'[5]M1b - Model inputs'!S71,\n'[6]SM1 - DECC Scenario 3 equiv'!S34+'[5]SM1 - DECC Scenario 3 equiv'!S71,\n'[6]SM2 - DECC Scenario 1 equiv'!S34+'[5]SM2 - DECC Scenario 1 equiv'!S71,\n'[6]SM3 - DECC Scenario 2 equiv'!S34+'[5]SM3 - DECC Scenario 2 equiv'!S71,\n'[6]SM4 - DNO Scenario 4 equiv'!S34+'[5]SM4 - DNO Scenario 4 equiv'!S71)","v":0}]
[null,null,null,null,{"$f":"Input!E19","v":"Allowed uncertain costs (High Value Projects)"},{"$f":"Input!F19","v":"XX"},{"$f":"Input!G19","v":"£m 12/13 prices"},{"$f":"Input!H19","v":"YY"},null,null,null,null,null,null,null,null,null,null,null,null,null,null,null,null,null,null,null,null,null,null,null,null,null,null,null,{"$f":"CHOOSE(view,\nSUM('[5]M1a - Model inputs'!L37:L40)+SUM('[5]M1a - Model inputs'!L74:L77),\nSUM('[5]M1b - Model inputs'!L37:L40)+SUM('[5]M1b - Model inputs'!L74:L77),\nSUM('[5]SM1 - DECC Scenario 3 equiv'!L37:L40)+SUM('[5]SM1 - DECC Scenario 3 equiv'!L74:L77),\nSUM('[5]SM2 - DECC Scenario 1 equiv'!L37:L40)+SUM('[5]SM2 - DECC Scenario 1 equiv'!L74:L77),\nSUM('[5]SM3 - DECC Scenario 2 equiv'!L37:L40)+SUM('[5]SM3 - DECC Scenario 2 equiv'!L74:L77),\nSUM('[5]SM4 - DNO Scenario 4 equiv'!L37:L40)+SUM('[5]SM4 - DNO Scenario 4 equiv'!L74:L77),\nSUM('[6]M1a - Model inputs'!L37:L40)+SUM('[6]M1a - Model inputs'!L74:L77),\nSUM('[6]M1b - Model inputs'!L37:L40)+SUM('[6]M1b - Model inputs'!L74:L77),\nSUM('[6]SM1 - DECC Scenario 3 equiv'!L37:L40)+SUM('[6]SM1 - DECC Scenario 3 equiv'!L74:L77),\nSUM('[6]SM2 - DECC Scenario 1 equiv'!L37:L40)+SUM('[6]SM2 - DECC Scenario 1 equiv'!L74:L77),\nSUM('[6]SM3 - DECC Scenario 2 equiv'!L37:L40)+SUM('[6]SM3 - DECC Scenario 2 equiv'!L74:L77),\nSUM('[6]SM4 - DNO Scenario 4 equiv'!L37:L40)+SUM('[6]SM4 - DNO Scenario 4 equiv'!L74:L77))","v":0},{"$f":"CHOOSE(view,\nSUM('[5]M1a - Model inputs'!M37:M40)+SUM('[5]M1a - Model inputs'!M74:M77),\nSUM('[5]M1b - Model inputs'!M37:M40)+SUM('[5]M1b - Model inputs'!M74:M77),\nSUM('[5]SM1 - DECC Scenario 3 equiv'!M37:M40)+SUM('[5]SM1 - DECC Scenario 3 equiv'!M74:M77),\nSUM('[5]SM2 - DECC Scenario 1 equiv'!M37:M40)+SUM('[5]SM2 - DECC Scenario 1 equiv'!M74:M77),\nSUM('[5]SM3 - DECC Scenario 2 equiv'!M37:M40)+SUM('[5]SM3 - DECC Scenario 2 equiv'!M74:M77),\nSUM('[5]SM4 - DNO Scenario 4 equiv'!M37:M40)+SUM('[5]SM4 - DNO Scenario 4 equiv'!M74:M77),\nSUM('[6]M1a - Model inputs'!M37:M40)+SUM('[6]M1a - Model inputs'!M74:M77),\nSUM('[6]M1b - Model inputs'!M37:M40)+SUM('[6]M1b - Model inputs'!M74:M77),\nSUM('[6]SM1 - DECC Scenario 3 equiv'!M37:M40)+SUM('[6]SM1 - DECC Scenario 3 equiv'!M74:M77),\nSUM('[6]SM2 - DECC Scenario 1 equiv'!M37:M40)+SUM('[6]SM2 - DECC Scenario 1 equiv'!M74:M77),\nSUM('[6]SM3 - DECC Scenario 2 equiv'!M37:M40)+SUM('[6]SM3 - DECC Scenario 2 equiv'!M74:M77),\nSUM('[6]SM4 - DNO Scenario 4 equiv'!M37:M40)+SUM('[6]SM4 - DNO Scenario 4 equiv'!M74:M77))","v":0},{"$f":"CHOOSE(view,\nSUM('[5]M1a - Model inputs'!N37:N40)+SUM('[5]M1a - Model inputs'!N74:N77),\nSUM('[5]M1b - Model inputs'!N37:N40)+SUM('[5]M1b - Model inputs'!N74:N77),\nSUM('[5]SM1 - DECC Scenario 3 equiv'!N37:N40)+SUM('[5]SM1 - DECC Scenario 3 equiv'!N74:N77),\nSUM('[5]SM2 - DECC Scenario 1 equiv'!N37:N40)+SUM('[5]SM2 - DECC Scenario 1 equiv'!N74:N77),\nSUM('[5]SM3 - DECC Scenario 2 equiv'!N37:N40)+SUM('[5]SM3 - DECC Scenario 2 equiv'!N74:N77),\nSUM('[5]SM4 - DNO Scenario 4 equiv'!N37:N40)+SUM('[5]SM4 - DNO Scenario 4 equiv'!N74:N77),\nSUM('[6]M1a - Model inputs'!N37:N40)+SUM('[6]M1a - Model inputs'!N74:N77),\nSUM('[6]M1b - Model inputs'!N37:N40)+SUM('[6]M1b - Model inputs'!N74:N77),\nSUM('[6]SM1 - DECC Scenario 3 equiv'!N37:N40)+SUM('[6]SM1 - DECC Scenario 3 equiv'!N74:N77),\nSUM('[6]SM2 - DECC Scenario 1 equiv'!N37:N40)+SUM('[6]SM2 - DECC Scenario 1 equiv'!N74:N77),\nSUM('[6]SM3 - DECC Scenario 2 equiv'!N37:N40)+SUM('[6]SM3 - DECC Scenario 2 equiv'!N74:N77),\nSUM('[6]SM4 - DNO Scenario 4 equiv'!N37:N40)+SUM('[6]SM4 - DNO Scenario 4 equiv'!N74:N77))","v":0},{"$f":"CHOOSE(view,\nSUM('[5]M1a - Model inputs'!O37:O40)+SUM('[5]M1a - Model inputs'!O74:O77),\nSUM('[5]M1b - Model inputs'!O37:O40)+SUM('[5]M1b - Model inputs'!O74:O77),\nSUM('[5]SM1 - DECC Scenario 3 equiv'!O37:O40)+SUM('[5]SM1 - DECC Scenario 3 equiv'!O74:O77),\nSUM('[5]SM2 - DECC Scenario 1 equiv'!O37:O40)+SUM('[5]SM2 - DECC Scenario 1 equiv'!O74:O77),\nSUM('[5]SM3 - DECC Scenario 2 equiv'!O37:O40)+SUM('[5]SM3 - DECC Scenario 2 equiv'!O74:O77),\nSUM('[5]SM4 - DNO Scenario 4 equiv'!O37:O40)+SUM('[5]SM4 - DNO Scenario 4 equiv'!O74:O77),\nSUM('[6]M1a - Model inputs'!O37:O40)+SUM('[6]M1a - Model inputs'!O74:O77),\nSUM('[6]M1b - Model inputs'!O37:O40)+SUM('[6]M1b - Model inputs'!O74:O77),\nSUM('[6]SM1 - DECC Scenario 3 equiv'!O37:O40)+SUM('[6]SM1 - DECC Scenario 3 equiv'!O74:O77),\nSUM('[6]SM2 - DECC Scenario 1 equiv'!O37:O40)+SUM('[6]SM2 - DECC Scenario 1 equiv'!O74:O77),\nSUM('[6]SM3 - DECC Scenario 2 equiv'!O37:O40)+SUM('[6]SM3 - DECC Scenario 2 equiv'!O74:O77),\nSUM('[6]SM4 - DNO Scenario 4 equiv'!O37:O40)+SUM('[6]SM4 - DNO Scenario 4 equiv'!O74:O77))","v":0},{"$f":"CHOOSE(view,\nSUM('[5]M1a - Model inputs'!P37:P40)+SUM('[5]M1a - Model inputs'!P74:P77),\nSUM('[5]M1b - Model inputs'!P37:P40)+SUM('[5]M1b - Model inputs'!P74:P77),\nSUM('[5]SM1 - DECC Scenario 3 equiv'!P37:P40)+SUM('[5]SM1 - DECC Scenario 3 equiv'!P74:P77),\nSUM('[5]SM2 - DECC Scenario 1 equiv'!P37:P40)+SUM('[5]SM2 - DECC Scenario 1 equiv'!P74:P77),\nSUM('[5]SM3 - DECC Scenario 2 equiv'!P37:P40)+SUM('[5]SM3 - DECC Scenario 2 equiv'!P74:P77),\nSUM('[5]SM4 - DNO Scenario 4 equiv'!P37:P40)+SUM('[5]SM4 - DNO Scenario 4 equiv'!P74:P77),\nSUM('[6]M1a - Model inputs'!P37:P40)+SUM('[6]M1a - Model inputs'!P74:P77),\nSUM('[6]M1b - Model inputs'!P37:P40)+SUM('[6]M1b - Model inputs'!P74:P77),\nSUM('[6]SM1 - DECC Scenario 3 equiv'!P37:P40)+SUM('[6]SM1 - DECC Scenario 3 equiv'!P74:P77),\nSUM('[6]SM2 - DECC Scenario 1 equiv'!P37:P40)+SUM('[6]SM2 - DECC Scenario 1 equiv'!P74:P77),\nSUM('[6]SM3 - DECC Scenario 2 equiv'!P37:P40)+SUM('[6]SM3 - DECC Scenario 2 equiv'!P74:P77),\nSUM('[6]SM4 - DNO Scenario 4 equiv'!P37:P40)+SUM('[6]SM4 - DNO Scenario 4 equiv'!P74:P77))","v":0},{"$f":"CHOOSE(view,\nSUM('[5]M1a - Model inputs'!Q37:Q40)+SUM('[5]M1a - Model inputs'!Q74:Q77),\nSUM('[5]M1b - Model inputs'!Q37:Q40)+SUM('[5]M1b - Model inputs'!Q74:Q77),\nSUM('[5]SM1 - DECC Scenario 3 equiv'!Q37:Q40)+SUM('[5]SM1 - DECC Scenario 3 equiv'!Q74:Q77),\nSUM('[5]SM2 - DECC Scenario 1 equiv'!Q37:Q40)+SUM('[5]SM2 - DECC Scenario 1 equiv'!Q74:Q77),\nSUM('[5]SM3 - DECC Scenario 2 equiv'!Q37:Q40)+SUM('[5]SM3 - DECC Scenario 2 equiv'!Q74:Q77),\nSUM('[5]SM4 - DNO Scenario 4 equiv'!Q37:Q40)+SUM('[5]SM4 - DNO Scenario 4 equiv'!Q74:Q77),\nSUM('[6]M1a - Model inputs'!Q37:Q40)+SUM('[6]M1a - Model inputs'!Q74:Q77),\nSUM('[6]M1b - Model inputs'!Q37:Q40)+SUM('[6]M1b - Model inputs'!Q74:Q77),\nSUM('[6]SM1 - DECC Scenario 3 equiv'!Q37:Q40)+SUM('[6]SM1 - DECC Scenario 3 equiv'!Q74:Q77),\nSUM('[6]SM2 - DECC Scenario 1 equiv'!Q37:Q40)+SUM('[6]SM2 - DECC Scenario 1 equiv'!Q74:Q77),\nSUM('[6]SM3 - DECC Scenario 2 equiv'!Q37:Q40)+SUM('[6]SM3 - DECC Scenario 2 equiv'!Q74:Q77),\nSUM('[6]SM4 - DNO Scenario 4 equiv'!Q37:Q40)+SUM('[6]SM4 - DNO Scenario 4 equiv'!Q74:Q77))","v":0},{"$f":"CHOOSE(view,\nSUM('[5]M1a - Model inputs'!R37:R40)+SUM('[5]M1a - Model inputs'!R74:R77),\nSUM('[5]M1b - Model inputs'!R37:R40)+SUM('[5]M1b - Model inputs'!R74:R77),\nSUM('[5]SM1 - DECC Scenario 3 equiv'!R37:R40)+SUM('[5]SM1 - DECC Scenario 3 equiv'!R74:R77),\nSUM('[5]SM2 - DECC Scenario 1 equiv'!R37:R40)+SUM('[5]SM2 - DECC Scenario 1 equiv'!R74:R77),\nSUM('[5]SM3 - DECC Scenario 2 equiv'!R37:R40)+SUM('[5]SM3 - DECC Scenario 2 equiv'!R74:R77),\nSUM('[5]SM4 - DNO Scenario 4 equiv'!R37:R40)+SUM('[5]SM4 - DNO Scenario 4 equiv'!R74:R77),\nSUM('[6]M1a - Model inputs'!R37:R40)+SUM('[6]M1a - Model inputs'!R74:R77),\nSUM('[6]M1b - Model inputs'!R37:R40)+SUM('[6]M1b - Model inputs'!R74:R77),\nSUM('[6]SM1 - DECC Scenario 3 equiv'!R37:R40)+SUM('[6]SM1 - DECC Scenario 3 equiv'!R74:R77),\nSUM('[6]SM2 - DECC Scenario 1 equiv'!R37:R40)+SUM('[6]SM2 - DECC Scenario 1 equiv'!R74:R77),\nSUM('[6]SM3 - DECC Scenario 2 equiv'!R37:R40)+SUM('[6]SM3 - DECC Scenario 2 equiv'!R74:R77),\nSUM('[6]SM4 - DNO Scenario 4 equiv'!R37:R40)+SUM('[6]SM4 - DNO Scenario 4 equiv'!R74:R77))","v":0},{"$f":"CHOOSE(view,\nSUM('[5]M1a - Model inputs'!S37:S40)+SUM('[5]M1a - Model inputs'!S74:S77),\nSUM('[5]M1b - Model inputs'!S37:S40)+SUM('[5]M1b - Model inputs'!S74:S77),\nSUM('[5]SM1 - DECC Scenario 3 equiv'!S37:S40)+SUM('[5]SM1 - DECC Scenario 3 equiv'!S74:S77),\nSUM('[5]SM2 - DECC Scenario 1 equiv'!S37:S40)+SUM('[5]SM2 - DECC Scenario 1 equiv'!S74:S77),\nSUM('[5]SM3 - DECC Scenario 2 equiv'!S37:S40)+SUM('[5]SM3 - DECC Scenario 2 equiv'!S74:S77),\nSUM('[5]SM4 - DNO Scenario 4 equiv'!S37:S40)+SUM('[5]SM4 - DNO Scenario 4 equiv'!S74:S77),\nSUM('[6]M1a - Model inputs'!S37:S40)+SUM('[6]M1a - Model inputs'!S74:S77),\nSUM('[6]M1b - Model inputs'!S37:S40)+SUM('[6]M1b - Model inputs'!S74:S77),\nSUM('[6]SM1 - DECC Scenario 3 equiv'!S37:S40)+SUM('[6]SM1 - DECC Scenario 3 equiv'!S74:S77),\nSUM('[6]SM2 - DECC Scenario 1 equiv'!S37:S40)+SUM('[6]SM2 - DECC Scenario 1 equiv'!S74:S77),\nSUM('[6]SM3 - DECC Scenario 2 equiv'!S37:S40)+SUM('[6]SM3 - DECC Scenario 2 equiv'!S74:S77),\nSUM('[6]SM4 - DNO Scenario 4 equiv'!S37:S40)+SUM('[6]SM4 - DNO Scenario 4 equiv'!S74:S77))","v":0}]
[null,null,null,null,{"$f":"Input!E20","v":"Allowed uncertain costs (Undergrounding)"},{"$f":"Input!F20","v":"XX"},{"$f":"Input!G20","v":"£m 12/13 prices"},{"$f":"Input!H20","v":"YY"},null,null,null,null,null,null,null,null,null,null,null,null,null,null,null,null,null,null,null,null,null,null,null,null,null,null,null,{"$f":"CHOOSE(view,\n'[5]M1a - Model inputs'!L43+'[5]M1a - Model inputs'!L80,\n'[5]M1b - Model inputs'!L43+'[5]M1b - Model inputs'!L80,\n'[5]SM1 - DECC Scenario 3 equiv'!L43+'[5]SM1 - DECC Scenario 3 equiv'!L80,\n'[5]SM2 - DECC Scenario 1 equiv'!L43+'[5]SM2 - DECC Scenario 1 equiv'!L80,\n'[5]SM3 - DECC Scenario 2 equiv'!L43+'[5]SM3 - DECC Scenario 2 equiv'!L80,\n'[5]SM4 - DNO Scenario 4 equiv'!L43+'[5]SM4 - DNO Scenario 4 equiv'!L80,\n'[6]M1a - Model inputs'!L43+'[6]M1a - Model inputs'!L80,\n'[6]M1b - Model inputs'!L43+'[6]M1b - Model inputs'!L80,\n'[6]SM1 - DECC Scenario 3 equiv'!L43+'[6]SM1 - DECC Scenario 3 equiv'!L80,\n'[6]SM2 - DECC Scenario 1 equiv'!L43+'[6]SM2 - DECC Scenario 1 equiv'!L80,\n'[6]SM3 - DECC Scenario 2 equiv'!L43+'[6]SM3 - DECC Scenario 2 equiv'!L80,\n'[6]SM4 - DNO Scenario 4 equiv'!L43+'[6]SM4 - DNO Scenario 4 equiv'!L80)","v":0.12810047211362957},{"$f":"CHOOSE(view,\n'[5]M1a - Model inputs'!M43+'[5]M1a - Model inputs'!M80,\n'[5]M1b - Model inputs'!M43+'[5]M1b - Model inputs'!M80,\n'[5]SM1 - DECC Scenario 3 equiv'!M43+'[5]SM1 - DECC Scenario 3 equiv'!M80,\n'[5]SM2 - DECC Scenario 1 equiv'!M43+'[5]SM2 - DECC Scenario 1 equiv'!M80,\n'[5]SM3 - DECC Scenario 2 equiv'!M43+'[5]SM3 - DECC Scenario 2 equiv'!M80,\n'[5]SM4 - DNO Scenario 4 equiv'!M43+'[5]SM4 - DNO Scenario 4 equiv'!M80,\n'[6]M1a - Model inputs'!M43+'[6]M1a - Model inputs'!M80,\n'[6]M1b - Model inputs'!M43+'[6]M1b - Model inputs'!M80,\n'[6]SM1 - DECC Scenario 3 equiv'!M43+'[6]SM1 - DECC Scenario 3 equiv'!M80,\n'[6]SM2 - DECC Scenario 1 equiv'!M43+'[6]SM2 - DECC Scenario 1 equiv'!M80,\n'[6]SM3 - DECC Scenario 2 equiv'!M43+'[6]SM3 - DECC Scenario 2 equiv'!M80,\n'[6]SM4 - DNO Scenario 4 equiv'!M43+'[6]SM4 - DNO Scenario 4 equiv'!M80)","v":0.12844595579760335},{"$f":"CHOOSE(view,\n'[5]M1a - Model inputs'!N43+'[5]M1a - Model inputs'!N80,\n'[5]M1b - Model inputs'!N43+'[5]M1b - Model inputs'!N80,\n'[5]SM1 - DECC Scenario 3 equiv'!N43+'[5]SM1 - DECC Scenario 3 equiv'!N80,\n'[5]SM2 - DECC Scenario 1 equiv'!N43+'[5]SM2 - DECC Scenario 1 equiv'!N80,\n'[5]SM3 - DECC Scenario 2 equiv'!N43+'[5]SM3 - DECC Scenario 2 equiv'!N80,\n'[5]SM4 - DNO Scenario 4 equiv'!N43+'[5]SM4 - DNO Scenario 4 equiv'!N80,\n'[6]M1a - Model inputs'!N43+'[6]M1a - Model inputs'!N80,\n'[6]M1b - Model inputs'!N43+'[6]M1b - Model inputs'!N80,\n'[6]SM1 - DECC Scenario 3 equiv'!N43+'[6]SM1 - DECC Scenario 3 equiv'!N80,\n'[6]SM2 - DECC Scenario 1 equiv'!N43+'[6]SM2 - DECC Scenario 1 equiv'!N80,\n'[6]SM3 - DECC Scenario 2 equiv'!N43+'[6]SM3 - DECC Scenario 2 equiv'!N80,\n'[6]SM4 - DNO Scenario 4 equiv'!N43+'[6]SM4 - DNO Scenario 4 equiv'!N80)","v":0.12736473279379065},{"$f":"CHOOSE(view,\n'[5]M1a - Model inputs'!O43+'[5]M1a - Model inputs'!O80,\n'[5]M1b - Model inputs'!O43+'[5]M1b - Model inputs'!O80,\n'[5]SM1 - DECC Scenario 3 equiv'!O43+'[5]SM1 - DECC Scenario 3 equiv'!O80,\n'[5]SM2 - DECC Scenario 1 equiv'!O43+'[5]SM2 - DECC Scenario 1 equiv'!O80,\n'[5]SM3 - DECC Scenario 2 equiv'!O43+'[5]SM3 - DECC Scenario 2 equiv'!O80,\n'[5]SM4 - DNO Scenario 4 equiv'!O43+'[5]SM4 - DNO Scenario 4 equiv'!O80,\n'[6]M1a - Model inputs'!O43+'[6]M1a - Model inputs'!O80,\n'[6]M1b - Model inputs'!O43+'[6]M1b - Model inputs'!O80,\n'[6]SM1 - DECC Scenario 3 equiv'!O43+'[6]SM1 - DECC Scenario 3 equiv'!O80,\n'[6]SM2 - DECC Scenario 1 equiv'!O43+'[6]SM2 - DECC Scenario 1 equiv'!O80,\n'[6]SM3 - DECC Scenario 2 equiv'!O43+'[6]SM3 - DECC Scenario 2 equiv'!O80,\n'[6]SM4 - DNO Scenario 4 equiv'!O43+'[6]SM4 - DNO Scenario 4 equiv'!O80)","v":0.12781715604165444},{"$f":"CHOOSE(view,\n'[5]M1a - Model inputs'!P43+'[5]M1a - Model inputs'!P80,\n'[5]M1b - Model inputs'!P43+'[5]M1b - Model inputs'!P80,\n'[5]SM1 - DECC Scenario 3 equiv'!P43+'[5]SM1 - DECC Scenario 3 equiv'!P80,\n'[5]SM2 - DECC Scenario 1 equiv'!P43+'[5]SM2 - DECC Scenario 1 equiv'!P80,\n'[5]SM3 - DECC Scenario 2 equiv'!P43+'[5]SM3 - DECC Scenario 2 equiv'!P80,\n'[5]SM4 - DNO Scenario 4 equiv'!P43+'[5]SM4 - DNO Scenario 4 equiv'!P80,\n'[6]M1a - Model inputs'!P43+'[6]M1a - Model inputs'!P80,\n'[6]M1b - Model inputs'!P43+'[6]M1b - Model inputs'!P80,\n'[6]SM1 - DECC Scenario 3 equiv'!P43+'[6]SM1 - DECC Scenario 3 equiv'!P80,\n'[6]SM2 - DECC Scenario 1 equiv'!P43+'[6]SM2 - DECC Scenario 1 equiv'!P80,\n'[6]SM3 - DECC Scenario 2 equiv'!P43+'[6]SM3 - DECC Scenario 2 equiv'!P80,\n'[6]SM4 - DNO Scenario 4 equiv'!P43+'[6]SM4 - DNO Scenario 4 equiv'!P80)","v":0.12819728968211344},{"$f":"CHOOSE(view,\n'[5]M1a - Model inputs'!Q43+'[5]M1a - Model inputs'!Q80,\n'[5]M1b - Model inputs'!Q43+'[5]M1b - Model inputs'!Q80,\n'[5]SM1 - DECC Scenario 3 equiv'!Q43+'[5]SM1 - DECC Scenario 3 equiv'!Q80,\n'[5]SM2 - DECC Scenario 1 equiv'!Q43+'[5]SM2 - DECC Scenario 1 equiv'!Q80,\n'[5]SM3 - DECC Scenario 2 equiv'!Q43+'[5]SM3 - DECC Scenario 2 equiv'!Q80,\n'[5]SM4 - DNO Scenario 4 equiv'!Q43+'[5]SM4 - DNO Scenario 4 equiv'!Q80,\n'[6]M1a - Model inputs'!Q43+'[6]M1a - Model inputs'!Q80,\n'[6]M1b - Model inputs'!Q43+'[6]M1b - Model inputs'!Q80,\n'[6]SM1 - DECC Scenario 3 equiv'!Q43+'[6]SM1 - DECC Scenario 3 equiv'!Q80,\n'[6]SM2 - DECC Scenario 1 equiv'!Q43+'[6]SM2 - DECC Scenario 1 equiv'!Q80,\n'[6]SM3 - DECC Scenario 2 equiv'!Q43+'[6]SM3 - DECC Scenario 2 equiv'!Q80,\n'[6]SM4 - DNO Scenario 4 equiv'!Q43+'[6]SM4 - DNO Scenario 4 equiv'!Q80)","v":0.12855828109179127},{"$f":"CHOOSE(view,\n'[5]M1a - Model inputs'!R43+'[5]M1a - Model inputs'!R80,\n'[5]M1b - Model inputs'!R43+'[5]M1b - Model inputs'!R80,\n'[5]SM1 - DECC Scenario 3 equiv'!R43+'[5]SM1 - DECC Scenario 3 equiv'!R80,\n'[5]SM2 - DECC Scenario 1 equiv'!R43+'[5]SM2 - DECC Scenario 1 equiv'!R80,\n'[5]SM3 - DECC Scenario 2 equiv'!R43+'[5]SM3 - DECC Scenario 2 equiv'!R80,\n'[5]SM4 - DNO Scenario 4 equiv'!R43+'[5]SM4 - DNO Scenario 4 equiv'!R80,\n'[6]M1a - Model inputs'!R43+'[6]M1a - Model inputs'!R80,\n'[6]M1b - Model inputs'!R43+'[6]M1b - Model inputs'!R80,\n'[6]SM1 - DECC Scenario 3 equiv'!R43+'[6]SM1 - DECC Scenario 3 equiv'!R80,\n'[6]SM2 - DECC Scenario 1 equiv'!R43+'[6]SM2 - DECC Scenario 1 equiv'!R80,\n'[6]SM3 - DECC Scenario 2 equiv'!R43+'[6]SM3 - DECC Scenario 2 equiv'!R80,\n'[6]SM4 - DNO Scenario 4 equiv'!R43+'[6]SM4 - DNO Scenario 4 equiv'!R80)","v":0.12884394947884412},{"$f":"CHOOSE(view,\n'[5]M1a - Model inputs'!S43+'[5]M1a - Model inputs'!S80,\n'[5]M1b - Model inputs'!S43+'[5]M1b - Model inputs'!S80,\n'[5]SM1 - DECC Scenario 3 equiv'!S43+'[5]SM1 - DECC Scenario 3 equiv'!S80,\n'[5]SM2 - DECC Scenario 1 equiv'!S43+'[5]SM2 - DECC Scenario 1 equiv'!S80,\n'[5]SM3 - DECC Scenario 2 equiv'!S43+'[5]SM3 - DECC Scenario 2 equiv'!S80,\n'[5]SM4 - DNO Scenario 4 equiv'!S43+'[5]SM4 - DNO Scenario 4 equiv'!S80,\n'[6]M1a - Model inputs'!S43+'[6]M1a - Model inputs'!S80,\n'[6]M1b - Model inputs'!S43+'[6]M1b - Model inputs'!S80,\n'[6]SM1 - DECC Scenario 3 equiv'!S43+'[6]SM1 - DECC Scenario 3 equiv'!S80,\n'[6]SM2 - DECC Scenario 1 equiv'!S43+'[6]SM2 - DECC Scenario 1 equiv'!S80,\n'[6]SM3 - DECC Scenario 2 equiv'!S43+'[6]SM3 - DECC Scenario 2 equiv'!S80,\n'[6]SM4 - DNO Scenario 4 equiv'!S43+'[6]SM4 - DNO Scenario 4 equiv'!S80)","v":0.12932680859826926}]
[null,null,null,null,{"$f":"Input!E21","v":"Allowed uncertain costs (Worst served customers)"},{"$f":"Input!F21","v":"XX"},{"$f":"Input!G21","v":"£m 12/13 prices"},{"$f":"Input!H21","v":"YY"},null,null,null,null,null,null,null,null,null,null,null,null,null,null,null,null,null,null,null,null,null,null,null,null,null,null,null,{"$f":"CHOOSE(view,\n'[5]M1a - Model inputs'!L46+'[5]M1a - Model inputs'!L83,\n'[5]M1b - Model inputs'!L46+'[5]M1b - Model inputs'!L83,\n'[5]SM1 - DECC Scenario 3 equiv'!L46+'[5]SM1 - DECC Scenario 3 equiv'!L83,\n'[5]SM2 - DECC Scenario 1 equiv'!L46+'[5]SM2 - DECC Scenario 1 equiv'!L83,\n'[5]SM3 - DECC Scenario 2 equiv'!L46+'[5]SM3 - DECC Scenario 2 equiv'!L83,\n'[5]SM4 - DNO Scenario 4 equiv'!L46+'[5]SM4 - DNO Scenario 4 equiv'!L83,\n'[6]M1a - Model inputs'!L46+'[6]M1a - Model inputs'!L83,\n'[6]M1b - Model inputs'!L46+'[6]M1b - Model inputs'!L83,\n'[6]SM1 - DECC Scenario 3 equiv'!L46+'[6]SM1 - DECC Scenario 3 equiv'!L83,\n'[6]SM2 - DECC Scenario 1 equiv'!L46+'[6]SM2 - DECC Scenario 1 equiv'!L83,\n'[6]SM3 - DECC Scenario 2 equiv'!L46+'[6]SM3 - DECC Scenario 2 equiv'!L83,\n'[6]SM4 - DNO Scenario 4 equiv'!L46+'[6]SM4 - DNO Scenario 4 equiv'!L83)","v":0},{"$f":"CHOOSE(view,\n'[5]M1a - Model inputs'!M46+'[5]M1a - Model inputs'!M83,\n'[5]M1b - Model inputs'!M46+'[5]M1b - Model inputs'!M83,\n'[5]SM1 - DECC Scenario 3 equiv'!M46+'[5]SM1 - DECC Scenario 3 equiv'!M83,\n'[5]SM2 - DECC Scenario 1 equiv'!M46+'[5]SM2 - DECC Scenario 1 equiv'!M83,\n'[5]SM3 - DECC Scenario 2 equiv'!M46+'[5]SM3 - DECC Scenario 2 equiv'!M83,\n'[5]SM4 - DNO Scenario 4 equiv'!M46+'[5]SM4 - DNO Scenario 4 equiv'!M83,\n'[6]M1a - Model inputs'!M46+'[6]M1a - Model inputs'!M83,\n'[6]M1b - Model inputs'!M46+'[6]M1b - Model inputs'!M83,\n'[6]SM1 - DECC Scenario 3 equiv'!M46+'[6]SM1 - DECC Scenario 3 equiv'!M83,\n'[6]SM2 - DECC Scenario 1 equiv'!M46+'[6]SM2 - DECC Scenario 1 equiv'!M83,\n'[6]SM3 - DECC Scenario 2 equiv'!M46+'[6]SM3 - DECC Scenario 2 equiv'!M83,\n'[6]SM4 - DNO Scenario 4 equiv'!M46+'[6]SM4 - DNO Scenario 4 equiv'!M83)","v":0.10218683049326654},{"$f":"CHOOSE(view,\n'[5]M1a - Model inputs'!N46+'[5]M1a - Model inputs'!N83,\n'[5]M1b - Model inputs'!N46+'[5]M1b - Model inputs'!N83,\n'[5]SM1 - DECC Scenario 3 equiv'!N46+'[5]SM1 - DECC Scenario 3 equiv'!N83,\n'[5]SM2 - DECC Scenario 1 equiv'!N46+'[5]SM2 - DECC Scenario 1 equiv'!N83,\n'[5]SM3 - DECC Scenario 2 equiv'!N46+'[5]SM3 - DECC Scenario 2 equiv'!N83,\n'[5]SM4 - DNO Scenario 4 equiv'!N46+'[5]SM4 - DNO Scenario 4 equiv'!N83,\n'[6]M1a - Model inputs'!N46+'[6]M1a - Model inputs'!N83,\n'[6]M1b - Model inputs'!N46+'[6]M1b - Model inputs'!N83,\n'[6]SM1 - DECC Scenario 3 equiv'!N46+'[6]SM1 - DECC Scenario 3 equiv'!N83,\n'[6]SM2 - DECC Scenario 1 equiv'!N46+'[6]SM2 - DECC Scenario 1 equiv'!N83,\n'[6]SM3 - DECC Scenario 2 equiv'!N46+'[6]SM3 - DECC Scenario 2 equiv'!N83,\n'[6]SM4 - DNO Scenario 4 equiv'!N46+'[6]SM4 - DNO Scenario 4 equiv'!N83)","v":0.10306972596029303},{"$f":"CHOOSE(view,\n'[5]M1a - Model inputs'!O46+'[5]M1a - Model inputs'!O83,\n'[5]M1b - Model inputs'!O46+'[5]M1b - Model inputs'!O83,\n'[5]SM1 - DECC Scenario 3 equiv'!O46+'[5]SM1 - DECC Scenario 3 equiv'!O83,\n'[5]SM2 - DECC Scenario 1 equiv'!O46+'[5]SM2 - DECC Scenario 1 equiv'!O83,\n'[5]SM3 - DECC Scenario 2 equiv'!O46+'[5]SM3 - DECC Scenario 2 equiv'!O83,\n'[5]SM4 - DNO Scenario 4 equiv'!O46+'[5]SM4 - DNO Scenario 4 equiv'!O83,\n'[6]M1a - Model inputs'!O46+'[6]M1a - Model inputs'!O83,\n'[6]M1b - Model inputs'!O46+'[6]M1b - Model inputs'!O83,\n'[6]SM1 - DECC Scenario 3 equiv'!O46+'[6]SM1 - DECC Scenario 3 equiv'!O83,\n'[6]SM2 - DECC Scenario 1 equiv'!O46+'[6]SM2 - DECC Scenario 1 equiv'!O83,\n'[6]SM3 - DECC Scenario 2 equiv'!O46+'[6]SM3 - DECC Scenario 2 equiv'!O83,\n'[6]SM4 - DNO Scenario 4 equiv'!O46+'[6]SM4 - DNO Scenario 4 equiv'!O83)","v":0},{"$f":"CHOOSE(view,\n'[5]M1a - Model inputs'!P46+'[5]M1a - Model inputs'!P83,\n'[5]M1b - Model inputs'!P46+'[5]M1b - Model inputs'!P83,\n'[5]SM1 - DECC Scenario 3 equiv'!P46+'[5]SM1 - DECC Scenario 3 equiv'!P83,\n'[5]SM2 - DECC Scenario 1 equiv'!P46+'[5]SM2 - DECC Scenario 1 equiv'!P83,\n'[5]SM3 - DECC Scenario 2 equiv'!P46+'[5]SM3 - DECC Scenario 2 equiv'!P83,\n'[5]SM4 - DNO Scenario 4 equiv'!P46+'[5]SM4 - DNO Scenario 4 equiv'!P83,\n'[6]M1a - Model inputs'!P46+'[6]M1a - Model inputs'!P83,\n'[6]M1b - Model inputs'!P46+'[6]M1b - Model inputs'!P83,\n'[6]SM1 - DECC Scenario 3 equiv'!P46+'[6]SM1 - DECC Scenario 3 equiv'!P83,\n'[6]SM2 - DECC Scenario 1 equiv'!P46+'[6]SM2 - DECC Scenario 1 equiv'!P83,\n'[6]SM3 - DECC Scenario 2 equiv'!P46+'[6]SM3 - DECC Scenario 2 equiv'!P83,\n'[6]SM4 - DNO Scenario 4 equiv'!P46+'[6]SM4 - DNO Scenario 4 equiv'!P83)","v":0},{"$f":"CHOOSE(view,\n'[5]M1a - Model inputs'!Q46+'[5]M1a - Model inputs'!Q83,\n'[5]M1b - Model inputs'!Q46+'[5]M1b - Model inputs'!Q83,\n'[5]SM1 - DECC Scenario 3 equiv'!Q46+'[5]SM1 - DECC Scenario 3 equiv'!Q83,\n'[5]SM2 - DECC Scenario 1 equiv'!Q46+'[5]SM2 - DECC Scenario 1 equiv'!Q83,\n'[5]SM3 - DECC Scenario 2 equiv'!Q46+'[5]SM3 - DECC Scenario 2 equiv'!Q83,\n'[5]SM4 - DNO Scenario 4 equiv'!Q46+'[5]SM4 - DNO Scenario 4 equiv'!Q83,\n'[6]M1a - Model inputs'!Q46+'[6]M1a - Model inputs'!Q83,\n'[6]M1b - Model inputs'!Q46+'[6]M1b - Model inputs'!Q83,\n'[6]SM1 - DECC Scenario 3 equiv'!Q46+'[6]SM1 - DECC Scenario 3 equiv'!Q83,\n'[6]SM2 - DECC Scenario 1 equiv'!Q46+'[6]SM2 - DECC Scenario 1 equiv'!Q83,\n'[6]SM3 - DECC Scenario 2 equiv'!Q46+'[6]SM3 - DECC Scenario 2 equiv'!Q83,\n'[6]SM4 - DNO Scenario 4 equiv'!Q46+'[6]SM4 - DNO Scenario 4 equiv'!Q83)","v":0},{"$f":"CHOOSE(view,\n'[5]M1a - Model inputs'!R46+'[5]M1a - Model inputs'!R83,\n'[5]M1b - Model inputs'!R46+'[5]M1b - Model inputs'!R83,\n'[5]SM1 - DECC Scenario 3 equiv'!R46+'[5]SM1 - DECC Scenario 3 equiv'!R83,\n'[5]SM2 - DECC Scenario 1 equiv'!R46+'[5]SM2 - DECC Scenario 1 equiv'!R83,\n'[5]SM3 - DECC Scenario 2 equiv'!R46+'[5]SM3 - DECC Scenario 2 equiv'!R83,\n'[5]SM4 - DNO Scenario 4 equiv'!R46+'[5]SM4 - DNO Scenario 4 equiv'!R83,\n'[6]M1a - Model inputs'!R46+'[6]M1a - Model inputs'!R83,\n'[6]M1b - Model inputs'!R46+'[6]M1b - Model inputs'!R83,\n'[6]SM1 - DECC Scenario 3 equiv'!R46+'[6]SM1 - DECC Scenario 3 equiv'!R83,\n'[6]SM2 - DECC Scenario 1 equiv'!R46+'[6]SM2 - DECC Scenario 1 equiv'!R83,\n'[6]SM3 - DECC Scenario 2 equiv'!R46+'[6]SM3 - DECC Scenario 2 equiv'!R83,\n'[6]SM4 - DNO Scenario 4 equiv'!R46+'[6]SM4 - DNO Scenario 4 equiv'!R83)","v":0},{"$f":"CHOOSE(view,\n'[5]M1a - Model inputs'!S46+'[5]M1a - Model inputs'!S83,\n'[5]M1b - Model inputs'!S46+'[5]M1b - Model inputs'!S83,\n'[5]SM1 - DECC Scenario 3 equiv'!S46+'[5]SM1 - DECC Scenario 3 equiv'!S83,\n'[5]SM2 - DECC Scenario 1 equiv'!S46+'[5]SM2 - DECC Scenario 1 equiv'!S83,\n'[5]SM3 - DECC Scenario 2 equiv'!S46+'[5]SM3 - DECC Scenario 2 equiv'!S83,\n'[5]SM4 - DNO Scenario 4 equiv'!S46+'[5]SM4 - DNO Scenario 4 equiv'!S83,\n'[6]M1a - Model inputs'!S46+'[6]M1a - Model inputs'!S83,\n'[6]M1b - Model inputs'!S46+'[6]M1b - Model inputs'!S83,\n'[6]SM1 - DECC Scenario 3 equiv'!S46+'[6]SM1 - DECC Scenario 3 equiv'!S83,\n'[6]SM2 - DECC Scenario 1 equiv'!S46+'[6]SM2 - DECC Scenario 1 equiv'!S83,\n'[6]SM3 - DECC Scenario 2 equiv'!S46+'[6]SM3 - DECC Scenario 2 equiv'!S83,\n'[6]SM4 - DNO Scenario 4 equiv'!S46+'[6]SM4 - DNO Scenario 4 equiv'!S83)","v":0}]
[null,null,null,null,{"$f":"Input!E22","v":"Allowed uncertain costs (Smart metering roll out costs)"},{"$f":"Input!F22","v":"XX"},{"$f":"Input!G22","v":"£m 12/13 prices"},{"$f":"Input!H22","v":"YY"},null,null,null,null,null,null,null,null,null,null,null,null,null,null,null,null,null,null,null,null,null,null,null,null,null,null,null,{"$f":"CHOOSE(view,\nSUM('[5]M1a - Model inputs'!L49:L49)+SUM('[5]M1a - Model inputs'!L86:L86),\nSUM('[5]M1b - Model inputs'!L49:L49)+SUM('[5]M1b - Model inputs'!L86:L86),\nSUM('[5]SM1 - DECC Scenario 3 equiv'!L49:L49)+SUM('[5]SM1 - DECC Scenario 3 equiv'!L86:L86),\nSUM('[5]SM2 - DECC Scenario 1 equiv'!L49:L49)+SUM('[5]SM2 - DECC Scenario 1 equiv'!L86:L86),\nSUM('[5]SM3 - DECC Scenario 2 equiv'!L49:L49)+SUM('[5]SM3 - DECC Scenario 2 equiv'!L86:L86),\nSUM('[5]SM4 - DNO Scenario 4 equiv'!L49:L49)+SUM('[5]SM4 - DNO Scenario 4 equiv'!L86:L86),\nSUM('[6]M1a - Model inputs'!L49:L49)+SUM('[6]M1a - Model inputs'!L86:L86),\nSUM('[6]M1b - Model inputs'!L49:L49)+SUM('[6]M1b - Model inputs'!L86:L86),\nSUM('[6]SM1 - DECC Scenario 3 equiv'!L49:L49)+SUM('[6]SM1 - DECC Scenario 3 equiv'!L86:L86),\nSUM('[6]SM2 - DECC Scenario 1 equiv'!L49:L49)+SUM('[6]SM2 - DECC Scenario 1 equiv'!L86:L86),\nSUM('[6]SM3 - DECC Scenario 2 equiv'!L49:L49)+SUM('[6]SM3 - DECC Scenario 2 equiv'!L86:L86),\nSUM('[6]SM4 - DNO Scenario 4 equiv'!L49:L49)+SUM('[6]SM4 - DNO Scenario 4 equiv'!L86:L86))","v":5.6734921185888632E-2},{"$f":"CHOOSE(view,\nSUM('[5]M1a - Model inputs'!M49:M49)+SUM('[5]M1a - Model inputs'!M86:M86),\nSUM('[5]M1b - Model inputs'!M49:M49)+SUM('[5]M1b - Model inputs'!M86:M86),\nSUM('[5]SM1 - DECC Scenario 3 equiv'!M49:M49)+SUM('[5]SM1 - DECC Scenario 3 equiv'!M86:M86),\nSUM('[5]SM2 - DECC Scenario 1 equiv'!M49:M49)+SUM('[5]SM2 - DECC Scenario 1 equiv'!M86:M86),\nSUM('[5]SM3 - DECC Scenario 2 equiv'!M49:M49)+SUM('[5]SM3 - DECC Scenario 2 equiv'!M86:M86),\nSUM('[5]SM4 - DNO Scenario 4 equiv'!M49:M49)+SUM('[5]SM4 - DNO Scenario 4 equiv'!M86:M86),\nSUM('[6]M1a - Model inputs'!M49:M49)+SUM('[6]M1a - Model inputs'!M86:M86),\nSUM('[6]M1b - Model inputs'!M49:M49)+SUM('[6]M1b - Model inputs'!M86:M86),\nSUM('[6]SM1 - DECC Scenario 3 equiv'!M49:M49)+SUM('[6]SM1 - DECC Scenario 3 equiv'!M86:M86),\nSUM('[6]SM2 - DECC Scenario 1 equiv'!M49:M49)+SUM('[6]SM2 - DECC Scenario 1 equiv'!M86:M86),\nSUM('[6]SM3 - DECC Scenario 2 equiv'!M49:M49)+SUM('[6]SM3 - DECC Scenario 2 equiv'!M86:M86),\nSUM('[6]SM4 - DNO Scenario 4 equiv'!M49:M49)+SUM('[6]SM4 - DNO Scenario 4 equiv'!M86:M86))","v":6.0926346948719519E-2},{"$f":"CHOOSE(view,\nSUM('[5]M1a - Model inputs'!N49:N49)+SUM('[5]M1a - Model inputs'!N86:N86),\nSUM('[5]M1b - Model inputs'!N49:N49)+SUM('[5]M1b - Model inputs'!N86:N86),\nSUM('[5]SM1 - DECC Scenario 3 equiv'!N49:N49)+SUM('[5]SM1 - DECC Scenario 3 equiv'!N86:N86),\nSUM('[5]SM2 - DECC Scenario 1 equiv'!N49:N49)+SUM('[5]SM2 - DECC Scenario 1 equiv'!N86:N86),\nSUM('[5]SM3 - DECC Scenario 2 equiv'!N49:N49)+SUM('[5]SM3 - DECC Scenario 2 equiv'!N86:N86),\nSUM('[5]SM4 - DNO Scenario 4 equiv'!N49:N49)+SUM('[5]SM4 - DNO Scenario 4 equiv'!N86:N86),\nSUM('[6]M1a - Model inputs'!N49:N49)+SUM('[6]M1a - Model inputs'!N86:N86),\nSUM('[6]M1b - Model inputs'!N49:N49)+SUM('[6]M1b - Model inputs'!N86:N86),\nSUM('[6]SM1 - DECC Scenario 3 equiv'!N49:N49)+SUM('[6]SM1 - DECC Scenario 3 equiv'!N86:N86),\nSUM('[6]SM2 - DECC Scenario 1 equiv'!N49:N49)+SUM('[6]SM2 - DECC Scenario 1 equiv'!N86:N86),\nSUM('[6]SM3 - DECC Scenario 2 equiv'!N49:N49)+SUM('[6]SM3 - DECC Scenario 2 equiv'!N86:N86),\nSUM('[6]SM4 - DNO Scenario 4 equiv'!N49:N49)+SUM('[6]SM4 - DNO Scenario 4 equiv'!N86:N86))","v":6.1584785754448167E-2},{"$f":"CHOOSE(view,\nSUM('[5]M1a - Model inputs'!O49:O49)+SUM('[5]M1a - Model inputs'!O86:O86),\nSUM('[5]M1b - Model inputs'!O49:O49)+SUM('[5]M1b - Model inputs'!O86:O86),\nSUM('[5]SM1 - DECC Scenario 3 equiv'!O49:O49)+SUM('[5]SM1 - DECC Scenario 3 equiv'!O86:O86),\nSUM('[5]SM2 - DECC Scenario 1 equiv'!O49:O49)+SUM('[5]SM2 - DECC Scenario 1 equiv'!O86:O86),\nSUM('[5]SM3 - DECC Scenario 2 equiv'!O49:O49)+SUM('[5]SM3 - DECC Scenario 2 equiv'!O86:O86),\nSUM('[5]SM4 - DNO Scenario 4 equiv'!O49:O49)+SUM('[5]SM4 - DNO Scenario 4 equiv'!O86:O86),\nSUM('[6]M1a - Model inputs'!O49:O49)+SUM('[6]M1a - Model inputs'!O86:O86),\nSUM('[6]M1b - Model inputs'!O49:O49)+SUM('[6]M1b - Model inputs'!O86:O86),\nSUM('[6]SM1 - DECC Scenario 3 equiv'!O49:O49)+SUM('[6]SM1 - DECC Scenario 3 equiv'!O86:O86),\nSUM('[6]SM2 - DECC Scenario 1 equiv'!O49:O49)+SUM('[6]SM2 - DECC Scenario 1 equiv'!O86:O86),\nSUM('[6]SM3 - DECC Scenario 2 equiv'!O49:O49)+SUM('[6]SM3 - DECC Scenario 2 equiv'!O86:O86),\nSUM('[6]SM4 - DNO Scenario 4 equiv'!O49:O49)+SUM('[6]SM4 - DNO Scenario 4 equiv'!O86:O86))","v":5.8297548132414272E-2},{"$f":"CHOOSE(view,\nSUM('[5]M1a - Model inputs'!P49:P49)+SUM('[5]M1a - Model inputs'!P86:P86),\nSUM('[5]M1b - Model inputs'!P49:P49)+SUM('[5]M1b - Model inputs'!P86:P86),\nSUM('[5]SM1 - DECC Scenario 3 equiv'!P49:P49)+SUM('[5]SM1 - DECC Scenario 3 equiv'!P86:P86),\nSUM('[5]SM2 - DECC Scenario 1 equiv'!P49:P49)+SUM('[5]SM2 - DECC Scenario 1 equiv'!P86:P86),\nSUM('[5]SM3 - DECC Scenario 2 equiv'!P49:P49)+SUM('[5]SM3 - DECC Scenario 2 equiv'!P86:P86),\nSUM('[5]SM4 - DNO Scenario 4 equiv'!P49:P49)+SUM('[5]SM4 - DNO Scenario 4 equiv'!P86:P86),\nSUM('[6]M1a - Model inputs'!P49:P49)+SUM('[6]M1a - Model inputs'!P86:P86),\nSUM('[6]M1b - Model inputs'!P49:P49)+SUM('[6]M1b - Model inputs'!P86:P86),\nSUM('[6]SM1 - DECC Scenario 3 equiv'!P49:P49)+SUM('[6]SM1 - DECC Scenario 3 equiv'!P86:P86),\nSUM('[6]SM2 - DECC Scenario 1 equiv'!P49:P49)+SUM('[6]SM2 - DECC Scenario 1 equiv'!P86:P86),\nSUM('[6]SM3 - DECC Scenario 2 equiv'!P49:P49)+SUM('[6]SM3 - DECC Scenario 2 equiv'!P86:P86),\nSUM('[6]SM4 - DNO Scenario 4 equiv'!P49:P49)+SUM('[6]SM4 - DNO Scenario 4 equiv'!P86:P86))","v":5.3422429062884288E-2},{"$f":"CHOOSE(view,\nSUM('[5]M1a - Model inputs'!Q49:Q49)+SUM('[5]M1a - Model inputs'!Q86:Q86),\nSUM('[5]M1b - Model inputs'!Q49:Q49)+SUM('[5]M1b - Model inputs'!Q86:Q86),\nSUM('[5]SM1 - DECC Scenario 3 equiv'!Q49:Q49)+SUM('[5]SM1 - DECC Scenario 3 equiv'!Q86:Q86),\nSUM('[5]SM2 - DECC Scenario 1 equiv'!Q49:Q49)+SUM('[5]SM2 - DECC Scenario 1 equiv'!Q86:Q86),\nSUM('[5]SM3 - DECC Scenario 2 equiv'!Q49:Q49)+SUM('[5]SM3 - DECC Scenario 2 equiv'!Q86:Q86),\nSUM('[5]SM4 - DNO Scenario 4 equiv'!Q49:Q49)+SUM('[5]SM4 - DNO Scenario 4 equiv'!Q86:Q86),\nSUM('[6]M1a - Model inputs'!Q49:Q49)+SUM('[6]M1a - Model inputs'!Q86:Q86),\nSUM('[6]M1b - Model inputs'!Q49:Q49)+SUM('[6]M1b - Model inputs'!Q86:Q86),\nSUM('[6]SM1 - DECC Scenario 3 equiv'!Q49:Q49)+SUM('[6]SM1 - DECC Scenario 3 equiv'!Q86:Q86),\nSUM('[6]SM2 - DECC Scenario 1 equiv'!Q49:Q49)+SUM('[6]SM2 - DECC Scenario 1 equiv'!Q86:Q86),\nSUM('[6]SM3 - DECC Scenario 2 equiv'!Q49:Q49)+SUM('[6]SM3 - DECC Scenario 2 equiv'!Q86:Q86),\nSUM('[6]SM4 - DNO Scenario 4 equiv'!Q49:Q49)+SUM('[6]SM4 - DNO Scenario 4 equiv'!Q86:Q86))","v":5.1154701949035854E-2},{"$f":"CHOOSE(view,\nSUM('[5]M1a - Model inputs'!R49:R49)+SUM('[5]M1a - Model inputs'!R86:R86),\nSUM('[5]M1b - Model inputs'!R49:R49)+SUM('[5]M1b - Model inputs'!R86:R86),\nSUM('[5]SM1 - DECC Scenario 3 equiv'!R49:R49)+SUM('[5]SM1 - DECC Scenario 3 equiv'!R86:R86),\nSUM('[5]SM2 - DECC Scenario 1 equiv'!R49:R49)+SUM('[5]SM2 - DECC Scenario 1 equiv'!R86:R86),\nSUM('[5]SM3 - DECC Scenario 2 equiv'!R49:R49)+SUM('[5]SM3 - DECC Scenario 2 equiv'!R86:R86),\nSUM('[5]SM4 - DNO Scenario 4 equiv'!R49:R49)+SUM('[5]SM4 - DNO Scenario 4 equiv'!R86:R86),\nSUM('[6]M1a - Model inputs'!R49:R49)+SUM('[6]M1a - Model inputs'!R86:R86),\nSUM('[6]M1b - Model inputs'!R49:R49)+SUM('[6]M1b - Model inputs'!R86:R86),\nSUM('[6]SM1 - DECC Scenario 3 equiv'!R49:R49)+SUM('[6]SM1 - DECC Scenario 3 equiv'!R86:R86),\nSUM('[6]SM2 - DECC Scenario 1 equiv'!R49:R49)+SUM('[6]SM2 - DECC Scenario 1 equiv'!R86:R86),\nSUM('[6]SM3 - DECC Scenario 2 equiv'!R49:R49)+SUM('[6]SM3 - DECC Scenario 2 equiv'!R86:R86),\nSUM('[6]SM4 - DNO Scenario 4 equiv'!R49:R49)+SUM('[6]SM4 - DNO Scenario 4 equiv'!R86:R86))","v":0},{"$f":"CHOOSE(view,\nSUM('[5]M1a - Model inputs'!S49:S49)+SUM('[5]M1a - Model inputs'!S86:S86),\nSUM('[5]M1b - Model inputs'!S49:S49)+SUM('[5]M1b - Model inputs'!S86:S86),\nSUM('[5]SM1 - DECC Scenario 3 equiv'!S49:S49)+SUM('[5]SM1 - DECC Scenario 3 equiv'!S86:S86),\nSUM('[5]SM2 - DECC Scenario 1 equiv'!S49:S49)+SUM('[5]SM2 - DECC Scenario 1 equiv'!S86:S86),\nSUM('[5]SM3 - DECC Scenario 2 equiv'!S49:S49)+SUM('[5]SM3 - DECC Scenario 2 equiv'!S86:S86),\nSUM('[5]SM4 - DNO Scenario 4 equiv'!S49:S49)+SUM('[5]SM4 - DNO Scenario 4 equiv'!S86:S86),\nSUM('[6]M1a - Model inputs'!S49:S49)+SUM('[6]M1a - Model inputs'!S86:S86),\nSUM('[6]M1b - Model inputs'!S49:S49)+SUM('[6]M1b - Model inputs'!S86:S86),\nSUM('[6]SM1 - DECC Scenario 3 equiv'!S49:S49)+SUM('[6]SM1 - DECC Scenario 3 equiv'!S86:S86),\nSUM('[6]SM2 - DECC Scenario 1 equiv'!S49:S49)+SUM('[6]SM2 - DECC Scenario 1 equiv'!S86:S86),\nSUM('[6]SM3 - DECC Scenario 2 equiv'!S49:S49)+SUM('[6]SM3 - DECC Scenario 2 equiv'!S86:S86),\nSUM('[6]SM4 - DNO Scenario 4 equiv'!S49:S49)+SUM('[6]SM4 - DNO Scenario 4 equiv'!S86:S86))","v":0}]
[null,null,null,null,{"$f":"Input!E23","v":"Allowed uncertain costs (Specified street work costs)"},{"$f":"Input!F23","v":"XX"},{"$f":"Input!G23","v":"£m 12/13 prices"},{"$f":"Input!H23","v":"YY"},null,null,null,null,null,null,null,null,null,null,null,null,null,null,null,null,null,null,null,null,null,null,null,null,null,null,null,{"$f":"CHOOSE(view,\nSUM('[5]M1a - Model inputs'!L52:L55)+SUM('[5]M1a - Model inputs'!L89:L92),\nSUM('[5]M1b - Model inputs'!L52:L55)+SUM('[5]M1b - Model inputs'!L89:L92),\nSUM('[5]SM1 - DECC Scenario 3 equiv'!L52:L55)+SUM('[5]SM1 - DECC Scenario 3 equiv'!L89:L92),\nSUM('[5]SM2 - DECC Scenario 1 equiv'!L52:L55)+SUM('[5]SM2 - DECC Scenario 1 equiv'!L89:L92),\nSUM('[5]SM3 - DECC Scenario 2 equiv'!L52:L55)+SUM('[5]SM3 - DECC Scenario 2 equiv'!L89:L92),\nSUM('[5]SM4 - DNO Scenario 4 equiv'!L52:L55)+SUM('[5]SM4 - DNO Scenario 4 equiv'!L89:L92),\nSUM('[6]M1a - Model inputs'!L52:L55)+SUM('[6]M1a - Model inputs'!L89:L92),\nSUM('[6]M1b - Model inputs'!L52:L55)+SUM('[6]M1b - Model inputs'!L89:L92),\nSUM('[6]SM1 - DECC Scenario 3 equiv'!L52:L55)+SUM('[6]SM1 - DECC Scenario 3 equiv'!L89:L92),\nSUM('[6]SM2 - DECC Scenario 1 equiv'!L52:L55)+SUM('[6]SM2 - DECC Scenario 1 equiv'!L89:L92),\nSUM('[6]SM3 - DECC Scenario 2 equiv'!L52:L55)+SUM('[6]SM3 - DECC Scenario 2 equiv'!L89:L92),\nSUM('[6]SM4 - DNO Scenario 4 equiv'!L52:L55)+SUM('[6]SM4 - DNO Scenario 4 equiv'!L89:L92))","v":0.18977110190424359},{"$f":"CHOOSE(view,\nSUM('[5]M1a - Model inputs'!M52:M55)+SUM('[5]M1a - Model inputs'!M89:M92),\nSUM('[5]M1b - Model inputs'!M52:M55)+SUM('[5]M1b - Model inputs'!M89:M92),\nSUM('[5]SM1 - DECC Scenario 3 equiv'!M52:M55)+SUM('[5]SM1 - DECC Scenario 3 equiv'!M89:M92),\nSUM('[5]SM2 - DECC Scenario 1 equiv'!M52:M55)+SUM('[5]SM2 - DECC Scenario 1 equiv'!M89:M92),\nSUM('[5]SM3 - DECC Scenario 2 equiv'!M52:M55)+SUM('[5]SM3 - DECC Scenario 2 equiv'!M89:M92),\nSUM('[5]SM4 - DNO Scenario 4 equiv'!M52:M55)+SUM('[5]SM4 - DNO Scenario 4 equiv'!M89:M92),\nSUM('[6]M1a - Model inputs'!M52:M55)+SUM('[6]M1a - Model inputs'!M89:M92),\nSUM('[6]M1b - Model inputs'!M52:M55)+SUM('[6]M1b - Model inputs'!M89:M92),\nSUM('[6]SM1 - DECC Scenario 3 equiv'!M52:M55)+SUM('[6]SM1 - DECC Scenario 3 equiv'!M89:M92),\nSUM('[6]SM2 - DECC Scenario 1 equiv'!M52:M55)+SUM('[6]SM2 - DECC Scenario 1 equiv'!M89:M92),\nSUM('[6]SM3 - DECC Scenario 2 equiv'!M52:M55)+SUM('[6]SM3 - DECC Scenario 2 equiv'!M89:M92),\nSUM('[6]SM4 - DNO Scenario 4 equiv'!M52:M55)+SUM('[6]SM4 - DNO Scenario 4 equiv'!M89:M92))","v":0.26286393586733553},{"$f":"CHOOSE(view,\nSUM('[5]M1a - Model inputs'!N52:N55)+SUM('[5]M1a - Model inputs'!N89:N92),\nSUM('[5]M1b - Model inputs'!N52:N55)+SUM('[5]M1b - Model inputs'!N89:N92),\nSUM('[5]SM1 - DECC Scenario 3 equiv'!N52:N55)+SUM('[5]SM1 - DECC Scenario 3 equiv'!N89:N92),\nSUM('[5]SM2 - DECC Scenario 1 equiv'!N52:N55)+SUM('[5]SM2 - DECC Scenario 1 equiv'!N89:N92),\nSUM('[5]SM3 - DECC Scenario 2 equiv'!N52:N55)+SUM('[5]SM3 - DECC Scenario 2 equiv'!N89:N92),\nSUM('[5]SM4 - DNO Scenario 4 equiv'!N52:N55)+SUM('[5]SM4 - DNO Scenario 4 equiv'!N89:N92),\nSUM('[6]M1a - Model inputs'!N52:N55)+SUM('[6]M1a - Model inputs'!N89:N92),\nSUM('[6]M1b - Model inputs'!N52:N55)+SUM('[6]M1b - Model inputs'!N89:N92),\nSUM('[6]SM1 - DECC Scenario 3 equiv'!N52:N55)+SUM('[6]SM1 - DECC Scenario 3 equiv'!N89:N92),\nSUM('[6]SM2 - DECC Scenario 1 equiv'!N52:N55)+SUM('[6]SM2 - DECC Scenario 1 equiv'!N89:N92),\nSUM('[6]SM3 - DECC Scenario 2 equiv'!N52:N55)+SUM('[6]SM3 - DECC Scenario 2 equiv'!N89:N92),\nSUM('[6]SM4 - DNO Scenario 4 equiv'!N52:N55)+SUM('[6]SM4 - DNO Scenario 4 equiv'!N89:N92))","v":0.26631546891994656},{"$f":"CHOOSE(view,\nSUM('[5]M1a - Model inputs'!O52:O55)+SUM('[5]M1a - Model inputs'!O89:O92),\nSUM('[5]M1b - Model inputs'!O52:O55)+SUM('[5]M1b - Model inputs'!O89:O92),\nSUM('[5]SM1 - DECC Scenario 3 equiv'!O52:O55)+SUM('[5]SM1 - DECC Scenario 3 equiv'!O89:O92),\nSUM('[5]SM2 - DECC Scenario 1 equiv'!O52:O55)+SUM('[5]SM2 - DECC Scenario 1 equiv'!O89:O92),\nSUM('[5]SM3 - DECC Scenario 2 equiv'!O52:O55)+SUM('[5]SM3 - DECC Scenario 2 equiv'!O89:O92),\nSUM('[5]SM4 - DNO Scenario 4 equiv'!O52:O55)+SUM('[5]SM4 - DNO Scenario 4 equiv'!O89:O92),\nSUM('[6]M1a - Model inputs'!O52:O55)+SUM('[6]M1a - Model inputs'!O89:O92),\nSUM('[6]M1b - Model inputs'!O52:O55)+SUM('[6]M1b - Model inputs'!O89:O92),\nSUM('[6]SM1 - DECC Scenario 3 equiv'!O52:O55)+SUM('[6]SM1 - DECC Scenario 3 equiv'!O89:O92),\nSUM('[6]SM2 - DECC Scenario 1 equiv'!O52:O55)+SUM('[6]SM2 - DECC Scenario 1 equiv'!O89:O92),\nSUM('[6]SM3 - DECC Scenario 2 equiv'!O52:O55)+SUM('[6]SM3 - DECC Scenario 2 equiv'!O89:O92),\nSUM('[6]SM4 - DNO Scenario 4 equiv'!O52:O55)+SUM('[6]SM4 - DNO Scenario 4 equiv'!O89:O92))","v":0.27027241989370215},{"$f":"CHOOSE(view,\nSUM('[5]M1a - Model inputs'!P52:P55)+SUM('[5]M1a - Model inputs'!P89:P92),\nSUM('[5]M1b - Model inputs'!P52:P55)+SUM('[5]M1b - Model inputs'!P89:P92),\nSUM('[5]SM1 - DECC Scenario 3 equiv'!P52:P55)+SUM('[5]SM1 - DECC Scenario 3 equiv'!P89:P92),\nSUM('[5]SM2 - DECC Scenario 1 equiv'!P52:P55)+SUM('[5]SM2 - DECC Scenario 1 equiv'!P89:P92),\nSUM('[5]SM3 - DECC Scenario 2 equiv'!P52:P55)+SUM('[5]SM3 - DECC Scenario 2 equiv'!P89:P92),\nSUM('[5]SM4 - DNO Scenario 4 equiv'!P52:P55)+SUM('[5]SM4 - DNO Scenario 4 equiv'!P89:P92),\nSUM('[6]M1a - Model inputs'!P52:P55)+SUM('[6]M1a - Model inputs'!P89:P92),\nSUM('[6]M1b - Model inputs'!P52:P55)+SUM('[6]M1b - Model inputs'!P89:P92),\nSUM('[6]SM1 - DECC Scenario 3 equiv'!P52:P55)+SUM('[6]SM1 - DECC Scenario 3 equiv'!P89:P92),\nSUM('[6]SM2 - DECC Scenario 1 equiv'!P52:P55)+SUM('[6]SM2 - DECC Scenario 1 equiv'!P89:P92),\nSUM('[6]SM3 - DECC Scenario 2 equiv'!P52:P55)+SUM('[6]SM3 - DECC Scenario 2 equiv'!P89:P92),\nSUM('[6]SM4 - DNO Scenario 4 equiv'!P52:P55)+SUM('[6]SM4 - DNO Scenario 4 equiv'!P89:P92))","v":0.27425328546964628},{"$f":"CHOOSE(view,\nSUM('[5]M1a - Model inputs'!Q52:Q55)+SUM('[5]M1a - Model inputs'!Q89:Q92),\nSUM('[5]M1b - Model inputs'!Q52:Q55)+SUM('[5]M1b - Model inputs'!Q89:Q92),\nSUM('[5]SM1 - DECC Scenario 3 equiv'!Q52:Q55)+SUM('[5]SM1 - DECC Scenario 3 equiv'!Q89:Q92),\nSUM('[5]SM2 - DECC Scenario 1 equiv'!Q52:Q55)+SUM('[5]SM2 - DECC Scenario 1 equiv'!Q89:Q92),\nSUM('[5]SM3 - DECC Scenario 2 equiv'!Q52:Q55)+SUM('[5]SM3 - DECC Scenario 2 equiv'!Q89:Q92),\nSUM('[5]SM4 - DNO Scenario 4 equiv'!Q52:Q55)+SUM('[5]SM4 - DNO Scenario 4 equiv'!Q89:Q92),\nSUM('[6]M1a - Model inputs'!Q52:Q55)+SUM('[6]M1a - Model inputs'!Q89:Q92),\nSUM('[6]M1b - Model inputs'!Q52:Q55)+SUM('[6]M1b - Model inputs'!Q89:Q92),\nSUM('[6]SM1 - DECC Scenario 3 equiv'!Q52:Q55)+SUM('[6]SM1 - DECC Scenario 3 equiv'!Q89:Q92),\nSUM('[6]SM2 - DECC Scenario 1 equiv'!Q52:Q55)+SUM('[6]SM2 - DECC Scenario 1 equiv'!Q89:Q92),\nSUM('[6]SM3 - DECC Scenario 2 equiv'!Q52:Q55)+SUM('[6]SM3 - DECC Scenario 2 equiv'!Q89:Q92),\nSUM('[6]SM4 - DNO Scenario 4 equiv'!Q52:Q55)+SUM('[6]SM4 - DNO Scenario 4 equiv'!Q89:Q92))","v":0.27834208233815744},{"$f":"CHOOSE(view,\nSUM('[5]M1a - Model inputs'!R52:R55)+SUM('[5]M1a - Model inputs'!R89:R92),\nSUM('[5]M1b - Model inputs'!R52:R55)+SUM('[5]M1b - Model inputs'!R89:R92),\nSUM('[5]SM1 - DECC Scenario 3 equiv'!R52:R55)+SUM('[5]SM1 - DECC Scenario 3 equiv'!R89:R92),\nSUM('[5]SM2 - DECC Scenario 1 equiv'!R52:R55)+SUM('[5]SM2 - DECC Scenario 1 equiv'!R89:R92),\nSUM('[5]SM3 - DECC Scenario 2 equiv'!R52:R55)+SUM('[5]SM3 - DECC Scenario 2 equiv'!R89:R92),\nSUM('[5]SM4 - DNO Scenario 4 equiv'!R52:R55)+SUM('[5]SM4 - DNO Scenario 4 equiv'!R89:R92),\nSUM('[6]M1a - Model inputs'!R52:R55)+SUM('[6]M1a - Model inputs'!R89:R92),\nSUM('[6]M1b - Model inputs'!R52:R55)+SUM('[6]M1b - Model inputs'!R89:R92),\nSUM('[6]SM1 - DECC Scenario 3 equiv'!R52:R55)+SUM('[6]SM1 - DECC Scenario 3 equiv'!R89:R92),\nSUM('[6]SM2 - DECC Scenario 1 equiv'!R52:R55)+SUM('[6]SM2 - DECC Scenario 1 equiv'!R89:R92),\nSUM('[6]SM3 - DECC Scenario 2 equiv'!R52:R55)+SUM('[6]SM3 - DECC Scenario 2 equiv'!R89:R92),\nSUM('[6]SM4 - DNO Scenario 4 equiv'!R52:R55)+SUM('[6]SM4 - DNO Scenario 4 equiv'!R89:R92))","v":0.28248015123234449},{"$f":"CHOOSE(view,\nSUM('[5]M1a - Model inputs'!S52:S55)+SUM('[5]M1a - Model inputs'!S89:S92),\nSUM('[5]M1b - Model inputs'!S52:S55)+SUM('[5]M1b - Model inputs'!S89:S92),\nSUM('[5]SM1 - DECC Scenario 3 equiv'!S52:S55)+SUM('[5]SM1 - DECC Scenario 3 equiv'!S89:S92),\nSUM('[5]SM2 - DECC Scenario 1 equiv'!S52:S55)+SUM('[5]SM2 - DECC Scenario 1 equiv'!S89:S92),\nSUM('[5]SM3 - DECC Scenario 2 equiv'!S52:S55)+SUM('[5]SM3 - DECC Scenario 2 equiv'!S89:S92),\nSUM('[5]SM4 - DNO Scenario 4 equiv'!S52:S55)+SUM('[5]SM4 - DNO Scenario 4 equiv'!S89:S92),\nSUM('[6]M1a - Model inputs'!S52:S55)+SUM('[6]M1a - Model inputs'!S89:S92),\nSUM('[6]M1b - Model inputs'!S52:S55)+SUM('[6]M1b - Model inputs'!S89:S92),\nSUM('[6]SM1 - DECC Scenario 3 equiv'!S52:S55)+SUM('[6]SM1 - DECC Scenario 3 equiv'!S89:S92),\nSUM('[6]SM2 - DECC Scenario 1 equiv'!S52:S55)+SUM('[6]SM2 - DECC Scenario 1 equiv'!S89:S92),\nSUM('[6]SM3 - DECC Scenario 2 equiv'!S52:S55)+SUM('[6]SM3 - DECC Scenario 2 equiv'!S89:S92),\nSUM('[6]SM4 - DNO Scenario 4 equiv'!S52:S55)+SUM('[6]SM4 - DNO Scenario 4 equiv'!S89:S92))","v":0.28670869879261668}]
[null,null,null,null,{"$f":"Input!E24","v":"Allowed uncertain costs (Load related re-operner)"},{"$f":"Input!F24","v":"XX"},{"$f":"Input!G24","v":"£m 12/13 prices"},{"$f":"Input!H24","v":"YY"},null,null,null,null,null,null,null,null,null,null,null,null,null,null,null,null,null,null,null,null,null,null,null,null,null,null,null,{"$f":"CHOOSE(view,\n'[5]M1a - Model inputs'!L31+'[5]M1a - Model inputs'!L68,\n'[5]M1b - Model inputs'!L31+'[5]M1b - Model inputs'!L68,\n'[5]SM1 - DECC Scenario 3 equiv'!L31+'[5]SM1 - DECC Scenario 3 equiv'!L68,\n'[5]SM2 - DECC Scenario 1 equiv'!L31+'[5]SM2 - DECC Scenario 1 equiv'!L68,\n'[5]SM3 - DECC Scenario 2 equiv'!L31+'[5]SM3 - DECC Scenario 2 equiv'!L68,\n'[5]SM4 - DNO Scenario 4 equiv'!L31+'[5]SM4 - DNO Scenario 4 equiv'!L68,\n'[6]M1a - Model inputs'!L31+'[5]M1a - Model inputs'!L68,\n'[6]M1b - Model inputs'!L31+'[5]M1b - Model inputs'!L68,\n'[6]SM1 - DECC Scenario 3 equiv'!L31+'[5]SM1 - DECC Scenario 3 equiv'!L68,\n'[6]SM2 - DECC Scenario 1 equiv'!L31+'[5]SM2 - DECC Scenario 1 equiv'!L68,\n'[6]SM3 - DECC Scenario 2 equiv'!L31+'[5]SM3 - DECC Scenario 2 equiv'!L68,\n'[6]SM4 - DNO Scenario 4 equiv'!L31+'[5]SM4 - DNO Scenario 4 equiv'!L68)","v":0},{"$f":"CHOOSE(view,\n'[5]M1a - Model inputs'!M31+'[5]M1a - Model inputs'!M68,\n'[5]M1b - Model inputs'!M31+'[5]M1b - Model inputs'!M68,\n'[5]SM1 - DECC Scenario 3 equiv'!M31+'[5]SM1 - DECC Scenario 3 equiv'!M68,\n'[5]SM2 - DECC Scenario 1 equiv'!M31+'[5]SM2 - DECC Scenario 1 equiv'!M68,\n'[5]SM3 - DECC Scenario 2 equiv'!M31+'[5]SM3 - DECC Scenario 2 equiv'!M68,\n'[5]SM4 - DNO Scenario 4 equiv'!M31+'[5]SM4 - DNO Scenario 4 equiv'!M68,\n'[6]M1a - Model inputs'!M31+'[5]M1a - Model inputs'!M68,\n'[6]M1b - Model inputs'!M31+'[5]M1b - Model inputs'!M68,\n'[6]SM1 - DECC Scenario 3 equiv'!M31+'[5]SM1 - DECC Scenario 3 equiv'!M68,\n'[6]SM2 - DECC Scenario 1 equiv'!M31+'[5]SM2 - DECC Scenario 1 equiv'!M68,\n'[6]SM3 - DECC Scenario 2 equiv'!M31+'[5]SM3 - DECC Scenario 2 equiv'!M68,\n'[6]SM4 - DNO Scenario 4 equiv'!M31+'[5]SM4 - DNO Scenario 4 equiv'!M68)","v":0},{"$f":"CHOOSE(view,\n'[5]M1a - Model inputs'!N31+'[5]M1a - Model inputs'!N68,\n'[5]M1b - Model inputs'!N31+'[5]M1b - Model inputs'!N68,\n'[5]SM1 - DECC Scenario 3 equiv'!N31+'[5]SM1 - DECC Scenario 3 equiv'!N68,\n'[5]SM2 - DECC Scenario 1 equiv'!N31+'[5]SM2 - DECC Scenario 1 equiv'!N68,\n'[5]SM3 - DECC Scenario 2 equiv'!N31+'[5]SM3 - DECC Scenario 2 equiv'!N68,\n'[5]SM4 - DNO Scenario 4 equiv'!N31+'[5]SM4 - DNO Scenario 4 equiv'!N68,\n'[6]M1a - Model inputs'!N31+'[5]M1a - Model inputs'!N68,\n'[6]M1b - Model inputs'!N31+'[5]M1b - Model inputs'!N68,\n'[6]SM1 - DECC Scenario 3 equiv'!N31+'[5]SM1 - DECC Scenario 3 equiv'!N68,\n'[6]SM2 - DECC Scenario 1 equiv'!N31+'[5]SM2 - DECC Scenario 1 equiv'!N68,\n'[6]SM3 - DECC Scenario 2 equiv'!N31+'[5]SM3 - DECC Scenario 2 equiv'!N68,\n'[6]SM4 - DNO Scenario 4 equiv'!N31+'[5]SM4 - DNO Scenario 4 equiv'!N68)","v":0},{"$f":"CHOOSE(view,\n'[5]M1a - Model inputs'!O31+'[5]M1a - Model inputs'!O68,\n'[5]M1b - Model inputs'!O31+'[5]M1b - Model inputs'!O68,\n'[5]SM1 - DECC Scenario 3 equiv'!O31+'[5]SM1 - DECC Scenario 3 equiv'!O68,\n'[5]SM2 - DECC Scenario 1 equiv'!O31+'[5]SM2 - DECC Scenario 1 equiv'!O68,\n'[5]SM3 - DECC Scenario 2 equiv'!O31+'[5]SM3 - DECC Scenario 2 equiv'!O68,\n'[5]SM4 - DNO Scenario 4 equiv'!O31+'[5]SM4 - DNO Scenario 4 equiv'!O68,\n'[6]M1a - Model inputs'!O31+'[5]M1a - Model inputs'!O68,\n'[6]M1b - Model inputs'!O31+'[5]M1b - Model inputs'!O68,\n'[6]SM1 - DECC Scenario 3 equiv'!O31+'[5]SM1 - DECC Scenario 3 equiv'!O68,\n'[6]SM2 - DECC Scenario 1 equiv'!O31+'[5]SM2 - DECC Scenario 1 equiv'!O68,\n'[6]SM3 - DECC Scenario 2 equiv'!O31+'[5]SM3 - DECC Scenario 2 equiv'!O68,\n'[6]SM4 - DNO Scenario 4 equiv'!O31+'[5]SM4 - DNO Scenario 4 equiv'!O68)","v":0},{"$f":"CHOOSE(view,\n'[5]M1a - Model inputs'!P31+'[5]M1a - Model inputs'!P68,\n'[5]M1b - Model inputs'!P31+'[5]M1b - Model inputs'!P68,\n'[5]SM1 - DECC Scenario 3 equiv'!P31+'[5]SM1 - DECC Scenario 3 equiv'!P68,\n'[5]SM2 - DECC Scenario 1 equiv'!P31+'[5]SM2 - DECC Scenario 1 equiv'!P68,\n'[5]SM3 - DECC Scenario 2 equiv'!P31+'[5]SM3 - DECC Scenario 2 equiv'!P68,\n'[5]SM4 - DNO Scenario 4 equiv'!P31+'[5]SM4 - DNO Scenario 4 equiv'!P68,\n'[6]M1a - Model inputs'!P31+'[5]M1a - Model inputs'!P68,\n'[6]M1b - Model inputs'!P31+'[5]M1b - Model inputs'!P68,\n'[6]SM1 - DECC Scenario 3 equiv'!P31+'[5]SM1 - DECC Scenario 3 equiv'!P68,\n'[6]SM2 - DECC Scenario 1 equiv'!P31+'[5]SM2 - DECC Scenario 1 equiv'!P68,\n'[6]SM3 - DECC Scenario 2 equiv'!P31+'[5]SM3 - DECC Scenario 2 equiv'!P68,\n'[6]SM4 - DNO Scenario 4 equiv'!P31+'[5]SM4 - DNO Scenario 4 equiv'!P68)","v":0},{"$f":"CHOOSE(view,\n'[5]M1a - Model inputs'!Q31+'[5]M1a - Model inputs'!Q68,\n'[5]M1b - Model inputs'!Q31+'[5]M1b - Model inputs'!Q68,\n'[5]SM1 - DECC Scenario 3 equiv'!Q31+'[5]SM1 - DECC Scenario 3 equiv'!Q68,\n'[5]SM2 - DECC Scenario 1 equiv'!Q31+'[5]SM2 - DECC Scenario 1 equiv'!Q68,\n'[5]SM3 - DECC Scenario 2 equiv'!Q31+'[5]SM3 - DECC Scenario 2 equiv'!Q68,\n'[5]SM4 - DNO Scenario 4 equiv'!Q31+'[5]SM4 - DNO Scenario 4 equiv'!Q68,\n'[6]M1a - Model inputs'!Q31+'[5]M1a - Model inputs'!Q68,\n'[6]M1b - Model inputs'!Q31+'[5]M1b - Model inputs'!Q68,\n'[6]SM1 - DECC Scenario 3 equiv'!Q31+'[5]SM1 - DECC Scenario 3 equiv'!Q68,\n'[6]SM2 - DECC Scenario 1 equiv'!Q31+'[5]SM2 - DECC Scenario 1 equiv'!Q68,\n'[6]SM3 - DECC Scenario 2 equiv'!Q31+'[5]SM3 - DECC Scenario 2 equiv'!Q68,\n'[6]SM4 - DNO Scenario 4 equiv'!Q31+'[5]SM4 - DNO Scenario 4 equiv'!Q68)","v":0},{"$f":"CHOOSE(view,\n'[5]M1a - Model inputs'!R31+'[5]M1a - Model inputs'!R68,\n'[5]M1b - Model inputs'!R31+'[5]M1b - Model inputs'!R68,\n'[5]SM1 - DECC Scenario 3 equiv'!R31+'[5]SM1 - DECC Scenario 3 equiv'!R68,\n'[5]SM2 - DECC Scenario 1 equiv'!R31+'[5]SM2 - DECC Scenario 1 equiv'!R68,\n'[5]SM3 - DECC Scenario 2 equiv'!R31+'[5]SM3 - DECC Scenario 2 equiv'!R68,\n'[5]SM4 - DNO Scenario 4 equiv'!R31+'[5]SM4 - DNO Scenario 4 equiv'!R68,\n'[6]M1a - Model inputs'!R31+'[5]M1a - Model inputs'!R68,\n'[6]M1b - Model inputs'!R31+'[5]M1b - Model inputs'!R68,\n'[6]SM1 - DECC Scenario 3 equiv'!R31+'[5]SM1 - DECC Scenario 3 equiv'!R68,\n'[6]SM2 - DECC Scenario 1 equiv'!R31+'[5]SM2 - DECC Scenario 1 equiv'!R68,\n'[6]SM3 - DECC Scenario 2 equiv'!R31+'[5]SM3 - DECC Scenario 2 equiv'!R68,\n'[6]SM4 - DNO Scenario 4 equiv'!R31+'[5]SM4 - DNO Scenario 4 equiv'!R68)","v":0},{"$f":"CHOOSE(view,\n'[5]M1a - Model inputs'!S31+'[5]M1a - Model inputs'!S68,\n'[5]M1b - Model inputs'!S31+'[5]M1b - Model inputs'!S68,\n'[5]SM1 - DECC Scenario 3 equiv'!S31+'[5]SM1 - DECC Scenario 3 equiv'!S68,\n'[5]SM2 - DECC Scenario 1 equiv'!S31+'[5]SM2 - DECC Scenario 1 equiv'!S68,\n'[5]SM3 - DECC Scenario 2 equiv'!S31+'[5]SM3 - DECC Scenario 2 equiv'!S68,\n'[5]SM4 - DNO Scenario 4 equiv'!S31+'[5]SM4 - DNO Scenario 4 equiv'!S68,\n'[6]M1a - Model inputs'!S31+'[5]M1a - Model inputs'!S68,\n'[6]M1b - Model inputs'!S31+'[5]M1b - Model inputs'!S68,\n'[6]SM1 - DECC Scenario 3 equiv'!S31+'[5]SM1 - DECC Scenario 3 equiv'!S68,\n'[6]SM2 - DECC Scenario 1 equiv'!S31+'[5]SM2 - DECC Scenario 1 equiv'!S68,\n'[6]SM3 - DECC Scenario 2 equiv'!S31+'[5]SM3 - DECC Scenario 2 equiv'!S68,\n'[6]SM4 - DNO Scenario 4 equiv'!S31+'[5]SM4 - DNO Scenario 4 equiv'!S68)","v":0}]
[null,null,null,null,{"$f":"Input!E25","v":"Spare 1"},{"$f":"Input!F25","v":"XX"},{"$f":"Input!G25","v":"£m 12/13 prices"},{"$f":"Input!H25","v":"YY"}]
[null,null,null,null,{"$f":"Input!E26","v":"Spare 2"},{"$f":"Input!F26","v":"XX"},{"$f":"Input!G26","v":"£m 12/13 prices"},{"$f":"Input!H26","v":"YY"}]
[null,null,null,null,{"$f":"Input!E27","v":"Spare 3"},{"$f":"Input!F27","v":"XX"},{"$f":"Input!G27","v":"£m 12/13 prices"},{"$f":"Input!H27","v":"YY"}]
[null,null,null,null,{"$f":"Input!E28","v":"Allowed innovation roll-out mechanism"},{"$f":"Input!F28","v":"XX"},{"$f":"Input!G28","v":"£m 12/13 prices"},{"$f":"Input!H28","v":"YY"}]
[null,null,null,null,{"$f":"Input!E29","v":"Exit Charges"},{"$f":"Input!F29","v":"XX"},{"$f":"Input!G29","v":"£m 12/13 prices"},{"$f":"Input!H29","v":"YY"},null,null,null,null,null,null,null,null,null,null,null,null,null,null,null,null,null,null,null,null,null,null,null,null,null,null,null,{"$f":"CHOOSE(view,\n'[5]M1a - Model inputs'!L122,\n'[5]M1b - Model inputs'!L122,\n'[5]SM1 - DECC Scenario 3 equiv'!L122,\n'[5]SM2 - DECC Scenario 1 equiv'!L122,\n'[5]SM3 - DECC Scenario 2 equiv'!L122,\n'[5]SM4 - DNO Scenario 4 equiv'!L122,\n'[6]M1a - Model inputs'!L122,\n'[6]M1b - Model inputs'!L122,\n'[6]SM1 - DECC Scenario 3 equiv'!L122,\n'[6]SM2 - DECC Scenario 1 equiv'!L122,\n'[6]SM3 - DECC Scenario 2 equiv'!L122,\n'[6]SM4 - DNO Scenario 4 equiv'!L122)","v":10.536301914475237},{"$f":"CHOOSE(view,\n'[5]M1a - Model inputs'!M122,\n'[5]M1b - Model inputs'!M122,\n'[5]SM1 - DECC Scenario 3 equiv'!M122,\n'[5]SM2 - DECC Scenario 1 equiv'!M122,\n'[5]SM3 - DECC Scenario 2 equiv'!M122,\n'[5]SM4 - DNO Scenario 4 equiv'!M122,\n'[6]M1a - Model inputs'!M122,\n'[6]M1b - Model inputs'!M122,\n'[6]SM1 - DECC Scenario 3 equiv'!M122,\n'[6]SM2 - DECC Scenario 1 equiv'!M122,\n'[6]SM3 - DECC Scenario 2 equiv'!M122,\n'[6]SM4 - DNO Scenario 4 equiv'!M122)","v":10.548949914475235},{"$f":"CHOOSE(view,\n'[5]M1a - Model inputs'!N122,\n'[5]M1b - Model inputs'!N122,\n'[5]SM1 - DECC Scenario 3 equiv'!N122,\n'[5]SM2 - DECC Scenario 1 equiv'!N122,\n'[5]SM3 - DECC Scenario 2 equiv'!N122,\n'[5]SM4 - DNO Scenario 4 equiv'!N122,\n'[6]M1a - Model inputs'!N122,\n'[6]M1b - Model inputs'!N122,\n'[6]SM1 - DECC Scenario 3 equiv'!N122,\n'[6]SM2 - DECC Scenario 1 equiv'!N122,\n'[6]SM3 - DECC Scenario 2 equiv'!N122,\n'[6]SM4 - DNO Scenario 4 equiv'!N122)","v":10.935597914475236},{"$f":"CHOOSE(view,\n'[5]M1a - Model inputs'!O122,\n'[5]M1b - Model inputs'!O122,\n'[5]SM1 - DECC Scenario 3 equiv'!O122,\n'[5]SM2 - DECC Scenario 1 equiv'!O122,\n'[5]SM3 - DECC Scenario 2 equiv'!O122,\n'[5]SM4 - DNO Scenario 4 equiv'!O122,\n'[6]M1a - Model inputs'!O122,\n'[6]M1b - Model inputs'!O122,\n'[6]SM1 - DECC Scenario 3 equiv'!O122,\n'[6]SM2 - DECC Scenario 1 equiv'!O122,\n'[6]SM3 - DECC Scenario 2 equiv'!O122,\n'[6]SM4 - DNO Scenario 4 equiv'!O122)","v":10.948245914475237},{"$f":"CHOOSE(view,\n'[5]M1a - Model inputs'!P122,\n'[5]M1b - Model inputs'!P122,\n'[5]SM1 - DECC Scenario 3 equiv'!P122,\n'[5]SM2 - DECC Scenario 1 equiv'!P122,\n'[5]SM3 - DECC Scenario 2 equiv'!P122,\n'[5]SM4 - DNO Scenario 4 equiv'!P122,\n'[6]M1a - Model inputs'!P122,\n'[6]M1b - Model inputs'!P122,\n'[6]SM1 - DECC Scenario 3 equiv'!P122,\n'[6]SM2 - DECC Scenario 1 equiv'!P122,\n'[6]SM3 - DECC Scenario 2 equiv'!P122,\n'[6]SM4 - DNO Scenario 4 equiv'!P122)","v":11.608245914475237},{"$f":"CHOOSE(view,\n'[5]M1a - Model inputs'!Q122,\n'[5]M1b - Model inputs'!Q122,\n'[5]SM1 - DECC Scenario 3 equiv'!Q122,\n'[5]SM2 - DECC Scenario 1 equiv'!Q122,\n'[5]SM3 - DECC Scenario 2 equiv'!Q122,\n'[5]SM4 - DNO Scenario 4 equiv'!Q122,\n'[6]M1a - Model inputs'!Q122,\n'[6]M1b - Model inputs'!Q122,\n'[6]SM1 - DECC Scenario 3 equiv'!Q122,\n'[6]SM2 - DECC Scenario 1 equiv'!Q122,\n'[6]SM3 - DECC Scenario 2 equiv'!Q122,\n'[6]SM4 - DNO Scenario 4 equiv'!Q122)","v":11.894245914475237},{"$f":"CHOOSE(view,\n'[5]M1a - Model inputs'!R122,\n'[5]M1b - Model inputs'!R122,\n'[5]SM1 - DECC Scenario 3 equiv'!R122,\n'[5]SM2 - DECC Scenario 1 equiv'!R122,\n'[5]SM3 - DECC Scenario 2 equiv'!R122,\n'[5]SM4 - DNO Scenario 4 equiv'!R122,\n'[6]M1a - Model inputs'!R122,\n'[6]M1b - Model inputs'!R122,\n'[6]SM1 - DECC Scenario 3 equiv'!R122,\n'[6]SM2 - DECC Scenario 1 equiv'!R122,\n'[6]SM3 - DECC Scenario 2 equiv'!R122,\n'[6]SM4 - DNO Scenario 4 equiv'!R122)","v":12.642245914475236},{"$f":"CHOOSE(view,\n'[5]M1a - Model inputs'!S122,\n'[5]M1b - Model inputs'!S122,\n'[5]SM1 - DECC Scenario 3 equiv'!S122,\n'[5]SM2 - DECC Scenario 1 equiv'!S122,\n'[5]SM3 - DECC Scenario 2 equiv'!S122,\n'[5]SM4 - DNO Scenario 4 equiv'!S122,\n'[6]M1a - Model inputs'!S122,\n'[6]M1b - Model inputs'!S122,\n'[6]SM1 - DECC Scenario 3 equiv'!S122,\n'[6]SM2 - DECC Scenario 1 equiv'!S122,\n'[6]SM3 - DECC Scenario 2 equiv'!S122,\n'[6]SM4 - DNO Scenario 4 equiv'!S122)","v":13.764245914475236}]
[null,null,null,null,{"$f":"Input!E30","v":"Pension scheme established deficit revenue allowances"},{"$f":"Input!F30","v":"XX"},{"$f":"Input!G30","v":"£m 12/13 prices"},{"$f":"Input!H30","v":"YY"},null,null,null,null,null,null,null,null,null,null,null,null,null,null,null,null,null,null,null,null,null,null,null,null,null,null,null,{"$f":"'[7]F7 Pensions DB scheme costs'!K263","v":23.315361786354455},{"$f":"'[7]F7 Pensions DB scheme costs'!L263","v":23.315361786354455},{"$f":"'[7]F7 Pensions DB scheme costs'!M263","v":23.315361786354455},{"$f":"'[7]F7 Pensions DB scheme costs'!N263","v":23.315361786354455},{"$f":"'[7]F7 Pensions DB scheme costs'!O263","v":23.315361786354455},{"$f":"'[7]F7 Pensions DB scheme costs'!P263","v":23.315361786354455},{"$f":"'[7]F7 Pensions DB scheme costs'!Q263","v":23.315361786354455},{"$f":"'[7]F7 Pensions DB scheme costs'!R263","v":23.315361786354455}]
[null,null,null,null,{"$f":"Input!E31","v":"Legacy price control allowed revenue adjustment"},{"$f":"Input!F31","v":"XX"},{"$f":"Input!G31","v":"£m 12/13 prices"},{"$f":"Input!H31","v":"YY"}]
[null,null,null,null,{"$f":"Input!E32","v":"Legacy price control RAV additions adjustment"},{"$f":"Input!F32","v":"XX"},{"$f":"Input!G32","v":"£m 12/13 prices"},{"$f":"Input!H32","v":"YY"},null,null,null,null,null,null,null,null,null,null,null,null,null,null,null,null,null,null,null,null,null,null,null,null,null,{"$f":"[8]DirectedValues!I79","v":-14.337476049238006},{"$f":"[8]DirectedValues!J79","v":-35.546747329527982}]
[null,null,null,null,{"$f":"Input!E33","v":"Tax liability allowance adjustments - gearing/interest costs"},{"$f":"Input!F33","v":"XX"},{"$f":"Input!G33","v":"£m nominal"},{"$f":"Input!H33","v":"YY"}]
[null,null,null,null,{"$f":"Input!E34","v":"Tax liability allowance adjustments - driven by tax trigger events"},{"$f":"Input!F34","v":"XX"},{"$f":"Input!G34","v":"£m 12/13 prices"},{"$f":"Input!H34","v":"YY"}]
[null,null,null,null,{"$f":"Input!E35","v":"General pool capital allowance pre-RIIO movement adjustment"},{"$f":"Input!F35","v":"XX"},{"$f":"Input!G35","v":"Nominal"},{"$f":"Input!H35","v":"YY"}]
[null,null,null,null,{"$f":"Input!E36","v":"Special pool capital allowance pre-RIIO movement adjustment"},{"$f":"Input!F36","v":"XX"},{"$f":"Input!G36","v":"Nominal"},{"$f":"Input!H36","v":"YY"}]
[null,null,null,null,{"$f":"Input!E37","v":"Deferred Revenue Expenditure pre-RIIO movement adjustment"},{"$f":"Input!F37","v":"XX"},{"$f":"Input!G37","v":"Nominal"},{"$f":"Input!H37","v":"YY"}]
[null,null,null,null,{"$f":"Input!E38","v":"DRE: Gross capex adjustment"},{"$f":"Input!F38","v":"XX"},{"$f":"Input!G38","v":"Nominal"},{"$f":"Input!H38","v":"YY"}]
[]
[null,"Policy"]
[]
[null,null,"Cost of capital"]
[]
[null,null,null,null,"Cost of debt",null,"annual real %",null,null,null,null,null,null,null,null,null,null,null,null,null,null,null,null,null,null,null,null,null,null,null,null,null,null,null,null,{"$f":"AJ11","v":2.92E-2},{"$f":"AK11","v":2.92E-2},2.92E-2,2.92E-2,2.92E-2,2.92E-2,2.92E-2,2.92E-2]
[null,null,null,null,"Cost of equity",null,"annual real %",null,null,null,null,null,null,null,null,null,null,null,null,null,null,null,null,null,null,null,null,null,null,null,null,null,null,null,null,6.7000000000000004E-2,6.7000000000000004E-2,6.7000000000000004E-2,6.7000000000000004E-2,6.7000000000000004E-2,6.7000000000000004E-2,6.7000000000000004E-2,6.7000000000000004E-2]
[null,null,null,null,"Notional gearing",null,"%",null,null,">",null,null,null,null,null,null,null,null,null,null,null,null,null,null,null,null,null,null,null,null,null,null,null,null,0.65,0.65,0.65,0.65,0.65,0.65,0.65,0.65,0.65]
[]
[null,null,null,null,"Vanilla WACC",null,"annual real %",null,null,null,null,null,null,null,null,null,null,null,null,null,null,null,null,null,null,null,null,null,null,null,null,null,null,null,null,{"$f":"(AJ44 * AJ46) + (AJ45 * (1 - AJ46))","v":4.2429999999999995E-2},4.2429999999999995E-2,4.2429999999999995E-2,4.2429999999999995E-2,4.2429999999999995E-2,4.2429999999999995E-2,4.2429999999999995E-2,4.2429999999999995E-2]
[]
[]
[]
[null,null,"Indexation"]
[]
[null,null,null,null,"Forecast RPI (simple average year to March)",null,"index value",null,null,">",null,null,null,null,null,null,null,null,null,null,null,null,null,null,null,null,null,null,null,null,null,null,{"$f":"ROUND(AVERAGE(242.5,242.4,241.8,242.1,243,244.2,245.6,245.6,246.8,245.8,247.6,248.7),3)","v":244.67500000000001},{"$f":"ROUND(AG54*(1+2.8%),3)","v":251.52600000000001},258.56900000000002,265.80900000000003,273.25200000000001,280.90300000000002,288.76799999999997,296.85399999999998,305.166,313.71100000000001,322.495]
[null,null,null,null,"Cost of Debt Inflation",null,"index value",null,null,">",null,null,null,null,null,null,null,null,null,null,null,null,null,null,null,null,null,null,null,null,null,null,{"$f":"ROUND(AVERAGE(242.5,242.4,241.8,242.1,243,244.2,245.6,245.6,246.8,245.8,247.6,248.7),3)","v":244.67500000000001},{"$f":"ROUND(AG55*(1+2.8%),3)","v":251.52600000000001},258.56900000000002,265.80900000000003,273.25200000000001,280.90300000000002,288.76799999999997,296.85399999999998,305.166,313.71100000000001,322.495]
[]
[null,null,"TIM and capitalisation"]
[]
[null,null,null,null,"Years from t until normal reporting of actual costs",null,"years",null,2]
[]
[null,null,null,null,{"$f":"Input!E61","v":"Capitalised share of totex"},null,"%",null,null,null,null,null,null,null,null,null,null,null,null,null,null,null,null,null,null,null,null,null,null,null,null,null,null,null,null,0.8,0.8,0.8,0.8,0.8,0.8,0.8,0.8]
[]
[null,null,null,null,"Additional income %",null,"%",null,2.5000000000000001E-2]
[]
[null,null,null,null,"Incentive Strength",null,"%",null,0.7]
[]
[null,null,null,null,"Weight of Ofgem's view on price control totex",null,"%",null,0.75]
[null,null,null,null,"Weight of operator's view on price control totex",null,"%",null,0.25]
[]
[null,null,null,null,"Ofgem's view of  licensee totex",null,"£m 12/13 prices",null,{"$f":"I71","v":2111.0802315367769}]
[null,null,null,null,"Operator's view of licensee totex",null,"£m 12/13 prices",null,{"$f":"CHOOSE(view,\nSUM('[5]M1b - Model inputs'!$L$26:$S$26,'[5]M1b - Model inputs'!$L$103:$S$108),\nSUM('[5]M1b - Model inputs'!$L$26:$S$26,'[5]M1b - Model inputs'!$L$103:$S$108),\nSUM('[5]M1b - Model inputs'!$L$26:$S$26,'[5]M1b - Model inputs'!$L$103:$S$108),\nSUM('[5]M1b - Model inputs'!$L$26:$S$26,'[5]M1b - Model inputs'!$L$103:$S$108),\nSUM('[5]M1b - Model inputs'!$L$26:$S$26,'[5]M1b - Model inputs'!$L$103:$S$108),\nSUM('[5]M1b - Model inputs'!$L$26:$S$26,'[5]M1b - Model inputs'!$L$103:$S$108),\nSUM('[6]M1b - Model inputs'!$L$26:$S$26,'[6]M1b - Model inputs'!$L$103:$S$108),\nSUM('[6]M1b - Model inputs'!$L$26:$S$26,'[6]M1b - Model inputs'!$L$103:$S$108),\nSUM('[6]M1b - Model inputs'!$L$26:$S$26,'[6]M1b - Model inputs'!$L$103:$S$108),\nSUM('[6]M1b - Model inputs'!$L$26:$S$26,'[6]M1b - Model inputs'!$L$103:$S$108),\nSUM('[6]M1b - Model inputs'!$L$26:$S$26,'[6]M1b - Model inputs'!$L$103:$S$108),\nSUM('[6]M1b - Model inputs'!$L$26:$S$26,'[6]M1b - Model inputs'!$L$103:$S$108))","v":2111.0802315367769}]
[]
[null,null,null,null,"Ofgem's view of group price control totex",null,"£m 12/13 prices",null,{"$f":"I70 + SWEST!I70 + SWALES!I70 + WMID!I70","v":7063.2910311137721}]
[null,null,null,null,"Operator's view of group price control totex ",null,"£m 12/13 prices",null,{"$f":"I71 + SWEST!I71 + SWALES!I71 + WMID!I71","v":7063.2910311137721}]
[]
[null,null,"Finance"]
[]
[null,null,null,null,"Minimum equity issuance threshold",null,"%",null,0]
[null,null,null,null,"Equity issuance costs",null,"%",null,0]
[null,null,null,null,"Assumed dividends as % of notional equity portion of RAV",null,"%",null,6.7000000000000004E-2]
[]
[null,null,null,null,"Equity issuance gearing target",null,"%",null,null,null,null,null,null,null,null,null,null,null,null,null,null,null,null,null,null,null,null,null,null,null,null,null,null,null,null,{"$f":"AJ46","v":0.65},{"$f":"AK46","v":0.65},0.65,0.65,0.65,0.65,0.65,0.65]
[]
[null,null,null,null,"Index-linked debt as a percentage of net debt",null,"%",null,null,null,null,null,null,null,null,null,null,null,null,null,null,null,null,null,null,null,null,null,null,null,null,null,null,null,null,0.25,0.25,0.25,0.25,0.25,0.25,0.25,0.25]
[]
[null,"Expenditure"]
[]
[null,null,"Totex"]
[]
[null,null,null,"Non-variant allowances"]
[]
[null,null,null,null,{"$f":"Input!E92","v":"Non-variant allowed load related capex"},null,"£m 12/13 prices",null,null,null,null,null,null,null,null,null,null,null,null,null,null,null,null,null,null,null,null,null,null,null,null,null,null,null,null,{"$f":"CHOOSE(view,\n'[5]M1a - Model inputs'!L8+'[5]M1a - Model inputs'!L18,\n'[5]M1b - Model inputs'!L8+'[5]M1b - Model inputs'!L18,\n'[5]SM1 - DECC Scenario 3 equiv'!L8+'[5]SM1 - DECC Scenario 3 equiv'!L18,\n'[5]SM2 - DECC Scenario 1 equiv'!L8+'[5]SM2 - DECC Scenario 1 equiv'!L18,\n'[5]SM3 - DECC Scenario 2 equiv'!L8+'[5]SM3 - DECC Scenario 2 equiv'!L18,\n'[5]SM4 - DNO Scenario 4 equiv'!L8+'[5]SM4 - DNO Scenario 4 equiv'!L18,\n'[6]M1a - Model inputs'!L8+'[6]M1a - Model inputs'!L18,\n'[6]M1b - Model inputs'!L8+'[6]M1b - Model inputs'!L18,\n'[6]SM1 - DECC Scenario 3 equiv'!L8+'[6]SM1 - DECC Scenario 3 equiv'!L18,\n'[6]SM2 - DECC Scenario 1 equiv'!L8+'[6]SM2 - DECC Scenario 1 equiv'!L18,\n'[6]SM3 - DECC Scenario 2 equiv'!L8+'[6]SM3 - DECC Scenario 2 equiv'!L18,\n'[6]SM4 - DNO Scenario 4 equiv'!L8+'[6]SM4 - DNO Scenario 4 equiv'!L18)","v":52.650725698725132},{"$f":"CHOOSE(view,\n'[5]M1a - Model inputs'!M8+'[5]M1a - Model inputs'!M18,\n'[5]M1b - Model inputs'!M8+'[5]M1b - Model inputs'!M18,\n'[5]SM1 - DECC Scenario 3 equiv'!M8+'[5]SM1 - DECC Scenario 3 equiv'!M18,\n'[5]SM2 - DECC Scenario 1 equiv'!M8+'[5]SM2 - DECC Scenario 1 equiv'!M18,\n'[5]SM3 - DECC Scenario 2 equiv'!M8+'[5]SM3 - DECC Scenario 2 equiv'!M18,\n'[5]SM4 - DNO Scenario 4 equiv'!M8+'[5]SM4 - DNO Scenario 4 equiv'!M18,\n'[6]M1a - Model inputs'!M8+'[6]M1a - Model inputs'!M18,\n'[6]M1b - Model inputs'!M8+'[6]M1b - Model inputs'!M18,\n'[6]SM1 - DECC Scenario 3 equiv'!M8+'[6]SM1 - DECC Scenario 3 equiv'!M18,\n'[6]SM2 - DECC Scenario 1 equiv'!M8+'[6]SM2 - DECC Scenario 1 equiv'!M18,\n'[6]SM3 - DECC Scenario 2 equiv'!M8+'[6]SM3 - DECC Scenario 2 equiv'!M18,\n'[6]SM4 - DNO Scenario 4 equiv'!M8+'[6]SM4 - DNO Scenario 4 equiv'!M18)","v":46.326227547858828},{"$f":"CHOOSE(view,\n'[5]M1a - Model inputs'!N8+'[5]M1a - Model inputs'!N18,\n'[5]M1b - Model inputs'!N8+'[5]M1b - Model inputs'!N18,\n'[5]SM1 - DECC Scenario 3 equiv'!N8+'[5]SM1 - DECC Scenario 3 equiv'!N18,\n'[5]SM2 - DECC Scenario 1 equiv'!N8+'[5]SM2 - DECC Scenario 1 equiv'!N18,\n'[5]SM3 - DECC Scenario 2 equiv'!N8+'[5]SM3 - DECC Scenario 2 equiv'!N18,\n'[5]SM4 - DNO Scenario 4 equiv'!N8+'[5]SM4 - DNO Scenario 4 equiv'!N18,\n'[6]M1a - Model inputs'!N8+'[6]M1a - Model inputs'!N18,\n'[6]M1b - Model inputs'!N8+'[6]M1b - Model inputs'!N18,\n'[6]SM1 - DECC Scenario 3 equiv'!N8+'[6]SM1 - DECC Scenario 3 equiv'!N18,\n'[6]SM2 - DECC Scenario 1 equiv'!N8+'[6]SM2 - DECC Scenario 1 equiv'!N18,\n'[6]SM3 - DECC Scenario 2 equiv'!N8+'[6]SM3 - DECC Scenario 2 equiv'!N18,\n'[6]SM4 - DNO Scenario 4 equiv'!N8+'[6]SM4 - DNO Scenario 4 equiv'!N18)","v":20.998771097928298},{"$f":"CHOOSE(view,\n'[5]M1a - Model inputs'!O8+'[5]M1a - Model inputs'!O18,\n'[5]M1b - Model inputs'!O8+'[5]M1b - Model inputs'!O18,\n'[5]SM1 - DECC Scenario 3 equiv'!O8+'[5]SM1 - DECC Scenario 3 equiv'!O18,\n'[5]SM2 - DECC Scenario 1 equiv'!O8+'[5]SM2 - DECC Scenario 1 equiv'!O18,\n'[5]SM3 - DECC Scenario 2 equiv'!O8+'[5]SM3 - DECC Scenario 2 equiv'!O18,\n'[5]SM4 - DNO Scenario 4 equiv'!O8+'[5]SM4 - DNO Scenario 4 equiv'!O18,\n'[6]M1a - Model inputs'!O8+'[6]M1a - Model inputs'!O18,\n'[6]M1b - Model inputs'!O8+'[6]M1b - Model inputs'!O18,\n'[6]SM1 - DECC Scenario 3 equiv'!O8+'[6]SM1 - DECC Scenario 3 equiv'!O18,\n'[6]SM2 - DECC Scenario 1 equiv'!O8+'[6]SM2 - DECC Scenario 1 equiv'!O18,\n'[6]SM3 - DECC Scenario 2 equiv'!O8+'[6]SM3 - DECC Scenario 2 equiv'!O18,\n'[6]SM4 - DNO Scenario 4 equiv'!O8+'[6]SM4 - DNO Scenario 4 equiv'!O18)","v":27.62489262693731},{"$f":"CHOOSE(view,\n'[5]M1a - Model inputs'!P8+'[5]M1a - Model inputs'!P18,\n'[5]M1b - Model inputs'!P8+'[5]M1b - Model inputs'!P18,\n'[5]SM1 - DECC Scenario 3 equiv'!P8+'[5]SM1 - DECC Scenario 3 equiv'!P18,\n'[5]SM2 - DECC Scenario 1 equiv'!P8+'[5]SM2 - DECC Scenario 1 equiv'!P18,\n'[5]SM3 - DECC Scenario 2 equiv'!P8+'[5]SM3 - DECC Scenario 2 equiv'!P18,\n'[5]SM4 - DNO Scenario 4 equiv'!P8+'[5]SM4 - DNO Scenario 4 equiv'!P18,\n'[6]M1a - Model inputs'!P8+'[6]M1a - Model inputs'!P18,\n'[6]M1b - Model inputs'!P8+'[6]M1b - Model inputs'!P18,\n'[6]SM1 - DECC Scenario 3 equiv'!P8+'[6]SM1 - DECC Scenario 3 equiv'!P18,\n'[6]SM2 - DECC Scenario 1 equiv'!P8+'[6]SM2 - DECC Scenario 1 equiv'!P18,\n'[6]SM3 - DECC Scenario 2 equiv'!P8+'[6]SM3 - DECC Scenario 2 equiv'!P18,\n'[6]SM4 - DNO Scenario 4 equiv'!P8+'[6]SM4 - DNO Scenario 4 equiv'!P18)","v":25.742953867529685},{"$f":"CHOOSE(view,\n'[5]M1a - Model inputs'!Q8+'[5]M1a - Model inputs'!Q18,\n'[5]M1b - Model inputs'!Q8+'[5]M1b - Model inputs'!Q18,\n'[5]SM1 - DECC Scenario 3 equiv'!Q8+'[5]SM1 - DECC Scenario 3 equiv'!Q18,\n'[5]SM2 - DECC Scenario 1 equiv'!Q8+'[5]SM2 - DECC Scenario 1 equiv'!Q18,\n'[5]SM3 - DECC Scenario 2 equiv'!Q8+'[5]SM3 - DECC Scenario 2 equiv'!Q18,\n'[5]SM4 - DNO Scenario 4 equiv'!Q8+'[5]SM4 - DNO Scenario 4 equiv'!Q18,\n'[6]M1a - Model inputs'!Q8+'[6]M1a - Model inputs'!Q18,\n'[6]M1b - Model inputs'!Q8+'[6]M1b - Model inputs'!Q18,\n'[6]SM1 - DECC Scenario 3 equiv'!Q8+'[6]SM1 - DECC Scenario 3 equiv'!Q18,\n'[6]SM2 - DECC Scenario 1 equiv'!Q8+'[6]SM2 - DECC Scenario 1 equiv'!Q18,\n'[6]SM3 - DECC Scenario 2 equiv'!Q8+'[6]SM3 - DECC Scenario 2 equiv'!Q18,\n'[6]SM4 - DNO Scenario 4 equiv'!Q8+'[6]SM4 - DNO Scenario 4 equiv'!Q18)","v":34.133720477029563},{"$f":"CHOOSE(view,\n'[5]M1a - Model inputs'!R8+'[5]M1a - Model inputs'!R18,\n'[5]M1b - Model inputs'!R8+'[5]M1b - Model inputs'!R18,\n'[5]SM1 - DECC Scenario 3 equiv'!R8+'[5]SM1 - DECC Scenario 3 equiv'!R18,\n'[5]SM2 - DECC Scenario 1 equiv'!R8+'[5]SM2 - DECC Scenario 1 equiv'!R18,\n'[5]SM3 - DECC Scenario 2 equiv'!R8+'[5]SM3 - DECC Scenario 2 equiv'!R18,\n'[5]SM4 - DNO Scenario 4 equiv'!R8+'[5]SM4 - DNO Scenario 4 equiv'!R18,\n'[6]M1a - Model inputs'!R8+'[6]M1a - Model inputs'!R18,\n'[6]M1b - Model inputs'!R8+'[6]M1b - Model inputs'!R18,\n'[6]SM1 - DECC Scenario 3 equiv'!R8+'[6]SM1 - DECC Scenario 3 equiv'!R18,\n'[6]SM2 - DECC Scenario 1 equiv'!R8+'[6]SM2 - DECC Scenario 1 equiv'!R18,\n'[6]SM3 - DECC Scenario 2 equiv'!R8+'[6]SM3 - DECC Scenario 2 equiv'!R18,\n'[6]SM4 - DNO Scenario 4 equiv'!R8+'[6]SM4 - DNO Scenario 4 equiv'!R18)","v":47.785424993396965},{"$f":"CHOOSE(view,\n'[5]M1a - Model inputs'!S8+'[5]M1a - Model inputs'!S18,\n'[5]M1b - Model inputs'!S8+'[5]M1b - Model inputs'!S18,\n'[5]SM1 - DECC Scenario 3 equiv'!S8+'[5]SM1 - DECC Scenario 3 equiv'!S18,\n'[5]SM2 - DECC Scenario 1 equiv'!S8+'[5]SM2 - DECC Scenario 1 equiv'!S18,\n'[5]SM3 - DECC Scenario 2 equiv'!S8+'[5]SM3 - DECC Scenario 2 equiv'!S18,\n'[5]SM4 - DNO Scenario 4 equiv'!S8+'[5]SM4 - DNO Scenario 4 equiv'!S18,\n'[6]M1a - Model inputs'!S8+'[6]M1a - Model inputs'!S18,\n'[6]M1b - Model inputs'!S8+'[6]M1b - Model inputs'!S18,\n'[6]SM1 - DECC Scenario 3 equiv'!S8+'[6]SM1 - DECC Scenario 3 equiv'!S18,\n'[6]SM2 - DECC Scenario 1 equiv'!S8+'[6]SM2 - DECC Scenario 1 equiv'!S18,\n'[6]SM3 - DECC Scenario 2 equiv'!S8+'[6]SM3 - DECC Scenario 2 equiv'!S18,\n'[6]SM4 - DNO Scenario 4 equiv'!S8+'[6]SM4 - DNO Scenario 4 equiv'!S18)","v":41.898782697937889}]
[null,null,null,null,{"$f":"Input!E93","v":"Non-variant allowed non-load related capex - asset replacement"},null,"£m 12/13 prices",null,null,null,null,null,null,null,null,null,null,null,null,null,null,null,null,null,null,null,null,null,null,null,null,null,null,null,null,{"$f":"CHOOSE(view,\n'[5]M1a - Model inputs'!L9+'[5]M1a - Model inputs'!L19,\n'[5]M1b - Model inputs'!L9+'[5]M1b - Model inputs'!L19,\n'[5]SM1 - DECC Scenario 3 equiv'!L9+'[5]SM1 - DECC Scenario 3 equiv'!L19,\n'[5]SM2 - DECC Scenario 1 equiv'!L9+'[5]SM2 - DECC Scenario 1 equiv'!L19,\n'[5]SM3 - DECC Scenario 2 equiv'!L9+'[5]SM3 - DECC Scenario 2 equiv'!L19,\n'[5]SM4 - DNO Scenario 4 equiv'!L9+'[5]SM4 - DNO Scenario 4 equiv'!L19,\n'[6]M1a - Model inputs'!L9+'[6]M1a - Model inputs'!L19,\n'[6]M1b - Model inputs'!L9+'[6]M1b - Model inputs'!L19,\n'[6]SM1 - DECC Scenario 3 equiv'!L9+'[6]SM1 - DECC Scenario 3 equiv'!L19,\n'[6]SM2 - DECC Scenario 1 equiv'!L9+'[6]SM2 - DECC Scenario 1 equiv'!L19,\n'[6]SM3 - DECC Scenario 2 equiv'!L9+'[6]SM3 - DECC Scenario 2 equiv'!L19,\n'[6]SM4 - DNO Scenario 4 equiv'!L9+'[6]SM4 - DNO Scenario 4 equiv'!L19)","v":76.970089361055543},{"$f":"CHOOSE(view,\n'[5]M1a - Model inputs'!M9+'[5]M1a - Model inputs'!M19,\n'[5]M1b - Model inputs'!M9+'[5]M1b - Model inputs'!M19,\n'[5]SM1 - DECC Scenario 3 equiv'!M9+'[5]SM1 - DECC Scenario 3 equiv'!M19,\n'[5]SM2 - DECC Scenario 1 equiv'!M9+'[5]SM2 - DECC Scenario 1 equiv'!M19,\n'[5]SM3 - DECC Scenario 2 equiv'!M9+'[5]SM3 - DECC Scenario 2 equiv'!M19,\n'[5]SM4 - DNO Scenario 4 equiv'!M9+'[5]SM4 - DNO Scenario 4 equiv'!M19,\n'[6]M1a - Model inputs'!M9+'[6]M1a - Model inputs'!M19,\n'[6]M1b - Model inputs'!M9+'[6]M1b - Model inputs'!M19,\n'[6]SM1 - DECC Scenario 3 equiv'!M9+'[6]SM1 - DECC Scenario 3 equiv'!M19,\n'[6]SM2 - DECC Scenario 1 equiv'!M9+'[6]SM2 - DECC Scenario 1 equiv'!M19,\n'[6]SM3 - DECC Scenario 2 equiv'!M9+'[6]SM3 - DECC Scenario 2 equiv'!M19,\n'[6]SM4 - DNO Scenario 4 equiv'!M9+'[6]SM4 - DNO Scenario 4 equiv'!M19)","v":78.033750503480931},{"$f":"CHOOSE(view,\n'[5]M1a - Model inputs'!N9+'[5]M1a - Model inputs'!N19,\n'[5]M1b - Model inputs'!N9+'[5]M1b - Model inputs'!N19,\n'[5]SM1 - DECC Scenario 3 equiv'!N9+'[5]SM1 - DECC Scenario 3 equiv'!N19,\n'[5]SM2 - DECC Scenario 1 equiv'!N9+'[5]SM2 - DECC Scenario 1 equiv'!N19,\n'[5]SM3 - DECC Scenario 2 equiv'!N9+'[5]SM3 - DECC Scenario 2 equiv'!N19,\n'[5]SM4 - DNO Scenario 4 equiv'!N9+'[5]SM4 - DNO Scenario 4 equiv'!N19,\n'[6]M1a - Model inputs'!N9+'[6]M1a - Model inputs'!N19,\n'[6]M1b - Model inputs'!N9+'[6]M1b - Model inputs'!N19,\n'[6]SM1 - DECC Scenario 3 equiv'!N9+'[6]SM1 - DECC Scenario 3 equiv'!N19,\n'[6]SM2 - DECC Scenario 1 equiv'!N9+'[6]SM2 - DECC Scenario 1 equiv'!N19,\n'[6]SM3 - DECC Scenario 2 equiv'!N9+'[6]SM3 - DECC Scenario 2 equiv'!N19,\n'[6]SM4 - DNO Scenario 4 equiv'!N9+'[6]SM4 - DNO Scenario 4 equiv'!N19)","v":77.652331100834616},{"$f":"CHOOSE(view,\n'[5]M1a - Model inputs'!O9+'[5]M1a - Model inputs'!O19,\n'[5]M1b - Model inputs'!O9+'[5]M1b - Model inputs'!O19,\n'[5]SM1 - DECC Scenario 3 equiv'!O9+'[5]SM1 - DECC Scenario 3 equiv'!O19,\n'[5]SM2 - DECC Scenario 1 equiv'!O9+'[5]SM2 - DECC Scenario 1 equiv'!O19,\n'[5]SM3 - DECC Scenario 2 equiv'!O9+'[5]SM3 - DECC Scenario 2 equiv'!O19,\n'[5]SM4 - DNO Scenario 4 equiv'!O9+'[5]SM4 - DNO Scenario 4 equiv'!O19,\n'[6]M1a - Model inputs'!O9+'[6]M1a - Model inputs'!O19,\n'[6]M1b - Model inputs'!O9+'[6]M1b - Model inputs'!O19,\n'[6]SM1 - DECC Scenario 3 equiv'!O9+'[6]SM1 - DECC Scenario 3 equiv'!O19,\n'[6]SM2 - DECC Scenario 1 equiv'!O9+'[6]SM2 - DECC Scenario 1 equiv'!O19,\n'[6]SM3 - DECC Scenario 2 equiv'!O9+'[6]SM3 - DECC Scenario 2 equiv'!O19,\n'[6]SM4 - DNO Scenario 4 equiv'!O9+'[6]SM4 - DNO Scenario 4 equiv'!O19)","v":77.493962564297263},{"$f":"CHOOSE(view,\n'[5]M1a - Model inputs'!P9+'[5]M1a - Model inputs'!P19,\n'[5]M1b - Model inputs'!P9+'[5]M1b - Model inputs'!P19,\n'[5]SM1 - DECC Scenario 3 equiv'!P9+'[5]SM1 - DECC Scenario 3 equiv'!P19,\n'[5]SM2 - DECC Scenario 1 equiv'!P9+'[5]SM2 - DECC Scenario 1 equiv'!P19,\n'[5]SM3 - DECC Scenario 2 equiv'!P9+'[5]SM3 - DECC Scenario 2 equiv'!P19,\n'[5]SM4 - DNO Scenario 4 equiv'!P9+'[5]SM4 - DNO Scenario 4 equiv'!P19,\n'[6]M1a - Model inputs'!P9+'[6]M1a - Model inputs'!P19,\n'[6]M1b - Model inputs'!P9+'[6]M1b - Model inputs'!P19,\n'[6]SM1 - DECC Scenario 3 equiv'!P9+'[6]SM1 - DECC Scenario 3 equiv'!P19,\n'[6]SM2 - DECC Scenario 1 equiv'!P9+'[6]SM2 - DECC Scenario 1 equiv'!P19,\n'[6]SM3 - DECC Scenario 2 equiv'!P9+'[6]SM3 - DECC Scenario 2 equiv'!P19,\n'[6]SM4 - DNO Scenario 4 equiv'!P9+'[6]SM4 - DNO Scenario 4 equiv'!P19)","v":73.2739283832409},{"$f":"CHOOSE(view,\n'[5]M1a - Model inputs'!Q9+'[5]M1a - Model inputs'!Q19,\n'[5]M1b - Model inputs'!Q9+'[5]M1b - Model inputs'!Q19,\n'[5]SM1 - DECC Scenario 3 equiv'!Q9+'[5]SM1 - DECC Scenario 3 equiv'!Q19,\n'[5]SM2 - DECC Scenario 1 equiv'!Q9+'[5]SM2 - DECC Scenario 1 equiv'!Q19,\n'[5]SM3 - DECC Scenario 2 equiv'!Q9+'[5]SM3 - DECC Scenario 2 equiv'!Q19,\n'[5]SM4 - DNO Scenario 4 equiv'!Q9+'[5]SM4 - DNO Scenario 4 equiv'!Q19,\n'[6]M1a - Model inputs'!Q9+'[6]M1a - Model inputs'!Q19,\n'[6]M1b - Model inputs'!Q9+'[6]M1b - Model inputs'!Q19,\n'[6]SM1 - DECC Scenario 3 equiv'!Q9+'[6]SM1 - DECC Scenario 3 equiv'!Q19,\n'[6]SM2 - DECC Scenario 1 equiv'!Q9+'[6]SM2 - DECC Scenario 1 equiv'!Q19,\n'[6]SM3 - DECC Scenario 2 equiv'!Q9+'[6]SM3 - DECC Scenario 2 equiv'!Q19,\n'[6]SM4 - DNO Scenario 4 equiv'!Q9+'[6]SM4 - DNO Scenario 4 equiv'!Q19)","v":74.348788263656161},{"$f":"CHOOSE(view,\n'[5]M1a - Model inputs'!R9+'[5]M1a - Model inputs'!R19,\n'[5]M1b - Model inputs'!R9+'[5]M1b - Model inputs'!R19,\n'[5]SM1 - DECC Scenario 3 equiv'!R9+'[5]SM1 - DECC Scenario 3 equiv'!R19,\n'[5]SM2 - DECC Scenario 1 equiv'!R9+'[5]SM2 - DECC Scenario 1 equiv'!R19,\n'[5]SM3 - DECC Scenario 2 equiv'!R9+'[5]SM3 - DECC Scenario 2 equiv'!R19,\n'[5]SM4 - DNO Scenario 4 equiv'!R9+'[5]SM4 - DNO Scenario 4 equiv'!R19,\n'[6]M1a - Model inputs'!R9+'[6]M1a - Model inputs'!R19,\n'[6]M1b - Model inputs'!R9+'[6]M1b - Model inputs'!R19,\n'[6]SM1 - DECC Scenario 3 equiv'!R9+'[6]SM1 - DECC Scenario 3 equiv'!R19,\n'[6]SM2 - DECC Scenario 1 equiv'!R9+'[6]SM2 - DECC Scenario 1 equiv'!R19,\n'[6]SM3 - DECC Scenario 2 equiv'!R9+'[6]SM3 - DECC Scenario 2 equiv'!R19,\n'[6]SM4 - DNO Scenario 4 equiv'!R9+'[6]SM4 - DNO Scenario 4 equiv'!R19)","v":73.362285256428763},{"$f":"CHOOSE(view,\n'[5]M1a - Model inputs'!S9+'[5]M1a - Model inputs'!S19,\n'[5]M1b - Model inputs'!S9+'[5]M1b - Model inputs'!S19,\n'[5]SM1 - DECC Scenario 3 equiv'!S9+'[5]SM1 - DECC Scenario 3 equiv'!S19,\n'[5]SM2 - DECC Scenario 1 equiv'!S9+'[5]SM2 - DECC Scenario 1 equiv'!S19,\n'[5]SM3 - DECC Scenario 2 equiv'!S9+'[5]SM3 - DECC Scenario 2 equiv'!S19,\n'[5]SM4 - DNO Scenario 4 equiv'!S9+'[5]SM4 - DNO Scenario 4 equiv'!S19,\n'[6]M1a - Model inputs'!S9+'[6]M1a - Model inputs'!S19,\n'[6]M1b - Model inputs'!S9+'[6]M1b - Model inputs'!S19,\n'[6]SM1 - DECC Scenario 3 equiv'!S9+'[6]SM1 - DECC Scenario 3 equiv'!S19,\n'[6]SM2 - DECC Scenario 1 equiv'!S9+'[6]SM2 - DECC Scenario 1 equiv'!S19,\n'[6]SM3 - DECC Scenario 2 equiv'!S9+'[6]SM3 - DECC Scenario 2 equiv'!S19,\n'[6]SM4 - DNO Scenario 4 equiv'!S9+'[6]SM4 - DNO Scenario 4 equiv'!S19)","v":73.680570784182805}]
[null,null,null,null,{"$f":"Input!E94","v":"Non-variant allowed non-load related capex - other"},null,"£m 12/13 prices",null,null,null,null,null,null,null,null,null,null,null,null,null,null,null,null,null,null,null,null,null,null,null,null,null,null,null,null,{"$f":"CHOOSE(view,\n'[5]M1a - Model inputs'!L10+'[5]M1a - Model inputs'!L20,\n'[5]M1b - Model inputs'!L10+'[5]M1b - Model inputs'!L20,\n'[5]SM1 - DECC Scenario 3 equiv'!L10+'[5]SM1 - DECC Scenario 3 equiv'!L20,\n'[5]SM2 - DECC Scenario 1 equiv'!L10+'[5]SM2 - DECC Scenario 1 equiv'!L20,\n'[5]SM3 - DECC Scenario 2 equiv'!L10+'[5]SM3 - DECC Scenario 2 equiv'!L20,\n'[5]SM4 - DNO Scenario 4 equiv'!L10+'[5]SM4 - DNO Scenario 4 equiv'!L20,\n'[6]M1a - Model inputs'!L10+'[6]M1a - Model inputs'!L20,\n'[6]M1b - Model inputs'!L10+'[6]M1b - Model inputs'!L20,\n'[6]SM1 - DECC Scenario 3 equiv'!L10+'[6]SM1 - DECC Scenario 3 equiv'!L20,\n'[6]SM2 - DECC Scenario 1 equiv'!L10+'[6]SM2 - DECC Scenario 1 equiv'!L20,\n'[6]SM3 - DECC Scenario 2 equiv'!L10+'[6]SM3 - DECC Scenario 2 equiv'!L20,\n'[6]SM4 - DNO Scenario 4 equiv'!L10+'[6]SM4 - DNO Scenario 4 equiv'!L20)","v":21.132662090512731},{"$f":"CHOOSE(view,\n'[5]M1a - Model inputs'!M10+'[5]M1a - Model inputs'!M20,\n'[5]M1b - Model inputs'!M10+'[5]M1b - Model inputs'!M20,\n'[5]SM1 - DECC Scenario 3 equiv'!M10+'[5]SM1 - DECC Scenario 3 equiv'!M20,\n'[5]SM2 - DECC Scenario 1 equiv'!M10+'[5]SM2 - DECC Scenario 1 equiv'!M20,\n'[5]SM3 - DECC Scenario 2 equiv'!M10+'[5]SM3 - DECC Scenario 2 equiv'!M20,\n'[5]SM4 - DNO Scenario 4 equiv'!M10+'[5]SM4 - DNO Scenario 4 equiv'!M20,\n'[6]M1a - Model inputs'!M10+'[6]M1a - Model inputs'!M20,\n'[6]M1b - Model inputs'!M10+'[6]M1b - Model inputs'!M20,\n'[6]SM1 - DECC Scenario 3 equiv'!M10+'[6]SM1 - DECC Scenario 3 equiv'!M20,\n'[6]SM2 - DECC Scenario 1 equiv'!M10+'[6]SM2 - DECC Scenario 1 equiv'!M20,\n'[6]SM3 - DECC Scenario 2 equiv'!M10+'[6]SM3 - DECC Scenario 2 equiv'!M20,\n'[6]SM4 - DNO Scenario 4 equiv'!M10+'[6]SM4 - DNO Scenario 4 equiv'!M20)","v":19.507634029121885},{"$f":"CHOOSE(view,\n'[5]M1a - Model inputs'!N10+'[5]M1a - Model inputs'!N20,\n'[5]M1b - Model inputs'!N10+'[5]M1b - Model inputs'!N20,\n'[5]SM1 - DECC Scenario 3 equiv'!N10+'[5]SM1 - DECC Scenario 3 equiv'!N20,\n'[5]SM2 - DECC Scenario 1 equiv'!N10+'[5]SM2 - DECC Scenario 1 equiv'!N20,\n'[5]SM3 - DECC Scenario 2 equiv'!N10+'[5]SM3 - DECC Scenario 2 equiv'!N20,\n'[5]SM4 - DNO Scenario 4 equiv'!N10+'[5]SM4 - DNO Scenario 4 equiv'!N20,\n'[6]M1a - Model inputs'!N10+'[6]M1a - Model inputs'!N20,\n'[6]M1b - Model inputs'!N10+'[6]M1b - Model inputs'!N20,\n'[6]SM1 - DECC Scenario 3 equiv'!N10+'[6]SM1 - DECC Scenario 3 equiv'!N20,\n'[6]SM2 - DECC Scenario 1 equiv'!N10+'[6]SM2 - DECC Scenario 1 equiv'!N20,\n'[6]SM3 - DECC Scenario 2 equiv'!N10+'[6]SM3 - DECC Scenario 2 equiv'!N20,\n'[6]SM4 - DNO Scenario 4 equiv'!N10+'[6]SM4 - DNO Scenario 4 equiv'!N20)","v":14.838014299987003},{"$f":"CHOOSE(view,\n'[5]M1a - Model inputs'!O10+'[5]M1a - Model inputs'!O20,\n'[5]M1b - Model inputs'!O10+'[5]M1b - Model inputs'!O20,\n'[5]SM1 - DECC Scenario 3 equiv'!O10+'[5]SM1 - DECC Scenario 3 equiv'!O20,\n'[5]SM2 - DECC Scenario 1 equiv'!O10+'[5]SM2 - DECC Scenario 1 equiv'!O20,\n'[5]SM3 - DECC Scenario 2 equiv'!O10+'[5]SM3 - DECC Scenario 2 equiv'!O20,\n'[5]SM4 - DNO Scenario 4 equiv'!O10+'[5]SM4 - DNO Scenario 4 equiv'!O20,\n'[6]M1a - Model inputs'!O10+'[6]M1a - Model inputs'!O20,\n'[6]M1b - Model inputs'!O10+'[6]M1b - Model inputs'!O20,\n'[6]SM1 - DECC Scenario 3 equiv'!O10+'[6]SM1 - DECC Scenario 3 equiv'!O20,\n'[6]SM2 - DECC Scenario 1 equiv'!O10+'[6]SM2 - DECC Scenario 1 equiv'!O20,\n'[6]SM3 - DECC Scenario 2 equiv'!O10+'[6]SM3 - DECC Scenario 2 equiv'!O20,\n'[6]SM4 - DNO Scenario 4 equiv'!O10+'[6]SM4 - DNO Scenario 4 equiv'!O20)","v":12.045191037769042},{"$f":"CHOOSE(view,\n'[5]M1a - Model inputs'!P10+'[5]M1a - Model inputs'!P20,\n'[5]M1b - Model inputs'!P10+'[5]M1b - Model inputs'!P20,\n'[5]SM1 - DECC Scenario 3 equiv'!P10+'[5]SM1 - DECC Scenario 3 equiv'!P20,\n'[5]SM2 - DECC Scenario 1 equiv'!P10+'[5]SM2 - DECC Scenario 1 equiv'!P20,\n'[5]SM3 - DECC Scenario 2 equiv'!P10+'[5]SM3 - DECC Scenario 2 equiv'!P20,\n'[5]SM4 - DNO Scenario 4 equiv'!P10+'[5]SM4 - DNO Scenario 4 equiv'!P20,\n'[6]M1a - Model inputs'!P10+'[6]M1a - Model inputs'!P20,\n'[6]M1b - Model inputs'!P10+'[6]M1b - Model inputs'!P20,\n'[6]SM1 - DECC Scenario 3 equiv'!P10+'[6]SM1 - DECC Scenario 3 equiv'!P20,\n'[6]SM2 - DECC Scenario 1 equiv'!P10+'[6]SM2 - DECC Scenario 1 equiv'!P20,\n'[6]SM3 - DECC Scenario 2 equiv'!P10+'[6]SM3 - DECC Scenario 2 equiv'!P20,\n'[6]SM4 - DNO Scenario 4 equiv'!P10+'[6]SM4 - DNO Scenario 4 equiv'!P20)","v":14.621384134580705},{"$f":"CHOOSE(view,\n'[5]M1a - Model inputs'!Q10+'[5]M1a - Model inputs'!Q20,\n'[5]M1b - Model inputs'!Q10+'[5]M1b - Model inputs'!Q20,\n'[5]SM1 - DECC Scenario 3 equiv'!Q10+'[5]SM1 - DECC Scenario 3 equiv'!Q20,\n'[5]SM2 - DECC Scenario 1 equiv'!Q10+'[5]SM2 - DECC Scenario 1 equiv'!Q20,\n'[5]SM3 - DECC Scenario 2 equiv'!Q10+'[5]SM3 - DECC Scenario 2 equiv'!Q20,\n'[5]SM4 - DNO Scenario 4 equiv'!Q10+'[5]SM4 - DNO Scenario 4 equiv'!Q20,\n'[6]M1a - Model inputs'!Q10+'[6]M1a - Model inputs'!Q20,\n'[6]M1b - Model inputs'!Q10+'[6]M1b - Model inputs'!Q20,\n'[6]SM1 - DECC Scenario 3 equiv'!Q10+'[6]SM1 - DECC Scenario 3 equiv'!Q20,\n'[6]SM2 - DECC Scenario 1 equiv'!Q10+'[6]SM2 - DECC Scenario 1 equiv'!Q20,\n'[6]SM3 - DECC Scenario 2 equiv'!Q10+'[6]SM3 - DECC Scenario 2 equiv'!Q20,\n'[6]SM4 - DNO Scenario 4 equiv'!Q10+'[6]SM4 - DNO Scenario 4 equiv'!Q20)","v":14.924248495099864},{"$f":"CHOOSE(view,\n'[5]M1a - Model inputs'!R10+'[5]M1a - Model inputs'!R20,\n'[5]M1b - Model inputs'!R10+'[5]M1b - Model inputs'!R20,\n'[5]SM1 - DECC Scenario 3 equiv'!R10+'[5]SM1 - DECC Scenario 3 equiv'!R20,\n'[5]SM2 - DECC Scenario 1 equiv'!R10+'[5]SM2 - DECC Scenario 1 equiv'!R20,\n'[5]SM3 - DECC Scenario 2 equiv'!R10+'[5]SM3 - DECC Scenario 2 equiv'!R20,\n'[5]SM4 - DNO Scenario 4 equiv'!R10+'[5]SM4 - DNO Scenario 4 equiv'!R20,\n'[6]M1a - Model inputs'!R10+'[6]M1a - Model inputs'!R20,\n'[6]M1b - Model inputs'!R10+'[6]M1b - Model inputs'!R20,\n'[6]SM1 - DECC Scenario 3 equiv'!R10+'[6]SM1 - DECC Scenario 3 equiv'!R20,\n'[6]SM2 - DECC Scenario 1 equiv'!R10+'[6]SM2 - DECC Scenario 1 equiv'!R20,\n'[6]SM3 - DECC Scenario 2 equiv'!R10+'[6]SM3 - DECC Scenario 2 equiv'!R20,\n'[6]SM4 - DNO Scenario 4 equiv'!R10+'[6]SM4 - DNO Scenario 4 equiv'!R20)","v":15.701254877140034},{"$f":"CHOOSE(view,\n'[5]M1a - Model inputs'!S10+'[5]M1a - Model inputs'!S20,\n'[5]M1b - Model inputs'!S10+'[5]M1b - Model inputs'!S20,\n'[5]SM1 - DECC Scenario 3 equiv'!S10+'[5]SM1 - DECC Scenario 3 equiv'!S20,\n'[5]SM2 - DECC Scenario 1 equiv'!S10+'[5]SM2 - DECC Scenario 1 equiv'!S20,\n'[5]SM3 - DECC Scenario 2 equiv'!S10+'[5]SM3 - DECC Scenario 2 equiv'!S20,\n'[5]SM4 - DNO Scenario 4 equiv'!S10+'[5]SM4 - DNO Scenario 4 equiv'!S20,\n'[6]M1a - Model inputs'!S10+'[6]M1a - Model inputs'!S20,\n'[6]M1b - Model inputs'!S10+'[6]M1b - Model inputs'!S20,\n'[6]SM1 - DECC Scenario 3 equiv'!S10+'[6]SM1 - DECC Scenario 3 equiv'!S20,\n'[6]SM2 - DECC Scenario 1 equiv'!S10+'[6]SM2 - DECC Scenario 1 equiv'!S20,\n'[6]SM3 - DECC Scenario 2 equiv'!S10+'[6]SM3 - DECC Scenario 2 equiv'!S20,\n'[6]SM4 - DNO Scenario 4 equiv'!S10+'[6]SM4 - DNO Scenario 4 equiv'!S20)","v":13.252474722373424}]
[null,null,null,null,{"$f":"Input!E95","v":"Non-variant allowed faults"},null,"£m 12/13 prices",null,null,null,null,null,null,null,null,null,null,null,null,null,null,null,null,null,null,null,null,null,null,null,null,null,null,null,null,{"$f":"CHOOSE(view,\n'[5]M1a - Model inputs'!L11+'[5]M1a - Model inputs'!L21,\n'[5]M1b - Model inputs'!L11+'[5]M1b - Model inputs'!L21,\n'[5]SM1 - DECC Scenario 3 equiv'!L11+'[5]SM1 - DECC Scenario 3 equiv'!L21,\n'[5]SM2 - DECC Scenario 1 equiv'!L11+'[5]SM2 - DECC Scenario 1 equiv'!L21,\n'[5]SM3 - DECC Scenario 2 equiv'!L11+'[5]SM3 - DECC Scenario 2 equiv'!L21,\n'[5]SM4 - DNO Scenario 4 equiv'!L11+'[5]SM4 - DNO Scenario 4 equiv'!L21,\n'[6]M1a - Model inputs'!L11+'[6]M1a - Model inputs'!L21,\n'[6]M1b - Model inputs'!L11+'[6]M1b - Model inputs'!L21,\n'[6]SM1 - DECC Scenario 3 equiv'!L11+'[6]SM1 - DECC Scenario 3 equiv'!L21,\n'[6]SM2 - DECC Scenario 1 equiv'!L11+'[6]SM2 - DECC Scenario 1 equiv'!L21,\n'[6]SM3 - DECC Scenario 2 equiv'!L11+'[6]SM3 - DECC Scenario 2 equiv'!L21,\n'[6]SM4 - DNO Scenario 4 equiv'!L11+'[6]SM4 - DNO Scenario 4 equiv'!L21)","v":33.886868367003352},{"$f":"CHOOSE(view,\n'[5]M1a - Model inputs'!M11+'[5]M1a - Model inputs'!M21,\n'[5]M1b - Model inputs'!M11+'[5]M1b - Model inputs'!M21,\n'[5]SM1 - DECC Scenario 3 equiv'!M11+'[5]SM1 - DECC Scenario 3 equiv'!M21,\n'[5]SM2 - DECC Scenario 1 equiv'!M11+'[5]SM2 - DECC Scenario 1 equiv'!M21,\n'[5]SM3 - DECC Scenario 2 equiv'!M11+'[5]SM3 - DECC Scenario 2 equiv'!M21,\n'[5]SM4 - DNO Scenario 4 equiv'!M11+'[5]SM4 - DNO Scenario 4 equiv'!M21,\n'[6]M1a - Model inputs'!M11+'[6]M1a - Model inputs'!M21,\n'[6]M1b - Model inputs'!M11+'[6]M1b - Model inputs'!M21,\n'[6]SM1 - DECC Scenario 3 equiv'!M11+'[6]SM1 - DECC Scenario 3 equiv'!M21,\n'[6]SM2 - DECC Scenario 1 equiv'!M11+'[6]SM2 - DECC Scenario 1 equiv'!M21,\n'[6]SM3 - DECC Scenario 2 equiv'!M11+'[6]SM3 - DECC Scenario 2 equiv'!M21,\n'[6]SM4 - DNO Scenario 4 equiv'!M11+'[6]SM4 - DNO Scenario 4 equiv'!M21)","v":33.860953076281895},{"$f":"CHOOSE(view,\n'[5]M1a - Model inputs'!N11+'[5]M1a - Model inputs'!N21,\n'[5]M1b - Model inputs'!N11+'[5]M1b - Model inputs'!N21,\n'[5]SM1 - DECC Scenario 3 equiv'!N11+'[5]SM1 - DECC Scenario 3 equiv'!N21,\n'[5]SM2 - DECC Scenario 1 equiv'!N11+'[5]SM2 - DECC Scenario 1 equiv'!N21,\n'[5]SM3 - DECC Scenario 2 equiv'!N11+'[5]SM3 - DECC Scenario 2 equiv'!N21,\n'[5]SM4 - DNO Scenario 4 equiv'!N11+'[5]SM4 - DNO Scenario 4 equiv'!N21,\n'[6]M1a - Model inputs'!N11+'[6]M1a - Model inputs'!N21,\n'[6]M1b - Model inputs'!N11+'[6]M1b - Model inputs'!N21,\n'[6]SM1 - DECC Scenario 3 equiv'!N11+'[6]SM1 - DECC Scenario 3 equiv'!N21,\n'[6]SM2 - DECC Scenario 1 equiv'!N11+'[6]SM2 - DECC Scenario 1 equiv'!N21,\n'[6]SM3 - DECC Scenario 2 equiv'!N11+'[6]SM3 - DECC Scenario 2 equiv'!N21,\n'[6]SM4 - DNO Scenario 4 equiv'!N11+'[6]SM4 - DNO Scenario 4 equiv'!N21)","v":33.711681542643696},{"$f":"CHOOSE(view,\n'[5]M1a - Model inputs'!O11+'[5]M1a - Model inputs'!O21,\n'[5]M1b - Model inputs'!O11+'[5]M1b - Model inputs'!O21,\n'[5]SM1 - DECC Scenario 3 equiv'!O11+'[5]SM1 - DECC Scenario 3 equiv'!O21,\n'[5]SM2 - DECC Scenario 1 equiv'!O11+'[5]SM2 - DECC Scenario 1 equiv'!O21,\n'[5]SM3 - DECC Scenario 2 equiv'!O11+'[5]SM3 - DECC Scenario 2 equiv'!O21,\n'[5]SM4 - DNO Scenario 4 equiv'!O11+'[5]SM4 - DNO Scenario 4 equiv'!O21,\n'[6]M1a - Model inputs'!O11+'[6]M1a - Model inputs'!O21,\n'[6]M1b - Model inputs'!O11+'[6]M1b - Model inputs'!O21,\n'[6]SM1 - DECC Scenario 3 equiv'!O11+'[6]SM1 - DECC Scenario 3 equiv'!O21,\n'[6]SM2 - DECC Scenario 1 equiv'!O11+'[6]SM2 - DECC Scenario 1 equiv'!O21,\n'[6]SM3 - DECC Scenario 2 equiv'!O11+'[6]SM3 - DECC Scenario 2 equiv'!O21,\n'[6]SM4 - DNO Scenario 4 equiv'!O11+'[6]SM4 - DNO Scenario 4 equiv'!O21)","v":33.721643105462014},{"$f":"CHOOSE(view,\n'[5]M1a - Model inputs'!P11+'[5]M1a - Model inputs'!P21,\n'[5]M1b - Model inputs'!P11+'[5]M1b - Model inputs'!P21,\n'[5]SM1 - DECC Scenario 3 equiv'!P11+'[5]SM1 - DECC Scenario 3 equiv'!P21,\n'[5]SM2 - DECC Scenario 1 equiv'!P11+'[5]SM2 - DECC Scenario 1 equiv'!P21,\n'[5]SM3 - DECC Scenario 2 equiv'!P11+'[5]SM3 - DECC Scenario 2 equiv'!P21,\n'[5]SM4 - DNO Scenario 4 equiv'!P11+'[5]SM4 - DNO Scenario 4 equiv'!P21,\n'[6]M1a - Model inputs'!P11+'[6]M1a - Model inputs'!P21,\n'[6]M1b - Model inputs'!P11+'[6]M1b - Model inputs'!P21,\n'[6]SM1 - DECC Scenario 3 equiv'!P11+'[6]SM1 - DECC Scenario 3 equiv'!P21,\n'[6]SM2 - DECC Scenario 1 equiv'!P11+'[6]SM2 - DECC Scenario 1 equiv'!P21,\n'[6]SM3 - DECC Scenario 2 equiv'!P11+'[6]SM3 - DECC Scenario 2 equiv'!P21,\n'[6]SM4 - DNO Scenario 4 equiv'!P11+'[6]SM4 - DNO Scenario 4 equiv'!P21)","v":33.745631554796894},{"$f":"CHOOSE(view,\n'[5]M1a - Model inputs'!Q11+'[5]M1a - Model inputs'!Q21,\n'[5]M1b - Model inputs'!Q11+'[5]M1b - Model inputs'!Q21,\n'[5]SM1 - DECC Scenario 3 equiv'!Q11+'[5]SM1 - DECC Scenario 3 equiv'!Q21,\n'[5]SM2 - DECC Scenario 1 equiv'!Q11+'[5]SM2 - DECC Scenario 1 equiv'!Q21,\n'[5]SM3 - DECC Scenario 2 equiv'!Q11+'[5]SM3 - DECC Scenario 2 equiv'!Q21,\n'[5]SM4 - DNO Scenario 4 equiv'!Q11+'[5]SM4 - DNO Scenario 4 equiv'!Q21,\n'[6]M1a - Model inputs'!Q11+'[6]M1a - Model inputs'!Q21,\n'[6]M1b - Model inputs'!Q11+'[6]M1b - Model inputs'!Q21,\n'[6]SM1 - DECC Scenario 3 equiv'!Q11+'[6]SM1 - DECC Scenario 3 equiv'!Q21,\n'[6]SM2 - DECC Scenario 1 equiv'!Q11+'[6]SM2 - DECC Scenario 1 equiv'!Q21,\n'[6]SM3 - DECC Scenario 2 equiv'!Q11+'[6]SM3 - DECC Scenario 2 equiv'!Q21,\n'[6]SM4 - DNO Scenario 4 equiv'!Q11+'[6]SM4 - DNO Scenario 4 equiv'!Q21)","v":33.862630114301147},{"$f":"CHOOSE(view,\n'[5]M1a - Model inputs'!R11+'[5]M1a - Model inputs'!R21,\n'[5]M1b - Model inputs'!R11+'[5]M1b - Model inputs'!R21,\n'[5]SM1 - DECC Scenario 3 equiv'!R11+'[5]SM1 - DECC Scenario 3 equiv'!R21,\n'[5]SM2 - DECC Scenario 1 equiv'!R11+'[5]SM2 - DECC Scenario 1 equiv'!R21,\n'[5]SM3 - DECC Scenario 2 equiv'!R11+'[5]SM3 - DECC Scenario 2 equiv'!R21,\n'[5]SM4 - DNO Scenario 4 equiv'!R11+'[5]SM4 - DNO Scenario 4 equiv'!R21,\n'[6]M1a - Model inputs'!R11+'[6]M1a - Model inputs'!R21,\n'[6]M1b - Model inputs'!R11+'[6]M1b - Model inputs'!R21,\n'[6]SM1 - DECC Scenario 3 equiv'!R11+'[6]SM1 - DECC Scenario 3 equiv'!R21,\n'[6]SM2 - DECC Scenario 1 equiv'!R11+'[6]SM2 - DECC Scenario 1 equiv'!R21,\n'[6]SM3 - DECC Scenario 2 equiv'!R11+'[6]SM3 - DECC Scenario 2 equiv'!R21,\n'[6]SM4 - DNO Scenario 4 equiv'!R11+'[6]SM4 - DNO Scenario 4 equiv'!R21)","v":34.030252341303544},{"$f":"CHOOSE(view,\n'[5]M1a - Model inputs'!S11+'[5]M1a - Model inputs'!S21,\n'[5]M1b - Model inputs'!S11+'[5]M1b - Model inputs'!S21,\n'[5]SM1 - DECC Scenario 3 equiv'!S11+'[5]SM1 - DECC Scenario 3 equiv'!S21,\n'[5]SM2 - DECC Scenario 1 equiv'!S11+'[5]SM2 - DECC Scenario 1 equiv'!S21,\n'[5]SM3 - DECC Scenario 2 equiv'!S11+'[5]SM3 - DECC Scenario 2 equiv'!S21,\n'[5]SM4 - DNO Scenario 4 equiv'!S11+'[5]SM4 - DNO Scenario 4 equiv'!S21,\n'[6]M1a - Model inputs'!S11+'[6]M1a - Model inputs'!S21,\n'[6]M1b - Model inputs'!S11+'[6]M1b - Model inputs'!S21,\n'[6]SM1 - DECC Scenario 3 equiv'!S11+'[6]SM1 - DECC Scenario 3 equiv'!S21,\n'[6]SM2 - DECC Scenario 1 equiv'!S11+'[6]SM2 - DECC Scenario 1 equiv'!S21,\n'[6]SM3 - DECC Scenario 2 equiv'!S11+'[6]SM3 - DECC Scenario 2 equiv'!S21,\n'[6]SM4 - DNO Scenario 4 equiv'!S11+'[6]SM4 - DNO Scenario 4 equiv'!S21)","v":34.18396909568073}]
[null,null,null,null,{"$f":"Input!E96","v":"Non-variant allowed tree cutting"},null,"£m 12/13 prices",null,null,null,null,null,null,null,null,null,null,null,null,null,null,null,null,null,null,null,null,null,null,null,null,null,null,null,null,{"$f":"CHOOSE(view,\n'[5]M1a - Model inputs'!L12+'[5]M1a - Model inputs'!L22,\n'[5]M1b - Model inputs'!L12+'[5]M1b - Model inputs'!L22,\n'[5]SM1 - DECC Scenario 3 equiv'!L12+'[5]SM1 - DECC Scenario 3 equiv'!L22,\n'[5]SM2 - DECC Scenario 1 equiv'!L12+'[5]SM2 - DECC Scenario 1 equiv'!L22,\n'[5]SM3 - DECC Scenario 2 equiv'!L12+'[5]SM3 - DECC Scenario 2 equiv'!L22,\n'[5]SM4 - DNO Scenario 4 equiv'!L12+'[5]SM4 - DNO Scenario 4 equiv'!L22,\n'[6]M1a - Model inputs'!L12+'[6]M1a - Model inputs'!L22,\n'[6]M1b - Model inputs'!L12+'[6]M1b - Model inputs'!L22,\n'[6]SM1 - DECC Scenario 3 equiv'!L12+'[6]SM1 - DECC Scenario 3 equiv'!L22,\n'[6]SM2 - DECC Scenario 1 equiv'!L12+'[6]SM2 - DECC Scenario 1 equiv'!L22,\n'[6]SM3 - DECC Scenario 2 equiv'!L12+'[6]SM3 - DECC Scenario 2 equiv'!L22,\n'[6]SM4 - DNO Scenario 4 equiv'!L12+'[6]SM4 - DNO Scenario 4 equiv'!L22)","v":6.3624035165583965},{"$f":"CHOOSE(view,\n'[5]M1a - Model inputs'!M12+'[5]M1a - Model inputs'!M22,\n'[5]M1b - Model inputs'!M12+'[5]M1b - Model inputs'!M22,\n'[5]SM1 - DECC Scenario 3 equiv'!M12+'[5]SM1 - DECC Scenario 3 equiv'!M22,\n'[5]SM2 - DECC Scenario 1 equiv'!M12+'[5]SM2 - DECC Scenario 1 equiv'!M22,\n'[5]SM3 - DECC Scenario 2 equiv'!M12+'[5]SM3 - DECC Scenario 2 equiv'!M22,\n'[5]SM4 - DNO Scenario 4 equiv'!M12+'[5]SM4 - DNO Scenario 4 equiv'!M22,\n'[6]M1a - Model inputs'!M12+'[6]M1a - Model inputs'!M22,\n'[6]M1b - Model inputs'!M12+'[6]M1b - Model inputs'!M22,\n'[6]SM1 - DECC Scenario 3 equiv'!M12+'[6]SM1 - DECC Scenario 3 equiv'!M22,\n'[6]SM2 - DECC Scenario 1 equiv'!M12+'[6]SM2 - DECC Scenario 1 equiv'!M22,\n'[6]SM3 - DECC Scenario 2 equiv'!M12+'[6]SM3 - DECC Scenario 2 equiv'!M22,\n'[6]SM4 - DNO Scenario 4 equiv'!M12+'[6]SM4 - DNO Scenario 4 equiv'!M22)","v":6.3846629544293041},{"$f":"CHOOSE(view,\n'[5]M1a - Model inputs'!N12+'[5]M1a - Model inputs'!N22,\n'[5]M1b - Model inputs'!N12+'[5]M1b - Model inputs'!N22,\n'[5]SM1 - DECC Scenario 3 equiv'!N12+'[5]SM1 - DECC Scenario 3 equiv'!N22,\n'[5]SM2 - DECC Scenario 1 equiv'!N12+'[5]SM2 - DECC Scenario 1 equiv'!N22,\n'[5]SM3 - DECC Scenario 2 equiv'!N12+'[5]SM3 - DECC Scenario 2 equiv'!N22,\n'[5]SM4 - DNO Scenario 4 equiv'!N12+'[5]SM4 - DNO Scenario 4 equiv'!N22,\n'[6]M1a - Model inputs'!N12+'[6]M1a - Model inputs'!N22,\n'[6]M1b - Model inputs'!N12+'[6]M1b - Model inputs'!N22,\n'[6]SM1 - DECC Scenario 3 equiv'!N12+'[6]SM1 - DECC Scenario 3 equiv'!N22,\n'[6]SM2 - DECC Scenario 1 equiv'!N12+'[6]SM2 - DECC Scenario 1 equiv'!N22,\n'[6]SM3 - DECC Scenario 2 equiv'!N12+'[6]SM3 - DECC Scenario 2 equiv'!N22,\n'[6]SM4 - DNO Scenario 4 equiv'!N12+'[6]SM4 - DNO Scenario 4 equiv'!N22)","v":6.3895926405593304},{"$f":"CHOOSE(view,\n'[5]M1a - Model inputs'!O12+'[5]M1a - Model inputs'!O22,\n'[5]M1b - Model inputs'!O12+'[5]M1b - Model inputs'!O22,\n'[5]SM1 - DECC Scenario 3 equiv'!O12+'[5]SM1 - DECC Scenario 3 equiv'!O22,\n'[5]SM2 - DECC Scenario 1 equiv'!O12+'[5]SM2 - DECC Scenario 1 equiv'!O22,\n'[5]SM3 - DECC Scenario 2 equiv'!O12+'[5]SM3 - DECC Scenario 2 equiv'!O22,\n'[5]SM4 - DNO Scenario 4 equiv'!O12+'[5]SM4 - DNO Scenario 4 equiv'!O22,\n'[6]M1a - Model inputs'!O12+'[6]M1a - Model inputs'!O22,\n'[6]M1b - Model inputs'!O12+'[6]M1b - Model inputs'!O22,\n'[6]SM1 - DECC Scenario 3 equiv'!O12+'[6]SM1 - DECC Scenario 3 equiv'!O22,\n'[6]SM2 - DECC Scenario 1 equiv'!O12+'[6]SM2 - DECC Scenario 1 equiv'!O22,\n'[6]SM3 - DECC Scenario 2 equiv'!O12+'[6]SM3 - DECC Scenario 2 equiv'!O22,\n'[6]SM4 - DNO Scenario 4 equiv'!O12+'[6]SM4 - DNO Scenario 4 equiv'!O22)","v":6.4334538136765831},{"$f":"CHOOSE(view,\n'[5]M1a - Model inputs'!P12+'[5]M1a - Model inputs'!P22,\n'[5]M1b - Model inputs'!P12+'[5]M1b - Model inputs'!P22,\n'[5]SM1 - DECC Scenario 3 equiv'!P12+'[5]SM1 - DECC Scenario 3 equiv'!P22,\n'[5]SM2 - DECC Scenario 1 equiv'!P12+'[5]SM2 - DECC Scenario 1 equiv'!P22,\n'[5]SM3 - DECC Scenario 2 equiv'!P12+'[5]SM3 - DECC Scenario 2 equiv'!P22,\n'[5]SM4 - DNO Scenario 4 equiv'!P12+'[5]SM4 - DNO Scenario 4 equiv'!P22,\n'[6]M1a - Model inputs'!P12+'[6]M1a - Model inputs'!P22,\n'[6]M1b - Model inputs'!P12+'[6]M1b - Model inputs'!P22,\n'[6]SM1 - DECC Scenario 3 equiv'!P12+'[6]SM1 - DECC Scenario 3 equiv'!P22,\n'[6]SM2 - DECC Scenario 1 equiv'!P12+'[6]SM2 - DECC Scenario 1 equiv'!P22,\n'[6]SM3 - DECC Scenario 2 equiv'!P12+'[6]SM3 - DECC Scenario 2 equiv'!P22,\n'[6]SM4 - DNO Scenario 4 equiv'!P12+'[6]SM4 - DNO Scenario 4 equiv'!P22)","v":6.479229214826022},{"$f":"CHOOSE(view,\n'[5]M1a - Model inputs'!Q12+'[5]M1a - Model inputs'!Q22,\n'[5]M1b - Model inputs'!Q12+'[5]M1b - Model inputs'!Q22,\n'[5]SM1 - DECC Scenario 3 equiv'!Q12+'[5]SM1 - DECC Scenario 3 equiv'!Q22,\n'[5]SM2 - DECC Scenario 1 equiv'!Q12+'[5]SM2 - DECC Scenario 1 equiv'!Q22,\n'[5]SM3 - DECC Scenario 2 equiv'!Q12+'[5]SM3 - DECC Scenario 2 equiv'!Q22,\n'[5]SM4 - DNO Scenario 4 equiv'!Q12+'[5]SM4 - DNO Scenario 4 equiv'!Q22,\n'[6]M1a - Model inputs'!Q12+'[6]M1a - Model inputs'!Q22,\n'[6]M1b - Model inputs'!Q12+'[6]M1b - Model inputs'!Q22,\n'[6]SM1 - DECC Scenario 3 equiv'!Q12+'[6]SM1 - DECC Scenario 3 equiv'!Q22,\n'[6]SM2 - DECC Scenario 1 equiv'!Q12+'[6]SM2 - DECC Scenario 1 equiv'!Q22,\n'[6]SM3 - DECC Scenario 2 equiv'!Q12+'[6]SM3 - DECC Scenario 2 equiv'!Q22,\n'[6]SM4 - DNO Scenario 4 equiv'!Q12+'[6]SM4 - DNO Scenario 4 equiv'!Q22)","v":6.5224900731094753},{"$f":"CHOOSE(view,\n'[5]M1a - Model inputs'!R12+'[5]M1a - Model inputs'!R22,\n'[5]M1b - Model inputs'!R12+'[5]M1b - Model inputs'!R22,\n'[5]SM1 - DECC Scenario 3 equiv'!R12+'[5]SM1 - DECC Scenario 3 equiv'!R22,\n'[5]SM2 - DECC Scenario 1 equiv'!R12+'[5]SM2 - DECC Scenario 1 equiv'!R22,\n'[5]SM3 - DECC Scenario 2 equiv'!R12+'[5]SM3 - DECC Scenario 2 equiv'!R22,\n'[5]SM4 - DNO Scenario 4 equiv'!R12+'[5]SM4 - DNO Scenario 4 equiv'!R22,\n'[6]M1a - Model inputs'!R12+'[6]M1a - Model inputs'!R22,\n'[6]M1b - Model inputs'!R12+'[6]M1b - Model inputs'!R22,\n'[6]SM1 - DECC Scenario 3 equiv'!R12+'[6]SM1 - DECC Scenario 3 equiv'!R22,\n'[6]SM2 - DECC Scenario 1 equiv'!R12+'[6]SM2 - DECC Scenario 1 equiv'!R22,\n'[6]SM3 - DECC Scenario 2 equiv'!R12+'[6]SM3 - DECC Scenario 2 equiv'!R22,\n'[6]SM4 - DNO Scenario 4 equiv'!R12+'[6]SM4 - DNO Scenario 4 equiv'!R22)","v":6.568589027503533},{"$f":"CHOOSE(view,\n'[5]M1a - Model inputs'!S12+'[5]M1a - Model inputs'!S22,\n'[5]M1b - Model inputs'!S12+'[5]M1b - Model inputs'!S22,\n'[5]SM1 - DECC Scenario 3 equiv'!S12+'[5]SM1 - DECC Scenario 3 equiv'!S22,\n'[5]SM2 - DECC Scenario 1 equiv'!S12+'[5]SM2 - DECC Scenario 1 equiv'!S22,\n'[5]SM3 - DECC Scenario 2 equiv'!S12+'[5]SM3 - DECC Scenario 2 equiv'!S22,\n'[5]SM4 - DNO Scenario 4 equiv'!S12+'[5]SM4 - DNO Scenario 4 equiv'!S22,\n'[6]M1a - Model inputs'!S12+'[6]M1a - Model inputs'!S22,\n'[6]M1b - Model inputs'!S12+'[6]M1b - Model inputs'!S22,\n'[6]SM1 - DECC Scenario 3 equiv'!S12+'[6]SM1 - DECC Scenario 3 equiv'!S22,\n'[6]SM2 - DECC Scenario 1 equiv'!S12+'[6]SM2 - DECC Scenario 1 equiv'!S22,\n'[6]SM3 - DECC Scenario 2 equiv'!S12+'[6]SM3 - DECC Scenario 2 equiv'!S22,\n'[6]SM4 - DNO Scenario 4 equiv'!S12+'[6]SM4 - DNO Scenario 4 equiv'!S22)","v":6.6142969581708995}]
[null,null,null,null,{"$f":"Input!E97","v":"Non-variant allowed controllable opex"},null,"£m 12/13 prices",null,null,null,null,null,null,null,null,null,null,null,null,null,null,null,null,null,null,null,null,null,null,null,null,null,null,null,null,{"$f":"CHOOSE(view,\n'[5]M1a - Model inputs'!L13+'[5]M1a - Model inputs'!L23,\n'[5]M1b - Model inputs'!L13+'[5]M1b - Model inputs'!L23,\n'[5]SM1 - DECC Scenario 3 equiv'!L13+'[5]SM1 - DECC Scenario 3 equiv'!L23,\n'[5]SM2 - DECC Scenario 1 equiv'!L13+'[5]SM2 - DECC Scenario 1 equiv'!L23,\n'[5]SM3 - DECC Scenario 2 equiv'!L13+'[5]SM3 - DECC Scenario 2 equiv'!L23,\n'[5]SM4 - DNO Scenario 4 equiv'!L13+'[5]SM4 - DNO Scenario 4 equiv'!L23,\n'[6]M1a - Model inputs'!L13+'[6]M1a - Model inputs'!L23,\n'[6]M1b - Model inputs'!L13+'[6]M1b - Model inputs'!L23,\n'[6]SM1 - DECC Scenario 3 equiv'!L13+'[6]SM1 - DECC Scenario 3 equiv'!L23,\n'[6]SM2 - DECC Scenario 1 equiv'!L13+'[6]SM2 - DECC Scenario 1 equiv'!L23,\n'[6]SM3 - DECC Scenario 2 equiv'!L13+'[6]SM3 - DECC Scenario 2 equiv'!L23,\n'[6]SM4 - DNO Scenario 4 equiv'!L13+'[6]SM4 - DNO Scenario 4 equiv'!L23)","v":94.070777664705517},{"$f":"CHOOSE(view,\n'[5]M1a - Model inputs'!M13+'[5]M1a - Model inputs'!M23,\n'[5]M1b - Model inputs'!M13+'[5]M1b - Model inputs'!M23,\n'[5]SM1 - DECC Scenario 3 equiv'!M13+'[5]SM1 - DECC Scenario 3 equiv'!M23,\n'[5]SM2 - DECC Scenario 1 equiv'!M13+'[5]SM2 - DECC Scenario 1 equiv'!M23,\n'[5]SM3 - DECC Scenario 2 equiv'!M13+'[5]SM3 - DECC Scenario 2 equiv'!M23,\n'[5]SM4 - DNO Scenario 4 equiv'!M13+'[5]SM4 - DNO Scenario 4 equiv'!M23,\n'[6]M1a - Model inputs'!M13+'[6]M1a - Model inputs'!M23,\n'[6]M1b - Model inputs'!M13+'[6]M1b - Model inputs'!M23,\n'[6]SM1 - DECC Scenario 3 equiv'!M13+'[6]SM1 - DECC Scenario 3 equiv'!M23,\n'[6]SM2 - DECC Scenario 1 equiv'!M13+'[6]SM2 - DECC Scenario 1 equiv'!M23,\n'[6]SM3 - DECC Scenario 2 equiv'!M13+'[6]SM3 - DECC Scenario 2 equiv'!M23,\n'[6]SM4 - DNO Scenario 4 equiv'!M13+'[6]SM4 - DNO Scenario 4 equiv'!M23)","v":94.531487394933308},{"$f":"CHOOSE(view,\n'[5]M1a - Model inputs'!N13+'[5]M1a - Model inputs'!N23,\n'[5]M1b - Model inputs'!N13+'[5]M1b - Model inputs'!N23,\n'[5]SM1 - DECC Scenario 3 equiv'!N13+'[5]SM1 - DECC Scenario 3 equiv'!N23,\n'[5]SM2 - DECC Scenario 1 equiv'!N13+'[5]SM2 - DECC Scenario 1 equiv'!N23,\n'[5]SM3 - DECC Scenario 2 equiv'!N13+'[5]SM3 - DECC Scenario 2 equiv'!N23,\n'[5]SM4 - DNO Scenario 4 equiv'!N13+'[5]SM4 - DNO Scenario 4 equiv'!N23,\n'[6]M1a - Model inputs'!N13+'[6]M1a - Model inputs'!N23,\n'[6]M1b - Model inputs'!N13+'[6]M1b - Model inputs'!N23,\n'[6]SM1 - DECC Scenario 3 equiv'!N13+'[6]SM1 - DECC Scenario 3 equiv'!N23,\n'[6]SM2 - DECC Scenario 1 equiv'!N13+'[6]SM2 - DECC Scenario 1 equiv'!N23,\n'[6]SM3 - DECC Scenario 2 equiv'!N13+'[6]SM3 - DECC Scenario 2 equiv'!N23,\n'[6]SM4 - DNO Scenario 4 equiv'!N13+'[6]SM4 - DNO Scenario 4 equiv'!N23)","v":94.493416027684788},{"$f":"CHOOSE(view,\n'[5]M1a - Model inputs'!O13+'[5]M1a - Model inputs'!O23,\n'[5]M1b - Model inputs'!O13+'[5]M1b - Model inputs'!O23,\n'[5]SM1 - DECC Scenario 3 equiv'!O13+'[5]SM1 - DECC Scenario 3 equiv'!O23,\n'[5]SM2 - DECC Scenario 1 equiv'!O13+'[5]SM2 - DECC Scenario 1 equiv'!O23,\n'[5]SM3 - DECC Scenario 2 equiv'!O13+'[5]SM3 - DECC Scenario 2 equiv'!O23,\n'[5]SM4 - DNO Scenario 4 equiv'!O13+'[5]SM4 - DNO Scenario 4 equiv'!O23,\n'[6]M1a - Model inputs'!O13+'[6]M1a - Model inputs'!O23,\n'[6]M1b - Model inputs'!O13+'[6]M1b - Model inputs'!O23,\n'[6]SM1 - DECC Scenario 3 equiv'!O13+'[6]SM1 - DECC Scenario 3 equiv'!O23,\n'[6]SM2 - DECC Scenario 1 equiv'!O13+'[6]SM2 - DECC Scenario 1 equiv'!O23,\n'[6]SM3 - DECC Scenario 2 equiv'!O13+'[6]SM3 - DECC Scenario 2 equiv'!O23,\n'[6]SM4 - DNO Scenario 4 equiv'!O13+'[6]SM4 - DNO Scenario 4 equiv'!O23)","v":94.971740031845854},{"$f":"CHOOSE(view,\n'[5]M1a - Model inputs'!P13+'[5]M1a - Model inputs'!P23,\n'[5]M1b - Model inputs'!P13+'[5]M1b - Model inputs'!P23,\n'[5]SM1 - DECC Scenario 3 equiv'!P13+'[5]SM1 - DECC Scenario 3 equiv'!P23,\n'[5]SM2 - DECC Scenario 1 equiv'!P13+'[5]SM2 - DECC Scenario 1 equiv'!P23,\n'[5]SM3 - DECC Scenario 2 equiv'!P13+'[5]SM3 - DECC Scenario 2 equiv'!P23,\n'[5]SM4 - DNO Scenario 4 equiv'!P13+'[5]SM4 - DNO Scenario 4 equiv'!P23,\n'[6]M1a - Model inputs'!P13+'[6]M1a - Model inputs'!P23,\n'[6]M1b - Model inputs'!P13+'[6]M1b - Model inputs'!P23,\n'[6]SM1 - DECC Scenario 3 equiv'!P13+'[6]SM1 - DECC Scenario 3 equiv'!P23,\n'[6]SM2 - DECC Scenario 1 equiv'!P13+'[6]SM2 - DECC Scenario 1 equiv'!P23,\n'[6]SM3 - DECC Scenario 2 equiv'!P13+'[6]SM3 - DECC Scenario 2 equiv'!P23,\n'[6]SM4 - DNO Scenario 4 equiv'!P13+'[6]SM4 - DNO Scenario 4 equiv'!P23)","v":95.589686920429827},{"$f":"CHOOSE(view,\n'[5]M1a - Model inputs'!Q13+'[5]M1a - Model inputs'!Q23,\n'[5]M1b - Model inputs'!Q13+'[5]M1b - Model inputs'!Q23,\n'[5]SM1 - DECC Scenario 3 equiv'!Q13+'[5]SM1 - DECC Scenario 3 equiv'!Q23,\n'[5]SM2 - DECC Scenario 1 equiv'!Q13+'[5]SM2 - DECC Scenario 1 equiv'!Q23,\n'[5]SM3 - DECC Scenario 2 equiv'!Q13+'[5]SM3 - DECC Scenario 2 equiv'!Q23,\n'[5]SM4 - DNO Scenario 4 equiv'!Q13+'[5]SM4 - DNO Scenario 4 equiv'!Q23,\n'[6]M1a - Model inputs'!Q13+'[6]M1a - Model inputs'!Q23,\n'[6]M1b - Model inputs'!Q13+'[6]M1b - Model inputs'!Q23,\n'[6]SM1 - DECC Scenario 3 equiv'!Q13+'[6]SM1 - DECC Scenario 3 equiv'!Q23,\n'[6]SM2 - DECC Scenario 1 equiv'!Q13+'[6]SM2 - DECC Scenario 1 equiv'!Q23,\n'[6]SM3 - DECC Scenario 2 equiv'!Q13+'[6]SM3 - DECC Scenario 2 equiv'!Q23,\n'[6]SM4 - DNO Scenario 4 equiv'!Q13+'[6]SM4 - DNO Scenario 4 equiv'!Q23)","v":95.350499254733933},{"$f":"CHOOSE(view,\n'[5]M1a - Model inputs'!R13+'[5]M1a - Model inputs'!R23,\n'[5]M1b - Model inputs'!R13+'[5]M1b - Model inputs'!R23,\n'[5]SM1 - DECC Scenario 3 equiv'!R13+'[5]SM1 - DECC Scenario 3 equiv'!R23,\n'[5]SM2 - DECC Scenario 1 equiv'!R13+'[5]SM2 - DECC Scenario 1 equiv'!R23,\n'[5]SM3 - DECC Scenario 2 equiv'!R13+'[5]SM3 - DECC Scenario 2 equiv'!R23,\n'[5]SM4 - DNO Scenario 4 equiv'!R13+'[5]SM4 - DNO Scenario 4 equiv'!R23,\n'[6]M1a - Model inputs'!R13+'[6]M1a - Model inputs'!R23,\n'[6]M1b - Model inputs'!R13+'[6]M1b - Model inputs'!R23,\n'[6]SM1 - DECC Scenario 3 equiv'!R13+'[6]SM1 - DECC Scenario 3 equiv'!R23,\n'[6]SM2 - DECC Scenario 1 equiv'!R13+'[6]SM2 - DECC Scenario 1 equiv'!R23,\n'[6]SM3 - DECC Scenario 2 equiv'!R13+'[6]SM3 - DECC Scenario 2 equiv'!R23,\n'[6]SM4 - DNO Scenario 4 equiv'!R13+'[6]SM4 - DNO Scenario 4 equiv'!R23)","v":94.895653022991567},{"$f":"CHOOSE(view,\n'[5]M1a - Model inputs'!S13+'[5]M1a - Model inputs'!S23,\n'[5]M1b - Model inputs'!S13+'[5]M1b - Model inputs'!S23,\n'[5]SM1 - DECC Scenario 3 equiv'!S13+'[5]SM1 - DECC Scenario 3 equiv'!S23,\n'[5]SM2 - DECC Scenario 1 equiv'!S13+'[5]SM2 - DECC Scenario 1 equiv'!S23,\n'[5]SM3 - DECC Scenario 2 equiv'!S13+'[5]SM3 - DECC Scenario 2 equiv'!S23,\n'[5]SM4 - DNO Scenario 4 equiv'!S13+'[5]SM4 - DNO Scenario 4 equiv'!S23,\n'[6]M1a - Model inputs'!S13+'[6]M1a - Model inputs'!S23,\n'[6]M1b - Model inputs'!S13+'[6]M1b - Model inputs'!S23,\n'[6]SM1 - DECC Scenario 3 equiv'!S13+'[6]SM1 - DECC Scenario 3 equiv'!S23,\n'[6]SM2 - DECC Scenario 1 equiv'!S13+'[6]SM2 - DECC Scenario 1 equiv'!S23,\n'[6]SM3 - DECC Scenario 2 equiv'!S13+'[6]SM3 - DECC Scenario 2 equiv'!S23,\n'[6]SM4 - DNO Scenario 4 equiv'!S13+'[6]SM4 - DNO Scenario 4 equiv'!S23)","v":95.186643709988488}]
[]
[null,null,null,"Variant allowances"]
[]
[null,null,null,null,{"$f":"Input!E101","v":"Allowed uncertain costs (CNI)"},null,"£m 12/13 prices",null,null,null,null,null,null,null,null,null,null,null,null,null,null,null,null,null,null,null,null,null,null,null,null,null,null,null,null,{"$f":"AJ18","v":0},{"$f":"AK18","v":0},0,0,0,0,0,0]
[null,null,null,null,{"$f":"Input!E102","v":"Allocation to load related capex"},null,"%",null,null,null,null,null,null,null,null,null,null,null,null,null,null,null,null,null,null,null,null,null,null,null,null,null,null,null,null,{"$f":"CHOOSE(view,\n'[5]M1a - Model inputs'!L171,\n'[5]M1b - Model inputs'!L171,\n'[5]SM1 - DECC Scenario 3 equiv'!L171,\n'[5]SM2 - DECC Scenario 1 equiv'!L171,\n'[5]SM3 - DECC Scenario 2 equiv'!L171,\n'[5]SM4 - DNO Scenario 4 equiv'!L171,\n'[6]M1a - Model inputs'!L171,\n'[6]M1b - Model inputs'!L171,\n'[6]SM1 - DECC Scenario 3 equiv'!L171,\n'[6]SM2 - DECC Scenario 1 equiv'!L171,\n'[6]SM3 - DECC Scenario 2 equiv'!L171,\n'[6]SM4 - DNO Scenario 4 equiv'!L171)","v":0},{"$f":"CHOOSE(view,\n'[5]M1a - Model inputs'!M171,\n'[5]M1b - Model inputs'!M171,\n'[5]SM1 - DECC Scenario 3 equiv'!M171,\n'[5]SM2 - DECC Scenario 1 equiv'!M171,\n'[5]SM3 - DECC Scenario 2 equiv'!M171,\n'[5]SM4 - DNO Scenario 4 equiv'!M171,\n'[6]M1a - Model inputs'!M171,\n'[6]M1b - Model inputs'!M171,\n'[6]SM1 - DECC Scenario 3 equiv'!M171,\n'[6]SM2 - DECC Scenario 1 equiv'!M171,\n'[6]SM3 - DECC Scenario 2 equiv'!M171,\n'[6]SM4 - DNO Scenario 4 equiv'!M171)","v":0},{"$f":"CHOOSE(view,\n'[5]M1a - Model inputs'!N171,\n'[5]M1b - Model inputs'!N171,\n'[5]SM1 - DECC Scenario 3 equiv'!N171,\n'[5]SM2 - DECC Scenario 1 equiv'!N171,\n'[5]SM3 - DECC Scenario 2 equiv'!N171,\n'[5]SM4 - DNO Scenario 4 equiv'!N171,\n'[6]M1a - Model inputs'!N171,\n'[6]M1b - Model inputs'!N171,\n'[6]SM1 - DECC Scenario 3 equiv'!N171,\n'[6]SM2 - DECC Scenario 1 equiv'!N171,\n'[6]SM3 - DECC Scenario 2 equiv'!N171,\n'[6]SM4 - DNO Scenario 4 equiv'!N171)","v":0},{"$f":"CHOOSE(view,\n'[5]M1a - Model inputs'!O171,\n'[5]M1b - Model inputs'!O171,\n'[5]SM1 - DECC Scenario 3 equiv'!O171,\n'[5]SM2 - DECC Scenario 1 equiv'!O171,\n'[5]SM3 - DECC Scenario 2 equiv'!O171,\n'[5]SM4 - DNO Scenario 4 equiv'!O171,\n'[6]M1a - Model inputs'!O171,\n'[6]M1b - Model inputs'!O171,\n'[6]SM1 - DECC Scenario 3 equiv'!O171,\n'[6]SM2 - DECC Scenario 1 equiv'!O171,\n'[6]SM3 - DECC Scenario 2 equiv'!O171,\n'[6]SM4 - DNO Scenario 4 equiv'!O171)","v":0},{"$f":"CHOOSE(view,\n'[5]M1a - Model inputs'!P171,\n'[5]M1b - Model inputs'!P171,\n'[5]SM1 - DECC Scenario 3 equiv'!P171,\n'[5]SM2 - DECC Scenario 1 equiv'!P171,\n'[5]SM3 - DECC Scenario 2 equiv'!P171,\n'[5]SM4 - DNO Scenario 4 equiv'!P171,\n'[6]M1a - Model inputs'!P171,\n'[6]M1b - Model inputs'!P171,\n'[6]SM1 - DECC Scenario 3 equiv'!P171,\n'[6]SM2 - DECC Scenario 1 equiv'!P171,\n'[6]SM3 - DECC Scenario 2 equiv'!P171,\n'[6]SM4 - DNO Scenario 4 equiv'!P171)","v":0},{"$f":"CHOOSE(view,\n'[5]M1a - Model inputs'!Q171,\n'[5]M1b - Model inputs'!Q171,\n'[5]SM1 - DECC Scenario 3 equiv'!Q171,\n'[5]SM2 - DECC Scenario 1 equiv'!Q171,\n'[5]SM3 - DECC Scenario 2 equiv'!Q171,\n'[5]SM4 - DNO Scenario 4 equiv'!Q171,\n'[6]M1a - Model inputs'!Q171,\n'[6]M1b - Model inputs'!Q171,\n'[6]SM1 - DECC Scenario 3 equiv'!Q171,\n'[6]SM2 - DECC Scenario 1 equiv'!Q171,\n'[6]SM3 - DECC Scenario 2 equiv'!Q171,\n'[6]SM4 - DNO Scenario 4 equiv'!Q171)","v":0},{"$f":"CHOOSE(view,\n'[5]M1a - Model inputs'!R171,\n'[5]M1b - Model inputs'!R171,\n'[5]SM1 - DECC Scenario 3 equiv'!R171,\n'[5]SM2 - DECC Scenario 1 equiv'!R171,\n'[5]SM3 - DECC Scenario 2 equiv'!R171,\n'[5]SM4 - DNO Scenario 4 equiv'!R171,\n'[6]M1a - Model inputs'!R171,\n'[6]M1b - Model inputs'!R171,\n'[6]SM1 - DECC Scenario 3 equiv'!R171,\n'[6]SM2 - DECC Scenario 1 equiv'!R171,\n'[6]SM3 - DECC Scenario 2 equiv'!R171,\n'[6]SM4 - DNO Scenario 4 equiv'!R171)","v":0},{"$f":"CHOOSE(view,\n'[5]M1a - Model inputs'!S171,\n'[5]M1b - Model inputs'!S171,\n'[5]SM1 - DECC Scenario 3 equiv'!S171,\n'[5]SM2 - DECC Scenario 1 equiv'!S171,\n'[5]SM3 - DECC Scenario 2 equiv'!S171,\n'[5]SM4 - DNO Scenario 4 equiv'!S171,\n'[6]M1a - Model inputs'!S171,\n'[6]M1b - Model inputs'!S171,\n'[6]SM1 - DECC Scenario 3 equiv'!S171,\n'[6]SM2 - DECC Scenario 1 equiv'!S171,\n'[6]SM3 - DECC Scenario 2 equiv'!S171,\n'[6]SM4 - DNO Scenario 4 equiv'!S171)","v":0}]
[null,null,null,null,{"$f":"Input!E103","v":"Allocation to non-load related capex - asset replacement"},null,"%",null,null,null,null,null,null,null,null,null,null,null,null,null,null,null,null,null,null,null,null,null,null,null,null,null,null,null,null,{"$f":"CHOOSE(view,\n'[5]M1a - Model inputs'!L172,\n'[5]M1b - Model inputs'!L172,\n'[5]SM1 - DECC Scenario 3 equiv'!L172,\n'[5]SM2 - DECC Scenario 1 equiv'!L172,\n'[5]SM3 - DECC Scenario 2 equiv'!L172,\n'[5]SM4 - DNO Scenario 4 equiv'!L172,\n'[6]M1a - Model inputs'!L172,\n'[6]M1b - Model inputs'!L172,\n'[6]SM1 - DECC Scenario 3 equiv'!L172,\n'[6]SM2 - DECC Scenario 1 equiv'!L172,\n'[6]SM3 - DECC Scenario 2 equiv'!L172,\n'[6]SM4 - DNO Scenario 4 equiv'!L172)","v":0},{"$f":"CHOOSE(view,\n'[5]M1a - Model inputs'!M172,\n'[5]M1b - Model inputs'!M172,\n'[5]SM1 - DECC Scenario 3 equiv'!M172,\n'[5]SM2 - DECC Scenario 1 equiv'!M172,\n'[5]SM3 - DECC Scenario 2 equiv'!M172,\n'[5]SM4 - DNO Scenario 4 equiv'!M172,\n'[6]M1a - Model inputs'!M172,\n'[6]M1b - Model inputs'!M172,\n'[6]SM1 - DECC Scenario 3 equiv'!M172,\n'[6]SM2 - DECC Scenario 1 equiv'!M172,\n'[6]SM3 - DECC Scenario 2 equiv'!M172,\n'[6]SM4 - DNO Scenario 4 equiv'!M172)","v":0},{"$f":"CHOOSE(view,\n'[5]M1a - Model inputs'!N172,\n'[5]M1b - Model inputs'!N172,\n'[5]SM1 - DECC Scenario 3 equiv'!N172,\n'[5]SM2 - DECC Scenario 1 equiv'!N172,\n'[5]SM3 - DECC Scenario 2 equiv'!N172,\n'[5]SM4 - DNO Scenario 4 equiv'!N172,\n'[6]M1a - Model inputs'!N172,\n'[6]M1b - Model inputs'!N172,\n'[6]SM1 - DECC Scenario 3 equiv'!N172,\n'[6]SM2 - DECC Scenario 1 equiv'!N172,\n'[6]SM3 - DECC Scenario 2 equiv'!N172,\n'[6]SM4 - DNO Scenario 4 equiv'!N172)","v":0},{"$f":"CHOOSE(view,\n'[5]M1a - Model inputs'!O172,\n'[5]M1b - Model inputs'!O172,\n'[5]SM1 - DECC Scenario 3 equiv'!O172,\n'[5]SM2 - DECC Scenario 1 equiv'!O172,\n'[5]SM3 - DECC Scenario 2 equiv'!O172,\n'[5]SM4 - DNO Scenario 4 equiv'!O172,\n'[6]M1a - Model inputs'!O172,\n'[6]M1b - Model inputs'!O172,\n'[6]SM1 - DECC Scenario 3 equiv'!O172,\n'[6]SM2 - DECC Scenario 1 equiv'!O172,\n'[6]SM3 - DECC Scenario 2 equiv'!O172,\n'[6]SM4 - DNO Scenario 4 equiv'!O172)","v":0},{"$f":"CHOOSE(view,\n'[5]M1a - Model inputs'!P172,\n'[5]M1b - Model inputs'!P172,\n'[5]SM1 - DECC Scenario 3 equiv'!P172,\n'[5]SM2 - DECC Scenario 1 equiv'!P172,\n'[5]SM3 - DECC Scenario 2 equiv'!P172,\n'[5]SM4 - DNO Scenario 4 equiv'!P172,\n'[6]M1a - Model inputs'!P172,\n'[6]M1b - Model inputs'!P172,\n'[6]SM1 - DECC Scenario 3 equiv'!P172,\n'[6]SM2 - DECC Scenario 1 equiv'!P172,\n'[6]SM3 - DECC Scenario 2 equiv'!P172,\n'[6]SM4 - DNO Scenario 4 equiv'!P172)","v":0},{"$f":"CHOOSE(view,\n'[5]M1a - Model inputs'!Q172,\n'[5]M1b - Model inputs'!Q172,\n'[5]SM1 - DECC Scenario 3 equiv'!Q172,\n'[5]SM2 - DECC Scenario 1 equiv'!Q172,\n'[5]SM3 - DECC Scenario 2 equiv'!Q172,\n'[5]SM4 - DNO Scenario 4 equiv'!Q172,\n'[6]M1a - Model inputs'!Q172,\n'[6]M1b - Model inputs'!Q172,\n'[6]SM1 - DECC Scenario 3 equiv'!Q172,\n'[6]SM2 - DECC Scenario 1 equiv'!Q172,\n'[6]SM3 - DECC Scenario 2 equiv'!Q172,\n'[6]SM4 - DNO Scenario 4 equiv'!Q172)","v":0},{"$f":"CHOOSE(view,\n'[5]M1a - Model inputs'!R172,\n'[5]M1b - Model inputs'!R172,\n'[5]SM1 - DECC Scenario 3 equiv'!R172,\n'[5]SM2 - DECC Scenario 1 equiv'!R172,\n'[5]SM3 - DECC Scenario 2 equiv'!R172,\n'[5]SM4 - DNO Scenario 4 equiv'!R172,\n'[6]M1a - Model inputs'!R172,\n'[6]M1b - Model inputs'!R172,\n'[6]SM1 - DECC Scenario 3 equiv'!R172,\n'[6]SM2 - DECC Scenario 1 equiv'!R172,\n'[6]SM3 - DECC Scenario 2 equiv'!R172,\n'[6]SM4 - DNO Scenario 4 equiv'!R172)","v":0},{"$f":"CHOOSE(view,\n'[5]M1a - Model inputs'!S172,\n'[5]M1b - Model inputs'!S172,\n'[5]SM1 - DECC Scenario 3 equiv'!S172,\n'[5]SM2 - DECC Scenario 1 equiv'!S172,\n'[5]SM3 - DECC Scenario 2 equiv'!S172,\n'[5]SM4 - DNO Scenario 4 equiv'!S172,\n'[6]M1a - Model inputs'!S172,\n'[6]M1b - Model inputs'!S172,\n'[6]SM1 - DECC Scenario 3 equiv'!S172,\n'[6]SM2 - DECC Scenario 1 equiv'!S172,\n'[6]SM3 - DECC Scenario 2 equiv'!S172,\n'[6]SM4 - DNO Scenario 4 equiv'!S172)","v":0}]
[null,null,null,null,{"$f":"Input!E104","v":"Allocation to non-load related capex - other"},null,"%",null,null,null,null,null,null,null,null,null,null,null,null,null,null,null,null,null,null,null,null,null,null,null,null,null,null,null,null,{"$f":"CHOOSE(view,\n'[5]M1a - Model inputs'!L173,\n'[5]M1b - Model inputs'!L173,\n'[5]SM1 - DECC Scenario 3 equiv'!L173,\n'[5]SM2 - DECC Scenario 1 equiv'!L173,\n'[5]SM3 - DECC Scenario 2 equiv'!L173,\n'[5]SM4 - DNO Scenario 4 equiv'!L173,\n'[6]M1a - Model inputs'!L173,\n'[6]M1b - Model inputs'!L173,\n'[6]SM1 - DECC Scenario 3 equiv'!L173,\n'[6]SM2 - DECC Scenario 1 equiv'!L173,\n'[6]SM3 - DECC Scenario 2 equiv'!L173,\n'[6]SM4 - DNO Scenario 4 equiv'!L173)","v":1},{"$f":"CHOOSE(view,\n'[5]M1a - Model inputs'!M173,\n'[5]M1b - Model inputs'!M173,\n'[5]SM1 - DECC Scenario 3 equiv'!M173,\n'[5]SM2 - DECC Scenario 1 equiv'!M173,\n'[5]SM3 - DECC Scenario 2 equiv'!M173,\n'[5]SM4 - DNO Scenario 4 equiv'!M173,\n'[6]M1a - Model inputs'!M173,\n'[6]M1b - Model inputs'!M173,\n'[6]SM1 - DECC Scenario 3 equiv'!M173,\n'[6]SM2 - DECC Scenario 1 equiv'!M173,\n'[6]SM3 - DECC Scenario 2 equiv'!M173,\n'[6]SM4 - DNO Scenario 4 equiv'!M173)","v":1},{"$f":"CHOOSE(view,\n'[5]M1a - Model inputs'!N173,\n'[5]M1b - Model inputs'!N173,\n'[5]SM1 - DECC Scenario 3 equiv'!N173,\n'[5]SM2 - DECC Scenario 1 equiv'!N173,\n'[5]SM3 - DECC Scenario 2 equiv'!N173,\n'[5]SM4 - DNO Scenario 4 equiv'!N173,\n'[6]M1a - Model inputs'!N173,\n'[6]M1b - Model inputs'!N173,\n'[6]SM1 - DECC Scenario 3 equiv'!N173,\n'[6]SM2 - DECC Scenario 1 equiv'!N173,\n'[6]SM3 - DECC Scenario 2 equiv'!N173,\n'[6]SM4 - DNO Scenario 4 equiv'!N173)","v":1},{"$f":"CHOOSE(view,\n'[5]M1a - Model inputs'!O173,\n'[5]M1b - Model inputs'!O173,\n'[5]SM1 - DECC Scenario 3 equiv'!O173,\n'[5]SM2 - DECC Scenario 1 equiv'!O173,\n'[5]SM3 - DECC Scenario 2 equiv'!O173,\n'[5]SM4 - DNO Scenario 4 equiv'!O173,\n'[6]M1a - Model inputs'!O173,\n'[6]M1b - Model inputs'!O173,\n'[6]SM1 - DECC Scenario 3 equiv'!O173,\n'[6]SM2 - DECC Scenario 1 equiv'!O173,\n'[6]SM3 - DECC Scenario 2 equiv'!O173,\n'[6]SM4 - DNO Scenario 4 equiv'!O173)","v":1},{"$f":"CHOOSE(view,\n'[5]M1a - Model inputs'!P173,\n'[5]M1b - Model inputs'!P173,\n'[5]SM1 - DECC Scenario 3 equiv'!P173,\n'[5]SM2 - DECC Scenario 1 equiv'!P173,\n'[5]SM3 - DECC Scenario 2 equiv'!P173,\n'[5]SM4 - DNO Scenario 4 equiv'!P173,\n'[6]M1a - Model inputs'!P173,\n'[6]M1b - Model inputs'!P173,\n'[6]SM1 - DECC Scenario 3 equiv'!P173,\n'[6]SM2 - DECC Scenario 1 equiv'!P173,\n'[6]SM3 - DECC Scenario 2 equiv'!P173,\n'[6]SM4 - DNO Scenario 4 equiv'!P173)","v":1},{"$f":"CHOOSE(view,\n'[5]M1a - Model inputs'!Q173,\n'[5]M1b - Model inputs'!Q173,\n'[5]SM1 - DECC Scenario 3 equiv'!Q173,\n'[5]SM2 - DECC Scenario 1 equiv'!Q173,\n'[5]SM3 - DECC Scenario 2 equiv'!Q173,\n'[5]SM4 - DNO Scenario 4 equiv'!Q173,\n'[6]M1a - Model inputs'!Q173,\n'[6]M1b - Model inputs'!Q173,\n'[6]SM1 - DECC Scenario 3 equiv'!Q173,\n'[6]SM2 - DECC Scenario 1 equiv'!Q173,\n'[6]SM3 - DECC Scenario 2 equiv'!Q173,\n'[6]SM4 - DNO Scenario 4 equiv'!Q173)","v":1},{"$f":"CHOOSE(view,\n'[5]M1a - Model inputs'!R173,\n'[5]M1b - Model inputs'!R173,\n'[5]SM1 - DECC Scenario 3 equiv'!R173,\n'[5]SM2 - DECC Scenario 1 equiv'!R173,\n'[5]SM3 - DECC Scenario 2 equiv'!R173,\n'[5]SM4 - DNO Scenario 4 equiv'!R173,\n'[6]M1a - Model inputs'!R173,\n'[6]M1b - Model inputs'!R173,\n'[6]SM1 - DECC Scenario 3 equiv'!R173,\n'[6]SM2 - DECC Scenario 1 equiv'!R173,\n'[6]SM3 - DECC Scenario 2 equiv'!R173,\n'[6]SM4 - DNO Scenario 4 equiv'!R173)","v":1},{"$f":"CHOOSE(view,\n'[5]M1a - Model inputs'!S173,\n'[5]M1b - Model inputs'!S173,\n'[5]SM1 - DECC Scenario 3 equiv'!S173,\n'[5]SM2 - DECC Scenario 1 equiv'!S173,\n'[5]SM3 - DECC Scenario 2 equiv'!S173,\n'[5]SM4 - DNO Scenario 4 equiv'!S173,\n'[6]M1a - Model inputs'!S173,\n'[6]M1b - Model inputs'!S173,\n'[6]SM1 - DECC Scenario 3 equiv'!S173,\n'[6]SM2 - DECC Scenario 1 equiv'!S173,\n'[6]SM3 - DECC Scenario 2 equiv'!S173,\n'[6]SM4 - DNO Scenario 4 equiv'!S173)","v":1}]
[null,null,null,null,{"$f":"Input!E105","v":"Allocation to faults"},null,"%",null,null,null,null,null,null,null,null,null,null,null,null,null,null,null,null,null,null,null,null,null,null,null,null,null,null,null,null,{"$f":"CHOOSE(view,\n'[5]M1a - Model inputs'!L174,\n'[5]M1b - Model inputs'!L174,\n'[5]SM1 - DECC Scenario 3 equiv'!L174,\n'[5]SM2 - DECC Scenario 1 equiv'!L174,\n'[5]SM3 - DECC Scenario 2 equiv'!L174,\n'[5]SM4 - DNO Scenario 4 equiv'!L174,\n'[6]M1a - Model inputs'!L174,\n'[6]M1b - Model inputs'!L174,\n'[6]SM1 - DECC Scenario 3 equiv'!L174,\n'[6]SM2 - DECC Scenario 1 equiv'!L174,\n'[6]SM3 - DECC Scenario 2 equiv'!L174,\n'[6]SM4 - DNO Scenario 4 equiv'!L174)","v":0},{"$f":"CHOOSE(view,\n'[5]M1a - Model inputs'!M174,\n'[5]M1b - Model inputs'!M174,\n'[5]SM1 - DECC Scenario 3 equiv'!M174,\n'[5]SM2 - DECC Scenario 1 equiv'!M174,\n'[5]SM3 - DECC Scenario 2 equiv'!M174,\n'[5]SM4 - DNO Scenario 4 equiv'!M174,\n'[6]M1a - Model inputs'!M174,\n'[6]M1b - Model inputs'!M174,\n'[6]SM1 - DECC Scenario 3 equiv'!M174,\n'[6]SM2 - DECC Scenario 1 equiv'!M174,\n'[6]SM3 - DECC Scenario 2 equiv'!M174,\n'[6]SM4 - DNO Scenario 4 equiv'!M174)","v":0},{"$f":"CHOOSE(view,\n'[5]M1a - Model inputs'!N174,\n'[5]M1b - Model inputs'!N174,\n'[5]SM1 - DECC Scenario 3 equiv'!N174,\n'[5]SM2 - DECC Scenario 1 equiv'!N174,\n'[5]SM3 - DECC Scenario 2 equiv'!N174,\n'[5]SM4 - DNO Scenario 4 equiv'!N174,\n'[6]M1a - Model inputs'!N174,\n'[6]M1b - Model inputs'!N174,\n'[6]SM1 - DECC Scenario 3 equiv'!N174,\n'[6]SM2 - DECC Scenario 1 equiv'!N174,\n'[6]SM3 - DECC Scenario 2 equiv'!N174,\n'[6]SM4 - DNO Scenario 4 equiv'!N174)","v":0},{"$f":"CHOOSE(view,\n'[5]M1a - Model inputs'!O174,\n'[5]M1b - Model inputs'!O174,\n'[5]SM1 - DECC Scenario 3 equiv'!O174,\n'[5]SM2 - DECC Scenario 1 equiv'!O174,\n'[5]SM3 - DECC Scenario 2 equiv'!O174,\n'[5]SM4 - DNO Scenario 4 equiv'!O174,\n'[6]M1a - Model inputs'!O174,\n'[6]M1b - Model inputs'!O174,\n'[6]SM1 - DECC Scenario 3 equiv'!O174,\n'[6]SM2 - DECC Scenario 1 equiv'!O174,\n'[6]SM3 - DECC Scenario 2 equiv'!O174,\n'[6]SM4 - DNO Scenario 4 equiv'!O174)","v":0},{"$f":"CHOOSE(view,\n'[5]M1a - Model inputs'!P174,\n'[5]M1b - Model inputs'!P174,\n'[5]SM1 - DECC Scenario 3 equiv'!P174,\n'[5]SM2 - DECC Scenario 1 equiv'!P174,\n'[5]SM3 - DECC Scenario 2 equiv'!P174,\n'[5]SM4 - DNO Scenario 4 equiv'!P174,\n'[6]M1a - Model inputs'!P174,\n'[6]M1b - Model inputs'!P174,\n'[6]SM1 - DECC Scenario 3 equiv'!P174,\n'[6]SM2 - DECC Scenario 1 equiv'!P174,\n'[6]SM3 - DECC Scenario 2 equiv'!P174,\n'[6]SM4 - DNO Scenario 4 equiv'!P174)","v":0},{"$f":"CHOOSE(view,\n'[5]M1a - Model inputs'!Q174,\n'[5]M1b - Model inputs'!Q174,\n'[5]SM1 - DECC Scenario 3 equiv'!Q174,\n'[5]SM2 - DECC Scenario 1 equiv'!Q174,\n'[5]SM3 - DECC Scenario 2 equiv'!Q174,\n'[5]SM4 - DNO Scenario 4 equiv'!Q174,\n'[6]M1a - Model inputs'!Q174,\n'[6]M1b - Model inputs'!Q174,\n'[6]SM1 - DECC Scenario 3 equiv'!Q174,\n'[6]SM2 - DECC Scenario 1 equiv'!Q174,\n'[6]SM3 - DECC Scenario 2 equiv'!Q174,\n'[6]SM4 - DNO Scenario 4 equiv'!Q174)","v":0},{"$f":"CHOOSE(view,\n'[5]M1a - Model inputs'!R174,\n'[5]M1b - Model inputs'!R174,\n'[5]SM1 - DECC Scenario 3 equiv'!R174,\n'[5]SM2 - DECC Scenario 1 equiv'!R174,\n'[5]SM3 - DECC Scenario 2 equiv'!R174,\n'[5]SM4 - DNO Scenario 4 equiv'!R174,\n'[6]M1a - Model inputs'!R174,\n'[6]M1b - Model inputs'!R174,\n'[6]SM1 - DECC Scenario 3 equiv'!R174,\n'[6]SM2 - DECC Scenario 1 equiv'!R174,\n'[6]SM3 - DECC Scenario 2 equiv'!R174,\n'[6]SM4 - DNO Scenario 4 equiv'!R174)","v":0},{"$f":"CHOOSE(view,\n'[5]M1a - Model inputs'!S174,\n'[5]M1b - Model inputs'!S174,\n'[5]SM1 - DECC Scenario 3 equiv'!S174,\n'[5]SM2 - DECC Scenario 1 equiv'!S174,\n'[5]SM3 - DECC Scenario 2 equiv'!S174,\n'[5]SM4 - DNO Scenario 4 equiv'!S174,\n'[6]M1a - Model inputs'!S174,\n'[6]M1b - Model inputs'!S174,\n'[6]SM1 - DECC Scenario 3 equiv'!S174,\n'[6]SM2 - DECC Scenario 1 equiv'!S174,\n'[6]SM3 - DECC Scenario 2 equiv'!S174,\n'[6]SM4 - DNO Scenario 4 equiv'!S174)","v":0}]
[null,null,null,null,{"$f":"Input!E106","v":"Allocation to tree cutting"},null,"%",null,null,null,null,null,null,null,null,null,null,null,null,null,null,null,null,null,null,null,null,null,null,null,null,null,null,null,null,{"$f":"CHOOSE(view,\n'[5]M1a - Model inputs'!L175,\n'[5]M1b - Model inputs'!L175,\n'[5]SM1 - DECC Scenario 3 equiv'!L175,\n'[5]SM2 - DECC Scenario 1 equiv'!L175,\n'[5]SM3 - DECC Scenario 2 equiv'!L175,\n'[5]SM4 - DNO Scenario 4 equiv'!L175,\n'[6]M1a - Model inputs'!L175,\n'[6]M1b - Model inputs'!L175,\n'[6]SM1 - DECC Scenario 3 equiv'!L175,\n'[6]SM2 - DECC Scenario 1 equiv'!L175,\n'[6]SM3 - DECC Scenario 2 equiv'!L175,\n'[6]SM4 - DNO Scenario 4 equiv'!L175)","v":0},{"$f":"CHOOSE(view,\n'[5]M1a - Model inputs'!M175,\n'[5]M1b - Model inputs'!M175,\n'[5]SM1 - DECC Scenario 3 equiv'!M175,\n'[5]SM2 - DECC Scenario 1 equiv'!M175,\n'[5]SM3 - DECC Scenario 2 equiv'!M175,\n'[5]SM4 - DNO Scenario 4 equiv'!M175,\n'[6]M1a - Model inputs'!M175,\n'[6]M1b - Model inputs'!M175,\n'[6]SM1 - DECC Scenario 3 equiv'!M175,\n'[6]SM2 - DECC Scenario 1 equiv'!M175,\n'[6]SM3 - DECC Scenario 2 equiv'!M175,\n'[6]SM4 - DNO Scenario 4 equiv'!M175)","v":0},{"$f":"CHOOSE(view,\n'[5]M1a - Model inputs'!N175,\n'[5]M1b - Model inputs'!N175,\n'[5]SM1 - DECC Scenario 3 equiv'!N175,\n'[5]SM2 - DECC Scenario 1 equiv'!N175,\n'[5]SM3 - DECC Scenario 2 equiv'!N175,\n'[5]SM4 - DNO Scenario 4 equiv'!N175,\n'[6]M1a - Model inputs'!N175,\n'[6]M1b - Model inputs'!N175,\n'[6]SM1 - DECC Scenario 3 equiv'!N175,\n'[6]SM2 - DECC Scenario 1 equiv'!N175,\n'[6]SM3 - DECC Scenario 2 equiv'!N175,\n'[6]SM4 - DNO Scenario 4 equiv'!N175)","v":0},{"$f":"CHOOSE(view,\n'[5]M1a - Model inputs'!O175,\n'[5]M1b - Model inputs'!O175,\n'[5]SM1 - DECC Scenario 3 equiv'!O175,\n'[5]SM2 - DECC Scenario 1 equiv'!O175,\n'[5]SM3 - DECC Scenario 2 equiv'!O175,\n'[5]SM4 - DNO Scenario 4 equiv'!O175,\n'[6]M1a - Model inputs'!O175,\n'[6]M1b - Model inputs'!O175,\n'[6]SM1 - DECC Scenario 3 equiv'!O175,\n'[6]SM2 - DECC Scenario 1 equiv'!O175,\n'[6]SM3 - DECC Scenario 2 equiv'!O175,\n'[6]SM4 - DNO Scenario 4 equiv'!O175)","v":0},{"$f":"CHOOSE(view,\n'[5]M1a - Model inputs'!P175,\n'[5]M1b - Model inputs'!P175,\n'[5]SM1 - DECC Scenario 3 equiv'!P175,\n'[5]SM2 - DECC Scenario 1 equiv'!P175,\n'[5]SM3 - DECC Scenario 2 equiv'!P175,\n'[5]SM4 - DNO Scenario 4 equiv'!P175,\n'[6]M1a - Model inputs'!P175,\n'[6]M1b - Model inputs'!P175,\n'[6]SM1 - DECC Scenario 3 equiv'!P175,\n'[6]SM2 - DECC Scenario 1 equiv'!P175,\n'[6]SM3 - DECC Scenario 2 equiv'!P175,\n'[6]SM4 - DNO Scenario 4 equiv'!P175)","v":0},{"$f":"CHOOSE(view,\n'[5]M1a - Model inputs'!Q175,\n'[5]M1b - Model inputs'!Q175,\n'[5]SM1 - DECC Scenario 3 equiv'!Q175,\n'[5]SM2 - DECC Scenario 1 equiv'!Q175,\n'[5]SM3 - DECC Scenario 2 equiv'!Q175,\n'[5]SM4 - DNO Scenario 4 equiv'!Q175,\n'[6]M1a - Model inputs'!Q175,\n'[6]M1b - Model inputs'!Q175,\n'[6]SM1 - DECC Scenario 3 equiv'!Q175,\n'[6]SM2 - DECC Scenario 1 equiv'!Q175,\n'[6]SM3 - DECC Scenario 2 equiv'!Q175,\n'[6]SM4 - DNO Scenario 4 equiv'!Q175)","v":0},{"$f":"CHOOSE(view,\n'[5]M1a - Model inputs'!R175,\n'[5]M1b - Model inputs'!R175,\n'[5]SM1 - DECC Scenario 3 equiv'!R175,\n'[5]SM2 - DECC Scenario 1 equiv'!R175,\n'[5]SM3 - DECC Scenario 2 equiv'!R175,\n'[5]SM4 - DNO Scenario 4 equiv'!R175,\n'[6]M1a - Model inputs'!R175,\n'[6]M1b - Model inputs'!R175,\n'[6]SM1 - DECC Scenario 3 equiv'!R175,\n'[6]SM2 - DECC Scenario 1 equiv'!R175,\n'[6]SM3 - DECC Scenario 2 equiv'!R175,\n'[6]SM4 - DNO Scenario 4 equiv'!R175)","v":0},{"$f":"CHOOSE(view,\n'[5]M1a - Model inputs'!S175,\n'[5]M1b - Model inputs'!S175,\n'[5]SM1 - DECC Scenario 3 equiv'!S175,\n'[5]SM2 - DECC Scenario 1 equiv'!S175,\n'[5]SM3 - DECC Scenario 2 equiv'!S175,\n'[5]SM4 - DNO Scenario 4 equiv'!S175,\n'[6]M1a - Model inputs'!S175,\n'[6]M1b - Model inputs'!S175,\n'[6]SM1 - DECC Scenario 3 equiv'!S175,\n'[6]SM2 - DECC Scenario 1 equiv'!S175,\n'[6]SM3 - DECC Scenario 2 equiv'!S175,\n'[6]SM4 - DNO Scenario 4 equiv'!S175)","v":0}]
[null,null,null,null,{"$f":"Input!E107","v":"Allocation to controllable opex"},null,"%",null,null,null,null,null,null,null,null,null,null,null,null,null,null,null,null,null,null,null,null,null,null,null,null,null,null,null,null,{"$f":"CHOOSE(view,\n'[5]M1a - Model inputs'!L176,\n'[5]M1b - Model inputs'!L176,\n'[5]SM1 - DECC Scenario 3 equiv'!L176,\n'[5]SM2 - DECC Scenario 1 equiv'!L176,\n'[5]SM3 - DECC Scenario 2 equiv'!L176,\n'[5]SM4 - DNO Scenario 4 equiv'!L176,\n'[6]M1a - Model inputs'!L176,\n'[6]M1b - Model inputs'!L176,\n'[6]SM1 - DECC Scenario 3 equiv'!L176,\n'[6]SM2 - DECC Scenario 1 equiv'!L176,\n'[6]SM3 - DECC Scenario 2 equiv'!L176,\n'[6]SM4 - DNO Scenario 4 equiv'!L176)","v":0},{"$f":"CHOOSE(view,\n'[5]M1a - Model inputs'!M176,\n'[5]M1b - Model inputs'!M176,\n'[5]SM1 - DECC Scenario 3 equiv'!M176,\n'[5]SM2 - DECC Scenario 1 equiv'!M176,\n'[5]SM3 - DECC Scenario 2 equiv'!M176,\n'[5]SM4 - DNO Scenario 4 equiv'!M176,\n'[6]M1a - Model inputs'!M176,\n'[6]M1b - Model inputs'!M176,\n'[6]SM1 - DECC Scenario 3 equiv'!M176,\n'[6]SM2 - DECC Scenario 1 equiv'!M176,\n'[6]SM3 - DECC Scenario 2 equiv'!M176,\n'[6]SM4 - DNO Scenario 4 equiv'!M176)","v":0},{"$f":"CHOOSE(view,\n'[5]M1a - Model inputs'!N176,\n'[5]M1b - Model inputs'!N176,\n'[5]SM1 - DECC Scenario 3 equiv'!N176,\n'[5]SM2 - DECC Scenario 1 equiv'!N176,\n'[5]SM3 - DECC Scenario 2 equiv'!N176,\n'[5]SM4 - DNO Scenario 4 equiv'!N176,\n'[6]M1a - Model inputs'!N176,\n'[6]M1b - Model inputs'!N176,\n'[6]SM1 - DECC Scenario 3 equiv'!N176,\n'[6]SM2 - DECC Scenario 1 equiv'!N176,\n'[6]SM3 - DECC Scenario 2 equiv'!N176,\n'[6]SM4 - DNO Scenario 4 equiv'!N176)","v":0},{"$f":"CHOOSE(view,\n'[5]M1a - Model inputs'!O176,\n'[5]M1b - Model inputs'!O176,\n'[5]SM1 - DECC Scenario 3 equiv'!O176,\n'[5]SM2 - DECC Scenario 1 equiv'!O176,\n'[5]SM3 - DECC Scenario 2 equiv'!O176,\n'[5]SM4 - DNO Scenario 4 equiv'!O176,\n'[6]M1a - Model inputs'!O176,\n'[6]M1b - Model inputs'!O176,\n'[6]SM1 - DECC Scenario 3 equiv'!O176,\n'[6]SM2 - DECC Scenario 1 equiv'!O176,\n'[6]SM3 - DECC Scenario 2 equiv'!O176,\n'[6]SM4 - DNO Scenario 4 equiv'!O176)","v":0},{"$f":"CHOOSE(view,\n'[5]M1a - Model inputs'!P176,\n'[5]M1b - Model inputs'!P176,\n'[5]SM1 - DECC Scenario 3 equiv'!P176,\n'[5]SM2 - DECC Scenario 1 equiv'!P176,\n'[5]SM3 - DECC Scenario 2 equiv'!P176,\n'[5]SM4 - DNO Scenario 4 equiv'!P176,\n'[6]M1a - Model inputs'!P176,\n'[6]M1b - Model inputs'!P176,\n'[6]SM1 - DECC Scenario 3 equiv'!P176,\n'[6]SM2 - DECC Scenario 1 equiv'!P176,\n'[6]SM3 - DECC Scenario 2 equiv'!P176,\n'[6]SM4 - DNO Scenario 4 equiv'!P176)","v":0},{"$f":"CHOOSE(view,\n'[5]M1a - Model inputs'!Q176,\n'[5]M1b - Model inputs'!Q176,\n'[5]SM1 - DECC Scenario 3 equiv'!Q176,\n'[5]SM2 - DECC Scenario 1 equiv'!Q176,\n'[5]SM3 - DECC Scenario 2 equiv'!Q176,\n'[5]SM4 - DNO Scenario 4 equiv'!Q176,\n'[6]M1a - Model inputs'!Q176,\n'[6]M1b - Model inputs'!Q176,\n'[6]SM1 - DECC Scenario 3 equiv'!Q176,\n'[6]SM2 - DECC Scenario 1 equiv'!Q176,\n'[6]SM3 - DECC Scenario 2 equiv'!Q176,\n'[6]SM4 - DNO Scenario 4 equiv'!Q176)","v":0},{"$f":"CHOOSE(view,\n'[5]M1a - Model inputs'!R176,\n'[5]M1b - Model inputs'!R176,\n'[5]SM1 - DECC Scenario 3 equiv'!R176,\n'[5]SM2 - DECC Scenario 1 equiv'!R176,\n'[5]SM3 - DECC Scenario 2 equiv'!R176,\n'[5]SM4 - DNO Scenario 4 equiv'!R176,\n'[6]M1a - Model inputs'!R176,\n'[6]M1b - Model inputs'!R176,\n'[6]SM1 - DECC Scenario 3 equiv'!R176,\n'[6]SM2 - DECC Scenario 1 equiv'!R176,\n'[6]SM3 - DECC Scenario 2 equiv'!R176,\n'[6]SM4 - DNO Scenario 4 equiv'!R176)","v":0},{"$f":"CHOOSE(view,\n'[5]M1a - Model inputs'!S176,\n'[5]M1b - Model inputs'!S176,\n'[5]SM1 - DECC Scenario 3 equiv'!S176,\n'[5]SM2 - DECC Scenario 1 equiv'!S176,\n'[5]SM3 - DECC Scenario 2 equiv'!S176,\n'[5]SM4 - DNO Scenario 4 equiv'!S176,\n'[6]M1a - Model inputs'!S176,\n'[6]M1b - Model inputs'!S176,\n'[6]SM1 - DECC Scenario 3 equiv'!S176,\n'[6]SM2 - DECC Scenario 1 equiv'!S176,\n'[6]SM3 - DECC Scenario 2 equiv'!S176,\n'[6]SM4 - DNO Scenario 4 equiv'!S176)","v":0}]
[]
[null,null,null,null,{"$f":"Input!E109","v":"Allowed uncertain costs (High Value Projects)"},null,"£m 12/13 prices",null,null,null,null,null,null,null,null,null,null,null,null,null,null,null,null,null,null,null,null,null,null,null,null,null,null,null,null,{"$f":"AJ19","v":0},0,0,0,0,0,0,0]
[null,null,null,null,{"$f":"Input!E110","v":"Allocation to load related capex"},null,"%",null,null,null,null,null,null,null,null,null,null,null,null,null,null,null,null,null,null,null,null,null,null,null,null,null,null,null,null,{"$f":"CHOOSE(view,\n'[5]M1a - Model inputs'!L179,\n'[5]M1b - Model inputs'!L179,\n'[5]SM1 - DECC Scenario 3 equiv'!L179,\n'[5]SM2 - DECC Scenario 1 equiv'!L179,\n'[5]SM3 - DECC Scenario 2 equiv'!L179,\n'[5]SM4 - DNO Scenario 4 equiv'!L179,\n'[6]M1a - Model inputs'!L179,\n'[6]M1b - Model inputs'!L179,\n'[6]SM1 - DECC Scenario 3 equiv'!L179,\n'[6]SM2 - DECC Scenario 1 equiv'!L179,\n'[6]SM3 - DECC Scenario 2 equiv'!L179,\n'[6]SM4 - DNO Scenario 4 equiv'!L179)","v":0},{"$f":"CHOOSE(view,\n'[5]M1a - Model inputs'!M179,\n'[5]M1b - Model inputs'!M179,\n'[5]SM1 - DECC Scenario 3 equiv'!M179,\n'[5]SM2 - DECC Scenario 1 equiv'!M179,\n'[5]SM3 - DECC Scenario 2 equiv'!M179,\n'[5]SM4 - DNO Scenario 4 equiv'!M179,\n'[6]M1a - Model inputs'!M179,\n'[6]M1b - Model inputs'!M179,\n'[6]SM1 - DECC Scenario 3 equiv'!M179,\n'[6]SM2 - DECC Scenario 1 equiv'!M179,\n'[6]SM3 - DECC Scenario 2 equiv'!M179,\n'[6]SM4 - DNO Scenario 4 equiv'!M179)","v":0},{"$f":"CHOOSE(view,\n'[5]M1a - Model inputs'!N179,\n'[5]M1b - Model inputs'!N179,\n'[5]SM1 - DECC Scenario 3 equiv'!N179,\n'[5]SM2 - DECC Scenario 1 equiv'!N179,\n'[5]SM3 - DECC Scenario 2 equiv'!N179,\n'[5]SM4 - DNO Scenario 4 equiv'!N179,\n'[6]M1a - Model inputs'!N179,\n'[6]M1b - Model inputs'!N179,\n'[6]SM1 - DECC Scenario 3 equiv'!N179,\n'[6]SM2 - DECC Scenario 1 equiv'!N179,\n'[6]SM3 - DECC Scenario 2 equiv'!N179,\n'[6]SM4 - DNO Scenario 4 equiv'!N179)","v":0},{"$f":"CHOOSE(view,\n'[5]M1a - Model inputs'!O179,\n'[5]M1b - Model inputs'!O179,\n'[5]SM1 - DECC Scenario 3 equiv'!O179,\n'[5]SM2 - DECC Scenario 1 equiv'!O179,\n'[5]SM3 - DECC Scenario 2 equiv'!O179,\n'[5]SM4 - DNO Scenario 4 equiv'!O179,\n'[6]M1a - Model inputs'!O179,\n'[6]M1b - Model inputs'!O179,\n'[6]SM1 - DECC Scenario 3 equiv'!O179,\n'[6]SM2 - DECC Scenario 1 equiv'!O179,\n'[6]SM3 - DECC Scenario 2 equiv'!O179,\n'[6]SM4 - DNO Scenario 4 equiv'!O179)","v":0},{"$f":"CHOOSE(view,\n'[5]M1a - Model inputs'!P179,\n'[5]M1b - Model inputs'!P179,\n'[5]SM1 - DECC Scenario 3 equiv'!P179,\n'[5]SM2 - DECC Scenario 1 equiv'!P179,\n'[5]SM3 - DECC Scenario 2 equiv'!P179,\n'[5]SM4 - DNO Scenario 4 equiv'!P179,\n'[6]M1a - Model inputs'!P179,\n'[6]M1b - Model inputs'!P179,\n'[6]SM1 - DECC Scenario 3 equiv'!P179,\n'[6]SM2 - DECC Scenario 1 equiv'!P179,\n'[6]SM3 - DECC Scenario 2 equiv'!P179,\n'[6]SM4 - DNO Scenario 4 equiv'!P179)","v":0},{"$f":"CHOOSE(view,\n'[5]M1a - Model inputs'!Q179,\n'[5]M1b - Model inputs'!Q179,\n'[5]SM1 - DECC Scenario 3 equiv'!Q179,\n'[5]SM2 - DECC Scenario 1 equiv'!Q179,\n'[5]SM3 - DECC Scenario 2 equiv'!Q179,\n'[5]SM4 - DNO Scenario 4 equiv'!Q179,\n'[6]M1a - Model inputs'!Q179,\n'[6]M1b - Model inputs'!Q179,\n'[6]SM1 - DECC Scenario 3 equiv'!Q179,\n'[6]SM2 - DECC Scenario 1 equiv'!Q179,\n'[6]SM3 - DECC Scenario 2 equiv'!Q179,\n'[6]SM4 - DNO Scenario 4 equiv'!Q179)","v":0},{"$f":"CHOOSE(view,\n'[5]M1a - Model inputs'!R179,\n'[5]M1b - Model inputs'!R179,\n'[5]SM1 - DECC Scenario 3 equiv'!R179,\n'[5]SM2 - DECC Scenario 1 equiv'!R179,\n'[5]SM3 - DECC Scenario 2 equiv'!R179,\n'[5]SM4 - DNO Scenario 4 equiv'!R179,\n'[6]M1a - Model inputs'!R179,\n'[6]M1b - Model inputs'!R179,\n'[6]SM1 - DECC Scenario 3 equiv'!R179,\n'[6]SM2 - DECC Scenario 1 equiv'!R179,\n'[6]SM3 - DECC Scenario 2 equiv'!R179,\n'[6]SM4 - DNO Scenario 4 equiv'!R179)","v":0},{"$f":"CHOOSE(view,\n'[5]M1a - Model inputs'!S179,\n'[5]M1b - Model inputs'!S179,\n'[5]SM1 - DECC Scenario 3 equiv'!S179,\n'[5]SM2 - DECC Scenario 1 equiv'!S179,\n'[5]SM3 - DECC Scenario 2 equiv'!S179,\n'[5]SM4 - DNO Scenario 4 equiv'!S179,\n'[6]M1a - Model inputs'!S179,\n'[6]M1b - Model inputs'!S179,\n'[6]SM1 - DECC Scenario 3 equiv'!S179,\n'[6]SM2 - DECC Scenario 1 equiv'!S179,\n'[6]SM3 - DECC Scenario 2 equiv'!S179,\n'[6]SM4 - DNO Scenario 4 equiv'!S179)","v":0}]
[null,null,null,null,{"$f":"Input!E111","v":"Allocation to non-load related capex - asset replacement"},null,"%",null,null,null,null,null,null,null,null,null,null,null,null,null,null,null,null,null,null,null,null,null,null,null,null,null,null,null,null,{"$f":"CHOOSE(view,\n'[5]M1a - Model inputs'!L180,\n'[5]M1b - Model inputs'!L180,\n'[5]SM1 - DECC Scenario 3 equiv'!L180,\n'[5]SM2 - DECC Scenario 1 equiv'!L180,\n'[5]SM3 - DECC Scenario 2 equiv'!L180,\n'[5]SM4 - DNO Scenario 4 equiv'!L180,\n'[6]M1a - Model inputs'!L180,\n'[6]M1b - Model inputs'!L180,\n'[6]SM1 - DECC Scenario 3 equiv'!L180,\n'[6]SM2 - DECC Scenario 1 equiv'!L180,\n'[6]SM3 - DECC Scenario 2 equiv'!L180,\n'[6]SM4 - DNO Scenario 4 equiv'!L180)","v":0},{"$f":"CHOOSE(view,\n'[5]M1a - Model inputs'!M180,\n'[5]M1b - Model inputs'!M180,\n'[5]SM1 - DECC Scenario 3 equiv'!M180,\n'[5]SM2 - DECC Scenario 1 equiv'!M180,\n'[5]SM3 - DECC Scenario 2 equiv'!M180,\n'[5]SM4 - DNO Scenario 4 equiv'!M180,\n'[6]M1a - Model inputs'!M180,\n'[6]M1b - Model inputs'!M180,\n'[6]SM1 - DECC Scenario 3 equiv'!M180,\n'[6]SM2 - DECC Scenario 1 equiv'!M180,\n'[6]SM3 - DECC Scenario 2 equiv'!M180,\n'[6]SM4 - DNO Scenario 4 equiv'!M180)","v":0},{"$f":"CHOOSE(view,\n'[5]M1a - Model inputs'!N180,\n'[5]M1b - Model inputs'!N180,\n'[5]SM1 - DECC Scenario 3 equiv'!N180,\n'[5]SM2 - DECC Scenario 1 equiv'!N180,\n'[5]SM3 - DECC Scenario 2 equiv'!N180,\n'[5]SM4 - DNO Scenario 4 equiv'!N180,\n'[6]M1a - Model inputs'!N180,\n'[6]M1b - Model inputs'!N180,\n'[6]SM1 - DECC Scenario 3 equiv'!N180,\n'[6]SM2 - DECC Scenario 1 equiv'!N180,\n'[6]SM3 - DECC Scenario 2 equiv'!N180,\n'[6]SM4 - DNO Scenario 4 equiv'!N180)","v":0},{"$f":"CHOOSE(view,\n'[5]M1a - Model inputs'!O180,\n'[5]M1b - Model inputs'!O180,\n'[5]SM1 - DECC Scenario 3 equiv'!O180,\n'[5]SM2 - DECC Scenario 1 equiv'!O180,\n'[5]SM3 - DECC Scenario 2 equiv'!O180,\n'[5]SM4 - DNO Scenario 4 equiv'!O180,\n'[6]M1a - Model inputs'!O180,\n'[6]M1b - Model inputs'!O180,\n'[6]SM1 - DECC Scenario 3 equiv'!O180,\n'[6]SM2 - DECC Scenario 1 equiv'!O180,\n'[6]SM3 - DECC Scenario 2 equiv'!O180,\n'[6]SM4 - DNO Scenario 4 equiv'!O180)","v":0},{"$f":"CHOOSE(view,\n'[5]M1a - Model inputs'!P180,\n'[5]M1b - Model inputs'!P180,\n'[5]SM1 - DECC Scenario 3 equiv'!P180,\n'[5]SM2 - DECC Scenario 1 equiv'!P180,\n'[5]SM3 - DECC Scenario 2 equiv'!P180,\n'[5]SM4 - DNO Scenario 4 equiv'!P180,\n'[6]M1a - Model inputs'!P180,\n'[6]M1b - Model inputs'!P180,\n'[6]SM1 - DECC Scenario 3 equiv'!P180,\n'[6]SM2 - DECC Scenario 1 equiv'!P180,\n'[6]SM3 - DECC Scenario 2 equiv'!P180,\n'[6]SM4 - DNO Scenario 4 equiv'!P180)","v":0},{"$f":"CHOOSE(view,\n'[5]M1a - Model inputs'!Q180,\n'[5]M1b - Model inputs'!Q180,\n'[5]SM1 - DECC Scenario 3 equiv'!Q180,\n'[5]SM2 - DECC Scenario 1 equiv'!Q180,\n'[5]SM3 - DECC Scenario 2 equiv'!Q180,\n'[5]SM4 - DNO Scenario 4 equiv'!Q180,\n'[6]M1a - Model inputs'!Q180,\n'[6]M1b - Model inputs'!Q180,\n'[6]SM1 - DECC Scenario 3 equiv'!Q180,\n'[6]SM2 - DECC Scenario 1 equiv'!Q180,\n'[6]SM3 - DECC Scenario 2 equiv'!Q180,\n'[6]SM4 - DNO Scenario 4 equiv'!Q180)","v":0},{"$f":"CHOOSE(view,\n'[5]M1a - Model inputs'!R180,\n'[5]M1b - Model inputs'!R180,\n'[5]SM1 - DECC Scenario 3 equiv'!R180,\n'[5]SM2 - DECC Scenario 1 equiv'!R180,\n'[5]SM3 - DECC Scenario 2 equiv'!R180,\n'[5]SM4 - DNO Scenario 4 equiv'!R180,\n'[6]M1a - Model inputs'!R180,\n'[6]M1b - Model inputs'!R180,\n'[6]SM1 - DECC Scenario 3 equiv'!R180,\n'[6]SM2 - DECC Scenario 1 equiv'!R180,\n'[6]SM3 - DECC Scenario 2 equiv'!R180,\n'[6]SM4 - DNO Scenario 4 equiv'!R180)","v":0},{"$f":"CHOOSE(view,\n'[5]M1a - Model inputs'!S180,\n'[5]M1b - Model inputs'!S180,\n'[5]SM1 - DECC Scenario 3 equiv'!S180,\n'[5]SM2 - DECC Scenario 1 equiv'!S180,\n'[5]SM3 - DECC Scenario 2 equiv'!S180,\n'[5]SM4 - DNO Scenario 4 equiv'!S180,\n'[6]M1a - Model inputs'!S180,\n'[6]M1b - Model inputs'!S180,\n'[6]SM1 - DECC Scenario 3 equiv'!S180,\n'[6]SM2 - DECC Scenario 1 equiv'!S180,\n'[6]SM3 - DECC Scenario 2 equiv'!S180,\n'[6]SM4 - DNO Scenario 4 equiv'!S180)","v":0}]
[null,null,null,null,{"$f":"Input!E112","v":"Allocation to non-load related capex - other"},null,"%",null,null,null,null,null,null,null,null,null,null,null,null,null,null,null,null,null,null,null,null,null,null,null,null,null,null,null,null,{"$f":"CHOOSE(view,\n'[5]M1a - Model inputs'!L181,\n'[5]M1b - Model inputs'!L181,\n'[5]SM1 - DECC Scenario 3 equiv'!L181,\n'[5]SM2 - DECC Scenario 1 equiv'!L181,\n'[5]SM3 - DECC Scenario 2 equiv'!L181,\n'[5]SM4 - DNO Scenario 4 equiv'!L181,\n'[6]M1a - Model inputs'!L181,\n'[6]M1b - Model inputs'!L181,\n'[6]SM1 - DECC Scenario 3 equiv'!L181,\n'[6]SM2 - DECC Scenario 1 equiv'!L181,\n'[6]SM3 - DECC Scenario 2 equiv'!L181,\n'[6]SM4 - DNO Scenario 4 equiv'!L181)","v":0},{"$f":"CHOOSE(view,\n'[5]M1a - Model inputs'!M181,\n'[5]M1b - Model inputs'!M181,\n'[5]SM1 - DECC Scenario 3 equiv'!M181,\n'[5]SM2 - DECC Scenario 1 equiv'!M181,\n'[5]SM3 - DECC Scenario 2 equiv'!M181,\n'[5]SM4 - DNO Scenario 4 equiv'!M181,\n'[6]M1a - Model inputs'!M181,\n'[6]M1b - Model inputs'!M181,\n'[6]SM1 - DECC Scenario 3 equiv'!M181,\n'[6]SM2 - DECC Scenario 1 equiv'!M181,\n'[6]SM3 - DECC Scenario 2 equiv'!M181,\n'[6]SM4 - DNO Scenario 4 equiv'!M181)","v":0},{"$f":"CHOOSE(view,\n'[5]M1a - Model inputs'!N181,\n'[5]M1b - Model inputs'!N181,\n'[5]SM1 - DECC Scenario 3 equiv'!N181,\n'[5]SM2 - DECC Scenario 1 equiv'!N181,\n'[5]SM3 - DECC Scenario 2 equiv'!N181,\n'[5]SM4 - DNO Scenario 4 equiv'!N181,\n'[6]M1a - Model inputs'!N181,\n'[6]M1b - Model inputs'!N181,\n'[6]SM1 - DECC Scenario 3 equiv'!N181,\n'[6]SM2 - DECC Scenario 1 equiv'!N181,\n'[6]SM3 - DECC Scenario 2 equiv'!N181,\n'[6]SM4 - DNO Scenario 4 equiv'!N181)","v":0},{"$f":"CHOOSE(view,\n'[5]M1a - Model inputs'!O181,\n'[5]M1b - Model inputs'!O181,\n'[5]SM1 - DECC Scenario 3 equiv'!O181,\n'[5]SM2 - DECC Scenario 1 equiv'!O181,\n'[5]SM3 - DECC Scenario 2 equiv'!O181,\n'[5]SM4 - DNO Scenario 4 equiv'!O181,\n'[6]M1a - Model inputs'!O181,\n'[6]M1b - Model inputs'!O181,\n'[6]SM1 - DECC Scenario 3 equiv'!O181,\n'[6]SM2 - DECC Scenario 1 equiv'!O181,\n'[6]SM3 - DECC Scenario 2 equiv'!O181,\n'[6]SM4 - DNO Scenario 4 equiv'!O181)","v":0},{"$f":"CHOOSE(view,\n'[5]M1a - Model inputs'!P181,\n'[5]M1b - Model inputs'!P181,\n'[5]SM1 - DECC Scenario 3 equiv'!P181,\n'[5]SM2 - DECC Scenario 1 equiv'!P181,\n'[5]SM3 - DECC Scenario 2 equiv'!P181,\n'[5]SM4 - DNO Scenario 4 equiv'!P181,\n'[6]M1a - Model inputs'!P181,\n'[6]M1b - Model inputs'!P181,\n'[6]SM1 - DECC Scenario 3 equiv'!P181,\n'[6]SM2 - DECC Scenario 1 equiv'!P181,\n'[6]SM3 - DECC Scenario 2 equiv'!P181,\n'[6]SM4 - DNO Scenario 4 equiv'!P181)","v":0},{"$f":"CHOOSE(view,\n'[5]M1a - Model inputs'!Q181,\n'[5]M1b - Model inputs'!Q181,\n'[5]SM1 - DECC Scenario 3 equiv'!Q181,\n'[5]SM2 - DECC Scenario 1 equiv'!Q181,\n'[5]SM3 - DECC Scenario 2 equiv'!Q181,\n'[5]SM4 - DNO Scenario 4 equiv'!Q181,\n'[6]M1a - Model inputs'!Q181,\n'[6]M1b - Model inputs'!Q181,\n'[6]SM1 - DECC Scenario 3 equiv'!Q181,\n'[6]SM2 - DECC Scenario 1 equiv'!Q181,\n'[6]SM3 - DECC Scenario 2 equiv'!Q181,\n'[6]SM4 - DNO Scenario 4 equiv'!Q181)","v":0},{"$f":"CHOOSE(view,\n'[5]M1a - Model inputs'!R181,\n'[5]M1b - Model inputs'!R181,\n'[5]SM1 - DECC Scenario 3 equiv'!R181,\n'[5]SM2 - DECC Scenario 1 equiv'!R181,\n'[5]SM3 - DECC Scenario 2 equiv'!R181,\n'[5]SM4 - DNO Scenario 4 equiv'!R181,\n'[6]M1a - Model inputs'!R181,\n'[6]M1b - Model inputs'!R181,\n'[6]SM1 - DECC Scenario 3 equiv'!R181,\n'[6]SM2 - DECC Scenario 1 equiv'!R181,\n'[6]SM3 - DECC Scenario 2 equiv'!R181,\n'[6]SM4 - DNO Scenario 4 equiv'!R181)","v":0},{"$f":"CHOOSE(view,\n'[5]M1a - Model inputs'!S181,\n'[5]M1b - Model inputs'!S181,\n'[5]SM1 - DECC Scenario 3 equiv'!S181,\n'[5]SM2 - DECC Scenario 1 equiv'!S181,\n'[5]SM3 - DECC Scenario 2 equiv'!S181,\n'[5]SM4 - DNO Scenario 4 equiv'!S181,\n'[6]M1a - Model inputs'!S181,\n'[6]M1b - Model inputs'!S181,\n'[6]SM1 - DECC Scenario 3 equiv'!S181,\n'[6]SM2 - DECC Scenario 1 equiv'!S181,\n'[6]SM3 - DECC Scenario 2 equiv'!S181,\n'[6]SM4 - DNO Scenario 4 equiv'!S181)","v":0}]
[null,null,null,null,{"$f":"Input!E113","v":"Allocation to faults"},null,"%",null,null,null,null,null,null,null,null,null,null,null,null,null,null,null,null,null,null,null,null,null,null,null,null,null,null,null,null,{"$f":"CHOOSE(view,\n'[5]M1a - Model inputs'!L182,\n'[5]M1b - Model inputs'!L182,\n'[5]SM1 - DECC Scenario 3 equiv'!L182,\n'[5]SM2 - DECC Scenario 1 equiv'!L182,\n'[5]SM3 - DECC Scenario 2 equiv'!L182,\n'[5]SM4 - DNO Scenario 4 equiv'!L182,\n'[6]M1a - Model inputs'!L182,\n'[6]M1b - Model inputs'!L182,\n'[6]SM1 - DECC Scenario 3 equiv'!L182,\n'[6]SM2 - DECC Scenario 1 equiv'!L182,\n'[6]SM3 - DECC Scenario 2 equiv'!L182,\n'[6]SM4 - DNO Scenario 4 equiv'!L182)","v":0},{"$f":"CHOOSE(view,\n'[5]M1a - Model inputs'!M182,\n'[5]M1b - Model inputs'!M182,\n'[5]SM1 - DECC Scenario 3 equiv'!M182,\n'[5]SM2 - DECC Scenario 1 equiv'!M182,\n'[5]SM3 - DECC Scenario 2 equiv'!M182,\n'[5]SM4 - DNO Scenario 4 equiv'!M182,\n'[6]M1a - Model inputs'!M182,\n'[6]M1b - Model inputs'!M182,\n'[6]SM1 - DECC Scenario 3 equiv'!M182,\n'[6]SM2 - DECC Scenario 1 equiv'!M182,\n'[6]SM3 - DECC Scenario 2 equiv'!M182,\n'[6]SM4 - DNO Scenario 4 equiv'!M182)","v":0},{"$f":"CHOOSE(view,\n'[5]M1a - Model inputs'!N182,\n'[5]M1b - Model inputs'!N182,\n'[5]SM1 - DECC Scenario 3 equiv'!N182,\n'[5]SM2 - DECC Scenario 1 equiv'!N182,\n'[5]SM3 - DECC Scenario 2 equiv'!N182,\n'[5]SM4 - DNO Scenario 4 equiv'!N182,\n'[6]M1a - Model inputs'!N182,\n'[6]M1b - Model inputs'!N182,\n'[6]SM1 - DECC Scenario 3 equiv'!N182,\n'[6]SM2 - DECC Scenario 1 equiv'!N182,\n'[6]SM3 - DECC Scenario 2 equiv'!N182,\n'[6]SM4 - DNO Scenario 4 equiv'!N182)","v":0},{"$f":"CHOOSE(view,\n'[5]M1a - Model inputs'!O182,\n'[5]M1b - Model inputs'!O182,\n'[5]SM1 - DECC Scenario 3 equiv'!O182,\n'[5]SM2 - DECC Scenario 1 equiv'!O182,\n'[5]SM3 - DECC Scenario 2 equiv'!O182,\n'[5]SM4 - DNO Scenario 4 equiv'!O182,\n'[6]M1a - Model inputs'!O182,\n'[6]M1b - Model inputs'!O182,\n'[6]SM1 - DECC Scenario 3 equiv'!O182,\n'[6]SM2 - DECC Scenario 1 equiv'!O182,\n'[6]SM3 - DECC Scenario 2 equiv'!O182,\n'[6]SM4 - DNO Scenario 4 equiv'!O182)","v":0},{"$f":"CHOOSE(view,\n'[5]M1a - Model inputs'!P182,\n'[5]M1b - Model inputs'!P182,\n'[5]SM1 - DECC Scenario 3 equiv'!P182,\n'[5]SM2 - DECC Scenario 1 equiv'!P182,\n'[5]SM3 - DECC Scenario 2 equiv'!P182,\n'[5]SM4 - DNO Scenario 4 equiv'!P182,\n'[6]M1a - Model inputs'!P182,\n'[6]M1b - Model inputs'!P182,\n'[6]SM1 - DECC Scenario 3 equiv'!P182,\n'[6]SM2 - DECC Scenario 1 equiv'!P182,\n'[6]SM3 - DECC Scenario 2 equiv'!P182,\n'[6]SM4 - DNO Scenario 4 equiv'!P182)","v":0},{"$f":"CHOOSE(view,\n'[5]M1a - Model inputs'!Q182,\n'[5]M1b - Model inputs'!Q182,\n'[5]SM1 - DECC Scenario 3 equiv'!Q182,\n'[5]SM2 - DECC Scenario 1 equiv'!Q182,\n'[5]SM3 - DECC Scenario 2 equiv'!Q182,\n'[5]SM4 - DNO Scenario 4 equiv'!Q182,\n'[6]M1a - Model inputs'!Q182,\n'[6]M1b - Model inputs'!Q182,\n'[6]SM1 - DECC Scenario 3 equiv'!Q182,\n'[6]SM2 - DECC Scenario 1 equiv'!Q182,\n'[6]SM3 - DECC Scenario 2 equiv'!Q182,\n'[6]SM4 - DNO Scenario 4 equiv'!Q182)","v":0},{"$f":"CHOOSE(view,\n'[5]M1a - Model inputs'!R182,\n'[5]M1b - Model inputs'!R182,\n'[5]SM1 - DECC Scenario 3 equiv'!R182,\n'[5]SM2 - DECC Scenario 1 equiv'!R182,\n'[5]SM3 - DECC Scenario 2 equiv'!R182,\n'[5]SM4 - DNO Scenario 4 equiv'!R182,\n'[6]M1a - Model inputs'!R182,\n'[6]M1b - Model inputs'!R182,\n'[6]SM1 - DECC Scenario 3 equiv'!R182,\n'[6]SM2 - DECC Scenario 1 equiv'!R182,\n'[6]SM3 - DECC Scenario 2 equiv'!R182,\n'[6]SM4 - DNO Scenario 4 equiv'!R182)","v":0},{"$f":"CHOOSE(view,\n'[5]M1a - Model inputs'!S182,\n'[5]M1b - Model inputs'!S182,\n'[5]SM1 - DECC Scenario 3 equiv'!S182,\n'[5]SM2 - DECC Scenario 1 equiv'!S182,\n'[5]SM3 - DECC Scenario 2 equiv'!S182,\n'[5]SM4 - DNO Scenario 4 equiv'!S182,\n'[6]M1a - Model inputs'!S182,\n'[6]M1b - Model inputs'!S182,\n'[6]SM1 - DECC Scenario 3 equiv'!S182,\n'[6]SM2 - DECC Scenario 1 equiv'!S182,\n'[6]SM3 - DECC Scenario 2 equiv'!S182,\n'[6]SM4 - DNO Scenario 4 equiv'!S182)","v":0}]
[null,null,null,null,{"$f":"Input!E114","v":"Allocation to tree cutting"},null,"%",null,null,null,null,null,null,null,null,null,null,null,null,null,null,null,null,null,null,null,null,null,null,null,null,null,null,null,null,{"$f":"CHOOSE(view,\n'[5]M1a - Model inputs'!L183,\n'[5]M1b - Model inputs'!L183,\n'[5]SM1 - DECC Scenario 3 equiv'!L183,\n'[5]SM2 - DECC Scenario 1 equiv'!L183,\n'[5]SM3 - DECC Scenario 2 equiv'!L183,\n'[5]SM4 - DNO Scenario 4 equiv'!L183,\n'[6]M1a - Model inputs'!L183,\n'[6]M1b - Model inputs'!L183,\n'[6]SM1 - DECC Scenario 3 equiv'!L183,\n'[6]SM2 - DECC Scenario 1 equiv'!L183,\n'[6]SM3 - DECC Scenario 2 equiv'!L183,\n'[6]SM4 - DNO Scenario 4 equiv'!L183)","v":0},{"$f":"CHOOSE(view,\n'[5]M1a - Model inputs'!M183,\n'[5]M1b - Model inputs'!M183,\n'[5]SM1 - DECC Scenario 3 equiv'!M183,\n'[5]SM2 - DECC Scenario 1 equiv'!M183,\n'[5]SM3 - DECC Scenario 2 equiv'!M183,\n'[5]SM4 - DNO Scenario 4 equiv'!M183,\n'[6]M1a - Model inputs'!M183,\n'[6]M1b - Model inputs'!M183,\n'[6]SM1 - DECC Scenario 3 equiv'!M183,\n'[6]SM2 - DECC Scenario 1 equiv'!M183,\n'[6]SM3 - DECC Scenario 2 equiv'!M183,\n'[6]SM4 - DNO Scenario 4 equiv'!M183)","v":0},{"$f":"CHOOSE(view,\n'[5]M1a - Model inputs'!N183,\n'[5]M1b - Model inputs'!N183,\n'[5]SM1 - DECC Scenario 3 equiv'!N183,\n'[5]SM2 - DECC Scenario 1 equiv'!N183,\n'[5]SM3 - DECC Scenario 2 equiv'!N183,\n'[5]SM4 - DNO Scenario 4 equiv'!N183,\n'[6]M1a - Model inputs'!N183,\n'[6]M1b - Model inputs'!N183,\n'[6]SM1 - DECC Scenario 3 equiv'!N183,\n'[6]SM2 - DECC Scenario 1 equiv'!N183,\n'[6]SM3 - DECC Scenario 2 equiv'!N183,\n'[6]SM4 - DNO Scenario 4 equiv'!N183)","v":0},{"$f":"CHOOSE(view,\n'[5]M1a - Model inputs'!O183,\n'[5]M1b - Model inputs'!O183,\n'[5]SM1 - DECC Scenario 3 equiv'!O183,\n'[5]SM2 - DECC Scenario 1 equiv'!O183,\n'[5]SM3 - DECC Scenario 2 equiv'!O183,\n'[5]SM4 - DNO Scenario 4 equiv'!O183,\n'[6]M1a - Model inputs'!O183,\n'[6]M1b - Model inputs'!O183,\n'[6]SM1 - DECC Scenario 3 equiv'!O183,\n'[6]SM2 - DECC Scenario 1 equiv'!O183,\n'[6]SM3 - DECC Scenario 2 equiv'!O183,\n'[6]SM4 - DNO Scenario 4 equiv'!O183)","v":0},{"$f":"CHOOSE(view,\n'[5]M1a - Model inputs'!P183,\n'[5]M1b - Model inputs'!P183,\n'[5]SM1 - DECC Scenario 3 equiv'!P183,\n'[5]SM2 - DECC Scenario 1 equiv'!P183,\n'[5]SM3 - DECC Scenario 2 equiv'!P183,\n'[5]SM4 - DNO Scenario 4 equiv'!P183,\n'[6]M1a - Model inputs'!P183,\n'[6]M1b - Model inputs'!P183,\n'[6]SM1 - DECC Scenario 3 equiv'!P183,\n'[6]SM2 - DECC Scenario 1 equiv'!P183,\n'[6]SM3 - DECC Scenario 2 equiv'!P183,\n'[6]SM4 - DNO Scenario 4 equiv'!P183)","v":0},{"$f":"CHOOSE(view,\n'[5]M1a - Model inputs'!Q183,\n'[5]M1b - Model inputs'!Q183,\n'[5]SM1 - DECC Scenario 3 equiv'!Q183,\n'[5]SM2 - DECC Scenario 1 equiv'!Q183,\n'[5]SM3 - DECC Scenario 2 equiv'!Q183,\n'[5]SM4 - DNO Scenario 4 equiv'!Q183,\n'[6]M1a - Model inputs'!Q183,\n'[6]M1b - Model inputs'!Q183,\n'[6]SM1 - DECC Scenario 3 equiv'!Q183,\n'[6]SM2 - DECC Scenario 1 equiv'!Q183,\n'[6]SM3 - DECC Scenario 2 equiv'!Q183,\n'[6]SM4 - DNO Scenario 4 equiv'!Q183)","v":0},{"$f":"CHOOSE(view,\n'[5]M1a - Model inputs'!R183,\n'[5]M1b - Model inputs'!R183,\n'[5]SM1 - DECC Scenario 3 equiv'!R183,\n'[5]SM2 - DECC Scenario 1 equiv'!R183,\n'[5]SM3 - DECC Scenario 2 equiv'!R183,\n'[5]SM4 - DNO Scenario 4 equiv'!R183,\n'[6]M1a - Model inputs'!R183,\n'[6]M1b - Model inputs'!R183,\n'[6]SM1 - DECC Scenario 3 equiv'!R183,\n'[6]SM2 - DECC Scenario 1 equiv'!R183,\n'[6]SM3 - DECC Scenario 2 equiv'!R183,\n'[6]SM4 - DNO Scenario 4 equiv'!R183)","v":0},{"$f":"CHOOSE(view,\n'[5]M1a - Model inputs'!S183,\n'[5]M1b - Model inputs'!S183,\n'[5]SM1 - DECC Scenario 3 equiv'!S183,\n'[5]SM2 - DECC Scenario 1 equiv'!S183,\n'[5]SM3 - DECC Scenario 2 equiv'!S183,\n'[5]SM4 - DNO Scenario 4 equiv'!S183,\n'[6]M1a - Model inputs'!S183,\n'[6]M1b - Model inputs'!S183,\n'[6]SM1 - DECC Scenario 3 equiv'!S183,\n'[6]SM2 - DECC Scenario 1 equiv'!S183,\n'[6]SM3 - DECC Scenario 2 equiv'!S183,\n'[6]SM4 - DNO Scenario 4 equiv'!S183)","v":0}]
[null,null,null,null,{"$f":"Input!E115","v":"Allocation to controllable opex"},null,"%",null,null,null,null,null,null,null,null,null,null,null,null,null,null,null,null,null,null,null,null,null,null,null,null,null,null,null,null,{"$f":"CHOOSE(view,\n'[5]M1a - Model inputs'!L184,\n'[5]M1b - Model inputs'!L184,\n'[5]SM1 - DECC Scenario 3 equiv'!L184,\n'[5]SM2 - DECC Scenario 1 equiv'!L184,\n'[5]SM3 - DECC Scenario 2 equiv'!L184,\n'[5]SM4 - DNO Scenario 4 equiv'!L184,\n'[6]M1a - Model inputs'!L184,\n'[6]M1b - Model inputs'!L184,\n'[6]SM1 - DECC Scenario 3 equiv'!L184,\n'[6]SM2 - DECC Scenario 1 equiv'!L184,\n'[6]SM3 - DECC Scenario 2 equiv'!L184,\n'[6]SM4 - DNO Scenario 4 equiv'!L184)","v":0},{"$f":"CHOOSE(view,\n'[5]M1a - Model inputs'!M184,\n'[5]M1b - Model inputs'!M184,\n'[5]SM1 - DECC Scenario 3 equiv'!M184,\n'[5]SM2 - DECC Scenario 1 equiv'!M184,\n'[5]SM3 - DECC Scenario 2 equiv'!M184,\n'[5]SM4 - DNO Scenario 4 equiv'!M184,\n'[6]M1a - Model inputs'!M184,\n'[6]M1b - Model inputs'!M184,\n'[6]SM1 - DECC Scenario 3 equiv'!M184,\n'[6]SM2 - DECC Scenario 1 equiv'!M184,\n'[6]SM3 - DECC Scenario 2 equiv'!M184,\n'[6]SM4 - DNO Scenario 4 equiv'!M184)","v":0},{"$f":"CHOOSE(view,\n'[5]M1a - Model inputs'!N184,\n'[5]M1b - Model inputs'!N184,\n'[5]SM1 - DECC Scenario 3 equiv'!N184,\n'[5]SM2 - DECC Scenario 1 equiv'!N184,\n'[5]SM3 - DECC Scenario 2 equiv'!N184,\n'[5]SM4 - DNO Scenario 4 equiv'!N184,\n'[6]M1a - Model inputs'!N184,\n'[6]M1b - Model inputs'!N184,\n'[6]SM1 - DECC Scenario 3 equiv'!N184,\n'[6]SM2 - DECC Scenario 1 equiv'!N184,\n'[6]SM3 - DECC Scenario 2 equiv'!N184,\n'[6]SM4 - DNO Scenario 4 equiv'!N184)","v":0},{"$f":"CHOOSE(view,\n'[5]M1a - Model inputs'!O184,\n'[5]M1b - Model inputs'!O184,\n'[5]SM1 - DECC Scenario 3 equiv'!O184,\n'[5]SM2 - DECC Scenario 1 equiv'!O184,\n'[5]SM3 - DECC Scenario 2 equiv'!O184,\n'[5]SM4 - DNO Scenario 4 equiv'!O184,\n'[6]M1a - Model inputs'!O184,\n'[6]M1b - Model inputs'!O184,\n'[6]SM1 - DECC Scenario 3 equiv'!O184,\n'[6]SM2 - DECC Scenario 1 equiv'!O184,\n'[6]SM3 - DECC Scenario 2 equiv'!O184,\n'[6]SM4 - DNO Scenario 4 equiv'!O184)","v":0},{"$f":"CHOOSE(view,\n'[5]M1a - Model inputs'!P184,\n'[5]M1b - Model inputs'!P184,\n'[5]SM1 - DECC Scenario 3 equiv'!P184,\n'[5]SM2 - DECC Scenario 1 equiv'!P184,\n'[5]SM3 - DECC Scenario 2 equiv'!P184,\n'[5]SM4 - DNO Scenario 4 equiv'!P184,\n'[6]M1a - Model inputs'!P184,\n'[6]M1b - Model inputs'!P184,\n'[6]SM1 - DECC Scenario 3 equiv'!P184,\n'[6]SM2 - DECC Scenario 1 equiv'!P184,\n'[6]SM3 - DECC Scenario 2 equiv'!P184,\n'[6]SM4 - DNO Scenario 4 equiv'!P184)","v":0},{"$f":"CHOOSE(view,\n'[5]M1a - Model inputs'!Q184,\n'[5]M1b - Model inputs'!Q184,\n'[5]SM1 - DECC Scenario 3 equiv'!Q184,\n'[5]SM2 - DECC Scenario 1 equiv'!Q184,\n'[5]SM3 - DECC Scenario 2 equiv'!Q184,\n'[5]SM4 - DNO Scenario 4 equiv'!Q184,\n'[6]M1a - Model inputs'!Q184,\n'[6]M1b - Model inputs'!Q184,\n'[6]SM1 - DECC Scenario 3 equiv'!Q184,\n'[6]SM2 - DECC Scenario 1 equiv'!Q184,\n'[6]SM3 - DECC Scenario 2 equiv'!Q184,\n'[6]SM4 - DNO Scenario 4 equiv'!Q184)","v":0},{"$f":"CHOOSE(view,\n'[5]M1a - Model inputs'!R184,\n'[5]M1b - Model inputs'!R184,\n'[5]SM1 - DECC Scenario 3 equiv'!R184,\n'[5]SM2 - DECC Scenario 1 equiv'!R184,\n'[5]SM3 - DECC Scenario 2 equiv'!R184,\n'[5]SM4 - DNO Scenario 4 equiv'!R184,\n'[6]M1a - Model inputs'!R184,\n'[6]M1b - Model inputs'!R184,\n'[6]SM1 - DECC Scenario 3 equiv'!R184,\n'[6]SM2 - DECC Scenario 1 equiv'!R184,\n'[6]SM3 - DECC Scenario 2 equiv'!R184,\n'[6]SM4 - DNO Scenario 4 equiv'!R184)","v":0},{"$f":"CHOOSE(view,\n'[5]M1a - Model inputs'!S184,\n'[5]M1b - Model inputs'!S184,\n'[5]SM1 - DECC Scenario 3 equiv'!S184,\n'[5]SM2 - DECC Scenario 1 equiv'!S184,\n'[5]SM3 - DECC Scenario 2 equiv'!S184,\n'[5]SM4 - DNO Scenario 4 equiv'!S184,\n'[6]M1a - Model inputs'!S184,\n'[6]M1b - Model inputs'!S184,\n'[6]SM1 - DECC Scenario 3 equiv'!S184,\n'[6]SM2 - DECC Scenario 1 equiv'!S184,\n'[6]SM3 - DECC Scenario 2 equiv'!S184,\n'[6]SM4 - DNO Scenario 4 equiv'!S184)","v":0}]
[]
[null,null,null,null,{"$f":"Input!E117","v":"Allowed uncertain costs (Undergrounding)"},null,"£m 12/13 prices",null,null,null,null,null,null,null,null,null,null,null,null,null,null,null,null,null,null,null,null,null,null,null,null,null,null,null,null,{"$f":"AJ20","v":0.12810047211362957},{"$f":"AK20","v":0.12844595579760335},0.12736473279379065,0.12781715604165444,0.12819728968211344,0.12855828109179127,0.12884394947884412,0.12932680859826926]
[null,null,null,null,{"$f":"Input!E118","v":"Allocation to load related capex"},null,"%",null,null,null,null,null,null,null,null,null,null,null,null,null,null,null,null,null,null,null,null,null,null,null,null,null,null,null,null,{"$f":"CHOOSE(view,\n'[5]M1a - Model inputs'!L187,\n'[5]M1b - Model inputs'!L187,\n'[5]SM1 - DECC Scenario 3 equiv'!L187,\n'[5]SM2 - DECC Scenario 1 equiv'!L187,\n'[5]SM3 - DECC Scenario 2 equiv'!L187,\n'[5]SM4 - DNO Scenario 4 equiv'!L187,\n'[6]M1a - Model inputs'!L187,\n'[6]M1b - Model inputs'!L187,\n'[6]SM1 - DECC Scenario 3 equiv'!L187,\n'[6]SM2 - DECC Scenario 1 equiv'!L187,\n'[6]SM3 - DECC Scenario 2 equiv'!L187,\n'[6]SM4 - DNO Scenario 4 equiv'!L187)","v":0},{"$f":"CHOOSE(view,\n'[5]M1a - Model inputs'!M187,\n'[5]M1b - Model inputs'!M187,\n'[5]SM1 - DECC Scenario 3 equiv'!M187,\n'[5]SM2 - DECC Scenario 1 equiv'!M187,\n'[5]SM3 - DECC Scenario 2 equiv'!M187,\n'[5]SM4 - DNO Scenario 4 equiv'!M187,\n'[6]M1a - Model inputs'!M187,\n'[6]M1b - Model inputs'!M187,\n'[6]SM1 - DECC Scenario 3 equiv'!M187,\n'[6]SM2 - DECC Scenario 1 equiv'!M187,\n'[6]SM3 - DECC Scenario 2 equiv'!M187,\n'[6]SM4 - DNO Scenario 4 equiv'!M187)","v":0},{"$f":"CHOOSE(view,\n'[5]M1a - Model inputs'!N187,\n'[5]M1b - Model inputs'!N187,\n'[5]SM1 - DECC Scenario 3 equiv'!N187,\n'[5]SM2 - DECC Scenario 1 equiv'!N187,\n'[5]SM3 - DECC Scenario 2 equiv'!N187,\n'[5]SM4 - DNO Scenario 4 equiv'!N187,\n'[6]M1a - Model inputs'!N187,\n'[6]M1b - Model inputs'!N187,\n'[6]SM1 - DECC Scenario 3 equiv'!N187,\n'[6]SM2 - DECC Scenario 1 equiv'!N187,\n'[6]SM3 - DECC Scenario 2 equiv'!N187,\n'[6]SM4 - DNO Scenario 4 equiv'!N187)","v":0},{"$f":"CHOOSE(view,\n'[5]M1a - Model inputs'!O187,\n'[5]M1b - Model inputs'!O187,\n'[5]SM1 - DECC Scenario 3 equiv'!O187,\n'[5]SM2 - DECC Scenario 1 equiv'!O187,\n'[5]SM3 - DECC Scenario 2 equiv'!O187,\n'[5]SM4 - DNO Scenario 4 equiv'!O187,\n'[6]M1a - Model inputs'!O187,\n'[6]M1b - Model inputs'!O187,\n'[6]SM1 - DECC Scenario 3 equiv'!O187,\n'[6]SM2 - DECC Scenario 1 equiv'!O187,\n'[6]SM3 - DECC Scenario 2 equiv'!O187,\n'[6]SM4 - DNO Scenario 4 equiv'!O187)","v":0},{"$f":"CHOOSE(view,\n'[5]M1a - Model inputs'!P187,\n'[5]M1b - Model inputs'!P187,\n'[5]SM1 - DECC Scenario 3 equiv'!P187,\n'[5]SM2 - DECC Scenario 1 equiv'!P187,\n'[5]SM3 - DECC Scenario 2 equiv'!P187,\n'[5]SM4 - DNO Scenario 4 equiv'!P187,\n'[6]M1a - Model inputs'!P187,\n'[6]M1b - Model inputs'!P187,\n'[6]SM1 - DECC Scenario 3 equiv'!P187,\n'[6]SM2 - DECC Scenario 1 equiv'!P187,\n'[6]SM3 - DECC Scenario 2 equiv'!P187,\n'[6]SM4 - DNO Scenario 4 equiv'!P187)","v":0},{"$f":"CHOOSE(view,\n'[5]M1a - Model inputs'!Q187,\n'[5]M1b - Model inputs'!Q187,\n'[5]SM1 - DECC Scenario 3 equiv'!Q187,\n'[5]SM2 - DECC Scenario 1 equiv'!Q187,\n'[5]SM3 - DECC Scenario 2 equiv'!Q187,\n'[5]SM4 - DNO Scenario 4 equiv'!Q187,\n'[6]M1a - Model inputs'!Q187,\n'[6]M1b - Model inputs'!Q187,\n'[6]SM1 - DECC Scenario 3 equiv'!Q187,\n'[6]SM2 - DECC Scenario 1 equiv'!Q187,\n'[6]SM3 - DECC Scenario 2 equiv'!Q187,\n'[6]SM4 - DNO Scenario 4 equiv'!Q187)","v":0},{"$f":"CHOOSE(view,\n'[5]M1a - Model inputs'!R187,\n'[5]M1b - Model inputs'!R187,\n'[5]SM1 - DECC Scenario 3 equiv'!R187,\n'[5]SM2 - DECC Scenario 1 equiv'!R187,\n'[5]SM3 - DECC Scenario 2 equiv'!R187,\n'[5]SM4 - DNO Scenario 4 equiv'!R187,\n'[6]M1a - Model inputs'!R187,\n'[6]M1b - Model inputs'!R187,\n'[6]SM1 - DECC Scenario 3 equiv'!R187,\n'[6]SM2 - DECC Scenario 1 equiv'!R187,\n'[6]SM3 - DECC Scenario 2 equiv'!R187,\n'[6]SM4 - DNO Scenario 4 equiv'!R187)","v":0},{"$f":"CHOOSE(view,\n'[5]M1a - Model inputs'!S187,\n'[5]M1b - Model inputs'!S187,\n'[5]SM1 - DECC Scenario 3 equiv'!S187,\n'[5]SM2 - DECC Scenario 1 equiv'!S187,\n'[5]SM3 - DECC Scenario 2 equiv'!S187,\n'[5]SM4 - DNO Scenario 4 equiv'!S187,\n'[6]M1a - Model inputs'!S187,\n'[6]M1b - Model inputs'!S187,\n'[6]SM1 - DECC Scenario 3 equiv'!S187,\n'[6]SM2 - DECC Scenario 1 equiv'!S187,\n'[6]SM3 - DECC Scenario 2 equiv'!S187,\n'[6]SM4 - DNO Scenario 4 equiv'!S187)","v":0}]
[null,null,null,null,{"$f":"Input!E119","v":"Allocation to non-load related capex - asset replacement"},null,"%",null,null,null,null,null,null,null,null,null,null,null,null,null,null,null,null,null,null,null,null,null,null,null,null,null,null,null,null,{"$f":"CHOOSE(view,\n'[5]M1a - Model inputs'!L188,\n'[5]M1b - Model inputs'!L188,\n'[5]SM1 - DECC Scenario 3 equiv'!L188,\n'[5]SM2 - DECC Scenario 1 equiv'!L188,\n'[5]SM3 - DECC Scenario 2 equiv'!L188,\n'[5]SM4 - DNO Scenario 4 equiv'!L188,\n'[6]M1a - Model inputs'!L188,\n'[6]M1b - Model inputs'!L188,\n'[6]SM1 - DECC Scenario 3 equiv'!L188,\n'[6]SM2 - DECC Scenario 1 equiv'!L188,\n'[6]SM3 - DECC Scenario 2 equiv'!L188,\n'[6]SM4 - DNO Scenario 4 equiv'!L188)","v":0},{"$f":"CHOOSE(view,\n'[5]M1a - Model inputs'!M188,\n'[5]M1b - Model inputs'!M188,\n'[5]SM1 - DECC Scenario 3 equiv'!M188,\n'[5]SM2 - DECC Scenario 1 equiv'!M188,\n'[5]SM3 - DECC Scenario 2 equiv'!M188,\n'[5]SM4 - DNO Scenario 4 equiv'!M188,\n'[6]M1a - Model inputs'!M188,\n'[6]M1b - Model inputs'!M188,\n'[6]SM1 - DECC Scenario 3 equiv'!M188,\n'[6]SM2 - DECC Scenario 1 equiv'!M188,\n'[6]SM3 - DECC Scenario 2 equiv'!M188,\n'[6]SM4 - DNO Scenario 4 equiv'!M188)","v":0},{"$f":"CHOOSE(view,\n'[5]M1a - Model inputs'!N188,\n'[5]M1b - Model inputs'!N188,\n'[5]SM1 - DECC Scenario 3 equiv'!N188,\n'[5]SM2 - DECC Scenario 1 equiv'!N188,\n'[5]SM3 - DECC Scenario 2 equiv'!N188,\n'[5]SM4 - DNO Scenario 4 equiv'!N188,\n'[6]M1a - Model inputs'!N188,\n'[6]M1b - Model inputs'!N188,\n'[6]SM1 - DECC Scenario 3 equiv'!N188,\n'[6]SM2 - DECC Scenario 1 equiv'!N188,\n'[6]SM3 - DECC Scenario 2 equiv'!N188,\n'[6]SM4 - DNO Scenario 4 equiv'!N188)","v":0},{"$f":"CHOOSE(view,\n'[5]M1a - Model inputs'!O188,\n'[5]M1b - Model inputs'!O188,\n'[5]SM1 - DECC Scenario 3 equiv'!O188,\n'[5]SM2 - DECC Scenario 1 equiv'!O188,\n'[5]SM3 - DECC Scenario 2 equiv'!O188,\n'[5]SM4 - DNO Scenario 4 equiv'!O188,\n'[6]M1a - Model inputs'!O188,\n'[6]M1b - Model inputs'!O188,\n'[6]SM1 - DECC Scenario 3 equiv'!O188,\n'[6]SM2 - DECC Scenario 1 equiv'!O188,\n'[6]SM3 - DECC Scenario 2 equiv'!O188,\n'[6]SM4 - DNO Scenario 4 equiv'!O188)","v":0},{"$f":"CHOOSE(view,\n'[5]M1a - Model inputs'!P188,\n'[5]M1b - Model inputs'!P188,\n'[5]SM1 - DECC Scenario 3 equiv'!P188,\n'[5]SM2 - DECC Scenario 1 equiv'!P188,\n'[5]SM3 - DECC Scenario 2 equiv'!P188,\n'[5]SM4 - DNO Scenario 4 equiv'!P188,\n'[6]M1a - Model inputs'!P188,\n'[6]M1b - Model inputs'!P188,\n'[6]SM1 - DECC Scenario 3 equiv'!P188,\n'[6]SM2 - DECC Scenario 1 equiv'!P188,\n'[6]SM3 - DECC Scenario 2 equiv'!P188,\n'[6]SM4 - DNO Scenario 4 equiv'!P188)","v":0},{"$f":"CHOOSE(view,\n'[5]M1a - Model inputs'!Q188,\n'[5]M1b - Model inputs'!Q188,\n'[5]SM1 - DECC Scenario 3 equiv'!Q188,\n'[5]SM2 - DECC Scenario 1 equiv'!Q188,\n'[5]SM3 - DECC Scenario 2 equiv'!Q188,\n'[5]SM4 - DNO Scenario 4 equiv'!Q188,\n'[6]M1a - Model inputs'!Q188,\n'[6]M1b - Model inputs'!Q188,\n'[6]SM1 - DECC Scenario 3 equiv'!Q188,\n'[6]SM2 - DECC Scenario 1 equiv'!Q188,\n'[6]SM3 - DECC Scenario 2 equiv'!Q188,\n'[6]SM4 - DNO Scenario 4 equiv'!Q188)","v":0},{"$f":"CHOOSE(view,\n'[5]M1a - Model inputs'!R188,\n'[5]M1b - Model inputs'!R188,\n'[5]SM1 - DECC Scenario 3 equiv'!R188,\n'[5]SM2 - DECC Scenario 1 equiv'!R188,\n'[5]SM3 - DECC Scenario 2 equiv'!R188,\n'[5]SM4 - DNO Scenario 4 equiv'!R188,\n'[6]M1a - Model inputs'!R188,\n'[6]M1b - Model inputs'!R188,\n'[6]SM1 - DECC Scenario 3 equiv'!R188,\n'[6]SM2 - DECC Scenario 1 equiv'!R188,\n'[6]SM3 - DECC Scenario 2 equiv'!R188,\n'[6]SM4 - DNO Scenario 4 equiv'!R188)","v":0},{"$f":"CHOOSE(view,\n'[5]M1a - Model inputs'!S188,\n'[5]M1b - Model inputs'!S188,\n'[5]SM1 - DECC Scenario 3 equiv'!S188,\n'[5]SM2 - DECC Scenario 1 equiv'!S188,\n'[5]SM3 - DECC Scenario 2 equiv'!S188,\n'[5]SM4 - DNO Scenario 4 equiv'!S188,\n'[6]M1a - Model inputs'!S188,\n'[6]M1b - Model inputs'!S188,\n'[6]SM1 - DECC Scenario 3 equiv'!S188,\n'[6]SM2 - DECC Scenario 1 equiv'!S188,\n'[6]SM3 - DECC Scenario 2 equiv'!S188,\n'[6]SM4 - DNO Scenario 4 equiv'!S188)","v":0}]
[null,null,null,null,{"$f":"Input!E120","v":"Allocation to non-load related capex - other"},null,"%",null,null,null,null,null,null,null,null,null,null,null,null,null,null,null,null,null,null,null,null,null,null,null,null,null,null,null,null,{"$f":"CHOOSE(view,\n'[5]M1a - Model inputs'!L189,\n'[5]M1b - Model inputs'!L189,\n'[5]SM1 - DECC Scenario 3 equiv'!L189,\n'[5]SM2 - DECC Scenario 1 equiv'!L189,\n'[5]SM3 - DECC Scenario 2 equiv'!L189,\n'[5]SM4 - DNO Scenario 4 equiv'!L189,\n'[6]M1a - Model inputs'!L189,\n'[6]M1b - Model inputs'!L189,\n'[6]SM1 - DECC Scenario 3 equiv'!L189,\n'[6]SM2 - DECC Scenario 1 equiv'!L189,\n'[6]SM3 - DECC Scenario 2 equiv'!L189,\n'[6]SM4 - DNO Scenario 4 equiv'!L189)","v":1},{"$f":"CHOOSE(view,\n'[5]M1a - Model inputs'!M189,\n'[5]M1b - Model inputs'!M189,\n'[5]SM1 - DECC Scenario 3 equiv'!M189,\n'[5]SM2 - DECC Scenario 1 equiv'!M189,\n'[5]SM3 - DECC Scenario 2 equiv'!M189,\n'[5]SM4 - DNO Scenario 4 equiv'!M189,\n'[6]M1a - Model inputs'!M189,\n'[6]M1b - Model inputs'!M189,\n'[6]SM1 - DECC Scenario 3 equiv'!M189,\n'[6]SM2 - DECC Scenario 1 equiv'!M189,\n'[6]SM3 - DECC Scenario 2 equiv'!M189,\n'[6]SM4 - DNO Scenario 4 equiv'!M189)","v":1},{"$f":"CHOOSE(view,\n'[5]M1a - Model inputs'!N189,\n'[5]M1b - Model inputs'!N189,\n'[5]SM1 - DECC Scenario 3 equiv'!N189,\n'[5]SM2 - DECC Scenario 1 equiv'!N189,\n'[5]SM3 - DECC Scenario 2 equiv'!N189,\n'[5]SM4 - DNO Scenario 4 equiv'!N189,\n'[6]M1a - Model inputs'!N189,\n'[6]M1b - Model inputs'!N189,\n'[6]SM1 - DECC Scenario 3 equiv'!N189,\n'[6]SM2 - DECC Scenario 1 equiv'!N189,\n'[6]SM3 - DECC Scenario 2 equiv'!N189,\n'[6]SM4 - DNO Scenario 4 equiv'!N189)","v":1},{"$f":"CHOOSE(view,\n'[5]M1a - Model inputs'!O189,\n'[5]M1b - Model inputs'!O189,\n'[5]SM1 - DECC Scenario 3 equiv'!O189,\n'[5]SM2 - DECC Scenario 1 equiv'!O189,\n'[5]SM3 - DECC Scenario 2 equiv'!O189,\n'[5]SM4 - DNO Scenario 4 equiv'!O189,\n'[6]M1a - Model inputs'!O189,\n'[6]M1b - Model inputs'!O189,\n'[6]SM1 - DECC Scenario 3 equiv'!O189,\n'[6]SM2 - DECC Scenario 1 equiv'!O189,\n'[6]SM3 - DECC Scenario 2 equiv'!O189,\n'[6]SM4 - DNO Scenario 4 equiv'!O189)","v":1},{"$f":"CHOOSE(view,\n'[5]M1a - Model inputs'!P189,\n'[5]M1b - Model inputs'!P189,\n'[5]SM1 - DECC Scenario 3 equiv'!P189,\n'[5]SM2 - DECC Scenario 1 equiv'!P189,\n'[5]SM3 - DECC Scenario 2 equiv'!P189,\n'[5]SM4 - DNO Scenario 4 equiv'!P189,\n'[6]M1a - Model inputs'!P189,\n'[6]M1b - Model inputs'!P189,\n'[6]SM1 - DECC Scenario 3 equiv'!P189,\n'[6]SM2 - DECC Scenario 1 equiv'!P189,\n'[6]SM3 - DECC Scenario 2 equiv'!P189,\n'[6]SM4 - DNO Scenario 4 equiv'!P189)","v":1},{"$f":"CHOOSE(view,\n'[5]M1a - Model inputs'!Q189,\n'[5]M1b - Model inputs'!Q189,\n'[5]SM1 - DECC Scenario 3 equiv'!Q189,\n'[5]SM2 - DECC Scenario 1 equiv'!Q189,\n'[5]SM3 - DECC Scenario 2 equiv'!Q189,\n'[5]SM4 - DNO Scenario 4 equiv'!Q189,\n'[6]M1a - Model inputs'!Q189,\n'[6]M1b - Model inputs'!Q189,\n'[6]SM1 - DECC Scenario 3 equiv'!Q189,\n'[6]SM2 - DECC Scenario 1 equiv'!Q189,\n'[6]SM3 - DECC Scenario 2 equiv'!Q189,\n'[6]SM4 - DNO Scenario 4 equiv'!Q189)","v":1},{"$f":"CHOOSE(view,\n'[5]M1a - Model inputs'!R189,\n'[5]M1b - Model inputs'!R189,\n'[5]SM1 - DECC Scenario 3 equiv'!R189,\n'[5]SM2 - DECC Scenario 1 equiv'!R189,\n'[5]SM3 - DECC Scenario 2 equiv'!R189,\n'[5]SM4 - DNO Scenario 4 equiv'!R189,\n'[6]M1a - Model inputs'!R189,\n'[6]M1b - Model inputs'!R189,\n'[6]SM1 - DECC Scenario 3 equiv'!R189,\n'[6]SM2 - DECC Scenario 1 equiv'!R189,\n'[6]SM3 - DECC Scenario 2 equiv'!R189,\n'[6]SM4 - DNO Scenario 4 equiv'!R189)","v":1},{"$f":"CHOOSE(view,\n'[5]M1a - Model inputs'!S189,\n'[5]M1b - Model inputs'!S189,\n'[5]SM1 - DECC Scenario 3 equiv'!S189,\n'[5]SM2 - DECC Scenario 1 equiv'!S189,\n'[5]SM3 - DECC Scenario 2 equiv'!S189,\n'[5]SM4 - DNO Scenario 4 equiv'!S189,\n'[6]M1a - Model inputs'!S189,\n'[6]M1b - Model inputs'!S189,\n'[6]SM1 - DECC Scenario 3 equiv'!S189,\n'[6]SM2 - DECC Scenario 1 equiv'!S189,\n'[6]SM3 - DECC Scenario 2 equiv'!S189,\n'[6]SM4 - DNO Scenario 4 equiv'!S189)","v":1}]
[null,null,null,null,{"$f":"Input!E121","v":"Allocation to faults"},null,"%",null,null,null,null,null,null,null,null,null,null,null,null,null,null,null,null,null,null,null,null,null,null,null,null,null,null,null,null,{"$f":"CHOOSE(view,\n'[5]M1a - Model inputs'!L190,\n'[5]M1b - Model inputs'!L190,\n'[5]SM1 - DECC Scenario 3 equiv'!L190,\n'[5]SM2 - DECC Scenario 1 equiv'!L190,\n'[5]SM3 - DECC Scenario 2 equiv'!L190,\n'[5]SM4 - DNO Scenario 4 equiv'!L190,\n'[6]M1a - Model inputs'!L190,\n'[6]M1b - Model inputs'!L190,\n'[6]SM1 - DECC Scenario 3 equiv'!L190,\n'[6]SM2 - DECC Scenario 1 equiv'!L190,\n'[6]SM3 - DECC Scenario 2 equiv'!L190,\n'[6]SM4 - DNO Scenario 4 equiv'!L190)","v":0},{"$f":"CHOOSE(view,\n'[5]M1a - Model inputs'!M190,\n'[5]M1b - Model inputs'!M190,\n'[5]SM1 - DECC Scenario 3 equiv'!M190,\n'[5]SM2 - DECC Scenario 1 equiv'!M190,\n'[5]SM3 - DECC Scenario 2 equiv'!M190,\n'[5]SM4 - DNO Scenario 4 equiv'!M190,\n'[6]M1a - Model inputs'!M190,\n'[6]M1b - Model inputs'!M190,\n'[6]SM1 - DECC Scenario 3 equiv'!M190,\n'[6]SM2 - DECC Scenario 1 equiv'!M190,\n'[6]SM3 - DECC Scenario 2 equiv'!M190,\n'[6]SM4 - DNO Scenario 4 equiv'!M190)","v":0},{"$f":"CHOOSE(view,\n'[5]M1a - Model inputs'!N190,\n'[5]M1b - Model inputs'!N190,\n'[5]SM1 - DECC Scenario 3 equiv'!N190,\n'[5]SM2 - DECC Scenario 1 equiv'!N190,\n'[5]SM3 - DECC Scenario 2 equiv'!N190,\n'[5]SM4 - DNO Scenario 4 equiv'!N190,\n'[6]M1a - Model inputs'!N190,\n'[6]M1b - Model inputs'!N190,\n'[6]SM1 - DECC Scenario 3 equiv'!N190,\n'[6]SM2 - DECC Scenario 1 equiv'!N190,\n'[6]SM3 - DECC Scenario 2 equiv'!N190,\n'[6]SM4 - DNO Scenario 4 equiv'!N190)","v":0},{"$f":"CHOOSE(view,\n'[5]M1a - Model inputs'!O190,\n'[5]M1b - Model inputs'!O190,\n'[5]SM1 - DECC Scenario 3 equiv'!O190,\n'[5]SM2 - DECC Scenario 1 equiv'!O190,\n'[5]SM3 - DECC Scenario 2 equiv'!O190,\n'[5]SM4 - DNO Scenario 4 equiv'!O190,\n'[6]M1a - Model inputs'!O190,\n'[6]M1b - Model inputs'!O190,\n'[6]SM1 - DECC Scenario 3 equiv'!O190,\n'[6]SM2 - DECC Scenario 1 equiv'!O190,\n'[6]SM3 - DECC Scenario 2 equiv'!O190,\n'[6]SM4 - DNO Scenario 4 equiv'!O190)","v":0},{"$f":"CHOOSE(view,\n'[5]M1a - Model inputs'!P190,\n'[5]M1b - Model inputs'!P190,\n'[5]SM1 - DECC Scenario 3 equiv'!P190,\n'[5]SM2 - DECC Scenario 1 equiv'!P190,\n'[5]SM3 - DECC Scenario 2 equiv'!P190,\n'[5]SM4 - DNO Scenario 4 equiv'!P190,\n'[6]M1a - Model inputs'!P190,\n'[6]M1b - Model inputs'!P190,\n'[6]SM1 - DECC Scenario 3 equiv'!P190,\n'[6]SM2 - DECC Scenario 1 equiv'!P190,\n'[6]SM3 - DECC Scenario 2 equiv'!P190,\n'[6]SM4 - DNO Scenario 4 equiv'!P190)","v":0},{"$f":"CHOOSE(view,\n'[5]M1a - Model inputs'!Q190,\n'[5]M1b - Model inputs'!Q190,\n'[5]SM1 - DECC Scenario 3 equiv'!Q190,\n'[5]SM2 - DECC Scenario 1 equiv'!Q190,\n'[5]SM3 - DECC Scenario 2 equiv'!Q190,\n'[5]SM4 - DNO Scenario 4 equiv'!Q190,\n'[6]M1a - Model inputs'!Q190,\n'[6]M1b - Model inputs'!Q190,\n'[6]SM1 - DECC Scenario 3 equiv'!Q190,\n'[6]SM2 - DECC Scenario 1 equiv'!Q190,\n'[6]SM3 - DECC Scenario 2 equiv'!Q190,\n'[6]SM4 - DNO Scenario 4 equiv'!Q190)","v":0},{"$f":"CHOOSE(view,\n'[5]M1a - Model inputs'!R190,\n'[5]M1b - Model inputs'!R190,\n'[5]SM1 - DECC Scenario 3 equiv'!R190,\n'[5]SM2 - DECC Scenario 1 equiv'!R190,\n'[5]SM3 - DECC Scenario 2 equiv'!R190,\n'[5]SM4 - DNO Scenario 4 equiv'!R190,\n'[6]M1a - Model inputs'!R190,\n'[6]M1b - Model inputs'!R190,\n'[6]SM1 - DECC Scenario 3 equiv'!R190,\n'[6]SM2 - DECC Scenario 1 equiv'!R190,\n'[6]SM3 - DECC Scenario 2 equiv'!R190,\n'[6]SM4 - DNO Scenario 4 equiv'!R190)","v":0},{"$f":"CHOOSE(view,\n'[5]M1a - Model inputs'!S190,\n'[5]M1b - Model inputs'!S190,\n'[5]SM1 - DECC Scenario 3 equiv'!S190,\n'[5]SM2 - DECC Scenario 1 equiv'!S190,\n'[5]SM3 - DECC Scenario 2 equiv'!S190,\n'[5]SM4 - DNO Scenario 4 equiv'!S190,\n'[6]M1a - Model inputs'!S190,\n'[6]M1b - Model inputs'!S190,\n'[6]SM1 - DECC Scenario 3 equiv'!S190,\n'[6]SM2 - DECC Scenario 1 equiv'!S190,\n'[6]SM3 - DECC Scenario 2 equiv'!S190,\n'[6]SM4 - DNO Scenario 4 equiv'!S190)","v":0}]
[null,null,null,null,{"$f":"Input!E122","v":"Allocation to tree cutting"},null,"%",null,null,null,null,null,null,null,null,null,null,null,null,null,null,null,null,null,null,null,null,null,null,null,null,null,null,null,null,{"$f":"CHOOSE(view,\n'[5]M1a - Model inputs'!L191,\n'[5]M1b - Model inputs'!L191,\n'[5]SM1 - DECC Scenario 3 equiv'!L191,\n'[5]SM2 - DECC Scenario 1 equiv'!L191,\n'[5]SM3 - DECC Scenario 2 equiv'!L191,\n'[5]SM4 - DNO Scenario 4 equiv'!L191,\n'[6]M1a - Model inputs'!L191,\n'[6]M1b - Model inputs'!L191,\n'[6]SM1 - DECC Scenario 3 equiv'!L191,\n'[6]SM2 - DECC Scenario 1 equiv'!L191,\n'[6]SM3 - DECC Scenario 2 equiv'!L191,\n'[6]SM4 - DNO Scenario 4 equiv'!L191)","v":0},{"$f":"CHOOSE(view,\n'[5]M1a - Model inputs'!M191,\n'[5]M1b - Model inputs'!M191,\n'[5]SM1 - DECC Scenario 3 equiv'!M191,\n'[5]SM2 - DECC Scenario 1 equiv'!M191,\n'[5]SM3 - DECC Scenario 2 equiv'!M191,\n'[5]SM4 - DNO Scenario 4 equiv'!M191,\n'[6]M1a - Model inputs'!M191,\n'[6]M1b - Model inputs'!M191,\n'[6]SM1 - DECC Scenario 3 equiv'!M191,\n'[6]SM2 - DECC Scenario 1 equiv'!M191,\n'[6]SM3 - DECC Scenario 2 equiv'!M191,\n'[6]SM4 - DNO Scenario 4 equiv'!M191)","v":0},{"$f":"CHOOSE(view,\n'[5]M1a - Model inputs'!N191,\n'[5]M1b - Model inputs'!N191,\n'[5]SM1 - DECC Scenario 3 equiv'!N191,\n'[5]SM2 - DECC Scenario 1 equiv'!N191,\n'[5]SM3 - DECC Scenario 2 equiv'!N191,\n'[5]SM4 - DNO Scenario 4 equiv'!N191,\n'[6]M1a - Model inputs'!N191,\n'[6]M1b - Model inputs'!N191,\n'[6]SM1 - DECC Scenario 3 equiv'!N191,\n'[6]SM2 - DECC Scenario 1 equiv'!N191,\n'[6]SM3 - DECC Scenario 2 equiv'!N191,\n'[6]SM4 - DNO Scenario 4 equiv'!N191)","v":0},{"$f":"CHOOSE(view,\n'[5]M1a - Model inputs'!O191,\n'[5]M1b - Model inputs'!O191,\n'[5]SM1 - DECC Scenario 3 equiv'!O191,\n'[5]SM2 - DECC Scenario 1 equiv'!O191,\n'[5]SM3 - DECC Scenario 2 equiv'!O191,\n'[5]SM4 - DNO Scenario 4 equiv'!O191,\n'[6]M1a - Model inputs'!O191,\n'[6]M1b - Model inputs'!O191,\n'[6]SM1 - DECC Scenario 3 equiv'!O191,\n'[6]SM2 - DECC Scenario 1 equiv'!O191,\n'[6]SM3 - DECC Scenario 2 equiv'!O191,\n'[6]SM4 - DNO Scenario 4 equiv'!O191)","v":0},{"$f":"CHOOSE(view,\n'[5]M1a - Model inputs'!P191,\n'[5]M1b - Model inputs'!P191,\n'[5]SM1 - DECC Scenario 3 equiv'!P191,\n'[5]SM2 - DECC Scenario 1 equiv'!P191,\n'[5]SM3 - DECC Scenario 2 equiv'!P191,\n'[5]SM4 - DNO Scenario 4 equiv'!P191,\n'[6]M1a - Model inputs'!P191,\n'[6]M1b - Model inputs'!P191,\n'[6]SM1 - DECC Scenario 3 equiv'!P191,\n'[6]SM2 - DECC Scenario 1 equiv'!P191,\n'[6]SM3 - DECC Scenario 2 equiv'!P191,\n'[6]SM4 - DNO Scenario 4 equiv'!P191)","v":0},{"$f":"CHOOSE(view,\n'[5]M1a - Model inputs'!Q191,\n'[5]M1b - Model inputs'!Q191,\n'[5]SM1 - DECC Scenario 3 equiv'!Q191,\n'[5]SM2 - DECC Scenario 1 equiv'!Q191,\n'[5]SM3 - DECC Scenario 2 equiv'!Q191,\n'[5]SM4 - DNO Scenario 4 equiv'!Q191,\n'[6]M1a - Model inputs'!Q191,\n'[6]M1b - Model inputs'!Q191,\n'[6]SM1 - DECC Scenario 3 equiv'!Q191,\n'[6]SM2 - DECC Scenario 1 equiv'!Q191,\n'[6]SM3 - DECC Scenario 2 equiv'!Q191,\n'[6]SM4 - DNO Scenario 4 equiv'!Q191)","v":0},{"$f":"CHOOSE(view,\n'[5]M1a - Model inputs'!R191,\n'[5]M1b - Model inputs'!R191,\n'[5]SM1 - DECC Scenario 3 equiv'!R191,\n'[5]SM2 - DECC Scenario 1 equiv'!R191,\n'[5]SM3 - DECC Scenario 2 equiv'!R191,\n'[5]SM4 - DNO Scenario 4 equiv'!R191,\n'[6]M1a - Model inputs'!R191,\n'[6]M1b - Model inputs'!R191,\n'[6]SM1 - DECC Scenario 3 equiv'!R191,\n'[6]SM2 - DECC Scenario 1 equiv'!R191,\n'[6]SM3 - DECC Scenario 2 equiv'!R191,\n'[6]SM4 - DNO Scenario 4 equiv'!R191)","v":0},{"$f":"CHOOSE(view,\n'[5]M1a - Model inputs'!S191,\n'[5]M1b - Model inputs'!S191,\n'[5]SM1 - DECC Scenario 3 equiv'!S191,\n'[5]SM2 - DECC Scenario 1 equiv'!S191,\n'[5]SM3 - DECC Scenario 2 equiv'!S191,\n'[5]SM4 - DNO Scenario 4 equiv'!S191,\n'[6]M1a - Model inputs'!S191,\n'[6]M1b - Model inputs'!S191,\n'[6]SM1 - DECC Scenario 3 equiv'!S191,\n'[6]SM2 - DECC Scenario 1 equiv'!S191,\n'[6]SM3 - DECC Scenario 2 equiv'!S191,\n'[6]SM4 - DNO Scenario 4 equiv'!S191)","v":0}]
[null,null,null,null,{"$f":"Input!E123","v":"Allocation to controllable opex"},null,"%",null,null,null,null,null,null,null,null,null,null,null,null,null,null,null,null,null,null,null,null,null,null,null,null,null,null,null,null,{"$f":"CHOOSE(view,\n'[5]M1a - Model inputs'!L192,\n'[5]M1b - Model inputs'!L192,\n'[5]SM1 - DECC Scenario 3 equiv'!L192,\n'[5]SM2 - DECC Scenario 1 equiv'!L192,\n'[5]SM3 - DECC Scenario 2 equiv'!L192,\n'[5]SM4 - DNO Scenario 4 equiv'!L192,\n'[6]M1a - Model inputs'!L192,\n'[6]M1b - Model inputs'!L192,\n'[6]SM1 - DECC Scenario 3 equiv'!L192,\n'[6]SM2 - DECC Scenario 1 equiv'!L192,\n'[6]SM3 - DECC Scenario 2 equiv'!L192,\n'[6]SM4 - DNO Scenario 4 equiv'!L192)","v":0},{"$f":"CHOOSE(view,\n'[5]M1a - Model inputs'!M192,\n'[5]M1b - Model inputs'!M192,\n'[5]SM1 - DECC Scenario 3 equiv'!M192,\n'[5]SM2 - DECC Scenario 1 equiv'!M192,\n'[5]SM3 - DECC Scenario 2 equiv'!M192,\n'[5]SM4 - DNO Scenario 4 equiv'!M192,\n'[6]M1a - Model inputs'!M192,\n'[6]M1b - Model inputs'!M192,\n'[6]SM1 - DECC Scenario 3 equiv'!M192,\n'[6]SM2 - DECC Scenario 1 equiv'!M192,\n'[6]SM3 - DECC Scenario 2 equiv'!M192,\n'[6]SM4 - DNO Scenario 4 equiv'!M192)","v":0},{"$f":"CHOOSE(view,\n'[5]M1a - Model inputs'!N192,\n'[5]M1b - Model inputs'!N192,\n'[5]SM1 - DECC Scenario 3 equiv'!N192,\n'[5]SM2 - DECC Scenario 1 equiv'!N192,\n'[5]SM3 - DECC Scenario 2 equiv'!N192,\n'[5]SM4 - DNO Scenario 4 equiv'!N192,\n'[6]M1a - Model inputs'!N192,\n'[6]M1b - Model inputs'!N192,\n'[6]SM1 - DECC Scenario 3 equiv'!N192,\n'[6]SM2 - DECC Scenario 1 equiv'!N192,\n'[6]SM3 - DECC Scenario 2 equiv'!N192,\n'[6]SM4 - DNO Scenario 4 equiv'!N192)","v":0},{"$f":"CHOOSE(view,\n'[5]M1a - Model inputs'!O192,\n'[5]M1b - Model inputs'!O192,\n'[5]SM1 - DECC Scenario 3 equiv'!O192,\n'[5]SM2 - DECC Scenario 1 equiv'!O192,\n'[5]SM3 - DECC Scenario 2 equiv'!O192,\n'[5]SM4 - DNO Scenario 4 equiv'!O192,\n'[6]M1a - Model inputs'!O192,\n'[6]M1b - Model inputs'!O192,\n'[6]SM1 - DECC Scenario 3 equiv'!O192,\n'[6]SM2 - DECC Scenario 1 equiv'!O192,\n'[6]SM3 - DECC Scenario 2 equiv'!O192,\n'[6]SM4 - DNO Scenario 4 equiv'!O192)","v":0},{"$f":"CHOOSE(view,\n'[5]M1a - Model inputs'!P192,\n'[5]M1b - Model inputs'!P192,\n'[5]SM1 - DECC Scenario 3 equiv'!P192,\n'[5]SM2 - DECC Scenario 1 equiv'!P192,\n'[5]SM3 - DECC Scenario 2 equiv'!P192,\n'[5]SM4 - DNO Scenario 4 equiv'!P192,\n'[6]M1a - Model inputs'!P192,\n'[6]M1b - Model inputs'!P192,\n'[6]SM1 - DECC Scenario 3 equiv'!P192,\n'[6]SM2 - DECC Scenario 1 equiv'!P192,\n'[6]SM3 - DECC Scenario 2 equiv'!P192,\n'[6]SM4 - DNO Scenario 4 equiv'!P192)","v":0},{"$f":"CHOOSE(view,\n'[5]M1a - Model inputs'!Q192,\n'[5]M1b - Model inputs'!Q192,\n'[5]SM1 - DECC Scenario 3 equiv'!Q192,\n'[5]SM2 - DECC Scenario 1 equiv'!Q192,\n'[5]SM3 - DECC Scenario 2 equiv'!Q192,\n'[5]SM4 - DNO Scenario 4 equiv'!Q192,\n'[6]M1a - Model inputs'!Q192,\n'[6]M1b - Model inputs'!Q192,\n'[6]SM1 - DECC Scenario 3 equiv'!Q192,\n'[6]SM2 - DECC Scenario 1 equiv'!Q192,\n'[6]SM3 - DECC Scenario 2 equiv'!Q192,\n'[6]SM4 - DNO Scenario 4 equiv'!Q192)","v":0},{"$f":"CHOOSE(view,\n'[5]M1a - Model inputs'!R192,\n'[5]M1b - Model inputs'!R192,\n'[5]SM1 - DECC Scenario 3 equiv'!R192,\n'[5]SM2 - DECC Scenario 1 equiv'!R192,\n'[5]SM3 - DECC Scenario 2 equiv'!R192,\n'[5]SM4 - DNO Scenario 4 equiv'!R192,\n'[6]M1a - Model inputs'!R192,\n'[6]M1b - Model inputs'!R192,\n'[6]SM1 - DECC Scenario 3 equiv'!R192,\n'[6]SM2 - DECC Scenario 1 equiv'!R192,\n'[6]SM3 - DECC Scenario 2 equiv'!R192,\n'[6]SM4 - DNO Scenario 4 equiv'!R192)","v":0},{"$f":"CHOOSE(view,\n'[5]M1a - Model inputs'!S192,\n'[5]M1b - Model inputs'!S192,\n'[5]SM1 - DECC Scenario 3 equiv'!S192,\n'[5]SM2 - DECC Scenario 1 equiv'!S192,\n'[5]SM3 - DECC Scenario 2 equiv'!S192,\n'[5]SM4 - DNO Scenario 4 equiv'!S192,\n'[6]M1a - Model inputs'!S192,\n'[6]M1b - Model inputs'!S192,\n'[6]SM1 - DECC Scenario 3 equiv'!S192,\n'[6]SM2 - DECC Scenario 1 equiv'!S192,\n'[6]SM3 - DECC Scenario 2 equiv'!S192,\n'[6]SM4 - DNO Scenario 4 equiv'!S192)","v":0}]
[]
[null,null,null,null,{"$f":"Input!E125","v":"Allowed uncertain costs (Worst served customers)"},null,"£m 12/13 prices",null,null,null,null,null,null,null,null,null,null,null,null,null,null,null,null,null,null,null,null,null,null,null,null,null,null,null,null,{"$f":"AJ21","v":0},{"$f":"AK21","v":0.10218683049326654},0.10306972596029303,0,0,0,0,0]
[null,null,null,null,{"$f":"Input!E126","v":"Allocation to load related capex"},null,"%",null,null,null,null,null,null,null,null,null,null,null,null,null,null,null,null,null,null,null,null,null,null,null,null,null,null,null,null,{"$f":"CHOOSE(view,\n'[5]M1a - Model inputs'!L195,\n'[5]M1b - Model inputs'!L195,\n'[5]SM1 - DECC Scenario 3 equiv'!L195,\n'[5]SM2 - DECC Scenario 1 equiv'!L195,\n'[5]SM3 - DECC Scenario 2 equiv'!L195,\n'[5]SM4 - DNO Scenario 4 equiv'!L195,\n'[6]M1a - Model inputs'!L195,\n'[6]M1b - Model inputs'!L195,\n'[6]SM1 - DECC Scenario 3 equiv'!L195,\n'[6]SM2 - DECC Scenario 1 equiv'!L195,\n'[6]SM3 - DECC Scenario 2 equiv'!L195,\n'[6]SM4 - DNO Scenario 4 equiv'!L195)","v":0},{"$f":"CHOOSE(view,\n'[5]M1a - Model inputs'!M195,\n'[5]M1b - Model inputs'!M195,\n'[5]SM1 - DECC Scenario 3 equiv'!M195,\n'[5]SM2 - DECC Scenario 1 equiv'!M195,\n'[5]SM3 - DECC Scenario 2 equiv'!M195,\n'[5]SM4 - DNO Scenario 4 equiv'!M195,\n'[6]M1a - Model inputs'!M195,\n'[6]M1b - Model inputs'!M195,\n'[6]SM1 - DECC Scenario 3 equiv'!M195,\n'[6]SM2 - DECC Scenario 1 equiv'!M195,\n'[6]SM3 - DECC Scenario 2 equiv'!M195,\n'[6]SM4 - DNO Scenario 4 equiv'!M195)","v":0},{"$f":"CHOOSE(view,\n'[5]M1a - Model inputs'!N195,\n'[5]M1b - Model inputs'!N195,\n'[5]SM1 - DECC Scenario 3 equiv'!N195,\n'[5]SM2 - DECC Scenario 1 equiv'!N195,\n'[5]SM3 - DECC Scenario 2 equiv'!N195,\n'[5]SM4 - DNO Scenario 4 equiv'!N195,\n'[6]M1a - Model inputs'!N195,\n'[6]M1b - Model inputs'!N195,\n'[6]SM1 - DECC Scenario 3 equiv'!N195,\n'[6]SM2 - DECC Scenario 1 equiv'!N195,\n'[6]SM3 - DECC Scenario 2 equiv'!N195,\n'[6]SM4 - DNO Scenario 4 equiv'!N195)","v":0},{"$f":"CHOOSE(view,\n'[5]M1a - Model inputs'!O195,\n'[5]M1b - Model inputs'!O195,\n'[5]SM1 - DECC Scenario 3 equiv'!O195,\n'[5]SM2 - DECC Scenario 1 equiv'!O195,\n'[5]SM3 - DECC Scenario 2 equiv'!O195,\n'[5]SM4 - DNO Scenario 4 equiv'!O195,\n'[6]M1a - Model inputs'!O195,\n'[6]M1b - Model inputs'!O195,\n'[6]SM1 - DECC Scenario 3 equiv'!O195,\n'[6]SM2 - DECC Scenario 1 equiv'!O195,\n'[6]SM3 - DECC Scenario 2 equiv'!O195,\n'[6]SM4 - DNO Scenario 4 equiv'!O195)","v":0},{"$f":"CHOOSE(view,\n'[5]M1a - Model inputs'!P195,\n'[5]M1b - Model inputs'!P195,\n'[5]SM1 - DECC Scenario 3 equiv'!P195,\n'[5]SM2 - DECC Scenario 1 equiv'!P195,\n'[5]SM3 - DECC Scenario 2 equiv'!P195,\n'[5]SM4 - DNO Scenario 4 equiv'!P195,\n'[6]M1a - Model inputs'!P195,\n'[6]M1b - Model inputs'!P195,\n'[6]SM1 - DECC Scenario 3 equiv'!P195,\n'[6]SM2 - DECC Scenario 1 equiv'!P195,\n'[6]SM3 - DECC Scenario 2 equiv'!P195,\n'[6]SM4 - DNO Scenario 4 equiv'!P195)","v":0},{"$f":"CHOOSE(view,\n'[5]M1a - Model inputs'!Q195,\n'[5]M1b - Model inputs'!Q195,\n'[5]SM1 - DECC Scenario 3 equiv'!Q195,\n'[5]SM2 - DECC Scenario 1 equiv'!Q195,\n'[5]SM3 - DECC Scenario 2 equiv'!Q195,\n'[5]SM4 - DNO Scenario 4 equiv'!Q195,\n'[6]M1a - Model inputs'!Q195,\n'[6]M1b - Model inputs'!Q195,\n'[6]SM1 - DECC Scenario 3 equiv'!Q195,\n'[6]SM2 - DECC Scenario 1 equiv'!Q195,\n'[6]SM3 - DECC Scenario 2 equiv'!Q195,\n'[6]SM4 - DNO Scenario 4 equiv'!Q195)","v":0},{"$f":"CHOOSE(view,\n'[5]M1a - Model inputs'!R195,\n'[5]M1b - Model inputs'!R195,\n'[5]SM1 - DECC Scenario 3 equiv'!R195,\n'[5]SM2 - DECC Scenario 1 equiv'!R195,\n'[5]SM3 - DECC Scenario 2 equiv'!R195,\n'[5]SM4 - DNO Scenario 4 equiv'!R195,\n'[6]M1a - Model inputs'!R195,\n'[6]M1b - Model inputs'!R195,\n'[6]SM1 - DECC Scenario 3 equiv'!R195,\n'[6]SM2 - DECC Scenario 1 equiv'!R195,\n'[6]SM3 - DECC Scenario 2 equiv'!R195,\n'[6]SM4 - DNO Scenario 4 equiv'!R195)","v":0},{"$f":"CHOOSE(view,\n'[5]M1a - Model inputs'!S195,\n'[5]M1b - Model inputs'!S195,\n'[5]SM1 - DECC Scenario 3 equiv'!S195,\n'[5]SM2 - DECC Scenario 1 equiv'!S195,\n'[5]SM3 - DECC Scenario 2 equiv'!S195,\n'[5]SM4 - DNO Scenario 4 equiv'!S195,\n'[6]M1a - Model inputs'!S195,\n'[6]M1b - Model inputs'!S195,\n'[6]SM1 - DECC Scenario 3 equiv'!S195,\n'[6]SM2 - DECC Scenario 1 equiv'!S195,\n'[6]SM3 - DECC Scenario 2 equiv'!S195,\n'[6]SM4 - DNO Scenario 4 equiv'!S195)","v":0}]
[null,null,null,null,{"$f":"Input!E127","v":"Allocation to non-load related capex - asset replacement"},null,"%",null,null,null,null,null,null,null,null,null,null,null,null,null,null,null,null,null,null,null,null,null,null,null,null,null,null,null,null,{"$f":"CHOOSE(view,\n'[5]M1a - Model inputs'!L196,\n'[5]M1b - Model inputs'!L196,\n'[5]SM1 - DECC Scenario 3 equiv'!L196,\n'[5]SM2 - DECC Scenario 1 equiv'!L196,\n'[5]SM3 - DECC Scenario 2 equiv'!L196,\n'[5]SM4 - DNO Scenario 4 equiv'!L196,\n'[6]M1a - Model inputs'!L196,\n'[6]M1b - Model inputs'!L196,\n'[6]SM1 - DECC Scenario 3 equiv'!L196,\n'[6]SM2 - DECC Scenario 1 equiv'!L196,\n'[6]SM3 - DECC Scenario 2 equiv'!L196,\n'[6]SM4 - DNO Scenario 4 equiv'!L196)","v":1},{"$f":"CHOOSE(view,\n'[5]M1a - Model inputs'!M196,\n'[5]M1b - Model inputs'!M196,\n'[5]SM1 - DECC Scenario 3 equiv'!M196,\n'[5]SM2 - DECC Scenario 1 equiv'!M196,\n'[5]SM3 - DECC Scenario 2 equiv'!M196,\n'[5]SM4 - DNO Scenario 4 equiv'!M196,\n'[6]M1a - Model inputs'!M196,\n'[6]M1b - Model inputs'!M196,\n'[6]SM1 - DECC Scenario 3 equiv'!M196,\n'[6]SM2 - DECC Scenario 1 equiv'!M196,\n'[6]SM3 - DECC Scenario 2 equiv'!M196,\n'[6]SM4 - DNO Scenario 4 equiv'!M196)","v":1},{"$f":"CHOOSE(view,\n'[5]M1a - Model inputs'!N196,\n'[5]M1b - Model inputs'!N196,\n'[5]SM1 - DECC Scenario 3 equiv'!N196,\n'[5]SM2 - DECC Scenario 1 equiv'!N196,\n'[5]SM3 - DECC Scenario 2 equiv'!N196,\n'[5]SM4 - DNO Scenario 4 equiv'!N196,\n'[6]M1a - Model inputs'!N196,\n'[6]M1b - Model inputs'!N196,\n'[6]SM1 - DECC Scenario 3 equiv'!N196,\n'[6]SM2 - DECC Scenario 1 equiv'!N196,\n'[6]SM3 - DECC Scenario 2 equiv'!N196,\n'[6]SM4 - DNO Scenario 4 equiv'!N196)","v":1},{"$f":"CHOOSE(view,\n'[5]M1a - Model inputs'!O196,\n'[5]M1b - Model inputs'!O196,\n'[5]SM1 - DECC Scenario 3 equiv'!O196,\n'[5]SM2 - DECC Scenario 1 equiv'!O196,\n'[5]SM3 - DECC Scenario 2 equiv'!O196,\n'[5]SM4 - DNO Scenario 4 equiv'!O196,\n'[6]M1a - Model inputs'!O196,\n'[6]M1b - Model inputs'!O196,\n'[6]SM1 - DECC Scenario 3 equiv'!O196,\n'[6]SM2 - DECC Scenario 1 equiv'!O196,\n'[6]SM3 - DECC Scenario 2 equiv'!O196,\n'[6]SM4 - DNO Scenario 4 equiv'!O196)","v":1},{"$f":"CHOOSE(view,\n'[5]M1a - Model inputs'!P196,\n'[5]M1b - Model inputs'!P196,\n'[5]SM1 - DECC Scenario 3 equiv'!P196,\n'[5]SM2 - DECC Scenario 1 equiv'!P196,\n'[5]SM3 - DECC Scenario 2 equiv'!P196,\n'[5]SM4 - DNO Scenario 4 equiv'!P196,\n'[6]M1a - Model inputs'!P196,\n'[6]M1b - Model inputs'!P196,\n'[6]SM1 - DECC Scenario 3 equiv'!P196,\n'[6]SM2 - DECC Scenario 1 equiv'!P196,\n'[6]SM3 - DECC Scenario 2 equiv'!P196,\n'[6]SM4 - DNO Scenario 4 equiv'!P196)","v":1},{"$f":"CHOOSE(view,\n'[5]M1a - Model inputs'!Q196,\n'[5]M1b - Model inputs'!Q196,\n'[5]SM1 - DECC Scenario 3 equiv'!Q196,\n'[5]SM2 - DECC Scenario 1 equiv'!Q196,\n'[5]SM3 - DECC Scenario 2 equiv'!Q196,\n'[5]SM4 - DNO Scenario 4 equiv'!Q196,\n'[6]M1a - Model inputs'!Q196,\n'[6]M1b - Model inputs'!Q196,\n'[6]SM1 - DECC Scenario 3 equiv'!Q196,\n'[6]SM2 - DECC Scenario 1 equiv'!Q196,\n'[6]SM3 - DECC Scenario 2 equiv'!Q196,\n'[6]SM4 - DNO Scenario 4 equiv'!Q196)","v":1},{"$f":"CHOOSE(view,\n'[5]M1a - Model inputs'!R196,\n'[5]M1b - Model inputs'!R196,\n'[5]SM1 - DECC Scenario 3 equiv'!R196,\n'[5]SM2 - DECC Scenario 1 equiv'!R196,\n'[5]SM3 - DECC Scenario 2 equiv'!R196,\n'[5]SM4 - DNO Scenario 4 equiv'!R196,\n'[6]M1a - Model inputs'!R196,\n'[6]M1b - Model inputs'!R196,\n'[6]SM1 - DECC Scenario 3 equiv'!R196,\n'[6]SM2 - DECC Scenario 1 equiv'!R196,\n'[6]SM3 - DECC Scenario 2 equiv'!R196,\n'[6]SM4 - DNO Scenario 4 equiv'!R196)","v":1},{"$f":"CHOOSE(view,\n'[5]M1a - Model inputs'!S196,\n'[5]M1b - Model inputs'!S196,\n'[5]SM1 - DECC Scenario 3 equiv'!S196,\n'[5]SM2 - DECC Scenario 1 equiv'!S196,\n'[5]SM3 - DECC Scenario 2 equiv'!S196,\n'[5]SM4 - DNO Scenario 4 equiv'!S196,\n'[6]M1a - Model inputs'!S196,\n'[6]M1b - Model inputs'!S196,\n'[6]SM1 - DECC Scenario 3 equiv'!S196,\n'[6]SM2 - DECC Scenario 1 equiv'!S196,\n'[6]SM3 - DECC Scenario 2 equiv'!S196,\n'[6]SM4 - DNO Scenario 4 equiv'!S196)","v":1}]
[null,null,null,null,{"$f":"Input!E128","v":"Allocation to non-load related capex - other"},null,"%",null,null,null,null,null,null,null,null,null,null,null,null,null,null,null,null,null,null,null,null,null,null,null,null,null,null,null,null,{"$f":"CHOOSE(view,\n'[5]M1a - Model inputs'!L197,\n'[5]M1b - Model inputs'!L197,\n'[5]SM1 - DECC Scenario 3 equiv'!L197,\n'[5]SM2 - DECC Scenario 1 equiv'!L197,\n'[5]SM3 - DECC Scenario 2 equiv'!L197,\n'[5]SM4 - DNO Scenario 4 equiv'!L197,\n'[6]M1a - Model inputs'!L197,\n'[6]M1b - Model inputs'!L197,\n'[6]SM1 - DECC Scenario 3 equiv'!L197,\n'[6]SM2 - DECC Scenario 1 equiv'!L197,\n'[6]SM3 - DECC Scenario 2 equiv'!L197,\n'[6]SM4 - DNO Scenario 4 equiv'!L197)","v":0},{"$f":"CHOOSE(view,\n'[5]M1a - Model inputs'!M197,\n'[5]M1b - Model inputs'!M197,\n'[5]SM1 - DECC Scenario 3 equiv'!M197,\n'[5]SM2 - DECC Scenario 1 equiv'!M197,\n'[5]SM3 - DECC Scenario 2 equiv'!M197,\n'[5]SM4 - DNO Scenario 4 equiv'!M197,\n'[6]M1a - Model inputs'!M197,\n'[6]M1b - Model inputs'!M197,\n'[6]SM1 - DECC Scenario 3 equiv'!M197,\n'[6]SM2 - DECC Scenario 1 equiv'!M197,\n'[6]SM3 - DECC Scenario 2 equiv'!M197,\n'[6]SM4 - DNO Scenario 4 equiv'!M197)","v":0},{"$f":"CHOOSE(view,\n'[5]M1a - Model inputs'!N197,\n'[5]M1b - Model inputs'!N197,\n'[5]SM1 - DECC Scenario 3 equiv'!N197,\n'[5]SM2 - DECC Scenario 1 equiv'!N197,\n'[5]SM3 - DECC Scenario 2 equiv'!N197,\n'[5]SM4 - DNO Scenario 4 equiv'!N197,\n'[6]M1a - Model inputs'!N197,\n'[6]M1b - Model inputs'!N197,\n'[6]SM1 - DECC Scenario 3 equiv'!N197,\n'[6]SM2 - DECC Scenario 1 equiv'!N197,\n'[6]SM3 - DECC Scenario 2 equiv'!N197,\n'[6]SM4 - DNO Scenario 4 equiv'!N197)","v":0},{"$f":"CHOOSE(view,\n'[5]M1a - Model inputs'!O197,\n'[5]M1b - Model inputs'!O197,\n'[5]SM1 - DECC Scenario 3 equiv'!O197,\n'[5]SM2 - DECC Scenario 1 equiv'!O197,\n'[5]SM3 - DECC Scenario 2 equiv'!O197,\n'[5]SM4 - DNO Scenario 4 equiv'!O197,\n'[6]M1a - Model inputs'!O197,\n'[6]M1b - Model inputs'!O197,\n'[6]SM1 - DECC Scenario 3 equiv'!O197,\n'[6]SM2 - DECC Scenario 1 equiv'!O197,\n'[6]SM3 - DECC Scenario 2 equiv'!O197,\n'[6]SM4 - DNO Scenario 4 equiv'!O197)","v":0},{"$f":"CHOOSE(view,\n'[5]M1a - Model inputs'!P197,\n'[5]M1b - Model inputs'!P197,\n'[5]SM1 - DECC Scenario 3 equiv'!P197,\n'[5]SM2 - DECC Scenario 1 equiv'!P197,\n'[5]SM3 - DECC Scenario 2 equiv'!P197,\n'[5]SM4 - DNO Scenario 4 equiv'!P197,\n'[6]M1a - Model inputs'!P197,\n'[6]M1b - Model inputs'!P197,\n'[6]SM1 - DECC Scenario 3 equiv'!P197,\n'[6]SM2 - DECC Scenario 1 equiv'!P197,\n'[6]SM3 - DECC Scenario 2 equiv'!P197,\n'[6]SM4 - DNO Scenario 4 equiv'!P197)","v":0},{"$f":"CHOOSE(view,\n'[5]M1a - Model inputs'!Q197,\n'[5]M1b - Model inputs'!Q197,\n'[5]SM1 - DECC Scenario 3 equiv'!Q197,\n'[5]SM2 - DECC Scenario 1 equiv'!Q197,\n'[5]SM3 - DECC Scenario 2 equiv'!Q197,\n'[5]SM4 - DNO Scenario 4 equiv'!Q197,\n'[6]M1a - Model inputs'!Q197,\n'[6]M1b - Model inputs'!Q197,\n'[6]SM1 - DECC Scenario 3 equiv'!Q197,\n'[6]SM2 - DECC Scenario 1 equiv'!Q197,\n'[6]SM3 - DECC Scenario 2 equiv'!Q197,\n'[6]SM4 - DNO Scenario 4 equiv'!Q197)","v":0},{"$f":"CHOOSE(view,\n'[5]M1a - Model inputs'!R197,\n'[5]M1b - Model inputs'!R197,\n'[5]SM1 - DECC Scenario 3 equiv'!R197,\n'[5]SM2 - DECC Scenario 1 equiv'!R197,\n'[5]SM3 - DECC Scenario 2 equiv'!R197,\n'[5]SM4 - DNO Scenario 4 equiv'!R197,\n'[6]M1a - Model inputs'!R197,\n'[6]M1b - Model inputs'!R197,\n'[6]SM1 - DECC Scenario 3 equiv'!R197,\n'[6]SM2 - DECC Scenario 1 equiv'!R197,\n'[6]SM3 - DECC Scenario 2 equiv'!R197,\n'[6]SM4 - DNO Scenario 4 equiv'!R197)","v":0},{"$f":"CHOOSE(view,\n'[5]M1a - Model inputs'!S197,\n'[5]M1b - Model inputs'!S197,\n'[5]SM1 - DECC Scenario 3 equiv'!S197,\n'[5]SM2 - DECC Scenario 1 equiv'!S197,\n'[5]SM3 - DECC Scenario 2 equiv'!S197,\n'[5]SM4 - DNO Scenario 4 equiv'!S197,\n'[6]M1a - Model inputs'!S197,\n'[6]M1b - Model inputs'!S197,\n'[6]SM1 - DECC Scenario 3 equiv'!S197,\n'[6]SM2 - DECC Scenario 1 equiv'!S197,\n'[6]SM3 - DECC Scenario 2 equiv'!S197,\n'[6]SM4 - DNO Scenario 4 equiv'!S197)","v":0}]
[null,null,null,null,{"$f":"Input!E129","v":"Allocation to faults"},null,"%",null,null,null,null,null,null,null,null,null,null,null,null,null,null,null,null,null,null,null,null,null,null,null,null,null,null,null,null,{"$f":"CHOOSE(view,\n'[5]M1a - Model inputs'!L198,\n'[5]M1b - Model inputs'!L198,\n'[5]SM1 - DECC Scenario 3 equiv'!L198,\n'[5]SM2 - DECC Scenario 1 equiv'!L198,\n'[5]SM3 - DECC Scenario 2 equiv'!L198,\n'[5]SM4 - DNO Scenario 4 equiv'!L198,\n'[6]M1a - Model inputs'!L198,\n'[6]M1b - Model inputs'!L198,\n'[6]SM1 - DECC Scenario 3 equiv'!L198,\n'[6]SM2 - DECC Scenario 1 equiv'!L198,\n'[6]SM3 - DECC Scenario 2 equiv'!L198,\n'[6]SM4 - DNO Scenario 4 equiv'!L198)","v":0},{"$f":"CHOOSE(view,\n'[5]M1a - Model inputs'!M198,\n'[5]M1b - Model inputs'!M198,\n'[5]SM1 - DECC Scenario 3 equiv'!M198,\n'[5]SM2 - DECC Scenario 1 equiv'!M198,\n'[5]SM3 - DECC Scenario 2 equiv'!M198,\n'[5]SM4 - DNO Scenario 4 equiv'!M198,\n'[6]M1a - Model inputs'!M198,\n'[6]M1b - Model inputs'!M198,\n'[6]SM1 - DECC Scenario 3 equiv'!M198,\n'[6]SM2 - DECC Scenario 1 equiv'!M198,\n'[6]SM3 - DECC Scenario 2 equiv'!M198,\n'[6]SM4 - DNO Scenario 4 equiv'!M198)","v":0},{"$f":"CHOOSE(view,\n'[5]M1a - Model inputs'!N198,\n'[5]M1b - Model inputs'!N198,\n'[5]SM1 - DECC Scenario 3 equiv'!N198,\n'[5]SM2 - DECC Scenario 1 equiv'!N198,\n'[5]SM3 - DECC Scenario 2 equiv'!N198,\n'[5]SM4 - DNO Scenario 4 equiv'!N198,\n'[6]M1a - Model inputs'!N198,\n'[6]M1b - Model inputs'!N198,\n'[6]SM1 - DECC Scenario 3 equiv'!N198,\n'[6]SM2 - DECC Scenario 1 equiv'!N198,\n'[6]SM3 - DECC Scenario 2 equiv'!N198,\n'[6]SM4 - DNO Scenario 4 equiv'!N198)","v":0},{"$f":"CHOOSE(view,\n'[5]M1a - Model inputs'!O198,\n'[5]M1b - Model inputs'!O198,\n'[5]SM1 - DECC Scenario 3 equiv'!O198,\n'[5]SM2 - DECC Scenario 1 equiv'!O198,\n'[5]SM3 - DECC Scenario 2 equiv'!O198,\n'[5]SM4 - DNO Scenario 4 equiv'!O198,\n'[6]M1a - Model inputs'!O198,\n'[6]M1b - Model inputs'!O198,\n'[6]SM1 - DECC Scenario 3 equiv'!O198,\n'[6]SM2 - DECC Scenario 1 equiv'!O198,\n'[6]SM3 - DECC Scenario 2 equiv'!O198,\n'[6]SM4 - DNO Scenario 4 equiv'!O198)","v":0},{"$f":"CHOOSE(view,\n'[5]M1a - Model inputs'!P198,\n'[5]M1b - Model inputs'!P198,\n'[5]SM1 - DECC Scenario 3 equiv'!P198,\n'[5]SM2 - DECC Scenario 1 equiv'!P198,\n'[5]SM3 - DECC Scenario 2 equiv'!P198,\n'[5]SM4 - DNO Scenario 4 equiv'!P198,\n'[6]M1a - Model inputs'!P198,\n'[6]M1b - Model inputs'!P198,\n'[6]SM1 - DECC Scenario 3 equiv'!P198,\n'[6]SM2 - DECC Scenario 1 equiv'!P198,\n'[6]SM3 - DECC Scenario 2 equiv'!P198,\n'[6]SM4 - DNO Scenario 4 equiv'!P198)","v":0},{"$f":"CHOOSE(view,\n'[5]M1a - Model inputs'!Q198,\n'[5]M1b - Model inputs'!Q198,\n'[5]SM1 - DECC Scenario 3 equiv'!Q198,\n'[5]SM2 - DECC Scenario 1 equiv'!Q198,\n'[5]SM3 - DECC Scenario 2 equiv'!Q198,\n'[5]SM4 - DNO Scenario 4 equiv'!Q198,\n'[6]M1a - Model inputs'!Q198,\n'[6]M1b - Model inputs'!Q198,\n'[6]SM1 - DECC Scenario 3 equiv'!Q198,\n'[6]SM2 - DECC Scenario 1 equiv'!Q198,\n'[6]SM3 - DECC Scenario 2 equiv'!Q198,\n'[6]SM4 - DNO Scenario 4 equiv'!Q198)","v":0},{"$f":"CHOOSE(view,\n'[5]M1a - Model inputs'!R198,\n'[5]M1b - Model inputs'!R198,\n'[5]SM1 - DECC Scenario 3 equiv'!R198,\n'[5]SM2 - DECC Scenario 1 equiv'!R198,\n'[5]SM3 - DECC Scenario 2 equiv'!R198,\n'[5]SM4 - DNO Scenario 4 equiv'!R198,\n'[6]M1a - Model inputs'!R198,\n'[6]M1b - Model inputs'!R198,\n'[6]SM1 - DECC Scenario 3 equiv'!R198,\n'[6]SM2 - DECC Scenario 1 equiv'!R198,\n'[6]SM3 - DECC Scenario 2 equiv'!R198,\n'[6]SM4 - DNO Scenario 4 equiv'!R198)","v":0},{"$f":"CHOOSE(view,\n'[5]M1a - Model inputs'!S198,\n'[5]M1b - Model inputs'!S198,\n'[5]SM1 - DECC Scenario 3 equiv'!S198,\n'[5]SM2 - DECC Scenario 1 equiv'!S198,\n'[5]SM3 - DECC Scenario 2 equiv'!S198,\n'[5]SM4 - DNO Scenario 4 equiv'!S198,\n'[6]M1a - Model inputs'!S198,\n'[6]M1b - Model inputs'!S198,\n'[6]SM1 - DECC Scenario 3 equiv'!S198,\n'[6]SM2 - DECC Scenario 1 equiv'!S198,\n'[6]SM3 - DECC Scenario 2 equiv'!S198,\n'[6]SM4 - DNO Scenario 4 equiv'!S198)","v":0}]
[null,null,null,null,{"$f":"Input!E130","v":"Allocation to tree cutting"},null,"%",null,null,null,null,null,null,null,null,null,null,null,null,null,null,null,null,null,null,null,null,null,null,null,null,null,null,null,null,{"$f":"CHOOSE(view,\n'[5]M1a - Model inputs'!L199,\n'[5]M1b - Model inputs'!L199,\n'[5]SM1 - DECC Scenario 3 equiv'!L199,\n'[5]SM2 - DECC Scenario 1 equiv'!L199,\n'[5]SM3 - DECC Scenario 2 equiv'!L199,\n'[5]SM4 - DNO Scenario 4 equiv'!L199,\n'[6]M1a - Model inputs'!L199,\n'[6]M1b - Model inputs'!L199,\n'[6]SM1 - DECC Scenario 3 equiv'!L199,\n'[6]SM2 - DECC Scenario 1 equiv'!L199,\n'[6]SM3 - DECC Scenario 2 equiv'!L199,\n'[6]SM4 - DNO Scenario 4 equiv'!L199)","v":0},{"$f":"CHOOSE(view,\n'[5]M1a - Model inputs'!M199,\n'[5]M1b - Model inputs'!M199,\n'[5]SM1 - DECC Scenario 3 equiv'!M199,\n'[5]SM2 - DECC Scenario 1 equiv'!M199,\n'[5]SM3 - DECC Scenario 2 equiv'!M199,\n'[5]SM4 - DNO Scenario 4 equiv'!M199,\n'[6]M1a - Model inputs'!M199,\n'[6]M1b - Model inputs'!M199,\n'[6]SM1 - DECC Scenario 3 equiv'!M199,\n'[6]SM2 - DECC Scenario 1 equiv'!M199,\n'[6]SM3 - DECC Scenario 2 equiv'!M199,\n'[6]SM4 - DNO Scenario 4 equiv'!M199)","v":0},{"$f":"CHOOSE(view,\n'[5]M1a - Model inputs'!N199,\n'[5]M1b - Model inputs'!N199,\n'[5]SM1 - DECC Scenario 3 equiv'!N199,\n'[5]SM2 - DECC Scenario 1 equiv'!N199,\n'[5]SM3 - DECC Scenario 2 equiv'!N199,\n'[5]SM4 - DNO Scenario 4 equiv'!N199,\n'[6]M1a - Model inputs'!N199,\n'[6]M1b - Model inputs'!N199,\n'[6]SM1 - DECC Scenario 3 equiv'!N199,\n'[6]SM2 - DECC Scenario 1 equiv'!N199,\n'[6]SM3 - DECC Scenario 2 equiv'!N199,\n'[6]SM4 - DNO Scenario 4 equiv'!N199)","v":0},{"$f":"CHOOSE(view,\n'[5]M1a - Model inputs'!O199,\n'[5]M1b - Model inputs'!O199,\n'[5]SM1 - DECC Scenario 3 equiv'!O199,\n'[5]SM2 - DECC Scenario 1 equiv'!O199,\n'[5]SM3 - DECC Scenario 2 equiv'!O199,\n'[5]SM4 - DNO Scenario 4 equiv'!O199,\n'[6]M1a - Model inputs'!O199,\n'[6]M1b - Model inputs'!O199,\n'[6]SM1 - DECC Scenario 3 equiv'!O199,\n'[6]SM2 - DECC Scenario 1 equiv'!O199,\n'[6]SM3 - DECC Scenario 2 equiv'!O199,\n'[6]SM4 - DNO Scenario 4 equiv'!O199)","v":0},{"$f":"CHOOSE(view,\n'[5]M1a - Model inputs'!P199,\n'[5]M1b - Model inputs'!P199,\n'[5]SM1 - DECC Scenario 3 equiv'!P199,\n'[5]SM2 - DECC Scenario 1 equiv'!P199,\n'[5]SM3 - DECC Scenario 2 equiv'!P199,\n'[5]SM4 - DNO Scenario 4 equiv'!P199,\n'[6]M1a - Model inputs'!P199,\n'[6]M1b - Model inputs'!P199,\n'[6]SM1 - DECC Scenario 3 equiv'!P199,\n'[6]SM2 - DECC Scenario 1 equiv'!P199,\n'[6]SM3 - DECC Scenario 2 equiv'!P199,\n'[6]SM4 - DNO Scenario 4 equiv'!P199)","v":0},{"$f":"CHOOSE(view,\n'[5]M1a - Model inputs'!Q199,\n'[5]M1b - Model inputs'!Q199,\n'[5]SM1 - DECC Scenario 3 equiv'!Q199,\n'[5]SM2 - DECC Scenario 1 equiv'!Q199,\n'[5]SM3 - DECC Scenario 2 equiv'!Q199,\n'[5]SM4 - DNO Scenario 4 equiv'!Q199,\n'[6]M1a - Model inputs'!Q199,\n'[6]M1b - Model inputs'!Q199,\n'[6]SM1 - DECC Scenario 3 equiv'!Q199,\n'[6]SM2 - DECC Scenario 1 equiv'!Q199,\n'[6]SM3 - DECC Scenario 2 equiv'!Q199,\n'[6]SM4 - DNO Scenario 4 equiv'!Q199)","v":0},{"$f":"CHOOSE(view,\n'[5]M1a - Model inputs'!R199,\n'[5]M1b - Model inputs'!R199,\n'[5]SM1 - DECC Scenario 3 equiv'!R199,\n'[5]SM2 - DECC Scenario 1 equiv'!R199,\n'[5]SM3 - DECC Scenario 2 equiv'!R199,\n'[5]SM4 - DNO Scenario 4 equiv'!R199,\n'[6]M1a - Model inputs'!R199,\n'[6]M1b - Model inputs'!R199,\n'[6]SM1 - DECC Scenario 3 equiv'!R199,\n'[6]SM2 - DECC Scenario 1 equiv'!R199,\n'[6]SM3 - DECC Scenario 2 equiv'!R199,\n'[6]SM4 - DNO Scenario 4 equiv'!R199)","v":0},{"$f":"CHOOSE(view,\n'[5]M1a - Model inputs'!S199,\n'[5]M1b - Model inputs'!S199,\n'[5]SM1 - DECC Scenario 3 equiv'!S199,\n'[5]SM2 - DECC Scenario 1 equiv'!S199,\n'[5]SM3 - DECC Scenario 2 equiv'!S199,\n'[5]SM4 - DNO Scenario 4 equiv'!S199,\n'[6]M1a - Model inputs'!S199,\n'[6]M1b - Model inputs'!S199,\n'[6]SM1 - DECC Scenario 3 equiv'!S199,\n'[6]SM2 - DECC Scenario 1 equiv'!S199,\n'[6]SM3 - DECC Scenario 2 equiv'!S199,\n'[6]SM4 - DNO Scenario 4 equiv'!S199)","v":0}]
[null,null,null,null,{"$f":"Input!E131","v":"Allocation to controllable opex"},null,"%",null,null,null,null,null,null,null,null,null,null,null,null,null,null,null,null,null,null,null,null,null,null,null,null,null,null,null,null,{"$f":"CHOOSE(view,\n'[5]M1a - Model inputs'!L200,\n'[5]M1b - Model inputs'!L200,\n'[5]SM1 - DECC Scenario 3 equiv'!L200,\n'[5]SM2 - DECC Scenario 1 equiv'!L200,\n'[5]SM3 - DECC Scenario 2 equiv'!L200,\n'[5]SM4 - DNO Scenario 4 equiv'!L200,\n'[6]M1a - Model inputs'!L200,\n'[6]M1b - Model inputs'!L200,\n'[6]SM1 - DECC Scenario 3 equiv'!L200,\n'[6]SM2 - DECC Scenario 1 equiv'!L200,\n'[6]SM3 - DECC Scenario 2 equiv'!L200,\n'[6]SM4 - DNO Scenario 4 equiv'!L200)","v":0},{"$f":"CHOOSE(view,\n'[5]M1a - Model inputs'!M200,\n'[5]M1b - Model inputs'!M200,\n'[5]SM1 - DECC Scenario 3 equiv'!M200,\n'[5]SM2 - DECC Scenario 1 equiv'!M200,\n'[5]SM3 - DECC Scenario 2 equiv'!M200,\n'[5]SM4 - DNO Scenario 4 equiv'!M200,\n'[6]M1a - Model inputs'!M200,\n'[6]M1b - Model inputs'!M200,\n'[6]SM1 - DECC Scenario 3 equiv'!M200,\n'[6]SM2 - DECC Scenario 1 equiv'!M200,\n'[6]SM3 - DECC Scenario 2 equiv'!M200,\n'[6]SM4 - DNO Scenario 4 equiv'!M200)","v":0},{"$f":"CHOOSE(view,\n'[5]M1a - Model inputs'!N200,\n'[5]M1b - Model inputs'!N200,\n'[5]SM1 - DECC Scenario 3 equiv'!N200,\n'[5]SM2 - DECC Scenario 1 equiv'!N200,\n'[5]SM3 - DECC Scenario 2 equiv'!N200,\n'[5]SM4 - DNO Scenario 4 equiv'!N200,\n'[6]M1a - Model inputs'!N200,\n'[6]M1b - Model inputs'!N200,\n'[6]SM1 - DECC Scenario 3 equiv'!N200,\n'[6]SM2 - DECC Scenario 1 equiv'!N200,\n'[6]SM3 - DECC Scenario 2 equiv'!N200,\n'[6]SM4 - DNO Scenario 4 equiv'!N200)","v":0},{"$f":"CHOOSE(view,\n'[5]M1a - Model inputs'!O200,\n'[5]M1b - Model inputs'!O200,\n'[5]SM1 - DECC Scenario 3 equiv'!O200,\n'[5]SM2 - DECC Scenario 1 equiv'!O200,\n'[5]SM3 - DECC Scenario 2 equiv'!O200,\n'[5]SM4 - DNO Scenario 4 equiv'!O200,\n'[6]M1a - Model inputs'!O200,\n'[6]M1b - Model inputs'!O200,\n'[6]SM1 - DECC Scenario 3 equiv'!O200,\n'[6]SM2 - DECC Scenario 1 equiv'!O200,\n'[6]SM3 - DECC Scenario 2 equiv'!O200,\n'[6]SM4 - DNO Scenario 4 equiv'!O200)","v":0},{"$f":"CHOOSE(view,\n'[5]M1a - Model inputs'!P200,\n'[5]M1b - Model inputs'!P200,\n'[5]SM1 - DECC Scenario 3 equiv'!P200,\n'[5]SM2 - DECC Scenario 1 equiv'!P200,\n'[5]SM3 - DECC Scenario 2 equiv'!P200,\n'[5]SM4 - DNO Scenario 4 equiv'!P200,\n'[6]M1a - Model inputs'!P200,\n'[6]M1b - Model inputs'!P200,\n'[6]SM1 - DECC Scenario 3 equiv'!P200,\n'[6]SM2 - DECC Scenario 1 equiv'!P200,\n'[6]SM3 - DECC Scenario 2 equiv'!P200,\n'[6]SM4 - DNO Scenario 4 equiv'!P200)","v":0},{"$f":"CHOOSE(view,\n'[5]M1a - Model inputs'!Q200,\n'[5]M1b - Model inputs'!Q200,\n'[5]SM1 - DECC Scenario 3 equiv'!Q200,\n'[5]SM2 - DECC Scenario 1 equiv'!Q200,\n'[5]SM3 - DECC Scenario 2 equiv'!Q200,\n'[5]SM4 - DNO Scenario 4 equiv'!Q200,\n'[6]M1a - Model inputs'!Q200,\n'[6]M1b - Model inputs'!Q200,\n'[6]SM1 - DECC Scenario 3 equiv'!Q200,\n'[6]SM2 - DECC Scenario 1 equiv'!Q200,\n'[6]SM3 - DECC Scenario 2 equiv'!Q200,\n'[6]SM4 - DNO Scenario 4 equiv'!Q200)","v":0},{"$f":"CHOOSE(view,\n'[5]M1a - Model inputs'!R200,\n'[5]M1b - Model inputs'!R200,\n'[5]SM1 - DECC Scenario 3 equiv'!R200,\n'[5]SM2 - DECC Scenario 1 equiv'!R200,\n'[5]SM3 - DECC Scenario 2 equiv'!R200,\n'[5]SM4 - DNO Scenario 4 equiv'!R200,\n'[6]M1a - Model inputs'!R200,\n'[6]M1b - Model inputs'!R200,\n'[6]SM1 - DECC Scenario 3 equiv'!R200,\n'[6]SM2 - DECC Scenario 1 equiv'!R200,\n'[6]SM3 - DECC Scenario 2 equiv'!R200,\n'[6]SM4 - DNO Scenario 4 equiv'!R200)","v":0},{"$f":"CHOOSE(view,\n'[5]M1a - Model inputs'!S200,\n'[5]M1b - Model inputs'!S200,\n'[5]SM1 - DECC Scenario 3 equiv'!S200,\n'[5]SM2 - DECC Scenario 1 equiv'!S200,\n'[5]SM3 - DECC Scenario 2 equiv'!S200,\n'[5]SM4 - DNO Scenario 4 equiv'!S200,\n'[6]M1a - Model inputs'!S200,\n'[6]M1b - Model inputs'!S200,\n'[6]SM1 - DECC Scenario 3 equiv'!S200,\n'[6]SM2 - DECC Scenario 1 equiv'!S200,\n'[6]SM3 - DECC Scenario 2 equiv'!S200,\n'[6]SM4 - DNO Scenario 4 equiv'!S200)","v":0}]
[]
[null,null,null,null,{"$f":"Input!E133","v":"Allowed uncertain costs (Smart metering roll out costs)"},null,"£m 12/13 prices",null,null,null,null,null,null,null,null,null,null,null,null,null,null,null,null,null,null,null,null,null,null,null,null,null,null,null,null,{"$f":"AJ22","v":5.6734921185888632E-2},6.0926346948719519E-2,6.1584785754448167E-2,5.8297548132414272E-2,5.3422429062884288E-2,5.1154701949035854E-2,0,0]
[null,null,null,null,{"$f":"Input!E134","v":"Allocation to load related capex"},null,"%",null,null,null,null,null,null,null,null,null,null,null,null,null,null,null,null,null,null,null,null,null,null,null,null,null,null,null,null,{"$f":"CHOOSE(view,\n'[5]M1a - Model inputs'!L203,\n'[5]M1b - Model inputs'!L203,\n'[5]SM1 - DECC Scenario 3 equiv'!L203,\n'[5]SM2 - DECC Scenario 1 equiv'!L203,\n'[5]SM3 - DECC Scenario 2 equiv'!L203,\n'[5]SM4 - DNO Scenario 4 equiv'!L203,\n'[6]M1a - Model inputs'!L203,\n'[6]M1b - Model inputs'!L203,\n'[6]SM1 - DECC Scenario 3 equiv'!L203,\n'[6]SM2 - DECC Scenario 1 equiv'!L203,\n'[6]SM3 - DECC Scenario 2 equiv'!L203,\n'[6]SM4 - DNO Scenario 4 equiv'!L203)","v":0},{"$f":"CHOOSE(view,\n'[5]M1a - Model inputs'!M203,\n'[5]M1b - Model inputs'!M203,\n'[5]SM1 - DECC Scenario 3 equiv'!M203,\n'[5]SM2 - DECC Scenario 1 equiv'!M203,\n'[5]SM3 - DECC Scenario 2 equiv'!M203,\n'[5]SM4 - DNO Scenario 4 equiv'!M203,\n'[6]M1a - Model inputs'!M203,\n'[6]M1b - Model inputs'!M203,\n'[6]SM1 - DECC Scenario 3 equiv'!M203,\n'[6]SM2 - DECC Scenario 1 equiv'!M203,\n'[6]SM3 - DECC Scenario 2 equiv'!M203,\n'[6]SM4 - DNO Scenario 4 equiv'!M203)","v":0},{"$f":"CHOOSE(view,\n'[5]M1a - Model inputs'!N203,\n'[5]M1b - Model inputs'!N203,\n'[5]SM1 - DECC Scenario 3 equiv'!N203,\n'[5]SM2 - DECC Scenario 1 equiv'!N203,\n'[5]SM3 - DECC Scenario 2 equiv'!N203,\n'[5]SM4 - DNO Scenario 4 equiv'!N203,\n'[6]M1a - Model inputs'!N203,\n'[6]M1b - Model inputs'!N203,\n'[6]SM1 - DECC Scenario 3 equiv'!N203,\n'[6]SM2 - DECC Scenario 1 equiv'!N203,\n'[6]SM3 - DECC Scenario 2 equiv'!N203,\n'[6]SM4 - DNO Scenario 4 equiv'!N203)","v":0},{"$f":"CHOOSE(view,\n'[5]M1a - Model inputs'!O203,\n'[5]M1b - Model inputs'!O203,\n'[5]SM1 - DECC Scenario 3 equiv'!O203,\n'[5]SM2 - DECC Scenario 1 equiv'!O203,\n'[5]SM3 - DECC Scenario 2 equiv'!O203,\n'[5]SM4 - DNO Scenario 4 equiv'!O203,\n'[6]M1a - Model inputs'!O203,\n'[6]M1b - Model inputs'!O203,\n'[6]SM1 - DECC Scenario 3 equiv'!O203,\n'[6]SM2 - DECC Scenario 1 equiv'!O203,\n'[6]SM3 - DECC Scenario 2 equiv'!O203,\n'[6]SM4 - DNO Scenario 4 equiv'!O203)","v":0},{"$f":"CHOOSE(view,\n'[5]M1a - Model inputs'!P203,\n'[5]M1b - Model inputs'!P203,\n'[5]SM1 - DECC Scenario 3 equiv'!P203,\n'[5]SM2 - DECC Scenario 1 equiv'!P203,\n'[5]SM3 - DECC Scenario 2 equiv'!P203,\n'[5]SM4 - DNO Scenario 4 equiv'!P203,\n'[6]M1a - Model inputs'!P203,\n'[6]M1b - Model inputs'!P203,\n'[6]SM1 - DECC Scenario 3 equiv'!P203,\n'[6]SM2 - DECC Scenario 1 equiv'!P203,\n'[6]SM3 - DECC Scenario 2 equiv'!P203,\n'[6]SM4 - DNO Scenario 4 equiv'!P203)","v":0},{"$f":"CHOOSE(view,\n'[5]M1a - Model inputs'!Q203,\n'[5]M1b - Model inputs'!Q203,\n'[5]SM1 - DECC Scenario 3 equiv'!Q203,\n'[5]SM2 - DECC Scenario 1 equiv'!Q203,\n'[5]SM3 - DECC Scenario 2 equiv'!Q203,\n'[5]SM4 - DNO Scenario 4 equiv'!Q203,\n'[6]M1a - Model inputs'!Q203,\n'[6]M1b - Model inputs'!Q203,\n'[6]SM1 - DECC Scenario 3 equiv'!Q203,\n'[6]SM2 - DECC Scenario 1 equiv'!Q203,\n'[6]SM3 - DECC Scenario 2 equiv'!Q203,\n'[6]SM4 - DNO Scenario 4 equiv'!Q203)","v":0},{"$f":"CHOOSE(view,\n'[5]M1a - Model inputs'!R203,\n'[5]M1b - Model inputs'!R203,\n'[5]SM1 - DECC Scenario 3 equiv'!R203,\n'[5]SM2 - DECC Scenario 1 equiv'!R203,\n'[5]SM3 - DECC Scenario 2 equiv'!R203,\n'[5]SM4 - DNO Scenario 4 equiv'!R203,\n'[6]M1a - Model inputs'!R203,\n'[6]M1b - Model inputs'!R203,\n'[6]SM1 - DECC Scenario 3 equiv'!R203,\n'[6]SM2 - DECC Scenario 1 equiv'!R203,\n'[6]SM3 - DECC Scenario 2 equiv'!R203,\n'[6]SM4 - DNO Scenario 4 equiv'!R203)","v":0},{"$f":"CHOOSE(view,\n'[5]M1a - Model inputs'!S203,\n'[5]M1b - Model inputs'!S203,\n'[5]SM1 - DECC Scenario 3 equiv'!S203,\n'[5]SM2 - DECC Scenario 1 equiv'!S203,\n'[5]SM3 - DECC Scenario 2 equiv'!S203,\n'[5]SM4 - DNO Scenario 4 equiv'!S203,\n'[6]M1a - Model inputs'!S203,\n'[6]M1b - Model inputs'!S203,\n'[6]SM1 - DECC Scenario 3 equiv'!S203,\n'[6]SM2 - DECC Scenario 1 equiv'!S203,\n'[6]SM3 - DECC Scenario 2 equiv'!S203,\n'[6]SM4 - DNO Scenario 4 equiv'!S203)","v":0}]
[null,null,null,null,{"$f":"Input!E135","v":"Allocation to non-load related capex - asset replacement"},null,"%",null,null,null,null,null,null,null,null,null,null,null,null,null,null,null,null,null,null,null,null,null,null,null,null,null,null,null,null,{"$f":"CHOOSE(view,\n'[5]M1a - Model inputs'!L204,\n'[5]M1b - Model inputs'!L204,\n'[5]SM1 - DECC Scenario 3 equiv'!L204,\n'[5]SM2 - DECC Scenario 1 equiv'!L204,\n'[5]SM3 - DECC Scenario 2 equiv'!L204,\n'[5]SM4 - DNO Scenario 4 equiv'!L204,\n'[6]M1a - Model inputs'!L204,\n'[6]M1b - Model inputs'!L204,\n'[6]SM1 - DECC Scenario 3 equiv'!L204,\n'[6]SM2 - DECC Scenario 1 equiv'!L204,\n'[6]SM3 - DECC Scenario 2 equiv'!L204,\n'[6]SM4 - DNO Scenario 4 equiv'!L204)","v":0},{"$f":"CHOOSE(view,\n'[5]M1a - Model inputs'!M204,\n'[5]M1b - Model inputs'!M204,\n'[5]SM1 - DECC Scenario 3 equiv'!M204,\n'[5]SM2 - DECC Scenario 1 equiv'!M204,\n'[5]SM3 - DECC Scenario 2 equiv'!M204,\n'[5]SM4 - DNO Scenario 4 equiv'!M204,\n'[6]M1a - Model inputs'!M204,\n'[6]M1b - Model inputs'!M204,\n'[6]SM1 - DECC Scenario 3 equiv'!M204,\n'[6]SM2 - DECC Scenario 1 equiv'!M204,\n'[6]SM3 - DECC Scenario 2 equiv'!M204,\n'[6]SM4 - DNO Scenario 4 equiv'!M204)","v":0},{"$f":"CHOOSE(view,\n'[5]M1a - Model inputs'!N204,\n'[5]M1b - Model inputs'!N204,\n'[5]SM1 - DECC Scenario 3 equiv'!N204,\n'[5]SM2 - DECC Scenario 1 equiv'!N204,\n'[5]SM3 - DECC Scenario 2 equiv'!N204,\n'[5]SM4 - DNO Scenario 4 equiv'!N204,\n'[6]M1a - Model inputs'!N204,\n'[6]M1b - Model inputs'!N204,\n'[6]SM1 - DECC Scenario 3 equiv'!N204,\n'[6]SM2 - DECC Scenario 1 equiv'!N204,\n'[6]SM3 - DECC Scenario 2 equiv'!N204,\n'[6]SM4 - DNO Scenario 4 equiv'!N204)","v":0},{"$f":"CHOOSE(view,\n'[5]M1a - Model inputs'!O204,\n'[5]M1b - Model inputs'!O204,\n'[5]SM1 - DECC Scenario 3 equiv'!O204,\n'[5]SM2 - DECC Scenario 1 equiv'!O204,\n'[5]SM3 - DECC Scenario 2 equiv'!O204,\n'[5]SM4 - DNO Scenario 4 equiv'!O204,\n'[6]M1a - Model inputs'!O204,\n'[6]M1b - Model inputs'!O204,\n'[6]SM1 - DECC Scenario 3 equiv'!O204,\n'[6]SM2 - DECC Scenario 1 equiv'!O204,\n'[6]SM3 - DECC Scenario 2 equiv'!O204,\n'[6]SM4 - DNO Scenario 4 equiv'!O204)","v":0},{"$f":"CHOOSE(view,\n'[5]M1a - Model inputs'!P204,\n'[5]M1b - Model inputs'!P204,\n'[5]SM1 - DECC Scenario 3 equiv'!P204,\n'[5]SM2 - DECC Scenario 1 equiv'!P204,\n'[5]SM3 - DECC Scenario 2 equiv'!P204,\n'[5]SM4 - DNO Scenario 4 equiv'!P204,\n'[6]M1a - Model inputs'!P204,\n'[6]M1b - Model inputs'!P204,\n'[6]SM1 - DECC Scenario 3 equiv'!P204,\n'[6]SM2 - DECC Scenario 1 equiv'!P204,\n'[6]SM3 - DECC Scenario 2 equiv'!P204,\n'[6]SM4 - DNO Scenario 4 equiv'!P204)","v":0},{"$f":"CHOOSE(view,\n'[5]M1a - Model inputs'!Q204,\n'[5]M1b - Model inputs'!Q204,\n'[5]SM1 - DECC Scenario 3 equiv'!Q204,\n'[5]SM2 - DECC Scenario 1 equiv'!Q204,\n'[5]SM3 - DECC Scenario 2 equiv'!Q204,\n'[5]SM4 - DNO Scenario 4 equiv'!Q204,\n'[6]M1a - Model inputs'!Q204,\n'[6]M1b - Model inputs'!Q204,\n'[6]SM1 - DECC Scenario 3 equiv'!Q204,\n'[6]SM2 - DECC Scenario 1 equiv'!Q204,\n'[6]SM3 - DECC Scenario 2 equiv'!Q204,\n'[6]SM4 - DNO Scenario 4 equiv'!Q204)","v":0},{"$f":"CHOOSE(view,\n'[5]M1a - Model inputs'!R204,\n'[5]M1b - Model inputs'!R204,\n'[5]SM1 - DECC Scenario 3 equiv'!R204,\n'[5]SM2 - DECC Scenario 1 equiv'!R204,\n'[5]SM3 - DECC Scenario 2 equiv'!R204,\n'[5]SM4 - DNO Scenario 4 equiv'!R204,\n'[6]M1a - Model inputs'!R204,\n'[6]M1b - Model inputs'!R204,\n'[6]SM1 - DECC Scenario 3 equiv'!R204,\n'[6]SM2 - DECC Scenario 1 equiv'!R204,\n'[6]SM3 - DECC Scenario 2 equiv'!R204,\n'[6]SM4 - DNO Scenario 4 equiv'!R204)","v":0},{"$f":"CHOOSE(view,\n'[5]M1a - Model inputs'!S204,\n'[5]M1b - Model inputs'!S204,\n'[5]SM1 - DECC Scenario 3 equiv'!S204,\n'[5]SM2 - DECC Scenario 1 equiv'!S204,\n'[5]SM3 - DECC Scenario 2 equiv'!S204,\n'[5]SM4 - DNO Scenario 4 equiv'!S204,\n'[6]M1a - Model inputs'!S204,\n'[6]M1b - Model inputs'!S204,\n'[6]SM1 - DECC Scenario 3 equiv'!S204,\n'[6]SM2 - DECC Scenario 1 equiv'!S204,\n'[6]SM3 - DECC Scenario 2 equiv'!S204,\n'[6]SM4 - DNO Scenario 4 equiv'!S204)","v":0}]
[null,null,null,null,{"$f":"Input!E136","v":"Allocation to non-load related capex - other"},null,"%",null,null,null,null,null,null,null,null,null,null,null,null,null,null,null,null,null,null,null,null,null,null,null,null,null,null,null,null,{"$f":"CHOOSE(view,\n'[5]M1a - Model inputs'!L205,\n'[5]M1b - Model inputs'!L205,\n'[5]SM1 - DECC Scenario 3 equiv'!L205,\n'[5]SM2 - DECC Scenario 1 equiv'!L205,\n'[5]SM3 - DECC Scenario 2 equiv'!L205,\n'[5]SM4 - DNO Scenario 4 equiv'!L205,\n'[6]M1a - Model inputs'!L205,\n'[6]M1b - Model inputs'!L205,\n'[6]SM1 - DECC Scenario 3 equiv'!L205,\n'[6]SM2 - DECC Scenario 1 equiv'!L205,\n'[6]SM3 - DECC Scenario 2 equiv'!L205,\n'[6]SM4 - DNO Scenario 4 equiv'!L205)","v":0},{"$f":"CHOOSE(view,\n'[5]M1a - Model inputs'!M205,\n'[5]M1b - Model inputs'!M205,\n'[5]SM1 - DECC Scenario 3 equiv'!M205,\n'[5]SM2 - DECC Scenario 1 equiv'!M205,\n'[5]SM3 - DECC Scenario 2 equiv'!M205,\n'[5]SM4 - DNO Scenario 4 equiv'!M205,\n'[6]M1a - Model inputs'!M205,\n'[6]M1b - Model inputs'!M205,\n'[6]SM1 - DECC Scenario 3 equiv'!M205,\n'[6]SM2 - DECC Scenario 1 equiv'!M205,\n'[6]SM3 - DECC Scenario 2 equiv'!M205,\n'[6]SM4 - DNO Scenario 4 equiv'!M205)","v":0},{"$f":"CHOOSE(view,\n'[5]M1a - Model inputs'!N205,\n'[5]M1b - Model inputs'!N205,\n'[5]SM1 - DECC Scenario 3 equiv'!N205,\n'[5]SM2 - DECC Scenario 1 equiv'!N205,\n'[5]SM3 - DECC Scenario 2 equiv'!N205,\n'[5]SM4 - DNO Scenario 4 equiv'!N205,\n'[6]M1a - Model inputs'!N205,\n'[6]M1b - Model inputs'!N205,\n'[6]SM1 - DECC Scenario 3 equiv'!N205,\n'[6]SM2 - DECC Scenario 1 equiv'!N205,\n'[6]SM3 - DECC Scenario 2 equiv'!N205,\n'[6]SM4 - DNO Scenario 4 equiv'!N205)","v":0},{"$f":"CHOOSE(view,\n'[5]M1a - Model inputs'!O205,\n'[5]M1b - Model inputs'!O205,\n'[5]SM1 - DECC Scenario 3 equiv'!O205,\n'[5]SM2 - DECC Scenario 1 equiv'!O205,\n'[5]SM3 - DECC Scenario 2 equiv'!O205,\n'[5]SM4 - DNO Scenario 4 equiv'!O205,\n'[6]M1a - Model inputs'!O205,\n'[6]M1b - Model inputs'!O205,\n'[6]SM1 - DECC Scenario 3 equiv'!O205,\n'[6]SM2 - DECC Scenario 1 equiv'!O205,\n'[6]SM3 - DECC Scenario 2 equiv'!O205,\n'[6]SM4 - DNO Scenario 4 equiv'!O205)","v":0},{"$f":"CHOOSE(view,\n'[5]M1a - Model inputs'!P205,\n'[5]M1b - Model inputs'!P205,\n'[5]SM1 - DECC Scenario 3 equiv'!P205,\n'[5]SM2 - DECC Scenario 1 equiv'!P205,\n'[5]SM3 - DECC Scenario 2 equiv'!P205,\n'[5]SM4 - DNO Scenario 4 equiv'!P205,\n'[6]M1a - Model inputs'!P205,\n'[6]M1b - Model inputs'!P205,\n'[6]SM1 - DECC Scenario 3 equiv'!P205,\n'[6]SM2 - DECC Scenario 1 equiv'!P205,\n'[6]SM3 - DECC Scenario 2 equiv'!P205,\n'[6]SM4 - DNO Scenario 4 equiv'!P205)","v":0},{"$f":"CHOOSE(view,\n'[5]M1a - Model inputs'!Q205,\n'[5]M1b - Model inputs'!Q205,\n'[5]SM1 - DECC Scenario 3 equiv'!Q205,\n'[5]SM2 - DECC Scenario 1 equiv'!Q205,\n'[5]SM3 - DECC Scenario 2 equiv'!Q205,\n'[5]SM4 - DNO Scenario 4 equiv'!Q205,\n'[6]M1a - Model inputs'!Q205,\n'[6]M1b - Model inputs'!Q205,\n'[6]SM1 - DECC Scenario 3 equiv'!Q205,\n'[6]SM2 - DECC Scenario 1 equiv'!Q205,\n'[6]SM3 - DECC Scenario 2 equiv'!Q205,\n'[6]SM4 - DNO Scenario 4 equiv'!Q205)","v":0},{"$f":"CHOOSE(view,\n'[5]M1a - Model inputs'!R205,\n'[5]M1b - Model inputs'!R205,\n'[5]SM1 - DECC Scenario 3 equiv'!R205,\n'[5]SM2 - DECC Scenario 1 equiv'!R205,\n'[5]SM3 - DECC Scenario 2 equiv'!R205,\n'[5]SM4 - DNO Scenario 4 equiv'!R205,\n'[6]M1a - Model inputs'!R205,\n'[6]M1b - Model inputs'!R205,\n'[6]SM1 - DECC Scenario 3 equiv'!R205,\n'[6]SM2 - DECC Scenario 1 equiv'!R205,\n'[6]SM3 - DECC Scenario 2 equiv'!R205,\n'[6]SM4 - DNO Scenario 4 equiv'!R205)","v":0},{"$f":"CHOOSE(view,\n'[5]M1a - Model inputs'!S205,\n'[5]M1b - Model inputs'!S205,\n'[5]SM1 - DECC Scenario 3 equiv'!S205,\n'[5]SM2 - DECC Scenario 1 equiv'!S205,\n'[5]SM3 - DECC Scenario 2 equiv'!S205,\n'[5]SM4 - DNO Scenario 4 equiv'!S205,\n'[6]M1a - Model inputs'!S205,\n'[6]M1b - Model inputs'!S205,\n'[6]SM1 - DECC Scenario 3 equiv'!S205,\n'[6]SM2 - DECC Scenario 1 equiv'!S205,\n'[6]SM3 - DECC Scenario 2 equiv'!S205,\n'[6]SM4 - DNO Scenario 4 equiv'!S205)","v":0}]
[null,null,null,null,{"$f":"Input!E137","v":"Allocation to faults"},null,"%",null,null,null,null,null,null,null,null,null,null,null,null,null,null,null,null,null,null,null,null,null,null,null,null,null,null,null,null,{"$f":"CHOOSE(view,\n'[5]M1a - Model inputs'!L206,\n'[5]M1b - Model inputs'!L206,\n'[5]SM1 - DECC Scenario 3 equiv'!L206,\n'[5]SM2 - DECC Scenario 1 equiv'!L206,\n'[5]SM3 - DECC Scenario 2 equiv'!L206,\n'[5]SM4 - DNO Scenario 4 equiv'!L206,\n'[6]M1a - Model inputs'!L206,\n'[6]M1b - Model inputs'!L206,\n'[6]SM1 - DECC Scenario 3 equiv'!L206,\n'[6]SM2 - DECC Scenario 1 equiv'!L206,\n'[6]SM3 - DECC Scenario 2 equiv'!L206,\n'[6]SM4 - DNO Scenario 4 equiv'!L206)","v":0},{"$f":"CHOOSE(view,\n'[5]M1a - Model inputs'!M206,\n'[5]M1b - Model inputs'!M206,\n'[5]SM1 - DECC Scenario 3 equiv'!M206,\n'[5]SM2 - DECC Scenario 1 equiv'!M206,\n'[5]SM3 - DECC Scenario 2 equiv'!M206,\n'[5]SM4 - DNO Scenario 4 equiv'!M206,\n'[6]M1a - Model inputs'!M206,\n'[6]M1b - Model inputs'!M206,\n'[6]SM1 - DECC Scenario 3 equiv'!M206,\n'[6]SM2 - DECC Scenario 1 equiv'!M206,\n'[6]SM3 - DECC Scenario 2 equiv'!M206,\n'[6]SM4 - DNO Scenario 4 equiv'!M206)","v":0},{"$f":"CHOOSE(view,\n'[5]M1a - Model inputs'!N206,\n'[5]M1b - Model inputs'!N206,\n'[5]SM1 - DECC Scenario 3 equiv'!N206,\n'[5]SM2 - DECC Scenario 1 equiv'!N206,\n'[5]SM3 - DECC Scenario 2 equiv'!N206,\n'[5]SM4 - DNO Scenario 4 equiv'!N206,\n'[6]M1a - Model inputs'!N206,\n'[6]M1b - Model inputs'!N206,\n'[6]SM1 - DECC Scenario 3 equiv'!N206,\n'[6]SM2 - DECC Scenario 1 equiv'!N206,\n'[6]SM3 - DECC Scenario 2 equiv'!N206,\n'[6]SM4 - DNO Scenario 4 equiv'!N206)","v":0},{"$f":"CHOOSE(view,\n'[5]M1a - Model inputs'!O206,\n'[5]M1b - Model inputs'!O206,\n'[5]SM1 - DECC Scenario 3 equiv'!O206,\n'[5]SM2 - DECC Scenario 1 equiv'!O206,\n'[5]SM3 - DECC Scenario 2 equiv'!O206,\n'[5]SM4 - DNO Scenario 4 equiv'!O206,\n'[6]M1a - Model inputs'!O206,\n'[6]M1b - Model inputs'!O206,\n'[6]SM1 - DECC Scenario 3 equiv'!O206,\n'[6]SM2 - DECC Scenario 1 equiv'!O206,\n'[6]SM3 - DECC Scenario 2 equiv'!O206,\n'[6]SM4 - DNO Scenario 4 equiv'!O206)","v":0},{"$f":"CHOOSE(view,\n'[5]M1a - Model inputs'!P206,\n'[5]M1b - Model inputs'!P206,\n'[5]SM1 - DECC Scenario 3 equiv'!P206,\n'[5]SM2 - DECC Scenario 1 equiv'!P206,\n'[5]SM3 - DECC Scenario 2 equiv'!P206,\n'[5]SM4 - DNO Scenario 4 equiv'!P206,\n'[6]M1a - Model inputs'!P206,\n'[6]M1b - Model inputs'!P206,\n'[6]SM1 - DECC Scenario 3 equiv'!P206,\n'[6]SM2 - DECC Scenario 1 equiv'!P206,\n'[6]SM3 - DECC Scenario 2 equiv'!P206,\n'[6]SM4 - DNO Scenario 4 equiv'!P206)","v":0},{"$f":"CHOOSE(view,\n'[5]M1a - Model inputs'!Q206,\n'[5]M1b - Model inputs'!Q206,\n'[5]SM1 - DECC Scenario 3 equiv'!Q206,\n'[5]SM2 - DECC Scenario 1 equiv'!Q206,\n'[5]SM3 - DECC Scenario 2 equiv'!Q206,\n'[5]SM4 - DNO Scenario 4 equiv'!Q206,\n'[6]M1a - Model inputs'!Q206,\n'[6]M1b - Model inputs'!Q206,\n'[6]SM1 - DECC Scenario 3 equiv'!Q206,\n'[6]SM2 - DECC Scenario 1 equiv'!Q206,\n'[6]SM3 - DECC Scenario 2 equiv'!Q206,\n'[6]SM4 - DNO Scenario 4 equiv'!Q206)","v":0},{"$f":"CHOOSE(view,\n'[5]M1a - Model inputs'!R206,\n'[5]M1b - Model inputs'!R206,\n'[5]SM1 - DECC Scenario 3 equiv'!R206,\n'[5]SM2 - DECC Scenario 1 equiv'!R206,\n'[5]SM3 - DECC Scenario 2 equiv'!R206,\n'[5]SM4 - DNO Scenario 4 equiv'!R206,\n'[6]M1a - Model inputs'!R206,\n'[6]M1b - Model inputs'!R206,\n'[6]SM1 - DECC Scenario 3 equiv'!R206,\n'[6]SM2 - DECC Scenario 1 equiv'!R206,\n'[6]SM3 - DECC Scenario 2 equiv'!R206,\n'[6]SM4 - DNO Scenario 4 equiv'!R206)","v":0},{"$f":"CHOOSE(view,\n'[5]M1a - Model inputs'!S206,\n'[5]M1b - Model inputs'!S206,\n'[5]SM1 - DECC Scenario 3 equiv'!S206,\n'[5]SM2 - DECC Scenario 1 equiv'!S206,\n'[5]SM3 - DECC Scenario 2 equiv'!S206,\n'[5]SM4 - DNO Scenario 4 equiv'!S206,\n'[6]M1a - Model inputs'!S206,\n'[6]M1b - Model inputs'!S206,\n'[6]SM1 - DECC Scenario 3 equiv'!S206,\n'[6]SM2 - DECC Scenario 1 equiv'!S206,\n'[6]SM3 - DECC Scenario 2 equiv'!S206,\n'[6]SM4 - DNO Scenario 4 equiv'!S206)","v":0}]
[null,null,null,null,{"$f":"Input!E138","v":"Allocation to tree cutting"},null,"%",null,null,null,null,null,null,null,null,null,null,null,null,null,null,null,null,null,null,null,null,null,null,null,null,null,null,null,null,{"$f":"CHOOSE(view,\n'[5]M1a - Model inputs'!L207,\n'[5]M1b - Model inputs'!L207,\n'[5]SM1 - DECC Scenario 3 equiv'!L207,\n'[5]SM2 - DECC Scenario 1 equiv'!L207,\n'[5]SM3 - DECC Scenario 2 equiv'!L207,\n'[5]SM4 - DNO Scenario 4 equiv'!L207,\n'[6]M1a - Model inputs'!L207,\n'[6]M1b - Model inputs'!L207,\n'[6]SM1 - DECC Scenario 3 equiv'!L207,\n'[6]SM2 - DECC Scenario 1 equiv'!L207,\n'[6]SM3 - DECC Scenario 2 equiv'!L207,\n'[6]SM4 - DNO Scenario 4 equiv'!L207)","v":0},{"$f":"CHOOSE(view,\n'[5]M1a - Model inputs'!M207,\n'[5]M1b - Model inputs'!M207,\n'[5]SM1 - DECC Scenario 3 equiv'!M207,\n'[5]SM2 - DECC Scenario 1 equiv'!M207,\n'[5]SM3 - DECC Scenario 2 equiv'!M207,\n'[5]SM4 - DNO Scenario 4 equiv'!M207,\n'[6]M1a - Model inputs'!M207,\n'[6]M1b - Model inputs'!M207,\n'[6]SM1 - DECC Scenario 3 equiv'!M207,\n'[6]SM2 - DECC Scenario 1 equiv'!M207,\n'[6]SM3 - DECC Scenario 2 equiv'!M207,\n'[6]SM4 - DNO Scenario 4 equiv'!M207)","v":0},{"$f":"CHOOSE(view,\n'[5]M1a - Model inputs'!N207,\n'[5]M1b - Model inputs'!N207,\n'[5]SM1 - DECC Scenario 3 equiv'!N207,\n'[5]SM2 - DECC Scenario 1 equiv'!N207,\n'[5]SM3 - DECC Scenario 2 equiv'!N207,\n'[5]SM4 - DNO Scenario 4 equiv'!N207,\n'[6]M1a - Model inputs'!N207,\n'[6]M1b - Model inputs'!N207,\n'[6]SM1 - DECC Scenario 3 equiv'!N207,\n'[6]SM2 - DECC Scenario 1 equiv'!N207,\n'[6]SM3 - DECC Scenario 2 equiv'!N207,\n'[6]SM4 - DNO Scenario 4 equiv'!N207)","v":0},{"$f":"CHOOSE(view,\n'[5]M1a - Model inputs'!O207,\n'[5]M1b - Model inputs'!O207,\n'[5]SM1 - DECC Scenario 3 equiv'!O207,\n'[5]SM2 - DECC Scenario 1 equiv'!O207,\n'[5]SM3 - DECC Scenario 2 equiv'!O207,\n'[5]SM4 - DNO Scenario 4 equiv'!O207,\n'[6]M1a - Model inputs'!O207,\n'[6]M1b - Model inputs'!O207,\n'[6]SM1 - DECC Scenario 3 equiv'!O207,\n'[6]SM2 - DECC Scenario 1 equiv'!O207,\n'[6]SM3 - DECC Scenario 2 equiv'!O207,\n'[6]SM4 - DNO Scenario 4 equiv'!O207)","v":0},{"$f":"CHOOSE(view,\n'[5]M1a - Model inputs'!P207,\n'[5]M1b - Model inputs'!P207,\n'[5]SM1 - DECC Scenario 3 equiv'!P207,\n'[5]SM2 - DECC Scenario 1 equiv'!P207,\n'[5]SM3 - DECC Scenario 2 equiv'!P207,\n'[5]SM4 - DNO Scenario 4 equiv'!P207,\n'[6]M1a - Model inputs'!P207,\n'[6]M1b - Model inputs'!P207,\n'[6]SM1 - DECC Scenario 3 equiv'!P207,\n'[6]SM2 - DECC Scenario 1 equiv'!P207,\n'[6]SM3 - DECC Scenario 2 equiv'!P207,\n'[6]SM4 - DNO Scenario 4 equiv'!P207)","v":0},{"$f":"CHOOSE(view,\n'[5]M1a - Model inputs'!Q207,\n'[5]M1b - Model inputs'!Q207,\n'[5]SM1 - DECC Scenario 3 equiv'!Q207,\n'[5]SM2 - DECC Scenario 1 equiv'!Q207,\n'[5]SM3 - DECC Scenario 2 equiv'!Q207,\n'[5]SM4 - DNO Scenario 4 equiv'!Q207,\n'[6]M1a - Model inputs'!Q207,\n'[6]M1b - Model inputs'!Q207,\n'[6]SM1 - DECC Scenario 3 equiv'!Q207,\n'[6]SM2 - DECC Scenario 1 equiv'!Q207,\n'[6]SM3 - DECC Scenario 2 equiv'!Q207,\n'[6]SM4 - DNO Scenario 4 equiv'!Q207)","v":0},{"$f":"CHOOSE(view,\n'[5]M1a - Model inputs'!R207,\n'[5]M1b - Model inputs'!R207,\n'[5]SM1 - DECC Scenario 3 equiv'!R207,\n'[5]SM2 - DECC Scenario 1 equiv'!R207,\n'[5]SM3 - DECC Scenario 2 equiv'!R207,\n'[5]SM4 - DNO Scenario 4 equiv'!R207,\n'[6]M1a - Model inputs'!R207,\n'[6]M1b - Model inputs'!R207,\n'[6]SM1 - DECC Scenario 3 equiv'!R207,\n'[6]SM2 - DECC Scenario 1 equiv'!R207,\n'[6]SM3 - DECC Scenario 2 equiv'!R207,\n'[6]SM4 - DNO Scenario 4 equiv'!R207)","v":0},{"$f":"CHOOSE(view,\n'[5]M1a - Model inputs'!S207,\n'[5]M1b - Model inputs'!S207,\n'[5]SM1 - DECC Scenario 3 equiv'!S207,\n'[5]SM2 - DECC Scenario 1 equiv'!S207,\n'[5]SM3 - DECC Scenario 2 equiv'!S207,\n'[5]SM4 - DNO Scenario 4 equiv'!S207,\n'[6]M1a - Model inputs'!S207,\n'[6]M1b - Model inputs'!S207,\n'[6]SM1 - DECC Scenario 3 equiv'!S207,\n'[6]SM2 - DECC Scenario 1 equiv'!S207,\n'[6]SM3 - DECC Scenario 2 equiv'!S207,\n'[6]SM4 - DNO Scenario 4 equiv'!S207)","v":0}]
[null,null,null,null,{"$f":"Input!E139","v":"Allocation to controllable opex"},null,"%",null,null,null,null,null,null,null,null,null,null,null,null,null,null,null,null,null,null,null,null,null,null,null,null,null,null,null,null,{"$f":"CHOOSE(view,\n'[5]M1a - Model inputs'!L208,\n'[5]M1b - Model inputs'!L208,\n'[5]SM1 - DECC Scenario 3 equiv'!L208,\n'[5]SM2 - DECC Scenario 1 equiv'!L208,\n'[5]SM3 - DECC Scenario 2 equiv'!L208,\n'[5]SM4 - DNO Scenario 4 equiv'!L208,\n'[6]M1a - Model inputs'!L208,\n'[6]M1b - Model inputs'!L208,\n'[6]SM1 - DECC Scenario 3 equiv'!L208,\n'[6]SM2 - DECC Scenario 1 equiv'!L208,\n'[6]SM3 - DECC Scenario 2 equiv'!L208,\n'[6]SM4 - DNO Scenario 4 equiv'!L208)","v":1},{"$f":"CHOOSE(view,\n'[5]M1a - Model inputs'!M208,\n'[5]M1b - Model inputs'!M208,\n'[5]SM1 - DECC Scenario 3 equiv'!M208,\n'[5]SM2 - DECC Scenario 1 equiv'!M208,\n'[5]SM3 - DECC Scenario 2 equiv'!M208,\n'[5]SM4 - DNO Scenario 4 equiv'!M208,\n'[6]M1a - Model inputs'!M208,\n'[6]M1b - Model inputs'!M208,\n'[6]SM1 - DECC Scenario 3 equiv'!M208,\n'[6]SM2 - DECC Scenario 1 equiv'!M208,\n'[6]SM3 - DECC Scenario 2 equiv'!M208,\n'[6]SM4 - DNO Scenario 4 equiv'!M208)","v":1},{"$f":"CHOOSE(view,\n'[5]M1a - Model inputs'!N208,\n'[5]M1b - Model inputs'!N208,\n'[5]SM1 - DECC Scenario 3 equiv'!N208,\n'[5]SM2 - DECC Scenario 1 equiv'!N208,\n'[5]SM3 - DECC Scenario 2 equiv'!N208,\n'[5]SM4 - DNO Scenario 4 equiv'!N208,\n'[6]M1a - Model inputs'!N208,\n'[6]M1b - Model inputs'!N208,\n'[6]SM1 - DECC Scenario 3 equiv'!N208,\n'[6]SM2 - DECC Scenario 1 equiv'!N208,\n'[6]SM3 - DECC Scenario 2 equiv'!N208,\n'[6]SM4 - DNO Scenario 4 equiv'!N208)","v":1},{"$f":"CHOOSE(view,\n'[5]M1a - Model inputs'!O208,\n'[5]M1b - Model inputs'!O208,\n'[5]SM1 - DECC Scenario 3 equiv'!O208,\n'[5]SM2 - DECC Scenario 1 equiv'!O208,\n'[5]SM3 - DECC Scenario 2 equiv'!O208,\n'[5]SM4 - DNO Scenario 4 equiv'!O208,\n'[6]M1a - Model inputs'!O208,\n'[6]M1b - Model inputs'!O208,\n'[6]SM1 - DECC Scenario 3 equiv'!O208,\n'[6]SM2 - DECC Scenario 1 equiv'!O208,\n'[6]SM3 - DECC Scenario 2 equiv'!O208,\n'[6]SM4 - DNO Scenario 4 equiv'!O208)","v":1},{"$f":"CHOOSE(view,\n'[5]M1a - Model inputs'!P208,\n'[5]M1b - Model inputs'!P208,\n'[5]SM1 - DECC Scenario 3 equiv'!P208,\n'[5]SM2 - DECC Scenario 1 equiv'!P208,\n'[5]SM3 - DECC Scenario 2 equiv'!P208,\n'[5]SM4 - DNO Scenario 4 equiv'!P208,\n'[6]M1a - Model inputs'!P208,\n'[6]M1b - Model inputs'!P208,\n'[6]SM1 - DECC Scenario 3 equiv'!P208,\n'[6]SM2 - DECC Scenario 1 equiv'!P208,\n'[6]SM3 - DECC Scenario 2 equiv'!P208,\n'[6]SM4 - DNO Scenario 4 equiv'!P208)","v":1},{"$f":"CHOOSE(view,\n'[5]M1a - Model inputs'!Q208,\n'[5]M1b - Model inputs'!Q208,\n'[5]SM1 - DECC Scenario 3 equiv'!Q208,\n'[5]SM2 - DECC Scenario 1 equiv'!Q208,\n'[5]SM3 - DECC Scenario 2 equiv'!Q208,\n'[5]SM4 - DNO Scenario 4 equiv'!Q208,\n'[6]M1a - Model inputs'!Q208,\n'[6]M1b - Model inputs'!Q208,\n'[6]SM1 - DECC Scenario 3 equiv'!Q208,\n'[6]SM2 - DECC Scenario 1 equiv'!Q208,\n'[6]SM3 - DECC Scenario 2 equiv'!Q208,\n'[6]SM4 - DNO Scenario 4 equiv'!Q208)","v":1},{"$f":"CHOOSE(view,\n'[5]M1a - Model inputs'!R208,\n'[5]M1b - Model inputs'!R208,\n'[5]SM1 - DECC Scenario 3 equiv'!R208,\n'[5]SM2 - DECC Scenario 1 equiv'!R208,\n'[5]SM3 - DECC Scenario 2 equiv'!R208,\n'[5]SM4 - DNO Scenario 4 equiv'!R208,\n'[6]M1a - Model inputs'!R208,\n'[6]M1b - Model inputs'!R208,\n'[6]SM1 - DECC Scenario 3 equiv'!R208,\n'[6]SM2 - DECC Scenario 1 equiv'!R208,\n'[6]SM3 - DECC Scenario 2 equiv'!R208,\n'[6]SM4 - DNO Scenario 4 equiv'!R208)","v":1},{"$f":"CHOOSE(view,\n'[5]M1a - Model inputs'!S208,\n'[5]M1b - Model inputs'!S208,\n'[5]SM1 - DECC Scenario 3 equiv'!S208,\n'[5]SM2 - DECC Scenario 1 equiv'!S208,\n'[5]SM3 - DECC Scenario 2 equiv'!S208,\n'[5]SM4 - DNO Scenario 4 equiv'!S208,\n'[6]M1a - Model inputs'!S208,\n'[6]M1b - Model inputs'!S208,\n'[6]SM1 - DECC Scenario 3 equiv'!S208,\n'[6]SM2 - DECC Scenario 1 equiv'!S208,\n'[6]SM3 - DECC Scenario 2 equiv'!S208,\n'[6]SM4 - DNO Scenario 4 equiv'!S208)","v":1}]
[]
[null,null,null,null,{"$f":"Input!E141","v":"Allowed uncertain costs (Specified street work costs)"},null,"£m 12/13 prices",null,null,null,null,null,null,null,null,null,null,null,null,null,null,null,null,null,null,null,null,null,null,null,null,null,null,null,null,{"$f":"AJ23","v":0.18977110190424359},0.26286393586733553,0.26631546891994656,0.27027241989370215,0.27425328546964628,0.27834208233815744,0.28248015123234449,0.28670869879261668]
[null,null,null,null,{"$f":"Input!E142","v":"Allocation to load related capex"},null,"%",null,null,null,null,null,null,null,null,null,null,null,null,null,null,null,null,null,null,null,null,null,null,null,null,null,null,null,null,{"$f":"CHOOSE(view,\n'[5]M1a - Model inputs'!L211,\n'[5]M1b - Model inputs'!L211,\n'[5]SM1 - DECC Scenario 3 equiv'!L211,\n'[5]SM2 - DECC Scenario 1 equiv'!L211,\n'[5]SM3 - DECC Scenario 2 equiv'!L211,\n'[5]SM4 - DNO Scenario 4 equiv'!L211,\n'[6]M1a - Model inputs'!L211,\n'[6]M1b - Model inputs'!L211,\n'[6]SM1 - DECC Scenario 3 equiv'!L211,\n'[6]SM2 - DECC Scenario 1 equiv'!L211,\n'[6]SM3 - DECC Scenario 2 equiv'!L211,\n'[6]SM4 - DNO Scenario 4 equiv'!L211)","v":0},{"$f":"CHOOSE(view,\n'[5]M1a - Model inputs'!M211,\n'[5]M1b - Model inputs'!M211,\n'[5]SM1 - DECC Scenario 3 equiv'!M211,\n'[5]SM2 - DECC Scenario 1 equiv'!M211,\n'[5]SM3 - DECC Scenario 2 equiv'!M211,\n'[5]SM4 - DNO Scenario 4 equiv'!M211,\n'[6]M1a - Model inputs'!M211,\n'[6]M1b - Model inputs'!M211,\n'[6]SM1 - DECC Scenario 3 equiv'!M211,\n'[6]SM2 - DECC Scenario 1 equiv'!M211,\n'[6]SM3 - DECC Scenario 2 equiv'!M211,\n'[6]SM4 - DNO Scenario 4 equiv'!M211)","v":0},{"$f":"CHOOSE(view,\n'[5]M1a - Model inputs'!N211,\n'[5]M1b - Model inputs'!N211,\n'[5]SM1 - DECC Scenario 3 equiv'!N211,\n'[5]SM2 - DECC Scenario 1 equiv'!N211,\n'[5]SM3 - DECC Scenario 2 equiv'!N211,\n'[5]SM4 - DNO Scenario 4 equiv'!N211,\n'[6]M1a - Model inputs'!N211,\n'[6]M1b - Model inputs'!N211,\n'[6]SM1 - DECC Scenario 3 equiv'!N211,\n'[6]SM2 - DECC Scenario 1 equiv'!N211,\n'[6]SM3 - DECC Scenario 2 equiv'!N211,\n'[6]SM4 - DNO Scenario 4 equiv'!N211)","v":0},{"$f":"CHOOSE(view,\n'[5]M1a - Model inputs'!O211,\n'[5]M1b - Model inputs'!O211,\n'[5]SM1 - DECC Scenario 3 equiv'!O211,\n'[5]SM2 - DECC Scenario 1 equiv'!O211,\n'[5]SM3 - DECC Scenario 2 equiv'!O211,\n'[5]SM4 - DNO Scenario 4 equiv'!O211,\n'[6]M1a - Model inputs'!O211,\n'[6]M1b - Model inputs'!O211,\n'[6]SM1 - DECC Scenario 3 equiv'!O211,\n'[6]SM2 - DECC Scenario 1 equiv'!O211,\n'[6]SM3 - DECC Scenario 2 equiv'!O211,\n'[6]SM4 - DNO Scenario 4 equiv'!O211)","v":0},{"$f":"CHOOSE(view,\n'[5]M1a - Model inputs'!P211,\n'[5]M1b - Model inputs'!P211,\n'[5]SM1 - DECC Scenario 3 equiv'!P211,\n'[5]SM2 - DECC Scenario 1 equiv'!P211,\n'[5]SM3 - DECC Scenario 2 equiv'!P211,\n'[5]SM4 - DNO Scenario 4 equiv'!P211,\n'[6]M1a - Model inputs'!P211,\n'[6]M1b - Model inputs'!P211,\n'[6]SM1 - DECC Scenario 3 equiv'!P211,\n'[6]SM2 - DECC Scenario 1 equiv'!P211,\n'[6]SM3 - DECC Scenario 2 equiv'!P211,\n'[6]SM4 - DNO Scenario 4 equiv'!P211)","v":0},{"$f":"CHOOSE(view,\n'[5]M1a - Model inputs'!Q211,\n'[5]M1b - Model inputs'!Q211,\n'[5]SM1 - DECC Scenario 3 equiv'!Q211,\n'[5]SM2 - DECC Scenario 1 equiv'!Q211,\n'[5]SM3 - DECC Scenario 2 equiv'!Q211,\n'[5]SM4 - DNO Scenario 4 equiv'!Q211,\n'[6]M1a - Model inputs'!Q211,\n'[6]M1b - Model inputs'!Q211,\n'[6]SM1 - DECC Scenario 3 equiv'!Q211,\n'[6]SM2 - DECC Scenario 1 equiv'!Q211,\n'[6]SM3 - DECC Scenario 2 equiv'!Q211,\n'[6]SM4 - DNO Scenario 4 equiv'!Q211)","v":0},{"$f":"CHOOSE(view,\n'[5]M1a - Model inputs'!R211,\n'[5]M1b - Model inputs'!R211,\n'[5]SM1 - DECC Scenario 3 equiv'!R211,\n'[5]SM2 - DECC Scenario 1 equiv'!R211,\n'[5]SM3 - DECC Scenario 2 equiv'!R211,\n'[5]SM4 - DNO Scenario 4 equiv'!R211,\n'[6]M1a - Model inputs'!R211,\n'[6]M1b - Model inputs'!R211,\n'[6]SM1 - DECC Scenario 3 equiv'!R211,\n'[6]SM2 - DECC Scenario 1 equiv'!R211,\n'[6]SM3 - DECC Scenario 2 equiv'!R211,\n'[6]SM4 - DNO Scenario 4 equiv'!R211)","v":0},{"$f":"CHOOSE(view,\n'[5]M1a - Model inputs'!S211,\n'[5]M1b - Model inputs'!S211,\n'[5]SM1 - DECC Scenario 3 equiv'!S211,\n'[5]SM2 - DECC Scenario 1 equiv'!S211,\n'[5]SM3 - DECC Scenario 2 equiv'!S211,\n'[5]SM4 - DNO Scenario 4 equiv'!S211,\n'[6]M1a - Model inputs'!S211,\n'[6]M1b - Model inputs'!S211,\n'[6]SM1 - DECC Scenario 3 equiv'!S211,\n'[6]SM2 - DECC Scenario 1 equiv'!S211,\n'[6]SM3 - DECC Scenario 2 equiv'!S211,\n'[6]SM4 - DNO Scenario 4 equiv'!S211)","v":0}]
[null,null,null,null,{"$f":"Input!E143","v":"Allocation to non-load related capex - asset replacement"},null,"%",null,null,null,null,null,null,null,null,null,null,null,null,null,null,null,null,null,null,null,null,null,null,null,null,null,null,null,null,{"$f":"CHOOSE(view,\n'[5]M1a - Model inputs'!L212,\n'[5]M1b - Model inputs'!L212,\n'[5]SM1 - DECC Scenario 3 equiv'!L212,\n'[5]SM2 - DECC Scenario 1 equiv'!L212,\n'[5]SM3 - DECC Scenario 2 equiv'!L212,\n'[5]SM4 - DNO Scenario 4 equiv'!L212,\n'[6]M1a - Model inputs'!L212,\n'[6]M1b - Model inputs'!L212,\n'[6]SM1 - DECC Scenario 3 equiv'!L212,\n'[6]SM2 - DECC Scenario 1 equiv'!L212,\n'[6]SM3 - DECC Scenario 2 equiv'!L212,\n'[6]SM4 - DNO Scenario 4 equiv'!L212)","v":0.26719531855228551},{"$f":"CHOOSE(view,\n'[5]M1a - Model inputs'!M212,\n'[5]M1b - Model inputs'!M212,\n'[5]SM1 - DECC Scenario 3 equiv'!M212,\n'[5]SM2 - DECC Scenario 1 equiv'!M212,\n'[5]SM3 - DECC Scenario 2 equiv'!M212,\n'[5]SM4 - DNO Scenario 4 equiv'!M212,\n'[6]M1a - Model inputs'!M212,\n'[6]M1b - Model inputs'!M212,\n'[6]SM1 - DECC Scenario 3 equiv'!M212,\n'[6]SM2 - DECC Scenario 1 equiv'!M212,\n'[6]SM3 - DECC Scenario 2 equiv'!M212,\n'[6]SM4 - DNO Scenario 4 equiv'!M212)","v":0.26702860805031753},{"$f":"CHOOSE(view,\n'[5]M1a - Model inputs'!N212,\n'[5]M1b - Model inputs'!N212,\n'[5]SM1 - DECC Scenario 3 equiv'!N212,\n'[5]SM2 - DECC Scenario 1 equiv'!N212,\n'[5]SM3 - DECC Scenario 2 equiv'!N212,\n'[5]SM4 - DNO Scenario 4 equiv'!N212,\n'[6]M1a - Model inputs'!N212,\n'[6]M1b - Model inputs'!N212,\n'[6]SM1 - DECC Scenario 3 equiv'!N212,\n'[6]SM2 - DECC Scenario 1 equiv'!N212,\n'[6]SM3 - DECC Scenario 2 equiv'!N212,\n'[6]SM4 - DNO Scenario 4 equiv'!N212)","v":0.26664698487336658},{"$f":"CHOOSE(view,\n'[5]M1a - Model inputs'!O212,\n'[5]M1b - Model inputs'!O212,\n'[5]SM1 - DECC Scenario 3 equiv'!O212,\n'[5]SM2 - DECC Scenario 1 equiv'!O212,\n'[5]SM3 - DECC Scenario 2 equiv'!O212,\n'[5]SM4 - DNO Scenario 4 equiv'!O212,\n'[6]M1a - Model inputs'!O212,\n'[6]M1b - Model inputs'!O212,\n'[6]SM1 - DECC Scenario 3 equiv'!O212,\n'[6]SM2 - DECC Scenario 1 equiv'!O212,\n'[6]SM3 - DECC Scenario 2 equiv'!O212,\n'[6]SM4 - DNO Scenario 4 equiv'!O212)","v":0.26616209828575144},{"$f":"CHOOSE(view,\n'[5]M1a - Model inputs'!P212,\n'[5]M1b - Model inputs'!P212,\n'[5]SM1 - DECC Scenario 3 equiv'!P212,\n'[5]SM2 - DECC Scenario 1 equiv'!P212,\n'[5]SM3 - DECC Scenario 2 equiv'!P212,\n'[5]SM4 - DNO Scenario 4 equiv'!P212,\n'[6]M1a - Model inputs'!P212,\n'[6]M1b - Model inputs'!P212,\n'[6]SM1 - DECC Scenario 3 equiv'!P212,\n'[6]SM2 - DECC Scenario 1 equiv'!P212,\n'[6]SM3 - DECC Scenario 2 equiv'!P212,\n'[6]SM4 - DNO Scenario 4 equiv'!P212)","v":0.26555844814714596},{"$f":"CHOOSE(view,\n'[5]M1a - Model inputs'!Q212,\n'[5]M1b - Model inputs'!Q212,\n'[5]SM1 - DECC Scenario 3 equiv'!Q212,\n'[5]SM2 - DECC Scenario 1 equiv'!Q212,\n'[5]SM3 - DECC Scenario 2 equiv'!Q212,\n'[5]SM4 - DNO Scenario 4 equiv'!Q212,\n'[6]M1a - Model inputs'!Q212,\n'[6]M1b - Model inputs'!Q212,\n'[6]SM1 - DECC Scenario 3 equiv'!Q212,\n'[6]SM2 - DECC Scenario 1 equiv'!Q212,\n'[6]SM3 - DECC Scenario 2 equiv'!Q212,\n'[6]SM4 - DNO Scenario 4 equiv'!Q212)","v":0.26505131442227242},{"$f":"CHOOSE(view,\n'[5]M1a - Model inputs'!R212,\n'[5]M1b - Model inputs'!R212,\n'[5]SM1 - DECC Scenario 3 equiv'!R212,\n'[5]SM2 - DECC Scenario 1 equiv'!R212,\n'[5]SM3 - DECC Scenario 2 equiv'!R212,\n'[5]SM4 - DNO Scenario 4 equiv'!R212,\n'[6]M1a - Model inputs'!R212,\n'[6]M1b - Model inputs'!R212,\n'[6]SM1 - DECC Scenario 3 equiv'!R212,\n'[6]SM2 - DECC Scenario 1 equiv'!R212,\n'[6]SM3 - DECC Scenario 2 equiv'!R212,\n'[6]SM4 - DNO Scenario 4 equiv'!R212)","v":0.26448130823828814},{"$f":"CHOOSE(view,\n'[5]M1a - Model inputs'!S212,\n'[5]M1b - Model inputs'!S212,\n'[5]SM1 - DECC Scenario 3 equiv'!S212,\n'[5]SM2 - DECC Scenario 1 equiv'!S212,\n'[5]SM3 - DECC Scenario 2 equiv'!S212,\n'[5]SM4 - DNO Scenario 4 equiv'!S212,\n'[6]M1a - Model inputs'!S212,\n'[6]M1b - Model inputs'!S212,\n'[6]SM1 - DECC Scenario 3 equiv'!S212,\n'[6]SM2 - DECC Scenario 1 equiv'!S212,\n'[6]SM3 - DECC Scenario 2 equiv'!S212,\n'[6]SM4 - DNO Scenario 4 equiv'!S212)","v":0.26391324247537018}]
[null,null,null,null,{"$f":"Input!E144","v":"Allocation to non-load related capex - other"},null,"%",null,null,null,null,null,null,null,null,null,null,null,null,null,null,null,null,null,null,null,null,null,null,null,null,null,null,null,null,{"$f":"CHOOSE(view,\n'[5]M1a - Model inputs'!L213,\n'[5]M1b - Model inputs'!L213,\n'[5]SM1 - DECC Scenario 3 equiv'!L213,\n'[5]SM2 - DECC Scenario 1 equiv'!L213,\n'[5]SM3 - DECC Scenario 2 equiv'!L213,\n'[5]SM4 - DNO Scenario 4 equiv'!L213,\n'[6]M1a - Model inputs'!L213,\n'[6]M1b - Model inputs'!L213,\n'[6]SM1 - DECC Scenario 3 equiv'!L213,\n'[6]SM2 - DECC Scenario 1 equiv'!L213,\n'[6]SM3 - DECC Scenario 2 equiv'!L213,\n'[6]SM4 - DNO Scenario 4 equiv'!L213)","v":0},{"$f":"CHOOSE(view,\n'[5]M1a - Model inputs'!M213,\n'[5]M1b - Model inputs'!M213,\n'[5]SM1 - DECC Scenario 3 equiv'!M213,\n'[5]SM2 - DECC Scenario 1 equiv'!M213,\n'[5]SM3 - DECC Scenario 2 equiv'!M213,\n'[5]SM4 - DNO Scenario 4 equiv'!M213,\n'[6]M1a - Model inputs'!M213,\n'[6]M1b - Model inputs'!M213,\n'[6]SM1 - DECC Scenario 3 equiv'!M213,\n'[6]SM2 - DECC Scenario 1 equiv'!M213,\n'[6]SM3 - DECC Scenario 2 equiv'!M213,\n'[6]SM4 - DNO Scenario 4 equiv'!M213)","v":0},{"$f":"CHOOSE(view,\n'[5]M1a - Model inputs'!N213,\n'[5]M1b - Model inputs'!N213,\n'[5]SM1 - DECC Scenario 3 equiv'!N213,\n'[5]SM2 - DECC Scenario 1 equiv'!N213,\n'[5]SM3 - DECC Scenario 2 equiv'!N213,\n'[5]SM4 - DNO Scenario 4 equiv'!N213,\n'[6]M1a - Model inputs'!N213,\n'[6]M1b - Model inputs'!N213,\n'[6]SM1 - DECC Scenario 3 equiv'!N213,\n'[6]SM2 - DECC Scenario 1 equiv'!N213,\n'[6]SM3 - DECC Scenario 2 equiv'!N213,\n'[6]SM4 - DNO Scenario 4 equiv'!N213)","v":0},{"$f":"CHOOSE(view,\n'[5]M1a - Model inputs'!O213,\n'[5]M1b - Model inputs'!O213,\n'[5]SM1 - DECC Scenario 3 equiv'!O213,\n'[5]SM2 - DECC Scenario 1 equiv'!O213,\n'[5]SM3 - DECC Scenario 2 equiv'!O213,\n'[5]SM4 - DNO Scenario 4 equiv'!O213,\n'[6]M1a - Model inputs'!O213,\n'[6]M1b - Model inputs'!O213,\n'[6]SM1 - DECC Scenario 3 equiv'!O213,\n'[6]SM2 - DECC Scenario 1 equiv'!O213,\n'[6]SM3 - DECC Scenario 2 equiv'!O213,\n'[6]SM4 - DNO Scenario 4 equiv'!O213)","v":0},{"$f":"CHOOSE(view,\n'[5]M1a - Model inputs'!P213,\n'[5]M1b - Model inputs'!P213,\n'[5]SM1 - DECC Scenario 3 equiv'!P213,\n'[5]SM2 - DECC Scenario 1 equiv'!P213,\n'[5]SM3 - DECC Scenario 2 equiv'!P213,\n'[5]SM4 - DNO Scenario 4 equiv'!P213,\n'[6]M1a - Model inputs'!P213,\n'[6]M1b - Model inputs'!P213,\n'[6]SM1 - DECC Scenario 3 equiv'!P213,\n'[6]SM2 - DECC Scenario 1 equiv'!P213,\n'[6]SM3 - DECC Scenario 2 equiv'!P213,\n'[6]SM4 - DNO Scenario 4 equiv'!P213)","v":0},{"$f":"CHOOSE(view,\n'[5]M1a - Model inputs'!Q213,\n'[5]M1b - Model inputs'!Q213,\n'[5]SM1 - DECC Scenario 3 equiv'!Q213,\n'[5]SM2 - DECC Scenario 1 equiv'!Q213,\n'[5]SM3 - DECC Scenario 2 equiv'!Q213,\n'[5]SM4 - DNO Scenario 4 equiv'!Q213,\n'[6]M1a - Model inputs'!Q213,\n'[6]M1b - Model inputs'!Q213,\n'[6]SM1 - DECC Scenario 3 equiv'!Q213,\n'[6]SM2 - DECC Scenario 1 equiv'!Q213,\n'[6]SM3 - DECC Scenario 2 equiv'!Q213,\n'[6]SM4 - DNO Scenario 4 equiv'!Q213)","v":0},{"$f":"CHOOSE(view,\n'[5]M1a - Model inputs'!R213,\n'[5]M1b - Model inputs'!R213,\n'[5]SM1 - DECC Scenario 3 equiv'!R213,\n'[5]SM2 - DECC Scenario 1 equiv'!R213,\n'[5]SM3 - DECC Scenario 2 equiv'!R213,\n'[5]SM4 - DNO Scenario 4 equiv'!R213,\n'[6]M1a - Model inputs'!R213,\n'[6]M1b - Model inputs'!R213,\n'[6]SM1 - DECC Scenario 3 equiv'!R213,\n'[6]SM2 - DECC Scenario 1 equiv'!R213,\n'[6]SM3 - DECC Scenario 2 equiv'!R213,\n'[6]SM4 - DNO Scenario 4 equiv'!R213)","v":0},{"$f":"CHOOSE(view,\n'[5]M1a - Model inputs'!S213,\n'[5]M1b - Model inputs'!S213,\n'[5]SM1 - DECC Scenario 3 equiv'!S213,\n'[5]SM2 - DECC Scenario 1 equiv'!S213,\n'[5]SM3 - DECC Scenario 2 equiv'!S213,\n'[5]SM4 - DNO Scenario 4 equiv'!S213,\n'[6]M1a - Model inputs'!S213,\n'[6]M1b - Model inputs'!S213,\n'[6]SM1 - DECC Scenario 3 equiv'!S213,\n'[6]SM2 - DECC Scenario 1 equiv'!S213,\n'[6]SM3 - DECC Scenario 2 equiv'!S213,\n'[6]SM4 - DNO Scenario 4 equiv'!S213)","v":0}]
[null,null,null,null,{"$f":"Input!E145","v":"Allocation to faults"},null,"%",null,null,null,null,null,null,null,null,null,null,null,null,null,null,null,null,null,null,null,null,null,null,null,null,null,null,null,null,{"$f":"CHOOSE(view,\n'[5]M1a - Model inputs'!L214,\n'[5]M1b - Model inputs'!L214,\n'[5]SM1 - DECC Scenario 3 equiv'!L214,\n'[5]SM2 - DECC Scenario 1 equiv'!L214,\n'[5]SM3 - DECC Scenario 2 equiv'!L214,\n'[5]SM4 - DNO Scenario 4 equiv'!L214,\n'[6]M1a - Model inputs'!L214,\n'[6]M1b - Model inputs'!L214,\n'[6]SM1 - DECC Scenario 3 equiv'!L214,\n'[6]SM2 - DECC Scenario 1 equiv'!L214,\n'[6]SM3 - DECC Scenario 2 equiv'!L214,\n'[6]SM4 - DNO Scenario 4 equiv'!L214)","v":0.73280468144771449},{"$f":"CHOOSE(view,\n'[5]M1a - Model inputs'!M214,\n'[5]M1b - Model inputs'!M214,\n'[5]SM1 - DECC Scenario 3 equiv'!M214,\n'[5]SM2 - DECC Scenario 1 equiv'!M214,\n'[5]SM3 - DECC Scenario 2 equiv'!M214,\n'[5]SM4 - DNO Scenario 4 equiv'!M214,\n'[6]M1a - Model inputs'!M214,\n'[6]M1b - Model inputs'!M214,\n'[6]SM1 - DECC Scenario 3 equiv'!M214,\n'[6]SM2 - DECC Scenario 1 equiv'!M214,\n'[6]SM3 - DECC Scenario 2 equiv'!M214,\n'[6]SM4 - DNO Scenario 4 equiv'!M214)","v":0.73297139194968253},{"$f":"CHOOSE(view,\n'[5]M1a - Model inputs'!N214,\n'[5]M1b - Model inputs'!N214,\n'[5]SM1 - DECC Scenario 3 equiv'!N214,\n'[5]SM2 - DECC Scenario 1 equiv'!N214,\n'[5]SM3 - DECC Scenario 2 equiv'!N214,\n'[5]SM4 - DNO Scenario 4 equiv'!N214,\n'[6]M1a - Model inputs'!N214,\n'[6]M1b - Model inputs'!N214,\n'[6]SM1 - DECC Scenario 3 equiv'!N214,\n'[6]SM2 - DECC Scenario 1 equiv'!N214,\n'[6]SM3 - DECC Scenario 2 equiv'!N214,\n'[6]SM4 - DNO Scenario 4 equiv'!N214)","v":0.73335301512663353},{"$f":"CHOOSE(view,\n'[5]M1a - Model inputs'!O214,\n'[5]M1b - Model inputs'!O214,\n'[5]SM1 - DECC Scenario 3 equiv'!O214,\n'[5]SM2 - DECC Scenario 1 equiv'!O214,\n'[5]SM3 - DECC Scenario 2 equiv'!O214,\n'[5]SM4 - DNO Scenario 4 equiv'!O214,\n'[6]M1a - Model inputs'!O214,\n'[6]M1b - Model inputs'!O214,\n'[6]SM1 - DECC Scenario 3 equiv'!O214,\n'[6]SM2 - DECC Scenario 1 equiv'!O214,\n'[6]SM3 - DECC Scenario 2 equiv'!O214,\n'[6]SM4 - DNO Scenario 4 equiv'!O214)","v":0.73383790171424845},{"$f":"CHOOSE(view,\n'[5]M1a - Model inputs'!P214,\n'[5]M1b - Model inputs'!P214,\n'[5]SM1 - DECC Scenario 3 equiv'!P214,\n'[5]SM2 - DECC Scenario 1 equiv'!P214,\n'[5]SM3 - DECC Scenario 2 equiv'!P214,\n'[5]SM4 - DNO Scenario 4 equiv'!P214,\n'[6]M1a - Model inputs'!P214,\n'[6]M1b - Model inputs'!P214,\n'[6]SM1 - DECC Scenario 3 equiv'!P214,\n'[6]SM2 - DECC Scenario 1 equiv'!P214,\n'[6]SM3 - DECC Scenario 2 equiv'!P214,\n'[6]SM4 - DNO Scenario 4 equiv'!P214)","v":0.73444155185285409},{"$f":"CHOOSE(view,\n'[5]M1a - Model inputs'!Q214,\n'[5]M1b - Model inputs'!Q214,\n'[5]SM1 - DECC Scenario 3 equiv'!Q214,\n'[5]SM2 - DECC Scenario 1 equiv'!Q214,\n'[5]SM3 - DECC Scenario 2 equiv'!Q214,\n'[5]SM4 - DNO Scenario 4 equiv'!Q214,\n'[6]M1a - Model inputs'!Q214,\n'[6]M1b - Model inputs'!Q214,\n'[6]SM1 - DECC Scenario 3 equiv'!Q214,\n'[6]SM2 - DECC Scenario 1 equiv'!Q214,\n'[6]SM3 - DECC Scenario 2 equiv'!Q214,\n'[6]SM4 - DNO Scenario 4 equiv'!Q214)","v":0.73494868557772752},{"$f":"CHOOSE(view,\n'[5]M1a - Model inputs'!R214,\n'[5]M1b - Model inputs'!R214,\n'[5]SM1 - DECC Scenario 3 equiv'!R214,\n'[5]SM2 - DECC Scenario 1 equiv'!R214,\n'[5]SM3 - DECC Scenario 2 equiv'!R214,\n'[5]SM4 - DNO Scenario 4 equiv'!R214,\n'[6]M1a - Model inputs'!R214,\n'[6]M1b - Model inputs'!R214,\n'[6]SM1 - DECC Scenario 3 equiv'!R214,\n'[6]SM2 - DECC Scenario 1 equiv'!R214,\n'[6]SM3 - DECC Scenario 2 equiv'!R214,\n'[6]SM4 - DNO Scenario 4 equiv'!R214)","v":0.73551869176171181},{"$f":"CHOOSE(view,\n'[5]M1a - Model inputs'!S214,\n'[5]M1b - Model inputs'!S214,\n'[5]SM1 - DECC Scenario 3 equiv'!S214,\n'[5]SM2 - DECC Scenario 1 equiv'!S214,\n'[5]SM3 - DECC Scenario 2 equiv'!S214,\n'[5]SM4 - DNO Scenario 4 equiv'!S214,\n'[6]M1a - Model inputs'!S214,\n'[6]M1b - Model inputs'!S214,\n'[6]SM1 - DECC Scenario 3 equiv'!S214,\n'[6]SM2 - DECC Scenario 1 equiv'!S214,\n'[6]SM3 - DECC Scenario 2 equiv'!S214,\n'[6]SM4 - DNO Scenario 4 equiv'!S214)","v":0.73608675752462982}]
[null,null,null,null,{"$f":"Input!E146","v":"Allocation to tree cutting"},null,"%",null,null,null,null,null,null,null,null,null,null,null,null,null,null,null,null,null,null,null,null,null,null,null,null,null,null,null,null,{"$f":"CHOOSE(view,\n'[5]M1a - Model inputs'!L215,\n'[5]M1b - Model inputs'!L215,\n'[5]SM1 - DECC Scenario 3 equiv'!L215,\n'[5]SM2 - DECC Scenario 1 equiv'!L215,\n'[5]SM3 - DECC Scenario 2 equiv'!L215,\n'[5]SM4 - DNO Scenario 4 equiv'!L215,\n'[6]M1a - Model inputs'!L215,\n'[6]M1b - Model inputs'!L215,\n'[6]SM1 - DECC Scenario 3 equiv'!L215,\n'[6]SM2 - DECC Scenario 1 equiv'!L215,\n'[6]SM3 - DECC Scenario 2 equiv'!L215,\n'[6]SM4 - DNO Scenario 4 equiv'!L215)","v":0},{"$f":"CHOOSE(view,\n'[5]M1a - Model inputs'!M215,\n'[5]M1b - Model inputs'!M215,\n'[5]SM1 - DECC Scenario 3 equiv'!M215,\n'[5]SM2 - DECC Scenario 1 equiv'!M215,\n'[5]SM3 - DECC Scenario 2 equiv'!M215,\n'[5]SM4 - DNO Scenario 4 equiv'!M215,\n'[6]M1a - Model inputs'!M215,\n'[6]M1b - Model inputs'!M215,\n'[6]SM1 - DECC Scenario 3 equiv'!M215,\n'[6]SM2 - DECC Scenario 1 equiv'!M215,\n'[6]SM3 - DECC Scenario 2 equiv'!M215,\n'[6]SM4 - DNO Scenario 4 equiv'!M215)","v":0},{"$f":"CHOOSE(view,\n'[5]M1a - Model inputs'!N215,\n'[5]M1b - Model inputs'!N215,\n'[5]SM1 - DECC Scenario 3 equiv'!N215,\n'[5]SM2 - DECC Scenario 1 equiv'!N215,\n'[5]SM3 - DECC Scenario 2 equiv'!N215,\n'[5]SM4 - DNO Scenario 4 equiv'!N215,\n'[6]M1a - Model inputs'!N215,\n'[6]M1b - Model inputs'!N215,\n'[6]SM1 - DECC Scenario 3 equiv'!N215,\n'[6]SM2 - DECC Scenario 1 equiv'!N215,\n'[6]SM3 - DECC Scenario 2 equiv'!N215,\n'[6]SM4 - DNO Scenario 4 equiv'!N215)","v":0},{"$f":"CHOOSE(view,\n'[5]M1a - Model inputs'!O215,\n'[5]M1b - Model inputs'!O215,\n'[5]SM1 - DECC Scenario 3 equiv'!O215,\n'[5]SM2 - DECC Scenario 1 equiv'!O215,\n'[5]SM3 - DECC Scenario 2 equiv'!O215,\n'[5]SM4 - DNO Scenario 4 equiv'!O215,\n'[6]M1a - Model inputs'!O215,\n'[6]M1b - Model inputs'!O215,\n'[6]SM1 - DECC Scenario 3 equiv'!O215,\n'[6]SM2 - DECC Scenario 1 equiv'!O215,\n'[6]SM3 - DECC Scenario 2 equiv'!O215,\n'[6]SM4 - DNO Scenario 4 equiv'!O215)","v":0},{"$f":"CHOOSE(view,\n'[5]M1a - Model inputs'!P215,\n'[5]M1b - Model inputs'!P215,\n'[5]SM1 - DECC Scenario 3 equiv'!P215,\n'[5]SM2 - DECC Scenario 1 equiv'!P215,\n'[5]SM3 - DECC Scenario 2 equiv'!P215,\n'[5]SM4 - DNO Scenario 4 equiv'!P215,\n'[6]M1a - Model inputs'!P215,\n'[6]M1b - Model inputs'!P215,\n'[6]SM1 - DECC Scenario 3 equiv'!P215,\n'[6]SM2 - DECC Scenario 1 equiv'!P215,\n'[6]SM3 - DECC Scenario 2 equiv'!P215,\n'[6]SM4 - DNO Scenario 4 equiv'!P215)","v":0},{"$f":"CHOOSE(view,\n'[5]M1a - Model inputs'!Q215,\n'[5]M1b - Model inputs'!Q215,\n'[5]SM1 - DECC Scenario 3 equiv'!Q215,\n'[5]SM2 - DECC Scenario 1 equiv'!Q215,\n'[5]SM3 - DECC Scenario 2 equiv'!Q215,\n'[5]SM4 - DNO Scenario 4 equiv'!Q215,\n'[6]M1a - Model inputs'!Q215,\n'[6]M1b - Model inputs'!Q215,\n'[6]SM1 - DECC Scenario 3 equiv'!Q215,\n'[6]SM2 - DECC Scenario 1 equiv'!Q215,\n'[6]SM3 - DECC Scenario 2 equiv'!Q215,\n'[6]SM4 - DNO Scenario 4 equiv'!Q215)","v":0},{"$f":"CHOOSE(view,\n'[5]M1a - Model inputs'!R215,\n'[5]M1b - Model inputs'!R215,\n'[5]SM1 - DECC Scenario 3 equiv'!R215,\n'[5]SM2 - DECC Scenario 1 equiv'!R215,\n'[5]SM3 - DECC Scenario 2 equiv'!R215,\n'[5]SM4 - DNO Scenario 4 equiv'!R215,\n'[6]M1a - Model inputs'!R215,\n'[6]M1b - Model inputs'!R215,\n'[6]SM1 - DECC Scenario 3 equiv'!R215,\n'[6]SM2 - DECC Scenario 1 equiv'!R215,\n'[6]SM3 - DECC Scenario 2 equiv'!R215,\n'[6]SM4 - DNO Scenario 4 equiv'!R215)","v":0},{"$f":"CHOOSE(view,\n'[5]M1a - Model inputs'!S215,\n'[5]M1b - Model inputs'!S215,\n'[5]SM1 - DECC Scenario 3 equiv'!S215,\n'[5]SM2 - DECC Scenario 1 equiv'!S215,\n'[5]SM3 - DECC Scenario 2 equiv'!S215,\n'[5]SM4 - DNO Scenario 4 equiv'!S215,\n'[6]M1a - Model inputs'!S215,\n'[6]M1b - Model inputs'!S215,\n'[6]SM1 - DECC Scenario 3 equiv'!S215,\n'[6]SM2 - DECC Scenario 1 equiv'!S215,\n'[6]SM3 - DECC Scenario 2 equiv'!S215,\n'[6]SM4 - DNO Scenario 4 equiv'!S215)","v":0}]
[null,null,null,null,{"$f":"Input!E147","v":"Allocation to controllable opex"},null,"%",null,null,null,null,null,null,null,null,null,null,null,null,null,null,null,null,null,null,null,null,null,null,null,null,null,null,null,null,{"$f":"CHOOSE(view,\n'[5]M1a - Model inputs'!L216,\n'[5]M1b - Model inputs'!L216,\n'[5]SM1 - DECC Scenario 3 equiv'!L216,\n'[5]SM2 - DECC Scenario 1 equiv'!L216,\n'[5]SM3 - DECC Scenario 2 equiv'!L216,\n'[5]SM4 - DNO Scenario 4 equiv'!L216,\n'[6]M1a - Model inputs'!L216,\n'[6]M1b - Model inputs'!L216,\n'[6]SM1 - DECC Scenario 3 equiv'!L216,\n'[6]SM2 - DECC Scenario 1 equiv'!L216,\n'[6]SM3 - DECC Scenario 2 equiv'!L216,\n'[6]SM4 - DNO Scenario 4 equiv'!L216)","v":0},{"$f":"CHOOSE(view,\n'[5]M1a - Model inputs'!M216,\n'[5]M1b - Model inputs'!M216,\n'[5]SM1 - DECC Scenario 3 equiv'!M216,\n'[5]SM2 - DECC Scenario 1 equiv'!M216,\n'[5]SM3 - DECC Scenario 2 equiv'!M216,\n'[5]SM4 - DNO Scenario 4 equiv'!M216,\n'[6]M1a - Model inputs'!M216,\n'[6]M1b - Model inputs'!M216,\n'[6]SM1 - DECC Scenario 3 equiv'!M216,\n'[6]SM2 - DECC Scenario 1 equiv'!M216,\n'[6]SM3 - DECC Scenario 2 equiv'!M216,\n'[6]SM4 - DNO Scenario 4 equiv'!M216)","v":0},{"$f":"CHOOSE(view,\n'[5]M1a - Model inputs'!N216,\n'[5]M1b - Model inputs'!N216,\n'[5]SM1 - DECC Scenario 3 equiv'!N216,\n'[5]SM2 - DECC Scenario 1 equiv'!N216,\n'[5]SM3 - DECC Scenario 2 equiv'!N216,\n'[5]SM4 - DNO Scenario 4 equiv'!N216,\n'[6]M1a - Model inputs'!N216,\n'[6]M1b - Model inputs'!N216,\n'[6]SM1 - DECC Scenario 3 equiv'!N216,\n'[6]SM2 - DECC Scenario 1 equiv'!N216,\n'[6]SM3 - DECC Scenario 2 equiv'!N216,\n'[6]SM4 - DNO Scenario 4 equiv'!N216)","v":0},{"$f":"CHOOSE(view,\n'[5]M1a - Model inputs'!O216,\n'[5]M1b - Model inputs'!O216,\n'[5]SM1 - DECC Scenario 3 equiv'!O216,\n'[5]SM2 - DECC Scenario 1 equiv'!O216,\n'[5]SM3 - DECC Scenario 2 equiv'!O216,\n'[5]SM4 - DNO Scenario 4 equiv'!O216,\n'[6]M1a - Model inputs'!O216,\n'[6]M1b - Model inputs'!O216,\n'[6]SM1 - DECC Scenario 3 equiv'!O216,\n'[6]SM2 - DECC Scenario 1 equiv'!O216,\n'[6]SM3 - DECC Scenario 2 equiv'!O216,\n'[6]SM4 - DNO Scenario 4 equiv'!O216)","v":0},{"$f":"CHOOSE(view,\n'[5]M1a - Model inputs'!P216,\n'[5]M1b - Model inputs'!P216,\n'[5]SM1 - DECC Scenario 3 equiv'!P216,\n'[5]SM2 - DECC Scenario 1 equiv'!P216,\n'[5]SM3 - DECC Scenario 2 equiv'!P216,\n'[5]SM4 - DNO Scenario 4 equiv'!P216,\n'[6]M1a - Model inputs'!P216,\n'[6]M1b - Model inputs'!P216,\n'[6]SM1 - DECC Scenario 3 equiv'!P216,\n'[6]SM2 - DECC Scenario 1 equiv'!P216,\n'[6]SM3 - DECC Scenario 2 equiv'!P216,\n'[6]SM4 - DNO Scenario 4 equiv'!P216)","v":0},{"$f":"CHOOSE(view,\n'[5]M1a - Model inputs'!Q216,\n'[5]M1b - Model inputs'!Q216,\n'[5]SM1 - DECC Scenario 3 equiv'!Q216,\n'[5]SM2 - DECC Scenario 1 equiv'!Q216,\n'[5]SM3 - DECC Scenario 2 equiv'!Q216,\n'[5]SM4 - DNO Scenario 4 equiv'!Q216,\n'[6]M1a - Model inputs'!Q216,\n'[6]M1b - Model inputs'!Q216,\n'[6]SM1 - DECC Scenario 3 equiv'!Q216,\n'[6]SM2 - DECC Scenario 1 equiv'!Q216,\n'[6]SM3 - DECC Scenario 2 equiv'!Q216,\n'[6]SM4 - DNO Scenario 4 equiv'!Q216)","v":0},{"$f":"CHOOSE(view,\n'[5]M1a - Model inputs'!R216,\n'[5]M1b - Model inputs'!R216,\n'[5]SM1 - DECC Scenario 3 equiv'!R216,\n'[5]SM2 - DECC Scenario 1 equiv'!R216,\n'[5]SM3 - DECC Scenario 2 equiv'!R216,\n'[5]SM4 - DNO Scenario 4 equiv'!R216,\n'[6]M1a - Model inputs'!R216,\n'[6]M1b - Model inputs'!R216,\n'[6]SM1 - DECC Scenario 3 equiv'!R216,\n'[6]SM2 - DECC Scenario 1 equiv'!R216,\n'[6]SM3 - DECC Scenario 2 equiv'!R216,\n'[6]SM4 - DNO Scenario 4 equiv'!R216)","v":0},{"$f":"CHOOSE(view,\n'[5]M1a - Model inputs'!S216,\n'[5]M1b - Model inputs'!S216,\n'[5]SM1 - DECC Scenario 3 equiv'!S216,\n'[5]SM2 - DECC Scenario 1 equiv'!S216,\n'[5]SM3 - DECC Scenario 2 equiv'!S216,\n'[5]SM4 - DNO Scenario 4 equiv'!S216,\n'[6]M1a - Model inputs'!S216,\n'[6]M1b - Model inputs'!S216,\n'[6]SM1 - DECC Scenario 3 equiv'!S216,\n'[6]SM2 - DECC Scenario 1 equiv'!S216,\n'[6]SM3 - DECC Scenario 2 equiv'!S216,\n'[6]SM4 - DNO Scenario 4 equiv'!S216)","v":0}]
[]
[null,null,null,null,{"$f":"Input!E149","v":"Allowed uncertain costs (Load related re-operner)"},null,"£m 12/13 prices",null,null,null,null,null,null,null,null,null,null,null,null,null,null,null,null,null,null,null,null,null,null,null,null,null,null,null,null,{"$f":"AJ24","v":0},{"$f":"AK24","v":0},0,0,0,0,0,0]
[null,null,null,null,{"$f":"Input!E150","v":"Allocation to load related capex"},null,"%",null,null,null,null,null,null,null,null,null,null,null,null,null,null,null,null,null,null,null,null,null,null,null,null,null,null,null,null,{"$f":"CHOOSE(view,\n'[5]M1a - Model inputs'!L163,\n'[5]M1b - Model inputs'!L163,\n'[5]SM1 - DECC Scenario 3 equiv'!L163,\n'[5]SM2 - DECC Scenario 1 equiv'!L163,\n'[5]SM3 - DECC Scenario 2 equiv'!L163,\n'[5]SM4 - DNO Scenario 4 equiv'!L163,\n'[6]M1a - Model inputs'!L163,\n'[6]M1b - Model inputs'!L163,\n'[6]SM1 - DECC Scenario 3 equiv'!L163,\n'[6]SM2 - DECC Scenario 1 equiv'!L163,\n'[6]SM3 - DECC Scenario 2 equiv'!L163,\n'[6]SM4 - DNO Scenario 4 equiv'!L163)","v":1},{"$f":"CHOOSE(view,\n'[5]M1a - Model inputs'!M163,\n'[5]M1b - Model inputs'!M163,\n'[5]SM1 - DECC Scenario 3 equiv'!M163,\n'[5]SM2 - DECC Scenario 1 equiv'!M163,\n'[5]SM3 - DECC Scenario 2 equiv'!M163,\n'[5]SM4 - DNO Scenario 4 equiv'!M163,\n'[6]M1a - Model inputs'!M163,\n'[6]M1b - Model inputs'!M163,\n'[6]SM1 - DECC Scenario 3 equiv'!M163,\n'[6]SM2 - DECC Scenario 1 equiv'!M163,\n'[6]SM3 - DECC Scenario 2 equiv'!M163,\n'[6]SM4 - DNO Scenario 4 equiv'!M163)","v":1},{"$f":"CHOOSE(view,\n'[5]M1a - Model inputs'!N163,\n'[5]M1b - Model inputs'!N163,\n'[5]SM1 - DECC Scenario 3 equiv'!N163,\n'[5]SM2 - DECC Scenario 1 equiv'!N163,\n'[5]SM3 - DECC Scenario 2 equiv'!N163,\n'[5]SM4 - DNO Scenario 4 equiv'!N163,\n'[6]M1a - Model inputs'!N163,\n'[6]M1b - Model inputs'!N163,\n'[6]SM1 - DECC Scenario 3 equiv'!N163,\n'[6]SM2 - DECC Scenario 1 equiv'!N163,\n'[6]SM3 - DECC Scenario 2 equiv'!N163,\n'[6]SM4 - DNO Scenario 4 equiv'!N163)","v":1},{"$f":"CHOOSE(view,\n'[5]M1a - Model inputs'!O163,\n'[5]M1b - Model inputs'!O163,\n'[5]SM1 - DECC Scenario 3 equiv'!O163,\n'[5]SM2 - DECC Scenario 1 equiv'!O163,\n'[5]SM3 - DECC Scenario 2 equiv'!O163,\n'[5]SM4 - DNO Scenario 4 equiv'!O163,\n'[6]M1a - Model inputs'!O163,\n'[6]M1b - Model inputs'!O163,\n'[6]SM1 - DECC Scenario 3 equiv'!O163,\n'[6]SM2 - DECC Scenario 1 equiv'!O163,\n'[6]SM3 - DECC Scenario 2 equiv'!O163,\n'[6]SM4 - DNO Scenario 4 equiv'!O163)","v":1},{"$f":"CHOOSE(view,\n'[5]M1a - Model inputs'!P163,\n'[5]M1b - Model inputs'!P163,\n'[5]SM1 - DECC Scenario 3 equiv'!P163,\n'[5]SM2 - DECC Scenario 1 equiv'!P163,\n'[5]SM3 - DECC Scenario 2 equiv'!P163,\n'[5]SM4 - DNO Scenario 4 equiv'!P163,\n'[6]M1a - Model inputs'!P163,\n'[6]M1b - Model inputs'!P163,\n'[6]SM1 - DECC Scenario 3 equiv'!P163,\n'[6]SM2 - DECC Scenario 1 equiv'!P163,\n'[6]SM3 - DECC Scenario 2 equiv'!P163,\n'[6]SM4 - DNO Scenario 4 equiv'!P163)","v":1},{"$f":"CHOOSE(view,\n'[5]M1a - Model inputs'!Q163,\n'[5]M1b - Model inputs'!Q163,\n'[5]SM1 - DECC Scenario 3 equiv'!Q163,\n'[5]SM2 - DECC Scenario 1 equiv'!Q163,\n'[5]SM3 - DECC Scenario 2 equiv'!Q163,\n'[5]SM4 - DNO Scenario 4 equiv'!Q163,\n'[6]M1a - Model inputs'!Q163,\n'[6]M1b - Model inputs'!Q163,\n'[6]SM1 - DECC Scenario 3 equiv'!Q163,\n'[6]SM2 - DECC Scenario 1 equiv'!Q163,\n'[6]SM3 - DECC Scenario 2 equiv'!Q163,\n'[6]SM4 - DNO Scenario 4 equiv'!Q163)","v":1},{"$f":"CHOOSE(view,\n'[5]M1a - Model inputs'!R163,\n'[5]M1b - Model inputs'!R163,\n'[5]SM1 - DECC Scenario 3 equiv'!R163,\n'[5]SM2 - DECC Scenario 1 equiv'!R163,\n'[5]SM3 - DECC Scenario 2 equiv'!R163,\n'[5]SM4 - DNO Scenario 4 equiv'!R163,\n'[6]M1a - Model inputs'!R163,\n'[6]M1b - Model inputs'!R163,\n'[6]SM1 - DECC Scenario 3 equiv'!R163,\n'[6]SM2 - DECC Scenario 1 equiv'!R163,\n'[6]SM3 - DECC Scenario 2 equiv'!R163,\n'[6]SM4 - DNO Scenario 4 equiv'!R163)","v":1},{"$f":"CHOOSE(view,\n'[5]M1a - Model inputs'!S163,\n'[5]M1b - Model inputs'!S163,\n'[5]SM1 - DECC Scenario 3 equiv'!S163,\n'[5]SM2 - DECC Scenario 1 equiv'!S163,\n'[5]SM3 - DECC Scenario 2 equiv'!S163,\n'[5]SM4 - DNO Scenario 4 equiv'!S163,\n'[6]M1a - Model inputs'!S163,\n'[6]M1b - Model inputs'!S163,\n'[6]SM1 - DECC Scenario 3 equiv'!S163,\n'[6]SM2 - DECC Scenario 1 equiv'!S163,\n'[6]SM3 - DECC Scenario 2 equiv'!S163,\n'[6]SM4 - DNO Scenario 4 equiv'!S163)","v":1}]
[null,null,null,null,{"$f":"Input!E151","v":"Allocation to non-load related capex - asset replacement"},null,"%",null,null,null,null,null,null,null,null,null,null,null,null,null,null,null,null,null,null,null,null,null,null,null,null,null,null,null,null,{"$f":"CHOOSE(view,\n'[5]M1a - Model inputs'!L164,\n'[5]M1b - Model inputs'!L164,\n'[5]SM1 - DECC Scenario 3 equiv'!L164,\n'[5]SM2 - DECC Scenario 1 equiv'!L164,\n'[5]SM3 - DECC Scenario 2 equiv'!L164,\n'[5]SM4 - DNO Scenario 4 equiv'!L164,\n'[6]M1a - Model inputs'!L164,\n'[6]M1b - Model inputs'!L164,\n'[6]SM1 - DECC Scenario 3 equiv'!L164,\n'[6]SM2 - DECC Scenario 1 equiv'!L164,\n'[6]SM3 - DECC Scenario 2 equiv'!L164,\n'[6]SM4 - DNO Scenario 4 equiv'!L164)","v":0},{"$f":"CHOOSE(view,\n'[5]M1a - Model inputs'!M164,\n'[5]M1b - Model inputs'!M164,\n'[5]SM1 - DECC Scenario 3 equiv'!M164,\n'[5]SM2 - DECC Scenario 1 equiv'!M164,\n'[5]SM3 - DECC Scenario 2 equiv'!M164,\n'[5]SM4 - DNO Scenario 4 equiv'!M164,\n'[6]M1a - Model inputs'!M164,\n'[6]M1b - Model inputs'!M164,\n'[6]SM1 - DECC Scenario 3 equiv'!M164,\n'[6]SM2 - DECC Scenario 1 equiv'!M164,\n'[6]SM3 - DECC Scenario 2 equiv'!M164,\n'[6]SM4 - DNO Scenario 4 equiv'!M164)","v":0},{"$f":"CHOOSE(view,\n'[5]M1a - Model inputs'!N164,\n'[5]M1b - Model inputs'!N164,\n'[5]SM1 - DECC Scenario 3 equiv'!N164,\n'[5]SM2 - DECC Scenario 1 equiv'!N164,\n'[5]SM3 - DECC Scenario 2 equiv'!N164,\n'[5]SM4 - DNO Scenario 4 equiv'!N164,\n'[6]M1a - Model inputs'!N164,\n'[6]M1b - Model inputs'!N164,\n'[6]SM1 - DECC Scenario 3 equiv'!N164,\n'[6]SM2 - DECC Scenario 1 equiv'!N164,\n'[6]SM3 - DECC Scenario 2 equiv'!N164,\n'[6]SM4 - DNO Scenario 4 equiv'!N164)","v":0},{"$f":"CHOOSE(view,\n'[5]M1a - Model inputs'!O164,\n'[5]M1b - Model inputs'!O164,\n'[5]SM1 - DECC Scenario 3 equiv'!O164,\n'[5]SM2 - DECC Scenario 1 equiv'!O164,\n'[5]SM3 - DECC Scenario 2 equiv'!O164,\n'[5]SM4 - DNO Scenario 4 equiv'!O164,\n'[6]M1a - Model inputs'!O164,\n'[6]M1b - Model inputs'!O164,\n'[6]SM1 - DECC Scenario 3 equiv'!O164,\n'[6]SM2 - DECC Scenario 1 equiv'!O164,\n'[6]SM3 - DECC Scenario 2 equiv'!O164,\n'[6]SM4 - DNO Scenario 4 equiv'!O164)","v":0},{"$f":"CHOOSE(view,\n'[5]M1a - Model inputs'!P164,\n'[5]M1b - Model inputs'!P164,\n'[5]SM1 - DECC Scenario 3 equiv'!P164,\n'[5]SM2 - DECC Scenario 1 equiv'!P164,\n'[5]SM3 - DECC Scenario 2 equiv'!P164,\n'[5]SM4 - DNO Scenario 4 equiv'!P164,\n'[6]M1a - Model inputs'!P164,\n'[6]M1b - Model inputs'!P164,\n'[6]SM1 - DECC Scenario 3 equiv'!P164,\n'[6]SM2 - DECC Scenario 1 equiv'!P164,\n'[6]SM3 - DECC Scenario 2 equiv'!P164,\n'[6]SM4 - DNO Scenario 4 equiv'!P164)","v":0},{"$f":"CHOOSE(view,\n'[5]M1a - Model inputs'!Q164,\n'[5]M1b - Model inputs'!Q164,\n'[5]SM1 - DECC Scenario 3 equiv'!Q164,\n'[5]SM2 - DECC Scenario 1 equiv'!Q164,\n'[5]SM3 - DECC Scenario 2 equiv'!Q164,\n'[5]SM4 - DNO Scenario 4 equiv'!Q164,\n'[6]M1a - Model inputs'!Q164,\n'[6]M1b - Model inputs'!Q164,\n'[6]SM1 - DECC Scenario 3 equiv'!Q164,\n'[6]SM2 - DECC Scenario 1 equiv'!Q164,\n'[6]SM3 - DECC Scenario 2 equiv'!Q164,\n'[6]SM4 - DNO Scenario 4 equiv'!Q164)","v":0},{"$f":"CHOOSE(view,\n'[5]M1a - Model inputs'!R164,\n'[5]M1b - Model inputs'!R164,\n'[5]SM1 - DECC Scenario 3 equiv'!R164,\n'[5]SM2 - DECC Scenario 1 equiv'!R164,\n'[5]SM3 - DECC Scenario 2 equiv'!R164,\n'[5]SM4 - DNO Scenario 4 equiv'!R164,\n'[6]M1a - Model inputs'!R164,\n'[6]M1b - Model inputs'!R164,\n'[6]SM1 - DECC Scenario 3 equiv'!R164,\n'[6]SM2 - DECC Scenario 1 equiv'!R164,\n'[6]SM3 - DECC Scenario 2 equiv'!R164,\n'[6]SM4 - DNO Scenario 4 equiv'!R164)","v":0},{"$f":"CHOOSE(view,\n'[5]M1a - Model inputs'!S164,\n'[5]M1b - Model inputs'!S164,\n'[5]SM1 - DECC Scenario 3 equiv'!S164,\n'[5]SM2 - DECC Scenario 1 equiv'!S164,\n'[5]SM3 - DECC Scenario 2 equiv'!S164,\n'[5]SM4 - DNO Scenario 4 equiv'!S164,\n'[6]M1a - Model inputs'!S164,\n'[6]M1b - Model inputs'!S164,\n'[6]SM1 - DECC Scenario 3 equiv'!S164,\n'[6]SM2 - DECC Scenario 1 equiv'!S164,\n'[6]SM3 - DECC Scenario 2 equiv'!S164,\n'[6]SM4 - DNO Scenario 4 equiv'!S164)","v":0}]
[null,null,null,null,{"$f":"Input!E152","v":"Allocation to non-load related capex - other"},null,"%",null,null,null,null,null,null,null,null,null,null,null,null,null,null,null,null,null,null,null,null,null,null,null,null,null,null,null,null,{"$f":"CHOOSE(view,\n'[5]M1a - Model inputs'!L165,\n'[5]M1b - Model inputs'!L165,\n'[5]SM1 - DECC Scenario 3 equiv'!L165,\n'[5]SM2 - DECC Scenario 1 equiv'!L165,\n'[5]SM3 - DECC Scenario 2 equiv'!L165,\n'[5]SM4 - DNO Scenario 4 equiv'!L165,\n'[6]M1a - Model inputs'!L165,\n'[6]M1b - Model inputs'!L165,\n'[6]SM1 - DECC Scenario 3 equiv'!L165,\n'[6]SM2 - DECC Scenario 1 equiv'!L165,\n'[6]SM3 - DECC Scenario 2 equiv'!L165,\n'[6]SM4 - DNO Scenario 4 equiv'!L165)","v":0},{"$f":"CHOOSE(view,\n'[5]M1a - Model inputs'!M165,\n'[5]M1b - Model inputs'!M165,\n'[5]SM1 - DECC Scenario 3 equiv'!M165,\n'[5]SM2 - DECC Scenario 1 equiv'!M165,\n'[5]SM3 - DECC Scenario 2 equiv'!M165,\n'[5]SM4 - DNO Scenario 4 equiv'!M165,\n'[6]M1a - Model inputs'!M165,\n'[6]M1b - Model inputs'!M165,\n'[6]SM1 - DECC Scenario 3 equiv'!M165,\n'[6]SM2 - DECC Scenario 1 equiv'!M165,\n'[6]SM3 - DECC Scenario 2 equiv'!M165,\n'[6]SM4 - DNO Scenario 4 equiv'!M165)","v":0},{"$f":"CHOOSE(view,\n'[5]M1a - Model inputs'!N165,\n'[5]M1b - Model inputs'!N165,\n'[5]SM1 - DECC Scenario 3 equiv'!N165,\n'[5]SM2 - DECC Scenario 1 equiv'!N165,\n'[5]SM3 - DECC Scenario 2 equiv'!N165,\n'[5]SM4 - DNO Scenario 4 equiv'!N165,\n'[6]M1a - Model inputs'!N165,\n'[6]M1b - Model inputs'!N165,\n'[6]SM1 - DECC Scenario 3 equiv'!N165,\n'[6]SM2 - DECC Scenario 1 equiv'!N165,\n'[6]SM3 - DECC Scenario 2 equiv'!N165,\n'[6]SM4 - DNO Scenario 4 equiv'!N165)","v":0},{"$f":"CHOOSE(view,\n'[5]M1a - Model inputs'!O165,\n'[5]M1b - Model inputs'!O165,\n'[5]SM1 - DECC Scenario 3 equiv'!O165,\n'[5]SM2 - DECC Scenario 1 equiv'!O165,\n'[5]SM3 - DECC Scenario 2 equiv'!O165,\n'[5]SM4 - DNO Scenario 4 equiv'!O165,\n'[6]M1a - Model inputs'!O165,\n'[6]M1b - Model inputs'!O165,\n'[6]SM1 - DECC Scenario 3 equiv'!O165,\n'[6]SM2 - DECC Scenario 1 equiv'!O165,\n'[6]SM3 - DECC Scenario 2 equiv'!O165,\n'[6]SM4 - DNO Scenario 4 equiv'!O165)","v":0},{"$f":"CHOOSE(view,\n'[5]M1a - Model inputs'!P165,\n'[5]M1b - Model inputs'!P165,\n'[5]SM1 - DECC Scenario 3 equiv'!P165,\n'[5]SM2 - DECC Scenario 1 equiv'!P165,\n'[5]SM3 - DECC Scenario 2 equiv'!P165,\n'[5]SM4 - DNO Scenario 4 equiv'!P165,\n'[6]M1a - Model inputs'!P165,\n'[6]M1b - Model inputs'!P165,\n'[6]SM1 - DECC Scenario 3 equiv'!P165,\n'[6]SM2 - DECC Scenario 1 equiv'!P165,\n'[6]SM3 - DECC Scenario 2 equiv'!P165,\n'[6]SM4 - DNO Scenario 4 equiv'!P165)","v":0},{"$f":"CHOOSE(view,\n'[5]M1a - Model inputs'!Q165,\n'[5]M1b - Model inputs'!Q165,\n'[5]SM1 - DECC Scenario 3 equiv'!Q165,\n'[5]SM2 - DECC Scenario 1 equiv'!Q165,\n'[5]SM3 - DECC Scenario 2 equiv'!Q165,\n'[5]SM4 - DNO Scenario 4 equiv'!Q165,\n'[6]M1a - Model inputs'!Q165,\n'[6]M1b - Model inputs'!Q165,\n'[6]SM1 - DECC Scenario 3 equiv'!Q165,\n'[6]SM2 - DECC Scenario 1 equiv'!Q165,\n'[6]SM3 - DECC Scenario 2 equiv'!Q165,\n'[6]SM4 - DNO Scenario 4 equiv'!Q165)","v":0},{"$f":"CHOOSE(view,\n'[5]M1a - Model inputs'!R165,\n'[5]M1b - Model inputs'!R165,\n'[5]SM1 - DECC Scenario 3 equiv'!R165,\n'[5]SM2 - DECC Scenario 1 equiv'!R165,\n'[5]SM3 - DECC Scenario 2 equiv'!R165,\n'[5]SM4 - DNO Scenario 4 equiv'!R165,\n'[6]M1a - Model inputs'!R165,\n'[6]M1b - Model inputs'!R165,\n'[6]SM1 - DECC Scenario 3 equiv'!R165,\n'[6]SM2 - DECC Scenario 1 equiv'!R165,\n'[6]SM3 - DECC Scenario 2 equiv'!R165,\n'[6]SM4 - DNO Scenario 4 equiv'!R165)","v":0},{"$f":"CHOOSE(view,\n'[5]M1a - Model inputs'!S165,\n'[5]M1b - Model inputs'!S165,\n'[5]SM1 - DECC Scenario 3 equiv'!S165,\n'[5]SM2 - DECC Scenario 1 equiv'!S165,\n'[5]SM3 - DECC Scenario 2 equiv'!S165,\n'[5]SM4 - DNO Scenario 4 equiv'!S165,\n'[6]M1a - Model inputs'!S165,\n'[6]M1b - Model inputs'!S165,\n'[6]SM1 - DECC Scenario 3 equiv'!S165,\n'[6]SM2 - DECC Scenario 1 equiv'!S165,\n'[6]SM3 - DECC Scenario 2 equiv'!S165,\n'[6]SM4 - DNO Scenario 4 equiv'!S165)","v":0}]
[null,null,null,null,{"$f":"Input!E153","v":"Allocation to faults"},null,"%",null,null,null,null,null,null,null,null,null,null,null,null,null,null,null,null,null,null,null,null,null,null,null,null,null,null,null,null,{"$f":"CHOOSE(view,\n'[5]M1a - Model inputs'!L166,\n'[5]M1b - Model inputs'!L166,\n'[5]SM1 - DECC Scenario 3 equiv'!L166,\n'[5]SM2 - DECC Scenario 1 equiv'!L166,\n'[5]SM3 - DECC Scenario 2 equiv'!L166,\n'[5]SM4 - DNO Scenario 4 equiv'!L166,\n'[6]M1a - Model inputs'!L166,\n'[6]M1b - Model inputs'!L166,\n'[6]SM1 - DECC Scenario 3 equiv'!L166,\n'[6]SM2 - DECC Scenario 1 equiv'!L166,\n'[6]SM3 - DECC Scenario 2 equiv'!L166,\n'[6]SM4 - DNO Scenario 4 equiv'!L166)","v":0},{"$f":"CHOOSE(view,\n'[5]M1a - Model inputs'!M166,\n'[5]M1b - Model inputs'!M166,\n'[5]SM1 - DECC Scenario 3 equiv'!M166,\n'[5]SM2 - DECC Scenario 1 equiv'!M166,\n'[5]SM3 - DECC Scenario 2 equiv'!M166,\n'[5]SM4 - DNO Scenario 4 equiv'!M166,\n'[6]M1a - Model inputs'!M166,\n'[6]M1b - Model inputs'!M166,\n'[6]SM1 - DECC Scenario 3 equiv'!M166,\n'[6]SM2 - DECC Scenario 1 equiv'!M166,\n'[6]SM3 - DECC Scenario 2 equiv'!M166,\n'[6]SM4 - DNO Scenario 4 equiv'!M166)","v":0},{"$f":"CHOOSE(view,\n'[5]M1a - Model inputs'!N166,\n'[5]M1b - Model inputs'!N166,\n'[5]SM1 - DECC Scenario 3 equiv'!N166,\n'[5]SM2 - DECC Scenario 1 equiv'!N166,\n'[5]SM3 - DECC Scenario 2 equiv'!N166,\n'[5]SM4 - DNO Scenario 4 equiv'!N166,\n'[6]M1a - Model inputs'!N166,\n'[6]M1b - Model inputs'!N166,\n'[6]SM1 - DECC Scenario 3 equiv'!N166,\n'[6]SM2 - DECC Scenario 1 equiv'!N166,\n'[6]SM3 - DECC Scenario 2 equiv'!N166,\n'[6]SM4 - DNO Scenario 4 equiv'!N166)","v":0},{"$f":"CHOOSE(view,\n'[5]M1a - Model inputs'!O166,\n'[5]M1b - Model inputs'!O166,\n'[5]SM1 - DECC Scenario 3 equiv'!O166,\n'[5]SM2 - DECC Scenario 1 equiv'!O166,\n'[5]SM3 - DECC Scenario 2 equiv'!O166,\n'[5]SM4 - DNO Scenario 4 equiv'!O166,\n'[6]M1a - Model inputs'!O166,\n'[6]M1b - Model inputs'!O166,\n'[6]SM1 - DECC Scenario 3 equiv'!O166,\n'[6]SM2 - DECC Scenario 1 equiv'!O166,\n'[6]SM3 - DECC Scenario 2 equiv'!O166,\n'[6]SM4 - DNO Scenario 4 equiv'!O166)","v":0},{"$f":"CHOOSE(view,\n'[5]M1a - Model inputs'!P166,\n'[5]M1b - Model inputs'!P166,\n'[5]SM1 - DECC Scenario 3 equiv'!P166,\n'[5]SM2 - DECC Scenario 1 equiv'!P166,\n'[5]SM3 - DECC Scenario 2 equiv'!P166,\n'[5]SM4 - DNO Scenario 4 equiv'!P166,\n'[6]M1a - Model inputs'!P166,\n'[6]M1b - Model inputs'!P166,\n'[6]SM1 - DECC Scenario 3 equiv'!P166,\n'[6]SM2 - DECC Scenario 1 equiv'!P166,\n'[6]SM3 - DECC Scenario 2 equiv'!P166,\n'[6]SM4 - DNO Scenario 4 equiv'!P166)","v":0},{"$f":"CHOOSE(view,\n'[5]M1a - Model inputs'!Q166,\n'[5]M1b - Model inputs'!Q166,\n'[5]SM1 - DECC Scenario 3 equiv'!Q166,\n'[5]SM2 - DECC Scenario 1 equiv'!Q166,\n'[5]SM3 - DECC Scenario 2 equiv'!Q166,\n'[5]SM4 - DNO Scenario 4 equiv'!Q166,\n'[6]M1a - Model inputs'!Q166,\n'[6]M1b - Model inputs'!Q166,\n'[6]SM1 - DECC Scenario 3 equiv'!Q166,\n'[6]SM2 - DECC Scenario 1 equiv'!Q166,\n'[6]SM3 - DECC Scenario 2 equiv'!Q166,\n'[6]SM4 - DNO Scenario 4 equiv'!Q166)","v":0},{"$f":"CHOOSE(view,\n'[5]M1a - Model inputs'!R166,\n'[5]M1b - Model inputs'!R166,\n'[5]SM1 - DECC Scenario 3 equiv'!R166,\n'[5]SM2 - DECC Scenario 1 equiv'!R166,\n'[5]SM3 - DECC Scenario 2 equiv'!R166,\n'[5]SM4 - DNO Scenario 4 equiv'!R166,\n'[6]M1a - Model inputs'!R166,\n'[6]M1b - Model inputs'!R166,\n'[6]SM1 - DECC Scenario 3 equiv'!R166,\n'[6]SM2 - DECC Scenario 1 equiv'!R166,\n'[6]SM3 - DECC Scenario 2 equiv'!R166,\n'[6]SM4 - DNO Scenario 4 equiv'!R166)","v":0},{"$f":"CHOOSE(view,\n'[5]M1a - Model inputs'!S166,\n'[5]M1b - Model inputs'!S166,\n'[5]SM1 - DECC Scenario 3 equiv'!S166,\n'[5]SM2 - DECC Scenario 1 equiv'!S166,\n'[5]SM3 - DECC Scenario 2 equiv'!S166,\n'[5]SM4 - DNO Scenario 4 equiv'!S166,\n'[6]M1a - Model inputs'!S166,\n'[6]M1b - Model inputs'!S166,\n'[6]SM1 - DECC Scenario 3 equiv'!S166,\n'[6]SM2 - DECC Scenario 1 equiv'!S166,\n'[6]SM3 - DECC Scenario 2 equiv'!S166,\n'[6]SM4 - DNO Scenario 4 equiv'!S166)","v":0}]
[null,null,null,null,{"$f":"Input!E154","v":"Allocation to tree cutting"},null,"%",null,null,null,null,null,null,null,null,null,null,null,null,null,null,null,null,null,null,null,null,null,null,null,null,null,null,null,null,{"$f":"CHOOSE(view,\n'[5]M1a - Model inputs'!L167,\n'[5]M1b - Model inputs'!L167,\n'[5]SM1 - DECC Scenario 3 equiv'!L167,\n'[5]SM2 - DECC Scenario 1 equiv'!L167,\n'[5]SM3 - DECC Scenario 2 equiv'!L167,\n'[5]SM4 - DNO Scenario 4 equiv'!L167,\n'[6]M1a - Model inputs'!L167,\n'[6]M1b - Model inputs'!L167,\n'[6]SM1 - DECC Scenario 3 equiv'!L167,\n'[6]SM2 - DECC Scenario 1 equiv'!L167,\n'[6]SM3 - DECC Scenario 2 equiv'!L167,\n'[6]SM4 - DNO Scenario 4 equiv'!L167)","v":0},{"$f":"CHOOSE(view,\n'[5]M1a - Model inputs'!M167,\n'[5]M1b - Model inputs'!M167,\n'[5]SM1 - DECC Scenario 3 equiv'!M167,\n'[5]SM2 - DECC Scenario 1 equiv'!M167,\n'[5]SM3 - DECC Scenario 2 equiv'!M167,\n'[5]SM4 - DNO Scenario 4 equiv'!M167,\n'[6]M1a - Model inputs'!M167,\n'[6]M1b - Model inputs'!M167,\n'[6]SM1 - DECC Scenario 3 equiv'!M167,\n'[6]SM2 - DECC Scenario 1 equiv'!M167,\n'[6]SM3 - DECC Scenario 2 equiv'!M167,\n'[6]SM4 - DNO Scenario 4 equiv'!M167)","v":0},{"$f":"CHOOSE(view,\n'[5]M1a - Model inputs'!N167,\n'[5]M1b - Model inputs'!N167,\n'[5]SM1 - DECC Scenario 3 equiv'!N167,\n'[5]SM2 - DECC Scenario 1 equiv'!N167,\n'[5]SM3 - DECC Scenario 2 equiv'!N167,\n'[5]SM4 - DNO Scenario 4 equiv'!N167,\n'[6]M1a - Model inputs'!N167,\n'[6]M1b - Model inputs'!N167,\n'[6]SM1 - DECC Scenario 3 equiv'!N167,\n'[6]SM2 - DECC Scenario 1 equiv'!N167,\n'[6]SM3 - DECC Scenario 2 equiv'!N167,\n'[6]SM4 - DNO Scenario 4 equiv'!N167)","v":0},{"$f":"CHOOSE(view,\n'[5]M1a - Model inputs'!O167,\n'[5]M1b - Model inputs'!O167,\n'[5]SM1 - DECC Scenario 3 equiv'!O167,\n'[5]SM2 - DECC Scenario 1 equiv'!O167,\n'[5]SM3 - DECC Scenario 2 equiv'!O167,\n'[5]SM4 - DNO Scenario 4 equiv'!O167,\n'[6]M1a - Model inputs'!O167,\n'[6]M1b - Model inputs'!O167,\n'[6]SM1 - DECC Scenario 3 equiv'!O167,\n'[6]SM2 - DECC Scenario 1 equiv'!O167,\n'[6]SM3 - DECC Scenario 2 equiv'!O167,\n'[6]SM4 - DNO Scenario 4 equiv'!O167)","v":0},{"$f":"CHOOSE(view,\n'[5]M1a - Model inputs'!P167,\n'[5]M1b - Model inputs'!P167,\n'[5]SM1 - DECC Scenario 3 equiv'!P167,\n'[5]SM2 - DECC Scenario 1 equiv'!P167,\n'[5]SM3 - DECC Scenario 2 equiv'!P167,\n'[5]SM4 - DNO Scenario 4 equiv'!P167,\n'[6]M1a - Model inputs'!P167,\n'[6]M1b - Model inputs'!P167,\n'[6]SM1 - DECC Scenario 3 equiv'!P167,\n'[6]SM2 - DECC Scenario 1 equiv'!P167,\n'[6]SM3 - DECC Scenario 2 equiv'!P167,\n'[6]SM4 - DNO Scenario 4 equiv'!P167)","v":0},{"$f":"CHOOSE(view,\n'[5]M1a - Model inputs'!Q167,\n'[5]M1b - Model inputs'!Q167,\n'[5]SM1 - DECC Scenario 3 equiv'!Q167,\n'[5]SM2 - DECC Scenario 1 equiv'!Q167,\n'[5]SM3 - DECC Scenario 2 equiv'!Q167,\n'[5]SM4 - DNO Scenario 4 equiv'!Q167,\n'[6]M1a - Model inputs'!Q167,\n'[6]M1b - Model inputs'!Q167,\n'[6]SM1 - DECC Scenario 3 equiv'!Q167,\n'[6]SM2 - DECC Scenario 1 equiv'!Q167,\n'[6]SM3 - DECC Scenario 2 equiv'!Q167,\n'[6]SM4 - DNO Scenario 4 equiv'!Q167)","v":0},{"$f":"CHOOSE(view,\n'[5]M1a - Model inputs'!R167,\n'[5]M1b - Model inputs'!R167,\n'[5]SM1 - DECC Scenario 3 equiv'!R167,\n'[5]SM2 - DECC Scenario 1 equiv'!R167,\n'[5]SM3 - DECC Scenario 2 equiv'!R167,\n'[5]SM4 - DNO Scenario 4 equiv'!R167,\n'[6]M1a - Model inputs'!R167,\n'[6]M1b - Model inputs'!R167,\n'[6]SM1 - DECC Scenario 3 equiv'!R167,\n'[6]SM2 - DECC Scenario 1 equiv'!R167,\n'[6]SM3 - DECC Scenario 2 equiv'!R167,\n'[6]SM4 - DNO Scenario 4 equiv'!R167)","v":0},{"$f":"CHOOSE(view,\n'[5]M1a - Model inputs'!S167,\n'[5]M1b - Model inputs'!S167,\n'[5]SM1 - DECC Scenario 3 equiv'!S167,\n'[5]SM2 - DECC Scenario 1 equiv'!S167,\n'[5]SM3 - DECC Scenario 2 equiv'!S167,\n'[5]SM4 - DNO Scenario 4 equiv'!S167,\n'[6]M1a - Model inputs'!S167,\n'[6]M1b - Model inputs'!S167,\n'[6]SM1 - DECC Scenario 3 equiv'!S167,\n'[6]SM2 - DECC Scenario 1 equiv'!S167,\n'[6]SM3 - DECC Scenario 2 equiv'!S167,\n'[6]SM4 - DNO Scenario 4 equiv'!S167)","v":0}]
[null,null,null,null,{"$f":"Input!E155","v":"Allocation to controllable opex"},null,"%",null,null,null,null,null,null,null,null,null,null,null,null,null,null,null,null,null,null,null,null,null,null,null,null,null,null,null,null,{"$f":"CHOOSE(view,\n'[5]M1a - Model inputs'!L168,\n'[5]M1b - Model inputs'!L168,\n'[5]SM1 - DECC Scenario 3 equiv'!L168,\n'[5]SM2 - DECC Scenario 1 equiv'!L168,\n'[5]SM3 - DECC Scenario 2 equiv'!L168,\n'[5]SM4 - DNO Scenario 4 equiv'!L168,\n'[6]M1a - Model inputs'!L168,\n'[6]M1b - Model inputs'!L168,\n'[6]SM1 - DECC Scenario 3 equiv'!L168,\n'[6]SM2 - DECC Scenario 1 equiv'!L168,\n'[6]SM3 - DECC Scenario 2 equiv'!L168,\n'[6]SM4 - DNO Scenario 4 equiv'!L168)","v":0},{"$f":"CHOOSE(view,\n'[5]M1a - Model inputs'!M168,\n'[5]M1b - Model inputs'!M168,\n'[5]SM1 - DECC Scenario 3 equiv'!M168,\n'[5]SM2 - DECC Scenario 1 equiv'!M168,\n'[5]SM3 - DECC Scenario 2 equiv'!M168,\n'[5]SM4 - DNO Scenario 4 equiv'!M168,\n'[6]M1a - Model inputs'!M168,\n'[6]M1b - Model inputs'!M168,\n'[6]SM1 - DECC Scenario 3 equiv'!M168,\n'[6]SM2 - DECC Scenario 1 equiv'!M168,\n'[6]SM3 - DECC Scenario 2 equiv'!M168,\n'[6]SM4 - DNO Scenario 4 equiv'!M168)","v":0},{"$f":"CHOOSE(view,\n'[5]M1a - Model inputs'!N168,\n'[5]M1b - Model inputs'!N168,\n'[5]SM1 - DECC Scenario 3 equiv'!N168,\n'[5]SM2 - DECC Scenario 1 equiv'!N168,\n'[5]SM3 - DECC Scenario 2 equiv'!N168,\n'[5]SM4 - DNO Scenario 4 equiv'!N168,\n'[6]M1a - Model inputs'!N168,\n'[6]M1b - Model inputs'!N168,\n'[6]SM1 - DECC Scenario 3 equiv'!N168,\n'[6]SM2 - DECC Scenario 1 equiv'!N168,\n'[6]SM3 - DECC Scenario 2 equiv'!N168,\n'[6]SM4 - DNO Scenario 4 equiv'!N168)","v":0},{"$f":"CHOOSE(view,\n'[5]M1a - Model inputs'!O168,\n'[5]M1b - Model inputs'!O168,\n'[5]SM1 - DECC Scenario 3 equiv'!O168,\n'[5]SM2 - DECC Scenario 1 equiv'!O168,\n'[5]SM3 - DECC Scenario 2 equiv'!O168,\n'[5]SM4 - DNO Scenario 4 equiv'!O168,\n'[6]M1a - Model inputs'!O168,\n'[6]M1b - Model inputs'!O168,\n'[6]SM1 - DECC Scenario 3 equiv'!O168,\n'[6]SM2 - DECC Scenario 1 equiv'!O168,\n'[6]SM3 - DECC Scenario 2 equiv'!O168,\n'[6]SM4 - DNO Scenario 4 equiv'!O168)","v":0},{"$f":"CHOOSE(view,\n'[5]M1a - Model inputs'!P168,\n'[5]M1b - Model inputs'!P168,\n'[5]SM1 - DECC Scenario 3 equiv'!P168,\n'[5]SM2 - DECC Scenario 1 equiv'!P168,\n'[5]SM3 - DECC Scenario 2 equiv'!P168,\n'[5]SM4 - DNO Scenario 4 equiv'!P168,\n'[6]M1a - Model inputs'!P168,\n'[6]M1b - Model inputs'!P168,\n'[6]SM1 - DECC Scenario 3 equiv'!P168,\n'[6]SM2 - DECC Scenario 1 equiv'!P168,\n'[6]SM3 - DECC Scenario 2 equiv'!P168,\n'[6]SM4 - DNO Scenario 4 equiv'!P168)","v":0},{"$f":"CHOOSE(view,\n'[5]M1a - Model inputs'!Q168,\n'[5]M1b - Model inputs'!Q168,\n'[5]SM1 - DECC Scenario 3 equiv'!Q168,\n'[5]SM2 - DECC Scenario 1 equiv'!Q168,\n'[5]SM3 - DECC Scenario 2 equiv'!Q168,\n'[5]SM4 - DNO Scenario 4 equiv'!Q168,\n'[6]M1a - Model inputs'!Q168,\n'[6]M1b - Model inputs'!Q168,\n'[6]SM1 - DECC Scenario 3 equiv'!Q168,\n'[6]SM2 - DECC Scenario 1 equiv'!Q168,\n'[6]SM3 - DECC Scenario 2 equiv'!Q168,\n'[6]SM4 - DNO Scenario 4 equiv'!Q168)","v":0},{"$f":"CHOOSE(view,\n'[5]M1a - Model inputs'!R168,\n'[5]M1b - Model inputs'!R168,\n'[5]SM1 - DECC Scenario 3 equiv'!R168,\n'[5]SM2 - DECC Scenario 1 equiv'!R168,\n'[5]SM3 - DECC Scenario 2 equiv'!R168,\n'[5]SM4 - DNO Scenario 4 equiv'!R168,\n'[6]M1a - Model inputs'!R168,\n'[6]M1b - Model inputs'!R168,\n'[6]SM1 - DECC Scenario 3 equiv'!R168,\n'[6]SM2 - DECC Scenario 1 equiv'!R168,\n'[6]SM3 - DECC Scenario 2 equiv'!R168,\n'[6]SM4 - DNO Scenario 4 equiv'!R168)","v":0},{"$f":"CHOOSE(view,\n'[5]M1a - Model inputs'!S168,\n'[5]M1b - Model inputs'!S168,\n'[5]SM1 - DECC Scenario 3 equiv'!S168,\n'[5]SM2 - DECC Scenario 1 equiv'!S168,\n'[5]SM3 - DECC Scenario 2 equiv'!S168,\n'[5]SM4 - DNO Scenario 4 equiv'!S168,\n'[6]M1a - Model inputs'!S168,\n'[6]M1b - Model inputs'!S168,\n'[6]SM1 - DECC Scenario 3 equiv'!S168,\n'[6]SM2 - DECC Scenario 1 equiv'!S168,\n'[6]SM3 - DECC Scenario 2 equiv'!S168,\n'[6]SM4 - DNO Scenario 4 equiv'!S168)","v":0}]
[]
[null,null,null,null,{"$f":"Input!E157","v":"Spare 1"},null,"£m 12/13 prices",null,null,null,null,null,null,null,null,null,null,null,null,null,null,null,null,null,null,null,null,null,null,null,null,null,null,null,null,{"$f":"AJ25","v":0},{"$f":"AK25","v":0},{"$f":"AL25","v":0},0,{"$f":"AN25","v":0},0,0,0]
[null,null,null,null,{"$f":"Input!E158","v":"Allocation to load related capex"},null,"%"]
[null,null,null,null,{"$f":"Input!E159","v":"Allocation to non-load related capex - asset replacement"},null,"%"]
[null,null,null,null,{"$f":"Input!E160","v":"Allocation to non-load related capex - other"},null,"%"]
[null,null,null,null,{"$f":"Input!E161","v":"Allocation to faults"},null,"%"]
[null,null,null,null,{"$f":"Input!E162","v":"Allocation to tree cutting"},null,"%"]
[null,null,null,null,{"$f":"Input!E163","v":"Allocation to controllable opex"},null,"%"]
[]
[null,null,null,null,{"$f":"E26","v":"Spare 2"},null,"£m 12/13 prices",null,null,null,null,null,null,null,null,null,null,null,null,null,null,null,null,null,null,null,null,null,null,null,null,null,null,null,null,{"$f":"AJ26","v":0},0,0,0,0,0,0,0]
[null,null,null,null,{"$f":"Input!E166","v":"Allocation to load related capex"},null,"%"]
[null,null,null,null,{"$f":"Input!E167","v":"Allocation to non-load related capex - asset replacement"},null,"%"]
[null,null,null,null,{"$f":"Input!E168","v":"Allocation to non-load related capex - other"},null,"%"]
[null,null,null,null,{"$f":"Input!E169","v":"Allocation to faults"},null,"%"]
[null,null,null,null,{"$f":"Input!E170","v":"Allocation to tree cutting"},null,"%"]
[null,null,null,null,{"$f":"Input!E171","v":"Allocation to controllable opex"},null,"%"]
[]
[null,null,null,null,{"$f":"E27","v":"Spare 3"},null,"£m 12/13 prices",null,null,null,null,null,null,null,null,null,null,null,null,null,null,null,null,null,null,null,null,null,null,null,null,null,null,null,null,{"$f":"AJ27","v":0},0,0,0,0,0,0,0]
[null,null,null,null,{"$f":"Input!E174","v":"Allocation to load related capex"},null,"%"]
[null,null,null,null,{"$f":"Input!E175","v":"Allocation to non-load related capex - asset replacement"},null,"%"]
[null,null,null,null,{"$f":"Input!E176","v":"Allocation to non-load related capex - other"},null,"%"]
[null,null,null,null,{"$f":"Input!E177","v":"Allocation to faults"},null,"%"]
[null,null,null,null,{"$f":"Input!E178","v":"Allocation to tree cutting"},null,"%"]
[null,null,null,null,{"$f":"Input!E179","v":"Allocation to controllable opex"},null,"%"]
[]
[null,null,null,null,{"$f":"E28","v":"Allowed innovation roll-out mechanism"},null,"£m 12/13 prices",null,null,null,null,null,null,null,null,null,null,null,null,null,null,null,null,null,null,null,null,null,null,null,null,null,null,null,null,{"$f":"AJ28","v":0},{"$f":"AK28","v":0},0,0,0,0,0,0]
[null,null,null,null,{"$f":"Input!E182","v":"Allocation to load related capex"},null,"%",null,null,null,null,null,null,null,null,null,null,null,null,null,null,null,null,null,null,null,null,null,null,null,null,null,null,null,null,0.25,0.25,0.25,0.25,0.25,0.25,0.25,0.25]
[null,null,null,null,{"$f":"Input!E183","v":"Allocation to non-load related capex - asset replacement"},null,"%"]
[null,null,null,null,{"$f":"Input!E184","v":"Allocation to non-load related capex - other"},null,"%",null,null,null,null,null,null,null,null,null,null,null,null,null,null,null,null,null,null,null,null,null,null,null,null,null,null,null,null,0.75,0.75,0.75,0.75,0.75,0.75,0.75,0.75]
[null,null,null,null,{"$f":"Input!E185","v":"Allocation to faults"},null,"%"]
[null,null,null,null,{"$f":"Input!E186","v":"Allocation to tree cutting"},null,"%"]
[null,null,null,null,{"$f":"Input!E187","v":"Allocation to controllable opex"},null,"%"]
[]
[null,null,null,null,{"$f":"Input!E189","v":"Variant allowed load related capex"},null,"£m 12/13 prices",null,null,null,null,null,null,null,null,null,null,null,null,null,null,null,null,null,null,null,null,null,null,null,null,null,null,null,null,{"$f":"(AJ$101*AJ102)+(AJ$109*AJ110)+(AJ$117*AJ118)+(AJ$125*AJ126)+(AJ$133*AJ134)+(AJ$141*AJ142)+(AJ$149*AJ150)+(AJ$157*AJ158)+(AJ$165*AJ166)+(AJ$173*AJ174)+(AJ$181*AJ182)","v":0},{"$f":"(AK$101*AK102)+(AK$109*AK110)+(AK$117*AK118)+(AK$125*AK126)+(AK$133*AK134)+(AK$141*AK142)+(AK$149*AK150)+(AK$157*AK158)+(AK$165*AK166)+(AK$173*AK174)+(AK$181*AK182)","v":0},0,0,0,0,0,0]
[null,null,null,null,{"$f":"Input!E190","v":"Variant allowed non-load related capex - asset replacement"},null,"£m 12/13 prices",null,null,null,null,null,null,null,null,null,null,null,null,null,null,null,null,null,null,null,null,null,null,null,null,null,null,null,null,5.0705950025322605E-2,0.17237902139454908,0.17408194277293354,7.1936274387675428E-2,7.2830276888575476E-2,7.3774934782761009E-2,7.4710719949279955E-2,7.5666222344253714E-2]
[null,null,null,null,{"$f":"Input!E191","v":"Variant allowed non-load related capex - other"},null,"£m 12/13 prices",null,null,null,null,null,null,null,null,null,null,null,null,null,null,null,null,null,null,null,null,null,null,null,null,null,null,null,null,0.12810047211362957,0.12844595579760335,0.12736473279379065,0.12781715604165444,0.12819728968211344,0.12855828109179127,0.12884394947884412,0.12932680859826926]
[null,null,null,null,{"$f":"Input!E192","v":"Variant allowed faults"},null,"£m 12/13 prices",null,null,null,null,null,null,null,null,null,null,null,null,null,null,null,null,null,null,null,null,null,null,null,null,null,null,null,null,{"$f":"(AJ$101*AJ105)+(AJ$109*AJ113)+(AJ$117*AJ121)+(AJ$125*AJ129)+(AJ$133*AJ137)+(AJ$141*AJ145)+(AJ$149*AJ153)+(AJ$157*AJ161)+(AJ$165*AJ169)+(AJ$173*AJ177)+(AJ$181*AJ185)","v":0.13906515187892099},0.19267174496605299,0.19530325210730606,0.19833614550602668,0.20142300858107082,0.20456714755539643,0.20776943128306452,0.21104247644836296]
[null,null,null,null,{"$f":"Input!E193","v":"Variant allowed tree cutting"},null,"£m 12/13 prices",null,null,null,null,null,null,null,null,null,null,null,null,null,null,null,null,null,null,null,null,null,null,null,null,null,null,null,null,0,0,0,0,0,0,0,0]
[null,null,null,null,{"$f":"Input!E194","v":"Variant allowed controllable opex"},null,"£m 12/13 prices",null,null,null,null,null,null,null,null,null,null,null,null,null,null,null,null,null,null,null,null,null,null,null,null,null,null,null,null,5.6734921185888632E-2,6.0926346948719519E-2,6.1584785754448167E-2,5.8297548132414272E-2,5.3422429062884288E-2,5.1154701949035854E-2,0,0]
[]
[null,null,null,"Actual"]
[]
[null,null,null,null,{"$f":"Input!E198","v":"Actual load related capex"},null,"£m 12/13 prices",null,null,null,null,null,null,null,null,null,null,null,null,null,null,null,null,null,null,null,null,null,null,null,null,null,null,null,null,{"$f":"AJ12","v":0},0,0,0,0,0,0,0]
[null,null,null,null,{"$f":"Input!E199","v":"Actual non-load related capex - asset replacement"},null,"£m 12/13 prices",null,null,null,null,null,null,null,null,null,null,null,null,null,null,null,null,null,null,null,null,null,null,null,null,null,null,null,null,0,0,0,0,0,0,0,0]
[null,null,null,null,{"$f":"Input!E200","v":"Actual non-load related capex - other"},null,"£m 12/13 prices",null,null,null,null,null,null,null,null,null,null,null,null,null,null,null,null,null,null,null,null,null,null,null,null,null,null,null,null,0,0,0,0,0,0,0,0]
[null,null,null,null,{"$f":"Input!E201","v":"Actual faults"},null,"£m 12/13 prices",null,null,null,null,null,null,null,null,null,null,null,null,null,null,null,null,null,null,null,null,null,null,null,null,null,null,null,null,{"$f":"AJ15","v":0},0,0,0,0,0,0,0]
[null,null,null,null,{"$f":"Input!E202","v":"Actual tree cutting"},null,"£m 12/13 prices",null,null,null,null,null,null,null,null,null,null,null,null,null,null,null,null,null,null,null,null,null,null,null,null,null,null,null,null,0,0,0,0,0,0,0,0]
[null,null,null,null,{"$f":"Input!E203","v":"Actual controllable opex"},null,"£m 12/13 prices",null,null,null,null,null,null,null,null,null,null,null,null,null,null,null,null,null,null,null,null,null,null,null,null,null,null,null,null,{"$f":"AJ17","v":0},0,0,0,0,0,0,0]
[]
[null,null,"Non-totex (all catergorised as 'opex' for tax purposes)"]
[]
[null,null,null,null,"Non-controllable opex (excluding Exit Charges)",null,"£m 12/13 prices",null,null,null,null,null,null,null,null,null,null,null,null,null,null,null,null,null,null,null,null,null,null,null,null,null,null,null,null,{"$f":"CHOOSE(view,\nSUM('[5]M1a - Model inputs'!L115:L121)+SUM('[5]M1a - Model inputs'!L123:L124)+SUM('[5]M1a - Model inputs'!L127:L127),\nSUM('[5]M1b - Model inputs'!L115:L121)+SUM('[5]M1b - Model inputs'!L123:L124)+SUM('[5]M1b - Model inputs'!L127:L127),\nSUM('[5]SM1 - DECC Scenario 3 equiv'!L115:L121)+SUM('[5]SM1 - DECC Scenario 3 equiv'!L123:L124)+SUM('[5]SM1 - DECC Scenario 3 equiv'!L127:L127),\nSUM('[5]SM2 - DECC Scenario 1 equiv'!L115:L121)+SUM('[5]SM2 - DECC Scenario 1 equiv'!L123:L124)+SUM('[5]SM2 - DECC Scenario 1 equiv'!L127:L127),\nSUM('[5]SM3 - DECC Scenario 2 equiv'!L115:L121)+SUM('[5]SM3 - DECC Scenario 2 equiv'!L123:L124)+SUM('[5]SM3 - DECC Scenario 2 equiv'!L127:L127),\nSUM('[5]SM4 - DNO Scenario 4 equiv'!L115:L121)+SUM('[5]SM4 - DNO Scenario 4 equiv'!L123:L124)+SUM('[5]SM4 - DNO Scenario 4 equiv'!L127:L127),\nSUM('[6]M1a - Model inputs'!L115:L121)+SUM('[6]M1a - Model inputs'!L123:L124)+SUM('[6]M1a - Model inputs'!L127:L127),\nSUM('[6]M1b - Model inputs'!L115:L121)+SUM('[6]M1b - Model inputs'!L123:L124)+SUM('[6]M1b - Model inputs'!L127:L127),\nSUM('[6]SM1 - DECC Scenario 3 equiv'!L115:L121)+SUM('[6]SM1 - DECC Scenario 3 equiv'!L123:L124)+SUM('[6]SM1 - DECC Scenario 3 equiv'!L127:L127),\nSUM('[6]SM2 - DECC Scenario 1 equiv'!L115:L121)+SUM('[6]SM2 - DECC Scenario 1 equiv'!L123:L124)+SUM('[6]SM2 - DECC Scenario 1 equiv'!L127:L127),\nSUM('[6]SM3 - DECC Scenario 2 equiv'!L115:L121)+SUM('[6]SM3 - DECC Scenario 2 equiv'!L123:L124)+SUM('[6]SM3 - DECC Scenario 2 equiv'!L127:L127),\nSUM('[6]SM4 - DNO Scenario 4 equiv'!L115:L121)+SUM('[6]SM4 - DNO Scenario 4 equiv'!L123:L124)+SUM('[6]SM4 - DNO Scenario 4 equiv'!L127:L127))","v":36.698082744863598},{"$f":"CHOOSE(view,\nSUM('[5]M1a - Model inputs'!M115:M121)+SUM('[5]M1a - Model inputs'!M123:M124)+SUM('[5]M1a - Model inputs'!M127:M127),\nSUM('[5]M1b - Model inputs'!M115:M121)+SUM('[5]M1b - Model inputs'!M123:M124)+SUM('[5]M1b - Model inputs'!M127:M127),\nSUM('[5]SM1 - DECC Scenario 3 equiv'!M115:M121)+SUM('[5]SM1 - DECC Scenario 3 equiv'!M123:M124)+SUM('[5]SM1 - DECC Scenario 3 equiv'!M127:M127),\nSUM('[5]SM2 - DECC Scenario 1 equiv'!M115:M121)+SUM('[5]SM2 - DECC Scenario 1 equiv'!M123:M124)+SUM('[5]SM2 - DECC Scenario 1 equiv'!M127:M127),\nSUM('[5]SM3 - DECC Scenario 2 equiv'!M115:M121)+SUM('[5]SM3 - DECC Scenario 2 equiv'!M123:M124)+SUM('[5]SM3 - DECC Scenario 2 equiv'!M127:M127),\nSUM('[5]SM4 - DNO Scenario 4 equiv'!M115:M121)+SUM('[5]SM4 - DNO Scenario 4 equiv'!M123:M124)+SUM('[5]SM4 - DNO Scenario 4 equiv'!M127:M127),\nSUM('[6]M1a - Model inputs'!M115:M121)+SUM('[6]M1a - Model inputs'!M123:M124)+SUM('[6]M1a - Model inputs'!M127:M127),\nSUM('[6]M1b - Model inputs'!M115:M121)+SUM('[6]M1b - Model inputs'!M123:M124)+SUM('[6]M1b - Model inputs'!M127:M127),\nSUM('[6]SM1 - DECC Scenario 3 equiv'!M115:M121)+SUM('[6]SM1 - DECC Scenario 3 equiv'!M123:M124)+SUM('[6]SM1 - DECC Scenario 3 equiv'!M127:M127),\nSUM('[6]SM2 - DECC Scenario 1 equiv'!M115:M121)+SUM('[6]SM2 - DECC Scenario 1 equiv'!M123:M124)+SUM('[6]SM2 - DECC Scenario 1 equiv'!M127:M127),\nSUM('[6]SM3 - DECC Scenario 2 equiv'!M115:M121)+SUM('[6]SM3 - DECC Scenario 2 equiv'!M123:M124)+SUM('[6]SM3 - DECC Scenario 2 equiv'!M127:M127),\nSUM('[6]SM4 - DNO Scenario 4 equiv'!M115:M121)+SUM('[6]SM4 - DNO Scenario 4 equiv'!M123:M124)+SUM('[6]SM4 - DNO Scenario 4 equiv'!M127:M127))","v":36.784539492718352},{"$f":"CHOOSE(view,\nSUM('[5]M1a - Model inputs'!N115:N121)+SUM('[5]M1a - Model inputs'!N123:N124)+SUM('[5]M1a - Model inputs'!N127:N127),\nSUM('[5]M1b - Model inputs'!N115:N121)+SUM('[5]M1b - Model inputs'!N123:N124)+SUM('[5]M1b - Model inputs'!N127:N127),\nSUM('[5]SM1 - DECC Scenario 3 equiv'!N115:N121)+SUM('[5]SM1 - DECC Scenario 3 equiv'!N123:N124)+SUM('[5]SM1 - DECC Scenario 3 equiv'!N127:N127),\nSUM('[5]SM2 - DECC Scenario 1 equiv'!N115:N121)+SUM('[5]SM2 - DECC Scenario 1 equiv'!N123:N124)+SUM('[5]SM2 - DECC Scenario 1 equiv'!N127:N127),\nSUM('[5]SM3 - DECC Scenario 2 equiv'!N115:N121)+SUM('[5]SM3 - DECC Scenario 2 equiv'!N123:N124)+SUM('[5]SM3 - DECC Scenario 2 equiv'!N127:N127),\nSUM('[5]SM4 - DNO Scenario 4 equiv'!N115:N121)+SUM('[5]SM4 - DNO Scenario 4 equiv'!N123:N124)+SUM('[5]SM4 - DNO Scenario 4 equiv'!N127:N127),\nSUM('[6]M1a - Model inputs'!N115:N121)+SUM('[6]M1a - Model inputs'!N123:N124)+SUM('[6]M1a - Model inputs'!N127:N127),\nSUM('[6]M1b - Model inputs'!N115:N121)+SUM('[6]M1b - Model inputs'!N123:N124)+SUM('[6]M1b - Model inputs'!N127:N127),\nSUM('[6]SM1 - DECC Scenario 3 equiv'!N115:N121)+SUM('[6]SM1 - DECC Scenario 3 equiv'!N123:N124)+SUM('[6]SM1 - DECC Scenario 3 equiv'!N127:N127),\nSUM('[6]SM2 - DECC Scenario 1 equiv'!N115:N121)+SUM('[6]SM2 - DECC Scenario 1 equiv'!N123:N124)+SUM('[6]SM2 - DECC Scenario 1 equiv'!N127:N127),\nSUM('[6]SM3 - DECC Scenario 2 equiv'!N115:N121)+SUM('[6]SM3 - DECC Scenario 2 equiv'!N123:N124)+SUM('[6]SM3 - DECC Scenario 2 equiv'!N127:N127),\nSUM('[6]SM4 - DNO Scenario 4 equiv'!N115:N121)+SUM('[6]SM4 - DNO Scenario 4 equiv'!N123:N124)+SUM('[6]SM4 - DNO Scenario 4 equiv'!N127:N127))","v":40.654277046157695},{"$f":"CHOOSE(view,\nSUM('[5]M1a - Model inputs'!O115:O121)+SUM('[5]M1a - Model inputs'!O123:O124)+SUM('[5]M1a - Model inputs'!O127:O127),\nSUM('[5]M1b - Model inputs'!O115:O121)+SUM('[5]M1b - Model inputs'!O123:O124)+SUM('[5]M1b - Model inputs'!O127:O127),\nSUM('[5]SM1 - DECC Scenario 3 equiv'!O115:O121)+SUM('[5]SM1 - DECC Scenario 3 equiv'!O123:O124)+SUM('[5]SM1 - DECC Scenario 3 equiv'!O127:O127),\nSUM('[5]SM2 - DECC Scenario 1 equiv'!O115:O121)+SUM('[5]SM2 - DECC Scenario 1 equiv'!O123:O124)+SUM('[5]SM2 - DECC Scenario 1 equiv'!O127:O127),\nSUM('[5]SM3 - DECC Scenario 2 equiv'!O115:O121)+SUM('[5]SM3 - DECC Scenario 2 equiv'!O123:O124)+SUM('[5]SM3 - DECC Scenario 2 equiv'!O127:O127),\nSUM('[5]SM4 - DNO Scenario 4 equiv'!O115:O121)+SUM('[5]SM4 - DNO Scenario 4 equiv'!O123:O124)+SUM('[5]SM4 - DNO Scenario 4 equiv'!O127:O127),\nSUM('[6]M1a - Model inputs'!O115:O121)+SUM('[6]M1a - Model inputs'!O123:O124)+SUM('[6]M1a - Model inputs'!O127:O127),\nSUM('[6]M1b - Model inputs'!O115:O121)+SUM('[6]M1b - Model inputs'!O123:O124)+SUM('[6]M1b - Model inputs'!O127:O127),\nSUM('[6]SM1 - DECC Scenario 3 equiv'!O115:O121)+SUM('[6]SM1 - DECC Scenario 3 equiv'!O123:O124)+SUM('[6]SM1 - DECC Scenario 3 equiv'!O127:O127),\nSUM('[6]SM2 - DECC Scenario 1 equiv'!O115:O121)+SUM('[6]SM2 - DECC Scenario 1 equiv'!O123:O124)+SUM('[6]SM2 - DECC Scenario 1 equiv'!O127:O127),\nSUM('[6]SM3 - DECC Scenario 2 equiv'!O115:O121)+SUM('[6]SM3 - DECC Scenario 2 equiv'!O123:O124)+SUM('[6]SM3 - DECC Scenario 2 equiv'!O127:O127),\nSUM('[6]SM4 - DNO Scenario 4 equiv'!O115:O121)+SUM('[6]SM4 - DNO Scenario 4 equiv'!O123:O124)+SUM('[6]SM4 - DNO Scenario 4 equiv'!O127:O127))","v":47.664859681293727},{"$f":"CHOOSE(view,\nSUM('[5]M1a - Model inputs'!P115:P121)+SUM('[5]M1a - Model inputs'!P123:P124)+SUM('[5]M1a - Model inputs'!P127:P127),\nSUM('[5]M1b - Model inputs'!P115:P121)+SUM('[5]M1b - Model inputs'!P123:P124)+SUM('[5]M1b - Model inputs'!P127:P127),\nSUM('[5]SM1 - DECC Scenario 3 equiv'!P115:P121)+SUM('[5]SM1 - DECC Scenario 3 equiv'!P123:P124)+SUM('[5]SM1 - DECC Scenario 3 equiv'!P127:P127),\nSUM('[5]SM2 - DECC Scenario 1 equiv'!P115:P121)+SUM('[5]SM2 - DECC Scenario 1 equiv'!P123:P124)+SUM('[5]SM2 - DECC Scenario 1 equiv'!P127:P127),\nSUM('[5]SM3 - DECC Scenario 2 equiv'!P115:P121)+SUM('[5]SM3 - DECC Scenario 2 equiv'!P123:P124)+SUM('[5]SM3 - DECC Scenario 2 equiv'!P127:P127),\nSUM('[5]SM4 - DNO Scenario 4 equiv'!P115:P121)+SUM('[5]SM4 - DNO Scenario 4 equiv'!P123:P124)+SUM('[5]SM4 - DNO Scenario 4 equiv'!P127:P127),\nSUM('[6]M1a - Model inputs'!P115:P121)+SUM('[6]M1a - Model inputs'!P123:P124)+SUM('[6]M1a - Model inputs'!P127:P127),\nSUM('[6]M1b - Model inputs'!P115:P121)+SUM('[6]M1b - Model inputs'!P123:P124)+SUM('[6]M1b - Model inputs'!P127:P127),\nSUM('[6]SM1 - DECC Scenario 3 equiv'!P115:P121)+SUM('[6]SM1 - DECC Scenario 3 equiv'!P123:P124)+SUM('[6]SM1 - DECC Scenario 3 equiv'!P127:P127),\nSUM('[6]SM2 - DECC Scenario 1 equiv'!P115:P121)+SUM('[6]SM2 - DECC Scenario 1 equiv'!P123:P124)+SUM('[6]SM2 - DECC Scenario 1 equiv'!P127:P127),\nSUM('[6]SM3 - DECC Scenario 2 equiv'!P115:P121)+SUM('[6]SM3 - DECC Scenario 2 equiv'!P123:P124)+SUM('[6]SM3 - DECC Scenario 2 equiv'!P127:P127),\nSUM('[6]SM4 - DNO Scenario 4 equiv'!P115:P121)+SUM('[6]SM4 - DNO Scenario 4 equiv'!P123:P124)+SUM('[6]SM4 - DNO Scenario 4 equiv'!P127:P127))","v":55.514673844915578},{"$f":"CHOOSE(view,\nSUM('[5]M1a - Model inputs'!Q115:Q121)+SUM('[5]M1a - Model inputs'!Q123:Q124)+SUM('[5]M1a - Model inputs'!Q127:Q127),\nSUM('[5]M1b - Model inputs'!Q115:Q121)+SUM('[5]M1b - Model inputs'!Q123:Q124)+SUM('[5]M1b - Model inputs'!Q127:Q127),\nSUM('[5]SM1 - DECC Scenario 3 equiv'!Q115:Q121)+SUM('[5]SM1 - DECC Scenario 3 equiv'!Q123:Q124)+SUM('[5]SM1 - DECC Scenario 3 equiv'!Q127:Q127),\nSUM('[5]SM2 - DECC Scenario 1 equiv'!Q115:Q121)+SUM('[5]SM2 - DECC Scenario 1 equiv'!Q123:Q124)+SUM('[5]SM2 - DECC Scenario 1 equiv'!Q127:Q127),\nSUM('[5]SM3 - DECC Scenario 2 equiv'!Q115:Q121)+SUM('[5]SM3 - DECC Scenario 2 equiv'!Q123:Q124)+SUM('[5]SM3 - DECC Scenario 2 equiv'!Q127:Q127),\nSUM('[5]SM4 - DNO Scenario 4 equiv'!Q115:Q121)+SUM('[5]SM4 - DNO Scenario 4 equiv'!Q123:Q124)+SUM('[5]SM4 - DNO Scenario 4 equiv'!Q127:Q127),\nSUM('[6]M1a - Model inputs'!Q115:Q121)+SUM('[6]M1a - Model inputs'!Q123:Q124)+SUM('[6]M1a - Model inputs'!Q127:Q127),\nSUM('[6]M1b - Model inputs'!Q115:Q121)+SUM('[6]M1b - Model inputs'!Q123:Q124)+SUM('[6]M1b - Model inputs'!Q127:Q127),\nSUM('[6]SM1 - DECC Scenario 3 equiv'!Q115:Q121)+SUM('[6]SM1 - DECC Scenario 3 equiv'!Q123:Q124)+SUM('[6]SM1 - DECC Scenario 3 equiv'!Q127:Q127),\nSUM('[6]SM2 - DECC Scenario 1 equiv'!Q115:Q121)+SUM('[6]SM2 - DECC Scenario 1 equiv'!Q123:Q124)+SUM('[6]SM2 - DECC Scenario 1 equiv'!Q127:Q127),\nSUM('[6]SM3 - DECC Scenario 2 equiv'!Q115:Q121)+SUM('[6]SM3 - DECC Scenario 2 equiv'!Q123:Q124)+SUM('[6]SM3 - DECC Scenario 2 equiv'!Q127:Q127),\nSUM('[6]SM4 - DNO Scenario 4 equiv'!Q115:Q121)+SUM('[6]SM4 - DNO Scenario 4 equiv'!Q123:Q124)+SUM('[6]SM4 - DNO Scenario 4 equiv'!Q127:Q127))","v":56.232158577903846},{"$f":"CHOOSE(view,\nSUM('[5]M1a - Model inputs'!R115:R121)+SUM('[5]M1a - Model inputs'!R123:R124)+SUM('[5]M1a - Model inputs'!R127:R127),\nSUM('[5]M1b - Model inputs'!R115:R121)+SUM('[5]M1b - Model inputs'!R123:R124)+SUM('[5]M1b - Model inputs'!R127:R127),\nSUM('[5]SM1 - DECC Scenario 3 equiv'!R115:R121)+SUM('[5]SM1 - DECC Scenario 3 equiv'!R123:R124)+SUM('[5]SM1 - DECC Scenario 3 equiv'!R127:R127),\nSUM('[5]SM2 - DECC Scenario 1 equiv'!R115:R121)+SUM('[5]SM2 - DECC Scenario 1 equiv'!R123:R124)+SUM('[5]SM2 - DECC Scenario 1 equiv'!R127:R127),\nSUM('[5]SM3 - DECC Scenario 2 equiv'!R115:R121)+SUM('[5]SM3 - DECC Scenario 2 equiv'!R123:R124)+SUM('[5]SM3 - DECC Scenario 2 equiv'!R127:R127),\nSUM('[5]SM4 - DNO Scenario 4 equiv'!R115:R121)+SUM('[5]SM4 - DNO Scenario 4 equiv'!R123:R124)+SUM('[5]SM4 - DNO Scenario 4 equiv'!R127:R127),\nSUM('[6]M1a - Model inputs'!R115:R121)+SUM('[6]M1a - Model inputs'!R123:R124)+SUM('[6]M1a - Model inputs'!R127:R127),\nSUM('[6]M1b - Model inputs'!R115:R121)+SUM('[6]M1b - Model inputs'!R123:R124)+SUM('[6]M1b - Model inputs'!R127:R127),\nSUM('[6]SM1 - DECC Scenario 3 equiv'!R115:R121)+SUM('[6]SM1 - DECC Scenario 3 equiv'!R123:R124)+SUM('[6]SM1 - DECC Scenario 3 equiv'!R127:R127),\nSUM('[6]SM2 - DECC Scenario 1 equiv'!R115:R121)+SUM('[6]SM2 - DECC Scenario 1 equiv'!R123:R124)+SUM('[6]SM2 - DECC Scenario 1 equiv'!R127:R127),\nSUM('[6]SM3 - DECC Scenario 2 equiv'!R115:R121)+SUM('[6]SM3 - DECC Scenario 2 equiv'!R123:R124)+SUM('[6]SM3 - DECC Scenario 2 equiv'!R127:R127),\nSUM('[6]SM4 - DNO Scenario 4 equiv'!R115:R121)+SUM('[6]SM4 - DNO Scenario 4 equiv'!R123:R124)+SUM('[6]SM4 - DNO Scenario 4 equiv'!R127:R127))","v":55.614299173272769},{"$f":"CHOOSE(view,\nSUM('[5]M1a - Model inputs'!S115:S121)+SUM('[5]M1a - Model inputs'!S123:S124)+SUM('[5]M1a - Model inputs'!S127:S127),\nSUM('[5]M1b - Model inputs'!S115:S121)+SUM('[5]M1b - Model inputs'!S123:S124)+SUM('[5]M1b - Model inputs'!S127:S127),\nSUM('[5]SM1 - DECC Scenario 3 equiv'!S115:S121)+SUM('[5]SM1 - DECC Scenario 3 equiv'!S123:S124)+SUM('[5]SM1 - DECC Scenario 3 equiv'!S127:S127),\nSUM('[5]SM2 - DECC Scenario 1 equiv'!S115:S121)+SUM('[5]SM2 - DECC Scenario 1 equiv'!S123:S124)+SUM('[5]SM2 - DECC Scenario 1 equiv'!S127:S127),\nSUM('[5]SM3 - DECC Scenario 2 equiv'!S115:S121)+SUM('[5]SM3 - DECC Scenario 2 equiv'!S123:S124)+SUM('[5]SM3 - DECC Scenario 2 equiv'!S127:S127),\nSUM('[5]SM4 - DNO Scenario 4 equiv'!S115:S121)+SUM('[5]SM4 - DNO Scenario 4 equiv'!S123:S124)+SUM('[5]SM4 - DNO Scenario 4 equiv'!S127:S127),\nSUM('[6]M1a - Model inputs'!S115:S121)+SUM('[6]M1a - Model inputs'!S123:S124)+SUM('[6]M1a - Model inputs'!S127:S127),\nSUM('[6]M1b - Model inputs'!S115:S121)+SUM('[6]M1b - Model inputs'!S123:S124)+SUM('[6]M1b - Model inputs'!S127:S127),\nSUM('[6]SM1 - DECC Scenario 3 equiv'!S115:S121)+SUM('[6]SM1 - DECC Scenario 3 equiv'!S123:S124)+SUM('[6]SM1 - DECC Scenario 3 equiv'!S127:S127),\nSUM('[6]SM2 - DECC Scenario 1 equiv'!S115:S121)+SUM('[6]SM2 - DECC Scenario 1 equiv'!S123:S124)+SUM('[6]SM2 - DECC Scenario 1 equiv'!S127:S127),\nSUM('[6]SM3 - DECC Scenario 2 equiv'!S115:S121)+SUM('[6]SM3 - DECC Scenario 2 equiv'!S123:S124)+SUM('[6]SM3 - DECC Scenario 2 equiv'!S127:S127),\nSUM('[6]SM4 - DNO Scenario 4 equiv'!S115:S121)+SUM('[6]SM4 - DNO Scenario 4 equiv'!S123:S124)+SUM('[6]SM4 - DNO Scenario 4 equiv'!S127:S127))","v":56.28328406997651}]
[null,null,null,null,"Non-controllable opex (Exit Charges)",null,"£m 12/13 prices",null,null,null,null,null,null,null,null,null,null,null,null,null,null,null,null,null,null,null,null,null,null,null,null,null,null,null,null,{"$f":"AJ29","v":10.536301914475237},{"$f":"AK29","v":10.548949914475235},10.935597914475236,10.948245914475237,11.608245914475237,11.894245914475237,12.642245914475236,13.764245914475236]
[null,null,null,null,"Non-controllable opex",null,"£m 12/13 prices",null,null,null,null,null,null,null,null,null,null,null,null,null,null,null,null,null,null,null,null,null,null,null,null,null,null,null,null,{"$f":"SUM(AJ207:AJ208)","v":47.234384659338836},{"$f":"SUM(AK207:AK208)","v":47.333489407193589},51.589874960632933,58.613105595768964,67.122919759390811,68.126404492379081,68.256545087748009,70.047529984451742]
[]
[null,"Direct allowed revenue terms (DARTs)"]
[]
[null,null,null,null,{"$f":"E30","v":"Pension scheme established deficit revenue allowances"},null,"£m 12/13 prices",null,null,null,null,null,null,null,null,null,null,null,null,null,null,null,null,null,null,null,null,null,null,null,null,null,null,null,null,{"$f":"AJ30","v":23.315361786354455},23.315361786354455,23.315361786354455,23.315361786354455,23.315361786354455,23.315361786354455,23.315361786354455,23.315361786354455]
[]
[null,null,null,null,"Pension true-up from previous price controls",null,"£m 12/13 prices"]
[]
[null,null,null,null,{"$f":"Input!E217","v":"Revenue adjustment from previous controls (Base)"},null,"£m 12/13 prices",null,null,null,null,null,null,null,null,null,null,null,null,null,null,null,null,null,null,null,null,null,null,null,null,null,null,null,null,{"$f":"[8]DirectedValues!K19","v":4.2623373896983701},{"$f":"[8]DirectedValues!L19","v":4.4431883651432713},{"$f":"[8]DirectedValues!M19","v":4.6317128474763001},{"$f":"[8]DirectedValues!N19","v":4.8282364235947197},{"$f":"[8]DirectedValues!O19","v":5.0330984950478435},{"$f":"[8]DirectedValues!P19","v":5.2466528641927228},{"$f":"[8]DirectedValues!Q19","v":5.4692683452204198},{"$f":"[8]DirectedValues!R19","v":5.7013294011081221}]
[null,null,null,null,{"$f":"Input!E218","v":"Legacy price control allowed revenue adjustment"},null,"£m 12/13 prices",null,null,null,null,null,null,null,null,null,null,null,null,null,null,null,null,null,null,null,null,null,null,null,null,null,null,null,null,{"$f":"$AJ$31/8*(1+AJ48)^ROUND((AJ7-$AJ7)/365,1)","v":0},0,0,0,0,0,0,0]
[null,null,null,null,"Revenue adjustment from previous controls",null,"£m 12/13 prices",null,null,null,null,null,null,null,null,null,null,null,null,null,null,null,null,null,null,null,null,null,null,null,null,null,null,null,null,{"$f":"AJ217+AJ218","v":4.2623373896983701},{"$f":"AK217+AK218","v":4.4431883651432713},4.6317128474763001,4.8282364235947197,5.0330984950478435,5.2466528641927228,5.4692683452204198,5.7013294011081221]
[]
[null,null,null,null,{"$f":"Input!E221","v":"Legacy Losses Incentive"},null,"£m 12/13 prices"]
[]
[null,null,null,null,{"$f":"Input!E223","v":"ES7 (Miscellaneous) revenue"},null,"£m 12/13 prices",null,null,null,null,null,null,null,null,null,null,null,null,null,null,null,null,null,null,null,null,null,null,null,null,null,null,null,null,{"$f":"CHOOSE(view,\n'[5]M1a - Model inputs'!L157,\n'[5]M1b - Model inputs'!L157,\n'[5]SM1 - DECC Scenario 3 equiv'!L157,\n'[5]SM2 - DECC Scenario 1 equiv'!L157,\n'[5]SM3 - DECC Scenario 2 equiv'!L157,\n'[5]SM4 - DNO Scenario 4 equiv'!L157,\n'[6]M1a - Model inputs'!L157,\n'[6]M1b - Model inputs'!L157,\n'[6]SM1 - DECC Scenario 3 equiv'!L157,\n'[6]SM2 - DECC Scenario 1 equiv'!L157,\n'[6]SM3 - DECC Scenario 2 equiv'!L157,\n'[6]SM4 - DNO Scenario 4 equiv'!L157)","v":0},{"$f":"CHOOSE(view,\n'[5]M1a - Model inputs'!M157,\n'[5]M1b - Model inputs'!M157,\n'[5]SM1 - DECC Scenario 3 equiv'!M157,\n'[5]SM2 - DECC Scenario 1 equiv'!M157,\n'[5]SM3 - DECC Scenario 2 equiv'!M157,\n'[5]SM4 - DNO Scenario 4 equiv'!M157,\n'[6]M1a - Model inputs'!M157,\n'[6]M1b - Model inputs'!M157,\n'[6]SM1 - DECC Scenario 3 equiv'!M157,\n'[6]SM2 - DECC Scenario 1 equiv'!M157,\n'[6]SM3 - DECC Scenario 2 equiv'!M157,\n'[6]SM4 - DNO Scenario 4 equiv'!M157)","v":0},{"$f":"CHOOSE(view,\n'[5]M1a - Model inputs'!N157,\n'[5]M1b - Model inputs'!N157,\n'[5]SM1 - DECC Scenario 3 equiv'!N157,\n'[5]SM2 - DECC Scenario 1 equiv'!N157,\n'[5]SM3 - DECC Scenario 2 equiv'!N157,\n'[5]SM4 - DNO Scenario 4 equiv'!N157,\n'[6]M1a - Model inputs'!N157,\n'[6]M1b - Model inputs'!N157,\n'[6]SM1 - DECC Scenario 3 equiv'!N157,\n'[6]SM2 - DECC Scenario 1 equiv'!N157,\n'[6]SM3 - DECC Scenario 2 equiv'!N157,\n'[6]SM4 - DNO Scenario 4 equiv'!N157)","v":0},{"$f":"CHOOSE(view,\n'[5]M1a - Model inputs'!O157,\n'[5]M1b - Model inputs'!O157,\n'[5]SM1 - DECC Scenario 3 equiv'!O157,\n'[5]SM2 - DECC Scenario 1 equiv'!O157,\n'[5]SM3 - DECC Scenario 2 equiv'!O157,\n'[5]SM4 - DNO Scenario 4 equiv'!O157,\n'[6]M1a - Model inputs'!O157,\n'[6]M1b - Model inputs'!O157,\n'[6]SM1 - DECC Scenario 3 equiv'!O157,\n'[6]SM2 - DECC Scenario 1 equiv'!O157,\n'[6]SM3 - DECC Scenario 2 equiv'!O157,\n'[6]SM4 - DNO Scenario 4 equiv'!O157)","v":0},{"$f":"CHOOSE(view,\n'[5]M1a - Model inputs'!P157,\n'[5]M1b - Model inputs'!P157,\n'[5]SM1 - DECC Scenario 3 equiv'!P157,\n'[5]SM2 - DECC Scenario 1 equiv'!P157,\n'[5]SM3 - DECC Scenario 2 equiv'!P157,\n'[5]SM4 - DNO Scenario 4 equiv'!P157,\n'[6]M1a - Model inputs'!P157,\n'[6]M1b - Model inputs'!P157,\n'[6]SM1 - DECC Scenario 3 equiv'!P157,\n'[6]SM2 - DECC Scenario 1 equiv'!P157,\n'[6]SM3 - DECC Scenario 2 equiv'!P157,\n'[6]SM4 - DNO Scenario 4 equiv'!P157)","v":0},{"$f":"CHOOSE(view,\n'[5]M1a - Model inputs'!Q157,\n'[5]M1b - Model inputs'!Q157,\n'[5]SM1 - DECC Scenario 3 equiv'!Q157,\n'[5]SM2 - DECC Scenario 1 equiv'!Q157,\n'[5]SM3 - DECC Scenario 2 equiv'!Q157,\n'[5]SM4 - DNO Scenario 4 equiv'!Q157,\n'[6]M1a - Model inputs'!Q157,\n'[6]M1b - Model inputs'!Q157,\n'[6]SM1 - DECC Scenario 3 equiv'!Q157,\n'[6]SM2 - DECC Scenario 1 equiv'!Q157,\n'[6]SM3 - DECC Scenario 2 equiv'!Q157,\n'[6]SM4 - DNO Scenario 4 equiv'!Q157)","v":0},{"$f":"CHOOSE(view,\n'[5]M1a - Model inputs'!R157,\n'[5]M1b - Model inputs'!R157,\n'[5]SM1 - DECC Scenario 3 equiv'!R157,\n'[5]SM2 - DECC Scenario 1 equiv'!R157,\n'[5]SM3 - DECC Scenario 2 equiv'!R157,\n'[5]SM4 - DNO Scenario 4 equiv'!R157,\n'[6]M1a - Model inputs'!R157,\n'[6]M1b - Model inputs'!R157,\n'[6]SM1 - DECC Scenario 3 equiv'!R157,\n'[6]SM2 - DECC Scenario 1 equiv'!R157,\n'[6]SM3 - DECC Scenario 2 equiv'!R157,\n'[6]SM4 - DNO Scenario 4 equiv'!R157)","v":0},{"$f":"CHOOSE(view,\n'[5]M1a - Model inputs'!S157,\n'[5]M1b - Model inputs'!S157,\n'[5]SM1 - DECC Scenario 3 equiv'!S157,\n'[5]SM2 - DECC Scenario 1 equiv'!S157,\n'[5]SM3 - DECC Scenario 2 equiv'!S157,\n'[5]SM4 - DNO Scenario 4 equiv'!S157,\n'[6]M1a - Model inputs'!S157,\n'[6]M1b - Model inputs'!S157,\n'[6]SM1 - DECC Scenario 3 equiv'!S157,\n'[6]SM2 - DECC Scenario 1 equiv'!S157,\n'[6]SM3 - DECC Scenario 2 equiv'!S157,\n'[6]SM4 - DNO Scenario 4 equiv'!S157)","v":0}]
[null,null,null,null,{"$f":"Input!E224","v":"ES7 (Miscellaneous) assumed costs"},null,"£m 12/13 prices",null,null,null,null,null,null,null,null,null,null,null,null,null,null,null,null,null,null,null,null,null,null,null,null,null,null,null,null,{"$f":"AJ223","v":0},{"$f":"AK223","v":0},0,0,0,0,0,0]
[null,null,null,null,{"$f":"Input!E225","v":"ES7 (Miscellaneous) net position"},null,"£m 12/13 prices",null,null,null,null,null,null,null,null,null,null,null,null,null,null,null,null,null,null,null,null,null,null,null,null,null,null,null,null,{"$f":"SUM(AJ223, -AJ224)","v":0},{"$f":"SUM(AK223, -AK224)","v":0},0,0,0,0,0,0]
[]
[null,null,null,null,{"$f":"Input!E227","v":"Directly Remunerated Services"}]
[]
[null,null,null,null,{"$f":"Input!E229","v":"Element of connection that is Sole Use funded revenue"},null,{"$f":"Input!G229","v":"£m 12/13 prices"},null,null,null,null,null,null,null,null,null,null,null,null,null,null,null,null,null,null,null,null,null,null,null,null,null,null,null,null,{"$f":"AJ230","v":0.17152036779880042},{"$f":"AK230","v":0.16897136033437921},0.17369054542620077,0.15342897294678082,0.11832852322389531,9.5992968599717621E-2,5.7421682254558348E-2,2.3552323248015483E-2]
[null,null,null,null,{"$f":"Input!E230","v":"Element of connection that is Sole Use funded costs"},null,{"$f":"Input!G230","v":"£m 12/13 prices"},null,null,null,null,null,null,null,null,null,null,null,null,null,null,null,null,null,null,null,null,null,null,null,null,null,null,null,null,{"$f":"CHOOSE(view,\n'[5]M1a - Model inputs'!L111,\n'[5]M1b - Model inputs'!L111,\n'[5]SM1 - DECC Scenario 3 equiv'!L111,\n'[5]SM2 - DECC Scenario 1 equiv'!L111,\n'[5]SM3 - DECC Scenario 2 equiv'!L111,\n'[5]SM4 - DNO Scenario 4 equiv'!L111,\n'[6]M1a - Model inputs'!L111,\n'[6]M1b - Model inputs'!L111,\n'[6]SM1 - DECC Scenario 3 equiv'!L111,\n'[6]SM2 - DECC Scenario 1 equiv'!L111,\n'[6]SM3 - DECC Scenario 2 equiv'!L111,\n'[6]SM4 - DNO Scenario 4 equiv'!L111)","v":0.17152036779880042},{"$f":"CHOOSE(view,\n'[5]M1a - Model inputs'!M111,\n'[5]M1b - Model inputs'!M111,\n'[5]SM1 - DECC Scenario 3 equiv'!M111,\n'[5]SM2 - DECC Scenario 1 equiv'!M111,\n'[5]SM3 - DECC Scenario 2 equiv'!M111,\n'[5]SM4 - DNO Scenario 4 equiv'!M111,\n'[6]M1a - Model inputs'!M111,\n'[6]M1b - Model inputs'!M111,\n'[6]SM1 - DECC Scenario 3 equiv'!M111,\n'[6]SM2 - DECC Scenario 1 equiv'!M111,\n'[6]SM3 - DECC Scenario 2 equiv'!M111,\n'[6]SM4 - DNO Scenario 4 equiv'!M111)","v":0.16897136033437921},{"$f":"CHOOSE(view,\n'[5]M1a - Model inputs'!N111,\n'[5]M1b - Model inputs'!N111,\n'[5]SM1 - DECC Scenario 3 equiv'!N111,\n'[5]SM2 - DECC Scenario 1 equiv'!N111,\n'[5]SM3 - DECC Scenario 2 equiv'!N111,\n'[5]SM4 - DNO Scenario 4 equiv'!N111,\n'[6]M1a - Model inputs'!N111,\n'[6]M1b - Model inputs'!N111,\n'[6]SM1 - DECC Scenario 3 equiv'!N111,\n'[6]SM2 - DECC Scenario 1 equiv'!N111,\n'[6]SM3 - DECC Scenario 2 equiv'!N111,\n'[6]SM4 - DNO Scenario 4 equiv'!N111)","v":0.17369054542620077},{"$f":"CHOOSE(view,\n'[5]M1a - Model inputs'!O111,\n'[5]M1b - Model inputs'!O111,\n'[5]SM1 - DECC Scenario 3 equiv'!O111,\n'[5]SM2 - DECC Scenario 1 equiv'!O111,\n'[5]SM3 - DECC Scenario 2 equiv'!O111,\n'[5]SM4 - DNO Scenario 4 equiv'!O111,\n'[6]M1a - Model inputs'!O111,\n'[6]M1b - Model inputs'!O111,\n'[6]SM1 - DECC Scenario 3 equiv'!O111,\n'[6]SM2 - DECC Scenario 1 equiv'!O111,\n'[6]SM3 - DECC Scenario 2 equiv'!O111,\n'[6]SM4 - DNO Scenario 4 equiv'!O111)","v":0.15342897294678082},{"$f":"CHOOSE(view,\n'[5]M1a - Model inputs'!P111,\n'[5]M1b - Model inputs'!P111,\n'[5]SM1 - DECC Scenario 3 equiv'!P111,\n'[5]SM2 - DECC Scenario 1 equiv'!P111,\n'[5]SM3 - DECC Scenario 2 equiv'!P111,\n'[5]SM4 - DNO Scenario 4 equiv'!P111,\n'[6]M1a - Model inputs'!P111,\n'[6]M1b - Model inputs'!P111,\n'[6]SM1 - DECC Scenario 3 equiv'!P111,\n'[6]SM2 - DECC Scenario 1 equiv'!P111,\n'[6]SM3 - DECC Scenario 2 equiv'!P111,\n'[6]SM4 - DNO Scenario 4 equiv'!P111)","v":0.11832852322389531},{"$f":"CHOOSE(view,\n'[5]M1a - Model inputs'!Q111,\n'[5]M1b - Model inputs'!Q111,\n'[5]SM1 - DECC Scenario 3 equiv'!Q111,\n'[5]SM2 - DECC Scenario 1 equiv'!Q111,\n'[5]SM3 - DECC Scenario 2 equiv'!Q111,\n'[5]SM4 - DNO Scenario 4 equiv'!Q111,\n'[6]M1a - Model inputs'!Q111,\n'[6]M1b - Model inputs'!Q111,\n'[6]SM1 - DECC Scenario 3 equiv'!Q111,\n'[6]SM2 - DECC Scenario 1 equiv'!Q111,\n'[6]SM3 - DECC Scenario 2 equiv'!Q111,\n'[6]SM4 - DNO Scenario 4 equiv'!Q111)","v":9.5992968599717621E-2},{"$f":"CHOOSE(view,\n'[5]M1a - Model inputs'!R111,\n'[5]M1b - Model inputs'!R111,\n'[5]SM1 - DECC Scenario 3 equiv'!R111,\n'[5]SM2 - DECC Scenario 1 equiv'!R111,\n'[5]SM3 - DECC Scenario 2 equiv'!R111,\n'[5]SM4 - DNO Scenario 4 equiv'!R111,\n'[6]M1a - Model inputs'!R111,\n'[6]M1b - Model inputs'!R111,\n'[6]SM1 - DECC Scenario 3 equiv'!R111,\n'[6]SM2 - DECC Scenario 1 equiv'!R111,\n'[6]SM3 - DECC Scenario 2 equiv'!R111,\n'[6]SM4 - DNO Scenario 4 equiv'!R111)","v":5.7421682254558348E-2},{"$f":"CHOOSE(view,\n'[5]M1a - Model inputs'!S111,\n'[5]M1b - Model inputs'!S111,\n'[5]SM1 - DECC Scenario 3 equiv'!S111,\n'[5]SM2 - DECC Scenario 1 equiv'!S111,\n'[5]SM3 - DECC Scenario 2 equiv'!S111,\n'[5]SM4 - DNO Scenario 4 equiv'!S111,\n'[6]M1a - Model inputs'!S111,\n'[6]M1b - Model inputs'!S111,\n'[6]SM1 - DECC Scenario 3 equiv'!S111,\n'[6]SM2 - DECC Scenario 1 equiv'!S111,\n'[6]SM3 - DECC Scenario 2 equiv'!S111,\n'[6]SM4 - DNO Scenario 4 equiv'!S111)","v":2.3552323248015483E-2}]
[null,null,null,null,{"$f":"Input!E231","v":"Element of connection that is Sole Use funded net position"},null,{"$f":"Input!G231","v":"£m 12/13 prices"},null,null,null,null,null,null,null,null,null,null,null,null,null,null,null,null,null,null,null,null,null,null,null,null,null,null,null,null,{"$f":"SUM(AJ229, -AJ230)","v":0},{"$f":"SUM(AK229, -AK230)","v":0},0,0,0,0,0,0]
[]
[null,null,null,null,{"$f":"Input!E233","v":"Connection projects UMC revenue"},null,{"$f":"Input!G233","v":"£m 12/13 prices"},null,null,null,null,null,null,null,null,null,null,null,null,null,null,null,null,null,null,null,null,null,null,null,null,null,null,null,null,{"$f":"AJ234","v":1.0711209975455771E-2},{"$f":"AK234","v":1.046863808780174E-2},{"$f":"AL234","v":9.8678989445167287E-3},{"$f":"AM234","v":7.9999526720005432E-3},{"$f":"AN234","v":5.9209233795631255E-3},{"$f":"AO234","v":4.1762422919011111E-3},{"$f":"AP234","v":1.8987120081227493E-3},{"$f":"AQ234","v":-3.5752931541571664E-4}]
[null,null,null,null,{"$f":"Input!E234","v":"Connection projects UMC costs"},null,{"$f":"Input!G234","v":"£m 12/13 prices"},null,null,null,null,null,null,null,null,null,null,null,null,null,null,null,null,null,null,null,null,null,null,null,null,null,null,null,null,{"$f":"CHOOSE(view,\n'[5]M1a - Model inputs'!L112,\n'[5]M1b - Model inputs'!L112,\n'[5]SM1 - DECC Scenario 3 equiv'!L112,\n'[5]SM2 - DECC Scenario 1 equiv'!L112,\n'[5]SM3 - DECC Scenario 2 equiv'!L112,\n'[5]SM4 - DNO Scenario 4 equiv'!L112,\n'[6]M1a - Model inputs'!L112,\n'[6]M1b - Model inputs'!L112,\n'[6]SM1 - DECC Scenario 3 equiv'!L112,\n'[6]SM2 - DECC Scenario 1 equiv'!L112,\n'[6]SM3 - DECC Scenario 2 equiv'!L112,\n'[6]SM4 - DNO Scenario 4 equiv'!L112)","v":1.0711209975455771E-2},{"$f":"CHOOSE(view,\n'[5]M1a - Model inputs'!M112,\n'[5]M1b - Model inputs'!M112,\n'[5]SM1 - DECC Scenario 3 equiv'!M112,\n'[5]SM2 - DECC Scenario 1 equiv'!M112,\n'[5]SM3 - DECC Scenario 2 equiv'!M112,\n'[5]SM4 - DNO Scenario 4 equiv'!M112,\n'[6]M1a - Model inputs'!M112,\n'[6]M1b - Model inputs'!M112,\n'[6]SM1 - DECC Scenario 3 equiv'!M112,\n'[6]SM2 - DECC Scenario 1 equiv'!M112,\n'[6]SM3 - DECC Scenario 2 equiv'!M112,\n'[6]SM4 - DNO Scenario 4 equiv'!M112)","v":1.046863808780174E-2},{"$f":"CHOOSE(view,\n'[5]M1a - Model inputs'!N112,\n'[5]M1b - Model inputs'!N112,\n'[5]SM1 - DECC Scenario 3 equiv'!N112,\n'[5]SM2 - DECC Scenario 1 equiv'!N112,\n'[5]SM3 - DECC Scenario 2 equiv'!N112,\n'[5]SM4 - DNO Scenario 4 equiv'!N112,\n'[6]M1a - Model inputs'!N112,\n'[6]M1b - Model inputs'!N112,\n'[6]SM1 - DECC Scenario 3 equiv'!N112,\n'[6]SM2 - DECC Scenario 1 equiv'!N112,\n'[6]SM3 - DECC Scenario 2 equiv'!N112,\n'[6]SM4 - DNO Scenario 4 equiv'!N112)","v":9.8678989445167287E-3},{"$f":"CHOOSE(view,\n'[5]M1a - Model inputs'!O112,\n'[5]M1b - Model inputs'!O112,\n'[5]SM1 - DECC Scenario 3 equiv'!O112,\n'[5]SM2 - DECC Scenario 1 equiv'!O112,\n'[5]SM3 - DECC Scenario 2 equiv'!O112,\n'[5]SM4 - DNO Scenario 4 equiv'!O112,\n'[6]M1a - Model inputs'!O112,\n'[6]M1b - Model inputs'!O112,\n'[6]SM1 - DECC Scenario 3 equiv'!O112,\n'[6]SM2 - DECC Scenario 1 equiv'!O112,\n'[6]SM3 - DECC Scenario 2 equiv'!O112,\n'[6]SM4 - DNO Scenario 4 equiv'!O112)","v":7.9999526720005432E-3},{"$f":"CHOOSE(view,\n'[5]M1a - Model inputs'!P112,\n'[5]M1b - Model inputs'!P112,\n'[5]SM1 - DECC Scenario 3 equiv'!P112,\n'[5]SM2 - DECC Scenario 1 equiv'!P112,\n'[5]SM3 - DECC Scenario 2 equiv'!P112,\n'[5]SM4 - DNO Scenario 4 equiv'!P112,\n'[6]M1a - Model inputs'!P112,\n'[6]M1b - Model inputs'!P112,\n'[6]SM1 - DECC Scenario 3 equiv'!P112,\n'[6]SM2 - DECC Scenario 1 equiv'!P112,\n'[6]SM3 - DECC Scenario 2 equiv'!P112,\n'[6]SM4 - DNO Scenario 4 equiv'!P112)","v":5.9209233795631255E-3},{"$f":"CHOOSE(view,\n'[5]M1a - Model inputs'!Q112,\n'[5]M1b - Model inputs'!Q112,\n'[5]SM1 - DECC Scenario 3 equiv'!Q112,\n'[5]SM2 - DECC Scenario 1 equiv'!Q112,\n'[5]SM3 - DECC Scenario 2 equiv'!Q112,\n'[5]SM4 - DNO Scenario 4 equiv'!Q112,\n'[6]M1a - Model inputs'!Q112,\n'[6]M1b - Model inputs'!Q112,\n'[6]SM1 - DECC Scenario 3 equiv'!Q112,\n'[6]SM2 - DECC Scenario 1 equiv'!Q112,\n'[6]SM3 - DECC Scenario 2 equiv'!Q112,\n'[6]SM4 - DNO Scenario 4 equiv'!Q112)","v":4.1762422919011111E-3},{"$f":"CHOOSE(view,\n'[5]M1a - Model inputs'!R112,\n'[5]M1b - Model inputs'!R112,\n'[5]SM1 - DECC Scenario 3 equiv'!R112,\n'[5]SM2 - DECC Scenario 1 equiv'!R112,\n'[5]SM3 - DECC Scenario 2 equiv'!R112,\n'[5]SM4 - DNO Scenario 4 equiv'!R112,\n'[6]M1a - Model inputs'!R112,\n'[6]M1b - Model inputs'!R112,\n'[6]SM1 - DECC Scenario 3 equiv'!R112,\n'[6]SM2 - DECC Scenario 1 equiv'!R112,\n'[6]SM3 - DECC Scenario 2 equiv'!R112,\n'[6]SM4 - DNO Scenario 4 equiv'!R112)","v":1.8987120081227493E-3},{"$f":"CHOOSE(view,\n'[5]M1a - Model inputs'!S112,\n'[5]M1b - Model inputs'!S112,\n'[5]SM1 - DECC Scenario 3 equiv'!S112,\n'[5]SM2 - DECC Scenario 1 equiv'!S112,\n'[5]SM3 - DECC Scenario 2 equiv'!S112,\n'[5]SM4 - DNO Scenario 4 equiv'!S112,\n'[6]M1a - Model inputs'!S112,\n'[6]M1b - Model inputs'!S112,\n'[6]SM1 - DECC Scenario 3 equiv'!S112,\n'[6]SM2 - DECC Scenario 1 equiv'!S112,\n'[6]SM3 - DECC Scenario 2 equiv'!S112,\n'[6]SM4 - DNO Scenario 4 equiv'!S112)","v":-3.5752931541571664E-4}]
[null,null,null,null,{"$f":"Input!E235","v":"Connection projects UMC net position"},null,{"$f":"Input!G235","v":"£m 12/13 prices"},null,null,null,null,null,null,null,null,null,null,null,null,null,null,null,null,null,null,null,null,null,null,null,null,null,null,null,null,{"$f":"SUM(AJ233, -AJ234)","v":0},{"$f":"SUM(AK233, -AK234)","v":0},0,0,0,0,0,0]
[]
[null,null,null,null,{"$f":"Input!E237","v":"Diversionary works under obligation (ES2) revenue"},null,{"$f":"Input!G237","v":"£m 12/13 prices"},null,null,null,null,null,null,null,null,null,null,null,null,null,null,null,null,null,null,null,null,null,null,null,null,null,null,null,null,{"$f":"CHOOSE(view,\n'[5]M1a - Model inputs'!L$144,\n'[5]M1b - Model inputs'!L$144,\n'[5]SM1 - DECC Scenario 3 equiv'!L$144,\n'[5]SM2 - DECC Scenario 1 equiv'!L$144,\n'[5]SM3 - DECC Scenario 2 equiv'!L$144,\n'[5]SM4 - DNO Scenario 4 equiv'!L$144,\n'[6]M1a - Model inputs'!L$144,\n'[6]M1b - Model inputs'!L$144,\n'[6]SM1 - DECC Scenario 3 equiv'!L$144,\n'[6]SM2 - DECC Scenario 1 equiv'!L$144,\n'[6]SM3 - DECC Scenario 2 equiv'!L$144,\n'[6]SM4 - DNO Scenario 4 equiv'!L$144)","v":-8.145769008966731},{"$f":"CHOOSE(view,\n'[5]M1a - Model inputs'!M$144,\n'[5]M1b - Model inputs'!M$144,\n'[5]SM1 - DECC Scenario 3 equiv'!M$144,\n'[5]SM2 - DECC Scenario 1 equiv'!M$144,\n'[5]SM3 - DECC Scenario 2 equiv'!M$144,\n'[5]SM4 - DNO Scenario 4 equiv'!M$144,\n'[6]M1a - Model inputs'!M$144,\n'[6]M1b - Model inputs'!M$144,\n'[6]SM1 - DECC Scenario 3 equiv'!M$144,\n'[6]SM2 - DECC Scenario 1 equiv'!M$144,\n'[6]SM3 - DECC Scenario 2 equiv'!M$144,\n'[6]SM4 - DNO Scenario 4 equiv'!M$144)","v":-10.285769008966732},{"$f":"CHOOSE(view,\n'[5]M1a - Model inputs'!N$144,\n'[5]M1b - Model inputs'!N$144,\n'[5]SM1 - DECC Scenario 3 equiv'!N$144,\n'[5]SM2 - DECC Scenario 1 equiv'!N$144,\n'[5]SM3 - DECC Scenario 2 equiv'!N$144,\n'[5]SM4 - DNO Scenario 4 equiv'!N$144,\n'[6]M1a - Model inputs'!N$144,\n'[6]M1b - Model inputs'!N$144,\n'[6]SM1 - DECC Scenario 3 equiv'!N$144,\n'[6]SM2 - DECC Scenario 1 equiv'!N$144,\n'[6]SM3 - DECC Scenario 2 equiv'!N$144,\n'[6]SM4 - DNO Scenario 4 equiv'!N$144)","v":-10.285769008966732},{"$f":"CHOOSE(view,\n'[5]M1a - Model inputs'!O$144,\n'[5]M1b - Model inputs'!O$144,\n'[5]SM1 - DECC Scenario 3 equiv'!O$144,\n'[5]SM2 - DECC Scenario 1 equiv'!O$144,\n'[5]SM3 - DECC Scenario 2 equiv'!O$144,\n'[5]SM4 - DNO Scenario 4 equiv'!O$144,\n'[6]M1a - Model inputs'!O$144,\n'[6]M1b - Model inputs'!O$144,\n'[6]SM1 - DECC Scenario 3 equiv'!O$144,\n'[6]SM2 - DECC Scenario 1 equiv'!O$144,\n'[6]SM3 - DECC Scenario 2 equiv'!O$144,\n'[6]SM4 - DNO Scenario 4 equiv'!O$144)","v":-10.285769008966732},{"$f":"CHOOSE(view,\n'[5]M1a - Model inputs'!P$144,\n'[5]M1b - Model inputs'!P$144,\n'[5]SM1 - DECC Scenario 3 equiv'!P$144,\n'[5]SM2 - DECC Scenario 1 equiv'!P$144,\n'[5]SM3 - DECC Scenario 2 equiv'!P$144,\n'[5]SM4 - DNO Scenario 4 equiv'!P$144,\n'[6]M1a - Model inputs'!P$144,\n'[6]M1b - Model inputs'!P$144,\n'[6]SM1 - DECC Scenario 3 equiv'!P$144,\n'[6]SM2 - DECC Scenario 1 equiv'!P$144,\n'[6]SM3 - DECC Scenario 2 equiv'!P$144,\n'[6]SM4 - DNO Scenario 4 equiv'!P$144)","v":-10.285769008966732},{"$f":"CHOOSE(view,\n'[5]M1a - Model inputs'!Q$144,\n'[5]M1b - Model inputs'!Q$144,\n'[5]SM1 - DECC Scenario 3 equiv'!Q$144,\n'[5]SM2 - DECC Scenario 1 equiv'!Q$144,\n'[5]SM3 - DECC Scenario 2 equiv'!Q$144,\n'[5]SM4 - DNO Scenario 4 equiv'!Q$144,\n'[6]M1a - Model inputs'!Q$144,\n'[6]M1b - Model inputs'!Q$144,\n'[6]SM1 - DECC Scenario 3 equiv'!Q$144,\n'[6]SM2 - DECC Scenario 1 equiv'!Q$144,\n'[6]SM3 - DECC Scenario 2 equiv'!Q$144,\n'[6]SM4 - DNO Scenario 4 equiv'!Q$144)","v":-10.285769008966732},{"$f":"CHOOSE(view,\n'[5]M1a - Model inputs'!R$144,\n'[5]M1b - Model inputs'!R$144,\n'[5]SM1 - DECC Scenario 3 equiv'!R$144,\n'[5]SM2 - DECC Scenario 1 equiv'!R$144,\n'[5]SM3 - DECC Scenario 2 equiv'!R$144,\n'[5]SM4 - DNO Scenario 4 equiv'!R$144,\n'[6]M1a - Model inputs'!R$144,\n'[6]M1b - Model inputs'!R$144,\n'[6]SM1 - DECC Scenario 3 equiv'!R$144,\n'[6]SM2 - DECC Scenario 1 equiv'!R$144,\n'[6]SM3 - DECC Scenario 2 equiv'!R$144,\n'[6]SM4 - DNO Scenario 4 equiv'!R$144)","v":-10.285769008966732},{"$f":"CHOOSE(view,\n'[5]M1a - Model inputs'!S$144,\n'[5]M1b - Model inputs'!S$144,\n'[5]SM1 - DECC Scenario 3 equiv'!S$144,\n'[5]SM2 - DECC Scenario 1 equiv'!S$144,\n'[5]SM3 - DECC Scenario 2 equiv'!S$144,\n'[5]SM4 - DNO Scenario 4 equiv'!S$144,\n'[6]M1a - Model inputs'!S$144,\n'[6]M1b - Model inputs'!S$144,\n'[6]SM1 - DECC Scenario 3 equiv'!S$144,\n'[6]SM2 - DECC Scenario 1 equiv'!S$144,\n'[6]SM3 - DECC Scenario 2 equiv'!S$144,\n'[6]SM4 - DNO Scenario 4 equiv'!S$144)","v":-10.285769008966732}]
[null,null,null,null,{"$f":"Input!E238","v":"Diversionary works under obligation (ES2) costs"},null,{"$f":"Input!G238","v":"£m 12/13 prices"},null,null,null,null,null,null,null,null,null,null,null,null,null,null,null,null,null,null,null,null,null,null,null,null,null,null,null,null,{"$f":"CHOOSE(view,\n'[5]M1a - Model inputs'!L$131,\n'[5]M1b - Model inputs'!L$131,\n'[5]SM1 - DECC Scenario 3 equiv'!L$131,\n'[5]SM2 - DECC Scenario 1 equiv'!L$131,\n'[5]SM3 - DECC Scenario 2 equiv'!L$131,\n'[5]SM4 - DNO Scenario 4 equiv'!L$131,\n'[6]M1a - Model inputs'!L$131,\n'[6]M1b - Model inputs'!L$131,\n'[6]SM1 - DECC Scenario 3 equiv'!L$131,\n'[6]SM2 - DECC Scenario 1 equiv'!L$131,\n'[6]SM3 - DECC Scenario 2 equiv'!L$131,\n'[6]SM4 - DNO Scenario 4 equiv'!L$131)","v":0},{"$f":"CHOOSE(view,\n'[5]M1a - Model inputs'!M$131,\n'[5]M1b - Model inputs'!M$131,\n'[5]SM1 - DECC Scenario 3 equiv'!M$131,\n'[5]SM2 - DECC Scenario 1 equiv'!M$131,\n'[5]SM3 - DECC Scenario 2 equiv'!M$131,\n'[5]SM4 - DNO Scenario 4 equiv'!M$131,\n'[6]M1a - Model inputs'!M$131,\n'[6]M1b - Model inputs'!M$131,\n'[6]SM1 - DECC Scenario 3 equiv'!M$131,\n'[6]SM2 - DECC Scenario 1 equiv'!M$131,\n'[6]SM3 - DECC Scenario 2 equiv'!M$131,\n'[6]SM4 - DNO Scenario 4 equiv'!M$131)","v":0},{"$f":"CHOOSE(view,\n'[5]M1a - Model inputs'!N$131,\n'[5]M1b - Model inputs'!N$131,\n'[5]SM1 - DECC Scenario 3 equiv'!N$131,\n'[5]SM2 - DECC Scenario 1 equiv'!N$131,\n'[5]SM3 - DECC Scenario 2 equiv'!N$131,\n'[5]SM4 - DNO Scenario 4 equiv'!N$131,\n'[6]M1a - Model inputs'!N$131,\n'[6]M1b - Model inputs'!N$131,\n'[6]SM1 - DECC Scenario 3 equiv'!N$131,\n'[6]SM2 - DECC Scenario 1 equiv'!N$131,\n'[6]SM3 - DECC Scenario 2 equiv'!N$131,\n'[6]SM4 - DNO Scenario 4 equiv'!N$131)","v":0},{"$f":"CHOOSE(view,\n'[5]M1a - Model inputs'!O$131,\n'[5]M1b - Model inputs'!O$131,\n'[5]SM1 - DECC Scenario 3 equiv'!O$131,\n'[5]SM2 - DECC Scenario 1 equiv'!O$131,\n'[5]SM3 - DECC Scenario 2 equiv'!O$131,\n'[5]SM4 - DNO Scenario 4 equiv'!O$131,\n'[6]M1a - Model inputs'!O$131,\n'[6]M1b - Model inputs'!O$131,\n'[6]SM1 - DECC Scenario 3 equiv'!O$131,\n'[6]SM2 - DECC Scenario 1 equiv'!O$131,\n'[6]SM3 - DECC Scenario 2 equiv'!O$131,\n'[6]SM4 - DNO Scenario 4 equiv'!O$131)","v":0},{"$f":"CHOOSE(view,\n'[5]M1a - Model inputs'!P$131,\n'[5]M1b - Model inputs'!P$131,\n'[5]SM1 - DECC Scenario 3 equiv'!P$131,\n'[5]SM2 - DECC Scenario 1 equiv'!P$131,\n'[5]SM3 - DECC Scenario 2 equiv'!P$131,\n'[5]SM4 - DNO Scenario 4 equiv'!P$131,\n'[6]M1a - Model inputs'!P$131,\n'[6]M1b - Model inputs'!P$131,\n'[6]SM1 - DECC Scenario 3 equiv'!P$131,\n'[6]SM2 - DECC Scenario 1 equiv'!P$131,\n'[6]SM3 - DECC Scenario 2 equiv'!P$131,\n'[6]SM4 - DNO Scenario 4 equiv'!P$131)","v":0},{"$f":"CHOOSE(view,\n'[5]M1a - Model inputs'!Q$131,\n'[5]M1b - Model inputs'!Q$131,\n'[5]SM1 - DECC Scenario 3 equiv'!Q$131,\n'[5]SM2 - DECC Scenario 1 equiv'!Q$131,\n'[5]SM3 - DECC Scenario 2 equiv'!Q$131,\n'[5]SM4 - DNO Scenario 4 equiv'!Q$131,\n'[6]M1a - Model inputs'!Q$131,\n'[6]M1b - Model inputs'!Q$131,\n'[6]SM1 - DECC Scenario 3 equiv'!Q$131,\n'[6]SM2 - DECC Scenario 1 equiv'!Q$131,\n'[6]SM3 - DECC Scenario 2 equiv'!Q$131,\n'[6]SM4 - DNO Scenario 4 equiv'!Q$131)","v":0},{"$f":"CHOOSE(view,\n'[5]M1a - Model inputs'!R$131,\n'[5]M1b - Model inputs'!R$131,\n'[5]SM1 - DECC Scenario 3 equiv'!R$131,\n'[5]SM2 - DECC Scenario 1 equiv'!R$131,\n'[5]SM3 - DECC Scenario 2 equiv'!R$131,\n'[5]SM4 - DNO Scenario 4 equiv'!R$131,\n'[6]M1a - Model inputs'!R$131,\n'[6]M1b - Model inputs'!R$131,\n'[6]SM1 - DECC Scenario 3 equiv'!R$131,\n'[6]SM2 - DECC Scenario 1 equiv'!R$131,\n'[6]SM3 - DECC Scenario 2 equiv'!R$131,\n'[6]SM4 - DNO Scenario 4 equiv'!R$131)","v":0},{"$f":"CHOOSE(view,\n'[5]M1a - Model inputs'!S$131,\n'[5]M1b - Model inputs'!S$131,\n'[5]SM1 - DECC Scenario 3 equiv'!S$131,\n'[5]SM2 - DECC Scenario 1 equiv'!S$131,\n'[5]SM3 - DECC Scenario 2 equiv'!S$131,\n'[5]SM4 - DNO Scenario 4 equiv'!S$131,\n'[6]M1a - Model inputs'!S$131,\n'[6]M1b - Model inputs'!S$131,\n'[6]SM1 - DECC Scenario 3 equiv'!S$131,\n'[6]SM2 - DECC Scenario 1 equiv'!S$131,\n'[6]SM3 - DECC Scenario 2 equiv'!S$131,\n'[6]SM4 - DNO Scenario 4 equiv'!S$131)","v":0}]
[null,null,null,null,{"$f":"Input!E239","v":"Diversionary works under obligation (ES2) net position"},null,{"$f":"Input!G239","v":"£m 12/13 prices"},null,null,null,null,null,null,null,null,null,null,null,null,null,null,null,null,null,null,null,null,null,null,null,null,null,null,null,null,{"$f":"SUM(AJ237, -AJ238)","v":-8.145769008966731},{"$f":"SUM(AK237, -AK238)","v":-10.285769008966732},-10.285769008966732,-10.285769008966732,-10.285769008966732,-10.285769008966732,-10.285769008966732,-10.285769008966732]
[]
[null,null,null,null,{"$f":"Input!E241","v":"Work required by any alteration premises (ES3) revenue"},null,{"$f":"Input!G241","v":"£m 12/13 prices"},null,null,null,null,null,null,null,null,null,null,null,null,null,null,null,null,null,null,null,null,null,null,null,null,null,null,null,null,{"$f":"CHOOSE(view,\n'[5]M1a - Model inputs'!L$145,\n'[5]M1b - Model inputs'!L$145,\n'[5]SM1 - DECC Scenario 3 equiv'!L$145,\n'[5]SM2 - DECC Scenario 1 equiv'!L$145,\n'[5]SM3 - DECC Scenario 2 equiv'!L$145,\n'[5]SM4 - DNO Scenario 4 equiv'!L$145,\n'[6]M1a - Model inputs'!L$145,\n'[6]M1b - Model inputs'!L$145,\n'[6]SM1 - DECC Scenario 3 equiv'!L$145,\n'[6]SM2 - DECC Scenario 1 equiv'!L$145,\n'[6]SM3 - DECC Scenario 2 equiv'!L$145,\n'[6]SM4 - DNO Scenario 4 equiv'!L$145)","v":-1.8554381977181111},{"$f":"CHOOSE(view,\n'[5]M1a - Model inputs'!M$145,\n'[5]M1b - Model inputs'!M$145,\n'[5]SM1 - DECC Scenario 3 equiv'!M$145,\n'[5]SM2 - DECC Scenario 1 equiv'!M$145,\n'[5]SM3 - DECC Scenario 2 equiv'!M$145,\n'[5]SM4 - DNO Scenario 4 equiv'!M$145,\n'[6]M1a - Model inputs'!M$145,\n'[6]M1b - Model inputs'!M$145,\n'[6]SM1 - DECC Scenario 3 equiv'!M$145,\n'[6]SM2 - DECC Scenario 1 equiv'!M$145,\n'[6]SM3 - DECC Scenario 2 equiv'!M$145,\n'[6]SM4 - DNO Scenario 4 equiv'!M$145)","v":-1.8554381977181111},{"$f":"CHOOSE(view,\n'[5]M1a - Model inputs'!N$145,\n'[5]M1b - Model inputs'!N$145,\n'[5]SM1 - DECC Scenario 3 equiv'!N$145,\n'[5]SM2 - DECC Scenario 1 equiv'!N$145,\n'[5]SM3 - DECC Scenario 2 equiv'!N$145,\n'[5]SM4 - DNO Scenario 4 equiv'!N$145,\n'[6]M1a - Model inputs'!N$145,\n'[6]M1b - Model inputs'!N$145,\n'[6]SM1 - DECC Scenario 3 equiv'!N$145,\n'[6]SM2 - DECC Scenario 1 equiv'!N$145,\n'[6]SM3 - DECC Scenario 2 equiv'!N$145,\n'[6]SM4 - DNO Scenario 4 equiv'!N$145)","v":-1.8554381977181111},{"$f":"CHOOSE(view,\n'[5]M1a - Model inputs'!O$145,\n'[5]M1b - Model inputs'!O$145,\n'[5]SM1 - DECC Scenario 3 equiv'!O$145,\n'[5]SM2 - DECC Scenario 1 equiv'!O$145,\n'[5]SM3 - DECC Scenario 2 equiv'!O$145,\n'[5]SM4 - DNO Scenario 4 equiv'!O$145,\n'[6]M1a - Model inputs'!O$145,\n'[6]M1b - Model inputs'!O$145,\n'[6]SM1 - DECC Scenario 3 equiv'!O$145,\n'[6]SM2 - DECC Scenario 1 equiv'!O$145,\n'[6]SM3 - DECC Scenario 2 equiv'!O$145,\n'[6]SM4 - DNO Scenario 4 equiv'!O$145)","v":-1.8554381977181111},{"$f":"CHOOSE(view,\n'[5]M1a - Model inputs'!P$145,\n'[5]M1b - Model inputs'!P$145,\n'[5]SM1 - DECC Scenario 3 equiv'!P$145,\n'[5]SM2 - DECC Scenario 1 equiv'!P$145,\n'[5]SM3 - DECC Scenario 2 equiv'!P$145,\n'[5]SM4 - DNO Scenario 4 equiv'!P$145,\n'[6]M1a - Model inputs'!P$145,\n'[6]M1b - Model inputs'!P$145,\n'[6]SM1 - DECC Scenario 3 equiv'!P$145,\n'[6]SM2 - DECC Scenario 1 equiv'!P$145,\n'[6]SM3 - DECC Scenario 2 equiv'!P$145,\n'[6]SM4 - DNO Scenario 4 equiv'!P$145)","v":-1.8554381977181111},{"$f":"CHOOSE(view,\n'[5]M1a - Model inputs'!Q$145,\n'[5]M1b - Model inputs'!Q$145,\n'[5]SM1 - DECC Scenario 3 equiv'!Q$145,\n'[5]SM2 - DECC Scenario 1 equiv'!Q$145,\n'[5]SM3 - DECC Scenario 2 equiv'!Q$145,\n'[5]SM4 - DNO Scenario 4 equiv'!Q$145,\n'[6]M1a - Model inputs'!Q$145,\n'[6]M1b - Model inputs'!Q$145,\n'[6]SM1 - DECC Scenario 3 equiv'!Q$145,\n'[6]SM2 - DECC Scenario 1 equiv'!Q$145,\n'[6]SM3 - DECC Scenario 2 equiv'!Q$145,\n'[6]SM4 - DNO Scenario 4 equiv'!Q$145)","v":-1.8554381977181111},{"$f":"CHOOSE(view,\n'[5]M1a - Model inputs'!R$145,\n'[5]M1b - Model inputs'!R$145,\n'[5]SM1 - DECC Scenario 3 equiv'!R$145,\n'[5]SM2 - DECC Scenario 1 equiv'!R$145,\n'[5]SM3 - DECC Scenario 2 equiv'!R$145,\n'[5]SM4 - DNO Scenario 4 equiv'!R$145,\n'[6]M1a - Model inputs'!R$145,\n'[6]M1b - Model inputs'!R$145,\n'[6]SM1 - DECC Scenario 3 equiv'!R$145,\n'[6]SM2 - DECC Scenario 1 equiv'!R$145,\n'[6]SM3 - DECC Scenario 2 equiv'!R$145,\n'[6]SM4 - DNO Scenario 4 equiv'!R$145)","v":-1.8554381977181111},{"$f":"CHOOSE(view,\n'[5]M1a - Model inputs'!S$145,\n'[5]M1b - Model inputs'!S$145,\n'[5]SM1 - DECC Scenario 3 equiv'!S$145,\n'[5]SM2 - DECC Scenario 1 equiv'!S$145,\n'[5]SM3 - DECC Scenario 2 equiv'!S$145,\n'[5]SM4 - DNO Scenario 4 equiv'!S$145,\n'[6]M1a - Model inputs'!S$145,\n'[6]M1b - Model inputs'!S$145,\n'[6]SM1 - DECC Scenario 3 equiv'!S$145,\n'[6]SM2 - DECC Scenario 1 equiv'!S$145,\n'[6]SM3 - DECC Scenario 2 equiv'!S$145,\n'[6]SM4 - DNO Scenario 4 equiv'!S$145)","v":-1.8554381977181111}]
[null,null,null,null,{"$f":"Input!E242","v":"Work required by any alteration premises (ES3) costs"},null,{"$f":"Input!G242","v":"£m 12/13 prices"},null,null,null,null,null,null,null,null,null,null,null,null,null,null,null,null,null,null,null,null,null,null,null,null,null,null,null,null,{"$f":"CHOOSE(view,\n'[5]M1a - Model inputs'!L$132,\n'[5]M1b - Model inputs'!L$132,\n'[5]SM1 - DECC Scenario 3 equiv'!L$132,\n'[5]SM2 - DECC Scenario 1 equiv'!L$132,\n'[5]SM3 - DECC Scenario 2 equiv'!L$132,\n'[5]SM4 - DNO Scenario 4 equiv'!L$132,\n'[6]M1a - Model inputs'!L$132,\n'[6]M1b - Model inputs'!L$132,\n'[6]SM1 - DECC Scenario 3 equiv'!L$132,\n'[6]SM2 - DECC Scenario 1 equiv'!L$132,\n'[6]SM3 - DECC Scenario 2 equiv'!L$132,\n'[6]SM4 - DNO Scenario 4 equiv'!L$132)","v":0},{"$f":"CHOOSE(view,\n'[5]M1a - Model inputs'!M$132,\n'[5]M1b - Model inputs'!M$132,\n'[5]SM1 - DECC Scenario 3 equiv'!M$132,\n'[5]SM2 - DECC Scenario 1 equiv'!M$132,\n'[5]SM3 - DECC Scenario 2 equiv'!M$132,\n'[5]SM4 - DNO Scenario 4 equiv'!M$132,\n'[6]M1a - Model inputs'!M$132,\n'[6]M1b - Model inputs'!M$132,\n'[6]SM1 - DECC Scenario 3 equiv'!M$132,\n'[6]SM2 - DECC Scenario 1 equiv'!M$132,\n'[6]SM3 - DECC Scenario 2 equiv'!M$132,\n'[6]SM4 - DNO Scenario 4 equiv'!M$132)","v":0},{"$f":"CHOOSE(view,\n'[5]M1a - Model inputs'!N$132,\n'[5]M1b - Model inputs'!N$132,\n'[5]SM1 - DECC Scenario 3 equiv'!N$132,\n'[5]SM2 - DECC Scenario 1 equiv'!N$132,\n'[5]SM3 - DECC Scenario 2 equiv'!N$132,\n'[5]SM4 - DNO Scenario 4 equiv'!N$132,\n'[6]M1a - Model inputs'!N$132,\n'[6]M1b - Model inputs'!N$132,\n'[6]SM1 - DECC Scenario 3 equiv'!N$132,\n'[6]SM2 - DECC Scenario 1 equiv'!N$132,\n'[6]SM3 - DECC Scenario 2 equiv'!N$132,\n'[6]SM4 - DNO Scenario 4 equiv'!N$132)","v":0},{"$f":"CHOOSE(view,\n'[5]M1a - Model inputs'!O$132,\n'[5]M1b - Model inputs'!O$132,\n'[5]SM1 - DECC Scenario 3 equiv'!O$132,\n'[5]SM2 - DECC Scenario 1 equiv'!O$132,\n'[5]SM3 - DECC Scenario 2 equiv'!O$132,\n'[5]SM4 - DNO Scenario 4 equiv'!O$132,\n'[6]M1a - Model inputs'!O$132,\n'[6]M1b - Model inputs'!O$132,\n'[6]SM1 - DECC Scenario 3 equiv'!O$132,\n'[6]SM2 - DECC Scenario 1 equiv'!O$132,\n'[6]SM3 - DECC Scenario 2 equiv'!O$132,\n'[6]SM4 - DNO Scenario 4 equiv'!O$132)","v":0},{"$f":"CHOOSE(view,\n'[5]M1a - Model inputs'!P$132,\n'[5]M1b - Model inputs'!P$132,\n'[5]SM1 - DECC Scenario 3 equiv'!P$132,\n'[5]SM2 - DECC Scenario 1 equiv'!P$132,\n'[5]SM3 - DECC Scenario 2 equiv'!P$132,\n'[5]SM4 - DNO Scenario 4 equiv'!P$132,\n'[6]M1a - Model inputs'!P$132,\n'[6]M1b - Model inputs'!P$132,\n'[6]SM1 - DECC Scenario 3 equiv'!P$132,\n'[6]SM2 - DECC Scenario 1 equiv'!P$132,\n'[6]SM3 - DECC Scenario 2 equiv'!P$132,\n'[6]SM4 - DNO Scenario 4 equiv'!P$132)","v":0},{"$f":"CHOOSE(view,\n'[5]M1a - Model inputs'!Q$132,\n'[5]M1b - Model inputs'!Q$132,\n'[5]SM1 - DECC Scenario 3 equiv'!Q$132,\n'[5]SM2 - DECC Scenario 1 equiv'!Q$132,\n'[5]SM3 - DECC Scenario 2 equiv'!Q$132,\n'[5]SM4 - DNO Scenario 4 equiv'!Q$132,\n'[6]M1a - Model inputs'!Q$132,\n'[6]M1b - Model inputs'!Q$132,\n'[6]SM1 - DECC Scenario 3 equiv'!Q$132,\n'[6]SM2 - DECC Scenario 1 equiv'!Q$132,\n'[6]SM3 - DECC Scenario 2 equiv'!Q$132,\n'[6]SM4 - DNO Scenario 4 equiv'!Q$132)","v":0},{"$f":"CHOOSE(view,\n'[5]M1a - Model inputs'!R$132,\n'[5]M1b - Model inputs'!R$132,\n'[5]SM1 - DECC Scenario 3 equiv'!R$132,\n'[5]SM2 - DECC Scenario 1 equiv'!R$132,\n'[5]SM3 - DECC Scenario 2 equiv'!R$132,\n'[5]SM4 - DNO Scenario 4 equiv'!R$132,\n'[6]M1a - Model inputs'!R$132,\n'[6]M1b - Model inputs'!R$132,\n'[6]SM1 - DECC Scenario 3 equiv'!R$132,\n'[6]SM2 - DECC Scenario 1 equiv'!R$132,\n'[6]SM3 - DECC Scenario 2 equiv'!R$132,\n'[6]SM4 - DNO Scenario 4 equiv'!R$132)","v":0},{"$f":"CHOOSE(view,\n'[5]M1a - Model inputs'!S$132,\n'[5]M1b - Model inputs'!S$132,\n'[5]SM1 - DECC Scenario 3 equiv'!S$132,\n'[5]SM2 - DECC Scenario 1 equiv'!S$132,\n'[5]SM3 - DECC Scenario 2 equiv'!S$132,\n'[5]SM4 - DNO Scenario 4 equiv'!S$132,\n'[6]M1a - Model inputs'!S$132,\n'[6]M1b - Model inputs'!S$132,\n'[6]SM1 - DECC Scenario 3 equiv'!S$132,\n'[6]SM2 - DECC Scenario 1 equiv'!S$132,\n'[6]SM3 - DECC Scenario 2 equiv'!S$132,\n'[6]SM4 - DNO Scenario 4 equiv'!S$132)","v":0}]
[null,null,null,null,{"$f":"Input!E243","v":"Work required by any alteration premises (ES3) net position"},null,{"$f":"Input!G243","v":"£m 12/13 prices"},null,null,null,null,null,null,null,null,null,null,null,null,null,null,null,null,null,null,null,null,null,null,null,null,null,null,null,null,{"$f":"SUM(AJ241, -AJ242)","v":-1.8554381977181111},{"$f":"SUM(AK241, -AK242)","v":-1.8554381977181111},-1.8554381977181111,-1.8554381977181111,-1.8554381977181111,-1.8554381977181111,-1.8554381977181111,-1.8554381977181111]
[]
[null,null,null,null,{"$f":"Input!E245","v":"Top up standby and enhanced system security (ES4) revenue"},null,{"$f":"Input!G245","v":"£m 12/13 prices"},null,null,null,null,null,null,null,null,null,null,null,null,null,null,null,null,null,null,null,null,null,null,null,null,null,null,null,null,{"$f":"CHOOSE(view,\n'[5]M1a - Model inputs'!L$146,\n'[5]M1b - Model inputs'!L$146,\n'[5]SM1 - DECC Scenario 3 equiv'!L$146,\n'[5]SM2 - DECC Scenario 1 equiv'!L$146,\n'[5]SM3 - DECC Scenario 2 equiv'!L$146,\n'[5]SM4 - DNO Scenario 4 equiv'!L$146,\n'[6]M1a - Model inputs'!L$146,\n'[6]M1b - Model inputs'!L$146,\n'[6]SM1 - DECC Scenario 3 equiv'!L$146,\n'[6]SM2 - DECC Scenario 1 equiv'!L$146,\n'[6]SM3 - DECC Scenario 2 equiv'!L$146,\n'[6]SM4 - DNO Scenario 4 equiv'!L$146)","v":0},{"$f":"CHOOSE(view,\n'[5]M1a - Model inputs'!M$146,\n'[5]M1b - Model inputs'!M$146,\n'[5]SM1 - DECC Scenario 3 equiv'!M$146,\n'[5]SM2 - DECC Scenario 1 equiv'!M$146,\n'[5]SM3 - DECC Scenario 2 equiv'!M$146,\n'[5]SM4 - DNO Scenario 4 equiv'!M$146,\n'[6]M1a - Model inputs'!M$146,\n'[6]M1b - Model inputs'!M$146,\n'[6]SM1 - DECC Scenario 3 equiv'!M$146,\n'[6]SM2 - DECC Scenario 1 equiv'!M$146,\n'[6]SM3 - DECC Scenario 2 equiv'!M$146,\n'[6]SM4 - DNO Scenario 4 equiv'!M$146)","v":0},{"$f":"CHOOSE(view,\n'[5]M1a - Model inputs'!N$146,\n'[5]M1b - Model inputs'!N$146,\n'[5]SM1 - DECC Scenario 3 equiv'!N$146,\n'[5]SM2 - DECC Scenario 1 equiv'!N$146,\n'[5]SM3 - DECC Scenario 2 equiv'!N$146,\n'[5]SM4 - DNO Scenario 4 equiv'!N$146,\n'[6]M1a - Model inputs'!N$146,\n'[6]M1b - Model inputs'!N$146,\n'[6]SM1 - DECC Scenario 3 equiv'!N$146,\n'[6]SM2 - DECC Scenario 1 equiv'!N$146,\n'[6]SM3 - DECC Scenario 2 equiv'!N$146,\n'[6]SM4 - DNO Scenario 4 equiv'!N$146)","v":0},{"$f":"CHOOSE(view,\n'[5]M1a - Model inputs'!O$146,\n'[5]M1b - Model inputs'!O$146,\n'[5]SM1 - DECC Scenario 3 equiv'!O$146,\n'[5]SM2 - DECC Scenario 1 equiv'!O$146,\n'[5]SM3 - DECC Scenario 2 equiv'!O$146,\n'[5]SM4 - DNO Scenario 4 equiv'!O$146,\n'[6]M1a - Model inputs'!O$146,\n'[6]M1b - Model inputs'!O$146,\n'[6]SM1 - DECC Scenario 3 equiv'!O$146,\n'[6]SM2 - DECC Scenario 1 equiv'!O$146,\n'[6]SM3 - DECC Scenario 2 equiv'!O$146,\n'[6]SM4 - DNO Scenario 4 equiv'!O$146)","v":0},{"$f":"CHOOSE(view,\n'[5]M1a - Model inputs'!P$146,\n'[5]M1b - Model inputs'!P$146,\n'[5]SM1 - DECC Scenario 3 equiv'!P$146,\n'[5]SM2 - DECC Scenario 1 equiv'!P$146,\n'[5]SM3 - DECC Scenario 2 equiv'!P$146,\n'[5]SM4 - DNO Scenario 4 equiv'!P$146,\n'[6]M1a - Model inputs'!P$146,\n'[6]M1b - Model inputs'!P$146,\n'[6]SM1 - DECC Scenario 3 equiv'!P$146,\n'[6]SM2 - DECC Scenario 1 equiv'!P$146,\n'[6]SM3 - DECC Scenario 2 equiv'!P$146,\n'[6]SM4 - DNO Scenario 4 equiv'!P$146)","v":0},{"$f":"CHOOSE(view,\n'[5]M1a - Model inputs'!Q$146,\n'[5]M1b - Model inputs'!Q$146,\n'[5]SM1 - DECC Scenario 3 equiv'!Q$146,\n'[5]SM2 - DECC Scenario 1 equiv'!Q$146,\n'[5]SM3 - DECC Scenario 2 equiv'!Q$146,\n'[5]SM4 - DNO Scenario 4 equiv'!Q$146,\n'[6]M1a - Model inputs'!Q$146,\n'[6]M1b - Model inputs'!Q$146,\n'[6]SM1 - DECC Scenario 3 equiv'!Q$146,\n'[6]SM2 - DECC Scenario 1 equiv'!Q$146,\n'[6]SM3 - DECC Scenario 2 equiv'!Q$146,\n'[6]SM4 - DNO Scenario 4 equiv'!Q$146)","v":0},{"$f":"CHOOSE(view,\n'[5]M1a - Model inputs'!R$146,\n'[5]M1b - Model inputs'!R$146,\n'[5]SM1 - DECC Scenario 3 equiv'!R$146,\n'[5]SM2 - DECC Scenario 1 equiv'!R$146,\n'[5]SM3 - DECC Scenario 2 equiv'!R$146,\n'[5]SM4 - DNO Scenario 4 equiv'!R$146,\n'[6]M1a - Model inputs'!R$146,\n'[6]M1b - Model inputs'!R$146,\n'[6]SM1 - DECC Scenario 3 equiv'!R$146,\n'[6]SM2 - DECC Scenario 1 equiv'!R$146,\n'[6]SM3 - DECC Scenario 2 equiv'!R$146,\n'[6]SM4 - DNO Scenario 4 equiv'!R$146)","v":0},{"$f":"CHOOSE(view,\n'[5]M1a - Model inputs'!S$146,\n'[5]M1b - Model inputs'!S$146,\n'[5]SM1 - DECC Scenario 3 equiv'!S$146,\n'[5]SM2 - DECC Scenario 1 equiv'!S$146,\n'[5]SM3 - DECC Scenario 2 equiv'!S$146,\n'[5]SM4 - DNO Scenario 4 equiv'!S$146,\n'[6]M1a - Model inputs'!S$146,\n'[6]M1b - Model inputs'!S$146,\n'[6]SM1 - DECC Scenario 3 equiv'!S$146,\n'[6]SM2 - DECC Scenario 1 equiv'!S$146,\n'[6]SM3 - DECC Scenario 2 equiv'!S$146,\n'[6]SM4 - DNO Scenario 4 equiv'!S$146)","v":0}]
[null,null,null,null,{"$f":"Input!E246","v":"Top up standby and enhanced system security (ES4) costs"},null,{"$f":"Input!G246","v":"£m 12/13 prices"},null,null,null,null,null,null,null,null,null,null,null,null,null,null,null,null,null,null,null,null,null,null,null,null,null,null,null,null,{"$f":"CHOOSE(view,\n'[5]M1a - Model inputs'!L$133,\n'[5]M1b - Model inputs'!L$133,\n'[5]SM1 - DECC Scenario 3 equiv'!L$133,\n'[5]SM2 - DECC Scenario 1 equiv'!L$133,\n'[5]SM3 - DECC Scenario 2 equiv'!L$133,\n'[5]SM4 - DNO Scenario 4 equiv'!L$133,\n'[6]M1a - Model inputs'!L$133,\n'[6]M1b - Model inputs'!L$133,\n'[6]SM1 - DECC Scenario 3 equiv'!L$133,\n'[6]SM2 - DECC Scenario 1 equiv'!L$133,\n'[6]SM3 - DECC Scenario 2 equiv'!L$133,\n'[6]SM4 - DNO Scenario 4 equiv'!L$133)","v":3.0701013471699956},{"$f":"CHOOSE(view,\n'[5]M1a - Model inputs'!M$133,\n'[5]M1b - Model inputs'!M$133,\n'[5]SM1 - DECC Scenario 3 equiv'!M$133,\n'[5]SM2 - DECC Scenario 1 equiv'!M$133,\n'[5]SM3 - DECC Scenario 2 equiv'!M$133,\n'[5]SM4 - DNO Scenario 4 equiv'!M$133,\n'[6]M1a - Model inputs'!M$133,\n'[6]M1b - Model inputs'!M$133,\n'[6]SM1 - DECC Scenario 3 equiv'!M$133,\n'[6]SM2 - DECC Scenario 1 equiv'!M$133,\n'[6]SM3 - DECC Scenario 2 equiv'!M$133,\n'[6]SM4 - DNO Scenario 4 equiv'!M$133)","v":3.1006677057167953},{"$f":"CHOOSE(view,\n'[5]M1a - Model inputs'!N$133,\n'[5]M1b - Model inputs'!N$133,\n'[5]SM1 - DECC Scenario 3 equiv'!N$133,\n'[5]SM2 - DECC Scenario 1 equiv'!N$133,\n'[5]SM3 - DECC Scenario 2 equiv'!N$133,\n'[5]SM4 - DNO Scenario 4 equiv'!N$133,\n'[6]M1a - Model inputs'!N$133,\n'[6]M1b - Model inputs'!N$133,\n'[6]SM1 - DECC Scenario 3 equiv'!N$133,\n'[6]SM2 - DECC Scenario 1 equiv'!N$133,\n'[6]SM3 - DECC Scenario 2 equiv'!N$133,\n'[6]SM4 - DNO Scenario 4 equiv'!N$133)","v":3.1602845314296957},{"$f":"CHOOSE(view,\n'[5]M1a - Model inputs'!O$133,\n'[5]M1b - Model inputs'!O$133,\n'[5]SM1 - DECC Scenario 3 equiv'!O$133,\n'[5]SM2 - DECC Scenario 1 equiv'!O$133,\n'[5]SM3 - DECC Scenario 2 equiv'!O$133,\n'[5]SM4 - DNO Scenario 4 equiv'!O$133,\n'[6]M1a - Model inputs'!O$133,\n'[6]M1b - Model inputs'!O$133,\n'[6]SM1 - DECC Scenario 3 equiv'!O$133,\n'[6]SM2 - DECC Scenario 1 equiv'!O$133,\n'[6]SM3 - DECC Scenario 2 equiv'!O$133,\n'[6]SM4 - DNO Scenario 4 equiv'!O$133)","v":3.1639735550135479},{"$f":"CHOOSE(view,\n'[5]M1a - Model inputs'!P$133,\n'[5]M1b - Model inputs'!P$133,\n'[5]SM1 - DECC Scenario 3 equiv'!P$133,\n'[5]SM2 - DECC Scenario 1 equiv'!P$133,\n'[5]SM3 - DECC Scenario 2 equiv'!P$133,\n'[5]SM4 - DNO Scenario 4 equiv'!P$133,\n'[6]M1a - Model inputs'!P$133,\n'[6]M1b - Model inputs'!P$133,\n'[6]SM1 - DECC Scenario 3 equiv'!P$133,\n'[6]SM2 - DECC Scenario 1 equiv'!P$133,\n'[6]SM3 - DECC Scenario 2 equiv'!P$133,\n'[6]SM4 - DNO Scenario 4 equiv'!P$133)","v":3.1752673576325536},{"$f":"CHOOSE(view,\n'[5]M1a - Model inputs'!Q$133,\n'[5]M1b - Model inputs'!Q$133,\n'[5]SM1 - DECC Scenario 3 equiv'!Q$133,\n'[5]SM2 - DECC Scenario 1 equiv'!Q$133,\n'[5]SM3 - DECC Scenario 2 equiv'!Q$133,\n'[5]SM4 - DNO Scenario 4 equiv'!Q$133,\n'[6]M1a - Model inputs'!Q$133,\n'[6]M1b - Model inputs'!Q$133,\n'[6]SM1 - DECC Scenario 3 equiv'!Q$133,\n'[6]SM2 - DECC Scenario 1 equiv'!Q$133,\n'[6]SM3 - DECC Scenario 2 equiv'!Q$133,\n'[6]SM4 - DNO Scenario 4 equiv'!Q$133)","v":3.0917614991297757},{"$f":"CHOOSE(view,\n'[5]M1a - Model inputs'!R$133,\n'[5]M1b - Model inputs'!R$133,\n'[5]SM1 - DECC Scenario 3 equiv'!R$133,\n'[5]SM2 - DECC Scenario 1 equiv'!R$133,\n'[5]SM3 - DECC Scenario 2 equiv'!R$133,\n'[5]SM4 - DNO Scenario 4 equiv'!R$133,\n'[6]M1a - Model inputs'!R$133,\n'[6]M1b - Model inputs'!R$133,\n'[6]SM1 - DECC Scenario 3 equiv'!R$133,\n'[6]SM2 - DECC Scenario 1 equiv'!R$133,\n'[6]SM3 - DECC Scenario 2 equiv'!R$133,\n'[6]SM4 - DNO Scenario 4 equiv'!R$133)","v":3.0509556707656347},{"$f":"CHOOSE(view,\n'[5]M1a - Model inputs'!S$133,\n'[5]M1b - Model inputs'!S$133,\n'[5]SM1 - DECC Scenario 3 equiv'!S$133,\n'[5]SM2 - DECC Scenario 1 equiv'!S$133,\n'[5]SM3 - DECC Scenario 2 equiv'!S$133,\n'[5]SM4 - DNO Scenario 4 equiv'!S$133,\n'[6]M1a - Model inputs'!S$133,\n'[6]M1b - Model inputs'!S$133,\n'[6]SM1 - DECC Scenario 3 equiv'!S$133,\n'[6]SM2 - DECC Scenario 1 equiv'!S$133,\n'[6]SM3 - DECC Scenario 2 equiv'!S$133,\n'[6]SM4 - DNO Scenario 4 equiv'!S$133)","v":2.9440634441420221}]
[null,null,null,null,{"$f":"Input!E247","v":"Top up standby and enhanced system security (ES4) net position"},null,{"$f":"Input!G247","v":"£m 12/13 prices"},null,null,null,null,null,null,null,null,null,null,null,null,null,null,null,null,null,null,null,null,null,null,null,null,null,null,null,null,{"$f":"SUM(AJ245, -AJ246)","v":-3.0701013471699956},{"$f":"SUM(AK245, -AK246)","v":-3.1006677057167953},-3.1602845314296957,-3.1639735550135479,-3.1752673576325536,-3.0917614991297757,-3.0509556707656347,-2.9440634441420221]
[]
[null,null,null,null,{"$f":"Input!E249","v":"Revenue protection services (ES5) revenue"},null,{"$f":"Input!G249","v":"£m 12/13 prices"},null,null,null,null,null,null,null,null,null,null,null,null,null,null,null,null,null,null,null,null,null,null,null,null,null,null,null,null,{"$f":"CHOOSE(view,\n'[5]M1a - Model inputs'!L$147,\n'[5]M1b - Model inputs'!L$147,\n'[5]SM1 - DECC Scenario 3 equiv'!L$147,\n'[5]SM2 - DECC Scenario 1 equiv'!L$147,\n'[5]SM3 - DECC Scenario 2 equiv'!L$147,\n'[5]SM4 - DNO Scenario 4 equiv'!L$147,\n'[6]M1a - Model inputs'!L$147,\n'[6]M1b - Model inputs'!L$147,\n'[6]SM1 - DECC Scenario 3 equiv'!L$147,\n'[6]SM2 - DECC Scenario 1 equiv'!L$147,\n'[6]SM3 - DECC Scenario 2 equiv'!L$147,\n'[6]SM4 - DNO Scenario 4 equiv'!L$147)","v":-0.7412202},{"$f":"CHOOSE(view,\n'[5]M1a - Model inputs'!M$147,\n'[5]M1b - Model inputs'!M$147,\n'[5]SM1 - DECC Scenario 3 equiv'!M$147,\n'[5]SM2 - DECC Scenario 1 equiv'!M$147,\n'[5]SM3 - DECC Scenario 2 equiv'!M$147,\n'[5]SM4 - DNO Scenario 4 equiv'!M$147,\n'[6]M1a - Model inputs'!M$147,\n'[6]M1b - Model inputs'!M$147,\n'[6]SM1 - DECC Scenario 3 equiv'!M$147,\n'[6]SM2 - DECC Scenario 1 equiv'!M$147,\n'[6]SM3 - DECC Scenario 2 equiv'!M$147,\n'[6]SM4 - DNO Scenario 4 equiv'!M$147)","v":-0.7412202},{"$f":"CHOOSE(view,\n'[5]M1a - Model inputs'!N$147,\n'[5]M1b - Model inputs'!N$147,\n'[5]SM1 - DECC Scenario 3 equiv'!N$147,\n'[5]SM2 - DECC Scenario 1 equiv'!N$147,\n'[5]SM3 - DECC Scenario 2 equiv'!N$147,\n'[5]SM4 - DNO Scenario 4 equiv'!N$147,\n'[6]M1a - Model inputs'!N$147,\n'[6]M1b - Model inputs'!N$147,\n'[6]SM1 - DECC Scenario 3 equiv'!N$147,\n'[6]SM2 - DECC Scenario 1 equiv'!N$147,\n'[6]SM3 - DECC Scenario 2 equiv'!N$147,\n'[6]SM4 - DNO Scenario 4 equiv'!N$147)","v":-0.7412202},{"$f":"CHOOSE(view,\n'[5]M1a - Model inputs'!O$147,\n'[5]M1b - Model inputs'!O$147,\n'[5]SM1 - DECC Scenario 3 equiv'!O$147,\n'[5]SM2 - DECC Scenario 1 equiv'!O$147,\n'[5]SM3 - DECC Scenario 2 equiv'!O$147,\n'[5]SM4 - DNO Scenario 4 equiv'!O$147,\n'[6]M1a - Model inputs'!O$147,\n'[6]M1b - Model inputs'!O$147,\n'[6]SM1 - DECC Scenario 3 equiv'!O$147,\n'[6]SM2 - DECC Scenario 1 equiv'!O$147,\n'[6]SM3 - DECC Scenario 2 equiv'!O$147,\n'[6]SM4 - DNO Scenario 4 equiv'!O$147)","v":-0.7412202},{"$f":"CHOOSE(view,\n'[5]M1a - Model inputs'!P$147,\n'[5]M1b - Model inputs'!P$147,\n'[5]SM1 - DECC Scenario 3 equiv'!P$147,\n'[5]SM2 - DECC Scenario 1 equiv'!P$147,\n'[5]SM3 - DECC Scenario 2 equiv'!P$147,\n'[5]SM4 - DNO Scenario 4 equiv'!P$147,\n'[6]M1a - Model inputs'!P$147,\n'[6]M1b - Model inputs'!P$147,\n'[6]SM1 - DECC Scenario 3 equiv'!P$147,\n'[6]SM2 - DECC Scenario 1 equiv'!P$147,\n'[6]SM3 - DECC Scenario 2 equiv'!P$147,\n'[6]SM4 - DNO Scenario 4 equiv'!P$147)","v":-0.7412202},{"$f":"CHOOSE(view,\n'[5]M1a - Model inputs'!Q$147,\n'[5]M1b - Model inputs'!Q$147,\n'[5]SM1 - DECC Scenario 3 equiv'!Q$147,\n'[5]SM2 - DECC Scenario 1 equiv'!Q$147,\n'[5]SM3 - DECC Scenario 2 equiv'!Q$147,\n'[5]SM4 - DNO Scenario 4 equiv'!Q$147,\n'[6]M1a - Model inputs'!Q$147,\n'[6]M1b - Model inputs'!Q$147,\n'[6]SM1 - DECC Scenario 3 equiv'!Q$147,\n'[6]SM2 - DECC Scenario 1 equiv'!Q$147,\n'[6]SM3 - DECC Scenario 2 equiv'!Q$147,\n'[6]SM4 - DNO Scenario 4 equiv'!Q$147)","v":-0.7412202},{"$f":"CHOOSE(view,\n'[5]M1a - Model inputs'!R$147,\n'[5]M1b - Model inputs'!R$147,\n'[5]SM1 - DECC Scenario 3 equiv'!R$147,\n'[5]SM2 - DECC Scenario 1 equiv'!R$147,\n'[5]SM3 - DECC Scenario 2 equiv'!R$147,\n'[5]SM4 - DNO Scenario 4 equiv'!R$147,\n'[6]M1a - Model inputs'!R$147,\n'[6]M1b - Model inputs'!R$147,\n'[6]SM1 - DECC Scenario 3 equiv'!R$147,\n'[6]SM2 - DECC Scenario 1 equiv'!R$147,\n'[6]SM3 - DECC Scenario 2 equiv'!R$147,\n'[6]SM4 - DNO Scenario 4 equiv'!R$147)","v":-0.7412202},{"$f":"CHOOSE(view,\n'[5]M1a - Model inputs'!S$147,\n'[5]M1b - Model inputs'!S$147,\n'[5]SM1 - DECC Scenario 3 equiv'!S$147,\n'[5]SM2 - DECC Scenario 1 equiv'!S$147,\n'[5]SM3 - DECC Scenario 2 equiv'!S$147,\n'[5]SM4 - DNO Scenario 4 equiv'!S$147,\n'[6]M1a - Model inputs'!S$147,\n'[6]M1b - Model inputs'!S$147,\n'[6]SM1 - DECC Scenario 3 equiv'!S$147,\n'[6]SM2 - DECC Scenario 1 equiv'!S$147,\n'[6]SM3 - DECC Scenario 2 equiv'!S$147,\n'[6]SM4 - DNO Scenario 4 equiv'!S$147)","v":-0.7412202}]
[null,null,null,null,{"$f":"Input!E250","v":"Revenue protection services (ES5) costs"},null,{"$f":"Input!G250","v":"£m 12/13 prices"},null,null,null,null,null,null,null,null,null,null,null,null,null,null,null,null,null,null,null,null,null,null,null,null,null,null,null,null,{"$f":"CHOOSE(view,\n'[5]M1a - Model inputs'!L$134,\n'[5]M1b - Model inputs'!L$134,\n'[5]SM1 - DECC Scenario 3 equiv'!L$134,\n'[5]SM2 - DECC Scenario 1 equiv'!L$134,\n'[5]SM3 - DECC Scenario 2 equiv'!L$134,\n'[5]SM4 - DNO Scenario 4 equiv'!L$134,\n'[6]M1a - Model inputs'!L$134,\n'[6]M1b - Model inputs'!L$134,\n'[6]SM1 - DECC Scenario 3 equiv'!L$134,\n'[6]SM2 - DECC Scenario 1 equiv'!L$134,\n'[6]SM3 - DECC Scenario 2 equiv'!L$134,\n'[6]SM4 - DNO Scenario 4 equiv'!L$134)","v":0},{"$f":"CHOOSE(view,\n'[5]M1a - Model inputs'!M$134,\n'[5]M1b - Model inputs'!M$134,\n'[5]SM1 - DECC Scenario 3 equiv'!M$134,\n'[5]SM2 - DECC Scenario 1 equiv'!M$134,\n'[5]SM3 - DECC Scenario 2 equiv'!M$134,\n'[5]SM4 - DNO Scenario 4 equiv'!M$134,\n'[6]M1a - Model inputs'!M$134,\n'[6]M1b - Model inputs'!M$134,\n'[6]SM1 - DECC Scenario 3 equiv'!M$134,\n'[6]SM2 - DECC Scenario 1 equiv'!M$134,\n'[6]SM3 - DECC Scenario 2 equiv'!M$134,\n'[6]SM4 - DNO Scenario 4 equiv'!M$134)","v":0},{"$f":"CHOOSE(view,\n'[5]M1a - Model inputs'!N$134,\n'[5]M1b - Model inputs'!N$134,\n'[5]SM1 - DECC Scenario 3 equiv'!N$134,\n'[5]SM2 - DECC Scenario 1 equiv'!N$134,\n'[5]SM3 - DECC Scenario 2 equiv'!N$134,\n'[5]SM4 - DNO Scenario 4 equiv'!N$134,\n'[6]M1a - Model inputs'!N$134,\n'[6]M1b - Model inputs'!N$134,\n'[6]SM1 - DECC Scenario 3 equiv'!N$134,\n'[6]SM2 - DECC Scenario 1 equiv'!N$134,\n'[6]SM3 - DECC Scenario 2 equiv'!N$134,\n'[6]SM4 - DNO Scenario 4 equiv'!N$134)","v":0},{"$f":"CHOOSE(view,\n'[5]M1a - Model inputs'!O$134,\n'[5]M1b - Model inputs'!O$134,\n'[5]SM1 - DECC Scenario 3 equiv'!O$134,\n'[5]SM2 - DECC Scenario 1 equiv'!O$134,\n'[5]SM3 - DECC Scenario 2 equiv'!O$134,\n'[5]SM4 - DNO Scenario 4 equiv'!O$134,\n'[6]M1a - Model inputs'!O$134,\n'[6]M1b - Model inputs'!O$134,\n'[6]SM1 - DECC Scenario 3 equiv'!O$134,\n'[6]SM2 - DECC Scenario 1 equiv'!O$134,\n'[6]SM3 - DECC Scenario 2 equiv'!O$134,\n'[6]SM4 - DNO Scenario 4 equiv'!O$134)","v":0},{"$f":"CHOOSE(view,\n'[5]M1a - Model inputs'!P$134,\n'[5]M1b - Model inputs'!P$134,\n'[5]SM1 - DECC Scenario 3 equiv'!P$134,\n'[5]SM2 - DECC Scenario 1 equiv'!P$134,\n'[5]SM3 - DECC Scenario 2 equiv'!P$134,\n'[5]SM4 - DNO Scenario 4 equiv'!P$134,\n'[6]M1a - Model inputs'!P$134,\n'[6]M1b - Model inputs'!P$134,\n'[6]SM1 - DECC Scenario 3 equiv'!P$134,\n'[6]SM2 - DECC Scenario 1 equiv'!P$134,\n'[6]SM3 - DECC Scenario 2 equiv'!P$134,\n'[6]SM4 - DNO Scenario 4 equiv'!P$134)","v":0},{"$f":"CHOOSE(view,\n'[5]M1a - Model inputs'!Q$134,\n'[5]M1b - Model inputs'!Q$134,\n'[5]SM1 - DECC Scenario 3 equiv'!Q$134,\n'[5]SM2 - DECC Scenario 1 equiv'!Q$134,\n'[5]SM3 - DECC Scenario 2 equiv'!Q$134,\n'[5]SM4 - DNO Scenario 4 equiv'!Q$134,\n'[6]M1a - Model inputs'!Q$134,\n'[6]M1b - Model inputs'!Q$134,\n'[6]SM1 - DECC Scenario 3 equiv'!Q$134,\n'[6]SM2 - DECC Scenario 1 equiv'!Q$134,\n'[6]SM3 - DECC Scenario 2 equiv'!Q$134,\n'[6]SM4 - DNO Scenario 4 equiv'!Q$134)","v":0},{"$f":"CHOOSE(view,\n'[5]M1a - Model inputs'!R$134,\n'[5]M1b - Model inputs'!R$134,\n'[5]SM1 - DECC Scenario 3 equiv'!R$134,\n'[5]SM2 - DECC Scenario 1 equiv'!R$134,\n'[5]SM3 - DECC Scenario 2 equiv'!R$134,\n'[5]SM4 - DNO Scenario 4 equiv'!R$134,\n'[6]M1a - Model inputs'!R$134,\n'[6]M1b - Model inputs'!R$134,\n'[6]SM1 - DECC Scenario 3 equiv'!R$134,\n'[6]SM2 - DECC Scenario 1 equiv'!R$134,\n'[6]SM3 - DECC Scenario 2 equiv'!R$134,\n'[6]SM4 - DNO Scenario 4 equiv'!R$134)","v":0},{"$f":"CHOOSE(view,\n'[5]M1a - Model inputs'!S$134,\n'[5]M1b - Model inputs'!S$134,\n'[5]SM1 - DECC Scenario 3 equiv'!S$134,\n'[5]SM2 - DECC Scenario 1 equiv'!S$134,\n'[5]SM3 - DECC Scenario 2 equiv'!S$134,\n'[5]SM4 - DNO Scenario 4 equiv'!S$134,\n'[6]M1a - Model inputs'!S$134,\n'[6]M1b - Model inputs'!S$134,\n'[6]SM1 - DECC Scenario 3 equiv'!S$134,\n'[6]SM2 - DECC Scenario 1 equiv'!S$134,\n'[6]SM3 - DECC Scenario 2 equiv'!S$134,\n'[6]SM4 - DNO Scenario 4 equiv'!S$134)","v":0}]
[null,null,null,null,{"$f":"Input!E251","v":"Revenue protection services (ES5) net position"},null,{"$f":"Input!G251","v":"£m 12/13 prices"},null,null,null,null,null,null,null,null,null,null,null,null,null,null,null,null,null,null,null,null,null,null,null,null,null,null,null,null,{"$f":"SUM(AJ249, -AJ250)","v":-0.7412202},{"$f":"SUM(AK249, -AK250)","v":-0.7412202},-0.7412202,-0.7412202,-0.7412202,-0.7412202,-0.7412202,-0.7412202]
[]
[null,null,null,null,{"$f":"Input!E253","v":"Metering services (non legacy) (ES6) revenue"},null,{"$f":"Input!G253","v":"£m 12/13 prices"},null,null,null,null,null,null,null,null,null,null,null,null,null,null,null,null,null,null,null,null,null,null,null,null,null,null,null,null,{"$f":"CHOOSE(view,\n'[5]M1a - Model inputs'!L$148,\n'[5]M1b - Model inputs'!L$148,\n'[5]SM1 - DECC Scenario 3 equiv'!L$148,\n'[5]SM2 - DECC Scenario 1 equiv'!L$148,\n'[5]SM3 - DECC Scenario 2 equiv'!L$148,\n'[5]SM4 - DNO Scenario 4 equiv'!L$148,\n'[6]M1a - Model inputs'!L$148,\n'[6]M1b - Model inputs'!L$148,\n'[6]SM1 - DECC Scenario 3 equiv'!L$148,\n'[6]SM2 - DECC Scenario 1 equiv'!L$148,\n'[6]SM3 - DECC Scenario 2 equiv'!L$148,\n'[6]SM4 - DNO Scenario 4 equiv'!L$148)","v":0},{"$f":"CHOOSE(view,\n'[5]M1a - Model inputs'!M$148,\n'[5]M1b - Model inputs'!M$148,\n'[5]SM1 - DECC Scenario 3 equiv'!M$148,\n'[5]SM2 - DECC Scenario 1 equiv'!M$148,\n'[5]SM3 - DECC Scenario 2 equiv'!M$148,\n'[5]SM4 - DNO Scenario 4 equiv'!M$148,\n'[6]M1a - Model inputs'!M$148,\n'[6]M1b - Model inputs'!M$148,\n'[6]SM1 - DECC Scenario 3 equiv'!M$148,\n'[6]SM2 - DECC Scenario 1 equiv'!M$148,\n'[6]SM3 - DECC Scenario 2 equiv'!M$148,\n'[6]SM4 - DNO Scenario 4 equiv'!M$148)","v":0},{"$f":"CHOOSE(view,\n'[5]M1a - Model inputs'!N$148,\n'[5]M1b - Model inputs'!N$148,\n'[5]SM1 - DECC Scenario 3 equiv'!N$148,\n'[5]SM2 - DECC Scenario 1 equiv'!N$148,\n'[5]SM3 - DECC Scenario 2 equiv'!N$148,\n'[5]SM4 - DNO Scenario 4 equiv'!N$148,\n'[6]M1a - Model inputs'!N$148,\n'[6]M1b - Model inputs'!N$148,\n'[6]SM1 - DECC Scenario 3 equiv'!N$148,\n'[6]SM2 - DECC Scenario 1 equiv'!N$148,\n'[6]SM3 - DECC Scenario 2 equiv'!N$148,\n'[6]SM4 - DNO Scenario 4 equiv'!N$148)","v":0},{"$f":"CHOOSE(view,\n'[5]M1a - Model inputs'!O$148,\n'[5]M1b - Model inputs'!O$148,\n'[5]SM1 - DECC Scenario 3 equiv'!O$148,\n'[5]SM2 - DECC Scenario 1 equiv'!O$148,\n'[5]SM3 - DECC Scenario 2 equiv'!O$148,\n'[5]SM4 - DNO Scenario 4 equiv'!O$148,\n'[6]M1a - Model inputs'!O$148,\n'[6]M1b - Model inputs'!O$148,\n'[6]SM1 - DECC Scenario 3 equiv'!O$148,\n'[6]SM2 - DECC Scenario 1 equiv'!O$148,\n'[6]SM3 - DECC Scenario 2 equiv'!O$148,\n'[6]SM4 - DNO Scenario 4 equiv'!O$148)","v":0},{"$f":"CHOOSE(view,\n'[5]M1a - Model inputs'!P$148,\n'[5]M1b - Model inputs'!P$148,\n'[5]SM1 - DECC Scenario 3 equiv'!P$148,\n'[5]SM2 - DECC Scenario 1 equiv'!P$148,\n'[5]SM3 - DECC Scenario 2 equiv'!P$148,\n'[5]SM4 - DNO Scenario 4 equiv'!P$148,\n'[6]M1a - Model inputs'!P$148,\n'[6]M1b - Model inputs'!P$148,\n'[6]SM1 - DECC Scenario 3 equiv'!P$148,\n'[6]SM2 - DECC Scenario 1 equiv'!P$148,\n'[6]SM3 - DECC Scenario 2 equiv'!P$148,\n'[6]SM4 - DNO Scenario 4 equiv'!P$148)","v":0},{"$f":"CHOOSE(view,\n'[5]M1a - Model inputs'!Q$148,\n'[5]M1b - Model inputs'!Q$148,\n'[5]SM1 - DECC Scenario 3 equiv'!Q$148,\n'[5]SM2 - DECC Scenario 1 equiv'!Q$148,\n'[5]SM3 - DECC Scenario 2 equiv'!Q$148,\n'[5]SM4 - DNO Scenario 4 equiv'!Q$148,\n'[6]M1a - Model inputs'!Q$148,\n'[6]M1b - Model inputs'!Q$148,\n'[6]SM1 - DECC Scenario 3 equiv'!Q$148,\n'[6]SM2 - DECC Scenario 1 equiv'!Q$148,\n'[6]SM3 - DECC Scenario 2 equiv'!Q$148,\n'[6]SM4 - DNO Scenario 4 equiv'!Q$148)","v":0},{"$f":"CHOOSE(view,\n'[5]M1a - Model inputs'!R$148,\n'[5]M1b - Model inputs'!R$148,\n'[5]SM1 - DECC Scenario 3 equiv'!R$148,\n'[5]SM2 - DECC Scenario 1 equiv'!R$148,\n'[5]SM3 - DECC Scenario 2 equiv'!R$148,\n'[5]SM4 - DNO Scenario 4 equiv'!R$148,\n'[6]M1a - Model inputs'!R$148,\n'[6]M1b - Model inputs'!R$148,\n'[6]SM1 - DECC Scenario 3 equiv'!R$148,\n'[6]SM2 - DECC Scenario 1 equiv'!R$148,\n'[6]SM3 - DECC Scenario 2 equiv'!R$148,\n'[6]SM4 - DNO Scenario 4 equiv'!R$148)","v":0},{"$f":"CHOOSE(view,\n'[5]M1a - Model inputs'!S$148,\n'[5]M1b - Model inputs'!S$148,\n'[5]SM1 - DECC Scenario 3 equiv'!S$148,\n'[5]SM2 - DECC Scenario 1 equiv'!S$148,\n'[5]SM3 - DECC Scenario 2 equiv'!S$148,\n'[5]SM4 - DNO Scenario 4 equiv'!S$148,\n'[6]M1a - Model inputs'!S$148,\n'[6]M1b - Model inputs'!S$148,\n'[6]SM1 - DECC Scenario 3 equiv'!S$148,\n'[6]SM2 - DECC Scenario 1 equiv'!S$148,\n'[6]SM3 - DECC Scenario 2 equiv'!S$148,\n'[6]SM4 - DNO Scenario 4 equiv'!S$148)","v":0}]
[null,null,null,null,{"$f":"Input!E254","v":"Metering services (non legacy) (ES6) costs"},null,{"$f":"Input!G254","v":"£m 12/13 prices"},null,null,null,null,null,null,null,null,null,null,null,null,null,null,null,null,null,null,null,null,null,null,null,null,null,null,null,null,{"$f":"CHOOSE(view,\n'[5]M1a - Model inputs'!L$135,\n'[5]M1b - Model inputs'!L$135,\n'[5]SM1 - DECC Scenario 3 equiv'!L$135,\n'[5]SM2 - DECC Scenario 1 equiv'!L$135,\n'[5]SM3 - DECC Scenario 2 equiv'!L$135,\n'[5]SM4 - DNO Scenario 4 equiv'!L$135,\n'[6]M1a - Model inputs'!L$135,\n'[6]M1b - Model inputs'!L$135,\n'[6]SM1 - DECC Scenario 3 equiv'!L$135,\n'[6]SM2 - DECC Scenario 1 equiv'!L$135,\n'[6]SM3 - DECC Scenario 2 equiv'!L$135,\n'[6]SM4 - DNO Scenario 4 equiv'!L$135)","v":0},{"$f":"CHOOSE(view,\n'[5]M1a - Model inputs'!M$135,\n'[5]M1b - Model inputs'!M$135,\n'[5]SM1 - DECC Scenario 3 equiv'!M$135,\n'[5]SM2 - DECC Scenario 1 equiv'!M$135,\n'[5]SM3 - DECC Scenario 2 equiv'!M$135,\n'[5]SM4 - DNO Scenario 4 equiv'!M$135,\n'[6]M1a - Model inputs'!M$135,\n'[6]M1b - Model inputs'!M$135,\n'[6]SM1 - DECC Scenario 3 equiv'!M$135,\n'[6]SM2 - DECC Scenario 1 equiv'!M$135,\n'[6]SM3 - DECC Scenario 2 equiv'!M$135,\n'[6]SM4 - DNO Scenario 4 equiv'!M$135)","v":0},{"$f":"CHOOSE(view,\n'[5]M1a - Model inputs'!N$135,\n'[5]M1b - Model inputs'!N$135,\n'[5]SM1 - DECC Scenario 3 equiv'!N$135,\n'[5]SM2 - DECC Scenario 1 equiv'!N$135,\n'[5]SM3 - DECC Scenario 2 equiv'!N$135,\n'[5]SM4 - DNO Scenario 4 equiv'!N$135,\n'[6]M1a - Model inputs'!N$135,\n'[6]M1b - Model inputs'!N$135,\n'[6]SM1 - DECC Scenario 3 equiv'!N$135,\n'[6]SM2 - DECC Scenario 1 equiv'!N$135,\n'[6]SM3 - DECC Scenario 2 equiv'!N$135,\n'[6]SM4 - DNO Scenario 4 equiv'!N$135)","v":0},{"$f":"CHOOSE(view,\n'[5]M1a - Model inputs'!O$135,\n'[5]M1b - Model inputs'!O$135,\n'[5]SM1 - DECC Scenario 3 equiv'!O$135,\n'[5]SM2 - DECC Scenario 1 equiv'!O$135,\n'[5]SM3 - DECC Scenario 2 equiv'!O$135,\n'[5]SM4 - DNO Scenario 4 equiv'!O$135,\n'[6]M1a - Model inputs'!O$135,\n'[6]M1b - Model inputs'!O$135,\n'[6]SM1 - DECC Scenario 3 equiv'!O$135,\n'[6]SM2 - DECC Scenario 1 equiv'!O$135,\n'[6]SM3 - DECC Scenario 2 equiv'!O$135,\n'[6]SM4 - DNO Scenario 4 equiv'!O$135)","v":0},{"$f":"CHOOSE(view,\n'[5]M1a - Model inputs'!P$135,\n'[5]M1b - Model inputs'!P$135,\n'[5]SM1 - DECC Scenario 3 equiv'!P$135,\n'[5]SM2 - DECC Scenario 1 equiv'!P$135,\n'[5]SM3 - DECC Scenario 2 equiv'!P$135,\n'[5]SM4 - DNO Scenario 4 equiv'!P$135,\n'[6]M1a - Model inputs'!P$135,\n'[6]M1b - Model inputs'!P$135,\n'[6]SM1 - DECC Scenario 3 equiv'!P$135,\n'[6]SM2 - DECC Scenario 1 equiv'!P$135,\n'[6]SM3 - DECC Scenario 2 equiv'!P$135,\n'[6]SM4 - DNO Scenario 4 equiv'!P$135)","v":0},{"$f":"CHOOSE(view,\n'[5]M1a - Model inputs'!Q$135,\n'[5]M1b - Model inputs'!Q$135,\n'[5]SM1 - DECC Scenario 3 equiv'!Q$135,\n'[5]SM2 - DECC Scenario 1 equiv'!Q$135,\n'[5]SM3 - DECC Scenario 2 equiv'!Q$135,\n'[5]SM4 - DNO Scenario 4 equiv'!Q$135,\n'[6]M1a - Model inputs'!Q$135,\n'[6]M1b - Model inputs'!Q$135,\n'[6]SM1 - DECC Scenario 3 equiv'!Q$135,\n'[6]SM2 - DECC Scenario 1 equiv'!Q$135,\n'[6]SM3 - DECC Scenario 2 equiv'!Q$135,\n'[6]SM4 - DNO Scenario 4 equiv'!Q$135)","v":0},{"$f":"CHOOSE(view,\n'[5]M1a - Model inputs'!R$135,\n'[5]M1b - Model inputs'!R$135,\n'[5]SM1 - DECC Scenario 3 equiv'!R$135,\n'[5]SM2 - DECC Scenario 1 equiv'!R$135,\n'[5]SM3 - DECC Scenario 2 equiv'!R$135,\n'[5]SM4 - DNO Scenario 4 equiv'!R$135,\n'[6]M1a - Model inputs'!R$135,\n'[6]M1b - Model inputs'!R$135,\n'[6]SM1 - DECC Scenario 3 equiv'!R$135,\n'[6]SM2 - DECC Scenario 1 equiv'!R$135,\n'[6]SM3 - DECC Scenario 2 equiv'!R$135,\n'[6]SM4 - DNO Scenario 4 equiv'!R$135)","v":0},{"$f":"CHOOSE(view,\n'[5]M1a - Model inputs'!S$135,\n'[5]M1b - Model inputs'!S$135,\n'[5]SM1 - DECC Scenario 3 equiv'!S$135,\n'[5]SM2 - DECC Scenario 1 equiv'!S$135,\n'[5]SM3 - DECC Scenario 2 equiv'!S$135,\n'[5]SM4 - DNO Scenario 4 equiv'!S$135,\n'[6]M1a - Model inputs'!S$135,\n'[6]M1b - Model inputs'!S$135,\n'[6]SM1 - DECC Scenario 3 equiv'!S$135,\n'[6]SM2 - DECC Scenario 1 equiv'!S$135,\n'[6]SM3 - DECC Scenario 2 equiv'!S$135,\n'[6]SM4 - DNO Scenario 4 equiv'!S$135)","v":0}]
[null,null,null,null,{"$f":"Input!E255","v":"Metering services (non legacy) (ES6) net position"},null,{"$f":"Input!G255","v":"£m 12/13 prices"},null,null,null,null,null,null,null,null,null,null,null,null,null,null,null,null,null,null,null,null,null,null,null,null,null,null,null,null,{"$f":"SUM(AJ253, -AJ254)","v":0},{"$f":"SUM(AK253, -AK254)","v":0},0,0,0,0,0,0]
[]
[null,null,null,null,{"$f":"Input!E257","v":"Metering services (legacy)  revenue"},null,{"$f":"Input!G257","v":"£m 12/13 prices"},null,null,null,null,null,null,null,null,null,null,null,null,null,null,null,null,null,null,null,null,null,null,null,null,null,null,null,null,{"$f":"CHOOSE(view,\n'[5]M1a - Model inputs'!L$149,\n'[5]M1b - Model inputs'!L$149,\n'[5]SM1 - DECC Scenario 3 equiv'!L$149,\n'[5]SM2 - DECC Scenario 1 equiv'!L$149,\n'[5]SM3 - DECC Scenario 2 equiv'!L$149,\n'[5]SM4 - DNO Scenario 4 equiv'!L$149,\n'[6]M1a - Model inputs'!L$149,\n'[6]M1b - Model inputs'!L$149,\n'[6]SM1 - DECC Scenario 3 equiv'!L$149,\n'[6]SM2 - DECC Scenario 1 equiv'!L$149,\n'[6]SM3 - DECC Scenario 2 equiv'!L$149,\n'[6]SM4 - DNO Scenario 4 equiv'!L$149)","v":-3.4},{"$f":"CHOOSE(view,\n'[5]M1a - Model inputs'!M$149,\n'[5]M1b - Model inputs'!M$149,\n'[5]SM1 - DECC Scenario 3 equiv'!M$149,\n'[5]SM2 - DECC Scenario 1 equiv'!M$149,\n'[5]SM3 - DECC Scenario 2 equiv'!M$149,\n'[5]SM4 - DNO Scenario 4 equiv'!M$149,\n'[6]M1a - Model inputs'!M$149,\n'[6]M1b - Model inputs'!M$149,\n'[6]SM1 - DECC Scenario 3 equiv'!M$149,\n'[6]SM2 - DECC Scenario 1 equiv'!M$149,\n'[6]SM3 - DECC Scenario 2 equiv'!M$149,\n'[6]SM4 - DNO Scenario 4 equiv'!M$149)","v":-3.1},{"$f":"CHOOSE(view,\n'[5]M1a - Model inputs'!N$149,\n'[5]M1b - Model inputs'!N$149,\n'[5]SM1 - DECC Scenario 3 equiv'!N$149,\n'[5]SM2 - DECC Scenario 1 equiv'!N$149,\n'[5]SM3 - DECC Scenario 2 equiv'!N$149,\n'[5]SM4 - DNO Scenario 4 equiv'!N$149,\n'[6]M1a - Model inputs'!N$149,\n'[6]M1b - Model inputs'!N$149,\n'[6]SM1 - DECC Scenario 3 equiv'!N$149,\n'[6]SM2 - DECC Scenario 1 equiv'!N$149,\n'[6]SM3 - DECC Scenario 2 equiv'!N$149,\n'[6]SM4 - DNO Scenario 4 equiv'!N$149)","v":-2.2000000000000002},{"$f":"CHOOSE(view,\n'[5]M1a - Model inputs'!O$149,\n'[5]M1b - Model inputs'!O$149,\n'[5]SM1 - DECC Scenario 3 equiv'!O$149,\n'[5]SM2 - DECC Scenario 1 equiv'!O$149,\n'[5]SM3 - DECC Scenario 2 equiv'!O$149,\n'[5]SM4 - DNO Scenario 4 equiv'!O$149,\n'[6]M1a - Model inputs'!O$149,\n'[6]M1b - Model inputs'!O$149,\n'[6]SM1 - DECC Scenario 3 equiv'!O$149,\n'[6]SM2 - DECC Scenario 1 equiv'!O$149,\n'[6]SM3 - DECC Scenario 2 equiv'!O$149,\n'[6]SM4 - DNO Scenario 4 equiv'!O$149)","v":-1.3},{"$f":"CHOOSE(view,\n'[5]M1a - Model inputs'!P$149,\n'[5]M1b - Model inputs'!P$149,\n'[5]SM1 - DECC Scenario 3 equiv'!P$149,\n'[5]SM2 - DECC Scenario 1 equiv'!P$149,\n'[5]SM3 - DECC Scenario 2 equiv'!P$149,\n'[5]SM4 - DNO Scenario 4 equiv'!P$149,\n'[6]M1a - Model inputs'!P$149,\n'[6]M1b - Model inputs'!P$149,\n'[6]SM1 - DECC Scenario 3 equiv'!P$149,\n'[6]SM2 - DECC Scenario 1 equiv'!P$149,\n'[6]SM3 - DECC Scenario 2 equiv'!P$149,\n'[6]SM4 - DNO Scenario 4 equiv'!P$149)","v":-0.5},{"$f":"CHOOSE(view,\n'[5]M1a - Model inputs'!Q$149,\n'[5]M1b - Model inputs'!Q$149,\n'[5]SM1 - DECC Scenario 3 equiv'!Q$149,\n'[5]SM2 - DECC Scenario 1 equiv'!Q$149,\n'[5]SM3 - DECC Scenario 2 equiv'!Q$149,\n'[5]SM4 - DNO Scenario 4 equiv'!Q$149,\n'[6]M1a - Model inputs'!Q$149,\n'[6]M1b - Model inputs'!Q$149,\n'[6]SM1 - DECC Scenario 3 equiv'!Q$149,\n'[6]SM2 - DECC Scenario 1 equiv'!Q$149,\n'[6]SM3 - DECC Scenario 2 equiv'!Q$149,\n'[6]SM4 - DNO Scenario 4 equiv'!Q$149)","v":0},{"$f":"CHOOSE(view,\n'[5]M1a - Model inputs'!R$149,\n'[5]M1b - Model inputs'!R$149,\n'[5]SM1 - DECC Scenario 3 equiv'!R$149,\n'[5]SM2 - DECC Scenario 1 equiv'!R$149,\n'[5]SM3 - DECC Scenario 2 equiv'!R$149,\n'[5]SM4 - DNO Scenario 4 equiv'!R$149,\n'[6]M1a - Model inputs'!R$149,\n'[6]M1b - Model inputs'!R$149,\n'[6]SM1 - DECC Scenario 3 equiv'!R$149,\n'[6]SM2 - DECC Scenario 1 equiv'!R$149,\n'[6]SM3 - DECC Scenario 2 equiv'!R$149,\n'[6]SM4 - DNO Scenario 4 equiv'!R$149)","v":0},{"$f":"CHOOSE(view,\n'[5]M1a - Model inputs'!S$149,\n'[5]M1b - Model inputs'!S$149,\n'[5]SM1 - DECC Scenario 3 equiv'!S$149,\n'[5]SM2 - DECC Scenario 1 equiv'!S$149,\n'[5]SM3 - DECC Scenario 2 equiv'!S$149,\n'[5]SM4 - DNO Scenario 4 equiv'!S$149,\n'[6]M1a - Model inputs'!S$149,\n'[6]M1b - Model inputs'!S$149,\n'[6]SM1 - DECC Scenario 3 equiv'!S$149,\n'[6]SM2 - DECC Scenario 1 equiv'!S$149,\n'[6]SM3 - DECC Scenario 2 equiv'!S$149,\n'[6]SM4 - DNO Scenario 4 equiv'!S$149)","v":0}]
[null,null,null,null,{"$f":"Input!E258","v":"Metering services (legacy)  costs"},null,{"$f":"Input!G258","v":"£m 12/13 prices"},null,null,null,null,null,null,null,null,null,null,null,null,null,null,null,null,null,null,null,null,null,null,null,null,null,null,null,null,{"$f":"CHOOSE(view,\n'[5]M1a - Model inputs'!L$136,\n'[5]M1b - Model inputs'!L$136,\n'[5]SM1 - DECC Scenario 3 equiv'!L$136,\n'[5]SM2 - DECC Scenario 1 equiv'!L$136,\n'[5]SM3 - DECC Scenario 2 equiv'!L$136,\n'[5]SM4 - DNO Scenario 4 equiv'!L$136,\n'[6]M1a - Model inputs'!L$136,\n'[6]M1b - Model inputs'!L$136,\n'[6]SM1 - DECC Scenario 3 equiv'!L$136,\n'[6]SM2 - DECC Scenario 1 equiv'!L$136,\n'[6]SM3 - DECC Scenario 2 equiv'!L$136,\n'[6]SM4 - DNO Scenario 4 equiv'!L$136)","v":5.2922888641344272E-3},{"$f":"CHOOSE(view,\n'[5]M1a - Model inputs'!M$136,\n'[5]M1b - Model inputs'!M$136,\n'[5]SM1 - DECC Scenario 3 equiv'!M$136,\n'[5]SM2 - DECC Scenario 1 equiv'!M$136,\n'[5]SM3 - DECC Scenario 2 equiv'!M$136,\n'[5]SM4 - DNO Scenario 4 equiv'!M$136,\n'[6]M1a - Model inputs'!M$136,\n'[6]M1b - Model inputs'!M$136,\n'[6]SM1 - DECC Scenario 3 equiv'!M$136,\n'[6]SM2 - DECC Scenario 1 equiv'!M$136,\n'[6]SM3 - DECC Scenario 2 equiv'!M$136,\n'[6]SM4 - DNO Scenario 4 equiv'!M$136)","v":5.277491136312186E-3},{"$f":"CHOOSE(view,\n'[5]M1a - Model inputs'!N$136,\n'[5]M1b - Model inputs'!N$136,\n'[5]SM1 - DECC Scenario 3 equiv'!N$136,\n'[5]SM2 - DECC Scenario 1 equiv'!N$136,\n'[5]SM3 - DECC Scenario 2 equiv'!N$136,\n'[5]SM4 - DNO Scenario 4 equiv'!N$136,\n'[6]M1a - Model inputs'!N$136,\n'[6]M1b - Model inputs'!N$136,\n'[6]SM1 - DECC Scenario 3 equiv'!N$136,\n'[6]SM2 - DECC Scenario 1 equiv'!N$136,\n'[6]SM3 - DECC Scenario 2 equiv'!N$136,\n'[6]SM4 - DNO Scenario 4 equiv'!N$136)","v":5.3547795403514394E-3},{"$f":"CHOOSE(view,\n'[5]M1a - Model inputs'!O$136,\n'[5]M1b - Model inputs'!O$136,\n'[5]SM1 - DECC Scenario 3 equiv'!O$136,\n'[5]SM2 - DECC Scenario 1 equiv'!O$136,\n'[5]SM3 - DECC Scenario 2 equiv'!O$136,\n'[5]SM4 - DNO Scenario 4 equiv'!O$136,\n'[6]M1a - Model inputs'!O$136,\n'[6]M1b - Model inputs'!O$136,\n'[6]SM1 - DECC Scenario 3 equiv'!O$136,\n'[6]SM2 - DECC Scenario 1 equiv'!O$136,\n'[6]SM3 - DECC Scenario 2 equiv'!O$136,\n'[6]SM4 - DNO Scenario 4 equiv'!O$136)","v":5.2495353576704267E-3},{"$f":"CHOOSE(view,\n'[5]M1a - Model inputs'!P$136,\n'[5]M1b - Model inputs'!P$136,\n'[5]SM1 - DECC Scenario 3 equiv'!P$136,\n'[5]SM2 - DECC Scenario 1 equiv'!P$136,\n'[5]SM3 - DECC Scenario 2 equiv'!P$136,\n'[5]SM4 - DNO Scenario 4 equiv'!P$136,\n'[6]M1a - Model inputs'!P$136,\n'[6]M1b - Model inputs'!P$136,\n'[6]SM1 - DECC Scenario 3 equiv'!P$136,\n'[6]SM2 - DECC Scenario 1 equiv'!P$136,\n'[6]SM3 - DECC Scenario 2 equiv'!P$136,\n'[6]SM4 - DNO Scenario 4 equiv'!P$136)","v":2.1820462950992593E-3},{"$f":"CHOOSE(view,\n'[5]M1a - Model inputs'!Q$136,\n'[5]M1b - Model inputs'!Q$136,\n'[5]SM1 - DECC Scenario 3 equiv'!Q$136,\n'[5]SM2 - DECC Scenario 1 equiv'!Q$136,\n'[5]SM3 - DECC Scenario 2 equiv'!Q$136,\n'[5]SM4 - DNO Scenario 4 equiv'!Q$136,\n'[6]M1a - Model inputs'!Q$136,\n'[6]M1b - Model inputs'!Q$136,\n'[6]SM1 - DECC Scenario 3 equiv'!Q$136,\n'[6]SM2 - DECC Scenario 1 equiv'!Q$136,\n'[6]SM3 - DECC Scenario 2 equiv'!Q$136,\n'[6]SM4 - DNO Scenario 4 equiv'!Q$136)","v":2.0935964202106212E-3},{"$f":"CHOOSE(view,\n'[5]M1a - Model inputs'!R$136,\n'[5]M1b - Model inputs'!R$136,\n'[5]SM1 - DECC Scenario 3 equiv'!R$136,\n'[5]SM2 - DECC Scenario 1 equiv'!R$136,\n'[5]SM3 - DECC Scenario 2 equiv'!R$136,\n'[5]SM4 - DNO Scenario 4 equiv'!R$136,\n'[6]M1a - Model inputs'!R$136,\n'[6]M1b - Model inputs'!R$136,\n'[6]SM1 - DECC Scenario 3 equiv'!R$136,\n'[6]SM2 - DECC Scenario 1 equiv'!R$136,\n'[6]SM3 - DECC Scenario 2 equiv'!R$136,\n'[6]SM4 - DNO Scenario 4 equiv'!R$136)","v":2.0428999244916108E-3},{"$f":"CHOOSE(view,\n'[5]M1a - Model inputs'!S$136,\n'[5]M1b - Model inputs'!S$136,\n'[5]SM1 - DECC Scenario 3 equiv'!S$136,\n'[5]SM2 - DECC Scenario 1 equiv'!S$136,\n'[5]SM3 - DECC Scenario 2 equiv'!S$136,\n'[5]SM4 - DNO Scenario 4 equiv'!S$136,\n'[6]M1a - Model inputs'!S$136,\n'[6]M1b - Model inputs'!S$136,\n'[6]SM1 - DECC Scenario 3 equiv'!S$136,\n'[6]SM2 - DECC Scenario 1 equiv'!S$136,\n'[6]SM3 - DECC Scenario 2 equiv'!S$136,\n'[6]SM4 - DNO Scenario 4 equiv'!S$136)","v":2.0329823173662782E-3}]
[null,null,null,null,{"$f":"Input!E259","v":"Metering services (legacy)  net position"},null,{"$f":"Input!G259","v":"£m 12/13 prices"},null,null,null,null,null,null,null,null,null,null,null,null,null,null,null,null,null,null,null,null,null,null,null,null,null,null,null,null,{"$f":"SUM(AJ257, -AJ258)","v":-3.4052922888641342},{"$f":"SUM(AK257, -AK258)","v":-3.1052774911363121},-2.2053547795403516,-1.3052495353576705,-0.50218204629509922,-2.0935964202106212E-3,-2.0428999244916108E-3,-2.0329823173662782E-3]
[]
[null,null,null,null,{"$f":"Input!E261","v":"Metering services associated with the SM roll out revenue"},null,{"$f":"Input!G261","v":"£m 12/13 prices"},null,null,null,null,null,null,null,null,null,null,null,null,null,null,null,null,null,null,null,null,null,null,null,null,null,null,null,null,{"$f":"CHOOSE(view,\n'[5]M1a - Model inputs'!L$150,\n'[5]M1b - Model inputs'!L$150,\n'[5]SM1 - DECC Scenario 3 equiv'!L$150,\n'[5]SM2 - DECC Scenario 1 equiv'!L$150,\n'[5]SM3 - DECC Scenario 2 equiv'!L$150,\n'[5]SM4 - DNO Scenario 4 equiv'!L$150,\n'[6]M1a - Model inputs'!L$150,\n'[6]M1b - Model inputs'!L$150,\n'[6]SM1 - DECC Scenario 3 equiv'!L$150,\n'[6]SM2 - DECC Scenario 1 equiv'!L$150,\n'[6]SM3 - DECC Scenario 2 equiv'!L$150,\n'[6]SM4 - DNO Scenario 4 equiv'!L$150)","v":-0.1},{"$f":"CHOOSE(view,\n'[5]M1a - Model inputs'!M$150,\n'[5]M1b - Model inputs'!M$150,\n'[5]SM1 - DECC Scenario 3 equiv'!M$150,\n'[5]SM2 - DECC Scenario 1 equiv'!M$150,\n'[5]SM3 - DECC Scenario 2 equiv'!M$150,\n'[5]SM4 - DNO Scenario 4 equiv'!M$150,\n'[6]M1a - Model inputs'!M$150,\n'[6]M1b - Model inputs'!M$150,\n'[6]SM1 - DECC Scenario 3 equiv'!M$150,\n'[6]SM2 - DECC Scenario 1 equiv'!M$150,\n'[6]SM3 - DECC Scenario 2 equiv'!M$150,\n'[6]SM4 - DNO Scenario 4 equiv'!M$150)","v":-0.2},{"$f":"CHOOSE(view,\n'[5]M1a - Model inputs'!N$150,\n'[5]M1b - Model inputs'!N$150,\n'[5]SM1 - DECC Scenario 3 equiv'!N$150,\n'[5]SM2 - DECC Scenario 1 equiv'!N$150,\n'[5]SM3 - DECC Scenario 2 equiv'!N$150,\n'[5]SM4 - DNO Scenario 4 equiv'!N$150,\n'[6]M1a - Model inputs'!N$150,\n'[6]M1b - Model inputs'!N$150,\n'[6]SM1 - DECC Scenario 3 equiv'!N$150,\n'[6]SM2 - DECC Scenario 1 equiv'!N$150,\n'[6]SM3 - DECC Scenario 2 equiv'!N$150,\n'[6]SM4 - DNO Scenario 4 equiv'!N$150)","v":-0.26},{"$f":"CHOOSE(view,\n'[5]M1a - Model inputs'!O$150,\n'[5]M1b - Model inputs'!O$150,\n'[5]SM1 - DECC Scenario 3 equiv'!O$150,\n'[5]SM2 - DECC Scenario 1 equiv'!O$150,\n'[5]SM3 - DECC Scenario 2 equiv'!O$150,\n'[5]SM4 - DNO Scenario 4 equiv'!O$150,\n'[6]M1a - Model inputs'!O$150,\n'[6]M1b - Model inputs'!O$150,\n'[6]SM1 - DECC Scenario 3 equiv'!O$150,\n'[6]SM2 - DECC Scenario 1 equiv'!O$150,\n'[6]SM3 - DECC Scenario 2 equiv'!O$150,\n'[6]SM4 - DNO Scenario 4 equiv'!O$150)","v":-0.28000000000000003},{"$f":"CHOOSE(view,\n'[5]M1a - Model inputs'!P$150,\n'[5]M1b - Model inputs'!P$150,\n'[5]SM1 - DECC Scenario 3 equiv'!P$150,\n'[5]SM2 - DECC Scenario 1 equiv'!P$150,\n'[5]SM3 - DECC Scenario 2 equiv'!P$150,\n'[5]SM4 - DNO Scenario 4 equiv'!P$150,\n'[6]M1a - Model inputs'!P$150,\n'[6]M1b - Model inputs'!P$150,\n'[6]SM1 - DECC Scenario 3 equiv'!P$150,\n'[6]SM2 - DECC Scenario 1 equiv'!P$150,\n'[6]SM3 - DECC Scenario 2 equiv'!P$150,\n'[6]SM4 - DNO Scenario 4 equiv'!P$150)","v":-0.26},{"$f":"CHOOSE(view,\n'[5]M1a - Model inputs'!Q$150,\n'[5]M1b - Model inputs'!Q$150,\n'[5]SM1 - DECC Scenario 3 equiv'!Q$150,\n'[5]SM2 - DECC Scenario 1 equiv'!Q$150,\n'[5]SM3 - DECC Scenario 2 equiv'!Q$150,\n'[5]SM4 - DNO Scenario 4 equiv'!Q$150,\n'[6]M1a - Model inputs'!Q$150,\n'[6]M1b - Model inputs'!Q$150,\n'[6]SM1 - DECC Scenario 3 equiv'!Q$150,\n'[6]SM2 - DECC Scenario 1 equiv'!Q$150,\n'[6]SM3 - DECC Scenario 2 equiv'!Q$150,\n'[6]SM4 - DNO Scenario 4 equiv'!Q$150)","v":-0.18},{"$f":"CHOOSE(view,\n'[5]M1a - Model inputs'!R$150,\n'[5]M1b - Model inputs'!R$150,\n'[5]SM1 - DECC Scenario 3 equiv'!R$150,\n'[5]SM2 - DECC Scenario 1 equiv'!R$150,\n'[5]SM3 - DECC Scenario 2 equiv'!R$150,\n'[5]SM4 - DNO Scenario 4 equiv'!R$150,\n'[6]M1a - Model inputs'!R$150,\n'[6]M1b - Model inputs'!R$150,\n'[6]SM1 - DECC Scenario 3 equiv'!R$150,\n'[6]SM2 - DECC Scenario 1 equiv'!R$150,\n'[6]SM3 - DECC Scenario 2 equiv'!R$150,\n'[6]SM4 - DNO Scenario 4 equiv'!R$150)","v":0},{"$f":"CHOOSE(view,\n'[5]M1a - Model inputs'!S$150,\n'[5]M1b - Model inputs'!S$150,\n'[5]SM1 - DECC Scenario 3 equiv'!S$150,\n'[5]SM2 - DECC Scenario 1 equiv'!S$150,\n'[5]SM3 - DECC Scenario 2 equiv'!S$150,\n'[5]SM4 - DNO Scenario 4 equiv'!S$150,\n'[6]M1a - Model inputs'!S$150,\n'[6]M1b - Model inputs'!S$150,\n'[6]SM1 - DECC Scenario 3 equiv'!S$150,\n'[6]SM2 - DECC Scenario 1 equiv'!S$150,\n'[6]SM3 - DECC Scenario 2 equiv'!S$150,\n'[6]SM4 - DNO Scenario 4 equiv'!S$150)","v":0}]
[null,null,null,null,{"$f":"Input!E262","v":"Metering services associated with the SM roll out costs"},null,{"$f":"Input!G262","v":"£m 12/13 prices"},null,null,null,null,null,null,null,null,null,null,null,null,null,null,null,null,null,null,null,null,null,null,null,null,null,null,null,null,{"$f":"CHOOSE(view,\n'[5]M1a - Model inputs'!L$137,\n'[5]M1b - Model inputs'!L$137,\n'[5]SM1 - DECC Scenario 3 equiv'!L$137,\n'[5]SM2 - DECC Scenario 1 equiv'!L$137,\n'[5]SM3 - DECC Scenario 2 equiv'!L$137,\n'[5]SM4 - DNO Scenario 4 equiv'!L$137,\n'[6]M1a - Model inputs'!L$137,\n'[6]M1b - Model inputs'!L$137,\n'[6]SM1 - DECC Scenario 3 equiv'!L$137,\n'[6]SM2 - DECC Scenario 1 equiv'!L$137,\n'[6]SM3 - DECC Scenario 2 equiv'!L$137,\n'[6]SM4 - DNO Scenario 4 equiv'!L$137)","v":0.1},{"$f":"CHOOSE(view,\n'[5]M1a - Model inputs'!M$137,\n'[5]M1b - Model inputs'!M$137,\n'[5]SM1 - DECC Scenario 3 equiv'!M$137,\n'[5]SM2 - DECC Scenario 1 equiv'!M$137,\n'[5]SM3 - DECC Scenario 2 equiv'!M$137,\n'[5]SM4 - DNO Scenario 4 equiv'!M$137,\n'[6]M1a - Model inputs'!M$137,\n'[6]M1b - Model inputs'!M$137,\n'[6]SM1 - DECC Scenario 3 equiv'!M$137,\n'[6]SM2 - DECC Scenario 1 equiv'!M$137,\n'[6]SM3 - DECC Scenario 2 equiv'!M$137,\n'[6]SM4 - DNO Scenario 4 equiv'!M$137)","v":0.2},{"$f":"CHOOSE(view,\n'[5]M1a - Model inputs'!N$137,\n'[5]M1b - Model inputs'!N$137,\n'[5]SM1 - DECC Scenario 3 equiv'!N$137,\n'[5]SM2 - DECC Scenario 1 equiv'!N$137,\n'[5]SM3 - DECC Scenario 2 equiv'!N$137,\n'[5]SM4 - DNO Scenario 4 equiv'!N$137,\n'[6]M1a - Model inputs'!N$137,\n'[6]M1b - Model inputs'!N$137,\n'[6]SM1 - DECC Scenario 3 equiv'!N$137,\n'[6]SM2 - DECC Scenario 1 equiv'!N$137,\n'[6]SM3 - DECC Scenario 2 equiv'!N$137,\n'[6]SM4 - DNO Scenario 4 equiv'!N$137)","v":0.26},{"$f":"CHOOSE(view,\n'[5]M1a - Model inputs'!O$137,\n'[5]M1b - Model inputs'!O$137,\n'[5]SM1 - DECC Scenario 3 equiv'!O$137,\n'[5]SM2 - DECC Scenario 1 equiv'!O$137,\n'[5]SM3 - DECC Scenario 2 equiv'!O$137,\n'[5]SM4 - DNO Scenario 4 equiv'!O$137,\n'[6]M1a - Model inputs'!O$137,\n'[6]M1b - Model inputs'!O$137,\n'[6]SM1 - DECC Scenario 3 equiv'!O$137,\n'[6]SM2 - DECC Scenario 1 equiv'!O$137,\n'[6]SM3 - DECC Scenario 2 equiv'!O$137,\n'[6]SM4 - DNO Scenario 4 equiv'!O$137)","v":0.28000000000000003},{"$f":"CHOOSE(view,\n'[5]M1a - Model inputs'!P$137,\n'[5]M1b - Model inputs'!P$137,\n'[5]SM1 - DECC Scenario 3 equiv'!P$137,\n'[5]SM2 - DECC Scenario 1 equiv'!P$137,\n'[5]SM3 - DECC Scenario 2 equiv'!P$137,\n'[5]SM4 - DNO Scenario 4 equiv'!P$137,\n'[6]M1a - Model inputs'!P$137,\n'[6]M1b - Model inputs'!P$137,\n'[6]SM1 - DECC Scenario 3 equiv'!P$137,\n'[6]SM2 - DECC Scenario 1 equiv'!P$137,\n'[6]SM3 - DECC Scenario 2 equiv'!P$137,\n'[6]SM4 - DNO Scenario 4 equiv'!P$137)","v":0.26},{"$f":"CHOOSE(view,\n'[5]M1a - Model inputs'!Q$137,\n'[5]M1b - Model inputs'!Q$137,\n'[5]SM1 - DECC Scenario 3 equiv'!Q$137,\n'[5]SM2 - DECC Scenario 1 equiv'!Q$137,\n'[5]SM3 - DECC Scenario 2 equiv'!Q$137,\n'[5]SM4 - DNO Scenario 4 equiv'!Q$137,\n'[6]M1a - Model inputs'!Q$137,\n'[6]M1b - Model inputs'!Q$137,\n'[6]SM1 - DECC Scenario 3 equiv'!Q$137,\n'[6]SM2 - DECC Scenario 1 equiv'!Q$137,\n'[6]SM3 - DECC Scenario 2 equiv'!Q$137,\n'[6]SM4 - DNO Scenario 4 equiv'!Q$137)","v":0.18},{"$f":"CHOOSE(view,\n'[5]M1a - Model inputs'!R$137,\n'[5]M1b - Model inputs'!R$137,\n'[5]SM1 - DECC Scenario 3 equiv'!R$137,\n'[5]SM2 - DECC Scenario 1 equiv'!R$137,\n'[5]SM3 - DECC Scenario 2 equiv'!R$137,\n'[5]SM4 - DNO Scenario 4 equiv'!R$137,\n'[6]M1a - Model inputs'!R$137,\n'[6]M1b - Model inputs'!R$137,\n'[6]SM1 - DECC Scenario 3 equiv'!R$137,\n'[6]SM2 - DECC Scenario 1 equiv'!R$137,\n'[6]SM3 - DECC Scenario 2 equiv'!R$137,\n'[6]SM4 - DNO Scenario 4 equiv'!R$137)","v":0},{"$f":"CHOOSE(view,\n'[5]M1a - Model inputs'!S$137,\n'[5]M1b - Model inputs'!S$137,\n'[5]SM1 - DECC Scenario 3 equiv'!S$137,\n'[5]SM2 - DECC Scenario 1 equiv'!S$137,\n'[5]SM3 - DECC Scenario 2 equiv'!S$137,\n'[5]SM4 - DNO Scenario 4 equiv'!S$137,\n'[6]M1a - Model inputs'!S$137,\n'[6]M1b - Model inputs'!S$137,\n'[6]SM1 - DECC Scenario 3 equiv'!S$137,\n'[6]SM2 - DECC Scenario 1 equiv'!S$137,\n'[6]SM3 - DECC Scenario 2 equiv'!S$137,\n'[6]SM4 - DNO Scenario 4 equiv'!S$137)","v":0}]
[null,null,null,null,{"$f":"Input!E263","v":"Metering services associated with the SM roll out net position"},null,{"$f":"Input!G263","v":"£m 12/13 prices"},null,null,null,null,null,null,null,null,null,null,null,null,null,null,null,null,null,null,null,null,null,null,null,null,null,null,null,null,{"$f":"SUM(AJ261, -AJ262)","v":-0.2},{"$f":"SUM(AK261, -AK262)","v":-0.4},-0.52,-0.56000000000000005,-0.52,-0.36,0,0]
[]
[null,null,null,null,{"$f":"Input!E265","v":"De Minimis Activities revenue"},null,{"$f":"Input!G265","v":"£m 12/13 prices"},null,null,null,null,null,null,null,null,null,null,null,null,null,null,null,null,null,null,null,null,null,null,null,null,null,null,null,null,{"$f":"CHOOSE(view,\n'[5]M1a - Model inputs'!L$151,\n'[5]M1b - Model inputs'!L$151,\n'[5]SM1 - DECC Scenario 3 equiv'!L$151,\n'[5]SM2 - DECC Scenario 1 equiv'!L$151,\n'[5]SM3 - DECC Scenario 2 equiv'!L$151,\n'[5]SM4 - DNO Scenario 4 equiv'!L$151,\n'[6]M1a - Model inputs'!L$151,\n'[6]M1b - Model inputs'!L$151,\n'[6]SM1 - DECC Scenario 3 equiv'!L$151,\n'[6]SM2 - DECC Scenario 1 equiv'!L$151,\n'[6]SM3 - DECC Scenario 2 equiv'!L$151,\n'[6]SM4 - DNO Scenario 4 equiv'!L$151)","v":-2.1748884933151582},{"$f":"CHOOSE(view,\n'[5]M1a - Model inputs'!M$151,\n'[5]M1b - Model inputs'!M$151,\n'[5]SM1 - DECC Scenario 3 equiv'!M$151,\n'[5]SM2 - DECC Scenario 1 equiv'!M$151,\n'[5]SM3 - DECC Scenario 2 equiv'!M$151,\n'[5]SM4 - DNO Scenario 4 equiv'!M$151,\n'[6]M1a - Model inputs'!M$151,\n'[6]M1b - Model inputs'!M$151,\n'[6]SM1 - DECC Scenario 3 equiv'!M$151,\n'[6]SM2 - DECC Scenario 1 equiv'!M$151,\n'[6]SM3 - DECC Scenario 2 equiv'!M$151,\n'[6]SM4 - DNO Scenario 4 equiv'!M$151)","v":-2.1748884933151582},{"$f":"CHOOSE(view,\n'[5]M1a - Model inputs'!N$151,\n'[5]M1b - Model inputs'!N$151,\n'[5]SM1 - DECC Scenario 3 equiv'!N$151,\n'[5]SM2 - DECC Scenario 1 equiv'!N$151,\n'[5]SM3 - DECC Scenario 2 equiv'!N$151,\n'[5]SM4 - DNO Scenario 4 equiv'!N$151,\n'[6]M1a - Model inputs'!N$151,\n'[6]M1b - Model inputs'!N$151,\n'[6]SM1 - DECC Scenario 3 equiv'!N$151,\n'[6]SM2 - DECC Scenario 1 equiv'!N$151,\n'[6]SM3 - DECC Scenario 2 equiv'!N$151,\n'[6]SM4 - DNO Scenario 4 equiv'!N$151)","v":-2.1748884933151582},{"$f":"CHOOSE(view,\n'[5]M1a - Model inputs'!O$151,\n'[5]M1b - Model inputs'!O$151,\n'[5]SM1 - DECC Scenario 3 equiv'!O$151,\n'[5]SM2 - DECC Scenario 1 equiv'!O$151,\n'[5]SM3 - DECC Scenario 2 equiv'!O$151,\n'[5]SM4 - DNO Scenario 4 equiv'!O$151,\n'[6]M1a - Model inputs'!O$151,\n'[6]M1b - Model inputs'!O$151,\n'[6]SM1 - DECC Scenario 3 equiv'!O$151,\n'[6]SM2 - DECC Scenario 1 equiv'!O$151,\n'[6]SM3 - DECC Scenario 2 equiv'!O$151,\n'[6]SM4 - DNO Scenario 4 equiv'!O$151)","v":-2.1748884933151582},{"$f":"CHOOSE(view,\n'[5]M1a - Model inputs'!P$151,\n'[5]M1b - Model inputs'!P$151,\n'[5]SM1 - DECC Scenario 3 equiv'!P$151,\n'[5]SM2 - DECC Scenario 1 equiv'!P$151,\n'[5]SM3 - DECC Scenario 2 equiv'!P$151,\n'[5]SM4 - DNO Scenario 4 equiv'!P$151,\n'[6]M1a - Model inputs'!P$151,\n'[6]M1b - Model inputs'!P$151,\n'[6]SM1 - DECC Scenario 3 equiv'!P$151,\n'[6]SM2 - DECC Scenario 1 equiv'!P$151,\n'[6]SM3 - DECC Scenario 2 equiv'!P$151,\n'[6]SM4 - DNO Scenario 4 equiv'!P$151)","v":-2.1748884933151582},{"$f":"CHOOSE(view,\n'[5]M1a - Model inputs'!Q$151,\n'[5]M1b - Model inputs'!Q$151,\n'[5]SM1 - DECC Scenario 3 equiv'!Q$151,\n'[5]SM2 - DECC Scenario 1 equiv'!Q$151,\n'[5]SM3 - DECC Scenario 2 equiv'!Q$151,\n'[5]SM4 - DNO Scenario 4 equiv'!Q$151,\n'[6]M1a - Model inputs'!Q$151,\n'[6]M1b - Model inputs'!Q$151,\n'[6]SM1 - DECC Scenario 3 equiv'!Q$151,\n'[6]SM2 - DECC Scenario 1 equiv'!Q$151,\n'[6]SM3 - DECC Scenario 2 equiv'!Q$151,\n'[6]SM4 - DNO Scenario 4 equiv'!Q$151)","v":-2.1748884933151582},{"$f":"CHOOSE(view,\n'[5]M1a - Model inputs'!R$151,\n'[5]M1b - Model inputs'!R$151,\n'[5]SM1 - DECC Scenario 3 equiv'!R$151,\n'[5]SM2 - DECC Scenario 1 equiv'!R$151,\n'[5]SM3 - DECC Scenario 2 equiv'!R$151,\n'[5]SM4 - DNO Scenario 4 equiv'!R$151,\n'[6]M1a - Model inputs'!R$151,\n'[6]M1b - Model inputs'!R$151,\n'[6]SM1 - DECC Scenario 3 equiv'!R$151,\n'[6]SM2 - DECC Scenario 1 equiv'!R$151,\n'[6]SM3 - DECC Scenario 2 equiv'!R$151,\n'[6]SM4 - DNO Scenario 4 equiv'!R$151)","v":-2.1748884933151582},{"$f":"CHOOSE(view,\n'[5]M1a - Model inputs'!S$151,\n'[5]M1b - Model inputs'!S$151,\n'[5]SM1 - DECC Scenario 3 equiv'!S$151,\n'[5]SM2 - DECC Scenario 1 equiv'!S$151,\n'[5]SM3 - DECC Scenario 2 equiv'!S$151,\n'[5]SM4 - DNO Scenario 4 equiv'!S$151,\n'[6]M1a - Model inputs'!S$151,\n'[6]M1b - Model inputs'!S$151,\n'[6]SM1 - DECC Scenario 3 equiv'!S$151,\n'[6]SM2 - DECC Scenario 1 equiv'!S$151,\n'[6]SM3 - DECC Scenario 2 equiv'!S$151,\n'[6]SM4 - DNO Scenario 4 equiv'!S$151)","v":-2.1748884933151582}]
[null,null,null,null,{"$f":"Input!E266","v":"De Minimis Activities costs"},null,{"$f":"Input!G266","v":"£m 12/13 prices"},null,null,null,null,null,null,null,null,null,null,null,null,null,null,null,null,null,null,null,null,null,null,null,null,null,null,null,null,{"$f":"CHOOSE(view,\n'[5]M1a - Model inputs'!L$138,\n'[5]M1b - Model inputs'!L$138,\n'[5]SM1 - DECC Scenario 3 equiv'!L$138,\n'[5]SM2 - DECC Scenario 1 equiv'!L$138,\n'[5]SM3 - DECC Scenario 2 equiv'!L$138,\n'[5]SM4 - DNO Scenario 4 equiv'!L$138,\n'[6]M1a - Model inputs'!L$138,\n'[6]M1b - Model inputs'!L$138,\n'[6]SM1 - DECC Scenario 3 equiv'!L$138,\n'[6]SM2 - DECC Scenario 1 equiv'!L$138,\n'[6]SM3 - DECC Scenario 2 equiv'!L$138,\n'[6]SM4 - DNO Scenario 4 equiv'!L$138)","v":2.0518130631950529},{"$f":"CHOOSE(view,\n'[5]M1a - Model inputs'!M$138,\n'[5]M1b - Model inputs'!M$138,\n'[5]SM1 - DECC Scenario 3 equiv'!M$138,\n'[5]SM2 - DECC Scenario 1 equiv'!M$138,\n'[5]SM3 - DECC Scenario 2 equiv'!M$138,\n'[5]SM4 - DNO Scenario 4 equiv'!M$138,\n'[6]M1a - Model inputs'!M$138,\n'[6]M1b - Model inputs'!M$138,\n'[6]SM1 - DECC Scenario 3 equiv'!M$138,\n'[6]SM2 - DECC Scenario 1 equiv'!M$138,\n'[6]SM3 - DECC Scenario 2 equiv'!M$138,\n'[6]SM4 - DNO Scenario 4 equiv'!M$138)","v":2.0300900083405189},{"$f":"CHOOSE(view,\n'[5]M1a - Model inputs'!N$138,\n'[5]M1b - Model inputs'!N$138,\n'[5]SM1 - DECC Scenario 3 equiv'!N$138,\n'[5]SM2 - DECC Scenario 1 equiv'!N$138,\n'[5]SM3 - DECC Scenario 2 equiv'!N$138,\n'[5]SM4 - DNO Scenario 4 equiv'!N$138,\n'[6]M1a - Model inputs'!N$138,\n'[6]M1b - Model inputs'!N$138,\n'[6]SM1 - DECC Scenario 3 equiv'!N$138,\n'[6]SM2 - DECC Scenario 1 equiv'!N$138,\n'[6]SM3 - DECC Scenario 2 equiv'!N$138,\n'[6]SM4 - DNO Scenario 4 equiv'!N$138)","v":1.9837394090558456},{"$f":"CHOOSE(view,\n'[5]M1a - Model inputs'!O$138,\n'[5]M1b - Model inputs'!O$138,\n'[5]SM1 - DECC Scenario 3 equiv'!O$138,\n'[5]SM2 - DECC Scenario 1 equiv'!O$138,\n'[5]SM3 - DECC Scenario 2 equiv'!O$138,\n'[5]SM4 - DNO Scenario 4 equiv'!O$138,\n'[6]M1a - Model inputs'!O$138,\n'[6]M1b - Model inputs'!O$138,\n'[6]SM1 - DECC Scenario 3 equiv'!O$138,\n'[6]SM2 - DECC Scenario 1 equiv'!O$138,\n'[6]SM3 - DECC Scenario 2 equiv'!O$138,\n'[6]SM4 - DNO Scenario 4 equiv'!O$138)","v":2.0044684291961392},{"$f":"CHOOSE(view,\n'[5]M1a - Model inputs'!P$138,\n'[5]M1b - Model inputs'!P$138,\n'[5]SM1 - DECC Scenario 3 equiv'!P$138,\n'[5]SM2 - DECC Scenario 1 equiv'!P$138,\n'[5]SM3 - DECC Scenario 2 equiv'!P$138,\n'[5]SM4 - DNO Scenario 4 equiv'!P$138,\n'[6]M1a - Model inputs'!P$138,\n'[6]M1b - Model inputs'!P$138,\n'[6]SM1 - DECC Scenario 3 equiv'!P$138,\n'[6]SM2 - DECC Scenario 1 equiv'!P$138,\n'[6]SM3 - DECC Scenario 2 equiv'!P$138,\n'[6]SM4 - DNO Scenario 4 equiv'!P$138)","v":2.0081755277811055},{"$f":"CHOOSE(view,\n'[5]M1a - Model inputs'!Q$138,\n'[5]M1b - Model inputs'!Q$138,\n'[5]SM1 - DECC Scenario 3 equiv'!Q$138,\n'[5]SM2 - DECC Scenario 1 equiv'!Q$138,\n'[5]SM3 - DECC Scenario 2 equiv'!Q$138,\n'[5]SM4 - DNO Scenario 4 equiv'!Q$138,\n'[6]M1a - Model inputs'!Q$138,\n'[6]M1b - Model inputs'!Q$138,\n'[6]SM1 - DECC Scenario 3 equiv'!Q$138,\n'[6]SM2 - DECC Scenario 1 equiv'!Q$138,\n'[6]SM3 - DECC Scenario 2 equiv'!Q$138,\n'[6]SM4 - DNO Scenario 4 equiv'!Q$138)","v":1.9733810844877555},{"$f":"CHOOSE(view,\n'[5]M1a - Model inputs'!R$138,\n'[5]M1b - Model inputs'!R$138,\n'[5]SM1 - DECC Scenario 3 equiv'!R$138,\n'[5]SM2 - DECC Scenario 1 equiv'!R$138,\n'[5]SM3 - DECC Scenario 2 equiv'!R$138,\n'[5]SM4 - DNO Scenario 4 equiv'!R$138,\n'[6]M1a - Model inputs'!R$138,\n'[6]M1b - Model inputs'!R$138,\n'[6]SM1 - DECC Scenario 3 equiv'!R$138,\n'[6]SM2 - DECC Scenario 1 equiv'!R$138,\n'[6]SM3 - DECC Scenario 2 equiv'!R$138,\n'[6]SM4 - DNO Scenario 4 equiv'!R$138)","v":1.965246174497941},{"$f":"CHOOSE(view,\n'[5]M1a - Model inputs'!S$138,\n'[5]M1b - Model inputs'!S$138,\n'[5]SM1 - DECC Scenario 3 equiv'!S$138,\n'[5]SM2 - DECC Scenario 1 equiv'!S$138,\n'[5]SM3 - DECC Scenario 2 equiv'!S$138,\n'[5]SM4 - DNO Scenario 4 equiv'!S$138,\n'[6]M1a - Model inputs'!S$138,\n'[6]M1b - Model inputs'!S$138,\n'[6]SM1 - DECC Scenario 3 equiv'!S$138,\n'[6]SM2 - DECC Scenario 1 equiv'!S$138,\n'[6]SM3 - DECC Scenario 2 equiv'!S$138,\n'[6]SM4 - DNO Scenario 4 equiv'!S$138)","v":1.8775611093183324}]
[null,null,null,null,{"$f":"Input!E267","v":"De Minimis Activities net position"},null,{"$f":"Input!G267","v":"£m 12/13 prices"},null,null,null,null,null,null,null,null,null,null,null,null,null,null,null,null,null,null,null,null,null,null,null,null,null,null,null,null,{"$f":"SUM(AJ265, -AJ266)","v":-4.2267015565102106},{"$f":"SUM(AK265, -AK266)","v":-4.2049785016556775},-4.1586279023710038,-4.1793569225112979,-4.1830640210962642,-4.1482695778029139,-4.1401346678130988,-4.0524496026334909]
[]
[null,null,null,null,{"$f":"Input!E269","v":"Out of Area Networks revenue"},null,{"$f":"Input!G269","v":"£m 12/13 prices"},null,null,null,null,null,null,null,null,null,null,null,null,null,null,null,null,null,null,null,null,null,null,null,null,null,null,null,null,{"$f":"CHOOSE(view,\n'[5]M1a - Model inputs'!L$152,\n'[5]M1b - Model inputs'!L$152,\n'[5]SM1 - DECC Scenario 3 equiv'!L$152,\n'[5]SM2 - DECC Scenario 1 equiv'!L$152,\n'[5]SM3 - DECC Scenario 2 equiv'!L$152,\n'[5]SM4 - DNO Scenario 4 equiv'!L$152,\n'[6]M1a - Model inputs'!L$152,\n'[6]M1b - Model inputs'!L$152,\n'[6]SM1 - DECC Scenario 3 equiv'!L$152,\n'[6]SM2 - DECC Scenario 1 equiv'!L$152,\n'[6]SM3 - DECC Scenario 2 equiv'!L$152,\n'[6]SM4 - DNO Scenario 4 equiv'!L$152)","v":0},{"$f":"CHOOSE(view,\n'[5]M1a - Model inputs'!M$152,\n'[5]M1b - Model inputs'!M$152,\n'[5]SM1 - DECC Scenario 3 equiv'!M$152,\n'[5]SM2 - DECC Scenario 1 equiv'!M$152,\n'[5]SM3 - DECC Scenario 2 equiv'!M$152,\n'[5]SM4 - DNO Scenario 4 equiv'!M$152,\n'[6]M1a - Model inputs'!M$152,\n'[6]M1b - Model inputs'!M$152,\n'[6]SM1 - DECC Scenario 3 equiv'!M$152,\n'[6]SM2 - DECC Scenario 1 equiv'!M$152,\n'[6]SM3 - DECC Scenario 2 equiv'!M$152,\n'[6]SM4 - DNO Scenario 4 equiv'!M$152)","v":0},{"$f":"CHOOSE(view,\n'[5]M1a - Model inputs'!N$152,\n'[5]M1b - Model inputs'!N$152,\n'[5]SM1 - DECC Scenario 3 equiv'!N$152,\n'[5]SM2 - DECC Scenario 1 equiv'!N$152,\n'[5]SM3 - DECC Scenario 2 equiv'!N$152,\n'[5]SM4 - DNO Scenario 4 equiv'!N$152,\n'[6]M1a - Model inputs'!N$152,\n'[6]M1b - Model inputs'!N$152,\n'[6]SM1 - DECC Scenario 3 equiv'!N$152,\n'[6]SM2 - DECC Scenario 1 equiv'!N$152,\n'[6]SM3 - DECC Scenario 2 equiv'!N$152,\n'[6]SM4 - DNO Scenario 4 equiv'!N$152)","v":0},{"$f":"CHOOSE(view,\n'[5]M1a - Model inputs'!O$152,\n'[5]M1b - Model inputs'!O$152,\n'[5]SM1 - DECC Scenario 3 equiv'!O$152,\n'[5]SM2 - DECC Scenario 1 equiv'!O$152,\n'[5]SM3 - DECC Scenario 2 equiv'!O$152,\n'[5]SM4 - DNO Scenario 4 equiv'!O$152,\n'[6]M1a - Model inputs'!O$152,\n'[6]M1b - Model inputs'!O$152,\n'[6]SM1 - DECC Scenario 3 equiv'!O$152,\n'[6]SM2 - DECC Scenario 1 equiv'!O$152,\n'[6]SM3 - DECC Scenario 2 equiv'!O$152,\n'[6]SM4 - DNO Scenario 4 equiv'!O$152)","v":0},{"$f":"CHOOSE(view,\n'[5]M1a - Model inputs'!P$152,\n'[5]M1b - Model inputs'!P$152,\n'[5]SM1 - DECC Scenario 3 equiv'!P$152,\n'[5]SM2 - DECC Scenario 1 equiv'!P$152,\n'[5]SM3 - DECC Scenario 2 equiv'!P$152,\n'[5]SM4 - DNO Scenario 4 equiv'!P$152,\n'[6]M1a - Model inputs'!P$152,\n'[6]M1b - Model inputs'!P$152,\n'[6]SM1 - DECC Scenario 3 equiv'!P$152,\n'[6]SM2 - DECC Scenario 1 equiv'!P$152,\n'[6]SM3 - DECC Scenario 2 equiv'!P$152,\n'[6]SM4 - DNO Scenario 4 equiv'!P$152)","v":0},{"$f":"CHOOSE(view,\n'[5]M1a - Model inputs'!Q$152,\n'[5]M1b - Model inputs'!Q$152,\n'[5]SM1 - DECC Scenario 3 equiv'!Q$152,\n'[5]SM2 - DECC Scenario 1 equiv'!Q$152,\n'[5]SM3 - DECC Scenario 2 equiv'!Q$152,\n'[5]SM4 - DNO Scenario 4 equiv'!Q$152,\n'[6]M1a - Model inputs'!Q$152,\n'[6]M1b - Model inputs'!Q$152,\n'[6]SM1 - DECC Scenario 3 equiv'!Q$152,\n'[6]SM2 - DECC Scenario 1 equiv'!Q$152,\n'[6]SM3 - DECC Scenario 2 equiv'!Q$152,\n'[6]SM4 - DNO Scenario 4 equiv'!Q$152)","v":0},{"$f":"CHOOSE(view,\n'[5]M1a - Model inputs'!R$152,\n'[5]M1b - Model inputs'!R$152,\n'[5]SM1 - DECC Scenario 3 equiv'!R$152,\n'[5]SM2 - DECC Scenario 1 equiv'!R$152,\n'[5]SM3 - DECC Scenario 2 equiv'!R$152,\n'[5]SM4 - DNO Scenario 4 equiv'!R$152,\n'[6]M1a - Model inputs'!R$152,\n'[6]M1b - Model inputs'!R$152,\n'[6]SM1 - DECC Scenario 3 equiv'!R$152,\n'[6]SM2 - DECC Scenario 1 equiv'!R$152,\n'[6]SM3 - DECC Scenario 2 equiv'!R$152,\n'[6]SM4 - DNO Scenario 4 equiv'!R$152)","v":0},{"$f":"CHOOSE(view,\n'[5]M1a - Model inputs'!S$152,\n'[5]M1b - Model inputs'!S$152,\n'[5]SM1 - DECC Scenario 3 equiv'!S$152,\n'[5]SM2 - DECC Scenario 1 equiv'!S$152,\n'[5]SM3 - DECC Scenario 2 equiv'!S$152,\n'[5]SM4 - DNO Scenario 4 equiv'!S$152,\n'[6]M1a - Model inputs'!S$152,\n'[6]M1b - Model inputs'!S$152,\n'[6]SM1 - DECC Scenario 3 equiv'!S$152,\n'[6]SM2 - DECC Scenario 1 equiv'!S$152,\n'[6]SM3 - DECC Scenario 2 equiv'!S$152,\n'[6]SM4 - DNO Scenario 4 equiv'!S$152)","v":0}]
[null,null,null,null,{"$f":"Input!E270","v":"Out of Area Networks costs"},null,{"$f":"Input!G270","v":"£m 12/13 prices"},null,null,null,null,null,null,null,null,null,null,null,null,null,null,null,null,null,null,null,null,null,null,null,null,null,null,null,null,{"$f":"CHOOSE(view,\n'[5]M1a - Model inputs'!L$139,\n'[5]M1b - Model inputs'!L$139,\n'[5]SM1 - DECC Scenario 3 equiv'!L$139,\n'[5]SM2 - DECC Scenario 1 equiv'!L$139,\n'[5]SM3 - DECC Scenario 2 equiv'!L$139,\n'[5]SM4 - DNO Scenario 4 equiv'!L$139,\n'[6]M1a - Model inputs'!L$139,\n'[6]M1b - Model inputs'!L$139,\n'[6]SM1 - DECC Scenario 3 equiv'!L$139,\n'[6]SM2 - DECC Scenario 1 equiv'!L$139,\n'[6]SM3 - DECC Scenario 2 equiv'!L$139,\n'[6]SM4 - DNO Scenario 4 equiv'!L$139)","v":0},{"$f":"CHOOSE(view,\n'[5]M1a - Model inputs'!M$139,\n'[5]M1b - Model inputs'!M$139,\n'[5]SM1 - DECC Scenario 3 equiv'!M$139,\n'[5]SM2 - DECC Scenario 1 equiv'!M$139,\n'[5]SM3 - DECC Scenario 2 equiv'!M$139,\n'[5]SM4 - DNO Scenario 4 equiv'!M$139,\n'[6]M1a - Model inputs'!M$139,\n'[6]M1b - Model inputs'!M$139,\n'[6]SM1 - DECC Scenario 3 equiv'!M$139,\n'[6]SM2 - DECC Scenario 1 equiv'!M$139,\n'[6]SM3 - DECC Scenario 2 equiv'!M$139,\n'[6]SM4 - DNO Scenario 4 equiv'!M$139)","v":0},{"$f":"CHOOSE(view,\n'[5]M1a - Model inputs'!N$139,\n'[5]M1b - Model inputs'!N$139,\n'[5]SM1 - DECC Scenario 3 equiv'!N$139,\n'[5]SM2 - DECC Scenario 1 equiv'!N$139,\n'[5]SM3 - DECC Scenario 2 equiv'!N$139,\n'[5]SM4 - DNO Scenario 4 equiv'!N$139,\n'[6]M1a - Model inputs'!N$139,\n'[6]M1b - Model inputs'!N$139,\n'[6]SM1 - DECC Scenario 3 equiv'!N$139,\n'[6]SM2 - DECC Scenario 1 equiv'!N$139,\n'[6]SM3 - DECC Scenario 2 equiv'!N$139,\n'[6]SM4 - DNO Scenario 4 equiv'!N$139)","v":0},{"$f":"CHOOSE(view,\n'[5]M1a - Model inputs'!O$139,\n'[5]M1b - Model inputs'!O$139,\n'[5]SM1 - DECC Scenario 3 equiv'!O$139,\n'[5]SM2 - DECC Scenario 1 equiv'!O$139,\n'[5]SM3 - DECC Scenario 2 equiv'!O$139,\n'[5]SM4 - DNO Scenario 4 equiv'!O$139,\n'[6]M1a - Model inputs'!O$139,\n'[6]M1b - Model inputs'!O$139,\n'[6]SM1 - DECC Scenario 3 equiv'!O$139,\n'[6]SM2 - DECC Scenario 1 equiv'!O$139,\n'[6]SM3 - DECC Scenario 2 equiv'!O$139,\n'[6]SM4 - DNO Scenario 4 equiv'!O$139)","v":0},{"$f":"CHOOSE(view,\n'[5]M1a - Model inputs'!P$139,\n'[5]M1b - Model inputs'!P$139,\n'[5]SM1 - DECC Scenario 3 equiv'!P$139,\n'[5]SM2 - DECC Scenario 1 equiv'!P$139,\n'[5]SM3 - DECC Scenario 2 equiv'!P$139,\n'[5]SM4 - DNO Scenario 4 equiv'!P$139,\n'[6]M1a - Model inputs'!P$139,\n'[6]M1b - Model inputs'!P$139,\n'[6]SM1 - DECC Scenario 3 equiv'!P$139,\n'[6]SM2 - DECC Scenario 1 equiv'!P$139,\n'[6]SM3 - DECC Scenario 2 equiv'!P$139,\n'[6]SM4 - DNO Scenario 4 equiv'!P$139)","v":0},{"$f":"CHOOSE(view,\n'[5]M1a - Model inputs'!Q$139,\n'[5]M1b - Model inputs'!Q$139,\n'[5]SM1 - DECC Scenario 3 equiv'!Q$139,\n'[5]SM2 - DECC Scenario 1 equiv'!Q$139,\n'[5]SM3 - DECC Scenario 2 equiv'!Q$139,\n'[5]SM4 - DNO Scenario 4 equiv'!Q$139,\n'[6]M1a - Model inputs'!Q$139,\n'[6]M1b - Model inputs'!Q$139,\n'[6]SM1 - DECC Scenario 3 equiv'!Q$139,\n'[6]SM2 - DECC Scenario 1 equiv'!Q$139,\n'[6]SM3 - DECC Scenario 2 equiv'!Q$139,\n'[6]SM4 - DNO Scenario 4 equiv'!Q$139)","v":0},{"$f":"CHOOSE(view,\n'[5]M1a - Model inputs'!R$139,\n'[5]M1b - Model inputs'!R$139,\n'[5]SM1 - DECC Scenario 3 equiv'!R$139,\n'[5]SM2 - DECC Scenario 1 equiv'!R$139,\n'[5]SM3 - DECC Scenario 2 equiv'!R$139,\n'[5]SM4 - DNO Scenario 4 equiv'!R$139,\n'[6]M1a - Model inputs'!R$139,\n'[6]M1b - Model inputs'!R$139,\n'[6]SM1 - DECC Scenario 3 equiv'!R$139,\n'[6]SM2 - DECC Scenario 1 equiv'!R$139,\n'[6]SM3 - DECC Scenario 2 equiv'!R$139,\n'[6]SM4 - DNO Scenario 4 equiv'!R$139)","v":0},{"$f":"CHOOSE(view,\n'[5]M1a - Model inputs'!S$139,\n'[5]M1b - Model inputs'!S$139,\n'[5]SM1 - DECC Scenario 3 equiv'!S$139,\n'[5]SM2 - DECC Scenario 1 equiv'!S$139,\n'[5]SM3 - DECC Scenario 2 equiv'!S$139,\n'[5]SM4 - DNO Scenario 4 equiv'!S$139,\n'[6]M1a - Model inputs'!S$139,\n'[6]M1b - Model inputs'!S$139,\n'[6]SM1 - DECC Scenario 3 equiv'!S$139,\n'[6]SM2 - DECC Scenario 1 equiv'!S$139,\n'[6]SM3 - DECC Scenario 2 equiv'!S$139,\n'[6]SM4 - DNO Scenario 4 equiv'!S$139)","v":0}]
[null,null,null,null,{"$f":"Input!E271","v":"Out of Area Networks net position"},null,{"$f":"Input!G271","v":"£m 12/13 prices"},null,null,null,null,null,null,null,null,null,null,null,null,null,null,null,null,null,null,null,null,null,null,null,null,null,null,null,null,{"$f":"SUM(AJ269, -AJ270)","v":0},{"$f":"SUM(AK269, -AK270)","v":0},0,0,0,0,0,0]
[]
[null,null,null,null,{"$f":"Input!E273","v":"Other consented activities revenue"},null,{"$f":"Input!G273","v":"£m 12/13 prices"},null,null,null,null,null,null,null,null,null,null,null,null,null,null,null,null,null,null,null,null,null,null,null,null,null,null,null,null,{"$f":"CHOOSE(view,\n'[5]M1a - Model inputs'!L$153,\n'[5]M1b - Model inputs'!L$153,\n'[5]SM1 - DECC Scenario 3 equiv'!L$153,\n'[5]SM2 - DECC Scenario 1 equiv'!L$153,\n'[5]SM3 - DECC Scenario 2 equiv'!L$153,\n'[5]SM4 - DNO Scenario 4 equiv'!L$153,\n'[6]M1a - Model inputs'!L$153,\n'[6]M1b - Model inputs'!L$153,\n'[6]SM1 - DECC Scenario 3 equiv'!L$153,\n'[6]SM2 - DECC Scenario 1 equiv'!L$153,\n'[6]SM3 - DECC Scenario 2 equiv'!L$153,\n'[6]SM4 - DNO Scenario 4 equiv'!L$153)","v":0},{"$f":"CHOOSE(view,\n'[5]M1a - Model inputs'!M$153,\n'[5]M1b - Model inputs'!M$153,\n'[5]SM1 - DECC Scenario 3 equiv'!M$153,\n'[5]SM2 - DECC Scenario 1 equiv'!M$153,\n'[5]SM3 - DECC Scenario 2 equiv'!M$153,\n'[5]SM4 - DNO Scenario 4 equiv'!M$153,\n'[6]M1a - Model inputs'!M$153,\n'[6]M1b - Model inputs'!M$153,\n'[6]SM1 - DECC Scenario 3 equiv'!M$153,\n'[6]SM2 - DECC Scenario 1 equiv'!M$153,\n'[6]SM3 - DECC Scenario 2 equiv'!M$153,\n'[6]SM4 - DNO Scenario 4 equiv'!M$153)","v":0},{"$f":"CHOOSE(view,\n'[5]M1a - Model inputs'!N$153,\n'[5]M1b - Model inputs'!N$153,\n'[5]SM1 - DECC Scenario 3 equiv'!N$153,\n'[5]SM2 - DECC Scenario 1 equiv'!N$153,\n'[5]SM3 - DECC Scenario 2 equiv'!N$153,\n'[5]SM4 - DNO Scenario 4 equiv'!N$153,\n'[6]M1a - Model inputs'!N$153,\n'[6]M1b - Model inputs'!N$153,\n'[6]SM1 - DECC Scenario 3 equiv'!N$153,\n'[6]SM2 - DECC Scenario 1 equiv'!N$153,\n'[6]SM3 - DECC Scenario 2 equiv'!N$153,\n'[6]SM4 - DNO Scenario 4 equiv'!N$153)","v":0},{"$f":"CHOOSE(view,\n'[5]M1a - Model inputs'!O$153,\n'[5]M1b - Model inputs'!O$153,\n'[5]SM1 - DECC Scenario 3 equiv'!O$153,\n'[5]SM2 - DECC Scenario 1 equiv'!O$153,\n'[5]SM3 - DECC Scenario 2 equiv'!O$153,\n'[5]SM4 - DNO Scenario 4 equiv'!O$153,\n'[6]M1a - Model inputs'!O$153,\n'[6]M1b - Model inputs'!O$153,\n'[6]SM1 - DECC Scenario 3 equiv'!O$153,\n'[6]SM2 - DECC Scenario 1 equiv'!O$153,\n'[6]SM3 - DECC Scenario 2 equiv'!O$153,\n'[6]SM4 - DNO Scenario 4 equiv'!O$153)","v":0},{"$f":"CHOOSE(view,\n'[5]M1a - Model inputs'!P$153,\n'[5]M1b - Model inputs'!P$153,\n'[5]SM1 - DECC Scenario 3 equiv'!P$153,\n'[5]SM2 - DECC Scenario 1 equiv'!P$153,\n'[5]SM3 - DECC Scenario 2 equiv'!P$153,\n'[5]SM4 - DNO Scenario 4 equiv'!P$153,\n'[6]M1a - Model inputs'!P$153,\n'[6]M1b - Model inputs'!P$153,\n'[6]SM1 - DECC Scenario 3 equiv'!P$153,\n'[6]SM2 - DECC Scenario 1 equiv'!P$153,\n'[6]SM3 - DECC Scenario 2 equiv'!P$153,\n'[6]SM4 - DNO Scenario 4 equiv'!P$153)","v":0},{"$f":"CHOOSE(view,\n'[5]M1a - Model inputs'!Q$153,\n'[5]M1b - Model inputs'!Q$153,\n'[5]SM1 - DECC Scenario 3 equiv'!Q$153,\n'[5]SM2 - DECC Scenario 1 equiv'!Q$153,\n'[5]SM3 - DECC Scenario 2 equiv'!Q$153,\n'[5]SM4 - DNO Scenario 4 equiv'!Q$153,\n'[6]M1a - Model inputs'!Q$153,\n'[6]M1b - Model inputs'!Q$153,\n'[6]SM1 - DECC Scenario 3 equiv'!Q$153,\n'[6]SM2 - DECC Scenario 1 equiv'!Q$153,\n'[6]SM3 - DECC Scenario 2 equiv'!Q$153,\n'[6]SM4 - DNO Scenario 4 equiv'!Q$153)","v":0},{"$f":"CHOOSE(view,\n'[5]M1a - Model inputs'!R$153,\n'[5]M1b - Model inputs'!R$153,\n'[5]SM1 - DECC Scenario 3 equiv'!R$153,\n'[5]SM2 - DECC Scenario 1 equiv'!R$153,\n'[5]SM3 - DECC Scenario 2 equiv'!R$153,\n'[5]SM4 - DNO Scenario 4 equiv'!R$153,\n'[6]M1a - Model inputs'!R$153,\n'[6]M1b - Model inputs'!R$153,\n'[6]SM1 - DECC Scenario 3 equiv'!R$153,\n'[6]SM2 - DECC Scenario 1 equiv'!R$153,\n'[6]SM3 - DECC Scenario 2 equiv'!R$153,\n'[6]SM4 - DNO Scenario 4 equiv'!R$153)","v":0},{"$f":"CHOOSE(view,\n'[5]M1a - Model inputs'!S$153,\n'[5]M1b - Model inputs'!S$153,\n'[5]SM1 - DECC Scenario 3 equiv'!S$153,\n'[5]SM2 - DECC Scenario 1 equiv'!S$153,\n'[5]SM3 - DECC Scenario 2 equiv'!S$153,\n'[5]SM4 - DNO Scenario 4 equiv'!S$153,\n'[6]M1a - Model inputs'!S$153,\n'[6]M1b - Model inputs'!S$153,\n'[6]SM1 - DECC Scenario 3 equiv'!S$153,\n'[6]SM2 - DECC Scenario 1 equiv'!S$153,\n'[6]SM3 - DECC Scenario 2 equiv'!S$153,\n'[6]SM4 - DNO Scenario 4 equiv'!S$153)","v":0}]
[null,null,null,null,{"$f":"Input!E274","v":"Other consented activities costs"},null,{"$f":"Input!G274","v":"£m 12/13 prices"},null,null,null,null,null,null,null,null,null,null,null,null,null,null,null,null,null,null,null,null,null,null,null,null,null,null,null,null,{"$f":"CHOOSE(view,\n'[5]M1a - Model inputs'!L$140,\n'[5]M1b - Model inputs'!L$140,\n'[5]SM1 - DECC Scenario 3 equiv'!L$140,\n'[5]SM2 - DECC Scenario 1 equiv'!L$140,\n'[5]SM3 - DECC Scenario 2 equiv'!L$140,\n'[5]SM4 - DNO Scenario 4 equiv'!L$140,\n'[6]M1a - Model inputs'!L$140,\n'[6]M1b - Model inputs'!L$140,\n'[6]SM1 - DECC Scenario 3 equiv'!L$140,\n'[6]SM2 - DECC Scenario 1 equiv'!L$140,\n'[6]SM3 - DECC Scenario 2 equiv'!L$140,\n'[6]SM4 - DNO Scenario 4 equiv'!L$140)","v":0},{"$f":"CHOOSE(view,\n'[5]M1a - Model inputs'!M$140,\n'[5]M1b - Model inputs'!M$140,\n'[5]SM1 - DECC Scenario 3 equiv'!M$140,\n'[5]SM2 - DECC Scenario 1 equiv'!M$140,\n'[5]SM3 - DECC Scenario 2 equiv'!M$140,\n'[5]SM4 - DNO Scenario 4 equiv'!M$140,\n'[6]M1a - Model inputs'!M$140,\n'[6]M1b - Model inputs'!M$140,\n'[6]SM1 - DECC Scenario 3 equiv'!M$140,\n'[6]SM2 - DECC Scenario 1 equiv'!M$140,\n'[6]SM3 - DECC Scenario 2 equiv'!M$140,\n'[6]SM4 - DNO Scenario 4 equiv'!M$140)","v":0},{"$f":"CHOOSE(view,\n'[5]M1a - Model inputs'!N$140,\n'[5]M1b - Model inputs'!N$140,\n'[5]SM1 - DECC Scenario 3 equiv'!N$140,\n'[5]SM2 - DECC Scenario 1 equiv'!N$140,\n'[5]SM3 - DECC Scenario 2 equiv'!N$140,\n'[5]SM4 - DNO Scenario 4 equiv'!N$140,\n'[6]M1a - Model inputs'!N$140,\n'[6]M1b - Model inputs'!N$140,\n'[6]SM1 - DECC Scenario 3 equiv'!N$140,\n'[6]SM2 - DECC Scenario 1 equiv'!N$140,\n'[6]SM3 - DECC Scenario 2 equiv'!N$140,\n'[6]SM4 - DNO Scenario 4 equiv'!N$140)","v":0},{"$f":"CHOOSE(view,\n'[5]M1a - Model inputs'!O$140,\n'[5]M1b - Model inputs'!O$140,\n'[5]SM1 - DECC Scenario 3 equiv'!O$140,\n'[5]SM2 - DECC Scenario 1 equiv'!O$140,\n'[5]SM3 - DECC Scenario 2 equiv'!O$140,\n'[5]SM4 - DNO Scenario 4 equiv'!O$140,\n'[6]M1a - Model inputs'!O$140,\n'[6]M1b - Model inputs'!O$140,\n'[6]SM1 - DECC Scenario 3 equiv'!O$140,\n'[6]SM2 - DECC Scenario 1 equiv'!O$140,\n'[6]SM3 - DECC Scenario 2 equiv'!O$140,\n'[6]SM4 - DNO Scenario 4 equiv'!O$140)","v":0},{"$f":"CHOOSE(view,\n'[5]M1a - Model inputs'!P$140,\n'[5]M1b - Model inputs'!P$140,\n'[5]SM1 - DECC Scenario 3 equiv'!P$140,\n'[5]SM2 - DECC Scenario 1 equiv'!P$140,\n'[5]SM3 - DECC Scenario 2 equiv'!P$140,\n'[5]SM4 - DNO Scenario 4 equiv'!P$140,\n'[6]M1a - Model inputs'!P$140,\n'[6]M1b - Model inputs'!P$140,\n'[6]SM1 - DECC Scenario 3 equiv'!P$140,\n'[6]SM2 - DECC Scenario 1 equiv'!P$140,\n'[6]SM3 - DECC Scenario 2 equiv'!P$140,\n'[6]SM4 - DNO Scenario 4 equiv'!P$140)","v":0},{"$f":"CHOOSE(view,\n'[5]M1a - Model inputs'!Q$140,\n'[5]M1b - Model inputs'!Q$140,\n'[5]SM1 - DECC Scenario 3 equiv'!Q$140,\n'[5]SM2 - DECC Scenario 1 equiv'!Q$140,\n'[5]SM3 - DECC Scenario 2 equiv'!Q$140,\n'[5]SM4 - DNO Scenario 4 equiv'!Q$140,\n'[6]M1a - Model inputs'!Q$140,\n'[6]M1b - Model inputs'!Q$140,\n'[6]SM1 - DECC Scenario 3 equiv'!Q$140,\n'[6]SM2 - DECC Scenario 1 equiv'!Q$140,\n'[6]SM3 - DECC Scenario 2 equiv'!Q$140,\n'[6]SM4 - DNO Scenario 4 equiv'!Q$140)","v":0},{"$f":"CHOOSE(view,\n'[5]M1a - Model inputs'!R$140,\n'[5]M1b - Model inputs'!R$140,\n'[5]SM1 - DECC Scenario 3 equiv'!R$140,\n'[5]SM2 - DECC Scenario 1 equiv'!R$140,\n'[5]SM3 - DECC Scenario 2 equiv'!R$140,\n'[5]SM4 - DNO Scenario 4 equiv'!R$140,\n'[6]M1a - Model inputs'!R$140,\n'[6]M1b - Model inputs'!R$140,\n'[6]SM1 - DECC Scenario 3 equiv'!R$140,\n'[6]SM2 - DECC Scenario 1 equiv'!R$140,\n'[6]SM3 - DECC Scenario 2 equiv'!R$140,\n'[6]SM4 - DNO Scenario 4 equiv'!R$140)","v":0},{"$f":"CHOOSE(view,\n'[5]M1a - Model inputs'!S$140,\n'[5]M1b - Model inputs'!S$140,\n'[5]SM1 - DECC Scenario 3 equiv'!S$140,\n'[5]SM2 - DECC Scenario 1 equiv'!S$140,\n'[5]SM3 - DECC Scenario 2 equiv'!S$140,\n'[5]SM4 - DNO Scenario 4 equiv'!S$140,\n'[6]M1a - Model inputs'!S$140,\n'[6]M1b - Model inputs'!S$140,\n'[6]SM1 - DECC Scenario 3 equiv'!S$140,\n'[6]SM2 - DECC Scenario 1 equiv'!S$140,\n'[6]SM3 - DECC Scenario 2 equiv'!S$140,\n'[6]SM4 - DNO Scenario 4 equiv'!S$140)","v":0}]
[null,null,null,null,{"$f":"Input!E275","v":"Other consented activities net position"},null,{"$f":"Input!G275","v":"£m 12/13 prices"},null,null,null,null,null,null,null,null,null,null,null,null,null,null,null,null,null,null,null,null,null,null,null,null,null,null,null,null,{"$f":"SUM(AJ273, -AJ274)","v":0},{"$f":"SUM(AK273, -AK274)","v":0},{"$f":"SUM(AL273, -AL274)","v":0},{"$f":"SUM(AM273, -AM274)","v":0},{"$f":"SUM(AN273, -AN274)","v":0},{"$f":"SUM(AO273, -AO274)","v":0},{"$f":"SUM(AP273, -AP274)","v":0},{"$f":"SUM(AQ273, -AQ274)","v":0}]
[]
[null,null,null,null,{"$f":"Input!E277","v":"Spare revenue"},null,{"$f":"Input!G277","v":"£m 12/13 prices"}]
[null,null,null,null,{"$f":"Input!E278","v":"Spare costs"},null,{"$f":"Input!G278","v":"£m 12/13 prices"}]
[null,null,null,null,{"$f":"Input!E279","v":"Spare net position"},null,{"$f":"Input!G279","v":"£m 12/13 prices"},null,null,null,null,null,null,null,null,null,null,null,null,null,null,null,null,null,null,null,null,null,null,null,null,null,null,null,null,{"$f":"SUM(AJ277, -AJ278)","v":0},{"$f":"SUM(AK277, -AK278)","v":0},{"$f":"SUM(AL277, -AL278)","v":0},{"$f":"SUM(AM277, -AM278)","v":0},{"$f":"SUM(AN277, -AN278)","v":0},{"$f":"SUM(AO277, -AO278)","v":0},{"$f":"SUM(AP277, -AP278)","v":0},{"$f":"SUM(AQ277, -AQ278)","v":0}]
[]
[null,null,null,null,{"$f":"Input!E281","v":"Overall net income of Directly Remunerated Services"},null,{"$f":"Input!G281","v":"£m 12/13 prices"},null,null,null,null,null,null,null,null,null,null,null,null,null,null,null,null,null,null,null,null,null,null,null,null,null,null,null,null,{"$f":"AJ231+AJ235+AJ239+AJ243+AJ247+AJ251+AJ255+AJ259+AJ263+AJ267+AJ271+AJ275+AJ279","v":-21.644522599229184},{"$f":"AK231+AK235+AK239+AK243+AK247+AK251+AK255+AK259+AK263+AK267+AK271+AK275+AK279","v":-23.693351105193628},-22.926694620025891,-22.091007419567362,-21.262940831708761,-20.484552080037744,-20.075560645188069,-19.880973435777726]
[]
[null,"RAV and assets"]
[]
[null,null,"Pre-vesting assets"]
[]
[null,null,null,null,{"$f":"Input!E287","v":"Pre-vesting asset life"},null,"years",null,15]
[null,null,null,null,{"$f":"Input!E288","v":"Pre vesting asset depn in first year (mths)"},null,"months",null,3.5]
[]
[null,null,null,null,"Metering Write off",null,"£m 12/13 prices",null,{"$f":"-'[7]F22 Historic RAV lookup data'!$J$25","v":24.947568401899538}]
[]
[null,null,"Post-vesting assets"]
[]
[null,null,null,null,{"$f":"Input!E294","v":"ED"}]
[null,null,null,null,{"$f":"Input!E295","v":"Post-vesting asset life"},null,"years",null,null,">",33.299999999999997,33.299999999999997,33.299999999999997,33.299999999999997,33.299999999999997,33.299999999999997,33.299999999999997,33.299999999999997,33.299999999999997,33.299999999999997,33.299999999999997,33.299999999999997,33.299999999999997,33.299999999999997,33.299999999999997,33.299999999999997,33.299999999999997,33.299999999999997,33.299999999999997,33.299999999999997,33.299999999999997,33.299999999999997,33.299999999999997,33.299999999999997,33.299999999999997,23.125,26.25,29.375,32.5,35.625,38.75,41.875,45]
[null,null,null,null,{"$f":"Input!E296","v":"Accelerated post-vesting asset life"},null,"years",null,null,">",20,20,20,20,20,20,20,20,20,20,20,20,20,20,20,20,20,20,20,20,20,20,20,20,20,23.125,26.25,29.375,32.5,35.625,38.75,41.875,45]
[null,null,null,null,{"$f":"Input!E297","v":"Smoothing period following full depreciation of pre-vesting assets"},null,"years",null,15]
[null,null,null,null,{"$f":"Input!E298","v":"Vesting Period"},null,"year ending",null,"1991-03-31"]
[null,null,null,null,{"$f":"Input!E299","v":"Pre-RIIO net additions to RAV"},null,"£m 12/13 prices",null,null,">",{"$f":"'[7]F21 RAV rollforward & depn'!F$10","v":40.674313900404044},{"$f":"'[7]F21 RAV rollforward & depn'!G$10","v":134.81069948050583},{"$f":"'[7]F21 RAV rollforward & depn'!H$10","v":132.03745080547827},{"$f":"'[7]F21 RAV rollforward & depn'!I$10","v":145.44148606811146},{"$f":"'[7]F21 RAV rollforward & depn'!J$10","v":87.049194521698041},{"$f":"'[7]F21 RAV rollforward & depn'!K$10","v":89.514304455055864},{"$f":"'[7]F21 RAV rollforward & depn'!L$10","v":96.755564884294458},{"$f":"'[7]F21 RAV rollforward & depn'!M$10","v":115.70609749698271},{"$f":"'[7]F21 RAV rollforward & depn'!N$10","v":112.33297374335979},{"$f":"'[7]F21 RAV rollforward & depn'!O$10","v":111.78418996092579},{"$f":"'[7]F21 RAV rollforward & depn'!P$10","v":136.8218601031229},{"$f":"'[7]F21 RAV rollforward & depn'!Q$10","v":84.149906542056073},{"$f":"'[7]F21 RAV rollforward & depn'!R$10","v":100.34160108609318},{"$f":"'[7]F21 RAV rollforward & depn'!S$10","v":111.29209480750789},{"$f":"'[7]F21 RAV rollforward & depn'!T$10","v":106.10034250264992},{"$f":"'[7]F21 RAV rollforward & depn'!U$10","v":136.07957296501496},{"$f":"'[7]F21 RAV rollforward & depn'!V$10","v":143.03072334957596},{"$f":"'[7]F21 RAV rollforward & depn'!W$10","v":180.40514076063431},{"$f":"'[7]F21 RAV rollforward & depn'!X$10","v":200.83589276014592},{"$f":"'[7]F21 RAV rollforward & depn'!Y$10","v":163.87312846058202},{"$f":"'[7]F21 RAV rollforward & depn'!Z$10","v":170.25929832963212},{"$f":"'[7]F21 RAV rollforward & depn'!AA$10","v":202.87029761381021},{"$f":"'[7]F21 RAV rollforward & depn'!AB$10","v":225.82515191453138},{"$f":"[8]CRAV!AH$25","v":229.2489646160839},{"$f":"[8]CRAV!AI$25","v":228.62959826480326}]
[null,null,null,null,"LRAV",null,"£m 12/13 prices",null,null,null,null,null,null,null,null,null,null,null,null,null,null,null,null,null,null,null,null,null,null,null,null,null,null,{"$f":"AH32","v":-14.337476049238006},-35.546747329527982]
[null,null,null,null,"RIIO post-vesting RAV additions",null,"£m 12/13 prices"]
[null,null,null,null,"RIIO post-vesting RAV disposals",null,"£m 12/13 prices"]
[null,null,null,null,{"$f":"Input!E303","v":"Pre-RIIO transfers to depreciation"},null,"£m 12/13 prices",null,null,">"]
[]
[null,"Tax"]
[]
[null,null,"Tax policy"]
[]
[null,null,null,null,{"$f":"E33","v":"Tax liability allowance adjustments - gearing/interest costs"},null,"£m nominal",null,null,null,null,null,null,null,null,null,null,null,null,null,null,null,null,null,null,null,null,null,null,null,null,null,null,null,null,{"$f":"AJ33","v":0},0,0,0,0,0,0,0]
[null,null,null,null,{"$f":"E34","v":"Tax liability allowance adjustments - driven by tax trigger events"},null,"£m 12/13 prices",null,null,null,null,null,null,null,null,null,null,null,null,null,null,null,null,null,null,null,null,null,null,null,null,null,null,null,null,0,0,0,0,0,0,0,0]
[]
[null,null,null,null,"Corporation tax rate",null,"%",null,null,">",null,null,null,null,null,null,null,null,null,null,null,null,null,null,null,null,null,null,null,null,null,null,null,null,null,0.2,0.2,0.2,0.2,0.2,0.2,0.2,0.2]
[]
[null,null,null,null,"General pool capital allowance rate",null,"%",null,null,">",null,null,null,null,null,null,null,null,null,null,null,null,null,null,null,null,null,null,null,null,null,null,null,null,null,0.18000000000000002,0.18000000000000002,0.18000000000000002,0.18000000000000002,0.18000000000000002,0.18000000000000002,0.18000000000000002,0.18000000000000002]
[null,null,null,null,"Special Rates capital allowance rate",null,"%",null,null,">",null,null,null,null,null,null,null,null,null,null,null,null,null,null,null,null,null,null,null,null,null,null,null,null,null,0.08,0.08,0.08,0.08,0.08,0.08,0.08,0.08]
[null,null,null,null,"Deferred Revenue Expenditure capital allowance rate",null,"%",null,null,">",null,null,null,null,null,null,null,null,null,null,null,null,null,null,null,null,null,null,null,null,null,null,null,null,null,2.2200000000000001E-2,2.2200000000000001E-2,2.2200000000000001E-2,2.2200000000000001E-2,2.2200000000000001E-2,2.2200000000000001E-2,2.2200000000000001E-2,2.2200000000000001E-2]
[]
[null,null,"Capital allowances and tax losses"]
[]
[null,null,null,null,"General pool capital allowance opening balance brought forward",null,"£m nominal",null,null,null,null,null,null,null,null,null,null,null,null,null,null,null,null,null,null,null,null,null,null,null,null,null,null,{"$f":"'[7]F13 Tax CA pools'!$I$58","v":66.732148568000014}]
[null,null,null,null,"General pool capital allowance pre-RIIO movement forecast",null,"£m nominal",null,null,null,null,null,null,null,null,null,null,null,null,null,null,null,null,null,null,null,null,null,null,null,null,null,null,18.945370959555905,11.139095683941587]
[null,null,null,null,"General pool capital allowance pre-RIIO movement adjustment",null,"£m nominal",null,null,null,null,null,null,null,null,null,null,null,null,null,null,null,null,null,null,null,null,null,null,null,null,null,null,{"$f":"AH35","v":0},{"$f":"AI35","v":0}]
[]
[null,null,null,null,"Special Rate capital allowance opening balance brought forward",null,"£m nominal",null,null,null,null,null,null,null,null,null,null,null,null,null,null,null,null,null,null,null,null,null,null,null,null,null,null,{"$f":"'[7]F13 Tax CA pools'!$I$68","v":573.38456600409904}]
[null,null,null,null,"Special Rate  capital allowance pre-RIIO movement forecast",null,"£m nominal",null,null,null,null,null,null,null,null,null,null,null,null,null,null,null,null,null,null,null,null,null,null,null,null,null,null,34.795139911168611,15.304002594757804]
[null,null,null,null,"Special Rate  capital allowance pre-RIIO movement adjustment",null,"£m nominal",null,null,null,null,null,null,null,null,null,null,null,null,null,null,null,null,null,null,null,null,null,null,null,null,null,null,{"$f":"AH36","v":0},{"$f":"AI36","v":0}]
[]
[null,null,null,null,"Deferred revenue expenditure opening balance brought forward",null,"£m nominal",null,null,null,null,null,null,null,null,null,null,null,null,null,null,null,null,null,null,null,null,null,null,null,null,null,null,{"$f":"'[7]F13 Tax CA pools'!$I$78","v":572.60887327621242}]
[null,null,null,null,"Deferred revenue expenditure pre-RIIO movement forecast",null,"£m nominal",null,null,null,null,null,null,null,null,null,null,null,null,null,null,null,null,null,null,null,null,null,null,null,null,null,null,80.260041409026684,78.163319078447813]
[null,null,null,null,"Deferred revenue expenditure  pre-RIIO movement adjustment",null,"£m nominal",null,null,null,null,null,null,null,null,null,null,null,null,null,null,null,null,null,null,null,null,null,null,null,null,null,null,{"$f":"AH37","v":0},{"$f":"AI37","v":0}]
[]
[null,null,null,null,"DRE: Gross capex up to and including 31 March 2013",null,"£m nominal",null,null,null,null,null,null,null,null,null,null,null,null,null,null,null,null,null,null,null,null,null,null,null,null,null,null,615.35170300000004]
[null,null,null,null,"DRE: Gross capex forecast",null,"£m nominal",null,null,null,null,null,null,null,null,null,null,null,null,null,null,null,null,null,null,null,null,null,null,null,null,null,null,94.456199458190497,94.244364415930235]
[null,null,null,null,"DRE: Gross capex adjustment",null,"£m nominal",null,null,null,null,null,null,null,null,null,null,null,null,null,null,null,null,null,null,null,null,null,null,null,null,null,null,{"$f":"AH38","v":0},{"$f":"AI38","v":0}]
[]
[null,null,null,null,"Tax loss brought forward",null,"£m nominal",null,null,null,null,null,null,null,null,null,null,null,null,null,null,null,null,null,null,null,null,null,null,null,null,null,null,0]
[]
[null,null,"Tax pool allocation"]
[]
[null,null,null,{"$f":"Input!D340","v":"Tax Pool Allocation "}]
[]
[null,null,null,"Allocation to \"General\" pool"]
[]
[null,null,null,null,{"$f":"Input!E344","v":"Load Related"},null,"%",null,null,null,null,null,null,null,null,null,null,null,null,null,null,null,null,null,null,null,null,null,null,null,null,null,null,null,null,0,0,0,0,0,0,0,0]
[null,null,null,null,{"$f":"Input!E345","v":"Non-load related capex - asset replacement"},null,"%",null,null,null,null,null,null,null,null,null,null,null,null,null,null,null,null,null,null,null,null,null,null,null,null,null,null,null,null,4.0730292716901345E-2,4.6669265890934127E-2,5.233257267454141E-2,5.4750667180223957E-2,5.1811147742949523E-2,4.4993923843907914E-2,4.5816370702421873E-2,4.1063777826035042E-2]
[null,null,null,null,{"$f":"Input!E346","v":"Non-Load Related - other"},null,"%",null,null,null,null,null,null,null,null,null,null,null,null,null,null,null,null,null,null,null,null,null,null,null,null,null,null,null,null,0.97961137358781802,0.97566376129947729,0.95581695793432353,0.91420694237121725,0.98078401303188323,0.97624767858686268,0.95527596902633882,0.96599862415873916]
[null,null,null,null,{"$f":"Input!E347","v":"Faults"},null,"%",null,null,null,null,null,null,null,null,null,null,null,null,null,null,null,null,null,null,null,null,null,null,null,null,null,null,null,null,0,0,0,0,0,0,0,0]
[null,null,null,null,{"$f":"Input!E348","v":"Tree cutting"},null,"%",null,null,null,null,null,null,null,null,null,null,null,null,null,null,null,null,null,null,null,null,null,null,null,null,null,null,null,null,0,0,0,0,0,0,0,0]
[null,null,null,null,{"$f":"Input!E349","v":"Controllable Opex"},null,"%",null,null,null,null,null,null,null,null,null,null,null,null,null,null,null,null,null,null,null,null,null,null,null,null,null,null,null,null,6.3405394937228104E-2,6.2917316766063033E-2,6.2648763294806509E-2,6.2695654536707071E-2,6.3067993203268391E-2,6.3719425825976866E-2,6.5050016294848967E-2,6.5309929890996946E-2]
[]
[null,null,null,"Allocation to \"Special Rate\" pool"]
[]
[null,null,null,null,{"$f":"Input!E353","v":"Load Related"},null,"%",null,null,null,null,null,null,null,null,null,null,null,null,null,null,null,null,null,null,null,null,null,null,null,null,null,null,null,null,0.97526438315037156,0.97305557865971604,0.94460517746670269,0.9571313244386056,0.94920333143161306,0.96169100417266185,0.97073291973102105,0.96890846306010214]
[null,null,null,null,{"$f":"Input!E354","v":"Non-load related capex - asset replacement"},null,"%",null,null,null,null,null,null,null,null,null,null,null,null,null,null,null,null,null,null,null,null,null,null,null,null,null,null,null,null,0.32660591872316841,0.32239042677883123,0.32246944897836383,0.32356804159549579,0.31269552008452617,0.31400382879931288,0.30056501130924174,0.30251341557680927]
[null,null,null,null,{"$f":"Input!E355","v":"Non-Load Related - other"},null,"%",null,null,null,null,null,null,null,null,null,null,null,null,null,null,null,null,null,null,null,null,null,null,null,null,null,null,null,null,7.228973998440729E-3,1.271713558256714E-2,1.814607641116299E-2,1.9404004454016258E-2,9.600791013489306E-3,1.0037603459684945E-2,1.2413947056517841E-2,1.2309833118611389E-2]
[null,null,null,null,{"$f":"Input!E356","v":"Faults"},null,"%",null,null,null,null,null,null,null,null,null,null,null,null,null,null,null,null,null,null,null,null,null,null,null,null,null,null,null,null,0,0,0,0,0,0,0,0]
[null,null,null,null,{"$f":"Input!E357","v":"Tree cutting"},null,"%",null,null,null,null,null,null,null,null,null,null,null,null,null,null,null,null,null,null,null,null,null,null,null,null,null,null,null,null,0,0,0,0,0,0,0,0]
[null,null,null,null,{"$f":"Input!E358","v":"Controllable Opex"},null,"%",null,null,null,null,null,null,null,null,null,null,null,null,null,null,null,null,null,null,null,null,null,null,null,null,null,null,null,null,0.14297979763643054,0.14189392601081235,0.14129103540212679,0.14138751016061982,0.14221264406612805,0.1436784400743715,0.1466741966387847,0.14724459253487496]
[]
[null,null,null,"Allocation to \"Deferred Revenue\" pool"]
[]
[null,null,null,null,{"$f":"Input!E362","v":"Load Related"},null,"%",null,null,null,null,null,null,null,null,null,null,null,null,null,null,null,null,null,null,null,null,null,null,null,null,null,null,null,null,0,0,0,0,0,0,0,0]
[null,null,null,null,{"$f":"Input!E363","v":"Non-load related capex - asset replacement"},null,"%",null,null,null,null,null,null,null,null,null,null,null,null,null,null,null,null,null,null,null,null,null,null,null,null,null,null,null,null,0.53327117636723653,0.52896588621176921,0.53293668107960923,0.53999293165025863,0.55494063434572838,0.56035179474953956,0.57513915878035282,0.57887672700273984]
[null,null,null,null,{"$f":"Input!E364","v":"Non-Load Related - other"},null,"%",null,null,null,null,null,null,null,null,null,null,null,null,null,null,null,null,null,null,null,null,null,null,null,null,null,null,null,null,1.3654065793015284E-3,1.1995110773538149E-3,3.0534326826874526E-3,9.1323284536422213E-3,1.0700404216074965E-3,1.6285691619416275E-3,4.3707833450158618E-3,2.7337638720954173E-3]
[null,null,null,null,{"$f":"Input!E365","v":"Faults"},null,"%",null,null,null,null,null,null,null,null,null,null,null,null,null,null,null,null,null,null,null,null,null,null,null,null,null,null,null,null,0.72934857443560863,0.72974448165652839,0.73011372593088364,0.73101337575996672,0.73185793940818367,0.7328271495308305,0.73385427429840144,0.73515962336297802]
[null,null,null,null,{"$f":"Input!E366","v":"Tree cutting"},null,"%",null,null,null,null,null,null,null,null,null,null,null,null,null,null,null,null,null,null,null,null,null,null,null,null,null,null,null,null,0,0,0,0,0,0,0,0]
[null,null,null,null,{"$f":"Input!E367","v":"Controllable Opex"},null,"%",null,null,null,null,null,null,null,null,null,null,null,null,null,null,null,null,null,null,null,null,null,null,null,null,null,null,null,null,0.2337404527054234,0.23196435755499981,0.2309785932454573,0.23113689518621791,0.23248672541866813,0.23488318094915192,0.23978088276021159,0.24071434968208874]
[]
[null,null,null,"Allocation to \"Revenue\" pool"]
[]
[null,null,null,null,{"$f":"Input!E371","v":"Load Related"},null,"%",null,null,null,null,null,null,null,null,null,null,null,null,null,null,null,null,null,null,null,null,null,null,null,null,null,null,null,null,2.473561684962837E-2,2.6944421340283908E-2,5.539482253329734E-2,4.2868675561394426E-2,5.0796668568386882E-2,3.8308995827338259E-2,2.9267080268978996E-2,3.109153693989785E-2]
[null,null,null,null,{"$f":"Input!E372","v":"Non-load related capex - asset replacement"},null,"%",null,null,null,null,null,null,null,null,null,null,null,null,null,null,null,null,null,null,null,null,null,null,null,null,null,null,null,null,2.5651817815071812E-2,2.5090255693594521E-2,2.4853354090310992E-2,2.4104511075521123E-2,2.3349109345292191E-2,2.2105724978978343E-2,2.1371356555583164E-2,2.0130139540650731E-2]
[null,null,null,null,{"$f":"Input!E373","v":"Non-Load Related - other"},null,"%",null,null,null,null,null,null,null,null,null,null,null,null,null,null,null,null,null,null,null,null,null,null,null,null,null,null,null,null,3.6018063586305553E-3,3.2225255764789149E-3,4.6629368757012965E-3,2.4627539992708677E-3,2.12491300337495E-3,2.3147338198610434E-3,1.7146005020322104E-3,2.5551956179814816E-3]
[null,null,null,null,{"$f":"Input!E374","v":"Faults"},null,"%",null,null,null,null,null,null,null,null,null,null,null,null,null,null,null,null,null,null,null,null,null,null,null,null,null,null,null,null,0.27065142556439131,0.27025551834347161,0.26988627406911636,0.26898662424003345,0.26814206059181628,0.2671728504691695,0.26614572570159856,0.26484037663702192]
[null,null,null,null,{"$f":"Input!E375","v":"Tree cutting"},null,"%",null,null,null,null,null,null,null,null,null,null,null,null,null,null,null,null,null,null,null,null,null,null,null,null,null,null,null,null,1,1,1,1,1,1,1,1]
[null,null,null,null,{"$f":"Input!E376","v":"Controllable Opex"},null,"%",null,null,null,null,null,null,null,null,null,null,null,null,null,null,null,null,null,null,null,null,null,null,null,null,null,null,null,null,0.54619672465503555,0.5496478422790626,0.55156221078334755,0.55125307487200981,0.54862959323729976,0.54397629562609795,0.53446656939286585,0.53265121426393103]
[]
[null,null,null,"Allocation to \"Non Qualifying\" pool"]
[]
[null,null,null,null,{"$f":"Input!E380","v":"Load Related"},null,"%",null,null,null,null,null,null,null,null,null,null,null,null,null,null,null,null,null,null,null,null,null,null,null,null,null,null,null,null,0,0,0,0,0,0,0,0]
[null,null,null,null,{"$f":"Input!E381","v":"Non-load related capex - asset replacement"},null,"%",null,null,null,null,null,null,null,null,null,null,null,null,null,null,null,null,null,null,null,null,null,null,null,null,null,null,null,null,7.3740794377622015E-2,7.6884165424870934E-2,6.7407943177174565E-2,5.7583848498500602E-2,5.7203588481503732E-2,5.8544727628261274E-2,5.710810265240028E-2,5.7415940053764908E-2]
[null,null,null,null,{"$f":"Input!E382","v":"Non-Load Related - other"},null,"%",null,null,null,null,null,null,null,null,null,null,null,null,null,null,null,null,null,null,null,null,null,null,null,null,null,null,null,null,8.1924394758091691E-3,7.1970664641228888E-3,1.8320596096124714E-2,5.4793970721853325E-2,6.4202425296449785E-3,9.771414971649765E-3,2.6224700070095173E-2,1.6402583232572505E-2]
[null,null,null,null,{"$f":"Input!E383","v":"Faults"},null,"%",null,null,null,null,null,null,null,null,null,null,null,null,null,null,null,null,null,null,null,null,null,null,null,null,null,null,null,null,0,0,0,0,0,0,0,0]
[null,null,null,null,{"$f":"Input!E384","v":"Tree cutting"},null,"%",null,null,null,null,null,null,null,null,null,null,null,null,null,null,null,null,null,null,null,null,null,null,null,null,null,null,null,null,0,0,0,0,0,0,0,0]
[null,null,null,null,{"$f":"Input!E385","v":"Controllable Opex"},null,"%",null,null,null,null,null,null,null,null,null,null,null,null,null,null,null,null,null,null,null,null,null,null,null,null,null,null,null,null,1.3677630065882386E-2,1.3576557389062233E-2,1.3519397274261999E-2,1.3526865244445492E-2,1.3603044074635848E-2,1.3742657524401767E-2,1.4028334913288932E-2,1.4079913628108435E-2]
[]
[null,null,null,"Allocation check"]
[null,null,null,"Note: All categories should equal 100%"]
[]
[null,null,null,null,{"$f":"Input!E390","v":"Load Related"},null,"%",null,null,null,null,null,null,null,null,null,null,null,null,null,null,null,null,null,null,null,null,null,null,null,null,null,null,null,null,{"$f":"AJ344+AJ353+AJ362+AJ371+AJ380","v":0.99999999999999989},1,1,1,1,1,1,1]
[null,null,null,null,{"$f":"Input!E391","v":"Non-load related capex - asset replacement"},null,"%",null,null,null,null,null,null,null,null,null,null,null,null,null,null,null,null,null,null,null,null,null,null,null,null,null,null,null,null,1.0000000000000002,1,1,1,1,1,0.99999999999999989,0.99999999999999978]
[null,null,null,null,{"$f":"Input!E392","v":"Non-Load Related - other"},null,"%",null,null,null,null,null,null,null,null,null,null,null,null,null,null,null,null,null,null,null,null,null,null,null,null,null,null,null,null,1,1.0000000000000002,0.99999999999999989,0.99999999999999989,1,1,0.99999999999999989,0.99999999999999989]
[null,null,null,null,{"$f":"Input!E393","v":"Faults"},null,"%",null,null,null,null,null,null,null,null,null,null,null,null,null,null,null,null,null,null,null,null,null,null,null,null,null,null,null,null,1,1,1,1.0000000000000002,1,1,1,1]
[null,null,null,null,{"$f":"Input!E394","v":"Tree cutting"},null,"%",null,null,null,null,null,null,null,null,null,null,null,null,null,null,null,null,null,null,null,null,null,null,null,null,null,null,null,null,1,1,1,1,1,1,1,1]
[null,null,null,null,{"$f":"Input!E395","v":"Controllable Opex"},null,"%",null,null,null,null,null,null,null,null,null,null,null,null,null,null,null,null,null,null,null,null,null,null,null,null,null,null,null,null,1,1,1.0000000000000002,1.0000000000000002,1.0000000000000002,1,1,1]
[]
[null,null,null,"Inputs for statutory depreciation"]
[]
[null,null,null,null,"Statutory depreciation as per BPDT",null,"£m 12/13 prices",null,null,null,null,null,null,null,null,null,null,null,null,null,null,null,null,null,null,null,null,null,null,null,null,null,null,null,null,78.769518209841976,82.70455164684617,85.87973217233673,87.33761057325745,89.154175716483422,92.898091343113435,96.859584001268246,102.56657819254671]
[null,null,null,null,"Capex as per BPDT",null,"£m 12/13 prices",null,null,null,null,null,null,null,null,null,null,null,null,null,null,null,null,null,null,null,null,null,null,null,null,null,null,null,null,242.26674311302375,241.2286236547219,212.64525359114933,222.94100439913061,225.45648491984556,244.29957572219911,269.3189861672036,266.59857399609746]
[]
[]
[null,null,null,"Tax Trigger Deadbands"]
[]
[null,null,null,null,"Tax Trigger Deadband",null,"£m 12/13 prices"]
[]
[null,null,null,"Profiling Values"]
[]
[null,null,null,null,"Initial Profile Adjustment",null,"£m 12/13 prices",null,null,null,null,null,null,null,null,null,null,null,null,null,null,null,null,null,null,null,null,null,null,null,null,null,null,null,null,{"$f":"'Revenue Profiling'!AJ244*'Revenue Profiling'!$G$233","v":0},{"$f":"'Revenue Profiling'!AK244*'Revenue Profiling'!$G$233","v":0},{"$f":"'Revenue Profiling'!AL244*'Revenue Profiling'!$G$233","v":0},{"$f":"'Revenue Profiling'!AM244*'Revenue Profiling'!$G$233","v":0},{"$f":"'Revenue Profiling'!AN244*'Revenue Profiling'!$G$233","v":0},{"$f":"'Revenue Profiling'!AO244*'Revenue Profiling'!$G$233","v":0},{"$f":"'Revenue Profiling'!AP244*'Revenue Profiling'!$G$233","v":0},{"$f":"'Revenue Profiling'!AQ244*'Revenue Profiling'!$G$233","v":0}]
[null,null,null,null,"Time Value of Money Profile Adjustment",null,"£m 12/13 prices",null,null,null,null,null,null,null,null,null,null,null,null,null,null,null,null,null,null,null,null,null,null,null,null,null,null,null,null,{"$f":"'Revenue Profiling'!AJ261*'Revenue Profiling'!$G$233","v":0},{"$f":"'Revenue Profiling'!AK261*'Revenue Profiling'!$G$233","v":0},{"$f":"'Revenue Profiling'!AL261*'Revenue Profiling'!$G$233","v":0},{"$f":"'Revenue Profiling'!AM261*'Revenue Profiling'!$G$233","v":0},{"$f":"'Revenue Profiling'!AN261*'Revenue Profiling'!$G$233","v":0},{"$f":"'Revenue Profiling'!AO261*'Revenue Profiling'!$G$233","v":0},{"$f":"'Revenue Profiling'!AP261*'Revenue Profiling'!$G$233","v":0},{"$f":"'Revenue Profiling'!AQ261*'Revenue Profiling'!$G$233","v":0}]
[null,null,null,null,"Time Value of Money Profile Increment",null,"£m 12/13 prices",null,null,null,null,null,null,null,null,null,null,null,null,null,null,null,null,null,null,null,null,null,null,null,null,null,null,null,null,{"$f":"AJ423","v":0},{"$f":"AK423","v":0},0,0,0,0,0,0]
[]
[null,null,null,null,"Time Value of Money Increment Calculations:"]
[]
[null,null,null,null,"WACC at FP (to be hard pasted at FP)",null,null,null,null,null,null,null,null,null,null,null,null,null,null,null,null,null,null,null,null,null,null,null,null,null,null,null,null,null,null,{"$f":"AJ416","v":4.2429999999999995E-2},{"$f":"AK416","v":4.2429999999999995E-2},4.2429999999999995E-2,4.2429999999999995E-2,4.2429999999999995E-2,4.2429999999999995E-2,4.2429999999999995E-2,4.2429999999999995E-2]
[null,null,null,null,"Current WACC",null,null,null,null,null,null,null,null,null,null,null,null,null,null,null,null,null,null,null,null,null,null,null,null,null,null,null,null,null,null,{"$f":"AJ48","v":4.2429999999999995E-2},{"$f":"AK48","v":4.2429999999999995E-2},4.2429999999999995E-2,4.2429999999999995E-2,4.2429999999999995E-2,4.2429999999999995E-2,4.2429999999999995E-2,4.2429999999999995E-2]
[]
[null,null,null,null,"IOU Account"]
[null,null,null,null,"Opening",null,null,null,null,null,null,null,null,null,null,null,null,null,null,null,null,null,null,null,null,null,null,null,null,null,null,null,null,null,null,1.0000000000000001E-9,1.0000000000000001E-9,1.0000000000000001E-9,1.0000000000000001E-9,1.0000000000000001E-9,1.0000000000000001E-9,1.0000000000000001E-9,1.0000000000000001E-9]
[null,null,null,null,"Profiling Impact on Actual Revenues"]
[null,null,null,null,"Closing balance"]
[]
[null,null,null,null,"Time Value of Money Increment",null,null,null,null,null,null,null,null,null,null,null,null,null,null,null,null,null,null,null,null,null,null,null,null,null,null,null,null,null,null,{"$f":"AVERAGE(AJ419,AJ421)*(AJ416-AJ415)","v":0},{"$f":"AVERAGE(AK419,AK421)*(AK416-AK415)","v":0},0,0,0,0,0,0]

{"sheet":"SWALES","index":27,"n_rows":423,"n_cols":43,"rows_kept":423,"cut":false,"hidden":false,"merged":[]}
["Input"]
[null,"SWALES"]
[null,"WPD SWales"]
[null,"WPD SWales"]
[null,"WPD S Wales"]
[null,null,null,null,"Parameter","Licence condition","Units","Term","Constant",null,null,null,null,null,null,null,null,null,null,null,null,null,null,null,null,null,null,null,null,null,null,null,null,null,null,"Annual values"]
[null,null,null,null,"PCFM year ending",{"$f":"Cover!C3","v":"LiMo ED C1.93b_WPD_DNO East Mids.xlsm"},null,null,{"$f":"UserInterface!$G$17","v":"2016-03-31"},null,"1991-03-31","1992-03-31","1993-03-31","1994-03-31","1995-03-31","1996-03-31","1997-03-31","1998-03-31","1999-03-31","2000-03-31","2001-03-31","2002-03-31","2003-03-31","2004-03-31","2005-03-31","2006-03-31","2007-03-31","2008-03-31","2009-03-31","2010-03-31","2011-03-31","2012-03-31","2013-03-31","2014-03-31","2015-03-31","2016-03-31","2017-03-31","2018-03-31","2019-03-31","2020-03-31","2021-03-31","2022-03-31","2023-03-31"]
[]
[null,"PCFM Variable Values Table"]
[]
[null,null,null,null,{"$f":"Input!E11","v":"Allowed percentage cost of debt"},{"$f":"Input!F11","v":"XX"},{"$f":"Input!G11","v":"annual real %"},{"$f":"Input!H11","v":"YY"},null,null,null,null,null,null,null,null,null,null,null,null,null,null,null,null,null,null,null,null,null,null,null,null,null,null,null,2.92E-2,2.92E-2,2.92E-2,2.92E-2,2.92E-2,2.92E-2,2.92E-2,2.92E-2]
[null,null,null,null,{"$f":"Input!E12","v":"Actual load related capex"},{"$f":"Input!F12","v":"XX"},{"$f":"Input!G12","v":"£m 12/13 prices"},{"$f":"Input!H12","v":"YY"}]
[null,null,null,null,{"$f":"Input!E13","v":"Actual non-load related capex - asset replacement"},{"$f":"Input!F13","v":"XX"},{"$f":"Input!G13","v":"£m 12/13 prices"},{"$f":"Input!H13","v":"YY"}]
[null,null,null,null,{"$f":"Input!E14","v":"Actual non-load related capex - other"},{"$f":"Input!F14","v":"XX"},{"$f":"Input!G14","v":"£m 12/13 prices"},{"$f":"Input!H14","v":"YY"}]
[null,null,null,null,{"$f":"Input!E15","v":"Actual faults"},{"$f":"Input!F15","v":"XX"},{"$f":"Input!G15","v":"£m 12/13 prices"},{"$f":"Input!H15","v":"YY"}]
[null,null,null,null,{"$f":"Input!E16","v":"Actual tree cutting"},{"$f":"Input!F16","v":"XX"},{"$f":"Input!G16","v":"£m 12/13 prices"},{"$f":"Input!H16","v":"YY"}]
[null,null,null,null,{"$f":"Input!E17","v":"Actual controllable opex"},{"$f":"Input!F17","v":"XX"},{"$f":"Input!G17","v":"£m 12/13 prices"},{"$f":"Input!H17","v":"YY"}]
[null,null,null,null,{"$f":"Input!E18","v":"Allowed uncertain costs (CNI)"},{"$f":"Input!F18","v":"XX"},{"$f":"Input!G18","v":"£m 12/13 prices"},{"$f":"Input!H18","v":"YY"},null,null,null,null,null,null,null,null,null,null,null,null,null,null,null,null,null,null,null,null,null,null,null,null,null,null,null,{"$f":"CHOOSE(view,\n'[9]M1a - Model inputs'!L34+'[9]M1a - Model inputs'!L71,\n'[9]M1b - Model inputs'!L34+'[9]M1b - Model inputs'!L71,\n'[9]SM1 - DECC Scenario 3 equiv'!L34+'[9]SM1 - DECC Scenario 3 equiv'!L71,\n'[9]SM2 - DECC Scenario 1 equiv'!L34+'[9]SM2 - DECC Scenario 1 equiv'!L71,\n'[9]SM3 - DECC Scenario 2 equiv'!L34+'[9]SM3 - DECC Scenario 2 equiv'!L71,\n'[9]SM4 - DNO Scenario 4 equiv'!L34+'[9]SM4 - DNO Scenario 4 equiv'!L71,\n'[10]M1a - Model inputs'!L34+'[9]M1a - Model inputs'!L71,\n'[10]M1b - Model inputs'!L34+'[9]M1b - Model inputs'!L71,\n'[10]SM1 - DECC Scenario 3 equiv'!L34+'[9]SM1 - DECC Scenario 3 equiv'!L71,\n'[10]SM2 - DECC Scenario 1 equiv'!L34+'[9]SM2 - DECC Scenario 1 equiv'!L71,\n'[10]SM3 - DECC Scenario 2 equiv'!L34+'[9]SM3 - DECC Scenario 2 equiv'!L71,\n'[10]SM4 - DNO Scenario 4 equiv'!L34+'[9]SM4 - DNO Scenario 4 equiv'!L71)","v":0},{"$f":"CHOOSE(view,\n'[9]M1a - Model inputs'!M34+'[9]M1a - Model inputs'!M71,\n'[9]M1b - Model inputs'!M34+'[9]M1b - Model inputs'!M71,\n'[9]SM1 - DECC Scenario 3 equiv'!M34+'[9]SM1 - DECC Scenario 3 equiv'!M71,\n'[9]SM2 - DECC Scenario 1 equiv'!M34+'[9]SM2 - DECC Scenario 1 equiv'!M71,\n'[9]SM3 - DECC Scenario 2 equiv'!M34+'[9]SM3 - DECC Scenario 2 equiv'!M71,\n'[9]SM4 - DNO Scenario 4 equiv'!M34+'[9]SM4 - DNO Scenario 4 equiv'!M71,\n'[10]M1a - Model inputs'!M34+'[9]M1a - Model inputs'!M71,\n'[10]M1b - Model inputs'!M34+'[9]M1b - Model inputs'!M71,\n'[10]SM1 - DECC Scenario 3 equiv'!M34+'[9]SM1 - DECC Scenario 3 equiv'!M71,\n'[10]SM2 - DECC Scenario 1 equiv'!M34+'[9]SM2 - DECC Scenario 1 equiv'!M71,\n'[10]SM3 - DECC Scenario 2 equiv'!M34+'[9]SM3 - DECC Scenario 2 equiv'!M71,\n'[10]SM4 - DNO Scenario 4 equiv'!M34+'[9]SM4 - DNO Scenario 4 equiv'!M71)","v":0},{"$f":"CHOOSE(view,\n'[9]M1a - Model inputs'!N34+'[9]M1a - Model inputs'!N71,\n'[9]M1b - Model inputs'!N34+'[9]M1b - Model inputs'!N71,\n'[9]SM1 - DECC Scenario 3 equiv'!N34+'[9]SM1 - DECC Scenario 3 equiv'!N71,\n'[9]SM2 - DECC Scenario 1 equiv'!N34+'[9]SM2 - DECC Scenario 1 equiv'!N71,\n'[9]SM3 - DECC Scenario 2 equiv'!N34+'[9]SM3 - DECC Scenario 2 equiv'!N71,\n'[9]SM4 - DNO Scenario 4 equiv'!N34+'[9]SM4 - DNO Scenario 4 equiv'!N71,\n'[10]M1a - Model inputs'!N34+'[9]M1a - Model inputs'!N71,\n'[10]M1b - Model inputs'!N34+'[9]M1b - Model inputs'!N71,\n'[10]SM1 - DECC Scenario 3 equiv'!N34+'[9]SM1 - DECC Scenario 3 equiv'!N71,\n'[10]SM2 - DECC Scenario 1 equiv'!N34+'[9]SM2 - DECC Scenario 1 equiv'!N71,\n'[10]SM3 - DECC Scenario 2 equiv'!N34+'[9]SM3 - DECC Scenario 2 equiv'!N71,\n'[10]SM4 - DNO Scenario 4 equiv'!N34+'[9]SM4 - DNO Scenario 4 equiv'!N71)","v":0},{"$f":"CHOOSE(view,\n'[9]M1a - Model inputs'!O34+'[9]M1a - Model inputs'!O71,\n'[9]M1b - Model inputs'!O34+'[9]M1b - Model inputs'!O71,\n'[9]SM1 - DECC Scenario 3 equiv'!O34+'[9]SM1 - DECC Scenario 3 equiv'!O71,\n'[9]SM2 - DECC Scenario 1 equiv'!O34+'[9]SM2 - DECC Scenario 1 equiv'!O71,\n'[9]SM3 - DECC Scenario 2 equiv'!O34+'[9]SM3 - DECC Scenario 2 equiv'!O71,\n'[9]SM4 - DNO Scenario 4 equiv'!O34+'[9]SM4 - DNO Scenario 4 equiv'!O71,\n'[10]M1a - Model inputs'!O34+'[9]M1a - Model inputs'!O71,\n'[10]M1b - Model inputs'!O34+'[9]M1b - Model inputs'!O71,\n'[10]SM1 - DECC Scenario 3 equiv'!O34+'[9]SM1 - DECC Scenario 3 equiv'!O71,\n'[10]SM2 - DECC Scenario 1 equiv'!O34+'[9]SM2 - DECC Scenario 1 equiv'!O71,\n'[10]SM3 - DECC Scenario 2 equiv'!O34+'[9]SM3 - DECC Scenario 2 equiv'!O71,\n'[10]SM4 - DNO Scenario 4 equiv'!O34+'[9]SM4 - DNO Scenario 4 equiv'!O71)","v":0},{"$f":"CHOOSE(view,\n'[9]M1a - Model inputs'!P34+'[9]M1a - Model inputs'!P71,\n'[9]M1b - Model inputs'!P34+'[9]M1b - Model inputs'!P71,\n'[9]SM1 - DECC Scenario 3 equiv'!P34+'[9]SM1 - DECC Scenario 3 equiv'!P71,\n'[9]SM2 - DECC Scenario 1 equiv'!P34+'[9]SM2 - DECC Scenario 1 equiv'!P71,\n'[9]SM3 - DECC Scenario 2 equiv'!P34+'[9]SM3 - DECC Scenario 2 equiv'!P71,\n'[9]SM4 - DNO Scenario 4 equiv'!P34+'[9]SM4 - DNO Scenario 4 equiv'!P71,\n'[10]M1a - Model inputs'!P34+'[9]M1a - Model inputs'!P71,\n'[10]M1b - Model inputs'!P34+'[9]M1b - Model inputs'!P71,\n'[10]SM1 - DECC Scenario 3 equiv'!P34+'[9]SM1 - DECC Scenario 3 equiv'!P71,\n'[10]SM2 - DECC Scenario 1 equiv'!P34+'[9]SM2 - DECC Scenario 1 equiv'!P71,\n'[10]SM3 - DECC Scenario 2 equiv'!P34+'[9]SM3 - DECC Scenario 2 equiv'!P71,\n'[10]SM4 - DNO Scenario 4 equiv'!P34+'[9]SM4 - DNO Scenario 4 equiv'!P71)","v":0},{"$f":"CHOOSE(view,\n'[9]M1a - Model inputs'!Q34+'[9]M1a - Model inputs'!Q71,\n'[9]M1b - Model inputs'!Q34+'[9]M1b - Model inputs'!Q71,\n'[9]SM1 - DECC Scenario 3 equiv'!Q34+'[9]SM1 - DECC Scenario 3 equiv'!Q71,\n'[9]SM2 - DECC Scenario 1 equiv'!Q34+'[9]SM2 - DECC Scenario 1 equiv'!Q71,\n'[9]SM3 - DECC Scenario 2 equiv'!Q34+'[9]SM3 - DECC Scenario 2 equiv'!Q71,\n'[9]SM4 - DNO Scenario 4 equiv'!Q34+'[9]SM4 - DNO Scenario 4 equiv'!Q71,\n'[10]M1a - Model inputs'!Q34+'[9]M1a - Model inputs'!Q71,\n'[10]M1b - Model inputs'!Q34+'[9]M1b - Model inputs'!Q71,\n'[10]SM1 - DECC Scenario 3 equiv'!Q34+'[9]SM1 - DECC Scenario 3 equiv'!Q71,\n'[10]SM2 - DECC Scenario 1 equiv'!Q34+'[9]SM2 - DECC Scenario 1 equiv'!Q71,\n'[10]SM3 - DECC Scenario 2 equiv'!Q34+'[9]SM3 - DECC Scenario 2 equiv'!Q71,\n'[10]SM4 - DNO Scenario 4 equiv'!Q34+'[9]SM4 - DNO Scenario 4 equiv'!Q71)","v":0},{"$f":"CHOOSE(view,\n'[9]M1a - Model inputs'!R34+'[9]M1a - Model inputs'!R71,\n'[9]M1b - Model inputs'!R34+'[9]M1b - Model inputs'!R71,\n'[9]SM1 - DECC Scenario 3 equiv'!R34+'[9]SM1 - DECC Scenario 3 equiv'!R71,\n'[9]SM2 - DECC Scenario 1 equiv'!R34+'[9]SM2 - DECC Scenario 1 equiv'!R71,\n'[9]SM3 - DECC Scenario 2 equiv'!R34+'[9]SM3 - DECC Scenario 2 equiv'!R71,\n'[9]SM4 - DNO Scenario 4 equiv'!R34+'[9]SM4 - DNO Scenario 4 equiv'!R71,\n'[10]M1a - Model inputs'!R34+'[9]M1a - Model inputs'!R71,\n'[10]M1b - Model inputs'!R34+'[9]M1b - Model inputs'!R71,\n'[10]SM1 - DECC Scenario 3 equiv'!R34+'[9]SM1 - DECC Scenario 3 equiv'!R71,\n'[10]SM2 - DECC Scenario 1 equiv'!R34+'[9]SM2 - DECC Scenario 1 equiv'!R71,\n'[10]SM3 - DECC Scenario 2 equiv'!R34+'[9]SM3 - DECC Scenario 2 equiv'!R71,\n'[10]SM4 - DNO Scenario 4 equiv'!R34+'[9]SM4 - DNO Scenario 4 equiv'!R71)","v":0},{"$f":"CHOOSE(view,\n'[9]M1a - Model inputs'!S34+'[9]M1a - Model inputs'!S71,\n'[9]M1b - Model inputs'!S34+'[9]M1b - Model inputs'!S71,\n'[9]SM1 - DECC Scenario 3 equiv'!S34+'[9]SM1 - DECC Scenario 3 equiv'!S71,\n'[9]SM2 - DECC Scenario 1 equiv'!S34+'[9]SM2 - DECC Scenario 1 equiv'!S71,\n'[9]SM3 - DECC Scenario 2 equiv'!S34+'[9]SM3 - DECC Scenario 2 equiv'!S71,\n'[9]SM4 - DNO Scenario 4 equiv'!S34+'[9]SM4 - DNO Scenario 4 equiv'!S71,\n'[10]M1a - Model inputs'!S34+'[9]M1a - Model inputs'!S71,\n'[10]M1b - Model inputs'!S34+'[9]M1b - Model inputs'!S71,\n'[10]SM1 - DECC Scenario 3 equiv'!S34+'[9]SM1 - DECC Scenario 3 equiv'!S71,\n'[10]SM2 - DECC Scenario 1 equiv'!S34+'[9]SM2 - DECC Scenario 1 equiv'!S71,\n'[10]SM3 - DECC Scenario 2 equiv'!S34+'[9]SM3 - DECC Scenario 2 equiv'!S71,\n'[10]SM4 - DNO Scenario 4 equiv'!S34+'[9]SM4 - DNO Scenario 4 equiv'!S71)","v":0}]
[null,null,null,null,{"$f":"Input!E19","v":"Allowed uncertain costs (High Value Projects)"},{"$f":"Input!F19","v":"XX"},{"$f":"Input!G19","v":"£m 12/13 prices"},{"$f":"Input!H19","v":"YY"},null,null,null,null,null,null,null,null,null,null,null,null,null,null,null,null,null,null,null,null,null,null,null,null,null,null,null,{"$f":"CHOOSE(view,\nSUM('[9]M1a - Model inputs'!L37:L40)+SUM('[9]M1a - Model inputs'!L74:L77),\nSUM('[9]M1b - Model inputs'!L37:L40)+SUM('[9]M1b - Model inputs'!L74:L77),\nSUM('[9]SM1 - DECC Scenario 3 equiv'!L37:L40)+SUM('[9]SM1 - DECC Scenario 3 equiv'!L74:L77),\nSUM('[9]SM2 - DECC Scenario 1 equiv'!L37:L40)+SUM('[9]SM2 - DECC Scenario 1 equiv'!L74:L77),\nSUM('[9]SM3 - DECC Scenario 2 equiv'!L37:L40)+SUM('[9]SM3 - DECC Scenario 2 equiv'!L74:L77),\nSUM('[9]SM4 - DNO Scenario 4 equiv'!L37:L40)+SUM('[9]SM4 - DNO Scenario 4 equiv'!L74:L77),\nSUM('[10]M1a - Model inputs'!L37:L40)+SUM('[10]M1a - Model inputs'!L74:L77),\nSUM('[10]M1b - Model inputs'!L37:L40)+SUM('[10]M1b - Model inputs'!L74:L77),\nSUM('[10]SM1 - DECC Scenario 3 equiv'!L37:L40)+SUM('[10]SM1 - DECC Scenario 3 equiv'!L74:L77),\nSUM('[10]SM2 - DECC Scenario 1 equiv'!L37:L40)+SUM('[10]SM2 - DECC Scenario 1 equiv'!L74:L77),\nSUM('[10]SM3 - DECC Scenario 2 equiv'!L37:L40)+SUM('[10]SM3 - DECC Scenario 2 equiv'!L74:L77),\nSUM('[10]SM4 - DNO Scenario 4 equiv'!L37:L40)+SUM('[10]SM4 - DNO Scenario 4 equiv'!L74:L77))","v":0},{"$f":"CHOOSE(view,\nSUM('[9]M1a - Model inputs'!M37:M40)+SUM('[9]M1a - Model inputs'!M74:M77),\nSUM('[9]M1b - Model inputs'!M37:M40)+SUM('[9]M1b - Model inputs'!M74:M77),\nSUM('[9]SM1 - DECC Scenario 3 equiv'!M37:M40)+SUM('[9]SM1 - DECC Scenario 3 equiv'!M74:M77),\nSUM('[9]SM2 - DECC Scenario 1 equiv'!M37:M40)+SUM('[9]SM2 - DECC Scenario 1 equiv'!M74:M77),\nSUM('[9]SM3 - DECC Scenario 2 equiv'!M37:M40)+SUM('[9]SM3 - DECC Scenario 2 equiv'!M74:M77),\nSUM('[9]SM4 - DNO Scenario 4 equiv'!M37:M40)+SUM('[9]SM4 - DNO Scenario 4 equiv'!M74:M77),\nSUM('[10]M1a - Model inputs'!M37:M40)+SUM('[10]M1a - Model inputs'!M74:M77),\nSUM('[10]M1b - Model inputs'!M37:M40)+SUM('[10]M1b - Model inputs'!M74:M77),\nSUM('[10]SM1 - DECC Scenario 3 equiv'!M37:M40)+SUM('[10]SM1 - DECC Scenario 3 equiv'!M74:M77),\nSUM('[10]SM2 - DECC Scenario 1 equiv'!M37:M40)+SUM('[10]SM2 - DECC Scenario 1 equiv'!M74:M77),\nSUM('[10]SM3 - DECC Scenario 2 equiv'!M37:M40)+SUM('[10]SM3 - DECC Scenario 2 equiv'!M74:M77),\nSUM('[10]SM4 - DNO Scenario 4 equiv'!M37:M40)+SUM('[10]SM4 - DNO Scenario 4 equiv'!M74:M77))","v":0},{"$f":"CHOOSE(view,\nSUM('[9]M1a - Model inputs'!N37:N40)+SUM('[9]M1a - Model inputs'!N74:N77),\nSUM('[9]M1b - Model inputs'!N37:N40)+SUM('[9]M1b - Model inputs'!N74:N77),\nSUM('[9]SM1 - DECC Scenario 3 equiv'!N37:N40)+SUM('[9]SM1 - DECC Scenario 3 equiv'!N74:N77),\nSUM('[9]SM2 - DECC Scenario 1 equiv'!N37:N40)+SUM('[9]SM2 - DECC Scenario 1 equiv'!N74:N77),\nSUM('[9]SM3 - DECC Scenario 2 equiv'!N37:N40)+SUM('[9]SM3 - DECC Scenario 2 equiv'!N74:N77),\nSUM('[9]SM4 - DNO Scenario 4 equiv'!N37:N40)+SUM('[9]SM4 - DNO Scenario 4 equiv'!N74:N77),\nSUM('[10]M1a - Model inputs'!N37:N40)+SUM('[10]M1a - Model inputs'!N74:N77),\nSUM('[10]M1b - Model inputs'!N37:N40)+SUM('[10]M1b - Model inputs'!N74:N77),\nSUM('[10]SM1 - DECC Scenario 3 equiv'!N37:N40)+SUM('[10]SM1 - DECC Scenario 3 equiv'!N74:N77),\nSUM('[10]SM2 - DECC Scenario 1 equiv'!N37:N40)+SUM('[10]SM2 - DECC Scenario 1 equiv'!N74:N77),\nSUM('[10]SM3 - DECC Scenario 2 equiv'!N37:N40)+SUM('[10]SM3 - DECC Scenario 2 equiv'!N74:N77),\nSUM('[10]SM4 - DNO Scenario 4 equiv'!N37:N40)+SUM('[10]SM4 - DNO Scenario 4 equiv'!N74:N77))","v":0},{"$f":"CHOOSE(view,\nSUM('[9]M1a - Model inputs'!O37:O40)+SUM('[9]M1a - Model inputs'!O74:O77),\nSUM('[9]M1b - Model inputs'!O37:O40)+SUM('[9]M1b - Model inputs'!O74:O77),\nSUM('[9]SM1 - DECC Scenario 3 equiv'!O37:O40)+SUM('[9]SM1 - DECC Scenario 3 equiv'!O74:O77),\nSUM('[9]SM2 - DECC Scenario 1 equiv'!O37:O40)+SUM('[9]SM2 - DECC Scenario 1 equiv'!O74:O77),\nSUM('[9]SM3 - DECC Scenario 2 equiv'!O37:O40)+SUM('[9]SM3 - DECC Scenario 2 equiv'!O74:O77),\nSUM('[9]SM4 - DNO Scenario 4 equiv'!O37:O40)+SUM('[9]SM4 - DNO Scenario 4 equiv'!O74:O77),\nSUM('[10]M1a - Model inputs'!O37:O40)+SUM('[10]M1a - Model inputs'!O74:O77),\nSUM('[10]M1b - Model inputs'!O37:O40)+SUM('[10]M1b - Model inputs'!O74:O77),\nSUM('[10]SM1 - DECC Scenario 3 equiv'!O37:O40)+SUM('[10]SM1 - DECC Scenario 3 equiv'!O74:O77),\nSUM('[10]SM2 - DECC Scenario 1 equiv'!O37:O40)+SUM('[10]SM2 - DECC Scenario 1 equiv'!O74:O77),\nSUM('[10]SM3 - DECC Scenario 2 equiv'!O37:O40)+SUM('[10]SM3 - DECC Scenario 2 equiv'!O74:O77),\nSUM('[10]SM4 - DNO Scenario 4 equiv'!O37:O40)+SUM('[10]SM4 - DNO Scenario 4 equiv'!O74:O77))","v":0},{"$f":"CHOOSE(view,\nSUM('[9]M1a - Model inputs'!P37:P40)+SUM('[9]M1a - Model inputs'!P74:P77),\nSUM('[9]M1b - Model inputs'!P37:P40)+SUM('[9]M1b - Model inputs'!P74:P77),\nSUM('[9]SM1 - DECC Scenario 3 equiv'!P37:P40)+SUM('[9]SM1 - DECC Scenario 3 equiv'!P74:P77),\nSUM('[9]SM2 - DECC Scenario 1 equiv'!P37:P40)+SUM('[9]SM2 - DECC Scenario 1 equiv'!P74:P77),\nSUM('[9]SM3 - DECC Scenario 2 equiv'!P37:P40)+SUM('[9]SM3 - DECC Scenario 2 equiv'!P74:P77),\nSUM('[9]SM4 - DNO Scenario 4 equiv'!P37:P40)+SUM('[9]SM4 - DNO Scenario 4 equiv'!P74:P77),\nSUM('[10]M1a - Model inputs'!P37:P40)+SUM('[10]M1a - Model inputs'!P74:P77),\nSUM('[10]M1b - Model inputs'!P37:P40)+SUM('[10]M1b - Model inputs'!P74:P77),\nSUM('[10]SM1 - DECC Scenario 3 equiv'!P37:P40)+SUM('[10]SM1 - DECC Scenario 3 equiv'!P74:P77),\nSUM('[10]SM2 - DECC Scenario 1 equiv'!P37:P40)+SUM('[10]SM2 - DECC Scenario 1 equiv'!P74:P77),\nSUM('[10]SM3 - DECC Scenario 2 equiv'!P37:P40)+SUM('[10]SM3 - DECC Scenario 2 equiv'!P74:P77),\nSUM('[10]SM4 - DNO Scenario 4 equiv'!P37:P40)+SUM('[10]SM4 - DNO Scenario 4 equiv'!P74:P77))","v":0},{"$f":"CHOOSE(view,\nSUM('[9]M1a - Model inputs'!Q37:Q40)+SUM('[9]M1a - Model inputs'!Q74:Q77),\nSUM('[9]M1b - Model inputs'!Q37:Q40)+SUM('[9]M1b - Model inputs'!Q74:Q77),\nSUM('[9]SM1 - DECC Scenario 3 equiv'!Q37:Q40)+SUM('[9]SM1 - DECC Scenario 3 equiv'!Q74:Q77),\nSUM('[9]SM2 - DECC Scenario 1 equiv'!Q37:Q40)+SUM('[9]SM2 - DECC Scenario 1 equiv'!Q74:Q77),\nSUM('[9]SM3 - DECC Scenario 2 equiv'!Q37:Q40)+SUM('[9]SM3 - DECC Scenario 2 equiv'!Q74:Q77),\nSUM('[9]SM4 - DNO Scenario 4 equiv'!Q37:Q40)+SUM('[9]SM4 - DNO Scenario 4 equiv'!Q74:Q77),\nSUM('[10]M1a - Model inputs'!Q37:Q40)+SUM('[10]M1a - Model inputs'!Q74:Q77),\nSUM('[10]M1b - Model inputs'!Q37:Q40)+SUM('[10]M1b - Model inputs'!Q74:Q77),\nSUM('[10]SM1 - DECC Scenario 3 equiv'!Q37:Q40)+SUM('[10]SM1 - DECC Scenario 3 equiv'!Q74:Q77),\nSUM('[10]SM2 - DECC Scenario 1 equiv'!Q37:Q40)+SUM('[10]SM2 - DECC Scenario 1 equiv'!Q74:Q77),\nSUM('[10]SM3 - DECC Scenario 2 equiv'!Q37:Q40)+SUM('[10]SM3 - DECC Scenario 2 equiv'!Q74:Q77),\nSUM('[10]SM4 - DNO Scenario 4 equiv'!Q37:Q40)+SUM('[10]SM4 - DNO Scenario 4 equiv'!Q74:Q77))","v":0},{"$f":"CHOOSE(view,\nSUM('[9]M1a - Model inputs'!R37:R40)+SUM('[9]M1a - Model inputs'!R74:R77),\nSUM('[9]M1b - Model inputs'!R37:R40)+SUM('[9]M1b - Model inputs'!R74:R77),\nSUM('[9]SM1 - DECC Scenario 3 equiv'!R37:R40)+SUM('[9]SM1 - DECC Scenario 3 equiv'!R74:R77),\nSUM('[9]SM2 - DECC Scenario 1 equiv'!R37:R40)+SUM('[9]SM2 - DECC Scenario 1 equiv'!R74:R77),\nSUM('[9]SM3 - DECC Scenario 2 equiv'!R37:R40)+SUM('[9]SM3 - DECC Scenario 2 equiv'!R74:R77),\nSUM('[9]SM4 - DNO Scenario 4 equiv'!R37:R40)+SUM('[9]SM4 - DNO Scenario 4 equiv'!R74:R77),\nSUM('[10]M1a - Model inputs'!R37:R40)+SUM('[10]M1a - Model inputs'!R74:R77),\nSUM('[10]M1b - Model inputs'!R37:R40)+SUM('[10]M1b - Model inputs'!R74:R77),\nSUM('[10]SM1 - DECC Scenario 3 equiv'!R37:R40)+SUM('[10]SM1 - DECC Scenario 3 equiv'!R74:R77),\nSUM('[10]SM2 - DECC Scenario 1 equiv'!R37:R40)+SUM('[10]SM2 - DECC Scenario 1 equiv'!R74:R77),\nSUM('[10]SM3 - DECC Scenario 2 equiv'!R37:R40)+SUM('[10]SM3 - DECC Scenario 2 equiv'!R74:R77),\nSUM('[10]SM4 - DNO Scenario 4 equiv'!R37:R40)+SUM('[10]SM4 - DNO Scenario 4 equiv'!R74:R77))","v":0},{"$f":"CHOOSE(view,\nSUM('[9]M1a - Model inputs'!S37:S40)+SUM('[9]M1a - Model inputs'!S74:S77),\nSUM('[9]M1b - Model inputs'!S37:S40)+SUM('[9]M1b - Model inputs'!S74:S77),\nSUM('[9]SM1 - DECC Scenario 3 equiv'!S37:S40)+SUM('[9]SM1 - DECC Scenario 3 equiv'!S74:S77),\nSUM('[9]SM2 - DECC Scenario 1 equiv'!S37:S40)+SUM('[9]SM2 - DECC Scenario 1 equiv'!S74:S77),\nSUM('[9]SM3 - DECC Scenario 2 equiv'!S37:S40)+SUM('[9]SM3 - DECC Scenario 2 equiv'!S74:S77),\nSUM('[9]SM4 - DNO Scenario 4 equiv'!S37:S40)+SUM('[9]SM4 - DNO Scenario 4 equiv'!S74:S77),\nSUM('[10]M1a - Model inputs'!S37:S40)+SUM('[10]M1a - Model inputs'!S74:S77),\nSUM('[10]M1b - Model inputs'!S37:S40)+SUM('[10]M1b - Model inputs'!S74:S77),\nSUM('[10]SM1 - DECC Scenario 3 equiv'!S37:S40)+SUM('[10]SM1 - DECC Scenario 3 equiv'!S74:S77),\nSUM('[10]SM2 - DECC Scenario 1 equiv'!S37:S40)+SUM('[10]SM2 - DECC Scenario 1 equiv'!S74:S77),\nSUM('[10]SM3 - DECC Scenario 2 equiv'!S37:S40)+SUM('[10]SM3 - DECC Scenario 2 equiv'!S74:S77),\nSUM('[10]SM4 - DNO Scenario 4 equiv'!S37:S40)+SUM('[10]SM4 - DNO Scenario 4 equiv'!S74:S77))","v":0}]
[null,null,null,null,{"$f":"Input!E20","v":"Allowed uncertain costs (Undergrounding)"},{"$f":"Input!F20","v":"XX"},{"$f":"Input!G20","v":"£m 12/13 prices"},{"$f":"Input!H20","v":"YY"},null,null,null,null,null,null,null,null,null,null,null,null,null,null,null,null,null,null,null,null,null,null,null,null,null,null,null,{"$f":"CHOOSE(view,\n'[9]M1a - Model inputs'!L43+'[9]M1a - Model inputs'!L80,\n'[9]M1b - Model inputs'!L43+'[9]M1b - Model inputs'!L80,\n'[9]SM1 - DECC Scenario 3 equiv'!L43+'[9]SM1 - DECC Scenario 3 equiv'!L80,\n'[9]SM2 - DECC Scenario 1 equiv'!L43+'[9]SM2 - DECC Scenario 1 equiv'!L80,\n'[9]SM3 - DECC Scenario 2 equiv'!L43+'[9]SM3 - DECC Scenario 2 equiv'!L80,\n'[9]SM4 - DNO Scenario 4 equiv'!L43+'[9]SM4 - DNO Scenario 4 equiv'!L80,\n'[10]M1a - Model inputs'!L43+'[10]M1a - Model inputs'!L80,\n'[10]M1b - Model inputs'!L43+'[10]M1b - Model inputs'!L80,\n'[10]SM1 - DECC Scenario 3 equiv'!L43+'[10]SM1 - DECC Scenario 3 equiv'!L80,\n'[10]SM2 - DECC Scenario 1 equiv'!L43+'[10]SM2 - DECC Scenario 1 equiv'!L80,\n'[10]SM3 - DECC Scenario 2 equiv'!L43+'[10]SM3 - DECC Scenario 2 equiv'!L80,\n'[10]SM4 - DNO Scenario 4 equiv'!L43+'[10]SM4 - DNO Scenario 4 equiv'!L80)","v":0.19439062183346598},{"$f":"CHOOSE(view,\n'[9]M1a - Model inputs'!M43+'[9]M1a - Model inputs'!M80,\n'[9]M1b - Model inputs'!M43+'[9]M1b - Model inputs'!M80,\n'[9]SM1 - DECC Scenario 3 equiv'!M43+'[9]SM1 - DECC Scenario 3 equiv'!M80,\n'[9]SM2 - DECC Scenario 1 equiv'!M43+'[9]SM2 - DECC Scenario 1 equiv'!M80,\n'[9]SM3 - DECC Scenario 2 equiv'!M43+'[9]SM3 - DECC Scenario 2 equiv'!M80,\n'[9]SM4 - DNO Scenario 4 equiv'!M43+'[9]SM4 - DNO Scenario 4 equiv'!M80,\n'[10]M1a - Model inputs'!M43+'[10]M1a - Model inputs'!M80,\n'[10]M1b - Model inputs'!M43+'[10]M1b - Model inputs'!M80,\n'[10]SM1 - DECC Scenario 3 equiv'!M43+'[10]SM1 - DECC Scenario 3 equiv'!M80,\n'[10]SM2 - DECC Scenario 1 equiv'!M43+'[10]SM2 - DECC Scenario 1 equiv'!M80,\n'[10]SM3 - DECC Scenario 2 equiv'!M43+'[10]SM3 - DECC Scenario 2 equiv'!M80,\n'[10]SM4 - DNO Scenario 4 equiv'!M43+'[10]SM4 - DNO Scenario 4 equiv'!M80)","v":0.19331542685622108},{"$f":"CHOOSE(view,\n'[9]M1a - Model inputs'!N43+'[9]M1a - Model inputs'!N80,\n'[9]M1b - Model inputs'!N43+'[9]M1b - Model inputs'!N80,\n'[9]SM1 - DECC Scenario 3 equiv'!N43+'[9]SM1 - DECC Scenario 3 equiv'!N80,\n'[9]SM2 - DECC Scenario 1 equiv'!N43+'[9]SM2 - DECC Scenario 1 equiv'!N80,\n'[9]SM3 - DECC Scenario 2 equiv'!N43+'[9]SM3 - DECC Scenario 2 equiv'!N80,\n'[9]SM4 - DNO Scenario 4 equiv'!N43+'[9]SM4 - DNO Scenario 4 equiv'!N80,\n'[10]M1a - Model inputs'!N43+'[10]M1a - Model inputs'!N80,\n'[10]M1b - Model inputs'!N43+'[10]M1b - Model inputs'!N80,\n'[10]SM1 - DECC Scenario 3 equiv'!N43+'[10]SM1 - DECC Scenario 3 equiv'!N80,\n'[10]SM2 - DECC Scenario 1 equiv'!N43+'[10]SM2 - DECC Scenario 1 equiv'!N80,\n'[10]SM3 - DECC Scenario 2 equiv'!N43+'[10]SM3 - DECC Scenario 2 equiv'!N80,\n'[10]SM4 - DNO Scenario 4 equiv'!N43+'[10]SM4 - DNO Scenario 4 equiv'!N80)","v":0.19369917082533533},{"$f":"CHOOSE(view,\n'[9]M1a - Model inputs'!O43+'[9]M1a - Model inputs'!O80,\n'[9]M1b - Model inputs'!O43+'[9]M1b - Model inputs'!O80,\n'[9]SM1 - DECC Scenario 3 equiv'!O43+'[9]SM1 - DECC Scenario 3 equiv'!O80,\n'[9]SM2 - DECC Scenario 1 equiv'!O43+'[9]SM2 - DECC Scenario 1 equiv'!O80,\n'[9]SM3 - DECC Scenario 2 equiv'!O43+'[9]SM3 - DECC Scenario 2 equiv'!O80,\n'[9]SM4 - DNO Scenario 4 equiv'!O43+'[9]SM4 - DNO Scenario 4 equiv'!O80,\n'[10]M1a - Model inputs'!O43+'[10]M1a - Model inputs'!O80,\n'[10]M1b - Model inputs'!O43+'[10]M1b - Model inputs'!O80,\n'[10]SM1 - DECC Scenario 3 equiv'!O43+'[10]SM1 - DECC Scenario 3 equiv'!O80,\n'[10]SM2 - DECC Scenario 1 equiv'!O43+'[10]SM2 - DECC Scenario 1 equiv'!O80,\n'[10]SM3 - DECC Scenario 2 equiv'!O43+'[10]SM3 - DECC Scenario 2 equiv'!O80,\n'[10]SM4 - DNO Scenario 4 equiv'!O43+'[10]SM4 - DNO Scenario 4 equiv'!O80)","v":0.19260900499971864},{"$f":"CHOOSE(view,\n'[9]M1a - Model inputs'!P43+'[9]M1a - Model inputs'!P80,\n'[9]M1b - Model inputs'!P43+'[9]M1b - Model inputs'!P80,\n'[9]SM1 - DECC Scenario 3 equiv'!P43+'[9]SM1 - DECC Scenario 3 equiv'!P80,\n'[9]SM2 - DECC Scenario 1 equiv'!P43+'[9]SM2 - DECC Scenario 1 equiv'!P80,\n'[9]SM3 - DECC Scenario 2 equiv'!P43+'[9]SM3 - DECC Scenario 2 equiv'!P80,\n'[9]SM4 - DNO Scenario 4 equiv'!P43+'[9]SM4 - DNO Scenario 4 equiv'!P80,\n'[10]M1a - Model inputs'!P43+'[10]M1a - Model inputs'!P80,\n'[10]M1b - Model inputs'!P43+'[10]M1b - Model inputs'!P80,\n'[10]SM1 - DECC Scenario 3 equiv'!P43+'[10]SM1 - DECC Scenario 3 equiv'!P80,\n'[10]SM2 - DECC Scenario 1 equiv'!P43+'[10]SM2 - DECC Scenario 1 equiv'!P80,\n'[10]SM3 - DECC Scenario 2 equiv'!P43+'[10]SM3 - DECC Scenario 2 equiv'!P80,\n'[10]SM4 - DNO Scenario 4 equiv'!P43+'[10]SM4 - DNO Scenario 4 equiv'!P80)","v":0.19386480459981845},{"$f":"CHOOSE(view,\n'[9]M1a - Model inputs'!Q43+'[9]M1a - Model inputs'!Q80,\n'[9]M1b - Model inputs'!Q43+'[9]M1b - Model inputs'!Q80,\n'[9]SM1 - DECC Scenario 3 equiv'!Q43+'[9]SM1 - DECC Scenario 3 equiv'!Q80,\n'[9]SM2 - DECC Scenario 1 equiv'!Q43+'[9]SM2 - DECC Scenario 1 equiv'!Q80,\n'[9]SM3 - DECC Scenario 2 equiv'!Q43+'[9]SM3 - DECC Scenario 2 equiv'!Q80,\n'[9]SM4 - DNO Scenario 4 equiv'!Q43+'[9]SM4 - DNO Scenario 4 equiv'!Q80,\n'[10]M1a - Model inputs'!Q43+'[10]M1a - Model inputs'!Q80,\n'[10]M1b - Model inputs'!Q43+'[10]M1b - Model inputs'!Q80,\n'[10]SM1 - DECC Scenario 3 equiv'!Q43+'[10]SM1 - DECC Scenario 3 equiv'!Q80,\n'[10]SM2 - DECC Scenario 1 equiv'!Q43+'[10]SM2 - DECC Scenario 1 equiv'!Q80,\n'[10]SM3 - DECC Scenario 2 equiv'!Q43+'[10]SM3 - DECC Scenario 2 equiv'!Q80,\n'[10]SM4 - DNO Scenario 4 equiv'!Q43+'[10]SM4 - DNO Scenario 4 equiv'!Q80)","v":0.19487437340147956},{"$f":"CHOOSE(view,\n'[9]M1a - Model inputs'!R43+'[9]M1a - Model inputs'!R80,\n'[9]M1b - Model inputs'!R43+'[9]M1b - Model inputs'!R80,\n'[9]SM1 - DECC Scenario 3 equiv'!R43+'[9]SM1 - DECC Scenario 3 equiv'!R80,\n'[9]SM2 - DECC Scenario 1 equiv'!R43+'[9]SM2 - DECC Scenario 1 equiv'!R80,\n'[9]SM3 - DECC Scenario 2 equiv'!R43+'[9]SM3 - DECC Scenario 2 equiv'!R80,\n'[9]SM4 - DNO Scenario 4 equiv'!R43+'[9]SM4 - DNO Scenario 4 equiv'!R80,\n'[10]M1a - Model inputs'!R43+'[10]M1a - Model inputs'!R80,\n'[10]M1b - Model inputs'!R43+'[10]M1b - Model inputs'!R80,\n'[10]SM1 - DECC Scenario 3 equiv'!R43+'[10]SM1 - DECC Scenario 3 equiv'!R80,\n'[10]SM2 - DECC Scenario 1 equiv'!R43+'[10]SM2 - DECC Scenario 1 equiv'!R80,\n'[10]SM3 - DECC Scenario 2 equiv'!R43+'[10]SM3 - DECC Scenario 2 equiv'!R80,\n'[10]SM4 - DNO Scenario 4 equiv'!R43+'[10]SM4 - DNO Scenario 4 equiv'!R80)","v":0.19379644758559239},{"$f":"CHOOSE(view,\n'[9]M1a - Model inputs'!S43+'[9]M1a - Model inputs'!S80,\n'[9]M1b - Model inputs'!S43+'[9]M1b - Model inputs'!S80,\n'[9]SM1 - DECC Scenario 3 equiv'!S43+'[9]SM1 - DECC Scenario 3 equiv'!S80,\n'[9]SM2 - DECC Scenario 1 equiv'!S43+'[9]SM2 - DECC Scenario 1 equiv'!S80,\n'[9]SM3 - DECC Scenario 2 equiv'!S43+'[9]SM3 - DECC Scenario 2 equiv'!S80,\n'[9]SM4 - DNO Scenario 4 equiv'!S43+'[9]SM4 - DNO Scenario 4 equiv'!S80,\n'[10]M1a - Model inputs'!S43+'[10]M1a - Model inputs'!S80,\n'[10]M1b - Model inputs'!S43+'[10]M1b - Model inputs'!S80,\n'[10]SM1 - DECC Scenario 3 equiv'!S43+'[10]SM1 - DECC Scenario 3 equiv'!S80,\n'[10]SM2 - DECC Scenario 1 equiv'!S43+'[10]SM2 - DECC Scenario 1 equiv'!S80,\n'[10]SM3 - DECC Scenario 2 equiv'!S43+'[10]SM3 - DECC Scenario 2 equiv'!S80,\n'[10]SM4 - DNO Scenario 4 equiv'!S43+'[10]SM4 - DNO Scenario 4 equiv'!S80)","v":0.19458037090586253}]
[null,null,null,null,{"$f":"Input!E21","v":"Allowed uncertain costs (Worst served customers)"},{"$f":"Input!F21","v":"XX"},{"$f":"Input!G21","v":"£m 12/13 prices"},{"$f":"Input!H21","v":"YY"},null,null,null,null,null,null,null,null,null,null,null,null,null,null,null,null,null,null,null,null,null,null,null,null,null,null,null,{"$f":"CHOOSE(view,\n'[9]M1a - Model inputs'!L46+'[9]M1a - Model inputs'!L83,\n'[9]M1b - Model inputs'!L46+'[9]M1b - Model inputs'!L83,\n'[9]SM1 - DECC Scenario 3 equiv'!L46+'[9]SM1 - DECC Scenario 3 equiv'!L83,\n'[9]SM2 - DECC Scenario 1 equiv'!L46+'[9]SM2 - DECC Scenario 1 equiv'!L83,\n'[9]SM3 - DECC Scenario 2 equiv'!L46+'[9]SM3 - DECC Scenario 2 equiv'!L83,\n'[9]SM4 - DNO Scenario 4 equiv'!L46+'[9]SM4 - DNO Scenario 4 equiv'!L83,\n'[10]M1a - Model inputs'!L46+'[10]M1a - Model inputs'!L83,\n'[10]M1b - Model inputs'!L46+'[10]M1b - Model inputs'!L83,\n'[10]SM1 - DECC Scenario 3 equiv'!L46+'[10]SM1 - DECC Scenario 3 equiv'!L83,\n'[10]SM2 - DECC Scenario 1 equiv'!L46+'[10]SM2 - DECC Scenario 1 equiv'!L83,\n'[10]SM3 - DECC Scenario 2 equiv'!L46+'[10]SM3 - DECC Scenario 2 equiv'!L83,\n'[10]SM4 - DNO Scenario 4 equiv'!L46+'[10]SM4 - DNO Scenario 4 equiv'!L83)","v":0},{"$f":"CHOOSE(view,\n'[9]M1a - Model inputs'!M46+'[9]M1a - Model inputs'!M83,\n'[9]M1b - Model inputs'!M46+'[9]M1b - Model inputs'!M83,\n'[9]SM1 - DECC Scenario 3 equiv'!M46+'[9]SM1 - DECC Scenario 3 equiv'!M83,\n'[9]SM2 - DECC Scenario 1 equiv'!M46+'[9]SM2 - DECC Scenario 1 equiv'!M83,\n'[9]SM3 - DECC Scenario 2 equiv'!M46+'[9]SM3 - DECC Scenario 2 equiv'!M83,\n'[9]SM4 - DNO Scenario 4 equiv'!M46+'[9]SM4 - DNO Scenario 4 equiv'!M83,\n'[10]M1a - Model inputs'!M46+'[10]M1a - Model inputs'!M83,\n'[10]M1b - Model inputs'!M46+'[10]M1b - Model inputs'!M83,\n'[10]SM1 - DECC Scenario 3 equiv'!M46+'[10]SM1 - DECC Scenario 3 equiv'!M83,\n'[10]SM2 - DECC Scenario 1 equiv'!M46+'[10]SM2 - DECC Scenario 1 equiv'!M83,\n'[10]SM3 - DECC Scenario 2 equiv'!M46+'[10]SM3 - DECC Scenario 2 equiv'!M83,\n'[10]SM4 - DNO Scenario 4 equiv'!M46+'[10]SM4 - DNO Scenario 4 equiv'!M83)","v":0.51073509957364771},{"$f":"CHOOSE(view,\n'[9]M1a - Model inputs'!N46+'[9]M1a - Model inputs'!N83,\n'[9]M1b - Model inputs'!N46+'[9]M1b - Model inputs'!N83,\n'[9]SM1 - DECC Scenario 3 equiv'!N46+'[9]SM1 - DECC Scenario 3 equiv'!N83,\n'[9]SM2 - DECC Scenario 1 equiv'!N46+'[9]SM2 - DECC Scenario 1 equiv'!N83,\n'[9]SM3 - DECC Scenario 2 equiv'!N46+'[9]SM3 - DECC Scenario 2 equiv'!N83,\n'[9]SM4 - DNO Scenario 4 equiv'!N46+'[9]SM4 - DNO Scenario 4 equiv'!N83,\n'[10]M1a - Model inputs'!N46+'[10]M1a - Model inputs'!N83,\n'[10]M1b - Model inputs'!N46+'[10]M1b - Model inputs'!N83,\n'[10]SM1 - DECC Scenario 3 equiv'!N46+'[10]SM1 - DECC Scenario 3 equiv'!N83,\n'[10]SM2 - DECC Scenario 1 equiv'!N46+'[10]SM2 - DECC Scenario 1 equiv'!N83,\n'[10]SM3 - DECC Scenario 2 equiv'!N46+'[10]SM3 - DECC Scenario 2 equiv'!N83,\n'[10]SM4 - DNO Scenario 4 equiv'!N46+'[10]SM4 - DNO Scenario 4 equiv'!N83)","v":0.50945823129223222},{"$f":"CHOOSE(view,\n'[9]M1a - Model inputs'!O46+'[9]M1a - Model inputs'!O83,\n'[9]M1b - Model inputs'!O46+'[9]M1b - Model inputs'!O83,\n'[9]SM1 - DECC Scenario 3 equiv'!O46+'[9]SM1 - DECC Scenario 3 equiv'!O83,\n'[9]SM2 - DECC Scenario 1 equiv'!O46+'[9]SM2 - DECC Scenario 1 equiv'!O83,\n'[9]SM3 - DECC Scenario 2 equiv'!O46+'[9]SM3 - DECC Scenario 2 equiv'!O83,\n'[9]SM4 - DNO Scenario 4 equiv'!O46+'[9]SM4 - DNO Scenario 4 equiv'!O83,\n'[10]M1a - Model inputs'!O46+'[10]M1a - Model inputs'!O83,\n'[10]M1b - Model inputs'!O46+'[10]M1b - Model inputs'!O83,\n'[10]SM1 - DECC Scenario 3 equiv'!O46+'[10]SM1 - DECC Scenario 3 equiv'!O83,\n'[10]SM2 - DECC Scenario 1 equiv'!O46+'[10]SM2 - DECC Scenario 1 equiv'!O83,\n'[10]SM3 - DECC Scenario 2 equiv'!O46+'[10]SM3 - DECC Scenario 2 equiv'!O83,\n'[10]SM4 - DNO Scenario 4 equiv'!O46+'[10]SM4 - DNO Scenario 4 equiv'!O83)","v":0},{"$f":"CHOOSE(view,\n'[9]M1a - Model inputs'!P46+'[9]M1a - Model inputs'!P83,\n'[9]M1b - Model inputs'!P46+'[9]M1b - Model inputs'!P83,\n'[9]SM1 - DECC Scenario 3 equiv'!P46+'[9]SM1 - DECC Scenario 3 equiv'!P83,\n'[9]SM2 - DECC Scenario 1 equiv'!P46+'[9]SM2 - DECC Scenario 1 equiv'!P83,\n'[9]SM3 - DECC Scenario 2 equiv'!P46+'[9]SM3 - DECC Scenario 2 equiv'!P83,\n'[9]SM4 - DNO Scenario 4 equiv'!P46+'[9]SM4 - DNO Scenario 4 equiv'!P83,\n'[10]M1a - Model inputs'!P46+'[10]M1a - Model inputs'!P83,\n'[10]M1b - Model inputs'!P46+'[10]M1b - Model inputs'!P83,\n'[10]SM1 - DECC Scenario 3 equiv'!P46+'[10]SM1 - DECC Scenario 3 equiv'!P83,\n'[10]SM2 - DECC Scenario 1 equiv'!P46+'[10]SM2 - DECC Scenario 1 equiv'!P83,\n'[10]SM3 - DECC Scenario 2 equiv'!P46+'[10]SM3 - DECC Scenario 2 equiv'!P83,\n'[10]SM4 - DNO Scenario 4 equiv'!P46+'[10]SM4 - DNO Scenario 4 equiv'!P83)","v":0},{"$f":"CHOOSE(view,\n'[9]M1a - Model inputs'!Q46+'[9]M1a - Model inputs'!Q83,\n'[9]M1b - Model inputs'!Q46+'[9]M1b - Model inputs'!Q83,\n'[9]SM1 - DECC Scenario 3 equiv'!Q46+'[9]SM1 - DECC Scenario 3 equiv'!Q83,\n'[9]SM2 - DECC Scenario 1 equiv'!Q46+'[9]SM2 - DECC Scenario 1 equiv'!Q83,\n'[9]SM3 - DECC Scenario 2 equiv'!Q46+'[9]SM3 - DECC Scenario 2 equiv'!Q83,\n'[9]SM4 - DNO Scenario 4 equiv'!Q46+'[9]SM4 - DNO Scenario 4 equiv'!Q83,\n'[10]M1a - Model inputs'!Q46+'[10]M1a - Model inputs'!Q83,\n'[10]M1b - Model inputs'!Q46+'[10]M1b - Model inputs'!Q83,\n'[10]SM1 - DECC Scenario 3 equiv'!Q46+'[10]SM1 - DECC Scenario 3 equiv'!Q83,\n'[10]SM2 - DECC Scenario 1 equiv'!Q46+'[10]SM2 - DECC Scenario 1 equiv'!Q83,\n'[10]SM3 - DECC Scenario 2 equiv'!Q46+'[10]SM3 - DECC Scenario 2 equiv'!Q83,\n'[10]SM4 - DNO Scenario 4 equiv'!Q46+'[10]SM4 - DNO Scenario 4 equiv'!Q83)","v":0},{"$f":"CHOOSE(view,\n'[9]M1a - Model inputs'!R46+'[9]M1a - Model inputs'!R83,\n'[9]M1b - Model inputs'!R46+'[9]M1b - Model inputs'!R83,\n'[9]SM1 - DECC Scenario 3 equiv'!R46+'[9]SM1 - DECC Scenario 3 equiv'!R83,\n'[9]SM2 - DECC Scenario 1 equiv'!R46+'[9]SM2 - DECC Scenario 1 equiv'!R83,\n'[9]SM3 - DECC Scenario 2 equiv'!R46+'[9]SM3 - DECC Scenario 2 equiv'!R83,\n'[9]SM4 - DNO Scenario 4 equiv'!R46+'[9]SM4 - DNO Scenario 4 equiv'!R83,\n'[10]M1a - Model inputs'!R46+'[10]M1a - Model inputs'!R83,\n'[10]M1b - Model inputs'!R46+'[10]M1b - Model inputs'!R83,\n'[10]SM1 - DECC Scenario 3 equiv'!R46+'[10]SM1 - DECC Scenario 3 equiv'!R83,\n'[10]SM2 - DECC Scenario 1 equiv'!R46+'[10]SM2 - DECC Scenario 1 equiv'!R83,\n'[10]SM3 - DECC Scenario 2 equiv'!R46+'[10]SM3 - DECC Scenario 2 equiv'!R83,\n'[10]SM4 - DNO Scenario 4 equiv'!R46+'[10]SM4 - DNO Scenario 4 equiv'!R83)","v":0},{"$f":"CHOOSE(view,\n'[9]M1a - Model inputs'!S46+'[9]M1a - Model inputs'!S83,\n'[9]M1b - Model inputs'!S46+'[9]M1b - Model inputs'!S83,\n'[9]SM1 - DECC Scenario 3 equiv'!S46+'[9]SM1 - DECC Scenario 3 equiv'!S83,\n'[9]SM2 - DECC Scenario 1 equiv'!S46+'[9]SM2 - DECC Scenario 1 equiv'!S83,\n'[9]SM3 - DECC Scenario 2 equiv'!S46+'[9]SM3 - DECC Scenario 2 equiv'!S83,\n'[9]SM4 - DNO Scenario 4 equiv'!S46+'[9]SM4 - DNO Scenario 4 equiv'!S83,\n'[10]M1a - Model inputs'!S46+'[10]M1a - Model inputs'!S83,\n'[10]M1b - Model inputs'!S46+'[10]M1b - Model inputs'!S83,\n'[10]SM1 - DECC Scenario 3 equiv'!S46+'[10]SM1 - DECC Scenario 3 equiv'!S83,\n'[10]SM2 - DECC Scenario 1 equiv'!S46+'[10]SM2 - DECC Scenario 1 equiv'!S83,\n'[10]SM3 - DECC Scenario 2 equiv'!S46+'[10]SM3 - DECC Scenario 2 equiv'!S83,\n'[10]SM4 - DNO Scenario 4 equiv'!S46+'[10]SM4 - DNO Scenario 4 equiv'!S83)","v":0}]
[null,null,null,null,{"$f":"Input!E22","v":"Allowed uncertain costs (Smart metering roll out costs)"},{"$f":"Input!F22","v":"XX"},{"$f":"Input!G22","v":"£m 12/13 prices"},{"$f":"Input!H22","v":"YY"},null,null,null,null,null,null,null,null,null,null,null,null,null,null,null,null,null,null,null,null,null,null,null,null,null,null,null,{"$f":"CHOOSE(view,\nSUM('[9]M1a - Model inputs'!L49:L49)+SUM('[9]M1a - Model inputs'!L86:L86),\nSUM('[9]M1b - Model inputs'!L49:L49)+SUM('[9]M1b - Model inputs'!L86:L86),\nSUM('[9]SM1 - DECC Scenario 3 equiv'!L49:L49)+SUM('[9]SM1 - DECC Scenario 3 equiv'!L86:L86),\nSUM('[9]SM2 - DECC Scenario 1 equiv'!L49:L49)+SUM('[9]SM2 - DECC Scenario 1 equiv'!L86:L86),\nSUM('[9]SM3 - DECC Scenario 2 equiv'!L49:L49)+SUM('[9]SM3 - DECC Scenario 2 equiv'!L86:L86),\nSUM('[9]SM4 - DNO Scenario 4 equiv'!L49:L49)+SUM('[9]SM4 - DNO Scenario 4 equiv'!L86:L86),\nSUM('[10]M1a - Model inputs'!L49:L49)+SUM('[10]M1a - Model inputs'!L86:L86),\nSUM('[10]M1b - Model inputs'!L49:L49)+SUM('[10]M1b - Model inputs'!L86:L86),\nSUM('[10]SM1 - DECC Scenario 3 equiv'!L49:L49)+SUM('[10]SM1 - DECC Scenario 3 equiv'!L86:L86),\nSUM('[10]SM2 - DECC Scenario 1 equiv'!L49:L49)+SUM('[10]SM2 - DECC Scenario 1 equiv'!L86:L86),\nSUM('[10]SM3 - DECC Scenario 2 equiv'!L49:L49)+SUM('[10]SM3 - DECC Scenario 2 equiv'!L86:L86),\nSUM('[10]SM4 - DNO Scenario 4 equiv'!L49:L49)+SUM('[10]SM4 - DNO Scenario 4 equiv'!L86:L86))","v":6.3590832902609765E-2},{"$f":"CHOOSE(view,\nSUM('[9]M1a - Model inputs'!M49:M49)+SUM('[9]M1a - Model inputs'!M86:M86),\nSUM('[9]M1b - Model inputs'!M49:M49)+SUM('[9]M1b - Model inputs'!M86:M86),\nSUM('[9]SM1 - DECC Scenario 3 equiv'!M49:M49)+SUM('[9]SM1 - DECC Scenario 3 equiv'!M86:M86),\nSUM('[9]SM2 - DECC Scenario 1 equiv'!M49:M49)+SUM('[9]SM2 - DECC Scenario 1 equiv'!M86:M86),\nSUM('[9]SM3 - DECC Scenario 2 equiv'!M49:M49)+SUM('[9]SM3 - DECC Scenario 2 equiv'!M86:M86),\nSUM('[9]SM4 - DNO Scenario 4 equiv'!M49:M49)+SUM('[9]SM4 - DNO Scenario 4 equiv'!M86:M86),\nSUM('[10]M1a - Model inputs'!M49:M49)+SUM('[10]M1a - Model inputs'!M86:M86),\nSUM('[10]M1b - Model inputs'!M49:M49)+SUM('[10]M1b - Model inputs'!M86:M86),\nSUM('[10]SM1 - DECC Scenario 3 equiv'!M49:M49)+SUM('[10]SM1 - DECC Scenario 3 equiv'!M86:M86),\nSUM('[10]SM2 - DECC Scenario 1 equiv'!M49:M49)+SUM('[10]SM2 - DECC Scenario 1 equiv'!M86:M86),\nSUM('[10]SM3 - DECC Scenario 2 equiv'!M49:M49)+SUM('[10]SM3 - DECC Scenario 2 equiv'!M86:M86),\nSUM('[10]SM4 - DNO Scenario 4 equiv'!M49:M49)+SUM('[10]SM4 - DNO Scenario 4 equiv'!M86:M86))","v":7.2802172911725915E-2},{"$f":"CHOOSE(view,\nSUM('[9]M1a - Model inputs'!N49:N49)+SUM('[9]M1a - Model inputs'!N86:N86),\nSUM('[9]M1b - Model inputs'!N49:N49)+SUM('[9]M1b - Model inputs'!N86:N86),\nSUM('[9]SM1 - DECC Scenario 3 equiv'!N49:N49)+SUM('[9]SM1 - DECC Scenario 3 equiv'!N86:N86),\nSUM('[9]SM2 - DECC Scenario 1 equiv'!N49:N49)+SUM('[9]SM2 - DECC Scenario 1 equiv'!N86:N86),\nSUM('[9]SM3 - DECC Scenario 2 equiv'!N49:N49)+SUM('[9]SM3 - DECC Scenario 2 equiv'!N86:N86),\nSUM('[9]SM4 - DNO Scenario 4 equiv'!N49:N49)+SUM('[9]SM4 - DNO Scenario 4 equiv'!N86:N86),\nSUM('[10]M1a - Model inputs'!N49:N49)+SUM('[10]M1a - Model inputs'!N86:N86),\nSUM('[10]M1b - Model inputs'!N49:N49)+SUM('[10]M1b - Model inputs'!N86:N86),\nSUM('[10]SM1 - DECC Scenario 3 equiv'!N49:N49)+SUM('[10]SM1 - DECC Scenario 3 equiv'!N86:N86),\nSUM('[10]SM2 - DECC Scenario 1 equiv'!N49:N49)+SUM('[10]SM2 - DECC Scenario 1 equiv'!N86:N86),\nSUM('[10]SM3 - DECC Scenario 2 equiv'!N49:N49)+SUM('[10]SM3 - DECC Scenario 2 equiv'!N86:N86),\nSUM('[10]SM4 - DNO Scenario 4 equiv'!N49:N49)+SUM('[10]SM4 - DNO Scenario 4 equiv'!N86:N86))","v":8.0313342951709887E-2},{"$f":"CHOOSE(view,\nSUM('[9]M1a - Model inputs'!O49:O49)+SUM('[9]M1a - Model inputs'!O86:O86),\nSUM('[9]M1b - Model inputs'!O49:O49)+SUM('[9]M1b - Model inputs'!O86:O86),\nSUM('[9]SM1 - DECC Scenario 3 equiv'!O49:O49)+SUM('[9]SM1 - DECC Scenario 3 equiv'!O86:O86),\nSUM('[9]SM2 - DECC Scenario 1 equiv'!O49:O49)+SUM('[9]SM2 - DECC Scenario 1 equiv'!O86:O86),\nSUM('[9]SM3 - DECC Scenario 2 equiv'!O49:O49)+SUM('[9]SM3 - DECC Scenario 2 equiv'!O86:O86),\nSUM('[9]SM4 - DNO Scenario 4 equiv'!O49:O49)+SUM('[9]SM4 - DNO Scenario 4 equiv'!O86:O86),\nSUM('[10]M1a - Model inputs'!O49:O49)+SUM('[10]M1a - Model inputs'!O86:O86),\nSUM('[10]M1b - Model inputs'!O49:O49)+SUM('[10]M1b - Model inputs'!O86:O86),\nSUM('[10]SM1 - DECC Scenario 3 equiv'!O49:O49)+SUM('[10]SM1 - DECC Scenario 3 equiv'!O86:O86),\nSUM('[10]SM2 - DECC Scenario 1 equiv'!O49:O49)+SUM('[10]SM2 - DECC Scenario 1 equiv'!O86:O86),\nSUM('[10]SM3 - DECC Scenario 2 equiv'!O49:O49)+SUM('[10]SM3 - DECC Scenario 2 equiv'!O86:O86),\nSUM('[10]SM4 - DNO Scenario 4 equiv'!O49:O49)+SUM('[10]SM4 - DNO Scenario 4 equiv'!O86:O86))","v":8.3220841308843552E-2},{"$f":"CHOOSE(view,\nSUM('[9]M1a - Model inputs'!P49:P49)+SUM('[9]M1a - Model inputs'!P86:P86),\nSUM('[9]M1b - Model inputs'!P49:P49)+SUM('[9]M1b - Model inputs'!P86:P86),\nSUM('[9]SM1 - DECC Scenario 3 equiv'!P49:P49)+SUM('[9]SM1 - DECC Scenario 3 equiv'!P86:P86),\nSUM('[9]SM2 - DECC Scenario 1 equiv'!P49:P49)+SUM('[9]SM2 - DECC Scenario 1 equiv'!P86:P86),\nSUM('[9]SM3 - DECC Scenario 2 equiv'!P49:P49)+SUM('[9]SM3 - DECC Scenario 2 equiv'!P86:P86),\nSUM('[9]SM4 - DNO Scenario 4 equiv'!P49:P49)+SUM('[9]SM4 - DNO Scenario 4 equiv'!P86:P86),\nSUM('[10]M1a - Model inputs'!P49:P49)+SUM('[10]M1a - Model inputs'!P86:P86),\nSUM('[10]M1b - Model inputs'!P49:P49)+SUM('[10]M1b - Model inputs'!P86:P86),\nSUM('[10]SM1 - DECC Scenario 3 equiv'!P49:P49)+SUM('[10]SM1 - DECC Scenario 3 equiv'!P86:P86),\nSUM('[10]SM2 - DECC Scenario 1 equiv'!P49:P49)+SUM('[10]SM2 - DECC Scenario 1 equiv'!P86:P86),\nSUM('[10]SM3 - DECC Scenario 2 equiv'!P49:P49)+SUM('[10]SM3 - DECC Scenario 2 equiv'!P86:P86),\nSUM('[10]SM4 - DNO Scenario 4 equiv'!P49:P49)+SUM('[10]SM4 - DNO Scenario 4 equiv'!P86:P86))","v":8.0679688326649041E-2},{"$f":"CHOOSE(view,\nSUM('[9]M1a - Model inputs'!Q49:Q49)+SUM('[9]M1a - Model inputs'!Q86:Q86),\nSUM('[9]M1b - Model inputs'!Q49:Q49)+SUM('[9]M1b - Model inputs'!Q86:Q86),\nSUM('[9]SM1 - DECC Scenario 3 equiv'!Q49:Q49)+SUM('[9]SM1 - DECC Scenario 3 equiv'!Q86:Q86),\nSUM('[9]SM2 - DECC Scenario 1 equiv'!Q49:Q49)+SUM('[9]SM2 - DECC Scenario 1 equiv'!Q86:Q86),\nSUM('[9]SM3 - DECC Scenario 2 equiv'!Q49:Q49)+SUM('[9]SM3 - DECC Scenario 2 equiv'!Q86:Q86),\nSUM('[9]SM4 - DNO Scenario 4 equiv'!Q49:Q49)+SUM('[9]SM4 - DNO Scenario 4 equiv'!Q86:Q86),\nSUM('[10]M1a - Model inputs'!Q49:Q49)+SUM('[10]M1a - Model inputs'!Q86:Q86),\nSUM('[10]M1b - Model inputs'!Q49:Q49)+SUM('[10]M1b - Model inputs'!Q86:Q86),\nSUM('[10]SM1 - DECC Scenario 3 equiv'!Q49:Q49)+SUM('[10]SM1 - DECC Scenario 3 equiv'!Q86:Q86),\nSUM('[10]SM2 - DECC Scenario 1 equiv'!Q49:Q49)+SUM('[10]SM2 - DECC Scenario 1 equiv'!Q86:Q86),\nSUM('[10]SM3 - DECC Scenario 2 equiv'!Q49:Q49)+SUM('[10]SM3 - DECC Scenario 2 equiv'!Q86:Q86),\nSUM('[10]SM4 - DNO Scenario 4 equiv'!Q49:Q49)+SUM('[10]SM4 - DNO Scenario 4 equiv'!Q86:Q86))","v":6.9872890774575203E-2},{"$f":"CHOOSE(view,\nSUM('[9]M1a - Model inputs'!R49:R49)+SUM('[9]M1a - Model inputs'!R86:R86),\nSUM('[9]M1b - Model inputs'!R49:R49)+SUM('[9]M1b - Model inputs'!R86:R86),\nSUM('[9]SM1 - DECC Scenario 3 equiv'!R49:R49)+SUM('[9]SM1 - DECC Scenario 3 equiv'!R86:R86),\nSUM('[9]SM2 - DECC Scenario 1 equiv'!R49:R49)+SUM('[9]SM2 - DECC Scenario 1 equiv'!R86:R86),\nSUM('[9]SM3 - DECC Scenario 2 equiv'!R49:R49)+SUM('[9]SM3 - DECC Scenario 2 equiv'!R86:R86),\nSUM('[9]SM4 - DNO Scenario 4 equiv'!R49:R49)+SUM('[9]SM4 - DNO Scenario 4 equiv'!R86:R86),\nSUM('[10]M1a - Model inputs'!R49:R49)+SUM('[10]M1a - Model inputs'!R86:R86),\nSUM('[10]M1b - Model inputs'!R49:R49)+SUM('[10]M1b - Model inputs'!R86:R86),\nSUM('[10]SM1 - DECC Scenario 3 equiv'!R49:R49)+SUM('[10]SM1 - DECC Scenario 3 equiv'!R86:R86),\nSUM('[10]SM2 - DECC Scenario 1 equiv'!R49:R49)+SUM('[10]SM2 - DECC Scenario 1 equiv'!R86:R86),\nSUM('[10]SM3 - DECC Scenario 2 equiv'!R49:R49)+SUM('[10]SM3 - DECC Scenario 2 equiv'!R86:R86),\nSUM('[10]SM4 - DNO Scenario 4 equiv'!R49:R49)+SUM('[10]SM4 - DNO Scenario 4 equiv'!R86:R86))","v":0},{"$f":"CHOOSE(view,\nSUM('[9]M1a - Model inputs'!S49:S49)+SUM('[9]M1a - Model inputs'!S86:S86),\nSUM('[9]M1b - Model inputs'!S49:S49)+SUM('[9]M1b - Model inputs'!S86:S86),\nSUM('[9]SM1 - DECC Scenario 3 equiv'!S49:S49)+SUM('[9]SM1 - DECC Scenario 3 equiv'!S86:S86),\nSUM('[9]SM2 - DECC Scenario 1 equiv'!S49:S49)+SUM('[9]SM2 - DECC Scenario 1 equiv'!S86:S86),\nSUM('[9]SM3 - DECC Scenario 2 equiv'!S49:S49)+SUM('[9]SM3 - DECC Scenario 2 equiv'!S86:S86),\nSUM('[9]SM4 - DNO Scenario 4 equiv'!S49:S49)+SUM('[9]SM4 - DNO Scenario 4 equiv'!S86:S86),\nSUM('[10]M1a - Model inputs'!S49:S49)+SUM('[10]M1a - Model inputs'!S86:S86),\nSUM('[10]M1b - Model inputs'!S49:S49)+SUM('[10]M1b - Model inputs'!S86:S86),\nSUM('[10]SM1 - DECC Scenario 3 equiv'!S49:S49)+SUM('[10]SM1 - DECC Scenario 3 equiv'!S86:S86),\nSUM('[10]SM2 - DECC Scenario 1 equiv'!S49:S49)+SUM('[10]SM2 - DECC Scenario 1 equiv'!S86:S86),\nSUM('[10]SM3 - DECC Scenario 2 equiv'!S49:S49)+SUM('[10]SM3 - DECC Scenario 2 equiv'!S86:S86),\nSUM('[10]SM4 - DNO Scenario 4 equiv'!S49:S49)+SUM('[10]SM4 - DNO Scenario 4 equiv'!S86:S86))","v":0}]
[null,null,null,null,{"$f":"Input!E23","v":"Allowed uncertain costs (Specified street work costs)"},{"$f":"Input!F23","v":"XX"},{"$f":"Input!G23","v":"£m 12/13 prices"},{"$f":"Input!H23","v":"YY"},null,null,null,null,null,null,null,null,null,null,null,null,null,null,null,null,null,null,null,null,null,null,null,null,null,null,null,{"$f":"CHOOSE(view,\nSUM('[9]M1a - Model inputs'!L52:L55)+SUM('[9]M1a - Model inputs'!L89:L92),\nSUM('[9]M1b - Model inputs'!L52:L55)+SUM('[9]M1b - Model inputs'!L89:L92),\nSUM('[9]SM1 - DECC Scenario 3 equiv'!L52:L55)+SUM('[9]SM1 - DECC Scenario 3 equiv'!L89:L92),\nSUM('[9]SM2 - DECC Scenario 1 equiv'!L52:L55)+SUM('[9]SM2 - DECC Scenario 1 equiv'!L89:L92),\nSUM('[9]SM3 - DECC Scenario 2 equiv'!L52:L55)+SUM('[9]SM3 - DECC Scenario 2 equiv'!L89:L92),\nSUM('[9]SM4 - DNO Scenario 4 equiv'!L52:L55)+SUM('[9]SM4 - DNO Scenario 4 equiv'!L89:L92),\nSUM('[10]M1a - Model inputs'!L52:L55)+SUM('[10]M1a - Model inputs'!L89:L92),\nSUM('[10]M1b - Model inputs'!L52:L55)+SUM('[10]M1b - Model inputs'!L89:L92),\nSUM('[10]SM1 - DECC Scenario 3 equiv'!L52:L55)+SUM('[10]SM1 - DECC Scenario 3 equiv'!L89:L92),\nSUM('[10]SM2 - DECC Scenario 1 equiv'!L52:L55)+SUM('[10]SM2 - DECC Scenario 1 equiv'!L89:L92),\nSUM('[10]SM3 - DECC Scenario 2 equiv'!L52:L55)+SUM('[10]SM3 - DECC Scenario 2 equiv'!L89:L92),\nSUM('[10]SM4 - DNO Scenario 4 equiv'!L52:L55)+SUM('[10]SM4 - DNO Scenario 4 equiv'!L89:L92))","v":0},{"$f":"CHOOSE(view,\nSUM('[9]M1a - Model inputs'!M52:M55)+SUM('[9]M1a - Model inputs'!M89:M92),\nSUM('[9]M1b - Model inputs'!M52:M55)+SUM('[9]M1b - Model inputs'!M89:M92),\nSUM('[9]SM1 - DECC Scenario 3 equiv'!M52:M55)+SUM('[9]SM1 - DECC Scenario 3 equiv'!M89:M92),\nSUM('[9]SM2 - DECC Scenario 1 equiv'!M52:M55)+SUM('[9]SM2 - DECC Scenario 1 equiv'!M89:M92),\nSUM('[9]SM3 - DECC Scenario 2 equiv'!M52:M55)+SUM('[9]SM3 - DECC Scenario 2 equiv'!M89:M92),\nSUM('[9]SM4 - DNO Scenario 4 equiv'!M52:M55)+SUM('[9]SM4 - DNO Scenario 4 equiv'!M89:M92),\nSUM('[10]M1a - Model inputs'!M52:M55)+SUM('[10]M1a - Model inputs'!M89:M92),\nSUM('[10]M1b - Model inputs'!M52:M55)+SUM('[10]M1b - Model inputs'!M89:M92),\nSUM('[10]SM1 - DECC Scenario 3 equiv'!M52:M55)+SUM('[10]SM1 - DECC Scenario 3 equiv'!M89:M92),\nSUM('[10]SM2 - DECC Scenario 1 equiv'!M52:M55)+SUM('[10]SM2 - DECC Scenario 1 equiv'!M89:M92),\nSUM('[10]SM3 - DECC Scenario 2 equiv'!M52:M55)+SUM('[10]SM3 - DECC Scenario 2 equiv'!M89:M92),\nSUM('[10]SM4 - DNO Scenario 4 equiv'!M52:M55)+SUM('[10]SM4 - DNO Scenario 4 equiv'!M89:M92))","v":0},{"$f":"CHOOSE(view,\nSUM('[9]M1a - Model inputs'!N52:N55)+SUM('[9]M1a - Model inputs'!N89:N92),\nSUM('[9]M1b - Model inputs'!N52:N55)+SUM('[9]M1b - Model inputs'!N89:N92),\nSUM('[9]SM1 - DECC Scenario 3 equiv'!N52:N55)+SUM('[9]SM1 - DECC Scenario 3 equiv'!N89:N92),\nSUM('[9]SM2 - DECC Scenario 1 equiv'!N52:N55)+SUM('[9]SM2 - DECC Scenario 1 equiv'!N89:N92),\nSUM('[9]SM3 - DECC Scenario 2 equiv'!N52:N55)+SUM('[9]SM3 - DECC Scenario 2 equiv'!N89:N92),\nSUM('[9]SM4 - DNO Scenario 4 equiv'!N52:N55)+SUM('[9]SM4 - DNO Scenario 4 equiv'!N89:N92),\nSUM('[10]M1a - Model inputs'!N52:N55)+SUM('[10]M1a - Model inputs'!N89:N92),\nSUM('[10]M1b - Model inputs'!N52:N55)+SUM('[10]M1b - Model inputs'!N89:N92),\nSUM('[10]SM1 - DECC Scenario 3 equiv'!N52:N55)+SUM('[10]SM1 - DECC Scenario 3 equiv'!N89:N92),\nSUM('[10]SM2 - DECC Scenario 1 equiv'!N52:N55)+SUM('[10]SM2 - DECC Scenario 1 equiv'!N89:N92),\nSUM('[10]SM3 - DECC Scenario 2 equiv'!N52:N55)+SUM('[10]SM3 - DECC Scenario 2 equiv'!N89:N92),\nSUM('[10]SM4 - DNO Scenario 4 equiv'!N52:N55)+SUM('[10]SM4 - DNO Scenario 4 equiv'!N89:N92))","v":3.5151228571115203E-2},{"$f":"CHOOSE(view,\nSUM('[9]M1a - Model inputs'!O52:O55)+SUM('[9]M1a - Model inputs'!O89:O92),\nSUM('[9]M1b - Model inputs'!O52:O55)+SUM('[9]M1b - Model inputs'!O89:O92),\nSUM('[9]SM1 - DECC Scenario 3 equiv'!O52:O55)+SUM('[9]SM1 - DECC Scenario 3 equiv'!O89:O92),\nSUM('[9]SM2 - DECC Scenario 1 equiv'!O52:O55)+SUM('[9]SM2 - DECC Scenario 1 equiv'!O89:O92),\nSUM('[9]SM3 - DECC Scenario 2 equiv'!O52:O55)+SUM('[9]SM3 - DECC Scenario 2 equiv'!O89:O92),\nSUM('[9]SM4 - DNO Scenario 4 equiv'!O52:O55)+SUM('[9]SM4 - DNO Scenario 4 equiv'!O89:O92),\nSUM('[10]M1a - Model inputs'!O52:O55)+SUM('[10]M1a - Model inputs'!O89:O92),\nSUM('[10]M1b - Model inputs'!O52:O55)+SUM('[10]M1b - Model inputs'!O89:O92),\nSUM('[10]SM1 - DECC Scenario 3 equiv'!O52:O55)+SUM('[10]SM1 - DECC Scenario 3 equiv'!O89:O92),\nSUM('[10]SM2 - DECC Scenario 1 equiv'!O52:O55)+SUM('[10]SM2 - DECC Scenario 1 equiv'!O89:O92),\nSUM('[10]SM3 - DECC Scenario 2 equiv'!O52:O55)+SUM('[10]SM3 - DECC Scenario 2 equiv'!O89:O92),\nSUM('[10]SM4 - DNO Scenario 4 equiv'!O52:O55)+SUM('[10]SM4 - DNO Scenario 4 equiv'!O89:O92))","v":0.10381189320262765},{"$f":"CHOOSE(view,\nSUM('[9]M1a - Model inputs'!P52:P55)+SUM('[9]M1a - Model inputs'!P89:P92),\nSUM('[9]M1b - Model inputs'!P52:P55)+SUM('[9]M1b - Model inputs'!P89:P92),\nSUM('[9]SM1 - DECC Scenario 3 equiv'!P52:P55)+SUM('[9]SM1 - DECC Scenario 3 equiv'!P89:P92),\nSUM('[9]SM2 - DECC Scenario 1 equiv'!P52:P55)+SUM('[9]SM2 - DECC Scenario 1 equiv'!P89:P92),\nSUM('[9]SM3 - DECC Scenario 2 equiv'!P52:P55)+SUM('[9]SM3 - DECC Scenario 2 equiv'!P89:P92),\nSUM('[9]SM4 - DNO Scenario 4 equiv'!P52:P55)+SUM('[9]SM4 - DNO Scenario 4 equiv'!P89:P92),\nSUM('[10]M1a - Model inputs'!P52:P55)+SUM('[10]M1a - Model inputs'!P89:P92),\nSUM('[10]M1b - Model inputs'!P52:P55)+SUM('[10]M1b - Model inputs'!P89:P92),\nSUM('[10]SM1 - DECC Scenario 3 equiv'!P52:P55)+SUM('[10]SM1 - DECC Scenario 3 equiv'!P89:P92),\nSUM('[10]SM2 - DECC Scenario 1 equiv'!P52:P55)+SUM('[10]SM2 - DECC Scenario 1 equiv'!P89:P92),\nSUM('[10]SM3 - DECC Scenario 2 equiv'!P52:P55)+SUM('[10]SM3 - DECC Scenario 2 equiv'!P89:P92),\nSUM('[10]SM4 - DNO Scenario 4 equiv'!P52:P55)+SUM('[10]SM4 - DNO Scenario 4 equiv'!P89:P92))","v":0.10515128901872142},{"$f":"CHOOSE(view,\nSUM('[9]M1a - Model inputs'!Q52:Q55)+SUM('[9]M1a - Model inputs'!Q89:Q92),\nSUM('[9]M1b - Model inputs'!Q52:Q55)+SUM('[9]M1b - Model inputs'!Q89:Q92),\nSUM('[9]SM1 - DECC Scenario 3 equiv'!Q52:Q55)+SUM('[9]SM1 - DECC Scenario 3 equiv'!Q89:Q92),\nSUM('[9]SM2 - DECC Scenario 1 equiv'!Q52:Q55)+SUM('[9]SM2 - DECC Scenario 1 equiv'!Q89:Q92),\nSUM('[9]SM3 - DECC Scenario 2 equiv'!Q52:Q55)+SUM('[9]SM3 - DECC Scenario 2 equiv'!Q89:Q92),\nSUM('[9]SM4 - DNO Scenario 4 equiv'!Q52:Q55)+SUM('[9]SM4 - DNO Scenario 4 equiv'!Q89:Q92),\nSUM('[10]M1a - Model inputs'!Q52:Q55)+SUM('[10]M1a - Model inputs'!Q89:Q92),\nSUM('[10]M1b - Model inputs'!Q52:Q55)+SUM('[10]M1b - Model inputs'!Q89:Q92),\nSUM('[10]SM1 - DECC Scenario 3 equiv'!Q52:Q55)+SUM('[10]SM1 - DECC Scenario 3 equiv'!Q89:Q92),\nSUM('[10]SM2 - DECC Scenario 1 equiv'!Q52:Q55)+SUM('[10]SM2 - DECC Scenario 1 equiv'!Q89:Q92),\nSUM('[10]SM3 - DECC Scenario 2 equiv'!Q52:Q55)+SUM('[10]SM3 - DECC Scenario 2 equiv'!Q89:Q92),\nSUM('[10]SM4 - DNO Scenario 4 equiv'!Q52:Q55)+SUM('[10]SM4 - DNO Scenario 4 equiv'!Q89:Q92))","v":0.10657107854476154},{"$f":"CHOOSE(view,\nSUM('[9]M1a - Model inputs'!R52:R55)+SUM('[9]M1a - Model inputs'!R89:R92),\nSUM('[9]M1b - Model inputs'!R52:R55)+SUM('[9]M1b - Model inputs'!R89:R92),\nSUM('[9]SM1 - DECC Scenario 3 equiv'!R52:R55)+SUM('[9]SM1 - DECC Scenario 3 equiv'!R89:R92),\nSUM('[9]SM2 - DECC Scenario 1 equiv'!R52:R55)+SUM('[9]SM2 - DECC Scenario 1 equiv'!R89:R92),\nSUM('[9]SM3 - DECC Scenario 2 equiv'!R52:R55)+SUM('[9]SM3 - DECC Scenario 2 equiv'!R89:R92),\nSUM('[9]SM4 - DNO Scenario 4 equiv'!R52:R55)+SUM('[9]SM4 - DNO Scenario 4 equiv'!R89:R92),\nSUM('[10]M1a - Model inputs'!R52:R55)+SUM('[10]M1a - Model inputs'!R89:R92),\nSUM('[10]M1b - Model inputs'!R52:R55)+SUM('[10]M1b - Model inputs'!R89:R92),\nSUM('[10]SM1 - DECC Scenario 3 equiv'!R52:R55)+SUM('[10]SM1 - DECC Scenario 3 equiv'!R89:R92),\nSUM('[10]SM2 - DECC Scenario 1 equiv'!R52:R55)+SUM('[10]SM2 - DECC Scenario 1 equiv'!R89:R92),\nSUM('[10]SM3 - DECC Scenario 2 equiv'!R52:R55)+SUM('[10]SM3 - DECC Scenario 2 equiv'!R89:R92),\nSUM('[10]SM4 - DNO Scenario 4 equiv'!R52:R55)+SUM('[10]SM4 - DNO Scenario 4 equiv'!R89:R92))","v":0.10799858473570768},{"$f":"CHOOSE(view,\nSUM('[9]M1a - Model inputs'!S52:S55)+SUM('[9]M1a - Model inputs'!S89:S92),\nSUM('[9]M1b - Model inputs'!S52:S55)+SUM('[9]M1b - Model inputs'!S89:S92),\nSUM('[9]SM1 - DECC Scenario 3 equiv'!S52:S55)+SUM('[9]SM1 - DECC Scenario 3 equiv'!S89:S92),\nSUM('[9]SM2 - DECC Scenario 1 equiv'!S52:S55)+SUM('[9]SM2 - DECC Scenario 1 equiv'!S89:S92),\nSUM('[9]SM3 - DECC Scenario 2 equiv'!S52:S55)+SUM('[9]SM3 - DECC Scenario 2 equiv'!S89:S92),\nSUM('[9]SM4 - DNO Scenario 4 equiv'!S52:S55)+SUM('[9]SM4 - DNO Scenario 4 equiv'!S89:S92),\nSUM('[10]M1a - Model inputs'!S52:S55)+SUM('[10]M1a - Model inputs'!S89:S92),\nSUM('[10]M1b - Model inputs'!S52:S55)+SUM('[10]M1b - Model inputs'!S89:S92),\nSUM('[10]SM1 - DECC Scenario 3 equiv'!S52:S55)+SUM('[10]SM1 - DECC Scenario 3 equiv'!S89:S92),\nSUM('[10]SM2 - DECC Scenario 1 equiv'!S52:S55)+SUM('[10]SM2 - DECC Scenario 1 equiv'!S89:S92),\nSUM('[10]SM3 - DECC Scenario 2 equiv'!S52:S55)+SUM('[10]SM3 - DECC Scenario 2 equiv'!S89:S92),\nSUM('[10]SM4 - DNO Scenario 4 equiv'!S52:S55)+SUM('[10]SM4 - DNO Scenario 4 equiv'!S89:S92))","v":0}]
[null,null,null,null,{"$f":"Input!E24","v":"Allowed uncertain costs (Load related re-operner)"},{"$f":"Input!F24","v":"XX"},{"$f":"Input!G24","v":"£m 12/13 prices"},{"$f":"Input!H24","v":"YY"},null,null,null,null,null,null,null,null,null,null,null,null,null,null,null,null,null,null,null,null,null,null,null,null,null,null,null,{"$f":"CHOOSE(view,\n'[9]M1a - Model inputs'!L31+'[9]M1a - Model inputs'!L68,\n'[9]M1b - Model inputs'!L31+'[9]M1b - Model inputs'!L68,\n'[9]SM1 - DECC Scenario 3 equiv'!L31+'[9]SM1 - DECC Scenario 3 equiv'!L68,\n'[9]SM2 - DECC Scenario 1 equiv'!L31+'[9]SM2 - DECC Scenario 1 equiv'!L68,\n'[9]SM3 - DECC Scenario 2 equiv'!L31+'[9]SM3 - DECC Scenario 2 equiv'!L68,\n'[9]SM4 - DNO Scenario 4 equiv'!L31+'[9]SM4 - DNO Scenario 4 equiv'!L68,\n'[10]M1a - Model inputs'!L31+'[9]M1a - Model inputs'!L68,\n'[10]M1b - Model inputs'!L31+'[9]M1b - Model inputs'!L68,\n'[10]SM1 - DECC Scenario 3 equiv'!L31+'[9]SM1 - DECC Scenario 3 equiv'!L68,\n'[10]SM2 - DECC Scenario 1 equiv'!L31+'[9]SM2 - DECC Scenario 1 equiv'!L68,\n'[10]SM3 - DECC Scenario 2 equiv'!L31+'[9]SM3 - DECC Scenario 2 equiv'!L68,\n'[10]SM4 - DNO Scenario 4 equiv'!L31+'[9]SM4 - DNO Scenario 4 equiv'!L68)","v":0},{"$f":"CHOOSE(view,\n'[9]M1a - Model inputs'!M31+'[9]M1a - Model inputs'!M68,\n'[9]M1b - Model inputs'!M31+'[9]M1b - Model inputs'!M68,\n'[9]SM1 - DECC Scenario 3 equiv'!M31+'[9]SM1 - DECC Scenario 3 equiv'!M68,\n'[9]SM2 - DECC Scenario 1 equiv'!M31+'[9]SM2 - DECC Scenario 1 equiv'!M68,\n'[9]SM3 - DECC Scenario 2 equiv'!M31+'[9]SM3 - DECC Scenario 2 equiv'!M68,\n'[9]SM4 - DNO Scenario 4 equiv'!M31+'[9]SM4 - DNO Scenario 4 equiv'!M68,\n'[10]M1a - Model inputs'!M31+'[9]M1a - Model inputs'!M68,\n'[10]M1b - Model inputs'!M31+'[9]M1b - Model inputs'!M68,\n'[10]SM1 - DECC Scenario 3 equiv'!M31+'[9]SM1 - DECC Scenario 3 equiv'!M68,\n'[10]SM2 - DECC Scenario 1 equiv'!M31+'[9]SM2 - DECC Scenario 1 equiv'!M68,\n'[10]SM3 - DECC Scenario 2 equiv'!M31+'[9]SM3 - DECC Scenario 2 equiv'!M68,\n'[10]SM4 - DNO Scenario 4 equiv'!M31+'[9]SM4 - DNO Scenario 4 equiv'!M68)","v":0},{"$f":"CHOOSE(view,\n'[9]M1a - Model inputs'!N31+'[9]M1a - Model inputs'!N68,\n'[9]M1b - Model inputs'!N31+'[9]M1b - Model inputs'!N68,\n'[9]SM1 - DECC Scenario 3 equiv'!N31+'[9]SM1 - DECC Scenario 3 equiv'!N68,\n'[9]SM2 - DECC Scenario 1 equiv'!N31+'[9]SM2 - DECC Scenario 1 equiv'!N68,\n'[9]SM3 - DECC Scenario 2 equiv'!N31+'[9]SM3 - DECC Scenario 2 equiv'!N68,\n'[9]SM4 - DNO Scenario 4 equiv'!N31+'[9]SM4 - DNO Scenario 4 equiv'!N68,\n'[10]M1a - Model inputs'!N31+'[9]M1a - Model inputs'!N68,\n'[10]M1b - Model inputs'!N31+'[9]M1b - Model inputs'!N68,\n'[10]SM1 - DECC Scenario 3 equiv'!N31+'[9]SM1 - DECC Scenario 3 equiv'!N68,\n'[10]SM2 - DECC Scenario 1 equiv'!N31+'[9]SM2 - DECC Scenario 1 equiv'!N68,\n'[10]SM3 - DECC Scenario 2 equiv'!N31+'[9]SM3 - DECC Scenario 2 equiv'!N68,\n'[10]SM4 - DNO Scenario 4 equiv'!N31+'[9]SM4 - DNO Scenario 4 equiv'!N68)","v":0},{"$f":"CHOOSE(view,\n'[9]M1a - Model inputs'!O31+'[9]M1a - Model inputs'!O68,\n'[9]M1b - Model inputs'!O31+'[9]M1b - Model inputs'!O68,\n'[9]SM1 - DECC Scenario 3 equiv'!O31+'[9]SM1 - DECC Scenario 3 equiv'!O68,\n'[9]SM2 - DECC Scenario 1 equiv'!O31+'[9]SM2 - DECC Scenario 1 equiv'!O68,\n'[9]SM3 - DECC Scenario 2 equiv'!O31+'[9]SM3 - DECC Scenario 2 equiv'!O68,\n'[9]SM4 - DNO Scenario 4 equiv'!O31+'[9]SM4 - DNO Scenario 4 equiv'!O68,\n'[10]M1a - Model inputs'!O31+'[9]M1a - Model inputs'!O68,\n'[10]M1b - Model inputs'!O31+'[9]M1b - Model inputs'!O68,\n'[10]SM1 - DECC Scenario 3 equiv'!O31+'[9]SM1 - DECC Scenario 3 equiv'!O68,\n'[10]SM2 - DECC Scenario 1 equiv'!O31+'[9]SM2 - DECC Scenario 1 equiv'!O68,\n'[10]SM3 - DECC Scenario 2 equiv'!O31+'[9]SM3 - DECC Scenario 2 equiv'!O68,\n'[10]SM4 - DNO Scenario 4 equiv'!O31+'[9]SM4 - DNO Scenario 4 equiv'!O68)","v":0},{"$f":"CHOOSE(view,\n'[9]M1a - Model inputs'!P31+'[9]M1a - Model inputs'!P68,\n'[9]M1b - Model inputs'!P31+'[9]M1b - Model inputs'!P68,\n'[9]SM1 - DECC Scenario 3 equiv'!P31+'[9]SM1 - DECC Scenario 3 equiv'!P68,\n'[9]SM2 - DECC Scenario 1 equiv'!P31+'[9]SM2 - DECC Scenario 1 equiv'!P68,\n'[9]SM3 - DECC Scenario 2 equiv'!P31+'[9]SM3 - DECC Scenario 2 equiv'!P68,\n'[9]SM4 - DNO Scenario 4 equiv'!P31+'[9]SM4 - DNO Scenario 4 equiv'!P68,\n'[10]M1a - Model inputs'!P31+'[9]M1a - Model inputs'!P68,\n'[10]M1b - Model inputs'!P31+'[9]M1b - Model inputs'!P68,\n'[10]SM1 - DECC Scenario 3 equiv'!P31+'[9]SM1 - DECC Scenario 3 equiv'!P68,\n'[10]SM2 - DECC Scenario 1 equiv'!P31+'[9]SM2 - DECC Scenario 1 equiv'!P68,\n'[10]SM3 - DECC Scenario 2 equiv'!P31+'[9]SM3 - DECC Scenario 2 equiv'!P68,\n'[10]SM4 - DNO Scenario 4 equiv'!P31+'[9]SM4 - DNO Scenario 4 equiv'!P68)","v":0},{"$f":"CHOOSE(view,\n'[9]M1a - Model inputs'!Q31+'[9]M1a - Model inputs'!Q68,\n'[9]M1b - Model inputs'!Q31+'[9]M1b - Model inputs'!Q68,\n'[9]SM1 - DECC Scenario 3 equiv'!Q31+'[9]SM1 - DECC Scenario 3 equiv'!Q68,\n'[9]SM2 - DECC Scenario 1 equiv'!Q31+'[9]SM2 - DECC Scenario 1 equiv'!Q68,\n'[9]SM3 - DECC Scenario 2 equiv'!Q31+'[9]SM3 - DECC Scenario 2 equiv'!Q68,\n'[9]SM4 - DNO Scenario 4 equiv'!Q31+'[9]SM4 - DNO Scenario 4 equiv'!Q68,\n'[10]M1a - Model inputs'!Q31+'[9]M1a - Model inputs'!Q68,\n'[10]M1b - Model inputs'!Q31+'[9]M1b - Model inputs'!Q68,\n'[10]SM1 - DECC Scenario 3 equiv'!Q31+'[9]SM1 - DECC Scenario 3 equiv'!Q68,\n'[10]SM2 - DECC Scenario 1 equiv'!Q31+'[9]SM2 - DECC Scenario 1 equiv'!Q68,\n'[10]SM3 - DECC Scenario 2 equiv'!Q31+'[9]SM3 - DECC Scenario 2 equiv'!Q68,\n'[10]SM4 - DNO Scenario 4 equiv'!Q31+'[9]SM4 - DNO Scenario 4 equiv'!Q68)","v":0},{"$f":"CHOOSE(view,\n'[9]M1a - Model inputs'!R31+'[9]M1a - Model inputs'!R68,\n'[9]M1b - Model inputs'!R31+'[9]M1b - Model inputs'!R68,\n'[9]SM1 - DECC Scenario 3 equiv'!R31+'[9]SM1 - DECC Scenario 3 equiv'!R68,\n'[9]SM2 - DECC Scenario 1 equiv'!R31+'[9]SM2 - DECC Scenario 1 equiv'!R68,\n'[9]SM3 - DECC Scenario 2 equiv'!R31+'[9]SM3 - DECC Scenario 2 equiv'!R68,\n'[9]SM4 - DNO Scenario 4 equiv'!R31+'[9]SM4 - DNO Scenario 4 equiv'!R68,\n'[10]M1a - Model inputs'!R31+'[9]M1a - Model inputs'!R68,\n'[10]M1b - Model inputs'!R31+'[9]M1b - Model inputs'!R68,\n'[10]SM1 - DECC Scenario 3 equiv'!R31+'[9]SM1 - DECC Scenario 3 equiv'!R68,\n'[10]SM2 - DECC Scenario 1 equiv'!R31+'[9]SM2 - DECC Scenario 1 equiv'!R68,\n'[10]SM3 - DECC Scenario 2 equiv'!R31+'[9]SM3 - DECC Scenario 2 equiv'!R68,\n'[10]SM4 - DNO Scenario 4 equiv'!R31+'[9]SM4 - DNO Scenario 4 equiv'!R68)","v":0},{"$f":"CHOOSE(view,\n'[9]M1a - Model inputs'!S31+'[9]M1a - Model inputs'!S68,\n'[9]M1b - Model inputs'!S31+'[9]M1b - Model inputs'!S68,\n'[9]SM1 - DECC Scenario 3 equiv'!S31+'[9]SM1 - DECC Scenario 3 equiv'!S68,\n'[9]SM2 - DECC Scenario 1 equiv'!S31+'[9]SM2 - DECC Scenario 1 equiv'!S68,\n'[9]SM3 - DECC Scenario 2 equiv'!S31+'[9]SM3 - DECC Scenario 2 equiv'!S68,\n'[9]SM4 - DNO Scenario 4 equiv'!S31+'[9]SM4 - DNO Scenario 4 equiv'!S68,\n'[10]M1a - Model inputs'!S31+'[9]M1a - Model inputs'!S68,\n'[10]M1b - Model inputs'!S31+'[9]M1b - Model inputs'!S68,\n'[10]SM1 - DECC Scenario 3 equiv'!S31+'[9]SM1 - DECC Scenario 3 equiv'!S68,\n'[10]SM2 - DECC Scenario 1 equiv'!S31+'[9]SM2 - DECC Scenario 1 equiv'!S68,\n'[10]SM3 - DECC Scenario 2 equiv'!S31+'[9]SM3 - DECC Scenario 2 equiv'!S68,\n'[10]SM4 - DNO Scenario 4 equiv'!S31+'[9]SM4 - DNO Scenario 4 equiv'!S68)","v":0}]
[null,null,null,null,{"$f":"Input!E25","v":"Spare 1"},{"$f":"Input!F25","v":"XX"},{"$f":"Input!G25","v":"£m 12/13 prices"},{"$f":"Input!H25","v":"YY"}]
[null,null,null,null,{"$f":"Input!E26","v":"Spare 2"},{"$f":"Input!F26","v":"XX"},{"$f":"Input!G26","v":"£m 12/13 prices"},{"$f":"Input!H26","v":"YY"}]
[null,null,null,null,{"$f":"Input!E27","v":"Spare 3"},{"$f":"Input!F27","v":"XX"},{"$f":"Input!G27","v":"£m 12/13 prices"},{"$f":"Input!H27","v":"YY"}]
[null,null,null,null,{"$f":"Input!E28","v":"Allowed innovation roll-out mechanism"},{"$f":"Input!F28","v":"XX"},{"$f":"Input!G28","v":"£m 12/13 prices"},{"$f":"Input!H28","v":"YY"}]
[null,null,null,null,{"$f":"Input!E29","v":"Exit Charges"},{"$f":"Input!F29","v":"XX"},{"$f":"Input!G29","v":"£m 12/13 prices"},{"$f":"Input!H29","v":"YY"},null,null,null,null,null,null,null,null,null,null,null,null,null,null,null,null,null,null,null,null,null,null,null,null,null,null,null,{"$f":"CHOOSE(view,\n'[9]M1a - Model inputs'!L122,\n'[9]M1b - Model inputs'!L122,\n'[9]SM1 - DECC Scenario 3 equiv'!L122,\n'[9]SM2 - DECC Scenario 1 equiv'!L122,\n'[9]SM3 - DECC Scenario 2 equiv'!L122,\n'[9]SM4 - DNO Scenario 4 equiv'!L122,\n'[10]M1a - Model inputs'!L122,\n'[10]M1b - Model inputs'!L122,\n'[10]SM1 - DECC Scenario 3 equiv'!L122,\n'[10]SM2 - DECC Scenario 1 equiv'!L122,\n'[10]SM3 - DECC Scenario 2 equiv'!L122,\n'[10]SM4 - DNO Scenario 4 equiv'!L122)","v":8.4735858944771767},{"$f":"CHOOSE(view,\n'[9]M1a - Model inputs'!M122,\n'[9]M1b - Model inputs'!M122,\n'[9]SM1 - DECC Scenario 3 equiv'!M122,\n'[9]SM2 - DECC Scenario 1 equiv'!M122,\n'[9]SM3 - DECC Scenario 2 equiv'!M122,\n'[9]SM4 - DNO Scenario 4 equiv'!M122,\n'[10]M1a - Model inputs'!M122,\n'[10]M1b - Model inputs'!M122,\n'[10]SM1 - DECC Scenario 3 equiv'!M122,\n'[10]SM2 - DECC Scenario 1 equiv'!M122,\n'[10]SM3 - DECC Scenario 2 equiv'!M122,\n'[10]SM4 - DNO Scenario 4 equiv'!M122)","v":8.4828858944771781},{"$f":"CHOOSE(view,\n'[9]M1a - Model inputs'!N122,\n'[9]M1b - Model inputs'!N122,\n'[9]SM1 - DECC Scenario 3 equiv'!N122,\n'[9]SM2 - DECC Scenario 1 equiv'!N122,\n'[9]SM3 - DECC Scenario 2 equiv'!N122,\n'[9]SM4 - DNO Scenario 4 equiv'!N122,\n'[10]M1a - Model inputs'!N122,\n'[10]M1b - Model inputs'!N122,\n'[10]SM1 - DECC Scenario 3 equiv'!N122,\n'[10]SM2 - DECC Scenario 1 equiv'!N122,\n'[10]SM3 - DECC Scenario 2 equiv'!N122,\n'[10]SM4 - DNO Scenario 4 equiv'!N122)","v":8.4921858944771778},{"$f":"CHOOSE(view,\n'[9]M1a - Model inputs'!O122,\n'[9]M1b - Model inputs'!O122,\n'[9]SM1 - DECC Scenario 3 equiv'!O122,\n'[9]SM2 - DECC Scenario 1 equiv'!O122,\n'[9]SM3 - DECC Scenario 2 equiv'!O122,\n'[9]SM4 - DNO Scenario 4 equiv'!O122,\n'[10]M1a - Model inputs'!O122,\n'[10]M1b - Model inputs'!O122,\n'[10]SM1 - DECC Scenario 3 equiv'!O122,\n'[10]SM2 - DECC Scenario 1 equiv'!O122,\n'[10]SM3 - DECC Scenario 2 equiv'!O122,\n'[10]SM4 - DNO Scenario 4 equiv'!O122)","v":8.6444858944771781},{"$f":"CHOOSE(view,\n'[9]M1a - Model inputs'!P122,\n'[9]M1b - Model inputs'!P122,\n'[9]SM1 - DECC Scenario 3 equiv'!P122,\n'[9]SM2 - DECC Scenario 1 equiv'!P122,\n'[9]SM3 - DECC Scenario 2 equiv'!P122,\n'[9]SM4 - DNO Scenario 4 equiv'!P122,\n'[10]M1a - Model inputs'!P122,\n'[10]M1b - Model inputs'!P122,\n'[10]SM1 - DECC Scenario 3 equiv'!P122,\n'[10]SM2 - DECC Scenario 1 equiv'!P122,\n'[10]SM3 - DECC Scenario 2 equiv'!P122,\n'[10]SM4 - DNO Scenario 4 equiv'!P122)","v":8.6444858944771781},{"$f":"CHOOSE(view,\n'[9]M1a - Model inputs'!Q122,\n'[9]M1b - Model inputs'!Q122,\n'[9]SM1 - DECC Scenario 3 equiv'!Q122,\n'[9]SM2 - DECC Scenario 1 equiv'!Q122,\n'[9]SM3 - DECC Scenario 2 equiv'!Q122,\n'[9]SM4 - DNO Scenario 4 equiv'!Q122,\n'[10]M1a - Model inputs'!Q122,\n'[10]M1b - Model inputs'!Q122,\n'[10]SM1 - DECC Scenario 3 equiv'!Q122,\n'[10]SM2 - DECC Scenario 1 equiv'!Q122,\n'[10]SM3 - DECC Scenario 2 equiv'!Q122,\n'[10]SM4 - DNO Scenario 4 equiv'!Q122)","v":8.6444858944771781},{"$f":"CHOOSE(view,\n'[9]M1a - Model inputs'!R122,\n'[9]M1b - Model inputs'!R122,\n'[9]SM1 - DECC Scenario 3 equiv'!R122,\n'[9]SM2 - DECC Scenario 1 equiv'!R122,\n'[9]SM3 - DECC Scenario 2 equiv'!R122,\n'[9]SM4 - DNO Scenario 4 equiv'!R122,\n'[10]M1a - Model inputs'!R122,\n'[10]M1b - Model inputs'!R122,\n'[10]SM1 - DECC Scenario 3 equiv'!R122,\n'[10]SM2 - DECC Scenario 1 equiv'!R122,\n'[10]SM3 - DECC Scenario 2 equiv'!R122,\n'[10]SM4 - DNO Scenario 4 equiv'!R122)","v":8.6444858944771781},{"$f":"CHOOSE(view,\n'[9]M1a - Model inputs'!S122,\n'[9]M1b - Model inputs'!S122,\n'[9]SM1 - DECC Scenario 3 equiv'!S122,\n'[9]SM2 - DECC Scenario 1 equiv'!S122,\n'[9]SM3 - DECC Scenario 2 equiv'!S122,\n'[9]SM4 - DNO Scenario 4 equiv'!S122,\n'[10]M1a - Model inputs'!S122,\n'[10]M1b - Model inputs'!S122,\n'[10]SM1 - DECC Scenario 3 equiv'!S122,\n'[10]SM2 - DECC Scenario 1 equiv'!S122,\n'[10]SM3 - DECC Scenario 2 equiv'!S122,\n'[10]SM4 - DNO Scenario 4 equiv'!S122)","v":8.787485894477177}]
[null,null,null,null,{"$f":"Input!E30","v":"Pension scheme established deficit revenue allowances"},{"$f":"Input!F30","v":"XX"},{"$f":"Input!G30","v":"£m 12/13 prices"},{"$f":"Input!H30","v":"YY"},null,null,null,null,null,null,null,null,null,null,null,null,null,null,null,null,null,null,null,null,null,null,null,null,null,null,null,{"$f":"'[11]F7 Pensions DB scheme costs'!K263","v":24.991728353423724},{"$f":"'[11]F7 Pensions DB scheme costs'!L263","v":24.991728353423724},{"$f":"'[11]F7 Pensions DB scheme costs'!M263","v":24.991728353423724},{"$f":"'[11]F7 Pensions DB scheme costs'!N263","v":24.991728353423724},{"$f":"'[11]F7 Pensions DB scheme costs'!O263","v":24.991728353423724},{"$f":"'[11]F7 Pensions DB scheme costs'!P263","v":24.991728353423724},{"$f":"'[11]F7 Pensions DB scheme costs'!Q263","v":24.991728353423724},{"$f":"'[11]F7 Pensions DB scheme costs'!R263","v":24.991728353423724}]
[null,null,null,null,{"$f":"Input!E31","v":"Legacy price control allowed revenue adjustment"},{"$f":"Input!F31","v":"XX"},{"$f":"Input!G31","v":"£m 12/13 prices"},{"$f":"Input!H31","v":"YY"}]
[null,null,null,null,{"$f":"Input!E32","v":"Legacy price control RAV additions adjustment"},{"$f":"Input!F32","v":"XX"},{"$f":"Input!G32","v":"£m 12/13 prices"},{"$f":"Input!H32","v":"YY"},null,null,null,null,null,null,null,null,null,null,null,null,null,null,null,null,null,null,null,null,null,null,null,null,null,{"$f":"[12]DirectedValues!I79","v":-10.018008445613475},{"$f":"[12]DirectedValues!J79","v":-6.0085043747740849}]
[null,null,null,null,{"$f":"Input!E33","v":"Tax liability allowance adjustments - gearing/interest costs"},{"$f":"Input!F33","v":"XX"},{"$f":"Input!G33","v":"£m nominal"},{"$f":"Input!H33","v":"YY"}]
[null,null,null,null,{"$f":"Input!E34","v":"Tax liability allowance adjustments - driven by tax trigger events"},{"$f":"Input!F34","v":"XX"},{"$f":"Input!G34","v":"£m 12/13 prices"},{"$f":"Input!H34","v":"YY"}]
[null,null,null,null,{"$f":"Input!E35","v":"General pool capital allowance pre-RIIO movement adjustment"},{"$f":"Input!F35","v":"XX"},{"$f":"Input!G35","v":"Nominal"},{"$f":"Input!H35","v":"YY"}]
[null,null,null,null,{"$f":"Input!E36","v":"Special pool capital allowance pre-RIIO movement adjustment"},{"$f":"Input!F36","v":"XX"},{"$f":"Input!G36","v":"Nominal"},{"$f":"Input!H36","v":"YY"}]
[null,null,null,null,{"$f":"Input!E37","v":"Deferred Revenue Expenditure pre-RIIO movement adjustment"},{"$f":"Input!F37","v":"XX"},{"$f":"Input!G37","v":"Nominal"},{"$f":"Input!H37","v":"YY"}]
[null,null,null,null,{"$f":"Input!E38","v":"DRE: Gross capex adjustment"},{"$f":"Input!F38","v":"XX"},{"$f":"Input!G38","v":"Nominal"},{"$f":"Input!H38","v":"YY"}]
[]
[null,"Policy"]
[]
[null,null,"Cost of capital"]
[]
[null,null,null,null,"Cost of debt",null,"annual real %",null,null,null,null,null,null,null,null,null,null,null,null,null,null,null,null,null,null,null,null,null,null,null,null,null,null,null,null,{"$f":"AJ11","v":2.92E-2},{"$f":"AK11","v":2.92E-2},2.92E-2,2.92E-2,2.92E-2,2.92E-2,2.92E-2,2.92E-2]
[null,null,null,null,"Cost of equity",null,"annual real %",null,null,null,null,null,null,null,null,null,null,null,null,null,null,null,null,null,null,null,null,null,null,null,null,null,null,null,null,6.7000000000000004E-2,6.7000000000000004E-2,6.7000000000000004E-2,6.7000000000000004E-2,6.7000000000000004E-2,6.7000000000000004E-2,6.7000000000000004E-2,6.7000000000000004E-2]
[null,null,null,null,"Notional gearing",null,"%",null,null,">",null,null,null,null,null,null,null,null,null,null,null,null,null,null,null,null,null,null,null,null,null,null,null,null,0.65,0.65,0.65,0.65,0.65,0.65,0.65,0.65,0.65]
[]
[null,null,null,null,"Vanilla WACC",null,"annual real %",null,null,null,null,null,null,null,null,null,null,null,null,null,null,null,null,null,null,null,null,null,null,null,null,null,null,null,null,{"$f":"(AJ44 * AJ46) + (AJ45 * (1 - AJ46))","v":4.2429999999999995E-2},4.2429999999999995E-2,4.2429999999999995E-2,4.2429999999999995E-2,4.2429999999999995E-2,4.2429999999999995E-2,4.2429999999999995E-2,4.2429999999999995E-2]
[]
[]
[]
[null,null,"Indexation"]
[]
[null,null,null,null,"Forecast RPI (simple average year to March)",null,"index value",null,null,">",null,null,null,null,null,null,null,null,null,null,null,null,null,null,null,null,null,null,null,null,null,null,{"$f":"ROUND(AVERAGE(242.5,242.4,241.8,242.1,243,244.2,245.6,245.6,246.8,245.8,247.6,248.7),3)","v":244.67500000000001},{"$f":"ROUND(AG54*(1+2.8%),3)","v":251.52600000000001},258.56900000000002,265.80900000000003,273.25200000000001,280.90300000000002,288.76799999999997,296.85399999999998,305.166,313.71100000000001,322.495]
[null,null,null,null,"Cost of Debt Inflation",null,"index value",null,null,">",null,null,null,null,null,null,null,null,null,null,null,null,null,null,null,null,null,null,null,null,null,null,{"$f":"ROUND(AVERAGE(242.5,242.4,241.8,242.1,243,244.2,245.6,245.6,246.8,245.8,247.6,248.7),3)","v":244.67500000000001},{"$f":"ROUND(AG55*(1+2.8%),3)","v":251.52600000000001},258.56900000000002,265.80900000000003,273.25200000000001,280.90300000000002,288.76799999999997,296.85399999999998,305.166,313.71100000000001,322.495]
[]
[null,null,"TIM and capitalisation"]
[]
[null,null,null,null,"Years from t until normal reporting of actual costs",null,"years",null,2]
[]
[null,null,null,null,{"$f":"Input!E61","v":"Capitalised share of totex"},null,"%",null,null,null,null,null,null,null,null,null,null,null,null,null,null,null,null,null,null,null,null,null,null,null,null,null,null,null,null,0.8,0.8,0.8,0.8,0.8,0.8,0.8,0.8]
[]
[null,null,null,null,"Additional income %",null,"%",null,2.5000000000000001E-2]
[]
[null,null,null,null,"Incentive Strength",null,"%",null,0.7]
[]
[null,null,null,null,"Weight of Ofgem's view on price control totex",null,"%",null,0.75]
[null,null,null,null,"Weight of operator's view on price control totex",null,"%",null,0.25]
[]
[null,null,null,null,"Ofgem's view of  licensee totex",null,"£m 12/13 prices",null,{"$f":"I71","v":1124.9829395046572}]
[null,null,null,null,"Operator's view of licensee totex",null,"£m 12/13 prices",null,{"$f":"CHOOSE(view,\nSUM('[9]M1b - Model inputs'!$L$26:$S$26,'[9]M1b - Model inputs'!$L$103:$S$108),\nSUM('[9]M1b - Model inputs'!$L$26:$S$26,'[9]M1b - Model inputs'!$L$103:$S$108),\nSUM('[9]M1b - Model inputs'!$L$26:$S$26,'[9]M1b - Model inputs'!$L$103:$S$108),\nSUM('[9]M1b - Model inputs'!$L$26:$S$26,'[9]M1b - Model inputs'!$L$103:$S$108),\nSUM('[9]M1b - Model inputs'!$L$26:$S$26,'[9]M1b - Model inputs'!$L$103:$S$108),\nSUM('[9]M1b - Model inputs'!$L$26:$S$26,'[9]M1b - Model inputs'!$L$103:$S$108),\nSUM('[10]M1b - Model inputs'!$L$26:$S$26,'[10]M1b - Model inputs'!$L$103:$S$108),\nSUM('[10]M1b - Model inputs'!$L$26:$S$26,'[10]M1b - Model inputs'!$L$103:$S$108),\nSUM('[10]M1b - Model inputs'!$L$26:$S$26,'[10]M1b - Model inputs'!$L$103:$S$108),\nSUM('[10]M1b - Model inputs'!$L$26:$S$26,'[10]M1b - Model inputs'!$L$103:$S$108),\nSUM('[10]M1b - Model inputs'!$L$26:$S$26,'[10]M1b - Model inputs'!$L$103:$S$108),\nSUM('[10]M1b - Model inputs'!$L$26:$S$26,'[10]M1b - Model inputs'!$L$103:$S$108))","v":1124.9829395046572}]
[]
[null,null,null,null,"Ofgem's view of group price control totex",null,"£m 12/13 prices",null,{"$f":"I70 + EMID!I70 + SWEST!I70 + WMID!I70","v":7063.2910311137721}]
[null,null,null,null,"Operator's view of group price control totex ",null,"£m 12/13 prices",null,{"$f":"I71 + EMID!I71 + SWEST!I71 + WMID!I71","v":7063.2910311137721}]
[]
[null,null,"Finance"]
[]
[null,null,null,null,"Minimum equity issuance threshold",null,"%",null,0]
[null,null,null,null,"Equity issuance costs",null,"%",null,0]
[null,null,null,null,"Assumed dividends as % of notional equity portion of RAV",null,"%",null,6.7000000000000004E-2]
[]
[null,null,null,null,"Equity issuance gearing target",null,"%",null,null,null,null,null,null,null,null,null,null,null,null,null,null,null,null,null,null,null,null,null,null,null,null,null,null,null,null,{"$f":"AJ46","v":0.65},{"$f":"AK46","v":0.65},0.65,0.65,0.65,0.65,0.65,0.65]
[]
[null,null,null,null,"Index-linked debt as a percentage of net debt",null,"%",null,null,null,null,null,null,null,null,null,null,null,null,null,null,null,null,null,null,null,null,null,null,null,null,null,null,null,null,0.25,0.25,0.25,0.25,0.25,0.25,0.25,0.25]
[]
[null,"Expenditure"]
[]
[null,null,"Totex"]
[]
[null,null,null,"Non-variant allowances"]
[]
[null,null,null,null,{"$f":"Input!E92","v":"Non-variant allowed load related capex"},null,"£m 12/13 prices",null,null,null,null,null,null,null,null,null,null,null,null,null,null,null,null,null,null,null,null,null,null,null,null,null,null,null,null,{"$f":"CHOOSE(view,\n'[9]M1a - Model inputs'!L8+'[9]M1a - Model inputs'!L18,\n'[9]M1b - Model inputs'!L8+'[9]M1b - Model inputs'!L18,\n'[9]SM1 - DECC Scenario 3 equiv'!L8+'[9]SM1 - DECC Scenario 3 equiv'!L18,\n'[9]SM2 - DECC Scenario 1 equiv'!L8+'[9]SM2 - DECC Scenario 1 equiv'!L18,\n'[9]SM3 - DECC Scenario 2 equiv'!L8+'[9]SM3 - DECC Scenario 2 equiv'!L18,\n'[9]SM4 - DNO Scenario 4 equiv'!L8+'[9]SM4 - DNO Scenario 4 equiv'!L18,\n'[10]M1a - Model inputs'!L8+'[10]M1a - Model inputs'!L18,\n'[10]M1b - Model inputs'!L8+'[10]M1b - Model inputs'!L18,\n'[10]SM1 - DECC Scenario 3 equiv'!L8+'[10]SM1 - DECC Scenario 3 equiv'!L18,\n'[10]SM2 - DECC Scenario 1 equiv'!L8+'[10]SM2 - DECC Scenario 1 equiv'!L18,\n'[10]SM3 - DECC Scenario 2 equiv'!L8+'[10]SM3 - DECC Scenario 2 equiv'!L18,\n'[10]SM4 - DNO Scenario 4 equiv'!L8+'[10]SM4 - DNO Scenario 4 equiv'!L18)","v":4.0256561577515919},{"$f":"CHOOSE(view,\n'[9]M1a - Model inputs'!M8+'[9]M1a - Model inputs'!M18,\n'[9]M1b - Model inputs'!M8+'[9]M1b - Model inputs'!M18,\n'[9]SM1 - DECC Scenario 3 equiv'!M8+'[9]SM1 - DECC Scenario 3 equiv'!M18,\n'[9]SM2 - DECC Scenario 1 equiv'!M8+'[9]SM2 - DECC Scenario 1 equiv'!M18,\n'[9]SM3 - DECC Scenario 2 equiv'!M8+'[9]SM3 - DECC Scenario 2 equiv'!M18,\n'[9]SM4 - DNO Scenario 4 equiv'!M8+'[9]SM4 - DNO Scenario 4 equiv'!M18,\n'[10]M1a - Model inputs'!M8+'[10]M1a - Model inputs'!M18,\n'[10]M1b - Model inputs'!M8+'[10]M1b - Model inputs'!M18,\n'[10]SM1 - DECC Scenario 3 equiv'!M8+'[10]SM1 - DECC Scenario 3 equiv'!M18,\n'[10]SM2 - DECC Scenario 1 equiv'!M8+'[10]SM2 - DECC Scenario 1 equiv'!M18,\n'[10]SM3 - DECC Scenario 2 equiv'!M8+'[10]SM3 - DECC Scenario 2 equiv'!M18,\n'[10]SM4 - DNO Scenario 4 equiv'!M8+'[10]SM4 - DNO Scenario 4 equiv'!M18)","v":3.9988790801964762},{"$f":"CHOOSE(view,\n'[9]M1a - Model inputs'!N8+'[9]M1a - Model inputs'!N18,\n'[9]M1b - Model inputs'!N8+'[9]M1b - Model inputs'!N18,\n'[9]SM1 - DECC Scenario 3 equiv'!N8+'[9]SM1 - DECC Scenario 3 equiv'!N18,\n'[9]SM2 - DECC Scenario 1 equiv'!N8+'[9]SM2 - DECC Scenario 1 equiv'!N18,\n'[9]SM3 - DECC Scenario 2 equiv'!N8+'[9]SM3 - DECC Scenario 2 equiv'!N18,\n'[9]SM4 - DNO Scenario 4 equiv'!N8+'[9]SM4 - DNO Scenario 4 equiv'!N18,\n'[10]M1a - Model inputs'!N8+'[10]M1a - Model inputs'!N18,\n'[10]M1b - Model inputs'!N8+'[10]M1b - Model inputs'!N18,\n'[10]SM1 - DECC Scenario 3 equiv'!N8+'[10]SM1 - DECC Scenario 3 equiv'!N18,\n'[10]SM2 - DECC Scenario 1 equiv'!N8+'[10]SM2 - DECC Scenario 1 equiv'!N18,\n'[10]SM3 - DECC Scenario 2 equiv'!N8+'[10]SM3 - DECC Scenario 2 equiv'!N18,\n'[10]SM4 - DNO Scenario 4 equiv'!N8+'[10]SM4 - DNO Scenario 4 equiv'!N18)","v":4.8613311822697032},{"$f":"CHOOSE(view,\n'[9]M1a - Model inputs'!O8+'[9]M1a - Model inputs'!O18,\n'[9]M1b - Model inputs'!O8+'[9]M1b - Model inputs'!O18,\n'[9]SM1 - DECC Scenario 3 equiv'!O8+'[9]SM1 - DECC Scenario 3 equiv'!O18,\n'[9]SM2 - DECC Scenario 1 equiv'!O8+'[9]SM2 - DECC Scenario 1 equiv'!O18,\n'[9]SM3 - DECC Scenario 2 equiv'!O8+'[9]SM3 - DECC Scenario 2 equiv'!O18,\n'[9]SM4 - DNO Scenario 4 equiv'!O8+'[9]SM4 - DNO Scenario 4 equiv'!O18,\n'[10]M1a - Model inputs'!O8+'[10]M1a - Model inputs'!O18,\n'[10]M1b - Model inputs'!O8+'[10]M1b - Model inputs'!O18,\n'[10]SM1 - DECC Scenario 3 equiv'!O8+'[10]SM1 - DECC Scenario 3 equiv'!O18,\n'[10]SM2 - DECC Scenario 1 equiv'!O8+'[10]SM2 - DECC Scenario 1 equiv'!O18,\n'[10]SM3 - DECC Scenario 2 equiv'!O8+'[10]SM3 - DECC Scenario 2 equiv'!O18,\n'[10]SM4 - DNO Scenario 4 equiv'!O8+'[10]SM4 - DNO Scenario 4 equiv'!O18)","v":10.253990568432888},{"$f":"CHOOSE(view,\n'[9]M1a - Model inputs'!P8+'[9]M1a - Model inputs'!P18,\n'[9]M1b - Model inputs'!P8+'[9]M1b - Model inputs'!P18,\n'[9]SM1 - DECC Scenario 3 equiv'!P8+'[9]SM1 - DECC Scenario 3 equiv'!P18,\n'[9]SM2 - DECC Scenario 1 equiv'!P8+'[9]SM2 - DECC Scenario 1 equiv'!P18,\n'[9]SM3 - DECC Scenario 2 equiv'!P8+'[9]SM3 - DECC Scenario 2 equiv'!P18,\n'[9]SM4 - DNO Scenario 4 equiv'!P8+'[9]SM4 - DNO Scenario 4 equiv'!P18,\n'[10]M1a - Model inputs'!P8+'[10]M1a - Model inputs'!P18,\n'[10]M1b - Model inputs'!P8+'[10]M1b - Model inputs'!P18,\n'[10]SM1 - DECC Scenario 3 equiv'!P8+'[10]SM1 - DECC Scenario 3 equiv'!P18,\n'[10]SM2 - DECC Scenario 1 equiv'!P8+'[10]SM2 - DECC Scenario 1 equiv'!P18,\n'[10]SM3 - DECC Scenario 2 equiv'!P8+'[10]SM3 - DECC Scenario 2 equiv'!P18,\n'[10]SM4 - DNO Scenario 4 equiv'!P8+'[10]SM4 - DNO Scenario 4 equiv'!P18)","v":9.5656924797112808},{"$f":"CHOOSE(view,\n'[9]M1a - Model inputs'!Q8+'[9]M1a - Model inputs'!Q18,\n'[9]M1b - Model inputs'!Q8+'[9]M1b - Model inputs'!Q18,\n'[9]SM1 - DECC Scenario 3 equiv'!Q8+'[9]SM1 - DECC Scenario 3 equiv'!Q18,\n'[9]SM2 - DECC Scenario 1 equiv'!Q8+'[9]SM2 - DECC Scenario 1 equiv'!Q18,\n'[9]SM3 - DECC Scenario 2 equiv'!Q8+'[9]SM3 - DECC Scenario 2 equiv'!Q18,\n'[9]SM4 - DNO Scenario 4 equiv'!Q8+'[9]SM4 - DNO Scenario 4 equiv'!Q18,\n'[10]M1a - Model inputs'!Q8+'[10]M1a - Model inputs'!Q18,\n'[10]M1b - Model inputs'!Q8+'[10]M1b - Model inputs'!Q18,\n'[10]SM1 - DECC Scenario 3 equiv'!Q8+'[10]SM1 - DECC Scenario 3 equiv'!Q18,\n'[10]SM2 - DECC Scenario 1 equiv'!Q8+'[10]SM2 - DECC Scenario 1 equiv'!Q18,\n'[10]SM3 - DECC Scenario 2 equiv'!Q8+'[10]SM3 - DECC Scenario 2 equiv'!Q18,\n'[10]SM4 - DNO Scenario 4 equiv'!Q8+'[10]SM4 - DNO Scenario 4 equiv'!Q18)","v":9.4038589148452338},{"$f":"CHOOSE(view,\n'[9]M1a - Model inputs'!R8+'[9]M1a - Model inputs'!R18,\n'[9]M1b - Model inputs'!R8+'[9]M1b - Model inputs'!R18,\n'[9]SM1 - DECC Scenario 3 equiv'!R8+'[9]SM1 - DECC Scenario 3 equiv'!R18,\n'[9]SM2 - DECC Scenario 1 equiv'!R8+'[9]SM2 - DECC Scenario 1 equiv'!R18,\n'[9]SM3 - DECC Scenario 2 equiv'!R8+'[9]SM3 - DECC Scenario 2 equiv'!R18,\n'[9]SM4 - DNO Scenario 4 equiv'!R8+'[9]SM4 - DNO Scenario 4 equiv'!R18,\n'[10]M1a - Model inputs'!R8+'[10]M1a - Model inputs'!R18,\n'[10]M1b - Model inputs'!R8+'[10]M1b - Model inputs'!R18,\n'[10]SM1 - DECC Scenario 3 equiv'!R8+'[10]SM1 - DECC Scenario 3 equiv'!R18,\n'[10]SM2 - DECC Scenario 1 equiv'!R8+'[10]SM2 - DECC Scenario 1 equiv'!R18,\n'[10]SM3 - DECC Scenario 2 equiv'!R8+'[10]SM3 - DECC Scenario 2 equiv'!R18,\n'[10]SM4 - DNO Scenario 4 equiv'!R8+'[10]SM4 - DNO Scenario 4 equiv'!R18)","v":6.3465988519606205},{"$f":"CHOOSE(view,\n'[9]M1a - Model inputs'!S8+'[9]M1a - Model inputs'!S18,\n'[9]M1b - Model inputs'!S8+'[9]M1b - Model inputs'!S18,\n'[9]SM1 - DECC Scenario 3 equiv'!S8+'[9]SM1 - DECC Scenario 3 equiv'!S18,\n'[9]SM2 - DECC Scenario 1 equiv'!S8+'[9]SM2 - DECC Scenario 1 equiv'!S18,\n'[9]SM3 - DECC Scenario 2 equiv'!S8+'[9]SM3 - DECC Scenario 2 equiv'!S18,\n'[9]SM4 - DNO Scenario 4 equiv'!S8+'[9]SM4 - DNO Scenario 4 equiv'!S18,\n'[10]M1a - Model inputs'!S8+'[10]M1a - Model inputs'!S18,\n'[10]M1b - Model inputs'!S8+'[10]M1b - Model inputs'!S18,\n'[10]SM1 - DECC Scenario 3 equiv'!S8+'[10]SM1 - DECC Scenario 3 equiv'!S18,\n'[10]SM2 - DECC Scenario 1 equiv'!S8+'[10]SM2 - DECC Scenario 1 equiv'!S18,\n'[10]SM3 - DECC Scenario 2 equiv'!S8+'[10]SM3 - DECC Scenario 2 equiv'!S18,\n'[10]SM4 - DNO Scenario 4 equiv'!S8+'[10]SM4 - DNO Scenario 4 equiv'!S18)","v":6.4651135871888883}]
[null,null,null,null,{"$f":"Input!E93","v":"Non-variant allowed non-load related capex - asset replacement"},null,"£m 12/13 prices",null,null,null,null,null,null,null,null,null,null,null,null,null,null,null,null,null,null,null,null,null,null,null,null,null,null,null,null,{"$f":"CHOOSE(view,\n'[9]M1a - Model inputs'!L9+'[9]M1a - Model inputs'!L19,\n'[9]M1b - Model inputs'!L9+'[9]M1b - Model inputs'!L19,\n'[9]SM1 - DECC Scenario 3 equiv'!L9+'[9]SM1 - DECC Scenario 3 equiv'!L19,\n'[9]SM2 - DECC Scenario 1 equiv'!L9+'[9]SM2 - DECC Scenario 1 equiv'!L19,\n'[9]SM3 - DECC Scenario 2 equiv'!L9+'[9]SM3 - DECC Scenario 2 equiv'!L19,\n'[9]SM4 - DNO Scenario 4 equiv'!L9+'[9]SM4 - DNO Scenario 4 equiv'!L19,\n'[10]M1a - Model inputs'!L9+'[10]M1a - Model inputs'!L19,\n'[10]M1b - Model inputs'!L9+'[10]M1b - Model inputs'!L19,\n'[10]SM1 - DECC Scenario 3 equiv'!L9+'[10]SM1 - DECC Scenario 3 equiv'!L19,\n'[10]SM2 - DECC Scenario 1 equiv'!L9+'[10]SM2 - DECC Scenario 1 equiv'!L19,\n'[10]SM3 - DECC Scenario 2 equiv'!L9+'[10]SM3 - DECC Scenario 2 equiv'!L19,\n'[10]SM4 - DNO Scenario 4 equiv'!L9+'[10]SM4 - DNO Scenario 4 equiv'!L19)","v":60.862802020926495},{"$f":"CHOOSE(view,\n'[9]M1a - Model inputs'!M9+'[9]M1a - Model inputs'!M19,\n'[9]M1b - Model inputs'!M9+'[9]M1b - Model inputs'!M19,\n'[9]SM1 - DECC Scenario 3 equiv'!M9+'[9]SM1 - DECC Scenario 3 equiv'!M19,\n'[9]SM2 - DECC Scenario 1 equiv'!M9+'[9]SM2 - DECC Scenario 1 equiv'!M19,\n'[9]SM3 - DECC Scenario 2 equiv'!M9+'[9]SM3 - DECC Scenario 2 equiv'!M19,\n'[9]SM4 - DNO Scenario 4 equiv'!M9+'[9]SM4 - DNO Scenario 4 equiv'!M19,\n'[10]M1a - Model inputs'!M9+'[10]M1a - Model inputs'!M19,\n'[10]M1b - Model inputs'!M9+'[10]M1b - Model inputs'!M19,\n'[10]SM1 - DECC Scenario 3 equiv'!M9+'[10]SM1 - DECC Scenario 3 equiv'!M19,\n'[10]SM2 - DECC Scenario 1 equiv'!M9+'[10]SM2 - DECC Scenario 1 equiv'!M19,\n'[10]SM3 - DECC Scenario 2 equiv'!M9+'[10]SM3 - DECC Scenario 2 equiv'!M19,\n'[10]SM4 - DNO Scenario 4 equiv'!M9+'[10]SM4 - DNO Scenario 4 equiv'!M19)","v":60.535507704734826},{"$f":"CHOOSE(view,\n'[9]M1a - Model inputs'!N9+'[9]M1a - Model inputs'!N19,\n'[9]M1b - Model inputs'!N9+'[9]M1b - Model inputs'!N19,\n'[9]SM1 - DECC Scenario 3 equiv'!N9+'[9]SM1 - DECC Scenario 3 equiv'!N19,\n'[9]SM2 - DECC Scenario 1 equiv'!N9+'[9]SM2 - DECC Scenario 1 equiv'!N19,\n'[9]SM3 - DECC Scenario 2 equiv'!N9+'[9]SM3 - DECC Scenario 2 equiv'!N19,\n'[9]SM4 - DNO Scenario 4 equiv'!N9+'[9]SM4 - DNO Scenario 4 equiv'!N19,\n'[10]M1a - Model inputs'!N9+'[10]M1a - Model inputs'!N19,\n'[10]M1b - Model inputs'!N9+'[10]M1b - Model inputs'!N19,\n'[10]SM1 - DECC Scenario 3 equiv'!N9+'[10]SM1 - DECC Scenario 3 equiv'!N19,\n'[10]SM2 - DECC Scenario 1 equiv'!N9+'[10]SM2 - DECC Scenario 1 equiv'!N19,\n'[10]SM3 - DECC Scenario 2 equiv'!N9+'[10]SM3 - DECC Scenario 2 equiv'!N19,\n'[10]SM4 - DNO Scenario 4 equiv'!N9+'[10]SM4 - DNO Scenario 4 equiv'!N19)","v":50.844307957174777},{"$f":"CHOOSE(view,\n'[9]M1a - Model inputs'!O9+'[9]M1a - Model inputs'!O19,\n'[9]M1b - Model inputs'!O9+'[9]M1b - Model inputs'!O19,\n'[9]SM1 - DECC Scenario 3 equiv'!O9+'[9]SM1 - DECC Scenario 3 equiv'!O19,\n'[9]SM2 - DECC Scenario 1 equiv'!O9+'[9]SM2 - DECC Scenario 1 equiv'!O19,\n'[9]SM3 - DECC Scenario 2 equiv'!O9+'[9]SM3 - DECC Scenario 2 equiv'!O19,\n'[9]SM4 - DNO Scenario 4 equiv'!O9+'[9]SM4 - DNO Scenario 4 equiv'!O19,\n'[10]M1a - Model inputs'!O9+'[10]M1a - Model inputs'!O19,\n'[10]M1b - Model inputs'!O9+'[10]M1b - Model inputs'!O19,\n'[10]SM1 - DECC Scenario 3 equiv'!O9+'[10]SM1 - DECC Scenario 3 equiv'!O19,\n'[10]SM2 - DECC Scenario 1 equiv'!O9+'[10]SM2 - DECC Scenario 1 equiv'!O19,\n'[10]SM3 - DECC Scenario 2 equiv'!O9+'[10]SM3 - DECC Scenario 2 equiv'!O19,\n'[10]SM4 - DNO Scenario 4 equiv'!O9+'[10]SM4 - DNO Scenario 4 equiv'!O19)","v":51.585633566731531},{"$f":"CHOOSE(view,\n'[9]M1a - Model inputs'!P9+'[9]M1a - Model inputs'!P19,\n'[9]M1b - Model inputs'!P9+'[9]M1b - Model inputs'!P19,\n'[9]SM1 - DECC Scenario 3 equiv'!P9+'[9]SM1 - DECC Scenario 3 equiv'!P19,\n'[9]SM2 - DECC Scenario 1 equiv'!P9+'[9]SM2 - DECC Scenario 1 equiv'!P19,\n'[9]SM3 - DECC Scenario 2 equiv'!P9+'[9]SM3 - DECC Scenario 2 equiv'!P19,\n'[9]SM4 - DNO Scenario 4 equiv'!P9+'[9]SM4 - DNO Scenario 4 equiv'!P19,\n'[10]M1a - Model inputs'!P9+'[10]M1a - Model inputs'!P19,\n'[10]M1b - Model inputs'!P9+'[10]M1b - Model inputs'!P19,\n'[10]SM1 - DECC Scenario 3 equiv'!P9+'[10]SM1 - DECC Scenario 3 equiv'!P19,\n'[10]SM2 - DECC Scenario 1 equiv'!P9+'[10]SM2 - DECC Scenario 1 equiv'!P19,\n'[10]SM3 - DECC Scenario 2 equiv'!P9+'[10]SM3 - DECC Scenario 2 equiv'!P19,\n'[10]SM4 - DNO Scenario 4 equiv'!P9+'[10]SM4 - DNO Scenario 4 equiv'!P19)","v":46.24701995546107},{"$f":"CHOOSE(view,\n'[9]M1a - Model inputs'!Q9+'[9]M1a - Model inputs'!Q19,\n'[9]M1b - Model inputs'!Q9+'[9]M1b - Model inputs'!Q19,\n'[9]SM1 - DECC Scenario 3 equiv'!Q9+'[9]SM1 - DECC Scenario 3 equiv'!Q19,\n'[9]SM2 - DECC Scenario 1 equiv'!Q9+'[9]SM2 - DECC Scenario 1 equiv'!Q19,\n'[9]SM3 - DECC Scenario 2 equiv'!Q9+'[9]SM3 - DECC Scenario 2 equiv'!Q19,\n'[9]SM4 - DNO Scenario 4 equiv'!Q9+'[9]SM4 - DNO Scenario 4 equiv'!Q19,\n'[10]M1a - Model inputs'!Q9+'[10]M1a - Model inputs'!Q19,\n'[10]M1b - Model inputs'!Q9+'[10]M1b - Model inputs'!Q19,\n'[10]SM1 - DECC Scenario 3 equiv'!Q9+'[10]SM1 - DECC Scenario 3 equiv'!Q19,\n'[10]SM2 - DECC Scenario 1 equiv'!Q9+'[10]SM2 - DECC Scenario 1 equiv'!Q19,\n'[10]SM3 - DECC Scenario 2 equiv'!Q9+'[10]SM3 - DECC Scenario 2 equiv'!Q19,\n'[10]SM4 - DNO Scenario 4 equiv'!Q9+'[10]SM4 - DNO Scenario 4 equiv'!Q19)","v":45.820300752158758},{"$f":"CHOOSE(view,\n'[9]M1a - Model inputs'!R9+'[9]M1a - Model inputs'!R19,\n'[9]M1b - Model inputs'!R9+'[9]M1b - Model inputs'!R19,\n'[9]SM1 - DECC Scenario 3 equiv'!R9+'[9]SM1 - DECC Scenario 3 equiv'!R19,\n'[9]SM2 - DECC Scenario 1 equiv'!R9+'[9]SM2 - DECC Scenario 1 equiv'!R19,\n'[9]SM3 - DECC Scenario 2 equiv'!R9+'[9]SM3 - DECC Scenario 2 equiv'!R19,\n'[9]SM4 - DNO Scenario 4 equiv'!R9+'[9]SM4 - DNO Scenario 4 equiv'!R19,\n'[10]M1a - Model inputs'!R9+'[10]M1a - Model inputs'!R19,\n'[10]M1b - Model inputs'!R9+'[10]M1b - Model inputs'!R19,\n'[10]SM1 - DECC Scenario 3 equiv'!R9+'[10]SM1 - DECC Scenario 3 equiv'!R19,\n'[10]SM2 - DECC Scenario 1 equiv'!R9+'[10]SM2 - DECC Scenario 1 equiv'!R19,\n'[10]SM3 - DECC Scenario 2 equiv'!R9+'[10]SM3 - DECC Scenario 2 equiv'!R19,\n'[10]SM4 - DNO Scenario 4 equiv'!R9+'[10]SM4 - DNO Scenario 4 equiv'!R19)","v":46.409365376879556},{"$f":"CHOOSE(view,\n'[9]M1a - Model inputs'!S9+'[9]M1a - Model inputs'!S19,\n'[9]M1b - Model inputs'!S9+'[9]M1b - Model inputs'!S19,\n'[9]SM1 - DECC Scenario 3 equiv'!S9+'[9]SM1 - DECC Scenario 3 equiv'!S19,\n'[9]SM2 - DECC Scenario 1 equiv'!S9+'[9]SM2 - DECC Scenario 1 equiv'!S19,\n'[9]SM3 - DECC Scenario 2 equiv'!S9+'[9]SM3 - DECC Scenario 2 equiv'!S19,\n'[9]SM4 - DNO Scenario 4 equiv'!S9+'[9]SM4 - DNO Scenario 4 equiv'!S19,\n'[10]M1a - Model inputs'!S9+'[10]M1a - Model inputs'!S19,\n'[10]M1b - Model inputs'!S9+'[10]M1b - Model inputs'!S19,\n'[10]SM1 - DECC Scenario 3 equiv'!S9+'[10]SM1 - DECC Scenario 3 equiv'!S19,\n'[10]SM2 - DECC Scenario 1 equiv'!S9+'[10]SM2 - DECC Scenario 1 equiv'!S19,\n'[10]SM3 - DECC Scenario 2 equiv'!S9+'[10]SM3 - DECC Scenario 2 equiv'!S19,\n'[10]SM4 - DNO Scenario 4 equiv'!S9+'[10]SM4 - DNO Scenario 4 equiv'!S19)","v":46.764559184843769}]
[null,null,null,null,{"$f":"Input!E94","v":"Non-variant allowed non-load related capex - other"},null,"£m 12/13 prices",null,null,null,null,null,null,null,null,null,null,null,null,null,null,null,null,null,null,null,null,null,null,null,null,null,null,null,null,{"$f":"CHOOSE(view,\n'[9]M1a - Model inputs'!L10+'[9]M1a - Model inputs'!L20,\n'[9]M1b - Model inputs'!L10+'[9]M1b - Model inputs'!L20,\n'[9]SM1 - DECC Scenario 3 equiv'!L10+'[9]SM1 - DECC Scenario 3 equiv'!L20,\n'[9]SM2 - DECC Scenario 1 equiv'!L10+'[9]SM2 - DECC Scenario 1 equiv'!L20,\n'[9]SM3 - DECC Scenario 2 equiv'!L10+'[9]SM3 - DECC Scenario 2 equiv'!L20,\n'[9]SM4 - DNO Scenario 4 equiv'!L10+'[9]SM4 - DNO Scenario 4 equiv'!L20,\n'[10]M1a - Model inputs'!L10+'[10]M1a - Model inputs'!L20,\n'[10]M1b - Model inputs'!L10+'[10]M1b - Model inputs'!L20,\n'[10]SM1 - DECC Scenario 3 equiv'!L10+'[10]SM1 - DECC Scenario 3 equiv'!L20,\n'[10]SM2 - DECC Scenario 1 equiv'!L10+'[10]SM2 - DECC Scenario 1 equiv'!L20,\n'[10]SM3 - DECC Scenario 2 equiv'!L10+'[10]SM3 - DECC Scenario 2 equiv'!L20,\n'[10]SM4 - DNO Scenario 4 equiv'!L10+'[10]SM4 - DNO Scenario 4 equiv'!L20)","v":10.304620041850011},{"$f":"CHOOSE(view,\n'[9]M1a - Model inputs'!M10+'[9]M1a - Model inputs'!M20,\n'[9]M1b - Model inputs'!M10+'[9]M1b - Model inputs'!M20,\n'[9]SM1 - DECC Scenario 3 equiv'!M10+'[9]SM1 - DECC Scenario 3 equiv'!M20,\n'[9]SM2 - DECC Scenario 1 equiv'!M10+'[9]SM2 - DECC Scenario 1 equiv'!M20,\n'[9]SM3 - DECC Scenario 2 equiv'!M10+'[9]SM3 - DECC Scenario 2 equiv'!M20,\n'[9]SM4 - DNO Scenario 4 equiv'!M10+'[9]SM4 - DNO Scenario 4 equiv'!M20,\n'[10]M1a - Model inputs'!M10+'[10]M1a - Model inputs'!M20,\n'[10]M1b - Model inputs'!M10+'[10]M1b - Model inputs'!M20,\n'[10]SM1 - DECC Scenario 3 equiv'!M10+'[10]SM1 - DECC Scenario 3 equiv'!M20,\n'[10]SM2 - DECC Scenario 1 equiv'!M10+'[10]SM2 - DECC Scenario 1 equiv'!M20,\n'[10]SM3 - DECC Scenario 2 equiv'!M10+'[10]SM3 - DECC Scenario 2 equiv'!M20,\n'[10]SM4 - DNO Scenario 4 equiv'!M10+'[10]SM4 - DNO Scenario 4 equiv'!M20)","v":9.7746056688142318},{"$f":"CHOOSE(view,\n'[9]M1a - Model inputs'!N10+'[9]M1a - Model inputs'!N20,\n'[9]M1b - Model inputs'!N10+'[9]M1b - Model inputs'!N20,\n'[9]SM1 - DECC Scenario 3 equiv'!N10+'[9]SM1 - DECC Scenario 3 equiv'!N20,\n'[9]SM2 - DECC Scenario 1 equiv'!N10+'[9]SM2 - DECC Scenario 1 equiv'!N20,\n'[9]SM3 - DECC Scenario 2 equiv'!N10+'[9]SM3 - DECC Scenario 2 equiv'!N20,\n'[9]SM4 - DNO Scenario 4 equiv'!N10+'[9]SM4 - DNO Scenario 4 equiv'!N20,\n'[10]M1a - Model inputs'!N10+'[10]M1a - Model inputs'!N20,\n'[10]M1b - Model inputs'!N10+'[10]M1b - Model inputs'!N20,\n'[10]SM1 - DECC Scenario 3 equiv'!N10+'[10]SM1 - DECC Scenario 3 equiv'!N20,\n'[10]SM2 - DECC Scenario 1 equiv'!N10+'[10]SM2 - DECC Scenario 1 equiv'!N20,\n'[10]SM3 - DECC Scenario 2 equiv'!N10+'[10]SM3 - DECC Scenario 2 equiv'!N20,\n'[10]SM4 - DNO Scenario 4 equiv'!N10+'[10]SM4 - DNO Scenario 4 equiv'!N20)","v":11.842955322910028},{"$f":"CHOOSE(view,\n'[9]M1a - Model inputs'!O10+'[9]M1a - Model inputs'!O20,\n'[9]M1b - Model inputs'!O10+'[9]M1b - Model inputs'!O20,\n'[9]SM1 - DECC Scenario 3 equiv'!O10+'[9]SM1 - DECC Scenario 3 equiv'!O20,\n'[9]SM2 - DECC Scenario 1 equiv'!O10+'[9]SM2 - DECC Scenario 1 equiv'!O20,\n'[9]SM3 - DECC Scenario 2 equiv'!O10+'[9]SM3 - DECC Scenario 2 equiv'!O20,\n'[9]SM4 - DNO Scenario 4 equiv'!O10+'[9]SM4 - DNO Scenario 4 equiv'!O20,\n'[10]M1a - Model inputs'!O10+'[10]M1a - Model inputs'!O20,\n'[10]M1b - Model inputs'!O10+'[10]M1b - Model inputs'!O20,\n'[10]SM1 - DECC Scenario 3 equiv'!O10+'[10]SM1 - DECC Scenario 3 equiv'!O20,\n'[10]SM2 - DECC Scenario 1 equiv'!O10+'[10]SM2 - DECC Scenario 1 equiv'!O20,\n'[10]SM3 - DECC Scenario 2 equiv'!O10+'[10]SM3 - DECC Scenario 2 equiv'!O20,\n'[10]SM4 - DNO Scenario 4 equiv'!O10+'[10]SM4 - DNO Scenario 4 equiv'!O20)","v":13.92010493982816},{"$f":"CHOOSE(view,\n'[9]M1a - Model inputs'!P10+'[9]M1a - Model inputs'!P20,\n'[9]M1b - Model inputs'!P10+'[9]M1b - Model inputs'!P20,\n'[9]SM1 - DECC Scenario 3 equiv'!P10+'[9]SM1 - DECC Scenario 3 equiv'!P20,\n'[9]SM2 - DECC Scenario 1 equiv'!P10+'[9]SM2 - DECC Scenario 1 equiv'!P20,\n'[9]SM3 - DECC Scenario 2 equiv'!P10+'[9]SM3 - DECC Scenario 2 equiv'!P20,\n'[9]SM4 - DNO Scenario 4 equiv'!P10+'[9]SM4 - DNO Scenario 4 equiv'!P20,\n'[10]M1a - Model inputs'!P10+'[10]M1a - Model inputs'!P20,\n'[10]M1b - Model inputs'!P10+'[10]M1b - Model inputs'!P20,\n'[10]SM1 - DECC Scenario 3 equiv'!P10+'[10]SM1 - DECC Scenario 3 equiv'!P20,\n'[10]SM2 - DECC Scenario 1 equiv'!P10+'[10]SM2 - DECC Scenario 1 equiv'!P20,\n'[10]SM3 - DECC Scenario 2 equiv'!P10+'[10]SM3 - DECC Scenario 2 equiv'!P20,\n'[10]SM4 - DNO Scenario 4 equiv'!P10+'[10]SM4 - DNO Scenario 4 equiv'!P20)","v":7.5945285736752748},{"$f":"CHOOSE(view,\n'[9]M1a - Model inputs'!Q10+'[9]M1a - Model inputs'!Q20,\n'[9]M1b - Model inputs'!Q10+'[9]M1b - Model inputs'!Q20,\n'[9]SM1 - DECC Scenario 3 equiv'!Q10+'[9]SM1 - DECC Scenario 3 equiv'!Q20,\n'[9]SM2 - DECC Scenario 1 equiv'!Q10+'[9]SM2 - DECC Scenario 1 equiv'!Q20,\n'[9]SM3 - DECC Scenario 2 equiv'!Q10+'[9]SM3 - DECC Scenario 2 equiv'!Q20,\n'[9]SM4 - DNO Scenario 4 equiv'!Q10+'[9]SM4 - DNO Scenario 4 equiv'!Q20,\n'[10]M1a - Model inputs'!Q10+'[10]M1a - Model inputs'!Q20,\n'[10]M1b - Model inputs'!Q10+'[10]M1b - Model inputs'!Q20,\n'[10]SM1 - DECC Scenario 3 equiv'!Q10+'[10]SM1 - DECC Scenario 3 equiv'!Q20,\n'[10]SM2 - DECC Scenario 1 equiv'!Q10+'[10]SM2 - DECC Scenario 1 equiv'!Q20,\n'[10]SM3 - DECC Scenario 2 equiv'!Q10+'[10]SM3 - DECC Scenario 2 equiv'!Q20,\n'[10]SM4 - DNO Scenario 4 equiv'!Q10+'[10]SM4 - DNO Scenario 4 equiv'!Q20)","v":8.081982064775973},{"$f":"CHOOSE(view,\n'[9]M1a - Model inputs'!R10+'[9]M1a - Model inputs'!R20,\n'[9]M1b - Model inputs'!R10+'[9]M1b - Model inputs'!R20,\n'[9]SM1 - DECC Scenario 3 equiv'!R10+'[9]SM1 - DECC Scenario 3 equiv'!R20,\n'[9]SM2 - DECC Scenario 1 equiv'!R10+'[9]SM2 - DECC Scenario 1 equiv'!R20,\n'[9]SM3 - DECC Scenario 2 equiv'!R10+'[9]SM3 - DECC Scenario 2 equiv'!R20,\n'[9]SM4 - DNO Scenario 4 equiv'!R10+'[9]SM4 - DNO Scenario 4 equiv'!R20,\n'[10]M1a - Model inputs'!R10+'[10]M1a - Model inputs'!R20,\n'[10]M1b - Model inputs'!R10+'[10]M1b - Model inputs'!R20,\n'[10]SM1 - DECC Scenario 3 equiv'!R10+'[10]SM1 - DECC Scenario 3 equiv'!R20,\n'[10]SM2 - DECC Scenario 1 equiv'!R10+'[10]SM2 - DECC Scenario 1 equiv'!R20,\n'[10]SM3 - DECC Scenario 2 equiv'!R10+'[10]SM3 - DECC Scenario 2 equiv'!R20,\n'[10]SM4 - DNO Scenario 4 equiv'!R10+'[10]SM4 - DNO Scenario 4 equiv'!R20)","v":6.3204703235432262},{"$f":"CHOOSE(view,\n'[9]M1a - Model inputs'!S10+'[9]M1a - Model inputs'!S20,\n'[9]M1b - Model inputs'!S10+'[9]M1b - Model inputs'!S20,\n'[9]SM1 - DECC Scenario 3 equiv'!S10+'[9]SM1 - DECC Scenario 3 equiv'!S20,\n'[9]SM2 - DECC Scenario 1 equiv'!S10+'[9]SM2 - DECC Scenario 1 equiv'!S20,\n'[9]SM3 - DECC Scenario 2 equiv'!S10+'[9]SM3 - DECC Scenario 2 equiv'!S20,\n'[9]SM4 - DNO Scenario 4 equiv'!S10+'[9]SM4 - DNO Scenario 4 equiv'!S20,\n'[10]M1a - Model inputs'!S10+'[10]M1a - Model inputs'!S20,\n'[10]M1b - Model inputs'!S10+'[10]M1b - Model inputs'!S20,\n'[10]SM1 - DECC Scenario 3 equiv'!S10+'[10]SM1 - DECC Scenario 3 equiv'!S20,\n'[10]SM2 - DECC Scenario 1 equiv'!S10+'[10]SM2 - DECC Scenario 1 equiv'!S20,\n'[10]SM3 - DECC Scenario 2 equiv'!S10+'[10]SM3 - DECC Scenario 2 equiv'!S20,\n'[10]SM4 - DNO Scenario 4 equiv'!S10+'[10]SM4 - DNO Scenario 4 equiv'!S20)","v":7.9976745290231586}]
[null,null,null,null,{"$f":"Input!E95","v":"Non-variant allowed faults"},null,"£m 12/13 prices",null,null,null,null,null,null,null,null,null,null,null,null,null,null,null,null,null,null,null,null,null,null,null,null,null,null,null,null,{"$f":"CHOOSE(view,\n'[9]M1a - Model inputs'!L11+'[9]M1a - Model inputs'!L21,\n'[9]M1b - Model inputs'!L11+'[9]M1b - Model inputs'!L21,\n'[9]SM1 - DECC Scenario 3 equiv'!L11+'[9]SM1 - DECC Scenario 3 equiv'!L21,\n'[9]SM2 - DECC Scenario 1 equiv'!L11+'[9]SM2 - DECC Scenario 1 equiv'!L21,\n'[9]SM3 - DECC Scenario 2 equiv'!L11+'[9]SM3 - DECC Scenario 2 equiv'!L21,\n'[9]SM4 - DNO Scenario 4 equiv'!L11+'[9]SM4 - DNO Scenario 4 equiv'!L21,\n'[10]M1a - Model inputs'!L11+'[10]M1a - Model inputs'!L21,\n'[10]M1b - Model inputs'!L11+'[10]M1b - Model inputs'!L21,\n'[10]SM1 - DECC Scenario 3 equiv'!L11+'[10]SM1 - DECC Scenario 3 equiv'!L21,\n'[10]SM2 - DECC Scenario 1 equiv'!L11+'[10]SM2 - DECC Scenario 1 equiv'!L21,\n'[10]SM3 - DECC Scenario 2 equiv'!L11+'[10]SM3 - DECC Scenario 2 equiv'!L21,\n'[10]SM4 - DNO Scenario 4 equiv'!L11+'[10]SM4 - DNO Scenario 4 equiv'!L21)","v":13.675643387485199},{"$f":"CHOOSE(view,\n'[9]M1a - Model inputs'!M11+'[9]M1a - Model inputs'!M21,\n'[9]M1b - Model inputs'!M11+'[9]M1b - Model inputs'!M21,\n'[9]SM1 - DECC Scenario 3 equiv'!M11+'[9]SM1 - DECC Scenario 3 equiv'!M21,\n'[9]SM2 - DECC Scenario 1 equiv'!M11+'[9]SM2 - DECC Scenario 1 equiv'!M21,\n'[9]SM3 - DECC Scenario 2 equiv'!M11+'[9]SM3 - DECC Scenario 2 equiv'!M21,\n'[9]SM4 - DNO Scenario 4 equiv'!M11+'[9]SM4 - DNO Scenario 4 equiv'!M21,\n'[10]M1a - Model inputs'!M11+'[10]M1a - Model inputs'!M21,\n'[10]M1b - Model inputs'!M11+'[10]M1b - Model inputs'!M21,\n'[10]SM1 - DECC Scenario 3 equiv'!M11+'[10]SM1 - DECC Scenario 3 equiv'!M21,\n'[10]SM2 - DECC Scenario 1 equiv'!M11+'[10]SM2 - DECC Scenario 1 equiv'!M21,\n'[10]SM3 - DECC Scenario 2 equiv'!M11+'[10]SM3 - DECC Scenario 2 equiv'!M21,\n'[10]SM4 - DNO Scenario 4 equiv'!M11+'[10]SM4 - DNO Scenario 4 equiv'!M21)","v":13.636808343933879},{"$f":"CHOOSE(view,\n'[9]M1a - Model inputs'!N11+'[9]M1a - Model inputs'!N21,\n'[9]M1b - Model inputs'!N11+'[9]M1b - Model inputs'!N21,\n'[9]SM1 - DECC Scenario 3 equiv'!N11+'[9]SM1 - DECC Scenario 3 equiv'!N21,\n'[9]SM2 - DECC Scenario 1 equiv'!N11+'[9]SM2 - DECC Scenario 1 equiv'!N21,\n'[9]SM3 - DECC Scenario 2 equiv'!N11+'[9]SM3 - DECC Scenario 2 equiv'!N21,\n'[9]SM4 - DNO Scenario 4 equiv'!N11+'[9]SM4 - DNO Scenario 4 equiv'!N21,\n'[10]M1a - Model inputs'!N11+'[10]M1a - Model inputs'!N21,\n'[10]M1b - Model inputs'!N11+'[10]M1b - Model inputs'!N21,\n'[10]SM1 - DECC Scenario 3 equiv'!N11+'[10]SM1 - DECC Scenario 3 equiv'!N21,\n'[10]SM2 - DECC Scenario 1 equiv'!N11+'[10]SM2 - DECC Scenario 1 equiv'!N21,\n'[10]SM3 - DECC Scenario 2 equiv'!N11+'[10]SM3 - DECC Scenario 2 equiv'!N21,\n'[10]SM4 - DNO Scenario 4 equiv'!N11+'[10]SM4 - DNO Scenario 4 equiv'!N21)","v":13.519374464022535},{"$f":"CHOOSE(view,\n'[9]M1a - Model inputs'!O11+'[9]M1a - Model inputs'!O21,\n'[9]M1b - Model inputs'!O11+'[9]M1b - Model inputs'!O21,\n'[9]SM1 - DECC Scenario 3 equiv'!O11+'[9]SM1 - DECC Scenario 3 equiv'!O21,\n'[9]SM2 - DECC Scenario 1 equiv'!O11+'[9]SM2 - DECC Scenario 1 equiv'!O21,\n'[9]SM3 - DECC Scenario 2 equiv'!O11+'[9]SM3 - DECC Scenario 2 equiv'!O21,\n'[9]SM4 - DNO Scenario 4 equiv'!O11+'[9]SM4 - DNO Scenario 4 equiv'!O21,\n'[10]M1a - Model inputs'!O11+'[10]M1a - Model inputs'!O21,\n'[10]M1b - Model inputs'!O11+'[10]M1b - Model inputs'!O21,\n'[10]SM1 - DECC Scenario 3 equiv'!O11+'[10]SM1 - DECC Scenario 3 equiv'!O21,\n'[10]SM2 - DECC Scenario 1 equiv'!O11+'[10]SM2 - DECC Scenario 1 equiv'!O21,\n'[10]SM3 - DECC Scenario 2 equiv'!O11+'[10]SM3 - DECC Scenario 2 equiv'!O21,\n'[10]SM4 - DNO Scenario 4 equiv'!O11+'[10]SM4 - DNO Scenario 4 equiv'!O21)","v":13.454006881802805},{"$f":"CHOOSE(view,\n'[9]M1a - Model inputs'!P11+'[9]M1a - Model inputs'!P21,\n'[9]M1b - Model inputs'!P11+'[9]M1b - Model inputs'!P21,\n'[9]SM1 - DECC Scenario 3 equiv'!P11+'[9]SM1 - DECC Scenario 3 equiv'!P21,\n'[9]SM2 - DECC Scenario 1 equiv'!P11+'[9]SM2 - DECC Scenario 1 equiv'!P21,\n'[9]SM3 - DECC Scenario 2 equiv'!P11+'[9]SM3 - DECC Scenario 2 equiv'!P21,\n'[9]SM4 - DNO Scenario 4 equiv'!P11+'[9]SM4 - DNO Scenario 4 equiv'!P21,\n'[10]M1a - Model inputs'!P11+'[10]M1a - Model inputs'!P21,\n'[10]M1b - Model inputs'!P11+'[10]M1b - Model inputs'!P21,\n'[10]SM1 - DECC Scenario 3 equiv'!P11+'[10]SM1 - DECC Scenario 3 equiv'!P21,\n'[10]SM2 - DECC Scenario 1 equiv'!P11+'[10]SM2 - DECC Scenario 1 equiv'!P21,\n'[10]SM3 - DECC Scenario 2 equiv'!P11+'[10]SM3 - DECC Scenario 2 equiv'!P21,\n'[10]SM4 - DNO Scenario 4 equiv'!P11+'[10]SM4 - DNO Scenario 4 equiv'!P21)","v":13.400350844800375},{"$f":"CHOOSE(view,\n'[9]M1a - Model inputs'!Q11+'[9]M1a - Model inputs'!Q21,\n'[9]M1b - Model inputs'!Q11+'[9]M1b - Model inputs'!Q21,\n'[9]SM1 - DECC Scenario 3 equiv'!Q11+'[9]SM1 - DECC Scenario 3 equiv'!Q21,\n'[9]SM2 - DECC Scenario 1 equiv'!Q11+'[9]SM2 - DECC Scenario 1 equiv'!Q21,\n'[9]SM3 - DECC Scenario 2 equiv'!Q11+'[9]SM3 - DECC Scenario 2 equiv'!Q21,\n'[9]SM4 - DNO Scenario 4 equiv'!Q11+'[9]SM4 - DNO Scenario 4 equiv'!Q21,\n'[10]M1a - Model inputs'!Q11+'[10]M1a - Model inputs'!Q21,\n'[10]M1b - Model inputs'!Q11+'[10]M1b - Model inputs'!Q21,\n'[10]SM1 - DECC Scenario 3 equiv'!Q11+'[10]SM1 - DECC Scenario 3 equiv'!Q21,\n'[10]SM2 - DECC Scenario 1 equiv'!Q11+'[10]SM2 - DECC Scenario 1 equiv'!Q21,\n'[10]SM3 - DECC Scenario 2 equiv'!Q11+'[10]SM3 - DECC Scenario 2 equiv'!Q21,\n'[10]SM4 - DNO Scenario 4 equiv'!Q11+'[10]SM4 - DNO Scenario 4 equiv'!Q21)","v":13.419218035320633},{"$f":"CHOOSE(view,\n'[9]M1a - Model inputs'!R11+'[9]M1a - Model inputs'!R21,\n'[9]M1b - Model inputs'!R11+'[9]M1b - Model inputs'!R21,\n'[9]SM1 - DECC Scenario 3 equiv'!R11+'[9]SM1 - DECC Scenario 3 equiv'!R21,\n'[9]SM2 - DECC Scenario 1 equiv'!R11+'[9]SM2 - DECC Scenario 1 equiv'!R21,\n'[9]SM3 - DECC Scenario 2 equiv'!R11+'[9]SM3 - DECC Scenario 2 equiv'!R21,\n'[9]SM4 - DNO Scenario 4 equiv'!R11+'[9]SM4 - DNO Scenario 4 equiv'!R21,\n'[10]M1a - Model inputs'!R11+'[10]M1a - Model inputs'!R21,\n'[10]M1b - Model inputs'!R11+'[10]M1b - Model inputs'!R21,\n'[10]SM1 - DECC Scenario 3 equiv'!R11+'[10]SM1 - DECC Scenario 3 equiv'!R21,\n'[10]SM2 - DECC Scenario 1 equiv'!R11+'[10]SM2 - DECC Scenario 1 equiv'!R21,\n'[10]SM3 - DECC Scenario 2 equiv'!R11+'[10]SM3 - DECC Scenario 2 equiv'!R21,\n'[10]SM4 - DNO Scenario 4 equiv'!R11+'[10]SM4 - DNO Scenario 4 equiv'!R21)","v":13.480591598227756},{"$f":"CHOOSE(view,\n'[9]M1a - Model inputs'!S11+'[9]M1a - Model inputs'!S21,\n'[9]M1b - Model inputs'!S11+'[9]M1b - Model inputs'!S21,\n'[9]SM1 - DECC Scenario 3 equiv'!S11+'[9]SM1 - DECC Scenario 3 equiv'!S21,\n'[9]SM2 - DECC Scenario 1 equiv'!S11+'[9]SM2 - DECC Scenario 1 equiv'!S21,\n'[9]SM3 - DECC Scenario 2 equiv'!S11+'[9]SM3 - DECC Scenario 2 equiv'!S21,\n'[9]SM4 - DNO Scenario 4 equiv'!S11+'[9]SM4 - DNO Scenario 4 equiv'!S21,\n'[10]M1a - Model inputs'!S11+'[10]M1a - Model inputs'!S21,\n'[10]M1b - Model inputs'!S11+'[10]M1b - Model inputs'!S21,\n'[10]SM1 - DECC Scenario 3 equiv'!S11+'[10]SM1 - DECC Scenario 3 equiv'!S21,\n'[10]SM2 - DECC Scenario 1 equiv'!S11+'[10]SM2 - DECC Scenario 1 equiv'!S21,\n'[10]SM3 - DECC Scenario 2 equiv'!S11+'[10]SM3 - DECC Scenario 2 equiv'!S21,\n'[10]SM4 - DNO Scenario 4 equiv'!S11+'[10]SM4 - DNO Scenario 4 equiv'!S21)","v":13.531418361935845}]
[null,null,null,null,{"$f":"Input!E96","v":"Non-variant allowed tree cutting"},null,"£m 12/13 prices",null,null,null,null,null,null,null,null,null,null,null,null,null,null,null,null,null,null,null,null,null,null,null,null,null,null,null,null,{"$f":"CHOOSE(view,\n'[9]M1a - Model inputs'!L12+'[9]M1a - Model inputs'!L22,\n'[9]M1b - Model inputs'!L12+'[9]M1b - Model inputs'!L22,\n'[9]SM1 - DECC Scenario 3 equiv'!L12+'[9]SM1 - DECC Scenario 3 equiv'!L22,\n'[9]SM2 - DECC Scenario 1 equiv'!L12+'[9]SM2 - DECC Scenario 1 equiv'!L22,\n'[9]SM3 - DECC Scenario 2 equiv'!L12+'[9]SM3 - DECC Scenario 2 equiv'!L22,\n'[9]SM4 - DNO Scenario 4 equiv'!L12+'[9]SM4 - DNO Scenario 4 equiv'!L22,\n'[10]M1a - Model inputs'!L12+'[10]M1a - Model inputs'!L22,\n'[10]M1b - Model inputs'!L12+'[10]M1b - Model inputs'!L22,\n'[10]SM1 - DECC Scenario 3 equiv'!L12+'[10]SM1 - DECC Scenario 3 equiv'!L22,\n'[10]SM2 - DECC Scenario 1 equiv'!L12+'[10]SM2 - DECC Scenario 1 equiv'!L22,\n'[10]SM3 - DECC Scenario 2 equiv'!L12+'[10]SM3 - DECC Scenario 2 equiv'!L22,\n'[10]SM4 - DNO Scenario 4 equiv'!L12+'[10]SM4 - DNO Scenario 4 equiv'!L22)","v":7.8840427466105227},{"$f":"CHOOSE(view,\n'[9]M1a - Model inputs'!M12+'[9]M1a - Model inputs'!M22,\n'[9]M1b - Model inputs'!M12+'[9]M1b - Model inputs'!M22,\n'[9]SM1 - DECC Scenario 3 equiv'!M12+'[9]SM1 - DECC Scenario 3 equiv'!M22,\n'[9]SM2 - DECC Scenario 1 equiv'!M12+'[9]SM2 - DECC Scenario 1 equiv'!M22,\n'[9]SM3 - DECC Scenario 2 equiv'!M12+'[9]SM3 - DECC Scenario 2 equiv'!M22,\n'[9]SM4 - DNO Scenario 4 equiv'!M12+'[9]SM4 - DNO Scenario 4 equiv'!M22,\n'[10]M1a - Model inputs'!M12+'[10]M1a - Model inputs'!M22,\n'[10]M1b - Model inputs'!M12+'[10]M1b - Model inputs'!M22,\n'[10]SM1 - DECC Scenario 3 equiv'!M12+'[10]SM1 - DECC Scenario 3 equiv'!M22,\n'[10]SM2 - DECC Scenario 1 equiv'!M12+'[10]SM2 - DECC Scenario 1 equiv'!M22,\n'[10]SM3 - DECC Scenario 2 equiv'!M12+'[10]SM3 - DECC Scenario 2 equiv'!M22,\n'[10]SM4 - DNO Scenario 4 equiv'!M12+'[10]SM4 - DNO Scenario 4 equiv'!M22)","v":7.9110388739756328},{"$f":"CHOOSE(view,\n'[9]M1a - Model inputs'!N12+'[9]M1a - Model inputs'!N22,\n'[9]M1b - Model inputs'!N12+'[9]M1b - Model inputs'!N22,\n'[9]SM1 - DECC Scenario 3 equiv'!N12+'[9]SM1 - DECC Scenario 3 equiv'!N22,\n'[9]SM2 - DECC Scenario 1 equiv'!N12+'[9]SM2 - DECC Scenario 1 equiv'!N22,\n'[9]SM3 - DECC Scenario 2 equiv'!N12+'[9]SM3 - DECC Scenario 2 equiv'!N22,\n'[9]SM4 - DNO Scenario 4 equiv'!N12+'[9]SM4 - DNO Scenario 4 equiv'!N22,\n'[10]M1a - Model inputs'!N12+'[10]M1a - Model inputs'!N22,\n'[10]M1b - Model inputs'!N12+'[10]M1b - Model inputs'!N22,\n'[10]SM1 - DECC Scenario 3 equiv'!N12+'[10]SM1 - DECC Scenario 3 equiv'!N22,\n'[10]SM2 - DECC Scenario 1 equiv'!N12+'[10]SM2 - DECC Scenario 1 equiv'!N22,\n'[10]SM3 - DECC Scenario 2 equiv'!N12+'[10]SM3 - DECC Scenario 2 equiv'!N22,\n'[10]SM4 - DNO Scenario 4 equiv'!N12+'[10]SM4 - DNO Scenario 4 equiv'!N22)","v":7.9152161605997957},{"$f":"CHOOSE(view,\n'[9]M1a - Model inputs'!O12+'[9]M1a - Model inputs'!O22,\n'[9]M1b - Model inputs'!O12+'[9]M1b - Model inputs'!O22,\n'[9]SM1 - DECC Scenario 3 equiv'!O12+'[9]SM1 - DECC Scenario 3 equiv'!O22,\n'[9]SM2 - DECC Scenario 1 equiv'!O12+'[9]SM2 - DECC Scenario 1 equiv'!O22,\n'[9]SM3 - DECC Scenario 2 equiv'!O12+'[9]SM3 - DECC Scenario 2 equiv'!O22,\n'[9]SM4 - DNO Scenario 4 equiv'!O12+'[9]SM4 - DNO Scenario 4 equiv'!O22,\n'[10]M1a - Model inputs'!O12+'[10]M1a - Model inputs'!O22,\n'[10]M1b - Model inputs'!O12+'[10]M1b - Model inputs'!O22,\n'[10]SM1 - DECC Scenario 3 equiv'!O12+'[10]SM1 - DECC Scenario 3 equiv'!O22,\n'[10]SM2 - DECC Scenario 1 equiv'!O12+'[10]SM2 - DECC Scenario 1 equiv'!O22,\n'[10]SM3 - DECC Scenario 2 equiv'!O12+'[10]SM3 - DECC Scenario 2 equiv'!O22,\n'[10]SM4 - DNO Scenario 4 equiv'!O12+'[10]SM4 - DNO Scenario 4 equiv'!O22)","v":7.9693076836745984},{"$f":"CHOOSE(view,\n'[9]M1a - Model inputs'!P12+'[9]M1a - Model inputs'!P22,\n'[9]M1b - Model inputs'!P12+'[9]M1b - Model inputs'!P22,\n'[9]SM1 - DECC Scenario 3 equiv'!P12+'[9]SM1 - DECC Scenario 3 equiv'!P22,\n'[9]SM2 - DECC Scenario 1 equiv'!P12+'[9]SM2 - DECC Scenario 1 equiv'!P22,\n'[9]SM3 - DECC Scenario 2 equiv'!P12+'[9]SM3 - DECC Scenario 2 equiv'!P22,\n'[9]SM4 - DNO Scenario 4 equiv'!P12+'[9]SM4 - DNO Scenario 4 equiv'!P22,\n'[10]M1a - Model inputs'!P12+'[10]M1a - Model inputs'!P22,\n'[10]M1b - Model inputs'!P12+'[10]M1b - Model inputs'!P22,\n'[10]SM1 - DECC Scenario 3 equiv'!P12+'[10]SM1 - DECC Scenario 3 equiv'!P22,\n'[10]SM2 - DECC Scenario 1 equiv'!P12+'[10]SM2 - DECC Scenario 1 equiv'!P22,\n'[10]SM3 - DECC Scenario 2 equiv'!P12+'[10]SM3 - DECC Scenario 2 equiv'!P22,\n'[10]SM4 - DNO Scenario 4 equiv'!P12+'[10]SM4 - DNO Scenario 4 equiv'!P22)","v":8.0243421182018455},{"$f":"CHOOSE(view,\n'[9]M1a - Model inputs'!Q12+'[9]M1a - Model inputs'!Q22,\n'[9]M1b - Model inputs'!Q12+'[9]M1b - Model inputs'!Q22,\n'[9]SM1 - DECC Scenario 3 equiv'!Q12+'[9]SM1 - DECC Scenario 3 equiv'!Q22,\n'[9]SM2 - DECC Scenario 1 equiv'!Q12+'[9]SM2 - DECC Scenario 1 equiv'!Q22,\n'[9]SM3 - DECC Scenario 2 equiv'!Q12+'[9]SM3 - DECC Scenario 2 equiv'!Q22,\n'[9]SM4 - DNO Scenario 4 equiv'!Q12+'[9]SM4 - DNO Scenario 4 equiv'!Q22,\n'[10]M1a - Model inputs'!Q12+'[10]M1a - Model inputs'!Q22,\n'[10]M1b - Model inputs'!Q12+'[10]M1b - Model inputs'!Q22,\n'[10]SM1 - DECC Scenario 3 equiv'!Q12+'[10]SM1 - DECC Scenario 3 equiv'!Q22,\n'[10]SM2 - DECC Scenario 1 equiv'!Q12+'[10]SM2 - DECC Scenario 1 equiv'!Q22,\n'[10]SM3 - DECC Scenario 2 equiv'!Q12+'[10]SM3 - DECC Scenario 2 equiv'!Q22,\n'[10]SM4 - DNO Scenario 4 equiv'!Q12+'[10]SM4 - DNO Scenario 4 equiv'!Q22)","v":8.0786884745484659},{"$f":"CHOOSE(view,\n'[9]M1a - Model inputs'!R12+'[9]M1a - Model inputs'!R22,\n'[9]M1b - Model inputs'!R12+'[9]M1b - Model inputs'!R22,\n'[9]SM1 - DECC Scenario 3 equiv'!R12+'[9]SM1 - DECC Scenario 3 equiv'!R22,\n'[9]SM2 - DECC Scenario 1 equiv'!R12+'[9]SM2 - DECC Scenario 1 equiv'!R22,\n'[9]SM3 - DECC Scenario 2 equiv'!R12+'[9]SM3 - DECC Scenario 2 equiv'!R22,\n'[9]SM4 - DNO Scenario 4 equiv'!R12+'[9]SM4 - DNO Scenario 4 equiv'!R22,\n'[10]M1a - Model inputs'!R12+'[10]M1a - Model inputs'!R22,\n'[10]M1b - Model inputs'!R12+'[10]M1b - Model inputs'!R22,\n'[10]SM1 - DECC Scenario 3 equiv'!R12+'[10]SM1 - DECC Scenario 3 equiv'!R22,\n'[10]SM2 - DECC Scenario 1 equiv'!R12+'[10]SM2 - DECC Scenario 1 equiv'!R22,\n'[10]SM3 - DECC Scenario 2 equiv'!R12+'[10]SM3 - DECC Scenario 2 equiv'!R22,\n'[10]SM4 - DNO Scenario 4 equiv'!R12+'[10]SM4 - DNO Scenario 4 equiv'!R22)","v":8.1336681026032416},{"$f":"CHOOSE(view,\n'[9]M1a - Model inputs'!S12+'[9]M1a - Model inputs'!S22,\n'[9]M1b - Model inputs'!S12+'[9]M1b - Model inputs'!S22,\n'[9]SM1 - DECC Scenario 3 equiv'!S12+'[9]SM1 - DECC Scenario 3 equiv'!S22,\n'[9]SM2 - DECC Scenario 1 equiv'!S12+'[9]SM2 - DECC Scenario 1 equiv'!S22,\n'[9]SM3 - DECC Scenario 2 equiv'!S12+'[9]SM3 - DECC Scenario 2 equiv'!S22,\n'[9]SM4 - DNO Scenario 4 equiv'!S12+'[9]SM4 - DNO Scenario 4 equiv'!S22,\n'[10]M1a - Model inputs'!S12+'[10]M1a - Model inputs'!S22,\n'[10]M1b - Model inputs'!S12+'[10]M1b - Model inputs'!S22,\n'[10]SM1 - DECC Scenario 3 equiv'!S12+'[10]SM1 - DECC Scenario 3 equiv'!S22,\n'[10]SM2 - DECC Scenario 1 equiv'!S12+'[10]SM2 - DECC Scenario 1 equiv'!S22,\n'[10]SM3 - DECC Scenario 2 equiv'!S12+'[10]SM3 - DECC Scenario 2 equiv'!S22,\n'[10]SM4 - DNO Scenario 4 equiv'!S12+'[10]SM4 - DNO Scenario 4 equiv'!S22)","v":8.19033292977619}]
[null,null,null,null,{"$f":"Input!E97","v":"Non-variant allowed controllable opex"},null,"£m 12/13 prices",null,null,null,null,null,null,null,null,null,null,null,null,null,null,null,null,null,null,null,null,null,null,null,null,null,null,null,null,{"$f":"CHOOSE(view,\n'[9]M1a - Model inputs'!L13+'[9]M1a - Model inputs'!L23,\n'[9]M1b - Model inputs'!L13+'[9]M1b - Model inputs'!L23,\n'[9]SM1 - DECC Scenario 3 equiv'!L13+'[9]SM1 - DECC Scenario 3 equiv'!L23,\n'[9]SM2 - DECC Scenario 1 equiv'!L13+'[9]SM2 - DECC Scenario 1 equiv'!L23,\n'[9]SM3 - DECC Scenario 2 equiv'!L13+'[9]SM3 - DECC Scenario 2 equiv'!L23,\n'[9]SM4 - DNO Scenario 4 equiv'!L13+'[9]SM4 - DNO Scenario 4 equiv'!L23,\n'[10]M1a - Model inputs'!L13+'[10]M1a - Model inputs'!L23,\n'[10]M1b - Model inputs'!L13+'[10]M1b - Model inputs'!L23,\n'[10]SM1 - DECC Scenario 3 equiv'!L13+'[10]SM1 - DECC Scenario 3 equiv'!L23,\n'[10]SM2 - DECC Scenario 1 equiv'!L13+'[10]SM2 - DECC Scenario 1 equiv'!L23,\n'[10]SM3 - DECC Scenario 2 equiv'!L13+'[10]SM3 - DECC Scenario 2 equiv'!L23,\n'[10]SM4 - DNO Scenario 4 equiv'!L13+'[10]SM4 - DNO Scenario 4 equiv'!L23)","v":50.248631994949541},{"$f":"CHOOSE(view,\n'[9]M1a - Model inputs'!M13+'[9]M1a - Model inputs'!M23,\n'[9]M1b - Model inputs'!M13+'[9]M1b - Model inputs'!M23,\n'[9]SM1 - DECC Scenario 3 equiv'!M13+'[9]SM1 - DECC Scenario 3 equiv'!M23,\n'[9]SM2 - DECC Scenario 1 equiv'!M13+'[9]SM2 - DECC Scenario 1 equiv'!M23,\n'[9]SM3 - DECC Scenario 2 equiv'!M13+'[9]SM3 - DECC Scenario 2 equiv'!M23,\n'[9]SM4 - DNO Scenario 4 equiv'!M13+'[9]SM4 - DNO Scenario 4 equiv'!M23,\n'[10]M1a - Model inputs'!M13+'[10]M1a - Model inputs'!M23,\n'[10]M1b - Model inputs'!M13+'[10]M1b - Model inputs'!M23,\n'[10]SM1 - DECC Scenario 3 equiv'!M13+'[10]SM1 - DECC Scenario 3 equiv'!M23,\n'[10]SM2 - DECC Scenario 1 equiv'!M13+'[10]SM2 - DECC Scenario 1 equiv'!M23,\n'[10]SM3 - DECC Scenario 2 equiv'!M13+'[10]SM3 - DECC Scenario 2 equiv'!M23,\n'[10]SM4 - DNO Scenario 4 equiv'!M13+'[10]SM4 - DNO Scenario 4 equiv'!M23)","v":51.084876824402109},{"$f":"CHOOSE(view,\n'[9]M1a - Model inputs'!N13+'[9]M1a - Model inputs'!N23,\n'[9]M1b - Model inputs'!N13+'[9]M1b - Model inputs'!N23,\n'[9]SM1 - DECC Scenario 3 equiv'!N13+'[9]SM1 - DECC Scenario 3 equiv'!N23,\n'[9]SM2 - DECC Scenario 1 equiv'!N13+'[9]SM2 - DECC Scenario 1 equiv'!N23,\n'[9]SM3 - DECC Scenario 2 equiv'!N13+'[9]SM3 - DECC Scenario 2 equiv'!N23,\n'[9]SM4 - DNO Scenario 4 equiv'!N13+'[9]SM4 - DNO Scenario 4 equiv'!N23,\n'[10]M1a - Model inputs'!N13+'[10]M1a - Model inputs'!N23,\n'[10]M1b - Model inputs'!N13+'[10]M1b - Model inputs'!N23,\n'[10]SM1 - DECC Scenario 3 equiv'!N13+'[10]SM1 - DECC Scenario 3 equiv'!N23,\n'[10]SM2 - DECC Scenario 1 equiv'!N13+'[10]SM2 - DECC Scenario 1 equiv'!N23,\n'[10]SM3 - DECC Scenario 2 equiv'!N13+'[10]SM3 - DECC Scenario 2 equiv'!N23,\n'[10]SM4 - DNO Scenario 4 equiv'!N13+'[10]SM4 - DNO Scenario 4 equiv'!N23)","v":50.958825244082078},{"$f":"CHOOSE(view,\n'[9]M1a - Model inputs'!O13+'[9]M1a - Model inputs'!O23,\n'[9]M1b - Model inputs'!O13+'[9]M1b - Model inputs'!O23,\n'[9]SM1 - DECC Scenario 3 equiv'!O13+'[9]SM1 - DECC Scenario 3 equiv'!O23,\n'[9]SM2 - DECC Scenario 1 equiv'!O13+'[9]SM2 - DECC Scenario 1 equiv'!O23,\n'[9]SM3 - DECC Scenario 2 equiv'!O13+'[9]SM3 - DECC Scenario 2 equiv'!O23,\n'[9]SM4 - DNO Scenario 4 equiv'!O13+'[9]SM4 - DNO Scenario 4 equiv'!O23,\n'[10]M1a - Model inputs'!O13+'[10]M1a - Model inputs'!O23,\n'[10]M1b - Model inputs'!O13+'[10]M1b - Model inputs'!O23,\n'[10]SM1 - DECC Scenario 3 equiv'!O13+'[10]SM1 - DECC Scenario 3 equiv'!O23,\n'[10]SM2 - DECC Scenario 1 equiv'!O13+'[10]SM2 - DECC Scenario 1 equiv'!O23,\n'[10]SM3 - DECC Scenario 2 equiv'!O13+'[10]SM3 - DECC Scenario 2 equiv'!O23,\n'[10]SM4 - DNO Scenario 4 equiv'!O13+'[10]SM4 - DNO Scenario 4 equiv'!O23)","v":51.751597236251897},{"$f":"CHOOSE(view,\n'[9]M1a - Model inputs'!P13+'[9]M1a - Model inputs'!P23,\n'[9]M1b - Model inputs'!P13+'[9]M1b - Model inputs'!P23,\n'[9]SM1 - DECC Scenario 3 equiv'!P13+'[9]SM1 - DECC Scenario 3 equiv'!P23,\n'[9]SM2 - DECC Scenario 1 equiv'!P13+'[9]SM2 - DECC Scenario 1 equiv'!P23,\n'[9]SM3 - DECC Scenario 2 equiv'!P13+'[9]SM3 - DECC Scenario 2 equiv'!P23,\n'[9]SM4 - DNO Scenario 4 equiv'!P13+'[9]SM4 - DNO Scenario 4 equiv'!P23,\n'[10]M1a - Model inputs'!P13+'[10]M1a - Model inputs'!P23,\n'[10]M1b - Model inputs'!P13+'[10]M1b - Model inputs'!P23,\n'[10]SM1 - DECC Scenario 3 equiv'!P13+'[10]SM1 - DECC Scenario 3 equiv'!P23,\n'[10]SM2 - DECC Scenario 1 equiv'!P13+'[10]SM2 - DECC Scenario 1 equiv'!P23,\n'[10]SM3 - DECC Scenario 2 equiv'!P13+'[10]SM3 - DECC Scenario 2 equiv'!P23,\n'[10]SM4 - DNO Scenario 4 equiv'!P13+'[10]SM4 - DNO Scenario 4 equiv'!P23)","v":51.601563980882233},{"$f":"CHOOSE(view,\n'[9]M1a - Model inputs'!Q13+'[9]M1a - Model inputs'!Q23,\n'[9]M1b - Model inputs'!Q13+'[9]M1b - Model inputs'!Q23,\n'[9]SM1 - DECC Scenario 3 equiv'!Q13+'[9]SM1 - DECC Scenario 3 equiv'!Q23,\n'[9]SM2 - DECC Scenario 1 equiv'!Q13+'[9]SM2 - DECC Scenario 1 equiv'!Q23,\n'[9]SM3 - DECC Scenario 2 equiv'!Q13+'[9]SM3 - DECC Scenario 2 equiv'!Q23,\n'[9]SM4 - DNO Scenario 4 equiv'!Q13+'[9]SM4 - DNO Scenario 4 equiv'!Q23,\n'[10]M1a - Model inputs'!Q13+'[10]M1a - Model inputs'!Q23,\n'[10]M1b - Model inputs'!Q13+'[10]M1b - Model inputs'!Q23,\n'[10]SM1 - DECC Scenario 3 equiv'!Q13+'[10]SM1 - DECC Scenario 3 equiv'!Q23,\n'[10]SM2 - DECC Scenario 1 equiv'!Q13+'[10]SM2 - DECC Scenario 1 equiv'!Q23,\n'[10]SM3 - DECC Scenario 2 equiv'!Q13+'[10]SM3 - DECC Scenario 2 equiv'!Q23,\n'[10]SM4 - DNO Scenario 4 equiv'!Q13+'[10]SM4 - DNO Scenario 4 equiv'!Q23)","v":51.836071184505542},{"$f":"CHOOSE(view,\n'[9]M1a - Model inputs'!R13+'[9]M1a - Model inputs'!R23,\n'[9]M1b - Model inputs'!R13+'[9]M1b - Model inputs'!R23,\n'[9]SM1 - DECC Scenario 3 equiv'!R13+'[9]SM1 - DECC Scenario 3 equiv'!R23,\n'[9]SM2 - DECC Scenario 1 equiv'!R13+'[9]SM2 - DECC Scenario 1 equiv'!R23,\n'[9]SM3 - DECC Scenario 2 equiv'!R13+'[9]SM3 - DECC Scenario 2 equiv'!R23,\n'[9]SM4 - DNO Scenario 4 equiv'!R13+'[9]SM4 - DNO Scenario 4 equiv'!R23,\n'[10]M1a - Model inputs'!R13+'[10]M1a - Model inputs'!R23,\n'[10]M1b - Model inputs'!R13+'[10]M1b - Model inputs'!R23,\n'[10]SM1 - DECC Scenario 3 equiv'!R13+'[10]SM1 - DECC Scenario 3 equiv'!R23,\n'[10]SM2 - DECC Scenario 1 equiv'!R13+'[10]SM2 - DECC Scenario 1 equiv'!R23,\n'[10]SM3 - DECC Scenario 2 equiv'!R13+'[10]SM3 - DECC Scenario 2 equiv'!R23,\n'[10]SM4 - DNO Scenario 4 equiv'!R13+'[10]SM4 - DNO Scenario 4 equiv'!R23)","v":51.40908644609123},{"$f":"CHOOSE(view,\n'[9]M1a - Model inputs'!S13+'[9]M1a - Model inputs'!S23,\n'[9]M1b - Model inputs'!S13+'[9]M1b - Model inputs'!S23,\n'[9]SM1 - DECC Scenario 3 equiv'!S13+'[9]SM1 - DECC Scenario 3 equiv'!S23,\n'[9]SM2 - DECC Scenario 1 equiv'!S13+'[9]SM2 - DECC Scenario 1 equiv'!S23,\n'[9]SM3 - DECC Scenario 2 equiv'!S13+'[9]SM3 - DECC Scenario 2 equiv'!S23,\n'[9]SM4 - DNO Scenario 4 equiv'!S13+'[9]SM4 - DNO Scenario 4 equiv'!S23,\n'[10]M1a - Model inputs'!S13+'[10]M1a - Model inputs'!S23,\n'[10]M1b - Model inputs'!S13+'[10]M1b - Model inputs'!S23,\n'[10]SM1 - DECC Scenario 3 equiv'!S13+'[10]SM1 - DECC Scenario 3 equiv'!S23,\n'[10]SM2 - DECC Scenario 1 equiv'!S13+'[10]SM2 - DECC Scenario 1 equiv'!S23,\n'[10]SM3 - DECC Scenario 2 equiv'!S13+'[10]SM3 - DECC Scenario 2 equiv'!S23,\n'[10]SM4 - DNO Scenario 4 equiv'!S13+'[10]SM4 - DNO Scenario 4 equiv'!S23)","v":51.46935522841251}]
[]
[null,null,null,"Variant allowances"]
[]
[null,null,null,null,{"$f":"Input!E101","v":"Allowed uncertain costs (CNI)"},null,"£m 12/13 prices",null,null,null,null,null,null,null,null,null,null,null,null,null,null,null,null,null,null,null,null,null,null,null,null,null,null,null,null,{"$f":"AJ18","v":0},{"$f":"AK18","v":0},0,0,0,0,0,0]
[null,null,null,null,{"$f":"Input!E102","v":"Allocation to load related capex"},null,"%",null,null,null,null,null,null,null,null,null,null,null,null,null,null,null,null,null,null,null,null,null,null,null,null,null,null,null,null,{"$f":"CHOOSE(view,\n'[9]M1a - Model inputs'!L171,\n'[9]M1b - Model inputs'!L171,\n'[9]SM1 - DECC Scenario 3 equiv'!L171,\n'[9]SM2 - DECC Scenario 1 equiv'!L171,\n'[9]SM3 - DECC Scenario 2 equiv'!L171,\n'[9]SM4 - DNO Scenario 4 equiv'!L171,\n'[10]M1a - Model inputs'!L171,\n'[10]M1b - Model inputs'!L171,\n'[10]SM1 - DECC Scenario 3 equiv'!L171,\n'[10]SM2 - DECC Scenario 1 equiv'!L171,\n'[10]SM3 - DECC Scenario 2 equiv'!L171,\n'[10]SM4 - DNO Scenario 4 equiv'!L171)","v":0},{"$f":"CHOOSE(view,\n'[9]M1a - Model inputs'!M171,\n'[9]M1b - Model inputs'!M171,\n'[9]SM1 - DECC Scenario 3 equiv'!M171,\n'[9]SM2 - DECC Scenario 1 equiv'!M171,\n'[9]SM3 - DECC Scenario 2 equiv'!M171,\n'[9]SM4 - DNO Scenario 4 equiv'!M171,\n'[10]M1a - Model inputs'!M171,\n'[10]M1b - Model inputs'!M171,\n'[10]SM1 - DECC Scenario 3 equiv'!M171,\n'[10]SM2 - DECC Scenario 1 equiv'!M171,\n'[10]SM3 - DECC Scenario 2 equiv'!M171,\n'[10]SM4 - DNO Scenario 4 equiv'!M171)","v":0},{"$f":"CHOOSE(view,\n'[9]M1a - Model inputs'!N171,\n'[9]M1b - Model inputs'!N171,\n'[9]SM1 - DECC Scenario 3 equiv'!N171,\n'[9]SM2 - DECC Scenario 1 equiv'!N171,\n'[9]SM3 - DECC Scenario 2 equiv'!N171,\n'[9]SM4 - DNO Scenario 4 equiv'!N171,\n'[10]M1a - Model inputs'!N171,\n'[10]M1b - Model inputs'!N171,\n'[10]SM1 - DECC Scenario 3 equiv'!N171,\n'[10]SM2 - DECC Scenario 1 equiv'!N171,\n'[10]SM3 - DECC Scenario 2 equiv'!N171,\n'[10]SM4 - DNO Scenario 4 equiv'!N171)","v":0},{"$f":"CHOOSE(view,\n'[9]M1a - Model inputs'!O171,\n'[9]M1b - Model inputs'!O171,\n'[9]SM1 - DECC Scenario 3 equiv'!O171,\n'[9]SM2 - DECC Scenario 1 equiv'!O171,\n'[9]SM3 - DECC Scenario 2 equiv'!O171,\n'[9]SM4 - DNO Scenario 4 equiv'!O171,\n'[10]M1a - Model inputs'!O171,\n'[10]M1b - Model inputs'!O171,\n'[10]SM1 - DECC Scenario 3 equiv'!O171,\n'[10]SM2 - DECC Scenario 1 equiv'!O171,\n'[10]SM3 - DECC Scenario 2 equiv'!O171,\n'[10]SM4 - DNO Scenario 4 equiv'!O171)","v":0},{"$f":"CHOOSE(view,\n'[9]M1a - Model inputs'!P171,\n'[9]M1b - Model inputs'!P171,\n'[9]SM1 - DECC Scenario 3 equiv'!P171,\n'[9]SM2 - DECC Scenario 1 equiv'!P171,\n'[9]SM3 - DECC Scenario 2 equiv'!P171,\n'[9]SM4 - DNO Scenario 4 equiv'!P171,\n'[10]M1a - Model inputs'!P171,\n'[10]M1b - Model inputs'!P171,\n'[10]SM1 - DECC Scenario 3 equiv'!P171,\n'[10]SM2 - DECC Scenario 1 equiv'!P171,\n'[10]SM3 - DECC Scenario 2 equiv'!P171,\n'[10]SM4 - DNO Scenario 4 equiv'!P171)","v":0},{"$f":"CHOOSE(view,\n'[9]M1a - Model inputs'!Q171,\n'[9]M1b - Model inputs'!Q171,\n'[9]SM1 - DECC Scenario 3 equiv'!Q171,\n'[9]SM2 - DECC Scenario 1 equiv'!Q171,\n'[9]SM3 - DECC Scenario 2 equiv'!Q171,\n'[9]SM4 - DNO Scenario 4 equiv'!Q171,\n'[10]M1a - Model inputs'!Q171,\n'[10]M1b - Model inputs'!Q171,\n'[10]SM1 - DECC Scenario 3 equiv'!Q171,\n'[10]SM2 - DECC Scenario 1 equiv'!Q171,\n'[10]SM3 - DECC Scenario 2 equiv'!Q171,\n'[10]SM4 - DNO Scenario 4 equiv'!Q171)","v":0},{"$f":"CHOOSE(view,\n'[9]M1a - Model inputs'!R171,\n'[9]M1b - Model inputs'!R171,\n'[9]SM1 - DECC Scenario 3 equiv'!R171,\n'[9]SM2 - DECC Scenario 1 equiv'!R171,\n'[9]SM3 - DECC Scenario 2 equiv'!R171,\n'[9]SM4 - DNO Scenario 4 equiv'!R171,\n'[10]M1a - Model inputs'!R171,\n'[10]M1b - Model inputs'!R171,\n'[10]SM1 - DECC Scenario 3 equiv'!R171,\n'[10]SM2 - DECC Scenario 1 equiv'!R171,\n'[10]SM3 - DECC Scenario 2 equiv'!R171,\n'[10]SM4 - DNO Scenario 4 equiv'!R171)","v":0},{"$f":"CHOOSE(view,\n'[9]M1a - Model inputs'!S171,\n'[9]M1b - Model inputs'!S171,\n'[9]SM1 - DECC Scenario 3 equiv'!S171,\n'[9]SM2 - DECC Scenario 1 equiv'!S171,\n'[9]SM3 - DECC Scenario 2 equiv'!S171,\n'[9]SM4 - DNO Scenario 4 equiv'!S171,\n'[10]M1a - Model inputs'!S171,\n'[10]M1b - Model inputs'!S171,\n'[10]SM1 - DECC Scenario 3 equiv'!S171,\n'[10]SM2 - DECC Scenario 1 equiv'!S171,\n'[10]SM3 - DECC Scenario 2 equiv'!S171,\n'[10]SM4 - DNO Scenario 4 equiv'!S171)","v":0}]
[null,null,null,null,{"$f":"Input!E103","v":"Allocation to non-load related capex - asset replacement"},null,"%",null,null,null,null,null,null,null,null,null,null,null,null,null,null,null,null,null,null,null,null,null,null,null,null,null,null,null,null,{"$f":"CHOOSE(view,\n'[9]M1a - Model inputs'!L172,\n'[9]M1b - Model inputs'!L172,\n'[9]SM1 - DECC Scenario 3 equiv'!L172,\n'[9]SM2 - DECC Scenario 1 equiv'!L172,\n'[9]SM3 - DECC Scenario 2 equiv'!L172,\n'[9]SM4 - DNO Scenario 4 equiv'!L172,\n'[10]M1a - Model inputs'!L172,\n'[10]M1b - Model inputs'!L172,\n'[10]SM1 - DECC Scenario 3 equiv'!L172,\n'[10]SM2 - DECC Scenario 1 equiv'!L172,\n'[10]SM3 - DECC Scenario 2 equiv'!L172,\n'[10]SM4 - DNO Scenario 4 equiv'!L172)","v":0},{"$f":"CHOOSE(view,\n'[9]M1a - Model inputs'!M172,\n'[9]M1b - Model inputs'!M172,\n'[9]SM1 - DECC Scenario 3 equiv'!M172,\n'[9]SM2 - DECC Scenario 1 equiv'!M172,\n'[9]SM3 - DECC Scenario 2 equiv'!M172,\n'[9]SM4 - DNO Scenario 4 equiv'!M172,\n'[10]M1a - Model inputs'!M172,\n'[10]M1b - Model inputs'!M172,\n'[10]SM1 - DECC Scenario 3 equiv'!M172,\n'[10]SM2 - DECC Scenario 1 equiv'!M172,\n'[10]SM3 - DECC Scenario 2 equiv'!M172,\n'[10]SM4 - DNO Scenario 4 equiv'!M172)","v":0},{"$f":"CHOOSE(view,\n'[9]M1a - Model inputs'!N172,\n'[9]M1b - Model inputs'!N172,\n'[9]SM1 - DECC Scenario 3 equiv'!N172,\n'[9]SM2 - DECC Scenario 1 equiv'!N172,\n'[9]SM3 - DECC Scenario 2 equiv'!N172,\n'[9]SM4 - DNO Scenario 4 equiv'!N172,\n'[10]M1a - Model inputs'!N172,\n'[10]M1b - Model inputs'!N172,\n'[10]SM1 - DECC Scenario 3 equiv'!N172,\n'[10]SM2 - DECC Scenario 1 equiv'!N172,\n'[10]SM3 - DECC Scenario 2 equiv'!N172,\n'[10]SM4 - DNO Scenario 4 equiv'!N172)","v":0},{"$f":"CHOOSE(view,\n'[9]M1a - Model inputs'!O172,\n'[9]M1b - Model inputs'!O172,\n'[9]SM1 - DECC Scenario 3 equiv'!O172,\n'[9]SM2 - DECC Scenario 1 equiv'!O172,\n'[9]SM3 - DECC Scenario 2 equiv'!O172,\n'[9]SM4 - DNO Scenario 4 equiv'!O172,\n'[10]M1a - Model inputs'!O172,\n'[10]M1b - Model inputs'!O172,\n'[10]SM1 - DECC Scenario 3 equiv'!O172,\n'[10]SM2 - DECC Scenario 1 equiv'!O172,\n'[10]SM3 - DECC Scenario 2 equiv'!O172,\n'[10]SM4 - DNO Scenario 4 equiv'!O172)","v":0},{"$f":"CHOOSE(view,\n'[9]M1a - Model inputs'!P172,\n'[9]M1b - Model inputs'!P172,\n'[9]SM1 - DECC Scenario 3 equiv'!P172,\n'[9]SM2 - DECC Scenario 1 equiv'!P172,\n'[9]SM3 - DECC Scenario 2 equiv'!P172,\n'[9]SM4 - DNO Scenario 4 equiv'!P172,\n'[10]M1a - Model inputs'!P172,\n'[10]M1b - Model inputs'!P172,\n'[10]SM1 - DECC Scenario 3 equiv'!P172,\n'[10]SM2 - DECC Scenario 1 equiv'!P172,\n'[10]SM3 - DECC Scenario 2 equiv'!P172,\n'[10]SM4 - DNO Scenario 4 equiv'!P172)","v":0},{"$f":"CHOOSE(view,\n'[9]M1a - Model inputs'!Q172,\n'[9]M1b - Model inputs'!Q172,\n'[9]SM1 - DECC Scenario 3 equiv'!Q172,\n'[9]SM2 - DECC Scenario 1 equiv'!Q172,\n'[9]SM3 - DECC Scenario 2 equiv'!Q172,\n'[9]SM4 - DNO Scenario 4 equiv'!Q172,\n'[10]M1a - Model inputs'!Q172,\n'[10]M1b - Model inputs'!Q172,\n'[10]SM1 - DECC Scenario 3 equiv'!Q172,\n'[10]SM2 - DECC Scenario 1 equiv'!Q172,\n'[10]SM3 - DECC Scenario 2 equiv'!Q172,\n'[10]SM4 - DNO Scenario 4 equiv'!Q172)","v":0},{"$f":"CHOOSE(view,\n'[9]M1a - Model inputs'!R172,\n'[9]M1b - Model inputs'!R172,\n'[9]SM1 - DECC Scenario 3 equiv'!R172,\n'[9]SM2 - DECC Scenario 1 equiv'!R172,\n'[9]SM3 - DECC Scenario 2 equiv'!R172,\n'[9]SM4 - DNO Scenario 4 equiv'!R172,\n'[10]M1a - Model inputs'!R172,\n'[10]M1b - Model inputs'!R172,\n'[10]SM1 - DECC Scenario 3 equiv'!R172,\n'[10]SM2 - DECC Scenario 1 equiv'!R172,\n'[10]SM3 - DECC Scenario 2 equiv'!R172,\n'[10]SM4 - DNO Scenario 4 equiv'!R172)","v":0},{"$f":"CHOOSE(view,\n'[9]M1a - Model inputs'!S172,\n'[9]M1b - Model inputs'!S172,\n'[9]SM1 - DECC Scenario 3 equiv'!S172,\n'[9]SM2 - DECC Scenario 1 equiv'!S172,\n'[9]SM3 - DECC Scenario 2 equiv'!S172,\n'[9]SM4 - DNO Scenario 4 equiv'!S172,\n'[10]M1a - Model inputs'!S172,\n'[10]M1b - Model inputs'!S172,\n'[10]SM1 - DECC Scenario 3 equiv'!S172,\n'[10]SM2 - DECC Scenario 1 equiv'!S172,\n'[10]SM3 - DECC Scenario 2 equiv'!S172,\n'[10]SM4 - DNO Scenario 4 equiv'!S172)","v":0}]
[null,null,null,null,{"$f":"Input!E104","v":"Allocation to non-load related capex - other"},null,"%",null,null,null,null,null,null,null,null,null,null,null,null,null,null,null,null,null,null,null,null,null,null,null,null,null,null,null,null,{"$f":"CHOOSE(view,\n'[9]M1a - Model inputs'!L173,\n'[9]M1b - Model inputs'!L173,\n'[9]SM1 - DECC Scenario 3 equiv'!L173,\n'[9]SM2 - DECC Scenario 1 equiv'!L173,\n'[9]SM3 - DECC Scenario 2 equiv'!L173,\n'[9]SM4 - DNO Scenario 4 equiv'!L173,\n'[10]M1a - Model inputs'!L173,\n'[10]M1b - Model inputs'!L173,\n'[10]SM1 - DECC Scenario 3 equiv'!L173,\n'[10]SM2 - DECC Scenario 1 equiv'!L173,\n'[10]SM3 - DECC Scenario 2 equiv'!L173,\n'[10]SM4 - DNO Scenario 4 equiv'!L173)","v":1},{"$f":"CHOOSE(view,\n'[9]M1a - Model inputs'!M173,\n'[9]M1b - Model inputs'!M173,\n'[9]SM1 - DECC Scenario 3 equiv'!M173,\n'[9]SM2 - DECC Scenario 1 equiv'!M173,\n'[9]SM3 - DECC Scenario 2 equiv'!M173,\n'[9]SM4 - DNO Scenario 4 equiv'!M173,\n'[10]M1a - Model inputs'!M173,\n'[10]M1b - Model inputs'!M173,\n'[10]SM1 - DECC Scenario 3 equiv'!M173,\n'[10]SM2 - DECC Scenario 1 equiv'!M173,\n'[10]SM3 - DECC Scenario 2 equiv'!M173,\n'[10]SM4 - DNO Scenario 4 equiv'!M173)","v":1},{"$f":"CHOOSE(view,\n'[9]M1a - Model inputs'!N173,\n'[9]M1b - Model inputs'!N173,\n'[9]SM1 - DECC Scenario 3 equiv'!N173,\n'[9]SM2 - DECC Scenario 1 equiv'!N173,\n'[9]SM3 - DECC Scenario 2 equiv'!N173,\n'[9]SM4 - DNO Scenario 4 equiv'!N173,\n'[10]M1a - Model inputs'!N173,\n'[10]M1b - Model inputs'!N173,\n'[10]SM1 - DECC Scenario 3 equiv'!N173,\n'[10]SM2 - DECC Scenario 1 equiv'!N173,\n'[10]SM3 - DECC Scenario 2 equiv'!N173,\n'[10]SM4 - DNO Scenario 4 equiv'!N173)","v":1},{"$f":"CHOOSE(view,\n'[9]M1a - Model inputs'!O173,\n'[9]M1b - Model inputs'!O173,\n'[9]SM1 - DECC Scenario 3 equiv'!O173,\n'[9]SM2 - DECC Scenario 1 equiv'!O173,\n'[9]SM3 - DECC Scenario 2 equiv'!O173,\n'[9]SM4 - DNO Scenario 4 equiv'!O173,\n'[10]M1a - Model inputs'!O173,\n'[10]M1b - Model inputs'!O173,\n'[10]SM1 - DECC Scenario 3 equiv'!O173,\n'[10]SM2 - DECC Scenario 1 equiv'!O173,\n'[10]SM3 - DECC Scenario 2 equiv'!O173,\n'[10]SM4 - DNO Scenario 4 equiv'!O173)","v":1},{"$f":"CHOOSE(view,\n'[9]M1a - Model inputs'!P173,\n'[9]M1b - Model inputs'!P173,\n'[9]SM1 - DECC Scenario 3 equiv'!P173,\n'[9]SM2 - DECC Scenario 1 equiv'!P173,\n'[9]SM3 - DECC Scenario 2 equiv'!P173,\n'[9]SM4 - DNO Scenario 4 equiv'!P173,\n'[10]M1a - Model inputs'!P173,\n'[10]M1b - Model inputs'!P173,\n'[10]SM1 - DECC Scenario 3 equiv'!P173,\n'[10]SM2 - DECC Scenario 1 equiv'!P173,\n'[10]SM3 - DECC Scenario 2 equiv'!P173,\n'[10]SM4 - DNO Scenario 4 equiv'!P173)","v":1},{"$f":"CHOOSE(view,\n'[9]M1a - Model inputs'!Q173,\n'[9]M1b - Model inputs'!Q173,\n'[9]SM1 - DECC Scenario 3 equiv'!Q173,\n'[9]SM2 - DECC Scenario 1 equiv'!Q173,\n'[9]SM3 - DECC Scenario 2 equiv'!Q173,\n'[9]SM4 - DNO Scenario 4 equiv'!Q173,\n'[10]M1a - Model inputs'!Q173,\n'[10]M1b - Model inputs'!Q173,\n'[10]SM1 - DECC Scenario 3 equiv'!Q173,\n'[10]SM2 - DECC Scenario 1 equiv'!Q173,\n'[10]SM3 - DECC Scenario 2 equiv'!Q173,\n'[10]SM4 - DNO Scenario 4 equiv'!Q173)","v":1},{"$f":"CHOOSE(view,\n'[9]M1a - Model inputs'!R173,\n'[9]M1b - Model inputs'!R173,\n'[9]SM1 - DECC Scenario 3 equiv'!R173,\n'[9]SM2 - DECC Scenario 1 equiv'!R173,\n'[9]SM3 - DECC Scenario 2 equiv'!R173,\n'[9]SM4 - DNO Scenario 4 equiv'!R173,\n'[10]M1a - Model inputs'!R173,\n'[10]M1b - Model inputs'!R173,\n'[10]SM1 - DECC Scenario 3 equiv'!R173,\n'[10]SM2 - DECC Scenario 1 equiv'!R173,\n'[10]SM3 - DECC Scenario 2 equiv'!R173,\n'[10]SM4 - DNO Scenario 4 equiv'!R173)","v":1},{"$f":"CHOOSE(view,\n'[9]M1a - Model inputs'!S173,\n'[9]M1b - Model inputs'!S173,\n'[9]SM1 - DECC Scenario 3 equiv'!S173,\n'[9]SM2 - DECC Scenario 1 equiv'!S173,\n'[9]SM3 - DECC Scenario 2 equiv'!S173,\n'[9]SM4 - DNO Scenario 4 equiv'!S173,\n'[10]M1a - Model inputs'!S173,\n'[10]M1b - Model inputs'!S173,\n'[10]SM1 - DECC Scenario 3 equiv'!S173,\n'[10]SM2 - DECC Scenario 1 equiv'!S173,\n'[10]SM3 - DECC Scenario 2 equiv'!S173,\n'[10]SM4 - DNO Scenario 4 equiv'!S173)","v":1}]
[null,null,null,null,{"$f":"Input!E105","v":"Allocation to faults"},null,"%",null,null,null,null,null,null,null,null,null,null,null,null,null,null,null,null,null,null,null,null,null,null,null,null,null,null,null,null,{"$f":"CHOOSE(view,\n'[9]M1a - Model inputs'!L174,\n'[9]M1b - Model inputs'!L174,\n'[9]SM1 - DECC Scenario 3 equiv'!L174,\n'[9]SM2 - DECC Scenario 1 equiv'!L174,\n'[9]SM3 - DECC Scenario 2 equiv'!L174,\n'[9]SM4 - DNO Scenario 4 equiv'!L174,\n'[10]M1a - Model inputs'!L174,\n'[10]M1b - Model inputs'!L174,\n'[10]SM1 - DECC Scenario 3 equiv'!L174,\n'[10]SM2 - DECC Scenario 1 equiv'!L174,\n'[10]SM3 - DECC Scenario 2 equiv'!L174,\n'[10]SM4 - DNO Scenario 4 equiv'!L174)","v":0},{"$f":"CHOOSE(view,\n'[9]M1a - Model inputs'!M174,\n'[9]M1b - Model inputs'!M174,\n'[9]SM1 - DECC Scenario 3 equiv'!M174,\n'[9]SM2 - DECC Scenario 1 equiv'!M174,\n'[9]SM3 - DECC Scenario 2 equiv'!M174,\n'[9]SM4 - DNO Scenario 4 equiv'!M174,\n'[10]M1a - Model inputs'!M174,\n'[10]M1b - Model inputs'!M174,\n'[10]SM1 - DECC Scenario 3 equiv'!M174,\n'[10]SM2 - DECC Scenario 1 equiv'!M174,\n'[10]SM3 - DECC Scenario 2 equiv'!M174,\n'[10]SM4 - DNO Scenario 4 equiv'!M174)","v":0},{"$f":"CHOOSE(view,\n'[9]M1a - Model inputs'!N174,\n'[9]M1b - Model inputs'!N174,\n'[9]SM1 - DECC Scenario 3 equiv'!N174,\n'[9]SM2 - DECC Scenario 1 equiv'!N174,\n'[9]SM3 - DECC Scenario 2 equiv'!N174,\n'[9]SM4 - DNO Scenario 4 equiv'!N174,\n'[10]M1a - Model inputs'!N174,\n'[10]M1b - Model inputs'!N174,\n'[10]SM1 - DECC Scenario 3 equiv'!N174,\n'[10]SM2 - DECC Scenario 1 equiv'!N174,\n'[10]SM3 - DECC Scenario 2 equiv'!N174,\n'[10]SM4 - DNO Scenario 4 equiv'!N174)","v":0},{"$f":"CHOOSE(view,\n'[9]M1a - Model inputs'!O174,\n'[9]M1b - Model inputs'!O174,\n'[9]SM1 - DECC Scenario 3 equiv'!O174,\n'[9]SM2 - DECC Scenario 1 equiv'!O174,\n'[9]SM3 - DECC Scenario 2 equiv'!O174,\n'[9]SM4 - DNO Scenario 4 equiv'!O174,\n'[10]M1a - Model inputs'!O174,\n'[10]M1b - Model inputs'!O174,\n'[10]SM1 - DECC Scenario 3 equiv'!O174,\n'[10]SM2 - DECC Scenario 1 equiv'!O174,\n'[10]SM3 - DECC Scenario 2 equiv'!O174,\n'[10]SM4 - DNO Scenario 4 equiv'!O174)","v":0},{"$f":"CHOOSE(view,\n'[9]M1a - Model inputs'!P174,\n'[9]M1b - Model inputs'!P174,\n'[9]SM1 - DECC Scenario 3 equiv'!P174,\n'[9]SM2 - DECC Scenario 1 equiv'!P174,\n'[9]SM3 - DECC Scenario 2 equiv'!P174,\n'[9]SM4 - DNO Scenario 4 equiv'!P174,\n'[10]M1a - Model inputs'!P174,\n'[10]M1b - Model inputs'!P174,\n'[10]SM1 - DECC Scenario 3 equiv'!P174,\n'[10]SM2 - DECC Scenario 1 equiv'!P174,\n'[10]SM3 - DECC Scenario 2 equiv'!P174,\n'[10]SM4 - DNO Scenario 4 equiv'!P174)","v":0},{"$f":"CHOOSE(view,\n'[9]M1a - Model inputs'!Q174,\n'[9]M1b - Model inputs'!Q174,\n'[9]SM1 - DECC Scenario 3 equiv'!Q174,\n'[9]SM2 - DECC Scenario 1 equiv'!Q174,\n'[9]SM3 - DECC Scenario 2 equiv'!Q174,\n'[9]SM4 - DNO Scenario 4 equiv'!Q174,\n'[10]M1a - Model inputs'!Q174,\n'[10]M1b - Model inputs'!Q174,\n'[10]SM1 - DECC Scenario 3 equiv'!Q174,\n'[10]SM2 - DECC Scenario 1 equiv'!Q174,\n'[10]SM3 - DECC Scenario 2 equiv'!Q174,\n'[10]SM4 - DNO Scenario 4 equiv'!Q174)","v":0},{"$f":"CHOOSE(view,\n'[9]M1a - Model inputs'!R174,\n'[9]M1b - Model inputs'!R174,\n'[9]SM1 - DECC Scenario 3 equiv'!R174,\n'[9]SM2 - DECC Scenario 1 equiv'!R174,\n'[9]SM3 - DECC Scenario 2 equiv'!R174,\n'[9]SM4 - DNO Scenario 4 equiv'!R174,\n'[10]M1a - Model inputs'!R174,\n'[10]M1b - Model inputs'!R174,\n'[10]SM1 - DECC Scenario 3 equiv'!R174,\n'[10]SM2 - DECC Scenario 1 equiv'!R174,\n'[10]SM3 - DECC Scenario 2 equiv'!R174,\n'[10]SM4 - DNO Scenario 4 equiv'!R174)","v":0},{"$f":"CHOOSE(view,\n'[9]M1a - Model inputs'!S174,\n'[9]M1b - Model inputs'!S174,\n'[9]SM1 - DECC Scenario 3 equiv'!S174,\n'[9]SM2 - DECC Scenario 1 equiv'!S174,\n'[9]SM3 - DECC Scenario 2 equiv'!S174,\n'[9]SM4 - DNO Scenario 4 equiv'!S174,\n'[10]M1a - Model inputs'!S174,\n'[10]M1b - Model inputs'!S174,\n'[10]SM1 - DECC Scenario 3 equiv'!S174,\n'[10]SM2 - DECC Scenario 1 equiv'!S174,\n'[10]SM3 - DECC Scenario 2 equiv'!S174,\n'[10]SM4 - DNO Scenario 4 equiv'!S174)","v":0}]
[null,null,null,null,{"$f":"Input!E106","v":"Allocation to tree cutting"},null,"%",null,null,null,null,null,null,null,null,null,null,null,null,null,null,null,null,null,null,null,null,null,null,null,null,null,null,null,null,{"$f":"CHOOSE(view,\n'[9]M1a - Model inputs'!L175,\n'[9]M1b - Model inputs'!L175,\n'[9]SM1 - DECC Scenario 3 equiv'!L175,\n'[9]SM2 - DECC Scenario 1 equiv'!L175,\n'[9]SM3 - DECC Scenario 2 equiv'!L175,\n'[9]SM4 - DNO Scenario 4 equiv'!L175,\n'[10]M1a - Model inputs'!L175,\n'[10]M1b - Model inputs'!L175,\n'[10]SM1 - DECC Scenario 3 equiv'!L175,\n'[10]SM2 - DECC Scenario 1 equiv'!L175,\n'[10]SM3 - DECC Scenario 2 equiv'!L175,\n'[10]SM4 - DNO Scenario 4 equiv'!L175)","v":0},{"$f":"CHOOSE(view,\n'[9]M1a - Model inputs'!M175,\n'[9]M1b - Model inputs'!M175,\n'[9]SM1 - DECC Scenario 3 equiv'!M175,\n'[9]SM2 - DECC Scenario 1 equiv'!M175,\n'[9]SM3 - DECC Scenario 2 equiv'!M175,\n'[9]SM4 - DNO Scenario 4 equiv'!M175,\n'[10]M1a - Model inputs'!M175,\n'[10]M1b - Model inputs'!M175,\n'[10]SM1 - DECC Scenario 3 equiv'!M175,\n'[10]SM2 - DECC Scenario 1 equiv'!M175,\n'[10]SM3 - DECC Scenario 2 equiv'!M175,\n'[10]SM4 - DNO Scenario 4 equiv'!M175)","v":0},{"$f":"CHOOSE(view,\n'[9]M1a - Model inputs'!N175,\n'[9]M1b - Model inputs'!N175,\n'[9]SM1 - DECC Scenario 3 equiv'!N175,\n'[9]SM2 - DECC Scenario 1 equiv'!N175,\n'[9]SM3 - DECC Scenario 2 equiv'!N175,\n'[9]SM4 - DNO Scenario 4 equiv'!N175,\n'[10]M1a - Model inputs'!N175,\n'[10]M1b - Model inputs'!N175,\n'[10]SM1 - DECC Scenario 3 equiv'!N175,\n'[10]SM2 - DECC Scenario 1 equiv'!N175,\n'[10]SM3 - DECC Scenario 2 equiv'!N175,\n'[10]SM4 - DNO Scenario 4 equiv'!N175)","v":0},{"$f":"CHOOSE(view,\n'[9]M1a - Model inputs'!O175,\n'[9]M1b - Model inputs'!O175,\n'[9]SM1 - DECC Scenario 3 equiv'!O175,\n'[9]SM2 - DECC Scenario 1 equiv'!O175,\n'[9]SM3 - DECC Scenario 2 equiv'!O175,\n'[9]SM4 - DNO Scenario 4 equiv'!O175,\n'[10]M1a - Model inputs'!O175,\n'[10]M1b - Model inputs'!O175,\n'[10]SM1 - DECC Scenario 3 equiv'!O175,\n'[10]SM2 - DECC Scenario 1 equiv'!O175,\n'[10]SM3 - DECC Scenario 2 equiv'!O175,\n'[10]SM4 - DNO Scenario 4 equiv'!O175)","v":0},{"$f":"CHOOSE(view,\n'[9]M1a - Model inputs'!P175,\n'[9]M1b - Model inputs'!P175,\n'[9]SM1 - DECC Scenario 3 equiv'!P175,\n'[9]SM2 - DECC Scenario 1 equiv'!P175,\n'[9]SM3 - DECC Scenario 2 equiv'!P175,\n'[9]SM4 - DNO Scenario 4 equiv'!P175,\n'[10]M1a - Model inputs'!P175,\n'[10]M1b - Model inputs'!P175,\n'[10]SM1 - DECC Scenario 3 equiv'!P175,\n'[10]SM2 - DECC Scenario 1 equiv'!P175,\n'[10]SM3 - DECC Scenario 2 equiv'!P175,\n'[10]SM4 - DNO Scenario 4 equiv'!P175)","v":0},{"$f":"CHOOSE(view,\n'[9]M1a - Model inputs'!Q175,\n'[9]M1b - Model inputs'!Q175,\n'[9]SM1 - DECC Scenario 3 equiv'!Q175,\n'[9]SM2 - DECC Scenario 1 equiv'!Q175,\n'[9]SM3 - DECC Scenario 2 equiv'!Q175,\n'[9]SM4 - DNO Scenario 4 equiv'!Q175,\n'[10]M1a - Model inputs'!Q175,\n'[10]M1b - Model inputs'!Q175,\n'[10]SM1 - DECC Scenario 3 equiv'!Q175,\n'[10]SM2 - DECC Scenario 1 equiv'!Q175,\n'[10]SM3 - DECC Scenario 2 equiv'!Q175,\n'[10]SM4 - DNO Scenario 4 equiv'!Q175)","v":0},{"$f":"CHOOSE(view,\n'[9]M1a - Model inputs'!R175,\n'[9]M1b - Model inputs'!R175,\n'[9]SM1 - DECC Scenario 3 equiv'!R175,\n'[9]SM2 - DECC Scenario 1 equiv'!R175,\n'[9]SM3 - DECC Scenario 2 equiv'!R175,\n'[9]SM4 - DNO Scenario 4 equiv'!R175,\n'[10]M1a - Model inputs'!R175,\n'[10]M1b - Model inputs'!R175,\n'[10]SM1 - DECC Scenario 3 equiv'!R175,\n'[10]SM2 - DECC Scenario 1 equiv'!R175,\n'[10]SM3 - DECC Scenario 2 equiv'!R175,\n'[10]SM4 - DNO Scenario 4 equiv'!R175)","v":0},{"$f":"CHOOSE(view,\n'[9]M1a - Model inputs'!S175,\n'[9]M1b - Model inputs'!S175,\n'[9]SM1 - DECC Scenario 3 equiv'!S175,\n'[9]SM2 - DECC Scenario 1 equiv'!S175,\n'[9]SM3 - DECC Scenario 2 equiv'!S175,\n'[9]SM4 - DNO Scenario 4 equiv'!S175,\n'[10]M1a - Model inputs'!S175,\n'[10]M1b - Model inputs'!S175,\n'[10]SM1 - DECC Scenario 3 equiv'!S175,\n'[10]SM2 - DECC Scenario 1 equiv'!S175,\n'[10]SM3 - DECC Scenario 2 equiv'!S175,\n'[10]SM4 - DNO Scenario 4 equiv'!S175)","v":0}]
[null,null,null,null,{"$f":"Input!E107","v":"Allocation to controllable opex"},null,"%",null,null,null,null,null,null,null,null,null,null,null,null,null,null,null,null,null,null,null,null,null,null,null,null,null,null,null,null,{"$f":"CHOOSE(view,\n'[9]M1a - Model inputs'!L176,\n'[9]M1b - Model inputs'!L176,\n'[9]SM1 - DECC Scenario 3 equiv'!L176,\n'[9]SM2 - DECC Scenario 1 equiv'!L176,\n'[9]SM3 - DECC Scenario 2 equiv'!L176,\n'[9]SM4 - DNO Scenario 4 equiv'!L176,\n'[10]M1a - Model inputs'!L176,\n'[10]M1b - Model inputs'!L176,\n'[10]SM1 - DECC Scenario 3 equiv'!L176,\n'[10]SM2 - DECC Scenario 1 equiv'!L176,\n'[10]SM3 - DECC Scenario 2 equiv'!L176,\n'[10]SM4 - DNO Scenario 4 equiv'!L176)","v":0},{"$f":"CHOOSE(view,\n'[9]M1a - Model inputs'!M176,\n'[9]M1b - Model inputs'!M176,\n'[9]SM1 - DECC Scenario 3 equiv'!M176,\n'[9]SM2 - DECC Scenario 1 equiv'!M176,\n'[9]SM3 - DECC Scenario 2 equiv'!M176,\n'[9]SM4 - DNO Scenario 4 equiv'!M176,\n'[10]M1a - Model inputs'!M176,\n'[10]M1b - Model inputs'!M176,\n'[10]SM1 - DECC Scenario 3 equiv'!M176,\n'[10]SM2 - DECC Scenario 1 equiv'!M176,\n'[10]SM3 - DECC Scenario 2 equiv'!M176,\n'[10]SM4 - DNO Scenario 4 equiv'!M176)","v":0},{"$f":"CHOOSE(view,\n'[9]M1a - Model inputs'!N176,\n'[9]M1b - Model inputs'!N176,\n'[9]SM1 - DECC Scenario 3 equiv'!N176,\n'[9]SM2 - DECC Scenario 1 equiv'!N176,\n'[9]SM3 - DECC Scenario 2 equiv'!N176,\n'[9]SM4 - DNO Scenario 4 equiv'!N176,\n'[10]M1a - Model inputs'!N176,\n'[10]M1b - Model inputs'!N176,\n'[10]SM1 - DECC Scenario 3 equiv'!N176,\n'[10]SM2 - DECC Scenario 1 equiv'!N176,\n'[10]SM3 - DECC Scenario 2 equiv'!N176,\n'[10]SM4 - DNO Scenario 4 equiv'!N176)","v":0},{"$f":"CHOOSE(view,\n'[9]M1a - Model inputs'!O176,\n'[9]M1b - Model inputs'!O176,\n'[9]SM1 - DECC Scenario 3 equiv'!O176,\n'[9]SM2 - DECC Scenario 1 equiv'!O176,\n'[9]SM3 - DECC Scenario 2 equiv'!O176,\n'[9]SM4 - DNO Scenario 4 equiv'!O176,\n'[10]M1a - Model inputs'!O176,\n'[10]M1b - Model inputs'!O176,\n'[10]SM1 - DECC Scenario 3 equiv'!O176,\n'[10]SM2 - DECC Scenario 1 equiv'!O176,\n'[10]SM3 - DECC Scenario 2 equiv'!O176,\n'[10]SM4 - DNO Scenario 4 equiv'!O176)","v":0},{"$f":"CHOOSE(view,\n'[9]M1a - Model inputs'!P176,\n'[9]M1b - Model inputs'!P176,\n'[9]SM1 - DECC Scenario 3 equiv'!P176,\n'[9]SM2 - DECC Scenario 1 equiv'!P176,\n'[9]SM3 - DECC Scenario 2 equiv'!P176,\n'[9]SM4 - DNO Scenario 4 equiv'!P176,\n'[10]M1a - Model inputs'!P176,\n'[10]M1b - Model inputs'!P176,\n'[10]SM1 - DECC Scenario 3 equiv'!P176,\n'[10]SM2 - DECC Scenario 1 equiv'!P176,\n'[10]SM3 - DECC Scenario 2 equiv'!P176,\n'[10]SM4 - DNO Scenario 4 equiv'!P176)","v":0},{"$f":"CHOOSE(view,\n'[9]M1a - Model inputs'!Q176,\n'[9]M1b - Model inputs'!Q176,\n'[9]SM1 - DECC Scenario 3 equiv'!Q176,\n'[9]SM2 - DECC Scenario 1 equiv'!Q176,\n'[9]SM3 - DECC Scenario 2 equiv'!Q176,\n'[9]SM4 - DNO Scenario 4 equiv'!Q176,\n'[10]M1a - Model inputs'!Q176,\n'[10]M1b - Model inputs'!Q176,\n'[10]SM1 - DECC Scenario 3 equiv'!Q176,\n'[10]SM2 - DECC Scenario 1 equiv'!Q176,\n'[10]SM3 - DECC Scenario 2 equiv'!Q176,\n'[10]SM4 - DNO Scenario 4 equiv'!Q176)","v":0},{"$f":"CHOOSE(view,\n'[9]M1a - Model inputs'!R176,\n'[9]M1b - Model inputs'!R176,\n'[9]SM1 - DECC Scenario 3 equiv'!R176,\n'[9]SM2 - DECC Scenario 1 equiv'!R176,\n'[9]SM3 - DECC Scenario 2 equiv'!R176,\n'[9]SM4 - DNO Scenario 4 equiv'!R176,\n'[10]M1a - Model inputs'!R176,\n'[10]M1b - Model inputs'!R176,\n'[10]SM1 - DECC Scenario 3 equiv'!R176,\n'[10]SM2 - DECC Scenario 1 equiv'!R176,\n'[10]SM3 - DECC Scenario 2 equiv'!R176,\n'[10]SM4 - DNO Scenario 4 equiv'!R176)","v":0},{"$f":"CHOOSE(view,\n'[9]M1a - Model inputs'!S176,\n'[9]M1b - Model inputs'!S176,\n'[9]SM1 - DECC Scenario 3 equiv'!S176,\n'[9]SM2 - DECC Scenario 1 equiv'!S176,\n'[9]SM3 - DECC Scenario 2 equiv'!S176,\n'[9]SM4 - DNO Scenario 4 equiv'!S176,\n'[10]M1a - Model inputs'!S176,\n'[10]M1b - Model inputs'!S176,\n'[10]SM1 - DECC Scenario 3 equiv'!S176,\n'[10]SM2 - DECC Scenario 1 equiv'!S176,\n'[10]SM3 - DECC Scenario 2 equiv'!S176,\n'[10]SM4 - DNO Scenario 4 equiv'!S176)","v":0}]
[]
[null,null,null,null,{"$f":"Input!E109","v":"Allowed uncertain costs (High Value Projects)"},null,"£m 12/13 prices",null,null,null,null,null,null,null,null,null,null,null,null,null,null,null,null,null,null,null,null,null,null,null,null,null,null,null,null,{"$f":"AJ19","v":0},0,0,0,0,0,0,0]
[null,null,null,null,{"$f":"Input!E110","v":"Allocation to load related capex"},null,"%",null,null,null,null,null,null,null,null,null,null,null,null,null,null,null,null,null,null,null,null,null,null,null,null,null,null,null,null,{"$f":"CHOOSE(view,\n'[9]M1a - Model inputs'!L179,\n'[9]M1b - Model inputs'!L179,\n'[9]SM1 - DECC Scenario 3 equiv'!L179,\n'[9]SM2 - DECC Scenario 1 equiv'!L179,\n'[9]SM3 - DECC Scenario 2 equiv'!L179,\n'[9]SM4 - DNO Scenario 4 equiv'!L179,\n'[10]M1a - Model inputs'!L179,\n'[10]M1b - Model inputs'!L179,\n'[10]SM1 - DECC Scenario 3 equiv'!L179,\n'[10]SM2 - DECC Scenario 1 equiv'!L179,\n'[10]SM3 - DECC Scenario 2 equiv'!L179,\n'[10]SM4 - DNO Scenario 4 equiv'!L179)","v":0},{"$f":"CHOOSE(view,\n'[9]M1a - Model inputs'!M179,\n'[9]M1b - Model inputs'!M179,\n'[9]SM1 - DECC Scenario 3 equiv'!M179,\n'[9]SM2 - DECC Scenario 1 equiv'!M179,\n'[9]SM3 - DECC Scenario 2 equiv'!M179,\n'[9]SM4 - DNO Scenario 4 equiv'!M179,\n'[10]M1a - Model inputs'!M179,\n'[10]M1b - Model inputs'!M179,\n'[10]SM1 - DECC Scenario 3 equiv'!M179,\n'[10]SM2 - DECC Scenario 1 equiv'!M179,\n'[10]SM3 - DECC Scenario 2 equiv'!M179,\n'[10]SM4 - DNO Scenario 4 equiv'!M179)","v":0},{"$f":"CHOOSE(view,\n'[9]M1a - Model inputs'!N179,\n'[9]M1b - Model inputs'!N179,\n'[9]SM1 - DECC Scenario 3 equiv'!N179,\n'[9]SM2 - DECC Scenario 1 equiv'!N179,\n'[9]SM3 - DECC Scenario 2 equiv'!N179,\n'[9]SM4 - DNO Scenario 4 equiv'!N179,\n'[10]M1a - Model inputs'!N179,\n'[10]M1b - Model inputs'!N179,\n'[10]SM1 - DECC Scenario 3 equiv'!N179,\n'[10]SM2 - DECC Scenario 1 equiv'!N179,\n'[10]SM3 - DECC Scenario 2 equiv'!N179,\n'[10]SM4 - DNO Scenario 4 equiv'!N179)","v":0},{"$f":"CHOOSE(view,\n'[9]M1a - Model inputs'!O179,\n'[9]M1b - Model inputs'!O179,\n'[9]SM1 - DECC Scenario 3 equiv'!O179,\n'[9]SM2 - DECC Scenario 1 equiv'!O179,\n'[9]SM3 - DECC Scenario 2 equiv'!O179,\n'[9]SM4 - DNO Scenario 4 equiv'!O179,\n'[10]M1a - Model inputs'!O179,\n'[10]M1b - Model inputs'!O179,\n'[10]SM1 - DECC Scenario 3 equiv'!O179,\n'[10]SM2 - DECC Scenario 1 equiv'!O179,\n'[10]SM3 - DECC Scenario 2 equiv'!O179,\n'[10]SM4 - DNO Scenario 4 equiv'!O179)","v":0},{"$f":"CHOOSE(view,\n'[9]M1a - Model inputs'!P179,\n'[9]M1b - Model inputs'!P179,\n'[9]SM1 - DECC Scenario 3 equiv'!P179,\n'[9]SM2 - DECC Scenario 1 equiv'!P179,\n'[9]SM3 - DECC Scenario 2 equiv'!P179,\n'[9]SM4 - DNO Scenario 4 equiv'!P179,\n'[10]M1a - Model inputs'!P179,\n'[10]M1b - Model inputs'!P179,\n'[10]SM1 - DECC Scenario 3 equiv'!P179,\n'[10]SM2 - DECC Scenario 1 equiv'!P179,\n'[10]SM3 - DECC Scenario 2 equiv'!P179,\n'[10]SM4 - DNO Scenario 4 equiv'!P179)","v":0},{"$f":"CHOOSE(view,\n'[9]M1a - Model inputs'!Q179,\n'[9]M1b - Model inputs'!Q179,\n'[9]SM1 - DECC Scenario 3 equiv'!Q179,\n'[9]SM2 - DECC Scenario 1 equiv'!Q179,\n'[9]SM3 - DECC Scenario 2 equiv'!Q179,\n'[9]SM4 - DNO Scenario 4 equiv'!Q179,\n'[10]M1a - Model inputs'!Q179,\n'[10]M1b - Model inputs'!Q179,\n'[10]SM1 - DECC Scenario 3 equiv'!Q179,\n'[10]SM2 - DECC Scenario 1 equiv'!Q179,\n'[10]SM3 - DECC Scenario 2 equiv'!Q179,\n'[10]SM4 - DNO Scenario 4 equiv'!Q179)","v":0},{"$f":"CHOOSE(view,\n'[9]M1a - Model inputs'!R179,\n'[9]M1b - Model inputs'!R179,\n'[9]SM1 - DECC Scenario 3 equiv'!R179,\n'[9]SM2 - DECC Scenario 1 equiv'!R179,\n'[9]SM3 - DECC Scenario 2 equiv'!R179,\n'[9]SM4 - DNO Scenario 4 equiv'!R179,\n'[10]M1a - Model inputs'!R179,\n'[10]M1b - Model inputs'!R179,\n'[10]SM1 - DECC Scenario 3 equiv'!R179,\n'[10]SM2 - DECC Scenario 1 equiv'!R179,\n'[10]SM3 - DECC Scenario 2 equiv'!R179,\n'[10]SM4 - DNO Scenario 4 equiv'!R179)","v":0},{"$f":"CHOOSE(view,\n'[9]M1a - Model inputs'!S179,\n'[9]M1b - Model inputs'!S179,\n'[9]SM1 - DECC Scenario 3 equiv'!S179,\n'[9]SM2 - DECC Scenario 1 equiv'!S179,\n'[9]SM3 - DECC Scenario 2 equiv'!S179,\n'[9]SM4 - DNO Scenario 4 equiv'!S179,\n'[10]M1a - Model inputs'!S179,\n'[10]M1b - Model inputs'!S179,\n'[10]SM1 - DECC Scenario 3 equiv'!S179,\n'[10]SM2 - DECC Scenario 1 equiv'!S179,\n'[10]SM3 - DECC Scenario 2 equiv'!S179,\n'[10]SM4 - DNO Scenario 4 equiv'!S179)","v":0}]
[null,null,null,null,{"$f":"Input!E111","v":"Allocation to non-load related capex - asset replacement"},null,"%",null,null,null,null,null,null,null,null,null,null,null,null,null,null,null,null,null,null,null,null,null,null,null,null,null,null,null,null,{"$f":"CHOOSE(view,\n'[9]M1a - Model inputs'!L180,\n'[9]M1b - Model inputs'!L180,\n'[9]SM1 - DECC Scenario 3 equiv'!L180,\n'[9]SM2 - DECC Scenario 1 equiv'!L180,\n'[9]SM3 - DECC Scenario 2 equiv'!L180,\n'[9]SM4 - DNO Scenario 4 equiv'!L180,\n'[10]M1a - Model inputs'!L180,\n'[10]M1b - Model inputs'!L180,\n'[10]SM1 - DECC Scenario 3 equiv'!L180,\n'[10]SM2 - DECC Scenario 1 equiv'!L180,\n'[10]SM3 - DECC Scenario 2 equiv'!L180,\n'[10]SM4 - DNO Scenario 4 equiv'!L180)","v":0},{"$f":"CHOOSE(view,\n'[9]M1a - Model inputs'!M180,\n'[9]M1b - Model inputs'!M180,\n'[9]SM1 - DECC Scenario 3 equiv'!M180,\n'[9]SM2 - DECC Scenario 1 equiv'!M180,\n'[9]SM3 - DECC Scenario 2 equiv'!M180,\n'[9]SM4 - DNO Scenario 4 equiv'!M180,\n'[10]M1a - Model inputs'!M180,\n'[10]M1b - Model inputs'!M180,\n'[10]SM1 - DECC Scenario 3 equiv'!M180,\n'[10]SM2 - DECC Scenario 1 equiv'!M180,\n'[10]SM3 - DECC Scenario 2 equiv'!M180,\n'[10]SM4 - DNO Scenario 4 equiv'!M180)","v":0},{"$f":"CHOOSE(view,\n'[9]M1a - Model inputs'!N180,\n'[9]M1b - Model inputs'!N180,\n'[9]SM1 - DECC Scenario 3 equiv'!N180,\n'[9]SM2 - DECC Scenario 1 equiv'!N180,\n'[9]SM3 - DECC Scenario 2 equiv'!N180,\n'[9]SM4 - DNO Scenario 4 equiv'!N180,\n'[10]M1a - Model inputs'!N180,\n'[10]M1b - Model inputs'!N180,\n'[10]SM1 - DECC Scenario 3 equiv'!N180,\n'[10]SM2 - DECC Scenario 1 equiv'!N180,\n'[10]SM3 - DECC Scenario 2 equiv'!N180,\n'[10]SM4 - DNO Scenario 4 equiv'!N180)","v":0},{"$f":"CHOOSE(view,\n'[9]M1a - Model inputs'!O180,\n'[9]M1b - Model inputs'!O180,\n'[9]SM1 - DECC Scenario 3 equiv'!O180,\n'[9]SM2 - DECC Scenario 1 equiv'!O180,\n'[9]SM3 - DECC Scenario 2 equiv'!O180,\n'[9]SM4 - DNO Scenario 4 equiv'!O180,\n'[10]M1a - Model inputs'!O180,\n'[10]M1b - Model inputs'!O180,\n'[10]SM1 - DECC Scenario 3 equiv'!O180,\n'[10]SM2 - DECC Scenario 1 equiv'!O180,\n'[10]SM3 - DECC Scenario 2 equiv'!O180,\n'[10]SM4 - DNO Scenario 4 equiv'!O180)","v":0},{"$f":"CHOOSE(view,\n'[9]M1a - Model inputs'!P180,\n'[9]M1b - Model inputs'!P180,\n'[9]SM1 - DECC Scenario 3 equiv'!P180,\n'[9]SM2 - DECC Scenario 1 equiv'!P180,\n'[9]SM3 - DECC Scenario 2 equiv'!P180,\n'[9]SM4 - DNO Scenario 4 equiv'!P180,\n'[10]M1a - Model inputs'!P180,\n'[10]M1b - Model inputs'!P180,\n'[10]SM1 - DECC Scenario 3 equiv'!P180,\n'[10]SM2 - DECC Scenario 1 equiv'!P180,\n'[10]SM3 - DECC Scenario 2 equiv'!P180,\n'[10]SM4 - DNO Scenario 4 equiv'!P180)","v":0},{"$f":"CHOOSE(view,\n'[9]M1a - Model inputs'!Q180,\n'[9]M1b - Model inputs'!Q180,\n'[9]SM1 - DECC Scenario 3 equiv'!Q180,\n'[9]SM2 - DECC Scenario 1 equiv'!Q180,\n'[9]SM3 - DECC Scenario 2 equiv'!Q180,\n'[9]SM4 - DNO Scenario 4 equiv'!Q180,\n'[10]M1a - Model inputs'!Q180,\n'[10]M1b - Model inputs'!Q180,\n'[10]SM1 - DECC Scenario 3 equiv'!Q180,\n'[10]SM2 - DECC Scenario 1 equiv'!Q180,\n'[10]SM3 - DECC Scenario 2 equiv'!Q180,\n'[10]SM4 - DNO Scenario 4 equiv'!Q180)","v":0},{"$f":"CHOOSE(view,\n'[9]M1a - Model inputs'!R180,\n'[9]M1b - Model inputs'!R180,\n'[9]SM1 - DECC Scenario 3 equiv'!R180,\n'[9]SM2 - DECC Scenario 1 equiv'!R180,\n'[9]SM3 - DECC Scenario 2 equiv'!R180,\n'[9]SM4 - DNO Scenario 4 equiv'!R180,\n'[10]M1a - Model inputs'!R180,\n'[10]M1b - Model inputs'!R180,\n'[10]SM1 - DECC Scenario 3 equiv'!R180,\n'[10]SM2 - DECC Scenario 1 equiv'!R180,\n'[10]SM3 - DECC Scenario 2 equiv'!R180,\n'[10]SM4 - DNO Scenario 4 equiv'!R180)","v":0},{"$f":"CHOOSE(view,\n'[9]M1a - Model inputs'!S180,\n'[9]M1b - Model inputs'!S180,\n'[9]SM1 - DECC Scenario 3 equiv'!S180,\n'[9]SM2 - DECC Scenario 1 equiv'!S180,\n'[9]SM3 - DECC Scenario 2 equiv'!S180,\n'[9]SM4 - DNO Scenario 4 equiv'!S180,\n'[10]M1a - Model inputs'!S180,\n'[10]M1b - Model inputs'!S180,\n'[10]SM1 - DECC Scenario 3 equiv'!S180,\n'[10]SM2 - DECC Scenario 1 equiv'!S180,\n'[10]SM3 - DECC Scenario 2 equiv'!S180,\n'[10]SM4 - DNO Scenario 4 equiv'!S180)","v":0}]
[null,null,null,null,{"$f":"Input!E112","v":"Allocation to non-load related capex - other"},null,"%",null,null,null,null,null,null,null,null,null,null,null,null,null,null,null,null,null,null,null,null,null,null,null,null,null,null,null,null,{"$f":"CHOOSE(view,\n'[9]M1a - Model inputs'!L181,\n'[9]M1b - Model inputs'!L181,\n'[9]SM1 - DECC Scenario 3 equiv'!L181,\n'[9]SM2 - DECC Scenario 1 equiv'!L181,\n'[9]SM3 - DECC Scenario 2 equiv'!L181,\n'[9]SM4 - DNO Scenario 4 equiv'!L181,\n'[10]M1a - Model inputs'!L181,\n'[10]M1b - Model inputs'!L181,\n'[10]SM1 - DECC Scenario 3 equiv'!L181,\n'[10]SM2 - DECC Scenario 1 equiv'!L181,\n'[10]SM3 - DECC Scenario 2 equiv'!L181,\n'[10]SM4 - DNO Scenario 4 equiv'!L181)","v":0},{"$f":"CHOOSE(view,\n'[9]M1a - Model inputs'!M181,\n'[9]M1b - Model inputs'!M181,\n'[9]SM1 - DECC Scenario 3 equiv'!M181,\n'[9]SM2 - DECC Scenario 1 equiv'!M181,\n'[9]SM3 - DECC Scenario 2 equiv'!M181,\n'[9]SM4 - DNO Scenario 4 equiv'!M181,\n'[10]M1a - Model inputs'!M181,\n'[10]M1b - Model inputs'!M181,\n'[10]SM1 - DECC Scenario 3 equiv'!M181,\n'[10]SM2 - DECC Scenario 1 equiv'!M181,\n'[10]SM3 - DECC Scenario 2 equiv'!M181,\n'[10]SM4 - DNO Scenario 4 equiv'!M181)","v":0},{"$f":"CHOOSE(view,\n'[9]M1a - Model inputs'!N181,\n'[9]M1b - Model inputs'!N181,\n'[9]SM1 - DECC Scenario 3 equiv'!N181,\n'[9]SM2 - DECC Scenario 1 equiv'!N181,\n'[9]SM3 - DECC Scenario 2 equiv'!N181,\n'[9]SM4 - DNO Scenario 4 equiv'!N181,\n'[10]M1a - Model inputs'!N181,\n'[10]M1b - Model inputs'!N181,\n'[10]SM1 - DECC Scenario 3 equiv'!N181,\n'[10]SM2 - DECC Scenario 1 equiv'!N181,\n'[10]SM3 - DECC Scenario 2 equiv'!N181,\n'[10]SM4 - DNO Scenario 4 equiv'!N181)","v":0},{"$f":"CHOOSE(view,\n'[9]M1a - Model inputs'!O181,\n'[9]M1b - Model inputs'!O181,\n'[9]SM1 - DECC Scenario 3 equiv'!O181,\n'[9]SM2 - DECC Scenario 1 equiv'!O181,\n'[9]SM3 - DECC Scenario 2 equiv'!O181,\n'[9]SM4 - DNO Scenario 4 equiv'!O181,\n'[10]M1a - Model inputs'!O181,\n'[10]M1b - Model inputs'!O181,\n'[10]SM1 - DECC Scenario 3 equiv'!O181,\n'[10]SM2 - DECC Scenario 1 equiv'!O181,\n'[10]SM3 - DECC Scenario 2 equiv'!O181,\n'[10]SM4 - DNO Scenario 4 equiv'!O181)","v":0},{"$f":"CHOOSE(view,\n'[9]M1a - Model inputs'!P181,\n'[9]M1b - Model inputs'!P181,\n'[9]SM1 - DECC Scenario 3 equiv'!P181,\n'[9]SM2 - DECC Scenario 1 equiv'!P181,\n'[9]SM3 - DECC Scenario 2 equiv'!P181,\n'[9]SM4 - DNO Scenario 4 equiv'!P181,\n'[10]M1a - Model inputs'!P181,\n'[10]M1b - Model inputs'!P181,\n'[10]SM1 - DECC Scenario 3 equiv'!P181,\n'[10]SM2 - DECC Scenario 1 equiv'!P181,\n'[10]SM3 - DECC Scenario 2 equiv'!P181,\n'[10]SM4 - DNO Scenario 4 equiv'!P181)","v":0},{"$f":"CHOOSE(view,\n'[9]M1a - Model inputs'!Q181,\n'[9]M1b - Model inputs'!Q181,\n'[9]SM1 - DECC Scenario 3 equiv'!Q181,\n'[9]SM2 - DECC Scenario 1 equiv'!Q181,\n'[9]SM3 - DECC Scenario 2 equiv'!Q181,\n'[9]SM4 - DNO Scenario 4 equiv'!Q181,\n'[10]M1a - Model inputs'!Q181,\n'[10]M1b - Model inputs'!Q181,\n'[10]SM1 - DECC Scenario 3 equiv'!Q181,\n'[10]SM2 - DECC Scenario 1 equiv'!Q181,\n'[10]SM3 - DECC Scenario 2 equiv'!Q181,\n'[10]SM4 - DNO Scenario 4 equiv'!Q181)","v":0},{"$f":"CHOOSE(view,\n'[9]M1a - Model inputs'!R181,\n'[9]M1b - Model inputs'!R181,\n'[9]SM1 - DECC Scenario 3 equiv'!R181,\n'[9]SM2 - DECC Scenario 1 equiv'!R181,\n'[9]SM3 - DECC Scenario 2 equiv'!R181,\n'[9]SM4 - DNO Scenario 4 equiv'!R181,\n'[10]M1a - Model inputs'!R181,\n'[10]M1b - Model inputs'!R181,\n'[10]SM1 - DECC Scenario 3 equiv'!R181,\n'[10]SM2 - DECC Scenario 1 equiv'!R181,\n'[10]SM3 - DECC Scenario 2 equiv'!R181,\n'[10]SM4 - DNO Scenario 4 equiv'!R181)","v":0},{"$f":"CHOOSE(view,\n'[9]M1a - Model inputs'!S181,\n'[9]M1b - Model inputs'!S181,\n'[9]SM1 - DECC Scenario 3 equiv'!S181,\n'[9]SM2 - DECC Scenario 1 equiv'!S181,\n'[9]SM3 - DECC Scenario 2 equiv'!S181,\n'[9]SM4 - DNO Scenario 4 equiv'!S181,\n'[10]M1a - Model inputs'!S181,\n'[10]M1b - Model inputs'!S181,\n'[10]SM1 - DECC Scenario 3 equiv'!S181,\n'[10]SM2 - DECC Scenario 1 equiv'!S181,\n'[10]SM3 - DECC Scenario 2 equiv'!S181,\n'[10]SM4 - DNO Scenario 4 equiv'!S181)","v":0}]
[null,null,null,null,{"$f":"Input!E113","v":"Allocation to faults"},null,"%",null,null,null,null,null,null,null,null,null,null,null,null,null,null,null,null,null,null,null,null,null,null,null,null,null,null,null,null,{"$f":"CHOOSE(view,\n'[9]M1a - Model inputs'!L182,\n'[9]M1b - Model inputs'!L182,\n'[9]SM1 - DECC Scenario 3 equiv'!L182,\n'[9]SM2 - DECC Scenario 1 equiv'!L182,\n'[9]SM3 - DECC Scenario 2 equiv'!L182,\n'[9]SM4 - DNO Scenario 4 equiv'!L182,\n'[10]M1a - Model inputs'!L182,\n'[10]M1b - Model inputs'!L182,\n'[10]SM1 - DECC Scenario 3 equiv'!L182,\n'[10]SM2 - DECC Scenario 1 equiv'!L182,\n'[10]SM3 - DECC Scenario 2 equiv'!L182,\n'[10]SM4 - DNO Scenario 4 equiv'!L182)","v":0},{"$f":"CHOOSE(view,\n'[9]M1a - Model inputs'!M182,\n'[9]M1b - Model inputs'!M182,\n'[9]SM1 - DECC Scenario 3 equiv'!M182,\n'[9]SM2 - DECC Scenario 1 equiv'!M182,\n'[9]SM3 - DECC Scenario 2 equiv'!M182,\n'[9]SM4 - DNO Scenario 4 equiv'!M182,\n'[10]M1a - Model inputs'!M182,\n'[10]M1b - Model inputs'!M182,\n'[10]SM1 - DECC Scenario 3 equiv'!M182,\n'[10]SM2 - DECC Scenario 1 equiv'!M182,\n'[10]SM3 - DECC Scenario 2 equiv'!M182,\n'[10]SM4 - DNO Scenario 4 equiv'!M182)","v":0},{"$f":"CHOOSE(view,\n'[9]M1a - Model inputs'!N182,\n'[9]M1b - Model inputs'!N182,\n'[9]SM1 - DECC Scenario 3 equiv'!N182,\n'[9]SM2 - DECC Scenario 1 equiv'!N182,\n'[9]SM3 - DECC Scenario 2 equiv'!N182,\n'[9]SM4 - DNO Scenario 4 equiv'!N182,\n'[10]M1a - Model inputs'!N182,\n'[10]M1b - Model inputs'!N182,\n'[10]SM1 - DECC Scenario 3 equiv'!N182,\n'[10]SM2 - DECC Scenario 1 equiv'!N182,\n'[10]SM3 - DECC Scenario 2 equiv'!N182,\n'[10]SM4 - DNO Scenario 4 equiv'!N182)","v":0},{"$f":"CHOOSE(view,\n'[9]M1a - Model inputs'!O182,\n'[9]M1b - Model inputs'!O182,\n'[9]SM1 - DECC Scenario 3 equiv'!O182,\n'[9]SM2 - DECC Scenario 1 equiv'!O182,\n'[9]SM3 - DECC Scenario 2 equiv'!O182,\n'[9]SM4 - DNO Scenario 4 equiv'!O182,\n'[10]M1a - Model inputs'!O182,\n'[10]M1b - Model inputs'!O182,\n'[10]SM1 - DECC Scenario 3 equiv'!O182,\n'[10]SM2 - DECC Scenario 1 equiv'!O182,\n'[10]SM3 - DECC Scenario 2 equiv'!O182,\n'[10]SM4 - DNO Scenario 4 equiv'!O182)","v":0},{"$f":"CHOOSE(view,\n'[9]M1a - Model inputs'!P182,\n'[9]M1b - Model inputs'!P182,\n'[9]SM1 - DECC Scenario 3 equiv'!P182,\n'[9]SM2 - DECC Scenario 1 equiv'!P182,\n'[9]SM3 - DECC Scenario 2 equiv'!P182,\n'[9]SM4 - DNO Scenario 4 equiv'!P182,\n'[10]M1a - Model inputs'!P182,\n'[10]M1b - Model inputs'!P182,\n'[10]SM1 - DECC Scenario 3 equiv'!P182,\n'[10]SM2 - DECC Scenario 1 equiv'!P182,\n'[10]SM3 - DECC Scenario 2 equiv'!P182,\n'[10]SM4 - DNO Scenario 4 equiv'!P182)","v":0},{"$f":"CHOOSE(view,\n'[9]M1a - Model inputs'!Q182,\n'[9]M1b - Model inputs'!Q182,\n'[9]SM1 - DECC Scenario 3 equiv'!Q182,\n'[9]SM2 - DECC Scenario 1 equiv'!Q182,\n'[9]SM3 - DECC Scenario 2 equiv'!Q182,\n'[9]SM4 - DNO Scenario 4 equiv'!Q182,\n'[10]M1a - Model inputs'!Q182,\n'[10]M1b - Model inputs'!Q182,\n'[10]SM1 - DECC Scenario 3 equiv'!Q182,\n'[10]SM2 - DECC Scenario 1 equiv'!Q182,\n'[10]SM3 - DECC Scenario 2 equiv'!Q182,\n'[10]SM4 - DNO Scenario 4 equiv'!Q182)","v":0},{"$f":"CHOOSE(view,\n'[9]M1a - Model inputs'!R182,\n'[9]M1b - Model inputs'!R182,\n'[9]SM1 - DECC Scenario 3 equiv'!R182,\n'[9]SM2 - DECC Scenario 1 equiv'!R182,\n'[9]SM3 - DECC Scenario 2 equiv'!R182,\n'[9]SM4 - DNO Scenario 4 equiv'!R182,\n'[10]M1a - Model inputs'!R182,\n'[10]M1b - Model inputs'!R182,\n'[10]SM1 - DECC Scenario 3 equiv'!R182,\n'[10]SM2 - DECC Scenario 1 equiv'!R182,\n'[10]SM3 - DECC Scenario 2 equiv'!R182,\n'[10]SM4 - DNO Scenario 4 equiv'!R182)","v":0},{"$f":"CHOOSE(view,\n'[9]M1a - Model inputs'!S182,\n'[9]M1b - Model inputs'!S182,\n'[9]SM1 - DECC Scenario 3 equiv'!S182,\n'[9]SM2 - DECC Scenario 1 equiv'!S182,\n'[9]SM3 - DECC Scenario 2 equiv'!S182,\n'[9]SM4 - DNO Scenario 4 equiv'!S182,\n'[10]M1a - Model inputs'!S182,\n'[10]M1b - Model inputs'!S182,\n'[10]SM1 - DECC Scenario 3 equiv'!S182,\n'[10]SM2 - DECC Scenario 1 equiv'!S182,\n'[10]SM3 - DECC Scenario 2 equiv'!S182,\n'[10]SM4 - DNO Scenario 4 equiv'!S182)","v":0}]
[null,null,null,null,{"$f":"Input!E114","v":"Allocation to tree cutting"},null,"%",null,null,null,null,null,null,null,null,null,null,null,null,null,null,null,null,null,null,null,null,null,null,null,null,null,null,null,null,{"$f":"CHOOSE(view,\n'[9]M1a - Model inputs'!L183,\n'[9]M1b - Model inputs'!L183,\n'[9]SM1 - DECC Scenario 3 equiv'!L183,\n'[9]SM2 - DECC Scenario 1 equiv'!L183,\n'[9]SM3 - DECC Scenario 2 equiv'!L183,\n'[9]SM4 - DNO Scenario 4 equiv'!L183,\n'[10]M1a - Model inputs'!L183,\n'[10]M1b - Model inputs'!L183,\n'[10]SM1 - DECC Scenario 3 equiv'!L183,\n'[10]SM2 - DECC Scenario 1 equiv'!L183,\n'[10]SM3 - DECC Scenario 2 equiv'!L183,\n'[10]SM4 - DNO Scenario 4 equiv'!L183)","v":0},{"$f":"CHOOSE(view,\n'[9]M1a - Model inputs'!M183,\n'[9]M1b - Model inputs'!M183,\n'[9]SM1 - DECC Scenario 3 equiv'!M183,\n'[9]SM2 - DECC Scenario 1 equiv'!M183,\n'[9]SM3 - DECC Scenario 2 equiv'!M183,\n'[9]SM4 - DNO Scenario 4 equiv'!M183,\n'[10]M1a - Model inputs'!M183,\n'[10]M1b - Model inputs'!M183,\n'[10]SM1 - DECC Scenario 3 equiv'!M183,\n'[10]SM2 - DECC Scenario 1 equiv'!M183,\n'[10]SM3 - DECC Scenario 2 equiv'!M183,\n'[10]SM4 - DNO Scenario 4 equiv'!M183)","v":0},{"$f":"CHOOSE(view,\n'[9]M1a - Model inputs'!N183,\n'[9]M1b - Model inputs'!N183,\n'[9]SM1 - DECC Scenario 3 equiv'!N183,\n'[9]SM2 - DECC Scenario 1 equiv'!N183,\n'[9]SM3 - DECC Scenario 2 equiv'!N183,\n'[9]SM4 - DNO Scenario 4 equiv'!N183,\n'[10]M1a - Model inputs'!N183,\n'[10]M1b - Model inputs'!N183,\n'[10]SM1 - DECC Scenario 3 equiv'!N183,\n'[10]SM2 - DECC Scenario 1 equiv'!N183,\n'[10]SM3 - DECC Scenario 2 equiv'!N183,\n'[10]SM4 - DNO Scenario 4 equiv'!N183)","v":0},{"$f":"CHOOSE(view,\n'[9]M1a - Model inputs'!O183,\n'[9]M1b - Model inputs'!O183,\n'[9]SM1 - DECC Scenario 3 equiv'!O183,\n'[9]SM2 - DECC Scenario 1 equiv'!O183,\n'[9]SM3 - DECC Scenario 2 equiv'!O183,\n'[9]SM4 - DNO Scenario 4 equiv'!O183,\n'[10]M1a - Model inputs'!O183,\n'[10]M1b - Model inputs'!O183,\n'[10]SM1 - DECC Scenario 3 equiv'!O183,\n'[10]SM2 - DECC Scenario 1 equiv'!O183,\n'[10]SM3 - DECC Scenario 2 equiv'!O183,\n'[10]SM4 - DNO Scenario 4 equiv'!O183)","v":0},{"$f":"CHOOSE(view,\n'[9]M1a - Model inputs'!P183,\n'[9]M1b - Model inputs'!P183,\n'[9]SM1 - DECC Scenario 3 equiv'!P183,\n'[9]SM2 - DECC Scenario 1 equiv'!P183,\n'[9]SM3 - DECC Scenario 2 equiv'!P183,\n'[9]SM4 - DNO Scenario 4 equiv'!P183,\n'[10]M1a - Model inputs'!P183,\n'[10]M1b - Model inputs'!P183,\n'[10]SM1 - DECC Scenario 3 equiv'!P183,\n'[10]SM2 - DECC Scenario 1 equiv'!P183,\n'[10]SM3 - DECC Scenario 2 equiv'!P183,\n'[10]SM4 - DNO Scenario 4 equiv'!P183)","v":0},{"$f":"CHOOSE(view,\n'[9]M1a - Model inputs'!Q183,\n'[9]M1b - Model inputs'!Q183,\n'[9]SM1 - DECC Scenario 3 equiv'!Q183,\n'[9]SM2 - DECC Scenario 1 equiv'!Q183,\n'[9]SM3 - DECC Scenario 2 equiv'!Q183,\n'[9]SM4 - DNO Scenario 4 equiv'!Q183,\n'[10]M1a - Model inputs'!Q183,\n'[10]M1b - Model inputs'!Q183,\n'[10]SM1 - DECC Scenario 3 equiv'!Q183,\n'[10]SM2 - DECC Scenario 1 equiv'!Q183,\n'[10]SM3 - DECC Scenario 2 equiv'!Q183,\n'[10]SM4 - DNO Scenario 4 equiv'!Q183)","v":0},{"$f":"CHOOSE(view,\n'[9]M1a - Model inputs'!R183,\n'[9]M1b - Model inputs'!R183,\n'[9]SM1 - DECC Scenario 3 equiv'!R183,\n'[9]SM2 - DECC Scenario 1 equiv'!R183,\n'[9]SM3 - DECC Scenario 2 equiv'!R183,\n'[9]SM4 - DNO Scenario 4 equiv'!R183,\n'[10]M1a - Model inputs'!R183,\n'[10]M1b - Model inputs'!R183,\n'[10]SM1 - DECC Scenario 3 equiv'!R183,\n'[10]SM2 - DECC Scenario 1 equiv'!R183,\n'[10]SM3 - DECC Scenario 2 equiv'!R183,\n'[10]SM4 - DNO Scenario 4 equiv'!R183)","v":0},{"$f":"CHOOSE(view,\n'[9]M1a - Model inputs'!S183,\n'[9]M1b - Model inputs'!S183,\n'[9]SM1 - DECC Scenario 3 equiv'!S183,\n'[9]SM2 - DECC Scenario 1 equiv'!S183,\n'[9]SM3 - DECC Scenario 2 equiv'!S183,\n'[9]SM4 - DNO Scenario 4 equiv'!S183,\n'[10]M1a - Model inputs'!S183,\n'[10]M1b - Model inputs'!S183,\n'[10]SM1 - DECC Scenario 3 equiv'!S183,\n'[10]SM2 - DECC Scenario 1 equiv'!S183,\n'[10]SM3 - DECC Scenario 2 equiv'!S183,\n'[10]SM4 - DNO Scenario 4 equiv'!S183)","v":0}]
[null,null,null,null,{"$f":"Input!E115","v":"Allocation to controllable opex"},null,"%",null,null,null,null,null,null,null,null,null,null,null,null,null,null,null,null,null,null,null,null,null,null,null,null,null,null,null,null,{"$f":"CHOOSE(view,\n'[9]M1a - Model inputs'!L184,\n'[9]M1b - Model inputs'!L184,\n'[9]SM1 - DECC Scenario 3 equiv'!L184,\n'[9]SM2 - DECC Scenario 1 equiv'!L184,\n'[9]SM3 - DECC Scenario 2 equiv'!L184,\n'[9]SM4 - DNO Scenario 4 equiv'!L184,\n'[10]M1a - Model inputs'!L184,\n'[10]M1b - Model inputs'!L184,\n'[10]SM1 - DECC Scenario 3 equiv'!L184,\n'[10]SM2 - DECC Scenario 1 equiv'!L184,\n'[10]SM3 - DECC Scenario 2 equiv'!L184,\n'[10]SM4 - DNO Scenario 4 equiv'!L184)","v":0},{"$f":"CHOOSE(view,\n'[9]M1a - Model inputs'!M184,\n'[9]M1b - Model inputs'!M184,\n'[9]SM1 - DECC Scenario 3 equiv'!M184,\n'[9]SM2 - DECC Scenario 1 equiv'!M184,\n'[9]SM3 - DECC Scenario 2 equiv'!M184,\n'[9]SM4 - DNO Scenario 4 equiv'!M184,\n'[10]M1a - Model inputs'!M184,\n'[10]M1b - Model inputs'!M184,\n'[10]SM1 - DECC Scenario 3 equiv'!M184,\n'[10]SM2 - DECC Scenario 1 equiv'!M184,\n'[10]SM3 - DECC Scenario 2 equiv'!M184,\n'[10]SM4 - DNO Scenario 4 equiv'!M184)","v":0},{"$f":"CHOOSE(view,\n'[9]M1a - Model inputs'!N184,\n'[9]M1b - Model inputs'!N184,\n'[9]SM1 - DECC Scenario 3 equiv'!N184,\n'[9]SM2 - DECC Scenario 1 equiv'!N184,\n'[9]SM3 - DECC Scenario 2 equiv'!N184,\n'[9]SM4 - DNO Scenario 4 equiv'!N184,\n'[10]M1a - Model inputs'!N184,\n'[10]M1b - Model inputs'!N184,\n'[10]SM1 - DECC Scenario 3 equiv'!N184,\n'[10]SM2 - DECC Scenario 1 equiv'!N184,\n'[10]SM3 - DECC Scenario 2 equiv'!N184,\n'[10]SM4 - DNO Scenario 4 equiv'!N184)","v":0},{"$f":"CHOOSE(view,\n'[9]M1a - Model inputs'!O184,\n'[9]M1b - Model inputs'!O184,\n'[9]SM1 - DECC Scenario 3 equiv'!O184,\n'[9]SM2 - DECC Scenario 1 equiv'!O184,\n'[9]SM3 - DECC Scenario 2 equiv'!O184,\n'[9]SM4 - DNO Scenario 4 equiv'!O184,\n'[10]M1a - Model inputs'!O184,\n'[10]M1b - Model inputs'!O184,\n'[10]SM1 - DECC Scenario 3 equiv'!O184,\n'[10]SM2 - DECC Scenario 1 equiv'!O184,\n'[10]SM3 - DECC Scenario 2 equiv'!O184,\n'[10]SM4 - DNO Scenario 4 equiv'!O184)","v":0},{"$f":"CHOOSE(view,\n'[9]M1a - Model inputs'!P184,\n'[9]M1b - Model inputs'!P184,\n'[9]SM1 - DECC Scenario 3 equiv'!P184,\n'[9]SM2 - DECC Scenario 1 equiv'!P184,\n'[9]SM3 - DECC Scenario 2 equiv'!P184,\n'[9]SM4 - DNO Scenario 4 equiv'!P184,\n'[10]M1a - Model inputs'!P184,\n'[10]M1b - Model inputs'!P184,\n'[10]SM1 - DECC Scenario 3 equiv'!P184,\n'[10]SM2 - DECC Scenario 1 equiv'!P184,\n'[10]SM3 - DECC Scenario 2 equiv'!P184,\n'[10]SM4 - DNO Scenario 4 equiv'!P184)","v":0},{"$f":"CHOOSE(view,\n'[9]M1a - Model inputs'!Q184,\n'[9]M1b - Model inputs'!Q184,\n'[9]SM1 - DECC Scenario 3 equiv'!Q184,\n'[9]SM2 - DECC Scenario 1 equiv'!Q184,\n'[9]SM3 - DECC Scenario 2 equiv'!Q184,\n'[9]SM4 - DNO Scenario 4 equiv'!Q184,\n'[10]M1a - Model inputs'!Q184,\n'[10]M1b - Model inputs'!Q184,\n'[10]SM1 - DECC Scenario 3 equiv'!Q184,\n'[10]SM2 - DECC Scenario 1 equiv'!Q184,\n'[10]SM3 - DECC Scenario 2 equiv'!Q184,\n'[10]SM4 - DNO Scenario 4 equiv'!Q184)","v":0},{"$f":"CHOOSE(view,\n'[9]M1a - Model inputs'!R184,\n'[9]M1b - Model inputs'!R184,\n'[9]SM1 - DECC Scenario 3 equiv'!R184,\n'[9]SM2 - DECC Scenario 1 equiv'!R184,\n'[9]SM3 - DECC Scenario 2 equiv'!R184,\n'[9]SM4 - DNO Scenario 4 equiv'!R184,\n'[10]M1a - Model inputs'!R184,\n'[10]M1b - Model inputs'!R184,\n'[10]SM1 - DECC Scenario 3 equiv'!R184,\n'[10]SM2 - DECC Scenario 1 equiv'!R184,\n'[10]SM3 - DECC Scenario 2 equiv'!R184,\n'[10]SM4 - DNO Scenario 4 equiv'!R184)","v":0},{"$f":"CHOOSE(view,\n'[9]M1a - Model inputs'!S184,\n'[9]M1b - Model inputs'!S184,\n'[9]SM1 - DECC Scenario 3 equiv'!S184,\n'[9]SM2 - DECC Scenario 1 equiv'!S184,\n'[9]SM3 - DECC Scenario 2 equiv'!S184,\n'[9]SM4 - DNO Scenario 4 equiv'!S184,\n'[10]M1a - Model inputs'!S184,\n'[10]M1b - Model inputs'!S184,\n'[10]SM1 - DECC Scenario 3 equiv'!S184,\n'[10]SM2 - DECC Scenario 1 equiv'!S184,\n'[10]SM3 - DECC Scenario 2 equiv'!S184,\n'[10]SM4 - DNO Scenario 4 equiv'!S184)","v":0}]
[]
[null,null,null,null,{"$f":"Input!E117","v":"Allowed uncertain costs (Undergrounding)"},null,"£m 12/13 prices",null,null,null,null,null,null,null,null,null,null,null,null,null,null,null,null,null,null,null,null,null,null,null,null,null,null,null,null,{"$f":"AJ20","v":0.19439062183346598},{"$f":"AK20","v":0.19331542685622108},0.19369917082533533,0.19260900499971864,0.19386480459981845,0.19487437340147956,0.19379644758559239,0.19458037090586253]
[null,null,null,null,{"$f":"Input!E118","v":"Allocation to load related capex"},null,"%",null,null,null,null,null,null,null,null,null,null,null,null,null,null,null,null,null,null,null,null,null,null,null,null,null,null,null,null,{"$f":"CHOOSE(view,\n'[9]M1a - Model inputs'!L187,\n'[9]M1b - Model inputs'!L187,\n'[9]SM1 - DECC Scenario 3 equiv'!L187,\n'[9]SM2 - DECC Scenario 1 equiv'!L187,\n'[9]SM3 - DECC Scenario 2 equiv'!L187,\n'[9]SM4 - DNO Scenario 4 equiv'!L187,\n'[10]M1a - Model inputs'!L187,\n'[10]M1b - Model inputs'!L187,\n'[10]SM1 - DECC Scenario 3 equiv'!L187,\n'[10]SM2 - DECC Scenario 1 equiv'!L187,\n'[10]SM3 - DECC Scenario 2 equiv'!L187,\n'[10]SM4 - DNO Scenario 4 equiv'!L187)","v":0},{"$f":"CHOOSE(view,\n'[9]M1a - Model inputs'!M187,\n'[9]M1b - Model inputs'!M187,\n'[9]SM1 - DECC Scenario 3 equiv'!M187,\n'[9]SM2 - DECC Scenario 1 equiv'!M187,\n'[9]SM3 - DECC Scenario 2 equiv'!M187,\n'[9]SM4 - DNO Scenario 4 equiv'!M187,\n'[10]M1a - Model inputs'!M187,\n'[10]M1b - Model inputs'!M187,\n'[10]SM1 - DECC Scenario 3 equiv'!M187,\n'[10]SM2 - DECC Scenario 1 equiv'!M187,\n'[10]SM3 - DECC Scenario 2 equiv'!M187,\n'[10]SM4 - DNO Scenario 4 equiv'!M187)","v":0},{"$f":"CHOOSE(view,\n'[9]M1a - Model inputs'!N187,\n'[9]M1b - Model inputs'!N187,\n'[9]SM1 - DECC Scenario 3 equiv'!N187,\n'[9]SM2 - DECC Scenario 1 equiv'!N187,\n'[9]SM3 - DECC Scenario 2 equiv'!N187,\n'[9]SM4 - DNO Scenario 4 equiv'!N187,\n'[10]M1a - Model inputs'!N187,\n'[10]M1b - Model inputs'!N187,\n'[10]SM1 - DECC Scenario 3 equiv'!N187,\n'[10]SM2 - DECC Scenario 1 equiv'!N187,\n'[10]SM3 - DECC Scenario 2 equiv'!N187,\n'[10]SM4 - DNO Scenario 4 equiv'!N187)","v":0},{"$f":"CHOOSE(view,\n'[9]M1a - Model inputs'!O187,\n'[9]M1b - Model inputs'!O187,\n'[9]SM1 - DECC Scenario 3 equiv'!O187,\n'[9]SM2 - DECC Scenario 1 equiv'!O187,\n'[9]SM3 - DECC Scenario 2 equiv'!O187,\n'[9]SM4 - DNO Scenario 4 equiv'!O187,\n'[10]M1a - Model inputs'!O187,\n'[10]M1b - Model inputs'!O187,\n'[10]SM1 - DECC Scenario 3 equiv'!O187,\n'[10]SM2 - DECC Scenario 1 equiv'!O187,\n'[10]SM3 - DECC Scenario 2 equiv'!O187,\n'[10]SM4 - DNO Scenario 4 equiv'!O187)","v":0},{"$f":"CHOOSE(view,\n'[9]M1a - Model inputs'!P187,\n'[9]M1b - Model inputs'!P187,\n'[9]SM1 - DECC Scenario 3 equiv'!P187,\n'[9]SM2 - DECC Scenario 1 equiv'!P187,\n'[9]SM3 - DECC Scenario 2 equiv'!P187,\n'[9]SM4 - DNO Scenario 4 equiv'!P187,\n'[10]M1a - Model inputs'!P187,\n'[10]M1b - Model inputs'!P187,\n'[10]SM1 - DECC Scenario 3 equiv'!P187,\n'[10]SM2 - DECC Scenario 1 equiv'!P187,\n'[10]SM3 - DECC Scenario 2 equiv'!P187,\n'[10]SM4 - DNO Scenario 4 equiv'!P187)","v":0},{"$f":"CHOOSE(view,\n'[9]M1a - Model inputs'!Q187,\n'[9]M1b - Model inputs'!Q187,\n'[9]SM1 - DECC Scenario 3 equiv'!Q187,\n'[9]SM2 - DECC Scenario 1 equiv'!Q187,\n'[9]SM3 - DECC Scenario 2 equiv'!Q187,\n'[9]SM4 - DNO Scenario 4 equiv'!Q187,\n'[10]M1a - Model inputs'!Q187,\n'[10]M1b - Model inputs'!Q187,\n'[10]SM1 - DECC Scenario 3 equiv'!Q187,\n'[10]SM2 - DECC Scenario 1 equiv'!Q187,\n'[10]SM3 - DECC Scenario 2 equiv'!Q187,\n'[10]SM4 - DNO Scenario 4 equiv'!Q187)","v":0},{"$f":"CHOOSE(view,\n'[9]M1a - Model inputs'!R187,\n'[9]M1b - Model inputs'!R187,\n'[9]SM1 - DECC Scenario 3 equiv'!R187,\n'[9]SM2 - DECC Scenario 1 equiv'!R187,\n'[9]SM3 - DECC Scenario 2 equiv'!R187,\n'[9]SM4 - DNO Scenario 4 equiv'!R187,\n'[10]M1a - Model inputs'!R187,\n'[10]M1b - Model inputs'!R187,\n'[10]SM1 - DECC Scenario 3 equiv'!R187,\n'[10]SM2 - DECC Scenario 1 equiv'!R187,\n'[10]SM3 - DECC Scenario 2 equiv'!R187,\n'[10]SM4 - DNO Scenario 4 equiv'!R187)","v":0},{"$f":"CHOOSE(view,\n'[9]M1a - Model inputs'!S187,\n'[9]M1b - Model inputs'!S187,\n'[9]SM1 - DECC Scenario 3 equiv'!S187,\n'[9]SM2 - DECC Scenario 1 equiv'!S187,\n'[9]SM3 - DECC Scenario 2 equiv'!S187,\n'[9]SM4 - DNO Scenario 4 equiv'!S187,\n'[10]M1a - Model inputs'!S187,\n'[10]M1b - Model inputs'!S187,\n'[10]SM1 - DECC Scenario 3 equiv'!S187,\n'[10]SM2 - DECC Scenario 1 equiv'!S187,\n'[10]SM3 - DECC Scenario 2 equiv'!S187,\n'[10]SM4 - DNO Scenario 4 equiv'!S187)","v":0}]
[null,null,null,null,{"$f":"Input!E119","v":"Allocation to non-load related capex - asset replacement"},null,"%",null,null,null,null,null,null,null,null,null,null,null,null,null,null,null,null,null,null,null,null,null,null,null,null,null,null,null,null,{"$f":"CHOOSE(view,\n'[9]M1a - Model inputs'!L188,\n'[9]M1b - Model inputs'!L188,\n'[9]SM1 - DECC Scenario 3 equiv'!L188,\n'[9]SM2 - DECC Scenario 1 equiv'!L188,\n'[9]SM3 - DECC Scenario 2 equiv'!L188,\n'[9]SM4 - DNO Scenario 4 equiv'!L188,\n'[10]M1a - Model inputs'!L188,\n'[10]M1b - Model inputs'!L188,\n'[10]SM1 - DECC Scenario 3 equiv'!L188,\n'[10]SM2 - DECC Scenario 1 equiv'!L188,\n'[10]SM3 - DECC Scenario 2 equiv'!L188,\n'[10]SM4 - DNO Scenario 4 equiv'!L188)","v":0},{"$f":"CHOOSE(view,\n'[9]M1a - Model inputs'!M188,\n'[9]M1b - Model inputs'!M188,\n'[9]SM1 - DECC Scenario 3 equiv'!M188,\n'[9]SM2 - DECC Scenario 1 equiv'!M188,\n'[9]SM3 - DECC Scenario 2 equiv'!M188,\n'[9]SM4 - DNO Scenario 4 equiv'!M188,\n'[10]M1a - Model inputs'!M188,\n'[10]M1b - Model inputs'!M188,\n'[10]SM1 - DECC Scenario 3 equiv'!M188,\n'[10]SM2 - DECC Scenario 1 equiv'!M188,\n'[10]SM3 - DECC Scenario 2 equiv'!M188,\n'[10]SM4 - DNO Scenario 4 equiv'!M188)","v":0},{"$f":"CHOOSE(view,\n'[9]M1a - Model inputs'!N188,\n'[9]M1b - Model inputs'!N188,\n'[9]SM1 - DECC Scenario 3 equiv'!N188,\n'[9]SM2 - DECC Scenario 1 equiv'!N188,\n'[9]SM3 - DECC Scenario 2 equiv'!N188,\n'[9]SM4 - DNO Scenario 4 equiv'!N188,\n'[10]M1a - Model inputs'!N188,\n'[10]M1b - Model inputs'!N188,\n'[10]SM1 - DECC Scenario 3 equiv'!N188,\n'[10]SM2 - DECC Scenario 1 equiv'!N188,\n'[10]SM3 - DECC Scenario 2 equiv'!N188,\n'[10]SM4 - DNO Scenario 4 equiv'!N188)","v":0},{"$f":"CHOOSE(view,\n'[9]M1a - Model inputs'!O188,\n'[9]M1b - Model inputs'!O188,\n'[9]SM1 - DECC Scenario 3 equiv'!O188,\n'[9]SM2 - DECC Scenario 1 equiv'!O188,\n'[9]SM3 - DECC Scenario 2 equiv'!O188,\n'[9]SM4 - DNO Scenario 4 equiv'!O188,\n'[10]M1a - Model inputs'!O188,\n'[10]M1b - Model inputs'!O188,\n'[10]SM1 - DECC Scenario 3 equiv'!O188,\n'[10]SM2 - DECC Scenario 1 equiv'!O188,\n'[10]SM3 - DECC Scenario 2 equiv'!O188,\n'[10]SM4 - DNO Scenario 4 equiv'!O188)","v":0},{"$f":"CHOOSE(view,\n'[9]M1a - Model inputs'!P188,\n'[9]M1b - Model inputs'!P188,\n'[9]SM1 - DECC Scenario 3 equiv'!P188,\n'[9]SM2 - DECC Scenario 1 equiv'!P188,\n'[9]SM3 - DECC Scenario 2 equiv'!P188,\n'[9]SM4 - DNO Scenario 4 equiv'!P188,\n'[10]M1a - Model inputs'!P188,\n'[10]M1b - Model inputs'!P188,\n'[10]SM1 - DECC Scenario 3 equiv'!P188,\n'[10]SM2 - DECC Scenario 1 equiv'!P188,\n'[10]SM3 - DECC Scenario 2 equiv'!P188,\n'[10]SM4 - DNO Scenario 4 equiv'!P188)","v":0},{"$f":"CHOOSE(view,\n'[9]M1a - Model inputs'!Q188,\n'[9]M1b - Model inputs'!Q188,\n'[9]SM1 - DECC Scenario 3 equiv'!Q188,\n'[9]SM2 - DECC Scenario 1 equiv'!Q188,\n'[9]SM3 - DECC Scenario 2 equiv'!Q188,\n'[9]SM4 - DNO Scenario 4 equiv'!Q188,\n'[10]M1a - Model inputs'!Q188,\n'[10]M1b - Model inputs'!Q188,\n'[10]SM1 - DECC Scenario 3 equiv'!Q188,\n'[10]SM2 - DECC Scenario 1 equiv'!Q188,\n'[10]SM3 - DECC Scenario 2 equiv'!Q188,\n'[10]SM4 - DNO Scenario 4 equiv'!Q188)","v":0},{"$f":"CHOOSE(view,\n'[9]M1a - Model inputs'!R188,\n'[9]M1b - Model inputs'!R188,\n'[9]SM1 - DECC Scenario 3 equiv'!R188,\n'[9]SM2 - DECC Scenario 1 equiv'!R188,\n'[9]SM3 - DECC Scenario 2 equiv'!R188,\n'[9]SM4 - DNO Scenario 4 equiv'!R188,\n'[10]M1a - Model inputs'!R188,\n'[10]M1b - Model inputs'!R188,\n'[10]SM1 - DECC Scenario 3 equiv'!R188,\n'[10]SM2 - DECC Scenario 1 equiv'!R188,\n'[10]SM3 - DECC Scenario 2 equiv'!R188,\n'[10]SM4 - DNO Scenario 4 equiv'!R188)","v":0},{"$f":"CHOOSE(view,\n'[9]M1a - Model inputs'!S188,\n'[9]M1b - Model inputs'!S188,\n'[9]SM1 - DECC Scenario 3 equiv'!S188,\n'[9]SM2 - DECC Scenario 1 equiv'!S188,\n'[9]SM3 - DECC Scenario 2 equiv'!S188,\n'[9]SM4 - DNO Scenario 4 equiv'!S188,\n'[10]M1a - Model inputs'!S188,\n'[10]M1b - Model inputs'!S188,\n'[10]SM1 - DECC Scenario 3 equiv'!S188,\n'[10]SM2 - DECC Scenario 1 equiv'!S188,\n'[10]SM3 - DECC Scenario 2 equiv'!S188,\n'[10]SM4 - DNO Scenario 4 equiv'!S188)","v":0}]
[null,null,null,null,{"$f":"Input!E120","v":"Allocation to non-load related capex - other"},null,"%",null,null,null,null,null,null,null,null,null,null,null,null,null,null,null,null,null,null,null,null,null,null,null,null,null,null,null,null,{"$f":"CHOOSE(view,\n'[9]M1a - Model inputs'!L189,\n'[9]M1b - Model inputs'!L189,\n'[9]SM1 - DECC Scenario 3 equiv'!L189,\n'[9]SM2 - DECC Scenario 1 equiv'!L189,\n'[9]SM3 - DECC Scenario 2 equiv'!L189,\n'[9]SM4 - DNO Scenario 4 equiv'!L189,\n'[10]M1a - Model inputs'!L189,\n'[10]M1b - Model inputs'!L189,\n'[10]SM1 - DECC Scenario 3 equiv'!L189,\n'[10]SM2 - DECC Scenario 1 equiv'!L189,\n'[10]SM3 - DECC Scenario 2 equiv'!L189,\n'[10]SM4 - DNO Scenario 4 equiv'!L189)","v":1},{"$f":"CHOOSE(view,\n'[9]M1a - Model inputs'!M189,\n'[9]M1b - Model inputs'!M189,\n'[9]SM1 - DECC Scenario 3 equiv'!M189,\n'[9]SM2 - DECC Scenario 1 equiv'!M189,\n'[9]SM3 - DECC Scenario 2 equiv'!M189,\n'[9]SM4 - DNO Scenario 4 equiv'!M189,\n'[10]M1a - Model inputs'!M189,\n'[10]M1b - Model inputs'!M189,\n'[10]SM1 - DECC Scenario 3 equiv'!M189,\n'[10]SM2 - DECC Scenario 1 equiv'!M189,\n'[10]SM3 - DECC Scenario 2 equiv'!M189,\n'[10]SM4 - DNO Scenario 4 equiv'!M189)","v":1},{"$f":"CHOOSE(view,\n'[9]M1a - Model inputs'!N189,\n'[9]M1b - Model inputs'!N189,\n'[9]SM1 - DECC Scenario 3 equiv'!N189,\n'[9]SM2 - DECC Scenario 1 equiv'!N189,\n'[9]SM3 - DECC Scenario 2 equiv'!N189,\n'[9]SM4 - DNO Scenario 4 equiv'!N189,\n'[10]M1a - Model inputs'!N189,\n'[10]M1b - Model inputs'!N189,\n'[10]SM1 - DECC Scenario 3 equiv'!N189,\n'[10]SM2 - DECC Scenario 1 equiv'!N189,\n'[10]SM3 - DECC Scenario 2 equiv'!N189,\n'[10]SM4 - DNO Scenario 4 equiv'!N189)","v":1},{"$f":"CHOOSE(view,\n'[9]M1a - Model inputs'!O189,\n'[9]M1b - Model inputs'!O189,\n'[9]SM1 - DECC Scenario 3 equiv'!O189,\n'[9]SM2 - DECC Scenario 1 equiv'!O189,\n'[9]SM3 - DECC Scenario 2 equiv'!O189,\n'[9]SM4 - DNO Scenario 4 equiv'!O189,\n'[10]M1a - Model inputs'!O189,\n'[10]M1b - Model inputs'!O189,\n'[10]SM1 - DECC Scenario 3 equiv'!O189,\n'[10]SM2 - DECC Scenario 1 equiv'!O189,\n'[10]SM3 - DECC Scenario 2 equiv'!O189,\n'[10]SM4 - DNO Scenario 4 equiv'!O189)","v":1},{"$f":"CHOOSE(view,\n'[9]M1a - Model inputs'!P189,\n'[9]M1b - Model inputs'!P189,\n'[9]SM1 - DECC Scenario 3 equiv'!P189,\n'[9]SM2 - DECC Scenario 1 equiv'!P189,\n'[9]SM3 - DECC Scenario 2 equiv'!P189,\n'[9]SM4 - DNO Scenario 4 equiv'!P189,\n'[10]M1a - Model inputs'!P189,\n'[10]M1b - Model inputs'!P189,\n'[10]SM1 - DECC Scenario 3 equiv'!P189,\n'[10]SM2 - DECC Scenario 1 equiv'!P189,\n'[10]SM3 - DECC Scenario 2 equiv'!P189,\n'[10]SM4 - DNO Scenario 4 equiv'!P189)","v":1},{"$f":"CHOOSE(view,\n'[9]M1a - Model inputs'!Q189,\n'[9]M1b - Model inputs'!Q189,\n'[9]SM1 - DECC Scenario 3 equiv'!Q189,\n'[9]SM2 - DECC Scenario 1 equiv'!Q189,\n'[9]SM3 - DECC Scenario 2 equiv'!Q189,\n'[9]SM4 - DNO Scenario 4 equiv'!Q189,\n'[10]M1a - Model inputs'!Q189,\n'[10]M1b - Model inputs'!Q189,\n'[10]SM1 - DECC Scenario 3 equiv'!Q189,\n'[10]SM2 - DECC Scenario 1 equiv'!Q189,\n'[10]SM3 - DECC Scenario 2 equiv'!Q189,\n'[10]SM4 - DNO Scenario 4 equiv'!Q189)","v":1},{"$f":"CHOOSE(view,\n'[9]M1a - Model inputs'!R189,\n'[9]M1b - Model inputs'!R189,\n'[9]SM1 - DECC Scenario 3 equiv'!R189,\n'[9]SM2 - DECC Scenario 1 equiv'!R189,\n'[9]SM3 - DECC Scenario 2 equiv'!R189,\n'[9]SM4 - DNO Scenario 4 equiv'!R189,\n'[10]M1a - Model inputs'!R189,\n'[10]M1b - Model inputs'!R189,\n'[10]SM1 - DECC Scenario 3 equiv'!R189,\n'[10]SM2 - DECC Scenario 1 equiv'!R189,\n'[10]SM3 - DECC Scenario 2 equiv'!R189,\n'[10]SM4 - DNO Scenario 4 equiv'!R189)","v":1},{"$f":"CHOOSE(view,\n'[9]M1a - Model inputs'!S189,\n'[9]M1b - Model inputs'!S189,\n'[9]SM1 - DECC Scenario 3 equiv'!S189,\n'[9]SM2 - DECC Scenario 1 equiv'!S189,\n'[9]SM3 - DECC Scenario 2 equiv'!S189,\n'[9]SM4 - DNO Scenario 4 equiv'!S189,\n'[10]M1a - Model inputs'!S189,\n'[10]M1b - Model inputs'!S189,\n'[10]SM1 - DECC Scenario 3 equiv'!S189,\n'[10]SM2 - DECC Scenario 1 equiv'!S189,\n'[10]SM3 - DECC Scenario 2 equiv'!S189,\n'[10]SM4 - DNO Scenario 4 equiv'!S189)","v":1}]
[null,null,null,null,{"$f":"Input!E121","v":"Allocation to faults"},null,"%",null,null,null,null,null,null,null,null,null,null,null,null,null,null,null,null,null,null,null,null,null,null,null,null,null,null,null,null,{"$f":"CHOOSE(view,\n'[9]M1a - Model inputs'!L190,\n'[9]M1b - Model inputs'!L190,\n'[9]SM1 - DECC Scenario 3 equiv'!L190,\n'[9]SM2 - DECC Scenario 1 equiv'!L190,\n'[9]SM3 - DECC Scenario 2 equiv'!L190,\n'[9]SM4 - DNO Scenario 4 equiv'!L190,\n'[10]M1a - Model inputs'!L190,\n'[10]M1b - Model inputs'!L190,\n'[10]SM1 - DECC Scenario 3 equiv'!L190,\n'[10]SM2 - DECC Scenario 1 equiv'!L190,\n'[10]SM3 - DECC Scenario 2 equiv'!L190,\n'[10]SM4 - DNO Scenario 4 equiv'!L190)","v":0},{"$f":"CHOOSE(view,\n'[9]M1a - Model inputs'!M190,\n'[9]M1b - Model inputs'!M190,\n'[9]SM1 - DECC Scenario 3 equiv'!M190,\n'[9]SM2 - DECC Scenario 1 equiv'!M190,\n'[9]SM3 - DECC Scenario 2 equiv'!M190,\n'[9]SM4 - DNO Scenario 4 equiv'!M190,\n'[10]M1a - Model inputs'!M190,\n'[10]M1b - Model inputs'!M190,\n'[10]SM1 - DECC Scenario 3 equiv'!M190,\n'[10]SM2 - DECC Scenario 1 equiv'!M190,\n'[10]SM3 - DECC Scenario 2 equiv'!M190,\n'[10]SM4 - DNO Scenario 4 equiv'!M190)","v":0},{"$f":"CHOOSE(view,\n'[9]M1a - Model inputs'!N190,\n'[9]M1b - Model inputs'!N190,\n'[9]SM1 - DECC Scenario 3 equiv'!N190,\n'[9]SM2 - DECC Scenario 1 equiv'!N190,\n'[9]SM3 - DECC Scenario 2 equiv'!N190,\n'[9]SM4 - DNO Scenario 4 equiv'!N190,\n'[10]M1a - Model inputs'!N190,\n'[10]M1b - Model inputs'!N190,\n'[10]SM1 - DECC Scenario 3 equiv'!N190,\n'[10]SM2 - DECC Scenario 1 equiv'!N190,\n'[10]SM3 - DECC Scenario 2 equiv'!N190,\n'[10]SM4 - DNO Scenario 4 equiv'!N190)","v":0},{"$f":"CHOOSE(view,\n'[9]M1a - Model inputs'!O190,\n'[9]M1b - Model inputs'!O190,\n'[9]SM1 - DECC Scenario 3 equiv'!O190,\n'[9]SM2 - DECC Scenario 1 equiv'!O190,\n'[9]SM3 - DECC Scenario 2 equiv'!O190,\n'[9]SM4 - DNO Scenario 4 equiv'!O190,\n'[10]M1a - Model inputs'!O190,\n'[10]M1b - Model inputs'!O190,\n'[10]SM1 - DECC Scenario 3 equiv'!O190,\n'[10]SM2 - DECC Scenario 1 equiv'!O190,\n'[10]SM3 - DECC Scenario 2 equiv'!O190,\n'[10]SM4 - DNO Scenario 4 equiv'!O190)","v":0},{"$f":"CHOOSE(view,\n'[9]M1a - Model inputs'!P190,\n'[9]M1b - Model inputs'!P190,\n'[9]SM1 - DECC Scenario 3 equiv'!P190,\n'[9]SM2 - DECC Scenario 1 equiv'!P190,\n'[9]SM3 - DECC Scenario 2 equiv'!P190,\n'[9]SM4 - DNO Scenario 4 equiv'!P190,\n'[10]M1a - Model inputs'!P190,\n'[10]M1b - Model inputs'!P190,\n'[10]SM1 - DECC Scenario 3 equiv'!P190,\n'[10]SM2 - DECC Scenario 1 equiv'!P190,\n'[10]SM3 - DECC Scenario 2 equiv'!P190,\n'[10]SM4 - DNO Scenario 4 equiv'!P190)","v":0},{"$f":"CHOOSE(view,\n'[9]M1a - Model inputs'!Q190,\n'[9]M1b - Model inputs'!Q190,\n'[9]SM1 - DECC Scenario 3 equiv'!Q190,\n'[9]SM2 - DECC Scenario 1 equiv'!Q190,\n'[9]SM3 - DECC Scenario 2 equiv'!Q190,\n'[9]SM4 - DNO Scenario 4 equiv'!Q190,\n'[10]M1a - Model inputs'!Q190,\n'[10]M1b - Model inputs'!Q190,\n'[10]SM1 - DECC Scenario 3 equiv'!Q190,\n'[10]SM2 - DECC Scenario 1 equiv'!Q190,\n'[10]SM3 - DECC Scenario 2 equiv'!Q190,\n'[10]SM4 - DNO Scenario 4 equiv'!Q190)","v":0},{"$f":"CHOOSE(view,\n'[9]M1a - Model inputs'!R190,\n'[9]M1b - Model inputs'!R190,\n'[9]SM1 - DECC Scenario 3 equiv'!R190,\n'[9]SM2 - DECC Scenario 1 equiv'!R190,\n'[9]SM3 - DECC Scenario 2 equiv'!R190,\n'[9]SM4 - DNO Scenario 4 equiv'!R190,\n'[10]M1a - Model inputs'!R190,\n'[10]M1b - Model inputs'!R190,\n'[10]SM1 - DECC Scenario 3 equiv'!R190,\n'[10]SM2 - DECC Scenario 1 equiv'!R190,\n'[10]SM3 - DECC Scenario 2 equiv'!R190,\n'[10]SM4 - DNO Scenario 4 equiv'!R190)","v":0},{"$f":"CHOOSE(view,\n'[9]M1a - Model inputs'!S190,\n'[9]M1b - Model inputs'!S190,\n'[9]SM1 - DECC Scenario 3 equiv'!S190,\n'[9]SM2 - DECC Scenario 1 equiv'!S190,\n'[9]SM3 - DECC Scenario 2 equiv'!S190,\n'[9]SM4 - DNO Scenario 4 equiv'!S190,\n'[10]M1a - Model inputs'!S190,\n'[10]M1b - Model inputs'!S190,\n'[10]SM1 - DECC Scenario 3 equiv'!S190,\n'[10]SM2 - DECC Scenario 1 equiv'!S190,\n'[10]SM3 - DECC Scenario 2 equiv'!S190,\n'[10]SM4 - DNO Scenario 4 equiv'!S190)","v":0}]
[null,null,null,null,{"$f":"Input!E122","v":"Allocation to tree cutting"},null,"%",null,null,null,null,null,null,null,null,null,null,null,null,null,null,null,null,null,null,null,null,null,null,null,null,null,null,null,null,{"$f":"CHOOSE(view,\n'[9]M1a - Model inputs'!L191,\n'[9]M1b - Model inputs'!L191,\n'[9]SM1 - DECC Scenario 3 equiv'!L191,\n'[9]SM2 - DECC Scenario 1 equiv'!L191,\n'[9]SM3 - DECC Scenario 2 equiv'!L191,\n'[9]SM4 - DNO Scenario 4 equiv'!L191,\n'[10]M1a - Model inputs'!L191,\n'[10]M1b - Model inputs'!L191,\n'[10]SM1 - DECC Scenario 3 equiv'!L191,\n'[10]SM2 - DECC Scenario 1 equiv'!L191,\n'[10]SM3 - DECC Scenario 2 equiv'!L191,\n'[10]SM4 - DNO Scenario 4 equiv'!L191)","v":0},{"$f":"CHOOSE(view,\n'[9]M1a - Model inputs'!M191,\n'[9]M1b - Model inputs'!M191,\n'[9]SM1 - DECC Scenario 3 equiv'!M191,\n'[9]SM2 - DECC Scenario 1 equiv'!M191,\n'[9]SM3 - DECC Scenario 2 equiv'!M191,\n'[9]SM4 - DNO Scenario 4 equiv'!M191,\n'[10]M1a - Model inputs'!M191,\n'[10]M1b - Model inputs'!M191,\n'[10]SM1 - DECC Scenario 3 equiv'!M191,\n'[10]SM2 - DECC Scenario 1 equiv'!M191,\n'[10]SM3 - DECC Scenario 2 equiv'!M191,\n'[10]SM4 - DNO Scenario 4 equiv'!M191)","v":0},{"$f":"CHOOSE(view,\n'[9]M1a - Model inputs'!N191,\n'[9]M1b - Model inputs'!N191,\n'[9]SM1 - DECC Scenario 3 equiv'!N191,\n'[9]SM2 - DECC Scenario 1 equiv'!N191,\n'[9]SM3 - DECC Scenario 2 equiv'!N191,\n'[9]SM4 - DNO Scenario 4 equiv'!N191,\n'[10]M1a - Model inputs'!N191,\n'[10]M1b - Model inputs'!N191,\n'[10]SM1 - DECC Scenario 3 equiv'!N191,\n'[10]SM2 - DECC Scenario 1 equiv'!N191,\n'[10]SM3 - DECC Scenario 2 equiv'!N191,\n'[10]SM4 - DNO Scenario 4 equiv'!N191)","v":0},{"$f":"CHOOSE(view,\n'[9]M1a - Model inputs'!O191,\n'[9]M1b - Model inputs'!O191,\n'[9]SM1 - DECC Scenario 3 equiv'!O191,\n'[9]SM2 - DECC Scenario 1 equiv'!O191,\n'[9]SM3 - DECC Scenario 2 equiv'!O191,\n'[9]SM4 - DNO Scenario 4 equiv'!O191,\n'[10]M1a - Model inputs'!O191,\n'[10]M1b - Model inputs'!O191,\n'[10]SM1 - DECC Scenario 3 equiv'!O191,\n'[10]SM2 - DECC Scenario 1 equiv'!O191,\n'[10]SM3 - DECC Scenario 2 equiv'!O191,\n'[10]SM4 - DNO Scenario 4 equiv'!O191)","v":0},{"$f":"CHOOSE(view,\n'[9]M1a - Model inputs'!P191,\n'[9]M1b - Model inputs'!P191,\n'[9]SM1 - DECC Scenario 3 equiv'!P191,\n'[9]SM2 - DECC Scenario 1 equiv'!P191,\n'[9]SM3 - DECC Scenario 2 equiv'!P191,\n'[9]SM4 - DNO Scenario 4 equiv'!P191,\n'[10]M1a - Model inputs'!P191,\n'[10]M1b - Model inputs'!P191,\n'[10]SM1 - DECC Scenario 3 equiv'!P191,\n'[10]SM2 - DECC Scenario 1 equiv'!P191,\n'[10]SM3 - DECC Scenario 2 equiv'!P191,\n'[10]SM4 - DNO Scenario 4 equiv'!P191)","v":0},{"$f":"CHOOSE(view,\n'[9]M1a - Model inputs'!Q191,\n'[9]M1b - Model inputs'!Q191,\n'[9]SM1 - DECC Scenario 3 equiv'!Q191,\n'[9]SM2 - DECC Scenario 1 equiv'!Q191,\n'[9]SM3 - DECC Scenario 2 equiv'!Q191,\n'[9]SM4 - DNO Scenario 4 equiv'!Q191,\n'[10]M1a - Model inputs'!Q191,\n'[10]M1b - Model inputs'!Q191,\n'[10]SM1 - DECC Scenario 3 equiv'!Q191,\n'[10]SM2 - DECC Scenario 1 equiv'!Q191,\n'[10]SM3 - DECC Scenario 2 equiv'!Q191,\n'[10]SM4 - DNO Scenario 4 equiv'!Q191)","v":0},{"$f":"CHOOSE(view,\n'[9]M1a - Model inputs'!R191,\n'[9]M1b - Model inputs'!R191,\n'[9]SM1 - DECC Scenario 3 equiv'!R191,\n'[9]SM2 - DECC Scenario 1 equiv'!R191,\n'[9]SM3 - DECC Scenario 2 equiv'!R191,\n'[9]SM4 - DNO Scenario 4 equiv'!R191,\n'[10]M1a - Model inputs'!R191,\n'[10]M1b - Model inputs'!R191,\n'[10]SM1 - DECC Scenario 3 equiv'!R191,\n'[10]SM2 - DECC Scenario 1 equiv'!R191,\n'[10]SM3 - DECC Scenario 2 equiv'!R191,\n'[10]SM4 - DNO Scenario 4 equiv'!R191)","v":0},{"$f":"CHOOSE(view,\n'[9]M1a - Model inputs'!S191,\n'[9]M1b - Model inputs'!S191,\n'[9]SM1 - DECC Scenario 3 equiv'!S191,\n'[9]SM2 - DECC Scenario 1 equiv'!S191,\n'[9]SM3 - DECC Scenario 2 equiv'!S191,\n'[9]SM4 - DNO Scenario 4 equiv'!S191,\n'[10]M1a - Model inputs'!S191,\n'[10]M1b - Model inputs'!S191,\n'[10]SM1 - DECC Scenario 3 equiv'!S191,\n'[10]SM2 - DECC Scenario 1 equiv'!S191,\n'[10]SM3 - DECC Scenario 2 equiv'!S191,\n'[10]SM4 - DNO Scenario 4 equiv'!S191)","v":0}]
[null,null,null,null,{"$f":"Input!E123","v":"Allocation to controllable opex"},null,"%",null,null,null,null,null,null,null,null,null,null,null,null,null,null,null,null,null,null,null,null,null,null,null,null,null,null,null,null,{"$f":"CHOOSE(view,\n'[9]M1a - Model inputs'!L192,\n'[9]M1b - Model inputs'!L192,\n'[9]SM1 - DECC Scenario 3 equiv'!L192,\n'[9]SM2 - DECC Scenario 1 equiv'!L192,\n'[9]SM3 - DECC Scenario 2 equiv'!L192,\n'[9]SM4 - DNO Scenario 4 equiv'!L192,\n'[10]M1a - Model inputs'!L192,\n'[10]M1b - Model inputs'!L192,\n'[10]SM1 - DECC Scenario 3 equiv'!L192,\n'[10]SM2 - DECC Scenario 1 equiv'!L192,\n'[10]SM3 - DECC Scenario 2 equiv'!L192,\n'[10]SM4 - DNO Scenario 4 equiv'!L192)","v":0},{"$f":"CHOOSE(view,\n'[9]M1a - Model inputs'!M192,\n'[9]M1b - Model inputs'!M192,\n'[9]SM1 - DECC Scenario 3 equiv'!M192,\n'[9]SM2 - DECC Scenario 1 equiv'!M192,\n'[9]SM3 - DECC Scenario 2 equiv'!M192,\n'[9]SM4 - DNO Scenario 4 equiv'!M192,\n'[10]M1a - Model inputs'!M192,\n'[10]M1b - Model inputs'!M192,\n'[10]SM1 - DECC Scenario 3 equiv'!M192,\n'[10]SM2 - DECC Scenario 1 equiv'!M192,\n'[10]SM3 - DECC Scenario 2 equiv'!M192,\n'[10]SM4 - DNO Scenario 4 equiv'!M192)","v":0},{"$f":"CHOOSE(view,\n'[9]M1a - Model inputs'!N192,\n'[9]M1b - Model inputs'!N192,\n'[9]SM1 - DECC Scenario 3 equiv'!N192,\n'[9]SM2 - DECC Scenario 1 equiv'!N192,\n'[9]SM3 - DECC Scenario 2 equiv'!N192,\n'[9]SM4 - DNO Scenario 4 equiv'!N192,\n'[10]M1a - Model inputs'!N192,\n'[10]M1b - Model inputs'!N192,\n'[10]SM1 - DECC Scenario 3 equiv'!N192,\n'[10]SM2 - DECC Scenario 1 equiv'!N192,\n'[10]SM3 - DECC Scenario 2 equiv'!N192,\n'[10]SM4 - DNO Scenario 4 equiv'!N192)","v":0},{"$f":"CHOOSE(view,\n'[9]M1a - Model inputs'!O192,\n'[9]M1b - Model inputs'!O192,\n'[9]SM1 - DECC Scenario 3 equiv'!O192,\n'[9]SM2 - DECC Scenario 1 equiv'!O192,\n'[9]SM3 - DECC Scenario 2 equiv'!O192,\n'[9]SM4 - DNO Scenario 4 equiv'!O192,\n'[10]M1a - Model inputs'!O192,\n'[10]M1b - Model inputs'!O192,\n'[10]SM1 - DECC Scenario 3 equiv'!O192,\n'[10]SM2 - DECC Scenario 1 equiv'!O192,\n'[10]SM3 - DECC Scenario 2 equiv'!O192,\n'[10]SM4 - DNO Scenario 4 equiv'!O192)","v":0},{"$f":"CHOOSE(view,\n'[9]M1a - Model inputs'!P192,\n'[9]M1b - Model inputs'!P192,\n'[9]SM1 - DECC Scenario 3 equiv'!P192,\n'[9]SM2 - DECC Scenario 1 equiv'!P192,\n'[9]SM3 - DECC Scenario 2 equiv'!P192,\n'[9]SM4 - DNO Scenario 4 equiv'!P192,\n'[10]M1a - Model inputs'!P192,\n'[10]M1b - Model inputs'!P192,\n'[10]SM1 - DECC Scenario 3 equiv'!P192,\n'[10]SM2 - DECC Scenario 1 equiv'!P192,\n'[10]SM3 - DECC Scenario 2 equiv'!P192,\n'[10]SM4 - DNO Scenario 4 equiv'!P192)","v":0},{"$f":"CHOOSE(view,\n'[9]M1a - Model inputs'!Q192,\n'[9]M1b - Model inputs'!Q192,\n'[9]SM1 - DECC Scenario 3 equiv'!Q192,\n'[9]SM2 - DECC Scenario 1 equiv'!Q192,\n'[9]SM3 - DECC Scenario 2 equiv'!Q192,\n'[9]SM4 - DNO Scenario 4 equiv'!Q192,\n'[10]M1a - Model inputs'!Q192,\n'[10]M1b - Model inputs'!Q192,\n'[10]SM1 - DECC Scenario 3 equiv'!Q192,\n'[10]SM2 - DECC Scenario 1 equiv'!Q192,\n'[10]SM3 - DECC Scenario 2 equiv'!Q192,\n'[10]SM4 - DNO Scenario 4 equiv'!Q192)","v":0},{"$f":"CHOOSE(view,\n'[9]M1a - Model inputs'!R192,\n'[9]M1b - Model inputs'!R192,\n'[9]SM1 - DECC Scenario 3 equiv'!R192,\n'[9]SM2 - DECC Scenario 1 equiv'!R192,\n'[9]SM3 - DECC Scenario 2 equiv'!R192,\n'[9]SM4 - DNO Scenario 4 equiv'!R192,\n'[10]M1a - Model inputs'!R192,\n'[10]M1b - Model inputs'!R192,\n'[10]SM1 - DECC Scenario 3 equiv'!R192,\n'[10]SM2 - DECC Scenario 1 equiv'!R192,\n'[10]SM3 - DECC Scenario 2 equiv'!R192,\n'[10]SM4 - DNO Scenario 4 equiv'!R192)","v":0},{"$f":"CHOOSE(view,\n'[9]M1a - Model inputs'!S192,\n'[9]M1b - Model inputs'!S192,\n'[9]SM1 - DECC Scenario 3 equiv'!S192,\n'[9]SM2 - DECC Scenario 1 equiv'!S192,\n'[9]SM3 - DECC Scenario 2 equiv'!S192,\n'[9]SM4 - DNO Scenario 4 equiv'!S192,\n'[10]M1a - Model inputs'!S192,\n'[10]M1b - Model inputs'!S192,\n'[10]SM1 - DECC Scenario 3 equiv'!S192,\n'[10]SM2 - DECC Scenario 1 equiv'!S192,\n'[10]SM3 - DECC Scenario 2 equiv'!S192,\n'[10]SM4 - DNO Scenario 4 equiv'!S192)","v":0}]
[]
[null,null,null,null,{"$f":"Input!E125","v":"Allowed uncertain costs (Worst served customers)"},null,"£m 12/13 prices",null,null,null,null,null,null,null,null,null,null,null,null,null,null,null,null,null,null,null,null,null,null,null,null,null,null,null,null,{"$f":"AJ21","v":0},{"$f":"AK21","v":0.51073509957364771},0.50945823129223222,0,0,0,0,0]
[null,null,null,null,{"$f":"Input!E126","v":"Allocation to load related capex"},null,"%",null,null,null,null,null,null,null,null,null,null,null,null,null,null,null,null,null,null,null,null,null,null,null,null,null,null,null,null,{"$f":"CHOOSE(view,\n'[9]M1a - Model inputs'!L195,\n'[9]M1b - Model inputs'!L195,\n'[9]SM1 - DECC Scenario 3 equiv'!L195,\n'[9]SM2 - DECC Scenario 1 equiv'!L195,\n'[9]SM3 - DECC Scenario 2 equiv'!L195,\n'[9]SM4 - DNO Scenario 4 equiv'!L195,\n'[10]M1a - Model inputs'!L195,\n'[10]M1b - Model inputs'!L195,\n'[10]SM1 - DECC Scenario 3 equiv'!L195,\n'[10]SM2 - DECC Scenario 1 equiv'!L195,\n'[10]SM3 - DECC Scenario 2 equiv'!L195,\n'[10]SM4 - DNO Scenario 4 equiv'!L195)","v":0},{"$f":"CHOOSE(view,\n'[9]M1a - Model inputs'!M195,\n'[9]M1b - Model inputs'!M195,\n'[9]SM1 - DECC Scenario 3 equiv'!M195,\n'[9]SM2 - DECC Scenario 1 equiv'!M195,\n'[9]SM3 - DECC Scenario 2 equiv'!M195,\n'[9]SM4 - DNO Scenario 4 equiv'!M195,\n'[10]M1a - Model inputs'!M195,\n'[10]M1b - Model inputs'!M195,\n'[10]SM1 - DECC Scenario 3 equiv'!M195,\n'[10]SM2 - DECC Scenario 1 equiv'!M195,\n'[10]SM3 - DECC Scenario 2 equiv'!M195,\n'[10]SM4 - DNO Scenario 4 equiv'!M195)","v":0},{"$f":"CHOOSE(view,\n'[9]M1a - Model inputs'!N195,\n'[9]M1b - Model inputs'!N195,\n'[9]SM1 - DECC Scenario 3 equiv'!N195,\n'[9]SM2 - DECC Scenario 1 equiv'!N195,\n'[9]SM3 - DECC Scenario 2 equiv'!N195,\n'[9]SM4 - DNO Scenario 4 equiv'!N195,\n'[10]M1a - Model inputs'!N195,\n'[10]M1b - Model inputs'!N195,\n'[10]SM1 - DECC Scenario 3 equiv'!N195,\n'[10]SM2 - DECC Scenario 1 equiv'!N195,\n'[10]SM3 - DECC Scenario 2 equiv'!N195,\n'[10]SM4 - DNO Scenario 4 equiv'!N195)","v":0},{"$f":"CHOOSE(view,\n'[9]M1a - Model inputs'!O195,\n'[9]M1b - Model inputs'!O195,\n'[9]SM1 - DECC Scenario 3 equiv'!O195,\n'[9]SM2 - DECC Scenario 1 equiv'!O195,\n'[9]SM3 - DECC Scenario 2 equiv'!O195,\n'[9]SM4 - DNO Scenario 4 equiv'!O195,\n'[10]M1a - Model inputs'!O195,\n'[10]M1b - Model inputs'!O195,\n'[10]SM1 - DECC Scenario 3 equiv'!O195,\n'[10]SM2 - DECC Scenario 1 equiv'!O195,\n'[10]SM3 - DECC Scenario 2 equiv'!O195,\n'[10]SM4 - DNO Scenario 4 equiv'!O195)","v":0},{"$f":"CHOOSE(view,\n'[9]M1a - Model inputs'!P195,\n'[9]M1b - Model inputs'!P195,\n'[9]SM1 - DECC Scenario 3 equiv'!P195,\n'[9]SM2 - DECC Scenario 1 equiv'!P195,\n'[9]SM3 - DECC Scenario 2 equiv'!P195,\n'[9]SM4 - DNO Scenario 4 equiv'!P195,\n'[10]M1a - Model inputs'!P195,\n'[10]M1b - Model inputs'!P195,\n'[10]SM1 - DECC Scenario 3 equiv'!P195,\n'[10]SM2 - DECC Scenario 1 equiv'!P195,\n'[10]SM3 - DECC Scenario 2 equiv'!P195,\n'[10]SM4 - DNO Scenario 4 equiv'!P195)","v":0},{"$f":"CHOOSE(view,\n'[9]M1a - Model inputs'!Q195,\n'[9]M1b - Model inputs'!Q195,\n'[9]SM1 - DECC Scenario 3 equiv'!Q195,\n'[9]SM2 - DECC Scenario 1 equiv'!Q195,\n'[9]SM3 - DECC Scenario 2 equiv'!Q195,\n'[9]SM4 - DNO Scenario 4 equiv'!Q195,\n'[10]M1a - Model inputs'!Q195,\n'[10]M1b - Model inputs'!Q195,\n'[10]SM1 - DECC Scenario 3 equiv'!Q195,\n'[10]SM2 - DECC Scenario 1 equiv'!Q195,\n'[10]SM3 - DECC Scenario 2 equiv'!Q195,\n'[10]SM4 - DNO Scenario 4 equiv'!Q195)","v":0},{"$f":"CHOOSE(view,\n'[9]M1a - Model inputs'!R195,\n'[9]M1b - Model inputs'!R195,\n'[9]SM1 - DECC Scenario 3 equiv'!R195,\n'[9]SM2 - DECC Scenario 1 equiv'!R195,\n'[9]SM3 - DECC Scenario 2 equiv'!R195,\n'[9]SM4 - DNO Scenario 4 equiv'!R195,\n'[10]M1a - Model inputs'!R195,\n'[10]M1b - Model inputs'!R195,\n'[10]SM1 - DECC Scenario 3 equiv'!R195,\n'[10]SM2 - DECC Scenario 1 equiv'!R195,\n'[10]SM3 - DECC Scenario 2 equiv'!R195,\n'[10]SM4 - DNO Scenario 4 equiv'!R195)","v":0},{"$f":"CHOOSE(view,\n'[9]M1a - Model inputs'!S195,\n'[9]M1b - Model inputs'!S195,\n'[9]SM1 - DECC Scenario 3 equiv'!S195,\n'[9]SM2 - DECC Scenario 1 equiv'!S195,\n'[9]SM3 - DECC Scenario 2 equiv'!S195,\n'[9]SM4 - DNO Scenario 4 equiv'!S195,\n'[10]M1a - Model inputs'!S195,\n'[10]M1b - Model inputs'!S195,\n'[10]SM1 - DECC Scenario 3 equiv'!S195,\n'[10]SM2 - DECC Scenario 1 equiv'!S195,\n'[10]SM3 - DECC Scenario 2 equiv'!S195,\n'[10]SM4 - DNO Scenario 4 equiv'!S195)","v":0}]
[null,null,null,null,{"$f":"Input!E127","v":"Allocation to non-load related capex - asset replacement"},null,"%",null,null,null,null,null,null,null,null,null,null,null,null,null,null,null,null,null,null,null,null,null,null,null,null,null,null,null,null,{"$f":"CHOOSE(view,\n'[9]M1a - Model inputs'!L196,\n'[9]M1b - Model inputs'!L196,\n'[9]SM1 - DECC Scenario 3 equiv'!L196,\n'[9]SM2 - DECC Scenario 1 equiv'!L196,\n'[9]SM3 - DECC Scenario 2 equiv'!L196,\n'[9]SM4 - DNO Scenario 4 equiv'!L196,\n'[10]M1a - Model inputs'!L196,\n'[10]M1b - Model inputs'!L196,\n'[10]SM1 - DECC Scenario 3 equiv'!L196,\n'[10]SM2 - DECC Scenario 1 equiv'!L196,\n'[10]SM3 - DECC Scenario 2 equiv'!L196,\n'[10]SM4 - DNO Scenario 4 equiv'!L196)","v":1},{"$f":"CHOOSE(view,\n'[9]M1a - Model inputs'!M196,\n'[9]M1b - Model inputs'!M196,\n'[9]SM1 - DECC Scenario 3 equiv'!M196,\n'[9]SM2 - DECC Scenario 1 equiv'!M196,\n'[9]SM3 - DECC Scenario 2 equiv'!M196,\n'[9]SM4 - DNO Scenario 4 equiv'!M196,\n'[10]M1a - Model inputs'!M196,\n'[10]M1b - Model inputs'!M196,\n'[10]SM1 - DECC Scenario 3 equiv'!M196,\n'[10]SM2 - DECC Scenario 1 equiv'!M196,\n'[10]SM3 - DECC Scenario 2 equiv'!M196,\n'[10]SM4 - DNO Scenario 4 equiv'!M196)","v":1},{"$f":"CHOOSE(view,\n'[9]M1a - Model inputs'!N196,\n'[9]M1b - Model inputs'!N196,\n'[9]SM1 - DECC Scenario 3 equiv'!N196,\n'[9]SM2 - DECC Scenario 1 equiv'!N196,\n'[9]SM3 - DECC Scenario 2 equiv'!N196,\n'[9]SM4 - DNO Scenario 4 equiv'!N196,\n'[10]M1a - Model inputs'!N196,\n'[10]M1b - Model inputs'!N196,\n'[10]SM1 - DECC Scenario 3 equiv'!N196,\n'[10]SM2 - DECC Scenario 1 equiv'!N196,\n'[10]SM3 - DECC Scenario 2 equiv'!N196,\n'[10]SM4 - DNO Scenario 4 equiv'!N196)","v":1},{"$f":"CHOOSE(view,\n'[9]M1a - Model inputs'!O196,\n'[9]M1b - Model inputs'!O196,\n'[9]SM1 - DECC Scenario 3 equiv'!O196,\n'[9]SM2 - DECC Scenario 1 equiv'!O196,\n'[9]SM3 - DECC Scenario 2 equiv'!O196,\n'[9]SM4 - DNO Scenario 4 equiv'!O196,\n'[10]M1a - Model inputs'!O196,\n'[10]M1b - Model inputs'!O196,\n'[10]SM1 - DECC Scenario 3 equiv'!O196,\n'[10]SM2 - DECC Scenario 1 equiv'!O196,\n'[10]SM3 - DECC Scenario 2 equiv'!O196,\n'[10]SM4 - DNO Scenario 4 equiv'!O196)","v":1},{"$f":"CHOOSE(view,\n'[9]M1a - Model inputs'!P196,\n'[9]M1b - Model inputs'!P196,\n'[9]SM1 - DECC Scenario 3 equiv'!P196,\n'[9]SM2 - DECC Scenario 1 equiv'!P196,\n'[9]SM3 - DECC Scenario 2 equiv'!P196,\n'[9]SM4 - DNO Scenario 4 equiv'!P196,\n'[10]M1a - Model inputs'!P196,\n'[10]M1b - Model inputs'!P196,\n'[10]SM1 - DECC Scenario 3 equiv'!P196,\n'[10]SM2 - DECC Scenario 1 equiv'!P196,\n'[10]SM3 - DECC Scenario 2 equiv'!P196,\n'[10]SM4 - DNO Scenario 4 equiv'!P196)","v":1},{"$f":"CHOOSE(view,\n'[9]M1a - Model inputs'!Q196,\n'[9]M1b - Model inputs'!Q196,\n'[9]SM1 - DECC Scenario 3 equiv'!Q196,\n'[9]SM2 - DECC Scenario 1 equiv'!Q196,\n'[9]SM3 - DECC Scenario 2 equiv'!Q196,\n'[9]SM4 - DNO Scenario 4 equiv'!Q196,\n'[10]M1a - Model inputs'!Q196,\n'[10]M1b - Model inputs'!Q196,\n'[10]SM1 - DECC Scenario 3 equiv'!Q196,\n'[10]SM2 - DECC Scenario 1 equiv'!Q196,\n'[10]SM3 - DECC Scenario 2 equiv'!Q196,\n'[10]SM4 - DNO Scenario 4 equiv'!Q196)","v":1},{"$f":"CHOOSE(view,\n'[9]M1a - Model inputs'!R196,\n'[9]M1b - Model inputs'!R196,\n'[9]SM1 - DECC Scenario 3 equiv'!R196,\n'[9]SM2 - DECC Scenario 1 equiv'!R196,\n'[9]SM3 - DECC Scenario 2 equiv'!R196,\n'[9]SM4 - DNO Scenario 4 equiv'!R196,\n'[10]M1a - Model inputs'!R196,\n'[10]M1b - Model inputs'!R196,\n'[10]SM1 - DECC Scenario 3 equiv'!R196,\n'[10]SM2 - DECC Scenario 1 equiv'!R196,\n'[10]SM3 - DECC Scenario 2 equiv'!R196,\n'[10]SM4 - DNO Scenario 4 equiv'!R196)","v":1},{"$f":"CHOOSE(view,\n'[9]M1a - Model inputs'!S196,\n'[9]M1b - Model inputs'!S196,\n'[9]SM1 - DECC Scenario 3 equiv'!S196,\n'[9]SM2 - DECC Scenario 1 equiv'!S196,\n'[9]SM3 - DECC Scenario 2 equiv'!S196,\n'[9]SM4 - DNO Scenario 4 equiv'!S196,\n'[10]M1a - Model inputs'!S196,\n'[10]M1b - Model inputs'!S196,\n'[10]SM1 - DECC Scenario 3 equiv'!S196,\n'[10]SM2 - DECC Scenario 1 equiv'!S196,\n'[10]SM3 - DECC Scenario 2 equiv'!S196,\n'[10]SM4 - DNO Scenario 4 equiv'!S196)","v":1}]
[null,null,null,null,{"$f":"Input!E128","v":"Allocation to non-load related capex - other"},null,"%",null,null,null,null,null,null,null,null,null,null,null,null,null,null,null,null,null,null,null,null,null,null,null,null,null,null,null,null,{"$f":"CHOOSE(view,\n'[9]M1a - Model inputs'!L197,\n'[9]M1b - Model inputs'!L197,\n'[9]SM1 - DECC Scenario 3 equiv'!L197,\n'[9]SM2 - DECC Scenario 1 equiv'!L197,\n'[9]SM3 - DECC Scenario 2 equiv'!L197,\n'[9]SM4 - DNO Scenario 4 equiv'!L197,\n'[10]M1a - Model inputs'!L197,\n'[10]M1b - Model inputs'!L197,\n'[10]SM1 - DECC Scenario 3 equiv'!L197,\n'[10]SM2 - DECC Scenario 1 equiv'!L197,\n'[10]SM3 - DECC Scenario 2 equiv'!L197,\n'[10]SM4 - DNO Scenario 4 equiv'!L197)","v":0},{"$f":"CHOOSE(view,\n'[9]M1a - Model inputs'!M197,\n'[9]M1b - Model inputs'!M197,\n'[9]SM1 - DECC Scenario 3 equiv'!M197,\n'[9]SM2 - DECC Scenario 1 equiv'!M197,\n'[9]SM3 - DECC Scenario 2 equiv'!M197,\n'[9]SM4 - DNO Scenario 4 equiv'!M197,\n'[10]M1a - Model inputs'!M197,\n'[10]M1b - Model inputs'!M197,\n'[10]SM1 - DECC Scenario 3 equiv'!M197,\n'[10]SM2 - DECC Scenario 1 equiv'!M197,\n'[10]SM3 - DECC Scenario 2 equiv'!M197,\n'[10]SM4 - DNO Scenario 4 equiv'!M197)","v":0},{"$f":"CHOOSE(view,\n'[9]M1a - Model inputs'!N197,\n'[9]M1b - Model inputs'!N197,\n'[9]SM1 - DECC Scenario 3 equiv'!N197,\n'[9]SM2 - DECC Scenario 1 equiv'!N197,\n'[9]SM3 - DECC Scenario 2 equiv'!N197,\n'[9]SM4 - DNO Scenario 4 equiv'!N197,\n'[10]M1a - Model inputs'!N197,\n'[10]M1b - Model inputs'!N197,\n'[10]SM1 - DECC Scenario 3 equiv'!N197,\n'[10]SM2 - DECC Scenario 1 equiv'!N197,\n'[10]SM3 - DECC Scenario 2 equiv'!N197,\n'[10]SM4 - DNO Scenario 4 equiv'!N197)","v":0},{"$f":"CHOOSE(view,\n'[9]M1a - Model inputs'!O197,\n'[9]M1b - Model inputs'!O197,\n'[9]SM1 - DECC Scenario 3 equiv'!O197,\n'[9]SM2 - DECC Scenario 1 equiv'!O197,\n'[9]SM3 - DECC Scenario 2 equiv'!O197,\n'[9]SM4 - DNO Scenario 4 equiv'!O197,\n'[10]M1a - Model inputs'!O197,\n'[10]M1b - Model inputs'!O197,\n'[10]SM1 - DECC Scenario 3 equiv'!O197,\n'[10]SM2 - DECC Scenario 1 equiv'!O197,\n'[10]SM3 - DECC Scenario 2 equiv'!O197,\n'[10]SM4 - DNO Scenario 4 equiv'!O197)","v":0},{"$f":"CHOOSE(view,\n'[9]M1a - Model inputs'!P197,\n'[9]M1b - Model inputs'!P197,\n'[9]SM1 - DECC Scenario 3 equiv'!P197,\n'[9]SM2 - DECC Scenario 1 equiv'!P197,\n'[9]SM3 - DECC Scenario 2 equiv'!P197,\n'[9]SM4 - DNO Scenario 4 equiv'!P197,\n'[10]M1a - Model inputs'!P197,\n'[10]M1b - Model inputs'!P197,\n'[10]SM1 - DECC Scenario 3 equiv'!P197,\n'[10]SM2 - DECC Scenario 1 equiv'!P197,\n'[10]SM3 - DECC Scenario 2 equiv'!P197,\n'[10]SM4 - DNO Scenario 4 equiv'!P197)","v":0},{"$f":"CHOOSE(view,\n'[9]M1a - Model inputs'!Q197,\n'[9]M1b - Model inputs'!Q197,\n'[9]SM1 - DECC Scenario 3 equiv'!Q197,\n'[9]SM2 - DECC Scenario 1 equiv'!Q197,\n'[9]SM3 - DECC Scenario 2 equiv'!Q197,\n'[9]SM4 - DNO Scenario 4 equiv'!Q197,\n'[10]M1a - Model inputs'!Q197,\n'[10]M1b - Model inputs'!Q197,\n'[10]SM1 - DECC Scenario 3 equiv'!Q197,\n'[10]SM2 - DECC Scenario 1 equiv'!Q197,\n'[10]SM3 - DECC Scenario 2 equiv'!Q197,\n'[10]SM4 - DNO Scenario 4 equiv'!Q197)","v":0},{"$f":"CHOOSE(view,\n'[9]M1a - Model inputs'!R197,\n'[9]M1b - Model inputs'!R197,\n'[9]SM1 - DECC Scenario 3 equiv'!R197,\n'[9]SM2 - DECC Scenario 1 equiv'!R197,\n'[9]SM3 - DECC Scenario 2 equiv'!R197,\n'[9]SM4 - DNO Scenario 4 equiv'!R197,\n'[10]M1a - Model inputs'!R197,\n'[10]M1b - Model inputs'!R197,\n'[10]SM1 - DECC Scenario 3 equiv'!R197,\n'[10]SM2 - DECC Scenario 1 equiv'!R197,\n'[10]SM3 - DECC Scenario 2 equiv'!R197,\n'[10]SM4 - DNO Scenario 4 equiv'!R197)","v":0},{"$f":"CHOOSE(view,\n'[9]M1a - Model inputs'!S197,\n'[9]M1b - Model inputs'!S197,\n'[9]SM1 - DECC Scenario 3 equiv'!S197,\n'[9]SM2 - DECC Scenario 1 equiv'!S197,\n'[9]SM3 - DECC Scenario 2 equiv'!S197,\n'[9]SM4 - DNO Scenario 4 equiv'!S197,\n'[10]M1a - Model inputs'!S197,\n'[10]M1b - Model inputs'!S197,\n'[10]SM1 - DECC Scenario 3 equiv'!S197,\n'[10]SM2 - DECC Scenario 1 equiv'!S197,\n'[10]SM3 - DECC Scenario 2 equiv'!S197,\n'[10]SM4 - DNO Scenario 4 equiv'!S197)","v":0}]
[null,null,null,null,{"$f":"Input!E129","v":"Allocation to faults"},null,"%",null,null,null,null,null,null,null,null,null,null,null,null,null,null,null,null,null,null,null,null,null,null,null,null,null,null,null,null,{"$f":"CHOOSE(view,\n'[9]M1a - Model inputs'!L198,\n'[9]M1b - Model inputs'!L198,\n'[9]SM1 - DECC Scenario 3 equiv'!L198,\n'[9]SM2 - DECC Scenario 1 equiv'!L198,\n'[9]SM3 - DECC Scenario 2 equiv'!L198,\n'[9]SM4 - DNO Scenario 4 equiv'!L198,\n'[10]M1a - Model inputs'!L198,\n'[10]M1b - Model inputs'!L198,\n'[10]SM1 - DECC Scenario 3 equiv'!L198,\n'[10]SM2 - DECC Scenario 1 equiv'!L198,\n'[10]SM3 - DECC Scenario 2 equiv'!L198,\n'[10]SM4 - DNO Scenario 4 equiv'!L198)","v":0},{"$f":"CHOOSE(view,\n'[9]M1a - Model inputs'!M198,\n'[9]M1b - Model inputs'!M198,\n'[9]SM1 - DECC Scenario 3 equiv'!M198,\n'[9]SM2 - DECC Scenario 1 equiv'!M198,\n'[9]SM3 - DECC Scenario 2 equiv'!M198,\n'[9]SM4 - DNO Scenario 4 equiv'!M198,\n'[10]M1a - Model inputs'!M198,\n'[10]M1b - Model inputs'!M198,\n'[10]SM1 - DECC Scenario 3 equiv'!M198,\n'[10]SM2 - DECC Scenario 1 equiv'!M198,\n'[10]SM3 - DECC Scenario 2 equiv'!M198,\n'[10]SM4 - DNO Scenario 4 equiv'!M198)","v":0},{"$f":"CHOOSE(view,\n'[9]M1a - Model inputs'!N198,\n'[9]M1b - Model inputs'!N198,\n'[9]SM1 - DECC Scenario 3 equiv'!N198,\n'[9]SM2 - DECC Scenario 1 equiv'!N198,\n'[9]SM3 - DECC Scenario 2 equiv'!N198,\n'[9]SM4 - DNO Scenario 4 equiv'!N198,\n'[10]M1a - Model inputs'!N198,\n'[10]M1b - Model inputs'!N198,\n'[10]SM1 - DECC Scenario 3 equiv'!N198,\n'[10]SM2 - DECC Scenario 1 equiv'!N198,\n'[10]SM3 - DECC Scenario 2 equiv'!N198,\n'[10]SM4 - DNO Scenario 4 equiv'!N198)","v":0},{"$f":"CHOOSE(view,\n'[9]M1a - Model inputs'!O198,\n'[9]M1b - Model inputs'!O198,\n'[9]SM1 - DECC Scenario 3 equiv'!O198,\n'[9]SM2 - DECC Scenario 1 equiv'!O198,\n'[9]SM3 - DECC Scenario 2 equiv'!O198,\n'[9]SM4 - DNO Scenario 4 equiv'!O198,\n'[10]M1a - Model inputs'!O198,\n'[10]M1b - Model inputs'!O198,\n'[10]SM1 - DECC Scenario 3 equiv'!O198,\n'[10]SM2 - DECC Scenario 1 equiv'!O198,\n'[10]SM3 - DECC Scenario 2 equiv'!O198,\n'[10]SM4 - DNO Scenario 4 equiv'!O198)","v":0},{"$f":"CHOOSE(view,\n'[9]M1a - Model inputs'!P198,\n'[9]M1b - Model inputs'!P198,\n'[9]SM1 - DECC Scenario 3 equiv'!P198,\n'[9]SM2 - DECC Scenario 1 equiv'!P198,\n'[9]SM3 - DECC Scenario 2 equiv'!P198,\n'[9]SM4 - DNO Scenario 4 equiv'!P198,\n'[10]M1a - Model inputs'!P198,\n'[10]M1b - Model inputs'!P198,\n'[10]SM1 - DECC Scenario 3 equiv'!P198,\n'[10]SM2 - DECC Scenario 1 equiv'!P198,\n'[10]SM3 - DECC Scenario 2 equiv'!P198,\n'[10]SM4 - DNO Scenario 4 equiv'!P198)","v":0},{"$f":"CHOOSE(view,\n'[9]M1a - Model inputs'!Q198,\n'[9]M1b - Model inputs'!Q198,\n'[9]SM1 - DECC Scenario 3 equiv'!Q198,\n'[9]SM2 - DECC Scenario 1 equiv'!Q198,\n'[9]SM3 - DECC Scenario 2 equiv'!Q198,\n'[9]SM4 - DNO Scenario 4 equiv'!Q198,\n'[10]M1a - Model inputs'!Q198,\n'[10]M1b - Model inputs'!Q198,\n'[10]SM1 - DECC Scenario 3 equiv'!Q198,\n'[10]SM2 - DECC Scenario 1 equiv'!Q198,\n'[10]SM3 - DECC Scenario 2 equiv'!Q198,\n'[10]SM4 - DNO Scenario 4 equiv'!Q198)","v":0},{"$f":"CHOOSE(view,\n'[9]M1a - Model inputs'!R198,\n'[9]M1b - Model inputs'!R198,\n'[9]SM1 - DECC Scenario 3 equiv'!R198,\n'[9]SM2 - DECC Scenario 1 equiv'!R198,\n'[9]SM3 - DECC Scenario 2 equiv'!R198,\n'[9]SM4 - DNO Scenario 4 equiv'!R198,\n'[10]M1a - Model inputs'!R198,\n'[10]M1b - Model inputs'!R198,\n'[10]SM1 - DECC Scenario 3 equiv'!R198,\n'[10]SM2 - DECC Scenario 1 equiv'!R198,\n'[10]SM3 - DECC Scenario 2 equiv'!R198,\n'[10]SM4 - DNO Scenario 4 equiv'!R198)","v":0},{"$f":"CHOOSE(view,\n'[9]M1a - Model inputs'!S198,\n'[9]M1b - Model inputs'!S198,\n'[9]SM1 - DECC Scenario 3 equiv'!S198,\n'[9]SM2 - DECC Scenario 1 equiv'!S198,\n'[9]SM3 - DECC Scenario 2 equiv'!S198,\n'[9]SM4 - DNO Scenario 4 equiv'!S198,\n'[10]M1a - Model inputs'!S198,\n'[10]M1b - Model inputs'!S198,\n'[10]SM1 - DECC Scenario 3 equiv'!S198,\n'[10]SM2 - DECC Scenario 1 equiv'!S198,\n'[10]SM3 - DECC Scenario 2 equiv'!S198,\n'[10]SM4 - DNO Scenario 4 equiv'!S198)","v":0}]
[null,null,null,null,{"$f":"Input!E130","v":"Allocation to tree cutting"},null,"%",null,null,null,null,null,null,null,null,null,null,null,null,null,null,null,null,null,null,null,null,null,null,null,null,null,null,null,null,{"$f":"CHOOSE(view,\n'[9]M1a - Model inputs'!L199,\n'[9]M1b - Model inputs'!L199,\n'[9]SM1 - DECC Scenario 3 equiv'!L199,\n'[9]SM2 - DECC Scenario 1 equiv'!L199,\n'[9]SM3 - DECC Scenario 2 equiv'!L199,\n'[9]SM4 - DNO Scenario 4 equiv'!L199,\n'[10]M1a - Model inputs'!L199,\n'[10]M1b - Model inputs'!L199,\n'[10]SM1 - DECC Scenario 3 equiv'!L199,\n'[10]SM2 - DECC Scenario 1 equiv'!L199,\n'[10]SM3 - DECC Scenario 2 equiv'!L199,\n'[10]SM4 - DNO Scenario 4 equiv'!L199)","v":0},{"$f":"CHOOSE(view,\n'[9]M1a - Model inputs'!M199,\n'[9]M1b - Model inputs'!M199,\n'[9]SM1 - DECC Scenario 3 equiv'!M199,\n'[9]SM2 - DECC Scenario 1 equiv'!M199,\n'[9]SM3 - DECC Scenario 2 equiv'!M199,\n'[9]SM4 - DNO Scenario 4 equiv'!M199,\n'[10]M1a - Model inputs'!M199,\n'[10]M1b - Model inputs'!M199,\n'[10]SM1 - DECC Scenario 3 equiv'!M199,\n'[10]SM2 - DECC Scenario 1 equiv'!M199,\n'[10]SM3 - DECC Scenario 2 equiv'!M199,\n'[10]SM4 - DNO Scenario 4 equiv'!M199)","v":0},{"$f":"CHOOSE(view,\n'[9]M1a - Model inputs'!N199,\n'[9]M1b - Model inputs'!N199,\n'[9]SM1 - DECC Scenario 3 equiv'!N199,\n'[9]SM2 - DECC Scenario 1 equiv'!N199,\n'[9]SM3 - DECC Scenario 2 equiv'!N199,\n'[9]SM4 - DNO Scenario 4 equiv'!N199,\n'[10]M1a - Model inputs'!N199,\n'[10]M1b - Model inputs'!N199,\n'[10]SM1 - DECC Scenario 3 equiv'!N199,\n'[10]SM2 - DECC Scenario 1 equiv'!N199,\n'[10]SM3 - DECC Scenario 2 equiv'!N199,\n'[10]SM4 - DNO Scenario 4 equiv'!N199)","v":0},{"$f":"CHOOSE(view,\n'[9]M1a - Model inputs'!O199,\n'[9]M1b - Model inputs'!O199,\n'[9]SM1 - DECC Scenario 3 equiv'!O199,\n'[9]SM2 - DECC Scenario 1 equiv'!O199,\n'[9]SM3 - DECC Scenario 2 equiv'!O199,\n'[9]SM4 - DNO Scenario 4 equiv'!O199,\n'[10]M1a - Model inputs'!O199,\n'[10]M1b - Model inputs'!O199,\n'[10]SM1 - DECC Scenario 3 equiv'!O199,\n'[10]SM2 - DECC Scenario 1 equiv'!O199,\n'[10]SM3 - DECC Scenario 2 equiv'!O199,\n'[10]SM4 - DNO Scenario 4 equiv'!O199)","v":0},{"$f":"CHOOSE(view,\n'[9]M1a - Model inputs'!P199,\n'[9]M1b - Model inputs'!P199,\n'[9]SM1 - DECC Scenario 3 equiv'!P199,\n'[9]SM2 - DECC Scenario 1 equiv'!P199,\n'[9]SM3 - DECC Scenario 2 equiv'!P199,\n'[9]SM4 - DNO Scenario 4 equiv'!P199,\n'[10]M1a - Model inputs'!P199,\n'[10]M1b - Model inputs'!P199,\n'[10]SM1 - DECC Scenario 3 equiv'!P199,\n'[10]SM2 - DECC Scenario 1 equiv'!P199,\n'[10]SM3 - DECC Scenario 2 equiv'!P199,\n'[10]SM4 - DNO Scenario 4 equiv'!P199)","v":0},{"$f":"CHOOSE(view,\n'[9]M1a - Model inputs'!Q199,\n'[9]M1b - Model inputs'!Q199,\n'[9]SM1 - DECC Scenario 3 equiv'!Q199,\n'[9]SM2 - DECC Scenario 1 equiv'!Q199,\n'[9]SM3 - DECC Scenario 2 equiv'!Q199,\n'[9]SM4 - DNO Scenario 4 equiv'!Q199,\n'[10]M1a - Model inputs'!Q199,\n'[10]M1b - Model inputs'!Q199,\n'[10]SM1 - DECC Scenario 3 equiv'!Q199,\n'[10]SM2 - DECC Scenario 1 equiv'!Q199,\n'[10]SM3 - DECC Scenario 2 equiv'!Q199,\n'[10]SM4 - DNO Scenario 4 equiv'!Q199)","v":0},{"$f":"CHOOSE(view,\n'[9]M1a - Model inputs'!R199,\n'[9]M1b - Model inputs'!R199,\n'[9]SM1 - DECC Scenario 3 equiv'!R199,\n'[9]SM2 - DECC Scenario 1 equiv'!R199,\n'[9]SM3 - DECC Scenario 2 equiv'!R199,\n'[9]SM4 - DNO Scenario 4 equiv'!R199,\n'[10]M1a - Model inputs'!R199,\n'[10]M1b - Model inputs'!R199,\n'[10]SM1 - DECC Scenario 3 equiv'!R199,\n'[10]SM2 - DECC Scenario 1 equiv'!R199,\n'[10]SM3 - DECC Scenario 2 equiv'!R199,\n'[10]SM4 - DNO Scenario 4 equiv'!R199)","v":0},{"$f":"CHOOSE(view,\n'[9]M1a - Model inputs'!S199,\n'[9]M1b - Model inputs'!S199,\n'[9]SM1 - DECC Scenario 3 equiv'!S199,\n'[9]SM2 - DECC Scenario 1 equiv'!S199,\n'[9]SM3 - DECC Scenario 2 equiv'!S199,\n'[9]SM4 - DNO Scenario 4 equiv'!S199,\n'[10]M1a - Model inputs'!S199,\n'[10]M1b - Model inputs'!S199,\n'[10]SM1 - DECC Scenario 3 equiv'!S199,\n'[10]SM2 - DECC Scenario 1 equiv'!S199,\n'[10]SM3 - DECC Scenario 2 equiv'!S199,\n'[10]SM4 - DNO Scenario 4 equiv'!S199)","v":0}]
[null,null,null,null,{"$f":"Input!E131","v":"Allocation to controllable opex"},null,"%",null,null,null,null,null,null,null,null,null,null,null,null,null,null,null,null,null,null,null,null,null,null,null,null,null,null,null,null,{"$f":"CHOOSE(view,\n'[9]M1a - Model inputs'!L200,\n'[9]M1b - Model inputs'!L200,\n'[9]SM1 - DECC Scenario 3 equiv'!L200,\n'[9]SM2 - DECC Scenario 1 equiv'!L200,\n'[9]SM3 - DECC Scenario 2 equiv'!L200,\n'[9]SM4 - DNO Scenario 4 equiv'!L200,\n'[10]M1a - Model inputs'!L200,\n'[10]M1b - Model inputs'!L200,\n'[10]SM1 - DECC Scenario 3 equiv'!L200,\n'[10]SM2 - DECC Scenario 1 equiv'!L200,\n'[10]SM3 - DECC Scenario 2 equiv'!L200,\n'[10]SM4 - DNO Scenario 4 equiv'!L200)","v":0},{"$f":"CHOOSE(view,\n'[9]M1a - Model inputs'!M200,\n'[9]M1b - Model inputs'!M200,\n'[9]SM1 - DECC Scenario 3 equiv'!M200,\n'[9]SM2 - DECC Scenario 1 equiv'!M200,\n'[9]SM3 - DECC Scenario 2 equiv'!M200,\n'[9]SM4 - DNO Scenario 4 equiv'!M200,\n'[10]M1a - Model inputs'!M200,\n'[10]M1b - Model inputs'!M200,\n'[10]SM1 - DECC Scenario 3 equiv'!M200,\n'[10]SM2 - DECC Scenario 1 equiv'!M200,\n'[10]SM3 - DECC Scenario 2 equiv'!M200,\n'[10]SM4 - DNO Scenario 4 equiv'!M200)","v":0},{"$f":"CHOOSE(view,\n'[9]M1a - Model inputs'!N200,\n'[9]M1b - Model inputs'!N200,\n'[9]SM1 - DECC Scenario 3 equiv'!N200,\n'[9]SM2 - DECC Scenario 1 equiv'!N200,\n'[9]SM3 - DECC Scenario 2 equiv'!N200,\n'[9]SM4 - DNO Scenario 4 equiv'!N200,\n'[10]M1a - Model inputs'!N200,\n'[10]M1b - Model inputs'!N200,\n'[10]SM1 - DECC Scenario 3 equiv'!N200,\n'[10]SM2 - DECC Scenario 1 equiv'!N200,\n'[10]SM3 - DECC Scenario 2 equiv'!N200,\n'[10]SM4 - DNO Scenario 4 equiv'!N200)","v":0},{"$f":"CHOOSE(view,\n'[9]M1a - Model inputs'!O200,\n'[9]M1b - Model inputs'!O200,\n'[9]SM1 - DECC Scenario 3 equiv'!O200,\n'[9]SM2 - DECC Scenario 1 equiv'!O200,\n'[9]SM3 - DECC Scenario 2 equiv'!O200,\n'[9]SM4 - DNO Scenario 4 equiv'!O200,\n'[10]M1a - Model inputs'!O200,\n'[10]M1b - Model inputs'!O200,\n'[10]SM1 - DECC Scenario 3 equiv'!O200,\n'[10]SM2 - DECC Scenario 1 equiv'!O200,\n'[10]SM3 - DECC Scenario 2 equiv'!O200,\n'[10]SM4 - DNO Scenario 4 equiv'!O200)","v":0},{"$f":"CHOOSE(view,\n'[9]M1a - Model inputs'!P200,\n'[9]M1b - Model inputs'!P200,\n'[9]SM1 - DECC Scenario 3 equiv'!P200,\n'[9]SM2 - DECC Scenario 1 equiv'!P200,\n'[9]SM3 - DECC Scenario 2 equiv'!P200,\n'[9]SM4 - DNO Scenario 4 equiv'!P200,\n'[10]M1a - Model inputs'!P200,\n'[10]M1b - Model inputs'!P200,\n'[10]SM1 - DECC Scenario 3 equiv'!P200,\n'[10]SM2 - DECC Scenario 1 equiv'!P200,\n'[10]SM3 - DECC Scenario 2 equiv'!P200,\n'[10]SM4 - DNO Scenario 4 equiv'!P200)","v":0},{"$f":"CHOOSE(view,\n'[9]M1a - Model inputs'!Q200,\n'[9]M1b - Model inputs'!Q200,\n'[9]SM1 - DECC Scenario 3 equiv'!Q200,\n'[9]SM2 - DECC Scenario 1 equiv'!Q200,\n'[9]SM3 - DECC Scenario 2 equiv'!Q200,\n'[9]SM4 - DNO Scenario 4 equiv'!Q200,\n'[10]M1a - Model inputs'!Q200,\n'[10]M1b - Model inputs'!Q200,\n'[10]SM1 - DECC Scenario 3 equiv'!Q200,\n'[10]SM2 - DECC Scenario 1 equiv'!Q200,\n'[10]SM3 - DECC Scenario 2 equiv'!Q200,\n'[10]SM4 - DNO Scenario 4 equiv'!Q200)","v":0},{"$f":"CHOOSE(view,\n'[9]M1a - Model inputs'!R200,\n'[9]M1b - Model inputs'!R200,\n'[9]SM1 - DECC Scenario 3 equiv'!R200,\n'[9]SM2 - DECC Scenario 1 equiv'!R200,\n'[9]SM3 - DECC Scenario 2 equiv'!R200,\n'[9]SM4 - DNO Scenario 4 equiv'!R200,\n'[10]M1a - Model inputs'!R200,\n'[10]M1b - Model inputs'!R200,\n'[10]SM1 - DECC Scenario 3 equiv'!R200,\n'[10]SM2 - DECC Scenario 1 equiv'!R200,\n'[10]SM3 - DECC Scenario 2 equiv'!R200,\n'[10]SM4 - DNO Scenario 4 equiv'!R200)","v":0},{"$f":"CHOOSE(view,\n'[9]M1a - Model inputs'!S200,\n'[9]M1b - Model inputs'!S200,\n'[9]SM1 - DECC Scenario 3 equiv'!S200,\n'[9]SM2 - DECC Scenario 1 equiv'!S200,\n'[9]SM3 - DECC Scenario 2 equiv'!S200,\n'[9]SM4 - DNO Scenario 4 equiv'!S200,\n'[10]M1a - Model inputs'!S200,\n'[10]M1b - Model inputs'!S200,\n'[10]SM1 - DECC Scenario 3 equiv'!S200,\n'[10]SM2 - DECC Scenario 1 equiv'!S200,\n'[10]SM3 - DECC Scenario 2 equiv'!S200,\n'[10]SM4 - DNO Scenario 4 equiv'!S200)","v":0}]
[]
[null,null,null,null,{"$f":"Input!E133","v":"Allowed uncertain costs (Smart metering roll out costs)"},null,"£m 12/13 prices",null,null,null,null,null,null,null,null,null,null,null,null,null,null,null,null,null,null,null,null,null,null,null,null,null,null,null,null,{"$f":"AJ22","v":6.3590832902609765E-2},7.2802172911725915E-2,8.0313342951709887E-2,8.3220841308843552E-2,8.0679688326649041E-2,6.9872890774575203E-2,0,0]
[null,null,null,null,{"$f":"Input!E134","v":"Allocation to load related capex"},null,"%",null,null,null,null,null,null,null,null,null,null,null,null,null,null,null,null,null,null,null,null,null,null,null,null,null,null,null,null,{"$f":"CHOOSE(view,\n'[9]M1a - Model inputs'!L203,\n'[9]M1b - Model inputs'!L203,\n'[9]SM1 - DECC Scenario 3 equiv'!L203,\n'[9]SM2 - DECC Scenario 1 equiv'!L203,\n'[9]SM3 - DECC Scenario 2 equiv'!L203,\n'[9]SM4 - DNO Scenario 4 equiv'!L203,\n'[10]M1a - Model inputs'!L203,\n'[10]M1b - Model inputs'!L203,\n'[10]SM1 - DECC Scenario 3 equiv'!L203,\n'[10]SM2 - DECC Scenario 1 equiv'!L203,\n'[10]SM3 - DECC Scenario 2 equiv'!L203,\n'[10]SM4 - DNO Scenario 4 equiv'!L203)","v":0},{"$f":"CHOOSE(view,\n'[9]M1a - Model inputs'!M203,\n'[9]M1b - Model inputs'!M203,\n'[9]SM1 - DECC Scenario 3 equiv'!M203,\n'[9]SM2 - DECC Scenario 1 equiv'!M203,\n'[9]SM3 - DECC Scenario 2 equiv'!M203,\n'[9]SM4 - DNO Scenario 4 equiv'!M203,\n'[10]M1a - Model inputs'!M203,\n'[10]M1b - Model inputs'!M203,\n'[10]SM1 - DECC Scenario 3 equiv'!M203,\n'[10]SM2 - DECC Scenario 1 equiv'!M203,\n'[10]SM3 - DECC Scenario 2 equiv'!M203,\n'[10]SM4 - DNO Scenario 4 equiv'!M203)","v":0},{"$f":"CHOOSE(view,\n'[9]M1a - Model inputs'!N203,\n'[9]M1b - Model inputs'!N203,\n'[9]SM1 - DECC Scenario 3 equiv'!N203,\n'[9]SM2 - DECC Scenario 1 equiv'!N203,\n'[9]SM3 - DECC Scenario 2 equiv'!N203,\n'[9]SM4 - DNO Scenario 4 equiv'!N203,\n'[10]M1a - Model inputs'!N203,\n'[10]M1b - Model inputs'!N203,\n'[10]SM1 - DECC Scenario 3 equiv'!N203,\n'[10]SM2 - DECC Scenario 1 equiv'!N203,\n'[10]SM3 - DECC Scenario 2 equiv'!N203,\n'[10]SM4 - DNO Scenario 4 equiv'!N203)","v":0},{"$f":"CHOOSE(view,\n'[9]M1a - Model inputs'!O203,\n'[9]M1b - Model inputs'!O203,\n'[9]SM1 - DECC Scenario 3 equiv'!O203,\n'[9]SM2 - DECC Scenario 1 equiv'!O203,\n'[9]SM3 - DECC Scenario 2 equiv'!O203,\n'[9]SM4 - DNO Scenario 4 equiv'!O203,\n'[10]M1a - Model inputs'!O203,\n'[10]M1b - Model inputs'!O203,\n'[10]SM1 - DECC Scenario 3 equiv'!O203,\n'[10]SM2 - DECC Scenario 1 equiv'!O203,\n'[10]SM3 - DECC Scenario 2 equiv'!O203,\n'[10]SM4 - DNO Scenario 4 equiv'!O203)","v":0},{"$f":"CHOOSE(view,\n'[9]M1a - Model inputs'!P203,\n'[9]M1b - Model inputs'!P203,\n'[9]SM1 - DECC Scenario 3 equiv'!P203,\n'[9]SM2 - DECC Scenario 1 equiv'!P203,\n'[9]SM3 - DECC Scenario 2 equiv'!P203,\n'[9]SM4 - DNO Scenario 4 equiv'!P203,\n'[10]M1a - Model inputs'!P203,\n'[10]M1b - Model inputs'!P203,\n'[10]SM1 - DECC Scenario 3 equiv'!P203,\n'[10]SM2 - DECC Scenario 1 equiv'!P203,\n'[10]SM3 - DECC Scenario 2 equiv'!P203,\n'[10]SM4 - DNO Scenario 4 equiv'!P203)","v":0},{"$f":"CHOOSE(view,\n'[9]M1a - Model inputs'!Q203,\n'[9]M1b - Model inputs'!Q203,\n'[9]SM1 - DECC Scenario 3 equiv'!Q203,\n'[9]SM2 - DECC Scenario 1 equiv'!Q203,\n'[9]SM3 - DECC Scenario 2 equiv'!Q203,\n'[9]SM4 - DNO Scenario 4 equiv'!Q203,\n'[10]M1a - Model inputs'!Q203,\n'[10]M1b - Model inputs'!Q203,\n'[10]SM1 - DECC Scenario 3 equiv'!Q203,\n'[10]SM2 - DECC Scenario 1 equiv'!Q203,\n'[10]SM3 - DECC Scenario 2 equiv'!Q203,\n'[10]SM4 - DNO Scenario 4 equiv'!Q203)","v":0},{"$f":"CHOOSE(view,\n'[9]M1a - Model inputs'!R203,\n'[9]M1b - Model inputs'!R203,\n'[9]SM1 - DECC Scenario 3 equiv'!R203,\n'[9]SM2 - DECC Scenario 1 equiv'!R203,\n'[9]SM3 - DECC Scenario 2 equiv'!R203,\n'[9]SM4 - DNO Scenario 4 equiv'!R203,\n'[10]M1a - Model inputs'!R203,\n'[10]M1b - Model inputs'!R203,\n'[10]SM1 - DECC Scenario 3 equiv'!R203,\n'[10]SM2 - DECC Scenario 1 equiv'!R203,\n'[10]SM3 - DECC Scenario 2 equiv'!R203,\n'[10]SM4 - DNO Scenario 4 equiv'!R203)","v":0},{"$f":"CHOOSE(view,\n'[9]M1a - Model inputs'!S203,\n'[9]M1b - Model inputs'!S203,\n'[9]SM1 - DECC Scenario 3 equiv'!S203,\n'[9]SM2 - DECC Scenario 1 equiv'!S203,\n'[9]SM3 - DECC Scenario 2 equiv'!S203,\n'[9]SM4 - DNO Scenario 4 equiv'!S203,\n'[10]M1a - Model inputs'!S203,\n'[10]M1b - Model inputs'!S203,\n'[10]SM1 - DECC Scenario 3 equiv'!S203,\n'[10]SM2 - DECC Scenario 1 equiv'!S203,\n'[10]SM3 - DECC Scenario 2 equiv'!S203,\n'[10]SM4 - DNO Scenario 4 equiv'!S203)","v":0}]
[null,null,null,null,{"$f":"Input!E135","v":"Allocation to non-load related capex - asset replacement"},null,"%",null,null,null,null,null,null,null,null,null,null,null,null,null,null,null,null,null,null,null,null,null,null,null,null,null,null,null,null,{"$f":"CHOOSE(view,\n'[9]M1a - Model inputs'!L204,\n'[9]M1b - Model inputs'!L204,\n'[9]SM1 - DECC Scenario 3 equiv'!L204,\n'[9]SM2 - DECC Scenario 1 equiv'!L204,\n'[9]SM3 - DECC Scenario 2 equiv'!L204,\n'[9]SM4 - DNO Scenario 4 equiv'!L204,\n'[10]M1a - Model inputs'!L204,\n'[10]M1b - Model inputs'!L204,\n'[10]SM1 - DECC Scenario 3 equiv'!L204,\n'[10]SM2 - DECC Scenario 1 equiv'!L204,\n'[10]SM3 - DECC Scenario 2 equiv'!L204,\n'[10]SM4 - DNO Scenario 4 equiv'!L204)","v":0},{"$f":"CHOOSE(view,\n'[9]M1a - Model inputs'!M204,\n'[9]M1b - Model inputs'!M204,\n'[9]SM1 - DECC Scenario 3 equiv'!M204,\n'[9]SM2 - DECC Scenario 1 equiv'!M204,\n'[9]SM3 - DECC Scenario 2 equiv'!M204,\n'[9]SM4 - DNO Scenario 4 equiv'!M204,\n'[10]M1a - Model inputs'!M204,\n'[10]M1b - Model inputs'!M204,\n'[10]SM1 - DECC Scenario 3 equiv'!M204,\n'[10]SM2 - DECC Scenario 1 equiv'!M204,\n'[10]SM3 - DECC Scenario 2 equiv'!M204,\n'[10]SM4 - DNO Scenario 4 equiv'!M204)","v":0},{"$f":"CHOOSE(view,\n'[9]M1a - Model inputs'!N204,\n'[9]M1b - Model inputs'!N204,\n'[9]SM1 - DECC Scenario 3 equiv'!N204,\n'[9]SM2 - DECC Scenario 1 equiv'!N204,\n'[9]SM3 - DECC Scenario 2 equiv'!N204,\n'[9]SM4 - DNO Scenario 4 equiv'!N204,\n'[10]M1a - Model inputs'!N204,\n'[10]M1b - Model inputs'!N204,\n'[10]SM1 - DECC Scenario 3 equiv'!N204,\n'[10]SM2 - DECC Scenario 1 equiv'!N204,\n'[10]SM3 - DECC Scenario 2 equiv'!N204,\n'[10]SM4 - DNO Scenario 4 equiv'!N204)","v":0},{"$f":"CHOOSE(view,\n'[9]M1a - Model inputs'!O204,\n'[9]M1b - Model inputs'!O204,\n'[9]SM1 - DECC Scenario 3 equiv'!O204,\n'[9]SM2 - DECC Scenario 1 equiv'!O204,\n'[9]SM3 - DECC Scenario 2 equiv'!O204,\n'[9]SM4 - DNO Scenario 4 equiv'!O204,\n'[10]M1a - Model inputs'!O204,\n'[10]M1b - Model inputs'!O204,\n'[10]SM1 - DECC Scenario 3 equiv'!O204,\n'[10]SM2 - DECC Scenario 1 equiv'!O204,\n'[10]SM3 - DECC Scenario 2 equiv'!O204,\n'[10]SM4 - DNO Scenario 4 equiv'!O204)","v":0},{"$f":"CHOOSE(view,\n'[9]M1a - Model inputs'!P204,\n'[9]M1b - Model inputs'!P204,\n'[9]SM1 - DECC Scenario 3 equiv'!P204,\n'[9]SM2 - DECC Scenario 1 equiv'!P204,\n'[9]SM3 - DECC Scenario 2 equiv'!P204,\n'[9]SM4 - DNO Scenario 4 equiv'!P204,\n'[10]M1a - Model inputs'!P204,\n'[10]M1b - Model inputs'!P204,\n'[10]SM1 - DECC Scenario 3 equiv'!P204,\n'[10]SM2 - DECC Scenario 1 equiv'!P204,\n'[10]SM3 - DECC Scenario 2 equiv'!P204,\n'[10]SM4 - DNO Scenario 4 equiv'!P204)","v":0},{"$f":"CHOOSE(view,\n'[9]M1a - Model inputs'!Q204,\n'[9]M1b - Model inputs'!Q204,\n'[9]SM1 - DECC Scenario 3 equiv'!Q204,\n'[9]SM2 - DECC Scenario 1 equiv'!Q204,\n'[9]SM3 - DECC Scenario 2 equiv'!Q204,\n'[9]SM4 - DNO Scenario 4 equiv'!Q204,\n'[10]M1a - Model inputs'!Q204,\n'[10]M1b - Model inputs'!Q204,\n'[10]SM1 - DECC Scenario 3 equiv'!Q204,\n'[10]SM2 - DECC Scenario 1 equiv'!Q204,\n'[10]SM3 - DECC Scenario 2 equiv'!Q204,\n'[10]SM4 - DNO Scenario 4 equiv'!Q204)","v":0},{"$f":"CHOOSE(view,\n'[9]M1a - Model inputs'!R204,\n'[9]M1b - Model inputs'!R204,\n'[9]SM1 - DECC Scenario 3 equiv'!R204,\n'[9]SM2 - DECC Scenario 1 equiv'!R204,\n'[9]SM3 - DECC Scenario 2 equiv'!R204,\n'[9]SM4 - DNO Scenario 4 equiv'!R204,\n'[10]M1a - Model inputs'!R204,\n'[10]M1b - Model inputs'!R204,\n'[10]SM1 - DECC Scenario 3 equiv'!R204,\n'[10]SM2 - DECC Scenario 1 equiv'!R204,\n'[10]SM3 - DECC Scenario 2 equiv'!R204,\n'[10]SM4 - DNO Scenario 4 equiv'!R204)","v":0},{"$f":"CHOOSE(view,\n'[9]M1a - Model inputs'!S204,\n'[9]M1b - Model inputs'!S204,\n'[9]SM1 - DECC Scenario 3 equiv'!S204,\n'[9]SM2 - DECC Scenario 1 equiv'!S204,\n'[9]SM3 - DECC Scenario 2 equiv'!S204,\n'[9]SM4 - DNO Scenario 4 equiv'!S204,\n'[10]M1a - Model inputs'!S204,\n'[10]M1b - Model inputs'!S204,\n'[10]SM1 - DECC Scenario 3 equiv'!S204,\n'[10]SM2 - DECC Scenario 1 equiv'!S204,\n'[10]SM3 - DECC Scenario 2 equiv'!S204,\n'[10]SM4 - DNO Scenario 4 equiv'!S204)","v":0}]
[null,null,null,null,{"$f":"Input!E136","v":"Allocation to non-load related capex - other"},null,"%",null,null,null,null,null,null,null,null,null,null,null,null,null,null,null,null,null,null,null,null,null,null,null,null,null,null,null,null,{"$f":"CHOOSE(view,\n'[9]M1a - Model inputs'!L205,\n'[9]M1b - Model inputs'!L205,\n'[9]SM1 - DECC Scenario 3 equiv'!L205,\n'[9]SM2 - DECC Scenario 1 equiv'!L205,\n'[9]SM3 - DECC Scenario 2 equiv'!L205,\n'[9]SM4 - DNO Scenario 4 equiv'!L205,\n'[10]M1a - Model inputs'!L205,\n'[10]M1b - Model inputs'!L205,\n'[10]SM1 - DECC Scenario 3 equiv'!L205,\n'[10]SM2 - DECC Scenario 1 equiv'!L205,\n'[10]SM3 - DECC Scenario 2 equiv'!L205,\n'[10]SM4 - DNO Scenario 4 equiv'!L205)","v":0},{"$f":"CHOOSE(view,\n'[9]M1a - Model inputs'!M205,\n'[9]M1b - Model inputs'!M205,\n'[9]SM1 - DECC Scenario 3 equiv'!M205,\n'[9]SM2 - DECC Scenario 1 equiv'!M205,\n'[9]SM3 - DECC Scenario 2 equiv'!M205,\n'[9]SM4 - DNO Scenario 4 equiv'!M205,\n'[10]M1a - Model inputs'!M205,\n'[10]M1b - Model inputs'!M205,\n'[10]SM1 - DECC Scenario 3 equiv'!M205,\n'[10]SM2 - DECC Scenario 1 equiv'!M205,\n'[10]SM3 - DECC Scenario 2 equiv'!M205,\n'[10]SM4 - DNO Scenario 4 equiv'!M205)","v":0},{"$f":"CHOOSE(view,\n'[9]M1a - Model inputs'!N205,\n'[9]M1b - Model inputs'!N205,\n'[9]SM1 - DECC Scenario 3 equiv'!N205,\n'[9]SM2 - DECC Scenario 1 equiv'!N205,\n'[9]SM3 - DECC Scenario 2 equiv'!N205,\n'[9]SM4 - DNO Scenario 4 equiv'!N205,\n'[10]M1a - Model inputs'!N205,\n'[10]M1b - Model inputs'!N205,\n'[10]SM1 - DECC Scenario 3 equiv'!N205,\n'[10]SM2 - DECC Scenario 1 equiv'!N205,\n'[10]SM3 - DECC Scenario 2 equiv'!N205,\n'[10]SM4 - DNO Scenario 4 equiv'!N205)","v":0},{"$f":"CHOOSE(view,\n'[9]M1a - Model inputs'!O205,\n'[9]M1b - Model inputs'!O205,\n'[9]SM1 - DECC Scenario 3 equiv'!O205,\n'[9]SM2 - DECC Scenario 1 equiv'!O205,\n'[9]SM3 - DECC Scenario 2 equiv'!O205,\n'[9]SM4 - DNO Scenario 4 equiv'!O205,\n'[10]M1a - Model inputs'!O205,\n'[10]M1b - Model inputs'!O205,\n'[10]SM1 - DECC Scenario 3 equiv'!O205,\n'[10]SM2 - DECC Scenario 1 equiv'!O205,\n'[10]SM3 - DECC Scenario 2 equiv'!O205,\n'[10]SM4 - DNO Scenario 4 equiv'!O205)","v":0},{"$f":"CHOOSE(view,\n'[9]M1a - Model inputs'!P205,\n'[9]M1b - Model inputs'!P205,\n'[9]SM1 - DECC Scenario 3 equiv'!P205,\n'[9]SM2 - DECC Scenario 1 equiv'!P205,\n'[9]SM3 - DECC Scenario 2 equiv'!P205,\n'[9]SM4 - DNO Scenario 4 equiv'!P205,\n'[10]M1a - Model inputs'!P205,\n'[10]M1b - Model inputs'!P205,\n'[10]SM1 - DECC Scenario 3 equiv'!P205,\n'[10]SM2 - DECC Scenario 1 equiv'!P205,\n'[10]SM3 - DECC Scenario 2 equiv'!P205,\n'[10]SM4 - DNO Scenario 4 equiv'!P205)","v":0},{"$f":"CHOOSE(view,\n'[9]M1a - Model inputs'!Q205,\n'[9]M1b - Model inputs'!Q205,\n'[9]SM1 - DECC Scenario 3 equiv'!Q205,\n'[9]SM2 - DECC Scenario 1 equiv'!Q205,\n'[9]SM3 - DECC Scenario 2 equiv'!Q205,\n'[9]SM4 - DNO Scenario 4 equiv'!Q205,\n'[10]M1a - Model inputs'!Q205,\n'[10]M1b - Model inputs'!Q205,\n'[10]SM1 - DECC Scenario 3 equiv'!Q205,\n'[10]SM2 - DECC Scenario 1 equiv'!Q205,\n'[10]SM3 - DECC Scenario 2 equiv'!Q205,\n'[10]SM4 - DNO Scenario 4 equiv'!Q205)","v":0},{"$f":"CHOOSE(view,\n'[9]M1a - Model inputs'!R205,\n'[9]M1b - Model inputs'!R205,\n'[9]SM1 - DECC Scenario 3 equiv'!R205,\n'[9]SM2 - DECC Scenario 1 equiv'!R205,\n'[9]SM3 - DECC Scenario 2 equiv'!R205,\n'[9]SM4 - DNO Scenario 4 equiv'!R205,\n'[10]M1a - Model inputs'!R205,\n'[10]M1b - Model inputs'!R205,\n'[10]SM1 - DECC Scenario 3 equiv'!R205,\n'[10]SM2 - DECC Scenario 1 equiv'!R205,\n'[10]SM3 - DECC Scenario 2 equiv'!R205,\n'[10]SM4 - DNO Scenario 4 equiv'!R205)","v":0},{"$f":"CHOOSE(view,\n'[9]M1a - Model inputs'!S205,\n'[9]M1b - Model inputs'!S205,\n'[9]SM1 - DECC Scenario 3 equiv'!S205,\n'[9]SM2 - DECC Scenario 1 equiv'!S205,\n'[9]SM3 - DECC Scenario 2 equiv'!S205,\n'[9]SM4 - DNO Scenario 4 equiv'!S205,\n'[10]M1a - Model inputs'!S205,\n'[10]M1b - Model inputs'!S205,\n'[10]SM1 - DECC Scenario 3 equiv'!S205,\n'[10]SM2 - DECC Scenario 1 equiv'!S205,\n'[10]SM3 - DECC Scenario 2 equiv'!S205,\n'[10]SM4 - DNO Scenario 4 equiv'!S205)","v":0}]
[null,null,null,null,{"$f":"Input!E137","v":"Allocation to faults"},null,"%",null,null,null,null,null,null,null,null,null,null,null,null,null,null,null,null,null,null,null,null,null,null,null,null,null,null,null,null,{"$f":"CHOOSE(view,\n'[9]M1a - Model inputs'!L206,\n'[9]M1b - Model inputs'!L206,\n'[9]SM1 - DECC Scenario 3 equiv'!L206,\n'[9]SM2 - DECC Scenario 1 equiv'!L206,\n'[9]SM3 - DECC Scenario 2 equiv'!L206,\n'[9]SM4 - DNO Scenario 4 equiv'!L206,\n'[10]M1a - Model inputs'!L206,\n'[10]M1b - Model inputs'!L206,\n'[10]SM1 - DECC Scenario 3 equiv'!L206,\n'[10]SM2 - DECC Scenario 1 equiv'!L206,\n'[10]SM3 - DECC Scenario 2 equiv'!L206,\n'[10]SM4 - DNO Scenario 4 equiv'!L206)","v":0},{"$f":"CHOOSE(view,\n'[9]M1a - Model inputs'!M206,\n'[9]M1b - Model inputs'!M206,\n'[9]SM1 - DECC Scenario 3 equiv'!M206,\n'[9]SM2 - DECC Scenario 1 equiv'!M206,\n'[9]SM3 - DECC Scenario 2 equiv'!M206,\n'[9]SM4 - DNO Scenario 4 equiv'!M206,\n'[10]M1a - Model inputs'!M206,\n'[10]M1b - Model inputs'!M206,\n'[10]SM1 - DECC Scenario 3 equiv'!M206,\n'[10]SM2 - DECC Scenario 1 equiv'!M206,\n'[10]SM3 - DECC Scenario 2 equiv'!M206,\n'[10]SM4 - DNO Scenario 4 equiv'!M206)","v":0},{"$f":"CHOOSE(view,\n'[9]M1a - Model inputs'!N206,\n'[9]M1b - Model inputs'!N206,\n'[9]SM1 - DECC Scenario 3 equiv'!N206,\n'[9]SM2 - DECC Scenario 1 equiv'!N206,\n'[9]SM3 - DECC Scenario 2 equiv'!N206,\n'[9]SM4 - DNO Scenario 4 equiv'!N206,\n'[10]M1a - Model inputs'!N206,\n'[10]M1b - Model inputs'!N206,\n'[10]SM1 - DECC Scenario 3 equiv'!N206,\n'[10]SM2 - DECC Scenario 1 equiv'!N206,\n'[10]SM3 - DECC Scenario 2 equiv'!N206,\n'[10]SM4 - DNO Scenario 4 equiv'!N206)","v":0},{"$f":"CHOOSE(view,\n'[9]M1a - Model inputs'!O206,\n'[9]M1b - Model inputs'!O206,\n'[9]SM1 - DECC Scenario 3 equiv'!O206,\n'[9]SM2 - DECC Scenario 1 equiv'!O206,\n'[9]SM3 - DECC Scenario 2 equiv'!O206,\n'[9]SM4 - DNO Scenario 4 equiv'!O206,\n'[10]M1a - Model inputs'!O206,\n'[10]M1b - Model inputs'!O206,\n'[10]SM1 - DECC Scenario 3 equiv'!O206,\n'[10]SM2 - DECC Scenario 1 equiv'!O206,\n'[10]SM3 - DECC Scenario 2 equiv'!O206,\n'[10]SM4 - DNO Scenario 4 equiv'!O206)","v":0},{"$f":"CHOOSE(view,\n'[9]M1a - Model inputs'!P206,\n'[9]M1b - Model inputs'!P206,\n'[9]SM1 - DECC Scenario 3 equiv'!P206,\n'[9]SM2 - DECC Scenario 1 equiv'!P206,\n'[9]SM3 - DECC Scenario 2 equiv'!P206,\n'[9]SM4 - DNO Scenario 4 equiv'!P206,\n'[10]M1a - Model inputs'!P206,\n'[10]M1b - Model inputs'!P206,\n'[10]SM1 - DECC Scenario 3 equiv'!P206,\n'[10]SM2 - DECC Scenario 1 equiv'!P206,\n'[10]SM3 - DECC Scenario 2 equiv'!P206,\n'[10]SM4 - DNO Scenario 4 equiv'!P206)","v":0},{"$f":"CHOOSE(view,\n'[9]M1a - Model inputs'!Q206,\n'[9]M1b - Model inputs'!Q206,\n'[9]SM1 - DECC Scenario 3 equiv'!Q206,\n'[9]SM2 - DECC Scenario 1 equiv'!Q206,\n'[9]SM3 - DECC Scenario 2 equiv'!Q206,\n'[9]SM4 - DNO Scenario 4 equiv'!Q206,\n'[10]M1a - Model inputs'!Q206,\n'[10]M1b - Model inputs'!Q206,\n'[10]SM1 - DECC Scenario 3 equiv'!Q206,\n'[10]SM2 - DECC Scenario 1 equiv'!Q206,\n'[10]SM3 - DECC Scenario 2 equiv'!Q206,\n'[10]SM4 - DNO Scenario 4 equiv'!Q206)","v":0},{"$f":"CHOOSE(view,\n'[9]M1a - Model inputs'!R206,\n'[9]M1b - Model inputs'!R206,\n'[9]SM1 - DECC Scenario 3 equiv'!R206,\n'[9]SM2 - DECC Scenario 1 equiv'!R206,\n'[9]SM3 - DECC Scenario 2 equiv'!R206,\n'[9]SM4 - DNO Scenario 4 equiv'!R206,\n'[10]M1a - Model inputs'!R206,\n'[10]M1b - Model inputs'!R206,\n'[10]SM1 - DECC Scenario 3 equiv'!R206,\n'[10]SM2 - DECC Scenario 1 equiv'!R206,\n'[10]SM3 - DECC Scenario 2 equiv'!R206,\n'[10]SM4 - DNO Scenario 4 equiv'!R206)","v":0},{"$f":"CHOOSE(view,\n'[9]M1a - Model inputs'!S206,\n'[9]M1b - Model inputs'!S206,\n'[9]SM1 - DECC Scenario 3 equiv'!S206,\n'[9]SM2 - DECC Scenario 1 equiv'!S206,\n'[9]SM3 - DECC Scenario 2 equiv'!S206,\n'[9]SM4 - DNO Scenario 4 equiv'!S206,\n'[10]M1a - Model inputs'!S206,\n'[10]M1b - Model inputs'!S206,\n'[10]SM1 - DECC Scenario 3 equiv'!S206,\n'[10]SM2 - DECC Scenario 1 equiv'!S206,\n'[10]SM3 - DECC Scenario 2 equiv'!S206,\n'[10]SM4 - DNO Scenario 4 equiv'!S206)","v":0}]
[null,null,null,null,{"$f":"Input!E138","v":"Allocation to tree cutting"},null,"%",null,null,null,null,null,null,null,null,null,null,null,null,null,null,null,null,null,null,null,null,null,null,null,null,null,null,null,null,{"$f":"CHOOSE(view,\n'[9]M1a - Model inputs'!L207,\n'[9]M1b - Model inputs'!L207,\n'[9]SM1 - DECC Scenario 3 equiv'!L207,\n'[9]SM2 - DECC Scenario 1 equiv'!L207,\n'[9]SM3 - DECC Scenario 2 equiv'!L207,\n'[9]SM4 - DNO Scenario 4 equiv'!L207,\n'[10]M1a - Model inputs'!L207,\n'[10]M1b - Model inputs'!L207,\n'[10]SM1 - DECC Scenario 3 equiv'!L207,\n'[10]SM2 - DECC Scenario 1 equiv'!L207,\n'[10]SM3 - DECC Scenario 2 equiv'!L207,\n'[10]SM4 - DNO Scenario 4 equiv'!L207)","v":0},{"$f":"CHOOSE(view,\n'[9]M1a - Model inputs'!M207,\n'[9]M1b - Model inputs'!M207,\n'[9]SM1 - DECC Scenario 3 equiv'!M207,\n'[9]SM2 - DECC Scenario 1 equiv'!M207,\n'[9]SM3 - DECC Scenario 2 equiv'!M207,\n'[9]SM4 - DNO Scenario 4 equiv'!M207,\n'[10]M1a - Model inputs'!M207,\n'[10]M1b - Model inputs'!M207,\n'[10]SM1 - DECC Scenario 3 equiv'!M207,\n'[10]SM2 - DECC Scenario 1 equiv'!M207,\n'[10]SM3 - DECC Scenario 2 equiv'!M207,\n'[10]SM4 - DNO Scenario 4 equiv'!M207)","v":0},{"$f":"CHOOSE(view,\n'[9]M1a - Model inputs'!N207,\n'[9]M1b - Model inputs'!N207,\n'[9]SM1 - DECC Scenario 3 equiv'!N207,\n'[9]SM2 - DECC Scenario 1 equiv'!N207,\n'[9]SM3 - DECC Scenario 2 equiv'!N207,\n'[9]SM4 - DNO Scenario 4 equiv'!N207,\n'[10]M1a - Model inputs'!N207,\n'[10]M1b - Model inputs'!N207,\n'[10]SM1 - DECC Scenario 3 equiv'!N207,\n'[10]SM2 - DECC Scenario 1 equiv'!N207,\n'[10]SM3 - DECC Scenario 2 equiv'!N207,\n'[10]SM4 - DNO Scenario 4 equiv'!N207)","v":0},{"$f":"CHOOSE(view,\n'[9]M1a - Model inputs'!O207,\n'[9]M1b - Model inputs'!O207,\n'[9]SM1 - DECC Scenario 3 equiv'!O207,\n'[9]SM2 - DECC Scenario 1 equiv'!O207,\n'[9]SM3 - DECC Scenario 2 equiv'!O207,\n'[9]SM4 - DNO Scenario 4 equiv'!O207,\n'[10]M1a - Model inputs'!O207,\n'[10]M1b - Model inputs'!O207,\n'[10]SM1 - DECC Scenario 3 equiv'!O207,\n'[10]SM2 - DECC Scenario 1 equiv'!O207,\n'[10]SM3 - DECC Scenario 2 equiv'!O207,\n'[10]SM4 - DNO Scenario 4 equiv'!O207)","v":0},{"$f":"CHOOSE(view,\n'[9]M1a - Model inputs'!P207,\n'[9]M1b - Model inputs'!P207,\n'[9]SM1 - DECC Scenario 3 equiv'!P207,\n'[9]SM2 - DECC Scenario 1 equiv'!P207,\n'[9]SM3 - DECC Scenario 2 equiv'!P207,\n'[9]SM4 - DNO Scenario 4 equiv'!P207,\n'[10]M1a - Model inputs'!P207,\n'[10]M1b - Model inputs'!P207,\n'[10]SM1 - DECC Scenario 3 equiv'!P207,\n'[10]SM2 - DECC Scenario 1 equiv'!P207,\n'[10]SM3 - DECC Scenario 2 equiv'!P207,\n'[10]SM4 - DNO Scenario 4 equiv'!P207)","v":0},{"$f":"CHOOSE(view,\n'[9]M1a - Model inputs'!Q207,\n'[9]M1b - Model inputs'!Q207,\n'[9]SM1 - DECC Scenario 3 equiv'!Q207,\n'[9]SM2 - DECC Scenario 1 equiv'!Q207,\n'[9]SM3 - DECC Scenario 2 equiv'!Q207,\n'[9]SM4 - DNO Scenario 4 equiv'!Q207,\n'[10]M1a - Model inputs'!Q207,\n'[10]M1b - Model inputs'!Q207,\n'[10]SM1 - DECC Scenario 3 equiv'!Q207,\n'[10]SM2 - DECC Scenario 1 equiv'!Q207,\n'[10]SM3 - DECC Scenario 2 equiv'!Q207,\n'[10]SM4 - DNO Scenario 4 equiv'!Q207)","v":0},{"$f":"CHOOSE(view,\n'[9]M1a - Model inputs'!R207,\n'[9]M1b - Model inputs'!R207,\n'[9]SM1 - DECC Scenario 3 equiv'!R207,\n'[9]SM2 - DECC Scenario 1 equiv'!R207,\n'[9]SM3 - DECC Scenario 2 equiv'!R207,\n'[9]SM4 - DNO Scenario 4 equiv'!R207,\n'[10]M1a - Model inputs'!R207,\n'[10]M1b - Model inputs'!R207,\n'[10]SM1 - DECC Scenario 3 equiv'!R207,\n'[10]SM2 - DECC Scenario 1 equiv'!R207,\n'[10]SM3 - DECC Scenario 2 equiv'!R207,\n'[10]SM4 - DNO Scenario 4 equiv'!R207)","v":0},{"$f":"CHOOSE(view,\n'[9]M1a - Model inputs'!S207,\n'[9]M1b - Model inputs'!S207,\n'[9]SM1 - DECC Scenario 3 equiv'!S207,\n'[9]SM2 - DECC Scenario 1 equiv'!S207,\n'[9]SM3 - DECC Scenario 2 equiv'!S207,\n'[9]SM4 - DNO Scenario 4 equiv'!S207,\n'[10]M1a - Model inputs'!S207,\n'[10]M1b - Model inputs'!S207,\n'[10]SM1 - DECC Scenario 3 equiv'!S207,\n'[10]SM2 - DECC Scenario 1 equiv'!S207,\n'[10]SM3 - DECC Scenario 2 equiv'!S207,\n'[10]SM4 - DNO Scenario 4 equiv'!S207)","v":0}]
[null,null,null,null,{"$f":"Input!E139","v":"Allocation to controllable opex"},null,"%",null,null,null,null,null,null,null,null,null,null,null,null,null,null,null,null,null,null,null,null,null,null,null,null,null,null,null,null,{"$f":"CHOOSE(view,\n'[9]M1a - Model inputs'!L208,\n'[9]M1b - Model inputs'!L208,\n'[9]SM1 - DECC Scenario 3 equiv'!L208,\n'[9]SM2 - DECC Scenario 1 equiv'!L208,\n'[9]SM3 - DECC Scenario 2 equiv'!L208,\n'[9]SM4 - DNO Scenario 4 equiv'!L208,\n'[10]M1a - Model inputs'!L208,\n'[10]M1b - Model inputs'!L208,\n'[10]SM1 - DECC Scenario 3 equiv'!L208,\n'[10]SM2 - DECC Scenario 1 equiv'!L208,\n'[10]SM3 - DECC Scenario 2 equiv'!L208,\n'[10]SM4 - DNO Scenario 4 equiv'!L208)","v":1},{"$f":"CHOOSE(view,\n'[9]M1a - Model inputs'!M208,\n'[9]M1b - Model inputs'!M208,\n'[9]SM1 - DECC Scenario 3 equiv'!M208,\n'[9]SM2 - DECC Scenario 1 equiv'!M208,\n'[9]SM3 - DECC Scenario 2 equiv'!M208,\n'[9]SM4 - DNO Scenario 4 equiv'!M208,\n'[10]M1a - Model inputs'!M208,\n'[10]M1b - Model inputs'!M208,\n'[10]SM1 - DECC Scenario 3 equiv'!M208,\n'[10]SM2 - DECC Scenario 1 equiv'!M208,\n'[10]SM3 - DECC Scenario 2 equiv'!M208,\n'[10]SM4 - DNO Scenario 4 equiv'!M208)","v":1},{"$f":"CHOOSE(view,\n'[9]M1a - Model inputs'!N208,\n'[9]M1b - Model inputs'!N208,\n'[9]SM1 - DECC Scenario 3 equiv'!N208,\n'[9]SM2 - DECC Scenario 1 equiv'!N208,\n'[9]SM3 - DECC Scenario 2 equiv'!N208,\n'[9]SM4 - DNO Scenario 4 equiv'!N208,\n'[10]M1a - Model inputs'!N208,\n'[10]M1b - Model inputs'!N208,\n'[10]SM1 - DECC Scenario 3 equiv'!N208,\n'[10]SM2 - DECC Scenario 1 equiv'!N208,\n'[10]SM3 - DECC Scenario 2 equiv'!N208,\n'[10]SM4 - DNO Scenario 4 equiv'!N208)","v":1},{"$f":"CHOOSE(view,\n'[9]M1a - Model inputs'!O208,\n'[9]M1b - Model inputs'!O208,\n'[9]SM1 - DECC Scenario 3 equiv'!O208,\n'[9]SM2 - DECC Scenario 1 equiv'!O208,\n'[9]SM3 - DECC Scenario 2 equiv'!O208,\n'[9]SM4 - DNO Scenario 4 equiv'!O208,\n'[10]M1a - Model inputs'!O208,\n'[10]M1b - Model inputs'!O208,\n'[10]SM1 - DECC Scenario 3 equiv'!O208,\n'[10]SM2 - DECC Scenario 1 equiv'!O208,\n'[10]SM3 - DECC Scenario 2 equiv'!O208,\n'[10]SM4 - DNO Scenario 4 equiv'!O208)","v":1},{"$f":"CHOOSE(view,\n'[9]M1a - Model inputs'!P208,\n'[9]M1b - Model inputs'!P208,\n'[9]SM1 - DECC Scenario 3 equiv'!P208,\n'[9]SM2 - DECC Scenario 1 equiv'!P208,\n'[9]SM3 - DECC Scenario 2 equiv'!P208,\n'[9]SM4 - DNO Scenario 4 equiv'!P208,\n'[10]M1a - Model inputs'!P208,\n'[10]M1b - Model inputs'!P208,\n'[10]SM1 - DECC Scenario 3 equiv'!P208,\n'[10]SM2 - DECC Scenario 1 equiv'!P208,\n'[10]SM3 - DECC Scenario 2 equiv'!P208,\n'[10]SM4 - DNO Scenario 4 equiv'!P208)","v":1},{"$f":"CHOOSE(view,\n'[9]M1a - Model inputs'!Q208,\n'[9]M1b - Model inputs'!Q208,\n'[9]SM1 - DECC Scenario 3 equiv'!Q208,\n'[9]SM2 - DECC Scenario 1 equiv'!Q208,\n'[9]SM3 - DECC Scenario 2 equiv'!Q208,\n'[9]SM4 - DNO Scenario 4 equiv'!Q208,\n'[10]M1a - Model inputs'!Q208,\n'[10]M1b - Model inputs'!Q208,\n'[10]SM1 - DECC Scenario 3 equiv'!Q208,\n'[10]SM2 - DECC Scenario 1 equiv'!Q208,\n'[10]SM3 - DECC Scenario 2 equiv'!Q208,\n'[10]SM4 - DNO Scenario 4 equiv'!Q208)","v":1},{"$f":"CHOOSE(view,\n'[9]M1a - Model inputs'!R208,\n'[9]M1b - Model inputs'!R208,\n'[9]SM1 - DECC Scenario 3 equiv'!R208,\n'[9]SM2 - DECC Scenario 1 equiv'!R208,\n'[9]SM3 - DECC Scenario 2 equiv'!R208,\n'[9]SM4 - DNO Scenario 4 equiv'!R208,\n'[10]M1a - Model inputs'!R208,\n'[10]M1b - Model inputs'!R208,\n'[10]SM1 - DECC Scenario 3 equiv'!R208,\n'[10]SM2 - DECC Scenario 1 equiv'!R208,\n'[10]SM3 - DECC Scenario 2 equiv'!R208,\n'[10]SM4 - DNO Scenario 4 equiv'!R208)","v":1},{"$f":"CHOOSE(view,\n'[9]M1a - Model inputs'!S208,\n'[9]M1b - Model inputs'!S208,\n'[9]SM1 - DECC Scenario 3 equiv'!S208,\n'[9]SM2 - DECC Scenario 1 equiv'!S208,\n'[9]SM3 - DECC Scenario 2 equiv'!S208,\n'[9]SM4 - DNO Scenario 4 equiv'!S208,\n'[10]M1a - Model inputs'!S208,\n'[10]M1b - Model inputs'!S208,\n'[10]SM1 - DECC Scenario 3 equiv'!S208,\n'[10]SM2 - DECC Scenario 1 equiv'!S208,\n'[10]SM3 - DECC Scenario 2 equiv'!S208,\n'[10]SM4 - DNO Scenario 4 equiv'!S208)","v":1}]
[]
[null,null,null,null,{"$f":"Input!E141","v":"Allowed uncertain costs (Specified street work costs)"},null,"£m 12/13 prices",null,null,null,null,null,null,null,null,null,null,null,null,null,null,null,null,null,null,null,null,null,null,null,null,null,null,null,null,{"$f":"AJ23","v":0},0,3.5151228571115203E-2,0.10381189320262765,0.10515128901872142,0.10657107854476154,0.10799858473570768,0]
[null,null,null,null,{"$f":"Input!E142","v":"Allocation to load related capex"},null,"%",null,null,null,null,null,null,null,null,null,null,null,null,null,null,null,null,null,null,null,null,null,null,null,null,null,null,null,null,{"$f":"CHOOSE(view,\n'[9]M1a - Model inputs'!L211,\n'[9]M1b - Model inputs'!L211,\n'[9]SM1 - DECC Scenario 3 equiv'!L211,\n'[9]SM2 - DECC Scenario 1 equiv'!L211,\n'[9]SM3 - DECC Scenario 2 equiv'!L211,\n'[9]SM4 - DNO Scenario 4 equiv'!L211,\n'[10]M1a - Model inputs'!L211,\n'[10]M1b - Model inputs'!L211,\n'[10]SM1 - DECC Scenario 3 equiv'!L211,\n'[10]SM2 - DECC Scenario 1 equiv'!L211,\n'[10]SM3 - DECC Scenario 2 equiv'!L211,\n'[10]SM4 - DNO Scenario 4 equiv'!L211)","v":0},{"$f":"CHOOSE(view,\n'[9]M1a - Model inputs'!M211,\n'[9]M1b - Model inputs'!M211,\n'[9]SM1 - DECC Scenario 3 equiv'!M211,\n'[9]SM2 - DECC Scenario 1 equiv'!M211,\n'[9]SM3 - DECC Scenario 2 equiv'!M211,\n'[9]SM4 - DNO Scenario 4 equiv'!M211,\n'[10]M1a - Model inputs'!M211,\n'[10]M1b - Model inputs'!M211,\n'[10]SM1 - DECC Scenario 3 equiv'!M211,\n'[10]SM2 - DECC Scenario 1 equiv'!M211,\n'[10]SM3 - DECC Scenario 2 equiv'!M211,\n'[10]SM4 - DNO Scenario 4 equiv'!M211)","v":0},{"$f":"CHOOSE(view,\n'[9]M1a - Model inputs'!N211,\n'[9]M1b - Model inputs'!N211,\n'[9]SM1 - DECC Scenario 3 equiv'!N211,\n'[9]SM2 - DECC Scenario 1 equiv'!N211,\n'[9]SM3 - DECC Scenario 2 equiv'!N211,\n'[9]SM4 - DNO Scenario 4 equiv'!N211,\n'[10]M1a - Model inputs'!N211,\n'[10]M1b - Model inputs'!N211,\n'[10]SM1 - DECC Scenario 3 equiv'!N211,\n'[10]SM2 - DECC Scenario 1 equiv'!N211,\n'[10]SM3 - DECC Scenario 2 equiv'!N211,\n'[10]SM4 - DNO Scenario 4 equiv'!N211)","v":0},{"$f":"CHOOSE(view,\n'[9]M1a - Model inputs'!O211,\n'[9]M1b - Model inputs'!O211,\n'[9]SM1 - DECC Scenario 3 equiv'!O211,\n'[9]SM2 - DECC Scenario 1 equiv'!O211,\n'[9]SM3 - DECC Scenario 2 equiv'!O211,\n'[9]SM4 - DNO Scenario 4 equiv'!O211,\n'[10]M1a - Model inputs'!O211,\n'[10]M1b - Model inputs'!O211,\n'[10]SM1 - DECC Scenario 3 equiv'!O211,\n'[10]SM2 - DECC Scenario 1 equiv'!O211,\n'[10]SM3 - DECC Scenario 2 equiv'!O211,\n'[10]SM4 - DNO Scenario 4 equiv'!O211)","v":0},{"$f":"CHOOSE(view,\n'[9]M1a - Model inputs'!P211,\n'[9]M1b - Model inputs'!P211,\n'[9]SM1 - DECC Scenario 3 equiv'!P211,\n'[9]SM2 - DECC Scenario 1 equiv'!P211,\n'[9]SM3 - DECC Scenario 2 equiv'!P211,\n'[9]SM4 - DNO Scenario 4 equiv'!P211,\n'[10]M1a - Model inputs'!P211,\n'[10]M1b - Model inputs'!P211,\n'[10]SM1 - DECC Scenario 3 equiv'!P211,\n'[10]SM2 - DECC Scenario 1 equiv'!P211,\n'[10]SM3 - DECC Scenario 2 equiv'!P211,\n'[10]SM4 - DNO Scenario 4 equiv'!P211)","v":0},{"$f":"CHOOSE(view,\n'[9]M1a - Model inputs'!Q211,\n'[9]M1b - Model inputs'!Q211,\n'[9]SM1 - DECC Scenario 3 equiv'!Q211,\n'[9]SM2 - DECC Scenario 1 equiv'!Q211,\n'[9]SM3 - DECC Scenario 2 equiv'!Q211,\n'[9]SM4 - DNO Scenario 4 equiv'!Q211,\n'[10]M1a - Model inputs'!Q211,\n'[10]M1b - Model inputs'!Q211,\n'[10]SM1 - DECC Scenario 3 equiv'!Q211,\n'[10]SM2 - DECC Scenario 1 equiv'!Q211,\n'[10]SM3 - DECC Scenario 2 equiv'!Q211,\n'[10]SM4 - DNO Scenario 4 equiv'!Q211)","v":0},{"$f":"CHOOSE(view,\n'[9]M1a - Model inputs'!R211,\n'[9]M1b - Model inputs'!R211,\n'[9]SM1 - DECC Scenario 3 equiv'!R211,\n'[9]SM2 - DECC Scenario 1 equiv'!R211,\n'[9]SM3 - DECC Scenario 2 equiv'!R211,\n'[9]SM4 - DNO Scenario 4 equiv'!R211,\n'[10]M1a - Model inputs'!R211,\n'[10]M1b - Model inputs'!R211,\n'[10]SM1 - DECC Scenario 3 equiv'!R211,\n'[10]SM2 - DECC Scenario 1 equiv'!R211,\n'[10]SM3 - DECC Scenario 2 equiv'!R211,\n'[10]SM4 - DNO Scenario 4 equiv'!R211)","v":0},{"$f":"CHOOSE(view,\n'[9]M1a - Model inputs'!S211,\n'[9]M1b - Model inputs'!S211,\n'[9]SM1 - DECC Scenario 3 equiv'!S211,\n'[9]SM2 - DECC Scenario 1 equiv'!S211,\n'[9]SM3 - DECC Scenario 2 equiv'!S211,\n'[9]SM4 - DNO Scenario 4 equiv'!S211,\n'[10]M1a - Model inputs'!S211,\n'[10]M1b - Model inputs'!S211,\n'[10]SM1 - DECC Scenario 3 equiv'!S211,\n'[10]SM2 - DECC Scenario 1 equiv'!S211,\n'[10]SM3 - DECC Scenario 2 equiv'!S211,\n'[10]SM4 - DNO Scenario 4 equiv'!S211)","v":0}]
[null,null,null,null,{"$f":"Input!E143","v":"Allocation to non-load related capex - asset replacement"},null,"%",null,null,null,null,null,null,null,null,null,null,null,null,null,null,null,null,null,null,null,null,null,null,null,null,null,null,null,null,{"$f":"CHOOSE(view,\n'[9]M1a - Model inputs'!L212,\n'[9]M1b - Model inputs'!L212,\n'[9]SM1 - DECC Scenario 3 equiv'!L212,\n'[9]SM2 - DECC Scenario 1 equiv'!L212,\n'[9]SM3 - DECC Scenario 2 equiv'!L212,\n'[9]SM4 - DNO Scenario 4 equiv'!L212,\n'[10]M1a - Model inputs'!L212,\n'[10]M1b - Model inputs'!L212,\n'[10]SM1 - DECC Scenario 3 equiv'!L212,\n'[10]SM2 - DECC Scenario 1 equiv'!L212,\n'[10]SM3 - DECC Scenario 2 equiv'!L212,\n'[10]SM4 - DNO Scenario 4 equiv'!L212)","v":0},{"$f":"CHOOSE(view,\n'[9]M1a - Model inputs'!M212,\n'[9]M1b - Model inputs'!M212,\n'[9]SM1 - DECC Scenario 3 equiv'!M212,\n'[9]SM2 - DECC Scenario 1 equiv'!M212,\n'[9]SM3 - DECC Scenario 2 equiv'!M212,\n'[9]SM4 - DNO Scenario 4 equiv'!M212,\n'[10]M1a - Model inputs'!M212,\n'[10]M1b - Model inputs'!M212,\n'[10]SM1 - DECC Scenario 3 equiv'!M212,\n'[10]SM2 - DECC Scenario 1 equiv'!M212,\n'[10]SM3 - DECC Scenario 2 equiv'!M212,\n'[10]SM4 - DNO Scenario 4 equiv'!M212)","v":0},{"$f":"CHOOSE(view,\n'[9]M1a - Model inputs'!N212,\n'[9]M1b - Model inputs'!N212,\n'[9]SM1 - DECC Scenario 3 equiv'!N212,\n'[9]SM2 - DECC Scenario 1 equiv'!N212,\n'[9]SM3 - DECC Scenario 2 equiv'!N212,\n'[9]SM4 - DNO Scenario 4 equiv'!N212,\n'[10]M1a - Model inputs'!N212,\n'[10]M1b - Model inputs'!N212,\n'[10]SM1 - DECC Scenario 3 equiv'!N212,\n'[10]SM2 - DECC Scenario 1 equiv'!N212,\n'[10]SM3 - DECC Scenario 2 equiv'!N212,\n'[10]SM4 - DNO Scenario 4 equiv'!N212)","v":0.79689811311821979},{"$f":"CHOOSE(view,\n'[9]M1a - Model inputs'!O212,\n'[9]M1b - Model inputs'!O212,\n'[9]SM1 - DECC Scenario 3 equiv'!O212,\n'[9]SM2 - DECC Scenario 1 equiv'!O212,\n'[9]SM3 - DECC Scenario 2 equiv'!O212,\n'[9]SM4 - DNO Scenario 4 equiv'!O212,\n'[10]M1a - Model inputs'!O212,\n'[10]M1b - Model inputs'!O212,\n'[10]SM1 - DECC Scenario 3 equiv'!O212,\n'[10]SM2 - DECC Scenario 1 equiv'!O212,\n'[10]SM3 - DECC Scenario 2 equiv'!O212,\n'[10]SM4 - DNO Scenario 4 equiv'!O212)","v":0.79673776085133241},{"$f":"CHOOSE(view,\n'[9]M1a - Model inputs'!P212,\n'[9]M1b - Model inputs'!P212,\n'[9]SM1 - DECC Scenario 3 equiv'!P212,\n'[9]SM2 - DECC Scenario 1 equiv'!P212,\n'[9]SM3 - DECC Scenario 2 equiv'!P212,\n'[9]SM4 - DNO Scenario 4 equiv'!P212,\n'[10]M1a - Model inputs'!P212,\n'[10]M1b - Model inputs'!P212,\n'[10]SM1 - DECC Scenario 3 equiv'!P212,\n'[10]SM2 - DECC Scenario 1 equiv'!P212,\n'[10]SM3 - DECC Scenario 2 equiv'!P212,\n'[10]SM4 - DNO Scenario 4 equiv'!P212)","v":0.79629927566280811},{"$f":"CHOOSE(view,\n'[9]M1a - Model inputs'!Q212,\n'[9]M1b - Model inputs'!Q212,\n'[9]SM1 - DECC Scenario 3 equiv'!Q212,\n'[9]SM2 - DECC Scenario 1 equiv'!Q212,\n'[9]SM3 - DECC Scenario 2 equiv'!Q212,\n'[9]SM4 - DNO Scenario 4 equiv'!Q212,\n'[10]M1a - Model inputs'!Q212,\n'[10]M1b - Model inputs'!Q212,\n'[10]SM1 - DECC Scenario 3 equiv'!Q212,\n'[10]SM2 - DECC Scenario 1 equiv'!Q212,\n'[10]SM3 - DECC Scenario 2 equiv'!Q212,\n'[10]SM4 - DNO Scenario 4 equiv'!Q212)","v":0.7959528626840533},{"$f":"CHOOSE(view,\n'[9]M1a - Model inputs'!R212,\n'[9]M1b - Model inputs'!R212,\n'[9]SM1 - DECC Scenario 3 equiv'!R212,\n'[9]SM2 - DECC Scenario 1 equiv'!R212,\n'[9]SM3 - DECC Scenario 2 equiv'!R212,\n'[9]SM4 - DNO Scenario 4 equiv'!R212,\n'[10]M1a - Model inputs'!R212,\n'[10]M1b - Model inputs'!R212,\n'[10]SM1 - DECC Scenario 3 equiv'!R212,\n'[10]SM2 - DECC Scenario 1 equiv'!R212,\n'[10]SM3 - DECC Scenario 2 equiv'!R212,\n'[10]SM4 - DNO Scenario 4 equiv'!R212)","v":0.79557692093261834},{"$f":"CHOOSE(view,\n'[9]M1a - Model inputs'!S212,\n'[9]M1b - Model inputs'!S212,\n'[9]SM1 - DECC Scenario 3 equiv'!S212,\n'[9]SM2 - DECC Scenario 1 equiv'!S212,\n'[9]SM3 - DECC Scenario 2 equiv'!S212,\n'[9]SM4 - DNO Scenario 4 equiv'!S212,\n'[10]M1a - Model inputs'!S212,\n'[10]M1b - Model inputs'!S212,\n'[10]SM1 - DECC Scenario 3 equiv'!S212,\n'[10]SM2 - DECC Scenario 1 equiv'!S212,\n'[10]SM3 - DECC Scenario 2 equiv'!S212,\n'[10]SM4 - DNO Scenario 4 equiv'!S212)","v":0}]
[null,null,null,null,{"$f":"Input!E144","v":"Allocation to non-load related capex - other"},null,"%",null,null,null,null,null,null,null,null,null,null,null,null,null,null,null,null,null,null,null,null,null,null,null,null,null,null,null,null,{"$f":"CHOOSE(view,\n'[9]M1a - Model inputs'!L213,\n'[9]M1b - Model inputs'!L213,\n'[9]SM1 - DECC Scenario 3 equiv'!L213,\n'[9]SM2 - DECC Scenario 1 equiv'!L213,\n'[9]SM3 - DECC Scenario 2 equiv'!L213,\n'[9]SM4 - DNO Scenario 4 equiv'!L213,\n'[10]M1a - Model inputs'!L213,\n'[10]M1b - Model inputs'!L213,\n'[10]SM1 - DECC Scenario 3 equiv'!L213,\n'[10]SM2 - DECC Scenario 1 equiv'!L213,\n'[10]SM3 - DECC Scenario 2 equiv'!L213,\n'[10]SM4 - DNO Scenario 4 equiv'!L213)","v":0},{"$f":"CHOOSE(view,\n'[9]M1a - Model inputs'!M213,\n'[9]M1b - Model inputs'!M213,\n'[9]SM1 - DECC Scenario 3 equiv'!M213,\n'[9]SM2 - DECC Scenario 1 equiv'!M213,\n'[9]SM3 - DECC Scenario 2 equiv'!M213,\n'[9]SM4 - DNO Scenario 4 equiv'!M213,\n'[10]M1a - Model inputs'!M213,\n'[10]M1b - Model inputs'!M213,\n'[10]SM1 - DECC Scenario 3 equiv'!M213,\n'[10]SM2 - DECC Scenario 1 equiv'!M213,\n'[10]SM3 - DECC Scenario 2 equiv'!M213,\n'[10]SM4 - DNO Scenario 4 equiv'!M213)","v":0},{"$f":"CHOOSE(view,\n'[9]M1a - Model inputs'!N213,\n'[9]M1b - Model inputs'!N213,\n'[9]SM1 - DECC Scenario 3 equiv'!N213,\n'[9]SM2 - DECC Scenario 1 equiv'!N213,\n'[9]SM3 - DECC Scenario 2 equiv'!N213,\n'[9]SM4 - DNO Scenario 4 equiv'!N213,\n'[10]M1a - Model inputs'!N213,\n'[10]M1b - Model inputs'!N213,\n'[10]SM1 - DECC Scenario 3 equiv'!N213,\n'[10]SM2 - DECC Scenario 1 equiv'!N213,\n'[10]SM3 - DECC Scenario 2 equiv'!N213,\n'[10]SM4 - DNO Scenario 4 equiv'!N213)","v":0},{"$f":"CHOOSE(view,\n'[9]M1a - Model inputs'!O213,\n'[9]M1b - Model inputs'!O213,\n'[9]SM1 - DECC Scenario 3 equiv'!O213,\n'[9]SM2 - DECC Scenario 1 equiv'!O213,\n'[9]SM3 - DECC Scenario 2 equiv'!O213,\n'[9]SM4 - DNO Scenario 4 equiv'!O213,\n'[10]M1a - Model inputs'!O213,\n'[10]M1b - Model inputs'!O213,\n'[10]SM1 - DECC Scenario 3 equiv'!O213,\n'[10]SM2 - DECC Scenario 1 equiv'!O213,\n'[10]SM3 - DECC Scenario 2 equiv'!O213,\n'[10]SM4 - DNO Scenario 4 equiv'!O213)","v":0},{"$f":"CHOOSE(view,\n'[9]M1a - Model inputs'!P213,\n'[9]M1b - Model inputs'!P213,\n'[9]SM1 - DECC Scenario 3 equiv'!P213,\n'[9]SM2 - DECC Scenario 1 equiv'!P213,\n'[9]SM3 - DECC Scenario 2 equiv'!P213,\n'[9]SM4 - DNO Scenario 4 equiv'!P213,\n'[10]M1a - Model inputs'!P213,\n'[10]M1b - Model inputs'!P213,\n'[10]SM1 - DECC Scenario 3 equiv'!P213,\n'[10]SM2 - DECC Scenario 1 equiv'!P213,\n'[10]SM3 - DECC Scenario 2 equiv'!P213,\n'[10]SM4 - DNO Scenario 4 equiv'!P213)","v":0},{"$f":"CHOOSE(view,\n'[9]M1a - Model inputs'!Q213,\n'[9]M1b - Model inputs'!Q213,\n'[9]SM1 - DECC Scenario 3 equiv'!Q213,\n'[9]SM2 - DECC Scenario 1 equiv'!Q213,\n'[9]SM3 - DECC Scenario 2 equiv'!Q213,\n'[9]SM4 - DNO Scenario 4 equiv'!Q213,\n'[10]M1a - Model inputs'!Q213,\n'[10]M1b - Model inputs'!Q213,\n'[10]SM1 - DECC Scenario 3 equiv'!Q213,\n'[10]SM2 - DECC Scenario 1 equiv'!Q213,\n'[10]SM3 - DECC Scenario 2 equiv'!Q213,\n'[10]SM4 - DNO Scenario 4 equiv'!Q213)","v":0},{"$f":"CHOOSE(view,\n'[9]M1a - Model inputs'!R213,\n'[9]M1b - Model inputs'!R213,\n'[9]SM1 - DECC Scenario 3 equiv'!R213,\n'[9]SM2 - DECC Scenario 1 equiv'!R213,\n'[9]SM3 - DECC Scenario 2 equiv'!R213,\n'[9]SM4 - DNO Scenario 4 equiv'!R213,\n'[10]M1a - Model inputs'!R213,\n'[10]M1b - Model inputs'!R213,\n'[10]SM1 - DECC Scenario 3 equiv'!R213,\n'[10]SM2 - DECC Scenario 1 equiv'!R213,\n'[10]SM3 - DECC Scenario 2 equiv'!R213,\n'[10]SM4 - DNO Scenario 4 equiv'!R213)","v":0},{"$f":"CHOOSE(view,\n'[9]M1a - Model inputs'!S213,\n'[9]M1b - Model inputs'!S213,\n'[9]SM1 - DECC Scenario 3 equiv'!S213,\n'[9]SM2 - DECC Scenario 1 equiv'!S213,\n'[9]SM3 - DECC Scenario 2 equiv'!S213,\n'[9]SM4 - DNO Scenario 4 equiv'!S213,\n'[10]M1a - Model inputs'!S213,\n'[10]M1b - Model inputs'!S213,\n'[10]SM1 - DECC Scenario 3 equiv'!S213,\n'[10]SM2 - DECC Scenario 1 equiv'!S213,\n'[10]SM3 - DECC Scenario 2 equiv'!S213,\n'[10]SM4 - DNO Scenario 4 equiv'!S213)","v":0}]
[null,null,null,null,{"$f":"Input!E145","v":"Allocation to faults"},null,"%",null,null,null,null,null,null,null,null,null,null,null,null,null,null,null,null,null,null,null,null,null,null,null,null,null,null,null,null,{"$f":"CHOOSE(view,\n'[9]M1a - Model inputs'!L214,\n'[9]M1b - Model inputs'!L214,\n'[9]SM1 - DECC Scenario 3 equiv'!L214,\n'[9]SM2 - DECC Scenario 1 equiv'!L214,\n'[9]SM3 - DECC Scenario 2 equiv'!L214,\n'[9]SM4 - DNO Scenario 4 equiv'!L214,\n'[10]M1a - Model inputs'!L214,\n'[10]M1b - Model inputs'!L214,\n'[10]SM1 - DECC Scenario 3 equiv'!L214,\n'[10]SM2 - DECC Scenario 1 equiv'!L214,\n'[10]SM3 - DECC Scenario 2 equiv'!L214,\n'[10]SM4 - DNO Scenario 4 equiv'!L214)","v":0},{"$f":"CHOOSE(view,\n'[9]M1a - Model inputs'!M214,\n'[9]M1b - Model inputs'!M214,\n'[9]SM1 - DECC Scenario 3 equiv'!M214,\n'[9]SM2 - DECC Scenario 1 equiv'!M214,\n'[9]SM3 - DECC Scenario 2 equiv'!M214,\n'[9]SM4 - DNO Scenario 4 equiv'!M214,\n'[10]M1a - Model inputs'!M214,\n'[10]M1b - Model inputs'!M214,\n'[10]SM1 - DECC Scenario 3 equiv'!M214,\n'[10]SM2 - DECC Scenario 1 equiv'!M214,\n'[10]SM3 - DECC Scenario 2 equiv'!M214,\n'[10]SM4 - DNO Scenario 4 equiv'!M214)","v":0},{"$f":"CHOOSE(view,\n'[9]M1a - Model inputs'!N214,\n'[9]M1b - Model inputs'!N214,\n'[9]SM1 - DECC Scenario 3 equiv'!N214,\n'[9]SM2 - DECC Scenario 1 equiv'!N214,\n'[9]SM3 - DECC Scenario 2 equiv'!N214,\n'[9]SM4 - DNO Scenario 4 equiv'!N214,\n'[10]M1a - Model inputs'!N214,\n'[10]M1b - Model inputs'!N214,\n'[10]SM1 - DECC Scenario 3 equiv'!N214,\n'[10]SM2 - DECC Scenario 1 equiv'!N214,\n'[10]SM3 - DECC Scenario 2 equiv'!N214,\n'[10]SM4 - DNO Scenario 4 equiv'!N214)","v":0.20310188688178019},{"$f":"CHOOSE(view,\n'[9]M1a - Model inputs'!O214,\n'[9]M1b - Model inputs'!O214,\n'[9]SM1 - DECC Scenario 3 equiv'!O214,\n'[9]SM2 - DECC Scenario 1 equiv'!O214,\n'[9]SM3 - DECC Scenario 2 equiv'!O214,\n'[9]SM4 - DNO Scenario 4 equiv'!O214,\n'[10]M1a - Model inputs'!O214,\n'[10]M1b - Model inputs'!O214,\n'[10]SM1 - DECC Scenario 3 equiv'!O214,\n'[10]SM2 - DECC Scenario 1 equiv'!O214,\n'[10]SM3 - DECC Scenario 2 equiv'!O214,\n'[10]SM4 - DNO Scenario 4 equiv'!O214)","v":0.20326223914866762},{"$f":"CHOOSE(view,\n'[9]M1a - Model inputs'!P214,\n'[9]M1b - Model inputs'!P214,\n'[9]SM1 - DECC Scenario 3 equiv'!P214,\n'[9]SM2 - DECC Scenario 1 equiv'!P214,\n'[9]SM3 - DECC Scenario 2 equiv'!P214,\n'[9]SM4 - DNO Scenario 4 equiv'!P214,\n'[10]M1a - Model inputs'!P214,\n'[10]M1b - Model inputs'!P214,\n'[10]SM1 - DECC Scenario 3 equiv'!P214,\n'[10]SM2 - DECC Scenario 1 equiv'!P214,\n'[10]SM3 - DECC Scenario 2 equiv'!P214,\n'[10]SM4 - DNO Scenario 4 equiv'!P214)","v":0.20370072433719189},{"$f":"CHOOSE(view,\n'[9]M1a - Model inputs'!Q214,\n'[9]M1b - Model inputs'!Q214,\n'[9]SM1 - DECC Scenario 3 equiv'!Q214,\n'[9]SM2 - DECC Scenario 1 equiv'!Q214,\n'[9]SM3 - DECC Scenario 2 equiv'!Q214,\n'[9]SM4 - DNO Scenario 4 equiv'!Q214,\n'[10]M1a - Model inputs'!Q214,\n'[10]M1b - Model inputs'!Q214,\n'[10]SM1 - DECC Scenario 3 equiv'!Q214,\n'[10]SM2 - DECC Scenario 1 equiv'!Q214,\n'[10]SM3 - DECC Scenario 2 equiv'!Q214,\n'[10]SM4 - DNO Scenario 4 equiv'!Q214)","v":0.2040471373159467},{"$f":"CHOOSE(view,\n'[9]M1a - Model inputs'!R214,\n'[9]M1b - Model inputs'!R214,\n'[9]SM1 - DECC Scenario 3 equiv'!R214,\n'[9]SM2 - DECC Scenario 1 equiv'!R214,\n'[9]SM3 - DECC Scenario 2 equiv'!R214,\n'[9]SM4 - DNO Scenario 4 equiv'!R214,\n'[10]M1a - Model inputs'!R214,\n'[10]M1b - Model inputs'!R214,\n'[10]SM1 - DECC Scenario 3 equiv'!R214,\n'[10]SM2 - DECC Scenario 1 equiv'!R214,\n'[10]SM3 - DECC Scenario 2 equiv'!R214,\n'[10]SM4 - DNO Scenario 4 equiv'!R214)","v":0.20442307906738161},{"$f":"CHOOSE(view,\n'[9]M1a - Model inputs'!S214,\n'[9]M1b - Model inputs'!S214,\n'[9]SM1 - DECC Scenario 3 equiv'!S214,\n'[9]SM2 - DECC Scenario 1 equiv'!S214,\n'[9]SM3 - DECC Scenario 2 equiv'!S214,\n'[9]SM4 - DNO Scenario 4 equiv'!S214,\n'[10]M1a - Model inputs'!S214,\n'[10]M1b - Model inputs'!S214,\n'[10]SM1 - DECC Scenario 3 equiv'!S214,\n'[10]SM2 - DECC Scenario 1 equiv'!S214,\n'[10]SM3 - DECC Scenario 2 equiv'!S214,\n'[10]SM4 - DNO Scenario 4 equiv'!S214)","v":0}]
[null,null,null,null,{"$f":"Input!E146","v":"Allocation to tree cutting"},null,"%",null,null,null,null,null,null,null,null,null,null,null,null,null,null,null,null,null,null,null,null,null,null,null,null,null,null,null,null,{"$f":"CHOOSE(view,\n'[9]M1a - Model inputs'!L215,\n'[9]M1b - Model inputs'!L215,\n'[9]SM1 - DECC Scenario 3 equiv'!L215,\n'[9]SM2 - DECC Scenario 1 equiv'!L215,\n'[9]SM3 - DECC Scenario 2 equiv'!L215,\n'[9]SM4 - DNO Scenario 4 equiv'!L215,\n'[10]M1a - Model inputs'!L215,\n'[10]M1b - Model inputs'!L215,\n'[10]SM1 - DECC Scenario 3 equiv'!L215,\n'[10]SM2 - DECC Scenario 1 equiv'!L215,\n'[10]SM3 - DECC Scenario 2 equiv'!L215,\n'[10]SM4 - DNO Scenario 4 equiv'!L215)","v":0},{"$f":"CHOOSE(view,\n'[9]M1a - Model inputs'!M215,\n'[9]M1b - Model inputs'!M215,\n'[9]SM1 - DECC Scenario 3 equiv'!M215,\n'[9]SM2 - DECC Scenario 1 equiv'!M215,\n'[9]SM3 - DECC Scenario 2 equiv'!M215,\n'[9]SM4 - DNO Scenario 4 equiv'!M215,\n'[10]M1a - Model inputs'!M215,\n'[10]M1b - Model inputs'!M215,\n'[10]SM1 - DECC Scenario 3 equiv'!M215,\n'[10]SM2 - DECC Scenario 1 equiv'!M215,\n'[10]SM3 - DECC Scenario 2 equiv'!M215,\n'[10]SM4 - DNO Scenario 4 equiv'!M215)","v":0},{"$f":"CHOOSE(view,\n'[9]M1a - Model inputs'!N215,\n'[9]M1b - Model inputs'!N215,\n'[9]SM1 - DECC Scenario 3 equiv'!N215,\n'[9]SM2 - DECC Scenario 1 equiv'!N215,\n'[9]SM3 - DECC Scenario 2 equiv'!N215,\n'[9]SM4 - DNO Scenario 4 equiv'!N215,\n'[10]M1a - Model inputs'!N215,\n'[10]M1b - Model inputs'!N215,\n'[10]SM1 - DECC Scenario 3 equiv'!N215,\n'[10]SM2 - DECC Scenario 1 equiv'!N215,\n'[10]SM3 - DECC Scenario 2 equiv'!N215,\n'[10]SM4 - DNO Scenario 4 equiv'!N215)","v":0},{"$f":"CHOOSE(view,\n'[9]M1a - Model inputs'!O215,\n'[9]M1b - Model inputs'!O215,\n'[9]SM1 - DECC Scenario 3 equiv'!O215,\n'[9]SM2 - DECC Scenario 1 equiv'!O215,\n'[9]SM3 - DECC Scenario 2 equiv'!O215,\n'[9]SM4 - DNO Scenario 4 equiv'!O215,\n'[10]M1a - Model inputs'!O215,\n'[10]M1b - Model inputs'!O215,\n'[10]SM1 - DECC Scenario 3 equiv'!O215,\n'[10]SM2 - DECC Scenario 1 equiv'!O215,\n'[10]SM3 - DECC Scenario 2 equiv'!O215,\n'[10]SM4 - DNO Scenario 4 equiv'!O215)","v":0},{"$f":"CHOOSE(view,\n'[9]M1a - Model inputs'!P215,\n'[9]M1b - Model inputs'!P215,\n'[9]SM1 - DECC Scenario 3 equiv'!P215,\n'[9]SM2 - DECC Scenario 1 equiv'!P215,\n'[9]SM3 - DECC Scenario 2 equiv'!P215,\n'[9]SM4 - DNO Scenario 4 equiv'!P215,\n'[10]M1a - Model inputs'!P215,\n'[10]M1b - Model inputs'!P215,\n'[10]SM1 - DECC Scenario 3 equiv'!P215,\n'[10]SM2 - DECC Scenario 1 equiv'!P215,\n'[10]SM3 - DECC Scenario 2 equiv'!P215,\n'[10]SM4 - DNO Scenario 4 equiv'!P215)","v":0},{"$f":"CHOOSE(view,\n'[9]M1a - Model inputs'!Q215,\n'[9]M1b - Model inputs'!Q215,\n'[9]SM1 - DECC Scenario 3 equiv'!Q215,\n'[9]SM2 - DECC Scenario 1 equiv'!Q215,\n'[9]SM3 - DECC Scenario 2 equiv'!Q215,\n'[9]SM4 - DNO Scenario 4 equiv'!Q215,\n'[10]M1a - Model inputs'!Q215,\n'[10]M1b - Model inputs'!Q215,\n'[10]SM1 - DECC Scenario 3 equiv'!Q215,\n'[10]SM2 - DECC Scenario 1 equiv'!Q215,\n'[10]SM3 - DECC Scenario 2 equiv'!Q215,\n'[10]SM4 - DNO Scenario 4 equiv'!Q215)","v":0},{"$f":"CHOOSE(view,\n'[9]M1a - Model inputs'!R215,\n'[9]M1b - Model inputs'!R215,\n'[9]SM1 - DECC Scenario 3 equiv'!R215,\n'[9]SM2 - DECC Scenario 1 equiv'!R215,\n'[9]SM3 - DECC Scenario 2 equiv'!R215,\n'[9]SM4 - DNO Scenario 4 equiv'!R215,\n'[10]M1a - Model inputs'!R215,\n'[10]M1b - Model inputs'!R215,\n'[10]SM1 - DECC Scenario 3 equiv'!R215,\n'[10]SM2 - DECC Scenario 1 equiv'!R215,\n'[10]SM3 - DECC Scenario 2 equiv'!R215,\n'[10]SM4 - DNO Scenario 4 equiv'!R215)","v":0},{"$f":"CHOOSE(view,\n'[9]M1a - Model inputs'!S215,\n'[9]M1b - Model inputs'!S215,\n'[9]SM1 - DECC Scenario 3 equiv'!S215,\n'[9]SM2 - DECC Scenario 1 equiv'!S215,\n'[9]SM3 - DECC Scenario 2 equiv'!S215,\n'[9]SM4 - DNO Scenario 4 equiv'!S215,\n'[10]M1a - Model inputs'!S215,\n'[10]M1b - Model inputs'!S215,\n'[10]SM1 - DECC Scenario 3 equiv'!S215,\n'[10]SM2 - DECC Scenario 1 equiv'!S215,\n'[10]SM3 - DECC Scenario 2 equiv'!S215,\n'[10]SM4 - DNO Scenario 4 equiv'!S215)","v":0}]
[null,null,null,null,{"$f":"Input!E147","v":"Allocation to controllable opex"},null,"%",null,null,null,null,null,null,null,null,null,null,null,null,null,null,null,null,null,null,null,null,null,null,null,null,null,null,null,null,{"$f":"CHOOSE(view,\n'[9]M1a - Model inputs'!L216,\n'[9]M1b - Model inputs'!L216,\n'[9]SM1 - DECC Scenario 3 equiv'!L216,\n'[9]SM2 - DECC Scenario 1 equiv'!L216,\n'[9]SM3 - DECC Scenario 2 equiv'!L216,\n'[9]SM4 - DNO Scenario 4 equiv'!L216,\n'[10]M1a - Model inputs'!L216,\n'[10]M1b - Model inputs'!L216,\n'[10]SM1 - DECC Scenario 3 equiv'!L216,\n'[10]SM2 - DECC Scenario 1 equiv'!L216,\n'[10]SM3 - DECC Scenario 2 equiv'!L216,\n'[10]SM4 - DNO Scenario 4 equiv'!L216)","v":0},{"$f":"CHOOSE(view,\n'[9]M1a - Model inputs'!M216,\n'[9]M1b - Model inputs'!M216,\n'[9]SM1 - DECC Scenario 3 equiv'!M216,\n'[9]SM2 - DECC Scenario 1 equiv'!M216,\n'[9]SM3 - DECC Scenario 2 equiv'!M216,\n'[9]SM4 - DNO Scenario 4 equiv'!M216,\n'[10]M1a - Model inputs'!M216,\n'[10]M1b - Model inputs'!M216,\n'[10]SM1 - DECC Scenario 3 equiv'!M216,\n'[10]SM2 - DECC Scenario 1 equiv'!M216,\n'[10]SM3 - DECC Scenario 2 equiv'!M216,\n'[10]SM4 - DNO Scenario 4 equiv'!M216)","v":0},{"$f":"CHOOSE(view,\n'[9]M1a - Model inputs'!N216,\n'[9]M1b - Model inputs'!N216,\n'[9]SM1 - DECC Scenario 3 equiv'!N216,\n'[9]SM2 - DECC Scenario 1 equiv'!N216,\n'[9]SM3 - DECC Scenario 2 equiv'!N216,\n'[9]SM4 - DNO Scenario 4 equiv'!N216,\n'[10]M1a - Model inputs'!N216,\n'[10]M1b - Model inputs'!N216,\n'[10]SM1 - DECC Scenario 3 equiv'!N216,\n'[10]SM2 - DECC Scenario 1 equiv'!N216,\n'[10]SM3 - DECC Scenario 2 equiv'!N216,\n'[10]SM4 - DNO Scenario 4 equiv'!N216)","v":0},{"$f":"CHOOSE(view,\n'[9]M1a - Model inputs'!O216,\n'[9]M1b - Model inputs'!O216,\n'[9]SM1 - DECC Scenario 3 equiv'!O216,\n'[9]SM2 - DECC Scenario 1 equiv'!O216,\n'[9]SM3 - DECC Scenario 2 equiv'!O216,\n'[9]SM4 - DNO Scenario 4 equiv'!O216,\n'[10]M1a - Model inputs'!O216,\n'[10]M1b - Model inputs'!O216,\n'[10]SM1 - DECC Scenario 3 equiv'!O216,\n'[10]SM2 - DECC Scenario 1 equiv'!O216,\n'[10]SM3 - DECC Scenario 2 equiv'!O216,\n'[10]SM4 - DNO Scenario 4 equiv'!O216)","v":0},{"$f":"CHOOSE(view,\n'[9]M1a - Model inputs'!P216,\n'[9]M1b - Model inputs'!P216,\n'[9]SM1 - DECC Scenario 3 equiv'!P216,\n'[9]SM2 - DECC Scenario 1 equiv'!P216,\n'[9]SM3 - DECC Scenario 2 equiv'!P216,\n'[9]SM4 - DNO Scenario 4 equiv'!P216,\n'[10]M1a - Model inputs'!P216,\n'[10]M1b - Model inputs'!P216,\n'[10]SM1 - DECC Scenario 3 equiv'!P216,\n'[10]SM2 - DECC Scenario 1 equiv'!P216,\n'[10]SM3 - DECC Scenario 2 equiv'!P216,\n'[10]SM4 - DNO Scenario 4 equiv'!P216)","v":0},{"$f":"CHOOSE(view,\n'[9]M1a - Model inputs'!Q216,\n'[9]M1b - Model inputs'!Q216,\n'[9]SM1 - DECC Scenario 3 equiv'!Q216,\n'[9]SM2 - DECC Scenario 1 equiv'!Q216,\n'[9]SM3 - DECC Scenario 2 equiv'!Q216,\n'[9]SM4 - DNO Scenario 4 equiv'!Q216,\n'[10]M1a - Model inputs'!Q216,\n'[10]M1b - Model inputs'!Q216,\n'[10]SM1 - DECC Scenario 3 equiv'!Q216,\n'[10]SM2 - DECC Scenario 1 equiv'!Q216,\n'[10]SM3 - DECC Scenario 2 equiv'!Q216,\n'[10]SM4 - DNO Scenario 4 equiv'!Q216)","v":0},{"$f":"CHOOSE(view,\n'[9]M1a - Model inputs'!R216,\n'[9]M1b - Model inputs'!R216,\n'[9]SM1 - DECC Scenario 3 equiv'!R216,\n'[9]SM2 - DECC Scenario 1 equiv'!R216,\n'[9]SM3 - DECC Scenario 2 equiv'!R216,\n'[9]SM4 - DNO Scenario 4 equiv'!R216,\n'[10]M1a - Model inputs'!R216,\n'[10]M1b - Model inputs'!R216,\n'[10]SM1 - DECC Scenario 3 equiv'!R216,\n'[10]SM2 - DECC Scenario 1 equiv'!R216,\n'[10]SM3 - DECC Scenario 2 equiv'!R216,\n'[10]SM4 - DNO Scenario 4 equiv'!R216)","v":0},{"$f":"CHOOSE(view,\n'[9]M1a - Model inputs'!S216,\n'[9]M1b - Model inputs'!S216,\n'[9]SM1 - DECC Scenario 3 equiv'!S216,\n'[9]SM2 - DECC Scenario 1 equiv'!S216,\n'[9]SM3 - DECC Scenario 2 equiv'!S216,\n'[9]SM4 - DNO Scenario 4 equiv'!S216,\n'[10]M1a - Model inputs'!S216,\n'[10]M1b - Model inputs'!S216,\n'[10]SM1 - DECC Scenario 3 equiv'!S216,\n'[10]SM2 - DECC Scenario 1 equiv'!S216,\n'[10]SM3 - DECC Scenario 2 equiv'!S216,\n'[10]SM4 - DNO Scenario 4 equiv'!S216)","v":0}]
[]
[null,null,null,null,{"$f":"Input!E149","v":"Allowed uncertain costs (Load related re-operner)"},null,"£m 12/13 prices",null,null,null,null,null,null,null,null,null,null,null,null,null,null,null,null,null,null,null,null,null,null,null,null,null,null,null,null,{"$f":"AJ24","v":0},{"$f":"AK24","v":0},0,0,0,0,0,0]
[null,null,null,null,{"$f":"Input!E150","v":"Allocation to load related capex"},null,"%",null,null,null,null,null,null,null,null,null,null,null,null,null,null,null,null,null,null,null,null,null,null,null,null,null,null,null,null,{"$f":"CHOOSE(view,\n'[9]M1a - Model inputs'!L163,\n'[9]M1b - Model inputs'!L163,\n'[9]SM1 - DECC Scenario 3 equiv'!L163,\n'[9]SM2 - DECC Scenario 1 equiv'!L163,\n'[9]SM3 - DECC Scenario 2 equiv'!L163,\n'[9]SM4 - DNO Scenario 4 equiv'!L163,\n'[10]M1a - Model inputs'!L163,\n'[10]M1b - Model inputs'!L163,\n'[10]SM1 - DECC Scenario 3 equiv'!L163,\n'[10]SM2 - DECC Scenario 1 equiv'!L163,\n'[10]SM3 - DECC Scenario 2 equiv'!L163,\n'[10]SM4 - DNO Scenario 4 equiv'!L163)","v":1},{"$f":"CHOOSE(view,\n'[9]M1a - Model inputs'!M163,\n'[9]M1b - Model inputs'!M163,\n'[9]SM1 - DECC Scenario 3 equiv'!M163,\n'[9]SM2 - DECC Scenario 1 equiv'!M163,\n'[9]SM3 - DECC Scenario 2 equiv'!M163,\n'[9]SM4 - DNO Scenario 4 equiv'!M163,\n'[10]M1a - Model inputs'!M163,\n'[10]M1b - Model inputs'!M163,\n'[10]SM1 - DECC Scenario 3 equiv'!M163,\n'[10]SM2 - DECC Scenario 1 equiv'!M163,\n'[10]SM3 - DECC Scenario 2 equiv'!M163,\n'[10]SM4 - DNO Scenario 4 equiv'!M163)","v":1},{"$f":"CHOOSE(view,\n'[9]M1a - Model inputs'!N163,\n'[9]M1b - Model inputs'!N163,\n'[9]SM1 - DECC Scenario 3 equiv'!N163,\n'[9]SM2 - DECC Scenario 1 equiv'!N163,\n'[9]SM3 - DECC Scenario 2 equiv'!N163,\n'[9]SM4 - DNO Scenario 4 equiv'!N163,\n'[10]M1a - Model inputs'!N163,\n'[10]M1b - Model inputs'!N163,\n'[10]SM1 - DECC Scenario 3 equiv'!N163,\n'[10]SM2 - DECC Scenario 1 equiv'!N163,\n'[10]SM3 - DECC Scenario 2 equiv'!N163,\n'[10]SM4 - DNO Scenario 4 equiv'!N163)","v":1},{"$f":"CHOOSE(view,\n'[9]M1a - Model inputs'!O163,\n'[9]M1b - Model inputs'!O163,\n'[9]SM1 - DECC Scenario 3 equiv'!O163,\n'[9]SM2 - DECC Scenario 1 equiv'!O163,\n'[9]SM3 - DECC Scenario 2 equiv'!O163,\n'[9]SM4 - DNO Scenario 4 equiv'!O163,\n'[10]M1a - Model inputs'!O163,\n'[10]M1b - Model inputs'!O163,\n'[10]SM1 - DECC Scenario 3 equiv'!O163,\n'[10]SM2 - DECC Scenario 1 equiv'!O163,\n'[10]SM3 - DECC Scenario 2 equiv'!O163,\n'[10]SM4 - DNO Scenario 4 equiv'!O163)","v":1},{"$f":"CHOOSE(view,\n'[9]M1a - Model inputs'!P163,\n'[9]M1b - Model inputs'!P163,\n'[9]SM1 - DECC Scenario 3 equiv'!P163,\n'[9]SM2 - DECC Scenario 1 equiv'!P163,\n'[9]SM3 - DECC Scenario 2 equiv'!P163,\n'[9]SM4 - DNO Scenario 4 equiv'!P163,\n'[10]M1a - Model inputs'!P163,\n'[10]M1b - Model inputs'!P163,\n'[10]SM1 - DECC Scenario 3 equiv'!P163,\n'[10]SM2 - DECC Scenario 1 equiv'!P163,\n'[10]SM3 - DECC Scenario 2 equiv'!P163,\n'[10]SM4 - DNO Scenario 4 equiv'!P163)","v":1},{"$f":"CHOOSE(view,\n'[9]M1a - Model inputs'!Q163,\n'[9]M1b - Model inputs'!Q163,\n'[9]SM1 - DECC Scenario 3 equiv'!Q163,\n'[9]SM2 - DECC Scenario 1 equiv'!Q163,\n'[9]SM3 - DECC Scenario 2 equiv'!Q163,\n'[9]SM4 - DNO Scenario 4 equiv'!Q163,\n'[10]M1a - Model inputs'!Q163,\n'[10]M1b - Model inputs'!Q163,\n'[10]SM1 - DECC Scenario 3 equiv'!Q163,\n'[10]SM2 - DECC Scenario 1 equiv'!Q163,\n'[10]SM3 - DECC Scenario 2 equiv'!Q163,\n'[10]SM4 - DNO Scenario 4 equiv'!Q163)","v":1},{"$f":"CHOOSE(view,\n'[9]M1a - Model inputs'!R163,\n'[9]M1b - Model inputs'!R163,\n'[9]SM1 - DECC Scenario 3 equiv'!R163,\n'[9]SM2 - DECC Scenario 1 equiv'!R163,\n'[9]SM3 - DECC Scenario 2 equiv'!R163,\n'[9]SM4 - DNO Scenario 4 equiv'!R163,\n'[10]M1a - Model inputs'!R163,\n'[10]M1b - Model inputs'!R163,\n'[10]SM1 - DECC Scenario 3 equiv'!R163,\n'[10]SM2 - DECC Scenario 1 equiv'!R163,\n'[10]SM3 - DECC Scenario 2 equiv'!R163,\n'[10]SM4 - DNO Scenario 4 equiv'!R163)","v":1},{"$f":"CHOOSE(view,\n'[9]M1a - Model inputs'!S163,\n'[9]M1b - Model inputs'!S163,\n'[9]SM1 - DECC Scenario 3 equiv'!S163,\n'[9]SM2 - DECC Scenario 1 equiv'!S163,\n'[9]SM3 - DECC Scenario 2 equiv'!S163,\n'[9]SM4 - DNO Scenario 4 equiv'!S163,\n'[10]M1a - Model inputs'!S163,\n'[10]M1b - Model inputs'!S163,\n'[10]SM1 - DECC Scenario 3 equiv'!S163,\n'[10]SM2 - DECC Scenario 1 equiv'!S163,\n'[10]SM3 - DECC Scenario 2 equiv'!S163,\n'[10]SM4 - DNO Scenario 4 equiv'!S163)","v":1}]
[null,null,null,null,{"$f":"Input!E151","v":"Allocation to non-load related capex - asset replacement"},null,"%",null,null,null,null,null,null,null,null,null,null,null,null,null,null,null,null,null,null,null,null,null,null,null,null,null,null,null,null,{"$f":"CHOOSE(view,\n'[9]M1a - Model inputs'!L164,\n'[9]M1b - Model inputs'!L164,\n'[9]SM1 - DECC Scenario 3 equiv'!L164,\n'[9]SM2 - DECC Scenario 1 equiv'!L164,\n'[9]SM3 - DECC Scenario 2 equiv'!L164,\n'[9]SM4 - DNO Scenario 4 equiv'!L164,\n'[10]M1a - Model inputs'!L164,\n'[10]M1b - Model inputs'!L164,\n'[10]SM1 - DECC Scenario 3 equiv'!L164,\n'[10]SM2 - DECC Scenario 1 equiv'!L164,\n'[10]SM3 - DECC Scenario 2 equiv'!L164,\n'[10]SM4 - DNO Scenario 4 equiv'!L164)","v":0},{"$f":"CHOOSE(view,\n'[9]M1a - Model inputs'!M164,\n'[9]M1b - Model inputs'!M164,\n'[9]SM1 - DECC Scenario 3 equiv'!M164,\n'[9]SM2 - DECC Scenario 1 equiv'!M164,\n'[9]SM3 - DECC Scenario 2 equiv'!M164,\n'[9]SM4 - DNO Scenario 4 equiv'!M164,\n'[10]M1a - Model inputs'!M164,\n'[10]M1b - Model inputs'!M164,\n'[10]SM1 - DECC Scenario 3 equiv'!M164,\n'[10]SM2 - DECC Scenario 1 equiv'!M164,\n'[10]SM3 - DECC Scenario 2 equiv'!M164,\n'[10]SM4 - DNO Scenario 4 equiv'!M164)","v":0},{"$f":"CHOOSE(view,\n'[9]M1a - Model inputs'!N164,\n'[9]M1b - Model inputs'!N164,\n'[9]SM1 - DECC Scenario 3 equiv'!N164,\n'[9]SM2 - DECC Scenario 1 equiv'!N164,\n'[9]SM3 - DECC Scenario 2 equiv'!N164,\n'[9]SM4 - DNO Scenario 4 equiv'!N164,\n'[10]M1a - Model inputs'!N164,\n'[10]M1b - Model inputs'!N164,\n'[10]SM1 - DECC Scenario 3 equiv'!N164,\n'[10]SM2 - DECC Scenario 1 equiv'!N164,\n'[10]SM3 - DECC Scenario 2 equiv'!N164,\n'[10]SM4 - DNO Scenario 4 equiv'!N164)","v":0},{"$f":"CHOOSE(view,\n'[9]M1a - Model inputs'!O164,\n'[9]M1b - Model inputs'!O164,\n'[9]SM1 - DECC Scenario 3 equiv'!O164,\n'[9]SM2 - DECC Scenario 1 equiv'!O164,\n'[9]SM3 - DECC Scenario 2 equiv'!O164,\n'[9]SM4 - DNO Scenario 4 equiv'!O164,\n'[10]M1a - Model inputs'!O164,\n'[10]M1b - Model inputs'!O164,\n'[10]SM1 - DECC Scenario 3 equiv'!O164,\n'[10]SM2 - DECC Scenario 1 equiv'!O164,\n'[10]SM3 - DECC Scenario 2 equiv'!O164,\n'[10]SM4 - DNO Scenario 4 equiv'!O164)","v":0},{"$f":"CHOOSE(view,\n'[9]M1a - Model inputs'!P164,\n'[9]M1b - Model inputs'!P164,\n'[9]SM1 - DECC Scenario 3 equiv'!P164,\n'[9]SM2 - DECC Scenario 1 equiv'!P164,\n'[9]SM3 - DECC Scenario 2 equiv'!P164,\n'[9]SM4 - DNO Scenario 4 equiv'!P164,\n'[10]M1a - Model inputs'!P164,\n'[10]M1b - Model inputs'!P164,\n'[10]SM1 - DECC Scenario 3 equiv'!P164,\n'[10]SM2 - DECC Scenario 1 equiv'!P164,\n'[10]SM3 - DECC Scenario 2 equiv'!P164,\n'[10]SM4 - DNO Scenario 4 equiv'!P164)","v":0},{"$f":"CHOOSE(view,\n'[9]M1a - Model inputs'!Q164,\n'[9]M1b - Model inputs'!Q164,\n'[9]SM1 - DECC Scenario 3 equiv'!Q164,\n'[9]SM2 - DECC Scenario 1 equiv'!Q164,\n'[9]SM3 - DECC Scenario 2 equiv'!Q164,\n'[9]SM4 - DNO Scenario 4 equiv'!Q164,\n'[10]M1a - Model inputs'!Q164,\n'[10]M1b - Model inputs'!Q164,\n'[10]SM1 - DECC Scenario 3 equiv'!Q164,\n'[10]SM2 - DECC Scenario 1 equiv'!Q164,\n'[10]SM3 - DECC Scenario 2 equiv'!Q164,\n'[10]SM4 - DNO Scenario 4 equiv'!Q164)","v":0},{"$f":"CHOOSE(view,\n'[9]M1a - Model inputs'!R164,\n'[9]M1b - Model inputs'!R164,\n'[9]SM1 - DECC Scenario 3 equiv'!R164,\n'[9]SM2 - DECC Scenario 1 equiv'!R164,\n'[9]SM3 - DECC Scenario 2 equiv'!R164,\n'[9]SM4 - DNO Scenario 4 equiv'!R164,\n'[10]M1a - Model inputs'!R164,\n'[10]M1b - Model inputs'!R164,\n'[10]SM1 - DECC Scenario 3 equiv'!R164,\n'[10]SM2 - DECC Scenario 1 equiv'!R164,\n'[10]SM3 - DECC Scenario 2 equiv'!R164,\n'[10]SM4 - DNO Scenario 4 equiv'!R164)","v":0},{"$f":"CHOOSE(view,\n'[9]M1a - Model inputs'!S164,\n'[9]M1b - Model inputs'!S164,\n'[9]SM1 - DECC Scenario 3 equiv'!S164,\n'[9]SM2 - DECC Scenario 1 equiv'!S164,\n'[9]SM3 - DECC Scenario 2 equiv'!S164,\n'[9]SM4 - DNO Scenario 4 equiv'!S164,\n'[10]M1a - Model inputs'!S164,\n'[10]M1b - Model inputs'!S164,\n'[10]SM1 - DECC Scenario 3 equiv'!S164,\n'[10]SM2 - DECC Scenario 1 equiv'!S164,\n'[10]SM3 - DECC Scenario 2 equiv'!S164,\n'[10]SM4 - DNO Scenario 4 equiv'!S164)","v":0}]
[null,null,null,null,{"$f":"Input!E152","v":"Allocation to non-load related capex - other"},null,"%",null,null,null,null,null,null,null,null,null,null,null,null,null,null,null,null,null,null,null,null,null,null,null,null,null,null,null,null,{"$f":"CHOOSE(view,\n'[9]M1a - Model inputs'!L165,\n'[9]M1b - Model inputs'!L165,\n'[9]SM1 - DECC Scenario 3 equiv'!L165,\n'[9]SM2 - DECC Scenario 1 equiv'!L165,\n'[9]SM3 - DECC Scenario 2 equiv'!L165,\n'[9]SM4 - DNO Scenario 4 equiv'!L165,\n'[10]M1a - Model inputs'!L165,\n'[10]M1b - Model inputs'!L165,\n'[10]SM1 - DECC Scenario 3 equiv'!L165,\n'[10]SM2 - DECC Scenario 1 equiv'!L165,\n'[10]SM3 - DECC Scenario 2 equiv'!L165,\n'[10]SM4 - DNO Scenario 4 equiv'!L165)","v":0},{"$f":"CHOOSE(view,\n'[9]M1a - Model inputs'!M165,\n'[9]M1b - Model inputs'!M165,\n'[9]SM1 - DECC Scenario 3 equiv'!M165,\n'[9]SM2 - DECC Scenario 1 equiv'!M165,\n'[9]SM3 - DECC Scenario 2 equiv'!M165,\n'[9]SM4 - DNO Scenario 4 equiv'!M165,\n'[10]M1a - Model inputs'!M165,\n'[10]M1b - Model inputs'!M165,\n'[10]SM1 - DECC Scenario 3 equiv'!M165,\n'[10]SM2 - DECC Scenario 1 equiv'!M165,\n'[10]SM3 - DECC Scenario 2 equiv'!M165,\n'[10]SM4 - DNO Scenario 4 equiv'!M165)","v":0},{"$f":"CHOOSE(view,\n'[9]M1a - Model inputs'!N165,\n'[9]M1b - Model inputs'!N165,\n'[9]SM1 - DECC Scenario 3 equiv'!N165,\n'[9]SM2 - DECC Scenario 1 equiv'!N165,\n'[9]SM3 - DECC Scenario 2 equiv'!N165,\n'[9]SM4 - DNO Scenario 4 equiv'!N165,\n'[10]M1a - Model inputs'!N165,\n'[10]M1b - Model inputs'!N165,\n'[10]SM1 - DECC Scenario 3 equiv'!N165,\n'[10]SM2 - DECC Scenario 1 equiv'!N165,\n'[10]SM3 - DECC Scenario 2 equiv'!N165,\n'[10]SM4 - DNO Scenario 4 equiv'!N165)","v":0},{"$f":"CHOOSE(view,\n'[9]M1a - Model inputs'!O165,\n'[9]M1b - Model inputs'!O165,\n'[9]SM1 - DECC Scenario 3 equiv'!O165,\n'[9]SM2 - DECC Scenario 1 equiv'!O165,\n'[9]SM3 - DECC Scenario 2 equiv'!O165,\n'[9]SM4 - DNO Scenario 4 equiv'!O165,\n'[10]M1a - Model inputs'!O165,\n'[10]M1b - Model inputs'!O165,\n'[10]SM1 - DECC Scenario 3 equiv'!O165,\n'[10]SM2 - DECC Scenario 1 equiv'!O165,\n'[10]SM3 - DECC Scenario 2 equiv'!O165,\n'[10]SM4 - DNO Scenario 4 equiv'!O165)","v":0},{"$f":"CHOOSE(view,\n'[9]M1a - Model inputs'!P165,\n'[9]M1b - Model inputs'!P165,\n'[9]SM1 - DECC Scenario 3 equiv'!P165,\n'[9]SM2 - DECC Scenario 1 equiv'!P165,\n'[9]SM3 - DECC Scenario 2 equiv'!P165,\n'[9]SM4 - DNO Scenario 4 equiv'!P165,\n'[10]M1a - Model inputs'!P165,\n'[10]M1b - Model inputs'!P165,\n'[10]SM1 - DECC Scenario 3 equiv'!P165,\n'[10]SM2 - DECC Scenario 1 equiv'!P165,\n'[10]SM3 - DECC Scenario 2 equiv'!P165,\n'[10]SM4 - DNO Scenario 4 equiv'!P165)","v":0},{"$f":"CHOOSE(view,\n'[9]M1a - Model inputs'!Q165,\n'[9]M1b - Model inputs'!Q165,\n'[9]SM1 - DECC Scenario 3 equiv'!Q165,\n'[9]SM2 - DECC Scenario 1 equiv'!Q165,\n'[9]SM3 - DECC Scenario 2 equiv'!Q165,\n'[9]SM4 - DNO Scenario 4 equiv'!Q165,\n'[10]M1a - Model inputs'!Q165,\n'[10]M1b - Model inputs'!Q165,\n'[10]SM1 - DECC Scenario 3 equiv'!Q165,\n'[10]SM2 - DECC Scenario 1 equiv'!Q165,\n'[10]SM3 - DECC Scenario 2 equiv'!Q165,\n'[10]SM4 - DNO Scenario 4 equiv'!Q165)","v":0},{"$f":"CHOOSE(view,\n'[9]M1a - Model inputs'!R165,\n'[9]M1b - Model inputs'!R165,\n'[9]SM1 - DECC Scenario 3 equiv'!R165,\n'[9]SM2 - DECC Scenario 1 equiv'!R165,\n'[9]SM3 - DECC Scenario 2 equiv'!R165,\n'[9]SM4 - DNO Scenario 4 equiv'!R165,\n'[10]M1a - Model inputs'!R165,\n'[10]M1b - Model inputs'!R165,\n'[10]SM1 - DECC Scenario 3 equiv'!R165,\n'[10]SM2 - DECC Scenario 1 equiv'!R165,\n'[10]SM3 - DECC Scenario 2 equiv'!R165,\n'[10]SM4 - DNO Scenario 4 equiv'!R165)","v":0},{"$f":"CHOOSE(view,\n'[9]M1a - Model inputs'!S165,\n'[9]M1b - Model inputs'!S165,\n'[9]SM1 - DECC Scenario 3 equiv'!S165,\n'[9]SM2 - DECC Scenario 1 equiv'!S165,\n'[9]SM3 - DECC Scenario 2 equiv'!S165,\n'[9]SM4 - DNO Scenario 4 equiv'!S165,\n'[10]M1a - Model inputs'!S165,\n'[10]M1b - Model inputs'!S165,\n'[10]SM1 - DECC Scenario 3 equiv'!S165,\n'[10]SM2 - DECC Scenario 1 equiv'!S165,\n'[10]SM3 - DECC Scenario 2 equiv'!S165,\n'[10]SM4 - DNO Scenario 4 equiv'!S165)","v":0}]
[null,null,null,null,{"$f":"Input!E153","v":"Allocation to faults"},null,"%",null,null,null,null,null,null,null,null,null,null,null,null,null,null,null,null,null,null,null,null,null,null,null,null,null,null,null,null,{"$f":"CHOOSE(view,\n'[9]M1a - Model inputs'!L166,\n'[9]M1b - Model inputs'!L166,\n'[9]SM1 - DECC Scenario 3 equiv'!L166,\n'[9]SM2 - DECC Scenario 1 equiv'!L166,\n'[9]SM3 - DECC Scenario 2 equiv'!L166,\n'[9]SM4 - DNO Scenario 4 equiv'!L166,\n'[10]M1a - Model inputs'!L166,\n'[10]M1b - Model inputs'!L166,\n'[10]SM1 - DECC Scenario 3 equiv'!L166,\n'[10]SM2 - DECC Scenario 1 equiv'!L166,\n'[10]SM3 - DECC Scenario 2 equiv'!L166,\n'[10]SM4 - DNO Scenario 4 equiv'!L166)","v":0},{"$f":"CHOOSE(view,\n'[9]M1a - Model inputs'!M166,\n'[9]M1b - Model inputs'!M166,\n'[9]SM1 - DECC Scenario 3 equiv'!M166,\n'[9]SM2 - DECC Scenario 1 equiv'!M166,\n'[9]SM3 - DECC Scenario 2 equiv'!M166,\n'[9]SM4 - DNO Scenario 4 equiv'!M166,\n'[10]M1a - Model inputs'!M166,\n'[10]M1b - Model inputs'!M166,\n'[10]SM1 - DECC Scenario 3 equiv'!M166,\n'[10]SM2 - DECC Scenario 1 equiv'!M166,\n'[10]SM3 - DECC Scenario 2 equiv'!M166,\n'[10]SM4 - DNO Scenario 4 equiv'!M166)","v":0},{"$f":"CHOOSE(view,\n'[9]M1a - Model inputs'!N166,\n'[9]M1b - Model inputs'!N166,\n'[9]SM1 - DECC Scenario 3 equiv'!N166,\n'[9]SM2 - DECC Scenario 1 equiv'!N166,\n'[9]SM3 - DECC Scenario 2 equiv'!N166,\n'[9]SM4 - DNO Scenario 4 equiv'!N166,\n'[10]M1a - Model inputs'!N166,\n'[10]M1b - Model inputs'!N166,\n'[10]SM1 - DECC Scenario 3 equiv'!N166,\n'[10]SM2 - DECC Scenario 1 equiv'!N166,\n'[10]SM3 - DECC Scenario 2 equiv'!N166,\n'[10]SM4 - DNO Scenario 4 equiv'!N166)","v":0},{"$f":"CHOOSE(view,\n'[9]M1a - Model inputs'!O166,\n'[9]M1b - Model inputs'!O166,\n'[9]SM1 - DECC Scenario 3 equiv'!O166,\n'[9]SM2 - DECC Scenario 1 equiv'!O166,\n'[9]SM3 - DECC Scenario 2 equiv'!O166,\n'[9]SM4 - DNO Scenario 4 equiv'!O166,\n'[10]M1a - Model inputs'!O166,\n'[10]M1b - Model inputs'!O166,\n'[10]SM1 - DECC Scenario 3 equiv'!O166,\n'[10]SM2 - DECC Scenario 1 equiv'!O166,\n'[10]SM3 - DECC Scenario 2 equiv'!O166,\n'[10]SM4 - DNO Scenario 4 equiv'!O166)","v":0},{"$f":"CHOOSE(view,\n'[9]M1a - Model inputs'!P166,\n'[9]M1b - Model inputs'!P166,\n'[9]SM1 - DECC Scenario 3 equiv'!P166,\n'[9]SM2 - DECC Scenario 1 equiv'!P166,\n'[9]SM3 - DECC Scenario 2 equiv'!P166,\n'[9]SM4 - DNO Scenario 4 equiv'!P166,\n'[10]M1a - Model inputs'!P166,\n'[10]M1b - Model inputs'!P166,\n'[10]SM1 - DECC Scenario 3 equiv'!P166,\n'[10]SM2 - DECC Scenario 1 equiv'!P166,\n'[10]SM3 - DECC Scenario 2 equiv'!P166,\n'[10]SM4 - DNO Scenario 4 equiv'!P166)","v":0},{"$f":"CHOOSE(view,\n'[9]M1a - Model inputs'!Q166,\n'[9]M1b - Model inputs'!Q166,\n'[9]SM1 - DECC Scenario 3 equiv'!Q166,\n'[9]SM2 - DECC Scenario 1 equiv'!Q166,\n'[9]SM3 - DECC Scenario 2 equiv'!Q166,\n'[9]SM4 - DNO Scenario 4 equiv'!Q166,\n'[10]M1a - Model inputs'!Q166,\n'[10]M1b - Model inputs'!Q166,\n'[10]SM1 - DECC Scenario 3 equiv'!Q166,\n'[10]SM2 - DECC Scenario 1 equiv'!Q166,\n'[10]SM3 - DECC Scenario 2 equiv'!Q166,\n'[10]SM4 - DNO Scenario 4 equiv'!Q166)","v":0},{"$f":"CHOOSE(view,\n'[9]M1a - Model inputs'!R166,\n'[9]M1b - Model inputs'!R166,\n'[9]SM1 - DECC Scenario 3 equiv'!R166,\n'[9]SM2 - DECC Scenario 1 equiv'!R166,\n'[9]SM3 - DECC Scenario 2 equiv'!R166,\n'[9]SM4 - DNO Scenario 4 equiv'!R166,\n'[10]M1a - Model inputs'!R166,\n'[10]M1b - Model inputs'!R166,\n'[10]SM1 - DECC Scenario 3 equiv'!R166,\n'[10]SM2 - DECC Scenario 1 equiv'!R166,\n'[10]SM3 - DECC Scenario 2 equiv'!R166,\n'[10]SM4 - DNO Scenario 4 equiv'!R166)","v":0},{"$f":"CHOOSE(view,\n'[9]M1a - Model inputs'!S166,\n'[9]M1b - Model inputs'!S166,\n'[9]SM1 - DECC Scenario 3 equiv'!S166,\n'[9]SM2 - DECC Scenario 1 equiv'!S166,\n'[9]SM3 - DECC Scenario 2 equiv'!S166,\n'[9]SM4 - DNO Scenario 4 equiv'!S166,\n'[10]M1a - Model inputs'!S166,\n'[10]M1b - Model inputs'!S166,\n'[10]SM1 - DECC Scenario 3 equiv'!S166,\n'[10]SM2 - DECC Scenario 1 equiv'!S166,\n'[10]SM3 - DECC Scenario 2 equiv'!S166,\n'[10]SM4 - DNO Scenario 4 equiv'!S166)","v":0}]
[null,null,null,null,{"$f":"Input!E154","v":"Allocation to tree cutting"},null,"%",null,null,null,null,null,null,null,null,null,null,null,null,null,null,null,null,null,null,null,null,null,null,null,null,null,null,null,null,{"$f":"CHOOSE(view,\n'[9]M1a - Model inputs'!L167,\n'[9]M1b - Model inputs'!L167,\n'[9]SM1 - DECC Scenario 3 equiv'!L167,\n'[9]SM2 - DECC Scenario 1 equiv'!L167,\n'[9]SM3 - DECC Scenario 2 equiv'!L167,\n'[9]SM4 - DNO Scenario 4 equiv'!L167,\n'[10]M1a - Model inputs'!L167,\n'[10]M1b - Model inputs'!L167,\n'[10]SM1 - DECC Scenario 3 equiv'!L167,\n'[10]SM2 - DECC Scenario 1 equiv'!L167,\n'[10]SM3 - DECC Scenario 2 equiv'!L167,\n'[10]SM4 - DNO Scenario 4 equiv'!L167)","v":0},{"$f":"CHOOSE(view,\n'[9]M1a - Model inputs'!M167,\n'[9]M1b - Model inputs'!M167,\n'[9]SM1 - DECC Scenario 3 equiv'!M167,\n'[9]SM2 - DECC Scenario 1 equiv'!M167,\n'[9]SM3 - DECC Scenario 2 equiv'!M167,\n'[9]SM4 - DNO Scenario 4 equiv'!M167,\n'[10]M1a - Model inputs'!M167,\n'[10]M1b - Model inputs'!M167,\n'[10]SM1 - DECC Scenario 3 equiv'!M167,\n'[10]SM2 - DECC Scenario 1 equiv'!M167,\n'[10]SM3 - DECC Scenario 2 equiv'!M167,\n'[10]SM4 - DNO Scenario 4 equiv'!M167)","v":0},{"$f":"CHOOSE(view,\n'[9]M1a - Model inputs'!N167,\n'[9]M1b - Model inputs'!N167,\n'[9]SM1 - DECC Scenario 3 equiv'!N167,\n'[9]SM2 - DECC Scenario 1 equiv'!N167,\n'[9]SM3 - DECC Scenario 2 equiv'!N167,\n'[9]SM4 - DNO Scenario 4 equiv'!N167,\n'[10]M1a - Model inputs'!N167,\n'[10]M1b - Model inputs'!N167,\n'[10]SM1 - DECC Scenario 3 equiv'!N167,\n'[10]SM2 - DECC Scenario 1 equiv'!N167,\n'[10]SM3 - DECC Scenario 2 equiv'!N167,\n'[10]SM4 - DNO Scenario 4 equiv'!N167)","v":0},{"$f":"CHOOSE(view,\n'[9]M1a - Model inputs'!O167,\n'[9]M1b - Model inputs'!O167,\n'[9]SM1 - DECC Scenario 3 equiv'!O167,\n'[9]SM2 - DECC Scenario 1 equiv'!O167,\n'[9]SM3 - DECC Scenario 2 equiv'!O167,\n'[9]SM4 - DNO Scenario 4 equiv'!O167,\n'[10]M1a - Model inputs'!O167,\n'[10]M1b - Model inputs'!O167,\n'[10]SM1 - DECC Scenario 3 equiv'!O167,\n'[10]SM2 - DECC Scenario 1 equiv'!O167,\n'[10]SM3 - DECC Scenario 2 equiv'!O167,\n'[10]SM4 - DNO Scenario 4 equiv'!O167)","v":0},{"$f":"CHOOSE(view,\n'[9]M1a - Model inputs'!P167,\n'[9]M1b - Model inputs'!P167,\n'[9]SM1 - DECC Scenario 3 equiv'!P167,\n'[9]SM2 - DECC Scenario 1 equiv'!P167,\n'[9]SM3 - DECC Scenario 2 equiv'!P167,\n'[9]SM4 - DNO Scenario 4 equiv'!P167,\n'[10]M1a - Model inputs'!P167,\n'[10]M1b - Model inputs'!P167,\n'[10]SM1 - DECC Scenario 3 equiv'!P167,\n'[10]SM2 - DECC Scenario 1 equiv'!P167,\n'[10]SM3 - DECC Scenario 2 equiv'!P167,\n'[10]SM4 - DNO Scenario 4 equiv'!P167)","v":0},{"$f":"CHOOSE(view,\n'[9]M1a - Model inputs'!Q167,\n'[9]M1b - Model inputs'!Q167,\n'[9]SM1 - DECC Scenario 3 equiv'!Q167,\n'[9]SM2 - DECC Scenario 1 equiv'!Q167,\n'[9]SM3 - DECC Scenario 2 equiv'!Q167,\n'[9]SM4 - DNO Scenario 4 equiv'!Q167,\n'[10]M1a - Model inputs'!Q167,\n'[10]M1b - Model inputs'!Q167,\n'[10]SM1 - DECC Scenario 3 equiv'!Q167,\n'[10]SM2 - DECC Scenario 1 equiv'!Q167,\n'[10]SM3 - DECC Scenario 2 equiv'!Q167,\n'[10]SM4 - DNO Scenario 4 equiv'!Q167)","v":0},{"$f":"CHOOSE(view,\n'[9]M1a - Model inputs'!R167,\n'[9]M1b - Model inputs'!R167,\n'[9]SM1 - DECC Scenario 3 equiv'!R167,\n'[9]SM2 - DECC Scenario 1 equiv'!R167,\n'[9]SM3 - DECC Scenario 2 equiv'!R167,\n'[9]SM4 - DNO Scenario 4 equiv'!R167,\n'[10]M1a - Model inputs'!R167,\n'[10]M1b - Model inputs'!R167,\n'[10]SM1 - DECC Scenario 3 equiv'!R167,\n'[10]SM2 - DECC Scenario 1 equiv'!R167,\n'[10]SM3 - DECC Scenario 2 equiv'!R167,\n'[10]SM4 - DNO Scenario 4 equiv'!R167)","v":0},{"$f":"CHOOSE(view,\n'[9]M1a - Model inputs'!S167,\n'[9]M1b - Model inputs'!S167,\n'[9]SM1 - DECC Scenario 3 equiv'!S167,\n'[9]SM2 - DECC Scenario 1 equiv'!S167,\n'[9]SM3 - DECC Scenario 2 equiv'!S167,\n'[9]SM4 - DNO Scenario 4 equiv'!S167,\n'[10]M1a - Model inputs'!S167,\n'[10]M1b - Model inputs'!S167,\n'[10]SM1 - DECC Scenario 3 equiv'!S167,\n'[10]SM2 - DECC Scenario 1 equiv'!S167,\n'[10]SM3 - DECC Scenario 2 equiv'!S167,\n'[10]SM4 - DNO Scenario 4 equiv'!S167)","v":0}]
[null,null,null,null,{"$f":"Input!E155","v":"Allocation to controllable opex"},null,"%",null,null,null,null,null,null,null,null,null,null,null,null,null,null,null,null,null,null,null,null,null,null,null,null,null,null,null,null,{"$f":"CHOOSE(view,\n'[9]M1a - Model inputs'!L168,\n'[9]M1b - Model inputs'!L168,\n'[9]SM1 - DECC Scenario 3 equiv'!L168,\n'[9]SM2 - DECC Scenario 1 equiv'!L168,\n'[9]SM3 - DECC Scenario 2 equiv'!L168,\n'[9]SM4 - DNO Scenario 4 equiv'!L168,\n'[10]M1a - Model inputs'!L168,\n'[10]M1b - Model inputs'!L168,\n'[10]SM1 - DECC Scenario 3 equiv'!L168,\n'[10]SM2 - DECC Scenario 1 equiv'!L168,\n'[10]SM3 - DECC Scenario 2 equiv'!L168,\n'[10]SM4 - DNO Scenario 4 equiv'!L168)","v":0},{"$f":"CHOOSE(view,\n'[9]M1a - Model inputs'!M168,\n'[9]M1b - Model inputs'!M168,\n'[9]SM1 - DECC Scenario 3 equiv'!M168,\n'[9]SM2 - DECC Scenario 1 equiv'!M168,\n'[9]SM3 - DECC Scenario 2 equiv'!M168,\n'[9]SM4 - DNO Scenario 4 equiv'!M168,\n'[10]M1a - Model inputs'!M168,\n'[10]M1b - Model inputs'!M168,\n'[10]SM1 - DECC Scenario 3 equiv'!M168,\n'[10]SM2 - DECC Scenario 1 equiv'!M168,\n'[10]SM3 - DECC Scenario 2 equiv'!M168,\n'[10]SM4 - DNO Scenario 4 equiv'!M168)","v":0},{"$f":"CHOOSE(view,\n'[9]M1a - Model inputs'!N168,\n'[9]M1b - Model inputs'!N168,\n'[9]SM1 - DECC Scenario 3 equiv'!N168,\n'[9]SM2 - DECC Scenario 1 equiv'!N168,\n'[9]SM3 - DECC Scenario 2 equiv'!N168,\n'[9]SM4 - DNO Scenario 4 equiv'!N168,\n'[10]M1a - Model inputs'!N168,\n'[10]M1b - Model inputs'!N168,\n'[10]SM1 - DECC Scenario 3 equiv'!N168,\n'[10]SM2 - DECC Scenario 1 equiv'!N168,\n'[10]SM3 - DECC Scenario 2 equiv'!N168,\n'[10]SM4 - DNO Scenario 4 equiv'!N168)","v":0},{"$f":"CHOOSE(view,\n'[9]M1a - Model inputs'!O168,\n'[9]M1b - Model inputs'!O168,\n'[9]SM1 - DECC Scenario 3 equiv'!O168,\n'[9]SM2 - DECC Scenario 1 equiv'!O168,\n'[9]SM3 - DECC Scenario 2 equiv'!O168,\n'[9]SM4 - DNO Scenario 4 equiv'!O168,\n'[10]M1a - Model inputs'!O168,\n'[10]M1b - Model inputs'!O168,\n'[10]SM1 - DECC Scenario 3 equiv'!O168,\n'[10]SM2 - DECC Scenario 1 equiv'!O168,\n'[10]SM3 - DECC Scenario 2 equiv'!O168,\n'[10]SM4 - DNO Scenario 4 equiv'!O168)","v":0},{"$f":"CHOOSE(view,\n'[9]M1a - Model inputs'!P168,\n'[9]M1b - Model inputs'!P168,\n'[9]SM1 - DECC Scenario 3 equiv'!P168,\n'[9]SM2 - DECC Scenario 1 equiv'!P168,\n'[9]SM3 - DECC Scenario 2 equiv'!P168,\n'[9]SM4 - DNO Scenario 4 equiv'!P168,\n'[10]M1a - Model inputs'!P168,\n'[10]M1b - Model inputs'!P168,\n'[10]SM1 - DECC Scenario 3 equiv'!P168,\n'[10]SM2 - DECC Scenario 1 equiv'!P168,\n'[10]SM3 - DECC Scenario 2 equiv'!P168,\n'[10]SM4 - DNO Scenario 4 equiv'!P168)","v":0},{"$f":"CHOOSE(view,\n'[9]M1a - Model inputs'!Q168,\n'[9]M1b - Model inputs'!Q168,\n'[9]SM1 - DECC Scenario 3 equiv'!Q168,\n'[9]SM2 - DECC Scenario 1 equiv'!Q168,\n'[9]SM3 - DECC Scenario 2 equiv'!Q168,\n'[9]SM4 - DNO Scenario 4 equiv'!Q168,\n'[10]M1a - Model inputs'!Q168,\n'[10]M1b - Model inputs'!Q168,\n'[10]SM1 - DECC Scenario 3 equiv'!Q168,\n'[10]SM2 - DECC Scenario 1 equiv'!Q168,\n'[10]SM3 - DECC Scenario 2 equiv'!Q168,\n'[10]SM4 - DNO Scenario 4 equiv'!Q168)","v":0},{"$f":"CHOOSE(view,\n'[9]M1a - Model inputs'!R168,\n'[9]M1b - Model inputs'!R168,\n'[9]SM1 - DECC Scenario 3 equiv'!R168,\n'[9]SM2 - DECC Scenario 1 equiv'!R168,\n'[9]SM3 - DECC Scenario 2 equiv'!R168,\n'[9]SM4 - DNO Scenario 4 equiv'!R168,\n'[10]M1a - Model inputs'!R168,\n'[10]M1b - Model inputs'!R168,\n'[10]SM1 - DECC Scenario 3 equiv'!R168,\n'[10]SM2 - DECC Scenario 1 equiv'!R168,\n'[10]SM3 - DECC Scenario 2 equiv'!R168,\n'[10]SM4 - DNO Scenario 4 equiv'!R168)","v":0},{"$f":"CHOOSE(view,\n'[9]M1a - Model inputs'!S168,\n'[9]M1b - Model inputs'!S168,\n'[9]SM1 - DECC Scenario 3 equiv'!S168,\n'[9]SM2 - DECC Scenario 1 equiv'!S168,\n'[9]SM3 - DECC Scenario 2 equiv'!S168,\n'[9]SM4 - DNO Scenario 4 equiv'!S168,\n'[10]M1a - Model inputs'!S168,\n'[10]M1b - Model inputs'!S168,\n'[10]SM1 - DECC Scenario 3 equiv'!S168,\n'[10]SM2 - DECC Scenario 1 equiv'!S168,\n'[10]SM3 - DECC Scenario 2 equiv'!S168,\n'[10]SM4 - DNO Scenario 4 equiv'!S168)","v":0}]
[]
[null,null,null,null,{"$f":"Input!E157","v":"Spare 1"},null,"£m 12/13 prices",null,null,null,null,null,null,null,null,null,null,null,null,null,null,null,null,null,null,null,null,null,null,null,null,null,null,null,null,{"$f":"AJ25","v":0},{"$f":"AK25","v":0},{"$f":"AL25","v":0},0,{"$f":"AN25","v":0},0,0,0]
[null,null,null,null,{"$f":"Input!E158","v":"Allocation to load related capex"},null,"%"]
[null,null,null,null,{"$f":"Input!E159","v":"Allocation to non-load related capex - asset replacement"},null,"%"]
[null,null,null,null,{"$f":"Input!E160","v":"Allocation to non-load related capex - other"},null,"%"]
[null,null,null,null,{"$f":"Input!E161","v":"Allocation to faults"},null,"%"]
[null,null,null,null,{"$f":"Input!E162","v":"Allocation to tree cutting"},null,"%"]
[null,null,null,null,{"$f":"Input!E163","v":"Allocation to controllable opex"},null,"%"]
[]
[null,null,null,null,{"$f":"E26","v":"Spare 2"},null,"£m 12/13 prices",null,null,null,null,null,null,null,null,null,null,null,null,null,null,null,null,null,null,null,null,null,null,null,null,null,null,null,null,{"$f":"AJ26","v":0},0,0,0,0,0,0,0]
[null,null,null,null,{"$f":"Input!E166","v":"Allocation to load related capex"},null,"%"]
[null,null,null,null,{"$f":"Input!E167","v":"Allocation to non-load related capex - asset replacement"},null,"%"]
[null,null,null,null,{"$f":"Input!E168","v":"Allocation to non-load related capex - other"},null,"%"]
[null,null,null,null,{"$f":"Input!E169","v":"Allocation to faults"},null,"%"]
[null,null,null,null,{"$f":"Input!E170","v":"Allocation to tree cutting"},null,"%"]
[null,null,null,null,{"$f":"Input!E171","v":"Allocation to controllable opex"},null,"%"]
[]
[null,null,null,null,{"$f":"E27","v":"Spare 3"},null,"£m 12/13 prices",null,null,null,null,null,null,null,null,null,null,null,null,null,null,null,null,null,null,null,null,null,null,null,null,null,null,null,null,{"$f":"AJ27","v":0},0,0,0,0,0,0,0]
[null,null,null,null,{"$f":"Input!E174","v":"Allocation to load related capex"},null,"%"]
[null,null,null,null,{"$f":"Input!E175","v":"Allocation to non-load related capex - asset replacement"},null,"%"]
[null,null,null,null,{"$f":"Input!E176","v":"Allocation to non-load related capex - other"},null,"%"]
[null,null,null,null,{"$f":"Input!E177","v":"Allocation to faults"},null,"%"]
[null,null,null,null,{"$f":"Input!E178","v":"Allocation to tree cutting"},null,"%"]
[null,null,null,null,{"$f":"Input!E179","v":"Allocation to controllable opex"},null,"%"]
[]
[null,null,null,null,{"$f":"E28","v":"Allowed innovation roll-out mechanism"},null,"£m 12/13 prices",null,null,null,null,null,null,null,null,null,null,null,null,null,null,null,null,null,null,null,null,null,null,null,null,null,null,null,null,{"$f":"AJ28","v":0},{"$f":"AK28","v":0},0,0,0,0,0,0]
[null,null,null,null,{"$f":"Input!E182","v":"Allocation to load related capex"},null,"%",null,null,null,null,null,null,null,null,null,null,null,null,null,null,null,null,null,null,null,null,null,null,null,null,null,null,null,null,0.25,0.25,0.25,0.25,0.25,0.25,0.25,0.25]
[null,null,null,null,{"$f":"Input!E183","v":"Allocation to non-load related capex - asset replacement"},null,"%"]
[null,null,null,null,{"$f":"Input!E184","v":"Allocation to non-load related capex - other"},null,"%",null,null,null,null,null,null,null,null,null,null,null,null,null,null,null,null,null,null,null,null,null,null,null,null,null,null,null,null,0.75,0.75,0.75,0.75,0.75,0.75,0.75,0.75]
[null,null,null,null,{"$f":"Input!E185","v":"Allocation to faults"},null,"%"]
[null,null,null,null,{"$f":"Input!E186","v":"Allocation to tree cutting"},null,"%"]
[null,null,null,null,{"$f":"Input!E187","v":"Allocation to controllable opex"},null,"%"]
[]
[null,null,null,null,{"$f":"Input!E189","v":"Variant allowed load related capex"},null,"£m 12/13 prices",null,null,null,null,null,null,null,null,null,null,null,null,null,null,null,null,null,null,null,null,null,null,null,null,null,null,null,null,{"$f":"(AJ$101*AJ102)+(AJ$109*AJ110)+(AJ$117*AJ118)+(AJ$125*AJ126)+(AJ$133*AJ134)+(AJ$141*AJ142)+(AJ$149*AJ150)+(AJ$157*AJ158)+(AJ$165*AJ166)+(AJ$173*AJ174)+(AJ$181*AJ182)","v":0},0,0,0,0,0,0,0]
[null,null,null,null,{"$f":"Input!E190","v":"Variant allowed non-load related capex - asset replacement"},null,"£m 12/13 prices",null,null,null,null,null,null,null,null,null,null,null,null,null,null,null,null,null,null,null,null,null,null,null,null,null,null,null,null,0,0.51073509957364771,0.53747017901434113,8.2710855339999209E-2,8.373189528061846E-2,8.4825555047030043E-2,8.5921181509114791E-2,0]
[null,null,null,null,{"$f":"Input!E191","v":"Variant allowed non-load related capex - other"},null,"£m 12/13 prices",null,null,null,null,null,null,null,null,null,null,null,null,null,null,null,null,null,null,null,null,null,null,null,null,null,null,null,null,0.19439062183346598,0.19331542685622108,0.19369917082533533,0.19260900499971864,0.19386480459981845,0.19487437340147956,0.19379644758559239,0.19458037090586253]
[null,null,null,null,{"$f":"Input!E192","v":"Variant allowed faults"},null,"£m 12/13 prices",null,null,null,null,null,null,null,null,null,null,null,null,null,null,null,null,null,null,null,null,null,null,null,null,null,null,null,null,0,0,7.1392808490062399E-3,2.1101037862628444E-2,2.1419393738102966E-2,2.1745523497731501E-2,2.2077403226592886E-2,0]
[null,null,null,null,{"$f":"Input!E193","v":"Variant allowed tree cutting"},null,"£m 12/13 prices",null,null,null,null,null,null,null,null,null,null,null,null,null,null,null,null,null,null,null,null,null,null,null,null,null,null,null,null,0,0,0,0,0,0,0,0]
[null,null,null,null,{"$f":"Input!E194","v":"Variant allowed controllable opex"},null,"£m 12/13 prices",null,null,null,null,null,null,null,null,null,null,null,null,null,null,null,null,null,null,null,null,null,null,null,null,null,null,null,null,6.3590832902609765E-2,7.2802172911725915E-2,8.0313342951709887E-2,8.3220841308843552E-2,8.0679688326649041E-2,6.9872890774575203E-2,0,0]
[]
[null,null,null,"Actual"]
[]
[null,null,null,null,{"$f":"Input!E198","v":"Actual load related capex"},null,"£m 12/13 prices",null,null,null,null,null,null,null,null,null,null,null,null,null,null,null,null,null,null,null,null,null,null,null,null,null,null,null,null,{"$f":"AJ12","v":0},0,0,0,0,0,0,0]
[null,null,null,null,{"$f":"Input!E199","v":"Actual non-load related capex - asset replacement"},null,"£m 12/13 prices",null,null,null,null,null,null,null,null,null,null,null,null,null,null,null,null,null,null,null,null,null,null,null,null,null,null,null,null,0,0,0,0,0,0,0,0]
[null,null,null,null,{"$f":"Input!E200","v":"Actual non-load related capex - other"},null,"£m 12/13 prices",null,null,null,null,null,null,null,null,null,null,null,null,null,null,null,null,null,null,null,null,null,null,null,null,null,null,null,null,0,0,0,0,0,0,0,0]
[null,null,null,null,{"$f":"Input!E201","v":"Actual faults"},null,"£m 12/13 prices",null,null,null,null,null,null,null,null,null,null,null,null,null,null,null,null,null,null,null,null,null,null,null,null,null,null,null,null,{"$f":"AJ15","v":0},0,0,0,0,0,0,0]
[null,null,null,null,{"$f":"Input!E202","v":"Actual tree cutting"},null,"£m 12/13 prices",null,null,null,null,null,null,null,null,null,null,null,null,null,null,null,null,null,null,null,null,null,null,null,null,null,null,null,null,0,0,0,0,0,0,0,0]
[null,null,null,null,{"$f":"Input!E203","v":"Actual controllable opex"},null,"£m 12/13 prices",null,null,null,null,null,null,null,null,null,null,null,null,null,null,null,null,null,null,null,null,null,null,null,null,null,null,null,null,{"$f":"AJ17","v":0},0,0,0,0,0,0,0]
[]
[null,null,"Non-totex (all catergorised as 'opex' for tax purposes)"]
[]
[null,null,null,null,"Non-controllable opex (excluding Exit Charges)",null,"£m 12/13 prices",null,null,null,null,null,null,null,null,null,null,null,null,null,null,null,null,null,null,null,null,null,null,null,null,null,null,null,null,{"$f":"CHOOSE(view,\nSUM('[9]M1a - Model inputs'!L115:L121)+SUM('[9]M1a - Model inputs'!L123:L124)+SUM('[9]M1a - Model inputs'!L127:L127),\nSUM('[9]M1b - Model inputs'!L115:L121)+SUM('[9]M1b - Model inputs'!L123:L124)+SUM('[9]M1b - Model inputs'!L127:L127),\nSUM('[9]SM1 - DECC Scenario 3 equiv'!L115:L121)+SUM('[9]SM1 - DECC Scenario 3 equiv'!L123:L124)+SUM('[9]SM1 - DECC Scenario 3 equiv'!L127:L127),\nSUM('[9]SM2 - DECC Scenario 1 equiv'!L115:L121)+SUM('[9]SM2 - DECC Scenario 1 equiv'!L123:L124)+SUM('[9]SM2 - DECC Scenario 1 equiv'!L127:L127),\nSUM('[9]SM3 - DECC Scenario 2 equiv'!L115:L121)+SUM('[9]SM3 - DECC Scenario 2 equiv'!L123:L124)+SUM('[9]SM3 - DECC Scenario 2 equiv'!L127:L127),\nSUM('[9]SM4 - DNO Scenario 4 equiv'!L115:L121)+SUM('[9]SM4 - DNO Scenario 4 equiv'!L123:L124)+SUM('[9]SM4 - DNO Scenario 4 equiv'!L127:L127),\nSUM('[10]M1a - Model inputs'!L115:L121)+SUM('[10]M1a - Model inputs'!L123:L124)+SUM('[10]M1a - Model inputs'!L127:L127),\nSUM('[10]M1b - Model inputs'!L115:L121)+SUM('[10]M1b - Model inputs'!L123:L124)+SUM('[10]M1b - Model inputs'!L127:L127),\nSUM('[10]SM1 - DECC Scenario 3 equiv'!L115:L121)+SUM('[10]SM1 - DECC Scenario 3 equiv'!L123:L124)+SUM('[10]SM1 - DECC Scenario 3 equiv'!L127:L127),\nSUM('[10]SM2 - DECC Scenario 1 equiv'!L115:L121)+SUM('[10]SM2 - DECC Scenario 1 equiv'!L123:L124)+SUM('[10]SM2 - DECC Scenario 1 equiv'!L127:L127),\nSUM('[10]SM3 - DECC Scenario 2 equiv'!L115:L121)+SUM('[10]SM3 - DECC Scenario 2 equiv'!L123:L124)+SUM('[10]SM3 - DECC Scenario 2 equiv'!L127:L127),\nSUM('[10]SM4 - DNO Scenario 4 equiv'!L115:L121)+SUM('[10]SM4 - DNO Scenario 4 equiv'!L123:L124)+SUM('[10]SM4 - DNO Scenario 4 equiv'!L127:L127))","v":16.296967947266179},{"$f":"CHOOSE(view,\nSUM('[9]M1a - Model inputs'!M115:M121)+SUM('[9]M1a - Model inputs'!M123:M124)+SUM('[9]M1a - Model inputs'!M127:M127),\nSUM('[9]M1b - Model inputs'!M115:M121)+SUM('[9]M1b - Model inputs'!M123:M124)+SUM('[9]M1b - Model inputs'!M127:M127),\nSUM('[9]SM1 - DECC Scenario 3 equiv'!M115:M121)+SUM('[9]SM1 - DECC Scenario 3 equiv'!M123:M124)+SUM('[9]SM1 - DECC Scenario 3 equiv'!M127:M127),\nSUM('[9]SM2 - DECC Scenario 1 equiv'!M115:M121)+SUM('[9]SM2 - DECC Scenario 1 equiv'!M123:M124)+SUM('[9]SM2 - DECC Scenario 1 equiv'!M127:M127),\nSUM('[9]SM3 - DECC Scenario 2 equiv'!M115:M121)+SUM('[9]SM3 - DECC Scenario 2 equiv'!M123:M124)+SUM('[9]SM3 - DECC Scenario 2 equiv'!M127:M127),\nSUM('[9]SM4 - DNO Scenario 4 equiv'!M115:M121)+SUM('[9]SM4 - DNO Scenario 4 equiv'!M123:M124)+SUM('[9]SM4 - DNO Scenario 4 equiv'!M127:M127),\nSUM('[10]M1a - Model inputs'!M115:M121)+SUM('[10]M1a - Model inputs'!M123:M124)+SUM('[10]M1a - Model inputs'!M127:M127),\nSUM('[10]M1b - Model inputs'!M115:M121)+SUM('[10]M1b - Model inputs'!M123:M124)+SUM('[10]M1b - Model inputs'!M127:M127),\nSUM('[10]SM1 - DECC Scenario 3 equiv'!M115:M121)+SUM('[10]SM1 - DECC Scenario 3 equiv'!M123:M124)+SUM('[10]SM1 - DECC Scenario 3 equiv'!M127:M127),\nSUM('[10]SM2 - DECC Scenario 1 equiv'!M115:M121)+SUM('[10]SM2 - DECC Scenario 1 equiv'!M123:M124)+SUM('[10]SM2 - DECC Scenario 1 equiv'!M127:M127),\nSUM('[10]SM3 - DECC Scenario 2 equiv'!M115:M121)+SUM('[10]SM3 - DECC Scenario 2 equiv'!M123:M124)+SUM('[10]SM3 - DECC Scenario 2 equiv'!M127:M127),\nSUM('[10]SM4 - DNO Scenario 4 equiv'!M115:M121)+SUM('[10]SM4 - DNO Scenario 4 equiv'!M123:M124)+SUM('[10]SM4 - DNO Scenario 4 equiv'!M127:M127))","v":16.327048775035305},{"$f":"CHOOSE(view,\nSUM('[9]M1a - Model inputs'!N115:N121)+SUM('[9]M1a - Model inputs'!N123:N124)+SUM('[9]M1a - Model inputs'!N127:N127),\nSUM('[9]M1b - Model inputs'!N115:N121)+SUM('[9]M1b - Model inputs'!N123:N124)+SUM('[9]M1b - Model inputs'!N127:N127),\nSUM('[9]SM1 - DECC Scenario 3 equiv'!N115:N121)+SUM('[9]SM1 - DECC Scenario 3 equiv'!N123:N124)+SUM('[9]SM1 - DECC Scenario 3 equiv'!N127:N127),\nSUM('[9]SM2 - DECC Scenario 1 equiv'!N115:N121)+SUM('[9]SM2 - DECC Scenario 1 equiv'!N123:N124)+SUM('[9]SM2 - DECC Scenario 1 equiv'!N127:N127),\nSUM('[9]SM3 - DECC Scenario 2 equiv'!N115:N121)+SUM('[9]SM3 - DECC Scenario 2 equiv'!N123:N124)+SUM('[9]SM3 - DECC Scenario 2 equiv'!N127:N127),\nSUM('[9]SM4 - DNO Scenario 4 equiv'!N115:N121)+SUM('[9]SM4 - DNO Scenario 4 equiv'!N123:N124)+SUM('[9]SM4 - DNO Scenario 4 equiv'!N127:N127),\nSUM('[10]M1a - Model inputs'!N115:N121)+SUM('[10]M1a - Model inputs'!N123:N124)+SUM('[10]M1a - Model inputs'!N127:N127),\nSUM('[10]M1b - Model inputs'!N115:N121)+SUM('[10]M1b - Model inputs'!N123:N124)+SUM('[10]M1b - Model inputs'!N127:N127),\nSUM('[10]SM1 - DECC Scenario 3 equiv'!N115:N121)+SUM('[10]SM1 - DECC Scenario 3 equiv'!N123:N124)+SUM('[10]SM1 - DECC Scenario 3 equiv'!N127:N127),\nSUM('[10]SM2 - DECC Scenario 1 equiv'!N115:N121)+SUM('[10]SM2 - DECC Scenario 1 equiv'!N123:N124)+SUM('[10]SM2 - DECC Scenario 1 equiv'!N127:N127),\nSUM('[10]SM3 - DECC Scenario 2 equiv'!N115:N121)+SUM('[10]SM3 - DECC Scenario 2 equiv'!N123:N124)+SUM('[10]SM3 - DECC Scenario 2 equiv'!N127:N127),\nSUM('[10]SM4 - DNO Scenario 4 equiv'!N115:N121)+SUM('[10]SM4 - DNO Scenario 4 equiv'!N123:N124)+SUM('[10]SM4 - DNO Scenario 4 equiv'!N127:N127))","v":20.160867234696433},{"$f":"CHOOSE(view,\nSUM('[9]M1a - Model inputs'!O115:O121)+SUM('[9]M1a - Model inputs'!O123:O124)+SUM('[9]M1a - Model inputs'!O127:O127),\nSUM('[9]M1b - Model inputs'!O115:O121)+SUM('[9]M1b - Model inputs'!O123:O124)+SUM('[9]M1b - Model inputs'!O127:O127),\nSUM('[9]SM1 - DECC Scenario 3 equiv'!O115:O121)+SUM('[9]SM1 - DECC Scenario 3 equiv'!O123:O124)+SUM('[9]SM1 - DECC Scenario 3 equiv'!O127:O127),\nSUM('[9]SM2 - DECC Scenario 1 equiv'!O115:O121)+SUM('[9]SM2 - DECC Scenario 1 equiv'!O123:O124)+SUM('[9]SM2 - DECC Scenario 1 equiv'!O127:O127),\nSUM('[9]SM3 - DECC Scenario 2 equiv'!O115:O121)+SUM('[9]SM3 - DECC Scenario 2 equiv'!O123:O124)+SUM('[9]SM3 - DECC Scenario 2 equiv'!O127:O127),\nSUM('[9]SM4 - DNO Scenario 4 equiv'!O115:O121)+SUM('[9]SM4 - DNO Scenario 4 equiv'!O123:O124)+SUM('[9]SM4 - DNO Scenario 4 equiv'!O127:O127),\nSUM('[10]M1a - Model inputs'!O115:O121)+SUM('[10]M1a - Model inputs'!O123:O124)+SUM('[10]M1a - Model inputs'!O127:O127),\nSUM('[10]M1b - Model inputs'!O115:O121)+SUM('[10]M1b - Model inputs'!O123:O124)+SUM('[10]M1b - Model inputs'!O127:O127),\nSUM('[10]SM1 - DECC Scenario 3 equiv'!O115:O121)+SUM('[10]SM1 - DECC Scenario 3 equiv'!O123:O124)+SUM('[10]SM1 - DECC Scenario 3 equiv'!O127:O127),\nSUM('[10]SM2 - DECC Scenario 1 equiv'!O115:O121)+SUM('[10]SM2 - DECC Scenario 1 equiv'!O123:O124)+SUM('[10]SM2 - DECC Scenario 1 equiv'!O127:O127),\nSUM('[10]SM3 - DECC Scenario 2 equiv'!O115:O121)+SUM('[10]SM3 - DECC Scenario 2 equiv'!O123:O124)+SUM('[10]SM3 - DECC Scenario 2 equiv'!O127:O127),\nSUM('[10]SM4 - DNO Scenario 4 equiv'!O115:O121)+SUM('[10]SM4 - DNO Scenario 4 equiv'!O123:O124)+SUM('[10]SM4 - DNO Scenario 4 equiv'!O127:O127))","v":20.317186001492914},{"$f":"CHOOSE(view,\nSUM('[9]M1a - Model inputs'!P115:P121)+SUM('[9]M1a - Model inputs'!P123:P124)+SUM('[9]M1a - Model inputs'!P127:P127),\nSUM('[9]M1b - Model inputs'!P115:P121)+SUM('[9]M1b - Model inputs'!P123:P124)+SUM('[9]M1b - Model inputs'!P127:P127),\nSUM('[9]SM1 - DECC Scenario 3 equiv'!P115:P121)+SUM('[9]SM1 - DECC Scenario 3 equiv'!P123:P124)+SUM('[9]SM1 - DECC Scenario 3 equiv'!P127:P127),\nSUM('[9]SM2 - DECC Scenario 1 equiv'!P115:P121)+SUM('[9]SM2 - DECC Scenario 1 equiv'!P123:P124)+SUM('[9]SM2 - DECC Scenario 1 equiv'!P127:P127),\nSUM('[9]SM3 - DECC Scenario 2 equiv'!P115:P121)+SUM('[9]SM3 - DECC Scenario 2 equiv'!P123:P124)+SUM('[9]SM3 - DECC Scenario 2 equiv'!P127:P127),\nSUM('[9]SM4 - DNO Scenario 4 equiv'!P115:P121)+SUM('[9]SM4 - DNO Scenario 4 equiv'!P123:P124)+SUM('[9]SM4 - DNO Scenario 4 equiv'!P127:P127),\nSUM('[10]M1a - Model inputs'!P115:P121)+SUM('[10]M1a - Model inputs'!P123:P124)+SUM('[10]M1a - Model inputs'!P127:P127),\nSUM('[10]M1b - Model inputs'!P115:P121)+SUM('[10]M1b - Model inputs'!P123:P124)+SUM('[10]M1b - Model inputs'!P127:P127),\nSUM('[10]SM1 - DECC Scenario 3 equiv'!P115:P121)+SUM('[10]SM1 - DECC Scenario 3 equiv'!P123:P124)+SUM('[10]SM1 - DECC Scenario 3 equiv'!P127:P127),\nSUM('[10]SM2 - DECC Scenario 1 equiv'!P115:P121)+SUM('[10]SM2 - DECC Scenario 1 equiv'!P123:P124)+SUM('[10]SM2 - DECC Scenario 1 equiv'!P127:P127),\nSUM('[10]SM3 - DECC Scenario 2 equiv'!P115:P121)+SUM('[10]SM3 - DECC Scenario 2 equiv'!P123:P124)+SUM('[10]SM3 - DECC Scenario 2 equiv'!P127:P127),\nSUM('[10]SM4 - DNO Scenario 4 equiv'!P115:P121)+SUM('[10]SM4 - DNO Scenario 4 equiv'!P123:P124)+SUM('[10]SM4 - DNO Scenario 4 equiv'!P127:P127))","v":20.212554118427708},{"$f":"CHOOSE(view,\nSUM('[9]M1a - Model inputs'!Q115:Q121)+SUM('[9]M1a - Model inputs'!Q123:Q124)+SUM('[9]M1a - Model inputs'!Q127:Q127),\nSUM('[9]M1b - Model inputs'!Q115:Q121)+SUM('[9]M1b - Model inputs'!Q123:Q124)+SUM('[9]M1b - Model inputs'!Q127:Q127),\nSUM('[9]SM1 - DECC Scenario 3 equiv'!Q115:Q121)+SUM('[9]SM1 - DECC Scenario 3 equiv'!Q123:Q124)+SUM('[9]SM1 - DECC Scenario 3 equiv'!Q127:Q127),\nSUM('[9]SM2 - DECC Scenario 1 equiv'!Q115:Q121)+SUM('[9]SM2 - DECC Scenario 1 equiv'!Q123:Q124)+SUM('[9]SM2 - DECC Scenario 1 equiv'!Q127:Q127),\nSUM('[9]SM3 - DECC Scenario 2 equiv'!Q115:Q121)+SUM('[9]SM3 - DECC Scenario 2 equiv'!Q123:Q124)+SUM('[9]SM3 - DECC Scenario 2 equiv'!Q127:Q127),\nSUM('[9]SM4 - DNO Scenario 4 equiv'!Q115:Q121)+SUM('[9]SM4 - DNO Scenario 4 equiv'!Q123:Q124)+SUM('[9]SM4 - DNO Scenario 4 equiv'!Q127:Q127),\nSUM('[10]M1a - Model inputs'!Q115:Q121)+SUM('[10]M1a - Model inputs'!Q123:Q124)+SUM('[10]M1a - Model inputs'!Q127:Q127),\nSUM('[10]M1b - Model inputs'!Q115:Q121)+SUM('[10]M1b - Model inputs'!Q123:Q124)+SUM('[10]M1b - Model inputs'!Q127:Q127),\nSUM('[10]SM1 - DECC Scenario 3 equiv'!Q115:Q121)+SUM('[10]SM1 - DECC Scenario 3 equiv'!Q123:Q124)+SUM('[10]SM1 - DECC Scenario 3 equiv'!Q127:Q127),\nSUM('[10]SM2 - DECC Scenario 1 equiv'!Q115:Q121)+SUM('[10]SM2 - DECC Scenario 1 equiv'!Q123:Q124)+SUM('[10]SM2 - DECC Scenario 1 equiv'!Q127:Q127),\nSUM('[10]SM3 - DECC Scenario 2 equiv'!Q115:Q121)+SUM('[10]SM3 - DECC Scenario 2 equiv'!Q123:Q124)+SUM('[10]SM3 - DECC Scenario 2 equiv'!Q127:Q127),\nSUM('[10]SM4 - DNO Scenario 4 equiv'!Q115:Q121)+SUM('[10]SM4 - DNO Scenario 4 equiv'!Q123:Q124)+SUM('[10]SM4 - DNO Scenario 4 equiv'!Q127:Q127))","v":20.567048615838431},{"$f":"CHOOSE(view,\nSUM('[9]M1a - Model inputs'!R115:R121)+SUM('[9]M1a - Model inputs'!R123:R124)+SUM('[9]M1a - Model inputs'!R127:R127),\nSUM('[9]M1b - Model inputs'!R115:R121)+SUM('[9]M1b - Model inputs'!R123:R124)+SUM('[9]M1b - Model inputs'!R127:R127),\nSUM('[9]SM1 - DECC Scenario 3 equiv'!R115:R121)+SUM('[9]SM1 - DECC Scenario 3 equiv'!R123:R124)+SUM('[9]SM1 - DECC Scenario 3 equiv'!R127:R127),\nSUM('[9]SM2 - DECC Scenario 1 equiv'!R115:R121)+SUM('[9]SM2 - DECC Scenario 1 equiv'!R123:R124)+SUM('[9]SM2 - DECC Scenario 1 equiv'!R127:R127),\nSUM('[9]SM3 - DECC Scenario 2 equiv'!R115:R121)+SUM('[9]SM3 - DECC Scenario 2 equiv'!R123:R124)+SUM('[9]SM3 - DECC Scenario 2 equiv'!R127:R127),\nSUM('[9]SM4 - DNO Scenario 4 equiv'!R115:R121)+SUM('[9]SM4 - DNO Scenario 4 equiv'!R123:R124)+SUM('[9]SM4 - DNO Scenario 4 equiv'!R127:R127),\nSUM('[10]M1a - Model inputs'!R115:R121)+SUM('[10]M1a - Model inputs'!R123:R124)+SUM('[10]M1a - Model inputs'!R127:R127),\nSUM('[10]M1b - Model inputs'!R115:R121)+SUM('[10]M1b - Model inputs'!R123:R124)+SUM('[10]M1b - Model inputs'!R127:R127),\nSUM('[10]SM1 - DECC Scenario 3 equiv'!R115:R121)+SUM('[10]SM1 - DECC Scenario 3 equiv'!R123:R124)+SUM('[10]SM1 - DECC Scenario 3 equiv'!R127:R127),\nSUM('[10]SM2 - DECC Scenario 1 equiv'!R115:R121)+SUM('[10]SM2 - DECC Scenario 1 equiv'!R123:R124)+SUM('[10]SM2 - DECC Scenario 1 equiv'!R127:R127),\nSUM('[10]SM3 - DECC Scenario 2 equiv'!R115:R121)+SUM('[10]SM3 - DECC Scenario 2 equiv'!R123:R124)+SUM('[10]SM3 - DECC Scenario 2 equiv'!R127:R127),\nSUM('[10]SM4 - DNO Scenario 4 equiv'!R115:R121)+SUM('[10]SM4 - DNO Scenario 4 equiv'!R123:R124)+SUM('[10]SM4 - DNO Scenario 4 equiv'!R127:R127))","v":20.264927205015422},{"$f":"CHOOSE(view,\nSUM('[9]M1a - Model inputs'!S115:S121)+SUM('[9]M1a - Model inputs'!S123:S124)+SUM('[9]M1a - Model inputs'!S127:S127),\nSUM('[9]M1b - Model inputs'!S115:S121)+SUM('[9]M1b - Model inputs'!S123:S124)+SUM('[9]M1b - Model inputs'!S127:S127),\nSUM('[9]SM1 - DECC Scenario 3 equiv'!S115:S121)+SUM('[9]SM1 - DECC Scenario 3 equiv'!S123:S124)+SUM('[9]SM1 - DECC Scenario 3 equiv'!S127:S127),\nSUM('[9]SM2 - DECC Scenario 1 equiv'!S115:S121)+SUM('[9]SM2 - DECC Scenario 1 equiv'!S123:S124)+SUM('[9]SM2 - DECC Scenario 1 equiv'!S127:S127),\nSUM('[9]SM3 - DECC Scenario 2 equiv'!S115:S121)+SUM('[9]SM3 - DECC Scenario 2 equiv'!S123:S124)+SUM('[9]SM3 - DECC Scenario 2 equiv'!S127:S127),\nSUM('[9]SM4 - DNO Scenario 4 equiv'!S115:S121)+SUM('[9]SM4 - DNO Scenario 4 equiv'!S123:S124)+SUM('[9]SM4 - DNO Scenario 4 equiv'!S127:S127),\nSUM('[10]M1a - Model inputs'!S115:S121)+SUM('[10]M1a - Model inputs'!S123:S124)+SUM('[10]M1a - Model inputs'!S127:S127),\nSUM('[10]M1b - Model inputs'!S115:S121)+SUM('[10]M1b - Model inputs'!S123:S124)+SUM('[10]M1b - Model inputs'!S127:S127),\nSUM('[10]SM1 - DECC Scenario 3 equiv'!S115:S121)+SUM('[10]SM1 - DECC Scenario 3 equiv'!S123:S124)+SUM('[10]SM1 - DECC Scenario 3 equiv'!S127:S127),\nSUM('[10]SM2 - DECC Scenario 1 equiv'!S115:S121)+SUM('[10]SM2 - DECC Scenario 1 equiv'!S123:S124)+SUM('[10]SM2 - DECC Scenario 1 equiv'!S127:S127),\nSUM('[10]SM3 - DECC Scenario 2 equiv'!S115:S121)+SUM('[10]SM3 - DECC Scenario 2 equiv'!S123:S124)+SUM('[10]SM3 - DECC Scenario 2 equiv'!S127:S127),\nSUM('[10]SM4 - DNO Scenario 4 equiv'!S115:S121)+SUM('[10]SM4 - DNO Scenario 4 equiv'!S123:S124)+SUM('[10]SM4 - DNO Scenario 4 equiv'!S127:S127))","v":20.599421761433042}]
[null,null,null,null,"Non-controllable opex (Exit Charges)",null,"£m 12/13 prices",null,null,null,null,null,null,null,null,null,null,null,null,null,null,null,null,null,null,null,null,null,null,null,null,null,null,null,null,{"$f":"AJ29","v":8.4735858944771767},{"$f":"AK29","v":8.4828858944771781},8.4921858944771778,8.6444858944771781,8.6444858944771781,8.6444858944771781,8.6444858944771781,8.787485894477177]
[null,null,null,null,"Non-controllable opex",null,"£m 12/13 prices",null,null,null,null,null,null,null,null,null,null,null,null,null,null,null,null,null,null,null,null,null,null,null,null,null,null,null,null,{"$f":"SUM(AJ207:AJ208)","v":24.770553841743357},{"$f":"SUM(AK207:AK208)","v":24.809934669512483},28.65305312917361,28.961671895970092,28.857040012904886,29.211534510315609,28.9094130994926,29.386907655910221]
[]
[null,"Direct allowed revenue terms (DARTs)"]
[]
[null,null,null,null,{"$f":"E30","v":"Pension scheme established deficit revenue allowances"},null,"£m 12/13 prices",null,null,null,null,null,null,null,null,null,null,null,null,null,null,null,null,null,null,null,null,null,null,null,null,null,null,null,null,{"$f":"AJ30","v":24.991728353423724},24.991728353423724,24.991728353423724,24.991728353423724,24.991728353423724,24.991728353423724,24.991728353423724,24.991728353423724]
[]
[null,null,null,null,"Pension true-up from previous price controls",null,"£m 12/13 prices"]
[]
[null,null,null,null,{"$f":"Input!E217","v":"Revenue adjustment from previous controls (Base)"},null,"£m 12/13 prices",null,null,null,null,null,null,null,null,null,null,null,null,null,null,null,null,null,null,null,null,null,null,null,null,null,null,null,null,{"$f":"[12]DirectedValues!K19","v":2.0938014500266657},{"$f":"[12]DirectedValues!L19","v":2.1826414455512975},{"$f":"[12]DirectedValues!M19","v":2.2752509220860389},{"$f":"[12]DirectedValues!N19","v":2.3717898187101492},{"$f":"[12]DirectedValues!O19","v":2.4724248607180206},{"$f":"[12]DirectedValues!P19","v":2.577329847558286},{"$f":"[12]DirectedValues!Q19","v":2.6866859529901843},{"$f":"[12]DirectedValues!R19","v":2.8006820379755579}]
[null,null,null,null,{"$f":"Input!E218","v":"Legacy price control allowed revenue adjustment"},null,"£m 12/13 prices",null,null,null,null,null,null,null,null,null,null,null,null,null,null,null,null,null,null,null,null,null,null,null,null,null,null,null,null,{"$f":"$AJ$31/8*(1+AJ48)^ROUND((AJ7-$AJ7)/365,1)","v":0},0,0,0,0,0,0,0]
[null,null,null,null,"Revenue adjustment from previous controls",null,"£m 12/13 prices",null,null,null,null,null,null,null,null,null,null,null,null,null,null,null,null,null,null,null,null,null,null,null,null,null,null,null,null,{"$f":"AJ217+AJ218","v":2.0938014500266657},{"$f":"AK217+AK218","v":2.1826414455512975},2.2752509220860389,2.3717898187101492,2.4724248607180206,2.577329847558286,2.6866859529901843,2.8006820379755579]
[]
[null,null,null,null,{"$f":"Input!E221","v":"Legacy Losses Incentive"},null,"£m 12/13 prices"]
[]
[null,null,null,null,{"$f":"Input!E223","v":"ES7 (Miscellaneous) revenue"},null,"£m 12/13 prices",null,null,null,null,null,null,null,null,null,null,null,null,null,null,null,null,null,null,null,null,null,null,null,null,null,null,null,null,{"$f":"CHOOSE(view,\n'[9]M1a - Model inputs'!L157,\n'[9]M1b - Model inputs'!L157,\n'[9]SM1 - DECC Scenario 3 equiv'!L157,\n'[9]SM2 - DECC Scenario 1 equiv'!L157,\n'[9]SM3 - DECC Scenario 2 equiv'!L157,\n'[9]SM4 - DNO Scenario 4 equiv'!L157,\n'[10]M1a - Model inputs'!L157,\n'[10]M1b - Model inputs'!L157,\n'[10]SM1 - DECC Scenario 3 equiv'!L157,\n'[10]SM2 - DECC Scenario 1 equiv'!L157,\n'[10]SM3 - DECC Scenario 2 equiv'!L157,\n'[10]SM4 - DNO Scenario 4 equiv'!L157)","v":0},{"$f":"CHOOSE(view,\n'[9]M1a - Model inputs'!M157,\n'[9]M1b - Model inputs'!M157,\n'[9]SM1 - DECC Scenario 3 equiv'!M157,\n'[9]SM2 - DECC Scenario 1 equiv'!M157,\n'[9]SM3 - DECC Scenario 2 equiv'!M157,\n'[9]SM4 - DNO Scenario 4 equiv'!M157,\n'[10]M1a - Model inputs'!M157,\n'[10]M1b - Model inputs'!M157,\n'[10]SM1 - DECC Scenario 3 equiv'!M157,\n'[10]SM2 - DECC Scenario 1 equiv'!M157,\n'[10]SM3 - DECC Scenario 2 equiv'!M157,\n'[10]SM4 - DNO Scenario 4 equiv'!M157)","v":0},{"$f":"CHOOSE(view,\n'[9]M1a - Model inputs'!N157,\n'[9]M1b - Model inputs'!N157,\n'[9]SM1 - DECC Scenario 3 equiv'!N157,\n'[9]SM2 - DECC Scenario 1 equiv'!N157,\n'[9]SM3 - DECC Scenario 2 equiv'!N157,\n'[9]SM4 - DNO Scenario 4 equiv'!N157,\n'[10]M1a - Model inputs'!N157,\n'[10]M1b - Model inputs'!N157,\n'[10]SM1 - DECC Scenario 3 equiv'!N157,\n'[10]SM2 - DECC Scenario 1 equiv'!N157,\n'[10]SM3 - DECC Scenario 2 equiv'!N157,\n'[10]SM4 - DNO Scenario 4 equiv'!N157)","v":0},{"$f":"CHOOSE(view,\n'[9]M1a - Model inputs'!O157,\n'[9]M1b - Model inputs'!O157,\n'[9]SM1 - DECC Scenario 3 equiv'!O157,\n'[9]SM2 - DECC Scenario 1 equiv'!O157,\n'[9]SM3 - DECC Scenario 2 equiv'!O157,\n'[9]SM4 - DNO Scenario 4 equiv'!O157,\n'[10]M1a - Model inputs'!O157,\n'[10]M1b - Model inputs'!O157,\n'[10]SM1 - DECC Scenario 3 equiv'!O157,\n'[10]SM2 - DECC Scenario 1 equiv'!O157,\n'[10]SM3 - DECC Scenario 2 equiv'!O157,\n'[10]SM4 - DNO Scenario 4 equiv'!O157)","v":0},{"$f":"CHOOSE(view,\n'[9]M1a - Model inputs'!P157,\n'[9]M1b - Model inputs'!P157,\n'[9]SM1 - DECC Scenario 3 equiv'!P157,\n'[9]SM2 - DECC Scenario 1 equiv'!P157,\n'[9]SM3 - DECC Scenario 2 equiv'!P157,\n'[9]SM4 - DNO Scenario 4 equiv'!P157,\n'[10]M1a - Model inputs'!P157,\n'[10]M1b - Model inputs'!P157,\n'[10]SM1 - DECC Scenario 3 equiv'!P157,\n'[10]SM2 - DECC Scenario 1 equiv'!P157,\n'[10]SM3 - DECC Scenario 2 equiv'!P157,\n'[10]SM4 - DNO Scenario 4 equiv'!P157)","v":0},{"$f":"CHOOSE(view,\n'[9]M1a - Model inputs'!Q157,\n'[9]M1b - Model inputs'!Q157,\n'[9]SM1 - DECC Scenario 3 equiv'!Q157,\n'[9]SM2 - DECC Scenario 1 equiv'!Q157,\n'[9]SM3 - DECC Scenario 2 equiv'!Q157,\n'[9]SM4 - DNO Scenario 4 equiv'!Q157,\n'[10]M1a - Model inputs'!Q157,\n'[10]M1b - Model inputs'!Q157,\n'[10]SM1 - DECC Scenario 3 equiv'!Q157,\n'[10]SM2 - DECC Scenario 1 equiv'!Q157,\n'[10]SM3 - DECC Scenario 2 equiv'!Q157,\n'[10]SM4 - DNO Scenario 4 equiv'!Q157)","v":0},{"$f":"CHOOSE(view,\n'[9]M1a - Model inputs'!R157,\n'[9]M1b - Model inputs'!R157,\n'[9]SM1 - DECC Scenario 3 equiv'!R157,\n'[9]SM2 - DECC Scenario 1 equiv'!R157,\n'[9]SM3 - DECC Scenario 2 equiv'!R157,\n'[9]SM4 - DNO Scenario 4 equiv'!R157,\n'[10]M1a - Model inputs'!R157,\n'[10]M1b - Model inputs'!R157,\n'[10]SM1 - DECC Scenario 3 equiv'!R157,\n'[10]SM2 - DECC Scenario 1 equiv'!R157,\n'[10]SM3 - DECC Scenario 2 equiv'!R157,\n'[10]SM4 - DNO Scenario 4 equiv'!R157)","v":0},{"$f":"CHOOSE(view,\n'[9]M1a - Model inputs'!S157,\n'[9]M1b - Model inputs'!S157,\n'[9]SM1 - DECC Scenario 3 equiv'!S157,\n'[9]SM2 - DECC Scenario 1 equiv'!S157,\n'[9]SM3 - DECC Scenario 2 equiv'!S157,\n'[9]SM4 - DNO Scenario 4 equiv'!S157,\n'[10]M1a - Model inputs'!S157,\n'[10]M1b - Model inputs'!S157,\n'[10]SM1 - DECC Scenario 3 equiv'!S157,\n'[10]SM2 - DECC Scenario 1 equiv'!S157,\n'[10]SM3 - DECC Scenario 2 equiv'!S157,\n'[10]SM4 - DNO Scenario 4 equiv'!S157)","v":0}]
[null,null,null,null,{"$f":"Input!E224","v":"ES7 (Miscellaneous) assumed costs"},null,"£m 12/13 prices",null,null,null,null,null,null,null,null,null,null,null,null,null,null,null,null,null,null,null,null,null,null,null,null,null,null,null,null,{"$f":"AJ223","v":0},{"$f":"AK223","v":0},0,0,0,0,0,0]
[null,null,null,null,{"$f":"Input!E225","v":"ES7 (Miscellaneous) net position"},null,"£m 12/13 prices",null,null,null,null,null,null,null,null,null,null,null,null,null,null,null,null,null,null,null,null,null,null,null,null,null,null,null,null,{"$f":"SUM(AJ223, -AJ224)","v":0},{"$f":"SUM(AK223, -AK224)","v":0},0,0,0,0,0,0]
[]
[null,null,null,null,{"$f":"Input!E227","v":"Directly Remunerated Services"}]
[]
[null,null,null,null,{"$f":"Input!E229","v":"Element of connection that is Sole Use funded revenue"},null,{"$f":"Input!G229","v":"£m 12/13 prices"},null,null,null,null,null,null,null,null,null,null,null,null,null,null,null,null,null,null,null,null,null,null,null,null,null,null,null,null,{"$f":"AJ230","v":0.3294051406786549},{"$f":"AK230","v":0.29275426436145624},0.31917245912222292,0.26211255882495266,0.26582477515901459,0.21667929047221302,0.19179508865666595,6.5783128179100814E-2]
[null,null,null,null,{"$f":"Input!E230","v":"Element of connection that is Sole Use funded costs"},null,{"$f":"Input!G230","v":"£m 12/13 prices"},null,null,null,null,null,null,null,null,null,null,null,null,null,null,null,null,null,null,null,null,null,null,null,null,null,null,null,null,{"$f":"CHOOSE(view,\n'[9]M1a - Model inputs'!L111,\n'[9]M1b - Model inputs'!L111,\n'[9]SM1 - DECC Scenario 3 equiv'!L111,\n'[9]SM2 - DECC Scenario 1 equiv'!L111,\n'[9]SM3 - DECC Scenario 2 equiv'!L111,\n'[9]SM4 - DNO Scenario 4 equiv'!L111,\n'[10]M1a - Model inputs'!L111,\n'[10]M1b - Model inputs'!L111,\n'[10]SM1 - DECC Scenario 3 equiv'!L111,\n'[10]SM2 - DECC Scenario 1 equiv'!L111,\n'[10]SM3 - DECC Scenario 2 equiv'!L111,\n'[10]SM4 - DNO Scenario 4 equiv'!L111)","v":0.3294051406786549},{"$f":"CHOOSE(view,\n'[9]M1a - Model inputs'!M111,\n'[9]M1b - Model inputs'!M111,\n'[9]SM1 - DECC Scenario 3 equiv'!M111,\n'[9]SM2 - DECC Scenario 1 equiv'!M111,\n'[9]SM3 - DECC Scenario 2 equiv'!M111,\n'[9]SM4 - DNO Scenario 4 equiv'!M111,\n'[10]M1a - Model inputs'!M111,\n'[10]M1b - Model inputs'!M111,\n'[10]SM1 - DECC Scenario 3 equiv'!M111,\n'[10]SM2 - DECC Scenario 1 equiv'!M111,\n'[10]SM3 - DECC Scenario 2 equiv'!M111,\n'[10]SM4 - DNO Scenario 4 equiv'!M111)","v":0.29275426436145624},{"$f":"CHOOSE(view,\n'[9]M1a - Model inputs'!N111,\n'[9]M1b - Model inputs'!N111,\n'[9]SM1 - DECC Scenario 3 equiv'!N111,\n'[9]SM2 - DECC Scenario 1 equiv'!N111,\n'[9]SM3 - DECC Scenario 2 equiv'!N111,\n'[9]SM4 - DNO Scenario 4 equiv'!N111,\n'[10]M1a - Model inputs'!N111,\n'[10]M1b - Model inputs'!N111,\n'[10]SM1 - DECC Scenario 3 equiv'!N111,\n'[10]SM2 - DECC Scenario 1 equiv'!N111,\n'[10]SM3 - DECC Scenario 2 equiv'!N111,\n'[10]SM4 - DNO Scenario 4 equiv'!N111)","v":0.31917245912222292},{"$f":"CHOOSE(view,\n'[9]M1a - Model inputs'!O111,\n'[9]M1b - Model inputs'!O111,\n'[9]SM1 - DECC Scenario 3 equiv'!O111,\n'[9]SM2 - DECC Scenario 1 equiv'!O111,\n'[9]SM3 - DECC Scenario 2 equiv'!O111,\n'[9]SM4 - DNO Scenario 4 equiv'!O111,\n'[10]M1a - Model inputs'!O111,\n'[10]M1b - Model inputs'!O111,\n'[10]SM1 - DECC Scenario 3 equiv'!O111,\n'[10]SM2 - DECC Scenario 1 equiv'!O111,\n'[10]SM3 - DECC Scenario 2 equiv'!O111,\n'[10]SM4 - DNO Scenario 4 equiv'!O111)","v":0.26211255882495266},{"$f":"CHOOSE(view,\n'[9]M1a - Model inputs'!P111,\n'[9]M1b - Model inputs'!P111,\n'[9]SM1 - DECC Scenario 3 equiv'!P111,\n'[9]SM2 - DECC Scenario 1 equiv'!P111,\n'[9]SM3 - DECC Scenario 2 equiv'!P111,\n'[9]SM4 - DNO Scenario 4 equiv'!P111,\n'[10]M1a - Model inputs'!P111,\n'[10]M1b - Model inputs'!P111,\n'[10]SM1 - DECC Scenario 3 equiv'!P111,\n'[10]SM2 - DECC Scenario 1 equiv'!P111,\n'[10]SM3 - DECC Scenario 2 equiv'!P111,\n'[10]SM4 - DNO Scenario 4 equiv'!P111)","v":0.26582477515901459},{"$f":"CHOOSE(view,\n'[9]M1a - Model inputs'!Q111,\n'[9]M1b - Model inputs'!Q111,\n'[9]SM1 - DECC Scenario 3 equiv'!Q111,\n'[9]SM2 - DECC Scenario 1 equiv'!Q111,\n'[9]SM3 - DECC Scenario 2 equiv'!Q111,\n'[9]SM4 - DNO Scenario 4 equiv'!Q111,\n'[10]M1a - Model inputs'!Q111,\n'[10]M1b - Model inputs'!Q111,\n'[10]SM1 - DECC Scenario 3 equiv'!Q111,\n'[10]SM2 - DECC Scenario 1 equiv'!Q111,\n'[10]SM3 - DECC Scenario 2 equiv'!Q111,\n'[10]SM4 - DNO Scenario 4 equiv'!Q111)","v":0.21667929047221302},{"$f":"CHOOSE(view,\n'[9]M1a - Model inputs'!R111,\n'[9]M1b - Model inputs'!R111,\n'[9]SM1 - DECC Scenario 3 equiv'!R111,\n'[9]SM2 - DECC Scenario 1 equiv'!R111,\n'[9]SM3 - DECC Scenario 2 equiv'!R111,\n'[9]SM4 - DNO Scenario 4 equiv'!R111,\n'[10]M1a - Model inputs'!R111,\n'[10]M1b - Model inputs'!R111,\n'[10]SM1 - DECC Scenario 3 equiv'!R111,\n'[10]SM2 - DECC Scenario 1 equiv'!R111,\n'[10]SM3 - DECC Scenario 2 equiv'!R111,\n'[10]SM4 - DNO Scenario 4 equiv'!R111)","v":0.19179508865666595},{"$f":"CHOOSE(view,\n'[9]M1a - Model inputs'!S111,\n'[9]M1b - Model inputs'!S111,\n'[9]SM1 - DECC Scenario 3 equiv'!S111,\n'[9]SM2 - DECC Scenario 1 equiv'!S111,\n'[9]SM3 - DECC Scenario 2 equiv'!S111,\n'[9]SM4 - DNO Scenario 4 equiv'!S111,\n'[10]M1a - Model inputs'!S111,\n'[10]M1b - Model inputs'!S111,\n'[10]SM1 - DECC Scenario 3 equiv'!S111,\n'[10]SM2 - DECC Scenario 1 equiv'!S111,\n'[10]SM3 - DECC Scenario 2 equiv'!S111,\n'[10]SM4 - DNO Scenario 4 equiv'!S111)","v":6.5783128179100814E-2}]
[null,null,null,null,{"$f":"Input!E231","v":"Element of connection that is Sole Use funded net position"},null,{"$f":"Input!G231","v":"£m 12/13 prices"},null,null,null,null,null,null,null,null,null,null,null,null,null,null,null,null,null,null,null,null,null,null,null,null,null,null,null,null,{"$f":"SUM(AJ229, -AJ230)","v":0},{"$f":"SUM(AK229, -AK230)","v":0},0,0,0,0,0,0]
[]
[null,null,null,null,{"$f":"Input!E233","v":"Connection projects UMC revenue"},null,{"$f":"Input!G233","v":"£m 12/13 prices"},null,null,null,null,null,null,null,null,null,null,null,null,null,null,null,null,null,null,null,null,null,null,null,null,null,null,null,null,{"$f":"AJ234","v":1.3542673438769415E-2},{"$f":"AK234","v":1.3108990630541245E-2},{"$f":"AL234","v":1.2066535992052818E-2},{"$f":"AM234","v":1.0647183381578509E-2},{"$f":"AN234","v":9.9993849878818181E-3},{"$f":"AO234","v":8.803864416243895E-3},{"$f":"AP234","v":7.7471456892183321E-3},{"$f":"AQ234","v":3.1595340497856811E-3}]
[null,null,null,null,{"$f":"Input!E234","v":"Connection projects UMC costs"},null,{"$f":"Input!G234","v":"£m 12/13 prices"},null,null,null,null,null,null,null,null,null,null,null,null,null,null,null,null,null,null,null,null,null,null,null,null,null,null,null,null,{"$f":"CHOOSE(view,\n'[9]M1a - Model inputs'!L112,\n'[9]M1b - Model inputs'!L112,\n'[9]SM1 - DECC Scenario 3 equiv'!L112,\n'[9]SM2 - DECC Scenario 1 equiv'!L112,\n'[9]SM3 - DECC Scenario 2 equiv'!L112,\n'[9]SM4 - DNO Scenario 4 equiv'!L112,\n'[10]M1a - Model inputs'!L112,\n'[10]M1b - Model inputs'!L112,\n'[10]SM1 - DECC Scenario 3 equiv'!L112,\n'[10]SM2 - DECC Scenario 1 equiv'!L112,\n'[10]SM3 - DECC Scenario 2 equiv'!L112,\n'[10]SM4 - DNO Scenario 4 equiv'!L112)","v":1.3542673438769415E-2},{"$f":"CHOOSE(view,\n'[9]M1a - Model inputs'!M112,\n'[9]M1b - Model inputs'!M112,\n'[9]SM1 - DECC Scenario 3 equiv'!M112,\n'[9]SM2 - DECC Scenario 1 equiv'!M112,\n'[9]SM3 - DECC Scenario 2 equiv'!M112,\n'[9]SM4 - DNO Scenario 4 equiv'!M112,\n'[10]M1a - Model inputs'!M112,\n'[10]M1b - Model inputs'!M112,\n'[10]SM1 - DECC Scenario 3 equiv'!M112,\n'[10]SM2 - DECC Scenario 1 equiv'!M112,\n'[10]SM3 - DECC Scenario 2 equiv'!M112,\n'[10]SM4 - DNO Scenario 4 equiv'!M112)","v":1.3108990630541245E-2},{"$f":"CHOOSE(view,\n'[9]M1a - Model inputs'!N112,\n'[9]M1b - Model inputs'!N112,\n'[9]SM1 - DECC Scenario 3 equiv'!N112,\n'[9]SM2 - DECC Scenario 1 equiv'!N112,\n'[9]SM3 - DECC Scenario 2 equiv'!N112,\n'[9]SM4 - DNO Scenario 4 equiv'!N112,\n'[10]M1a - Model inputs'!N112,\n'[10]M1b - Model inputs'!N112,\n'[10]SM1 - DECC Scenario 3 equiv'!N112,\n'[10]SM2 - DECC Scenario 1 equiv'!N112,\n'[10]SM3 - DECC Scenario 2 equiv'!N112,\n'[10]SM4 - DNO Scenario 4 equiv'!N112)","v":1.2066535992052818E-2},{"$f":"CHOOSE(view,\n'[9]M1a - Model inputs'!O112,\n'[9]M1b - Model inputs'!O112,\n'[9]SM1 - DECC Scenario 3 equiv'!O112,\n'[9]SM2 - DECC Scenario 1 equiv'!O112,\n'[9]SM3 - DECC Scenario 2 equiv'!O112,\n'[9]SM4 - DNO Scenario 4 equiv'!O112,\n'[10]M1a - Model inputs'!O112,\n'[10]M1b - Model inputs'!O112,\n'[10]SM1 - DECC Scenario 3 equiv'!O112,\n'[10]SM2 - DECC Scenario 1 equiv'!O112,\n'[10]SM3 - DECC Scenario 2 equiv'!O112,\n'[10]SM4 - DNO Scenario 4 equiv'!O112)","v":1.0647183381578509E-2},{"$f":"CHOOSE(view,\n'[9]M1a - Model inputs'!P112,\n'[9]M1b - Model inputs'!P112,\n'[9]SM1 - DECC Scenario 3 equiv'!P112,\n'[9]SM2 - DECC Scenario 1 equiv'!P112,\n'[9]SM3 - DECC Scenario 2 equiv'!P112,\n'[9]SM4 - DNO Scenario 4 equiv'!P112,\n'[10]M1a - Model inputs'!P112,\n'[10]M1b - Model inputs'!P112,\n'[10]SM1 - DECC Scenario 3 equiv'!P112,\n'[10]SM2 - DECC Scenario 1 equiv'!P112,\n'[10]SM3 - DECC Scenario 2 equiv'!P112,\n'[10]SM4 - DNO Scenario 4 equiv'!P112)","v":9.9993849878818181E-3},{"$f":"CHOOSE(view,\n'[9]M1a - Model inputs'!Q112,\n'[9]M1b - Model inputs'!Q112,\n'[9]SM1 - DECC Scenario 3 equiv'!Q112,\n'[9]SM2 - DECC Scenario 1 equiv'!Q112,\n'[9]SM3 - DECC Scenario 2 equiv'!Q112,\n'[9]SM4 - DNO Scenario 4 equiv'!Q112,\n'[10]M1a - Model inputs'!Q112,\n'[10]M1b - Model inputs'!Q112,\n'[10]SM1 - DECC Scenario 3 equiv'!Q112,\n'[10]SM2 - DECC Scenario 1 equiv'!Q112,\n'[10]SM3 - DECC Scenario 2 equiv'!Q112,\n'[10]SM4 - DNO Scenario 4 equiv'!Q112)","v":8.803864416243895E-3},{"$f":"CHOOSE(view,\n'[9]M1a - Model inputs'!R112,\n'[9]M1b - Model inputs'!R112,\n'[9]SM1 - DECC Scenario 3 equiv'!R112,\n'[9]SM2 - DECC Scenario 1 equiv'!R112,\n'[9]SM3 - DECC Scenario 2 equiv'!R112,\n'[9]SM4 - DNO Scenario 4 equiv'!R112,\n'[10]M1a - Model inputs'!R112,\n'[10]M1b - Model inputs'!R112,\n'[10]SM1 - DECC Scenario 3 equiv'!R112,\n'[10]SM2 - DECC Scenario 1 equiv'!R112,\n'[10]SM3 - DECC Scenario 2 equiv'!R112,\n'[10]SM4 - DNO Scenario 4 equiv'!R112)","v":7.7471456892183321E-3},{"$f":"CHOOSE(view,\n'[9]M1a - Model inputs'!S112,\n'[9]M1b - Model inputs'!S112,\n'[9]SM1 - DECC Scenario 3 equiv'!S112,\n'[9]SM2 - DECC Scenario 1 equiv'!S112,\n'[9]SM3 - DECC Scenario 2 equiv'!S112,\n'[9]SM4 - DNO Scenario 4 equiv'!S112,\n'[10]M1a - Model inputs'!S112,\n'[10]M1b - Model inputs'!S112,\n'[10]SM1 - DECC Scenario 3 equiv'!S112,\n'[10]SM2 - DECC Scenario 1 equiv'!S112,\n'[10]SM3 - DECC Scenario 2 equiv'!S112,\n'[10]SM4 - DNO Scenario 4 equiv'!S112)","v":3.1595340497856811E-3}]
[null,null,null,null,{"$f":"Input!E235","v":"Connection projects UMC net position"},null,{"$f":"Input!G235","v":"£m 12/13 prices"},null,null,null,null,null,null,null,null,null,null,null,null,null,null,null,null,null,null,null,null,null,null,null,null,null,null,null,null,{"$f":"SUM(AJ233, -AJ234)","v":0},{"$f":"SUM(AK233, -AK234)","v":0},0,0,0,0,0,0]
[]
[null,null,null,null,{"$f":"Input!E237","v":"Diversionary works under obligation (ES2) revenue"},null,{"$f":"Input!G237","v":"£m 12/13 prices"},null,null,null,null,null,null,null,null,null,null,null,null,null,null,null,null,null,null,null,null,null,null,null,null,null,null,null,null,{"$f":"CHOOSE(view,\n'[9]M1a - Model inputs'!L$144,\n'[9]M1b - Model inputs'!L$144,\n'[9]SM1 - DECC Scenario 3 equiv'!L$144,\n'[9]SM2 - DECC Scenario 1 equiv'!L$144,\n'[9]SM3 - DECC Scenario 2 equiv'!L$144,\n'[9]SM4 - DNO Scenario 4 equiv'!L$144,\n'[10]M1a - Model inputs'!L$144,\n'[10]M1b - Model inputs'!L$144,\n'[10]SM1 - DECC Scenario 3 equiv'!L$144,\n'[10]SM2 - DECC Scenario 1 equiv'!L$144,\n'[10]SM3 - DECC Scenario 2 equiv'!L$144,\n'[10]SM4 - DNO Scenario 4 equiv'!L$144)","v":-1.97359170086011},{"$f":"CHOOSE(view,\n'[9]M1a - Model inputs'!M$144,\n'[9]M1b - Model inputs'!M$144,\n'[9]SM1 - DECC Scenario 3 equiv'!M$144,\n'[9]SM2 - DECC Scenario 1 equiv'!M$144,\n'[9]SM3 - DECC Scenario 2 equiv'!M$144,\n'[9]SM4 - DNO Scenario 4 equiv'!M$144,\n'[10]M1a - Model inputs'!M$144,\n'[10]M1b - Model inputs'!M$144,\n'[10]SM1 - DECC Scenario 3 equiv'!M$144,\n'[10]SM2 - DECC Scenario 1 equiv'!M$144,\n'[10]SM3 - DECC Scenario 2 equiv'!M$144,\n'[10]SM4 - DNO Scenario 4 equiv'!M$144)","v":-1.97359170086011},{"$f":"CHOOSE(view,\n'[9]M1a - Model inputs'!N$144,\n'[9]M1b - Model inputs'!N$144,\n'[9]SM1 - DECC Scenario 3 equiv'!N$144,\n'[9]SM2 - DECC Scenario 1 equiv'!N$144,\n'[9]SM3 - DECC Scenario 2 equiv'!N$144,\n'[9]SM4 - DNO Scenario 4 equiv'!N$144,\n'[10]M1a - Model inputs'!N$144,\n'[10]M1b - Model inputs'!N$144,\n'[10]SM1 - DECC Scenario 3 equiv'!N$144,\n'[10]SM2 - DECC Scenario 1 equiv'!N$144,\n'[10]SM3 - DECC Scenario 2 equiv'!N$144,\n'[10]SM4 - DNO Scenario 4 equiv'!N$144)","v":-1.97359170086011},{"$f":"CHOOSE(view,\n'[9]M1a - Model inputs'!O$144,\n'[9]M1b - Model inputs'!O$144,\n'[9]SM1 - DECC Scenario 3 equiv'!O$144,\n'[9]SM2 - DECC Scenario 1 equiv'!O$144,\n'[9]SM3 - DECC Scenario 2 equiv'!O$144,\n'[9]SM4 - DNO Scenario 4 equiv'!O$144,\n'[10]M1a - Model inputs'!O$144,\n'[10]M1b - Model inputs'!O$144,\n'[10]SM1 - DECC Scenario 3 equiv'!O$144,\n'[10]SM2 - DECC Scenario 1 equiv'!O$144,\n'[10]SM3 - DECC Scenario 2 equiv'!O$144,\n'[10]SM4 - DNO Scenario 4 equiv'!O$144)","v":-1.97359170086011},{"$f":"CHOOSE(view,\n'[9]M1a - Model inputs'!P$144,\n'[9]M1b - Model inputs'!P$144,\n'[9]SM1 - DECC Scenario 3 equiv'!P$144,\n'[9]SM2 - DECC Scenario 1 equiv'!P$144,\n'[9]SM3 - DECC Scenario 2 equiv'!P$144,\n'[9]SM4 - DNO Scenario 4 equiv'!P$144,\n'[10]M1a - Model inputs'!P$144,\n'[10]M1b - Model inputs'!P$144,\n'[10]SM1 - DECC Scenario 3 equiv'!P$144,\n'[10]SM2 - DECC Scenario 1 equiv'!P$144,\n'[10]SM3 - DECC Scenario 2 equiv'!P$144,\n'[10]SM4 - DNO Scenario 4 equiv'!P$144)","v":-1.97359170086011},{"$f":"CHOOSE(view,\n'[9]M1a - Model inputs'!Q$144,\n'[9]M1b - Model inputs'!Q$144,\n'[9]SM1 - DECC Scenario 3 equiv'!Q$144,\n'[9]SM2 - DECC Scenario 1 equiv'!Q$144,\n'[9]SM3 - DECC Scenario 2 equiv'!Q$144,\n'[9]SM4 - DNO Scenario 4 equiv'!Q$144,\n'[10]M1a - Model inputs'!Q$144,\n'[10]M1b - Model inputs'!Q$144,\n'[10]SM1 - DECC Scenario 3 equiv'!Q$144,\n'[10]SM2 - DECC Scenario 1 equiv'!Q$144,\n'[10]SM3 - DECC Scenario 2 equiv'!Q$144,\n'[10]SM4 - DNO Scenario 4 equiv'!Q$144)","v":-1.97359170086011},{"$f":"CHOOSE(view,\n'[9]M1a - Model inputs'!R$144,\n'[9]M1b - Model inputs'!R$144,\n'[9]SM1 - DECC Scenario 3 equiv'!R$144,\n'[9]SM2 - DECC Scenario 1 equiv'!R$144,\n'[9]SM3 - DECC Scenario 2 equiv'!R$144,\n'[9]SM4 - DNO Scenario 4 equiv'!R$144,\n'[10]M1a - Model inputs'!R$144,\n'[10]M1b - Model inputs'!R$144,\n'[10]SM1 - DECC Scenario 3 equiv'!R$144,\n'[10]SM2 - DECC Scenario 1 equiv'!R$144,\n'[10]SM3 - DECC Scenario 2 equiv'!R$144,\n'[10]SM4 - DNO Scenario 4 equiv'!R$144)","v":-1.97359170086011},{"$f":"CHOOSE(view,\n'[9]M1a - Model inputs'!S$144,\n'[9]M1b - Model inputs'!S$144,\n'[9]SM1 - DECC Scenario 3 equiv'!S$144,\n'[9]SM2 - DECC Scenario 1 equiv'!S$144,\n'[9]SM3 - DECC Scenario 2 equiv'!S$144,\n'[9]SM4 - DNO Scenario 4 equiv'!S$144,\n'[10]M1a - Model inputs'!S$144,\n'[10]M1b - Model inputs'!S$144,\n'[10]SM1 - DECC Scenario 3 equiv'!S$144,\n'[10]SM2 - DECC Scenario 1 equiv'!S$144,\n'[10]SM3 - DECC Scenario 2 equiv'!S$144,\n'[10]SM4 - DNO Scenario 4 equiv'!S$144)","v":-1.97359170086011}]
[null,null,null,null,{"$f":"Input!E238","v":"Diversionary works under obligation (ES2) costs"},null,{"$f":"Input!G238","v":"£m 12/13 prices"},null,null,null,null,null,null,null,null,null,null,null,null,null,null,null,null,null,null,null,null,null,null,null,null,null,null,null,null,{"$f":"CHOOSE(view,\n'[9]M1a - Model inputs'!L$131,\n'[9]M1b - Model inputs'!L$131,\n'[9]SM1 - DECC Scenario 3 equiv'!L$131,\n'[9]SM2 - DECC Scenario 1 equiv'!L$131,\n'[9]SM3 - DECC Scenario 2 equiv'!L$131,\n'[9]SM4 - DNO Scenario 4 equiv'!L$131,\n'[10]M1a - Model inputs'!L$131,\n'[10]M1b - Model inputs'!L$131,\n'[10]SM1 - DECC Scenario 3 equiv'!L$131,\n'[10]SM2 - DECC Scenario 1 equiv'!L$131,\n'[10]SM3 - DECC Scenario 2 equiv'!L$131,\n'[10]SM4 - DNO Scenario 4 equiv'!L$131)","v":0},{"$f":"CHOOSE(view,\n'[9]M1a - Model inputs'!M$131,\n'[9]M1b - Model inputs'!M$131,\n'[9]SM1 - DECC Scenario 3 equiv'!M$131,\n'[9]SM2 - DECC Scenario 1 equiv'!M$131,\n'[9]SM3 - DECC Scenario 2 equiv'!M$131,\n'[9]SM4 - DNO Scenario 4 equiv'!M$131,\n'[10]M1a - Model inputs'!M$131,\n'[10]M1b - Model inputs'!M$131,\n'[10]SM1 - DECC Scenario 3 equiv'!M$131,\n'[10]SM2 - DECC Scenario 1 equiv'!M$131,\n'[10]SM3 - DECC Scenario 2 equiv'!M$131,\n'[10]SM4 - DNO Scenario 4 equiv'!M$131)","v":0},{"$f":"CHOOSE(view,\n'[9]M1a - Model inputs'!N$131,\n'[9]M1b - Model inputs'!N$131,\n'[9]SM1 - DECC Scenario 3 equiv'!N$131,\n'[9]SM2 - DECC Scenario 1 equiv'!N$131,\n'[9]SM3 - DECC Scenario 2 equiv'!N$131,\n'[9]SM4 - DNO Scenario 4 equiv'!N$131,\n'[10]M1a - Model inputs'!N$131,\n'[10]M1b - Model inputs'!N$131,\n'[10]SM1 - DECC Scenario 3 equiv'!N$131,\n'[10]SM2 - DECC Scenario 1 equiv'!N$131,\n'[10]SM3 - DECC Scenario 2 equiv'!N$131,\n'[10]SM4 - DNO Scenario 4 equiv'!N$131)","v":0},{"$f":"CHOOSE(view,\n'[9]M1a - Model inputs'!O$131,\n'[9]M1b - Model inputs'!O$131,\n'[9]SM1 - DECC Scenario 3 equiv'!O$131,\n'[9]SM2 - DECC Scenario 1 equiv'!O$131,\n'[9]SM3 - DECC Scenario 2 equiv'!O$131,\n'[9]SM4 - DNO Scenario 4 equiv'!O$131,\n'[10]M1a - Model inputs'!O$131,\n'[10]M1b - Model inputs'!O$131,\n'[10]SM1 - DECC Scenario 3 equiv'!O$131,\n'[10]SM2 - DECC Scenario 1 equiv'!O$131,\n'[10]SM3 - DECC Scenario 2 equiv'!O$131,\n'[10]SM4 - DNO Scenario 4 equiv'!O$131)","v":0},{"$f":"CHOOSE(view,\n'[9]M1a - Model inputs'!P$131,\n'[9]M1b - Model inputs'!P$131,\n'[9]SM1 - DECC Scenario 3 equiv'!P$131,\n'[9]SM2 - DECC Scenario 1 equiv'!P$131,\n'[9]SM3 - DECC Scenario 2 equiv'!P$131,\n'[9]SM4 - DNO Scenario 4 equiv'!P$131,\n'[10]M1a - Model inputs'!P$131,\n'[10]M1b - Model inputs'!P$131,\n'[10]SM1 - DECC Scenario 3 equiv'!P$131,\n'[10]SM2 - DECC Scenario 1 equiv'!P$131,\n'[10]SM3 - DECC Scenario 2 equiv'!P$131,\n'[10]SM4 - DNO Scenario 4 equiv'!P$131)","v":0},{"$f":"CHOOSE(view,\n'[9]M1a - Model inputs'!Q$131,\n'[9]M1b - Model inputs'!Q$131,\n'[9]SM1 - DECC Scenario 3 equiv'!Q$131,\n'[9]SM2 - DECC Scenario 1 equiv'!Q$131,\n'[9]SM3 - DECC Scenario 2 equiv'!Q$131,\n'[9]SM4 - DNO Scenario 4 equiv'!Q$131,\n'[10]M1a - Model inputs'!Q$131,\n'[10]M1b - Model inputs'!Q$131,\n'[10]SM1 - DECC Scenario 3 equiv'!Q$131,\n'[10]SM2 - DECC Scenario 1 equiv'!Q$131,\n'[10]SM3 - DECC Scenario 2 equiv'!Q$131,\n'[10]SM4 - DNO Scenario 4 equiv'!Q$131)","v":0},{"$f":"CHOOSE(view,\n'[9]M1a - Model inputs'!R$131,\n'[9]M1b - Model inputs'!R$131,\n'[9]SM1 - DECC Scenario 3 equiv'!R$131,\n'[9]SM2 - DECC Scenario 1 equiv'!R$131,\n'[9]SM3 - DECC Scenario 2 equiv'!R$131,\n'[9]SM4 - DNO Scenario 4 equiv'!R$131,\n'[10]M1a - Model inputs'!R$131,\n'[10]M1b - Model inputs'!R$131,\n'[10]SM1 - DECC Scenario 3 equiv'!R$131,\n'[10]SM2 - DECC Scenario 1 equiv'!R$131,\n'[10]SM3 - DECC Scenario 2 equiv'!R$131,\n'[10]SM4 - DNO Scenario 4 equiv'!R$131)","v":0},{"$f":"CHOOSE(view,\n'[9]M1a - Model inputs'!S$131,\n'[9]M1b - Model inputs'!S$131,\n'[9]SM1 - DECC Scenario 3 equiv'!S$131,\n'[9]SM2 - DECC Scenario 1 equiv'!S$131,\n'[9]SM3 - DECC Scenario 2 equiv'!S$131,\n'[9]SM4 - DNO Scenario 4 equiv'!S$131,\n'[10]M1a - Model inputs'!S$131,\n'[10]M1b - Model inputs'!S$131,\n'[10]SM1 - DECC Scenario 3 equiv'!S$131,\n'[10]SM2 - DECC Scenario 1 equiv'!S$131,\n'[10]SM3 - DECC Scenario 2 equiv'!S$131,\n'[10]SM4 - DNO Scenario 4 equiv'!S$131)","v":0}]
[null,null,null,null,{"$f":"Input!E239","v":"Diversionary works under obligation (ES2) net position"},null,{"$f":"Input!G239","v":"£m 12/13 prices"},null,null,null,null,null,null,null,null,null,null,null,null,null,null,null,null,null,null,null,null,null,null,null,null,null,null,null,null,{"$f":"SUM(AJ237, -AJ238)","v":-1.97359170086011},{"$f":"SUM(AK237, -AK238)","v":-1.97359170086011},-1.97359170086011,-1.97359170086011,-1.97359170086011,-1.97359170086011,-1.97359170086011,-1.97359170086011]
[]
[null,null,null,null,{"$f":"Input!E241","v":"Work required by any alteration premises (ES3) revenue"},null,{"$f":"Input!G241","v":"£m 12/13 prices"},null,null,null,null,null,null,null,null,null,null,null,null,null,null,null,null,null,null,null,null,null,null,null,null,null,null,null,null,{"$f":"CHOOSE(view,\n'[9]M1a - Model inputs'!L$145,\n'[9]M1b - Model inputs'!L$145,\n'[9]SM1 - DECC Scenario 3 equiv'!L$145,\n'[9]SM2 - DECC Scenario 1 equiv'!L$145,\n'[9]SM3 - DECC Scenario 2 equiv'!L$145,\n'[9]SM4 - DNO Scenario 4 equiv'!L$145,\n'[10]M1a - Model inputs'!L$145,\n'[10]M1b - Model inputs'!L$145,\n'[10]SM1 - DECC Scenario 3 equiv'!L$145,\n'[10]SM2 - DECC Scenario 1 equiv'!L$145,\n'[10]SM3 - DECC Scenario 2 equiv'!L$145,\n'[10]SM4 - DNO Scenario 4 equiv'!L$145)","v":-1.2434233409489761},{"$f":"CHOOSE(view,\n'[9]M1a - Model inputs'!M$145,\n'[9]M1b - Model inputs'!M$145,\n'[9]SM1 - DECC Scenario 3 equiv'!M$145,\n'[9]SM2 - DECC Scenario 1 equiv'!M$145,\n'[9]SM3 - DECC Scenario 2 equiv'!M$145,\n'[9]SM4 - DNO Scenario 4 equiv'!M$145,\n'[10]M1a - Model inputs'!M$145,\n'[10]M1b - Model inputs'!M$145,\n'[10]SM1 - DECC Scenario 3 equiv'!M$145,\n'[10]SM2 - DECC Scenario 1 equiv'!M$145,\n'[10]SM3 - DECC Scenario 2 equiv'!M$145,\n'[10]SM4 - DNO Scenario 4 equiv'!M$145)","v":-1.2434233409489761},{"$f":"CHOOSE(view,\n'[9]M1a - Model inputs'!N$145,\n'[9]M1b - Model inputs'!N$145,\n'[9]SM1 - DECC Scenario 3 equiv'!N$145,\n'[9]SM2 - DECC Scenario 1 equiv'!N$145,\n'[9]SM3 - DECC Scenario 2 equiv'!N$145,\n'[9]SM4 - DNO Scenario 4 equiv'!N$145,\n'[10]M1a - Model inputs'!N$145,\n'[10]M1b - Model inputs'!N$145,\n'[10]SM1 - DECC Scenario 3 equiv'!N$145,\n'[10]SM2 - DECC Scenario 1 equiv'!N$145,\n'[10]SM3 - DECC Scenario 2 equiv'!N$145,\n'[10]SM4 - DNO Scenario 4 equiv'!N$145)","v":-1.2434233409489761},{"$f":"CHOOSE(view,\n'[9]M1a - Model inputs'!O$145,\n'[9]M1b - Model inputs'!O$145,\n'[9]SM1 - DECC Scenario 3 equiv'!O$145,\n'[9]SM2 - DECC Scenario 1 equiv'!O$145,\n'[9]SM3 - DECC Scenario 2 equiv'!O$145,\n'[9]SM4 - DNO Scenario 4 equiv'!O$145,\n'[10]M1a - Model inputs'!O$145,\n'[10]M1b - Model inputs'!O$145,\n'[10]SM1 - DECC Scenario 3 equiv'!O$145,\n'[10]SM2 - DECC Scenario 1 equiv'!O$145,\n'[10]SM3 - DECC Scenario 2 equiv'!O$145,\n'[10]SM4 - DNO Scenario 4 equiv'!O$145)","v":-1.2434233409489761},{"$f":"CHOOSE(view,\n'[9]M1a - Model inputs'!P$145,\n'[9]M1b - Model inputs'!P$145,\n'[9]SM1 - DECC Scenario 3 equiv'!P$145,\n'[9]SM2 - DECC Scenario 1 equiv'!P$145,\n'[9]SM3 - DECC Scenario 2 equiv'!P$145,\n'[9]SM4 - DNO Scenario 4 equiv'!P$145,\n'[10]M1a - Model inputs'!P$145,\n'[10]M1b - Model inputs'!P$145,\n'[10]SM1 - DECC Scenario 3 equiv'!P$145,\n'[10]SM2 - DECC Scenario 1 equiv'!P$145,\n'[10]SM3 - DECC Scenario 2 equiv'!P$145,\n'[10]SM4 - DNO Scenario 4 equiv'!P$145)","v":-1.2434233409489761},{"$f":"CHOOSE(view,\n'[9]M1a - Model inputs'!Q$145,\n'[9]M1b - Model inputs'!Q$145,\n'[9]SM1 - DECC Scenario 3 equiv'!Q$145,\n'[9]SM2 - DECC Scenario 1 equiv'!Q$145,\n'[9]SM3 - DECC Scenario 2 equiv'!Q$145,\n'[9]SM4 - DNO Scenario 4 equiv'!Q$145,\n'[10]M1a - Model inputs'!Q$145,\n'[10]M1b - Model inputs'!Q$145,\n'[10]SM1 - DECC Scenario 3 equiv'!Q$145,\n'[10]SM2 - DECC Scenario 1 equiv'!Q$145,\n'[10]SM3 - DECC Scenario 2 equiv'!Q$145,\n'[10]SM4 - DNO Scenario 4 equiv'!Q$145)","v":-1.2434233409489761},{"$f":"CHOOSE(view,\n'[9]M1a - Model inputs'!R$145,\n'[9]M1b - Model inputs'!R$145,\n'[9]SM1 - DECC Scenario 3 equiv'!R$145,\n'[9]SM2 - DECC Scenario 1 equiv'!R$145,\n'[9]SM3 - DECC Scenario 2 equiv'!R$145,\n'[9]SM4 - DNO Scenario 4 equiv'!R$145,\n'[10]M1a - Model inputs'!R$145,\n'[10]M1b - Model inputs'!R$145,\n'[10]SM1 - DECC Scenario 3 equiv'!R$145,\n'[10]SM2 - DECC Scenario 1 equiv'!R$145,\n'[10]SM3 - DECC Scenario 2 equiv'!R$145,\n'[10]SM4 - DNO Scenario 4 equiv'!R$145)","v":-1.2434233409489761},{"$f":"CHOOSE(view,\n'[9]M1a - Model inputs'!S$145,\n'[9]M1b - Model inputs'!S$145,\n'[9]SM1 - DECC Scenario 3 equiv'!S$145,\n'[9]SM2 - DECC Scenario 1 equiv'!S$145,\n'[9]SM3 - DECC Scenario 2 equiv'!S$145,\n'[9]SM4 - DNO Scenario 4 equiv'!S$145,\n'[10]M1a - Model inputs'!S$145,\n'[10]M1b - Model inputs'!S$145,\n'[10]SM1 - DECC Scenario 3 equiv'!S$145,\n'[10]SM2 - DECC Scenario 1 equiv'!S$145,\n'[10]SM3 - DECC Scenario 2 equiv'!S$145,\n'[10]SM4 - DNO Scenario 4 equiv'!S$145)","v":-1.2434233409489761}]
[null,null,null,null,{"$f":"Input!E242","v":"Work required by any alteration premises (ES3) costs"},null,{"$f":"Input!G242","v":"£m 12/13 prices"},null,null,null,null,null,null,null,null,null,null,null,null,null,null,null,null,null,null,null,null,null,null,null,null,null,null,null,null,{"$f":"CHOOSE(view,\n'[9]M1a - Model inputs'!L$132,\n'[9]M1b - Model inputs'!L$132,\n'[9]SM1 - DECC Scenario 3 equiv'!L$132,\n'[9]SM2 - DECC Scenario 1 equiv'!L$132,\n'[9]SM3 - DECC Scenario 2 equiv'!L$132,\n'[9]SM4 - DNO Scenario 4 equiv'!L$132,\n'[10]M1a - Model inputs'!L$132,\n'[10]M1b - Model inputs'!L$132,\n'[10]SM1 - DECC Scenario 3 equiv'!L$132,\n'[10]SM2 - DECC Scenario 1 equiv'!L$132,\n'[10]SM3 - DECC Scenario 2 equiv'!L$132,\n'[10]SM4 - DNO Scenario 4 equiv'!L$132)","v":0},{"$f":"CHOOSE(view,\n'[9]M1a - Model inputs'!M$132,\n'[9]M1b - Model inputs'!M$132,\n'[9]SM1 - DECC Scenario 3 equiv'!M$132,\n'[9]SM2 - DECC Scenario 1 equiv'!M$132,\n'[9]SM3 - DECC Scenario 2 equiv'!M$132,\n'[9]SM4 - DNO Scenario 4 equiv'!M$132,\n'[10]M1a - Model inputs'!M$132,\n'[10]M1b - Model inputs'!M$132,\n'[10]SM1 - DECC Scenario 3 equiv'!M$132,\n'[10]SM2 - DECC Scenario 1 equiv'!M$132,\n'[10]SM3 - DECC Scenario 2 equiv'!M$132,\n'[10]SM4 - DNO Scenario 4 equiv'!M$132)","v":0},{"$f":"CHOOSE(view,\n'[9]M1a - Model inputs'!N$132,\n'[9]M1b - Model inputs'!N$132,\n'[9]SM1 - DECC Scenario 3 equiv'!N$132,\n'[9]SM2 - DECC Scenario 1 equiv'!N$132,\n'[9]SM3 - DECC Scenario 2 equiv'!N$132,\n'[9]SM4 - DNO Scenario 4 equiv'!N$132,\n'[10]M1a - Model inputs'!N$132,\n'[10]M1b - Model inputs'!N$132,\n'[10]SM1 - DECC Scenario 3 equiv'!N$132,\n'[10]SM2 - DECC Scenario 1 equiv'!N$132,\n'[10]SM3 - DECC Scenario 2 equiv'!N$132,\n'[10]SM4 - DNO Scenario 4 equiv'!N$132)","v":0},{"$f":"CHOOSE(view,\n'[9]M1a - Model inputs'!O$132,\n'[9]M1b - Model inputs'!O$132,\n'[9]SM1 - DECC Scenario 3 equiv'!O$132,\n'[9]SM2 - DECC Scenario 1 equiv'!O$132,\n'[9]SM3 - DECC Scenario 2 equiv'!O$132,\n'[9]SM4 - DNO Scenario 4 equiv'!O$132,\n'[10]M1a - Model inputs'!O$132,\n'[10]M1b - Model inputs'!O$132,\n'[10]SM1 - DECC Scenario 3 equiv'!O$132,\n'[10]SM2 - DECC Scenario 1 equiv'!O$132,\n'[10]SM3 - DECC Scenario 2 equiv'!O$132,\n'[10]SM4 - DNO Scenario 4 equiv'!O$132)","v":0},{"$f":"CHOOSE(view,\n'[9]M1a - Model inputs'!P$132,\n'[9]M1b - Model inputs'!P$132,\n'[9]SM1 - DECC Scenario 3 equiv'!P$132,\n'[9]SM2 - DECC Scenario 1 equiv'!P$132,\n'[9]SM3 - DECC Scenario 2 equiv'!P$132,\n'[9]SM4 - DNO Scenario 4 equiv'!P$132,\n'[10]M1a - Model inputs'!P$132,\n'[10]M1b - Model inputs'!P$132,\n'[10]SM1 - DECC Scenario 3 equiv'!P$132,\n'[10]SM2 - DECC Scenario 1 equiv'!P$132,\n'[10]SM3 - DECC Scenario 2 equiv'!P$132,\n'[10]SM4 - DNO Scenario 4 equiv'!P$132)","v":0},{"$f":"CHOOSE(view,\n'[9]M1a - Model inputs'!Q$132,\n'[9]M1b - Model inputs'!Q$132,\n'[9]SM1 - DECC Scenario 3 equiv'!Q$132,\n'[9]SM2 - DECC Scenario 1 equiv'!Q$132,\n'[9]SM3 - DECC Scenario 2 equiv'!Q$132,\n'[9]SM4 - DNO Scenario 4 equiv'!Q$132,\n'[10]M1a - Model inputs'!Q$132,\n'[10]M1b - Model inputs'!Q$132,\n'[10]SM1 - DECC Scenario 3 equiv'!Q$132,\n'[10]SM2 - DECC Scenario 1 equiv'!Q$132,\n'[10]SM3 - DECC Scenario 2 equiv'!Q$132,\n'[10]SM4 - DNO Scenario 4 equiv'!Q$132)","v":0},{"$f":"CHOOSE(view,\n'[9]M1a - Model inputs'!R$132,\n'[9]M1b - Model inputs'!R$132,\n'[9]SM1 - DECC Scenario 3 equiv'!R$132,\n'[9]SM2 - DECC Scenario 1 equiv'!R$132,\n'[9]SM3 - DECC Scenario 2 equiv'!R$132,\n'[9]SM4 - DNO Scenario 4 equiv'!R$132,\n'[10]M1a - Model inputs'!R$132,\n'[10]M1b - Model inputs'!R$132,\n'[10]SM1 - DECC Scenario 3 equiv'!R$132,\n'[10]SM2 - DECC Scenario 1 equiv'!R$132,\n'[10]SM3 - DECC Scenario 2 equiv'!R$132,\n'[10]SM4 - DNO Scenario 4 equiv'!R$132)","v":0},{"$f":"CHOOSE(view,\n'[9]M1a - Model inputs'!S$132,\n'[9]M1b - Model inputs'!S$132,\n'[9]SM1 - DECC Scenario 3 equiv'!S$132,\n'[9]SM2 - DECC Scenario 1 equiv'!S$132,\n'[9]SM3 - DECC Scenario 2 equiv'!S$132,\n'[9]SM4 - DNO Scenario 4 equiv'!S$132,\n'[10]M1a - Model inputs'!S$132,\n'[10]M1b - Model inputs'!S$132,\n'[10]SM1 - DECC Scenario 3 equiv'!S$132,\n'[10]SM2 - DECC Scenario 1 equiv'!S$132,\n'[10]SM3 - DECC Scenario 2 equiv'!S$132,\n'[10]SM4 - DNO Scenario 4 equiv'!S$132)","v":0}]
[null,null,null,null,{"$f":"Input!E243","v":"Work required by any alteration premises (ES3) net position"},null,{"$f":"Input!G243","v":"£m 12/13 prices"},null,null,null,null,null,null,null,null,null,null,null,null,null,null,null,null,null,null,null,null,null,null,null,null,null,null,null,null,{"$f":"SUM(AJ241, -AJ242)","v":-1.2434233409489761},{"$f":"SUM(AK241, -AK242)","v":-1.2434233409489761},-1.2434233409489761,-1.2434233409489761,-1.2434233409489761,-1.2434233409489761,-1.2434233409489761,-1.2434233409489761]
[]
[null,null,null,null,{"$f":"Input!E245","v":"Top up standby and enhanced system security (ES4) revenue"},null,{"$f":"Input!G245","v":"£m 12/13 prices"},null,null,null,null,null,null,null,null,null,null,null,null,null,null,null,null,null,null,null,null,null,null,null,null,null,null,null,null,{"$f":"CHOOSE(view,\n'[9]M1a - Model inputs'!L$146,\n'[9]M1b - Model inputs'!L$146,\n'[9]SM1 - DECC Scenario 3 equiv'!L$146,\n'[9]SM2 - DECC Scenario 1 equiv'!L$146,\n'[9]SM3 - DECC Scenario 2 equiv'!L$146,\n'[9]SM4 - DNO Scenario 4 equiv'!L$146,\n'[10]M1a - Model inputs'!L$146,\n'[10]M1b - Model inputs'!L$146,\n'[10]SM1 - DECC Scenario 3 equiv'!L$146,\n'[10]SM2 - DECC Scenario 1 equiv'!L$146,\n'[10]SM3 - DECC Scenario 2 equiv'!L$146,\n'[10]SM4 - DNO Scenario 4 equiv'!L$146)","v":0},{"$f":"CHOOSE(view,\n'[9]M1a - Model inputs'!M$146,\n'[9]M1b - Model inputs'!M$146,\n'[9]SM1 - DECC Scenario 3 equiv'!M$146,\n'[9]SM2 - DECC Scenario 1 equiv'!M$146,\n'[9]SM3 - DECC Scenario 2 equiv'!M$146,\n'[9]SM4 - DNO Scenario 4 equiv'!M$146,\n'[10]M1a - Model inputs'!M$146,\n'[10]M1b - Model inputs'!M$146,\n'[10]SM1 - DECC Scenario 3 equiv'!M$146,\n'[10]SM2 - DECC Scenario 1 equiv'!M$146,\n'[10]SM3 - DECC Scenario 2 equiv'!M$146,\n'[10]SM4 - DNO Scenario 4 equiv'!M$146)","v":0},{"$f":"CHOOSE(view,\n'[9]M1a - Model inputs'!N$146,\n'[9]M1b - Model inputs'!N$146,\n'[9]SM1 - DECC Scenario 3 equiv'!N$146,\n'[9]SM2 - DECC Scenario 1 equiv'!N$146,\n'[9]SM3 - DECC Scenario 2 equiv'!N$146,\n'[9]SM4 - DNO Scenario 4 equiv'!N$146,\n'[10]M1a - Model inputs'!N$146,\n'[10]M1b - Model inputs'!N$146,\n'[10]SM1 - DECC Scenario 3 equiv'!N$146,\n'[10]SM2 - DECC Scenario 1 equiv'!N$146,\n'[10]SM3 - DECC Scenario 2 equiv'!N$146,\n'[10]SM4 - DNO Scenario 4 equiv'!N$146)","v":0},{"$f":"CHOOSE(view,\n'[9]M1a - Model inputs'!O$146,\n'[9]M1b - Model inputs'!O$146,\n'[9]SM1 - DECC Scenario 3 equiv'!O$146,\n'[9]SM2 - DECC Scenario 1 equiv'!O$146,\n'[9]SM3 - DECC Scenario 2 equiv'!O$146,\n'[9]SM4 - DNO Scenario 4 equiv'!O$146,\n'[10]M1a - Model inputs'!O$146,\n'[10]M1b - Model inputs'!O$146,\n'[10]SM1 - DECC Scenario 3 equiv'!O$146,\n'[10]SM2 - DECC Scenario 1 equiv'!O$146,\n'[10]SM3 - DECC Scenario 2 equiv'!O$146,\n'[10]SM4 - DNO Scenario 4 equiv'!O$146)","v":0},{"$f":"CHOOSE(view,\n'[9]M1a - Model inputs'!P$146,\n'[9]M1b - Model inputs'!P$146,\n'[9]SM1 - DECC Scenario 3 equiv'!P$146,\n'[9]SM2 - DECC Scenario 1 equiv'!P$146,\n'[9]SM3 - DECC Scenario 2 equiv'!P$146,\n'[9]SM4 - DNO Scenario 4 equiv'!P$146,\n'[10]M1a - Model inputs'!P$146,\n'[10]M1b - Model inputs'!P$146,\n'[10]SM1 - DECC Scenario 3 equiv'!P$146,\n'[10]SM2 - DECC Scenario 1 equiv'!P$146,\n'[10]SM3 - DECC Scenario 2 equiv'!P$146,\n'[10]SM4 - DNO Scenario 4 equiv'!P$146)","v":0},{"$f":"CHOOSE(view,\n'[9]M1a - Model inputs'!Q$146,\n'[9]M1b - Model inputs'!Q$146,\n'[9]SM1 - DECC Scenario 3 equiv'!Q$146,\n'[9]SM2 - DECC Scenario 1 equiv'!Q$146,\n'[9]SM3 - DECC Scenario 2 equiv'!Q$146,\n'[9]SM4 - DNO Scenario 4 equiv'!Q$146,\n'[10]M1a - Model inputs'!Q$146,\n'[10]M1b - Model inputs'!Q$146,\n'[10]SM1 - DECC Scenario 3 equiv'!Q$146,\n'[10]SM2 - DECC Scenario 1 equiv'!Q$146,\n'[10]SM3 - DECC Scenario 2 equiv'!Q$146,\n'[10]SM4 - DNO Scenario 4 equiv'!Q$146)","v":0},{"$f":"CHOOSE(view,\n'[9]M1a - Model inputs'!R$146,\n'[9]M1b - Model inputs'!R$146,\n'[9]SM1 - DECC Scenario 3 equiv'!R$146,\n'[9]SM2 - DECC Scenario 1 equiv'!R$146,\n'[9]SM3 - DECC Scenario 2 equiv'!R$146,\n'[9]SM4 - DNO Scenario 4 equiv'!R$146,\n'[10]M1a - Model inputs'!R$146,\n'[10]M1b - Model inputs'!R$146,\n'[10]SM1 - DECC Scenario 3 equiv'!R$146,\n'[10]SM2 - DECC Scenario 1 equiv'!R$146,\n'[10]SM3 - DECC Scenario 2 equiv'!R$146,\n'[10]SM4 - DNO Scenario 4 equiv'!R$146)","v":0},{"$f":"CHOOSE(view,\n'[9]M1a - Model inputs'!S$146,\n'[9]M1b - Model inputs'!S$146,\n'[9]SM1 - DECC Scenario 3 equiv'!S$146,\n'[9]SM2 - DECC Scenario 1 equiv'!S$146,\n'[9]SM3 - DECC Scenario 2 equiv'!S$146,\n'[9]SM4 - DNO Scenario 4 equiv'!S$146,\n'[10]M1a - Model inputs'!S$146,\n'[10]M1b - Model inputs'!S$146,\n'[10]SM1 - DECC Scenario 3 equiv'!S$146,\n'[10]SM2 - DECC Scenario 1 equiv'!S$146,\n'[10]SM3 - DECC Scenario 2 equiv'!S$146,\n'[10]SM4 - DNO Scenario 4 equiv'!S$146)","v":0}]
[null,null,null,null,{"$f":"Input!E246","v":"Top up standby and enhanced system security (ES4) costs"},null,{"$f":"Input!G246","v":"£m 12/13 prices"},null,null,null,null,null,null,null,null,null,null,null,null,null,null,null,null,null,null,null,null,null,null,null,null,null,null,null,null,{"$f":"CHOOSE(view,\n'[9]M1a - Model inputs'!L$133,\n'[9]M1b - Model inputs'!L$133,\n'[9]SM1 - DECC Scenario 3 equiv'!L$133,\n'[9]SM2 - DECC Scenario 1 equiv'!L$133,\n'[9]SM3 - DECC Scenario 2 equiv'!L$133,\n'[9]SM4 - DNO Scenario 4 equiv'!L$133,\n'[10]M1a - Model inputs'!L$133,\n'[10]M1b - Model inputs'!L$133,\n'[10]SM1 - DECC Scenario 3 equiv'!L$133,\n'[10]SM2 - DECC Scenario 1 equiv'!L$133,\n'[10]SM3 - DECC Scenario 2 equiv'!L$133,\n'[10]SM4 - DNO Scenario 4 equiv'!L$133)","v":0.57075836595420781},{"$f":"CHOOSE(view,\n'[9]M1a - Model inputs'!M$133,\n'[9]M1b - Model inputs'!M$133,\n'[9]SM1 - DECC Scenario 3 equiv'!M$133,\n'[9]SM2 - DECC Scenario 1 equiv'!M$133,\n'[9]SM3 - DECC Scenario 2 equiv'!M$133,\n'[9]SM4 - DNO Scenario 4 equiv'!M$133,\n'[10]M1a - Model inputs'!M$133,\n'[10]M1b - Model inputs'!M$133,\n'[10]SM1 - DECC Scenario 3 equiv'!M$133,\n'[10]SM2 - DECC Scenario 1 equiv'!M$133,\n'[10]SM3 - DECC Scenario 2 equiv'!M$133,\n'[10]SM4 - DNO Scenario 4 equiv'!M$133)","v":0.5949828856064413},{"$f":"CHOOSE(view,\n'[9]M1a - Model inputs'!N$133,\n'[9]M1b - Model inputs'!N$133,\n'[9]SM1 - DECC Scenario 3 equiv'!N$133,\n'[9]SM2 - DECC Scenario 1 equiv'!N$133,\n'[9]SM3 - DECC Scenario 2 equiv'!N$133,\n'[9]SM4 - DNO Scenario 4 equiv'!N$133,\n'[10]M1a - Model inputs'!N$133,\n'[10]M1b - Model inputs'!N$133,\n'[10]SM1 - DECC Scenario 3 equiv'!N$133,\n'[10]SM2 - DECC Scenario 1 equiv'!N$133,\n'[10]SM3 - DECC Scenario 2 equiv'!N$133,\n'[10]SM4 - DNO Scenario 4 equiv'!N$133)","v":0.56197874129538106},{"$f":"CHOOSE(view,\n'[9]M1a - Model inputs'!O$133,\n'[9]M1b - Model inputs'!O$133,\n'[9]SM1 - DECC Scenario 3 equiv'!O$133,\n'[9]SM2 - DECC Scenario 1 equiv'!O$133,\n'[9]SM3 - DECC Scenario 2 equiv'!O$133,\n'[9]SM4 - DNO Scenario 4 equiv'!O$133,\n'[10]M1a - Model inputs'!O$133,\n'[10]M1b - Model inputs'!O$133,\n'[10]SM1 - DECC Scenario 3 equiv'!O$133,\n'[10]SM2 - DECC Scenario 1 equiv'!O$133,\n'[10]SM3 - DECC Scenario 2 equiv'!O$133,\n'[10]SM4 - DNO Scenario 4 equiv'!O$133)","v":0.59037695309515659},{"$f":"CHOOSE(view,\n'[9]M1a - Model inputs'!P$133,\n'[9]M1b - Model inputs'!P$133,\n'[9]SM1 - DECC Scenario 3 equiv'!P$133,\n'[9]SM2 - DECC Scenario 1 equiv'!P$133,\n'[9]SM3 - DECC Scenario 2 equiv'!P$133,\n'[9]SM4 - DNO Scenario 4 equiv'!P$133,\n'[10]M1a - Model inputs'!P$133,\n'[10]M1b - Model inputs'!P$133,\n'[10]SM1 - DECC Scenario 3 equiv'!P$133,\n'[10]SM2 - DECC Scenario 1 equiv'!P$133,\n'[10]SM3 - DECC Scenario 2 equiv'!P$133,\n'[10]SM4 - DNO Scenario 4 equiv'!P$133)","v":0.57946406887392732},{"$f":"CHOOSE(view,\n'[9]M1a - Model inputs'!Q$133,\n'[9]M1b - Model inputs'!Q$133,\n'[9]SM1 - DECC Scenario 3 equiv'!Q$133,\n'[9]SM2 - DECC Scenario 1 equiv'!Q$133,\n'[9]SM3 - DECC Scenario 2 equiv'!Q$133,\n'[9]SM4 - DNO Scenario 4 equiv'!Q$133,\n'[10]M1a - Model inputs'!Q$133,\n'[10]M1b - Model inputs'!Q$133,\n'[10]SM1 - DECC Scenario 3 equiv'!Q$133,\n'[10]SM2 - DECC Scenario 1 equiv'!Q$133,\n'[10]SM3 - DECC Scenario 2 equiv'!Q$133,\n'[10]SM4 - DNO Scenario 4 equiv'!Q$133)","v":0.57082051274811907},{"$f":"CHOOSE(view,\n'[9]M1a - Model inputs'!R$133,\n'[9]M1b - Model inputs'!R$133,\n'[9]SM1 - DECC Scenario 3 equiv'!R$133,\n'[9]SM2 - DECC Scenario 1 equiv'!R$133,\n'[9]SM3 - DECC Scenario 2 equiv'!R$133,\n'[9]SM4 - DNO Scenario 4 equiv'!R$133,\n'[10]M1a - Model inputs'!R$133,\n'[10]M1b - Model inputs'!R$133,\n'[10]SM1 - DECC Scenario 3 equiv'!R$133,\n'[10]SM2 - DECC Scenario 1 equiv'!R$133,\n'[10]SM3 - DECC Scenario 2 equiv'!R$133,\n'[10]SM4 - DNO Scenario 4 equiv'!R$133)","v":0.57293312782491856},{"$f":"CHOOSE(view,\n'[9]M1a - Model inputs'!S$133,\n'[9]M1b - Model inputs'!S$133,\n'[9]SM1 - DECC Scenario 3 equiv'!S$133,\n'[9]SM2 - DECC Scenario 1 equiv'!S$133,\n'[9]SM3 - DECC Scenario 2 equiv'!S$133,\n'[9]SM4 - DNO Scenario 4 equiv'!S$133,\n'[10]M1a - Model inputs'!S$133,\n'[10]M1b - Model inputs'!S$133,\n'[10]SM1 - DECC Scenario 3 equiv'!S$133,\n'[10]SM2 - DECC Scenario 1 equiv'!S$133,\n'[10]SM3 - DECC Scenario 2 equiv'!S$133,\n'[10]SM4 - DNO Scenario 4 equiv'!S$133)","v":0.5584813897060793}]
[null,null,null,null,{"$f":"Input!E247","v":"Top up standby and enhanced system security (ES4) net position"},null,{"$f":"Input!G247","v":"£m 12/13 prices"},null,null,null,null,null,null,null,null,null,null,null,null,null,null,null,null,null,null,null,null,null,null,null,null,null,null,null,null,{"$f":"SUM(AJ245, -AJ246)","v":-0.57075836595420781},{"$f":"SUM(AK245, -AK246)","v":-0.5949828856064413},-0.56197874129538106,-0.59037695309515659,-0.57946406887392732,-0.57082051274811907,-0.57293312782491856,-0.5584813897060793]
[]
[null,null,null,null,{"$f":"Input!E249","v":"Revenue protection services (ES5) revenue"},null,{"$f":"Input!G249","v":"£m 12/13 prices"},null,null,null,null,null,null,null,null,null,null,null,null,null,null,null,null,null,null,null,null,null,null,null,null,null,null,null,null,{"$f":"CHOOSE(view,\n'[9]M1a - Model inputs'!L$147,\n'[9]M1b - Model inputs'!L$147,\n'[9]SM1 - DECC Scenario 3 equiv'!L$147,\n'[9]SM2 - DECC Scenario 1 equiv'!L$147,\n'[9]SM3 - DECC Scenario 2 equiv'!L$147,\n'[9]SM4 - DNO Scenario 4 equiv'!L$147,\n'[10]M1a - Model inputs'!L$147,\n'[10]M1b - Model inputs'!L$147,\n'[10]SM1 - DECC Scenario 3 equiv'!L$147,\n'[10]SM2 - DECC Scenario 1 equiv'!L$147,\n'[10]SM3 - DECC Scenario 2 equiv'!L$147,\n'[10]SM4 - DNO Scenario 4 equiv'!L$147)","v":0},{"$f":"CHOOSE(view,\n'[9]M1a - Model inputs'!M$147,\n'[9]M1b - Model inputs'!M$147,\n'[9]SM1 - DECC Scenario 3 equiv'!M$147,\n'[9]SM2 - DECC Scenario 1 equiv'!M$147,\n'[9]SM3 - DECC Scenario 2 equiv'!M$147,\n'[9]SM4 - DNO Scenario 4 equiv'!M$147,\n'[10]M1a - Model inputs'!M$147,\n'[10]M1b - Model inputs'!M$147,\n'[10]SM1 - DECC Scenario 3 equiv'!M$147,\n'[10]SM2 - DECC Scenario 1 equiv'!M$147,\n'[10]SM3 - DECC Scenario 2 equiv'!M$147,\n'[10]SM4 - DNO Scenario 4 equiv'!M$147)","v":0},{"$f":"CHOOSE(view,\n'[9]M1a - Model inputs'!N$147,\n'[9]M1b - Model inputs'!N$147,\n'[9]SM1 - DECC Scenario 3 equiv'!N$147,\n'[9]SM2 - DECC Scenario 1 equiv'!N$147,\n'[9]SM3 - DECC Scenario 2 equiv'!N$147,\n'[9]SM4 - DNO Scenario 4 equiv'!N$147,\n'[10]M1a - Model inputs'!N$147,\n'[10]M1b - Model inputs'!N$147,\n'[10]SM1 - DECC Scenario 3 equiv'!N$147,\n'[10]SM2 - DECC Scenario 1 equiv'!N$147,\n'[10]SM3 - DECC Scenario 2 equiv'!N$147,\n'[10]SM4 - DNO Scenario 4 equiv'!N$147)","v":0},{"$f":"CHOOSE(view,\n'[9]M1a - Model inputs'!O$147,\n'[9]M1b - Model inputs'!O$147,\n'[9]SM1 - DECC Scenario 3 equiv'!O$147,\n'[9]SM2 - DECC Scenario 1 equiv'!O$147,\n'[9]SM3 - DECC Scenario 2 equiv'!O$147,\n'[9]SM4 - DNO Scenario 4 equiv'!O$147,\n'[10]M1a - Model inputs'!O$147,\n'[10]M1b - Model inputs'!O$147,\n'[10]SM1 - DECC Scenario 3 equiv'!O$147,\n'[10]SM2 - DECC Scenario 1 equiv'!O$147,\n'[10]SM3 - DECC Scenario 2 equiv'!O$147,\n'[10]SM4 - DNO Scenario 4 equiv'!O$147)","v":0},{"$f":"CHOOSE(view,\n'[9]M1a - Model inputs'!P$147,\n'[9]M1b - Model inputs'!P$147,\n'[9]SM1 - DECC Scenario 3 equiv'!P$147,\n'[9]SM2 - DECC Scenario 1 equiv'!P$147,\n'[9]SM3 - DECC Scenario 2 equiv'!P$147,\n'[9]SM4 - DNO Scenario 4 equiv'!P$147,\n'[10]M1a - Model inputs'!P$147,\n'[10]M1b - Model inputs'!P$147,\n'[10]SM1 - DECC Scenario 3 equiv'!P$147,\n'[10]SM2 - DECC Scenario 1 equiv'!P$147,\n'[10]SM3 - DECC Scenario 2 equiv'!P$147,\n'[10]SM4 - DNO Scenario 4 equiv'!P$147)","v":0},{"$f":"CHOOSE(view,\n'[9]M1a - Model inputs'!Q$147,\n'[9]M1b - Model inputs'!Q$147,\n'[9]SM1 - DECC Scenario 3 equiv'!Q$147,\n'[9]SM2 - DECC Scenario 1 equiv'!Q$147,\n'[9]SM3 - DECC Scenario 2 equiv'!Q$147,\n'[9]SM4 - DNO Scenario 4 equiv'!Q$147,\n'[10]M1a - Model inputs'!Q$147,\n'[10]M1b - Model inputs'!Q$147,\n'[10]SM1 - DECC Scenario 3 equiv'!Q$147,\n'[10]SM2 - DECC Scenario 1 equiv'!Q$147,\n'[10]SM3 - DECC Scenario 2 equiv'!Q$147,\n'[10]SM4 - DNO Scenario 4 equiv'!Q$147)","v":0},{"$f":"CHOOSE(view,\n'[9]M1a - Model inputs'!R$147,\n'[9]M1b - Model inputs'!R$147,\n'[9]SM1 - DECC Scenario 3 equiv'!R$147,\n'[9]SM2 - DECC Scenario 1 equiv'!R$147,\n'[9]SM3 - DECC Scenario 2 equiv'!R$147,\n'[9]SM4 - DNO Scenario 4 equiv'!R$147,\n'[10]M1a - Model inputs'!R$147,\n'[10]M1b - Model inputs'!R$147,\n'[10]SM1 - DECC Scenario 3 equiv'!R$147,\n'[10]SM2 - DECC Scenario 1 equiv'!R$147,\n'[10]SM3 - DECC Scenario 2 equiv'!R$147,\n'[10]SM4 - DNO Scenario 4 equiv'!R$147)","v":0},{"$f":"CHOOSE(view,\n'[9]M1a - Model inputs'!S$147,\n'[9]M1b - Model inputs'!S$147,\n'[9]SM1 - DECC Scenario 3 equiv'!S$147,\n'[9]SM2 - DECC Scenario 1 equiv'!S$147,\n'[9]SM3 - DECC Scenario 2 equiv'!S$147,\n'[9]SM4 - DNO Scenario 4 equiv'!S$147,\n'[10]M1a - Model inputs'!S$147,\n'[10]M1b - Model inputs'!S$147,\n'[10]SM1 - DECC Scenario 3 equiv'!S$147,\n'[10]SM2 - DECC Scenario 1 equiv'!S$147,\n'[10]SM3 - DECC Scenario 2 equiv'!S$147,\n'[10]SM4 - DNO Scenario 4 equiv'!S$147)","v":0}]
[null,null,null,null,{"$f":"Input!E250","v":"Revenue protection services (ES5) costs"},null,{"$f":"Input!G250","v":"£m 12/13 prices"},null,null,null,null,null,null,null,null,null,null,null,null,null,null,null,null,null,null,null,null,null,null,null,null,null,null,null,null,{"$f":"CHOOSE(view,\n'[9]M1a - Model inputs'!L$134,\n'[9]M1b - Model inputs'!L$134,\n'[9]SM1 - DECC Scenario 3 equiv'!L$134,\n'[9]SM2 - DECC Scenario 1 equiv'!L$134,\n'[9]SM3 - DECC Scenario 2 equiv'!L$134,\n'[9]SM4 - DNO Scenario 4 equiv'!L$134,\n'[10]M1a - Model inputs'!L$134,\n'[10]M1b - Model inputs'!L$134,\n'[10]SM1 - DECC Scenario 3 equiv'!L$134,\n'[10]SM2 - DECC Scenario 1 equiv'!L$134,\n'[10]SM3 - DECC Scenario 2 equiv'!L$134,\n'[10]SM4 - DNO Scenario 4 equiv'!L$134)","v":0},{"$f":"CHOOSE(view,\n'[9]M1a - Model inputs'!M$134,\n'[9]M1b - Model inputs'!M$134,\n'[9]SM1 - DECC Scenario 3 equiv'!M$134,\n'[9]SM2 - DECC Scenario 1 equiv'!M$134,\n'[9]SM3 - DECC Scenario 2 equiv'!M$134,\n'[9]SM4 - DNO Scenario 4 equiv'!M$134,\n'[10]M1a - Model inputs'!M$134,\n'[10]M1b - Model inputs'!M$134,\n'[10]SM1 - DECC Scenario 3 equiv'!M$134,\n'[10]SM2 - DECC Scenario 1 equiv'!M$134,\n'[10]SM3 - DECC Scenario 2 equiv'!M$134,\n'[10]SM4 - DNO Scenario 4 equiv'!M$134)","v":0},{"$f":"CHOOSE(view,\n'[9]M1a - Model inputs'!N$134,\n'[9]M1b - Model inputs'!N$134,\n'[9]SM1 - DECC Scenario 3 equiv'!N$134,\n'[9]SM2 - DECC Scenario 1 equiv'!N$134,\n'[9]SM3 - DECC Scenario 2 equiv'!N$134,\n'[9]SM4 - DNO Scenario 4 equiv'!N$134,\n'[10]M1a - Model inputs'!N$134,\n'[10]M1b - Model inputs'!N$134,\n'[10]SM1 - DECC Scenario 3 equiv'!N$134,\n'[10]SM2 - DECC Scenario 1 equiv'!N$134,\n'[10]SM3 - DECC Scenario 2 equiv'!N$134,\n'[10]SM4 - DNO Scenario 4 equiv'!N$134)","v":0},{"$f":"CHOOSE(view,\n'[9]M1a - Model inputs'!O$134,\n'[9]M1b - Model inputs'!O$134,\n'[9]SM1 - DECC Scenario 3 equiv'!O$134,\n'[9]SM2 - DECC Scenario 1 equiv'!O$134,\n'[9]SM3 - DECC Scenario 2 equiv'!O$134,\n'[9]SM4 - DNO Scenario 4 equiv'!O$134,\n'[10]M1a - Model inputs'!O$134,\n'[10]M1b - Model inputs'!O$134,\n'[10]SM1 - DECC Scenario 3 equiv'!O$134,\n'[10]SM2 - DECC Scenario 1 equiv'!O$134,\n'[10]SM3 - DECC Scenario 2 equiv'!O$134,\n'[10]SM4 - DNO Scenario 4 equiv'!O$134)","v":0},{"$f":"CHOOSE(view,\n'[9]M1a - Model inputs'!P$134,\n'[9]M1b - Model inputs'!P$134,\n'[9]SM1 - DECC Scenario 3 equiv'!P$134,\n'[9]SM2 - DECC Scenario 1 equiv'!P$134,\n'[9]SM3 - DECC Scenario 2 equiv'!P$134,\n'[9]SM4 - DNO Scenario 4 equiv'!P$134,\n'[10]M1a - Model inputs'!P$134,\n'[10]M1b - Model inputs'!P$134,\n'[10]SM1 - DECC Scenario 3 equiv'!P$134,\n'[10]SM2 - DECC Scenario 1 equiv'!P$134,\n'[10]SM3 - DECC Scenario 2 equiv'!P$134,\n'[10]SM4 - DNO Scenario 4 equiv'!P$134)","v":0},{"$f":"CHOOSE(view,\n'[9]M1a - Model inputs'!Q$134,\n'[9]M1b - Model inputs'!Q$134,\n'[9]SM1 - DECC Scenario 3 equiv'!Q$134,\n'[9]SM2 - DECC Scenario 1 equiv'!Q$134,\n'[9]SM3 - DECC Scenario 2 equiv'!Q$134,\n'[9]SM4 - DNO Scenario 4 equiv'!Q$134,\n'[10]M1a - Model inputs'!Q$134,\n'[10]M1b - Model inputs'!Q$134,\n'[10]SM1 - DECC Scenario 3 equiv'!Q$134,\n'[10]SM2 - DECC Scenario 1 equiv'!Q$134,\n'[10]SM3 - DECC Scenario 2 equiv'!Q$134,\n'[10]SM4 - DNO Scenario 4 equiv'!Q$134)","v":0},{"$f":"CHOOSE(view,\n'[9]M1a - Model inputs'!R$134,\n'[9]M1b - Model inputs'!R$134,\n'[9]SM1 - DECC Scenario 3 equiv'!R$134,\n'[9]SM2 - DECC Scenario 1 equiv'!R$134,\n'[9]SM3 - DECC Scenario 2 equiv'!R$134,\n'[9]SM4 - DNO Scenario 4 equiv'!R$134,\n'[10]M1a - Model inputs'!R$134,\n'[10]M1b - Model inputs'!R$134,\n'[10]SM1 - DECC Scenario 3 equiv'!R$134,\n'[10]SM2 - DECC Scenario 1 equiv'!R$134,\n'[10]SM3 - DECC Scenario 2 equiv'!R$134,\n'[10]SM4 - DNO Scenario 4 equiv'!R$134)","v":0},{"$f":"CHOOSE(view,\n'[9]M1a - Model inputs'!S$134,\n'[9]M1b - Model inputs'!S$134,\n'[9]SM1 - DECC Scenario 3 equiv'!S$134,\n'[9]SM2 - DECC Scenario 1 equiv'!S$134,\n'[9]SM3 - DECC Scenario 2 equiv'!S$134,\n'[9]SM4 - DNO Scenario 4 equiv'!S$134,\n'[10]M1a - Model inputs'!S$134,\n'[10]M1b - Model inputs'!S$134,\n'[10]SM1 - DECC Scenario 3 equiv'!S$134,\n'[10]SM2 - DECC Scenario 1 equiv'!S$134,\n'[10]SM3 - DECC Scenario 2 equiv'!S$134,\n'[10]SM4 - DNO Scenario 4 equiv'!S$134)","v":0}]
[null,null,null,null,{"$f":"Input!E251","v":"Revenue protection services (ES5) net position"},null,{"$f":"Input!G251","v":"£m 12/13 prices"},null,null,null,null,null,null,null,null,null,null,null,null,null,null,null,null,null,null,null,null,null,null,null,null,null,null,null,null,{"$f":"SUM(AJ249, -AJ250)","v":0},{"$f":"SUM(AK249, -AK250)","v":0},0,0,0,0,0,0]
[]
[null,null,null,null,{"$f":"Input!E253","v":"Metering services (non legacy) (ES6) revenue"},null,{"$f":"Input!G253","v":"£m 12/13 prices"},null,null,null,null,null,null,null,null,null,null,null,null,null,null,null,null,null,null,null,null,null,null,null,null,null,null,null,null,{"$f":"CHOOSE(view,\n'[9]M1a - Model inputs'!L$148,\n'[9]M1b - Model inputs'!L$148,\n'[9]SM1 - DECC Scenario 3 equiv'!L$148,\n'[9]SM2 - DECC Scenario 1 equiv'!L$148,\n'[9]SM3 - DECC Scenario 2 equiv'!L$148,\n'[9]SM4 - DNO Scenario 4 equiv'!L$148,\n'[10]M1a - Model inputs'!L$148,\n'[10]M1b - Model inputs'!L$148,\n'[10]SM1 - DECC Scenario 3 equiv'!L$148,\n'[10]SM2 - DECC Scenario 1 equiv'!L$148,\n'[10]SM3 - DECC Scenario 2 equiv'!L$148,\n'[10]SM4 - DNO Scenario 4 equiv'!L$148)","v":-0.06},{"$f":"CHOOSE(view,\n'[9]M1a - Model inputs'!M$148,\n'[9]M1b - Model inputs'!M$148,\n'[9]SM1 - DECC Scenario 3 equiv'!M$148,\n'[9]SM2 - DECC Scenario 1 equiv'!M$148,\n'[9]SM3 - DECC Scenario 2 equiv'!M$148,\n'[9]SM4 - DNO Scenario 4 equiv'!M$148,\n'[10]M1a - Model inputs'!M$148,\n'[10]M1b - Model inputs'!M$148,\n'[10]SM1 - DECC Scenario 3 equiv'!M$148,\n'[10]SM2 - DECC Scenario 1 equiv'!M$148,\n'[10]SM3 - DECC Scenario 2 equiv'!M$148,\n'[10]SM4 - DNO Scenario 4 equiv'!M$148)","v":-0.05},{"$f":"CHOOSE(view,\n'[9]M1a - Model inputs'!N$148,\n'[9]M1b - Model inputs'!N$148,\n'[9]SM1 - DECC Scenario 3 equiv'!N$148,\n'[9]SM2 - DECC Scenario 1 equiv'!N$148,\n'[9]SM3 - DECC Scenario 2 equiv'!N$148,\n'[9]SM4 - DNO Scenario 4 equiv'!N$148,\n'[10]M1a - Model inputs'!N$148,\n'[10]M1b - Model inputs'!N$148,\n'[10]SM1 - DECC Scenario 3 equiv'!N$148,\n'[10]SM2 - DECC Scenario 1 equiv'!N$148,\n'[10]SM3 - DECC Scenario 2 equiv'!N$148,\n'[10]SM4 - DNO Scenario 4 equiv'!N$148)","v":-0.04},{"$f":"CHOOSE(view,\n'[9]M1a - Model inputs'!O$148,\n'[9]M1b - Model inputs'!O$148,\n'[9]SM1 - DECC Scenario 3 equiv'!O$148,\n'[9]SM2 - DECC Scenario 1 equiv'!O$148,\n'[9]SM3 - DECC Scenario 2 equiv'!O$148,\n'[9]SM4 - DNO Scenario 4 equiv'!O$148,\n'[10]M1a - Model inputs'!O$148,\n'[10]M1b - Model inputs'!O$148,\n'[10]SM1 - DECC Scenario 3 equiv'!O$148,\n'[10]SM2 - DECC Scenario 1 equiv'!O$148,\n'[10]SM3 - DECC Scenario 2 equiv'!O$148,\n'[10]SM4 - DNO Scenario 4 equiv'!O$148)","v":-0.02},{"$f":"CHOOSE(view,\n'[9]M1a - Model inputs'!P$148,\n'[9]M1b - Model inputs'!P$148,\n'[9]SM1 - DECC Scenario 3 equiv'!P$148,\n'[9]SM2 - DECC Scenario 1 equiv'!P$148,\n'[9]SM3 - DECC Scenario 2 equiv'!P$148,\n'[9]SM4 - DNO Scenario 4 equiv'!P$148,\n'[10]M1a - Model inputs'!P$148,\n'[10]M1b - Model inputs'!P$148,\n'[10]SM1 - DECC Scenario 3 equiv'!P$148,\n'[10]SM2 - DECC Scenario 1 equiv'!P$148,\n'[10]SM3 - DECC Scenario 2 equiv'!P$148,\n'[10]SM4 - DNO Scenario 4 equiv'!P$148)","v":-0.01},{"$f":"CHOOSE(view,\n'[9]M1a - Model inputs'!Q$148,\n'[9]M1b - Model inputs'!Q$148,\n'[9]SM1 - DECC Scenario 3 equiv'!Q$148,\n'[9]SM2 - DECC Scenario 1 equiv'!Q$148,\n'[9]SM3 - DECC Scenario 2 equiv'!Q$148,\n'[9]SM4 - DNO Scenario 4 equiv'!Q$148,\n'[10]M1a - Model inputs'!Q$148,\n'[10]M1b - Model inputs'!Q$148,\n'[10]SM1 - DECC Scenario 3 equiv'!Q$148,\n'[10]SM2 - DECC Scenario 1 equiv'!Q$148,\n'[10]SM3 - DECC Scenario 2 equiv'!Q$148,\n'[10]SM4 - DNO Scenario 4 equiv'!Q$148)","v":0},{"$f":"CHOOSE(view,\n'[9]M1a - Model inputs'!R$148,\n'[9]M1b - Model inputs'!R$148,\n'[9]SM1 - DECC Scenario 3 equiv'!R$148,\n'[9]SM2 - DECC Scenario 1 equiv'!R$148,\n'[9]SM3 - DECC Scenario 2 equiv'!R$148,\n'[9]SM4 - DNO Scenario 4 equiv'!R$148,\n'[10]M1a - Model inputs'!R$148,\n'[10]M1b - Model inputs'!R$148,\n'[10]SM1 - DECC Scenario 3 equiv'!R$148,\n'[10]SM2 - DECC Scenario 1 equiv'!R$148,\n'[10]SM3 - DECC Scenario 2 equiv'!R$148,\n'[10]SM4 - DNO Scenario 4 equiv'!R$148)","v":0},{"$f":"CHOOSE(view,\n'[9]M1a - Model inputs'!S$148,\n'[9]M1b - Model inputs'!S$148,\n'[9]SM1 - DECC Scenario 3 equiv'!S$148,\n'[9]SM2 - DECC Scenario 1 equiv'!S$148,\n'[9]SM3 - DECC Scenario 2 equiv'!S$148,\n'[9]SM4 - DNO Scenario 4 equiv'!S$148,\n'[10]M1a - Model inputs'!S$148,\n'[10]M1b - Model inputs'!S$148,\n'[10]SM1 - DECC Scenario 3 equiv'!S$148,\n'[10]SM2 - DECC Scenario 1 equiv'!S$148,\n'[10]SM3 - DECC Scenario 2 equiv'!S$148,\n'[10]SM4 - DNO Scenario 4 equiv'!S$148)","v":0}]
[null,null,null,null,{"$f":"Input!E254","v":"Metering services (non legacy) (ES6) costs"},null,{"$f":"Input!G254","v":"£m 12/13 prices"},null,null,null,null,null,null,null,null,null,null,null,null,null,null,null,null,null,null,null,null,null,null,null,null,null,null,null,null,{"$f":"CHOOSE(view,\n'[9]M1a - Model inputs'!L$135,\n'[9]M1b - Model inputs'!L$135,\n'[9]SM1 - DECC Scenario 3 equiv'!L$135,\n'[9]SM2 - DECC Scenario 1 equiv'!L$135,\n'[9]SM3 - DECC Scenario 2 equiv'!L$135,\n'[9]SM4 - DNO Scenario 4 equiv'!L$135,\n'[10]M1a - Model inputs'!L$135,\n'[10]M1b - Model inputs'!L$135,\n'[10]SM1 - DECC Scenario 3 equiv'!L$135,\n'[10]SM2 - DECC Scenario 1 equiv'!L$135,\n'[10]SM3 - DECC Scenario 2 equiv'!L$135,\n'[10]SM4 - DNO Scenario 4 equiv'!L$135)","v":0},{"$f":"CHOOSE(view,\n'[9]M1a - Model inputs'!M$135,\n'[9]M1b - Model inputs'!M$135,\n'[9]SM1 - DECC Scenario 3 equiv'!M$135,\n'[9]SM2 - DECC Scenario 1 equiv'!M$135,\n'[9]SM3 - DECC Scenario 2 equiv'!M$135,\n'[9]SM4 - DNO Scenario 4 equiv'!M$135,\n'[10]M1a - Model inputs'!M$135,\n'[10]M1b - Model inputs'!M$135,\n'[10]SM1 - DECC Scenario 3 equiv'!M$135,\n'[10]SM2 - DECC Scenario 1 equiv'!M$135,\n'[10]SM3 - DECC Scenario 2 equiv'!M$135,\n'[10]SM4 - DNO Scenario 4 equiv'!M$135)","v":0},{"$f":"CHOOSE(view,\n'[9]M1a - Model inputs'!N$135,\n'[9]M1b - Model inputs'!N$135,\n'[9]SM1 - DECC Scenario 3 equiv'!N$135,\n'[9]SM2 - DECC Scenario 1 equiv'!N$135,\n'[9]SM3 - DECC Scenario 2 equiv'!N$135,\n'[9]SM4 - DNO Scenario 4 equiv'!N$135,\n'[10]M1a - Model inputs'!N$135,\n'[10]M1b - Model inputs'!N$135,\n'[10]SM1 - DECC Scenario 3 equiv'!N$135,\n'[10]SM2 - DECC Scenario 1 equiv'!N$135,\n'[10]SM3 - DECC Scenario 2 equiv'!N$135,\n'[10]SM4 - DNO Scenario 4 equiv'!N$135)","v":0},{"$f":"CHOOSE(view,\n'[9]M1a - Model inputs'!O$135,\n'[9]M1b - Model inputs'!O$135,\n'[9]SM1 - DECC Scenario 3 equiv'!O$135,\n'[9]SM2 - DECC Scenario 1 equiv'!O$135,\n'[9]SM3 - DECC Scenario 2 equiv'!O$135,\n'[9]SM4 - DNO Scenario 4 equiv'!O$135,\n'[10]M1a - Model inputs'!O$135,\n'[10]M1b - Model inputs'!O$135,\n'[10]SM1 - DECC Scenario 3 equiv'!O$135,\n'[10]SM2 - DECC Scenario 1 equiv'!O$135,\n'[10]SM3 - DECC Scenario 2 equiv'!O$135,\n'[10]SM4 - DNO Scenario 4 equiv'!O$135)","v":0},{"$f":"CHOOSE(view,\n'[9]M1a - Model inputs'!P$135,\n'[9]M1b - Model inputs'!P$135,\n'[9]SM1 - DECC Scenario 3 equiv'!P$135,\n'[9]SM2 - DECC Scenario 1 equiv'!P$135,\n'[9]SM3 - DECC Scenario 2 equiv'!P$135,\n'[9]SM4 - DNO Scenario 4 equiv'!P$135,\n'[10]M1a - Model inputs'!P$135,\n'[10]M1b - Model inputs'!P$135,\n'[10]SM1 - DECC Scenario 3 equiv'!P$135,\n'[10]SM2 - DECC Scenario 1 equiv'!P$135,\n'[10]SM3 - DECC Scenario 2 equiv'!P$135,\n'[10]SM4 - DNO Scenario 4 equiv'!P$135)","v":0},{"$f":"CHOOSE(view,\n'[9]M1a - Model inputs'!Q$135,\n'[9]M1b - Model inputs'!Q$135,\n'[9]SM1 - DECC Scenario 3 equiv'!Q$135,\n'[9]SM2 - DECC Scenario 1 equiv'!Q$135,\n'[9]SM3 - DECC Scenario 2 equiv'!Q$135,\n'[9]SM4 - DNO Scenario 4 equiv'!Q$135,\n'[10]M1a - Model inputs'!Q$135,\n'[10]M1b - Model inputs'!Q$135,\n'[10]SM1 - DECC Scenario 3 equiv'!Q$135,\n'[10]SM2 - DECC Scenario 1 equiv'!Q$135,\n'[10]SM3 - DECC Scenario 2 equiv'!Q$135,\n'[10]SM4 - DNO Scenario 4 equiv'!Q$135)","v":0},{"$f":"CHOOSE(view,\n'[9]M1a - Model inputs'!R$135,\n'[9]M1b - Model inputs'!R$135,\n'[9]SM1 - DECC Scenario 3 equiv'!R$135,\n'[9]SM2 - DECC Scenario 1 equiv'!R$135,\n'[9]SM3 - DECC Scenario 2 equiv'!R$135,\n'[9]SM4 - DNO Scenario 4 equiv'!R$135,\n'[10]M1a - Model inputs'!R$135,\n'[10]M1b - Model inputs'!R$135,\n'[10]SM1 - DECC Scenario 3 equiv'!R$135,\n'[10]SM2 - DECC Scenario 1 equiv'!R$135,\n'[10]SM3 - DECC Scenario 2 equiv'!R$135,\n'[10]SM4 - DNO Scenario 4 equiv'!R$135)","v":0},{"$f":"CHOOSE(view,\n'[9]M1a - Model inputs'!S$135,\n'[9]M1b - Model inputs'!S$135,\n'[9]SM1 - DECC Scenario 3 equiv'!S$135,\n'[9]SM2 - DECC Scenario 1 equiv'!S$135,\n'[9]SM3 - DECC Scenario 2 equiv'!S$135,\n'[9]SM4 - DNO Scenario 4 equiv'!S$135,\n'[10]M1a - Model inputs'!S$135,\n'[10]M1b - Model inputs'!S$135,\n'[10]SM1 - DECC Scenario 3 equiv'!S$135,\n'[10]SM2 - DECC Scenario 1 equiv'!S$135,\n'[10]SM3 - DECC Scenario 2 equiv'!S$135,\n'[10]SM4 - DNO Scenario 4 equiv'!S$135)","v":0}]
[null,null,null,null,{"$f":"Input!E255","v":"Metering services (non legacy) (ES6) net position"},null,{"$f":"Input!G255","v":"£m 12/13 prices"},null,null,null,null,null,null,null,null,null,null,null,null,null,null,null,null,null,null,null,null,null,null,null,null,null,null,null,null,{"$f":"SUM(AJ253, -AJ254)","v":-0.06},{"$f":"SUM(AK253, -AK254)","v":-0.05},-0.04,-0.02,-0.01,0,0,0]
[]
[null,null,null,null,{"$f":"Input!E257","v":"Metering services (legacy)  revenue"},null,{"$f":"Input!G257","v":"£m 12/13 prices"},null,null,null,null,null,null,null,null,null,null,null,null,null,null,null,null,null,null,null,null,null,null,null,null,null,null,null,null,{"$f":"CHOOSE(view,\n'[9]M1a - Model inputs'!L$149,\n'[9]M1b - Model inputs'!L$149,\n'[9]SM1 - DECC Scenario 3 equiv'!L$149,\n'[9]SM2 - DECC Scenario 1 equiv'!L$149,\n'[9]SM3 - DECC Scenario 2 equiv'!L$149,\n'[9]SM4 - DNO Scenario 4 equiv'!L$149,\n'[10]M1a - Model inputs'!L$149,\n'[10]M1b - Model inputs'!L$149,\n'[10]SM1 - DECC Scenario 3 equiv'!L$149,\n'[10]SM2 - DECC Scenario 1 equiv'!L$149,\n'[10]SM3 - DECC Scenario 2 equiv'!L$149,\n'[10]SM4 - DNO Scenario 4 equiv'!L$149)","v":-1.3},{"$f":"CHOOSE(view,\n'[9]M1a - Model inputs'!M$149,\n'[9]M1b - Model inputs'!M$149,\n'[9]SM1 - DECC Scenario 3 equiv'!M$149,\n'[9]SM2 - DECC Scenario 1 equiv'!M$149,\n'[9]SM3 - DECC Scenario 2 equiv'!M$149,\n'[9]SM4 - DNO Scenario 4 equiv'!M$149,\n'[10]M1a - Model inputs'!M$149,\n'[10]M1b - Model inputs'!M$149,\n'[10]SM1 - DECC Scenario 3 equiv'!M$149,\n'[10]SM2 - DECC Scenario 1 equiv'!M$149,\n'[10]SM3 - DECC Scenario 2 equiv'!M$149,\n'[10]SM4 - DNO Scenario 4 equiv'!M$149)","v":-1.1000000000000001},{"$f":"CHOOSE(view,\n'[9]M1a - Model inputs'!N$149,\n'[9]M1b - Model inputs'!N$149,\n'[9]SM1 - DECC Scenario 3 equiv'!N$149,\n'[9]SM2 - DECC Scenario 1 equiv'!N$149,\n'[9]SM3 - DECC Scenario 2 equiv'!N$149,\n'[9]SM4 - DNO Scenario 4 equiv'!N$149,\n'[10]M1a - Model inputs'!N$149,\n'[10]M1b - Model inputs'!N$149,\n'[10]SM1 - DECC Scenario 3 equiv'!N$149,\n'[10]SM2 - DECC Scenario 1 equiv'!N$149,\n'[10]SM3 - DECC Scenario 2 equiv'!N$149,\n'[10]SM4 - DNO Scenario 4 equiv'!N$149)","v":-0.8},{"$f":"CHOOSE(view,\n'[9]M1a - Model inputs'!O$149,\n'[9]M1b - Model inputs'!O$149,\n'[9]SM1 - DECC Scenario 3 equiv'!O$149,\n'[9]SM2 - DECC Scenario 1 equiv'!O$149,\n'[9]SM3 - DECC Scenario 2 equiv'!O$149,\n'[9]SM4 - DNO Scenario 4 equiv'!O$149,\n'[10]M1a - Model inputs'!O$149,\n'[10]M1b - Model inputs'!O$149,\n'[10]SM1 - DECC Scenario 3 equiv'!O$149,\n'[10]SM2 - DECC Scenario 1 equiv'!O$149,\n'[10]SM3 - DECC Scenario 2 equiv'!O$149,\n'[10]SM4 - DNO Scenario 4 equiv'!O$149)","v":-0.5},{"$f":"CHOOSE(view,\n'[9]M1a - Model inputs'!P$149,\n'[9]M1b - Model inputs'!P$149,\n'[9]SM1 - DECC Scenario 3 equiv'!P$149,\n'[9]SM2 - DECC Scenario 1 equiv'!P$149,\n'[9]SM3 - DECC Scenario 2 equiv'!P$149,\n'[9]SM4 - DNO Scenario 4 equiv'!P$149,\n'[10]M1a - Model inputs'!P$149,\n'[10]M1b - Model inputs'!P$149,\n'[10]SM1 - DECC Scenario 3 equiv'!P$149,\n'[10]SM2 - DECC Scenario 1 equiv'!P$149,\n'[10]SM3 - DECC Scenario 2 equiv'!P$149,\n'[10]SM4 - DNO Scenario 4 equiv'!P$149)","v":-0.2},{"$f":"CHOOSE(view,\n'[9]M1a - Model inputs'!Q$149,\n'[9]M1b - Model inputs'!Q$149,\n'[9]SM1 - DECC Scenario 3 equiv'!Q$149,\n'[9]SM2 - DECC Scenario 1 equiv'!Q$149,\n'[9]SM3 - DECC Scenario 2 equiv'!Q$149,\n'[9]SM4 - DNO Scenario 4 equiv'!Q$149,\n'[10]M1a - Model inputs'!Q$149,\n'[10]M1b - Model inputs'!Q$149,\n'[10]SM1 - DECC Scenario 3 equiv'!Q$149,\n'[10]SM2 - DECC Scenario 1 equiv'!Q$149,\n'[10]SM3 - DECC Scenario 2 equiv'!Q$149,\n'[10]SM4 - DNO Scenario 4 equiv'!Q$149)","v":0},{"$f":"CHOOSE(view,\n'[9]M1a - Model inputs'!R$149,\n'[9]M1b - Model inputs'!R$149,\n'[9]SM1 - DECC Scenario 3 equiv'!R$149,\n'[9]SM2 - DECC Scenario 1 equiv'!R$149,\n'[9]SM3 - DECC Scenario 2 equiv'!R$149,\n'[9]SM4 - DNO Scenario 4 equiv'!R$149,\n'[10]M1a - Model inputs'!R$149,\n'[10]M1b - Model inputs'!R$149,\n'[10]SM1 - DECC Scenario 3 equiv'!R$149,\n'[10]SM2 - DECC Scenario 1 equiv'!R$149,\n'[10]SM3 - DECC Scenario 2 equiv'!R$149,\n'[10]SM4 - DNO Scenario 4 equiv'!R$149)","v":0},{"$f":"CHOOSE(view,\n'[9]M1a - Model inputs'!S$149,\n'[9]M1b - Model inputs'!S$149,\n'[9]SM1 - DECC Scenario 3 equiv'!S$149,\n'[9]SM2 - DECC Scenario 1 equiv'!S$149,\n'[9]SM3 - DECC Scenario 2 equiv'!S$149,\n'[9]SM4 - DNO Scenario 4 equiv'!S$149,\n'[10]M1a - Model inputs'!S$149,\n'[10]M1b - Model inputs'!S$149,\n'[10]SM1 - DECC Scenario 3 equiv'!S$149,\n'[10]SM2 - DECC Scenario 1 equiv'!S$149,\n'[10]SM3 - DECC Scenario 2 equiv'!S$149,\n'[10]SM4 - DNO Scenario 4 equiv'!S$149)","v":0}]
[null,null,null,null,{"$f":"Input!E258","v":"Metering services (legacy)  costs"},null,{"$f":"Input!G258","v":"£m 12/13 prices"},null,null,null,null,null,null,null,null,null,null,null,null,null,null,null,null,null,null,null,null,null,null,null,null,null,null,null,null,{"$f":"CHOOSE(view,\n'[9]M1a - Model inputs'!L$136,\n'[9]M1b - Model inputs'!L$136,\n'[9]SM1 - DECC Scenario 3 equiv'!L$136,\n'[9]SM2 - DECC Scenario 1 equiv'!L$136,\n'[9]SM3 - DECC Scenario 2 equiv'!L$136,\n'[9]SM4 - DNO Scenario 4 equiv'!L$136,\n'[10]M1a - Model inputs'!L$136,\n'[10]M1b - Model inputs'!L$136,\n'[10]SM1 - DECC Scenario 3 equiv'!L$136,\n'[10]SM2 - DECC Scenario 1 equiv'!L$136,\n'[10]SM3 - DECC Scenario 2 equiv'!L$136,\n'[10]SM4 - DNO Scenario 4 equiv'!L$136)","v":1.7549000148252185E-3},{"$f":"CHOOSE(view,\n'[9]M1a - Model inputs'!M$136,\n'[9]M1b - Model inputs'!M$136,\n'[9]SM1 - DECC Scenario 3 equiv'!M$136,\n'[9]SM2 - DECC Scenario 1 equiv'!M$136,\n'[9]SM3 - DECC Scenario 2 equiv'!M$136,\n'[9]SM4 - DNO Scenario 4 equiv'!M$136,\n'[10]M1a - Model inputs'!M$136,\n'[10]M1b - Model inputs'!M$136,\n'[10]SM1 - DECC Scenario 3 equiv'!M$136,\n'[10]SM2 - DECC Scenario 1 equiv'!M$136,\n'[10]SM3 - DECC Scenario 2 equiv'!M$136,\n'[10]SM4 - DNO Scenario 4 equiv'!M$136)","v":1.7379631011525895E-3},{"$f":"CHOOSE(view,\n'[9]M1a - Model inputs'!N$136,\n'[9]M1b - Model inputs'!N$136,\n'[9]SM1 - DECC Scenario 3 equiv'!N$136,\n'[9]SM2 - DECC Scenario 1 equiv'!N$136,\n'[9]SM3 - DECC Scenario 2 equiv'!N$136,\n'[9]SM4 - DNO Scenario 4 equiv'!N$136,\n'[10]M1a - Model inputs'!N$136,\n'[10]M1b - Model inputs'!N$136,\n'[10]SM1 - DECC Scenario 3 equiv'!N$136,\n'[10]SM2 - DECC Scenario 1 equiv'!N$136,\n'[10]SM3 - DECC Scenario 2 equiv'!N$136,\n'[10]SM4 - DNO Scenario 4 equiv'!N$136)","v":1.711448260439662E-3},{"$f":"CHOOSE(view,\n'[9]M1a - Model inputs'!O$136,\n'[9]M1b - Model inputs'!O$136,\n'[9]SM1 - DECC Scenario 3 equiv'!O$136,\n'[9]SM2 - DECC Scenario 1 equiv'!O$136,\n'[9]SM3 - DECC Scenario 2 equiv'!O$136,\n'[9]SM4 - DNO Scenario 4 equiv'!O$136,\n'[10]M1a - Model inputs'!O$136,\n'[10]M1b - Model inputs'!O$136,\n'[10]SM1 - DECC Scenario 3 equiv'!O$136,\n'[10]SM2 - DECC Scenario 1 equiv'!O$136,\n'[10]SM3 - DECC Scenario 2 equiv'!O$136,\n'[10]SM4 - DNO Scenario 4 equiv'!O$136)","v":1.6858144391053279E-3},{"$f":"CHOOSE(view,\n'[9]M1a - Model inputs'!P$136,\n'[9]M1b - Model inputs'!P$136,\n'[9]SM1 - DECC Scenario 3 equiv'!P$136,\n'[9]SM2 - DECC Scenario 1 equiv'!P$136,\n'[9]SM3 - DECC Scenario 2 equiv'!P$136,\n'[9]SM4 - DNO Scenario 4 equiv'!P$136,\n'[10]M1a - Model inputs'!P$136,\n'[10]M1b - Model inputs'!P$136,\n'[10]SM1 - DECC Scenario 3 equiv'!P$136,\n'[10]SM2 - DECC Scenario 1 equiv'!P$136,\n'[10]SM3 - DECC Scenario 2 equiv'!P$136,\n'[10]SM4 - DNO Scenario 4 equiv'!P$136)","v":1.3663392533170714E-3},{"$f":"CHOOSE(view,\n'[9]M1a - Model inputs'!Q$136,\n'[9]M1b - Model inputs'!Q$136,\n'[9]SM1 - DECC Scenario 3 equiv'!Q$136,\n'[9]SM2 - DECC Scenario 1 equiv'!Q$136,\n'[9]SM3 - DECC Scenario 2 equiv'!Q$136,\n'[9]SM4 - DNO Scenario 4 equiv'!Q$136,\n'[10]M1a - Model inputs'!Q$136,\n'[10]M1b - Model inputs'!Q$136,\n'[10]SM1 - DECC Scenario 3 equiv'!Q$136,\n'[10]SM2 - DECC Scenario 1 equiv'!Q$136,\n'[10]SM3 - DECC Scenario 2 equiv'!Q$136,\n'[10]SM4 - DNO Scenario 4 equiv'!Q$136)","v":1.3604120448186044E-3},{"$f":"CHOOSE(view,\n'[9]M1a - Model inputs'!R$136,\n'[9]M1b - Model inputs'!R$136,\n'[9]SM1 - DECC Scenario 3 equiv'!R$136,\n'[9]SM2 - DECC Scenario 1 equiv'!R$136,\n'[9]SM3 - DECC Scenario 2 equiv'!R$136,\n'[9]SM4 - DNO Scenario 4 equiv'!R$136,\n'[10]M1a - Model inputs'!R$136,\n'[10]M1b - Model inputs'!R$136,\n'[10]SM1 - DECC Scenario 3 equiv'!R$136,\n'[10]SM2 - DECC Scenario 1 equiv'!R$136,\n'[10]SM3 - DECC Scenario 2 equiv'!R$136,\n'[10]SM4 - DNO Scenario 4 equiv'!R$136)","v":1.4056013520196938E-3},{"$f":"CHOOSE(view,\n'[9]M1a - Model inputs'!S$136,\n'[9]M1b - Model inputs'!S$136,\n'[9]SM1 - DECC Scenario 3 equiv'!S$136,\n'[9]SM2 - DECC Scenario 1 equiv'!S$136,\n'[9]SM3 - DECC Scenario 2 equiv'!S$136,\n'[9]SM4 - DNO Scenario 4 equiv'!S$136,\n'[10]M1a - Model inputs'!S$136,\n'[10]M1b - Model inputs'!S$136,\n'[10]SM1 - DECC Scenario 3 equiv'!S$136,\n'[10]SM2 - DECC Scenario 1 equiv'!S$136,\n'[10]SM3 - DECC Scenario 2 equiv'!S$136,\n'[10]SM4 - DNO Scenario 4 equiv'!S$136)","v":1.3761581176676774E-3}]
[null,null,null,null,{"$f":"Input!E259","v":"Metering services (legacy)  net position"},null,{"$f":"Input!G259","v":"£m 12/13 prices"},null,null,null,null,null,null,null,null,null,null,null,null,null,null,null,null,null,null,null,null,null,null,null,null,null,null,null,null,{"$f":"SUM(AJ257, -AJ258)","v":-1.3017549000148252},{"$f":"SUM(AK257, -AK258)","v":-1.1017379631011526},-0.80171144826043972,-0.50168581443910532,-0.20136633925331709,-1.3604120448186044E-3,-1.4056013520196938E-3,-1.3761581176676774E-3]
[]
[null,null,null,null,{"$f":"Input!E261","v":"Metering services associated with the SM roll out revenue"},null,{"$f":"Input!G261","v":"£m 12/13 prices"},null,null,null,null,null,null,null,null,null,null,null,null,null,null,null,null,null,null,null,null,null,null,null,null,null,null,null,null,{"$f":"CHOOSE(view,\n'[9]M1a - Model inputs'!L$150,\n'[9]M1b - Model inputs'!L$150,\n'[9]SM1 - DECC Scenario 3 equiv'!L$150,\n'[9]SM2 - DECC Scenario 1 equiv'!L$150,\n'[9]SM3 - DECC Scenario 2 equiv'!L$150,\n'[9]SM4 - DNO Scenario 4 equiv'!L$150,\n'[10]M1a - Model inputs'!L$150,\n'[10]M1b - Model inputs'!L$150,\n'[10]SM1 - DECC Scenario 3 equiv'!L$150,\n'[10]SM2 - DECC Scenario 1 equiv'!L$150,\n'[10]SM3 - DECC Scenario 2 equiv'!L$150,\n'[10]SM4 - DNO Scenario 4 equiv'!L$150)","v":-0.04},{"$f":"CHOOSE(view,\n'[9]M1a - Model inputs'!M$150,\n'[9]M1b - Model inputs'!M$150,\n'[9]SM1 - DECC Scenario 3 equiv'!M$150,\n'[9]SM2 - DECC Scenario 1 equiv'!M$150,\n'[9]SM3 - DECC Scenario 2 equiv'!M$150,\n'[9]SM4 - DNO Scenario 4 equiv'!M$150,\n'[10]M1a - Model inputs'!M$150,\n'[10]M1b - Model inputs'!M$150,\n'[10]SM1 - DECC Scenario 3 equiv'!M$150,\n'[10]SM2 - DECC Scenario 1 equiv'!M$150,\n'[10]SM3 - DECC Scenario 2 equiv'!M$150,\n'[10]SM4 - DNO Scenario 4 equiv'!M$150)","v":-0.08},{"$f":"CHOOSE(view,\n'[9]M1a - Model inputs'!N$150,\n'[9]M1b - Model inputs'!N$150,\n'[9]SM1 - DECC Scenario 3 equiv'!N$150,\n'[9]SM2 - DECC Scenario 1 equiv'!N$150,\n'[9]SM3 - DECC Scenario 2 equiv'!N$150,\n'[9]SM4 - DNO Scenario 4 equiv'!N$150,\n'[10]M1a - Model inputs'!N$150,\n'[10]M1b - Model inputs'!N$150,\n'[10]SM1 - DECC Scenario 3 equiv'!N$150,\n'[10]SM2 - DECC Scenario 1 equiv'!N$150,\n'[10]SM3 - DECC Scenario 2 equiv'!N$150,\n'[10]SM4 - DNO Scenario 4 equiv'!N$150)","v":-0.1},{"$f":"CHOOSE(view,\n'[9]M1a - Model inputs'!O$150,\n'[9]M1b - Model inputs'!O$150,\n'[9]SM1 - DECC Scenario 3 equiv'!O$150,\n'[9]SM2 - DECC Scenario 1 equiv'!O$150,\n'[9]SM3 - DECC Scenario 2 equiv'!O$150,\n'[9]SM4 - DNO Scenario 4 equiv'!O$150,\n'[10]M1a - Model inputs'!O$150,\n'[10]M1b - Model inputs'!O$150,\n'[10]SM1 - DECC Scenario 3 equiv'!O$150,\n'[10]SM2 - DECC Scenario 1 equiv'!O$150,\n'[10]SM3 - DECC Scenario 2 equiv'!O$150,\n'[10]SM4 - DNO Scenario 4 equiv'!O$150)","v":-0.14000000000000001},{"$f":"CHOOSE(view,\n'[9]M1a - Model inputs'!P$150,\n'[9]M1b - Model inputs'!P$150,\n'[9]SM1 - DECC Scenario 3 equiv'!P$150,\n'[9]SM2 - DECC Scenario 1 equiv'!P$150,\n'[9]SM3 - DECC Scenario 2 equiv'!P$150,\n'[9]SM4 - DNO Scenario 4 equiv'!P$150,\n'[10]M1a - Model inputs'!P$150,\n'[10]M1b - Model inputs'!P$150,\n'[10]SM1 - DECC Scenario 3 equiv'!P$150,\n'[10]SM2 - DECC Scenario 1 equiv'!P$150,\n'[10]SM3 - DECC Scenario 2 equiv'!P$150,\n'[10]SM4 - DNO Scenario 4 equiv'!P$150)","v":-0.12},{"$f":"CHOOSE(view,\n'[9]M1a - Model inputs'!Q$150,\n'[9]M1b - Model inputs'!Q$150,\n'[9]SM1 - DECC Scenario 3 equiv'!Q$150,\n'[9]SM2 - DECC Scenario 1 equiv'!Q$150,\n'[9]SM3 - DECC Scenario 2 equiv'!Q$150,\n'[9]SM4 - DNO Scenario 4 equiv'!Q$150,\n'[10]M1a - Model inputs'!Q$150,\n'[10]M1b - Model inputs'!Q$150,\n'[10]SM1 - DECC Scenario 3 equiv'!Q$150,\n'[10]SM2 - DECC Scenario 1 equiv'!Q$150,\n'[10]SM3 - DECC Scenario 2 equiv'!Q$150,\n'[10]SM4 - DNO Scenario 4 equiv'!Q$150)","v":-0.08},{"$f":"CHOOSE(view,\n'[9]M1a - Model inputs'!R$150,\n'[9]M1b - Model inputs'!R$150,\n'[9]SM1 - DECC Scenario 3 equiv'!R$150,\n'[9]SM2 - DECC Scenario 1 equiv'!R$150,\n'[9]SM3 - DECC Scenario 2 equiv'!R$150,\n'[9]SM4 - DNO Scenario 4 equiv'!R$150,\n'[10]M1a - Model inputs'!R$150,\n'[10]M1b - Model inputs'!R$150,\n'[10]SM1 - DECC Scenario 3 equiv'!R$150,\n'[10]SM2 - DECC Scenario 1 equiv'!R$150,\n'[10]SM3 - DECC Scenario 2 equiv'!R$150,\n'[10]SM4 - DNO Scenario 4 equiv'!R$150)","v":0},{"$f":"CHOOSE(view,\n'[9]M1a - Model inputs'!S$150,\n'[9]M1b - Model inputs'!S$150,\n'[9]SM1 - DECC Scenario 3 equiv'!S$150,\n'[9]SM2 - DECC Scenario 1 equiv'!S$150,\n'[9]SM3 - DECC Scenario 2 equiv'!S$150,\n'[9]SM4 - DNO Scenario 4 equiv'!S$150,\n'[10]M1a - Model inputs'!S$150,\n'[10]M1b - Model inputs'!S$150,\n'[10]SM1 - DECC Scenario 3 equiv'!S$150,\n'[10]SM2 - DECC Scenario 1 equiv'!S$150,\n'[10]SM3 - DECC Scenario 2 equiv'!S$150,\n'[10]SM4 - DNO Scenario 4 equiv'!S$150)","v":0}]
[null,null,null,null,{"$f":"Input!E262","v":"Metering services associated with the SM roll out costs"},null,{"$f":"Input!G262","v":"£m 12/13 prices"},null,null,null,null,null,null,null,null,null,null,null,null,null,null,null,null,null,null,null,null,null,null,null,null,null,null,null,null,{"$f":"CHOOSE(view,\n'[9]M1a - Model inputs'!L$137,\n'[9]M1b - Model inputs'!L$137,\n'[9]SM1 - DECC Scenario 3 equiv'!L$137,\n'[9]SM2 - DECC Scenario 1 equiv'!L$137,\n'[9]SM3 - DECC Scenario 2 equiv'!L$137,\n'[9]SM4 - DNO Scenario 4 equiv'!L$137,\n'[10]M1a - Model inputs'!L$137,\n'[10]M1b - Model inputs'!L$137,\n'[10]SM1 - DECC Scenario 3 equiv'!L$137,\n'[10]SM2 - DECC Scenario 1 equiv'!L$137,\n'[10]SM3 - DECC Scenario 2 equiv'!L$137,\n'[10]SM4 - DNO Scenario 4 equiv'!L$137)","v":0.04},{"$f":"CHOOSE(view,\n'[9]M1a - Model inputs'!M$137,\n'[9]M1b - Model inputs'!M$137,\n'[9]SM1 - DECC Scenario 3 equiv'!M$137,\n'[9]SM2 - DECC Scenario 1 equiv'!M$137,\n'[9]SM3 - DECC Scenario 2 equiv'!M$137,\n'[9]SM4 - DNO Scenario 4 equiv'!M$137,\n'[10]M1a - Model inputs'!M$137,\n'[10]M1b - Model inputs'!M$137,\n'[10]SM1 - DECC Scenario 3 equiv'!M$137,\n'[10]SM2 - DECC Scenario 1 equiv'!M$137,\n'[10]SM3 - DECC Scenario 2 equiv'!M$137,\n'[10]SM4 - DNO Scenario 4 equiv'!M$137)","v":0.08},{"$f":"CHOOSE(view,\n'[9]M1a - Model inputs'!N$137,\n'[9]M1b - Model inputs'!N$137,\n'[9]SM1 - DECC Scenario 3 equiv'!N$137,\n'[9]SM2 - DECC Scenario 1 equiv'!N$137,\n'[9]SM3 - DECC Scenario 2 equiv'!N$137,\n'[9]SM4 - DNO Scenario 4 equiv'!N$137,\n'[10]M1a - Model inputs'!N$137,\n'[10]M1b - Model inputs'!N$137,\n'[10]SM1 - DECC Scenario 3 equiv'!N$137,\n'[10]SM2 - DECC Scenario 1 equiv'!N$137,\n'[10]SM3 - DECC Scenario 2 equiv'!N$137,\n'[10]SM4 - DNO Scenario 4 equiv'!N$137)","v":0.1},{"$f":"CHOOSE(view,\n'[9]M1a - Model inputs'!O$137,\n'[9]M1b - Model inputs'!O$137,\n'[9]SM1 - DECC Scenario 3 equiv'!O$137,\n'[9]SM2 - DECC Scenario 1 equiv'!O$137,\n'[9]SM3 - DECC Scenario 2 equiv'!O$137,\n'[9]SM4 - DNO Scenario 4 equiv'!O$137,\n'[10]M1a - Model inputs'!O$137,\n'[10]M1b - Model inputs'!O$137,\n'[10]SM1 - DECC Scenario 3 equiv'!O$137,\n'[10]SM2 - DECC Scenario 1 equiv'!O$137,\n'[10]SM3 - DECC Scenario 2 equiv'!O$137,\n'[10]SM4 - DNO Scenario 4 equiv'!O$137)","v":0.14000000000000001},{"$f":"CHOOSE(view,\n'[9]M1a - Model inputs'!P$137,\n'[9]M1b - Model inputs'!P$137,\n'[9]SM1 - DECC Scenario 3 equiv'!P$137,\n'[9]SM2 - DECC Scenario 1 equiv'!P$137,\n'[9]SM3 - DECC Scenario 2 equiv'!P$137,\n'[9]SM4 - DNO Scenario 4 equiv'!P$137,\n'[10]M1a - Model inputs'!P$137,\n'[10]M1b - Model inputs'!P$137,\n'[10]SM1 - DECC Scenario 3 equiv'!P$137,\n'[10]SM2 - DECC Scenario 1 equiv'!P$137,\n'[10]SM3 - DECC Scenario 2 equiv'!P$137,\n'[10]SM4 - DNO Scenario 4 equiv'!P$137)","v":0.12},{"$f":"CHOOSE(view,\n'[9]M1a - Model inputs'!Q$137,\n'[9]M1b - Model inputs'!Q$137,\n'[9]SM1 - DECC Scenario 3 equiv'!Q$137,\n'[9]SM2 - DECC Scenario 1 equiv'!Q$137,\n'[9]SM3 - DECC Scenario 2 equiv'!Q$137,\n'[9]SM4 - DNO Scenario 4 equiv'!Q$137,\n'[10]M1a - Model inputs'!Q$137,\n'[10]M1b - Model inputs'!Q$137,\n'[10]SM1 - DECC Scenario 3 equiv'!Q$137,\n'[10]SM2 - DECC Scenario 1 equiv'!Q$137,\n'[10]SM3 - DECC Scenario 2 equiv'!Q$137,\n'[10]SM4 - DNO Scenario 4 equiv'!Q$137)","v":0.08},{"$f":"CHOOSE(view,\n'[9]M1a - Model inputs'!R$137,\n'[9]M1b - Model inputs'!R$137,\n'[9]SM1 - DECC Scenario 3 equiv'!R$137,\n'[9]SM2 - DECC Scenario 1 equiv'!R$137,\n'[9]SM3 - DECC Scenario 2 equiv'!R$137,\n'[9]SM4 - DNO Scenario 4 equiv'!R$137,\n'[10]M1a - Model inputs'!R$137,\n'[10]M1b - Model inputs'!R$137,\n'[10]SM1 - DECC Scenario 3 equiv'!R$137,\n'[10]SM2 - DECC Scenario 1 equiv'!R$137,\n'[10]SM3 - DECC Scenario 2 equiv'!R$137,\n'[10]SM4 - DNO Scenario 4 equiv'!R$137)","v":0},{"$f":"CHOOSE(view,\n'[9]M1a - Model inputs'!S$137,\n'[9]M1b - Model inputs'!S$137,\n'[9]SM1 - DECC Scenario 3 equiv'!S$137,\n'[9]SM2 - DECC Scenario 1 equiv'!S$137,\n'[9]SM3 - DECC Scenario 2 equiv'!S$137,\n'[9]SM4 - DNO Scenario 4 equiv'!S$137,\n'[10]M1a - Model inputs'!S$137,\n'[10]M1b - Model inputs'!S$137,\n'[10]SM1 - DECC Scenario 3 equiv'!S$137,\n'[10]SM2 - DECC Scenario 1 equiv'!S$137,\n'[10]SM3 - DECC Scenario 2 equiv'!S$137,\n'[10]SM4 - DNO Scenario 4 equiv'!S$137)","v":0}]
[null,null,null,null,{"$f":"Input!E263","v":"Metering services associated with the SM roll out net position"},null,{"$f":"Input!G263","v":"£m 12/13 prices"},null,null,null,null,null,null,null,null,null,null,null,null,null,null,null,null,null,null,null,null,null,null,null,null,null,null,null,null,{"$f":"SUM(AJ261, -AJ262)","v":-0.08},{"$f":"SUM(AK261, -AK262)","v":-0.16},-0.2,-0.28000000000000003,-0.24,-0.16,0,0]
[]
[null,null,null,null,{"$f":"Input!E265","v":"De Minimis Activities revenue"},null,{"$f":"Input!G265","v":"£m 12/13 prices"},null,null,null,null,null,null,null,null,null,null,null,null,null,null,null,null,null,null,null,null,null,null,null,null,null,null,null,null,{"$f":"CHOOSE(view,\n'[9]M1a - Model inputs'!L$151,\n'[9]M1b - Model inputs'!L$151,\n'[9]SM1 - DECC Scenario 3 equiv'!L$151,\n'[9]SM2 - DECC Scenario 1 equiv'!L$151,\n'[9]SM3 - DECC Scenario 2 equiv'!L$151,\n'[9]SM4 - DNO Scenario 4 equiv'!L$151,\n'[10]M1a - Model inputs'!L$151,\n'[10]M1b - Model inputs'!L$151,\n'[10]SM1 - DECC Scenario 3 equiv'!L$151,\n'[10]SM2 - DECC Scenario 1 equiv'!L$151,\n'[10]SM3 - DECC Scenario 2 equiv'!L$151,\n'[10]SM4 - DNO Scenario 4 equiv'!L$151)","v":-2.977626488190912},{"$f":"CHOOSE(view,\n'[9]M1a - Model inputs'!M$151,\n'[9]M1b - Model inputs'!M$151,\n'[9]SM1 - DECC Scenario 3 equiv'!M$151,\n'[9]SM2 - DECC Scenario 1 equiv'!M$151,\n'[9]SM3 - DECC Scenario 2 equiv'!M$151,\n'[9]SM4 - DNO Scenario 4 equiv'!M$151,\n'[10]M1a - Model inputs'!M$151,\n'[10]M1b - Model inputs'!M$151,\n'[10]SM1 - DECC Scenario 3 equiv'!M$151,\n'[10]SM2 - DECC Scenario 1 equiv'!M$151,\n'[10]SM3 - DECC Scenario 2 equiv'!M$151,\n'[10]SM4 - DNO Scenario 4 equiv'!M$151)","v":-2.977626488190912},{"$f":"CHOOSE(view,\n'[9]M1a - Model inputs'!N$151,\n'[9]M1b - Model inputs'!N$151,\n'[9]SM1 - DECC Scenario 3 equiv'!N$151,\n'[9]SM2 - DECC Scenario 1 equiv'!N$151,\n'[9]SM3 - DECC Scenario 2 equiv'!N$151,\n'[9]SM4 - DNO Scenario 4 equiv'!N$151,\n'[10]M1a - Model inputs'!N$151,\n'[10]M1b - Model inputs'!N$151,\n'[10]SM1 - DECC Scenario 3 equiv'!N$151,\n'[10]SM2 - DECC Scenario 1 equiv'!N$151,\n'[10]SM3 - DECC Scenario 2 equiv'!N$151,\n'[10]SM4 - DNO Scenario 4 equiv'!N$151)","v":-2.977626488190912},{"$f":"CHOOSE(view,\n'[9]M1a - Model inputs'!O$151,\n'[9]M1b - Model inputs'!O$151,\n'[9]SM1 - DECC Scenario 3 equiv'!O$151,\n'[9]SM2 - DECC Scenario 1 equiv'!O$151,\n'[9]SM3 - DECC Scenario 2 equiv'!O$151,\n'[9]SM4 - DNO Scenario 4 equiv'!O$151,\n'[10]M1a - Model inputs'!O$151,\n'[10]M1b - Model inputs'!O$151,\n'[10]SM1 - DECC Scenario 3 equiv'!O$151,\n'[10]SM2 - DECC Scenario 1 equiv'!O$151,\n'[10]SM3 - DECC Scenario 2 equiv'!O$151,\n'[10]SM4 - DNO Scenario 4 equiv'!O$151)","v":-2.977626488190912},{"$f":"CHOOSE(view,\n'[9]M1a - Model inputs'!P$151,\n'[9]M1b - Model inputs'!P$151,\n'[9]SM1 - DECC Scenario 3 equiv'!P$151,\n'[9]SM2 - DECC Scenario 1 equiv'!P$151,\n'[9]SM3 - DECC Scenario 2 equiv'!P$151,\n'[9]SM4 - DNO Scenario 4 equiv'!P$151,\n'[10]M1a - Model inputs'!P$151,\n'[10]M1b - Model inputs'!P$151,\n'[10]SM1 - DECC Scenario 3 equiv'!P$151,\n'[10]SM2 - DECC Scenario 1 equiv'!P$151,\n'[10]SM3 - DECC Scenario 2 equiv'!P$151,\n'[10]SM4 - DNO Scenario 4 equiv'!P$151)","v":-2.977626488190912},{"$f":"CHOOSE(view,\n'[9]M1a - Model inputs'!Q$151,\n'[9]M1b - Model inputs'!Q$151,\n'[9]SM1 - DECC Scenario 3 equiv'!Q$151,\n'[9]SM2 - DECC Scenario 1 equiv'!Q$151,\n'[9]SM3 - DECC Scenario 2 equiv'!Q$151,\n'[9]SM4 - DNO Scenario 4 equiv'!Q$151,\n'[10]M1a - Model inputs'!Q$151,\n'[10]M1b - Model inputs'!Q$151,\n'[10]SM1 - DECC Scenario 3 equiv'!Q$151,\n'[10]SM2 - DECC Scenario 1 equiv'!Q$151,\n'[10]SM3 - DECC Scenario 2 equiv'!Q$151,\n'[10]SM4 - DNO Scenario 4 equiv'!Q$151)","v":-2.977626488190912},{"$f":"CHOOSE(view,\n'[9]M1a - Model inputs'!R$151,\n'[9]M1b - Model inputs'!R$151,\n'[9]SM1 - DECC Scenario 3 equiv'!R$151,\n'[9]SM2 - DECC Scenario 1 equiv'!R$151,\n'[9]SM3 - DECC Scenario 2 equiv'!R$151,\n'[9]SM4 - DNO Scenario 4 equiv'!R$151,\n'[10]M1a - Model inputs'!R$151,\n'[10]M1b - Model inputs'!R$151,\n'[10]SM1 - DECC Scenario 3 equiv'!R$151,\n'[10]SM2 - DECC Scenario 1 equiv'!R$151,\n'[10]SM3 - DECC Scenario 2 equiv'!R$151,\n'[10]SM4 - DNO Scenario 4 equiv'!R$151)","v":-2.977626488190912},{"$f":"CHOOSE(view,\n'[9]M1a - Model inputs'!S$151,\n'[9]M1b - Model inputs'!S$151,\n'[9]SM1 - DECC Scenario 3 equiv'!S$151,\n'[9]SM2 - DECC Scenario 1 equiv'!S$151,\n'[9]SM3 - DECC Scenario 2 equiv'!S$151,\n'[9]SM4 - DNO Scenario 4 equiv'!S$151,\n'[10]M1a - Model inputs'!S$151,\n'[10]M1b - Model inputs'!S$151,\n'[10]SM1 - DECC Scenario 3 equiv'!S$151,\n'[10]SM2 - DECC Scenario 1 equiv'!S$151,\n'[10]SM3 - DECC Scenario 2 equiv'!S$151,\n'[10]SM4 - DNO Scenario 4 equiv'!S$151)","v":-2.977626488190912}]
[null,null,null,null,{"$f":"Input!E266","v":"De Minimis Activities costs"},null,{"$f":"Input!G266","v":"£m 12/13 prices"},null,null,null,null,null,null,null,null,null,null,null,null,null,null,null,null,null,null,null,null,null,null,null,null,null,null,null,null,{"$f":"CHOOSE(view,\n'[9]M1a - Model inputs'!L$138,\n'[9]M1b - Model inputs'!L$138,\n'[9]SM1 - DECC Scenario 3 equiv'!L$138,\n'[9]SM2 - DECC Scenario 1 equiv'!L$138,\n'[9]SM3 - DECC Scenario 2 equiv'!L$138,\n'[9]SM4 - DNO Scenario 4 equiv'!L$138,\n'[10]M1a - Model inputs'!L$138,\n'[10]M1b - Model inputs'!L$138,\n'[10]SM1 - DECC Scenario 3 equiv'!L$138,\n'[10]SM2 - DECC Scenario 1 equiv'!L$138,\n'[10]SM3 - DECC Scenario 2 equiv'!L$138,\n'[10]SM4 - DNO Scenario 4 equiv'!L$138)","v":2.3804104963662991},{"$f":"CHOOSE(view,\n'[9]M1a - Model inputs'!M$138,\n'[9]M1b - Model inputs'!M$138,\n'[9]SM1 - DECC Scenario 3 equiv'!M$138,\n'[9]SM2 - DECC Scenario 1 equiv'!M$138,\n'[9]SM3 - DECC Scenario 2 equiv'!M$138,\n'[9]SM4 - DNO Scenario 4 equiv'!M$138,\n'[10]M1a - Model inputs'!M$138,\n'[10]M1b - Model inputs'!M$138,\n'[10]SM1 - DECC Scenario 3 equiv'!M$138,\n'[10]SM2 - DECC Scenario 1 equiv'!M$138,\n'[10]SM3 - DECC Scenario 2 equiv'!M$138,\n'[10]SM4 - DNO Scenario 4 equiv'!M$138)","v":2.3707633994715529},{"$f":"CHOOSE(view,\n'[9]M1a - Model inputs'!N$138,\n'[9]M1b - Model inputs'!N$138,\n'[9]SM1 - DECC Scenario 3 equiv'!N$138,\n'[9]SM2 - DECC Scenario 1 equiv'!N$138,\n'[9]SM3 - DECC Scenario 2 equiv'!N$138,\n'[9]SM4 - DNO Scenario 4 equiv'!N$138,\n'[10]M1a - Model inputs'!N$138,\n'[10]M1b - Model inputs'!N$138,\n'[10]SM1 - DECC Scenario 3 equiv'!N$138,\n'[10]SM2 - DECC Scenario 1 equiv'!N$138,\n'[10]SM3 - DECC Scenario 2 equiv'!N$138,\n'[10]SM4 - DNO Scenario 4 equiv'!N$138)","v":2.3245292101224728},{"$f":"CHOOSE(view,\n'[9]M1a - Model inputs'!O$138,\n'[9]M1b - Model inputs'!O$138,\n'[9]SM1 - DECC Scenario 3 equiv'!O$138,\n'[9]SM2 - DECC Scenario 1 equiv'!O$138,\n'[9]SM3 - DECC Scenario 2 equiv'!O$138,\n'[9]SM4 - DNO Scenario 4 equiv'!O$138,\n'[10]M1a - Model inputs'!O$138,\n'[10]M1b - Model inputs'!O$138,\n'[10]SM1 - DECC Scenario 3 equiv'!O$138,\n'[10]SM2 - DECC Scenario 1 equiv'!O$138,\n'[10]SM3 - DECC Scenario 2 equiv'!O$138,\n'[10]SM4 - DNO Scenario 4 equiv'!O$138)","v":2.3105299380168924},{"$f":"CHOOSE(view,\n'[9]M1a - Model inputs'!P$138,\n'[9]M1b - Model inputs'!P$138,\n'[9]SM1 - DECC Scenario 3 equiv'!P$138,\n'[9]SM2 - DECC Scenario 1 equiv'!P$138,\n'[9]SM3 - DECC Scenario 2 equiv'!P$138,\n'[9]SM4 - DNO Scenario 4 equiv'!P$138,\n'[10]M1a - Model inputs'!P$138,\n'[10]M1b - Model inputs'!P$138,\n'[10]SM1 - DECC Scenario 3 equiv'!P$138,\n'[10]SM2 - DECC Scenario 1 equiv'!P$138,\n'[10]SM3 - DECC Scenario 2 equiv'!P$138,\n'[10]SM4 - DNO Scenario 4 equiv'!P$138)","v":2.2842456433257747},{"$f":"CHOOSE(view,\n'[9]M1a - Model inputs'!Q$138,\n'[9]M1b - Model inputs'!Q$138,\n'[9]SM1 - DECC Scenario 3 equiv'!Q$138,\n'[9]SM2 - DECC Scenario 1 equiv'!Q$138,\n'[9]SM3 - DECC Scenario 2 equiv'!Q$138,\n'[9]SM4 - DNO Scenario 4 equiv'!Q$138,\n'[10]M1a - Model inputs'!Q$138,\n'[10]M1b - Model inputs'!Q$138,\n'[10]SM1 - DECC Scenario 3 equiv'!Q$138,\n'[10]SM2 - DECC Scenario 1 equiv'!Q$138,\n'[10]SM3 - DECC Scenario 2 equiv'!Q$138,\n'[10]SM4 - DNO Scenario 4 equiv'!Q$138)","v":2.253454003082259},{"$f":"CHOOSE(view,\n'[9]M1a - Model inputs'!R$138,\n'[9]M1b - Model inputs'!R$138,\n'[9]SM1 - DECC Scenario 3 equiv'!R$138,\n'[9]SM2 - DECC Scenario 1 equiv'!R$138,\n'[9]SM3 - DECC Scenario 2 equiv'!R$138,\n'[9]SM4 - DNO Scenario 4 equiv'!R$138,\n'[10]M1a - Model inputs'!R$138,\n'[10]M1b - Model inputs'!R$138,\n'[10]SM1 - DECC Scenario 3 equiv'!R$138,\n'[10]SM2 - DECC Scenario 1 equiv'!R$138,\n'[10]SM3 - DECC Scenario 2 equiv'!R$138,\n'[10]SM4 - DNO Scenario 4 equiv'!R$138)","v":2.2306513854040508},{"$f":"CHOOSE(view,\n'[9]M1a - Model inputs'!S$138,\n'[9]M1b - Model inputs'!S$138,\n'[9]SM1 - DECC Scenario 3 equiv'!S$138,\n'[9]SM2 - DECC Scenario 1 equiv'!S$138,\n'[9]SM3 - DECC Scenario 2 equiv'!S$138,\n'[9]SM4 - DNO Scenario 4 equiv'!S$138,\n'[10]M1a - Model inputs'!S$138,\n'[10]M1b - Model inputs'!S$138,\n'[10]SM1 - DECC Scenario 3 equiv'!S$138,\n'[10]SM2 - DECC Scenario 1 equiv'!S$138,\n'[10]SM3 - DECC Scenario 2 equiv'!S$138,\n'[10]SM4 - DNO Scenario 4 equiv'!S$138)","v":2.1939910910489946}]
[null,null,null,null,{"$f":"Input!E267","v":"De Minimis Activities net position"},null,{"$f":"Input!G267","v":"£m 12/13 prices"},null,null,null,null,null,null,null,null,null,null,null,null,null,null,null,null,null,null,null,null,null,null,null,null,null,null,null,null,{"$f":"SUM(AJ265, -AJ266)","v":-5.3580369845572111},{"$f":"SUM(AK265, -AK266)","v":-5.3483898876624654},-5.3021556983133848,-5.288156426207804,-5.2618721315166868,-5.231080491273171,-5.2082778735949624,-5.1716175792399071]
[]
[null,null,null,null,{"$f":"Input!E269","v":"Out of Area Networks revenue"},null,{"$f":"Input!G269","v":"£m 12/13 prices"},null,null,null,null,null,null,null,null,null,null,null,null,null,null,null,null,null,null,null,null,null,null,null,null,null,null,null,null,{"$f":"CHOOSE(view,\n'[9]M1a - Model inputs'!L$152,\n'[9]M1b - Model inputs'!L$152,\n'[9]SM1 - DECC Scenario 3 equiv'!L$152,\n'[9]SM2 - DECC Scenario 1 equiv'!L$152,\n'[9]SM3 - DECC Scenario 2 equiv'!L$152,\n'[9]SM4 - DNO Scenario 4 equiv'!L$152,\n'[10]M1a - Model inputs'!L$152,\n'[10]M1b - Model inputs'!L$152,\n'[10]SM1 - DECC Scenario 3 equiv'!L$152,\n'[10]SM2 - DECC Scenario 1 equiv'!L$152,\n'[10]SM3 - DECC Scenario 2 equiv'!L$152,\n'[10]SM4 - DNO Scenario 4 equiv'!L$152)","v":0},{"$f":"CHOOSE(view,\n'[9]M1a - Model inputs'!M$152,\n'[9]M1b - Model inputs'!M$152,\n'[9]SM1 - DECC Scenario 3 equiv'!M$152,\n'[9]SM2 - DECC Scenario 1 equiv'!M$152,\n'[9]SM3 - DECC Scenario 2 equiv'!M$152,\n'[9]SM4 - DNO Scenario 4 equiv'!M$152,\n'[10]M1a - Model inputs'!M$152,\n'[10]M1b - Model inputs'!M$152,\n'[10]SM1 - DECC Scenario 3 equiv'!M$152,\n'[10]SM2 - DECC Scenario 1 equiv'!M$152,\n'[10]SM3 - DECC Scenario 2 equiv'!M$152,\n'[10]SM4 - DNO Scenario 4 equiv'!M$152)","v":0},{"$f":"CHOOSE(view,\n'[9]M1a - Model inputs'!N$152,\n'[9]M1b - Model inputs'!N$152,\n'[9]SM1 - DECC Scenario 3 equiv'!N$152,\n'[9]SM2 - DECC Scenario 1 equiv'!N$152,\n'[9]SM3 - DECC Scenario 2 equiv'!N$152,\n'[9]SM4 - DNO Scenario 4 equiv'!N$152,\n'[10]M1a - Model inputs'!N$152,\n'[10]M1b - Model inputs'!N$152,\n'[10]SM1 - DECC Scenario 3 equiv'!N$152,\n'[10]SM2 - DECC Scenario 1 equiv'!N$152,\n'[10]SM3 - DECC Scenario 2 equiv'!N$152,\n'[10]SM4 - DNO Scenario 4 equiv'!N$152)","v":0},{"$f":"CHOOSE(view,\n'[9]M1a - Model inputs'!O$152,\n'[9]M1b - Model inputs'!O$152,\n'[9]SM1 - DECC Scenario 3 equiv'!O$152,\n'[9]SM2 - DECC Scenario 1 equiv'!O$152,\n'[9]SM3 - DECC Scenario 2 equiv'!O$152,\n'[9]SM4 - DNO Scenario 4 equiv'!O$152,\n'[10]M1a - Model inputs'!O$152,\n'[10]M1b - Model inputs'!O$152,\n'[10]SM1 - DECC Scenario 3 equiv'!O$152,\n'[10]SM2 - DECC Scenario 1 equiv'!O$152,\n'[10]SM3 - DECC Scenario 2 equiv'!O$152,\n'[10]SM4 - DNO Scenario 4 equiv'!O$152)","v":0},{"$f":"CHOOSE(view,\n'[9]M1a - Model inputs'!P$152,\n'[9]M1b - Model inputs'!P$152,\n'[9]SM1 - DECC Scenario 3 equiv'!P$152,\n'[9]SM2 - DECC Scenario 1 equiv'!P$152,\n'[9]SM3 - DECC Scenario 2 equiv'!P$152,\n'[9]SM4 - DNO Scenario 4 equiv'!P$152,\n'[10]M1a - Model inputs'!P$152,\n'[10]M1b - Model inputs'!P$152,\n'[10]SM1 - DECC Scenario 3 equiv'!P$152,\n'[10]SM2 - DECC Scenario 1 equiv'!P$152,\n'[10]SM3 - DECC Scenario 2 equiv'!P$152,\n'[10]SM4 - DNO Scenario 4 equiv'!P$152)","v":0},{"$f":"CHOOSE(view,\n'[9]M1a - Model inputs'!Q$152,\n'[9]M1b - Model inputs'!Q$152,\n'[9]SM1 - DECC Scenario 3 equiv'!Q$152,\n'[9]SM2 - DECC Scenario 1 equiv'!Q$152,\n'[9]SM3 - DECC Scenario 2 equiv'!Q$152,\n'[9]SM4 - DNO Scenario 4 equiv'!Q$152,\n'[10]M1a - Model inputs'!Q$152,\n'[10]M1b - Model inputs'!Q$152,\n'[10]SM1 - DECC Scenario 3 equiv'!Q$152,\n'[10]SM2 - DECC Scenario 1 equiv'!Q$152,\n'[10]SM3 - DECC Scenario 2 equiv'!Q$152,\n'[10]SM4 - DNO Scenario 4 equiv'!Q$152)","v":0},{"$f":"CHOOSE(view,\n'[9]M1a - Model inputs'!R$152,\n'[9]M1b - Model inputs'!R$152,\n'[9]SM1 - DECC Scenario 3 equiv'!R$152,\n'[9]SM2 - DECC Scenario 1 equiv'!R$152,\n'[9]SM3 - DECC Scenario 2 equiv'!R$152,\n'[9]SM4 - DNO Scenario 4 equiv'!R$152,\n'[10]M1a - Model inputs'!R$152,\n'[10]M1b - Model inputs'!R$152,\n'[10]SM1 - DECC Scenario 3 equiv'!R$152,\n'[10]SM2 - DECC Scenario 1 equiv'!R$152,\n'[10]SM3 - DECC Scenario 2 equiv'!R$152,\n'[10]SM4 - DNO Scenario 4 equiv'!R$152)","v":0},{"$f":"CHOOSE(view,\n'[9]M1a - Model inputs'!S$152,\n'[9]M1b - Model inputs'!S$152,\n'[9]SM1 - DECC Scenario 3 equiv'!S$152,\n'[9]SM2 - DECC Scenario 1 equiv'!S$152,\n'[9]SM3 - DECC Scenario 2 equiv'!S$152,\n'[9]SM4 - DNO Scenario 4 equiv'!S$152,\n'[10]M1a - Model inputs'!S$152,\n'[10]M1b - Model inputs'!S$152,\n'[10]SM1 - DECC Scenario 3 equiv'!S$152,\n'[10]SM2 - DECC Scenario 1 equiv'!S$152,\n'[10]SM3 - DECC Scenario 2 equiv'!S$152,\n'[10]SM4 - DNO Scenario 4 equiv'!S$152)","v":0}]
[null,null,null,null,{"$f":"Input!E270","v":"Out of Area Networks costs"},null,{"$f":"Input!G270","v":"£m 12/13 prices"},null,null,null,null,null,null,null,null,null,null,null,null,null,null,null,null,null,null,null,null,null,null,null,null,null,null,null,null,{"$f":"CHOOSE(view,\n'[9]M1a - Model inputs'!L$139,\n'[9]M1b - Model inputs'!L$139,\n'[9]SM1 - DECC Scenario 3 equiv'!L$139,\n'[9]SM2 - DECC Scenario 1 equiv'!L$139,\n'[9]SM3 - DECC Scenario 2 equiv'!L$139,\n'[9]SM4 - DNO Scenario 4 equiv'!L$139,\n'[10]M1a - Model inputs'!L$139,\n'[10]M1b - Model inputs'!L$139,\n'[10]SM1 - DECC Scenario 3 equiv'!L$139,\n'[10]SM2 - DECC Scenario 1 equiv'!L$139,\n'[10]SM3 - DECC Scenario 2 equiv'!L$139,\n'[10]SM4 - DNO Scenario 4 equiv'!L$139)","v":0},{"$f":"CHOOSE(view,\n'[9]M1a - Model inputs'!M$139,\n'[9]M1b - Model inputs'!M$139,\n'[9]SM1 - DECC Scenario 3 equiv'!M$139,\n'[9]SM2 - DECC Scenario 1 equiv'!M$139,\n'[9]SM3 - DECC Scenario 2 equiv'!M$139,\n'[9]SM4 - DNO Scenario 4 equiv'!M$139,\n'[10]M1a - Model inputs'!M$139,\n'[10]M1b - Model inputs'!M$139,\n'[10]SM1 - DECC Scenario 3 equiv'!M$139,\n'[10]SM2 - DECC Scenario 1 equiv'!M$139,\n'[10]SM3 - DECC Scenario 2 equiv'!M$139,\n'[10]SM4 - DNO Scenario 4 equiv'!M$139)","v":0},{"$f":"CHOOSE(view,\n'[9]M1a - Model inputs'!N$139,\n'[9]M1b - Model inputs'!N$139,\n'[9]SM1 - DECC Scenario 3 equiv'!N$139,\n'[9]SM2 - DECC Scenario 1 equiv'!N$139,\n'[9]SM3 - DECC Scenario 2 equiv'!N$139,\n'[9]SM4 - DNO Scenario 4 equiv'!N$139,\n'[10]M1a - Model inputs'!N$139,\n'[10]M1b - Model inputs'!N$139,\n'[10]SM1 - DECC Scenario 3 equiv'!N$139,\n'[10]SM2 - DECC Scenario 1 equiv'!N$139,\n'[10]SM3 - DECC Scenario 2 equiv'!N$139,\n'[10]SM4 - DNO Scenario 4 equiv'!N$139)","v":0},{"$f":"CHOOSE(view,\n'[9]M1a - Model inputs'!O$139,\n'[9]M1b - Model inputs'!O$139,\n'[9]SM1 - DECC Scenario 3 equiv'!O$139,\n'[9]SM2 - DECC Scenario 1 equiv'!O$139,\n'[9]SM3 - DECC Scenario 2 equiv'!O$139,\n'[9]SM4 - DNO Scenario 4 equiv'!O$139,\n'[10]M1a - Model inputs'!O$139,\n'[10]M1b - Model inputs'!O$139,\n'[10]SM1 - DECC Scenario 3 equiv'!O$139,\n'[10]SM2 - DECC Scenario 1 equiv'!O$139,\n'[10]SM3 - DECC Scenario 2 equiv'!O$139,\n'[10]SM4 - DNO Scenario 4 equiv'!O$139)","v":0},{"$f":"CHOOSE(view,\n'[9]M1a - Model inputs'!P$139,\n'[9]M1b - Model inputs'!P$139,\n'[9]SM1 - DECC Scenario 3 equiv'!P$139,\n'[9]SM2 - DECC Scenario 1 equiv'!P$139,\n'[9]SM3 - DECC Scenario 2 equiv'!P$139,\n'[9]SM4 - DNO Scenario 4 equiv'!P$139,\n'[10]M1a - Model inputs'!P$139,\n'[10]M1b - Model inputs'!P$139,\n'[10]SM1 - DECC Scenario 3 equiv'!P$139,\n'[10]SM2 - DECC Scenario 1 equiv'!P$139,\n'[10]SM3 - DECC Scenario 2 equiv'!P$139,\n'[10]SM4 - DNO Scenario 4 equiv'!P$139)","v":0},{"$f":"CHOOSE(view,\n'[9]M1a - Model inputs'!Q$139,\n'[9]M1b - Model inputs'!Q$139,\n'[9]SM1 - DECC Scenario 3 equiv'!Q$139,\n'[9]SM2 - DECC Scenario 1 equiv'!Q$139,\n'[9]SM3 - DECC Scenario 2 equiv'!Q$139,\n'[9]SM4 - DNO Scenario 4 equiv'!Q$139,\n'[10]M1a - Model inputs'!Q$139,\n'[10]M1b - Model inputs'!Q$139,\n'[10]SM1 - DECC Scenario 3 equiv'!Q$139,\n'[10]SM2 - DECC Scenario 1 equiv'!Q$139,\n'[10]SM3 - DECC Scenario 2 equiv'!Q$139,\n'[10]SM4 - DNO Scenario 4 equiv'!Q$139)","v":0},{"$f":"CHOOSE(view,\n'[9]M1a - Model inputs'!R$139,\n'[9]M1b - Model inputs'!R$139,\n'[9]SM1 - DECC Scenario 3 equiv'!R$139,\n'[9]SM2 - DECC Scenario 1 equiv'!R$139,\n'[9]SM3 - DECC Scenario 2 equiv'!R$139,\n'[9]SM4 - DNO Scenario 4 equiv'!R$139,\n'[10]M1a - Model inputs'!R$139,\n'[10]M1b - Model inputs'!R$139,\n'[10]SM1 - DECC Scenario 3 equiv'!R$139,\n'[10]SM2 - DECC Scenario 1 equiv'!R$139,\n'[10]SM3 - DECC Scenario 2 equiv'!R$139,\n'[10]SM4 - DNO Scenario 4 equiv'!R$139)","v":0},{"$f":"CHOOSE(view,\n'[9]M1a - Model inputs'!S$139,\n'[9]M1b - Model inputs'!S$139,\n'[9]SM1 - DECC Scenario 3 equiv'!S$139,\n'[9]SM2 - DECC Scenario 1 equiv'!S$139,\n'[9]SM3 - DECC Scenario 2 equiv'!S$139,\n'[9]SM4 - DNO Scenario 4 equiv'!S$139,\n'[10]M1a - Model inputs'!S$139,\n'[10]M1b - Model inputs'!S$139,\n'[10]SM1 - DECC Scenario 3 equiv'!S$139,\n'[10]SM2 - DECC Scenario 1 equiv'!S$139,\n'[10]SM3 - DECC Scenario 2 equiv'!S$139,\n'[10]SM4 - DNO Scenario 4 equiv'!S$139)","v":0}]
[null,null,null,null,{"$f":"Input!E271","v":"Out of Area Networks net position"},null,{"$f":"Input!G271","v":"£m 12/13 prices"},null,null,null,null,null,null,null,null,null,null,null,null,null,null,null,null,null,null,null,null,null,null,null,null,null,null,null,null,{"$f":"SUM(AJ269, -AJ270)","v":0},{"$f":"SUM(AK269, -AK270)","v":0},0,0,0,0,0,0]
[]
[null,null,null,null,{"$f":"Input!E273","v":"Other consented activities revenue"},null,{"$f":"Input!G273","v":"£m 12/13 prices"},null,null,null,null,null,null,null,null,null,null,null,null,null,null,null,null,null,null,null,null,null,null,null,null,null,null,null,null,{"$f":"CHOOSE(view,\n'[9]M1a - Model inputs'!L$153,\n'[9]M1b - Model inputs'!L$153,\n'[9]SM1 - DECC Scenario 3 equiv'!L$153,\n'[9]SM2 - DECC Scenario 1 equiv'!L$153,\n'[9]SM3 - DECC Scenario 2 equiv'!L$153,\n'[9]SM4 - DNO Scenario 4 equiv'!L$153,\n'[10]M1a - Model inputs'!L$153,\n'[10]M1b - Model inputs'!L$153,\n'[10]SM1 - DECC Scenario 3 equiv'!L$153,\n'[10]SM2 - DECC Scenario 1 equiv'!L$153,\n'[10]SM3 - DECC Scenario 2 equiv'!L$153,\n'[10]SM4 - DNO Scenario 4 equiv'!L$153)","v":0},{"$f":"CHOOSE(view,\n'[9]M1a - Model inputs'!M$153,\n'[9]M1b - Model inputs'!M$153,\n'[9]SM1 - DECC Scenario 3 equiv'!M$153,\n'[9]SM2 - DECC Scenario 1 equiv'!M$153,\n'[9]SM3 - DECC Scenario 2 equiv'!M$153,\n'[9]SM4 - DNO Scenario 4 equiv'!M$153,\n'[10]M1a - Model inputs'!M$153,\n'[10]M1b - Model inputs'!M$153,\n'[10]SM1 - DECC Scenario 3 equiv'!M$153,\n'[10]SM2 - DECC Scenario 1 equiv'!M$153,\n'[10]SM3 - DECC Scenario 2 equiv'!M$153,\n'[10]SM4 - DNO Scenario 4 equiv'!M$153)","v":0},{"$f":"CHOOSE(view,\n'[9]M1a - Model inputs'!N$153,\n'[9]M1b - Model inputs'!N$153,\n'[9]SM1 - DECC Scenario 3 equiv'!N$153,\n'[9]SM2 - DECC Scenario 1 equiv'!N$153,\n'[9]SM3 - DECC Scenario 2 equiv'!N$153,\n'[9]SM4 - DNO Scenario 4 equiv'!N$153,\n'[10]M1a - Model inputs'!N$153,\n'[10]M1b - Model inputs'!N$153,\n'[10]SM1 - DECC Scenario 3 equiv'!N$153,\n'[10]SM2 - DECC Scenario 1 equiv'!N$153,\n'[10]SM3 - DECC Scenario 2 equiv'!N$153,\n'[10]SM4 - DNO Scenario 4 equiv'!N$153)","v":0},{"$f":"CHOOSE(view,\n'[9]M1a - Model inputs'!O$153,\n'[9]M1b - Model inputs'!O$153,\n'[9]SM1 - DECC Scenario 3 equiv'!O$153,\n'[9]SM2 - DECC Scenario 1 equiv'!O$153,\n'[9]SM3 - DECC Scenario 2 equiv'!O$153,\n'[9]SM4 - DNO Scenario 4 equiv'!O$153,\n'[10]M1a - Model inputs'!O$153,\n'[10]M1b - Model inputs'!O$153,\n'[10]SM1 - DECC Scenario 3 equiv'!O$153,\n'[10]SM2 - DECC Scenario 1 equiv'!O$153,\n'[10]SM3 - DECC Scenario 2 equiv'!O$153,\n'[10]SM4 - DNO Scenario 4 equiv'!O$153)","v":0},{"$f":"CHOOSE(view,\n'[9]M1a - Model inputs'!P$153,\n'[9]M1b - Model inputs'!P$153,\n'[9]SM1 - DECC Scenario 3 equiv'!P$153,\n'[9]SM2 - DECC Scenario 1 equiv'!P$153,\n'[9]SM3 - DECC Scenario 2 equiv'!P$153,\n'[9]SM4 - DNO Scenario 4 equiv'!P$153,\n'[10]M1a - Model inputs'!P$153,\n'[10]M1b - Model inputs'!P$153,\n'[10]SM1 - DECC Scenario 3 equiv'!P$153,\n'[10]SM2 - DECC Scenario 1 equiv'!P$153,\n'[10]SM3 - DECC Scenario 2 equiv'!P$153,\n'[10]SM4 - DNO Scenario 4 equiv'!P$153)","v":0},{"$f":"CHOOSE(view,\n'[9]M1a - Model inputs'!Q$153,\n'[9]M1b - Model inputs'!Q$153,\n'[9]SM1 - DECC Scenario 3 equiv'!Q$153,\n'[9]SM2 - DECC Scenario 1 equiv'!Q$153,\n'[9]SM3 - DECC Scenario 2 equiv'!Q$153,\n'[9]SM4 - DNO Scenario 4 equiv'!Q$153,\n'[10]M1a - Model inputs'!Q$153,\n'[10]M1b - Model inputs'!Q$153,\n'[10]SM1 - DECC Scenario 3 equiv'!Q$153,\n'[10]SM2 - DECC Scenario 1 equiv'!Q$153,\n'[10]SM3 - DECC Scenario 2 equiv'!Q$153,\n'[10]SM4 - DNO Scenario 4 equiv'!Q$153)","v":0},{"$f":"CHOOSE(view,\n'[9]M1a - Model inputs'!R$153,\n'[9]M1b - Model inputs'!R$153,\n'[9]SM1 - DECC Scenario 3 equiv'!R$153,\n'[9]SM2 - DECC Scenario 1 equiv'!R$153,\n'[9]SM3 - DECC Scenario 2 equiv'!R$153,\n'[9]SM4 - DNO Scenario 4 equiv'!R$153,\n'[10]M1a - Model inputs'!R$153,\n'[10]M1b - Model inputs'!R$153,\n'[10]SM1 - DECC Scenario 3 equiv'!R$153,\n'[10]SM2 - DECC Scenario 1 equiv'!R$153,\n'[10]SM3 - DECC Scenario 2 equiv'!R$153,\n'[10]SM4 - DNO Scenario 4 equiv'!R$153)","v":0},{"$f":"CHOOSE(view,\n'[9]M1a - Model inputs'!S$153,\n'[9]M1b - Model inputs'!S$153,\n'[9]SM1 - DECC Scenario 3 equiv'!S$153,\n'[9]SM2 - DECC Scenario 1 equiv'!S$153,\n'[9]SM3 - DECC Scenario 2 equiv'!S$153,\n'[9]SM4 - DNO Scenario 4 equiv'!S$153,\n'[10]M1a - Model inputs'!S$153,\n'[10]M1b - Model inputs'!S$153,\n'[10]SM1 - DECC Scenario 3 equiv'!S$153,\n'[10]SM2 - DECC Scenario 1 equiv'!S$153,\n'[10]SM3 - DECC Scenario 2 equiv'!S$153,\n'[10]SM4 - DNO Scenario 4 equiv'!S$153)","v":0}]
[null,null,null,null,{"$f":"Input!E274","v":"Other consented activities costs"},null,{"$f":"Input!G274","v":"£m 12/13 prices"},null,null,null,null,null,null,null,null,null,null,null,null,null,null,null,null,null,null,null,null,null,null,null,null,null,null,null,null,{"$f":"CHOOSE(view,\n'[9]M1a - Model inputs'!L$140,\n'[9]M1b - Model inputs'!L$140,\n'[9]SM1 - DECC Scenario 3 equiv'!L$140,\n'[9]SM2 - DECC Scenario 1 equiv'!L$140,\n'[9]SM3 - DECC Scenario 2 equiv'!L$140,\n'[9]SM4 - DNO Scenario 4 equiv'!L$140,\n'[10]M1a - Model inputs'!L$140,\n'[10]M1b - Model inputs'!L$140,\n'[10]SM1 - DECC Scenario 3 equiv'!L$140,\n'[10]SM2 - DECC Scenario 1 equiv'!L$140,\n'[10]SM3 - DECC Scenario 2 equiv'!L$140,\n'[10]SM4 - DNO Scenario 4 equiv'!L$140)","v":0},{"$f":"CHOOSE(view,\n'[9]M1a - Model inputs'!M$140,\n'[9]M1b - Model inputs'!M$140,\n'[9]SM1 - DECC Scenario 3 equiv'!M$140,\n'[9]SM2 - DECC Scenario 1 equiv'!M$140,\n'[9]SM3 - DECC Scenario 2 equiv'!M$140,\n'[9]SM4 - DNO Scenario 4 equiv'!M$140,\n'[10]M1a - Model inputs'!M$140,\n'[10]M1b - Model inputs'!M$140,\n'[10]SM1 - DECC Scenario 3 equiv'!M$140,\n'[10]SM2 - DECC Scenario 1 equiv'!M$140,\n'[10]SM3 - DECC Scenario 2 equiv'!M$140,\n'[10]SM4 - DNO Scenario 4 equiv'!M$140)","v":0},{"$f":"CHOOSE(view,\n'[9]M1a - Model inputs'!N$140,\n'[9]M1b - Model inputs'!N$140,\n'[9]SM1 - DECC Scenario 3 equiv'!N$140,\n'[9]SM2 - DECC Scenario 1 equiv'!N$140,\n'[9]SM3 - DECC Scenario 2 equiv'!N$140,\n'[9]SM4 - DNO Scenario 4 equiv'!N$140,\n'[10]M1a - Model inputs'!N$140,\n'[10]M1b - Model inputs'!N$140,\n'[10]SM1 - DECC Scenario 3 equiv'!N$140,\n'[10]SM2 - DECC Scenario 1 equiv'!N$140,\n'[10]SM3 - DECC Scenario 2 equiv'!N$140,\n'[10]SM4 - DNO Scenario 4 equiv'!N$140)","v":0},{"$f":"CHOOSE(view,\n'[9]M1a - Model inputs'!O$140,\n'[9]M1b - Model inputs'!O$140,\n'[9]SM1 - DECC Scenario 3 equiv'!O$140,\n'[9]SM2 - DECC Scenario 1 equiv'!O$140,\n'[9]SM3 - DECC Scenario 2 equiv'!O$140,\n'[9]SM4 - DNO Scenario 4 equiv'!O$140,\n'[10]M1a - Model inputs'!O$140,\n'[10]M1b - Model inputs'!O$140,\n'[10]SM1 - DECC Scenario 3 equiv'!O$140,\n'[10]SM2 - DECC Scenario 1 equiv'!O$140,\n'[10]SM3 - DECC Scenario 2 equiv'!O$140,\n'[10]SM4 - DNO Scenario 4 equiv'!O$140)","v":0},{"$f":"CHOOSE(view,\n'[9]M1a - Model inputs'!P$140,\n'[9]M1b - Model inputs'!P$140,\n'[9]SM1 - DECC Scenario 3 equiv'!P$140,\n'[9]SM2 - DECC Scenario 1 equiv'!P$140,\n'[9]SM3 - DECC Scenario 2 equiv'!P$140,\n'[9]SM4 - DNO Scenario 4 equiv'!P$140,\n'[10]M1a - Model inputs'!P$140,\n'[10]M1b - Model inputs'!P$140,\n'[10]SM1 - DECC Scenario 3 equiv'!P$140,\n'[10]SM2 - DECC Scenario 1 equiv'!P$140,\n'[10]SM3 - DECC Scenario 2 equiv'!P$140,\n'[10]SM4 - DNO Scenario 4 equiv'!P$140)","v":0},{"$f":"CHOOSE(view,\n'[9]M1a - Model inputs'!Q$140,\n'[9]M1b - Model inputs'!Q$140,\n'[9]SM1 - DECC Scenario 3 equiv'!Q$140,\n'[9]SM2 - DECC Scenario 1 equiv'!Q$140,\n'[9]SM3 - DECC Scenario 2 equiv'!Q$140,\n'[9]SM4 - DNO Scenario 4 equiv'!Q$140,\n'[10]M1a - Model inputs'!Q$140,\n'[10]M1b - Model inputs'!Q$140,\n'[10]SM1 - DECC Scenario 3 equiv'!Q$140,\n'[10]SM2 - DECC Scenario 1 equiv'!Q$140,\n'[10]SM3 - DECC Scenario 2 equiv'!Q$140,\n'[10]SM4 - DNO Scenario 4 equiv'!Q$140)","v":0},{"$f":"CHOOSE(view,\n'[9]M1a - Model inputs'!R$140,\n'[9]M1b - Model inputs'!R$140,\n'[9]SM1 - DECC Scenario 3 equiv'!R$140,\n'[9]SM2 - DECC Scenario 1 equiv'!R$140,\n'[9]SM3 - DECC Scenario 2 equiv'!R$140,\n'[9]SM4 - DNO Scenario 4 equiv'!R$140,\n'[10]M1a - Model inputs'!R$140,\n'[10]M1b - Model inputs'!R$140,\n'[10]SM1 - DECC Scenario 3 equiv'!R$140,\n'[10]SM2 - DECC Scenario 1 equiv'!R$140,\n'[10]SM3 - DECC Scenario 2 equiv'!R$140,\n'[10]SM4 - DNO Scenario 4 equiv'!R$140)","v":0},{"$f":"CHOOSE(view,\n'[9]M1a - Model inputs'!S$140,\n'[9]M1b - Model inputs'!S$140,\n'[9]SM1 - DECC Scenario 3 equiv'!S$140,\n'[9]SM2 - DECC Scenario 1 equiv'!S$140,\n'[9]SM3 - DECC Scenario 2 equiv'!S$140,\n'[9]SM4 - DNO Scenario 4 equiv'!S$140,\n'[10]M1a - Model inputs'!S$140,\n'[10]M1b - Model inputs'!S$140,\n'[10]SM1 - DECC Scenario 3 equiv'!S$140,\n'[10]SM2 - DECC Scenario 1 equiv'!S$140,\n'[10]SM3 - DECC Scenario 2 equiv'!S$140,\n'[10]SM4 - DNO Scenario 4 equiv'!S$140)","v":0}]
[null,null,null,null,{"$f":"Input!E275","v":"Other consented activities net position"},null,{"$f":"Input!G275","v":"£m 12/13 prices"},null,null,null,null,null,null,null,null,null,null,null,null,null,null,null,null,null,null,null,null,null,null,null,null,null,null,null,null,{"$f":"SUM(AJ273, -AJ274)","v":0},{"$f":"SUM(AK273, -AK274)","v":0},{"$f":"SUM(AL273, -AL274)","v":0},{"$f":"SUM(AM273, -AM274)","v":0},{"$f":"SUM(AN273, -AN274)","v":0},{"$f":"SUM(AO273, -AO274)","v":0},{"$f":"SUM(AP273, -AP274)","v":0},{"$f":"SUM(AQ273, -AQ274)","v":0}]
[]
[null,null,null,null,{"$f":"Input!E277","v":"Spare revenue"},null,{"$f":"Input!G277","v":"£m 12/13 prices"}]
[null,null,null,null,{"$f":"Input!E278","v":"Spare costs"},null,{"$f":"Input!G278","v":"£m 12/13 prices"}]
[null,null,null,null,{"$f":"Input!E279","v":"Spare net position"},null,{"$f":"Input!G279","v":"£m 12/13 prices"},null,null,null,null,null,null,null,null,null,null,null,null,null,null,null,null,null,null,null,null,null,null,null,null,null,null,null,null,{"$f":"SUM(AJ277, -AJ278)","v":0},{"$f":"SUM(AK277, -AK278)","v":0},{"$f":"SUM(AL277, -AL278)","v":0},{"$f":"SUM(AM277, -AM278)","v":0},{"$f":"SUM(AN277, -AN278)","v":0},{"$f":"SUM(AO277, -AO278)","v":0},{"$f":"SUM(AP277, -AP278)","v":0},{"$f":"SUM(AQ277, -AQ278)","v":0}]
[]
[null,null,null,null,{"$f":"Input!E281","v":"Overall net income of Directly Remunerated Services"},null,{"$f":"Input!G281","v":"£m 12/13 prices"},null,null,null,null,null,null,null,null,null,null,null,null,null,null,null,null,null,null,null,null,null,null,null,null,null,null,null,null,{"$f":"AJ231+AJ235+AJ239+AJ243+AJ247+AJ251+AJ255+AJ259+AJ263+AJ267+AJ271+AJ275+AJ279","v":-10.587565292335331},{"$f":"AK231+AK235+AK239+AK243+AK247+AK251+AK255+AK259+AK263+AK267+AK271+AK275+AK279","v":-10.472125778179144},-10.122860929678293,-9.8972342355511529,-9.5097175814530175,-9.1802764578751948,-8.9996316445809867,-8.9484901688727412]
[]
[null,"RAV and assets"]
[]
[null,null,"Pre-vesting assets"]
[]
[null,null,null,null,{"$f":"Input!E287","v":"Pre-vesting asset life"},null,"years",null,11]
[null,null,null,null,{"$f":"Input!E288","v":"Pre vesting asset depn in first year (mths)"},null,"months",null,3.5]
[]
[null,null,null,null,"Metering Write off",null,"£m 12/13 prices",null,{"$f":"-'[11]F22 Historic RAV lookup data'!$J$29","v":17.366815572593048}]
[]
[null,null,"Post-vesting assets"]
[]
[null,null,null,null,{"$f":"Input!E294","v":"ED"}]
[null,null,null,null,{"$f":"Input!E295","v":"Post-vesting asset life"},null,"years",null,null,">",33.299999999999997,33.299999999999997,33.299999999999997,33.299999999999997,33.299999999999997,33.299999999999997,33.299999999999997,33.299999999999997,33.299999999999997,33.299999999999997,33.299999999999997,33.299999999999997,33.299999999999997,33.299999999999997,33.299999999999997,33.299999999999997,33.299999999999997,33.299999999999997,33.299999999999997,33.299999999999997,33.299999999999997,33.299999999999997,33.299999999999997,33.299999999999997,33.299999999999997,23.125,26.25,29.375,32.5,35.625,38.75,41.875,45]
[null,null,null,null,{"$f":"Input!E296","v":"Accelerated post-vesting asset life"},null,"years",null,null,">",20,20,20,20,20,20,20,20,20,20,20,20,20,20,20,20,20,20,20,20,20,20,20,20,20,23.125,26.25,29.375,32.5,35.625,38.75,41.875,45]
[null,null,null,null,{"$f":"Input!E297","v":"Smoothing period following full depreciation of pre-vesting assets"},null,"years",null,15]
[null,null,null,null,{"$f":"Input!E298","v":"Vesting Period"},null,"year ending",null,"1991-03-31"]
[null,null,null,null,{"$f":"Input!E299","v":"Pre-RIIO net additions to RAV"},null,"£m 12/13 prices",null,null,">",{"$f":"'[11]F21 RAV rollforward & depn'!F$10","v":19.41274072519284},{"$f":"'[11]F21 RAV rollforward & depn'!G$10","v":67.328315054835485},{"$f":"'[11]F21 RAV rollforward & depn'!H$10","v":85.662570184184275},{"$f":"'[11]F21 RAV rollforward & depn'!I$10","v":100.76136852600092},{"$f":"'[11]F21 RAV rollforward & depn'!J$10","v":99.836952300991726},{"$f":"'[11]F21 RAV rollforward & depn'!K$10","v":79.191656609119988},{"$f":"'[11]F21 RAV rollforward & depn'!L$10","v":83.813737734165898},{"$f":"'[11]F21 RAV rollforward & depn'!M$10","v":91.209067534239381},{"$f":"'[11]F21 RAV rollforward & depn'!N$10","v":100.25561549030584},{"$f":"'[11]F21 RAV rollforward & depn'!O$10","v":80.218148121025024},{"$f":"'[11]F21 RAV rollforward & depn'!P$10","v":68.088943594134648},{"$f":"'[11]F21 RAV rollforward & depn'!Q$10","v":63.182789360172542},{"$f":"'[11]F21 RAV rollforward & depn'!R$10","v":66.572793028273367},{"$f":"'[11]F21 RAV rollforward & depn'!S$10","v":62.886737909302646},{"$f":"'[11]F21 RAV rollforward & depn'!T$10","v":61.121139123790158},{"$f":"'[11]F21 RAV rollforward & depn'!U$10","v":60.690982728344657},{"$f":"'[11]F21 RAV rollforward & depn'!V$10","v":68.522831596167478},{"$f":"'[11]F21 RAV rollforward & depn'!W$10","v":70.613715694344492},{"$f":"'[11]F21 RAV rollforward & depn'!X$10","v":70.059032358190422},{"$f":"'[11]F21 RAV rollforward & depn'!Y$10","v":69.975179809884452},{"$f":"'[11]F21 RAV rollforward & depn'!Z$10","v":94.293525879446449},{"$f":"'[11]F21 RAV rollforward & depn'!AA$10","v":79.865484289962183},{"$f":"'[11]F21 RAV rollforward & depn'!AB$10","v":98.902293281712659},{"$f":"[12]CRAV!AH$25","v":97.462554423840871},{"$f":"[12]CRAV!AI$25","v":97.590900993555053}]
[null,null,null,null,"LRAV",null,"£m 12/13 prices",null,null,null,null,null,null,null,null,null,null,null,null,null,null,null,null,null,null,null,null,null,null,null,null,null,null,{"$f":"AH32","v":-10.018008445613475},-6.0085043747740849]
[null,null,null,null,"RIIO post-vesting RAV additions",null,"£m 12/13 prices"]
[null,null,null,null,"RIIO post-vesting RAV disposals",null,"£m 12/13 prices"]
[null,null,null,null,{"$f":"Input!E303","v":"Pre-RIIO transfers to depreciation"},null,"£m 12/13 prices",null,null,">"]
[]
[null,"Tax"]
[]
[null,null,"Tax policy"]
[]
[null,null,null,null,{"$f":"E33","v":"Tax liability allowance adjustments - gearing/interest costs"},null,"£m nominal",null,null,null,null,null,null,null,null,null,null,null,null,null,null,null,null,null,null,null,null,null,null,null,null,null,null,null,null,{"$f":"AJ33","v":0},0,0,0,0,0,0,0]
[null,null,null,null,{"$f":"E34","v":"Tax liability allowance adjustments - driven by tax trigger events"},null,"£m 12/13 prices",null,null,null,null,null,null,null,null,null,null,null,null,null,null,null,null,null,null,null,null,null,null,null,null,null,null,null,null,0,0,0,0,0,0,0,0]
[]
[null,null,null,null,"Corporation tax rate",null,"%",null,null,">",null,null,null,null,null,null,null,null,null,null,null,null,null,null,null,null,null,null,null,null,null,null,null,null,null,0.2,0.2,0.2,0.2,0.2,0.2,0.2,0.2]
[]
[null,null,null,null,"General pool capital allowance rate",null,"%",null,null,">",null,null,null,null,null,null,null,null,null,null,null,null,null,null,null,null,null,null,null,null,null,null,null,null,null,0.18000000000000002,0.18000000000000002,0.18000000000000002,0.18000000000000002,0.18000000000000002,0.18000000000000002,0.18000000000000002,0.18000000000000002]
[null,null,null,null,"Special Rates capital allowance rate",null,"%",null,null,">",null,null,null,null,null,null,null,null,null,null,null,null,null,null,null,null,null,null,null,null,null,null,null,null,null,0.08,0.08,0.08,0.08,0.08,0.08,0.08,0.08]
[null,null,null,null,"Deferred Revenue Expenditure capital allowance rate",null,"%",null,null,">",null,null,null,null,null,null,null,null,null,null,null,null,null,null,null,null,null,null,null,null,null,null,null,null,null,2.2200000000000001E-2,2.2200000000000001E-2,2.2200000000000001E-2,2.2200000000000001E-2,2.2200000000000001E-2,2.2200000000000001E-2,2.2200000000000001E-2,2.2200000000000001E-2]
[]
[null,null,"Capital allowances and tax losses"]
[]
[null,null,null,null,"General pool capital allowance opening balance brought forward",null,"£m nominal",null,null,null,null,null,null,null,null,null,null,null,null,null,null,null,null,null,null,null,null,null,null,null,null,null,null,{"$f":"'[11]F13 Tax CA pools'!$I$58","v":44.129258}]
[null,null,null,null,"General pool capital allowance pre-RIIO movement forecast",null,"£m nominal",null,null,null,null,null,null,null,null,null,null,null,null,null,null,null,null,null,null,null,null,null,null,null,null,null,null,1.8024152949182231,4.026775264958955]
[null,null,null,null,"General pool capital allowance pre-RIIO movement adjustment",null,"£m nominal",null,null,null,null,null,null,null,null,null,null,null,null,null,null,null,null,null,null,null,null,null,null,null,null,null,null,{"$f":"AH35","v":0},{"$f":"AI35","v":0}]
[]
[null,null,null,null,"Special Rate capital allowance opening balance brought forward",null,"£m nominal",null,null,null,null,null,null,null,null,null,null,null,null,null,null,null,null,null,null,null,null,null,null,null,null,null,null,{"$f":"'[11]F13 Tax CA pools'!$I$68","v":177.87232799999998}]
[null,null,null,null,"Special Rate  capital allowance pre-RIIO movement forecast",null,"£m nominal",null,null,null,null,null,null,null,null,null,null,null,null,null,null,null,null,null,null,null,null,null,null,null,null,null,null,10.291932915225527,11.322784249245657]
[null,null,null,null,"Special Rate  capital allowance pre-RIIO movement adjustment",null,"£m nominal",null,null,null,null,null,null,null,null,null,null,null,null,null,null,null,null,null,null,null,null,null,null,null,null,null,null,{"$f":"AH36","v":0},{"$f":"AI36","v":0}]
[]
[null,null,null,null,"Deferred revenue expenditure opening balance brought forward",null,"£m nominal",null,null,null,null,null,null,null,null,null,null,null,null,null,null,null,null,null,null,null,null,null,null,null,null,null,null,{"$f":"'[11]F13 Tax CA pools'!$I$78","v":300.34845999999999}]
[null,null,null,null,"Deferred revenue expenditure pre-RIIO movement forecast",null,"£m nominal",null,null,null,null,null,null,null,null,null,null,null,null,null,null,null,null,null,null,null,null,null,null,null,null,null,null,35.479578654020912,38.073777261294545]
[null,null,null,null,"Deferred revenue expenditure  pre-RIIO movement adjustment",null,"£m nominal",null,null,null,null,null,null,null,null,null,null,null,null,null,null,null,null,null,null,null,null,null,null,null,null,null,null,{"$f":"AH37","v":0},{"$f":"AI37","v":0}]
[]
[null,null,null,null,"DRE: Gross capex up to and including 31 March 2013",null,"£m nominal",null,null,null,null,null,null,null,null,null,null,null,null,null,null,null,null,null,null,null,null,null,null,null,null,null,null,322.479784]
[null,null,null,null,"DRE: Gross capex forecast",null,"£m nominal",null,null,null,null,null,null,null,null,null,null,null,null,null,null,null,null,null,null,null,null,null,null,null,null,null,null,42.784871769409094,46.305173853757886]
[null,null,null,null,"DRE: Gross capex adjustment",null,"£m nominal",null,null,null,null,null,null,null,null,null,null,null,null,null,null,null,null,null,null,null,null,null,null,null,null,null,null,{"$f":"AH38","v":0},{"$f":"AI38","v":0}]
[]
[null,null,null,null,"Tax loss brought forward",null,"£m nominal",null,null,null,null,null,null,null,null,null,null,null,null,null,null,null,null,null,null,null,null,null,null,null,null,null,null,0]
[]
[null,null,"Tax pool allocation"]
[]
[null,null,null,{"$f":"Input!D340","v":"Tax Pool Allocation "}]
[]
[null,null,null,"Allocation to \"General\" pool"]
[]
[null,null,null,null,{"$f":"Input!E344","v":"Load Related"},null,"%",null,null,null,null,null,null,null,null,null,null,null,null,null,null,null,null,null,null,null,null,null,null,null,null,null,null,null,null,0,0,0,0,0,0,0,0]
[null,null,null,null,{"$f":"Input!E345","v":"Non-load related capex - asset replacement"},null,"%",null,null,null,null,null,null,null,null,null,null,null,null,null,null,null,null,null,null,null,null,null,null,null,null,null,null,null,null,2.0533716006609491E-2,2.1274503744210381E-2,2.7314228614283894E-2,2.8016376066888563E-2,3.0493260557656401E-2,2.7323980858262525E-2,2.7093308997315598E-2,2.5205453091470334E-2]
[null,null,null,null,{"$f":"Input!E346","v":"Non-Load Related - other"},null,"%",null,null,null,null,null,null,null,null,null,null,null,null,null,null,null,null,null,null,null,null,null,null,null,null,null,null,null,null,0.9459893469956987,0.90089553792755639,0.8980728394797407,0.94241442739278092,0.95821086085275631,0.9291899073797143,0.89063834681387788,0.96201700066948903]
[null,null,null,null,{"$f":"Input!E347","v":"Faults"},null,"%",null,null,null,null,null,null,null,null,null,null,null,null,null,null,null,null,null,null,null,null,null,null,null,null,null,null,null,null,0,0,0,0,0,0,0,0]
[null,null,null,null,{"$f":"Input!E348","v":"Tree cutting"},null,"%",null,null,null,null,null,null,null,null,null,null,null,null,null,null,null,null,null,null,null,null,null,null,null,null,null,null,null,null,0,0,0,0,0,0,0,0]
[null,null,null,null,{"$f":"Input!E349","v":"Controllable Opex"},null,"%",null,null,null,null,null,null,null,null,null,null,null,null,null,null,null,null,null,null,null,null,null,null,null,null,null,null,null,null,6.1763644816386881E-2,6.1742845063868193E-2,6.1590276697587827E-2,6.1758462489039566E-2,6.2009079878954924E-2,6.287858279043583E-2,6.408547475708512E-2,6.4432953855895328E-2]
[]
[null,null,null,"Allocation to \"Special Rate\" pool"]
[]
[null,null,null,null,{"$f":"Input!E353","v":"Load Related"},null,"%",null,null,null,null,null,null,null,null,null,null,null,null,null,null,null,null,null,null,null,null,null,null,null,null,null,null,null,null,0.90873456162867905,0.89376250399710311,0.95028978951796883,0.97159769870872048,0.95923611322861213,0.9532098752009589,0.91793633538602837,0.93498636885123454]
[null,null,null,null,{"$f":"Input!E354","v":"Non-load related capex - asset replacement"},null,"%",null,null,null,null,null,null,null,null,null,null,null,null,null,null,null,null,null,null,null,null,null,null,null,null,null,null,null,null,0.3407314837430237,0.34594943448260806,0.3175230194953641,0.32046126044214818,0.29394230610097338,0.29694099863053203,0.28950804268723551,0.29030374781363111]
[null,null,null,null,{"$f":"Input!E355","v":"Non-Load Related - other"},null,"%",null,null,null,null,null,null,null,null,null,null,null,null,null,null,null,null,null,null,null,null,null,null,null,null,null,null,null,null,2.0206783423321883E-2,6.944055671953521E-2,5.8803008494032465E-2,1.6739027428099178E-2,2.5529366889777829E-2,2.7569160150726271E-2,3.8438041595730929E-2,2.3660044210267545E-2]
[null,null,null,null,{"$f":"Input!E356","v":"Faults"},null,"%",null,null,null,null,null,null,null,null,null,null,null,null,null,null,null,null,null,null,null,null,null,null,null,null,null,null,null,null,0,0,0,0,0,0,0,0]
[null,null,null,null,{"$f":"Input!E357","v":"Tree cutting"},null,"%",null,null,null,null,null,null,null,null,null,null,null,null,null,null,null,null,null,null,null,null,null,null,null,null,null,null,null,null,0,0,0,0,0,0,0,0]
[null,null,null,null,{"$f":"Input!E358","v":"Controllable Opex"},null,"%",null,null,null,null,null,null,null,null,null,null,null,null,null,null,null,null,null,null,null,null,null,null,null,null,null,null,null,null,0.13912313513587923,0.13902560282020396,0.13867424682343946,0.13902852056958392,0.13958436453136716,0.14151690662768751,0.14421601546214391,0.14498862122949902]
[]
[null,null,null,"Allocation to \"Deferred Revenue\" pool"]
[]
[null,null,null,null,{"$f":"Input!E362","v":"Load Related"},null,"%",null,null,null,null,null,null,null,null,null,null,null,null,null,null,null,null,null,null,null,null,null,null,null,null,null,null,null,null,0,0,0,0,0,0,0,0]
[null,null,null,null,{"$f":"Input!E363","v":"Non-load related capex - asset replacement"},null,"%",null,null,null,null,null,null,null,null,null,null,null,null,null,null,null,null,null,null,null,null,null,null,null,null,null,null,null,null,0.50319346998277503,0.52066614074085016,0.5585785804856116,0.57617506030612187,0.60192941154724799,0.60543461573540502,0.61290672886005448,0.61282351451937678]
[null,null,null,null,{"$f":"Input!E364","v":"Non-Load Related - other"},null,"%",null,null,null,null,null,null,null,null,null,null,null,null,null,null,null,null,null,null,null,null,null,null,null,null,null,null,null,null,2.250456975287318E-3,2.7239470667783407E-3,3.0647329461187599E-3,3.3845906713224406E-3,1.0759566754560972E-3,4.3385206334450449E-3,8.9694871872451377E-3,0]
[null,null,null,null,{"$f":"Input!E365","v":"Faults"},null,"%",null,null,null,null,null,null,null,null,null,null,null,null,null,null,null,null,null,null,null,null,null,null,null,null,null,null,null,null,0.68798148472364151,0.68889149414576978,0.69007414545728241,0.69196263290147098,0.69330835369995047,0.69541990573878543,0.69734528808234708,0.6998005536656936]
[null,null,null,null,{"$f":"Input!E366","v":"Tree cutting"},null,"%",null,null,null,null,null,null,null,null,null,null,null,null,null,null,null,null,null,null,null,null,null,null,null,null,null,null,null,null,0,0,0,0,0,0,0,0]
[null,null,null,null,{"$f":"Input!E367","v":"Controllable Opex"},null,"%",null,null,null,null,null,null,null,null,null,null,null,null,null,null,null,null,null,null,null,null,null,null,null,null,null,null,null,null,0.22744544733015123,0.22728921086944454,0.22671528453648881,0.22729602696492318,0.2282052985319992,0.23136636509928554,0.2357802349772383,0.23704396962576924]
[]
[null,null,null,"Allocation to \"Revenue\" pool"]
[]
[null,null,null,null,{"$f":"Input!E371","v":"Load Related"},null,"%",null,null,null,null,null,null,null,null,null,null,null,null,null,null,null,null,null,null,null,null,null,null,null,null,null,null,null,null,9.1265438371320881E-2,0.10623749600289679,4.9710210482031253E-2,2.8402301291279467E-2,4.0763886771387821E-2,4.6790124799041058E-2,8.2063664613971493E-2,6.5013631148765363E-2]
[null,null,null,null,{"$f":"Input!E372","v":"Non-load related capex - asset replacement"},null,"%",null,null,null,null,null,null,null,null,null,null,null,null,null,null,null,null,null,null,null,null,null,null,null,null,null,null,null,null,2.9267555746007815E-2,2.8539488480540678E-2,3.2802754299075684E-2,3.0862698768129838E-2,3.3430900556833752E-2,3.2318219465694825E-2,3.0824219420194574E-2,2.9016928061390817E-2]
[null,null,null,null,{"$f":"Input!E373","v":"Non-Load Related - other"},null,"%",null,null,null,null,null,null,null,null,null,null,null,null,null,null,null,null,null,null,null,null,null,null,null,null,null,null,null,null,1.8050670753968264E-2,1.0596275885459985E-2,2.16710214033955E-2,1.7154410479862804E-2,8.7280755292730768E-3,1.2871288035444213E-2,8.1372012796750125E-3,1.4322955120243527E-2]
[null,null,null,null,{"$f":"Input!E374","v":"Faults"},null,"%",null,null,null,null,null,null,null,null,null,null,null,null,null,null,null,null,null,null,null,null,null,null,null,null,null,null,null,null,0.31201851527635854,0.31110850585423017,0.30992585454271765,0.30803736709852908,0.30669164630004941,0.30458009426121468,0.30265471191765292,0.30019944633430645]
[null,null,null,null,{"$f":"Input!E375","v":"Tree cutting"},null,"%",null,null,null,null,null,null,null,null,null,null,null,null,null,null,null,null,null,null,null,null,null,null,null,null,null,null,null,null,1,1,1,1,1,1,1,1]
[null,null,null,null,{"$f":"Input!E376","v":"Controllable Opex"},null,"%",null,null,null,null,null,null,null,null,null,null,null,null,null,null,null,null,null,null,null,null,null,null,null,null,null,null,null,null,0.5583884390286401,0.55868195975379709,0.55979481143475329,0.55866246802330344,0.55689532999684022,0.55075270764201001,0.54217890242452804,0.53972325801864907]
[]
[null,null,null,"Allocation to \"Non Qualifying\" pool"]
[]
[null,null,null,null,{"$f":"Input!E380","v":"Load Related"},null,"%",null,null,null,null,null,null,null,null,null,null,null,null,null,null,null,null,null,null,null,null,null,null,null,null,null,null,null,null,0,0,0,0,0,0,0,0]
[null,null,null,null,{"$f":"Input!E381","v":"Non-load related capex - asset replacement"},null,"%",null,null,null,null,null,null,null,null,null,null,null,null,null,null,null,null,null,null,null,null,null,null,null,null,null,null,null,null,0.10627377452158406,8.3570432551790752E-2,6.3781417105664678E-2,4.4484604416711551E-2,4.0204121237288427E-2,3.7982185310105589E-2,3.9667700035199739E-2,4.2650356514130967E-2]
[null,null,null,null,{"$f":"Input!E382","v":"Non-Load Related - other"},null,"%",null,null,null,null,null,null,null,null,null,null,null,null,null,null,null,null,null,null,null,null,null,null,null,null,null,null,null,null,1.3502741851723909E-2,1.6343682400670041E-2,1.8388397676712558E-2,2.0307544027934641E-2,6.4557400527365831E-3,2.6031123800670266E-2,5.3816923123470813E-2,0]
[null,null,null,null,{"$f":"Input!E383","v":"Faults"},null,"%",null,null,null,null,null,null,null,null,null,null,null,null,null,null,null,null,null,null,null,null,null,null,null,null,null,null,null,null,0,0,0,0,0,0,0,0]
[null,null,null,null,{"$f":"Input!E384","v":"Tree cutting"},null,"%",null,null,null,null,null,null,null,null,null,null,null,null,null,null,null,null,null,null,null,null,null,null,null,null,null,null,null,null,0,0,0,0,0,0,0,0]
[null,null,null,null,{"$f":"Input!E385","v":"Controllable Opex"},null,"%",null,null,null,null,null,null,null,null,null,null,null,null,null,null,null,null,null,null,null,null,null,null,null,null,null,null,null,null,1.3279333688942539E-2,1.326038149268619E-2,1.3225380507730778E-2,1.3254521953149878E-2,1.3305927060838519E-2,1.3485437840581075E-2,1.3739372379004647E-2,1.3811197270187437E-2]
[]
[null,null,null,"Allocation check"]
[null,null,null,"Note: All categories should equal 100%"]
[]
[null,null,null,null,{"$f":"Input!E390","v":"Load Related"},null,"%",null,null,null,null,null,null,null,null,null,null,null,null,null,null,null,null,null,null,null,null,null,null,null,null,null,null,null,null,{"$f":"AJ344+AJ353+AJ362+AJ371+AJ380","v":0.99999999999999989},0.99999999999999989,1,1,1,1,0.99999999999999989,0.99999999999999989]
[null,null,null,null,{"$f":"Input!E391","v":"Non-load related capex - asset replacement"},null,"%",null,null,null,null,null,null,null,null,null,null,null,null,null,null,null,null,null,null,null,null,null,null,null,null,null,null,null,null,1,1,0.99999999999999989,1,1,0.99999999999999989,0.99999999999999989,1]
[null,null,null,null,{"$f":"Input!E392","v":"Non-Load Related - other"},null,"%",null,null,null,null,null,null,null,null,null,null,null,null,null,null,null,null,null,null,null,null,null,null,null,null,null,null,null,null,1,1,0.99999999999999989,1,1,1.0000000000000002,0.99999999999999978,1.0000000000000002]
[null,null,null,null,{"$f":"Input!E393","v":"Faults"},null,"%",null,null,null,null,null,null,null,null,null,null,null,null,null,null,null,null,null,null,null,null,null,null,null,null,null,null,null,null,1,1,1,1,0.99999999999999989,1,1,1]
[null,null,null,null,{"$f":"Input!E394","v":"Tree cutting"},null,"%",null,null,null,null,null,null,null,null,null,null,null,null,null,null,null,null,null,null,null,null,null,null,null,null,null,null,null,null,1,1,1,1,1,1,1,1]
[null,null,null,null,{"$f":"Input!E395","v":"Controllable Opex"},null,"%",null,null,null,null,null,null,null,null,null,null,null,null,null,null,null,null,null,null,null,null,null,null,null,null,null,null,null,null,1,1,1.0000000000000002,1,1,1,1,1.0000000000000002]
[]
[null,null,null,"Inputs for statutory depreciation"]
[]
[null,null,null,null,"Statutory depreciation as per BPDT",null,"£m 12/13 prices",null,null,null,null,null,null,null,null,null,null,null,null,null,null,null,null,null,null,null,null,null,null,null,null,null,null,null,null,35.11314667763871,38.786591236896989,42.377540598742684,45.500386187954447,48.769910773137035,50.492190246717669,51.078141127962041,52.238586230277775]
[null,null,null,null,"Capex as per BPDT",null,"£m 12/13 prices",null,null,null,null,null,null,null,null,null,null,null,null,null,null,null,null,null,null,null,null,null,null,null,null,null,null,null,null,120.20244296683811,123.48136230564104,118.8189789653392,131.55213181634579,120.10735961671929,123.77431281887034,122.0636374272282,128.37977643279262]
[]
[]
[null,null,null,"Tax Trigger Deadbands"]
[]
[null,null,null,null,"Tax Trigger Deadband",null,"£m 12/13 prices"]
[]
[null,null,null,"Profiling Values"]
[]
[null,null,null,null,"Initial Profile Adjustment",null,"£m 12/13 prices",null,null,null,null,null,null,null,null,null,null,null,null,null,null,null,null,null,null,null,null,null,null,null,null,null,null,null,null,{"$f":"'Revenue Profiling'!AJ245*'Revenue Profiling'!$G$233","v":0},{"$f":"'Revenue Profiling'!AK245*'Revenue Profiling'!$G$233","v":0},{"$f":"'Revenue Profiling'!AL245*'Revenue Profiling'!$G$233","v":0},{"$f":"'Revenue Profiling'!AM245*'Revenue Profiling'!$G$233","v":0},{"$f":"'Revenue Profiling'!AN245*'Revenue Profiling'!$G$233","v":0},{"$f":"'Revenue Profiling'!AO245*'Revenue Profiling'!$G$233","v":0},{"$f":"'Revenue Profiling'!AP245*'Revenue Profiling'!$G$233","v":0},{"$f":"'Revenue Profiling'!AQ245*'Revenue Profiling'!$G$233","v":0}]
[null,null,null,null,"Time Value of Money Profile Adjustment",null,"£m 12/13 prices",null,null,null,null,null,null,null,null,null,null,null,null,null,null,null,null,null,null,null,null,null,null,null,null,null,null,null,null,{"$f":"'Revenue Profiling'!AJ262*'Revenue Profiling'!$G$233","v":0},{"$f":"'Revenue Profiling'!AK262*'Revenue Profiling'!$G$233","v":0},{"$f":"'Revenue Profiling'!AL262*'Revenue Profiling'!$G$233","v":0},{"$f":"'Revenue Profiling'!AM262*'Revenue Profiling'!$G$233","v":0},{"$f":"'Revenue Profiling'!AN262*'Revenue Profiling'!$G$233","v":0},{"$f":"'Revenue Profiling'!AO262*'Revenue Profiling'!$G$233","v":0},{"$f":"'Revenue Profiling'!AP262*'Revenue Profiling'!$G$233","v":0},{"$f":"'Revenue Profiling'!AQ262*'Revenue Profiling'!$G$233","v":0}]
[null,null,null,null,"Time Value of Money Profile Increment",null,"£m 12/13 prices",null,null,null,null,null,null,null,null,null,null,null,null,null,null,null,null,null,null,null,null,null,null,null,null,null,null,null,null,{"$f":"AJ423","v":0},{"$f":"AK423","v":0},0,0,0,0,0,0]
[]
[null,null,null,null,"Time Value of Money Increment Calculations:"]
[]
[null,null,null,null,"WACC at FP (to be hard pasted at FP)",null,null,null,null,null,null,null,null,null,null,null,null,null,null,null,null,null,null,null,null,null,null,null,null,null,null,null,null,null,null,{"$f":"AJ416","v":4.2429999999999995E-2},{"$f":"AK416","v":4.2429999999999995E-2},4.2429999999999995E-2,4.2429999999999995E-2,4.2429999999999995E-2,4.2429999999999995E-2,4.2429999999999995E-2,4.2429999999999995E-2]
[null,null,null,null,"Current WACC",null,null,null,null,null,null,null,null,null,null,null,null,null,null,null,null,null,null,null,null,null,null,null,null,null,null,null,null,null,null,{"$f":"AJ48","v":4.2429999999999995E-2},{"$f":"AK48","v":4.2429999999999995E-2},4.2429999999999995E-2,4.2429999999999995E-2,4.2429999999999995E-2,4.2429999999999995E-2,4.2429999999999995E-2,4.2429999999999995E-2]
[]
[null,null,null,null,"IOU Account"]
[null,null,null,null,"Opening",null,null,null,null,null,null,null,null,null,null,null,null,null,null,null,null,null,null,null,null,null,null,null,null,null,null,null,null,null,null,1.0000000000000001E-9,1.0000000000000001E-9,1.0000000000000001E-9,1.0000000000000001E-9,1.0000000000000001E-9,1.0000000000000001E-9,1.0000000000000001E-9,1.0000000000000001E-9]
[null,null,null,null,"Profiling Impact on Actual Revenues"]
[null,null,null,null,"Closing balance"]
[]
[null,null,null,null,"Time Value of Money Increment",null,null,null,null,null,null,null,null,null,null,null,null,null,null,null,null,null,null,null,null,null,null,null,null,null,null,null,null,null,null,{"$f":"AVERAGE(AJ419,AJ421)*(AJ416-AJ415)","v":0},{"$f":"AVERAGE(AK419,AK421)*(AK416-AK415)","v":0},0,0,0,0,0,0]

{"sheet":"SWEST","index":28,"n_rows":423,"n_cols":43,"rows_kept":423,"cut":false,"hidden":false,"merged":[]}
["Input"]
[null,"SWEST"]
[null,"WPD SWest"]
[null,"WPD SWest"]
[null,"WPD S West"]
[null,null,null,null,"Parameter","Licence condition","Units","Term","Constant",null,null,null,null,null,null,null,null,null,null,null,null,null,null,null,null,null,null,null,null,null,null,null,null,null,null,"Annual values"]
[null,null,null,null,"PCFM year ending",{"$f":"Cover!C3","v":"LiMo ED C1.93b_WPD_DNO East Mids.xlsm"},null,null,{"$f":"UserInterface!$G$17","v":"2016-03-31"},null,"1991-03-31","1992-03-31","1993-03-31","1994-03-31","1995-03-31","1996-03-31","1997-03-31","1998-03-31","1999-03-31","2000-03-31","2001-03-31","2002-03-31","2003-03-31","2004-03-31","2005-03-31","2006-03-31","2007-03-31","2008-03-31","2009-03-31","2010-03-31","2011-03-31","2012-03-31","2013-03-31","2014-03-31","2015-03-31","2016-03-31","2017-03-31","2018-03-31","2019-03-31","2020-03-31","2021-03-31","2022-03-31","2023-03-31"]
[]
[null,"PCFM Variable Values Table"]
[]
[null,null,null,null,{"$f":"Input!E11","v":"Allowed percentage cost of debt"},{"$f":"Input!F11","v":"XX"},{"$f":"Input!G11","v":"annual real %"},{"$f":"Input!H11","v":"YY"},null,null,null,null,null,null,null,null,null,null,null,null,null,null,null,null,null,null,null,null,null,null,null,null,null,null,null,2.92E-2,2.92E-2,2.92E-2,2.92E-2,2.92E-2,2.92E-2,2.92E-2,2.92E-2]
[null,null,null,null,{"$f":"Input!E12","v":"Actual load related capex"},{"$f":"Input!F12","v":"XX"},{"$f":"Input!G12","v":"£m 12/13 prices"},{"$f":"Input!H12","v":"YY"}]
[null,null,null,null,{"$f":"Input!E13","v":"Actual non-load related capex - asset replacement"},{"$f":"Input!F13","v":"XX"},{"$f":"Input!G13","v":"£m 12/13 prices"},{"$f":"Input!H13","v":"YY"}]
[null,null,null,null,{"$f":"Input!E14","v":"Actual non-load related capex - other"},{"$f":"Input!F14","v":"XX"},{"$f":"Input!G14","v":"£m 12/13 prices"},{"$f":"Input!H14","v":"YY"}]
[null,null,null,null,{"$f":"Input!E15","v":"Actual faults"},{"$f":"Input!F15","v":"XX"},{"$f":"Input!G15","v":"£m 12/13 prices"},{"$f":"Input!H15","v":"YY"}]
[null,null,null,null,{"$f":"Input!E16","v":"Actual tree cutting"},{"$f":"Input!F16","v":"XX"},{"$f":"Input!G16","v":"£m 12/13 prices"},{"$f":"Input!H16","v":"YY"}]
[null,null,null,null,{"$f":"Input!E17","v":"Actual controllable opex"},{"$f":"Input!F17","v":"XX"},{"$f":"Input!G17","v":"£m 12/13 prices"},{"$f":"Input!H17","v":"YY"}]
[null,null,null,null,{"$f":"Input!E18","v":"Allowed uncertain costs (CNI)"},{"$f":"Input!F18","v":"XX"},{"$f":"Input!G18","v":"£m 12/13 prices"},{"$f":"Input!H18","v":"YY"},null,null,null,null,null,null,null,null,null,null,null,null,null,null,null,null,null,null,null,null,null,null,null,null,null,null,null,{"$f":"CHOOSE(view,\n'[13]M1a - Model inputs'!L34+'[13]M1a - Model inputs'!L71,\n'[13]M1b - Model inputs'!L34+'[13]M1b - Model inputs'!L71,\n'[13]SM1 - DECC Scenario 3 equiv'!L34+'[13]SM1 - DECC Scenario 3 equiv'!L71,\n'[13]SM2 - DECC Scenario 1 equiv'!L34+'[13]SM2 - DECC Scenario 1 equiv'!L71,\n'[13]SM3 - DECC Scenario 2 equiv'!L34+'[13]SM3 - DECC Scenario 2 equiv'!L71,\n'[13]SM4 - DNO Scenario 4 equiv'!L34+'[13]SM4 - DNO Scenario 4 equiv'!L71,\n'[14]M1a - Model inputs'!L34+'[13]M1a - Model inputs'!L71,\n'[14]M1b - Model inputs'!L34+'[13]M1b - Model inputs'!L71,\n'[14]SM1 - DECC Scenario 3 equiv'!L34+'[13]SM1 - DECC Scenario 3 equiv'!L71,\n'[14]SM2 - DECC Scenario 1 equiv'!L34+'[13]SM2 - DECC Scenario 1 equiv'!L71,\n'[14]SM3 - DECC Scenario 2 equiv'!L34+'[13]SM3 - DECC Scenario 2 equiv'!L71,\n'[14]SM4 - DNO Scenario 4 equiv'!L34+'[13]SM4 - DNO Scenario 4 equiv'!L71)","v":0},{"$f":"CHOOSE(view,\n'[13]M1a - Model inputs'!M34+'[13]M1a - Model inputs'!M71,\n'[13]M1b - Model inputs'!M34+'[13]M1b - Model inputs'!M71,\n'[13]SM1 - DECC Scenario 3 equiv'!M34+'[13]SM1 - DECC Scenario 3 equiv'!M71,\n'[13]SM2 - DECC Scenario 1 equiv'!M34+'[13]SM2 - DECC Scenario 1 equiv'!M71,\n'[13]SM3 - DECC Scenario 2 equiv'!M34+'[13]SM3 - DECC Scenario 2 equiv'!M71,\n'[13]SM4 - DNO Scenario 4 equiv'!M34+'[13]SM4 - DNO Scenario 4 equiv'!M71,\n'[14]M1a - Model inputs'!M34+'[13]M1a - Model inputs'!M71,\n'[14]M1b - Model inputs'!M34+'[13]M1b - Model inputs'!M71,\n'[14]SM1 - DECC Scenario 3 equiv'!M34+'[13]SM1 - DECC Scenario 3 equiv'!M71,\n'[14]SM2 - DECC Scenario 1 equiv'!M34+'[13]SM2 - DECC Scenario 1 equiv'!M71,\n'[14]SM3 - DECC Scenario 2 equiv'!M34+'[13]SM3 - DECC Scenario 2 equiv'!M71,\n'[14]SM4 - DNO Scenario 4 equiv'!M34+'[13]SM4 - DNO Scenario 4 equiv'!M71)","v":0},{"$f":"CHOOSE(view,\n'[13]M1a - Model inputs'!N34+'[13]M1a - Model inputs'!N71,\n'[13]M1b - Model inputs'!N34+'[13]M1b - Model inputs'!N71,\n'[13]SM1 - DECC Scenario 3 equiv'!N34+'[13]SM1 - DECC Scenario 3 equiv'!N71,\n'[13]SM2 - DECC Scenario 1 equiv'!N34+'[13]SM2 - DECC Scenario 1 equiv'!N71,\n'[13]SM3 - DECC Scenario 2 equiv'!N34+'[13]SM3 - DECC Scenario 2 equiv'!N71,\n'[13]SM4 - DNO Scenario 4 equiv'!N34+'[13]SM4 - DNO Scenario 4 equiv'!N71,\n'[14]M1a - Model inputs'!N34+'[13]M1a - Model inputs'!N71,\n'[14]M1b - Model inputs'!N34+'[13]M1b - Model inputs'!N71,\n'[14]SM1 - DECC Scenario 3 equiv'!N34+'[13]SM1 - DECC Scenario 3 equiv'!N71,\n'[14]SM2 - DECC Scenario 1 equiv'!N34+'[13]SM2 - DECC Scenario 1 equiv'!N71,\n'[14]SM3 - DECC Scenario 2 equiv'!N34+'[13]SM3 - DECC Scenario 2 equiv'!N71,\n'[14]SM4 - DNO Scenario 4 equiv'!N34+'[13]SM4 - DNO Scenario 4 equiv'!N71)","v":0},{"$f":"CHOOSE(view,\n'[13]M1a - Model inputs'!O34+'[13]M1a - Model inputs'!O71,\n'[13]M1b - Model inputs'!O34+'[13]M1b - Model inputs'!O71,\n'[13]SM1 - DECC Scenario 3 equiv'!O34+'[13]SM1 - DECC Scenario 3 equiv'!O71,\n'[13]SM2 - DECC Scenario 1 equiv'!O34+'[13]SM2 - DECC Scenario 1 equiv'!O71,\n'[13]SM3 - DECC Scenario 2 equiv'!O34+'[13]SM3 - DECC Scenario 2 equiv'!O71,\n'[13]SM4 - DNO Scenario 4 equiv'!O34+'[13]SM4 - DNO Scenario 4 equiv'!O71,\n'[14]M1a - Model inputs'!O34+'[13]M1a - Model inputs'!O71,\n'[14]M1b - Model inputs'!O34+'[13]M1b - Model inputs'!O71,\n'[14]SM1 - DECC Scenario 3 equiv'!O34+'[13]SM1 - DECC Scenario 3 equiv'!O71,\n'[14]SM2 - DECC Scenario 1 equiv'!O34+'[13]SM2 - DECC Scenario 1 equiv'!O71,\n'[14]SM3 - DECC Scenario 2 equiv'!O34+'[13]SM3 - DECC Scenario 2 equiv'!O71,\n'[14]SM4 - DNO Scenario 4 equiv'!O34+'[13]SM4 - DNO Scenario 4 equiv'!O71)","v":0},{"$f":"CHOOSE(view,\n'[13]M1a - Model inputs'!P34+'[13]M1a - Model inputs'!P71,\n'[13]M1b - Model inputs'!P34+'[13]M1b - Model inputs'!P71,\n'[13]SM1 - DECC Scenario 3 equiv'!P34+'[13]SM1 - DECC Scenario 3 equiv'!P71,\n'[13]SM2 - DECC Scenario 1 equiv'!P34+'[13]SM2 - DECC Scenario 1 equiv'!P71,\n'[13]SM3 - DECC Scenario 2 equiv'!P34+'[13]SM3 - DECC Scenario 2 equiv'!P71,\n'[13]SM4 - DNO Scenario 4 equiv'!P34+'[13]SM4 - DNO Scenario 4 equiv'!P71,\n'[14]M1a - Model inputs'!P34+'[13]M1a - Model inputs'!P71,\n'[14]M1b - Model inputs'!P34+'[13]M1b - Model inputs'!P71,\n'[14]SM1 - DECC Scenario 3 equiv'!P34+'[13]SM1 - DECC Scenario 3 equiv'!P71,\n'[14]SM2 - DECC Scenario 1 equiv'!P34+'[13]SM2 - DECC Scenario 1 equiv'!P71,\n'[14]SM3 - DECC Scenario 2 equiv'!P34+'[13]SM3 - DECC Scenario 2 equiv'!P71,\n'[14]SM4 - DNO Scenario 4 equiv'!P34+'[13]SM4 - DNO Scenario 4 equiv'!P71)","v":0},{"$f":"CHOOSE(view,\n'[13]M1a - Model inputs'!Q34+'[13]M1a - Model inputs'!Q71,\n'[13]M1b - Model inputs'!Q34+'[13]M1b - Model inputs'!Q71,\n'[13]SM1 - DECC Scenario 3 equiv'!Q34+'[13]SM1 - DECC Scenario 3 equiv'!Q71,\n'[13]SM2 - DECC Scenario 1 equiv'!Q34+'[13]SM2 - DECC Scenario 1 equiv'!Q71,\n'[13]SM3 - DECC Scenario 2 equiv'!Q34+'[13]SM3 - DECC Scenario 2 equiv'!Q71,\n'[13]SM4 - DNO Scenario 4 equiv'!Q34+'[13]SM4 - DNO Scenario 4 equiv'!Q71,\n'[14]M1a - Model inputs'!Q34+'[13]M1a - Model inputs'!Q71,\n'[14]M1b - Model inputs'!Q34+'[13]M1b - Model inputs'!Q71,\n'[14]SM1 - DECC Scenario 3 equiv'!Q34+'[13]SM1 - DECC Scenario 3 equiv'!Q71,\n'[14]SM2 - DECC Scenario 1 equiv'!Q34+'[13]SM2 - DECC Scenario 1 equiv'!Q71,\n'[14]SM3 - DECC Scenario 2 equiv'!Q34+'[13]SM3 - DECC Scenario 2 equiv'!Q71,\n'[14]SM4 - DNO Scenario 4 equiv'!Q34+'[13]SM4 - DNO Scenario 4 equiv'!Q71)","v":0},{"$f":"CHOOSE(view,\n'[13]M1a - Model inputs'!R34+'[13]M1a - Model inputs'!R71,\n'[13]M1b - Model inputs'!R34+'[13]M1b - Model inputs'!R71,\n'[13]SM1 - DECC Scenario 3 equiv'!R34+'[13]SM1 - DECC Scenario 3 equiv'!R71,\n'[13]SM2 - DECC Scenario 1 equiv'!R34+'[13]SM2 - DECC Scenario 1 equiv'!R71,\n'[13]SM3 - DECC Scenario 2 equiv'!R34+'[13]SM3 - DECC Scenario 2 equiv'!R71,\n'[13]SM4 - DNO Scenario 4 equiv'!R34+'[13]SM4 - DNO Scenario 4 equiv'!R71,\n'[14]M1a - Model inputs'!R34+'[13]M1a - Model inputs'!R71,\n'[14]M1b - Model inputs'!R34+'[13]M1b - Model inputs'!R71,\n'[14]SM1 - DECC Scenario 3 equiv'!R34+'[13]SM1 - DECC Scenario 3 equiv'!R71,\n'[14]SM2 - DECC Scenario 1 equiv'!R34+'[13]SM2 - DECC Scenario 1 equiv'!R71,\n'[14]SM3 - DECC Scenario 2 equiv'!R34+'[13]SM3 - DECC Scenario 2 equiv'!R71,\n'[14]SM4 - DNO Scenario 4 equiv'!R34+'[13]SM4 - DNO Scenario 4 equiv'!R71)","v":0},{"$f":"CHOOSE(view,\n'[13]M1a - Model inputs'!S34+'[13]M1a - Model inputs'!S71,\n'[13]M1b - Model inputs'!S34+'[13]M1b - Model inputs'!S71,\n'[13]SM1 - DECC Scenario 3 equiv'!S34+'[13]SM1 - DECC Scenario 3 equiv'!S71,\n'[13]SM2 - DECC Scenario 1 equiv'!S34+'[13]SM2 - DECC Scenario 1 equiv'!S71,\n'[13]SM3 - DECC Scenario 2 equiv'!S34+'[13]SM3 - DECC Scenario 2 equiv'!S71,\n'[13]SM4 - DNO Scenario 4 equiv'!S34+'[13]SM4 - DNO Scenario 4 equiv'!S71,\n'[14]M1a - Model inputs'!S34+'[13]M1a - Model inputs'!S71,\n'[14]M1b - Model inputs'!S34+'[13]M1b - Model inputs'!S71,\n'[14]SM1 - DECC Scenario 3 equiv'!S34+'[13]SM1 - DECC Scenario 3 equiv'!S71,\n'[14]SM2 - DECC Scenario 1 equiv'!S34+'[13]SM2 - DECC Scenario 1 equiv'!S71,\n'[14]SM3 - DECC Scenario 2 equiv'!S34+'[13]SM3 - DECC Scenario 2 equiv'!S71,\n'[14]SM4 - DNO Scenario 4 equiv'!S34+'[13]SM4 - DNO Scenario 4 equiv'!S71)","v":0}]
[null,null,null,null,{"$f":"Input!E19","v":"Allowed uncertain costs (High Value Projects)"},{"$f":"Input!F19","v":"XX"},{"$f":"Input!G19","v":"£m 12/13 prices"},{"$f":"Input!H19","v":"YY"},null,null,null,null,null,null,null,null,null,null,null,null,null,null,null,null,null,null,null,null,null,null,null,null,null,null,null,{"$f":"CHOOSE(view,\nSUM('[13]M1a - Model inputs'!L37:L40)+SUM('[13]M1a - Model inputs'!L74:L77),\nSUM('[13]M1b - Model inputs'!L37:L40)+SUM('[13]M1b - Model inputs'!L74:L77),\nSUM('[13]SM1 - DECC Scenario 3 equiv'!L37:L40)+SUM('[13]SM1 - DECC Scenario 3 equiv'!L74:L77),\nSUM('[13]SM2 - DECC Scenario 1 equiv'!L37:L40)+SUM('[13]SM2 - DECC Scenario 1 equiv'!L74:L77),\nSUM('[13]SM3 - DECC Scenario 2 equiv'!L37:L40)+SUM('[13]SM3 - DECC Scenario 2 equiv'!L74:L77),\nSUM('[13]SM4 - DNO Scenario 4 equiv'!L37:L40)+SUM('[13]SM4 - DNO Scenario 4 equiv'!L74:L77),\nSUM('[14]M1a - Model inputs'!L37:L40)+SUM('[14]M1a - Model inputs'!L74:L77),\nSUM('[14]M1b - Model inputs'!L37:L40)+SUM('[14]M1b - Model inputs'!L74:L77),\nSUM('[14]SM1 - DECC Scenario 3 equiv'!L37:L40)+SUM('[14]SM1 - DECC Scenario 3 equiv'!L74:L77),\nSUM('[14]SM2 - DECC Scenario 1 equiv'!L37:L40)+SUM('[14]SM2 - DECC Scenario 1 equiv'!L74:L77),\nSUM('[14]SM3 - DECC Scenario 2 equiv'!L37:L40)+SUM('[14]SM3 - DECC Scenario 2 equiv'!L74:L77),\nSUM('[14]SM4 - DNO Scenario 4 equiv'!L37:L40)+SUM('[14]SM4 - DNO Scenario 4 equiv'!L74:L77))","v":0},{"$f":"CHOOSE(view,\nSUM('[13]M1a - Model inputs'!M37:M40)+SUM('[13]M1a - Model inputs'!M74:M77),\nSUM('[13]M1b - Model inputs'!M37:M40)+SUM('[13]M1b - Model inputs'!M74:M77),\nSUM('[13]SM1 - DECC Scenario 3 equiv'!M37:M40)+SUM('[13]SM1 - DECC Scenario 3 equiv'!M74:M77),\nSUM('[13]SM2 - DECC Scenario 1 equiv'!M37:M40)+SUM('[13]SM2 - DECC Scenario 1 equiv'!M74:M77),\nSUM('[13]SM3 - DECC Scenario 2 equiv'!M37:M40)+SUM('[13]SM3 - DECC Scenario 2 equiv'!M74:M77),\nSUM('[13]SM4 - DNO Scenario 4 equiv'!M37:M40)+SUM('[13]SM4 - DNO Scenario 4 equiv'!M74:M77),\nSUM('[14]M1a - Model inputs'!M37:M40)+SUM('[14]M1a - Model inputs'!M74:M77),\nSUM('[14]M1b - Model inputs'!M37:M40)+SUM('[14]M1b - Model inputs'!M74:M77),\nSUM('[14]SM1 - DECC Scenario 3 equiv'!M37:M40)+SUM('[14]SM1 - DECC Scenario 3 equiv'!M74:M77),\nSUM('[14]SM2 - DECC Scenario 1 equiv'!M37:M40)+SUM('[14]SM2 - DECC Scenario 1 equiv'!M74:M77),\nSUM('[14]SM3 - DECC Scenario 2 equiv'!M37:M40)+SUM('[14]SM3 - DECC Scenario 2 equiv'!M74:M77),\nSUM('[14]SM4 - DNO Scenario 4 equiv'!M37:M40)+SUM('[14]SM4 - DNO Scenario 4 equiv'!M74:M77))","v":0},{"$f":"CHOOSE(view,\nSUM('[13]M1a - Model inputs'!N37:N40)+SUM('[13]M1a - Model inputs'!N74:N77),\nSUM('[13]M1b - Model inputs'!N37:N40)+SUM('[13]M1b - Model inputs'!N74:N77),\nSUM('[13]SM1 - DECC Scenario 3 equiv'!N37:N40)+SUM('[13]SM1 - DECC Scenario 3 equiv'!N74:N77),\nSUM('[13]SM2 - DECC Scenario 1 equiv'!N37:N40)+SUM('[13]SM2 - DECC Scenario 1 equiv'!N74:N77),\nSUM('[13]SM3 - DECC Scenario 2 equiv'!N37:N40)+SUM('[13]SM3 - DECC Scenario 2 equiv'!N74:N77),\nSUM('[13]SM4 - DNO Scenario 4 equiv'!N37:N40)+SUM('[13]SM4 - DNO Scenario 4 equiv'!N74:N77),\nSUM('[14]M1a - Model inputs'!N37:N40)+SUM('[14]M1a - Model inputs'!N74:N77),\nSUM('[14]M1b - Model inputs'!N37:N40)+SUM('[14]M1b - Model inputs'!N74:N77),\nSUM('[14]SM1 - DECC Scenario 3 equiv'!N37:N40)+SUM('[14]SM1 - DECC Scenario 3 equiv'!N74:N77),\nSUM('[14]SM2 - DECC Scenario 1 equiv'!N37:N40)+SUM('[14]SM2 - DECC Scenario 1 equiv'!N74:N77),\nSUM('[14]SM3 - DECC Scenario 2 equiv'!N37:N40)+SUM('[14]SM3 - DECC Scenario 2 equiv'!N74:N77),\nSUM('[14]SM4 - DNO Scenario 4 equiv'!N37:N40)+SUM('[14]SM4 - DNO Scenario 4 equiv'!N74:N77))","v":0},{"$f":"CHOOSE(view,\nSUM('[13]M1a - Model inputs'!O37:O40)+SUM('[13]M1a - Model inputs'!O74:O77),\nSUM('[13]M1b - Model inputs'!O37:O40)+SUM('[13]M1b - Model inputs'!O74:O77),\nSUM('[13]SM1 - DECC Scenario 3 equiv'!O37:O40)+SUM('[13]SM1 - DECC Scenario 3 equiv'!O74:O77),\nSUM('[13]SM2 - DECC Scenario 1 equiv'!O37:O40)+SUM('[13]SM2 - DECC Scenario 1 equiv'!O74:O77),\nSUM('[13]SM3 - DECC Scenario 2 equiv'!O37:O40)+SUM('[13]SM3 - DECC Scenario 2 equiv'!O74:O77),\nSUM('[13]SM4 - DNO Scenario 4 equiv'!O37:O40)+SUM('[13]SM4 - DNO Scenario 4 equiv'!O74:O77),\nSUM('[14]M1a - Model inputs'!O37:O40)+SUM('[14]M1a - Model inputs'!O74:O77),\nSUM('[14]M1b - Model inputs'!O37:O40)+SUM('[14]M1b - Model inputs'!O74:O77),\nSUM('[14]SM1 - DECC Scenario 3 equiv'!O37:O40)+SUM('[14]SM1 - DECC Scenario 3 equiv'!O74:O77),\nSUM('[14]SM2 - DECC Scenario 1 equiv'!O37:O40)+SUM('[14]SM2 - DECC Scenario 1 equiv'!O74:O77),\nSUM('[14]SM3 - DECC Scenario 2 equiv'!O37:O40)+SUM('[14]SM3 - DECC Scenario 2 equiv'!O74:O77),\nSUM('[14]SM4 - DNO Scenario 4 equiv'!O37:O40)+SUM('[14]SM4 - DNO Scenario 4 equiv'!O74:O77))","v":0},{"$f":"CHOOSE(view,\nSUM('[13]M1a - Model inputs'!P37:P40)+SUM('[13]M1a - Model inputs'!P74:P77),\nSUM('[13]M1b - Model inputs'!P37:P40)+SUM('[13]M1b - Model inputs'!P74:P77),\nSUM('[13]SM1 - DECC Scenario 3 equiv'!P37:P40)+SUM('[13]SM1 - DECC Scenario 3 equiv'!P74:P77),\nSUM('[13]SM2 - DECC Scenario 1 equiv'!P37:P40)+SUM('[13]SM2 - DECC Scenario 1 equiv'!P74:P77),\nSUM('[13]SM3 - DECC Scenario 2 equiv'!P37:P40)+SUM('[13]SM3 - DECC Scenario 2 equiv'!P74:P77),\nSUM('[13]SM4 - DNO Scenario 4 equiv'!P37:P40)+SUM('[13]SM4 - DNO Scenario 4 equiv'!P74:P77),\nSUM('[14]M1a - Model inputs'!P37:P40)+SUM('[14]M1a - Model inputs'!P74:P77),\nSUM('[14]M1b - Model inputs'!P37:P40)+SUM('[14]M1b - Model inputs'!P74:P77),\nSUM('[14]SM1 - DECC Scenario 3 equiv'!P37:P40)+SUM('[14]SM1 - DECC Scenario 3 equiv'!P74:P77),\nSUM('[14]SM2 - DECC Scenario 1 equiv'!P37:P40)+SUM('[14]SM2 - DECC Scenario 1 equiv'!P74:P77),\nSUM('[14]SM3 - DECC Scenario 2 equiv'!P37:P40)+SUM('[14]SM3 - DECC Scenario 2 equiv'!P74:P77),\nSUM('[14]SM4 - DNO Scenario 4 equiv'!P37:P40)+SUM('[14]SM4 - DNO Scenario 4 equiv'!P74:P77))","v":0},{"$f":"CHOOSE(view,\nSUM('[13]M1a - Model inputs'!Q37:Q40)+SUM('[13]M1a - Model inputs'!Q74:Q77),\nSUM('[13]M1b - Model inputs'!Q37:Q40)+SUM('[13]M1b - Model inputs'!Q74:Q77),\nSUM('[13]SM1 - DECC Scenario 3 equiv'!Q37:Q40)+SUM('[13]SM1 - DECC Scenario 3 equiv'!Q74:Q77),\nSUM('[13]SM2 - DECC Scenario 1 equiv'!Q37:Q40)+SUM('[13]SM2 - DECC Scenario 1 equiv'!Q74:Q77),\nSUM('[13]SM3 - DECC Scenario 2 equiv'!Q37:Q40)+SUM('[13]SM3 - DECC Scenario 2 equiv'!Q74:Q77),\nSUM('[13]SM4 - DNO Scenario 4 equiv'!Q37:Q40)+SUM('[13]SM4 - DNO Scenario 4 equiv'!Q74:Q77),\nSUM('[14]M1a - Model inputs'!Q37:Q40)+SUM('[14]M1a - Model inputs'!Q74:Q77),\nSUM('[14]M1b - Model inputs'!Q37:Q40)+SUM('[14]M1b - Model inputs'!Q74:Q77),\nSUM('[14]SM1 - DECC Scenario 3 equiv'!Q37:Q40)+SUM('[14]SM1 - DECC Scenario 3 equiv'!Q74:Q77),\nSUM('[14]SM2 - DECC Scenario 1 equiv'!Q37:Q40)+SUM('[14]SM2 - DECC Scenario 1 equiv'!Q74:Q77),\nSUM('[14]SM3 - DECC Scenario 2 equiv'!Q37:Q40)+SUM('[14]SM3 - DECC Scenario 2 equiv'!Q74:Q77),\nSUM('[14]SM4 - DNO Scenario 4 equiv'!Q37:Q40)+SUM('[14]SM4 - DNO Scenario 4 equiv'!Q74:Q77))","v":0},{"$f":"CHOOSE(view,\nSUM('[13]M1a - Model inputs'!R37:R40)+SUM('[13]M1a - Model inputs'!R74:R77),\nSUM('[13]M1b - Model inputs'!R37:R40)+SUM('[13]M1b - Model inputs'!R74:R77),\nSUM('[13]SM1 - DECC Scenario 3 equiv'!R37:R40)+SUM('[13]SM1 - DECC Scenario 3 equiv'!R74:R77),\nSUM('[13]SM2 - DECC Scenario 1 equiv'!R37:R40)+SUM('[13]SM2 - DECC Scenario 1 equiv'!R74:R77),\nSUM('[13]SM3 - DECC Scenario 2 equiv'!R37:R40)+SUM('[13]SM3 - DECC Scenario 2 equiv'!R74:R77),\nSUM('[13]SM4 - DNO Scenario 4 equiv'!R37:R40)+SUM('[13]SM4 - DNO Scenario 4 equiv'!R74:R77),\nSUM('[14]M1a - Model inputs'!R37:R40)+SUM('[14]M1a - Model inputs'!R74:R77),\nSUM('[14]M1b - Model inputs'!R37:R40)+SUM('[14]M1b - Model inputs'!R74:R77),\nSUM('[14]SM1 - DECC Scenario 3 equiv'!R37:R40)+SUM('[14]SM1 - DECC Scenario 3 equiv'!R74:R77),\nSUM('[14]SM2 - DECC Scenario 1 equiv'!R37:R40)+SUM('[14]SM2 - DECC Scenario 1 equiv'!R74:R77),\nSUM('[14]SM3 - DECC Scenario 2 equiv'!R37:R40)+SUM('[14]SM3 - DECC Scenario 2 equiv'!R74:R77),\nSUM('[14]SM4 - DNO Scenario 4 equiv'!R37:R40)+SUM('[14]SM4 - DNO Scenario 4 equiv'!R74:R77))","v":0},{"$f":"CHOOSE(view,\nSUM('[13]M1a - Model inputs'!S37:S40)+SUM('[13]M1a - Model inputs'!S74:S77),\nSUM('[13]M1b - Model inputs'!S37:S40)+SUM('[13]M1b - Model inputs'!S74:S77),\nSUM('[13]SM1 - DECC Scenario 3 equiv'!S37:S40)+SUM('[13]SM1 - DECC Scenario 3 equiv'!S74:S77),\nSUM('[13]SM2 - DECC Scenario 1 equiv'!S37:S40)+SUM('[13]SM2 - DECC Scenario 1 equiv'!S74:S77),\nSUM('[13]SM3 - DECC Scenario 2 equiv'!S37:S40)+SUM('[13]SM3 - DECC Scenario 2 equiv'!S74:S77),\nSUM('[13]SM4 - DNO Scenario 4 equiv'!S37:S40)+SUM('[13]SM4 - DNO Scenario 4 equiv'!S74:S77),\nSUM('[14]M1a - Model inputs'!S37:S40)+SUM('[14]M1a - Model inputs'!S74:S77),\nSUM('[14]M1b - Model inputs'!S37:S40)+SUM('[14]M1b - Model inputs'!S74:S77),\nSUM('[14]SM1 - DECC Scenario 3 equiv'!S37:S40)+SUM('[14]SM1 - DECC Scenario 3 equiv'!S74:S77),\nSUM('[14]SM2 - DECC Scenario 1 equiv'!S37:S40)+SUM('[14]SM2 - DECC Scenario 1 equiv'!S74:S77),\nSUM('[14]SM3 - DECC Scenario 2 equiv'!S37:S40)+SUM('[14]SM3 - DECC Scenario 2 equiv'!S74:S77),\nSUM('[14]SM4 - DNO Scenario 4 equiv'!S37:S40)+SUM('[14]SM4 - DNO Scenario 4 equiv'!S74:S77))","v":0}]
[null,null,null,null,{"$f":"Input!E20","v":"Allowed uncertain costs (Undergrounding)"},{"$f":"Input!F20","v":"XX"},{"$f":"Input!G20","v":"£m 12/13 prices"},{"$f":"Input!H20","v":"YY"},null,null,null,null,null,null,null,null,null,null,null,null,null,null,null,null,null,null,null,null,null,null,null,null,null,null,null,{"$f":"CHOOSE(view,\n'[13]M1a - Model inputs'!L43+'[13]M1a - Model inputs'!L80,\n'[13]M1b - Model inputs'!L43+'[13]M1b - Model inputs'!L80,\n'[13]SM1 - DECC Scenario 3 equiv'!L43+'[13]SM1 - DECC Scenario 3 equiv'!L80,\n'[13]SM2 - DECC Scenario 1 equiv'!L43+'[13]SM2 - DECC Scenario 1 equiv'!L80,\n'[13]SM3 - DECC Scenario 2 equiv'!L43+'[13]SM3 - DECC Scenario 2 equiv'!L80,\n'[13]SM4 - DNO Scenario 4 equiv'!L43+'[13]SM4 - DNO Scenario 4 equiv'!L80,\n'[14]M1a - Model inputs'!L43+'[14]M1a - Model inputs'!L80,\n'[14]M1b - Model inputs'!L43+'[14]M1b - Model inputs'!L80,\n'[14]SM1 - DECC Scenario 3 equiv'!L43+'[14]SM1 - DECC Scenario 3 equiv'!L80,\n'[14]SM2 - DECC Scenario 1 equiv'!L43+'[14]SM2 - DECC Scenario 1 equiv'!L80,\n'[14]SM3 - DECC Scenario 2 equiv'!L43+'[14]SM3 - DECC Scenario 2 equiv'!L80,\n'[14]SM4 - DNO Scenario 4 equiv'!L43+'[14]SM4 - DNO Scenario 4 equiv'!L80)","v":0.41991027870128539},{"$f":"CHOOSE(view,\n'[13]M1a - Model inputs'!M43+'[13]M1a - Model inputs'!M80,\n'[13]M1b - Model inputs'!M43+'[13]M1b - Model inputs'!M80,\n'[13]SM1 - DECC Scenario 3 equiv'!M43+'[13]SM1 - DECC Scenario 3 equiv'!M80,\n'[13]SM2 - DECC Scenario 1 equiv'!M43+'[13]SM2 - DECC Scenario 1 equiv'!M80,\n'[13]SM3 - DECC Scenario 2 equiv'!M43+'[13]SM3 - DECC Scenario 2 equiv'!M80,\n'[13]SM4 - DNO Scenario 4 equiv'!M43+'[13]SM4 - DNO Scenario 4 equiv'!M80,\n'[14]M1a - Model inputs'!M43+'[14]M1a - Model inputs'!M80,\n'[14]M1b - Model inputs'!M43+'[14]M1b - Model inputs'!M80,\n'[14]SM1 - DECC Scenario 3 equiv'!M43+'[14]SM1 - DECC Scenario 3 equiv'!M80,\n'[14]SM2 - DECC Scenario 1 equiv'!M43+'[14]SM2 - DECC Scenario 1 equiv'!M80,\n'[14]SM3 - DECC Scenario 2 equiv'!M43+'[14]SM3 - DECC Scenario 2 equiv'!M80,\n'[14]SM4 - DNO Scenario 4 equiv'!M43+'[14]SM4 - DNO Scenario 4 equiv'!M80)","v":0.42078069780298299},{"$f":"CHOOSE(view,\n'[13]M1a - Model inputs'!N43+'[13]M1a - Model inputs'!N80,\n'[13]M1b - Model inputs'!N43+'[13]M1b - Model inputs'!N80,\n'[13]SM1 - DECC Scenario 3 equiv'!N43+'[13]SM1 - DECC Scenario 3 equiv'!N80,\n'[13]SM2 - DECC Scenario 1 equiv'!N43+'[13]SM2 - DECC Scenario 1 equiv'!N80,\n'[13]SM3 - DECC Scenario 2 equiv'!N43+'[13]SM3 - DECC Scenario 2 equiv'!N80,\n'[13]SM4 - DNO Scenario 4 equiv'!N43+'[13]SM4 - DNO Scenario 4 equiv'!N80,\n'[14]M1a - Model inputs'!N43+'[14]M1a - Model inputs'!N80,\n'[14]M1b - Model inputs'!N43+'[14]M1b - Model inputs'!N80,\n'[14]SM1 - DECC Scenario 3 equiv'!N43+'[14]SM1 - DECC Scenario 3 equiv'!N80,\n'[14]SM2 - DECC Scenario 1 equiv'!N43+'[14]SM2 - DECC Scenario 1 equiv'!N80,\n'[14]SM3 - DECC Scenario 2 equiv'!N43+'[14]SM3 - DECC Scenario 2 equiv'!N80,\n'[14]SM4 - DNO Scenario 4 equiv'!N43+'[14]SM4 - DNO Scenario 4 equiv'!N80)","v":0.41991112794005259},{"$f":"CHOOSE(view,\n'[13]M1a - Model inputs'!O43+'[13]M1a - Model inputs'!O80,\n'[13]M1b - Model inputs'!O43+'[13]M1b - Model inputs'!O80,\n'[13]SM1 - DECC Scenario 3 equiv'!O43+'[13]SM1 - DECC Scenario 3 equiv'!O80,\n'[13]SM2 - DECC Scenario 1 equiv'!O43+'[13]SM2 - DECC Scenario 1 equiv'!O80,\n'[13]SM3 - DECC Scenario 2 equiv'!O43+'[13]SM3 - DECC Scenario 2 equiv'!O80,\n'[13]SM4 - DNO Scenario 4 equiv'!O43+'[13]SM4 - DNO Scenario 4 equiv'!O80,\n'[14]M1a - Model inputs'!O43+'[14]M1a - Model inputs'!O80,\n'[14]M1b - Model inputs'!O43+'[14]M1b - Model inputs'!O80,\n'[14]SM1 - DECC Scenario 3 equiv'!O43+'[14]SM1 - DECC Scenario 3 equiv'!O80,\n'[14]SM2 - DECC Scenario 1 equiv'!O43+'[14]SM2 - DECC Scenario 1 equiv'!O80,\n'[14]SM3 - DECC Scenario 2 equiv'!O43+'[14]SM3 - DECC Scenario 2 equiv'!O80,\n'[14]SM4 - DNO Scenario 4 equiv'!O43+'[14]SM4 - DNO Scenario 4 equiv'!O80)","v":0.42065757966277234},{"$f":"CHOOSE(view,\n'[13]M1a - Model inputs'!P43+'[13]M1a - Model inputs'!P80,\n'[13]M1b - Model inputs'!P43+'[13]M1b - Model inputs'!P80,\n'[13]SM1 - DECC Scenario 3 equiv'!P43+'[13]SM1 - DECC Scenario 3 equiv'!P80,\n'[13]SM2 - DECC Scenario 1 equiv'!P43+'[13]SM2 - DECC Scenario 1 equiv'!P80,\n'[13]SM3 - DECC Scenario 2 equiv'!P43+'[13]SM3 - DECC Scenario 2 equiv'!P80,\n'[13]SM4 - DNO Scenario 4 equiv'!P43+'[13]SM4 - DNO Scenario 4 equiv'!P80,\n'[14]M1a - Model inputs'!P43+'[14]M1a - Model inputs'!P80,\n'[14]M1b - Model inputs'!P43+'[14]M1b - Model inputs'!P80,\n'[14]SM1 - DECC Scenario 3 equiv'!P43+'[14]SM1 - DECC Scenario 3 equiv'!P80,\n'[14]SM2 - DECC Scenario 1 equiv'!P43+'[14]SM2 - DECC Scenario 1 equiv'!P80,\n'[14]SM3 - DECC Scenario 2 equiv'!P43+'[14]SM3 - DECC Scenario 2 equiv'!P80,\n'[14]SM4 - DNO Scenario 4 equiv'!P43+'[14]SM4 - DNO Scenario 4 equiv'!P80)","v":0.421727907116},{"$f":"CHOOSE(view,\n'[13]M1a - Model inputs'!Q43+'[13]M1a - Model inputs'!Q80,\n'[13]M1b - Model inputs'!Q43+'[13]M1b - Model inputs'!Q80,\n'[13]SM1 - DECC Scenario 3 equiv'!Q43+'[13]SM1 - DECC Scenario 3 equiv'!Q80,\n'[13]SM2 - DECC Scenario 1 equiv'!Q43+'[13]SM2 - DECC Scenario 1 equiv'!Q80,\n'[13]SM3 - DECC Scenario 2 equiv'!Q43+'[13]SM3 - DECC Scenario 2 equiv'!Q80,\n'[13]SM4 - DNO Scenario 4 equiv'!Q43+'[13]SM4 - DNO Scenario 4 equiv'!Q80,\n'[14]M1a - Model inputs'!Q43+'[14]M1a - Model inputs'!Q80,\n'[14]M1b - Model inputs'!Q43+'[14]M1b - Model inputs'!Q80,\n'[14]SM1 - DECC Scenario 3 equiv'!Q43+'[14]SM1 - DECC Scenario 3 equiv'!Q80,\n'[14]SM2 - DECC Scenario 1 equiv'!Q43+'[14]SM2 - DECC Scenario 1 equiv'!Q80,\n'[14]SM3 - DECC Scenario 2 equiv'!Q43+'[14]SM3 - DECC Scenario 2 equiv'!Q80,\n'[14]SM4 - DNO Scenario 4 equiv'!Q43+'[14]SM4 - DNO Scenario 4 equiv'!Q80)","v":0.41950438360333842},{"$f":"CHOOSE(view,\n'[13]M1a - Model inputs'!R43+'[13]M1a - Model inputs'!R80,\n'[13]M1b - Model inputs'!R43+'[13]M1b - Model inputs'!R80,\n'[13]SM1 - DECC Scenario 3 equiv'!R43+'[13]SM1 - DECC Scenario 3 equiv'!R80,\n'[13]SM2 - DECC Scenario 1 equiv'!R43+'[13]SM2 - DECC Scenario 1 equiv'!R80,\n'[13]SM3 - DECC Scenario 2 equiv'!R43+'[13]SM3 - DECC Scenario 2 equiv'!R80,\n'[13]SM4 - DNO Scenario 4 equiv'!R43+'[13]SM4 - DNO Scenario 4 equiv'!R80,\n'[14]M1a - Model inputs'!R43+'[14]M1a - Model inputs'!R80,\n'[14]M1b - Model inputs'!R43+'[14]M1b - Model inputs'!R80,\n'[14]SM1 - DECC Scenario 3 equiv'!R43+'[14]SM1 - DECC Scenario 3 equiv'!R80,\n'[14]SM2 - DECC Scenario 1 equiv'!R43+'[14]SM2 - DECC Scenario 1 equiv'!R80,\n'[14]SM3 - DECC Scenario 2 equiv'!R43+'[14]SM3 - DECC Scenario 2 equiv'!R80,\n'[14]SM4 - DNO Scenario 4 equiv'!R43+'[14]SM4 - DNO Scenario 4 equiv'!R80)","v":0.42137514611141536},{"$f":"CHOOSE(view,\n'[13]M1a - Model inputs'!S43+'[13]M1a - Model inputs'!S80,\n'[13]M1b - Model inputs'!S43+'[13]M1b - Model inputs'!S80,\n'[13]SM1 - DECC Scenario 3 equiv'!S43+'[13]SM1 - DECC Scenario 3 equiv'!S80,\n'[13]SM2 - DECC Scenario 1 equiv'!S43+'[13]SM2 - DECC Scenario 1 equiv'!S80,\n'[13]SM3 - DECC Scenario 2 equiv'!S43+'[13]SM3 - DECC Scenario 2 equiv'!S80,\n'[13]SM4 - DNO Scenario 4 equiv'!S43+'[13]SM4 - DNO Scenario 4 equiv'!S80,\n'[14]M1a - Model inputs'!S43+'[14]M1a - Model inputs'!S80,\n'[14]M1b - Model inputs'!S43+'[14]M1b - Model inputs'!S80,\n'[14]SM1 - DECC Scenario 3 equiv'!S43+'[14]SM1 - DECC Scenario 3 equiv'!S80,\n'[14]SM2 - DECC Scenario 1 equiv'!S43+'[14]SM2 - DECC Scenario 1 equiv'!S80,\n'[14]SM3 - DECC Scenario 2 equiv'!S43+'[14]SM3 - DECC Scenario 2 equiv'!S80,\n'[14]SM4 - DNO Scenario 4 equiv'!S43+'[14]SM4 - DNO Scenario 4 equiv'!S80)","v":0.42123360852554503}]
[null,null,null,null,{"$f":"Input!E21","v":"Allowed uncertain costs (Worst served customers)"},{"$f":"Input!F21","v":"XX"},{"$f":"Input!G21","v":"£m 12/13 prices"},{"$f":"Input!H21","v":"YY"},null,null,null,null,null,null,null,null,null,null,null,null,null,null,null,null,null,null,null,null,null,null,null,null,null,null,null,{"$f":"CHOOSE(view,\n'[13]M1a - Model inputs'!L46+'[13]M1a - Model inputs'!L83,\n'[13]M1b - Model inputs'!L46+'[13]M1b - Model inputs'!L83,\n'[13]SM1 - DECC Scenario 3 equiv'!L46+'[13]SM1 - DECC Scenario 3 equiv'!L83,\n'[13]SM2 - DECC Scenario 1 equiv'!L46+'[13]SM2 - DECC Scenario 1 equiv'!L83,\n'[13]SM3 - DECC Scenario 2 equiv'!L46+'[13]SM3 - DECC Scenario 2 equiv'!L83,\n'[13]SM4 - DNO Scenario 4 equiv'!L46+'[13]SM4 - DNO Scenario 4 equiv'!L83,\n'[14]M1a - Model inputs'!L46+'[14]M1a - Model inputs'!L83,\n'[14]M1b - Model inputs'!L46+'[14]M1b - Model inputs'!L83,\n'[14]SM1 - DECC Scenario 3 equiv'!L46+'[14]SM1 - DECC Scenario 3 equiv'!L83,\n'[14]SM2 - DECC Scenario 1 equiv'!L46+'[14]SM2 - DECC Scenario 1 equiv'!L83,\n'[14]SM3 - DECC Scenario 2 equiv'!L46+'[14]SM3 - DECC Scenario 2 equiv'!L83,\n'[14]SM4 - DNO Scenario 4 equiv'!L46+'[14]SM4 - DNO Scenario 4 equiv'!L83)","v":0},{"$f":"CHOOSE(view,\n'[13]M1a - Model inputs'!M46+'[13]M1a - Model inputs'!M83,\n'[13]M1b - Model inputs'!M46+'[13]M1b - Model inputs'!M83,\n'[13]SM1 - DECC Scenario 3 equiv'!M46+'[13]SM1 - DECC Scenario 3 equiv'!M83,\n'[13]SM2 - DECC Scenario 1 equiv'!M46+'[13]SM2 - DECC Scenario 1 equiv'!M83,\n'[13]SM3 - DECC Scenario 2 equiv'!M46+'[13]SM3 - DECC Scenario 2 equiv'!M83,\n'[13]SM4 - DNO Scenario 4 equiv'!M46+'[13]SM4 - DNO Scenario 4 equiv'!M83,\n'[14]M1a - Model inputs'!M46+'[14]M1a - Model inputs'!M83,\n'[14]M1b - Model inputs'!M46+'[14]M1b - Model inputs'!M83,\n'[14]SM1 - DECC Scenario 3 equiv'!M46+'[14]SM1 - DECC Scenario 3 equiv'!M83,\n'[14]SM2 - DECC Scenario 1 equiv'!M46+'[14]SM2 - DECC Scenario 1 equiv'!M83,\n'[14]SM3 - DECC Scenario 2 equiv'!M46+'[14]SM3 - DECC Scenario 2 equiv'!M83,\n'[14]SM4 - DNO Scenario 4 equiv'!M46+'[14]SM4 - DNO Scenario 4 equiv'!M83)","v":0.51206163761697998},{"$f":"CHOOSE(view,\n'[13]M1a - Model inputs'!N46+'[13]M1a - Model inputs'!N83,\n'[13]M1b - Model inputs'!N46+'[13]M1b - Model inputs'!N83,\n'[13]SM1 - DECC Scenario 3 equiv'!N46+'[13]SM1 - DECC Scenario 3 equiv'!N83,\n'[13]SM2 - DECC Scenario 1 equiv'!N46+'[13]SM2 - DECC Scenario 1 equiv'!N83,\n'[13]SM3 - DECC Scenario 2 equiv'!N46+'[13]SM3 - DECC Scenario 2 equiv'!N83,\n'[13]SM4 - DNO Scenario 4 equiv'!N46+'[13]SM4 - DNO Scenario 4 equiv'!N83,\n'[14]M1a - Model inputs'!N46+'[14]M1a - Model inputs'!N83,\n'[14]M1b - Model inputs'!N46+'[14]M1b - Model inputs'!N83,\n'[14]SM1 - DECC Scenario 3 equiv'!N46+'[14]SM1 - DECC Scenario 3 equiv'!N83,\n'[14]SM2 - DECC Scenario 1 equiv'!N46+'[14]SM2 - DECC Scenario 1 equiv'!N83,\n'[14]SM3 - DECC Scenario 2 equiv'!N46+'[14]SM3 - DECC Scenario 2 equiv'!N83,\n'[14]SM4 - DNO Scenario 4 equiv'!N46+'[14]SM4 - DNO Scenario 4 equiv'!N83)","v":0.51118699058967243},{"$f":"CHOOSE(view,\n'[13]M1a - Model inputs'!O46+'[13]M1a - Model inputs'!O83,\n'[13]M1b - Model inputs'!O46+'[13]M1b - Model inputs'!O83,\n'[13]SM1 - DECC Scenario 3 equiv'!O46+'[13]SM1 - DECC Scenario 3 equiv'!O83,\n'[13]SM2 - DECC Scenario 1 equiv'!O46+'[13]SM2 - DECC Scenario 1 equiv'!O83,\n'[13]SM3 - DECC Scenario 2 equiv'!O46+'[13]SM3 - DECC Scenario 2 equiv'!O83,\n'[13]SM4 - DNO Scenario 4 equiv'!O46+'[13]SM4 - DNO Scenario 4 equiv'!O83,\n'[14]M1a - Model inputs'!O46+'[14]M1a - Model inputs'!O83,\n'[14]M1b - Model inputs'!O46+'[14]M1b - Model inputs'!O83,\n'[14]SM1 - DECC Scenario 3 equiv'!O46+'[14]SM1 - DECC Scenario 3 equiv'!O83,\n'[14]SM2 - DECC Scenario 1 equiv'!O46+'[14]SM2 - DECC Scenario 1 equiv'!O83,\n'[14]SM3 - DECC Scenario 2 equiv'!O46+'[14]SM3 - DECC Scenario 2 equiv'!O83,\n'[14]SM4 - DNO Scenario 4 equiv'!O46+'[14]SM4 - DNO Scenario 4 equiv'!O83)","v":0},{"$f":"CHOOSE(view,\n'[13]M1a - Model inputs'!P46+'[13]M1a - Model inputs'!P83,\n'[13]M1b - Model inputs'!P46+'[13]M1b - Model inputs'!P83,\n'[13]SM1 - DECC Scenario 3 equiv'!P46+'[13]SM1 - DECC Scenario 3 equiv'!P83,\n'[13]SM2 - DECC Scenario 1 equiv'!P46+'[13]SM2 - DECC Scenario 1 equiv'!P83,\n'[13]SM3 - DECC Scenario 2 equiv'!P46+'[13]SM3 - DECC Scenario 2 equiv'!P83,\n'[13]SM4 - DNO Scenario 4 equiv'!P46+'[13]SM4 - DNO Scenario 4 equiv'!P83,\n'[14]M1a - Model inputs'!P46+'[14]M1a - Model inputs'!P83,\n'[14]M1b - Model inputs'!P46+'[14]M1b - Model inputs'!P83,\n'[14]SM1 - DECC Scenario 3 equiv'!P46+'[14]SM1 - DECC Scenario 3 equiv'!P83,\n'[14]SM2 - DECC Scenario 1 equiv'!P46+'[14]SM2 - DECC Scenario 1 equiv'!P83,\n'[14]SM3 - DECC Scenario 2 equiv'!P46+'[14]SM3 - DECC Scenario 2 equiv'!P83,\n'[14]SM4 - DNO Scenario 4 equiv'!P46+'[14]SM4 - DNO Scenario 4 equiv'!P83)","v":0},{"$f":"CHOOSE(view,\n'[13]M1a - Model inputs'!Q46+'[13]M1a - Model inputs'!Q83,\n'[13]M1b - Model inputs'!Q46+'[13]M1b - Model inputs'!Q83,\n'[13]SM1 - DECC Scenario 3 equiv'!Q46+'[13]SM1 - DECC Scenario 3 equiv'!Q83,\n'[13]SM2 - DECC Scenario 1 equiv'!Q46+'[13]SM2 - DECC Scenario 1 equiv'!Q83,\n'[13]SM3 - DECC Scenario 2 equiv'!Q46+'[13]SM3 - DECC Scenario 2 equiv'!Q83,\n'[13]SM4 - DNO Scenario 4 equiv'!Q46+'[13]SM4 - DNO Scenario 4 equiv'!Q83,\n'[14]M1a - Model inputs'!Q46+'[14]M1a - Model inputs'!Q83,\n'[14]M1b - Model inputs'!Q46+'[14]M1b - Model inputs'!Q83,\n'[14]SM1 - DECC Scenario 3 equiv'!Q46+'[14]SM1 - DECC Scenario 3 equiv'!Q83,\n'[14]SM2 - DECC Scenario 1 equiv'!Q46+'[14]SM2 - DECC Scenario 1 equiv'!Q83,\n'[14]SM3 - DECC Scenario 2 equiv'!Q46+'[14]SM3 - DECC Scenario 2 equiv'!Q83,\n'[14]SM4 - DNO Scenario 4 equiv'!Q46+'[14]SM4 - DNO Scenario 4 equiv'!Q83)","v":0},{"$f":"CHOOSE(view,\n'[13]M1a - Model inputs'!R46+'[13]M1a - Model inputs'!R83,\n'[13]M1b - Model inputs'!R46+'[13]M1b - Model inputs'!R83,\n'[13]SM1 - DECC Scenario 3 equiv'!R46+'[13]SM1 - DECC Scenario 3 equiv'!R83,\n'[13]SM2 - DECC Scenario 1 equiv'!R46+'[13]SM2 - DECC Scenario 1 equiv'!R83,\n'[13]SM3 - DECC Scenario 2 equiv'!R46+'[13]SM3 - DECC Scenario 2 equiv'!R83,\n'[13]SM4 - DNO Scenario 4 equiv'!R46+'[13]SM4 - DNO Scenario 4 equiv'!R83,\n'[14]M1a - Model inputs'!R46+'[14]M1a - Model inputs'!R83,\n'[14]M1b - Model inputs'!R46+'[14]M1b - Model inputs'!R83,\n'[14]SM1 - DECC Scenario 3 equiv'!R46+'[14]SM1 - DECC Scenario 3 equiv'!R83,\n'[14]SM2 - DECC Scenario 1 equiv'!R46+'[14]SM2 - DECC Scenario 1 equiv'!R83,\n'[14]SM3 - DECC Scenario 2 equiv'!R46+'[14]SM3 - DECC Scenario 2 equiv'!R83,\n'[14]SM4 - DNO Scenario 4 equiv'!R46+'[14]SM4 - DNO Scenario 4 equiv'!R83)","v":0},{"$f":"CHOOSE(view,\n'[13]M1a - Model inputs'!S46+'[13]M1a - Model inputs'!S83,\n'[13]M1b - Model inputs'!S46+'[13]M1b - Model inputs'!S83,\n'[13]SM1 - DECC Scenario 3 equiv'!S46+'[13]SM1 - DECC Scenario 3 equiv'!S83,\n'[13]SM2 - DECC Scenario 1 equiv'!S46+'[13]SM2 - DECC Scenario 1 equiv'!S83,\n'[13]SM3 - DECC Scenario 2 equiv'!S46+'[13]SM3 - DECC Scenario 2 equiv'!S83,\n'[13]SM4 - DNO Scenario 4 equiv'!S46+'[13]SM4 - DNO Scenario 4 equiv'!S83,\n'[14]M1a - Model inputs'!S46+'[14]M1a - Model inputs'!S83,\n'[14]M1b - Model inputs'!S46+'[14]M1b - Model inputs'!S83,\n'[14]SM1 - DECC Scenario 3 equiv'!S46+'[14]SM1 - DECC Scenario 3 equiv'!S83,\n'[14]SM2 - DECC Scenario 1 equiv'!S46+'[14]SM2 - DECC Scenario 1 equiv'!S83,\n'[14]SM3 - DECC Scenario 2 equiv'!S46+'[14]SM3 - DECC Scenario 2 equiv'!S83,\n'[14]SM4 - DNO Scenario 4 equiv'!S46+'[14]SM4 - DNO Scenario 4 equiv'!S83)","v":0}]
[null,null,null,null,{"$f":"Input!E22","v":"Allowed uncertain costs (Smart metering roll out costs)"},{"$f":"Input!F22","v":"XX"},{"$f":"Input!G22","v":"£m 12/13 prices"},{"$f":"Input!H22","v":"YY"},null,null,null,null,null,null,null,null,null,null,null,null,null,null,null,null,null,null,null,null,null,null,null,null,null,null,null,{"$f":"CHOOSE(view,\nSUM('[13]M1a - Model inputs'!L49:L49)+SUM('[13]M1a - Model inputs'!L86:L86),\nSUM('[13]M1b - Model inputs'!L49:L49)+SUM('[13]M1b - Model inputs'!L86:L86),\nSUM('[13]SM1 - DECC Scenario 3 equiv'!L49:L49)+SUM('[13]SM1 - DECC Scenario 3 equiv'!L86:L86),\nSUM('[13]SM2 - DECC Scenario 1 equiv'!L49:L49)+SUM('[13]SM2 - DECC Scenario 1 equiv'!L86:L86),\nSUM('[13]SM3 - DECC Scenario 2 equiv'!L49:L49)+SUM('[13]SM3 - DECC Scenario 2 equiv'!L86:L86),\nSUM('[13]SM4 - DNO Scenario 4 equiv'!L49:L49)+SUM('[13]SM4 - DNO Scenario 4 equiv'!L86:L86),\nSUM('[14]M1a - Model inputs'!L49:L49)+SUM('[14]M1a - Model inputs'!L86:L86),\nSUM('[14]M1b - Model inputs'!L49:L49)+SUM('[14]M1b - Model inputs'!L86:L86),\nSUM('[14]SM1 - DECC Scenario 3 equiv'!L49:L49)+SUM('[14]SM1 - DECC Scenario 3 equiv'!L86:L86),\nSUM('[14]SM2 - DECC Scenario 1 equiv'!L49:L49)+SUM('[14]SM2 - DECC Scenario 1 equiv'!L86:L86),\nSUM('[14]SM3 - DECC Scenario 2 equiv'!L49:L49)+SUM('[14]SM3 - DECC Scenario 2 equiv'!L86:L86),\nSUM('[14]SM4 - DNO Scenario 4 equiv'!L49:L49)+SUM('[14]SM4 - DNO Scenario 4 equiv'!L86:L86))","v":7.2540320457271962E-2},{"$f":"CHOOSE(view,\nSUM('[13]M1a - Model inputs'!M49:M49)+SUM('[13]M1a - Model inputs'!M86:M86),\nSUM('[13]M1b - Model inputs'!M49:M49)+SUM('[13]M1b - Model inputs'!M86:M86),\nSUM('[13]SM1 - DECC Scenario 3 equiv'!M49:M49)+SUM('[13]SM1 - DECC Scenario 3 equiv'!M86:M86),\nSUM('[13]SM2 - DECC Scenario 1 equiv'!M49:M49)+SUM('[13]SM2 - DECC Scenario 1 equiv'!M86:M86),\nSUM('[13]SM3 - DECC Scenario 2 equiv'!M49:M49)+SUM('[13]SM3 - DECC Scenario 2 equiv'!M86:M86),\nSUM('[13]SM4 - DNO Scenario 4 equiv'!M49:M49)+SUM('[13]SM4 - DNO Scenario 4 equiv'!M86:M86),\nSUM('[14]M1a - Model inputs'!M49:M49)+SUM('[14]M1a - Model inputs'!M86:M86),\nSUM('[14]M1b - Model inputs'!M49:M49)+SUM('[14]M1b - Model inputs'!M86:M86),\nSUM('[14]SM1 - DECC Scenario 3 equiv'!M49:M49)+SUM('[14]SM1 - DECC Scenario 3 equiv'!M86:M86),\nSUM('[14]SM2 - DECC Scenario 1 equiv'!M49:M49)+SUM('[14]SM2 - DECC Scenario 1 equiv'!M86:M86),\nSUM('[14]SM3 - DECC Scenario 2 equiv'!M49:M49)+SUM('[14]SM3 - DECC Scenario 2 equiv'!M86:M86),\nSUM('[14]SM4 - DNO Scenario 4 equiv'!M49:M49)+SUM('[14]SM4 - DNO Scenario 4 equiv'!M86:M86))","v":8.7418050663847613E-2},{"$f":"CHOOSE(view,\nSUM('[13]M1a - Model inputs'!N49:N49)+SUM('[13]M1a - Model inputs'!N86:N86),\nSUM('[13]M1b - Model inputs'!N49:N49)+SUM('[13]M1b - Model inputs'!N86:N86),\nSUM('[13]SM1 - DECC Scenario 3 equiv'!N49:N49)+SUM('[13]SM1 - DECC Scenario 3 equiv'!N86:N86),\nSUM('[13]SM2 - DECC Scenario 1 equiv'!N49:N49)+SUM('[13]SM2 - DECC Scenario 1 equiv'!N86:N86),\nSUM('[13]SM3 - DECC Scenario 2 equiv'!N49:N49)+SUM('[13]SM3 - DECC Scenario 2 equiv'!N86:N86),\nSUM('[13]SM4 - DNO Scenario 4 equiv'!N49:N49)+SUM('[13]SM4 - DNO Scenario 4 equiv'!N86:N86),\nSUM('[14]M1a - Model inputs'!N49:N49)+SUM('[14]M1a - Model inputs'!N86:N86),\nSUM('[14]M1b - Model inputs'!N49:N49)+SUM('[14]M1b - Model inputs'!N86:N86),\nSUM('[14]SM1 - DECC Scenario 3 equiv'!N49:N49)+SUM('[14]SM1 - DECC Scenario 3 equiv'!N86:N86),\nSUM('[14]SM2 - DECC Scenario 1 equiv'!N49:N49)+SUM('[14]SM2 - DECC Scenario 1 equiv'!N86:N86),\nSUM('[14]SM3 - DECC Scenario 2 equiv'!N49:N49)+SUM('[14]SM3 - DECC Scenario 2 equiv'!N86:N86),\nSUM('[14]SM4 - DNO Scenario 4 equiv'!N49:N49)+SUM('[14]SM4 - DNO Scenario 4 equiv'!N86:N86))","v":9.6936353829270558E-2},{"$f":"CHOOSE(view,\nSUM('[13]M1a - Model inputs'!O49:O49)+SUM('[13]M1a - Model inputs'!O86:O86),\nSUM('[13]M1b - Model inputs'!O49:O49)+SUM('[13]M1b - Model inputs'!O86:O86),\nSUM('[13]SM1 - DECC Scenario 3 equiv'!O49:O49)+SUM('[13]SM1 - DECC Scenario 3 equiv'!O86:O86),\nSUM('[13]SM2 - DECC Scenario 1 equiv'!O49:O49)+SUM('[13]SM2 - DECC Scenario 1 equiv'!O86:O86),\nSUM('[13]SM3 - DECC Scenario 2 equiv'!O49:O49)+SUM('[13]SM3 - DECC Scenario 2 equiv'!O86:O86),\nSUM('[13]SM4 - DNO Scenario 4 equiv'!O49:O49)+SUM('[13]SM4 - DNO Scenario 4 equiv'!O86:O86),\nSUM('[14]M1a - Model inputs'!O49:O49)+SUM('[14]M1a - Model inputs'!O86:O86),\nSUM('[14]M1b - Model inputs'!O49:O49)+SUM('[14]M1b - Model inputs'!O86:O86),\nSUM('[14]SM1 - DECC Scenario 3 equiv'!O49:O49)+SUM('[14]SM1 - DECC Scenario 3 equiv'!O86:O86),\nSUM('[14]SM2 - DECC Scenario 1 equiv'!O49:O49)+SUM('[14]SM2 - DECC Scenario 1 equiv'!O86:O86),\nSUM('[14]SM3 - DECC Scenario 2 equiv'!O49:O49)+SUM('[14]SM3 - DECC Scenario 2 equiv'!O86:O86),\nSUM('[14]SM4 - DNO Scenario 4 equiv'!O49:O49)+SUM('[14]SM4 - DNO Scenario 4 equiv'!O86:O86))","v":9.7060113129942602E-2},{"$f":"CHOOSE(view,\nSUM('[13]M1a - Model inputs'!P49:P49)+SUM('[13]M1a - Model inputs'!P86:P86),\nSUM('[13]M1b - Model inputs'!P49:P49)+SUM('[13]M1b - Model inputs'!P86:P86),\nSUM('[13]SM1 - DECC Scenario 3 equiv'!P49:P49)+SUM('[13]SM1 - DECC Scenario 3 equiv'!P86:P86),\nSUM('[13]SM2 - DECC Scenario 1 equiv'!P49:P49)+SUM('[13]SM2 - DECC Scenario 1 equiv'!P86:P86),\nSUM('[13]SM3 - DECC Scenario 2 equiv'!P49:P49)+SUM('[13]SM3 - DECC Scenario 2 equiv'!P86:P86),\nSUM('[13]SM4 - DNO Scenario 4 equiv'!P49:P49)+SUM('[13]SM4 - DNO Scenario 4 equiv'!P86:P86),\nSUM('[14]M1a - Model inputs'!P49:P49)+SUM('[14]M1a - Model inputs'!P86:P86),\nSUM('[14]M1b - Model inputs'!P49:P49)+SUM('[14]M1b - Model inputs'!P86:P86),\nSUM('[14]SM1 - DECC Scenario 3 equiv'!P49:P49)+SUM('[14]SM1 - DECC Scenario 3 equiv'!P86:P86),\nSUM('[14]SM2 - DECC Scenario 1 equiv'!P49:P49)+SUM('[14]SM2 - DECC Scenario 1 equiv'!P86:P86),\nSUM('[14]SM3 - DECC Scenario 2 equiv'!P49:P49)+SUM('[14]SM3 - DECC Scenario 2 equiv'!P86:P86),\nSUM('[14]SM4 - DNO Scenario 4 equiv'!P49:P49)+SUM('[14]SM4 - DNO Scenario 4 equiv'!P86:P86))","v":9.2561129565418954E-2},{"$f":"CHOOSE(view,\nSUM('[13]M1a - Model inputs'!Q49:Q49)+SUM('[13]M1a - Model inputs'!Q86:Q86),\nSUM('[13]M1b - Model inputs'!Q49:Q49)+SUM('[13]M1b - Model inputs'!Q86:Q86),\nSUM('[13]SM1 - DECC Scenario 3 equiv'!Q49:Q49)+SUM('[13]SM1 - DECC Scenario 3 equiv'!Q86:Q86),\nSUM('[13]SM2 - DECC Scenario 1 equiv'!Q49:Q49)+SUM('[13]SM2 - DECC Scenario 1 equiv'!Q86:Q86),\nSUM('[13]SM3 - DECC Scenario 2 equiv'!Q49:Q49)+SUM('[13]SM3 - DECC Scenario 2 equiv'!Q86:Q86),\nSUM('[13]SM4 - DNO Scenario 4 equiv'!Q49:Q49)+SUM('[13]SM4 - DNO Scenario 4 equiv'!Q86:Q86),\nSUM('[14]M1a - Model inputs'!Q49:Q49)+SUM('[14]M1a - Model inputs'!Q86:Q86),\nSUM('[14]M1b - Model inputs'!Q49:Q49)+SUM('[14]M1b - Model inputs'!Q86:Q86),\nSUM('[14]SM1 - DECC Scenario 3 equiv'!Q49:Q49)+SUM('[14]SM1 - DECC Scenario 3 equiv'!Q86:Q86),\nSUM('[14]SM2 - DECC Scenario 1 equiv'!Q49:Q49)+SUM('[14]SM2 - DECC Scenario 1 equiv'!Q86:Q86),\nSUM('[14]SM3 - DECC Scenario 2 equiv'!Q49:Q49)+SUM('[14]SM3 - DECC Scenario 2 equiv'!Q86:Q86),\nSUM('[14]SM4 - DNO Scenario 4 equiv'!Q49:Q49)+SUM('[14]SM4 - DNO Scenario 4 equiv'!Q86:Q86))","v":7.8691650772546445E-2},{"$f":"CHOOSE(view,\nSUM('[13]M1a - Model inputs'!R49:R49)+SUM('[13]M1a - Model inputs'!R86:R86),\nSUM('[13]M1b - Model inputs'!R49:R49)+SUM('[13]M1b - Model inputs'!R86:R86),\nSUM('[13]SM1 - DECC Scenario 3 equiv'!R49:R49)+SUM('[13]SM1 - DECC Scenario 3 equiv'!R86:R86),\nSUM('[13]SM2 - DECC Scenario 1 equiv'!R49:R49)+SUM('[13]SM2 - DECC Scenario 1 equiv'!R86:R86),\nSUM('[13]SM3 - DECC Scenario 2 equiv'!R49:R49)+SUM('[13]SM3 - DECC Scenario 2 equiv'!R86:R86),\nSUM('[13]SM4 - DNO Scenario 4 equiv'!R49:R49)+SUM('[13]SM4 - DNO Scenario 4 equiv'!R86:R86),\nSUM('[14]M1a - Model inputs'!R49:R49)+SUM('[14]M1a - Model inputs'!R86:R86),\nSUM('[14]M1b - Model inputs'!R49:R49)+SUM('[14]M1b - Model inputs'!R86:R86),\nSUM('[14]SM1 - DECC Scenario 3 equiv'!R49:R49)+SUM('[14]SM1 - DECC Scenario 3 equiv'!R86:R86),\nSUM('[14]SM2 - DECC Scenario 1 equiv'!R49:R49)+SUM('[14]SM2 - DECC Scenario 1 equiv'!R86:R86),\nSUM('[14]SM3 - DECC Scenario 2 equiv'!R49:R49)+SUM('[14]SM3 - DECC Scenario 2 equiv'!R86:R86),\nSUM('[14]SM4 - DNO Scenario 4 equiv'!R49:R49)+SUM('[14]SM4 - DNO Scenario 4 equiv'!R86:R86))","v":0},{"$f":"CHOOSE(view,\nSUM('[13]M1a - Model inputs'!S49:S49)+SUM('[13]M1a - Model inputs'!S86:S86),\nSUM('[13]M1b - Model inputs'!S49:S49)+SUM('[13]M1b - Model inputs'!S86:S86),\nSUM('[13]SM1 - DECC Scenario 3 equiv'!S49:S49)+SUM('[13]SM1 - DECC Scenario 3 equiv'!S86:S86),\nSUM('[13]SM2 - DECC Scenario 1 equiv'!S49:S49)+SUM('[13]SM2 - DECC Scenario 1 equiv'!S86:S86),\nSUM('[13]SM3 - DECC Scenario 2 equiv'!S49:S49)+SUM('[13]SM3 - DECC Scenario 2 equiv'!S86:S86),\nSUM('[13]SM4 - DNO Scenario 4 equiv'!S49:S49)+SUM('[13]SM4 - DNO Scenario 4 equiv'!S86:S86),\nSUM('[14]M1a - Model inputs'!S49:S49)+SUM('[14]M1a - Model inputs'!S86:S86),\nSUM('[14]M1b - Model inputs'!S49:S49)+SUM('[14]M1b - Model inputs'!S86:S86),\nSUM('[14]SM1 - DECC Scenario 3 equiv'!S49:S49)+SUM('[14]SM1 - DECC Scenario 3 equiv'!S86:S86),\nSUM('[14]SM2 - DECC Scenario 1 equiv'!S49:S49)+SUM('[14]SM2 - DECC Scenario 1 equiv'!S86:S86),\nSUM('[14]SM3 - DECC Scenario 2 equiv'!S49:S49)+SUM('[14]SM3 - DECC Scenario 2 equiv'!S86:S86),\nSUM('[14]SM4 - DNO Scenario 4 equiv'!S49:S49)+SUM('[14]SM4 - DNO Scenario 4 equiv'!S86:S86))","v":0}]
[null,null,null,null,{"$f":"Input!E23","v":"Allowed uncertain costs (Specified street work costs)"},{"$f":"Input!F23","v":"XX"},{"$f":"Input!G23","v":"£m 12/13 prices"},{"$f":"Input!H23","v":"YY"},null,null,null,null,null,null,null,null,null,null,null,null,null,null,null,null,null,null,null,null,null,null,null,null,null,null,null,{"$f":"CHOOSE(view,\nSUM('[13]M1a - Model inputs'!L52:L55)+SUM('[13]M1a - Model inputs'!L89:L92),\nSUM('[13]M1b - Model inputs'!L52:L55)+SUM('[13]M1b - Model inputs'!L89:L92),\nSUM('[13]SM1 - DECC Scenario 3 equiv'!L52:L55)+SUM('[13]SM1 - DECC Scenario 3 equiv'!L89:L92),\nSUM('[13]SM2 - DECC Scenario 1 equiv'!L52:L55)+SUM('[13]SM2 - DECC Scenario 1 equiv'!L89:L92),\nSUM('[13]SM3 - DECC Scenario 2 equiv'!L52:L55)+SUM('[13]SM3 - DECC Scenario 2 equiv'!L89:L92),\nSUM('[13]SM4 - DNO Scenario 4 equiv'!L52:L55)+SUM('[13]SM4 - DNO Scenario 4 equiv'!L89:L92),\nSUM('[14]M1a - Model inputs'!L52:L55)+SUM('[14]M1a - Model inputs'!L89:L92),\nSUM('[14]M1b - Model inputs'!L52:L55)+SUM('[14]M1b - Model inputs'!L89:L92),\nSUM('[14]SM1 - DECC Scenario 3 equiv'!L52:L55)+SUM('[14]SM1 - DECC Scenario 3 equiv'!L89:L92),\nSUM('[14]SM2 - DECC Scenario 1 equiv'!L52:L55)+SUM('[14]SM2 - DECC Scenario 1 equiv'!L89:L92),\nSUM('[14]SM3 - DECC Scenario 2 equiv'!L52:L55)+SUM('[14]SM3 - DECC Scenario 2 equiv'!L89:L92),\nSUM('[14]SM4 - DNO Scenario 4 equiv'!L52:L55)+SUM('[14]SM4 - DNO Scenario 4 equiv'!L89:L92))","v":2.097876800950849E-2},{"$f":"CHOOSE(view,\nSUM('[13]M1a - Model inputs'!M52:M55)+SUM('[13]M1a - Model inputs'!M89:M92),\nSUM('[13]M1b - Model inputs'!M52:M55)+SUM('[13]M1b - Model inputs'!M89:M92),\nSUM('[13]SM1 - DECC Scenario 3 equiv'!M52:M55)+SUM('[13]SM1 - DECC Scenario 3 equiv'!M89:M92),\nSUM('[13]SM2 - DECC Scenario 1 equiv'!M52:M55)+SUM('[13]SM2 - DECC Scenario 1 equiv'!M89:M92),\nSUM('[13]SM3 - DECC Scenario 2 equiv'!M52:M55)+SUM('[13]SM3 - DECC Scenario 2 equiv'!M89:M92),\nSUM('[13]SM4 - DNO Scenario 4 equiv'!M52:M55)+SUM('[13]SM4 - DNO Scenario 4 equiv'!M89:M92),\nSUM('[14]M1a - Model inputs'!M52:M55)+SUM('[14]M1a - Model inputs'!M89:M92),\nSUM('[14]M1b - Model inputs'!M52:M55)+SUM('[14]M1b - Model inputs'!M89:M92),\nSUM('[14]SM1 - DECC Scenario 3 equiv'!M52:M55)+SUM('[14]SM1 - DECC Scenario 3 equiv'!M89:M92),\nSUM('[14]SM2 - DECC Scenario 1 equiv'!M52:M55)+SUM('[14]SM2 - DECC Scenario 1 equiv'!M89:M92),\nSUM('[14]SM3 - DECC Scenario 2 equiv'!M52:M55)+SUM('[14]SM3 - DECC Scenario 2 equiv'!M89:M92),\nSUM('[14]SM4 - DNO Scenario 4 equiv'!M52:M55)+SUM('[14]SM4 - DNO Scenario 4 equiv'!M89:M92))","v":0.12594039111563171},{"$f":"CHOOSE(view,\nSUM('[13]M1a - Model inputs'!N52:N55)+SUM('[13]M1a - Model inputs'!N89:N92),\nSUM('[13]M1b - Model inputs'!N52:N55)+SUM('[13]M1b - Model inputs'!N89:N92),\nSUM('[13]SM1 - DECC Scenario 3 equiv'!N52:N55)+SUM('[13]SM1 - DECC Scenario 3 equiv'!N89:N92),\nSUM('[13]SM2 - DECC Scenario 1 equiv'!N52:N55)+SUM('[13]SM2 - DECC Scenario 1 equiv'!N89:N92),\nSUM('[13]SM3 - DECC Scenario 2 equiv'!N52:N55)+SUM('[13]SM3 - DECC Scenario 2 equiv'!N89:N92),\nSUM('[13]SM4 - DNO Scenario 4 equiv'!N52:N55)+SUM('[13]SM4 - DNO Scenario 4 equiv'!N89:N92),\nSUM('[14]M1a - Model inputs'!N52:N55)+SUM('[14]M1a - Model inputs'!N89:N92),\nSUM('[14]M1b - Model inputs'!N52:N55)+SUM('[14]M1b - Model inputs'!N89:N92),\nSUM('[14]SM1 - DECC Scenario 3 equiv'!N52:N55)+SUM('[14]SM1 - DECC Scenario 3 equiv'!N89:N92),\nSUM('[14]SM2 - DECC Scenario 1 equiv'!N52:N55)+SUM('[14]SM2 - DECC Scenario 1 equiv'!N89:N92),\nSUM('[14]SM3 - DECC Scenario 2 equiv'!N52:N55)+SUM('[14]SM3 - DECC Scenario 2 equiv'!N89:N92),\nSUM('[14]SM4 - DNO Scenario 4 equiv'!N52:N55)+SUM('[14]SM4 - DNO Scenario 4 equiv'!N89:N92))","v":0.12703864546867233},{"$f":"CHOOSE(view,\nSUM('[13]M1a - Model inputs'!O52:O55)+SUM('[13]M1a - Model inputs'!O89:O92),\nSUM('[13]M1b - Model inputs'!O52:O55)+SUM('[13]M1b - Model inputs'!O89:O92),\nSUM('[13]SM1 - DECC Scenario 3 equiv'!O52:O55)+SUM('[13]SM1 - DECC Scenario 3 equiv'!O89:O92),\nSUM('[13]SM2 - DECC Scenario 1 equiv'!O52:O55)+SUM('[13]SM2 - DECC Scenario 1 equiv'!O89:O92),\nSUM('[13]SM3 - DECC Scenario 2 equiv'!O52:O55)+SUM('[13]SM3 - DECC Scenario 2 equiv'!O89:O92),\nSUM('[13]SM4 - DNO Scenario 4 equiv'!O52:O55)+SUM('[13]SM4 - DNO Scenario 4 equiv'!O89:O92),\nSUM('[14]M1a - Model inputs'!O52:O55)+SUM('[14]M1a - Model inputs'!O89:O92),\nSUM('[14]M1b - Model inputs'!O52:O55)+SUM('[14]M1b - Model inputs'!O89:O92),\nSUM('[14]SM1 - DECC Scenario 3 equiv'!O52:O55)+SUM('[14]SM1 - DECC Scenario 3 equiv'!O89:O92),\nSUM('[14]SM2 - DECC Scenario 1 equiv'!O52:O55)+SUM('[14]SM2 - DECC Scenario 1 equiv'!O89:O92),\nSUM('[14]SM3 - DECC Scenario 2 equiv'!O52:O55)+SUM('[14]SM3 - DECC Scenario 2 equiv'!O89:O92),\nSUM('[14]SM4 - DNO Scenario 4 equiv'!O52:O55)+SUM('[14]SM4 - DNO Scenario 4 equiv'!O89:O92))","v":0.12875414260420373},{"$f":"CHOOSE(view,\nSUM('[13]M1a - Model inputs'!P52:P55)+SUM('[13]M1a - Model inputs'!P89:P92),\nSUM('[13]M1b - Model inputs'!P52:P55)+SUM('[13]M1b - Model inputs'!P89:P92),\nSUM('[13]SM1 - DECC Scenario 3 equiv'!P52:P55)+SUM('[13]SM1 - DECC Scenario 3 equiv'!P89:P92),\nSUM('[13]SM2 - DECC Scenario 1 equiv'!P52:P55)+SUM('[13]SM2 - DECC Scenario 1 equiv'!P89:P92),\nSUM('[13]SM3 - DECC Scenario 2 equiv'!P52:P55)+SUM('[13]SM3 - DECC Scenario 2 equiv'!P89:P92),\nSUM('[13]SM4 - DNO Scenario 4 equiv'!P52:P55)+SUM('[13]SM4 - DNO Scenario 4 equiv'!P89:P92),\nSUM('[14]M1a - Model inputs'!P52:P55)+SUM('[14]M1a - Model inputs'!P89:P92),\nSUM('[14]M1b - Model inputs'!P52:P55)+SUM('[14]M1b - Model inputs'!P89:P92),\nSUM('[14]SM1 - DECC Scenario 3 equiv'!P52:P55)+SUM('[14]SM1 - DECC Scenario 3 equiv'!P89:P92),\nSUM('[14]SM2 - DECC Scenario 1 equiv'!P52:P55)+SUM('[14]SM2 - DECC Scenario 1 equiv'!P89:P92),\nSUM('[14]SM3 - DECC Scenario 2 equiv'!P52:P55)+SUM('[14]SM3 - DECC Scenario 2 equiv'!P89:P92),\nSUM('[14]SM4 - DNO Scenario 4 equiv'!P52:P55)+SUM('[14]SM4 - DNO Scenario 4 equiv'!P89:P92))","v":0.13048117703170223},{"$f":"CHOOSE(view,\nSUM('[13]M1a - Model inputs'!Q52:Q55)+SUM('[13]M1a - Model inputs'!Q89:Q92),\nSUM('[13]M1b - Model inputs'!Q52:Q55)+SUM('[13]M1b - Model inputs'!Q89:Q92),\nSUM('[13]SM1 - DECC Scenario 3 equiv'!Q52:Q55)+SUM('[13]SM1 - DECC Scenario 3 equiv'!Q89:Q92),\nSUM('[13]SM2 - DECC Scenario 1 equiv'!Q52:Q55)+SUM('[13]SM2 - DECC Scenario 1 equiv'!Q89:Q92),\nSUM('[13]SM3 - DECC Scenario 2 equiv'!Q52:Q55)+SUM('[13]SM3 - DECC Scenario 2 equiv'!Q89:Q92),\nSUM('[13]SM4 - DNO Scenario 4 equiv'!Q52:Q55)+SUM('[13]SM4 - DNO Scenario 4 equiv'!Q89:Q92),\nSUM('[14]M1a - Model inputs'!Q52:Q55)+SUM('[14]M1a - Model inputs'!Q89:Q92),\nSUM('[14]M1b - Model inputs'!Q52:Q55)+SUM('[14]M1b - Model inputs'!Q89:Q92),\nSUM('[14]SM1 - DECC Scenario 3 equiv'!Q52:Q55)+SUM('[14]SM1 - DECC Scenario 3 equiv'!Q89:Q92),\nSUM('[14]SM2 - DECC Scenario 1 equiv'!Q52:Q55)+SUM('[14]SM2 - DECC Scenario 1 equiv'!Q89:Q92),\nSUM('[14]SM3 - DECC Scenario 2 equiv'!Q52:Q55)+SUM('[14]SM3 - DECC Scenario 2 equiv'!Q89:Q92),\nSUM('[14]SM4 - DNO Scenario 4 equiv'!Q52:Q55)+SUM('[14]SM4 - DNO Scenario 4 equiv'!Q89:Q92))","v":0.13224330983300153},{"$f":"CHOOSE(view,\nSUM('[13]M1a - Model inputs'!R52:R55)+SUM('[13]M1a - Model inputs'!R89:R92),\nSUM('[13]M1b - Model inputs'!R52:R55)+SUM('[13]M1b - Model inputs'!R89:R92),\nSUM('[13]SM1 - DECC Scenario 3 equiv'!R52:R55)+SUM('[13]SM1 - DECC Scenario 3 equiv'!R89:R92),\nSUM('[13]SM2 - DECC Scenario 1 equiv'!R52:R55)+SUM('[13]SM2 - DECC Scenario 1 equiv'!R89:R92),\nSUM('[13]SM3 - DECC Scenario 2 equiv'!R52:R55)+SUM('[13]SM3 - DECC Scenario 2 equiv'!R89:R92),\nSUM('[13]SM4 - DNO Scenario 4 equiv'!R52:R55)+SUM('[13]SM4 - DNO Scenario 4 equiv'!R89:R92),\nSUM('[14]M1a - Model inputs'!R52:R55)+SUM('[14]M1a - Model inputs'!R89:R92),\nSUM('[14]M1b - Model inputs'!R52:R55)+SUM('[14]M1b - Model inputs'!R89:R92),\nSUM('[14]SM1 - DECC Scenario 3 equiv'!R52:R55)+SUM('[14]SM1 - DECC Scenario 3 equiv'!R89:R92),\nSUM('[14]SM2 - DECC Scenario 1 equiv'!R52:R55)+SUM('[14]SM2 - DECC Scenario 1 equiv'!R89:R92),\nSUM('[14]SM3 - DECC Scenario 2 equiv'!R52:R55)+SUM('[14]SM3 - DECC Scenario 2 equiv'!R89:R92),\nSUM('[14]SM4 - DNO Scenario 4 equiv'!R52:R55)+SUM('[14]SM4 - DNO Scenario 4 equiv'!R89:R92))","v":0.13402196055974611},{"$f":"CHOOSE(view,\nSUM('[13]M1a - Model inputs'!S52:S55)+SUM('[13]M1a - Model inputs'!S89:S92),\nSUM('[13]M1b - Model inputs'!S52:S55)+SUM('[13]M1b - Model inputs'!S89:S92),\nSUM('[13]SM1 - DECC Scenario 3 equiv'!S52:S55)+SUM('[13]SM1 - DECC Scenario 3 equiv'!S89:S92),\nSUM('[13]SM2 - DECC Scenario 1 equiv'!S52:S55)+SUM('[13]SM2 - DECC Scenario 1 equiv'!S89:S92),\nSUM('[13]SM3 - DECC Scenario 2 equiv'!S52:S55)+SUM('[13]SM3 - DECC Scenario 2 equiv'!S89:S92),\nSUM('[13]SM4 - DNO Scenario 4 equiv'!S52:S55)+SUM('[13]SM4 - DNO Scenario 4 equiv'!S89:S92),\nSUM('[14]M1a - Model inputs'!S52:S55)+SUM('[14]M1a - Model inputs'!S89:S92),\nSUM('[14]M1b - Model inputs'!S52:S55)+SUM('[14]M1b - Model inputs'!S89:S92),\nSUM('[14]SM1 - DECC Scenario 3 equiv'!S52:S55)+SUM('[14]SM1 - DECC Scenario 3 equiv'!S89:S92),\nSUM('[14]SM2 - DECC Scenario 1 equiv'!S52:S55)+SUM('[14]SM2 - DECC Scenario 1 equiv'!S89:S92),\nSUM('[14]SM3 - DECC Scenario 2 equiv'!S52:S55)+SUM('[14]SM3 - DECC Scenario 2 equiv'!S89:S92),\nSUM('[14]SM4 - DNO Scenario 4 equiv'!S52:S55)+SUM('[14]SM4 - DNO Scenario 4 equiv'!S89:S92))","v":0.13589691359867659}]
[null,null,null,null,{"$f":"Input!E24","v":"Allowed uncertain costs (Load related re-operner)"},{"$f":"Input!F24","v":"XX"},{"$f":"Input!G24","v":"£m 12/13 prices"},{"$f":"Input!H24","v":"YY"},null,null,null,null,null,null,null,null,null,null,null,null,null,null,null,null,null,null,null,null,null,null,null,null,null,null,null,{"$f":"CHOOSE(view,\n'[13]M1a - Model inputs'!L31+'[13]M1a - Model inputs'!L68,\n'[13]M1b - Model inputs'!L31+'[13]M1b - Model inputs'!L68,\n'[13]SM1 - DECC Scenario 3 equiv'!L31+'[13]SM1 - DECC Scenario 3 equiv'!L68,\n'[13]SM2 - DECC Scenario 1 equiv'!L31+'[13]SM2 - DECC Scenario 1 equiv'!L68,\n'[13]SM3 - DECC Scenario 2 equiv'!L31+'[13]SM3 - DECC Scenario 2 equiv'!L68,\n'[13]SM4 - DNO Scenario 4 equiv'!L31+'[13]SM4 - DNO Scenario 4 equiv'!L68,\n'[14]M1a - Model inputs'!L31+'[13]M1a - Model inputs'!L68,\n'[14]M1b - Model inputs'!L31+'[13]M1b - Model inputs'!L68,\n'[14]SM1 - DECC Scenario 3 equiv'!L31+'[13]SM1 - DECC Scenario 3 equiv'!L68,\n'[14]SM2 - DECC Scenario 1 equiv'!L31+'[13]SM2 - DECC Scenario 1 equiv'!L68,\n'[14]SM3 - DECC Scenario 2 equiv'!L31+'[13]SM3 - DECC Scenario 2 equiv'!L68,\n'[14]SM4 - DNO Scenario 4 equiv'!L31+'[13]SM4 - DNO Scenario 4 equiv'!L68)","v":0},{"$f":"CHOOSE(view,\n'[13]M1a - Model inputs'!M31+'[13]M1a - Model inputs'!M68,\n'[13]M1b - Model inputs'!M31+'[13]M1b - Model inputs'!M68,\n'[13]SM1 - DECC Scenario 3 equiv'!M31+'[13]SM1 - DECC Scenario 3 equiv'!M68,\n'[13]SM2 - DECC Scenario 1 equiv'!M31+'[13]SM2 - DECC Scenario 1 equiv'!M68,\n'[13]SM3 - DECC Scenario 2 equiv'!M31+'[13]SM3 - DECC Scenario 2 equiv'!M68,\n'[13]SM4 - DNO Scenario 4 equiv'!M31+'[13]SM4 - DNO Scenario 4 equiv'!M68,\n'[14]M1a - Model inputs'!M31+'[13]M1a - Model inputs'!M68,\n'[14]M1b - Model inputs'!M31+'[13]M1b - Model inputs'!M68,\n'[14]SM1 - DECC Scenario 3 equiv'!M31+'[13]SM1 - DECC Scenario 3 equiv'!M68,\n'[14]SM2 - DECC Scenario 1 equiv'!M31+'[13]SM2 - DECC Scenario 1 equiv'!M68,\n'[14]SM3 - DECC Scenario 2 equiv'!M31+'[13]SM3 - DECC Scenario 2 equiv'!M68,\n'[14]SM4 - DNO Scenario 4 equiv'!M31+'[13]SM4 - DNO Scenario 4 equiv'!M68)","v":0},{"$f":"CHOOSE(view,\n'[13]M1a - Model inputs'!N31+'[13]M1a - Model inputs'!N68,\n'[13]M1b - Model inputs'!N31+'[13]M1b - Model inputs'!N68,\n'[13]SM1 - DECC Scenario 3 equiv'!N31+'[13]SM1 - DECC Scenario 3 equiv'!N68,\n'[13]SM2 - DECC Scenario 1 equiv'!N31+'[13]SM2 - DECC Scenario 1 equiv'!N68,\n'[13]SM3 - DECC Scenario 2 equiv'!N31+'[13]SM3 - DECC Scenario 2 equiv'!N68,\n'[13]SM4 - DNO Scenario 4 equiv'!N31+'[13]SM4 - DNO Scenario 4 equiv'!N68,\n'[14]M1a - Model inputs'!N31+'[13]M1a - Model inputs'!N68,\n'[14]M1b - Model inputs'!N31+'[13]M1b - Model inputs'!N68,\n'[14]SM1 - DECC Scenario 3 equiv'!N31+'[13]SM1 - DECC Scenario 3 equiv'!N68,\n'[14]SM2 - DECC Scenario 1 equiv'!N31+'[13]SM2 - DECC Scenario 1 equiv'!N68,\n'[14]SM3 - DECC Scenario 2 equiv'!N31+'[13]SM3 - DECC Scenario 2 equiv'!N68,\n'[14]SM4 - DNO Scenario 4 equiv'!N31+'[13]SM4 - DNO Scenario 4 equiv'!N68)","v":0},{"$f":"CHOOSE(view,\n'[13]M1a - Model inputs'!O31+'[13]M1a - Model inputs'!O68,\n'[13]M1b - Model inputs'!O31+'[13]M1b - Model inputs'!O68,\n'[13]SM1 - DECC Scenario 3 equiv'!O31+'[13]SM1 - DECC Scenario 3 equiv'!O68,\n'[13]SM2 - DECC Scenario 1 equiv'!O31+'[13]SM2 - DECC Scenario 1 equiv'!O68,\n'[13]SM3 - DECC Scenario 2 equiv'!O31+'[13]SM3 - DECC Scenario 2 equiv'!O68,\n'[13]SM4 - DNO Scenario 4 equiv'!O31+'[13]SM4 - DNO Scenario 4 equiv'!O68,\n'[14]M1a - Model inputs'!O31+'[13]M1a - Model inputs'!O68,\n'[14]M1b - Model inputs'!O31+'[13]M1b - Model inputs'!O68,\n'[14]SM1 - DECC Scenario 3 equiv'!O31+'[13]SM1 - DECC Scenario 3 equiv'!O68,\n'[14]SM2 - DECC Scenario 1 equiv'!O31+'[13]SM2 - DECC Scenario 1 equiv'!O68,\n'[14]SM3 - DECC Scenario 2 equiv'!O31+'[13]SM3 - DECC Scenario 2 equiv'!O68,\n'[14]SM4 - DNO Scenario 4 equiv'!O31+'[13]SM4 - DNO Scenario 4 equiv'!O68)","v":0},{"$f":"CHOOSE(view,\n'[13]M1a - Model inputs'!P31+'[13]M1a - Model inputs'!P68,\n'[13]M1b - Model inputs'!P31+'[13]M1b - Model inputs'!P68,\n'[13]SM1 - DECC Scenario 3 equiv'!P31+'[13]SM1 - DECC Scenario 3 equiv'!P68,\n'[13]SM2 - DECC Scenario 1 equiv'!P31+'[13]SM2 - DECC Scenario 1 equiv'!P68,\n'[13]SM3 - DECC Scenario 2 equiv'!P31+'[13]SM3 - DECC Scenario 2 equiv'!P68,\n'[13]SM4 - DNO Scenario 4 equiv'!P31+'[13]SM4 - DNO Scenario 4 equiv'!P68,\n'[14]M1a - Model inputs'!P31+'[13]M1a - Model inputs'!P68,\n'[14]M1b - Model inputs'!P31+'[13]M1b - Model inputs'!P68,\n'[14]SM1 - DECC Scenario 3 equiv'!P31+'[13]SM1 - DECC Scenario 3 equiv'!P68,\n'[14]SM2 - DECC Scenario 1 equiv'!P31+'[13]SM2 - DECC Scenario 1 equiv'!P68,\n'[14]SM3 - DECC Scenario 2 equiv'!P31+'[13]SM3 - DECC Scenario 2 equiv'!P68,\n'[14]SM4 - DNO Scenario 4 equiv'!P31+'[13]SM4 - DNO Scenario 4 equiv'!P68)","v":0},{"$f":"CHOOSE(view,\n'[13]M1a - Model inputs'!Q31+'[13]M1a - Model inputs'!Q68,\n'[13]M1b - Model inputs'!Q31+'[13]M1b - Model inputs'!Q68,\n'[13]SM1 - DECC Scenario 3 equiv'!Q31+'[13]SM1 - DECC Scenario 3 equiv'!Q68,\n'[13]SM2 - DECC Scenario 1 equiv'!Q31+'[13]SM2 - DECC Scenario 1 equiv'!Q68,\n'[13]SM3 - DECC Scenario 2 equiv'!Q31+'[13]SM3 - DECC Scenario 2 equiv'!Q68,\n'[13]SM4 - DNO Scenario 4 equiv'!Q31+'[13]SM4 - DNO Scenario 4 equiv'!Q68,\n'[14]M1a - Model inputs'!Q31+'[13]M1a - Model inputs'!Q68,\n'[14]M1b - Model inputs'!Q31+'[13]M1b - Model inputs'!Q68,\n'[14]SM1 - DECC Scenario 3 equiv'!Q31+'[13]SM1 - DECC Scenario 3 equiv'!Q68,\n'[14]SM2 - DECC Scenario 1 equiv'!Q31+'[13]SM2 - DECC Scenario 1 equiv'!Q68,\n'[14]SM3 - DECC Scenario 2 equiv'!Q31+'[13]SM3 - DECC Scenario 2 equiv'!Q68,\n'[14]SM4 - DNO Scenario 4 equiv'!Q31+'[13]SM4 - DNO Scenario 4 equiv'!Q68)","v":0},{"$f":"CHOOSE(view,\n'[13]M1a - Model inputs'!R31+'[13]M1a - Model inputs'!R68,\n'[13]M1b - Model inputs'!R31+'[13]M1b - Model inputs'!R68,\n'[13]SM1 - DECC Scenario 3 equiv'!R31+'[13]SM1 - DECC Scenario 3 equiv'!R68,\n'[13]SM2 - DECC Scenario 1 equiv'!R31+'[13]SM2 - DECC Scenario 1 equiv'!R68,\n'[13]SM3 - DECC Scenario 2 equiv'!R31+'[13]SM3 - DECC Scenario 2 equiv'!R68,\n'[13]SM4 - DNO Scenario 4 equiv'!R31+'[13]SM4 - DNO Scenario 4 equiv'!R68,\n'[14]M1a - Model inputs'!R31+'[13]M1a - Model inputs'!R68,\n'[14]M1b - Model inputs'!R31+'[13]M1b - Model inputs'!R68,\n'[14]SM1 - DECC Scenario 3 equiv'!R31+'[13]SM1 - DECC Scenario 3 equiv'!R68,\n'[14]SM2 - DECC Scenario 1 equiv'!R31+'[13]SM2 - DECC Scenario 1 equiv'!R68,\n'[14]SM3 - DECC Scenario 2 equiv'!R31+'[13]SM3 - DECC Scenario 2 equiv'!R68,\n'[14]SM4 - DNO Scenario 4 equiv'!R31+'[13]SM4 - DNO Scenario 4 equiv'!R68)","v":0},{"$f":"CHOOSE(view,\n'[13]M1a - Model inputs'!S31+'[13]M1a - Model inputs'!S68,\n'[13]M1b - Model inputs'!S31+'[13]M1b - Model inputs'!S68,\n'[13]SM1 - DECC Scenario 3 equiv'!S31+'[13]SM1 - DECC Scenario 3 equiv'!S68,\n'[13]SM2 - DECC Scenario 1 equiv'!S31+'[13]SM2 - DECC Scenario 1 equiv'!S68,\n'[13]SM3 - DECC Scenario 2 equiv'!S31+'[13]SM3 - DECC Scenario 2 equiv'!S68,\n'[13]SM4 - DNO Scenario 4 equiv'!S31+'[13]SM4 - DNO Scenario 4 equiv'!S68,\n'[14]M1a - Model inputs'!S31+'[13]M1a - Model inputs'!S68,\n'[14]M1b - Model inputs'!S31+'[13]M1b - Model inputs'!S68,\n'[14]SM1 - DECC Scenario 3 equiv'!S31+'[13]SM1 - DECC Scenario 3 equiv'!S68,\n'[14]SM2 - DECC Scenario 1 equiv'!S31+'[13]SM2 - DECC Scenario 1 equiv'!S68,\n'[14]SM3 - DECC Scenario 2 equiv'!S31+'[13]SM3 - DECC Scenario 2 equiv'!S68,\n'[14]SM4 - DNO Scenario 4 equiv'!S31+'[13]SM4 - DNO Scenario 4 equiv'!S68)","v":0}]
[null,null,null,null,{"$f":"Input!E25","v":"Spare 1"},{"$f":"Input!F25","v":"XX"},{"$f":"Input!G25","v":"£m 12/13 prices"},{"$f":"Input!H25","v":"YY"}]
[null,null,null,null,{"$f":"Input!E26","v":"Spare 2"},{"$f":"Input!F26","v":"XX"},{"$f":"Input!G26","v":"£m 12/13 prices"},{"$f":"Input!H26","v":"YY"}]
[null,null,null,null,{"$f":"Input!E27","v":"Spare 3"},{"$f":"Input!F27","v":"XX"},{"$f":"Input!G27","v":"£m 12/13 prices"},{"$f":"Input!H27","v":"YY"}]
[null,null,null,null,{"$f":"Input!E28","v":"Allowed innovation roll-out mechanism"},{"$f":"Input!F28","v":"XX"},{"$f":"Input!G28","v":"£m 12/13 prices"},{"$f":"Input!H28","v":"YY"}]
[null,null,null,null,{"$f":"Input!E29","v":"Exit Charges"},{"$f":"Input!F29","v":"XX"},{"$f":"Input!G29","v":"£m 12/13 prices"},{"$f":"Input!H29","v":"YY"},null,null,null,null,null,null,null,null,null,null,null,null,null,null,null,null,null,null,null,null,null,null,null,null,null,null,null,{"$f":"CHOOSE(view,\n'[13]M1a - Model inputs'!L122,\n'[13]M1b - Model inputs'!L122,\n'[13]SM1 - DECC Scenario 3 equiv'!L122,\n'[13]SM2 - DECC Scenario 1 equiv'!L122,\n'[13]SM3 - DECC Scenario 2 equiv'!L122,\n'[13]SM4 - DNO Scenario 4 equiv'!L122,\n'[14]M1a - Model inputs'!L122,\n'[14]M1b - Model inputs'!L122,\n'[14]SM1 - DECC Scenario 3 equiv'!L122,\n'[14]SM2 - DECC Scenario 1 equiv'!L122,\n'[14]SM3 - DECC Scenario 2 equiv'!L122,\n'[14]SM4 - DNO Scenario 4 equiv'!L122)","v":8.6913909966720624},{"$f":"CHOOSE(view,\n'[13]M1a - Model inputs'!M122,\n'[13]M1b - Model inputs'!M122,\n'[13]SM1 - DECC Scenario 3 equiv'!M122,\n'[13]SM2 - DECC Scenario 1 equiv'!M122,\n'[13]SM3 - DECC Scenario 2 equiv'!M122,\n'[13]SM4 - DNO Scenario 4 equiv'!M122,\n'[14]M1a - Model inputs'!M122,\n'[14]M1b - Model inputs'!M122,\n'[14]SM1 - DECC Scenario 3 equiv'!M122,\n'[14]SM2 - DECC Scenario 1 equiv'!M122,\n'[14]SM3 - DECC Scenario 2 equiv'!M122,\n'[14]SM4 - DNO Scenario 4 equiv'!M122)","v":8.7018069966720617},{"$f":"CHOOSE(view,\n'[13]M1a - Model inputs'!N122,\n'[13]M1b - Model inputs'!N122,\n'[13]SM1 - DECC Scenario 3 equiv'!N122,\n'[13]SM2 - DECC Scenario 1 equiv'!N122,\n'[13]SM3 - DECC Scenario 2 equiv'!N122,\n'[13]SM4 - DNO Scenario 4 equiv'!N122,\n'[14]M1a - Model inputs'!N122,\n'[14]M1b - Model inputs'!N122,\n'[14]SM1 - DECC Scenario 3 equiv'!N122,\n'[14]SM2 - DECC Scenario 1 equiv'!N122,\n'[14]SM3 - DECC Scenario 2 equiv'!N122,\n'[14]SM4 - DNO Scenario 4 equiv'!N122)","v":8.7122229966720628},{"$f":"CHOOSE(view,\n'[13]M1a - Model inputs'!O122,\n'[13]M1b - Model inputs'!O122,\n'[13]SM1 - DECC Scenario 3 equiv'!O122,\n'[13]SM2 - DECC Scenario 1 equiv'!O122,\n'[13]SM3 - DECC Scenario 2 equiv'!O122,\n'[13]SM4 - DNO Scenario 4 equiv'!O122,\n'[14]M1a - Model inputs'!O122,\n'[14]M1b - Model inputs'!O122,\n'[14]SM1 - DECC Scenario 3 equiv'!O122,\n'[14]SM2 - DECC Scenario 1 equiv'!O122,\n'[14]SM3 - DECC Scenario 2 equiv'!O122,\n'[14]SM4 - DNO Scenario 4 equiv'!O122)","v":8.7226389966720621},{"$f":"CHOOSE(view,\n'[13]M1a - Model inputs'!P122,\n'[13]M1b - Model inputs'!P122,\n'[13]SM1 - DECC Scenario 3 equiv'!P122,\n'[13]SM2 - DECC Scenario 1 equiv'!P122,\n'[13]SM3 - DECC Scenario 2 equiv'!P122,\n'[13]SM4 - DNO Scenario 4 equiv'!P122,\n'[14]M1a - Model inputs'!P122,\n'[14]M1b - Model inputs'!P122,\n'[14]SM1 - DECC Scenario 3 equiv'!P122,\n'[14]SM2 - DECC Scenario 1 equiv'!P122,\n'[14]SM3 - DECC Scenario 2 equiv'!P122,\n'[14]SM4 - DNO Scenario 4 equiv'!P122)","v":9.2396389966720616},{"$f":"CHOOSE(view,\n'[13]M1a - Model inputs'!Q122,\n'[13]M1b - Model inputs'!Q122,\n'[13]SM1 - DECC Scenario 3 equiv'!Q122,\n'[13]SM2 - DECC Scenario 1 equiv'!Q122,\n'[13]SM3 - DECC Scenario 2 equiv'!Q122,\n'[13]SM4 - DNO Scenario 4 equiv'!Q122,\n'[14]M1a - Model inputs'!Q122,\n'[14]M1b - Model inputs'!Q122,\n'[14]SM1 - DECC Scenario 3 equiv'!Q122,\n'[14]SM2 - DECC Scenario 1 equiv'!Q122,\n'[14]SM3 - DECC Scenario 2 equiv'!Q122,\n'[14]SM4 - DNO Scenario 4 equiv'!Q122)","v":9.2396389966720616},{"$f":"CHOOSE(view,\n'[13]M1a - Model inputs'!R122,\n'[13]M1b - Model inputs'!R122,\n'[13]SM1 - DECC Scenario 3 equiv'!R122,\n'[13]SM2 - DECC Scenario 1 equiv'!R122,\n'[13]SM3 - DECC Scenario 2 equiv'!R122,\n'[13]SM4 - DNO Scenario 4 equiv'!R122,\n'[14]M1a - Model inputs'!R122,\n'[14]M1b - Model inputs'!R122,\n'[14]SM1 - DECC Scenario 3 equiv'!R122,\n'[14]SM2 - DECC Scenario 1 equiv'!R122,\n'[14]SM3 - DECC Scenario 2 equiv'!R122,\n'[14]SM4 - DNO Scenario 4 equiv'!R122)","v":9.2396389966720616},{"$f":"CHOOSE(view,\n'[13]M1a - Model inputs'!S122,\n'[13]M1b - Model inputs'!S122,\n'[13]SM1 - DECC Scenario 3 equiv'!S122,\n'[13]SM2 - DECC Scenario 1 equiv'!S122,\n'[13]SM3 - DECC Scenario 2 equiv'!S122,\n'[13]SM4 - DNO Scenario 4 equiv'!S122,\n'[14]M1a - Model inputs'!S122,\n'[14]M1b - Model inputs'!S122,\n'[14]SM1 - DECC Scenario 3 equiv'!S122,\n'[14]SM2 - DECC Scenario 1 equiv'!S122,\n'[14]SM3 - DECC Scenario 2 equiv'!S122,\n'[14]SM4 - DNO Scenario 4 equiv'!S122)","v":9.2396389966720616}]
[null,null,null,null,{"$f":"Input!E30","v":"Pension scheme established deficit revenue allowances"},{"$f":"Input!F30","v":"XX"},{"$f":"Input!G30","v":"£m 12/13 prices"},{"$f":"Input!H30","v":"YY"},null,null,null,null,null,null,null,null,null,null,null,null,null,null,null,null,null,null,null,null,null,null,null,null,null,null,null,{"$f":"'[15]F7 Pensions DB scheme costs'!K263","v":40.544723030414154},{"$f":"'[15]F7 Pensions DB scheme costs'!L263","v":40.544723030414154},{"$f":"'[15]F7 Pensions DB scheme costs'!M263","v":40.544723030414154},{"$f":"'[15]F7 Pensions DB scheme costs'!N263","v":40.544723030414154},{"$f":"'[15]F7 Pensions DB scheme costs'!O263","v":40.544723030414154},{"$f":"'[15]F7 Pensions DB scheme costs'!P263","v":40.544723030414154},{"$f":"'[15]F7 Pensions DB scheme costs'!Q263","v":40.544723030414154},{"$f":"'[15]F7 Pensions DB scheme costs'!R263","v":40.544723030414154}]
[null,null,null,null,{"$f":"Input!E31","v":"Legacy price control allowed revenue adjustment"},{"$f":"Input!F31","v":"XX"},{"$f":"Input!G31","v":"£m 12/13 prices"},{"$f":"Input!H31","v":"YY"}]
[null,null,null,null,{"$f":"Input!E32","v":"Legacy price control RAV additions adjustment"},{"$f":"Input!F32","v":"XX"},{"$f":"Input!G32","v":"£m 12/13 prices"},{"$f":"Input!H32","v":"YY"},null,null,null,null,null,null,null,null,null,null,null,null,null,null,null,null,null,null,null,null,null,null,null,null,null,{"$f":"[16]DirectedValues!I79","v":-13.562720803973633},{"$f":"[16]DirectedValues!J79","v":-7.226540185803338}]
[null,null,null,null,{"$f":"Input!E33","v":"Tax liability allowance adjustments - gearing/interest costs"},{"$f":"Input!F33","v":"XX"},{"$f":"Input!G33","v":"£m nominal"},{"$f":"Input!H33","v":"YY"}]
[null,null,null,null,{"$f":"Input!E34","v":"Tax liability allowance adjustments - driven by tax trigger events"},{"$f":"Input!F34","v":"XX"},{"$f":"Input!G34","v":"£m 12/13 prices"},{"$f":"Input!H34","v":"YY"}]
[null,null,null,null,{"$f":"Input!E35","v":"General pool capital allowance pre-RIIO movement adjustment"},{"$f":"Input!F35","v":"XX"},{"$f":"Input!G35","v":"Nominal"},{"$f":"Input!H35","v":"YY"}]
[null,null,null,null,{"$f":"Input!E36","v":"Special pool capital allowance pre-RIIO movement adjustment"},{"$f":"Input!F36","v":"XX"},{"$f":"Input!G36","v":"Nominal"},{"$f":"Input!H36","v":"YY"}]
[null,null,null,null,{"$f":"Input!E37","v":"Deferred Revenue Expenditure pre-RIIO movement adjustment"},{"$f":"Input!F37","v":"XX"},{"$f":"Input!G37","v":"Nominal"},{"$f":"Input!H37","v":"YY"}]
[null,null,null,null,{"$f":"Input!E38","v":"DRE: Gross capex adjustment"},{"$f":"Input!F38","v":"XX"},{"$f":"Input!G38","v":"Nominal"},{"$f":"Input!H38","v":"YY"}]
[]
[null,"Policy"]
[]
[null,null,"Cost of capital"]
[]
[null,null,null,null,"Cost of debt",null,"annual real %",null,null,null,null,null,null,null,null,null,null,null,null,null,null,null,null,null,null,null,null,null,null,null,null,null,null,null,null,{"$f":"AJ11","v":2.92E-2},{"$f":"AK11","v":2.92E-2},2.92E-2,2.92E-2,2.92E-2,2.92E-2,2.92E-2,2.92E-2]
[null,null,null,null,"Cost of equity",null,"annual real %",null,null,null,null,null,null,null,null,null,null,null,null,null,null,null,null,null,null,null,null,null,null,null,null,null,null,null,null,6.7000000000000004E-2,6.7000000000000004E-2,6.7000000000000004E-2,6.7000000000000004E-2,6.7000000000000004E-2,6.7000000000000004E-2,6.7000000000000004E-2,6.7000000000000004E-2]
[null,null,null,null,"Notional gearing",null,"%",null,null,">",null,null,null,null,null,null,null,null,null,null,null,null,null,null,null,null,null,null,null,null,null,null,null,null,0.65,0.65,0.65,0.65,0.65,0.65,0.65,0.65,0.65]
[]
[null,null,null,null,"Vanilla WACC",null,"annual real %",null,null,null,null,null,null,null,null,null,null,null,null,null,null,null,null,null,null,null,null,null,null,null,null,null,null,null,null,{"$f":"(AJ44 * AJ46) + (AJ45 * (1 - AJ46))","v":4.2429999999999995E-2},4.2429999999999995E-2,4.2429999999999995E-2,4.2429999999999995E-2,4.2429999999999995E-2,4.2429999999999995E-2,4.2429999999999995E-2,4.2429999999999995E-2]
[]
[]
[]
[null,null,"Indexation"]
[]
[null,null,null,null,"Forecast RPI (simple average year to March)",null,"index value",null,null,">",null,null,null,null,null,null,null,null,null,null,null,null,null,null,null,null,null,null,null,null,null,null,{"$f":"ROUND(AVERAGE(242.5,242.4,241.8,242.1,243,244.2,245.6,245.6,246.8,245.8,247.6,248.7),3)","v":244.67500000000001},{"$f":"ROUND(AG54*(1+2.8%),3)","v":251.52600000000001},258.56900000000002,265.80900000000003,273.25200000000001,280.90300000000002,288.76799999999997,296.85399999999998,305.166,313.71100000000001,322.495]
[null,null,null,null,"Cost of Debt Inflation",null,"index value",null,null,">",null,null,null,null,null,null,null,null,null,null,null,null,null,null,null,null,null,null,null,null,null,null,{"$f":"ROUND(AVERAGE(242.5,242.4,241.8,242.1,243,244.2,245.6,245.6,246.8,245.8,247.6,248.7),3)","v":244.67500000000001},{"$f":"ROUND(AG55*(1+2.8%),3)","v":251.52600000000001},258.56900000000002,265.80900000000003,273.25200000000001,280.90300000000002,288.76799999999997,296.85399999999998,305.166,313.71100000000001,322.495]
[]
[null,null,"TIM and capitalisation"]
[]
[null,null,null,null,"Years from t until normal reporting of actual costs",null,"years",null,2]
[]
[null,null,null,null,{"$f":"Input!E61","v":"Capitalised share of totex"},null,"%",null,null,null,null,null,null,null,null,null,null,null,null,null,null,null,null,null,null,null,null,null,null,null,null,null,null,null,null,0.8,0.8,0.8,0.8,0.8,0.8,0.8,0.8]
[]
[null,null,null,null,"Additional income %",null,"%",null,2.5000000000000001E-2]
[]
[null,null,null,null,"Incentive Strength",null,"%",null,0.7]
[]
[null,null,null,null,"Weight of Ofgem's view on price control totex",null,"%",null,0.75]
[null,null,null,null,"Weight of operator's view on price control totex",null,"%",null,0.25]
[]
[null,null,null,null,"Ofgem's view of  licensee totex",null,"£m 12/13 prices",null,{"$f":"I71","v":1718.0018444637456}]
[null,null,null,null,"Operator's view of licensee totex",null,"£m 12/13 prices",null,{"$f":"CHOOSE(view,\nSUM('[13]M1b - Model inputs'!$L$26:$S$26,'[13]M1b - Model inputs'!$L$103:$S$108),\nSUM('[13]M1b - Model inputs'!$L$26:$S$26,'[13]M1b - Model inputs'!$L$103:$S$108),\nSUM('[13]M1b - Model inputs'!$L$26:$S$26,'[13]M1b - Model inputs'!$L$103:$S$108),\nSUM('[13]M1b - Model inputs'!$L$26:$S$26,'[13]M1b - Model inputs'!$L$103:$S$108),\nSUM('[13]M1b - Model inputs'!$L$26:$S$26,'[13]M1b - Model inputs'!$L$103:$S$108),\nSUM('[13]M1b - Model inputs'!$L$26:$S$26,'[13]M1b - Model inputs'!$L$103:$S$108),\nSUM('[14]M1b - Model inputs'!$L$26:$S$26,'[14]M1b - Model inputs'!$L$103:$S$108),\nSUM('[14]M1b - Model inputs'!$L$26:$S$26,'[14]M1b - Model inputs'!$L$103:$S$108),\nSUM('[14]M1b - Model inputs'!$L$26:$S$26,'[14]M1b - Model inputs'!$L$103:$S$108),\nSUM('[14]M1b - Model inputs'!$L$26:$S$26,'[14]M1b - Model inputs'!$L$103:$S$108),\nSUM('[14]M1b - Model inputs'!$L$26:$S$26,'[14]M1b - Model inputs'!$L$103:$S$108),\nSUM('[14]M1b - Model inputs'!$L$26:$S$26,'[14]M1b - Model inputs'!$L$103:$S$108))","v":1718.0018444637456}]
[]
[null,null,null,null,"Ofgem's view of group price control totex",null,"£m 12/13 prices",null,{"$f":"I70 + EMID!I70 + SWALES!I70 + WMID!I70","v":7063.2910311137721}]
[null,null,null,null,"Operator's view of group price control totex ",null,"£m 12/13 prices",null,{"$f":"I71 + EMID!I71 + SWALES!I71 + WMID!I71","v":7063.2910311137721}]
[]
[null,null,"Finance"]
[]
[null,null,null,null,"Minimum equity issuance threshold",null,"%",null,0]
[null,null,null,null,"Equity issuance costs",null,"%",null,0]
[null,null,null,null,"Assumed dividends as % of notional equity portion of RAV",null,"%",null,6.7000000000000004E-2]
[]
[null,null,null,null,"Equity issuance gearing target",null,"%",null,null,null,null,null,null,null,null,null,null,null,null,null,null,null,null,null,null,null,null,null,null,null,null,null,null,null,null,{"$f":"AJ46","v":0.65},{"$f":"AK46","v":0.65},0.65,0.65,0.65,0.65,0.65,0.65]
[]
[null,null,null,null,"Index-linked debt as a percentage of net debt",null,"%",null,null,null,null,null,null,null,null,null,null,null,null,null,null,null,null,null,null,null,null,null,null,null,null,null,null,null,null,0.25,0.25,0.25,0.25,0.25,0.25,0.25,0.25]
[]
[null,"Expenditure"]
[]
[null,null,"Totex"]
[]
[null,null,null,"Non-variant allowances"]
[]
[null,null,null,null,{"$f":"Input!E92","v":"Non-variant allowed load related capex"},null,"£m 12/13 prices",null,null,null,null,null,null,null,null,null,null,null,null,null,null,null,null,null,null,null,null,null,null,null,null,null,null,null,null,{"$f":"CHOOSE(view,\n'[13]M1a - Model inputs'!L8+'[13]M1a - Model inputs'!L18,\n'[13]M1b - Model inputs'!L8+'[13]M1b - Model inputs'!L18,\n'[13]SM1 - DECC Scenario 3 equiv'!L8+'[13]SM1 - DECC Scenario 3 equiv'!L18,\n'[13]SM2 - DECC Scenario 1 equiv'!L8+'[13]SM2 - DECC Scenario 1 equiv'!L18,\n'[13]SM3 - DECC Scenario 2 equiv'!L8+'[13]SM3 - DECC Scenario 2 equiv'!L18,\n'[13]SM4 - DNO Scenario 4 equiv'!L8+'[13]SM4 - DNO Scenario 4 equiv'!L18,\n'[14]M1a - Model inputs'!L8+'[14]M1a - Model inputs'!L18,\n'[14]M1b - Model inputs'!L8+'[14]M1b - Model inputs'!L18,\n'[14]SM1 - DECC Scenario 3 equiv'!L8+'[14]SM1 - DECC Scenario 3 equiv'!L18,\n'[14]SM2 - DECC Scenario 1 equiv'!L8+'[14]SM2 - DECC Scenario 1 equiv'!L18,\n'[14]SM3 - DECC Scenario 2 equiv'!L8+'[14]SM3 - DECC Scenario 2 equiv'!L18,\n'[14]SM4 - DNO Scenario 4 equiv'!L8+'[14]SM4 - DNO Scenario 4 equiv'!L18)","v":5.750595825589083},{"$f":"CHOOSE(view,\n'[13]M1a - Model inputs'!M8+'[13]M1a - Model inputs'!M18,\n'[13]M1b - Model inputs'!M8+'[13]M1b - Model inputs'!M18,\n'[13]SM1 - DECC Scenario 3 equiv'!M8+'[13]SM1 - DECC Scenario 3 equiv'!M18,\n'[13]SM2 - DECC Scenario 1 equiv'!M8+'[13]SM2 - DECC Scenario 1 equiv'!M18,\n'[13]SM3 - DECC Scenario 2 equiv'!M8+'[13]SM3 - DECC Scenario 2 equiv'!M18,\n'[13]SM4 - DNO Scenario 4 equiv'!M8+'[13]SM4 - DNO Scenario 4 equiv'!M18,\n'[14]M1a - Model inputs'!M8+'[14]M1a - Model inputs'!M18,\n'[14]M1b - Model inputs'!M8+'[14]M1b - Model inputs'!M18,\n'[14]SM1 - DECC Scenario 3 equiv'!M8+'[14]SM1 - DECC Scenario 3 equiv'!M18,\n'[14]SM2 - DECC Scenario 1 equiv'!M8+'[14]SM2 - DECC Scenario 1 equiv'!M18,\n'[14]SM3 - DECC Scenario 2 equiv'!M8+'[14]SM3 - DECC Scenario 2 equiv'!M18,\n'[14]SM4 - DNO Scenario 4 equiv'!M8+'[14]SM4 - DNO Scenario 4 equiv'!M18)","v":6.4984719219729845},{"$f":"CHOOSE(view,\n'[13]M1a - Model inputs'!N8+'[13]M1a - Model inputs'!N18,\n'[13]M1b - Model inputs'!N8+'[13]M1b - Model inputs'!N18,\n'[13]SM1 - DECC Scenario 3 equiv'!N8+'[13]SM1 - DECC Scenario 3 equiv'!N18,\n'[13]SM2 - DECC Scenario 1 equiv'!N8+'[13]SM2 - DECC Scenario 1 equiv'!N18,\n'[13]SM3 - DECC Scenario 2 equiv'!N8+'[13]SM3 - DECC Scenario 2 equiv'!N18,\n'[13]SM4 - DNO Scenario 4 equiv'!N8+'[13]SM4 - DNO Scenario 4 equiv'!N18,\n'[14]M1a - Model inputs'!N8+'[14]M1a - Model inputs'!N18,\n'[14]M1b - Model inputs'!N8+'[14]M1b - Model inputs'!N18,\n'[14]SM1 - DECC Scenario 3 equiv'!N8+'[14]SM1 - DECC Scenario 3 equiv'!N18,\n'[14]SM2 - DECC Scenario 1 equiv'!N8+'[14]SM2 - DECC Scenario 1 equiv'!N18,\n'[14]SM3 - DECC Scenario 2 equiv'!N8+'[14]SM3 - DECC Scenario 2 equiv'!N18,\n'[14]SM4 - DNO Scenario 4 equiv'!N8+'[14]SM4 - DNO Scenario 4 equiv'!N18)","v":8.1125159868648904},{"$f":"CHOOSE(view,\n'[13]M1a - Model inputs'!O8+'[13]M1a - Model inputs'!O18,\n'[13]M1b - Model inputs'!O8+'[13]M1b - Model inputs'!O18,\n'[13]SM1 - DECC Scenario 3 equiv'!O8+'[13]SM1 - DECC Scenario 3 equiv'!O18,\n'[13]SM2 - DECC Scenario 1 equiv'!O8+'[13]SM2 - DECC Scenario 1 equiv'!O18,\n'[13]SM3 - DECC Scenario 2 equiv'!O8+'[13]SM3 - DECC Scenario 2 equiv'!O18,\n'[13]SM4 - DNO Scenario 4 equiv'!O8+'[13]SM4 - DNO Scenario 4 equiv'!O18,\n'[14]M1a - Model inputs'!O8+'[14]M1a - Model inputs'!O18,\n'[14]M1b - Model inputs'!O8+'[14]M1b - Model inputs'!O18,\n'[14]SM1 - DECC Scenario 3 equiv'!O8+'[14]SM1 - DECC Scenario 3 equiv'!O18,\n'[14]SM2 - DECC Scenario 1 equiv'!O8+'[14]SM2 - DECC Scenario 1 equiv'!O18,\n'[14]SM3 - DECC Scenario 2 equiv'!O8+'[14]SM3 - DECC Scenario 2 equiv'!O18,\n'[14]SM4 - DNO Scenario 4 equiv'!O8+'[14]SM4 - DNO Scenario 4 equiv'!O18)","v":13.709403883621089},{"$f":"CHOOSE(view,\n'[13]M1a - Model inputs'!P8+'[13]M1a - Model inputs'!P18,\n'[13]M1b - Model inputs'!P8+'[13]M1b - Model inputs'!P18,\n'[13]SM1 - DECC Scenario 3 equiv'!P8+'[13]SM1 - DECC Scenario 3 equiv'!P18,\n'[13]SM2 - DECC Scenario 1 equiv'!P8+'[13]SM2 - DECC Scenario 1 equiv'!P18,\n'[13]SM3 - DECC Scenario 2 equiv'!P8+'[13]SM3 - DECC Scenario 2 equiv'!P18,\n'[13]SM4 - DNO Scenario 4 equiv'!P8+'[13]SM4 - DNO Scenario 4 equiv'!P18,\n'[14]M1a - Model inputs'!P8+'[14]M1a - Model inputs'!P18,\n'[14]M1b - Model inputs'!P8+'[14]M1b - Model inputs'!P18,\n'[14]SM1 - DECC Scenario 3 equiv'!P8+'[14]SM1 - DECC Scenario 3 equiv'!P18,\n'[14]SM2 - DECC Scenario 1 equiv'!P8+'[14]SM2 - DECC Scenario 1 equiv'!P18,\n'[14]SM3 - DECC Scenario 2 equiv'!P8+'[14]SM3 - DECC Scenario 2 equiv'!P18,\n'[14]SM4 - DNO Scenario 4 equiv'!P8+'[14]SM4 - DNO Scenario 4 equiv'!P18)","v":14.647179354709909},{"$f":"CHOOSE(view,\n'[13]M1a - Model inputs'!Q8+'[13]M1a - Model inputs'!Q18,\n'[13]M1b - Model inputs'!Q8+'[13]M1b - Model inputs'!Q18,\n'[13]SM1 - DECC Scenario 3 equiv'!Q8+'[13]SM1 - DECC Scenario 3 equiv'!Q18,\n'[13]SM2 - DECC Scenario 1 equiv'!Q8+'[13]SM2 - DECC Scenario 1 equiv'!Q18,\n'[13]SM3 - DECC Scenario 2 equiv'!Q8+'[13]SM3 - DECC Scenario 2 equiv'!Q18,\n'[13]SM4 - DNO Scenario 4 equiv'!Q8+'[13]SM4 - DNO Scenario 4 equiv'!Q18,\n'[14]M1a - Model inputs'!Q8+'[14]M1a - Model inputs'!Q18,\n'[14]M1b - Model inputs'!Q8+'[14]M1b - Model inputs'!Q18,\n'[14]SM1 - DECC Scenario 3 equiv'!Q8+'[14]SM1 - DECC Scenario 3 equiv'!Q18,\n'[14]SM2 - DECC Scenario 1 equiv'!Q8+'[14]SM2 - DECC Scenario 1 equiv'!Q18,\n'[14]SM3 - DECC Scenario 2 equiv'!Q8+'[14]SM3 - DECC Scenario 2 equiv'!Q18,\n'[14]SM4 - DNO Scenario 4 equiv'!Q8+'[14]SM4 - DNO Scenario 4 equiv'!Q18)","v":14.591349358357173},{"$f":"CHOOSE(view,\n'[13]M1a - Model inputs'!R8+'[13]M1a - Model inputs'!R18,\n'[13]M1b - Model inputs'!R8+'[13]M1b - Model inputs'!R18,\n'[13]SM1 - DECC Scenario 3 equiv'!R8+'[13]SM1 - DECC Scenario 3 equiv'!R18,\n'[13]SM2 - DECC Scenario 1 equiv'!R8+'[13]SM2 - DECC Scenario 1 equiv'!R18,\n'[13]SM3 - DECC Scenario 2 equiv'!R8+'[13]SM3 - DECC Scenario 2 equiv'!R18,\n'[13]SM4 - DNO Scenario 4 equiv'!R8+'[13]SM4 - DNO Scenario 4 equiv'!R18,\n'[14]M1a - Model inputs'!R8+'[14]M1a - Model inputs'!R18,\n'[14]M1b - Model inputs'!R8+'[14]M1b - Model inputs'!R18,\n'[14]SM1 - DECC Scenario 3 equiv'!R8+'[14]SM1 - DECC Scenario 3 equiv'!R18,\n'[14]SM2 - DECC Scenario 1 equiv'!R8+'[14]SM2 - DECC Scenario 1 equiv'!R18,\n'[14]SM3 - DECC Scenario 2 equiv'!R8+'[14]SM3 - DECC Scenario 2 equiv'!R18,\n'[14]SM4 - DNO Scenario 4 equiv'!R8+'[14]SM4 - DNO Scenario 4 equiv'!R18)","v":15.446803180409574},{"$f":"CHOOSE(view,\n'[13]M1a - Model inputs'!S8+'[13]M1a - Model inputs'!S18,\n'[13]M1b - Model inputs'!S8+'[13]M1b - Model inputs'!S18,\n'[13]SM1 - DECC Scenario 3 equiv'!S8+'[13]SM1 - DECC Scenario 3 equiv'!S18,\n'[13]SM2 - DECC Scenario 1 equiv'!S8+'[13]SM2 - DECC Scenario 1 equiv'!S18,\n'[13]SM3 - DECC Scenario 2 equiv'!S8+'[13]SM3 - DECC Scenario 2 equiv'!S18,\n'[13]SM4 - DNO Scenario 4 equiv'!S8+'[13]SM4 - DNO Scenario 4 equiv'!S18,\n'[14]M1a - Model inputs'!S8+'[14]M1a - Model inputs'!S18,\n'[14]M1b - Model inputs'!S8+'[14]M1b - Model inputs'!S18,\n'[14]SM1 - DECC Scenario 3 equiv'!S8+'[14]SM1 - DECC Scenario 3 equiv'!S18,\n'[14]SM2 - DECC Scenario 1 equiv'!S8+'[14]SM2 - DECC Scenario 1 equiv'!S18,\n'[14]SM3 - DECC Scenario 2 equiv'!S8+'[14]SM3 - DECC Scenario 2 equiv'!S18,\n'[14]SM4 - DNO Scenario 4 equiv'!S8+'[14]SM4 - DNO Scenario 4 equiv'!S18)","v":17.103580950646638}]
[null,null,null,null,{"$f":"Input!E93","v":"Non-variant allowed non-load related capex - asset replacement"},null,"£m 12/13 prices",null,null,null,null,null,null,null,null,null,null,null,null,null,null,null,null,null,null,null,null,null,null,null,null,null,null,null,null,{"$f":"CHOOSE(view,\n'[13]M1a - Model inputs'!L9+'[13]M1a - Model inputs'!L19,\n'[13]M1b - Model inputs'!L9+'[13]M1b - Model inputs'!L19,\n'[13]SM1 - DECC Scenario 3 equiv'!L9+'[13]SM1 - DECC Scenario 3 equiv'!L19,\n'[13]SM2 - DECC Scenario 1 equiv'!L9+'[13]SM2 - DECC Scenario 1 equiv'!L19,\n'[13]SM3 - DECC Scenario 2 equiv'!L9+'[13]SM3 - DECC Scenario 2 equiv'!L19,\n'[13]SM4 - DNO Scenario 4 equiv'!L9+'[13]SM4 - DNO Scenario 4 equiv'!L19,\n'[14]M1a - Model inputs'!L9+'[14]M1a - Model inputs'!L19,\n'[14]M1b - Model inputs'!L9+'[14]M1b - Model inputs'!L19,\n'[14]SM1 - DECC Scenario 3 equiv'!L9+'[14]SM1 - DECC Scenario 3 equiv'!L19,\n'[14]SM2 - DECC Scenario 1 equiv'!L9+'[14]SM2 - DECC Scenario 1 equiv'!L19,\n'[14]SM3 - DECC Scenario 2 equiv'!L9+'[14]SM3 - DECC Scenario 2 equiv'!L19,\n'[14]SM4 - DNO Scenario 4 equiv'!L9+'[14]SM4 - DNO Scenario 4 equiv'!L19)","v":81.816641268671702},{"$f":"CHOOSE(view,\n'[13]M1a - Model inputs'!M9+'[13]M1a - Model inputs'!M19,\n'[13]M1b - Model inputs'!M9+'[13]M1b - Model inputs'!M19,\n'[13]SM1 - DECC Scenario 3 equiv'!M9+'[13]SM1 - DECC Scenario 3 equiv'!M19,\n'[13]SM2 - DECC Scenario 1 equiv'!M9+'[13]SM2 - DECC Scenario 1 equiv'!M19,\n'[13]SM3 - DECC Scenario 2 equiv'!M9+'[13]SM3 - DECC Scenario 2 equiv'!M19,\n'[13]SM4 - DNO Scenario 4 equiv'!M9+'[13]SM4 - DNO Scenario 4 equiv'!M19,\n'[14]M1a - Model inputs'!M9+'[14]M1a - Model inputs'!M19,\n'[14]M1b - Model inputs'!M9+'[14]M1b - Model inputs'!M19,\n'[14]SM1 - DECC Scenario 3 equiv'!M9+'[14]SM1 - DECC Scenario 3 equiv'!M19,\n'[14]SM2 - DECC Scenario 1 equiv'!M9+'[14]SM2 - DECC Scenario 1 equiv'!M19,\n'[14]SM3 - DECC Scenario 2 equiv'!M9+'[14]SM3 - DECC Scenario 2 equiv'!M19,\n'[14]SM4 - DNO Scenario 4 equiv'!M9+'[14]SM4 - DNO Scenario 4 equiv'!M19)","v":81.668696911603575},{"$f":"CHOOSE(view,\n'[13]M1a - Model inputs'!N9+'[13]M1a - Model inputs'!N19,\n'[13]M1b - Model inputs'!N9+'[13]M1b - Model inputs'!N19,\n'[13]SM1 - DECC Scenario 3 equiv'!N9+'[13]SM1 - DECC Scenario 3 equiv'!N19,\n'[13]SM2 - DECC Scenario 1 equiv'!N9+'[13]SM2 - DECC Scenario 1 equiv'!N19,\n'[13]SM3 - DECC Scenario 2 equiv'!N9+'[13]SM3 - DECC Scenario 2 equiv'!N19,\n'[13]SM4 - DNO Scenario 4 equiv'!N9+'[13]SM4 - DNO Scenario 4 equiv'!N19,\n'[14]M1a - Model inputs'!N9+'[14]M1a - Model inputs'!N19,\n'[14]M1b - Model inputs'!N9+'[14]M1b - Model inputs'!N19,\n'[14]SM1 - DECC Scenario 3 equiv'!N9+'[14]SM1 - DECC Scenario 3 equiv'!N19,\n'[14]SM2 - DECC Scenario 1 equiv'!N9+'[14]SM2 - DECC Scenario 1 equiv'!N19,\n'[14]SM3 - DECC Scenario 2 equiv'!N9+'[14]SM3 - DECC Scenario 2 equiv'!N19,\n'[14]SM4 - DNO Scenario 4 equiv'!N9+'[14]SM4 - DNO Scenario 4 equiv'!N19)","v":76.057191611654673},{"$f":"CHOOSE(view,\n'[13]M1a - Model inputs'!O9+'[13]M1a - Model inputs'!O19,\n'[13]M1b - Model inputs'!O9+'[13]M1b - Model inputs'!O19,\n'[13]SM1 - DECC Scenario 3 equiv'!O9+'[13]SM1 - DECC Scenario 3 equiv'!O19,\n'[13]SM2 - DECC Scenario 1 equiv'!O9+'[13]SM2 - DECC Scenario 1 equiv'!O19,\n'[13]SM3 - DECC Scenario 2 equiv'!O9+'[13]SM3 - DECC Scenario 2 equiv'!O19,\n'[13]SM4 - DNO Scenario 4 equiv'!O9+'[13]SM4 - DNO Scenario 4 equiv'!O19,\n'[14]M1a - Model inputs'!O9+'[14]M1a - Model inputs'!O19,\n'[14]M1b - Model inputs'!O9+'[14]M1b - Model inputs'!O19,\n'[14]SM1 - DECC Scenario 3 equiv'!O9+'[14]SM1 - DECC Scenario 3 equiv'!O19,\n'[14]SM2 - DECC Scenario 1 equiv'!O9+'[14]SM2 - DECC Scenario 1 equiv'!O19,\n'[14]SM3 - DECC Scenario 2 equiv'!O9+'[14]SM3 - DECC Scenario 2 equiv'!O19,\n'[14]SM4 - DNO Scenario 4 equiv'!O9+'[14]SM4 - DNO Scenario 4 equiv'!O19)","v":71.077971531924419},{"$f":"CHOOSE(view,\n'[13]M1a - Model inputs'!P9+'[13]M1a - Model inputs'!P19,\n'[13]M1b - Model inputs'!P9+'[13]M1b - Model inputs'!P19,\n'[13]SM1 - DECC Scenario 3 equiv'!P9+'[13]SM1 - DECC Scenario 3 equiv'!P19,\n'[13]SM2 - DECC Scenario 1 equiv'!P9+'[13]SM2 - DECC Scenario 1 equiv'!P19,\n'[13]SM3 - DECC Scenario 2 equiv'!P9+'[13]SM3 - DECC Scenario 2 equiv'!P19,\n'[13]SM4 - DNO Scenario 4 equiv'!P9+'[13]SM4 - DNO Scenario 4 equiv'!P19,\n'[14]M1a - Model inputs'!P9+'[14]M1a - Model inputs'!P19,\n'[14]M1b - Model inputs'!P9+'[14]M1b - Model inputs'!P19,\n'[14]SM1 - DECC Scenario 3 equiv'!P9+'[14]SM1 - DECC Scenario 3 equiv'!P19,\n'[14]SM2 - DECC Scenario 1 equiv'!P9+'[14]SM2 - DECC Scenario 1 equiv'!P19,\n'[14]SM3 - DECC Scenario 2 equiv'!P9+'[14]SM3 - DECC Scenario 2 equiv'!P19,\n'[14]SM4 - DNO Scenario 4 equiv'!P9+'[14]SM4 - DNO Scenario 4 equiv'!P19)","v":72.010415182462168},{"$f":"CHOOSE(view,\n'[13]M1a - Model inputs'!Q9+'[13]M1a - Model inputs'!Q19,\n'[13]M1b - Model inputs'!Q9+'[13]M1b - Model inputs'!Q19,\n'[13]SM1 - DECC Scenario 3 equiv'!Q9+'[13]SM1 - DECC Scenario 3 equiv'!Q19,\n'[13]SM2 - DECC Scenario 1 equiv'!Q9+'[13]SM2 - DECC Scenario 1 equiv'!Q19,\n'[13]SM3 - DECC Scenario 2 equiv'!Q9+'[13]SM3 - DECC Scenario 2 equiv'!Q19,\n'[13]SM4 - DNO Scenario 4 equiv'!Q9+'[13]SM4 - DNO Scenario 4 equiv'!Q19,\n'[14]M1a - Model inputs'!Q9+'[14]M1a - Model inputs'!Q19,\n'[14]M1b - Model inputs'!Q9+'[14]M1b - Model inputs'!Q19,\n'[14]SM1 - DECC Scenario 3 equiv'!Q9+'[14]SM1 - DECC Scenario 3 equiv'!Q19,\n'[14]SM2 - DECC Scenario 1 equiv'!Q9+'[14]SM2 - DECC Scenario 1 equiv'!Q19,\n'[14]SM3 - DECC Scenario 2 equiv'!Q9+'[14]SM3 - DECC Scenario 2 equiv'!Q19,\n'[14]SM4 - DNO Scenario 4 equiv'!Q9+'[14]SM4 - DNO Scenario 4 equiv'!Q19)","v":72.946942878158552},{"$f":"CHOOSE(view,\n'[13]M1a - Model inputs'!R9+'[13]M1a - Model inputs'!R19,\n'[13]M1b - Model inputs'!R9+'[13]M1b - Model inputs'!R19,\n'[13]SM1 - DECC Scenario 3 equiv'!R9+'[13]SM1 - DECC Scenario 3 equiv'!R19,\n'[13]SM2 - DECC Scenario 1 equiv'!R9+'[13]SM2 - DECC Scenario 1 equiv'!R19,\n'[13]SM3 - DECC Scenario 2 equiv'!R9+'[13]SM3 - DECC Scenario 2 equiv'!R19,\n'[13]SM4 - DNO Scenario 4 equiv'!R9+'[13]SM4 - DNO Scenario 4 equiv'!R19,\n'[14]M1a - Model inputs'!R9+'[14]M1a - Model inputs'!R19,\n'[14]M1b - Model inputs'!R9+'[14]M1b - Model inputs'!R19,\n'[14]SM1 - DECC Scenario 3 equiv'!R9+'[14]SM1 - DECC Scenario 3 equiv'!R19,\n'[14]SM2 - DECC Scenario 1 equiv'!R9+'[14]SM2 - DECC Scenario 1 equiv'!R19,\n'[14]SM3 - DECC Scenario 2 equiv'!R9+'[14]SM3 - DECC Scenario 2 equiv'!R19,\n'[14]SM4 - DNO Scenario 4 equiv'!R9+'[14]SM4 - DNO Scenario 4 equiv'!R19)","v":73.483846711186985},{"$f":"CHOOSE(view,\n'[13]M1a - Model inputs'!S9+'[13]M1a - Model inputs'!S19,\n'[13]M1b - Model inputs'!S9+'[13]M1b - Model inputs'!S19,\n'[13]SM1 - DECC Scenario 3 equiv'!S9+'[13]SM1 - DECC Scenario 3 equiv'!S19,\n'[13]SM2 - DECC Scenario 1 equiv'!S9+'[13]SM2 - DECC Scenario 1 equiv'!S19,\n'[13]SM3 - DECC Scenario 2 equiv'!S9+'[13]SM3 - DECC Scenario 2 equiv'!S19,\n'[13]SM4 - DNO Scenario 4 equiv'!S9+'[13]SM4 - DNO Scenario 4 equiv'!S19,\n'[14]M1a - Model inputs'!S9+'[14]M1a - Model inputs'!S19,\n'[14]M1b - Model inputs'!S9+'[14]M1b - Model inputs'!S19,\n'[14]SM1 - DECC Scenario 3 equiv'!S9+'[14]SM1 - DECC Scenario 3 equiv'!S19,\n'[14]SM2 - DECC Scenario 1 equiv'!S9+'[14]SM2 - DECC Scenario 1 equiv'!S19,\n'[14]SM3 - DECC Scenario 2 equiv'!S9+'[14]SM3 - DECC Scenario 2 equiv'!S19,\n'[14]SM4 - DNO Scenario 4 equiv'!S9+'[14]SM4 - DNO Scenario 4 equiv'!S19)","v":79.130759044208375}]
[null,null,null,null,{"$f":"Input!E94","v":"Non-variant allowed non-load related capex - other"},null,"£m 12/13 prices",null,null,null,null,null,null,null,null,null,null,null,null,null,null,null,null,null,null,null,null,null,null,null,null,null,null,null,null,{"$f":"CHOOSE(view,\n'[13]M1a - Model inputs'!L10+'[13]M1a - Model inputs'!L20,\n'[13]M1b - Model inputs'!L10+'[13]M1b - Model inputs'!L20,\n'[13]SM1 - DECC Scenario 3 equiv'!L10+'[13]SM1 - DECC Scenario 3 equiv'!L20,\n'[13]SM2 - DECC Scenario 1 equiv'!L10+'[13]SM2 - DECC Scenario 1 equiv'!L20,\n'[13]SM3 - DECC Scenario 2 equiv'!L10+'[13]SM3 - DECC Scenario 2 equiv'!L20,\n'[13]SM4 - DNO Scenario 4 equiv'!L10+'[13]SM4 - DNO Scenario 4 equiv'!L20,\n'[14]M1a - Model inputs'!L10+'[14]M1a - Model inputs'!L20,\n'[14]M1b - Model inputs'!L10+'[14]M1b - Model inputs'!L20,\n'[14]SM1 - DECC Scenario 3 equiv'!L10+'[14]SM1 - DECC Scenario 3 equiv'!L20,\n'[14]SM2 - DECC Scenario 1 equiv'!L10+'[14]SM2 - DECC Scenario 1 equiv'!L20,\n'[14]SM3 - DECC Scenario 2 equiv'!L10+'[14]SM3 - DECC Scenario 2 equiv'!L20,\n'[14]SM4 - DNO Scenario 4 equiv'!L10+'[14]SM4 - DNO Scenario 4 equiv'!L20)","v":16.96242327465102},{"$f":"CHOOSE(view,\n'[13]M1a - Model inputs'!M10+'[13]M1a - Model inputs'!M20,\n'[13]M1b - Model inputs'!M10+'[13]M1b - Model inputs'!M20,\n'[13]SM1 - DECC Scenario 3 equiv'!M10+'[13]SM1 - DECC Scenario 3 equiv'!M20,\n'[13]SM2 - DECC Scenario 1 equiv'!M10+'[13]SM2 - DECC Scenario 1 equiv'!M20,\n'[13]SM3 - DECC Scenario 2 equiv'!M10+'[13]SM3 - DECC Scenario 2 equiv'!M20,\n'[13]SM4 - DNO Scenario 4 equiv'!M10+'[13]SM4 - DNO Scenario 4 equiv'!M20,\n'[14]M1a - Model inputs'!M10+'[14]M1a - Model inputs'!M20,\n'[14]M1b - Model inputs'!M10+'[14]M1b - Model inputs'!M20,\n'[14]SM1 - DECC Scenario 3 equiv'!M10+'[14]SM1 - DECC Scenario 3 equiv'!M20,\n'[14]SM2 - DECC Scenario 1 equiv'!M10+'[14]SM2 - DECC Scenario 1 equiv'!M20,\n'[14]SM3 - DECC Scenario 2 equiv'!M10+'[14]SM3 - DECC Scenario 2 equiv'!M20,\n'[14]SM4 - DNO Scenario 4 equiv'!M10+'[14]SM4 - DNO Scenario 4 equiv'!M20)","v":15.534623742349345},{"$f":"CHOOSE(view,\n'[13]M1a - Model inputs'!N10+'[13]M1a - Model inputs'!N20,\n'[13]M1b - Model inputs'!N10+'[13]M1b - Model inputs'!N20,\n'[13]SM1 - DECC Scenario 3 equiv'!N10+'[13]SM1 - DECC Scenario 3 equiv'!N20,\n'[13]SM2 - DECC Scenario 1 equiv'!N10+'[13]SM2 - DECC Scenario 1 equiv'!N20,\n'[13]SM3 - DECC Scenario 2 equiv'!N10+'[13]SM3 - DECC Scenario 2 equiv'!N20,\n'[13]SM4 - DNO Scenario 4 equiv'!N10+'[13]SM4 - DNO Scenario 4 equiv'!N20,\n'[14]M1a - Model inputs'!N10+'[14]M1a - Model inputs'!N20,\n'[14]M1b - Model inputs'!N10+'[14]M1b - Model inputs'!N20,\n'[14]SM1 - DECC Scenario 3 equiv'!N10+'[14]SM1 - DECC Scenario 3 equiv'!N20,\n'[14]SM2 - DECC Scenario 1 equiv'!N10+'[14]SM2 - DECC Scenario 1 equiv'!N20,\n'[14]SM3 - DECC Scenario 2 equiv'!N10+'[14]SM3 - DECC Scenario 2 equiv'!N20,\n'[14]SM4 - DNO Scenario 4 equiv'!N10+'[14]SM4 - DNO Scenario 4 equiv'!N20)","v":14.343564069326627},{"$f":"CHOOSE(view,\n'[13]M1a - Model inputs'!O10+'[13]M1a - Model inputs'!O20,\n'[13]M1b - Model inputs'!O10+'[13]M1b - Model inputs'!O20,\n'[13]SM1 - DECC Scenario 3 equiv'!O10+'[13]SM1 - DECC Scenario 3 equiv'!O20,\n'[13]SM2 - DECC Scenario 1 equiv'!O10+'[13]SM2 - DECC Scenario 1 equiv'!O20,\n'[13]SM3 - DECC Scenario 2 equiv'!O10+'[13]SM3 - DECC Scenario 2 equiv'!O20,\n'[13]SM4 - DNO Scenario 4 equiv'!O10+'[13]SM4 - DNO Scenario 4 equiv'!O20,\n'[14]M1a - Model inputs'!O10+'[14]M1a - Model inputs'!O20,\n'[14]M1b - Model inputs'!O10+'[14]M1b - Model inputs'!O20,\n'[14]SM1 - DECC Scenario 3 equiv'!O10+'[14]SM1 - DECC Scenario 3 equiv'!O20,\n'[14]SM2 - DECC Scenario 1 equiv'!O10+'[14]SM2 - DECC Scenario 1 equiv'!O20,\n'[14]SM3 - DECC Scenario 2 equiv'!O10+'[14]SM3 - DECC Scenario 2 equiv'!O20,\n'[14]SM4 - DNO Scenario 4 equiv'!O10+'[14]SM4 - DNO Scenario 4 equiv'!O20)","v":17.272894551599574},{"$f":"CHOOSE(view,\n'[13]M1a - Model inputs'!P10+'[13]M1a - Model inputs'!P20,\n'[13]M1b - Model inputs'!P10+'[13]M1b - Model inputs'!P20,\n'[13]SM1 - DECC Scenario 3 equiv'!P10+'[13]SM1 - DECC Scenario 3 equiv'!P20,\n'[13]SM2 - DECC Scenario 1 equiv'!P10+'[13]SM2 - DECC Scenario 1 equiv'!P20,\n'[13]SM3 - DECC Scenario 2 equiv'!P10+'[13]SM3 - DECC Scenario 2 equiv'!P20,\n'[13]SM4 - DNO Scenario 4 equiv'!P10+'[13]SM4 - DNO Scenario 4 equiv'!P20,\n'[14]M1a - Model inputs'!P10+'[14]M1a - Model inputs'!P20,\n'[14]M1b - Model inputs'!P10+'[14]M1b - Model inputs'!P20,\n'[14]SM1 - DECC Scenario 3 equiv'!P10+'[14]SM1 - DECC Scenario 3 equiv'!P20,\n'[14]SM2 - DECC Scenario 1 equiv'!P10+'[14]SM2 - DECC Scenario 1 equiv'!P20,\n'[14]SM3 - DECC Scenario 2 equiv'!P10+'[14]SM3 - DECC Scenario 2 equiv'!P20,\n'[14]SM4 - DNO Scenario 4 equiv'!P10+'[14]SM4 - DNO Scenario 4 equiv'!P20)","v":11.215327481054375},{"$f":"CHOOSE(view,\n'[13]M1a - Model inputs'!Q10+'[13]M1a - Model inputs'!Q20,\n'[13]M1b - Model inputs'!Q10+'[13]M1b - Model inputs'!Q20,\n'[13]SM1 - DECC Scenario 3 equiv'!Q10+'[13]SM1 - DECC Scenario 3 equiv'!Q20,\n'[13]SM2 - DECC Scenario 1 equiv'!Q10+'[13]SM2 - DECC Scenario 1 equiv'!Q20,\n'[13]SM3 - DECC Scenario 2 equiv'!Q10+'[13]SM3 - DECC Scenario 2 equiv'!Q20,\n'[13]SM4 - DNO Scenario 4 equiv'!Q10+'[13]SM4 - DNO Scenario 4 equiv'!Q20,\n'[14]M1a - Model inputs'!Q10+'[14]M1a - Model inputs'!Q20,\n'[14]M1b - Model inputs'!Q10+'[14]M1b - Model inputs'!Q20,\n'[14]SM1 - DECC Scenario 3 equiv'!Q10+'[14]SM1 - DECC Scenario 3 equiv'!Q20,\n'[14]SM2 - DECC Scenario 1 equiv'!Q10+'[14]SM2 - DECC Scenario 1 equiv'!Q20,\n'[14]SM3 - DECC Scenario 2 equiv'!Q10+'[14]SM3 - DECC Scenario 2 equiv'!Q20,\n'[14]SM4 - DNO Scenario 4 equiv'!Q10+'[14]SM4 - DNO Scenario 4 equiv'!Q20)","v":11.783642426136467},{"$f":"CHOOSE(view,\n'[13]M1a - Model inputs'!R10+'[13]M1a - Model inputs'!R20,\n'[13]M1b - Model inputs'!R10+'[13]M1b - Model inputs'!R20,\n'[13]SM1 - DECC Scenario 3 equiv'!R10+'[13]SM1 - DECC Scenario 3 equiv'!R20,\n'[13]SM2 - DECC Scenario 1 equiv'!R10+'[13]SM2 - DECC Scenario 1 equiv'!R20,\n'[13]SM3 - DECC Scenario 2 equiv'!R10+'[13]SM3 - DECC Scenario 2 equiv'!R20,\n'[13]SM4 - DNO Scenario 4 equiv'!R10+'[13]SM4 - DNO Scenario 4 equiv'!R20,\n'[14]M1a - Model inputs'!R10+'[14]M1a - Model inputs'!R20,\n'[14]M1b - Model inputs'!R10+'[14]M1b - Model inputs'!R20,\n'[14]SM1 - DECC Scenario 3 equiv'!R10+'[14]SM1 - DECC Scenario 3 equiv'!R20,\n'[14]SM2 - DECC Scenario 1 equiv'!R10+'[14]SM2 - DECC Scenario 1 equiv'!R20,\n'[14]SM3 - DECC Scenario 2 equiv'!R10+'[14]SM3 - DECC Scenario 2 equiv'!R20,\n'[14]SM4 - DNO Scenario 4 equiv'!R10+'[14]SM4 - DNO Scenario 4 equiv'!R20)","v":10.897128785489246},{"$f":"CHOOSE(view,\n'[13]M1a - Model inputs'!S10+'[13]M1a - Model inputs'!S20,\n'[13]M1b - Model inputs'!S10+'[13]M1b - Model inputs'!S20,\n'[13]SM1 - DECC Scenario 3 equiv'!S10+'[13]SM1 - DECC Scenario 3 equiv'!S20,\n'[13]SM2 - DECC Scenario 1 equiv'!S10+'[13]SM2 - DECC Scenario 1 equiv'!S20,\n'[13]SM3 - DECC Scenario 2 equiv'!S10+'[13]SM3 - DECC Scenario 2 equiv'!S20,\n'[13]SM4 - DNO Scenario 4 equiv'!S10+'[13]SM4 - DNO Scenario 4 equiv'!S20,\n'[14]M1a - Model inputs'!S10+'[14]M1a - Model inputs'!S20,\n'[14]M1b - Model inputs'!S10+'[14]M1b - Model inputs'!S20,\n'[14]SM1 - DECC Scenario 3 equiv'!S10+'[14]SM1 - DECC Scenario 3 equiv'!S20,\n'[14]SM2 - DECC Scenario 1 equiv'!S10+'[14]SM2 - DECC Scenario 1 equiv'!S20,\n'[14]SM3 - DECC Scenario 2 equiv'!S10+'[14]SM3 - DECC Scenario 2 equiv'!S20,\n'[14]SM4 - DNO Scenario 4 equiv'!S10+'[14]SM4 - DNO Scenario 4 equiv'!S20)","v":12.440162683251938}]
[null,null,null,null,{"$f":"Input!E95","v":"Non-variant allowed faults"},null,"£m 12/13 prices",null,null,null,null,null,null,null,null,null,null,null,null,null,null,null,null,null,null,null,null,null,null,null,null,null,null,null,null,{"$f":"CHOOSE(view,\n'[13]M1a - Model inputs'!L11+'[13]M1a - Model inputs'!L21,\n'[13]M1b - Model inputs'!L11+'[13]M1b - Model inputs'!L21,\n'[13]SM1 - DECC Scenario 3 equiv'!L11+'[13]SM1 - DECC Scenario 3 equiv'!L21,\n'[13]SM2 - DECC Scenario 1 equiv'!L11+'[13]SM2 - DECC Scenario 1 equiv'!L21,\n'[13]SM3 - DECC Scenario 2 equiv'!L11+'[13]SM3 - DECC Scenario 2 equiv'!L21,\n'[13]SM4 - DNO Scenario 4 equiv'!L11+'[13]SM4 - DNO Scenario 4 equiv'!L21,\n'[14]M1a - Model inputs'!L11+'[14]M1a - Model inputs'!L21,\n'[14]M1b - Model inputs'!L11+'[14]M1b - Model inputs'!L21,\n'[14]SM1 - DECC Scenario 3 equiv'!L11+'[14]SM1 - DECC Scenario 3 equiv'!L21,\n'[14]SM2 - DECC Scenario 1 equiv'!L11+'[14]SM2 - DECC Scenario 1 equiv'!L21,\n'[14]SM3 - DECC Scenario 2 equiv'!L11+'[14]SM3 - DECC Scenario 2 equiv'!L21,\n'[14]SM4 - DNO Scenario 4 equiv'!L11+'[14]SM4 - DNO Scenario 4 equiv'!L21)","v":24.589191885731815},{"$f":"CHOOSE(view,\n'[13]M1a - Model inputs'!M11+'[13]M1a - Model inputs'!M21,\n'[13]M1b - Model inputs'!M11+'[13]M1b - Model inputs'!M21,\n'[13]SM1 - DECC Scenario 3 equiv'!M11+'[13]SM1 - DECC Scenario 3 equiv'!M21,\n'[13]SM2 - DECC Scenario 1 equiv'!M11+'[13]SM2 - DECC Scenario 1 equiv'!M21,\n'[13]SM3 - DECC Scenario 2 equiv'!M11+'[13]SM3 - DECC Scenario 2 equiv'!M21,\n'[13]SM4 - DNO Scenario 4 equiv'!M11+'[13]SM4 - DNO Scenario 4 equiv'!M21,\n'[14]M1a - Model inputs'!M11+'[14]M1a - Model inputs'!M21,\n'[14]M1b - Model inputs'!M11+'[14]M1b - Model inputs'!M21,\n'[14]SM1 - DECC Scenario 3 equiv'!M11+'[14]SM1 - DECC Scenario 3 equiv'!M21,\n'[14]SM2 - DECC Scenario 1 equiv'!M11+'[14]SM2 - DECC Scenario 1 equiv'!M21,\n'[14]SM3 - DECC Scenario 2 equiv'!M11+'[14]SM3 - DECC Scenario 2 equiv'!M21,\n'[14]SM4 - DNO Scenario 4 equiv'!M11+'[14]SM4 - DNO Scenario 4 equiv'!M21)","v":24.531240913925227},{"$f":"CHOOSE(view,\n'[13]M1a - Model inputs'!N11+'[13]M1a - Model inputs'!N21,\n'[13]M1b - Model inputs'!N11+'[13]M1b - Model inputs'!N21,\n'[13]SM1 - DECC Scenario 3 equiv'!N11+'[13]SM1 - DECC Scenario 3 equiv'!N21,\n'[13]SM2 - DECC Scenario 1 equiv'!N11+'[13]SM2 - DECC Scenario 1 equiv'!N21,\n'[13]SM3 - DECC Scenario 2 equiv'!N11+'[13]SM3 - DECC Scenario 2 equiv'!N21,\n'[13]SM4 - DNO Scenario 4 equiv'!N11+'[13]SM4 - DNO Scenario 4 equiv'!N21,\n'[14]M1a - Model inputs'!N11+'[14]M1a - Model inputs'!N21,\n'[14]M1b - Model inputs'!N11+'[14]M1b - Model inputs'!N21,\n'[14]SM1 - DECC Scenario 3 equiv'!N11+'[14]SM1 - DECC Scenario 3 equiv'!N21,\n'[14]SM2 - DECC Scenario 1 equiv'!N11+'[14]SM2 - DECC Scenario 1 equiv'!N21,\n'[14]SM3 - DECC Scenario 2 equiv'!N11+'[14]SM3 - DECC Scenario 2 equiv'!N21,\n'[14]SM4 - DNO Scenario 4 equiv'!N11+'[14]SM4 - DNO Scenario 4 equiv'!N21)","v":24.367536062354791},{"$f":"CHOOSE(view,\n'[13]M1a - Model inputs'!O11+'[13]M1a - Model inputs'!O21,\n'[13]M1b - Model inputs'!O11+'[13]M1b - Model inputs'!O21,\n'[13]SM1 - DECC Scenario 3 equiv'!O11+'[13]SM1 - DECC Scenario 3 equiv'!O21,\n'[13]SM2 - DECC Scenario 1 equiv'!O11+'[13]SM2 - DECC Scenario 1 equiv'!O21,\n'[13]SM3 - DECC Scenario 2 equiv'!O11+'[13]SM3 - DECC Scenario 2 equiv'!O21,\n'[13]SM4 - DNO Scenario 4 equiv'!O11+'[13]SM4 - DNO Scenario 4 equiv'!O21,\n'[14]M1a - Model inputs'!O11+'[14]M1a - Model inputs'!O21,\n'[14]M1b - Model inputs'!O11+'[14]M1b - Model inputs'!O21,\n'[14]SM1 - DECC Scenario 3 equiv'!O11+'[14]SM1 - DECC Scenario 3 equiv'!O21,\n'[14]SM2 - DECC Scenario 1 equiv'!O11+'[14]SM2 - DECC Scenario 1 equiv'!O21,\n'[14]SM3 - DECC Scenario 2 equiv'!O11+'[14]SM3 - DECC Scenario 2 equiv'!O21,\n'[14]SM4 - DNO Scenario 4 equiv'!O11+'[14]SM4 - DNO Scenario 4 equiv'!O21)","v":24.305956636356637},{"$f":"CHOOSE(view,\n'[13]M1a - Model inputs'!P11+'[13]M1a - Model inputs'!P21,\n'[13]M1b - Model inputs'!P11+'[13]M1b - Model inputs'!P21,\n'[13]SM1 - DECC Scenario 3 equiv'!P11+'[13]SM1 - DECC Scenario 3 equiv'!P21,\n'[13]SM2 - DECC Scenario 1 equiv'!P11+'[13]SM2 - DECC Scenario 1 equiv'!P21,\n'[13]SM3 - DECC Scenario 2 equiv'!P11+'[13]SM3 - DECC Scenario 2 equiv'!P21,\n'[13]SM4 - DNO Scenario 4 equiv'!P11+'[13]SM4 - DNO Scenario 4 equiv'!P21,\n'[14]M1a - Model inputs'!P11+'[14]M1a - Model inputs'!P21,\n'[14]M1b - Model inputs'!P11+'[14]M1b - Model inputs'!P21,\n'[14]SM1 - DECC Scenario 3 equiv'!P11+'[14]SM1 - DECC Scenario 3 equiv'!P21,\n'[14]SM2 - DECC Scenario 1 equiv'!P11+'[14]SM2 - DECC Scenario 1 equiv'!P21,\n'[14]SM3 - DECC Scenario 2 equiv'!P11+'[14]SM3 - DECC Scenario 2 equiv'!P21,\n'[14]SM4 - DNO Scenario 4 equiv'!P11+'[14]SM4 - DNO Scenario 4 equiv'!P21)","v":24.265573479752717},{"$f":"CHOOSE(view,\n'[13]M1a - Model inputs'!Q11+'[13]M1a - Model inputs'!Q21,\n'[13]M1b - Model inputs'!Q11+'[13]M1b - Model inputs'!Q21,\n'[13]SM1 - DECC Scenario 3 equiv'!Q11+'[13]SM1 - DECC Scenario 3 equiv'!Q21,\n'[13]SM2 - DECC Scenario 1 equiv'!Q11+'[13]SM2 - DECC Scenario 1 equiv'!Q21,\n'[13]SM3 - DECC Scenario 2 equiv'!Q11+'[13]SM3 - DECC Scenario 2 equiv'!Q21,\n'[13]SM4 - DNO Scenario 4 equiv'!Q11+'[13]SM4 - DNO Scenario 4 equiv'!Q21,\n'[14]M1a - Model inputs'!Q11+'[14]M1a - Model inputs'!Q21,\n'[14]M1b - Model inputs'!Q11+'[14]M1b - Model inputs'!Q21,\n'[14]SM1 - DECC Scenario 3 equiv'!Q11+'[14]SM1 - DECC Scenario 3 equiv'!Q21,\n'[14]SM2 - DECC Scenario 1 equiv'!Q11+'[14]SM2 - DECC Scenario 1 equiv'!Q21,\n'[14]SM3 - DECC Scenario 2 equiv'!Q11+'[14]SM3 - DECC Scenario 2 equiv'!Q21,\n'[14]SM4 - DNO Scenario 4 equiv'!Q11+'[14]SM4 - DNO Scenario 4 equiv'!Q21)","v":24.292987738215736},{"$f":"CHOOSE(view,\n'[13]M1a - Model inputs'!R11+'[13]M1a - Model inputs'!R21,\n'[13]M1b - Model inputs'!R11+'[13]M1b - Model inputs'!R21,\n'[13]SM1 - DECC Scenario 3 equiv'!R11+'[13]SM1 - DECC Scenario 3 equiv'!R21,\n'[13]SM2 - DECC Scenario 1 equiv'!R11+'[13]SM2 - DECC Scenario 1 equiv'!R21,\n'[13]SM3 - DECC Scenario 2 equiv'!R11+'[13]SM3 - DECC Scenario 2 equiv'!R21,\n'[13]SM4 - DNO Scenario 4 equiv'!R11+'[13]SM4 - DNO Scenario 4 equiv'!R21,\n'[14]M1a - Model inputs'!R11+'[14]M1a - Model inputs'!R21,\n'[14]M1b - Model inputs'!R11+'[14]M1b - Model inputs'!R21,\n'[14]SM1 - DECC Scenario 3 equiv'!R11+'[14]SM1 - DECC Scenario 3 equiv'!R21,\n'[14]SM2 - DECC Scenario 1 equiv'!R11+'[14]SM2 - DECC Scenario 1 equiv'!R21,\n'[14]SM3 - DECC Scenario 2 equiv'!R11+'[14]SM3 - DECC Scenario 2 equiv'!R21,\n'[14]SM4 - DNO Scenario 4 equiv'!R11+'[14]SM4 - DNO Scenario 4 equiv'!R21)","v":24.370769929119827},{"$f":"CHOOSE(view,\n'[13]M1a - Model inputs'!S11+'[13]M1a - Model inputs'!S21,\n'[13]M1b - Model inputs'!S11+'[13]M1b - Model inputs'!S21,\n'[13]SM1 - DECC Scenario 3 equiv'!S11+'[13]SM1 - DECC Scenario 3 equiv'!S21,\n'[13]SM2 - DECC Scenario 1 equiv'!S11+'[13]SM2 - DECC Scenario 1 equiv'!S21,\n'[13]SM3 - DECC Scenario 2 equiv'!S11+'[13]SM3 - DECC Scenario 2 equiv'!S21,\n'[13]SM4 - DNO Scenario 4 equiv'!S11+'[13]SM4 - DNO Scenario 4 equiv'!S21,\n'[14]M1a - Model inputs'!S11+'[14]M1a - Model inputs'!S21,\n'[14]M1b - Model inputs'!S11+'[14]M1b - Model inputs'!S21,\n'[14]SM1 - DECC Scenario 3 equiv'!S11+'[14]SM1 - DECC Scenario 3 equiv'!S21,\n'[14]SM2 - DECC Scenario 1 equiv'!S11+'[14]SM2 - DECC Scenario 1 equiv'!S21,\n'[14]SM3 - DECC Scenario 2 equiv'!S11+'[14]SM3 - DECC Scenario 2 equiv'!S21,\n'[14]SM4 - DNO Scenario 4 equiv'!S11+'[14]SM4 - DNO Scenario 4 equiv'!S21)","v":24.425161226269609}]
[null,null,null,null,{"$f":"Input!E96","v":"Non-variant allowed tree cutting"},null,"£m 12/13 prices",null,null,null,null,null,null,null,null,null,null,null,null,null,null,null,null,null,null,null,null,null,null,null,null,null,null,null,null,{"$f":"CHOOSE(view,\n'[13]M1a - Model inputs'!L12+'[13]M1a - Model inputs'!L22,\n'[13]M1b - Model inputs'!L12+'[13]M1b - Model inputs'!L22,\n'[13]SM1 - DECC Scenario 3 equiv'!L12+'[13]SM1 - DECC Scenario 3 equiv'!L22,\n'[13]SM2 - DECC Scenario 1 equiv'!L12+'[13]SM2 - DECC Scenario 1 equiv'!L22,\n'[13]SM3 - DECC Scenario 2 equiv'!L12+'[13]SM3 - DECC Scenario 2 equiv'!L22,\n'[13]SM4 - DNO Scenario 4 equiv'!L12+'[13]SM4 - DNO Scenario 4 equiv'!L22,\n'[14]M1a - Model inputs'!L12+'[14]M1a - Model inputs'!L22,\n'[14]M1b - Model inputs'!L12+'[14]M1b - Model inputs'!L22,\n'[14]SM1 - DECC Scenario 3 equiv'!L12+'[14]SM1 - DECC Scenario 3 equiv'!L22,\n'[14]SM2 - DECC Scenario 1 equiv'!L12+'[14]SM2 - DECC Scenario 1 equiv'!L22,\n'[14]SM3 - DECC Scenario 2 equiv'!L12+'[14]SM3 - DECC Scenario 2 equiv'!L22,\n'[14]SM4 - DNO Scenario 4 equiv'!L12+'[14]SM4 - DNO Scenario 4 equiv'!L22)","v":11.018249619186447},{"$f":"CHOOSE(view,\n'[13]M1a - Model inputs'!M12+'[13]M1a - Model inputs'!M22,\n'[13]M1b - Model inputs'!M12+'[13]M1b - Model inputs'!M22,\n'[13]SM1 - DECC Scenario 3 equiv'!M12+'[13]SM1 - DECC Scenario 3 equiv'!M22,\n'[13]SM2 - DECC Scenario 1 equiv'!M12+'[13]SM2 - DECC Scenario 1 equiv'!M22,\n'[13]SM3 - DECC Scenario 2 equiv'!M12+'[13]SM3 - DECC Scenario 2 equiv'!M22,\n'[13]SM4 - DNO Scenario 4 equiv'!M12+'[13]SM4 - DNO Scenario 4 equiv'!M22,\n'[14]M1a - Model inputs'!M12+'[14]M1a - Model inputs'!M22,\n'[14]M1b - Model inputs'!M12+'[14]M1b - Model inputs'!M22,\n'[14]SM1 - DECC Scenario 3 equiv'!M12+'[14]SM1 - DECC Scenario 3 equiv'!M22,\n'[14]SM2 - DECC Scenario 1 equiv'!M12+'[14]SM2 - DECC Scenario 1 equiv'!M22,\n'[14]SM3 - DECC Scenario 2 equiv'!M12+'[14]SM3 - DECC Scenario 2 equiv'!M22,\n'[14]SM4 - DNO Scenario 4 equiv'!M12+'[14]SM4 - DNO Scenario 4 equiv'!M22)","v":11.054397883478151},{"$f":"CHOOSE(view,\n'[13]M1a - Model inputs'!N12+'[13]M1a - Model inputs'!N22,\n'[13]M1b - Model inputs'!N12+'[13]M1b - Model inputs'!N22,\n'[13]SM1 - DECC Scenario 3 equiv'!N12+'[13]SM1 - DECC Scenario 3 equiv'!N22,\n'[13]SM2 - DECC Scenario 1 equiv'!N12+'[13]SM2 - DECC Scenario 1 equiv'!N22,\n'[13]SM3 - DECC Scenario 2 equiv'!N12+'[13]SM3 - DECC Scenario 2 equiv'!N22,\n'[13]SM4 - DNO Scenario 4 equiv'!N12+'[13]SM4 - DNO Scenario 4 equiv'!N22,\n'[14]M1a - Model inputs'!N12+'[14]M1a - Model inputs'!N22,\n'[14]M1b - Model inputs'!N12+'[14]M1b - Model inputs'!N22,\n'[14]SM1 - DECC Scenario 3 equiv'!N12+'[14]SM1 - DECC Scenario 3 equiv'!N22,\n'[14]SM2 - DECC Scenario 1 equiv'!N12+'[14]SM2 - DECC Scenario 1 equiv'!N22,\n'[14]SM3 - DECC Scenario 2 equiv'!N12+'[14]SM3 - DECC Scenario 2 equiv'!N22,\n'[14]SM4 - DNO Scenario 4 equiv'!N12+'[14]SM4 - DNO Scenario 4 equiv'!N22)","v":11.055348662508877},{"$f":"CHOOSE(view,\n'[13]M1a - Model inputs'!O12+'[13]M1a - Model inputs'!O22,\n'[13]M1b - Model inputs'!O12+'[13]M1b - Model inputs'!O22,\n'[13]SM1 - DECC Scenario 3 equiv'!O12+'[13]SM1 - DECC Scenario 3 equiv'!O22,\n'[13]SM2 - DECC Scenario 1 equiv'!O12+'[13]SM2 - DECC Scenario 1 equiv'!O22,\n'[13]SM3 - DECC Scenario 2 equiv'!O12+'[13]SM3 - DECC Scenario 2 equiv'!O22,\n'[13]SM4 - DNO Scenario 4 equiv'!O12+'[13]SM4 - DNO Scenario 4 equiv'!O22,\n'[14]M1a - Model inputs'!O12+'[14]M1a - Model inputs'!O22,\n'[14]M1b - Model inputs'!O12+'[14]M1b - Model inputs'!O22,\n'[14]SM1 - DECC Scenario 3 equiv'!O12+'[14]SM1 - DECC Scenario 3 equiv'!O22,\n'[14]SM2 - DECC Scenario 1 equiv'!O12+'[14]SM2 - DECC Scenario 1 equiv'!O22,\n'[14]SM3 - DECC Scenario 2 equiv'!O12+'[14]SM3 - DECC Scenario 2 equiv'!O22,\n'[14]SM4 - DNO Scenario 4 equiv'!O12+'[14]SM4 - DNO Scenario 4 equiv'!O22)","v":11.124765718264955},{"$f":"CHOOSE(view,\n'[13]M1a - Model inputs'!P12+'[13]M1a - Model inputs'!P22,\n'[13]M1b - Model inputs'!P12+'[13]M1b - Model inputs'!P22,\n'[13]SM1 - DECC Scenario 3 equiv'!P12+'[13]SM1 - DECC Scenario 3 equiv'!P22,\n'[13]SM2 - DECC Scenario 1 equiv'!P12+'[13]SM2 - DECC Scenario 1 equiv'!P22,\n'[13]SM3 - DECC Scenario 2 equiv'!P12+'[13]SM3 - DECC Scenario 2 equiv'!P22,\n'[13]SM4 - DNO Scenario 4 equiv'!P12+'[13]SM4 - DNO Scenario 4 equiv'!P22,\n'[14]M1a - Model inputs'!P12+'[14]M1a - Model inputs'!P22,\n'[14]M1b - Model inputs'!P12+'[14]M1b - Model inputs'!P22,\n'[14]SM1 - DECC Scenario 3 equiv'!P12+'[14]SM1 - DECC Scenario 3 equiv'!P22,\n'[14]SM2 - DECC Scenario 1 equiv'!P12+'[14]SM2 - DECC Scenario 1 equiv'!P22,\n'[14]SM3 - DECC Scenario 2 equiv'!P12+'[14]SM3 - DECC Scenario 2 equiv'!P22,\n'[14]SM4 - DNO Scenario 4 equiv'!P12+'[14]SM4 - DNO Scenario 4 equiv'!P22)","v":11.197015053515429},{"$f":"CHOOSE(view,\n'[13]M1a - Model inputs'!Q12+'[13]M1a - Model inputs'!Q22,\n'[13]M1b - Model inputs'!Q12+'[13]M1b - Model inputs'!Q22,\n'[13]SM1 - DECC Scenario 3 equiv'!Q12+'[13]SM1 - DECC Scenario 3 equiv'!Q22,\n'[13]SM2 - DECC Scenario 1 equiv'!Q12+'[13]SM2 - DECC Scenario 1 equiv'!Q22,\n'[13]SM3 - DECC Scenario 2 equiv'!Q12+'[13]SM3 - DECC Scenario 2 equiv'!Q22,\n'[13]SM4 - DNO Scenario 4 equiv'!Q12+'[13]SM4 - DNO Scenario 4 equiv'!Q22,\n'[14]M1a - Model inputs'!Q12+'[14]M1a - Model inputs'!Q22,\n'[14]M1b - Model inputs'!Q12+'[14]M1b - Model inputs'!Q22,\n'[14]SM1 - DECC Scenario 3 equiv'!Q12+'[14]SM1 - DECC Scenario 3 equiv'!Q22,\n'[14]SM2 - DECC Scenario 1 equiv'!Q12+'[14]SM2 - DECC Scenario 1 equiv'!Q22,\n'[14]SM3 - DECC Scenario 2 equiv'!Q12+'[14]SM3 - DECC Scenario 2 equiv'!Q22,\n'[14]SM4 - DNO Scenario 4 equiv'!Q12+'[14]SM4 - DNO Scenario 4 equiv'!Q22)","v":11.268680508232173},{"$f":"CHOOSE(view,\n'[13]M1a - Model inputs'!R12+'[13]M1a - Model inputs'!R22,\n'[13]M1b - Model inputs'!R12+'[13]M1b - Model inputs'!R22,\n'[13]SM1 - DECC Scenario 3 equiv'!R12+'[13]SM1 - DECC Scenario 3 equiv'!R22,\n'[13]SM2 - DECC Scenario 1 equiv'!R12+'[13]SM2 - DECC Scenario 1 equiv'!R22,\n'[13]SM3 - DECC Scenario 2 equiv'!R12+'[13]SM3 - DECC Scenario 2 equiv'!R22,\n'[13]SM4 - DNO Scenario 4 equiv'!R12+'[13]SM4 - DNO Scenario 4 equiv'!R22,\n'[14]M1a - Model inputs'!R12+'[14]M1a - Model inputs'!R22,\n'[14]M1b - Model inputs'!R12+'[14]M1b - Model inputs'!R22,\n'[14]SM1 - DECC Scenario 3 equiv'!R12+'[14]SM1 - DECC Scenario 3 equiv'!R22,\n'[14]SM2 - DECC Scenario 1 equiv'!R12+'[14]SM2 - DECC Scenario 1 equiv'!R22,\n'[14]SM3 - DECC Scenario 2 equiv'!R12+'[14]SM3 - DECC Scenario 2 equiv'!R22,\n'[14]SM4 - DNO Scenario 4 equiv'!R12+'[14]SM4 - DNO Scenario 4 equiv'!R22)","v":11.340974060709884},{"$f":"CHOOSE(view,\n'[13]M1a - Model inputs'!S12+'[13]M1a - Model inputs'!S22,\n'[13]M1b - Model inputs'!S12+'[13]M1b - Model inputs'!S22,\n'[13]SM1 - DECC Scenario 3 equiv'!S12+'[13]SM1 - DECC Scenario 3 equiv'!S22,\n'[13]SM2 - DECC Scenario 1 equiv'!S12+'[13]SM2 - DECC Scenario 1 equiv'!S22,\n'[13]SM3 - DECC Scenario 2 equiv'!S12+'[13]SM3 - DECC Scenario 2 equiv'!S22,\n'[13]SM4 - DNO Scenario 4 equiv'!S12+'[13]SM4 - DNO Scenario 4 equiv'!S22,\n'[14]M1a - Model inputs'!S12+'[14]M1a - Model inputs'!S22,\n'[14]M1b - Model inputs'!S12+'[14]M1b - Model inputs'!S22,\n'[14]SM1 - DECC Scenario 3 equiv'!S12+'[14]SM1 - DECC Scenario 3 equiv'!S22,\n'[14]SM2 - DECC Scenario 1 equiv'!S12+'[14]SM2 - DECC Scenario 1 equiv'!S22,\n'[14]SM3 - DECC Scenario 2 equiv'!S12+'[14]SM3 - DECC Scenario 2 equiv'!S22,\n'[14]SM4 - DNO Scenario 4 equiv'!S12+'[14]SM4 - DNO Scenario 4 equiv'!S22)","v":11.411709097462415}]
[null,null,null,null,{"$f":"Input!E97","v":"Non-variant allowed controllable opex"},null,"£m 12/13 prices",null,null,null,null,null,null,null,null,null,null,null,null,null,null,null,null,null,null,null,null,null,null,null,null,null,null,null,null,{"$f":"CHOOSE(view,\n'[13]M1a - Model inputs'!L13+'[13]M1a - Model inputs'!L23,\n'[13]M1b - Model inputs'!L13+'[13]M1b - Model inputs'!L23,\n'[13]SM1 - DECC Scenario 3 equiv'!L13+'[13]SM1 - DECC Scenario 3 equiv'!L23,\n'[13]SM2 - DECC Scenario 1 equiv'!L13+'[13]SM2 - DECC Scenario 1 equiv'!L23,\n'[13]SM3 - DECC Scenario 2 equiv'!L13+'[13]SM3 - DECC Scenario 2 equiv'!L23,\n'[13]SM4 - DNO Scenario 4 equiv'!L13+'[13]SM4 - DNO Scenario 4 equiv'!L23,\n'[14]M1a - Model inputs'!L13+'[14]M1a - Model inputs'!L23,\n'[14]M1b - Model inputs'!L13+'[14]M1b - Model inputs'!L23,\n'[14]SM1 - DECC Scenario 3 equiv'!L13+'[14]SM1 - DECC Scenario 3 equiv'!L23,\n'[14]SM2 - DECC Scenario 1 equiv'!L13+'[14]SM2 - DECC Scenario 1 equiv'!L23,\n'[14]SM3 - DECC Scenario 2 equiv'!L13+'[14]SM3 - DECC Scenario 2 equiv'!L23,\n'[14]SM4 - DNO Scenario 4 equiv'!L13+'[14]SM4 - DNO Scenario 4 equiv'!L23)","v":74.86253908500241},{"$f":"CHOOSE(view,\n'[13]M1a - Model inputs'!M13+'[13]M1a - Model inputs'!M23,\n'[13]M1b - Model inputs'!M13+'[13]M1b - Model inputs'!M23,\n'[13]SM1 - DECC Scenario 3 equiv'!M13+'[13]SM1 - DECC Scenario 3 equiv'!M23,\n'[13]SM2 - DECC Scenario 1 equiv'!M13+'[13]SM2 - DECC Scenario 1 equiv'!M23,\n'[13]SM3 - DECC Scenario 2 equiv'!M13+'[13]SM3 - DECC Scenario 2 equiv'!M23,\n'[13]SM4 - DNO Scenario 4 equiv'!M13+'[13]SM4 - DNO Scenario 4 equiv'!M23,\n'[14]M1a - Model inputs'!M13+'[14]M1a - Model inputs'!M23,\n'[14]M1b - Model inputs'!M13+'[14]M1b - Model inputs'!M23,\n'[14]SM1 - DECC Scenario 3 equiv'!M13+'[14]SM1 - DECC Scenario 3 equiv'!M23,\n'[14]SM2 - DECC Scenario 1 equiv'!M13+'[14]SM2 - DECC Scenario 1 equiv'!M23,\n'[14]SM3 - DECC Scenario 2 equiv'!M13+'[14]SM3 - DECC Scenario 2 equiv'!M23,\n'[14]SM4 - DNO Scenario 4 equiv'!M13+'[14]SM4 - DNO Scenario 4 equiv'!M23)","v":75.764740594213293},{"$f":"CHOOSE(view,\n'[13]M1a - Model inputs'!N13+'[13]M1a - Model inputs'!N23,\n'[13]M1b - Model inputs'!N13+'[13]M1b - Model inputs'!N23,\n'[13]SM1 - DECC Scenario 3 equiv'!N13+'[13]SM1 - DECC Scenario 3 equiv'!N23,\n'[13]SM2 - DECC Scenario 1 equiv'!N13+'[13]SM2 - DECC Scenario 1 equiv'!N23,\n'[13]SM3 - DECC Scenario 2 equiv'!N13+'[13]SM3 - DECC Scenario 2 equiv'!N23,\n'[13]SM4 - DNO Scenario 4 equiv'!N13+'[13]SM4 - DNO Scenario 4 equiv'!N23,\n'[14]M1a - Model inputs'!N13+'[14]M1a - Model inputs'!N23,\n'[14]M1b - Model inputs'!N13+'[14]M1b - Model inputs'!N23,\n'[14]SM1 - DECC Scenario 3 equiv'!N13+'[14]SM1 - DECC Scenario 3 equiv'!N23,\n'[14]SM2 - DECC Scenario 1 equiv'!N13+'[14]SM2 - DECC Scenario 1 equiv'!N23,\n'[14]SM3 - DECC Scenario 2 equiv'!N13+'[14]SM3 - DECC Scenario 2 equiv'!N23,\n'[14]SM4 - DNO Scenario 4 equiv'!N13+'[14]SM4 - DNO Scenario 4 equiv'!N23)","v":76.484118313386304},{"$f":"CHOOSE(view,\n'[13]M1a - Model inputs'!O13+'[13]M1a - Model inputs'!O23,\n'[13]M1b - Model inputs'!O13+'[13]M1b - Model inputs'!O23,\n'[13]SM1 - DECC Scenario 3 equiv'!O13+'[13]SM1 - DECC Scenario 3 equiv'!O23,\n'[13]SM2 - DECC Scenario 1 equiv'!O13+'[13]SM2 - DECC Scenario 1 equiv'!O23,\n'[13]SM3 - DECC Scenario 2 equiv'!O13+'[13]SM3 - DECC Scenario 2 equiv'!O23,\n'[13]SM4 - DNO Scenario 4 equiv'!O13+'[13]SM4 - DNO Scenario 4 equiv'!O23,\n'[14]M1a - Model inputs'!O13+'[14]M1a - Model inputs'!O23,\n'[14]M1b - Model inputs'!O13+'[14]M1b - Model inputs'!O23,\n'[14]SM1 - DECC Scenario 3 equiv'!O13+'[14]SM1 - DECC Scenario 3 equiv'!O23,\n'[14]SM2 - DECC Scenario 1 equiv'!O13+'[14]SM2 - DECC Scenario 1 equiv'!O23,\n'[14]SM3 - DECC Scenario 2 equiv'!O13+'[14]SM3 - DECC Scenario 2 equiv'!O23,\n'[14]SM4 - DNO Scenario 4 equiv'!O13+'[14]SM4 - DNO Scenario 4 equiv'!O23)","v":76.890150200036416},{"$f":"CHOOSE(view,\n'[13]M1a - Model inputs'!P13+'[13]M1a - Model inputs'!P23,\n'[13]M1b - Model inputs'!P13+'[13]M1b - Model inputs'!P23,\n'[13]SM1 - DECC Scenario 3 equiv'!P13+'[13]SM1 - DECC Scenario 3 equiv'!P23,\n'[13]SM2 - DECC Scenario 1 equiv'!P13+'[13]SM2 - DECC Scenario 1 equiv'!P23,\n'[13]SM3 - DECC Scenario 2 equiv'!P13+'[13]SM3 - DECC Scenario 2 equiv'!P23,\n'[13]SM4 - DNO Scenario 4 equiv'!P13+'[13]SM4 - DNO Scenario 4 equiv'!P23,\n'[14]M1a - Model inputs'!P13+'[14]M1a - Model inputs'!P23,\n'[14]M1b - Model inputs'!P13+'[14]M1b - Model inputs'!P23,\n'[14]SM1 - DECC Scenario 3 equiv'!P13+'[14]SM1 - DECC Scenario 3 equiv'!P23,\n'[14]SM2 - DECC Scenario 1 equiv'!P13+'[14]SM2 - DECC Scenario 1 equiv'!P23,\n'[14]SM3 - DECC Scenario 2 equiv'!P13+'[14]SM3 - DECC Scenario 2 equiv'!P23,\n'[14]SM4 - DNO Scenario 4 equiv'!P13+'[14]SM4 - DNO Scenario 4 equiv'!P23)","v":77.271921495657693},{"$f":"CHOOSE(view,\n'[13]M1a - Model inputs'!Q13+'[13]M1a - Model inputs'!Q23,\n'[13]M1b - Model inputs'!Q13+'[13]M1b - Model inputs'!Q23,\n'[13]SM1 - DECC Scenario 3 equiv'!Q13+'[13]SM1 - DECC Scenario 3 equiv'!Q23,\n'[13]SM2 - DECC Scenario 1 equiv'!Q13+'[13]SM2 - DECC Scenario 1 equiv'!Q23,\n'[13]SM3 - DECC Scenario 2 equiv'!Q13+'[13]SM3 - DECC Scenario 2 equiv'!Q23,\n'[13]SM4 - DNO Scenario 4 equiv'!Q13+'[13]SM4 - DNO Scenario 4 equiv'!Q23,\n'[14]M1a - Model inputs'!Q13+'[14]M1a - Model inputs'!Q23,\n'[14]M1b - Model inputs'!Q13+'[14]M1b - Model inputs'!Q23,\n'[14]SM1 - DECC Scenario 3 equiv'!Q13+'[14]SM1 - DECC Scenario 3 equiv'!Q23,\n'[14]SM2 - DECC Scenario 1 equiv'!Q13+'[14]SM2 - DECC Scenario 1 equiv'!Q23,\n'[14]SM3 - DECC Scenario 2 equiv'!Q13+'[14]SM3 - DECC Scenario 2 equiv'!Q23,\n'[14]SM4 - DNO Scenario 4 equiv'!Q13+'[14]SM4 - DNO Scenario 4 equiv'!Q23)","v":77.982446957103235},{"$f":"CHOOSE(view,\n'[13]M1a - Model inputs'!R13+'[13]M1a - Model inputs'!R23,\n'[13]M1b - Model inputs'!R13+'[13]M1b - Model inputs'!R23,\n'[13]SM1 - DECC Scenario 3 equiv'!R13+'[13]SM1 - DECC Scenario 3 equiv'!R23,\n'[13]SM2 - DECC Scenario 1 equiv'!R13+'[13]SM2 - DECC Scenario 1 equiv'!R23,\n'[13]SM3 - DECC Scenario 2 equiv'!R13+'[13]SM3 - DECC Scenario 2 equiv'!R23,\n'[13]SM4 - DNO Scenario 4 equiv'!R13+'[13]SM4 - DNO Scenario 4 equiv'!R23,\n'[14]M1a - Model inputs'!R13+'[14]M1a - Model inputs'!R23,\n'[14]M1b - Model inputs'!R13+'[14]M1b - Model inputs'!R23,\n'[14]SM1 - DECC Scenario 3 equiv'!R13+'[14]SM1 - DECC Scenario 3 equiv'!R23,\n'[14]SM2 - DECC Scenario 1 equiv'!R13+'[14]SM2 - DECC Scenario 1 equiv'!R23,\n'[14]SM3 - DECC Scenario 2 equiv'!R13+'[14]SM3 - DECC Scenario 2 equiv'!R23,\n'[14]SM4 - DNO Scenario 4 equiv'!R13+'[14]SM4 - DNO Scenario 4 equiv'!R23)","v":77.190133865836998},{"$f":"CHOOSE(view,\n'[13]M1a - Model inputs'!S13+'[13]M1a - Model inputs'!S23,\n'[13]M1b - Model inputs'!S13+'[13]M1b - Model inputs'!S23,\n'[13]SM1 - DECC Scenario 3 equiv'!S13+'[13]SM1 - DECC Scenario 3 equiv'!S23,\n'[13]SM2 - DECC Scenario 1 equiv'!S13+'[13]SM2 - DECC Scenario 1 equiv'!S23,\n'[13]SM3 - DECC Scenario 2 equiv'!S13+'[13]SM3 - DECC Scenario 2 equiv'!S23,\n'[13]SM4 - DNO Scenario 4 equiv'!S13+'[13]SM4 - DNO Scenario 4 equiv'!S23,\n'[14]M1a - Model inputs'!S13+'[14]M1a - Model inputs'!S23,\n'[14]M1b - Model inputs'!S13+'[14]M1b - Model inputs'!S23,\n'[14]SM1 - DECC Scenario 3 equiv'!S13+'[14]SM1 - DECC Scenario 3 equiv'!S23,\n'[14]SM2 - DECC Scenario 1 equiv'!S13+'[14]SM2 - DECC Scenario 1 equiv'!S23,\n'[14]SM3 - DECC Scenario 2 equiv'!S13+'[14]SM3 - DECC Scenario 2 equiv'!S23,\n'[14]SM4 - DNO Scenario 4 equiv'!S13+'[14]SM4 - DNO Scenario 4 equiv'!S23)","v":78.045753503854073}]
[]
[null,null,null,"Variant allowances"]
[]
[null,null,null,null,{"$f":"Input!E101","v":"Allowed uncertain costs (CNI)"},null,"£m 12/13 prices",null,null,null,null,null,null,null,null,null,null,null,null,null,null,null,null,null,null,null,null,null,null,null,null,null,null,null,null,{"$f":"AJ18","v":0},{"$f":"AK18","v":0},0,0,0,0,0,0]
[null,null,null,null,{"$f":"Input!E102","v":"Allocation to load related capex"},null,"%",null,null,null,null,null,null,null,null,null,null,null,null,null,null,null,null,null,null,null,null,null,null,null,null,null,null,null,null,{"$f":"CHOOSE(view,\n'[13]M1a - Model inputs'!L171,\n'[13]M1b - Model inputs'!L171,\n'[13]SM1 - DECC Scenario 3 equiv'!L171,\n'[13]SM2 - DECC Scenario 1 equiv'!L171,\n'[13]SM3 - DECC Scenario 2 equiv'!L171,\n'[13]SM4 - DNO Scenario 4 equiv'!L171,\n'[14]M1a - Model inputs'!L171,\n'[14]M1b - Model inputs'!L171,\n'[14]SM1 - DECC Scenario 3 equiv'!L171,\n'[14]SM2 - DECC Scenario 1 equiv'!L171,\n'[14]SM3 - DECC Scenario 2 equiv'!L171,\n'[14]SM4 - DNO Scenario 4 equiv'!L171)","v":0},{"$f":"CHOOSE(view,\n'[13]M1a - Model inputs'!M171,\n'[13]M1b - Model inputs'!M171,\n'[13]SM1 - DECC Scenario 3 equiv'!M171,\n'[13]SM2 - DECC Scenario 1 equiv'!M171,\n'[13]SM3 - DECC Scenario 2 equiv'!M171,\n'[13]SM4 - DNO Scenario 4 equiv'!M171,\n'[14]M1a - Model inputs'!M171,\n'[14]M1b - Model inputs'!M171,\n'[14]SM1 - DECC Scenario 3 equiv'!M171,\n'[14]SM2 - DECC Scenario 1 equiv'!M171,\n'[14]SM3 - DECC Scenario 2 equiv'!M171,\n'[14]SM4 - DNO Scenario 4 equiv'!M171)","v":0},{"$f":"CHOOSE(view,\n'[13]M1a - Model inputs'!N171,\n'[13]M1b - Model inputs'!N171,\n'[13]SM1 - DECC Scenario 3 equiv'!N171,\n'[13]SM2 - DECC Scenario 1 equiv'!N171,\n'[13]SM3 - DECC Scenario 2 equiv'!N171,\n'[13]SM4 - DNO Scenario 4 equiv'!N171,\n'[14]M1a - Model inputs'!N171,\n'[14]M1b - Model inputs'!N171,\n'[14]SM1 - DECC Scenario 3 equiv'!N171,\n'[14]SM2 - DECC Scenario 1 equiv'!N171,\n'[14]SM3 - DECC Scenario 2 equiv'!N171,\n'[14]SM4 - DNO Scenario 4 equiv'!N171)","v":0},{"$f":"CHOOSE(view,\n'[13]M1a - Model inputs'!O171,\n'[13]M1b - Model inputs'!O171,\n'[13]SM1 - DECC Scenario 3 equiv'!O171,\n'[13]SM2 - DECC Scenario 1 equiv'!O171,\n'[13]SM3 - DECC Scenario 2 equiv'!O171,\n'[13]SM4 - DNO Scenario 4 equiv'!O171,\n'[14]M1a - Model inputs'!O171,\n'[14]M1b - Model inputs'!O171,\n'[14]SM1 - DECC Scenario 3 equiv'!O171,\n'[14]SM2 - DECC Scenario 1 equiv'!O171,\n'[14]SM3 - DECC Scenario 2 equiv'!O171,\n'[14]SM4 - DNO Scenario 4 equiv'!O171)","v":0},{"$f":"CHOOSE(view,\n'[13]M1a - Model inputs'!P171,\n'[13]M1b - Model inputs'!P171,\n'[13]SM1 - DECC Scenario 3 equiv'!P171,\n'[13]SM2 - DECC Scenario 1 equiv'!P171,\n'[13]SM3 - DECC Scenario 2 equiv'!P171,\n'[13]SM4 - DNO Scenario 4 equiv'!P171,\n'[14]M1a - Model inputs'!P171,\n'[14]M1b - Model inputs'!P171,\n'[14]SM1 - DECC Scenario 3 equiv'!P171,\n'[14]SM2 - DECC Scenario 1 equiv'!P171,\n'[14]SM3 - DECC Scenario 2 equiv'!P171,\n'[14]SM4 - DNO Scenario 4 equiv'!P171)","v":0},{"$f":"CHOOSE(view,\n'[13]M1a - Model inputs'!Q171,\n'[13]M1b - Model inputs'!Q171,\n'[13]SM1 - DECC Scenario 3 equiv'!Q171,\n'[13]SM2 - DECC Scenario 1 equiv'!Q171,\n'[13]SM3 - DECC Scenario 2 equiv'!Q171,\n'[13]SM4 - DNO Scenario 4 equiv'!Q171,\n'[14]M1a - Model inputs'!Q171,\n'[14]M1b - Model inputs'!Q171,\n'[14]SM1 - DECC Scenario 3 equiv'!Q171,\n'[14]SM2 - DECC Scenario 1 equiv'!Q171,\n'[14]SM3 - DECC Scenario 2 equiv'!Q171,\n'[14]SM4 - DNO Scenario 4 equiv'!Q171)","v":0},{"$f":"CHOOSE(view,\n'[13]M1a - Model inputs'!R171,\n'[13]M1b - Model inputs'!R171,\n'[13]SM1 - DECC Scenario 3 equiv'!R171,\n'[13]SM2 - DECC Scenario 1 equiv'!R171,\n'[13]SM3 - DECC Scenario 2 equiv'!R171,\n'[13]SM4 - DNO Scenario 4 equiv'!R171,\n'[14]M1a - Model inputs'!R171,\n'[14]M1b - Model inputs'!R171,\n'[14]SM1 - DECC Scenario 3 equiv'!R171,\n'[14]SM2 - DECC Scenario 1 equiv'!R171,\n'[14]SM3 - DECC Scenario 2 equiv'!R171,\n'[14]SM4 - DNO Scenario 4 equiv'!R171)","v":0},{"$f":"CHOOSE(view,\n'[13]M1a - Model inputs'!S171,\n'[13]M1b - Model inputs'!S171,\n'[13]SM1 - DECC Scenario 3 equiv'!S171,\n'[13]SM2 - DECC Scenario 1 equiv'!S171,\n'[13]SM3 - DECC Scenario 2 equiv'!S171,\n'[13]SM4 - DNO Scenario 4 equiv'!S171,\n'[14]M1a - Model inputs'!S171,\n'[14]M1b - Model inputs'!S171,\n'[14]SM1 - DECC Scenario 3 equiv'!S171,\n'[14]SM2 - DECC Scenario 1 equiv'!S171,\n'[14]SM3 - DECC Scenario 2 equiv'!S171,\n'[14]SM4 - DNO Scenario 4 equiv'!S171)","v":0}]
[null,null,null,null,{"$f":"Input!E103","v":"Allocation to non-load related capex - asset replacement"},null,"%",null,null,null,null,null,null,null,null,null,null,null,null,null,null,null,null,null,null,null,null,null,null,null,null,null,null,null,null,{"$f":"CHOOSE(view,\n'[13]M1a - Model inputs'!L172,\n'[13]M1b - Model inputs'!L172,\n'[13]SM1 - DECC Scenario 3 equiv'!L172,\n'[13]SM2 - DECC Scenario 1 equiv'!L172,\n'[13]SM3 - DECC Scenario 2 equiv'!L172,\n'[13]SM4 - DNO Scenario 4 equiv'!L172,\n'[14]M1a - Model inputs'!L172,\n'[14]M1b - Model inputs'!L172,\n'[14]SM1 - DECC Scenario 3 equiv'!L172,\n'[14]SM2 - DECC Scenario 1 equiv'!L172,\n'[14]SM3 - DECC Scenario 2 equiv'!L172,\n'[14]SM4 - DNO Scenario 4 equiv'!L172)","v":0},{"$f":"CHOOSE(view,\n'[13]M1a - Model inputs'!M172,\n'[13]M1b - Model inputs'!M172,\n'[13]SM1 - DECC Scenario 3 equiv'!M172,\n'[13]SM2 - DECC Scenario 1 equiv'!M172,\n'[13]SM3 - DECC Scenario 2 equiv'!M172,\n'[13]SM4 - DNO Scenario 4 equiv'!M172,\n'[14]M1a - Model inputs'!M172,\n'[14]M1b - Model inputs'!M172,\n'[14]SM1 - DECC Scenario 3 equiv'!M172,\n'[14]SM2 - DECC Scenario 1 equiv'!M172,\n'[14]SM3 - DECC Scenario 2 equiv'!M172,\n'[14]SM4 - DNO Scenario 4 equiv'!M172)","v":0},{"$f":"CHOOSE(view,\n'[13]M1a - Model inputs'!N172,\n'[13]M1b - Model inputs'!N172,\n'[13]SM1 - DECC Scenario 3 equiv'!N172,\n'[13]SM2 - DECC Scenario 1 equiv'!N172,\n'[13]SM3 - DECC Scenario 2 equiv'!N172,\n'[13]SM4 - DNO Scenario 4 equiv'!N172,\n'[14]M1a - Model inputs'!N172,\n'[14]M1b - Model inputs'!N172,\n'[14]SM1 - DECC Scenario 3 equiv'!N172,\n'[14]SM2 - DECC Scenario 1 equiv'!N172,\n'[14]SM3 - DECC Scenario 2 equiv'!N172,\n'[14]SM4 - DNO Scenario 4 equiv'!N172)","v":0},{"$f":"CHOOSE(view,\n'[13]M1a - Model inputs'!O172,\n'[13]M1b - Model inputs'!O172,\n'[13]SM1 - DECC Scenario 3 equiv'!O172,\n'[13]SM2 - DECC Scenario 1 equiv'!O172,\n'[13]SM3 - DECC Scenario 2 equiv'!O172,\n'[13]SM4 - DNO Scenario 4 equiv'!O172,\n'[14]M1a - Model inputs'!O172,\n'[14]M1b - Model inputs'!O172,\n'[14]SM1 - DECC Scenario 3 equiv'!O172,\n'[14]SM2 - DECC Scenario 1 equiv'!O172,\n'[14]SM3 - DECC Scenario 2 equiv'!O172,\n'[14]SM4 - DNO Scenario 4 equiv'!O172)","v":0},{"$f":"CHOOSE(view,\n'[13]M1a - Model inputs'!P172,\n'[13]M1b - Model inputs'!P172,\n'[13]SM1 - DECC Scenario 3 equiv'!P172,\n'[13]SM2 - DECC Scenario 1 equiv'!P172,\n'[13]SM3 - DECC Scenario 2 equiv'!P172,\n'[13]SM4 - DNO Scenario 4 equiv'!P172,\n'[14]M1a - Model inputs'!P172,\n'[14]M1b - Model inputs'!P172,\n'[14]SM1 - DECC Scenario 3 equiv'!P172,\n'[14]SM2 - DECC Scenario 1 equiv'!P172,\n'[14]SM3 - DECC Scenario 2 equiv'!P172,\n'[14]SM4 - DNO Scenario 4 equiv'!P172)","v":0},{"$f":"CHOOSE(view,\n'[13]M1a - Model inputs'!Q172,\n'[13]M1b - Model inputs'!Q172,\n'[13]SM1 - DECC Scenario 3 equiv'!Q172,\n'[13]SM2 - DECC Scenario 1 equiv'!Q172,\n'[13]SM3 - DECC Scenario 2 equiv'!Q172,\n'[13]SM4 - DNO Scenario 4 equiv'!Q172,\n'[14]M1a - Model inputs'!Q172,\n'[14]M1b - Model inputs'!Q172,\n'[14]SM1 - DECC Scenario 3 equiv'!Q172,\n'[14]SM2 - DECC Scenario 1 equiv'!Q172,\n'[14]SM3 - DECC Scenario 2 equiv'!Q172,\n'[14]SM4 - DNO Scenario 4 equiv'!Q172)","v":0},{"$f":"CHOOSE(view,\n'[13]M1a - Model inputs'!R172,\n'[13]M1b - Model inputs'!R172,\n'[13]SM1 - DECC Scenario 3 equiv'!R172,\n'[13]SM2 - DECC Scenario 1 equiv'!R172,\n'[13]SM3 - DECC Scenario 2 equiv'!R172,\n'[13]SM4 - DNO Scenario 4 equiv'!R172,\n'[14]M1a - Model inputs'!R172,\n'[14]M1b - Model inputs'!R172,\n'[14]SM1 - DECC Scenario 3 equiv'!R172,\n'[14]SM2 - DECC Scenario 1 equiv'!R172,\n'[14]SM3 - DECC Scenario 2 equiv'!R172,\n'[14]SM4 - DNO Scenario 4 equiv'!R172)","v":0},{"$f":"CHOOSE(view,\n'[13]M1a - Model inputs'!S172,\n'[13]M1b - Model inputs'!S172,\n'[13]SM1 - DECC Scenario 3 equiv'!S172,\n'[13]SM2 - DECC Scenario 1 equiv'!S172,\n'[13]SM3 - DECC Scenario 2 equiv'!S172,\n'[13]SM4 - DNO Scenario 4 equiv'!S172,\n'[14]M1a - Model inputs'!S172,\n'[14]M1b - Model inputs'!S172,\n'[14]SM1 - DECC Scenario 3 equiv'!S172,\n'[14]SM2 - DECC Scenario 1 equiv'!S172,\n'[14]SM3 - DECC Scenario 2 equiv'!S172,\n'[14]SM4 - DNO Scenario 4 equiv'!S172)","v":0}]
[null,null,null,null,{"$f":"Input!E104","v":"Allocation to non-load related capex - other"},null,"%",null,null,null,null,null,null,null,null,null,null,null,null,null,null,null,null,null,null,null,null,null,null,null,null,null,null,null,null,{"$f":"CHOOSE(view,\n'[13]M1a - Model inputs'!L173,\n'[13]M1b - Model inputs'!L173,\n'[13]SM1 - DECC Scenario 3 equiv'!L173,\n'[13]SM2 - DECC Scenario 1 equiv'!L173,\n'[13]SM3 - DECC Scenario 2 equiv'!L173,\n'[13]SM4 - DNO Scenario 4 equiv'!L173,\n'[14]M1a - Model inputs'!L173,\n'[14]M1b - Model inputs'!L173,\n'[14]SM1 - DECC Scenario 3 equiv'!L173,\n'[14]SM2 - DECC Scenario 1 equiv'!L173,\n'[14]SM3 - DECC Scenario 2 equiv'!L173,\n'[14]SM4 - DNO Scenario 4 equiv'!L173)","v":1},{"$f":"CHOOSE(view,\n'[13]M1a - Model inputs'!M173,\n'[13]M1b - Model inputs'!M173,\n'[13]SM1 - DECC Scenario 3 equiv'!M173,\n'[13]SM2 - DECC Scenario 1 equiv'!M173,\n'[13]SM3 - DECC Scenario 2 equiv'!M173,\n'[13]SM4 - DNO Scenario 4 equiv'!M173,\n'[14]M1a - Model inputs'!M173,\n'[14]M1b - Model inputs'!M173,\n'[14]SM1 - DECC Scenario 3 equiv'!M173,\n'[14]SM2 - DECC Scenario 1 equiv'!M173,\n'[14]SM3 - DECC Scenario 2 equiv'!M173,\n'[14]SM4 - DNO Scenario 4 equiv'!M173)","v":1},{"$f":"CHOOSE(view,\n'[13]M1a - Model inputs'!N173,\n'[13]M1b - Model inputs'!N173,\n'[13]SM1 - DECC Scenario 3 equiv'!N173,\n'[13]SM2 - DECC Scenario 1 equiv'!N173,\n'[13]SM3 - DECC Scenario 2 equiv'!N173,\n'[13]SM4 - DNO Scenario 4 equiv'!N173,\n'[14]M1a - Model inputs'!N173,\n'[14]M1b - Model inputs'!N173,\n'[14]SM1 - DECC Scenario 3 equiv'!N173,\n'[14]SM2 - DECC Scenario 1 equiv'!N173,\n'[14]SM3 - DECC Scenario 2 equiv'!N173,\n'[14]SM4 - DNO Scenario 4 equiv'!N173)","v":1},{"$f":"CHOOSE(view,\n'[13]M1a - Model inputs'!O173,\n'[13]M1b - Model inputs'!O173,\n'[13]SM1 - DECC Scenario 3 equiv'!O173,\n'[13]SM2 - DECC Scenario 1 equiv'!O173,\n'[13]SM3 - DECC Scenario 2 equiv'!O173,\n'[13]SM4 - DNO Scenario 4 equiv'!O173,\n'[14]M1a - Model inputs'!O173,\n'[14]M1b - Model inputs'!O173,\n'[14]SM1 - DECC Scenario 3 equiv'!O173,\n'[14]SM2 - DECC Scenario 1 equiv'!O173,\n'[14]SM3 - DECC Scenario 2 equiv'!O173,\n'[14]SM4 - DNO Scenario 4 equiv'!O173)","v":1},{"$f":"CHOOSE(view,\n'[13]M1a - Model inputs'!P173,\n'[13]M1b - Model inputs'!P173,\n'[13]SM1 - DECC Scenario 3 equiv'!P173,\n'[13]SM2 - DECC Scenario 1 equiv'!P173,\n'[13]SM3 - DECC Scenario 2 equiv'!P173,\n'[13]SM4 - DNO Scenario 4 equiv'!P173,\n'[14]M1a - Model inputs'!P173,\n'[14]M1b - Model inputs'!P173,\n'[14]SM1 - DECC Scenario 3 equiv'!P173,\n'[14]SM2 - DECC Scenario 1 equiv'!P173,\n'[14]SM3 - DECC Scenario 2 equiv'!P173,\n'[14]SM4 - DNO Scenario 4 equiv'!P173)","v":1},{"$f":"CHOOSE(view,\n'[13]M1a - Model inputs'!Q173,\n'[13]M1b - Model inputs'!Q173,\n'[13]SM1 - DECC Scenario 3 equiv'!Q173,\n'[13]SM2 - DECC Scenario 1 equiv'!Q173,\n'[13]SM3 - DECC Scenario 2 equiv'!Q173,\n'[13]SM4 - DNO Scenario 4 equiv'!Q173,\n'[14]M1a - Model inputs'!Q173,\n'[14]M1b - Model inputs'!Q173,\n'[14]SM1 - DECC Scenario 3 equiv'!Q173,\n'[14]SM2 - DECC Scenario 1 equiv'!Q173,\n'[14]SM3 - DECC Scenario 2 equiv'!Q173,\n'[14]SM4 - DNO Scenario 4 equiv'!Q173)","v":1},{"$f":"CHOOSE(view,\n'[13]M1a - Model inputs'!R173,\n'[13]M1b - Model inputs'!R173,\n'[13]SM1 - DECC Scenario 3 equiv'!R173,\n'[13]SM2 - DECC Scenario 1 equiv'!R173,\n'[13]SM3 - DECC Scenario 2 equiv'!R173,\n'[13]SM4 - DNO Scenario 4 equiv'!R173,\n'[14]M1a - Model inputs'!R173,\n'[14]M1b - Model inputs'!R173,\n'[14]SM1 - DECC Scenario 3 equiv'!R173,\n'[14]SM2 - DECC Scenario 1 equiv'!R173,\n'[14]SM3 - DECC Scenario 2 equiv'!R173,\n'[14]SM4 - DNO Scenario 4 equiv'!R173)","v":1},{"$f":"CHOOSE(view,\n'[13]M1a - Model inputs'!S173,\n'[13]M1b - Model inputs'!S173,\n'[13]SM1 - DECC Scenario 3 equiv'!S173,\n'[13]SM2 - DECC Scenario 1 equiv'!S173,\n'[13]SM3 - DECC Scenario 2 equiv'!S173,\n'[13]SM4 - DNO Scenario 4 equiv'!S173,\n'[14]M1a - Model inputs'!S173,\n'[14]M1b - Model inputs'!S173,\n'[14]SM1 - DECC Scenario 3 equiv'!S173,\n'[14]SM2 - DECC Scenario 1 equiv'!S173,\n'[14]SM3 - DECC Scenario 2 equiv'!S173,\n'[14]SM4 - DNO Scenario 4 equiv'!S173)","v":1}]
[null,null,null,null,{"$f":"Input!E105","v":"Allocation to faults"},null,"%",null,null,null,null,null,null,null,null,null,null,null,null,null,null,null,null,null,null,null,null,null,null,null,null,null,null,null,null,{"$f":"CHOOSE(view,\n'[13]M1a - Model inputs'!L174,\n'[13]M1b - Model inputs'!L174,\n'[13]SM1 - DECC Scenario 3 equiv'!L174,\n'[13]SM2 - DECC Scenario 1 equiv'!L174,\n'[13]SM3 - DECC Scenario 2 equiv'!L174,\n'[13]SM4 - DNO Scenario 4 equiv'!L174,\n'[14]M1a - Model inputs'!L174,\n'[14]M1b - Model inputs'!L174,\n'[14]SM1 - DECC Scenario 3 equiv'!L174,\n'[14]SM2 - DECC Scenario 1 equiv'!L174,\n'[14]SM3 - DECC Scenario 2 equiv'!L174,\n'[14]SM4 - DNO Scenario 4 equiv'!L174)","v":0},{"$f":"CHOOSE(view,\n'[13]M1a - Model inputs'!M174,\n'[13]M1b - Model inputs'!M174,\n'[13]SM1 - DECC Scenario 3 equiv'!M174,\n'[13]SM2 - DECC Scenario 1 equiv'!M174,\n'[13]SM3 - DECC Scenario 2 equiv'!M174,\n'[13]SM4 - DNO Scenario 4 equiv'!M174,\n'[14]M1a - Model inputs'!M174,\n'[14]M1b - Model inputs'!M174,\n'[14]SM1 - DECC Scenario 3 equiv'!M174,\n'[14]SM2 - DECC Scenario 1 equiv'!M174,\n'[14]SM3 - DECC Scenario 2 equiv'!M174,\n'[14]SM4 - DNO Scenario 4 equiv'!M174)","v":0},{"$f":"CHOOSE(view,\n'[13]M1a - Model inputs'!N174,\n'[13]M1b - Model inputs'!N174,\n'[13]SM1 - DECC Scenario 3 equiv'!N174,\n'[13]SM2 - DECC Scenario 1 equiv'!N174,\n'[13]SM3 - DECC Scenario 2 equiv'!N174,\n'[13]SM4 - DNO Scenario 4 equiv'!N174,\n'[14]M1a - Model inputs'!N174,\n'[14]M1b - Model inputs'!N174,\n'[14]SM1 - DECC Scenario 3 equiv'!N174,\n'[14]SM2 - DECC Scenario 1 equiv'!N174,\n'[14]SM3 - DECC Scenario 2 equiv'!N174,\n'[14]SM4 - DNO Scenario 4 equiv'!N174)","v":0},{"$f":"CHOOSE(view,\n'[13]M1a - Model inputs'!O174,\n'[13]M1b - Model inputs'!O174,\n'[13]SM1 - DECC Scenario 3 equiv'!O174,\n'[13]SM2 - DECC Scenario 1 equiv'!O174,\n'[13]SM3 - DECC Scenario 2 equiv'!O174,\n'[13]SM4 - DNO Scenario 4 equiv'!O174,\n'[14]M1a - Model inputs'!O174,\n'[14]M1b - Model inputs'!O174,\n'[14]SM1 - DECC Scenario 3 equiv'!O174,\n'[14]SM2 - DECC Scenario 1 equiv'!O174,\n'[14]SM3 - DECC Scenario 2 equiv'!O174,\n'[14]SM4 - DNO Scenario 4 equiv'!O174)","v":0},{"$f":"CHOOSE(view,\n'[13]M1a - Model inputs'!P174,\n'[13]M1b - Model inputs'!P174,\n'[13]SM1 - DECC Scenario 3 equiv'!P174,\n'[13]SM2 - DECC Scenario 1 equiv'!P174,\n'[13]SM3 - DECC Scenario 2 equiv'!P174,\n'[13]SM4 - DNO Scenario 4 equiv'!P174,\n'[14]M1a - Model inputs'!P174,\n'[14]M1b - Model inputs'!P174,\n'[14]SM1 - DECC Scenario 3 equiv'!P174,\n'[14]SM2 - DECC Scenario 1 equiv'!P174,\n'[14]SM3 - DECC Scenario 2 equiv'!P174,\n'[14]SM4 - DNO Scenario 4 equiv'!P174)","v":0},{"$f":"CHOOSE(view,\n'[13]M1a - Model inputs'!Q174,\n'[13]M1b - Model inputs'!Q174,\n'[13]SM1 - DECC Scenario 3 equiv'!Q174,\n'[13]SM2 - DECC Scenario 1 equiv'!Q174,\n'[13]SM3 - DECC Scenario 2 equiv'!Q174,\n'[13]SM4 - DNO Scenario 4 equiv'!Q174,\n'[14]M1a - Model inputs'!Q174,\n'[14]M1b - Model inputs'!Q174,\n'[14]SM1 - DECC Scenario 3 equiv'!Q174,\n'[14]SM2 - DECC Scenario 1 equiv'!Q174,\n'[14]SM3 - DECC Scenario 2 equiv'!Q174,\n'[14]SM4 - DNO Scenario 4 equiv'!Q174)","v":0},{"$f":"CHOOSE(view,\n'[13]M1a - Model inputs'!R174,\n'[13]M1b - Model inputs'!R174,\n'[13]SM1 - DECC Scenario 3 equiv'!R174,\n'[13]SM2 - DECC Scenario 1 equiv'!R174,\n'[13]SM3 - DECC Scenario 2 equiv'!R174,\n'[13]SM4 - DNO Scenario 4 equiv'!R174,\n'[14]M1a - Model inputs'!R174,\n'[14]M1b - Model inputs'!R174,\n'[14]SM1 - DECC Scenario 3 equiv'!R174,\n'[14]SM2 - DECC Scenario 1 equiv'!R174,\n'[14]SM3 - DECC Scenario 2 equiv'!R174,\n'[14]SM4 - DNO Scenario 4 equiv'!R174)","v":0},{"$f":"CHOOSE(view,\n'[13]M1a - Model inputs'!S174,\n'[13]M1b - Model inputs'!S174,\n'[13]SM1 - DECC Scenario 3 equiv'!S174,\n'[13]SM2 - DECC Scenario 1 equiv'!S174,\n'[13]SM3 - DECC Scenario 2 equiv'!S174,\n'[13]SM4 - DNO Scenario 4 equiv'!S174,\n'[14]M1a - Model inputs'!S174,\n'[14]M1b - Model inputs'!S174,\n'[14]SM1 - DECC Scenario 3 equiv'!S174,\n'[14]SM2 - DECC Scenario 1 equiv'!S174,\n'[14]SM3 - DECC Scenario 2 equiv'!S174,\n'[14]SM4 - DNO Scenario 4 equiv'!S174)","v":0}]
[null,null,null,null,{"$f":"Input!E106","v":"Allocation to tree cutting"},null,"%",null,null,null,null,null,null,null,null,null,null,null,null,null,null,null,null,null,null,null,null,null,null,null,null,null,null,null,null,{"$f":"CHOOSE(view,\n'[13]M1a - Model inputs'!L175,\n'[13]M1b - Model inputs'!L175,\n'[13]SM1 - DECC Scenario 3 equiv'!L175,\n'[13]SM2 - DECC Scenario 1 equiv'!L175,\n'[13]SM3 - DECC Scenario 2 equiv'!L175,\n'[13]SM4 - DNO Scenario 4 equiv'!L175,\n'[14]M1a - Model inputs'!L175,\n'[14]M1b - Model inputs'!L175,\n'[14]SM1 - DECC Scenario 3 equiv'!L175,\n'[14]SM2 - DECC Scenario 1 equiv'!L175,\n'[14]SM3 - DECC Scenario 2 equiv'!L175,\n'[14]SM4 - DNO Scenario 4 equiv'!L175)","v":0},{"$f":"CHOOSE(view,\n'[13]M1a - Model inputs'!M175,\n'[13]M1b - Model inputs'!M175,\n'[13]SM1 - DECC Scenario 3 equiv'!M175,\n'[13]SM2 - DECC Scenario 1 equiv'!M175,\n'[13]SM3 - DECC Scenario 2 equiv'!M175,\n'[13]SM4 - DNO Scenario 4 equiv'!M175,\n'[14]M1a - Model inputs'!M175,\n'[14]M1b - Model inputs'!M175,\n'[14]SM1 - DECC Scenario 3 equiv'!M175,\n'[14]SM2 - DECC Scenario 1 equiv'!M175,\n'[14]SM3 - DECC Scenario 2 equiv'!M175,\n'[14]SM4 - DNO Scenario 4 equiv'!M175)","v":0},{"$f":"CHOOSE(view,\n'[13]M1a - Model inputs'!N175,\n'[13]M1b - Model inputs'!N175,\n'[13]SM1 - DECC Scenario 3 equiv'!N175,\n'[13]SM2 - DECC Scenario 1 equiv'!N175,\n'[13]SM3 - DECC Scenario 2 equiv'!N175,\n'[13]SM4 - DNO Scenario 4 equiv'!N175,\n'[14]M1a - Model inputs'!N175,\n'[14]M1b - Model inputs'!N175,\n'[14]SM1 - DECC Scenario 3 equiv'!N175,\n'[14]SM2 - DECC Scenario 1 equiv'!N175,\n'[14]SM3 - DECC Scenario 2 equiv'!N175,\n'[14]SM4 - DNO Scenario 4 equiv'!N175)","v":0},{"$f":"CHOOSE(view,\n'[13]M1a - Model inputs'!O175,\n'[13]M1b - Model inputs'!O175,\n'[13]SM1 - DECC Scenario 3 equiv'!O175,\n'[13]SM2 - DECC Scenario 1 equiv'!O175,\n'[13]SM3 - DECC Scenario 2 equiv'!O175,\n'[13]SM4 - DNO Scenario 4 equiv'!O175,\n'[14]M1a - Model inputs'!O175,\n'[14]M1b - Model inputs'!O175,\n'[14]SM1 - DECC Scenario 3 equiv'!O175,\n'[14]SM2 - DECC Scenario 1 equiv'!O175,\n'[14]SM3 - DECC Scenario 2 equiv'!O175,\n'[14]SM4 - DNO Scenario 4 equiv'!O175)","v":0},{"$f":"CHOOSE(view,\n'[13]M1a - Model inputs'!P175,\n'[13]M1b - Model inputs'!P175,\n'[13]SM1 - DECC Scenario 3 equiv'!P175,\n'[13]SM2 - DECC Scenario 1 equiv'!P175,\n'[13]SM3 - DECC Scenario 2 equiv'!P175,\n'[13]SM4 - DNO Scenario 4 equiv'!P175,\n'[14]M1a - Model inputs'!P175,\n'[14]M1b - Model inputs'!P175,\n'[14]SM1 - DECC Scenario 3 equiv'!P175,\n'[14]SM2 - DECC Scenario 1 equiv'!P175,\n'[14]SM3 - DECC Scenario 2 equiv'!P175,\n'[14]SM4 - DNO Scenario 4 equiv'!P175)","v":0},{"$f":"CHOOSE(view,\n'[13]M1a - Model inputs'!Q175,\n'[13]M1b - Model inputs'!Q175,\n'[13]SM1 - DECC Scenario 3 equiv'!Q175,\n'[13]SM2 - DECC Scenario 1 equiv'!Q175,\n'[13]SM3 - DECC Scenario 2 equiv'!Q175,\n'[13]SM4 - DNO Scenario 4 equiv'!Q175,\n'[14]M1a - Model inputs'!Q175,\n'[14]M1b - Model inputs'!Q175,\n'[14]SM1 - DECC Scenario 3 equiv'!Q175,\n'[14]SM2 - DECC Scenario 1 equiv'!Q175,\n'[14]SM3 - DECC Scenario 2 equiv'!Q175,\n'[14]SM4 - DNO Scenario 4 equiv'!Q175)","v":0},{"$f":"CHOOSE(view,\n'[13]M1a - Model inputs'!R175,\n'[13]M1b - Model inputs'!R175,\n'[13]SM1 - DECC Scenario 3 equiv'!R175,\n'[13]SM2 - DECC Scenario 1 equiv'!R175,\n'[13]SM3 - DECC Scenario 2 equiv'!R175,\n'[13]SM4 - DNO Scenario 4 equiv'!R175,\n'[14]M1a - Model inputs'!R175,\n'[14]M1b - Model inputs'!R175,\n'[14]SM1 - DECC Scenario 3 equiv'!R175,\n'[14]SM2 - DECC Scenario 1 equiv'!R175,\n'[14]SM3 - DECC Scenario 2 equiv'!R175,\n'[14]SM4 - DNO Scenario 4 equiv'!R175)","v":0},{"$f":"CHOOSE(view,\n'[13]M1a - Model inputs'!S175,\n'[13]M1b - Model inputs'!S175,\n'[13]SM1 - DECC Scenario 3 equiv'!S175,\n'[13]SM2 - DECC Scenario 1 equiv'!S175,\n'[13]SM3 - DECC Scenario 2 equiv'!S175,\n'[13]SM4 - DNO Scenario 4 equiv'!S175,\n'[14]M1a - Model inputs'!S175,\n'[14]M1b - Model inputs'!S175,\n'[14]SM1 - DECC Scenario 3 equiv'!S175,\n'[14]SM2 - DECC Scenario 1 equiv'!S175,\n'[14]SM3 - DECC Scenario 2 equiv'!S175,\n'[14]SM4 - DNO Scenario 4 equiv'!S175)","v":0}]
[null,null,null,null,{"$f":"Input!E107","v":"Allocation to controllable opex"},null,"%",null,null,null,null,null,null,null,null,null,null,null,null,null,null,null,null,null,null,null,null,null,null,null,null,null,null,null,null,{"$f":"CHOOSE(view,\n'[13]M1a - Model inputs'!L176,\n'[13]M1b - Model inputs'!L176,\n'[13]SM1 - DECC Scenario 3 equiv'!L176,\n'[13]SM2 - DECC Scenario 1 equiv'!L176,\n'[13]SM3 - DECC Scenario 2 equiv'!L176,\n'[13]SM4 - DNO Scenario 4 equiv'!L176,\n'[14]M1a - Model inputs'!L176,\n'[14]M1b - Model inputs'!L176,\n'[14]SM1 - DECC Scenario 3 equiv'!L176,\n'[14]SM2 - DECC Scenario 1 equiv'!L176,\n'[14]SM3 - DECC Scenario 2 equiv'!L176,\n'[14]SM4 - DNO Scenario 4 equiv'!L176)","v":0},{"$f":"CHOOSE(view,\n'[13]M1a - Model inputs'!M176,\n'[13]M1b - Model inputs'!M176,\n'[13]SM1 - DECC Scenario 3 equiv'!M176,\n'[13]SM2 - DECC Scenario 1 equiv'!M176,\n'[13]SM3 - DECC Scenario 2 equiv'!M176,\n'[13]SM4 - DNO Scenario 4 equiv'!M176,\n'[14]M1a - Model inputs'!M176,\n'[14]M1b - Model inputs'!M176,\n'[14]SM1 - DECC Scenario 3 equiv'!M176,\n'[14]SM2 - DECC Scenario 1 equiv'!M176,\n'[14]SM3 - DECC Scenario 2 equiv'!M176,\n'[14]SM4 - DNO Scenario 4 equiv'!M176)","v":0},{"$f":"CHOOSE(view,\n'[13]M1a - Model inputs'!N176,\n'[13]M1b - Model inputs'!N176,\n'[13]SM1 - DECC Scenario 3 equiv'!N176,\n'[13]SM2 - DECC Scenario 1 equiv'!N176,\n'[13]SM3 - DECC Scenario 2 equiv'!N176,\n'[13]SM4 - DNO Scenario 4 equiv'!N176,\n'[14]M1a - Model inputs'!N176,\n'[14]M1b - Model inputs'!N176,\n'[14]SM1 - DECC Scenario 3 equiv'!N176,\n'[14]SM2 - DECC Scenario 1 equiv'!N176,\n'[14]SM3 - DECC Scenario 2 equiv'!N176,\n'[14]SM4 - DNO Scenario 4 equiv'!N176)","v":0},{"$f":"CHOOSE(view,\n'[13]M1a - Model inputs'!O176,\n'[13]M1b - Model inputs'!O176,\n'[13]SM1 - DECC Scenario 3 equiv'!O176,\n'[13]SM2 - DECC Scenario 1 equiv'!O176,\n'[13]SM3 - DECC Scenario 2 equiv'!O176,\n'[13]SM4 - DNO Scenario 4 equiv'!O176,\n'[14]M1a - Model inputs'!O176,\n'[14]M1b - Model inputs'!O176,\n'[14]SM1 - DECC Scenario 3 equiv'!O176,\n'[14]SM2 - DECC Scenario 1 equiv'!O176,\n'[14]SM3 - DECC Scenario 2 equiv'!O176,\n'[14]SM4 - DNO Scenario 4 equiv'!O176)","v":0},{"$f":"CHOOSE(view,\n'[13]M1a - Model inputs'!P176,\n'[13]M1b - Model inputs'!P176,\n'[13]SM1 - DECC Scenario 3 equiv'!P176,\n'[13]SM2 - DECC Scenario 1 equiv'!P176,\n'[13]SM3 - DECC Scenario 2 equiv'!P176,\n'[13]SM4 - DNO Scenario 4 equiv'!P176,\n'[14]M1a - Model inputs'!P176,\n'[14]M1b - Model inputs'!P176,\n'[14]SM1 - DECC Scenario 3 equiv'!P176,\n'[14]SM2 - DECC Scenario 1 equiv'!P176,\n'[14]SM3 - DECC Scenario 2 equiv'!P176,\n'[14]SM4 - DNO Scenario 4 equiv'!P176)","v":0},{"$f":"CHOOSE(view,\n'[13]M1a - Model inputs'!Q176,\n'[13]M1b - Model inputs'!Q176,\n'[13]SM1 - DECC Scenario 3 equiv'!Q176,\n'[13]SM2 - DECC Scenario 1 equiv'!Q176,\n'[13]SM3 - DECC Scenario 2 equiv'!Q176,\n'[13]SM4 - DNO Scenario 4 equiv'!Q176,\n'[14]M1a - Model inputs'!Q176,\n'[14]M1b - Model inputs'!Q176,\n'[14]SM1 - DECC Scenario 3 equiv'!Q176,\n'[14]SM2 - DECC Scenario 1 equiv'!Q176,\n'[14]SM3 - DECC Scenario 2 equiv'!Q176,\n'[14]SM4 - DNO Scenario 4 equiv'!Q176)","v":0},{"$f":"CHOOSE(view,\n'[13]M1a - Model inputs'!R176,\n'[13]M1b - Model inputs'!R176,\n'[13]SM1 - DECC Scenario 3 equiv'!R176,\n'[13]SM2 - DECC Scenario 1 equiv'!R176,\n'[13]SM3 - DECC Scenario 2 equiv'!R176,\n'[13]SM4 - DNO Scenario 4 equiv'!R176,\n'[14]M1a - Model inputs'!R176,\n'[14]M1b - Model inputs'!R176,\n'[14]SM1 - DECC Scenario 3 equiv'!R176,\n'[14]SM2 - DECC Scenario 1 equiv'!R176,\n'[14]SM3 - DECC Scenario 2 equiv'!R176,\n'[14]SM4 - DNO Scenario 4 equiv'!R176)","v":0},{"$f":"CHOOSE(view,\n'[13]M1a - Model inputs'!S176,\n'[13]M1b - Model inputs'!S176,\n'[13]SM1 - DECC Scenario 3 equiv'!S176,\n'[13]SM2 - DECC Scenario 1 equiv'!S176,\n'[13]SM3 - DECC Scenario 2 equiv'!S176,\n'[13]SM4 - DNO Scenario 4 equiv'!S176,\n'[14]M1a - Model inputs'!S176,\n'[14]M1b - Model inputs'!S176,\n'[14]SM1 - DECC Scenario 3 equiv'!S176,\n'[14]SM2 - DECC Scenario 1 equiv'!S176,\n'[14]SM3 - DECC Scenario 2 equiv'!S176,\n'[14]SM4 - DNO Scenario 4 equiv'!S176)","v":0}]
[]
[null,null,null,null,{"$f":"Input!E109","v":"Allowed uncertain costs (High Value Projects)"},null,"£m 12/13 prices",null,null,null,null,null,null,null,null,null,null,null,null,null,null,null,null,null,null,null,null,null,null,null,null,null,null,null,null,{"$f":"AJ19","v":0},0,0,0,0,0,0,0]
[null,null,null,null,{"$f":"Input!E110","v":"Allocation to load related capex"},null,"%",null,null,null,null,null,null,null,null,null,null,null,null,null,null,null,null,null,null,null,null,null,null,null,null,null,null,null,null,{"$f":"CHOOSE(view,\n'[13]M1a - Model inputs'!L179,\n'[13]M1b - Model inputs'!L179,\n'[13]SM1 - DECC Scenario 3 equiv'!L179,\n'[13]SM2 - DECC Scenario 1 equiv'!L179,\n'[13]SM3 - DECC Scenario 2 equiv'!L179,\n'[13]SM4 - DNO Scenario 4 equiv'!L179,\n'[14]M1a - Model inputs'!L179,\n'[14]M1b - Model inputs'!L179,\n'[14]SM1 - DECC Scenario 3 equiv'!L179,\n'[14]SM2 - DECC Scenario 1 equiv'!L179,\n'[14]SM3 - DECC Scenario 2 equiv'!L179,\n'[14]SM4 - DNO Scenario 4 equiv'!L179)","v":0},{"$f":"CHOOSE(view,\n'[13]M1a - Model inputs'!M179,\n'[13]M1b - Model inputs'!M179,\n'[13]SM1 - DECC Scenario 3 equiv'!M179,\n'[13]SM2 - DECC Scenario 1 equiv'!M179,\n'[13]SM3 - DECC Scenario 2 equiv'!M179,\n'[13]SM4 - DNO Scenario 4 equiv'!M179,\n'[14]M1a - Model inputs'!M179,\n'[14]M1b - Model inputs'!M179,\n'[14]SM1 - DECC Scenario 3 equiv'!M179,\n'[14]SM2 - DECC Scenario 1 equiv'!M179,\n'[14]SM3 - DECC Scenario 2 equiv'!M179,\n'[14]SM4 - DNO Scenario 4 equiv'!M179)","v":0},{"$f":"CHOOSE(view,\n'[13]M1a - Model inputs'!N179,\n'[13]M1b - Model inputs'!N179,\n'[13]SM1 - DECC Scenario 3 equiv'!N179,\n'[13]SM2 - DECC Scenario 1 equiv'!N179,\n'[13]SM3 - DECC Scenario 2 equiv'!N179,\n'[13]SM4 - DNO Scenario 4 equiv'!N179,\n'[14]M1a - Model inputs'!N179,\n'[14]M1b - Model inputs'!N179,\n'[14]SM1 - DECC Scenario 3 equiv'!N179,\n'[14]SM2 - DECC Scenario 1 equiv'!N179,\n'[14]SM3 - DECC Scenario 2 equiv'!N179,\n'[14]SM4 - DNO Scenario 4 equiv'!N179)","v":0},{"$f":"CHOOSE(view,\n'[13]M1a - Model inputs'!O179,\n'[13]M1b - Model inputs'!O179,\n'[13]SM1 - DECC Scenario 3 equiv'!O179,\n'[13]SM2 - DECC Scenario 1 equiv'!O179,\n'[13]SM3 - DECC Scenario 2 equiv'!O179,\n'[13]SM4 - DNO Scenario 4 equiv'!O179,\n'[14]M1a - Model inputs'!O179,\n'[14]M1b - Model inputs'!O179,\n'[14]SM1 - DECC Scenario 3 equiv'!O179,\n'[14]SM2 - DECC Scenario 1 equiv'!O179,\n'[14]SM3 - DECC Scenario 2 equiv'!O179,\n'[14]SM4 - DNO Scenario 4 equiv'!O179)","v":0},{"$f":"CHOOSE(view,\n'[13]M1a - Model inputs'!P179,\n'[13]M1b - Model inputs'!P179,\n'[13]SM1 - DECC Scenario 3 equiv'!P179,\n'[13]SM2 - DECC Scenario 1 equiv'!P179,\n'[13]SM3 - DECC Scenario 2 equiv'!P179,\n'[13]SM4 - DNO Scenario 4 equiv'!P179,\n'[14]M1a - Model inputs'!P179,\n'[14]M1b - Model inputs'!P179,\n'[14]SM1 - DECC Scenario 3 equiv'!P179,\n'[14]SM2 - DECC Scenario 1 equiv'!P179,\n'[14]SM3 - DECC Scenario 2 equiv'!P179,\n'[14]SM4 - DNO Scenario 4 equiv'!P179)","v":0},{"$f":"CHOOSE(view,\n'[13]M1a - Model inputs'!Q179,\n'[13]M1b - Model inputs'!Q179,\n'[13]SM1 - DECC Scenario 3 equiv'!Q179,\n'[13]SM2 - DECC Scenario 1 equiv'!Q179,\n'[13]SM3 - DECC Scenario 2 equiv'!Q179,\n'[13]SM4 - DNO Scenario 4 equiv'!Q179,\n'[14]M1a - Model inputs'!Q179,\n'[14]M1b - Model inputs'!Q179,\n'[14]SM1 - DECC Scenario 3 equiv'!Q179,\n'[14]SM2 - DECC Scenario 1 equiv'!Q179,\n'[14]SM3 - DECC Scenario 2 equiv'!Q179,\n'[14]SM4 - DNO Scenario 4 equiv'!Q179)","v":0},{"$f":"CHOOSE(view,\n'[13]M1a - Model inputs'!R179,\n'[13]M1b - Model inputs'!R179,\n'[13]SM1 - DECC Scenario 3 equiv'!R179,\n'[13]SM2 - DECC Scenario 1 equiv'!R179,\n'[13]SM3 - DECC Scenario 2 equiv'!R179,\n'[13]SM4 - DNO Scenario 4 equiv'!R179,\n'[14]M1a - Model inputs'!R179,\n'[14]M1b - Model inputs'!R179,\n'[14]SM1 - DECC Scenario 3 equiv'!R179,\n'[14]SM2 - DECC Scenario 1 equiv'!R179,\n'[14]SM3 - DECC Scenario 2 equiv'!R179,\n'[14]SM4 - DNO Scenario 4 equiv'!R179)","v":0},{"$f":"CHOOSE(view,\n'[13]M1a - Model inputs'!S179,\n'[13]M1b - Model inputs'!S179,\n'[13]SM1 - DECC Scenario 3 equiv'!S179,\n'[13]SM2 - DECC Scenario 1 equiv'!S179,\n'[13]SM3 - DECC Scenario 2 equiv'!S179,\n'[13]SM4 - DNO Scenario 4 equiv'!S179,\n'[14]M1a - Model inputs'!S179,\n'[14]M1b - Model inputs'!S179,\n'[14]SM1 - DECC Scenario 3 equiv'!S179,\n'[14]SM2 - DECC Scenario 1 equiv'!S179,\n'[14]SM3 - DECC Scenario 2 equiv'!S179,\n'[14]SM4 - DNO Scenario 4 equiv'!S179)","v":0}]
[null,null,null,null,{"$f":"Input!E111","v":"Allocation to non-load related capex - asset replacement"},null,"%",null,null,null,null,null,null,null,null,null,null,null,null,null,null,null,null,null,null,null,null,null,null,null,null,null,null,null,null,{"$f":"CHOOSE(view,\n'[13]M1a - Model inputs'!L180,\n'[13]M1b - Model inputs'!L180,\n'[13]SM1 - DECC Scenario 3 equiv'!L180,\n'[13]SM2 - DECC Scenario 1 equiv'!L180,\n'[13]SM3 - DECC Scenario 2 equiv'!L180,\n'[13]SM4 - DNO Scenario 4 equiv'!L180,\n'[14]M1a - Model inputs'!L180,\n'[14]M1b - Model inputs'!L180,\n'[14]SM1 - DECC Scenario 3 equiv'!L180,\n'[14]SM2 - DECC Scenario 1 equiv'!L180,\n'[14]SM3 - DECC Scenario 2 equiv'!L180,\n'[14]SM4 - DNO Scenario 4 equiv'!L180)","v":0},{"$f":"CHOOSE(view,\n'[13]M1a - Model inputs'!M180,\n'[13]M1b - Model inputs'!M180,\n'[13]SM1 - DECC Scenario 3 equiv'!M180,\n'[13]SM2 - DECC Scenario 1 equiv'!M180,\n'[13]SM3 - DECC Scenario 2 equiv'!M180,\n'[13]SM4 - DNO Scenario 4 equiv'!M180,\n'[14]M1a - Model inputs'!M180,\n'[14]M1b - Model inputs'!M180,\n'[14]SM1 - DECC Scenario 3 equiv'!M180,\n'[14]SM2 - DECC Scenario 1 equiv'!M180,\n'[14]SM3 - DECC Scenario 2 equiv'!M180,\n'[14]SM4 - DNO Scenario 4 equiv'!M180)","v":0},{"$f":"CHOOSE(view,\n'[13]M1a - Model inputs'!N180,\n'[13]M1b - Model inputs'!N180,\n'[13]SM1 - DECC Scenario 3 equiv'!N180,\n'[13]SM2 - DECC Scenario 1 equiv'!N180,\n'[13]SM3 - DECC Scenario 2 equiv'!N180,\n'[13]SM4 - DNO Scenario 4 equiv'!N180,\n'[14]M1a - Model inputs'!N180,\n'[14]M1b - Model inputs'!N180,\n'[14]SM1 - DECC Scenario 3 equiv'!N180,\n'[14]SM2 - DECC Scenario 1 equiv'!N180,\n'[14]SM3 - DECC Scenario 2 equiv'!N180,\n'[14]SM4 - DNO Scenario 4 equiv'!N180)","v":0},{"$f":"CHOOSE(view,\n'[13]M1a - Model inputs'!O180,\n'[13]M1b - Model inputs'!O180,\n'[13]SM1 - DECC Scenario 3 equiv'!O180,\n'[13]SM2 - DECC Scenario 1 equiv'!O180,\n'[13]SM3 - DECC Scenario 2 equiv'!O180,\n'[13]SM4 - DNO Scenario 4 equiv'!O180,\n'[14]M1a - Model inputs'!O180,\n'[14]M1b - Model inputs'!O180,\n'[14]SM1 - DECC Scenario 3 equiv'!O180,\n'[14]SM2 - DECC Scenario 1 equiv'!O180,\n'[14]SM3 - DECC Scenario 2 equiv'!O180,\n'[14]SM4 - DNO Scenario 4 equiv'!O180)","v":0},{"$f":"CHOOSE(view,\n'[13]M1a - Model inputs'!P180,\n'[13]M1b - Model inputs'!P180,\n'[13]SM1 - DECC Scenario 3 equiv'!P180,\n'[13]SM2 - DECC Scenario 1 equiv'!P180,\n'[13]SM3 - DECC Scenario 2 equiv'!P180,\n'[13]SM4 - DNO Scenario 4 equiv'!P180,\n'[14]M1a - Model inputs'!P180,\n'[14]M1b - Model inputs'!P180,\n'[14]SM1 - DECC Scenario 3 equiv'!P180,\n'[14]SM2 - DECC Scenario 1 equiv'!P180,\n'[14]SM3 - DECC Scenario 2 equiv'!P180,\n'[14]SM4 - DNO Scenario 4 equiv'!P180)","v":0},{"$f":"CHOOSE(view,\n'[13]M1a - Model inputs'!Q180,\n'[13]M1b - Model inputs'!Q180,\n'[13]SM1 - DECC Scenario 3 equiv'!Q180,\n'[13]SM2 - DECC Scenario 1 equiv'!Q180,\n'[13]SM3 - DECC Scenario 2 equiv'!Q180,\n'[13]SM4 - DNO Scenario 4 equiv'!Q180,\n'[14]M1a - Model inputs'!Q180,\n'[14]M1b - Model inputs'!Q180,\n'[14]SM1 - DECC Scenario 3 equiv'!Q180,\n'[14]SM2 - DECC Scenario 1 equiv'!Q180,\n'[14]SM3 - DECC Scenario 2 equiv'!Q180,\n'[14]SM4 - DNO Scenario 4 equiv'!Q180)","v":0},{"$f":"CHOOSE(view,\n'[13]M1a - Model inputs'!R180,\n'[13]M1b - Model inputs'!R180,\n'[13]SM1 - DECC Scenario 3 equiv'!R180,\n'[13]SM2 - DECC Scenario 1 equiv'!R180,\n'[13]SM3 - DECC Scenario 2 equiv'!R180,\n'[13]SM4 - DNO Scenario 4 equiv'!R180,\n'[14]M1a - Model inputs'!R180,\n'[14]M1b - Model inputs'!R180,\n'[14]SM1 - DECC Scenario 3 equiv'!R180,\n'[14]SM2 - DECC Scenario 1 equiv'!R180,\n'[14]SM3 - DECC Scenario 2 equiv'!R180,\n'[14]SM4 - DNO Scenario 4 equiv'!R180)","v":0},{"$f":"CHOOSE(view,\n'[13]M1a - Model inputs'!S180,\n'[13]M1b - Model inputs'!S180,\n'[13]SM1 - DECC Scenario 3 equiv'!S180,\n'[13]SM2 - DECC Scenario 1 equiv'!S180,\n'[13]SM3 - DECC Scenario 2 equiv'!S180,\n'[13]SM4 - DNO Scenario 4 equiv'!S180,\n'[14]M1a - Model inputs'!S180,\n'[14]M1b - Model inputs'!S180,\n'[14]SM1 - DECC Scenario 3 equiv'!S180,\n'[14]SM2 - DECC Scenario 1 equiv'!S180,\n'[14]SM3 - DECC Scenario 2 equiv'!S180,\n'[14]SM4 - DNO Scenario 4 equiv'!S180)","v":0}]
[null,null,null,null,{"$f":"Input!E112","v":"Allocation to non-load related capex - other"},null,"%",null,null,null,null,null,null,null,null,null,null,null,null,null,null,null,null,null,null,null,null,null,null,null,null,null,null,null,null,{"$f":"CHOOSE(view,\n'[13]M1a - Model inputs'!L181,\n'[13]M1b - Model inputs'!L181,\n'[13]SM1 - DECC Scenario 3 equiv'!L181,\n'[13]SM2 - DECC Scenario 1 equiv'!L181,\n'[13]SM3 - DECC Scenario 2 equiv'!L181,\n'[13]SM4 - DNO Scenario 4 equiv'!L181,\n'[14]M1a - Model inputs'!L181,\n'[14]M1b - Model inputs'!L181,\n'[14]SM1 - DECC Scenario 3 equiv'!L181,\n'[14]SM2 - DECC Scenario 1 equiv'!L181,\n'[14]SM3 - DECC Scenario 2 equiv'!L181,\n'[14]SM4 - DNO Scenario 4 equiv'!L181)","v":0},{"$f":"CHOOSE(view,\n'[13]M1a - Model inputs'!M181,\n'[13]M1b - Model inputs'!M181,\n'[13]SM1 - DECC Scenario 3 equiv'!M181,\n'[13]SM2 - DECC Scenario 1 equiv'!M181,\n'[13]SM3 - DECC Scenario 2 equiv'!M181,\n'[13]SM4 - DNO Scenario 4 equiv'!M181,\n'[14]M1a - Model inputs'!M181,\n'[14]M1b - Model inputs'!M181,\n'[14]SM1 - DECC Scenario 3 equiv'!M181,\n'[14]SM2 - DECC Scenario 1 equiv'!M181,\n'[14]SM3 - DECC Scenario 2 equiv'!M181,\n'[14]SM4 - DNO Scenario 4 equiv'!M181)","v":0},{"$f":"CHOOSE(view,\n'[13]M1a - Model inputs'!N181,\n'[13]M1b - Model inputs'!N181,\n'[13]SM1 - DECC Scenario 3 equiv'!N181,\n'[13]SM2 - DECC Scenario 1 equiv'!N181,\n'[13]SM3 - DECC Scenario 2 equiv'!N181,\n'[13]SM4 - DNO Scenario 4 equiv'!N181,\n'[14]M1a - Model inputs'!N181,\n'[14]M1b - Model inputs'!N181,\n'[14]SM1 - DECC Scenario 3 equiv'!N181,\n'[14]SM2 - DECC Scenario 1 equiv'!N181,\n'[14]SM3 - DECC Scenario 2 equiv'!N181,\n'[14]SM4 - DNO Scenario 4 equiv'!N181)","v":0},{"$f":"CHOOSE(view,\n'[13]M1a - Model inputs'!O181,\n'[13]M1b - Model inputs'!O181,\n'[13]SM1 - DECC Scenario 3 equiv'!O181,\n'[13]SM2 - DECC Scenario 1 equiv'!O181,\n'[13]SM3 - DECC Scenario 2 equiv'!O181,\n'[13]SM4 - DNO Scenario 4 equiv'!O181,\n'[14]M1a - Model inputs'!O181,\n'[14]M1b - Model inputs'!O181,\n'[14]SM1 - DECC Scenario 3 equiv'!O181,\n'[14]SM2 - DECC Scenario 1 equiv'!O181,\n'[14]SM3 - DECC Scenario 2 equiv'!O181,\n'[14]SM4 - DNO Scenario 4 equiv'!O181)","v":0},{"$f":"CHOOSE(view,\n'[13]M1a - Model inputs'!P181,\n'[13]M1b - Model inputs'!P181,\n'[13]SM1 - DECC Scenario 3 equiv'!P181,\n'[13]SM2 - DECC Scenario 1 equiv'!P181,\n'[13]SM3 - DECC Scenario 2 equiv'!P181,\n'[13]SM4 - DNO Scenario 4 equiv'!P181,\n'[14]M1a - Model inputs'!P181,\n'[14]M1b - Model inputs'!P181,\n'[14]SM1 - DECC Scenario 3 equiv'!P181,\n'[14]SM2 - DECC Scenario 1 equiv'!P181,\n'[14]SM3 - DECC Scenario 2 equiv'!P181,\n'[14]SM4 - DNO Scenario 4 equiv'!P181)","v":0},{"$f":"CHOOSE(view,\n'[13]M1a - Model inputs'!Q181,\n'[13]M1b - Model inputs'!Q181,\n'[13]SM1 - DECC Scenario 3 equiv'!Q181,\n'[13]SM2 - DECC Scenario 1 equiv'!Q181,\n'[13]SM3 - DECC Scenario 2 equiv'!Q181,\n'[13]SM4 - DNO Scenario 4 equiv'!Q181,\n'[14]M1a - Model inputs'!Q181,\n'[14]M1b - Model inputs'!Q181,\n'[14]SM1 - DECC Scenario 3 equiv'!Q181,\n'[14]SM2 - DECC Scenario 1 equiv'!Q181,\n'[14]SM3 - DECC Scenario 2 equiv'!Q181,\n'[14]SM4 - DNO Scenario 4 equiv'!Q181)","v":0},{"$f":"CHOOSE(view,\n'[13]M1a - Model inputs'!R181,\n'[13]M1b - Model inputs'!R181,\n'[13]SM1 - DECC Scenario 3 equiv'!R181,\n'[13]SM2 - DECC Scenario 1 equiv'!R181,\n'[13]SM3 - DECC Scenario 2 equiv'!R181,\n'[13]SM4 - DNO Scenario 4 equiv'!R181,\n'[14]M1a - Model inputs'!R181,\n'[14]M1b - Model inputs'!R181,\n'[14]SM1 - DECC Scenario 3 equiv'!R181,\n'[14]SM2 - DECC Scenario 1 equiv'!R181,\n'[14]SM3 - DECC Scenario 2 equiv'!R181,\n'[14]SM4 - DNO Scenario 4 equiv'!R181)","v":0},{"$f":"CHOOSE(view,\n'[13]M1a - Model inputs'!S181,\n'[13]M1b - Model inputs'!S181,\n'[13]SM1 - DECC Scenario 3 equiv'!S181,\n'[13]SM2 - DECC Scenario 1 equiv'!S181,\n'[13]SM3 - DECC Scenario 2 equiv'!S181,\n'[13]SM4 - DNO Scenario 4 equiv'!S181,\n'[14]M1a - Model inputs'!S181,\n'[14]M1b - Model inputs'!S181,\n'[14]SM1 - DECC Scenario 3 equiv'!S181,\n'[14]SM2 - DECC Scenario 1 equiv'!S181,\n'[14]SM3 - DECC Scenario 2 equiv'!S181,\n'[14]SM4 - DNO Scenario 4 equiv'!S181)","v":0}]
[null,null,null,null,{"$f":"Input!E113","v":"Allocation to faults"},null,"%",null,null,null,null,null,null,null,null,null,null,null,null,null,null,null,null,null,null,null,null,null,null,null,null,null,null,null,null,{"$f":"CHOOSE(view,\n'[13]M1a - Model inputs'!L182,\n'[13]M1b - Model inputs'!L182,\n'[13]SM1 - DECC Scenario 3 equiv'!L182,\n'[13]SM2 - DECC Scenario 1 equiv'!L182,\n'[13]SM3 - DECC Scenario 2 equiv'!L182,\n'[13]SM4 - DNO Scenario 4 equiv'!L182,\n'[14]M1a - Model inputs'!L182,\n'[14]M1b - Model inputs'!L182,\n'[14]SM1 - DECC Scenario 3 equiv'!L182,\n'[14]SM2 - DECC Scenario 1 equiv'!L182,\n'[14]SM3 - DECC Scenario 2 equiv'!L182,\n'[14]SM4 - DNO Scenario 4 equiv'!L182)","v":0},{"$f":"CHOOSE(view,\n'[13]M1a - Model inputs'!M182,\n'[13]M1b - Model inputs'!M182,\n'[13]SM1 - DECC Scenario 3 equiv'!M182,\n'[13]SM2 - DECC Scenario 1 equiv'!M182,\n'[13]SM3 - DECC Scenario 2 equiv'!M182,\n'[13]SM4 - DNO Scenario 4 equiv'!M182,\n'[14]M1a - Model inputs'!M182,\n'[14]M1b - Model inputs'!M182,\n'[14]SM1 - DECC Scenario 3 equiv'!M182,\n'[14]SM2 - DECC Scenario 1 equiv'!M182,\n'[14]SM3 - DECC Scenario 2 equiv'!M182,\n'[14]SM4 - DNO Scenario 4 equiv'!M182)","v":0},{"$f":"CHOOSE(view,\n'[13]M1a - Model inputs'!N182,\n'[13]M1b - Model inputs'!N182,\n'[13]SM1 - DECC Scenario 3 equiv'!N182,\n'[13]SM2 - DECC Scenario 1 equiv'!N182,\n'[13]SM3 - DECC Scenario 2 equiv'!N182,\n'[13]SM4 - DNO Scenario 4 equiv'!N182,\n'[14]M1a - Model inputs'!N182,\n'[14]M1b - Model inputs'!N182,\n'[14]SM1 - DECC Scenario 3 equiv'!N182,\n'[14]SM2 - DECC Scenario 1 equiv'!N182,\n'[14]SM3 - DECC Scenario 2 equiv'!N182,\n'[14]SM4 - DNO Scenario 4 equiv'!N182)","v":0},{"$f":"CHOOSE(view,\n'[13]M1a - Model inputs'!O182,\n'[13]M1b - Model inputs'!O182,\n'[13]SM1 - DECC Scenario 3 equiv'!O182,\n'[13]SM2 - DECC Scenario 1 equiv'!O182,\n'[13]SM3 - DECC Scenario 2 equiv'!O182,\n'[13]SM4 - DNO Scenario 4 equiv'!O182,\n'[14]M1a - Model inputs'!O182,\n'[14]M1b - Model inputs'!O182,\n'[14]SM1 - DECC Scenario 3 equiv'!O182,\n'[14]SM2 - DECC Scenario 1 equiv'!O182,\n'[14]SM3 - DECC Scenario 2 equiv'!O182,\n'[14]SM4 - DNO Scenario 4 equiv'!O182)","v":0},{"$f":"CHOOSE(view,\n'[13]M1a - Model inputs'!P182,\n'[13]M1b - Model inputs'!P182,\n'[13]SM1 - DECC Scenario 3 equiv'!P182,\n'[13]SM2 - DECC Scenario 1 equiv'!P182,\n'[13]SM3 - DECC Scenario 2 equiv'!P182,\n'[13]SM4 - DNO Scenario 4 equiv'!P182,\n'[14]M1a - Model inputs'!P182,\n'[14]M1b - Model inputs'!P182,\n'[14]SM1 - DECC Scenario 3 equiv'!P182,\n'[14]SM2 - DECC Scenario 1 equiv'!P182,\n'[14]SM3 - DECC Scenario 2 equiv'!P182,\n'[14]SM4 - DNO Scenario 4 equiv'!P182)","v":0},{"$f":"CHOOSE(view,\n'[13]M1a - Model inputs'!Q182,\n'[13]M1b - Model inputs'!Q182,\n'[13]SM1 - DECC Scenario 3 equiv'!Q182,\n'[13]SM2 - DECC Scenario 1 equiv'!Q182,\n'[13]SM3 - DECC Scenario 2 equiv'!Q182,\n'[13]SM4 - DNO Scenario 4 equiv'!Q182,\n'[14]M1a - Model inputs'!Q182,\n'[14]M1b - Model inputs'!Q182,\n'[14]SM1 - DECC Scenario 3 equiv'!Q182,\n'[14]SM2 - DECC Scenario 1 equiv'!Q182,\n'[14]SM3 - DECC Scenario 2 equiv'!Q182,\n'[14]SM4 - DNO Scenario 4 equiv'!Q182)","v":0},{"$f":"CHOOSE(view,\n'[13]M1a - Model inputs'!R182,\n'[13]M1b - Model inputs'!R182,\n'[13]SM1 - DECC Scenario 3 equiv'!R182,\n'[13]SM2 - DECC Scenario 1 equiv'!R182,\n'[13]SM3 - DECC Scenario 2 equiv'!R182,\n'[13]SM4 - DNO Scenario 4 equiv'!R182,\n'[14]M1a - Model inputs'!R182,\n'[14]M1b - Model inputs'!R182,\n'[14]SM1 - DECC Scenario 3 equiv'!R182,\n'[14]SM2 - DECC Scenario 1 equiv'!R182,\n'[14]SM3 - DECC Scenario 2 equiv'!R182,\n'[14]SM4 - DNO Scenario 4 equiv'!R182)","v":0},{"$f":"CHOOSE(view,\n'[13]M1a - Model inputs'!S182,\n'[13]M1b - Model inputs'!S182,\n'[13]SM1 - DECC Scenario 3 equiv'!S182,\n'[13]SM2 - DECC Scenario 1 equiv'!S182,\n'[13]SM3 - DECC Scenario 2 equiv'!S182,\n'[13]SM4 - DNO Scenario 4 equiv'!S182,\n'[14]M1a - Model inputs'!S182,\n'[14]M1b - Model inputs'!S182,\n'[14]SM1 - DECC Scenario 3 equiv'!S182,\n'[14]SM2 - DECC Scenario 1 equiv'!S182,\n'[14]SM3 - DECC Scenario 2 equiv'!S182,\n'[14]SM4 - DNO Scenario 4 equiv'!S182)","v":0}]
[null,null,null,null,{"$f":"Input!E114","v":"Allocation to tree cutting"},null,"%",null,null,null,null,null,null,null,null,null,null,null,null,null,null,null,null,null,null,null,null,null,null,null,null,null,null,null,null,{"$f":"CHOOSE(view,\n'[13]M1a - Model inputs'!L183,\n'[13]M1b - Model inputs'!L183,\n'[13]SM1 - DECC Scenario 3 equiv'!L183,\n'[13]SM2 - DECC Scenario 1 equiv'!L183,\n'[13]SM3 - DECC Scenario 2 equiv'!L183,\n'[13]SM4 - DNO Scenario 4 equiv'!L183,\n'[14]M1a - Model inputs'!L183,\n'[14]M1b - Model inputs'!L183,\n'[14]SM1 - DECC Scenario 3 equiv'!L183,\n'[14]SM2 - DECC Scenario 1 equiv'!L183,\n'[14]SM3 - DECC Scenario 2 equiv'!L183,\n'[14]SM4 - DNO Scenario 4 equiv'!L183)","v":0},{"$f":"CHOOSE(view,\n'[13]M1a - Model inputs'!M183,\n'[13]M1b - Model inputs'!M183,\n'[13]SM1 - DECC Scenario 3 equiv'!M183,\n'[13]SM2 - DECC Scenario 1 equiv'!M183,\n'[13]SM3 - DECC Scenario 2 equiv'!M183,\n'[13]SM4 - DNO Scenario 4 equiv'!M183,\n'[14]M1a - Model inputs'!M183,\n'[14]M1b - Model inputs'!M183,\n'[14]SM1 - DECC Scenario 3 equiv'!M183,\n'[14]SM2 - DECC Scenario 1 equiv'!M183,\n'[14]SM3 - DECC Scenario 2 equiv'!M183,\n'[14]SM4 - DNO Scenario 4 equiv'!M183)","v":0},{"$f":"CHOOSE(view,\n'[13]M1a - Model inputs'!N183,\n'[13]M1b - Model inputs'!N183,\n'[13]SM1 - DECC Scenario 3 equiv'!N183,\n'[13]SM2 - DECC Scenario 1 equiv'!N183,\n'[13]SM3 - DECC Scenario 2 equiv'!N183,\n'[13]SM4 - DNO Scenario 4 equiv'!N183,\n'[14]M1a - Model inputs'!N183,\n'[14]M1b - Model inputs'!N183,\n'[14]SM1 - DECC Scenario 3 equiv'!N183,\n'[14]SM2 - DECC Scenario 1 equiv'!N183,\n'[14]SM3 - DECC Scenario 2 equiv'!N183,\n'[14]SM4 - DNO Scenario 4 equiv'!N183)","v":0},{"$f":"CHOOSE(view,\n'[13]M1a - Model inputs'!O183,\n'[13]M1b - Model inputs'!O183,\n'[13]SM1 - DECC Scenario 3 equiv'!O183,\n'[13]SM2 - DECC Scenario 1 equiv'!O183,\n'[13]SM3 - DECC Scenario 2 equiv'!O183,\n'[13]SM4 - DNO Scenario 4 equiv'!O183,\n'[14]M1a - Model inputs'!O183,\n'[14]M1b - Model inputs'!O183,\n'[14]SM1 - DECC Scenario 3 equiv'!O183,\n'[14]SM2 - DECC Scenario 1 equiv'!O183,\n'[14]SM3 - DECC Scenario 2 equiv'!O183,\n'[14]SM4 - DNO Scenario 4 equiv'!O183)","v":0},{"$f":"CHOOSE(view,\n'[13]M1a - Model inputs'!P183,\n'[13]M1b - Model inputs'!P183,\n'[13]SM1 - DECC Scenario 3 equiv'!P183,\n'[13]SM2 - DECC Scenario 1 equiv'!P183,\n'[13]SM3 - DECC Scenario 2 equiv'!P183,\n'[13]SM4 - DNO Scenario 4 equiv'!P183,\n'[14]M1a - Model inputs'!P183,\n'[14]M1b - Model inputs'!P183,\n'[14]SM1 - DECC Scenario 3 equiv'!P183,\n'[14]SM2 - DECC Scenario 1 equiv'!P183,\n'[14]SM3 - DECC Scenario 2 equiv'!P183,\n'[14]SM4 - DNO Scenario 4 equiv'!P183)","v":0},{"$f":"CHOOSE(view,\n'[13]M1a - Model inputs'!Q183,\n'[13]M1b - Model inputs'!Q183,\n'[13]SM1 - DECC Scenario 3 equiv'!Q183,\n'[13]SM2 - DECC Scenario 1 equiv'!Q183,\n'[13]SM3 - DECC Scenario 2 equiv'!Q183,\n'[13]SM4 - DNO Scenario 4 equiv'!Q183,\n'[14]M1a - Model inputs'!Q183,\n'[14]M1b - Model inputs'!Q183,\n'[14]SM1 - DECC Scenario 3 equiv'!Q183,\n'[14]SM2 - DECC Scenario 1 equiv'!Q183,\n'[14]SM3 - DECC Scenario 2 equiv'!Q183,\n'[14]SM4 - DNO Scenario 4 equiv'!Q183)","v":0},{"$f":"CHOOSE(view,\n'[13]M1a - Model inputs'!R183,\n'[13]M1b - Model inputs'!R183,\n'[13]SM1 - DECC Scenario 3 equiv'!R183,\n'[13]SM2 - DECC Scenario 1 equiv'!R183,\n'[13]SM3 - DECC Scenario 2 equiv'!R183,\n'[13]SM4 - DNO Scenario 4 equiv'!R183,\n'[14]M1a - Model inputs'!R183,\n'[14]M1b - Model inputs'!R183,\n'[14]SM1 - DECC Scenario 3 equiv'!R183,\n'[14]SM2 - DECC Scenario 1 equiv'!R183,\n'[14]SM3 - DECC Scenario 2 equiv'!R183,\n'[14]SM4 - DNO Scenario 4 equiv'!R183)","v":0},{"$f":"CHOOSE(view,\n'[13]M1a - Model inputs'!S183,\n'[13]M1b - Model inputs'!S183,\n'[13]SM1 - DECC Scenario 3 equiv'!S183,\n'[13]SM2 - DECC Scenario 1 equiv'!S183,\n'[13]SM3 - DECC Scenario 2 equiv'!S183,\n'[13]SM4 - DNO Scenario 4 equiv'!S183,\n'[14]M1a - Model inputs'!S183,\n'[14]M1b - Model inputs'!S183,\n'[14]SM1 - DECC Scenario 3 equiv'!S183,\n'[14]SM2 - DECC Scenario 1 equiv'!S183,\n'[14]SM3 - DECC Scenario 2 equiv'!S183,\n'[14]SM4 - DNO Scenario 4 equiv'!S183)","v":0}]
[null,null,null,null,{"$f":"Input!E115","v":"Allocation to controllable opex"},null,"%",null,null,null,null,null,null,null,null,null,null,null,null,null,null,null,null,null,null,null,null,null,null,null,null,null,null,null,null,{"$f":"CHOOSE(view,\n'[13]M1a - Model inputs'!L184,\n'[13]M1b - Model inputs'!L184,\n'[13]SM1 - DECC Scenario 3 equiv'!L184,\n'[13]SM2 - DECC Scenario 1 equiv'!L184,\n'[13]SM3 - DECC Scenario 2 equiv'!L184,\n'[13]SM4 - DNO Scenario 4 equiv'!L184,\n'[14]M1a - Model inputs'!L184,\n'[14]M1b - Model inputs'!L184,\n'[14]SM1 - DECC Scenario 3 equiv'!L184,\n'[14]SM2 - DECC Scenario 1 equiv'!L184,\n'[14]SM3 - DECC Scenario 2 equiv'!L184,\n'[14]SM4 - DNO Scenario 4 equiv'!L184)","v":0},{"$f":"CHOOSE(view,\n'[13]M1a - Model inputs'!M184,\n'[13]M1b - Model inputs'!M184,\n'[13]SM1 - DECC Scenario 3 equiv'!M184,\n'[13]SM2 - DECC Scenario 1 equiv'!M184,\n'[13]SM3 - DECC Scenario 2 equiv'!M184,\n'[13]SM4 - DNO Scenario 4 equiv'!M184,\n'[14]M1a - Model inputs'!M184,\n'[14]M1b - Model inputs'!M184,\n'[14]SM1 - DECC Scenario 3 equiv'!M184,\n'[14]SM2 - DECC Scenario 1 equiv'!M184,\n'[14]SM3 - DECC Scenario 2 equiv'!M184,\n'[14]SM4 - DNO Scenario 4 equiv'!M184)","v":0},{"$f":"CHOOSE(view,\n'[13]M1a - Model inputs'!N184,\n'[13]M1b - Model inputs'!N184,\n'[13]SM1 - DECC Scenario 3 equiv'!N184,\n'[13]SM2 - DECC Scenario 1 equiv'!N184,\n'[13]SM3 - DECC Scenario 2 equiv'!N184,\n'[13]SM4 - DNO Scenario 4 equiv'!N184,\n'[14]M1a - Model inputs'!N184,\n'[14]M1b - Model inputs'!N184,\n'[14]SM1 - DECC Scenario 3 equiv'!N184,\n'[14]SM2 - DECC Scenario 1 equiv'!N184,\n'[14]SM3 - DECC Scenario 2 equiv'!N184,\n'[14]SM4 - DNO Scenario 4 equiv'!N184)","v":0},{"$f":"CHOOSE(view,\n'[13]M1a - Model inputs'!O184,\n'[13]M1b - Model inputs'!O184,\n'[13]SM1 - DECC Scenario 3 equiv'!O184,\n'[13]SM2 - DECC Scenario 1 equiv'!O184,\n'[13]SM3 - DECC Scenario 2 equiv'!O184,\n'[13]SM4 - DNO Scenario 4 equiv'!O184,\n'[14]M1a - Model inputs'!O184,\n'[14]M1b - Model inputs'!O184,\n'[14]SM1 - DECC Scenario 3 equiv'!O184,\n'[14]SM2 - DECC Scenario 1 equiv'!O184,\n'[14]SM3 - DECC Scenario 2 equiv'!O184,\n'[14]SM4 - DNO Scenario 4 equiv'!O184)","v":0},{"$f":"CHOOSE(view,\n'[13]M1a - Model inputs'!P184,\n'[13]M1b - Model inputs'!P184,\n'[13]SM1 - DECC Scenario 3 equiv'!P184,\n'[13]SM2 - DECC Scenario 1 equiv'!P184,\n'[13]SM3 - DECC Scenario 2 equiv'!P184,\n'[13]SM4 - DNO Scenario 4 equiv'!P184,\n'[14]M1a - Model inputs'!P184,\n'[14]M1b - Model inputs'!P184,\n'[14]SM1 - DECC Scenario 3 equiv'!P184,\n'[14]SM2 - DECC Scenario 1 equiv'!P184,\n'[14]SM3 - DECC Scenario 2 equiv'!P184,\n'[14]SM4 - DNO Scenario 4 equiv'!P184)","v":0},{"$f":"CHOOSE(view,\n'[13]M1a - Model inputs'!Q184,\n'[13]M1b - Model inputs'!Q184,\n'[13]SM1 - DECC Scenario 3 equiv'!Q184,\n'[13]SM2 - DECC Scenario 1 equiv'!Q184,\n'[13]SM3 - DECC Scenario 2 equiv'!Q184,\n'[13]SM4 - DNO Scenario 4 equiv'!Q184,\n'[14]M1a - Model inputs'!Q184,\n'[14]M1b - Model inputs'!Q184,\n'[14]SM1 - DECC Scenario 3 equiv'!Q184,\n'[14]SM2 - DECC Scenario 1 equiv'!Q184,\n'[14]SM3 - DECC Scenario 2 equiv'!Q184,\n'[14]SM4 - DNO Scenario 4 equiv'!Q184)","v":0},{"$f":"CHOOSE(view,\n'[13]M1a - Model inputs'!R184,\n'[13]M1b - Model inputs'!R184,\n'[13]SM1 - DECC Scenario 3 equiv'!R184,\n'[13]SM2 - DECC Scenario 1 equiv'!R184,\n'[13]SM3 - DECC Scenario 2 equiv'!R184,\n'[13]SM4 - DNO Scenario 4 equiv'!R184,\n'[14]M1a - Model inputs'!R184,\n'[14]M1b - Model inputs'!R184,\n'[14]SM1 - DECC Scenario 3 equiv'!R184,\n'[14]SM2 - DECC Scenario 1 equiv'!R184,\n'[14]SM3 - DECC Scenario 2 equiv'!R184,\n'[14]SM4 - DNO Scenario 4 equiv'!R184)","v":0},{"$f":"CHOOSE(view,\n'[13]M1a - Model inputs'!S184,\n'[13]M1b - Model inputs'!S184,\n'[13]SM1 - DECC Scenario 3 equiv'!S184,\n'[13]SM2 - DECC Scenario 1 equiv'!S184,\n'[13]SM3 - DECC Scenario 2 equiv'!S184,\n'[13]SM4 - DNO Scenario 4 equiv'!S184,\n'[14]M1a - Model inputs'!S184,\n'[14]M1b - Model inputs'!S184,\n'[14]SM1 - DECC Scenario 3 equiv'!S184,\n'[14]SM2 - DECC Scenario 1 equiv'!S184,\n'[14]SM3 - DECC Scenario 2 equiv'!S184,\n'[14]SM4 - DNO Scenario 4 equiv'!S184)","v":0}]
[]
[null,null,null,null,{"$f":"Input!E117","v":"Allowed uncertain costs (Undergrounding)"},null,"£m 12/13 prices",null,null,null,null,null,null,null,null,null,null,null,null,null,null,null,null,null,null,null,null,null,null,null,null,null,null,null,null,{"$f":"AJ20","v":0.41991027870128539},{"$f":"AK20","v":0.42078069780298299},0.41991112794005259,0.42065757966277234,0.421727907116,0.41950438360333842,0.42137514611141536,0.42123360852554503]
[null,null,null,null,{"$f":"Input!E118","v":"Allocation to load related capex"},null,"%",null,null,null,null,null,null,null,null,null,null,null,null,null,null,null,null,null,null,null,null,null,null,null,null,null,null,null,null,{"$f":"CHOOSE(view,\n'[13]M1a - Model inputs'!L187,\n'[13]M1b - Model inputs'!L187,\n'[13]SM1 - DECC Scenario 3 equiv'!L187,\n'[13]SM2 - DECC Scenario 1 equiv'!L187,\n'[13]SM3 - DECC Scenario 2 equiv'!L187,\n'[13]SM4 - DNO Scenario 4 equiv'!L187,\n'[14]M1a - Model inputs'!L187,\n'[14]M1b - Model inputs'!L187,\n'[14]SM1 - DECC Scenario 3 equiv'!L187,\n'[14]SM2 - DECC Scenario 1 equiv'!L187,\n'[14]SM3 - DECC Scenario 2 equiv'!L187,\n'[14]SM4 - DNO Scenario 4 equiv'!L187)","v":0},{"$f":"CHOOSE(view,\n'[13]M1a - Model inputs'!M187,\n'[13]M1b - Model inputs'!M187,\n'[13]SM1 - DECC Scenario 3 equiv'!M187,\n'[13]SM2 - DECC Scenario 1 equiv'!M187,\n'[13]SM3 - DECC Scenario 2 equiv'!M187,\n'[13]SM4 - DNO Scenario 4 equiv'!M187,\n'[14]M1a - Model inputs'!M187,\n'[14]M1b - Model inputs'!M187,\n'[14]SM1 - DECC Scenario 3 equiv'!M187,\n'[14]SM2 - DECC Scenario 1 equiv'!M187,\n'[14]SM3 - DECC Scenario 2 equiv'!M187,\n'[14]SM4 - DNO Scenario 4 equiv'!M187)","v":0},{"$f":"CHOOSE(view,\n'[13]M1a - Model inputs'!N187,\n'[13]M1b - Model inputs'!N187,\n'[13]SM1 - DECC Scenario 3 equiv'!N187,\n'[13]SM2 - DECC Scenario 1 equiv'!N187,\n'[13]SM3 - DECC Scenario 2 equiv'!N187,\n'[13]SM4 - DNO Scenario 4 equiv'!N187,\n'[14]M1a - Model inputs'!N187,\n'[14]M1b - Model inputs'!N187,\n'[14]SM1 - DECC Scenario 3 equiv'!N187,\n'[14]SM2 - DECC Scenario 1 equiv'!N187,\n'[14]SM3 - DECC Scenario 2 equiv'!N187,\n'[14]SM4 - DNO Scenario 4 equiv'!N187)","v":0},{"$f":"CHOOSE(view,\n'[13]M1a - Model inputs'!O187,\n'[13]M1b - Model inputs'!O187,\n'[13]SM1 - DECC Scenario 3 equiv'!O187,\n'[13]SM2 - DECC Scenario 1 equiv'!O187,\n'[13]SM3 - DECC Scenario 2 equiv'!O187,\n'[13]SM4 - DNO Scenario 4 equiv'!O187,\n'[14]M1a - Model inputs'!O187,\n'[14]M1b - Model inputs'!O187,\n'[14]SM1 - DECC Scenario 3 equiv'!O187,\n'[14]SM2 - DECC Scenario 1 equiv'!O187,\n'[14]SM3 - DECC Scenario 2 equiv'!O187,\n'[14]SM4 - DNO Scenario 4 equiv'!O187)","v":0},{"$f":"CHOOSE(view,\n'[13]M1a - Model inputs'!P187,\n'[13]M1b - Model inputs'!P187,\n'[13]SM1 - DECC Scenario 3 equiv'!P187,\n'[13]SM2 - DECC Scenario 1 equiv'!P187,\n'[13]SM3 - DECC Scenario 2 equiv'!P187,\n'[13]SM4 - DNO Scenario 4 equiv'!P187,\n'[14]M1a - Model inputs'!P187,\n'[14]M1b - Model inputs'!P187,\n'[14]SM1 - DECC Scenario 3 equiv'!P187,\n'[14]SM2 - DECC Scenario 1 equiv'!P187,\n'[14]SM3 - DECC Scenario 2 equiv'!P187,\n'[14]SM4 - DNO Scenario 4 equiv'!P187)","v":0},{"$f":"CHOOSE(view,\n'[13]M1a - Model inputs'!Q187,\n'[13]M1b - Model inputs'!Q187,\n'[13]SM1 - DECC Scenario 3 equiv'!Q187,\n'[13]SM2 - DECC Scenario 1 equiv'!Q187,\n'[13]SM3 - DECC Scenario 2 equiv'!Q187,\n'[13]SM4 - DNO Scenario 4 equiv'!Q187,\n'[14]M1a - Model inputs'!Q187,\n'[14]M1b - Model inputs'!Q187,\n'[14]SM1 - DECC Scenario 3 equiv'!Q187,\n'[14]SM2 - DECC Scenario 1 equiv'!Q187,\n'[14]SM3 - DECC Scenario 2 equiv'!Q187,\n'[14]SM4 - DNO Scenario 4 equiv'!Q187)","v":0},{"$f":"CHOOSE(view,\n'[13]M1a - Model inputs'!R187,\n'[13]M1b - Model inputs'!R187,\n'[13]SM1 - DECC Scenario 3 equiv'!R187,\n'[13]SM2 - DECC Scenario 1 equiv'!R187,\n'[13]SM3 - DECC Scenario 2 equiv'!R187,\n'[13]SM4 - DNO Scenario 4 equiv'!R187,\n'[14]M1a - Model inputs'!R187,\n'[14]M1b - Model inputs'!R187,\n'[14]SM1 - DECC Scenario 3 equiv'!R187,\n'[14]SM2 - DECC Scenario 1 equiv'!R187,\n'[14]SM3 - DECC Scenario 2 equiv'!R187,\n'[14]SM4 - DNO Scenario 4 equiv'!R187)","v":0},{"$f":"CHOOSE(view,\n'[13]M1a - Model inputs'!S187,\n'[13]M1b - Model inputs'!S187,\n'[13]SM1 - DECC Scenario 3 equiv'!S187,\n'[13]SM2 - DECC Scenario 1 equiv'!S187,\n'[13]SM3 - DECC Scenario 2 equiv'!S187,\n'[13]SM4 - DNO Scenario 4 equiv'!S187,\n'[14]M1a - Model inputs'!S187,\n'[14]M1b - Model inputs'!S187,\n'[14]SM1 - DECC Scenario 3 equiv'!S187,\n'[14]SM2 - DECC Scenario 1 equiv'!S187,\n'[14]SM3 - DECC Scenario 2 equiv'!S187,\n'[14]SM4 - DNO Scenario 4 equiv'!S187)","v":0}]
[null,null,null,null,{"$f":"Input!E119","v":"Allocation to non-load related capex - asset replacement"},null,"%",null,null,null,null,null,null,null,null,null,null,null,null,null,null,null,null,null,null,null,null,null,null,null,null,null,null,null,null,{"$f":"CHOOSE(view,\n'[13]M1a - Model inputs'!L188,\n'[13]M1b - Model inputs'!L188,\n'[13]SM1 - DECC Scenario 3 equiv'!L188,\n'[13]SM2 - DECC Scenario 1 equiv'!L188,\n'[13]SM3 - DECC Scenario 2 equiv'!L188,\n'[13]SM4 - DNO Scenario 4 equiv'!L188,\n'[14]M1a - Model inputs'!L188,\n'[14]M1b - Model inputs'!L188,\n'[14]SM1 - DECC Scenario 3 equiv'!L188,\n'[14]SM2 - DECC Scenario 1 equiv'!L188,\n'[14]SM3 - DECC Scenario 2 equiv'!L188,\n'[14]SM4 - DNO Scenario 4 equiv'!L188)","v":0},{"$f":"CHOOSE(view,\n'[13]M1a - Model inputs'!M188,\n'[13]M1b - Model inputs'!M188,\n'[13]SM1 - DECC Scenario 3 equiv'!M188,\n'[13]SM2 - DECC Scenario 1 equiv'!M188,\n'[13]SM3 - DECC Scenario 2 equiv'!M188,\n'[13]SM4 - DNO Scenario 4 equiv'!M188,\n'[14]M1a - Model inputs'!M188,\n'[14]M1b - Model inputs'!M188,\n'[14]SM1 - DECC Scenario 3 equiv'!M188,\n'[14]SM2 - DECC Scenario 1 equiv'!M188,\n'[14]SM3 - DECC Scenario 2 equiv'!M188,\n'[14]SM4 - DNO Scenario 4 equiv'!M188)","v":0},{"$f":"CHOOSE(view,\n'[13]M1a - Model inputs'!N188,\n'[13]M1b - Model inputs'!N188,\n'[13]SM1 - DECC Scenario 3 equiv'!N188,\n'[13]SM2 - DECC Scenario 1 equiv'!N188,\n'[13]SM3 - DECC Scenario 2 equiv'!N188,\n'[13]SM4 - DNO Scenario 4 equiv'!N188,\n'[14]M1a - Model inputs'!N188,\n'[14]M1b - Model inputs'!N188,\n'[14]SM1 - DECC Scenario 3 equiv'!N188,\n'[14]SM2 - DECC Scenario 1 equiv'!N188,\n'[14]SM3 - DECC Scenario 2 equiv'!N188,\n'[14]SM4 - DNO Scenario 4 equiv'!N188)","v":0},{"$f":"CHOOSE(view,\n'[13]M1a - Model inputs'!O188,\n'[13]M1b - Model inputs'!O188,\n'[13]SM1 - DECC Scenario 3 equiv'!O188,\n'[13]SM2 - DECC Scenario 1 equiv'!O188,\n'[13]SM3 - DECC Scenario 2 equiv'!O188,\n'[13]SM4 - DNO Scenario 4 equiv'!O188,\n'[14]M1a - Model inputs'!O188,\n'[14]M1b - Model inputs'!O188,\n'[14]SM1 - DECC Scenario 3 equiv'!O188,\n'[14]SM2 - DECC Scenario 1 equiv'!O188,\n'[14]SM3 - DECC Scenario 2 equiv'!O188,\n'[14]SM4 - DNO Scenario 4 equiv'!O188)","v":0},{"$f":"CHOOSE(view,\n'[13]M1a - Model inputs'!P188,\n'[13]M1b - Model inputs'!P188,\n'[13]SM1 - DECC Scenario 3 equiv'!P188,\n'[13]SM2 - DECC Scenario 1 equiv'!P188,\n'[13]SM3 - DECC Scenario 2 equiv'!P188,\n'[13]SM4 - DNO Scenario 4 equiv'!P188,\n'[14]M1a - Model inputs'!P188,\n'[14]M1b - Model inputs'!P188,\n'[14]SM1 - DECC Scenario 3 equiv'!P188,\n'[14]SM2 - DECC Scenario 1 equiv'!P188,\n'[14]SM3 - DECC Scenario 2 equiv'!P188,\n'[14]SM4 - DNO Scenario 4 equiv'!P188)","v":0},{"$f":"CHOOSE(view,\n'[13]M1a - Model inputs'!Q188,\n'[13]M1b - Model inputs'!Q188,\n'[13]SM1 - DECC Scenario 3 equiv'!Q188,\n'[13]SM2 - DECC Scenario 1 equiv'!Q188,\n'[13]SM3 - DECC Scenario 2 equiv'!Q188,\n'[13]SM4 - DNO Scenario 4 equiv'!Q188,\n'[14]M1a - Model inputs'!Q188,\n'[14]M1b - Model inputs'!Q188,\n'[14]SM1 - DECC Scenario 3 equiv'!Q188,\n'[14]SM2 - DECC Scenario 1 equiv'!Q188,\n'[14]SM3 - DECC Scenario 2 equiv'!Q188,\n'[14]SM4 - DNO Scenario 4 equiv'!Q188)","v":0},{"$f":"CHOOSE(view,\n'[13]M1a - Model inputs'!R188,\n'[13]M1b - Model inputs'!R188,\n'[13]SM1 - DECC Scenario 3 equiv'!R188,\n'[13]SM2 - DECC Scenario 1 equiv'!R188,\n'[13]SM3 - DECC Scenario 2 equiv'!R188,\n'[13]SM4 - DNO Scenario 4 equiv'!R188,\n'[14]M1a - Model inputs'!R188,\n'[14]M1b - Model inputs'!R188,\n'[14]SM1 - DECC Scenario 3 equiv'!R188,\n'[14]SM2 - DECC Scenario 1 equiv'!R188,\n'[14]SM3 - DECC Scenario 2 equiv'!R188,\n'[14]SM4 - DNO Scenario 4 equiv'!R188)","v":0},{"$f":"CHOOSE(view,\n'[13]M1a - Model inputs'!S188,\n'[13]M1b - Model inputs'!S188,\n'[13]SM1 - DECC Scenario 3 equiv'!S188,\n'[13]SM2 - DECC Scenario 1 equiv'!S188,\n'[13]SM3 - DECC Scenario 2 equiv'!S188,\n'[13]SM4 - DNO Scenario 4 equiv'!S188,\n'[14]M1a - Model inputs'!S188,\n'[14]M1b - Model inputs'!S188,\n'[14]SM1 - DECC Scenario 3 equiv'!S188,\n'[14]SM2 - DECC Scenario 1 equiv'!S188,\n'[14]SM3 - DECC Scenario 2 equiv'!S188,\n'[14]SM4 - DNO Scenario 4 equiv'!S188)","v":0}]
[null,null,null,null,{"$f":"Input!E120","v":"Allocation to non-load related capex - other"},null,"%",null,null,null,null,null,null,null,null,null,null,null,null,null,null,null,null,null,null,null,null,null,null,null,null,null,null,null,null,{"$f":"CHOOSE(view,\n'[13]M1a - Model inputs'!L189,\n'[13]M1b - Model inputs'!L189,\n'[13]SM1 - DECC Scenario 3 equiv'!L189,\n'[13]SM2 - DECC Scenario 1 equiv'!L189,\n'[13]SM3 - DECC Scenario 2 equiv'!L189,\n'[13]SM4 - DNO Scenario 4 equiv'!L189,\n'[14]M1a - Model inputs'!L189,\n'[14]M1b - Model inputs'!L189,\n'[14]SM1 - DECC Scenario 3 equiv'!L189,\n'[14]SM2 - DECC Scenario 1 equiv'!L189,\n'[14]SM3 - DECC Scenario 2 equiv'!L189,\n'[14]SM4 - DNO Scenario 4 equiv'!L189)","v":1},{"$f":"CHOOSE(view,\n'[13]M1a - Model inputs'!M189,\n'[13]M1b - Model inputs'!M189,\n'[13]SM1 - DECC Scenario 3 equiv'!M189,\n'[13]SM2 - DECC Scenario 1 equiv'!M189,\n'[13]SM3 - DECC Scenario 2 equiv'!M189,\n'[13]SM4 - DNO Scenario 4 equiv'!M189,\n'[14]M1a - Model inputs'!M189,\n'[14]M1b - Model inputs'!M189,\n'[14]SM1 - DECC Scenario 3 equiv'!M189,\n'[14]SM2 - DECC Scenario 1 equiv'!M189,\n'[14]SM3 - DECC Scenario 2 equiv'!M189,\n'[14]SM4 - DNO Scenario 4 equiv'!M189)","v":1},{"$f":"CHOOSE(view,\n'[13]M1a - Model inputs'!N189,\n'[13]M1b - Model inputs'!N189,\n'[13]SM1 - DECC Scenario 3 equiv'!N189,\n'[13]SM2 - DECC Scenario 1 equiv'!N189,\n'[13]SM3 - DECC Scenario 2 equiv'!N189,\n'[13]SM4 - DNO Scenario 4 equiv'!N189,\n'[14]M1a - Model inputs'!N189,\n'[14]M1b - Model inputs'!N189,\n'[14]SM1 - DECC Scenario 3 equiv'!N189,\n'[14]SM2 - DECC Scenario 1 equiv'!N189,\n'[14]SM3 - DECC Scenario 2 equiv'!N189,\n'[14]SM4 - DNO Scenario 4 equiv'!N189)","v":1},{"$f":"CHOOSE(view,\n'[13]M1a - Model inputs'!O189,\n'[13]M1b - Model inputs'!O189,\n'[13]SM1 - DECC Scenario 3 equiv'!O189,\n'[13]SM2 - DECC Scenario 1 equiv'!O189,\n'[13]SM3 - DECC Scenario 2 equiv'!O189,\n'[13]SM4 - DNO Scenario 4 equiv'!O189,\n'[14]M1a - Model inputs'!O189,\n'[14]M1b - Model inputs'!O189,\n'[14]SM1 - DECC Scenario 3 equiv'!O189,\n'[14]SM2 - DECC Scenario 1 equiv'!O189,\n'[14]SM3 - DECC Scenario 2 equiv'!O189,\n'[14]SM4 - DNO Scenario 4 equiv'!O189)","v":1},{"$f":"CHOOSE(view,\n'[13]M1a - Model inputs'!P189,\n'[13]M1b - Model inputs'!P189,\n'[13]SM1 - DECC Scenario 3 equiv'!P189,\n'[13]SM2 - DECC Scenario 1 equiv'!P189,\n'[13]SM3 - DECC Scenario 2 equiv'!P189,\n'[13]SM4 - DNO Scenario 4 equiv'!P189,\n'[14]M1a - Model inputs'!P189,\n'[14]M1b - Model inputs'!P189,\n'[14]SM1 - DECC Scenario 3 equiv'!P189,\n'[14]SM2 - DECC Scenario 1 equiv'!P189,\n'[14]SM3 - DECC Scenario 2 equiv'!P189,\n'[14]SM4 - DNO Scenario 4 equiv'!P189)","v":1},{"$f":"CHOOSE(view,\n'[13]M1a - Model inputs'!Q189,\n'[13]M1b - Model inputs'!Q189,\n'[13]SM1 - DECC Scenario 3 equiv'!Q189,\n'[13]SM2 - DECC Scenario 1 equiv'!Q189,\n'[13]SM3 - DECC Scenario 2 equiv'!Q189,\n'[13]SM4 - DNO Scenario 4 equiv'!Q189,\n'[14]M1a - Model inputs'!Q189,\n'[14]M1b - Model inputs'!Q189,\n'[14]SM1 - DECC Scenario 3 equiv'!Q189,\n'[14]SM2 - DECC Scenario 1 equiv'!Q189,\n'[14]SM3 - DECC Scenario 2 equiv'!Q189,\n'[14]SM4 - DNO Scenario 4 equiv'!Q189)","v":1},{"$f":"CHOOSE(view,\n'[13]M1a - Model inputs'!R189,\n'[13]M1b - Model inputs'!R189,\n'[13]SM1 - DECC Scenario 3 equiv'!R189,\n'[13]SM2 - DECC Scenario 1 equiv'!R189,\n'[13]SM3 - DECC Scenario 2 equiv'!R189,\n'[13]SM4 - DNO Scenario 4 equiv'!R189,\n'[14]M1a - Model inputs'!R189,\n'[14]M1b - Model inputs'!R189,\n'[14]SM1 - DECC Scenario 3 equiv'!R189,\n'[14]SM2 - DECC Scenario 1 equiv'!R189,\n'[14]SM3 - DECC Scenario 2 equiv'!R189,\n'[14]SM4 - DNO Scenario 4 equiv'!R189)","v":1},{"$f":"CHOOSE(view,\n'[13]M1a - Model inputs'!S189,\n'[13]M1b - Model inputs'!S189,\n'[13]SM1 - DECC Scenario 3 equiv'!S189,\n'[13]SM2 - DECC Scenario 1 equiv'!S189,\n'[13]SM3 - DECC Scenario 2 equiv'!S189,\n'[13]SM4 - DNO Scenario 4 equiv'!S189,\n'[14]M1a - Model inputs'!S189,\n'[14]M1b - Model inputs'!S189,\n'[14]SM1 - DECC Scenario 3 equiv'!S189,\n'[14]SM2 - DECC Scenario 1 equiv'!S189,\n'[14]SM3 - DECC Scenario 2 equiv'!S189,\n'[14]SM4 - DNO Scenario 4 equiv'!S189)","v":1}]
[null,null,null,null,{"$f":"Input!E121","v":"Allocation to faults"},null,"%",null,null,null,null,null,null,null,null,null,null,null,null,null,null,null,null,null,null,null,null,null,null,null,null,null,null,null,null,{"$f":"CHOOSE(view,\n'[13]M1a - Model inputs'!L190,\n'[13]M1b - Model inputs'!L190,\n'[13]SM1 - DECC Scenario 3 equiv'!L190,\n'[13]SM2 - DECC Scenario 1 equiv'!L190,\n'[13]SM3 - DECC Scenario 2 equiv'!L190,\n'[13]SM4 - DNO Scenario 4 equiv'!L190,\n'[14]M1a - Model inputs'!L190,\n'[14]M1b - Model inputs'!L190,\n'[14]SM1 - DECC Scenario 3 equiv'!L190,\n'[14]SM2 - DECC Scenario 1 equiv'!L190,\n'[14]SM3 - DECC Scenario 2 equiv'!L190,\n'[14]SM4 - DNO Scenario 4 equiv'!L190)","v":0},{"$f":"CHOOSE(view,\n'[13]M1a - Model inputs'!M190,\n'[13]M1b - Model inputs'!M190,\n'[13]SM1 - DECC Scenario 3 equiv'!M190,\n'[13]SM2 - DECC Scenario 1 equiv'!M190,\n'[13]SM3 - DECC Scenario 2 equiv'!M190,\n'[13]SM4 - DNO Scenario 4 equiv'!M190,\n'[14]M1a - Model inputs'!M190,\n'[14]M1b - Model inputs'!M190,\n'[14]SM1 - DECC Scenario 3 equiv'!M190,\n'[14]SM2 - DECC Scenario 1 equiv'!M190,\n'[14]SM3 - DECC Scenario 2 equiv'!M190,\n'[14]SM4 - DNO Scenario 4 equiv'!M190)","v":0},{"$f":"CHOOSE(view,\n'[13]M1a - Model inputs'!N190,\n'[13]M1b - Model inputs'!N190,\n'[13]SM1 - DECC Scenario 3 equiv'!N190,\n'[13]SM2 - DECC Scenario 1 equiv'!N190,\n'[13]SM3 - DECC Scenario 2 equiv'!N190,\n'[13]SM4 - DNO Scenario 4 equiv'!N190,\n'[14]M1a - Model inputs'!N190,\n'[14]M1b - Model inputs'!N190,\n'[14]SM1 - DECC Scenario 3 equiv'!N190,\n'[14]SM2 - DECC Scenario 1 equiv'!N190,\n'[14]SM3 - DECC Scenario 2 equiv'!N190,\n'[14]SM4 - DNO Scenario 4 equiv'!N190)","v":0},{"$f":"CHOOSE(view,\n'[13]M1a - Model inputs'!O190,\n'[13]M1b - Model inputs'!O190,\n'[13]SM1 - DECC Scenario 3 equiv'!O190,\n'[13]SM2 - DECC Scenario 1 equiv'!O190,\n'[13]SM3 - DECC Scenario 2 equiv'!O190,\n'[13]SM4 - DNO Scenario 4 equiv'!O190,\n'[14]M1a - Model inputs'!O190,\n'[14]M1b - Model inputs'!O190,\n'[14]SM1 - DECC Scenario 3 equiv'!O190,\n'[14]SM2 - DECC Scenario 1 equiv'!O190,\n'[14]SM3 - DECC Scenario 2 equiv'!O190,\n'[14]SM4 - DNO Scenario 4 equiv'!O190)","v":0},{"$f":"CHOOSE(view,\n'[13]M1a - Model inputs'!P190,\n'[13]M1b - Model inputs'!P190,\n'[13]SM1 - DECC Scenario 3 equiv'!P190,\n'[13]SM2 - DECC Scenario 1 equiv'!P190,\n'[13]SM3 - DECC Scenario 2 equiv'!P190,\n'[13]SM4 - DNO Scenario 4 equiv'!P190,\n'[14]M1a - Model inputs'!P190,\n'[14]M1b - Model inputs'!P190,\n'[14]SM1 - DECC Scenario 3 equiv'!P190,\n'[14]SM2 - DECC Scenario 1 equiv'!P190,\n'[14]SM3 - DECC Scenario 2 equiv'!P190,\n'[14]SM4 - DNO Scenario 4 equiv'!P190)","v":0},{"$f":"CHOOSE(view,\n'[13]M1a - Model inputs'!Q190,\n'[13]M1b - Model inputs'!Q190,\n'[13]SM1 - DECC Scenario 3 equiv'!Q190,\n'[13]SM2 - DECC Scenario 1 equiv'!Q190,\n'[13]SM3 - DECC Scenario 2 equiv'!Q190,\n'[13]SM4 - DNO Scenario 4 equiv'!Q190,\n'[14]M1a - Model inputs'!Q190,\n'[14]M1b - Model inputs'!Q190,\n'[14]SM1 - DECC Scenario 3 equiv'!Q190,\n'[14]SM2 - DECC Scenario 1 equiv'!Q190,\n'[14]SM3 - DECC Scenario 2 equiv'!Q190,\n'[14]SM4 - DNO Scenario 4 equiv'!Q190)","v":0},{"$f":"CHOOSE(view,\n'[13]M1a - Model inputs'!R190,\n'[13]M1b - Model inputs'!R190,\n'[13]SM1 - DECC Scenario 3 equiv'!R190,\n'[13]SM2 - DECC Scenario 1 equiv'!R190,\n'[13]SM3 - DECC Scenario 2 equiv'!R190,\n'[13]SM4 - DNO Scenario 4 equiv'!R190,\n'[14]M1a - Model inputs'!R190,\n'[14]M1b - Model inputs'!R190,\n'[14]SM1 - DECC Scenario 3 equiv'!R190,\n'[14]SM2 - DECC Scenario 1 equiv'!R190,\n'[14]SM3 - DECC Scenario 2 equiv'!R190,\n'[14]SM4 - DNO Scenario 4 equiv'!R190)","v":0},{"$f":"CHOOSE(view,\n'[13]M1a - Model inputs'!S190,\n'[13]M1b - Model inputs'!S190,\n'[13]SM1 - DECC Scenario 3 equiv'!S190,\n'[13]SM2 - DECC Scenario 1 equiv'!S190,\n'[13]SM3 - DECC Scenario 2 equiv'!S190,\n'[13]SM4 - DNO Scenario 4 equiv'!S190,\n'[14]M1a - Model inputs'!S190,\n'[14]M1b - Model inputs'!S190,\n'[14]SM1 - DECC Scenario 3 equiv'!S190,\n'[14]SM2 - DECC Scenario 1 equiv'!S190,\n'[14]SM3 - DECC Scenario 2 equiv'!S190,\n'[14]SM4 - DNO Scenario 4 equiv'!S190)","v":0}]
[null,null,null,null,{"$f":"Input!E122","v":"Allocation to tree cutting"},null,"%",null,null,null,null,null,null,null,null,null,null,null,null,null,null,null,null,null,null,null,null,null,null,null,null,null,null,null,null,{"$f":"CHOOSE(view,\n'[13]M1a - Model inputs'!L191,\n'[13]M1b - Model inputs'!L191,\n'[13]SM1 - DECC Scenario 3 equiv'!L191,\n'[13]SM2 - DECC Scenario 1 equiv'!L191,\n'[13]SM3 - DECC Scenario 2 equiv'!L191,\n'[13]SM4 - DNO Scenario 4 equiv'!L191,\n'[14]M1a - Model inputs'!L191,\n'[14]M1b - Model inputs'!L191,\n'[14]SM1 - DECC Scenario 3 equiv'!L191,\n'[14]SM2 - DECC Scenario 1 equiv'!L191,\n'[14]SM3 - DECC Scenario 2 equiv'!L191,\n'[14]SM4 - DNO Scenario 4 equiv'!L191)","v":0},{"$f":"CHOOSE(view,\n'[13]M1a - Model inputs'!M191,\n'[13]M1b - Model inputs'!M191,\n'[13]SM1 - DECC Scenario 3 equiv'!M191,\n'[13]SM2 - DECC Scenario 1 equiv'!M191,\n'[13]SM3 - DECC Scenario 2 equiv'!M191,\n'[13]SM4 - DNO Scenario 4 equiv'!M191,\n'[14]M1a - Model inputs'!M191,\n'[14]M1b - Model inputs'!M191,\n'[14]SM1 - DECC Scenario 3 equiv'!M191,\n'[14]SM2 - DECC Scenario 1 equiv'!M191,\n'[14]SM3 - DECC Scenario 2 equiv'!M191,\n'[14]SM4 - DNO Scenario 4 equiv'!M191)","v":0},{"$f":"CHOOSE(view,\n'[13]M1a - Model inputs'!N191,\n'[13]M1b - Model inputs'!N191,\n'[13]SM1 - DECC Scenario 3 equiv'!N191,\n'[13]SM2 - DECC Scenario 1 equiv'!N191,\n'[13]SM3 - DECC Scenario 2 equiv'!N191,\n'[13]SM4 - DNO Scenario 4 equiv'!N191,\n'[14]M1a - Model inputs'!N191,\n'[14]M1b - Model inputs'!N191,\n'[14]SM1 - DECC Scenario 3 equiv'!N191,\n'[14]SM2 - DECC Scenario 1 equiv'!N191,\n'[14]SM3 - DECC Scenario 2 equiv'!N191,\n'[14]SM4 - DNO Scenario 4 equiv'!N191)","v":0},{"$f":"CHOOSE(view,\n'[13]M1a - Model inputs'!O191,\n'[13]M1b - Model inputs'!O191,\n'[13]SM1 - DECC Scenario 3 equiv'!O191,\n'[13]SM2 - DECC Scenario 1 equiv'!O191,\n'[13]SM3 - DECC Scenario 2 equiv'!O191,\n'[13]SM4 - DNO Scenario 4 equiv'!O191,\n'[14]M1a - Model inputs'!O191,\n'[14]M1b - Model inputs'!O191,\n'[14]SM1 - DECC Scenario 3 equiv'!O191,\n'[14]SM2 - DECC Scenario 1 equiv'!O191,\n'[14]SM3 - DECC Scenario 2 equiv'!O191,\n'[14]SM4 - DNO Scenario 4 equiv'!O191)","v":0},{"$f":"CHOOSE(view,\n'[13]M1a - Model inputs'!P191,\n'[13]M1b - Model inputs'!P191,\n'[13]SM1 - DECC Scenario 3 equiv'!P191,\n'[13]SM2 - DECC Scenario 1 equiv'!P191,\n'[13]SM3 - DECC Scenario 2 equiv'!P191,\n'[13]SM4 - DNO Scenario 4 equiv'!P191,\n'[14]M1a - Model inputs'!P191,\n'[14]M1b - Model inputs'!P191,\n'[14]SM1 - DECC Scenario 3 equiv'!P191,\n'[14]SM2 - DECC Scenario 1 equiv'!P191,\n'[14]SM3 - DECC Scenario 2 equiv'!P191,\n'[14]SM4 - DNO Scenario 4 equiv'!P191)","v":0},{"$f":"CHOOSE(view,\n'[13]M1a - Model inputs'!Q191,\n'[13]M1b - Model inputs'!Q191,\n'[13]SM1 - DECC Scenario 3 equiv'!Q191,\n'[13]SM2 - DECC Scenario 1 equiv'!Q191,\n'[13]SM3 - DECC Scenario 2 equiv'!Q191,\n'[13]SM4 - DNO Scenario 4 equiv'!Q191,\n'[14]M1a - Model inputs'!Q191,\n'[14]M1b - Model inputs'!Q191,\n'[14]SM1 - DECC Scenario 3 equiv'!Q191,\n'[14]SM2 - DECC Scenario 1 equiv'!Q191,\n'[14]SM3 - DECC Scenario 2 equiv'!Q191,\n'[14]SM4 - DNO Scenario 4 equiv'!Q191)","v":0},{"$f":"CHOOSE(view,\n'[13]M1a - Model inputs'!R191,\n'[13]M1b - Model inputs'!R191,\n'[13]SM1 - DECC Scenario 3 equiv'!R191,\n'[13]SM2 - DECC Scenario 1 equiv'!R191,\n'[13]SM3 - DECC Scenario 2 equiv'!R191,\n'[13]SM4 - DNO Scenario 4 equiv'!R191,\n'[14]M1a - Model inputs'!R191,\n'[14]M1b - Model inputs'!R191,\n'[14]SM1 - DECC Scenario 3 equiv'!R191,\n'[14]SM2 - DECC Scenario 1 equiv'!R191,\n'[14]SM3 - DECC Scenario 2 equiv'!R191,\n'[14]SM4 - DNO Scenario 4 equiv'!R191)","v":0},{"$f":"CHOOSE(view,\n'[13]M1a - Model inputs'!S191,\n'[13]M1b - Model inputs'!S191,\n'[13]SM1 - DECC Scenario 3 equiv'!S191,\n'[13]SM2 - DECC Scenario 1 equiv'!S191,\n'[13]SM3 - DECC Scenario 2 equiv'!S191,\n'[13]SM4 - DNO Scenario 4 equiv'!S191,\n'[14]M1a - Model inputs'!S191,\n'[14]M1b - Model inputs'!S191,\n'[14]SM1 - DECC Scenario 3 equiv'!S191,\n'[14]SM2 - DECC Scenario 1 equiv'!S191,\n'[14]SM3 - DECC Scenario 2 equiv'!S191,\n'[14]SM4 - DNO Scenario 4 equiv'!S191)","v":0}]
[null,null,null,null,{"$f":"Input!E123","v":"Allocation to controllable opex"},null,"%",null,null,null,null,null,null,null,null,null,null,null,null,null,null,null,null,null,null,null,null,null,null,null,null,null,null,null,null,{"$f":"CHOOSE(view,\n'[13]M1a - Model inputs'!L192,\n'[13]M1b - Model inputs'!L192,\n'[13]SM1 - DECC Scenario 3 equiv'!L192,\n'[13]SM2 - DECC Scenario 1 equiv'!L192,\n'[13]SM3 - DECC Scenario 2 equiv'!L192,\n'[13]SM4 - DNO Scenario 4 equiv'!L192,\n'[14]M1a - Model inputs'!L192,\n'[14]M1b - Model inputs'!L192,\n'[14]SM1 - DECC Scenario 3 equiv'!L192,\n'[14]SM2 - DECC Scenario 1 equiv'!L192,\n'[14]SM3 - DECC Scenario 2 equiv'!L192,\n'[14]SM4 - DNO Scenario 4 equiv'!L192)","v":0},{"$f":"CHOOSE(view,\n'[13]M1a - Model inputs'!M192,\n'[13]M1b - Model inputs'!M192,\n'[13]SM1 - DECC Scenario 3 equiv'!M192,\n'[13]SM2 - DECC Scenario 1 equiv'!M192,\n'[13]SM3 - DECC Scenario 2 equiv'!M192,\n'[13]SM4 - DNO Scenario 4 equiv'!M192,\n'[14]M1a - Model inputs'!M192,\n'[14]M1b - Model inputs'!M192,\n'[14]SM1 - DECC Scenario 3 equiv'!M192,\n'[14]SM2 - DECC Scenario 1 equiv'!M192,\n'[14]SM3 - DECC Scenario 2 equiv'!M192,\n'[14]SM4 - DNO Scenario 4 equiv'!M192)","v":0},{"$f":"CHOOSE(view,\n'[13]M1a - Model inputs'!N192,\n'[13]M1b - Model inputs'!N192,\n'[13]SM1 - DECC Scenario 3 equiv'!N192,\n'[13]SM2 - DECC Scenario 1 equiv'!N192,\n'[13]SM3 - DECC Scenario 2 equiv'!N192,\n'[13]SM4 - DNO Scenario 4 equiv'!N192,\n'[14]M1a - Model inputs'!N192,\n'[14]M1b - Model inputs'!N192,\n'[14]SM1 - DECC Scenario 3 equiv'!N192,\n'[14]SM2 - DECC Scenario 1 equiv'!N192,\n'[14]SM3 - DECC Scenario 2 equiv'!N192,\n'[14]SM4 - DNO Scenario 4 equiv'!N192)","v":0},{"$f":"CHOOSE(view,\n'[13]M1a - Model inputs'!O192,\n'[13]M1b - Model inputs'!O192,\n'[13]SM1 - DECC Scenario 3 equiv'!O192,\n'[13]SM2 - DECC Scenario 1 equiv'!O192,\n'[13]SM3 - DECC Scenario 2 equiv'!O192,\n'[13]SM4 - DNO Scenario 4 equiv'!O192,\n'[14]M1a - Model inputs'!O192,\n'[14]M1b - Model inputs'!O192,\n'[14]SM1 - DECC Scenario 3 equiv'!O192,\n'[14]SM2 - DECC Scenario 1 equiv'!O192,\n'[14]SM3 - DECC Scenario 2 equiv'!O192,\n'[14]SM4 - DNO Scenario 4 equiv'!O192)","v":0},{"$f":"CHOOSE(view,\n'[13]M1a - Model inputs'!P192,\n'[13]M1b - Model inputs'!P192,\n'[13]SM1 - DECC Scenario 3 equiv'!P192,\n'[13]SM2 - DECC Scenario 1 equiv'!P192,\n'[13]SM3 - DECC Scenario 2 equiv'!P192,\n'[13]SM4 - DNO Scenario 4 equiv'!P192,\n'[14]M1a - Model inputs'!P192,\n'[14]M1b - Model inputs'!P192,\n'[14]SM1 - DECC Scenario 3 equiv'!P192,\n'[14]SM2 - DECC Scenario 1 equiv'!P192,\n'[14]SM3 - DECC Scenario 2 equiv'!P192,\n'[14]SM4 - DNO Scenario 4 equiv'!P192)","v":0},{"$f":"CHOOSE(view,\n'[13]M1a - Model inputs'!Q192,\n'[13]M1b - Model inputs'!Q192,\n'[13]SM1 - DECC Scenario 3 equiv'!Q192,\n'[13]SM2 - DECC Scenario 1 equiv'!Q192,\n'[13]SM3 - DECC Scenario 2 equiv'!Q192,\n'[13]SM4 - DNO Scenario 4 equiv'!Q192,\n'[14]M1a - Model inputs'!Q192,\n'[14]M1b - Model inputs'!Q192,\n'[14]SM1 - DECC Scenario 3 equiv'!Q192,\n'[14]SM2 - DECC Scenario 1 equiv'!Q192,\n'[14]SM3 - DECC Scenario 2 equiv'!Q192,\n'[14]SM4 - DNO Scenario 4 equiv'!Q192)","v":0},{"$f":"CHOOSE(view,\n'[13]M1a - Model inputs'!R192,\n'[13]M1b - Model inputs'!R192,\n'[13]SM1 - DECC Scenario 3 equiv'!R192,\n'[13]SM2 - DECC Scenario 1 equiv'!R192,\n'[13]SM3 - DECC Scenario 2 equiv'!R192,\n'[13]SM4 - DNO Scenario 4 equiv'!R192,\n'[14]M1a - Model inputs'!R192,\n'[14]M1b - Model inputs'!R192,\n'[14]SM1 - DECC Scenario 3 equiv'!R192,\n'[14]SM2 - DECC Scenario 1 equiv'!R192,\n'[14]SM3 - DECC Scenario 2 equiv'!R192,\n'[14]SM4 - DNO Scenario 4 equiv'!R192)","v":0},{"$f":"CHOOSE(view,\n'[13]M1a - Model inputs'!S192,\n'[13]M1b - Model inputs'!S192,\n'[13]SM1 - DECC Scenario 3 equiv'!S192,\n'[13]SM2 - DECC Scenario 1 equiv'!S192,\n'[13]SM3 - DECC Scenario 2 equiv'!S192,\n'[13]SM4 - DNO Scenario 4 equiv'!S192,\n'[14]M1a - Model inputs'!S192,\n'[14]M1b - Model inputs'!S192,\n'[14]SM1 - DECC Scenario 3 equiv'!S192,\n'[14]SM2 - DECC Scenario 1 equiv'!S192,\n'[14]SM3 - DECC Scenario 2 equiv'!S192,\n'[14]SM4 - DNO Scenario 4 equiv'!S192)","v":0}]
[]
[null,null,null,null,{"$f":"Input!E125","v":"Allowed uncertain costs (Worst served customers)"},null,"£m 12/13 prices",null,null,null,null,null,null,null,null,null,null,null,null,null,null,null,null,null,null,null,null,null,null,null,null,null,null,null,null,{"$f":"AJ21","v":0},{"$f":"AK21","v":0.51206163761697998},0.51118699058967243,0,0,0,0,0]
[null,null,null,null,{"$f":"Input!E126","v":"Allocation to load related capex"},null,"%",null,null,null,null,null,null,null,null,null,null,null,null,null,null,null,null,null,null,null,null,null,null,null,null,null,null,null,null,{"$f":"CHOOSE(view,\n'[13]M1a - Model inputs'!L195,\n'[13]M1b - Model inputs'!L195,\n'[13]SM1 - DECC Scenario 3 equiv'!L195,\n'[13]SM2 - DECC Scenario 1 equiv'!L195,\n'[13]SM3 - DECC Scenario 2 equiv'!L195,\n'[13]SM4 - DNO Scenario 4 equiv'!L195,\n'[14]M1a - Model inputs'!L195,\n'[14]M1b - Model inputs'!L195,\n'[14]SM1 - DECC Scenario 3 equiv'!L195,\n'[14]SM2 - DECC Scenario 1 equiv'!L195,\n'[14]SM3 - DECC Scenario 2 equiv'!L195,\n'[14]SM4 - DNO Scenario 4 equiv'!L195)","v":0},{"$f":"CHOOSE(view,\n'[13]M1a - Model inputs'!M195,\n'[13]M1b - Model inputs'!M195,\n'[13]SM1 - DECC Scenario 3 equiv'!M195,\n'[13]SM2 - DECC Scenario 1 equiv'!M195,\n'[13]SM3 - DECC Scenario 2 equiv'!M195,\n'[13]SM4 - DNO Scenario 4 equiv'!M195,\n'[14]M1a - Model inputs'!M195,\n'[14]M1b - Model inputs'!M195,\n'[14]SM1 - DECC Scenario 3 equiv'!M195,\n'[14]SM2 - DECC Scenario 1 equiv'!M195,\n'[14]SM3 - DECC Scenario 2 equiv'!M195,\n'[14]SM4 - DNO Scenario 4 equiv'!M195)","v":0},{"$f":"CHOOSE(view,\n'[13]M1a - Model inputs'!N195,\n'[13]M1b - Model inputs'!N195,\n'[13]SM1 - DECC Scenario 3 equiv'!N195,\n'[13]SM2 - DECC Scenario 1 equiv'!N195,\n'[13]SM3 - DECC Scenario 2 equiv'!N195,\n'[13]SM4 - DNO Scenario 4 equiv'!N195,\n'[14]M1a - Model inputs'!N195,\n'[14]M1b - Model inputs'!N195,\n'[14]SM1 - DECC Scenario 3 equiv'!N195,\n'[14]SM2 - DECC Scenario 1 equiv'!N195,\n'[14]SM3 - DECC Scenario 2 equiv'!N195,\n'[14]SM4 - DNO Scenario 4 equiv'!N195)","v":0},{"$f":"CHOOSE(view,\n'[13]M1a - Model inputs'!O195,\n'[13]M1b - Model inputs'!O195,\n'[13]SM1 - DECC Scenario 3 equiv'!O195,\n'[13]SM2 - DECC Scenario 1 equiv'!O195,\n'[13]SM3 - DECC Scenario 2 equiv'!O195,\n'[13]SM4 - DNO Scenario 4 equiv'!O195,\n'[14]M1a - Model inputs'!O195,\n'[14]M1b - Model inputs'!O195,\n'[14]SM1 - DECC Scenario 3 equiv'!O195,\n'[14]SM2 - DECC Scenario 1 equiv'!O195,\n'[14]SM3 - DECC Scenario 2 equiv'!O195,\n'[14]SM4 - DNO Scenario 4 equiv'!O195)","v":0},{"$f":"CHOOSE(view,\n'[13]M1a - Model inputs'!P195,\n'[13]M1b - Model inputs'!P195,\n'[13]SM1 - DECC Scenario 3 equiv'!P195,\n'[13]SM2 - DECC Scenario 1 equiv'!P195,\n'[13]SM3 - DECC Scenario 2 equiv'!P195,\n'[13]SM4 - DNO Scenario 4 equiv'!P195,\n'[14]M1a - Model inputs'!P195,\n'[14]M1b - Model inputs'!P195,\n'[14]SM1 - DECC Scenario 3 equiv'!P195,\n'[14]SM2 - DECC Scenario 1 equiv'!P195,\n'[14]SM3 - DECC Scenario 2 equiv'!P195,\n'[14]SM4 - DNO Scenario 4 equiv'!P195)","v":0},{"$f":"CHOOSE(view,\n'[13]M1a - Model inputs'!Q195,\n'[13]M1b - Model inputs'!Q195,\n'[13]SM1 - DECC Scenario 3 equiv'!Q195,\n'[13]SM2 - DECC Scenario 1 equiv'!Q195,\n'[13]SM3 - DECC Scenario 2 equiv'!Q195,\n'[13]SM4 - DNO Scenario 4 equiv'!Q195,\n'[14]M1a - Model inputs'!Q195,\n'[14]M1b - Model inputs'!Q195,\n'[14]SM1 - DECC Scenario 3 equiv'!Q195,\n'[14]SM2 - DECC Scenario 1 equiv'!Q195,\n'[14]SM3 - DECC Scenario 2 equiv'!Q195,\n'[14]SM4 - DNO Scenario 4 equiv'!Q195)","v":0},{"$f":"CHOOSE(view,\n'[13]M1a - Model inputs'!R195,\n'[13]M1b - Model inputs'!R195,\n'[13]SM1 - DECC Scenario 3 equiv'!R195,\n'[13]SM2 - DECC Scenario 1 equiv'!R195,\n'[13]SM3 - DECC Scenario 2 equiv'!R195,\n'[13]SM4 - DNO Scenario 4 equiv'!R195,\n'[14]M1a - Model inputs'!R195,\n'[14]M1b - Model inputs'!R195,\n'[14]SM1 - DECC Scenario 3 equiv'!R195,\n'[14]SM2 - DECC Scenario 1 equiv'!R195,\n'[14]SM3 - DECC Scenario 2 equiv'!R195,\n'[14]SM4 - DNO Scenario 4 equiv'!R195)","v":0},{"$f":"CHOOSE(view,\n'[13]M1a - Model inputs'!S195,\n'[13]M1b - Model inputs'!S195,\n'[13]SM1 - DECC Scenario 3 equiv'!S195,\n'[13]SM2 - DECC Scenario 1 equiv'!S195,\n'[13]SM3 - DECC Scenario 2 equiv'!S195,\n'[13]SM4 - DNO Scenario 4 equiv'!S195,\n'[14]M1a - Model inputs'!S195,\n'[14]M1b - Model inputs'!S195,\n'[14]SM1 - DECC Scenario 3 equiv'!S195,\n'[14]SM2 - DECC Scenario 1 equiv'!S195,\n'[14]SM3 - DECC Scenario 2 equiv'!S195,\n'[14]SM4 - DNO Scenario 4 equiv'!S195)","v":0}]
[null,null,null,null,{"$f":"Input!E127","v":"Allocation to non-load related capex - asset replacement"},null,"%",null,null,null,null,null,null,null,null,null,null,null,null,null,null,null,null,null,null,null,null,null,null,null,null,null,null,null,null,{"$f":"CHOOSE(view,\n'[13]M1a - Model inputs'!L196,\n'[13]M1b - Model inputs'!L196,\n'[13]SM1 - DECC Scenario 3 equiv'!L196,\n'[13]SM2 - DECC Scenario 1 equiv'!L196,\n'[13]SM3 - DECC Scenario 2 equiv'!L196,\n'[13]SM4 - DNO Scenario 4 equiv'!L196,\n'[14]M1a - Model inputs'!L196,\n'[14]M1b - Model inputs'!L196,\n'[14]SM1 - DECC Scenario 3 equiv'!L196,\n'[14]SM2 - DECC Scenario 1 equiv'!L196,\n'[14]SM3 - DECC Scenario 2 equiv'!L196,\n'[14]SM4 - DNO Scenario 4 equiv'!L196)","v":1},{"$f":"CHOOSE(view,\n'[13]M1a - Model inputs'!M196,\n'[13]M1b - Model inputs'!M196,\n'[13]SM1 - DECC Scenario 3 equiv'!M196,\n'[13]SM2 - DECC Scenario 1 equiv'!M196,\n'[13]SM3 - DECC Scenario 2 equiv'!M196,\n'[13]SM4 - DNO Scenario 4 equiv'!M196,\n'[14]M1a - Model inputs'!M196,\n'[14]M1b - Model inputs'!M196,\n'[14]SM1 - DECC Scenario 3 equiv'!M196,\n'[14]SM2 - DECC Scenario 1 equiv'!M196,\n'[14]SM3 - DECC Scenario 2 equiv'!M196,\n'[14]SM4 - DNO Scenario 4 equiv'!M196)","v":1},{"$f":"CHOOSE(view,\n'[13]M1a - Model inputs'!N196,\n'[13]M1b - Model inputs'!N196,\n'[13]SM1 - DECC Scenario 3 equiv'!N196,\n'[13]SM2 - DECC Scenario 1 equiv'!N196,\n'[13]SM3 - DECC Scenario 2 equiv'!N196,\n'[13]SM4 - DNO Scenario 4 equiv'!N196,\n'[14]M1a - Model inputs'!N196,\n'[14]M1b - Model inputs'!N196,\n'[14]SM1 - DECC Scenario 3 equiv'!N196,\n'[14]SM2 - DECC Scenario 1 equiv'!N196,\n'[14]SM3 - DECC Scenario 2 equiv'!N196,\n'[14]SM4 - DNO Scenario 4 equiv'!N196)","v":1},{"$f":"CHOOSE(view,\n'[13]M1a - Model inputs'!O196,\n'[13]M1b - Model inputs'!O196,\n'[13]SM1 - DECC Scenario 3 equiv'!O196,\n'[13]SM2 - DECC Scenario 1 equiv'!O196,\n'[13]SM3 - DECC Scenario 2 equiv'!O196,\n'[13]SM4 - DNO Scenario 4 equiv'!O196,\n'[14]M1a - Model inputs'!O196,\n'[14]M1b - Model inputs'!O196,\n'[14]SM1 - DECC Scenario 3 equiv'!O196,\n'[14]SM2 - DECC Scenario 1 equiv'!O196,\n'[14]SM3 - DECC Scenario 2 equiv'!O196,\n'[14]SM4 - DNO Scenario 4 equiv'!O196)","v":1},{"$f":"CHOOSE(view,\n'[13]M1a - Model inputs'!P196,\n'[13]M1b - Model inputs'!P196,\n'[13]SM1 - DECC Scenario 3 equiv'!P196,\n'[13]SM2 - DECC Scenario 1 equiv'!P196,\n'[13]SM3 - DECC Scenario 2 equiv'!P196,\n'[13]SM4 - DNO Scenario 4 equiv'!P196,\n'[14]M1a - Model inputs'!P196,\n'[14]M1b - Model inputs'!P196,\n'[14]SM1 - DECC Scenario 3 equiv'!P196,\n'[14]SM2 - DECC Scenario 1 equiv'!P196,\n'[14]SM3 - DECC Scenario 2 equiv'!P196,\n'[14]SM4 - DNO Scenario 4 equiv'!P196)","v":1},{"$f":"CHOOSE(view,\n'[13]M1a - Model inputs'!Q196,\n'[13]M1b - Model inputs'!Q196,\n'[13]SM1 - DECC Scenario 3 equiv'!Q196,\n'[13]SM2 - DECC Scenario 1 equiv'!Q196,\n'[13]SM3 - DECC Scenario 2 equiv'!Q196,\n'[13]SM4 - DNO Scenario 4 equiv'!Q196,\n'[14]M1a - Model inputs'!Q196,\n'[14]M1b - Model inputs'!Q196,\n'[14]SM1 - DECC Scenario 3 equiv'!Q196,\n'[14]SM2 - DECC Scenario 1 equiv'!Q196,\n'[14]SM3 - DECC Scenario 2 equiv'!Q196,\n'[14]SM4 - DNO Scenario 4 equiv'!Q196)","v":1},{"$f":"CHOOSE(view,\n'[13]M1a - Model inputs'!R196,\n'[13]M1b - Model inputs'!R196,\n'[13]SM1 - DECC Scenario 3 equiv'!R196,\n'[13]SM2 - DECC Scenario 1 equiv'!R196,\n'[13]SM3 - DECC Scenario 2 equiv'!R196,\n'[13]SM4 - DNO Scenario 4 equiv'!R196,\n'[14]M1a - Model inputs'!R196,\n'[14]M1b - Model inputs'!R196,\n'[14]SM1 - DECC Scenario 3 equiv'!R196,\n'[14]SM2 - DECC Scenario 1 equiv'!R196,\n'[14]SM3 - DECC Scenario 2 equiv'!R196,\n'[14]SM4 - DNO Scenario 4 equiv'!R196)","v":1},{"$f":"CHOOSE(view,\n'[13]M1a - Model inputs'!S196,\n'[13]M1b - Model inputs'!S196,\n'[13]SM1 - DECC Scenario 3 equiv'!S196,\n'[13]SM2 - DECC Scenario 1 equiv'!S196,\n'[13]SM3 - DECC Scenario 2 equiv'!S196,\n'[13]SM4 - DNO Scenario 4 equiv'!S196,\n'[14]M1a - Model inputs'!S196,\n'[14]M1b - Model inputs'!S196,\n'[14]SM1 - DECC Scenario 3 equiv'!S196,\n'[14]SM2 - DECC Scenario 1 equiv'!S196,\n'[14]SM3 - DECC Scenario 2 equiv'!S196,\n'[14]SM4 - DNO Scenario 4 equiv'!S196)","v":1}]
[null,null,null,null,{"$f":"Input!E128","v":"Allocation to non-load related capex - other"},null,"%",null,null,null,null,null,null,null,null,null,null,null,null,null,null,null,null,null,null,null,null,null,null,null,null,null,null,null,null,{"$f":"CHOOSE(view,\n'[13]M1a - Model inputs'!L197,\n'[13]M1b - Model inputs'!L197,\n'[13]SM1 - DECC Scenario 3 equiv'!L197,\n'[13]SM2 - DECC Scenario 1 equiv'!L197,\n'[13]SM3 - DECC Scenario 2 equiv'!L197,\n'[13]SM4 - DNO Scenario 4 equiv'!L197,\n'[14]M1a - Model inputs'!L197,\n'[14]M1b - Model inputs'!L197,\n'[14]SM1 - DECC Scenario 3 equiv'!L197,\n'[14]SM2 - DECC Scenario 1 equiv'!L197,\n'[14]SM3 - DECC Scenario 2 equiv'!L197,\n'[14]SM4 - DNO Scenario 4 equiv'!L197)","v":0},{"$f":"CHOOSE(view,\n'[13]M1a - Model inputs'!M197,\n'[13]M1b - Model inputs'!M197,\n'[13]SM1 - DECC Scenario 3 equiv'!M197,\n'[13]SM2 - DECC Scenario 1 equiv'!M197,\n'[13]SM3 - DECC Scenario 2 equiv'!M197,\n'[13]SM4 - DNO Scenario 4 equiv'!M197,\n'[14]M1a - Model inputs'!M197,\n'[14]M1b - Model inputs'!M197,\n'[14]SM1 - DECC Scenario 3 equiv'!M197,\n'[14]SM2 - DECC Scenario 1 equiv'!M197,\n'[14]SM3 - DECC Scenario 2 equiv'!M197,\n'[14]SM4 - DNO Scenario 4 equiv'!M197)","v":0},{"$f":"CHOOSE(view,\n'[13]M1a - Model inputs'!N197,\n'[13]M1b - Model inputs'!N197,\n'[13]SM1 - DECC Scenario 3 equiv'!N197,\n'[13]SM2 - DECC Scenario 1 equiv'!N197,\n'[13]SM3 - DECC Scenario 2 equiv'!N197,\n'[13]SM4 - DNO Scenario 4 equiv'!N197,\n'[14]M1a - Model inputs'!N197,\n'[14]M1b - Model inputs'!N197,\n'[14]SM1 - DECC Scenario 3 equiv'!N197,\n'[14]SM2 - DECC Scenario 1 equiv'!N197,\n'[14]SM3 - DECC Scenario 2 equiv'!N197,\n'[14]SM4 - DNO Scenario 4 equiv'!N197)","v":0},{"$f":"CHOOSE(view,\n'[13]M1a - Model inputs'!O197,\n'[13]M1b - Model inputs'!O197,\n'[13]SM1 - DECC Scenario 3 equiv'!O197,\n'[13]SM2 - DECC Scenario 1 equiv'!O197,\n'[13]SM3 - DECC Scenario 2 equiv'!O197,\n'[13]SM4 - DNO Scenario 4 equiv'!O197,\n'[14]M1a - Model inputs'!O197,\n'[14]M1b - Model inputs'!O197,\n'[14]SM1 - DECC Scenario 3 equiv'!O197,\n'[14]SM2 - DECC Scenario 1 equiv'!O197,\n'[14]SM3 - DECC Scenario 2 equiv'!O197,\n'[14]SM4 - DNO Scenario 4 equiv'!O197)","v":0},{"$f":"CHOOSE(view,\n'[13]M1a - Model inputs'!P197,\n'[13]M1b - Model inputs'!P197,\n'[13]SM1 - DECC Scenario 3 equiv'!P197,\n'[13]SM2 - DECC Scenario 1 equiv'!P197,\n'[13]SM3 - DECC Scenario 2 equiv'!P197,\n'[13]SM4 - DNO Scenario 4 equiv'!P197,\n'[14]M1a - Model inputs'!P197,\n'[14]M1b - Model inputs'!P197,\n'[14]SM1 - DECC Scenario 3 equiv'!P197,\n'[14]SM2 - DECC Scenario 1 equiv'!P197,\n'[14]SM3 - DECC Scenario 2 equiv'!P197,\n'[14]SM4 - DNO Scenario 4 equiv'!P197)","v":0},{"$f":"CHOOSE(view,\n'[13]M1a - Model inputs'!Q197,\n'[13]M1b - Model inputs'!Q197,\n'[13]SM1 - DECC Scenario 3 equiv'!Q197,\n'[13]SM2 - DECC Scenario 1 equiv'!Q197,\n'[13]SM3 - DECC Scenario 2 equiv'!Q197,\n'[13]SM4 - DNO Scenario 4 equiv'!Q197,\n'[14]M1a - Model inputs'!Q197,\n'[14]M1b - Model inputs'!Q197,\n'[14]SM1 - DECC Scenario 3 equiv'!Q197,\n'[14]SM2 - DECC Scenario 1 equiv'!Q197,\n'[14]SM3 - DECC Scenario 2 equiv'!Q197,\n'[14]SM4 - DNO Scenario 4 equiv'!Q197)","v":0},{"$f":"CHOOSE(view,\n'[13]M1a - Model inputs'!R197,\n'[13]M1b - Model inputs'!R197,\n'[13]SM1 - DECC Scenario 3 equiv'!R197,\n'[13]SM2 - DECC Scenario 1 equiv'!R197,\n'[13]SM3 - DECC Scenario 2 equiv'!R197,\n'[13]SM4 - DNO Scenario 4 equiv'!R197,\n'[14]M1a - Model inputs'!R197,\n'[14]M1b - Model inputs'!R197,\n'[14]SM1 - DECC Scenario 3 equiv'!R197,\n'[14]SM2 - DECC Scenario 1 equiv'!R197,\n'[14]SM3 - DECC Scenario 2 equiv'!R197,\n'[14]SM4 - DNO Scenario 4 equiv'!R197)","v":0},{"$f":"CHOOSE(view,\n'[13]M1a - Model inputs'!S197,\n'[13]M1b - Model inputs'!S197,\n'[13]SM1 - DECC Scenario 3 equiv'!S197,\n'[13]SM2 - DECC Scenario 1 equiv'!S197,\n'[13]SM3 - DECC Scenario 2 equiv'!S197,\n'[13]SM4 - DNO Scenario 4 equiv'!S197,\n'[14]M1a - Model inputs'!S197,\n'[14]M1b - Model inputs'!S197,\n'[14]SM1 - DECC Scenario 3 equiv'!S197,\n'[14]SM2 - DECC Scenario 1 equiv'!S197,\n'[14]SM3 - DECC Scenario 2 equiv'!S197,\n'[14]SM4 - DNO Scenario 4 equiv'!S197)","v":0}]
[null,null,null,null,{"$f":"Input!E129","v":"Allocation to faults"},null,"%",null,null,null,null,null,null,null,null,null,null,null,null,null,null,null,null,null,null,null,null,null,null,null,null,null,null,null,null,{"$f":"CHOOSE(view,\n'[13]M1a - Model inputs'!L198,\n'[13]M1b - Model inputs'!L198,\n'[13]SM1 - DECC Scenario 3 equiv'!L198,\n'[13]SM2 - DECC Scenario 1 equiv'!L198,\n'[13]SM3 - DECC Scenario 2 equiv'!L198,\n'[13]SM4 - DNO Scenario 4 equiv'!L198,\n'[14]M1a - Model inputs'!L198,\n'[14]M1b - Model inputs'!L198,\n'[14]SM1 - DECC Scenario 3 equiv'!L198,\n'[14]SM2 - DECC Scenario 1 equiv'!L198,\n'[14]SM3 - DECC Scenario 2 equiv'!L198,\n'[14]SM4 - DNO Scenario 4 equiv'!L198)","v":0},{"$f":"CHOOSE(view,\n'[13]M1a - Model inputs'!M198,\n'[13]M1b - Model inputs'!M198,\n'[13]SM1 - DECC Scenario 3 equiv'!M198,\n'[13]SM2 - DECC Scenario 1 equiv'!M198,\n'[13]SM3 - DECC Scenario 2 equiv'!M198,\n'[13]SM4 - DNO Scenario 4 equiv'!M198,\n'[14]M1a - Model inputs'!M198,\n'[14]M1b - Model inputs'!M198,\n'[14]SM1 - DECC Scenario 3 equiv'!M198,\n'[14]SM2 - DECC Scenario 1 equiv'!M198,\n'[14]SM3 - DECC Scenario 2 equiv'!M198,\n'[14]SM4 - DNO Scenario 4 equiv'!M198)","v":0},{"$f":"CHOOSE(view,\n'[13]M1a - Model inputs'!N198,\n'[13]M1b - Model inputs'!N198,\n'[13]SM1 - DECC Scenario 3 equiv'!N198,\n'[13]SM2 - DECC Scenario 1 equiv'!N198,\n'[13]SM3 - DECC Scenario 2 equiv'!N198,\n'[13]SM4 - DNO Scenario 4 equiv'!N198,\n'[14]M1a - Model inputs'!N198,\n'[14]M1b - Model inputs'!N198,\n'[14]SM1 - DECC Scenario 3 equiv'!N198,\n'[14]SM2 - DECC Scenario 1 equiv'!N198,\n'[14]SM3 - DECC Scenario 2 equiv'!N198,\n'[14]SM4 - DNO Scenario 4 equiv'!N198)","v":0},{"$f":"CHOOSE(view,\n'[13]M1a - Model inputs'!O198,\n'[13]M1b - Model inputs'!O198,\n'[13]SM1 - DECC Scenario 3 equiv'!O198,\n'[13]SM2 - DECC Scenario 1 equiv'!O198,\n'[13]SM3 - DECC Scenario 2 equiv'!O198,\n'[13]SM4 - DNO Scenario 4 equiv'!O198,\n'[14]M1a - Model inputs'!O198,\n'[14]M1b - Model inputs'!O198,\n'[14]SM1 - DECC Scenario 3 equiv'!O198,\n'[14]SM2 - DECC Scenario 1 equiv'!O198,\n'[14]SM3 - DECC Scenario 2 equiv'!O198,\n'[14]SM4 - DNO Scenario 4 equiv'!O198)","v":0},{"$f":"CHOOSE(view,\n'[13]M1a - Model inputs'!P198,\n'[13]M1b - Model inputs'!P198,\n'[13]SM1 - DECC Scenario 3 equiv'!P198,\n'[13]SM2 - DECC Scenario 1 equiv'!P198,\n'[13]SM3 - DECC Scenario 2 equiv'!P198,\n'[13]SM4 - DNO Scenario 4 equiv'!P198,\n'[14]M1a - Model inputs'!P198,\n'[14]M1b - Model inputs'!P198,\n'[14]SM1 - DECC Scenario 3 equiv'!P198,\n'[14]SM2 - DECC Scenario 1 equiv'!P198,\n'[14]SM3 - DECC Scenario 2 equiv'!P198,\n'[14]SM4 - DNO Scenario 4 equiv'!P198)","v":0},{"$f":"CHOOSE(view,\n'[13]M1a - Model inputs'!Q198,\n'[13]M1b - Model inputs'!Q198,\n'[13]SM1 - DECC Scenario 3 equiv'!Q198,\n'[13]SM2 - DECC Scenario 1 equiv'!Q198,\n'[13]SM3 - DECC Scenario 2 equiv'!Q198,\n'[13]SM4 - DNO Scenario 4 equiv'!Q198,\n'[14]M1a - Model inputs'!Q198,\n'[14]M1b - Model inputs'!Q198,\n'[14]SM1 - DECC Scenario 3 equiv'!Q198,\n'[14]SM2 - DECC Scenario 1 equiv'!Q198,\n'[14]SM3 - DECC Scenario 2 equiv'!Q198,\n'[14]SM4 - DNO Scenario 4 equiv'!Q198)","v":0},{"$f":"CHOOSE(view,\n'[13]M1a - Model inputs'!R198,\n'[13]M1b - Model inputs'!R198,\n'[13]SM1 - DECC Scenario 3 equiv'!R198,\n'[13]SM2 - DECC Scenario 1 equiv'!R198,\n'[13]SM3 - DECC Scenario 2 equiv'!R198,\n'[13]SM4 - DNO Scenario 4 equiv'!R198,\n'[14]M1a - Model inputs'!R198,\n'[14]M1b - Model inputs'!R198,\n'[14]SM1 - DECC Scenario 3 equiv'!R198,\n'[14]SM2 - DECC Scenario 1 equiv'!R198,\n'[14]SM3 - DECC Scenario 2 equiv'!R198,\n'[14]SM4 - DNO Scenario 4 equiv'!R198)","v":0},{"$f":"CHOOSE(view,\n'[13]M1a - Model inputs'!S198,\n'[13]M1b - Model inputs'!S198,\n'[13]SM1 - DECC Scenario 3 equiv'!S198,\n'[13]SM2 - DECC Scenario 1 equiv'!S198,\n'[13]SM3 - DECC Scenario 2 equiv'!S198,\n'[13]SM4 - DNO Scenario 4 equiv'!S198,\n'[14]M1a - Model inputs'!S198,\n'[14]M1b - Model inputs'!S198,\n'[14]SM1 - DECC Scenario 3 equiv'!S198,\n'[14]SM2 - DECC Scenario 1 equiv'!S198,\n'[14]SM3 - DECC Scenario 2 equiv'!S198,\n'[14]SM4 - DNO Scenario 4 equiv'!S198)","v":0}]
[null,null,null,null,{"$f":"Input!E130","v":"Allocation to tree cutting"},null,"%",null,null,null,null,null,null,null,null,null,null,null,null,null,null,null,null,null,null,null,null,null,null,null,null,null,null,null,null,{"$f":"CHOOSE(view,\n'[13]M1a - Model inputs'!L199,\n'[13]M1b - Model inputs'!L199,\n'[13]SM1 - DECC Scenario 3 equiv'!L199,\n'[13]SM2 - DECC Scenario 1 equiv'!L199,\n'[13]SM3 - DECC Scenario 2 equiv'!L199,\n'[13]SM4 - DNO Scenario 4 equiv'!L199,\n'[14]M1a - Model inputs'!L199,\n'[14]M1b - Model inputs'!L199,\n'[14]SM1 - DECC Scenario 3 equiv'!L199,\n'[14]SM2 - DECC Scenario 1 equiv'!L199,\n'[14]SM3 - DECC Scenario 2 equiv'!L199,\n'[14]SM4 - DNO Scenario 4 equiv'!L199)","v":0},{"$f":"CHOOSE(view,\n'[13]M1a - Model inputs'!M199,\n'[13]M1b - Model inputs'!M199,\n'[13]SM1 - DECC Scenario 3 equiv'!M199,\n'[13]SM2 - DECC Scenario 1 equiv'!M199,\n'[13]SM3 - DECC Scenario 2 equiv'!M199,\n'[13]SM4 - DNO Scenario 4 equiv'!M199,\n'[14]M1a - Model inputs'!M199,\n'[14]M1b - Model inputs'!M199,\n'[14]SM1 - DECC Scenario 3 equiv'!M199,\n'[14]SM2 - DECC Scenario 1 equiv'!M199,\n'[14]SM3 - DECC Scenario 2 equiv'!M199,\n'[14]SM4 - DNO Scenario 4 equiv'!M199)","v":0},{"$f":"CHOOSE(view,\n'[13]M1a - Model inputs'!N199,\n'[13]M1b - Model inputs'!N199,\n'[13]SM1 - DECC Scenario 3 equiv'!N199,\n'[13]SM2 - DECC Scenario 1 equiv'!N199,\n'[13]SM3 - DECC Scenario 2 equiv'!N199,\n'[13]SM4 - DNO Scenario 4 equiv'!N199,\n'[14]M1a - Model inputs'!N199,\n'[14]M1b - Model inputs'!N199,\n'[14]SM1 - DECC Scenario 3 equiv'!N199,\n'[14]SM2 - DECC Scenario 1 equiv'!N199,\n'[14]SM3 - DECC Scenario 2 equiv'!N199,\n'[14]SM4 - DNO Scenario 4 equiv'!N199)","v":0},{"$f":"CHOOSE(view,\n'[13]M1a - Model inputs'!O199,\n'[13]M1b - Model inputs'!O199,\n'[13]SM1 - DECC Scenario 3 equiv'!O199,\n'[13]SM2 - DECC Scenario 1 equiv'!O199,\n'[13]SM3 - DECC Scenario 2 equiv'!O199,\n'[13]SM4 - DNO Scenario 4 equiv'!O199,\n'[14]M1a - Model inputs'!O199,\n'[14]M1b - Model inputs'!O199,\n'[14]SM1 - DECC Scenario 3 equiv'!O199,\n'[14]SM2 - DECC Scenario 1 equiv'!O199,\n'[14]SM3 - DECC Scenario 2 equiv'!O199,\n'[14]SM4 - DNO Scenario 4 equiv'!O199)","v":0},{"$f":"CHOOSE(view,\n'[13]M1a - Model inputs'!P199,\n'[13]M1b - Model inputs'!P199,\n'[13]SM1 - DECC Scenario 3 equiv'!P199,\n'[13]SM2 - DECC Scenario 1 equiv'!P199,\n'[13]SM3 - DECC Scenario 2 equiv'!P199,\n'[13]SM4 - DNO Scenario 4 equiv'!P199,\n'[14]M1a - Model inputs'!P199,\n'[14]M1b - Model inputs'!P199,\n'[14]SM1 - DECC Scenario 3 equiv'!P199,\n'[14]SM2 - DECC Scenario 1 equiv'!P199,\n'[14]SM3 - DECC Scenario 2 equiv'!P199,\n'[14]SM4 - DNO Scenario 4 equiv'!P199)","v":0},{"$f":"CHOOSE(view,\n'[13]M1a - Model inputs'!Q199,\n'[13]M1b - Model inputs'!Q199,\n'[13]SM1 - DECC Scenario 3 equiv'!Q199,\n'[13]SM2 - DECC Scenario 1 equiv'!Q199,\n'[13]SM3 - DECC Scenario 2 equiv'!Q199,\n'[13]SM4 - DNO Scenario 4 equiv'!Q199,\n'[14]M1a - Model inputs'!Q199,\n'[14]M1b - Model inputs'!Q199,\n'[14]SM1 - DECC Scenario 3 equiv'!Q199,\n'[14]SM2 - DECC Scenario 1 equiv'!Q199,\n'[14]SM3 - DECC Scenario 2 equiv'!Q199,\n'[14]SM4 - DNO Scenario 4 equiv'!Q199)","v":0},{"$f":"CHOOSE(view,\n'[13]M1a - Model inputs'!R199,\n'[13]M1b - Model inputs'!R199,\n'[13]SM1 - DECC Scenario 3 equiv'!R199,\n'[13]SM2 - DECC Scenario 1 equiv'!R199,\n'[13]SM3 - DECC Scenario 2 equiv'!R199,\n'[13]SM4 - DNO Scenario 4 equiv'!R199,\n'[14]M1a - Model inputs'!R199,\n'[14]M1b - Model inputs'!R199,\n'[14]SM1 - DECC Scenario 3 equiv'!R199,\n'[14]SM2 - DECC Scenario 1 equiv'!R199,\n'[14]SM3 - DECC Scenario 2 equiv'!R199,\n'[14]SM4 - DNO Scenario 4 equiv'!R199)","v":0},{"$f":"CHOOSE(view,\n'[13]M1a - Model inputs'!S199,\n'[13]M1b - Model inputs'!S199,\n'[13]SM1 - DECC Scenario 3 equiv'!S199,\n'[13]SM2 - DECC Scenario 1 equiv'!S199,\n'[13]SM3 - DECC Scenario 2 equiv'!S199,\n'[13]SM4 - DNO Scenario 4 equiv'!S199,\n'[14]M1a - Model inputs'!S199,\n'[14]M1b - Model inputs'!S199,\n'[14]SM1 - DECC Scenario 3 equiv'!S199,\n'[14]SM2 - DECC Scenario 1 equiv'!S199,\n'[14]SM3 - DECC Scenario 2 equiv'!S199,\n'[14]SM4 - DNO Scenario 4 equiv'!S199)","v":0}]
[null,null,null,null,{"$f":"Input!E131","v":"Allocation to controllable opex"},null,"%",null,null,null,null,null,null,null,null,null,null,null,null,null,null,null,null,null,null,null,null,null,null,null,null,null,null,null,null,{"$f":"CHOOSE(view,\n'[13]M1a - Model inputs'!L200,\n'[13]M1b - Model inputs'!L200,\n'[13]SM1 - DECC Scenario 3 equiv'!L200,\n'[13]SM2 - DECC Scenario 1 equiv'!L200,\n'[13]SM3 - DECC Scenario 2 equiv'!L200,\n'[13]SM4 - DNO Scenario 4 equiv'!L200,\n'[14]M1a - Model inputs'!L200,\n'[14]M1b - Model inputs'!L200,\n'[14]SM1 - DECC Scenario 3 equiv'!L200,\n'[14]SM2 - DECC Scenario 1 equiv'!L200,\n'[14]SM3 - DECC Scenario 2 equiv'!L200,\n'[14]SM4 - DNO Scenario 4 equiv'!L200)","v":0},{"$f":"CHOOSE(view,\n'[13]M1a - Model inputs'!M200,\n'[13]M1b - Model inputs'!M200,\n'[13]SM1 - DECC Scenario 3 equiv'!M200,\n'[13]SM2 - DECC Scenario 1 equiv'!M200,\n'[13]SM3 - DECC Scenario 2 equiv'!M200,\n'[13]SM4 - DNO Scenario 4 equiv'!M200,\n'[14]M1a - Model inputs'!M200,\n'[14]M1b - Model inputs'!M200,\n'[14]SM1 - DECC Scenario 3 equiv'!M200,\n'[14]SM2 - DECC Scenario 1 equiv'!M200,\n'[14]SM3 - DECC Scenario 2 equiv'!M200,\n'[14]SM4 - DNO Scenario 4 equiv'!M200)","v":0},{"$f":"CHOOSE(view,\n'[13]M1a - Model inputs'!N200,\n'[13]M1b - Model inputs'!N200,\n'[13]SM1 - DECC Scenario 3 equiv'!N200,\n'[13]SM2 - DECC Scenario 1 equiv'!N200,\n'[13]SM3 - DECC Scenario 2 equiv'!N200,\n'[13]SM4 - DNO Scenario 4 equiv'!N200,\n'[14]M1a - Model inputs'!N200,\n'[14]M1b - Model inputs'!N200,\n'[14]SM1 - DECC Scenario 3 equiv'!N200,\n'[14]SM2 - DECC Scenario 1 equiv'!N200,\n'[14]SM3 - DECC Scenario 2 equiv'!N200,\n'[14]SM4 - DNO Scenario 4 equiv'!N200)","v":0},{"$f":"CHOOSE(view,\n'[13]M1a - Model inputs'!O200,\n'[13]M1b - Model inputs'!O200,\n'[13]SM1 - DECC Scenario 3 equiv'!O200,\n'[13]SM2 - DECC Scenario 1 equiv'!O200,\n'[13]SM3 - DECC Scenario 2 equiv'!O200,\n'[13]SM4 - DNO Scenario 4 equiv'!O200,\n'[14]M1a - Model inputs'!O200,\n'[14]M1b - Model inputs'!O200,\n'[14]SM1 - DECC Scenario 3 equiv'!O200,\n'[14]SM2 - DECC Scenario 1 equiv'!O200,\n'[14]SM3 - DECC Scenario 2 equiv'!O200,\n'[14]SM4 - DNO Scenario 4 equiv'!O200)","v":0},{"$f":"CHOOSE(view,\n'[13]M1a - Model inputs'!P200,\n'[13]M1b - Model inputs'!P200,\n'[13]SM1 - DECC Scenario 3 equiv'!P200,\n'[13]SM2 - DECC Scenario 1 equiv'!P200,\n'[13]SM3 - DECC Scenario 2 equiv'!P200,\n'[13]SM4 - DNO Scenario 4 equiv'!P200,\n'[14]M1a - Model inputs'!P200,\n'[14]M1b - Model inputs'!P200,\n'[14]SM1 - DECC Scenario 3 equiv'!P200,\n'[14]SM2 - DECC Scenario 1 equiv'!P200,\n'[14]SM3 - DECC Scenario 2 equiv'!P200,\n'[14]SM4 - DNO Scenario 4 equiv'!P200)","v":0},{"$f":"CHOOSE(view,\n'[13]M1a - Model inputs'!Q200,\n'[13]M1b - Model inputs'!Q200,\n'[13]SM1 - DECC Scenario 3 equiv'!Q200,\n'[13]SM2 - DECC Scenario 1 equiv'!Q200,\n'[13]SM3 - DECC Scenario 2 equiv'!Q200,\n'[13]SM4 - DNO Scenario 4 equiv'!Q200,\n'[14]M1a - Model inputs'!Q200,\n'[14]M1b - Model inputs'!Q200,\n'[14]SM1 - DECC Scenario 3 equiv'!Q200,\n'[14]SM2 - DECC Scenario 1 equiv'!Q200,\n'[14]SM3 - DECC Scenario 2 equiv'!Q200,\n'[14]SM4 - DNO Scenario 4 equiv'!Q200)","v":0},{"$f":"CHOOSE(view,\n'[13]M1a - Model inputs'!R200,\n'[13]M1b - Model inputs'!R200,\n'[13]SM1 - DECC Scenario 3 equiv'!R200,\n'[13]SM2 - DECC Scenario 1 equiv'!R200,\n'[13]SM3 - DECC Scenario 2 equiv'!R200,\n'[13]SM4 - DNO Scenario 4 equiv'!R200,\n'[14]M1a - Model inputs'!R200,\n'[14]M1b - Model inputs'!R200,\n'[14]SM1 - DECC Scenario 3 equiv'!R200,\n'[14]SM2 - DECC Scenario 1 equiv'!R200,\n'[14]SM3 - DECC Scenario 2 equiv'!R200,\n'[14]SM4 - DNO Scenario 4 equiv'!R200)","v":0},{"$f":"CHOOSE(view,\n'[13]M1a - Model inputs'!S200,\n'[13]M1b - Model inputs'!S200,\n'[13]SM1 - DECC Scenario 3 equiv'!S200,\n'[13]SM2 - DECC Scenario 1 equiv'!S200,\n'[13]SM3 - DECC Scenario 2 equiv'!S200,\n'[13]SM4 - DNO Scenario 4 equiv'!S200,\n'[14]M1a - Model inputs'!S200,\n'[14]M1b - Model inputs'!S200,\n'[14]SM1 - DECC Scenario 3 equiv'!S200,\n'[14]SM2 - DECC Scenario 1 equiv'!S200,\n'[14]SM3 - DECC Scenario 2 equiv'!S200,\n'[14]SM4 - DNO Scenario 4 equiv'!S200)","v":0}]
[]
[null,null,null,null,{"$f":"Input!E133","v":"Allowed uncertain costs (Smart metering roll out costs)"},null,"£m 12/13 prices",null,null,null,null,null,null,null,null,null,null,null,null,null,null,null,null,null,null,null,null,null,null,null,null,null,null,null,null,{"$f":"AJ22","v":7.2540320457271962E-2},8.7418050663847613E-2,9.6936353829270558E-2,9.7060113129942602E-2,9.2561129565418954E-2,7.8691650772546445E-2,0,0]
[null,null,null,null,{"$f":"Input!E134","v":"Allocation to load related capex"},null,"%",null,null,null,null,null,null,null,null,null,null,null,null,null,null,null,null,null,null,null,null,null,null,null,null,null,null,null,null,{"$f":"CHOOSE(view,\n'[13]M1a - Model inputs'!L203,\n'[13]M1b - Model inputs'!L203,\n'[13]SM1 - DECC Scenario 3 equiv'!L203,\n'[13]SM2 - DECC Scenario 1 equiv'!L203,\n'[13]SM3 - DECC Scenario 2 equiv'!L203,\n'[13]SM4 - DNO Scenario 4 equiv'!L203,\n'[14]M1a - Model inputs'!L203,\n'[14]M1b - Model inputs'!L203,\n'[14]SM1 - DECC Scenario 3 equiv'!L203,\n'[14]SM2 - DECC Scenario 1 equiv'!L203,\n'[14]SM3 - DECC Scenario 2 equiv'!L203,\n'[14]SM4 - DNO Scenario 4 equiv'!L203)","v":0},{"$f":"CHOOSE(view,\n'[13]M1a - Model inputs'!M203,\n'[13]M1b - Model inputs'!M203,\n'[13]SM1 - DECC Scenario 3 equiv'!M203,\n'[13]SM2 - DECC Scenario 1 equiv'!M203,\n'[13]SM3 - DECC Scenario 2 equiv'!M203,\n'[13]SM4 - DNO Scenario 4 equiv'!M203,\n'[14]M1a - Model inputs'!M203,\n'[14]M1b - Model inputs'!M203,\n'[14]SM1 - DECC Scenario 3 equiv'!M203,\n'[14]SM2 - DECC Scenario 1 equiv'!M203,\n'[14]SM3 - DECC Scenario 2 equiv'!M203,\n'[14]SM4 - DNO Scenario 4 equiv'!M203)","v":0},{"$f":"CHOOSE(view,\n'[13]M1a - Model inputs'!N203,\n'[13]M1b - Model inputs'!N203,\n'[13]SM1 - DECC Scenario 3 equiv'!N203,\n'[13]SM2 - DECC Scenario 1 equiv'!N203,\n'[13]SM3 - DECC Scenario 2 equiv'!N203,\n'[13]SM4 - DNO Scenario 4 equiv'!N203,\n'[14]M1a - Model inputs'!N203,\n'[14]M1b - Model inputs'!N203,\n'[14]SM1 - DECC Scenario 3 equiv'!N203,\n'[14]SM2 - DECC Scenario 1 equiv'!N203,\n'[14]SM3 - DECC Scenario 2 equiv'!N203,\n'[14]SM4 - DNO Scenario 4 equiv'!N203)","v":0},{"$f":"CHOOSE(view,\n'[13]M1a - Model inputs'!O203,\n'[13]M1b - Model inputs'!O203,\n'[13]SM1 - DECC Scenario 3 equiv'!O203,\n'[13]SM2 - DECC Scenario 1 equiv'!O203,\n'[13]SM3 - DECC Scenario 2 equiv'!O203,\n'[13]SM4 - DNO Scenario 4 equiv'!O203,\n'[14]M1a - Model inputs'!O203,\n'[14]M1b - Model inputs'!O203,\n'[14]SM1 - DECC Scenario 3 equiv'!O203,\n'[14]SM2 - DECC Scenario 1 equiv'!O203,\n'[14]SM3 - DECC Scenario 2 equiv'!O203,\n'[14]SM4 - DNO Scenario 4 equiv'!O203)","v":0},{"$f":"CHOOSE(view,\n'[13]M1a - Model inputs'!P203,\n'[13]M1b - Model inputs'!P203,\n'[13]SM1 - DECC Scenario 3 equiv'!P203,\n'[13]SM2 - DECC Scenario 1 equiv'!P203,\n'[13]SM3 - DECC Scenario 2 equiv'!P203,\n'[13]SM4 - DNO Scenario 4 equiv'!P203,\n'[14]M1a - Model inputs'!P203,\n'[14]M1b - Model inputs'!P203,\n'[14]SM1 - DECC Scenario 3 equiv'!P203,\n'[14]SM2 - DECC Scenario 1 equiv'!P203,\n'[14]SM3 - DECC Scenario 2 equiv'!P203,\n'[14]SM4 - DNO Scenario 4 equiv'!P203)","v":0},{"$f":"CHOOSE(view,\n'[13]M1a - Model inputs'!Q203,\n'[13]M1b - Model inputs'!Q203,\n'[13]SM1 - DECC Scenario 3 equiv'!Q203,\n'[13]SM2 - DECC Scenario 1 equiv'!Q203,\n'[13]SM3 - DECC Scenario 2 equiv'!Q203,\n'[13]SM4 - DNO Scenario 4 equiv'!Q203,\n'[14]M1a - Model inputs'!Q203,\n'[14]M1b - Model inputs'!Q203,\n'[14]SM1 - DECC Scenario 3 equiv'!Q203,\n'[14]SM2 - DECC Scenario 1 equiv'!Q203,\n'[14]SM3 - DECC Scenario 2 equiv'!Q203,\n'[14]SM4 - DNO Scenario 4 equiv'!Q203)","v":0},{"$f":"CHOOSE(view,\n'[13]M1a - Model inputs'!R203,\n'[13]M1b - Model inputs'!R203,\n'[13]SM1 - DECC Scenario 3 equiv'!R203,\n'[13]SM2 - DECC Scenario 1 equiv'!R203,\n'[13]SM3 - DECC Scenario 2 equiv'!R203,\n'[13]SM4 - DNO Scenario 4 equiv'!R203,\n'[14]M1a - Model inputs'!R203,\n'[14]M1b - Model inputs'!R203,\n'[14]SM1 - DECC Scenario 3 equiv'!R203,\n'[14]SM2 - DECC Scenario 1 equiv'!R203,\n'[14]SM3 - DECC Scenario 2 equiv'!R203,\n'[14]SM4 - DNO Scenario 4 equiv'!R203)","v":0},{"$f":"CHOOSE(view,\n'[13]M1a - Model inputs'!S203,\n'[13]M1b - Model inputs'!S203,\n'[13]SM1 - DECC Scenario 3 equiv'!S203,\n'[13]SM2 - DECC Scenario 1 equiv'!S203,\n'[13]SM3 - DECC Scenario 2 equiv'!S203,\n'[13]SM4 - DNO Scenario 4 equiv'!S203,\n'[14]M1a - Model inputs'!S203,\n'[14]M1b - Model inputs'!S203,\n'[14]SM1 - DECC Scenario 3 equiv'!S203,\n'[14]SM2 - DECC Scenario 1 equiv'!S203,\n'[14]SM3 - DECC Scenario 2 equiv'!S203,\n'[14]SM4 - DNO Scenario 4 equiv'!S203)","v":0}]
[null,null,null,null,{"$f":"Input!E135","v":"Allocation to non-load related capex - asset replacement"},null,"%",null,null,null,null,null,null,null,null,null,null,null,null,null,null,null,null,null,null,null,null,null,null,null,null,null,null,null,null,{"$f":"CHOOSE(view,\n'[13]M1a - Model inputs'!L204,\n'[13]M1b - Model inputs'!L204,\n'[13]SM1 - DECC Scenario 3 equiv'!L204,\n'[13]SM2 - DECC Scenario 1 equiv'!L204,\n'[13]SM3 - DECC Scenario 2 equiv'!L204,\n'[13]SM4 - DNO Scenario 4 equiv'!L204,\n'[14]M1a - Model inputs'!L204,\n'[14]M1b - Model inputs'!L204,\n'[14]SM1 - DECC Scenario 3 equiv'!L204,\n'[14]SM2 - DECC Scenario 1 equiv'!L204,\n'[14]SM3 - DECC Scenario 2 equiv'!L204,\n'[14]SM4 - DNO Scenario 4 equiv'!L204)","v":0},{"$f":"CHOOSE(view,\n'[13]M1a - Model inputs'!M204,\n'[13]M1b - Model inputs'!M204,\n'[13]SM1 - DECC Scenario 3 equiv'!M204,\n'[13]SM2 - DECC Scenario 1 equiv'!M204,\n'[13]SM3 - DECC Scenario 2 equiv'!M204,\n'[13]SM4 - DNO Scenario 4 equiv'!M204,\n'[14]M1a - Model inputs'!M204,\n'[14]M1b - Model inputs'!M204,\n'[14]SM1 - DECC Scenario 3 equiv'!M204,\n'[14]SM2 - DECC Scenario 1 equiv'!M204,\n'[14]SM3 - DECC Scenario 2 equiv'!M204,\n'[14]SM4 - DNO Scenario 4 equiv'!M204)","v":0},{"$f":"CHOOSE(view,\n'[13]M1a - Model inputs'!N204,\n'[13]M1b - Model inputs'!N204,\n'[13]SM1 - DECC Scenario 3 equiv'!N204,\n'[13]SM2 - DECC Scenario 1 equiv'!N204,\n'[13]SM3 - DECC Scenario 2 equiv'!N204,\n'[13]SM4 - DNO Scenario 4 equiv'!N204,\n'[14]M1a - Model inputs'!N204,\n'[14]M1b - Model inputs'!N204,\n'[14]SM1 - DECC Scenario 3 equiv'!N204,\n'[14]SM2 - DECC Scenario 1 equiv'!N204,\n'[14]SM3 - DECC Scenario 2 equiv'!N204,\n'[14]SM4 - DNO Scenario 4 equiv'!N204)","v":0},{"$f":"CHOOSE(view,\n'[13]M1a - Model inputs'!O204,\n'[13]M1b - Model inputs'!O204,\n'[13]SM1 - DECC Scenario 3 equiv'!O204,\n'[13]SM2 - DECC Scenario 1 equiv'!O204,\n'[13]SM3 - DECC Scenario 2 equiv'!O204,\n'[13]SM4 - DNO Scenario 4 equiv'!O204,\n'[14]M1a - Model inputs'!O204,\n'[14]M1b - Model inputs'!O204,\n'[14]SM1 - DECC Scenario 3 equiv'!O204,\n'[14]SM2 - DECC Scenario 1 equiv'!O204,\n'[14]SM3 - DECC Scenario 2 equiv'!O204,\n'[14]SM4 - DNO Scenario 4 equiv'!O204)","v":0},{"$f":"CHOOSE(view,\n'[13]M1a - Model inputs'!P204,\n'[13]M1b - Model inputs'!P204,\n'[13]SM1 - DECC Scenario 3 equiv'!P204,\n'[13]SM2 - DECC Scenario 1 equiv'!P204,\n'[13]SM3 - DECC Scenario 2 equiv'!P204,\n'[13]SM4 - DNO Scenario 4 equiv'!P204,\n'[14]M1a - Model inputs'!P204,\n'[14]M1b - Model inputs'!P204,\n'[14]SM1 - DECC Scenario 3 equiv'!P204,\n'[14]SM2 - DECC Scenario 1 equiv'!P204,\n'[14]SM3 - DECC Scenario 2 equiv'!P204,\n'[14]SM4 - DNO Scenario 4 equiv'!P204)","v":0},{"$f":"CHOOSE(view,\n'[13]M1a - Model inputs'!Q204,\n'[13]M1b - Model inputs'!Q204,\n'[13]SM1 - DECC Scenario 3 equiv'!Q204,\n'[13]SM2 - DECC Scenario 1 equiv'!Q204,\n'[13]SM3 - DECC Scenario 2 equiv'!Q204,\n'[13]SM4 - DNO Scenario 4 equiv'!Q204,\n'[14]M1a - Model inputs'!Q204,\n'[14]M1b - Model inputs'!Q204,\n'[14]SM1 - DECC Scenario 3 equiv'!Q204,\n'[14]SM2 - DECC Scenario 1 equiv'!Q204,\n'[14]SM3 - DECC Scenario 2 equiv'!Q204,\n'[14]SM4 - DNO Scenario 4 equiv'!Q204)","v":0},{"$f":"CHOOSE(view,\n'[13]M1a - Model inputs'!R204,\n'[13]M1b - Model inputs'!R204,\n'[13]SM1 - DECC Scenario 3 equiv'!R204,\n'[13]SM2 - DECC Scenario 1 equiv'!R204,\n'[13]SM3 - DECC Scenario 2 equiv'!R204,\n'[13]SM4 - DNO Scenario 4 equiv'!R204,\n'[14]M1a - Model inputs'!R204,\n'[14]M1b - Model inputs'!R204,\n'[14]SM1 - DECC Scenario 3 equiv'!R204,\n'[14]SM2 - DECC Scenario 1 equiv'!R204,\n'[14]SM3 - DECC Scenario 2 equiv'!R204,\n'[14]SM4 - DNO Scenario 4 equiv'!R204)","v":0},{"$f":"CHOOSE(view,\n'[13]M1a - Model inputs'!S204,\n'[13]M1b - Model inputs'!S204,\n'[13]SM1 - DECC Scenario 3 equiv'!S204,\n'[13]SM2 - DECC Scenario 1 equiv'!S204,\n'[13]SM3 - DECC Scenario 2 equiv'!S204,\n'[13]SM4 - DNO Scenario 4 equiv'!S204,\n'[14]M1a - Model inputs'!S204,\n'[14]M1b - Model inputs'!S204,\n'[14]SM1 - DECC Scenario 3 equiv'!S204,\n'[14]SM2 - DECC Scenario 1 equiv'!S204,\n'[14]SM3 - DECC Scenario 2 equiv'!S204,\n'[14]SM4 - DNO Scenario 4 equiv'!S204)","v":0}]
[null,null,null,null,{"$f":"Input!E136","v":"Allocation to non-load related capex - other"},null,"%",null,null,null,null,null,null,null,null,null,null,null,null,null,null,null,null,null,null,null,null,null,null,null,null,null,null,null,null,{"$f":"CHOOSE(view,\n'[13]M1a - Model inputs'!L205,\n'[13]M1b - Model inputs'!L205,\n'[13]SM1 - DECC Scenario 3 equiv'!L205,\n'[13]SM2 - DECC Scenario 1 equiv'!L205,\n'[13]SM3 - DECC Scenario 2 equiv'!L205,\n'[13]SM4 - DNO Scenario 4 equiv'!L205,\n'[14]M1a - Model inputs'!L205,\n'[14]M1b - Model inputs'!L205,\n'[14]SM1 - DECC Scenario 3 equiv'!L205,\n'[14]SM2 - DECC Scenario 1 equiv'!L205,\n'[14]SM3 - DECC Scenario 2 equiv'!L205,\n'[14]SM4 - DNO Scenario 4 equiv'!L205)","v":0},{"$f":"CHOOSE(view,\n'[13]M1a - Model inputs'!M205,\n'[13]M1b - Model inputs'!M205,\n'[13]SM1 - DECC Scenario 3 equiv'!M205,\n'[13]SM2 - DECC Scenario 1 equiv'!M205,\n'[13]SM3 - DECC Scenario 2 equiv'!M205,\n'[13]SM4 - DNO Scenario 4 equiv'!M205,\n'[14]M1a - Model inputs'!M205,\n'[14]M1b - Model inputs'!M205,\n'[14]SM1 - DECC Scenario 3 equiv'!M205,\n'[14]SM2 - DECC Scenario 1 equiv'!M205,\n'[14]SM3 - DECC Scenario 2 equiv'!M205,\n'[14]SM4 - DNO Scenario 4 equiv'!M205)","v":0},{"$f":"CHOOSE(view,\n'[13]M1a - Model inputs'!N205,\n'[13]M1b - Model inputs'!N205,\n'[13]SM1 - DECC Scenario 3 equiv'!N205,\n'[13]SM2 - DECC Scenario 1 equiv'!N205,\n'[13]SM3 - DECC Scenario 2 equiv'!N205,\n'[13]SM4 - DNO Scenario 4 equiv'!N205,\n'[14]M1a - Model inputs'!N205,\n'[14]M1b - Model inputs'!N205,\n'[14]SM1 - DECC Scenario 3 equiv'!N205,\n'[14]SM2 - DECC Scenario 1 equiv'!N205,\n'[14]SM3 - DECC Scenario 2 equiv'!N205,\n'[14]SM4 - DNO Scenario 4 equiv'!N205)","v":0},{"$f":"CHOOSE(view,\n'[13]M1a - Model inputs'!O205,\n'[13]M1b - Model inputs'!O205,\n'[13]SM1 - DECC Scenario 3 equiv'!O205,\n'[13]SM2 - DECC Scenario 1 equiv'!O205,\n'[13]SM3 - DECC Scenario 2 equiv'!O205,\n'[13]SM4 - DNO Scenario 4 equiv'!O205,\n'[14]M1a - Model inputs'!O205,\n'[14]M1b - Model inputs'!O205,\n'[14]SM1 - DECC Scenario 3 equiv'!O205,\n'[14]SM2 - DECC Scenario 1 equiv'!O205,\n'[14]SM3 - DECC Scenario 2 equiv'!O205,\n'[14]SM4 - DNO Scenario 4 equiv'!O205)","v":0},{"$f":"CHOOSE(view,\n'[13]M1a - Model inputs'!P205,\n'[13]M1b - Model inputs'!P205,\n'[13]SM1 - DECC Scenario 3 equiv'!P205,\n'[13]SM2 - DECC Scenario 1 equiv'!P205,\n'[13]SM3 - DECC Scenario 2 equiv'!P205,\n'[13]SM4 - DNO Scenario 4 equiv'!P205,\n'[14]M1a - Model inputs'!P205,\n'[14]M1b - Model inputs'!P205,\n'[14]SM1 - DECC Scenario 3 equiv'!P205,\n'[14]SM2 - DECC Scenario 1 equiv'!P205,\n'[14]SM3 - DECC Scenario 2 equiv'!P205,\n'[14]SM4 - DNO Scenario 4 equiv'!P205)","v":0},{"$f":"CHOOSE(view,\n'[13]M1a - Model inputs'!Q205,\n'[13]M1b - Model inputs'!Q205,\n'[13]SM1 - DECC Scenario 3 equiv'!Q205,\n'[13]SM2 - DECC Scenario 1 equiv'!Q205,\n'[13]SM3 - DECC Scenario 2 equiv'!Q205,\n'[13]SM4 - DNO Scenario 4 equiv'!Q205,\n'[14]M1a - Model inputs'!Q205,\n'[14]M1b - Model inputs'!Q205,\n'[14]SM1 - DECC Scenario 3 equiv'!Q205,\n'[14]SM2 - DECC Scenario 1 equiv'!Q205,\n'[14]SM3 - DECC Scenario 2 equiv'!Q205,\n'[14]SM4 - DNO Scenario 4 equiv'!Q205)","v":0},{"$f":"CHOOSE(view,\n'[13]M1a - Model inputs'!R205,\n'[13]M1b - Model inputs'!R205,\n'[13]SM1 - DECC Scenario 3 equiv'!R205,\n'[13]SM2 - DECC Scenario 1 equiv'!R205,\n'[13]SM3 - DECC Scenario 2 equiv'!R205,\n'[13]SM4 - DNO Scenario 4 equiv'!R205,\n'[14]M1a - Model inputs'!R205,\n'[14]M1b - Model inputs'!R205,\n'[14]SM1 - DECC Scenario 3 equiv'!R205,\n'[14]SM2 - DECC Scenario 1 equiv'!R205,\n'[14]SM3 - DECC Scenario 2 equiv'!R205,\n'[14]SM4 - DNO Scenario 4 equiv'!R205)","v":0},{"$f":"CHOOSE(view,\n'[13]M1a - Model inputs'!S205,\n'[13]M1b - Model inputs'!S205,\n'[13]SM1 - DECC Scenario 3 equiv'!S205,\n'[13]SM2 - DECC Scenario 1 equiv'!S205,\n'[13]SM3 - DECC Scenario 2 equiv'!S205,\n'[13]SM4 - DNO Scenario 4 equiv'!S205,\n'[14]M1a - Model inputs'!S205,\n'[14]M1b - Model inputs'!S205,\n'[14]SM1 - DECC Scenario 3 equiv'!S205,\n'[14]SM2 - DECC Scenario 1 equiv'!S205,\n'[14]SM3 - DECC Scenario 2 equiv'!S205,\n'[14]SM4 - DNO Scenario 4 equiv'!S205)","v":0}]
[null,null,null,null,{"$f":"Input!E137","v":"Allocation to faults"},null,"%",null,null,null,null,null,null,null,null,null,null,null,null,null,null,null,null,null,null,null,null,null,null,null,null,null,null,null,null,{"$f":"CHOOSE(view,\n'[13]M1a - Model inputs'!L206,\n'[13]M1b - Model inputs'!L206,\n'[13]SM1 - DECC Scenario 3 equiv'!L206,\n'[13]SM2 - DECC Scenario 1 equiv'!L206,\n'[13]SM3 - DECC Scenario 2 equiv'!L206,\n'[13]SM4 - DNO Scenario 4 equiv'!L206,\n'[14]M1a - Model inputs'!L206,\n'[14]M1b - Model inputs'!L206,\n'[14]SM1 - DECC Scenario 3 equiv'!L206,\n'[14]SM2 - DECC Scenario 1 equiv'!L206,\n'[14]SM3 - DECC Scenario 2 equiv'!L206,\n'[14]SM4 - DNO Scenario 4 equiv'!L206)","v":0},{"$f":"CHOOSE(view,\n'[13]M1a - Model inputs'!M206,\n'[13]M1b - Model inputs'!M206,\n'[13]SM1 - DECC Scenario 3 equiv'!M206,\n'[13]SM2 - DECC Scenario 1 equiv'!M206,\n'[13]SM3 - DECC Scenario 2 equiv'!M206,\n'[13]SM4 - DNO Scenario 4 equiv'!M206,\n'[14]M1a - Model inputs'!M206,\n'[14]M1b - Model inputs'!M206,\n'[14]SM1 - DECC Scenario 3 equiv'!M206,\n'[14]SM2 - DECC Scenario 1 equiv'!M206,\n'[14]SM3 - DECC Scenario 2 equiv'!M206,\n'[14]SM4 - DNO Scenario 4 equiv'!M206)","v":0},{"$f":"CHOOSE(view,\n'[13]M1a - Model inputs'!N206,\n'[13]M1b - Model inputs'!N206,\n'[13]SM1 - DECC Scenario 3 equiv'!N206,\n'[13]SM2 - DECC Scenario 1 equiv'!N206,\n'[13]SM3 - DECC Scenario 2 equiv'!N206,\n'[13]SM4 - DNO Scenario 4 equiv'!N206,\n'[14]M1a - Model inputs'!N206,\n'[14]M1b - Model inputs'!N206,\n'[14]SM1 - DECC Scenario 3 equiv'!N206,\n'[14]SM2 - DECC Scenario 1 equiv'!N206,\n'[14]SM3 - DECC Scenario 2 equiv'!N206,\n'[14]SM4 - DNO Scenario 4 equiv'!N206)","v":0},{"$f":"CHOOSE(view,\n'[13]M1a - Model inputs'!O206,\n'[13]M1b - Model inputs'!O206,\n'[13]SM1 - DECC Scenario 3 equiv'!O206,\n'[13]SM2 - DECC Scenario 1 equiv'!O206,\n'[13]SM3 - DECC Scenario 2 equiv'!O206,\n'[13]SM4 - DNO Scenario 4 equiv'!O206,\n'[14]M1a - Model inputs'!O206,\n'[14]M1b - Model inputs'!O206,\n'[14]SM1 - DECC Scenario 3 equiv'!O206,\n'[14]SM2 - DECC Scenario 1 equiv'!O206,\n'[14]SM3 - DECC Scenario 2 equiv'!O206,\n'[14]SM4 - DNO Scenario 4 equiv'!O206)","v":0},{"$f":"CHOOSE(view,\n'[13]M1a - Model inputs'!P206,\n'[13]M1b - Model inputs'!P206,\n'[13]SM1 - DECC Scenario 3 equiv'!P206,\n'[13]SM2 - DECC Scenario 1 equiv'!P206,\n'[13]SM3 - DECC Scenario 2 equiv'!P206,\n'[13]SM4 - DNO Scenario 4 equiv'!P206,\n'[14]M1a - Model inputs'!P206,\n'[14]M1b - Model inputs'!P206,\n'[14]SM1 - DECC Scenario 3 equiv'!P206,\n'[14]SM2 - DECC Scenario 1 equiv'!P206,\n'[14]SM3 - DECC Scenario 2 equiv'!P206,\n'[14]SM4 - DNO Scenario 4 equiv'!P206)","v":0},{"$f":"CHOOSE(view,\n'[13]M1a - Model inputs'!Q206,\n'[13]M1b - Model inputs'!Q206,\n'[13]SM1 - DECC Scenario 3 equiv'!Q206,\n'[13]SM2 - DECC Scenario 1 equiv'!Q206,\n'[13]SM3 - DECC Scenario 2 equiv'!Q206,\n'[13]SM4 - DNO Scenario 4 equiv'!Q206,\n'[14]M1a - Model inputs'!Q206,\n'[14]M1b - Model inputs'!Q206,\n'[14]SM1 - DECC Scenario 3 equiv'!Q206,\n'[14]SM2 - DECC Scenario 1 equiv'!Q206,\n'[14]SM3 - DECC Scenario 2 equiv'!Q206,\n'[14]SM4 - DNO Scenario 4 equiv'!Q206)","v":0},{"$f":"CHOOSE(view,\n'[13]M1a - Model inputs'!R206,\n'[13]M1b - Model inputs'!R206,\n'[13]SM1 - DECC Scenario 3 equiv'!R206,\n'[13]SM2 - DECC Scenario 1 equiv'!R206,\n'[13]SM3 - DECC Scenario 2 equiv'!R206,\n'[13]SM4 - DNO Scenario 4 equiv'!R206,\n'[14]M1a - Model inputs'!R206,\n'[14]M1b - Model inputs'!R206,\n'[14]SM1 - DECC Scenario 3 equiv'!R206,\n'[14]SM2 - DECC Scenario 1 equiv'!R206,\n'[14]SM3 - DECC Scenario 2 equiv'!R206,\n'[14]SM4 - DNO Scenario 4 equiv'!R206)","v":0},{"$f":"CHOOSE(view,\n'[13]M1a - Model inputs'!S206,\n'[13]M1b - Model inputs'!S206,\n'[13]SM1 - DECC Scenario 3 equiv'!S206,\n'[13]SM2 - DECC Scenario 1 equiv'!S206,\n'[13]SM3 - DECC Scenario 2 equiv'!S206,\n'[13]SM4 - DNO Scenario 4 equiv'!S206,\n'[14]M1a - Model inputs'!S206,\n'[14]M1b - Model inputs'!S206,\n'[14]SM1 - DECC Scenario 3 equiv'!S206,\n'[14]SM2 - DECC Scenario 1 equiv'!S206,\n'[14]SM3 - DECC Scenario 2 equiv'!S206,\n'[14]SM4 - DNO Scenario 4 equiv'!S206)","v":0}]
[null,null,null,null,{"$f":"Input!E138","v":"Allocation to tree cutting"},null,"%",null,null,null,null,null,null,null,null,null,null,null,null,null,null,null,null,null,null,null,null,null,null,null,null,null,null,null,null,{"$f":"CHOOSE(view,\n'[13]M1a - Model inputs'!L207,\n'[13]M1b - Model inputs'!L207,\n'[13]SM1 - DECC Scenario 3 equiv'!L207,\n'[13]SM2 - DECC Scenario 1 equiv'!L207,\n'[13]SM3 - DECC Scenario 2 equiv'!L207,\n'[13]SM4 - DNO Scenario 4 equiv'!L207,\n'[14]M1a - Model inputs'!L207,\n'[14]M1b - Model inputs'!L207,\n'[14]SM1 - DECC Scenario 3 equiv'!L207,\n'[14]SM2 - DECC Scenario 1 equiv'!L207,\n'[14]SM3 - DECC Scenario 2 equiv'!L207,\n'[14]SM4 - DNO Scenario 4 equiv'!L207)","v":0},{"$f":"CHOOSE(view,\n'[13]M1a - Model inputs'!M207,\n'[13]M1b - Model inputs'!M207,\n'[13]SM1 - DECC Scenario 3 equiv'!M207,\n'[13]SM2 - DECC Scenario 1 equiv'!M207,\n'[13]SM3 - DECC Scenario 2 equiv'!M207,\n'[13]SM4 - DNO Scenario 4 equiv'!M207,\n'[14]M1a - Model inputs'!M207,\n'[14]M1b - Model inputs'!M207,\n'[14]SM1 - DECC Scenario 3 equiv'!M207,\n'[14]SM2 - DECC Scenario 1 equiv'!M207,\n'[14]SM3 - DECC Scenario 2 equiv'!M207,\n'[14]SM4 - DNO Scenario 4 equiv'!M207)","v":0},{"$f":"CHOOSE(view,\n'[13]M1a - Model inputs'!N207,\n'[13]M1b - Model inputs'!N207,\n'[13]SM1 - DECC Scenario 3 equiv'!N207,\n'[13]SM2 - DECC Scenario 1 equiv'!N207,\n'[13]SM3 - DECC Scenario 2 equiv'!N207,\n'[13]SM4 - DNO Scenario 4 equiv'!N207,\n'[14]M1a - Model inputs'!N207,\n'[14]M1b - Model inputs'!N207,\n'[14]SM1 - DECC Scenario 3 equiv'!N207,\n'[14]SM2 - DECC Scenario 1 equiv'!N207,\n'[14]SM3 - DECC Scenario 2 equiv'!N207,\n'[14]SM4 - DNO Scenario 4 equiv'!N207)","v":0},{"$f":"CHOOSE(view,\n'[13]M1a - Model inputs'!O207,\n'[13]M1b - Model inputs'!O207,\n'[13]SM1 - DECC Scenario 3 equiv'!O207,\n'[13]SM2 - DECC Scenario 1 equiv'!O207,\n'[13]SM3 - DECC Scenario 2 equiv'!O207,\n'[13]SM4 - DNO Scenario 4 equiv'!O207,\n'[14]M1a - Model inputs'!O207,\n'[14]M1b - Model inputs'!O207,\n'[14]SM1 - DECC Scenario 3 equiv'!O207,\n'[14]SM2 - DECC Scenario 1 equiv'!O207,\n'[14]SM3 - DECC Scenario 2 equiv'!O207,\n'[14]SM4 - DNO Scenario 4 equiv'!O207)","v":0},{"$f":"CHOOSE(view,\n'[13]M1a - Model inputs'!P207,\n'[13]M1b - Model inputs'!P207,\n'[13]SM1 - DECC Scenario 3 equiv'!P207,\n'[13]SM2 - DECC Scenario 1 equiv'!P207,\n'[13]SM3 - DECC Scenario 2 equiv'!P207,\n'[13]SM4 - DNO Scenario 4 equiv'!P207,\n'[14]M1a - Model inputs'!P207,\n'[14]M1b - Model inputs'!P207,\n'[14]SM1 - DECC Scenario 3 equiv'!P207,\n'[14]SM2 - DECC Scenario 1 equiv'!P207,\n'[14]SM3 - DECC Scenario 2 equiv'!P207,\n'[14]SM4 - DNO Scenario 4 equiv'!P207)","v":0},{"$f":"CHOOSE(view,\n'[13]M1a - Model inputs'!Q207,\n'[13]M1b - Model inputs'!Q207,\n'[13]SM1 - DECC Scenario 3 equiv'!Q207,\n'[13]SM2 - DECC Scenario 1 equiv'!Q207,\n'[13]SM3 - DECC Scenario 2 equiv'!Q207,\n'[13]SM4 - DNO Scenario 4 equiv'!Q207,\n'[14]M1a - Model inputs'!Q207,\n'[14]M1b - Model inputs'!Q207,\n'[14]SM1 - DECC Scenario 3 equiv'!Q207,\n'[14]SM2 - DECC Scenario 1 equiv'!Q207,\n'[14]SM3 - DECC Scenario 2 equiv'!Q207,\n'[14]SM4 - DNO Scenario 4 equiv'!Q207)","v":0},{"$f":"CHOOSE(view,\n'[13]M1a - Model inputs'!R207,\n'[13]M1b - Model inputs'!R207,\n'[13]SM1 - DECC Scenario 3 equiv'!R207,\n'[13]SM2 - DECC Scenario 1 equiv'!R207,\n'[13]SM3 - DECC Scenario 2 equiv'!R207,\n'[13]SM4 - DNO Scenario 4 equiv'!R207,\n'[14]M1a - Model inputs'!R207,\n'[14]M1b - Model inputs'!R207,\n'[14]SM1 - DECC Scenario 3 equiv'!R207,\n'[14]SM2 - DECC Scenario 1 equiv'!R207,\n'[14]SM3 - DECC Scenario 2 equiv'!R207,\n'[14]SM4 - DNO Scenario 4 equiv'!R207)","v":0},{"$f":"CHOOSE(view,\n'[13]M1a - Model inputs'!S207,\n'[13]M1b - Model inputs'!S207,\n'[13]SM1 - DECC Scenario 3 equiv'!S207,\n'[13]SM2 - DECC Scenario 1 equiv'!S207,\n'[13]SM3 - DECC Scenario 2 equiv'!S207,\n'[13]SM4 - DNO Scenario 4 equiv'!S207,\n'[14]M1a - Model inputs'!S207,\n'[14]M1b - Model inputs'!S207,\n'[14]SM1 - DECC Scenario 3 equiv'!S207,\n'[14]SM2 - DECC Scenario 1 equiv'!S207,\n'[14]SM3 - DECC Scenario 2 equiv'!S207,\n'[14]SM4 - DNO Scenario 4 equiv'!S207)","v":0}]
[null,null,null,null,{"$f":"Input!E139","v":"Allocation to controllable opex"},null,"%",null,null,null,null,null,null,null,null,null,null,null,null,null,null,null,null,null,null,null,null,null,null,null,null,null,null,null,null,{"$f":"CHOOSE(view,\n'[13]M1a - Model inputs'!L208,\n'[13]M1b - Model inputs'!L208,\n'[13]SM1 - DECC Scenario 3 equiv'!L208,\n'[13]SM2 - DECC Scenario 1 equiv'!L208,\n'[13]SM3 - DECC Scenario 2 equiv'!L208,\n'[13]SM4 - DNO Scenario 4 equiv'!L208,\n'[14]M1a - Model inputs'!L208,\n'[14]M1b - Model inputs'!L208,\n'[14]SM1 - DECC Scenario 3 equiv'!L208,\n'[14]SM2 - DECC Scenario 1 equiv'!L208,\n'[14]SM3 - DECC Scenario 2 equiv'!L208,\n'[14]SM4 - DNO Scenario 4 equiv'!L208)","v":1},{"$f":"CHOOSE(view,\n'[13]M1a - Model inputs'!M208,\n'[13]M1b - Model inputs'!M208,\n'[13]SM1 - DECC Scenario 3 equiv'!M208,\n'[13]SM2 - DECC Scenario 1 equiv'!M208,\n'[13]SM3 - DECC Scenario 2 equiv'!M208,\n'[13]SM4 - DNO Scenario 4 equiv'!M208,\n'[14]M1a - Model inputs'!M208,\n'[14]M1b - Model inputs'!M208,\n'[14]SM1 - DECC Scenario 3 equiv'!M208,\n'[14]SM2 - DECC Scenario 1 equiv'!M208,\n'[14]SM3 - DECC Scenario 2 equiv'!M208,\n'[14]SM4 - DNO Scenario 4 equiv'!M208)","v":1},{"$f":"CHOOSE(view,\n'[13]M1a - Model inputs'!N208,\n'[13]M1b - Model inputs'!N208,\n'[13]SM1 - DECC Scenario 3 equiv'!N208,\n'[13]SM2 - DECC Scenario 1 equiv'!N208,\n'[13]SM3 - DECC Scenario 2 equiv'!N208,\n'[13]SM4 - DNO Scenario 4 equiv'!N208,\n'[14]M1a - Model inputs'!N208,\n'[14]M1b - Model inputs'!N208,\n'[14]SM1 - DECC Scenario 3 equiv'!N208,\n'[14]SM2 - DECC Scenario 1 equiv'!N208,\n'[14]SM3 - DECC Scenario 2 equiv'!N208,\n'[14]SM4 - DNO Scenario 4 equiv'!N208)","v":1},{"$f":"CHOOSE(view,\n'[13]M1a - Model inputs'!O208,\n'[13]M1b - Model inputs'!O208,\n'[13]SM1 - DECC Scenario 3 equiv'!O208,\n'[13]SM2 - DECC Scenario 1 equiv'!O208,\n'[13]SM3 - DECC Scenario 2 equiv'!O208,\n'[13]SM4 - DNO Scenario 4 equiv'!O208,\n'[14]M1a - Model inputs'!O208,\n'[14]M1b - Model inputs'!O208,\n'[14]SM1 - DECC Scenario 3 equiv'!O208,\n'[14]SM2 - DECC Scenario 1 equiv'!O208,\n'[14]SM3 - DECC Scenario 2 equiv'!O208,\n'[14]SM4 - DNO Scenario 4 equiv'!O208)","v":1},{"$f":"CHOOSE(view,\n'[13]M1a - Model inputs'!P208,\n'[13]M1b - Model inputs'!P208,\n'[13]SM1 - DECC Scenario 3 equiv'!P208,\n'[13]SM2 - DECC Scenario 1 equiv'!P208,\n'[13]SM3 - DECC Scenario 2 equiv'!P208,\n'[13]SM4 - DNO Scenario 4 equiv'!P208,\n'[14]M1a - Model inputs'!P208,\n'[14]M1b - Model inputs'!P208,\n'[14]SM1 - DECC Scenario 3 equiv'!P208,\n'[14]SM2 - DECC Scenario 1 equiv'!P208,\n'[14]SM3 - DECC Scenario 2 equiv'!P208,\n'[14]SM4 - DNO Scenario 4 equiv'!P208)","v":1},{"$f":"CHOOSE(view,\n'[13]M1a - Model inputs'!Q208,\n'[13]M1b - Model inputs'!Q208,\n'[13]SM1 - DECC Scenario 3 equiv'!Q208,\n'[13]SM2 - DECC Scenario 1 equiv'!Q208,\n'[13]SM3 - DECC Scenario 2 equiv'!Q208,\n'[13]SM4 - DNO Scenario 4 equiv'!Q208,\n'[14]M1a - Model inputs'!Q208,\n'[14]M1b - Model inputs'!Q208,\n'[14]SM1 - DECC Scenario 3 equiv'!Q208,\n'[14]SM2 - DECC Scenario 1 equiv'!Q208,\n'[14]SM3 - DECC Scenario 2 equiv'!Q208,\n'[14]SM4 - DNO Scenario 4 equiv'!Q208)","v":1},{"$f":"CHOOSE(view,\n'[13]M1a - Model inputs'!R208,\n'[13]M1b - Model inputs'!R208,\n'[13]SM1 - DECC Scenario 3 equiv'!R208,\n'[13]SM2 - DECC Scenario 1 equiv'!R208,\n'[13]SM3 - DECC Scenario 2 equiv'!R208,\n'[13]SM4 - DNO Scenario 4 equiv'!R208,\n'[14]M1a - Model inputs'!R208,\n'[14]M1b - Model inputs'!R208,\n'[14]SM1 - DECC Scenario 3 equiv'!R208,\n'[14]SM2 - DECC Scenario 1 equiv'!R208,\n'[14]SM3 - DECC Scenario 2 equiv'!R208,\n'[14]SM4 - DNO Scenario 4 equiv'!R208)","v":1},{"$f":"CHOOSE(view,\n'[13]M1a - Model inputs'!S208,\n'[13]M1b - Model inputs'!S208,\n'[13]SM1 - DECC Scenario 3 equiv'!S208,\n'[13]SM2 - DECC Scenario 1 equiv'!S208,\n'[13]SM3 - DECC Scenario 2 equiv'!S208,\n'[13]SM4 - DNO Scenario 4 equiv'!S208,\n'[14]M1a - Model inputs'!S208,\n'[14]M1b - Model inputs'!S208,\n'[14]SM1 - DECC Scenario 3 equiv'!S208,\n'[14]SM2 - DECC Scenario 1 equiv'!S208,\n'[14]SM3 - DECC Scenario 2 equiv'!S208,\n'[14]SM4 - DNO Scenario 4 equiv'!S208)","v":1}]
[]
[null,null,null,null,{"$f":"Input!E141","v":"Allowed uncertain costs (Specified street work costs)"},null,"£m 12/13 prices",null,null,null,null,null,null,null,null,null,null,null,null,null,null,null,null,null,null,null,null,null,null,null,null,null,null,null,null,{"$f":"AJ23","v":2.097876800950849E-2},0.12594039111563171,0.12703864546867233,0.12875414260420373,0.13048117703170223,0.13224330983300153,0.13402196055974611,0.13589691359867659]
[null,null,null,null,{"$f":"Input!E142","v":"Allocation to load related capex"},null,"%",null,null,null,null,null,null,null,null,null,null,null,null,null,null,null,null,null,null,null,null,null,null,null,null,null,null,null,null,{"$f":"CHOOSE(view,\n'[13]M1a - Model inputs'!L211,\n'[13]M1b - Model inputs'!L211,\n'[13]SM1 - DECC Scenario 3 equiv'!L211,\n'[13]SM2 - DECC Scenario 1 equiv'!L211,\n'[13]SM3 - DECC Scenario 2 equiv'!L211,\n'[13]SM4 - DNO Scenario 4 equiv'!L211,\n'[14]M1a - Model inputs'!L211,\n'[14]M1b - Model inputs'!L211,\n'[14]SM1 - DECC Scenario 3 equiv'!L211,\n'[14]SM2 - DECC Scenario 1 equiv'!L211,\n'[14]SM3 - DECC Scenario 2 equiv'!L211,\n'[14]SM4 - DNO Scenario 4 equiv'!L211)","v":0},{"$f":"CHOOSE(view,\n'[13]M1a - Model inputs'!M211,\n'[13]M1b - Model inputs'!M211,\n'[13]SM1 - DECC Scenario 3 equiv'!M211,\n'[13]SM2 - DECC Scenario 1 equiv'!M211,\n'[13]SM3 - DECC Scenario 2 equiv'!M211,\n'[13]SM4 - DNO Scenario 4 equiv'!M211,\n'[14]M1a - Model inputs'!M211,\n'[14]M1b - Model inputs'!M211,\n'[14]SM1 - DECC Scenario 3 equiv'!M211,\n'[14]SM2 - DECC Scenario 1 equiv'!M211,\n'[14]SM3 - DECC Scenario 2 equiv'!M211,\n'[14]SM4 - DNO Scenario 4 equiv'!M211)","v":0},{"$f":"CHOOSE(view,\n'[13]M1a - Model inputs'!N211,\n'[13]M1b - Model inputs'!N211,\n'[13]SM1 - DECC Scenario 3 equiv'!N211,\n'[13]SM2 - DECC Scenario 1 equiv'!N211,\n'[13]SM3 - DECC Scenario 2 equiv'!N211,\n'[13]SM4 - DNO Scenario 4 equiv'!N211,\n'[14]M1a - Model inputs'!N211,\n'[14]M1b - Model inputs'!N211,\n'[14]SM1 - DECC Scenario 3 equiv'!N211,\n'[14]SM2 - DECC Scenario 1 equiv'!N211,\n'[14]SM3 - DECC Scenario 2 equiv'!N211,\n'[14]SM4 - DNO Scenario 4 equiv'!N211)","v":0},{"$f":"CHOOSE(view,\n'[13]M1a - Model inputs'!O211,\n'[13]M1b - Model inputs'!O211,\n'[13]SM1 - DECC Scenario 3 equiv'!O211,\n'[13]SM2 - DECC Scenario 1 equiv'!O211,\n'[13]SM3 - DECC Scenario 2 equiv'!O211,\n'[13]SM4 - DNO Scenario 4 equiv'!O211,\n'[14]M1a - Model inputs'!O211,\n'[14]M1b - Model inputs'!O211,\n'[14]SM1 - DECC Scenario 3 equiv'!O211,\n'[14]SM2 - DECC Scenario 1 equiv'!O211,\n'[14]SM3 - DECC Scenario 2 equiv'!O211,\n'[14]SM4 - DNO Scenario 4 equiv'!O211)","v":0},{"$f":"CHOOSE(view,\n'[13]M1a - Model inputs'!P211,\n'[13]M1b - Model inputs'!P211,\n'[13]SM1 - DECC Scenario 3 equiv'!P211,\n'[13]SM2 - DECC Scenario 1 equiv'!P211,\n'[13]SM3 - DECC Scenario 2 equiv'!P211,\n'[13]SM4 - DNO Scenario 4 equiv'!P211,\n'[14]M1a - Model inputs'!P211,\n'[14]M1b - Model inputs'!P211,\n'[14]SM1 - DECC Scenario 3 equiv'!P211,\n'[14]SM2 - DECC Scenario 1 equiv'!P211,\n'[14]SM3 - DECC Scenario 2 equiv'!P211,\n'[14]SM4 - DNO Scenario 4 equiv'!P211)","v":0},{"$f":"CHOOSE(view,\n'[13]M1a - Model inputs'!Q211,\n'[13]M1b - Model inputs'!Q211,\n'[13]SM1 - DECC Scenario 3 equiv'!Q211,\n'[13]SM2 - DECC Scenario 1 equiv'!Q211,\n'[13]SM3 - DECC Scenario 2 equiv'!Q211,\n'[13]SM4 - DNO Scenario 4 equiv'!Q211,\n'[14]M1a - Model inputs'!Q211,\n'[14]M1b - Model inputs'!Q211,\n'[14]SM1 - DECC Scenario 3 equiv'!Q211,\n'[14]SM2 - DECC Scenario 1 equiv'!Q211,\n'[14]SM3 - DECC Scenario 2 equiv'!Q211,\n'[14]SM4 - DNO Scenario 4 equiv'!Q211)","v":0},{"$f":"CHOOSE(view,\n'[13]M1a - Model inputs'!R211,\n'[13]M1b - Model inputs'!R211,\n'[13]SM1 - DECC Scenario 3 equiv'!R211,\n'[13]SM2 - DECC Scenario 1 equiv'!R211,\n'[13]SM3 - DECC Scenario 2 equiv'!R211,\n'[13]SM4 - DNO Scenario 4 equiv'!R211,\n'[14]M1a - Model inputs'!R211,\n'[14]M1b - Model inputs'!R211,\n'[14]SM1 - DECC Scenario 3 equiv'!R211,\n'[14]SM2 - DECC Scenario 1 equiv'!R211,\n'[14]SM3 - DECC Scenario 2 equiv'!R211,\n'[14]SM4 - DNO Scenario 4 equiv'!R211)","v":0},{"$f":"CHOOSE(view,\n'[13]M1a - Model inputs'!S211,\n'[13]M1b - Model inputs'!S211,\n'[13]SM1 - DECC Scenario 3 equiv'!S211,\n'[13]SM2 - DECC Scenario 1 equiv'!S211,\n'[13]SM3 - DECC Scenario 2 equiv'!S211,\n'[13]SM4 - DNO Scenario 4 equiv'!S211,\n'[14]M1a - Model inputs'!S211,\n'[14]M1b - Model inputs'!S211,\n'[14]SM1 - DECC Scenario 3 equiv'!S211,\n'[14]SM2 - DECC Scenario 1 equiv'!S211,\n'[14]SM3 - DECC Scenario 2 equiv'!S211,\n'[14]SM4 - DNO Scenario 4 equiv'!S211)","v":0}]
[null,null,null,null,{"$f":"Input!E143","v":"Allocation to non-load related capex - asset replacement"},null,"%",null,null,null,null,null,null,null,null,null,null,null,null,null,null,null,null,null,null,null,null,null,null,null,null,null,null,null,null,{"$f":"CHOOSE(view,\n'[13]M1a - Model inputs'!L212,\n'[13]M1b - Model inputs'!L212,\n'[13]SM1 - DECC Scenario 3 equiv'!L212,\n'[13]SM2 - DECC Scenario 1 equiv'!L212,\n'[13]SM3 - DECC Scenario 2 equiv'!L212,\n'[13]SM4 - DNO Scenario 4 equiv'!L212,\n'[14]M1a - Model inputs'!L212,\n'[14]M1b - Model inputs'!L212,\n'[14]SM1 - DECC Scenario 3 equiv'!L212,\n'[14]SM2 - DECC Scenario 1 equiv'!L212,\n'[14]SM3 - DECC Scenario 2 equiv'!L212,\n'[14]SM4 - DNO Scenario 4 equiv'!L212)","v":0.79434390395935506},{"$f":"CHOOSE(view,\n'[13]M1a - Model inputs'!M212,\n'[13]M1b - Model inputs'!M212,\n'[13]SM1 - DECC Scenario 3 equiv'!M212,\n'[13]SM2 - DECC Scenario 1 equiv'!M212,\n'[13]SM3 - DECC Scenario 2 equiv'!M212,\n'[13]SM4 - DNO Scenario 4 equiv'!M212,\n'[14]M1a - Model inputs'!M212,\n'[14]M1b - Model inputs'!M212,\n'[14]SM1 - DECC Scenario 3 equiv'!M212,\n'[14]SM2 - DECC Scenario 1 equiv'!M212,\n'[14]SM3 - DECC Scenario 2 equiv'!M212,\n'[14]SM4 - DNO Scenario 4 equiv'!M212)","v":0.79528898920885083},{"$f":"CHOOSE(view,\n'[13]M1a - Model inputs'!N212,\n'[13]M1b - Model inputs'!N212,\n'[13]SM1 - DECC Scenario 3 equiv'!N212,\n'[13]SM2 - DECC Scenario 1 equiv'!N212,\n'[13]SM3 - DECC Scenario 2 equiv'!N212,\n'[13]SM4 - DNO Scenario 4 equiv'!N212,\n'[14]M1a - Model inputs'!N212,\n'[14]M1b - Model inputs'!N212,\n'[14]SM1 - DECC Scenario 3 equiv'!N212,\n'[14]SM2 - DECC Scenario 1 equiv'!N212,\n'[14]SM3 - DECC Scenario 2 equiv'!N212,\n'[14]SM4 - DNO Scenario 4 equiv'!N212)","v":0.79513998599336377},{"$f":"CHOOSE(view,\n'[13]M1a - Model inputs'!O212,\n'[13]M1b - Model inputs'!O212,\n'[13]SM1 - DECC Scenario 3 equiv'!O212,\n'[13]SM2 - DECC Scenario 1 equiv'!O212,\n'[13]SM3 - DECC Scenario 2 equiv'!O212,\n'[13]SM4 - DNO Scenario 4 equiv'!O212,\n'[14]M1a - Model inputs'!O212,\n'[14]M1b - Model inputs'!O212,\n'[14]SM1 - DECC Scenario 3 equiv'!O212,\n'[14]SM2 - DECC Scenario 1 equiv'!O212,\n'[14]SM3 - DECC Scenario 2 equiv'!O212,\n'[14]SM4 - DNO Scenario 4 equiv'!O212)","v":0.7948437412511612},{"$f":"CHOOSE(view,\n'[13]M1a - Model inputs'!P212,\n'[13]M1b - Model inputs'!P212,\n'[13]SM1 - DECC Scenario 3 equiv'!P212,\n'[13]SM2 - DECC Scenario 1 equiv'!P212,\n'[13]SM3 - DECC Scenario 2 equiv'!P212,\n'[13]SM4 - DNO Scenario 4 equiv'!P212,\n'[14]M1a - Model inputs'!P212,\n'[14]M1b - Model inputs'!P212,\n'[14]SM1 - DECC Scenario 3 equiv'!P212,\n'[14]SM2 - DECC Scenario 1 equiv'!P212,\n'[14]SM3 - DECC Scenario 2 equiv'!P212,\n'[14]SM4 - DNO Scenario 4 equiv'!P212)","v":0.79452103285178965},{"$f":"CHOOSE(view,\n'[13]M1a - Model inputs'!Q212,\n'[13]M1b - Model inputs'!Q212,\n'[13]SM1 - DECC Scenario 3 equiv'!Q212,\n'[13]SM2 - DECC Scenario 1 equiv'!Q212,\n'[13]SM3 - DECC Scenario 2 equiv'!Q212,\n'[13]SM4 - DNO Scenario 4 equiv'!Q212,\n'[14]M1a - Model inputs'!Q212,\n'[14]M1b - Model inputs'!Q212,\n'[14]SM1 - DECC Scenario 3 equiv'!Q212,\n'[14]SM2 - DECC Scenario 1 equiv'!Q212,\n'[14]SM3 - DECC Scenario 2 equiv'!Q212,\n'[14]SM4 - DNO Scenario 4 equiv'!Q212)","v":0.79418531214711674},{"$f":"CHOOSE(view,\n'[13]M1a - Model inputs'!R212,\n'[13]M1b - Model inputs'!R212,\n'[13]SM1 - DECC Scenario 3 equiv'!R212,\n'[13]SM2 - DECC Scenario 1 equiv'!R212,\n'[13]SM3 - DECC Scenario 2 equiv'!R212,\n'[13]SM4 - DNO Scenario 4 equiv'!R212,\n'[14]M1a - Model inputs'!R212,\n'[14]M1b - Model inputs'!R212,\n'[14]SM1 - DECC Scenario 3 equiv'!R212,\n'[14]SM2 - DECC Scenario 1 equiv'!R212,\n'[14]SM3 - DECC Scenario 2 equiv'!R212,\n'[14]SM4 - DNO Scenario 4 equiv'!R212)","v":0.79382701074436146},{"$f":"CHOOSE(view,\n'[13]M1a - Model inputs'!S212,\n'[13]M1b - Model inputs'!S212,\n'[13]SM1 - DECC Scenario 3 equiv'!S212,\n'[13]SM2 - DECC Scenario 1 equiv'!S212,\n'[13]SM3 - DECC Scenario 2 equiv'!S212,\n'[13]SM4 - DNO Scenario 4 equiv'!S212,\n'[14]M1a - Model inputs'!S212,\n'[14]M1b - Model inputs'!S212,\n'[14]SM1 - DECC Scenario 3 equiv'!S212,\n'[14]SM2 - DECC Scenario 1 equiv'!S212,\n'[14]SM3 - DECC Scenario 2 equiv'!S212,\n'[14]SM4 - DNO Scenario 4 equiv'!S212)","v":0.79353532808560112}]
[null,null,null,null,{"$f":"Input!E144","v":"Allocation to non-load related capex - other"},null,"%",null,null,null,null,null,null,null,null,null,null,null,null,null,null,null,null,null,null,null,null,null,null,null,null,null,null,null,null,{"$f":"CHOOSE(view,\n'[13]M1a - Model inputs'!L213,\n'[13]M1b - Model inputs'!L213,\n'[13]SM1 - DECC Scenario 3 equiv'!L213,\n'[13]SM2 - DECC Scenario 1 equiv'!L213,\n'[13]SM3 - DECC Scenario 2 equiv'!L213,\n'[13]SM4 - DNO Scenario 4 equiv'!L213,\n'[14]M1a - Model inputs'!L213,\n'[14]M1b - Model inputs'!L213,\n'[14]SM1 - DECC Scenario 3 equiv'!L213,\n'[14]SM2 - DECC Scenario 1 equiv'!L213,\n'[14]SM3 - DECC Scenario 2 equiv'!L213,\n'[14]SM4 - DNO Scenario 4 equiv'!L213)","v":0},{"$f":"CHOOSE(view,\n'[13]M1a - Model inputs'!M213,\n'[13]M1b - Model inputs'!M213,\n'[13]SM1 - DECC Scenario 3 equiv'!M213,\n'[13]SM2 - DECC Scenario 1 equiv'!M213,\n'[13]SM3 - DECC Scenario 2 equiv'!M213,\n'[13]SM4 - DNO Scenario 4 equiv'!M213,\n'[14]M1a - Model inputs'!M213,\n'[14]M1b - Model inputs'!M213,\n'[14]SM1 - DECC Scenario 3 equiv'!M213,\n'[14]SM2 - DECC Scenario 1 equiv'!M213,\n'[14]SM3 - DECC Scenario 2 equiv'!M213,\n'[14]SM4 - DNO Scenario 4 equiv'!M213)","v":0},{"$f":"CHOOSE(view,\n'[13]M1a - Model inputs'!N213,\n'[13]M1b - Model inputs'!N213,\n'[13]SM1 - DECC Scenario 3 equiv'!N213,\n'[13]SM2 - DECC Scenario 1 equiv'!N213,\n'[13]SM3 - DECC Scenario 2 equiv'!N213,\n'[13]SM4 - DNO Scenario 4 equiv'!N213,\n'[14]M1a - Model inputs'!N213,\n'[14]M1b - Model inputs'!N213,\n'[14]SM1 - DECC Scenario 3 equiv'!N213,\n'[14]SM2 - DECC Scenario 1 equiv'!N213,\n'[14]SM3 - DECC Scenario 2 equiv'!N213,\n'[14]SM4 - DNO Scenario 4 equiv'!N213)","v":0},{"$f":"CHOOSE(view,\n'[13]M1a - Model inputs'!O213,\n'[13]M1b - Model inputs'!O213,\n'[13]SM1 - DECC Scenario 3 equiv'!O213,\n'[13]SM2 - DECC Scenario 1 equiv'!O213,\n'[13]SM3 - DECC Scenario 2 equiv'!O213,\n'[13]SM4 - DNO Scenario 4 equiv'!O213,\n'[14]M1a - Model inputs'!O213,\n'[14]M1b - Model inputs'!O213,\n'[14]SM1 - DECC Scenario 3 equiv'!O213,\n'[14]SM2 - DECC Scenario 1 equiv'!O213,\n'[14]SM3 - DECC Scenario 2 equiv'!O213,\n'[14]SM4 - DNO Scenario 4 equiv'!O213)","v":0},{"$f":"CHOOSE(view,\n'[13]M1a - Model inputs'!P213,\n'[13]M1b - Model inputs'!P213,\n'[13]SM1 - DECC Scenario 3 equiv'!P213,\n'[13]SM2 - DECC Scenario 1 equiv'!P213,\n'[13]SM3 - DECC Scenario 2 equiv'!P213,\n'[13]SM4 - DNO Scenario 4 equiv'!P213,\n'[14]M1a - Model inputs'!P213,\n'[14]M1b - Model inputs'!P213,\n'[14]SM1 - DECC Scenario 3 equiv'!P213,\n'[14]SM2 - DECC Scenario 1 equiv'!P213,\n'[14]SM3 - DECC Scenario 2 equiv'!P213,\n'[14]SM4 - DNO Scenario 4 equiv'!P213)","v":0},{"$f":"CHOOSE(view,\n'[13]M1a - Model inputs'!Q213,\n'[13]M1b - Model inputs'!Q213,\n'[13]SM1 - DECC Scenario 3 equiv'!Q213,\n'[13]SM2 - DECC Scenario 1 equiv'!Q213,\n'[13]SM3 - DECC Scenario 2 equiv'!Q213,\n'[13]SM4 - DNO Scenario 4 equiv'!Q213,\n'[14]M1a - Model inputs'!Q213,\n'[14]M1b - Model inputs'!Q213,\n'[14]SM1 - DECC Scenario 3 equiv'!Q213,\n'[14]SM2 - DECC Scenario 1 equiv'!Q213,\n'[14]SM3 - DECC Scenario 2 equiv'!Q213,\n'[14]SM4 - DNO Scenario 4 equiv'!Q213)","v":0},{"$f":"CHOOSE(view,\n'[13]M1a - Model inputs'!R213,\n'[13]M1b - Model inputs'!R213,\n'[13]SM1 - DECC Scenario 3 equiv'!R213,\n'[13]SM2 - DECC Scenario 1 equiv'!R213,\n'[13]SM3 - DECC Scenario 2 equiv'!R213,\n'[13]SM4 - DNO Scenario 4 equiv'!R213,\n'[14]M1a - Model inputs'!R213,\n'[14]M1b - Model inputs'!R213,\n'[14]SM1 - DECC Scenario 3 equiv'!R213,\n'[14]SM2 - DECC Scenario 1 equiv'!R213,\n'[14]SM3 - DECC Scenario 2 equiv'!R213,\n'[14]SM4 - DNO Scenario 4 equiv'!R213)","v":0},{"$f":"CHOOSE(view,\n'[13]M1a - Model inputs'!S213,\n'[13]M1b - Model inputs'!S213,\n'[13]SM1 - DECC Scenario 3 equiv'!S213,\n'[13]SM2 - DECC Scenario 1 equiv'!S213,\n'[13]SM3 - DECC Scenario 2 equiv'!S213,\n'[13]SM4 - DNO Scenario 4 equiv'!S213,\n'[14]M1a - Model inputs'!S213,\n'[14]M1b - Model inputs'!S213,\n'[14]SM1 - DECC Scenario 3 equiv'!S213,\n'[14]SM2 - DECC Scenario 1 equiv'!S213,\n'[14]SM3 - DECC Scenario 2 equiv'!S213,\n'[14]SM4 - DNO Scenario 4 equiv'!S213)","v":0}]
[null,null,null,null,{"$f":"Input!E145","v":"Allocation to faults"},null,"%",null,null,null,null,null,null,null,null,null,null,null,null,null,null,null,null,null,null,null,null,null,null,null,null,null,null,null,null,{"$f":"CHOOSE(view,\n'[13]M1a - Model inputs'!L214,\n'[13]M1b - Model inputs'!L214,\n'[13]SM1 - DECC Scenario 3 equiv'!L214,\n'[13]SM2 - DECC Scenario 1 equiv'!L214,\n'[13]SM3 - DECC Scenario 2 equiv'!L214,\n'[13]SM4 - DNO Scenario 4 equiv'!L214,\n'[14]M1a - Model inputs'!L214,\n'[14]M1b - Model inputs'!L214,\n'[14]SM1 - DECC Scenario 3 equiv'!L214,\n'[14]SM2 - DECC Scenario 1 equiv'!L214,\n'[14]SM3 - DECC Scenario 2 equiv'!L214,\n'[14]SM4 - DNO Scenario 4 equiv'!L214)","v":0.20565609604064491},{"$f":"CHOOSE(view,\n'[13]M1a - Model inputs'!M214,\n'[13]M1b - Model inputs'!M214,\n'[13]SM1 - DECC Scenario 3 equiv'!M214,\n'[13]SM2 - DECC Scenario 1 equiv'!M214,\n'[13]SM3 - DECC Scenario 2 equiv'!M214,\n'[13]SM4 - DNO Scenario 4 equiv'!M214,\n'[14]M1a - Model inputs'!M214,\n'[14]M1b - Model inputs'!M214,\n'[14]SM1 - DECC Scenario 3 equiv'!M214,\n'[14]SM2 - DECC Scenario 1 equiv'!M214,\n'[14]SM3 - DECC Scenario 2 equiv'!M214,\n'[14]SM4 - DNO Scenario 4 equiv'!M214)","v":0.20471101079114915},{"$f":"CHOOSE(view,\n'[13]M1a - Model inputs'!N214,\n'[13]M1b - Model inputs'!N214,\n'[13]SM1 - DECC Scenario 3 equiv'!N214,\n'[13]SM2 - DECC Scenario 1 equiv'!N214,\n'[13]SM3 - DECC Scenario 2 equiv'!N214,\n'[13]SM4 - DNO Scenario 4 equiv'!N214,\n'[14]M1a - Model inputs'!N214,\n'[14]M1b - Model inputs'!N214,\n'[14]SM1 - DECC Scenario 3 equiv'!N214,\n'[14]SM2 - DECC Scenario 1 equiv'!N214,\n'[14]SM3 - DECC Scenario 2 equiv'!N214,\n'[14]SM4 - DNO Scenario 4 equiv'!N214)","v":0.20486001400663612},{"$f":"CHOOSE(view,\n'[13]M1a - Model inputs'!O214,\n'[13]M1b - Model inputs'!O214,\n'[13]SM1 - DECC Scenario 3 equiv'!O214,\n'[13]SM2 - DECC Scenario 1 equiv'!O214,\n'[13]SM3 - DECC Scenario 2 equiv'!O214,\n'[13]SM4 - DNO Scenario 4 equiv'!O214,\n'[14]M1a - Model inputs'!O214,\n'[14]M1b - Model inputs'!O214,\n'[14]SM1 - DECC Scenario 3 equiv'!O214,\n'[14]SM2 - DECC Scenario 1 equiv'!O214,\n'[14]SM3 - DECC Scenario 2 equiv'!O214,\n'[14]SM4 - DNO Scenario 4 equiv'!O214)","v":0.20515625874883886},{"$f":"CHOOSE(view,\n'[13]M1a - Model inputs'!P214,\n'[13]M1b - Model inputs'!P214,\n'[13]SM1 - DECC Scenario 3 equiv'!P214,\n'[13]SM2 - DECC Scenario 1 equiv'!P214,\n'[13]SM3 - DECC Scenario 2 equiv'!P214,\n'[13]SM4 - DNO Scenario 4 equiv'!P214,\n'[14]M1a - Model inputs'!P214,\n'[14]M1b - Model inputs'!P214,\n'[14]SM1 - DECC Scenario 3 equiv'!P214,\n'[14]SM2 - DECC Scenario 1 equiv'!P214,\n'[14]SM3 - DECC Scenario 2 equiv'!P214,\n'[14]SM4 - DNO Scenario 4 equiv'!P214)","v":0.20547896714821032},{"$f":"CHOOSE(view,\n'[13]M1a - Model inputs'!Q214,\n'[13]M1b - Model inputs'!Q214,\n'[13]SM1 - DECC Scenario 3 equiv'!Q214,\n'[13]SM2 - DECC Scenario 1 equiv'!Q214,\n'[13]SM3 - DECC Scenario 2 equiv'!Q214,\n'[13]SM4 - DNO Scenario 4 equiv'!Q214,\n'[14]M1a - Model inputs'!Q214,\n'[14]M1b - Model inputs'!Q214,\n'[14]SM1 - DECC Scenario 3 equiv'!Q214,\n'[14]SM2 - DECC Scenario 1 equiv'!Q214,\n'[14]SM3 - DECC Scenario 2 equiv'!Q214,\n'[14]SM4 - DNO Scenario 4 equiv'!Q214)","v":0.20581468785288307},{"$f":"CHOOSE(view,\n'[13]M1a - Model inputs'!R214,\n'[13]M1b - Model inputs'!R214,\n'[13]SM1 - DECC Scenario 3 equiv'!R214,\n'[13]SM2 - DECC Scenario 1 equiv'!R214,\n'[13]SM3 - DECC Scenario 2 equiv'!R214,\n'[13]SM4 - DNO Scenario 4 equiv'!R214,\n'[14]M1a - Model inputs'!R214,\n'[14]M1b - Model inputs'!R214,\n'[14]SM1 - DECC Scenario 3 equiv'!R214,\n'[14]SM2 - DECC Scenario 1 equiv'!R214,\n'[14]SM3 - DECC Scenario 2 equiv'!R214,\n'[14]SM4 - DNO Scenario 4 equiv'!R214)","v":0.20617298925563843},{"$f":"CHOOSE(view,\n'[13]M1a - Model inputs'!S214,\n'[13]M1b - Model inputs'!S214,\n'[13]SM1 - DECC Scenario 3 equiv'!S214,\n'[13]SM2 - DECC Scenario 1 equiv'!S214,\n'[13]SM3 - DECC Scenario 2 equiv'!S214,\n'[13]SM4 - DNO Scenario 4 equiv'!S214,\n'[14]M1a - Model inputs'!S214,\n'[14]M1b - Model inputs'!S214,\n'[14]SM1 - DECC Scenario 3 equiv'!S214,\n'[14]SM2 - DECC Scenario 1 equiv'!S214,\n'[14]SM3 - DECC Scenario 2 equiv'!S214,\n'[14]SM4 - DNO Scenario 4 equiv'!S214)","v":0.20646467191439888}]
[null,null,null,null,{"$f":"Input!E146","v":"Allocation to tree cutting"},null,"%",null,null,null,null,null,null,null,null,null,null,null,null,null,null,null,null,null,null,null,null,null,null,null,null,null,null,null,null,{"$f":"CHOOSE(view,\n'[13]M1a - Model inputs'!L215,\n'[13]M1b - Model inputs'!L215,\n'[13]SM1 - DECC Scenario 3 equiv'!L215,\n'[13]SM2 - DECC Scenario 1 equiv'!L215,\n'[13]SM3 - DECC Scenario 2 equiv'!L215,\n'[13]SM4 - DNO Scenario 4 equiv'!L215,\n'[14]M1a - Model inputs'!L215,\n'[14]M1b - Model inputs'!L215,\n'[14]SM1 - DECC Scenario 3 equiv'!L215,\n'[14]SM2 - DECC Scenario 1 equiv'!L215,\n'[14]SM3 - DECC Scenario 2 equiv'!L215,\n'[14]SM4 - DNO Scenario 4 equiv'!L215)","v":0},{"$f":"CHOOSE(view,\n'[13]M1a - Model inputs'!M215,\n'[13]M1b - Model inputs'!M215,\n'[13]SM1 - DECC Scenario 3 equiv'!M215,\n'[13]SM2 - DECC Scenario 1 equiv'!M215,\n'[13]SM3 - DECC Scenario 2 equiv'!M215,\n'[13]SM4 - DNO Scenario 4 equiv'!M215,\n'[14]M1a - Model inputs'!M215,\n'[14]M1b - Model inputs'!M215,\n'[14]SM1 - DECC Scenario 3 equiv'!M215,\n'[14]SM2 - DECC Scenario 1 equiv'!M215,\n'[14]SM3 - DECC Scenario 2 equiv'!M215,\n'[14]SM4 - DNO Scenario 4 equiv'!M215)","v":0},{"$f":"CHOOSE(view,\n'[13]M1a - Model inputs'!N215,\n'[13]M1b - Model inputs'!N215,\n'[13]SM1 - DECC Scenario 3 equiv'!N215,\n'[13]SM2 - DECC Scenario 1 equiv'!N215,\n'[13]SM3 - DECC Scenario 2 equiv'!N215,\n'[13]SM4 - DNO Scenario 4 equiv'!N215,\n'[14]M1a - Model inputs'!N215,\n'[14]M1b - Model inputs'!N215,\n'[14]SM1 - DECC Scenario 3 equiv'!N215,\n'[14]SM2 - DECC Scenario 1 equiv'!N215,\n'[14]SM3 - DECC Scenario 2 equiv'!N215,\n'[14]SM4 - DNO Scenario 4 equiv'!N215)","v":0},{"$f":"CHOOSE(view,\n'[13]M1a - Model inputs'!O215,\n'[13]M1b - Model inputs'!O215,\n'[13]SM1 - DECC Scenario 3 equiv'!O215,\n'[13]SM2 - DECC Scenario 1 equiv'!O215,\n'[13]SM3 - DECC Scenario 2 equiv'!O215,\n'[13]SM4 - DNO Scenario 4 equiv'!O215,\n'[14]M1a - Model inputs'!O215,\n'[14]M1b - Model inputs'!O215,\n'[14]SM1 - DECC Scenario 3 equiv'!O215,\n'[14]SM2 - DECC Scenario 1 equiv'!O215,\n'[14]SM3 - DECC Scenario 2 equiv'!O215,\n'[14]SM4 - DNO Scenario 4 equiv'!O215)","v":0},{"$f":"CHOOSE(view,\n'[13]M1a - Model inputs'!P215,\n'[13]M1b - Model inputs'!P215,\n'[13]SM1 - DECC Scenario 3 equiv'!P215,\n'[13]SM2 - DECC Scenario 1 equiv'!P215,\n'[13]SM3 - DECC Scenario 2 equiv'!P215,\n'[13]SM4 - DNO Scenario 4 equiv'!P215,\n'[14]M1a - Model inputs'!P215,\n'[14]M1b - Model inputs'!P215,\n'[14]SM1 - DECC Scenario 3 equiv'!P215,\n'[14]SM2 - DECC Scenario 1 equiv'!P215,\n'[14]SM3 - DECC Scenario 2 equiv'!P215,\n'[14]SM4 - DNO Scenario 4 equiv'!P215)","v":0},{"$f":"CHOOSE(view,\n'[13]M1a - Model inputs'!Q215,\n'[13]M1b - Model inputs'!Q215,\n'[13]SM1 - DECC Scenario 3 equiv'!Q215,\n'[13]SM2 - DECC Scenario 1 equiv'!Q215,\n'[13]SM3 - DECC Scenario 2 equiv'!Q215,\n'[13]SM4 - DNO Scenario 4 equiv'!Q215,\n'[14]M1a - Model inputs'!Q215,\n'[14]M1b - Model inputs'!Q215,\n'[14]SM1 - DECC Scenario 3 equiv'!Q215,\n'[14]SM2 - DECC Scenario 1 equiv'!Q215,\n'[14]SM3 - DECC Scenario 2 equiv'!Q215,\n'[14]SM4 - DNO Scenario 4 equiv'!Q215)","v":0},{"$f":"CHOOSE(view,\n'[13]M1a - Model inputs'!R215,\n'[13]M1b - Model inputs'!R215,\n'[13]SM1 - DECC Scenario 3 equiv'!R215,\n'[13]SM2 - DECC Scenario 1 equiv'!R215,\n'[13]SM3 - DECC Scenario 2 equiv'!R215,\n'[13]SM4 - DNO Scenario 4 equiv'!R215,\n'[14]M1a - Model inputs'!R215,\n'[14]M1b - Model inputs'!R215,\n'[14]SM1 - DECC Scenario 3 equiv'!R215,\n'[14]SM2 - DECC Scenario 1 equiv'!R215,\n'[14]SM3 - DECC Scenario 2 equiv'!R215,\n'[14]SM4 - DNO Scenario 4 equiv'!R215)","v":0},{"$f":"CHOOSE(view,\n'[13]M1a - Model inputs'!S215,\n'[13]M1b - Model inputs'!S215,\n'[13]SM1 - DECC Scenario 3 equiv'!S215,\n'[13]SM2 - DECC Scenario 1 equiv'!S215,\n'[13]SM3 - DECC Scenario 2 equiv'!S215,\n'[13]SM4 - DNO Scenario 4 equiv'!S215,\n'[14]M1a - Model inputs'!S215,\n'[14]M1b - Model inputs'!S215,\n'[14]SM1 - DECC Scenario 3 equiv'!S215,\n'[14]SM2 - DECC Scenario 1 equiv'!S215,\n'[14]SM3 - DECC Scenario 2 equiv'!S215,\n'[14]SM4 - DNO Scenario 4 equiv'!S215)","v":0}]
[null,null,null,null,{"$f":"Input!E147","v":"Allocation to controllable opex"},null,"%",null,null,null,null,null,null,null,null,null,null,null,null,null,null,null,null,null,null,null,null,null,null,null,null,null,null,null,null,{"$f":"CHOOSE(view,\n'[13]M1a - Model inputs'!L216,\n'[13]M1b - Model inputs'!L216,\n'[13]SM1 - DECC Scenario 3 equiv'!L216,\n'[13]SM2 - DECC Scenario 1 equiv'!L216,\n'[13]SM3 - DECC Scenario 2 equiv'!L216,\n'[13]SM4 - DNO Scenario 4 equiv'!L216,\n'[14]M1a - Model inputs'!L216,\n'[14]M1b - Model inputs'!L216,\n'[14]SM1 - DECC Scenario 3 equiv'!L216,\n'[14]SM2 - DECC Scenario 1 equiv'!L216,\n'[14]SM3 - DECC Scenario 2 equiv'!L216,\n'[14]SM4 - DNO Scenario 4 equiv'!L216)","v":0},{"$f":"CHOOSE(view,\n'[13]M1a - Model inputs'!M216,\n'[13]M1b - Model inputs'!M216,\n'[13]SM1 - DECC Scenario 3 equiv'!M216,\n'[13]SM2 - DECC Scenario 1 equiv'!M216,\n'[13]SM3 - DECC Scenario 2 equiv'!M216,\n'[13]SM4 - DNO Scenario 4 equiv'!M216,\n'[14]M1a - Model inputs'!M216,\n'[14]M1b - Model inputs'!M216,\n'[14]SM1 - DECC Scenario 3 equiv'!M216,\n'[14]SM2 - DECC Scenario 1 equiv'!M216,\n'[14]SM3 - DECC Scenario 2 equiv'!M216,\n'[14]SM4 - DNO Scenario 4 equiv'!M216)","v":0},{"$f":"CHOOSE(view,\n'[13]M1a - Model inputs'!N216,\n'[13]M1b - Model inputs'!N216,\n'[13]SM1 - DECC Scenario 3 equiv'!N216,\n'[13]SM2 - DECC Scenario 1 equiv'!N216,\n'[13]SM3 - DECC Scenario 2 equiv'!N216,\n'[13]SM4 - DNO Scenario 4 equiv'!N216,\n'[14]M1a - Model inputs'!N216,\n'[14]M1b - Model inputs'!N216,\n'[14]SM1 - DECC Scenario 3 equiv'!N216,\n'[14]SM2 - DECC Scenario 1 equiv'!N216,\n'[14]SM3 - DECC Scenario 2 equiv'!N216,\n'[14]SM4 - DNO Scenario 4 equiv'!N216)","v":0},{"$f":"CHOOSE(view,\n'[13]M1a - Model inputs'!O216,\n'[13]M1b - Model inputs'!O216,\n'[13]SM1 - DECC Scenario 3 equiv'!O216,\n'[13]SM2 - DECC Scenario 1 equiv'!O216,\n'[13]SM3 - DECC Scenario 2 equiv'!O216,\n'[13]SM4 - DNO Scenario 4 equiv'!O216,\n'[14]M1a - Model inputs'!O216,\n'[14]M1b - Model inputs'!O216,\n'[14]SM1 - DECC Scenario 3 equiv'!O216,\n'[14]SM2 - DECC Scenario 1 equiv'!O216,\n'[14]SM3 - DECC Scenario 2 equiv'!O216,\n'[14]SM4 - DNO Scenario 4 equiv'!O216)","v":0},{"$f":"CHOOSE(view,\n'[13]M1a - Model inputs'!P216,\n'[13]M1b - Model inputs'!P216,\n'[13]SM1 - DECC Scenario 3 equiv'!P216,\n'[13]SM2 - DECC Scenario 1 equiv'!P216,\n'[13]SM3 - DECC Scenario 2 equiv'!P216,\n'[13]SM4 - DNO Scenario 4 equiv'!P216,\n'[14]M1a - Model inputs'!P216,\n'[14]M1b - Model inputs'!P216,\n'[14]SM1 - DECC Scenario 3 equiv'!P216,\n'[14]SM2 - DECC Scenario 1 equiv'!P216,\n'[14]SM3 - DECC Scenario 2 equiv'!P216,\n'[14]SM4 - DNO Scenario 4 equiv'!P216)","v":0},{"$f":"CHOOSE(view,\n'[13]M1a - Model inputs'!Q216,\n'[13]M1b - Model inputs'!Q216,\n'[13]SM1 - DECC Scenario 3 equiv'!Q216,\n'[13]SM2 - DECC Scenario 1 equiv'!Q216,\n'[13]SM3 - DECC Scenario 2 equiv'!Q216,\n'[13]SM4 - DNO Scenario 4 equiv'!Q216,\n'[14]M1a - Model inputs'!Q216,\n'[14]M1b - Model inputs'!Q216,\n'[14]SM1 - DECC Scenario 3 equiv'!Q216,\n'[14]SM2 - DECC Scenario 1 equiv'!Q216,\n'[14]SM3 - DECC Scenario 2 equiv'!Q216,\n'[14]SM4 - DNO Scenario 4 equiv'!Q216)","v":0},{"$f":"CHOOSE(view,\n'[13]M1a - Model inputs'!R216,\n'[13]M1b - Model inputs'!R216,\n'[13]SM1 - DECC Scenario 3 equiv'!R216,\n'[13]SM2 - DECC Scenario 1 equiv'!R216,\n'[13]SM3 - DECC Scenario 2 equiv'!R216,\n'[13]SM4 - DNO Scenario 4 equiv'!R216,\n'[14]M1a - Model inputs'!R216,\n'[14]M1b - Model inputs'!R216,\n'[14]SM1 - DECC Scenario 3 equiv'!R216,\n'[14]SM2 - DECC Scenario 1 equiv'!R216,\n'[14]SM3 - DECC Scenario 2 equiv'!R216,\n'[14]SM4 - DNO Scenario 4 equiv'!R216)","v":0},{"$f":"CHOOSE(view,\n'[13]M1a - Model inputs'!S216,\n'[13]M1b - Model inputs'!S216,\n'[13]SM1 - DECC Scenario 3 equiv'!S216,\n'[13]SM2 - DECC Scenario 1 equiv'!S216,\n'[13]SM3 - DECC Scenario 2 equiv'!S216,\n'[13]SM4 - DNO Scenario 4 equiv'!S216,\n'[14]M1a - Model inputs'!S216,\n'[14]M1b - Model inputs'!S216,\n'[14]SM1 - DECC Scenario 3 equiv'!S216,\n'[14]SM2 - DECC Scenario 1 equiv'!S216,\n'[14]SM3 - DECC Scenario 2 equiv'!S216,\n'[14]SM4 - DNO Scenario 4 equiv'!S216)","v":0}]
[]
[null,null,null,null,{"$f":"Input!E149","v":"Allowed uncertain costs (Load related re-operner)"},null,"£m 12/13 prices",null,null,null,null,null,null,null,null,null,null,null,null,null,null,null,null,null,null,null,null,null,null,null,null,null,null,null,null,{"$f":"AJ24","v":0},{"$f":"AK24","v":0},0,0,0,0,0,0]
[null,null,null,null,{"$f":"Input!E150","v":"Allocation to load related capex"},null,"%",null,null,null,null,null,null,null,null,null,null,null,null,null,null,null,null,null,null,null,null,null,null,null,null,null,null,null,null,{"$f":"CHOOSE(view,\n'[13]M1a - Model inputs'!L163,\n'[13]M1b - Model inputs'!L163,\n'[13]SM1 - DECC Scenario 3 equiv'!L163,\n'[13]SM2 - DECC Scenario 1 equiv'!L163,\n'[13]SM3 - DECC Scenario 2 equiv'!L163,\n'[13]SM4 - DNO Scenario 4 equiv'!L163,\n'[14]M1a - Model inputs'!L163,\n'[14]M1b - Model inputs'!L163,\n'[14]SM1 - DECC Scenario 3 equiv'!L163,\n'[14]SM2 - DECC Scenario 1 equiv'!L163,\n'[14]SM3 - DECC Scenario 2 equiv'!L163,\n'[14]SM4 - DNO Scenario 4 equiv'!L163)","v":1},{"$f":"CHOOSE(view,\n'[13]M1a - Model inputs'!M163,\n'[13]M1b - Model inputs'!M163,\n'[13]SM1 - DECC Scenario 3 equiv'!M163,\n'[13]SM2 - DECC Scenario 1 equiv'!M163,\n'[13]SM3 - DECC Scenario 2 equiv'!M163,\n'[13]SM4 - DNO Scenario 4 equiv'!M163,\n'[14]M1a - Model inputs'!M163,\n'[14]M1b - Model inputs'!M163,\n'[14]SM1 - DECC Scenario 3 equiv'!M163,\n'[14]SM2 - DECC Scenario 1 equiv'!M163,\n'[14]SM3 - DECC Scenario 2 equiv'!M163,\n'[14]SM4 - DNO Scenario 4 equiv'!M163)","v":1},{"$f":"CHOOSE(view,\n'[13]M1a - Model inputs'!N163,\n'[13]M1b - Model inputs'!N163,\n'[13]SM1 - DECC Scenario 3 equiv'!N163,\n'[13]SM2 - DECC Scenario 1 equiv'!N163,\n'[13]SM3 - DECC Scenario 2 equiv'!N163,\n'[13]SM4 - DNO Scenario 4 equiv'!N163,\n'[14]M1a - Model inputs'!N163,\n'[14]M1b - Model inputs'!N163,\n'[14]SM1 - DECC Scenario 3 equiv'!N163,\n'[14]SM2 - DECC Scenario 1 equiv'!N163,\n'[14]SM3 - DECC Scenario 2 equiv'!N163,\n'[14]SM4 - DNO Scenario 4 equiv'!N163)","v":1},{"$f":"CHOOSE(view,\n'[13]M1a - Model inputs'!O163,\n'[13]M1b - Model inputs'!O163,\n'[13]SM1 - DECC Scenario 3 equiv'!O163,\n'[13]SM2 - DECC Scenario 1 equiv'!O163,\n'[13]SM3 - DECC Scenario 2 equiv'!O163,\n'[13]SM4 - DNO Scenario 4 equiv'!O163,\n'[14]M1a - Model inputs'!O163,\n'[14]M1b - Model inputs'!O163,\n'[14]SM1 - DECC Scenario 3 equiv'!O163,\n'[14]SM2 - DECC Scenario 1 equiv'!O163,\n'[14]SM3 - DECC Scenario 2 equiv'!O163,\n'[14]SM4 - DNO Scenario 4 equiv'!O163)","v":1},{"$f":"CHOOSE(view,\n'[13]M1a - Model inputs'!P163,\n'[13]M1b - Model inputs'!P163,\n'[13]SM1 - DECC Scenario 3 equiv'!P163,\n'[13]SM2 - DECC Scenario 1 equiv'!P163,\n'[13]SM3 - DECC Scenario 2 equiv'!P163,\n'[13]SM4 - DNO Scenario 4 equiv'!P163,\n'[14]M1a - Model inputs'!P163,\n'[14]M1b - Model inputs'!P163,\n'[14]SM1 - DECC Scenario 3 equiv'!P163,\n'[14]SM2 - DECC Scenario 1 equiv'!P163,\n'[14]SM3 - DECC Scenario 2 equiv'!P163,\n'[14]SM4 - DNO Scenario 4 equiv'!P163)","v":1},{"$f":"CHOOSE(view,\n'[13]M1a - Model inputs'!Q163,\n'[13]M1b - Model inputs'!Q163,\n'[13]SM1 - DECC Scenario 3 equiv'!Q163,\n'[13]SM2 - DECC Scenario 1 equiv'!Q163,\n'[13]SM3 - DECC Scenario 2 equiv'!Q163,\n'[13]SM4 - DNO Scenario 4 equiv'!Q163,\n'[14]M1a - Model inputs'!Q163,\n'[14]M1b - Model inputs'!Q163,\n'[14]SM1 - DECC Scenario 3 equiv'!Q163,\n'[14]SM2 - DECC Scenario 1 equiv'!Q163,\n'[14]SM3 - DECC Scenario 2 equiv'!Q163,\n'[14]SM4 - DNO Scenario 4 equiv'!Q163)","v":1},{"$f":"CHOOSE(view,\n'[13]M1a - Model inputs'!R163,\n'[13]M1b - Model inputs'!R163,\n'[13]SM1 - DECC Scenario 3 equiv'!R163,\n'[13]SM2 - DECC Scenario 1 equiv'!R163,\n'[13]SM3 - DECC Scenario 2 equiv'!R163,\n'[13]SM4 - DNO Scenario 4 equiv'!R163,\n'[14]M1a - Model inputs'!R163,\n'[14]M1b - Model inputs'!R163,\n'[14]SM1 - DECC Scenario 3 equiv'!R163,\n'[14]SM2 - DECC Scenario 1 equiv'!R163,\n'[14]SM3 - DECC Scenario 2 equiv'!R163,\n'[14]SM4 - DNO Scenario 4 equiv'!R163)","v":1},{"$f":"CHOOSE(view,\n'[13]M1a - Model inputs'!S163,\n'[13]M1b - Model inputs'!S163,\n'[13]SM1 - DECC Scenario 3 equiv'!S163,\n'[13]SM2 - DECC Scenario 1 equiv'!S163,\n'[13]SM3 - DECC Scenario 2 equiv'!S163,\n'[13]SM4 - DNO Scenario 4 equiv'!S163,\n'[14]M1a - Model inputs'!S163,\n'[14]M1b - Model inputs'!S163,\n'[14]SM1 - DECC Scenario 3 equiv'!S163,\n'[14]SM2 - DECC Scenario 1 equiv'!S163,\n'[14]SM3 - DECC Scenario 2 equiv'!S163,\n'[14]SM4 - DNO Scenario 4 equiv'!S163)","v":1}]
[null,null,null,null,{"$f":"Input!E151","v":"Allocation to non-load related capex - asset replacement"},null,"%",null,null,null,null,null,null,null,null,null,null,null,null,null,null,null,null,null,null,null,null,null,null,null,null,null,null,null,null,{"$f":"CHOOSE(view,\n'[13]M1a - Model inputs'!L164,\n'[13]M1b - Model inputs'!L164,\n'[13]SM1 - DECC Scenario 3 equiv'!L164,\n'[13]SM2 - DECC Scenario 1 equiv'!L164,\n'[13]SM3 - DECC Scenario 2 equiv'!L164,\n'[13]SM4 - DNO Scenario 4 equiv'!L164,\n'[14]M1a - Model inputs'!L164,\n'[14]M1b - Model inputs'!L164,\n'[14]SM1 - DECC Scenario 3 equiv'!L164,\n'[14]SM2 - DECC Scenario 1 equiv'!L164,\n'[14]SM3 - DECC Scenario 2 equiv'!L164,\n'[14]SM4 - DNO Scenario 4 equiv'!L164)","v":0},{"$f":"CHOOSE(view,\n'[13]M1a - Model inputs'!M164,\n'[13]M1b - Model inputs'!M164,\n'[13]SM1 - DECC Scenario 3 equiv'!M164,\n'[13]SM2 - DECC Scenario 1 equiv'!M164,\n'[13]SM3 - DECC Scenario 2 equiv'!M164,\n'[13]SM4 - DNO Scenario 4 equiv'!M164,\n'[14]M1a - Model inputs'!M164,\n'[14]M1b - Model inputs'!M164,\n'[14]SM1 - DECC Scenario 3 equiv'!M164,\n'[14]SM2 - DECC Scenario 1 equiv'!M164,\n'[14]SM3 - DECC Scenario 2 equiv'!M164,\n'[14]SM4 - DNO Scenario 4 equiv'!M164)","v":0},{"$f":"CHOOSE(view,\n'[13]M1a - Model inputs'!N164,\n'[13]M1b - Model inputs'!N164,\n'[13]SM1 - DECC Scenario 3 equiv'!N164,\n'[13]SM2 - DECC Scenario 1 equiv'!N164,\n'[13]SM3 - DECC Scenario 2 equiv'!N164,\n'[13]SM4 - DNO Scenario 4 equiv'!N164,\n'[14]M1a - Model inputs'!N164,\n'[14]M1b - Model inputs'!N164,\n'[14]SM1 - DECC Scenario 3 equiv'!N164,\n'[14]SM2 - DECC Scenario 1 equiv'!N164,\n'[14]SM3 - DECC Scenario 2 equiv'!N164,\n'[14]SM4 - DNO Scenario 4 equiv'!N164)","v":0},{"$f":"CHOOSE(view,\n'[13]M1a - Model inputs'!O164,\n'[13]M1b - Model inputs'!O164,\n'[13]SM1 - DECC Scenario 3 equiv'!O164,\n'[13]SM2 - DECC Scenario 1 equiv'!O164,\n'[13]SM3 - DECC Scenario 2 equiv'!O164,\n'[13]SM4 - DNO Scenario 4 equiv'!O164,\n'[14]M1a - Model inputs'!O164,\n'[14]M1b - Model inputs'!O164,\n'[14]SM1 - DECC Scenario 3 equiv'!O164,\n'[14]SM2 - DECC Scenario 1 equiv'!O164,\n'[14]SM3 - DECC Scenario 2 equiv'!O164,\n'[14]SM4 - DNO Scenario 4 equiv'!O164)","v":0},{"$f":"CHOOSE(view,\n'[13]M1a - Model inputs'!P164,\n'[13]M1b - Model inputs'!P164,\n'[13]SM1 - DECC Scenario 3 equiv'!P164,\n'[13]SM2 - DECC Scenario 1 equiv'!P164,\n'[13]SM3 - DECC Scenario 2 equiv'!P164,\n'[13]SM4 - DNO Scenario 4 equiv'!P164,\n'[14]M1a - Model inputs'!P164,\n'[14]M1b - Model inputs'!P164,\n'[14]SM1 - DECC Scenario 3 equiv'!P164,\n'[14]SM2 - DECC Scenario 1 equiv'!P164,\n'[14]SM3 - DECC Scenario 2 equiv'!P164,\n'[14]SM4 - DNO Scenario 4 equiv'!P164)","v":0},{"$f":"CHOOSE(view,\n'[13]M1a - Model inputs'!Q164,\n'[13]M1b - Model inputs'!Q164,\n'[13]SM1 - DECC Scenario 3 equiv'!Q164,\n'[13]SM2 - DECC Scenario 1 equiv'!Q164,\n'[13]SM3 - DECC Scenario 2 equiv'!Q164,\n'[13]SM4 - DNO Scenario 4 equiv'!Q164,\n'[14]M1a - Model inputs'!Q164,\n'[14]M1b - Model inputs'!Q164,\n'[14]SM1 - DECC Scenario 3 equiv'!Q164,\n'[14]SM2 - DECC Scenario 1 equiv'!Q164,\n'[14]SM3 - DECC Scenario 2 equiv'!Q164,\n'[14]SM4 - DNO Scenario 4 equiv'!Q164)","v":0},{"$f":"CHOOSE(view,\n'[13]M1a - Model inputs'!R164,\n'[13]M1b - Model inputs'!R164,\n'[13]SM1 - DECC Scenario 3 equiv'!R164,\n'[13]SM2 - DECC Scenario 1 equiv'!R164,\n'[13]SM3 - DECC Scenario 2 equiv'!R164,\n'[13]SM4 - DNO Scenario 4 equiv'!R164,\n'[14]M1a - Model inputs'!R164,\n'[14]M1b - Model inputs'!R164,\n'[14]SM1 - DECC Scenario 3 equiv'!R164,\n'[14]SM2 - DECC Scenario 1 equiv'!R164,\n'[14]SM3 - DECC Scenario 2 equiv'!R164,\n'[14]SM4 - DNO Scenario 4 equiv'!R164)","v":0},{"$f":"CHOOSE(view,\n'[13]M1a - Model inputs'!S164,\n'[13]M1b - Model inputs'!S164,\n'[13]SM1 - DECC Scenario 3 equiv'!S164,\n'[13]SM2 - DECC Scenario 1 equiv'!S164,\n'[13]SM3 - DECC Scenario 2 equiv'!S164,\n'[13]SM4 - DNO Scenario 4 equiv'!S164,\n'[14]M1a - Model inputs'!S164,\n'[14]M1b - Model inputs'!S164,\n'[14]SM1 - DECC Scenario 3 equiv'!S164,\n'[14]SM2 - DECC Scenario 1 equiv'!S164,\n'[14]SM3 - DECC Scenario 2 equiv'!S164,\n'[14]SM4 - DNO Scenario 4 equiv'!S164)","v":0}]
[null,null,null,null,{"$f":"Input!E152","v":"Allocation to non-load related capex - other"},null,"%",null,null,null,null,null,null,null,null,null,null,null,null,null,null,null,null,null,null,null,null,null,null,null,null,null,null,null,null,{"$f":"CHOOSE(view,\n'[13]M1a - Model inputs'!L165,\n'[13]M1b - Model inputs'!L165,\n'[13]SM1 - DECC Scenario 3 equiv'!L165,\n'[13]SM2 - DECC Scenario 1 equiv'!L165,\n'[13]SM3 - DECC Scenario 2 equiv'!L165,\n'[13]SM4 - DNO Scenario 4 equiv'!L165,\n'[14]M1a - Model inputs'!L165,\n'[14]M1b - Model inputs'!L165,\n'[14]SM1 - DECC Scenario 3 equiv'!L165,\n'[14]SM2 - DECC Scenario 1 equiv'!L165,\n'[14]SM3 - DECC Scenario 2 equiv'!L165,\n'[14]SM4 - DNO Scenario 4 equiv'!L165)","v":0},{"$f":"CHOOSE(view,\n'[13]M1a - Model inputs'!M165,\n'[13]M1b - Model inputs'!M165,\n'[13]SM1 - DECC Scenario 3 equiv'!M165,\n'[13]SM2 - DECC Scenario 1 equiv'!M165,\n'[13]SM3 - DECC Scenario 2 equiv'!M165,\n'[13]SM4 - DNO Scenario 4 equiv'!M165,\n'[14]M1a - Model inputs'!M165,\n'[14]M1b - Model inputs'!M165,\n'[14]SM1 - DECC Scenario 3 equiv'!M165,\n'[14]SM2 - DECC Scenario 1 equiv'!M165,\n'[14]SM3 - DECC Scenario 2 equiv'!M165,\n'[14]SM4 - DNO Scenario 4 equiv'!M165)","v":0},{"$f":"CHOOSE(view,\n'[13]M1a - Model inputs'!N165,\n'[13]M1b - Model inputs'!N165,\n'[13]SM1 - DECC Scenario 3 equiv'!N165,\n'[13]SM2 - DECC Scenario 1 equiv'!N165,\n'[13]SM3 - DECC Scenario 2 equiv'!N165,\n'[13]SM4 - DNO Scenario 4 equiv'!N165,\n'[14]M1a - Model inputs'!N165,\n'[14]M1b - Model inputs'!N165,\n'[14]SM1 - DECC Scenario 3 equiv'!N165,\n'[14]SM2 - DECC Scenario 1 equiv'!N165,\n'[14]SM3 - DECC Scenario 2 equiv'!N165,\n'[14]SM4 - DNO Scenario 4 equiv'!N165)","v":0},{"$f":"CHOOSE(view,\n'[13]M1a - Model inputs'!O165,\n'[13]M1b - Model inputs'!O165,\n'[13]SM1 - DECC Scenario 3 equiv'!O165,\n'[13]SM2 - DECC Scenario 1 equiv'!O165,\n'[13]SM3 - DECC Scenario 2 equiv'!O165,\n'[13]SM4 - DNO Scenario 4 equiv'!O165,\n'[14]M1a - Model inputs'!O165,\n'[14]M1b - Model inputs'!O165,\n'[14]SM1 - DECC Scenario 3 equiv'!O165,\n'[14]SM2 - DECC Scenario 1 equiv'!O165,\n'[14]SM3 - DECC Scenario 2 equiv'!O165,\n'[14]SM4 - DNO Scenario 4 equiv'!O165)","v":0},{"$f":"CHOOSE(view,\n'[13]M1a - Model inputs'!P165,\n'[13]M1b - Model inputs'!P165,\n'[13]SM1 - DECC Scenario 3 equiv'!P165,\n'[13]SM2 - DECC Scenario 1 equiv'!P165,\n'[13]SM3 - DECC Scenario 2 equiv'!P165,\n'[13]SM4 - DNO Scenario 4 equiv'!P165,\n'[14]M1a - Model inputs'!P165,\n'[14]M1b - Model inputs'!P165,\n'[14]SM1 - DECC Scenario 3 equiv'!P165,\n'[14]SM2 - DECC Scenario 1 equiv'!P165,\n'[14]SM3 - DECC Scenario 2 equiv'!P165,\n'[14]SM4 - DNO Scenario 4 equiv'!P165)","v":0},{"$f":"CHOOSE(view,\n'[13]M1a - Model inputs'!Q165,\n'[13]M1b - Model inputs'!Q165,\n'[13]SM1 - DECC Scenario 3 equiv'!Q165,\n'[13]SM2 - DECC Scenario 1 equiv'!Q165,\n'[13]SM3 - DECC Scenario 2 equiv'!Q165,\n'[13]SM4 - DNO Scenario 4 equiv'!Q165,\n'[14]M1a - Model inputs'!Q165,\n'[14]M1b - Model inputs'!Q165,\n'[14]SM1 - DECC Scenario 3 equiv'!Q165,\n'[14]SM2 - DECC Scenario 1 equiv'!Q165,\n'[14]SM3 - DECC Scenario 2 equiv'!Q165,\n'[14]SM4 - DNO Scenario 4 equiv'!Q165)","v":0},{"$f":"CHOOSE(view,\n'[13]M1a - Model inputs'!R165,\n'[13]M1b - Model inputs'!R165,\n'[13]SM1 - DECC Scenario 3 equiv'!R165,\n'[13]SM2 - DECC Scenario 1 equiv'!R165,\n'[13]SM3 - DECC Scenario 2 equiv'!R165,\n'[13]SM4 - DNO Scenario 4 equiv'!R165,\n'[14]M1a - Model inputs'!R165,\n'[14]M1b - Model inputs'!R165,\n'[14]SM1 - DECC Scenario 3 equiv'!R165,\n'[14]SM2 - DECC Scenario 1 equiv'!R165,\n'[14]SM3 - DECC Scenario 2 equiv'!R165,\n'[14]SM4 - DNO Scenario 4 equiv'!R165)","v":0},{"$f":"CHOOSE(view,\n'[13]M1a - Model inputs'!S165,\n'[13]M1b - Model inputs'!S165,\n'[13]SM1 - DECC Scenario 3 equiv'!S165,\n'[13]SM2 - DECC Scenario 1 equiv'!S165,\n'[13]SM3 - DECC Scenario 2 equiv'!S165,\n'[13]SM4 - DNO Scenario 4 equiv'!S165,\n'[14]M1a - Model inputs'!S165,\n'[14]M1b - Model inputs'!S165,\n'[14]SM1 - DECC Scenario 3 equiv'!S165,\n'[14]SM2 - DECC Scenario 1 equiv'!S165,\n'[14]SM3 - DECC Scenario 2 equiv'!S165,\n'[14]SM4 - DNO Scenario 4 equiv'!S165)","v":0}]
[null,null,null,null,{"$f":"Input!E153","v":"Allocation to faults"},null,"%",null,null,null,null,null,null,null,null,null,null,null,null,null,null,null,null,null,null,null,null,null,null,null,null,null,null,null,null,{"$f":"CHOOSE(view,\n'[13]M1a - Model inputs'!L166,\n'[13]M1b - Model inputs'!L166,\n'[13]SM1 - DECC Scenario 3 equiv'!L166,\n'[13]SM2 - DECC Scenario 1 equiv'!L166,\n'[13]SM3 - DECC Scenario 2 equiv'!L166,\n'[13]SM4 - DNO Scenario 4 equiv'!L166,\n'[14]M1a - Model inputs'!L166,\n'[14]M1b - Model inputs'!L166,\n'[14]SM1 - DECC Scenario 3 equiv'!L166,\n'[14]SM2 - DECC Scenario 1 equiv'!L166,\n'[14]SM3 - DECC Scenario 2 equiv'!L166,\n'[14]SM4 - DNO Scenario 4 equiv'!L166)","v":0},{"$f":"CHOOSE(view,\n'[13]M1a - Model inputs'!M166,\n'[13]M1b - Model inputs'!M166,\n'[13]SM1 - DECC Scenario 3 equiv'!M166,\n'[13]SM2 - DECC Scenario 1 equiv'!M166,\n'[13]SM3 - DECC Scenario 2 equiv'!M166,\n'[13]SM4 - DNO Scenario 4 equiv'!M166,\n'[14]M1a - Model inputs'!M166,\n'[14]M1b - Model inputs'!M166,\n'[14]SM1 - DECC Scenario 3 equiv'!M166,\n'[14]SM2 - DECC Scenario 1 equiv'!M166,\n'[14]SM3 - DECC Scenario 2 equiv'!M166,\n'[14]SM4 - DNO Scenario 4 equiv'!M166)","v":0},{"$f":"CHOOSE(view,\n'[13]M1a - Model inputs'!N166,\n'[13]M1b - Model inputs'!N166,\n'[13]SM1 - DECC Scenario 3 equiv'!N166,\n'[13]SM2 - DECC Scenario 1 equiv'!N166,\n'[13]SM3 - DECC Scenario 2 equiv'!N166,\n'[13]SM4 - DNO Scenario 4 equiv'!N166,\n'[14]M1a - Model inputs'!N166,\n'[14]M1b - Model inputs'!N166,\n'[14]SM1 - DECC Scenario 3 equiv'!N166,\n'[14]SM2 - DECC Scenario 1 equiv'!N166,\n'[14]SM3 - DECC Scenario 2 equiv'!N166,\n'[14]SM4 - DNO Scenario 4 equiv'!N166)","v":0},{"$f":"CHOOSE(view,\n'[13]M1a - Model inputs'!O166,\n'[13]M1b - Model inputs'!O166,\n'[13]SM1 - DECC Scenario 3 equiv'!O166,\n'[13]SM2 - DECC Scenario 1 equiv'!O166,\n'[13]SM3 - DECC Scenario 2 equiv'!O166,\n'[13]SM4 - DNO Scenario 4 equiv'!O166,\n'[14]M1a - Model inputs'!O166,\n'[14]M1b - Model inputs'!O166,\n'[14]SM1 - DECC Scenario 3 equiv'!O166,\n'[14]SM2 - DECC Scenario 1 equiv'!O166,\n'[14]SM3 - DECC Scenario 2 equiv'!O166,\n'[14]SM4 - DNO Scenario 4 equiv'!O166)","v":0},{"$f":"CHOOSE(view,\n'[13]M1a - Model inputs'!P166,\n'[13]M1b - Model inputs'!P166,\n'[13]SM1 - DECC Scenario 3 equiv'!P166,\n'[13]SM2 - DECC Scenario 1 equiv'!P166,\n'[13]SM3 - DECC Scenario 2 equiv'!P166,\n'[13]SM4 - DNO Scenario 4 equiv'!P166,\n'[14]M1a - Model inputs'!P166,\n'[14]M1b - Model inputs'!P166,\n'[14]SM1 - DECC Scenario 3 equiv'!P166,\n'[14]SM2 - DECC Scenario 1 equiv'!P166,\n'[14]SM3 - DECC Scenario 2 equiv'!P166,\n'[14]SM4 - DNO Scenario 4 equiv'!P166)","v":0},{"$f":"CHOOSE(view,\n'[13]M1a - Model inputs'!Q166,\n'[13]M1b - Model inputs'!Q166,\n'[13]SM1 - DECC Scenario 3 equiv'!Q166,\n'[13]SM2 - DECC Scenario 1 equiv'!Q166,\n'[13]SM3 - DECC Scenario 2 equiv'!Q166,\n'[13]SM4 - DNO Scenario 4 equiv'!Q166,\n'[14]M1a - Model inputs'!Q166,\n'[14]M1b - Model inputs'!Q166,\n'[14]SM1 - DECC Scenario 3 equiv'!Q166,\n'[14]SM2 - DECC Scenario 1 equiv'!Q166,\n'[14]SM3 - DECC Scenario 2 equiv'!Q166,\n'[14]SM4 - DNO Scenario 4 equiv'!Q166)","v":0},{"$f":"CHOOSE(view,\n'[13]M1a - Model inputs'!R166,\n'[13]M1b - Model inputs'!R166,\n'[13]SM1 - DECC Scenario 3 equiv'!R166,\n'[13]SM2 - DECC Scenario 1 equiv'!R166,\n'[13]SM3 - DECC Scenario 2 equiv'!R166,\n'[13]SM4 - DNO Scenario 4 equiv'!R166,\n'[14]M1a - Model inputs'!R166,\n'[14]M1b - Model inputs'!R166,\n'[14]SM1 - DECC Scenario 3 equiv'!R166,\n'[14]SM2 - DECC Scenario 1 equiv'!R166,\n'[14]SM3 - DECC Scenario 2 equiv'!R166,\n'[14]SM4 - DNO Scenario 4 equiv'!R166)","v":0},{"$f":"CHOOSE(view,\n'[13]M1a - Model inputs'!S166,\n'[13]M1b - Model inputs'!S166,\n'[13]SM1 - DECC Scenario 3 equiv'!S166,\n'[13]SM2 - DECC Scenario 1 equiv'!S166,\n'[13]SM3 - DECC Scenario 2 equiv'!S166,\n'[13]SM4 - DNO Scenario 4 equiv'!S166,\n'[14]M1a - Model inputs'!S166,\n'[14]M1b - Model inputs'!S166,\n'[14]SM1 - DECC Scenario 3 equiv'!S166,\n'[14]SM2 - DECC Scenario 1 equiv'!S166,\n'[14]SM3 - DECC Scenario 2 equiv'!S166,\n'[14]SM4 - DNO Scenario 4 equiv'!S166)","v":0}]
[null,null,null,null,{"$f":"Input!E154","v":"Allocation to tree cutting"},null,"%",null,null,null,null,null,null,null,null,null,null,null,null,null,null,null,null,null,null,null,null,null,null,null,null,null,null,null,null,{"$f":"CHOOSE(view,\n'[13]M1a - Model inputs'!L167,\n'[13]M1b - Model inputs'!L167,\n'[13]SM1 - DECC Scenario 3 equiv'!L167,\n'[13]SM2 - DECC Scenario 1 equiv'!L167,\n'[13]SM3 - DECC Scenario 2 equiv'!L167,\n'[13]SM4 - DNO Scenario 4 equiv'!L167,\n'[14]M1a - Model inputs'!L167,\n'[14]M1b - Model inputs'!L167,\n'[14]SM1 - DECC Scenario 3 equiv'!L167,\n'[14]SM2 - DECC Scenario 1 equiv'!L167,\n'[14]SM3 - DECC Scenario 2 equiv'!L167,\n'[14]SM4 - DNO Scenario 4 equiv'!L167)","v":0},{"$f":"CHOOSE(view,\n'[13]M1a - Model inputs'!M167,\n'[13]M1b - Model inputs'!M167,\n'[13]SM1 - DECC Scenario 3 equiv'!M167,\n'[13]SM2 - DECC Scenario 1 equiv'!M167,\n'[13]SM3 - DECC Scenario 2 equiv'!M167,\n'[13]SM4 - DNO Scenario 4 equiv'!M167,\n'[14]M1a - Model inputs'!M167,\n'[14]M1b - Model inputs'!M167,\n'[14]SM1 - DECC Scenario 3 equiv'!M167,\n'[14]SM2 - DECC Scenario 1 equiv'!M167,\n'[14]SM3 - DECC Scenario 2 equiv'!M167,\n'[14]SM4 - DNO Scenario 4 equiv'!M167)","v":0},{"$f":"CHOOSE(view,\n'[13]M1a - Model inputs'!N167,\n'[13]M1b - Model inputs'!N167,\n'[13]SM1 - DECC Scenario 3 equiv'!N167,\n'[13]SM2 - DECC Scenario 1 equiv'!N167,\n'[13]SM3 - DECC Scenario 2 equiv'!N167,\n'[13]SM4 - DNO Scenario 4 equiv'!N167,\n'[14]M1a - Model inputs'!N167,\n'[14]M1b - Model inputs'!N167,\n'[14]SM1 - DECC Scenario 3 equiv'!N167,\n'[14]SM2 - DECC Scenario 1 equiv'!N167,\n'[14]SM3 - DECC Scenario 2 equiv'!N167,\n'[14]SM4 - DNO Scenario 4 equiv'!N167)","v":0},{"$f":"CHOOSE(view,\n'[13]M1a - Model inputs'!O167,\n'[13]M1b - Model inputs'!O167,\n'[13]SM1 - DECC Scenario 3 equiv'!O167,\n'[13]SM2 - DECC Scenario 1 equiv'!O167,\n'[13]SM3 - DECC Scenario 2 equiv'!O167,\n'[13]SM4 - DNO Scenario 4 equiv'!O167,\n'[14]M1a - Model inputs'!O167,\n'[14]M1b - Model inputs'!O167,\n'[14]SM1 - DECC Scenario 3 equiv'!O167,\n'[14]SM2 - DECC Scenario 1 equiv'!O167,\n'[14]SM3 - DECC Scenario 2 equiv'!O167,\n'[14]SM4 - DNO Scenario 4 equiv'!O167)","v":0},{"$f":"CHOOSE(view,\n'[13]M1a - Model inputs'!P167,\n'[13]M1b - Model inputs'!P167,\n'[13]SM1 - DECC Scenario 3 equiv'!P167,\n'[13]SM2 - DECC Scenario 1 equiv'!P167,\n'[13]SM3 - DECC Scenario 2 equiv'!P167,\n'[13]SM4 - DNO Scenario 4 equiv'!P167,\n'[14]M1a - Model inputs'!P167,\n'[14]M1b - Model inputs'!P167,\n'[14]SM1 - DECC Scenario 3 equiv'!P167,\n'[14]SM2 - DECC Scenario 1 equiv'!P167,\n'[14]SM3 - DECC Scenario 2 equiv'!P167,\n'[14]SM4 - DNO Scenario 4 equiv'!P167)","v":0},{"$f":"CHOOSE(view,\n'[13]M1a - Model inputs'!Q167,\n'[13]M1b - Model inputs'!Q167,\n'[13]SM1 - DECC Scenario 3 equiv'!Q167,\n'[13]SM2 - DECC Scenario 1 equiv'!Q167,\n'[13]SM3 - DECC Scenario 2 equiv'!Q167,\n'[13]SM4 - DNO Scenario 4 equiv'!Q167,\n'[14]M1a - Model inputs'!Q167,\n'[14]M1b - Model inputs'!Q167,\n'[14]SM1 - DECC Scenario 3 equiv'!Q167,\n'[14]SM2 - DECC Scenario 1 equiv'!Q167,\n'[14]SM3 - DECC Scenario 2 equiv'!Q167,\n'[14]SM4 - DNO Scenario 4 equiv'!Q167)","v":0},{"$f":"CHOOSE(view,\n'[13]M1a - Model inputs'!R167,\n'[13]M1b - Model inputs'!R167,\n'[13]SM1 - DECC Scenario 3 equiv'!R167,\n'[13]SM2 - DECC Scenario 1 equiv'!R167,\n'[13]SM3 - DECC Scenario 2 equiv'!R167,\n'[13]SM4 - DNO Scenario 4 equiv'!R167,\n'[14]M1a - Model inputs'!R167,\n'[14]M1b - Model inputs'!R167,\n'[14]SM1 - DECC Scenario 3 equiv'!R167,\n'[14]SM2 - DECC Scenario 1 equiv'!R167,\n'[14]SM3 - DECC Scenario 2 equiv'!R167,\n'[14]SM4 - DNO Scenario 4 equiv'!R167)","v":0},{"$f":"CHOOSE(view,\n'[13]M1a - Model inputs'!S167,\n'[13]M1b - Model inputs'!S167,\n'[13]SM1 - DECC Scenario 3 equiv'!S167,\n'[13]SM2 - DECC Scenario 1 equiv'!S167,\n'[13]SM3 - DECC Scenario 2 equiv'!S167,\n'[13]SM4 - DNO Scenario 4 equiv'!S167,\n'[14]M1a - Model inputs'!S167,\n'[14]M1b - Model inputs'!S167,\n'[14]SM1 - DECC Scenario 3 equiv'!S167,\n'[14]SM2 - DECC Scenario 1 equiv'!S167,\n'[14]SM3 - DECC Scenario 2 equiv'!S167,\n'[14]SM4 - DNO Scenario 4 equiv'!S167)","v":0}]
[null,null,null,null,{"$f":"Input!E155","v":"Allocation to controllable opex"},null,"%",null,null,null,null,null,null,null,null,null,null,null,null,null,null,null,null,null,null,null,null,null,null,null,null,null,null,null,null,{"$f":"CHOOSE(view,\n'[13]M1a - Model inputs'!L168,\n'[13]M1b - Model inputs'!L168,\n'[13]SM1 - DECC Scenario 3 equiv'!L168,\n'[13]SM2 - DECC Scenario 1 equiv'!L168,\n'[13]SM3 - DECC Scenario 2 equiv'!L168,\n'[13]SM4 - DNO Scenario 4 equiv'!L168,\n'[14]M1a - Model inputs'!L168,\n'[14]M1b - Model inputs'!L168,\n'[14]SM1 - DECC Scenario 3 equiv'!L168,\n'[14]SM2 - DECC Scenario 1 equiv'!L168,\n'[14]SM3 - DECC Scenario 2 equiv'!L168,\n'[14]SM4 - DNO Scenario 4 equiv'!L168)","v":0},{"$f":"CHOOSE(view,\n'[13]M1a - Model inputs'!M168,\n'[13]M1b - Model inputs'!M168,\n'[13]SM1 - DECC Scenario 3 equiv'!M168,\n'[13]SM2 - DECC Scenario 1 equiv'!M168,\n'[13]SM3 - DECC Scenario 2 equiv'!M168,\n'[13]SM4 - DNO Scenario 4 equiv'!M168,\n'[14]M1a - Model inputs'!M168,\n'[14]M1b - Model inputs'!M168,\n'[14]SM1 - DECC Scenario 3 equiv'!M168,\n'[14]SM2 - DECC Scenario 1 equiv'!M168,\n'[14]SM3 - DECC Scenario 2 equiv'!M168,\n'[14]SM4 - DNO Scenario 4 equiv'!M168)","v":0},{"$f":"CHOOSE(view,\n'[13]M1a - Model inputs'!N168,\n'[13]M1b - Model inputs'!N168,\n'[13]SM1 - DECC Scenario 3 equiv'!N168,\n'[13]SM2 - DECC Scenario 1 equiv'!N168,\n'[13]SM3 - DECC Scenario 2 equiv'!N168,\n'[13]SM4 - DNO Scenario 4 equiv'!N168,\n'[14]M1a - Model inputs'!N168,\n'[14]M1b - Model inputs'!N168,\n'[14]SM1 - DECC Scenario 3 equiv'!N168,\n'[14]SM2 - DECC Scenario 1 equiv'!N168,\n'[14]SM3 - DECC Scenario 2 equiv'!N168,\n'[14]SM4 - DNO Scenario 4 equiv'!N168)","v":0},{"$f":"CHOOSE(view,\n'[13]M1a - Model inputs'!O168,\n'[13]M1b - Model inputs'!O168,\n'[13]SM1 - DECC Scenario 3 equiv'!O168,\n'[13]SM2 - DECC Scenario 1 equiv'!O168,\n'[13]SM3 - DECC Scenario 2 equiv'!O168,\n'[13]SM4 - DNO Scenario 4 equiv'!O168,\n'[14]M1a - Model inputs'!O168,\n'[14]M1b - Model inputs'!O168,\n'[14]SM1 - DECC Scenario 3 equiv'!O168,\n'[14]SM2 - DECC Scenario 1 equiv'!O168,\n'[14]SM3 - DECC Scenario 2 equiv'!O168,\n'[14]SM4 - DNO Scenario 4 equiv'!O168)","v":0},{"$f":"CHOOSE(view,\n'[13]M1a - Model inputs'!P168,\n'[13]M1b - Model inputs'!P168,\n'[13]SM1 - DECC Scenario 3 equiv'!P168,\n'[13]SM2 - DECC Scenario 1 equiv'!P168,\n'[13]SM3 - DECC Scenario 2 equiv'!P168,\n'[13]SM4 - DNO Scenario 4 equiv'!P168,\n'[14]M1a - Model inputs'!P168,\n'[14]M1b - Model inputs'!P168,\n'[14]SM1 - DECC Scenario 3 equiv'!P168,\n'[14]SM2 - DECC Scenario 1 equiv'!P168,\n'[14]SM3 - DECC Scenario 2 equiv'!P168,\n'[14]SM4 - DNO Scenario 4 equiv'!P168)","v":0},{"$f":"CHOOSE(view,\n'[13]M1a - Model inputs'!Q168,\n'[13]M1b - Model inputs'!Q168,\n'[13]SM1 - DECC Scenario 3 equiv'!Q168,\n'[13]SM2 - DECC Scenario 1 equiv'!Q168,\n'[13]SM3 - DECC Scenario 2 equiv'!Q168,\n'[13]SM4 - DNO Scenario 4 equiv'!Q168,\n'[14]M1a - Model inputs'!Q168,\n'[14]M1b - Model inputs'!Q168,\n'[14]SM1 - DECC Scenario 3 equiv'!Q168,\n'[14]SM2 - DECC Scenario 1 equiv'!Q168,\n'[14]SM3 - DECC Scenario 2 equiv'!Q168,\n'[14]SM4 - DNO Scenario 4 equiv'!Q168)","v":0},{"$f":"CHOOSE(view,\n'[13]M1a - Model inputs'!R168,\n'[13]M1b - Model inputs'!R168,\n'[13]SM1 - DECC Scenario 3 equiv'!R168,\n'[13]SM2 - DECC Scenario 1 equiv'!R168,\n'[13]SM3 - DECC Scenario 2 equiv'!R168,\n'[13]SM4 - DNO Scenario 4 equiv'!R168,\n'[14]M1a - Model inputs'!R168,\n'[14]M1b - Model inputs'!R168,\n'[14]SM1 - DECC Scenario 3 equiv'!R168,\n'[14]SM2 - DECC Scenario 1 equiv'!R168,\n'[14]SM3 - DECC Scenario 2 equiv'!R168,\n'[14]SM4 - DNO Scenario 4 equiv'!R168)","v":0},{"$f":"CHOOSE(view,\n'[13]M1a - Model inputs'!S168,\n'[13]M1b - Model inputs'!S168,\n'[13]SM1 - DECC Scenario 3 equiv'!S168,\n'[13]SM2 - DECC Scenario 1 equiv'!S168,\n'[13]SM3 - DECC Scenario 2 equiv'!S168,\n'[13]SM4 - DNO Scenario 4 equiv'!S168,\n'[14]M1a - Model inputs'!S168,\n'[14]M1b - Model inputs'!S168,\n'[14]SM1 - DECC Scenario 3 equiv'!S168,\n'[14]SM2 - DECC Scenario 1 equiv'!S168,\n'[14]SM3 - DECC Scenario 2 equiv'!S168,\n'[14]SM4 - DNO Scenario 4 equiv'!S168)","v":0}]
[]
[null,null,null,null,{"$f":"Input!E157","v":"Spare 1"},null,"£m 12/13 prices",null,null,null,null,null,null,null,null,null,null,null,null,null,null,null,null,null,null,null,null,null,null,null,null,null,null,null,null,{"$f":"AJ25","v":0},{"$f":"AK25","v":0},{"$f":"AL25","v":0},0,{"$f":"AN25","v":0},0,0,0]
[null,null,null,null,{"$f":"Input!E158","v":"Allocation to load related capex"},null,"%"]
[null,null,null,null,{"$f":"Input!E159","v":"Allocation to non-load related capex - asset replacement"},null,"%"]
[null,null,null,null,{"$f":"Input!E160","v":"Allocation to non-load related capex - other"},null,"%"]
[null,null,null,null,{"$f":"Input!E161","v":"Allocation to faults"},null,"%"]
[null,null,null,null,{"$f":"Input!E162","v":"Allocation to tree cutting"},null,"%"]
[null,null,null,null,{"$f":"Input!E163","v":"Allocation to controllable opex"},null,"%"]
[]
[null,null,null,null,{"$f":"E26","v":"Spare 2"},null,"£m 12/13 prices",null,null,null,null,null,null,null,null,null,null,null,null,null,null,null,null,null,null,null,null,null,null,null,null,null,null,null,null,{"$f":"AJ26","v":0},0,0,0,0,0,0,0]
[null,null,null,null,{"$f":"Input!E166","v":"Allocation to load related capex"},null,"%"]
[null,null,null,null,{"$f":"Input!E167","v":"Allocation to non-load related capex - asset replacement"},null,"%"]
[null,null,null,null,{"$f":"Input!E168","v":"Allocation to non-load related capex - other"},null,"%"]
[null,null,null,null,{"$f":"Input!E169","v":"Allocation to faults"},null,"%"]
[null,null,null,null,{"$f":"Input!E170","v":"Allocation to tree cutting"},null,"%"]
[null,null,null,null,{"$f":"Input!E171","v":"Allocation to controllable opex"},null,"%"]
[]
[null,null,null,null,{"$f":"E27","v":"Spare 3"},null,"£m 12/13 prices",null,null,null,null,null,null,null,null,null,null,null,null,null,null,null,null,null,null,null,null,null,null,null,null,null,null,null,null,{"$f":"AJ27","v":0},0,0,0,0,0,0,0]
[null,null,null,null,{"$f":"Input!E174","v":"Allocation to load related capex"},null,"%"]
[null,null,null,null,{"$f":"Input!E175","v":"Allocation to non-load related capex - asset replacement"},null,"%"]
[null,null,null,null,{"$f":"Input!E176","v":"Allocation to non-load related capex - other"},null,"%"]
[null,null,null,null,{"$f":"Input!E177","v":"Allocation to faults"},null,"%"]
[null,null,null,null,{"$f":"Input!E178","v":"Allocation to tree cutting"},null,"%"]
[null,null,null,null,{"$f":"Input!E179","v":"Allocation to controllable opex"},null,"%"]
[]
[null,null,null,null,{"$f":"E28","v":"Allowed innovation roll-out mechanism"},null,"£m 12/13 prices",null,null,null,null,null,null,null,null,null,null,null,null,null,null,null,null,null,null,null,null,null,null,null,null,null,null,null,null,{"$f":"AJ28","v":0},{"$f":"AK28","v":0},0,0,0,0,0,0]
[null,null,null,null,{"$f":"Input!E182","v":"Allocation to load related capex"},null,"%",null,null,null,null,null,null,null,null,null,null,null,null,null,null,null,null,null,null,null,null,null,null,null,null,null,null,null,null,0.25,0.25,0.25,0.25,0.25,0.25,0.25,0.25]
[null,null,null,null,{"$f":"Input!E183","v":"Allocation to non-load related capex - asset replacement"},null,"%"]
[null,null,null,null,{"$f":"Input!E184","v":"Allocation to non-load related capex - other"},null,"%",null,null,null,null,null,null,null,null,null,null,null,null,null,null,null,null,null,null,null,null,null,null,null,null,null,null,null,null,0.75,0.75,0.75,0.75,0.75,0.75,0.75,0.75]
[null,null,null,null,{"$f":"Input!E185","v":"Allocation to faults"},null,"%"]
[null,null,null,null,{"$f":"Input!E186","v":"Allocation to tree cutting"},null,"%"]
[null,null,null,null,{"$f":"Input!E187","v":"Allocation to controllable opex"},null,"%"]
[]
[null,null,null,null,{"$f":"Input!E189","v":"Variant allowed load related capex"},null,"£m 12/13 prices",null,null,null,null,null,null,null,null,null,null,null,null,null,null,null,null,null,null,null,null,null,null,null,null,null,null,null,null,{"$f":"(AJ$101*AJ102)+(AJ$109*AJ110)+(AJ$117*AJ118)+(AJ$125*AJ126)+(AJ$133*AJ134)+(AJ$141*AJ142)+(AJ$149*AJ150)+(AJ$157*AJ158)+(AJ$165*AJ166)+(AJ$173*AJ174)+(AJ$181*AJ182)","v":0},0,0,0,0,0,0,0]
[null,null,null,null,{"$f":"Input!E190","v":"Variant allowed non-load related capex - asset replacement"},null,"£m 12/13 prices",null,null,null,null,null,null,null,null,null,null,null,null,null,null,null,null,null,null,null,null,null,null,null,null,null,null,null,null,1.6664356480930603E-2,0.6122206439678981,0.61220049736824844,0.10233942440911083,0.10367003954294526,0.1050256942990902,0.10639025232524196,0.10783900191834642]
[null,null,null,null,{"$f":"Input!E191","v":"Variant allowed non-load related capex - other"},null,"£m 12/13 prices",null,null,null,null,null,null,null,null,null,null,null,null,null,null,null,null,null,null,null,null,null,null,null,null,null,null,null,null,0.41991027870128539,0.42078069780298299,0.41991112794005259,0.42065757966277234,0.421727907116,0.41950438360333842,0.42137514611141536,0.42123360852554503]
[null,null,null,null,{"$f":"Input!E192","v":"Variant allowed faults"},null,"£m 12/13 prices",null,null,null,null,null,null,null,null,null,null,null,null,null,null,null,null,null,null,null,null,null,null,null,null,null,null,null,null,4.314411528577887E-3,2.5781384764713627E-2,2.6025138690096292E-2,2.6414718195092918E-2,2.6811137488756957E-2,2.7217615533911312E-2,2.7631708234504133E-2,2.8057911680330172E-2]
[null,null,null,null,{"$f":"Input!E193","v":"Variant allowed tree cutting"},null,"£m 12/13 prices",null,null,null,null,null,null,null,null,null,null,null,null,null,null,null,null,null,null,null,null,null,null,null,null,null,null,null,null,0,0,0,0,0,0,0,0]
[null,null,null,null,{"$f":"Input!E194","v":"Variant allowed controllable opex"},null,"£m 12/13 prices",null,null,null,null,null,null,null,null,null,null,null,null,null,null,null,null,null,null,null,null,null,null,null,null,null,null,null,null,7.2540320457271962E-2,8.7418050663847613E-2,9.6936353829270558E-2,9.7060113129942602E-2,9.2561129565418954E-2,7.8691650772546445E-2,0,0]
[]
[null,null,null,"Actual"]
[]
[null,null,null,null,{"$f":"Input!E198","v":"Actual load related capex"},null,"£m 12/13 prices",null,null,null,null,null,null,null,null,null,null,null,null,null,null,null,null,null,null,null,null,null,null,null,null,null,null,null,null,{"$f":"AJ12","v":0},0,0,0,0,0,0,0]
[null,null,null,null,{"$f":"Input!E199","v":"Actual non-load related capex - asset replacement"},null,"£m 12/13 prices",null,null,null,null,null,null,null,null,null,null,null,null,null,null,null,null,null,null,null,null,null,null,null,null,null,null,null,null,0,0,0,0,0,0,0,0]
[null,null,null,null,{"$f":"Input!E200","v":"Actual non-load related capex - other"},null,"£m 12/13 prices",null,null,null,null,null,null,null,null,null,null,null,null,null,null,null,null,null,null,null,null,null,null,null,null,null,null,null,null,0,0,0,0,0,0,0,0]
[null,null,null,null,{"$f":"Input!E201","v":"Actual faults"},null,"£m 12/13 prices",null,null,null,null,null,null,null,null,null,null,null,null,null,null,null,null,null,null,null,null,null,null,null,null,null,null,null,null,{"$f":"AJ15","v":0},0,0,0,0,0,0,0]
[null,null,null,null,{"$f":"Input!E202","v":"Actual tree cutting"},null,"£m 12/13 prices",null,null,null,null,null,null,null,null,null,null,null,null,null,null,null,null,null,null,null,null,null,null,null,null,null,null,null,null,0,0,0,0,0,0,0,0]
[null,null,null,null,{"$f":"Input!E203","v":"Actual controllable opex"},null,"£m 12/13 prices",null,null,null,null,null,null,null,null,null,null,null,null,null,null,null,null,null,null,null,null,null,null,null,null,null,null,null,null,{"$f":"AJ17","v":0},0,0,0,0,0,0,0]
[]
[null,null,"Non-totex (all catergorised as 'opex' for tax purposes)"]
[]
[null,null,null,null,"Non-controllable opex (excluding Exit Charges)",null,"£m 12/13 prices",null,null,null,null,null,null,null,null,null,null,null,null,null,null,null,null,null,null,null,null,null,null,null,null,null,null,null,null,{"$f":"CHOOSE(view,\nSUM('[13]M1a - Model inputs'!L115:L121)+SUM('[13]M1a - Model inputs'!L123:L124)+SUM('[13]M1a - Model inputs'!L127:L127),\nSUM('[13]M1b - Model inputs'!L115:L121)+SUM('[13]M1b - Model inputs'!L123:L124)+SUM('[13]M1b - Model inputs'!L127:L127),\nSUM('[13]SM1 - DECC Scenario 3 equiv'!L115:L121)+SUM('[13]SM1 - DECC Scenario 3 equiv'!L123:L124)+SUM('[13]SM1 - DECC Scenario 3 equiv'!L127:L127),\nSUM('[13]SM2 - DECC Scenario 1 equiv'!L115:L121)+SUM('[13]SM2 - DECC Scenario 1 equiv'!L123:L124)+SUM('[13]SM2 - DECC Scenario 1 equiv'!L127:L127),\nSUM('[13]SM3 - DECC Scenario 2 equiv'!L115:L121)+SUM('[13]SM3 - DECC Scenario 2 equiv'!L123:L124)+SUM('[13]SM3 - DECC Scenario 2 equiv'!L127:L127),\nSUM('[13]SM4 - DNO Scenario 4 equiv'!L115:L121)+SUM('[13]SM4 - DNO Scenario 4 equiv'!L123:L124)+SUM('[13]SM4 - DNO Scenario 4 equiv'!L127:L127),\nSUM('[14]M1a - Model inputs'!L115:L121)+SUM('[14]M1a - Model inputs'!L123:L124)+SUM('[14]M1a - Model inputs'!L127:L127),\nSUM('[14]M1b - Model inputs'!L115:L121)+SUM('[14]M1b - Model inputs'!L123:L124)+SUM('[14]M1b - Model inputs'!L127:L127),\nSUM('[14]SM1 - DECC Scenario 3 equiv'!L115:L121)+SUM('[14]SM1 - DECC Scenario 3 equiv'!L123:L124)+SUM('[14]SM1 - DECC Scenario 3 equiv'!L127:L127),\nSUM('[14]SM2 - DECC Scenario 1 equiv'!L115:L121)+SUM('[14]SM2 - DECC Scenario 1 equiv'!L123:L124)+SUM('[14]SM2 - DECC Scenario 1 equiv'!L127:L127),\nSUM('[14]SM3 - DECC Scenario 2 equiv'!L115:L121)+SUM('[14]SM3 - DECC Scenario 2 equiv'!L123:L124)+SUM('[14]SM3 - DECC Scenario 2 equiv'!L127:L127),\nSUM('[14]SM4 - DNO Scenario 4 equiv'!L115:L121)+SUM('[14]SM4 - DNO Scenario 4 equiv'!L123:L124)+SUM('[14]SM4 - DNO Scenario 4 equiv'!L127:L127))","v":16.308959822744832},{"$f":"CHOOSE(view,\nSUM('[13]M1a - Model inputs'!M115:M121)+SUM('[13]M1a - Model inputs'!M123:M124)+SUM('[13]M1a - Model inputs'!M127:M127),\nSUM('[13]M1b - Model inputs'!M115:M121)+SUM('[13]M1b - Model inputs'!M123:M124)+SUM('[13]M1b - Model inputs'!M127:M127),\nSUM('[13]SM1 - DECC Scenario 3 equiv'!M115:M121)+SUM('[13]SM1 - DECC Scenario 3 equiv'!M123:M124)+SUM('[13]SM1 - DECC Scenario 3 equiv'!M127:M127),\nSUM('[13]SM2 - DECC Scenario 1 equiv'!M115:M121)+SUM('[13]SM2 - DECC Scenario 1 equiv'!M123:M124)+SUM('[13]SM2 - DECC Scenario 1 equiv'!M127:M127),\nSUM('[13]SM3 - DECC Scenario 2 equiv'!M115:M121)+SUM('[13]SM3 - DECC Scenario 2 equiv'!M123:M124)+SUM('[13]SM3 - DECC Scenario 2 equiv'!M127:M127),\nSUM('[13]SM4 - DNO Scenario 4 equiv'!M115:M121)+SUM('[13]SM4 - DNO Scenario 4 equiv'!M123:M124)+SUM('[13]SM4 - DNO Scenario 4 equiv'!M127:M127),\nSUM('[14]M1a - Model inputs'!M115:M121)+SUM('[14]M1a - Model inputs'!M123:M124)+SUM('[14]M1a - Model inputs'!M127:M127),\nSUM('[14]M1b - Model inputs'!M115:M121)+SUM('[14]M1b - Model inputs'!M123:M124)+SUM('[14]M1b - Model inputs'!M127:M127),\nSUM('[14]SM1 - DECC Scenario 3 equiv'!M115:M121)+SUM('[14]SM1 - DECC Scenario 3 equiv'!M123:M124)+SUM('[14]SM1 - DECC Scenario 3 equiv'!M127:M127),\nSUM('[14]SM2 - DECC Scenario 1 equiv'!M115:M121)+SUM('[14]SM2 - DECC Scenario 1 equiv'!M123:M124)+SUM('[14]SM2 - DECC Scenario 1 equiv'!M127:M127),\nSUM('[14]SM3 - DECC Scenario 2 equiv'!M115:M121)+SUM('[14]SM3 - DECC Scenario 2 equiv'!M123:M124)+SUM('[14]SM3 - DECC Scenario 2 equiv'!M127:M127),\nSUM('[14]SM4 - DNO Scenario 4 equiv'!M115:M121)+SUM('[14]SM4 - DNO Scenario 4 equiv'!M123:M124)+SUM('[14]SM4 - DNO Scenario 4 equiv'!M127:M127))","v":16.346741471581684},{"$f":"CHOOSE(view,\nSUM('[13]M1a - Model inputs'!N115:N121)+SUM('[13]M1a - Model inputs'!N123:N124)+SUM('[13]M1a - Model inputs'!N127:N127),\nSUM('[13]M1b - Model inputs'!N115:N121)+SUM('[13]M1b - Model inputs'!N123:N124)+SUM('[13]M1b - Model inputs'!N127:N127),\nSUM('[13]SM1 - DECC Scenario 3 equiv'!N115:N121)+SUM('[13]SM1 - DECC Scenario 3 equiv'!N123:N124)+SUM('[13]SM1 - DECC Scenario 3 equiv'!N127:N127),\nSUM('[13]SM2 - DECC Scenario 1 equiv'!N115:N121)+SUM('[13]SM2 - DECC Scenario 1 equiv'!N123:N124)+SUM('[13]SM2 - DECC Scenario 1 equiv'!N127:N127),\nSUM('[13]SM3 - DECC Scenario 2 equiv'!N115:N121)+SUM('[13]SM3 - DECC Scenario 2 equiv'!N123:N124)+SUM('[13]SM3 - DECC Scenario 2 equiv'!N127:N127),\nSUM('[13]SM4 - DNO Scenario 4 equiv'!N115:N121)+SUM('[13]SM4 - DNO Scenario 4 equiv'!N123:N124)+SUM('[13]SM4 - DNO Scenario 4 equiv'!N127:N127),\nSUM('[14]M1a - Model inputs'!N115:N121)+SUM('[14]M1a - Model inputs'!N123:N124)+SUM('[14]M1a - Model inputs'!N127:N127),\nSUM('[14]M1b - Model inputs'!N115:N121)+SUM('[14]M1b - Model inputs'!N123:N124)+SUM('[14]M1b - Model inputs'!N127:N127),\nSUM('[14]SM1 - DECC Scenario 3 equiv'!N115:N121)+SUM('[14]SM1 - DECC Scenario 3 equiv'!N123:N124)+SUM('[14]SM1 - DECC Scenario 3 equiv'!N127:N127),\nSUM('[14]SM2 - DECC Scenario 1 equiv'!N115:N121)+SUM('[14]SM2 - DECC Scenario 1 equiv'!N123:N124)+SUM('[14]SM2 - DECC Scenario 1 equiv'!N127:N127),\nSUM('[14]SM3 - DECC Scenario 2 equiv'!N115:N121)+SUM('[14]SM3 - DECC Scenario 2 equiv'!N123:N124)+SUM('[14]SM3 - DECC Scenario 2 equiv'!N127:N127),\nSUM('[14]SM4 - DNO Scenario 4 equiv'!N115:N121)+SUM('[14]SM4 - DNO Scenario 4 equiv'!N123:N124)+SUM('[14]SM4 - DNO Scenario 4 equiv'!N127:N127))","v":17.819824892231498},{"$f":"CHOOSE(view,\nSUM('[13]M1a - Model inputs'!O115:O121)+SUM('[13]M1a - Model inputs'!O123:O124)+SUM('[13]M1a - Model inputs'!O127:O127),\nSUM('[13]M1b - Model inputs'!O115:O121)+SUM('[13]M1b - Model inputs'!O123:O124)+SUM('[13]M1b - Model inputs'!O127:O127),\nSUM('[13]SM1 - DECC Scenario 3 equiv'!O115:O121)+SUM('[13]SM1 - DECC Scenario 3 equiv'!O123:O124)+SUM('[13]SM1 - DECC Scenario 3 equiv'!O127:O127),\nSUM('[13]SM2 - DECC Scenario 1 equiv'!O115:O121)+SUM('[13]SM2 - DECC Scenario 1 equiv'!O123:O124)+SUM('[13]SM2 - DECC Scenario 1 equiv'!O127:O127),\nSUM('[13]SM3 - DECC Scenario 2 equiv'!O115:O121)+SUM('[13]SM3 - DECC Scenario 2 equiv'!O123:O124)+SUM('[13]SM3 - DECC Scenario 2 equiv'!O127:O127),\nSUM('[13]SM4 - DNO Scenario 4 equiv'!O115:O121)+SUM('[13]SM4 - DNO Scenario 4 equiv'!O123:O124)+SUM('[13]SM4 - DNO Scenario 4 equiv'!O127:O127),\nSUM('[14]M1a - Model inputs'!O115:O121)+SUM('[14]M1a - Model inputs'!O123:O124)+SUM('[14]M1a - Model inputs'!O127:O127),\nSUM('[14]M1b - Model inputs'!O115:O121)+SUM('[14]M1b - Model inputs'!O123:O124)+SUM('[14]M1b - Model inputs'!O127:O127),\nSUM('[14]SM1 - DECC Scenario 3 equiv'!O115:O121)+SUM('[14]SM1 - DECC Scenario 3 equiv'!O123:O124)+SUM('[14]SM1 - DECC Scenario 3 equiv'!O127:O127),\nSUM('[14]SM2 - DECC Scenario 1 equiv'!O115:O121)+SUM('[14]SM2 - DECC Scenario 1 equiv'!O123:O124)+SUM('[14]SM2 - DECC Scenario 1 equiv'!O127:O127),\nSUM('[14]SM3 - DECC Scenario 2 equiv'!O115:O121)+SUM('[14]SM3 - DECC Scenario 2 equiv'!O123:O124)+SUM('[14]SM3 - DECC Scenario 2 equiv'!O127:O127),\nSUM('[14]SM4 - DNO Scenario 4 equiv'!O115:O121)+SUM('[14]SM4 - DNO Scenario 4 equiv'!O123:O124)+SUM('[14]SM4 - DNO Scenario 4 equiv'!O127:O127))","v":20.907702988353297},{"$f":"CHOOSE(view,\nSUM('[13]M1a - Model inputs'!P115:P121)+SUM('[13]M1a - Model inputs'!P123:P124)+SUM('[13]M1a - Model inputs'!P127:P127),\nSUM('[13]M1b - Model inputs'!P115:P121)+SUM('[13]M1b - Model inputs'!P123:P124)+SUM('[13]M1b - Model inputs'!P127:P127),\nSUM('[13]SM1 - DECC Scenario 3 equiv'!P115:P121)+SUM('[13]SM1 - DECC Scenario 3 equiv'!P123:P124)+SUM('[13]SM1 - DECC Scenario 3 equiv'!P127:P127),\nSUM('[13]SM2 - DECC Scenario 1 equiv'!P115:P121)+SUM('[13]SM2 - DECC Scenario 1 equiv'!P123:P124)+SUM('[13]SM2 - DECC Scenario 1 equiv'!P127:P127),\nSUM('[13]SM3 - DECC Scenario 2 equiv'!P115:P121)+SUM('[13]SM3 - DECC Scenario 2 equiv'!P123:P124)+SUM('[13]SM3 - DECC Scenario 2 equiv'!P127:P127),\nSUM('[13]SM4 - DNO Scenario 4 equiv'!P115:P121)+SUM('[13]SM4 - DNO Scenario 4 equiv'!P123:P124)+SUM('[13]SM4 - DNO Scenario 4 equiv'!P127:P127),\nSUM('[14]M1a - Model inputs'!P115:P121)+SUM('[14]M1a - Model inputs'!P123:P124)+SUM('[14]M1a - Model inputs'!P127:P127),\nSUM('[14]M1b - Model inputs'!P115:P121)+SUM('[14]M1b - Model inputs'!P123:P124)+SUM('[14]M1b - Model inputs'!P127:P127),\nSUM('[14]SM1 - DECC Scenario 3 equiv'!P115:P121)+SUM('[14]SM1 - DECC Scenario 3 equiv'!P123:P124)+SUM('[14]SM1 - DECC Scenario 3 equiv'!P127:P127),\nSUM('[14]SM2 - DECC Scenario 1 equiv'!P115:P121)+SUM('[14]SM2 - DECC Scenario 1 equiv'!P123:P124)+SUM('[14]SM2 - DECC Scenario 1 equiv'!P127:P127),\nSUM('[14]SM3 - DECC Scenario 2 equiv'!P115:P121)+SUM('[14]SM3 - DECC Scenario 2 equiv'!P123:P124)+SUM('[14]SM3 - DECC Scenario 2 equiv'!P127:P127),\nSUM('[14]SM4 - DNO Scenario 4 equiv'!P115:P121)+SUM('[14]SM4 - DNO Scenario 4 equiv'!P123:P124)+SUM('[14]SM4 - DNO Scenario 4 equiv'!P127:P127))","v":22.233961558492346},{"$f":"CHOOSE(view,\nSUM('[13]M1a - Model inputs'!Q115:Q121)+SUM('[13]M1a - Model inputs'!Q123:Q124)+SUM('[13]M1a - Model inputs'!Q127:Q127),\nSUM('[13]M1b - Model inputs'!Q115:Q121)+SUM('[13]M1b - Model inputs'!Q123:Q124)+SUM('[13]M1b - Model inputs'!Q127:Q127),\nSUM('[13]SM1 - DECC Scenario 3 equiv'!Q115:Q121)+SUM('[13]SM1 - DECC Scenario 3 equiv'!Q123:Q124)+SUM('[13]SM1 - DECC Scenario 3 equiv'!Q127:Q127),\nSUM('[13]SM2 - DECC Scenario 1 equiv'!Q115:Q121)+SUM('[13]SM2 - DECC Scenario 1 equiv'!Q123:Q124)+SUM('[13]SM2 - DECC Scenario 1 equiv'!Q127:Q127),\nSUM('[13]SM3 - DECC Scenario 2 equiv'!Q115:Q121)+SUM('[13]SM3 - DECC Scenario 2 equiv'!Q123:Q124)+SUM('[13]SM3 - DECC Scenario 2 equiv'!Q127:Q127),\nSUM('[13]SM4 - DNO Scenario 4 equiv'!Q115:Q121)+SUM('[13]SM4 - DNO Scenario 4 equiv'!Q123:Q124)+SUM('[13]SM4 - DNO Scenario 4 equiv'!Q127:Q127),\nSUM('[14]M1a - Model inputs'!Q115:Q121)+SUM('[14]M1a - Model inputs'!Q123:Q124)+SUM('[14]M1a - Model inputs'!Q127:Q127),\nSUM('[14]M1b - Model inputs'!Q115:Q121)+SUM('[14]M1b - Model inputs'!Q123:Q124)+SUM('[14]M1b - Model inputs'!Q127:Q127),\nSUM('[14]SM1 - DECC Scenario 3 equiv'!Q115:Q121)+SUM('[14]SM1 - DECC Scenario 3 equiv'!Q123:Q124)+SUM('[14]SM1 - DECC Scenario 3 equiv'!Q127:Q127),\nSUM('[14]SM2 - DECC Scenario 1 equiv'!Q115:Q121)+SUM('[14]SM2 - DECC Scenario 1 equiv'!Q123:Q124)+SUM('[14]SM2 - DECC Scenario 1 equiv'!Q127:Q127),\nSUM('[14]SM3 - DECC Scenario 2 equiv'!Q115:Q121)+SUM('[14]SM3 - DECC Scenario 2 equiv'!Q123:Q124)+SUM('[14]SM3 - DECC Scenario 2 equiv'!Q127:Q127),\nSUM('[14]SM4 - DNO Scenario 4 equiv'!Q115:Q121)+SUM('[14]SM4 - DNO Scenario 4 equiv'!Q123:Q124)+SUM('[14]SM4 - DNO Scenario 4 equiv'!Q127:Q127))","v":22.812755629549347},{"$f":"CHOOSE(view,\nSUM('[13]M1a - Model inputs'!R115:R121)+SUM('[13]M1a - Model inputs'!R123:R124)+SUM('[13]M1a - Model inputs'!R127:R127),\nSUM('[13]M1b - Model inputs'!R115:R121)+SUM('[13]M1b - Model inputs'!R123:R124)+SUM('[13]M1b - Model inputs'!R127:R127),\nSUM('[13]SM1 - DECC Scenario 3 equiv'!R115:R121)+SUM('[13]SM1 - DECC Scenario 3 equiv'!R123:R124)+SUM('[13]SM1 - DECC Scenario 3 equiv'!R127:R127),\nSUM('[13]SM2 - DECC Scenario 1 equiv'!R115:R121)+SUM('[13]SM2 - DECC Scenario 1 equiv'!R123:R124)+SUM('[13]SM2 - DECC Scenario 1 equiv'!R127:R127),\nSUM('[13]SM3 - DECC Scenario 2 equiv'!R115:R121)+SUM('[13]SM3 - DECC Scenario 2 equiv'!R123:R124)+SUM('[13]SM3 - DECC Scenario 2 equiv'!R127:R127),\nSUM('[13]SM4 - DNO Scenario 4 equiv'!R115:R121)+SUM('[13]SM4 - DNO Scenario 4 equiv'!R123:R124)+SUM('[13]SM4 - DNO Scenario 4 equiv'!R127:R127),\nSUM('[14]M1a - Model inputs'!R115:R121)+SUM('[14]M1a - Model inputs'!R123:R124)+SUM('[14]M1a - Model inputs'!R127:R127),\nSUM('[14]M1b - Model inputs'!R115:R121)+SUM('[14]M1b - Model inputs'!R123:R124)+SUM('[14]M1b - Model inputs'!R127:R127),\nSUM('[14]SM1 - DECC Scenario 3 equiv'!R115:R121)+SUM('[14]SM1 - DECC Scenario 3 equiv'!R123:R124)+SUM('[14]SM1 - DECC Scenario 3 equiv'!R127:R127),\nSUM('[14]SM2 - DECC Scenario 1 equiv'!R115:R121)+SUM('[14]SM2 - DECC Scenario 1 equiv'!R123:R124)+SUM('[14]SM2 - DECC Scenario 1 equiv'!R127:R127),\nSUM('[14]SM3 - DECC Scenario 2 equiv'!R115:R121)+SUM('[14]SM3 - DECC Scenario 2 equiv'!R123:R124)+SUM('[14]SM3 - DECC Scenario 2 equiv'!R127:R127),\nSUM('[14]SM4 - DNO Scenario 4 equiv'!R115:R121)+SUM('[14]SM4 - DNO Scenario 4 equiv'!R123:R124)+SUM('[14]SM4 - DNO Scenario 4 equiv'!R127:R127))","v":22.30553255976475},{"$f":"CHOOSE(view,\nSUM('[13]M1a - Model inputs'!S115:S121)+SUM('[13]M1a - Model inputs'!S123:S124)+SUM('[13]M1a - Model inputs'!S127:S127),\nSUM('[13]M1b - Model inputs'!S115:S121)+SUM('[13]M1b - Model inputs'!S123:S124)+SUM('[13]M1b - Model inputs'!S127:S127),\nSUM('[13]SM1 - DECC Scenario 3 equiv'!S115:S121)+SUM('[13]SM1 - DECC Scenario 3 equiv'!S123:S124)+SUM('[13]SM1 - DECC Scenario 3 equiv'!S127:S127),\nSUM('[13]SM2 - DECC Scenario 1 equiv'!S115:S121)+SUM('[13]SM2 - DECC Scenario 1 equiv'!S123:S124)+SUM('[13]SM2 - DECC Scenario 1 equiv'!S127:S127),\nSUM('[13]SM3 - DECC Scenario 2 equiv'!S115:S121)+SUM('[13]SM3 - DECC Scenario 2 equiv'!S123:S124)+SUM('[13]SM3 - DECC Scenario 2 equiv'!S127:S127),\nSUM('[13]SM4 - DNO Scenario 4 equiv'!S115:S121)+SUM('[13]SM4 - DNO Scenario 4 equiv'!S123:S124)+SUM('[13]SM4 - DNO Scenario 4 equiv'!S127:S127),\nSUM('[14]M1a - Model inputs'!S115:S121)+SUM('[14]M1a - Model inputs'!S123:S124)+SUM('[14]M1a - Model inputs'!S127:S127),\nSUM('[14]M1b - Model inputs'!S115:S121)+SUM('[14]M1b - Model inputs'!S123:S124)+SUM('[14]M1b - Model inputs'!S127:S127),\nSUM('[14]SM1 - DECC Scenario 3 equiv'!S115:S121)+SUM('[14]SM1 - DECC Scenario 3 equiv'!S123:S124)+SUM('[14]SM1 - DECC Scenario 3 equiv'!S127:S127),\nSUM('[14]SM2 - DECC Scenario 1 equiv'!S115:S121)+SUM('[14]SM2 - DECC Scenario 1 equiv'!S123:S124)+SUM('[14]SM2 - DECC Scenario 1 equiv'!S127:S127),\nSUM('[14]SM3 - DECC Scenario 2 equiv'!S115:S121)+SUM('[14]SM3 - DECC Scenario 2 equiv'!S123:S124)+SUM('[14]SM3 - DECC Scenario 2 equiv'!S127:S127),\nSUM('[14]SM4 - DNO Scenario 4 equiv'!S115:S121)+SUM('[14]SM4 - DNO Scenario 4 equiv'!S123:S124)+SUM('[14]SM4 - DNO Scenario 4 equiv'!S127:S127))","v":22.863026694400638}]
[null,null,null,null,"Non-controllable opex (Exit Charges)",null,"£m 12/13 prices",null,null,null,null,null,null,null,null,null,null,null,null,null,null,null,null,null,null,null,null,null,null,null,null,null,null,null,null,{"$f":"AJ29","v":8.6913909966720624},{"$f":"AK29","v":8.7018069966720617},8.7122229966720628,8.7226389966720621,9.2396389966720616,9.2396389966720616,9.2396389966720616,9.2396389966720616]
[null,null,null,null,"Non-controllable opex",null,"£m 12/13 prices",null,null,null,null,null,null,null,null,null,null,null,null,null,null,null,null,null,null,null,null,null,null,null,null,null,null,null,null,{"$f":"SUM(AJ207:AJ208)","v":25.000350819416894},{"$f":"SUM(AK207:AK208)","v":25.048548468253745},26.532047888903563,29.63034198502536,31.47360055516441,32.052394626221407,31.545171556436813,32.102665691072701]
[]
[null,"Direct allowed revenue terms (DARTs)"]
[]
[null,null,null,null,{"$f":"E30","v":"Pension scheme established deficit revenue allowances"},null,"£m 12/13 prices",null,null,null,null,null,null,null,null,null,null,null,null,null,null,null,null,null,null,null,null,null,null,null,null,null,null,null,null,{"$f":"AJ30","v":40.544723030414154},40.544723030414154,40.544723030414154,40.544723030414154,40.544723030414154,40.544723030414154,40.544723030414154,40.544723030414154]
[]
[null,null,null,null,"Pension true-up from previous price controls",null,"£m 12/13 prices"]
[]
[null,null,null,null,{"$f":"Input!E217","v":"Revenue adjustment from previous controls (Base)"},null,"£m 12/13 prices",null,null,null,null,null,null,null,null,null,null,null,null,null,null,null,null,null,null,null,null,null,null,null,null,null,null,null,null,{"$f":"[16]DirectedValues!K19","v":3.5503312206668114},{"$f":"[16]DirectedValues!L19","v":3.7009717743597039},{"$f":"[16]DirectedValues!M19","v":3.8580040067457859},{"$f":"[16]DirectedValues!N19","v":4.0216991167520098},{"$f":"[16]DirectedValues!O19","v":4.1923398102757963},{"$f":"[16]DirectedValues!P19","v":4.3702207884257982},{"$f":"[16]DirectedValues!Q19","v":4.5556492564787057},{"$f":"[16]DirectedValues!R19","v":4.7489454544310963}]
[null,null,null,null,{"$f":"Input!E218","v":"Legacy price control allowed revenue adjustment"},null,"£m 12/13 prices",null,null,null,null,null,null,null,null,null,null,null,null,null,null,null,null,null,null,null,null,null,null,null,null,null,null,null,null,{"$f":"$AJ$31/8*(1+AJ48)^ROUND((AJ7-$AJ7)/365,1)","v":0},0,0,0,0,0,0,0]
[null,null,null,null,"Revenue adjustment from previous controls",null,"£m 12/13 prices",null,null,null,null,null,null,null,null,null,null,null,null,null,null,null,null,null,null,null,null,null,null,null,null,null,null,null,null,{"$f":"AJ217+AJ218","v":3.5503312206668114},{"$f":"AK217+AK218","v":3.7009717743597039},3.8580040067457859,4.0216991167520098,4.1923398102757963,4.3702207884257982,4.5556492564787057,4.7489454544310963]
[]
[null,null,null,null,{"$f":"Input!E221","v":"Legacy Losses Incentive"},null,"£m 12/13 prices"]
[]
[null,null,null,null,{"$f":"Input!E223","v":"ES7 (Miscellaneous) revenue"},null,"£m 12/13 prices",null,null,null,null,null,null,null,null,null,null,null,null,null,null,null,null,null,null,null,null,null,null,null,null,null,null,null,null,{"$f":"CHOOSE(view,\n'[13]M1a - Model inputs'!L157,\n'[13]M1b - Model inputs'!L157,\n'[13]SM1 - DECC Scenario 3 equiv'!L157,\n'[13]SM2 - DECC Scenario 1 equiv'!L157,\n'[13]SM3 - DECC Scenario 2 equiv'!L157,\n'[13]SM4 - DNO Scenario 4 equiv'!L157,\n'[14]M1a - Model inputs'!L157,\n'[14]M1b - Model inputs'!L157,\n'[14]SM1 - DECC Scenario 3 equiv'!L157,\n'[14]SM2 - DECC Scenario 1 equiv'!L157,\n'[14]SM3 - DECC Scenario 2 equiv'!L157,\n'[14]SM4 - DNO Scenario 4 equiv'!L157)","v":0},{"$f":"CHOOSE(view,\n'[13]M1a - Model inputs'!M157,\n'[13]M1b - Model inputs'!M157,\n'[13]SM1 - DECC Scenario 3 equiv'!M157,\n'[13]SM2 - DECC Scenario 1 equiv'!M157,\n'[13]SM3 - DECC Scenario 2 equiv'!M157,\n'[13]SM4 - DNO Scenario 4 equiv'!M157,\n'[14]M1a - Model inputs'!M157,\n'[14]M1b - Model inputs'!M157,\n'[14]SM1 - DECC Scenario 3 equiv'!M157,\n'[14]SM2 - DECC Scenario 1 equiv'!M157,\n'[14]SM3 - DECC Scenario 2 equiv'!M157,\n'[14]SM4 - DNO Scenario 4 equiv'!M157)","v":0},{"$f":"CHOOSE(view,\n'[13]M1a - Model inputs'!N157,\n'[13]M1b - Model inputs'!N157,\n'[13]SM1 - DECC Scenario 3 equiv'!N157,\n'[13]SM2 - DECC Scenario 1 equiv'!N157,\n'[13]SM3 - DECC Scenario 2 equiv'!N157,\n'[13]SM4 - DNO Scenario 4 equiv'!N157,\n'[14]M1a - Model inputs'!N157,\n'[14]M1b - Model inputs'!N157,\n'[14]SM1 - DECC Scenario 3 equiv'!N157,\n'[14]SM2 - DECC Scenario 1 equiv'!N157,\n'[14]SM3 - DECC Scenario 2 equiv'!N157,\n'[14]SM4 - DNO Scenario 4 equiv'!N157)","v":0},{"$f":"CHOOSE(view,\n'[13]M1a - Model inputs'!O157,\n'[13]M1b - Model inputs'!O157,\n'[13]SM1 - DECC Scenario 3 equiv'!O157,\n'[13]SM2 - DECC Scenario 1 equiv'!O157,\n'[13]SM3 - DECC Scenario 2 equiv'!O157,\n'[13]SM4 - DNO Scenario 4 equiv'!O157,\n'[14]M1a - Model inputs'!O157,\n'[14]M1b - Model inputs'!O157,\n'[14]SM1 - DECC Scenario 3 equiv'!O157,\n'[14]SM2 - DECC Scenario 1 equiv'!O157,\n'[14]SM3 - DECC Scenario 2 equiv'!O157,\n'[14]SM4 - DNO Scenario 4 equiv'!O157)","v":0},{"$f":"CHOOSE(view,\n'[13]M1a - Model inputs'!P157,\n'[13]M1b - Model inputs'!P157,\n'[13]SM1 - DECC Scenario 3 equiv'!P157,\n'[13]SM2 - DECC Scenario 1 equiv'!P157,\n'[13]SM3 - DECC Scenario 2 equiv'!P157,\n'[13]SM4 - DNO Scenario 4 equiv'!P157,\n'[14]M1a - Model inputs'!P157,\n'[14]M1b - Model inputs'!P157,\n'[14]SM1 - DECC Scenario 3 equiv'!P157,\n'[14]SM2 - DECC Scenario 1 equiv'!P157,\n'[14]SM3 - DECC Scenario 2 equiv'!P157,\n'[14]SM4 - DNO Scenario 4 equiv'!P157)","v":0},{"$f":"CHOOSE(view,\n'[13]M1a - Model inputs'!Q157,\n'[13]M1b - Model inputs'!Q157,\n'[13]SM1 - DECC Scenario 3 equiv'!Q157,\n'[13]SM2 - DECC Scenario 1 equiv'!Q157,\n'[13]SM3 - DECC Scenario 2 equiv'!Q157,\n'[13]SM4 - DNO Scenario 4 equiv'!Q157,\n'[14]M1a - Model inputs'!Q157,\n'[14]M1b - Model inputs'!Q157,\n'[14]SM1 - DECC Scenario 3 equiv'!Q157,\n'[14]SM2 - DECC Scenario 1 equiv'!Q157,\n'[14]SM3 - DECC Scenario 2 equiv'!Q157,\n'[14]SM4 - DNO Scenario 4 equiv'!Q157)","v":0},{"$f":"CHOOSE(view,\n'[13]M1a - Model inputs'!R157,\n'[13]M1b - Model inputs'!R157,\n'[13]SM1 - DECC Scenario 3 equiv'!R157,\n'[13]SM2 - DECC Scenario 1 equiv'!R157,\n'[13]SM3 - DECC Scenario 2 equiv'!R157,\n'[13]SM4 - DNO Scenario 4 equiv'!R157,\n'[14]M1a - Model inputs'!R157,\n'[14]M1b - Model inputs'!R157,\n'[14]SM1 - DECC Scenario 3 equiv'!R157,\n'[14]SM2 - DECC Scenario 1 equiv'!R157,\n'[14]SM3 - DECC Scenario 2 equiv'!R157,\n'[14]SM4 - DNO Scenario 4 equiv'!R157)","v":0},{"$f":"CHOOSE(view,\n'[13]M1a - Model inputs'!S157,\n'[13]M1b - Model inputs'!S157,\n'[13]SM1 - DECC Scenario 3 equiv'!S157,\n'[13]SM2 - DECC Scenario 1 equiv'!S157,\n'[13]SM3 - DECC Scenario 2 equiv'!S157,\n'[13]SM4 - DNO Scenario 4 equiv'!S157,\n'[14]M1a - Model inputs'!S157,\n'[14]M1b - Model inputs'!S157,\n'[14]SM1 - DECC Scenario 3 equiv'!S157,\n'[14]SM2 - DECC Scenario 1 equiv'!S157,\n'[14]SM3 - DECC Scenario 2 equiv'!S157,\n'[14]SM4 - DNO Scenario 4 equiv'!S157)","v":0}]
[null,null,null,null,{"$f":"Input!E224","v":"ES7 (Miscellaneous) assumed costs"},null,"£m 12/13 prices",null,null,null,null,null,null,null,null,null,null,null,null,null,null,null,null,null,null,null,null,null,null,null,null,null,null,null,null,{"$f":"AJ223","v":0},{"$f":"AK223","v":0},0,0,0,0,0,0]
[null,null,null,null,{"$f":"Input!E225","v":"ES7 (Miscellaneous) net position"},null,"£m 12/13 prices",null,null,null,null,null,null,null,null,null,null,null,null,null,null,null,null,null,null,null,null,null,null,null,null,null,null,null,null,{"$f":"SUM(AJ223, -AJ224)","v":0},{"$f":"SUM(AK223, -AK224)","v":0},0,0,0,0,0,0]
[]
[null,null,null,null,{"$f":"Input!E227","v":"Directly Remunerated Services"}]
[]
[null,null,null,null,{"$f":"Input!E229","v":"Element of connection that is Sole Use funded revenue"},null,{"$f":"Input!G229","v":"£m 12/13 prices"},null,null,null,null,null,null,null,null,null,null,null,null,null,null,null,null,null,null,null,null,null,null,null,null,null,null,null,null,{"$f":"AJ230","v":0.66670379759765552},{"$f":"AK230","v":0.64212355306185209},0.60694588100860791,0.57433122919932078,0.53104909566199332,0.45113380471325293,0.4187431099969432,0.35019484433091996]
[null,null,null,null,{"$f":"Input!E230","v":"Element of connection that is Sole Use funded costs"},null,{"$f":"Input!G230","v":"£m 12/13 prices"},null,null,null,null,null,null,null,null,null,null,null,null,null,null,null,null,null,null,null,null,null,null,null,null,null,null,null,null,{"$f":"CHOOSE(view,\n'[13]M1a - Model inputs'!L111,\n'[13]M1b - Model inputs'!L111,\n'[13]SM1 - DECC Scenario 3 equiv'!L111,\n'[13]SM2 - DECC Scenario 1 equiv'!L111,\n'[13]SM3 - DECC Scenario 2 equiv'!L111,\n'[13]SM4 - DNO Scenario 4 equiv'!L111,\n'[14]M1a - Model inputs'!L111,\n'[14]M1b - Model inputs'!L111,\n'[14]SM1 - DECC Scenario 3 equiv'!L111,\n'[14]SM2 - DECC Scenario 1 equiv'!L111,\n'[14]SM3 - DECC Scenario 2 equiv'!L111,\n'[14]SM4 - DNO Scenario 4 equiv'!L111)","v":0.66670379759765552},{"$f":"CHOOSE(view,\n'[13]M1a - Model inputs'!M111,\n'[13]M1b - Model inputs'!M111,\n'[13]SM1 - DECC Scenario 3 equiv'!M111,\n'[13]SM2 - DECC Scenario 1 equiv'!M111,\n'[13]SM3 - DECC Scenario 2 equiv'!M111,\n'[13]SM4 - DNO Scenario 4 equiv'!M111,\n'[14]M1a - Model inputs'!M111,\n'[14]M1b - Model inputs'!M111,\n'[14]SM1 - DECC Scenario 3 equiv'!M111,\n'[14]SM2 - DECC Scenario 1 equiv'!M111,\n'[14]SM3 - DECC Scenario 2 equiv'!M111,\n'[14]SM4 - DNO Scenario 4 equiv'!M111)","v":0.64212355306185209},{"$f":"CHOOSE(view,\n'[13]M1a - Model inputs'!N111,\n'[13]M1b - Model inputs'!N111,\n'[13]SM1 - DECC Scenario 3 equiv'!N111,\n'[13]SM2 - DECC Scenario 1 equiv'!N111,\n'[13]SM3 - DECC Scenario 2 equiv'!N111,\n'[13]SM4 - DNO Scenario 4 equiv'!N111,\n'[14]M1a - Model inputs'!N111,\n'[14]M1b - Model inputs'!N111,\n'[14]SM1 - DECC Scenario 3 equiv'!N111,\n'[14]SM2 - DECC Scenario 1 equiv'!N111,\n'[14]SM3 - DECC Scenario 2 equiv'!N111,\n'[14]SM4 - DNO Scenario 4 equiv'!N111)","v":0.60694588100860791},{"$f":"CHOOSE(view,\n'[13]M1a - Model inputs'!O111,\n'[13]M1b - Model inputs'!O111,\n'[13]SM1 - DECC Scenario 3 equiv'!O111,\n'[13]SM2 - DECC Scenario 1 equiv'!O111,\n'[13]SM3 - DECC Scenario 2 equiv'!O111,\n'[13]SM4 - DNO Scenario 4 equiv'!O111,\n'[14]M1a - Model inputs'!O111,\n'[14]M1b - Model inputs'!O111,\n'[14]SM1 - DECC Scenario 3 equiv'!O111,\n'[14]SM2 - DECC Scenario 1 equiv'!O111,\n'[14]SM3 - DECC Scenario 2 equiv'!O111,\n'[14]SM4 - DNO Scenario 4 equiv'!O111)","v":0.57433122919932078},{"$f":"CHOOSE(view,\n'[13]M1a - Model inputs'!P111,\n'[13]M1b - Model inputs'!P111,\n'[13]SM1 - DECC Scenario 3 equiv'!P111,\n'[13]SM2 - DECC Scenario 1 equiv'!P111,\n'[13]SM3 - DECC Scenario 2 equiv'!P111,\n'[13]SM4 - DNO Scenario 4 equiv'!P111,\n'[14]M1a - Model inputs'!P111,\n'[14]M1b - Model inputs'!P111,\n'[14]SM1 - DECC Scenario 3 equiv'!P111,\n'[14]SM2 - DECC Scenario 1 equiv'!P111,\n'[14]SM3 - DECC Scenario 2 equiv'!P111,\n'[14]SM4 - DNO Scenario 4 equiv'!P111)","v":0.53104909566199332},{"$f":"CHOOSE(view,\n'[13]M1a - Model inputs'!Q111,\n'[13]M1b - Model inputs'!Q111,\n'[13]SM1 - DECC Scenario 3 equiv'!Q111,\n'[13]SM2 - DECC Scenario 1 equiv'!Q111,\n'[13]SM3 - DECC Scenario 2 equiv'!Q111,\n'[13]SM4 - DNO Scenario 4 equiv'!Q111,\n'[14]M1a - Model inputs'!Q111,\n'[14]M1b - Model inputs'!Q111,\n'[14]SM1 - DECC Scenario 3 equiv'!Q111,\n'[14]SM2 - DECC Scenario 1 equiv'!Q111,\n'[14]SM3 - DECC Scenario 2 equiv'!Q111,\n'[14]SM4 - DNO Scenario 4 equiv'!Q111)","v":0.45113380471325293},{"$f":"CHOOSE(view,\n'[13]M1a - Model inputs'!R111,\n'[13]M1b - Model inputs'!R111,\n'[13]SM1 - DECC Scenario 3 equiv'!R111,\n'[13]SM2 - DECC Scenario 1 equiv'!R111,\n'[13]SM3 - DECC Scenario 2 equiv'!R111,\n'[13]SM4 - DNO Scenario 4 equiv'!R111,\n'[14]M1a - Model inputs'!R111,\n'[14]M1b - Model inputs'!R111,\n'[14]SM1 - DECC Scenario 3 equiv'!R111,\n'[14]SM2 - DECC Scenario 1 equiv'!R111,\n'[14]SM3 - DECC Scenario 2 equiv'!R111,\n'[14]SM4 - DNO Scenario 4 equiv'!R111)","v":0.4187431099969432},{"$f":"CHOOSE(view,\n'[13]M1a - Model inputs'!S111,\n'[13]M1b - Model inputs'!S111,\n'[13]SM1 - DECC Scenario 3 equiv'!S111,\n'[13]SM2 - DECC Scenario 1 equiv'!S111,\n'[13]SM3 - DECC Scenario 2 equiv'!S111,\n'[13]SM4 - DNO Scenario 4 equiv'!S111,\n'[14]M1a - Model inputs'!S111,\n'[14]M1b - Model inputs'!S111,\n'[14]SM1 - DECC Scenario 3 equiv'!S111,\n'[14]SM2 - DECC Scenario 1 equiv'!S111,\n'[14]SM3 - DECC Scenario 2 equiv'!S111,\n'[14]SM4 - DNO Scenario 4 equiv'!S111)","v":0.35019484433091996}]
[null,null,null,null,{"$f":"Input!E231","v":"Element of connection that is Sole Use funded net position"},null,{"$f":"Input!G231","v":"£m 12/13 prices"},null,null,null,null,null,null,null,null,null,null,null,null,null,null,null,null,null,null,null,null,null,null,null,null,null,null,null,null,{"$f":"SUM(AJ229, -AJ230)","v":0},{"$f":"SUM(AK229, -AK230)","v":0},0,0,0,0,0,0]
[]
[null,null,null,null,{"$f":"Input!E233","v":"Connection projects UMC revenue"},null,{"$f":"Input!G233","v":"£m 12/13 prices"},null,null,null,null,null,null,null,null,null,null,null,null,null,null,null,null,null,null,null,null,null,null,null,null,null,null,null,null,{"$f":"AJ234","v":3.3556626304843906E-2},{"$f":"AK234","v":3.1397389501715167E-2},2.8521546018595023E-2,2.4941121840212577E-2,2.2831761754507907E-2,2.0334588475545617E-2,1.7839525282082574E-2,1.4766607377521973E-2]
[null,null,null,null,{"$f":"Input!E234","v":"Connection projects UMC costs"},null,{"$f":"Input!G234","v":"£m 12/13 prices"},null,null,null,null,null,null,null,null,null,null,null,null,null,null,null,null,null,null,null,null,null,null,null,null,null,null,null,null,{"$f":"CHOOSE(view,\n'[13]M1a - Model inputs'!L112,\n'[13]M1b - Model inputs'!L112,\n'[13]SM1 - DECC Scenario 3 equiv'!L112,\n'[13]SM2 - DECC Scenario 1 equiv'!L112,\n'[13]SM3 - DECC Scenario 2 equiv'!L112,\n'[13]SM4 - DNO Scenario 4 equiv'!L112,\n'[14]M1a - Model inputs'!L112,\n'[14]M1b - Model inputs'!L112,\n'[14]SM1 - DECC Scenario 3 equiv'!L112,\n'[14]SM2 - DECC Scenario 1 equiv'!L112,\n'[14]SM3 - DECC Scenario 2 equiv'!L112,\n'[14]SM4 - DNO Scenario 4 equiv'!L112)","v":3.3556626304843906E-2},{"$f":"CHOOSE(view,\n'[13]M1a - Model inputs'!M112,\n'[13]M1b - Model inputs'!M112,\n'[13]SM1 - DECC Scenario 3 equiv'!M112,\n'[13]SM2 - DECC Scenario 1 equiv'!M112,\n'[13]SM3 - DECC Scenario 2 equiv'!M112,\n'[13]SM4 - DNO Scenario 4 equiv'!M112,\n'[14]M1a - Model inputs'!M112,\n'[14]M1b - Model inputs'!M112,\n'[14]SM1 - DECC Scenario 3 equiv'!M112,\n'[14]SM2 - DECC Scenario 1 equiv'!M112,\n'[14]SM3 - DECC Scenario 2 equiv'!M112,\n'[14]SM4 - DNO Scenario 4 equiv'!M112)","v":3.1397389501715167E-2},{"$f":"CHOOSE(view,\n'[13]M1a - Model inputs'!N112,\n'[13]M1b - Model inputs'!N112,\n'[13]SM1 - DECC Scenario 3 equiv'!N112,\n'[13]SM2 - DECC Scenario 1 equiv'!N112,\n'[13]SM3 - DECC Scenario 2 equiv'!N112,\n'[13]SM4 - DNO Scenario 4 equiv'!N112,\n'[14]M1a - Model inputs'!N112,\n'[14]M1b - Model inputs'!N112,\n'[14]SM1 - DECC Scenario 3 equiv'!N112,\n'[14]SM2 - DECC Scenario 1 equiv'!N112,\n'[14]SM3 - DECC Scenario 2 equiv'!N112,\n'[14]SM4 - DNO Scenario 4 equiv'!N112)","v":2.8521546018595023E-2},{"$f":"CHOOSE(view,\n'[13]M1a - Model inputs'!O112,\n'[13]M1b - Model inputs'!O112,\n'[13]SM1 - DECC Scenario 3 equiv'!O112,\n'[13]SM2 - DECC Scenario 1 equiv'!O112,\n'[13]SM3 - DECC Scenario 2 equiv'!O112,\n'[13]SM4 - DNO Scenario 4 equiv'!O112,\n'[14]M1a - Model inputs'!O112,\n'[14]M1b - Model inputs'!O112,\n'[14]SM1 - DECC Scenario 3 equiv'!O112,\n'[14]SM2 - DECC Scenario 1 equiv'!O112,\n'[14]SM3 - DECC Scenario 2 equiv'!O112,\n'[14]SM4 - DNO Scenario 4 equiv'!O112)","v":2.4941121840212577E-2},{"$f":"CHOOSE(view,\n'[13]M1a - Model inputs'!P112,\n'[13]M1b - Model inputs'!P112,\n'[13]SM1 - DECC Scenario 3 equiv'!P112,\n'[13]SM2 - DECC Scenario 1 equiv'!P112,\n'[13]SM3 - DECC Scenario 2 equiv'!P112,\n'[13]SM4 - DNO Scenario 4 equiv'!P112,\n'[14]M1a - Model inputs'!P112,\n'[14]M1b - Model inputs'!P112,\n'[14]SM1 - DECC Scenario 3 equiv'!P112,\n'[14]SM2 - DECC Scenario 1 equiv'!P112,\n'[14]SM3 - DECC Scenario 2 equiv'!P112,\n'[14]SM4 - DNO Scenario 4 equiv'!P112)","v":2.2831761754507907E-2},{"$f":"CHOOSE(view,\n'[13]M1a - Model inputs'!Q112,\n'[13]M1b - Model inputs'!Q112,\n'[13]SM1 - DECC Scenario 3 equiv'!Q112,\n'[13]SM2 - DECC Scenario 1 equiv'!Q112,\n'[13]SM3 - DECC Scenario 2 equiv'!Q112,\n'[13]SM4 - DNO Scenario 4 equiv'!Q112,\n'[14]M1a - Model inputs'!Q112,\n'[14]M1b - Model inputs'!Q112,\n'[14]SM1 - DECC Scenario 3 equiv'!Q112,\n'[14]SM2 - DECC Scenario 1 equiv'!Q112,\n'[14]SM3 - DECC Scenario 2 equiv'!Q112,\n'[14]SM4 - DNO Scenario 4 equiv'!Q112)","v":2.0334588475545617E-2},{"$f":"CHOOSE(view,\n'[13]M1a - Model inputs'!R112,\n'[13]M1b - Model inputs'!R112,\n'[13]SM1 - DECC Scenario 3 equiv'!R112,\n'[13]SM2 - DECC Scenario 1 equiv'!R112,\n'[13]SM3 - DECC Scenario 2 equiv'!R112,\n'[13]SM4 - DNO Scenario 4 equiv'!R112,\n'[14]M1a - Model inputs'!R112,\n'[14]M1b - Model inputs'!R112,\n'[14]SM1 - DECC Scenario 3 equiv'!R112,\n'[14]SM2 - DECC Scenario 1 equiv'!R112,\n'[14]SM3 - DECC Scenario 2 equiv'!R112,\n'[14]SM4 - DNO Scenario 4 equiv'!R112)","v":1.7839525282082574E-2},{"$f":"CHOOSE(view,\n'[13]M1a - Model inputs'!S112,\n'[13]M1b - Model inputs'!S112,\n'[13]SM1 - DECC Scenario 3 equiv'!S112,\n'[13]SM2 - DECC Scenario 1 equiv'!S112,\n'[13]SM3 - DECC Scenario 2 equiv'!S112,\n'[13]SM4 - DNO Scenario 4 equiv'!S112,\n'[14]M1a - Model inputs'!S112,\n'[14]M1b - Model inputs'!S112,\n'[14]SM1 - DECC Scenario 3 equiv'!S112,\n'[14]SM2 - DECC Scenario 1 equiv'!S112,\n'[14]SM3 - DECC Scenario 2 equiv'!S112,\n'[14]SM4 - DNO Scenario 4 equiv'!S112)","v":1.4766607377521973E-2}]
[null,null,null,null,{"$f":"Input!E235","v":"Connection projects UMC net position"},null,{"$f":"Input!G235","v":"£m 12/13 prices"},null,null,null,null,null,null,null,null,null,null,null,null,null,null,null,null,null,null,null,null,null,null,null,null,null,null,null,null,{"$f":"SUM(AJ233, -AJ234)","v":0},{"$f":"SUM(AK233, -AK234)","v":0},0,0,0,0,0,0]
[]
[null,null,null,null,{"$f":"Input!E237","v":"Diversionary works under obligation (ES2) revenue"},null,{"$f":"Input!G237","v":"£m 12/13 prices"},null,null,null,null,null,null,null,null,null,null,null,null,null,null,null,null,null,null,null,null,null,null,null,null,null,null,null,null,{"$f":"CHOOSE(view,\n'[13]M1a - Model inputs'!L$144,\n'[13]M1b - Model inputs'!L$144,\n'[13]SM1 - DECC Scenario 3 equiv'!L$144,\n'[13]SM2 - DECC Scenario 1 equiv'!L$144,\n'[13]SM3 - DECC Scenario 2 equiv'!L$144,\n'[13]SM4 - DNO Scenario 4 equiv'!L$144,\n'[14]M1a - Model inputs'!L$144,\n'[14]M1b - Model inputs'!L$144,\n'[14]SM1 - DECC Scenario 3 equiv'!L$144,\n'[14]SM2 - DECC Scenario 1 equiv'!L$144,\n'[14]SM3 - DECC Scenario 2 equiv'!L$144,\n'[14]SM4 - DNO Scenario 4 equiv'!L$144)","v":-2.4375330304854699},{"$f":"CHOOSE(view,\n'[13]M1a - Model inputs'!M$144,\n'[13]M1b - Model inputs'!M$144,\n'[13]SM1 - DECC Scenario 3 equiv'!M$144,\n'[13]SM2 - DECC Scenario 1 equiv'!M$144,\n'[13]SM3 - DECC Scenario 2 equiv'!M$144,\n'[13]SM4 - DNO Scenario 4 equiv'!M$144,\n'[14]M1a - Model inputs'!M$144,\n'[14]M1b - Model inputs'!M$144,\n'[14]SM1 - DECC Scenario 3 equiv'!M$144,\n'[14]SM2 - DECC Scenario 1 equiv'!M$144,\n'[14]SM3 - DECC Scenario 2 equiv'!M$144,\n'[14]SM4 - DNO Scenario 4 equiv'!M$144)","v":-2.4375330304854699},{"$f":"CHOOSE(view,\n'[13]M1a - Model inputs'!N$144,\n'[13]M1b - Model inputs'!N$144,\n'[13]SM1 - DECC Scenario 3 equiv'!N$144,\n'[13]SM2 - DECC Scenario 1 equiv'!N$144,\n'[13]SM3 - DECC Scenario 2 equiv'!N$144,\n'[13]SM4 - DNO Scenario 4 equiv'!N$144,\n'[14]M1a - Model inputs'!N$144,\n'[14]M1b - Model inputs'!N$144,\n'[14]SM1 - DECC Scenario 3 equiv'!N$144,\n'[14]SM2 - DECC Scenario 1 equiv'!N$144,\n'[14]SM3 - DECC Scenario 2 equiv'!N$144,\n'[14]SM4 - DNO Scenario 4 equiv'!N$144)","v":-2.4375330304854699},{"$f":"CHOOSE(view,\n'[13]M1a - Model inputs'!O$144,\n'[13]M1b - Model inputs'!O$144,\n'[13]SM1 - DECC Scenario 3 equiv'!O$144,\n'[13]SM2 - DECC Scenario 1 equiv'!O$144,\n'[13]SM3 - DECC Scenario 2 equiv'!O$144,\n'[13]SM4 - DNO Scenario 4 equiv'!O$144,\n'[14]M1a - Model inputs'!O$144,\n'[14]M1b - Model inputs'!O$144,\n'[14]SM1 - DECC Scenario 3 equiv'!O$144,\n'[14]SM2 - DECC Scenario 1 equiv'!O$144,\n'[14]SM3 - DECC Scenario 2 equiv'!O$144,\n'[14]SM4 - DNO Scenario 4 equiv'!O$144)","v":-2.4375330304854699},{"$f":"CHOOSE(view,\n'[13]M1a - Model inputs'!P$144,\n'[13]M1b - Model inputs'!P$144,\n'[13]SM1 - DECC Scenario 3 equiv'!P$144,\n'[13]SM2 - DECC Scenario 1 equiv'!P$144,\n'[13]SM3 - DECC Scenario 2 equiv'!P$144,\n'[13]SM4 - DNO Scenario 4 equiv'!P$144,\n'[14]M1a - Model inputs'!P$144,\n'[14]M1b - Model inputs'!P$144,\n'[14]SM1 - DECC Scenario 3 equiv'!P$144,\n'[14]SM2 - DECC Scenario 1 equiv'!P$144,\n'[14]SM3 - DECC Scenario 2 equiv'!P$144,\n'[14]SM4 - DNO Scenario 4 equiv'!P$144)","v":-2.4375330304854699},{"$f":"CHOOSE(view,\n'[13]M1a - Model inputs'!Q$144,\n'[13]M1b - Model inputs'!Q$144,\n'[13]SM1 - DECC Scenario 3 equiv'!Q$144,\n'[13]SM2 - DECC Scenario 1 equiv'!Q$144,\n'[13]SM3 - DECC Scenario 2 equiv'!Q$144,\n'[13]SM4 - DNO Scenario 4 equiv'!Q$144,\n'[14]M1a - Model inputs'!Q$144,\n'[14]M1b - Model inputs'!Q$144,\n'[14]SM1 - DECC Scenario 3 equiv'!Q$144,\n'[14]SM2 - DECC Scenario 1 equiv'!Q$144,\n'[14]SM3 - DECC Scenario 2 equiv'!Q$144,\n'[14]SM4 - DNO Scenario 4 equiv'!Q$144)","v":-2.4375330304854699},{"$f":"CHOOSE(view,\n'[13]M1a - Model inputs'!R$144,\n'[13]M1b - Model inputs'!R$144,\n'[13]SM1 - DECC Scenario 3 equiv'!R$144,\n'[13]SM2 - DECC Scenario 1 equiv'!R$144,\n'[13]SM3 - DECC Scenario 2 equiv'!R$144,\n'[13]SM4 - DNO Scenario 4 equiv'!R$144,\n'[14]M1a - Model inputs'!R$144,\n'[14]M1b - Model inputs'!R$144,\n'[14]SM1 - DECC Scenario 3 equiv'!R$144,\n'[14]SM2 - DECC Scenario 1 equiv'!R$144,\n'[14]SM3 - DECC Scenario 2 equiv'!R$144,\n'[14]SM4 - DNO Scenario 4 equiv'!R$144)","v":-2.4375330304854699},{"$f":"CHOOSE(view,\n'[13]M1a - Model inputs'!S$144,\n'[13]M1b - Model inputs'!S$144,\n'[13]SM1 - DECC Scenario 3 equiv'!S$144,\n'[13]SM2 - DECC Scenario 1 equiv'!S$144,\n'[13]SM3 - DECC Scenario 2 equiv'!S$144,\n'[13]SM4 - DNO Scenario 4 equiv'!S$144,\n'[14]M1a - Model inputs'!S$144,\n'[14]M1b - Model inputs'!S$144,\n'[14]SM1 - DECC Scenario 3 equiv'!S$144,\n'[14]SM2 - DECC Scenario 1 equiv'!S$144,\n'[14]SM3 - DECC Scenario 2 equiv'!S$144,\n'[14]SM4 - DNO Scenario 4 equiv'!S$144)","v":-2.4375330304854699}]
[null,null,null,null,{"$f":"Input!E238","v":"Diversionary works under obligation (ES2) costs"},null,{"$f":"Input!G238","v":"£m 12/13 prices"},null,null,null,null,null,null,null,null,null,null,null,null,null,null,null,null,null,null,null,null,null,null,null,null,null,null,null,null,{"$f":"CHOOSE(view,\n'[13]M1a - Model inputs'!L$131,\n'[13]M1b - Model inputs'!L$131,\n'[13]SM1 - DECC Scenario 3 equiv'!L$131,\n'[13]SM2 - DECC Scenario 1 equiv'!L$131,\n'[13]SM3 - DECC Scenario 2 equiv'!L$131,\n'[13]SM4 - DNO Scenario 4 equiv'!L$131,\n'[14]M1a - Model inputs'!L$131,\n'[14]M1b - Model inputs'!L$131,\n'[14]SM1 - DECC Scenario 3 equiv'!L$131,\n'[14]SM2 - DECC Scenario 1 equiv'!L$131,\n'[14]SM3 - DECC Scenario 2 equiv'!L$131,\n'[14]SM4 - DNO Scenario 4 equiv'!L$131)","v":0},{"$f":"CHOOSE(view,\n'[13]M1a - Model inputs'!M$131,\n'[13]M1b - Model inputs'!M$131,\n'[13]SM1 - DECC Scenario 3 equiv'!M$131,\n'[13]SM2 - DECC Scenario 1 equiv'!M$131,\n'[13]SM3 - DECC Scenario 2 equiv'!M$131,\n'[13]SM4 - DNO Scenario 4 equiv'!M$131,\n'[14]M1a - Model inputs'!M$131,\n'[14]M1b - Model inputs'!M$131,\n'[14]SM1 - DECC Scenario 3 equiv'!M$131,\n'[14]SM2 - DECC Scenario 1 equiv'!M$131,\n'[14]SM3 - DECC Scenario 2 equiv'!M$131,\n'[14]SM4 - DNO Scenario 4 equiv'!M$131)","v":0},{"$f":"CHOOSE(view,\n'[13]M1a - Model inputs'!N$131,\n'[13]M1b - Model inputs'!N$131,\n'[13]SM1 - DECC Scenario 3 equiv'!N$131,\n'[13]SM2 - DECC Scenario 1 equiv'!N$131,\n'[13]SM3 - DECC Scenario 2 equiv'!N$131,\n'[13]SM4 - DNO Scenario 4 equiv'!N$131,\n'[14]M1a - Model inputs'!N$131,\n'[14]M1b - Model inputs'!N$131,\n'[14]SM1 - DECC Scenario 3 equiv'!N$131,\n'[14]SM2 - DECC Scenario 1 equiv'!N$131,\n'[14]SM3 - DECC Scenario 2 equiv'!N$131,\n'[14]SM4 - DNO Scenario 4 equiv'!N$131)","v":0},{"$f":"CHOOSE(view,\n'[13]M1a - Model inputs'!O$131,\n'[13]M1b - Model inputs'!O$131,\n'[13]SM1 - DECC Scenario 3 equiv'!O$131,\n'[13]SM2 - DECC Scenario 1 equiv'!O$131,\n'[13]SM3 - DECC Scenario 2 equiv'!O$131,\n'[13]SM4 - DNO Scenario 4 equiv'!O$131,\n'[14]M1a - Model inputs'!O$131,\n'[14]M1b - Model inputs'!O$131,\n'[14]SM1 - DECC Scenario 3 equiv'!O$131,\n'[14]SM2 - DECC Scenario 1 equiv'!O$131,\n'[14]SM3 - DECC Scenario 2 equiv'!O$131,\n'[14]SM4 - DNO Scenario 4 equiv'!O$131)","v":0},{"$f":"CHOOSE(view,\n'[13]M1a - Model inputs'!P$131,\n'[13]M1b - Model inputs'!P$131,\n'[13]SM1 - DECC Scenario 3 equiv'!P$131,\n'[13]SM2 - DECC Scenario 1 equiv'!P$131,\n'[13]SM3 - DECC Scenario 2 equiv'!P$131,\n'[13]SM4 - DNO Scenario 4 equiv'!P$131,\n'[14]M1a - Model inputs'!P$131,\n'[14]M1b - Model inputs'!P$131,\n'[14]SM1 - DECC Scenario 3 equiv'!P$131,\n'[14]SM2 - DECC Scenario 1 equiv'!P$131,\n'[14]SM3 - DECC Scenario 2 equiv'!P$131,\n'[14]SM4 - DNO Scenario 4 equiv'!P$131)","v":0},{"$f":"CHOOSE(view,\n'[13]M1a - Model inputs'!Q$131,\n'[13]M1b - Model inputs'!Q$131,\n'[13]SM1 - DECC Scenario 3 equiv'!Q$131,\n'[13]SM2 - DECC Scenario 1 equiv'!Q$131,\n'[13]SM3 - DECC Scenario 2 equiv'!Q$131,\n'[13]SM4 - DNO Scenario 4 equiv'!Q$131,\n'[14]M1a - Model inputs'!Q$131,\n'[14]M1b - Model inputs'!Q$131,\n'[14]SM1 - DECC Scenario 3 equiv'!Q$131,\n'[14]SM2 - DECC Scenario 1 equiv'!Q$131,\n'[14]SM3 - DECC Scenario 2 equiv'!Q$131,\n'[14]SM4 - DNO Scenario 4 equiv'!Q$131)","v":0},{"$f":"CHOOSE(view,\n'[13]M1a - Model inputs'!R$131,\n'[13]M1b - Model inputs'!R$131,\n'[13]SM1 - DECC Scenario 3 equiv'!R$131,\n'[13]SM2 - DECC Scenario 1 equiv'!R$131,\n'[13]SM3 - DECC Scenario 2 equiv'!R$131,\n'[13]SM4 - DNO Scenario 4 equiv'!R$131,\n'[14]M1a - Model inputs'!R$131,\n'[14]M1b - Model inputs'!R$131,\n'[14]SM1 - DECC Scenario 3 equiv'!R$131,\n'[14]SM2 - DECC Scenario 1 equiv'!R$131,\n'[14]SM3 - DECC Scenario 2 equiv'!R$131,\n'[14]SM4 - DNO Scenario 4 equiv'!R$131)","v":0},{"$f":"CHOOSE(view,\n'[13]M1a - Model inputs'!S$131,\n'[13]M1b - Model inputs'!S$131,\n'[13]SM1 - DECC Scenario 3 equiv'!S$131,\n'[13]SM2 - DECC Scenario 1 equiv'!S$131,\n'[13]SM3 - DECC Scenario 2 equiv'!S$131,\n'[13]SM4 - DNO Scenario 4 equiv'!S$131,\n'[14]M1a - Model inputs'!S$131,\n'[14]M1b - Model inputs'!S$131,\n'[14]SM1 - DECC Scenario 3 equiv'!S$131,\n'[14]SM2 - DECC Scenario 1 equiv'!S$131,\n'[14]SM3 - DECC Scenario 2 equiv'!S$131,\n'[14]SM4 - DNO Scenario 4 equiv'!S$131)","v":0}]
[null,null,null,null,{"$f":"Input!E239","v":"Diversionary works under obligation (ES2) net position"},null,{"$f":"Input!G239","v":"£m 12/13 prices"},null,null,null,null,null,null,null,null,null,null,null,null,null,null,null,null,null,null,null,null,null,null,null,null,null,null,null,null,{"$f":"SUM(AJ237, -AJ238)","v":-2.4375330304854699},{"$f":"SUM(AK237, -AK238)","v":-2.4375330304854699},-2.4375330304854699,-2.4375330304854699,-2.4375330304854699,-2.4375330304854699,-2.4375330304854699,-2.4375330304854699]
[]
[null,null,null,null,{"$f":"Input!E241","v":"Work required by any alteration premises (ES3) revenue"},null,{"$f":"Input!G241","v":"£m 12/13 prices"},null,null,null,null,null,null,null,null,null,null,null,null,null,null,null,null,null,null,null,null,null,null,null,null,null,null,null,null,{"$f":"CHOOSE(view,\n'[13]M1a - Model inputs'!L$145,\n'[13]M1b - Model inputs'!L$145,\n'[13]SM1 - DECC Scenario 3 equiv'!L$145,\n'[13]SM2 - DECC Scenario 1 equiv'!L$145,\n'[13]SM3 - DECC Scenario 2 equiv'!L$145,\n'[13]SM4 - DNO Scenario 4 equiv'!L$145,\n'[14]M1a - Model inputs'!L$145,\n'[14]M1b - Model inputs'!L$145,\n'[14]SM1 - DECC Scenario 3 equiv'!L$145,\n'[14]SM2 - DECC Scenario 1 equiv'!L$145,\n'[14]SM3 - DECC Scenario 2 equiv'!L$145,\n'[14]SM4 - DNO Scenario 4 equiv'!L$145)","v":-2.1426717415241843},{"$f":"CHOOSE(view,\n'[13]M1a - Model inputs'!M$145,\n'[13]M1b - Model inputs'!M$145,\n'[13]SM1 - DECC Scenario 3 equiv'!M$145,\n'[13]SM2 - DECC Scenario 1 equiv'!M$145,\n'[13]SM3 - DECC Scenario 2 equiv'!M$145,\n'[13]SM4 - DNO Scenario 4 equiv'!M$145,\n'[14]M1a - Model inputs'!M$145,\n'[14]M1b - Model inputs'!M$145,\n'[14]SM1 - DECC Scenario 3 equiv'!M$145,\n'[14]SM2 - DECC Scenario 1 equiv'!M$145,\n'[14]SM3 - DECC Scenario 2 equiv'!M$145,\n'[14]SM4 - DNO Scenario 4 equiv'!M$145)","v":-2.1426717415241843},{"$f":"CHOOSE(view,\n'[13]M1a - Model inputs'!N$145,\n'[13]M1b - Model inputs'!N$145,\n'[13]SM1 - DECC Scenario 3 equiv'!N$145,\n'[13]SM2 - DECC Scenario 1 equiv'!N$145,\n'[13]SM3 - DECC Scenario 2 equiv'!N$145,\n'[13]SM4 - DNO Scenario 4 equiv'!N$145,\n'[14]M1a - Model inputs'!N$145,\n'[14]M1b - Model inputs'!N$145,\n'[14]SM1 - DECC Scenario 3 equiv'!N$145,\n'[14]SM2 - DECC Scenario 1 equiv'!N$145,\n'[14]SM3 - DECC Scenario 2 equiv'!N$145,\n'[14]SM4 - DNO Scenario 4 equiv'!N$145)","v":-2.1426717415241843},{"$f":"CHOOSE(view,\n'[13]M1a - Model inputs'!O$145,\n'[13]M1b - Model inputs'!O$145,\n'[13]SM1 - DECC Scenario 3 equiv'!O$145,\n'[13]SM2 - DECC Scenario 1 equiv'!O$145,\n'[13]SM3 - DECC Scenario 2 equiv'!O$145,\n'[13]SM4 - DNO Scenario 4 equiv'!O$145,\n'[14]M1a - Model inputs'!O$145,\n'[14]M1b - Model inputs'!O$145,\n'[14]SM1 - DECC Scenario 3 equiv'!O$145,\n'[14]SM2 - DECC Scenario 1 equiv'!O$145,\n'[14]SM3 - DECC Scenario 2 equiv'!O$145,\n'[14]SM4 - DNO Scenario 4 equiv'!O$145)","v":-2.1426717415241843},{"$f":"CHOOSE(view,\n'[13]M1a - Model inputs'!P$145,\n'[13]M1b - Model inputs'!P$145,\n'[13]SM1 - DECC Scenario 3 equiv'!P$145,\n'[13]SM2 - DECC Scenario 1 equiv'!P$145,\n'[13]SM3 - DECC Scenario 2 equiv'!P$145,\n'[13]SM4 - DNO Scenario 4 equiv'!P$145,\n'[14]M1a - Model inputs'!P$145,\n'[14]M1b - Model inputs'!P$145,\n'[14]SM1 - DECC Scenario 3 equiv'!P$145,\n'[14]SM2 - DECC Scenario 1 equiv'!P$145,\n'[14]SM3 - DECC Scenario 2 equiv'!P$145,\n'[14]SM4 - DNO Scenario 4 equiv'!P$145)","v":-2.1426717415241843},{"$f":"CHOOSE(view,\n'[13]M1a - Model inputs'!Q$145,\n'[13]M1b - Model inputs'!Q$145,\n'[13]SM1 - DECC Scenario 3 equiv'!Q$145,\n'[13]SM2 - DECC Scenario 1 equiv'!Q$145,\n'[13]SM3 - DECC Scenario 2 equiv'!Q$145,\n'[13]SM4 - DNO Scenario 4 equiv'!Q$145,\n'[14]M1a - Model inputs'!Q$145,\n'[14]M1b - Model inputs'!Q$145,\n'[14]SM1 - DECC Scenario 3 equiv'!Q$145,\n'[14]SM2 - DECC Scenario 1 equiv'!Q$145,\n'[14]SM3 - DECC Scenario 2 equiv'!Q$145,\n'[14]SM4 - DNO Scenario 4 equiv'!Q$145)","v":-2.1426717415241843},{"$f":"CHOOSE(view,\n'[13]M1a - Model inputs'!R$145,\n'[13]M1b - Model inputs'!R$145,\n'[13]SM1 - DECC Scenario 3 equiv'!R$145,\n'[13]SM2 - DECC Scenario 1 equiv'!R$145,\n'[13]SM3 - DECC Scenario 2 equiv'!R$145,\n'[13]SM4 - DNO Scenario 4 equiv'!R$145,\n'[14]M1a - Model inputs'!R$145,\n'[14]M1b - Model inputs'!R$145,\n'[14]SM1 - DECC Scenario 3 equiv'!R$145,\n'[14]SM2 - DECC Scenario 1 equiv'!R$145,\n'[14]SM3 - DECC Scenario 2 equiv'!R$145,\n'[14]SM4 - DNO Scenario 4 equiv'!R$145)","v":-2.1426717415241843},{"$f":"CHOOSE(view,\n'[13]M1a - Model inputs'!S$145,\n'[13]M1b - Model inputs'!S$145,\n'[13]SM1 - DECC Scenario 3 equiv'!S$145,\n'[13]SM2 - DECC Scenario 1 equiv'!S$145,\n'[13]SM3 - DECC Scenario 2 equiv'!S$145,\n'[13]SM4 - DNO Scenario 4 equiv'!S$145,\n'[14]M1a - Model inputs'!S$145,\n'[14]M1b - Model inputs'!S$145,\n'[14]SM1 - DECC Scenario 3 equiv'!S$145,\n'[14]SM2 - DECC Scenario 1 equiv'!S$145,\n'[14]SM3 - DECC Scenario 2 equiv'!S$145,\n'[14]SM4 - DNO Scenario 4 equiv'!S$145)","v":-2.1426717415241843}]
[null,null,null,null,{"$f":"Input!E242","v":"Work required by any alteration premises (ES3) costs"},null,{"$f":"Input!G242","v":"£m 12/13 prices"},null,null,null,null,null,null,null,null,null,null,null,null,null,null,null,null,null,null,null,null,null,null,null,null,null,null,null,null,{"$f":"CHOOSE(view,\n'[13]M1a - Model inputs'!L$132,\n'[13]M1b - Model inputs'!L$132,\n'[13]SM1 - DECC Scenario 3 equiv'!L$132,\n'[13]SM2 - DECC Scenario 1 equiv'!L$132,\n'[13]SM3 - DECC Scenario 2 equiv'!L$132,\n'[13]SM4 - DNO Scenario 4 equiv'!L$132,\n'[14]M1a - Model inputs'!L$132,\n'[14]M1b - Model inputs'!L$132,\n'[14]SM1 - DECC Scenario 3 equiv'!L$132,\n'[14]SM2 - DECC Scenario 1 equiv'!L$132,\n'[14]SM3 - DECC Scenario 2 equiv'!L$132,\n'[14]SM4 - DNO Scenario 4 equiv'!L$132)","v":0},{"$f":"CHOOSE(view,\n'[13]M1a - Model inputs'!M$132,\n'[13]M1b - Model inputs'!M$132,\n'[13]SM1 - DECC Scenario 3 equiv'!M$132,\n'[13]SM2 - DECC Scenario 1 equiv'!M$132,\n'[13]SM3 - DECC Scenario 2 equiv'!M$132,\n'[13]SM4 - DNO Scenario 4 equiv'!M$132,\n'[14]M1a - Model inputs'!M$132,\n'[14]M1b - Model inputs'!M$132,\n'[14]SM1 - DECC Scenario 3 equiv'!M$132,\n'[14]SM2 - DECC Scenario 1 equiv'!M$132,\n'[14]SM3 - DECC Scenario 2 equiv'!M$132,\n'[14]SM4 - DNO Scenario 4 equiv'!M$132)","v":0},{"$f":"CHOOSE(view,\n'[13]M1a - Model inputs'!N$132,\n'[13]M1b - Model inputs'!N$132,\n'[13]SM1 - DECC Scenario 3 equiv'!N$132,\n'[13]SM2 - DECC Scenario 1 equiv'!N$132,\n'[13]SM3 - DECC Scenario 2 equiv'!N$132,\n'[13]SM4 - DNO Scenario 4 equiv'!N$132,\n'[14]M1a - Model inputs'!N$132,\n'[14]M1b - Model inputs'!N$132,\n'[14]SM1 - DECC Scenario 3 equiv'!N$132,\n'[14]SM2 - DECC Scenario 1 equiv'!N$132,\n'[14]SM3 - DECC Scenario 2 equiv'!N$132,\n'[14]SM4 - DNO Scenario 4 equiv'!N$132)","v":0},{"$f":"CHOOSE(view,\n'[13]M1a - Model inputs'!O$132,\n'[13]M1b - Model inputs'!O$132,\n'[13]SM1 - DECC Scenario 3 equiv'!O$132,\n'[13]SM2 - DECC Scenario 1 equiv'!O$132,\n'[13]SM3 - DECC Scenario 2 equiv'!O$132,\n'[13]SM4 - DNO Scenario 4 equiv'!O$132,\n'[14]M1a - Model inputs'!O$132,\n'[14]M1b - Model inputs'!O$132,\n'[14]SM1 - DECC Scenario 3 equiv'!O$132,\n'[14]SM2 - DECC Scenario 1 equiv'!O$132,\n'[14]SM3 - DECC Scenario 2 equiv'!O$132,\n'[14]SM4 - DNO Scenario 4 equiv'!O$132)","v":0},{"$f":"CHOOSE(view,\n'[13]M1a - Model inputs'!P$132,\n'[13]M1b - Model inputs'!P$132,\n'[13]SM1 - DECC Scenario 3 equiv'!P$132,\n'[13]SM2 - DECC Scenario 1 equiv'!P$132,\n'[13]SM3 - DECC Scenario 2 equiv'!P$132,\n'[13]SM4 - DNO Scenario 4 equiv'!P$132,\n'[14]M1a - Model inputs'!P$132,\n'[14]M1b - Model inputs'!P$132,\n'[14]SM1 - DECC Scenario 3 equiv'!P$132,\n'[14]SM2 - DECC Scenario 1 equiv'!P$132,\n'[14]SM3 - DECC Scenario 2 equiv'!P$132,\n'[14]SM4 - DNO Scenario 4 equiv'!P$132)","v":0},{"$f":"CHOOSE(view,\n'[13]M1a - Model inputs'!Q$132,\n'[13]M1b - Model inputs'!Q$132,\n'[13]SM1 - DECC Scenario 3 equiv'!Q$132,\n'[13]SM2 - DECC Scenario 1 equiv'!Q$132,\n'[13]SM3 - DECC Scenario 2 equiv'!Q$132,\n'[13]SM4 - DNO Scenario 4 equiv'!Q$132,\n'[14]M1a - Model inputs'!Q$132,\n'[14]M1b - Model inputs'!Q$132,\n'[14]SM1 - DECC Scenario 3 equiv'!Q$132,\n'[14]SM2 - DECC Scenario 1 equiv'!Q$132,\n'[14]SM3 - DECC Scenario 2 equiv'!Q$132,\n'[14]SM4 - DNO Scenario 4 equiv'!Q$132)","v":0},{"$f":"CHOOSE(view,\n'[13]M1a - Model inputs'!R$132,\n'[13]M1b - Model inputs'!R$132,\n'[13]SM1 - DECC Scenario 3 equiv'!R$132,\n'[13]SM2 - DECC Scenario 1 equiv'!R$132,\n'[13]SM3 - DECC Scenario 2 equiv'!R$132,\n'[13]SM4 - DNO Scenario 4 equiv'!R$132,\n'[14]M1a - Model inputs'!R$132,\n'[14]M1b - Model inputs'!R$132,\n'[14]SM1 - DECC Scenario 3 equiv'!R$132,\n'[14]SM2 - DECC Scenario 1 equiv'!R$132,\n'[14]SM3 - DECC Scenario 2 equiv'!R$132,\n'[14]SM4 - DNO Scenario 4 equiv'!R$132)","v":0},{"$f":"CHOOSE(view,\n'[13]M1a - Model inputs'!S$132,\n'[13]M1b - Model inputs'!S$132,\n'[13]SM1 - DECC Scenario 3 equiv'!S$132,\n'[13]SM2 - DECC Scenario 1 equiv'!S$132,\n'[13]SM3 - DECC Scenario 2 equiv'!S$132,\n'[13]SM4 - DNO Scenario 4 equiv'!S$132,\n'[14]M1a - Model inputs'!S$132,\n'[14]M1b - Model inputs'!S$132,\n'[14]SM1 - DECC Scenario 3 equiv'!S$132,\n'[14]SM2 - DECC Scenario 1 equiv'!S$132,\n'[14]SM3 - DECC Scenario 2 equiv'!S$132,\n'[14]SM4 - DNO Scenario 4 equiv'!S$132)","v":0}]
[null,null,null,null,{"$f":"Input!E243","v":"Work required by any alteration premises (ES3) net position"},null,{"$f":"Input!G243","v":"£m 12/13 prices"},null,null,null,null,null,null,null,null,null,null,null,null,null,null,null,null,null,null,null,null,null,null,null,null,null,null,null,null,{"$f":"SUM(AJ241, -AJ242)","v":-2.1426717415241843},{"$f":"SUM(AK241, -AK242)","v":-2.1426717415241843},-2.1426717415241843,-2.1426717415241843,-2.1426717415241843,-2.1426717415241843,-2.1426717415241843,-2.1426717415241843]
[]
[null,null,null,null,{"$f":"Input!E245","v":"Top up standby and enhanced system security (ES4) revenue"},null,{"$f":"Input!G245","v":"£m 12/13 prices"},null,null,null,null,null,null,null,null,null,null,null,null,null,null,null,null,null,null,null,null,null,null,null,null,null,null,null,null,{"$f":"CHOOSE(view,\n'[13]M1a - Model inputs'!L$146,\n'[13]M1b - Model inputs'!L$146,\n'[13]SM1 - DECC Scenario 3 equiv'!L$146,\n'[13]SM2 - DECC Scenario 1 equiv'!L$146,\n'[13]SM3 - DECC Scenario 2 equiv'!L$146,\n'[13]SM4 - DNO Scenario 4 equiv'!L$146,\n'[14]M1a - Model inputs'!L$146,\n'[14]M1b - Model inputs'!L$146,\n'[14]SM1 - DECC Scenario 3 equiv'!L$146,\n'[14]SM2 - DECC Scenario 1 equiv'!L$146,\n'[14]SM3 - DECC Scenario 2 equiv'!L$146,\n'[14]SM4 - DNO Scenario 4 equiv'!L$146)","v":0},{"$f":"CHOOSE(view,\n'[13]M1a - Model inputs'!M$146,\n'[13]M1b - Model inputs'!M$146,\n'[13]SM1 - DECC Scenario 3 equiv'!M$146,\n'[13]SM2 - DECC Scenario 1 equiv'!M$146,\n'[13]SM3 - DECC Scenario 2 equiv'!M$146,\n'[13]SM4 - DNO Scenario 4 equiv'!M$146,\n'[14]M1a - Model inputs'!M$146,\n'[14]M1b - Model inputs'!M$146,\n'[14]SM1 - DECC Scenario 3 equiv'!M$146,\n'[14]SM2 - DECC Scenario 1 equiv'!M$146,\n'[14]SM3 - DECC Scenario 2 equiv'!M$146,\n'[14]SM4 - DNO Scenario 4 equiv'!M$146)","v":0},{"$f":"CHOOSE(view,\n'[13]M1a - Model inputs'!N$146,\n'[13]M1b - Model inputs'!N$146,\n'[13]SM1 - DECC Scenario 3 equiv'!N$146,\n'[13]SM2 - DECC Scenario 1 equiv'!N$146,\n'[13]SM3 - DECC Scenario 2 equiv'!N$146,\n'[13]SM4 - DNO Scenario 4 equiv'!N$146,\n'[14]M1a - Model inputs'!N$146,\n'[14]M1b - Model inputs'!N$146,\n'[14]SM1 - DECC Scenario 3 equiv'!N$146,\n'[14]SM2 - DECC Scenario 1 equiv'!N$146,\n'[14]SM3 - DECC Scenario 2 equiv'!N$146,\n'[14]SM4 - DNO Scenario 4 equiv'!N$146)","v":0},{"$f":"CHOOSE(view,\n'[13]M1a - Model inputs'!O$146,\n'[13]M1b - Model inputs'!O$146,\n'[13]SM1 - DECC Scenario 3 equiv'!O$146,\n'[13]SM2 - DECC Scenario 1 equiv'!O$146,\n'[13]SM3 - DECC Scenario 2 equiv'!O$146,\n'[13]SM4 - DNO Scenario 4 equiv'!O$146,\n'[14]M1a - Model inputs'!O$146,\n'[14]M1b - Model inputs'!O$146,\n'[14]SM1 - DECC Scenario 3 equiv'!O$146,\n'[14]SM2 - DECC Scenario 1 equiv'!O$146,\n'[14]SM3 - DECC Scenario 2 equiv'!O$146,\n'[14]SM4 - DNO Scenario 4 equiv'!O$146)","v":0},{"$f":"CHOOSE(view,\n'[13]M1a - Model inputs'!P$146,\n'[13]M1b - Model inputs'!P$146,\n'[13]SM1 - DECC Scenario 3 equiv'!P$146,\n'[13]SM2 - DECC Scenario 1 equiv'!P$146,\n'[13]SM3 - DECC Scenario 2 equiv'!P$146,\n'[13]SM4 - DNO Scenario 4 equiv'!P$146,\n'[14]M1a - Model inputs'!P$146,\n'[14]M1b - Model inputs'!P$146,\n'[14]SM1 - DECC Scenario 3 equiv'!P$146,\n'[14]SM2 - DECC Scenario 1 equiv'!P$146,\n'[14]SM3 - DECC Scenario 2 equiv'!P$146,\n'[14]SM4 - DNO Scenario 4 equiv'!P$146)","v":0},{"$f":"CHOOSE(view,\n'[13]M1a - Model inputs'!Q$146,\n'[13]M1b - Model inputs'!Q$146,\n'[13]SM1 - DECC Scenario 3 equiv'!Q$146,\n'[13]SM2 - DECC Scenario 1 equiv'!Q$146,\n'[13]SM3 - DECC Scenario 2 equiv'!Q$146,\n'[13]SM4 - DNO Scenario 4 equiv'!Q$146,\n'[14]M1a - Model inputs'!Q$146,\n'[14]M1b - Model inputs'!Q$146,\n'[14]SM1 - DECC Scenario 3 equiv'!Q$146,\n'[14]SM2 - DECC Scenario 1 equiv'!Q$146,\n'[14]SM3 - DECC Scenario 2 equiv'!Q$146,\n'[14]SM4 - DNO Scenario 4 equiv'!Q$146)","v":0},{"$f":"CHOOSE(view,\n'[13]M1a - Model inputs'!R$146,\n'[13]M1b - Model inputs'!R$146,\n'[13]SM1 - DECC Scenario 3 equiv'!R$146,\n'[13]SM2 - DECC Scenario 1 equiv'!R$146,\n'[13]SM3 - DECC Scenario 2 equiv'!R$146,\n'[13]SM4 - DNO Scenario 4 equiv'!R$146,\n'[14]M1a - Model inputs'!R$146,\n'[14]M1b - Model inputs'!R$146,\n'[14]SM1 - DECC Scenario 3 equiv'!R$146,\n'[14]SM2 - DECC Scenario 1 equiv'!R$146,\n'[14]SM3 - DECC Scenario 2 equiv'!R$146,\n'[14]SM4 - DNO Scenario 4 equiv'!R$146)","v":0},{"$f":"CHOOSE(view,\n'[13]M1a - Model inputs'!S$146,\n'[13]M1b - Model inputs'!S$146,\n'[13]SM1 - DECC Scenario 3 equiv'!S$146,\n'[13]SM2 - DECC Scenario 1 equiv'!S$146,\n'[13]SM3 - DECC Scenario 2 equiv'!S$146,\n'[13]SM4 - DNO Scenario 4 equiv'!S$146,\n'[14]M1a - Model inputs'!S$146,\n'[14]M1b - Model inputs'!S$146,\n'[14]SM1 - DECC Scenario 3 equiv'!S$146,\n'[14]SM2 - DECC Scenario 1 equiv'!S$146,\n'[14]SM3 - DECC Scenario 2 equiv'!S$146,\n'[14]SM4 - DNO Scenario 4 equiv'!S$146)","v":0}]
[null,null,null,null,{"$f":"Input!E246","v":"Top up standby and enhanced system security (ES4) costs"},null,{"$f":"Input!G246","v":"£m 12/13 prices"},null,null,null,null,null,null,null,null,null,null,null,null,null,null,null,null,null,null,null,null,null,null,null,null,null,null,null,null,{"$f":"CHOOSE(view,\n'[13]M1a - Model inputs'!L$133,\n'[13]M1b - Model inputs'!L$133,\n'[13]SM1 - DECC Scenario 3 equiv'!L$133,\n'[13]SM2 - DECC Scenario 1 equiv'!L$133,\n'[13]SM3 - DECC Scenario 2 equiv'!L$133,\n'[13]SM4 - DNO Scenario 4 equiv'!L$133,\n'[14]M1a - Model inputs'!L$133,\n'[14]M1b - Model inputs'!L$133,\n'[14]SM1 - DECC Scenario 3 equiv'!L$133,\n'[14]SM2 - DECC Scenario 1 equiv'!L$133,\n'[14]SM3 - DECC Scenario 2 equiv'!L$133,\n'[14]SM4 - DNO Scenario 4 equiv'!L$133)","v":1.2911478372845264},{"$f":"CHOOSE(view,\n'[13]M1a - Model inputs'!M$133,\n'[13]M1b - Model inputs'!M$133,\n'[13]SM1 - DECC Scenario 3 equiv'!M$133,\n'[13]SM2 - DECC Scenario 1 equiv'!M$133,\n'[13]SM3 - DECC Scenario 2 equiv'!M$133,\n'[13]SM4 - DNO Scenario 4 equiv'!M$133,\n'[14]M1a - Model inputs'!M$133,\n'[14]M1b - Model inputs'!M$133,\n'[14]SM1 - DECC Scenario 3 equiv'!M$133,\n'[14]SM2 - DECC Scenario 1 equiv'!M$133,\n'[14]SM3 - DECC Scenario 2 equiv'!M$133,\n'[14]SM4 - DNO Scenario 4 equiv'!M$133)","v":1.3047167773597947},{"$f":"CHOOSE(view,\n'[13]M1a - Model inputs'!N$133,\n'[13]M1b - Model inputs'!N$133,\n'[13]SM1 - DECC Scenario 3 equiv'!N$133,\n'[13]SM2 - DECC Scenario 1 equiv'!N$133,\n'[13]SM3 - DECC Scenario 2 equiv'!N$133,\n'[13]SM4 - DNO Scenario 4 equiv'!N$133,\n'[14]M1a - Model inputs'!N$133,\n'[14]M1b - Model inputs'!N$133,\n'[14]SM1 - DECC Scenario 3 equiv'!N$133,\n'[14]SM2 - DECC Scenario 1 equiv'!N$133,\n'[14]SM3 - DECC Scenario 2 equiv'!N$133,\n'[14]SM4 - DNO Scenario 4 equiv'!N$133)","v":1.2058814868322278},{"$f":"CHOOSE(view,\n'[13]M1a - Model inputs'!O$133,\n'[13]M1b - Model inputs'!O$133,\n'[13]SM1 - DECC Scenario 3 equiv'!O$133,\n'[13]SM2 - DECC Scenario 1 equiv'!O$133,\n'[13]SM3 - DECC Scenario 2 equiv'!O$133,\n'[13]SM4 - DNO Scenario 4 equiv'!O$133,\n'[14]M1a - Model inputs'!O$133,\n'[14]M1b - Model inputs'!O$133,\n'[14]SM1 - DECC Scenario 3 equiv'!O$133,\n'[14]SM2 - DECC Scenario 1 equiv'!O$133,\n'[14]SM3 - DECC Scenario 2 equiv'!O$133,\n'[14]SM4 - DNO Scenario 4 equiv'!O$133)","v":1.2357181177130898},{"$f":"CHOOSE(view,\n'[13]M1a - Model inputs'!P$133,\n'[13]M1b - Model inputs'!P$133,\n'[13]SM1 - DECC Scenario 3 equiv'!P$133,\n'[13]SM2 - DECC Scenario 1 equiv'!P$133,\n'[13]SM3 - DECC Scenario 2 equiv'!P$133,\n'[13]SM4 - DNO Scenario 4 equiv'!P$133,\n'[14]M1a - Model inputs'!P$133,\n'[14]M1b - Model inputs'!P$133,\n'[14]SM1 - DECC Scenario 3 equiv'!P$133,\n'[14]SM2 - DECC Scenario 1 equiv'!P$133,\n'[14]SM3 - DECC Scenario 2 equiv'!P$133,\n'[14]SM4 - DNO Scenario 4 equiv'!P$133)","v":1.1829617392340761},{"$f":"CHOOSE(view,\n'[13]M1a - Model inputs'!Q$133,\n'[13]M1b - Model inputs'!Q$133,\n'[13]SM1 - DECC Scenario 3 equiv'!Q$133,\n'[13]SM2 - DECC Scenario 1 equiv'!Q$133,\n'[13]SM3 - DECC Scenario 2 equiv'!Q$133,\n'[13]SM4 - DNO Scenario 4 equiv'!Q$133,\n'[14]M1a - Model inputs'!Q$133,\n'[14]M1b - Model inputs'!Q$133,\n'[14]SM1 - DECC Scenario 3 equiv'!Q$133,\n'[14]SM2 - DECC Scenario 1 equiv'!Q$133,\n'[14]SM3 - DECC Scenario 2 equiv'!Q$133,\n'[14]SM4 - DNO Scenario 4 equiv'!Q$133)","v":1.1636665637812214},{"$f":"CHOOSE(view,\n'[13]M1a - Model inputs'!R$133,\n'[13]M1b - Model inputs'!R$133,\n'[13]SM1 - DECC Scenario 3 equiv'!R$133,\n'[13]SM2 - DECC Scenario 1 equiv'!R$133,\n'[13]SM3 - DECC Scenario 2 equiv'!R$133,\n'[13]SM4 - DNO Scenario 4 equiv'!R$133,\n'[14]M1a - Model inputs'!R$133,\n'[14]M1b - Model inputs'!R$133,\n'[14]SM1 - DECC Scenario 3 equiv'!R$133,\n'[14]SM2 - DECC Scenario 1 equiv'!R$133,\n'[14]SM3 - DECC Scenario 2 equiv'!R$133,\n'[14]SM4 - DNO Scenario 4 equiv'!R$133)","v":1.168063474702316},{"$f":"CHOOSE(view,\n'[13]M1a - Model inputs'!S$133,\n'[13]M1b - Model inputs'!S$133,\n'[13]SM1 - DECC Scenario 3 equiv'!S$133,\n'[13]SM2 - DECC Scenario 1 equiv'!S$133,\n'[13]SM3 - DECC Scenario 2 equiv'!S$133,\n'[13]SM4 - DNO Scenario 4 equiv'!S$133,\n'[14]M1a - Model inputs'!S$133,\n'[14]M1b - Model inputs'!S$133,\n'[14]SM1 - DECC Scenario 3 equiv'!S$133,\n'[14]SM2 - DECC Scenario 1 equiv'!S$133,\n'[14]SM3 - DECC Scenario 2 equiv'!S$133,\n'[14]SM4 - DNO Scenario 4 equiv'!S$133)","v":1.1295936537459095}]
[null,null,null,null,{"$f":"Input!E247","v":"Top up standby and enhanced system security (ES4) net position"},null,{"$f":"Input!G247","v":"£m 12/13 prices"},null,null,null,null,null,null,null,null,null,null,null,null,null,null,null,null,null,null,null,null,null,null,null,null,null,null,null,null,{"$f":"SUM(AJ245, -AJ246)","v":-1.2911478372845264},{"$f":"SUM(AK245, -AK246)","v":-1.3047167773597947},-1.2058814868322278,-1.2357181177130898,-1.1829617392340761,-1.1636665637812214,-1.168063474702316,-1.1295936537459095]
[]
[null,null,null,null,{"$f":"Input!E249","v":"Revenue protection services (ES5) revenue"},null,{"$f":"Input!G249","v":"£m 12/13 prices"},null,null,null,null,null,null,null,null,null,null,null,null,null,null,null,null,null,null,null,null,null,null,null,null,null,null,null,null,{"$f":"CHOOSE(view,\n'[13]M1a - Model inputs'!L$147,\n'[13]M1b - Model inputs'!L$147,\n'[13]SM1 - DECC Scenario 3 equiv'!L$147,\n'[13]SM2 - DECC Scenario 1 equiv'!L$147,\n'[13]SM3 - DECC Scenario 2 equiv'!L$147,\n'[13]SM4 - DNO Scenario 4 equiv'!L$147,\n'[14]M1a - Model inputs'!L$147,\n'[14]M1b - Model inputs'!L$147,\n'[14]SM1 - DECC Scenario 3 equiv'!L$147,\n'[14]SM2 - DECC Scenario 1 equiv'!L$147,\n'[14]SM3 - DECC Scenario 2 equiv'!L$147,\n'[14]SM4 - DNO Scenario 4 equiv'!L$147)","v":0},{"$f":"CHOOSE(view,\n'[13]M1a - Model inputs'!M$147,\n'[13]M1b - Model inputs'!M$147,\n'[13]SM1 - DECC Scenario 3 equiv'!M$147,\n'[13]SM2 - DECC Scenario 1 equiv'!M$147,\n'[13]SM3 - DECC Scenario 2 equiv'!M$147,\n'[13]SM4 - DNO Scenario 4 equiv'!M$147,\n'[14]M1a - Model inputs'!M$147,\n'[14]M1b - Model inputs'!M$147,\n'[14]SM1 - DECC Scenario 3 equiv'!M$147,\n'[14]SM2 - DECC Scenario 1 equiv'!M$147,\n'[14]SM3 - DECC Scenario 2 equiv'!M$147,\n'[14]SM4 - DNO Scenario 4 equiv'!M$147)","v":0},{"$f":"CHOOSE(view,\n'[13]M1a - Model inputs'!N$147,\n'[13]M1b - Model inputs'!N$147,\n'[13]SM1 - DECC Scenario 3 equiv'!N$147,\n'[13]SM2 - DECC Scenario 1 equiv'!N$147,\n'[13]SM3 - DECC Scenario 2 equiv'!N$147,\n'[13]SM4 - DNO Scenario 4 equiv'!N$147,\n'[14]M1a - Model inputs'!N$147,\n'[14]M1b - Model inputs'!N$147,\n'[14]SM1 - DECC Scenario 3 equiv'!N$147,\n'[14]SM2 - DECC Scenario 1 equiv'!N$147,\n'[14]SM3 - DECC Scenario 2 equiv'!N$147,\n'[14]SM4 - DNO Scenario 4 equiv'!N$147)","v":0},{"$f":"CHOOSE(view,\n'[13]M1a - Model inputs'!O$147,\n'[13]M1b - Model inputs'!O$147,\n'[13]SM1 - DECC Scenario 3 equiv'!O$147,\n'[13]SM2 - DECC Scenario 1 equiv'!O$147,\n'[13]SM3 - DECC Scenario 2 equiv'!O$147,\n'[13]SM4 - DNO Scenario 4 equiv'!O$147,\n'[14]M1a - Model inputs'!O$147,\n'[14]M1b - Model inputs'!O$147,\n'[14]SM1 - DECC Scenario 3 equiv'!O$147,\n'[14]SM2 - DECC Scenario 1 equiv'!O$147,\n'[14]SM3 - DECC Scenario 2 equiv'!O$147,\n'[14]SM4 - DNO Scenario 4 equiv'!O$147)","v":0},{"$f":"CHOOSE(view,\n'[13]M1a - Model inputs'!P$147,\n'[13]M1b - Model inputs'!P$147,\n'[13]SM1 - DECC Scenario 3 equiv'!P$147,\n'[13]SM2 - DECC Scenario 1 equiv'!P$147,\n'[13]SM3 - DECC Scenario 2 equiv'!P$147,\n'[13]SM4 - DNO Scenario 4 equiv'!P$147,\n'[14]M1a - Model inputs'!P$147,\n'[14]M1b - Model inputs'!P$147,\n'[14]SM1 - DECC Scenario 3 equiv'!P$147,\n'[14]SM2 - DECC Scenario 1 equiv'!P$147,\n'[14]SM3 - DECC Scenario 2 equiv'!P$147,\n'[14]SM4 - DNO Scenario 4 equiv'!P$147)","v":0},{"$f":"CHOOSE(view,\n'[13]M1a - Model inputs'!Q$147,\n'[13]M1b - Model inputs'!Q$147,\n'[13]SM1 - DECC Scenario 3 equiv'!Q$147,\n'[13]SM2 - DECC Scenario 1 equiv'!Q$147,\n'[13]SM3 - DECC Scenario 2 equiv'!Q$147,\n'[13]SM4 - DNO Scenario 4 equiv'!Q$147,\n'[14]M1a - Model inputs'!Q$147,\n'[14]M1b - Model inputs'!Q$147,\n'[14]SM1 - DECC Scenario 3 equiv'!Q$147,\n'[14]SM2 - DECC Scenario 1 equiv'!Q$147,\n'[14]SM3 - DECC Scenario 2 equiv'!Q$147,\n'[14]SM4 - DNO Scenario 4 equiv'!Q$147)","v":0},{"$f":"CHOOSE(view,\n'[13]M1a - Model inputs'!R$147,\n'[13]M1b - Model inputs'!R$147,\n'[13]SM1 - DECC Scenario 3 equiv'!R$147,\n'[13]SM2 - DECC Scenario 1 equiv'!R$147,\n'[13]SM3 - DECC Scenario 2 equiv'!R$147,\n'[13]SM4 - DNO Scenario 4 equiv'!R$147,\n'[14]M1a - Model inputs'!R$147,\n'[14]M1b - Model inputs'!R$147,\n'[14]SM1 - DECC Scenario 3 equiv'!R$147,\n'[14]SM2 - DECC Scenario 1 equiv'!R$147,\n'[14]SM3 - DECC Scenario 2 equiv'!R$147,\n'[14]SM4 - DNO Scenario 4 equiv'!R$147)","v":0},{"$f":"CHOOSE(view,\n'[13]M1a - Model inputs'!S$147,\n'[13]M1b - Model inputs'!S$147,\n'[13]SM1 - DECC Scenario 3 equiv'!S$147,\n'[13]SM2 - DECC Scenario 1 equiv'!S$147,\n'[13]SM3 - DECC Scenario 2 equiv'!S$147,\n'[13]SM4 - DNO Scenario 4 equiv'!S$147,\n'[14]M1a - Model inputs'!S$147,\n'[14]M1b - Model inputs'!S$147,\n'[14]SM1 - DECC Scenario 3 equiv'!S$147,\n'[14]SM2 - DECC Scenario 1 equiv'!S$147,\n'[14]SM3 - DECC Scenario 2 equiv'!S$147,\n'[14]SM4 - DNO Scenario 4 equiv'!S$147)","v":0}]
[null,null,null,null,{"$f":"Input!E250","v":"Revenue protection services (ES5) costs"},null,{"$f":"Input!G250","v":"£m 12/13 prices"},null,null,null,null,null,null,null,null,null,null,null,null,null,null,null,null,null,null,null,null,null,null,null,null,null,null,null,null,{"$f":"CHOOSE(view,\n'[13]M1a - Model inputs'!L$134,\n'[13]M1b - Model inputs'!L$134,\n'[13]SM1 - DECC Scenario 3 equiv'!L$134,\n'[13]SM2 - DECC Scenario 1 equiv'!L$134,\n'[13]SM3 - DECC Scenario 2 equiv'!L$134,\n'[13]SM4 - DNO Scenario 4 equiv'!L$134,\n'[14]M1a - Model inputs'!L$134,\n'[14]M1b - Model inputs'!L$134,\n'[14]SM1 - DECC Scenario 3 equiv'!L$134,\n'[14]SM2 - DECC Scenario 1 equiv'!L$134,\n'[14]SM3 - DECC Scenario 2 equiv'!L$134,\n'[14]SM4 - DNO Scenario 4 equiv'!L$134)","v":0},{"$f":"CHOOSE(view,\n'[13]M1a - Model inputs'!M$134,\n'[13]M1b - Model inputs'!M$134,\n'[13]SM1 - DECC Scenario 3 equiv'!M$134,\n'[13]SM2 - DECC Scenario 1 equiv'!M$134,\n'[13]SM3 - DECC Scenario 2 equiv'!M$134,\n'[13]SM4 - DNO Scenario 4 equiv'!M$134,\n'[14]M1a - Model inputs'!M$134,\n'[14]M1b - Model inputs'!M$134,\n'[14]SM1 - DECC Scenario 3 equiv'!M$134,\n'[14]SM2 - DECC Scenario 1 equiv'!M$134,\n'[14]SM3 - DECC Scenario 2 equiv'!M$134,\n'[14]SM4 - DNO Scenario 4 equiv'!M$134)","v":0},{"$f":"CHOOSE(view,\n'[13]M1a - Model inputs'!N$134,\n'[13]M1b - Model inputs'!N$134,\n'[13]SM1 - DECC Scenario 3 equiv'!N$134,\n'[13]SM2 - DECC Scenario 1 equiv'!N$134,\n'[13]SM3 - DECC Scenario 2 equiv'!N$134,\n'[13]SM4 - DNO Scenario 4 equiv'!N$134,\n'[14]M1a - Model inputs'!N$134,\n'[14]M1b - Model inputs'!N$134,\n'[14]SM1 - DECC Scenario 3 equiv'!N$134,\n'[14]SM2 - DECC Scenario 1 equiv'!N$134,\n'[14]SM3 - DECC Scenario 2 equiv'!N$134,\n'[14]SM4 - DNO Scenario 4 equiv'!N$134)","v":0},{"$f":"CHOOSE(view,\n'[13]M1a - Model inputs'!O$134,\n'[13]M1b - Model inputs'!O$134,\n'[13]SM1 - DECC Scenario 3 equiv'!O$134,\n'[13]SM2 - DECC Scenario 1 equiv'!O$134,\n'[13]SM3 - DECC Scenario 2 equiv'!O$134,\n'[13]SM4 - DNO Scenario 4 equiv'!O$134,\n'[14]M1a - Model inputs'!O$134,\n'[14]M1b - Model inputs'!O$134,\n'[14]SM1 - DECC Scenario 3 equiv'!O$134,\n'[14]SM2 - DECC Scenario 1 equiv'!O$134,\n'[14]SM3 - DECC Scenario 2 equiv'!O$134,\n'[14]SM4 - DNO Scenario 4 equiv'!O$134)","v":0},{"$f":"CHOOSE(view,\n'[13]M1a - Model inputs'!P$134,\n'[13]M1b - Model inputs'!P$134,\n'[13]SM1 - DECC Scenario 3 equiv'!P$134,\n'[13]SM2 - DECC Scenario 1 equiv'!P$134,\n'[13]SM3 - DECC Scenario 2 equiv'!P$134,\n'[13]SM4 - DNO Scenario 4 equiv'!P$134,\n'[14]M1a - Model inputs'!P$134,\n'[14]M1b - Model inputs'!P$134,\n'[14]SM1 - DECC Scenario 3 equiv'!P$134,\n'[14]SM2 - DECC Scenario 1 equiv'!P$134,\n'[14]SM3 - DECC Scenario 2 equiv'!P$134,\n'[14]SM4 - DNO Scenario 4 equiv'!P$134)","v":0},{"$f":"CHOOSE(view,\n'[13]M1a - Model inputs'!Q$134,\n'[13]M1b - Model inputs'!Q$134,\n'[13]SM1 - DECC Scenario 3 equiv'!Q$134,\n'[13]SM2 - DECC Scenario 1 equiv'!Q$134,\n'[13]SM3 - DECC Scenario 2 equiv'!Q$134,\n'[13]SM4 - DNO Scenario 4 equiv'!Q$134,\n'[14]M1a - Model inputs'!Q$134,\n'[14]M1b - Model inputs'!Q$134,\n'[14]SM1 - DECC Scenario 3 equiv'!Q$134,\n'[14]SM2 - DECC Scenario 1 equiv'!Q$134,\n'[14]SM3 - DECC Scenario 2 equiv'!Q$134,\n'[14]SM4 - DNO Scenario 4 equiv'!Q$134)","v":0},{"$f":"CHOOSE(view,\n'[13]M1a - Model inputs'!R$134,\n'[13]M1b - Model inputs'!R$134,\n'[13]SM1 - DECC Scenario 3 equiv'!R$134,\n'[13]SM2 - DECC Scenario 1 equiv'!R$134,\n'[13]SM3 - DECC Scenario 2 equiv'!R$134,\n'[13]SM4 - DNO Scenario 4 equiv'!R$134,\n'[14]M1a - Model inputs'!R$134,\n'[14]M1b - Model inputs'!R$134,\n'[14]SM1 - DECC Scenario 3 equiv'!R$134,\n'[14]SM2 - DECC Scenario 1 equiv'!R$134,\n'[14]SM3 - DECC Scenario 2 equiv'!R$134,\n'[14]SM4 - DNO Scenario 4 equiv'!R$134)","v":0},{"$f":"CHOOSE(view,\n'[13]M1a - Model inputs'!S$134,\n'[13]M1b - Model inputs'!S$134,\n'[13]SM1 - DECC Scenario 3 equiv'!S$134,\n'[13]SM2 - DECC Scenario 1 equiv'!S$134,\n'[13]SM3 - DECC Scenario 2 equiv'!S$134,\n'[13]SM4 - DNO Scenario 4 equiv'!S$134,\n'[14]M1a - Model inputs'!S$134,\n'[14]M1b - Model inputs'!S$134,\n'[14]SM1 - DECC Scenario 3 equiv'!S$134,\n'[14]SM2 - DECC Scenario 1 equiv'!S$134,\n'[14]SM3 - DECC Scenario 2 equiv'!S$134,\n'[14]SM4 - DNO Scenario 4 equiv'!S$134)","v":0}]
[null,null,null,null,{"$f":"Input!E251","v":"Revenue protection services (ES5) net position"},null,{"$f":"Input!G251","v":"£m 12/13 prices"},null,null,null,null,null,null,null,null,null,null,null,null,null,null,null,null,null,null,null,null,null,null,null,null,null,null,null,null,{"$f":"SUM(AJ249, -AJ250)","v":0},{"$f":"SUM(AK249, -AK250)","v":0},0,0,0,0,0,0]
[]
[null,null,null,null,{"$f":"Input!E253","v":"Metering services (non legacy) (ES6) revenue"},null,{"$f":"Input!G253","v":"£m 12/13 prices"},null,null,null,null,null,null,null,null,null,null,null,null,null,null,null,null,null,null,null,null,null,null,null,null,null,null,null,null,{"$f":"CHOOSE(view,\n'[13]M1a - Model inputs'!L$148,\n'[13]M1b - Model inputs'!L$148,\n'[13]SM1 - DECC Scenario 3 equiv'!L$148,\n'[13]SM2 - DECC Scenario 1 equiv'!L$148,\n'[13]SM3 - DECC Scenario 2 equiv'!L$148,\n'[13]SM4 - DNO Scenario 4 equiv'!L$148,\n'[14]M1a - Model inputs'!L$148,\n'[14]M1b - Model inputs'!L$148,\n'[14]SM1 - DECC Scenario 3 equiv'!L$148,\n'[14]SM2 - DECC Scenario 1 equiv'!L$148,\n'[14]SM3 - DECC Scenario 2 equiv'!L$148,\n'[14]SM4 - DNO Scenario 4 equiv'!L$148)","v":-2.3135083444897373},{"$f":"CHOOSE(view,\n'[13]M1a - Model inputs'!M$148,\n'[13]M1b - Model inputs'!M$148,\n'[13]SM1 - DECC Scenario 3 equiv'!M$148,\n'[13]SM2 - DECC Scenario 1 equiv'!M$148,\n'[13]SM3 - DECC Scenario 2 equiv'!M$148,\n'[13]SM4 - DNO Scenario 4 equiv'!M$148,\n'[14]M1a - Model inputs'!M$148,\n'[14]M1b - Model inputs'!M$148,\n'[14]SM1 - DECC Scenario 3 equiv'!M$148,\n'[14]SM2 - DECC Scenario 1 equiv'!M$148,\n'[14]SM3 - DECC Scenario 2 equiv'!M$148,\n'[14]SM4 - DNO Scenario 4 equiv'!M$148)","v":-1.85080667559179},{"$f":"CHOOSE(view,\n'[13]M1a - Model inputs'!N$148,\n'[13]M1b - Model inputs'!N$148,\n'[13]SM1 - DECC Scenario 3 equiv'!N$148,\n'[13]SM2 - DECC Scenario 1 equiv'!N$148,\n'[13]SM3 - DECC Scenario 2 equiv'!N$148,\n'[13]SM4 - DNO Scenario 4 equiv'!N$148,\n'[14]M1a - Model inputs'!N$148,\n'[14]M1b - Model inputs'!N$148,\n'[14]SM1 - DECC Scenario 3 equiv'!N$148,\n'[14]SM2 - DECC Scenario 1 equiv'!N$148,\n'[14]SM3 - DECC Scenario 2 equiv'!N$148,\n'[14]SM4 - DNO Scenario 4 equiv'!N$148)","v":-1.3881050066938423},{"$f":"CHOOSE(view,\n'[13]M1a - Model inputs'!O$148,\n'[13]M1b - Model inputs'!O$148,\n'[13]SM1 - DECC Scenario 3 equiv'!O$148,\n'[13]SM2 - DECC Scenario 1 equiv'!O$148,\n'[13]SM3 - DECC Scenario 2 equiv'!O$148,\n'[13]SM4 - DNO Scenario 4 equiv'!O$148,\n'[14]M1a - Model inputs'!O$148,\n'[14]M1b - Model inputs'!O$148,\n'[14]SM1 - DECC Scenario 3 equiv'!O$148,\n'[14]SM2 - DECC Scenario 1 equiv'!O$148,\n'[14]SM3 - DECC Scenario 2 equiv'!O$148,\n'[14]SM4 - DNO Scenario 4 equiv'!O$148)","v":-0.92540333779589501},{"$f":"CHOOSE(view,\n'[13]M1a - Model inputs'!P$148,\n'[13]M1b - Model inputs'!P$148,\n'[13]SM1 - DECC Scenario 3 equiv'!P$148,\n'[13]SM2 - DECC Scenario 1 equiv'!P$148,\n'[13]SM3 - DECC Scenario 2 equiv'!P$148,\n'[13]SM4 - DNO Scenario 4 equiv'!P$148,\n'[14]M1a - Model inputs'!P$148,\n'[14]M1b - Model inputs'!P$148,\n'[14]SM1 - DECC Scenario 3 equiv'!P$148,\n'[14]SM2 - DECC Scenario 1 equiv'!P$148,\n'[14]SM3 - DECC Scenario 2 equiv'!P$148,\n'[14]SM4 - DNO Scenario 4 equiv'!P$148)","v":-0.4627016688979475},{"$f":"CHOOSE(view,\n'[13]M1a - Model inputs'!Q$148,\n'[13]M1b - Model inputs'!Q$148,\n'[13]SM1 - DECC Scenario 3 equiv'!Q$148,\n'[13]SM2 - DECC Scenario 1 equiv'!Q$148,\n'[13]SM3 - DECC Scenario 2 equiv'!Q$148,\n'[13]SM4 - DNO Scenario 4 equiv'!Q$148,\n'[14]M1a - Model inputs'!Q$148,\n'[14]M1b - Model inputs'!Q$148,\n'[14]SM1 - DECC Scenario 3 equiv'!Q$148,\n'[14]SM2 - DECC Scenario 1 equiv'!Q$148,\n'[14]SM3 - DECC Scenario 2 equiv'!Q$148,\n'[14]SM4 - DNO Scenario 4 equiv'!Q$148)","v":0},{"$f":"CHOOSE(view,\n'[13]M1a - Model inputs'!R$148,\n'[13]M1b - Model inputs'!R$148,\n'[13]SM1 - DECC Scenario 3 equiv'!R$148,\n'[13]SM2 - DECC Scenario 1 equiv'!R$148,\n'[13]SM3 - DECC Scenario 2 equiv'!R$148,\n'[13]SM4 - DNO Scenario 4 equiv'!R$148,\n'[14]M1a - Model inputs'!R$148,\n'[14]M1b - Model inputs'!R$148,\n'[14]SM1 - DECC Scenario 3 equiv'!R$148,\n'[14]SM2 - DECC Scenario 1 equiv'!R$148,\n'[14]SM3 - DECC Scenario 2 equiv'!R$148,\n'[14]SM4 - DNO Scenario 4 equiv'!R$148)","v":0},{"$f":"CHOOSE(view,\n'[13]M1a - Model inputs'!S$148,\n'[13]M1b - Model inputs'!S$148,\n'[13]SM1 - DECC Scenario 3 equiv'!S$148,\n'[13]SM2 - DECC Scenario 1 equiv'!S$148,\n'[13]SM3 - DECC Scenario 2 equiv'!S$148,\n'[13]SM4 - DNO Scenario 4 equiv'!S$148,\n'[14]M1a - Model inputs'!S$148,\n'[14]M1b - Model inputs'!S$148,\n'[14]SM1 - DECC Scenario 3 equiv'!S$148,\n'[14]SM2 - DECC Scenario 1 equiv'!S$148,\n'[14]SM3 - DECC Scenario 2 equiv'!S$148,\n'[14]SM4 - DNO Scenario 4 equiv'!S$148)","v":0}]
[null,null,null,null,{"$f":"Input!E254","v":"Metering services (non legacy) (ES6) costs"},null,{"$f":"Input!G254","v":"£m 12/13 prices"},null,null,null,null,null,null,null,null,null,null,null,null,null,null,null,null,null,null,null,null,null,null,null,null,null,null,null,null,{"$f":"CHOOSE(view,\n'[13]M1a - Model inputs'!L$135,\n'[13]M1b - Model inputs'!L$135,\n'[13]SM1 - DECC Scenario 3 equiv'!L$135,\n'[13]SM2 - DECC Scenario 1 equiv'!L$135,\n'[13]SM3 - DECC Scenario 2 equiv'!L$135,\n'[13]SM4 - DNO Scenario 4 equiv'!L$135,\n'[14]M1a - Model inputs'!L$135,\n'[14]M1b - Model inputs'!L$135,\n'[14]SM1 - DECC Scenario 3 equiv'!L$135,\n'[14]SM2 - DECC Scenario 1 equiv'!L$135,\n'[14]SM3 - DECC Scenario 2 equiv'!L$135,\n'[14]SM4 - DNO Scenario 4 equiv'!L$135)","v":0},{"$f":"CHOOSE(view,\n'[13]M1a - Model inputs'!M$135,\n'[13]M1b - Model inputs'!M$135,\n'[13]SM1 - DECC Scenario 3 equiv'!M$135,\n'[13]SM2 - DECC Scenario 1 equiv'!M$135,\n'[13]SM3 - DECC Scenario 2 equiv'!M$135,\n'[13]SM4 - DNO Scenario 4 equiv'!M$135,\n'[14]M1a - Model inputs'!M$135,\n'[14]M1b - Model inputs'!M$135,\n'[14]SM1 - DECC Scenario 3 equiv'!M$135,\n'[14]SM2 - DECC Scenario 1 equiv'!M$135,\n'[14]SM3 - DECC Scenario 2 equiv'!M$135,\n'[14]SM4 - DNO Scenario 4 equiv'!M$135)","v":0},{"$f":"CHOOSE(view,\n'[13]M1a - Model inputs'!N$135,\n'[13]M1b - Model inputs'!N$135,\n'[13]SM1 - DECC Scenario 3 equiv'!N$135,\n'[13]SM2 - DECC Scenario 1 equiv'!N$135,\n'[13]SM3 - DECC Scenario 2 equiv'!N$135,\n'[13]SM4 - DNO Scenario 4 equiv'!N$135,\n'[14]M1a - Model inputs'!N$135,\n'[14]M1b - Model inputs'!N$135,\n'[14]SM1 - DECC Scenario 3 equiv'!N$135,\n'[14]SM2 - DECC Scenario 1 equiv'!N$135,\n'[14]SM3 - DECC Scenario 2 equiv'!N$135,\n'[14]SM4 - DNO Scenario 4 equiv'!N$135)","v":0},{"$f":"CHOOSE(view,\n'[13]M1a - Model inputs'!O$135,\n'[13]M1b - Model inputs'!O$135,\n'[13]SM1 - DECC Scenario 3 equiv'!O$135,\n'[13]SM2 - DECC Scenario 1 equiv'!O$135,\n'[13]SM3 - DECC Scenario 2 equiv'!O$135,\n'[13]SM4 - DNO Scenario 4 equiv'!O$135,\n'[14]M1a - Model inputs'!O$135,\n'[14]M1b - Model inputs'!O$135,\n'[14]SM1 - DECC Scenario 3 equiv'!O$135,\n'[14]SM2 - DECC Scenario 1 equiv'!O$135,\n'[14]SM3 - DECC Scenario 2 equiv'!O$135,\n'[14]SM4 - DNO Scenario 4 equiv'!O$135)","v":0},{"$f":"CHOOSE(view,\n'[13]M1a - Model inputs'!P$135,\n'[13]M1b - Model inputs'!P$135,\n'[13]SM1 - DECC Scenario 3 equiv'!P$135,\n'[13]SM2 - DECC Scenario 1 equiv'!P$135,\n'[13]SM3 - DECC Scenario 2 equiv'!P$135,\n'[13]SM4 - DNO Scenario 4 equiv'!P$135,\n'[14]M1a - Model inputs'!P$135,\n'[14]M1b - Model inputs'!P$135,\n'[14]SM1 - DECC Scenario 3 equiv'!P$135,\n'[14]SM2 - DECC Scenario 1 equiv'!P$135,\n'[14]SM3 - DECC Scenario 2 equiv'!P$135,\n'[14]SM4 - DNO Scenario 4 equiv'!P$135)","v":0},{"$f":"CHOOSE(view,\n'[13]M1a - Model inputs'!Q$135,\n'[13]M1b - Model inputs'!Q$135,\n'[13]SM1 - DECC Scenario 3 equiv'!Q$135,\n'[13]SM2 - DECC Scenario 1 equiv'!Q$135,\n'[13]SM3 - DECC Scenario 2 equiv'!Q$135,\n'[13]SM4 - DNO Scenario 4 equiv'!Q$135,\n'[14]M1a - Model inputs'!Q$135,\n'[14]M1b - Model inputs'!Q$135,\n'[14]SM1 - DECC Scenario 3 equiv'!Q$135,\n'[14]SM2 - DECC Scenario 1 equiv'!Q$135,\n'[14]SM3 - DECC Scenario 2 equiv'!Q$135,\n'[14]SM4 - DNO Scenario 4 equiv'!Q$135)","v":0},{"$f":"CHOOSE(view,\n'[13]M1a - Model inputs'!R$135,\n'[13]M1b - Model inputs'!R$135,\n'[13]SM1 - DECC Scenario 3 equiv'!R$135,\n'[13]SM2 - DECC Scenario 1 equiv'!R$135,\n'[13]SM3 - DECC Scenario 2 equiv'!R$135,\n'[13]SM4 - DNO Scenario 4 equiv'!R$135,\n'[14]M1a - Model inputs'!R$135,\n'[14]M1b - Model inputs'!R$135,\n'[14]SM1 - DECC Scenario 3 equiv'!R$135,\n'[14]SM2 - DECC Scenario 1 equiv'!R$135,\n'[14]SM3 - DECC Scenario 2 equiv'!R$135,\n'[14]SM4 - DNO Scenario 4 equiv'!R$135)","v":0},{"$f":"CHOOSE(view,\n'[13]M1a - Model inputs'!S$135,\n'[13]M1b - Model inputs'!S$135,\n'[13]SM1 - DECC Scenario 3 equiv'!S$135,\n'[13]SM2 - DECC Scenario 1 equiv'!S$135,\n'[13]SM3 - DECC Scenario 2 equiv'!S$135,\n'[13]SM4 - DNO Scenario 4 equiv'!S$135,\n'[14]M1a - Model inputs'!S$135,\n'[14]M1b - Model inputs'!S$135,\n'[14]SM1 - DECC Scenario 3 equiv'!S$135,\n'[14]SM2 - DECC Scenario 1 equiv'!S$135,\n'[14]SM3 - DECC Scenario 2 equiv'!S$135,\n'[14]SM4 - DNO Scenario 4 equiv'!S$135)","v":0}]
[null,null,null,null,{"$f":"Input!E255","v":"Metering services (non legacy) (ES6) net position"},null,{"$f":"Input!G255","v":"£m 12/13 prices"},null,null,null,null,null,null,null,null,null,null,null,null,null,null,null,null,null,null,null,null,null,null,null,null,null,null,null,null,{"$f":"SUM(AJ253, -AJ254)","v":-2.3135083444897373},{"$f":"SUM(AK253, -AK254)","v":-1.85080667559179},-1.3881050066938423,-0.92540333779589501,-0.4627016688979475,0,0,0]
[]
[null,null,null,null,{"$f":"Input!E257","v":"Metering services (legacy)  revenue"},null,{"$f":"Input!G257","v":"£m 12/13 prices"},null,null,null,null,null,null,null,null,null,null,null,null,null,null,null,null,null,null,null,null,null,null,null,null,null,null,null,null,{"$f":"CHOOSE(view,\n'[13]M1a - Model inputs'!L$149,\n'[13]M1b - Model inputs'!L$149,\n'[13]SM1 - DECC Scenario 3 equiv'!L$149,\n'[13]SM2 - DECC Scenario 1 equiv'!L$149,\n'[13]SM3 - DECC Scenario 2 equiv'!L$149,\n'[13]SM4 - DNO Scenario 4 equiv'!L$149,\n'[14]M1a - Model inputs'!L$149,\n'[14]M1b - Model inputs'!L$149,\n'[14]SM1 - DECC Scenario 3 equiv'!L$149,\n'[14]SM2 - DECC Scenario 1 equiv'!L$149,\n'[14]SM3 - DECC Scenario 2 equiv'!L$149,\n'[14]SM4 - DNO Scenario 4 equiv'!L$149)","v":-2.7},{"$f":"CHOOSE(view,\n'[13]M1a - Model inputs'!M$149,\n'[13]M1b - Model inputs'!M$149,\n'[13]SM1 - DECC Scenario 3 equiv'!M$149,\n'[13]SM2 - DECC Scenario 1 equiv'!M$149,\n'[13]SM3 - DECC Scenario 2 equiv'!M$149,\n'[13]SM4 - DNO Scenario 4 equiv'!M$149,\n'[14]M1a - Model inputs'!M$149,\n'[14]M1b - Model inputs'!M$149,\n'[14]SM1 - DECC Scenario 3 equiv'!M$149,\n'[14]SM2 - DECC Scenario 1 equiv'!M$149,\n'[14]SM3 - DECC Scenario 2 equiv'!M$149,\n'[14]SM4 - DNO Scenario 4 equiv'!M$149)","v":-2.5},{"$f":"CHOOSE(view,\n'[13]M1a - Model inputs'!N$149,\n'[13]M1b - Model inputs'!N$149,\n'[13]SM1 - DECC Scenario 3 equiv'!N$149,\n'[13]SM2 - DECC Scenario 1 equiv'!N$149,\n'[13]SM3 - DECC Scenario 2 equiv'!N$149,\n'[13]SM4 - DNO Scenario 4 equiv'!N$149,\n'[14]M1a - Model inputs'!N$149,\n'[14]M1b - Model inputs'!N$149,\n'[14]SM1 - DECC Scenario 3 equiv'!N$149,\n'[14]SM2 - DECC Scenario 1 equiv'!N$149,\n'[14]SM3 - DECC Scenario 2 equiv'!N$149,\n'[14]SM4 - DNO Scenario 4 equiv'!N$149)","v":-1.8},{"$f":"CHOOSE(view,\n'[13]M1a - Model inputs'!O$149,\n'[13]M1b - Model inputs'!O$149,\n'[13]SM1 - DECC Scenario 3 equiv'!O$149,\n'[13]SM2 - DECC Scenario 1 equiv'!O$149,\n'[13]SM3 - DECC Scenario 2 equiv'!O$149,\n'[13]SM4 - DNO Scenario 4 equiv'!O$149,\n'[14]M1a - Model inputs'!O$149,\n'[14]M1b - Model inputs'!O$149,\n'[14]SM1 - DECC Scenario 3 equiv'!O$149,\n'[14]SM2 - DECC Scenario 1 equiv'!O$149,\n'[14]SM3 - DECC Scenario 2 equiv'!O$149,\n'[14]SM4 - DNO Scenario 4 equiv'!O$149)","v":-1.1000000000000001},{"$f":"CHOOSE(view,\n'[13]M1a - Model inputs'!P$149,\n'[13]M1b - Model inputs'!P$149,\n'[13]SM1 - DECC Scenario 3 equiv'!P$149,\n'[13]SM2 - DECC Scenario 1 equiv'!P$149,\n'[13]SM3 - DECC Scenario 2 equiv'!P$149,\n'[13]SM4 - DNO Scenario 4 equiv'!P$149,\n'[14]M1a - Model inputs'!P$149,\n'[14]M1b - Model inputs'!P$149,\n'[14]SM1 - DECC Scenario 3 equiv'!P$149,\n'[14]SM2 - DECC Scenario 1 equiv'!P$149,\n'[14]SM3 - DECC Scenario 2 equiv'!P$149,\n'[14]SM4 - DNO Scenario 4 equiv'!P$149)","v":-0.4},{"$f":"CHOOSE(view,\n'[13]M1a - Model inputs'!Q$149,\n'[13]M1b - Model inputs'!Q$149,\n'[13]SM1 - DECC Scenario 3 equiv'!Q$149,\n'[13]SM2 - DECC Scenario 1 equiv'!Q$149,\n'[13]SM3 - DECC Scenario 2 equiv'!Q$149,\n'[13]SM4 - DNO Scenario 4 equiv'!Q$149,\n'[14]M1a - Model inputs'!Q$149,\n'[14]M1b - Model inputs'!Q$149,\n'[14]SM1 - DECC Scenario 3 equiv'!Q$149,\n'[14]SM2 - DECC Scenario 1 equiv'!Q$149,\n'[14]SM3 - DECC Scenario 2 equiv'!Q$149,\n'[14]SM4 - DNO Scenario 4 equiv'!Q$149)","v":0},{"$f":"CHOOSE(view,\n'[13]M1a - Model inputs'!R$149,\n'[13]M1b - Model inputs'!R$149,\n'[13]SM1 - DECC Scenario 3 equiv'!R$149,\n'[13]SM2 - DECC Scenario 1 equiv'!R$149,\n'[13]SM3 - DECC Scenario 2 equiv'!R$149,\n'[13]SM4 - DNO Scenario 4 equiv'!R$149,\n'[14]M1a - Model inputs'!R$149,\n'[14]M1b - Model inputs'!R$149,\n'[14]SM1 - DECC Scenario 3 equiv'!R$149,\n'[14]SM2 - DECC Scenario 1 equiv'!R$149,\n'[14]SM3 - DECC Scenario 2 equiv'!R$149,\n'[14]SM4 - DNO Scenario 4 equiv'!R$149)","v":0},{"$f":"CHOOSE(view,\n'[13]M1a - Model inputs'!S$149,\n'[13]M1b - Model inputs'!S$149,\n'[13]SM1 - DECC Scenario 3 equiv'!S$149,\n'[13]SM2 - DECC Scenario 1 equiv'!S$149,\n'[13]SM3 - DECC Scenario 2 equiv'!S$149,\n'[13]SM4 - DNO Scenario 4 equiv'!S$149,\n'[14]M1a - Model inputs'!S$149,\n'[14]M1b - Model inputs'!S$149,\n'[14]SM1 - DECC Scenario 3 equiv'!S$149,\n'[14]SM2 - DECC Scenario 1 equiv'!S$149,\n'[14]SM3 - DECC Scenario 2 equiv'!S$149,\n'[14]SM4 - DNO Scenario 4 equiv'!S$149)","v":0}]
[null,null,null,null,{"$f":"Input!E258","v":"Metering services (legacy)  costs"},null,{"$f":"Input!G258","v":"£m 12/13 prices"},null,null,null,null,null,null,null,null,null,null,null,null,null,null,null,null,null,null,null,null,null,null,null,null,null,null,null,null,{"$f":"CHOOSE(view,\n'[13]M1a - Model inputs'!L$136,\n'[13]M1b - Model inputs'!L$136,\n'[13]SM1 - DECC Scenario 3 equiv'!L$136,\n'[13]SM2 - DECC Scenario 1 equiv'!L$136,\n'[13]SM3 - DECC Scenario 2 equiv'!L$136,\n'[13]SM4 - DNO Scenario 4 equiv'!L$136,\n'[14]M1a - Model inputs'!L$136,\n'[14]M1b - Model inputs'!L$136,\n'[14]SM1 - DECC Scenario 3 equiv'!L$136,\n'[14]SM2 - DECC Scenario 1 equiv'!L$136,\n'[14]SM3 - DECC Scenario 2 equiv'!L$136,\n'[14]SM4 - DNO Scenario 4 equiv'!L$136)","v":1.8182450296805642E-3},{"$f":"CHOOSE(view,\n'[13]M1a - Model inputs'!M$136,\n'[13]M1b - Model inputs'!M$136,\n'[13]SM1 - DECC Scenario 3 equiv'!M$136,\n'[13]SM2 - DECC Scenario 1 equiv'!M$136,\n'[13]SM3 - DECC Scenario 2 equiv'!M$136,\n'[13]SM4 - DNO Scenario 4 equiv'!M$136,\n'[14]M1a - Model inputs'!M$136,\n'[14]M1b - Model inputs'!M$136,\n'[14]SM1 - DECC Scenario 3 equiv'!M$136,\n'[14]SM2 - DECC Scenario 1 equiv'!M$136,\n'[14]SM3 - DECC Scenario 2 equiv'!M$136,\n'[14]SM4 - DNO Scenario 4 equiv'!M$136)","v":1.798299807307535E-3},{"$f":"CHOOSE(view,\n'[13]M1a - Model inputs'!N$136,\n'[13]M1b - Model inputs'!N$136,\n'[13]SM1 - DECC Scenario 3 equiv'!N$136,\n'[13]SM2 - DECC Scenario 1 equiv'!N$136,\n'[13]SM3 - DECC Scenario 2 equiv'!N$136,\n'[13]SM4 - DNO Scenario 4 equiv'!N$136,\n'[14]M1a - Model inputs'!N$136,\n'[14]M1b - Model inputs'!N$136,\n'[14]SM1 - DECC Scenario 3 equiv'!N$136,\n'[14]SM2 - DECC Scenario 1 equiv'!N$136,\n'[14]SM3 - DECC Scenario 2 equiv'!N$136,\n'[14]SM4 - DNO Scenario 4 equiv'!N$136)","v":1.7644615110066209E-3},{"$f":"CHOOSE(view,\n'[13]M1a - Model inputs'!O$136,\n'[13]M1b - Model inputs'!O$136,\n'[13]SM1 - DECC Scenario 3 equiv'!O$136,\n'[13]SM2 - DECC Scenario 1 equiv'!O$136,\n'[13]SM3 - DECC Scenario 2 equiv'!O$136,\n'[13]SM4 - DNO Scenario 4 equiv'!O$136,\n'[14]M1a - Model inputs'!O$136,\n'[14]M1b - Model inputs'!O$136,\n'[14]SM1 - DECC Scenario 3 equiv'!O$136,\n'[14]SM2 - DECC Scenario 1 equiv'!O$136,\n'[14]SM3 - DECC Scenario 2 equiv'!O$136,\n'[14]SM4 - DNO Scenario 4 equiv'!O$136)","v":1.7471826181254969E-3},{"$f":"CHOOSE(view,\n'[13]M1a - Model inputs'!P$136,\n'[13]M1b - Model inputs'!P$136,\n'[13]SM1 - DECC Scenario 3 equiv'!P$136,\n'[13]SM2 - DECC Scenario 1 equiv'!P$136,\n'[13]SM3 - DECC Scenario 2 equiv'!P$136,\n'[13]SM4 - DNO Scenario 4 equiv'!P$136,\n'[14]M1a - Model inputs'!P$136,\n'[14]M1b - Model inputs'!P$136,\n'[14]SM1 - DECC Scenario 3 equiv'!P$136,\n'[14]SM2 - DECC Scenario 1 equiv'!P$136,\n'[14]SM3 - DECC Scenario 2 equiv'!P$136,\n'[14]SM4 - DNO Scenario 4 equiv'!P$136)","v":1.30706974051156E-3},{"$f":"CHOOSE(view,\n'[13]M1a - Model inputs'!Q$136,\n'[13]M1b - Model inputs'!Q$136,\n'[13]SM1 - DECC Scenario 3 equiv'!Q$136,\n'[13]SM2 - DECC Scenario 1 equiv'!Q$136,\n'[13]SM3 - DECC Scenario 2 equiv'!Q$136,\n'[13]SM4 - DNO Scenario 4 equiv'!Q$136,\n'[14]M1a - Model inputs'!Q$136,\n'[14]M1b - Model inputs'!Q$136,\n'[14]SM1 - DECC Scenario 3 equiv'!Q$136,\n'[14]SM2 - DECC Scenario 1 equiv'!Q$136,\n'[14]SM3 - DECC Scenario 2 equiv'!Q$136,\n'[14]SM4 - DNO Scenario 4 equiv'!Q$136)","v":1.286368411135516E-3},{"$f":"CHOOSE(view,\n'[13]M1a - Model inputs'!R$136,\n'[13]M1b - Model inputs'!R$136,\n'[13]SM1 - DECC Scenario 3 equiv'!R$136,\n'[13]SM2 - DECC Scenario 1 equiv'!R$136,\n'[13]SM3 - DECC Scenario 2 equiv'!R$136,\n'[13]SM4 - DNO Scenario 4 equiv'!R$136,\n'[14]M1a - Model inputs'!R$136,\n'[14]M1b - Model inputs'!R$136,\n'[14]SM1 - DECC Scenario 3 equiv'!R$136,\n'[14]SM2 - DECC Scenario 1 equiv'!R$136,\n'[14]SM3 - DECC Scenario 2 equiv'!R$136,\n'[14]SM4 - DNO Scenario 4 equiv'!R$136)","v":1.2686965099578454E-3},{"$f":"CHOOSE(view,\n'[13]M1a - Model inputs'!S$136,\n'[13]M1b - Model inputs'!S$136,\n'[13]SM1 - DECC Scenario 3 equiv'!S$136,\n'[13]SM2 - DECC Scenario 1 equiv'!S$136,\n'[13]SM3 - DECC Scenario 2 equiv'!S$136,\n'[13]SM4 - DNO Scenario 4 equiv'!S$136,\n'[14]M1a - Model inputs'!S$136,\n'[14]M1b - Model inputs'!S$136,\n'[14]SM1 - DECC Scenario 3 equiv'!S$136,\n'[14]SM2 - DECC Scenario 1 equiv'!S$136,\n'[14]SM3 - DECC Scenario 2 equiv'!S$136,\n'[14]SM4 - DNO Scenario 4 equiv'!S$136)","v":1.2385166089527219E-3}]
[null,null,null,null,{"$f":"Input!E259","v":"Metering services (legacy)  net position"},null,{"$f":"Input!G259","v":"£m 12/13 prices"},null,null,null,null,null,null,null,null,null,null,null,null,null,null,null,null,null,null,null,null,null,null,null,null,null,null,null,null,{"$f":"SUM(AJ257, -AJ258)","v":-2.7018182450296808},{"$f":"SUM(AK257, -AK258)","v":-2.5017982998073074},-1.8017644615110067,-1.1017471826181255,-0.40130706974051156,-1.286368411135516E-3,-1.2686965099578454E-3,-1.2385166089527219E-3]
[]
[null,null,null,null,{"$f":"Input!E261","v":"Metering services associated with the SM roll out revenue"},null,{"$f":"Input!G261","v":"£m 12/13 prices"},null,null,null,null,null,null,null,null,null,null,null,null,null,null,null,null,null,null,null,null,null,null,null,null,null,null,null,null,{"$f":"CHOOSE(view,\n'[13]M1a - Model inputs'!L$150,\n'[13]M1b - Model inputs'!L$150,\n'[13]SM1 - DECC Scenario 3 equiv'!L$150,\n'[13]SM2 - DECC Scenario 1 equiv'!L$150,\n'[13]SM3 - DECC Scenario 2 equiv'!L$150,\n'[13]SM4 - DNO Scenario 4 equiv'!L$150,\n'[14]M1a - Model inputs'!L$150,\n'[14]M1b - Model inputs'!L$150,\n'[14]SM1 - DECC Scenario 3 equiv'!L$150,\n'[14]SM2 - DECC Scenario 1 equiv'!L$150,\n'[14]SM3 - DECC Scenario 2 equiv'!L$150,\n'[14]SM4 - DNO Scenario 4 equiv'!L$150)","v":-0.06},{"$f":"CHOOSE(view,\n'[13]M1a - Model inputs'!M$150,\n'[13]M1b - Model inputs'!M$150,\n'[13]SM1 - DECC Scenario 3 equiv'!M$150,\n'[13]SM2 - DECC Scenario 1 equiv'!M$150,\n'[13]SM3 - DECC Scenario 2 equiv'!M$150,\n'[13]SM4 - DNO Scenario 4 equiv'!M$150,\n'[14]M1a - Model inputs'!M$150,\n'[14]M1b - Model inputs'!M$150,\n'[14]SM1 - DECC Scenario 3 equiv'!M$150,\n'[14]SM2 - DECC Scenario 1 equiv'!M$150,\n'[14]SM3 - DECC Scenario 2 equiv'!M$150,\n'[14]SM4 - DNO Scenario 4 equiv'!M$150)","v":-0.12},{"$f":"CHOOSE(view,\n'[13]M1a - Model inputs'!N$150,\n'[13]M1b - Model inputs'!N$150,\n'[13]SM1 - DECC Scenario 3 equiv'!N$150,\n'[13]SM2 - DECC Scenario 1 equiv'!N$150,\n'[13]SM3 - DECC Scenario 2 equiv'!N$150,\n'[13]SM4 - DNO Scenario 4 equiv'!N$150,\n'[14]M1a - Model inputs'!N$150,\n'[14]M1b - Model inputs'!N$150,\n'[14]SM1 - DECC Scenario 3 equiv'!N$150,\n'[14]SM2 - DECC Scenario 1 equiv'!N$150,\n'[14]SM3 - DECC Scenario 2 equiv'!N$150,\n'[14]SM4 - DNO Scenario 4 equiv'!N$150)","v":-0.16},{"$f":"CHOOSE(view,\n'[13]M1a - Model inputs'!O$150,\n'[13]M1b - Model inputs'!O$150,\n'[13]SM1 - DECC Scenario 3 equiv'!O$150,\n'[13]SM2 - DECC Scenario 1 equiv'!O$150,\n'[13]SM3 - DECC Scenario 2 equiv'!O$150,\n'[13]SM4 - DNO Scenario 4 equiv'!O$150,\n'[14]M1a - Model inputs'!O$150,\n'[14]M1b - Model inputs'!O$150,\n'[14]SM1 - DECC Scenario 3 equiv'!O$150,\n'[14]SM2 - DECC Scenario 1 equiv'!O$150,\n'[14]SM3 - DECC Scenario 2 equiv'!O$150,\n'[14]SM4 - DNO Scenario 4 equiv'!O$150)","v":-0.18},{"$f":"CHOOSE(view,\n'[13]M1a - Model inputs'!P$150,\n'[13]M1b - Model inputs'!P$150,\n'[13]SM1 - DECC Scenario 3 equiv'!P$150,\n'[13]SM2 - DECC Scenario 1 equiv'!P$150,\n'[13]SM3 - DECC Scenario 2 equiv'!P$150,\n'[13]SM4 - DNO Scenario 4 equiv'!P$150,\n'[14]M1a - Model inputs'!P$150,\n'[14]M1b - Model inputs'!P$150,\n'[14]SM1 - DECC Scenario 3 equiv'!P$150,\n'[14]SM2 - DECC Scenario 1 equiv'!P$150,\n'[14]SM3 - DECC Scenario 2 equiv'!P$150,\n'[14]SM4 - DNO Scenario 4 equiv'!P$150)","v":-0.16},{"$f":"CHOOSE(view,\n'[13]M1a - Model inputs'!Q$150,\n'[13]M1b - Model inputs'!Q$150,\n'[13]SM1 - DECC Scenario 3 equiv'!Q$150,\n'[13]SM2 - DECC Scenario 1 equiv'!Q$150,\n'[13]SM3 - DECC Scenario 2 equiv'!Q$150,\n'[13]SM4 - DNO Scenario 4 equiv'!Q$150,\n'[14]M1a - Model inputs'!Q$150,\n'[14]M1b - Model inputs'!Q$150,\n'[14]SM1 - DECC Scenario 3 equiv'!Q$150,\n'[14]SM2 - DECC Scenario 1 equiv'!Q$150,\n'[14]SM3 - DECC Scenario 2 equiv'!Q$150,\n'[14]SM4 - DNO Scenario 4 equiv'!Q$150)","v":-0.12},{"$f":"CHOOSE(view,\n'[13]M1a - Model inputs'!R$150,\n'[13]M1b - Model inputs'!R$150,\n'[13]SM1 - DECC Scenario 3 equiv'!R$150,\n'[13]SM2 - DECC Scenario 1 equiv'!R$150,\n'[13]SM3 - DECC Scenario 2 equiv'!R$150,\n'[13]SM4 - DNO Scenario 4 equiv'!R$150,\n'[14]M1a - Model inputs'!R$150,\n'[14]M1b - Model inputs'!R$150,\n'[14]SM1 - DECC Scenario 3 equiv'!R$150,\n'[14]SM2 - DECC Scenario 1 equiv'!R$150,\n'[14]SM3 - DECC Scenario 2 equiv'!R$150,\n'[14]SM4 - DNO Scenario 4 equiv'!R$150)","v":0},{"$f":"CHOOSE(view,\n'[13]M1a - Model inputs'!S$150,\n'[13]M1b - Model inputs'!S$150,\n'[13]SM1 - DECC Scenario 3 equiv'!S$150,\n'[13]SM2 - DECC Scenario 1 equiv'!S$150,\n'[13]SM3 - DECC Scenario 2 equiv'!S$150,\n'[13]SM4 - DNO Scenario 4 equiv'!S$150,\n'[14]M1a - Model inputs'!S$150,\n'[14]M1b - Model inputs'!S$150,\n'[14]SM1 - DECC Scenario 3 equiv'!S$150,\n'[14]SM2 - DECC Scenario 1 equiv'!S$150,\n'[14]SM3 - DECC Scenario 2 equiv'!S$150,\n'[14]SM4 - DNO Scenario 4 equiv'!S$150)","v":0}]
[null,null,null,null,{"$f":"Input!E262","v":"Metering services associated with the SM roll out costs"},null,{"$f":"Input!G262","v":"£m 12/13 prices"},null,null,null,null,null,null,null,null,null,null,null,null,null,null,null,null,null,null,null,null,null,null,null,null,null,null,null,null,{"$f":"CHOOSE(view,\n'[13]M1a - Model inputs'!L$137,\n'[13]M1b - Model inputs'!L$137,\n'[13]SM1 - DECC Scenario 3 equiv'!L$137,\n'[13]SM2 - DECC Scenario 1 equiv'!L$137,\n'[13]SM3 - DECC Scenario 2 equiv'!L$137,\n'[13]SM4 - DNO Scenario 4 equiv'!L$137,\n'[14]M1a - Model inputs'!L$137,\n'[14]M1b - Model inputs'!L$137,\n'[14]SM1 - DECC Scenario 3 equiv'!L$137,\n'[14]SM2 - DECC Scenario 1 equiv'!L$137,\n'[14]SM3 - DECC Scenario 2 equiv'!L$137,\n'[14]SM4 - DNO Scenario 4 equiv'!L$137)","v":0.06},{"$f":"CHOOSE(view,\n'[13]M1a - Model inputs'!M$137,\n'[13]M1b - Model inputs'!M$137,\n'[13]SM1 - DECC Scenario 3 equiv'!M$137,\n'[13]SM2 - DECC Scenario 1 equiv'!M$137,\n'[13]SM3 - DECC Scenario 2 equiv'!M$137,\n'[13]SM4 - DNO Scenario 4 equiv'!M$137,\n'[14]M1a - Model inputs'!M$137,\n'[14]M1b - Model inputs'!M$137,\n'[14]SM1 - DECC Scenario 3 equiv'!M$137,\n'[14]SM2 - DECC Scenario 1 equiv'!M$137,\n'[14]SM3 - DECC Scenario 2 equiv'!M$137,\n'[14]SM4 - DNO Scenario 4 equiv'!M$137)","v":0.12},{"$f":"CHOOSE(view,\n'[13]M1a - Model inputs'!N$137,\n'[13]M1b - Model inputs'!N$137,\n'[13]SM1 - DECC Scenario 3 equiv'!N$137,\n'[13]SM2 - DECC Scenario 1 equiv'!N$137,\n'[13]SM3 - DECC Scenario 2 equiv'!N$137,\n'[13]SM4 - DNO Scenario 4 equiv'!N$137,\n'[14]M1a - Model inputs'!N$137,\n'[14]M1b - Model inputs'!N$137,\n'[14]SM1 - DECC Scenario 3 equiv'!N$137,\n'[14]SM2 - DECC Scenario 1 equiv'!N$137,\n'[14]SM3 - DECC Scenario 2 equiv'!N$137,\n'[14]SM4 - DNO Scenario 4 equiv'!N$137)","v":0.16},{"$f":"CHOOSE(view,\n'[13]M1a - Model inputs'!O$137,\n'[13]M1b - Model inputs'!O$137,\n'[13]SM1 - DECC Scenario 3 equiv'!O$137,\n'[13]SM2 - DECC Scenario 1 equiv'!O$137,\n'[13]SM3 - DECC Scenario 2 equiv'!O$137,\n'[13]SM4 - DNO Scenario 4 equiv'!O$137,\n'[14]M1a - Model inputs'!O$137,\n'[14]M1b - Model inputs'!O$137,\n'[14]SM1 - DECC Scenario 3 equiv'!O$137,\n'[14]SM2 - DECC Scenario 1 equiv'!O$137,\n'[14]SM3 - DECC Scenario 2 equiv'!O$137,\n'[14]SM4 - DNO Scenario 4 equiv'!O$137)","v":0.18},{"$f":"CHOOSE(view,\n'[13]M1a - Model inputs'!P$137,\n'[13]M1b - Model inputs'!P$137,\n'[13]SM1 - DECC Scenario 3 equiv'!P$137,\n'[13]SM2 - DECC Scenario 1 equiv'!P$137,\n'[13]SM3 - DECC Scenario 2 equiv'!P$137,\n'[13]SM4 - DNO Scenario 4 equiv'!P$137,\n'[14]M1a - Model inputs'!P$137,\n'[14]M1b - Model inputs'!P$137,\n'[14]SM1 - DECC Scenario 3 equiv'!P$137,\n'[14]SM2 - DECC Scenario 1 equiv'!P$137,\n'[14]SM3 - DECC Scenario 2 equiv'!P$137,\n'[14]SM4 - DNO Scenario 4 equiv'!P$137)","v":0.16},{"$f":"CHOOSE(view,\n'[13]M1a - Model inputs'!Q$137,\n'[13]M1b - Model inputs'!Q$137,\n'[13]SM1 - DECC Scenario 3 equiv'!Q$137,\n'[13]SM2 - DECC Scenario 1 equiv'!Q$137,\n'[13]SM3 - DECC Scenario 2 equiv'!Q$137,\n'[13]SM4 - DNO Scenario 4 equiv'!Q$137,\n'[14]M1a - Model inputs'!Q$137,\n'[14]M1b - Model inputs'!Q$137,\n'[14]SM1 - DECC Scenario 3 equiv'!Q$137,\n'[14]SM2 - DECC Scenario 1 equiv'!Q$137,\n'[14]SM3 - DECC Scenario 2 equiv'!Q$137,\n'[14]SM4 - DNO Scenario 4 equiv'!Q$137)","v":0.12},{"$f":"CHOOSE(view,\n'[13]M1a - Model inputs'!R$137,\n'[13]M1b - Model inputs'!R$137,\n'[13]SM1 - DECC Scenario 3 equiv'!R$137,\n'[13]SM2 - DECC Scenario 1 equiv'!R$137,\n'[13]SM3 - DECC Scenario 2 equiv'!R$137,\n'[13]SM4 - DNO Scenario 4 equiv'!R$137,\n'[14]M1a - Model inputs'!R$137,\n'[14]M1b - Model inputs'!R$137,\n'[14]SM1 - DECC Scenario 3 equiv'!R$137,\n'[14]SM2 - DECC Scenario 1 equiv'!R$137,\n'[14]SM3 - DECC Scenario 2 equiv'!R$137,\n'[14]SM4 - DNO Scenario 4 equiv'!R$137)","v":0},{"$f":"CHOOSE(view,\n'[13]M1a - Model inputs'!S$137,\n'[13]M1b - Model inputs'!S$137,\n'[13]SM1 - DECC Scenario 3 equiv'!S$137,\n'[13]SM2 - DECC Scenario 1 equiv'!S$137,\n'[13]SM3 - DECC Scenario 2 equiv'!S$137,\n'[13]SM4 - DNO Scenario 4 equiv'!S$137,\n'[14]M1a - Model inputs'!S$137,\n'[14]M1b - Model inputs'!S$137,\n'[14]SM1 - DECC Scenario 3 equiv'!S$137,\n'[14]SM2 - DECC Scenario 1 equiv'!S$137,\n'[14]SM3 - DECC Scenario 2 equiv'!S$137,\n'[14]SM4 - DNO Scenario 4 equiv'!S$137)","v":0}]
[null,null,null,null,{"$f":"Input!E263","v":"Metering services associated with the SM roll out net position"},null,{"$f":"Input!G263","v":"£m 12/13 prices"},null,null,null,null,null,null,null,null,null,null,null,null,null,null,null,null,null,null,null,null,null,null,null,null,null,null,null,null,{"$f":"SUM(AJ261, -AJ262)","v":-0.12},{"$f":"SUM(AK261, -AK262)","v":-0.24},-0.32,-0.36,-0.32,-0.24,0,0]
[]
[null,null,null,null,{"$f":"Input!E265","v":"De Minimis Activities revenue"},null,{"$f":"Input!G265","v":"£m 12/13 prices"},null,null,null,null,null,null,null,null,null,null,null,null,null,null,null,null,null,null,null,null,null,null,null,null,null,null,null,null,{"$f":"CHOOSE(view,\n'[13]M1a - Model inputs'!L$151,\n'[13]M1b - Model inputs'!L$151,\n'[13]SM1 - DECC Scenario 3 equiv'!L$151,\n'[13]SM2 - DECC Scenario 1 equiv'!L$151,\n'[13]SM3 - DECC Scenario 2 equiv'!L$151,\n'[13]SM4 - DNO Scenario 4 equiv'!L$151,\n'[14]M1a - Model inputs'!L$151,\n'[14]M1b - Model inputs'!L$151,\n'[14]SM1 - DECC Scenario 3 equiv'!L$151,\n'[14]SM2 - DECC Scenario 1 equiv'!L$151,\n'[14]SM3 - DECC Scenario 2 equiv'!L$151,\n'[14]SM4 - DNO Scenario 4 equiv'!L$151)","v":-3.4723100179903454},{"$f":"CHOOSE(view,\n'[13]M1a - Model inputs'!M$151,\n'[13]M1b - Model inputs'!M$151,\n'[13]SM1 - DECC Scenario 3 equiv'!M$151,\n'[13]SM2 - DECC Scenario 1 equiv'!M$151,\n'[13]SM3 - DECC Scenario 2 equiv'!M$151,\n'[13]SM4 - DNO Scenario 4 equiv'!M$151,\n'[14]M1a - Model inputs'!M$151,\n'[14]M1b - Model inputs'!M$151,\n'[14]SM1 - DECC Scenario 3 equiv'!M$151,\n'[14]SM2 - DECC Scenario 1 equiv'!M$151,\n'[14]SM3 - DECC Scenario 2 equiv'!M$151,\n'[14]SM4 - DNO Scenario 4 equiv'!M$151)","v":-3.4723100179903454},{"$f":"CHOOSE(view,\n'[13]M1a - Model inputs'!N$151,\n'[13]M1b - Model inputs'!N$151,\n'[13]SM1 - DECC Scenario 3 equiv'!N$151,\n'[13]SM2 - DECC Scenario 1 equiv'!N$151,\n'[13]SM3 - DECC Scenario 2 equiv'!N$151,\n'[13]SM4 - DNO Scenario 4 equiv'!N$151,\n'[14]M1a - Model inputs'!N$151,\n'[14]M1b - Model inputs'!N$151,\n'[14]SM1 - DECC Scenario 3 equiv'!N$151,\n'[14]SM2 - DECC Scenario 1 equiv'!N$151,\n'[14]SM3 - DECC Scenario 2 equiv'!N$151,\n'[14]SM4 - DNO Scenario 4 equiv'!N$151)","v":-3.4723100179903454},{"$f":"CHOOSE(view,\n'[13]M1a - Model inputs'!O$151,\n'[13]M1b - Model inputs'!O$151,\n'[13]SM1 - DECC Scenario 3 equiv'!O$151,\n'[13]SM2 - DECC Scenario 1 equiv'!O$151,\n'[13]SM3 - DECC Scenario 2 equiv'!O$151,\n'[13]SM4 - DNO Scenario 4 equiv'!O$151,\n'[14]M1a - Model inputs'!O$151,\n'[14]M1b - Model inputs'!O$151,\n'[14]SM1 - DECC Scenario 3 equiv'!O$151,\n'[14]SM2 - DECC Scenario 1 equiv'!O$151,\n'[14]SM3 - DECC Scenario 2 equiv'!O$151,\n'[14]SM4 - DNO Scenario 4 equiv'!O$151)","v":-3.4723100179903454},{"$f":"CHOOSE(view,\n'[13]M1a - Model inputs'!P$151,\n'[13]M1b - Model inputs'!P$151,\n'[13]SM1 - DECC Scenario 3 equiv'!P$151,\n'[13]SM2 - DECC Scenario 1 equiv'!P$151,\n'[13]SM3 - DECC Scenario 2 equiv'!P$151,\n'[13]SM4 - DNO Scenario 4 equiv'!P$151,\n'[14]M1a - Model inputs'!P$151,\n'[14]M1b - Model inputs'!P$151,\n'[14]SM1 - DECC Scenario 3 equiv'!P$151,\n'[14]SM2 - DECC Scenario 1 equiv'!P$151,\n'[14]SM3 - DECC Scenario 2 equiv'!P$151,\n'[14]SM4 - DNO Scenario 4 equiv'!P$151)","v":-3.4723100179903454},{"$f":"CHOOSE(view,\n'[13]M1a - Model inputs'!Q$151,\n'[13]M1b - Model inputs'!Q$151,\n'[13]SM1 - DECC Scenario 3 equiv'!Q$151,\n'[13]SM2 - DECC Scenario 1 equiv'!Q$151,\n'[13]SM3 - DECC Scenario 2 equiv'!Q$151,\n'[13]SM4 - DNO Scenario 4 equiv'!Q$151,\n'[14]M1a - Model inputs'!Q$151,\n'[14]M1b - Model inputs'!Q$151,\n'[14]SM1 - DECC Scenario 3 equiv'!Q$151,\n'[14]SM2 - DECC Scenario 1 equiv'!Q$151,\n'[14]SM3 - DECC Scenario 2 equiv'!Q$151,\n'[14]SM4 - DNO Scenario 4 equiv'!Q$151)","v":-3.4723100179903454},{"$f":"CHOOSE(view,\n'[13]M1a - Model inputs'!R$151,\n'[13]M1b - Model inputs'!R$151,\n'[13]SM1 - DECC Scenario 3 equiv'!R$151,\n'[13]SM2 - DECC Scenario 1 equiv'!R$151,\n'[13]SM3 - DECC Scenario 2 equiv'!R$151,\n'[13]SM4 - DNO Scenario 4 equiv'!R$151,\n'[14]M1a - Model inputs'!R$151,\n'[14]M1b - Model inputs'!R$151,\n'[14]SM1 - DECC Scenario 3 equiv'!R$151,\n'[14]SM2 - DECC Scenario 1 equiv'!R$151,\n'[14]SM3 - DECC Scenario 2 equiv'!R$151,\n'[14]SM4 - DNO Scenario 4 equiv'!R$151)","v":-3.4723100179903454},{"$f":"CHOOSE(view,\n'[13]M1a - Model inputs'!S$151,\n'[13]M1b - Model inputs'!S$151,\n'[13]SM1 - DECC Scenario 3 equiv'!S$151,\n'[13]SM2 - DECC Scenario 1 equiv'!S$151,\n'[13]SM3 - DECC Scenario 2 equiv'!S$151,\n'[13]SM4 - DNO Scenario 4 equiv'!S$151,\n'[14]M1a - Model inputs'!S$151,\n'[14]M1b - Model inputs'!S$151,\n'[14]SM1 - DECC Scenario 3 equiv'!S$151,\n'[14]SM2 - DECC Scenario 1 equiv'!S$151,\n'[14]SM3 - DECC Scenario 2 equiv'!S$151,\n'[14]SM4 - DNO Scenario 4 equiv'!S$151)","v":-3.4723100179903454}]
[null,null,null,null,{"$f":"Input!E266","v":"De Minimis Activities costs"},null,{"$f":"Input!G266","v":"£m 12/13 prices"},null,null,null,null,null,null,null,null,null,null,null,null,null,null,null,null,null,null,null,null,null,null,null,null,null,null,null,null,{"$f":"CHOOSE(view,\n'[13]M1a - Model inputs'!L$138,\n'[13]M1b - Model inputs'!L$138,\n'[13]SM1 - DECC Scenario 3 equiv'!L$138,\n'[13]SM2 - DECC Scenario 1 equiv'!L$138,\n'[13]SM3 - DECC Scenario 2 equiv'!L$138,\n'[13]SM4 - DNO Scenario 4 equiv'!L$138,\n'[14]M1a - Model inputs'!L$138,\n'[14]M1b - Model inputs'!L$138,\n'[14]SM1 - DECC Scenario 3 equiv'!L$138,\n'[14]SM2 - DECC Scenario 1 equiv'!L$138,\n'[14]SM3 - DECC Scenario 2 equiv'!L$138,\n'[14]SM4 - DNO Scenario 4 equiv'!L$138)","v":3.5010131029934577},{"$f":"CHOOSE(view,\n'[13]M1a - Model inputs'!M$138,\n'[13]M1b - Model inputs'!M$138,\n'[13]SM1 - DECC Scenario 3 equiv'!M$138,\n'[13]SM2 - DECC Scenario 1 equiv'!M$138,\n'[13]SM3 - DECC Scenario 2 equiv'!M$138,\n'[13]SM4 - DNO Scenario 4 equiv'!M$138,\n'[14]M1a - Model inputs'!M$138,\n'[14]M1b - Model inputs'!M$138,\n'[14]SM1 - DECC Scenario 3 equiv'!M$138,\n'[14]SM2 - DECC Scenario 1 equiv'!M$138,\n'[14]SM3 - DECC Scenario 2 equiv'!M$138,\n'[14]SM4 - DNO Scenario 4 equiv'!M$138)","v":3.4750155108183196},{"$f":"CHOOSE(view,\n'[13]M1a - Model inputs'!N$138,\n'[13]M1b - Model inputs'!N$138,\n'[13]SM1 - DECC Scenario 3 equiv'!N$138,\n'[13]SM2 - DECC Scenario 1 equiv'!N$138,\n'[13]SM3 - DECC Scenario 2 equiv'!N$138,\n'[13]SM4 - DNO Scenario 4 equiv'!N$138,\n'[14]M1a - Model inputs'!N$138,\n'[14]M1b - Model inputs'!N$138,\n'[14]SM1 - DECC Scenario 3 equiv'!N$138,\n'[14]SM2 - DECC Scenario 1 equiv'!N$138,\n'[14]SM3 - DECC Scenario 2 equiv'!N$138,\n'[14]SM4 - DNO Scenario 4 equiv'!N$138)","v":3.4050529199618422},{"$f":"CHOOSE(view,\n'[13]M1a - Model inputs'!O$138,\n'[13]M1b - Model inputs'!O$138,\n'[13]SM1 - DECC Scenario 3 equiv'!O$138,\n'[13]SM2 - DECC Scenario 1 equiv'!O$138,\n'[13]SM3 - DECC Scenario 2 equiv'!O$138,\n'[13]SM4 - DNO Scenario 4 equiv'!O$138,\n'[14]M1a - Model inputs'!O$138,\n'[14]M1b - Model inputs'!O$138,\n'[14]SM1 - DECC Scenario 3 equiv'!O$138,\n'[14]SM2 - DECC Scenario 1 equiv'!O$138,\n'[14]SM3 - DECC Scenario 2 equiv'!O$138,\n'[14]SM4 - DNO Scenario 4 equiv'!O$138)","v":3.3826611585553401},{"$f":"CHOOSE(view,\n'[13]M1a - Model inputs'!P$138,\n'[13]M1b - Model inputs'!P$138,\n'[13]SM1 - DECC Scenario 3 equiv'!P$138,\n'[13]SM2 - DECC Scenario 1 equiv'!P$138,\n'[13]SM3 - DECC Scenario 2 equiv'!P$138,\n'[13]SM4 - DNO Scenario 4 equiv'!P$138,\n'[14]M1a - Model inputs'!P$138,\n'[14]M1b - Model inputs'!P$138,\n'[14]SM1 - DECC Scenario 3 equiv'!P$138,\n'[14]SM2 - DECC Scenario 1 equiv'!P$138,\n'[14]SM3 - DECC Scenario 2 equiv'!P$138,\n'[14]SM4 - DNO Scenario 4 equiv'!P$138)","v":3.3303735053710208},{"$f":"CHOOSE(view,\n'[13]M1a - Model inputs'!Q$138,\n'[13]M1b - Model inputs'!Q$138,\n'[13]SM1 - DECC Scenario 3 equiv'!Q$138,\n'[13]SM2 - DECC Scenario 1 equiv'!Q$138,\n'[13]SM3 - DECC Scenario 2 equiv'!Q$138,\n'[13]SM4 - DNO Scenario 4 equiv'!Q$138,\n'[14]M1a - Model inputs'!Q$138,\n'[14]M1b - Model inputs'!Q$138,\n'[14]SM1 - DECC Scenario 3 equiv'!Q$138,\n'[14]SM2 - DECC Scenario 1 equiv'!Q$138,\n'[14]SM3 - DECC Scenario 2 equiv'!Q$138,\n'[14]SM4 - DNO Scenario 4 equiv'!Q$138)","v":3.2941468002568737},{"$f":"CHOOSE(view,\n'[13]M1a - Model inputs'!R$138,\n'[13]M1b - Model inputs'!R$138,\n'[13]SM1 - DECC Scenario 3 equiv'!R$138,\n'[13]SM2 - DECC Scenario 1 equiv'!R$138,\n'[13]SM3 - DECC Scenario 2 equiv'!R$138,\n'[13]SM4 - DNO Scenario 4 equiv'!R$138,\n'[14]M1a - Model inputs'!R$138,\n'[14]M1b - Model inputs'!R$138,\n'[14]SM1 - DECC Scenario 3 equiv'!R$138,\n'[14]SM2 - DECC Scenario 1 equiv'!R$138,\n'[14]SM3 - DECC Scenario 2 equiv'!R$138,\n'[14]SM4 - DNO Scenario 4 equiv'!R$138)","v":3.2647435854564923},{"$f":"CHOOSE(view,\n'[13]M1a - Model inputs'!S$138,\n'[13]M1b - Model inputs'!S$138,\n'[13]SM1 - DECC Scenario 3 equiv'!S$138,\n'[13]SM2 - DECC Scenario 1 equiv'!S$138,\n'[13]SM3 - DECC Scenario 2 equiv'!S$138,\n'[13]SM4 - DNO Scenario 4 equiv'!S$138,\n'[14]M1a - Model inputs'!S$138,\n'[14]M1b - Model inputs'!S$138,\n'[14]SM1 - DECC Scenario 3 equiv'!S$138,\n'[14]SM2 - DECC Scenario 1 equiv'!S$138,\n'[14]SM3 - DECC Scenario 2 equiv'!S$138,\n'[14]SM4 - DNO Scenario 4 equiv'!S$138)","v":3.2155132071800616}]
[null,null,null,null,{"$f":"Input!E267","v":"De Minimis Activities net position"},null,{"$f":"Input!G267","v":"£m 12/13 prices"},null,null,null,null,null,null,null,null,null,null,null,null,null,null,null,null,null,null,null,null,null,null,null,null,null,null,null,null,{"$f":"SUM(AJ265, -AJ266)","v":-6.9733231209838031},{"$f":"SUM(AK265, -AK266)","v":-6.9473255288086655},-6.8773629379521877,-6.8549711765456856,-6.8026835233613667,-6.7664568182472191,-6.7370536034468378,-6.6878232251704066]
[]
[null,null,null,null,{"$f":"Input!E269","v":"Out of Area Networks revenue"},null,{"$f":"Input!G269","v":"£m 12/13 prices"},null,null,null,null,null,null,null,null,null,null,null,null,null,null,null,null,null,null,null,null,null,null,null,null,null,null,null,null,{"$f":"CHOOSE(view,\n'[13]M1a - Model inputs'!L$152,\n'[13]M1b - Model inputs'!L$152,\n'[13]SM1 - DECC Scenario 3 equiv'!L$152,\n'[13]SM2 - DECC Scenario 1 equiv'!L$152,\n'[13]SM3 - DECC Scenario 2 equiv'!L$152,\n'[13]SM4 - DNO Scenario 4 equiv'!L$152,\n'[14]M1a - Model inputs'!L$152,\n'[14]M1b - Model inputs'!L$152,\n'[14]SM1 - DECC Scenario 3 equiv'!L$152,\n'[14]SM2 - DECC Scenario 1 equiv'!L$152,\n'[14]SM3 - DECC Scenario 2 equiv'!L$152,\n'[14]SM4 - DNO Scenario 4 equiv'!L$152)","v":0},{"$f":"CHOOSE(view,\n'[13]M1a - Model inputs'!M$152,\n'[13]M1b - Model inputs'!M$152,\n'[13]SM1 - DECC Scenario 3 equiv'!M$152,\n'[13]SM2 - DECC Scenario 1 equiv'!M$152,\n'[13]SM3 - DECC Scenario 2 equiv'!M$152,\n'[13]SM4 - DNO Scenario 4 equiv'!M$152,\n'[14]M1a - Model inputs'!M$152,\n'[14]M1b - Model inputs'!M$152,\n'[14]SM1 - DECC Scenario 3 equiv'!M$152,\n'[14]SM2 - DECC Scenario 1 equiv'!M$152,\n'[14]SM3 - DECC Scenario 2 equiv'!M$152,\n'[14]SM4 - DNO Scenario 4 equiv'!M$152)","v":0},{"$f":"CHOOSE(view,\n'[13]M1a - Model inputs'!N$152,\n'[13]M1b - Model inputs'!N$152,\n'[13]SM1 - DECC Scenario 3 equiv'!N$152,\n'[13]SM2 - DECC Scenario 1 equiv'!N$152,\n'[13]SM3 - DECC Scenario 2 equiv'!N$152,\n'[13]SM4 - DNO Scenario 4 equiv'!N$152,\n'[14]M1a - Model inputs'!N$152,\n'[14]M1b - Model inputs'!N$152,\n'[14]SM1 - DECC Scenario 3 equiv'!N$152,\n'[14]SM2 - DECC Scenario 1 equiv'!N$152,\n'[14]SM3 - DECC Scenario 2 equiv'!N$152,\n'[14]SM4 - DNO Scenario 4 equiv'!N$152)","v":0},{"$f":"CHOOSE(view,\n'[13]M1a - Model inputs'!O$152,\n'[13]M1b - Model inputs'!O$152,\n'[13]SM1 - DECC Scenario 3 equiv'!O$152,\n'[13]SM2 - DECC Scenario 1 equiv'!O$152,\n'[13]SM3 - DECC Scenario 2 equiv'!O$152,\n'[13]SM4 - DNO Scenario 4 equiv'!O$152,\n'[14]M1a - Model inputs'!O$152,\n'[14]M1b - Model inputs'!O$152,\n'[14]SM1 - DECC Scenario 3 equiv'!O$152,\n'[14]SM2 - DECC Scenario 1 equiv'!O$152,\n'[14]SM3 - DECC Scenario 2 equiv'!O$152,\n'[14]SM4 - DNO Scenario 4 equiv'!O$152)","v":0},{"$f":"CHOOSE(view,\n'[13]M1a - Model inputs'!P$152,\n'[13]M1b - Model inputs'!P$152,\n'[13]SM1 - DECC Scenario 3 equiv'!P$152,\n'[13]SM2 - DECC Scenario 1 equiv'!P$152,\n'[13]SM3 - DECC Scenario 2 equiv'!P$152,\n'[13]SM4 - DNO Scenario 4 equiv'!P$152,\n'[14]M1a - Model inputs'!P$152,\n'[14]M1b - Model inputs'!P$152,\n'[14]SM1 - DECC Scenario 3 equiv'!P$152,\n'[14]SM2 - DECC Scenario 1 equiv'!P$152,\n'[14]SM3 - DECC Scenario 2 equiv'!P$152,\n'[14]SM4 - DNO Scenario 4 equiv'!P$152)","v":0},{"$f":"CHOOSE(view,\n'[13]M1a - Model inputs'!Q$152,\n'[13]M1b - Model inputs'!Q$152,\n'[13]SM1 - DECC Scenario 3 equiv'!Q$152,\n'[13]SM2 - DECC Scenario 1 equiv'!Q$152,\n'[13]SM3 - DECC Scenario 2 equiv'!Q$152,\n'[13]SM4 - DNO Scenario 4 equiv'!Q$152,\n'[14]M1a - Model inputs'!Q$152,\n'[14]M1b - Model inputs'!Q$152,\n'[14]SM1 - DECC Scenario 3 equiv'!Q$152,\n'[14]SM2 - DECC Scenario 1 equiv'!Q$152,\n'[14]SM3 - DECC Scenario 2 equiv'!Q$152,\n'[14]SM4 - DNO Scenario 4 equiv'!Q$152)","v":0},{"$f":"CHOOSE(view,\n'[13]M1a - Model inputs'!R$152,\n'[13]M1b - Model inputs'!R$152,\n'[13]SM1 - DECC Scenario 3 equiv'!R$152,\n'[13]SM2 - DECC Scenario 1 equiv'!R$152,\n'[13]SM3 - DECC Scenario 2 equiv'!R$152,\n'[13]SM4 - DNO Scenario 4 equiv'!R$152,\n'[14]M1a - Model inputs'!R$152,\n'[14]M1b - Model inputs'!R$152,\n'[14]SM1 - DECC Scenario 3 equiv'!R$152,\n'[14]SM2 - DECC Scenario 1 equiv'!R$152,\n'[14]SM3 - DECC Scenario 2 equiv'!R$152,\n'[14]SM4 - DNO Scenario 4 equiv'!R$152)","v":0},{"$f":"CHOOSE(view,\n'[13]M1a - Model inputs'!S$152,\n'[13]M1b - Model inputs'!S$152,\n'[13]SM1 - DECC Scenario 3 equiv'!S$152,\n'[13]SM2 - DECC Scenario 1 equiv'!S$152,\n'[13]SM3 - DECC Scenario 2 equiv'!S$152,\n'[13]SM4 - DNO Scenario 4 equiv'!S$152,\n'[14]M1a - Model inputs'!S$152,\n'[14]M1b - Model inputs'!S$152,\n'[14]SM1 - DECC Scenario 3 equiv'!S$152,\n'[14]SM2 - DECC Scenario 1 equiv'!S$152,\n'[14]SM3 - DECC Scenario 2 equiv'!S$152,\n'[14]SM4 - DNO Scenario 4 equiv'!S$152)","v":0}]
[null,null,null,null,{"$f":"Input!E270","v":"Out of Area Networks costs"},null,{"$f":"Input!G270","v":"£m 12/13 prices"},null,null,null,null,null,null,null,null,null,null,null,null,null,null,null,null,null,null,null,null,null,null,null,null,null,null,null,null,{"$f":"CHOOSE(view,\n'[13]M1a - Model inputs'!L$139,\n'[13]M1b - Model inputs'!L$139,\n'[13]SM1 - DECC Scenario 3 equiv'!L$139,\n'[13]SM2 - DECC Scenario 1 equiv'!L$139,\n'[13]SM3 - DECC Scenario 2 equiv'!L$139,\n'[13]SM4 - DNO Scenario 4 equiv'!L$139,\n'[14]M1a - Model inputs'!L$139,\n'[14]M1b - Model inputs'!L$139,\n'[14]SM1 - DECC Scenario 3 equiv'!L$139,\n'[14]SM2 - DECC Scenario 1 equiv'!L$139,\n'[14]SM3 - DECC Scenario 2 equiv'!L$139,\n'[14]SM4 - DNO Scenario 4 equiv'!L$139)","v":0},{"$f":"CHOOSE(view,\n'[13]M1a - Model inputs'!M$139,\n'[13]M1b - Model inputs'!M$139,\n'[13]SM1 - DECC Scenario 3 equiv'!M$139,\n'[13]SM2 - DECC Scenario 1 equiv'!M$139,\n'[13]SM3 - DECC Scenario 2 equiv'!M$139,\n'[13]SM4 - DNO Scenario 4 equiv'!M$139,\n'[14]M1a - Model inputs'!M$139,\n'[14]M1b - Model inputs'!M$139,\n'[14]SM1 - DECC Scenario 3 equiv'!M$139,\n'[14]SM2 - DECC Scenario 1 equiv'!M$139,\n'[14]SM3 - DECC Scenario 2 equiv'!M$139,\n'[14]SM4 - DNO Scenario 4 equiv'!M$139)","v":0},{"$f":"CHOOSE(view,\n'[13]M1a - Model inputs'!N$139,\n'[13]M1b - Model inputs'!N$139,\n'[13]SM1 - DECC Scenario 3 equiv'!N$139,\n'[13]SM2 - DECC Scenario 1 equiv'!N$139,\n'[13]SM3 - DECC Scenario 2 equiv'!N$139,\n'[13]SM4 - DNO Scenario 4 equiv'!N$139,\n'[14]M1a - Model inputs'!N$139,\n'[14]M1b - Model inputs'!N$139,\n'[14]SM1 - DECC Scenario 3 equiv'!N$139,\n'[14]SM2 - DECC Scenario 1 equiv'!N$139,\n'[14]SM3 - DECC Scenario 2 equiv'!N$139,\n'[14]SM4 - DNO Scenario 4 equiv'!N$139)","v":0},{"$f":"CHOOSE(view,\n'[13]M1a - Model inputs'!O$139,\n'[13]M1b - Model inputs'!O$139,\n'[13]SM1 - DECC Scenario 3 equiv'!O$139,\n'[13]SM2 - DECC Scenario 1 equiv'!O$139,\n'[13]SM3 - DECC Scenario 2 equiv'!O$139,\n'[13]SM4 - DNO Scenario 4 equiv'!O$139,\n'[14]M1a - Model inputs'!O$139,\n'[14]M1b - Model inputs'!O$139,\n'[14]SM1 - DECC Scenario 3 equiv'!O$139,\n'[14]SM2 - DECC Scenario 1 equiv'!O$139,\n'[14]SM3 - DECC Scenario 2 equiv'!O$139,\n'[14]SM4 - DNO Scenario 4 equiv'!O$139)","v":0},{"$f":"CHOOSE(view,\n'[13]M1a - Model inputs'!P$139,\n'[13]M1b - Model inputs'!P$139,\n'[13]SM1 - DECC Scenario 3 equiv'!P$139,\n'[13]SM2 - DECC Scenario 1 equiv'!P$139,\n'[13]SM3 - DECC Scenario 2 equiv'!P$139,\n'[13]SM4 - DNO Scenario 4 equiv'!P$139,\n'[14]M1a - Model inputs'!P$139,\n'[14]M1b - Model inputs'!P$139,\n'[14]SM1 - DECC Scenario 3 equiv'!P$139,\n'[14]SM2 - DECC Scenario 1 equiv'!P$139,\n'[14]SM3 - DECC Scenario 2 equiv'!P$139,\n'[14]SM4 - DNO Scenario 4 equiv'!P$139)","v":0},{"$f":"CHOOSE(view,\n'[13]M1a - Model inputs'!Q$139,\n'[13]M1b - Model inputs'!Q$139,\n'[13]SM1 - DECC Scenario 3 equiv'!Q$139,\n'[13]SM2 - DECC Scenario 1 equiv'!Q$139,\n'[13]SM3 - DECC Scenario 2 equiv'!Q$139,\n'[13]SM4 - DNO Scenario 4 equiv'!Q$139,\n'[14]M1a - Model inputs'!Q$139,\n'[14]M1b - Model inputs'!Q$139,\n'[14]SM1 - DECC Scenario 3 equiv'!Q$139,\n'[14]SM2 - DECC Scenario 1 equiv'!Q$139,\n'[14]SM3 - DECC Scenario 2 equiv'!Q$139,\n'[14]SM4 - DNO Scenario 4 equiv'!Q$139)","v":0},{"$f":"CHOOSE(view,\n'[13]M1a - Model inputs'!R$139,\n'[13]M1b - Model inputs'!R$139,\n'[13]SM1 - DECC Scenario 3 equiv'!R$139,\n'[13]SM2 - DECC Scenario 1 equiv'!R$139,\n'[13]SM3 - DECC Scenario 2 equiv'!R$139,\n'[13]SM4 - DNO Scenario 4 equiv'!R$139,\n'[14]M1a - Model inputs'!R$139,\n'[14]M1b - Model inputs'!R$139,\n'[14]SM1 - DECC Scenario 3 equiv'!R$139,\n'[14]SM2 - DECC Scenario 1 equiv'!R$139,\n'[14]SM3 - DECC Scenario 2 equiv'!R$139,\n'[14]SM4 - DNO Scenario 4 equiv'!R$139)","v":0},{"$f":"CHOOSE(view,\n'[13]M1a - Model inputs'!S$139,\n'[13]M1b - Model inputs'!S$139,\n'[13]SM1 - DECC Scenario 3 equiv'!S$139,\n'[13]SM2 - DECC Scenario 1 equiv'!S$139,\n'[13]SM3 - DECC Scenario 2 equiv'!S$139,\n'[13]SM4 - DNO Scenario 4 equiv'!S$139,\n'[14]M1a - Model inputs'!S$139,\n'[14]M1b - Model inputs'!S$139,\n'[14]SM1 - DECC Scenario 3 equiv'!S$139,\n'[14]SM2 - DECC Scenario 1 equiv'!S$139,\n'[14]SM3 - DECC Scenario 2 equiv'!S$139,\n'[14]SM4 - DNO Scenario 4 equiv'!S$139)","v":0}]
[null,null,null,null,{"$f":"Input!E271","v":"Out of Area Networks net position"},null,{"$f":"Input!G271","v":"£m 12/13 prices"},null,null,null,null,null,null,null,null,null,null,null,null,null,null,null,null,null,null,null,null,null,null,null,null,null,null,null,null,{"$f":"SUM(AJ269, -AJ270)","v":0},{"$f":"SUM(AK269, -AK270)","v":0},0,0,0,0,0,0]
[]
[null,null,null,null,{"$f":"Input!E273","v":"Other consented activities revenue"},null,{"$f":"Input!G273","v":"£m 12/13 prices"},null,null,null,null,null,null,null,null,null,null,null,null,null,null,null,null,null,null,null,null,null,null,null,null,null,null,null,null,{"$f":"CHOOSE(view,\n'[13]M1a - Model inputs'!L$153,\n'[13]M1b - Model inputs'!L$153,\n'[13]SM1 - DECC Scenario 3 equiv'!L$153,\n'[13]SM2 - DECC Scenario 1 equiv'!L$153,\n'[13]SM3 - DECC Scenario 2 equiv'!L$153,\n'[13]SM4 - DNO Scenario 4 equiv'!L$153,\n'[14]M1a - Model inputs'!L$153,\n'[14]M1b - Model inputs'!L$153,\n'[14]SM1 - DECC Scenario 3 equiv'!L$153,\n'[14]SM2 - DECC Scenario 1 equiv'!L$153,\n'[14]SM3 - DECC Scenario 2 equiv'!L$153,\n'[14]SM4 - DNO Scenario 4 equiv'!L$153)","v":0},{"$f":"CHOOSE(view,\n'[13]M1a - Model inputs'!M$153,\n'[13]M1b - Model inputs'!M$153,\n'[13]SM1 - DECC Scenario 3 equiv'!M$153,\n'[13]SM2 - DECC Scenario 1 equiv'!M$153,\n'[13]SM3 - DECC Scenario 2 equiv'!M$153,\n'[13]SM4 - DNO Scenario 4 equiv'!M$153,\n'[14]M1a - Model inputs'!M$153,\n'[14]M1b - Model inputs'!M$153,\n'[14]SM1 - DECC Scenario 3 equiv'!M$153,\n'[14]SM2 - DECC Scenario 1 equiv'!M$153,\n'[14]SM3 - DECC Scenario 2 equiv'!M$153,\n'[14]SM4 - DNO Scenario 4 equiv'!M$153)","v":0},{"$f":"CHOOSE(view,\n'[13]M1a - Model inputs'!N$153,\n'[13]M1b - Model inputs'!N$153,\n'[13]SM1 - DECC Scenario 3 equiv'!N$153,\n'[13]SM2 - DECC Scenario 1 equiv'!N$153,\n'[13]SM3 - DECC Scenario 2 equiv'!N$153,\n'[13]SM4 - DNO Scenario 4 equiv'!N$153,\n'[14]M1a - Model inputs'!N$153,\n'[14]M1b - Model inputs'!N$153,\n'[14]SM1 - DECC Scenario 3 equiv'!N$153,\n'[14]SM2 - DECC Scenario 1 equiv'!N$153,\n'[14]SM3 - DECC Scenario 2 equiv'!N$153,\n'[14]SM4 - DNO Scenario 4 equiv'!N$153)","v":0},{"$f":"CHOOSE(view,\n'[13]M1a - Model inputs'!O$153,\n'[13]M1b - Model inputs'!O$153,\n'[13]SM1 - DECC Scenario 3 equiv'!O$153,\n'[13]SM2 - DECC Scenario 1 equiv'!O$153,\n'[13]SM3 - DECC Scenario 2 equiv'!O$153,\n'[13]SM4 - DNO Scenario 4 equiv'!O$153,\n'[14]M1a - Model inputs'!O$153,\n'[14]M1b - Model inputs'!O$153,\n'[14]SM1 - DECC Scenario 3 equiv'!O$153,\n'[14]SM2 - DECC Scenario 1 equiv'!O$153,\n'[14]SM3 - DECC Scenario 2 equiv'!O$153,\n'[14]SM4 - DNO Scenario 4 equiv'!O$153)","v":0},{"$f":"CHOOSE(view,\n'[13]M1a - Model inputs'!P$153,\n'[13]M1b - Model inputs'!P$153,\n'[13]SM1 - DECC Scenario 3 equiv'!P$153,\n'[13]SM2 - DECC Scenario 1 equiv'!P$153,\n'[13]SM3 - DECC Scenario 2 equiv'!P$153,\n'[13]SM4 - DNO Scenario 4 equiv'!P$153,\n'[14]M1a - Model inputs'!P$153,\n'[14]M1b - Model inputs'!P$153,\n'[14]SM1 - DECC Scenario 3 equiv'!P$153,\n'[14]SM2 - DECC Scenario 1 equiv'!P$153,\n'[14]SM3 - DECC Scenario 2 equiv'!P$153,\n'[14]SM4 - DNO Scenario 4 equiv'!P$153)","v":0},{"$f":"CHOOSE(view,\n'[13]M1a - Model inputs'!Q$153,\n'[13]M1b - Model inputs'!Q$153,\n'[13]SM1 - DECC Scenario 3 equiv'!Q$153,\n'[13]SM2 - DECC Scenario 1 equiv'!Q$153,\n'[13]SM3 - DECC Scenario 2 equiv'!Q$153,\n'[13]SM4 - DNO Scenario 4 equiv'!Q$153,\n'[14]M1a - Model inputs'!Q$153,\n'[14]M1b - Model inputs'!Q$153,\n'[14]SM1 - DECC Scenario 3 equiv'!Q$153,\n'[14]SM2 - DECC Scenario 1 equiv'!Q$153,\n'[14]SM3 - DECC Scenario 2 equiv'!Q$153,\n'[14]SM4 - DNO Scenario 4 equiv'!Q$153)","v":0},{"$f":"CHOOSE(view,\n'[13]M1a - Model inputs'!R$153,\n'[13]M1b - Model inputs'!R$153,\n'[13]SM1 - DECC Scenario 3 equiv'!R$153,\n'[13]SM2 - DECC Scenario 1 equiv'!R$153,\n'[13]SM3 - DECC Scenario 2 equiv'!R$153,\n'[13]SM4 - DNO Scenario 4 equiv'!R$153,\n'[14]M1a - Model inputs'!R$153,\n'[14]M1b - Model inputs'!R$153,\n'[14]SM1 - DECC Scenario 3 equiv'!R$153,\n'[14]SM2 - DECC Scenario 1 equiv'!R$153,\n'[14]SM3 - DECC Scenario 2 equiv'!R$153,\n'[14]SM4 - DNO Scenario 4 equiv'!R$153)","v":0},{"$f":"CHOOSE(view,\n'[13]M1a - Model inputs'!S$153,\n'[13]M1b - Model inputs'!S$153,\n'[13]SM1 - DECC Scenario 3 equiv'!S$153,\n'[13]SM2 - DECC Scenario 1 equiv'!S$153,\n'[13]SM3 - DECC Scenario 2 equiv'!S$153,\n'[13]SM4 - DNO Scenario 4 equiv'!S$153,\n'[14]M1a - Model inputs'!S$153,\n'[14]M1b - Model inputs'!S$153,\n'[14]SM1 - DECC Scenario 3 equiv'!S$153,\n'[14]SM2 - DECC Scenario 1 equiv'!S$153,\n'[14]SM3 - DECC Scenario 2 equiv'!S$153,\n'[14]SM4 - DNO Scenario 4 equiv'!S$153)","v":0}]
[null,null,null,null,{"$f":"Input!E274","v":"Other consented activities costs"},null,{"$f":"Input!G274","v":"£m 12/13 prices"},null,null,null,null,null,null,null,null,null,null,null,null,null,null,null,null,null,null,null,null,null,null,null,null,null,null,null,null,{"$f":"CHOOSE(view,\n'[13]M1a - Model inputs'!L$140,\n'[13]M1b - Model inputs'!L$140,\n'[13]SM1 - DECC Scenario 3 equiv'!L$140,\n'[13]SM2 - DECC Scenario 1 equiv'!L$140,\n'[13]SM3 - DECC Scenario 2 equiv'!L$140,\n'[13]SM4 - DNO Scenario 4 equiv'!L$140,\n'[14]M1a - Model inputs'!L$140,\n'[14]M1b - Model inputs'!L$140,\n'[14]SM1 - DECC Scenario 3 equiv'!L$140,\n'[14]SM2 - DECC Scenario 1 equiv'!L$140,\n'[14]SM3 - DECC Scenario 2 equiv'!L$140,\n'[14]SM4 - DNO Scenario 4 equiv'!L$140)","v":0},{"$f":"CHOOSE(view,\n'[13]M1a - Model inputs'!M$140,\n'[13]M1b - Model inputs'!M$140,\n'[13]SM1 - DECC Scenario 3 equiv'!M$140,\n'[13]SM2 - DECC Scenario 1 equiv'!M$140,\n'[13]SM3 - DECC Scenario 2 equiv'!M$140,\n'[13]SM4 - DNO Scenario 4 equiv'!M$140,\n'[14]M1a - Model inputs'!M$140,\n'[14]M1b - Model inputs'!M$140,\n'[14]SM1 - DECC Scenario 3 equiv'!M$140,\n'[14]SM2 - DECC Scenario 1 equiv'!M$140,\n'[14]SM3 - DECC Scenario 2 equiv'!M$140,\n'[14]SM4 - DNO Scenario 4 equiv'!M$140)","v":0},{"$f":"CHOOSE(view,\n'[13]M1a - Model inputs'!N$140,\n'[13]M1b - Model inputs'!N$140,\n'[13]SM1 - DECC Scenario 3 equiv'!N$140,\n'[13]SM2 - DECC Scenario 1 equiv'!N$140,\n'[13]SM3 - DECC Scenario 2 equiv'!N$140,\n'[13]SM4 - DNO Scenario 4 equiv'!N$140,\n'[14]M1a - Model inputs'!N$140,\n'[14]M1b - Model inputs'!N$140,\n'[14]SM1 - DECC Scenario 3 equiv'!N$140,\n'[14]SM2 - DECC Scenario 1 equiv'!N$140,\n'[14]SM3 - DECC Scenario 2 equiv'!N$140,\n'[14]SM4 - DNO Scenario 4 equiv'!N$140)","v":0},{"$f":"CHOOSE(view,\n'[13]M1a - Model inputs'!O$140,\n'[13]M1b - Model inputs'!O$140,\n'[13]SM1 - DECC Scenario 3 equiv'!O$140,\n'[13]SM2 - DECC Scenario 1 equiv'!O$140,\n'[13]SM3 - DECC Scenario 2 equiv'!O$140,\n'[13]SM4 - DNO Scenario 4 equiv'!O$140,\n'[14]M1a - Model inputs'!O$140,\n'[14]M1b - Model inputs'!O$140,\n'[14]SM1 - DECC Scenario 3 equiv'!O$140,\n'[14]SM2 - DECC Scenario 1 equiv'!O$140,\n'[14]SM3 - DECC Scenario 2 equiv'!O$140,\n'[14]SM4 - DNO Scenario 4 equiv'!O$140)","v":0},{"$f":"CHOOSE(view,\n'[13]M1a - Model inputs'!P$140,\n'[13]M1b - Model inputs'!P$140,\n'[13]SM1 - DECC Scenario 3 equiv'!P$140,\n'[13]SM2 - DECC Scenario 1 equiv'!P$140,\n'[13]SM3 - DECC Scenario 2 equiv'!P$140,\n'[13]SM4 - DNO Scenario 4 equiv'!P$140,\n'[14]M1a - Model inputs'!P$140,\n'[14]M1b - Model inputs'!P$140,\n'[14]SM1 - DECC Scenario 3 equiv'!P$140,\n'[14]SM2 - DECC Scenario 1 equiv'!P$140,\n'[14]SM3 - DECC Scenario 2 equiv'!P$140,\n'[14]SM4 - DNO Scenario 4 equiv'!P$140)","v":0},{"$f":"CHOOSE(view,\n'[13]M1a - Model inputs'!Q$140,\n'[13]M1b - Model inputs'!Q$140,\n'[13]SM1 - DECC Scenario 3 equiv'!Q$140,\n'[13]SM2 - DECC Scenario 1 equiv'!Q$140,\n'[13]SM3 - DECC Scenario 2 equiv'!Q$140,\n'[13]SM4 - DNO Scenario 4 equiv'!Q$140,\n'[14]M1a - Model inputs'!Q$140,\n'[14]M1b - Model inputs'!Q$140,\n'[14]SM1 - DECC Scenario 3 equiv'!Q$140,\n'[14]SM2 - DECC Scenario 1 equiv'!Q$140,\n'[14]SM3 - DECC Scenario 2 equiv'!Q$140,\n'[14]SM4 - DNO Scenario 4 equiv'!Q$140)","v":0},{"$f":"CHOOSE(view,\n'[13]M1a - Model inputs'!R$140,\n'[13]M1b - Model inputs'!R$140,\n'[13]SM1 - DECC Scenario 3 equiv'!R$140,\n'[13]SM2 - DECC Scenario 1 equiv'!R$140,\n'[13]SM3 - DECC Scenario 2 equiv'!R$140,\n'[13]SM4 - DNO Scenario 4 equiv'!R$140,\n'[14]M1a - Model inputs'!R$140,\n'[14]M1b - Model inputs'!R$140,\n'[14]SM1 - DECC Scenario 3 equiv'!R$140,\n'[14]SM2 - DECC Scenario 1 equiv'!R$140,\n'[14]SM3 - DECC Scenario 2 equiv'!R$140,\n'[14]SM4 - DNO Scenario 4 equiv'!R$140)","v":0},{"$f":"CHOOSE(view,\n'[13]M1a - Model inputs'!S$140,\n'[13]M1b - Model inputs'!S$140,\n'[13]SM1 - DECC Scenario 3 equiv'!S$140,\n'[13]SM2 - DECC Scenario 1 equiv'!S$140,\n'[13]SM3 - DECC Scenario 2 equiv'!S$140,\n'[13]SM4 - DNO Scenario 4 equiv'!S$140,\n'[14]M1a - Model inputs'!S$140,\n'[14]M1b - Model inputs'!S$140,\n'[14]SM1 - DECC Scenario 3 equiv'!S$140,\n'[14]SM2 - DECC Scenario 1 equiv'!S$140,\n'[14]SM3 - DECC Scenario 2 equiv'!S$140,\n'[14]SM4 - DNO Scenario 4 equiv'!S$140)","v":0}]
[null,null,null,null,{"$f":"Input!E275","v":"Other consented activities net position"},null,{"$f":"Input!G275","v":"£m 12/13 prices"},null,null,null,null,null,null,null,null,null,null,null,null,null,null,null,null,null,null,null,null,null,null,null,null,null,null,null,null,{"$f":"SUM(AJ273, -AJ274)","v":0},{"$f":"SUM(AK273, -AK274)","v":0},0,0,0,0,0,0]
[]
[null,null,null,null,{"$f":"Input!E277","v":"Spare revenue"},null,{"$f":"Input!G277","v":"£m 12/13 prices"}]
[null,null,null,null,{"$f":"Input!E278","v":"Spare costs"},null,{"$f":"Input!G278","v":"£m 12/13 prices"}]
[null,null,null,null,{"$f":"Input!E279","v":"Spare net position"},null,{"$f":"Input!G279","v":"£m 12/13 prices"},null,null,null,null,null,null,null,null,null,null,null,null,null,null,null,null,null,null,null,null,null,null,null,null,null,null,null,null,{"$f":"SUM(AJ277, -AJ278)","v":0},{"$f":"SUM(AK277, -AK278)","v":0},0,0,0,0,0,0]
[]
[null,null,null,null,{"$f":"Input!E281","v":"Overall net income of Directly Remunerated Services"},null,{"$f":"Input!G281","v":"£m 12/13 prices"},null,null,null,null,null,null,null,null,null,null,null,null,null,null,null,null,null,null,null,null,null,null,null,null,null,null,null,null,{"$f":"AJ231+AJ235+AJ239+AJ243+AJ247+AJ251+AJ255+AJ259+AJ263+AJ267+AJ271+AJ275+AJ279","v":-17.9800023197974},{"$f":"AK231+AK235+AK239+AK243+AK247+AK251+AK255+AK259+AK263+AK267+AK271+AK275+AK279","v":-17.424852053577212},-16.17331866499892,-15.058044586682451,-13.749858773243556,-12.751614522449231,-12.486590546668765,-12.398860167534924]
[]
[null,"RAV and assets"]
[]
[null,null,"Pre-vesting assets"]
[]
[null,null,null,null,{"$f":"Input!E287","v":"Pre-vesting asset life"},null,"years",null,15]
[null,null,null,null,{"$f":"Input!E288","v":"Pre vesting asset depn in first year (mths)"},null,"months",null,3.5]
[]
[null,null,null,null,"Metering Write off",null,"£m 12/13 prices",null,{"$f":"-'[15]F22 Historic RAV lookup data'!$J$30","v":21.226107922058169}]
[]
[null,null,"Post-vesting assets"]
[]
[null,null,null,null,{"$f":"Input!E294","v":"ED"}]
[null,null,null,null,{"$f":"Input!E295","v":"Post-vesting asset life"},null,"years",null,null,">",33.299999999999997,33.299999999999997,33.299999999999997,33.299999999999997,33.299999999999997,33.299999999999997,33.299999999999997,33.299999999999997,33.299999999999997,33.299999999999997,33.299999999999997,33.299999999999997,33.299999999999997,33.299999999999997,33.299999999999997,33.299999999999997,33.299999999999997,33.299999999999997,33.299999999999997,33.299999999999997,33.299999999999997,33.299999999999997,33.299999999999997,33.299999999999997,33.299999999999997,23.125,26.25,29.375,32.5,35.625,38.75,41.875,45]
[null,null,null,null,{"$f":"Input!E296","v":"Accelerated post-vesting asset life"},null,"years",null,null,">",20,20,20,20,20,20,20,20,20,20,20,20,20,20,20,20,20,20,20,20,20,20,20,20,20,23.125,26.25,29.375,32.5,35.625,38.75,41.875,45]
[null,null,null,null,{"$f":"Input!E297","v":"Smoothing period following full depreciation of pre-vesting assets"},null,"years",null,15]
[null,null,null,null,{"$f":"Input!E298","v":"Vesting Period"},null,"year ending",null,"1991-03-31"]
[null,null,null,null,{"$f":"Input!E299","v":"Pre-RIIO net additions to RAV"},null,"£m 12/13 prices",null,null,">",{"$f":"'[15]F21 RAV rollforward & depn'!F$10","v":28.656902975284666},{"$f":"'[15]F21 RAV rollforward & depn'!G$10","v":89.052096342551266},{"$f":"'[15]F21 RAV rollforward & depn'!H$10","v":87.6654720050375},{"$f":"'[15]F21 RAV rollforward & depn'!I$10","v":81.656766542477826},{"$f":"'[15]F21 RAV rollforward & depn'!J$10","v":81.810835913312687},{"$f":"'[15]F21 RAV rollforward & depn'!K$10","v":74.415506113239204},{"$f":"'[15]F21 RAV rollforward & depn'!L$10","v":84.738153959175079},{"$f":"'[15]F21 RAV rollforward & depn'!M$10","v":87.973610746707223},{"$f":"'[15]F21 RAV rollforward & depn'!N$10","v":83.250449252747629},{"$f":"'[15]F21 RAV rollforward & depn'!O$10","v":80.49381186027253},{"$f":"'[15]F21 RAV rollforward & depn'!P$10","v":77.323678858926201},{"$f":"'[15]F21 RAV rollforward & depn'!Q$10","v":81.596466817262581},{"$f":"'[15]F21 RAV rollforward & depn'!R$10","v":84.215272340113927},{"$f":"'[15]F21 RAV rollforward & depn'!S$10","v":83.536114536237847},{"$f":"'[15]F21 RAV rollforward & depn'!T$10","v":96.577648912032529},{"$f":"'[15]F21 RAV rollforward & depn'!U$10","v":93.000378544060482},{"$f":"'[15]F21 RAV rollforward & depn'!V$10","v":101.99031084278045},{"$f":"'[15]F21 RAV rollforward & depn'!W$10","v":98.648064616185607},{"$f":"'[15]F21 RAV rollforward & depn'!X$10","v":105.25942422596418},{"$f":"'[15]F21 RAV rollforward & depn'!Y$10","v":106.72291848244375},{"$f":"'[15]F21 RAV rollforward & depn'!Z$10","v":131.75685641035767},{"$f":"'[15]F21 RAV rollforward & depn'!AA$10","v":116.03069996160276},{"$f":"'[15]F21 RAV rollforward & depn'!AB$10","v":126.47289741342379},{"$f":"[16]CRAV!AH$25","v":147.60553295521899},{"$f":"[16]CRAV!AI$25","v":147.16968413299927}]
[null,null,null,null,"LRAV",null,"£m 12/13 prices",null,null,null,null,null,null,null,null,null,null,null,null,null,null,null,null,null,null,null,null,null,null,null,null,null,null,{"$f":"AH32","v":-13.562720803973633},-7.226540185803338]
[null,null,null,null,"RIIO post-vesting RAV additions",null,"£m 12/13 prices"]
[null,null,null,null,"RIIO post-vesting RAV disposals",null,"£m 12/13 prices"]
[null,null,null,null,{"$f":"Input!E303","v":"Pre-RIIO transfers to depreciation"},null,"£m 12/13 prices",null,null,">"]
[]
[null,"Tax"]
[]
[null,null,"Tax policy"]
[]
[null,null,null,null,{"$f":"E33","v":"Tax liability allowance adjustments - gearing/interest costs"},null,"£m nominal",null,null,null,null,null,null,null,null,null,null,null,null,null,null,null,null,null,null,null,null,null,null,null,null,null,null,null,null,{"$f":"AJ33","v":0},0,0,0,0,0,0,0]
[null,null,null,null,{"$f":"E34","v":"Tax liability allowance adjustments - driven by tax trigger events"},null,"£m 12/13 prices",null,null,null,null,null,null,null,null,null,null,null,null,null,null,null,null,null,null,null,null,null,null,null,null,null,null,null,null,0,0,0,0,0,0,0,0]
[]
[null,null,null,null,"Corporation tax rate",null,"%",null,null,">",null,null,null,null,null,null,null,null,null,null,null,null,null,null,null,null,null,null,null,null,null,null,null,null,null,0.2,0.2,0.2,0.2,0.2,0.2,0.2,0.2]
[]
[null,null,null,null,"General pool capital allowance rate",null,"%",null,null,">",null,null,null,null,null,null,null,null,null,null,null,null,null,null,null,null,null,null,null,null,null,null,null,null,null,0.18000000000000002,0.18000000000000002,0.18000000000000002,0.18000000000000002,0.18000000000000002,0.18000000000000002,0.18000000000000002,0.18000000000000002]
[null,null,null,null,"Special Rates capital allowance rate",null,"%",null,null,">",null,null,null,null,null,null,null,null,null,null,null,null,null,null,null,null,null,null,null,null,null,null,null,null,null,0.08,0.08,0.08,0.08,0.08,0.08,0.08,0.08]
[null,null,null,null,"Deferred Revenue Expenditure capital allowance rate",null,"%",null,null,">",null,null,null,null,null,null,null,null,null,null,null,null,null,null,null,null,null,null,null,null,null,null,null,null,null,2.2200000000000001E-2,2.2200000000000001E-2,2.2200000000000001E-2,2.2200000000000001E-2,2.2200000000000001E-2,2.2200000000000001E-2,2.2200000000000001E-2,2.2200000000000001E-2]
[]
[null,null,"Capital allowances and tax losses"]
[]
[null,null,null,null,"General pool capital allowance opening balance brought forward",null,"£m nominal",null,null,null,null,null,null,null,null,null,null,null,null,null,null,null,null,null,null,null,null,null,null,null,null,null,null,{"$f":"'[15]F13 Tax CA pools'!$I$58","v":44.352404000000014}]
[null,null,null,null,"General pool capital allowance pre-RIIO movement forecast",null,"£m nominal",null,null,null,null,null,null,null,null,null,null,null,null,null,null,null,null,null,null,null,null,null,null,null,null,null,null,5.1666359395617043,8.4354984611046486]
[null,null,null,null,"General pool capital allowance pre-RIIO movement adjustment",null,"£m nominal",null,null,null,null,null,null,null,null,null,null,null,null,null,null,null,null,null,null,null,null,null,null,null,null,null,null,{"$f":"AH35","v":0},{"$f":"AI35","v":0}]
[]
[null,null,null,null,"Special Rate capital allowance opening balance brought forward",null,"£m nominal",null,null,null,null,null,null,null,null,null,null,null,null,null,null,null,null,null,null,null,null,null,null,null,null,null,null,{"$f":"'[15]F13 Tax CA pools'!$I$68","v":211.715}]
[null,null,null,null,"Special Rate  capital allowance pre-RIIO movement forecast",null,"£m nominal",null,null,null,null,null,null,null,null,null,null,null,null,null,null,null,null,null,null,null,null,null,null,null,null,null,null,21.798093556673667,22.165623222771735]
[null,null,null,null,"Special Rate  capital allowance pre-RIIO movement adjustment",null,"£m nominal",null,null,null,null,null,null,null,null,null,null,null,null,null,null,null,null,null,null,null,null,null,null,null,null,null,null,{"$f":"AH36","v":0},{"$f":"AI36","v":0}]
[]
[null,null,null,null,"Deferred revenue expenditure opening balance brought forward",null,"£m nominal",null,null,null,null,null,null,null,null,null,null,null,null,null,null,null,null,null,null,null,null,null,null,null,null,null,null,{"$f":"'[15]F13 Tax CA pools'!$I$78","v":444.66422300000005}]
[null,null,null,null,"Deferred revenue expenditure pre-RIIO movement forecast",null,"£m nominal",null,null,null,null,null,null,null,null,null,null,null,null,null,null,null,null,null,null,null,null,null,null,null,null,null,null,57.600513040384477,59.449034529316279]
[null,null,null,null,"Deferred revenue expenditure  pre-RIIO movement adjustment",null,"£m nominal",null,null,null,null,null,null,null,null,null,null,null,null,null,null,null,null,null,null,null,null,null,null,null,null,null,null,{"$f":"AH37","v":0},{"$f":"AI37","v":0}]
[]
[null,null,null,null,"DRE: Gross capex up to and including 31 March 2013",null,"£m nominal",null,null,null,null,null,null,null,null,null,null,null,null,null,null,null,null,null,null,null,null,null,null,null,null,null,null,480.86712]
[null,null,null,null,"DRE: Gross capex forecast",null,"£m nominal",null,null,null,null,null,null,null,null,null,null,null,null,null,null,null,null,null,null,null,null,null,null,null,null,null,null,68.58964840855559,71.875683568864687]
[null,null,null,null,"DRE: Gross capex adjustment",null,"£m nominal",null,null,null,null,null,null,null,null,null,null,null,null,null,null,null,null,null,null,null,null,null,null,null,null,null,null,{"$f":"AH38","v":0},{"$f":"AI38","v":0}]
[]
[null,null,null,null,"Tax loss brought forward",null,"£m nominal",null,null,null,null,null,null,null,null,null,null,null,null,null,null,null,null,null,null,null,null,null,null,null,null,null,null,0]
[]
[null,null,"Tax pool allocation"]
[]
[null,null,null,{"$f":"Input!D340","v":"Tax Pool Allocation "}]
[]
[null,null,null,"Allocation to \"General\" pool"]
[]
[null,null,null,null,{"$f":"Input!E344","v":"Load Related"},null,"%",null,null,null,null,null,null,null,null,null,null,null,null,null,null,null,null,null,null,null,null,null,null,null,null,null,null,null,null,0,0,0,0,0,0,0,0]
[null,null,null,null,{"$f":"Input!E345","v":"Non-load related capex - asset replacement"},null,"%",null,null,null,null,null,null,null,null,null,null,null,null,null,null,null,null,null,null,null,null,null,null,null,null,null,null,null,null,3.260200212755824E-2,3.1462677633565653E-2,3.6712727764257796E-2,4.1037886917127536E-2,3.7516637853158327E-2,3.4098598795312157E-2,3.3984564748487288E-2,2.9319625101450471E-2]
[null,null,null,null,{"$f":"Input!E346","v":"Non-Load Related - other"},null,"%",null,null,null,null,null,null,null,null,null,null,null,null,null,null,null,null,null,null,null,null,null,null,null,null,null,null,null,null,0.93948346088242318,0.85253022568852432,0.88270502304102738,0.91578377816130208,0.91835463129143169,0.91247042040731474,0.92421219069823324,0.95340164088020074]
[null,null,null,null,{"$f":"Input!E347","v":"Faults"},null,"%",null,null,null,null,null,null,null,null,null,null,null,null,null,null,null,null,null,null,null,null,null,null,null,null,null,null,null,null,0,0,0,0,0,0,0,0]
[null,null,null,null,{"$f":"Input!E348","v":"Tree cutting"},null,"%",null,null,null,null,null,null,null,null,null,null,null,null,null,null,null,null,null,null,null,null,null,null,null,null,null,null,null,null,0,0,0,0,0,0,0,0]
[null,null,null,null,{"$f":"Input!E349","v":"Controllable Opex"},null,"%",null,null,null,null,null,null,null,null,null,null,null,null,null,null,null,null,null,null,null,null,null,null,null,null,null,null,null,null,6.2319077558764931E-2,6.2226215158322502E-2,6.2245135346165742E-2,6.2468295138649231E-2,6.2801041944843441E-2,6.3575888530032154E-2,6.4673247522102476E-2,6.5092045133833834E-2]
[]
[null,null,null,"Allocation to \"Special Rate\" pool"]
[]
[null,null,null,null,{"$f":"Input!E353","v":"Load Related"},null,"%",null,null,null,null,null,null,null,null,null,null,null,null,null,null,null,null,null,null,null,null,null,null,null,null,null,null,null,null,0.92592236954975127,0.93390292747516546,0.96028267927745803,0.95411938187812828,0.94858958800945548,0.94501034455177746,0.94293549560453283,0.95406454729921608]
[null,null,null,null,{"$f":"Input!E354","v":"Non-load related capex - asset replacement"},null,"%",null,null,null,null,null,null,null,null,null,null,null,null,null,null,null,null,null,null,null,null,null,null,null,null,null,null,null,null,0.35439310761495663,0.35566679751095848,0.34009166215455289,0.29593191895368387,0.29772475092174783,0.29891982387189425,0.29862889263705161,0.31663262590851077]
[null,null,null,null,{"$f":"Input!E355","v":"Non-Load Related - other"},null,"%",null,null,null,null,null,null,null,null,null,null,null,null,null,null,null,null,null,null,null,null,null,null,null,null,null,null,null,null,2.6572379821705558E-2,6.658848191141524E-2,6.5376571369929623E-2,2.9001521809321008E-2,4.0102422175612051E-2,3.9023174179560742E-2,4.0701236416976247E-2,3.2807985616623216E-2]
[null,null,null,null,{"$f":"Input!E356","v":"Faults"},null,"%",null,null,null,null,null,null,null,null,null,null,null,null,null,null,null,null,null,null,null,null,null,null,null,null,null,null,null,null,0,0,0,0,0,0,0,0]
[null,null,null,null,{"$f":"Input!E357","v":"Tree cutting"},null,"%",null,null,null,null,null,null,null,null,null,null,null,null,null,null,null,null,null,null,null,null,null,null,null,null,null,null,null,null,0,0,0,0,0,0,0,0]
[null,null,null,null,{"$f":"Input!E358","v":"Controllable Opex"},null,"%",null,null,null,null,null,null,null,null,null,null,null,null,null,null,null,null,null,null,null,null,null,null,null,null,null,null,null,null,0.14065889085474723,0.14042454184220293,0.14043664048645907,0.14092552715513978,0.14165995241893603,0.1433684852356534,0.14583381013939925,0.14674733073099494]
[]
[null,null,null,"Allocation to \"Deferred Revenue\" pool"]
[]
[null,null,null,null,{"$f":"Input!E362","v":"Load Related"},null,"%",null,null,null,null,null,null,null,null,null,null,null,null,null,null,null,null,null,null,null,null,null,null,null,null,null,null,null,null,0,0,0,0,0,0,0,0]
[null,null,null,null,{"$f":"Input!E363","v":"Non-load related capex - asset replacement"},null,"%",null,null,null,null,null,null,null,null,null,null,null,null,null,null,null,null,null,null,null,null,null,null,null,null,null,null,null,null,0.5247662722404528,0.52730533610168417,0.54022638675327772,0.5808748077951994,0.58466859562072382,0.58396861791151977,0.58880343929728751,0.57557300579478532]
[null,null,null,null,{"$f":"Input!E364","v":"Non-Load Related - other"},null,"%",null,null,null,null,null,null,null,null,null,null,null,null,null,null,null,null,null,null,null,null,null,null,null,null,null,null,null,null,3.1134411591516092E-3,1.0540240297788319E-2,5.0362119357787657E-3,5.8146935665594679E-3,4.6748901771415238E-3,5.2369497130656502E-3,4.0181578949735324E-3,4.1043985853088074E-4]
[null,null,null,null,{"$f":"Input!E365","v":"Faults"},null,"%",null,null,null,null,null,null,null,null,null,null,null,null,null,null,null,null,null,null,null,null,null,null,null,null,null,null,null,null,0.68448008838496188,0.68564568217720834,0.68692519179154976,0.68926951556311311,0.69109053923341246,0.6935643188570525,0.69581321284230224,0.6986495507478494]
[null,null,null,null,{"$f":"Input!E366","v":"Tree cutting"},null,"%",null,null,null,null,null,null,null,null,null,null,null,null,null,null,null,null,null,null,null,null,null,null,null,null,null,null,null,null,0,0,0,0,0,0,0,0]
[null,null,null,null,{"$f":"Input!E367","v":"Controllable Opex"},null,"%",null,null,null,null,null,null,null,null,null,null,null,null,null,null,null,null,null,null,null,null,null,null,null,null,null,null,null,null,0.22993812528014065,0.22955659648893645,0.22957831152817371,0.23037844197788385,0.23158007407901993,0.23437560373174565,0.23840645129364202,0.23990181188211121]
[]
[null,null,null,"Allocation to \"Revenue\" pool"]
[]
[null,null,null,null,{"$f":"Input!E371","v":"Load Related"},null,"%",null,null,null,null,null,null,null,null,null,null,null,null,null,null,null,null,null,null,null,null,null,null,null,null,null,null,null,null,7.4077630450248816E-2,6.6097072524834516E-2,3.9717320722542082E-2,4.5880618121871705E-2,5.1410411990544518E-2,5.4989655448222444E-2,5.7064504395467168E-2,4.5935452700783946E-2]
[null,null,null,null,{"$f":"Input!E372","v":"Non-load related capex - asset replacement"},null,"%",null,null,null,null,null,null,null,null,null,null,null,null,null,null,null,null,null,null,null,null,null,null,null,null,null,null,null,null,3.9127608907554276E-2,3.8449186283690449E-2,4.0300531464501736E-2,3.6091690890295382E-2,3.4427085458422914E-2,3.2494046236265152E-2,3.1025823051801637E-2,2.72599576631532E-2]
[null,null,null,null,{"$f":"Input!E373","v":"Non-Load Related - other"},null,"%",null,null,null,null,null,null,null,null,null,null,null,null,null,null,null,null,null,null,null,null,null,null,null,null,null,null,null,null,1.2150071181809882E-2,7.0996103155421706E-3,1.6664922038591604E-2,1.4511845063460479E-2,8.8187152929656738E-3,1.1847757421664874E-2,6.9594676199759226E-3,1.0917294493459889E-2]
[null,null,null,null,{"$f":"Input!E374","v":"Faults"},null,"%",null,null,null,null,null,null,null,null,null,null,null,null,null,null,null,null,null,null,null,null,null,null,null,null,null,null,null,null,0.31551991161503806,0.31435431782279172,0.31307480820845024,0.31073048443688683,0.30890946076658743,0.30643568114294745,0.3041867871576977,0.30135044925215071]
[null,null,null,null,{"$f":"Input!E375","v":"Tree cutting"},null,"%",null,null,null,null,null,null,null,null,null,null,null,null,null,null,null,null,null,null,null,null,null,null,null,null,null,null,null,null,1,1,1,1,1,1,1,1]
[null,null,null,null,{"$f":"Input!E376","v":"Controllable Opex"},null,"%",null,null,null,null,null,null,null,null,null,null,null,null,null,null,null,null,null,null,null,null,null,null,null,null,null,null,null,null,0.55360382787303297,0.55433972676633259,0.55429164479142712,0.55273542588627989,0.55039939169958052,0.5449644075195389,0.53713679422878613,0.53422759424441879]
[]
[null,null,null,"Allocation to \"Non Qualifying\" pool"]
[]
[null,null,null,null,{"$f":"Input!E380","v":"Load Related"},null,"%",null,null,null,null,null,null,null,null,null,null,null,null,null,null,null,null,null,null,null,null,null,null,null,null,null,null,null,null,0,0,0,0,0,0,0,0]
[null,null,null,null,{"$f":"Input!E381","v":"Non-load related capex - asset replacement"},null,"%",null,null,null,null,null,null,null,null,null,null,null,null,null,null,null,null,null,null,null,null,null,null,null,null,null,null,null,null,4.9111009109478201E-2,4.7116002470101247E-2,4.2668691863409602E-2,4.6063695443693604E-2,4.5662930145946953E-2,5.051891318500875E-2,4.755728026537203E-2,5.121478553210012E-2]
[null,null,null,null,{"$f":"Input!E382","v":"Non-Load Related - other"},null,"%",null,null,null,null,null,null,null,null,null,null,null,null,null,null,null,null,null,null,null,null,null,null,null,null,null,null,null,null,1.8680646954909653E-2,6.3241441786729913E-2,3.0217271614672594E-2,3.4888161399356805E-2,2.8049341062849141E-2,3.1421698278393896E-2,2.4108947369841191E-2,2.4626391511852843E-3]
[null,null,null,null,{"$f":"Input!E383","v":"Faults"},null,"%",null,null,null,null,null,null,null,null,null,null,null,null,null,null,null,null,null,null,null,null,null,null,null,null,null,null,null,null,0,0,0,0,0,0,0,0]
[null,null,null,null,{"$f":"Input!E384","v":"Tree cutting"},null,"%",null,null,null,null,null,null,null,null,null,null,null,null,null,null,null,null,null,null,null,null,null,null,null,null,null,null,null,null,0,0,0,0,0,0,0,0]
[null,null,null,null,{"$f":"Input!E385","v":"Controllable Opex"},null,"%",null,null,null,null,null,null,null,null,null,null,null,null,null,null,null,null,null,null,null,null,null,null,null,null,null,null,null,null,1.3480078433314235E-2,1.3452919744205483E-2,1.344826784777441E-2,1.3492309842047407E-2,1.3559539857620243E-2,1.3715614983030054E-2,1.3949696816070148E-2,1.4031218008641207E-2]
[]
[null,null,null,"Allocation check"]
[null,null,null,"Note: All categories should equal 100%"]
[]
[null,null,null,null,{"$f":"Input!E390","v":"Load Related"},null,"%",null,null,null,null,null,null,null,null,null,null,null,null,null,null,null,null,null,null,null,null,null,null,null,null,null,null,null,null,{"$f":"AJ344+AJ353+AJ362+AJ371+AJ380","v":1},1,1,1,1,0.99999999999999989,1,1]
[null,null,null,null,{"$f":"Input!E391","v":"Non-load related capex - asset replacement"},null,"%",null,null,null,null,null,null,null,null,null,null,null,null,null,null,null,null,null,null,null,null,null,null,null,null,null,null,null,null,1.0000000000000002,1,0.99999999999999978,0.99999999999999978,0.99999999999999978,1,1.0000000000000002,0.99999999999999978]
[null,null,null,null,{"$f":"Input!E392","v":"Non-Load Related - other"},null,"%",null,null,null,null,null,null,null,null,null,null,null,null,null,null,null,null,null,null,null,null,null,null,null,null,null,null,null,null,0.99999999999999989,1,0.99999999999999989,0.99999999999999989,1,0.99999999999999989,1,1]
[null,null,null,null,{"$f":"Input!E393","v":"Faults"},null,"%",null,null,null,null,null,null,null,null,null,null,null,null,null,null,null,null,null,null,null,null,null,null,null,null,null,null,null,null,1,1,1,1,0.99999999999999989,1,1,1]
[null,null,null,null,{"$f":"Input!E394","v":"Tree cutting"},null,"%",null,null,null,null,null,null,null,null,null,null,null,null,null,null,null,null,null,null,null,null,null,null,null,null,null,null,null,null,1,1,1,1,1,1,1,1]
[null,null,null,null,{"$f":"Input!E395","v":"Controllable Opex"},null,"%",null,null,null,null,null,null,null,null,null,null,null,null,null,null,null,null,null,null,null,null,null,null,null,null,null,null,null,null,1,1,1,1.0000000000000002,1.0000000000000002,1.0000000000000002,1,0.99999999999999989]
[]
[null,null,null,"Inputs for statutory depreciation"]
[]
[null,null,null,null,"Statutory depreciation as per BPDT",null,"£m 12/13 prices",null,null,null,null,null,null,null,null,null,null,null,null,null,null,null,null,null,null,null,null,null,null,null,null,null,null,null,null,49.289730442599634,54.453129242495045,58.710861682632739,61.767695975427351,66.020385515533235,69.197745585124792,70.935946629015788,73.543759662674745]
[null,null,null,null,"Capex as per BPDT",null,"£m 12/13 prices",null,null,null,null,null,null,null,null,null,null,null,null,null,null,null,null,null,null,null,null,null,null,null,null,null,null,null,null,174.46338488096833,179.24920629331334,178.51809265492199,187.26194873773869,187.72299204728694,195.61640328271196,201.93168227402765,219.89107824780513]
[]
[]
[null,null,null,"Tax Trigger Deadbands"]
[]
[null,null,null,null,"Tax Trigger Deadband",null,"£m 12/13 prices"]
[]
[null,null,null,"Profiling Values"]
[]
[null,null,null,null,"Initial Profile Adjustment",null,"£m 12/13 prices",null,null,null,null,null,null,null,null,null,null,null,null,null,null,null,null,null,null,null,null,null,null,null,null,null,null,null,null,{"$f":"'Revenue Profiling'!AJ246*'Revenue Profiling'!$G$233","v":0},{"$f":"'Revenue Profiling'!AK246*'Revenue Profiling'!$G$233","v":0},{"$f":"'Revenue Profiling'!AL246*'Revenue Profiling'!$G$233","v":0},{"$f":"'Revenue Profiling'!AM246*'Revenue Profiling'!$G$233","v":0},{"$f":"'Revenue Profiling'!AN246*'Revenue Profiling'!$G$233","v":0},{"$f":"'Revenue Profiling'!AO246*'Revenue Profiling'!$G$233","v":0},{"$f":"'Revenue Profiling'!AP246*'Revenue Profiling'!$G$233","v":0},{"$f":"'Revenue Profiling'!AQ246*'Revenue Profiling'!$G$233","v":0}]
[null,null,null,null,"Time Value of Money Profile Adjustment",null,"£m 12/13 prices",null,null,null,null,null,null,null,null,null,null,null,null,null,null,null,null,null,null,null,null,null,null,null,null,null,null,null,null,{"$f":"'Revenue Profiling'!AJ263*'Revenue Profiling'!$G$233","v":0},{"$f":"'Revenue Profiling'!AK263*'Revenue Profiling'!$G$233","v":0},{"$f":"'Revenue Profiling'!AL263*'Revenue Profiling'!$G$233","v":0},{"$f":"'Revenue Profiling'!AM263*'Revenue Profiling'!$G$233","v":0},{"$f":"'Revenue Profiling'!AN263*'Revenue Profiling'!$G$233","v":0},{"$f":"'Revenue Profiling'!AO263*'Revenue Profiling'!$G$233","v":0},{"$f":"'Revenue Profiling'!AP263*'Revenue Profiling'!$G$233","v":0},{"$f":"'Revenue Profiling'!AQ263*'Revenue Profiling'!$G$233","v":0}]
[null,null,null,null,"Time Value of Money Profile Increment",null,"£m 12/13 prices",null,null,null,null,null,null,null,null,null,null,null,null,null,null,null,null,null,null,null,null,null,null,null,null,null,null,null,null,{"$f":"AJ423","v":0},{"$f":"AK423","v":0},0,0,0,0,0,0]
[]
[null,null,null,null,"Time Value of Money Increment Calculations:"]
[]
[null,null,null,null,"WACC at FP (to be hard pasted at FP)",null,null,null,null,null,null,null,null,null,null,null,null,null,null,null,null,null,null,null,null,null,null,null,null,null,null,null,null,null,null,{"$f":"AJ416","v":4.2429999999999995E-2},{"$f":"AK416","v":4.2429999999999995E-2},4.2429999999999995E-2,4.2429999999999995E-2,4.2429999999999995E-2,4.2429999999999995E-2,4.2429999999999995E-2,4.2429999999999995E-2]
[null,null,null,null,"Current WACC",null,null,null,null,null,null,null,null,null,null,null,null,null,null,null,null,null,null,null,null,null,null,null,null,null,null,null,null,null,null,{"$f":"AJ48","v":4.2429999999999995E-2},{"$f":"AK48","v":4.2429999999999995E-2},4.2429999999999995E-2,4.2429999999999995E-2,4.2429999999999995E-2,4.2429999999999995E-2,4.2429999999999995E-2,4.2429999999999995E-2]
[]
[null,null,null,null,"IOU Account"]
[null,null,null,null,"Opening",null,null,null,null,null,null,null,null,null,null,null,null,null,null,null,null,null,null,null,null,null,null,null,null,null,null,null,null,null,null,1.0000000000000001E-9,1.0000000000000001E-9,1.0000000000000001E-9,1.0000000000000001E-9,1.0000000000000001E-9,1.0000000000000001E-9,1.0000000000000001E-9,1.0000000000000001E-9]
[null,null,null,null,"Profiling Impact on Actual Revenues"]
[null,null,null,null,"Closing balance"]
[]
[null,null,null,null,"Time Value of Money Increment",null,null,null,null,null,null,null,null,null,null,null,null,null,null,null,null,null,null,null,null,null,null,null,null,null,null,null,null,null,null,{"$f":"AVERAGE(AJ419,AJ421)*(AJ416-AJ415)","v":0},{"$f":"AVERAGE(AK419,AK421)*(AK416-AK415)","v":0},0,0,0,0,0,0]

{"sheet":"LPN","index":29,"n_rows":0,"n_cols":0,"rows_kept":0,"cut":false,"hidden":false,"merged":[]}

{"sheet":"SPN","index":30,"n_rows":0,"n_cols":0,"rows_kept":0,"cut":false,"hidden":false,"merged":[]}

{"sheet":"EPN","index":31,"n_rows":0,"n_cols":0,"rows_kept":0,"cut":false,"hidden":false,"merged":[]}

{"sheet":"SPD","index":32,"n_rows":0,"n_cols":0,"rows_kept":0,"cut":false,"hidden":false,"merged":[]}

{"sheet":"SPMW","index":33,"n_rows":0,"n_cols":0,"rows_kept":0,"cut":false,"hidden":false,"merged":[]}

{"sheet":"SSEH","index":34,"n_rows":0,"n_cols":0,"rows_kept":0,"cut":false,"hidden":false,"merged":[]}

{"sheet":"SSES","index":35,"n_rows":0,"n_cols":0,"rows_kept":0,"cut":false,"hidden":false,"merged":[]}